{"text_format":"1","workbook":"xlsx","n_sheets":131,"sheets":["CONFIGURATION","Currency Table","Submission","Company Information","Content","Index","Import","Export","Import Differences","Attachments","FileStorage","Declaration","Zones","Information Sheet","Financial Condition","SAR & Sanc. (All)","Form 1SFS","Form 2SFS","Form 8SFS","Form 1EBS","Schedule II","Schedule II (EBS)","Schedule IIA","Schedule IIA (EBS)","Inv Recon (Original)","Investment Reconciliation","Schedule IIB (EBS)","Schedule IIC (EBS)","Schedule IID (EBS)","Schedule IIE (EBS)","Schedule IIF (EBS)","Schedule III","Schedule III (EBS)","Schedule IIIA (EBS)","Schedule IV","Schedule IVA (EBS)","Schedule IVC (EBS)","Schedule IVD (EBS)","Schedule IVE (EBS)","Schedule V","Schedule V(a)","Schedule V(c)","Schedule V(e)","Schedule V(g)","Schedule V(k)","Schedule V(l)","Schedule V(m)","Schedule VI","Schedule VI (EBS)","Schedule IX(a)","Schedule IX(b)","Schedule IX(c)","Schedule X(a)","Schedule X(b)","Schedule X(c)","Schedule X(d)","Schedule X(e)","Schedule X(f)","Schedule X(g)","Schedule X(h)","Schedule X(i)","Schedule X(j)","Schedule XI","Schedule XI(a)","Sch XI(a)(i)","Sch XI(a)(ii)","Sch XI(a)(iii)","Sch XI(a)(iv)","Sch XI(a)(v)","Sch XI(a)(vi)","Sch XI(a)(vii)","Sch XI(a)(viii)","Schedule XI(b)","Sch XI(b)(i)","Sch XI(b)(ii)","Sch XI(b)(iii)","Sch XI(b)(iv)","Sch XI(b)(v)","Sch XI(b)(vi)","Sch XI(b)(vii)","Sch XI(b)(viii)","Schedule XII(a)","Schedule XII(b)","Schedule XVI","Schedule XVII","Schedule XVIII","Schedule XVIII (EBS)","Schedule XIX","Schedule XIXA","Schedule XX","Schedule XXA","Schedule XXI","Schedule XXIA","Schedule XXIII","Corp Gov","Risk Man","Identification","Measurement","Response","Monitoring & Reporting","Op Risk","Op Risk (Revised)","Summary","Fixed Income Investments","Fixed Income Investments (Rev.)","Equity Investments","Equity Investments (Revised)","Interest Rate-Liquidity Risk","Interest Rate-Liquidity (Rev.)","Currency Risk","Currency Risk (Revised)","Concentration Risk","Concentration Risk (Revised)","Geographic Diversification","Geographic Div. (Revised)","Premium Risk","Premium Risk (Revised)","Reserve Risk","Reserve Risk (Revised)","Credit Risk","Credit Risk (Revised)","Catastrophe Risk","Catastrophe Risk (Revised)","Company Specific Parameters","CSP (Revised)","Correlation Matrix","Crosscheck - SFS","Crosscheck-Model","Crosscheck - Op Risk","prt_res","HiddenFormulas"],"not_rendered":{"charts":3,"images":3,"macros":1,"external_links":0,"defined_names":277,"comments":50,"pivot_tables":0},"unopened":[],"bounds":{"document_bytes":16777216,"sheet_cells":100000,"rows_first":2000,"rows_last":500,"rows_between":2000,"halvings":0,"cell_chars":16384,"cell_head_chars":4096},"cells_cut":0,"cells_raw":0,"read":"whole","date_system":"1900"}

{"sheet":"CONFIGURATION","index":0,"n_rows":22,"n_cols":4,"rows_kept":22,"cut":false,"hidden":true,"merged":[]}
["ENTITY_ID",{"$f":"'Company Information'!$F$9","v":0}]
["ENTITY_NAME",{"$f":"'Company Information'!C7","v":"Enter Company Name"}]
["FILING_TYPE",{"$f":"\"BSCR\" & B11","v":"BSCR3B"}]
["FILING_YEAR",{"$f":"YEAR('Company Information'!C3)","v":2019}]
["CONTACT_PERSON_NAME",{"$f":"'Company Information'!C15&\" \"&'Company Information'!F15","v":" "}]
["CONTACT_PERSON_EMAIL",{"$f":"'Company Information'!C29","v":0}]
["CONTACT_PERSON_PHONE",{"$f":"IF('Company Information'!E27=\"\",'Company Information'!C27,'Company Information'!C27&\" Extension:\"&'Company Information'!E27)","v":0}]
["OPTION"]
["COMMENT",{"$f":"IF(Submission!B14=\"\",\"\",Submission!B14)","v":""}]
["CURRENCY_CODE",{"$f":"VLOOKUP('Form 1EBS'!C4,'Currency Table'!A:B,2,FALSE)","v":"USD"}]
["CLASS",{"$f":"IF('Company Information'!F11=\"Class 3A\",\"3A\",IF('Company Information'!F11=\"Class 3B\",\"3B\",\"4\"))","v":"3B"}]
["DECIMALS",{"$f":"IF(C12=\"Units\",1,IF(C12=\"Thousand Units\",1000,\"\"))","v":1000},"Thousand Units",{"$f":"IF(CONFIGURATION!$B$12=\"\",\"\",IF(CONFIGURATION!$B$12>1,\" ('\"&MID(CONFIGURATION!$B$12,2,LEN(CONFIGURATION!$B$12))&\"s)\",\"\"))","v":" ('000s)"}]
["FILINGWEBSERVICE","https://xbrl.bma.bm:450/ExternalWebPH3-1/filing.ashx",null,"https://xbrl.bma.bm:450/ExternalWebPH3-1/filing.ashx"]
["VALIDATIONWEBSERVICE","https://xbrl.bma.bm:450/ExternalWebPH3-1/validator.ashx",null,"https://xbrl.bma.bm:450/ExternalWebPH3-1/validator.ashx"]
["FILINGCOUNTERWEBSERVICE","https://xbrl.bma.bm:450/ExternalWebPH3-1/FilingCounter.ashx",null,"https://xbrl.bma.bm:450/ExternalWebPH3-1/FilingCounter.ashx"]
["DUMMYWEBSERVICE","https://xbrl.bma.bm:450/ExternalWebPH3-1/dummy.ashx",null,"https://xbrl.bma.bm:450/ExternalWebPH3-1/dummy.ashx"]
["XBRLCONVERSIONWEBSERVICE","https://xbrl.bma.bm:450/ExternalWebPH3-1/XBRLConv.ashx",null,"https://xbrl.bma.bm:450/ExternalWebPH3-1/XBRLConv.ashx"]
["PREPOPULATEWEBSERVICE","https://xbrl.bma.bm:450/ExternalWebPH3-1/GetEntityDataByFilingYear.ashx"]
["PREYEARSTARTDATE",{"$f":"'Form 1EBS'!M5","v":"01/01/2018"}]
["PREYEARENDDATE",{"$f":"'Form 1EBS'!M6","v":"12/31/2018"}]
["SAVEDDATAPOPULATEWEBSERVICE"]
["FORMVERSION","2019 Year-end Model"]

{"sheet":"Currency Table","index":1,"n_rows":170,"n_cols":4,"rows_kept":170,"cut":false,"hidden":true,"merged":[]}
["United States Dollars","USD",null,"Units"]
["Euro","EUR",null,"Thousand Units"]
["Afghanistan Afghanis","AFN"]
["Albania Leke","ALL"]
["Armenia Drams","AMD"]
["Netherlands Antilles Guilders","ANG"]
["Angola Kwanza","AOA"]
["Argentina Pesos","ARS"]
["Australia Dollars","AUD"]
["Aruba Guilders","AWG"]
["Azerbaijan New Manats","AZN"]
["Bosnia and Herzegovina Convertible Marka","BAM"]
["Barbados Dollars","BBD"]
["Bangladesh Taka","BDT"]
["Bulgaria Leva","BGN"]
["Bahrain Dinars","BHD"]
["Burundi Francs","BIF"]
["Bermuda Dollars","BMD"]
["Brunei Dollars","BND"]
["Bolivia Bolivianos","BOB"]
["Brazil Reais","BRL"]
["Bahamas Dollars","BSD"]
["Bhutan Ngultrum","BTN"]
["Botswana Pulas","BWP"]
["Belarus Rubles","BYR"]
["Belize Dollars","BZD"]
["Canada Dollars","CAD"]
["Congo/Kinshasa Francs","CDF"]
["Switzerland Francs","CHF"]
["Chile Pesos","CLP"]
["China Yuan Renminbi","CNY"]
["Colombia Pesos","COP"]
["Costa Rica Colones","CRC"]
["Cuba Convertible Pesos","CUC"]
["Cuba Pesos","CUP"]
["Cape Verde Escudos","CVE"]
["Czech Republic Koruny","CZK"]
["Djibouti Francs","DJF"]
["Denmark Kroner","DKK"]
["Dominican Republic Pesos","DOP"]
["Algeria Dinars","DZD"]
["Estonia Krooni","EEK"]
["Egypt Pounds","EGP"]
["Eritrea Nakfa","ERN"]
["Ethiopia Birr","ETB"]
["Fiji Dollars","FJD"]
["Falkland Islands Pounds","FKP"]
["United Kingdom Pounds","GBP"]
["Georgia Lari","GEL"]
["Guernsey Pounds","GGP"]
["Ghana Cedis","GHS"]
["Gibraltar Pounds","GIP"]
["Gambia Dalasi","GMD"]
["Guinea Francs","GNF"]
["Guatemala Quetzales","GTQ"]
["Guyana Dollars","GYD"]
["Hong Kong Dollars","HKD"]
["Honduras Lempiras","HNL"]
["Croatia Kuna","HRK"]
["Haiti Gourdes","HTG"]
["Hungary Forint","HUF"]
["Indonesia Rupiahs","IDR"]
["Israel New Shekels","ILS"]
["Isle of Man Pounds","IMP"]
["India Rupees","INR"]
["Iraq Dinars","IQD"]
["Iran Rials","IRR"]
["Iceland Kronur","ISK"]
["Jersey Pounds","JEP"]
["Jamaica Dollars","JMD"]
["Jordan Dinars","JOD"]
["Japan Yen","JPY"]
["Kenya Shillings","KES"]
["Kyrgyzstan Soms","KGS"]
["Cambodia Riels","KHR"]
["Comoros Francs","KMF"]
["North Korea Won","KPW"]
["South Korea Won","KRW"]
["Kuwait Dinars","KWD"]
["Cayman Islands Dollars","KYD"]
["Kazakhstan Tenge","KZT"]
["Laos Kips","LAK"]
["Lebanon Pounds","LBP"]
["Sri Lanka Rupees","LKR"]
["Liberia Dollars","LRD"]
["Lesotho Maloti","LSL"]
["Lithuania Litai","LTL"]
["Latvia Lati","LVL"]
["Libya Dinars","LYD"]
["Morocco Dirhams","MAD"]
["Moldova Lei","MDL"]
["Madagascar Ariary","MGA"]
["Macedonia Denars","MKD"]
["Myanmar Kyats","MMK"]
["Mongolia Tugriks","MNT"]
["Macau Patacas","MOP"]
["Mauritania Ouguiyas","MRO"]
["Mauritius Rupees","MUR"]
["Maldives Rufiyaa","MVR"]
["Malawi Kwachas","MWK"]
["Mexico Pesos","MXN"]
["Malaysia Ringgits","MYR"]
["Mozambique Meticais","MZN"]
["Namibia Dollars","NAD"]
["Nigeria Nairas","NGN"]
["Nicaragua Cordobas","NIO"]
["Norway Kroner","NOK"]
["Nepal Rupees","NPR"]
["New Zealand Dollars","NZD"]
["Oman Rials","OMR"]
["Panama Balboas","PAB"]
["Peru Nuevos Soles","PEN"]
["Papua New Guinea Kina","PGK"]
["Philippines Pesos","PHP"]
["Pakistan Rupees","PKR"]
["Poland Zlotych","PLN"]
["Paraguay Guarani","PYG"]
["Qatar Riyals","QAR"]
["Romania New Lei","RON"]
["Serbia Dinars","RSD"]
["Russia Rubles","RUB"]
["Rwanda Francs","RWF"]
["Saudi Arabia Riyals","SAR"]
["Solomon Islands Dollars","SBD"]
["Seychelles Rupees","SCR"]
["Sudan Pounds","SDG"]
["Sweden Kronor","SEK"]
["Singapore Dollars","SGD"]
["Saint Helena Pounds","SHP"]
["Slovakia Koruny","SKK"]
["Sierra Leone Leones","SLL"]
["Somalia Shillings","SOS"]
["Seborga Luigini","SPL"]
["Suriname Dollars","SRD"]
["São Tome and Principe Dobras","STD"]
["El Salvador Colones","SVC"]
["Syria Pounds","SYP"]
["Swaziland Emalangeni","SZL"]
["Thailand Baht","THB"]
["Tajikistan Somoni","TJS"]
["Turkmenistan Manats","TMM"]
["Tunisia Dinars","TND"]
["Tonga Pa'anga","TOP"]
["Turkey New Lira","TRY"]
["Trinidad and Tobago Dollars","TTD"]
["Tuvalu Dollars","TVD"]
["Taiwan New Dollars","TWD"]
["Tanzania Shillings","TZS"]
["Ukraine Hryvnia","UAH"]
["Uganda Shillings","UGX"]
["Uruguay Pesos","UYU"]
["Uzbekistan Sums","UZS"]
["Venezuela Bolivares","VEB"]
["Venezuela Bolivares Fuertes","VEF"]
["Vietnam Dong","VND"]
["Vanuatu Vatu","VUV"]
["Samoa Tala","WST"]
["Communauté Financière Africaine Francs BEAC","XAF"]
["Silver Ounces","XAG"]
["Gold Ounces","XAU"]
["East Caribbean Dollars","XCD"]
["International Monetary Fund Special Drawing Rights","XDR"]
["Communauté Financière Africaine Francs BCEAO","XOF"]
["Palladium Ounces","XPD"]
["Comptoirs Français du Pacifique Francs","XPF"]
["Platinum Ounces","XPT"]
["Yemen Rials","YER"]
["South Africa Rand","ZAR"]
["Zambia Kwacha","ZMK"]
["Zimbabwe Dollars","ZWD"]

{"sheet":"Submission","index":2,"n_rows":34,"n_cols":6,"rows_kept":34,"cut":false,"hidden":false,"merged":[[1,1,1,2],[35,1,35,2],[31,1,31,2],[4,1,4,2],[2,1,2,2],[13,1,13,2]]}
[]
[null,{"$f":"IF('Company Information'!F11=\"\",\"BSCR Model for General Business\",IF('Company Information'!F11=\"Class 3A\",\"BSCR Model for Class 3A\",IF('Company Information'!F11=\"Class 3B\",\"BSCR Model for Class 3B\",IF('Company Information'!F11=\"Class 4\",\"BSCR Model for Class 4\",\"Error\"))))","v":"BSCR Model for Class 3B"}]
[null,"IMPORTANT: Completion of this submission requires an internet connection. \n\nQuestions and comments can be directed to: riskanalytics@bma.bm\n",null,null,"brrt_FormVersion"]
[]
[null,"Submission Process:"]
[null,{"$f":"IF(CONFIGURATION!$C$12=\"Units\",\"Units\",\"Thousands\")","v":"Thousands"},"Select Unit: Prior to inputting BSCR form, select units which the monetary values are reported in."]
[null,null,"Get last saved data: Prefill form with last saved data from unfinished submission."]
[null,null,"Prepopulate previous data: Prefill form with previously submitted data."]
[null,null,"Input BSCR data"]
[null," ","Validate data: Prior to submitting to BMA validation of the data is required. To complete this step click the \"VALIDATE RETURN\" button. Users must acknowledge all failed validations and provide comments in the 'Comments' box below. Once the validation is complete click the location link to go to the error location."]
[null,null,"Save Data: Data can be saved prior to submission. Click the \"SAVE\" button to save the unfinished submisison. "]
[null,null,"Submit Data: Once data has been completed, please submit for review. To complete this step click the \"SUBMIT\" button. If data is submitted more than twice, the latest data will be accepted. You will be required to select a reason for re-submissions. The time to submit will vary depending on the speed of the internet connection. A white status bar will appear when the data is transmitting. Please wait for the submission acknowledgement and record your submission number for later reference.\n\nIf you receive Error #403 or #12029 during this step please create a rule on your firewall telling the document to use port 450. This may require IT assistance. We encourage you to test the submit functionality in advance, particularly if this is your first time submitting electronically. You may contact riskanalytics@bma.bm to coordinate testing."]
[null,"Comments:"]
[null,null,null,null,"brrt_FilingComments",{"$f":"XBRLMap(B14,E14,'Company Information'!L1,'Company Information'!L2,CONFIGURATION!$B$10,\"BMA\",CONFIGURATION!$B$1,\"bscr\")","v":"Mapped"}]
[null,"Validation results:"]
[null,"MSM requirement met",{"$f":"Summary!G33","v":"NO"}]
[null,"ECR requirment met",{"$f":"Summary!N125","v":"n/a"}]
[null,"MSM Eligible Capital requirement met",{"$f":"Summary!E137","v":"NO"}]
[null,"ECR Eligible Capital requirement met",{"$f":"Summary!G137","v":"NO"}]
[null,"Liquidity test met",{"$f":"Summary!O33","v":"YES"}]
[null,"Capital Reduction requirement met",{"$f":"Summary!O46","v":"NO"}]
[null,"C&S Reduction requirement met",{"$f":"Summary!G46","v":"YES"}]
[null,"CISSA document attached",{"$f":"IF(Attachments!F35=\"<Attach file>\",\"Outstanding\",\"File Attached\")","v":"Outstanding"}]
[null,"FCR document attached",{"$f":"IF(Attachments!F15=\"<Attach file>\",\"Outstanding\",\"File Attached\")","v":"Outstanding"}]
[null,"DOC document attached",{"$f":"IF(Attachments!F25=\"<Attach file>\",\"Outstanding\",\"File Attached\")","v":"Outstanding"}]
[null,"Blank Schedules",{"$f":"Content!J3","v":57}]
[null,"Acknowledged",{"$f":"Content!K3","v":0}]
[null,"Failed Validation Checks",{"$f":"Content!L3","v":0}]
[null,"Acknowledged",{"$f":"Content!M3","v":0}]
[]
[null,"Comments from BMA:"]
[null,null,null,null,"brrt_FilingCommentsBMA",{"$f":"XBRLMap(B32,E32,'Company Information'!L1,'Company Information'!L2,CONFIGURATION!$B$10,\"BMA\",CONFIGURATION!$B$1,\"bscr\")","v":"Mapped"}]
[]
[null,"Validation results:"]

{"sheet":"Company Information","index":3,"n_rows":40,"n_cols":19,"rows_kept":40,"cut":false,"hidden":false,"merged":[[6,2,6,5],[18,2,18,5],[0,0,0,1],[14,5,14,6]]}
["COMPANY INFORMATION PAGE",null,null,null,null,null,{"$f":"HYPERLINK(\"#'Index'!A1\",\"Return to Index\")","v":"Return to Index"},null,null,null,null,{"$f":"IF(C3=\"\",\"\",TEXT(DATE(YEAR(C3+1)-1,MONTH(C3+1),DAY(C3+1)),\"mm/dd/yyyy\"))","v":"01/01/2019"}]
[null,null,null,null,null,null,null,null,null,null,"",{"$f":"IF(C3=\"\",\"\",TEXT(C3,\"mm/dd/yyyy\"))","v":"12/31/2019"}]
[null,"For the Year Ending ","2019-12-31",{"$f":"IF(C3=\"\",\"\",TEXT(C3,\"yyyy-mm-dd\"))","v":"2019-12-31"},null,"Class 4/3B Model",null,null,"Class 3A Model",null,"brrt_ReportForTheYearEnding",{"$f":"IF(D3=\"\",\"\",XBRLMap(D3,$K3,$L$1,$L$2,CONFIGURATION!$B$10,\"BMA\",CONFIGURATION!$B$1,\"bscr\"))","v":"Mapped"},null,null,null,null,null,null,"bma_ReportForTheYearEnding"]
[null,null,null,null,null,null,null,null,null,null,"",null,null,null,null,null,null,null,""]
[null,"COMPANY INFORMATION",null,null,null,null,null,null,null,null,"",null,null,"Class 4/3B Model",null,null,null,null,"bma_CompanyInformationAbstract"]
[null,null,null,null,null,null,null,null,null,null,"",null,null,null,null,null,null,null,""]
[null,"Company Name","Enter Company Name",null,null,null,null,null,null,null,"brrt_OrganizationName",{"$f":"XBRLMap(C7,$K7,$L$1,$L$2,CONFIGURATION!$B$10,\"BMA\",CONFIGURATION!$B$1,\"bscr\")","v":"Mapped"},null,null,null,null,null,null,"bma_CompanyName"]
[null,null,null,null,null,null,null,null,null,null,"",null,null,null,null,null,null,null,""]
[null,"Date Incorporated/Organized",null,null,"Registration No.",null,null,null,null,null,"brrt_DateIncorporatedOrOrganized",{"$f":"IF(C9=\"\",\"\",XBRLMap(C9,$K9,$L$1,$L$2,CONFIGURATION!$B$10,\"BMA\",CONFIGURATION!$B$1,\"bscr\"))","v":""},null,null,null,null,null,null,"bma_DateIncorporatedOrganized"]
[null,null,null,null,null,null,null,null,null,null,"",null,null,null,null,null,null,null,""]
[null,"Date Commenced Business",null,null,"Class of Business","Class 3B",null,null,null,null,"brrt_DateCommencedBusiness",{"$f":"IF(C11=\"\",\"\",XBRLMap(C11,$K11,$L$1,$L$2,CONFIGURATION!$B$10,\"BMA\",CONFIGURATION!$B$1,\"bscr\"))","v":""},null,null,null,null,null,null,"bma_DateCommencedBusiness"]
[null,null,null,null,null,null,null,null,null,null,"brrt_RegistrationNo",{"$f":"XBRLMap(F9,$K12,$L$1,$L$2,CONFIGURATION!$B$10,\"BMA\",CONFIGURATION!$B$1,\"bscr\")","v":"Mapped"},null,null,null,null,null,null,""]
[null,"CONTACT PERSON FOR RISK BASED CAPITAL",null,null,null,null,null,null,null,null,"",null,null,null,null,null,null,null,"bma_ContactPersonForRiskBasedCapitalAbstract"]
[null,null,null,null,null,null,null,null,null,null,"",null,null,null,null,null,null,null,""]
[null,"First Name",null,null,"Last Name",null,null,null,null,null,"brrt_ContactPersonFirstName",{"$f":"XBRLMap(C15,$K15,$L$1,$L$2,CONFIGURATION!$B$10,\"BMA\",CONFIGURATION!$B$1,\"bscr\")","v":"Mapped"},null,null,null,null,null,null,"bma_ContactPersonForRiskBasedCapitalFirstName"]
[null,null,null,null,null,null,null,null,null,null,"brrt_ContactPersonLastName",{"$f":"XBRLMap(F15,$K16,$L$1,$L$2,CONFIGURATION!$B$10,\"BMA\",CONFIGURATION!$B$1,\"bscr\")","v":"Mapped"},null,null,null,null,null,null,"bma_ContactPersonForRiskBasedCapitalLastName"]
[null,"CONTACT PERSON INFORMATION",null,null,null,null,null,null,null,null,"",null,null,null,null,null,null,null,"bma_ContactPersonInformationAbstract"]
[null,null,null,null,null,null,null,null,null,null,"",null,null,null,null,null,null,null,""]
[null,"Street and Number of P.O. Box",null,null,null,null,null,null,null,null,"brrt_ContactPersonInformationStreetAndNumberOfPOBox",{"$f":"XBRLMap(C19,$K19,$L$1,$L$2,CONFIGURATION!$B$10,\"BMA\",CONFIGURATION!$B$1,\"bscr\")","v":"Mapped"},null,null,null,null,null,null,"bma_StreetAndNumberOfPOBox"]
[null,null,null,null,null,null,null,null,null,null,"",null,null,null,null,null,null,null,""]
[null,"City",null,null,null,null,null,null,null,null,"brrt_ContactPersonInformationCity",{"$f":"XBRLMap(C21,$K21,$L$1,$L$2,CONFIGURATION!$B$10,\"BMA\",CONFIGURATION!$B$1,\"bscr\")","v":"Mapped"},null,null,null,null,null,null,"bma_City"]
[null,null,null,null,null,null,null,null,null,null,"",null,null,null,null,null,null,null,""]
[null,"Country",null,null,null,null,null,null,null,null,"brrt_ContactPersonInformationCountry",{"$f":"XBRLMap(C23,$K23,$L$1,$L$2,CONFIGURATION!$B$10,\"BMA\",CONFIGURATION!$B$1,\"bscr\")","v":"Mapped"},null,null,null,null,null,null,"bma_Country"]
[null,null,null,null,null,null,null,null,null,null,"",null,null,null,null,null,null,null,""]
[null,"Postal Code",null,null,null,null,null,null,null,null,"brrt_ContactPersonInformationPostalCode",{"$f":"XBRLMap(C25,$K25,$L$1,$L$2,CONFIGURATION!$B$10,\"BMA\",CONFIGURATION!$B$1,\"bscr\")","v":"Mapped"},null,null,null,null,null,null,"bma_PostalCode"]
[null,null,null,null,null,null,null,null,null,null,"",null,null,null,null,null,null,null,""]
[null,"Phone Number",null,"Extension",null,null,null,null,null,null,"brrt_ContactPersonInformationPhoneNumber",{"$f":"XBRLMap(C27,$K27,$L$1,$L$2,CONFIGURATION!$B$10,\"BMA\",CONFIGURATION!$B$1,\"bscr\")","v":"Mapped"},null,null,null,null,null,null,"bma_PhoneNumber"]
[null,null,null,null,null,null,null,null,null,null,"brrt_ContactPersonInformationExtension",{"$f":"XBRLMap(E27,$K28,$L$1,$L$2,CONFIGURATION!$B$10,\"BMA\",CONFIGURATION!$B$1,\"bscr\")","v":"Mapped"},null,null,null,null,null,null,"bma_PhoneNumberExtension"]
[null,"Email",null,null,null,null,null,null,null,null,"brrt_ContactPersonInformationEmail",{"$f":"XBRLMap(C29,$K29,$L$1,$L$2,CONFIGURATION!$B$10,\"BMA\",CONFIGURATION!$B$1,\"bscr\")","v":"Mapped"},null,null,null,null,null,null,"bma_Email"]
[null,null,null,null,null,null,null,null,null,null,"",null,null,null,null,null,null,null,""]
[null,"Date Prepared",null,null,null,null,null,null,null,null,"brrt_ContactPersonInformationDatePrepared",{"$f":"IF(C31=\"\",\"\",XBRLMap(C31,$K31,$L$1,$L$2,CONFIGURATION!$B$10,\"BMA\",CONFIGURATION!$B$1,\"bscr\"))","v":""},null,null,null,null,null,null,"bma_DatePrepared"]
[null,null,null,null,null,null,null,null,null,null,""]
[]
[]
[]
[]
[null,null,null,null,null,null,null,null,null,null,""]
[null,null,null,null,"Class 4"]
[null,null,null,null,"Class 3B"]
[null,null,null,null,"Class 3A"]

{"sheet":"Content","index":4,"n_rows":254,"n_cols":20,"rows_kept":254,"cut":false,"hidden":false,"merged":[[131,1,131,2],[136,1,136,2],[142,1,142,2],[93,3,93,4],[94,3,94,4],[95,3,95,4],[100,3,100,4],[103,3,103,4],[43,1,43,2],[44,1,44,2],[54,1,54,2],[57,1,57,2],[63,1,63,2],[77,2,78,2],[90,3,90,4],[91,3,91,4],[92,3,92,4],[45,1,45,2],[48,1,48,2],[51,1,51,2],[52,1,52,2],[53,1,53,2],[71,1,71,2],[72,1,72,3],[4,0,4,2],[27,2,28,2],[29,2,30,2],[39,2,40,2],[18,2,19,2],[22,2,23,2],[20,2,21,2],[34,2,35,2],[7,1,7,2],[8,1,8,2],[9,1,9,2],[10,1,10,2],[11,1,11,2],[12,1,12,2],[14,1,14,2],[33,1,33,2],[38,1,38,2],[17,1,17,2],[24,1,24,2],[25,1,25,2],[26,1,26,2],[121,1,121,2],[123,1,123,2],[125,1,125,2],[127,1,127,2],[129,1,129,2],[55,2,56,2],[66,2,67,2],[87,3,87,4],[113,1,113,3],[117,1,117,2],[119,1,119,2],[99,1,99,2],[96,3,96,4],[104,1,104,2],[89,3,89,4],[58,2,59,2],[60,2,61,2],[68,2,69,2],[62,1,62,3],[65,1,65,2],[70,1,70,3],[73,1,73,2],[86,1,86,2],[88,3,88,4],[162,1,162,2],[172,1,172,2],[174,1,174,2],[176,1,176,2],[179,1,179,2],[133,1,133,2],[139,1,139,2],[147,1,147,2],[156,1,156,2],[159,1,159,2],[207,1,207,2],[208,1,208,2],[200,1,200,2],[201,1,201,2],[202,1,202,2],[203,1,203,2],[204,1,204,2],[181,1,181,2],[189,1,189,2],[191,1,191,2],[194,1,194,2],[197,1,197,2],[0,5,0,6],[250,1,250,2],[240,1,240,2],[241,1,241,2],[242,1,242,2],[243,1,243,2],[246,1,246,2],[222,1,222,2],[230,1,230,2],[234,1,234,2],[238,1,238,2],[239,1,239,2],[227,1,227,2],[216,1,216,2],[217,1,217,2],[218,1,218,2],[219,1,219,2],[210,1,210,2],[212,1,212,2],[213,1,213,2],[214,1,214,2],[215,1,215,2],[205,1,205,2],[206,1,206,2]]}
["CONTENTS OF THE BSCR MODEL",null,null,null,null,{"$f":"HYPERLINK(\"#'Index'!A1\",\"Return to Index\")","v":"Return to Index"},null,null,null,"Blank","Acknowledge",false,"Acknowledge",null,null,null,null,null,null,{"$f":"IF(C3=\"\",\"\",TEXT(DATE(YEAR(C3+1)-1,MONTH(C3+1),DAY(C3+1)),\"mm/dd/yyyy\"))","v":"01/01/2019"}]
[{"$f":"'Company Information'!C7","v":"Enter Company Name"},null,null,null,null,null,null,null,null,null,null,""]
["As At:",null,{"$f":"'Company Information'!C3","v":"2019-12-31"},null,null,null,null,null,null,{"$f":"COUNTIF(J19:J253,J1)","v":57},{"$f":"COUNTIF(K19:K253,\"Yes\")","v":0},{"$f":"COUNTIF(L19:L253,\"False.\")","v":0},{"$f":"COUNTIF(M19:M253,\"Yes\")","v":0}]
[{"$f":"HYPERLINK(\"#'Submission'!B14\",\"If Confirm Message Check Box is Selected, include comments in Submission Tab Cell B14\")","v":"If Confirm Message Check Box is Selected, include comments in Submission Tab Cell B14"}]
["Text in Column C Have Been Hyperlinked for Ease"]
[null,null,"Section","True / False","Difference $","Difference %","Message"]
[null,"Company Information / Reference Schedules"]
[1,{"$f":"HYPERLINK(\"#'Submission'!A1\",\"Submission Tab\")","v":"Submission Tab"}]
[{"$f":"A8+1","v":2},{"$f":"HYPERLINK(\"#'Index'!A1\",\"Index\")","v":"Index"}]
[3,{"$f":"HYPERLINK(\"#'Attachments'!A1\",\"Attachments\")","v":"Attachments"}]
[4,{"$f":"HYPERLINK(\"#'Company Information'!A1\",\"Company Information\")","v":"Company Information"}]
[5,{"$f":"HYPERLINK(\"#'Declaration'!A1\",\"Declaration\")","v":"Declaration"}]
[6,{"$f":"HYPERLINK(\"#'Information Sheet'!A1\",\"Information Sheet\")","v":"Information Sheet"}]
[7,{"$f":"HYPERLINK(\"#'SAR & Sanc. (All)'!A1\",\"SARS and Sanctions for All Insurers\")","v":"SARS and Sanctions for All Insurers"}]
[8,{"$f":"HYPERLINK(\"#'Zones'!A1\",\"Zones\")","v":"Zones"}]
[]
[null,"Statutory Forms & Economic Balance Sheet"]
[{"$f":"A15+1","v":9},{"$f":"HYPERLINK(\"#'Form 1SFS'!A1\",\"Form 1SFS - Statutory Balance Sheet\")","v":"Form 1SFS - Statutory Balance Sheet"}]
[null,"i)",{"$f":"HYPERLINK(\"#'Form 1SFS'!A1\",\"Unconsolidated Assets equals Total General Business Insurance Reserves & Other Liabilities and Statutory Capital & Surplus\")","v":"Unconsolidated Assets equals Total General Business Insurance Reserves & Other Liabilities and Statutory Capital & Surplus"},{"$f":"IF('Company Information'!$B$2=\"Unconsolidated BSCR Model\",\"N/A\",IF(+'Form 1SFS'!E100=0,\"Form 1SFS Unconsolidated is Blank\",'Form 1SFS'!E202))","v":"Form 1SFS Unconsolidated is Blank"},{"$f":"+'Form 1SFS'!E204","v":0},{"$f":"IF('Form 1SFS'!E100=0,0,('Form 1SFS'!E204)/'Form 1SFS'!E100)","v":0},null,null,null,{"$f":"IF(D19=\"Form 1SFS Unconsolidated is Blank\",\"Blank\",\"\")","v":"Blank"},{"$f":"IF(J19=\"Blank\",IF(I19=TRUE,\"Yes\",\"\"),\"\")","v":""},{"$f":"IF(D19=\"False\",\"False.\",\"\")","v":""},{"$f":"IF(L19=\"\",\"\",IF(I19=TRUE,\"Yes\",\"\"))","v":""}]
[]
[null,"ii)",{"$f":"HYPERLINK(\"#'Form 1SFS'!A1\",\"Consolidated Assets equals Total General Business Insurance Reserves & Other Liabilities and Statutory Capital & Surplus\")","v":"Consolidated Assets equals Total General Business Insurance Reserves & Other Liabilities and Statutory Capital & Surplus"},{"$f":"IF('Company Information'!$B$2=\"Unconsolidated BSCR Model\",\"N/A\",IF(+'Form 1SFS'!M100=0,\"Form 1SFS Consolidated is Blank\",'Form 1SFS'!M202))","v":"Form 1SFS Consolidated is Blank"},{"$f":"+'Form 1SFS'!I204","v":0},{"$f":"IF('Form 1SFS'!I100=0,0,('Form 1SFS'!I204)/'Form 1SFS'!I100)","v":0},null,null,false,{"$f":"IF(D21=\"Form 1SFS Consolidated is Blank\",\"Blank\",\"\")","v":"Blank"},{"$f":"IF(J21=\"Blank\",IF(I21=TRUE,\"Yes\",\"\"),\"\")","v":""},{"$f":"IF(D21=\"False\",\"False.\",\"\")","v":""},{"$f":"IF(L21=\"\",\"\",IF(I21=TRUE,\"Yes\",\"\"))","v":""}]
[]
[null,"iii)",{"$f":"HYPERLINK(\"#'Form 1SFS'!B237:O265\",\"Reconcilation of Gross Loss and Loss Expense Provision at End of Year equals Statutory Balance Sheet Total\")","v":"Reconcilation of Gross Loss and Loss Expense Provision at End of Year equals Statutory Balance Sheet Total"},{"$f":"IF('Company Information'!$B$2=\"Unconsolidated BSCR Model\",\"N/A\",IF(+'Form 1SFS'!M279=0,\"Reconciliation is Blank\",'Form 1SFS'!M281))","v":"Reconciliation is Blank"},{"$f":"+'Form 1SFS'!M283","v":0},{"$f":"IF(+'Form 1SFS'!E117=0,0,('Form 1SFS'!M283)/+'Form 1SFS'!E117)","v":0},null,null,false,{"$f":"IF(D23=\"Reconciliation is Blank\",\"Blank\",\"\")","v":"Blank"},{"$f":"IF(J23=\"Blank\",IF(I23=TRUE,\"Yes\",\"\"),\"\")","v":""},{"$f":"IF(D23=\"False\",\"False.\",\"\")","v":""},{"$f":"IF(L23=\"\",\"\",IF(I23=TRUE,\"Yes\",\"\"))","v":""}]
[]
[{"$f":"A18+1","v":10},{"$f":"HYPERLINK(\"#'Form 2SFS'!A1\",\"Form 2SFS - Statutory Statement of Income\")","v":"Form 2SFS - Statutory Statement of Income"}]
[{"$f":"A25+1","v":11},{"$f":"HYPERLINK(\"#'Form 8SFS'!A1\",\"Form 8SFS - Statutory Statement of Capital and Surplus\")","v":"Form 8SFS - Statutory Statement of Capital and Surplus"}]
[{"$f":"A26+1","v":12},{"$f":"HYPERLINK(\"#'Form 1EBS'!A1\",\"Form 1EBS - Economic Balance Sheet\")","v":"Form 1EBS - Economic Balance Sheet"}]
[null,"i)",{"$f":"HYPERLINK(\"#'Form 1EBS'!A1\",\"Assets equals Total General Business Insurance Reserves & Other Liabilities and Statutory Capital & Surplus\")","v":"Assets equals Total General Business Insurance Reserves & Other Liabilities and Statutory Capital & Surplus"},{"$f":"IF(+'Form 1EBS'!F90=0,\"Form 1EBS is Blank\",'Form 1EBS'!F171)","v":"Form 1EBS is Blank"},{"$f":"'Form 1EBS'!F173","v":0},{"$f":"IF(+'Form 1EBS'!F90=0,0,('Form 1EBS'!F173/+'Form 1EBS'!F90))","v":0},null,null,false,{"$f":"IF(D28=\"Form 1EBS is Blank\",\"Blank\",\"\")","v":"Blank"},{"$f":"IF(J28=\"Blank\",IF(I28=TRUE,\"Yes\",\"\"),\"\")","v":""},{"$f":"IF(D28=\"False\",\"False.\",\"\")","v":""},{"$f":"IF(L28=\"\",\"\",IF(I28=TRUE,\"Yes\",\"\"))","v":""}]
[]
[null,"ii)",{"$f":"HYPERLINK(\"#'Form 1EBS'!B222:H237\",\"Reconcilation of Gross Loss and Loss Expense Provision at End of Year equals Statutory Balance Sheet Total\")","v":"Reconcilation of Gross Loss and Loss Expense Provision at End of Year equals Statutory Balance Sheet Total"},{"$f":"IF(+'Form 1EBS'!F232=0,\"Reconciliation is Blank\",'Form 1EBS'!F234)","v":"Reconciliation is Blank"},{"$f":"'Form 1EBS'!F236","v":0},{"$f":"IF(+'Form 1EBS'!F115=0,0,IF('Form 1EBS'!F232=0,0,('Form 1EBS'!F236)/+'Form 1EBS'!F115))","v":0},null,null,null,{"$f":"IF(OR(D30=\"False\",D30=\"Reconciliation is Blank\"),\"Blank\",\"\")","v":"Blank"},{"$f":"IF(J30=\"Blank\",IF(I30=TRUE,\"Yes\",\"\"),\"\")","v":""},{"$f":"IF(D30=\"False\",\"False.\",\"\")","v":""},{"$f":"IF(L30=\"\",\"\",IF(I30=TRUE,\"Yes\",\"\"))","v":""}]
[]
[]
[null,"BSCR Capital Schedules"]
[{"$f":"A27+1","v":13},{"$f":"HYPERLINK(\"#'Schedule II'!A1\",\"Schedule II - Schedule of Fixed Income & Equity Investments By BSCR Rating\")","v":"Schedule II - Schedule of Fixed Income & Equity Investments By BSCR Rating"}]
[null,"i)",{"$f":"HYPERLINK(\"#'Schedule II'!A1\",\"Quoted & Unquoted Bond Debentures as reported on Schedule II equals Form 1SFS\")","v":"Quoted & Unquoted Bond Debentures as reported on Schedule II equals Form 1SFS"},{"$f":"IF((('Form 1SFS'!E18+'Form 1SFS'!I18+'Form 1SFS'!E31+'Form 1SFS'!I31))=0,\"N/A\",IF('Schedule II'!T22=0,\"Schedule is Blank\",'Schedule II'!T24))","v":"N/A"},{"$f":"+'Schedule II'!T26","v":0},{"$f":"IF(('Form 1SFS'!E18+'Form 1SFS'!E31)=0,0,'Schedule II'!T26/('Form 1SFS'!E18+'Form 1SFS'!E31))","v":0},null,null,null,{"$f":"IF(D35=\"Schedule is Blank\",\"Blank\",\"\")","v":""},{"$f":"IF(J35=\"Blank\",IF(I35=TRUE,\"Yes\",\"\"),\"\")","v":""},{"$f":"IF(D35=\"False\",\"False.\",\"\")","v":""},{"$f":"IF(L35=\"\",\"\",IF(I35=TRUE,\"Yes\",\"\"))","v":""}]
[]
[null,"ii)",{"$f":"HYPERLINK(\"#'Schedule II'!A32\",\"Quoted & Unquoted Equities as reported on Schedule II equals Form 1SFS\")","v":"Quoted & Unquoted Equities as reported on Schedule II equals Form 1SFS"},{"$f":"IF((('Form 1SFS'!E23+'Form 1SFS'!I23+'Form 1SFS'!E36+'Form 1SFS'!I36))=0,\"N/A\",IF('Schedule II'!T44=0,\"Schedule is Blank\",'Schedule II'!T46))","v":"N/A"},{"$f":"+'Schedule II'!T48","v":0},{"$f":"IF(('Form 1SFS'!E23+'Form 1SFS'!E36)=0,0,('Schedule II'!T48)/('Form 1SFS'!E23+'Form 1SFS'!E36))","v":0},null,null,null,{"$f":"IF(D37=\"Schedule is Blank\",\"Blank\",\"\")","v":""},{"$f":"IF(J37=\"Blank\",IF(I37=TRUE,\"Yes\",\"\"),\"\")","v":""},{"$f":"IF(D37=\"False\",\"False.\",\"\")","v":""},{"$f":"IF(L37=\"\",\"\",IF(I37=TRUE,\"Yes\",\"\"))","v":""}]
[null,"iii)",{"$f":"HYPERLINK(\"#'Schedule II'!A55\",\"Mortgage Loans as reported on Schedule II equals Form 1SFS\")","v":"Mortgage Loans as reported on Schedule II equals Form 1SFS"},{"$f":"IF('Form 1SFS'!E53=0,\"N/A\",IF('Schedule II'!D62=0,\"Schedule is Blank\",'Schedule II'!D64))","v":"N/A"},{"$f":"'Schedule II'!D66","v":0},{"$f":"IF('Form 1SFS'!E53=0,0,('Schedule II'!D66)/'Form 1SFS'!E53)","v":0},null,null,null,{"$f":"IF(D38=\"Schedule is Blank\",\"Blank\",\"\")","v":""},"",{"$f":"IF(D38=\"False\",\"False.\",\"\")","v":""},""]
[{"$f":"A34+1","v":14},{"$f":"HYPERLINK(\"#'Schedule II (EBS)'!A1\",\"Schedule II (EBS)- Schedule of Fixed Income & Equity Investments By BSCR Rating\")","v":"Schedule II (EBS)- Schedule of Fixed Income & Equity Investments By BSCR Rating"}]
[null,"i)",{"$f":"HYPERLINK(\"#'Schedule II (EBS)'!A1\",\"Quoted & Unquoted Bond Debentures as reported on Schedule II (EBS) equals Form 1EBS\")","v":"Quoted & Unquoted Bond Debentures as reported on Schedule II (EBS) equals Form 1EBS"},{"$f":"IF(('Form 1EBS'!F13+'Form 1EBS'!F23)=0,\"N/A\",IF('Schedule II (EBS)'!T22=0,\"Schedule is Blank\",'Schedule II (EBS)'!T24))","v":"N/A"},{"$f":"+'Schedule II (EBS)'!T26","v":0},{"$f":"IF(('Form 1EBS'!F13+'Form 1EBS'!F23)=0,0,'Schedule II (EBS)'!T26/('Form 1EBS'!F13+'Form 1EBS'!F23))","v":0},null,null,null,{"$f":"IF(D40=\"Schedule is Blank\",\"Blank\",\"\")","v":""},{"$f":"IF(J40=\"Blank\",IF(I40=TRUE,\"Yes\",\"\"),\"\")","v":""},{"$f":"IF(D40=\"False\",\"False.\",\"\")","v":""},{"$f":"IF(L40=\"\",\"\",IF(I40=TRUE,\"Yes\",\"\"))","v":""}]
[]
[null,"ii)",{"$f":"HYPERLINK(\"#'Schedule II (EBS)'!A32\",\"Quoted & Unquoted Equities as reported on Schedule II (EBS) equals Form 1EBS\")","v":"Quoted & Unquoted Equities as reported on Schedule II (EBS) equals Form 1EBS"},{"$f":"IF(('Form 1EBS'!F18+'Form 1EBS'!F28)=0,\"N/A\",IF('Schedule II (EBS)'!T44=0,\"Schedule is Blank\",'Schedule II (EBS)'!T46))","v":"N/A"},{"$f":"+'Schedule II (EBS)'!T48","v":0},{"$f":"IF(('Form 1EBS'!F18+'Form 1EBS'!F28)=0,0,('Schedule II (EBS)'!T48)/('Form 1EBS'!F18+'Form 1EBS'!F28))","v":0},null,null,null,{"$f":"IF(D42=\"Schedule is Blank\",\"Blank\",\"\")","v":""},{"$f":"IF(J42=\"Blank\",IF(I42=TRUE,\"Yes\",\"\"),\"\")","v":""},{"$f":"IF(D42=\"False\",\"False.\",\"\")","v":""},{"$f":"IF(L42=\"\",\"\",IF(I42=TRUE,\"Yes\",\"\"))","v":""}]
[null,"iii)",{"$f":"HYPERLINK(\"#'Schedule II (EBS)'!A55\",\"Mortgage Loans as reported on Schedule II (EBS) equals Form 1EBS\")","v":"Mortgage Loans as reported on Schedule II (EBS) equals Form 1EBS"},{"$f":"IF('Form 1EBS'!F45=0,\"N/A\",IF('Schedule II (EBS)'!D62=0,\"Schedule is Blank\",'Schedule II (EBS)'!D64))","v":"N/A"},{"$f":"'Schedule II (EBS)'!D66","v":0},{"$f":"IF('Form 1EBS'!F45=0,0,('Schedule II (EBS)'!D66)/'Form 1EBS'!F45)","v":0},null,null,null,{"$f":"IF(D43=\"Schedule is Blank\",\"Blank\",\"\")","v":""},"",{"$f":"IF(D43=\"False\",\"False.\",\"\")","v":""},""]
[{"$f":"A39+1","v":15},{"$f":"HYPERLINK(\"#'Schedule IIA'!A1\",\"Schedule IIA - Schedule of Funds Held By Ceding Reinsurers in Segregated Accounts\")","v":"Schedule IIA - Schedule of Funds Held By Ceding Reinsurers in Segregated Accounts"}]
[{"$f":"A44+1","v":16},{"$f":"HYPERLINK(\"#'Schedule IIA (EBS)'!A1\",\"Schedule IIA (EBS) - Schedule of Funds Held By Ceding Reinsurers in Segregated Accounts\")","v":"Schedule IIA (EBS) - Schedule of Funds Held By Ceding Reinsurers in Segregated Accounts"}]
[{"$f":"A45+1","v":17},{"$f":"HYPERLINK(\"#'Schedule IIB (EBS)'!A1\",\"Schedule IIB (EBS)- Schedule of Fixed Income & Equity Investments By BSCR Rating\")","v":"Schedule IIB (EBS)- Schedule of Fixed Income & Equity Investments By BSCR Rating"}]
[null,"Interest rate-sensitive investments",null,{"$f":"IF('Investment Reconciliation'!G10=0,\"N/A\",IF('Investment Reconciliation'!G28=0,\"Schedule is Blank\",'Investment Reconciliation'!G30))","v":"N/A"},{"$f":"'Investment Reconciliation'!G32","v":0},{"$f":"IF('Investment Reconciliation'!G28=0,0,('Investment Reconciliation'!G32)/'Investment Reconciliation'!G28)","v":0},null,null,null,{"$f":"IF(D47=\"Schedule is Blank\",\"Blank\",\"\")","v":""},{"$f":"IF(J47=\"Blank\",IF(I47=TRUE,\"Yes\",\"\"),\"\")","v":""},{"$f":"IF(D47=\"False\",\"False.\",\"\")","v":""},{"$f":"IF(L47=\"\",\"\",IF(I47=TRUE,\"Yes\",\"\"))","v":""}]
[null,"Investments sensitive to equity prices",null,{"$f":"IF('Investment Reconciliation'!H10=0,\"N/A\",IF('Investment Reconciliation'!H28=0,\"Schedule is Blank\",'Investment Reconciliation'!H30))","v":"N/A"},{"$f":"'Investment Reconciliation'!H32","v":0},{"$f":"IF('Investment Reconciliation'!H28=0,0,('Investment Reconciliation'!H32)/'Investment Reconciliation'!H28)","v":0},null,null,null,{"$f":"IF(D48=\"Schedule is Blank\",\"Blank\",\"\")","v":""},{"$f":"IF(J48=\"Blank\",IF(I48=TRUE,\"Yes\",\"\"),\"\")","v":""},{"$f":"IF(D48=\"False\",\"False.\",\"\")","v":""},{"$f":"IF(L48=\"\",\"\",IF(I48=TRUE,\"Yes\",\"\"))","v":""}]
[{"$f":"A46+1","v":18},{"$f":"HYPERLINK(\"#'Schedule IIC (EBS)'!A1\",\"Schedule IIC (EBS) - Schedule of Funds Held By Ceding Reinsurers in Segregated Accounts\")","v":"Schedule IIC (EBS) - Schedule of Funds Held By Ceding Reinsurers in Segregated Accounts"}]
[null,"Interest rate-sensitive investments",null,{"$f":"IF('Investment Reconciliation'!I10=0,\"N/A\",IF('Investment Reconciliation'!I28=0,\"Schedule is Blank\",'Investment Reconciliation'!I30))","v":"N/A"},{"$f":"'Investment Reconciliation'!I32","v":0},{"$f":"IF('Investment Reconciliation'!I28=0,0,('Investment Reconciliation'!I32)/'Investment Reconciliation'!I28)","v":0},null,null,null,{"$f":"IF(D50=\"Schedule is Blank\",\"Blank\",\"\")","v":""},{"$f":"IF(J50=\"Blank\",IF(I50=TRUE,\"Yes\",\"\"),\"\")","v":""},{"$f":"IF(D50=\"False\",\"False.\",\"\")","v":""},{"$f":"IF(L50=\"\",\"\",IF(I50=TRUE,\"Yes\",\"\"))","v":""}]
[null,"Investments sensitive to equity prices",null,{"$f":"IF('Investment Reconciliation'!J10=0,\"N/A\",IF('Investment Reconciliation'!J28=0,\"Schedule is Blank\",'Investment Reconciliation'!J30))","v":"N/A"},{"$f":"'Investment Reconciliation'!J32","v":0},{"$f":"IF('Investment Reconciliation'!J28=0,0,('Investment Reconciliation'!J32)/'Investment Reconciliation'!J28)","v":0},null,null,null,"","","",""]
[{"$f":"A49+1","v":19},{"$f":"HYPERLINK(\"#'Schedule IID (EBS)'!A1\",\"Schedule IID (EBS) - Schedule of Segregated Accounts\")","v":"Schedule IID (EBS) - Schedule of Segregated Accounts"},null,{"$f":"IF(('Form 1EBS'!F75)=0,\"N/A\",IF('Schedule IID (EBS)'!D97=0,\"Schedule is Blank\",'Investment Reconciliation'!K30))","v":"N/A"},{"$f":"'Investment Reconciliation'!K32","v":0},{"$f":"IF('Investment Reconciliation'!K28=0,0,('Investment Reconciliation'!K32)/'Investment Reconciliation'!K28)","v":0},null,null,null,"","","",""]
[{"$f":"A52+1","v":20},{"$f":"HYPERLINK(\"#'Schedule IIE (EBS)'!A1\",\"Schedule IIE (EBS) - Schedule of Deposit Assets & Liabilities\")","v":"Schedule IIE (EBS) - Schedule of Deposit Assets & Liabilities"},null,{"$f":"IF('Form 1EBS'!F76=0,\"N/A\",IF('Schedule IIE (EBS)'!D97=0,\"Schedule is Blank\",'Investment Reconciliation'!M30))","v":"N/A"},{"$f":"'Investment Reconciliation'!M32","v":0},{"$f":"IF('Investment Reconciliation'!M28=0,0,('Investment Reconciliation'!M32)/'Investment Reconciliation'!M28)","v":0},null,null,null,"","","",""]
[{"$f":"A53+1","v":21},{"$f":"HYPERLINK(\"#'Schedule IIF (EBS)'!A1\",\"Schedule IIF (EBS) - Schedule of Sundry Assets\")","v":"Schedule IIF (EBS) - Schedule of Sundry Assets"},null,{"$f":"IF(('Form 1EBS'!F78+'Form 1EBS'!F80+'Form 1EBS'!F81)=0,\"N/A\",IF('Schedule IIF (EBS)'!D97=0,\"Schedule is Blank\",'Investment Reconciliation'!O30))","v":"N/A"},{"$f":"'Investment Reconciliation'!O32","v":0},{"$f":"IF('Investment Reconciliation'!O28=0,0,('Investment Reconciliation'!O32)/'Investment Reconciliation'!O28)","v":0},null,null,null,"","","",""]
[{"$f":"A45+1","v":17},{"$f":"HYPERLINK(\"#'Schedule III'!A1\",\"Schedule III - Schedule of Net Loss and Loss Expense Provisions By Line of Business\")","v":"Schedule III - Schedule of Net Loss and Loss Expense Provisions By Line of Business"}]
[null,"i)",{"$f":"HYPERLINK(\"#'Schedule III'!A1\",\"Net Loss & Loss Expense Provision as reported on Schedule III equals Form 1SFS\")","v":"Net Loss & Loss Expense Provision as reported on Schedule III equals Form 1SFS"},{"$f":"IF('Form 1SFS'!E124=0,\"N/A\",IF('Schedule III'!E33=0,\"Schedule is Blank\",'Schedule III'!E35))","v":"N/A"},{"$f":"'Schedule III'!E37","v":0},{"$f":"IF('Form 1SFS'!E124=0,0,('Schedule III'!E37)/'Form 1SFS'!E124)","v":0},null,null,false,{"$f":"IF(D56=\"Schedule is Blank\",\"Blank\",\"\")","v":""},{"$f":"IF(J56=\"Blank\",IF(I56=TRUE,\"Yes\",\"\"),\"\")","v":""},{"$f":"IF(D56=\"False\",\"False.\",\"\")","v":""},{"$f":"IF(L56=\"\",\"\",IF(I56=TRUE,\"Yes\",\"\"))","v":""}]
[]
[{"$f":"A55+1","v":18},{"$f":"HYPERLINK(\"#'Schedule III (EBS)'!A1\",\"Schedule III (EBS) - Schedule of Net Loss and Loss Expense Provisions By Line of Business\")","v":"Schedule III (EBS) - Schedule of Net Loss and Loss Expense Provisions By Line of Business"}]
[null,"i)",{"$f":"HYPERLINK(\"#'Schedule III (EBS)'!A1\",\"Net Loss & Loss Expense Provision as reported on Schedule III (EBS) equals Form 1EBS\")","v":"Net Loss & Loss Expense Provision as reported on Schedule III (EBS) equals Form 1EBS"},{"$f":"IF('Form 1EBS'!F115=0,\"N/A\",IF('Schedule III (EBS)'!F34=0,\"Schedule is Blank\",'Schedule III (EBS)'!F38))","v":"N/A"},{"$f":"'Schedule III (EBS)'!F40","v":0},{"$f":"IF('Form 1EBS'!F115=0,0,('Schedule III (EBS)'!F40)/'Form 1EBS'!F115)","v":0},null,null,null,{"$f":"IF(D59=\"Schedule is Blank\",\"Blank\",\"\")","v":""},{"$f":"IF(J59=\"Blank\",IF(I59=TRUE,\"Yes\",\"\"),\"\")","v":""},{"$f":"IF(D59=\"False\",\"False.\",\"\")","v":""},{"$f":"IF(L59=\"\",\"\",IF(I59=TRUE,\"Yes\",\"\"))","v":""}]
[]
[null,"ii)",{"$f":"HYPERLINK(\"#'Schedule IIIA (EBS)'!A1\",\"Insurer has taken advantage of Net Loss & Loss Expense Provision Geographic Diversification\")","v":"Insurer has taken advantage of Net Loss & Loss Expense Provision Geographic Diversification"},{"$f":"IF('Schedule IIIA (EBS)'!X34=0,\"No\",\"Yes\")","v":"No"}]
[]
[{"$f":"A58+1","v":19},{"$f":"HYPERLINK(\"#'Schedule IIIA (EBS)'!A1\",\"Schedule IIIA (EBS) - Schedule of Geographic Diversification of Net Loss and Loss Expense Provisions\")","v":"Schedule IIIA (EBS) - Schedule of Geographic Diversification of Net Loss and Loss Expense Provisions"}]
[{"$f":"A63+1","v":20},{"$f":"HYPERLINK(\"#'Schedule IV'!A1\",\"Schedule IV - Schedule of Premiums Written By Line of Business\")","v":"Schedule IV - Schedule of Premiums Written By Line of Business"}]
[null,"i)",{"$f":"HYPERLINK(\"#'Schedule IV'!A1\",\"Net Premium Written as reported on Schedule IV equals Form 2SFS\")","v":"Net Premium Written as reported on Schedule IV equals Form 2SFS"},{"$f":"IF('Company Information'!$B$2=\"Unconsolidated BSCR Model\",\"N/A\",IF('Form 2SFS'!E18=0,\"N/A\",IF('Schedule IV'!Q35=0,\"Schedule is Blank\",'Schedule IV'!Q37)))","v":"N/A"},{"$f":"+'Schedule IV'!Q39","v":0},{"$f":"IF('Form 2SFS'!E18=0,0,('Schedule IV'!Q39)/'Form 2SFS'!E18)","v":0},null,null,false,{"$f":"IF(OR(D65=\"False\",D65=\"Schedule is Blank\"),\"Blank\",\"\")","v":""},{"$f":"IF(J65=\"Blank\",IF(I65=TRUE,\"Yes\",\"\"),\"\")","v":""},{"$f":"IF(D65=\"False\",\"False.\",\"\")","v":""},{"$f":"IF(L65=\"\",\"\",IF(I65=TRUE,\"Yes\",\"\"))","v":""}]
[{"$f":"A64+1","v":21},{"$f":"HYPERLINK(\"#'Schedule IVA (EBS)'!A1\",\"Schedule IVA (EBS) - Schedule of Premiums Written By Line of Business\")","v":"Schedule IVA (EBS) - Schedule of Premiums Written By Line of Business"}]
[null,"i)",{"$f":"HYPERLINK(\"#'Schedule IVA (EBS)'!A1\",\"Net Premium Written as reported on Schedule IVA (EBS) equals Consolidated Form 2SFS\")","v":"Net Premium Written as reported on Schedule IVA (EBS) equals Consolidated Form 2SFS"},{"$f":"IF('Form 2SFS'!M18=0,\"N/A\",IF('Schedule IVA (EBS)'!Q35=0,\"Schedule is Blank\",'Schedule IVA (EBS)'!Q37))","v":"N/A"},{"$f":"+'Schedule IVA (EBS)'!Q39","v":0},{"$f":"IF('Form 2SFS'!M18=0,0,('Schedule IVA (EBS)'!Q39)/'Form 2SFS'!M18)","v":0},null,null,false,{"$f":"IF(D67=\"Schedule is Blank\",\"Blank\",\"\")","v":""},{"$f":"IF(J67=\"Blank\",IF(I67=TRUE,\"Yes\",\"\"),\"\")","v":""},{"$f":"IF(D67=\"False\",\"False.\",\"\")","v":""},{"$f":"IF(L67=\"\",\"\",IF(I67=TRUE,\"Yes\",\"\"))","v":""}]
[]
[null,"ii)",{"$f":"HYPERLINK(\"#'Schedule IVC (EBS)'!A1\",\"Insurer has taken advantage of Net Premium Written Geographic Diversification\")","v":"Insurer has taken advantage of Net Premium Written Geographic Diversification"},{"$f":"IF('Schedule IVC (EBS)'!X33=0,\"No\",\"Yes\")","v":"No"}]
[]
[{"$f":"A66+1","v":22},{"$f":"HYPERLINK(\"#'Schedule IVC (EBS)'!A1\",\"Schedule IVC (EBS) - Schedule of Geographic Diversification of Premiums Written\")","v":"Schedule IVC (EBS) - Schedule of Geographic Diversification of Premiums Written"}]
[{"$f":"A71+1","v":23},{"$f":"HYPERLINK(\"#'Schedule IVD'!A1\",\"Schedule IVD - Exposure Measure By Line of Business\")","v":"Schedule IVD - Exposure Measure By Line of Business"},null,{"$f":"IF('Form 2SFS'!M18=0,\"N/A\",IF(('Schedule IVD (EBS)'!G33+'Schedule IVD (EBS)'!K33+'Schedule IVD (EBS)'!M33)=0,\"Schedule is Blank\",\"True\"))","v":"N/A"},null,null,null,null,false,{"$f":"IF(D72=\"Schedule is Blank\",\"Blank\",\"\")","v":""},{"$f":"IF(J72=\"Blank\",IF(I72=TRUE,\"Yes\",\"\"),\"\")","v":""},{"$f":"IF(D72=\"False\",\"False.\",\"\")","v":""},{"$f":"IF(L72=\"\",\"\",IF(I72=TRUE,\"Yes\",\"\"))","v":""}]
[{"$f":"A72+1","v":24},{"$f":"HYPERLINK(\"#'Schedule IVE (EBS)'!A1\",\"Schedule IVE (EBS) - Schedule of Geographic Diversification of Exposure Measure\")","v":"Schedule IVE (EBS) - Schedule of Geographic Diversification of Exposure Measure"}]
[{"$f":"A73+1","v":25},{"$f":"HYPERLINK(\"#'Schedule V'!A1\",\"Schedule V - Schedule of Risk Management\")","v":"Schedule V - Schedule of Risk Management"}]
[null,"i)",{"$f":"HYPERLINK(\"#'Schedule V'!H10\",\"Effective Duration of Assets\")","v":"Effective Duration of Assets"},{"$f":"IF('Schedule V'!H10=0,\"Asset Duration is not Reported\",\"True\")","v":"Asset Duration is not Reported"},null,null,null,null,null,{"$f":"IF(D75=\"Asset Duration is not Reported\",\"Blank\",\"\")","v":"Blank"},{"$f":"IF(J75=\"Blank\",IF(I75=TRUE,\"Yes\",\"\"),\"\")","v":""}]
[null,"ii)",{"$f":"HYPERLINK(\"#'Schedule V'!H12\",\"Effective Duration of Liabilities\")","v":"Effective Duration of Liabilities"},{"$f":"IF('Schedule V'!H12=0,\"Liability Duration is not Reported\",\"True\")","v":"Liability Duration is not Reported"},null,null,null,null,null,{"$f":"IF(D76=\"Liability Duration is not Reported\",\"Blank\",\"\")","v":"Blank"},""]
[null,"iii)",{"$f":"HYPERLINK(\"#'Schedule V'!H16\",\"Gross Probable Maximum Loss\")","v":"Gross Probable Maximum Loss"},{"$f":"IF('Schedule V'!H16=0,\"Gross PML is not Reported\",\"True\")","v":"Gross PML is not Reported"}]
[null,"iv)",{"$f":"HYPERLINK(\"#'Schedule X(a)'!F11\",\"Gross Probable Maximum Loss to Catastrophe Risk Return 100 Year Aggregate\")","v":"Gross Probable Maximum Loss to Catastrophe Risk Return 100 Year Aggregate"},{"$f":"IF('Schedule V'!H16=0,\"Gross PML is not Reported\",IF('Schedule X(a)'!F10=0,\"Schedule X(a) is Blank\",IF(ROUND('Schedule V'!H16-(IF(CONFIGURATION!$C$12=\"Units\",1000000*'Schedule X(a)'!F10,1000*'Schedule X(a)'!F10)),0)=0,\"True\",\"False\")))","v":"Gross PML is not Reported"},{"$f":"(IF(CONFIGURATION!$C$12=\"Units\",'Schedule X(a)'!F10*1000000,'Schedule X(a)'!F10*1000))-'Schedule V'!H16","v":0},{"$f":"IF('Schedule X(a)'!F10=0,0,((IF(CONFIGURATION!$C$12=\"Units\",'Schedule X(a)'!F10*1000000,'Schedule X(a)'!F10*1000))-'Schedule V'!H16)/(IF(CONFIGURATION!$C$12=\"Units\",'Schedule X(a)'!F10*1000000,'Schedule X(a)'!F10*1000)))","v":0}]
[]
[null,"v)",{"$f":"HYPERLINK(\"#'Schedule V'!H18\",\"Net Probable Maximum Loss\")","v":"Net Probable Maximum Loss"},{"$f":"IF('Schedule V'!H18=0,\"Net PML is not Reported\",\"True\")","v":"Net PML is not Reported"}]
[null,"vi)",{"$f":"HYPERLINK(\"#'Schedule X(a)'!H11\",\"Net Probable Maximum Loss to Catastrophe Risk Return 100 Year Aggregate\")","v":"Net Probable Maximum Loss to Catastrophe Risk Return 100 Year Aggregate"},{"$f":"IF('Schedule V'!H18=0,\"Net PML is not Reported\",IF('Schedule X(a)'!H10=0,\"Schedule X(a) is Blank\",IF(ROUND(((IF(CONFIGURATION!$C$12=\"Units\",'Schedule X(a)'!H10*1000000,'Schedule X(a)'!H10*1000))-'Schedule V'!H18),0)=0,\"True\",\"False\")))","v":"Net PML is not Reported"},{"$f":"(IF(CONFIGURATION!$C$12=\"Units\",'Schedule X(a)'!H10*1000000,'Schedule X(a)'!H10*1000))-'Schedule V'!H18","v":0},{"$f":"IF('Schedule X(a)'!H10=0,0,(IF(CONFIGURATION!$C$12=\"Units\",'Schedule X(a)'!H10*1000000,'Schedule X(a)'!H10*1000)-'Schedule V'!H18)/(IF(CONFIGURATION!$C$12=\"Units\",'Schedule X(a)'!H10*1000000,'Schedule X(a)'!H10*1000)))","v":0}]
[null,"vii)",{"$f":"HYPERLINK(\"#'Schedule V'!H20\",\"Average Annual Loss\")","v":"Average Annual Loss"},{"$f":"IF('Schedule V'!H20=0,\"Avg Annual Loss is not Reported\",\"True\")","v":"Avg Annual Loss is not Reported"}]
[null,"viii)",{"$f":"HYPERLINK(\"#'Schedule X(a)'!J17\",\"Average Annual Loss (Sch X(a)) Net is greater than Sch V\")","v":"Average Annual Loss (Sch X(a)) Net is greater than Sch V"},{"$f":"IF('Schedule V'!H20=0,\"Average Annual Loss is not Reported\",IF('Schedule X(a)'!J16=0,\"Schedule X(a) is Blank\",IF((('Schedule X(a)'!J16*1000)>'Schedule V'!H20),\"True\",\"False\")))","v":"Average Annual Loss is not Reported"}]
[null,"ix)",{"$f":"HYPERLINK(\"#'Schedule V'!H22\",\"Actual attritional Losses and Large Claims Losses - Relevant Year\")","v":"Actual attritional Losses and Large Claims Losses - Relevant Year"},{"$f":"IF('Schedule V'!H22=0,\"Attritional Loss is not Reported\",\"True\")","v":"Attritional Loss is not Reported"}]
[null,"x)",{"$f":"HYPERLINK(\"#'Schedule V'!H25:H29\",\"Property Catastrophe Recoverables\")","v":"Property Catastrophe Recoverables"},{"$f":"IF('Schedule V'!H29=0,\"Property Cat Rec. is not Reported\",\"True\")","v":"Property Cat Rec. is not Reported"}]
[null,"xi)",{"$f":"HYPERLINK(\"#'Schedule V'!H34:H38\",\"Summary of Projected Performance\")","v":"Summary of Projected Performance"},{"$f":"IF(COUNTIF('Schedule V'!H34:H36,0)>0,\"Projected Performance is not Reported\",\"True\")","v":"Projected Performance is not Reported"},null,null,null,null,null,{"$f":"IF(D86=\"Projected Performance is not Reported\",\"Blank\",\"\")","v":"Blank"},{"$f":"IF(J86=\"Blank\",IF(I86=TRUE,\"Yes\",\"\"),\"\")","v":""}]
[{"$f":"A74+1","v":26},{"$f":"HYPERLINK(\"#'Schedule V(a)'!A1\",\"Schedule V(a) Schedule of Risk Management - Governance and Group Structure\")","v":"Schedule V(a) Schedule of Risk Management - Governance and Group Structure"}]
[null,"i)",{"$f":"HYPERLINK(\"#'Schedule V(a)'!E11\",\"Directors - Country of Residence\")","v":"Directors - Country of Residence"},{"$f":"IF('Schedule V(a)'!E12=0,\"Directors- Country of Residence is not Reported\",\"True\")","v":"Directors- Country of Residence is not Reported"},null,null,null,null,false,{"$f":"IF(D88=\"Directors- Country of Residence is not Reported\",\"Blank\",\"\")","v":"Blank"},{"$f":"IF(J88=\"Blank\",IF(I88=TRUE,\"Yes\",\"\"),\"\")","v":""}]
[null,"ii)",{"$f":"HYPERLINK(\"#'Schedule V(a)'!H11\",\"Directors - Status\")","v":"Directors - Status"},{"$f":"IF('Schedule V(a)'!H12=0,\"Directors- Status is not Reported\",\"True\")","v":"True"},null,null,null,null,false,{"$f":"IF(D89=\"Directors- Status is not Reported\",\"Blank\",\"\")","v":""},""]
[null,"iii)",{"$f":"HYPERLINK(\"#'Schedule V(a)'!E36\",\"Chief & Senior Executives - Residence\")","v":"Chief & Senior Executives - Residence"},{"$f":"IF('Schedule V(a)'!E37=0,\"Chief & Senior Executives - Country of Residence is not Reported\",\"True\")","v":"Chief & Senior Executives - Country of Residence is not Reported"},null,null,null,null,false,{"$f":"IF(D90=\"Chief & Senior Executives - Country of Residence is not Reported\",\"Blank\",\"\")","v":"Blank"},""]
[null,"iv)",{"$f":"HYPERLINK(\"#'Schedule V(a)'!H36\",\"Chief & Senior Executives - Employee Arrangement\")","v":"Chief & Senior Executives - Employee Arrangement"},{"$f":"IF('Schedule V(a)'!H37=0,\"Chief & Senior Executives - Employee Arrangement is not Reported\",\"True\")","v":"True"},null,null,null,null,false,{"$f":"IF(D91=\"Chief & Senior Executives - Employee Arrangement is not Reported\",\"Blank\",\"\")","v":""},""]
[null,"v)",{"$f":"HYPERLINK(\"#'Schedule V(a)'!I36\",\"Chief & Senior Executives - Description of Responsibilities\")","v":"Chief & Senior Executives - Description of Responsibilities"},{"$f":"IF('Schedule V(a)'!I37=0,\"Chief & Senior Executives - Description of Responsibilities is not Reported\",\"True\")","v":"True"},null,null,null,null,false,{"$f":"IF(D92=\"Chief & Senior Executives - Description of Responsibilities is not Reported\",\"Blank\",\"\")","v":""},""]
[null,"vi)",{"$f":"HYPERLINK(\"#'Schedule V(a)'!C60:G65\",\"Jurisdiction of Activities\")","v":"Jurisdiction of Activities"},{"$f":"IF(COUNTIF('Schedule V(a)'!E65:E68,0)=0,\"True\",\"Jurisdiction of Activities is not Reported\")","v":"True"},null,null,null,null,null,{"$f":"IF(D93=\"Jurisdiction of Activities is not Reported\",\"Blank\",\"\")","v":""},""]
[null,"vii)",{"$f":"HYPERLINK(\"#'Schedule V(a)'!C67:G74\",\"Jurisdiction of Operations\")","v":"Jurisdiction of Operations"},{"$f":"IF(COUNTIF('Schedule V(a)'!E72:E77,0)=0,\"True\",\"Jurisdiction of Operations is not Reported\")","v":"True"},null,null,null,null,null,{"$f":"IF(D94=\"Jurisdiction of Operations is not Reported\",\"Blank\",\"\")","v":""},""]
[null,"viii)",{"$f":"HYPERLINK(\"#'Schedule V(a)'!h67:h74\",\"Services Outsourced\")","v":"Services Outsourced"},{"$f":"IF(COUNTIF('Schedule V(a)'!H72:H77,0)=0,\"True\",\"Services Outsourced is not Reported\")","v":"True"},null,null,null,null,false,{"$f":"IF(D95=\"Services Outsourced is not Reported\",\"Blank\",\"\")","v":""},""]
[null,"ix)",{"$f":"HYPERLINK(\"#'Schedule V(a)'!G76\",\"Number of Employees in Bermuda\")","v":"Number of Employees in Bermuda"},{"$f":"IF('Schedule V(a)'!G98=0,\"Numbers of Employees in Bermuda is not Reported\",\"True\")","v":"Numbers of Employees in Bermuda is not Reported"},null,null,null,null,false,{"$f":"IF(D96=\"Numbers of Employees in Bermuda is not Reported\",\"Blank\",\"\")","v":"Blank"},""]
[null,"x)",{"$f":"HYPERLINK(\"#'Schedule V(a)'!G92:G94\",\"Group Financial Position\")","v":"Group Financial Position"},{"$f":"IF(COUNTIF('Schedule V(a)'!G123:G125,0)=0,\"True\",\"Group Financial Position is not Reported\")","v":"Group Financial Position is not Reported"},null,null,null,null,null,{"$f":"IF(D97=\"Group Financial Position is not Reported\",\"Blank\",\"\")","v":"Blank"},""]
[null,"xi)",{"$f":"HYPERLINK(\"#'Schedule V(a)'!C99:G107\",\"Largest Balance Sheet Values\")","v":"Largest Balance Sheet Values"},{"$f":"IF(COUNTIF('Schedule V(a)'!C130:G138,0)=45,\"Largest Values is not Reported\",\"True\")","v":"Largest Values is not Reported"},null,null,null,null,null,{"$f":"IF(D98=\"Largest Values is not Reported\",\"Blank\",\"\")","v":"Blank"},""]
[null,"xii)",{"$f":"HYPERLINK(\"#'Schedule V(a)'!C111\",\"Subsequent Events\")","v":"Subsequent Events"},{"$f":"IF('Schedule V(a)'!C142=0,\"Subsequent Events is not Reported\",\"True\")","v":"Subsequent Events is not Reported"},null,null,null,null,false,{"$f":"IF(D99=\"Subsequent Events is not Reported\",\"Blank\",\"\")","v":"Blank"},""]
[{"$f":"A87+1","v":27},{"$f":"HYPERLINK(\"#'Schedule V(c)'!A1\",\"Schedule V(c) Schedule of Risk Management - Intra-Group Exposures\")","v":"Schedule V(c) Schedule of Risk Management - Intra-Group Exposures"}]
[null,"i)",{"$f":"HYPERLINK(\"#'Schedule V(c)'!E9\",\"Intra-Group Transactions\")","v":"Intra-Group Transactions"},{"$f":"IF('Schedule V(c)'!C15=0,\"Intra-Group Transactions is not Reported\",\"True\")","v":"Intra-Group Transactions is not Reported"},null,null,null,null,false,{"$f":"IF(D101=\"Intra-Group Transactions is not Reported\",\"Blank\",\"\")","v":"Blank"},{"$f":"IF(J101=\"Blank\",IF(I101=TRUE,\"Yes\",\"\"),\"\")","v":""}]
[null,"ii)",{"$f":"HYPERLINK(\"#'Schedule V(c)'!E43\",\"Intra-Group Reinsurance & Retrocession\")","v":"Intra-Group Reinsurance & Retrocession"},{"$f":"IF('Schedule V(c)'!C48=0,\"Intra-Group R/I is not Reported\",\"True\")","v":"Intra-Group R/I is not Reported"},null,null,null,null,null,{"$f":"IF(D102=\"Intra-Group R/I is not Reported\",\"Blank\",\"\")","v":"Blank"},""]
[null,"iii)",{"$f":"HYPERLINK(\"#'Schedule V(c)'!J74\",\"Proportion of Internal Reinsurance\")","v":"Proportion of Internal Reinsurance"},{"$f":"IF('Schedule V(c)'!L74=0,\"Proportion R/I is not Reported\",\"True\")","v":"Proportion R/I is not Reported"},null,null,null,null,null,{"$f":"IF(D103=\"Proportion R/I is not Reported\",\"Blank\",\"\")","v":"Blank"},""]
[null,"iv)",{"$f":"HYPERLINK(\"#'Schedule V(c)'!E79\",\"10 Largest Counterparty Exposures\")","v":"10 Largest Counterparty Exposures"},{"$f":"IF('Schedule V(c)'!C83=0,\"Counterparty Exposure is not Completed\",\"True\")","v":"Counterparty Exposure is not Completed"},null,null,null,null,null,{"$f":"IF(D104=\"Counterparty Exposure is not Completed\",\"Blank\",\"\")","v":"Blank"},""]
[{"$f":"A100+1","v":28},{"$f":"HYPERLINK(\"#'Schedule V(e)'!A1\",\"Schedule V(e) Schedule of Risk Management - Stress & Scenario Tests\")","v":"Schedule V(e) Schedule of Risk Management - Stress & Scenario Tests"}]
[null,"i)",{"$f":"HYPERLINK(\"#'Schedule V(e)'!F13:G18\",\"Financial Market Scenarios\")","v":"Financial Market Scenarios"},{"$f":"IF('Schedule V(e)'!I8=\"\",IF(COUNTIF('Schedule V(e)'!F12:G19,0)>0,\"Financial Market Scenario is not Reported\",\"True\"),\"True\")","v":"Financial Market Scenario is not Reported"},null,null,null,null,null,{"$f":"IF(D106=\"Financial Market Scenario is not Reported\",\"Blank\",\"\")","v":"Blank"},{"$f":"IF(J106=\"Blank\",IF(I106=TRUE,\"Yes\",\"\"),\"\")","v":""}]
[null,"ii)",{"$f":"HYPERLINK(\"#'Schedule V(e)'!I34:J52\",\"Underwriting Loss Scenarios Completed\")","v":"Underwriting Loss Scenarios Completed"},{"$f":"IF('Company Information'!F11=\"Class 3A\",\"N/A\",IF(COUNTIF('Schedule V(e)'!H51:H69,0)=19,\"Underwriting Loss Scenarios is not Reported\",\"True\"))","v":"Underwriting Loss Scenarios is not Reported"},null,null,null,null,null,{"$f":"IF(D107=\"Underwriting Loss Scenarios is not Reported\",\"Blank\",\"\")","v":"Blank"},""]
[null,"iii)",{"$f":"HYPERLINK(\"#'Schedule V(e)'!G34:G52\",\"Underwriting Loss Scenarios - Gross Loss Negative Surplus\")","v":"Underwriting Loss Scenarios - Gross Loss Negative Surplus"},{"$f":"IF('Company Information'!F11=\"Class 3A\",\"N/A\",'Schedule V(e)'!S70)","v":"True"},null,null,null,null,null,null,null,{"$f":"IF(D108=\"False\",\"False.\",\"\")","v":""},{"$f":"IF(L108=\"\",\"\",IF(I108=TRUE,\"Yes\",\"\"))","v":""}]
[null,"iv)",{"$f":"HYPERLINK(\"#'Schedule V(e)'!k34:k52\",\"Underwriting Loss Scenarios - Net Loss Negative Surplus\")","v":"Underwriting Loss Scenarios - Net Loss Negative Surplus"},{"$f":"IF('Company Information'!F11=\"Class 3A\",\"N/A\",'Schedule V(e)'!T70)","v":"True"},null,null,null,null,null,null,null,{"$f":"IF(D109=\"False\",\"False.\",\"\")","v":""},""]
[null,"v)",{"$f":"HYPERLINK(\"#'Schedule V(e)'!D28:N46\",\"Underwriting Loss Scenarios - Gross Loss Less than Net Loss Impact\")","v":"Underwriting Loss Scenarios - Gross Loss Less than Net Loss Impact"},{"$f":"IF('Company Information'!F11=\"Class 3A\",\"N/A\",'Schedule V(e)'!U70)","v":"True"},null,null,null,null,null,null,null,"",""]
[null,"vi)",{"$f":"HYPERLINK(\"#'Schedule V(e)'!J62:K64\",\"Other Underwriting Loss Scenarios\")","v":"Other Underwriting Loss Scenarios"},{"$f":"IF('Schedule V(e)'!I8=\"\",IF(COUNTIF('Schedule V(e)'!K79:K81,0)=0,\"True\",\"Other Underwriting Loss Scenarios is not Reported\"),\"True\")","v":"Other Underwriting Loss Scenarios is not Reported"},null,null,null,null,null,null,null,"",""]
[null,"vii)",{"$f":"HYPERLINK(\"#'Schedule V(e)'!A100:J116\",\"Series of Loss Simulations or R/I Specific Worst Case Scenario\")","v":"Series of Loss Simulations or R/I Specific Worst Case Scenario"},{"$f":"IF('Company Information'!F11=\"Class 3A\",(IF(COUNTIF('Schedule V(e)'!D199:E200,0)>2,\"Loss Simulations is not Reported\",\"True\")),IF((COUNTIF('Schedule V(e)'!D186:E187,0)+COUNTIF('Schedule V(e)'!D199:E200,0))>2,\"Loss Simulations is not Reported\",\"True\"))","v":"Loss Simulations is not Reported"},null,null,null,null,false,{"$f":"IF(D112=\"Loss Simulations is not Reported\",\"Blank\",\"\")","v":"Blank"},{"$f":"IF(J112=\"Blank\",IF(I112=TRUE,\"Yes\",\"\"),\"\")","v":""}]
[null,"viii)",{"$f":"HYPERLINK(\"#'Schedule V(e)'!D121:M127\",\"Terrorism to a 2-tonne bomb\")","v":"Terrorism to a 2-tonne bomb"},{"$f":"IF('Company Information'!F11=\"Class 3A\",\"N/A\",IF(COUNTIF('Schedule V(e)'!D218:M224,0)=70,\"Terrorism is not Reported\",\"True\"))","v":"Terrorism is not Reported"},null,null,null,null,null,{"$f":"IF(D113=\"Terrorism is not Reported\",\"Blank\",\"\")","v":"Blank"},""]
[{"$f":"A105+1","v":29},{"$f":"HYPERLINK(\"#'Schedule V(g)'!A1\",\"Schedule V(g) Schedule of Risk Management - Reconciliation from Form 1SFS to Form 1EBS\")","v":"Schedule V(g) Schedule of Risk Management - Reconciliation from Form 1SFS to Form 1EBS"}]
[null,"i)",{"$f":"HYPERLINK(\"#'Schedule V(g)'!A1\",\"SFS Assets equals Form 1EBS\")","v":"SFS Assets equals Form 1EBS"},{"$f":"IF('Schedule V(g)'!D51=0,\"Schedule is Blank\",'Schedule V(g)'!D53)","v":"Schedule is Blank"},{"$f":"'Schedule V(g)'!D55","v":0},{"$f":"IF('Schedule V(g)'!D51=0,0,'Schedule V(g)'!D55/'Form 1EBS'!F90)","v":0},null,null,null,{"$f":"IF(OR(D115=\"False\",D115=\"Schedule is Blank\"),\"Blank\",\"\")","v":"Blank"},{"$f":"IF(J115=\"Blank\",IF(I115=TRUE,\"Yes\",\"\"),\"\")","v":""},{"$f":"IF(D115=\"False\",\"False.\",\"\")","v":""},{"$f":"IF(L115=\"\",\"\",IF(I115=TRUE,\"Yes\",\"\"))","v":""}]
[null,"ii)",{"$f":"HYPERLINK(\"#'Schedule V(g)'!A1\",\"SFS Liabilities equals Form 1EBS\")","v":"SFS Liabilities equals Form 1EBS"},{"$f":"IF('Schedule V(g)'!E51=0,\"Schedule is Blank\",'Schedule V(g)'!E53)","v":"Schedule is Blank"},{"$f":"'Schedule V(g)'!E55","v":0},{"$f":"IF('Schedule V(g)'!E51=0,0,'Schedule V(g)'!E55/'Form 1EBS'!F163)","v":0},null,null,null,{"$f":"IF(OR(D116=\"False\",D116=\"Schedule is Blank\"),\"Blank\",\"\")","v":"Blank"},"",{"$f":"IF(D116=\"False\",\"False.\",\"\")","v":""},""]
[null,"iii)",{"$f":"HYPERLINK(\"#'Schedule V(g)'!A1\",\"SFS Capital & Surplus equals Form 1EBS\")","v":"SFS Capital & Surplus equals Form 1EBS"},{"$f":"IF('Schedule V(g)'!G51=0,\"Schedule is Blank\",'Schedule V(g)'!G53)","v":"Schedule is Blank"},{"$f":"'Schedule V(g)'!G55","v":0},{"$f":"IF('Schedule V(g)'!G51=0,0,'Schedule V(g)'!G55/'Form 1EBS'!F167)","v":0},null,null,null,{"$f":"IF(OR(D117=\"False\",D117=\"Schedule is Blank\"),\"Blank\",\"\")","v":"Blank"},"",{"$f":"IF(D117=\"False\",\"False.\",\"\")","v":""},""]
[{"$f":"A114+1","v":30},{"$f":"HYPERLINK(\"#'Schedule V(k)'!A1\",\"Schedule V(k) Schedule of Risk Management - Details of Deposit Assets and Liabilities\")","v":"Schedule V(k) Schedule of Risk Management - Details of Deposit Assets and Liabilities"}]
[null,"i)",{"$f":"HYPERLINK(\"#'Schedule V(k)'!A1\",\"Details of Deposit Assets and Liabilities\")","v":"Details of Deposit Assets and Liabilities"},{"$f":"IF(('Form 1SFS'!E86+'Form 1SFS'!I86+'Form 1SFS'!M86)=0,\"N/A\",IF('Schedule V(k)'!F58=0,\"Schedule is Blank\",\"True\"))","v":"N/A"},null,null,null,null,false,{"$f":"IF(D119=\"Schedule is Blank\",\"Blank\",\"\")","v":""},{"$f":"IF(J119=\"Blank\",IF(I119=TRUE,\"Yes\",\"\"),\"\")","v":""}]
[{"$f":"A118+1","v":31},{"$f":"HYPERLINK(\"#'Schedule V(l)'!A1\",\"Schedule V(l) Schedule of Risk Management - Schedule of Segregated Accounts\")","v":"Schedule V(l) Schedule of Risk Management - Schedule of Segregated Accounts"}]
[null,"i)",{"$f":"HYPERLINK(\"#'Schedule V(l)'!A1\",\"Schedule of Segregated Accounts\")","v":"Schedule of Segregated Accounts"},{"$f":"IF(('Form 1SFS'!E85+'Form 1SFS'!M85+'Form 1SFS'!M83+'Form 1SFS'!M84)=0,\"N/A\",IF('Schedule V(l)'!BC9=0,\"Schedule is Blank\",\"True\"))","v":"N/A"},null,null,null,null,false,{"$f":"IF(D121=\"Schedule is Blank\",\"Blank\",\"\")","v":""},{"$f":"IF(J121=\"Blank\",IF(I121=TRUE,\"Yes\",\"\"),\"\")","v":""}]
[{"$f":"A120+1","v":32},{"$f":"HYPERLINK(\"#'Schedule VI'!A1\",\"Schedule VI - Schedule of Fixed Income Securities\")","v":"Schedule VI - Schedule of Fixed Income Securities"}]
[null,"i)",{"$f":"HYPERLINK(\"#'Schedule VI'!A1\",\"Fixed Income Securities equals Form 1SFS\")","v":"Fixed Income Securities equals Form 1SFS"},{"$f":"IF(('Form 1SFS'!E18+'Form 1SFS'!E31)=0,\"N/A\",IF('Schedule VI'!E28=0,\"Schedule is Blank\",'Schedule VI'!E30))","v":"N/A"},{"$f":"'Schedule VI'!E32","v":0},{"$f":"IF(('Form 1SFS'!E18+'Form 1SFS'!E31)=0,0,('Schedule VI'!E32)/('Form 1SFS'!E18+'Form 1SFS'!E31))","v":0},null,null,null,{"$f":"IF(D123=\"Schedule is Blank\",\"Blank\",\"\")","v":""},{"$f":"IF(J123=\"Blank\",IF(I123=TRUE,\"Yes\",\"\"),\"\")","v":""},{"$f":"IF(D123=\"False\",\"False.\",\"\")","v":""},{"$f":"IF(L123=\"\",\"\",IF(I123=TRUE,\"Yes\",\"\"))","v":""}]
[{"$f":"A122+1","v":33},{"$f":"HYPERLINK(\"#'Schedule VI (EBS)'!A1\",\"Schedule VI (EBS) - Schedule of Fixed Income Securities\")","v":"Schedule VI (EBS) - Schedule of Fixed Income Securities"}]
[null,"i)",{"$f":"HYPERLINK(\"#'Schedule VI (EBS)'!A1\",\"Fixed Income Securities equals Form 1EBS\")","v":"Fixed Income Securities equals Form 1EBS"},{"$f":"IF(('Form 1EBS'!F13+'Form 1EBS'!F23)=0,\"N/A\",IF('Schedule VI (EBS)'!E28=0,\"Schedule is Blank\",'Schedule VI (EBS)'!E30))","v":"N/A"},{"$f":"'Schedule VI (EBS)'!E32","v":0},{"$f":"IF(('Form 1EBS'!F13+'Form 1EBS'!F23)=0,0,('Schedule VI (EBS)'!E32)/('Form 1EBS'!F13+'Form 1EBS'!F23))","v":0},null,null,null,{"$f":"IF(D125=\"Schedule is Blank\",\"Blank\",\"\")","v":""},{"$f":"IF(J125=\"Blank\",IF(I125=TRUE,\"Yes\",\"\"),\"\")","v":""},{"$f":"IF(D125=\"False\",\"False.\",\"\")","v":""},{"$f":"IF(L125=\"\",\"\",IF(I125=TRUE,\"Yes\",\"\"))","v":""}]
[{"$f":"A124+1","v":34},{"$f":"HYPERLINK(\"#'Schedule XVIII'!A1\",\"Schedule XVIII Schedule of Risk Management - Particulars of Reinsurance Balances\")","v":"Schedule XVIII Schedule of Risk Management - Particulars of Reinsurance Balances"}]
[null,"i)",{"$f":"HYPERLINK(\"#'Schedule XVIII'!A1\",\"R/I Balances as reported on Schedules XVIII & II equals Form 1SFS\")","v":"R/I Balances as reported on Schedules XVIII & II equals Form 1SFS"},{"$f":"IF('Company Information'!$B$2=\"Unconsolidated BSCR Model\",\"N/A\",IF('Schedule XVIII'!G72=0,\"N/A\",IF('Schedule XVIII'!G55=0,\"Schedule is Blank\",'Schedule XVIII'!G76)))","v":"N/A"},{"$f":"'Schedule XVIII'!G78","v":0},{"$f":"IF('Schedule XVIII'!G72=0,0,('Schedule XVIII'!G78)/'Schedule XVIII'!G72)","v":0},null,null,null,{"$f":"IF(D127=\"Schedule is Blank\",\"Blank\",\"\")","v":""},{"$f":"IF(J127=\"Blank\",IF(I127=TRUE,\"Yes\",\"\"),\"\")","v":""},{"$f":"IF(D127=\"False\",\"False.\",\"\")","v":""},{"$f":"IF(L127=\"\",\"\",IF(I127=TRUE,\"Yes\",\"\"))","v":""}]
[{"$f":"A126+1","v":35},{"$f":"HYPERLINK(\"#'Schedule XVIII (EBS)'!A1\",\"Schedule XVIII (EBS) Schedule of Risk Management - Particulars of Reinsurance Balances\")","v":"Schedule XVIII (EBS) Schedule of Risk Management - Particulars of Reinsurance Balances"}]
[null,"i)",{"$f":"HYPERLINK(\"#'Schedule XVIII (EBS)'!A1\",\"R/I Balances as reported on Schs XVIII(d) (EBS) & II (EBS) equals Form 1EBS\")","v":"R/I Balances as reported on Schs XVIII(d) (EBS) & II (EBS) equals Form 1EBS"},{"$f":"IF('Schedule XVIII (EBS)'!G72=0,\"N/A\",IF('Schedule XVIII (EBS)'!G55=0,\"Schedule is Blank\",'Schedule XVIII (EBS)'!G76))","v":"N/A"},{"$f":"'Schedule XVIII (EBS)'!G78","v":0},{"$f":"IF('Schedule XVIII (EBS)'!G72=0,0,('Schedule XVIII (EBS)'!G78)/'Schedule XVIII (EBS)'!G72)","v":0},null,null,false,{"$f":"IF(D129=\"Schedule is Blank\",\"Blank\",\"\")","v":""},{"$f":"IF(J129=\"Blank\",IF(I129=TRUE,\"Yes\",\"\"),\"\")","v":""},{"$f":"IF(D129=\"False\",\"False.\",\"\")","v":""},{"$f":"IF(L129=\"\",\"\",IF(I129=TRUE,\"Yes\",\"\"))","v":""}]
[{"$f":"A128+1","v":36},{"$f":"HYPERLINK(\"#'Schedule XIX'!A1\",\"Schedule XIX Particulars of Cash and Cash Equivalents\")","v":"Schedule XIX Particulars of Cash and Cash Equivalents"}]
[null,"i)",{"$f":"HYPERLINK(\"#'Schedule XIX'!A1\",\"Particulars of Cash and Cash Equivalents equals Form 1EBS\")","v":"Particulars of Cash and Cash Equivalents equals Form 1EBS"},{"$f":"IF('Schedule XIX'!H54=0,\"Schedule is Blank\",'Schedule XIX'!H74)","v":"Schedule is Blank"},{"$f":"'Schedule XIX'!H76","v":0},{"$f":"IF('Schedule XIX'!H54=0,0,('Schedule XIX'!H76)/'Schedule XIX'!H72)","v":0},null,null,false,{"$f":"IF(D131=\"Schedule is Blank\",\"Blank\",\"\")","v":"Blank"},{"$f":"IF(J131=\"Blank\",IF(I131=TRUE,\"Yes\",\"\"),\"\")","v":""},{"$f":"IF(D131=\"False\",\"False.\",\"\")","v":""},{"$f":"IF(L131=\"\",\"\",IF(I131=TRUE,\"Yes\",\"\"))","v":""}]
[{"$f":"A130+1","v":37},{"$f":"HYPERLINK(\"#'Schedule XIXA'!A1\",\"Schedule XIXA Particulars of Cash and Cash Equivalents\")","v":"Schedule XIXA Particulars of Cash and Cash Equivalents"}]
[null,"i)",{"$f":"HYPERLINK(\"#'Schedule XIXA'!A1\",\"Particulars of Cash and Cash Equivalents equals Form 1EBS\")","v":"Particulars of Cash and Cash Equivalents equals Form 1EBS"},{"$f":"IF('Schedule XIXA'!F54=0,\"Schedule is Blank\",'Schedule XIXA'!F74)","v":"Schedule is Blank"},{"$f":"'Schedule XIXA'!F76","v":0},{"$f":"IF('Schedule XIXA'!F72=0,0,('Schedule XIXA'!F76)/'Schedule XIXA'!F72)","v":0},null,null,null,{"$f":"IF(D133=\"Schedule is Blank\",\"Blank\",\"\")","v":"Blank"},{"$f":"IF(J133=\"Blank\",IF(I133=TRUE,\"Yes\",\"\"),\"\")","v":""},{"$f":"IF(D133=\"False\",\"False.\",\"\")","v":""},{"$f":"IF(L133=\"\",\"\",IF(I133=TRUE,\"Yes\",\"\"))","v":""}]
[{"$f":"A132+1","v":38},{"$f":"HYPERLINK(\"#'Schedule XX'!A1\",\"Schedule XX Schedule of Currency Risk\")","v":"Schedule XX Schedule of Currency Risk"}]
[null,"i)",{"$f":"HYPERLINK(\"#'Schedule XX'!A1\",\"Currency Test of Minimum of 95% Has Been Met\")","v":"Currency Test of Minimum of 95% Has Been Met"},{"$f":"IF(+'Schedule XX'!L24=0,\"Schedule is Blank\",'Schedule XX'!L30)","v":"Schedule is Blank"},{"$f":"+'Schedule XX'!L27-'Schedule XX'!L24","v":0},{"$f":"IF(+'Schedule XX'!L27=0,0,('Schedule XX'!L24-'Schedule XX'!L27)/+'Schedule XX'!L27)","v":0},null,null,false,{"$f":"IF(D135=\"Schedule is Blank\",\"Blank\",\"\")","v":"Blank"},{"$f":"IF(J135=\"Blank\",IF(I135=TRUE,\"Yes\",\"\"),\"\")","v":""},{"$f":"IF(D135=\"False\",\"False.\",\"\")","v":""},{"$f":"IF(L135=\"\",\"\",IF(I135=TRUE,\"Yes\",\"\"))","v":""}]
[null,"ii)",{"$f":"HYPERLINK(\"#'Schedule XX'!T36\",\"Liabilities and ECR Charge has been completed\")","v":"Liabilities and ECR Charge has been completed"},{"$f":"IF(COUNTIF('Schedule XX'!L34:P36,0)>0,\"Schedule is not Complete\",\"True\")","v":"Schedule is not Complete"},null,null,null,null,null,{"$f":"IF(D136=\"Schedule is not complete\",\"Blank\",\"\")","v":"Blank"},""]
[{"$f":"A134+1","v":39},{"$f":"HYPERLINK(\"#'Schedule XXA'!A1\",\"Schedule XXA Schedule of Currency Risk\")","v":"Schedule XXA Schedule of Currency Risk"}]
[null,"i)",{"$f":"HYPERLINK(\"#'Schedule XXA'!A1\",\"Currency Test of Minimum of 95% Has Been Met\")","v":"Currency Test of Minimum of 95% Has Been Met"},{"$f":"IF('Schedule XXA'!D33=0,\"Schedule is Blank\",'Schedule XXA'!D39)","v":"Schedule is Blank"},{"$f":"'Schedule XXA'!D36-'Schedule XXA'!D33-'Schedule XXA'!F33-'Schedule XXA'!H33-'Schedule XXA'!J33-'Schedule XXA'!L33","v":0},{"$f":"IF('Schedule XXA'!D33=0,0,('Schedule XXA'!D36-'Schedule XXA'!D33-'Schedule XXA'!F33-'Schedule XXA'!H33-'Schedule XXA'!J33-'Schedule XXA'!L33)/'Schedule XXA'!D36)","v":0},null,null,null,{"$f":"IF(D138=\"Schedule is Blank\",\"Blank\",\"\")","v":"Blank"},{"$f":"IF(J138=\"Blank\",IF(I138=TRUE,\"Yes\",\"\"),\"\")","v":""},{"$f":"IF(D138=\"False\",\"False.\",\"\")","v":""},{"$f":"IF(L138=\"\",\"\",IF(I138=TRUE,\"Yes\",\"\"))","v":""}]
[null,"ii)",{"$f":"HYPERLINK(\"#'Schedule XXA'!P45\",\"Liabilities and ECR Charge has been completed\")","v":"Liabilities and ECR Charge has been completed"},{"$f":"IF(COUNTIF('Schedule XXA'!D43:H45,0)>0,\"Schedule is not Complete\",\"True\")","v":"Schedule is not Complete"},null,null,null,null,null,{"$f":"IF(D139=\"Schedule is not complete\",\"Blank\",\"\")","v":"Blank"},""]
[{"$f":"A137+1","v":40},{"$f":"HYPERLINK(\"#'Schedule XXI'!A1\",\"Schedule XXI Schedule of Concentration Risk\")","v":"Schedule XXI Schedule of Concentration Risk"}]
[null,"i)",{"$f":"HYPERLINK(\"#'Schedule XXI'!A1\",\"Particulars of Concentration Risk\")","v":"Particulars of Concentration Risk"},{"$f":"IF('Schedule XXI'!M58=0,\"Schedule is Blank\",\"True\")","v":"Schedule is Blank"},null,null,null,null,false,{"$f":"IF(D141=\"Schedule is Blank\",\"Blank\",\"\")","v":"Blank"},{"$f":"IF(J141=\"Blank\",IF(I141=TRUE,\"Yes\",\"\"),\"\")","v":""},{"$f":"IF(D141=\"False\",\"False.\",\"\")","v":""},{"$f":"IF(L141=\"\",\"\",IF(I141=TRUE,\"Yes\",\"\"))","v":""}]
[null,"ii)",{"$f":"HYPERLINK(\"#'Schedule XXI'!A1\",\"Particulars of Concentration Risk - Bond Type and BSCR Rating Complete\")","v":"Particulars of Concentration Risk - Bond Type and BSCR Rating Complete"},{"$f":"IF('Schedule XXI'!M58=0,\"Schedule is Blank\",IF(ROUND('Schedule XXI'!M58-'Concentration Risk'!D111,0)=0,\"True\",\"Schedule is not Complete\"))","v":"Schedule is Blank"},{"$f":"'Schedule XXI'!M58-'Concentration Risk'!D111","v":0},{"$f":"IF('Schedule XXI'!M58=0,0,('Schedule XXI'!M58-'Concentration Risk'!D111)/'Schedule XXI'!M58)","v":0},null,null,null,{"$f":"IF(D142=\"Schedule is Blank\",\"Blank\",\"\")","v":"Blank"},""]
[{"$f":"A140+1","v":41},{"$f":"HYPERLINK(\"#'Schedule XXIA'!A1\",\"Schedule XXIA Schedule of Concentration Risk\")","v":"Schedule XXIA Schedule of Concentration Risk"}]
[null,"i)",{"$f":"HYPERLINK(\"#'Schedule XXIA'!A1\",\"Particulars of Concentration Risk\")","v":"Particulars of Concentration Risk"},{"$f":"IF('Schedule XXIA'!M58=0,\"Schedule is Blank\",\"True\")","v":"Schedule is Blank"},null,null,null,null,null,{"$f":"IF(D144=\"Schedule is Blank\",\"Blank\",\"\")","v":"Blank"},{"$f":"IF(J144=\"Blank\",IF(I144=TRUE,\"Yes\",\"\"),\"\")","v":""},{"$f":"IF(D144=\"False\",\"False.\",\"\")","v":""},{"$f":"IF(L144=\"\",\"\",IF(I144=TRUE,\"Yes\",\"\"))","v":""}]
[null,"ii)",{"$f":"HYPERLINK(\"#'Schedule XXIA'!A1\",\"Particulars of Concentration Risk - Bond Type and BSCR Rating Complete\")","v":"Particulars of Concentration Risk - Bond Type and BSCR Rating Complete"},{"$f":"IF('Schedule XXIA'!M58=0,\"Schedule is Blank\",IF(ROUND('Schedule XXIA'!M58-'Concentration Risk (Revised)'!D110,0)=0,\"True\",\"Schedule is not Complete\"))","v":"Schedule is Blank"},{"$f":"'Schedule XXIA'!M58-'Concentration Risk (Revised)'!D110","v":0},{"$f":"IF('Schedule XXIA'!M58=0,0,('Schedule XXIA'!M58-'Concentration Risk (Revised)'!D110)/'Schedule XXIA'!M58)","v":0},null,null,null,{"$f":"IF(D145=\"Schedule is Blank\",\"Blank\",\"\")","v":"Blank"},""]
[]
[null,"CISSA Schedules"]
[{"$f":"A143+1","v":42},{"$f":"HYPERLINK(\"#'Schedule IX(a)'!A1\",\"Schedule IX(a) - CISSA Capital Summary\")","v":"Schedule IX(a) - CISSA Capital Summary"}]
[null,"i)",{"$f":"HYPERLINK(\"#'Schedule IX(a)'!A1\",\"CISSA Capital Summary\")","v":"CISSA Capital Summary"},{"$f":"IF('Schedule IX(a)'!E27=0,\"CISSA Capital Summary is Blank\",\"True\")","v":"CISSA Capital Summary is Blank"},null,null,null,null,null,{"$f":"IF(D149=\"CISSA Capital Summary is Blank\",\"Blank\",\"\")","v":"Blank"},{"$f":"IF(J149=\"Blank\",IF(I149=TRUE,\"Yes\",\"\"),\"\")","v":""}]
[null,"ii)",{"$f":"HYPERLINK(\"#'Schedule IX(a)'!B41:C47\",\"Insurer's Reason for Maintaining CISSA Capital Amount\")","v":"Insurer's Reason for Maintaining CISSA Capital Amount"},{"$f":"IF(COUNTIF('Schedule IX(a)'!B40:B46,\"Select\")=7,\"CISSA Section is Blank\",\"True\")","v":"True"},null,null,null,null,null,{"$f":"IF(D150=\"CISSA Section is Blank\",\"Blank\",\"\")","v":""},""]
[null,"iii)",{"$f":"HYPERLINK(\"#'Schedule IX(a)'!B51:C57\",\"Insurer's Method of Aggregating CISSA Capital\")","v":"Insurer's Method of Aggregating CISSA Capital"},{"$f":"IF(COUNTIF('Schedule IX(a)'!B50:B56,\"Select\")=7,\"CISSA Section is Blank\",\"True\")","v":"True"},null,null,null,null,false,{"$f":"IF(D151=\"CISSA Section is Blank\",\"Blank\",\"\")","v":""},""]
[null,"iv)",{"$f":"HYPERLINK(\"#'Schedule IX(a)'!B61:C69\",\"Insurer's Contingency Plan\")","v":"Insurer's Contingency Plan"},{"$f":"IF(COUNTIF('Schedule IX(a)'!B60:B68,\"Select\")=9,\"CISSA Section is Blank\",\"True\")","v":"True"},null,null,null,null,null,{"$f":"IF(D152=\"CISSA Section is Blank\",\"Blank\",\"\")","v":""},""]
[null,"v)",{"$f":"HYPERLINK(\"#'Schedule IX(a)'!B71:G74\",\"Insurer's Confirmation of Contractual Commits under Stressed Situations\")","v":"Insurer's Confirmation of Contractual Commits under Stressed Situations"},{"$f":"IF('Schedule IX(a)'!G70=\"Select\",\"CISSA Section is Blank\",\"True\")","v":"True"},null,null,null,null,null,{"$f":"IF(D153=\"CISSA Section is Blank\",\"Blank\",\"\")","v":""},""]
[null,"vi)",{"$f":"HYPERLINK(\"#'Schedule IX(a)'!B76:G78\",\"Insurer's Confirmation of Issurance of Downstream of Debt\")","v":"Insurer's Confirmation of Issurance of Downstream of Debt"},{"$f":"IF('Schedule IX(a)'!G75=\"Select\",\"CISSA Section is Blank\",\"True\")","v":"True"},null,null,null,null,null,"",""]
[null,"vii)",{"$f":"HYPERLINK(\"#'Schedule IX(a)'!B80:G82\",\"Insurer's Confirmation of Receipt of Downstream of Debt\")","v":"Insurer's Confirmation of Receipt of Downstream of Debt"},{"$f":"IF('Schedule IX(a)'!G79=\"Select\",\"CISSA Section is Blank\",\"True\")","v":"True"},null,null,null,null,null,"",""]
[null,"viii)",{"$f":"HYPERLINK(\"#'Schedule IX(a)'!B84:G90\",\"Insurer's Confirmation of Transferrability of Assets\")","v":"Insurer's Confirmation of Transferrability of Assets"},{"$f":"IF('Schedule IX(a)'!G83=\"Select\",\"CISSA Section is Blank\",\"True\")","v":"True"},null,null,null,null,null,"",""]
[{"$f":"A148+1","v":43},{"$f":"HYPERLINK(\"#'Schedule IX(b)'!A1\",\"Schedule IX(b) - CISSA General Questions\")","v":"Schedule IX(b) - CISSA General Questions"}]
[null,"i)",{"$f":"HYPERLINK(\"#'Schedule IX(b)'!B8:F28\",\"CISSA Integration\")","v":"CISSA Integration"},{"$f":"IF('Schedule IX(b)'!F7=\"Select\",\"CISSA Section is Blank\",\"True\")","v":"True"},null,null,null,null,null,{"$f":"IF(D158=\"CISSA Section is Blank\",\"Blank\",\"\")","v":""},{"$f":"IF(J158=\"Blank\",IF(I158=TRUE,\"Yes\",\"\"),\"\")","v":""}]
[null,"ii)",{"$f":"HYPERLINK(\"#'Schedule IX(b)'!B60:F70\",\"CISSA General Questions\")","v":"CISSA General Questions"},{"$f":"IF(COUNTIF('Schedule IX(b)'!F59:F65,\"Select\")>=2,\"CISSA Section is Blank\",\"True\")","v":"True"},null,null,null,null,null,"",""]
[{"$f":"A157+1","v":44},{"$f":"HYPERLINK(\"#'Schedule IX(c)'!A1\",\"Schedule IX(c) - CISSA Assessment of Material Risks\")","v":"Schedule IX(c) - CISSA Assessment of Material Risks"}]
[]
[null,"Catastrophe Risk Schedules"]
[{"$f":"A160+1","v":45},{"$f":"HYPERLINK(\"#'Schedule X(a)'!A1\",\"Schedule X(a) Catastrophe Risk Return - EP Curve Total\")","v":"Schedule X(a) Catastrophe Risk Return - EP Curve Total"}]
[null,"i)",{"$f":"HYPERLINK(\"#'Schedule X(a)'!D10:H14\",\"Total Exceedance Probability Details\")","v":"Total Exceedance Probability Details"},{"$f":"IF(COUNTIF('Schedule X(a)'!E9:H13,0)>0,\"Section is Blank/Field Omitted\",\"True\")","v":"Section is Blank/Field Omitted"},null,null,null,null,null,{"$f":"IF(D164=\"Section is Blank/Field Omitted\",\"Blank\",\"\")","v":"Blank"},{"$f":"IF(J164=\"Blank\",IF(I164=TRUE,\"Yes\",\"\"),\"\")","v":""}]
[null,null,null,"Gross Occur","Gross Agg","Net Occ.","Net Agg."]
[null,null,"50 Loss Return Period Reported in Millions",{"$f":"IF(SUM('Schedule X(a)'!$E$9:$H$13)=0,0,IF(Submission!$B$6=\"Units\",('Schedule X(a)'!E9*1000000)/'Form 1SFS'!$M$198,('Schedule X(a)'!E9*1000)/'Form 1SFS'!$M$198))","v":0},{"$f":"IF(SUM('Schedule X(a)'!$E$9:$H$13)=0,0,IF(Submission!$B$6=\"Units\",('Schedule X(a)'!F9*1000000)/'Form 1SFS'!$M$198,('Schedule X(a)'!F9*1000)/'Form 1SFS'!$M$198))","v":0},{"$f":"IF(SUM('Schedule X(a)'!$E$9:$H$13)=0,0,IF(Submission!$B$6=\"Units\",('Schedule X(a)'!G9*1000000)/'Form 1SFS'!$M$198,('Schedule X(a)'!G9*1000)/'Form 1SFS'!$M$198))","v":0},{"$f":"IF(SUM('Schedule X(a)'!$E$9:$H$13)=0,0,IF(Submission!$B$6=\"Units\",('Schedule X(a)'!H9*1000000)/'Form 1SFS'!$M$198,('Schedule X(a)'!H9*1000)/'Form 1SFS'!$M$198))","v":0}]
[null,null,"100 Loss Return Period Reported in Millions",{"$f":"IF(SUM('Schedule X(a)'!$E$9:$H$13)=0,0,IF(Submission!$B$6=\"Units\",('Schedule X(a)'!E10*1000000)/'Form 1SFS'!$M$198,('Schedule X(a)'!E10*1000)/'Form 1SFS'!$M$198))","v":0},{"$f":"IF(SUM('Schedule X(a)'!$E$9:$H$13)=0,0,IF(Submission!$B$6=\"Units\",('Schedule X(a)'!F10*1000000)/'Form 1SFS'!$M$198,('Schedule X(a)'!F10*1000)/'Form 1SFS'!$M$198))","v":0},{"$f":"IF(SUM('Schedule X(a)'!$E$9:$H$13)=0,0,IF(Submission!$B$6=\"Units\",('Schedule X(a)'!G10*1000000)/'Form 1SFS'!$M$198,('Schedule X(a)'!G10*1000)/'Form 1SFS'!$M$198))","v":0},{"$f":"IF(SUM('Schedule X(a)'!$E$9:$H$13)=0,0,IF(Submission!$B$6=\"Units\",('Schedule X(a)'!H10*1000000)/'Form 1SFS'!$M$198,('Schedule X(a)'!H10*1000)/'Form 1SFS'!$M$198))","v":0}]
[null,null,"250 Loss Return Period Reported in Millions",{"$f":"IF(SUM('Schedule X(a)'!$E$9:$H$13)=0,0,IF(Submission!$B$6=\"Units\",('Schedule X(a)'!E11*1000000)/'Form 1SFS'!$M$198,('Schedule X(a)'!E11*1000)/'Form 1SFS'!$M$198))","v":0},{"$f":"IF(SUM('Schedule X(a)'!$E$9:$H$13)=0,0,IF(Submission!$B$6=\"Units\",('Schedule X(a)'!F11*1000000)/'Form 1SFS'!$M$198,('Schedule X(a)'!F11*1000)/'Form 1SFS'!$M$198))","v":0},{"$f":"IF(SUM('Schedule X(a)'!$E$9:$H$13)=0,0,IF(Submission!$B$6=\"Units\",('Schedule X(a)'!G11*1000000)/'Form 1SFS'!$M$198,('Schedule X(a)'!G11*1000)/'Form 1SFS'!$M$198))","v":0},{"$f":"IF(SUM('Schedule X(a)'!$E$9:$H$13)=0,0,IF(Submission!$B$6=\"Units\",('Schedule X(a)'!H11*1000000)/'Form 1SFS'!$M$198,('Schedule X(a)'!H11*1000)/'Form 1SFS'!$M$198))","v":0}]
[null,null,"500 Loss Return Period Reported in Millions",{"$f":"IF(SUM('Schedule X(a)'!$E$9:$H$13)=0,0,IF(Submission!$B$6=\"Units\",('Schedule X(a)'!E12*1000000)/'Form 1SFS'!$M$198,('Schedule X(a)'!E12*1000)/'Form 1SFS'!$M$198))","v":0},{"$f":"IF(SUM('Schedule X(a)'!$E$9:$H$13)=0,0,IF(Submission!$B$6=\"Units\",('Schedule X(a)'!F12*1000000)/'Form 1SFS'!$M$198,('Schedule X(a)'!F12*1000)/'Form 1SFS'!$M$198))","v":0},{"$f":"IF(SUM('Schedule X(a)'!$E$9:$H$13)=0,0,IF(Submission!$B$6=\"Units\",('Schedule X(a)'!G12*1000000)/'Form 1SFS'!$M$198,('Schedule X(a)'!G12*1000)/'Form 1SFS'!$M$198))","v":0},{"$f":"IF(SUM('Schedule X(a)'!$E$9:$H$13)=0,0,IF(Submission!$B$6=\"Units\",('Schedule X(a)'!H12*1000000)/'Form 1SFS'!$M$198,('Schedule X(a)'!H12*1000)/'Form 1SFS'!$M$198))","v":0}]
[null,null,"1,000 Loss Return Period Reported in Millions"]
[null,null,"If ratios are highlighted in yellow, confirm if the figures are correctly reported in millions"]
[]
[{"$f":"A163+1","v":46},{"$f":"HYPERLINK(\"#'Schedule X(b)'!A1\",\"Schedule X(b) Catastrophe Risk Return - EP Curve Insurance\")","v":"Schedule X(b) Catastrophe Risk Return - EP Curve Insurance"}]
[null,"i)",{"$f":"HYPERLINK(\"#'Schedule X(b)'!D12:H16\",\"Insurance Exceedance Probability Details\")","v":"Insurance Exceedance Probability Details"},{"$f":"IF(COUNTIF('Schedule X(b)'!E11:H15,0)=20,\"Section is Blank/Field Omitted\",\"True\")","v":"Section is Blank/Field Omitted"},null,null,null,null,null,{"$f":"IF(D174=\"Section is Blank/Field Omitted\",\"Blank\",\"\")","v":"Blank"},{"$f":"IF(J174=\"Blank\",IF(I174=TRUE,\"Yes\",\"\"),\"\")","v":""}]
[{"$f":"A173+1","v":47},{"$f":"HYPERLINK(\"#'Schedule X(c)'!A1\",\"Schedule X(c) Catastrophe Risk Return - EP Curve Region Perils\")","v":"Schedule X(c) Catastrophe Risk Return - EP Curve Region Perils"}]
[null,"i)",{"$f":"HYPERLINK(\"#'Schedule X(c)'!A1\",\"Region Peril Exceedance Probability Details\")","v":"Region Peril Exceedance Probability Details"},{"$f":"IF((COUNTIF('Schedule X(c)'!D16:G20,0)+COUNTIF('Schedule X(c)'!D38:G42,0)+COUNTIF('Schedule X(c)'!D60:G64,0)+COUNTIF('Schedule X(c)'!D82:G86,0)+COUNTIF('Schedule X(c)'!D104:G108,0))>0,\"Section is Blank/Field Omitted\",\"True\")","v":"Section is Blank/Field Omitted"},null,null,null,null,null,{"$f":"IF(D176=\"Section is Blank/Field Omitted\",\"Blank\",\"\")","v":"Blank"},{"$f":"IF(J176=\"Blank\",IF(I176=TRUE,\"Yes\",\"\"),\"\")","v":""}]
[{"$f":"A175+1","v":48},{"$f":"HYPERLINK(\"#'Schedule X(d)'!A1\",\"Schedule X(d) Catastrophe Risk Return - Region Perils Exposure to Zones and Lines of Business\")","v":"Schedule X(d) Catastrophe Risk Return - Region Perils Exposure to Zones and Lines of Business"}]
[null,"i)",{"$f":"HYPERLINK(\"#'Schedule X(d)'!B10:H22\",\"Region Peril Zone Exposures\")","v":"Region Peril Zone Exposures"},{"$f":"IF((COUNTIF('Schedule X(d)'!C9:H21,0))=78,\"Section is Blank/Field Omitted\",\"True\")","v":"True"},null,null,null,null,null,{"$f":"IF(D178=\"Section is Blank/Field Omitted\",\"Blank\",\"\")","v":""},{"$f":"IF(J178=\"Blank\",IF(I178=TRUE,\"Yes\",\"\"),\"\")","v":""}]
[null,"ii)",{"$f":"HYPERLINK(\"#'Schedule X(d)'!B25:H49\",\"Region Peril Lines of Business Exposures\")","v":"Region Peril Lines of Business Exposures"},{"$f":"IF((COUNTIF('Schedule X(d)'!C25:H48,0))=144,\"Section is Blank/Field Omitted\",\"True\")","v":"True"},null,null,null,null,null,{"$f":"IF(D179=\"Section is Blank/Field Omitted\",\"Blank\",\"\")","v":""},""]
[{"$f":"A177+1","v":49},{"$f":"HYPERLINK(\"#'Schedule X(e)'!A1\",\"Schedule X(e) Catastrophe Risk Return - Accumulations Overview\")","v":"Schedule X(e) Catastrophe Risk Return - Accumulations Overview"}]
[null,"i)",{"$f":"HYPERLINK(\"#'Schedule X(e)'!A1\",\"Accumulations Overview Questions\")","v":"Accumulations Overview Questions"},{"$f":"IF((COUNTIF('Schedule X(e)'!C6,0)+COUNTIF('Schedule X(e)'!L8,0)+COUNTIF('Schedule X(e)'!C13,0)+COUNTIF('Schedule X(e)'!C16,0)+COUNTIF('Schedule X(e)'!C19,0)+COUNTIF('Schedule X(e)'!C22,0)+COUNTIF('Schedule X(e)'!C29,0)+COUNTIF('Schedule X(e)'!C32,0)+COUNTIF('Schedule X(e)'!C35,0)+COUNTIF('Schedule X(e)'!C43,0))>0,\"Section is Blank/Field Omitted\",\"True\")","v":"True"},null,null,null,null,null,{"$f":"IF(D181=\"Section is Blank/Field Omitted\",\"Blank\",\"\")","v":""},{"$f":"IF(J181=\"Blank\",IF(I181=TRUE,\"Yes\",\"\"),\"\")","v":""}]
[{"$f":"A180+1","v":50},{"$f":"HYPERLINK(\"#'Schedule X(f)'!A1\",\"Schedule X(f) Catastrophe Risk Return - Data Analysis\")","v":"Schedule X(f) Catastrophe Risk Return - Data Analysis"}]
[null,"i)",{"$f":"HYPERLINK(\"#'Schedule X(f)'!L13\",\"X(f) Total Gross Limits to X(a) Gross Limits Exposed\")","v":"X(f) Total Gross Limits to X(a) Gross Limits Exposed"},{"$f":"IF('Schedule X(f)'!L12=0,\"Schedule is Blank\",IF(ROUND(('Schedule X(f)'!L12-SUM('Schedule X(a)'!E23:E26)),0)=0,\"True\",\"False\"))","v":"Schedule is Blank"},{"$f":"('Schedule X(f)'!L12-SUM('Schedule X(a)'!E23:E26))","v":0},{"$f":"IF(SUM('Schedule X(a)'!E23:E26)=0,0,('Schedule X(f)'!L12-SUM('Schedule X(a)'!E23:E26))/SUM('Schedule X(a)'!E23:E26))","v":0},null,null,null,{"$f":"IF(D183=\"Schedule is Blank\",\"Blank\",\"\")","v":"Blank"},{"$f":"IF(J183=\"Blank\",IF(I183=TRUE,\"Yes\",\"\"),\"\")","v":""},{"$f":"IF(D183=\"False\",\"False.\",\"\")","v":""},{"$f":"IF(L183=\"\",\"\",IF(I183=TRUE,\"Yes\",\"\"))","v":""}]
[null,"ii)",{"$f":"HYPERLINK(\"#'Schedule X(f)'!M13\",\"X(f) Total Net Limits to X(a) Net Limits Exposed\")","v":"X(f) Total Net Limits to X(a) Net Limits Exposed"},{"$f":"IF('Schedule X(f)'!M12=0,\"Schedule is Blank\",IF(ROUND(('Schedule X(f)'!M12-SUM('Schedule X(a)'!J23:J26)),0)=0,\"True\",\"False\"))","v":"Schedule is Blank"},{"$f":"('Schedule X(f)'!M12-SUM('Schedule X(a)'!J23:J26))","v":0},{"$f":"IF(SUM('Schedule X(a)'!J23:J26)=0,0,('Schedule X(f)'!M12-SUM('Schedule X(a)'!J23:J26))/SUM('Schedule X(a)'!J23:J26))","v":0},null,null,null,{"$f":"IF(D184=\"Schedule is Blank\",\"Blank\",\"\")","v":"Blank"},""]
[null,"iii)",{"$f":"HYPERLINK(\"#'Schedule X(f)'!C6:M13\",\"All Contracts Written\")","v":"All Contracts Written"},{"$f":"IF(OR('Schedule X(f)'!K12=0,'Schedule X(f)'!L12=0,'Schedule X(f)'!M12=0),\"Schedule is Blank\",\"True\")","v":"Schedule is Blank"},null,null,null,null,null,"Blank",""]
[null,"iv)",{"$f":"HYPERLINK(\"#'Schedule X(f)'!C15:M22\",\"Contracts that May Be Modeled to Contracts that are Modelable\")","v":"Contracts that May Be Modeled to Contracts that are Modelable"},{"$f":"IF('Schedule X(f)'!K10=0,\"True\",IF('Schedule X(f)'!K21=0,\"Section is Blank\",IF(ROUND('Schedule X(f)'!K21,0)=ROUND('Schedule X(f)'!K10,0),\"True\",\"May Be Modeled not Reconciled\")))","v":"True"},{"$f":"'Schedule X(f)'!K21-'Schedule X(f)'!K10","v":0},{"$f":"IF('Schedule X(f)'!K10=0,0,('Schedule X(f)'!K21-'Schedule X(f)'!K10)/'Schedule X(f)'!K10)","v":0},null,null,null,{"$f":"IF(D186=\"Section is Blank\",\"Blank\",\"\")","v":""},""]
[null,"v)",{"$f":"HYPERLINK(\"#'Schedule X(f)'!C24:M34\",\"Contracts Modeled to Contracts that May Be Modeled\")","v":"Contracts Modeled to Contracts that May Be Modeled"},{"$f":"IF('Schedule X(f)'!K19=0,\"True\",IF('Schedule X(f)'!K33=0,\"Section is Blank\",IF(ROUND('Schedule X(f)'!K33,0)=ROUND('Schedule X(f)'!K19,0),\"True\",\"Modeled not Reconciled\")))","v":"True"},{"$f":"'Schedule X(f)'!K33-'Schedule X(f)'!K19","v":0},{"$f":"IF('Schedule X(f)'!K33=0,0,('Schedule X(f)'!K33-'Schedule X(f)'!K19)/'Schedule X(f)'!K19)","v":0},null,null,null,{"$f":"IF(D187=\"Section is Blank\",\"Blank\",\"\")","v":""},""]
[null,"vi)",{"$f":"HYPERLINK(\"#'Schedule X(f)'!C39:M47\",\"Contracts Not Modeled to Contracts that May Be Modeled\")","v":"Contracts Not Modeled to Contracts that May Be Modeled"},{"$f":"IF('Schedule X(f)'!K20=0,\"True\",IF('Schedule X(f)'!K46=0,\"Section is Blank\",IF(ROUND('Schedule X(f)'!K46,0)=ROUND('Schedule X(f)'!K20,0),\"True\",\"Not Modeled not Reconciled\")))","v":"True"},{"$f":"'Schedule X(f)'!K46-'Schedule X(f)'!K20","v":0},{"$f":"IF('Schedule X(f)'!K46=0,0,('Schedule X(f)'!K46-'Schedule X(f)'!K20)/'Schedule X(f)'!K20)","v":0},null,null,null,"",""]
[null,"vii)",{"$f":"HYPERLINK(\"#'Schedule X(f)'!C56:M65\",\"Contracts Not Able to Model to Contracts that are Not Modelable\")","v":"Contracts Not Able to Model to Contracts that are Not Modelable"},{"$f":"IF('Schedule X(f)'!K11=0,\"True\",IF('Schedule X(f)'!K64=0,\"Section is Blank\",IF(ROUND('Schedule X(f)'!K64,0)=ROUND('Schedule X(f)'!K11,0),\"True\",\"Unable to Model not Reconciled\")))","v":"True"},{"$f":"'Schedule X(f)'!K64-'Schedule X(f)'!K11","v":0},{"$f":"IF('Schedule X(f)'!K64=0,0,('Schedule X(f)'!K64-'Schedule X(f)'!K11)/'Schedule X(f)'!K11)","v":0},null,null,null,"",""]
[{"$f":"A182+1","v":51},{"$f":"HYPERLINK(\"#'Schedule X(g)'!A1\",\"Schedule X(g) Catastrophe Risk Return - Reinsurance Disclosures\")","v":"Schedule X(g) Catastrophe Risk Return - Reinsurance Disclosures"}]
[null,"i)",{"$f":"HYPERLINK(\"#'Schedule X(g)'!A1\",\"Catastrophe Risk Reinsurance Disclosures\")","v":"Catastrophe Risk Reinsurance Disclosures"},{"$f":"IF((COUNTIF('Schedule X(g)'!D10:I18,0))=54,\"Schedule is Blank\",\"True\")","v":"Schedule is Blank"},null,null,null,null,null,{"$f":"IF(D191=\"Schedule is Blank\",\"Blank\",\"\")","v":"Blank"},{"$f":"IF(J191=\"Blank\",IF(I191=TRUE,\"Yes\",\"\"),\"\")","v":""}]
[{"$f":"A190+1","v":52},{"$f":"HYPERLINK(\"#'Schedule X(h)'!A1\",\"Schedule X(h) Catastrophe Risk Return - Insurance Terrorism Exposure\")","v":"Schedule X(h) Catastrophe Risk Return - Insurance Terrorism Exposure"}]
[null,"i)",{"$f":"HYPERLINK(\"#'Schedule X(h)'!A6:K19\",\"Insurance Terrorism Exposure to Conventional Terrorism\")","v":"Insurance Terrorism Exposure to Conventional Terrorism"},{"$f":"IF((COUNTIF('Schedule X(h)'!D9:I18,0))=60,\"Schedule is Blank\",\"True\")","v":"Schedule is Blank"},null,null,null,null,null,{"$f":"IF(D193=\"Schedule is Blank\",\"Blank\",\"\")","v":"Blank"},{"$f":"IF(J193=\"Blank\",IF(I193=TRUE,\"Yes\",\"\"),\"\")","v":""}]
[null,"ii)",{"$f":"HYPERLINK(\"#'Schedule X(h)'!A22:K35\",\"Insurance Terrorism Exposure to NBCR Terrorism\")","v":"Insurance Terrorism Exposure to NBCR Terrorism"},{"$f":"IF((COUNTIF('Schedule X(h)'!D24:I33,0))=60,\"Schedule is Blank\",\"True\")","v":"Schedule is Blank"},null,null,null,null,null,{"$f":"IF(D194=\"Schedule is Blank\",\"Blank\",\"\")","v":"Blank"},""]
[{"$f":"A192+1","v":53},{"$f":"HYPERLINK(\"#'Schedule X(i)'!A1\",\"Schedule X(i) Catastrophe Risk Return - Reinsurance Terrorism Exposure\")","v":"Schedule X(i) Catastrophe Risk Return - Reinsurance Terrorism Exposure"}]
[null,"i)",{"$f":"HYPERLINK(\"#'Schedule X(i)'!A7:K18\",\"Reinsurance Terrorism Exposure to Conventional Terrorism\")","v":"Reinsurance Terrorism Exposure to Conventional Terrorism"},{"$f":"IF((COUNTIF('Schedule X(i)'!E9:J18,0))=60,\"Schedule is Blank\",\"True\")","v":"Schedule is Blank"},null,null,null,null,null,{"$f":"IF(D196=\"Schedule is Blank\",\"Blank\",\"\")","v":"Blank"},{"$f":"IF(J196=\"Blank\",IF(I196=TRUE,\"Yes\",\"\"),\"\")","v":""}]
[null,"ii)",{"$f":"HYPERLINK(\"#'Schedule X(h)'!A21:K32\",\"Reinsurance Terrorism Exposure to NBCR Terrorism\")","v":"Reinsurance Terrorism Exposure to NBCR Terrorism"},{"$f":"IF((COUNTIF('Schedule X(i)'!E24:J33,0))=60,\"Schedule is Blank\",\"True\")","v":"Schedule is Blank"},null,null,null,null,false,{"$f":"IF(D197=\"Schedule is Blank\",\"Blank\",\"\")","v":"Blank"},""]
[{"$f":"A195+1","v":54},{"$f":"HYPERLINK(\"#'Schedule X(j)'!A1\",\"Schedule X(j) Catastrophe Risk Return - Assumed Exchange Rates\")","v":"Schedule X(j) Catastrophe Risk Return - Assumed Exchange Rates"}]
[]
[null,"Loss Triangles/Loss Reserve Reconciliation (Class 4 and 3B Insurers Only)"]
[{"$f":"A198+1","v":55},{"$f":"HYPERLINK(\"#'Schedule XI(a)'!A1\",\"Schedule XI(a) Schedule of Loss Triangles - Summary\")","v":"Schedule XI(a) Schedule of Loss Triangles - Summary"}]
[{"$f":"A201+1","v":56},{"$f":"HYPERLINK(\"#'Sch XI(a)(i)'!A1\",\"Schedule XI(a)(i) Schedule of Loss Triangles - Property Castarophe\")","v":"Schedule XI(a)(i) Schedule of Loss Triangles - Property Castarophe"}]
[57,{"$f":"HYPERLINK(\"#'Sch XI(a)(ii)'!A1\",\"Schedule XI(a)(ii) Schedule of Loss Triangles - Property\")","v":"Schedule XI(a)(ii) Schedule of Loss Triangles - Property"}]
[58,{"$f":"HYPERLINK(\"#'Sch XI(a)(iii)'!A1\",\"Schedule XI(a)(iii) Schedule of Loss Triangles - Property Non-Proportional\")","v":"Schedule XI(a)(iii) Schedule of Loss Triangles - Property Non-Proportional"}]
[59,{"$f":"HYPERLINK(\"#'Sch XI(a)(iv)'!A1\",\"Schedule XI(a)(iv) Schedule of Loss Triangles - Casualty\")","v":"Schedule XI(a)(iv) Schedule of Loss Triangles - Casualty"}]
[60,{"$f":"HYPERLINK(\"#'Sch XI(a)(v)'!A1\",\"Schedule XI(a)(v) Schedule of Loss Triangles - Casualty Non-Proportional\")","v":"Schedule XI(a)(v) Schedule of Loss Triangles - Casualty Non-Proportional"}]
[61,{"$f":"HYPERLINK(\"#'Sch XI(a)(vi)'!A1\",\"Schedule XI(a)(vi) Schedule of Loss Triangles - Financial Lines\")","v":"Schedule XI(a)(vi) Schedule of Loss Triangles - Financial Lines"}]
[62,{"$f":"HYPERLINK(\"#'Sch XI(a)(vii)'!A1\",\"Schedule XI(a)(vii) Schedule of Loss Triangles - Other Specialty Lines\")","v":"Schedule XI(a)(vii) Schedule of Loss Triangles - Other Specialty Lines"}]
[63,{"$f":"HYPERLINK(\"#'Sch XI(a)(viii)'!A1\",\"Schedule XI(a)(viii) Schedule of Loss Triangles - Structured/Finite Lines\")","v":"Schedule XI(a)(viii) Schedule of Loss Triangles - Structured/Finite Lines"}]
[]
[{"$f":"A209+1","v":64},{"$f":"HYPERLINK(\"#'Schedule XI(b) (EBS)'!A1\",\"Schedule XI(b) Schedule of Reconciliation - Summary\")","v":"Schedule XI(b) Schedule of Reconciliation - Summary"}]
[null,"i)",{"$f":"HYPERLINK(\"#'Schedule XI(b) (EBS)'!A1\",\"Schedule of Loss Reserve Reconciliation (EBS)\")","v":"Schedule of Loss Reserve Reconciliation (EBS)"},{"$f":"IF('Company Information'!F11=\"Class 3A\",\"N/A\",IF('Schedule XI(b)'!D24=0,\"Schedule is Blank\",'Schedule XI(b)'!D26))","v":"Schedule is Blank"},{"$f":"'Form 1EBS'!F115-'Schedule XI(b)'!D24","v":0},{"$f":"IF('Schedule XI(b)'!D24=0,0,('Form 1EBS'!F115-'Schedule XI(b)'!D24)/'Form 1EBS'!F115)","v":0},null,null,null,{"$f":"IF(D212=\"Schedule is Blank\",\"Blank\",\"\")","v":"Blank"},{"$f":"IF(J212=\"Blank\",IF(I212=TRUE,\"Yes\",\"\"),\"\")","v":""},{"$f":"IF(D212=\"False\",\"False.\",\"\")","v":""},{"$f":"IF(L212=\"\",\"\",IF(I212=TRUE,\"Yes\",\"\"))","v":""}]
[{"$f":"A211+1","v":65},{"$f":"HYPERLINK(\"#'Sch XI(b)(i) (EBS)'!A1\",\"Schedule XI(b)(i) Schedule of Reserve Reconciliation - Property Castarophe\")","v":"Schedule XI(b)(i) Schedule of Reserve Reconciliation - Property Castarophe"}]
[{"$f":"A213+1","v":66},{"$f":"HYPERLINK(\"#'Sch XI(b)(ii) (EBS)'!A1\",\"Schedule XI(b)(ii) Schedule of Reserve Reconciliation - Property\")","v":"Schedule XI(b)(ii) Schedule of Reserve Reconciliation - Property"}]
[67,{"$f":"HYPERLINK(\"#'Sch XI(b)(iii) (EBS)'!A1\",\"Schedule XI(b)(iii) Schedule of Reserve Reconciliation - Property Non-Proportional\")","v":"Schedule XI(b)(iii) Schedule of Reserve Reconciliation - Property Non-Proportional"}]
[68,{"$f":"HYPERLINK(\"#'Sch XI(b)(iv) (EBS)'!A1\",\"Schedule XI(b)(iv) Schedule of Reserve Reconciliation - Casualty\")","v":"Schedule XI(b)(iv) Schedule of Reserve Reconciliation - Casualty"}]
[69,{"$f":"HYPERLINK(\"#'Sch XI(b)(v) (EBS)'!A1\",\"Schedule XI(b)(v) Schedule of Reserve Reconciliation - Casualty Non-Proportional\")","v":"Schedule XI(b)(v) Schedule of Reserve Reconciliation - Casualty Non-Proportional"}]
[70,{"$f":"HYPERLINK(\"#'Sch XI(b)(vi) (EBS)'!A1\",\"Schedule XI(b)(vi) Schedule of Reserve Reconciliation - Financial Lines\")","v":"Schedule XI(b)(vi) Schedule of Reserve Reconciliation - Financial Lines"}]
[71,{"$f":"HYPERLINK(\"#'Sch XI(b)(vii) (EBS)'!A1\",\"Schedule XI(b)(vii) Schedule of Reserve Reconciliation - Other Specialty Lines\")","v":"Schedule XI(b)(vii) Schedule of Reserve Reconciliation - Other Specialty Lines"}]
[72,{"$f":"HYPERLINK(\"#'Sch XI(b)(viii) (EBS)'!A1\",\"Schedule XI(b)(viii) Schedule of Reserve Reconciliation - Structured/Finite Lines\")","v":"Schedule XI(b)(viii) Schedule of Reserve Reconciliation - Structured/Finite Lines"}]
[]
[null,"Eligible Capital"]
[{"$f":"A220+1","v":73},{"$f":"HYPERLINK(\"#'Schedule XII(a)'!A1\",\"Schedule XII(a) - Schedule of Eligible Capital\")","v":"Schedule XII(a) - Schedule of Eligible Capital"}]
[null,"i)",{"$f":"HYPERLINK(\"#'Schedule XII(a)'!G26:G30\",\"Policyholder Obligations equals Form 1EBS\")","v":"Policyholder Obligations equals Form 1EBS"},{"$f":"IF('Schedule XII(a)'!H30=0,\"N/A\",IF('Schedule XII(a)'!G28=0,\"Schedule Not Completed\",IF(ROUND('Schedule XII(a)'!H32=0,0),\"True\",\"False\")))","v":"N/A"},{"$f":"'Schedule XII(a)'!G28-('Form 1EBS'!F98+'Form 1EBS'!F108)","v":0},{"$f":"IF('Schedule XII(a)'!G28=0,0,('Schedule XII(a)'!G28-('Form 1EBS'!F98+'Form 1EBS'!F108))/('Form 1EBS'!F98+'Form 1EBS'!F108))","v":0},null,null,null,{"$f":"IF(D224=\"Schedule Not Completed\",\"Blank\",\"\")","v":""},{"$f":"IF(J224=\"Blank\",IF(I224=TRUE,\"Yes\",\"\"),\"\")","v":""}]
[]
[null,"ii)",{"$f":"HYPERLINK(\"#'Schedule XII(a) (EBS)'!H26:H30\",\"Encumbered Assets equals Form 1EBS\")","v":"Encumbered Assets equals Form 1EBS"},{"$f":"IF('Schedule XII(a)'!H34=0,\"N/A\",IF('Schedule XII(a)'!H28=0,\"Schedule Not Completed\",IF('Form 1EBS'!F193='Schedule XII(a)'!H28,\"True\",\"False\")))","v":"N/A"},{"$f":"'Schedule XII(a)'!H28-'Form 1EBS'!F193","v":0},{"$f":"IF('Schedule XII(a)'!H28=0,0,('Schedule XII(a)'!H28-'Form 1EBS'!F193)/'Form 1EBS'!F193)","v":0},null,null,null,{"$f":"IF(D226=\"Schedule Not Completed\",\"Blank\",\"\")","v":""},{"$f":"IF(J226=\"Blank\",IF(I226=TRUE,\"Yes\",\"\"),\"\")","v":""}]
[null,"iii)",{"$f":"HYPERLINK(\"#'Schedule XII(a)'!J79:J81\",\"Eligible Capital equals Economic Available Capital & Surplus\")","v":"Eligible Capital equals Economic Available Capital & Surplus"},{"$f":"IF('Schedule XII(a)'!J79=0,\"N/A\",'Schedule XII(a)'!J81)","v":"N/A"},{"$f":"'Schedule XII(a)'!J83","v":0},{"$f":"IF('Schedule XII(a)'!J79=0,0,('Schedule XII(a)'!J83/'Schedule XII(a)'!J9))","v":0},null,null,null,{"$f":"IF(D227=\"N/A\",\"Blank\",\"\")","v":"Blank"},{"$f":"IF(J227=\"Blank\",IF(I227=TRUE,\"Yes\",\"\"),\"\")","v":""},{"$f":"IF(D227=\"False\",\"False.\",\"\")","v":""},{"$f":"IF(L227=\"\",\"\",IF(I227=TRUE,\"Yes\",\"\"))","v":""}]
[{"$f":"A223+1","v":74},{"$f":"HYPERLINK(\"#'Schedule XII(b)'!A1\",\"Schedule XII(b) - Schedule of Eligible Capital - Additional Details\")","v":"Schedule XII(b) - Schedule of Eligible Capital - Additional Details"}]
[]
[null,"Schedule XVI - Schedule of Regulated Non-Insurance Financial Operating Entities"]
[{"$f":"A223+1","v":74},{"$f":"HYPERLINK(\"#'Schedule XVI'!A1\",\"Schedule XVI - Schedule of Regulated Non-Insurance Financial Operating Entities\")","v":"Schedule XVI - Schedule of Regulated Non-Insurance Financial Operating Entities"}]
[null,"i)",{"$f":"HYPERLINK(\"#'Schedule XVI'!A1\",\"Schedule of Regulated Non-Insurance Financial Operating Entities\")","v":"Schedule of Regulated Non-Insurance Financial Operating Entities"},{"$f":"IF('Schedule XVI'!B11=0,\"Schedule is Blank\",\"True\")","v":"Schedule is Blank"},null,null,null,null,null,{"$f":"IF(D232=\"Schedule is Blank\",\"Blank\",\"\")","v":"Blank"},{"$f":"IF(J232=\"Blank\",IF(I232=TRUE,\"Yes\",\"\"),\"\")","v":""}]
[]
[null,"Schedule XVII - Schedule of Solvency"]
[{"$f":"A231+1","v":75},{"$f":"HYPERLINK(\"#'Schedule XVII'!A1\",\"Schedule XVII - Schedule of Solvency\")","v":"Schedule XVII - Schedule of Solvency"}]
[null,"i)",{"$f":"HYPERLINK(\"#'Schedule XVII'!A1\",\"Schedule of Solvency\")","v":"Schedule of Solvency"},{"$f":"IF('Schedule XVII'!J211=0,\"Schedule is Blank\",\"True\")","v":"Schedule is Blank"},null,null,null,null,false,{"$f":"IF(D236=\"Schedule is Blank\",\"Blank\",\"\")","v":"Blank"},{"$f":"IF(J236=\"Blank\",IF(I236=TRUE,\"Yes\",\"\"),\"\")","v":""}]
[]
[null,"Commercial Insurers Risk Assessment (CIRA)"]
[{"$f":"A235+1","v":76},{"$f":"HYPERLINK(\"#'Corp Gov'!A1\",\"Corporate Goverance\")","v":"Corporate Goverance"},null,{"$f":"IF('Corp Gov'!D19=0,\"Schedule is Blank\",\"True\")","v":"Schedule is Blank"},null,null,null,null,null,{"$f":"IF(D239=\"Schedule is Blank\",\"Blank\",\"\")","v":"Blank"},{"$f":"IF(J239=\"Blank\",IF(I239=TRUE,\"Yes\",\"\"),\"\")","v":""}]
[{"$f":"A239+1","v":77},{"$f":"HYPERLINK(\"#'Risk Man'!A1\",\"Risk Management\")","v":"Risk Management"},null,{"$f":"IF('Risk Man'!D18=0,\"Schedule is Blank\",\"True\")","v":"Schedule is Blank"},null,null,null,null,null,{"$f":"IF(D240=\"Schedule is Blank\",\"Blank\",\"\")","v":"Blank"},""]
[{"$f":"A240+1","v":78},{"$f":"HYPERLINK(\"#'Identification'!A1\",\"Identification (Class 4 & 3B Insurers Only)\")","v":"Identification (Class 4 & 3B Insurers Only)"},null,{"$f":"IF('Company Information'!$F$11=\"Class 3A\",\"N/A\",IF(Identification!M19=0,\"Schedule is Blank\",\"True\"))","v":"Schedule is Blank"},null,null,null,null,null,"Blank",""]
[{"$f":"A241+1","v":79},{"$f":"HYPERLINK(\"#'Measurement'!A1\",\"Measurement (Class 4 & 3B Insurers Only)\")","v":"Measurement (Class 4 & 3B Insurers Only)"},null,{"$f":"IF('Company Information'!$F$11=\"Class 3A\",\"N/A\",IF(Measurement!M19=0,\"Schedule is Blank\",\"True\"))","v":"Schedule is Blank"},null,null,null,null,null,"Blank",""]
[{"$f":"A242+1","v":80},{"$f":"HYPERLINK(\"#'Response'!A1\",\"Response (Class 4 & 3B Insurers Only)\")","v":"Response (Class 4 & 3B Insurers Only)"},null,{"$f":"IF('Company Information'!$F$11=\"Class 3A\",\"N/A\",IF(Response!M19=0,\"Schedule is Blank\",\"True\"))","v":"Schedule is Blank"},null,null,null,null,null,"Blank",""]
[{"$f":"A243+1","v":81},{"$f":"HYPERLINK(\"#'Monitoring & Reporting'!A1\",\"Monitoring & Reporting (Class 4 & 3B Insurers Only)\")","v":"Monitoring & Reporting (Class 4 & 3B Insurers Only)"},null,{"$f":"IF('Company Information'!$F$11=\"Class 3A\",\"N/A\",IF('Monitoring & Reporting'!M19=0,\"Schedule is Blank\",\"True\"))","v":"Schedule is Blank"},null,null,null,null,null,"Blank",""]
[]
[null,"Summary"]
[{"$f":"A244+1","v":82},{"$f":"HYPERLINK(\"#'Summary'!A1\",\"Summary Tab\")","v":"Summary Tab"}]
[null,"i)",{"$f":"HYPERLINK(\"#'Summary'!B60:F60\",\"ECR Ratio Met\")","v":"ECR Ratio Met"},{"$f":"IF(Summary!N87=0,\"EBS is Blank\",IF(Summary!N121>100%,\"ECR Ratio of \"&ROUND(Summary!N121,2)*100&\"% Met\",\"ECR of \"&ROUND(Summary!N121,2)*100&\"% is not Met\"))","v":"EBS is Blank"}]
[]
[null,"Company Specific Parameters"]
[{"$f":"A247+1","v":83},{"$f":"HYPERLINK(\"#'Company Specific Parameters'!A1\",\"Company Specific Parameters\")","v":"Company Specific Parameters"}]
[null,"i)",{"$f":"HYPERLINK(\"#'Company Specific Parameters'!A1\",\"Capital Charge has been amended\")","v":"Capital Charge has been amended"},{"$f":"IF(Summary!N83=0,\"No\",\"Adjustment made to a BSCR Capital Charge\")","v":"No"},{"$f":"Summary!G83","v":0},{"$f":"IF(Summary!G83=0,0,(Summary!G83-Summary!G71)/Summary!G71)","v":0}]
[]
[null,null,null,null,null,null,null,null,null,null,null,""]

{"sheet":"Index","index":5,"n_rows":89,"n_cols":40,"rows_kept":89,"cut":false,"hidden":false,"merged":[[7,2,8,7],[88,25,89,30],[40,39,41,44],[22,39,23,44],[25,2,26,7],[40,32,41,37],[28,16,29,21],[31,32,32,37],[34,9,35,14],[73,2,74,7],[49,25,50,30],[52,25,53,30],[40,25,41,30],[28,9,29,14],[34,2,35,7],[55,39,56,44],[52,32,53,37],[55,32,56,37],[49,39,50,44],[43,32,44,37],[43,39,44,44],[49,32,50,37],[52,39,53,44],[79,2,80,7],[85,2,86,7],[85,16,86,21],[85,32,86,37],[82,2,83,7],[82,9,83,14],[70,25,71,30],[70,32,71,37],[79,9,80,14],[79,25,80,30],[82,25,83,30],[82,39,83,44],[70,39,71,44],[79,39,80,44],[73,9,74,14],[25,32,26,37],[25,39,26,44],[43,2,44,7],[49,16,50,21],[43,9,44,14],[49,2,50,7],[40,2,41,7],[70,16,71,21],[58,9,59,14],[52,16,53,21],[49,9,50,14],[31,25,32,30],[31,39,32,44],[40,9,41,14],[79,32,80,37],[82,16,83,21],[82,32,83,37],[28,2,29,7],[79,16,80,21],[22,25,23,30],[25,9,26,14],[25,16,26,21],[22,9,23,14],[22,16,23,21],[70,2,71,7],[64,32,65,37],[55,25,56,30],[22,2,23,7],[31,9,32,14],[40,16,41,21],[25,25,26,30],[28,25,29,30],[64,25,65,30],[70,9,71,14],[31,16,32,21],[19,2,20,7],[19,9,20,14],[19,16,20,21],[19,32,20,37],[16,2,17,7],[16,9,17,14],[16,16,17,21],[13,2,14,7],[13,9,14,14],[13,16,14,21],[19,25,20,30],[13,39,14,44],[4,9,5,14],[19,39,20,44],[4,39,5,44],[4,32,5,37],[16,32,17,37],[16,39,17,44],[13,32,14,37],[13,25,14,30],[88,16,89,21],[88,2,89,7],[88,32,89,37],[88,39,89,44],[28,32,29,37],[28,39,29,44],[31,2,32,7],[4,16,5,21],[4,25,5,30],[16,25,17,30],[22,32,23,37],[4,2,5,7],[55,16,56,21],[52,9,53,14],[55,9,56,14],[52,2,53,7],[55,2,56,7],[88,9,89,14],[64,2,65,7],[64,9,65,14],[64,16,65,21],[85,39,86,44],[85,9,86,14],[85,25,86,30]]}
[null,"INDEX"]
[null,{"$f":"'Company Information'!C7","v":"Enter Company Name"}]
[null,"CLICK BUTTON TO NAVIGATE"]
[]
[null,null,{"$f":"HYPERLINK(\"#'Submission'!A1\",\"Submission\")","v":"Submission"},null,null,null,null,null,null,{"$f":"HYPERLINK(\"#'Content'!A1\",\"Content\")","v":"Content"},null,null,null,null,null,null,{"$f":"HYPERLINK(\"#'Attachments'!A1\",\"Attachments\")","v":"Attachments"},null,null,null,null,null,null,null,null,{"$f":"HYPERLINK(\"#'Zones'!A1\",\"Zones\")","v":"Zones"},null,null,null,null,null,null,{"$f":"HYPERLINK(\"#'Company Information'!A1\",\"Company Information\")","v":"Company Information"},null,null,null,null,null,null,{"$f":"HYPERLINK(\"#'Declaration'!A1\",\"Declaration Sheet\")","v":"Declaration Sheet"}]
[]
[]
[null,null,{"$f":"HYPERLINK(\"#'SAR & Sanc. (All)'!A1\",\"SAR & Sanctions (All insurers)\")","v":"SAR & Sanctions (All insurers)"}]
[]
[]
[]
[null,"STATUTORY AND BSCR SCHEDULES"]
[]
[null,null,{"$f":"HYPERLINK(\"#'Information Sheet'!A1\",\"Information Sheet\")","v":"Information Sheet"},null,null,null,null,null,null,{"$f":"HYPERLINK(\"#'Form 1SFS'!A1\",\"Form 1SFS \nBalance Sheet\")","v":"Form 1SFS \nBalance Sheet"},null,null,null,null,null,null,{"$f":"HYPERLINK(\"#'Form 2SFS'!A1\",\"Form 2SFS \nIncome Stmt\")","v":"Form 2SFS \nIncome Stmt"},null,null,null,null,null,null,null,null,{"$f":"HYPERLINK(\"#'Form 8SFS'!A1\",\"Form 8SFS \nCapital & Surplus\")","v":"Form 8SFS \nCapital & Surplus"},null,null,null,null,null,null,{"$f":"HYPERLINK(\"#'Form 1EBS'!A1\",\"Form 1EBS \nBalance Sheet\")","v":"Form 1EBS \nBalance Sheet"},null,null,null,null,null,null,{"$f":"HYPERLINK(\"#'Schedule II'!A1\",\"Sch II     Investments\")","v":"Sch II     Investments"}]
[]
[]
[null,null,{"$f":"HYPERLINK(\"#'Schedule II (EBS)'!A1\",\"Sch II (EBS)    Investments\")","v":"Sch II (EBS)    Investments"},null,null,null,null,null,null,{"$f":"HYPERLINK(\"#'Schedule IIA'!A1\",\"Sch IIA          Funds Held\")","v":"Sch IIA          Funds Held"},null,null,null,null,null,null,{"$f":"HYPERLINK(\"#'Schedule IIA (EBS)'!A1\",\"Sch IIA (EBS)         Funds Held\")","v":"Sch IIA (EBS)         Funds Held"},null,null,null,null,null,null,null,null,{"$f":"HYPERLINK(\"#'Investment Reconciliation'!A1\",\"Investment Reconciliation\")","v":"Investment Reconciliation"},null,null,null,null,null,null,{"$f":"HYPERLINK(\"#'Schedule IIB (EBS)'!A1\",\"Sch IIB (EBS)   Investments\")","v":"Sch IIB (EBS)   Investments"},null,null,null,null,null,null,{"$f":"HYPERLINK(\"#'Schedule IIC (EBS)'!A1\",\"Sch IIC (EBS)         Funds Held\")","v":"Sch IIC (EBS)         Funds Held"}]
[]
[]
[null,null,{"$f":"HYPERLINK(\"#'SCHEDULE IID (EBS)'!A1\",\"Sch IID (EBS) Segregated Acc\")","v":"Sch IID (EBS) Segregated Acc"},null,null,null,null,null,null,{"$f":"HYPERLINK(\"#'SCHEDULE IIE (EBS)'!A1\",\"Sch IIE (EBS) Deposits\")","v":"Sch IIE (EBS) Deposits"},null,null,null,null,null,null,{"$f":"HYPERLINK(\"#'SCHEDULE IIF (EBS)'!A1\",\"Sch IIF (EBS) \nOther Sundry\")","v":"Sch IIF (EBS) \nOther Sundry"},null,null,null,null,null,null,null,null,{"$f":"HYPERLINK(\"#'SCHEDULE III'!A1\",\"Sch III \nReserves By LOB\")","v":"Sch III \nReserves By LOB"},null,null,null,null,null,null,{"$f":"HYPERLINK(\"#'SCHEDULE III (EBS)'!A1\",\"Sch III (EBS)\nReserves by LOB\")","v":"Sch III (EBS)\nReserves by LOB"},null,null,null,null,null,null,{"$f":"HYPERLINK(\"#'SCHEDULE IIIA (EBS)'!A1\",\"Sch IIIA (EBS)\nReserves by Zone\")","v":"Sch IIIA (EBS)\nReserves by Zone"}]
[]
[]
[null,null,{"$f":"HYPERLINK(\"#'SCHEDULE IV'!A1\",\"Sch IV\nPremium by LOB\")","v":"Sch IV\nPremium by LOB"},null,null,null,null,null,null,{"$f":"HYPERLINK(\"#'SCHEDULE IVA (EBS)'!A1\",\"Sch IVA (EBS)\nPremium by LOB\")","v":"Sch IVA (EBS)\nPremium by LOB"},null,null,null,null,null,null,{"$f":"HYPERLINK(\"#'SCHEDULE IVC (EBS)'!A1\",\"Sch IVC (EBS) Premium by Zone\")","v":"Sch IVC (EBS) Premium by Zone"},null,null,null,null,null,null,null,null,{"$f":"HYPERLINK(\"#'SCHEDULE IVD (EBS)'!A1\",\"Sch IVD (EBS) Exposure by LOB\")","v":"Sch IVD (EBS) Exposure by LOB"},null,null,null,null,null,null,{"$f":"HYPERLINK(\"#'SCHEDULE IVE (EBS)'!A1\",\"Sch IVE (EBS) Exposure by Zone\")","v":"Sch IVE (EBS) Exposure by Zone"},null,null,null,null,null,null,{"$f":"HYPERLINK(\"#'SCHEDULE V'!A1\",\"Sch V \nRisk Mgmt\")","v":"Sch V \nRisk Mgmt"}]
[]
[]
[null,null,{"$f":"HYPERLINK(\"#'SCHEDULE V(a)'!A1\",\"Sch V(a) Governance\")","v":"Sch V(a) Governance"},null,null,null,null,null,null,{"$f":"HYPERLINK(\"#'SCHEDULE V(c)'!A1\",\"Sch V(c) \nIntra-Group\")","v":"Sch V(c) \nIntra-Group"},null,null,null,null,null,null,{"$f":"HYPERLINK(\"#'SCHEDULE V(e)'!A1\",\"Sch V(e) \nStress Scenario\")","v":"Sch V(e) \nStress Scenario"},null,null,null,null,null,null,null,null,{"$f":"HYPERLINK(\"#'SCHEDULE V(g)'!A1\",\"Sch V(g) \nGAAP-BSCR Rec\")","v":"Sch V(g) \nGAAP-BSCR Rec"},null,null,null,null,null,null,{"$f":"HYPERLINK(\"#'SCHEDULE V(k)'!A1\",\"Sch V(k) \nDeposit Assets\")","v":"Sch V(k) \nDeposit Assets"},null,null,null,null,null,null,{"$f":"HYPERLINK(\"#'SCHEDULE V(l)'!A1\",\"Sch V(l) \nSegregated Acc\")","v":"Sch V(l) \nSegregated Acc"}]
[]
[]
[null,null,{"$f":"HYPERLINK(\"#'SCHEDULE V(m)'!A1\",\"Sch V(m) \nAlt. Capital\")","v":"Sch V(m) \nAlt. Capital"},null,null,null,null,null,null,{"$f":"HYPERLINK(\"#'SCHEDULE VI'!A1\",\"Sch VI\nFixed Income Sec\")","v":"Sch VI\nFixed Income Sec"},null,null,null,null,null,null,{"$f":"HYPERLINK(\"#'SCHEDULE VI (EBS)'!A1\",\"Sch VI (EBS)\nFixed Income Sec\")","v":"Sch VI (EBS)\nFixed Income Sec"},null,null,null,null,null,null,null,null,{"$f":"HYPERLINK(\"#'SCHEDULE XVI'!A1\",\"Sch XVI \nNon-Insurance\")","v":"Sch XVI \nNon-Insurance"},null,null,null,null,null,null,{"$f":"HYPERLINK(\"#'SCHEDULE XVII'!A1\",\"Sch XVII \nSolvency Analysis\")","v":"Sch XVII \nSolvency Analysis"},null,null,null,null,null,null,{"$f":"HYPERLINK(\"#'SCHEDULE XVIII'!A1\",\"Sch XVIII \nCeded Reins\")","v":"Sch XVIII \nCeded Reins"}]
[]
[]
[null,null,{"$f":"HYPERLINK(\"#'SCHEDULE XVIII (EBS)'!A1\",\"Sch XVIII (EBS)\nCeded Reins\")","v":"Sch XVIII (EBS)\nCeded Reins"},null,null,null,null,null,null,{"$f":"HYPERLINK(\"#'SCHEDULE XIX'!A1\",\"Sch XIX \nCash Counterpart\")","v":"Sch XIX \nCash Counterpart"},null,null,null,null,null,null,{"$f":"HYPERLINK(\"#'SCHEDULE XXIA'!A1\",\"Sch XXIA\nCash Counterpart\")","v":"Sch XXIA\nCash Counterpart"},null,null,null,null,null,null,null,null,{"$f":"HYPERLINK(\"#'SCHEDULE XX'!A1\",\"Sch XX \nCurrency Analysis\")","v":"Sch XX \nCurrency Analysis"},null,null,null,null,null,null,{"$f":"HYPERLINK(\"#'SCHEDULE XXA'!A1\",\"Sch XXA\nCurrency Analysis\")","v":"Sch XXA\nCurrency Analysis"},null,null,null,null,null,null,{"$f":"HYPERLINK(\"#'SCHEDULE XXI'!A1\",\"Sch XXI \nCon Risk\")","v":"Sch XXI \nCon Risk"}]
[]
[]
[null,null,{"$f":"HYPERLINK(\"#'SCHEDULE XXIA'!A1\",\"Sch XXIA \nCon Risk\")","v":"Sch XXIA \nCon Risk"},null,null,null,null,null,null,{"$f":"HYPERLINK(\"#'SCHEDULE XXIII'!A1\",\"Sch XXIII \nInterest Rates\")","v":"Sch XXIII \nInterest Rates"}]
[]
[]
[]
[null,"CATASTROPHE RISK RETURN"]
[]
[null,null,{"$f":"HYPERLINK(\"#'Schedule X(a)'!A1\",\"Schedule X(a)\")","v":"Schedule X(a)"},null,null,null,null,null,null,{"$f":"HYPERLINK(\"#'Schedule X(b)'!A1\",\"Schedule X(b)\")","v":"Schedule X(b)"},null,null,null,null,null,null,{"$f":"HYPERLINK(\"#'Schedule X(c)'!A1\",\"Schedule X(c)\")","v":"Schedule X(c)"},null,null,null,null,null,null,null,null,{"$f":"HYPERLINK(\"#'Schedule X(d)'!A1\",\"Schedule X(d)\")","v":"Schedule X(d)"},null,null,null,null,null,null,{"$f":"HYPERLINK(\"#'Schedule X(e)'!A1\",\"Schedule X(e)\")","v":"Schedule X(e)"},null,null,null,null,null,null,{"$f":"HYPERLINK(\"#'Schedule X(f)'!A1\",\"Schedule X(f)\")","v":"Schedule X(f)"}]
[]
[]
[null,null,{"$f":"HYPERLINK(\"#'Schedule X(g)'!A1\",\"Schedule X(g)\")","v":"Schedule X(g)"},null,null,null,null,null,null,{"$f":"HYPERLINK(\"#'Schedule X(h)'!A1\",\"Schedule X(h)\")","v":"Schedule X(h)"},null,null,null,null,null,null,null,null,null,null,null,null,null,null,null,null,null,null,null,null,null,null,{"$f":"HYPERLINK(\"#'Schedule X(i)'!A1\",\"Schedule X(i)\")","v":"Schedule X(i)"},null,null,null,null,null,null,{"$f":"HYPERLINK(\"#'Schedule X(j)'!A1\",\"Schedule X(j)\")","v":"Schedule X(j)"}]
[]
[]
[]
[null,"SCHEDULE OF LOSS TRIANGLES (Class 4/3B Only)",null,null,null,null,null,null,null,null,null,null,null,null,null,null,null,null,null,null,null,null,null,null,"RECONCILIATION OF NET LOSS RESERVES (Class 4/3B Only)"]
[]
[null,null,{"$f":"HYPERLINK(\"#'Schedule XI'!A1\",\"Schedule XI\")","v":"Schedule XI"},null,null,null,null,null,null,{"$f":"HYPERLINK(\"#'Schedule XI(a)'!A1\",\"Schedule XI(a)\")","v":"Schedule XI(a)"},null,null,null,null,null,null,{"$f":"HYPERLINK(\"#'Sch XI(a)(i)'!A1\",\"Sch XI(a)(i)\")","v":"Sch XI(a)(i)"},null,null,null,null,null,null,null,null,{"$f":"HYPERLINK(\"#'Schedule XI(b)'!A1\",\"Schedule XI(b)\")","v":"Schedule XI(b)"},null,null,null,null,null,null,{"$f":"HYPERLINK(\"#'Sch XI(b)(i)'!A1\",\"Sch XI(b)(i)\")","v":"Sch XI(b)(i)"},null,null,null,null,null,null,{"$f":"HYPERLINK(\"#'Sch XI(b)(ii)'!A1\",\"Sch XI(b)(ii)\")","v":"Sch XI(b)(ii)"}]
[]
[]
[null,null,{"$f":"HYPERLINK(\"#'Sch XI(a)(ii)'!A1\",\"Sch XI(a)(ii)\")","v":"Sch XI(a)(ii)"},null,null,null,null,null,null,{"$f":"HYPERLINK(\"#'Sch XI(a)(iii)'!A1\",\"Sch XI(a)(iii)\")","v":"Sch XI(a)(iii)"},null,null,null,null,null,null,{"$f":"HYPERLINK(\"#'Sch XI(a)(iv)'!A1\",\"Sch XI(a)(iv)\")","v":"Sch XI(a)(iv)"},null,null,null,null,null,null,null,null,{"$f":"HYPERLINK(\"#'Sch XI(b)(iii)'!A1\",\"Sch XI(b)(iii)\")","v":"Sch XI(b)(iii)"},null,null,null,null,null,null,{"$f":"HYPERLINK(\"#'Sch XI(b)(iv)'!A1\",\"Sch XI(b)(iv)\")","v":"Sch XI(b)(iv)"},null,null,null,null,null,null,{"$f":"HYPERLINK(\"#'Sch XI(b)(v)'!A1\",\"Sch XI(b)(v)\")","v":"Sch XI(b)(v)"}]
[]
[]
[null,null,{"$f":"HYPERLINK(\"#'Sch XI(a)(v)'!A1\",\"Sch XI(a)(v)\")","v":"Sch XI(a)(v)"},null,null,null,null,null,null,{"$f":"HYPERLINK(\"#'Sch XI(a)(vi)'!A1\",\"Sch XI(a)(vi)\")","v":"Sch XI(a)(vi)"},null,null,null,null,null,null,{"$f":"HYPERLINK(\"#'Sch XI(a)(vii)'!A1\",\"Sch XI(a)(vii)\")","v":"Sch XI(a)(vii)"},null,null,null,null,null,null,null,null,{"$f":"HYPERLINK(\"#'Sch XI(b)(vi)'!A1\",\"Sch XI(b)(vi)\")","v":"Sch XI(b)(vi)"},null,null,null,null,null,null,{"$f":"HYPERLINK(\"#'Sch XI(b)(vii)'!A1\",\"Sch XI(b)(vii)\")","v":"Sch XI(b)(vii)"},null,null,null,null,null,null,{"$f":"HYPERLINK(\"#'Sch XI(b)(viii)'!A1\",\"Sch XI(b)(viii)\")","v":"Sch XI(b)(viii)"}]
[]
[]
[null,null,null,null,null,null,null,null,null,{"$f":"HYPERLINK(\"#'Sch XI(a)(viii)'!A1\",\"Sch XI(a)(viii)\")","v":"Sch XI(a)(viii)"}]
[]
[]
[]
[null,"CISSA",null,null,null,null,null,null,null,null,null,null,null,null,null,null,null,null,null,null,null,null,null,null,"ELIGIBLE CAPITAL"]
[]
[null,null,{"$f":"HYPERLINK(\"#'Schedule IX(a)'!A1\",\"Sch IX(a) \nCapital Summary\")","v":"Sch IX(a) \nCapital Summary"},null,null,null,null,null,null,{"$f":"HYPERLINK(\"#'Schedule IX(b)'!A1\",\"Sch IX(b)\nGen. Questions\")","v":"Sch IX(b)\nGen. Questions"},null,null,null,null,null,null,{"$f":"HYPERLINK(\"#'Schedule IX(c)'!A1\",\"Sch IX(c)\nRisk Assessment\")","v":"Sch IX(c)\nRisk Assessment"},null,null,null,null,null,null,null,null,{"$f":"HYPERLINK(\"#'Schedule XII(a)'!A1\",\"Schedule XII(a)\")","v":"Schedule XII(a)"},null,null,null,null,null,null,{"$f":"HYPERLINK(\"#'Schedule XII(b)'!A1\",\"Schedule XII(b)\")","v":"Schedule XII(b)"}]
[]
[]
[]
[null,"OPERATIONAL RISK CHARGE"]
[]
[null,null,{"$f":"HYPERLINK(\"#'Corp Gov'!A1\",\"Corporate Governance\")","v":"Corporate Governance"},null,null,null,null,null,null,{"$f":"HYPERLINK(\"#'Risk Man'!A1\",\"Risk Management\")","v":"Risk Management"},null,null,null,null,null,null,{"$f":"HYPERLINK(\"#'Identification'!A1\",\"Risk Identification (Class 4/3B Only)\")","v":"Risk Identification (Class 4/3B Only)"},null,null,null,null,null,null,null,null,{"$f":"HYPERLINK(\"#'Measurement'!A1\",\"Risk Measurement (Class 4/3B Only)\")","v":"Risk Measurement (Class 4/3B Only)"},null,null,null,null,null,null,{"$f":"HYPERLINK(\"#'Response'!A1\",\"Risk Response (Class 4/3B Only)\")","v":"Risk Response (Class 4/3B Only)"},null,null,null,null,null,null,{"$f":"HYPERLINK(\"#'Monitoring & Reporting'!A1\",\"Risk Monitoring & Reporting\")","v":"Risk Monitoring & Reporting"}]
[]
[]
[null,null,{"$f":"HYPERLINK(\"#'Op Risk'!A1\",\"Opertional Risk Charge\")","v":"Opertional Risk Charge"},null,null,null,null,null,null,{"$f":"HYPERLINK(\"#'Op Risk (Revised)'!A1\",\"Operational Risk Charge (Revised)\")","v":"Operational Risk Charge (Revised)"}]
[]
[]
[]
[null,"BSCR"]
[]
[null,null,{"$f":"HYPERLINK(\"#'Summary'!A1\",\"Summary\")","v":"Summary"},null,null,null,null,null,null,{"$f":"HYPERLINK(\"#'Fixed Income Investments'!A1\",\"Fixed Income Investments\")","v":"Fixed Income Investments"},null,null,null,null,null,null,{"$f":"HYPERLINK(\"#'Fixed Income Investments (Rev.)'!A1\",\"Fixed Income Inv. (Revised)\")","v":"Fixed Income Inv. (Revised)"},null,null,null,null,null,null,null,null,{"$f":"HYPERLINK(\"#'Equity Investments'!A1\",\"Equity Investments\")","v":"Equity Investments"},null,null,null,null,null,null,{"$f":"HYPERLINK(\"#'Equity Investments (Revised)'!A1\",\"Equity Inv. (Revised)\")","v":"Equity Inv. (Revised)"},null,null,null,null,null,null,{"$f":"HYPERLINK(\"#'Interest Rate-Liquidity Risk'!A1\",\"Interest Rate-Liquidity Risk\")","v":"Interest Rate-Liquidity Risk"}]
[]
[]
[null,null,{"$f":"HYPERLINK(\"#'Interest Rate-Liquidity (Rev.)'!A1\",\"Interest-Liquidity Risk (Revised)\")","v":"Interest-Liquidity Risk (Revised)"},null,null,null,null,null,null,{"$f":"HYPERLINK(\"#'Currency Risk'!A1\",\"Currency Risk\")","v":"Currency Risk"},null,null,null,null,null,null,{"$f":"HYPERLINK(\"#'Currency Risk (Revised)'!A1\",\"Currency Risk (Revised)\")","v":"Currency Risk (Revised)"},null,null,null,null,null,null,null,null,{"$f":"HYPERLINK(\"#'Concentration Risk'!A1\",\"Concentration Risk\")","v":"Concentration Risk"},null,null,null,null,null,null,{"$f":"HYPERLINK(\"#'Concentration Risk (Revised)'!A1\",\"Concentration Risk (Revised)\")","v":"Concentration Risk (Revised)"},null,null,null,null,null,null,{"$f":"HYPERLINK(\"#'Geographic Diversification'!A1\",\"Geographic Diversification\")","v":"Geographic Diversification"}]
[]
[]
[null,null,{"$f":"HYPERLINK(\"#'Geographic Div. (Revised)'!A1\",\"Geographic Div. (Revised)\")","v":"Geographic Div. (Revised)"},null,null,null,null,null,null,{"$f":"HYPERLINK(\"#'Premium Risk'!A1\",\"Premium Risk\")","v":"Premium Risk"},null,null,null,null,null,null,{"$f":"HYPERLINK(\"#'Premium Risk (Revised)'!A1\",\"Premium Risk (Revised)\")","v":"Premium Risk (Revised)"},null,null,null,null,null,null,null,null,{"$f":"HYPERLINK(\"#'Reserve Risk'!A1\",\"Reserve Risk\")","v":"Reserve Risk"},null,null,null,null,null,null,{"$f":"HYPERLINK(\"#'Reserve Risk (Revised)'!A1\",\"Reserve Risk (Revised)\")","v":"Reserve Risk (Revised)"},null,null,null,null,null,null,{"$f":"HYPERLINK(\"#'Credit Risk'!A1\",\"Credit Risk\")","v":"Credit Risk"}]
[]
[]
[null,null,{"$f":"HYPERLINK(\"#'Credit Risk (Revised)'!A1\",\"Credit Risk (Revised)\")","v":"Credit Risk (Revised)"},null,null,null,null,null,null,{"$f":"HYPERLINK(\"#'Catastrophe Risk'!A1\",\"Catastrophe Risk\")","v":"Catastrophe Risk"},null,null,null,null,null,null,{"$f":"HYPERLINK(\"#'Catastrophe Risk (Revised)'!A1\",\"Catastrophe Risk (Revised)\")","v":"Catastrophe Risk (Revised)"},null,null,null,null,null,null,null,null,{"$f":"HYPERLINK(\"#'Company Specific Parameters'!A1\",\"Company Specific Parameters\")","v":"Company Specific Parameters"},null,null,null,null,null,null,{"$f":"HYPERLINK(\"#'CSP (Revised)'!A1\",\"CSP (Revised)\")","v":"CSP (Revised)"},null,null,null,null,null,null,{"$f":"HYPERLINK(\"#'Correlation Matrix'!A1\",\"Correlation Matrix\")","v":"Correlation Matrix"}]

{"sheet":"Import","index":6,"n_rows":14790,"n_cols":16,"rows_kept":4500,"cut":true,"hidden":false,"merged":[[0,4,0,6],[0,8,0,10],[0,12,0,14]],"bounds":{"rows_first":2000,"rows_last":500,"rows_between":2000,"halvings":0}}
[null,null,null,null,"Unconsolidated",null,null,null,"Consolidated",null,null,null,"EBS"]
["Sheet Name","Sheet Short Description","Field Code","Field Description",{"$f":"YEAR('Company Information'!$C$3)","v":2019},null,{"$f":"E2-1","v":2018},null,{"$f":"YEAR('Company Information'!$C$3)","v":2019},null,{"$f":"I2-1","v":2018},null,{"$f":"YEAR('Company Information'!$C$3)","v":2019},null,{"$f":"M2-1","v":2018}]
["Summary",null,null,"Comments",0]
[]
["Declaration",null,null,"Authorised Signing Authority 1",0]
["Declaration",null,null,"Date","00:00:00"]
["Declaration",null,null,"Authorised Signing Authority 2",0]
["Declaration",null,null,"Date","00:00:00"]
["Declaration",null,null,"Authorised Signing Authority 3",0]
["Declaration",null,null,"Date","00:00:00"]
[]
["Info Sheet",null,null,"(d) Statements Held at Registered Office","Select Yes/No"]
["Info Sheet",null,null,"(e) Filing Period - Period Start Date","00:00:00"]
["Info Sheet",null,null,"(g) Figures Translated at:",0]
["Info Sheet",null,null,"(h) Ultimate Parent",0]
["Info Sheet",null,null,"(i) Insurer's Parent Company",0]
["Info Sheet",null,null,"(j) Industry Sector of Insurer's Parent","Select from Drop-Down"]
["Info Sheet",null,null,"(k) Insurer's Ownership Structure","Select from Drop-Down"]
["Info Sheet",null,null,"(l) Insurer's Company Structure","Select from Drop-Down"]
["Info Sheet",null,null,"(l).1 Confirm if Company writes LT Insurance","Select Yes/No"]
["Info Sheet",null,null,"(l).2 LT Insurance written during the period","Select Yes/No"]
["Info Sheet",null,null,"(l).3 Subsidiares wrote Long-Term insurance","Select Yes/No"]
["Info Sheet",null,null,"(l).4 Subsidiares wrote LT Ins. Outside of BDA","Select Yes/No"]
["Info Sheet",null,null,"(l).5 Subsidiares Ins. Outside of BDA jurisdiction 1",0]
["Info Sheet",null,null,"(l).5 Subsidiares Ins. Outside of BDA jurisdiction 2",0]
["Info Sheet",null,null,"(l).5 Subsidiares Ins. Outside of BDA jurisdiction 3",0]
["Info Sheet",null,null,"(m)(i) Is the Insurer a Member of Ins. Group?","Select Yes/No"]
["Info Sheet",null,null,"(m)(ii) Are there Segregated Accounts?","Select Yes/No"]
["Info Sheet",null,null,"(m)(iii) Is the Insurer in Run-Off?","Select Yes/No"]
["Info Sheet",null,null,"(m)(iv) Statements have a Qualified Opinion?","Select Yes/No"]
["Info Sheet",null,null,"(m)(iv) Details of Qualified Opinion",0]
["Info Sheet",null,null,"(m)(v) Minimum Solvency Margin Met","Select Yes/No"]
["Info Sheet",null,null,"(m)(vi) Liquidity Ratio Met","Select Yes/No"]
["Info Sheet",null,null,"(n)(1) Certificate of Registration Date",""]
["Info Sheet",null,null,"(n)(2) # of Conditions",0]
["Info Sheet",null,null,"Effective Start Date of Condition - 1","00:00:00"]
["Info Sheet",null,null,"Effective Start Date of Condition - 2","00:00:00"]
["Info Sheet",null,null,"Effective Start Date of Condition - 3","00:00:00"]
["Info Sheet",null,null,"Effective Start Date of Condition - 4","00:00:00"]
["Info Sheet",null,null,"Effective Start Date of Condition - 5","00:00:00"]
["Info Sheet",null,null,"Effective Start Date of Condition - 6","00:00:00"]
["Info Sheet",null,null,"Effective Start Date of Condition - 7","00:00:00"]
["Info Sheet",null,null,"Effective Start Date of Condition - 8","00:00:00"]
["Info Sheet",null,null,"Effective Start Date of Condition - 9","00:00:00"]
["Info Sheet",null,null,"Effective Start Date of Condition - 10","00:00:00"]
["Info Sheet",null,null,"Effective End Date of Condition - 1","00:00:00"]
["Info Sheet",null,null,"Effective End Date of Condition - 2","00:00:00"]
["Info Sheet",null,null,"Effective End Date of Condition - 3","00:00:00"]
["Info Sheet",null,null,"Effective End Date of Condition - 4","00:00:00"]
["Info Sheet",null,null,"Effective End Date of Condition - 5","00:00:00"]
["Info Sheet",null,null,"Effective End Date of Condition - 6","00:00:00"]
["Info Sheet",null,null,"Effective End Date of Condition - 7","00:00:00"]
["Info Sheet",null,null,"Effective End Date of Condition - 8","00:00:00"]
["Info Sheet",null,null,"Effective End Date of Condition - 9","00:00:00"]
["Info Sheet",null,null,"Effective End Date of Condition - 10","00:00:00"]
["Info Sheet",null,null,"Description of Condition - 1",0]
["Info Sheet",null,null,"Description of Condition - 2",0]
["Info Sheet",null,null,"Description of Condition - 3",0]
["Info Sheet",null,null,"Description of Condition - 4",0]
["Info Sheet",null,null,"Description of Condition - 5",0]
["Info Sheet",null,null,"Description of Condition - 6",0]
["Info Sheet",null,null,"Description of Condition - 7",0]
["Info Sheet",null,null,"Description of Condition - 8",0]
["Info Sheet",null,null,"Description of Condition - 9",0]
["Info Sheet",null,null,"Description of Condition - 10",0]
["Info Sheet",null,null,"Insurer Complied with All Conditions?","Select Yes/No"]
["Info Sheet",null,null,"(p) # of Directions",0]
["Info Sheet",null,null,"Effective Start Date of Direction - 1","00:00:00"]
["Info Sheet",null,null,"Effective Start Date of Direction - 2","00:00:00"]
["Info Sheet",null,null,"Effective Start Date of Direction - 3","00:00:00"]
["Info Sheet",null,null,"Effective Start Date of Direction - 4","00:00:00"]
["Info Sheet",null,null,"Effective Start Date of Direction - 5","00:00:00"]
["Info Sheet",null,null,"Effective Start Date of Direction - 6","00:00:00"]
["Info Sheet",null,null,"Effective Start Date of Direction - 7","00:00:00"]
["Info Sheet",null,null,"Effective Start Date of Direction - 8","00:00:00"]
["Info Sheet",null,null,"Effective Start Date of Direction - 9","00:00:00"]
["Info Sheet",null,null,"Effective Start Date of Direction - 10","00:00:00"]
["Info Sheet",null,null,"Effective End Date of Direction - 1","00:00:00"]
["Info Sheet",null,null,"Effective End Date of Direction - 2","00:00:00"]
["Info Sheet",null,null,"Effective End Date of Direction - 3","00:00:00"]
["Info Sheet",null,null,"Effective End Date of Direction - 4","00:00:00"]
["Info Sheet",null,null,"Effective End Date of Direction - 5","00:00:00"]
["Info Sheet",null,null,"Effective End Date of Direction - 6","00:00:00"]
["Info Sheet",null,null,"Effective End Date of Direction - 7","00:00:00"]
["Info Sheet",null,null,"Effective End Date of Direction - 8","00:00:00"]
["Info Sheet",null,null,"Effective End Date of Direction - 9","00:00:00"]
["Info Sheet",null,null,"Effective End Date of Direction - 10","00:00:00"]
["Info Sheet",null,null,"Description of Direction - 1",0]
["Info Sheet",null,null,"Description of Direction - 2",0]
["Info Sheet",null,null,"Description of Direction - 3",0]
["Info Sheet",null,null,"Description of Direction - 4",0]
["Info Sheet",null,null,"Description of Direction - 5",0]
["Info Sheet",null,null,"Description of Direction - 6",0]
["Info Sheet",null,null,"Description of Direction - 7",0]
["Info Sheet",null,null,"Description of Direction - 8",0]
["Info Sheet",null,null,"Description of Direction - 9",0]
["Info Sheet",null,null,"Description of Direction - 10",0]
["Info Sheet",null,null,"(q) Confirm If Any Negative Responses?","Select Yes/No"]
["Info Sheet",null,null,"Details of Negative Responses",0]
[]
[null,null,null,"Balance Sheet"]
["Form 1SFS/1EBS","Balance Sheet GEN/CON/EBS","1SFS1","Cash and Cash Equivalents",0,null,0,null,0,null,0,null,0,null,0]
["Form 1SFS/1EBS","Balance Sheet GEN/CON/EBS","1SFS2ai","Quoted - Bonds - Held to Maturity",0,null,0,null,0,null,0]
["Form 1SFS/1EBS","Balance Sheet GEN/CON/EBS","1SFS2aii","Quoted - Bonds - Other",0,null,0,null,0,null,0]
["Form 1SFS/1EBS","Balance Sheet GEN/CON/EBS","1EBS2b","Quoted - Bonds - Total",null,null,null,null,null,null,null,null,0,null,0]
["Form 1SFS/1EBS","Balance Sheet GEN/CON/EBS","1SFS2ci","Quoted - Equities - Common Stocks",0,null,0,null,0,null,0,null,0,null,0]
["Form 1SFS/1EBS","Balance Sheet GEN/CON/EBS","1SFS2cii","Quoted - Equities - Preferred Stocks",0,null,0,null,0,null,0,null,0,null,0]
["Form 1SFS/1EBS","Balance Sheet GEN/CON/EBS","1SFS2ciii","Quoted - Equities - Mutual Funds",0,null,0,null,0,null,0,null,0,null,0]
["Form 1SFS/1EBS","Balance Sheet GEN/CON/EBS","1SFS2e","Quoted - Other Investments",0,null,0,null,0,null,0,null,0,null,0]
["Form 1SFS/1EBS","Balance Sheet GEN/CON/EBS","1SFS3ai","Unquoted - Bonds - Held to Maturity",0,null,0,null,0,null,0]
["Form 1SFS/1EBS","Balance Sheet GEN/CON/EBS","1SFS3aii","Unquoted - Bonds - Other",0,null,0,null,0,null,0]
["Form 1SFS/1EBS","Balance Sheet GEN/CON/EBS","1EBS3b","Unquoted - Bonds - Total",null,null,null,null,null,null,null,null,0,null,0]
["Form 1SFS/1EBS","Balance Sheet GEN/CON/EBS","1SFS3ci","Unquoted - Equities - Common Stocks",0,null,0,null,0,null,0,null,0,null,0]
["Form 1SFS/1EBS","Balance Sheet GEN/CON/EBS","1SFS3cii","Unquoted - Equities - Preferred Stocks",0,null,0,null,0,null,0,null,0,null,0]
["Form 1SFS/1EBS","Balance Sheet GEN/CON/EBS","1SFS3ciii","Unquoted - Equities - Mutual Funds",0,null,0,null,0,null,0,null,0,null,0]
["Form 1SFS/1EBS","Balance Sheet GEN/CON/EBS","1SFS3e","Unquoted - Other Investments",0,null,0,null,0,null,0,null,0,null,0]
["Form 1SFS/1EBS","Balance Sheet GEN/CON/EBS","1SFS4a","Inv. In Affiliates - Unregulated Ancillary",0,null,0,null,0,null,0,null,0,null,0]
["Form 1SFS/1EBS","Balance Sheet GEN/CON/EBS","1SFS4b","Inv. In Affiliates - Unregulated Non-Fin. Oper.",0,null,0,null,0,null,0,null,0,null,0]
["Form 1SFS/1EBS","Balance Sheet GEN/CON/EBS","1SFS4c","Inv. In Affiliates - Unregulated Fin. Operating",0,null,0,null,0,null,0,null,0,null,0]
["Form 1SFS/1EBS","Balance Sheet GEN/CON/EBS","1SFS4d","Inv. In Affiliates - Regulated Non-Insurance",0,null,0,null,0,null,0,null,0,null,0]
["Form 1SFS/1EBS","Balance Sheet GEN/CON/EBS","1SFS4e","Inv. In Affiliates - Regulated Insurance",0,null,0,null,0,null,0,null,0,null,0]
["Form 1SFS/1EBS","Balance Sheet GEN/CON/EBS","1SFS4g","Advances To Affiliates",0,null,0,null,0,null,0,null,0,null,0]
["Form 1SFS/1EBS","Balance Sheet GEN/CON/EBS","1SFS5a","Inv. In Mortg. Loans on Real Estate - 1st Lien",0,null,0,null,0,null,0,null,0,null,0]
["Form 1SFS/1EBS","Balance Sheet GEN/CON/EBS","1SFS5b","Inv. In Mortg. Loans on Real Estate - Other",0,null,0,null,0,null,0,null,0,null,0]
["Form 1SFS/1EBS","Balance Sheet GEN/CON/EBS","1SFS6","Policy Loans",null,null,null,null,0,null,0]
["Form 1SFS/1EBS","Balance Sheet GEN/CON/EBS","1SFS7a","Real Estate - Occupied by Company",0,null,0,null,0,null,0,null,0,null,0]
["Form 1SFS/1EBS","Balance Sheet GEN/CON/EBS","1SFS7b","Real Estate - Other",0,null,0,null,0,null,0,null,0,null,0]
["Form 1SFS/1EBS","Balance Sheet GEN/CON/EBS","1SFS8","Collateral Loans",0,null,0,null,0,null,0,null,0,null,0]
["Form 1SFS/1EBS","Balance Sheet GEN/CON/EBS","1SFS9","Investment Income Due and Accrued",0,null,0,null,0,null,0,null,0,null,0]
["Form 1SFS/1EBS","Balance Sheet GEN/CON/EBS","1SFS10a","Accounts & Premium Rec. - In Collection",0,null,0,null,0,null,0,null,0,null,0]
["Form 1SFS/1EBS","Balance Sheet GEN/CON/EBS","1SFS10b","Accounts & Premium Rec. - Not Yet Due ",0,null,0,null,0,null,0]
["Form 1SFS/1EBS","Balance Sheet GEN/CON/EBS","1SFS10c","Accounts & Premium Rec. - Retro. Contracts",0,null,0,null,0,null,0,null,0,null,0]
["Form 1SFS/1EBS","Balance Sheet GEN/CON/EBS","1SFS11a","R/I Balances Receivable - Foreign Affiliates",0,null,0,null,0,null,0,null,0,null,0]
["Form 1SFS/1EBS","Balance Sheet GEN/CON/EBS","1SFS11b","R/I Balances Receivable - Domestic Affiliates",0,null,0,null,0,null,0,null,0,null,0]
["Form 1SFS/1EBS","Balance Sheet GEN/CON/EBS","1SFS11c","R/I Balances Receivable - Pools & Assoc.",0,null,0,null,0,null,0,null,0,null,0]
["Form 1SFS/1EBS","Balance Sheet GEN/CON/EBS","1SFS11d","R/I Balances Receivable - All Other",0,null,0,null,0,null,0,null,0,null,0]
["Form 1SFS/1EBS","Balance Sheet GEN/CON/EBS","1EBS12a","Funds Held by Ceding Companies - Affiliates",null,null,null,null,null,null,null,null,0,null,0]
["Form 1SFS/1EBS","Balance Sheet GEN/CON/EBS","1EBS12b","Funds Held by Ceding Companies - Non-Aff.",null,null,null,null,null,null,null,null,0,null,0]
["Form 1SFS/1EBS","Balance Sheet GEN/CON/EBS","1SFS12","Funds Held by Ceding Companies ",0,null,0,null,0,null,0]
["Form 1SFS/1EBS","Balance Sheet GEN/CON/EBS","1SFS13a","Sundry Assets - Derivatives",0,null,0,null,0,null,0,null,0,null,0]
["Form 1SFS/1EBS","Balance Sheet GEN/CON/EBS","1SFS13b","Sundry Assets - SAC - LT- Variable Annuities",null,null,null,null,0,null,0]
["Form 1SFS/1EBS","Balance Sheet GEN/CON/EBS","1SFS13c","Sundry Assets - SAC - LT- Others",null,null,null,null,0,null,0]
["Form 1SFS/1EBS","Balance Sheet GEN/CON/EBS","1SFS13d","Sundry Assets - SAC - General Business",0,null,0,null,0,null,0,null,0,null,0]
["Form 1SFS/1EBS","Balance Sheet GEN/CON/EBS","1SFS13e","Sundry Assets - Deposit Assets",0,null,0,null,0,null,0,null,0,null,0]
["Form 1SFS/1EBS","Balance Sheet GEN/CON/EBS","1SFS13f","Sundry Assets - Deferred Acquisition Costs",0,null,0,null,0,null,0]
["Form 1SFS/1EBS","Balance Sheet GEN/CON/EBS","1SFS13g","Sundry Assets - Net Rec. for Investments",0,null,0,null,0,null,0,null,0,null,0]
["Form 1SFS/1EBS","Balance Sheet GEN/CON/EBS","1EBS13g","Sundry Assets - Intangible Assets",null,null,null,null,null,null,null,null,0,null,0]
["Form 1SFS/1EBS","Balance Sheet GEN/CON/EBS","1EBS13h","Sundry Assets - Deferred Tax Assets",null,null,null,null,null,null,null,null,0,null,0]
["Form 1SFS/1EBS","Balance Sheet GEN/CON/EBS","1EBS13i","Sundry Assets - Pension Benefit Surplus",null,null,null,null,null,null,null,null,0,null,0]
["Form 1SFS/1EBS","Balance Sheet GEN/CON/EBS","1SFS13h","Sundry Assets - Other 1",0,null,0,null,0,null,0,null,0,null,0]
["Form 1SFS/1EBS","Balance Sheet GEN/CON/EBS","1SFS13i","Sundry Assets - Other 2",0,null,0,null,0,null,0]
["Form 1SFS/1EBS","Balance Sheet GEN/CON/EBS","1SFS13j","Sundry Assets - Other 3",0,null,0,null,0,null,0]
["Form 1SFS/1EBS","Balance Sheet GEN/CON/EBS","1SFS14a","Letters of Credit",0,null,0,null,0,null,0,null,0,null,0]
["Form 1SFS/1EBS","Balance Sheet GEN/CON/EBS","1SFS14b","Guarantees",0,null,0,null,0,null,0,null,0,null,0]
["Form 1SFS/1EBS","Balance Sheet GEN/CON/EBS","1SFS14c","Other Instruments",0,null,0,null,0,null,0,null,0,null,0]
["Form 1SFS/1EBS","Balance Sheet GEN/CON/EBS","1SFS15","Total Assets",0,null,0]
["Form 1SFS/1EBS","Balance Sheet GEN/CON/EBS","1SFS16a","Unearned Premium Reserve - Gross",0,null,0,null,0,null,0,null,0,null,0]
["Form 1SFS/1EBS","Balance Sheet GEN/CON/EBS","1SFS16bi","UPR - Ceded - Foreign Affiliates",0,null,0,null,0,null,0,null,0,null,0]
["Form 1SFS/1EBS","Balance Sheet GEN/CON/EBS","1SFS16bii","UPR - Ceded - Domestic Affiliates",0,null,0,null,0,null,0,null,0,null,0]
["Form 1SFS/1EBS","Balance Sheet GEN/CON/EBS","1SFS16biii","UPR - Ceded - Pools & Assoc.",0,null,0,null,0,null,0,null,0,null,0]
["Form 1SFS/1EBS","Balance Sheet GEN/CON/EBS","1SFS16biv","UPR - Ceded - All Other",0,null,0,null,0,null,0,null,0,null,0]
["Form 1SFS/1EBS","Balance Sheet GEN/CON/EBS","1SFS17a","Loss Provision - Gross",0,null,0,null,0,null,0,null,0,null,0]
["Form 1SFS/1EBS","Balance Sheet GEN/CON/EBS","1SFS17bi","R/I Recoverable - Foreign Affiliates",0,null,0,null,0,null,0,null,0,null,0]
["Form 1SFS/1EBS","Balance Sheet GEN/CON/EBS","1SFS17bii","R/I Recoverable - Domestic Affiliates",0,null,0,null,0,null,0,null,0,null,0]
["Form 1SFS/1EBS","Balance Sheet GEN/CON/EBS","1SFS17biii","R/I Recoverable - Pools & Assoc.",0,null,0,null,0,null,0,null,0,null,0]
["Form 1SFS/1EBS","Balance Sheet GEN/CON/EBS","1SFS17biv","R/I Recoverable - All Other",0,null,0,null,0,null,0,null,0,null,0]
["Form 1SFS/1EBS","Balance Sheet GEN/CON/EBS","1SFS18","Risk Margin",0,null,0,null,0,null,0,null,0,null,0]
["Form 1SFS/1EBS","Balance Sheet GEN/CON/EBS","1SFS20","Net - Reserves for Reported Claims",null,null,null,null,0,null,0]
["Form 1SFS/1EBS","Balance Sheet GEN/CON/EBS","1SFS21","Net - Reserves for Unreported Claims",null,null,null,null,0,null,0]
["Form 1SFS/1EBS","Balance Sheet GEN/CON/EBS","1SFS22","Net - Policy Reserves - Life",null,null,null,null,0,null,0]
["Form 1SFS/1EBS","Balance Sheet GEN/CON/EBS","1SFS23","Net - Policy Reserves - Accident & Health",null,null,null,null,0,null,0]
["Form 1SFS/1EBS","Balance Sheet GEN/CON/EBS","1SFS24","Net - Policyholder's Funds on Deposit",null,null,null,null,0,null,0]
["Form 1SFS/1EBS","Balance Sheet GEN/CON/EBS","1SFS25","Net - Liability for Future Policyholder Dividends",null,null,null,null,0,null,0]
["Form 1SFS/1EBS","Balance Sheet GEN/CON/EBS","1SFS26","Net - Other LT Insurance Reserves",null,null,null,null,0,null,0]
["Form 1SFS/1EBS","Balance Sheet GEN/CON/EBS","1SFS27bi","R/I Recoverable - Foreign Affiliates",null,null,null,null,0,null,0]
["Form 1SFS/1EBS","Balance Sheet GEN/CON/EBS","1SFS27bii","R/I Recoverable - Domestic Affiliates",null,null,null,null,0,null,0]
["Form 1SFS/1EBS","Balance Sheet GEN/CON/EBS","1SFS27biii","R/I Recoverable - Pools & Assoc.",null,null,null,null,0,null,0]
["Form 1SFS/1EBS","Balance Sheet GEN/CON/EBS","1SFS27biv","R/I Recoverable - All Other",null,null,null,null,0,null,0]
["Form 1SFS/1EBS","Balance Sheet GEN/CON/EBS","1EBS27A","Risk Margin"]
["Form 1SFS/1EBS","Balance Sheet GEN/CON/EBS","1EBS27Ba","Gross Provision - Tech. Prov. Calc. on Whole"]
["Form 1SFS/1EBS","Balance Sheet GEN/CON/EBS","1EBS27Bbi","R/I Recoverable - Foreign Affiliates"]
["Form 1SFS/1EBS","Balance Sheet GEN/CON/EBS","1EBS27Bbii","R/I Recoverable - Domestic Affiliates"]
["Form 1SFS/1EBS","Balance Sheet GEN/CON/EBS","1EBS27Bbiii","R/I Recoverable - Pools & Assoc."]
["Form 1SFS/1EBS","Balance Sheet GEN/CON/EBS","1EBS27Bbiv","R/I Recoverable - All Other"]
["Form 1SFS/1EBS","Balance Sheet GEN/CON/EBS","1EBS27C","Total Long-Term Tech Provisions"]
["Form 1SFS/1EBS","Balance Sheet GEN/CON/EBS","1SFS28","Insurance & R/I Balances Payable",0,null,0,null,0,null,0,null,0,null,0]
["Form 1SFS/1EBS","Balance Sheet GEN/CON/EBS","1SFS29","Commissions, Expenses and Taxes Payable",0,null,0,null,0,null,0,null,0,null,0]
["Form 1SFS/1EBS","Balance Sheet GEN/CON/EBS","1SFS30","Loans and Notes Payable",0,null,0,null,0,null,0,null,0,null,0]
["Form 1SFS/1EBS","Balance Sheet GEN/CON/EBS","1SFS31a","Income Taxes Payable",0,null,0,null,0,null,0,null,0,null,0]
["Form 1SFS/1EBS","Balance Sheet GEN/CON/EBS","1SFS31b","Deferred Taxes Payable",0,null,0,null,0,null,0,null,0,null,0]
["Form 1SFS/1EBS","Balance Sheet GEN/CON/EBS","1SFS32","Amounts Due to Affiliates",0,null,0,null,0,null,0,null,0,null,0]
["Form 1SFS/1EBS","Balance Sheet GEN/CON/EBS","1SFS33","Accounts Payable and Accrued Liabilities",0,null,0,null,0,null,0,null,0,null,0]
["Form 1SFS/1EBS","Balance Sheet GEN/CON/EBS","1EBS34a","Funds Held under R/I Contracts - Affiliates",null,null,null,null,null,null,null,null,0,null,0]
["Form 1SFS/1EBS","Balance Sheet GEN/CON/EBS","1EBS34b","Funds Held under R/I Contracts - Non-Aff.",null,null,null,null,null,null,null,null,0,null,0]
["Form 1SFS/1EBS","Balance Sheet GEN/CON/EBS","1SFS34","Funds Held under R/I Contracts",0,null,0,null,0,null,0]
["Form 1SFS/1EBS","Balance Sheet GEN/CON/EBS","1SFS35","Dividends Payable",0,null,0,null,0,null,0,null,0,null,0]
["Form 1SFS/1EBS","Balance Sheet GEN/CON/EBS","1SFS36a","Sundry Liabilities - Derivative Instruments",0,null,0,null,0,null,0,null,0,null,0]
["Form 1SFS/1EBS","Balance Sheet GEN/CON/EBS","1EBS36b","Sundry Liabilities - Der. Instr. - Non-Hedge Purp.",null,null,null,null,null,null,null,null,0,null,0]
["Form 1SFS/1EBS","Balance Sheet GEN/CON/EBS","1SFS36b","Sundry Liabilities - Seg. Accounts - GB",0,null,0,null,0,null,0,null,0,null,0]
["Form 1SFS/1EBS","Balance Sheet GEN/CON/EBS","1SFS36c","Sundry Liabilities - Deposit Liabilities",0,null,0,null,0,null,0,null,0,null,0]
["Form 1SFS/1EBS","Balance Sheet GEN/CON/EBS","1EBS36g","Sundry Liabilities - Pension Benefit Oblig.",null,null,null,null,null,null,null,null,0,null,0]
["Form 1SFS/1EBS","Balance Sheet GEN/CON/EBS","1SFS36d","Sundry Liabilities - Investments Purchased",0,null,0,null,0,null,0,null,0,null,0]
["Form 1SFS/1EBS","Balance Sheet GEN/CON/EBS","1SFS36e","Sundry Liabilities - Other 1",0,null,0,null,0,null,0,null,0,null,0]
["Form 1SFS/1EBS","Balance Sheet GEN/CON/EBS","1SFS36f","Sundry Liabilities - Other 2",0,null,0,null,0,null,0]
["Form 1SFS/1EBS","Balance Sheet GEN/CON/EBS","1SFS36g","Sundry Liabilities - Other 3",0,null,0,null,0,null,0]
["Form 1SFS/1EBS","Balance Sheet GEN/CON/EBS","1SFS37a","Letters of Credit",0,null,0,null,0,null,0,null,0,null,0]
["Form 1SFS/1EBS","Balance Sheet GEN/CON/EBS","1SFS37b","Guarantees",0,null,0,null,0,null,0,null,0,null,0]
["Form 1SFS/1EBS","Balance Sheet GEN/CON/EBS","1SFS37c","Other Instruments",0,null,0,null,0,null,0,null,0,null,0]
["Form 1SFS/1EBS","Balance Sheet GEN/CON/EBS","1EBS40","Economic Capital & Surplus",null,null,null,null,null,null,null,null,0,null,0]
[]
["Form 1SFS","Balance Sheet LT","1SFS1","Cash and Cash Equivalents",0,null,0]
["Form 1SFS","Balance Sheet LT","1SFS2ai","Quoted - Bonds - Held to Maturity",0,null,0]
["Form 1SFS","Balance Sheet LT","1SFS2aii","Quoted - Bonds - Other",0,null,0]
["Form 1SFS","Balance Sheet LT","1SFS2ci","Quoted - Equities - Common Stocks",0,null,0]
["Form 1SFS","Balance Sheet LT","1SFS2cii","Quoted - Equities - Preferred Stocks",0,null,0]
["Form 1SFS","Balance Sheet LT","1SFS2ciii","Quoted - Equities - Mutual Funds",0,null,0]
["Form 1SFS","Balance Sheet LT","1SFS2e","Quoted - Other Investments",0,null,0]
["Form 1SFS","Balance Sheet LT","1SFS3ai","Unquoted - Bonds - Held to Maturity",0,null,0]
["Form 1SFS","Balance Sheet LT","1SFS3aii","Unquoted - Bonds - Other",0,null,0]
["Form 1SFS","Balance Sheet LT","1SFS3ci","Unquoted - Equities - Common Stocks",0,null,0]
["Form 1SFS","Balance Sheet LT","1SFS3cii","Unquoted - Equities - Preferred Stocks",0,null,0]
["Form 1SFS","Balance Sheet LT","1SFS3ciii","Unquoted - Equities - Mutual Funds",0,null,0]
["Form 1SFS","Balance Sheet LT","1SFS3e","Unquoted - Other Investments",0,null,0]
["Form 1SFS","Balance Sheet LT","1SFS4a","Inv. In Affiliates - Unregulated Ancillary",0,null,0]
["Form 1SFS","Balance Sheet LT","1SFS4b","Inv. In Affiliates - Unregulated Non-Fin. Oper.",0,null,0]
["Form 1SFS","Balance Sheet LT","1SFS4c","Inv. In Affiliates - Unregulated Fin. Operating",0,null,0]
["Form 1SFS","Balance Sheet LT","1SFS4d","Inv. In Affiliates - Regulated Non-Insurance",0,null,0]
["Form 1SFS","Balance Sheet LT","1SFS4e","Inv. In Affiliates - Regulated Insurance",0,null,0]
["Form 1SFS","Balance Sheet LT","1SFS4g","Advances To Affiliates",0,null,0]
["Form 1SFS","Balance Sheet LT","1SFS5a","Inv. In Mortg. Loans on Real Estate - 1st Lien",0,null,0]
["Form 1SFS","Balance Sheet LT","1SFS5b","Inv. In Mortg. Loans on Real Estate - Other",0,null,0]
["Form 1SFS","Balance Sheet LT","1SFS6","Policy Loans",0,null,0]
["Form 1SFS","Balance Sheet LT","1SFS7a","Real Estate - Occupied by Company",0,null,0]
["Form 1SFS","Balance Sheet LT","1SFS7b","Real Estate - Other",0,null,0]
["Form 1SFS","Balance Sheet LT","1SFS8","Collateral Loans",0,null,0]
["Form 1SFS","Balance Sheet LT","1SFS9","Investment Income Due and Accrued",0,null,0]
["Form 1SFS","Balance Sheet LT","1SFS10a","Accounts & Premium Rec. - In Collection",0,null,0]
["Form 1SFS","Balance Sheet LT","1SFS10b","Accounts & Premium Rec. - Not Yet Due ",0,null,0]
["Form 1SFS","Balance Sheet LT","1SFS10c","Accounts & Premium Rec. - Retro. Contracts",0,null,0]
["Form 1SFS","Balance Sheet LT","1SFS11a","R/I Balances Receivable - Foreign Affiliates",0,null,0]
["Form 1SFS","Balance Sheet LT","1SFS11b","R/I Balances Receivable - Domestic Affiliates",0,null,0]
["Form 1SFS","Balance Sheet LT","1SFS11c","R/I Balances Receivable - Pools & Assoc.",0,null,0]
["Form 1SFS","Balance Sheet LT","1SFS11d","R/I Balances Receivable - All Other",0,null,0]
["Form 1SFS","Balance Sheet LT","1SFS12","Funds Held by Ceding Companies ",0,null,0]
["Form 1SFS","Balance Sheet LT","1SFS13a","Sundry Assets - Derivatives",0,null,0]
["Form 1SFS","Balance Sheet LT","1SFS13b","Sundry Assets - SAC - LT- Variable Annuities",0,null,0]
["Form 1SFS","Balance Sheet LT","1SFS13c","Sundry Assets - SAC - LT- Others",0,null,0]
["Form 1SFS","Balance Sheet LT","1SFS13e","Sundry Assets - Deposit Assets"]
["Form 1SFS","Balance Sheet LT","1SFS13f","Sundry Assets - Deferred Acquisition Costs",0,null,0]
["Form 1SFS","Balance Sheet LT","1SFS13g","Sundry Assets - Net Rec. for Investments",0,null,0]
["Form 1SFS","Balance Sheet LT","1SFS13h","Sundry Assets - Other 1",0,null,0]
["Form 1SFS","Balance Sheet LT","1SFS13i","Sundry Assets - Other 2",0,null,0]
["Form 1SFS","Balance Sheet LT","1SFS13j","Sundry Assets - Other 3",0,null,0]
["Form 1SFS","Balance Sheet LT","1SFS14a","Letters of Credit",0,null,0]
["Form 1SFS","Balance Sheet LT","1SFS14b","Guarantees",0,null,0]
["Form 1SFS","Balance Sheet LT","1SFS14c","Other Instruments",0,null,0]
["Form 1SFS","Balance Sheet LT","1SFS15","Total Assets",0,null,0]
["Form 1SFS","Balance Sheet LT","1SFS20","Net - Reserves for Reported Claims",0,null,0]
["Form 1SFS","Balance Sheet LT","1SFS21","Net - Reserves for Unreported Claims",0,null,0]
["Form 1SFS","Balance Sheet LT","1SFS22","Net - Policy Reserves - Life",0,null,0]
["Form 1SFS","Balance Sheet LT","1SFS23","Net - Policy Reserves - Accident & Health",0,null,0]
["Form 1SFS","Balance Sheet LT","1SFS24","Net - Policyholder's Funds on Deposit",0,null,0]
["Form 1SFS","Balance Sheet LT","1SFS25","Net - Liability for Future Policyholder Dividends",0,null,0]
["Form 1SFS","Balance Sheet LT","1SFS26","Net - Other LT Insurance Reserves",0,null,0]
["Form 1SFS","Balance Sheet LT","1SFS27bi","R/I Recoverable - Foreign Affiliates",0,null,0]
["Form 1SFS","Balance Sheet LT","1SFS27bii","R/I Recoverable - Domestic Affiliates",0,null,0]
["Form 1SFS","Balance Sheet LT","1SFS27biii","R/I Recoverable - Pools & Assoc.",0,null,0]
["Form 1SFS","Balance Sheet LT","1SFS27biv","R/I Recoverable - All Other",0,null,0]
["Form 1SFS","Balance Sheet LT","1SFS28","Insurance & R/I Balances Payable",0,null,0]
["Form 1SFS","Balance Sheet LT","1SFS29","Commissions, Expenses and Taxes Payable",0,null,0]
["Form 1SFS","Balance Sheet LT","1SFS30","Loans and Notes Payable",0,null,0]
["Form 1SFS","Balance Sheet LT","1SFS31a","Income Taxes Payable",0,null,0]
["Form 1SFS","Balance Sheet LT","1SFS31b","Deferred Taxes Payable",0,null,0]
["Form 1SFS","Balance Sheet LT","1SFS32","Amounts Due to Affiliates",0,null,0]
["Form 1SFS","Balance Sheet LT","1SFS33","Accounts Payable and Accrued Liabilities",0,null,0]
["Form 1SFS","Balance Sheet LT","1SFS34","Funds Held under R/I Contracts",0,null,0]
["Form 1SFS","Balance Sheet LT","1SFS35","Dividends Payable",0,null,0]
["Form 1SFS","Balance Sheet LT","1SFS36a","Sundry Liabilities - Derivative Instruments",0,null,0]
["Form 1SFS","Balance Sheet LT","1SFS36b","Sundry Liabilities - Segregated Accounts",0,null,0]
["Form 1SFS","Balance Sheet LT","1SFS36c","Sundry Liabilities - Deposit Liabilities",0,null,0]
["Form 1SFS","Balance Sheet LT","1SFS36d","Sundry Liabilities - Investments Purchased",0,null,0]
["Form 1SFS","Balance Sheet LT","1SFS36e","Sundry Liabilities - Other 1",0,null,0]
["Form 1SFS","Balance Sheet LT","1SFS36f","Sundry Liabilities - Other 2",0,null,0]
["Form 1SFS","Balance Sheet LT","1SFS36g","Sundry Liabilities - Other 3",0,null,0]
["Form 1SFS","Balance Sheet LT","1SFS37a","Letters of Credit",0,null,0]
["Form 1SFS","Balance Sheet LT","1SFS37b","Guarantees",0,null,0]
["Form 1SFS","Balance Sheet LT","1SFS37c","Other Instruments",0,null,0]
[]
["Form 1SFS","Notes","Form 1SFS","Line 10 - Collaterized Balances",0,null,0,null,null,null,null,null,0,null,0]
["Form 1SFS","Notes","Form 1SFS","Line 11(e) - Collaterized Balances",0,null,0,null,null,null,null,null,0,null,0]
["Form 1SFS","Notes","Form 1SFS","Line 17cii - Collat. in Favor of Insurer",0,null,0,null,null,null,null,null,0,null,0]
["Form 1SFS","Notes","Form 1SFS","Line 13 - Sundry Assets",0,null,0,null,null,null,null,null,0,null,0]
["Form 1SFS","Notes","Form 1SFS","Line 15 - Policy. Oblig. - Cash",0,null,0,null,null,null,null,null,0,null,0]
["Form 1SFS","Notes","Form 1SFS","Line 15 - Policy. Oblig. - Quoted. Inv.",0,null,0,null,null,null,null,null,0,null,0]
["Form 1SFS","Notes","Form 1SFS","Line 15 - Policy. Oblig. - Unquoted. Inv.",0,null,0,null,null,null,null,null,0,null,0]
["Form 1SFS","Notes","Form 1SFS","Line 15 - Policy. Oblig. - Funds Held",0,null,0,null,null,null,null,null,0,null,0]
["Form 1SFS","Notes","Form 1SFS","Line 15 - Policy. Oblig. - Other Assets",0,null,0,null,null,null,null,null,0,null,0]
["Form 1SFS","Notes","Form 1SFS","Line 15 - Policy. Oblig. - Total",0,null,0,null,null,null,null,null,0,null,0]
["Form 1SFS","Notes","Form 1SFS","Line 15 - Other - Cash",0,null,0,null,null,null,null,null,0,null,0]
["Form 1SFS","Notes","Form 1SFS","Line 15 - Other - Quoted. Inv.",0,null,0,null,null,null,null,null,0,null,0]
["Form 1SFS","Notes","Form 1SFS","Line 15 - Other - Unquoted. Inv.",0,null,0,null,null,null,null,null,0,null,0]
["Form 1SFS","Notes","Form 1SFS","Line 15 - Other - Other Assets",0,null,0,null,null,null,null,null,0,null,0]
["Form 1SFS","Notes","Form 1SFS","Line 15 - Other - Total",0,null,0,null,null,null,null,null,0,null,0]
["Form 1SFS","Notes","Form 1SFS","Line 36 - Sundry Liabilities",0,null,0,null,null,null,null,null,0,null,0]
["Form 1SFS","Notes","Form 1SFS","Line 37 - LOC's & Guarantees",0,null,0,null,null,null,null,null,0,null,0]
["Form 1SFS","Notes","Form 1SFS","Line 17 - Prior year note disclosure",0]
["Form 1SFS","Notes","Form 1SFS","Gross Provision - Beg. Of Year",0,null,0]
["Form 1SFS","Notes","Form 1SFS","R/I Recoverable - Beg. Of Year",0,null,0]
["Form 1SFS","Notes","Form 1SFS","Net Provision - Beg. Of Year",0,null,0]
["Form 1SFS","Notes","Form 1SFS","Acquisition / Sale of loss reserves (net):",0,null,0]
["Form 1SFS","Notes","Form 1SFS","Net Losses Incurred - Current Year",0,null,0]
["Form 1SFS","Notes","Form 1SFS","Net Losses Incurred - Prior Years",0,null,0]
["Form 1SFS","Notes","Form 1SFS","Net Losses Incurred - Total",0,null,0]
["Form 1SFS","Notes","Form 1SFS","Losses Paid - Current Year",0,null,0]
["Form 1SFS","Notes","Form 1SFS","Losses Paid - Prior Years",0,null,0]
["Form 1SFS","Notes","Form 1SFS","Losses Paid - Total",0,null,0]
["Form 1SFS","Notes","Form 1SFS","Foreign Exchange and Other",0,null,0]
["Form 1SFS","Notes","Form 1SFS","Net Provision - End Of Year",0,null,0]
["Form 1SFS","Notes","Form 1SFS","R/I Recoverable - End Of Year",0,null,0]
["Form 1SFS","Notes","Form 1SFS","Gross Provision - End Of Year",0,null,0]
["Form 1SFS","Notes","Form 1SFS","Insurance - Gross - Open Balance",0,null,0]
["Form 1SFS","Notes","Form 1SFS","Insurance - Gross - Terminations",0,null,0]
["Form 1SFS","Notes","Form 1SFS","Insurance - Gross - New Business",0,null,0]
["Form 1SFS","Notes","Form 1SFS","Insurance - Gross - Chg.In Force",0,null,0]
["Form 1SFS","Notes","Form 1SFS","Insurance - Gross - Mgmt Actions",0,null,0]
["Form 1SFS","Notes","Form 1SFS","Insurance - Gross - FX",0,null,0]
["Form 1SFS","Notes","Form 1SFS","Insurance - Gross - Closing Balance",0,null,0]
["Form 1SFS","Notes","Form 1SFS","Insurance - R/I - Open Balance",0,null,0]
["Form 1SFS","Notes","Form 1SFS","Insurance - R/I - Terminations",0,null,0]
["Form 1SFS","Notes","Form 1SFS","Insurance - R/I - New Business",0,null,0]
["Form 1SFS","Notes","Form 1SFS","Insurance - R/I - Chg.In Force",0,null,0]
["Form 1SFS","Notes","Form 1SFS","Insurance - R/I - Mgmt Actions",0,null,0]
["Form 1SFS","Notes","Form 1SFS","Insurance - R/I - FX",0,null,0]
["Form 1SFS","Notes","Form 1SFS","Insurance - R/I - Closing Balance",0,null,0]
["Form 1SFS","Notes","Form 1SFS","Insurance - Net - Open Balance",0,null,0]
["Form 1SFS","Notes","Form 1SFS","Insurance - Net - Terminations",0,null,0]
["Form 1SFS","Notes","Form 1SFS","Insurance - Net - New Business",0,null,0]
["Form 1SFS","Notes","Form 1SFS","Insurance - Net - Chg.In Force",0,null,0]
["Form 1SFS","Notes","Form 1SFS","Insurance - Net - Mgmt Actions",0,null,0]
["Form 1SFS","Notes","Form 1SFS","Insurance - Net - FX",0,null,0]
["Form 1SFS","Notes","Form 1SFS","Insurance - Net - Closing Balance",0,null,0]
["Form 1SFS","Notes","Form 1SFS","Invmnt - Gross - Open Balance",0,null,0]
["Form 1SFS","Notes","Form 1SFS","Invmnt - Gross - Terminations",0,null,0]
["Form 1SFS","Notes","Form 1SFS","Invmnt - Gross - New Business",0,null,0]
["Form 1SFS","Notes","Form 1SFS","Invmnt - Gross - Chg.In Force",0,null,0]
["Form 1SFS","Notes","Form 1SFS","Invmnt - Gross - Mgmt Actions",0,null,0]
["Form 1SFS","Notes","Form 1SFS","Invmnt - Gross - FX",0,null,0]
["Form 1SFS","Notes","Form 1SFS","Invmnt - Gross - Closing Balance",0,null,0]
["Form 1SFS","Notes","Form 1SFS","Invmnt - R/I - Open Balance",0,null,0]
["Form 1SFS","Notes","Form 1SFS","Invmnt - R/I - Terminations",0,null,0]
["Form 1SFS","Notes","Form 1SFS","Invmnt - R/I - New Business",0,null,0]
["Form 1SFS","Notes","Form 1SFS","Invmnt - R/I - Chg.In Force",0,null,0]
["Form 1SFS","Notes","Form 1SFS","Invmnt - R/I - Mgmt Actions",0,null,0]
["Form 1SFS","Notes","Form 1SFS","Invmnt - R/I - FX",0,null,0]
["Form 1SFS","Notes","Form 1SFS","Invmnt - R/I - Closing Balance",0,null,0]
["Form 1SFS","Notes","Form 1SFS","Invmnt - Net - Open Balance",0,null,0]
["Form 1SFS","Notes","Form 1SFS","Invmnt - Net - Terminations",0,null,0]
["Form 1SFS","Notes","Form 1SFS","Invmnt - Net - New Business",0,null,0]
["Form 1SFS","Notes","Form 1SFS","Invmnt - Net - Chg.In Force",0,null,0]
["Form 1SFS","Notes","Form 1SFS","Invmnt - Net - Mgmt Actions",0,null,0]
["Form 1SFS","Notes","Form 1SFS","Invmnt - Net - FX",0,null,0]
["Form 1SFS","Notes","Form 1SFS","Invmnt - Net - Closing Balance",0,null,0]
[]
["1EBS","Notes","1EBS","Line 36(i) - Any Other Liabilities",null,null,null,null,null,null,null,null,0,null,0]
["1EBS","Notes","1EBS","Line 36(f) - Details of Deposit Liab.",null,null,null,null,null,null,null,null,0,null,0]
["1EBS","Notes","1EBS","Line 40 - Recon. 1SFS 40 to EBS 40",null,null,null,null,null,null,null,null,0,null,0]
["1EBS","Notes","1EBS","Line 16c - Adj. Counterparty Default",null,null,null,null,null,null,null,null,0,null,0]
["1EBS","Notes","1EBS","Line 17ci - Adj. Counterparty Default",null,null,null,null,null,null,null,null,0,null,0]
["1EBS","Notes","1EBS","Line 16di - BBNI Premium",null,null,null,null,null,null,null,null,0,null,0]
["1EBS","Notes","1EBS","Line 16dii - BBNI Best Est. Prem",null,null,null,null,null,null,null,null,0,null,0]
["1EBS","Notes","1EBS","Line 17di - Loss Provision Discount",null,null,null,null,null,null,null,null,0,null,0]
["1EBS","Notes","1EBS","Line 17dii - Scenario Based Approach",null,null,null,null,null,null,null,null,0,null,0]
["1EBS","Notes","1EBS","Best Estimate Provision - Beg. Of Year",null,null,null,null,null,null,null,null,0,null,0]
["1EBS","Notes","1EBS","Unwind of Discount",null,null,null,null,null,null,null,null,0,null,0]
["1EBS","Notes","1EBS","Net Loss Paid - Prior Years",null,null,null,null,null,null,null,null,0,null,0]
["1EBS","Notes","1EBS","Net Losses Incurred - Prior Years",null,null,null,null,null,null,null,null,0,null,0]
["1EBS","Notes","1EBS","Best Estimate Provision - From PY",null,null,null,null,null,null,null,null,0,null,0]
["1EBS","Notes","1EBS","Net Losses Incurred - Current Year",null,null,null,null,null,null,null,null,0,null,0]
["1EBS","Notes","1EBS","Net Loss Paid - Current Year",null,null,null,null,null,null,null,null,0,null,0]
["1EBS","Notes","1EBS","Foreign Exchange and Other",null,null,null,null,null,null,null,null,0,null,0]
["1EBS","Notes","1EBS","Best Estimate Provision - From CY",null,null,null,null,null,null,null,null,0,null,0]
["1EBS","Notes","1EBS","Impact of Change in Discount Curve",null,null,null,null,null,null,null,null,0,null,0]
["1EBS","Notes","1EBS","Best Estimate Provision - End Of Year",null,null,null,null,null,null,null,null,0,null,0]
[]
[null,null,null,"Income Statement"]
["Form 2SFS","Income Stmt Uncon GEN / CON","2SFS1a","Gross Premium Written - Direct",0,null,0,null,0,null,0]
["Form 2SFS","Income Stmt Uncon GEN / CON","2SFS1b","Gross Premium Written - Assumed",0,null,0,null,0,null,0]
["Form 2SFS","Income Stmt Uncon GEN / CON","2SFS2","R/I Premiums Ceded",0,null,0,null,0,null,0]
["Form 2SFS","Income Stmt Uncon GEN / CON","2SFS4","Change in Unearned Premiums",0,null,0,null,0,null,0]
["Form 2SFS","Income Stmt Uncon GEN / CON","2SFS6","Other Insurance Income",0,null,0,null,0,null,0]
["Form 2SFS","Income Stmt Uncon GEN / CON","2SFS8","Net Losses Incurred",0,null,0,null,0,null,0]
["Form 2SFS","Income Stmt Uncon GEN / CON","2SFS9","Commissions & Brokerage",0,null,0,null,0,null,0]
["Form 2SFS","Income Stmt Uncon GEN / CON","2SFS12a","Gross Premium Written - Direct",null,null,null,null,0,null,0]
["Form 2SFS","Income Stmt Uncon GEN / CON","2SFS12b","Gross Premium Written - Assumed",null,null,null,null,0,null,0]
["Form 2SFS","Income Stmt Uncon GEN / CON","2SFS13","R/I Premiums Ceded",null,null,null,null,0,null,0]
["Form 2SFS","Income Stmt Uncon GEN / CON","2SFS14a","NPW - Life",null,null,null,null,0,null,0]
["Form 2SFS","Income Stmt Uncon GEN / CON","2SFS14b","NPW - Annuities",null,null,null,null,0,null,0]
["Form 2SFS","Income Stmt Uncon GEN / CON","2SFS14c","NPW - Accident & Health",null,null,null,null,0,null,0]
["Form 2SFS","Income Stmt Uncon GEN / CON","2SFS15","Other Insurance Income",null,null,null,null,0,null,0]
["Form 2SFS","Income Stmt Uncon GEN / CON","2SFS17","Claims - Life",null,null,null,null,0,null,0]
["Form 2SFS","Income Stmt Uncon GEN / CON","2SFS18","Policyholders' Dividends",null,null,null,null,0,null,0]
["Form 2SFS","Income Stmt Uncon GEN / CON","2SFS19","Surrenders",null,null,null,null,0,null,0]
["Form 2SFS","Income Stmt Uncon GEN / CON","2SFS20","Maturities",null,null,null,null,0,null,0]
["Form 2SFS","Income Stmt Uncon GEN / CON","2SFS21","Annuities",null,null,null,null,0,null,0]
["Form 2SFS","Income Stmt Uncon GEN / CON","2SFS22","Accident & Health Benefits",null,null,null,null,0,null,0]
["Form 2SFS","Income Stmt Uncon GEN / CON","2SFS23","Commissions",null,null,null,null,0,null,0]
["Form 2SFS","Income Stmt Uncon GEN / CON","2SFS24","Other",null,null,null,null,0,null,0]
["Form 2SFS","Income Stmt Uncon GEN / CON","2SFS26a","Change in Policy Reserves - Life",null,null,null,null,0,null,0]
["Form 2SFS","Income Stmt Uncon GEN / CON","2SFS26b","Change in Policy Reserves - Annuities",null,null,null,null,0,null,0]
["Form 2SFS","Income Stmt Uncon GEN / CON","2SFS26c","Change in Policy Reserves - Accid. & Health",null,null,null,null,0,null,0]
["Form 2SFS","Income Stmt Uncon GEN / CON","2SFS30a","Operating Expense - G&A",0,null,0,null,0,null,0]
["Form 2SFS","Income Stmt Uncon GEN / CON","2SFS30b","Operating Expense - Personnel Costs",0,null,0,null,0,null,0]
["Form 2SFS","Income Stmt Uncon GEN / CON","2SFS30c","Operating Expense - Other",0,null,0,null,0,null,0]
["Form 2SFS","Income Stmt Uncon GEN / CON","2SFS31","Investment Income",0,null,0,null,0,null,0]
["Form 2SFS","Income Stmt Uncon GEN / CON","2SFS32","Other Income",0,null,0,null,0,null,0]
["Form 2SFS","Income Stmt Uncon GEN / CON","2SFS34a","Income Tax - Current",0,null,0,null,0,null,0]
["Form 2SFS","Income Stmt Uncon GEN / CON","2SFS34b","Income Tax - Deferred",0,null,0,null,0,null,0]
["Form 2SFS","Income Stmt Uncon GEN / CON","2SFS36","Realized Gains/Losses",0,null,0,null,0,null,0]
["Form 2SFS","Income Stmt Uncon GEN / CON","2SFS37","Interest Charges",0,null,0,null,0,null,0]
[]
["Form 2SFS","Income Stmt Uncon LT","2SFS12a","Gross Premium Written - Direct",0,null,0]
["Form 2SFS","Income Stmt Uncon LT","2SFS12b","Gross Premium Written - Assumed",0,null,0]
["Form 2SFS","Income Stmt Uncon LT","2SFS13","R/I Premiums Ceded",0,null,0]
["Form 2SFS","Income Stmt Uncon LT","2SFS14a","NPW - Life",0,null,0]
["Form 2SFS","Income Stmt Uncon LT","2SFS14b","NPW - Annuities",0,null,0]
["Form 2SFS","Income Stmt Uncon LT","2SFS14c","NPW - Accident & Health",0,null,0]
["Form 2SFS","Income Stmt Uncon LT","2SFS15","Other Insurance Income",0,null,0]
["Form 2SFS","Income Stmt Uncon LT","2SFS17","Claims - Life",0,null,0]
["Form 2SFS","Income Stmt Uncon LT","2SFS18","Policyholders' Dividends",0,null,0]
["Form 2SFS","Income Stmt Uncon LT","2SFS19","Surrenders",0,null,0]
["Form 2SFS","Income Stmt Uncon LT","2SFS20","Maturities",0,null,0]
["Form 2SFS","Income Stmt Uncon LT","2SFS21","Annuities",0,null,0]
["Form 2SFS","Income Stmt Uncon LT","2SFS22","Accident & Health Benefits",0,null,0]
["Form 2SFS","Income Stmt Uncon LT","2SFS23","Commissions",0,null,0]
["Form 2SFS","Income Stmt Uncon LT","2SFS24","Other",0,null,0]
["Form 2SFS","Income Stmt Uncon LT","2SFS26a","Change in Policy Reserves - Life",0,null,0]
["Form 2SFS","Income Stmt Uncon LT","2SFS26b","Change in Policy Reserves - Annuities",0,null,0]
["Form 2SFS","Income Stmt Uncon LT","2SFS26c","Change in Policy Reserves - Accid. & Health",0,null,0]
["Form 2SFS","Income Stmt Uncon LT","2SFS30a","Operating Expense - G&A",0,null,0]
["Form 2SFS","Income Stmt Uncon LT","2SFS30b","Operating Expense - Personnel Costs",0,null,0]
["Form 2SFS","Income Stmt Uncon LT","2SFS30c","Operating Expense - Other",0,null,0]
["Form 2SFS","Income Stmt Uncon LT","2SFS31","Investment Income",0,null,0]
["Form 2SFS","Income Stmt Uncon LT","2SFS32","Other Income",0,null,0]
["Form 2SFS","Income Stmt Uncon LT","2SFS34a","Income Tax - Current",0,null,0]
["Form 2SFS","Income Stmt Uncon LT","2SFS34b","Income Tax - Deferred",0,null,0]
["Form 2SFS","Income Stmt Uncon LT","2SFS36","Realized Gains/Losses",0,null,0]
["Form 2SFS","Income Stmt Uncon LT","2SFS37","Interest Charges",0,null,0]
[]
[null,null,null,"Statement of Capital & Surplus"]
["Form 8SFS","Stmt of C&S Uncon GEN / CON","8SFS1ai","Capital Stock",0,null,0]
["Form 8SFS","Stmt of C&S Uncon GEN / CON",null,"Common Stock",null,null,null,null,0,null,0]
["Form 8SFS","Stmt of C&S Uncon GEN / CON","8SFS1aii","Preferred Shares",null,null,null,null,0,null,0]
["Form 8SFS","Stmt of C&S Uncon GEN / CON","8SFS1aiii","Treasury Shares",null,null,null,null,0,null,0]
["Form 8SFS","Stmt of C&S Uncon GEN / CON","8SFS1b","Contributed Surplus",0,null,0,null,0,null,0]
["Form 8SFS","Stmt of C&S Uncon GEN / CON","8SFS1ci","Other Fixed Capital - Hybrid Instruments",0,null,0,null,0,null,0]
["Form 8SFS","Stmt of C&S Uncon GEN / CON","8SFS1cii","Other Fixed Capital - Guarantees & Others",0,null,0,null,0,null,0]
["Form 8SFS","Stmt of C&S Uncon GEN / CON","8SFS2a","Statutory Surplus - Beginning of Year",0,null,0,null,0,null,0]
["Form 8SFS","Stmt of C&S Uncon GEN / CON","8SFS2c","Dividends",0,null,0,null,0,null,0]
["Form 8SFS","Stmt of C&S Uncon GEN / CON","8SFS2d","Unrealized Change in Investments",0,null,0,null,0,null,0]
["Form 8SFS","Stmt of C&S Uncon GEN / CON","8SFS2e","Change in Non-Admitted Assets",0,null,0,null,0,null,0]
["Form 8SFS","Stmt of C&S Uncon GEN / CON","8SFS2f","Change in Real Estate",0,null,0,null,0,null,0]
["Form 8SFS","Stmt of C&S Uncon GEN / CON","8SFS2g","Change in Other Statutory Capital",0,null,0,null,0,null,0]
["Form 8SFS","Stmt of C&S Uncon GEN / CON","8SFS3","Minority Interest",0,null,0,null,0,null,0]
[]
["Form 8SFS","Stmt of C&S Uncon LT","8SFS1a","Common Stock",0,null,0]
["Form 8SFS","Stmt of C&S Uncon LT","8SFS1b","Contributed Surplus",0,null,0]
["Form 8SFS","Stmt of C&S Uncon LT","8SFS1ci","Other Fixed Capital - Hybrid Instruments",0,null,0]
["Form 8SFS","Stmt of C&S Uncon LT","8SFS1cii","Other Fixed Capital - Guarantees & Others",0,null,0]
["Form 8SFS","Stmt of C&S Uncon LT","8SFS2a","Statutory Surplus - Beginning of Year",0,null,0]
["Form 8SFS","Stmt of C&S Uncon LT","8SFS2c","Dividends",0,null,0]
["Form 8SFS","Stmt of C&S Uncon LT","8SFS2d","Unrealized Change in Investments",0,null,0]
["Form 8SFS","Stmt of C&S Uncon LT","8SFS2e","Change in Non-Admitted Assets",0,null,0]
["Form 8SFS","Stmt of C&S Uncon LT","8SFS2f","Change in Real Estate",0,null,0]
["Form 8SFS","Stmt of C&S Uncon LT","8SFS2g","Change in Other Statutory Capital",0,null,0]
["Form 8SFS","Stmt of C&S Uncon LT","8SFS3","Minority Interest",0,null,0]
[]
[null,null,null,"BSCR Schedules "]
["Sch II","Investments",null,"Corp. Bonds - BSCR Rate 0",0,null,0,null,null,null,null,null,0,null,0]
["Sch II","Investments",null,"Corp. Bonds - BSCR Rate 1",0,null,0,null,null,null,null,null,0,null,0]
["Sch II","Investments",null,"Corp. Bonds - BSCR Rate 2",0,null,0,null,null,null,null,null,0,null,0]
["Sch II","Investments",null,"Corp. Bonds - BSCR Rate 3",0,null,0,null,null,null,null,null,0,null,0]
["Sch II","Investments",null,"Corp. Bonds - BSCR Rate 4",0,null,0,null,null,null,null,null,0,null,0]
["Sch II","Investments",null,"Corp. Bonds - BSCR Rate 5",0,null,0,null,null,null,null,null,0,null,0]
["Sch II","Investments",null,"Corp. Bonds - BSCR Rate 6",0,null,0,null,null,null,null,null,0,null,0]
["Sch II","Investments",null,"Corp. Bonds - BSCR Rate 7",0,null,0,null,null,null,null,null,0,null,0]
["Sch II","Investments",null,"Corp. Bonds - BSCR Rate 8",0,null,0,null,null,null,null,null,0,null,0]
["Sch II","Investments",null,"Residential MBS - BSCR Rate 1",0,null,0,null,null,null,null,null,0,null,0]
["Sch II","Investments",null,"Residential MBS - BSCR Rate 2",0,null,0,null,null,null,null,null,0,null,0]
["Sch II","Investments",null,"Residential MBS - BSCR Rate 3",0,null,0,null,null,null,null,null,0,null,0]
["Sch II","Investments",null,"Residential MBS - BSCR Rate 4",0,null,0,null,null,null,null,null,0,null,0]
["Sch II","Investments",null,"Residential MBS - BSCR Rate 5",0,null,0,null,null,null,null,null,0,null,0]
["Sch II","Investments",null,"Residential MBS - BSCR Rate 6",0,null,0,null,null,null,null,null,0,null,0]
["Sch II","Investments",null,"Residential MBS - BSCR Rate 7",0,null,0,null,null,null,null,null,0,null,0]
["Sch II","Investments",null,"Residential MBS - BSCR Rate 8",0,null,0,null,null,null,null,null,0,null,0]
["Sch II","Investments",null,"Commercial MBS - BSCR Rate 1",0,null,0,null,null,null,null,null,0,null,0]
["Sch II","Investments",null,"Commercial MBS - BSCR Rate 2",0,null,0,null,null,null,null,null,0,null,0]
["Sch II","Investments",null,"Commercial MBS - BSCR Rate 3",0,null,0,null,null,null,null,null,0,null,0]
["Sch II","Investments",null,"Commercial MBS - BSCR Rate 4",0,null,0,null,null,null,null,null,0,null,0]
["Sch II","Investments",null,"Commercial MBS - BSCR Rate 5",0,null,0,null,null,null,null,null,0,null,0]
["Sch II","Investments",null,"Commercial MBS - BSCR Rate 6",0,null,0,null,null,null,null,null,0,null,0]
["Sch II","Investments",null,"Commercial MBS - BSCR Rate 7",0,null,0,null,null,null,null,null,0,null,0]
["Sch II","Investments",null,"Commercial MBS - BSCR Rate 8",0,null,0,null,null,null,null,null,0,null,0]
["Sch II","Investments",null,"Bonds Mutual Fund - BSCR Rate 0",0,null,0,null,null,null,null,null,0,null,0]
["Sch II","Investments",null,"Bonds Mutual Fund - BSCR Rate 1",0,null,0,null,null,null,null,null,0,null,0]
["Sch II","Investments",null,"Bonds Mutual Fund - BSCR Rate 2",0,null,0,null,null,null,null,null,0,null,0]
["Sch II","Investments",null,"Bonds Mutual Fund - BSCR Rate 3",0,null,0,null,null,null,null,null,0,null,0]
["Sch II","Investments",null,"Bonds Mutual Fund - BSCR Rate 4",0,null,0,null,null,null,null,null,0,null,0]
["Sch II","Investments",null,"Bonds Mutual Fund - BSCR Rate 5",0,null,0,null,null,null,null,null,0,null,0]
["Sch II","Investments",null,"Bonds Mutual Fund - BSCR Rate 6",0,null,0,null,null,null,null,null,0,null,0]
["Sch II","Investments",null,"Bonds Mutual Fund - BSCR Rate 7",0,null,0,null,null,null,null,null,0,null,0]
["Sch II","Investments",null,"Bonds Mutual Fund - BSCR Rate 8",0,null,0,null,null,null,null,null,0,null,0]
["Sch II","Investments",null,"Common Shares - Quoted",0,null,0,null,null,null,null,null,0,null,0]
["Sch II","Investments",null,"Common Shares - Unquoted",0,null,0,null,null,null,null,null,0,null,0]
["Sch II","Investments",null,"Preferred Shares - BSCR Rate 1",0,null,0,null,null,null,null,null,0,null,0]
["Sch II","Investments",null,"Preferred Shares - BSCR Rate 2",0,null,0,null,null,null,null,null,0,null,0]
["Sch II","Investments",null,"Preferred Shares - BSCR Rate 3",0,null,0,null,null,null,null,null,0,null,0]
["Sch II","Investments",null,"Preferred Shares - BSCR Rate 4",0,null,0,null,null,null,null,null,0,null,0]
["Sch II","Investments",null,"Preferred Shares - BSCR Rate 5",0,null,0,null,null,null,null,null,0,null,0]
["Sch II","Investments",null,"Preferred Shares - BSCR Rate 6",0,null,0,null,null,null,null,null,0,null,0]
["Sch II","Investments",null,"Preferred Shares - BSCR Rate 7",0,null,0,null,null,null,null,null,0,null,0]
["Sch II","Investments",null,"Preferred Shares - BSCR Rate 8",0,null,0,null,null,null,null,null,0,null,0]
["Sch II","Investments",null,"Equity Mutual Funds -  Quoted",0,null,0,null,null,null,null,null,0,null,0]
["Sch II","Investments",null,"Equity Mutual Funds -  Unquoted",0,null,0,null,null,null,null,null,0,null,0]
["Sch II","Investments",null,"Mortgage Loans - Insured",0,null,0,null,null,null,null,null,0,null,0]
["Sch II","Investments",null,"Mortgage Loans - Other Commercial",0,null,0,null,null,null,null,null,0,null,0]
["Sch II","Investments",null,"Mortgage Loans - Other Residential",0,null,0,null,null,null,null,null,0,null,0]
["Sch II","Investments",null,"Mortgage Loans - Not Good Stand.",0,null,0,null,null,null,null,null,0,null,0]
["Sch II","Investments",null,"NAIC Resid. MBS - Orig. Class 1",0,null,null,null,null,null,null,null,0]
["Sch II","Investments",null,"NAIC Resid. MBS - Orig. Class 2",0,null,null,null,null,null,null,null,0]
["Sch II","Investments",null,"NAIC Resid. MBS - Orig. Class 3",0,null,null,null,null,null,null,null,0]
["Sch II","Investments",null,"NAIC Resid. MBS - Orig. Class 4",0,null,null,null,null,null,null,null,0]
["Sch II","Investments",null,"NAIC Resid. MBS - Orig. Class 5",0,null,null,null,null,null,null,null,0]
["Sch II","Investments",null,"NAIC Resid. MBS - Orig. Class 6",0,null,null,null,null,null,null,null,0]
["Sch II","Investments",null,"NAIC Resid. MBS - Orig. Total",0,null,null,null,null,null,null,null,0]
["Sch II","Investments",null,"NAIC Resid. MBS - Rev. Class 1",0,null,null,null,null,null,null,null,0]
["Sch II","Investments",null,"NAIC Resid. MBS - Rev. Class 2",0,null,null,null,null,null,null,null,0]
["Sch II","Investments",null,"NAIC Resid. MBS - Rev. Class 3",0,null,null,null,null,null,null,null,0]
["Sch II","Investments",null,"NAIC Resid. MBS - Rev. Class 4",0,null,null,null,null,null,null,null,0]
["Sch II","Investments",null,"NAIC Resid. MBS - Rev. Class 5",0,null,null,null,null,null,null,null,0]
["Sch II","Investments",null,"NAIC Resid. MBS - Rev. Class 6",0,null,null,null,null,null,null,null,0]
["Sch II","Investments",null,"NAIC Resid. MBS - Rev. Total",0,null,null,null,null,null,null,null,0]
["Sch II","Investments",null,"NAIC Comm. MBS - Orig. Class 1",0,null,null,null,null,null,null,null,0]
["Sch II","Investments",null,"NAIC Comm. MBS - Orig. Class 2",0,null,null,null,null,null,null,null,0]
["Sch II","Investments",null,"NAIC Comm. MBS - Orig. Class 3",0,null,null,null,null,null,null,null,0]
["Sch II","Investments",null,"NAIC Comm. MBS - Orig. Class 4",0,null,null,null,null,null,null,null,0]
["Sch II","Investments",null,"NAIC Comm. MBS - Orig. Class 5",0,null,null,null,null,null,null,null,0]
["Sch II","Investments",null,"NAIC Comm. MBS - Orig. Class 6",0,null,null,null,null,null,null,null,0]
["Sch II","Investments",null,"NAIC Comm. MBS - Orig. Total",0,null,null,null,null,null,null,null,0]
["Sch II","Investments",null,"NAIC Comm. MBS - Rev. Class 1",0,null,null,null,null,null,null,null,0]
["Sch II","Investments",null,"NAIC Comm. MBS - Rev. Class 2",0,null,null,null,null,null,null,null,0]
["Sch II","Investments",null,"NAIC Comm. MBS - Rev. Class 3",0,null,null,null,null,null,null,null,0]
["Sch II","Investments",null,"NAIC Comm. MBS - Rev. Class 4",0,null,null,null,null,null,null,null,0]
["Sch II","Investments",null,"NAIC Comm. MBS - Rev. Class 5",0,null,null,null,null,null,null,null,0]
["Sch II","Investments",null,"NAIC Comm. MBS - Rev. Class 6",0,null,null,null,null,null,null,null,0]
["Sch II","Investments",null,"NAIC Comm. MBS - Rev. Total",0,null,null,null,null,null,null,null,0]
[]
["Sch IIA","Funds Held",null,"Corp. Bonds - BSCR Rate 0",0,null,0,null,null,null,null,null,0,null,0]
["Sch IIA","Funds Held",null,"Corp. Bonds - BSCR Rate 1",0,null,0,null,null,null,null,null,0,null,0]
["Sch IIA","Funds Held",null,"Corp. Bonds - BSCR Rate 2",0,null,0,null,null,null,null,null,0,null,0]
["Sch IIA","Funds Held",null,"Corp. Bonds - BSCR Rate 3",0,null,0,null,null,null,null,null,0,null,0]
["Sch IIA","Funds Held",null,"Corp. Bonds - BSCR Rate 4",0,null,0,null,null,null,null,null,0,null,0]
["Sch IIA","Funds Held",null,"Corp. Bonds - BSCR Rate 5",0,null,0,null,null,null,null,null,0,null,0]
["Sch IIA","Funds Held",null,"Corp. Bonds - BSCR Rate 6",0,null,0,null,null,null,null,null,0,null,0]
["Sch IIA","Funds Held",null,"Corp. Bonds - BSCR Rate 7",0,null,0,null,null,null,null,null,0,null,0]
["Sch IIA","Funds Held",null,"Corp. Bonds - BSCR Rate 8",0,null,0,null,null,null,null,null,0,null,0]
["Sch IIA","Funds Held",null,"Residential MBS - BSCR Rate 1",0,null,0,null,null,null,null,null,0,null,0]
["Sch IIA","Funds Held",null,"Residential MBS - BSCR Rate 2",0,null,0,null,null,null,null,null,0,null,0]
["Sch IIA","Funds Held",null,"Residential MBS - BSCR Rate 3",0,null,0,null,null,null,null,null,0,null,0]
["Sch IIA","Funds Held",null,"Residential MBS - BSCR Rate 4",0,null,0,null,null,null,null,null,0,null,0]
["Sch IIA","Funds Held",null,"Residential MBS - BSCR Rate 5",0,null,0,null,null,null,null,null,0,null,0]
["Sch IIA","Funds Held",null,"Residential MBS - BSCR Rate 6",0,null,0,null,null,null,null,null,0,null,0]
["Sch IIA","Funds Held",null,"Residential MBS - BSCR Rate 7",0,null,0,null,null,null,null,null,0,null,0]
["Sch IIA","Funds Held",null,"Residential MBS - BSCR Rate 8",0,null,0,null,null,null,null,null,0,null,0]
["Sch IIA","Funds Held",null,"Commercial MBS - BSCR Rate 1",0,null,0,null,null,null,null,null,0,null,0]
["Sch IIA","Funds Held",null,"Commercial MBS - BSCR Rate 2",0,null,0,null,null,null,null,null,0,null,0]
["Sch IIA","Funds Held",null,"Commercial MBS - BSCR Rate 3",0,null,0,null,null,null,null,null,0,null,0]
["Sch IIA","Funds Held",null,"Commercial MBS - BSCR Rate 4",0,null,0,null,null,null,null,null,0,null,0]
["Sch IIA","Funds Held",null,"Commercial MBS - BSCR Rate 5",0,null,0,null,null,null,null,null,0,null,0]
["Sch IIA","Funds Held",null,"Commercial MBS - BSCR Rate 6",0,null,0,null,null,null,null,null,0,null,0]
["Sch IIA","Funds Held",null,"Commercial MBS - BSCR Rate 7",0,null,0,null,null,null,null,null,0,null,0]
["Sch IIA","Funds Held",null,"Commercial MBS - BSCR Rate 8",0,null,0,null,null,null,null,null,0,null,0]
["Sch IIA","Funds Held",null,"Bonds Mutual Fund - BSCR Rate 0",0,null,0,null,null,null,null,null,0,null,0]
["Sch IIA","Funds Held",null,"Bonds Mutual Fund - BSCR Rate 1",0,null,0,null,null,null,null,null,0,null,0]
["Sch IIA","Funds Held",null,"Bonds Mutual Fund - BSCR Rate 2",0,null,0,null,null,null,null,null,0,null,0]
["Sch IIA","Funds Held",null,"Bonds Mutual Fund - BSCR Rate 3",0,null,0,null,null,null,null,null,0,null,0]
["Sch IIA","Funds Held",null,"Bonds Mutual Fund - BSCR Rate 4",0,null,0,null,null,null,null,null,0,null,0]
["Sch IIA","Funds Held",null,"Bonds Mutual Fund - BSCR Rate 5",0,null,0,null,null,null,null,null,0,null,0]
["Sch IIA","Funds Held",null,"Bonds Mutual Fund - BSCR Rate 6",0,null,0,null,null,null,null,null,0,null,0]
["Sch IIA","Funds Held",null,"Bonds Mutual Fund - BSCR Rate 7",0,null,0,null,null,null,null,null,0,null,0]
["Sch IIA","Funds Held",null,"Bonds Mutual Fund - BSCR Rate 8",0,null,0,null,null,null,null,null,0,null,0]
["Sch IIA","Funds Held",null,"Common Shares - Quoted",0,null,0,null,null,null,null,null,0,null,0]
["Sch IIA","Funds Held",null,"Common Shares - Unquoted",0,null,0,null,null,null,null,null,0,null,0]
["Sch IIA","Funds Held",null,"Preferred Shares - BSCR Rate 1",0,null,0,null,null,null,null,null,0,null,0]
["Sch IIA","Funds Held",null,"Preferred Shares - BSCR Rate 2",0,null,0,null,null,null,null,null,0,null,0]
["Sch IIA","Funds Held",null,"Preferred Shares - BSCR Rate 3",0,null,0,null,null,null,null,null,0,null,0]
["Sch IIA","Funds Held",null,"Preferred Shares - BSCR Rate 4",0,null,0,null,null,null,null,null,0,null,0]
["Sch IIA","Funds Held",null,"Preferred Shares - BSCR Rate 5",0,null,0,null,null,null,null,null,0,null,0]
["Sch IIA","Funds Held",null,"Preferred Shares - BSCR Rate 6",0,null,0,null,null,null,null,null,0,null,0]
["Sch IIA","Funds Held",null,"Preferred Shares - BSCR Rate 7",0,null,0,null,null,null,null,null,0,null,0]
["Sch IIA","Funds Held",null,"Preferred Shares - BSCR Rate 8",0,null,0,null,null,null,null,null,0,null,0]
["Sch IIA","Funds Held",null,"Equity Mutual Funds -  Quoted",0,null,0,null,null,null,null,null,0,null,0]
["Sch IIA","Funds Held",null,"Equity Mutual Funds -  Unquoted",0,null,0,null,null,null,null,null,0,null,0]
["Sch IIA","Funds Held",null,"Other Investments -  Quoted",0,null,0,null,null,null,null,null,0,null,0]
["Sch IIA","Funds Held",null,"Other Investments -  Unquoted",0,null,0,null,null,null,null,null,0,null,0]
["Sch IIA","Funds Held",null,"Mortgage Loans - Insured",0,null,0,null,null,null,null,null,0,null,0]
["Sch IIA","Funds Held",null,"Mortgage Loans - Other Commercial",0,null,0,null,null,null,null,null,0,null,0]
["Sch IIA","Funds Held",null,"Mortgage Loans - Other Residential",0,null,0,null,null,null,null,null,0,null,0]
["Sch IIA","Funds Held",null,"Mortgage Loans - Not Good Stand.",0,null,0,null,null,null,null,null,0,null,0]
["Sch IIA","Funds Held",null,"Cash and Cash Equivalents",0,null,0,null,null,null,null,null,0,null,0]
["Sch IIA","Funds Held",null,"NAIC Resid. MBS - Orig. Class 1",0,null,null,null,null,null,null,null,0]
["Sch IIA","Funds Held",null,"NAIC Resid. MBS - Orig. Class 2",0,null,null,null,null,null,null,null,0]
["Sch IIA","Funds Held",null,"NAIC Resid. MBS - Orig. Class 3",0,null,null,null,null,null,null,null,0]
["Sch IIA","Funds Held",null,"NAIC Resid. MBS - Orig. Class 4",0,null,null,null,null,null,null,null,0]
["Sch IIA","Funds Held",null,"NAIC Resid. MBS - Orig. Class 5",0,null,null,null,null,null,null,null,0]
["Sch IIA","Funds Held",null,"NAIC Resid. MBS - Orig. Class 6",0,null,null,null,null,null,null,null,0]
["Sch IIA","Funds Held",null,"NAIC Resid. MBS - Orig. Total",0,null,null,null,null,null,null,null,0]
["Sch IIA","Funds Held",null,"NAIC Resid. MBS - Rev. Class 1",0,null,null,null,null,null,null,null,0]
["Sch IIA","Funds Held",null,"NAIC Resid. MBS - Rev. Class 2",0,null,null,null,null,null,null,null,0]
["Sch IIA","Funds Held",null,"NAIC Resid. MBS - Rev. Class 3",0,null,null,null,null,null,null,null,0]
["Sch IIA","Funds Held",null,"NAIC Resid. MBS - Rev. Class 4",0,null,null,null,null,null,null,null,0]
["Sch IIA","Funds Held",null,"NAIC Resid. MBS - Rev. Class 5",0,null,null,null,null,null,null,null,0]
["Sch IIA","Funds Held",null,"NAIC Resid. MBS - Rev. Class 6",0,null,null,null,null,null,null,null,0]
["Sch IIA","Funds Held",null,"NAIC Resid. MBS - Rev. Total",0,null,null,null,null,null,null,null,0]
["Sch IIA","Funds Held",null,"NAIC Comm. MBS - Orig. Class 1",0,null,null,null,null,null,null,null,0]
["Sch IIA","Funds Held",null,"NAIC Comm. MBS - Orig. Class 2",0,null,null,null,null,null,null,null,0]
["Sch IIA","Funds Held",null,"NAIC Comm. MBS - Orig. Class 3",0,null,null,null,null,null,null,null,0]
["Sch IIA","Funds Held",null,"NAIC Comm. MBS - Orig. Class 4",0,null,null,null,null,null,null,null,0]
["Sch IIA","Funds Held",null,"NAIC Comm. MBS - Orig. Class 5",0,null,null,null,null,null,null,null,0]
["Sch IIA","Funds Held",null,"NAIC Comm. MBS - Orig. Class 6",0,null,null,null,null,null,null,null,0]
["Sch IIA","Funds Held",null,"NAIC Comm. MBS - Orig. Total",0,null,null,null,null,null,null,null,0]
["Sch IIA","Funds Held",null,"NAIC Comm. MBS - Rev. Class 1",0,null,null,null,null,null,null,null,0]
["Sch IIA","Funds Held",null,"NAIC Comm. MBS - Rev. Class 2",0,null,null,null,null,null,null,null,0]
["Sch IIA","Funds Held",null,"NAIC Comm. MBS - Rev. Class 3",0,null,null,null,null,null,null,null,0]
["Sch IIA","Funds Held",null,"NAIC Comm. MBS - Rev. Class 4",0,null,null,null,null,null,null,null,0]
["Sch IIA","Funds Held",null,"NAIC Comm. MBS - Rev. Class 5",0,null,null,null,null,null,null,null,0]
["Sch IIA","Funds Held",null,"NAIC Comm. MBS - Rev. Class 6",0,null,null,null,null,null,null,null,0]
["Sch IIA","Funds Held",null,"NAIC Comm. MBS - Rev. Total",0,null,null,null,null,null,null,null,0]
[]
["Sch III","Losses by Line",null,"Reserve - Property Catastrophe",0,null,0]
["Sch III","Losses by Line",null,"Reserve - Property",0,null,0]
["Sch III","Losses by Line",null,"Reserve - Property Non-Proportion",0,null,0]
["Sch III","Losses by Line",null,"Reserve - Personal Accident",0,null,0]
["Sch III","Losses by Line",null,"Reserve - Personal Acc. Non Prop.",0,null,0]
["Sch III","Losses by Line",null,"Reserve - Aviation",0,null,0]
["Sch III","Losses by Line",null,"Reserve - Aviation Non-Proportional",0,null,0]
["Sch III","Losses by Line",null,"Reserve - Credit Surety",0,null,0]
["Sch III","Losses by Line",null,"Reserve - Credit Surety Non-Prop.",0,null,0]
["Sch III","Losses by Line",null,"Reserve - Energy",0,null,0]
["Sch III","Losses by Line",null,"Reserve - Energy Non-Proportional",0,null,0]
["Sch III","Losses by Line",null,"Reserve - US Casualty",0,null,0]
["Sch III","Losses by Line",null,"Reserve - US Casualty Non-Prop.",0,null,0]
["Sch III","Losses by Line",null,"Reserve - US Professional",0,null,0]
["Sch III","Losses by Line",null,"Reserve - US Professional Non-Prop.",0,null,0]
["Sch III","Losses by Line",null,"Reserve - US Specialty",0,null,0]
["Sch III","Losses by Line",null,"Reserve - US Specialty Non-Prop.",0,null,0]
["Sch III","Losses by Line",null,"Reserve - Int'l Motor",0,null,0]
["Sch III","Losses by Line",null,"Reserve - Int'l Motor Non-Prop.",0,null,0]
["Sch III","Losses by Line",null,"Reserve - Int'l Casualty",0,null,0]
["Sch III","Losses by Line",null,"Reserve - Int'l Casualty Non-Prop.",0,null,0]
["Sch III","Losses by Line",null,"Reserve - Retro Property",0,null,0]
["Sch III","Losses by Line",null,"Reserve - Structured / Finite R/I",0,null,0]
["Sch III","Losses by Line",null,"Reserve - Health",0,null,0]
[]
["Sch III","Losses by Line",null,"Res. Gross - Property Catastrophe",null,null,null,null,null,null,null,null,0]
["Sch III","Losses by Line",null,"Res. Gross - Property",null,null,null,null,null,null,null,null,0]
["Sch III","Losses by Line",null,"Res. Gross - Property Non-Proportion",null,null,null,null,null,null,null,null,0]
["Sch III","Losses by Line",null,"Res. Gross - Personal Accident",null,null,null,null,null,null,null,null,0]
["Sch III","Losses by Line",null,"Res. Gross - Personal Acc. Non Prop.",null,null,null,null,null,null,null,null,0]
["Sch III","Losses by Line",null,"Res. Gross - Aviation",null,null,null,null,null,null,null,null,0]
["Sch III","Losses by Line",null,"Res. Gross - Aviation Non-Proportional",null,null,null,null,null,null,null,null,0]
["Sch III","Losses by Line",null,"Res. Gross - Credit Surety",null,null,null,null,null,null,null,null,0]
["Sch III","Losses by Line",null,"Res. Gross - Credit Surety Non-Prop.",null,null,null,null,null,null,null,null,0]
["Sch III","Losses by Line",null,"Res. Gross - Energy",null,null,null,null,null,null,null,null,0]
["Sch III","Losses by Line",null,"Res. Gross - Energy Non-Proportional",null,null,null,null,null,null,null,null,0]
["Sch III","Losses by Line",null,"Res. Gross - US Casualty",null,null,null,null,null,null,null,null,0]
["Sch III","Losses by Line",null,"Res. Gross - US Casualty Non-Prop.",null,null,null,null,null,null,null,null,0]
["Sch III","Losses by Line",null,"Res. Gross - US Professional",null,null,null,null,null,null,null,null,0]
["Sch III","Losses by Line",null,"Res. Gross - US Professional Non-Prop.",null,null,null,null,null,null,null,null,0]
["Sch III","Losses by Line",null,"Res. Gross - US Specialty",null,null,null,null,null,null,null,null,0]
["Sch III","Losses by Line",null,"Res. Gross - US Specialty Non-Prop.",null,null,null,null,null,null,null,null,0]
["Sch III","Losses by Line",null,"Res. Gross - Int'l Motor",null,null,null,null,null,null,null,null,0]
["Sch III","Losses by Line",null,"Res. Gross - Int'l Motor Non-Prop.",null,null,null,null,null,null,null,null,0]
["Sch III","Losses by Line",null,"Res. Gross - Int'l Casualty",null,null,null,null,null,null,null,null,0]
["Sch III","Losses by Line",null,"Res. Gross - Int'l Casualty Non-Prop.",null,null,null,null,null,null,null,null,0]
["Sch III","Losses by Line",null,"Res. Gross - Retro Property",null,null,null,null,null,null,null,null,0]
["Sch III","Losses by Line",null,"Res. Gross - Structured / Finite R/I",null,null,null,null,null,null,null,null,0]
["Sch III","Losses by Line",null,"Res. Gross - Health",null,null,null,null,null,null,null,null,0]
["Sch III","Losses by Line",null,"Res. Net - Property Catastrophe",null,null,null,null,null,null,null,null,0]
["Sch III","Losses by Line",null,"Res. Net - Property",null,null,null,null,null,null,null,null,0]
["Sch III","Losses by Line",null,"Res. Net - Property Non-Proportion",null,null,null,null,null,null,null,null,0]
["Sch III","Losses by Line",null,"Res. Net - Personal Accident",null,null,null,null,null,null,null,null,0]
["Sch III","Losses by Line",null,"Res. Net - Personal Acc. Non Prop.",null,null,null,null,null,null,null,null,0]
["Sch III","Losses by Line",null,"Res. Net - Aviation",null,null,null,null,null,null,null,null,0]
["Sch III","Losses by Line",null,"Res. Net - Aviation Non-Proportional",null,null,null,null,null,null,null,null,0]
["Sch III","Losses by Line",null,"Res. Net - Credit Surety",null,null,null,null,null,null,null,null,0]
["Sch III","Losses by Line",null,"Res. Net - Credit Surety Non-Prop.",null,null,null,null,null,null,null,null,0]
["Sch III","Losses by Line",null,"Res. Net - Energy",null,null,null,null,null,null,null,null,0]
["Sch III","Losses by Line",null,"Res. Net - Energy Non-Proportional",null,null,null,null,null,null,null,null,0]
["Sch III","Losses by Line",null,"Res. Net - US Casualty",null,null,null,null,null,null,null,null,0]
["Sch III","Losses by Line",null,"Res. Net - US Casualty Non-Prop.",null,null,null,null,null,null,null,null,0]
["Sch III","Losses by Line",null,"Res. Net - US Professional",null,null,null,null,null,null,null,null,0]
["Sch III","Losses by Line",null,"Res. Net - US Professional Non-Prop.",null,null,null,null,null,null,null,null,0]
["Sch III","Losses by Line",null,"Res. Net - US Specialty",null,null,null,null,null,null,null,null,0]
["Sch III","Losses by Line",null,"Res. Net - US Specialty Non-Prop.",null,null,null,null,null,null,null,null,0]
["Sch III","Losses by Line",null,"Res. Net - Int'l Motor",null,null,null,null,null,null,null,null,0]
["Sch III","Losses by Line",null,"Res. Net - Int'l Motor Non-Prop.",null,null,null,null,null,null,null,null,0]
["Sch III","Losses by Line",null,"Res. Net - Int'l Casualty",null,null,null,null,null,null,null,null,0]
["Sch III","Losses by Line",null,"Res. Net - Int'l Casualty Non-Prop.",null,null,null,null,null,null,null,null,0]
["Sch III","Losses by Line",null,"Res. Net - Retro Property",null,null,null,null,null,null,null,null,0]
["Sch III","Losses by Line",null,"Res. Net - Structured / Finite R/I",null,null,null,null,null,null,null,null,0]
["Sch III","Losses by Line",null,"Res. Net - Health",null,null,null,null,null,null,null,null,0]
["Sch III","Losses by Line",null,"Note 16di - Property Catastrophe",null,null,null,null,null,null,null,null,0]
["Sch III","Losses by Line",null,"Note 16di - Property",null,null,null,null,null,null,null,null,0]
["Sch III","Losses by Line",null,"Note 16di - Property Non-Proportion",null,null,null,null,null,null,null,null,0]
["Sch III","Losses by Line",null,"Note 16di - Personal Accident",null,null,null,null,null,null,null,null,0]
["Sch III","Losses by Line",null,"Note 16di - Personal Acc. Non Prop.",null,null,null,null,null,null,null,null,0]
["Sch III","Losses by Line",null,"Note 16di - Aviation",null,null,null,null,null,null,null,null,0]
["Sch III","Losses by Line",null,"Note 16di - Aviation Non-Proportional",null,null,null,null,null,null,null,null,0]
["Sch III","Losses by Line",null,"Note 16di - Credit Surety",null,null,null,null,null,null,null,null,0]
["Sch III","Losses by Line",null,"Note 16di - Credit Surety Non-Prop.",null,null,null,null,null,null,null,null,0]
["Sch III","Losses by Line",null,"Note 16di - Energy",null,null,null,null,null,null,null,null,0]
["Sch III","Losses by Line",null,"Note 16di - Energy Non-Proportional",null,null,null,null,null,null,null,null,0]
["Sch III","Losses by Line",null,"Note 16di - US Casualty",null,null,null,null,null,null,null,null,0]
["Sch III","Losses by Line",null,"Note 16di - US Casualty Non-Prop.",null,null,null,null,null,null,null,null,0]
["Sch III","Losses by Line",null,"Note 16di - US Professional",null,null,null,null,null,null,null,null,0]
["Sch III","Losses by Line",null,"Note 16di - US Professional Non-Prop.",null,null,null,null,null,null,null,null,0]
["Sch III","Losses by Line",null,"Note 16di - US Specialty",null,null,null,null,null,null,null,null,0]
["Sch III","Losses by Line",null,"Note 16di - US Specialty Non-Prop.",null,null,null,null,null,null,null,null,0]
["Sch III","Losses by Line",null,"Note 16di - Int'l Motor",null,null,null,null,null,null,null,null,0]
["Sch III","Losses by Line",null,"Note 16di - Int'l Motor Non-Prop.",null,null,null,null,null,null,null,null,0]
["Sch III","Losses by Line",null,"Note 16di - Int'l Casualty",null,null,null,null,null,null,null,null,0]
["Sch III","Losses by Line",null,"Note 16di - Int'l Casualty Non-Prop.",null,null,null,null,null,null,null,null,0]
["Sch III","Losses by Line",null,"Note 16di - Retro Property",null,null,null,null,null,null,null,null,0]
["Sch III","Losses by Line",null,"Note 16di - Structured / Finite R/I",null,null,null,null,null,null,null,null,0]
["Sch III","Losses by Line",null,"Note 16di - Health",null,null,null,null,null,null,null,null,0]
["Sch III","Losses by Line",null,"Note 16dii - Property Catastrophe",null,null,null,null,null,null,null,null,0]
["Sch III","Losses by Line",null,"Note 16dii - Property",null,null,null,null,null,null,null,null,0]
["Sch III","Losses by Line",null,"Note 16dii - Property Non-Proportion",null,null,null,null,null,null,null,null,0]
["Sch III","Losses by Line",null,"Note 16dii - Personal Accident",null,null,null,null,null,null,null,null,0]
["Sch III","Losses by Line",null,"Note 16dii - Personal Acc. Non Prop.",null,null,null,null,null,null,null,null,0]
["Sch III","Losses by Line",null,"Note 16dii - Aviation",null,null,null,null,null,null,null,null,0]
["Sch III","Losses by Line",null,"Note 16dii - Aviation Non-Proportional",null,null,null,null,null,null,null,null,0]
["Sch III","Losses by Line",null,"Note 16dii - Credit Surety",null,null,null,null,null,null,null,null,0]
["Sch III","Losses by Line",null,"Note 16dii - Credit Surety Non-Prop.",null,null,null,null,null,null,null,null,0]
["Sch III","Losses by Line",null,"Note 16dii - Energy",null,null,null,null,null,null,null,null,0]
["Sch III","Losses by Line",null,"Note 16dii - Energy Non-Proportional",null,null,null,null,null,null,null,null,0]
["Sch III","Losses by Line",null,"Note 16dii - US Casualty",null,null,null,null,null,null,null,null,0]
["Sch III","Losses by Line",null,"Note 16dii - US Casualty Non-Prop.",null,null,null,null,null,null,null,null,0]
["Sch III","Losses by Line",null,"Note 16dii - US Professional",null,null,null,null,null,null,null,null,0]
["Sch III","Losses by Line",null,"Note 16dii - US Professional Non-Prop.",null,null,null,null,null,null,null,null,0]
["Sch III","Losses by Line",null,"Note 16dii - US Specialty",null,null,null,null,null,null,null,null,0]
["Sch III","Losses by Line",null,"Note 16dii - US Specialty Non-Prop.",null,null,null,null,null,null,null,null,0]
["Sch III","Losses by Line",null,"Note 16dii - Int'l Motor",null,null,null,null,null,null,null,null,0]
["Sch III","Losses by Line",null,"Note 16dii - Int'l Motor Non-Prop.",null,null,null,null,null,null,null,null,0]
["Sch III","Losses by Line",null,"Note 16dii - Int'l Casualty",null,null,null,null,null,null,null,null,0]
["Sch III","Losses by Line",null,"Note 16dii - Int'l Casualty Non-Prop.",null,null,null,null,null,null,null,null,0]
["Sch III","Losses by Line",null,"Note 16dii - Retro Property",null,null,null,null,null,null,null,null,0]
["Sch III","Losses by Line",null,"Note 16dii - Structured / Finite R/I",null,null,null,null,null,null,null,null,0]
["Sch III","Losses by Line",null,"Note 16dii - Health",null,null,null,null,null,null,null,null,0]
["Sch III","Losses by Line",null,"Note 17d - Property Catastrophe",null,null,null,null,null,null,null,null,0]
["Sch III","Losses by Line",null,"Note 17d - Property",null,null,null,null,null,null,null,null,0]
["Sch III","Losses by Line",null,"Note 17d - Property Non-Proportion",null,null,null,null,null,null,null,null,0]
["Sch III","Losses by Line",null,"Note 17d - Personal Accident",null,null,null,null,null,null,null,null,0]
["Sch III","Losses by Line",null,"Note 17d - Personal Acc. Non Prop.",null,null,null,null,null,null,null,null,0]
["Sch III","Losses by Line",null,"Note 17d - Aviation",null,null,null,null,null,null,null,null,0]
["Sch III","Losses by Line",null,"Note 17d - Aviation Non-Proportional",null,null,null,null,null,null,null,null,0]
["Sch III","Losses by Line",null,"Note 17d - Credit Surety",null,null,null,null,null,null,null,null,0]
["Sch III","Losses by Line",null,"Note 17d - Credit Surety Non-Prop.",null,null,null,null,null,null,null,null,0]
["Sch III","Losses by Line",null,"Note 17d - Energy",null,null,null,null,null,null,null,null,0]
["Sch III","Losses by Line",null,"Note 17d - Energy Non-Proportional",null,null,null,null,null,null,null,null,0]
["Sch III","Losses by Line",null,"Note 17d - US Casualty",null,null,null,null,null,null,null,null,0]
["Sch III","Losses by Line",null,"Note 17d - US Casualty Non-Prop.",null,null,null,null,null,null,null,null,0]
["Sch III","Losses by Line",null,"Note 17d - US Professional",null,null,null,null,null,null,null,null,0]
["Sch III","Losses by Line",null,"Note 17d - US Professional Non-Prop.",null,null,null,null,null,null,null,null,0]
["Sch III","Losses by Line",null,"Note 17d - US Specialty",null,null,null,null,null,null,null,null,0]
["Sch III","Losses by Line",null,"Note 17d - US Specialty Non-Prop.",null,null,null,null,null,null,null,null,0]
["Sch III","Losses by Line",null,"Note 17d - Int'l Motor",null,null,null,null,null,null,null,null,0]
["Sch III","Losses by Line",null,"Note 17d - Int'l Motor Non-Prop.",null,null,null,null,null,null,null,null,0]
["Sch III","Losses by Line",null,"Note 17d - Int'l Casualty",null,null,null,null,null,null,null,null,0]
["Sch III","Losses by Line",null,"Note 17d - Int'l Casualty Non-Prop.",null,null,null,null,null,null,null,null,0]
["Sch III","Losses by Line",null,"Note 17d - Retro Property",null,null,null,null,null,null,null,null,0]
["Sch III","Losses by Line",null,"Note 17d - Structured / Finite R/I",null,null,null,null,null,null,null,null,0]
["Sch III","Losses by Line",null,"Note 17d - Health",null,null,null,null,null,null,null,null,0]
[]
["Sch IIIA","Losses by Zone",null,"Res. Zn 1 - Property Catastrophe",null,null,null,null,null,null,null,null,0]
["Sch IIIA","Losses by Zone",null,"Res. Zn 1 - Property",null,null,null,null,null,null,null,null,0]
["Sch IIIA","Losses by Zone",null,"Res. Zn 1 - Property Non-Proportion",null,null,null,null,null,null,null,null,0]
["Sch IIIA","Losses by Zone",null,"Res. Zn 1 - Personal Accident",null,null,null,null,null,null,null,null,0]
["Sch IIIA","Losses by Zone",null,"Res. Zn 1 - Personal Acc. Non Prop.",null,null,null,null,null,null,null,null,0]
["Sch IIIA","Losses by Zone",null,"Res. Zn 1 - Aviation",null,null,null,null,null,null,null,null,0]
["Sch IIIA","Losses by Zone",null,"Res. Zn 1 - Aviation Non-Proportional",null,null,null,null,null,null,null,null,0]
["Sch IIIA","Losses by Zone",null,"Res. Zn 1 - Credit Surety",null,null,null,null,null,null,null,null,0]
["Sch IIIA","Losses by Zone",null,"Res. Zn 1 - Credit Surety Non-Prop.",null,null,null,null,null,null,null,null,0]
["Sch IIIA","Losses by Zone",null,"Res. Zn 1 - Energy",null,null,null,null,null,null,null,null,0]
["Sch IIIA","Losses by Zone",null,"Res. Zn 1 - Energy Non-Proportional",null,null,null,null,null,null,null,null,0]
["Sch IIIA","Losses by Zone",null,"Res. Zn 1 - US Casualty",null,null,null,null,null,null,null,null,0]
["Sch IIIA","Losses by Zone",null,"Res. Zn 1 - US Casualty Non-Prop.",null,null,null,null,null,null,null,null,0]
["Sch IIIA","Losses by Zone",null,"Res. Zn 1 - US Professional",null,null,null,null,null,null,null,null,0]
["Sch IIIA","Losses by Zone",null,"Res. Zn 1 - US Professional Non-Prop.",null,null,null,null,null,null,null,null,0]
["Sch IIIA","Losses by Zone",null,"Res. Zn 1 - US Specialty",null,null,null,null,null,null,null,null,0]
["Sch IIIA","Losses by Zone",null,"Res. Zn 1 - US Specialty Non-Prop.",null,null,null,null,null,null,null,null,0]
["Sch IIIA","Losses by Zone",null,"Res. Zn 1 - Int'l Motor",null,null,null,null,null,null,null,null,0]
["Sch IIIA","Losses by Zone",null,"Res. Zn 1 - Int'l Motor Non-Prop.",null,null,null,null,null,null,null,null,0]
["Sch IIIA","Losses by Zone",null,"Res. Zn 1 - Int'l Casualty",null,null,null,null,null,null,null,null,0]
["Sch IIIA","Losses by Zone",null,"Res. Zn 1 - Int'l Casualty Non-Prop.",null,null,null,null,null,null,null,null,0]
["Sch IIIA","Losses by Zone",null,"Res. Zn 1 - Retro Property",null,null,null,null,null,null,null,null,0]
["Sch IIIA","Losses by Zone",null,"Res. Zn 1 - Structured / Finite R/I",null,null,null,null,null,null,null,null,0]
["Sch IIIA","Losses by Zone",null,"Res. Zn 1 - Health",null,null,null,null,null,null,null,null,0]
["Sch IIIA","Losses by Zone",null,"Res. Zn 1 - Total",null,null,null,null,null,null,null,null,0]
["Sch IIIA","Losses by Zone",null,"Res. Zn 2 - Property Catastrophe",null,null,null,null,null,null,null,null,0]
["Sch IIIA","Losses by Zone",null,"Res. Zn 2 - Property",null,null,null,null,null,null,null,null,0]
["Sch IIIA","Losses by Zone",null,"Res. Zn 2 - Property Non-Proportion",null,null,null,null,null,null,null,null,0]
["Sch IIIA","Losses by Zone",null,"Res. Zn 2 - Personal Accident",null,null,null,null,null,null,null,null,0]
["Sch IIIA","Losses by Zone",null,"Res. Zn 2 - Personal Acc. Non Prop.",null,null,null,null,null,null,null,null,0]
["Sch IIIA","Losses by Zone",null,"Res. Zn 2 - Aviation",null,null,null,null,null,null,null,null,0]
["Sch IIIA","Losses by Zone",null,"Res. Zn 2 - Aviation Non-Proportional",null,null,null,null,null,null,null,null,0]
["Sch IIIA","Losses by Zone",null,"Res. Zn 2 - Credit Surety",null,null,null,null,null,null,null,null,0]
["Sch IIIA","Losses by Zone",null,"Res. Zn 2 - Credit Surety Non-Prop.",null,null,null,null,null,null,null,null,0]
["Sch IIIA","Losses by Zone",null,"Res. Zn 2 - Energy",null,null,null,null,null,null,null,null,0]
["Sch IIIA","Losses by Zone",null,"Res. Zn 2 - Energy Non-Proportional",null,null,null,null,null,null,null,null,0]
["Sch IIIA","Losses by Zone",null,"Res. Zn 2 - US Casualty",null,null,null,null,null,null,null,null,0]
["Sch IIIA","Losses by Zone",null,"Res. Zn 2 - US Casualty Non-Prop.",null,null,null,null,null,null,null,null,0]
["Sch IIIA","Losses by Zone",null,"Res. Zn 2 - US Professional",null,null,null,null,null,null,null,null,0]
["Sch IIIA","Losses by Zone",null,"Res. Zn 2 - US Professional Non-Prop.",null,null,null,null,null,null,null,null,0]
["Sch IIIA","Losses by Zone",null,"Res. Zn 2 - US Specialty",null,null,null,null,null,null,null,null,0]
["Sch IIIA","Losses by Zone",null,"Res. Zn 2 - US Specialty Non-Prop.",null,null,null,null,null,null,null,null,0]
["Sch IIIA","Losses by Zone",null,"Res. Zn 2 - Int'l Motor",null,null,null,null,null,null,null,null,0]
["Sch IIIA","Losses by Zone",null,"Res. Zn 2 - Int'l Motor Non-Prop.",null,null,null,null,null,null,null,null,0]
["Sch IIIA","Losses by Zone",null,"Res. Zn 2 - Int'l Casualty",null,null,null,null,null,null,null,null,0]
["Sch IIIA","Losses by Zone",null,"Res. Zn 2 - Int'l Casualty Non-Prop.",null,null,null,null,null,null,null,null,0]
["Sch IIIA","Losses by Zone",null,"Res. Zn 2 - Retro Property",null,null,null,null,null,null,null,null,0]
["Sch IIIA","Losses by Zone",null,"Res. Zn 2 - Structured / Finite R/I",null,null,null,null,null,null,null,null,0]
["Sch IIIA","Losses by Zone",null,"Res. Zn 2 - Health",null,null,null,null,null,null,null,null,0]
["Sch IIIA","Losses by Zone",null,"Res. Zn 2 - Total",null,null,null,null,null,null,null,null,0]
["Sch IIIA","Losses by Zone",null,"Res. Zn 3 - Property Catastrophe",null,null,null,null,null,null,null,null,0]
["Sch IIIA","Losses by Zone",null,"Res. Zn 3 - Property",null,null,null,null,null,null,null,null,0]
["Sch IIIA","Losses by Zone",null,"Res. Zn 3 - Property Non-Proportion",null,null,null,null,null,null,null,null,0]
["Sch IIIA","Losses by Zone",null,"Res. Zn 3 - Personal Accident",null,null,null,null,null,null,null,null,0]
["Sch IIIA","Losses by Zone",null,"Res. Zn 3 - Personal Acc. Non Prop.",null,null,null,null,null,null,null,null,0]
["Sch IIIA","Losses by Zone",null,"Res. Zn 3 - Aviation",null,null,null,null,null,null,null,null,0]
["Sch IIIA","Losses by Zone",null,"Res. Zn 3 - Aviation Non-Proportional",null,null,null,null,null,null,null,null,0]
["Sch IIIA","Losses by Zone",null,"Res. Zn 3 - Credit Surety",null,null,null,null,null,null,null,null,0]
["Sch IIIA","Losses by Zone",null,"Res. Zn 3 - Credit Surety Non-Prop.",null,null,null,null,null,null,null,null,0]
["Sch IIIA","Losses by Zone",null,"Res. Zn 3 - Energy",null,null,null,null,null,null,null,null,0]
["Sch IIIA","Losses by Zone",null,"Res. Zn 3 - Energy Non-Proportional",null,null,null,null,null,null,null,null,0]
["Sch IIIA","Losses by Zone",null,"Res. Zn 3 - US Casualty",null,null,null,null,null,null,null,null,0]
["Sch IIIA","Losses by Zone",null,"Res. Zn 3 - US Casualty Non-Prop.",null,null,null,null,null,null,null,null,0]
["Sch IIIA","Losses by Zone",null,"Res. Zn 3 - US Professional",null,null,null,null,null,null,null,null,0]
["Sch IIIA","Losses by Zone",null,"Res. Zn 3 - US Professional Non-Prop.",null,null,null,null,null,null,null,null,0]
["Sch IIIA","Losses by Zone",null,"Res. Zn 3 - US Specialty",null,null,null,null,null,null,null,null,0]
["Sch IIIA","Losses by Zone",null,"Res. Zn 3 - US Specialty Non-Prop.",null,null,null,null,null,null,null,null,0]
["Sch IIIA","Losses by Zone",null,"Res. Zn 3 - Int'l Motor",null,null,null,null,null,null,null,null,0]
["Sch IIIA","Losses by Zone",null,"Res. Zn 3 - Int'l Motor Non-Prop.",null,null,null,null,null,null,null,null,0]
["Sch IIIA","Losses by Zone",null,"Res. Zn 3 - Int'l Casualty",null,null,null,null,null,null,null,null,0]
["Sch IIIA","Losses by Zone",null,"Res. Zn 3 - Int'l Casualty Non-Prop.",null,null,null,null,null,null,null,null,0]
["Sch IIIA","Losses by Zone",null,"Res. Zn 3 - Retro Property",null,null,null,null,null,null,null,null,0]
["Sch IIIA","Losses by Zone",null,"Res. Zn 3 - Structured / Finite R/I",null,null,null,null,null,null,null,null,0]
["Sch IIIA","Losses by Zone",null,"Res. Zn 3 - Health",null,null,null,null,null,null,null,null,0]
["Sch IIIA","Losses by Zone",null,"Res. Zn 3 - Total",null,null,null,null,null,null,null,null,0]
["Sch IIIA","Losses by Zone",null,"Res. Zn 4 - Property Catastrophe",null,null,null,null,null,null,null,null,0]
["Sch IIIA","Losses by Zone",null,"Res. Zn 4 - Property",null,null,null,null,null,null,null,null,0]
["Sch IIIA","Losses by Zone",null,"Res. Zn 4 - Property Non-Proportion",null,null,null,null,null,null,null,null,0]
["Sch IIIA","Losses by Zone",null,"Res. Zn 4 - Personal Accident",null,null,null,null,null,null,null,null,0]
["Sch IIIA","Losses by Zone",null,"Res. Zn 4 - Personal Acc. Non Prop.",null,null,null,null,null,null,null,null,0]
["Sch IIIA","Losses by Zone",null,"Res. Zn 4 - Aviation",null,null,null,null,null,null,null,null,0]
["Sch IIIA","Losses by Zone",null,"Res. Zn 4 - Aviation Non-Proportional",null,null,null,null,null,null,null,null,0]
["Sch IIIA","Losses by Zone",null,"Res. Zn 4 - Credit Surety",null,null,null,null,null,null,null,null,0]
["Sch IIIA","Losses by Zone",null,"Res. Zn 4 - Credit Surety Non-Prop.",null,null,null,null,null,null,null,null,0]
["Sch IIIA","Losses by Zone",null,"Res. Zn 4 - Energy",null,null,null,null,null,null,null,null,0]
["Sch IIIA","Losses by Zone",null,"Res. Zn 4 - Energy Non-Proportional",null,null,null,null,null,null,null,null,0]
["Sch IIIA","Losses by Zone",null,"Res. Zn 4 - US Casualty",null,null,null,null,null,null,null,null,0]
["Sch IIIA","Losses by Zone",null,"Res. Zn 4 - US Casualty Non-Prop.",null,null,null,null,null,null,null,null,0]
["Sch IIIA","Losses by Zone",null,"Res. Zn 4 - US Professional",null,null,null,null,null,null,null,null,0]
["Sch IIIA","Losses by Zone",null,"Res. Zn 4 - US Professional Non-Prop.",null,null,null,null,null,null,null,null,0]
["Sch IIIA","Losses by Zone",null,"Res. Zn 4 - US Specialty",null,null,null,null,null,null,null,null,0]
["Sch IIIA","Losses by Zone",null,"Res. Zn 4 - US Specialty Non-Prop.",null,null,null,null,null,null,null,null,0]
["Sch IIIA","Losses by Zone",null,"Res. Zn 4 - Int'l Motor",null,null,null,null,null,null,null,null,0]
["Sch IIIA","Losses by Zone",null,"Res. Zn 4 - Int'l Motor Non-Prop.",null,null,null,null,null,null,null,null,0]
["Sch IIIA","Losses by Zone",null,"Res. Zn 4 - Int'l Casualty",null,null,null,null,null,null,null,null,0]
["Sch IIIA","Losses by Zone",null,"Res. Zn 4 - Int'l Casualty Non-Prop.",null,null,null,null,null,null,null,null,0]
["Sch IIIA","Losses by Zone",null,"Res. Zn 4 - Retro Property",null,null,null,null,null,null,null,null,0]
["Sch IIIA","Losses by Zone",null,"Res. Zn 4 - Structured / Finite R/I",null,null,null,null,null,null,null,null,0]
["Sch IIIA","Losses by Zone",null,"Res. Zn 4 - Health",null,null,null,null,null,null,null,null,0]
["Sch IIIA","Losses by Zone",null,"Res. Zn 4 - Total",null,null,null,null,null,null,null,null,0]
["Sch IIIA","Losses by Zone",null,"Res. Zn 5 - Property Catastrophe",null,null,null,null,null,null,null,null,0]
["Sch IIIA","Losses by Zone",null,"Res. Zn 5 - Property",null,null,null,null,null,null,null,null,0]
["Sch IIIA","Losses by Zone",null,"Res. Zn 5 - Property Non-Proportion",null,null,null,null,null,null,null,null,0]
["Sch IIIA","Losses by Zone",null,"Res. Zn 5 - Personal Accident",null,null,null,null,null,null,null,null,0]
["Sch IIIA","Losses by Zone",null,"Res. Zn 5 - Personal Acc. Non Prop.",null,null,null,null,null,null,null,null,0]
["Sch IIIA","Losses by Zone",null,"Res. Zn 5 - Aviation",null,null,null,null,null,null,null,null,0]
["Sch IIIA","Losses by Zone",null,"Res. Zn 5 - Aviation Non-Proportional",null,null,null,null,null,null,null,null,0]
["Sch IIIA","Losses by Zone",null,"Res. Zn 5 - Credit Surety",null,null,null,null,null,null,null,null,0]
["Sch IIIA","Losses by Zone",null,"Res. Zn 5 - Credit Surety Non-Prop.",null,null,null,null,null,null,null,null,0]
["Sch IIIA","Losses by Zone",null,"Res. Zn 5 - Energy",null,null,null,null,null,null,null,null,0]
["Sch IIIA","Losses by Zone",null,"Res. Zn 5 - Energy Non-Proportional",null,null,null,null,null,null,null,null,0]
["Sch IIIA","Losses by Zone",null,"Res. Zn 5 - US Casualty",null,null,null,null,null,null,null,null,0]
["Sch IIIA","Losses by Zone",null,"Res. Zn 5 - US Casualty Non-Prop.",null,null,null,null,null,null,null,null,0]
["Sch IIIA","Losses by Zone",null,"Res. Zn 5 - US Professional",null,null,null,null,null,null,null,null,0]
["Sch IIIA","Losses by Zone",null,"Res. Zn 5 - US Professional Non-Prop.",null,null,null,null,null,null,null,null,0]
["Sch IIIA","Losses by Zone",null,"Res. Zn 5 - US Specialty",null,null,null,null,null,null,null,null,0]
["Sch IIIA","Losses by Zone",null,"Res. Zn 5 - US Specialty Non-Prop.",null,null,null,null,null,null,null,null,0]
["Sch IIIA","Losses by Zone",null,"Res. Zn 5 - Int'l Motor",null,null,null,null,null,null,null,null,0]
["Sch IIIA","Losses by Zone",null,"Res. Zn 5 - Int'l Motor Non-Prop.",null,null,null,null,null,null,null,null,0]
["Sch IIIA","Losses by Zone",null,"Res. Zn 5 - Int'l Casualty",null,null,null,null,null,null,null,null,0]
["Sch IIIA","Losses by Zone",null,"Res. Zn 5 - Int'l Casualty Non-Prop.",null,null,null,null,null,null,null,null,0]
["Sch IIIA","Losses by Zone",null,"Res. Zn 5 - Retro Property",null,null,null,null,null,null,null,null,0]
["Sch IIIA","Losses by Zone",null,"Res. Zn 5 - Structured / Finite R/I",null,null,null,null,null,null,null,null,0]
["Sch IIIA","Losses by Zone",null,"Res. Zn 5 - Health",null,null,null,null,null,null,null,null,0]
["Sch IIIA","Losses by Zone",null,"Res. Zn 5 - Total",null,null,null,null,null,null,null,null,0]
["Sch IIIA","Losses by Zone",null,"Res. Zn 6 - Property Catastrophe",null,null,null,null,null,null,null,null,0]
["Sch IIIA","Losses by Zone",null,"Res. Zn 6 - Property",null,null,null,null,null,null,null,null,0]
["Sch IIIA","Losses by Zone",null,"Res. Zn 6 - Property Non-Proportion",null,null,null,null,null,null,null,null,0]
["Sch IIIA","Losses by Zone",null,"Res. Zn 6 - Personal Accident",null,null,null,null,null,null,null,null,0]
["Sch IIIA","Losses by Zone",null,"Res. Zn 6 - Personal Acc. Non Prop.",null,null,null,null,null,null,null,null,0]
["Sch IIIA","Losses by Zone",null,"Res. Zn 6 - Aviation",null,null,null,null,null,null,null,null,0]
["Sch IIIA","Losses by Zone",null,"Res. Zn 6 - Aviation Non-Proportional",null,null,null,null,null,null,null,null,0]
["Sch IIIA","Losses by Zone",null,"Res. Zn 6 - Credit Surety",null,null,null,null,null,null,null,null,0]
["Sch IIIA","Losses by Zone",null,"Res. Zn 6 - Credit Surety Non-Prop.",null,null,null,null,null,null,null,null,0]
["Sch IIIA","Losses by Zone",null,"Res. Zn 6 - Energy",null,null,null,null,null,null,null,null,0]
["Sch IIIA","Losses by Zone",null,"Res. Zn 6 - Energy Non-Proportional",null,null,null,null,null,null,null,null,0]
["Sch IIIA","Losses by Zone",null,"Res. Zn 6 - US Casualty",null,null,null,null,null,null,null,null,0]
["Sch IIIA","Losses by Zone",null,"Res. Zn 6 - US Casualty Non-Prop.",null,null,null,null,null,null,null,null,0]
["Sch IIIA","Losses by Zone",null,"Res. Zn 6 - US Professional",null,null,null,null,null,null,null,null,0]
["Sch IIIA","Losses by Zone",null,"Res. Zn 6 - US Professional Non-Prop.",null,null,null,null,null,null,null,null,0]
["Sch IIIA","Losses by Zone",null,"Res. Zn 6 - US Specialty",null,null,null,null,null,null,null,null,0]
["Sch IIIA","Losses by Zone",null,"Res. Zn 6 - US Specialty Non-Prop.",null,null,null,null,null,null,null,null,0]
["Sch IIIA","Losses by Zone",null,"Res. Zn 6 - Int'l Motor",null,null,null,null,null,null,null,null,0]
["Sch IIIA","Losses by Zone",null,"Res. Zn 6 - Int'l Motor Non-Prop.",null,null,null,null,null,null,null,null,0]
["Sch IIIA","Losses by Zone",null,"Res. Zn 6 - Int'l Casualty",null,null,null,null,null,null,null,null,0]
["Sch IIIA","Losses by Zone",null,"Res. Zn 6 - Int'l Casualty Non-Prop.",null,null,null,null,null,null,null,null,0]
["Sch IIIA","Losses by Zone",null,"Res. Zn 6 - Retro Property",null,null,null,null,null,null,null,null,0]
["Sch IIIA","Losses by Zone",null,"Res. Zn 6 - Structured / Finite R/I",null,null,null,null,null,null,null,null,0]
["Sch IIIA","Losses by Zone",null,"Res. Zn 6 - Health",null,null,null,null,null,null,null,null,0]
["Sch IIIA","Losses by Zone",null,"Res. Zn 6 - Total",null,null,null,null,null,null,null,null,0]
["Sch IIIA","Losses by Zone",null,"Res. Zn 7 - Property Catastrophe",null,null,null,null,null,null,null,null,0]
["Sch IIIA","Losses by Zone",null,"Res. Zn 7 - Property",null,null,null,null,null,null,null,null,0]
["Sch IIIA","Losses by Zone",null,"Res. Zn 7 - Property Non-Proportion",null,null,null,null,null,null,null,null,0]
["Sch IIIA","Losses by Zone",null,"Res. Zn 7 - Personal Accident",null,null,null,null,null,null,null,null,0]
["Sch IIIA","Losses by Zone",null,"Res. Zn 7 - Personal Acc. Non Prop.",null,null,null,null,null,null,null,null,0]
["Sch IIIA","Losses by Zone",null,"Res. Zn 7 - Aviation",null,null,null,null,null,null,null,null,0]
["Sch IIIA","Losses by Zone",null,"Res. Zn 7 - Aviation Non-Proportional",null,null,null,null,null,null,null,null,0]
["Sch IIIA","Losses by Zone",null,"Res. Zn 7 - Credit Surety",null,null,null,null,null,null,null,null,0]
["Sch IIIA","Losses by Zone",null,"Res. Zn 7 - Credit Surety Non-Prop.",null,null,null,null,null,null,null,null,0]
["Sch IIIA","Losses by Zone",null,"Res. Zn 7 - Energy",null,null,null,null,null,null,null,null,0]
["Sch IIIA","Losses by Zone",null,"Res. Zn 7 - Energy Non-Proportional",null,null,null,null,null,null,null,null,0]
["Sch IIIA","Losses by Zone",null,"Res. Zn 7 - US Casualty",null,null,null,null,null,null,null,null,0]
["Sch IIIA","Losses by Zone",null,"Res. Zn 7 - US Casualty Non-Prop.",null,null,null,null,null,null,null,null,0]
["Sch IIIA","Losses by Zone",null,"Res. Zn 7 - US Professional",null,null,null,null,null,null,null,null,0]
["Sch IIIA","Losses by Zone",null,"Res. Zn 7 - US Professional Non-Prop.",null,null,null,null,null,null,null,null,0]
["Sch IIIA","Losses by Zone",null,"Res. Zn 7 - US Specialty",null,null,null,null,null,null,null,null,0]
["Sch IIIA","Losses by Zone",null,"Res. Zn 7 - US Specialty Non-Prop.",null,null,null,null,null,null,null,null,0]
["Sch IIIA","Losses by Zone",null,"Res. Zn 7 - Int'l Motor",null,null,null,null,null,null,null,null,0]
["Sch IIIA","Losses by Zone",null,"Res. Zn 7 - Int'l Motor Non-Prop.",null,null,null,null,null,null,null,null,0]
["Sch IIIA","Losses by Zone",null,"Res. Zn 7 - Int'l Casualty",null,null,null,null,null,null,null,null,0]
["Sch IIIA","Losses by Zone",null,"Res. Zn 7 - Int'l Casualty Non-Prop.",null,null,null,null,null,null,null,null,0]
["Sch IIIA","Losses by Zone",null,"Res. Zn 7 - Retro Property",null,null,null,null,null,null,null,null,0]
["Sch IIIA","Losses by Zone",null,"Res. Zn 7 - Structured / Finite R/I",null,null,null,null,null,null,null,null,0]
["Sch IIIA","Losses by Zone",null,"Res. Zn 7 - Health",null,null,null,null,null,null,null,null,0]
["Sch IIIA","Losses by Zone",null,"Res. Zn 7 - Total",null,null,null,null,null,null,null,null,0]
["Sch IIIA","Losses by Zone",null,"Res. Zn 8 - Property Catastrophe",null,null,null,null,null,null,null,null,0]
["Sch IIIA","Losses by Zone",null,"Res. Zn 8 - Property",null,null,null,null,null,null,null,null,0]
["Sch IIIA","Losses by Zone",null,"Res. Zn 8 - Property Non-Proportion",null,null,null,null,null,null,null,null,0]
["Sch IIIA","Losses by Zone",null,"Res. Zn 8 - Personal Accident",null,null,null,null,null,null,null,null,0]
["Sch IIIA","Losses by Zone",null,"Res. Zn 8 - Personal Acc. Non Prop.",null,null,null,null,null,null,null,null,0]
["Sch IIIA","Losses by Zone",null,"Res. Zn 8 - Aviation",null,null,null,null,null,null,null,null,0]
["Sch IIIA","Losses by Zone",null,"Res. Zn 8 - Aviation Non-Proportional",null,null,null,null,null,null,null,null,0]
["Sch IIIA","Losses by Zone",null,"Res. Zn 8 - Credit Surety",null,null,null,null,null,null,null,null,0]
["Sch IIIA","Losses by Zone",null,"Res. Zn 8 - Credit Surety Non-Prop.",null,null,null,null,null,null,null,null,0]
["Sch IIIA","Losses by Zone",null,"Res. Zn 8 - Energy",null,null,null,null,null,null,null,null,0]
["Sch IIIA","Losses by Zone",null,"Res. Zn 8 - Energy Non-Proportional",null,null,null,null,null,null,null,null,0]
["Sch IIIA","Losses by Zone",null,"Res. Zn 8 - US Casualty",null,null,null,null,null,null,null,null,0]
["Sch IIIA","Losses by Zone",null,"Res. Zn 8 - US Casualty Non-Prop.",null,null,null,null,null,null,null,null,0]
["Sch IIIA","Losses by Zone",null,"Res. Zn 8 - US Professional",null,null,null,null,null,null,null,null,0]
["Sch IIIA","Losses by Zone",null,"Res. Zn 8 - US Professional Non-Prop.",null,null,null,null,null,null,null,null,0]
["Sch IIIA","Losses by Zone",null,"Res. Zn 8 - US Specialty",null,null,null,null,null,null,null,null,0]
["Sch IIIA","Losses by Zone",null,"Res. Zn 8 - US Specialty Non-Prop.",null,null,null,null,null,null,null,null,0]
["Sch IIIA","Losses by Zone",null,"Res. Zn 8 - Int'l Motor",null,null,null,null,null,null,null,null,0]
["Sch IIIA","Losses by Zone",null,"Res. Zn 8 - Int'l Motor Non-Prop.",null,null,null,null,null,null,null,null,0]
["Sch IIIA","Losses by Zone",null,"Res. Zn 8 - Int'l Casualty",null,null,null,null,null,null,null,null,0]
["Sch IIIA","Losses by Zone",null,"Res. Zn 8 - Int'l Casualty Non-Prop.",null,null,null,null,null,null,null,null,0]
["Sch IIIA","Losses by Zone",null,"Res. Zn 8 - Retro Property",null,null,null,null,null,null,null,null,0]
["Sch IIIA","Losses by Zone",null,"Res. Zn 8 - Structured / Finite R/I",null,null,null,null,null,null,null,null,0]
["Sch IIIA","Losses by Zone",null,"Res. Zn 8 - Health",null,null,null,null,null,null,null,null,0]
["Sch IIIA","Losses by Zone",null,"Res. Zn 8 - Total",null,null,null,null,null,null,null,null,0]
["Sch IIIA","Losses by Zone",null,"Res. Zn 9 - Property Catastrophe",null,null,null,null,null,null,null,null,0]
["Sch IIIA","Losses by Zone",null,"Res. Zn 9 - Property",null,null,null,null,null,null,null,null,0]
["Sch IIIA","Losses by Zone",null,"Res. Zn 9 - Property Non-Proportion",null,null,null,null,null,null,null,null,0]
["Sch IIIA","Losses by Zone",null,"Res. Zn 9 - Personal Accident",null,null,null,null,null,null,null,null,0]
["Sch IIIA","Losses by Zone",null,"Res. Zn 9 - Personal Acc. Non Prop.",null,null,null,null,null,null,null,null,0]
["Sch IIIA","Losses by Zone",null,"Res. Zn 9 - Aviation",null,null,null,null,null,null,null,null,0]
["Sch IIIA","Losses by Zone",null,"Res. Zn 9 - Aviation Non-Proportional",null,null,null,null,null,null,null,null,0]
["Sch IIIA","Losses by Zone",null,"Res. Zn 9 - Credit Surety",null,null,null,null,null,null,null,null,0]
["Sch IIIA","Losses by Zone",null,"Res. Zn 9 - Credit Surety Non-Prop.",null,null,null,null,null,null,null,null,0]
["Sch IIIA","Losses by Zone",null,"Res. Zn 9 - Energy",null,null,null,null,null,null,null,null,0]
["Sch IIIA","Losses by Zone",null,"Res. Zn 9 - Energy Non-Proportional",null,null,null,null,null,null,null,null,0]
["Sch IIIA","Losses by Zone",null,"Res. Zn 9 - US Casualty",null,null,null,null,null,null,null,null,0]
["Sch IIIA","Losses by Zone",null,"Res. Zn 9 - US Casualty Non-Prop.",null,null,null,null,null,null,null,null,0]
["Sch IIIA","Losses by Zone",null,"Res. Zn 9 - US Professional",null,null,null,null,null,null,null,null,0]
["Sch IIIA","Losses by Zone",null,"Res. Zn 9 - US Professional Non-Prop.",null,null,null,null,null,null,null,null,0]
["Sch IIIA","Losses by Zone",null,"Res. Zn 9 - US Specialty",null,null,null,null,null,null,null,null,0]
["Sch IIIA","Losses by Zone",null,"Res. Zn 9 - US Specialty Non-Prop.",null,null,null,null,null,null,null,null,0]
["Sch IIIA","Losses by Zone",null,"Res. Zn 9 - Int'l Motor",null,null,null,null,null,null,null,null,0]
["Sch IIIA","Losses by Zone",null,"Res. Zn 9 - Int'l Motor Non-Prop.",null,null,null,null,null,null,null,null,0]
["Sch IIIA","Losses by Zone",null,"Res. Zn 9 - Int'l Casualty",null,null,null,null,null,null,null,null,0]
["Sch IIIA","Losses by Zone",null,"Res. Zn 9 - Int'l Casualty Non-Prop.",null,null,null,null,null,null,null,null,0]
["Sch IIIA","Losses by Zone",null,"Res. Zn 9 - Retro Property",null,null,null,null,null,null,null,null,0]
["Sch IIIA","Losses by Zone",null,"Res. Zn 9 - Structured / Finite R/I",null,null,null,null,null,null,null,null,0]
["Sch IIIA","Losses by Zone",null,"Res. Zn 9 - Health",null,null,null,null,null,null,null,null,0]
["Sch IIIA","Losses by Zone",null,"Res. Zn 9 - Total",null,null,null,null,null,null,null,null,0]
["Sch IIIA","Losses by Zone",null,"Res. Zn 10 - Property Catastrophe",null,null,null,null,null,null,null,null,0]
["Sch IIIA","Losses by Zone",null,"Res. Zn 10 - Property",null,null,null,null,null,null,null,null,0]
["Sch IIIA","Losses by Zone",null,"Res. Zn 10 - Property Non-Proportion",null,null,null,null,null,null,null,null,0]
["Sch IIIA","Losses by Zone",null,"Res. Zn 10 - Personal Accident",null,null,null,null,null,null,null,null,0]
["Sch IIIA","Losses by Zone",null,"Res. Zn 10 - Personal Acc. Non Prop.",null,null,null,null,null,null,null,null,0]
["Sch IIIA","Losses by Zone",null,"Res. Zn 10 - Aviation",null,null,null,null,null,null,null,null,0]
["Sch IIIA","Losses by Zone",null,"Res. Zn 10 - Aviation Non-Proportional",null,null,null,null,null,null,null,null,0]
["Sch IIIA","Losses by Zone",null,"Res. Zn 10 - Credit Surety",null,null,null,null,null,null,null,null,0]
["Sch IIIA","Losses by Zone",null,"Res. Zn 10 - Credit Surety Non-Prop.",null,null,null,null,null,null,null,null,0]
["Sch IIIA","Losses by Zone",null,"Res. Zn 10 - Energy",null,null,null,null,null,null,null,null,0]
["Sch IIIA","Losses by Zone",null,"Res. Zn 10 - Energy Non-Proportional",null,null,null,null,null,null,null,null,0]
["Sch IIIA","Losses by Zone",null,"Res. Zn 10 - US Casualty",null,null,null,null,null,null,null,null,0]
["Sch IIIA","Losses by Zone",null,"Res. Zn 10 - US Casualty Non-Prop.",null,null,null,null,null,null,null,null,0]
["Sch IIIA","Losses by Zone",null,"Res. Zn 10 - US Professional",null,null,null,null,null,null,null,null,0]
["Sch IIIA","Losses by Zone",null,"Res. Zn 10 - US Professional Non-Prop.",null,null,null,null,null,null,null,null,0]
["Sch IIIA","Losses by Zone",null,"Res. Zn 10 - US Specialty",null,null,null,null,null,null,null,null,0]
["Sch IIIA","Losses by Zone",null,"Res. Zn 10 - US Specialty Non-Prop.",null,null,null,null,null,null,null,null,0]
["Sch IIIA","Losses by Zone",null,"Res. Zn 10 - Int'l Motor",null,null,null,null,null,null,null,null,0]
["Sch IIIA","Losses by Zone",null,"Res. Zn 10 - Int'l Motor Non-Prop.",null,null,null,null,null,null,null,null,0]
["Sch IIIA","Losses by Zone",null,"Res. Zn 10 - Int'l Casualty",null,null,null,null,null,null,null,null,0]
["Sch IIIA","Losses by Zone",null,"Res. Zn 10 - Int'l Casualty Non-Prop.",null,null,null,null,null,null,null,null,0]
["Sch IIIA","Losses by Zone",null,"Res. Zn 10 - Retro Property",null,null,null,null,null,null,null,null,0]
["Sch IIIA","Losses by Zone",null,"Res. Zn 10 - Structured / Finite R/I",null,null,null,null,null,null,null,null,0]
["Sch IIIA","Losses by Zone",null,"Res. Zn 10 - Health",null,null,null,null,null,null,null,null,0]
["Sch IIIA","Losses by Zone",null,"Res. Zn 10 - Total",null,null,null,null,null,null,null,null,0]
["Sch IIIA","Losses by Zone",null,"Res. Zn 11 - Property Catastrophe",null,null,null,null,null,null,null,null,0]
["Sch IIIA","Losses by Zone",null,"Res. Zn 11 - Property",null,null,null,null,null,null,null,null,0]
["Sch IIIA","Losses by Zone",null,"Res. Zn 11 - Property Non-Proportion",null,null,null,null,null,null,null,null,0]
["Sch IIIA","Losses by Zone",null,"Res. Zn 11 - Personal Accident",null,null,null,null,null,null,null,null,0]
["Sch IIIA","Losses by Zone",null,"Res. Zn 11 - Personal Acc. Non Prop.",null,null,null,null,null,null,null,null,0]
["Sch IIIA","Losses by Zone",null,"Res. Zn 11 - Aviation",null,null,null,null,null,null,null,null,0]
["Sch IIIA","Losses by Zone",null,"Res. Zn 11 - Aviation Non-Proportional",null,null,null,null,null,null,null,null,0]
["Sch IIIA","Losses by Zone",null,"Res. Zn 11 - Credit Surety",null,null,null,null,null,null,null,null,0]
["Sch IIIA","Losses by Zone",null,"Res. Zn 11 - Credit Surety Non-Prop.",null,null,null,null,null,null,null,null,0]
["Sch IIIA","Losses by Zone",null,"Res. Zn 11 - Energy",null,null,null,null,null,null,null,null,0]
["Sch IIIA","Losses by Zone",null,"Res. Zn 11 - Energy Non-Proportional",null,null,null,null,null,null,null,null,0]
["Sch IIIA","Losses by Zone",null,"Res. Zn 11 - US Casualty",null,null,null,null,null,null,null,null,0]
["Sch IIIA","Losses by Zone",null,"Res. Zn 11 - US Casualty Non-Prop.",null,null,null,null,null,null,null,null,0]
["Sch IIIA","Losses by Zone",null,"Res. Zn 11 - US Professional",null,null,null,null,null,null,null,null,0]
["Sch IIIA","Losses by Zone",null,"Res. Zn 11 - US Professional Non-Prop.",null,null,null,null,null,null,null,null,0]
["Sch IIIA","Losses by Zone",null,"Res. Zn 11 - US Specialty",null,null,null,null,null,null,null,null,0]
["Sch IIIA","Losses by Zone",null,"Res. Zn 11 - US Specialty Non-Prop.",null,null,null,null,null,null,null,null,0]
["Sch IIIA","Losses by Zone",null,"Res. Zn 11 - Int'l Motor",null,null,null,null,null,null,null,null,0]
["Sch IIIA","Losses by Zone",null,"Res. Zn 11 - Int'l Motor Non-Prop.",null,null,null,null,null,null,null,null,0]
["Sch IIIA","Losses by Zone",null,"Res. Zn 11 - Int'l Casualty",null,null,null,null,null,null,null,null,0]
["Sch IIIA","Losses by Zone",null,"Res. Zn 11 - Int'l Casualty Non-Prop.",null,null,null,null,null,null,null,null,0]
["Sch IIIA","Losses by Zone",null,"Res. Zn 11 - Retro Property",null,null,null,null,null,null,null,null,0]
["Sch IIIA","Losses by Zone",null,"Res. Zn 11 - Structured / Finite R/I",null,null,null,null,null,null,null,null,0]
["Sch IIIA","Losses by Zone",null,"Res. Zn 11 - Health",null,null,null,null,null,null,null,null,0]
["Sch IIIA","Losses by Zone",null,"Res. Zn 11 - Total",null,null,null,null,null,null,null,null,0]
["Sch IIIA","Losses by Zone",null,"Res. Zn 12 - Property Catastrophe",null,null,null,null,null,null,null,null,0]
["Sch IIIA","Losses by Zone",null,"Res. Zn 12 - Property",null,null,null,null,null,null,null,null,0]
["Sch IIIA","Losses by Zone",null,"Res. Zn 12 - Property Non-Proportion",null,null,null,null,null,null,null,null,0]
["Sch IIIA","Losses by Zone",null,"Res. Zn 12 - Personal Accident",null,null,null,null,null,null,null,null,0]
["Sch IIIA","Losses by Zone",null,"Res. Zn 12 - Personal Acc. Non Prop.",null,null,null,null,null,null,null,null,0]
["Sch IIIA","Losses by Zone",null,"Res. Zn 12 - Aviation",null,null,null,null,null,null,null,null,0]
["Sch IIIA","Losses by Zone",null,"Res. Zn 12 - Aviation Non-Proportional",null,null,null,null,null,null,null,null,0]
["Sch IIIA","Losses by Zone",null,"Res. Zn 12 - Credit Surety",null,null,null,null,null,null,null,null,0]
["Sch IIIA","Losses by Zone",null,"Res. Zn 12 - Credit Surety Non-Prop.",null,null,null,null,null,null,null,null,0]
["Sch IIIA","Losses by Zone",null,"Res. Zn 12 - Energy",null,null,null,null,null,null,null,null,0]
["Sch IIIA","Losses by Zone",null,"Res. Zn 12 - Energy Non-Proportional",null,null,null,null,null,null,null,null,0]
["Sch IIIA","Losses by Zone",null,"Res. Zn 12 - US Casualty",null,null,null,null,null,null,null,null,0]
["Sch IIIA","Losses by Zone",null,"Res. Zn 12 - US Casualty Non-Prop.",null,null,null,null,null,null,null,null,0]
["Sch IIIA","Losses by Zone",null,"Res. Zn 12 - US Professional",null,null,null,null,null,null,null,null,0]
["Sch IIIA","Losses by Zone",null,"Res. Zn 12 - US Professional Non-Prop.",null,null,null,null,null,null,null,null,0]
["Sch IIIA","Losses by Zone",null,"Res. Zn 12 - US Specialty",null,null,null,null,null,null,null,null,0]
["Sch IIIA","Losses by Zone",null,"Res. Zn 12 - US Specialty Non-Prop.",null,null,null,null,null,null,null,null,0]
["Sch IIIA","Losses by Zone",null,"Res. Zn 12 - Int'l Motor",null,null,null,null,null,null,null,null,0]
["Sch IIIA","Losses by Zone",null,"Res. Zn 12 - Int'l Motor Non-Prop.",null,null,null,null,null,null,null,null,0]
["Sch IIIA","Losses by Zone",null,"Res. Zn 12 - Int'l Casualty",null,null,null,null,null,null,null,null,0]
["Sch IIIA","Losses by Zone",null,"Res. Zn 12 - Int'l Casualty Non-Prop.",null,null,null,null,null,null,null,null,0]
["Sch IIIA","Losses by Zone",null,"Res. Zn 12 - Retro Property",null,null,null,null,null,null,null,null,0]
["Sch IIIA","Losses by Zone",null,"Res. Zn 12 - Structured / Finite R/I",null,null,null,null,null,null,null,null,0]
["Sch IIIA","Losses by Zone",null,"Res. Zn 12 - Health",null,null,null,null,null,null,null,null,0]
["Sch IIIA","Losses by Zone",null,"Res. Zn 12 - Total",null,null,null,null,null,null,null,null,0]
["Sch IIIA","Losses by Zone",null,"Res. Zn 13 - Property Catastrophe",null,null,null,null,null,null,null,null,0]
["Sch IIIA","Losses by Zone",null,"Res. Zn 13 - Property",null,null,null,null,null,null,null,null,0]
["Sch IIIA","Losses by Zone",null,"Res. Zn 13 - Property Non-Proportion",null,null,null,null,null,null,null,null,0]
["Sch IIIA","Losses by Zone",null,"Res. Zn 13 - Personal Accident",null,null,null,null,null,null,null,null,0]
["Sch IIIA","Losses by Zone",null,"Res. Zn 13 - Personal Acc. Non Prop.",null,null,null,null,null,null,null,null,0]
["Sch IIIA","Losses by Zone",null,"Res. Zn 13 - Aviation",null,null,null,null,null,null,null,null,0]
["Sch IIIA","Losses by Zone",null,"Res. Zn 13 - Aviation Non-Proportional",null,null,null,null,null,null,null,null,0]
["Sch IIIA","Losses by Zone",null,"Res. Zn 13 - Credit Surety",null,null,null,null,null,null,null,null,0]
["Sch IIIA","Losses by Zone",null,"Res. Zn 13 - Credit Surety Non-Prop.",null,null,null,null,null,null,null,null,0]
["Sch IIIA","Losses by Zone",null,"Res. Zn 13 - Energy",null,null,null,null,null,null,null,null,0]
["Sch IIIA","Losses by Zone",null,"Res. Zn 13 - Energy Non-Proportional",null,null,null,null,null,null,null,null,0]
["Sch IIIA","Losses by Zone",null,"Res. Zn 13 - US Casualty",null,null,null,null,null,null,null,null,0]
["Sch IIIA","Losses by Zone",null,"Res. Zn 13 - US Casualty Non-Prop.",null,null,null,null,null,null,null,null,0]
["Sch IIIA","Losses by Zone",null,"Res. Zn 13 - US Professional",null,null,null,null,null,null,null,null,0]
["Sch IIIA","Losses by Zone",null,"Res. Zn 13 - US Professional Non-Prop.",null,null,null,null,null,null,null,null,0]
["Sch IIIA","Losses by Zone",null,"Res. Zn 13 - US Specialty",null,null,null,null,null,null,null,null,0]
["Sch IIIA","Losses by Zone",null,"Res. Zn 13 - US Specialty Non-Prop.",null,null,null,null,null,null,null,null,0]
["Sch IIIA","Losses by Zone",null,"Res. Zn 13 - Int'l Motor",null,null,null,null,null,null,null,null,0]
["Sch IIIA","Losses by Zone",null,"Res. Zn 13 - Int'l Motor Non-Prop.",null,null,null,null,null,null,null,null,0]
["Sch IIIA","Losses by Zone",null,"Res. Zn 13 - Int'l Casualty",null,null,null,null,null,null,null,null,0]
["Sch IIIA","Losses by Zone",null,"Res. Zn 13 - Int'l Casualty Non-Prop.",null,null,null,null,null,null,null,null,0]
["Sch IIIA","Losses by Zone",null,"Res. Zn 13 - Retro Property",null,null,null,null,null,null,null,null,0]
["Sch IIIA","Losses by Zone",null,"Res. Zn 13 - Structured / Finite R/I",null,null,null,null,null,null,null,null,0]
["Sch IIIA","Losses by Zone",null,"Res. Zn 13 - Health",null,null,null,null,null,null,null,null,0]
["Sch IIIA","Losses by Zone",null,"Res. Zn 13 - Total",null,null,null,null,null,null,null,null,0]
["Sch IIIA","Losses by Zone",null,"Res. Zn 14 - Property Catastrophe",null,null,null,null,null,null,null,null,0]
["Sch IIIA","Losses by Zone",null,"Res. Zn 14 - Property",null,null,null,null,null,null,null,null,0]
["Sch IIIA","Losses by Zone",null,"Res. Zn 14 - Property Non-Proportion",null,null,null,null,null,null,null,null,0]
["Sch IIIA","Losses by Zone",null,"Res. Zn 14 - Personal Accident",null,null,null,null,null,null,null,null,0]
["Sch IIIA","Losses by Zone",null,"Res. Zn 14 - Personal Acc. Non Prop.",null,null,null,null,null,null,null,null,0]
["Sch IIIA","Losses by Zone",null,"Res. Zn 14 - Aviation",null,null,null,null,null,null,null,null,0]
["Sch IIIA","Losses by Zone",null,"Res. Zn 14 - Aviation Non-Proportional",null,null,null,null,null,null,null,null,0]
["Sch IIIA","Losses by Zone",null,"Res. Zn 14 - Credit Surety",null,null,null,null,null,null,null,null,0]
["Sch IIIA","Losses by Zone",null,"Res. Zn 14 - Credit Surety Non-Prop.",null,null,null,null,null,null,null,null,0]
["Sch IIIA","Losses by Zone",null,"Res. Zn 14 - Energy",null,null,null,null,null,null,null,null,0]
["Sch IIIA","Losses by Zone",null,"Res. Zn 14 - Energy Non-Proportional",null,null,null,null,null,null,null,null,0]
["Sch IIIA","Losses by Zone",null,"Res. Zn 14 - US Casualty",null,null,null,null,null,null,null,null,0]
["Sch IIIA","Losses by Zone",null,"Res. Zn 14 - US Casualty Non-Prop.",null,null,null,null,null,null,null,null,0]
["Sch IIIA","Losses by Zone",null,"Res. Zn 14 - US Professional",null,null,null,null,null,null,null,null,0]
["Sch IIIA","Losses by Zone",null,"Res. Zn 14 - US Professional Non-Prop.",null,null,null,null,null,null,null,null,0]
["Sch IIIA","Losses by Zone",null,"Res. Zn 14 - US Specialty",null,null,null,null,null,null,null,null,0]
["Sch IIIA","Losses by Zone",null,"Res. Zn 14 - US Specialty Non-Prop.",null,null,null,null,null,null,null,null,0]
["Sch IIIA","Losses by Zone",null,"Res. Zn 14 - Int'l Motor",null,null,null,null,null,null,null,null,0]
["Sch IIIA","Losses by Zone",null,"Res. Zn 14 - Int'l Motor Non-Prop.",null,null,null,null,null,null,null,null,0]
["Sch IIIA","Losses by Zone",null,"Res. Zn 14 - Int'l Casualty",null,null,null,null,null,null,null,null,0]
["Sch IIIA","Losses by Zone",null,"Res. Zn 14 - Int'l Casualty Non-Prop.",null,null,null,null,null,null,null,null,0]
["Sch IIIA","Losses by Zone",null,"Res. Zn 14 - Retro Property",null,null,null,null,null,null,null,null,0]
["Sch IIIA","Losses by Zone",null,"Res. Zn 14 - Structured / Finite R/I",null,null,null,null,null,null,null,null,0]
["Sch IIIA","Losses by Zone",null,"Res. Zn 14 - Health",null,null,null,null,null,null,null,null,0]
["Sch IIIA","Losses by Zone",null,"Res. Zn 14 - Total",null,null,null,null,null,null,null,null,0]
["Sch IIIA","Losses by Zone",null,"Res. Zn 15 - Property Catastrophe",null,null,null,null,null,null,null,null,0]
["Sch IIIA","Losses by Zone",null,"Res. Zn 15 - Property",null,null,null,null,null,null,null,null,0]
["Sch IIIA","Losses by Zone",null,"Res. Zn 15 - Property Non-Proportion",null,null,null,null,null,null,null,null,0]
["Sch IIIA","Losses by Zone",null,"Res. Zn 15 - Personal Accident",null,null,null,null,null,null,null,null,0]
["Sch IIIA","Losses by Zone",null,"Res. Zn 15 - Personal Acc. Non Prop.",null,null,null,null,null,null,null,null,0]
["Sch IIIA","Losses by Zone",null,"Res. Zn 15 - Aviation",null,null,null,null,null,null,null,null,0]
["Sch IIIA","Losses by Zone",null,"Res. Zn 15 - Aviation Non-Proportional",null,null,null,null,null,null,null,null,0]
["Sch IIIA","Losses by Zone",null,"Res. Zn 15 - Credit Surety",null,null,null,null,null,null,null,null,0]
["Sch IIIA","Losses by Zone",null,"Res. Zn 15 - Credit Surety Non-Prop.",null,null,null,null,null,null,null,null,0]
["Sch IIIA","Losses by Zone",null,"Res. Zn 15 - Energy",null,null,null,null,null,null,null,null,0]
["Sch IIIA","Losses by Zone",null,"Res. Zn 15 - Energy Non-Proportional",null,null,null,null,null,null,null,null,0]
["Sch IIIA","Losses by Zone",null,"Res. Zn 15 - US Casualty",null,null,null,null,null,null,null,null,0]
["Sch IIIA","Losses by Zone",null,"Res. Zn 15 - US Casualty Non-Prop.",null,null,null,null,null,null,null,null,0]
["Sch IIIA","Losses by Zone",null,"Res. Zn 15 - US Professional",null,null,null,null,null,null,null,null,0]
["Sch IIIA","Losses by Zone",null,"Res. Zn 15 - US Professional Non-Prop.",null,null,null,null,null,null,null,null,0]
["Sch IIIA","Losses by Zone",null,"Res. Zn 15 - US Specialty",null,null,null,null,null,null,null,null,0]
["Sch IIIA","Losses by Zone",null,"Res. Zn 15 - US Specialty Non-Prop.",null,null,null,null,null,null,null,null,0]
["Sch IIIA","Losses by Zone",null,"Res. Zn 15 - Int'l Motor",null,null,null,null,null,null,null,null,0]
["Sch IIIA","Losses by Zone",null,"Res. Zn 15 - Int'l Motor Non-Prop.",null,null,null,null,null,null,null,null,0]
["Sch IIIA","Losses by Zone",null,"Res. Zn 15 - Int'l Casualty",null,null,null,null,null,null,null,null,0]
["Sch IIIA","Losses by Zone",null,"Res. Zn 15 - Int'l Casualty Non-Prop.",null,null,null,null,null,null,null,null,0]
["Sch IIIA","Losses by Zone",null,"Res. Zn 15 - Retro Property",null,null,null,null,null,null,null,null,0]
["Sch IIIA","Losses by Zone",null,"Res. Zn 15 - Structured / Finite R/I",null,null,null,null,null,null,null,null,0]
["Sch IIIA","Losses by Zone",null,"Res. Zn 15 - Health",null,null,null,null,null,null,null,null,0]
["Sch IIIA","Losses by Zone",null,"Res. Zn 15 - Total",null,null,null,null,null,null,null,null,0]
["Sch IIIA","Losses by Zone",null,"Res. Zn 16 - Property Catastrophe",null,null,null,null,null,null,null,null,0]
["Sch IIIA","Losses by Zone",null,"Res. Zn 16 - Property",null,null,null,null,null,null,null,null,0]
["Sch IIIA","Losses by Zone",null,"Res. Zn 16 - Property Non-Proportion",null,null,null,null,null,null,null,null,0]
["Sch IIIA","Losses by Zone",null,"Res. Zn 16 - Personal Accident",null,null,null,null,null,null,null,null,0]
["Sch IIIA","Losses by Zone",null,"Res. Zn 16 - Personal Acc. Non Prop.",null,null,null,null,null,null,null,null,0]
["Sch IIIA","Losses by Zone",null,"Res. Zn 16 - Aviation",null,null,null,null,null,null,null,null,0]
["Sch IIIA","Losses by Zone",null,"Res. Zn 16 - Aviation Non-Proportional",null,null,null,null,null,null,null,null,0]
["Sch IIIA","Losses by Zone",null,"Res. Zn 16 - Credit Surety",null,null,null,null,null,null,null,null,0]
["Sch IIIA","Losses by Zone",null,"Res. Zn 16 - Credit Surety Non-Prop.",null,null,null,null,null,null,null,null,0]
["Sch IIIA","Losses by Zone",null,"Res. Zn 16 - Energy",null,null,null,null,null,null,null,null,0]
["Sch IIIA","Losses by Zone",null,"Res. Zn 16 - Energy Non-Proportional",null,null,null,null,null,null,null,null,0]
["Sch IIIA","Losses by Zone",null,"Res. Zn 16 - US Casualty",null,null,null,null,null,null,null,null,0]
["Sch IIIA","Losses by Zone",null,"Res. Zn 16 - US Casualty Non-Prop.",null,null,null,null,null,null,null,null,0]
["Sch IIIA","Losses by Zone",null,"Res. Zn 16 - US Professional",null,null,null,null,null,null,null,null,0]
["Sch IIIA","Losses by Zone",null,"Res. Zn 16 - US Professional Non-Prop.",null,null,null,null,null,null,null,null,0]
["Sch IIIA","Losses by Zone",null,"Res. Zn 16 - US Specialty",null,null,null,null,null,null,null,null,0]
["Sch IIIA","Losses by Zone",null,"Res. Zn 16 - US Specialty Non-Prop.",null,null,null,null,null,null,null,null,0]
["Sch IIIA","Losses by Zone",null,"Res. Zn 16 - Int'l Motor",null,null,null,null,null,null,null,null,0]
["Sch IIIA","Losses by Zone",null,"Res. Zn 16 - Int'l Motor Non-Prop.",null,null,null,null,null,null,null,null,0]
["Sch IIIA","Losses by Zone",null,"Res. Zn 16 - Int'l Casualty",null,null,null,null,null,null,null,null,0]
["Sch IIIA","Losses by Zone",null,"Res. Zn 16 - Int'l Casualty Non-Prop.",null,null,null,null,null,null,null,null,0]
["Sch IIIA","Losses by Zone",null,"Res. Zn 16 - Retro Property",null,null,null,null,null,null,null,null,0]
["Sch IIIA","Losses by Zone",null,"Res. Zn 16 - Structured / Finite R/I",null,null,null,null,null,null,null,null,0]
["Sch IIIA","Losses by Zone",null,"Res. Zn 16 - Health",null,null,null,null,null,null,null,null,0]
["Sch IIIA","Losses by Zone",null,"Res. Zn 16 - Total",null,null,null,null,null,null,null,null,0]
["Sch IIIA","Losses by Zone",null,"Res. Zn 17 - Property Catastrophe",null,null,null,null,null,null,null,null,0]
["Sch IIIA","Losses by Zone",null,"Res. Zn 17 - Property",null,null,null,null,null,null,null,null,0]
["Sch IIIA","Losses by Zone",null,"Res. Zn 17 - Property Non-Proportion",null,null,null,null,null,null,null,null,0]
["Sch IIIA","Losses by Zone",null,"Res. Zn 17 - Personal Accident",null,null,null,null,null,null,null,null,0]
["Sch IIIA","Losses by Zone",null,"Res. Zn 17 - Personal Acc. Non Prop.",null,null,null,null,null,null,null,null,0]
["Sch IIIA","Losses by Zone",null,"Res. Zn 17 - Aviation",null,null,null,null,null,null,null,null,0]
["Sch IIIA","Losses by Zone",null,"Res. Zn 17 - Aviation Non-Proportional",null,null,null,null,null,null,null,null,0]
["Sch IIIA","Losses by Zone",null,"Res. Zn 17 - Credit Surety",null,null,null,null,null,null,null,null,0]
["Sch IIIA","Losses by Zone",null,"Res. Zn 17 - Credit Surety Non-Prop.",null,null,null,null,null,null,null,null,0]
["Sch IIIA","Losses by Zone",null,"Res. Zn 17 - Energy",null,null,null,null,null,null,null,null,0]
["Sch IIIA","Losses by Zone",null,"Res. Zn 17 - Energy Non-Proportional",null,null,null,null,null,null,null,null,0]
["Sch IIIA","Losses by Zone",null,"Res. Zn 17 - US Casualty",null,null,null,null,null,null,null,null,0]
["Sch IIIA","Losses by Zone",null,"Res. Zn 17 - US Casualty Non-Prop.",null,null,null,null,null,null,null,null,0]
["Sch IIIA","Losses by Zone",null,"Res. Zn 17 - US Professional",null,null,null,null,null,null,null,null,0]
["Sch IIIA","Losses by Zone",null,"Res. Zn 17 - US Professional Non-Prop.",null,null,null,null,null,null,null,null,0]
["Sch IIIA","Losses by Zone",null,"Res. Zn 17 - US Specialty",null,null,null,null,null,null,null,null,0]
["Sch IIIA","Losses by Zone",null,"Res. Zn 17 - US Specialty Non-Prop.",null,null,null,null,null,null,null,null,0]
["Sch IIIA","Losses by Zone",null,"Res. Zn 17 - Int'l Motor",null,null,null,null,null,null,null,null,0]
["Sch IIIA","Losses by Zone",null,"Res. Zn 17 - Int'l Motor Non-Prop.",null,null,null,null,null,null,null,null,0]
["Sch IIIA","Losses by Zone",null,"Res. Zn 17 - Int'l Casualty",null,null,null,null,null,null,null,null,0]
["Sch IIIA","Losses by Zone",null,"Res. Zn 17 - Int'l Casualty Non-Prop.",null,null,null,null,null,null,null,null,0]
["Sch IIIA","Losses by Zone",null,"Res. Zn 17 - Retro Property",null,null,null,null,null,null,null,null,0]
["Sch IIIA","Losses by Zone",null,"Res. Zn 17 - Structured / Finite R/I",null,null,null,null,null,null,null,null,0]
["Sch IIIA","Losses by Zone",null,"Res. Zn 17 - Health",null,null,null,null,null,null,null,null,0]
["Sch IIIA","Losses by Zone",null,"Res. Zn 17 - Total",null,null,null,null,null,null,null,null,0]
["Sch IIIA","Losses by Zone",null,"Res. Zn 18 - Property Catastrophe",null,null,null,null,null,null,null,null,0]
["Sch IIIA","Losses by Zone",null,"Res. Zn 18 - Property",null,null,null,null,null,null,null,null,0]
["Sch IIIA","Losses by Zone",null,"Res. Zn 18 - Property Non-Proportion",null,null,null,null,null,null,null,null,0]
["Sch IIIA","Losses by Zone",null,"Res. Zn 18 - Personal Accident",null,null,null,null,null,null,null,null,0]
["Sch IIIA","Losses by Zone",null,"Res. Zn 18 - Personal Acc. Non Prop.",null,null,null,null,null,null,null,null,0]
["Sch IIIA","Losses by Zone",null,"Res. Zn 18 - Aviation",null,null,null,null,null,null,null,null,0]
["Sch IIIA","Losses by Zone",null,"Res. Zn 18 - Aviation Non-Proportional",null,null,null,null,null,null,null,null,0]
["Sch IIIA","Losses by Zone",null,"Res. Zn 18 - Credit Surety",null,null,null,null,null,null,null,null,0]
["Sch IIIA","Losses by Zone",null,"Res. Zn 18 - Credit Surety Non-Prop.",null,null,null,null,null,null,null,null,0]
["Sch IIIA","Losses by Zone",null,"Res. Zn 18 - Energy",null,null,null,null,null,null,null,null,0]
["Sch IIIA","Losses by Zone",null,"Res. Zn 18 - Energy Non-Proportional",null,null,null,null,null,null,null,null,0]
["Sch IIIA","Losses by Zone",null,"Res. Zn 18 - US Casualty",null,null,null,null,null,null,null,null,0]
["Sch IIIA","Losses by Zone",null,"Res. Zn 18 - US Casualty Non-Prop.",null,null,null,null,null,null,null,null,0]
["Sch IIIA","Losses by Zone",null,"Res. Zn 18 - US Professional",null,null,null,null,null,null,null,null,0]
["Sch IIIA","Losses by Zone",null,"Res. Zn 18 - US Professional Non-Prop.",null,null,null,null,null,null,null,null,0]
["Sch IIIA","Losses by Zone",null,"Res. Zn 18 - US Specialty",null,null,null,null,null,null,null,null,0]
["Sch IIIA","Losses by Zone",null,"Res. Zn 18 - US Specialty Non-Prop.",null,null,null,null,null,null,null,null,0]
["Sch IIIA","Losses by Zone",null,"Res. Zn 18 - Int'l Motor",null,null,null,null,null,null,null,null,0]
["Sch IIIA","Losses by Zone",null,"Res. Zn 18 - Int'l Motor Non-Prop.",null,null,null,null,null,null,null,null,0]
["Sch IIIA","Losses by Zone",null,"Res. Zn 18 - Int'l Casualty",null,null,null,null,null,null,null,null,0]
["Sch IIIA","Losses by Zone",null,"Res. Zn 18 - Int'l Casualty Non-Prop.",null,null,null,null,null,null,null,null,0]
["Sch IIIA","Losses by Zone",null,"Res. Zn 18 - Retro Property",null,null,null,null,null,null,null,null,0]
["Sch IIIA","Losses by Zone",null,"Res. Zn 18 - Structured / Finite R/I",null,null,null,null,null,null,null,null,0]
["Sch IIIA","Losses by Zone",null,"Res. Zn 18 - Health",null,null,null,null,null,null,null,null,0]
["Sch IIIA","Losses by Zone",null,"Res. Zn 18 - Total",null,null,null,null,null,null,null,null,0]
["Sch IIIA","Losses by Zone",null,"Res. Total - Property Catastrophe",null,null,null,null,null,null,null,null,0]
["Sch IIIA","Losses by Zone",null,"Res. Total - Property",null,null,null,null,null,null,null,null,0]
["Sch IIIA","Losses by Zone",null,"Res. Total - Property Non-Proportion",null,null,null,null,null,null,null,null,0]
["Sch IIIA","Losses by Zone",null,"Res. Total - Personal Accident",null,null,null,null,null,null,null,null,0]
["Sch IIIA","Losses by Zone",null,"Res. Total - Personal Acc. Non Prop.",null,null,null,null,null,null,null,null,0]
["Sch IIIA","Losses by Zone",null,"Res. Total - Aviation",null,null,null,null,null,null,null,null,0]
["Sch IIIA","Losses by Zone",null,"Res. Total - Aviation Non-Proportional",null,null,null,null,null,null,null,null,0]
["Sch IIIA","Losses by Zone",null,"Res. Total - Credit Surety",null,null,null,null,null,null,null,null,0]
["Sch IIIA","Losses by Zone",null,"Res. Total - Credit Surety Non-Prop.",null,null,null,null,null,null,null,null,0]
["Sch IIIA","Losses by Zone",null,"Res. Total - Energy",null,null,null,null,null,null,null,null,0]
["Sch IIIA","Losses by Zone",null,"Res. Total - Energy Non-Proportional",null,null,null,null,null,null,null,null,0]
["Sch IIIA","Losses by Zone",null,"Res. Total - US Casualty",null,null,null,null,null,null,null,null,0]
["Sch IIIA","Losses by Zone",null,"Res. Total - US Casualty Non-Prop.",null,null,null,null,null,null,null,null,0]
["Sch IIIA","Losses by Zone",null,"Res. Total - US Professional",null,null,null,null,null,null,null,null,0]
["Sch IIIA","Losses by Zone",null,"Res. Total - US Professional Non-Prop.",null,null,null,null,null,null,null,null,0]
["Sch IIIA","Losses by Zone",null,"Res. Total - US Specialty",null,null,null,null,null,null,null,null,0]
["Sch IIIA","Losses by Zone",null,"Res. Total - US Specialty Non-Prop.",null,null,null,null,null,null,null,null,0]
["Sch IIIA","Losses by Zone",null,"Res. Total - Int'l Motor",null,null,null,null,null,null,null,null,0]
["Sch IIIA","Losses by Zone",null,"Res. Total - Int'l Motor Non-Prop.",null,null,null,null,null,null,null,null,0]
["Sch IIIA","Losses by Zone",null,"Res. Total - Int'l Casualty",null,null,null,null,null,null,null,null,0]
["Sch IIIA","Losses by Zone",null,"Res. Total - Int'l Casualty Non-Prop.",null,null,null,null,null,null,null,null,0]
["Sch IIIA","Losses by Zone",null,"Res. Total - Retro Property",null,null,null,null,null,null,null,null,0]
["Sch IIIA","Losses by Zone",null,"Res. Total - Structured / Finite R/I",null,null,null,null,null,null,null,null,0]
["Sch IIIA","Losses by Zone",null,"Res. Total - Health",null,null,null,null,null,null,null,null,0]
["Sch IIIA","Losses by Zone",null,"Res. Total - Total",null,null,null,null,null,null,null,null,0]
[]
["Sch IV","Premium by Line",null,"Unrelated - Property Catastrophe",0,null,0,null,0,null,0]
["Sch IV","Premium by Line",null,"Unrelated - Property",0,null,0,null,0,null,0]
["Sch IV","Premium by Line",null,"Unrelated - Property Non-Proportion",0,null,0,null,0,null,0]
["Sch IV","Premium by Line",null,"Unrelated - Personal Accident",0,null,0,null,0,null,0]
["Sch IV","Premium by Line",null,"Unrelated - Personal Acc. Non Prop.",0,null,0,null,0,null,0]
["Sch IV","Premium by Line",null,"Unrelated - Aviation",0,null,0,null,0,null,0]
["Sch IV","Premium by Line",null,"Unrelated - Aviation Non-Proportional",0,null,0,null,0,null,0]
["Sch IV","Premium by Line",null,"Unrelated - Credit Surety",0,null,0,null,0,null,0]
["Sch IV","Premium by Line",null,"Unrelated - Credit Surety Non-Prop.",0,null,0,null,0,null,0]
["Sch IV","Premium by Line",null,"Unrelated - Energy",0,null,0,null,0,null,0]
["Sch IV","Premium by Line",null,"Unrelated - Energy Non-Proportional",0,null,0,null,0,null,0]
["Sch IV","Premium by Line",null,"Unrelated - US Casualty",0,null,0,null,0,null,0]
["Sch IV","Premium by Line",null,"Unrelated - US Casualty Non-Prop.",0,null,0,null,0,null,0]
["Sch IV","Premium by Line",null,"Unrelated - US Professional",0,null,0,null,0,null,0]
["Sch IV","Premium by Line",null,"Unrelated - US Professional Non-Prop.",0,null,0,null,0,null,0]
["Sch IV","Premium by Line",null,"Unrelated - US Specialty",0,null,0,null,0,null,0]
["Sch IV","Premium by Line",null,"Unrelated - US Specialty Non-Prop.",0,null,0,null,0,null,0]
["Sch IV","Premium by Line",null,"Unrelated - Int'l Motor",0,null,0,null,0,null,0]
["Sch IV","Premium by Line",null,"Unrelated - Int'l Motor Non-Prop.",0,null,0,null,0,null,0]
["Sch IV","Premium by Line",null,"Unrelated - Int'l Casualty",0,null,0,null,0,null,0]
["Sch IV","Premium by Line",null,"Unrelated - Int'l Casualty Non-Prop.",0,null,0,null,0,null,0]
["Sch IV","Premium by Line",null,"Unrelated - Retro Property",0,null,0,null,0,null,0]
["Sch IV","Premium by Line",null,"Unrelated - Structured / Finite R/I",0,null,0,null,0,null,0]
["Sch IV","Premium by Line",null,"Unrelated - Health",0,null,0,null,0,null,0]
["Sch IV","Premium by Line",null,"Related - Property Catastrophe",0,null,0,null,0,null,0]
["Sch IV","Premium by Line",null,"Related - Property",0,null,0,null,0,null,0]
["Sch IV","Premium by Line",null,"Related - Property Non-Proportion",0,null,0,null,0,null,0]
["Sch IV","Premium by Line",null,"Related - Personal Accident",0,null,0,null,0,null,0]
["Sch IV","Premium by Line",null,"Related - Personal Acc. Non Prop.",0,null,0,null,0,null,0]
["Sch IV","Premium by Line",null,"Related - Aviation",0,null,0,null,0,null,0]
["Sch IV","Premium by Line",null,"Related - Aviation Non-Proportional",0,null,0,null,0,null,0]
["Sch IV","Premium by Line",null,"Related - Credit Surety",0,null,0,null,0,null,0]
["Sch IV","Premium by Line",null,"Related - Credit Surety Non-Prop.",0,null,0,null,0,null,0]
["Sch IV","Premium by Line",null,"Related - Energy",0,null,0,null,0,null,0]
["Sch IV","Premium by Line",null,"Related - Energy Non-Proportional",0,null,0,null,0,null,0]
["Sch IV","Premium by Line",null,"Related - US Casualty",0,null,0,null,0,null,0]
["Sch IV","Premium by Line",null,"Related - US Casualty Non-Prop.",0,null,0,null,0,null,0]
["Sch IV","Premium by Line",null,"Related - US Professional",0,null,0,null,0,null,0]
["Sch IV","Premium by Line",null,"Related - US Professional Non-Prop.",0,null,0,null,0,null,0]
["Sch IV","Premium by Line",null,"Related - US Specialty",0,null,0,null,0,null,0]
["Sch IV","Premium by Line",null,"Related - US Specialty Non-Prop.",0,null,0,null,0,null,0]
["Sch IV","Premium by Line",null,"Related - Int'l Motor",0,null,0,null,0,null,0]
["Sch IV","Premium by Line",null,"Related - Int'l Motor Non-Prop.",0,null,0,null,0,null,0]
["Sch IV","Premium by Line",null,"Related - Int'l Casualty",0,null,0,null,0,null,0]
["Sch IV","Premium by Line",null,"Related - Int'l Casualty Non-Prop.",0,null,0,null,0,null,0]
["Sch IV","Premium by Line",null,"Related - Retro Property",0,null,0,null,0,null,0]
["Sch IV","Premium by Line",null,"Related - Structured / Finite R/I",0,null,0,null,0,null,0]
["Sch IV","Premium by Line",null,"Related - Health",0,null,0,null,0,null,0]
["Sch IV","Premium by Line",null,"NPW - Property Catastrophe",0,null,0,null,0,null,0]
["Sch IV","Premium by Line",null,"NPW - Property",0,null,0,null,0,null,0]
["Sch IV","Premium by Line",null,"NPW - Property Non-Proportion",0,null,0,null,0,null,0]
["Sch IV","Premium by Line",null,"NPW - Personal Accident",0,null,0,null,0,null,0]
["Sch IV","Premium by Line",null,"NPW - Personal Acc. Non Prop.",0,null,0,null,0,null,0]
["Sch IV","Premium by Line",null,"NPW - Aviation",0,null,0,null,0,null,0]
["Sch IV","Premium by Line",null,"NPW - Aviation Non-Proportional",0,null,0,null,0,null,0]
["Sch IV","Premium by Line",null,"NPW - Credit Surety",0,null,0,null,0,null,0]
["Sch IV","Premium by Line",null,"NPW - Credit Surety Non-Prop.",0,null,0,null,0,null,0]
["Sch IV","Premium by Line",null,"NPW - Energy",0,null,0,null,0,null,0]
["Sch IV","Premium by Line",null,"NPW - Energy Non-Proportional",0,null,0,null,0,null,0]
["Sch IV","Premium by Line",null,"NPW - US Casualty",0,null,0,null,0,null,0]
["Sch IV","Premium by Line",null,"NPW - US Casualty Non-Prop.",0,null,0,null,0,null,0]
["Sch IV","Premium by Line",null,"NPW - US Professional",0,null,0,null,0,null,0]
["Sch IV","Premium by Line",null,"NPW - US Professional Non-Prop.",0,null,0,null,0,null,0]
["Sch IV","Premium by Line",null,"NPW - US Specialty",0,null,0,null,0,null,0]
["Sch IV","Premium by Line",null,"NPW - US Specialty Non-Prop.",0,null,0,null,0,null,0]
["Sch IV","Premium by Line",null,"NPW - Int'l Motor",0,null,0,null,0,null,0]
["Sch IV","Premium by Line",null,"NPW - Int'l Motor Non-Prop.",0,null,0,null,0,null,0]
["Sch IV","Premium by Line",null,"NPW - Int'l Casualty",0,null,0,null,0,null,0]
["Sch IV","Premium by Line",null,"NPW - Int'l Casualty Non-Prop.",0,null,0,null,0,null,0]
["Sch IV","Premium by Line",null,"NPW - Retro Property",0,null,0,null,0,null,0]
["Sch IV","Premium by Line",null,"NPW - Structured / Finite R/I",0,null,0,null,0,null,0]
["Sch IV","Premium by Line",null,"NPW - Health",0,null,0,null,0,null,0]
["Sch IV","Premium by Line",null,"NPW - Total",null,null,null,null,0,null,0]
[]
["Sch IVC","Premium by Zone",null,"NPW Zn 1 - Property Catastrophe",null,null,null,null,0]
["Sch IVC","Premium by Zone",null,"NPW Zn 1 - Property",null,null,null,null,0]
["Sch IVC","Premium by Zone",null,"NPW Zn 1 - Property Non-Proportion",null,null,null,null,0]
["Sch IVC","Premium by Zone",null,"NPW Zn 1 - Personal Accident",null,null,null,null,0]
["Sch IVC","Premium by Zone",null,"NPW Zn 1 - Personal Acc. Non Prop.",null,null,null,null,0]
["Sch IVC","Premium by Zone",null,"NPW Zn 1 - Aviation",null,null,null,null,0]
["Sch IVC","Premium by Zone",null,"NPW Zn 1 - Aviation Non-Proportional",null,null,null,null,0]
["Sch IVC","Premium by Zone",null,"NPW Zn 1 - Credit Surety",null,null,null,null,0]
["Sch IVC","Premium by Zone",null,"NPW Zn 1 - Credit Surety Non-Prop.",null,null,null,null,0]
["Sch IVC","Premium by Zone",null,"NPW Zn 1 - Energy",null,null,null,null,0]
["Sch IVC","Premium by Zone",null,"NPW Zn 1 - Energy Non-Proportional",null,null,null,null,0]
["Sch IVC","Premium by Zone",null,"NPW Zn 1 - US Casualty",null,null,null,null,0]
["Sch IVC","Premium by Zone",null,"NPW Zn 1 - US Casualty Non-Prop.",null,null,null,null,0]
["Sch IVC","Premium by Zone",null,"NPW Zn 1 - US Professional",null,null,null,null,0]
["Sch IVC","Premium by Zone",null,"NPW Zn 1 - US Professional Non-Prop.",null,null,null,null,0]
["Sch IVC","Premium by Zone",null,"NPW Zn 1 - US Specialty",null,null,null,null,0]
["Sch IVC","Premium by Zone",null,"NPW Zn 1 - US Specialty Non-Prop.",null,null,null,null,0]
["Sch IVC","Premium by Zone",null,"NPW Zn 1 - Int'l Motor",null,null,null,null,0]
["Sch IVC","Premium by Zone",null,"NPW Zn 1 - Int'l Motor Non-Prop.",null,null,null,null,0]
["Sch IVC","Premium by Zone",null,"NPW Zn 1 - Int'l Casualty",null,null,null,null,0]
["Sch IVC","Premium by Zone",null,"NPW Zn 1 - Int'l Casualty Non-Prop.",null,null,null,null,0]
["Sch IVC","Premium by Zone",null,"NPW Zn 1 - Retro Property",null,null,null,null,0]
["Sch IVC","Premium by Zone",null,"NPW Zn 1 - Structured / Finite R/I",null,null,null,null,0]
["Sch IVC","Premium by Zone",null,"NPW Zn 1 - Health",null,null,null,null,0]
["Sch IVC","Premium by Zone",null,"NPW Zn 1 - Total",null,null,null,null,0]
["Sch IVC","Premium by Zone",null,"NPW Zn 2 - Property Catastrophe",null,null,null,null,0]
["Sch IVC","Premium by Zone",null,"NPW Zn 2 - Property",null,null,null,null,0]
["Sch IVC","Premium by Zone",null,"NPW Zn 2 - Property Non-Proportion",null,null,null,null,0]
["Sch IVC","Premium by Zone",null,"NPW Zn 2 - Personal Accident",null,null,null,null,0]
["Sch IVC","Premium by Zone",null,"NPW Zn 2 - Personal Acc. Non Prop.",null,null,null,null,0]
["Sch IVC","Premium by Zone",null,"NPW Zn 2 - Aviation",null,null,null,null,0]
["Sch IVC","Premium by Zone",null,"NPW Zn 2 - Aviation Non-Proportional",null,null,null,null,0]
["Sch IVC","Premium by Zone",null,"NPW Zn 2 - Credit Surety",null,null,null,null,0]
["Sch IVC","Premium by Zone",null,"NPW Zn 2 - Credit Surety Non-Prop.",null,null,null,null,0]
["Sch IVC","Premium by Zone",null,"NPW Zn 2 - Energy",null,null,null,null,0]
["Sch IVC","Premium by Zone",null,"NPW Zn 2 - Energy Non-Proportional",null,null,null,null,0]
["Sch IVC","Premium by Zone",null,"NPW Zn 2 - US Casualty",null,null,null,null,0]
["Sch IVC","Premium by Zone",null,"NPW Zn 2 - US Casualty Non-Prop.",null,null,null,null,0]
["Sch IVC","Premium by Zone",null,"NPW Zn 2 - US Professional",null,null,null,null,0]
["Sch IVC","Premium by Zone",null,"NPW Zn 2 - US Professional Non-Prop.",null,null,null,null,0]
["Sch IVC","Premium by Zone",null,"NPW Zn 2 - US Specialty",null,null,null,null,0]
["Sch IVC","Premium by Zone",null,"NPW Zn 2 - US Specialty Non-Prop.",null,null,null,null,0]
["Sch IVC","Premium by Zone",null,"NPW Zn 2 - Int'l Motor",null,null,null,null,0]
["Sch IVC","Premium by Zone",null,"NPW Zn 2 - Int'l Motor Non-Prop.",null,null,null,null,0]
["Sch IVC","Premium by Zone",null,"NPW Zn 2 - Int'l Casualty",null,null,null,null,0]
["Sch IVC","Premium by Zone",null,"NPW Zn 2 - Int'l Casualty Non-Prop.",null,null,null,null,0]
["Sch IVC","Premium by Zone",null,"NPW Zn 2 - Retro Property",null,null,null,null,0]
["Sch IVC","Premium by Zone",null,"NPW Zn 2 - Structured / Finite R/I",null,null,null,null,0]
["Sch IVC","Premium by Zone",null,"NPW Zn 2 - Health",null,null,null,null,0]
["Sch IVC","Premium by Zone",null,"NPW Zn 2 - Total",null,null,null,null,0]
["Sch IVC","Premium by Zone",null,"NPW Zn 3 - Property Catastrophe",null,null,null,null,0]
["Sch IVC","Premium by Zone",null,"NPW Zn 3 - Property",null,null,null,null,0]
["Sch IVC","Premium by Zone",null,"NPW Zn 3 - Property Non-Proportion",null,null,null,null,0]
["Sch IVC","Premium by Zone",null,"NPW Zn 3 - Personal Accident",null,null,null,null,0]
["Sch IVC","Premium by Zone",null,"NPW Zn 3 - Personal Acc. Non Prop.",null,null,null,null,0]
["Sch IVC","Premium by Zone",null,"NPW Zn 3 - Aviation",null,null,null,null,0]
["Sch IVC","Premium by Zone",null,"NPW Zn 3 - Aviation Non-Proportional",null,null,null,null,0]
["Sch IVC","Premium by Zone",null,"NPW Zn 3 - Credit Surety",null,null,null,null,0]
["Sch IVC","Premium by Zone",null,"NPW Zn 3 - Credit Surety Non-Prop.",null,null,null,null,0]
["Sch IVC","Premium by Zone",null,"NPW Zn 3 - Energy",null,null,null,null,0]
["Sch IVC","Premium by Zone",null,"NPW Zn 3 - Energy Non-Proportional",null,null,null,null,0]
["Sch IVC","Premium by Zone",null,"NPW Zn 3 - US Casualty",null,null,null,null,0]
["Sch IVC","Premium by Zone",null,"NPW Zn 3 - US Casualty Non-Prop.",null,null,null,null,0]
["Sch IVC","Premium by Zone",null,"NPW Zn 3 - US Professional",null,null,null,null,0]
["Sch IVC","Premium by Zone",null,"NPW Zn 3 - US Professional Non-Prop.",null,null,null,null,0]
["Sch IVC","Premium by Zone",null,"NPW Zn 3 - US Specialty",null,null,null,null,0]
["Sch IVC","Premium by Zone",null,"NPW Zn 3 - US Specialty Non-Prop.",null,null,null,null,0]
["Sch IVC","Premium by Zone",null,"NPW Zn 3 - Int'l Motor",null,null,null,null,0]
["Sch IVC","Premium by Zone",null,"NPW Zn 3 - Int'l Motor Non-Prop.",null,null,null,null,0]
["Sch IVC","Premium by Zone",null,"NPW Zn 3 - Int'l Casualty",null,null,null,null,0]
["Sch IVC","Premium by Zone",null,"NPW Zn 3 - Int'l Casualty Non-Prop.",null,null,null,null,0]
["Sch IVC","Premium by Zone",null,"NPW Zn 3 - Retro Property",null,null,null,null,0]
["Sch IVC","Premium by Zone",null,"NPW Zn 3 - Structured / Finite R/I",null,null,null,null,0]
["Sch IVC","Premium by Zone",null,"NPW Zn 3 - Health",null,null,null,null,0]
["Sch IVC","Premium by Zone",null,"NPW Zn 3 - Total",null,null,null,null,0]
["Sch IVC","Premium by Zone",null,"NPW Zn 4 - Property Catastrophe",null,null,null,null,0]
["Sch IVC","Premium by Zone",null,"NPW Zn 4 - Property",null,null,null,null,0]
["Sch IVC","Premium by Zone",null,"NPW Zn 4 - Property Non-Proportion",null,null,null,null,0]
["Sch IVC","Premium by Zone",null,"NPW Zn 4 - Personal Accident",null,null,null,null,0]
["Sch IVC","Premium by Zone",null,"NPW Zn 4 - Personal Acc. Non Prop.",null,null,null,null,0]
["Sch IVC","Premium by Zone",null,"NPW Zn 4 - Aviation",null,null,null,null,0]
["Sch IVC","Premium by Zone",null,"NPW Zn 4 - Aviation Non-Proportional",null,null,null,null,0]
["Sch IVC","Premium by Zone",null,"NPW Zn 4 - Credit Surety",null,null,null,null,0]
["Sch IVC","Premium by Zone",null,"NPW Zn 4 - Credit Surety Non-Prop.",null,null,null,null,0]
["Sch IVC","Premium by Zone",null,"NPW Zn 4 - Energy",null,null,null,null,0]
["Sch IVC","Premium by Zone",null,"NPW Zn 4 - Energy Non-Proportional",null,null,null,null,0]
["Sch IVC","Premium by Zone",null,"NPW Zn 4 - US Casualty",null,null,null,null,0]
["Sch IVC","Premium by Zone",null,"NPW Zn 4 - US Casualty Non-Prop.",null,null,null,null,0]
["Sch IVC","Premium by Zone",null,"NPW Zn 4 - US Professional",null,null,null,null,0]
["Sch IVC","Premium by Zone",null,"NPW Zn 4 - US Professional Non-Prop.",null,null,null,null,0]
["Sch IVC","Premium by Zone",null,"NPW Zn 4 - US Specialty",null,null,null,null,0]
["Sch IVC","Premium by Zone",null,"NPW Zn 4 - US Specialty Non-Prop.",null,null,null,null,0]
["Sch IVC","Premium by Zone",null,"NPW Zn 4 - Int'l Motor",null,null,null,null,0]
["Sch IVC","Premium by Zone",null,"NPW Zn 4 - Int'l Motor Non-Prop.",null,null,null,null,0]
["Sch IVC","Premium by Zone",null,"NPW Zn 4 - Int'l Casualty",null,null,null,null,0]
["Sch IVC","Premium by Zone",null,"NPW Zn 4 - Int'l Casualty Non-Prop.",null,null,null,null,0]
["Sch IVC","Premium by Zone",null,"NPW Zn 4 - Retro Property",null,null,null,null,0]
["Sch IVC","Premium by Zone",null,"NPW Zn 4 - Structured / Finite R/I",null,null,null,null,0]
["Sch IVC","Premium by Zone",null,"NPW Zn 4 - Health",null,null,null,null,0]
["Sch IVC","Premium by Zone",null,"NPW Zn 4 - Total",null,null,null,null,0]
["Sch IVC","Premium by Zone",null,"NPW Zn 5 - Property Catastrophe",null,null,null,null,0]
["Sch IVC","Premium by Zone",null,"NPW Zn 5 - Property",null,null,null,null,0]
["Sch IVC","Premium by Zone",null,"NPW Zn 5 - Property Non-Proportion",null,null,null,null,0]
["Sch IVC","Premium by Zone",null,"NPW Zn 5 - Personal Accident",null,null,null,null,0]
["Sch IVC","Premium by Zone",null,"NPW Zn 5 - Personal Acc. Non Prop.",null,null,null,null,0]
["Sch IVC","Premium by Zone",null,"NPW Zn 5 - Aviation",null,null,null,null,0]
["Sch IVC","Premium by Zone",null,"NPW Zn 5 - Aviation Non-Proportional",null,null,null,null,0]
["Sch IVC","Premium by Zone",null,"NPW Zn 5 - Credit Surety",null,null,null,null,0]
["Sch IVC","Premium by Zone",null,"NPW Zn 5 - Credit Surety Non-Prop.",null,null,null,null,0]
["Sch IVC","Premium by Zone",null,"NPW Zn 5 - Energy",null,null,null,null,0]
["Sch IVC","Premium by Zone",null,"NPW Zn 5 - Energy Non-Proportional",null,null,null,null,0]
["Sch IVC","Premium by Zone",null,"NPW Zn 5 - US Casualty",null,null,null,null,0]
["Sch IVC","Premium by Zone",null,"NPW Zn 5 - US Casualty Non-Prop.",null,null,null,null,0]
["Sch IVC","Premium by Zone",null,"NPW Zn 5 - US Professional",null,null,null,null,0]
["Sch IVC","Premium by Zone",null,"NPW Zn 5 - US Professional Non-Prop.",null,null,null,null,0]
["Sch IVC","Premium by Zone",null,"NPW Zn 5 - US Specialty",null,null,null,null,0]
["Sch IVC","Premium by Zone",null,"NPW Zn 5 - US Specialty Non-Prop.",null,null,null,null,0]
["Sch IVC","Premium by Zone",null,"NPW Zn 5 - Int'l Motor",null,null,null,null,0]
["Sch IVC","Premium by Zone",null,"NPW Zn 5 - Int'l Motor Non-Prop.",null,null,null,null,0]
["Sch IVC","Premium by Zone",null,"NPW Zn 5 - Int'l Casualty",null,null,null,null,0]
["Sch IVC","Premium by Zone",null,"NPW Zn 5 - Int'l Casualty Non-Prop.",null,null,null,null,0]
["Sch IVC","Premium by Zone",null,"NPW Zn 5 - Retro Property",null,null,null,null,0]
["Sch IVC","Premium by Zone",null,"NPW Zn 5 - Structured / Finite R/I",null,null,null,null,0]
["Sch IVC","Premium by Zone",null,"NPW Zn 5 - Health",null,null,null,null,0]
["Sch IVC","Premium by Zone",null,"NPW Zn 5 - Total",null,null,null,null,0]
["Sch IVC","Premium by Zone",null,"NPW Zn 6 - Property Catastrophe",null,null,null,null,0]
["Sch IVC","Premium by Zone",null,"NPW Zn 6 - Property",null,null,null,null,0]
["Sch IVC","Premium by Zone",null,"NPW Zn 6 - Property Non-Proportion",null,null,null,null,0]
["Sch IVC","Premium by Zone",null,"NPW Zn 6 - Personal Accident",null,null,null,null,0]
["Sch IVC","Premium by Zone",null,"NPW Zn 6 - Personal Acc. Non Prop.",null,null,null,null,0]
["Sch IVC","Premium by Zone",null,"NPW Zn 6 - Aviation",null,null,null,null,0]
["Sch IVC","Premium by Zone",null,"NPW Zn 6 - Aviation Non-Proportional",null,null,null,null,0]
["Sch IVC","Premium by Zone",null,"NPW Zn 6 - Credit Surety",null,null,null,null,0]
["Sch IVC","Premium by Zone",null,"NPW Zn 6 - Credit Surety Non-Prop.",null,null,null,null,0]
["Sch IVC","Premium by Zone",null,"NPW Zn 6 - Energy",null,null,null,null,0]
["Sch IVC","Premium by Zone",null,"NPW Zn 6 - Energy Non-Proportional",null,null,null,null,0]
["Sch IVC","Premium by Zone",null,"NPW Zn 6 - US Casualty",null,null,null,null,0]
["Sch IVC","Premium by Zone",null,"NPW Zn 6 - US Casualty Non-Prop.",null,null,null,null,0]
["Sch IVC","Premium by Zone",null,"NPW Zn 6 - US Professional",null,null,null,null,0]
["Sch IVC","Premium by Zone",null,"NPW Zn 6 - US Professional Non-Prop.",null,null,null,null,0]
["Sch IVC","Premium by Zone",null,"NPW Zn 6 - US Specialty",null,null,null,null,0]
["Sch IVC","Premium by Zone",null,"NPW Zn 6 - US Specialty Non-Prop.",null,null,null,null,0]
["Sch IVC","Premium by Zone",null,"NPW Zn 6 - Int'l Motor",null,null,null,null,0]
["Sch IVC","Premium by Zone",null,"NPW Zn 6 - Int'l Motor Non-Prop.",null,null,null,null,0]
["Sch IVC","Premium by Zone",null,"NPW Zn 6 - Int'l Casualty",null,null,null,null,0]
["Sch IVC","Premium by Zone",null,"NPW Zn 6 - Int'l Casualty Non-Prop.",null,null,null,null,0]
["Sch IVC","Premium by Zone",null,"NPW Zn 6 - Retro Property",null,null,null,null,0]
["Sch IVC","Premium by Zone",null,"NPW Zn 6 - Structured / Finite R/I",null,null,null,null,0]
["Sch IVC","Premium by Zone",null,"NPW Zn 6 - Health",null,null,null,null,0]
["Sch IVC","Premium by Zone",null,"NPW Zn 6 - Total",null,null,null,null,0]
["Sch IVC","Premium by Zone",null,"NPW Zn 7 - Property Catastrophe",null,null,null,null,0]
["Sch IVC","Premium by Zone",null,"NPW Zn 7 - Property",null,null,null,null,0]
["Sch IVC","Premium by Zone",null,"NPW Zn 7 - Property Non-Proportion",null,null,null,null,0]
["Sch IVC","Premium by Zone",null,"NPW Zn 7 - Personal Accident",null,null,null,null,0]
["Sch IVC","Premium by Zone",null,"NPW Zn 7 - Personal Acc. Non Prop.",null,null,null,null,0]
["Sch IVC","Premium by Zone",null,"NPW Zn 7 - Aviation",null,null,null,null,0]
["Sch IVC","Premium by Zone",null,"NPW Zn 7 - Aviation Non-Proportional",null,null,null,null,0]
["Sch IVC","Premium by Zone",null,"NPW Zn 7 - Credit Surety",null,null,null,null,0]
["Sch IVC","Premium by Zone",null,"NPW Zn 7 - Credit Surety Non-Prop.",null,null,null,null,0]
["Sch IVC","Premium by Zone",null,"NPW Zn 7 - Energy",null,null,null,null,0]
["Sch IVC","Premium by Zone",null,"NPW Zn 7 - Energy Non-Proportional",null,null,null,null,0]
["Sch IVC","Premium by Zone",null,"NPW Zn 7 - US Casualty",null,null,null,null,0]
["Sch IVC","Premium by Zone",null,"NPW Zn 7 - US Casualty Non-Prop.",null,null,null,null,0]
["Sch IVC","Premium by Zone",null,"NPW Zn 7 - US Professional",null,null,null,null,0]
["Sch IVC","Premium by Zone",null,"NPW Zn 7 - US Professional Non-Prop.",null,null,null,null,0]
["Sch IVC","Premium by Zone",null,"NPW Zn 7 - US Specialty",null,null,null,null,0]
["Sch IVC","Premium by Zone",null,"NPW Zn 7 - US Specialty Non-Prop.",null,null,null,null,0]
["Sch IVC","Premium by Zone",null,"NPW Zn 7 - Int'l Motor",null,null,null,null,0]
["Sch IVC","Premium by Zone",null,"NPW Zn 7 - Int'l Motor Non-Prop.",null,null,null,null,0]
["Sch IVC","Premium by Zone",null,"NPW Zn 7 - Int'l Casualty",null,null,null,null,0]
["Sch IVC","Premium by Zone",null,"NPW Zn 7 - Int'l Casualty Non-Prop.",null,null,null,null,0]
["Sch IVC","Premium by Zone",null,"NPW Zn 7 - Retro Property",null,null,null,null,0]
["Sch IVC","Premium by Zone",null,"NPW Zn 7 - Structured / Finite R/I",null,null,null,null,0]
["Sch IVC","Premium by Zone",null,"NPW Zn 7 - Health",null,null,null,null,0]
["Sch IVC","Premium by Zone",null,"NPW Zn 7 - Total",null,null,null,null,0]
["Sch IVC","Premium by Zone",null,"NPW Zn 8 - Property Catastrophe",null,null,null,null,0]
["Sch IVC","Premium by Zone",null,"NPW Zn 8 - Property",null,null,null,null,0]
["Sch IVC","Premium by Zone",null,"NPW Zn 8 - Property Non-Proportion",null,null,null,null,0]
["Sch IVC","Premium by Zone",null,"NPW Zn 8 - Personal Accident",null,null,null,null,0]
["Sch IVC","Premium by Zone",null,"NPW Zn 8 - Personal Acc. Non Prop.",null,null,null,null,0]
["Sch IVC","Premium by Zone",null,"NPW Zn 8 - Aviation",null,null,null,null,0]
["Sch IVC","Premium by Zone",null,"NPW Zn 8 - Aviation Non-Proportional",null,null,null,null,0]
["Sch IVC","Premium by Zone",null,"NPW Zn 8 - Credit Surety",null,null,null,null,0]
["Sch IVC","Premium by Zone",null,"NPW Zn 8 - Credit Surety Non-Prop.",null,null,null,null,0]
["Sch IVC","Premium by Zone",null,"NPW Zn 8 - Energy",null,null,null,null,0]
["Sch IVC","Premium by Zone",null,"NPW Zn 8 - Energy Non-Proportional",null,null,null,null,0]
["Sch IVC","Premium by Zone",null,"NPW Zn 8 - US Casualty",null,null,null,null,0]
["Sch IVC","Premium by Zone",null,"NPW Zn 8 - US Casualty Non-Prop.",null,null,null,null,0]
["Sch IVC","Premium by Zone",null,"NPW Zn 8 - US Professional",null,null,null,null,0]
["Sch IVC","Premium by Zone",null,"NPW Zn 8 - US Professional Non-Prop.",null,null,null,null,0]
["Sch IVC","Premium by Zone",null,"NPW Zn 8 - US Specialty",null,null,null,null,0]
["Sch IVC","Premium by Zone",null,"NPW Zn 8 - US Specialty Non-Prop.",null,null,null,null,0]
["Sch IVC","Premium by Zone",null,"NPW Zn 8 - Int'l Motor",null,null,null,null,0]
["Sch IVC","Premium by Zone",null,"NPW Zn 8 - Int'l Motor Non-Prop.",null,null,null,null,0]
["Sch IVC","Premium by Zone",null,"NPW Zn 8 - Int'l Casualty",null,null,null,null,0]
["Sch IVC","Premium by Zone",null,"NPW Zn 8 - Int'l Casualty Non-Prop.",null,null,null,null,0]
["Sch IVC","Premium by Zone",null,"NPW Zn 8 - Retro Property",null,null,null,null,0]
["Sch IVC","Premium by Zone",null,"NPW Zn 8 - Structured / Finite R/I",null,null,null,null,0]
["Sch IVC","Premium by Zone",null,"NPW Zn 8 - Health",null,null,null,null,0]
["Sch IVC","Premium by Zone",null,"NPW Zn 8 - Total",null,null,null,null,0]
["Sch IVC","Premium by Zone",null,"NPW Zn 9 - Property Catastrophe",null,null,null,null,0]
["Sch IVC","Premium by Zone",null,"NPW Zn 9 - Property",null,null,null,null,0]
["Sch IVC","Premium by Zone",null,"NPW Zn 9 - Property Non-Proportion",null,null,null,null,0]
["Sch IVC","Premium by Zone",null,"NPW Zn 9 - Personal Accident",null,null,null,null,0]
["Sch IVC","Premium by Zone",null,"NPW Zn 9 - Personal Acc. Non Prop.",null,null,null,null,0]
["Sch IVC","Premium by Zone",null,"NPW Zn 9 - Aviation",null,null,null,null,0]
["Sch IVC","Premium by Zone",null,"NPW Zn 9 - Aviation Non-Proportional",null,null,null,null,0]
["Sch IVC","Premium by Zone",null,"NPW Zn 9 - Credit Surety",null,null,null,null,0]
["Sch IVC","Premium by Zone",null,"NPW Zn 9 - Credit Surety Non-Prop.",null,null,null,null,0]
["Sch IVC","Premium by Zone",null,"NPW Zn 9 - Energy",null,null,null,null,0]
["Sch IVC","Premium by Zone",null,"NPW Zn 9 - Energy Non-Proportional",null,null,null,null,0]
["Sch IVC","Premium by Zone",null,"NPW Zn 9 - US Casualty",null,null,null,null,0]
["Sch IVC","Premium by Zone",null,"NPW Zn 9 - US Casualty Non-Prop.",null,null,null,null,0]
["Sch IVC","Premium by Zone",null,"NPW Zn 9 - US Professional",null,null,null,null,0]
["Sch IVC","Premium by Zone",null,"NPW Zn 9 - US Professional Non-Prop.",null,null,null,null,0]
["Sch IVC","Premium by Zone",null,"NPW Zn 9 - US Specialty",null,null,null,null,0]
["Sch IVC","Premium by Zone",null,"NPW Zn 9 - US Specialty Non-Prop.",null,null,null,null,0]
["Sch IVC","Premium by Zone",null,"NPW Zn 9 - Int'l Motor",null,null,null,null,0]
["Sch IVC","Premium by Zone",null,"NPW Zn 9 - Int'l Motor Non-Prop.",null,null,null,null,0]
["Sch IVC","Premium by Zone",null,"NPW Zn 9 - Int'l Casualty",null,null,null,null,0]
["Sch IVC","Premium by Zone",null,"NPW Zn 9 - Int'l Casualty Non-Prop.",null,null,null,null,0]
["Sch IVC","Premium by Zone",null,"NPW Zn 9 - Retro Property",null,null,null,null,0]
["Sch IVC","Premium by Zone",null,"NPW Zn 9 - Structured / Finite R/I",null,null,null,null,0]
["Sch IVC","Premium by Zone",null,"NPW Zn 9 - Health",null,null,null,null,0]
["Sch IVC","Premium by Zone",null,"NPW Zn 9 - Total",null,null,null,null,0]
["Sch IVC","Premium by Zone",null,"NPW Zn 10 - Property Catastrophe",null,null,null,null,0]
["Sch IVC","Premium by Zone",null,"NPW Zn 10 - Property",null,null,null,null,0]
["Sch IVC","Premium by Zone",null,"NPW Zn 10 - Property Non-Proportion",null,null,null,null,0]
["Sch IVC","Premium by Zone",null,"NPW Zn 10 - Personal Accident",null,null,null,null,0]
["Sch IVC","Premium by Zone",null,"NPW Zn 10 - Personal Acc. Non Prop.",null,null,null,null,0]
["Sch IVC","Premium by Zone",null,"NPW Zn 10 - Aviation",null,null,null,null,0]
["Sch IVC","Premium by Zone",null,"NPW Zn 10 - Aviation Non-Proportional",null,null,null,null,0]
["Sch IVC","Premium by Zone",null,"NPW Zn 10 - Credit Surety",null,null,null,null,0]
["Sch IVC","Premium by Zone",null,"NPW Zn 10 - Credit Surety Non-Prop.",null,null,null,null,0]
["Sch IVC","Premium by Zone",null,"NPW Zn 10 - Energy",null,null,null,null,0]
["Sch IVC","Premium by Zone",null,"NPW Zn 10 - Energy Non-Proportional",null,null,null,null,0]
["Sch IVC","Premium by Zone",null,"NPW Zn 10 - US Casualty",null,null,null,null,0]
["Sch IVC","Premium by Zone",null,"NPW Zn 10 - US Casualty Non-Prop.",null,null,null,null,0]
["Sch IVC","Premium by Zone",null,"NPW Zn 10 - US Professional",null,null,null,null,0]
["Sch IVC","Premium by Zone",null,"NPW Zn 10 - US Professional Non-Prop.",null,null,null,null,0]
["Sch IVC","Premium by Zone",null,"NPW Zn 10 - US Specialty",null,null,null,null,0]
["Sch IVC","Premium by Zone",null,"NPW Zn 10 - US Specialty Non-Prop.",null,null,null,null,0]
["Sch IVC","Premium by Zone",null,"NPW Zn 10 - Int'l Motor",null,null,null,null,0]
["Sch IVC","Premium by Zone",null,"NPW Zn 10 - Int'l Motor Non-Prop.",null,null,null,null,0]
["Sch IVC","Premium by Zone",null,"NPW Zn 10 - Int'l Casualty",null,null,null,null,0]
["Sch IVC","Premium by Zone",null,"NPW Zn 10 - Int'l Casualty Non-Prop.",null,null,null,null,0]
["Sch IVC","Premium by Zone",null,"NPW Zn 10 - Retro Property",null,null,null,null,0]
["Sch IVC","Premium by Zone",null,"NPW Zn 10 - Structured / Finite R/I",null,null,null,null,0]
["Sch IVC","Premium by Zone",null,"NPW Zn 10 - Health",null,null,null,null,0]
["Sch IVC","Premium by Zone",null,"NPW Zn 10 - Total",null,null,null,null,0]
["Sch IVC","Premium by Zone",null,"NPW Zn 11 - Property Catastrophe",null,null,null,null,0]
["Sch IVC","Premium by Zone",null,"NPW Zn 11 - Property",null,null,null,null,0]
["Sch IVC","Premium by Zone",null,"NPW Zn 11 - Property Non-Proportion",null,null,null,null,0]
["Sch IVC","Premium by Zone",null,"NPW Zn 11 - Personal Accident",null,null,null,null,0]
["Sch IVC","Premium by Zone",null,"NPW Zn 11 - Personal Acc. Non Prop.",null,null,null,null,0]
["Sch IVC","Premium by Zone",null,"NPW Zn 11 - Aviation",null,null,null,null,0]
["Sch IVC","Premium by Zone",null,"NPW Zn 11 - Aviation Non-Proportional",null,null,null,null,0]
["Sch IVC","Premium by Zone",null,"NPW Zn 11 - Credit Surety",null,null,null,null,0]
["Sch IVC","Premium by Zone",null,"NPW Zn 11 - Credit Surety Non-Prop.",null,null,null,null,0]
["Sch IVC","Premium by Zone",null,"NPW Zn 11 - Energy",null,null,null,null,0]
["Sch IVC","Premium by Zone",null,"NPW Zn 11 - Energy Non-Proportional",null,null,null,null,0]
["Sch IVC","Premium by Zone",null,"NPW Zn 11 - US Casualty",null,null,null,null,0]
["Sch IVC","Premium by Zone",null,"NPW Zn 11 - US Casualty Non-Prop.",null,null,null,null,0]
["Sch IVC","Premium by Zone",null,"NPW Zn 11 - US Professional",null,null,null,null,0]
["Sch IVC","Premium by Zone",null,"NPW Zn 11 - US Professional Non-Prop.",null,null,null,null,0]
["Sch IVC","Premium by Zone",null,"NPW Zn 11 - US Specialty",null,null,null,null,0]
["Sch IVC","Premium by Zone",null,"NPW Zn 11 - US Specialty Non-Prop.",null,null,null,null,0]
["Sch IVC","Premium by Zone",null,"NPW Zn 11 - Int'l Motor",null,null,null,null,0]
["Sch IVC","Premium by Zone",null,"NPW Zn 11 - Int'l Motor Non-Prop.",null,null,null,null,0]
["Sch IVC","Premium by Zone",null,"NPW Zn 11 - Int'l Casualty",null,null,null,null,0]
["Sch IVC","Premium by Zone",null,"NPW Zn 11 - Int'l Casualty Non-Prop.",null,null,null,null,0]
["Sch IVC","Premium by Zone",null,"NPW Zn 11 - Retro Property",null,null,null,null,0]
["Sch IVC","Premium by Zone",null,"NPW Zn 11 - Structured / Finite R/I",null,null,null,null,0]
["Sch IVC","Premium by Zone",null,"NPW Zn 11 - Health",null,null,null,null,0]
["Sch IVC","Premium by Zone",null,"NPW Zn 11 - Total",null,null,null,null,0]
["Sch IVC","Premium by Zone",null,"NPW Zn 12 - Property Catastrophe",null,null,null,null,0]
["Sch IVC","Premium by Zone",null,"NPW Zn 12 - Property",null,null,null,null,0]
["Sch IVC","Premium by Zone",null,"NPW Zn 12 - Property Non-Proportion",null,null,null,null,0]
["Sch IVC","Premium by Zone",null,"NPW Zn 12 - Personal Accident",null,null,null,null,0]
["Sch IVC","Premium by Zone",null,"NPW Zn 12 - Personal Acc. Non Prop.",null,null,null,null,0]
["Sch IVC","Premium by Zone",null,"NPW Zn 12 - Aviation",null,null,null,null,0]
["Sch IVC","Premium by Zone",null,"NPW Zn 12 - Aviation Non-Proportional",null,null,null,null,0]
["Sch IVC","Premium by Zone",null,"NPW Zn 12 - Credit Surety",null,null,null,null,0]
["Sch IVC","Premium by Zone",null,"NPW Zn 12 - Credit Surety Non-Prop.",null,null,null,null,0]
["Sch IVC","Premium by Zone",null,"NPW Zn 12 - Energy",null,null,null,null,0]
["Sch IVC","Premium by Zone",null,"NPW Zn 12 - Energy Non-Proportional",null,null,null,null,0]
["Sch IVC","Premium by Zone",null,"NPW Zn 12 - US Casualty",null,null,null,null,0]
["Sch IVC","Premium by Zone",null,"NPW Zn 12 - US Casualty Non-Prop.",null,null,null,null,0]
["Sch IVC","Premium by Zone",null,"NPW Zn 12 - US Professional",null,null,null,null,0]
["Sch IVC","Premium by Zone",null,"NPW Zn 12 - US Professional Non-Prop.",null,null,null,null,0]
["Sch IVC","Premium by Zone",null,"NPW Zn 12 - US Specialty",null,null,null,null,0]
["Sch IVC","Premium by Zone",null,"NPW Zn 12 - US Specialty Non-Prop.",null,null,null,null,0]
["Sch IVC","Premium by Zone",null,"NPW Zn 12 - Int'l Motor",null,null,null,null,0]
["Sch IVC","Premium by Zone",null,"NPW Zn 12 - Int'l Motor Non-Prop.",null,null,null,null,0]
["Sch IVC","Premium by Zone",null,"NPW Zn 12 - Int'l Casualty",null,null,null,null,0]
["Sch IVC","Premium by Zone",null,"NPW Zn 12 - Int'l Casualty Non-Prop.",null,null,null,null,0]
["Sch IVC","Premium by Zone",null,"NPW Zn 12 - Retro Property",null,null,null,null,0]
["Sch IVC","Premium by Zone",null,"NPW Zn 12 - Structured / Finite R/I",null,null,null,null,0]
["Sch IVC","Premium by Zone",null,"NPW Zn 12 - Health",null,null,null,null,0]
["Sch IVC","Premium by Zone",null,"NPW Zn 12 - Total",null,null,null,null,0]
["Sch IVC","Premium by Zone",null,"NPW Zn 13 - Property Catastrophe",null,null,null,null,0]
["Sch IVC","Premium by Zone",null,"NPW Zn 13 - Property",null,null,null,null,0]
["Sch IVC","Premium by Zone",null,"NPW Zn 13 - Property Non-Proportion",null,null,null,null,0]
["Sch IVC","Premium by Zone",null,"NPW Zn 13 - Personal Accident",null,null,null,null,0]
["Sch IVC","Premium by Zone",null,"NPW Zn 13 - Personal Acc. Non Prop.",null,null,null,null,0]
["Sch IVC","Premium by Zone",null,"NPW Zn 13 - Aviation",null,null,null,null,0]
["Sch IVC","Premium by Zone",null,"NPW Zn 13 - Aviation Non-Proportional",null,null,null,null,0]
["Sch IVC","Premium by Zone",null,"NPW Zn 13 - Credit Surety",null,null,null,null,0]
["Sch IVC","Premium by Zone",null,"NPW Zn 13 - Credit Surety Non-Prop.",null,null,null,null,0]
["Sch IVC","Premium by Zone",null,"NPW Zn 13 - Energy",null,null,null,null,0]
["Sch IVC","Premium by Zone",null,"NPW Zn 13 - Energy Non-Proportional",null,null,null,null,0]
["Sch IVC","Premium by Zone",null,"NPW Zn 13 - US Casualty",null,null,null,null,0]
["Sch IVC","Premium by Zone",null,"NPW Zn 13 - US Casualty Non-Prop.",null,null,null,null,0]
["Sch IVC","Premium by Zone",null,"NPW Zn 13 - US Professional",null,null,null,null,0]
["Sch IVC","Premium by Zone",null,"NPW Zn 13 - US Professional Non-Prop.",null,null,null,null,0]
["Sch IVC","Premium by Zone",null,"NPW Zn 13 - US Specialty",null,null,null,null,0]
["Sch IVC","Premium by Zone",null,"NPW Zn 13 - US Specialty Non-Prop.",null,null,null,null,0]
["Sch IVC","Premium by Zone",null,"NPW Zn 13 - Int'l Motor",null,null,null,null,0]
["Sch IVC","Premium by Zone",null,"NPW Zn 13 - Int'l Motor Non-Prop.",null,null,null,null,0]
["Sch IVC","Premium by Zone",null,"NPW Zn 13 - Int'l Casualty",null,null,null,null,0]
["Sch IVC","Premium by Zone",null,"NPW Zn 13 - Int'l Casualty Non-Prop.",null,null,null,null,0]
["Sch IVC","Premium by Zone",null,"NPW Zn 13 - Retro Property",null,null,null,null,0]
["Sch IVC","Premium by Zone",null,"NPW Zn 13 - Structured / Finite R/I",null,null,null,null,0]
["Sch IVC","Premium by Zone",null,"NPW Zn 13 - Health",null,null,null,null,0]
["Sch IVC","Premium by Zone",null,"NPW Zn 13 - Total",null,null,null,null,0]
["Sch IVC","Premium by Zone",null,"NPW Zn 14 - Property Catastrophe",null,null,null,null,0]
["Sch IVC","Premium by Zone",null,"NPW Zn 14 - Property",null,null,null,null,0]
["Sch IVC","Premium by Zone",null,"NPW Zn 14 - Property Non-Proportion",null,null,null,null,0]
["Sch IVC","Premium by Zone",null,"NPW Zn 14 - Personal Accident",null,null,null,null,0]
["Sch IVC","Premium by Zone",null,"NPW Zn 14 - Personal Acc. Non Prop.",null,null,null,null,0]
["Sch IVC","Premium by Zone",null,"NPW Zn 14 - Aviation",null,null,null,null,0]
["Sch IVC","Premium by Zone",null,"NPW Zn 14 - Aviation Non-Proportional",null,null,null,null,0]
["Sch IVC","Premium by Zone",null,"NPW Zn 14 - Credit Surety",null,null,null,null,0]
["Sch IVC","Premium by Zone",null,"NPW Zn 14 - Credit Surety Non-Prop.",null,null,null,null,0]
["Sch IVC","Premium by Zone",null,"NPW Zn 14 - Energy",null,null,null,null,0]
["Sch IVC","Premium by Zone",null,"NPW Zn 14 - Energy Non-Proportional",null,null,null,null,0]
["Sch IVC","Premium by Zone",null,"NPW Zn 14 - US Casualty",null,null,null,null,0]
["Sch IVC","Premium by Zone",null,"NPW Zn 14 - US Casualty Non-Prop.",null,null,null,null,0]
["Sch IVC","Premium by Zone",null,"NPW Zn 14 - US Professional",null,null,null,null,0]
["Sch IVC","Premium by Zone",null,"NPW Zn 14 - US Professional Non-Prop.",null,null,null,null,0]
["Sch IVC","Premium by Zone",null,"NPW Zn 14 - US Specialty",null,null,null,null,0]
["Sch IVC","Premium by Zone",null,"NPW Zn 14 - US Specialty Non-Prop.",null,null,null,null,0]
["Sch IVC","Premium by Zone",null,"NPW Zn 14 - Int'l Motor",null,null,null,null,0]
["Sch IVC","Premium by Zone",null,"NPW Zn 14 - Int'l Motor Non-Prop.",null,null,null,null,0]
["Sch IVC","Premium by Zone",null,"NPW Zn 14 - Int'l Casualty",null,null,null,null,0]
["Sch IVC","Premium by Zone",null,"NPW Zn 14 - Int'l Casualty Non-Prop.",null,null,null,null,0]
["Sch IVC","Premium by Zone",null,"NPW Zn 14 - Retro Property",null,null,null,null,0]
["Sch IVC","Premium by Zone",null,"NPW Zn 14 - Structured / Finite R/I",null,null,null,null,0]
["Sch IVC","Premium by Zone",null,"NPW Zn 14 - Health",null,null,null,null,0]
["Sch IVC","Premium by Zone",null,"NPW Zn 14 - Total",null,null,null,null,0]
["Sch IVC","Premium by Zone",null,"NPW Zn 15 - Property Catastrophe",null,null,null,null,0]
["Sch IVC","Premium by Zone",null,"NPW Zn 15 - Property",null,null,null,null,0]
["Sch IVC","Premium by Zone",null,"NPW Zn 15 - Property Non-Proportion",null,null,null,null,0]
["Sch IVC","Premium by Zone",null,"NPW Zn 15 - Personal Accident",null,null,null,null,0]
["Sch IVC","Premium by Zone",null,"NPW Zn 15 - Personal Acc. Non Prop.",null,null,null,null,0]
["Sch IVC","Premium by Zone",null,"NPW Zn 15 - Aviation",null,null,null,null,0]
["Sch IVC","Premium by Zone",null,"NPW Zn 15 - Aviation Non-Proportional",null,null,null,null,0]
["Sch IVC","Premium by Zone",null,"NPW Zn 15 - Credit Surety",null,null,null,null,0]
["Sch IVC","Premium by Zone",null,"NPW Zn 15 - Credit Surety Non-Prop.",null,null,null,null,0]
["Sch IVC","Premium by Zone",null,"NPW Zn 15 - Energy",null,null,null,null,0]
["Sch IVC","Premium by Zone",null,"NPW Zn 15 - Energy Non-Proportional",null,null,null,null,0]
["Sch IVC","Premium by Zone",null,"NPW Zn 15 - US Casualty",null,null,null,null,0]
["Sch IVC","Premium by Zone",null,"NPW Zn 15 - US Casualty Non-Prop.",null,null,null,null,0]
["Sch IVC","Premium by Zone",null,"NPW Zn 15 - US Professional",null,null,null,null,0]
["Sch IVC","Premium by Zone",null,"NPW Zn 15 - US Professional Non-Prop.",null,null,null,null,0]
["Sch IVC","Premium by Zone",null,"NPW Zn 15 - US Specialty",null,null,null,null,0]
["Sch IVC","Premium by Zone",null,"NPW Zn 15 - US Specialty Non-Prop.",null,null,null,null,0]
["Sch IVC","Premium by Zone",null,"NPW Zn 15 - Int'l Motor",null,null,null,null,0]
["Sch IVC","Premium by Zone",null,"NPW Zn 15 - Int'l Motor Non-Prop.",null,null,null,null,0]
["Sch IVC","Premium by Zone",null,"NPW Zn 15 - Int'l Casualty",null,null,null,null,0]
["Sch IVC","Premium by Zone",null,"NPW Zn 15 - Int'l Casualty Non-Prop.",null,null,null,null,0]
["Sch IVC","Premium by Zone",null,"NPW Zn 15 - Retro Property",null,null,null,null,0]
["Sch IVC","Premium by Zone",null,"NPW Zn 15 - Structured / Finite R/I",null,null,null,null,0]
["Sch IVC","Premium by Zone",null,"NPW Zn 15 - Health",null,null,null,null,0]
["Sch IVC","Premium by Zone",null,"NPW Zn 15 - Total",null,null,null,null,0]
["Sch IVC","Premium by Zone",null,"NPW Zn 16 - Property Catastrophe",null,null,null,null,0]
["Sch IVC","Premium by Zone",null,"NPW Zn 16 - Property",null,null,null,null,0]
["Sch IVC","Premium by Zone",null,"NPW Zn 16 - Property Non-Proportion",null,null,null,null,0]
["Sch IVC","Premium by Zone",null,"NPW Zn 16 - Personal Accident",null,null,null,null,0]
["Sch IVC","Premium by Zone",null,"NPW Zn 16 - Personal Acc. Non Prop.",null,null,null,null,0]
["Sch IVC","Premium by Zone",null,"NPW Zn 16 - Aviation",null,null,null,null,0]
["Sch IVC","Premium by Zone",null,"NPW Zn 16 - Aviation Non-Proportional",null,null,null,null,0]
["Sch IVC","Premium by Zone",null,"NPW Zn 16 - Credit Surety",null,null,null,null,0]
["Sch IVC","Premium by Zone",null,"NPW Zn 16 - Credit Surety Non-Prop.",null,null,null,null,0]
["Sch IVC","Premium by Zone",null,"NPW Zn 16 - Energy",null,null,null,null,0]
["Sch IVC","Premium by Zone",null,"NPW Zn 16 - Energy Non-Proportional",null,null,null,null,0]
["Sch IVC","Premium by Zone",null,"NPW Zn 16 - US Casualty",null,null,null,null,0]
["Sch IVC","Premium by Zone",null,"NPW Zn 16 - US Casualty Non-Prop.",null,null,null,null,0]
["Sch IVC","Premium by Zone",null,"NPW Zn 16 - US Professional",null,null,null,null,0]
["Sch IVC","Premium by Zone",null,"NPW Zn 16 - US Professional Non-Prop.",null,null,null,null,0]
["Sch IVC","Premium by Zone",null,"NPW Zn 16 - US Specialty",null,null,null,null,0]
["Sch IVC","Premium by Zone",null,"NPW Zn 16 - US Specialty Non-Prop.",null,null,null,null,0]
["Sch IVC","Premium by Zone",null,"NPW Zn 16 - Int'l Motor",null,null,null,null,0]
["Sch IVC","Premium by Zone",null,"NPW Zn 16 - Int'l Motor Non-Prop.",null,null,null,null,0]
["Sch IVC","Premium by Zone",null,"NPW Zn 16 - Int'l Casualty",null,null,null,null,0]
["Sch IVC","Premium by Zone",null,"NPW Zn 16 - Int'l Casualty Non-Prop.",null,null,null,null,0]
["Sch IVC","Premium by Zone",null,"NPW Zn 16 - Retro Property",null,null,null,null,0]
["Sch IVC","Premium by Zone",null,"NPW Zn 16 - Structured / Finite R/I",null,null,null,null,0]
["Sch IVC","Premium by Zone",null,"NPW Zn 16 - Health",null,null,null,null,0]
["Sch IVC","Premium by Zone",null,"NPW Zn 16 - Total",null,null,null,null,0]
["Sch IVC","Premium by Zone",null,"NPW Zn 17 - Property Catastrophe",null,null,null,null,0]
["Sch IVC","Premium by Zone",null,"NPW Zn 17 - Property",null,null,null,null,0]
["Sch IVC","Premium by Zone",null,"NPW Zn 17 - Property Non-Proportion",null,null,null,null,0]
["Sch IVC","Premium by Zone",null,"NPW Zn 17 - Personal Accident",null,null,null,null,0]
["Sch IVC","Premium by Zone",null,"NPW Zn 17 - Personal Acc. Non Prop.",null,null,null,null,0]
["Sch IVC","Premium by Zone",null,"NPW Zn 17 - Aviation",null,null,null,null,0]
["Sch IVC","Premium by Zone",null,"NPW Zn 17 - Aviation Non-Proportional",null,null,null,null,0]
["Sch IVC","Premium by Zone",null,"NPW Zn 17 - Credit Surety",null,null,null,null,0]
["Sch IVC","Premium by Zone",null,"NPW Zn 17 - Credit Surety Non-Prop.",null,null,null,null,0]
["Sch IVC","Premium by Zone",null,"NPW Zn 17 - Energy",null,null,null,null,0]
["Sch IVC","Premium by Zone",null,"NPW Zn 17 - Energy Non-Proportional",null,null,null,null,0]
["Sch IVC","Premium by Zone",null,"NPW Zn 17 - US Casualty",null,null,null,null,0]
["Sch IVC","Premium by Zone",null,"NPW Zn 17 - US Casualty Non-Prop.",null,null,null,null,0]
["Sch IVC","Premium by Zone",null,"NPW Zn 17 - US Professional",null,null,null,null,0]
["Sch IVC","Premium by Zone",null,"NPW Zn 17 - US Professional Non-Prop.",null,null,null,null,0]
["Sch IVC","Premium by Zone",null,"NPW Zn 17 - US Specialty",null,null,null,null,0]
["Sch IVC","Premium by Zone",null,"NPW Zn 17 - US Specialty Non-Prop.",null,null,null,null,0]
["Sch IVC","Premium by Zone",null,"NPW Zn 17 - Int'l Motor",null,null,null,null,0]
["Sch IVC","Premium by Zone",null,"NPW Zn 17 - Int'l Motor Non-Prop.",null,null,null,null,0]
["Sch IVC","Premium by Zone",null,"NPW Zn 17 - Int'l Casualty",null,null,null,null,0]
["Sch IVC","Premium by Zone",null,"NPW Zn 17 - Int'l Casualty Non-Prop.",null,null,null,null,0]
["Sch IVC","Premium by Zone",null,"NPW Zn 17 - Retro Property",null,null,null,null,0]
["Sch IVC","Premium by Zone",null,"NPW Zn 17 - Structured / Finite R/I",null,null,null,null,0]
["Sch IVC","Premium by Zone",null,"NPW Zn 17 - Health",null,null,null,null,0]
["Sch IVC","Premium by Zone",null,"NPW Zn 17 - Total",null,null,null,null,0]
["Sch IVC","Premium by Zone",null,"NPW Zn 18 - Property Catastrophe",null,null,null,null,0]
["Sch IVC","Premium by Zone",null,"NPW Zn 18 - Property",null,null,null,null,0]
["Sch IVC","Premium by Zone",null,"NPW Zn 18 - Property Non-Proportion",null,null,null,null,0]
["Sch IVC","Premium by Zone",null,"NPW Zn 18 - Personal Accident",null,null,null,null,0]
["Sch IVC","Premium by Zone",null,"NPW Zn 18 - Personal Acc. Non Prop.",null,null,null,null,0]
["Sch IVC","Premium by Zone",null,"NPW Zn 18 - Aviation",null,null,null,null,0]
["Sch IVC","Premium by Zone",null,"NPW Zn 18 - Aviation Non-Proportional",null,null,null,null,0]
["Sch IVC","Premium by Zone",null,"NPW Zn 18 - Credit Surety",null,null,null,null,0]
["Sch IVC","Premium by Zone",null,"NPW Zn 18 - Credit Surety Non-Prop.",null,null,null,null,0]
["Sch IVC","Premium by Zone",null,"NPW Zn 18 - Energy",null,null,null,null,0]
["Sch IVC","Premium by Zone",null,"NPW Zn 18 - Energy Non-Proportional",null,null,null,null,0]
["Sch IVC","Premium by Zone",null,"NPW Zn 18 - US Casualty",null,null,null,null,0]
["Sch IVC","Premium by Zone",null,"NPW Zn 18 - US Casualty Non-Prop.",null,null,null,null,0]
["Sch IVC","Premium by Zone",null,"NPW Zn 18 - US Professional",null,null,null,null,0]
["Sch IVC","Premium by Zone",null,"NPW Zn 18 - US Professional Non-Prop.",null,null,null,null,0]
["Sch IVC","Premium by Zone",null,"NPW Zn 18 - US Specialty",null,null,null,null,0]
["Sch IVC","Premium by Zone",null,"NPW Zn 18 - US Specialty Non-Prop.",null,null,null,null,0]
["Sch IVC","Premium by Zone",null,"NPW Zn 18 - Int'l Motor",null,null,null,null,0]
["Sch IVC","Premium by Zone",null,"NPW Zn 18 - Int'l Motor Non-Prop.",null,null,null,null,0]
["Sch IVC","Premium by Zone",null,"NPW Zn 18 - Int'l Casualty",null,null,null,null,0]
["Sch IVC","Premium by Zone",null,"NPW Zn 18 - Int'l Casualty Non-Prop.",null,null,null,null,0]
["Sch IVC","Premium by Zone",null,"NPW Zn 18 - Retro Property",null,null,null,null,0]
["Sch IVC","Premium by Zone",null,"NPW Zn 18 - Structured / Finite R/I",null,null,null,null,0]
["Sch IVC","Premium by Zone",null,"NPW Zn 18 - Health",null,null,null,null,0]
["Sch IVC","Premium by Zone",null,"NPW Zn 18 - Total",null,null,null,null,0]
[]
["Sch V","Risk Mgnt",null,"Asset Duration",null,null,null,null,null,null,null,null,0]
["Sch V","Risk Mgnt",null,"Liability Duration",null,null,null,null,null,null,null,null,0]
["Sch V","Risk Mgnt",null,"Gross PML",0,null,null,null,0]
["Sch V","Risk Mgnt",null,"Net PML",0,null,null,null,0]
["Sch V","Risk Mgnt",null,"Average Annual Loss",null,null,null,null,0]
["Sch V","Risk Mgnt",null,"Actual Attritional Loss - Relevant Yr.",null,null,null,null,0]
["Sch V","Risk Mgnt",null,"Prop. Cat. Recoverable - Collateral",null,null,null,null,0]
["Sch V","Risk Mgnt",null,"Prop. Cat. Recoverable - Cat. Bond",null,null,null,null,0]
["Sch V","Risk Mgnt",null,"Prop. Cat. Recoverable - SPI Indemnity",null,null,null,null,0]
["Sch V","Risk Mgnt",null,"Prop. Cat. Recoverable - Other",null,null,null,null,0]
["Sch V","Risk Mgnt",null,"Prop. Cat. Recoverable - Total",null,null,null,null,0]
["Sch V","Risk Mgnt",null,"Projected Net Premium Written",null,null,null,null,0]
["Sch V","Risk Mgnt",null,"Projected Underwriting Result",null,null,null,null,0]
["Sch V","Risk Mgnt",null,"Projected Net Income",null,null,null,null,0]
[]
["Sch Va","Governance",null,"# of Directors",0]
["Sch Va","Governance",null,"Director Name - 1",0]
["Sch Va","Governance",null,"Director Name - 2",0]
["Sch Va","Governance",null,"Director Name - 3",0]
["Sch Va","Governance",null,"Director Name - 4",0]
["Sch Va","Governance",null,"Director Name - 5",0]
["Sch Va","Governance",null,"Director Name - 6",0]
["Sch Va","Governance",null,"Director Name - 7",0]
["Sch Va","Governance",null,"Director Name - 8",0]
["Sch Va","Governance",null,"Director Name - 9",0]
["Sch Va","Governance",null,"Director Name - 10",0]
["Sch Va","Governance",null,"Director Name - 11",0]
["Sch Va","Governance",null,"Director Name - 12",0]
["Sch Va","Governance",null,"Director Name - 13",0]
["Sch Va","Governance",null,"Director Name - 14",0]
["Sch Va","Governance",null,"Director Name - 15",0]
["Sch Va","Governance",null,"Director Name - 16",0]
["Sch Va","Governance",null,"Director Name - 17",0]
["Sch Va","Governance",null,"Director Name - 18",0]
["Sch Va","Governance",null,"Director Name - 19",0]
["Sch Va","Governance",null,"Director Name - 20",0]
["Sch Va","Governance",null,"Director Position - 1",0]
["Sch Va","Governance",null,"Director Position - 2",0]
["Sch Va","Governance",null,"Director Position - 3",0]
["Sch Va","Governance",null,"Director Position - 4",0]
["Sch Va","Governance",null,"Director Position - 5",0]
["Sch Va","Governance",null,"Director Position - 6",0]
["Sch Va","Governance",null,"Director Position - 7",0]
["Sch Va","Governance",null,"Director Position - 8",0]
["Sch Va","Governance",null,"Director Position - 9",0]
["Sch Va","Governance",null,"Director Position - 10",0]
["Sch Va","Governance",null,"Director Position - 11",0]
["Sch Va","Governance",null,"Director Position - 12",0]
["Sch Va","Governance",null,"Director Position - 13",0]
["Sch Va","Governance",null,"Director Position - 14",0]
["Sch Va","Governance",null,"Director Position - 15",0]
["Sch Va","Governance",null,"Director Position - 16",0]
["Sch Va","Governance",null,"Director Position - 17",0]
["Sch Va","Governance",null,"Director Position - 18",0]
["Sch Va","Governance",null,"Director Position - 19",0]
["Sch Va","Governance",null,"Director Position - 20",0]
["Sch Va","Governance",null,"Director Residence - 1",0]
["Sch Va","Governance",null,"Director Residence - 2",0]
["Sch Va","Governance",null,"Director Residence - 3",0]
["Sch Va","Governance",null,"Director Residence - 4",0]
["Sch Va","Governance",null,"Director Residence - 5",0]
["Sch Va","Governance",null,"Director Residence - 6",0]
["Sch Va","Governance",null,"Director Residence - 7",0]
["Sch Va","Governance",null,"Director Residence - 8",0]
["Sch Va","Governance",null,"Director Residence - 9",0]
["Sch Va","Governance",null,"Director Residence - 10",0]
["Sch Va","Governance",null,"Director Residence - 11",0]
["Sch Va","Governance",null,"Director Residence - 12",0]
["Sch Va","Governance",null,"Director Residence - 13",0]
["Sch Va","Governance",null,"Director Residence - 14",0]
["Sch Va","Governance",null,"Director Residence - 15",0]
["Sch Va","Governance",null,"Director Residence - 16",0]
["Sch Va","Governance",null,"Director Residence - 17",0]
["Sch Va","Governance",null,"Director Residence - 18",0]
["Sch Va","Governance",null,"Director Residence - 19",0]
["Sch Va","Governance",null,"Director Residence - 20",0]
["Sch Va","Governance",null,"Director Work Experience - 1",0]
["Sch Va","Governance",null,"Director Work Experience - 2",0]
["Sch Va","Governance",null,"Director Work Experience - 3",0]
["Sch Va","Governance",null,"Director Work Experience - 4",0]
["Sch Va","Governance",null,"Director Work Experience - 5",0]
["Sch Va","Governance",null,"Director Work Experience - 6",0]
["Sch Va","Governance",null,"Director Work Experience - 7",0]
["Sch Va","Governance",null,"Director Work Experience - 8",0]
["Sch Va","Governance",null,"Director Work Experience - 9",0]
["Sch Va","Governance",null,"Director Work Experience - 10",0]
["Sch Va","Governance",null,"Director Work Experience - 11",0]
["Sch Va","Governance",null,"Director Work Experience - 12",0]
["Sch Va","Governance",null,"Director Work Experience - 13",0]
["Sch Va","Governance",null,"Director Work Experience - 14",0]
["Sch Va","Governance",null,"Director Work Experience - 15",0]
["Sch Va","Governance",null,"Director Work Experience - 16",0]
["Sch Va","Governance",null,"Director Work Experience - 17",0]
["Sch Va","Governance",null,"Director Work Experience - 18",0]
["Sch Va","Governance",null,"Director Work Experience - 19",0]
["Sch Va","Governance",null,"Director Work Experience - 20",0]
["Sch Va","Governance",null,"Director Status on Board - 1","Select"]
["Sch Va","Governance",null,"Director Status on Board - 2","Select"]
["Sch Va","Governance",null,"Director Status on Board - 3","Select"]
["Sch Va","Governance",null,"Director Status on Board - 4","Select"]
["Sch Va","Governance",null,"Director Status on Board - 5","Select"]
["Sch Va","Governance",null,"Director Status on Board - 6","Select"]
["Sch Va","Governance",null,"Director Status on Board - 7","Select"]
["Sch Va","Governance",null,"Director Status on Board - 8","Select"]
["Sch Va","Governance",null,"Director Status on Board - 9","Select"]
["Sch Va","Governance",null,"Director Status on Board - 10","Select"]
["Sch Va","Governance",null,"Director Status on Board - 11","Select"]
["Sch Va","Governance",null,"Director Status on Board - 12","Select"]
["Sch Va","Governance",null,"Director Status on Board - 13","Select"]
["Sch Va","Governance",null,"Director Status on Board - 14","Select"]
["Sch Va","Governance",null,"Director Status on Board - 15","Select"]
["Sch Va","Governance",null,"Director Status on Board - 16","Select"]
["Sch Va","Governance",null,"Director Status on Board - 17","Select"]
["Sch Va","Governance",null,"Director Status on Board - 18","Select"]
["Sch Va","Governance",null,"Director Status on Board - 19","Select"]
["Sch Va","Governance",null,"Director Status on Board - 20","Select"]
["Sch Va","Governance",null,"# of Executives",0]
["Sch Va","Governance",null,"Executive Name - 1",0]
["Sch Va","Governance",null,"Executive Name - 2",0]
["Sch Va","Governance",null,"Executive Name - 3",0]
["Sch Va","Governance",null,"Executive Name - 4",0]
["Sch Va","Governance",null,"Executive Name - 5",0]
["Sch Va","Governance",null,"Executive Name - 6",0]
["Sch Va","Governance",null,"Executive Name - 7",0]
["Sch Va","Governance",null,"Executive Name - 8",0]
["Sch Va","Governance",null,"Executive Name - 9",0]
["Sch Va","Governance",null,"Executive Name - 10",0]
["Sch Va","Governance",null,"Executive Name - 11",0]
["Sch Va","Governance",null,"Executive Name - 12",0]
["Sch Va","Governance",null,"Executive Name - 13",0]
["Sch Va","Governance",null,"Executive Name - 14",0]
["Sch Va","Governance",null,"Executive Name - 15",0]
["Sch Va","Governance",null,"Executive Name - 16",0]
["Sch Va","Governance",null,"Executive Name - 17",0]
["Sch Va","Governance",null,"Executive Name - 18",0]
["Sch Va","Governance",null,"Executive Name - 19",0]
["Sch Va","Governance",null,"Executive Name - 20",0]
["Sch Va","Governance",null,"Executive Position - 1",0]
["Sch Va","Governance",null,"Executive Position - 2",0]
["Sch Va","Governance",null,"Executive Position - 3",0]
["Sch Va","Governance",null,"Executive Position - 4",0]
["Sch Va","Governance",null,"Executive Position - 5",0]
["Sch Va","Governance",null,"Executive Position - 6",0]
["Sch Va","Governance",null,"Executive Position - 7",0]
["Sch Va","Governance",null,"Executive Position - 8",0]
["Sch Va","Governance",null,"Executive Position - 9",0]
["Sch Va","Governance",null,"Executive Position - 10",0]
["Sch Va","Governance",null,"Executive Position - 11",0]
["Sch Va","Governance",null,"Executive Position - 12",0]
["Sch Va","Governance",null,"Executive Position - 13",0]
["Sch Va","Governance",null,"Executive Position - 14",0]
["Sch Va","Governance",null,"Executive Position - 15",0]
["Sch Va","Governance",null,"Executive Position - 16",0]
["Sch Va","Governance",null,"Executive Position - 17",0]
["Sch Va","Governance",null,"Executive Position - 18",0]
["Sch Va","Governance",null,"Executive Position - 19",0]
["Sch Va","Governance",null,"Executive Position - 20",0]
["Sch Va","Governance",null,"Executive Residence - 1",0]
["Sch Va","Governance",null,"Executive Residence - 2",0]
["Sch Va","Governance",null,"Executive Residence - 3",0]
["Sch Va","Governance",null,"Executive Residence - 4",0]
["Sch Va","Governance",null,"Executive Residence - 5",0]
["Sch Va","Governance",null,"Executive Residence - 6",0]
["Sch Va","Governance",null,"Executive Residence - 7",0]
["Sch Va","Governance",null,"Executive Residence - 8",0]
["Sch Va","Governance",null,"Executive Residence - 9",0]
["Sch Va","Governance",null,"Executive Residence - 10",0]
["Sch Va","Governance",null,"Executive Residence - 11",0]
["Sch Va","Governance",null,"Executive Residence - 12",0]
["Sch Va","Governance",null,"Executive Residence - 13",0]
["Sch Va","Governance",null,"Executive Residence - 14",0]
["Sch Va","Governance",null,"Executive Residence - 15",0]
["Sch Va","Governance",null,"Executive Residence - 16",0]
["Sch Va","Governance",null,"Executive Residence - 17",0]
["Sch Va","Governance",null,"Executive Residence - 18",0]
["Sch Va","Governance",null,"Executive Residence - 19",0]
["Sch Va","Governance",null,"Executive Residence - 20",0]
["Sch Va","Governance",null,"Executive Work Experience - 1",0]
["Sch Va","Governance",null,"Executive Work Experience - 2",0]
["Sch Va","Governance",null,"Executive Work Experience - 3",0]
["Sch Va","Governance",null,"Executive Work Experience - 4",0]
["Sch Va","Governance",null,"Executive Work Experience - 5",0]
["Sch Va","Governance",null,"Executive Work Experience - 6",0]
["Sch Va","Governance",null,"Executive Work Experience - 7",0]
["Sch Va","Governance",null,"Executive Work Experience - 8",0]
["Sch Va","Governance",null,"Executive Work Experience - 9",0]
["Sch Va","Governance",null,"Executive Work Experience - 10",0]
["Sch Va","Governance",null,"Executive Work Experience - 11",0]
["Sch Va","Governance",null,"Executive Work Experience - 12",0]
["Sch Va","Governance",null,"Executive Work Experience - 13",0]
["Sch Va","Governance",null,"Executive Work Experience - 14",0]
["Sch Va","Governance",null,"Executive Work Experience - 15",0]
["Sch Va","Governance",null,"Executive Work Experience - 16",0]
["Sch Va","Governance",null,"Executive Work Experience - 17",0]
["Sch Va","Governance",null,"Executive Work Experience - 18",0]
["Sch Va","Governance",null,"Executive Work Experience - 19",0]
["Sch Va","Governance",null,"Executive Work Experience - 20",0]
["Sch Va","Governance",null,"Executive Employee Arrangement - 1","Select"]
["Sch Va","Governance",null,"Executive Employee Arrangement - 2","Select"]
["Sch Va","Governance",null,"Executive Employee Arrangement - 3","Select"]
["Sch Va","Governance",null,"Executive Employee Arrangement - 4","Select"]
["Sch Va","Governance",null,"Executive Employee Arrangement - 5","Select"]
["Sch Va","Governance",null,"Executive Employee Arrangement - 6","Select"]
["Sch Va","Governance",null,"Executive Employee Arrangement - 7","Select"]
["Sch Va","Governance",null,"Executive Employee Arrangement - 8","Select"]
["Sch Va","Governance",null,"Executive Employee Arrangement - 9","Select"]
["Sch Va","Governance",null,"Executive Employee Arrangement - 10","Select"]
["Sch Va","Governance",null,"Executive Employee Arrangement - 11","Select"]
["Sch Va","Governance",null,"Executive Employee Arrangement - 12","Select"]
["Sch Va","Governance",null,"Executive Employee Arrangement - 13","Select"]
["Sch Va","Governance",null,"Executive Employee Arrangement - 14","Select"]
["Sch Va","Governance",null,"Executive Employee Arrangement - 15","Select"]
["Sch Va","Governance",null,"Executive Employee Arrangement - 16","Select"]
["Sch Va","Governance",null,"Executive Employee Arrangement - 17","Select"]
["Sch Va","Governance",null,"Executive Employee Arrangement - 18","Select"]
["Sch Va","Governance",null,"Executive Responsibilities - 2","Select"]
["Sch Va","Governance",null,"Executive Responsibilities - 9","Select"]
["Sch Va","Governance",null,"Executive Responsibilities - 12","Select"]
["Sch Va","Governance",null,"Executive Responsibilities - 19","Select"]
["Sch Va","Governance",null,"BOD Location - Risk Appetite",0]
["Sch Va","Governance",null,"U/W - Operation in Bermuda","Select Yes/No"]
["Sch Va","Governance",null,"Int. Audit - Operation in Bermuda","Select Yes/No"]
["Sch Va","Governance",null,"Int. Audit - Operation Location",0]
["Sch Va","Governance",null,"U/W - Provider Type","Select"]
["Sch Va","Governance",null,"Actuarial - Name of Provider",0]
["Sch Va","Governance",null,"Services Outsourced - Principal Rep.","Select Yes/No"]
["Sch Va","Governance",null,"Services Outsourced - Risk Mgmt.","Select Yes/No"]
["Sch Va","Governance",null,"Services in BDA - Principal Rep.","Select Yes/No"]
["Sch Va","Governance",null,"Services in BDA - Accounting","Select Yes/No"]
["Sch Va","Governance",null,"Services in BDA - Internal Audit","Select Yes/No"]
["Sch Va","Governance",null,"Services in BDA - Money Laundering Officer","Select Yes/No"]
["Sch Va","Governance",null,"7b Group BOD-Risk Appet.- Location",null,null,null,null,0]
["Sch Va","Governance",null,"Name of Insurer - 1",null,null,null,null,0]
["Sch Va","Governance",null,"Name of Insurer - 4",null,null,null,null,0]
["Sch Va","Governance",null,"Insurer Location - 2",null,null,null,null,0]
["Sch Va","Governance",null,"Insurer Location - 6",null,null,null,null,0]
["Sch Va","Governance",null,"Insurer Asset - 4",null,null,null,null,0]
["Sch Va","Governance",null,"Insurer Reserve - 4",null,null,null,null,0]
["Sch Va","Governance",null,"Insurer Reserve - 7",null,null,null,null,0]
["Sch Va","Governance",null,"Insurer Capital & Surplus - 5",null,null,null,null,0]
["Sch Vc","Group Structure",null,"Issuer/Borrower Name - 3",0]
["Sch Vc","Group Structure",null,"Issuer/Borrower Name - 6",0]
["Sch Vc","Group Structure",null,"Issuer/Borrower Name - 16",0]
["Sch Vc","Group Structure",null,"Issuer/Borrower Name - 23",0]
["Sch Vc","Group Structure",null,"Issuer/Borrower Name - 24",0]
["Sch Vc","Group Structure",null,"Issuer Jurisdiction - 8",0]
["Sch Vc","Group Structure",null,"Issuer Jurisdiction - 11",0]
["Sch Vc","Group Structure",null,"Issuer Jurisdiction - 18",0]
["Sch Vc","Group Structure",null,"Investor/Lendor Name - 2",0]
["Sch Vc","Group Structure",null,"Investor/Lendor Name - 10",0]
["Sch Vc","Group Structure",null,"Investor/Lendor Name - 13",0]
["Sch Vc","Group Structure",null,"Investor/Lendor Name - 22",0]
["Sch Vc","Group Structure",null,"Investor/Lendor Name - 23",0]
["Sch Vc","Group Structure",null,"Investor Jurisdiction - 7",0]
["Sch Vc","Group Structure",null,"Investor Jurisdiction - 10",0]
["Sch Vc","Group Structure",null,"Investor Jurisdiction - 17",0]
["Sch Vc","Group Structure",null,"Transaction Details - 1",0]
["Sch Vc","Group Structure",null,"Transaction Details - 9",0]
["Sch Vc","Group Structure",null,"Transaction Details - 12",0]
["Sch Vc","Group Structure",null,"Transaction Details - 21",0]
["Sch Vc","Group Structure",null,"Transaction Details - 22",0]
["Sch Vc","Group Structure",null,"Exposure Value - 6",0]
["Sch Vc","Group Structure",null,"Exposure Value - 9",0]
["Sch Vc","Group Structure",null,"Exposure Value - 17",0]
["Sch Vc","Group Structure",null,"# of Intra-Group R/I & Retro. Arrangmnt",0]
["Sch Vc","Group Structure",null,"Assuming Party Name - 7",0]
["Sch Vc","Group Structure",null,"Assuming Party Name - 10",0]
["Sch Vc","Group Structure",null,"Assuming Party Name - 19",0]
["Sch Vc","Group Structure",null,"Assuming Party Name - 20",0]
["Sch Vc","Group Structure",null,"Assuming Party Jurisdiction - 4",0]
["Sch Vc","Group Structure",null,"Assuming Party Jurisdiction - 7",0]
["Sch Vc","Group Structure",null,"Assuming Party Jurisdiction - 15",0]
["Sch Vc","Group Structure",null,"Assuming Party Jurisdiction - 24",0]
["Sch Vc","Group Structure",null,"Assuming Party Rating - 6",0]
["Sch Vc","Group Structure",null,"Assuming Party Rating - 9",0]
["Sch Vc","Group Structure",null,"Assuming Party Rating - 18",0]
["Sch Vc","Group Structure",null,"Assuming Party Rating - 19",0]
["Sch Vc","Group Structure",null,"Ceding Party Name - 1",0]
["Sch Vc","Group Structure",null,"Ceding Party Name - 11",0]
["Sch Vc","Group Structure",null,"Ceding Party Name - 14",0]
["Sch Vc","Group Structure",null,"Ceding Party Name - 23",0]
["Sch Vc","Group Structure",null,"Ceding Party Jurisdiction - 5",0]
["Sch Vc","Group Structure",null,"Ceding Party Jurisdiction - 8",0]
["Sch Vc","Group Structure",null,"Ceding Party Jurisdiction - 13",0]
["Sch Vc","Group Structure",null,"Ceding Party Jurisdiction - 19",0]
["Sch Vc","Group Structure",null,"Ceding Party Rating - 3",0]
["Sch Vc","Group Structure",null,"Ceding Party Rating - 10",0]
["Sch Vc","Group Structure",null,"Ceding Party Rating - 13",0]
["Sch Vc","Group Structure",null,"Ceding Party Rating - 22",0]
["Sch Vc","Group Structure",null,"Gross Exposure Limit - 4",0]
["Sch Vc","Group Structure",null,"Gross Exposure Limit - 11",0]
["Sch Vc","Group Structure",null,"Gross Exposure Limit - 15",0]
["Sch Vc","Group Structure",null,"Gross Exposure Limit - 18",0]
["Sch Vc","Group Structure",null,"Net Exposure Limit - 2",0]
["Sch Vc","Group Structure",null,"Net Exposure Limit - 9",0]
["Sch Vc","Group Structure",null,"Net Exposure Limit - 12",0]
["Sch Vc","Group Structure",null,"Net Exposure Limit - 21",0]
["Sch Vc","Group Structure",null,"Gross Premium Written - 2",0]
["Sch Vc","Group Structure",null,"Gross Premium Written - 7",0]
["Sch Vc","Group Structure",null,"Gross Premium Written - 14",0]
["Sch Vc","Group Structure",null,"Gross Premium Written - 17",0]
["Sch Vc","Group Structure",null,"Net Premium Written - 1",0]
["Sch Vc","Group Structure",null,"Net Premium Written - 8",0]
["Sch Vc","Group Structure",null,"Net Premium Written - 11",0]
["Sch Vc","Group Structure",null,"Net Premium Written - 21",0]
["Sch Vc","Group Structure",null,"Counterparty Name - 1",0]
["Sch Vc","Group Structure",null,"Counterparty Name - 4",0]
["Sch Vc","Group Structure",null,"Counterparty Name - 11",0]
["Sch Vc","Group Structure",null,"Counterparty Name - 14",0]
["Sch Vc","Group Structure",null,"Counterparty Name - 23",0]
["Sch Vc","Group Structure",null,"Counterparty Name - 30",0]
["Sch Vc","Group Structure",null,"Counterparty Name - 35",0]
["Sch Vc","Group Structure",null,"Counterparty Location - 1",0]
["Sch Vc","Group Structure",null,"Counterparty Location - 10",0]
["Sch Vc","Group Structure",null,"Counterparty Location - 13",0]
["Sch Vc","Group Structure",null,"Counterparty Location - 20",0]
["Sch Vc","Group Structure",null,"Counterparty Location - 23",0]
["Sch Vc","Group Structure",null,"Counterparty Location - 32",0]
["Sch Vc","Group Structure",null,"Counterparty Location - 36",0]
["Sch Vc","Group Structure",null,"Exposure Fair Value - 3",0]
["Sch Vc","Group Structure",null,"Exposure Fair Value - 10",0]
["Sch Vc","Group Structure",null,"Exposure Fair Value - 19",0]
["Sch Vc","Group Structure",null,"Exposure Fair Value - 22",0]
["Sch Vc","Group Structure",null,"Exposure Fair Value - 29",0]
["Sch Vc","Group Structure",null,"Exposure Fair Value - 32",0]
["Sch Vc","Group Structure",null,"Exposure Market Value - 4",0]
["Sch Vc","Group Structure",null,"Exposure Market Value - 9",0]
["Sch Vc","Group Structure",null,"Exposure Market Value - 12",0]
["Sch Vc","Group Structure",null,"Exposure Market Value - 19",0]
["Sch Vc","Group Structure",null,"Exposure Market Value - 28",0]
["Sch Vc","Group Structure",null,"Exposure Market Value - 31",0]
["Sch Vc","Group Structure",null,"Exposure Market Value - 38",0]
["Sch Vc","Group Structure",null,"Transaction Type - 1",0]
["Sch Vc","Group Structure",null,"Transaction Type - 9",0]
["Sch Vc","Group Structure",null,"Transaction Type - 18",0]
["Sch Vc","Group Structure",null,"Transaction Type - 21",0]
["Sch Vc","Group Structure",null,"Transaction Type - 28",0]
["Sch Vc","Group Structure",null,"Transaction Type - 37",0]
["Sch Vc","Group Structure",null,"Transaction Type - 40",0]
["Sch Ve","Scenario Tests",null,"R8 Scenario - Assets",null,null,null,null,0]
["Sch Ve","Scenario Tests",null,"R2 Scenario - Liabilities",null,null,null,null,0]
["Sch Ve","Scenario Tests",null,"R5 - Greece",null,null,null,null,0]
["Sch Ve","Scenario Tests",null,"Mortgage Loan - Shock 2 Assets",null,null,null,null,0]
["Sch Ve","Scenario Tests",null,"Mortgage Loan - GPW - Related - Insurance - US",null,null,null,null,0]
["Sch Ve","Scenario Tests",null,"Mortgage Loan - GPW - Unrelated - Insurance - Other",null,null,null,null,0]
["Sch Ve","Scenario Tests",null,"Mortgage Loan - NPW - Unrelated - R/I - US",null,null,null,null,0]
["Sch Ve","Scenario Tests",null,"Mortgage Loan - Claims - Related - Insurance - US",null,null,null,null,0]
["Sch Ve","Scenario Tests",null,"Mortgage Loan - Claims - Unrelated - Insurance - Other",null,null,null,null,0]
["Sch Ve","Scenario Tests",null,"Mortgage Loan - Reserves - Related - Insurance - US",null,null,null,null,0]
["Sch Ve","Scenario Tests",null,"Mortgage Loan - Reserves - Unrelated - Insurance - Other",null,null,null,null,0]
["Sch Ve","Scenario Tests",null,"Mortgage Loan - Loss Ratio",null,null,null,null,0]
["Sch Ve","Scenario Tests",null,"Mortgage Loan - Weighted Average FICO Score",null,null,null,null,0]
["Sch Ve","Scenario Tests",null,"UE3. Gross Loss ",null,null,null,null,0]
["Sch Ve","Scenario Tests",null,"N3. Gross Loss ",null,null,null,null,0]
["Sch Ve","Scenario Tests",null,"N4. Gross Loss ",null,null,null,null,0]
["Sch Ve","Scenario Tests",null,"UE3. Net Loss - After Reinsurance",null,null,null,null,0]
["Sch Ve","Scenario Tests",null,"IE1. Net Loss - After Reinsurance",null,null,null,null,0]
["Sch Ve","Scenario Tests",null,"N4. Net Loss - After Reinsurance",null,null,null,null,0]
["Sch Ve","Scenario Tests",null,"UE3. Net Loss - Cat Mitigation Tech.",null,null,null,null,0]
["Sch Ve","Scenario Tests",null,"IE1. Net Loss - Cat Mitigation Tech.",null,null,null,null,0]
["Sch Ve","Scenario Tests",null,"P1. Net Loss - Cat Mitigation Tech.",null,null,null,null,0]
["Sch Ve","Scenario Tests",null,"IW1. Return Period 1",null,null,null,null,0]
["Sch Ve","Scenario Tests",null,"IW2. Return Period 1",null,null,null,null,0]
["Sch Ve","Scenario Tests",null,"UW1. Return Period 2",null,null,null,null,0]
["Sch Ve","Scenario Tests",null,"UW4. Return Period 2",null,null,null,null,0]
["Sch Ve","Scenario Tests",null,"IE1. Return Period 2",null,null,null,null,0]
["Sch Ve","Scenario Tests",null,"N4. Return Period 2",null,null,null,null,0]
["Sch Ve","Scenario Tests",null,"IW2. Catastrophe Model",null,null,null,null,0]
["Sch Ve","Scenario Tests",null,"M1. Catastrophe Model",null,null,null,null,0]
["Sch Ve","Scenario Tests",null," Other Scenario - Name 3",null,null,null,null,0]
["Sch Ve","Scenario Tests",null," Other - Gross Loss 1",null,null,null,null,0]
["Sch Ve","Scenario Tests",null," Other - Return Period 1 -  1",null,null,null,null,0]
["Sch Ve","Scenario Tests",null," Other - Return Period 2 -  1",null,null,null,null,0]
["Sch Ve","Scenario Tests",null,"Latent Liab - Scen 1 - NPW - Product Liab - Pro - EEA & Switzerland",null,null,null,null,0]
["Sch Ve","Scenario Tests",null,"Latent Liab - Scen 1 - NPW - Product Liab - Non Pro - Emerging Mkts",null,null,null,null,0]
["Sch Ve","Scenario Tests",null,"Latent Liab - Scen 1 - NPW - Gen Comm Liab - Non Pro - EEA & Switzerland",null,null,null,null,0]
["Sch Ve","Scenario Tests",null,"Latent Liab - Scen 1 - NPW - Gen Comm Liab - Non Pro - China",null,null,null,null,0]
["Sch Ve","Scenario Tests",null,"Latent Liab - Scen 1 - NPW - Empl. Liab/Workers Comp - Non Pro - EEA & Switzerland",null,null,null,null,0]
["Sch Ve","Scenario Tests",null,"Latent Liab - Scen 1 - NPW - Empl. Liab/Workers Comp - Non Pro - US/Canada",null,null,null,null,0]
["Sch Ve","Scenario Tests",null,"Latent Liab - Scen 1 - Prem. Growth - Product Liab - Pro - Other Developed Mkts",null,null,null,null,0]
["Sch Ve","Scenario Tests",null,"Latent Liab - Scen 1 - Prem. Growth - Gen Comm Liab - Pro - EEA & Switzerland",null,null,null,null,0]
["Sch Ve","Scenario Tests",null,"Latent Liab - Scen 1 - Prem. Growth - Gen Comm Liab - Pro - China",null,null,null,null,0]
["Sch Ve","Scenario Tests",null,"Latent Liab - Scen 1 - Prem. Growth - Empl. Liab/Workers Comp - Pro - EEA & Switzerland",null,null,null,null,0]
["Sch Ve","Scenario Tests",null,"Latent Liab - Scen 1 - Prem. Growth - Empl. Liab/Workers Comp - Non Pro - US/Canada",null,null,null,null,0]
["Sch Ve","Scenario Tests",null,"Latent Liab - Scen 1 - Prem. Growth - Empl. Liab/Workers Comp - Non Pro - Other Developed Mkts",null,null,null,null,0]
["Sch Ve","Scenario Tests",null,"Latent Liab - Scen 1 - Yr Growth - Product Liab - Non Pro - US/Canada",null,null,null,null,0]
["Sch Ve","Scenario Tests",null,"Latent Liab - Scen 1 - Yr Growth - Product Liab - Non Pro - Japan",null,null,null,null,0]
["Sch Ve","Scenario Tests",null,"Latent Liab - Scen 1 - Yr Growth - Gen Comm Liab - Non Pro - Japan",null,null,null,null,0]
["Sch Ve","Scenario Tests",null,"Latent Liab - Scen 1 - Yr Growth - Empl. Liab/Workers Comp - Pro - US/Canada",null,null,null,null,0]
["Sch Ve","Scenario Tests",null,"Latent Liab - Scen 1 - Yr Growth - Empl. Liab/Workers Comp - Pro - Other Developed Mkts",null,null,null,null,0]
["Sch Ve","Scenario Tests",null,"Latent Liab - Scen 2 - US Asbestos - Cur Yr - Net Paid",null,null,null,null,0]
["Sch Ve","Scenario Tests",null,"Latent Liab - Scen 2 - US Asbestos - PY Yr - Net Paid",null,null,null,null,0]
["Sch Ve","Scenario Tests",null,"Latent Liab - Scen 2 - US Enviro - Cur Yr - GAAP Reserves",null,null,null,null,0]
["Sch Ve","Scenario Tests",null,"Latent Liab - Scen 2 - US Enviro - PY+1 Yr - Net Paid",null,null,null,null,0]
["Sch Ve","Scenario Tests",null,"Latent Liab - Scen 2 - UK Asbestos - Cur Yr - Reserves after Inflation",null,null,null,null,0]
["Sch Ve","Scenario Tests",null," 2a. Series of Loss - Net Loss",null,null,null,null,0]
["Sch Ve","Scenario Tests",null,"2b. Specific WC Scen.- Gross Loss",null,null,null,null,0]
["Sch Ve","Scenario Tests",null,"2b. Specific WC Scen.- RP 2",null,null,null,null,0]
["Sch Ve","Scenario Tests",null," Terrorism Loss 1 - Gross Loss",null,null,null,null,0]
["Sch Ve","Scenario Tests",null," Terrorism Loss 2 - Gross Loss",null,null,null,null,0]
["Sch Ve","Scenario Tests",null," Terrorism Loss 2 - Net Loss",null,null,null,null,0]
["Sch Ve","Scenario Tests",null," Terrorism Loss 3 - R/I Recoverable",null,null,null,null,0]
["Sch Ve","Scenario Tests",null," Terrorism Loss 4 - Gross Loss",null,null,null,null,0]
["Sch Ve","Scenario Tests",null," Terrorism Loss 5 - R/I Recoverable",null,null,null,null,0]
["Sch Ve","Scenario Tests",null," Terrorism Loss 6 - R/I Recoverable",null,null,null,null,0]
["Sch Ve","Scenario Tests",null," Terrorism Loss 7 - State",null,null,null,null,0]
["Sch Ve","Scenario Tests",null," Terrorism Loss 8 - Gross Loss",null,null,null,null,0]
["Sch Ve","Scenario Tests",null," Terrorism Loss 9 - Gross Loss",null,null,null,null,0]
["Sch Ve","Scenario Tests",null," Terrorism Loss 9 - Location",null,null,null,null,0]
["Sch Ve","Scenario Tests",null," Terrorism Loss 1 - Location",null,null,null,null,0]
["Sch Ve","Scenario Tests",null,"Cyber - 1. Cyber Policies in Force - No - Direct",0,null,0,null,0,null,0]
["Sch Ve","Scenario Tests",null,"Cyber - 1. Claims Incur - Direct",0,null,0,null,0,null,0]
["Sch Ve","Scenario Tests",null,"Cyber - 1. Cyber GPW - R/I",0,null,0,null,0,null,0]
["Sch Ve","Scenario Tests",null,"Cyber - 1. Net Reserves - R/I",0,null,0,null,0,null,0]
["Sch Ve","Scenario Tests",null,"Cyber - 1. Cyber Lrg Claims - R/I",0,null,0,null,0,null,0]
["Sch Ve","Scenario Tests",null,"Cyber - 1. Cyber Avg. Claims - Package",0,null,0,null,0,null,0]
["Sch Ve","Scenario Tests",null,"Cyber - 1. Cyber Policies in Force - No - Related",0,null,0]
["Sch Ve","Scenario Tests",null,"Cyber - 1. No. Reported Claims - Related",0,null,0]
["Sch Ve","Scenario Tests",null,"Cyber - 1. Cyber Avg. Claims - Related",0,null,0]
["Sch Ve","Scenario Tests",null,"Cyber - 1. Net Reserves - Unrelated",0,null,0]
["Sch Ve","Scenario Tests",null,"Cyber - 1. # of Policies Direct - US",0,null,null,null,0]
["Sch Ve","Scenario Tests",null,"Cyber - 1. # of Policies Direct - Australia & New Zealand",0,null,null,null,0]
["Sch Ve","Scenario Tests",null,"Cyber - 1. Cyber GPW-Direct - Japan",0,null,null,null,0]
["Sch Ve","Scenario Tests",null,"Cyber - 1. Cyber NPW-Direct - Other",0,null,null,null,0]
["Sch Ve","Scenario Tests",null,"Cyber - 1. Cyber Gross Exposure-Direct - UK & Europe",0,null,null,null,0]
["Sch Ve","Scenario Tests",null,"Cyber - 1. Cyber Net Exposure-Direct - UK & Europe",0,null,null,null,0]
["Sch Ve","Scenario Tests",null,"Cyber - 1. Cyber Net Exposure-Direct - Worldwide",0,null,null,null,0]
["Sch Ve","Scenario Tests",null,"Cyber - 1. Cyber GPW-R/I - US",0,null,null,null,0]
["Sch Ve","Scenario Tests",null,"Cyber - 1. Cyber NPW-R/I - UK & Europe",0,null,null,null,0]
["Sch Ve","Scenario Tests",null,"Cyber - 1. Cyber NPW-R/I - Japan",0,null,null,null,0]
["Sch Ve","Scenario Tests",null,"Cyber - 1. Cyber Gross Exposure-R/I - Japan",0,null,null,null,0]
["Sch Ve","Scenario Tests",null,"Cyber - 1. Cyber Net Exposure-R/I - Other",0,null,null,null,0]
["Sch Ve","Scenario Tests",null,"Cyber - 1. # of Policies Package - UK & Europe",0,null,null,null,0]
["Sch Ve","Scenario Tests",null,"Cyber - 1. Cyber GPW-Package - UK & Europe",0,null,null,null,0]
["Sch Ve","Scenario Tests",null,"Cyber - 1. Cyber GPW-Package - Worldwide",0,null,null,null,0]
["Sch Ve","Scenario Tests",null,"Cyber - 1. Cyber Gross Exposure-Package - Canada",0,null,null,null,0]
["Sch Ve","Scenario Tests",null,"Cyber - 1. Cyber Net Exposure-Package - Canada",0,null,null,null,0]
["Sch Ve","Scenario Tests",null,"Cyber - 1. Cyber Net Exposure-Package - Japan",0,null,null,null,0]
["Sch Ve","Scenario Tests",null,"Cyber - 2. Yes/No Aviation",null,null,null,null,"Select Yes/No"]
["Sch Ve","Scenario Tests",null,"Cyber - 2. Yes/No US Professional Non-Proportional",null,null,null,null,"Select Yes/No"]
["Sch Ve","Scenario Tests",null,"Cyber - 2. Yes/No International Motor",null,null,null,null,"Select Yes/No"]
["Sch Ve","Scenario Tests",null,"Cyber - 2. Current Yr Property",null,null,null,null,0]
["Sch Ve","Scenario Tests",null,"Cyber - 2. Current Yr Energy Offshore/Marine",null,null,null,null,0]
["Sch Ve","Scenario Tests",null,"Cyber - 2. Current Yr US Casualty Non-Proportional",null,null,null,null,0]
["Sch Ve","Scenario Tests",null,"Cyber - 2. Current Yr Retro Property",null,null,null,null,0]
["Sch Ve","Scenario Tests",null,"Cyber - 2. Prior Yr Property",null,null,null,null,0]
["Sch Ve","Scenario Tests",null,"Cyber - 2. Prior Yr Credit/Surety - Non-Proportional",null,null,null,null,0]
["Sch Ve","Scenario Tests",null,"Cyber - 2. Prior Yr International Motor",null,null,null,null,0]
["Sch Ve","Scenario Tests",null,"Cyber - 2. Prior Yr International Casualty Non-Motor Non-Proportional",null,null,null,null,0]
["Sch Ve","Scenario Tests",null,"Cyber - 2. Claims Made or Occurrence -  Personal Accident Non-Proportional",null,null,null,null,"Select from Drop-down"]
["Sch Ve","Scenario Tests",null,"Cyber - 2. Claims Made or Occurrence -  Credit/Surety - Non-Proportional",null,null,null,null,"Select from Drop-down"]
["Sch Ve","Scenario Tests",null,"Cyber - 2. Claims Made or Occurrence -  US Specialty",null,null,null,null,"Select from Drop-down"]
["Sch Ve","Scenario Tests",null,"Cyber - 2. No Cyber Exclusion -  Property",null,null,null,null,"Select Yes/No"]
["Sch Ve","Scenario Tests",null,"Cyber - 2. No Cyber Exclusion -  Personal Accident Non-Proportional",null,null,null,null,"Select Yes/No"]
["Sch Ve","Scenario Tests",null,"Cyber - 2. No Cyber Exclusion -  US Casualty",null,null,null,null,"Select Yes/No"]
["Sch Ve","Scenario Tests",null,"Cyber - 2. No Cyber Exclusion -  International Casualty Non-Motor Non-Proportional",null,null,null,null,"Select Yes/No"]
["Sch Ve","Scenario Tests",null,"Cyber - 2. No Cyber Exclusion -  Structured/Finite reinsurance",null,null,null,null,"Select Yes/No"]
["Sch Ve","Scenario Tests",null,"A1) Headquarters in Bermuda?","Select Yes/No"]
["Sch Ve","Scenario Tests",null,"A4) Data centre in Bermuda to host servers","Select Yes/No"]
["Sch Ve","Scenario Tests",null,"A11) Web applications","Select Yes/No"]
["Sch Ve","Scenario Tests",null,"A16a) Dedicated Business Continuity Manager details","Confirm role holder's name"]
["Sch Ve","Scenario Tests",null,"A18) IT Audit completed annually","Select Yes/No"]
["Sch Ve","Scenario Tests",null,"B6) Asset Management inventoried","Select Yes/No"]
["Sch Ve","Scenario Tests",null,"B12) Staff complete cybersecurity training","Select Yes/No"]
["Sch Ve","Scenario Tests",null,"B17) Detect-Process for threat alerting","Select Yes/No"]
["Sch Ve","Scenario Tests",null,"C3) DLP controls in place","Select Yes/No"]
["Sch Ve","Scenario Tests",null,"C5) External Vulnerability scanning conducted","Select Yes/No"]
["Sch Vg","GAAP - BSCR Rec",null,"Assets Fin. Stmts. - Prepaid Expenses",0]
["Sch Vg","GAAP - BSCR Rec",null,"Assets Fin. Stmts. - Other 7",0]
["Sch Vg","GAAP - BSCR Rec",null,"Liab. Fin. Stmts. - Other 3",0]
["Sch Vg","GAAP - BSCR Rec",null,"Liab. Fin. Stmts. - Other 4",0]
["Sch Vg","GAAP - BSCR Rec",null,"Net. Inc. Fin. Stmts. - Other 5",0]
["Sch Vg","GAAP - BSCR Rec",null,"Net. Inc. Fin. Stmts. - Other 6",0]
["Sch Vg","GAAP - BSCR Rec",null,"Assets Form 1SFS - Goodwill",0]
["Sch Vg","GAAP - BSCR Rec",null,"Assets Form 1SFS - Unquoted Investments",0]
["Sch Vg","GAAP - BSCR Rec",null,"Assets Form 1SFS - Other 2",0]
["Sch Vg","GAAP - BSCR Rec",null,"Liab. Form 1SFS - Goodwill",0]
["Sch Vg","GAAP - BSCR Rec",null,"Liab. Form 1SFS - Debt Ins.",0]
["Sch Vg","GAAP - BSCR Rec",null,"Liab. Form 1SFS - Other 3",0]
["Sch Vg","GAAP - BSCR Rec",null,"Net Inc. Form 1SFS - Deferred Tax",0]
["Sch Vg","GAAP - BSCR Rec",null,"Net Inc. Form 1SFS - Quoted Investments",0]
["Sch Vg","GAAP - BSCR Rec",null,"Net Inc. Form 1SFS - Other 3",0]
["Sch Vg","GAAP - BSCR Rec",null,"C&S Form 1SFS - Gross Loss Provision",0]
["Sch Vg","GAAP - BSCR Rec",null,"C&S Form 1SFS - Off Balance Sheet Ins.",0]
["Sch Vg","GAAP - BSCR Rec",null,"C&S Form 1SFS - Total",0]
["Sch Vk","Deposit Details",null,"Name of Exposure - 5",0]
["Sch Vk","Deposit Details",null,"Name of Exposure - 8",0]
["Sch Vk","Deposit Details",null,"Name of Exposure - 17",0]
["Sch Vk","Deposit Details",null,"Name of Exposure - 18",0]
["Sch Vk","Deposit Details",null,"Line of Business - 2",0]
["Sch Vk","Deposit Details",null,"Line of Business - 8",0]
["Sch Vk","Deposit Details",null,"Line of Business - 13",0]
["Sch Vk","Deposit Details",null,"Line of Business - 22",0]
["Sch Vk","Deposit Details",null,"Assets in Trust - 4",0]
["Sch Vk","Deposit Details",null,"Assets in Trust - 7",0]
["Sch Vk","Deposit Details",null,"Assets in Trust - 16",0]
["Sch Vk","Deposit Details",null,"Assets in Trust - 17",0]
["Sch Vk","Deposit Details",null,"Collateral - 1",0]
["Sch Vk","Deposit Details",null,"Collateral - 8",0]
["Sch Vk","Deposit Details",null,"Collateral - 11",0]
["Sch Vk","Deposit Details",null,"Collateral - 20",0]
["Sch Vk","Deposit Details",null,"GPW for the Period - 1",0]
["Sch Vk","Deposit Details",null,"GPW for the Period - 4",0]
["Sch Vk","Deposit Details",null,"GPW for the Period - 11",0]
["Sch Vk","Deposit Details",null,"GPW for the Period - 16",0]
["Sch Vk","Deposit Details",null,"GPW for the Period - 24",0]
["Sch Vk","Deposit Details",null,"NPW for the Period - 5",0]
["Sch Vk","Deposit Details",null,"NPW for the Period - 8",0]
["Sch Vk","Deposit Details",null,"NPW for the Period - 17",0]
["Sch Vk","Deposit Details",null,"NPW for the Period - 24",0]
["Sch Vk","Deposit Details",null,"Exposure - 1",0]
["Sch Vk","Deposit Details",null,"Exposure - 5",0]
["Sch Vk","Deposit Details",null,"Exposure - 12",0]
["Sch Vk","Deposit Details",null,"Exposure - 21",0]
["Sch Vk","Deposit Details",null,"Limit @ 99.0 TVAR - 2",0]
["Sch Vk","Deposit Details",null,"Limit @ 99.0 TVAR - 5",0]
["Sch Vk","Deposit Details",null,"Limit @ 99.0 TVAR - 14",0]
["Sch Vk","Deposit Details",null,"Limit @ 99.0 TVAR - 21",0]
["Sch Vk","Deposit Details",null,"Limit @ 99.0 TVAR - 23",0]
["Sch Vk","Deposit Details",null,"Unlimited Exposure Details - 6",0]
["Sch Vk","Deposit Details",null,"Unlimited Exposure Details - 9",0]
["Sch Vk","Deposit Details",null,"Unlimited Exposure Details - 18",0]
["Sch Vk","Deposit Details",null,"Unlimited Exposure Details - 25",0]
["Sch V(L)","Segregated Acc",null,"Cell Ref # - Cell 1",0]
["Sch V(L)","Segregated Acc",null,"Net Income - Cell 1",0]
["Sch V(L)","Segregated Acc",null,"Net Loss & Loss Expense Provisions - Cell 1",0]
["Sch V(L)","Segregated Acc",null,"Cell is in Run-Off - Cell 1","Select Yes/No"]
["Sch V(L)","Segregated Acc",null,"Additional Capital Support - Cell 1","Confirm"]
["Sch V(L)","Segregated Acc",null,"Details of Benefical Owners of Cell - Cell 1","Confirm"]
["Sch V(L)","Segregated Acc",null,"Primary Cell Funding - Cell 1","Select Funding"]
["Sch V(L)","Segregated Acc",null,"i) NPW - Cell 1",0]
["Sch V(L)","Segregated Acc",null,"ii) Premiums Ceded - Cell 1",0]
["Sch V(L)","Segregated Acc",null,"iv) NPW - Cell 1",0]
["Sch V(L)","Segregated Acc",null,"Total Assets - Cell 2",0]
["Sch V(L)","Segregated Acc",null,"Statutory Capital - Cell 2",0]
["Sch V(L)","Segregated Acc",null,"Unquoted: Equities - Cell 2",0]
["Sch V(L)","Segregated Acc",null,"Due to Affiliates - Cell 2",0]
["Sch V(L)","Segregated Acc",null,"General Cell to Cell Activity Details - Cell 2",0]
["Sch V(L)","Segregated Acc",null,"Benefical Ownership - Cell 2","Confirm"]
["Sch V(L)","Segregated Acc",null,"Primary Cell Funding - Cell 2","Select Funding"]
["Sch V(L)","Segregated Acc",null,"i) Statutory Line of Business - Cell 2","Select Line of Business"]
["Sch V(L)","Segregated Acc",null,"iii) GPW - Cell 2",0]
["Sch V(L)","Segregated Acc",null,"iv) Statutory Line of Business - Cell 2","Select Line of Business"]
["Sch V(L)","Segregated Acc",null,"v) NPW - Cell 2",0]
["Sch V(L)","Segregated Acc",null,"Direct Insurer, Reinsurer or Both - Cell 3","Select Premiums Written"]
["Sch V(L)","Segregated Acc",null,"Quoted: Bonds and Debentures - Cell 3",0]
["Sch V(L)","Segregated Acc",null,"Net Loss & Loss Expense Provisions - Cell 3",0]
["Sch V(L)","Segregated Acc",null,"Cell to Cell Activity  - Cell 3","Confirm Activity"]
["Sch V(L)","Segregated Acc",null,"Details of Benefical Owners of Risk - Cell 3","Confirm"]
["Sch V(L)","Segregated Acc",null,"Limited recourse  - Cell 3","Select Yes/No"]
["Sch V(L)","Segregated Acc",null,"Limit of Cell  Funding/ Collateral Details - Cell 3",0]
["Sch V(L)","Segregated Acc",null,"ii) GPW - Cell 3",0]
["Sch V(L)","Segregated Acc",null,"iii) NPW - Cell 3",0]
["Sch V(L)","Segregated Acc",null,"v) Statutory Line of Business - Cell 3","Select Line of Business"]
["Sch V(L)","Segregated Acc",null,"Statutory Surplus - Cell 4",0]
["Sch V(L)","Segregated Acc",null,"Cash  - Cell 4",0]
["Sch V(L)","Segregated Acc",null,"Due from Affiliates - Cell 4",0]
["Sch V(L)","Segregated Acc",null,"General Cell to Cell Activity - Cell 4","Confirm Activity"]
["Sch V(L)","Segregated Acc",null,"General Cell to Cell Activity Details - Cell 4",0]
["Sch V(L)","Segregated Acc",null,"Benefical Ownership - Cell 4","Confirm"]
["Sch V(L)","Segregated Acc",null,"Limited recourse  - Cell 4","Select Yes/No"]
["Sch V(L)","Segregated Acc",null,"i) Premiums Ceded - Cell 4",0]
["Sch V(L)","Segregated Acc",null,"iii) NPW - Cell 4",0]
["Sch V(L)","Segregated Acc",null,"iv) Premiums Ceded - Cell 4",0]
["Sch V(L)","Segregated Acc",null,"Cell name - Cell 5",0]
["Sch V(L)","Segregated Acc",null,"Quoted: Equites - Cell 5",0]
["Sch V(L)","Segregated Acc",null,"Net Loss & Loss Expense Provisions - Cell 5",0]
["Sch V(L)","Segregated Acc",null,"currency used - Cell 5","Select Currency"]
["Sch V(L)","Segregated Acc",null,"General Cell to Cell Activity - Cell 5","Confirm Activity"]
["Sch V(L)","Segregated Acc",null,"Benefical Owners - Cell 5","Confirm"]
["Sch V(L)","Segregated Acc",null,"Limit of Cell  Funding/ Collateral - Cell 5","Confirm Funding / Collateral"]
["Sch V(L)","Segregated Acc",null,"i) Statutory Line of Business - Cell 5","Select Line of Business"]
["Sch V(L)","Segregated Acc",null,"ii) NPW - Cell 5",0]
["Sch V(L)","Segregated Acc",null,"iii) NPW - Cell 5",0]
["Sch V(L)","Segregated Acc",null,"v) Premiums Ceded - Cell 5",0]
["Sch V(L)","Segregated Acc",null,"Net Income - Cell 6",0]
["Sch V(L)","Segregated Acc",null,"Quoted: Equites - Cell 6",0]
["Sch V(L)","Segregated Acc",null,"Net Loss & Loss Expense Provisions - Cell 6",0]
["Sch V(L)","Segregated Acc",null,"Cell Deficit - Cell 6",0]
["Sch V(L)","Segregated Acc",null,"Benefical Ownership Add. Details - Cell 6",0]
["Sch V(L)","Segregated Acc",null,"Primary Cell Funding - Cell 6","Select Funding"]
["Sch V(L)","Segregated Acc",null,"i) NPW - Cell 6",0]
["Sch V(L)","Segregated Acc",null,"ii) Statutory Line of Business - Cell 6","Select Line of Business"]
["Sch V(L)","Segregated Acc",null,"iv) GPW - Cell 6",0]
["Sch V(L)","Segregated Acc",null,"v) Statutory Line of Business - Cell 6","Select Line of Business"]
["Sch V(L)","Segregated Acc",null,"Total Assets - Cell 7",0]
["Sch V(L)","Segregated Acc",null,"Unquoted: Bonds and Debentures - Cell 7",0]
["Sch V(L)","Segregated Acc",null,"Net Loss & Loss Expense Provisions - Cell 7",0]
["Sch V(L)","Segregated Acc",null,"Cell to Cell Activity Details - Cell 7",0]
["Sch V(L)","Segregated Acc",null,"Benefical Ownership - Cell 7","Confirm"]
["Sch V(L)","Segregated Acc",null,"Benefical Ownership Add. Details - Cell 7",0]
["Sch V(L)","Segregated Acc",null,"Operational Risk Mitigants - Cell 7","Confirm Mitigants & Attach Support"]
["Sch V(L)","Segregated Acc",null,"ii) Premiums Ceded - Cell 7",0]
["Sch V(L)","Segregated Acc",null,"iii) GPW - Cell 7",0]
["Sch V(L)","Segregated Acc",null,"v) Premiums Ceded - Cell 7",0]
["Sch V(L)","Segregated Acc",null,"Statutory Capital - Cell 8",0]
["Sch V(L)","Segregated Acc",null,"Quoted: Bonds and Debentures - Cell 8",0]
["Sch V(L)","Segregated Acc",null,"Prior Year loss reserve development - Cell 8",0]
["Sch V(L)","Segregated Acc",null,"Reinsurance Recoverable Balance - Cell 8",0]
["Sch V(L)","Segregated Acc",null,"Additional Capital Support Details - Cell 8",0]
["Sch V(L)","Segregated Acc",null,"Benefical Ownership Gov Intrument - Cell 8","Confirm Instrument"]
["Sch V(L)","Segregated Acc",null,"Primary Cell Funding - Cell 8","Select Funding"]
["Sch V(L)","Segregated Acc",null,"ii) GPW - Cell 8",0]
["Sch V(L)","Segregated Acc",null,"iv) Statutory Line of Business - Cell 8","Select Line of Business"]
["Sch V(L)","Segregated Acc",null,"iv) NPW - Cell 8",0]
["Sch V(L)","Segregated Acc",null,"Total Liabilities - Cell 9",0]
["Sch V(L)","Segregated Acc",null,"Statutory Surplus - Cell 9",0]
["Sch V(L)","Segregated Acc",null,"Unquoted: Other - Cell 9",0]
["Sch V(L)","Segregated Acc",null,"Net Loss & Loss Expense Provisions - Cell 9",0]
["Sch V(L)","Segregated Acc",null,"General Cell to Cell Activity Details - Cell 9",0]
["Sch V(L)","Segregated Acc",null,"Jurisdiction - Cell 9","Confirm Jurisdiction"]
["Sch V(L)","Segregated Acc",null,"Limit of Cell  Funding/ Collateral Details - Cell 9",0]
["Sch V(L)","Segregated Acc",null,"i) GPW - Cell 9",0]
["Sch V(L)","Segregated Acc",null,"iii) Statutory Line of Business - Cell 9","Select Line of Business"]
["Sch V(L)","Segregated Acc",null,"iii) NPW - Cell 9",0]
["Sch V(L)","Segregated Acc",null,"Cell name - Cell 10",0]
["Sch V(L)","Segregated Acc",null,"Cash  - Cell 10",0]
["Sch V(L)","Segregated Acc",null,"Quoted: Other  - Cell 10",0]
["Sch V(L)","Segregated Acc",null,"Cell is in Run-Off - Cell 10","Select Yes/No"]
["Sch V(L)","Segregated Acc",null,"Additional Capital Support - Cell 10","Confirm"]
["Sch V(L)","Segregated Acc",null,"Details of Benefical Owners of Cell - Cell 10","Confirm"]
["Sch V(L)","Segregated Acc",null,"Primary Cell Funding - Cell 10","Select Funding"]
["Sch V(L)","Segregated Acc",null,"Limit of Cell  Funding/ Collateral Details - Cell 10",0]
["Sch V(L)","Segregated Acc",null,"ii) NPW - Cell 10",0]
["Sch V(L)","Segregated Acc",null,"iv) Premiums Ceded - Cell 10",0]
["Sch V(L)","Segregated Acc",null,"v) GPW - Cell 10",0]
["Sch V(L)","Segregated Acc",null,"Statutory Capital - Cell 11",0]
["Sch V(L)","Segregated Acc",null,"Unquoted: Equities - Cell 11",0]
["Sch V(L)","Segregated Acc",null,"Cell is in Run-Off - Cell 11","Select Yes/No"]
["Sch V(L)","Segregated Acc",null,"General Cell to Cell Activity - Cell 11","Confirm Activity"]
["Sch V(L)","Segregated Acc",null,"Additional Capital Support - Cell 11","Confirm"]
["Sch V(L)","Segregated Acc",null,"Benefical Ownership Gov Intrument Det. - Cell 11",0]
["Sch V(L)","Segregated Acc",null,"i) Statutory Line of Business - Cell 11","Select Line of Business"]
["Sch V(L)","Segregated Acc",null,"i) NPW - Cell 11",0]
["Sch V(L)","Segregated Acc",null,"iii) Premiums Ceded - Cell 11",0]
["Sch V(L)","Segregated Acc",null,"v) Premiums Ceded - Cell 11",0]
["Sch V(L)","Segregated Acc",null,"Total Assets - Cell 12",0]
["Sch V(L)","Segregated Acc",null,"Quoted: Equites - Cell 12",0]
["Sch V(L)","Segregated Acc",null,"Unquoted: Equities - Cell 12",0]
["Sch V(L)","Segregated Acc",null,"Cell to Cell Activity  - Cell 12","Confirm Activity"]
["Sch V(L)","Segregated Acc",null,"Details of Benefical Owners of Risk - Cell 12","Confirm"]
["Sch V(L)","Segregated Acc",null,"Benefical Ownership - Cell 12","Confirm"]
["Sch V(L)","Segregated Acc",null,"Primary Cell Funding - Cell 12","Select Funding"]
["Sch V(L)","Segregated Acc",null,"ii) Premiums Ceded - Cell 12",0]
["Sch V(L)","Segregated Acc",null,"iii) GPW - Cell 12",0]
["Sch V(L)","Segregated Acc",null,"v) Statutory Line of Business - Cell 12","Select Line of Business"]
["Sch V(L)","Segregated Acc",null,"v) NPW - Cell 12",0]
["Sch V(L)","Segregated Acc",null,"Statutory Capital - Cell 13",0]
["Sch V(L)","Segregated Acc",null,"Due from Affiliates - Cell 13",0]
["Sch V(L)","Segregated Acc",null,"Cell is in Run-Off - Cell 13","Select Yes/No"]
["Sch V(L)","Segregated Acc",null,"Cell Deficit - Cell 13",0]
["Sch V(L)","Segregated Acc",null,"Benefical Ownership Gov Intrument - Cell 13","Confirm Instrument"]
["Sch V(L)","Segregated Acc",null,"Limited recourse  - Cell 13","Select Yes/No"]
["Sch V(L)","Segregated Acc",null,"i) Premiums Ceded - Cell 13",0]
["Sch V(L)","Segregated Acc",null,"ii) GPW - Cell 13",0]
["Sch V(L)","Segregated Acc",null,"iv) Statutory Line of Business - Cell 13","Select Line of Business"]
["Sch V(L)","Segregated Acc",null,"v) Premiums Ceded - Cell 13",0]
["Sch V(L)","Segregated Acc",null,"Statutory Surplus - Cell 14",0]
["Sch V(L)","Segregated Acc",null,"Unquoted: Bonds and Debentures - Cell 14",0]
["Sch V(L)","Segregated Acc",null,"currency used - Cell 14","Select Currency"]
["Sch V(L)","Segregated Acc",null,"General Cell to Cell Activity - Cell 14","Confirm Activity"]
["Sch V(L)","Segregated Acc",null,"Benefical Owners - Cell 14","Confirm"]
["Sch V(L)","Segregated Acc",null,"Jurisdiction - Cell 14","Confirm Jurisdiction"]
["Sch V(L)","Segregated Acc",null,"i) NPW - Cell 14",0]
["Sch V(L)","Segregated Acc",null,"iii) Statutory Line of Business - Cell 14","Select Line of Business"]
["Sch V(L)","Segregated Acc",null,"iii) NPW - Cell 14",0]
["Sch V(L)","Segregated Acc",null,"v) Premiums Ceded - Cell 14",0]
["Sch V(L)","Segregated Acc",null,"Net Income - Cell 15",0]
["Sch V(L)","Segregated Acc",null,"Cash  - Cell 15",0]
["Sch V(L)","Segregated Acc",null,"Net Loss & Loss Expense Provisions - Cell 15",0]
["Sch V(L)","Segregated Acc",null,"Cell is in Run-Off - Cell 15","Select Yes/No"]
["Sch V(L)","Segregated Acc",null,"Additional Capital Support Details - Cell 15",0]
["Sch V(L)","Segregated Acc",null,"Indemnity Provisions - Cell 15","Select Yes/No"]
["Sch V(L)","Segregated Acc",null,"Limit of Cell  Funding/ Collateral - Cell 15","Confirm Funding / Collateral"]
["Sch V(L)","Segregated Acc",null,"ii) Statutory Line of Business - Cell 15","Select Line of Business"]
["Sch V(L)","Segregated Acc",null,"iv) GPW - Cell 15",0]
["Sch V(L)","Segregated Acc",null,"iv) Premiums Ceded - Cell 15",0]
["Sch V(L)","Segregated Acc",null,"Statutory Surplus - Cell 16",0]
["Sch V(L)","Segregated Acc",null,"Net Income - Cell 16",0]
["Sch V(L)","Segregated Acc",null,"Unquoted: Other - Cell 16",0]
["Sch V(L)","Segregated Acc",null,"Cell to Cell Activity Details - Cell 16",0]
["Sch V(L)","Segregated Acc",null,"Cell Deficit - Cell 16",0]
["Sch V(L)","Segregated Acc",null,"Benefical Ownership Add. Details - Cell 16",0]
["Sch V(L)","Segregated Acc",null,"Operational Risk Mitigants - Cell 16","Confirm Mitigants & Attach Support"]
["Sch V(L)","Segregated Acc",null,"i) GPW - Cell 16",0]
["Sch V(L)","Segregated Acc",null,"iii) Premiums Ceded - Cell 16",0]
["Sch V(L)","Segregated Acc",null,"iv) GPW - Cell 16",0]
["Sch V(L)","Segregated Acc",null,"Cell Ref # - Cell 17",0]
["Sch V(L)","Segregated Acc",null,"Quoted: Bonds and Debentures - Cell 17",0]
["Sch V(L)","Segregated Acc",null,"Due to Affiliates - Cell 17",0]
["Sch V(L)","Segregated Acc",null,"Cell is in Run-Off - Cell 17","Select Yes/No"]
["Sch V(L)","Segregated Acc",null,"Details of Benefical Owners of Risk - Cell 17","Confirm"]
["Sch V(L)","Segregated Acc",null,"Details of Benefical Owners of Cell - Cell 17","Confirm"]
["Sch V(L)","Segregated Acc",null,"Primary Cell Funding - Cell 17","Select Funding"]
["Sch V(L)","Segregated Acc",null,"Operational Risk Mitigants - Cell 17","Confirm Mitigants & Attach Support"]
["Sch V(L)","Segregated Acc",null,"ii) Premiums Ceded - Cell 17",0]
["Sch V(L)","Segregated Acc",null,"iv) NPW - Cell 17",0]
["Sch V(L)","Segregated Acc",null,"v) Premiums Ceded - Cell 17",0]
["Sch V(L)","Segregated Acc",null,"Statutory Capital - Cell 18",0]
["Sch V(L)","Segregated Acc",null,"Due from Affiliates - Cell 18",0]
["Sch V(L)","Segregated Acc",null,"Due to Affiliates - Cell 18",0]
["Sch V(L)","Segregated Acc",null,"General Cell to Cell Activity Details - Cell 18",0]
["Sch V(L)","Segregated Acc",null,"Benefical Ownership - Cell 18","Confirm"]
["Sch V(L)","Segregated Acc",null,"Benefical Ownership Gov Intrument - Cell 18","Confirm Instrument"]
["Sch V(L)","Segregated Acc",null,"Operational Risk Mitigants - Cell 18","Confirm Mitigants & Attach Support"]
["Sch V(L)","Segregated Acc",null,"iii) GPW - Cell 18",0]
["Sch V(L)","Segregated Acc",null,"iv) Statutory Line of Business - Cell 18","Select Line of Business"]
["Sch V(L)","Segregated Acc",null,"Cell name - Cell 19",0]
["Sch V(L)","Segregated Acc",null,"Direct Insurer, Reinsurer or Both - Cell 19","Select Premiums Written"]
["Sch V(L)","Segregated Acc",null,"Quoted: Other  - Cell 19",0]
["Sch V(L)","Segregated Acc",null,"Prior Year loss reserve development - Cell 19",0]
["Sch V(L)","Segregated Acc",null,"Cell is in Run-Off - Cell 19","Select Yes/No"]
["Sch V(L)","Segregated Acc",null,"Benefical Owners - Cell 19","Confirm"]
["Sch V(L)","Segregated Acc",null,"Limited recourse  - Cell 19","Select Yes/No"]
["Sch V(L)","Segregated Acc",null,"Limit of Cell  Funding/ Collateral Details - Cell 19",0]
["Sch V(L)","Segregated Acc",null,"ii) NPW - Cell 19",0]
["Sch V(L)","Segregated Acc",null,"iii) Statutory Line of Business - Cell 19","Select Line of Business"]
["Sch V(L)","Segregated Acc",null,"v) GPW - Cell 19",0]
["Sch V(L)","Segregated Acc",null,"Statutory Surplus - Cell 20",0]
["Sch V(L)","Segregated Acc",null,"Cash  - Cell 20",0]
["Sch V(L)","Segregated Acc",null,"Net Loss & Loss Expense Provisions - Cell 20",0]
["Sch V(L)","Segregated Acc",null,"General Cell to Cell Activity - Cell 20","Confirm Activity"]
["Sch V(L)","Segregated Acc",null,"Additional Capital Support - Cell 20","Confirm"]
["Sch V(L)","Segregated Acc",null,"Jurisdiction - Cell 20","Confirm Jurisdiction"]
["Sch V(L)","Segregated Acc",null,"Indemnity Provisions - Cell 20","Select Yes/No"]
["Sch V(L)","Segregated Acc",null,"ii) Premiums Ceded - Cell 20",0]
["Sch V(L)","Segregated Acc",null,"iii) NPW - Cell 20",0]
["Sch V(L)","Segregated Acc",null,"iv) Premiums Ceded - Cell 20",0]
["Sch V(L)","Segregated Acc",null,"Total Assets - Cell 21",0]
["Sch V(L)","Segregated Acc",null,"Quoted: Equites - Cell 21",0]
["Sch V(L)","Segregated Acc",null,"Unquoted: Equities - Cell 21",0]
["Sch V(L)","Segregated Acc",null,"Cell is in Run-Off - Cell 21","Select Yes/No"]
["Sch V(L)","Segregated Acc",null,"Additional Capital Support - Cell 21","Confirm"]
["Sch V(L)","Segregated Acc",null,"Benefical Ownership Add. Details - Cell 21",0]
["Sch V(L)","Segregated Acc",null,"Limit of Cell  Funding/ Collateral - Cell 21","Confirm Funding / Collateral"]
["Sch V(L)","Segregated Acc",null,"i) Statutory Line of Business - Cell 21","Select Line of Business"]
["Sch V(L)","Segregated Acc",null,"ii) NPW - Cell 21",0]
["Sch V(L)","Segregated Acc",null,"v) Statutory Line of Business - Cell 21","Select Line of Business"]
["Sch V(L)","Segregated Acc",null,"v) NPW - Cell 21",0]
["Sch V(L)","Segregated Acc",null,"Statutory Surplus - Cell 22",0]
["Sch V(L)","Segregated Acc",null,"Quoted: Equites - Cell 22",0]
["Sch V(L)","Segregated Acc",null,"Reinsurance Recoverable Balance - Cell 22",0]
["Sch V(L)","Segregated Acc",null,"Cell Deficit - Cell 22",0]
["Sch V(L)","Segregated Acc",null,"Details of Benefical Owners of Risk - Cell 22","Confirm"]
["Sch V(L)","Segregated Acc",null,"Benefical Ownership Gov Intrument Det. - Cell 22",0]
["Sch V(L)","Segregated Acc",null,"i) Premiums Ceded - Cell 22",0]
["Sch V(L)","Segregated Acc",null,"ii) Premiums Ceded - Cell 22",0]
["Sch V(L)","Segregated Acc",null,"iv) GPW - Cell 22",0]
["Sch V(L)","Segregated Acc",null,"v) Statutory Line of Business - Cell 22","Select Line of Business"]
["Sch V(L)","Segregated Acc",null,"Statutory Surplus - Cell 23",0]
["Sch V(L)","Segregated Acc",null,"Unquoted: Bonds and Debentures - Cell 23",0]
["Sch V(L)","Segregated Acc",null,"Due from Affiliates - Cell 23",0]
["Sch V(L)","Segregated Acc",null,"Cell is in Run-Off - Cell 23","Select Yes/No"]
["Sch V(L)","Segregated Acc",null,"Benefical Ownership - Cell 23","Confirm"]
["Sch V(L)","Segregated Acc",null,"Benefical Ownership Gov Intrument - Cell 23","Confirm Instrument"]
["Sch V(L)","Segregated Acc",null,"Operational Risk Mitigants - Cell 23","Confirm Mitigants & Attach Support"]
["Sch V(L)","Segregated Acc",null,"i) Premiums Ceded - Cell 23",0]
["Sch V(L)","Segregated Acc",null,"iii) GPW - Cell 23",0]
["Sch V(L)","Segregated Acc",null,"v) Premiums Ceded - Cell 23",0]
["Sch V(L)","Segregated Acc",null,"Cell name - Cell 24",0]
["Sch V(L)","Segregated Acc",null,"Quoted: Bonds and Debentures - Cell 24",0]
["Sch V(L)","Segregated Acc",null,"Prior Year loss reserve development - Cell 24",0]
["Sch V(L)","Segregated Acc",null,"currency used - Cell 24","Select Currency"]
["Sch V(L)","Segregated Acc",null,"Additional Capital Support Details - Cell 24",0]
["Sch V(L)","Segregated Acc",null,"Benefical Owners - Cell 24","Confirm"]
["Sch V(L)","Segregated Acc",null,"Limited recourse  - Cell 24","Select Yes/No"]
["Sch V(L)","Segregated Acc",null,"ii) Premiums Ceded - Cell 24",0]
["Sch V(L)","Segregated Acc",null,"iii) Statutory Line of Business - Cell 24","Select Line of Business"]
["Sch V(L)","Segregated Acc",null,"iv) NPW - Cell 24",0]
["Sch V(L)","Segregated Acc",null,"Total Liabilities - Cell 25",0]
["Sch V(L)","Segregated Acc",null,"Net Income - Cell 25",0]
["Sch V(L)","Segregated Acc",null,"Unquoted: Other - Cell 25",0]
["Sch V(L)","Segregated Acc",null,"Net Loss & Loss Expense Provisions - Cell 25",0]
["Sch V(L)","Segregated Acc",null,"Additional Capital Support - Cell 25","Confirm"]
["Sch V(L)","Segregated Acc",null,"Jurisdiction - Cell 25","Confirm Jurisdiction"]
["Sch V(L)","Segregated Acc",null,"Indemnity Provisions - Cell 25","Select Yes/No"]
["Sch V(L)","Segregated Acc",null,"i) GPW - Cell 25",0]
["Sch V(L)","Segregated Acc",null,"iii) Premiums Ceded - Cell 25",0]
["Sch V(L)","Segregated Acc",null,"iii) NPW - Cell 25",0]
["Sch V(L)","Segregated Acc",null,"Total Assets - Gen Acc.",0]
["Sch V(L)","Segregated Acc",null,"Quoted: Other  - Gen Acc.",0]
["Sch V(L)","Segregated Acc",null,"Unquoted: Other - Gen Acc.",0]
["Sch V(L)","Segregated Acc",null,"i) NPW - Gen Acc.",0]
["Sch V(L)","Segregated Acc",null,"ii) Premiums Ceded - Gen Acc.",0]
["Sch V(L)","Segregated Acc",null,"iv) GPW - Gen Acc.",0]
["Sch V(L)","Segregated Acc",null,"Comment on Statutory Capital & Surplus Difference",0]
[]
["Sch V(m)","Alternative Capital",null,"Name of Cedant - 7",0]
["Sch V(m)","Alternative Capital",null,"Name of Cedant - 11",0]
["Sch V(m)","Alternative Capital",null,"Name of Cedant - 18",0]
["Sch V(m)","Alternative Capital",null,"Contract Reference - 2",0]
["Sch V(m)","Alternative Capital",null,"Contract Reference - 9",0]
["Sch V(m)","Alternative Capital",null,"Contract Reference - 12",0]
["Sch V(m)","Alternative Capital",null,"Contract Reference - 21",0]
["Sch V(m)","Alternative Capital",null,"Contract Reference - 23",0]
["Sch V(m)","Alternative Capital",null,"Type of Coverage - 7","Select from Drop Down"]
["Sch V(m)","Alternative Capital",null,"Type of Coverage - 10","Select from Drop Down"]
["Sch V(m)","Alternative Capital",null,"Type of Coverage - 17","Select from Drop Down"]
["Sch V(m)","Alternative Capital",null,"Statutory Line of Business - 1","Select from Drop Down"]
["Sch V(m)","Alternative Capital",null,"Statutory Line of Business - 8","Select from Drop Down"]
["Sch V(m)","Alternative Capital",null,"Statutory Line of Business - 11","Select from Drop Down"]
["Sch V(m)","Alternative Capital",null,"Statutory Line of Business - 17","Select from Drop Down"]
["Sch V(m)","Alternative Capital",null,"Statutory Line of Business - 22","Select from Drop Down"]
["Sch V(m)","Alternative Capital",null,"Location of Coverage - 6","Select from Drop Down"]
["Sch V(m)","Alternative Capital",null,"Location of Coverage - 9","Select from Drop Down"]
["Sch V(m)","Alternative Capital",null,"Location of Coverage - 16","Select from Drop Down"]
["Sch V(m)","Alternative Capital",null,"Location of Coverage - 25","Select from Drop Down"]
["Sch V(m)","Alternative Capital",null,"Agg. Max. Limit at Inception - 7",0]
["Sch V(m)","Alternative Capital",null,"Agg. Max. Limit at Inception - 8",0]
["Sch V(m)","Alternative Capital",null,"Agg. Max. Limit at Inception - 20",0]
["Sch V(m)","Alternative Capital",null,"Agg. Max. Limit at Inception - 21",0]
["Sch V(m)","Alternative Capital",null,"Net Agg. Max. Limit at End of Year - 4",0]
["Sch V(m)","Alternative Capital",null,"Net Agg. Max. Limit at End of Year - 11",0]
["Sch V(m)","Alternative Capital",null,"Net Agg. Max. Limit at End of Year - 14",0]
["Sch V(m)","Alternative Capital",null,"Net Agg. Max. Limit at End of Year - 19",0]
["Sch V(m)","Alternative Capital",null,"Inception Date of Cover Period - 5","00:00:00"]
["Sch V(m)","Alternative Capital",null,"Inception Date of Cover Period - 8","00:00:00"]
["Sch V(m)","Alternative Capital",null,"Inception Date of Cover Period - 17","00:00:00"]
["Sch V(m)","Alternative Capital",null,"Inception Date of Cover Period - 18","00:00:00"]
["Sch V(m)","Alternative Capital",null,"Effective Date of Contract - 2","00:00:00"]
["Sch V(m)","Alternative Capital",null,"Effective Date of Contract - 9","00:00:00"]
["Sch V(m)","Alternative Capital",null,"Effective Date of Contract - 16","00:00:00"]
["Sch V(m)","Alternative Capital",null,"Effective Date of Contract - 22","00:00:00"]
["Sch V(m)","Alternative Capital",null,"Expiry Date of Cover - 4","00:00:00"]
["Sch V(m)","Alternative Capital",null,"Expiry Date of Cover - 7","00:00:00"]
["Sch V(m)","Alternative Capital",null,"Expiry Date of Cover - 16","00:00:00"]
["Sch V(m)","Alternative Capital",null,"Expiry Date of Cover - 17","00:00:00"]
["Sch V(m)","Alternative Capital",null,"Cover Period GPW - 1",0]
["Sch V(m)","Alternative Capital",null,"Cover Period GPW - 7",0]
["Sch V(m)","Alternative Capital",null,"Cover Period GPW - 12",0]
["Sch V(m)","Alternative Capital",null,"Cover Period GPW - 21",0]
["Sch V(m)","Alternative Capital",null,"Cover Period NPW - 2",0]
["Sch V(m)","Alternative Capital",null,"Cover Period NPW - 5",0]
["Sch V(m)","Alternative Capital",null,"Cover Period NPW - 12",0]
["Sch V(m)","Alternative Capital",null,"Cover Period NPW - 15",0]
["Sch V(m)","Alternative Capital",null,"Cover Period NPW - 25",0]
["Sch V(m)","Alternative Capital",null,"Attachment Point - 6",0]
["Sch V(m)","Alternative Capital",null,"Attachment Point - 9",0]
["Sch V(m)","Alternative Capital",null,"Attachment Point - 18",0]
["Sch V(m)","Alternative Capital",null,"Attachment Point - 25",0]
["Sch V(m)","Alternative Capital",null,"Aggregate Losses Beg. Of Year - 2",0]
["Sch V(m)","Alternative Capital",null,"Aggregate Losses Beg. Of Year - 9",0]
["Sch V(m)","Alternative Capital",null,"Aggregate Losses Beg. Of Year - 14",0]
["Sch V(m)","Alternative Capital",null,"Aggregate Losses Beg. Of Year - 22",0]
["Sch V(m)","Alternative Capital",null,"Aggregate Losses Incurred - 3",0]
["Sch V(m)","Alternative Capital",null,"Aggregate Losses Incurred - 6",0]
["Sch V(m)","Alternative Capital",null,"Aggregate Losses Incurred - 13",0]
["Sch V(m)","Alternative Capital",null,"Aggregate Losses Incurred - 22",0]
["Sch V(m)","Alternative Capital",null,"Aggregate Losses Incurred - 25",0]
["Sch V(m)","Alternative Capital",null,"Aggregate Losses End Of Year - 3",0]
["Sch V(m)","Alternative Capital",null,"Aggregate Losses End Of Year - 10",0]
["Sch V(m)","Alternative Capital",null,"Aggregate Losses End Of Year - 19",0]
["Sch V(m)","Alternative Capital",null,"Aggregate Losses End Of Year - Total",0]
["Sch V(m)","Alternative Capital",null,"Collateral Reserve Buffer - 3",0]
["Sch V(m)","Alternative Capital",null,"Collateral Reserve Buffer - 10",0]
["Sch V(m)","Alternative Capital",null,"Collateral Reserve Buffer - 19",0]
["Sch V(m)","Alternative Capital",null,"Collateral Reserve Buffer - 21",0]
["Sch V(m)","Alternative Capital",null,"Currency of Exposure - 4","Select from Drop Down"]
["Sch V(m)","Alternative Capital",null,"Currency of Exposure - 7","Select from Drop Down"]
["Sch V(m)","Alternative Capital",null,"Currency of Exposure - 16","Select from Drop Down"]
["Sch V(m)","Alternative Capital",null,"Currency of Exposure - 23","Select from Drop Down"]
["Sch V(m)","Alternative Capital",null,"Nature of Collateral - 1","Select from Drop Down"]
["Sch V(m)","Alternative Capital",null,"Nature of Collateral - 8","Select from Drop Down"]
["Sch V(m)","Alternative Capital",null,"Nature of Collateral - 18","Select from Drop Down"]
["Sch V(m)","Alternative Capital",null,"Nature of Collateral - 21","Select from Drop Down"]
["Sch V(m)","Alternative Capital",null,"Collateral Rating - 3","Select from Drop Down"]
["Sch V(m)","Alternative Capital",null,"Collateral Rating - 6","Select from Drop Down"]
["Sch V(m)","Alternative Capital",null,"Collateral Rating - 13","Select from Drop Down"]
["Sch V(m)","Alternative Capital",null,"Collateral Rating - 22","Select from Drop Down"]
["Sch V(m)","Alternative Capital",null,"Collateral Rating - 25","Select from Drop Down"]
["Sch V(m)","Alternative Capital",null,"Amount of Collateral - 9",0]
["Sch V(m)","Alternative Capital",null,"Amount of Collateral - 17",0]
["Sch V(m)","Alternative Capital",null,"Amount of Collateral - 20",0]
["Sch V(m)","Alternative Capital",null,"Comments - 1",0]
["Sch V(m)","Alternative Capital",null,"Comments - 4",0]
["Sch V(m)","Alternative Capital",null,"Comments - 11",0]
["Sch V(m)","Alternative Capital",null,"Comments - 20",0]
[]
["Sch VI","Fixed Income Sec",null,"2 Non-US Government",0,null,null,null,null,null,null,null,0]
["Sch VI","Fixed Income Sec",null,"6c MBS - Commercial",0,null,null,null,null,null,null,null,0]
["Sch VI","Fixed Income Sec",null,"7 Mutual Funds",0,null,null,null,null,null,null,null,0]
["Sch VI","Fixed Income Sec",null,"Face Value - 3 States, Municipalities",0,null,null,null,null,null,null,null,0]
["Sch VI","Fixed Income Sec",null,"Face Value - 4c Corp Sec. - FDIC Guaranteed",0,null,null,null,null,null,null,null,0]
["Sch VI","Fixed Income Sec",null,"Face Value - 9 Cat Bonds & ILS",0,null,null,null,null,null,null,null,0]
["Sch VI","Fixed Income Sec",null,"Fair Value - 4b Corp Sec. - Non-US Gov. backed",0,null,null,null,null,null,null,null,0]
["Sch VI","Fixed Income Sec",null,"Fair Value - 5 ABS",0,null,null,null,null,null,null,null,0]
["Sch VI","Fixed Income Sec",null,"Fair Value - 10 Others",0,null,null,null,null,null,null,null,0]
["Sch VI","Fixed Income Sec",null,"YTM - 4c Corp Sec. - FDIC Guaranteed",0,null,null,null,null,null,null,null,0]
["Sch VI","Fixed Income Sec",null,"YTM - 4d Corp Sec. - Other ",0,null,null,null,null,null,null,null,0]
["Sch VI","Fixed Income Sec",null,"Rate - 1a US Gov. Federal",0,null,null,null,null,null,null,null,0]
["Sch VI","Fixed Income Sec",null,"Rate - 4b Corp Sec. - Non-US Gov. backed",0,null,null,null,null,null,null,null,0]
["Sch VI","Fixed Income Sec",null,"Rate - 6b MBS - Resid. Non-subprime",0,null,null,null,null,null,null,null,0]
["Sch VI","Fixed Income Sec",null,"Duration - 2 Non-US Government",0,null,null,null,null,null,null,null,0]
["Sch VI","Fixed Income Sec",null,"Duration - 4b Corp Sec. - Non-US Gov. backed",0,null,null,null,null,null,null,null,0]
["Sch VI","Fixed Income Sec",null,"Duration - 7 Mutual Funds",0,null,null,null,null,null,null,null,0]
["Sch VI","Fixed Income Sec",null,"Convexity - 4a Corp Sec. - US Gov. backed",0,null,null,null,null,null,null,null,0]
["Sch VI","Fixed Income Sec",null,"Convexity - 4b Corp Sec. - Non-US Gov. backed",0,null,null,null,null,null,null,null,0]
["Sch VI","Fixed Income Sec",null,"Convexity - 7 Mutual Funds",0,null,null,null,null,null,null,null,0]
[]
["Sch IX(a)","CISSA Capital Summary",null,"Group, Concentration, & Strategic Risk",null,null,null,null,null,null,null,null,0]
["Sch IX(a)","CISSA Capital Summary",null,"1. Reason for CISSA - Business Expansion","Select Yes/No"]
["Sch IX(a)","CISSA Capital Summary",null,"2. Agg. Risk Categories - Linear Correlation","Select Yes/No"]
["Sch IX(a)","CISSA Capital Summary",null,"2. Agg. Risk Categories - Clayton Copulas","Select Yes/No"]
["Sch IX(a)","CISSA Capital Summary",null,"3. Contingency Plan - Parent Capital Injection","Select Yes/No"]
["Sch IX(a)","CISSA Capital Summary",null,"5. Insurer Issues Downstream Debt ","Select Yes/No"]
["Sch IX(a)","CISSA Capital Summary",null,"7. Insurer has Assets Restrict. and Not Trans.","Select Yes/No"]
["Sch IX(a)","CISSA Capital Summary",null,"7. Restricted Assets in Excess of Cap. Req.",0]
["Sch IX(b)","CISSA General Questions",null,"1. CISSA Used For - Capital Adequacy","Select Yes/No"]
["Sch IX(b)","CISSA General Questions",null,"1. CISSA Used For - Product Profitability","Select Yes/No"]
["Sch IX(b)","CISSA General Questions",null,"4. BOD & Senior Officers Review CISSA","Select"]
[]
["Sch IX(c)","CISSA Assessment of Material Risks",null,"12d. Validation - Regular Review","Select Yes/No"]
["Sch IX(c)","CISSA Assessment of Material Risks",null,"12j. Internal Controls - Strict Protocols","Select Yes/No"]
["Sch IX(c)","CISSA Assessment of Material Risks",null,"12i. Doc. Comment - BOD Review Frequency",0]
["Sch IX(c)","CISSA Assessment of Material Risks",null,"12l. Risk Measure - Confidence Interval",0]
["Sch X(a)","CAT Return - EP Curve Total",null,"Gross Loss - Aggregate - 50 Yrs",null,null,null,null,0]
["Sch X(a)","CAT Return - EP Curve Total",null,"Net Loss - Occurrence - 1,000 Yrs",null,null,null,null,0]
["Sch X(a)","CAT Return - EP Curve Total",null,"Gross - Standard Deviation",null,null,null,null,0]
["Sch X(a)","CAT Return - EP Curve Total",null,"Gross - All Other Limited - Not Modeled",null,null,null,null,0]
["Sch X(a)","CAT Return - EP Curve Total",null,"Net - All Other Premium Modeled",null,null,null,null,0]
["Sch X(a)","CAT Return - EP Curve Total",null,"Net - Property Cat. Limited - Modeled",null,null,null,null,0]
["Sch X(a)","CAT Return - EP Curve Total",null,"2. Additional Living Expense",null,null,null,null,"Select Yes/No"]
["Sch X(a)","CAT Return - EP Curve Total",null,"2. Offshore Energy",null,null,null,null,"Select"]
["Sch X(a)","CAT Return - EP Curve Total",null,"2. Flood",null,null,null,null,"Select"]
["Sch X(a)","CAT Return - EP Curve Total",null,"4. Involuntary Pools and/or Assessments",null,null,null,null,"Select"]
["Sch X(a)","CAT Return - EP Curve Total",null,"5. Secondary Uncertainty",null,null,null,null,"Select"]
["Sch X(a)","CAT Return - EP Curve Total",null,"6. Adj. for Model Deficiencies - Severity",null,null,null,null,"Select"]
["Sch X(b)","CAT Return - EP Curve Insurance",null,"Gross Loss - Occurrence - 50 Yrs",null,null,null,null,0]
["Sch X(b)","CAT Return - EP Curve Insurance",null,"Gross Loss - Occurrence - 100 Yrs",null,null,null,null,0]
["Sch X(b)","CAT Return - EP Curve Insurance",null,"Net Loss - Occurrence - 50 Yrs",null,null,null,null,0]
["Sch X(b)","CAT Return - EP Curve Insurance",null,"Net Loss - Aggregate - 250 Yrs",null,null,null,null,0]
["Sch X(b)","CAT Return - EP Curve Insurance",null,"Gross - Average Annual Loss",null,null,null,null,0]
["Sch X(b)","CAT Return - EP Curve Insurance",null,"Gross - with Not Determinable TIV",null,null,null,null,0]
["Sch X(b)","CAT Return - EP Curve Insurance",null,"Net - All Other Limited - Modeled",null,null,null,null,0]
["Sch X(b)","CAT Return - EP Curve Insurance",null,"Net - with Not Determinable TIV",null,null,null,null,0]
["Sch X(c)","CAT Return - EP Curve Region Perils",null,"Atl. Hurr. - Gross Occurrence - 500 Yrs",null,null,null,null,0]
["Sch X(c)","CAT Return - EP Curve Region Perils",null,"Atl. Hurr. - Gross Aggregate - 100 Yrs",null,null,null,null,0]
["Sch X(c)","CAT Return - EP Curve Region Perils",null,"Atl. Hurr. - Net Aggregate - 50 Yrs",null,null,null,null,0]
["Sch X(c)","CAT Return - EP Curve Region Perils",null,"Atl. Hurr. - Gross Prop. Cat. Limits",null,null,null,null,0]
["Sch X(c)","CAT Return - EP Curve Region Perils",null,"Atl. Hurr. - Net Prop. Cat. Limits",null,null,null,null,0]
["Sch X(c)","CAT Return - EP Curve Region Perils",null,"NA. EQ. - Gross Aggregate - 50 Yrs",null,null,null,null,0]
["Sch X(c)","CAT Return - EP Curve Region Perils",null,"NA. EQ. - Net Occurrence - 250 Yrs",null,null,null,null,0]
["Sch X(c)","CAT Return - EP Curve Region Perils",null,"NA. EQ. - Net Aggregate - 50 Yrs",null,null,null,null,0]
["Sch X(c)","CAT Return - EP Curve Region Perils",null,"NA. EQ. - Gross Prop. Cat. Limits",null,null,null,null,0]
["Sch X(c)","CAT Return - EP Curve Region Perils",null,"NA. EQ. - Net All Other Premium",null,null,null,null,0]
["Sch X(c)","CAT Return - EP Curve Region Perils",null,"Eur. Wind - Gross Occurrence - 1,000 Yrs",null,null,null,null,0]
["Sch X(c)","CAT Return - EP Curve Region Perils",null,"Eur. Wind - Gross Aggregate - 250 Yrs",null,null,null,null,0]
["Sch X(c)","CAT Return - EP Curve Region Perils",null,"Eur. Wind - Net Aggregate - 50 Yrs",null,null,null,null,0]
["Sch X(c)","CAT Return - EP Curve Region Perils",null,"Eur. Wind - Net Prop. Cat. Premium",null,null,null,null,0]
["Sch X(c)","CAT Return - EP Curve Region Perils",null,"Japan EQ. - Gross Occurrence - 100 Yrs",null,null,null,null,0]
["Sch X(c)","CAT Return - EP Curve Region Perils",null,"Japan EQ. - Gross Occurrence - 1,000 Yrs",null,null,null,null,0]
["Sch X(c)","CAT Return - EP Curve Region Perils",null,"Japan EQ. - Net Occurrence - 100 Yrs",null,null,null,null,0]
["Sch X(c)","CAT Return - EP Curve Region Perils",null,"Japan EQ. - Net Occurrence - 1,000 Yrs",null,null,null,null,0]
["Sch X(c)","CAT Return - EP Curve Region Perils",null,"Japan EQ. - Net Prop. Cat. Premium",null,null,null,null,0]
["Sch X(c)","CAT Return - EP Curve Region Perils",null,"Jpn. Typ. - Gross Occurrence - 100 Yrs",null,null,null,null,0]
["Sch X(c)","CAT Return - EP Curve Region Perils",null,"Jpn. Typ. - Gross Occurrence - 1,000 Yrs",null,null,null,null,0]
["Sch X(c)","CAT Return - EP Curve Region Perils",null,"Jpn. Typ. - Net Occurrence - 100 Yrs",null,null,null,null,0]
["Sch X(c)","CAT Return - EP Curve Region Perils",null,"Jpn. Typ. - Gross Prop. Cat. Premium",null,null,null,null,0]
["Sch X(c)","CAT Return - EP Curve Region Perils",null,"Jpn. Typ. - Gross All Other Limits",null,null,null,null,0]
["Sch X(d)","CAT Return - Region Perils Exposure to Zones and Lines of Business",null,"Atlantic Hurricane - Zone 4",null,null,null,null,"Select Yes/No"]
["Sch X(d)","CAT Return - Region Perils Exposure to Zones and Lines of Business",null,"Atlantic Hurricane - Zone 6",null,null,null,null,"Select Yes/No"]
["Sch X(d)","CAT Return - Region Perils Exposure to Zones and Lines of Business",null,"North American Earthquake - Zone 2",null,null,null,null,"Select Yes/No"]
["Sch X(d)","CAT Return - Region Perils Exposure to Zones and Lines of Business",null,"North American Earthquake - Zone 9",null,null,null,null,"Select Yes/No"]
["Sch X(d)","CAT Return - Region Perils Exposure to Zones and Lines of Business",null,"North American Earthquake - Zone 12",null,null,null,null,"Select Yes/No"]
["Sch X(d)","CAT Return - Region Perils Exposure to Zones and Lines of Business",null,"European Windstorm - Zone 6",null,null,null,null,"Select Yes/No"]
["Sch X(d)","CAT Return - Region Perils Exposure to Zones and Lines of Business",null,"Japan Earthquake - Zone 2",null,null,null,null,"Select Yes/No"]
["Sch X(d)","CAT Return - Region Perils Exposure to Zones and Lines of Business",null,"Japan Earthquake - Zone 9",null,null,null,null,"Select Yes/No"]
["Sch X(d)","CAT Return - Region Perils Exposure to Zones and Lines of Business",null,"Japan Earthquake - Zone 13",null,null,null,null,"Select Yes/No"]
["Sch X(d)","CAT Return - Region Perils Exposure to Zones and Lines of Business",null,"Japan Typhoon - Zone 3",null,null,null,null,"Select Yes/No"]
["Sch X(d)","CAT Return - Region Perils Exposure to Zones and Lines of Business",null,"Japan Typhoon - Zone 10",null,null,null,null,"Select Yes/No"]
["Sch X(d)","CAT Return - Region Perils Exposure to Zones and Lines of Business",null,"All Other - Zone 6",null,null,null,null,"Select Yes/No"]
["Sch X(d)","CAT Return - Region Perils Exposure to Zones and Lines of Business",null,"All Other - Zone 9",null,null,null,null,"Select Yes/No"]
["Sch X(d)","CAT Return - Region Perils Exposure to Zones and Lines of Business",null,"Atlantic Hurricane - Line 3",null,null,null,null,"Select Yes/No"]
["Sch X(d)","CAT Return - Region Perils Exposure to Zones and Lines of Business",null,"Atlantic Hurricane - Line 11",null,null,null,null,"Select Yes/No"]
["Sch X(d)","CAT Return - Region Perils Exposure to Zones and Lines of Business",null,"Atlantic Hurricane - Line 16",null,null,null,null,"Select Yes/No"]
["Sch X(d)","CAT Return - Region Perils Exposure to Zones and Lines of Business",null,"Atlantic Hurricane - Line 23",null,null,null,null,"Select Yes/No"]
["Sch X(d)","CAT Return - Region Perils Exposure to Zones and Lines of Business",null,"North American Earthquake - Line 2",null,null,null,null,"Select Yes/No"]
["Sch X(d)","CAT Return - Region Perils Exposure to Zones and Lines of Business",null,"North American Earthquake - Line 9",null,null,null,null,"Select Yes/No"]
["Sch X(d)","CAT Return - Region Perils Exposure to Zones and Lines of Business",null,"North American Earthquake - Line 18",null,null,null,null,"Select Yes/No"]
["Sch X(d)","CAT Return - Region Perils Exposure to Zones and Lines of Business",null,"North American Earthquake - Line 21",null,null,null,null,"Select Yes/No"]
["Sch X(d)","CAT Return - Region Perils Exposure to Zones and Lines of Business",null,"European Windstorm - Line 4",null,null,null,null,"Select Yes/No"]
["Sch X(d)","CAT Return - Region Perils Exposure to Zones and Lines of Business",null,"European Windstorm - Line 14",null,null,null,null,"Select Yes/No"]
["Sch X(d)","CAT Return - Region Perils Exposure to Zones and Lines of Business",null,"European Windstorm - Line 17",null,null,null,null,"Select Yes/No"]
["Sch X(d)","CAT Return - Region Perils Exposure to Zones and Lines of Business",null,"European Windstorm - Line 24",null,null,null,null,"Select Yes/No"]
["Sch X(d)","CAT Return - Region Perils Exposure to Zones and Lines of Business",null,"Japan Earthquake - Line 3",null,null,null,null,"Select Yes/No"]
["Sch X(d)","CAT Return - Region Perils Exposure to Zones and Lines of Business",null,"Japan Earthquake - Line 10",null,null,null,null,"Select Yes/No"]
["Sch X(d)","CAT Return - Region Perils Exposure to Zones and Lines of Business",null,"Japan Earthquake - Line 19",null,null,null,null,"Select Yes/No"]
["Sch X(d)","CAT Return - Region Perils Exposure to Zones and Lines of Business",null,"Japan Earthquake - Line 24",null,null,null,null,"Select Yes/No"]
["Sch X(d)","CAT Return - Region Perils Exposure to Zones and Lines of Business",null,"Japan Typhoon - Line 6",null,null,null,null,"Select Yes/No"]
["Sch X(d)","CAT Return - Region Perils Exposure to Zones and Lines of Business",null,"Japan Typhoon - Line 15",null,null,null,null,"Select Yes/No"]
["Sch X(d)","CAT Return - Region Perils Exposure to Zones and Lines of Business",null,"Japan Typhoon - Line 16",null,null,null,null,"Select Yes/No"]
["Sch X(d)","CAT Return - Region Perils Exposure to Zones and Lines of Business",null,"All Other - Line 1",null,null,null,null,"Select Yes/No"]
["Sch X(d)","CAT Return - Region Perils Exposure to Zones and Lines of Business",null,"All Other - Line 4",null,null,null,null,"Select Yes/No"]
["Sch X(d)","CAT Return - Region Perils Exposure to Zones and Lines of Business",null,"All Other - Line 11",null,null,null,null,"Select Yes/No"]
["Sch X(d)","CAT Return - Region Perils Exposure to Zones and Lines of Business",null,"All Other - Line 17",null,null,null,null,"Select Yes/No"]
["Sch X(d)","CAT Return - Region Perils Exposure to Zones and Lines of Business",null,"All Other - Line 24",null,null,null,null,"Select Yes/No"]
["Sch X(e)","CAT Return - Accumulations Overview",null,"Q5. Accumulation Methodology",null,null,null,null,"Select"]
["Sch X(f)","CAT Return - Data Analysis",null,"1. All - Modelable - US - Contract",null,null,null,null,0]
["Sch X(f)","CAT Return - Data Analysis",null,"1. All - Not-modelable - US - Contract",null,null,null,null,0]
["Sch X(f)","CAT Return - Data Analysis",null,"1. All - Not-modelable - Other - Contract",null,null,null,null,0]
["Sch X(f)","CAT Return - Data Analysis",null,"1. All - Not-modelable - Other - Gross Limit",null,null,null,null,0]
["Sch X(f)","CAT Return - Data Analysis",null,"2. Modelable - Not Modeled - US - Net Limit",null,null,null,null,0]
["Sch X(f)","CAT Return - Data Analysis",null,"2. Modelable - Modeled - Other -Gross Limit",null,null,null,null,0]
["Sch X(f)","CAT Return - Data Analysis",null,"2. Modelable - Modeled - Other -Net Limit",null,null,null,null,0]
["Sch X(f)","CAT Return - Data Analysis",null,"3. Modeled - Other - US - Contract",null,null,null,null,0]
["Sch X(f)","CAT Return - Data Analysis",null,"3. Modeled - Agg. Data - US - Net Limit",null,null,null,null,0]
["Sch X(f)","CAT Return - Data Analysis",null,"3. Modeled - Peer Proxy - US - Net Limit",null,null,null,null,0]
["Sch X(f)","CAT Return - Data Analysis",null,"3. Modeled - Total - Other - Contract",null,null,null,null,0]
["Sch X(f)","CAT Return - Data Analysis",null,"3. Modeled - Peer Proxy - Other - Gross Limit",null,null,null,null,0]
["Sch X(f)","CAT Return - Data Analysis",null,"3. Modeled - Other - Other - Net Limit",null,null,null,null,0]
["Sch X(f)","CAT Return - Data Analysis",null,"4. Not Modeled - Other - US - Gross Limit",null,null,null,null,0]
["Sch X(f)","CAT Return - Data Analysis",null,"4. Not Modeled - Model Deficient - Other - Contract",null,null,null,null,0]
["Sch X(f)","CAT Return - Data Analysis",null,"4. Not Modeled - Data Deficient - Other - Gross Limit",null,null,null,null,0]
["Sch X(f)","CAT Return - Data Analysis",null,"Q5 Describe Accumulation Details",null,null,null,null,0]
["Sch X(f)","CAT Return - Data Analysis",null,"6. Unable Model - Total - US - Contract",null,null,null,null,0]
["Sch X(f)","CAT Return - Data Analysis",null,"6. Unable Model - Data Deficient - US - Net Limit",null,null,null,null,0]
["Sch X(f)","CAT Return - Data Analysis",null,"6. Unable Model - Other - US - Net Limit",null,null,null,null,0]
["Sch X(f)","CAT Return - Data Analysis",null,"6. Unable Model - Data Deficient - Other - Gross Limit",null,null,null,null,0]
["Sch X(f)","CAT Return - Data Analysis",null,"6. Unable Model - Total - Other - Net Limit",null,null,null,null,0]
["Sch X(g)","CAT Return - Reinsurance Disclosures",null,"US - Premium - Ind. Loss Warranty Contracts",null,null,null,null,0]
["Sch X(g)","CAT Return - Reinsurance Disclosures",null,"US - Premium - Catastrophe Swaps",null,null,null,null,0]
["Sch X(g)","CAT Return - Reinsurance Disclosures",null,"US - Occuren. - Property Cat. Contracts",null,null,null,null,0]
["Sch X(g)","CAT Return - Reinsurance Disclosures",null,"US - Occuren. - Property per Risk Contracts",null,null,null,null,0]
["Sch X(g)","CAT Return - Reinsurance Disclosures",null,"World - Premium - Catastrophe Swaps",null,null,null,null,0]
["Sch X(g)","CAT Return - Reinsurance Disclosures",null,"World - Occuren. - Ind. Loss Warranty Contracts",null,null,null,null,0]
["Sch X(g)","CAT Return - Reinsurance Disclosures",null,"World - Occuren. - Catastrophe Swaps",null,null,null,null,0]
["Sch X(g)","CAT Return - Reinsurance Disclosures",null,"Other - Premium - Property Cat. Contracts",null,null,null,null,0]
["Sch X(g)","CAT Return - Reinsurance Disclosures",null,"Other - Occuren. - ILS Protection",null,null,null,null,0]
["Sch X(g)","CAT Return - Reinsurance Disclosures",null,"Other - Occuren. - Catastrophe Swaps",null,null,null,null,0]
["Sch X(h)","CAT Return - Insurance Terrorism Exposure",null,"Insurance - Convent. Terrorism - State 2",null,null,null,null,0]
["Sch X(h)","CAT Return - Insurance Terrorism Exposure",null,"Insurance - Convent. Terrorism - State 3",null,null,null,null,0]
["Sch X(h)","CAT Return - Insurance Terrorism Exposure",null,"Insurance - Convent. Terrorism - Country 2",null,null,null,null,0]
["Sch X(h)","CAT Return - Insurance Terrorism Exposure",null,"Insurance - Convent. Terrorism - Country 9",null,null,null,null,0]
["Sch X(h)","CAT Return - Insurance Terrorism Exposure",null,"Insurance - Convent. Terrorism - Property Exposure 2",null,null,null,null,0]
["Sch X(h)","CAT Return - Insurance Terrorism Exposure",null,"Insurance - Convent. Terrorism - Gross Exposure 1",null,null,null,null,0]
["Sch X(h)","CAT Return - Insurance Terrorism Exposure",null,"Insurance - Convent. Terrorism - Gross Exposure 4",null,null,null,null,0]
["Sch X(h)","CAT Return - Insurance Terrorism Exposure",null,"Insurance - Convent. Terrorism - TRIP Recover. 2",null,null,null,null,0]
["Sch X(h)","CAT Return - Insurance Terrorism Exposure",null,"Insurance - Convent. Terrorism - R/I Recover. 1",null,null,null,null,0]
["Sch X(h)","CAT Return - Insurance Terrorism Exposure",null,"Insurance - Convent. Terrorism - R/I Recover. 2",null,null,null,null,0]
["Sch X(h)","CAT Return - Insurance Terrorism Exposure",null,"Insurance - Convent. Terrorism - Net Exposure 1",null,null,null,null,0]
["Sch X(h)","CAT Return - Insurance Terrorism Exposure",null,"Insurance - Convent. Terrorism - Net Exposure 8",null,null,null,null,0]
["Sch X(h)","CAT Return - Insurance Terrorism Exposure",null,"Insurance - Convent. Terrorism - Location 1",null,null,null,null,0]
["Sch X(h)","CAT Return - Insurance Terrorism Exposure",null,"Insurance - Convent. Terrorism - Location 8",null,null,null,null,0]
["Sch X(h)","CAT Return - Insurance Terrorism Exposure",null,"Insurance - NBCR Terrorism - State 8",null,null,null,null,0]
["Sch X(h)","CAT Return - Insurance Terrorism Exposure",null,"Insurance - NBCR Terrorism - Country 1",null,null,null,null,0]
["Sch X(h)","CAT Return - Insurance Terrorism Exposure",null,"Insurance - NBCR Terrorism - Country 8",null,null,null,null,0]
["Sch X(h)","CAT Return - Insurance Terrorism Exposure",null,"Insurance - NBCR Terrorism - Property Exposure 1",null,null,null,null,0]
["Sch X(h)","CAT Return - Insurance Terrorism Exposure",null,"Insurance - NBCR Terrorism - Property Exposure 10",null,null,null,null,0]
["Sch X(h)","CAT Return - Insurance Terrorism Exposure",null,"Insurance - NBCR Terrorism - Gross Exposure 7",null,null,null,null,0]
["Sch X(h)","CAT Return - Insurance Terrorism Exposure",null,"Insurance - NBCR Terrorism - Gross Exposure 9",null,null,null,null,0]
["Sch X(h)","CAT Return - Insurance Terrorism Exposure",null,"Insurance - NBCR Terrorism - TRIP Recover. 10",null,null,null,null,0]
["Sch X(h)","CAT Return - Insurance Terrorism Exposure",null,"Insurance - NBCR Terrorism - R/I Recover. 7",null,null,null,null,0]
["Sch X(h)","CAT Return - Insurance Terrorism Exposure",null,"Insurance - NBCR Terrorism - R/I Recover. 10",null,null,null,null,0]
["Sch X(h)","CAT Return - Insurance Terrorism Exposure",null,"Insurance - NBCR Terrorism - Net Exposure 7",null,null,null,null,0]
["Sch X(h)","CAT Return - Insurance Terrorism Exposure",null,"Insurance - NBCR Terrorism - Net Exposure 10",null,null,null,null,0]
["Sch X(i)","CAT Return - Reinsurance Terrorism Exposure",null,"Reins. - Convent. Terrorism - State 8",null,null,null,null,0]
["Sch X(i)","CAT Return - Reinsurance Terrorism Exposure",null,"Reins. - Convent. Terrorism - Country 6",null,null,null,null,0]
["Sch X(i)","CAT Return - Reinsurance Terrorism Exposure",null,"Reins. - Convent. Terrorism - Country 9",null,null,null,null,0]
["Sch X(i)","CAT Return - Reinsurance Terrorism Exposure",null,"Reins. - Convent. Terrorism - Property Exposure 8",null,null,null,null,0]
["Sch X(i)","CAT Return - Reinsurance Terrorism Exposure",null,"Reins. - Convent. Terrorism - Gross Exposure 5",null,null,null,null,0]
["Sch X(i)","CAT Return - Reinsurance Terrorism Exposure",null,"Reins. - Convent. Terrorism - Gross Exposure 8",null,null,null,null,0]
["Sch X(i)","CAT Return - Reinsurance Terrorism Exposure",null,"Reins. - Convent. Terrorism - TRIP Recover. 5",null,null,null,null,0]
["Sch X(i)","CAT Return - Reinsurance Terrorism Exposure",null,"Reins. - Convent. Terrorism - TRIP Recover. 8",null,null,null,null,0]
["Sch X(i)","CAT Return - Reinsurance Terrorism Exposure",null,"Reins. - Convent. Terrorism - R/I Recover. 10",null,null,null,null,0]
["Sch X(i)","CAT Return - Reinsurance Terrorism Exposure",null,"Reins. - Convent. Terrorism - Net Exposure 5",null,null,null,null,0]
["Sch X(i)","CAT Return - Reinsurance Terrorism Exposure",null,"Reins. - Convent. Terrorism - Net Exposure 8",null,null,null,null,0]
["Sch X(i)","CAT Return - Reinsurance Terrorism Exposure",null,"Reins. - NBCR Terrorism - State 5",null,null,null,null,0]
["Sch X(i)","CAT Return - Reinsurance Terrorism Exposure",null,"Reins. - NBCR Terrorism - Country 4",null,null,null,null,0]
["Sch X(i)","CAT Return - Reinsurance Terrorism Exposure",null,"Reins. - NBCR Terrorism - Country 7",null,null,null,null,0]
["Sch X(i)","CAT Return - Reinsurance Terrorism Exposure",null,"Reins. - NBCR Terrorism - Property Exposure 4",null,null,null,null,0]
["Sch X(i)","CAT Return - Reinsurance Terrorism Exposure",null,"Reins. - NBCR Terrorism - Gross Exposure 1",null,null,null,null,0]
["Sch X(i)","CAT Return - Reinsurance Terrorism Exposure",null,"Reins. - NBCR Terrorism - Gross Exposure 7",null,null,null,null,0]
["Sch X(i)","CAT Return - Reinsurance Terrorism Exposure",null,"Reins. - NBCR Terrorism - TRIP Recover. 4",null,null,null,null,0]
["Sch X(i)","CAT Return - Reinsurance Terrorism Exposure",null,"Reins. - NBCR Terrorism - TRIP Recover. 7",null,null,null,null,0]
["Sch X(i)","CAT Return - Reinsurance Terrorism Exposure",null,"Reins. - NBCR Terrorism - R/I Recover. 4",null,null,null,null,0]
["Sch X(i)","CAT Return - Reinsurance Terrorism Exposure",null,"Reins. - NBCR Terrorism - Net Exposure 3",null,null,null,null,0]
["Sch X(i)","CAT Return - Reinsurance Terrorism Exposure",null,"Reins. - NBCR Terrorism - Net Exposure 6",null,null,null,null,0]
["Sch X(j)","CAT Return - Assumed Exchange Rates",null,"Currency - USD",null,null,null,null,"USD"]
["Sch X(j)","CAT Return - Assumed Exchange Rates",null,"Currency - USD:Other 1",null,null,null,null,"USD:"]
["Sch X(j)","CAT Return - Assumed Exchange Rates",null,"Exchange Rate - USD:Eur",null,null,null,null,0]
["Sch X(j)","CAT Return - Assumed Exchange Rates",null,"Exchange Rate - USD:Other 6",null,null,null,null,0]
["Sch XI(a)(i)","Loss Triangles - Property Castarophe",null,{"$f":"\"Prop Cat - Incurred - Line 2 - \"&$E$2-9&\" - \"&$E$2-9","v":"Prop Cat - Incurred - Line 2 - 2010 - 2010"},null,null,null,null,0]
["Sch XI(a)(i)","Loss Triangles - Property Castarophe",null,{"$f":"\"Prop Cat - Incurred - Line 4 - \"&$E$2-7&\" - \"&$E$2-7","v":"Prop Cat - Incurred - Line 4 - 2012 - 2012"},null,null,null,null,0]
["Sch XI(a)(i)","Loss Triangles - Property Castarophe",null,{"$f":"\"Prop Cat - Incurred - Line 1 - \"&$E$2-5&\" - Prior\"","v":"Prop Cat - Incurred - Line 1 - 2014 - Prior"},null,null,null,null,0]
["Sch XI(a)(i)","Loss Triangles - Property Castarophe",null,{"$f":"\"Prop Cat - Incurred - Line 2 - \"&$E$2-4&\" - \"&$E$2-9","v":"Prop Cat - Incurred - Line 2 - 2015 - 2010"},null,null,null,null,0]
["Sch XI(a)(i)","Loss Triangles - Property Castarophe",null,{"$f":"\"Prop Cat - Incurred - Line 2 - \"&$E$2-3&\" - \"&$E$2-9","v":"Prop Cat - Incurred - Line 2 - 2016 - 2010"},null,null,null,null,0]
["Sch XI(a)(i)","Loss Triangles - Property Castarophe",null,{"$f":"\"Prop Cat - Incurred - Line 5 - \"&$E$2-3&\" - \"&$E$2-6","v":"Prop Cat - Incurred - Line 5 - 2016 - 2013"},null,null,null,null,0]
["Sch XI(a)(i)","Loss Triangles - Property Castarophe",null,{"$f":"\"Prop Cat - Incurred - Line 4 - \"&$E$2-2&\" - \"&$E$2-7","v":"Prop Cat - Incurred - Line 4 - 2017 - 2012"},null,null,null,null,0]
["Sch XI(a)(i)","Loss Triangles - Property Castarophe",null,{"$f":"\"Prop Cat - Incurred - Line 4 - \"&$E$2-1&\" - \"&$E$2-7","v":"Prop Cat - Incurred - Line 4 - 2018 - 2012"},null,null,null,null,0]
["Sch XI(a)(i)","Loss Triangles - Property Castarophe",null,{"$f":"\"Prop Cat - Incurred - Line 7 - \"&$E$2-1&\" - \"&$E$2-4","v":"Prop Cat - Incurred - Line 7 - 2018 - 2015"},null,null,null,null,0]
["Sch XI(a)(i)","Loss Triangles - Property Castarophe",null,{"$f":"\"Prop Cat - Incurred - Line 2 - \"&$E$2&\" - \"&$E$2-9","v":"Prop Cat - Incurred - Line 2 - 2019 - 2010"},null,null,null,null,0]
["Sch XI(a)(i)","Loss Triangles - Property Castarophe",null,{"$f":"\"Prop Cat - Incurred - Line 3 - Cat Loss. - \"&$E$2-8","v":"Prop Cat - Incurred - Line 3 - Cat Loss. - 2011"},null,null,null,null,0]
["Sch XI(a)(i)","Loss Triangles - Property Castarophe",null,{"$f":"\"Prop Cat - Incurred - Line 6 - Cat Loss. - \"&$E$2-5","v":"Prop Cat - Incurred - Line 6 - Cat Loss. - 2014"},null,null,null,null,0]
["Sch XI(a)(i)","Loss Triangles - Property Castarophe",null,{"$f":"\"Prop Cat - Paid - Line 14 - \"&$E$2-9&\" - \"&$E$2-9","v":"Prop Cat - Paid - Line 14 - 2010 - 2010"},null,null,null,null,0]
["Sch XI(a)(i)","Loss Triangles - Property Castarophe",null,{"$f":"\"Prop Cat - Paid - Line 15 - \"&$E$2-8&\" - \"&$E$2-8","v":"Prop Cat - Paid - Line 15 - 2011 - 2011"},null,null,null,null,0]
["Sch XI(a)(i)","Loss Triangles - Property Castarophe",null,{"$f":"\"Prop Cat - Paid - Line 15 - \"&$E$2-6&\" - \"&$E$2-8","v":"Prop Cat - Paid - Line 15 - 2013 - 2011"},null,null,null,null,0]
["Sch XI(a)(i)","Loss Triangles - Property Castarophe",null,{"$f":"\"Prop Cat - Paid - Line 13 - \"&$E$2-4&\" - Prior\"","v":"Prop Cat - Paid - Line 13 - 2015 - Prior"},null,null,null,null,0]
["Sch XI(a)(i)","Loss Triangles - Property Castarophe",null,{"$f":"\"Prop Cat - Paid - Line 16 - \"&$E$2-4&\" - \"&$E$2-7","v":"Prop Cat - Paid - Line 16 - 2015 - 2012"},null,null,null,null,0]
["Sch XI(a)(i)","Loss Triangles - Property Castarophe",null,{"$f":"\"Prop Cat - Paid - Line 17 - \"&$E$2-3&\" - \"&$E$2-6","v":"Prop Cat - Paid - Line 17 - 2016 - 2013"},null,null,null,null,0]
["Sch XI(a)(i)","Loss Triangles - Property Castarophe",null,{"$f":"\"Prop Cat - Paid - Line 18 - \"&$E$2-2&\" - \"&$E$2-5","v":"Prop Cat - Paid - Line 18 - 2017 - 2014"},null,null,null,null,0]
["Sch XI(a)(i)","Loss Triangles - Property Castarophe",null,{"$f":"\"Prop Cat - Paid - Line 19 - \"&$E$2-2&\" - \"&$E$2-4","v":"Prop Cat - Paid - Line 19 - 2017 - 2015"},null,null,null,null,0]
["Sch XI(a)(i)","Loss Triangles - Property Castarophe",null,{"$f":"\"Prop Cat - Paid - Line 19 - \"&$E$2-1&\" - \"&$E$2-4","v":"Prop Cat - Paid - Line 19 - 2018 - 2015"},null,null,null,null,0]
["Sch XI(a)(i)","Loss Triangles - Property Castarophe",null,{"$f":"\"Prop Cat - Paid - Line 22 - \"&$E$2-1&\" - \"&$E$2-1","v":"Prop Cat - Paid - Line 22 - 2018 - 2018"},null,null,null,null,0]
["Sch XI(a)(i)","Loss Triangles - Property Castarophe",null,{"$f":"\"Prop Cat - Paid - Line 19 - \"&$E$2&\" - \"&$E$2-4","v":"Prop Cat - Paid - Line 19 - 2019 - 2015"},null,null,null,null,0]
["Sch XI(a)(i)","Loss Triangles - Property Castarophe",null,{"$f":"\"Prop Cat - Paid - Line 19 - Cat Loss. - \"&$E$2-4","v":"Prop Cat - Paid - Line 19 - Cat Loss. - 2015"},null,null,null,null,0]
["Sch XI(a)(i)","Loss Triangles - Property Castarophe",null,{"$f":"\"Prop Cat - Paid - Line 21 - Cat Loss. - \"&$E$2-2","v":"Prop Cat - Paid - Line 21 - Cat Loss. - 2017"},null,null,null,null,0]
["Sch XI(a)(i)","Loss Triangles - Property Castarophe",null,{"$f":"\"Prop Cat - Reserve - Line 27 - \"&$E$2-8&\" - \"&$E$2-8","v":"Prop Cat - Reserve - Line 27 - 2011 - 2011"},null,null,null,null,0]
["Sch XI(a)(i)","Loss Triangles - Property Castarophe",null,{"$f":"\"Prop Cat - Reserve - Line 29 - \"&$E$2-6&\" - \"&$E$2-6","v":"Prop Cat - Reserve - Line 29 - 2013 - 2013"},null,null,null,null,0]
["Sch XI(a)(i)","Loss Triangles - Property Castarophe",null,{"$f":"\"Prop Cat - Reserve - Line 25 - \"&$E$2-5&\" - Prior\"","v":"Prop Cat - Reserve - Line 25 - 2014 - Prior"},null,null,null,null,0]
["Sch XI(a)(i)","Loss Triangles - Property Castarophe",null,{"$f":"\"Prop Cat - Reserve - Line 28 - \"&$E$2-4&\" - \"&$E$2-7","v":"Prop Cat - Reserve - Line 28 - 2015 - 2012"},null,null,null,null,0]
["Sch XI(a)(i)","Loss Triangles - Property Castarophe",null,{"$f":"\"Prop Cat - Reserve - Line 31 - \"&$E$2-4&\" - \"&$E$2-4","v":"Prop Cat - Reserve - Line 31 - 2015 - 2015"},null,null,null,null,0]
["Sch XI(a)(i)","Loss Triangles - Property Castarophe",null,{"$f":"\"Prop Cat - Reserve - Line 26 - \"&$E$2-2&\" - \"&$E$2-9","v":"Prop Cat - Reserve - Line 26 - 2017 - 2010"},null,null,null,null,0]
["Sch XI(a)(i)","Loss Triangles - Property Castarophe",null,{"$f":"\"Prop Cat - Reserve - Line 33 - \"&$E$2-2&\" - \"&$E$2-2","v":"Prop Cat - Reserve - Line 33 - 2017 - 2017"},null,null,null,null,0]
["Sch XI(a)(i)","Loss Triangles - Property Castarophe",null,{"$f":"\"Prop Cat - Reserve - Line 31 - \"&$E$2-1&\" - \"&$E$2-4","v":"Prop Cat - Reserve - Line 31 - 2018 - 2015"},null,null,null,null,0]
["Sch XI(a)(i)","Loss Triangles - Property Castarophe",null,{"$f":"\"Prop Cat - Reserve - Line 34 - \"&$E$2-1&\" - \"&$E$2-1","v":"Prop Cat - Reserve - Line 34 - 2018 - 2018"},null,null,null,null,0]
["Sch XI(a)(i)","Loss Triangles - Property Castarophe",null,{"$f":"\"Prop Cat - Reserve - Line 33 - \"&$E$2&\" - \"&$E$2-2","v":"Prop Cat - Reserve - Line 33 - 2019 - 2017"},null,null,null,null,0]
["Sch XI(a)(i)","Loss Triangles - Property Castarophe",null,{"$f":"\"Prop Cat - Reserve - Line 34 - \"&$E$2&\" - \"&$E$2-1","v":"Prop Cat - Reserve - Line 34 - 2019 - 2018"},null,null,null,null,0]
["Sch XI(a)(i)","Loss Triangles - Property Castarophe",null,{"$f":"\"Prop Cat - Reserve - Line 32 - Cat Loss. - \"&$E$2-3","v":"Prop Cat - Reserve - Line 32 - Cat Loss. - 2016"},null,null,null,null,0]
["Sch XI(a)(i)","Loss Triangles - Property Castarophe",null,{"$f":"\"Prop Cat - GPW - Line 41 - \"&$E$2-6","v":"Prop Cat - GPW - Line 41 - 2013"},null,null,null,null,0]
["Sch XI(a)(i)","Loss Triangles - Property Castarophe",null,{"$f":"\"Prop Cat - GPW - Line 44 - \"&$E$2-3","v":"Prop Cat - GPW - Line 44 - 2016"},null,null,null,null,0]
["Sch XI(a)(i)","Loss Triangles - Property Castarophe",null,{"$f":"\"Prop Cat - Gross Premiums Earned - Line 42 - \"&$E$2-5","v":"Prop Cat - Gross Premiums Earned - Line 42 - 2014"},null,null,null,null,0]
["Sch XI(a)(i)","Loss Triangles - Property Castarophe",null,{"$f":"\"Prop Cat - NPW - Line 38 - \"&$E$2-9","v":"Prop Cat - NPW - Line 38 - 2010"},null,null,null,null,0]
["Sch XI(a)(i)","Loss Triangles - Property Castarophe",null,{"$f":"\"Prop Cat - NPW - Line 41 - \"&$E$2-6","v":"Prop Cat - NPW - Line 41 - 2013"},null,null,null,null,0]
["Sch XI(a)(i)","Loss Triangles - Property Castarophe",null,{"$f":"\"Prop Cat - Net Premiums Earned - Line 39 - \"&$E$2-8","v":"Prop Cat - Net Premiums Earned - Line 39 - 2011"},null,null,null,null,0]
["Sch XI(a)(i)","Loss Triangles - Property Castarophe",null,{"$f":"\"Prop Cat - Net Premiums Earned - Line 40 - \"&$E$2-7","v":"Prop Cat - Net Premiums Earned - Line 40 - 2012"},null,null,null,null,0]
["Sch XI(a)(i)","Loss Triangles - Property Castarophe",null,{"$f":"\"Prop Cat - Expenses Paid - Line 38 - \"&$E$2-9","v":"Prop Cat - Expenses Paid - Line 38 - 2010"},null,null,null,null,0]
["Sch XI(a)(i)","Loss Triangles - Property Castarophe",null,{"$f":"\"Prop Cat - Expenses Paid - Line 42 - \"&$E$2-5","v":"Prop Cat - Expenses Paid - Line 42 - 2014"},null,null,null,null,0]
["Sch XI(a)(i)","Loss Triangles - Property Castarophe",null,{"$f":"\"Prop Cat - Expenses Incurred - Line 38 - \"&$E$2-9","v":"Prop Cat - Expenses Incurred - Line 38 - 2010"},null,null,null,null,0]
["Sch XI(a)(i)","Loss Triangles - Property Castarophe",null,{"$f":"\"Prop Cat - Expenses Incurred - Line 47 - \"&$E$2","v":"Prop Cat - Expenses Incurred - Line 47 - 2019"},null,null,null,null,0]
["Sch XI(a)(i)","Loss Triangles - Property Castarophe",null,{"$f":"\"Prop Cat - Brokerage - Line 43 - \"&$E$2-4","v":"Prop Cat - Brokerage - Line 43 - 2015"},null,null,null,null,0]
["Sch XI(a)(i)","Loss Triangles - Property Castarophe",null,{"$f":"\"Prop Cat - Brokerage - Line 46 - \"&$E$2-1","v":"Prop Cat - Brokerage - Line 46 - 2018"},null,null,null,null,0]
["Sch XI(a)(i)","Loss Triangles - Property Castarophe",null,{"$f":"\"Prop Cat - G&A - Line 44 - \"&$E$2-3","v":"Prop Cat - G&A - Line 44 - 2016"},null,null,null,null,0]
["Sch XI(a)(i)","Loss Triangles - Property Castarophe",null,{"$f":"\"Prop Cat - G&A - Line 46 - \"&$E$2-1","v":"Prop Cat - G&A - Line 46 - 2018"},null,null,null,null,0]
["Sch XI(a)(i)","Loss Triangles - Property Castarophe",null,{"$f":"\"Prop Cat - Personnel Costs - Line 44 - \"&$E$2-3","v":"Prop Cat - Personnel Costs - Line 44 - 2016"},null,null,null,null,0]
["Sch XI(a)(i)","Loss Triangles - Property Castarophe",null,{"$f":"\"Prop Cat - Other Exp. - Line 40 - \"&$E$2-7","v":"Prop Cat - Other Exp. - Line 40 - 2012"},null,null,null,null,0]
["Sch XI(a)(i)","Loss Triangles - Property Castarophe",null,{"$f":"\"Prop Cat - Other Exp. - Line 43 - \"&$E$2-4","v":"Prop Cat - Other Exp. - Line 43 - 2015"},null,null,null,null,0]
["Sch XI(a)(ii)","Loss Triangles - Property",null,{"$f":"\"Property - Incurred - Line 2 - \"&$E$2-8&\" - \"&$E$2-9","v":"Property - Incurred - Line 2 - 2011 - 2010"},null,null,null,null,0]
["Sch XI(a)(ii)","Loss Triangles - Property",null,{"$f":"\"Property - Incurred - Line 2 - \"&$E$2-6&\" - \"&$E$2-9","v":"Property - Incurred - Line 2 - 2013 - 2010"},null,null,null,null,0]
["Sch XI(a)(ii)","Loss Triangles - Property",null,{"$f":"\"Property - Incurred - Line 5 - \"&$E$2-6&\" - \"&$E$2-6","v":"Property - Incurred - Line 5 - 2013 - 2013"},null,null,null,null,0]
["Sch XI(a)(ii)","Loss Triangles - Property",null,{"$f":"\"Property - Incurred - Line 6 - \"&$E$2-5&\" - \"&$E$2-5","v":"Property - Incurred - Line 6 - 2014 - 2014"},null,null,null,null,0]
["Sch XI(a)(ii)","Loss Triangles - Property",null,{"$f":"\"Property - Incurred - Line 5 - \"&$E$2-4&\" - \"&$E$2-6","v":"Property - Incurred - Line 5 - 2015 - 2013"},null,null,null,null,0]
["Sch XI(a)(ii)","Loss Triangles - Property",null,{"$f":"\"Property - Incurred - Line 7 - \"&$E$2-3&\" - \"&$E$2-4","v":"Property - Incurred - Line 7 - 2016 - 2015"},null,null,null,null,0]
["Sch XI(a)(ii)","Loss Triangles - Property",null,{"$f":"\"Property - Incurred - Line 6 - \"&$E$2-2&\" - \"&$E$2-5","v":"Property - Incurred - Line 6 - 2017 - 2014"},null,null,null,null,0]
["Sch XI(a)(ii)","Loss Triangles - Property",null,{"$f":"\"Property - Incurred - Line 9 - \"&$E$2-2&\" - \"&$E$2-2","v":"Property - Incurred - Line 9 - 2017 - 2017"},null,null,null,null,0]
["Sch XI(a)(ii)","Loss Triangles - Property",null,{"$f":"\"Property - Incurred - Line 9 - \"&$E$2-1&\" - \"&$E$2-2","v":"Property - Incurred - Line 9 - 2018 - 2017"},null,null,null,null,0]
["Sch XI(a)(ii)","Loss Triangles - Property",null,{"$f":"\"Property - Incurred - Line 6 - \"&$E$2&\" - \"&$E$2-5","v":"Property - Incurred - Line 6 - 2019 - 2014"},null,null,null,null,0]
["Sch XI(a)(ii)","Loss Triangles - Property",null,{"$f":"\"Property - Incurred - Line 7 - \"&$E$2&\" - \"&$E$2-4","v":"Property - Incurred - Line 7 - 2019 - 2015"},null,null,null,null,0]
["Sch XI(a)(ii)","Loss Triangles - Property",null,{"$f":"\"Property - Incurred - Line 8 - Cat Loss. - \"&$E$2-3","v":"Property - Incurred - Line 8 - Cat Loss. - 2016"},null,null,null,null,0]
["Sch XI(a)(ii)","Loss Triangles - Property",null,{"$f":"\"Property - Incurred - Line 9 - Cat Loss. - \"&$E$2-2","v":"Property - Incurred - Line 9 - Cat Loss. - 2017"},null,null,null,null,0]
["Sch XI(a)(ii)","Loss Triangles - Property",null,{"$f":"\"Property - Paid - Line 14 - \"&$E$2-7&\" - \"&$E$2-9","v":"Property - Paid - Line 14 - 2012 - 2010"},null,null,null,null,0]
["Sch XI(a)(ii)","Loss Triangles - Property",null,{"$f":"\"Property - Paid - Line 17 - \"&$E$2-6&\" - \"&$E$2-6","v":"Property - Paid - Line 17 - 2013 - 2013"},null,null,null,null,0]
["Sch XI(a)(ii)","Loss Triangles - Property",null,{"$f":"\"Property - Paid - Line 15 - \"&$E$2-5&\" - \"&$E$2-8","v":"Property - Paid - Line 15 - 2014 - 2011"},null,null,null,null,0]
["Sch XI(a)(ii)","Loss Triangles - Property",null,{"$f":"\"Property - Paid - Line 14 - \"&$E$2-4&\" - \"&$E$2-9","v":"Property - Paid - Line 14 - 2015 - 2010"},null,null,null,null,0]
["Sch XI(a)(ii)","Loss Triangles - Property",null,{"$f":"\"Property - Paid - Line 19 - \"&$E$2-3&\" - \"&$E$2-4","v":"Property - Paid - Line 19 - 2016 - 2015"},null,null,null,null,0]
["Sch XI(a)(ii)","Loss Triangles - Property",null,{"$f":"\"Property - Paid - Line 14 - \"&$E$2-2&\" - \"&$E$2-9","v":"Property - Paid - Line 14 - 2017 - 2010"},null,null,null,null,0]
["Sch XI(a)(ii)","Loss Triangles - Property",null,{"$f":"\"Property - Paid - Line 21 - \"&$E$2-2&\" - \"&$E$2-2","v":"Property - Paid - Line 21 - 2017 - 2017"},null,null,null,null,0]
["Sch XI(a)(ii)","Loss Triangles - Property",null,{"$f":"\"Property - Paid - Line 15 - \"&$E$2-1&\" - \"&$E$2-8","v":"Property - Paid - Line 15 - 2018 - 2011"},null,null,null,null,0]
["Sch XI(a)(ii)","Loss Triangles - Property",null,{"$f":"\"Property - Paid - Line 14 - \"&$E$2&\" - \"&$E$2-9","v":"Property - Paid - Line 14 - 2019 - 2010"},null,null,null,null,0]
["Sch XI(a)(ii)","Loss Triangles - Property",null,{"$f":"\"Property - Paid - Line 21 - \"&$E$2&\" - \"&$E$2-2","v":"Property - Paid - Line 21 - 2019 - 2017"},null,null,null,null,0]
["Sch XI(a)(ii)","Loss Triangles - Property",null,{"$f":"\"Property - Paid - Line 17 - Cat Loss. - \"&$E$2-6","v":"Property - Paid - Line 17 - Cat Loss. - 2013"},null,null,null,null,0]
["Sch XI(a)(ii)","Loss Triangles - Property",null,{"$f":"\"Property - Paid - Line 23 - Cat Loss. - \"&$E$2","v":"Property - Paid - Line 23 - Cat Loss. - 2019"},null,null,null,null,0]
["Sch XI(a)(ii)","Loss Triangles - Property",null,{"$f":"\"Property - Reserve - Line 26 - \"&$E$2-7&\" - \"&$E$2-9","v":"Property - Reserve - Line 26 - 2012 - 2010"},null,null,null,null,0]
["Sch XI(a)(ii)","Loss Triangles - Property",null,{"$f":"\"Property - Reserve - Line 25 - \"&$E$2-6&\" - Prior\"","v":"Property - Reserve - Line 25 - 2013 - Prior"},null,null,null,null,0]
["Sch XI(a)(ii)","Loss Triangles - Property",null,{"$f":"\"Property - Reserve - Line 27 - \"&$E$2-5&\" - \"&$E$2-8","v":"Property - Reserve - Line 27 - 2014 - 2011"},null,null,null,null,0]
["Sch XI(a)(ii)","Loss Triangles - Property",null,{"$f":"\"Property - Reserve - Line 30 - \"&$E$2-5&\" - \"&$E$2-5","v":"Property - Reserve - Line 30 - 2014 - 2014"},null,null,null,null,0]
["Sch XI(a)(ii)","Loss Triangles - Property",null,{"$f":"\"Property - Reserve - Line 26 - \"&$E$2-3&\" - \"&$E$2-9","v":"Property - Reserve - Line 26 - 2016 - 2010"},null,null,null,null,0]
["Sch XI(a)(ii)","Loss Triangles - Property",null,{"$f":"\"Property - Reserve - Line 32 - \"&$E$2-3&\" - \"&$E$2-3","v":"Property - Reserve - Line 32 - 2016 - 2016"},null,null,null,null,0]
["Sch XI(a)(ii)","Loss Triangles - Property",null,{"$f":"\"Property - Reserve - Line 29 - \"&$E$2-2&\" - \"&$E$2-6","v":"Property - Reserve - Line 29 - 2017 - 2013"},null,null,null,null,0]
["Sch XI(a)(ii)","Loss Triangles - Property",null,{"$f":"\"Property - Reserve - Line 27 - \"&$E$2-1&\" - \"&$E$2-8","v":"Property - Reserve - Line 27 - 2018 - 2011"},null,null,null,null,0]
["Sch XI(a)(ii)","Loss Triangles - Property",null,{"$f":"\"Property - Reserve - Line 26 - \"&$E$2&\" - \"&$E$2-9","v":"Property - Reserve - Line 26 - 2019 - 2010"},null,null,null,null,0]
["Sch XI(a)(ii)","Loss Triangles - Property",null,{"$f":"\"Property - Reserve - Line 29 - \"&$E$2&\" - \"&$E$2-6","v":"Property - Reserve - Line 29 - 2019 - 2013"},null,null,null,null,0]
["Sch XI(a)(ii)","Loss Triangles - Property",null,{"$f":"\"Property - Reserve - Line 25 - Cat Loss - Prior\"","v":"Property - Reserve - Line 25 - Cat Loss - Prior"},null,null,null,null,0]
["Sch XI(a)(ii)","Loss Triangles - Property",null,{"$f":"\"Property - Reserve - Line 28 - Cat Loss. - \"&$E$2-7","v":"Property - Reserve - Line 28 - Cat Loss. - 2012"},null,null,null,null,0]
["Sch XI(a)(ii)","Loss Triangles - Property",null,{"$f":"\"Property - GPW - Line 39 - \"&$E$2-8","v":"Property - GPW - Line 39 - 2011"},null,null,null,null,0]
["Sch XI(a)(ii)","Loss Triangles - Property",null,{"$f":"\"Property - GPW - Line 46 - \"&$E$2-1","v":"Property - GPW - Line 46 - 2018"},null,null,null,null,0]
["Sch XI(a)(ii)","Loss Triangles - Property",null,{"$f":"\"Property - Gross Premiums Earned - Line 38 - \"&$E$2-9","v":"Property - Gross Premiums Earned - Line 38 - 2010"},null,null,null,null,0]
["Sch XI(a)(ii)","Loss Triangles - Property",null,{"$f":"\"Property - Gross Premiums Earned - Line 45 - \"&$E$2-2","v":"Property - Gross Premiums Earned - Line 45 - 2017"},null,null,null,null,0]
["Sch XI(a)(ii)","Loss Triangles - Property",null,{"$f":"\"Property - NPW - Line 43 - \"&$E$2-4","v":"Property - NPW - Line 43 - 2015"},null,null,null,null,0]
["Sch XI(a)(ii)","Loss Triangles - Property",null,{"$f":"\"Property - NPW - Line 46 - \"&$E$2-1","v":"Property - NPW - Line 46 - 2018"},null,null,null,null,0]
["Sch XI(a)(ii)","Loss Triangles - Property",null,{"$f":"\"Property - Net Premiums Earned - Line 42 - \"&$E$2-5","v":"Property - Net Premiums Earned - Line 42 - 2014"},null,null,null,null,0]
["Sch XI(a)(ii)","Loss Triangles - Property",null,{"$f":"\"Property - Net Premiums Earned - Line 47 - \"&$E$2","v":"Property - Net Premiums Earned - Line 47 - 2019"},null,null,null,null,0]
["Sch XI(a)(ii)","Loss Triangles - Property",null,{"$f":"\"Property - Expenses Paid - Line 44 - \"&$E$2-3","v":"Property - Expenses Paid - Line 44 - 2016"},null,null,null,null,0]
["Sch XI(a)(ii)","Loss Triangles - Property",null,{"$f":"\"Property - Expenses Incurred - Line 40 - \"&$E$2-7","v":"Property - Expenses Incurred - Line 40 - 2012"},null,null,null,null,0]
["Sch XI(a)(ii)","Loss Triangles - Property",null,{"$f":"\"Property - Expenses Incurred - Line 43 - \"&$E$2-4","v":"Property - Expenses Incurred - Line 43 - 2015"},null,null,null,null,0]
["Sch XI(a)(ii)","Loss Triangles - Property",null,{"$f":"\"Property - Brokerage - Line 39 - \"&$E$2-8","v":"Property - Brokerage - Line 39 - 2011"},null,null,null,null,0]
["Sch XI(a)(ii)","Loss Triangles - Property",null,{"$f":"\"Property - G&A - Line 37 - Prior\"","v":"Property - G&A - Line 37 - Prior"},null,null,null,null,0]
["Sch XI(a)(ii)","Loss Triangles - Property",null,{"$f":"\"Property - G&A - Line 40 - \"&$E$2-7","v":"Property - G&A - Line 40 - 2012"},null,null,null,null,0]
["Sch XI(a)(ii)","Loss Triangles - Property",null,{"$f":"\"Property - G&A - Line 44 - \"&$E$2-3","v":"Property - G&A - Line 44 - 2016"},null,null,null,null,0]
["Sch XI(a)(ii)","Loss Triangles - Property",null,{"$f":"\"Property - Personnel Costs - Line 40 - \"&$E$2-7","v":"Property - Personnel Costs - Line 40 - 2012"},null,null,null,null,0]
["Sch XI(a)(ii)","Loss Triangles - Property",null,{"$f":"\"Property - Personnel Costs - Line 47 - \"&$E$2","v":"Property - Personnel Costs - Line 47 - 2019"},null,null,null,null,0]
["Sch XI(a)(ii)","Loss Triangles - Property",null,{"$f":"\"Property - Other Exp. - Line 45 - \"&$E$2-2","v":"Property - Other Exp. - Line 45 - 2017"},null,null,null,null,0]
["Sch XI(a)(ii)","Loss Triangles - Property",null,"Property - Note",null,null,null,null,0]
["Sch XI(a)(iii)","Loss Triangles - Property Non-Proportional",null,{"$f":"\"Prop. Non-Prop.- Incurred - Line 2 - \"&$E$2-7&\" - \"&$E$2-9","v":"Prop. Non-Prop.- Incurred - Line 2 - 2012 - 2010"},null,null,null,null,0]
["Sch XI(a)(iii)","Loss Triangles - Property Non-Proportional",null,{"$f":"\"Prop. Non-Prop.- Incurred - Line 2 - \"&$E$2-5&\" - \"&$E$2-9","v":"Prop. Non-Prop.- Incurred - Line 2 - 2014 - 2010"},null,null,null,null,0]
["Sch XI(a)(iii)","Loss Triangles - Property Non-Proportional",null,{"$f":"\"Prop. Non-Prop.- Incurred - Line 4 - \"&$E$2-5&\" - \"&$E$2-7","v":"Prop. Non-Prop.- Incurred - Line 4 - 2014 - 2012"},null,null,null,null,0]
["Sch XI(a)(iii)","Loss Triangles - Property Non-Proportional",null,{"$f":"\"Prop. Non-Prop.- Incurred - Line 7 - \"&$E$2-4&\" - \"&$E$2-4","v":"Prop. Non-Prop.- Incurred - Line 7 - 2015 - 2015"},null,null,null,null,0]
["Sch XI(a)(iii)","Loss Triangles - Property Non-Proportional",null,{"$f":"\"Prop. Non-Prop.- Incurred - Line 3 - \"&$E$2-3&\" - \"&$E$2-8","v":"Prop. Non-Prop.- Incurred - Line 3 - 2016 - 2011"},null,null,null,null,0]
["Sch XI(a)(iii)","Loss Triangles - Property Non-Proportional",null,{"$f":"\"Prop. Non-Prop.- Incurred - Line 2 - \"&$E$2-2&\" - \"&$E$2-9","v":"Prop. Non-Prop.- Incurred - Line 2 - 2017 - 2010"},null,null,null,null,0]
["Sch XI(a)(iii)","Loss Triangles - Property Non-Proportional",null,{"$f":"\"Prop. Non-Prop.- Incurred - Line 2 - \"&$E$2-1&\" - \"&$E$2-9","v":"Prop. Non-Prop.- Incurred - Line 2 - 2018 - 2010"},null,null,null,null,0]
["Sch XI(a)(iii)","Loss Triangles - Property Non-Proportional",null,{"$f":"\"Prop. Non-Prop.- Incurred - Line 5 - \"&$E$2-1&\" - \"&$E$2-6","v":"Prop. Non-Prop.- Incurred - Line 5 - 2018 - 2013"},null,null,null,null,0]
["Sch XI(a)(iii)","Loss Triangles - Property Non-Proportional",null,{"$f":"\"Prop. Non-Prop.- Incurred - Line 2 - \"&$E$2&\" - \"&$E$2-9","v":"Prop. Non-Prop.- Incurred - Line 2 - 2019 - 2010"},null,null,null,null,0]
["Sch XI(a)(iii)","Loss Triangles - Property Non-Proportional",null,{"$f":"\"Prop. Non-Prop.- Incurred - Line 1 - Cat Loss - Prior\"","v":"Prop. Non-Prop.- Incurred - Line 1 - Cat Loss - Prior"},null,null,null,null,0]
["Sch XI(a)(iii)","Loss Triangles - Property Non-Proportional",null,{"$f":"\"Prop. Non-Prop.- Incurred - Line 2 - Cat Loss. - \"&$E$2-9","v":"Prop. Non-Prop.- Incurred - Line 2 - Cat Loss. - 2010"},null,null,null,null,0]
["Sch XI(a)(iii)","Loss Triangles - Property Non-Proportional",null,{"$f":"\"Prop. Non-Prop.- Incurred - Line 11 - Cat Loss. - \"&$E$2","v":"Prop. Non-Prop.- Incurred - Line 11 - Cat Loss. - 2019"},null,null,null,null,0]
["Sch XI(a)(iii)","Loss Triangles - Property Non-Proportional",null,{"$f":"\"Prop. Non-Prop.- Paid - Line 13 - \"&$E$2-8&\" - Prior\"","v":"Prop. Non-Prop.- Paid - Line 13 - 2011 - Prior"},null,null,null,null,0]
["Sch XI(a)(iii)","Loss Triangles - Property Non-Proportional",null,{"$f":"\"Prop. Non-Prop.- Paid - Line 13 - \"&$E$2-6&\" - Prior\"","v":"Prop. Non-Prop.- Paid - Line 13 - 2013 - Prior"},null,null,null,null,0]
["Sch XI(a)(iii)","Loss Triangles - Property Non-Proportional",null,{"$f":"\"Prop. Non-Prop.- Paid - Line 17 - \"&$E$2-5&\" - \"&$E$2-6","v":"Prop. Non-Prop.- Paid - Line 17 - 2014 - 2013"},null,null,null,null,0]
["Sch XI(a)(iii)","Loss Triangles - Property Non-Proportional",null,{"$f":"\"Prop. Non-Prop.- Paid - Line 14 - \"&$E$2-4&\" - \"&$E$2-9","v":"Prop. Non-Prop.- Paid - Line 14 - 2015 - 2010"},null,null,null,null,0]
["Sch XI(a)(iii)","Loss Triangles - Property Non-Proportional",null,{"$f":"\"Prop. Non-Prop.- Paid - Line 16 - \"&$E$2-3&\" - \"&$E$2-7","v":"Prop. Non-Prop.- Paid - Line 16 - 2016 - 2012"},null,null,null,null,0]
["Sch XI(a)(iii)","Loss Triangles - Property Non-Proportional",null,{"$f":"\"Prop. Non-Prop.- Paid - Line 16 - \"&$E$2-2&\" - \"&$E$2-7","v":"Prop. Non-Prop.- Paid - Line 16 - 2017 - 2012"},null,null,null,null,0]
["Sch XI(a)(iii)","Loss Triangles - Property Non-Proportional",null,{"$f":"\"Prop. Non-Prop.- Paid - Line 17 - \"&$E$2-2&\" - \"&$E$2-6","v":"Prop. Non-Prop.- Paid - Line 17 - 2017 - 2013"},null,null,null,null,0]
["Sch XI(a)(iii)","Loss Triangles - Property Non-Proportional",null,{"$f":"\"Prop. Non-Prop.- Paid - Line 17 - \"&$E$2-1&\" - \"&$E$2-6","v":"Prop. Non-Prop.- Paid - Line 17 - 2018 - 2013"},null,null,null,null,0]
["Sch XI(a)(iii)","Loss Triangles - Property Non-Proportional",null,{"$f":"\"Prop. Non-Prop.- Paid - Line 20 - \"&$E$2-1&\" - \"&$E$2-3","v":"Prop. Non-Prop.- Paid - Line 20 - 2018 - 2016"},null,null,null,null,0]
["Sch XI(a)(iii)","Loss Triangles - Property Non-Proportional",null,{"$f":"\"Prop. Non-Prop.- Paid - Line 17 - \"&$E$2&\" - \"&$E$2-6","v":"Prop. Non-Prop.- Paid - Line 17 - 2019 - 2013"},null,null,null,null,0]
["Sch XI(a)(iii)","Loss Triangles - Property Non-Proportional",null,{"$f":"\"Prop. Non-Prop.- Paid - Line 15 - Cat Loss. - \"&$E$2-8","v":"Prop. Non-Prop.- Paid - Line 15 - Cat Loss. - 2011"},null,null,null,null,0]
["Sch XI(a)(iii)","Loss Triangles - Property Non-Proportional",null,{"$f":"\"Prop. Non-Prop.- Paid - Line 19 - Cat Loss. - \"&$E$2-4","v":"Prop. Non-Prop.- Paid - Line 19 - Cat Loss. - 2015"},null,null,null,null,0]
["Sch XI(a)(iii)","Loss Triangles - Property Non-Proportional",null,{"$f":"\"Prop. Non-Prop.- Reserve - Line 25 - \"&$E$2-8&\" - Prior\"","v":"Prop. Non-Prop.- Reserve - Line 25 - 2011 - Prior"},null,null,null,null,0]
["Sch XI(a)(iii)","Loss Triangles - Property Non-Proportional",null,{"$f":"\"Prop. Non-Prop.- Reserve - Line 27 - \"&$E$2-6&\" - \"&$E$2-8","v":"Prop. Non-Prop.- Reserve - Line 27 - 2013 - 2011"},null,null,null,null,0]
["Sch XI(a)(iii)","Loss Triangles - Property Non-Proportional",null,{"$f":"\"Prop. Non-Prop.- Reserve - Line 28 - \"&$E$2-6&\" - \"&$E$2-7","v":"Prop. Non-Prop.- Reserve - Line 28 - 2013 - 2012"},null,null,null,null,0]
["Sch XI(a)(iii)","Loss Triangles - Property Non-Proportional",null,{"$f":"\"Prop. Non-Prop.- Reserve - Line 26 - \"&$E$2-4&\" - \"&$E$2-9","v":"Prop. Non-Prop.- Reserve - Line 26 - 2015 - 2010"},null,null,null,null,0]
["Sch XI(a)(iii)","Loss Triangles - Property Non-Proportional",null,{"$f":"\"Prop. Non-Prop.- Reserve - Line 29 - \"&$E$2-4&\" - \"&$E$2-6","v":"Prop. Non-Prop.- Reserve - Line 29 - 2015 - 2013"},null,null,null,null,0]
["Sch XI(a)(iii)","Loss Triangles - Property Non-Proportional",null,{"$f":"\"Prop. Non-Prop.- Reserve - Line 30 - \"&$E$2-3&\" - \"&$E$2-5","v":"Prop. Non-Prop.- Reserve - Line 30 - 2016 - 2014"},null,null,null,null,0]
["Sch XI(a)(iii)","Loss Triangles - Property Non-Proportional",null,{"$f":"\"Prop. Non-Prop.- Reserve - Line 31 - \"&$E$2-2&\" - \"&$E$2-4","v":"Prop. Non-Prop.- Reserve - Line 31 - 2017 - 2015"},null,null,null,null,0]
["Sch XI(a)(iii)","Loss Triangles - Property Non-Proportional",null,{"$f":"\"Prop. Non-Prop.- Reserve - Line 29 - \"&$E$2-1&\" - \"&$E$2-6","v":"Prop. Non-Prop.- Reserve - Line 29 - 2018 - 2013"},null,null,null,null,0]
["Sch XI(a)(iii)","Loss Triangles - Property Non-Proportional",null,{"$f":"\"Prop. Non-Prop.- Reserve - Line 32 - \"&$E$2-1&\" - \"&$E$2-3","v":"Prop. Non-Prop.- Reserve - Line 32 - 2018 - 2016"},null,null,null,null,0]
["Sch XI(a)(iii)","Loss Triangles - Property Non-Proportional",null,{"$f":"\"Prop. Non-Prop.- Reserve - Line 31 - \"&$E$2&\" - \"&$E$2-4","v":"Prop. Non-Prop.- Reserve - Line 31 - 2019 - 2015"},null,null,null,null,0]
["Sch XI(a)(iii)","Loss Triangles - Property Non-Proportional",null,{"$f":"\"Prop. Non-Prop.- Reserve - Line 32 - \"&$E$2&\" - \"&$E$2-3","v":"Prop. Non-Prop.- Reserve - Line 32 - 2019 - 2016"},null,null,null,null,0]
["Sch XI(a)(iii)","Loss Triangles - Property Non-Proportional",null,{"$f":"\"Prop. Non-Prop.- Reserve - Line 30 - Cat Loss. - \"&$E$2-5","v":"Prop. Non-Prop.- Reserve - Line 30 - Cat Loss. - 2014"},null,null,null,null,0]
["Sch XI(a)(iii)","Loss Triangles - Property Non-Proportional",null,{"$f":"\"Prop. Non-Prop.- GPW - Line 37 - Prior\"","v":"Prop. Non-Prop.- GPW - Line 37 - Prior"},null,null,null,null,"XXX"]
["Sch XI(a)(iii)","Loss Triangles - Property Non-Proportional",null,{"$f":"\"Prop. Non-Prop.- GPW - Line 42 - \"&$E$2-5","v":"Prop. Non-Prop.- GPW - Line 42 - 2014"},null,null,null,null,0]
["Sch XI(a)(iii)","Loss Triangles - Property Non-Proportional",null,{"$f":"\"Prop. Non-Prop.- Gross Premiums Earned - Line 40 - \"&$E$2-7","v":"Prop. Non-Prop.- Gross Premiums Earned - Line 40 - 2012"},null,null,null,null,0]
["Sch XI(a)(iii)","Loss Triangles - Property Non-Proportional",null,{"$f":"\"Prop. Non-Prop.- Gross Premiums Earned - Line 47 - \"&$E$2","v":"Prop. Non-Prop.- Gross Premiums Earned - Line 47 - 2019"},null,null,null,null,0]
["Sch XI(a)(iii)","Loss Triangles - Property Non-Proportional",null,{"$f":"\"Prop. Non-Prop.- NPW - Line 39 - \"&$E$2-8","v":"Prop. Non-Prop.- NPW - Line 39 - 2011"},null,null,null,null,0]
["Sch XI(a)(iii)","Loss Triangles - Property Non-Proportional",null,{"$f":"\"Prop. Non-Prop.- Net Premiums Earned - Line 37 - Prior\"","v":"Prop. Non-Prop.- Net Premiums Earned - Line 37 - Prior"},null,null,null,null,"XXX"]
["Sch XI(a)(iii)","Loss Triangles - Property Non-Proportional",null,{"$f":"\"Prop. Non-Prop.- Net Premiums Earned - Line 38 - \"&$E$2-9","v":"Prop. Non-Prop.- Net Premiums Earned - Line 38 - 2010"},null,null,null,null,0]
["Sch XI(a)(iii)","Loss Triangles - Property Non-Proportional",null,{"$f":"\"Prop. Non-Prop.- Net Premiums Earned - Line 45 - \"&$E$2-2","v":"Prop. Non-Prop.- Net Premiums Earned - Line 45 - 2017"},null,null,null,null,0]
["Sch XI(a)(iii)","Loss Triangles - Property Non-Proportional",null,{"$f":"\"Prop. Non-Prop.- Expenses Paid - Line 40 - \"&$E$2-7","v":"Prop. Non-Prop.- Expenses Paid - Line 40 - 2012"},null,null,null,null,0]
["Sch XI(a)(iii)","Loss Triangles - Property Non-Proportional",null,{"$f":"\"Prop. Non-Prop.- Expenses Paid - Line 47 - \"&$E$2","v":"Prop. Non-Prop.- Expenses Paid - Line 47 - 2019"},null,null,null,null,0]
["Sch XI(a)(iii)","Loss Triangles - Property Non-Proportional",null,{"$f":"\"Prop. Non-Prop.- Expenses Incurred - Line 45 - \"&$E$2-2","v":"Prop. Non-Prop.- Expenses Incurred - Line 45 - 2017"},null,null,null,null,0]
["Sch XI(a)(iii)","Loss Triangles - Property Non-Proportional",null,{"$f":"\"Prop. Non-Prop.- Brokerage - Line 41 - \"&$E$2-6","v":"Prop. Non-Prop.- Brokerage - Line 41 - 2013"},null,null,null,null,0]
["Sch XI(a)(iii)","Loss Triangles - Property Non-Proportional",null,{"$f":"\"Prop. Non-Prop.- Brokerage - Line 44 - \"&$E$2-3","v":"Prop. Non-Prop.- Brokerage - Line 44 - 2016"},null,null,null,null,0]
["Sch XI(a)(iii)","Loss Triangles - Property Non-Proportional",null,{"$f":"\"Prop. Non-Prop.- G&A - Line 42 - \"&$E$2-5","v":"Prop. Non-Prop.- G&A - Line 42 - 2014"},null,null,null,null,0]
["Sch XI(a)(iii)","Loss Triangles - Property Non-Proportional",null,{"$f":"\"Prop. Non-Prop.- Personnel Costs - Line 38 - \"&$E$2-9","v":"Prop. Non-Prop.- Personnel Costs - Line 38 - 2010"},null,null,null,null,0]
["Sch XI(a)(iii)","Loss Triangles - Property Non-Proportional",null,{"$f":"\"Prop. Non-Prop.- Personnel Costs - Line 42 - \"&$E$2-5","v":"Prop. Non-Prop.- Personnel Costs - Line 42 - 2014"},null,null,null,null,0]
["Sch XI(a)(iii)","Loss Triangles - Property Non-Proportional",null,{"$f":"\"Prop. Non-Prop.- Other Exp. - Line 38 - \"&$E$2-9","v":"Prop. Non-Prop.- Other Exp. - Line 38 - 2010"},null,null,null,null,0]
["Sch XI(a)(iii)","Loss Triangles - Property Non-Proportional",null,{"$f":"\"Prop. Non-Prop.- Other Exp. - Line 41 - \"&$E$2-6","v":"Prop. Non-Prop.- Other Exp. - Line 41 - 2013"},null,null,null,null,0]
["Sch XI(a)(iv)","Loss Triangles - Casualty",null,{"$f":"\"Casualty - Incurred - Line 2 - \"&$E$2-9&\" - \"&$E$2-9","v":"Casualty - Incurred - Line 2 - 2010 - 2010"},null,null,null,null,0]
["Sch XI(a)(iv)","Loss Triangles - Casualty",null,{"$f":"\"Casualty - Incurred - Line 4 - \"&$E$2-7&\" - \"&$E$2-7","v":"Casualty - Incurred - Line 4 - 2012 - 2012"},null,null,null,null,0]
["Sch XI(a)(iv)","Loss Triangles - Casualty",null,{"$f":"\"Casualty - Incurred - Line 3 - \"&$E$2-6&\" - \"&$E$2-8","v":"Casualty - Incurred - Line 3 - 2013 - 2011"},null,null,null,null,0]
["Sch XI(a)(iv)","Loss Triangles - Casualty",null,{"$f":"\"Casualty - Incurred - Line 2 - \"&$E$2-5&\" - \"&$E$2-9","v":"Casualty - Incurred - Line 2 - 2014 - 2010"},null,null,null,null,0]
["Sch XI(a)(iv)","Loss Triangles - Casualty",null,{"$f":"\"Casualty - Incurred - Line 3 - \"&$E$2-4&\" - \"&$E$2-8","v":"Casualty - Incurred - Line 3 - 2015 - 2011"},null,null,null,null,0]
["Sch XI(a)(iv)","Loss Triangles - Casualty",null,{"$f":"\"Casualty - Incurred - Line 5 - \"&$E$2-3&\" - \"&$E$2-6","v":"Casualty - Incurred - Line 5 - 2016 - 2013"},null,null,null,null,0]
["Sch XI(a)(iv)","Loss Triangles - Casualty",null,{"$f":"\"Casualty - Incurred - Line 4 - \"&$E$2-2&\" - \"&$E$2-7","v":"Casualty - Incurred - Line 4 - 2017 - 2012"},null,null,null,null,0]
["Sch XI(a)(iv)","Loss Triangles - Casualty",null,{"$f":"\"Casualty - Incurred - Line 7 - \"&$E$2-2&\" - \"&$E$2-4","v":"Casualty - Incurred - Line 7 - 2017 - 2015"},null,null,null,null,0]
["Sch XI(a)(iv)","Loss Triangles - Casualty",null,{"$f":"\"Casualty - Incurred - Line 7 - \"&$E$2-1&\" - \"&$E$2-4","v":"Casualty - Incurred - Line 7 - 2018 - 2015"},null,null,null,null,0]
["Sch XI(a)(iv)","Loss Triangles - Casualty",null,{"$f":"\"Casualty - Incurred - Line 4 - \"&$E$2&\" - \"&$E$2-7","v":"Casualty - Incurred - Line 4 - 2019 - 2012"},null,null,null,null,0]
["Sch XI(a)(iv)","Loss Triangles - Casualty",null,{"$f":"\"Casualty - Incurred - Line 10 - \"&$E$2&\" - \"&$E$2-1","v":"Casualty - Incurred - Line 10 - 2019 - 2018"},null,null,null,null,0]
["Sch XI(a)(iv)","Loss Triangles - Casualty",null,{"$f":"\"Casualty - Incurred - Line 4 - Cat Loss. - \"&$E$2-7","v":"Casualty - Incurred - Line 4 - Cat Loss. - 2012"},null,null,null,null,0]
["Sch XI(a)(iv)","Loss Triangles - Casualty",null,{"$f":"\"Casualty - Incurred - Line 7 - Cat Loss. - \"&$E$2-4","v":"Casualty - Incurred - Line 7 - Cat Loss. - 2015"},null,null,null,null,0]
["Sch XI(a)(iv)","Loss Triangles - Casualty",null,{"$f":"\"Casualty - Paid - Line 15 - \"&$E$2-8&\" - \"&$E$2-8","v":"Casualty - Paid - Line 15 - 2011 - 2011"},null,null,null,null,0]
["Sch XI(a)(iv)","Loss Triangles - Casualty",null,{"$f":"\"Casualty - Paid - Line 15 - \"&$E$2-6&\" - \"&$E$2-8","v":"Casualty - Paid - Line 15 - 2013 - 2011"},null,null,null,null,0]
["Sch XI(a)(iv)","Loss Triangles - Casualty",null,{"$f":"\"Casualty - Paid - Line 13 - \"&$E$2-5&\" - Prior\"","v":"Casualty - Paid - Line 13 - 2014 - Prior"},null,null,null,null,0]
["Sch XI(a)(iv)","Loss Triangles - Casualty",null,{"$f":"\"Casualty - Paid - Line 16 - \"&$E$2-4&\" - \"&$E$2-7","v":"Casualty - Paid - Line 16 - 2015 - 2012"},null,null,null,null,0]
["Sch XI(a)(iv)","Loss Triangles - Casualty",null,{"$f":"\"Casualty - Paid - Line 14 - \"&$E$2-3&\" - \"&$E$2-9","v":"Casualty - Paid - Line 14 - 2016 - 2010"},null,null,null,null,0]
["Sch XI(a)(iv)","Loss Triangles - Casualty",null,{"$f":"\"Casualty - Paid - Line 20 - \"&$E$2-3&\" - \"&$E$2-3","v":"Casualty - Paid - Line 20 - 2016 - 2016"},null,null,null,null,0]
["Sch XI(a)(iv)","Loss Triangles - Casualty",null,{"$f":"\"Casualty - Paid - Line 19 - \"&$E$2-2&\" - \"&$E$2-4","v":"Casualty - Paid - Line 19 - 2017 - 2015"},null,null,null,null,0]
["Sch XI(a)(iv)","Loss Triangles - Casualty",null,{"$f":"\"Casualty - Paid - Line 13 - \"&$E$2-1&\" - Prior\"","v":"Casualty - Paid - Line 13 - 2018 - Prior"},null,null,null,null,0]
["Sch XI(a)(iv)","Loss Triangles - Casualty",null,{"$f":"\"Casualty - Paid - Line 22 - \"&$E$2-1&\" - \"&$E$2-1","v":"Casualty - Paid - Line 22 - 2018 - 2018"},null,null,null,null,0]
["Sch XI(a)(iv)","Loss Triangles - Casualty",null,{"$f":"\"Casualty - Paid - Line 19 - \"&$E$2&\" - \"&$E$2-4","v":"Casualty - Paid - Line 19 - 2019 - 2015"},null,null,null,null,0]
["Sch XI(a)(iv)","Loss Triangles - Casualty",null,{"$f":"\"Casualty - Paid - Line 22 - \"&$E$2&\" - \"&$E$2-1","v":"Casualty - Paid - Line 22 - 2019 - 2018"},null,null,null,null,0]
["Sch XI(a)(iv)","Loss Triangles - Casualty",null,{"$f":"\"Casualty - Paid - Line 20 - Cat Loss. - \"&$E$2-3","v":"Casualty - Paid - Line 20 - Cat Loss. - 2016"},null,null,null,null,0]
["Sch XI(a)(iv)","Loss Triangles - Casualty",null,{"$f":"\"Casualty - Reserve - Line 27 - \"&$E$2-8&\" - \"&$E$2-8","v":"Casualty - Reserve - Line 27 - 2011 - 2011"},null,null,null,null,0]
["Sch XI(a)(iv)","Loss Triangles - Casualty",null,{"$f":"\"Casualty - Reserve - Line 27 - \"&$E$2-7&\" - \"&$E$2-8","v":"Casualty - Reserve - Line 27 - 2012 - 2011"},null,null,null,null,0]
["Sch XI(a)(iv)","Loss Triangles - Casualty",null,{"$f":"\"Casualty - Reserve - Line 25 - \"&$E$2-5&\" - Prior\"","v":"Casualty - Reserve - Line 25 - 2014 - Prior"},null,null,null,null,0]
["Sch XI(a)(iv)","Loss Triangles - Casualty",null,{"$f":"\"Casualty - Reserve - Line 28 - \"&$E$2-5&\" - \"&$E$2-7","v":"Casualty - Reserve - Line 28 - 2014 - 2012"},null,null,null,null,0]
["Sch XI(a)(iv)","Loss Triangles - Casualty",null,{"$f":"\"Casualty - Reserve - Line 31 - \"&$E$2-4&\" - \"&$E$2-4","v":"Casualty - Reserve - Line 31 - 2015 - 2015"},null,null,null,null,0]
["Sch XI(a)(iv)","Loss Triangles - Casualty",null,{"$f":"\"Casualty - Reserve - Line 31 - \"&$E$2-3&\" - \"&$E$2-4","v":"Casualty - Reserve - Line 31 - 2016 - 2015"},null,null,null,null,0]
["Sch XI(a)(iv)","Loss Triangles - Casualty",null,{"$f":"\"Casualty - Reserve - Line 27 - \"&$E$2-2&\" - \"&$E$2-8","v":"Casualty - Reserve - Line 27 - 2017 - 2011"},null,null,null,null,0]
["Sch XI(a)(iv)","Loss Triangles - Casualty",null,{"$f":"\"Casualty - Reserve - Line 25 - \"&$E$2-1&\" - Prior\"","v":"Casualty - Reserve - Line 25 - 2018 - Prior"},null,null,null,null,0]
["Sch XI(a)(iv)","Loss Triangles - Casualty",null,{"$f":"\"Casualty - Reserve - Line 34 - \"&$E$2-1&\" - \"&$E$2-1","v":"Casualty - Reserve - Line 34 - 2018 - 2018"},null,null,null,null,0]
["Sch XI(a)(iv)","Loss Triangles - Casualty",null,{"$f":"\"Casualty - Reserve - Line 27 - \"&$E$2&\" - \"&$E$2-8","v":"Casualty - Reserve - Line 27 - 2019 - 2011"},null,null,null,null,0]
["Sch XI(a)(iv)","Loss Triangles - Casualty",null,{"$f":"\"Casualty - Reserve - Line 34 - \"&$E$2&\" - \"&$E$2-1","v":"Casualty - Reserve - Line 34 - 2019 - 2018"},null,null,null,null,0]
["Sch XI(a)(iv)","Loss Triangles - Casualty",null,{"$f":"\"Casualty - Reserve - Line 26 - Cat Loss. - \"&$E$2-9","v":"Casualty - Reserve - Line 26 - Cat Loss. - 2010"},null,null,null,null,0]
["Sch XI(a)(iv)","Loss Triangles - Casualty",null,{"$f":"\"Casualty - Reserve - Line 34 - Cat Loss. - \"&$E$2-1","v":"Casualty - Reserve - Line 34 - Cat Loss. - 2018"},null,null,null,null,0]
["Sch XI(a)(iv)","Loss Triangles - Casualty",null,{"$f":"\"Casualty - GPW - Line 44 - \"&$E$2-3","v":"Casualty - GPW - Line 44 - 2016"},null,null,null,null,0]
["Sch XI(a)(iv)","Loss Triangles - Casualty",null,{"$f":"\"Casualty - GPW - Line 47 - \"&$E$2","v":"Casualty - GPW - Line 47 - 2019"},null,null,null,null,0]
["Sch XI(a)(iv)","Loss Triangles - Casualty",null,{"$f":"\"Casualty - Gross Premiums Earned - Line 43 - \"&$E$2-4","v":"Casualty - Gross Premiums Earned - Line 43 - 2015"},null,null,null,null,0]
["Sch XI(a)(iv)","Loss Triangles - Casualty",null,{"$f":"\"Casualty - NPW - Line 41 - \"&$E$2-6","v":"Casualty - NPW - Line 41 - 2013"},null,null,null,null,0]
["Sch XI(a)(iv)","Loss Triangles - Casualty",null,{"$f":"\"Casualty - NPW - Line 44 - \"&$E$2-3","v":"Casualty - NPW - Line 44 - 2016"},null,null,null,null,0]
["Sch XI(a)(iv)","Loss Triangles - Casualty",null,{"$f":"\"Casualty - Net Premiums Earned - Line 40 - \"&$E$2-7","v":"Casualty - Net Premiums Earned - Line 40 - 2012"},null,null,null,null,0]
["Sch XI(a)(iv)","Loss Triangles - Casualty",null,{"$f":"\"Casualty - Net Premiums Earned - Line 43 - \"&$E$2-4","v":"Casualty - Net Premiums Earned - Line 43 - 2015"},null,null,null,null,0]
["Sch XI(a)(iv)","Loss Triangles - Casualty",null,{"$f":"\"Casualty - Expenses Paid - Line 42 - \"&$E$2-5","v":"Casualty - Expenses Paid - Line 42 - 2014"},null,null,null,null,0]
["Sch XI(a)(iv)","Loss Triangles - Casualty",null,{"$f":"\"Casualty - Expenses Incurred - Line 38 - \"&$E$2-9","v":"Casualty - Expenses Incurred - Line 38 - 2010"},null,null,null,null,0]
["Sch XI(a)(iv)","Loss Triangles - Casualty",null,{"$f":"\"Casualty - Expenses Incurred - Line 41 - \"&$E$2-6","v":"Casualty - Expenses Incurred - Line 41 - 2013"},null,null,null,null,0]
["Sch XI(a)(iv)","Loss Triangles - Casualty",null,{"$f":"\"Casualty - Brokerage - Line 37 - Prior\"","v":"Casualty - Brokerage - Line 37 - Prior"},null,null,null,null,0]
["Sch XI(a)(iv)","Loss Triangles - Casualty",null,{"$f":"\"Casualty - Brokerage - Line 46 - \"&$E$2-1","v":"Casualty - Brokerage - Line 46 - 2018"},null,null,null,null,0]
["Sch XI(a)(iv)","Loss Triangles - Casualty",null,{"$f":"\"Casualty - G&A - Line 38 - \"&$E$2-9","v":"Casualty - G&A - Line 38 - 2010"},null,null,null,null,0]
["Sch XI(a)(iv)","Loss Triangles - Casualty",null,{"$f":"\"Casualty - G&A - Line 47 - \"&$E$2","v":"Casualty - G&A - Line 47 - 2019"},null,null,null,null,0]
["Sch XI(a)(iv)","Loss Triangles - Casualty",null,{"$f":"\"Casualty - Personnel Costs - Line 38 - \"&$E$2-9","v":"Casualty - Personnel Costs - Line 38 - 2010"},null,null,null,null,0]
["Sch XI(a)(iv)","Loss Triangles - Casualty",null,{"$f":"\"Casualty - Personnel Costs - Line 45 - \"&$E$2-2","v":"Casualty - Personnel Costs - Line 45 - 2017"},null,null,null,null,0]
["Sch XI(a)(iv)","Loss Triangles - Casualty",null,{"$f":"\"Casualty - Other Exp. - Line 43 - \"&$E$2-4","v":"Casualty - Other Exp. - Line 43 - 2015"},null,null,null,null,0]
["Sch XI(a)(iv)","Loss Triangles - Casualty",null,{"$f":"\"Casualty - Other Exp. - Line 46 - \"&$E$2-1","v":"Casualty - Other Exp. - Line 46 - 2018"},null,null,null,null,0]
["Sch XI(a)(v)","Loss Triangles - Casualty Non-Proportional",null,{"$f":"\"Cas. Non-Prop.- Incurred - Line 3 - \"&$E$2-8&\" - \"&$E$2-8","v":"Cas. Non-Prop.- Incurred - Line 3 - 2011 - 2011"},null,null,null,null,0]
["Sch XI(a)(v)","Loss Triangles - Casualty Non-Proportional",null,{"$f":"\"Cas. Non-Prop.- Incurred - Line 5 - \"&$E$2-6&\" - \"&$E$2-6","v":"Cas. Non-Prop.- Incurred - Line 5 - 2013 - 2013"},null,null,null,null,0]
["Sch XI(a)(v)","Loss Triangles - Casualty Non-Proportional",null,{"$f":"\"Cas. Non-Prop.- Incurred - Line 1 - \"&$E$2-4&\" - Prior\"","v":"Cas. Non-Prop.- Incurred - Line 1 - 2015 - Prior"},null,null,null,null,0]
["Sch XI(a)(v)","Loss Triangles - Casualty Non-Proportional",null,{"$f":"\"Cas. Non-Prop.- Incurred - Line 5 - \"&$E$2-4&\" - \"&$E$2-6","v":"Cas. Non-Prop.- Incurred - Line 5 - 2015 - 2013"},null,null,null,null,0]
["Sch XI(a)(v)","Loss Triangles - Casualty Non-Proportional",null,{"$f":"\"Cas. Non-Prop.- Incurred - Line 1 - \"&$E$2-3&\" - Prior\"","v":"Cas. Non-Prop.- Incurred - Line 1 - 2016 - Prior"},null,null,null,null,0]
["Sch XI(a)(v)","Loss Triangles - Casualty Non-Proportional",null,{"$f":"\"Cas. Non-Prop.- Incurred - Line 8 - \"&$E$2-3&\" - \"&$E$2-3","v":"Cas. Non-Prop.- Incurred - Line 8 - 2016 - 2016"},null,null,null,null,0]
["Sch XI(a)(v)","Loss Triangles - Casualty Non-Proportional",null,{"$f":"\"Cas. Non-Prop.- Incurred - Line 9 - \"&$E$2-2&\" - \"&$E$2-2","v":"Cas. Non-Prop.- Incurred - Line 9 - 2017 - 2017"},null,null,null,null,0]
["Sch XI(a)(v)","Loss Triangles - Casualty Non-Proportional",null,{"$f":"\"Cas. Non-Prop.- Incurred - Line 3 - \"&$E$2-1&\" - \"&$E$2-8","v":"Cas. Non-Prop.- Incurred - Line 3 - 2018 - 2011"},null,null,null,null,0]
["Sch XI(a)(v)","Loss Triangles - Casualty Non-Proportional",null,{"$f":"\"Cas. Non-Prop.- Incurred - Line 10 - \"&$E$2-1&\" - \"&$E$2-1","v":"Cas. Non-Prop.- Incurred - Line 10 - 2018 - 2018"},null,null,null,null,0]
["Sch XI(a)(v)","Loss Triangles - Casualty Non-Proportional",null,{"$f":"\"Cas. Non-Prop.- Incurred - Line 8 - \"&$E$2&\" - \"&$E$2-3","v":"Cas. Non-Prop.- Incurred - Line 8 - 2019 - 2016"},null,null,null,null,0]
["Sch XI(a)(v)","Loss Triangles - Casualty Non-Proportional",null,{"$f":"\"Cas. Non-Prop.- Incurred - Line 11 - \"&$E$2&\" - \"&$E$2","v":"Cas. Non-Prop.- Incurred - Line 11 - 2019 - 2019"},null,null,null,null,0]
["Sch XI(a)(v)","Loss Triangles - Casualty Non-Proportional",null,{"$f":"\"Cas. Non-Prop.- Incurred - Line 9 - Cat Loss. - \"&$E$2-2","v":"Cas. Non-Prop.- Incurred - Line 9 - Cat Loss. - 2017"},null,null,null,null,0]
["Sch XI(a)(v)","Loss Triangles - Casualty Non-Proportional",null,{"$f":"\"Cas. Non-Prop.- Paid - Line 13 - \"&$E$2-9&\" - Prior\"","v":"Cas. Non-Prop.- Paid - Line 13 - 2010 - Prior"},null,null,null,null,0]
["Sch XI(a)(v)","Loss Triangles - Casualty Non-Proportional",null,{"$f":"\"Cas. Non-Prop.- Paid - Line 15 - \"&$E$2-7&\" - \"&$E$2-8","v":"Cas. Non-Prop.- Paid - Line 15 - 2012 - 2011"},null,null,null,null,0]
["Sch XI(a)(v)","Loss Triangles - Casualty Non-Proportional",null,{"$f":"\"Cas. Non-Prop.- Paid - Line 15 - \"&$E$2-5&\" - \"&$E$2-8","v":"Cas. Non-Prop.- Paid - Line 15 - 2014 - 2011"},null,null,null,null,0]
["Sch XI(a)(v)","Loss Triangles - Casualty Non-Proportional",null,{"$f":"\"Cas. Non-Prop.- Paid - Line 18 - \"&$E$2-5&\" - \"&$E$2-5","v":"Cas. Non-Prop.- Paid - Line 18 - 2014 - 2014"},null,null,null,null,0]
["Sch XI(a)(v)","Loss Triangles - Casualty Non-Proportional",null,{"$f":"\"Cas. Non-Prop.- Paid - Line 19 - \"&$E$2-4&\" - \"&$E$2-4","v":"Cas. Non-Prop.- Paid - Line 19 - 2015 - 2015"},null,null,null,null,0]
["Sch XI(a)(v)","Loss Triangles - Casualty Non-Proportional",null,{"$f":"\"Cas. Non-Prop.- Paid - Line 14 - \"&$E$2-2&\" - \"&$E$2-9","v":"Cas. Non-Prop.- Paid - Line 14 - 2017 - 2010"},null,null,null,null,0]
["Sch XI(a)(v)","Loss Triangles - Casualty Non-Proportional",null,{"$f":"\"Cas. Non-Prop.- Paid - Line 15 - \"&$E$2-2&\" - \"&$E$2-8","v":"Cas. Non-Prop.- Paid - Line 15 - 2017 - 2011"},null,null,null,null,0]
["Sch XI(a)(v)","Loss Triangles - Casualty Non-Proportional",null,{"$f":"\"Cas. Non-Prop.- Paid - Line 15 - \"&$E$2-1&\" - \"&$E$2-8","v":"Cas. Non-Prop.- Paid - Line 15 - 2018 - 2011"},null,null,null,null,0]
["Sch XI(a)(v)","Loss Triangles - Casualty Non-Proportional",null,{"$f":"\"Cas. Non-Prop.- Paid - Line 18 - \"&$E$2-1&\" - \"&$E$2-5","v":"Cas. Non-Prop.- Paid - Line 18 - 2018 - 2014"},null,null,null,null,0]
["Sch XI(a)(v)","Loss Triangles - Casualty Non-Proportional",null,{"$f":"\"Cas. Non-Prop.- Paid - Line 15 - \"&$E$2&\" - \"&$E$2-8","v":"Cas. Non-Prop.- Paid - Line 15 - 2019 - 2011"},null,null,null,null,0]
["Sch XI(a)(v)","Loss Triangles - Casualty Non-Proportional",null,{"$f":"\"Cas. Non-Prop.- Paid - Line 13 - Cat Loss - Prior\"","v":"Cas. Non-Prop.- Paid - Line 13 - Cat Loss - Prior"},null,null,null,null,0]
["Sch XI(a)(v)","Loss Triangles - Casualty Non-Proportional",null,{"$f":"\"Cas. Non-Prop.- Paid - Line 18 - Cat Loss. - \"&$E$2-5","v":"Cas. Non-Prop.- Paid - Line 18 - Cat Loss. - 2014"},null,null,null,null,0]
["Sch XI(a)(v)","Loss Triangles - Casualty Non-Proportional",null,{"$f":"\"Cas. Non-Prop.- Reserve - Line 25 - \"&$E$2-9&\" - Prior\"","v":"Cas. Non-Prop.- Reserve - Line 25 - 2010 - Prior"},null,null,null,null,0]
["Sch XI(a)(v)","Loss Triangles - Casualty Non-Proportional",null,{"$f":"\"Cas. Non-Prop.- Reserve - Line 25 - \"&$E$2-6&\" - Prior\"","v":"Cas. Non-Prop.- Reserve - Line 25 - 2013 - Prior"},null,null,null,null,0]
["Sch XI(a)(v)","Loss Triangles - Casualty Non-Proportional",null,{"$f":"\"Cas. Non-Prop.- Reserve - Line 26 - \"&$E$2-6&\" - \"&$E$2-9","v":"Cas. Non-Prop.- Reserve - Line 26 - 2013 - 2010"},null,null,null,null,0]
["Sch XI(a)(v)","Loss Triangles - Casualty Non-Proportional",null,{"$f":"\"Cas. Non-Prop.- Reserve - Line 30 - \"&$E$2-5&\" - \"&$E$2-5","v":"Cas. Non-Prop.- Reserve - Line 30 - 2014 - 2014"},null,null,null,null,0]
["Sch XI(a)(v)","Loss Triangles - Casualty Non-Proportional",null,{"$f":"\"Cas. Non-Prop.- Reserve - Line 27 - \"&$E$2-4&\" - \"&$E$2-8","v":"Cas. Non-Prop.- Reserve - Line 27 - 2015 - 2011"},null,null,null,null,0]
["Sch XI(a)(v)","Loss Triangles - Casualty Non-Proportional",null,{"$f":"\"Cas. Non-Prop.- Reserve - Line 27 - \"&$E$2-3&\" - \"&$E$2-8","v":"Cas. Non-Prop.- Reserve - Line 27 - 2016 - 2011"},null,null,null,null,0]
["Sch XI(a)(v)","Loss Triangles - Casualty Non-Proportional",null,{"$f":"\"Cas. Non-Prop.- Reserve - Line 25 - \"&$E$2-2&\" - Prior\"","v":"Cas. Non-Prop.- Reserve - Line 25 - 2017 - Prior"},null,null,null,null,0]
["Sch XI(a)(v)","Loss Triangles - Casualty Non-Proportional",null,{"$f":"\"Cas. Non-Prop.- Reserve - Line 27 - \"&$E$2-1&\" - \"&$E$2-8","v":"Cas. Non-Prop.- Reserve - Line 27 - 2018 - 2011"},null,null,null,null,0]
["Sch XI(a)(v)","Loss Triangles - Casualty Non-Proportional",null,{"$f":"\"Cas. Non-Prop.- Reserve - Line 30 - \"&$E$2-1&\" - \"&$E$2-5","v":"Cas. Non-Prop.- Reserve - Line 30 - 2018 - 2014"},null,null,null,null,0]
["Sch XI(a)(v)","Loss Triangles - Casualty Non-Proportional",null,{"$f":"\"Cas. Non-Prop.- Reserve - Line 29 - \"&$E$2&\" - \"&$E$2-6","v":"Cas. Non-Prop.- Reserve - Line 29 - 2019 - 2013"},null,null,null,null,0]
["Sch XI(a)(v)","Loss Triangles - Casualty Non-Proportional",null,{"$f":"\"Cas. Non-Prop.- Reserve - Line 30 - \"&$E$2&\" - \"&$E$2-5","v":"Cas. Non-Prop.- Reserve - Line 30 - 2019 - 2014"},null,null,null,null,0]
["Sch XI(a)(v)","Loss Triangles - Casualty Non-Proportional",null,{"$f":"\"Cas. Non-Prop.- Reserve - Line 28 - Cat Loss. - \"&$E$2-7","v":"Cas. Non-Prop.- Reserve - Line 28 - Cat Loss. - 2012"},null,null,null,null,0]
["Sch XI(a)(v)","Loss Triangles - Casualty Non-Proportional",null,{"$f":"\"Cas. Non-Prop.- Reserve - Line 31 - Cat Loss. - \"&$E$2-4","v":"Cas. Non-Prop.- Reserve - Line 31 - Cat Loss. - 2015"},null,null,null,null,0]
["Sch XI(a)(v)","Loss Triangles - Casualty Non-Proportional",null,{"$f":"\"Cas. Non-Prop.- GPW - Line 44 - \"&$E$2-3","v":"Cas. Non-Prop.- GPW - Line 44 - 2016"},null,null,null,null,0]
["Sch XI(a)(v)","Loss Triangles - Casualty Non-Proportional",null,{"$f":"\"Cas. Non-Prop.- Gross Premiums Earned - Line 38 - \"&$E$2-9","v":"Cas. Non-Prop.- Gross Premiums Earned - Line 38 - 2010"},null,null,null,null,0]
["Sch XI(a)(v)","Loss Triangles - Casualty Non-Proportional",null,{"$f":"\"Cas. Non-Prop.- Gross Premiums Earned - Line 45 - \"&$E$2-2","v":"Cas. Non-Prop.- Gross Premiums Earned - Line 45 - 2017"},null,null,null,null,0]
["Sch XI(a)(v)","Loss Triangles - Casualty Non-Proportional",null,{"$f":"\"Cas. Non-Prop.- NPW - Line 37 - Prior\"","v":"Cas. Non-Prop.- NPW - Line 37 - Prior"},null,null,null,null,"XXX"]
["Sch XI(a)(v)","Loss Triangles - Casualty Non-Proportional",null,{"$f":"\"Cas. Non-Prop.- NPW - Line 46 - \"&$E$2-1","v":"Cas. Non-Prop.- NPW - Line 46 - 2018"},null,null,null,null,0]
["Sch XI(a)(v)","Loss Triangles - Casualty Non-Proportional",null,{"$f":"\"Cas. Non-Prop.- NPW - Line 47 - \"&$E$2","v":"Cas. Non-Prop.- NPW - Line 47 - 2019"},null,null,null,null,0]
["Sch XI(a)(v)","Loss Triangles - Casualty Non-Proportional",null,{"$f":"\"Cas. Non-Prop.- Net Premiums Earned - Line 45 - \"&$E$2-2","v":"Cas. Non-Prop.- Net Premiums Earned - Line 45 - 2017"},null,null,null,null,0]
["Sch XI(a)(v)","Loss Triangles - Casualty Non-Proportional",null,{"$f":"\"Cas. Non-Prop.- Expenses Paid - Line 41 - \"&$E$2-6","v":"Cas. Non-Prop.- Expenses Paid - Line 41 - 2013"},null,null,null,null,0]
["Sch XI(a)(v)","Loss Triangles - Casualty Non-Proportional",null,{"$f":"\"Cas. Non-Prop.- Expenses Paid - Line 45 - \"&$E$2-2","v":"Cas. Non-Prop.- Expenses Paid - Line 45 - 2017"},null,null,null,null,0]
["Sch XI(a)(v)","Loss Triangles - Casualty Non-Proportional",null,{"$f":"\"Cas. Non-Prop.- Expenses Incurred - Line 43 - \"&$E$2-4","v":"Cas. Non-Prop.- Expenses Incurred - Line 43 - 2015"},null,null,null,null,0]
["Sch XI(a)(v)","Loss Triangles - Casualty Non-Proportional",null,{"$f":"\"Cas. Non-Prop.- Brokerage - Line 39 - \"&$E$2-8","v":"Cas. Non-Prop.- Brokerage - Line 39 - 2011"},null,null,null,null,0]
["Sch XI(a)(v)","Loss Triangles - Casualty Non-Proportional",null,{"$f":"\"Cas. Non-Prop.- Brokerage - Line 42 - \"&$E$2-5","v":"Cas. Non-Prop.- Brokerage - Line 42 - 2014"},null,null,null,null,0]
["Sch XI(a)(v)","Loss Triangles - Casualty Non-Proportional",null,{"$f":"\"Cas. Non-Prop.- G&A - Line 40 - \"&$E$2-7","v":"Cas. Non-Prop.- G&A - Line 40 - 2012"},null,null,null,null,0]
["Sch XI(a)(v)","Loss Triangles - Casualty Non-Proportional",null,{"$f":"\"Cas. Non-Prop.- G&A - Line 45 - \"&$E$2-2","v":"Cas. Non-Prop.- G&A - Line 45 - 2017"},null,null,null,null,0]
["Sch XI(a)(v)","Loss Triangles - Casualty Non-Proportional",null,{"$f":"\"Cas. Non-Prop.- Personnel Costs - Line 40 - \"&$E$2-7","v":"Cas. Non-Prop.- Personnel Costs - Line 40 - 2012"},null,null,null,null,0]
["Sch XI(a)(v)","Loss Triangles - Casualty Non-Proportional",null,{"$f":"\"Cas. Non-Prop.- Personnel Costs - Line 47 - \"&$E$2","v":"Cas. Non-Prop.- Personnel Costs - Line 47 - 2019"},null,null,null,null,0]
["Sch XI(a)(v)","Loss Triangles - Casualty Non-Proportional",null,{"$f":"\"Cas. Non-Prop.- Other Exp. - Line 39 - \"&$E$2-8","v":"Cas. Non-Prop.- Other Exp. - Line 39 - 2011"},null,null,null,null,0]
["Sch XI(a)(v)","Loss Triangles - Casualty Non-Proportional",null,"Casualty Non-Proportional - Note",null,null,null,null,0]
["Sch XI(a)(vi)","Loss Triangles - Financial Lines",null,{"$f":"\"Fin Lines Incurred - Line 2 - \"&$E$2-7&\" - \"&$E$2-9","v":"Fin Lines Incurred - Line 2 - 2012 - 2010"},null,null,null,null,0]
["Sch XI(a)(vi)","Loss Triangles - Financial Lines",null,{"$f":"\"Fin Lines Incurred - Line 1 - \"&$E$2-6&\" - Prior\"","v":"Fin Lines Incurred - Line 1 - 2013 - Prior"},null,null,null,null,0]
["Sch XI(a)(vi)","Loss Triangles - Financial Lines",null,{"$f":"\"Fin Lines Incurred - Line 5 - \"&$E$2-5&\" - \"&$E$2-6","v":"Fin Lines Incurred - Line 5 - 2014 - 2013"},null,null,null,null,0]
["Sch XI(a)(vi)","Loss Triangles - Financial Lines",null,{"$f":"\"Fin Lines Incurred - Line 1 - \"&$E$2-4&\" - Prior\"","v":"Fin Lines Incurred - Line 1 - 2015 - Prior"},null,null,null,null,0]
["Sch XI(a)(vi)","Loss Triangles - Financial Lines",null,{"$f":"\"Fin Lines Incurred - Line 3 - \"&$E$2-3&\" - \"&$E$2-8","v":"Fin Lines Incurred - Line 3 - 2016 - 2011"},null,null,null,null,0]
["Sch XI(a)(vi)","Loss Triangles - Financial Lines",null,{"$f":"\"Fin Lines Incurred - Line 2 - \"&$E$2-2&\" - \"&$E$2-9","v":"Fin Lines Incurred - Line 2 - 2017 - 2010"},null,null,null,null,0]
["Sch XI(a)(vi)","Loss Triangles - Financial Lines",null,{"$f":"\"Fin Lines Incurred - Line 5 - \"&$E$2-2&\" - \"&$E$2-6","v":"Fin Lines Incurred - Line 5 - 2017 - 2013"},null,null,null,null,0]
["Sch XI(a)(vi)","Loss Triangles - Financial Lines",null,{"$f":"\"Fin Lines Incurred - Line 5 - \"&$E$2-1&\" - \"&$E$2-6","v":"Fin Lines Incurred - Line 5 - 2018 - 2013"},null,null,null,null,0]
["Sch XI(a)(vi)","Loss Triangles - Financial Lines",null,{"$f":"\"Fin Lines Incurred - Line 2 - \"&$E$2&\" - \"&$E$2-9","v":"Fin Lines Incurred - Line 2 - 2019 - 2010"},null,null,null,null,0]
["Sch XI(a)(vi)","Loss Triangles - Financial Lines",null,{"$f":"\"Fin Lines Incurred - Line 6 - \"&$E$2&\" - \"&$E$2-5","v":"Fin Lines Incurred - Line 6 - 2019 - 2014"},null,null,null,null,0]
["Sch XI(a)(vi)","Loss Triangles - Financial Lines",null,{"$f":"\"Fin Lines Incurred - Line 2 - Cat Loss. - \"&$E$2-9","v":"Fin Lines Incurred - Line 2 - Cat Loss. - 2010"},null,null,null,null,0]
["Sch XI(a)(vi)","Loss Triangles - Financial Lines",null,{"$f":"\"Fin Lines Incurred - Line 5 - Cat Loss. - \"&$E$2-6","v":"Fin Lines Incurred - Line 5 - Cat Loss. - 2013"},null,null,null,null,0]
["Sch XI(a)(vi)","Loss Triangles - Financial Lines",null,{"$f":"\"Fin Lines Paid - Line 13 - \"&$E$2-8&\" - Prior\"","v":"Fin Lines Paid - Line 13 - 2011 - Prior"},null,null,null,null,0]
["Sch XI(a)(vi)","Loss Triangles - Financial Lines",null,{"$f":"\"Fin Lines Paid - Line 13 - \"&$E$2-6&\" - Prior\"","v":"Fin Lines Paid - Line 13 - 2013 - Prior"},null,null,null,null,0]
["Sch XI(a)(vi)","Loss Triangles - Financial Lines",null,{"$f":"\"Fin Lines Paid - Line 16 - \"&$E$2-6&\" - \"&$E$2-7","v":"Fin Lines Paid - Line 16 - 2013 - 2012"},null,null,null,null,0]
["Sch XI(a)(vi)","Loss Triangles - Financial Lines",null,{"$f":"\"Fin Lines Paid - Line 14 - \"&$E$2-4&\" - \"&$E$2-9","v":"Fin Lines Paid - Line 14 - 2015 - 2010"},null,null,null,null,0]
["Sch XI(a)(vi)","Loss Triangles - Financial Lines",null,{"$f":"\"Fin Lines Paid - Line 17 - \"&$E$2-4&\" - \"&$E$2-6","v":"Fin Lines Paid - Line 17 - 2015 - 2013"},null,null,null,null,0]
["Sch XI(a)(vi)","Loss Triangles - Financial Lines",null,{"$f":"\"Fin Lines Paid - Line 18 - \"&$E$2-3&\" - \"&$E$2-5","v":"Fin Lines Paid - Line 18 - 2016 - 2014"},null,null,null,null,0]
["Sch XI(a)(vi)","Loss Triangles - Financial Lines",null,{"$f":"\"Fin Lines Paid - Line 17 - \"&$E$2-2&\" - \"&$E$2-6","v":"Fin Lines Paid - Line 17 - 2017 - 2013"},null,null,null,null,0]
["Sch XI(a)(vi)","Loss Triangles - Financial Lines",null,{"$f":"\"Fin Lines Paid - Line 20 - \"&$E$2-2&\" - \"&$E$2-3","v":"Fin Lines Paid - Line 20 - 2017 - 2016"},null,null,null,null,0]
["Sch XI(a)(vi)","Loss Triangles - Financial Lines",null,{"$f":"\"Fin Lines Paid - Line 20 - \"&$E$2-1&\" - \"&$E$2-3","v":"Fin Lines Paid - Line 20 - 2018 - 2016"},null,null,null,null,0]
["Sch XI(a)(vi)","Loss Triangles - Financial Lines",null,{"$f":"\"Fin Lines Paid - Line 17 - \"&$E$2&\" - \"&$E$2-6","v":"Fin Lines Paid - Line 17 - 2019 - 2013"},null,null,null,null,0]
["Sch XI(a)(vi)","Loss Triangles - Financial Lines",null,{"$f":"\"Fin Lines Paid - Line 20 - \"&$E$2&\" - \"&$E$2-3","v":"Fin Lines Paid - Line 20 - 2019 - 2016"},null,null,null,null,0]
["Sch XI(a)(vi)","Loss Triangles - Financial Lines",null,{"$f":"\"Fin Lines Paid - Line 16 - Cat Loss. - \"&$E$2-7","v":"Fin Lines Paid - Line 16 - Cat Loss. - 2012"},null,null,null,null,0]
["Sch XI(a)(vi)","Loss Triangles - Financial Lines",null,{"$f":"\"Fin Lines Reserve - Line 25 - \"&$E$2-8&\" - Prior\"","v":"Fin Lines Reserve - Line 25 - 2011 - Prior"},null,null,null,null,0]
["Sch XI(a)(vi)","Loss Triangles - Financial Lines",null,{"$f":"\"Fin Lines Reserve - Line 25 - \"&$E$2-7&\" - Prior\"","v":"Fin Lines Reserve - Line 25 - 2012 - Prior"},null,null,null,null,0]
["Sch XI(a)(vi)","Loss Triangles - Financial Lines",null,{"$f":"\"Fin Lines Reserve - Line 28 - \"&$E$2-6&\" - \"&$E$2-7","v":"Fin Lines Reserve - Line 28 - 2013 - 2012"},null,null,null,null,0]
["Sch XI(a)(vi)","Loss Triangles - Financial Lines",null,{"$f":"\"Fin Lines Reserve - Line 26 - \"&$E$2-5&\" - \"&$E$2-9","v":"Fin Lines Reserve - Line 26 - 2014 - 2010"},null,null,null,null,0]
["Sch XI(a)(vi)","Loss Triangles - Financial Lines",null,{"$f":"\"Fin Lines Reserve - Line 29 - \"&$E$2-4&\" - \"&$E$2-6","v":"Fin Lines Reserve - Line 29 - 2015 - 2013"},null,null,null,null,0]
["Sch XI(a)(vi)","Loss Triangles - Financial Lines",null,{"$f":"\"Fin Lines Reserve - Line 29 - \"&$E$2-3&\" - \"&$E$2-6","v":"Fin Lines Reserve - Line 29 - 2016 - 2013"},null,null,null,null,0]
["Sch XI(a)(vi)","Loss Triangles - Financial Lines",null,{"$f":"\"Fin Lines Reserve - Line 31 - \"&$E$2-3&\" - \"&$E$2-4","v":"Fin Lines Reserve - Line 31 - 2016 - 2015"},null,null,null,null,0]
["Sch XI(a)(vi)","Loss Triangles - Financial Lines",null,{"$f":"\"Fin Lines Reserve - Line 32 - \"&$E$2-2&\" - \"&$E$2-3","v":"Fin Lines Reserve - Line 32 - 2017 - 2016"},null,null,null,null,0]
["Sch XI(a)(vi)","Loss Triangles - Financial Lines",null,{"$f":"\"Fin Lines Reserve - Line 32 - \"&$E$2-1&\" - \"&$E$2-3","v":"Fin Lines Reserve - Line 32 - 2018 - 2016"},null,null,null,null,0]
["Sch XI(a)(vi)","Loss Triangles - Financial Lines",null,{"$f":"\"Fin Lines Reserve - Line 25 - \"&$E$2&\" - Prior\"","v":"Fin Lines Reserve - Line 25 - 2019 - Prior"},null,null,null,null,0]
["Sch XI(a)(vi)","Loss Triangles - Financial Lines",null,{"$f":"\"Fin Lines Reserve - Line 32 - \"&$E$2&\" - \"&$E$2-3","v":"Fin Lines Reserve - Line 32 - 2019 - 2016"},null,null,null,null,0]
["Sch XI(a)(vi)","Loss Triangles - Financial Lines",null,{"$f":"\"Fin Lines Reserve - Line 35 - \"&$E$2&\" - \"&$E$2","v":"Fin Lines Reserve - Line 35 - 2019 - 2019"},null,null,null,null,0]
["Sch XI(a)(vi)","Loss Triangles - Financial Lines",null,{"$f":"\"Fin Lines Reserve - Line 33 - Cat Loss. - \"&$E$2-2","v":"Fin Lines Reserve - Line 33 - Cat Loss. - 2017"},null,null,null,null,0]
["Sch XI(a)(vi)","Loss Triangles - Financial Lines",null,{"$f":"\"Fin Lines GPW - Line 42 - \"&$E$2-5","v":"Fin Lines GPW - Line 42 - 2014"},null,null,null,null,0]
["Sch XI(a)(vi)","Loss Triangles - Financial Lines",null,{"$f":"\"Fin Lines GPW - Line 45 - \"&$E$2-2","v":"Fin Lines GPW - Line 45 - 2017"},null,null,null,null,0]
["Sch XI(a)(vi)","Loss Triangles - Financial Lines",null,{"$f":"\"Fin Lines Gross Premiums Earned - Line 41 - \"&$E$2-6","v":"Fin Lines Gross Premiums Earned - Line 41 - 2013"},null,null,null,null,0]
["Sch XI(a)(vi)","Loss Triangles - Financial Lines",null,{"$f":"\"Fin Lines NPW - Line 39 - \"&$E$2-8","v":"Fin Lines NPW - Line 39 - 2011"},null,null,null,null,0]
["Sch XI(a)(vi)","Loss Triangles - Financial Lines",null,{"$f":"\"Fin Lines NPW - Line 42 - \"&$E$2-5","v":"Fin Lines NPW - Line 42 - 2014"},null,null,null,null,0]
["Sch XI(a)(vi)","Loss Triangles - Financial Lines",null,{"$f":"\"Fin Lines Net Premiums Earned - Line 38 - \"&$E$2-9","v":"Fin Lines Net Premiums Earned - Line 38 - 2010"},null,null,null,null,0]
["Sch XI(a)(vi)","Loss Triangles - Financial Lines",null,{"$f":"\"Fin Lines Net Premiums Earned - Line 41 - \"&$E$2-6","v":"Fin Lines Net Premiums Earned - Line 41 - 2013"},null,null,null,null,0]
["Sch XI(a)(vi)","Loss Triangles - Financial Lines",null,{"$f":"\"Fin Lines Expenses Paid - Line 39 - \"&$E$2-8","v":"Fin Lines Expenses Paid - Line 39 - 2011"},null,null,null,null,0]
["Sch XI(a)(vi)","Loss Triangles - Financial Lines",null,{"$f":"\"Fin Lines Expenses Paid - Line 47 - \"&$E$2","v":"Fin Lines Expenses Paid - Line 47 - 2019"},null,null,null,null,0]
["Sch XI(a)(vi)","Loss Triangles - Financial Lines",null,{"$f":"\"Fin Lines Expenses Incurred - Line 39 - \"&$E$2-8","v":"Fin Lines Expenses Incurred - Line 39 - 2011"},null,null,null,null,0]
["Sch XI(a)(vi)","Loss Triangles - Financial Lines",null,{"$f":"\"Fin Lines Expenses Incurred - Line 46 - \"&$E$2-1","v":"Fin Lines Expenses Incurred - Line 46 - 2018"},null,null,null,null,0]
["Sch XI(a)(vi)","Loss Triangles - Financial Lines",null,{"$f":"\"Fin Lines Brokerage - Line 44 - \"&$E$2-3","v":"Fin Lines Brokerage - Line 44 - 2016"},null,null,null,null,0]
["Sch XI(a)(vi)","Loss Triangles - Financial Lines",null,{"$f":"\"Fin Lines Brokerage - Line 47 - \"&$E$2","v":"Fin Lines Brokerage - Line 47 - 2019"},null,null,null,null,0]
["Sch XI(a)(vi)","Loss Triangles - Financial Lines",null,{"$f":"\"Fin Lines G&A - Line 43 - \"&$E$2-4","v":"Fin Lines G&A - Line 43 - 2015"},null,null,null,null,0]
["Sch XI(a)(vi)","Loss Triangles - Financial Lines",null,{"$f":"\"Fin Lines Personnel Costs - Line 39 - \"&$E$2-8","v":"Fin Lines Personnel Costs - Line 39 - 2011"},null,null,null,null,0]
["Sch XI(a)(vi)","Loss Triangles - Financial Lines",null,{"$f":"\"Fin Lines Personnel Costs - Line 43 - \"&$E$2-4","v":"Fin Lines Personnel Costs - Line 43 - 2015"},null,null,null,null,0]
["Sch XI(a)(vi)","Loss Triangles - Financial Lines",null,{"$f":"\"Fin Lines Other Exp. - Line 41 - \"&$E$2-6","v":"Fin Lines Other Exp. - Line 41 - 2013"},null,null,null,null,0]
["Sch XI(a)(vi)","Loss Triangles - Financial Lines",null,{"$f":"\"Fin Lines Other Exp. - Line 44 - \"&$E$2-3","v":"Fin Lines Other Exp. - Line 44 - 2016"},null,null,null,null,0]
["Sch XI(a)(vii)","Loss Triangles - Other Specialty Lines",null,{"$f":"\"Otr. Special - Incurred - Line 1 - \"&$E$2-8&\" - Prior\"","v":"Otr. Special - Incurred - Line 1 - 2011 - Prior"},null,null,null,null,0]
["Sch XI(a)(vii)","Loss Triangles - Other Specialty Lines",null,{"$f":"\"Otr. Special - Incurred - Line 3 - \"&$E$2-6&\" - \"&$E$2-8","v":"Otr. Special - Incurred - Line 3 - 2013 - 2011"},null,null,null,null,0]
["Sch XI(a)(vii)","Loss Triangles - Other Specialty Lines",null,{"$f":"\"Otr. Special - Incurred - Line 3 - \"&$E$2-5&\" - \"&$E$2-8","v":"Otr. Special - Incurred - Line 3 - 2014 - 2011"},null,null,null,null,0]
["Sch XI(a)(vii)","Loss Triangles - Other Specialty Lines",null,{"$f":"\"Otr. Special - Incurred - Line 3 - \"&$E$2-4&\" - \"&$E$2-8","v":"Otr. Special - Incurred - Line 3 - 2015 - 2011"},null,null,null,null,0]
["Sch XI(a)(vii)","Loss Triangles - Other Specialty Lines",null,{"$f":"\"Otr. Special - Incurred - Line 6 - \"&$E$2-4&\" - \"&$E$2-5","v":"Otr. Special - Incurred - Line 6 - 2015 - 2014"},null,null,null,null,0]
["Sch XI(a)(vii)","Loss Triangles - Other Specialty Lines",null,{"$f":"\"Otr. Special - Incurred - Line 6 - \"&$E$2-3&\" - \"&$E$2-5","v":"Otr. Special - Incurred - Line 6 - 2016 - 2014"},null,null,null,null,0]
["Sch XI(a)(vii)","Loss Triangles - Other Specialty Lines",null,{"$f":"\"Otr. Special - Incurred - Line 7 - \"&$E$2-2&\" - \"&$E$2-4","v":"Otr. Special - Incurred - Line 7 - 2017 - 2015"},null,null,null,null,0]
["Sch XI(a)(vii)","Loss Triangles - Other Specialty Lines",null,{"$f":"\"Otr. Special - Incurred - Line 1 - \"&$E$2-1&\" - Prior\"","v":"Otr. Special - Incurred - Line 1 - 2018 - Prior"},null,null,null,null,0]
["Sch XI(a)(vii)","Loss Triangles - Other Specialty Lines",null,{"$f":"\"Otr. Special - Incurred - Line 8 - \"&$E$2-1&\" - \"&$E$2-3","v":"Otr. Special - Incurred - Line 8 - 2018 - 2016"},null,null,null,null,0]
["Sch XI(a)(vii)","Loss Triangles - Other Specialty Lines",null,{"$f":"\"Otr. Special - Incurred - Line 4 - \"&$E$2&\" - \"&$E$2-7","v":"Otr. Special - Incurred - Line 4 - 2019 - 2012"},null,null,null,null,0]
["Sch XI(a)(vii)","Loss Triangles - Other Specialty Lines",null,{"$f":"\"Otr. Special - Incurred - Line 9 - \"&$E$2&\" - \"&$E$2-2","v":"Otr. Special - Incurred - Line 9 - 2019 - 2017"},null,null,null,null,0]
["Sch XI(a)(vii)","Loss Triangles - Other Specialty Lines",null,{"$f":"\"Otr. Special - Incurred - Line 7 - Cat Loss. - \"&$E$2-4","v":"Otr. Special - Incurred - Line 7 - Cat Loss. - 2015"},null,null,null,null,0]
["Sch XI(a)(vii)","Loss Triangles - Other Specialty Lines",null,{"$f":"\"Otr. Special - Incurred - Line 10 - Cat Loss. - \"&$E$2-1","v":"Otr. Special - Incurred - Line 10 - Cat Loss. - 2018"},null,null,null,null,0]
["Sch XI(a)(vii)","Loss Triangles - Other Specialty Lines",null,{"$f":"\"Otr. Special - Paid - Line 13 - \"&$E$2-7&\" - Prior\"","v":"Otr. Special - Paid - Line 13 - 2012 - Prior"},null,null,null,null,0]
["Sch XI(a)(vii)","Loss Triangles - Other Specialty Lines",null,{"$f":"\"Otr. Special - Paid - Line 13 - \"&$E$2-5&\" - Prior\"","v":"Otr. Special - Paid - Line 13 - 2014 - Prior"},null,null,null,null,0]
["Sch XI(a)(vii)","Loss Triangles - Other Specialty Lines",null,{"$f":"\"Otr. Special - Paid - Line 16 - \"&$E$2-5&\" - \"&$E$2-7","v":"Otr. Special - Paid - Line 16 - 2014 - 2012"},null,null,null,null,0]
["Sch XI(a)(vii)","Loss Triangles - Other Specialty Lines",null,{"$f":"\"Otr. Special - Paid - Line 15 - \"&$E$2-4&\" - \"&$E$2-8","v":"Otr. Special - Paid - Line 15 - 2015 - 2011"},null,null,null,null,0]
["Sch XI(a)(vii)","Loss Triangles - Other Specialty Lines",null,{"$f":"\"Otr. Special - Paid - Line 20 - \"&$E$2-3&\" - \"&$E$2-3","v":"Otr. Special - Paid - Line 20 - 2016 - 2016"},null,null,null,null,0]
["Sch XI(a)(vii)","Loss Triangles - Other Specialty Lines",null,{"$f":"\"Otr. Special - Paid - Line 13 - \"&$E$2-2&\" - Prior\"","v":"Otr. Special - Paid - Line 13 - 2017 - Prior"},null,null,null,null,0]
["Sch XI(a)(vii)","Loss Triangles - Other Specialty Lines",null,{"$f":"\"Otr. Special - Paid - Line 13 - \"&$E$2-1&\" - Prior\"","v":"Otr. Special - Paid - Line 13 - 2018 - Prior"},null,null,null,null,0]
["Sch XI(a)(vii)","Loss Triangles - Other Specialty Lines",null,{"$f":"\"Otr. Special - Paid - Line 16 - \"&$E$2-1&\" - \"&$E$2-7","v":"Otr. Special - Paid - Line 16 - 2018 - 2012"},null,null,null,null,0]
["Sch XI(a)(vii)","Loss Triangles - Other Specialty Lines",null,{"$f":"\"Otr. Special - Paid - Line 13 - \"&$E$2&\" - Prior\"","v":"Otr. Special - Paid - Line 13 - 2019 - Prior"},null,null,null,null,0]
["Sch XI(a)(vii)","Loss Triangles - Other Specialty Lines",null,{"$f":"\"Otr. Special - Paid - Line 22 - \"&$E$2&\" - \"&$E$2-1","v":"Otr. Special - Paid - Line 22 - 2019 - 2018"},null,null,null,null,0]
["Sch XI(a)(vii)","Loss Triangles - Other Specialty Lines",null,{"$f":"\"Otr. Special - Paid - Line 14 - Cat Loss. - \"&$E$2-9","v":"Otr. Special - Paid - Line 14 - Cat Loss. - 2010"},null,null,null,null,0]
["Sch XI(a)(vii)","Loss Triangles - Other Specialty Lines",null,{"$f":"\"Otr. Special - Paid - Line 22 - Cat Loss. - \"&$E$2-1","v":"Otr. Special - Paid - Line 22 - Cat Loss. - 2018"},null,null,null,null,0]
["Sch XI(a)(vii)","Loss Triangles - Other Specialty Lines",null,{"$f":"\"Otr. Special - Reserve - Line 27 - \"&$E$2-7&\" - \"&$E$2-8","v":"Otr. Special - Reserve - Line 27 - 2012 - 2011"},null,null,null,null,0]
["Sch XI(a)(vii)","Loss Triangles - Other Specialty Lines",null,{"$f":"\"Otr. Special - Reserve - Line 28 - \"&$E$2-7&\" - \"&$E$2-7","v":"Otr. Special - Reserve - Line 28 - 2012 - 2012"},null,null,null,null,0]
["Sch XI(a)(vii)","Loss Triangles - Other Specialty Lines",null,{"$f":"\"Otr. Special - Reserve - Line 28 - \"&$E$2-5&\" - \"&$E$2-7","v":"Otr. Special - Reserve - Line 28 - 2014 - 2012"},null,null,null,null,0]
["Sch XI(a)(vii)","Loss Triangles - Other Specialty Lines",null,{"$f":"\"Otr. Special - Reserve - Line 25 - \"&$E$2-4&\" - Prior\"","v":"Otr. Special - Reserve - Line 25 - 2015 - Prior"},null,null,null,null,0]
["Sch XI(a)(vii)","Loss Triangles - Other Specialty Lines",null,{"$f":"\"Otr. Special - Reserve - Line 25 - \"&$E$2-3&\" - Prior\"","v":"Otr. Special - Reserve - Line 25 - 2016 - Prior"},null,null,null,null,0]
["Sch XI(a)(vii)","Loss Triangles - Other Specialty Lines",null,{"$f":"\"Otr. Special - Reserve - Line 28 - \"&$E$2-2&\" - \"&$E$2-7","v":"Otr. Special - Reserve - Line 28 - 2017 - 2012"},null,null,null,null,0]
["Sch XI(a)(vii)","Loss Triangles - Other Specialty Lines",null,{"$f":"\"Otr. Special - Reserve - Line 25 - \"&$E$2-1&\" - Prior\"","v":"Otr. Special - Reserve - Line 25 - 2018 - Prior"},null,null,null,null,0]
["Sch XI(a)(vii)","Loss Triangles - Other Specialty Lines",null,{"$f":"\"Otr. Special - Reserve - Line 28 - \"&$E$2-1&\" - \"&$E$2-7","v":"Otr. Special - Reserve - Line 28 - 2018 - 2012"},null,null,null,null,0]
["Sch XI(a)(vii)","Loss Triangles - Other Specialty Lines",null,{"$f":"\"Otr. Special - Reserve - Line 27 - \"&$E$2&\" - \"&$E$2-8","v":"Otr. Special - Reserve - Line 27 - 2019 - 2011"},null,null,null,null,0]
["Sch XI(a)(vii)","Loss Triangles - Other Specialty Lines",null,{"$f":"\"Otr. Special - Reserve - Line 28 - \"&$E$2&\" - \"&$E$2-7","v":"Otr. Special - Reserve - Line 28 - 2019 - 2012"},null,null,null,null,0]
["Sch XI(a)(vii)","Loss Triangles - Other Specialty Lines",null,{"$f":"\"Otr. Special - Reserve - Line 26 - Cat Loss. - \"&$E$2-9","v":"Otr. Special - Reserve - Line 26 - Cat Loss. - 2010"},null,null,null,null,0]
["Sch XI(a)(vii)","Loss Triangles - Other Specialty Lines",null,{"$f":"\"Otr. Special - Reserve - Line 29 - Cat Loss. - \"&$E$2-6","v":"Otr. Special - Reserve - Line 29 - Cat Loss. - 2013"},null,null,null,null,0]
["Sch XI(a)(vii)","Loss Triangles - Other Specialty Lines",null,{"$f":"\"Otr. Special - GPW - Line 40 - \"&$E$2-7","v":"Otr. Special - GPW - Line 40 - 2012"},null,null,null,null,0]
["Sch XI(a)(vii)","Loss Triangles - Other Specialty Lines",null,{"$f":"\"Otr. Special - GPW - Line 47 - \"&$E$2","v":"Otr. Special - GPW - Line 47 - 2019"},null,null,null,null,0]
["Sch XI(a)(vii)","Loss Triangles - Other Specialty Lines",null,{"$f":"\"Otr. Special - Gross Premiums Earned - Line 43 - \"&$E$2-4","v":"Otr. Special - Gross Premiums Earned - Line 43 - 2015"},null,null,null,null,0]
["Sch XI(a)(vii)","Loss Triangles - Other Specialty Lines",null,{"$f":"\"Otr. Special - Gross Premiums Earned - Line 46 - \"&$E$2-1","v":"Otr. Special - Gross Premiums Earned - Line 46 - 2018"},null,null,null,null,0]
["Sch XI(a)(vii)","Loss Triangles - Other Specialty Lines",null,{"$f":"\"Otr. Special - NPW - Line 44 - \"&$E$2-3","v":"Otr. Special - NPW - Line 44 - 2016"},null,null,null,null,0]
["Sch XI(a)(vii)","Loss Triangles - Other Specialty Lines",null,{"$f":"\"Otr. Special - NPW - Line 45 - \"&$E$2-2","v":"Otr. Special - NPW - Line 45 - 2017"},null,null,null,null,0]
["Sch XI(a)(vii)","Loss Triangles - Other Specialty Lines",null,{"$f":"\"Otr. Special - Net Premiums Earned - Line 43 - \"&$E$2-4","v":"Otr. Special - Net Premiums Earned - Line 43 - 2015"},null,null,null,null,0]
["Sch XI(a)(vii)","Loss Triangles - Other Specialty Lines",null,{"$f":"\"Otr. Special - Expenses Paid - Line 37 - Prior\"","v":"Otr. Special - Expenses Paid - Line 37 - Prior"},null,null,null,null,0]
["Sch XI(a)(vii)","Loss Triangles - Other Specialty Lines",null,{"$f":"\"Otr. Special - Expenses Paid - Line 43 - \"&$E$2-4","v":"Otr. Special - Expenses Paid - Line 43 - 2015"},null,null,null,null,0]
["Sch XI(a)(vii)","Loss Triangles - Other Specialty Lines",null,{"$f":"\"Otr. Special - Expenses Incurred - Line 41 - \"&$E$2-6","v":"Otr. Special - Expenses Incurred - Line 41 - 2013"},null,null,null,null,0]
["Sch XI(a)(vii)","Loss Triangles - Other Specialty Lines",null,{"$f":"\"Otr. Special - Brokerage - Line 37 - Prior\"","v":"Otr. Special - Brokerage - Line 37 - Prior"},null,null,null,null,0]
["Sch XI(a)(vii)","Loss Triangles - Other Specialty Lines",null,{"$f":"\"Otr. Special - Brokerage - Line 40 - \"&$E$2-7","v":"Otr. Special - Brokerage - Line 40 - 2012"},null,null,null,null,0]
["Sch XI(a)(vii)","Loss Triangles - Other Specialty Lines",null,{"$f":"\"Otr. Special - G&A - Line 38 - \"&$E$2-9","v":"Otr. Special - G&A - Line 38 - 2010"},null,null,null,null,0]
["Sch XI(a)(vii)","Loss Triangles - Other Specialty Lines",null,{"$f":"\"Otr. Special - G&A - Line 39 - \"&$E$2-8","v":"Otr. Special - G&A - Line 39 - 2011"},null,null,null,null,0]
["Sch XI(a)(vii)","Loss Triangles - Other Specialty Lines",null,{"$f":"\"Otr. Special - Personnel Costs - Line 37 - Prior\"","v":"Otr. Special - Personnel Costs - Line 37 - Prior"},null,null,null,null,0]
["Sch XI(a)(vii)","Loss Triangles - Other Specialty Lines",null,{"$f":"\"Otr. Special - Personnel Costs - Line 45 - \"&$E$2-2","v":"Otr. Special - Personnel Costs - Line 45 - 2017"},null,null,null,null,0]
["Sch XI(a)(vii)","Loss Triangles - Other Specialty Lines",null,{"$f":"\"Otr. Special - Other Exp. - Line 37 - Prior\"","v":"Otr. Special - Other Exp. - Line 37 - Prior"},null,null,null,null,0]
["Sch XI(a)(vii)","Loss Triangles - Other Specialty Lines",null,{"$f":"\"Otr. Special - Other Exp. - Line 46 - \"&$E$2-1","v":"Otr. Special - Other Exp. - Line 46 - 2018"},null,null,null,null,0]
["Sch XI(a)(viii)","Loss Triangles - Structured/Finite Lines",null,{"$f":"\"Stuct. Lines - Incurred - Line 3 - \"&$E$2-8&\" - \"&$E$2-8","v":"Stuct. Lines - Incurred - Line 3 - 2011 - 2011"},null,null,null,null,0]
["Sch XI(a)(viii)","Loss Triangles - Structured/Finite Lines",null,{"$f":"\"Stuct. Lines - Incurred - Line 3 - \"&$E$2-7&\" - \"&$E$2-8","v":"Stuct. Lines - Incurred - Line 3 - 2012 - 2011"},null,null,null,null,0]
["Sch XI(a)(viii)","Loss Triangles - Structured/Finite Lines",null,{"$f":"\"Stuct. Lines - Incurred - Line 3 - \"&$E$2-5&\" - \"&$E$2-8","v":"Stuct. Lines - Incurred - Line 3 - 2014 - 2011"},null,null,null,null,0]
["Sch XI(a)(viii)","Loss Triangles - Structured/Finite Lines",null,{"$f":"\"Stuct. Lines - Incurred - Line 5 - \"&$E$2-5&\" - \"&$E$2-6","v":"Stuct. Lines - Incurred - Line 5 - 2014 - 2013"},null,null,null,null,0]
["Sch XI(a)(viii)","Loss Triangles - Structured/Finite Lines",null,{"$f":"\"Stuct. Lines - Incurred - Line 1 - \"&$E$2-3&\" - Prior\"","v":"Stuct. Lines - Incurred - Line 1 - 2016 - Prior"},null,null,null,null,0]
["Sch XI(a)(viii)","Loss Triangles - Structured/Finite Lines",null,{"$f":"\"Stuct. Lines - Incurred - Line 8 - \"&$E$2-3&\" - \"&$E$2-3","v":"Stuct. Lines - Incurred - Line 8 - 2016 - 2016"},null,null,null,null,0]
["Sch XI(a)(viii)","Loss Triangles - Structured/Finite Lines",null,{"$f":"\"Stuct. Lines - Incurred - Line 3 - \"&$E$2-2&\" - \"&$E$2-8","v":"Stuct. Lines - Incurred - Line 3 - 2017 - 2011"},null,null,null,null,0]
["Sch XI(a)(viii)","Loss Triangles - Structured/Finite Lines",null,{"$f":"\"Stuct. Lines - Incurred - Line 3 - \"&$E$2-1&\" - \"&$E$2-8","v":"Stuct. Lines - Incurred - Line 3 - 2018 - 2011"},null,null,null,null,0]
["Sch XI(a)(viii)","Loss Triangles - Structured/Finite Lines",null,{"$f":"\"Stuct. Lines - Incurred - Line 10 - \"&$E$2-1&\" - \"&$E$2-1","v":"Stuct. Lines - Incurred - Line 10 - 2018 - 2018"},null,null,null,null,0]
["Sch XI(a)(viii)","Loss Triangles - Structured/Finite Lines",null,{"$f":"\"Stuct. Lines - Incurred - Line 3 - \"&$E$2&\" - \"&$E$2-8","v":"Stuct. Lines - Incurred - Line 3 - 2019 - 2011"},null,null,null,null,0]
["Sch XI(a)(viii)","Loss Triangles - Structured/Finite Lines",null,{"$f":"\"Stuct. Lines - Incurred - Line 2 - Cat Loss. - \"&$E$2-9","v":"Stuct. Lines - Incurred - Line 2 - Cat Loss. - 2010"},null,null,null,null,0]
["Sch XI(a)(viii)","Loss Triangles - Structured/Finite Lines",null,{"$f":"\"Stuct. Lines - Incurred - Line 3 - Cat Loss. - \"&$E$2-8","v":"Stuct. Lines - Incurred - Line 3 - Cat Loss. - 2011"},null,null,null,null,0]
["Sch XI(a)(viii)","Loss Triangles - Structured/Finite Lines",null,{"$f":"\"Stuct. Lines - Paid - Line 13 - \"&$E$2-9&\" - Prior\"","v":"Stuct. Lines - Paid - Line 13 - 2010 - Prior"},null,null,null,null,0]
["Sch XI(a)(viii)","Loss Triangles - Structured/Finite Lines",null,{"$f":"\"Stuct. Lines - Paid - Line 15 - \"&$E$2-7&\" - \"&$E$2-8","v":"Stuct. Lines - Paid - Line 15 - 2012 - 2011"},null,null,null,null,0]
["Sch XI(a)(viii)","Loss Triangles - Structured/Finite Lines",null,{"$f":"\"Stuct. Lines - Paid - Line 14 - \"&$E$2-6&\" - \"&$E$2-9","v":"Stuct. Lines - Paid - Line 14 - 2013 - 2010"},null,null,null,null,0]
["Sch XI(a)(viii)","Loss Triangles - Structured/Finite Lines",null,{"$f":"\"Stuct. Lines - Paid - Line 18 - \"&$E$2-5&\" - \"&$E$2-5","v":"Stuct. Lines - Paid - Line 18 - 2014 - 2014"},null,null,null,null,0]
["Sch XI(a)(viii)","Loss Triangles - Structured/Finite Lines",null,{"$f":"\"Stuct. Lines - Paid - Line 13 - \"&$E$2-3&\" - Prior\"","v":"Stuct. Lines - Paid - Line 13 - 2016 - Prior"},null,null,null,null,0]
["Sch XI(a)(viii)","Loss Triangles - Structured/Finite Lines",null,{"$f":"\"Stuct. Lines - Paid - Line 16 - \"&$E$2-3&\" - \"&$E$2-7","v":"Stuct. Lines - Paid - Line 16 - 2016 - 2012"},null,null,null,null,0]
["Sch XI(a)(viii)","Loss Triangles - Structured/Finite Lines",null,{"$f":"\"Stuct. Lines - Paid - Line 15 - \"&$E$2-2&\" - \"&$E$2-8","v":"Stuct. Lines - Paid - Line 15 - 2017 - 2011"},null,null,null,null,0]
["Sch XI(a)(viii)","Loss Triangles - Structured/Finite Lines",null,{"$f":"\"Stuct. Lines - Paid - Line 18 - \"&$E$2-2&\" - \"&$E$2-5","v":"Stuct. Lines - Paid - Line 18 - 2017 - 2014"},null,null,null,null,0]
["Sch XI(a)(viii)","Loss Triangles - Structured/Finite Lines",null,{"$f":"\"Stuct. Lines - Paid - Line 18 - \"&$E$2-1&\" - \"&$E$2-5","v":"Stuct. Lines - Paid - Line 18 - 2018 - 2014"},null,null,null,null,0]
["Sch XI(a)(viii)","Loss Triangles - Structured/Finite Lines",null,{"$f":"\"Stuct. Lines - Paid - Line 15 - \"&$E$2&\" - \"&$E$2-8","v":"Stuct. Lines - Paid - Line 15 - 2019 - 2011"},null,null,null,null,0]
["Sch XI(a)(viii)","Loss Triangles - Structured/Finite Lines",null,{"$f":"\"Stuct. Lines - Paid - Line 18 - \"&$E$2&\" - \"&$E$2-5","v":"Stuct. Lines - Paid - Line 18 - 2019 - 2014"},null,null,null,null,0]
["Sch XI(a)(viii)","Loss Triangles - Structured/Finite Lines",null,{"$f":"\"Stuct. Lines - Paid - Line 16 - Cat Loss. - \"&$E$2-7","v":"Stuct. Lines - Paid - Line 16 - Cat Loss. - 2012"},null,null,null,null,0]
["Sch XI(a)(viii)","Loss Triangles - Structured/Finite Lines",null,{"$f":"\"Stuct. Lines - Reserve - Line 25 - \"&$E$2-9&\" - Prior\"","v":"Stuct. Lines - Reserve - Line 25 - 2010 - Prior"},null,null,null,null,0]
["Sch XI(a)(viii)","Loss Triangles - Structured/Finite Lines",null,{"$f":"\"Stuct. Lines - Reserve - Line 26 - \"&$E$2-8&\" - \"&$E$2-9","v":"Stuct. Lines - Reserve - Line 26 - 2011 - 2010"},null,null,null,null,0]
["Sch XI(a)(viii)","Loss Triangles - Structured/Finite Lines",null,{"$f":"\"Stuct. Lines - Reserve - Line 26 - \"&$E$2-6&\" - \"&$E$2-9","v":"Stuct. Lines - Reserve - Line 26 - 2013 - 2010"},null,null,null,null,0]
["Sch XI(a)(viii)","Loss Triangles - Structured/Finite Lines",null,{"$f":"\"Stuct. Lines - Reserve - Line 29 - \"&$E$2-6&\" - \"&$E$2-6","v":"Stuct. Lines - Reserve - Line 29 - 2013 - 2013"},null,null,null,null,0]
["Sch XI(a)(viii)","Loss Triangles - Structured/Finite Lines",null,{"$f":"\"Stuct. Lines - Reserve - Line 27 - \"&$E$2-4&\" - \"&$E$2-8","v":"Stuct. Lines - Reserve - Line 27 - 2015 - 2011"},null,null,null,null,0]
["Sch XI(a)(viii)","Loss Triangles - Structured/Finite Lines",null,{"$f":"\"Stuct. Lines - Reserve - Line 27 - \"&$E$2-3&\" - \"&$E$2-8","v":"Stuct. Lines - Reserve - Line 27 - 2016 - 2011"},null,null,null,null,0]
["Sch XI(a)(viii)","Loss Triangles - Structured/Finite Lines",null,{"$f":"\"Stuct. Lines - Reserve - Line 26 - \"&$E$2-2&\" - \"&$E$2-9","v":"Stuct. Lines - Reserve - Line 26 - 2017 - 2010"},null,null,null,null,0]
["Sch XI(a)(viii)","Loss Triangles - Structured/Finite Lines",null,{"$f":"\"Stuct. Lines - Reserve - Line 30 - \"&$E$2-2&\" - \"&$E$2-5","v":"Stuct. Lines - Reserve - Line 30 - 2017 - 2014"},null,null,null,null,0]
["Sch XI(a)(viii)","Loss Triangles - Structured/Finite Lines",null,{"$f":"\"Stuct. Lines - Reserve - Line 30 - \"&$E$2-1&\" - \"&$E$2-5","v":"Stuct. Lines - Reserve - Line 30 - 2018 - 2014"},null,null,null,null,0]
["Sch XI(a)(viii)","Loss Triangles - Structured/Finite Lines",null,{"$f":"\"Stuct. Lines - Reserve - Line 33 - \"&$E$2-1&\" - \"&$E$2-2","v":"Stuct. Lines - Reserve - Line 33 - 2018 - 2017"},null,null,null,null,0]
["Sch XI(a)(viii)","Loss Triangles - Structured/Finite Lines",null,{"$f":"\"Stuct. Lines - Reserve - Line 30 - \"&$E$2&\" - \"&$E$2-5","v":"Stuct. Lines - Reserve - Line 30 - 2019 - 2014"},null,null,null,null,0]
["Sch XI(a)(viii)","Loss Triangles - Structured/Finite Lines",null,{"$f":"\"Stuct. Lines - Reserve - Line 33 - \"&$E$2&\" - \"&$E$2-2","v":"Stuct. Lines - Reserve - Line 33 - 2019 - 2017"},null,null,null,null,0]
["Sch XI(a)(viii)","Loss Triangles - Structured/Finite Lines",null,{"$f":"\"Stuct. Lines - Reserve - Line 31 - Cat Loss. - \"&$E$2-4","v":"Stuct. Lines - Reserve - Line 31 - Cat Loss. - 2015"},null,null,null,null,0]
["Sch XI(a)(viii)","Loss Triangles - Structured/Finite Lines",null,{"$f":"\"Stuct. Lines - GPW - Line 38 - \"&$E$2-9","v":"Stuct. Lines - GPW - Line 38 - 2010"},null,null,null,null,0]
["Sch XI(a)(viii)","Loss Triangles - Structured/Finite Lines",null,{"$f":"\"Stuct. Lines - GPW - Line 43 - \"&$E$2-4","v":"Stuct. Lines - GPW - Line 43 - 2015"},null,null,null,null,0]
["Sch XI(a)(viii)","Loss Triangles - Structured/Finite Lines",null,{"$f":"\"Stuct. Lines - Gross Premiums Earned - Line 39 - \"&$E$2-8","v":"Stuct. Lines - Gross Premiums Earned - Line 39 - 2011"},null,null,null,null,0]
["Sch XI(a)(viii)","Loss Triangles - Structured/Finite Lines",null,{"$f":"\"Stuct. Lines - NPW - Line 37 - Prior\"","v":"Stuct. Lines - NPW - Line 37 - Prior"},null,null,null,null,"XXX"]
["Sch XI(a)(viii)","Loss Triangles - Structured/Finite Lines",null,{"$f":"\"Stuct. Lines - NPW - Line 40 - \"&$E$2-7","v":"Stuct. Lines - NPW - Line 40 - 2012"},null,null,null,null,0]
["Sch XI(a)(viii)","Loss Triangles - Structured/Finite Lines",null,{"$f":"\"Stuct. Lines - NPW - Line 47 - \"&$E$2","v":"Stuct. Lines - NPW - Line 47 - 2019"},null,null,null,null,0]
["Sch XI(a)(viii)","Loss Triangles - Structured/Finite Lines",null,{"$f":"\"Stuct. Lines - Net Premiums Earned - Line 39 - \"&$E$2-8","v":"Stuct. Lines - Net Premiums Earned - Line 39 - 2011"},null,null,null,null,0]
["Sch XI(a)(viii)","Loss Triangles - Structured/Finite Lines",null,{"$f":"\"Stuct. Lines - Net Premiums Earned - Line 46 - \"&$E$2-1","v":"Stuct. Lines - Net Premiums Earned - Line 46 - 2018"},null,null,null,null,0]
["Sch XI(a)(viii)","Loss Triangles - Structured/Finite Lines",null,{"$f":"\"Stuct. Lines - Expenses Paid - Line 45 - \"&$E$2-2","v":"Stuct. Lines - Expenses Paid - Line 45 - 2017"},null,null,null,null,0]
["Sch XI(a)(viii)","Loss Triangles - Structured/Finite Lines",null,{"$f":"\"Stuct. Lines - Expenses Incurred - Line 37 - Prior\"","v":"Stuct. Lines - Expenses Incurred - Line 37 - Prior"},null,null,null,null,0]
["Sch XI(a)(viii)","Loss Triangles - Structured/Finite Lines",null,{"$f":"\"Stuct. Lines - Expenses Incurred - Line 44 - \"&$E$2-3","v":"Stuct. Lines - Expenses Incurred - Line 44 - 2016"},null,null,null,null,0]
["Sch XI(a)(viii)","Loss Triangles - Structured/Finite Lines",null,{"$f":"\"Stuct. Lines - Brokerage - Line 42 - \"&$E$2-5","v":"Stuct. Lines - Brokerage - Line 42 - 2014"},null,null,null,null,0]
["Sch XI(a)(viii)","Loss Triangles - Structured/Finite Lines",null,{"$f":"\"Stuct. Lines - Brokerage - Line 45 - \"&$E$2-2","v":"Stuct. Lines - Brokerage - Line 45 - 2017"},null,null,null,null,0]
["Sch XI(a)(viii)","Loss Triangles - Structured/Finite Lines",null,{"$f":"\"Stuct. Lines - G&A - Line 41 - \"&$E$2-6","v":"Stuct. Lines - G&A - Line 41 - 2013"},null,null,null,null,0]
["Sch XI(a)(viii)","Loss Triangles - Structured/Finite Lines",null,{"$f":"\"Stuct. Lines - G&A - Line 46 - \"&$E$2-1","v":"Stuct. Lines - G&A - Line 46 - 2018"},null,null,null,null,0]
["Sch XI(a)(viii)","Loss Triangles - Structured/Finite Lines",null,{"$f":"\"Stuct. Lines - Personnel Costs - Line 41 - \"&$E$2-6","v":"Stuct. Lines - Personnel Costs - Line 41 - 2013"},null,null,null,null,0]
["Sch XI(a)(viii)","Loss Triangles - Structured/Finite Lines",null,{"$f":"\"Stuct. Lines - Other Exp. - Line 39 - \"&$E$2-8","v":"Stuct. Lines - Other Exp. - Line 39 - 2011"},null,null,null,null,0]
["Sch XI(a)(viii)","Loss Triangles - Structured/Finite Lines",null,{"$f":"\"Stuct. Lines - Other Exp. - Line 42 - \"&$E$2-5","v":"Stuct. Lines - Other Exp. - Line 42 - 2014"},null,null,null,null,0]
[]
["SchXI(bi)","Reserve Rec - Property Castarophe",null,"Cat. - Best Estimate Provision - From CY",null,null,null,null,null,null,null,null,0,null,0]
["SchXI(bii)","Reserve Rec - Property",null,"Property - Best Estimate Provision - Beg. Of Year",null,null,null,null,null,null,null,null,0,null,0]
["SchXI(bii)","Reserve Rec - Property",null,"Property - Best Estimate Provision - From PY",null,null,null,null,null,null,null,null,0,null,0]
["SchXI(biii)","Reserve Rec - Property Non-Proportional",null,"Prop. Non-Prop - Best Estimate Provision - Beg. Of Year",null,null,null,null,null,null,null,null,0,null,0]
["SchXI(biii)","Reserve Rec - Property Non-Proportional",null,"Prop. Non-Prop - Foreign Exchange and Other",null,null,null,null,null,null,null,null,0,null,0]
["SchXI(biv)","Reserve Rec - Casualty",null,"Casualty - Net Losses Incurred - Current Year",null,null,null,null,null,null,null,null,0,null,0]
["SchXI(biv)","Reserve Rec - Casualty",null,"Casualty - Best Estimate Provision - From CY",null,null,null,null,null,null,null,null,0,null,0]
["SchXI(bv)","Reserve Rec - Casualty Non-Proportional",null,"Caus. Non-Prop. - Best Estimate Provision - From PY",null,null,null,null,null,null,null,null,0,null,0]
["SchXI(bvi)","Reserve Rec - Financial Lines",null,"Fin. Lines - Net Loss Paid - Prior Years",null,null,null,null,null,null,null,null,0,null,0]
["SchXI(bvi)","Reserve Rec - Financial Lines",null,"Fin. Lines - Best Estimate Provision - From CY",null,null,null,null,null,null,null,null,0,null,0]
["SchXI(bvii)","Reserve Rec - Other Specialty Lines",null,"Otr. Specialty - Net Loss Paid - Prior Years",null,null,null,null,null,null,null,null,0,null,0]
["SchXI(bvii)","Reserve Rec - Other Specialty Lines",null,"Otr. Specialty - Net Losses Incurred - Current Year",null,null,null,null,null,null,null,null,0,null,0]
["SchXI(bviii)","Reserve Rec - Structured/Finite Lines",null,"Stuct. Lines - Unwind of Discount",null,null,null,null,null,null,null,null,0,null,0]
["SchXI(bviii)","Reserve Rec - Structured/Finite Lines",null,"Stuct. Lines - Best Estimate Provision - End Of Year",null,null,null,null,null,null,null,null,0,null,0]
["Sch XII(a)","Eligible Capital",null,"Tier 1 - 1c Statutory Economic Surplus",null,null,null,null,null,null,null,null,{"$f":"'Form 1EBS'!F167-'Form 8SFS'!O36","v":0}]
["Sch XII(a)","Eligible Capital",null,"Policyholder Obl. - Pledged Asset - Not Collat.",null,null,null,null,null,null,null,null,0]
["Sch XII(a)","Eligible Capital",null,"Tier 1 - Total Capital",null,null,null,null,null,null,null,null,0]
["Sch XII(a)","Eligible Capital",null,"Tier 2 Basic - a. Hybrid Capital Instruments",null,null,null,null,null,null,null,null,0]
["Sch XII(a)","Eligible Capital",null,"Tier 2 - Total Capital",null,null,null,null,null,null,null,null,0]
["Sch XII(a)","Eligible Capital",null,"Tier 3 Ancillary - b. Letters of Credit",null,null,null,null,null,null,null,null,0]
["Sch XII(b)","Eligible Capital - Additional Details",null,"Description of Capital Instrument 2",0]
["Sch XII(b)","Eligible Capital - Additional Details",null,"Description of Capital Instrument 11",0]
["Sch XII(b)","Eligible Capital - Additional Details",null,"Description of Capital Instrument 18",0]
["Sch XII(b)","Eligible Capital - Additional Details",null,"Date of Issue - Instrument 3",0]
["Sch XII(b)","Eligible Capital - Additional Details",null,"Date of Issue - Instrument 11",0]
["Sch XII(b)","Eligible Capital - Additional Details",null,"Date of Issue - Instrument 12",0]
["Sch XII(b)","Eligible Capital - Additional Details",null,"Maturity Date - Instrument 1",0]
["Sch XII(b)","Eligible Capital - Additional Details",null,"Maturity Date - Instrument 4",0]
["Sch XII(b)","Eligible Capital - Additional Details",null,"Maturity Date - Instrument 11",0]
["Sch XII(b)","Eligible Capital - Additional Details",null,"Maturity Date - Instrument 20",0]
["Sch XII(b)","Eligible Capital - Additional Details",null,"Authority Approval Date - Instrument 8",0]
["Sch XII(b)","Eligible Capital - Additional Details",null,"Authority Approval Date - Instrument 11",0]
["Sch XII(b)","Eligible Capital - Additional Details",null,"Authority Approval Date - Instrument 20",0]
["Sch XII(b)","Eligible Capital - Additional Details",null,"Valuation - Instrument 1",0]
["Sch XII(b)","Eligible Capital - Additional Details",null,"Valuation - Instrument 10",0]
["Sch XII(b)","Eligible Capital - Additional Details",null,"Valuation - Instrument 13",0]
["Sch XII(b)","Eligible Capital - Additional Details",null,"Tier - Instrument 1",0]
["Sch XII(b)","Eligible Capital - Additional Details",null,"Tier - Instrument 10",0]
["Sch XII(b)","Eligible Capital - Additional Details",null,"Tier - Instrument 17",0]
["Sch XII(b)","Eligible Capital - Additional Details",null,"Tier - Instrument 20",0]
["Sch XVI","Non-Insurance",null,"Entity Name - 7",null,null,null,null,0]
["Sch XVI","Non-Insurance",null,"Entity Name - 8",null,null,null,null,0]
["Sch XVI","Non-Insurance",null,"Entity Jurisdiction - 2",null,null,null,null,0]
["Sch XVI","Non-Insurance",null,"Entity Jurisdiction - 5",null,null,null,null,0]
["Sch XVI","Non-Insurance",null,"Entity Jurisdiction - 13",null,null,null,null,0]
["Sch XVI","Non-Insurance",null,"Entity Sector - 7",null,null,null,null,"Select"]
["Sch XVI","Non-Insurance",null,"Entity Sector - 14",null,null,null,null,"Select"]
["Sch XVI","Non-Insurance",null,"Entity Strategic Purpose - 2",null,null,null,null,0]
["Sch XVI","Non-Insurance",null,"Entity Strategic Purpose - 11",null,null,null,null,0]
["Sch XVI","Non-Insurance",null,"Entity Strategic Purpose - 12",null,null,null,null,0]
["Sch XVI","Non-Insurance",null,"Entity Type - 4",null,null,null,null,"Select"]
["Sch XVI","Non-Insurance",null,"Entity Type - 14",null,null,null,null,"Select"]
["Sch XVI","Non-Insurance",null,"Entity Product & Services - 2",null,null,null,null,0]
["Sch XVI","Non-Insurance",null,"Entity Product & Services - 11",null,null,null,null,0]
["Sch XVI","Non-Insurance",null,"Entity Participation - 3",null,null,null,null,"Select"]
["Sch XVI","Non-Insurance",null,"Entity Participation - 6",null,null,null,null,"Select"]
["Sch XVI","Non-Insurance",null,"Entity Participation - 13",null,null,null,null,"Select"]
["Sch XVI","Non-Insurance",null,"% Interest in Entity - 7",null,null,null,null,0]
["Sch XVI","Non-Insurance",null,"% Interest in Entity - 11",null,null,null,null,0]
["Sch XVI","Non-Insurance",null,"Total Assets in Entity - 3",null,null,null,null,0]
["Sch XVI","Non-Insurance",null,"Total Assets in Entity - 6",null,null,null,null,0]
["Sch XVI","Non-Insurance",null,"Total Assets in Entity - 15",null,null,null,null,0]
["Sch XVI","Non-Insurance",null,"Investments in Entity - 6",null,null,null,null,0]
["Sch XVI","Non-Insurance",null,"Investments in Entity - 9",null,null,null,null,0]
["Sch XVI","Non-Insurance",null,"Regulatory Capital in Entity - 1",null,null,null,null,0]
["Sch XVI","Non-Insurance",null,"Regulatory Capital in Entity - 4",null,null,null,null,0]
["Sch XVI","Non-Insurance",null,"Regulatory Capital in Entity - 13",null,null,null,null,0]
["Sch XVI","Non-Insurance",null,"RCR 5",null,null,null,null,0]
["Sch XVI","Non-Insurance",null,"RCR 8",null,null,null,null,0]
[]
["Sch XVII","Sovency Analysis",null,"Name of Entity - 6",null,null,null,null,0]
["Sch XVII","Sovency Analysis",null,"Name of Entity - 12",null,null,null,null,0]
["Sch XVII","Sovency Analysis",null,"Name of Entity - 17",null,null,null,null,0]
["Sch XVII","Sovency Analysis",null,"Name of Entity - 20",null,null,null,null,0]
["Sch XVII","Sovency Analysis",null,"Name of Entity - 29",null,null,null,null,0]
["Sch XVII","Sovency Analysis",null,"Jurisdiction of Entity - 6",null,null,null,null,0]
["Sch XVII","Sovency Analysis",null,"Jurisdiction of Entity - 9",null,null,null,null,0]
["Sch XVII","Sovency Analysis",null,"Jurisdiction of Entity - 16",null,null,null,null,0]
["Sch XVII","Sovency Analysis",null,"Jurisdiction of Entity - 23",null,null,null,null,0]
["Sch XVII","Sovency Analysis",null,"Jurisdiction of Entity - 29",null,null,null,null,0]
["Sch XVII","Sovency Analysis",null,"Type of Entity - 6",null,null,null,null,"Select"]
["Sch XVII","Sovency Analysis",null,"Type of Entity - 9",null,null,null,null,"Select"]
["Sch XVII","Sovency Analysis",null,"Type of Entity - 18",null,null,null,null,"Select"]
["Sch XVII","Sovency Analysis",null,"Type of Entity - 25",null,null,null,null,"Select"]
["Sch XVII","Sovency Analysis",null,"Type of Entity - 28",null,null,null,null,"Select"]
["Sch XVII","Sovency Analysis",null,"% Ownership of Entity - 4",null,null,null,null,0]
["Sch XVII","Sovency Analysis",null,"% Ownership of Entity - 15",null,null,null,null,0]
["Sch XVII","Sovency Analysis",null,"% Ownership of Entity - 18",null,null,null,null,0]
["Sch XVII","Sovency Analysis",null,"% Ownership of Entity - 25",null,null,null,null,0]
["Sch XVII","Sovency Analysis",null,"% Ownership of Entity - 28",null,null,null,null,0]
["Sch XVII","Sovency Analysis",null,"GPW of Entity - 7",null,null,null,null,0]
["Sch XVII","Sovency Analysis",null,"GPW of Entity - 11",null,null,null,null,0]
["Sch XVII","Sovency Analysis",null,"GPW of Entity - 18",null,null,null,null,0]
["Sch XVII","Sovency Analysis",null,"GPW of Entity - 25",null,null,null,null,0]
["Sch XVII","Sovency Analysis",null,"NPW of Entity - 3",null,null,null,null,0]
["Sch XVII","Sovency Analysis",null,"NPW of Entity - 6",null,null,null,null,0]
["Sch XVII","Sovency Analysis",null,"NPW of Entity - 13",null,null,null,null,0]
["Sch XVII","Sovency Analysis",null,"NPW of Entity - 16",null,null,null,null,0]
["Sch XVII","Sovency Analysis",null,"NPW of Entity - 28",null,null,null,null,0]
["Sch XVII","Sovency Analysis",null,"Total Assets of Entity - 2",null,null,null,null,0]
["Sch XVII","Sovency Analysis",null,"Total Assets of Entity - 5",null,null,null,null,0]
["Sch XVII","Sovency Analysis",null,"Total Assets of Entity - 12",null,null,null,null,0]
["Sch XVII","Sovency Analysis",null,"Total Assets of Entity - 21",null,null,null,null,0]
["Sch XVII","Sovency Analysis",null,"Total Assets of Entity - 24",null,null,null,null,0]
["Sch XVII","Sovency Analysis",null,"Total Assets",null,null,null,null,0]
["Sch XVII","Sovency Analysis",null,"Net Assets of Entity - 3",null,null,null,null,0]
["Sch XVII","Sovency Analysis",null,"Net Assets of Entity - 11",null,null,null,null,0]
["Sch XVII","Sovency Analysis",null,"Net Assets of Entity - 20",null,null,null,null,0]
["Sch XVII","Sovency Analysis",null,"Net Assets of Entity - 23",null,null,null,null,0]
["Sch XVII","Sovency Analysis",null,"Net Assets of Entity - 30",null,null,null,null,0]
["Sch XVII","Sovency Analysis",null,"Regulatory Capital of Entity - 8",null,null,null,null,0]
["Sch XVII","Sovency Analysis",null,"Regulatory Capital of Entity - 9",null,null,null,null,0]
["Sch XVII","Sovency Analysis",null,"Regulatory Capital of Entity - 20",null,null,null,null,0]
["Sch XVII","Sovency Analysis",null,"Regulatory Capital of Entity - 22",null,null,null,null,0]
["Sch XVII","Sovency Analysis",null,"Regulatory Capital of Entity - 29",null,null,null,null,0]
["Sch XVIII","Ceded Reins",null,"Reinsurer Name - 5",0,null,null,null,null,null,null,null,0]
["Sch XVIII","Ceded Reins",null,"Reinsurer Name - 8",0,null,null,null,null,null,null,null,0]
["Sch XVIII","Ceded Reins",null,"Reinsurer Name - 15",0,null,null,null,null,null,null,null,0]
["Sch XVIII","Ceded Reins",null,"Reinsurer Name - 24",0,null,null,null,null,null,null,null,0]
["Sch XVIII","Ceded Reins",null,"Reinsurer Name - 28",0,null,null,null,null,null,null,null,0]
["Sch XVIII","Ceded Reins",null,"Reinsurer BSCR Rating - 5","Select",null,null,null,null,null,null,null,"Select"]
["Sch XVIII","Ceded Reins",null,"Reinsurer BSCR Rating - 8","Select",null,null,null,null,null,null,null,"Select"]
["Sch XVIII","Ceded Reins",null,"Reinsurer BSCR Rating - 15","Select",null,null,null,null,null,null,null,"Select"]
["Sch XVIII","Ceded Reins",null,"Reinsurer BSCR Rating - 24","Select",null,null,null,null,null,null,null,"Select"]
["Sch XVIII","Ceded Reins",null,"Reinsurer BSCR Rating - 27","Select",null,null,null,null,null,null,null,"Select"]
["Sch XVIII","Ceded Reins",null,"Reinsurer R/I Assets - 4",0,null,null,null,null,null,null,null,0]
["Sch XVIII","Ceded Reins",null,"Reinsurer R/I Assets - 12",0,null,null,null,null,null,null,null,0]
["Sch XVIII","Ceded Reins",null,"Reinsurer R/I Assets - 15",0,null,null,null,null,null,null,null,0]
["Sch XVIII","Ceded Reins",null,"Reinsurer R/I Assets - 24",0,null,null,null,null,null,null,null,0]
["Sch XVIII","Ceded Reins",null,"Reinsurer R/I Assets - 27",0,null,null,null,null,null,null,null,0]
["Sch XVIII","Ceded Reins",null,"Reinsurer R/I Payable - 3",0,null,null,null,null,null,null,null,0]
["Sch XVIII","Ceded Reins",null,"Reinsurer R/I Payable - 12",0,null,null,null,null,null,null,null,0]
["Sch XVIII","Ceded Reins",null,"Reinsurer R/I Payable - 19",0,null,null,null,null,null,null,null,0]
["Sch XVIII","Ceded Reins",null,"Reinsurer R/I Payable - 22",0,null,null,null,null,null,null,null,0]
["Sch XVIII","Ceded Reins",null,"Reinsurer Collateral - 1",0,null,null,null,null,null,null,null,0]
["Sch XVIII","Ceded Reins",null,"Reinsurer Collateral - 2",0,null,null,null,null,null,null,null,0]
["Sch XVIII","Ceded Reins",null,"Reinsurer Collateral - 11",0,null,null,null,null,null,null,null,0]
["Sch XVIII","Ceded Reins",null,"Reinsurer Collateral - 14",0,null,null,null,null,null,null,null,0]
["Sch XVIII","Ceded Reins",null,"Reinsurer Collateral - 21",0,null,null,null,null,null,null,null,0]
["Sch XVIII","Ceded Reins",null,"Reinsurer Collateral - 30",0,null,null,null,null,null,null,null,0]
["Sch XVIII","Ceded Reins",null,"R/I Assets - Exposure by BSCR Rate 0",0,null,null,null,null,null,null,null,0]
["Sch XVIII","Ceded Reins",null,"R/I Assets - Exposure Total",0,null,null,null,null,null,null,null,0]
["Sch XVIII","Ceded Reins",null,"R/I Payable - Exposure by BSCR Rate 7",0,null,null,null,null,null,null,null,0]
["Sch XVIII","Ceded Reins",null,"R/I Payable - Exposure by BSCR Rate 8",0,null,null,null,null,null,null,null,0]
["Sch XVIII","Ceded Reins",null,"Collateral - Exposure by BSCR Rate 6",0,null,null,null,null,null,null,null,0]
["Sch XVIII","Ceded Reins",null,"Collateral - Exposure Total",0,null,null,null,null,null,null,null,0]
["Sch XIX","Cash Counterpart",null,"Name - Counterparty 5",0]
["Sch XIX","Cash Counterpart",null,"Name - Counterparty 11",0]
["Sch XIX","Cash Counterpart",null,"BSCR Rating - Counterparty 2","Select"]
["Sch XIX","Cash Counterpart",null,"BSCR Rating - Counterparty 5","Select"]
["Sch XIX","Cash Counterpart",null,"BSCR Rating - Counterparty 14","Select"]
["Sch XIX","Cash Counterpart",null,"BSCR Rating - Counterparty 15","Select"]
["Sch XIX","Cash Counterpart",null,"Counterparty Value 4",0,null,null,null,null,null,null,null,0]
["Sch XIX","Cash Counterpart",null,"Counterparty Value 11",0,null,null,null,null,null,null,null,0]
["Sch XIX","Cash Counterpart",null,"Counterparty Value 19",0,null,null,null,null,null,null,null,0]
["Sch XIX","Cash Counterpart",null,"Exposure BSCR Rate 2",0,null,null,null,null,null,null,null,0]
[]
["Sch XX","Currency Analysis",null,"Assets - UK £",0,null,null,null,null,null,null,null,0]
["Sch XX","Currency Analysis",null,"Assets - Other 7",0,null,null,null,null,null,null,null,0]
["Sch XX","Currency Analysis",null,"Assets - Other 8",0,null,null,null,null,null,null,null,0]
["Sch XX","Currency Analysis",null,"Hedge Assets - Other 4",0,null,null,null,null,null,null,null,0]
["Sch XX","Currency Analysis",null,"Hedge Assets - Other 9",0,null,null,null,null,null,null,null,0]
["Sch XX","Currency Analysis",null,"Liab. - USD",0,null,null,null,null,null,null,null,0]
["Sch XX","Currency Analysis",null,"Liab. - Other 5",0,null,null,null,null,null,null,null,0]
["Sch XX","Currency Analysis",null,"Hedge Liab. - USD",0,null,null,null,null,null,null,null,0]
["Sch XX","Currency Analysis",null,"Hedge Liab. - CDN",0,null,null,null,null,null,null,null,0]
["Sch XX","Currency Analysis",null,"Hedge Liab. - Other 6",0,null,null,null,null,null,null,null,0]
["Sch XX","Currency Analysis",null,"Liabilities Prior Year 2",null,null,null,null,null,null,null,null,0]
["Sch XXI","Inv Con Risk",null,"# of Exposures",0]
["Sch XXI","Inv Con Risk",null,"Name of Exposure - 7",0]
["Sch XXI","Inv Con Risk",null,"Name of Exposure - 10",0]
["Sch XXI","Inv Con Risk",null,"Name of Exposure - 19",0]
["Sch XXI","Inv Con Risk",null,"Name of Exposure - 26",0]
["Sch XXI","Inv Con Risk",null,"Name of Exposure - 29",0]
["Sch XXI","Inv Con Risk",null,"Name of Exposure - 35",0]
["Sch XXI","Inv Con Risk",null,"Name of Exposure - 40",0]
["Sch XXI","Inv Con Risk",null,"Asset Type - 9","Select",null,null,null,null,null,null,null,"Select"]
["Sch XXI","Inv Con Risk",null,"Asset Type - 16","Select",null,null,null,null,null,null,null,"Select"]
["Sch XXI","Inv Con Risk",null,"Asset Type - 19","Select",null,null,null,null,null,null,null,"Select"]
["Sch XXI","Inv Con Risk",null,"Asset Type - 28","Select",null,null,null,null,null,null,null,"Select"]
["Sch XXI","Inv Con Risk",null,"Asset Type - 35","Select",null,null,null,null,null,null,null,"Select"]
["Sch XXI","Inv Con Risk",null,"Asset Type - 39","Select",null,null,null,null,null,null,null,"Select"]
["Sch XXI","Inv Con Risk",null,"Bond Type - 6","Select",null,null,null,null,null,null,null,"Select"]
["Sch XXI","Inv Con Risk",null,"Bond Type - 9","Select",null,null,null,null,null,null,null,"Select"]
["Sch XXI","Inv Con Risk",null,"Bond Type - 18","Select",null,null,null,null,null,null,null,"Select"]
["Sch XXI","Inv Con Risk",null,"Bond Type - 25","Select",null,null,null,null,null,null,null,"Select"]
["Sch XXI","Inv Con Risk",null,"Bond Type - 28","Select",null,null,null,null,null,null,null,"Select"]
["Sch XXI","Inv Con Risk",null,"Bond Type - 35","Select",null,null,null,null,null,null,null,"Select"]
["Sch XXI","Inv Con Risk",null,"Bond Type - 40","Select",null,null,null,null,null,null,null,"Select"]
["Sch XXI","Inv Con Risk",null,"BSCR Rating - 8","Select",null,null,null,null,null,null,null,"Select"]
["Sch XXI","Inv Con Risk",null,"BSCR Rating - 15","Select",null,null,null,null,null,null,null,"Select"]
["Sch XXI","Inv Con Risk",null,"BSCR Rating - 18","Select",null,null,null,null,null,null,null,"Select"]
["Sch XXI","Inv Con Risk",null,"BSCR Rating - 27","Select",null,null,null,null,null,null,null,"Select"]
["Sch XXI","Inv Con Risk",null,"BSCR Rating - 34","Select",null,null,null,null,null,null,null,"Select"]
["Sch XXI","Inv Con Risk",null,"BSCR Rating - 37","Select",null,null,null,null,null,null,null,"Select"]
["Sch XXI","Inv Con Risk",null,"Asset Value - 8",0,null,null,null,null,null,null,null,0]
["Sch XXI","Inv Con Risk",null,"Asset Value - 14",0,null,null,null,null,null,null,null,0]
["Sch XXI","Inv Con Risk",null,"Asset Value - 17",0,null,null,null,null,null,null,null,0]
["Sch XXI","Inv Con Risk",null,"Asset Value - 24",0,null,null,null,null,null,null,null,0]
["Sch XXI","Inv Con Risk",null,"Asset Value - 27",0,null,null,null,null,null,null,null,0]
["Sch XXI","Inv Con Risk",null,"Asset Value - 34",0,null,null,null,null,null,null,null,0]
["Op Risk","Corp Gov",null,"Corporate Governance Q1",null,null,null,null,0,null,null,null,null,null,null,0]
["Op Risk","Corp Gov",null,"Corporate Governance Q3",null,null,null,null,0]
["Op Risk","Risk Mngt",null,"Risk Management Q5",null,null,null,null,0]
["Op Risk","Indentification",null,"Identification - Info. Systems (Class 4/3B Only)",null,null,null,null,0]
["Op Risk","Measurement",null,"Measurement - HR (Class 4/3B Only)",null,null,null,null,0]
["Op Risk","Response",null,"Response - Fraud (Class 4/3B Only)",null,null,null,null,0]
["Op Risk","Response",null,"Response - Dis. Channels (Class 4/3B Only)",null,null,null,null,0]
["Op Risk","Mont. & Reporting",null,"Mont. & Reporting - Outsourcing (Class 4/3B Only)",null,null,null,null,0]
["Summary",null,null,"Deferred Tax Asset - Loss Carryback Provision",null,null,null,null,null,null,null,null,0]
["Sch IIB","Investments",null,"Corp. Bonds - BSCR Rate 0",null,null,null,null,null,null,null,null,0,null,0]
["Sch IIB","Investments",null,"Corp. Bonds - BSCR Rate 7",null,null,null,null,null,null,null,null,0,null,0]
["Sch IIB","Investments",null,"Residential MBS - BSCR Rate 8",null,null,null,null,null,null,null,null,0,null,0]
["Sch IIB","Investments",null,"Commercial MBS - BSCR Rate 3",null,null,null,null,null,null,null,null,0,null,0]
["Sch IIB","Investments",null,"Bonds Mutual Fund - BSCR Rate 1",null,null,null,null,null,null,null,null,0,null,0]
["Sch IIB","Investments",null,"Bonds Mutual Fund - BSCR Rate 4",null,null,null,null,null,null,null,null,0,null,0]
["Sch IIB","Investments",null,"Long Positions - Before - Strategic Holdings - Listed",null,null,null,null,null,null,null,null,0]
["Sch IIB","Investments",null,"Long Positions - Before - Preferred Stocks, BSCR Rating 6",null,null,null,null,null,null,null,null,0]
["Sch IIB","Investments",null,"Long Positions - Before - Equity Derivatives on Type 1 Equities",null,null,null,null,null,null,null,null,0]
["Sch IIB","Investments",null,"Long Positions - Before - Infrastructure",null,null,null,null,null,null,null,null,0]
["Sch IIB","Investments",null,"Long Positions - After - Preferred Stocks, BSCR Rating 3",null,null,null,null,null,null,null,null,0]
["Sch IIB","Investments",null,"Long Positions - After - Preferred Stocks, BSCR Rating 4",null,null,null,null,null,null,null,null,0]
["Sch IIB","Investments",null,"Long Positions - After - Intangible assets",null,null,null,null,null,null,null,null,0]
["Sch IIB","Investments",null,"Short - Before - Qualified Assets - Strategic Holdings - Listed",null,null,null,null,null,null,null,null,0]
["Sch IIB","Investments",null,"Short - Before - Qualified Assets - Preferred Stocks, BSCR Rating 2",null,null,null,null,null,null,null,null,0]
["Sch IIB","Investments",null,"Short - Before - Qualified Assets - Other Equities",null,null,null,null,null,null,null,null,0]
["Sch IIB","Investments",null,"Short - Before - Qualified Assets - Pension Benefit Surplus",null,null,null,null,null,null,null,null,0]
["Sch IIB","Investments",null,"Short - After - Qualified Assets - Duration Based",null,null,null,null,null,null,null,null,0]
["Sch IIB","Investments",null,"Short - After - Qualified Assets - Preferred Stocks, BSCR Rating 8",null,null,null,null,null,null,null,null,0]
["Sch IIB","Investments",null,"Short - After - Qualified Assets - Strategic Holdings - Unlisted",null,null,null,null,null,null,null,null,0]
["Sch IIB","Investments",null,"Short - After - Qualified Assets - Equity Real Estate 2",null,null,null,null,null,null,null,null,0]
["Sch IIB","Investments",null,"Short - Before - UnQualified Assets - Listed Equity Securities in Developed Markets",null,null,null,null,null,null,null,null,0]
["Sch IIB","Investments",null,"Short - Before - UnQualified Assets - Preferred Stocks, BSCR Rating 7",null,null,null,null,null,null,null,null,0]
["Sch IIB","Investments",null,"Short - Before - UnQualified Assets - Infrastructure",null,null,null,null,null,null,null,null,0]
["Sch IIB","Investments",null,"Short - Before - UnQualified Assets - Equity Real Estate 2",null,null,null,null,null,null,null,null,0]
["Sch IIB","Investments",null,"Short - After - UnQualified Assets - Preferred Stocks, BSCR Rating 4",null,null,null,null,null,null,null,null,0]
["Sch IIB","Investments",null,"Short - After - UnQualified Assets - Strategic Holdings - Unlisted",null,null,null,null,null,null,null,null,0]
["Sch IIB","Investments",null,"Short - After - UnQualified Assets - Equity Derivatives on Type 2 Equities",null,null,null,null,null,null,null,null,0]
["Sch IIB","Investments",null,"Liabilities - Before - W/O Mgmt Actions - Preferred Stocks, BSCR Rating 2",null,null,null,null,null,null,null,null,0]
["Sch IIB","Investments",null,"Liabilities - Before - W/O Mgmt Actions - Preferred Stocks, BSCR Rating 5",null,null,null,null,null,null,null,null,0]
["Sch IIB","Investments",null,"Liabilities - Before - W/O Mgmt Actions - Letters of Credit",null,null,null,null,null,null,null,null,0]
["Sch IIB","Investments",null,"Liabilities - After - W/O Mgmt Actions - Duration Based",null,null,null,null,null,null,null,null,0]
["Sch IIB","Investments",null,"Liabilities - After - W/O Mgmt Actions - Preferred Stocks, BSCR Rating 6",null,null,null,null,null,null,null,null,0]
["Sch IIB","Investments",null,"Liabilities - After - W/O Mgmt Actions - Preferred Stocks, BSCR Rating 7",null,null,null,null,null,null,null,null,0]
["Sch IIB","Investments",null,"Liabilities - After - W/O Mgmt Actions - Equity Real Estate 2",null,null,null,null,null,null,null,null,0]
["Sch IIB","Investments",null,"Liabilities - After - With Mgmt Actions - Strategic Holdings - Listed",null,null,null,null,null,null,null,null,0]
["Sch IIB","Investments",null,"Liabilities - After - With Mgmt Actions - Preferred Stocks, BSCR Rating 7",null,null,null,null,null,null,null,null,0]
["Sch IIB","Investments",null,"Liabilities - After - With Mgmt Actions - Strategic Holdings - Unlisted",null,null,null,null,null,null,null,null,0]
["Sch IIB","Investments",null,"Liabilities - After - With Mgmt Actions - Derivatives on Infrastructure",null,null,null,null,null,null,null,null,0]
["Sch IIB","Investments",null,"Credit Derivatives - Up - Before - Long-Rating 6",null,null,null,null,null,null,null,null,0]
["Sch IIB","Investments",null,"Credit Derivatives - Up - After - Long- Rating 4",null,null,null,null,null,null,null,null,0]
["Sch IIB","Investments",null,"Credit Derivatives - Up - After - Long- Rating 8",null,null,null,null,null,null,null,null,0]
["Sch IIB","Investments",null,"Credit Derivatives - Up - Before - Short- Rating 8",null,null,null,null,null,null,null,null,0]
["Sch IIB","Investments",null,"Credit Derivatives - Up - After - Short- Rating 0",null,null,null,null,null,null,null,null,0]
["Sch IIB","Investments",null,"Credit Derivatives - Down - Before - Long-Rating 0",null,null,null,null,null,null,null,null,0]
["Sch IIB","Investments",null,"Credit Derivatives - Down - Before - Long-Rating 7",null,null,null,null,null,null,null,null,0]
["Sch IIB","Investments",null,"Credit Derivatives - Down - After - Long- Rating 1",null,null,null,null,null,null,null,null,0]
["Sch IIB","Investments",null,"Credit Derivatives - Down - Before - Short- Rating 3",null,null,null,null,null,null,null,null,0]
["Sch IIB","Investments",null,"Credit Derivatives - Down - After - Short- Rating 0",null,null,null,null,null,null,null,null,0]
["Sch IIB","Investments",null,"Credit Derivatives - Down - After - Short- Rating 3",null,null,null,null,null,null,null,null,0]
["Sch IIB","Investments",null,"Counterparty Default Risk - MV of Derivatives - MV Positive - Rating 3",null,null,null,null,null,null,null,null,0]
["Sch IIB","Investments",null,"Counterparty Default Risk - MV of Derivatives - MV Positive - Rating 4",null,null,null,null,null,null,null,null,0]
["Sch IIB","Investments",null,"Counterparty Default Risk - MV of Derivatives - MV Negative - Rating 4",null,null,null,null,null,null,null,null,0]
["Sch IIB","Investments",null,"Counterparty Default Risk - MV of Collateral - Rating 2",null,null,null,null,null,null,null,null,0]
["Sch IIB","Investments",null,"Counterparty Default Risk - MV of Collateral - Rating 8",null,null,null,null,null,null,null,null,0]
["Sch IIB","Investments",null,"NAIC Resid. MBS - Orig. Class 6",null,null,null,null,null,null,null,null,0]
["Sch IIB","Investments",null,"NAIC Resid. MBS - Rev. Class 6",null,null,null,null,null,null,null,null,0]
["Sch IIB","Investments",null,"NAIC Comm. MBS - Orig. Class 2",null,null,null,null,null,null,null,null,0]
["Sch IIB","Investments",null,"NAIC Comm. MBS - Rev. Class 4",null,null,null,null,null,null,null,null,0]
["Sch IIB","Investments",null,"NAIC Comm. MBS - Rev. Class 5",null,null,null,null,null,null,null,null,0]
["Sch IIC","Funds Held",null,"Corp. Bonds - BSCR Rate 5",null,null,null,null,null,null,null,null,0,null,0]
["Sch IIC","Funds Held",null,"Residential MBS - BSCR Rate 2",null,null,null,null,null,null,null,null,0,null,0]
["Sch IIC","Funds Held",null,"Residential MBS - BSCR Rate 8",null,null,null,null,null,null,null,null,0,null,0]
["Sch IIC","Funds Held",null,"Bonds Mutual Fund - BSCR Rate 0",null,null,null,null,null,null,null,null,0,null,0]
["Sch IIC","Funds Held",null,"Bonds Mutual Fund - BSCR Rate 7",null,null,null,null,null,null,null,null,0,null,0]
["Sch IIC","Funds Held",null,"Mortgage Loans - Other Commercial",null,null,null,null,null,null,null,null,0,null,0]
["Sch IIC","Funds Held",null,"Long Positions - Before - Preferred Stocks, BSCR Rating 2",null,null,null,null,null,null,null,null,0]
["Sch IIC","Funds Held",null,"Long Positions - Before - Preferred Stocks, BSCR Rating 5",null,null,null,null,null,null,null,null,0]
["Sch IIC","Funds Held",null,"Long Positions - Before - Pension Benefit Surplus",null,null,null,null,null,null,null,null,0]
["Sch IIC","Funds Held",null,"Long Positions - After - Listed Equity Securities in Developed Markets",null,null,null,null,null,null,null,null,0]
["Sch IIC","Funds Held",null,"Long Positions - After - Preferred Stocks, BSCR Rating 3",null,null,null,null,null,null,null,null,0]
["Sch IIC","Funds Held",null,"Long Positions - After - Letters of Credit",null,null,null,null,null,null,null,null,0]
["Sch IIC","Funds Held",null,"Long Positions - After - Equity Real Estate 2",null,null,null,null,null,null,null,null,0]
["Sch IIC","Funds Held",null,"Short - Before - Qualified Assets - Listed Equity Securities in Developed Markets",null,null,null,null,null,null,null,null,0]
["Sch IIC","Funds Held",null,"Short - Before - Qualified Assets - Preferred Stocks, BSCR Rating 7",null,null,null,null,null,null,null,null,0]
["Sch IIC","Funds Held",null,"Short - Before - Qualified Assets - Other Equities",null,null,null,null,null,null,null,null,0]
["Sch IIC","Funds Held",null,"Short - After - Qualified Assets - Strategic Holdings - Listed",null,null,null,null,null,null,null,null,0]
["Sch IIC","Funds Held",null,"Short - After - Qualified Assets - Preferred Stocks, BSCR Rating 5",null,null,null,null,null,null,null,null,0]
["Sch IIC","Funds Held",null,"Short - After - Qualified Assets - Preferred Stocks, BSCR Rating 8",null,null,null,null,null,null,null,null,0]
["Sch IIC","Funds Held",null,"Short - After - Qualified Assets - Derivatives on Infrastructure",null,null,null,null,null,null,null,null,0]
["Sch IIC","Funds Held",null,"Short - Before - UnQualified Assets - Preferred Stocks, BSCR Rating 2",null,null,null,null,null,null,null,null,0]
["Sch IIC","Funds Held",null,"Short - Before - UnQualified Assets - Preferred Stocks, BSCR Rating 4",null,null,null,null,null,null,null,null,0]
["Sch IIC","Funds Held",null,"Short - Before - UnQualified Assets - Intangible assets",null,null,null,null,null,null,null,null,0]
["Sch IIC","Funds Held",null,"Short - Before - UnQualified Assets - Infrastructure",null,null,null,null,null,null,null,null,0]
["Sch IIC","Funds Held",null,"Short - After - UnQualified Assets - Preferred Stocks, BSCR Rating 3",null,null,null,null,null,null,null,null,0]
["Sch IIC","Funds Held",null,"Short - After - UnQualified Assets - Strategic Holdings - Unlisted",null,null,null,null,null,null,null,null,0]
["Sch IIC","Funds Held",null,"Short - After - UnQualified Assets - Intangible assets",null,null,null,null,null,null,null,null,0]
["Sch IIC","Funds Held",null,"Liabilities - Before - W/O Mgmt Actions - Strategic Holdings - Listed",null,null,null,null,null,null,null,null,0]
["Sch IIC","Funds Held",null,"Liabilities - Before - W/O Mgmt Actions - Preferred Stocks, BSCR Rating 8",null,null,null,null,null,null,null,null,0]
["Sch IIC","Funds Held",null,"Liabilities - Before - W/O Mgmt Actions - Other Equities",null,null,null,null,null,null,null,null,0]
["Sch IIC","Funds Held",null,"Liabilities - Before - W/O Mgmt Actions - Equity Real Estate 1",null,null,null,null,null,null,null,null,0]
["Sch IIC","Funds Held",null,"Liabilities - After - W/O Mgmt Actions - Duration Based",null,null,null,null,null,null,null,null,0]
["Sch IIC","Funds Held",null,"Liabilities - After - W/O Mgmt Actions - Preferred Stocks, BSCR Rating 8",null,null,null,null,null,null,null,null,0]
["Sch IIC","Funds Held",null,"Liabilities - After - W/O Mgmt Actions - Equity Derivatives on Type 2 Equities",null,null,null,null,null,null,null,null,0]
["Sch IIC","Funds Held",null,"Liabilities - After - W/O Mgmt Actions - Equity Real Estate 1",null,null,null,null,null,null,null,null,0]
["Sch IIC","Funds Held",null,"Liabilities - After - With Mgmt Actions - Preferred Stocks, BSCR Rating 5",null,null,null,null,null,null,null,null,0]
["Sch IIC","Funds Held",null,"Liabilities - After - With Mgmt Actions - Intangible assets",null,null,null,null,null,null,null,null,0]
["Sch IIC","Funds Held",null,"Liabilities - After - With Mgmt Actions - Infrastructure",null,null,null,null,null,null,null,null,0]
["Sch IIC","Funds Held",null,"Credit Derivatives - Up - Before - Long-Rating 3",null,null,null,null,null,null,null,null,0]
["Sch IIC","Funds Held",null,"Credit Derivatives - Up - Before - Long-Rating 6",null,null,null,null,null,null,null,null,0]
["Sch IIC","Funds Held",null,"Credit Derivatives - Up - After - Long- Rating 4",null,null,null,null,null,null,null,null,0]
["Sch IIC","Funds Held",null,"Credit Derivatives - Up - Before - Short- Rating 4",null,null,null,null,null,null,null,null,0]
["Sch IIC","Funds Held",null,"Credit Derivatives - Up - After - Short- Rating 2",null,null,null,null,null,null,null,null,0]
["Sch IIC","Funds Held",null,"Credit Derivatives - Up - After - Short- Rating 6",null,null,null,null,null,null,null,null,0]
["Sch IIC","Funds Held",null,"Credit Derivatives - Down - Before - Long-Rating 6",null,null,null,null,null,null,null,null,0]
["Sch IIC","Funds Held",null,"Credit Derivatives - Down - After - Long- Rating 0",null,null,null,null,null,null,null,null,0]
["Sch IIC","Funds Held",null,"Credit Derivatives - Down - After - Long- Rating 7",null,null,null,null,null,null,null,null,0]
["Sch IIC","Funds Held",null,"Credit Derivatives - Down - Before - Short- Rating 1",null,null,null,null,null,null,null,null,0]
["Sch IIC","Funds Held",null,"Credit Derivatives - Down - Before - Short- Rating 8",null,null,null,null,null,null,null,null,0]
["Sch IIC","Funds Held",null,"Credit Derivatives - Down - After - Short- Rating 7",null,null,null,null,null,null,null,null,0]
["Sch IIC","Funds Held",null,"Counterparty Default Risk - MV of Derivatives - MV Positive - Rating 3",null,null,null,null,null,null,null,null,0]
["Sch IIC","Funds Held",null,"Counterparty Default Risk - MV of Derivatives - MV Negative - Rating 1",null,null,null,null,null,null,null,null,0]
["Sch IIC","Funds Held",null,"Counterparty Default Risk - MV of Collateral - Rating 1",null,null,null,null,null,null,null,null,0]
["Sch IIC","Funds Held",null,"Counterparty Default Risk - MV of Collateral - Rating 4",null,null,null,null,null,null,null,null,0]
["Sch IID","Segregated Acc",null,"Corp. Bonds - BSCR Rate 0",null,null,null,null,null,null,null,null,0]
["Sch IID","Segregated Acc",null,"Corp. Bonds - BSCR Rate 3",null,null,null,null,null,null,null,null,0]
["Sch IID","Segregated Acc",null,"Liabilities Supported by Corp. Bonds - BSCR Rate 1",null,null,null,null,null,null,null,null,0]
["Sch IID","Segregated Acc",null,"Residential MBS - BSCR Rate 3",null,null,null,null,null,null,null,null,0]
["Sch IID","Segregated Acc",null,"Residential MBS - BSCR Rate 6",null,null,null,null,null,null,null,null,0]
["Sch IID","Segregated Acc",null,"Liabilities Supported by Residential MBS - BSCR Rate 5",null,null,null,null,null,null,null,null,0]
["Sch IID","Segregated Acc",null,"Commercial MBS - BSCR Rate 6",null,null,null,null,null,null,null,null,0]
["Sch IID","Segregated Acc",null,"Commercial MBS - BSCR Rate 7",null,null,null,null,null,null,null,null,0]
["Sch IID","Segregated Acc",null,"Liabilities Supported by Commercial MBS - BSCR Rate 8",null,null,null,null,null,null,null,null,0]
["Sch IID","Segregated Acc",null,"Bonds Mutual Fund - BSCR Rate 4",null,null,null,null,null,null,null,null,0]
["Sch IID","Segregated Acc",null,"Liabilities Supported by Bonds Mutual Fund - BSCR Rate 1",null,null,null,null,null,null,null,null,0]
["Sch IID","Segregated Acc",null,"Mortgage Loans - Other Commercial",null,null,null,null,null,null,null,null,0]
["Sch IID","Segregated Acc",null,"Liabilities Supported by Mortgage Loans - Insured",null,null,null,null,null,null,null,null,0]
["Sch IID","Segregated Acc",null,"Long Positions - Before - Preferred Stocks, BSCR Rating 1",null,null,null,null,null,null,null,null,0]
["Sch IID","Segregated Acc",null,"Long Positions - Before - Strategic Holdings - Unlisted",null,null,null,null,null,null,null,null,0]
["Sch IID","Segregated Acc",null,"Long Positions - Before - Other Equities",null,null,null,null,null,null,null,null,0]
["Sch IID","Segregated Acc",null,"Long Positions - Before - Derivatives on Infrastructure",null,null,null,null,null,null,null,null,0]
["Sch IID","Segregated Acc",null,"Long Positions - After - Preferred Stocks, BSCR Rating 2",null,null,null,null,null,null,null,null,0]
["Sch IID","Segregated Acc",null,"Long Positions - After - Equity Derivatives on Type 1 Equities",null,null,null,null,null,null,null,null,0]
["Sch IID","Segregated Acc",null,"Long Positions - After - Equity Real Estate 1",null,null,null,null,null,null,null,null,0]
["Sch IID","Segregated Acc",null,"Short - Before - Qualified Assets - Preferred Stocks, BSCR Rating 3",null,null,null,null,null,null,null,null,0]
["Sch IID","Segregated Acc",null,"Short - Before - Qualified Assets - Preferred Stocks, BSCR Rating 6",null,null,null,null,null,null,null,null,0]
["Sch IID","Segregated Acc",null,"Short - Before - Qualified Assets - Equity Derivatives on Type 2 Equities",null,null,null,null,null,null,null,null,0]
["Sch IID","Segregated Acc",null,"Short - After - Qualified Assets - Duration Based",null,null,null,null,null,null,null,null,0]
["Sch IID","Segregated Acc",null,"Short - After - Qualified Assets - Preferred Stocks, BSCR Rating 4",null,null,null,null,null,null,null,null,0]
["Sch IID","Segregated Acc",null,"Short - After - Qualified Assets - Preferred Stocks, BSCR Rating 7",null,null,null,null,null,null,null,null,0]
["Sch IID","Segregated Acc",null,"Short - After - Qualified Assets - Pension Benefit Surplus",null,null,null,null,null,null,null,null,0]
["Sch IID","Segregated Acc",null,"Short - Before - UnQualified Assets - Preferred Stocks, BSCR Rating 1",null,null,null,null,null,null,null,null,0]
["Sch IID","Segregated Acc",null,"Short - Before - UnQualified Assets - Preferred Stocks, BSCR Rating 8",null,null,null,null,null,null,null,null,0]
["Sch IID","Segregated Acc",null,"Short - Before - UnQualified Assets - Other Equities",null,null,null,null,null,null,null,null,0]
["Sch IID","Segregated Acc",null,"Short - After - UnQualified Assets - Duration Based",null,null,null,null,null,null,null,null,0]
["Sch IID","Segregated Acc",null,"Short - After - UnQualified Assets - Listed Equity Securities in Developed Markets",null,null,null,null,null,null,null,null,0]
["Sch IID","Segregated Acc",null,"Short - After - UnQualified Assets - Equity Derivatives on Type 1 Equities",null,null,null,null,null,null,null,null,0]
["Sch IID","Segregated Acc",null,"Short - After - UnQualified Assets - Letters of Credit",null,null,null,null,null,null,null,null,0]
["Sch IID","Segregated Acc",null,"Short - After - UnQualified Assets - Equity Real Estate 2",null,null,null,null,null,null,null,null,0]
["Sch IID","Segregated Acc",null,"Liabilities - Before - W/O Mgmt Actions - Preferred Stocks, BSCR Rating 6",null,null,null,null,null,null,null,null,0]
["Sch IID","Segregated Acc",null,"Liabilities - Before - W/O Mgmt Actions - Other Equities",null,null,null,null,null,null,null,null,0]
["Sch IID","Segregated Acc",null,"Liabilities - Before - W/O Mgmt Actions - Derivatives on Infrastructure",null,null,null,null,null,null,null,null,0]
["Sch IID","Segregated Acc",null,"Liabilities - After - W/O Mgmt Actions - Preferred Stocks, BSCR Rating 4",null,null,null,null,null,null,null,null,0]
["Sch IID","Segregated Acc",null,"Liabilities - After - W/O Mgmt Actions - Preferred Stocks, BSCR Rating 5",null,null,null,null,null,null,null,null,0]
["Sch IID","Segregated Acc",null,"Liabilities - After - W/O Mgmt Actions - Pension Benefit Surplus",null,null,null,null,null,null,null,null,0]
["Sch IID","Segregated Acc",null,"Liabilities - After - With Mgmt Actions - Duration Based",null,null,null,null,null,null,null,null,0]
["Sch IID","Segregated Acc",null,"Liabilities - After - With Mgmt Actions - Preferred Stocks, BSCR Rating 2",null,null,null,null,null,null,null,null,0]
["Sch IID","Segregated Acc",null,"Liabilities - After - With Mgmt Actions - Other Equities",null,null,null,null,null,null,null,null,0]
["Sch IID","Segregated Acc",null,"Liabilities - After - With Mgmt Actions - Equity Real Estate 2",null,null,null,null,null,null,null,null,0]
["Sch IID","Segregated Acc",null,"Credit Derivatives - Up - Before - Long-Rating 2",null,null,null,null,null,null,null,null,0]
["Sch IID","Segregated Acc",null,"Credit Derivatives - Up - After - Long- Rating 2",null,null,null,null,null,null,null,null,0]
["Sch IID","Segregated Acc",null,"Credit Derivatives - Up - After - Long- Rating 3",null,null,null,null,null,null,null,null,0]
["Sch IID","Segregated Acc",null,"Credit Derivatives - Up - Before - Short- Rating 3",null,null,null,null,null,null,null,null,0]
["Sch IID","Segregated Acc",null,"Credit Derivatives - Up - After - Short- Rating 1",null,null,null,null,null,null,null,null,0]
["Sch IID","Segregated Acc",null,"Credit Derivatives - Up - After - Short- Rating 5",null,null,null,null,null,null,null,null,0]
["Sch IID","Segregated Acc",null,"Credit Derivatives - Down - Before - Long-Rating 5",null,null,null,null,null,null,null,null,0]
["Sch IID","Segregated Acc",null,"Credit Derivatives - Down - After - Long- Rating 3",null,null,null,null,null,null,null,null,0]
["Sch IID","Segregated Acc",null,"Credit Derivatives - Down - After - Long- Rating 6",null,null,null,null,null,null,null,null,0]
["Sch IID","Segregated Acc",null,"Credit Derivatives - Down - Before - Short- Rating 6",null,null,null,null,null,null,null,null,0]
["Sch IID","Segregated Acc",null,"Credit Derivatives - Down - Before - Short- Rating 7",null,null,null,null,null,null,null,null,0]
["Sch IID","Segregated Acc",null,"Credit Derivatives - Down - After - Short- Rating 7",null,null,null,null,null,null,null,null,0]
["Sch IID","Segregated Acc",null,"Counterparty Default Risk - MV of Derivatives - MV Positive - Rating 1",null,null,null,null,null,null,null,null,0]
["Sch IID","Segregated Acc",null,"Counterparty Default Risk - MV of Derivatives - MV Negative - Rating 0",null,null,null,null,null,null,null,null,0]
["Sch IID","Segregated Acc",null,"Counterparty Default Risk - MV of Collateral - Rating 0",null,null,null,null,null,null,null,null,0]
["Sch IID","Segregated Acc",null,"Counterparty Default Risk - MV of Collateral - Rating 7",null,null,null,null,null,null,null,null,0]
[]
["Sch IIE","Deposits",null,"Corp. Bonds - BSCR Rate 6",null,null,null,null,null,null,null,null,0,null,0]
["Sch IIE","Deposits",null,"Residential MBS - BSCR Rate 1",null,null,null,null,null,null,null,null,0,null,0]
["Sch IIE","Deposits",null,"Residential MBS - BSCR Rate 8",null,null,null,null,null,null,null,null,0,null,0]
["Sch IIE","Deposits",null,"Bonds Mutual Fund - BSCR Rate 1",null,null,null,null,null,null,null,null,0,null,0]
["Sch IIE","Deposits",null,"Bonds Mutual Fund - BSCR Rate 4",null,null,null,null,null,null,null,null,0,null,0]
["Sch IIE","Deposits",null,"Long Positions - Before - Strategic Holdings - Listed",null,null,null,null,null,null,null,null,0]
["Sch IIE","Deposits",null,"Long Positions - Before - Preferred Stocks, BSCR Rating 5",null,null,null,null,null,null,null,null,0]
["Sch IIE","Deposits",null,"Long Positions - Before - Preferred Stocks, BSCR Rating 8",null,null,null,null,null,null,null,null,0]
["Sch IIE","Deposits",null,"Long Positions - Before - Equity Derivatives on Type 2 Equities",null,null,null,null,null,null,null,null,0]
["Sch IIE","Deposits",null,"Long Positions - After - Preferred Stocks, BSCR Rating 2",null,null,null,null,null,null,null,null,0]
["Sch IIE","Deposits",null,"Long Positions - After - Preferred Stocks, BSCR Rating 6",null,null,null,null,null,null,null,null,0]
["Sch IIE","Deposits",null,"Long Positions - After - Intangible assets",null,null,null,null,null,null,null,null,0]
["Sch IIE","Deposits",null,"Long Positions - After - Infrastructure",null,null,null,null,null,null,null,null,0]
["Sch IIE","Deposits",null,"Short - Before - Qualified Assets - Preferred Stocks, BSCR Rating 1",null,null,null,null,null,null,null,null,0]
["Sch IIE","Deposits",null,"Short - Before - Qualified Assets - Strategic Holdings - Unlisted",null,null,null,null,null,null,null,null,0]
["Sch IIE","Deposits",null,"Short - Before - Qualified Assets - Intangible assets",null,null,null,null,null,null,null,null,0]
["Sch IIE","Deposits",null,"Short - After - Qualified Assets - Duration Based",null,null,null,null,null,null,null,null,0]
["Sch IIE","Deposits",null,"Short - After - Qualified Assets - Preferred Stocks, BSCR Rating 2",null,null,null,null,null,null,null,null,0]
["Sch IIE","Deposits",null,"Short - After - Qualified Assets - Other Equities",null,null,null,null,null,null,null,null,0]
["Sch IIE","Deposits",null,"Short - After - Qualified Assets - Equity Real Estate 1",null,null,null,null,null,null,null,null,0]
["Sch IIE","Deposits",null,"Short - Before - UnQualified Assets - Duration Based",null,null,null,null,null,null,null,null,0]
["Sch IIE","Deposits",null,"Short - Before - UnQualified Assets - Preferred Stocks, BSCR Rating 6",null,null,null,null,null,null,null,null,0]
["Sch IIE","Deposits",null,"Short - Before - UnQualified Assets - Equity Derivatives on Type 2 Equities",null,null,null,null,null,null,null,null,0]
["Sch IIE","Deposits",null,"Short - After - UnQualified Assets - Duration Based",null,null,null,null,null,null,null,null,0]
["Sch IIE","Deposits",null,"Short - After - UnQualified Assets - Preferred Stocks, BSCR Rating 4",null,null,null,null,null,null,null,null,0]
["Sch IIE","Deposits",null,"Short - After - UnQualified Assets - Preferred Stocks, BSCR Rating 7",null,null,null,null,null,null,null,null,0]
["Sch IIE","Deposits",null,"Short - After - UnQualified Assets - Infrastructure",null,null,null,null,null,null,null,null,0]
["Sch IIE","Deposits",null,"Liabilities - Before - W/O Mgmt Actions - Preferred Stocks, BSCR Rating 1",null,null,null,null,null,null,null,null,0]
["Sch IIE","Deposits",null,"Liabilities - Before - W/O Mgmt Actions - Preferred Stocks, BSCR Rating 4",null,null,null,null,null,null,null,null,0]
["Sch IIE","Deposits",null,"Liabilities - Before - W/O Mgmt Actions - Other Equities",null,null,null,null,null,null,null,null,0]
["Sch IIE","Deposits",null,"Liabilities - Before - W/O Mgmt Actions - Equity Real Estate 1",null,null,null,null,null,null,null,null,0]
["Sch IIE","Deposits",null,"Liabilities - After - W/O Mgmt Actions - Preferred Stocks, BSCR Rating 2",null,null,null,null,null,null,null,null,0]
["Sch IIE","Deposits",null,"Liabilities - After - W/O Mgmt Actions - Equity Derivatives on Type 1 Equities",null,null,null,null,null,null,null,null,0]
["Sch IIE","Deposits",null,"Liabilities - After - W/O Mgmt Actions - Letters of Credit",null,null,null,null,null,null,null,null,0]
["Sch IIE","Deposits",null,"Liabilities - After - W/O Mgmt Actions - Equity Real Estate 2",null,null,null,null,null,null,null,null,0]
["Sch IIE","Deposits",null,"Liabilities - After - With Mgmt Actions - Preferred Stocks, BSCR Rating 6",null,null,null,null,null,null,null,null,0]
["Sch IIE","Deposits",null,"Liabilities - After - With Mgmt Actions - Equity Derivatives on Type 1 Equities",null,null,null,null,null,null,null,null,0]
["Sch IIE","Deposits",null,"Liabilities - After - With Mgmt Actions - Equity Derivatives on Type 2 Equities",null,null,null,null,null,null,null,null,0]
["Sch IIE","Deposits",null,"Credit Derivatives - Up - Before - Long-Rating 6",null,null,null,null,null,null,null,null,0]
["Sch IIE","Deposits",null,"Credit Derivatives - Up - After - Long- Rating 0",null,null,null,null,null,null,null,null,0]
["Sch IIE","Deposits",null,"Credit Derivatives - Up - After - Long- Rating 7",null,null,null,null,null,null,null,null,0]
["Sch IIE","Deposits",null,"Credit Derivatives - Up - Before - Short- Rating 1",null,null,null,null,null,null,null,null,0]
["Sch IIE","Deposits",null,"Credit Derivatives - Up - Before - Short- Rating 8",null,null,null,null,null,null,null,null,0]
["Sch IIE","Deposits",null,"Credit Derivatives - Up - After - Short- Rating 5",null,null,null,null,null,null,null,null,0]
["Sch IIE","Deposits",null,"Credit Derivatives - Down - Before - Long-Rating 3",null,null,null,null,null,null,null,null,0]
["Sch IIE","Deposits",null,"Credit Derivatives - Down - After - Long- Rating 1",null,null,null,null,null,null,null,null,0]
["Sch IIE","Deposits",null,"Credit Derivatives - Down - Before - Short- Rating 1",null,null,null,null,null,null,null,null,0]
["Sch IIE","Deposits",null,"Credit Derivatives - Down - Before - Short- Rating 2",null,null,null,null,null,null,null,null,0]
["Sch IIE","Deposits",null,"Credit Derivatives - Down - After - Short- Rating 2",null,null,null,null,null,null,null,null,0]
["Sch IIE","Deposits",null,"Credit Derivatives - Down - After - Short- Rating 5",null,null,null,null,null,null,null,null,0]
["Sch IIE","Deposits",null,"Counterparty Default Risk - MV of Derivatives - MV Positive - Rating 8",null,null,null,null,null,null,null,null,0]
["Sch IIE","Deposits",null,"Counterparty Default Risk - MV of Derivatives - MV Negative - Rating 4",null,null,null,null,null,null,null,null,0]
["Sch IIE","Deposits",null,"Counterparty Default Risk - MV of Derivatives - MV Negative - Rating 7",null,null,null,null,null,null,null,null,0]
["Sch IIE","Deposits",null,"Counterparty Default Risk - MV of Collateral - Rating 5",null,null,null,null,null,null,null,null,0]
["Sch IIF","Other Sundry",null,"Corp. Bonds - BSCR Rate 3",null,null,null,null,null,null,null,null,0,null,0]
["Sch IIF","Other Sundry",null,"Corp. Bonds - BSCR Rate 4",null,null,null,null,null,null,null,null,0,null,0]
["Sch IIF","Other Sundry",null,"Residential MBS - BSCR Rate 5",null,null,null,null,null,null,null,null,0,null,0]
["Sch IIF","Other Sundry",null,"Residential MBS - BSCR Rate 8",null,null,null,null,null,null,null,null,0,null,0]
["Sch IIF","Other Sundry",null,"Commercial MBS - BSCR Rate 8",null,null,null,null,null,null,null,null,0,null,0]
["Sch IIF","Other Sundry",null,"Bonds Mutual Fund - BSCR Rate 8",null,null,null,null,null,null,null,null,0,null,0]
["Sch IIF","Other Sundry",null,"Mortgage Loans - Other Residential",null,null,null,null,null,null,null,null,0,null,0]
["Sch IIF","Other Sundry",null,"Long Positions - Before - Preferred Stocks, BSCR Rating 3",null,null,null,null,null,null,null,null,0]
["Sch IIF","Other Sundry",null,"Long Positions - Before - Letters of Credit",null,null,null,null,null,null,null,null,0]
["Sch IIF","Other Sundry",null,"Long Positions - Before - Intangible assets",null,null,null,null,null,null,null,null,0]
["Sch IIF","Other Sundry",null,"Long Positions - After - Preferred Stocks, BSCR Rating 2",null,null,null,null,null,null,null,null,0]
["Sch IIF","Other Sundry",null,"Long Positions - After - Preferred Stocks, BSCR Rating 4",null,null,null,null,null,null,null,null,0]
["Sch IIF","Other Sundry",null,"Long Positions - After - Other Equities",null,null,null,null,null,null,null,null,0]
["Sch IIF","Other Sundry",null,"Short - Before - Qualified Assets - Strategic Holdings - Listed",null,null,null,null,null,null,null,null,0]
["Sch IIF","Other Sundry",null,"Short - Before - Qualified Assets - Preferred Stocks, BSCR Rating 5",null,null,null,null,null,null,null,null,0]
["Sch IIF","Other Sundry",null,"Short - Before - Qualified Assets - Preferred Stocks, BSCR Rating 8",null,null,null,null,null,null,null,null,0]
["Sch IIF","Other Sundry",null,"Short - Before - Qualified Assets - Derivatives on Infrastructure",null,null,null,null,null,null,null,null,0]
["Sch IIF","Other Sundry",null,"Short - After - Qualified Assets - Duration Based",null,null,null,null,null,null,null,null,0]
["Sch IIF","Other Sundry",null,"Short - After - Qualified Assets - Preferred Stocks, BSCR Rating 6",null,null,null,null,null,null,null,null,0]
["Sch IIF","Other Sundry",null,"Short - After - Qualified Assets - Equity Derivatives on Type 1 Equities",null,null,null,null,null,null,null,null,0]
["Sch IIF","Other Sundry",null,"Short - After - Qualified Assets - Infrastructure",null,null,null,null,null,null,null,null,0]
["Sch IIF","Other Sundry",null,"Short - Before - UnQualified Assets - Preferred Stocks, BSCR Rating 3",null,null,null,null,null,null,null,null,0]
["Sch IIF","Other Sundry",null,"Short - Before - UnQualified Assets - Strategic Holdings - Unlisted",null,null,null,null,null,null,null,null,0]
["Sch IIF","Other Sundry",null,"Short - Before - UnQualified Assets - Intangible assets",null,null,null,null,null,null,null,null,0]
["Sch IIF","Other Sundry",null,"Short - After - UnQualified Assets - Duration Based",null,null,null,null,null,null,null,null,0]
["Sch IIF","Other Sundry",null,"Short - After - UnQualified Assets - Preferred Stocks, BSCR Rating 2",null,null,null,null,null,null,null,null,0]
["Sch IIF","Other Sundry",null,"Short - After - UnQualified Assets - Other Equities",null,null,null,null,null,null,null,null,0]
["Sch IIF","Other Sundry",null,"Short - After - UnQualified Assets - Pension Benefit Surplus",null,null,null,null,null,null,null,null,0]
["Sch IIF","Other Sundry",null,"Liabilities - Before - W/O Mgmt Actions - Duration Based",null,null,null,null,null,null,null,null,0]
["Sch IIF","Other Sundry",null,"Liabilities - Before - W/O Mgmt Actions - Preferred Stocks, BSCR Rating 8",null,null,null,null,null,null,null,null,0]
["Sch IIF","Other Sundry",null,"Liabilities - Before - W/O Mgmt Actions - Equity Derivatives on Type 2 Equities",null,null,null,null,null,null,null,null,0]
["Sch IIF","Other Sundry",null,"Liabilities - Before - W/O Mgmt Actions - Equity Real Estate 1",null,null,null,null,null,null,null,null,0]
["Sch IIF","Other Sundry",null,"Liabilities - After - W/O Mgmt Actions - Preferred Stocks, BSCR Rating 6",null,null,null,null,null,null,null,null,0]
["Sch IIF","Other Sundry",null,"Liabilities - After - W/O Mgmt Actions - Preferred Stocks, BSCR Rating 7",null,null,null,null,null,null,null,null,0]
["Sch IIF","Other Sundry",null,"Liabilities - After - W/O Mgmt Actions - Infrastructure",null,null,null,null,null,null,null,null,0]
["Sch IIF","Other Sundry",null,"Liabilities - After - With Mgmt Actions - Preferred Stocks, BSCR Rating 1",null,null,null,null,null,null,null,null,0]
["Sch IIF","Other Sundry",null,"Liabilities - After - With Mgmt Actions - Preferred Stocks, BSCR Rating 4",null,null,null,null,null,null,null,null,0]
["Sch IIF","Other Sundry",null,"Liabilities - After - With Mgmt Actions - Intangible assets",null,null,null,null,null,null,null,null,0]
["Sch IIF","Other Sundry",null,"Liabilities - After - With Mgmt Actions - Equity Derivatives on Type 2 Equities",null,null,null,null,null,null,null,null,0]
["Sch IIF","Other Sundry",null,"Credit Derivatives - Up - Before - Long-Rating 4",null,null,null,null,null,null,null,null,0]
["Sch IIF","Other Sundry",null,"Credit Derivatives - Up - After - Long- Rating 4",null,null,null,null,null,null,null,null,0]
["Sch IIF","Other Sundry",null,"Credit Derivatives - Up - After - Long- Rating 5",null,null,null,null,null,null,null,null,0]
["Sch IIF","Other Sundry",null,"Credit Derivatives - Up - Before - Short- Rating 5",null,null,null,null,null,null,null,null,0]
["Sch IIF","Other Sundry",null,"Credit Derivatives - Up - After - Short- Rating 3",null,null,null,null,null,null,null,null,0]
["Sch IIF","Other Sundry",null,"Credit Derivatives - Up - After - Short- Rating 6",null,null,null,null,null,null,null,null,0]
["Sch IIF","Other Sundry",null,"Credit Derivatives - Down - Before - Long-Rating 3",null,null,null,null,null,null,null,null,0]
["Sch IIF","Other Sundry",null,"Credit Derivatives - Down - After - Long- Rating 5",null,null,null,null,null,null,null,null,0]
["Sch IIF","Other Sundry",null,"Credit Derivatives - Down - After - Long- Rating 8",null,null,null,null,null,null,null,null,0]
["Sch IIF","Other Sundry",null,"Credit Derivatives - Down - Before - Short- Rating 6",null,null,null,null,null,null,null,null,0]
["Sch IIF","Other Sundry",null,"Credit Derivatives - Down - After - Short- Rating 0",null,null,null,null,null,null,null,null,0]
["Sch IIF","Other Sundry",null,"Counterparty Default Risk - MV of Derivatives - MV Positive - Rating 0",null,null,null,null,null,null,null,null,0]
["Sch IIF","Other Sundry",null,"Counterparty Default Risk - MV of Derivatives - MV Positive - Rating 8",null,null,null,null,null,null,null,null,0]
["Sch IIF","Other Sundry",null,"Counterparty Default Risk - MV of Derivatives - MV Negative - Rating 2",null,null,null,null,null,null,null,null,0]
["Sch IIF","Other Sundry",null,"Counterparty Default Risk - MV of Collateral - Rating 2",null,null,null,null,null,null,null,null,0]
["Sch IIF","Other Sundry",null,"Cash and Cash Equivalents",null,null,null,null,null,null,null,null,0]
["Sch IVD","Exposure by Line",null,"NPE - Est. Next 12 Month - Property",null,null,null,null,0]
["Sch IVD","Exposure by Line",null,"NPE - Est. Next 12 Month - Credit Surety Non-Prop.",null,null,null,null,0]
["Sch IVD","Exposure by Line",null,"NPE - Est. Next 12 Month - US Casualty",null,null,null,null,0]
["Sch IVD","Exposure by Line",null,"NPE - Est. Next 12 Month - Health",null,null,null,null,0]
["Sch IVD","Exposure by Line",null,"NPE FP Existing - Personal Accident",null,null,null,null,0]
["Sch IVD","Exposure by Line",null,"NPE FP Existing - Aviation Non-Proportional",null,null,null,null,0]
["Sch IVD","Exposure by Line",null,"NPE FP Existing - US Specialty",null,null,null,null,0]
["Sch IVD","Exposure by Line",null,"NPE FP Existing - Structured / Finite R/I",null,null,null,null,0]
["Sch IVD","Exposure by Line",null,"NPE FP Future - Property Catastrophe",null,null,null,null,0]
["Sch IVD","Exposure by Line",null,"NPE FP Future - Credit Surety",null,null,null,null,0]
["Sch IVD","Exposure by Line",null,"NPE FP Future - US Professional Non-Prop.",null,null,null,null,0]
["Sch IVD","Exposure by Line",null,"NPE FP Future - Int'l Casualty Non-Prop.",null,null,null,null,0]
["Sch IVD","Exposure by Line",null,"Gross Premium Exposure - Property Non-Proportion",null,null,null,null,0]
["Sch IVD","Exposure by Line",null,"Gross Premium Exposure - Aviation",null,null,null,null,0]
["Sch IVD","Exposure by Line",null,"Gross Premium Exposure - US Casualty Non-Prop.",null,null,null,null,0]
["Sch IVD","Exposure by Line",null,"Gross Premium Exposure - Retro Property",null,null,null,null,0]
["Sch IVD","Exposure by Line",null,"Gross Premium Exposure - Total",null,null,null,null,0]
["Sch IVE","Net Prem by Zone",null,"NPE Zn 1 - Personal Acc. Non Prop.",null,null,null,null,0]
["Sch IVE","Net Prem by Zone",null,"NPE Zn 1 - Energy",null,null,null,null,0]
["Sch IVE","Net Prem by Zone",null,"NPE Zn 1 - Int'l Motor Non-Prop.",null,null,null,null,0]
["Sch IVE","Net Prem by Zone",null,"NPE Zn 2 - Property Catastrophe",null,null,null,null,0]
["Sch IVE","Net Prem by Zone",null,"NPE Zn 2 - Personal Accident",null,null,null,null,0]
["Sch IVE","Net Prem by Zone",null,"NPE Zn 2 - Energy Non-Proportional",null,null,null,null,0]
["Sch IVE","Net Prem by Zone",null,"NPE Zn 2 - Int'l Casualty",null,null,null,null,0]
["Sch IVE","Net Prem by Zone",null,"NPE Zn 2 - Health",null,null,null,null,0]
["Sch IVE","Net Prem by Zone",null,"NPE Zn 3 - Aviation",null,null,null,null,0]
["Sch IVE","Net Prem by Zone",null,"NPE Zn 3 - Credit Surety Non-Prop.",null,null,null,null,0]
["Sch IVE","Net Prem by Zone",null,"NPE Zn 3 - Int'l Motor",null,null,null,null,0]
["Sch IVE","Net Prem by Zone",null,"NPE Zn 3 - Total",null,null,null,null,0]
["Sch IVE","Net Prem by Zone",null,"NPE Zn 4 - Property Non-Proportion",null,null,null,null,0]
["Sch IVE","Net Prem by Zone",null,"NPE Zn 4 - Energy",null,null,null,null,0]
["Sch IVE","Net Prem by Zone",null,"NPE Zn 4 - US Professional Non-Prop.",null,null,null,null,0]
["Sch IVE","Net Prem by Zone",null,"NPE Zn 4 - Structured / Finite R/I",null,null,null,null,0]
["Sch IVE","Net Prem by Zone",null,"NPE Zn 5 - Personal Acc. Non Prop.",null,null,null,null,0]
["Sch IVE","Net Prem by Zone",null,"NPE Zn 5 - Credit Surety",null,null,null,null,0]
["Sch IVE","Net Prem by Zone",null,"NPE Zn 5 - US Professional Non-Prop.",null,null,null,null,0]
["Sch IVE","Net Prem by Zone",null,"NPE Zn 5 - Health",null,null,null,null,0]
["Sch IVE","Net Prem by Zone",null,"NPE Zn 6 - Property",null,null,null,null,0]
["Sch IVE","Net Prem by Zone",null,"NPE Zn 6 - US Casualty Non-Prop.",null,null,null,null,0]
["Sch IVE","Net Prem by Zone",null,"NPE Zn 6 - Int'l Motor Non-Prop.",null,null,null,null,0]
["Sch IVE","Net Prem by Zone",null,"NPE Zn 6 - Retro Property",null,null,null,null,0]
["Sch IVE","Net Prem by Zone",null,"NPE Zn 7 - Personal Accident",null,null,null,null,0]
["Sch IVE","Net Prem by Zone",null,"NPE Zn 7 - Aviation Non-Proportional",null,null,null,null,0]
["Sch IVE","Net Prem by Zone",null,"NPE Zn 7 - US Professional",null,null,null,null,0]
["Sch IVE","Net Prem by Zone",null,"NPE Zn 7 - Structured / Finite R/I",null,null,null,null,0]
["Sch IVE","Net Prem by Zone",null,"NPE Zn 7 - Total",null,null,null,null,0]
["Sch IVE","Net Prem by Zone",null,"NPE Zn 8 - Credit Surety Non-Prop.",null,null,null,null,0]
["Sch IVE","Net Prem by Zone",null,"NPE Zn 8 - Int'l Motor",null,null,null,null,0]
["Sch IVE","Net Prem by Zone",null,"NPE Zn 8 - Int'l Motor Non-Prop.",null,null,null,null,0]
["Sch IVE","Net Prem by Zone",null,"NPE Zn 9 - Property Non-Proportion",null,null,null,null,0]
["Sch IVE","Net Prem by Zone",null,"NPE Zn 9 - Aviation",null,null,null,null,0]
["Sch IVE","Net Prem by Zone",null,"NPE Zn 9 - US Casualty Non-Prop.",null,null,null,null,0]
["Sch IVE","Net Prem by Zone",null,"NPE Zn 9 - Structured / Finite R/I",null,null,null,null,0]
["Sch IVE","Net Prem by Zone",null,"NPE Zn 10 - Property Catastrophe",null,null,null,null,0]
["Sch IVE","Net Prem by Zone",null,"NPE Zn 10 - Credit Surety",null,null,null,null,0]
["Sch IVE","Net Prem by Zone",null,"NPE Zn 10 - US Specialty Non-Prop.",null,null,null,null,0]
["Sch IVE","Net Prem by Zone",null,"NPE Zn 10 - Int'l Motor",null,null,null,null,0]
["Sch IVE","Net Prem by Zone",null,"NPE Zn 11 - Property",null,null,null,null,0]
["Sch IVE","Net Prem by Zone",null,"NPE Zn 11 - Personal Acc. Non Prop.",null,null,null,null,0]
["Sch IVE","Net Prem by Zone",null,"NPE Zn 11 - US Professional",null,null,null,null,0]
["Sch IVE","Net Prem by Zone",null,"NPE Zn 11 - Retro Property",null,null,null,null,0]
["Sch IVE","Net Prem by Zone",null,"NPE Zn 11 - Total",null,null,null,null,0]
["Sch IVE","Net Prem by Zone",null,"NPE Zn 12 - Aviation Non-Proportional",null,null,null,null,0]
["Sch IVE","Net Prem by Zone",null,"NPE Zn 12 - US Specialty",null,null,null,null,0]
["Sch IVE","Net Prem by Zone",null,"NPE Zn 12 - US Specialty Non-Prop.",null,null,null,null,0]
["Sch IVE","Net Prem by Zone",null,"NPE Zn 13 - Property Catastrophe",null,null,null,null,0]
["Sch IVE","Net Prem by Zone",null,"NPE Zn 13 - Personal Acc. Non Prop.",null,null,null,null,0]
["Sch IVE","Net Prem by Zone",null,"NPE Zn 13 - US Casualty",null,null,null,null,0]
["Sch IVE","Net Prem by Zone",null,"NPE Zn 13 - Int'l Casualty Non-Prop.",null,null,null,null,0]
["Sch IVE","Net Prem by Zone",null,"NPE Zn 14 - Property Non-Proportion",null,null,null,null,0]
["Sch IVE","Net Prem by Zone",null,"NPE Zn 14 - Aviation",null,null,null,null,0]
["Sch IVE","Net Prem by Zone",null,"NPE Zn 14 - US Professional Non-Prop.",null,null,null,null,0]
["Sch IVE","Net Prem by Zone",null,"NPE Zn 14 - US Specialty Non-Prop.",null,null,null,null,0]
["Sch IVE","Net Prem by Zone",null,"NPE Zn 15 - Property Catastrophe",null,null,null,null,0]
["Sch IVE","Net Prem by Zone",null,"NPE Zn 15 - Personal Accident",null,null,null,null,0]
["Sch IVE","Net Prem by Zone",null,"NPE Zn 15 - Energy Non-Proportional",null,null,null,null,0]
["Sch IVE","Net Prem by Zone",null,"NPE Zn 15 - Int'l Casualty",null,null,null,null,0]
["Sch IVE","Net Prem by Zone",null,"NPE Zn 16 - Property",null,null,null,null,0]
["Sch IVE","Net Prem by Zone",null,"NPE Zn 16 - Personal Acc. Non Prop.",null,null,null,null,0]
["Sch IVE","Net Prem by Zone",null,"NPE Zn 16 - Energy Non-Proportional",null,null,null,null,0]
["Sch IVE","Net Prem by Zone",null,"NPE Zn 16 - US Specialty",null,null,null,null,0]
["Sch IVE","Net Prem by Zone",null,"NPE Zn 16 - Total",null,null,null,null,0]
["Sch IVE","Net Prem by Zone",null,"NPE Zn 17 - Aviation Non-Proportional",null,null,null,null,0]
["Sch IVE","Net Prem by Zone",null,"NPE Zn 17 - Energy",null,null,null,null,0]
["Sch IVE","Net Prem by Zone",null,"NPE Zn 17 - Int'l Motor Non-Prop.",null,null,null,null,0]
["Sch IVE","Net Prem by Zone",null,"NPE Zn 18 - Property Catastrophe",null,null,null,null,0]
["Sch IVE","Net Prem by Zone",null,"NPE Zn 18 - Property",null,null,null,null,0]
["Sch IVE","Net Prem by Zone",null,"NPE Zn 18 - US Professional",null,null,null,null,0]
["Sch IVE","Net Prem by Zone",null,"NPE Zn 18 - US Professional Non-Prop.",null,null,null,null,0]
["Sch IVE","Net Prem by Zone",null,"NPE Zn 18 - Health",null,null,null,null,0]
["Sch XIXA","Cash Counterpart",null,"Name - Counterparty 4",null,null,null,null,null,null,null,null,0]
["Sch XIXA","Cash Counterpart",null,"Name - Counterparty 7",null,null,null,null,null,null,null,null,0]
["Sch XIXA","Cash Counterpart",null,"Name - Counterparty 16",null,null,null,null,null,null,null,null,0]
["Sch XIXA","Cash Counterpart",null,"BSCR Rating - Counterparty 3",null,null,null,null,null,null,null,null,"Select"]
["Sch XIXA","Cash Counterpart",null,"BSCR Rating - Counterparty 7",null,null,null,null,null,null,null,null,"Select"]
["Sch XIXA","Cash Counterpart",null,"BSCR Rating - Counterparty 16",null,null,null,null,null,null,null,null,"Select"]
["Sch XIXA","Cash Counterpart",null,"BSCR Rating - Counterparty 17",null,null,null,null,null,null,null,null,"Select"]
["Sch XIXA","Cash Counterpart",null,"Counterparty Value 6",null,null,null,null,null,null,null,null,0]
["Sch XIXA","Cash Counterpart",null,"Counterparty Value 13",null,null,null,null,null,null,null,null,0]
["Sch XIXA","Cash Counterpart",null,"Counterparty Value 16",null,null,null,null,null,null,null,null,0]
["Sch XIXA","Cash Counterpart",null,"Exposure BSCR Rate 5",null,null,null,null,null,null,null,null,0]
["Sch XXA","Currency Shock",null,"Other Currency 2",null,null,null,null,null,null,null,null,"Other currency 2"]
["Sch XXA","Currency Shock",null,"Other Currency 5",null,null,null,null,null,null,null,null,"Other currency 5"]
["Sch XXA","Currency Shock",null,{"$f":"\"Before Shock - Assets - Excluding Currency - Sensitive Derivatives \"&'Schedule XXA'!$B$11","v":"Before Shock - Assets - Excluding Currency - Sensitive Derivatives Bermuda Dollars"},null,null,null,null,null,null,null,null,0]
["Sch XXA","Currency Shock",null,{"$f":"\"Before Shock - Assets - Excluding Currency - Sensitive Derivatives \"&'Schedule XXA'!$B$14","v":"Before Shock - Assets - Excluding Currency - Sensitive Derivatives Euro"},null,null,null,null,null,null,null,null,0]
["Sch XXA","Currency Shock",null,{"$f":"\"Before Shock - Assets - Excluding Currency - Sensitive Derivatives \"&'Schedule XXA'!$B$23","v":"Before Shock - Assets - Excluding Currency - Sensitive Derivatives Other currency 1"},null,null,null,null,null,null,null,null,0]
["Sch XXA","Currency Shock",null,{"$f":"\"Before Shock - Assets - Excluding Currency - Sensitive Derivatives \"&'Schedule XXA'!$B$30","v":"Before Shock - Assets - Excluding Currency - Sensitive Derivatives Other currency 8"},null,null,null,null,null,null,null,null,0]
["Sch XXA","Currency Shock",null,{"$f":"\"Before Shock - Long Exposures - Currency Derivatives Qualifying as held for risk-mitigation purposes \"&'Schedule XXA'!$B$13","v":"Before Shock - Long Exposures - Currency Derivatives Qualifying as held for risk-mitigation purposes Hong Kong Dollars"},null,null,null,null,null,null,null,null,0]
["Sch XXA","Currency Shock",null,{"$f":"\"Before Shock - Long Exposures - Currency Derivatives Qualifying as held for risk-mitigation purposes \"&'Schedule XXA'!$B$20","v":"Before Shock - Long Exposures - Currency Derivatives Qualifying as held for risk-mitigation purposes United Kingdom Pounds"},null,null,null,null,null,null,null,null,0]
["Sch XXA","Currency Shock",null,{"$f":"\"Before Shock - Long Exposures - Currency Derivatives Qualifying as held for risk-mitigation purposes \"&'Schedule XXA'!$B$27","v":"Before Shock - Long Exposures - Currency Derivatives Qualifying as held for risk-mitigation purposes Other currency 5"},null,null,null,null,null,null,null,null,0]
["Sch XXA","Currency Shock",null,{"$f":"\"Before Shock - Long Exposures - Currency Derivatives Qualifying as held for risk-mitigation purposes \"&'Schedule XXA'!$B$30","v":"Before Shock - Long Exposures - Currency Derivatives Qualifying as held for risk-mitigation purposes Other currency 8"},null,null,null,null,null,null,null,null,0]
["Sch XXA","Currency Shock",null,{"$f":"\"Before Shock - Long Exposures - Currency Derivatives Not Qualifying as held for risk-mitigation purposes \"&'Schedule XXA'!$B$14","v":"Before Shock - Long Exposures - Currency Derivatives Not Qualifying as held for risk-mitigation purposes Euro"},null,null,null,null,null,null,null,null,0]
["Sch XXA","Currency Shock",null,{"$f":"\"Before Shock - Long Exposures - Currency Derivatives Not Qualifying as held for risk-mitigation purposes \"&'Schedule XXA'!$B$17","v":"Before Shock - Long Exposures - Currency Derivatives Not Qualifying as held for risk-mitigation purposes West African CFA Francs"},null,null,null,null,null,null,null,null,0]
["Sch XXA","Currency Shock",null,{"$f":"\"Before Shock - Long Exposures - Currency Derivatives Not Qualifying as held for risk-mitigation purposes \"&'Schedule XXA'!$B$26","v":"Before Shock - Long Exposures - Currency Derivatives Not Qualifying as held for risk-mitigation purposes Other currency 4"},null,null,null,null,null,null,null,null,0]
["Sch XXA","Currency Shock",null,{"$f":"\"Before Shock - Long Exposures - Currency Derivatives Not Qualifying as held for risk-mitigation purposes \"&'Schedule XXA'!$B$31","v":"Before Shock - Long Exposures - Currency Derivatives Not Qualifying as held for risk-mitigation purposes Other currency 9"},null,null,null,null,null,null,null,null,0]
["Sch XXA","Currency Shock",null,{"$f":"\"Before Shock - Short Exposures - Currency Derivatives Qualifying as held for risk-mitigation purposes \"&'Schedule XXA'!$B$14","v":"Before Shock - Short Exposures - Currency Derivatives Qualifying as held for risk-mitigation purposes Euro"},null,null,null,null,null,null,null,null,0]
["Sch XXA","Currency Shock",null,{"$f":"\"Before Shock - Short Exposures - Currency Derivatives Qualifying as held for risk-mitigation purposes \"&'Schedule XXA'!$B$23","v":"Before Shock - Short Exposures - Currency Derivatives Qualifying as held for risk-mitigation purposes Other currency 1"},null,null,null,null,null,null,null,null,0]
["Sch XXA","Currency Shock",null,{"$f":"\"Before Shock - Short Exposures - Currency Derivatives Qualifying as held for risk-mitigation purposes \"&'Schedule XXA'!$B$30","v":"Before Shock - Short Exposures - Currency Derivatives Qualifying as held for risk-mitigation purposes Other currency 8"},null,null,null,null,null,null,null,null,0]
["Sch XXA","Currency Shock",null,{"$f":"\"Before Shock - Short Exposures - Currency Derivatives Not Qualifying as held for risk-mitigation purposes \"&'Schedule XXA'!$B$10","v":"Before Shock - Short Exposures - Currency Derivatives Not Qualifying as held for risk-mitigation purposes United States Dollars"},null,null,null,null,null,null,null,null,0]
["Sch XXA","Currency Shock",null,{"$f":"\"Before Shock - Short Exposures - Currency Derivatives Not Qualifying as held for risk-mitigation purposes \"&'Schedule XXA'!$B$17","v":"Before Shock - Short Exposures - Currency Derivatives Not Qualifying as held for risk-mitigation purposes West African CFA Francs"},null,null,null,null,null,null,null,null,0]
["Sch XXA","Currency Shock",null,{"$f":"\"Before Shock - Short Exposures - Currency Derivatives Not Qualifying as held for risk-mitigation purposes \"&'Schedule XXA'!$B$20","v":"Before Shock - Short Exposures - Currency Derivatives Not Qualifying as held for risk-mitigation purposes United Kingdom Pounds"},null,null,null,null,null,null,null,null,0]
["Sch XXA","Currency Shock",null,{"$f":"\"Before Shock - Short Exposures - Currency Derivatives Not Qualifying as held for risk-mitigation purposes \"&'Schedule XXA'!$B$29","v":"Before Shock - Short Exposures - Currency Derivatives Not Qualifying as held for risk-mitigation purposes Other currency 7"},null,null,null,null,null,null,null,null,0]
["Sch XXA","Currency Shock",null,{"$f":"\"Before Shock - B.E. Liabilities \"&'Schedule XXA'!$B$14","v":"Before Shock - B.E. Liabilities Euro"},null,null,null,null,null,null,null,null,0]
["Sch XXA","Currency Shock",null,{"$f":"\"Before Shock - B.E. Liabilities \"&'Schedule XXA'!$B$17","v":"Before Shock - B.E. Liabilities West African CFA Francs"},null,null,null,null,null,null,null,null,0]
["Sch XXA","Currency Shock",null,{"$f":"\"Before Shock - B.E. Liabilities \"&'Schedule XXA'!$B$24","v":"Before Shock - B.E. Liabilities Other currency 2"},null,null,null,null,null,null,null,null,0]
["Sch XXA","Currency Shock",null,{"$f":"\"After Shock - Assets - Excluding Currency - Sensitive Derivatives \"&'Schedule XXA'!$B$10","v":"After Shock - Assets - Excluding Currency - Sensitive Derivatives United States Dollars"},null,null,null,null,null,null,null,null,0]
["Sch XXA","Currency Shock",null,{"$f":"\"After Shock - Assets - Excluding Currency - Sensitive Derivatives \"&'Schedule XXA'!$B$13","v":"After Shock - Assets - Excluding Currency - Sensitive Derivatives Hong Kong Dollars"},null,null,null,null,null,null,null,null,0]
["Sch XXA","Currency Shock",null,{"$f":"\"After Shock - Assets - Excluding Currency - Sensitive Derivatives \"&'Schedule XXA'!$B$20","v":"After Shock - Assets - Excluding Currency - Sensitive Derivatives United Kingdom Pounds"},null,null,null,null,null,null,null,null,0]
["Sch XXA","Currency Shock",null,{"$f":"\"After Shock - Assets - Excluding Currency - Sensitive Derivatives \"&'Schedule XXA'!$B$24","v":"After Shock - Assets - Excluding Currency - Sensitive Derivatives Other currency 2"},null,null,null,null,null,null,null,null,0]
["Sch XXA","Currency Shock",null,{"$f":"\"After Shock - Long Exposures - Currency Derivatives Qualifying as held for risk-mitigation purposes \"&'Schedule XXA'!$B$10","v":"After Shock - Long Exposures - Currency Derivatives Qualifying as held for risk-mitigation purposes United States Dollars"},null,null,null,null,null,null,null,null,0]
["Sch XXA","Currency Shock",null,{"$f":"\"After Shock - Long Exposures - Currency Derivatives Qualifying as held for risk-mitigation purposes \"&'Schedule XXA'!$B$17","v":"After Shock - Long Exposures - Currency Derivatives Qualifying as held for risk-mitigation purposes West African CFA Francs"},null,null,null,null,null,null,null,null,0]
["Sch XXA","Currency Shock",null,{"$f":"\"After Shock - Long Exposures - Currency Derivatives Qualifying as held for risk-mitigation purposes \"&'Schedule XXA'!$B$20","v":"After Shock - Long Exposures - Currency Derivatives Qualifying as held for risk-mitigation purposes United Kingdom Pounds"},null,null,null,null,null,null,null,null,0]
["Sch XXA","Currency Shock",null,{"$f":"\"After Shock - Long Exposures - Currency Derivatives Qualifying as held for risk-mitigation purposes \"&'Schedule XXA'!$B$27","v":"After Shock - Long Exposures - Currency Derivatives Qualifying as held for risk-mitigation purposes Other currency 5"},null,null,null,null,null,null,null,null,0]
["Sch XXA","Currency Shock",null,{"$f":"\"After Shock - Long Exposures - Currency Derivatives Not Qualifying as held for risk-mitigation purposes \"&'Schedule XXA'!$B$13","v":"After Shock - Long Exposures - Currency Derivatives Not Qualifying as held for risk-mitigation purposes Hong Kong Dollars"},null,null,null,null,null,null,null,null,0]
["Sch XXA","Currency Shock",null,{"$f":"\"After Shock - Long Exposures - Currency Derivatives Not Qualifying as held for risk-mitigation purposes \"&'Schedule XXA'!$B$15","v":"After Shock - Long Exposures - Currency Derivatives Not Qualifying as held for risk-mitigation purposes Denmark Kroner"},null,null,null,null,null,null,null,null,0]
["Sch XXA","Currency Shock",null,{"$f":"\"After Shock - Long Exposures - Currency Derivatives Not Qualifying as held for risk-mitigation purposes \"&'Schedule XXA'!$B$24","v":"After Shock - Long Exposures - Currency Derivatives Not Qualifying as held for risk-mitigation purposes Other currency 2"},null,null,null,null,null,null,null,null,0]
["Sch XXA","Currency Shock",null,{"$f":"\"After Shock - Long Exposures - Currency Derivatives Not Qualifying as held for risk-mitigation purposes \"&'Schedule XXA'!$B$27","v":"After Shock - Long Exposures - Currency Derivatives Not Qualifying as held for risk-mitigation purposes Other currency 5"},null,null,null,null,null,null,null,null,0]
["Sch XXA","Currency Shock",null,{"$f":"\"After Shock - Short Exposures - Currency Derivatives Qualifying as held for risk-mitigation purposes \"&'Schedule XXA'!$B$11","v":"After Shock - Short Exposures - Currency Derivatives Qualifying as held for risk-mitigation purposes Bermuda Dollars"},null,null,null,null,null,null,null,null,0]
["Sch XXA","Currency Shock",null,{"$f":"\"After Shock - Short Exposures - Currency Derivatives Qualifying as held for risk-mitigation purposes \"&'Schedule XXA'!$B$20","v":"After Shock - Short Exposures - Currency Derivatives Qualifying as held for risk-mitigation purposes United Kingdom Pounds"},null,null,null,null,null,null,null,null,0]
["Sch XXA","Currency Shock",null,{"$f":"\"After Shock - Short Exposures - Currency Derivatives Qualifying as held for risk-mitigation purposes \"&'Schedule XXA'!$B$23","v":"After Shock - Short Exposures - Currency Derivatives Qualifying as held for risk-mitigation purposes Other currency 1"},null,null,null,null,null,null,null,null,0]
["Sch XXA","Currency Shock",null,{"$f":"\"After Shock - Short Exposures - Currency Derivatives Qualifying as held for risk-mitigation purposes \"&'Schedule XXA'!$B$30","v":"After Shock - Short Exposures - Currency Derivatives Qualifying as held for risk-mitigation purposes Other currency 8"},null,null,null,null,null,null,null,null,0]
["Sch XXA","Currency Shock",null,{"$f":"\"After Shock - Short Exposures - Currency Derivatives Not Qualifying as held for risk-mitigation purposes \"&'Schedule XXA'!$B$17","v":"After Shock - Short Exposures - Currency Derivatives Not Qualifying as held for risk-mitigation purposes West African CFA Francs"},null,null,null,null,null,null,null,null,0]
["Sch XXA","Currency Shock",null,{"$f":"\"After Shock - Short Exposures - Currency Derivatives Not Qualifying as held for risk-mitigation purposes \"&'Schedule XXA'!$B$20","v":"After Shock - Short Exposures - Currency Derivatives Not Qualifying as held for risk-mitigation purposes United Kingdom Pounds"},null,null,null,null,null,null,null,null,0]
["Sch XXA","Currency Shock",null,{"$f":"\"After Shock - Short Exposures - Currency Derivatives Not Qualifying as held for risk-mitigation purposes \"&'Schedule XXA'!$B$27","v":"After Shock - Short Exposures - Currency Derivatives Not Qualifying as held for risk-mitigation purposes Other currency 5"},null,null,null,null,null,null,null,null,0]
["Sch XXA","Currency Shock",null,{"$f":"\"After Shock - Short Exposures - Currency Derivatives Not Qualifying as held for risk-mitigation purposes \"&'Schedule XXA'!$B$30","v":"After Shock - Short Exposures - Currency Derivatives Not Qualifying as held for risk-mitigation purposes Other currency 8"},null,null,null,null,null,null,null,null,0]
["Sch XXA","Currency Shock",null,{"$f":"\"After Shock - B.E. Liabilities \"&'Schedule XXA'!$B$14","v":"After Shock - B.E. Liabilities Euro"},null,null,null,null,null,null,null,null,0]
["Sch XXA","Currency Shock",null,{"$f":"\"After Shock - B.E. Liabilities \"&'Schedule XXA'!$B$23","v":"After Shock - B.E. Liabilities Other currency 1"},null,null,null,null,null,null,null,null,0]
["Sch XXA","Currency Shock",null,{"$f":"\"After Shock - B.E. Liabilities \"&'Schedule XXA'!$B$26","v":"After Shock - B.E. Liabilities Other currency 4"},null,null,null,null,null,null,null,null,0]
["Sch XXA","Currency Shock",null,{"$f":"\"After Shock - Liabilities w Mgmt. Actions \"&'Schedule XXA'!$B$12","v":"After Shock - Liabilities w Mgmt. Actions Qatar Riyals"},null,null,null,null,null,null,null,null,0]
["Sch XXA","Currency Shock",null,{"$f":"\"After Shock - Liabilities w Mgmt. Actions \"&'Schedule XXA'!$B$20","v":"After Shock - Liabilities w Mgmt. Actions United Kingdom Pounds"},null,null,null,null,null,null,null,null,0]
["Sch XXA","Currency Shock",null,{"$f":"\"After Shock - Liabilities w Mgmt. Actions \"&'Schedule XXA'!$B$23","v":"After Shock - Liabilities w Mgmt. Actions Other currency 1"},null,null,null,null,null,null,null,null,0]
["Sch XXA","Currency Shock",null,{"$f":"\"After Shock - Liabilities w Mgmt. Actions \"&'Schedule XXA'!$B$30","v":"After Shock - Liabilities w Mgmt. Actions Other currency 8"},null,null,null,null,null,null,null,null,0]
["Sch XXA","Currency Shock",null,"Liabilities Prior Year 1",null,null,null,null,null,null,null,null,0]
["Sch XXIA","Inv Con Risk",null,"# of Exposures",0]
["Sch XXIA","Inv Con Risk",null,"Name of Exposure - 9",0]
["Sch XXIA","Inv Con Risk",null,"Name of Exposure - 16",0]
["Sch XXIA","Inv Con Risk",null,"Name of Exposure - 20",0]
["Sch XXIA","Inv Con Risk",null,"Name of Exposure - 29",0]
["Sch XXIA","Inv Con Risk",null,"Name of Exposure - 30",0]
["Sch XXIA","Inv Con Risk",null,"Name of Exposure - 39",0]
["Sch XXIA","Inv Con Risk",null,"Name of Exposure - 42",0]
["Sch XXIA","Inv Con Risk",null,"Name of Exposure - 49",0]
["Sch XXIA","Inv Con Risk",null,"Asset Type - 7","Select",null,null,null,null,null,null,null,"Select"]
["Sch XXIA","Inv Con Risk",null,"Asset Type - 12","Select",null,null,null,null,null,null,null,"Select"]
["Sch XXIA","Inv Con Risk",null,"Asset Type - 19","Select",null,null,null,null,null,null,null,"Select"]
["Sch XXIA","Inv Con Risk",null,"Asset Type - 28","Select",null,null,null,null,null,null,null,"Select"]
["Sch XXIA","Inv Con Risk",null,"Asset Type - 29","Select",null,null,null,null,null,null,null,"Select"]
["Sch XXIA","Inv Con Risk",null,"Asset Type - 38","Select",null,null,null,null,null,null,null,"Select"]
["Sch XXIA","Inv Con Risk",null,"Asset Type - 41","Select",null,null,null,null,null,null,null,"Select"]
["Sch XXIA","Inv Con Risk",null,"Asset Type - 48","Select",null,null,null,null,null,null,null,"Select"]
["Sch XXIA","Inv Con Risk",null,"Bond Type - 8","Select",null,null,null,null,null,null,null,"Select"]
["Sch XXIA","Inv Con Risk",null,"Bond Type - 15","Select",null,null,null,null,null,null,null,"Select"]
["Sch XXIA","Inv Con Risk",null,"Bond Type - 18","Select",null,null,null,null,null,null,null,"Select"]
["Sch XXIA","Inv Con Risk",null,"Bond Type - 27","Select",null,null,null,null,null,null,null,"Select"]
["Sch XXIA","Inv Con Risk",null,"Bond Type - 28","Select",null,null,null,null,null,null,null,"Select"]
["Sch XXIA","Inv Con Risk",null,"Bond Type - 37","Select",null,null,null,null,null,null,null,"Select"]
["Sch XXIA","Inv Con Risk",null,"Bond Type - 42","Select",null,null,null,null,null,null,null,"Select"]
["Sch XXIA","Inv Con Risk",null,"Bond Type - 48","Select",null,null,null,null,null,null,null,"Select"]
["Sch XXIA","Inv Con Risk",null,"BSCR Rating - 7","Select",null,null,null,null,null,null,null,"Select"]
["Sch XXIA","Inv Con Risk",null,"BSCR Rating - 14","Select",null,null,null,null,null,null,null,"Select"]
["Sch XXIA","Inv Con Risk",null,"BSCR Rating - 17","Select",null,null,null,null,null,null,null,"Select"]
["Sch XXIA","Inv Con Risk",null,"BSCR Rating - 26","Select",null,null,null,null,null,null,null,"Select"]
["Sch XXIA","Inv Con Risk",null,"BSCR Rating - 27","Select",null,null,null,null,null,null,null,"Select"]
["Sch XXIA","Inv Con Risk",null,"BSCR Rating - 33","Select",null,null,null,null,null,null,null,"Select"]
["Sch XXIA","Inv Con Risk",null,"BSCR Rating - 40","Select",null,null,null,null,null,null,null,"Select"]
["Sch XXIA","Inv Con Risk",null,"BSCR Rating - 47","Select",null,null,null,null,null,null,null,"Select"]
["Sch XXIA","Inv Con Risk",null,"Asset Value - 6",0,null,null,null,null,null,null,null,0]
["Sch XXIA","Inv Con Risk",null,"Asset Value - 13",0,null,null,null,null,null,null,null,0]
["Sch XXIA","Inv Con Risk",null,"Asset Value - 16",0,null,null,null,null,null,null,null,0]
["Sch XXIA","Inv Con Risk",null,"Asset Value - 25",0,null,null,null,null,null,null,null,0]
["Sch XXIA","Inv Con Risk",null,"Asset Value - 31",0,null,null,null,null,null,null,null,0]
["Sch XXIA","Inv Con Risk",null,"Asset Value - 36",0,null,null,null,null,null,null,null,0]
["Sch XXIA","Inv Con Risk",null,"Asset Value - 43",0,null,null,null,null,null,null,null,0]
["Sch XXIA","Inv Con Risk",null,"Asset Value - 46",0,null,null,null,null,null,null,null,0]
["Sch XXIII","Interest Rates",null,"Other currency 3",null,null,null,null,null,null,null,null,"Other currency 3"]
["Sch XXIII","Interest Rates",null,"Other currency 10",null,null,null,null,null,null,null,null,"Other currency 10"]
["Sch XXIII","Interest Rates",null,"Int. Down - Before Shock - Other - Qualifying Assets - Swiss Francs",null,null,null,null,null,null,null,null,0]
["Sch XXIII","Interest Rates",null,"Int. Down - Before Shock - Other - Qualifying Assets - New Zealand Dollar",null,null,null,null,null,null,null,null,0]
["Sch XXIII","Interest Rates",null,{"$f":"\"Int. Down - Before Shock - Other - Qualifying Assets - \"&'Schedule XXIII'!$C$18","v":"Int. Down - Before Shock - Other - Qualifying Assets - Other currency 1"},null,null,null,null,null,null,null,null,0]
["Sch XXIII","Interest Rates",null,{"$f":"\"Int. Down - Before Shock - Other - Qualifying Assets - \"&'Schedule XXIII'!$C$19","v":"Int. Down - Before Shock - Other - Qualifying Assets - Other currency 2"},null,null,null,null,null,null,null,null,0]
["Sch XXIII","Interest Rates",null,{"$f":"\"Int. Down - Before Shock - Other - Qualifying Assets - \"&'Schedule XXIII'!$C$20","v":"Int. Down - Before Shock - Other - Qualifying Assets - Other currency 3"},null,null,null,null,null,null,null,null,0]
["Sch XXIII","Interest Rates",null,{"$f":"\"Int. Down - Before Shock - Other - Qualifying Assets - \"&'Schedule XXIII'!$C$21","v":"Int. Down - Before Shock - Other - Qualifying Assets - Other currency 4"},null,null,null,null,null,null,null,null,0]
["Sch XXIII","Interest Rates",null,{"$f":"\"Int. Down - Before Shock - Other - Qualifying Assets - \"&'Schedule XXIII'!$C$22","v":"Int. Down - Before Shock - Other - Qualifying Assets - Other currency 5"},null,null,null,null,null,null,null,null,0]
["Sch XXIII","Interest Rates",null,{"$f":"\"Int. Down - Before Shock - Other - Qualifying Assets - \"&'Schedule XXIII'!$C$23","v":"Int. Down - Before Shock - Other - Qualifying Assets - Other currency 6"},null,null,null,null,null,null,null,null,0]
["Sch XXIII","Interest Rates",null,{"$f":"\"Int. Down - Before Shock - Other - Qualifying Assets - \"&'Schedule XXIII'!$C$24","v":"Int. Down - Before Shock - Other - Qualifying Assets - Other currency 7"},null,null,null,null,null,null,null,null,0]
["Sch XXIII","Interest Rates",null,{"$f":"\"Int. Down - Before Shock - Other - Qualifying Assets - \"&'Schedule XXIII'!$C$25","v":"Int. Down - Before Shock - Other - Qualifying Assets - Other currency 8"},null,null,null,null,null,null,null,null,0]
["Sch XXIII","Interest Rates",null,{"$f":"\"Int. Down - Before Shock - Other - Qualifying Assets - \"&'Schedule XXIII'!$C$26","v":"Int. Down - Before Shock - Other - Qualifying Assets - Other currency 9"},null,null,null,null,null,null,null,null,0]
["Sch XXIII","Interest Rates",null,{"$f":"\"Int. Down - Before Shock - Other - Qualifying Assets - \"&'Schedule XXIII'!$C$27","v":"Int. Down - Before Shock - Other - Qualifying Assets - Other currency 10"},null,null,null,null,null,null,null,null,0]
["Sch XXIII","Interest Rates",null,"Int. Down - Before Shock - Other - Qualifying Assets - Total",null,null,null,null,null,null,null,null,0]
["Sch XXIII","Interest Rates",null,"Int. Down - After Shock - Other - Qualifying Assets - United States Dollars",null,null,null,null,null,null,null,null,0]
["Sch XXIII","Interest Rates",null,"Int. Down - After Shock - Other - Qualifying Assets - Euro",null,null,null,null,null,null,null,null,0]
["Sch XXIII","Interest Rates",null,"Int. Down - After Shock - Other - Qualifying Assets - United Kingdom Pounds",null,null,null,null,null,null,null,null,0]
["Sch XXIII","Interest Rates",null,"Int. Down - After Shock - Other - Qualifying Assets - Japan Yen",null,null,null,null,null,null,null,null,0]
["Sch XXIII","Interest Rates",null,"Int. Down - After Shock - Other - Qualifying Assets - Canada Dollars",null,null,null,null,null,null,null,null,0]
["Sch XXIII","Interest Rates",null,"Int. Down - After Shock - Other - Qualifying Assets - Swiss Francs",null,null,null,null,null,null,null,null,0]
["Sch XXIII","Interest Rates",null,"Int. Down - After Shock - Other - Qualifying Assets - Australia Dollar",null,null,null,null,null,null,null,null,0]
["Sch XXIII","Interest Rates",null,"Int. Down - After Shock - Other - Qualifying Assets - New Zealand Dollar",null,null,null,null,null,null,null,null,0]
["Sch XXIII","Interest Rates",null,{"$f":"\"Int. Down - After Shock - Other - Qualifying Assets - \"&'Schedule XXIII'!$C$18","v":"Int. Down - After Shock - Other - Qualifying Assets - Other currency 1"},null,null,null,null,null,null,null,null,0]
["Sch XXIII","Interest Rates",null,{"$f":"\"Int. Down - After Shock - Other - Qualifying Assets - \"&'Schedule XXIII'!$C$19","v":"Int. Down - After Shock - Other - Qualifying Assets - Other currency 2"},null,null,null,null,null,null,null,null,0]
["Sch XXIII","Interest Rates",null,{"$f":"\"Int. Down - After Shock - Other - Qualifying Assets - \"&'Schedule XXIII'!$C$20","v":"Int. Down - After Shock - Other - Qualifying Assets - Other currency 3"},null,null,null,null,null,null,null,null,0]
["Sch XXIII","Interest Rates",null,{"$f":"\"Int. Down - After Shock - Other - Qualifying Assets - \"&'Schedule XXIII'!$C$21","v":"Int. Down - After Shock - Other - Qualifying Assets - Other currency 4"},null,null,null,null,null,null,null,null,0]
["Sch XXIII","Interest Rates",null,{"$f":"\"Int. Down - After Shock - Other - Qualifying Assets - \"&'Schedule XXIII'!$C$22","v":"Int. Down - After Shock - Other - Qualifying Assets - Other currency 5"},null,null,null,null,null,null,null,null,0]
["Sch XXIII","Interest Rates",null,{"$f":"\"Int. Down - After Shock - Other - Qualifying Assets - \"&'Schedule XXIII'!$C$23","v":"Int. Down - After Shock - Other - Qualifying Assets - Other currency 6"},null,null,null,null,null,null,null,null,0]
["Sch XXIII","Interest Rates",null,{"$f":"\"Int. Down - After Shock - Other - Qualifying Assets - \"&'Schedule XXIII'!$C$24","v":"Int. Down - After Shock - Other - Qualifying Assets - Other currency 7"},null,null,null,null,null,null,null,null,0]
["Sch XXIII","Interest Rates",null,{"$f":"\"Int. Down - After Shock - Other - Qualifying Assets - \"&'Schedule XXIII'!$C$25","v":"Int. Down - After Shock - Other - Qualifying Assets - Other currency 8"},null,null,null,null,null,null,null,null,0]
["Sch XXIII","Interest Rates",null,{"$f":"\"Int. Down - After Shock - Other - Qualifying Assets - \"&'Schedule XXIII'!$C$26","v":"Int. Down - After Shock - Other - Qualifying Assets - Other currency 9"},null,null,null,null,null,null,null,null,0]
["Sch XXIII","Interest Rates",null,{"$f":"\"Int. Down - After Shock - Other - Qualifying Assets - \"&'Schedule XXIII'!$C$27","v":"Int. Down - After Shock - Other - Qualifying Assets - Other currency 10"},null,null,null,null,null,null,null,null,0]
["Sch XXIII","Interest Rates",null,"Int. Down - After Shock - Other - Qualifying Assets - Total",null,null,null,null,null,null,null,null,0]
["Sch XXIII","Interest Rates",null,"Int. Down - Before Shock - Other - Liab. w/o Mgmt Action - United States Dollars",null,null,null,null,null,null,null,null,0]
["Sch XXIII","Interest Rates",null,"Int. Down - Before Shock - Other - Liab. w/o Mgmt Action - Euro",null,null,null,null,null,null,null,null,0]
["Sch XXIII","Interest Rates",null,"Int. Down - Before Shock - Other - Liab. w/o Mgmt Action - United Kingdom Pounds",null,null,null,null,null,null,null,null,0]
["Sch XXIII","Interest Rates",null,"Int. Down - Before Shock - Other - Liab. w/o Mgmt Action - Japan Yen",null,null,null,null,null,null,null,null,0]
["Sch XXIII","Interest Rates",null,"Int. Down - Before Shock - Other - Liab. w/o Mgmt Action - Canada Dollars",null,null,null,null,null,null,null,null,0]
["Sch XXIII","Interest Rates",null,"Int. Down - Before Shock - Other - Liab. w/o Mgmt Action - Swiss Francs",null,null,null,null,null,null,null,null,0]
["Sch XXIII","Interest Rates",null,"Int. Down - Before Shock - Other - Liab. w/o Mgmt Action - Australia Dollar",null,null,null,null,null,null,null,null,0]
["Sch XXIII","Interest Rates",null,"Int. Down - Before Shock - Other - Liab. w/o Mgmt Action - New Zealand Dollar",null,null,null,null,null,null,null,null,0]
["Sch XXIII","Interest Rates",null,{"$f":"\"Int. Down - Before Shock - Other - Liab. w/o Mgmt Action - \"&'Schedule XXIII'!$C$18","v":"Int. Down - Before Shock - Other - Liab. w/o Mgmt Action - Other currency 1"},null,null,null,null,null,null,null,null,0]
["Sch XXIII","Interest Rates",null,{"$f":"\"Int. Down - Before Shock - Other - Liab. w/o Mgmt Action - \"&'Schedule XXIII'!$C$19","v":"Int. Down - Before Shock - Other - Liab. w/o Mgmt Action - Other currency 2"},null,null,null,null,null,null,null,null,0]
["Sch XXIII","Interest Rates",null,{"$f":"\"Int. Down - Before Shock - Other - Liab. w/o Mgmt Action - \"&'Schedule XXIII'!$C$20","v":"Int. Down - Before Shock - Other - Liab. w/o Mgmt Action - Other currency 3"},null,null,null,null,null,null,null,null,0]
["Sch XXIII","Interest Rates",null,{"$f":"\"Int. Down - Before Shock - Other - Liab. w/o Mgmt Action - \"&'Schedule XXIII'!$C$21","v":"Int. Down - Before Shock - Other - Liab. w/o Mgmt Action - Other currency 4"},null,null,null,null,null,null,null,null,0]
["Sch XXIII","Interest Rates",null,{"$f":"\"Int. Down - Before Shock - Other - Liab. w/o Mgmt Action - \"&'Schedule XXIII'!$C$22","v":"Int. Down - Before Shock - Other - Liab. w/o Mgmt Action - Other currency 5"},null,null,null,null,null,null,null,null,0]
["Sch XXIII","Interest Rates",null,{"$f":"\"Int. Down - Before Shock - Other - Liab. w/o Mgmt Action - \"&'Schedule XXIII'!$C$23","v":"Int. Down - Before Shock - Other - Liab. w/o Mgmt Action - Other currency 6"},null,null,null,null,null,null,null,null,0]
["Sch XXIII","Interest Rates",null,{"$f":"\"Int. Down - Before Shock - Other - Liab. w/o Mgmt Action - \"&'Schedule XXIII'!$C$24","v":"Int. Down - Before Shock - Other - Liab. w/o Mgmt Action - Other currency 7"},null,null,null,null,null,null,null,null,0]
["Sch XXIII","Interest Rates",null,{"$f":"\"Int. Down - Before Shock - Other - Liab. w/o Mgmt Action - \"&'Schedule XXIII'!$C$25","v":"Int. Down - Before Shock - Other - Liab. w/o Mgmt Action - Other currency 8"},null,null,null,null,null,null,null,null,0]
["Sch XXIII","Interest Rates",null,{"$f":"\"Int. Down - Before Shock - Other - Liab. w/o Mgmt Action - \"&'Schedule XXIII'!$C$26","v":"Int. Down - Before Shock - Other - Liab. w/o Mgmt Action - Other currency 9"},null,null,null,null,null,null,null,null,0]
["Sch XXIII","Interest Rates",null,{"$f":"\"Int. Down - Before Shock - Other - Liab. w/o Mgmt Action - \"&'Schedule XXIII'!$C$27","v":"Int. Down - Before Shock - Other - Liab. w/o Mgmt Action - Other currency 10"},null,null,null,null,null,null,null,null,0]
["Sch XXIII","Interest Rates",null,"Int. Down - Before Shock - Other - Liab. w/o Mgmt Action - Total",null,null,null,null,null,null,null,null,0]
["Sch XXIII","Interest Rates",null,"Int. Down - After Shock - Other - Liab. w/o Mgmt Action - United States Dollars",null,null,null,null,null,null,null,null,0]
["Sch XXIII","Interest Rates",null,"Int. Down - After Shock - Other - Liab. w/o Mgmt Action - Euro",null,null,null,null,null,null,null,null,0]
["Sch XXIII","Interest Rates",null,"Int. Down - After Shock - Other - Liab. w/o Mgmt Action - United Kingdom Pounds",null,null,null,null,null,null,null,null,0]
["Sch XXIII","Interest Rates",null,"Int. Down - After Shock - Other - Liab. w/o Mgmt Action - Japan Yen",null,null,null,null,null,null,null,null,0]
["Sch XXIII","Interest Rates",null,"Int. Down - After Shock - Other - Liab. w/o Mgmt Action - Canada Dollars",null,null,null,null,null,null,null,null,0]
["Sch XXIII","Interest Rates",null,"Int. Down - After Shock - Other - Liab. w/o Mgmt Action - Swiss Francs",null,null,null,null,null,null,null,null,0]
["Sch XXIII","Interest Rates",null,"Int. Down - After Shock - Other - Liab. w/o Mgmt Action - Australia Dollar",null,null,null,null,null,null,null,null,0]
["Sch XXIII","Interest Rates",null,"Int. Down - After Shock - Other - Liab. w/o Mgmt Action - New Zealand Dollar",null,null,null,null,null,null,null,null,0]
["Sch XXIII","Interest Rates",null,{"$f":"\"Int. Down - After Shock - Other - Liab. w/o Mgmt Action - \"&'Schedule XXIII'!$C$18","v":"Int. Down - After Shock - Other - Liab. w/o Mgmt Action - Other currency 1"},null,null,null,null,null,null,null,null,0]
["Sch XXIII","Interest Rates",null,{"$f":"\"Int. Down - After Shock - Other - Liab. w/o Mgmt Action - \"&'Schedule XXIII'!$C$19","v":"Int. Down - After Shock - Other - Liab. w/o Mgmt Action - Other currency 2"},null,null,null,null,null,null,null,null,0]
["Sch XXIII","Interest Rates",null,{"$f":"\"Int. Down - After Shock - Other - Liab. w/o Mgmt Action - \"&'Schedule XXIII'!$C$20","v":"Int. Down - After Shock - Other - Liab. w/o Mgmt Action - Other currency 3"},null,null,null,null,null,null,null,null,0]
["Sch XXIII","Interest Rates",null,{"$f":"\"Int. Down - After Shock - Other - Liab. w/o Mgmt Action - \"&'Schedule XXIII'!$C$21","v":"Int. Down - After Shock - Other - Liab. w/o Mgmt Action - Other currency 4"},null,null,null,null,null,null,null,null,0]
["Sch XXIII","Interest Rates",null,{"$f":"\"Int. Down - After Shock - Other - Liab. w/o Mgmt Action - \"&'Schedule XXIII'!$C$22","v":"Int. Down - After Shock - Other - Liab. w/o Mgmt Action - Other currency 5"},null,null,null,null,null,null,null,null,0]
["Sch XXIII","Interest Rates",null,{"$f":"\"Int. Down - After Shock - Other - Liab. w/o Mgmt Action - \"&'Schedule XXIII'!$C$23","v":"Int. Down - After Shock - Other - Liab. w/o Mgmt Action - Other currency 6"},null,null,null,null,null,null,null,null,0]
["Sch XXIII","Interest Rates",null,{"$f":"\"Int. Down - After Shock - Other - Liab. w/o Mgmt Action - \"&'Schedule XXIII'!$C$24","v":"Int. Down - After Shock - Other - Liab. w/o Mgmt Action - Other currency 7"},null,null,null,null,null,null,null,null,0]
["Sch XXIII","Interest Rates",null,{"$f":"\"Int. Down - After Shock - Other - Liab. w/o Mgmt Action - \"&'Schedule XXIII'!$C$25","v":"Int. Down - After Shock - Other - Liab. w/o Mgmt Action - Other currency 8"},null,null,null,null,null,null,null,null,0]
["Sch XXIII","Interest Rates",null,{"$f":"\"Int. Down - After Shock - Other - Liab. w/o Mgmt Action - \"&'Schedule XXIII'!$C$26","v":"Int. Down - After Shock - Other - Liab. w/o Mgmt Action - Other currency 9"},null,null,null,null,null,null,null,null,0]
["Sch XXIII","Interest Rates",null,{"$f":"\"Int. Down - After Shock - Other - Liab. w/o Mgmt Action - \"&'Schedule XXIII'!$C$27","v":"Int. Down - After Shock - Other - Liab. w/o Mgmt Action - Other currency 10"},null,null,null,null,null,null,null,null,0]
["Sch XXIII","Interest Rates",null,"Int. Down - After Shock - Other - Liab. w/o Mgmt Action - Total",null,null,null,null,null,null,null,null,0]
["Sch XXIII","Interest Rates",null,"Int. Down - After Shock - Other - Liab. with Mgmt Action - United States Dollars",null,null,null,null,null,null,null,null,0]
["Sch XXIII","Interest Rates",null,"Int. Down - After Shock - Other - Liab. with Mgmt Action - Euro",null,null,null,null,null,null,null,null,0]
["Sch XXIII","Interest Rates",null,"Int. Down - After Shock - Other - Liab. with Mgmt Action - United Kingdom Pounds",null,null,null,null,null,null,null,null,0]
["Sch XXIII","Interest Rates",null,"Int. Down - After Shock - Other - Liab. with Mgmt Action - Japan Yen",null,null,null,null,null,null,null,null,0]
["Sch XXIII","Interest Rates",null,"Int. Down - After Shock - Other - Liab. with Mgmt Action - Canada Dollars",null,null,null,null,null,null,null,null,0]
["Sch XXIII","Interest Rates",null,"Int. Down - After Shock - Other - Liab. with Mgmt Action - Swiss Francs",null,null,null,null,null,null,null,null,0]
["Sch XXIII","Interest Rates",null,"Int. Down - After Shock - Other - Liab. with Mgmt Action - Australia Dollar",null,null,null,null,null,null,null,null,0]
["Sch XXIII","Interest Rates",null,"Int. Down - After Shock - Other - Liab. with Mgmt Action - New Zealand Dollar",null,null,null,null,null,null,null,null,0]
["Sch XXIII","Interest Rates",null,{"$f":"\"Int. Down - After Shock - Other - Liab. with Mgmt Action - \"&'Schedule XXIII'!$C$18","v":"Int. Down - After Shock - Other - Liab. with Mgmt Action - Other currency 1"},null,null,null,null,null,null,null,null,0]
["Sch XXIII","Interest Rates",null,{"$f":"\"Int. Down - After Shock - Other - Liab. with Mgmt Action - \"&'Schedule XXIII'!$C$19","v":"Int. Down - After Shock - Other - Liab. with Mgmt Action - Other currency 2"},null,null,null,null,null,null,null,null,0]
["Sch XXIII","Interest Rates",null,{"$f":"\"Int. Down - After Shock - Other - Liab. with Mgmt Action - \"&'Schedule XXIII'!$C$20","v":"Int. Down - After Shock - Other - Liab. with Mgmt Action - Other currency 3"},null,null,null,null,null,null,null,null,0]
["Sch XXIII","Interest Rates",null,{"$f":"\"Int. Down - After Shock - Other - Liab. with Mgmt Action - \"&'Schedule XXIII'!$C$21","v":"Int. Down - After Shock - Other - Liab. with Mgmt Action - Other currency 4"},null,null,null,null,null,null,null,null,0]
["Sch XXIII","Interest Rates",null,{"$f":"\"Int. Down - After Shock - Other - Liab. with Mgmt Action - \"&'Schedule XXIII'!$C$22","v":"Int. Down - After Shock - Other - Liab. with Mgmt Action - Other currency 5"},null,null,null,null,null,null,null,null,0]
["Sch XXIII","Interest Rates",null,{"$f":"\"Int. Down - After Shock - Other - Liab. with Mgmt Action - \"&'Schedule XXIII'!$C$23","v":"Int. Down - After Shock - Other - Liab. with Mgmt Action - Other currency 6"},null,null,null,null,null,null,null,null,0]
["Sch XXIII","Interest Rates",null,{"$f":"\"Int. Down - After Shock - Other - Liab. with Mgmt Action - \"&'Schedule XXIII'!$C$24","v":"Int. Down - After Shock - Other - Liab. with Mgmt Action - Other currency 7"},null,null,null,null,null,null,null,null,0]
["Sch XXIII","Interest Rates",null,{"$f":"\"Int. Down - After Shock - Other - Liab. with Mgmt Action - \"&'Schedule XXIII'!$C$25","v":"Int. Down - After Shock - Other - Liab. with Mgmt Action - Other currency 8"},null,null,null,null,null,null,null,null,0]
["Sch XXIII","Interest Rates",null,{"$f":"\"Int. Down - After Shock - Other - Liab. with Mgmt Action - \"&'Schedule XXIII'!$C$26","v":"Int. Down - After Shock - Other - Liab. with Mgmt Action - Other currency 9"},null,null,null,null,null,null,null,null,0]
["Sch XXIII","Interest Rates",null,{"$f":"\"Int. Down - After Shock - Other - Liab. with Mgmt Action - \"&'Schedule XXIII'!$C$27","v":"Int. Down - After Shock - Other - Liab. with Mgmt Action - Other currency 10"},null,null,null,null,null,null,null,null,0]
["Sch XXIII","Interest Rates",null,"Int. Down - After Shock - Other - Liab. with Mgmt Action - Total",null,null,null,null,null,null,null,null,0]
["Sch XXIII","Interest Rates",null,"Int. Down - Before Shock - Derivatives - Qualifying Assets - United States Dollars",null,null,null,null,null,null,null,null,0]
["Sch XXIII","Interest Rates",null,"Int. Down - Before Shock - Derivatives - Qualifying Assets - Euro",null,null,null,null,null,null,null,null,0]
["Sch XXIII","Interest Rates",null,"Int. Down - Before Shock - Derivatives - Qualifying Assets - United Kingdom Pounds",null,null,null,null,null,null,null,null,0]
["Sch XXIII","Interest Rates",null,"Int. Down - Before Shock - Derivatives - Qualifying Assets - Japan Yen",null,null,null,null,null,null,null,null,0]
["Sch XXIII","Interest Rates",null,"Int. Down - Before Shock - Derivatives - Qualifying Assets - Canada Dollars",null,null,null,null,null,null,null,null,0]
["Sch XXIII","Interest Rates",null,"Int. Down - Before Shock - Derivatives - Qualifying Assets - Swiss Francs",null,null,null,null,null,null,null,null,0]
["Sch XXIII","Interest Rates",null,"Int. Down - Before Shock - Derivatives - Qualifying Assets - Australia Dollar",null,null,null,null,null,null,null,null,0]
["Sch XXIII","Interest Rates",null,"Int. Down - Before Shock - Derivatives - Qualifying Assets - New Zealand Dollar",null,null,null,null,null,null,null,null,0]
["Sch XXIII","Interest Rates",null,{"$f":"\"Int. Down - Before Shock - Derivatives - Qualifying Assets - \"&'Schedule XXIII'!$C$18","v":"Int. Down - Before Shock - Derivatives - Qualifying Assets - Other currency 1"},null,null,null,null,null,null,null,null,0]
["Sch XXIII","Interest Rates",null,{"$f":"\"Int. Down - Before Shock - Derivatives - Qualifying Assets - \"&'Schedule XXIII'!$C$19","v":"Int. Down - Before Shock - Derivatives - Qualifying Assets - Other currency 2"},null,null,null,null,null,null,null,null,0]
["Sch XXIII","Interest Rates",null,{"$f":"\"Int. Down - Before Shock - Derivatives - Qualifying Assets - \"&'Schedule XXIII'!$C$20","v":"Int. Down - Before Shock - Derivatives - Qualifying Assets - Other currency 3"},null,null,null,null,null,null,null,null,0]
["Sch XXIII","Interest Rates",null,{"$f":"\"Int. Down - Before Shock - Derivatives - Qualifying Assets - \"&'Schedule XXIII'!$C$21","v":"Int. Down - Before Shock - Derivatives - Qualifying Assets - Other currency 4"},null,null,null,null,null,null,null,null,0]
["Sch XXIII","Interest Rates",null,{"$f":"\"Int. Down - Before Shock - Derivatives - Qualifying Assets - \"&'Schedule XXIII'!$C$22","v":"Int. Down - Before Shock - Derivatives - Qualifying Assets - Other currency 5"},null,null,null,null,null,null,null,null,0]
["Sch XXIII","Interest Rates",null,{"$f":"\"Int. Down - Before Shock - Derivatives - Qualifying Assets - \"&'Schedule XXIII'!$C$23","v":"Int. Down - Before Shock - Derivatives - Qualifying Assets - Other currency 6"},null,null,null,null,null,null,null,null,0]
["Sch XXIII","Interest Rates",null,{"$f":"\"Int. Down - Before Shock - Derivatives - Qualifying Assets - \"&'Schedule XXIII'!$C$24","v":"Int. Down - Before Shock - Derivatives - Qualifying Assets - Other currency 7"},null,null,null,null,null,null,null,null,0]
["Sch XXIII","Interest Rates",null,{"$f":"\"Int. Down - Before Shock - Derivatives - Qualifying Assets - \"&'Schedule XXIII'!$C$25","v":"Int. Down - Before Shock - Derivatives - Qualifying Assets - Other currency 8"},null,null,null,null,null,null,null,null,0]
["Sch XXIII","Interest Rates",null,{"$f":"\"Int. Down - Before Shock - Derivatives - Qualifying Assets - \"&'Schedule XXIII'!$C$26","v":"Int. Down - Before Shock - Derivatives - Qualifying Assets - Other currency 9"},null,null,null,null,null,null,null,null,0]
["Sch XXIII","Interest Rates",null,{"$f":"\"Int. Down - Before Shock - Derivatives - Qualifying Assets - \"&'Schedule XXIII'!$C$27","v":"Int. Down - Before Shock - Derivatives - Qualifying Assets - Other currency 10"},null,null,null,null,null,null,null,null,0]
["Sch XXIII","Interest Rates",null,"Int. Down - Before Shock - Derivatives - Qualifying Assets - Total",null,null,null,null,null,null,null,null,0]
["Sch XXIII","Interest Rates",null,"Int. Down - After Shock - Derivatives - Qualifying Assets - United States Dollars",null,null,null,null,null,null,null,null,0]
["Sch XXIII","Interest Rates",null,"Int. Down - After Shock - Derivatives - Qualifying Assets - Euro",null,null,null,null,null,null,null,null,0]
["Sch XXIII","Interest Rates",null,"Int. Down - After Shock - Derivatives - Qualifying Assets - United Kingdom Pounds",null,null,null,null,null,null,null,null,0]
["Sch XXIII","Interest Rates",null,"Int. Down - After Shock - Derivatives - Qualifying Assets - Japan Yen",null,null,null,null,null,null,null,null,0]
["Sch XXIII","Interest Rates",null,"Int. Down - After Shock - Derivatives - Qualifying Assets - Canada Dollars",null,null,null,null,null,null,null,null,0]
["Sch XXIII","Interest Rates",null,"Int. Down - After Shock - Derivatives - Qualifying Assets - Swiss Francs",null,null,null,null,null,null,null,null,0]
["Sch XXIII","Interest Rates",null,"Int. Down - After Shock - Derivatives - Qualifying Assets - Australia Dollar",null,null,null,null,null,null,null,null,0]
["Sch XXIII","Interest Rates",null,"Int. Down - After Shock - Derivatives - Qualifying Assets - New Zealand Dollar",null,null,null,null,null,null,null,null,0]
["Sch XXIII","Interest Rates",null,{"$f":"\"Int. Down - After Shock - Derivatives - Qualifying Assets - \"&'Schedule XXIII'!$C$18","v":"Int. Down - After Shock - Derivatives - Qualifying Assets - Other currency 1"},null,null,null,null,null,null,null,null,0]
["Sch XXIII","Interest Rates",null,{"$f":"\"Int. Down - After Shock - Derivatives - Qualifying Assets - \"&'Schedule XXIII'!$C$19","v":"Int. Down - After Shock - Derivatives - Qualifying Assets - Other currency 2"},null,null,null,null,null,null,null,null,0]
["Sch XXIII","Interest Rates",null,{"$f":"\"Int. Down - After Shock - Derivatives - Qualifying Assets - \"&'Schedule XXIII'!$C$20","v":"Int. Down - After Shock - Derivatives - Qualifying Assets - Other currency 3"},null,null,null,null,null,null,null,null,0]
["Sch XXIII","Interest Rates",null,{"$f":"\"Int. Down - After Shock - Derivatives - Qualifying Assets - \"&'Schedule XXIII'!$C$21","v":"Int. Down - After Shock - Derivatives - Qualifying Assets - Other currency 4"},null,null,null,null,null,null,null,null,0]
["Sch XXIII","Interest Rates",null,{"$f":"\"Int. Down - After Shock - Derivatives - Qualifying Assets - \"&'Schedule XXIII'!$C$22","v":"Int. Down - After Shock - Derivatives - Qualifying Assets - Other currency 5"},null,null,null,null,null,null,null,null,0]
["Sch XXIII","Interest Rates",null,{"$f":"\"Int. Down - After Shock - Derivatives - Qualifying Assets - \"&'Schedule XXIII'!$C$23","v":"Int. Down - After Shock - Derivatives - Qualifying Assets - Other currency 6"},null,null,null,null,null,null,null,null,0]
["Sch XXIII","Interest Rates",null,{"$f":"\"Int. Down - After Shock - Derivatives - Qualifying Assets - \"&'Schedule XXIII'!$C$24","v":"Int. Down - After Shock - Derivatives - Qualifying Assets - Other currency 7"},null,null,null,null,null,null,null,null,0]
["Sch XXIII","Interest Rates",null,{"$f":"\"Int. Down - After Shock - Derivatives - Qualifying Assets - \"&'Schedule XXIII'!$C$25","v":"Int. Down - After Shock - Derivatives - Qualifying Assets - Other currency 8"},null,null,null,null,null,null,null,null,0]
["Sch XXIII","Interest Rates",null,{"$f":"\"Int. Down - After Shock - Derivatives - Qualifying Assets - \"&'Schedule XXIII'!$C$26","v":"Int. Down - After Shock - Derivatives - Qualifying Assets - Other currency 9"},null,null,null,null,null,null,null,null,0]
["Sch XXIII","Interest Rates",null,{"$f":"\"Int. Down - After Shock - Derivatives - Qualifying Assets - \"&'Schedule XXIII'!$C$27","v":"Int. Down - After Shock - Derivatives - Qualifying Assets - Other currency 10"},null,null,null,null,null,null,null,null,0]
["Sch XXIII","Interest Rates",null,"Int. Down - After Shock - Derivatives - Qualifying Assets - Total",null,null,null,null,null,null,null,null,0]
["Sch XXIII","Interest Rates",null,"Int. Down - Before Shock - Derivatives - Not Qualifying Assets - United States Dollars",null,null,null,null,null,null,null,null,0]
["Sch XXIII","Interest Rates",null,"Int. Down - Before Shock - Derivatives - Not Qualifying Assets - Euro",null,null,null,null,null,null,null,null,0]
["Sch XXIII","Interest Rates",null,"Int. Down - Before Shock - Derivatives - Not Qualifying Assets - United Kingdom Pounds",null,null,null,null,null,null,null,null,0]
["Sch XXIII","Interest Rates",null,"Int. Down - Before Shock - Derivatives - Not Qualifying Assets - Japan Yen",null,null,null,null,null,null,null,null,0]
["Sch XXIII","Interest Rates",null,"Int. Down - Before Shock - Derivatives - Not Qualifying Assets - Canada Dollars",null,null,null,null,null,null,null,null,0]
["Sch XXIII","Interest Rates",null,"Int. Down - Before Shock - Derivatives - Not Qualifying Assets - Swiss Francs",null,null,null,null,null,null,null,null,0]
["Sch XXIII","Interest Rates",null,"Int. Down - Before Shock - Derivatives - Not Qualifying Assets - Australia Dollar",null,null,null,null,null,null,null,null,0]
["Sch XXIII","Interest Rates",null,"Int. Down - Before Shock - Derivatives - Not Qualifying Assets - New Zealand Dollar",null,null,null,null,null,null,null,null,0]
["Sch XXIII","Interest Rates",null,{"$f":"\"Int. Down - Before Shock - Derivatives - Not Qualifying Assets - \"&'Schedule XXIII'!$C$18","v":"Int. Down - Before Shock - Derivatives - Not Qualifying Assets - Other currency 1"},null,null,null,null,null,null,null,null,0]
["Sch XXIII","Interest Rates",null,{"$f":"\"Int. Down - Before Shock - Derivatives - Not Qualifying Assets - \"&'Schedule XXIII'!$C$19","v":"Int. Down - Before Shock - Derivatives - Not Qualifying Assets - Other currency 2"},null,null,null,null,null,null,null,null,0]
["Sch XXIII","Interest Rates",null,{"$f":"\"Int. Down - Before Shock - Derivatives - Not Qualifying Assets - \"&'Schedule XXIII'!$C$20","v":"Int. Down - Before Shock - Derivatives - Not Qualifying Assets - Other currency 3"},null,null,null,null,null,null,null,null,0]
["Sch XXIII","Interest Rates",null,{"$f":"\"Int. Down - Before Shock - Derivatives - Not Qualifying Assets - \"&'Schedule XXIII'!$C$21","v":"Int. Down - Before Shock - Derivatives - Not Qualifying Assets - Other currency 4"},null,null,null,null,null,null,null,null,0]
["Sch XXIII","Interest Rates",null,{"$f":"\"Int. Down - Before Shock - Derivatives - Not Qualifying Assets - \"&'Schedule XXIII'!$C$22","v":"Int. Down - Before Shock - Derivatives - Not Qualifying Assets - Other currency 5"},null,null,null,null,null,null,null,null,0]
["Sch XXIII","Interest Rates",null,{"$f":"\"Int. Down - Before Shock - Derivatives - Not Qualifying Assets - \"&'Schedule XXIII'!$C$23","v":"Int. Down - Before Shock - Derivatives - Not Qualifying Assets - Other currency 6"},null,null,null,null,null,null,null,null,0]
["Sch XXIII","Interest Rates",null,{"$f":"\"Int. Down - Before Shock - Derivatives - Not Qualifying Assets - \"&'Schedule XXIII'!$C$24","v":"Int. Down - Before Shock - Derivatives - Not Qualifying Assets - Other currency 7"},null,null,null,null,null,null,null,null,0]
["Sch XXIII","Interest Rates",null,{"$f":"\"Int. Down - Before Shock - Derivatives - Not Qualifying Assets - \"&'Schedule XXIII'!$C$25","v":"Int. Down - Before Shock - Derivatives - Not Qualifying Assets - Other currency 8"},null,null,null,null,null,null,null,null,0]
["Sch XXIII","Interest Rates",null,{"$f":"\"Int. Down - Before Shock - Derivatives - Not Qualifying Assets - \"&'Schedule XXIII'!$C$26","v":"Int. Down - Before Shock - Derivatives - Not Qualifying Assets - Other currency 9"},null,null,null,null,null,null,null,null,0]
["Sch XXIII","Interest Rates",null,{"$f":"\"Int. Down - Before Shock - Derivatives - Not Qualifying Assets - \"&'Schedule XXIII'!$C$27","v":"Int. Down - Before Shock - Derivatives - Not Qualifying Assets - Other currency 10"},null,null,null,null,null,null,null,null,0]
["Sch XXIII","Interest Rates",null,"Int. Down - Before Shock - Derivatives - Not Qualifying Assets - Total",null,null,null,null,null,null,null,null,0]
["Sch XXIII","Interest Rates",null,"Int. Down - After Shock - Derivatives - Not Qualifying Assets - United States Dollars",null,null,null,null,null,null,null,null,0]
["Sch XXIII","Interest Rates",null,"Int. Down - After Shock - Derivatives - Not Qualifying Assets - Euro",null,null,null,null,null,null,null,null,0]
["Sch XXIII","Interest Rates",null,"Int. Down - After Shock - Derivatives - Not Qualifying Assets - United Kingdom Pounds",null,null,null,null,null,null,null,null,0]
["Sch XXIII","Interest Rates",null,"Int. Down - After Shock - Derivatives - Not Qualifying Assets - Japan Yen",null,null,null,null,null,null,null,null,0]
["Sch XXIII","Interest Rates",null,"Int. Down - After Shock - Derivatives - Not Qualifying Assets - Canada Dollars",null,null,null,null,null,null,null,null,0]
["Sch XXIII","Interest Rates",null,"Int. Down - After Shock - Derivatives - Not Qualifying Assets - Swiss Francs",null,null,null,null,null,null,null,null,0]
["Sch XXIII","Interest Rates",null,"Int. Down - After Shock - Derivatives - Not Qualifying Assets - Australia Dollar",null,null,null,null,null,null,null,null,0]
["Sch XXIII","Interest Rates",null,"Int. Down - After Shock - Derivatives - Not Qualifying Assets - New Zealand Dollar",null,null,null,null,null,null,null,null,0]
["Sch XXIII","Interest Rates",null,{"$f":"\"Int. Down - After Shock - Derivatives - Not Qualifying Assets - \"&'Schedule XXIII'!$C$18","v":"Int. Down - After Shock - Derivatives - Not Qualifying Assets - Other currency 1"},null,null,null,null,null,null,null,null,0]
["Sch XXIII","Interest Rates",null,{"$f":"\"Int. Down - After Shock - Derivatives - Not Qualifying Assets - \"&'Schedule XXIII'!$C$19","v":"Int. Down - After Shock - Derivatives - Not Qualifying Assets - Other currency 2"},null,null,null,null,null,null,null,null,0]
["Sch XXIII","Interest Rates",null,{"$f":"\"Int. Down - After Shock - Derivatives - Not Qualifying Assets - \"&'Schedule XXIII'!$C$20","v":"Int. Down - After Shock - Derivatives - Not Qualifying Assets - Other currency 3"},null,null,null,null,null,null,null,null,0]
["Sch XXIII","Interest Rates",null,{"$f":"\"Int. Down - After Shock - Derivatives - Not Qualifying Assets - \"&'Schedule XXIII'!$C$21","v":"Int. Down - After Shock - Derivatives - Not Qualifying Assets - Other currency 4"},null,null,null,null,null,null,null,null,0]
["Sch XXIII","Interest Rates",null,{"$f":"\"Int. Down - After Shock - Derivatives - Not Qualifying Assets - \"&'Schedule XXIII'!$C$22","v":"Int. Down - After Shock - Derivatives - Not Qualifying Assets - Other currency 5"},null,null,null,null,null,null,null,null,0]
["Sch XXIII","Interest Rates",null,{"$f":"\"Int. Down - After Shock - Derivatives - Not Qualifying Assets - \"&'Schedule XXIII'!$C$23","v":"Int. Down - After Shock - Derivatives - Not Qualifying Assets - Other currency 6"},null,null,null,null,null,null,null,null,0]
["Sch XXIII","Interest Rates",null,{"$f":"\"Int. Down - After Shock - Derivatives - Not Qualifying Assets - \"&'Schedule XXIII'!$C$24","v":"Int. Down - After Shock - Derivatives - Not Qualifying Assets - Other currency 7"},null,null,null,null,null,null,null,null,0]
["Sch XXIII","Interest Rates",null,{"$f":"\"Int. Down - After Shock - Derivatives - Not Qualifying Assets - \"&'Schedule XXIII'!$C$25","v":"Int. Down - After Shock - Derivatives - Not Qualifying Assets - Other currency 8"},null,null,null,null,null,null,null,null,0]
["Sch XXIII","Interest Rates",null,{"$f":"\"Int. Down - After Shock - Derivatives - Not Qualifying Assets - \"&'Schedule XXIII'!$C$26","v":"Int. Down - After Shock - Derivatives - Not Qualifying Assets - Other currency 9"},null,null,null,null,null,null,null,null,0]
["Sch XXIII","Interest Rates",null,{"$f":"\"Int. Down - After Shock - Derivatives - Not Qualifying Assets - \"&'Schedule XXIII'!$C$27","v":"Int. Down - After Shock - Derivatives - Not Qualifying Assets - Other currency 10"},null,null,null,null,null,null,null,null,0]
["Sch XXIII","Interest Rates",null,"Int. Down - After Shock - Derivatives - Not Qualifying Assets - Total",null,null,null,null,null,null,null,null,0]
["Sch XXIII","Interest Rates",null,"Int. Down - Before Shock - Derivatives - Liab. w/o Mgmt Action - United States Dollars",null,null,null,null,null,null,null,null,0]
["Sch XXIII","Interest Rates",null,"Int. Down - Before Shock - Derivatives - Liab. w/o Mgmt Action - Euro",null,null,null,null,null,null,null,null,0]
["Sch XXIII","Interest Rates",null,"Int. Down - Before Shock - Derivatives - Liab. w/o Mgmt Action - United Kingdom Pounds",null,null,null,null,null,null,null,null,0]
["Sch XXIII","Interest Rates",null,"Int. Down - Before Shock - Derivatives - Liab. w/o Mgmt Action - Japan Yen",null,null,null,null,null,null,null,null,0]
["Sch XXIII","Interest Rates",null,"Int. Down - Before Shock - Derivatives - Liab. w/o Mgmt Action - Canada Dollars",null,null,null,null,null,null,null,null,0]
["Sch XXIII","Interest Rates",null,"Int. Down - Before Shock - Derivatives - Liab. w/o Mgmt Action - Swiss Francs",null,null,null,null,null,null,null,null,0]
["Sch XXIII","Interest Rates",null,"Int. Down - Before Shock - Derivatives - Liab. w/o Mgmt Action - Australia Dollar",null,null,null,null,null,null,null,null,0]
["Sch XXIII","Interest Rates",null,"Int. Down - Before Shock - Derivatives - Liab. w/o Mgmt Action - New Zealand Dollar",null,null,null,null,null,null,null,null,0]
["Sch XXIII","Interest Rates",null,{"$f":"\"Int. Down - Before Shock - Derivatives - Liab. w/o Mgmt Action - \"&'Schedule XXIII'!$C$18","v":"Int. Down - Before Shock - Derivatives - Liab. w/o Mgmt Action - Other currency 1"},null,null,null,null,null,null,null,null,0]
["Sch XXIII","Interest Rates",null,{"$f":"\"Int. Down - Before Shock - Derivatives - Liab. w/o Mgmt Action - \"&'Schedule XXIII'!$C$19","v":"Int. Down - Before Shock - Derivatives - Liab. w/o Mgmt Action - Other currency 2"},null,null,null,null,null,null,null,null,0]
["Sch XXIII","Interest Rates",null,{"$f":"\"Int. Down - Before Shock - Derivatives - Liab. w/o Mgmt Action - \"&'Schedule XXIII'!$C$20","v":"Int. Down - Before Shock - Derivatives - Liab. w/o Mgmt Action - Other currency 3"},null,null,null,null,null,null,null,null,0]
["Sch XXIII","Interest Rates",null,{"$f":"\"Int. Down - Before Shock - Derivatives - Liab. w/o Mgmt Action - \"&'Schedule XXIII'!$C$21","v":"Int. Down - Before Shock - Derivatives - Liab. w/o Mgmt Action - Other currency 4"},null,null,null,null,null,null,null,null,0]
["Sch XXIII","Interest Rates",null,{"$f":"\"Int. Down - Before Shock - Derivatives - Liab. w/o Mgmt Action - \"&'Schedule XXIII'!$C$22","v":"Int. Down - Before Shock - Derivatives - Liab. w/o Mgmt Action - Other currency 5"},null,null,null,null,null,null,null,null,0]
["Sch XXIII","Interest Rates",null,{"$f":"\"Int. Down - Before Shock - Derivatives - Liab. w/o Mgmt Action - \"&'Schedule XXIII'!$C$23","v":"Int. Down - Before Shock - Derivatives - Liab. w/o Mgmt Action - Other currency 6"},null,null,null,null,null,null,null,null,0]
["Sch XXIII","Interest Rates",null,{"$f":"\"Int. Down - Before Shock - Derivatives - Liab. w/o Mgmt Action - \"&'Schedule XXIII'!$C$24","v":"Int. Down - Before Shock - Derivatives - Liab. w/o Mgmt Action - Other currency 7"},null,null,null,null,null,null,null,null,0]
["Sch XXIII","Interest Rates",null,{"$f":"\"Int. Down - Before Shock - Derivatives - Liab. w/o Mgmt Action - \"&'Schedule XXIII'!$C$25","v":"Int. Down - Before Shock - Derivatives - Liab. w/o Mgmt Action - Other currency 8"},null,null,null,null,null,null,null,null,0]
["Sch XXIII","Interest Rates",null,{"$f":"\"Int. Down - Before Shock - Derivatives - Liab. w/o Mgmt Action - \"&'Schedule XXIII'!$C$26","v":"Int. Down - Before Shock - Derivatives - Liab. w/o Mgmt Action - Other currency 9"},null,null,null,null,null,null,null,null,0]
["Sch XXIII","Interest Rates",null,{"$f":"\"Int. Down - Before Shock - Derivatives - Liab. w/o Mgmt Action - \"&'Schedule XXIII'!$C$27","v":"Int. Down - Before Shock - Derivatives - Liab. w/o Mgmt Action - Other currency 10"},null,null,null,null,null,null,null,null,0]
["Sch XXIII","Interest Rates",null,"Int. Down - Before Shock - Derivatives - Liab. w/o Mgmt Action - Total",null,null,null,null,null,null,null,null,0]
["Sch XXIII","Interest Rates",null,"Int. Down - After Shock - Derivatives - Liab. w/o Mgmt Action - United States Dollars",null,null,null,null,null,null,null,null,0]
["Sch XXIII","Interest Rates",null,"Int. Down - After Shock - Derivatives - Liab. w/o Mgmt Action - Euro",null,null,null,null,null,null,null,null,0]
["Sch XXIII","Interest Rates",null,"Int. Down - After Shock - Derivatives - Liab. w/o Mgmt Action - United Kingdom Pounds",null,null,null,null,null,null,null,null,0]
["Sch XXIII","Interest Rates",null,"Int. Down - After Shock - Derivatives - Liab. w/o Mgmt Action - Japan Yen",null,null,null,null,null,null,null,null,0]
["Sch XXIII","Interest Rates",null,"Int. Down - After Shock - Derivatives - Liab. w/o Mgmt Action - Canada Dollars",null,null,null,null,null,null,null,null,0]
["Sch XXIII","Interest Rates",null,"Int. Down - After Shock - Derivatives - Liab. w/o Mgmt Action - Swiss Francs",null,null,null,null,null,null,null,null,0]
["Sch XXIII","Interest Rates",null,"Int. Down - After Shock - Derivatives - Liab. w/o Mgmt Action - Australia Dollar",null,null,null,null,null,null,null,null,0]
["Sch XXIII","Interest Rates",null,"Int. Down - After Shock - Derivatives - Liab. w/o Mgmt Action - New Zealand Dollar",null,null,null,null,null,null,null,null,0]
["Sch XXIII","Interest Rates",null,{"$f":"\"Int. Down - After Shock - Derivatives - Liab. w/o Mgmt Action - \"&'Schedule XXIII'!$C$18","v":"Int. Down - After Shock - Derivatives - Liab. w/o Mgmt Action - Other currency 1"},null,null,null,null,null,null,null,null,0]
["Sch XXIII","Interest Rates",null,{"$f":"\"Int. Down - After Shock - Derivatives - Liab. w/o Mgmt Action - \"&'Schedule XXIII'!$C$19","v":"Int. Down - After Shock - Derivatives - Liab. w/o Mgmt Action - Other currency 2"},null,null,null,null,null,null,null,null,0]
["Sch XXIII","Interest Rates",null,{"$f":"\"Int. Down - After Shock - Derivatives - Liab. w/o Mgmt Action - \"&'Schedule XXIII'!$C$20","v":"Int. Down - After Shock - Derivatives - Liab. w/o Mgmt Action - Other currency 3"},null,null,null,null,null,null,null,null,0]
["Sch XXIII","Interest Rates",null,{"$f":"\"Int. Down - After Shock - Derivatives - Liab. w/o Mgmt Action - \"&'Schedule XXIII'!$C$21","v":"Int. Down - After Shock - Derivatives - Liab. w/o Mgmt Action - Other currency 4"},null,null,null,null,null,null,null,null,0]
["Sch XXIII","Interest Rates",null,{"$f":"\"Int. Down - After Shock - Derivatives - Liab. w/o Mgmt Action - \"&'Schedule XXIII'!$C$22","v":"Int. Down - After Shock - Derivatives - Liab. w/o Mgmt Action - Other currency 5"},null,null,null,null,null,null,null,null,0]
["Sch XXIII","Interest Rates",null,{"$f":"\"Int. Down - After Shock - Derivatives - Liab. w/o Mgmt Action - \"&'Schedule XXIII'!$C$23","v":"Int. Down - After Shock - Derivatives - Liab. w/o Mgmt Action - Other currency 6"},null,null,null,null,null,null,null,null,0]
["Sch XXIII","Interest Rates",null,{"$f":"\"Int. Down - After Shock - Derivatives - Liab. w/o Mgmt Action - \"&'Schedule XXIII'!$C$24","v":"Int. Down - After Shock - Derivatives - Liab. w/o Mgmt Action - Other currency 7"},null,null,null,null,null,null,null,null,0]
["Sch XXIII","Interest Rates",null,{"$f":"\"Int. Down - After Shock - Derivatives - Liab. w/o Mgmt Action - \"&'Schedule XXIII'!$C$25","v":"Int. Down - After Shock - Derivatives - Liab. w/o Mgmt Action - Other currency 8"},null,null,null,null,null,null,null,null,0]
["Sch XXIII","Interest Rates",null,{"$f":"\"Int. Down - After Shock - Derivatives - Liab. w/o Mgmt Action - \"&'Schedule XXIII'!$C$26","v":"Int. Down - After Shock - Derivatives - Liab. w/o Mgmt Action - Other currency 9"},null,null,null,null,null,null,null,null,0]
["Sch XXIII","Interest Rates",null,{"$f":"\"Int. Down - After Shock - Derivatives - Liab. w/o Mgmt Action - \"&'Schedule XXIII'!$C$27","v":"Int. Down - After Shock - Derivatives - Liab. w/o Mgmt Action - Other currency 10"},null,null,null,null,null,null,null,null,0]
["Sch XXIII","Interest Rates",null,"Int. Down - After Shock - Derivatives - Liab. w/o Mgmt Action - Total",null,null,null,null,null,null,null,null,0]
["Sch XXIII","Interest Rates",null,"Int. Down - After Shock - Derivatives - Liab. with Mgmt Action - United States Dollars",null,null,null,null,null,null,null,null,0]
["Sch XXIII","Interest Rates",null,"Int. Down - After Shock - Derivatives - Liab. with Mgmt Action - Euro",null,null,null,null,null,null,null,null,0]
["Sch XXIII","Interest Rates",null,"Int. Down - After Shock - Derivatives - Liab. with Mgmt Action - United Kingdom Pounds",null,null,null,null,null,null,null,null,0]
["Sch XXIII","Interest Rates",null,"Int. Down - After Shock - Derivatives - Liab. with Mgmt Action - Japan Yen",null,null,null,null,null,null,null,null,0]
["Sch XXIII","Interest Rates",null,"Int. Down - After Shock - Derivatives - Liab. with Mgmt Action - Canada Dollars",null,null,null,null,null,null,null,null,0]
["Sch XXIII","Interest Rates",null,"Int. Down - After Shock - Derivatives - Liab. with Mgmt Action - Swiss Francs",null,null,null,null,null,null,null,null,0]
["Sch XXIII","Interest Rates",null,"Int. Down - After Shock - Derivatives - Liab. with Mgmt Action - Australia Dollar",null,null,null,null,null,null,null,null,0]
["Sch XXIII","Interest Rates",null,"Int. Down - After Shock - Derivatives - Liab. with Mgmt Action - New Zealand Dollar",null,null,null,null,null,null,null,null,0]
["Sch XXIII","Interest Rates",null,{"$f":"\"Int. Down - After Shock - Derivatives - Liab. with Mgmt Action - \"&'Schedule XXIII'!$C$18","v":"Int. Down - After Shock - Derivatives - Liab. with Mgmt Action - Other currency 1"},null,null,null,null,null,null,null,null,0]
["Sch XXIII","Interest Rates",null,{"$f":"\"Int. Down - After Shock - Derivatives - Liab. with Mgmt Action - \"&'Schedule XXIII'!$C$19","v":"Int. Down - After Shock - Derivatives - Liab. with Mgmt Action - Other currency 2"},null,null,null,null,null,null,null,null,0]
["Sch XXIII","Interest Rates",null,{"$f":"\"Int. Down - After Shock - Derivatives - Liab. with Mgmt Action - \"&'Schedule XXIII'!$C$20","v":"Int. Down - After Shock - Derivatives - Liab. with Mgmt Action - Other currency 3"},null,null,null,null,null,null,null,null,0]
["Sch XXIII","Interest Rates",null,{"$f":"\"Int. Down - After Shock - Derivatives - Liab. with Mgmt Action - \"&'Schedule XXIII'!$C$21","v":"Int. Down - After Shock - Derivatives - Liab. with Mgmt Action - Other currency 4"},null,null,null,null,null,null,null,null,0]
["Sch XXIII","Interest Rates",null,{"$f":"\"Int. Down - After Shock - Derivatives - Liab. with Mgmt Action - \"&'Schedule XXIII'!$C$22","v":"Int. Down - After Shock - Derivatives - Liab. with Mgmt Action - Other currency 5"},null,null,null,null,null,null,null,null,0]
["Sch XXIII","Interest Rates",null,{"$f":"\"Int. Down - After Shock - Derivatives - Liab. with Mgmt Action - \"&'Schedule XXIII'!$C$23","v":"Int. Down - After Shock - Derivatives - Liab. with Mgmt Action - Other currency 6"},null,null,null,null,null,null,null,null,0]
["Sch XXIII","Interest Rates",null,{"$f":"\"Int. Down - After Shock - Derivatives - Liab. with Mgmt Action - \"&'Schedule XXIII'!$C$24","v":"Int. Down - After Shock - Derivatives - Liab. with Mgmt Action - Other currency 7"},null,null,null,null,null,null,null,null,0]
["Sch XXIII","Interest Rates",null,{"$f":"\"Int. Down - After Shock - Derivatives - Liab. with Mgmt Action - \"&'Schedule XXIII'!$C$25","v":"Int. Down - After Shock - Derivatives - Liab. with Mgmt Action - Other currency 8"},null,null,null,null,null,null,null,null,0]
["Sch XXIII","Interest Rates",null,{"$f":"\"Int. Down - After Shock - Derivatives - Liab. with Mgmt Action - \"&'Schedule XXIII'!$C$26","v":"Int. Down - After Shock - Derivatives - Liab. with Mgmt Action - Other currency 9"},null,null,null,null,null,null,null,null,0]
["Sch XXIII","Interest Rates",null,{"$f":"\"Int. Down - After Shock - Derivatives - Liab. with Mgmt Action - \"&'Schedule XXIII'!$C$27","v":"Int. Down - After Shock - Derivatives - Liab. with Mgmt Action - Other currency 10"},null,null,null,null,null,null,null,null,0]
["Sch XXIII","Interest Rates",null,"Int. Down - After Shock - Derivatives - Liab. with Mgmt Action - Total",null,null,null,null,null,null,null,null,0]
["Sch XXIII","Interest Rates",null,"Other currency 1",null,null,null,null,null,null,null,null,"Other currency 1"]
["Sch XXIII","Interest Rates",null,"Other currency 2",null,null,null,null,null,null,null,null,"Other currency 2"]
["Sch XXIII","Interest Rates",null,"Other currency 3",null,null,null,null,null,null,null,null,"Other currency 3"]
["Sch XXIII","Interest Rates",null,"Other currency 4",null,null,null,null,null,null,null,null,"Other currency 4"]
["Sch XXIII","Interest Rates",null,"Other currency 5",null,null,null,null,null,null,null,null,"Other currency 5"]
["Sch XXIII","Interest Rates",null,"Other currency 6",null,null,null,null,null,null,null,null,"Other currency 6"]
["Sch XXIII","Interest Rates",null,"Other currency 7",null,null,null,null,null,null,null,null,"Other currency 7"]
["Sch XXIII","Interest Rates",null,"Other currency 8",null,null,null,null,null,null,null,null,"Other currency 8"]
["Sch XXIII","Interest Rates",null,"Other currency 9",null,null,null,null,null,null,null,null,"Other currency 9"]
["Sch XXIII","Interest Rates",null,"Other currency 10",null,null,null,null,null,null,null,null,"Other currency 10"]
["Sch XXIII","Interest Rates",null,"Int. Up - Before Shock - Other - Qualifying Assets - United States Dollars",null,null,null,null,null,null,null,null,0]
["Sch XXIII","Interest Rates",null,"Int. Up - Before Shock - Other - Qualifying Assets - Euro",null,null,null,null,null,null,null,null,0]
["Sch XXIII","Interest Rates",null,"Int. Up - Before Shock - Other - Qualifying Assets - United Kingdom Pounds",null,null,null,null,null,null,null,null,0]
["Sch XXIII","Interest Rates",null,"Int. Up - Before Shock - Other - Qualifying Assets - Japan Yen",null,null,null,null,null,null,null,null,0]
["Sch XXIII","Interest Rates",null,"Int. Up - Before Shock - Other - Qualifying Assets - Canada Dollars",null,null,null,null,null,null,null,null,0]
["Sch XXIII","Interest Rates",null,"Int. Up - Before Shock - Other - Qualifying Assets - Swiss Francs",null,null,null,null,null,null,null,null,0]
["Sch XXIII","Interest Rates",null,"Int. Up - Before Shock - Other - Qualifying Assets - Australia Dollar",null,null,null,null,null,null,null,null,0]
["Sch XXIII","Interest Rates",null,"Int. Up - Before Shock - Other - Qualifying Assets - New Zealand Dollar",null,null,null,null,null,null,null,null,0]
["Sch XXIII","Interest Rates",null,{"$f":"\"Int. Up - Before Shock - Other - Qualifying Assets - \"&'Schedule XXIII'!$C$18","v":"Int. Up - Before Shock - Other - Qualifying Assets - Other currency 1"},null,null,null,null,null,null,null,null,0]
["Sch XXIII","Interest Rates",null,{"$f":"\"Int. Up - Before Shock - Other - Qualifying Assets - \"&'Schedule XXIII'!$C$19","v":"Int. Up - Before Shock - Other - Qualifying Assets - Other currency 2"},null,null,null,null,null,null,null,null,0]
["Sch XXIII","Interest Rates",null,{"$f":"\"Int. Up - Before Shock - Other - Qualifying Assets - \"&'Schedule XXIII'!$C$20","v":"Int. Up - Before Shock - Other - Qualifying Assets - Other currency 3"},null,null,null,null,null,null,null,null,0]
["Sch XXIII","Interest Rates",null,{"$f":"\"Int. Up - Before Shock - Other - Qualifying Assets - \"&'Schedule XXIII'!$C$21","v":"Int. Up - Before Shock - Other - Qualifying Assets - Other currency 4"},null,null,null,null,null,null,null,null,0]
["Sch XXIII","Interest Rates",null,{"$f":"\"Int. Up - Before Shock - Other - Qualifying Assets - \"&'Schedule XXIII'!$C$22","v":"Int. Up - Before Shock - Other - Qualifying Assets - Other currency 5"},null,null,null,null,null,null,null,null,0]
["Sch XXIII","Interest Rates",null,{"$f":"\"Int. Up - Before Shock - Other - Qualifying Assets - \"&'Schedule XXIII'!$C$23","v":"Int. Up - Before Shock - Other - Qualifying Assets - Other currency 6"},null,null,null,null,null,null,null,null,0]
["Sch XXIII","Interest Rates",null,{"$f":"\"Int. Up - Before Shock - Other - Qualifying Assets - \"&'Schedule XXIII'!$C$24","v":"Int. Up - Before Shock - Other - Qualifying Assets - Other currency 7"},null,null,null,null,null,null,null,null,0]
["Sch XXIII","Interest Rates",null,{"$f":"\"Int. Up - Before Shock - Other - Qualifying Assets - \"&'Schedule XXIII'!$C$25","v":"Int. Up - Before Shock - Other - Qualifying Assets - Other currency 8"},null,null,null,null,null,null,null,null,0]
["Sch XXIII","Interest Rates",null,{"$f":"\"Int. Up - Before Shock - Other - Qualifying Assets - \"&'Schedule XXIII'!$C$26","v":"Int. Up - Before Shock - Other - Qualifying Assets - Other currency 9"},null,null,null,null,null,null,null,null,0]
["Sch XXIII","Interest Rates",null,{"$f":"\"Int. Up - Before Shock - Other - Qualifying Assets - \"&'Schedule XXIII'!$C$27","v":"Int. Up - Before Shock - Other - Qualifying Assets - Other currency 10"},null,null,null,null,null,null,null,null,0]
["Sch XXIII","Interest Rates",null,"Int. Up - Before Shock - Other - Qualifying Assets - Total",null,null,null,null,null,null,null,null,0]
["Sch XXIII","Interest Rates",null,"Int. Up - After Shock - Other - Qualifying Assets - United States Dollars",null,null,null,null,null,null,null,null,0]
["Sch XXIII","Interest Rates",null,"Int. Up - After Shock - Other - Qualifying Assets - Euro",null,null,null,null,null,null,null,null,0]
["Sch XXIII","Interest Rates",null,"Int. Up - After Shock - Other - Qualifying Assets - United Kingdom Pounds",null,null,null,null,null,null,null,null,0]
["Sch XXIII","Interest Rates",null,"Int. Up - After Shock - Other - Qualifying Assets - Japan Yen",null,null,null,null,null,null,null,null,0]
["Sch XXIII","Interest Rates",null,"Int. Up - After Shock - Other - Qualifying Assets - Canada Dollars",null,null,null,null,null,null,null,null,0]
["Sch XXIII","Interest Rates",null,"Int. Up - After Shock - Other - Qualifying Assets - Swiss Francs",null,null,null,null,null,null,null,null,0]
["Sch XXIII","Interest Rates",null,"Int. Up - After Shock - Other - Qualifying Assets - Australia Dollar",null,null,null,null,null,null,null,null,0]
["Sch XXIII","Interest Rates",null,"Int. Up - After Shock - Other - Qualifying Assets - New Zealand Dollar",null,null,null,null,null,null,null,null,0]
["Sch XXIII","Interest Rates",null,{"$f":"\"Int. Up - After Shock - Other - Qualifying Assets - \"&'Schedule XXIII'!$C$18","v":"Int. Up - After Shock - Other - Qualifying Assets - Other currency 1"},null,null,null,null,null,null,null,null,0]
["Sch XXIII","Interest Rates",null,{"$f":"\"Int. Up - After Shock - Other - Qualifying Assets - \"&'Schedule XXIII'!$C$19","v":"Int. Up - After Shock - Other - Qualifying Assets - Other currency 2"},null,null,null,null,null,null,null,null,0]
["Sch XXIII","Interest Rates",null,{"$f":"\"Int. Up - After Shock - Other - Qualifying Assets - \"&'Schedule XXIII'!$C$20","v":"Int. Up - After Shock - Other - Qualifying Assets - Other currency 3"},null,null,null,null,null,null,null,null,0]
["Sch XXIII","Interest Rates",null,{"$f":"\"Int. Up - After Shock - Other - Qualifying Assets - \"&'Schedule XXIII'!$C$21","v":"Int. Up - After Shock - Other - Qualifying Assets - Other currency 4"},null,null,null,null,null,null,null,null,0]
["Sch XXIII","Interest Rates",null,{"$f":"\"Int. Up - After Shock - Other - Qualifying Assets - \"&'Schedule XXIII'!$C$22","v":"Int. Up - After Shock - Other - Qualifying Assets - Other currency 5"},null,null,null,null,null,null,null,null,0]
["Sch XXIII","Interest Rates",null,{"$f":"\"Int. Up - After Shock - Other - Qualifying Assets - \"&'Schedule XXIII'!$C$23","v":"Int. Up - After Shock - Other - Qualifying Assets - Other currency 6"},null,null,null,null,null,null,null,null,0]
["Sch XXIII","Interest Rates",null,{"$f":"\"Int. Up - After Shock - Other - Qualifying Assets - \"&'Schedule XXIII'!$C$24","v":"Int. Up - After Shock - Other - Qualifying Assets - Other currency 7"},null,null,null,null,null,null,null,null,0]
["Sch XXIII","Interest Rates",null,{"$f":"\"Int. Up - After Shock - Other - Qualifying Assets - \"&'Schedule XXIII'!$C$25","v":"Int. Up - After Shock - Other - Qualifying Assets - Other currency 8"},null,null,null,null,null,null,null,null,0]
["Sch XXIII","Interest Rates",null,{"$f":"\"Int. Up - After Shock - Other - Qualifying Assets - \"&'Schedule XXIII'!$C$26","v":"Int. Up - After Shock - Other - Qualifying Assets - Other currency 9"},null,null,null,null,null,null,null,null,0]
["Sch XXIII","Interest Rates",null,{"$f":"\"Int. Up - After Shock - Other - Qualifying Assets - \"&'Schedule XXIII'!$C$27","v":"Int. Up - After Shock - Other - Qualifying Assets - Other currency 10"},null,null,null,null,null,null,null,null,0]
["Sch XXIII","Interest Rates",null,"Int. Up - After Shock - Other - Qualifying Assets - Total",null,null,null,null,null,null,null,null,0]
["Sch XXIII","Interest Rates",null,"Int. Up - Before Shock - Other - Liab. w/o Mgmt Action - United States Dollars",null,null,null,null,null,null,null,null,0]
["Sch XXIII","Interest Rates",null,"Int. Up - Before Shock - Other - Liab. w/o Mgmt Action - Euro",null,null,null,null,null,null,null,null,0]
["Sch XXIII","Interest Rates",null,"Int. Up - Before Shock - Other - Liab. w/o Mgmt Action - United Kingdom Pounds",null,null,null,null,null,null,null,null,0]
["Sch XXIII","Interest Rates",null,"Int. Up - Before Shock - Other - Liab. w/o Mgmt Action - Japan Yen",null,null,null,null,null,null,null,null,0]
["Sch XXIII","Interest Rates",null,"Int. Up - Before Shock - Other - Liab. w/o Mgmt Action - Canada Dollars",null,null,null,null,null,null,null,null,0]
["Sch XXIII","Interest Rates",null,"Int. Up - Before Shock - Other - Liab. w/o Mgmt Action - Swiss Francs",null,null,null,null,null,null,null,null,0]
["Sch XXIII","Interest Rates",null,"Int. Up - Before Shock - Other - Liab. w/o Mgmt Action - Australia Dollar",null,null,null,null,null,null,null,null,0]
["Sch XXIII","Interest Rates",null,"Int. Up - Before Shock - Other - Liab. w/o Mgmt Action - New Zealand Dollar",null,null,null,null,null,null,null,null,0]
["Sch XXIII","Interest Rates",null,{"$f":"\"Int. Up - Before Shock - Other - Liab. w/o Mgmt Action - \"&'Schedule XXIII'!$C$18","v":"Int. Up - Before Shock - Other - Liab. w/o Mgmt Action - Other currency 1"},null,null,null,null,null,null,null,null,0]
["Sch XXIII","Interest Rates",null,{"$f":"\"Int. Up - Before Shock - Other - Liab. w/o Mgmt Action - \"&'Schedule XXIII'!$C$19","v":"Int. Up - Before Shock - Other - Liab. w/o Mgmt Action - Other currency 2"},null,null,null,null,null,null,null,null,0]
["Sch XXIII","Interest Rates",null,{"$f":"\"Int. Up - Before Shock - Other - Liab. w/o Mgmt Action - \"&'Schedule XXIII'!$C$20","v":"Int. Up - Before Shock - Other - Liab. w/o Mgmt Action - Other currency 3"},null,null,null,null,null,null,null,null,0]
["Sch XXIII","Interest Rates",null,{"$f":"\"Int. Up - Before Shock - Other - Liab. w/o Mgmt Action - \"&'Schedule XXIII'!$C$21","v":"Int. Up - Before Shock - Other - Liab. w/o Mgmt Action - Other currency 4"},null,null,null,null,null,null,null,null,0]
["Sch XXIII","Interest Rates",null,{"$f":"\"Int. Up - Before Shock - Other - Liab. w/o Mgmt Action - \"&'Schedule XXIII'!$C$22","v":"Int. Up - Before Shock - Other - Liab. w/o Mgmt Action - Other currency 5"},null,null,null,null,null,null,null,null,0]
["Sch XXIII","Interest Rates",null,{"$f":"\"Int. Up - Before Shock - Other - Liab. w/o Mgmt Action - \"&'Schedule XXIII'!$C$23","v":"Int. Up - Before Shock - Other - Liab. w/o Mgmt Action - Other currency 6"},null,null,null,null,null,null,null,null,0]
["Sch XXIII","Interest Rates",null,{"$f":"\"Int. Up - Before Shock - Other - Liab. w/o Mgmt Action - \"&'Schedule XXIII'!$C$24","v":"Int. Up - Before Shock - Other - Liab. w/o Mgmt Action - Other currency 7"},null,null,null,null,null,null,null,null,0]
["Sch XXIII","Interest Rates",null,{"$f":"\"Int. Up - Before Shock - Other - Liab. w/o Mgmt Action - \"&'Schedule XXIII'!$C$25","v":"Int. Up - Before Shock - Other - Liab. w/o Mgmt Action - Other currency 8"},null,null,null,null,null,null,null,null,0]
["Sch XXIII","Interest Rates",null,{"$f":"\"Int. Up - Before Shock - Other - Liab. w/o Mgmt Action - \"&'Schedule XXIII'!$C$26","v":"Int. Up - Before Shock - Other - Liab. w/o Mgmt Action - Other currency 9"},null,null,null,null,null,null,null,null,0]
["Sch XXIII","Interest Rates",null,{"$f":"\"Int. Up - Before Shock - Other - Liab. w/o Mgmt Action - \"&'Schedule XXIII'!$C$27","v":"Int. Up - Before Shock - Other - Liab. w/o Mgmt Action - Other currency 10"},null,null,null,null,null,null,null,null,0]
["Sch XXIII","Interest Rates",null,"Int. Up - Before Shock - Other - Liab. w/o Mgmt Action - Total",null,null,null,null,null,null,null,null,0]
["Sch XXIII","Interest Rates",null,"Int. Up - After Shock - Other - Liab. w/o Mgmt Action - United States Dollars",null,null,null,null,null,null,null,null,0]
["Sch XXIII","Interest Rates",null,"Int. Up - After Shock - Other - Liab. w/o Mgmt Action - Euro",null,null,null,null,null,null,null,null,0]
["Sch XXIII","Interest Rates",null,"Int. Up - After Shock - Other - Liab. w/o Mgmt Action - United Kingdom Pounds",null,null,null,null,null,null,null,null,0]
["Sch XXIII","Interest Rates",null,"Int. Up - After Shock - Other - Liab. w/o Mgmt Action - Japan Yen",null,null,null,null,null,null,null,null,0]
["Sch XXIII","Interest Rates",null,"Int. Up - After Shock - Other - Liab. w/o Mgmt Action - Canada Dollars",null,null,null,null,null,null,null,null,0]
["Sch XXIII","Interest Rates",null,"Int. Up - After Shock - Other - Liab. w/o Mgmt Action - Swiss Francs",null,null,null,null,null,null,null,null,0]
["Sch XXIII","Interest Rates",null,"Int. Up - After Shock - Other - Liab. w/o Mgmt Action - Australia Dollar",null,null,null,null,null,null,null,null,0]
["Sch XXIII","Interest Rates",null,"Int. Up - After Shock - Other - Liab. w/o Mgmt Action - New Zealand Dollar",null,null,null,null,null,null,null,null,0]
["Sch XXIII","Interest Rates",null,{"$f":"\"Int. Up - After Shock - Other - Liab. w/o Mgmt Action - \"&'Schedule XXIII'!$C$18","v":"Int. Up - After Shock - Other - Liab. w/o Mgmt Action - Other currency 1"},null,null,null,null,null,null,null,null,0]
["Sch XXIII","Interest Rates",null,{"$f":"\"Int. Up - After Shock - Other - Liab. w/o Mgmt Action - \"&'Schedule XXIII'!$C$19","v":"Int. Up - After Shock - Other - Liab. w/o Mgmt Action - Other currency 2"},null,null,null,null,null,null,null,null,0]
["Sch XXIII","Interest Rates",null,{"$f":"\"Int. Up - After Shock - Other - Liab. w/o Mgmt Action - \"&'Schedule XXIII'!$C$20","v":"Int. Up - After Shock - Other - Liab. w/o Mgmt Action - Other currency 3"},null,null,null,null,null,null,null,null,0]
["Sch XXIII","Interest Rates",null,{"$f":"\"Int. Up - After Shock - Other - Liab. w/o Mgmt Action - \"&'Schedule XXIII'!$C$21","v":"Int. Up - After Shock - Other - Liab. w/o Mgmt Action - Other currency 4"},null,null,null,null,null,null,null,null,0]
["Sch XXIII","Interest Rates",null,{"$f":"\"Int. Up - After Shock - Other - Liab. w/o Mgmt Action - \"&'Schedule XXIII'!$C$22","v":"Int. Up - After Shock - Other - Liab. w/o Mgmt Action - Other currency 5"},null,null,null,null,null,null,null,null,0]
["Sch XXIII","Interest Rates",null,{"$f":"\"Int. Up - After Shock - Other - Liab. w/o Mgmt Action - \"&'Schedule XXIII'!$C$23","v":"Int. Up - After Shock - Other - Liab. w/o Mgmt Action - Other currency 6"},null,null,null,null,null,null,null,null,0]
["Sch XXIII","Interest Rates",null,{"$f":"\"Int. Up - After Shock - Other - Liab. w/o Mgmt Action - \"&'Schedule XXIII'!$C$24","v":"Int. Up - After Shock - Other - Liab. w/o Mgmt Action - Other currency 7"},null,null,null,null,null,null,null,null,0]
["Sch XXIII","Interest Rates",null,{"$f":"\"Int. Up - After Shock - Other - Liab. w/o Mgmt Action - \"&'Schedule XXIII'!$C$25","v":"Int. Up - After Shock - Other - Liab. w/o Mgmt Action - Other currency 8"},null,null,null,null,null,null,null,null,0]
["Sch XXIII","Interest Rates",null,{"$f":"\"Int. Up - After Shock - Other - Liab. w/o Mgmt Action - \"&'Schedule XXIII'!$C$26","v":"Int. Up - After Shock - Other - Liab. w/o Mgmt Action - Other currency 9"},null,null,null,null,null,null,null,null,0]
["Sch XXIII","Interest Rates",null,{"$f":"\"Int. Up - After Shock - Other - Liab. w/o Mgmt Action - \"&'Schedule XXIII'!$C$27","v":"Int. Up - After Shock - Other - Liab. w/o Mgmt Action - Other currency 10"},null,null,null,null,null,null,null,null,0]
["Sch XXIII","Interest Rates",null,"Int. Up - After Shock - Other - Liab. w/o Mgmt Action - Total",null,null,null,null,null,null,null,null,0]
["Sch XXIII","Interest Rates",null,"Int. Up - After Shock - Other - Liab. with Mgmt Action - United States Dollars",null,null,null,null,null,null,null,null,0]
["Sch XXIII","Interest Rates",null,"Int. Up - After Shock - Other - Liab. with Mgmt Action - Euro",null,null,null,null,null,null,null,null,0]
["Sch XXIII","Interest Rates",null,"Int. Up - After Shock - Other - Liab. with Mgmt Action - United Kingdom Pounds",null,null,null,null,null,null,null,null,0]
["Sch XXIII","Interest Rates",null,"Int. Up - After Shock - Other - Liab. with Mgmt Action - Japan Yen",null,null,null,null,null,null,null,null,0]
["Sch XXIII","Interest Rates",null,"Int. Up - After Shock - Other - Liab. with Mgmt Action - Canada Dollars",null,null,null,null,null,null,null,null,0]
["Sch XXIII","Interest Rates",null,"Int. Up - After Shock - Other - Liab. with Mgmt Action - Swiss Francs",null,null,null,null,null,null,null,null,0]
["Sch XXIII","Interest Rates",null,"Int. Up - After Shock - Other - Liab. with Mgmt Action - Australia Dollar",null,null,null,null,null,null,null,null,0]
["Sch XXIII","Interest Rates",null,"Int. Up - After Shock - Other - Liab. with Mgmt Action - New Zealand Dollar",null,null,null,null,null,null,null,null,0]
["Sch XXIII","Interest Rates",null,{"$f":"\"Int. Up - After Shock - Other - Liab. with Mgmt Action - \"&'Schedule XXIII'!$C$18","v":"Int. Up - After Shock - Other - Liab. with Mgmt Action - Other currency 1"},null,null,null,null,null,null,null,null,0]
["Sch XXIII","Interest Rates",null,{"$f":"\"Int. Up - After Shock - Other - Liab. with Mgmt Action - \"&'Schedule XXIII'!$C$19","v":"Int. Up - After Shock - Other - Liab. with Mgmt Action - Other currency 2"},null,null,null,null,null,null,null,null,0]
["Sch XXIII","Interest Rates",null,{"$f":"\"Int. Up - After Shock - Other - Liab. with Mgmt Action - \"&'Schedule XXIII'!$C$20","v":"Int. Up - After Shock - Other - Liab. with Mgmt Action - Other currency 3"},null,null,null,null,null,null,null,null,0]
["Sch XXIII","Interest Rates",null,{"$f":"\"Int. Up - After Shock - Other - Liab. with Mgmt Action - \"&'Schedule XXIII'!$C$21","v":"Int. Up - After Shock - Other - Liab. with Mgmt Action - Other currency 4"},null,null,null,null,null,null,null,null,0]
["Sch XXIII","Interest Rates",null,{"$f":"\"Int. Up - After Shock - Other - Liab. with Mgmt Action - \"&'Schedule XXIII'!$C$22","v":"Int. Up - After Shock - Other - Liab. with Mgmt Action - Other currency 5"},null,null,null,null,null,null,null,null,0]
["Sch XXIII","Interest Rates",null,{"$f":"\"Int. Up - After Shock - Other - Liab. with Mgmt Action - \"&'Schedule XXIII'!$C$23","v":"Int. Up - After Shock - Other - Liab. with Mgmt Action - Other currency 6"},null,null,null,null,null,null,null,null,0]
["Sch XXIII","Interest Rates",null,{"$f":"\"Int. Up - After Shock - Other - Liab. with Mgmt Action - \"&'Schedule XXIII'!$C$24","v":"Int. Up - After Shock - Other - Liab. with Mgmt Action - Other currency 7"},null,null,null,null,null,null,null,null,0]
["Sch XXIII","Interest Rates",null,{"$f":"\"Int. Up - After Shock - Other - Liab. with Mgmt Action - \"&'Schedule XXIII'!$C$25","v":"Int. Up - After Shock - Other - Liab. with Mgmt Action - Other currency 8"},null,null,null,null,null,null,null,null,0]
["Sch XXIII","Interest Rates",null,{"$f":"\"Int. Up - After Shock - Other - Liab. with Mgmt Action - \"&'Schedule XXIII'!$C$26","v":"Int. Up - After Shock - Other - Liab. with Mgmt Action - Other currency 9"},null,null,null,null,null,null,null,null,0]
["Sch XXIII","Interest Rates",null,{"$f":"\"Int. Up - After Shock - Other - Liab. with Mgmt Action - \"&'Schedule XXIII'!$C$27","v":"Int. Up - After Shock - Other - Liab. with Mgmt Action - Other currency 10"},null,null,null,null,null,null,null,null,0]
["Sch XXIII","Interest Rates",null,"Int. Up - After Shock - Other - Liab. with Mgmt Action - Total",null,null,null,null,null,null,null,null,0]
["Sch XXIII","Interest Rates",null,"Int. Up - Before Shock - Derivatives - Qualifying Assets - United States Dollars",null,null,null,null,null,null,null,null,0]
["Sch XXIII","Interest Rates",null,"Int. Up - Before Shock - Derivatives - Qualifying Assets - Euro",null,null,null,null,null,null,null,null,0]
["Sch XXIII","Interest Rates",null,"Int. Up - Before Shock - Derivatives - Qualifying Assets - United Kingdom Pounds",null,null,null,null,null,null,null,null,0]
["Sch XXIII","Interest Rates",null,"Int. Up - Before Shock - Derivatives - Qualifying Assets - Japan Yen",null,null,null,null,null,null,null,null,0]
["Sch XXIII","Interest Rates",null,"Int. Up - Before Shock - Derivatives - Qualifying Assets - Canada Dollars",null,null,null,null,null,null,null,null,0]
["Sch XXIII","Interest Rates",null,"Int. Up - Before Shock - Derivatives - Qualifying Assets - Swiss Francs",null,null,null,null,null,null,null,null,0]
["Sch XXIII","Interest Rates",null,"Int. Up - Before Shock - Derivatives - Qualifying Assets - Australia Dollar",null,null,null,null,null,null,null,null,0]
["Sch XXIII","Interest Rates",null,"Int. Up - Before Shock - Derivatives - Qualifying Assets - New Zealand Dollar",null,null,null,null,null,null,null,null,0]
["Sch XXIII","Interest Rates",null,{"$f":"\"Int. Up - Before Shock - Derivatives - Qualifying Assets - \"&'Schedule XXIII'!$C$18","v":"Int. Up - Before Shock - Derivatives - Qualifying Assets - Other currency 1"},null,null,null,null,null,null,null,null,0]
["Sch XXIII","Interest Rates",null,{"$f":"\"Int. Up - Before Shock - Derivatives - Qualifying Assets - \"&'Schedule XXIII'!$C$19","v":"Int. Up - Before Shock - Derivatives - Qualifying Assets - Other currency 2"},null,null,null,null,null,null,null,null,0]
["Sch XXIII","Interest Rates",null,{"$f":"\"Int. Up - Before Shock - Derivatives - Qualifying Assets - \"&'Schedule XXIII'!$C$20","v":"Int. Up - Before Shock - Derivatives - Qualifying Assets - Other currency 3"},null,null,null,null,null,null,null,null,0]
["Sch XXIII","Interest Rates",null,{"$f":"\"Int. Up - Before Shock - Derivatives - Qualifying Assets - \"&'Schedule XXIII'!$C$21","v":"Int. Up - Before Shock - Derivatives - Qualifying Assets - Other currency 4"},null,null,null,null,null,null,null,null,0]
["Sch XXIII","Interest Rates",null,{"$f":"\"Int. Up - Before Shock - Derivatives - Qualifying Assets - \"&'Schedule XXIII'!$C$22","v":"Int. Up - Before Shock - Derivatives - Qualifying Assets - Other currency 5"},null,null,null,null,null,null,null,null,0]
["Sch XXIII","Interest Rates",null,{"$f":"\"Int. Up - Before Shock - Derivatives - Qualifying Assets - \"&'Schedule XXIII'!$C$23","v":"Int. Up - Before Shock - Derivatives - Qualifying Assets - Other currency 6"},null,null,null,null,null,null,null,null,0]
["Sch XXIII","Interest Rates",null,{"$f":"\"Int. Up - Before Shock - Derivatives - Qualifying Assets - \"&'Schedule XXIII'!$C$24","v":"Int. Up - Before Shock - Derivatives - Qualifying Assets - Other currency 7"},null,null,null,null,null,null,null,null,0]
["Sch XXIII","Interest Rates",null,{"$f":"\"Int. Up - Before Shock - Derivatives - Qualifying Assets - \"&'Schedule XXIII'!$C$25","v":"Int. Up - Before Shock - Derivatives - Qualifying Assets - Other currency 8"},null,null,null,null,null,null,null,null,0]
["Sch XXIII","Interest Rates",null,{"$f":"\"Int. Up - Before Shock - Derivatives - Qualifying Assets - \"&'Schedule XXIII'!$C$26","v":"Int. Up - Before Shock - Derivatives - Qualifying Assets - Other currency 9"},null,null,null,null,null,null,null,null,0]
["Sch XXIII","Interest Rates",null,{"$f":"\"Int. Up - Before Shock - Derivatives - Qualifying Assets - \"&'Schedule XXIII'!$C$27","v":"Int. Up - Before Shock - Derivatives - Qualifying Assets - Other currency 10"},null,null,null,null,null,null,null,null,0]
["Sch XXIII","Interest Rates",null,"Int. Up - Before Shock - Derivatives - Qualifying Assets - Total",null,null,null,null,null,null,null,null,0]
["Sch XXIII","Interest Rates",null,"Int. Up - After Shock - Derivatives - Qualifying Assets - United States Dollars",null,null,null,null,null,null,null,null,0]
["Sch XXIII","Interest Rates",null,"Int. Up - After Shock - Derivatives - Qualifying Assets - Euro",null,null,null,null,null,null,null,null,0]
["Sch XXIII","Interest Rates",null,"Int. Up - After Shock - Derivatives - Qualifying Assets - United Kingdom Pounds",null,null,null,null,null,null,null,null,0]
["Sch XXIII","Interest Rates",null,"Int. Up - After Shock - Derivatives - Qualifying Assets - Japan Yen",null,null,null,null,null,null,null,null,0]
["Sch XXIII","Interest Rates",null,"Int. Up - After Shock - Derivatives - Qualifying Assets - Canada Dollars",null,null,null,null,null,null,null,null,0]
["Sch XXIII","Interest Rates",null,"Int. Up - After Shock - Derivatives - Qualifying Assets - Swiss Francs",null,null,null,null,null,null,null,null,0]
["Sch XXIII","Interest Rates",null,"Int. Up - After Shock - Derivatives - Qualifying Assets - Australia Dollar",null,null,null,null,null,null,null,null,0]
["Sch XXIII","Interest Rates",null,"Int. Up - After Shock - Derivatives - Qualifying Assets - New Zealand Dollar",null,null,null,null,null,null,null,null,0]
["Sch XXIII","Interest Rates",null,{"$f":"\"Int. Up - After Shock - Derivatives - Qualifying Assets - \"&'Schedule XXIII'!$C$18","v":"Int. Up - After Shock - Derivatives - Qualifying Assets - Other currency 1"},null,null,null,null,null,null,null,null,0]
["Sch XXIII","Interest Rates",null,{"$f":"\"Int. Up - After Shock - Derivatives - Qualifying Assets - \"&'Schedule XXIII'!$C$19","v":"Int. Up - After Shock - Derivatives - Qualifying Assets - Other currency 2"},null,null,null,null,null,null,null,null,0]
["Sch XXIII","Interest Rates",null,{"$f":"\"Int. Up - After Shock - Derivatives - Qualifying Assets - \"&'Schedule XXIII'!$C$20","v":"Int. Up - After Shock - Derivatives - Qualifying Assets - Other currency 3"},null,null,null,null,null,null,null,null,0]
["Sch XXIII","Interest Rates",null,{"$f":"\"Int. Up - After Shock - Derivatives - Qualifying Assets - \"&'Schedule XXIII'!$C$21","v":"Int. Up - After Shock - Derivatives - Qualifying Assets - Other currency 4"},null,null,null,null,null,null,null,null,0]
["Sch XXIII","Interest Rates",null,{"$f":"\"Int. Up - After Shock - Derivatives - Qualifying Assets - \"&'Schedule XXIII'!$C$22","v":"Int. Up - After Shock - Derivatives - Qualifying Assets - Other currency 5"},null,null,null,null,null,null,null,null,0]
["Sch XXIII","Interest Rates",null,{"$f":"\"Int. Up - After Shock - Derivatives - Qualifying Assets - \"&'Schedule XXIII'!$C$23","v":"Int. Up - After Shock - Derivatives - Qualifying Assets - Other currency 6"},null,null,null,null,null,null,null,null,0]
["Sch XXIII","Interest Rates",null,{"$f":"\"Int. Up - After Shock - Derivatives - Qualifying Assets - \"&'Schedule XXIII'!$C$24","v":"Int. Up - After Shock - Derivatives - Qualifying Assets - Other currency 7"},null,null,null,null,null,null,null,null,0]
["Sch XXIII","Interest Rates",null,{"$f":"\"Int. Up - After Shock - Derivatives - Qualifying Assets - \"&'Schedule XXIII'!$C$25","v":"Int. Up - After Shock - Derivatives - Qualifying Assets - Other currency 8"},null,null,null,null,null,null,null,null,0]
["Sch XXIII","Interest Rates",null,{"$f":"\"Int. Up - After Shock - Derivatives - Qualifying Assets - \"&'Schedule XXIII'!$C$26","v":"Int. Up - After Shock - Derivatives - Qualifying Assets - Other currency 9"},null,null,null,null,null,null,null,null,0]
["Sch XXIII","Interest Rates",null,{"$f":"\"Int. Up - After Shock - Derivatives - Qualifying Assets - \"&'Schedule XXIII'!$C$27","v":"Int. Up - After Shock - Derivatives - Qualifying Assets - Other currency 10"},null,null,null,null,null,null,null,null,0]
["Sch XXIII","Interest Rates",null,"Int. Up - After Shock - Derivatives - Qualifying Assets - Total",null,null,null,null,null,null,null,null,0]
["Sch XXIII","Interest Rates",null,"Int. Up - Before Shock - Derivatives - Not Qualifying Assets - United States Dollars",null,null,null,null,null,null,null,null,0]
["Sch XXIII","Interest Rates",null,"Int. Up - Before Shock - Derivatives - Not Qualifying Assets - Euro",null,null,null,null,null,null,null,null,0]
["Sch XXIII","Interest Rates",null,"Int. Up - Before Shock - Derivatives - Not Qualifying Assets - United Kingdom Pounds",null,null,null,null,null,null,null,null,0]
["Sch XXIII","Interest Rates",null,"Int. Up - Before Shock - Derivatives - Not Qualifying Assets - Japan Yen",null,null,null,null,null,null,null,null,0]
["Sch XXIII","Interest Rates",null,"Int. Up - Before Shock - Derivatives - Not Qualifying Assets - Canada Dollars",null,null,null,null,null,null,null,null,0]
["Sch XXIII","Interest Rates",null,"Int. Up - Before Shock - Derivatives - Not Qualifying Assets - Swiss Francs",null,null,null,null,null,null,null,null,0]
["Sch XXIII","Interest Rates",null,"Int. Up - Before Shock - Derivatives - Not Qualifying Assets - Australia Dollar",null,null,null,null,null,null,null,null,0]
["Sch XXIII","Interest Rates",null,"Int. Up - Before Shock - Derivatives - Not Qualifying Assets - New Zealand Dollar",null,null,null,null,null,null,null,null,0]
["Sch XXIII","Interest Rates",null,{"$f":"\"Int. Up - Before Shock - Derivatives - Not Qualifying Assets - \"&'Schedule XXIII'!$C$18","v":"Int. Up - Before Shock - Derivatives - Not Qualifying Assets - Other currency 1"},null,null,null,null,null,null,null,null,0]
["Sch XXIII","Interest Rates",null,{"$f":"\"Int. Up - Before Shock - Derivatives - Not Qualifying Assets - \"&'Schedule XXIII'!$C$19","v":"Int. Up - Before Shock - Derivatives - Not Qualifying Assets - Other currency 2"},null,null,null,null,null,null,null,null,0]
["Sch XXIII","Interest Rates",null,{"$f":"\"Int. Up - Before Shock - Derivatives - Not Qualifying Assets - \"&'Schedule XXIII'!$C$20","v":"Int. Up - Before Shock - Derivatives - Not Qualifying Assets - Other currency 3"},null,null,null,null,null,null,null,null,0]
["Sch XXIII","Interest Rates",null,{"$f":"\"Int. Up - Before Shock - Derivatives - Not Qualifying Assets - \"&'Schedule XXIII'!$C$21","v":"Int. Up - Before Shock - Derivatives - Not Qualifying Assets - Other currency 4"},null,null,null,null,null,null,null,null,0]
["Sch XXIII","Interest Rates",null,{"$f":"\"Int. Up - Before Shock - Derivatives - Not Qualifying Assets - \"&'Schedule XXIII'!$C$22","v":"Int. Up - Before Shock - Derivatives - Not Qualifying Assets - Other currency 5"},null,null,null,null,null,null,null,null,0]
["Sch XXIII","Interest Rates",null,{"$f":"\"Int. Up - Before Shock - Derivatives - Not Qualifying Assets - \"&'Schedule XXIII'!$C$23","v":"Int. Up - Before Shock - Derivatives - Not Qualifying Assets - Other currency 6"},null,null,null,null,null,null,null,null,0]
["Sch XXIII","Interest Rates",null,{"$f":"\"Int. Up - Before Shock - Derivatives - Not Qualifying Assets - \"&'Schedule XXIII'!$C$24","v":"Int. Up - Before Shock - Derivatives - Not Qualifying Assets - Other currency 7"},null,null,null,null,null,null,null,null,0]
["Sch XXIII","Interest Rates",null,{"$f":"\"Int. Up - Before Shock - Derivatives - Not Qualifying Assets - \"&'Schedule XXIII'!$C$25","v":"Int. Up - Before Shock - Derivatives - Not Qualifying Assets - Other currency 8"},null,null,null,null,null,null,null,null,0]
["Sch XXIII","Interest Rates",null,{"$f":"\"Int. Up - Before Shock - Derivatives - Not Qualifying Assets - \"&'Schedule XXIII'!$C$26","v":"Int. Up - Before Shock - Derivatives - Not Qualifying Assets - Other currency 9"},null,null,null,null,null,null,null,null,0]
["Sch XXIII","Interest Rates",null,{"$f":"\"Int. Up - Before Shock - Derivatives - Not Qualifying Assets - \"&'Schedule XXIII'!$C$27","v":"Int. Up - Before Shock - Derivatives - Not Qualifying Assets - Other currency 10"},null,null,null,null,null,null,null,null,0]
["Sch XXIII","Interest Rates",null,"Int. Up - Before Shock - Derivatives - Not Qualifying Assets - Total",null,null,null,null,null,null,null,null,0]
["Sch XXIII","Interest Rates",null,"Int. Up - After Shock - Derivatives - Not Qualifying Assets - United States Dollars",null,null,null,null,null,null,null,null,0]
["Sch XXIII","Interest Rates",null,"Int. Up - After Shock - Derivatives - Not Qualifying Assets - Euro",null,null,null,null,null,null,null,null,0]
["Sch XXIII","Interest Rates",null,"Int. Up - After Shock - Derivatives - Not Qualifying Assets - United Kingdom Pounds",null,null,null,null,null,null,null,null,0]
["Sch XXIII","Interest Rates",null,"Int. Up - After Shock - Derivatives - Not Qualifying Assets - Japan Yen",null,null,null,null,null,null,null,null,0]
["Sch XXIII","Interest Rates",null,"Int. Up - After Shock - Derivatives - Not Qualifying Assets - Canada Dollars",null,null,null,null,null,null,null,null,0]
["Sch XXIII","Interest Rates",null,"Int. Up - After Shock - Derivatives - Not Qualifying Assets - Swiss Francs",null,null,null,null,null,null,null,null,0]
["Sch XXIII","Interest Rates",null,"Int. Up - After Shock - Derivatives - Not Qualifying Assets - Australia Dollar",null,null,null,null,null,null,null,null,0]
["Sch XXIII","Interest Rates",null,"Int. Up - After Shock - Derivatives - Not Qualifying Assets - New Zealand Dollar",null,null,null,null,null,null,null,null,0]
["Sch XXIII","Interest Rates",null,{"$f":"\"Int. Up - After Shock - Derivatives - Not Qualifying Assets - \"&'Schedule XXIII'!$C$18","v":"Int. Up - After Shock - Derivatives - Not Qualifying Assets - Other currency 1"},null,null,null,null,null,null,null,null,0]
["Sch XXIII","Interest Rates",null,{"$f":"\"Int. Up - After Shock - Derivatives - Not Qualifying Assets - \"&'Schedule XXIII'!$C$19","v":"Int. Up - After Shock - Derivatives - Not Qualifying Assets - Other currency 2"},null,null,null,null,null,null,null,null,0]
["Sch XXIII","Interest Rates",null,{"$f":"\"Int. Up - After Shock - Derivatives - Not Qualifying Assets - \"&'Schedule XXIII'!$C$20","v":"Int. Up - After Shock - Derivatives - Not Qualifying Assets - Other currency 3"},null,null,null,null,null,null,null,null,0]
["Sch XXIII","Interest Rates",null,{"$f":"\"Int. Up - After Shock - Derivatives - Not Qualifying Assets - \"&'Schedule XXIII'!$C$21","v":"Int. Up - After Shock - Derivatives - Not Qualifying Assets - Other currency 4"},null,null,null,null,null,null,null,null,0]
["Sch XXIII","Interest Rates",null,{"$f":"\"Int. Up - After Shock - Derivatives - Not Qualifying Assets - \"&'Schedule XXIII'!$C$22","v":"Int. Up - After Shock - Derivatives - Not Qualifying Assets - Other currency 5"},null,null,null,null,null,null,null,null,0]
["Sch XXIII","Interest Rates",null,{"$f":"\"Int. Up - After Shock - Derivatives - Not Qualifying Assets - \"&'Schedule XXIII'!$C$23","v":"Int. Up - After Shock - Derivatives - Not Qualifying Assets - Other currency 6"},null,null,null,null,null,null,null,null,0]
["Sch XXIII","Interest Rates",null,{"$f":"\"Int. Up - After Shock - Derivatives - Not Qualifying Assets - \"&'Schedule XXIII'!$C$24","v":"Int. Up - After Shock - Derivatives - Not Qualifying Assets - Other currency 7"},null,null,null,null,null,null,null,null,0]
["Sch XXIII","Interest Rates",null,{"$f":"\"Int. Up - After Shock - Derivatives - Not Qualifying Assets - \"&'Schedule XXIII'!$C$25","v":"Int. Up - After Shock - Derivatives - Not Qualifying Assets - Other currency 8"},null,null,null,null,null,null,null,null,0]
["Sch XXIII","Interest Rates",null,{"$f":"\"Int. Up - After Shock - Derivatives - Not Qualifying Assets - \"&'Schedule XXIII'!$C$26","v":"Int. Up - After Shock - Derivatives - Not Qualifying Assets - Other currency 9"},null,null,null,null,null,null,null,null,0]
["Sch XXIII","Interest Rates",null,{"$f":"\"Int. Up - After Shock - Derivatives - Not Qualifying Assets - \"&'Schedule XXIII'!$C$27","v":"Int. Up - After Shock - Derivatives - Not Qualifying Assets - Other currency 10"},null,null,null,null,null,null,null,null,0]
["Sch XXIII","Interest Rates",null,"Int. Up - After Shock - Derivatives - Not Qualifying Assets - Total",null,null,null,null,null,null,null,null,0]
["Sch XXIII","Interest Rates",null,"Int. Up - Before Shock - Derivatives - Liab. w/o Mgmt Action - United States Dollars",null,null,null,null,null,null,null,null,0]
["Sch XXIII","Interest Rates",null,"Int. Up - Before Shock - Derivatives - Liab. w/o Mgmt Action - Euro",null,null,null,null,null,null,null,null,0]
["Sch XXIII","Interest Rates",null,"Int. Up - Before Shock - Derivatives - Liab. w/o Mgmt Action - United Kingdom Pounds",null,null,null,null,null,null,null,null,0]
["Sch XXIII","Interest Rates",null,"Int. Up - Before Shock - Derivatives - Liab. w/o Mgmt Action - Japan Yen",null,null,null,null,null,null,null,null,0]
["Sch XXIII","Interest Rates",null,"Int. Up - Before Shock - Derivatives - Liab. w/o Mgmt Action - Canada Dollars",null,null,null,null,null,null,null,null,0]
["Sch XXIII","Interest Rates",null,"Int. Up - Before Shock - Derivatives - Liab. w/o Mgmt Action - Swiss Francs",null,null,null,null,null,null,null,null,0]
["Sch XXIII","Interest Rates",null,"Int. Up - Before Shock - Derivatives - Liab. w/o Mgmt Action - Australia Dollar",null,null,null,null,null,null,null,null,0]
["Sch XXIII","Interest Rates",null,"Int. Up - Before Shock - Derivatives - Liab. w/o Mgmt Action - New Zealand Dollar",null,null,null,null,null,null,null,null,0]
["Sch XXIII","Interest Rates",null,{"$f":"\"Int. Up - Before Shock - Derivatives - Liab. w/o Mgmt Action - \"&'Schedule XXIII'!$C$18","v":"Int. Up - Before Shock - Derivatives - Liab. w/o Mgmt Action - Other currency 1"},null,null,null,null,null,null,null,null,0]
["Sch XXIII","Interest Rates",null,{"$f":"\"Int. Up - Before Shock - Derivatives - Liab. w/o Mgmt Action - \"&'Schedule XXIII'!$C$19","v":"Int. Up - Before Shock - Derivatives - Liab. w/o Mgmt Action - Other currency 2"},null,null,null,null,null,null,null,null,0]
["Sch XXIII","Interest Rates",null,{"$f":"\"Int. Up - Before Shock - Derivatives - Liab. w/o Mgmt Action - \"&'Schedule XXIII'!$C$20","v":"Int. Up - Before Shock - Derivatives - Liab. w/o Mgmt Action - Other currency 3"},null,null,null,null,null,null,null,null,0]
["Sch XXIII","Interest Rates",null,{"$f":"\"Int. Up - Before Shock - Derivatives - Liab. w/o Mgmt Action - \"&'Schedule XXIII'!$C$21","v":"Int. Up - Before Shock - Derivatives - Liab. w/o Mgmt Action - Other currency 4"},null,null,null,null,null,null,null,null,0]
["Sch XXIII","Interest Rates",null,{"$f":"\"Int. Up - Before Shock - Derivatives - Liab. w/o Mgmt Action - \"&'Schedule XXIII'!$C$22","v":"Int. Up - Before Shock - Derivatives - Liab. w/o Mgmt Action - Other currency 5"},null,null,null,null,null,null,null,null,0]
["Sch XXIII","Interest Rates",null,{"$f":"\"Int. Up - Before Shock - Derivatives - Liab. w/o Mgmt Action - \"&'Schedule XXIII'!$C$23","v":"Int. Up - Before Shock - Derivatives - Liab. w/o Mgmt Action - Other currency 6"},null,null,null,null,null,null,null,null,0]
["Sch XXIII","Interest Rates",null,{"$f":"\"Int. Up - Before Shock - Derivatives - Liab. w/o Mgmt Action - \"&'Schedule XXIII'!$C$24","v":"Int. Up - Before Shock - Derivatives - Liab. w/o Mgmt Action - Other currency 7"},null,null,null,null,null,null,null,null,0]
["Sch XXIII","Interest Rates",null,{"$f":"\"Int. Up - Before Shock - Derivatives - Liab. w/o Mgmt Action - \"&'Schedule XXIII'!$C$25","v":"Int. Up - Before Shock - Derivatives - Liab. w/o Mgmt Action - Other currency 8"},null,null,null,null,null,null,null,null,0]
["Sch XXIII","Interest Rates",null,{"$f":"\"Int. Up - Before Shock - Derivatives - Liab. w/o Mgmt Action - \"&'Schedule XXIII'!$C$26","v":"Int. Up - Before Shock - Derivatives - Liab. w/o Mgmt Action - Other currency 9"},null,null,null,null,null,null,null,null,0]
["Sch XXIII","Interest Rates",null,{"$f":"\"Int. Up - Before Shock - Derivatives - Liab. w/o Mgmt Action - \"&'Schedule XXIII'!$C$27","v":"Int. Up - Before Shock - Derivatives - Liab. w/o Mgmt Action - Other currency 10"},null,null,null,null,null,null,null,null,0]
["Sch XXIII","Interest Rates",null,"Int. Up - Before Shock - Derivatives - Liab. w/o Mgmt Action - Total",null,null,null,null,null,null,null,null,0]
["Sch XXIII","Interest Rates",null,"Int. Up - After Shock - Derivatives - Liab. w/o Mgmt Action - United States Dollars",null,null,null,null,null,null,null,null,0]
["Sch XXIII","Interest Rates",null,"Int. Up - After Shock - Derivatives - Liab. w/o Mgmt Action - Euro",null,null,null,null,null,null,null,null,0]
["Sch XXIII","Interest Rates",null,"Int. Up - After Shock - Derivatives - Liab. w/o Mgmt Action - United Kingdom Pounds",null,null,null,null,null,null,null,null,0]
["Sch XXIII","Interest Rates",null,"Int. Up - After Shock - Derivatives - Liab. w/o Mgmt Action - Japan Yen",null,null,null,null,null,null,null,null,0]
["Sch XXIII","Interest Rates",null,"Int. Up - After Shock - Derivatives - Liab. w/o Mgmt Action - Canada Dollars",null,null,null,null,null,null,null,null,0]
["Sch XXIII","Interest Rates",null,"Int. Up - After Shock - Derivatives - Liab. w/o Mgmt Action - Swiss Francs",null,null,null,null,null,null,null,null,0]
["Sch XXIII","Interest Rates",null,"Int. Up - After Shock - Derivatives - Liab. w/o Mgmt Action - Australia Dollar",null,null,null,null,null,null,null,null,0]
["Sch XXIII","Interest Rates",null,"Int. Up - After Shock - Derivatives - Liab. w/o Mgmt Action - New Zealand Dollar",null,null,null,null,null,null,null,null,0]
["Sch XXIII","Interest Rates",null,{"$f":"\"Int. Up - After Shock - Derivatives - Liab. w/o Mgmt Action - \"&'Schedule XXIII'!$C$18","v":"Int. Up - After Shock - Derivatives - Liab. w/o Mgmt Action - Other currency 1"},null,null,null,null,null,null,null,null,0]
["Sch XXIII","Interest Rates",null,{"$f":"\"Int. Up - After Shock - Derivatives - Liab. w/o Mgmt Action - \"&'Schedule XXIII'!$C$19","v":"Int. Up - After Shock - Derivatives - Liab. w/o Mgmt Action - Other currency 2"},null,null,null,null,null,null,null,null,0]
["Sch XXIII","Interest Rates",null,{"$f":"\"Int. Up - After Shock - Derivatives - Liab. w/o Mgmt Action - \"&'Schedule XXIII'!$C$20","v":"Int. Up - After Shock - Derivatives - Liab. w/o Mgmt Action - Other currency 3"},null,null,null,null,null,null,null,null,0]
["Sch XXIII","Interest Rates",null,{"$f":"\"Int. Up - After Shock - Derivatives - Liab. w/o Mgmt Action - \"&'Schedule XXIII'!$C$21","v":"Int. Up - After Shock - Derivatives - Liab. w/o Mgmt Action - Other currency 4"},null,null,null,null,null,null,null,null,0]
["Sch XXIII","Interest Rates",null,{"$f":"\"Int. Up - After Shock - Derivatives - Liab. w/o Mgmt Action - \"&'Schedule XXIII'!$C$22","v":"Int. Up - After Shock - Derivatives - Liab. w/o Mgmt Action - Other currency 5"},null,null,null,null,null,null,null,null,0]
["Sch XXIII","Interest Rates",null,{"$f":"\"Int. Up - After Shock - Derivatives - Liab. w/o Mgmt Action - \"&'Schedule XXIII'!$C$23","v":"Int. Up - After Shock - Derivatives - Liab. w/o Mgmt Action - Other currency 6"},null,null,null,null,null,null,null,null,0]
["Sch XXIII","Interest Rates",null,{"$f":"\"Int. Up - After Shock - Derivatives - Liab. w/o Mgmt Action - \"&'Schedule XXIII'!$C$24","v":"Int. Up - After Shock - Derivatives - Liab. w/o Mgmt Action - Other currency 7"},null,null,null,null,null,null,null,null,0]
["Sch XXIII","Interest Rates",null,{"$f":"\"Int. Up - After Shock - Derivatives - Liab. w/o Mgmt Action - \"&'Schedule XXIII'!$C$25","v":"Int. Up - After Shock - Derivatives - Liab. w/o Mgmt Action - Other currency 8"},null,null,null,null,null,null,null,null,0]
["Sch XXIII","Interest Rates",null,{"$f":"\"Int. Up - After Shock - Derivatives - Liab. w/o Mgmt Action - \"&'Schedule XXIII'!$C$26","v":"Int. Up - After Shock - Derivatives - Liab. w/o Mgmt Action - Other currency 9"},null,null,null,null,null,null,null,null,0]
["Sch XXIII","Interest Rates",null,{"$f":"\"Int. Up - After Shock - Derivatives - Liab. w/o Mgmt Action - \"&'Schedule XXIII'!$C$27","v":"Int. Up - After Shock - Derivatives - Liab. w/o Mgmt Action - Other currency 10"},null,null,null,null,null,null,null,null,0]
["Sch XXIII","Interest Rates",null,"Int. Up - After Shock - Derivatives - Liab. w/o Mgmt Action - Total",null,null,null,null,null,null,null,null,0]
["Sch XXIII","Interest Rates",null,"Int. Up - After Shock - Derivatives - Liab. with Mgmt Action - United States Dollars",null,null,null,null,null,null,null,null,0]
["Sch XXIII","Interest Rates",null,"Int. Up - After Shock - Derivatives - Liab. with Mgmt Action - Euro",null,null,null,null,null,null,null,null,0]
["Sch XXIII","Interest Rates",null,"Int. Up - After Shock - Derivatives - Liab. with Mgmt Action - United Kingdom Pounds",null,null,null,null,null,null,null,null,0]
["Sch XXIII","Interest Rates",null,"Int. Up - After Shock - Derivatives - Liab. with Mgmt Action - Japan Yen",null,null,null,null,null,null,null,null,0]
["Sch XXIII","Interest Rates",null,"Int. Up - After Shock - Derivatives - Liab. with Mgmt Action - Canada Dollars",null,null,null,null,null,null,null,null,0]
["Sch XXIII","Interest Rates",null,"Int. Up - After Shock - Derivatives - Liab. with Mgmt Action - Swiss Francs",null,null,null,null,null,null,null,null,0]
["Sch XXIII","Interest Rates",null,"Int. Up - After Shock - Derivatives - Liab. with Mgmt Action - Australia Dollar",null,null,null,null,null,null,null,null,0]
["Sch XXIII","Interest Rates",null,"Int. Up - After Shock - Derivatives - Liab. with Mgmt Action - New Zealand Dollar",null,null,null,null,null,null,null,null,0]
["Sch XXIII","Interest Rates",null,{"$f":"\"Int. Up - After Shock - Derivatives - Liab. with Mgmt Action - \"&'Schedule XXIII'!$C$18","v":"Int. Up - After Shock - Derivatives - Liab. with Mgmt Action - Other currency 1"},null,null,null,null,null,null,null,null,0]
["Sch XXIII","Interest Rates",null,{"$f":"\"Int. Up - After Shock - Derivatives - Liab. with Mgmt Action - \"&'Schedule XXIII'!$C$19","v":"Int. Up - After Shock - Derivatives - Liab. with Mgmt Action - Other currency 2"},null,null,null,null,null,null,null,null,0]
["Sch XXIII","Interest Rates",null,{"$f":"\"Int. Up - After Shock - Derivatives - Liab. with Mgmt Action - \"&'Schedule XXIII'!$C$20","v":"Int. Up - After Shock - Derivatives - Liab. with Mgmt Action - Other currency 3"},null,null,null,null,null,null,null,null,0]
["Sch XXIII","Interest Rates",null,{"$f":"\"Int. Up - After Shock - Derivatives - Liab. with Mgmt Action - \"&'Schedule XXIII'!$C$21","v":"Int. Up - After Shock - Derivatives - Liab. with Mgmt Action - Other currency 4"},null,null,null,null,null,null,null,null,0]
["Sch XXIII","Interest Rates",null,{"$f":"\"Int. Up - After Shock - Derivatives - Liab. with Mgmt Action - \"&'Schedule XXIII'!$C$22","v":"Int. Up - After Shock - Derivatives - Liab. with Mgmt Action - Other currency 5"},null,null,null,null,null,null,null,null,0]
["Sch XXIII","Interest Rates",null,{"$f":"\"Int. Up - After Shock - Derivatives - Liab. with Mgmt Action - \"&'Schedule XXIII'!$C$23","v":"Int. Up - After Shock - Derivatives - Liab. with Mgmt Action - Other currency 6"},null,null,null,null,null,null,null,null,0]
["Sch XXIII","Interest Rates",null,{"$f":"\"Int. Up - After Shock - Derivatives - Liab. with Mgmt Action - \"&'Schedule XXIII'!$C$24","v":"Int. Up - After Shock - Derivatives - Liab. with Mgmt Action - Other currency 7"},null,null,null,null,null,null,null,null,0]
["Sch XXIII","Interest Rates",null,{"$f":"\"Int. Up - After Shock - Derivatives - Liab. with Mgmt Action - \"&'Schedule XXIII'!$C$25","v":"Int. Up - After Shock - Derivatives - Liab. with Mgmt Action - Other currency 8"},null,null,null,null,null,null,null,null,0]
["Sch XXIII","Interest Rates",null,{"$f":"\"Int. Up - After Shock - Derivatives - Liab. with Mgmt Action - \"&'Schedule XXIII'!$C$26","v":"Int. Up - After Shock - Derivatives - Liab. with Mgmt Action - Other currency 9"},null,null,null,null,null,null,null,null,0]
["Sch XXIII","Interest Rates",null,{"$f":"\"Int. Up - After Shock - Derivatives - Liab. with Mgmt Action - \"&'Schedule XXIII'!$C$27","v":"Int. Up - After Shock - Derivatives - Liab. with Mgmt Action - Other currency 10"},null,null,null,null,null,null,null,null,0]
["Sch XXIII","Interest Rates",null,"Int. Up - After Shock - Derivatives - Liab. with Mgmt Action - Total",null,null,null,null,null,null,null,null,0]
[]
["Sar & Sanc.","SAR & Santions",null,"E.1 Registered GoAML","Select Yes/No"]
["Sar & Sanc.","SAR & Santions",null,"E.1.1 When","(Select)"]
["Sar & Sanc.","SAR & Santions",null,"E.1.1 Name",0]
["Sar & Sanc.","SAR & Santions",null,"E.1.2 Another Registered","Select Yes/No"]
["Sar & Sanc.","SAR & Santions",null,"E.1.3 Name",0]
["Sar & Sanc.","SAR & Santions",null,"E.1.4 Filed SAR",0]
["Sar & Sanc.","SAR & Santions",null,"E.2 SAR Filed - Internal - Current Year",0]
["Sar & Sanc.","SAR & Santions",null,"E.2 SAR Filed - Internal - Prior Year",0]
["Sar & Sanc.","SAR & Santions",null,"E.2 SAR Filed - Internal - 2 Years Prior",0]
["Sar & Sanc.","SAR & Santions",null,"E.2 SAR Filed - Internal - 3 Years Prior",0]
["Sar & Sanc.","SAR & Santions",null,"E.2 SAR Filed - Internal - Total",0]
["Sar & Sanc.","SAR & Santions",null,"E.2 SAR Filed - w FIA - Current Year",0]
["Sar & Sanc.","SAR & Santions",null,"E.2 SAR Filed - w FIA - Prior Year",0]
["Sar & Sanc.","SAR & Santions",null,"E.2 SAR Filed - w FIA - 2 Years Prior",0]
["Sar & Sanc.","SAR & Santions",null,"E.2 SAR Filed - w FIA - 3 Years Prior",0]
["Sar & Sanc.","SAR & Santions",null,"E.2 SAR Filed - w FIA - Total",0]
["Sar & Sanc.","SAR & Santions",null,"E.2 Additional Comments",0]
["Sar & Sanc.","SAR & Santions",null,"E. Sanction - 1. Screen insurers","Select Yes/No"]
["Sar & Sanc.","SAR & Santions",null,"E. Sanction - 2. Screen employees","Select Yes/No"]
["Sar & Sanc.","SAR & Santions",null,"E. Sanction - 3. Freeze Assets","Select Yes/No"]
["Sar & Sanc.","SAR & Santions",null,"E. Sanction - 3.1 # of Assets Frozen",0]
["Sar & Sanc.","SAR & Santions",null,"E. Sanction - 3.2 Group ID 1",0]
["Sar & Sanc.","SAR & Santions",null,"E. Sanction - 3.2 Group ID 2",0]
["Sar & Sanc.","SAR & Santions",null,"E. Sanction - 3.2 Group ID 3",0]
["Sar & Sanc.","SAR & Santions",null,"E. Sanction - 3.2 Group ID 4",0]
["Sar & Sanc.","SAR & Santions",null,"E. Sanction - 3.2 Name Given 1",0]
["Sar & Sanc.","SAR & Santions",null,"E. Sanction - 3.2 Name Given 2",0]
["Sar & Sanc.","SAR & Santions",null,"E. Sanction - 3.2 Name Given 3",0]
["Sar & Sanc.","SAR & Santions",null,"E. Sanction - 3.2 Name Given 4",0]
["Sar & Sanc.","SAR & Santions",null,"E. Sanction - 3.2 Owned 1",0]
["Sar & Sanc.","SAR & Santions",null,"E. Sanction - 3.2 Owned 2",0]
["Sar & Sanc.","SAR & Santions",null,"E. Sanction - 3.2 Owned 3",0]
["Sar & Sanc.","SAR & Santions",null,"E. Sanction - 3.2 Owned 4",0]
["Sar & Sanc.","SAR & Santions",null,"E. Sanction - 3.2 Value of Assets 1",0]
["Sar & Sanc.","SAR & Santions",null,"E. Sanction - 3.2 Value of Assets 2",0]
["Sar & Sanc.","SAR & Santions",null,"E. Sanction - 3.2 Value of Assets 3",0]
["Sar & Sanc.","SAR & Santions",null,"E. Sanction - 3.2 Value of Assets 4",0]
["Sar & Sanc.","SAR & Santions",null,"E. Sanction - 3.2 Value of Total",0]
["Sar & Sanc.","SAR & Santions",null,"E. Sanction - 4 Frequency of Screen for Sanctions","Select"]
["Sar & Sanc.","SAR & Santions",null,"E. Sanction - Additional Comments ",0]

{"sheet":"Export","index":7,"n_rows":14790,"n_cols":15,"rows_kept":4500,"cut":true,"hidden":false,"merged":[[0,4,0,6],[0,8,0,10],[0,12,0,14]],"bounds":{"rows_first":2000,"rows_last":500,"rows_between":2000,"halvings":0}}
[null,null,null,null,"Unconsolidated",null,null,null,"Consolidated",null,null,null,"EBS"]
["Sheet Name","Sheet Short Description","Field Code","Field Description",{"$f":"YEAR('Company Information'!$C$3)","v":2019},null,{"$f":"E2-1","v":2018},null,{"$f":"YEAR('Company Information'!$C$3)","v":2019},null,{"$f":"I2-1","v":2018},null,{"$f":"YEAR('Company Information'!$C$3)","v":2019},null,{"$f":"M2-1","v":2018}]
["Summary",null,null,"Comments",{"$f":"Submission!B14","v":0}]
[]
["Declaration",null,null,"Authorised Signing Authority 1",{"$f":"+Declaration!C11","v":0}]
["Declaration",null,null,"Date",{"$f":"+Declaration!C14","v":"00:00:00"}]
["Declaration",null,null,"Authorised Signing Authority 2",{"$f":"+Declaration!C19","v":0}]
["Declaration",null,null,"Date",{"$f":"+Declaration!C22","v":"00:00:00"}]
["Declaration",null,null,"Authorised Signing Authority 3",{"$f":"+Declaration!C26","v":0}]
["Declaration",null,null,"Date",{"$f":"+Declaration!C29","v":"00:00:00"}]
[]
["Info Sheet",null,null,"(d) Statements Held at Registered Office",{"$f":"'Information Sheet'!H9","v":"Select Yes/No"}]
["Info Sheet",null,null,"(e) Filing Period - Period Start Date",{"$f":"'Information Sheet'!H13","v":"00:00:00"}]
["Info Sheet",null,null,"(g) Figures Translated at:",{"$f":"'Information Sheet'!H18","v":0}]
["Info Sheet",null,null,"(h) Ultimate Parent",{"$f":"'Information Sheet'!H20","v":0}]
["Info Sheet",null,null,"(i) Insurer's Parent Company",{"$f":"'Information Sheet'!H22","v":0}]
["Info Sheet",null,null,"(j) Industry Sector of Insurer's Parent",{"$f":"'Information Sheet'!H24","v":"Select from Drop-Down"}]
["Info Sheet",null,null,"(k) Insurer's Ownership Structure",{"$f":"'Information Sheet'!H26","v":"Select from Drop-Down"}]
["Info Sheet",null,null,"(l) Insurer's Company Structure",{"$f":"'Information Sheet'!H28","v":"Select from Drop-Down"}]
["Info Sheet",null,null,"(l).1 Confirm if Company writes LT Insurance",{"$f":"'Information Sheet'!H29","v":"Select Yes/No"}]
["Info Sheet",null,null,"(l).2 LT Insurance written during the period",{"$f":"'Information Sheet'!H30","v":"Select Yes/No"}]
["Info Sheet",null,null,"(l).3 Subsidiares wrote Long-Term insurance",{"$f":"'Information Sheet'!H31","v":"Select Yes/No"}]
["Info Sheet",null,null,"(l).4 Subsidiares wrote LT Ins. Outside of BDA",{"$f":"'Information Sheet'!H32","v":"Select Yes/No"}]
["Info Sheet",null,null,"(l).5 Subsidiares Ins. Outside of BDA jurisdiction 1",{"$f":"'Information Sheet'!H33","v":0}]
["Info Sheet",null,null,"(l).5 Subsidiares Ins. Outside of BDA jurisdiction 2",{"$f":"'Information Sheet'!H34","v":0}]
["Info Sheet",null,null,"(l).5 Subsidiares Ins. Outside of BDA jurisdiction 3",{"$f":"'Information Sheet'!H35","v":0}]
["Info Sheet",null,null,"(m)(i) Is the Insurer a Member of Ins. Group?",{"$f":"'Information Sheet'!H38","v":"Select Yes/No"}]
["Info Sheet",null,null,"(m)(ii) Are there Segregated Accounts?",{"$f":"'Information Sheet'!H39","v":"Select Yes/No"}]
["Info Sheet",null,null,"(m)(iii) Is the Insurer in Run-Off?",{"$f":"'Information Sheet'!H40","v":"Select Yes/No"}]
["Info Sheet",null,null,"(m)(iv) Statements have a Qualified Opinion?",{"$f":"'Information Sheet'!H41","v":"Select Yes/No"}]
["Info Sheet",null,null,"(m)(iv) Details of Qualified Opinion",{"$f":"'Information Sheet'!C43","v":0}]
["Info Sheet",null,null,"(m)(v) Minimum Solvency Margin Met",{"$f":"'Information Sheet'!H46","v":"Select Yes/No"}]
["Info Sheet",null,null,"(m)(vi) Liquidity Ratio Met",{"$f":"'Information Sheet'!H47","v":"Select Yes/No"}]
["Info Sheet",null,null,"(n)(1) Certificate of Registration Date",{"$f":"'Information Sheet'!H51","v":""}]
["Info Sheet",null,null,"(n)(2) # of Conditions",{"$f":"'Information Sheet'!H53","v":0}]
["Info Sheet",null,null,"Effective Start Date of Condition - 1",{"$f":"'Information Sheet'!E56","v":"00:00:00"}]
["Info Sheet",null,null,"Effective Start Date of Condition - 2",{"$f":"'Information Sheet'!E57","v":"00:00:00"}]
["Info Sheet",null,null,"Effective Start Date of Condition - 3",{"$f":"'Information Sheet'!E58","v":"00:00:00"}]
["Info Sheet",null,null,"Effective Start Date of Condition - 4",{"$f":"'Information Sheet'!E59","v":"00:00:00"}]
["Info Sheet",null,null,"Effective Start Date of Condition - 5",{"$f":"'Information Sheet'!E60","v":"00:00:00"}]
["Info Sheet",null,null,"Effective Start Date of Condition - 6",{"$f":"'Information Sheet'!E61","v":"00:00:00"}]
["Info Sheet",null,null,"Effective Start Date of Condition - 7",{"$f":"'Information Sheet'!E62","v":"00:00:00"}]
["Info Sheet",null,null,"Effective Start Date of Condition - 8",{"$f":"'Information Sheet'!E63","v":"00:00:00"}]
["Info Sheet",null,null,"Effective Start Date of Condition - 9",{"$f":"'Information Sheet'!E64","v":"00:00:00"}]
["Info Sheet",null,null,"Effective Start Date of Condition - 10",{"$f":"'Information Sheet'!E65","v":"00:00:00"}]
["Info Sheet",null,null,"Effective End Date of Condition - 1",{"$f":"'Information Sheet'!F56","v":"00:00:00"}]
["Info Sheet",null,null,"Effective End Date of Condition - 2",{"$f":"'Information Sheet'!F57","v":"00:00:00"}]
["Info Sheet",null,null,"Effective End Date of Condition - 3",{"$f":"'Information Sheet'!F58","v":"00:00:00"}]
["Info Sheet",null,null,"Effective End Date of Condition - 4",{"$f":"'Information Sheet'!F59","v":"00:00:00"}]
["Info Sheet",null,null,"Effective End Date of Condition - 5",{"$f":"'Information Sheet'!F60","v":"00:00:00"}]
["Info Sheet",null,null,"Effective End Date of Condition - 6",{"$f":"'Information Sheet'!F61","v":"00:00:00"}]
["Info Sheet",null,null,"Effective End Date of Condition - 7",{"$f":"'Information Sheet'!F62","v":"00:00:00"}]
["Info Sheet",null,null,"Effective End Date of Condition - 8",{"$f":"'Information Sheet'!F63","v":"00:00:00"}]
["Info Sheet",null,null,"Effective End Date of Condition - 9",{"$f":"'Information Sheet'!F64","v":"00:00:00"}]
["Info Sheet",null,null,"Effective End Date of Condition - 10",{"$f":"'Information Sheet'!F65","v":"00:00:00"}]
["Info Sheet",null,null,"Description of Condition - 1",{"$f":"'Information Sheet'!G56","v":0}]
["Info Sheet",null,null,"Description of Condition - 2",{"$f":"'Information Sheet'!G57","v":0}]
["Info Sheet",null,null,"Description of Condition - 3",{"$f":"'Information Sheet'!G58","v":0}]
["Info Sheet",null,null,"Description of Condition - 4",{"$f":"'Information Sheet'!G59","v":0}]
["Info Sheet",null,null,"Description of Condition - 5",{"$f":"'Information Sheet'!G60","v":0}]
["Info Sheet",null,null,"Description of Condition - 6",{"$f":"'Information Sheet'!G61","v":0}]
["Info Sheet",null,null,"Description of Condition - 7",{"$f":"'Information Sheet'!G62","v":0}]
["Info Sheet",null,null,"Description of Condition - 8",{"$f":"'Information Sheet'!G63","v":0}]
["Info Sheet",null,null,"Description of Condition - 9",{"$f":"'Information Sheet'!G64","v":0}]
["Info Sheet",null,null,"Description of Condition - 10",{"$f":"'Information Sheet'!G65","v":0}]
["Info Sheet",null,null,"Insurer Complied with All Conditions?",{"$f":"'Information Sheet'!H67","v":"Select Yes/No"}]
["Info Sheet",null,null,"(p) # of Directions",{"$f":"'Information Sheet'!H71","v":0}]
["Info Sheet",null,null,"Effective Start Date of Direction - 1",{"$f":"'Information Sheet'!E74","v":"00:00:00"}]
["Info Sheet",null,null,"Effective Start Date of Direction - 2",{"$f":"'Information Sheet'!E75","v":"00:00:00"}]
["Info Sheet",null,null,"Effective Start Date of Direction - 3",{"$f":"'Information Sheet'!E76","v":"00:00:00"}]
["Info Sheet",null,null,"Effective Start Date of Direction - 4",{"$f":"'Information Sheet'!E77","v":"00:00:00"}]
["Info Sheet",null,null,"Effective Start Date of Direction - 5",{"$f":"'Information Sheet'!E78","v":"00:00:00"}]
["Info Sheet",null,null,"Effective Start Date of Direction - 6",{"$f":"'Information Sheet'!E79","v":"00:00:00"}]
["Info Sheet",null,null,"Effective Start Date of Direction - 7",{"$f":"'Information Sheet'!E80","v":"00:00:00"}]
["Info Sheet",null,null,"Effective Start Date of Direction - 8",{"$f":"'Information Sheet'!E81","v":"00:00:00"}]
["Info Sheet",null,null,"Effective Start Date of Direction - 9",{"$f":"'Information Sheet'!E82","v":"00:00:00"}]
["Info Sheet",null,null,"Effective Start Date of Direction - 10",{"$f":"'Information Sheet'!E83","v":"00:00:00"}]
["Info Sheet",null,null,"Effective End Date of Direction - 1",{"$f":"'Information Sheet'!F74","v":"00:00:00"}]
["Info Sheet",null,null,"Effective End Date of Direction - 2",{"$f":"'Information Sheet'!F75","v":"00:00:00"}]
["Info Sheet",null,null,"Effective End Date of Direction - 3",{"$f":"'Information Sheet'!F76","v":"00:00:00"}]
["Info Sheet",null,null,"Effective End Date of Direction - 4",{"$f":"'Information Sheet'!F77","v":"00:00:00"}]
["Info Sheet",null,null,"Effective End Date of Direction - 5",{"$f":"'Information Sheet'!F78","v":"00:00:00"}]
["Info Sheet",null,null,"Effective End Date of Direction - 6",{"$f":"'Information Sheet'!F79","v":"00:00:00"}]
["Info Sheet",null,null,"Effective End Date of Direction - 7",{"$f":"'Information Sheet'!F80","v":"00:00:00"}]
["Info Sheet",null,null,"Effective End Date of Direction - 8",{"$f":"'Information Sheet'!F81","v":"00:00:00"}]
["Info Sheet",null,null,"Effective End Date of Direction - 9",{"$f":"'Information Sheet'!F82","v":"00:00:00"}]
["Info Sheet",null,null,"Effective End Date of Direction - 10",{"$f":"'Information Sheet'!F83","v":"00:00:00"}]
["Info Sheet",null,null,"Description of Direction - 1",{"$f":"'Information Sheet'!G74","v":0}]
["Info Sheet",null,null,"Description of Direction - 2",{"$f":"'Information Sheet'!G75","v":0}]
["Info Sheet",null,null,"Description of Direction - 3",{"$f":"'Information Sheet'!G76","v":0}]
["Info Sheet",null,null,"Description of Direction - 4",{"$f":"'Information Sheet'!G77","v":0}]
["Info Sheet",null,null,"Description of Direction - 5",{"$f":"'Information Sheet'!G78","v":0}]
["Info Sheet",null,null,"Description of Direction - 6",{"$f":"'Information Sheet'!G79","v":0}]
["Info Sheet",null,null,"Description of Direction - 7",{"$f":"'Information Sheet'!G80","v":0}]
["Info Sheet",null,null,"Description of Direction - 8",{"$f":"'Information Sheet'!G81","v":0}]
["Info Sheet",null,null,"Description of Direction - 9",{"$f":"'Information Sheet'!G82","v":0}]
["Info Sheet",null,null,"Description of Direction - 10",{"$f":"'Information Sheet'!G83","v":0}]
["Info Sheet",null,null,"(q) Confirm If Any Negative Responses?",{"$f":"'Information Sheet'!H87","v":"Select Yes/No"}]
["Info Sheet",null,null,"Details of Negative Responses",{"$f":"'Information Sheet'!C89","v":0}]
[]
[null,null,null,"Balance Sheet"]
["Form 1SFS/1EBS","Balance Sheet GEN/CON/EBS","1SFS1","Cash and Cash Equivalents",{"$f":"'Form 1SFS'!E12","v":0},null,{"$f":"'Form 1SFS'!G12","v":0},null,{"$f":"'Form 1SFS'!M12","v":0},null,{"$f":"'Form 1SFS'!O12","v":0},null,{"$f":"'Form 1EBS'!F10","v":0},null,{"$f":"'Form 1EBS'!H10","v":0}]
["Form 1SFS/1EBS","Balance Sheet GEN/CON/EBS","1SFS2ai","Quoted - Bonds - Held to Maturity",{"$f":"'Form 1SFS'!E16","v":0},null,{"$f":"'Form 1SFS'!G16","v":0},null,{"$f":"'Form 1SFS'!M16","v":0},null,{"$f":"'Form 1SFS'!O16","v":0}]
["Form 1SFS/1EBS","Balance Sheet GEN/CON/EBS","1SFS2aii","Quoted - Bonds - Other",{"$f":"'Form 1SFS'!E17","v":0},null,{"$f":"'Form 1SFS'!G17","v":0},null,{"$f":"'Form 1SFS'!M17","v":0},null,{"$f":"'Form 1SFS'!O17","v":0}]
["Form 1SFS/1EBS","Balance Sheet GEN/CON/EBS","1EBS2b","Quoted - Bonds - Total",null,null,null,null,null,null,null,null,{"$f":"'Form 1EBS'!F13","v":0},null,{"$f":"'Form 1EBS'!H13","v":0}]
["Form 1SFS/1EBS","Balance Sheet GEN/CON/EBS","1SFS2ci","Quoted - Equities - Common Stocks",{"$f":"'Form 1SFS'!E20","v":0},null,{"$f":"'Form 1SFS'!G20","v":0},null,{"$f":"'Form 1SFS'!M20","v":0},null,{"$f":"'Form 1SFS'!O20","v":0},null,{"$f":"'Form 1EBS'!F15","v":0},null,{"$f":"'Form 1EBS'!H15","v":0}]
["Form 1SFS/1EBS","Balance Sheet GEN/CON/EBS","1SFS2cii","Quoted - Equities - Preferred Stocks",{"$f":"'Form 1SFS'!E21","v":0},null,{"$f":"'Form 1SFS'!G21","v":0},null,{"$f":"'Form 1SFS'!M21","v":0},null,{"$f":"'Form 1SFS'!O21","v":0},null,{"$f":"'Form 1EBS'!F16","v":0},null,{"$f":"'Form 1EBS'!H16","v":0}]
["Form 1SFS/1EBS","Balance Sheet GEN/CON/EBS","1SFS2ciii","Quoted - Equities - Mutual Funds",{"$f":"'Form 1SFS'!E22","v":0},null,{"$f":"'Form 1SFS'!G22","v":0},null,{"$f":"'Form 1SFS'!M22","v":0},null,{"$f":"'Form 1SFS'!O22","v":0},null,{"$f":"'Form 1EBS'!F17","v":0},null,{"$f":"'Form 1EBS'!H17","v":0}]
["Form 1SFS/1EBS","Balance Sheet GEN/CON/EBS","1SFS2e","Quoted - Other Investments",{"$f":"'Form 1SFS'!E24","v":0},null,{"$f":"'Form 1SFS'!G24","v":0},null,{"$f":"'Form 1SFS'!M24","v":0},null,{"$f":"'Form 1SFS'!O24","v":0},null,{"$f":"'Form 1EBS'!F19","v":0},null,{"$f":"'Form 1EBS'!H19","v":0}]
["Form 1SFS/1EBS","Balance Sheet GEN/CON/EBS","1SFS3ai","Unquoted - Bonds - Held to Maturity",{"$f":"'Form 1SFS'!E29","v":0},null,{"$f":"'Form 1SFS'!G29","v":0},null,{"$f":"'Form 1SFS'!M29","v":0},null,{"$f":"'Form 1SFS'!O29","v":0}]
["Form 1SFS/1EBS","Balance Sheet GEN/CON/EBS","1SFS3aii","Unquoted - Bonds - Other",{"$f":"'Form 1SFS'!E30","v":0},null,{"$f":"'Form 1SFS'!G30","v":0},null,{"$f":"'Form 1SFS'!M30","v":0},null,{"$f":"'Form 1SFS'!O30","v":0}]
["Form 1SFS/1EBS","Balance Sheet GEN/CON/EBS","1EBS3b","Unquoted - Bonds - Total",null,null,null,null,null,null,null,null,{"$f":"'Form 1EBS'!F23","v":0},null,{"$f":"'Form 1EBS'!H23","v":0}]
["Form 1SFS/1EBS","Balance Sheet GEN/CON/EBS","1SFS3ci","Unquoted - Equities - Common Stocks",{"$f":"'Form 1SFS'!E33","v":0},null,{"$f":"'Form 1SFS'!G33","v":0},null,{"$f":"'Form 1SFS'!M33","v":0},null,{"$f":"'Form 1SFS'!O33","v":0},null,{"$f":"'Form 1EBS'!F25","v":0},null,{"$f":"'Form 1EBS'!H25","v":0}]
["Form 1SFS/1EBS","Balance Sheet GEN/CON/EBS","1SFS3cii","Unquoted - Equities - Preferred Stocks",{"$f":"'Form 1SFS'!E34","v":0},null,{"$f":"'Form 1SFS'!G34","v":0},null,{"$f":"'Form 1SFS'!M34","v":0},null,{"$f":"'Form 1SFS'!O34","v":0},null,{"$f":"'Form 1EBS'!F26","v":0},null,{"$f":"'Form 1EBS'!H26","v":0}]
["Form 1SFS/1EBS","Balance Sheet GEN/CON/EBS","1SFS3ciii","Unquoted - Equities - Mutual Funds",{"$f":"'Form 1SFS'!E35","v":0},null,{"$f":"'Form 1SFS'!G35","v":0},null,{"$f":"'Form 1SFS'!M35","v":0},null,{"$f":"'Form 1SFS'!O35","v":0},null,{"$f":"'Form 1EBS'!F27","v":0},null,{"$f":"'Form 1EBS'!H27","v":0}]
["Form 1SFS/1EBS","Balance Sheet GEN/CON/EBS","1SFS3e","Unquoted - Other Investments",{"$f":"'Form 1SFS'!E37","v":0},null,{"$f":"'Form 1SFS'!G37","v":0},null,{"$f":"'Form 1SFS'!M37","v":0},null,{"$f":"'Form 1SFS'!O37","v":0},null,{"$f":"'Form 1EBS'!F29","v":0},null,{"$f":"'Form 1EBS'!H29","v":0}]
["Form 1SFS/1EBS","Balance Sheet GEN/CON/EBS","1SFS4a","Inv. In Affiliates - Unregulated Ancillary",{"$f":"'Form 1SFS'!E41","v":0},null,{"$f":"'Form 1SFS'!G41","v":0},null,{"$f":"'Form 1SFS'!M41","v":0},null,{"$f":"'Form 1SFS'!O41","v":0},null,{"$f":"'Form 1EBS'!F33","v":0},null,{"$f":"'Form 1EBS'!H33","v":0}]
["Form 1SFS/1EBS","Balance Sheet GEN/CON/EBS","1SFS4b","Inv. In Affiliates - Unregulated Non-Fin. Oper.",{"$f":"'Form 1SFS'!E42","v":0},null,{"$f":"'Form 1SFS'!G42","v":0},null,{"$f":"'Form 1SFS'!M42","v":0},null,{"$f":"'Form 1SFS'!O42","v":0},null,{"$f":"'Form 1EBS'!F34","v":0},null,{"$f":"'Form 1EBS'!H34","v":0}]
["Form 1SFS/1EBS","Balance Sheet GEN/CON/EBS","1SFS4c","Inv. In Affiliates - Unregulated Fin. Operating",{"$f":"'Form 1SFS'!E43","v":0},null,{"$f":"'Form 1SFS'!G43","v":0},null,{"$f":"'Form 1SFS'!M43","v":0},null,{"$f":"'Form 1SFS'!O43","v":0},null,{"$f":"'Form 1EBS'!F35","v":0},null,{"$f":"'Form 1EBS'!H35","v":0}]
["Form 1SFS/1EBS","Balance Sheet GEN/CON/EBS","1SFS4d","Inv. In Affiliates - Regulated Non-Insurance",{"$f":"'Form 1SFS'!E44","v":0},null,{"$f":"'Form 1SFS'!G44","v":0},null,{"$f":"'Form 1SFS'!M44","v":0},null,{"$f":"'Form 1SFS'!O44","v":0},null,{"$f":"'Form 1EBS'!F36","v":0},null,{"$f":"'Form 1EBS'!H36","v":0}]
["Form 1SFS/1EBS","Balance Sheet GEN/CON/EBS","1SFS4e","Inv. In Affiliates - Regulated Insurance",{"$f":"'Form 1SFS'!E45","v":0},null,{"$f":"'Form 1SFS'!G45","v":0},null,{"$f":"'Form 1SFS'!M45","v":0},null,{"$f":"'Form 1SFS'!O45","v":0},null,{"$f":"'Form 1EBS'!F37","v":0},null,{"$f":"'Form 1EBS'!H37","v":0}]
["Form 1SFS/1EBS","Balance Sheet GEN/CON/EBS","1SFS4g","Advances To Affiliates",{"$f":"'Form 1SFS'!E47","v":0},null,{"$f":"'Form 1SFS'!G47","v":0},null,{"$f":"'Form 1SFS'!M47","v":0},null,{"$f":"'Form 1SFS'!O47","v":0},null,{"$f":"'Form 1EBS'!F39","v":0},null,{"$f":"'Form 1EBS'!H39","v":0}]
["Form 1SFS/1EBS","Balance Sheet GEN/CON/EBS","1SFS5a","Inv. In Mortg. Loans on Real Estate - 1st Lien",{"$f":"'Form 1SFS'!E51","v":0},null,{"$f":"'Form 1SFS'!G51","v":0},null,{"$f":"'Form 1SFS'!M51","v":0},null,{"$f":"'Form 1SFS'!O51","v":0},null,{"$f":"'Form 1EBS'!F43","v":0},null,{"$f":"'Form 1EBS'!H43","v":0}]
["Form 1SFS/1EBS","Balance Sheet GEN/CON/EBS","1SFS5b","Inv. In Mortg. Loans on Real Estate - Other",{"$f":"'Form 1SFS'!E52","v":0},null,{"$f":"'Form 1SFS'!G52","v":0},null,{"$f":"'Form 1SFS'!M52","v":0},null,{"$f":"'Form 1SFS'!O52","v":0},null,{"$f":"'Form 1EBS'!F44","v":0},null,{"$f":"'Form 1EBS'!H44","v":0}]
["Form 1SFS/1EBS","Balance Sheet GEN/CON/EBS","1SFS6","Policy Loans",null,null,null,null,{"$f":"'Form 1SFS'!M55","v":0},null,{"$f":"'Form 1SFS'!O55","v":0}]
["Form 1SFS/1EBS","Balance Sheet GEN/CON/EBS","1SFS7a","Real Estate - Occupied by Company",{"$f":"'Form 1SFS'!E58","v":0},null,{"$f":"'Form 1SFS'!G58","v":0},null,{"$f":"'Form 1SFS'!M58","v":0},null,{"$f":"'Form 1SFS'!O58","v":0},null,{"$f":"'Form 1EBS'!F48","v":0},null,{"$f":"'Form 1EBS'!H48","v":0}]
["Form 1SFS/1EBS","Balance Sheet GEN/CON/EBS","1SFS7b","Real Estate - Other",{"$f":"'Form 1SFS'!E59","v":0},null,{"$f":"'Form 1SFS'!G59","v":0},null,{"$f":"'Form 1SFS'!M59","v":0},null,{"$f":"'Form 1SFS'!O59","v":0},null,{"$f":"'Form 1EBS'!F49","v":0},null,{"$f":"'Form 1EBS'!H49","v":0}]
["Form 1SFS/1EBS","Balance Sheet GEN/CON/EBS","1SFS8","Collateral Loans",{"$f":"'Form 1SFS'!E62","v":0},null,{"$f":"'Form 1SFS'!G62","v":0},null,{"$f":"'Form 1SFS'!M62","v":0},null,{"$f":"'Form 1SFS'!O62","v":0},null,{"$f":"'Form 1EBS'!F52","v":0},null,{"$f":"'Form 1EBS'!H52","v":0}]
["Form 1SFS/1EBS","Balance Sheet GEN/CON/EBS","1SFS9","Investment Income Due and Accrued",{"$f":"'Form 1SFS'!E64","v":0},null,{"$f":"'Form 1SFS'!G64","v":0},null,{"$f":"'Form 1SFS'!M64","v":0},null,{"$f":"'Form 1SFS'!O64","v":0},null,{"$f":"'Form 1EBS'!F54","v":0},null,{"$f":"'Form 1EBS'!H54","v":0}]
["Form 1SFS/1EBS","Balance Sheet GEN/CON/EBS","1SFS10a","Accounts & Premium Rec. - In Collection",{"$f":"'Form 1SFS'!E67","v":0},null,{"$f":"'Form 1SFS'!G67","v":0},null,{"$f":"'Form 1SFS'!M67","v":0},null,{"$f":"'Form 1SFS'!O67","v":0},null,{"$f":"'Form 1EBS'!F57","v":0},null,{"$f":"'Form 1EBS'!H57","v":0}]
["Form 1SFS/1EBS","Balance Sheet GEN/CON/EBS","1SFS10b","Accounts & Premium Rec. - Not Yet Due ",{"$f":"'Form 1SFS'!E68","v":0},null,{"$f":"'Form 1SFS'!G68","v":0},null,{"$f":"'Form 1SFS'!M68","v":0},null,{"$f":"'Form 1SFS'!O68","v":0}]
["Form 1SFS/1EBS","Balance Sheet GEN/CON/EBS","1SFS10c","Accounts & Premium Rec. - Retro. Contracts",{"$f":"'Form 1SFS'!E69","v":0},null,{"$f":"'Form 1SFS'!G69","v":0},null,{"$f":"'Form 1SFS'!M69","v":0},null,{"$f":"'Form 1SFS'!O69","v":0},null,{"$f":"'Form 1EBS'!F58","v":0},null,{"$f":"'Form 1EBS'!H58","v":0}]
["Form 1SFS/1EBS","Balance Sheet GEN/CON/EBS","1SFS11a","R/I Balances Receivable - Foreign Affiliates",{"$f":"'Form 1SFS'!E73","v":0},null,{"$f":"'Form 1SFS'!G73","v":0},null,{"$f":"'Form 1SFS'!M73","v":0},null,{"$f":"'Form 1SFS'!O73","v":0},null,{"$f":"'Form 1EBS'!F62","v":0},null,{"$f":"'Form 1EBS'!H62","v":0}]
["Form 1SFS/1EBS","Balance Sheet GEN/CON/EBS","1SFS11b","R/I Balances Receivable - Domestic Affiliates",{"$f":"'Form 1SFS'!E74","v":0},null,{"$f":"'Form 1SFS'!G74","v":0},null,{"$f":"'Form 1SFS'!M74","v":0},null,{"$f":"'Form 1SFS'!O74","v":0},null,{"$f":"'Form 1EBS'!F63","v":0},null,{"$f":"'Form 1EBS'!H63","v":0}]
["Form 1SFS/1EBS","Balance Sheet GEN/CON/EBS","1SFS11c","R/I Balances Receivable - Pools & Assoc.",{"$f":"'Form 1SFS'!E75","v":0},null,{"$f":"'Form 1SFS'!G75","v":0},null,{"$f":"'Form 1SFS'!M75","v":0},null,{"$f":"'Form 1SFS'!O75","v":0},null,{"$f":"'Form 1EBS'!F64","v":0},null,{"$f":"'Form 1EBS'!H64","v":0}]
["Form 1SFS/1EBS","Balance Sheet GEN/CON/EBS","1SFS11d","R/I Balances Receivable - All Other",{"$f":"'Form 1SFS'!E76","v":0},null,{"$f":"'Form 1SFS'!G76","v":0},null,{"$f":"'Form 1SFS'!M76","v":0},null,{"$f":"'Form 1SFS'!O76","v":0},null,{"$f":"'Form 1EBS'!F65","v":0},null,{"$f":"'Form 1EBS'!H65","v":0}]
["Form 1SFS/1EBS","Balance Sheet GEN/CON/EBS","1EBS12a","Funds Held by Ceding Companies - Affiliates",null,null,null,null,null,null,null,null,{"$f":"'Form 1EBS'!F69","v":0},null,{"$f":"'Form 1EBS'!H69","v":0}]
["Form 1SFS/1EBS","Balance Sheet GEN/CON/EBS","1EBS12b","Funds Held by Ceding Companies - Non-Aff.",null,null,null,null,null,null,null,null,{"$f":"'Form 1EBS'!F70","v":0},null,{"$f":"'Form 1EBS'!H70","v":0}]
["Form 1SFS/1EBS","Balance Sheet GEN/CON/EBS","1SFS12","Funds Held by Ceding Companies ",{"$f":"'Form 1SFS'!E79","v":0},null,{"$f":"'Form 1SFS'!G79","v":0},null,{"$f":"'Form 1SFS'!M79","v":0},null,{"$f":"'Form 1SFS'!O79","v":0}]
["Form 1SFS/1EBS","Balance Sheet GEN/CON/EBS","1SFS13a","Sundry Assets - Derivatives",{"$f":"'Form 1SFS'!E82","v":0},null,{"$f":"'Form 1SFS'!G82","v":0},null,{"$f":"'Form 1SFS'!M82","v":0},null,{"$f":"'Form 1SFS'!O82","v":0},null,{"$f":"'Form 1EBS'!F74","v":0},null,{"$f":"'Form 1EBS'!H74","v":0}]
["Form 1SFS/1EBS","Balance Sheet GEN/CON/EBS","1SFS13b","Sundry Assets - SAC - LT- Variable Annuities",null,null,null,null,{"$f":"'Form 1SFS'!M83","v":0},null,{"$f":"'Form 1SFS'!O83","v":0}]
["Form 1SFS/1EBS","Balance Sheet GEN/CON/EBS","1SFS13c","Sundry Assets - SAC - LT- Others",null,null,null,null,{"$f":"'Form 1SFS'!M84","v":0},null,{"$f":"'Form 1SFS'!O84","v":0}]
["Form 1SFS/1EBS","Balance Sheet GEN/CON/EBS","1SFS13d","Sundry Assets - SAC - General Business",{"$f":"'Form 1SFS'!E85","v":0},null,{"$f":"'Form 1SFS'!G85","v":0},null,{"$f":"'Form 1SFS'!M85","v":0},null,{"$f":"'Form 1SFS'!O85","v":0},null,{"$f":"'Form 1EBS'!F75","v":0},null,{"$f":"'Form 1EBS'!H75","v":0}]
["Form 1SFS/1EBS","Balance Sheet GEN/CON/EBS","1SFS13e","Sundry Assets - Deposit Assets",{"$f":"'Form 1SFS'!E86","v":0},null,{"$f":"'Form 1SFS'!G86","v":0},null,{"$f":"'Form 1SFS'!M86","v":0},null,{"$f":"'Form 1SFS'!O86","v":0},null,{"$f":"'Form 1EBS'!F76","v":0},null,{"$f":"'Form 1EBS'!H76","v":0}]
["Form 1SFS/1EBS","Balance Sheet GEN/CON/EBS","1SFS13f","Sundry Assets - Deferred Acquisition Costs",{"$f":"'Form 1SFS'!E87","v":0},null,{"$f":"'Form 1SFS'!G87","v":0},null,{"$f":"'Form 1SFS'!M87","v":0},null,{"$f":"'Form 1SFS'!O87","v":0}]
["Form 1SFS/1EBS","Balance Sheet GEN/CON/EBS","1SFS13g","Sundry Assets - Net Rec. for Investments",{"$f":"'Form 1SFS'!E88","v":0},null,{"$f":"'Form 1SFS'!G88","v":0},null,{"$f":"'Form 1SFS'!M88","v":0},null,{"$f":"'Form 1SFS'!O88","v":0},null,{"$f":"'Form 1EBS'!F77","v":0},null,{"$f":"'Form 1EBS'!H77","v":0}]
["Form 1SFS/1EBS","Balance Sheet GEN/CON/EBS","1EBS13g","Sundry Assets - Intangible Assets",null,null,null,null,null,null,null,null,{"$f":"'Form 1EBS'!F78","v":0},null,{"$f":"'Form 1EBS'!H78","v":0}]
["Form 1SFS/1EBS","Balance Sheet GEN/CON/EBS","1EBS13h","Sundry Assets - Deferred Tax Assets",null,null,null,null,null,null,null,null,{"$f":"'Form 1EBS'!F79","v":0},null,{"$f":"'Form 1EBS'!H79","v":0}]
["Form 1SFS/1EBS","Balance Sheet GEN/CON/EBS","1EBS13i","Sundry Assets - Pension Benefit Surplus",null,null,null,null,null,null,null,null,{"$f":"'Form 1EBS'!F80","v":0},null,{"$f":"'Form 1EBS'!H80","v":0}]
["Form 1SFS/1EBS","Balance Sheet GEN/CON/EBS","1SFS13h","Sundry Assets - Other 1",{"$f":"'Form 1SFS'!E89","v":0},null,{"$f":"'Form 1SFS'!G89","v":0},null,{"$f":"'Form 1SFS'!M89","v":0},null,{"$f":"'Form 1SFS'!O89","v":0},null,{"$f":"'Form 1EBS'!F81","v":0},null,{"$f":"'Form 1EBS'!H81","v":0}]
["Form 1SFS/1EBS","Balance Sheet GEN/CON/EBS","1SFS13i","Sundry Assets - Other 2",{"$f":"'Form 1SFS'!E90","v":0},null,{"$f":"'Form 1SFS'!G90","v":0},null,{"$f":"'Form 1SFS'!M90","v":0},null,{"$f":"'Form 1SFS'!O90","v":0}]
["Form 1SFS/1EBS","Balance Sheet GEN/CON/EBS","1SFS13j","Sundry Assets - Other 3",{"$f":"'Form 1SFS'!E91","v":0},null,{"$f":"'Form 1SFS'!G91","v":0},null,{"$f":"'Form 1SFS'!M91","v":0},null,{"$f":"'Form 1SFS'!O91","v":0}]
["Form 1SFS/1EBS","Balance Sheet GEN/CON/EBS","1SFS14a","Letters of Credit",{"$f":"'Form 1SFS'!E95","v":0},null,{"$f":"'Form 1SFS'!G95","v":0},null,{"$f":"'Form 1SFS'!M95","v":0},null,{"$f":"'Form 1SFS'!O95","v":0},null,{"$f":"'Form 1EBS'!F85","v":0},null,{"$f":"'Form 1EBS'!H85","v":0}]
["Form 1SFS/1EBS","Balance Sheet GEN/CON/EBS","1SFS14b","Guarantees",{"$f":"'Form 1SFS'!E96","v":0},null,{"$f":"'Form 1SFS'!G96","v":0},null,{"$f":"'Form 1SFS'!M96","v":0},null,{"$f":"'Form 1SFS'!O96","v":0},null,{"$f":"'Form 1EBS'!F86","v":0},null,{"$f":"'Form 1EBS'!H86","v":0}]
["Form 1SFS/1EBS","Balance Sheet GEN/CON/EBS","1SFS14c","Other Instruments",{"$f":"'Form 1SFS'!E97","v":0},null,{"$f":"'Form 1SFS'!G97","v":0},null,{"$f":"'Form 1SFS'!M97","v":0},null,{"$f":"'Form 1SFS'!O97","v":0},null,{"$f":"'Form 1EBS'!F87","v":0},null,{"$f":"'Form 1EBS'!H87","v":0}]
["Form 1SFS/1EBS","Balance Sheet GEN/CON/EBS","1SFS15","Total Assets",{"$f":"'Form 1SFS'!E100","v":0},null,{"$f":"'Form 1SFS'!G100","v":0}]
["Form 1SFS/1EBS","Balance Sheet GEN/CON/EBS","1SFS16a","Unearned Premium Reserve - Gross",{"$f":"'Form 1SFS'!E107","v":0},null,{"$f":"'Form 1SFS'!G107","v":0},null,{"$f":"'Form 1SFS'!M107","v":0},null,{"$f":"'Form 1SFS'!O107","v":0},null,{"$f":"'Form 1EBS'!F98","v":0},null,{"$f":"'Form 1EBS'!H98","v":0}]
["Form 1SFS/1EBS","Balance Sheet GEN/CON/EBS","1SFS16bi","UPR - Ceded - Foreign Affiliates",{"$f":"'Form 1SFS'!E109","v":0},null,{"$f":"'Form 1SFS'!G109","v":0},null,{"$f":"'Form 1SFS'!M109","v":0},null,{"$f":"'Form 1SFS'!O109","v":0},null,{"$f":"'Form 1EBS'!F100","v":0},null,{"$f":"'Form 1EBS'!H100","v":0}]
["Form 1SFS/1EBS","Balance Sheet GEN/CON/EBS","1SFS16bii","UPR - Ceded - Domestic Affiliates",{"$f":"'Form 1SFS'!E110","v":0},null,{"$f":"'Form 1SFS'!G110","v":0},null,{"$f":"'Form 1SFS'!M110","v":0},null,{"$f":"'Form 1SFS'!O110","v":0},null,{"$f":"'Form 1EBS'!F101","v":0},null,{"$f":"'Form 1EBS'!H101","v":0}]
["Form 1SFS/1EBS","Balance Sheet GEN/CON/EBS","1SFS16biii","UPR - Ceded - Pools & Assoc.",{"$f":"'Form 1SFS'!E111","v":0},null,{"$f":"'Form 1SFS'!G111","v":0},null,{"$f":"'Form 1SFS'!M111","v":0},null,{"$f":"'Form 1SFS'!O111","v":0},null,{"$f":"'Form 1EBS'!F102","v":0},null,{"$f":"'Form 1EBS'!H102","v":0}]
["Form 1SFS/1EBS","Balance Sheet GEN/CON/EBS","1SFS16biv","UPR - Ceded - All Other",{"$f":"'Form 1SFS'!E112","v":0},null,{"$f":"'Form 1SFS'!G112","v":0},null,{"$f":"'Form 1SFS'!M112","v":0},null,{"$f":"'Form 1SFS'!O112","v":0},null,{"$f":"'Form 1EBS'!F103","v":0},null,{"$f":"'Form 1EBS'!H103","v":0}]
["Form 1SFS/1EBS","Balance Sheet GEN/CON/EBS","1SFS17a","Loss Provision - Gross",{"$f":"'Form 1SFS'!E117","v":0},null,{"$f":"'Form 1SFS'!G117","v":0},null,{"$f":"'Form 1SFS'!M117","v":0},null,{"$f":"'Form 1SFS'!O117","v":0},null,{"$f":"'Form 1EBS'!F108","v":0},null,{"$f":"'Form 1EBS'!H108","v":0}]
["Form 1SFS/1EBS","Balance Sheet GEN/CON/EBS","1SFS17bi","R/I Recoverable - Foreign Affiliates",{"$f":"'Form 1SFS'!E119","v":0},null,{"$f":"'Form 1SFS'!G119","v":0},null,{"$f":"'Form 1SFS'!M119","v":0},null,{"$f":"'Form 1SFS'!O119","v":0},null,{"$f":"'Form 1EBS'!F110","v":0},null,{"$f":"'Form 1EBS'!H110","v":0}]
["Form 1SFS/1EBS","Balance Sheet GEN/CON/EBS","1SFS17bii","R/I Recoverable - Domestic Affiliates",{"$f":"'Form 1SFS'!E120","v":0},null,{"$f":"'Form 1SFS'!G120","v":0},null,{"$f":"'Form 1SFS'!M120","v":0},null,{"$f":"'Form 1SFS'!O120","v":0},null,{"$f":"'Form 1EBS'!F111","v":0},null,{"$f":"'Form 1EBS'!H111","v":0}]
["Form 1SFS/1EBS","Balance Sheet GEN/CON/EBS","1SFS17biii","R/I Recoverable - Pools & Assoc.",{"$f":"'Form 1SFS'!E121","v":0},null,{"$f":"'Form 1SFS'!G121","v":0},null,{"$f":"'Form 1SFS'!M121","v":0},null,{"$f":"'Form 1SFS'!O121","v":0},null,{"$f":"'Form 1EBS'!F112","v":0},null,{"$f":"'Form 1EBS'!H112","v":0}]
["Form 1SFS/1EBS","Balance Sheet GEN/CON/EBS","1SFS17biv","R/I Recoverable - All Other",{"$f":"'Form 1SFS'!E122","v":0},null,{"$f":"'Form 1SFS'!G122","v":0},null,{"$f":"'Form 1SFS'!M122","v":0},null,{"$f":"'Form 1SFS'!O122","v":0},null,{"$f":"'Form 1EBS'!F113","v":0},null,{"$f":"'Form 1EBS'!H113","v":0}]
["Form 1SFS/1EBS","Balance Sheet GEN/CON/EBS","1SFS18","Risk Margin",{"$f":"'Form 1SFS'!E126","v":0},null,{"$f":"'Form 1SFS'!G126","v":0},null,{"$f":"'Form 1SFS'!M126","v":0},null,{"$f":"'Form 1SFS'!O126","v":0},null,{"$f":"'Form 1EBS'!F117","v":0},null,{"$f":"'Form 1EBS'!H117","v":0}]
["Form 1SFS/1EBS","Balance Sheet GEN/CON/EBS","1SFS20","Net - Reserves for Reported Claims",null,null,null,null,{"$f":"'Form 1SFS'!M132","v":0},null,{"$f":"'Form 1SFS'!O132","v":0}]
["Form 1SFS/1EBS","Balance Sheet GEN/CON/EBS","1SFS21","Net - Reserves for Unreported Claims",null,null,null,null,{"$f":"'Form 1SFS'!M134","v":0},null,{"$f":"'Form 1SFS'!O134","v":0}]
["Form 1SFS/1EBS","Balance Sheet GEN/CON/EBS","1SFS22","Net - Policy Reserves - Life",null,null,null,null,{"$f":"'Form 1SFS'!M136","v":0},null,{"$f":"'Form 1SFS'!O136","v":0}]
["Form 1SFS/1EBS","Balance Sheet GEN/CON/EBS","1SFS23","Net - Policy Reserves - Accident & Health",null,null,null,null,{"$f":"'Form 1SFS'!M138","v":0},null,{"$f":"'Form 1SFS'!O138","v":0}]
["Form 1SFS/1EBS","Balance Sheet GEN/CON/EBS","1SFS24","Net - Policyholder's Funds on Deposit",null,null,null,null,{"$f":"'Form 1SFS'!M140","v":0},null,{"$f":"'Form 1SFS'!O140","v":0}]
["Form 1SFS/1EBS","Balance Sheet GEN/CON/EBS","1SFS25","Net - Liability for Future Policyholder Dividends",null,null,null,null,{"$f":"'Form 1SFS'!M142","v":0},null,{"$f":"'Form 1SFS'!O142","v":0}]
["Form 1SFS/1EBS","Balance Sheet GEN/CON/EBS","1SFS26","Net - Other LT Insurance Reserves",null,null,null,null,{"$f":"'Form 1SFS'!M144","v":0},null,{"$f":"'Form 1SFS'!O144","v":0}]
["Form 1SFS/1EBS","Balance Sheet GEN/CON/EBS","1SFS27bi","R/I Recoverable - Foreign Affiliates",null,null,null,null,{"$f":"'Form 1SFS'!M149","v":0},null,{"$f":"'Form 1SFS'!O149","v":0}]
["Form 1SFS/1EBS","Balance Sheet GEN/CON/EBS","1SFS27bii","R/I Recoverable - Domestic Affiliates",null,null,null,null,{"$f":"'Form 1SFS'!M150","v":0},null,{"$f":"'Form 1SFS'!O150","v":0}]
["Form 1SFS/1EBS","Balance Sheet GEN/CON/EBS","1SFS27biii","R/I Recoverable - Pools & Assoc.",null,null,null,null,{"$f":"'Form 1SFS'!M151","v":0},null,{"$f":"'Form 1SFS'!O151","v":0}]
["Form 1SFS/1EBS","Balance Sheet GEN/CON/EBS","1SFS27biv","R/I Recoverable - All Other",null,null,null,null,{"$f":"'Form 1SFS'!M152","v":0},null,{"$f":"'Form 1SFS'!O152","v":0}]
["Form 1SFS/1EBS","Balance Sheet GEN/CON/EBS","1EBS27A","Risk Margin"]
["Form 1SFS/1EBS","Balance Sheet GEN/CON/EBS","1EBS27Ba","Gross Provision - Tech. Prov. Calc. on Whole"]
["Form 1SFS/1EBS","Balance Sheet GEN/CON/EBS","1EBS27Bbi","R/I Recoverable - Foreign Affiliates"]
["Form 1SFS/1EBS","Balance Sheet GEN/CON/EBS","1EBS27Bbii","R/I Recoverable - Domestic Affiliates"]
["Form 1SFS/1EBS","Balance Sheet GEN/CON/EBS","1EBS27Bbiii","R/I Recoverable - Pools & Assoc."]
["Form 1SFS/1EBS","Balance Sheet GEN/CON/EBS","1EBS27Bbiv","R/I Recoverable - All Other"]
["Form 1SFS/1EBS","Balance Sheet GEN/CON/EBS","1EBS27C","Total Long-Term Tech Provisions"]
["Form 1SFS/1EBS","Balance Sheet GEN/CON/EBS","1SFS28","Insurance & R/I Balances Payable",{"$f":"'Form 1SFS'!E158","v":0},null,{"$f":"'Form 1SFS'!G158","v":0},null,{"$f":"'Form 1SFS'!M158","v":0},null,{"$f":"'Form 1SFS'!O158","v":0},null,{"$f":"'Form 1EBS'!F123","v":0},null,{"$f":"'Form 1EBS'!H123","v":0}]
["Form 1SFS/1EBS","Balance Sheet GEN/CON/EBS","1SFS29","Commissions, Expenses and Taxes Payable",{"$f":"'Form 1SFS'!E160","v":0},null,{"$f":"'Form 1SFS'!G160","v":0},null,{"$f":"'Form 1SFS'!M160","v":0},null,{"$f":"'Form 1SFS'!O160","v":0},null,{"$f":"'Form 1EBS'!F125","v":0},null,{"$f":"'Form 1EBS'!H125","v":0}]
["Form 1SFS/1EBS","Balance Sheet GEN/CON/EBS","1SFS30","Loans and Notes Payable",{"$f":"'Form 1SFS'!E162","v":0},null,{"$f":"'Form 1SFS'!G162","v":0},null,{"$f":"'Form 1SFS'!M162","v":0},null,{"$f":"'Form 1SFS'!O162","v":0},null,{"$f":"'Form 1EBS'!F127","v":0},null,{"$f":"'Form 1EBS'!H127","v":0}]
["Form 1SFS/1EBS","Balance Sheet GEN/CON/EBS","1SFS31a","Income Taxes Payable",{"$f":"'Form 1SFS'!E164","v":0},null,{"$f":"'Form 1SFS'!G164","v":0},null,{"$f":"'Form 1SFS'!M164","v":0},null,{"$f":"'Form 1SFS'!O164","v":0},null,{"$f":"'Form 1EBS'!F130","v":0},null,{"$f":"'Form 1EBS'!H130","v":0}]
["Form 1SFS/1EBS","Balance Sheet GEN/CON/EBS","1SFS31b","Deferred Taxes Payable",{"$f":"'Form 1SFS'!E166","v":0},null,{"$f":"'Form 1SFS'!G166","v":0},null,{"$f":"'Form 1SFS'!M166","v":0},null,{"$f":"'Form 1SFS'!O166","v":0},null,{"$f":"'Form 1EBS'!F131","v":0},null,{"$f":"'Form 1EBS'!H131","v":0}]
["Form 1SFS/1EBS","Balance Sheet GEN/CON/EBS","1SFS32","Amounts Due to Affiliates",{"$f":"'Form 1SFS'!E168","v":0},null,{"$f":"'Form 1SFS'!G168","v":0},null,{"$f":"'Form 1SFS'!M168","v":0},null,{"$f":"'Form 1SFS'!O168","v":0},null,{"$f":"'Form 1EBS'!F133","v":0},null,{"$f":"'Form 1EBS'!H133","v":0}]
["Form 1SFS/1EBS","Balance Sheet GEN/CON/EBS","1SFS33","Accounts Payable and Accrued Liabilities",{"$f":"'Form 1SFS'!E170","v":0},null,{"$f":"'Form 1SFS'!G170","v":0},null,{"$f":"'Form 1SFS'!M170","v":0},null,{"$f":"'Form 1SFS'!O170","v":0},null,{"$f":"'Form 1EBS'!F135","v":0},null,{"$f":"'Form 1EBS'!H135","v":0}]
["Form 1SFS/1EBS","Balance Sheet GEN/CON/EBS","1EBS34a","Funds Held under R/I Contracts - Affiliates",null,null,null,null,null,null,null,null,{"$f":"'Form 1EBS'!F138","v":0},null,{"$f":"'Form 1EBS'!H138","v":0}]
["Form 1SFS/1EBS","Balance Sheet GEN/CON/EBS","1EBS34b","Funds Held under R/I Contracts - Non-Aff.",null,null,null,null,null,null,null,null,{"$f":"'Form 1EBS'!F139","v":0},null,{"$f":"'Form 1EBS'!H139","v":0}]
["Form 1SFS/1EBS","Balance Sheet GEN/CON/EBS","1SFS34","Funds Held under R/I Contracts",{"$f":"'Form 1SFS'!E172","v":0},null,{"$f":"'Form 1SFS'!G172","v":0},null,{"$f":"'Form 1SFS'!M172","v":0},null,{"$f":"'Form 1SFS'!O172","v":0}]
["Form 1SFS/1EBS","Balance Sheet GEN/CON/EBS","1SFS35","Dividends Payable",{"$f":"'Form 1SFS'!E174","v":0},null,{"$f":"'Form 1SFS'!G174","v":0},null,{"$f":"'Form 1SFS'!M174","v":0},null,{"$f":"'Form 1SFS'!O174","v":0},null,{"$f":"'Form 1EBS'!F142","v":0},null,{"$f":"'Form 1EBS'!H142","v":0}]
["Form 1SFS/1EBS","Balance Sheet GEN/CON/EBS","1SFS36a","Sundry Liabilities - Derivative Instruments",{"$f":"'Form 1SFS'!E177","v":0},null,{"$f":"'Form 1SFS'!G177","v":0},null,{"$f":"'Form 1SFS'!M177","v":0},null,{"$f":"'Form 1SFS'!O177","v":0},null,{"$f":"'Form 1EBS'!F145","v":0},null,{"$f":"'Form 1EBS'!H145","v":0}]
["Form 1SFS/1EBS","Balance Sheet GEN/CON/EBS","1EBS36b","Sundry Liabilities - Der. Instr. - Non-Hedge Purp.",null,null,null,null,null,null,null,null,{"$f":"'Form 1EBS'!F146","v":0},null,{"$f":"'Form 1EBS'!H146","v":0}]
["Form 1SFS/1EBS","Balance Sheet GEN/CON/EBS","1SFS36b","Sundry Liabilities - Seg. Accounts - GB",{"$f":"'Form 1SFS'!E178","v":0},null,{"$f":"'Form 1SFS'!G178","v":0},null,{"$f":"'Form 1SFS'!M178","v":0},null,{"$f":"'Form 1SFS'!O178","v":0},null,{"$f":"'Form 1EBS'!F147","v":0},null,{"$f":"'Form 1EBS'!H147","v":0}]
["Form 1SFS/1EBS","Balance Sheet GEN/CON/EBS","1SFS36c","Sundry Liabilities - Deposit Liabilities",{"$f":"'Form 1SFS'!E179","v":0},null,{"$f":"'Form 1SFS'!G179","v":0},null,{"$f":"'Form 1SFS'!M179","v":0},null,{"$f":"'Form 1SFS'!O179","v":0},null,{"$f":"'Form 1EBS'!F148","v":0},null,{"$f":"'Form 1EBS'!H148","v":0}]
["Form 1SFS/1EBS","Balance Sheet GEN/CON/EBS","1EBS36g","Sundry Liabilities - Pension Benefit Oblig.",null,null,null,null,null,null,null,null,{"$f":"'Form 1EBS'!F149","v":0},null,{"$f":"'Form 1EBS'!H149","v":0}]
["Form 1SFS/1EBS","Balance Sheet GEN/CON/EBS","1SFS36d","Sundry Liabilities - Investments Purchased",{"$f":"'Form 1SFS'!E180","v":0},null,{"$f":"'Form 1SFS'!G180","v":0},null,{"$f":"'Form 1SFS'!M180","v":0},null,{"$f":"'Form 1SFS'!O180","v":0},null,{"$f":"'Form 1EBS'!F150","v":0},null,{"$f":"'Form 1EBS'!H150","v":0}]
["Form 1SFS/1EBS","Balance Sheet GEN/CON/EBS","1SFS36e","Sundry Liabilities - Other 1",{"$f":"'Form 1SFS'!E181","v":0},null,{"$f":"'Form 1SFS'!G181","v":0},null,{"$f":"'Form 1SFS'!M181","v":0},null,{"$f":"'Form 1SFS'!O181","v":0},null,{"$f":"'Form 1EBS'!F151","v":0},null,{"$f":"'Form 1EBS'!H151","v":0}]
["Form 1SFS/1EBS","Balance Sheet GEN/CON/EBS","1SFS36f","Sundry Liabilities - Other 2",{"$f":"'Form 1SFS'!E182","v":0},null,{"$f":"'Form 1SFS'!G182","v":0},null,{"$f":"'Form 1SFS'!M182","v":0},null,{"$f":"'Form 1SFS'!O182","v":0}]
["Form 1SFS/1EBS","Balance Sheet GEN/CON/EBS","1SFS36g","Sundry Liabilities - Other 3",{"$f":"'Form 1SFS'!E183","v":0},null,{"$f":"'Form 1SFS'!G183","v":0},null,{"$f":"'Form 1SFS'!M183","v":0},null,{"$f":"'Form 1SFS'!O183","v":0}]
["Form 1SFS/1EBS","Balance Sheet GEN/CON/EBS","1SFS37a","Letters of Credit",{"$f":"'Form 1SFS'!E187","v":0},null,{"$f":"'Form 1SFS'!G187","v":0},null,{"$f":"'Form 1SFS'!M187","v":0},null,{"$f":"'Form 1SFS'!O187","v":0},null,{"$f":"'Form 1EBS'!F155","v":0},null,{"$f":"'Form 1EBS'!H155","v":0}]
["Form 1SFS/1EBS","Balance Sheet GEN/CON/EBS","1SFS37b","Guarantees",{"$f":"'Form 1SFS'!E188","v":0},null,{"$f":"'Form 1SFS'!G188","v":0},null,{"$f":"'Form 1SFS'!M188","v":0},null,{"$f":"'Form 1SFS'!O188","v":0},null,{"$f":"'Form 1EBS'!F156","v":0},null,{"$f":"'Form 1EBS'!H156","v":0}]
["Form 1SFS/1EBS","Balance Sheet GEN/CON/EBS","1SFS37c","Other Instruments",{"$f":"'Form 1SFS'!E189","v":0},null,{"$f":"'Form 1SFS'!G189","v":0},null,{"$f":"'Form 1SFS'!M189","v":0},null,{"$f":"'Form 1SFS'!O189","v":0},null,{"$f":"'Form 1EBS'!F157","v":0},null,{"$f":"'Form 1EBS'!H157","v":0}]
["Form 1SFS/1EBS","Balance Sheet GEN/CON/EBS","1EBS40","Economic Capital & Surplus",null,null,null,null,null,null,null,null,{"$f":"'Form 1EBS'!F167","v":0},null,{"$f":"'Form 1EBS'!H167","v":0}]
[]
["Form 1SFS","Balance Sheet LT","1SFS1","Cash and Cash Equivalents",{"$f":"'Form 1SFS'!I12","v":0},null,{"$f":"'Form 1SFS'!K12","v":0}]
["Form 1SFS","Balance Sheet LT","1SFS2ai","Quoted - Bonds - Held to Maturity",{"$f":"'Form 1SFS'!I16","v":0},null,{"$f":"'Form 1SFS'!K16","v":0}]
["Form 1SFS","Balance Sheet LT","1SFS2aii","Quoted - Bonds - Other",{"$f":"'Form 1SFS'!I17","v":0},null,{"$f":"'Form 1SFS'!K17","v":0}]
["Form 1SFS","Balance Sheet LT","1SFS2ci","Quoted - Equities - Common Stocks",{"$f":"'Form 1SFS'!I20","v":0},null,{"$f":"'Form 1SFS'!K20","v":0}]
["Form 1SFS","Balance Sheet LT","1SFS2cii","Quoted - Equities - Preferred Stocks",{"$f":"'Form 1SFS'!I21","v":0},null,{"$f":"'Form 1SFS'!K21","v":0}]
["Form 1SFS","Balance Sheet LT","1SFS2ciii","Quoted - Equities - Mutual Funds",{"$f":"'Form 1SFS'!I22","v":0},null,{"$f":"'Form 1SFS'!K22","v":0}]
["Form 1SFS","Balance Sheet LT","1SFS2e","Quoted - Other Investments",{"$f":"'Form 1SFS'!I24","v":0},null,{"$f":"'Form 1SFS'!K24","v":0}]
["Form 1SFS","Balance Sheet LT","1SFS3ai","Unquoted - Bonds - Held to Maturity",{"$f":"'Form 1SFS'!I29","v":0},null,{"$f":"'Form 1SFS'!K29","v":0}]
["Form 1SFS","Balance Sheet LT","1SFS3aii","Unquoted - Bonds - Other",{"$f":"'Form 1SFS'!I30","v":0},null,{"$f":"'Form 1SFS'!K30","v":0}]
["Form 1SFS","Balance Sheet LT","1SFS3ci","Unquoted - Equities - Common Stocks",{"$f":"'Form 1SFS'!I33","v":0},null,{"$f":"'Form 1SFS'!K33","v":0}]
["Form 1SFS","Balance Sheet LT","1SFS3cii","Unquoted - Equities - Preferred Stocks",{"$f":"'Form 1SFS'!I34","v":0},null,{"$f":"'Form 1SFS'!K34","v":0}]
["Form 1SFS","Balance Sheet LT","1SFS3ciii","Unquoted - Equities - Mutual Funds",{"$f":"'Form 1SFS'!I35","v":0},null,{"$f":"'Form 1SFS'!K35","v":0}]
["Form 1SFS","Balance Sheet LT","1SFS3e","Unquoted - Other Investments",{"$f":"'Form 1SFS'!I37","v":0},null,{"$f":"'Form 1SFS'!K37","v":0}]
["Form 1SFS","Balance Sheet LT","1SFS4a","Inv. In Affiliates - Unregulated Ancillary",{"$f":"'Form 1SFS'!I41","v":0},null,{"$f":"'Form 1SFS'!K41","v":0}]
["Form 1SFS","Balance Sheet LT","1SFS4b","Inv. In Affiliates - Unregulated Non-Fin. Oper.",{"$f":"'Form 1SFS'!I42","v":0},null,{"$f":"'Form 1SFS'!K42","v":0}]
["Form 1SFS","Balance Sheet LT","1SFS4c","Inv. In Affiliates - Unregulated Fin. Operating",{"$f":"'Form 1SFS'!I43","v":0},null,{"$f":"'Form 1SFS'!K43","v":0}]
["Form 1SFS","Balance Sheet LT","1SFS4d","Inv. In Affiliates - Regulated Non-Insurance",{"$f":"'Form 1SFS'!I44","v":0},null,{"$f":"'Form 1SFS'!K44","v":0}]
["Form 1SFS","Balance Sheet LT","1SFS4e","Inv. In Affiliates - Regulated Insurance",{"$f":"'Form 1SFS'!I45","v":0},null,{"$f":"'Form 1SFS'!K45","v":0}]
["Form 1SFS","Balance Sheet LT","1SFS4g","Advances To Affiliates",{"$f":"'Form 1SFS'!I47","v":0},null,{"$f":"'Form 1SFS'!K47","v":0}]
["Form 1SFS","Balance Sheet LT","1SFS5a","Inv. In Mortg. Loans on Real Estate - 1st Lien",{"$f":"'Form 1SFS'!I51","v":0},null,{"$f":"'Form 1SFS'!K51","v":0}]
["Form 1SFS","Balance Sheet LT","1SFS5b","Inv. In Mortg. Loans on Real Estate - Other",{"$f":"'Form 1SFS'!I52","v":0},null,{"$f":"'Form 1SFS'!K52","v":0}]
["Form 1SFS","Balance Sheet LT","1SFS6","Policy Loans",{"$f":"'Form 1SFS'!I55","v":0},null,{"$f":"'Form 1SFS'!K55","v":0}]
["Form 1SFS","Balance Sheet LT","1SFS7a","Real Estate - Occupied by Company",{"$f":"'Form 1SFS'!I58","v":0},null,{"$f":"'Form 1SFS'!K58","v":0}]
["Form 1SFS","Balance Sheet LT","1SFS7b","Real Estate - Other",{"$f":"'Form 1SFS'!I59","v":0},null,{"$f":"'Form 1SFS'!K59","v":0}]
["Form 1SFS","Balance Sheet LT","1SFS8","Collateral Loans",{"$f":"'Form 1SFS'!I62","v":0},null,{"$f":"'Form 1SFS'!K62","v":0}]
["Form 1SFS","Balance Sheet LT","1SFS9","Investment Income Due and Accrued",{"$f":"'Form 1SFS'!I64","v":0},null,{"$f":"'Form 1SFS'!K64","v":0}]
["Form 1SFS","Balance Sheet LT","1SFS10a","Accounts & Premium Rec. - In Collection",{"$f":"'Form 1SFS'!I67","v":0},null,{"$f":"'Form 1SFS'!K67","v":0}]
["Form 1SFS","Balance Sheet LT","1SFS10b","Accounts & Premium Rec. - Not Yet Due ",{"$f":"'Form 1SFS'!I68","v":0},null,{"$f":"'Form 1SFS'!K68","v":0}]
["Form 1SFS","Balance Sheet LT","1SFS10c","Accounts & Premium Rec. - Retro. Contracts",{"$f":"'Form 1SFS'!I69","v":0},null,{"$f":"'Form 1SFS'!K69","v":0}]
["Form 1SFS","Balance Sheet LT","1SFS11a","R/I Balances Receivable - Foreign Affiliates",{"$f":"'Form 1SFS'!I73","v":0},null,{"$f":"'Form 1SFS'!K73","v":0}]
["Form 1SFS","Balance Sheet LT","1SFS11b","R/I Balances Receivable - Domestic Affiliates",{"$f":"'Form 1SFS'!I74","v":0},null,{"$f":"'Form 1SFS'!K74","v":0}]
["Form 1SFS","Balance Sheet LT","1SFS11c","R/I Balances Receivable - Pools & Assoc.",{"$f":"'Form 1SFS'!I75","v":0},null,{"$f":"'Form 1SFS'!K75","v":0}]
["Form 1SFS","Balance Sheet LT","1SFS11d","R/I Balances Receivable - All Other",{"$f":"'Form 1SFS'!I76","v":0},null,{"$f":"'Form 1SFS'!K76","v":0}]
["Form 1SFS","Balance Sheet LT","1SFS12","Funds Held by Ceding Companies ",{"$f":"'Form 1SFS'!I79","v":0},null,{"$f":"'Form 1SFS'!K79","v":0}]
["Form 1SFS","Balance Sheet LT","1SFS13a","Sundry Assets - Derivatives",{"$f":"'Form 1SFS'!I82","v":0},null,{"$f":"'Form 1SFS'!K82","v":0}]
["Form 1SFS","Balance Sheet LT","1SFS13b","Sundry Assets - SAC - LT- Variable Annuities",{"$f":"'Form 1SFS'!I83","v":0},null,{"$f":"'Form 1SFS'!K83","v":0}]
["Form 1SFS","Balance Sheet LT","1SFS13c","Sundry Assets - SAC - LT- Others",{"$f":"'Form 1SFS'!I84","v":0},null,{"$f":"'Form 1SFS'!K84","v":0}]
["Form 1SFS","Balance Sheet LT","1SFS13e","Sundry Assets - Deposit Assets"]
["Form 1SFS","Balance Sheet LT","1SFS13f","Sundry Assets - Deferred Acquisition Costs",{"$f":"'Form 1SFS'!I86","v":0},null,{"$f":"'Form 1SFS'!K86","v":0}]
["Form 1SFS","Balance Sheet LT","1SFS13g","Sundry Assets - Net Rec. for Investments",{"$f":"'Form 1SFS'!I87","v":0},null,{"$f":"'Form 1SFS'!K87","v":0}]
["Form 1SFS","Balance Sheet LT","1SFS13h","Sundry Assets - Other 1",{"$f":"'Form 1SFS'!I88","v":0},null,{"$f":"'Form 1SFS'!K88","v":0}]
["Form 1SFS","Balance Sheet LT","1SFS13i","Sundry Assets - Other 2",{"$f":"'Form 1SFS'!I89","v":0},null,{"$f":"'Form 1SFS'!K89","v":0}]
["Form 1SFS","Balance Sheet LT","1SFS13j","Sundry Assets - Other 3",{"$f":"'Form 1SFS'!I90","v":0},null,{"$f":"'Form 1SFS'!K90","v":0}]
["Form 1SFS","Balance Sheet LT","1SFS14a","Letters of Credit",{"$f":"'Form 1SFS'!I91","v":0},null,{"$f":"'Form 1SFS'!K91","v":0}]
["Form 1SFS","Balance Sheet LT","1SFS14b","Guarantees",{"$f":"'Form 1SFS'!I95","v":0},null,{"$f":"'Form 1SFS'!K95","v":0}]
["Form 1SFS","Balance Sheet LT","1SFS14c","Other Instruments",{"$f":"'Form 1SFS'!I96","v":0},null,{"$f":"'Form 1SFS'!K96","v":0}]
["Form 1SFS","Balance Sheet LT","1SFS15","Total Assets",{"$f":"'Form 1SFS'!I97","v":0},null,{"$f":"'Form 1SFS'!K97","v":0}]
["Form 1SFS","Balance Sheet LT","1SFS20","Net - Reserves for Reported Claims",{"$f":"'Form 1SFS'!I132","v":0},null,{"$f":"'Form 1SFS'!K132","v":0}]
["Form 1SFS","Balance Sheet LT","1SFS21","Net - Reserves for Unreported Claims",{"$f":"'Form 1SFS'!I134","v":0},null,{"$f":"'Form 1SFS'!K134","v":0}]
["Form 1SFS","Balance Sheet LT","1SFS22","Net - Policy Reserves - Life",{"$f":"'Form 1SFS'!I136","v":0},null,{"$f":"'Form 1SFS'!K136","v":0}]
["Form 1SFS","Balance Sheet LT","1SFS23","Net - Policy Reserves - Accident & Health",{"$f":"'Form 1SFS'!I138","v":0},null,{"$f":"'Form 1SFS'!K138","v":0}]
["Form 1SFS","Balance Sheet LT","1SFS24","Net - Policyholder's Funds on Deposit",{"$f":"'Form 1SFS'!I140","v":0},null,{"$f":"'Form 1SFS'!K140","v":0}]
["Form 1SFS","Balance Sheet LT","1SFS25","Net - Liability for Future Policyholder Dividends",{"$f":"'Form 1SFS'!I142","v":0},null,{"$f":"'Form 1SFS'!K142","v":0}]
["Form 1SFS","Balance Sheet LT","1SFS26","Net - Other LT Insurance Reserves",{"$f":"'Form 1SFS'!I144","v":0},null,{"$f":"'Form 1SFS'!K144","v":0}]
["Form 1SFS","Balance Sheet LT","1SFS27bi","R/I Recoverable - Foreign Affiliates",{"$f":"'Form 1SFS'!I149","v":0},null,{"$f":"'Form 1SFS'!K149","v":0}]
["Form 1SFS","Balance Sheet LT","1SFS27bii","R/I Recoverable - Domestic Affiliates",{"$f":"'Form 1SFS'!I150","v":0},null,{"$f":"'Form 1SFS'!K150","v":0}]
["Form 1SFS","Balance Sheet LT","1SFS27biii","R/I Recoverable - Pools & Assoc.",{"$f":"'Form 1SFS'!I151","v":0},null,{"$f":"'Form 1SFS'!K151","v":0}]
["Form 1SFS","Balance Sheet LT","1SFS27biv","R/I Recoverable - All Other",{"$f":"'Form 1SFS'!I152","v":0},null,{"$f":"'Form 1SFS'!K152","v":0}]
["Form 1SFS","Balance Sheet LT","1SFS28","Insurance & R/I Balances Payable",{"$f":"'Form 1SFS'!I158","v":0},null,{"$f":"'Form 1SFS'!K158","v":0}]
["Form 1SFS","Balance Sheet LT","1SFS29","Commissions, Expenses and Taxes Payable",{"$f":"'Form 1SFS'!I160","v":0},null,{"$f":"'Form 1SFS'!K160","v":0}]
["Form 1SFS","Balance Sheet LT","1SFS30","Loans and Notes Payable",{"$f":"'Form 1SFS'!I162","v":0},null,{"$f":"'Form 1SFS'!K162","v":0}]
["Form 1SFS","Balance Sheet LT","1SFS31a","Income Taxes Payable",{"$f":"'Form 1SFS'!I164","v":0},null,{"$f":"'Form 1SFS'!K164","v":0}]
["Form 1SFS","Balance Sheet LT","1SFS31b","Deferred Taxes Payable",{"$f":"'Form 1SFS'!I166","v":0},null,{"$f":"'Form 1SFS'!K166","v":0}]
["Form 1SFS","Balance Sheet LT","1SFS32","Amounts Due to Affiliates",{"$f":"'Form 1SFS'!I168","v":0},null,{"$f":"'Form 1SFS'!K168","v":0}]
["Form 1SFS","Balance Sheet LT","1SFS33","Accounts Payable and Accrued Liabilities",{"$f":"'Form 1SFS'!I170","v":0},null,{"$f":"'Form 1SFS'!K170","v":0}]
["Form 1SFS","Balance Sheet LT","1SFS34","Funds Held under R/I Contracts",{"$f":"'Form 1SFS'!I172","v":0},null,{"$f":"'Form 1SFS'!K172","v":0}]
["Form 1SFS","Balance Sheet LT","1SFS35","Dividends Payable",{"$f":"'Form 1SFS'!I174","v":0},null,{"$f":"'Form 1SFS'!K174","v":0}]
["Form 1SFS","Balance Sheet LT","1SFS36a","Sundry Liabilities - Derivative Instruments",{"$f":"'Form 1SFS'!I177","v":0},null,{"$f":"'Form 1SFS'!K177","v":0}]
["Form 1SFS","Balance Sheet LT","1SFS36b","Sundry Liabilities - Segregated Accounts",{"$f":"'Form 1SFS'!I178","v":0},null,{"$f":"'Form 1SFS'!K178","v":0}]
["Form 1SFS","Balance Sheet LT","1SFS36c","Sundry Liabilities - Deposit Liabilities",{"$f":"'Form 1SFS'!I179","v":0},null,{"$f":"'Form 1SFS'!K179","v":0}]
["Form 1SFS","Balance Sheet LT","1SFS36d","Sundry Liabilities - Investments Purchased",{"$f":"'Form 1SFS'!I180","v":0},null,{"$f":"'Form 1SFS'!K180","v":0}]
["Form 1SFS","Balance Sheet LT","1SFS36e","Sundry Liabilities - Other 1",{"$f":"'Form 1SFS'!I181","v":0},null,{"$f":"'Form 1SFS'!K181","v":0}]
["Form 1SFS","Balance Sheet LT","1SFS36f","Sundry Liabilities - Other 2",{"$f":"'Form 1SFS'!I182","v":0},null,{"$f":"'Form 1SFS'!K182","v":0}]
["Form 1SFS","Balance Sheet LT","1SFS36g","Sundry Liabilities - Other 3",{"$f":"'Form 1SFS'!I183","v":0},null,{"$f":"'Form 1SFS'!K183","v":0}]
["Form 1SFS","Balance Sheet LT","1SFS37a","Letters of Credit",{"$f":"'Form 1SFS'!I187","v":0},null,{"$f":"'Form 1SFS'!K187","v":0}]
["Form 1SFS","Balance Sheet LT","1SFS37b","Guarantees",{"$f":"'Form 1SFS'!I188","v":0},null,{"$f":"'Form 1SFS'!K188","v":0}]
["Form 1SFS","Balance Sheet LT","1SFS37c","Other Instruments",{"$f":"'Form 1SFS'!I189","v":0},null,{"$f":"'Form 1SFS'!K189","v":0}]
[]
["Form 1SFS","Notes","Form 1SFS","Line 10 - Collaterized Balances",{"$f":"'Form 1SFS'!M210","v":0},null,{"$f":"'Form 1SFS'!O210","v":0},null,null,null,null,null,{"$f":"'Form 1EBS'!F179","v":0},null,{"$f":"'Form 1EBS'!H179","v":0}]
["Form 1SFS","Notes","Form 1SFS","Line 11(e) - Collaterized Balances",{"$f":"'Form 1SFS'!M212","v":0},null,null,null,null,null,null,null,{"$f":"'Form 1EBS'!F180","v":0},null,{"$f":"'Form 1EBS'!H180","v":0}]
["Form 1SFS","Notes","Form 1SFS","Line 17cii - Collat. in Favor of Insurer",{"$f":"'Form 1SFS'!M214","v":0},null,null,null,null,null,null,null,{"$f":"'Form 1EBS'!F181","v":0},null,{"$f":"'Form 1EBS'!H181","v":0}]
["Form 1SFS","Notes","Form 1SFS","Line 13 - Sundry Assets",{"$f":"'Form 1SFS'!M216","v":0},null,{"$f":"'Form 1SFS'!O216","v":0},null,null,null,null,null,{"$f":"'Form 1EBS'!F182","v":0},null,{"$f":"'Form 1EBS'!H182","v":0}]
["Form 1SFS","Notes","Form 1SFS","Line 15 - Policy. Oblig. - Cash",{"$f":"'Form 1SFS'!M221","v":0},null,{"$f":"'Form 1SFS'!O221","v":0},null,null,null,null,null,{"$f":"'Form 1EBS'!F188","v":0},null,{"$f":"'Form 1EBS'!H188","v":0}]
["Form 1SFS","Notes","Form 1SFS","Line 15 - Policy. Oblig. - Quoted. Inv.",{"$f":"'Form 1SFS'!M222","v":0},null,{"$f":"'Form 1SFS'!O222","v":0},null,null,null,null,null,{"$f":"'Form 1EBS'!F189","v":0},null,{"$f":"'Form 1EBS'!H189","v":0}]
["Form 1SFS","Notes","Form 1SFS","Line 15 - Policy. Oblig. - Unquoted. Inv.",{"$f":"'Form 1SFS'!M223","v":0},null,{"$f":"'Form 1SFS'!O223","v":0},null,null,null,null,null,{"$f":"'Form 1EBS'!F190","v":0},null,{"$f":"'Form 1EBS'!H190","v":0}]
["Form 1SFS","Notes","Form 1SFS","Line 15 - Policy. Oblig. - Funds Held",{"$f":"'Form 1SFS'!M224","v":0},null,{"$f":"'Form 1SFS'!O224","v":0},null,null,null,null,null,{"$f":"'Form 1EBS'!F191","v":0},null,{"$f":"'Form 1EBS'!H191","v":0}]
["Form 1SFS","Notes","Form 1SFS","Line 15 - Policy. Oblig. - Other Assets",{"$f":"'Form 1SFS'!M225","v":0},null,{"$f":"'Form 1SFS'!O225","v":0},null,null,null,null,null,{"$f":"'Form 1EBS'!F192","v":0},null,{"$f":"'Form 1EBS'!H192","v":0}]
["Form 1SFS","Notes","Form 1SFS","Line 15 - Policy. Oblig. - Total",{"$f":"'Form 1SFS'!M226","v":0},null,{"$f":"'Form 1SFS'!O226","v":0},null,null,null,null,null,{"$f":"'Form 1EBS'!F193","v":0},null,{"$f":"'Form 1EBS'!H193","v":0}]
["Form 1SFS","Notes","Form 1SFS","Line 15 - Other - Cash",{"$f":"'Form 1SFS'!M231","v":0},null,{"$f":"'Form 1SFS'!O231","v":0},null,null,null,null,null,{"$f":"'Form 1EBS'!F198","v":0},null,{"$f":"'Form 1EBS'!H198","v":0}]
["Form 1SFS","Notes","Form 1SFS","Line 15 - Other - Quoted. Inv.",{"$f":"'Form 1SFS'!M232","v":0},null,{"$f":"'Form 1SFS'!O232","v":0},null,null,null,null,null,{"$f":"'Form 1EBS'!F199","v":0},null,{"$f":"'Form 1EBS'!H199","v":0}]
["Form 1SFS","Notes","Form 1SFS","Line 15 - Other - Unquoted. Inv.",{"$f":"'Form 1SFS'!M233","v":0},null,{"$f":"'Form 1SFS'!O233","v":0},null,null,null,null,null,{"$f":"'Form 1EBS'!F200","v":0},null,{"$f":"'Form 1EBS'!H200","v":0}]
["Form 1SFS","Notes","Form 1SFS","Line 15 - Other - Other Assets",{"$f":"'Form 1SFS'!M234","v":0},null,{"$f":"'Form 1SFS'!O234","v":0},null,null,null,null,null,{"$f":"'Form 1EBS'!F201","v":0},null,{"$f":"'Form 1EBS'!H201","v":0}]
["Form 1SFS","Notes","Form 1SFS","Line 15 - Other - Total",{"$f":"'Form 1SFS'!M235","v":0},null,{"$f":"'Form 1SFS'!O235","v":0},null,null,null,null,null,{"$f":"'Form 1EBS'!F202","v":0},null,{"$f":"'Form 1EBS'!H202","v":0}]
["Form 1SFS","Notes","Form 1SFS","Line 36 - Sundry Liabilities",{"$f":"'Form 1SFS'!M237","v":0},null,{"$f":"'Form 1SFS'!O237","v":0},null,null,null,null,null,{"$f":"'Form 1EBS'!F205","v":0},null,{"$f":"'Form 1EBS'!H205","v":0}]
["Form 1SFS","Notes","Form 1SFS","Line 37 - LOC's & Guarantees",{"$f":"'Form 1SFS'!M239","v":0},null,{"$f":"'Form 1SFS'!O239","v":0},null,null,null,null,null,{"$f":"'Form 1EBS'!F206","v":0},null,{"$f":"'Form 1EBS'!H206","v":0}]
["Form 1SFS","Notes","Form 1SFS","Line 17 - Prior year note disclosure",{"$f":"'Form 1SFS'!K242","v":0}]
["Form 1SFS","Notes","Form 1SFS","Gross Provision - Beg. Of Year",{"$f":"'Form 1SFS'!M251","v":0},null,{"$f":"'Form 1SFS'!O251","v":0}]
["Form 1SFS","Notes","Form 1SFS","R/I Recoverable - Beg. Of Year",{"$f":"'Form 1SFS'!M253","v":0},null,{"$f":"'Form 1SFS'!O253","v":0}]
["Form 1SFS","Notes","Form 1SFS","Net Provision - Beg. Of Year",{"$f":"'Form 1SFS'!M255","v":0},null,{"$f":"'Form 1SFS'!O255","v":0}]
["Form 1SFS","Notes","Form 1SFS","Acquisition / Sale of loss reserves (net):",{"$f":"'Form 1SFS'!M257","v":0},null,{"$f":"'Form 1SFS'!O257","v":0}]
["Form 1SFS","Notes","Form 1SFS","Net Losses Incurred - Current Year",{"$f":"'Form 1SFS'!M261","v":0},null,{"$f":"'Form 1SFS'!O261","v":0}]
["Form 1SFS","Notes","Form 1SFS","Net Losses Incurred - Prior Years",{"$f":"'Form 1SFS'!M262","v":0},null,{"$f":"'Form 1SFS'!O262","v":0}]
["Form 1SFS","Notes","Form 1SFS","Net Losses Incurred - Total",{"$f":"'Form 1SFS'!M264","v":0},null,{"$f":"'Form 1SFS'!O264","v":0}]
["Form 1SFS","Notes","Form 1SFS","Losses Paid - Current Year",{"$f":"'Form 1SFS'!M268","v":0},null,{"$f":"'Form 1SFS'!O268","v":0}]
["Form 1SFS","Notes","Form 1SFS","Losses Paid - Prior Years",{"$f":"'Form 1SFS'!M269","v":0},null,{"$f":"'Form 1SFS'!O269","v":0}]
["Form 1SFS","Notes","Form 1SFS","Losses Paid - Total",{"$f":"'Form 1SFS'!M271","v":0},null,{"$f":"'Form 1SFS'!O271","v":0}]
["Form 1SFS","Notes","Form 1SFS","Foreign Exchange and Other",{"$f":"'Form 1SFS'!M273","v":0},null,{"$f":"'Form 1SFS'!O273","v":0}]
["Form 1SFS","Notes","Form 1SFS","Net Provision - End Of Year",{"$f":"'Form 1SFS'!M275","v":0},null,{"$f":"'Form 1SFS'!O275","v":0}]
["Form 1SFS","Notes","Form 1SFS","R/I Recoverable - End Of Year",{"$f":"'Form 1SFS'!M277","v":0},null,{"$f":"'Form 1SFS'!O277","v":0}]
["Form 1SFS","Notes","Form 1SFS","Gross Provision - End Of Year",{"$f":"'Form 1SFS'!M279","v":0},null,{"$f":"'Form 1SFS'!O279","v":0}]
["Form 1SFS","Notes","Form 1SFS","Insurance - Gross - Open Balance",{"$f":"'Form 1SFS'!E321","v":0},null,{"$f":"'Form 1SFS'!E330","v":0}]
["Form 1SFS","Notes","Form 1SFS","Insurance - Gross - Terminations",{"$f":"'Form 1SFS'!E322","v":0},null,{"$f":"'Form 1SFS'!E331","v":0}]
["Form 1SFS","Notes","Form 1SFS","Insurance - Gross - New Business",{"$f":"'Form 1SFS'!E323","v":0},null,{"$f":"'Form 1SFS'!E332","v":0}]
["Form 1SFS","Notes","Form 1SFS","Insurance - Gross - Chg.In Force",{"$f":"'Form 1SFS'!E324","v":0},null,{"$f":"'Form 1SFS'!E333","v":0}]
["Form 1SFS","Notes","Form 1SFS","Insurance - Gross - Mgmt Actions",{"$f":"'Form 1SFS'!E325","v":0},null,{"$f":"'Form 1SFS'!E334","v":0}]
["Form 1SFS","Notes","Form 1SFS","Insurance - Gross - FX",{"$f":"'Form 1SFS'!E326","v":0},null,{"$f":"'Form 1SFS'!E335","v":0}]
["Form 1SFS","Notes","Form 1SFS","Insurance - Gross - Closing Balance",{"$f":"'Form 1SFS'!E327","v":0},null,{"$f":"'Form 1SFS'!E336","v":0}]
["Form 1SFS","Notes","Form 1SFS","Insurance - R/I - Open Balance",{"$f":"'Form 1SFS'!G321","v":0},null,{"$f":"'Form 1SFS'!G330","v":0}]
["Form 1SFS","Notes","Form 1SFS","Insurance - R/I - Terminations",{"$f":"'Form 1SFS'!G322","v":0},null,{"$f":"'Form 1SFS'!G331","v":0}]
["Form 1SFS","Notes","Form 1SFS","Insurance - R/I - New Business",{"$f":"'Form 1SFS'!G323","v":0},null,{"$f":"'Form 1SFS'!G332","v":0}]
["Form 1SFS","Notes","Form 1SFS","Insurance - R/I - Chg.In Force",{"$f":"'Form 1SFS'!G324","v":0},null,{"$f":"'Form 1SFS'!G333","v":0}]
["Form 1SFS","Notes","Form 1SFS","Insurance - R/I - Mgmt Actions",{"$f":"'Form 1SFS'!G325","v":0},null,{"$f":"'Form 1SFS'!G334","v":0}]
["Form 1SFS","Notes","Form 1SFS","Insurance - R/I - FX",{"$f":"'Form 1SFS'!G326","v":0},null,{"$f":"'Form 1SFS'!G335","v":0}]
["Form 1SFS","Notes","Form 1SFS","Insurance - R/I - Closing Balance",{"$f":"'Form 1SFS'!G327","v":0},null,{"$f":"'Form 1SFS'!G336","v":0}]
["Form 1SFS","Notes","Form 1SFS","Insurance - Net - Open Balance",{"$f":"'Form 1SFS'!I321","v":0},null,{"$f":"'Form 1SFS'!I330","v":0}]
["Form 1SFS","Notes","Form 1SFS","Insurance - Net - Terminations",{"$f":"'Form 1SFS'!I322","v":0},null,{"$f":"'Form 1SFS'!I331","v":0}]
["Form 1SFS","Notes","Form 1SFS","Insurance - Net - New Business",{"$f":"'Form 1SFS'!I323","v":0},null,{"$f":"'Form 1SFS'!I332","v":0}]
["Form 1SFS","Notes","Form 1SFS","Insurance - Net - Chg.In Force",{"$f":"'Form 1SFS'!I324","v":0},null,{"$f":"'Form 1SFS'!I333","v":0}]
["Form 1SFS","Notes","Form 1SFS","Insurance - Net - Mgmt Actions",{"$f":"'Form 1SFS'!I325","v":0},null,{"$f":"'Form 1SFS'!I334","v":0}]
["Form 1SFS","Notes","Form 1SFS","Insurance - Net - FX",{"$f":"'Form 1SFS'!I326","v":0},null,{"$f":"'Form 1SFS'!I335","v":0}]
["Form 1SFS","Notes","Form 1SFS","Insurance - Net - Closing Balance",{"$f":"'Form 1SFS'!I327","v":0},null,{"$f":"'Form 1SFS'!I336","v":0}]
["Form 1SFS","Notes","Form 1SFS","Invmnt - Gross - Open Balance",{"$f":"'Form 1SFS'!K321","v":0},null,{"$f":"'Form 1SFS'!K330","v":0}]
["Form 1SFS","Notes","Form 1SFS","Invmnt - Gross - Terminations",{"$f":"'Form 1SFS'!K322","v":0},null,{"$f":"'Form 1SFS'!K331","v":0}]
["Form 1SFS","Notes","Form 1SFS","Invmnt - Gross - New Business",{"$f":"'Form 1SFS'!K323","v":0},null,{"$f":"'Form 1SFS'!K332","v":0}]
["Form 1SFS","Notes","Form 1SFS","Invmnt - Gross - Chg.In Force",{"$f":"'Form 1SFS'!K324","v":0},null,{"$f":"'Form 1SFS'!K333","v":0}]
["Form 1SFS","Notes","Form 1SFS","Invmnt - Gross - Mgmt Actions",{"$f":"'Form 1SFS'!K325","v":0},null,{"$f":"'Form 1SFS'!K334","v":0}]
["Form 1SFS","Notes","Form 1SFS","Invmnt - Gross - FX",{"$f":"'Form 1SFS'!K326","v":0},null,{"$f":"'Form 1SFS'!K335","v":0}]
["Form 1SFS","Notes","Form 1SFS","Invmnt - Gross - Closing Balance",{"$f":"'Form 1SFS'!K327","v":0},null,{"$f":"'Form 1SFS'!K336","v":0}]
["Form 1SFS","Notes","Form 1SFS","Invmnt - R/I - Open Balance",{"$f":"'Form 1SFS'!M321","v":0},null,{"$f":"'Form 1SFS'!M330","v":0}]
["Form 1SFS","Notes","Form 1SFS","Invmnt - R/I - Terminations",{"$f":"'Form 1SFS'!M322","v":0},null,{"$f":"'Form 1SFS'!M331","v":0}]
["Form 1SFS","Notes","Form 1SFS","Invmnt - R/I - New Business",{"$f":"'Form 1SFS'!M323","v":0},null,{"$f":"'Form 1SFS'!M332","v":0}]
["Form 1SFS","Notes","Form 1SFS","Invmnt - R/I - Chg.In Force",{"$f":"'Form 1SFS'!M324","v":0},null,{"$f":"'Form 1SFS'!M333","v":0}]
["Form 1SFS","Notes","Form 1SFS","Invmnt - R/I - Mgmt Actions",{"$f":"'Form 1SFS'!M325","v":0},null,{"$f":"'Form 1SFS'!M334","v":0}]
["Form 1SFS","Notes","Form 1SFS","Invmnt - R/I - FX",{"$f":"'Form 1SFS'!M326","v":0},null,{"$f":"'Form 1SFS'!M335","v":0}]
["Form 1SFS","Notes","Form 1SFS","Invmnt - R/I - Closing Balance",{"$f":"'Form 1SFS'!M327","v":0},null,{"$f":"'Form 1SFS'!M336","v":0}]
["Form 1SFS","Notes","Form 1SFS","Invmnt - Net - Open Balance",{"$f":"'Form 1SFS'!O321","v":0},null,{"$f":"'Form 1SFS'!O330","v":0}]
["Form 1SFS","Notes","Form 1SFS","Invmnt - Net - Terminations",{"$f":"'Form 1SFS'!O322","v":0},null,{"$f":"'Form 1SFS'!O331","v":0}]
["Form 1SFS","Notes","Form 1SFS","Invmnt - Net - New Business",{"$f":"'Form 1SFS'!O323","v":0},null,{"$f":"'Form 1SFS'!O332","v":0}]
["Form 1SFS","Notes","Form 1SFS","Invmnt - Net - Chg.In Force",{"$f":"'Form 1SFS'!O324","v":0},null,{"$f":"'Form 1SFS'!O333","v":0}]
["Form 1SFS","Notes","Form 1SFS","Invmnt - Net - Mgmt Actions",{"$f":"'Form 1SFS'!O325","v":0},null,{"$f":"'Form 1SFS'!O334","v":0}]
["Form 1SFS","Notes","Form 1SFS","Invmnt - Net - FX",{"$f":"'Form 1SFS'!O326","v":0},null,{"$f":"'Form 1SFS'!O335","v":0}]
["Form 1SFS","Notes","Form 1SFS","Invmnt - Net - Closing Balance",{"$f":"'Form 1SFS'!O327","v":0},null,{"$f":"'Form 1SFS'!O336","v":0}]
[]
["1EBS","Notes","1EBS","Line 36(i) - Any Other Liabilities",null,null,null,null,null,null,null,null,{"$f":"'Form 1EBS'!F183","v":0},null,{"$f":"'Form 1EBS'!H183","v":0}]
["1EBS","Notes","1EBS","Line 36(f) - Details of Deposit Liab.",null,null,null,null,null,null,null,null,{"$f":"'Form 1EBS'!F204","v":0},null,{"$f":"'Form 1EBS'!H204","v":0}]
["1EBS","Notes","1EBS","Line 40 - Recon. 1SFS 40 to EBS 40",null,null,null,null,null,null,null,null,{"$f":"'Form 1EBS'!F207","v":0},null,{"$f":"'Form 1EBS'!H207","v":0}]
["1EBS","Notes","1EBS","Line 16c - Adj. Counterparty Default",null,null,null,null,null,null,null,null,{"$f":"'Form 1EBS'!F210","v":0},null,{"$f":"'Form 1EBS'!H210","v":0}]
["1EBS","Notes","1EBS","Line 17ci - Adj. Counterparty Default",null,null,null,null,null,null,null,null,{"$f":"'Form 1EBS'!F211","v":0},null,{"$f":"'Form 1EBS'!H211","v":0}]
["1EBS","Notes","1EBS","Line 16di - BBNI Premium",null,null,null,null,null,null,null,null,{"$f":"'Form 1EBS'!F212","v":0},null,{"$f":"'Form 1EBS'!H212","v":0}]
["1EBS","Notes","1EBS","Line 16dii - BBNI Best Est. Prem",null,null,null,null,null,null,null,null,{"$f":"'Form 1EBS'!F213","v":0},null,{"$f":"'Form 1EBS'!H213","v":0}]
["1EBS","Notes","1EBS","Line 17di - Loss Provision Discount",null,null,null,null,null,null,null,null,{"$f":"'Form 1EBS'!F214","v":0},null,{"$f":"'Form 1EBS'!H214","v":0}]
["1EBS","Notes","1EBS","Line 17dii - Scenario Based Approach",null,null,null,null,null,null,null,null,{"$f":"'Form 1EBS'!F215","v":0},null,{"$f":"'Form 1EBS'!H215","v":0}]
["1EBS","Notes","1EBS","Best Estimate Provision - Beg. Of Year",null,null,null,null,null,null,null,null,{"$f":"'Form 1EBS'!F218","v":0},null,{"$f":"'Form 1EBS'!H218","v":0}]
["1EBS","Notes","1EBS","Unwind of Discount",null,null,null,null,null,null,null,null,{"$f":"'Form 1EBS'!F220","v":0},null,{"$f":"'Form 1EBS'!H220","v":0}]
["1EBS","Notes","1EBS","Net Loss Paid - Prior Years",null,null,null,null,null,null,null,null,{"$f":"'Form 1EBS'!F221","v":0},null,{"$f":"'Form 1EBS'!H221","v":0}]
["1EBS","Notes","1EBS","Net Losses Incurred - Prior Years",null,null,null,null,null,null,null,null,{"$f":"'Form 1EBS'!F222","v":0},null,{"$f":"'Form 1EBS'!H222","v":0}]
["1EBS","Notes","1EBS","Best Estimate Provision - From PY",null,null,null,null,null,null,null,null,{"$f":"'Form 1EBS'!F223","v":0},null,{"$f":"'Form 1EBS'!H223","v":0}]
["1EBS","Notes","1EBS","Net Losses Incurred - Current Year",null,null,null,null,null,null,null,null,{"$f":"'Form 1EBS'!F225","v":0},null,{"$f":"'Form 1EBS'!H225","v":0}]
["1EBS","Notes","1EBS","Net Loss Paid - Current Year",null,null,null,null,null,null,null,null,{"$f":"'Form 1EBS'!F226","v":0},null,{"$f":"'Form 1EBS'!H226","v":0}]
["1EBS","Notes","1EBS","Foreign Exchange and Other",null,null,null,null,null,null,null,null,{"$f":"'Form 1EBS'!F227","v":0},null,{"$f":"'Form 1EBS'!H227","v":0}]
["1EBS","Notes","1EBS","Best Estimate Provision - From CY",null,null,null,null,null,null,null,null,{"$f":"'Form 1EBS'!F228","v":0},null,{"$f":"'Form 1EBS'!H228","v":0}]
["1EBS","Notes","1EBS","Impact of Change in Discount Curve",null,null,null,null,null,null,null,null,{"$f":"'Form 1EBS'!F230","v":0},null,{"$f":"'Form 1EBS'!H230","v":0}]
["1EBS","Notes","1EBS","Best Estimate Provision - End Of Year",null,null,null,null,null,null,null,null,{"$f":"'Form 1EBS'!F232","v":0},null,{"$f":"'Form 1EBS'!H232","v":0}]
[]
[null,null,null,"Income Statement"]
["Form 2SFS","Income Stmt Uncon GEN / CON","2SFS1a","Gross Premium Written - Direct",{"$f":"'Form 2SFS'!E12","v":0},null,{"$f":"'Form 2SFS'!G12","v":0},null,{"$f":"'Form 2SFS'!M12","v":0},null,{"$f":"'Form 2SFS'!O12","v":0}]
["Form 2SFS","Income Stmt Uncon GEN / CON","2SFS1b","Gross Premium Written - Assumed",{"$f":"'Form 2SFS'!E13","v":0},null,{"$f":"'Form 2SFS'!G13","v":0},null,{"$f":"'Form 2SFS'!M13","v":0},null,{"$f":"'Form 2SFS'!O13","v":0}]
["Form 2SFS","Income Stmt Uncon GEN / CON","2SFS2","R/I Premiums Ceded",{"$f":"'Form 2SFS'!E16","v":0},null,{"$f":"'Form 2SFS'!G16","v":0},null,{"$f":"'Form 2SFS'!M16","v":0},null,{"$f":"'Form 2SFS'!O16","v":0}]
["Form 2SFS","Income Stmt Uncon GEN / CON","2SFS4","Change in Unearned Premiums",{"$f":"'Form 2SFS'!E20","v":0},null,{"$f":"'Form 2SFS'!G20","v":0},null,{"$f":"'Form 2SFS'!M20","v":0},null,{"$f":"'Form 2SFS'!O20","v":0}]
["Form 2SFS","Income Stmt Uncon GEN / CON","2SFS6","Other Insurance Income",{"$f":"'Form 2SFS'!E24","v":0},null,{"$f":"'Form 2SFS'!G24","v":0},null,{"$f":"'Form 2SFS'!M24","v":0},null,{"$f":"'Form 2SFS'!O24","v":0}]
["Form 2SFS","Income Stmt Uncon GEN / CON","2SFS8","Net Losses Incurred",{"$f":"'Form 2SFS'!E30","v":0},null,{"$f":"'Form 2SFS'!G30","v":0},null,{"$f":"'Form 2SFS'!M30","v":0},null,{"$f":"'Form 2SFS'!O30","v":0}]
["Form 2SFS","Income Stmt Uncon GEN / CON","2SFS9","Commissions & Brokerage",{"$f":"'Form 2SFS'!E32","v":0},null,{"$f":"'Form 2SFS'!G32","v":0},null,{"$f":"'Form 2SFS'!M32","v":0},null,{"$f":"'Form 2SFS'!O32","v":0}]
["Form 2SFS","Income Stmt Uncon GEN / CON","2SFS12a","Gross Premium Written - Direct",null,null,null,null,{"$f":"'Form 2SFS'!M41","v":0},null,{"$f":"'Form 2SFS'!O41","v":0}]
["Form 2SFS","Income Stmt Uncon GEN / CON","2SFS12b","Gross Premium Written - Assumed",null,null,null,null,{"$f":"'Form 2SFS'!M42","v":0},null,{"$f":"'Form 2SFS'!O42","v":0}]
["Form 2SFS","Income Stmt Uncon GEN / CON","2SFS13","R/I Premiums Ceded",null,null,null,null,{"$f":"'Form 2SFS'!M45","v":0},null,{"$f":"'Form 2SFS'!O45","v":0}]
["Form 2SFS","Income Stmt Uncon GEN / CON","2SFS14a","NPW - Life",null,null,null,null,{"$f":"'Form 2SFS'!M48","v":0},null,{"$f":"'Form 2SFS'!O48","v":0}]
["Form 2SFS","Income Stmt Uncon GEN / CON","2SFS14b","NPW - Annuities",null,null,null,null,{"$f":"'Form 2SFS'!M49","v":0},null,{"$f":"'Form 2SFS'!O49","v":0}]
["Form 2SFS","Income Stmt Uncon GEN / CON","2SFS14c","NPW - Accident & Health",null,null,null,null,{"$f":"'Form 2SFS'!M50","v":0},null,{"$f":"'Form 2SFS'!O50","v":0}]
["Form 2SFS","Income Stmt Uncon GEN / CON","2SFS15","Other Insurance Income",null,null,null,null,{"$f":"'Form 2SFS'!M53","v":0},null,{"$f":"'Form 2SFS'!O53","v":0}]
["Form 2SFS","Income Stmt Uncon GEN / CON","2SFS17","Claims - Life",null,null,null,null,{"$f":"'Form 2SFS'!M59","v":0},null,{"$f":"'Form 2SFS'!O59","v":0}]
["Form 2SFS","Income Stmt Uncon GEN / CON","2SFS18","Policyholders' Dividends",null,null,null,null,{"$f":"'Form 2SFS'!M61","v":0},null,{"$f":"'Form 2SFS'!O61","v":0}]
["Form 2SFS","Income Stmt Uncon GEN / CON","2SFS19","Surrenders",null,null,null,null,{"$f":"'Form 2SFS'!M63","v":0},null,{"$f":"'Form 2SFS'!O63","v":0}]
["Form 2SFS","Income Stmt Uncon GEN / CON","2SFS20","Maturities",null,null,null,null,{"$f":"'Form 2SFS'!M65","v":0},null,{"$f":"'Form 2SFS'!O65","v":0}]
["Form 2SFS","Income Stmt Uncon GEN / CON","2SFS21","Annuities",null,null,null,null,{"$f":"'Form 2SFS'!M67","v":0},null,{"$f":"'Form 2SFS'!O67","v":0}]
["Form 2SFS","Income Stmt Uncon GEN / CON","2SFS22","Accident & Health Benefits",null,null,null,null,{"$f":"'Form 2SFS'!M69","v":0},null,{"$f":"'Form 2SFS'!O69","v":0}]
["Form 2SFS","Income Stmt Uncon GEN / CON","2SFS23","Commissions",null,null,null,null,{"$f":"'Form 2SFS'!M71","v":0},null,{"$f":"'Form 2SFS'!O71","v":0}]
["Form 2SFS","Income Stmt Uncon GEN / CON","2SFS24","Other",null,null,null,null,{"$f":"'Form 2SFS'!M73","v":0},null,{"$f":"'Form 2SFS'!O73","v":0}]
["Form 2SFS","Income Stmt Uncon GEN / CON","2SFS26a","Change in Policy Reserves - Life",null,null,null,null,{"$f":"'Form 2SFS'!M78","v":0},null,{"$f":"'Form 2SFS'!O78","v":0}]
["Form 2SFS","Income Stmt Uncon GEN / CON","2SFS26b","Change in Policy Reserves - Annuities",null,null,null,null,{"$f":"'Form 2SFS'!M79","v":0},null,{"$f":"'Form 2SFS'!O79","v":0}]
["Form 2SFS","Income Stmt Uncon GEN / CON","2SFS26c","Change in Policy Reserves - Accid. & Health",null,null,null,null,{"$f":"'Form 2SFS'!M80","v":0},null,{"$f":"'Form 2SFS'!O80","v":0}]
["Form 2SFS","Income Stmt Uncon GEN / CON","2SFS30a","Operating Expense - G&A",{"$f":"'Form 2SFS'!E93","v":0},null,{"$f":"'Form 2SFS'!G93","v":0},null,{"$f":"'Form 2SFS'!M93","v":0},null,{"$f":"'Form 2SFS'!O93","v":0}]
["Form 2SFS","Income Stmt Uncon GEN / CON","2SFS30b","Operating Expense - Personnel Costs",{"$f":"'Form 2SFS'!E94","v":0},null,{"$f":"'Form 2SFS'!G94","v":0},null,{"$f":"'Form 2SFS'!M94","v":0},null,{"$f":"'Form 2SFS'!O94","v":0}]
["Form 2SFS","Income Stmt Uncon GEN / CON","2SFS30c","Operating Expense - Other",{"$f":"'Form 2SFS'!E95","v":0},null,{"$f":"'Form 2SFS'!G95","v":0},null,{"$f":"'Form 2SFS'!M95","v":0},null,{"$f":"'Form 2SFS'!O95","v":0}]
["Form 2SFS","Income Stmt Uncon GEN / CON","2SFS31","Investment Income",{"$f":"'Form 2SFS'!E98","v":0},null,{"$f":"'Form 2SFS'!G98","v":0},null,{"$f":"'Form 2SFS'!M98","v":0},null,{"$f":"'Form 2SFS'!O98","v":0}]
["Form 2SFS","Income Stmt Uncon GEN / CON","2SFS32","Other Income",{"$f":"'Form 2SFS'!E100","v":0},null,{"$f":"'Form 2SFS'!G100","v":0},null,{"$f":"'Form 2SFS'!M100","v":0},null,{"$f":"'Form 2SFS'!O100","v":0}]
["Form 2SFS","Income Stmt Uncon GEN / CON","2SFS34a","Income Tax - Current",{"$f":"'Form 2SFS'!E105","v":0},null,{"$f":"'Form 2SFS'!G105","v":0},null,{"$f":"'Form 2SFS'!M105","v":0},null,{"$f":"'Form 2SFS'!O105","v":0}]
["Form 2SFS","Income Stmt Uncon GEN / CON","2SFS34b","Income Tax - Deferred",{"$f":"'Form 2SFS'!E106","v":0},null,{"$f":"'Form 2SFS'!G106","v":0},null,{"$f":"'Form 2SFS'!M106","v":0},null,{"$f":"'Form 2SFS'!O106","v":0}]
["Form 2SFS","Income Stmt Uncon GEN / CON","2SFS36","Realized Gains/Losses",{"$f":"'Form 2SFS'!E111","v":0},null,{"$f":"'Form 2SFS'!G111","v":0},null,{"$f":"'Form 2SFS'!M111","v":0},null,{"$f":"'Form 2SFS'!O111","v":0}]
["Form 2SFS","Income Stmt Uncon GEN / CON","2SFS37","Interest Charges",{"$f":"'Form 2SFS'!E113","v":0},null,{"$f":"'Form 2SFS'!G113","v":0},null,{"$f":"'Form 2SFS'!M113","v":0},null,{"$f":"'Form 2SFS'!O113","v":0}]
[]
["Form 2SFS","Income Stmt Uncon LT","2SFS12a","Gross Premium Written - Direct",{"$f":"'Form 2SFS'!I41","v":0},null,{"$f":"'Form 2SFS'!K41","v":0}]
["Form 2SFS","Income Stmt Uncon LT","2SFS12b","Gross Premium Written - Assumed",{"$f":"'Form 2SFS'!I42","v":0},null,{"$f":"'Form 2SFS'!K42","v":0}]
["Form 2SFS","Income Stmt Uncon LT","2SFS13","R/I Premiums Ceded",{"$f":"'Form 2SFS'!I45","v":0},null,{"$f":"'Form 2SFS'!K45","v":0}]
["Form 2SFS","Income Stmt Uncon LT","2SFS14a","NPW - Life",{"$f":"'Form 2SFS'!I48","v":0},null,{"$f":"'Form 2SFS'!K48","v":0}]
["Form 2SFS","Income Stmt Uncon LT","2SFS14b","NPW - Annuities",{"$f":"'Form 2SFS'!I49","v":0},null,{"$f":"'Form 2SFS'!K49","v":0}]
["Form 2SFS","Income Stmt Uncon LT","2SFS14c","NPW - Accident & Health",{"$f":"'Form 2SFS'!I50","v":0},null,{"$f":"'Form 2SFS'!K50","v":0}]
["Form 2SFS","Income Stmt Uncon LT","2SFS15","Other Insurance Income",{"$f":"'Form 2SFS'!I53","v":0},null,{"$f":"'Form 2SFS'!K53","v":0}]
["Form 2SFS","Income Stmt Uncon LT","2SFS17","Claims - Life",{"$f":"'Form 2SFS'!I59","v":0},null,{"$f":"'Form 2SFS'!K59","v":0}]
["Form 2SFS","Income Stmt Uncon LT","2SFS18","Policyholders' Dividends",{"$f":"'Form 2SFS'!I61","v":0},null,{"$f":"'Form 2SFS'!K61","v":0}]
["Form 2SFS","Income Stmt Uncon LT","2SFS19","Surrenders",{"$f":"'Form 2SFS'!I63","v":0},null,{"$f":"'Form 2SFS'!K63","v":0}]
["Form 2SFS","Income Stmt Uncon LT","2SFS20","Maturities",{"$f":"'Form 2SFS'!I65","v":0},null,{"$f":"'Form 2SFS'!K65","v":0}]
["Form 2SFS","Income Stmt Uncon LT","2SFS21","Annuities",{"$f":"'Form 2SFS'!I67","v":0},null,{"$f":"'Form 2SFS'!K67","v":0}]
["Form 2SFS","Income Stmt Uncon LT","2SFS22","Accident & Health Benefits",{"$f":"'Form 2SFS'!I69","v":0},null,{"$f":"'Form 2SFS'!K69","v":0}]
["Form 2SFS","Income Stmt Uncon LT","2SFS23","Commissions",{"$f":"'Form 2SFS'!I71","v":0},null,{"$f":"'Form 2SFS'!K71","v":0}]
["Form 2SFS","Income Stmt Uncon LT","2SFS24","Other",{"$f":"'Form 2SFS'!I73","v":0},null,{"$f":"'Form 2SFS'!K73","v":0}]
["Form 2SFS","Income Stmt Uncon LT","2SFS26a","Change in Policy Reserves - Life",{"$f":"'Form 2SFS'!I78","v":0},null,{"$f":"'Form 2SFS'!K78","v":0}]
["Form 2SFS","Income Stmt Uncon LT","2SFS26b","Change in Policy Reserves - Annuities",{"$f":"'Form 2SFS'!I79","v":0},null,{"$f":"'Form 2SFS'!K79","v":0}]
["Form 2SFS","Income Stmt Uncon LT","2SFS26c","Change in Policy Reserves - Accid. & Health",{"$f":"'Form 2SFS'!I80","v":0},null,{"$f":"'Form 2SFS'!K80","v":0}]
["Form 2SFS","Income Stmt Uncon LT","2SFS30a","Operating Expense - G&A",{"$f":"'Form 2SFS'!I93","v":0},null,{"$f":"'Form 2SFS'!K93","v":0}]
["Form 2SFS","Income Stmt Uncon LT","2SFS30b","Operating Expense - Personnel Costs",{"$f":"'Form 2SFS'!I94","v":0},null,{"$f":"'Form 2SFS'!K94","v":0}]
["Form 2SFS","Income Stmt Uncon LT","2SFS30c","Operating Expense - Other",{"$f":"'Form 2SFS'!I95","v":0},null,{"$f":"'Form 2SFS'!K95","v":0}]
["Form 2SFS","Income Stmt Uncon LT","2SFS31","Investment Income",{"$f":"'Form 2SFS'!I98","v":0},null,{"$f":"'Form 2SFS'!K98","v":0}]
["Form 2SFS","Income Stmt Uncon LT","2SFS32","Other Income",{"$f":"'Form 2SFS'!I100","v":0},null,{"$f":"'Form 2SFS'!K100","v":0}]
["Form 2SFS","Income Stmt Uncon LT","2SFS34a","Income Tax - Current",{"$f":"'Form 2SFS'!I105","v":0},null,{"$f":"'Form 2SFS'!K105","v":0}]
["Form 2SFS","Income Stmt Uncon LT","2SFS34b","Income Tax - Deferred",{"$f":"'Form 2SFS'!I106","v":0},null,{"$f":"'Form 2SFS'!K106","v":0}]
["Form 2SFS","Income Stmt Uncon LT","2SFS36","Realized Gains/Losses",{"$f":"'Form 2SFS'!I111","v":0},null,{"$f":"'Form 2SFS'!K111","v":0}]
["Form 2SFS","Income Stmt Uncon LT","2SFS37","Interest Charges",{"$f":"'Form 2SFS'!I113","v":0},null,{"$f":"'Form 2SFS'!K113","v":0}]
[]
[null,null,null,"Statement of Capital & Surplus"]
["Form 8SFS","Stmt of C&S Uncon GEN / CON","8SFS1ai","Capital Stock",{"$f":"'Form 8SFS'!G11","v":0},null,{"$f":"'Form 8SFS'!I11","v":0}]
["Form 8SFS","Stmt of C&S Uncon GEN / CON",null,"Common Stock",null,null,null,null,{"$f":"'Form 8SFS'!O12","v":0},null,{"$f":"'Form 8SFS'!Q12","v":0}]
["Form 8SFS","Stmt of C&S Uncon GEN / CON","8SFS1aii","Preferred Shares",null,null,null,null,{"$f":"'Form 8SFS'!O17","v":0},null,{"$f":"'Form 8SFS'!Q17","v":0}]
["Form 8SFS","Stmt of C&S Uncon GEN / CON","8SFS1aiii","Treasury Shares",null,null,null,null,{"$f":"'Form 8SFS'!O25","v":0},null,{"$f":"'Form 8SFS'!Q25","v":0}]
["Form 8SFS","Stmt of C&S Uncon GEN / CON","8SFS1b","Contributed Surplus",{"$f":"'Form 8SFS'!G29","v":0},null,{"$f":"'Form 8SFS'!I29","v":0},null,{"$f":"'Form 8SFS'!O29","v":0},null,{"$f":"'Form 8SFS'!Q29","v":0}]
["Form 8SFS","Stmt of C&S Uncon GEN / CON","8SFS1ci","Other Fixed Capital - Hybrid Instruments",{"$f":"'Form 8SFS'!G32","v":0},null,{"$f":"'Form 8SFS'!I32","v":0},null,{"$f":"'Form 8SFS'!O32","v":0},null,{"$f":"'Form 8SFS'!Q32","v":0}]
["Form 8SFS","Stmt of C&S Uncon GEN / CON","8SFS1cii","Other Fixed Capital - Guarantees & Others",{"$f":"'Form 8SFS'!G33","v":0},null,{"$f":"'Form 8SFS'!I33","v":0},null,{"$f":"'Form 8SFS'!O33","v":0},null,{"$f":"'Form 8SFS'!Q33","v":0}]
["Form 8SFS","Stmt of C&S Uncon GEN / CON","8SFS2a","Statutory Surplus - Beginning of Year",{"$f":"'Form 8SFS'!G40","v":0},null,{"$f":"'Form 8SFS'!I40","v":0},null,{"$f":"'Form 8SFS'!O40","v":0},null,{"$f":"'Form 8SFS'!Q40","v":0}]
["Form 8SFS","Stmt of C&S Uncon GEN / CON","8SFS2c","Dividends",{"$f":"'Form 8SFS'!G44","v":0},null,{"$f":"'Form 8SFS'!I44","v":0},null,{"$f":"'Form 8SFS'!O44","v":0},null,{"$f":"'Form 8SFS'!Q44","v":0}]
["Form 8SFS","Stmt of C&S Uncon GEN / CON","8SFS2d","Unrealized Change in Investments",{"$f":"'Form 8SFS'!G46","v":0},null,{"$f":"'Form 8SFS'!I46","v":0},null,{"$f":"'Form 8SFS'!O46","v":0},null,{"$f":"'Form 8SFS'!Q46","v":0}]
["Form 8SFS","Stmt of C&S Uncon GEN / CON","8SFS2e","Change in Non-Admitted Assets",{"$f":"'Form 8SFS'!G48","v":0},null,{"$f":"'Form 8SFS'!I48","v":0},null,{"$f":"'Form 8SFS'!O48","v":0},null,{"$f":"'Form 8SFS'!Q48","v":0}]
["Form 8SFS","Stmt of C&S Uncon GEN / CON","8SFS2f","Change in Real Estate",{"$f":"'Form 8SFS'!G50","v":0},null,{"$f":"'Form 8SFS'!I50","v":0},null,{"$f":"'Form 8SFS'!O50","v":0},null,{"$f":"'Form 8SFS'!Q50","v":0}]
["Form 8SFS","Stmt of C&S Uncon GEN / CON","8SFS2g","Change in Other Statutory Capital",{"$f":"'Form 8SFS'!G52","v":0},null,{"$f":"'Form 8SFS'!I52","v":0},null,{"$f":"'Form 8SFS'!O52","v":0},null,{"$f":"'Form 8SFS'!Q52","v":0}]
["Form 8SFS","Stmt of C&S Uncon GEN / CON","8SFS3","Minority Interest",{"$f":"'Form 8SFS'!G56","v":0},null,{"$f":"'Form 8SFS'!I56","v":0},null,{"$f":"'Form 8SFS'!O56","v":0},null,{"$f":"'Form 8SFS'!Q56","v":0}]
[]
["Form 8SFS","Stmt of C&S Uncon LT","8SFS1a","Common Stock",{"$f":"'Form 8SFS'!K11","v":0},null,{"$f":"'Form 8SFS'!M11","v":0}]
["Form 8SFS","Stmt of C&S Uncon LT","8SFS1b","Contributed Surplus",{"$f":"'Form 8SFS'!K29","v":0},null,{"$f":"'Form 8SFS'!M29","v":0}]
["Form 8SFS","Stmt of C&S Uncon LT","8SFS1ci","Other Fixed Capital - Hybrid Instruments",{"$f":"'Form 8SFS'!K32","v":0},null,{"$f":"'Form 8SFS'!M32","v":0}]
["Form 8SFS","Stmt of C&S Uncon LT","8SFS1cii","Other Fixed Capital - Guarantees & Others",{"$f":"'Form 8SFS'!K33","v":0},null,{"$f":"'Form 8SFS'!M33","v":0}]
["Form 8SFS","Stmt of C&S Uncon LT","8SFS2a","Statutory Surplus - Beginning of Year",{"$f":"'Form 8SFS'!K40","v":0},null,{"$f":"'Form 8SFS'!M40","v":0}]
["Form 8SFS","Stmt of C&S Uncon LT","8SFS2c","Dividends",{"$f":"'Form 8SFS'!K44","v":0},null,{"$f":"'Form 8SFS'!M44","v":0}]
["Form 8SFS","Stmt of C&S Uncon LT","8SFS2d","Unrealized Change in Investments",{"$f":"'Form 8SFS'!K46","v":0},null,{"$f":"'Form 8SFS'!M46","v":0}]
["Form 8SFS","Stmt of C&S Uncon LT","8SFS2e","Change in Non-Admitted Assets",{"$f":"'Form 8SFS'!K48","v":0},null,{"$f":"'Form 8SFS'!M48","v":0}]
["Form 8SFS","Stmt of C&S Uncon LT","8SFS2f","Change in Real Estate",{"$f":"'Form 8SFS'!K50","v":0},null,{"$f":"'Form 8SFS'!M50","v":0}]
["Form 8SFS","Stmt of C&S Uncon LT","8SFS2g","Change in Other Statutory Capital",{"$f":"'Form 8SFS'!K52","v":0},null,{"$f":"'Form 8SFS'!M52","v":0}]
["Form 8SFS","Stmt of C&S Uncon LT","8SFS3","Minority Interest",{"$f":"'Form 8SFS'!K56","v":0},null,{"$f":"'Form 8SFS'!M56","v":0}]
[]
[null,null,null,"BSCR Schedules "]
["Sch II","Investments",null,"Corp. Bonds - BSCR Rate 0",{"$f":"'Schedule II'!D12","v":0},null,{"$f":"'Schedule II'!F12","v":0},null,null,null,null,null,{"$f":"'Schedule II (EBS)'!D12","v":0},null,{"$f":"'Schedule II (EBS)'!F12","v":0}]
["Sch II","Investments",null,"Corp. Bonds - BSCR Rate 1",{"$f":"'Schedule II'!D13","v":0},null,{"$f":"'Schedule II'!F13","v":0},null,null,null,null,null,{"$f":"'Schedule II (EBS)'!D13","v":0},null,{"$f":"'Schedule II (EBS)'!F13","v":0}]
["Sch II","Investments",null,"Corp. Bonds - BSCR Rate 2",{"$f":"'Schedule II'!D14","v":0},null,{"$f":"'Schedule II'!F14","v":0},null,null,null,null,null,{"$f":"'Schedule II (EBS)'!D14","v":0},null,{"$f":"'Schedule II (EBS)'!F14","v":0}]
["Sch II","Investments",null,"Corp. Bonds - BSCR Rate 3",{"$f":"'Schedule II'!D15","v":0},null,{"$f":"'Schedule II'!F15","v":0},null,null,null,null,null,{"$f":"'Schedule II (EBS)'!D15","v":0},null,{"$f":"'Schedule II (EBS)'!F15","v":0}]
["Sch II","Investments",null,"Corp. Bonds - BSCR Rate 4",{"$f":"'Schedule II'!D16","v":0},null,{"$f":"'Schedule II'!F16","v":0},null,null,null,null,null,{"$f":"'Schedule II (EBS)'!D16","v":0},null,{"$f":"'Schedule II (EBS)'!F16","v":0}]
["Sch II","Investments",null,"Corp. Bonds - BSCR Rate 5",{"$f":"'Schedule II'!D17","v":0},null,{"$f":"'Schedule II'!F17","v":0},null,null,null,null,null,{"$f":"'Schedule II (EBS)'!D17","v":0},null,{"$f":"'Schedule II (EBS)'!F17","v":0}]
["Sch II","Investments",null,"Corp. Bonds - BSCR Rate 6",{"$f":"'Schedule II'!D18","v":0},null,{"$f":"'Schedule II'!F18","v":0},null,null,null,null,null,{"$f":"'Schedule II (EBS)'!D18","v":0},null,{"$f":"'Schedule II (EBS)'!F18","v":0}]
["Sch II","Investments",null,"Corp. Bonds - BSCR Rate 7",{"$f":"'Schedule II'!D19","v":0},null,{"$f":"'Schedule II'!F19","v":0},null,null,null,null,null,{"$f":"'Schedule II (EBS)'!D19","v":0},null,{"$f":"'Schedule II (EBS)'!F19","v":0}]
["Sch II","Investments",null,"Corp. Bonds - BSCR Rate 8",{"$f":"'Schedule II'!D20","v":0},null,{"$f":"'Schedule II'!F20","v":0},null,null,null,null,null,{"$f":"'Schedule II (EBS)'!D20","v":0},null,{"$f":"'Schedule II (EBS)'!F20","v":0}]
["Sch II","Investments",null,"Residential MBS - BSCR Rate 1",{"$f":"'Schedule II'!H13","v":0},null,{"$f":"'Schedule II'!J13","v":0},null,null,null,null,null,{"$f":"'Schedule II (EBS)'!H13","v":0},null,{"$f":"'Schedule II (EBS)'!J13","v":0}]
["Sch II","Investments",null,"Residential MBS - BSCR Rate 2",{"$f":"'Schedule II'!H14","v":0},null,{"$f":"'Schedule II'!J14","v":0},null,null,null,null,null,{"$f":"'Schedule II (EBS)'!H14","v":0},null,{"$f":"'Schedule II (EBS)'!J14","v":0}]
["Sch II","Investments",null,"Residential MBS - BSCR Rate 3",{"$f":"'Schedule II'!H15","v":0},null,{"$f":"'Schedule II'!J15","v":0},null,null,null,null,null,{"$f":"'Schedule II (EBS)'!H15","v":0},null,{"$f":"'Schedule II (EBS)'!J15","v":0}]
["Sch II","Investments",null,"Residential MBS - BSCR Rate 4",{"$f":"'Schedule II'!H16","v":0},null,{"$f":"'Schedule II'!J16","v":0},null,null,null,null,null,{"$f":"'Schedule II (EBS)'!H16","v":0},null,{"$f":"'Schedule II (EBS)'!J16","v":0}]
["Sch II","Investments",null,"Residential MBS - BSCR Rate 5",{"$f":"'Schedule II'!H17","v":0},null,{"$f":"'Schedule II'!J17","v":0},null,null,null,null,null,{"$f":"'Schedule II (EBS)'!H17","v":0},null,{"$f":"'Schedule II (EBS)'!J17","v":0}]
["Sch II","Investments",null,"Residential MBS - BSCR Rate 6",{"$f":"'Schedule II'!H18","v":0},null,{"$f":"'Schedule II'!J18","v":0},null,null,null,null,null,{"$f":"'Schedule II (EBS)'!H18","v":0},null,{"$f":"'Schedule II (EBS)'!J18","v":0}]
["Sch II","Investments",null,"Residential MBS - BSCR Rate 7",{"$f":"'Schedule II'!H19","v":0},null,{"$f":"'Schedule II'!J19","v":0},null,null,null,null,null,{"$f":"'Schedule II (EBS)'!H19","v":0},null,{"$f":"'Schedule II (EBS)'!J19","v":0}]
["Sch II","Investments",null,"Residential MBS - BSCR Rate 8",{"$f":"'Schedule II'!H20","v":0},null,{"$f":"'Schedule II'!J20","v":0},null,null,null,null,null,{"$f":"'Schedule II (EBS)'!H20","v":0},null,{"$f":"'Schedule II (EBS)'!J20","v":0}]
["Sch II","Investments",null,"Commercial MBS - BSCR Rate 1",{"$f":"'Schedule II'!L13","v":0},null,{"$f":"'Schedule II'!N13","v":0},null,null,null,null,null,{"$f":"'Schedule II (EBS)'!L13","v":0},null,{"$f":"'Schedule II (EBS)'!N13","v":0}]
["Sch II","Investments",null,"Commercial MBS - BSCR Rate 2",{"$f":"'Schedule II'!L14","v":0},null,{"$f":"'Schedule II'!N14","v":0},null,null,null,null,null,{"$f":"'Schedule II (EBS)'!L14","v":0},null,{"$f":"'Schedule II (EBS)'!N14","v":0}]
["Sch II","Investments",null,"Commercial MBS - BSCR Rate 3",{"$f":"'Schedule II'!L15","v":0},null,{"$f":"'Schedule II'!N15","v":0},null,null,null,null,null,{"$f":"'Schedule II (EBS)'!L15","v":0},null,{"$f":"'Schedule II (EBS)'!N15","v":0}]
["Sch II","Investments",null,"Commercial MBS - BSCR Rate 4",{"$f":"'Schedule II'!L16","v":0},null,{"$f":"'Schedule II'!N16","v":0},null,null,null,null,null,{"$f":"'Schedule II (EBS)'!L16","v":0},null,{"$f":"'Schedule II (EBS)'!N16","v":0}]
["Sch II","Investments",null,"Commercial MBS - BSCR Rate 5",{"$f":"'Schedule II'!L17","v":0},null,{"$f":"'Schedule II'!N17","v":0},null,null,null,null,null,{"$f":"'Schedule II (EBS)'!L17","v":0},null,{"$f":"'Schedule II (EBS)'!N17","v":0}]
["Sch II","Investments",null,"Commercial MBS - BSCR Rate 6",{"$f":"'Schedule II'!L18","v":0},null,{"$f":"'Schedule II'!N18","v":0},null,null,null,null,null,{"$f":"'Schedule II (EBS)'!L18","v":0},null,{"$f":"'Schedule II (EBS)'!N18","v":0}]
["Sch II","Investments",null,"Commercial MBS - BSCR Rate 7",{"$f":"'Schedule II'!L19","v":0},null,{"$f":"'Schedule II'!N19","v":0},null,null,null,null,null,{"$f":"'Schedule II (EBS)'!L19","v":0},null,{"$f":"'Schedule II (EBS)'!N19","v":0}]
["Sch II","Investments",null,"Commercial MBS - BSCR Rate 8",{"$f":"'Schedule II'!L20","v":0},null,{"$f":"'Schedule II'!N20","v":0},null,null,null,null,null,{"$f":"'Schedule II (EBS)'!L20","v":0},null,{"$f":"'Schedule II (EBS)'!N20","v":0}]
["Sch II","Investments",null,"Bonds Mutual Fund - BSCR Rate 0",{"$f":"'Schedule II'!P12","v":0},null,{"$f":"'Schedule II'!R12","v":0},null,null,null,null,null,{"$f":"'Schedule II (EBS)'!P12","v":0},null,{"$f":"'Schedule II (EBS)'!R12","v":0}]
["Sch II","Investments",null,"Bonds Mutual Fund - BSCR Rate 1",{"$f":"'Schedule II'!P13","v":0},null,{"$f":"'Schedule II'!R13","v":0},null,null,null,null,null,{"$f":"'Schedule II (EBS)'!P13","v":0},null,{"$f":"'Schedule II (EBS)'!R13","v":0}]
["Sch II","Investments",null,"Bonds Mutual Fund - BSCR Rate 2",{"$f":"'Schedule II'!P14","v":0},null,{"$f":"'Schedule II'!R14","v":0},null,null,null,null,null,{"$f":"'Schedule II (EBS)'!P14","v":0},null,{"$f":"'Schedule II (EBS)'!R14","v":0}]
["Sch II","Investments",null,"Bonds Mutual Fund - BSCR Rate 3",{"$f":"'Schedule II'!P15","v":0},null,{"$f":"'Schedule II'!R15","v":0},null,null,null,null,null,{"$f":"'Schedule II (EBS)'!P15","v":0},null,{"$f":"'Schedule II (EBS)'!R15","v":0}]
["Sch II","Investments",null,"Bonds Mutual Fund - BSCR Rate 4",{"$f":"'Schedule II'!P16","v":0},null,{"$f":"'Schedule II'!R16","v":0},null,null,null,null,null,{"$f":"'Schedule II (EBS)'!P16","v":0},null,{"$f":"'Schedule II (EBS)'!R16","v":0}]
["Sch II","Investments",null,"Bonds Mutual Fund - BSCR Rate 5",{"$f":"'Schedule II'!P17","v":0},null,{"$f":"'Schedule II'!R17","v":0},null,null,null,null,null,{"$f":"'Schedule II (EBS)'!P17","v":0},null,{"$f":"'Schedule II (EBS)'!R17","v":0}]
["Sch II","Investments",null,"Bonds Mutual Fund - BSCR Rate 6",{"$f":"'Schedule II'!P18","v":0},null,{"$f":"'Schedule II'!R18","v":0},null,null,null,null,null,{"$f":"'Schedule II (EBS)'!P18","v":0},null,{"$f":"'Schedule II (EBS)'!R18","v":0}]
["Sch II","Investments",null,"Bonds Mutual Fund - BSCR Rate 7",{"$f":"'Schedule II'!P19","v":0},null,{"$f":"'Schedule II'!R19","v":0},null,null,null,null,null,{"$f":"'Schedule II (EBS)'!P19","v":0},null,{"$f":"'Schedule II (EBS)'!R19","v":0}]
["Sch II","Investments",null,"Bonds Mutual Fund - BSCR Rate 8",{"$f":"'Schedule II'!P20","v":0},null,{"$f":"'Schedule II'!R20","v":0},null,null,null,null,null,{"$f":"'Schedule II (EBS)'!P20","v":0},null,{"$f":"'Schedule II (EBS)'!R20","v":0}]
["Sch II","Investments",null,"Common Shares - Quoted",{"$f":"'Schedule II'!D41","v":0},null,{"$f":"'Schedule II'!F41","v":0},null,null,null,null,null,{"$f":"'Schedule II (EBS)'!D41","v":0},null,{"$f":"'Schedule II (EBS)'!F41","v":0}]
["Sch II","Investments",null,"Common Shares - Unquoted",{"$f":"'Schedule II'!D42","v":0},null,{"$f":"'Schedule II'!F42","v":0},null,null,null,null,null,{"$f":"'Schedule II (EBS)'!D42","v":0},null,{"$f":"'Schedule II (EBS)'!F42","v":0}]
["Sch II","Investments",null,"Preferred Shares - BSCR Rate 1",{"$f":"'Schedule II'!H33","v":0},null,{"$f":"'Schedule II'!J33","v":0},null,null,null,null,null,{"$f":"'Schedule II (EBS)'!H33","v":0},null,{"$f":"'Schedule II (EBS)'!J33","v":0}]
["Sch II","Investments",null,"Preferred Shares - BSCR Rate 2",{"$f":"'Schedule II'!H34","v":0},null,{"$f":"'Schedule II'!J34","v":0},null,null,null,null,null,{"$f":"'Schedule II (EBS)'!H34","v":0},null,{"$f":"'Schedule II (EBS)'!J34","v":0}]
["Sch II","Investments",null,"Preferred Shares - BSCR Rate 3",{"$f":"'Schedule II'!H35","v":0},null,{"$f":"'Schedule II'!J35","v":0},null,null,null,null,null,{"$f":"'Schedule II (EBS)'!H35","v":0},null,{"$f":"'Schedule II (EBS)'!J35","v":0}]
["Sch II","Investments",null,"Preferred Shares - BSCR Rate 4",{"$f":"'Schedule II'!H36","v":0},null,{"$f":"'Schedule II'!J36","v":0},null,null,null,null,null,{"$f":"'Schedule II (EBS)'!H36","v":0},null,{"$f":"'Schedule II (EBS)'!J36","v":0}]
["Sch II","Investments",null,"Preferred Shares - BSCR Rate 5",{"$f":"'Schedule II'!H37","v":0},null,{"$f":"'Schedule II'!J37","v":0},null,null,null,null,null,{"$f":"'Schedule II (EBS)'!H37","v":0},null,{"$f":"'Schedule II (EBS)'!J37","v":0}]
["Sch II","Investments",null,"Preferred Shares - BSCR Rate 6",{"$f":"'Schedule II'!H38","v":0},null,{"$f":"'Schedule II'!J38","v":0},null,null,null,null,null,{"$f":"'Schedule II (EBS)'!H38","v":0},null,{"$f":"'Schedule II (EBS)'!J38","v":0}]
["Sch II","Investments",null,"Preferred Shares - BSCR Rate 7",{"$f":"'Schedule II'!H39","v":0},null,{"$f":"'Schedule II'!J39","v":0},null,null,null,null,null,{"$f":"'Schedule II (EBS)'!H39","v":0},null,{"$f":"'Schedule II (EBS)'!J39","v":0}]
["Sch II","Investments",null,"Preferred Shares - BSCR Rate 8",{"$f":"'Schedule II'!H40","v":0},null,{"$f":"'Schedule II'!J40","v":0},null,null,null,null,null,{"$f":"'Schedule II (EBS)'!H40","v":0},null,{"$f":"'Schedule II (EBS)'!J40","v":0}]
["Sch II","Investments",null,"Equity Mutual Funds -  Quoted",{"$f":"'Schedule II'!L41","v":0},null,{"$f":"'Schedule II'!N41","v":0},null,null,null,null,null,{"$f":"'Schedule II (EBS)'!L41","v":0},null,{"$f":"'Schedule II (EBS)'!N41","v":0}]
["Sch II","Investments",null,"Equity Mutual Funds -  Unquoted",{"$f":"'Schedule II'!L42","v":0},null,{"$f":"'Schedule II'!N42","v":0},null,null,null,null,null,{"$f":"'Schedule II (EBS)'!L42","v":0},null,{"$f":"'Schedule II (EBS)'!N42","v":0}]
["Sch II","Investments",null,"Mortgage Loans - Insured",{"$f":"'Schedule II'!D57","v":0},null,{"$f":"'Schedule II'!F57","v":0},null,null,null,null,null,{"$f":"'Schedule II (EBS)'!D57","v":0},null,{"$f":"'Schedule II (EBS)'!F57","v":0}]
["Sch II","Investments",null,"Mortgage Loans - Other Commercial",{"$f":"'Schedule II'!D58","v":0},null,{"$f":"'Schedule II'!F58","v":0},null,null,null,null,null,{"$f":"'Schedule II (EBS)'!D58","v":0},null,{"$f":"'Schedule II (EBS)'!F58","v":0}]
["Sch II","Investments",null,"Mortgage Loans - Other Residential",{"$f":"'Schedule II'!D59","v":0},null,{"$f":"'Schedule II'!F59","v":0},null,null,null,null,null,{"$f":"'Schedule II (EBS)'!D59","v":0},null,{"$f":"'Schedule II (EBS)'!F59","v":0}]
["Sch II","Investments",null,"Mortgage Loans - Not Good Stand.",{"$f":"'Schedule II'!D60","v":0},null,{"$f":"'Schedule II'!F60","v":0},null,null,null,null,null,{"$f":"'Schedule II (EBS)'!D60","v":0},null,{"$f":"'Schedule II (EBS)'!F60","v":0}]
["Sch II","Investments",null,"NAIC Resid. MBS - Orig. Class 1",{"$f":"'Schedule II'!L55","v":0},null,null,null,null,null,null,null,{"$f":"'Schedule II (EBS)'!L55","v":0}]
["Sch II","Investments",null,"NAIC Resid. MBS - Orig. Class 2",{"$f":"'Schedule II'!L56","v":0},null,null,null,null,null,null,null,{"$f":"'Schedule II (EBS)'!L56","v":0}]
["Sch II","Investments",null,"NAIC Resid. MBS - Orig. Class 3",{"$f":"'Schedule II'!L57","v":0},null,null,null,null,null,null,null,{"$f":"'Schedule II (EBS)'!L57","v":0}]
["Sch II","Investments",null,"NAIC Resid. MBS - Orig. Class 4",{"$f":"'Schedule II'!L58","v":0},null,null,null,null,null,null,null,{"$f":"'Schedule II (EBS)'!L58","v":0}]
["Sch II","Investments",null,"NAIC Resid. MBS - Orig. Class 5",{"$f":"'Schedule II'!L59","v":0},null,null,null,null,null,null,null,{"$f":"'Schedule II (EBS)'!L59","v":0}]
["Sch II","Investments",null,"NAIC Resid. MBS - Orig. Class 6",{"$f":"'Schedule II'!L60","v":0},null,null,null,null,null,null,null,{"$f":"'Schedule II (EBS)'!L60","v":0}]
["Sch II","Investments",null,"NAIC Resid. MBS - Orig. Total",{"$f":"'Schedule II'!L62","v":0},null,null,null,null,null,null,null,{"$f":"'Schedule II (EBS)'!L62","v":0}]
["Sch II","Investments",null,"NAIC Resid. MBS - Rev. Class 1",{"$f":"'Schedule II'!N55","v":0},null,null,null,null,null,null,null,{"$f":"'Schedule II (EBS)'!N55","v":0}]
["Sch II","Investments",null,"NAIC Resid. MBS - Rev. Class 2",{"$f":"'Schedule II'!N56","v":0},null,null,null,null,null,null,null,{"$f":"'Schedule II (EBS)'!N56","v":0}]
["Sch II","Investments",null,"NAIC Resid. MBS - Rev. Class 3",{"$f":"'Schedule II'!N57","v":0},null,null,null,null,null,null,null,{"$f":"'Schedule II (EBS)'!N57","v":0}]
["Sch II","Investments",null,"NAIC Resid. MBS - Rev. Class 4",{"$f":"'Schedule II'!N58","v":0},null,null,null,null,null,null,null,{"$f":"'Schedule II (EBS)'!N58","v":0}]
["Sch II","Investments",null,"NAIC Resid. MBS - Rev. Class 5",{"$f":"'Schedule II'!N59","v":0},null,null,null,null,null,null,null,{"$f":"'Schedule II (EBS)'!N59","v":0}]
["Sch II","Investments",null,"NAIC Resid. MBS - Rev. Class 6",{"$f":"'Schedule II'!N60","v":0},null,null,null,null,null,null,null,{"$f":"'Schedule II (EBS)'!N60","v":0}]
["Sch II","Investments",null,"NAIC Resid. MBS - Rev. Total",{"$f":"'Schedule II'!N62","v":0},null,null,null,null,null,null,null,{"$f":"'Schedule II (EBS)'!N62","v":0}]
["Sch II","Investments",null,"NAIC Comm. MBS - Orig. Class 1",{"$f":"'Schedule II'!P55","v":0},null,null,null,null,null,null,null,{"$f":"'Schedule II (EBS)'!P55","v":0}]
["Sch II","Investments",null,"NAIC Comm. MBS - Orig. Class 2",{"$f":"'Schedule II'!P56","v":0},null,null,null,null,null,null,null,{"$f":"'Schedule II (EBS)'!P56","v":0}]
["Sch II","Investments",null,"NAIC Comm. MBS - Orig. Class 3",{"$f":"'Schedule II'!P57","v":0},null,null,null,null,null,null,null,{"$f":"'Schedule II (EBS)'!P57","v":0}]
["Sch II","Investments",null,"NAIC Comm. MBS - Orig. Class 4",{"$f":"'Schedule II'!P58","v":0},null,null,null,null,null,null,null,{"$f":"'Schedule II (EBS)'!P58","v":0}]
["Sch II","Investments",null,"NAIC Comm. MBS - Orig. Class 5",{"$f":"'Schedule II'!P59","v":0},null,null,null,null,null,null,null,{"$f":"'Schedule II (EBS)'!P59","v":0}]
["Sch II","Investments",null,"NAIC Comm. MBS - Orig. Class 6",{"$f":"'Schedule II'!P60","v":0},null,null,null,null,null,null,null,{"$f":"'Schedule II (EBS)'!P60","v":0}]
["Sch II","Investments",null,"NAIC Comm. MBS - Orig. Total",{"$f":"'Schedule II'!P62","v":0},null,null,null,null,null,null,null,{"$f":"'Schedule II (EBS)'!P62","v":0}]
["Sch II","Investments",null,"NAIC Comm. MBS - Rev. Class 1",{"$f":"'Schedule II'!R55","v":0},null,null,null,null,null,null,null,{"$f":"'Schedule II (EBS)'!R55","v":0}]
["Sch II","Investments",null,"NAIC Comm. MBS - Rev. Class 2",{"$f":"'Schedule II'!R56","v":0},null,null,null,null,null,null,null,{"$f":"'Schedule II (EBS)'!R56","v":0}]
["Sch II","Investments",null,"NAIC Comm. MBS - Rev. Class 3",{"$f":"'Schedule II'!R57","v":0},null,null,null,null,null,null,null,{"$f":"'Schedule II (EBS)'!R57","v":0}]
["Sch II","Investments",null,"NAIC Comm. MBS - Rev. Class 4",{"$f":"'Schedule II'!R58","v":0},null,null,null,null,null,null,null,{"$f":"'Schedule II (EBS)'!R58","v":0}]
["Sch II","Investments",null,"NAIC Comm. MBS - Rev. Class 5",{"$f":"'Schedule II'!R59","v":0},null,null,null,null,null,null,null,{"$f":"'Schedule II (EBS)'!R59","v":0}]
["Sch II","Investments",null,"NAIC Comm. MBS - Rev. Class 6",{"$f":"'Schedule II'!R60","v":0},null,null,null,null,null,null,null,{"$f":"'Schedule II (EBS)'!R60","v":0}]
["Sch II","Investments",null,"NAIC Comm. MBS - Rev. Total",{"$f":"'Schedule II'!R62","v":0},null,null,null,null,null,null,null,{"$f":"'Schedule II (EBS)'!R62","v":0}]
[]
["Sch IIA","Funds Held",null,"Corp. Bonds - BSCR Rate 0",{"$f":"'Schedule IIA'!D12","v":0},null,{"$f":"'Schedule IIA'!F12","v":0},null,null,null,null,null,{"$f":"'Schedule IIA (EBS)'!D12","v":0},null,{"$f":"'Schedule IIA (EBS)'!F12","v":0}]
["Sch IIA","Funds Held",null,"Corp. Bonds - BSCR Rate 1",{"$f":"'Schedule IIA'!D13","v":0},null,{"$f":"'Schedule IIA'!F13","v":0},null,null,null,null,null,{"$f":"'Schedule IIA (EBS)'!D13","v":0},null,{"$f":"'Schedule IIA (EBS)'!F13","v":0}]
["Sch IIA","Funds Held",null,"Corp. Bonds - BSCR Rate 2",{"$f":"'Schedule IIA'!D14","v":0},null,{"$f":"'Schedule IIA'!F14","v":0},null,null,null,null,null,{"$f":"'Schedule IIA (EBS)'!D14","v":0},null,{"$f":"'Schedule IIA (EBS)'!F14","v":0}]
["Sch IIA","Funds Held",null,"Corp. Bonds - BSCR Rate 3",{"$f":"'Schedule IIA'!D15","v":0},null,{"$f":"'Schedule IIA'!F15","v":0},null,null,null,null,null,{"$f":"'Schedule IIA (EBS)'!D15","v":0},null,{"$f":"'Schedule IIA (EBS)'!F15","v":0}]
["Sch IIA","Funds Held",null,"Corp. Bonds - BSCR Rate 4",{"$f":"'Schedule IIA'!D16","v":0},null,{"$f":"'Schedule IIA'!F16","v":0},null,null,null,null,null,{"$f":"'Schedule IIA (EBS)'!D16","v":0},null,{"$f":"'Schedule IIA (EBS)'!F16","v":0}]
["Sch IIA","Funds Held",null,"Corp. Bonds - BSCR Rate 5",{"$f":"'Schedule IIA'!D17","v":0},null,{"$f":"'Schedule IIA'!F17","v":0},null,null,null,null,null,{"$f":"'Schedule IIA (EBS)'!D17","v":0},null,{"$f":"'Schedule IIA (EBS)'!F17","v":0}]
["Sch IIA","Funds Held",null,"Corp. Bonds - BSCR Rate 6",{"$f":"'Schedule IIA'!D18","v":0},null,{"$f":"'Schedule IIA'!F18","v":0},null,null,null,null,null,{"$f":"'Schedule IIA (EBS)'!D18","v":0},null,{"$f":"'Schedule IIA (EBS)'!F18","v":0}]
["Sch IIA","Funds Held",null,"Corp. Bonds - BSCR Rate 7",{"$f":"'Schedule IIA'!D19","v":0},null,{"$f":"'Schedule IIA'!F19","v":0},null,null,null,null,null,{"$f":"'Schedule IIA (EBS)'!D19","v":0},null,{"$f":"'Schedule IIA (EBS)'!F19","v":0}]
["Sch IIA","Funds Held",null,"Corp. Bonds - BSCR Rate 8",{"$f":"'Schedule IIA'!D20","v":0},null,{"$f":"'Schedule IIA'!F20","v":0},null,null,null,null,null,{"$f":"'Schedule IIA (EBS)'!D20","v":0},null,{"$f":"'Schedule IIA (EBS)'!F20","v":0}]
["Sch IIA","Funds Held",null,"Residential MBS - BSCR Rate 1",{"$f":"'Schedule IIA'!H13","v":0},null,{"$f":"'Schedule IIA'!J13","v":0},null,null,null,null,null,{"$f":"'Schedule IIA (EBS)'!H13","v":0},null,{"$f":"'Schedule IIA (EBS)'!J13","v":0}]
["Sch IIA","Funds Held",null,"Residential MBS - BSCR Rate 2",{"$f":"'Schedule IIA'!H14","v":0},null,{"$f":"'Schedule IIA'!J14","v":0},null,null,null,null,null,{"$f":"'Schedule IIA (EBS)'!H14","v":0},null,{"$f":"'Schedule IIA (EBS)'!J14","v":0}]
["Sch IIA","Funds Held",null,"Residential MBS - BSCR Rate 3",{"$f":"'Schedule IIA'!H15","v":0},null,{"$f":"'Schedule IIA'!J15","v":0},null,null,null,null,null,{"$f":"'Schedule IIA (EBS)'!H15","v":0},null,{"$f":"'Schedule IIA (EBS)'!J15","v":0}]
["Sch IIA","Funds Held",null,"Residential MBS - BSCR Rate 4",{"$f":"'Schedule IIA'!H16","v":0},null,{"$f":"'Schedule IIA'!J16","v":0},null,null,null,null,null,{"$f":"'Schedule IIA (EBS)'!H16","v":0},null,{"$f":"'Schedule IIA (EBS)'!J16","v":0}]
["Sch IIA","Funds Held",null,"Residential MBS - BSCR Rate 5",{"$f":"'Schedule IIA'!H17","v":0},null,{"$f":"'Schedule IIA'!J17","v":0},null,null,null,null,null,{"$f":"'Schedule IIA (EBS)'!H17","v":0},null,{"$f":"'Schedule IIA (EBS)'!J17","v":0}]
["Sch IIA","Funds Held",null,"Residential MBS - BSCR Rate 6",{"$f":"'Schedule IIA'!H18","v":0},null,{"$f":"'Schedule IIA'!J18","v":0},null,null,null,null,null,{"$f":"'Schedule IIA (EBS)'!H18","v":0},null,{"$f":"'Schedule IIA (EBS)'!J18","v":0}]
["Sch IIA","Funds Held",null,"Residential MBS - BSCR Rate 7",{"$f":"'Schedule IIA'!H19","v":0},null,{"$f":"'Schedule IIA'!J19","v":0},null,null,null,null,null,{"$f":"'Schedule IIA (EBS)'!H19","v":0},null,{"$f":"'Schedule IIA (EBS)'!J19","v":0}]
["Sch IIA","Funds Held",null,"Residential MBS - BSCR Rate 8",{"$f":"'Schedule IIA'!H20","v":0},null,{"$f":"'Schedule IIA'!J20","v":0},null,null,null,null,null,{"$f":"'Schedule IIA (EBS)'!H20","v":0},null,{"$f":"'Schedule IIA (EBS)'!J20","v":0}]
["Sch IIA","Funds Held",null,"Commercial MBS - BSCR Rate 1",{"$f":"'Schedule IIA'!L13","v":0},null,{"$f":"'Schedule IIA'!N13","v":0},null,null,null,null,null,{"$f":"'Schedule IIA (EBS)'!L13","v":0},null,{"$f":"'Schedule IIA (EBS)'!N13","v":0}]
["Sch IIA","Funds Held",null,"Commercial MBS - BSCR Rate 2",{"$f":"'Schedule IIA'!L14","v":0},null,{"$f":"'Schedule IIA'!N14","v":0},null,null,null,null,null,{"$f":"'Schedule IIA (EBS)'!L14","v":0},null,{"$f":"'Schedule IIA (EBS)'!N14","v":0}]
["Sch IIA","Funds Held",null,"Commercial MBS - BSCR Rate 3",{"$f":"'Schedule IIA'!L15","v":0},null,{"$f":"'Schedule IIA'!N15","v":0},null,null,null,null,null,{"$f":"'Schedule IIA (EBS)'!L15","v":0},null,{"$f":"'Schedule IIA (EBS)'!N15","v":0}]
["Sch IIA","Funds Held",null,"Commercial MBS - BSCR Rate 4",{"$f":"'Schedule IIA'!L16","v":0},null,{"$f":"'Schedule IIA'!N16","v":0},null,null,null,null,null,{"$f":"'Schedule IIA (EBS)'!L16","v":0},null,{"$f":"'Schedule IIA (EBS)'!N16","v":0}]
["Sch IIA","Funds Held",null,"Commercial MBS - BSCR Rate 5",{"$f":"'Schedule IIA'!L17","v":0},null,{"$f":"'Schedule IIA'!N17","v":0},null,null,null,null,null,{"$f":"'Schedule IIA (EBS)'!L17","v":0},null,{"$f":"'Schedule IIA (EBS)'!N17","v":0}]
["Sch IIA","Funds Held",null,"Commercial MBS - BSCR Rate 6",{"$f":"'Schedule IIA'!L18","v":0},null,{"$f":"'Schedule IIA'!N18","v":0},null,null,null,null,null,{"$f":"'Schedule IIA (EBS)'!L18","v":0},null,{"$f":"'Schedule IIA (EBS)'!N18","v":0}]
["Sch IIA","Funds Held",null,"Commercial MBS - BSCR Rate 7",{"$f":"'Schedule IIA'!L19","v":0},null,{"$f":"'Schedule IIA'!N19","v":0},null,null,null,null,null,{"$f":"'Schedule IIA (EBS)'!L19","v":0},null,{"$f":"'Schedule IIA (EBS)'!N19","v":0}]
["Sch IIA","Funds Held",null,"Commercial MBS - BSCR Rate 8",{"$f":"'Schedule IIA'!L20","v":0},null,{"$f":"'Schedule IIA'!N20","v":0},null,null,null,null,null,{"$f":"'Schedule IIA (EBS)'!L20","v":0},null,{"$f":"'Schedule IIA (EBS)'!N20","v":0}]
["Sch IIA","Funds Held",null,"Bonds Mutual Fund - BSCR Rate 0",{"$f":"'Schedule IIA'!P12","v":0},null,{"$f":"'Schedule IIA'!R12","v":0},null,null,null,null,null,{"$f":"'Schedule IIA (EBS)'!P12","v":0},null,{"$f":"'Schedule IIA (EBS)'!R12","v":0}]
["Sch IIA","Funds Held",null,"Bonds Mutual Fund - BSCR Rate 1",{"$f":"'Schedule IIA'!P13","v":0},null,{"$f":"'Schedule IIA'!R13","v":0},null,null,null,null,null,{"$f":"'Schedule IIA (EBS)'!P13","v":0},null,{"$f":"'Schedule IIA (EBS)'!R13","v":0}]
["Sch IIA","Funds Held",null,"Bonds Mutual Fund - BSCR Rate 2",{"$f":"'Schedule IIA'!P14","v":0},null,{"$f":"'Schedule IIA'!R14","v":0},null,null,null,null,null,{"$f":"'Schedule IIA (EBS)'!P14","v":0},null,{"$f":"'Schedule IIA (EBS)'!R14","v":0}]
["Sch IIA","Funds Held",null,"Bonds Mutual Fund - BSCR Rate 3",{"$f":"'Schedule IIA'!P15","v":0},null,{"$f":"'Schedule IIA'!R15","v":0},null,null,null,null,null,{"$f":"'Schedule IIA (EBS)'!P15","v":0},null,{"$f":"'Schedule IIA (EBS)'!R15","v":0}]
["Sch IIA","Funds Held",null,"Bonds Mutual Fund - BSCR Rate 4",{"$f":"'Schedule IIA'!P16","v":0},null,{"$f":"'Schedule IIA'!R16","v":0},null,null,null,null,null,{"$f":"'Schedule IIA (EBS)'!P16","v":0},null,{"$f":"'Schedule IIA (EBS)'!R16","v":0}]
["Sch IIA","Funds Held",null,"Bonds Mutual Fund - BSCR Rate 5",{"$f":"'Schedule IIA'!P17","v":0},null,{"$f":"'Schedule IIA'!R17","v":0},null,null,null,null,null,{"$f":"'Schedule IIA (EBS)'!P17","v":0},null,{"$f":"'Schedule IIA (EBS)'!R17","v":0}]
["Sch IIA","Funds Held",null,"Bonds Mutual Fund - BSCR Rate 6",{"$f":"'Schedule IIA'!P18","v":0},null,{"$f":"'Schedule IIA'!R18","v":0},null,null,null,null,null,{"$f":"'Schedule IIA (EBS)'!P18","v":0},null,{"$f":"'Schedule IIA (EBS)'!R18","v":0}]
["Sch IIA","Funds Held",null,"Bonds Mutual Fund - BSCR Rate 7",{"$f":"'Schedule IIA'!P19","v":0},null,{"$f":"'Schedule IIA'!R19","v":0},null,null,null,null,null,{"$f":"'Schedule IIA (EBS)'!P19","v":0},null,{"$f":"'Schedule IIA (EBS)'!R19","v":0}]
["Sch IIA","Funds Held",null,"Bonds Mutual Fund - BSCR Rate 8",{"$f":"'Schedule IIA'!P20","v":0},null,{"$f":"'Schedule IIA'!R20","v":0},null,null,null,null,null,{"$f":"'Schedule IIA (EBS)'!P20","v":0},null,{"$f":"'Schedule IIA (EBS)'!R20","v":0}]
["Sch IIA","Funds Held",null,"Common Shares - Quoted",{"$f":"'Schedule IIA'!D41","v":0},null,{"$f":"'Schedule IIA'!F41","v":0},null,null,null,null,null,{"$f":"'Schedule IIA (EBS)'!D41","v":0},null,{"$f":"'Schedule IIA (EBS)'!F41","v":0}]
["Sch IIA","Funds Held",null,"Common Shares - Unquoted",{"$f":"'Schedule IIA'!D42","v":0},null,{"$f":"'Schedule IIA'!F42","v":0},null,null,null,null,null,{"$f":"'Schedule IIA (EBS)'!D42","v":0},null,{"$f":"'Schedule IIA (EBS)'!F42","v":0}]
["Sch IIA","Funds Held",null,"Preferred Shares - BSCR Rate 1",{"$f":"'Schedule IIA'!H33","v":0},null,{"$f":"'Schedule IIA'!J33","v":0},null,null,null,null,null,{"$f":"'Schedule IIA (EBS)'!H33","v":0},null,{"$f":"'Schedule IIA (EBS)'!J33","v":0}]
["Sch IIA","Funds Held",null,"Preferred Shares - BSCR Rate 2",{"$f":"'Schedule IIA'!H34","v":0},null,{"$f":"'Schedule IIA'!J34","v":0},null,null,null,null,null,{"$f":"'Schedule IIA (EBS)'!H34","v":0},null,{"$f":"'Schedule IIA (EBS)'!J34","v":0}]
["Sch IIA","Funds Held",null,"Preferred Shares - BSCR Rate 3",{"$f":"'Schedule IIA'!H35","v":0},null,{"$f":"'Schedule IIA'!J35","v":0},null,null,null,null,null,{"$f":"'Schedule IIA (EBS)'!H35","v":0},null,{"$f":"'Schedule IIA (EBS)'!J35","v":0}]
["Sch IIA","Funds Held",null,"Preferred Shares - BSCR Rate 4",{"$f":"'Schedule IIA'!H36","v":0},null,{"$f":"'Schedule IIA'!J36","v":0},null,null,null,null,null,{"$f":"'Schedule IIA (EBS)'!H36","v":0},null,{"$f":"'Schedule IIA (EBS)'!J36","v":0}]
["Sch IIA","Funds Held",null,"Preferred Shares - BSCR Rate 5",{"$f":"'Schedule IIA'!H37","v":0},null,{"$f":"'Schedule IIA'!J37","v":0},null,null,null,null,null,{"$f":"'Schedule IIA (EBS)'!H37","v":0},null,{"$f":"'Schedule IIA (EBS)'!J37","v":0}]
["Sch IIA","Funds Held",null,"Preferred Shares - BSCR Rate 6",{"$f":"'Schedule IIA'!H38","v":0},null,{"$f":"'Schedule IIA'!J38","v":0},null,null,null,null,null,{"$f":"'Schedule IIA (EBS)'!H38","v":0},null,{"$f":"'Schedule IIA (EBS)'!J38","v":0}]
["Sch IIA","Funds Held",null,"Preferred Shares - BSCR Rate 7",{"$f":"'Schedule IIA'!H39","v":0},null,{"$f":"'Schedule IIA'!J39","v":0},null,null,null,null,null,{"$f":"'Schedule IIA (EBS)'!H39","v":0},null,{"$f":"'Schedule IIA (EBS)'!J39","v":0}]
["Sch IIA","Funds Held",null,"Preferred Shares - BSCR Rate 8",{"$f":"'Schedule IIA'!H40","v":0},null,{"$f":"'Schedule IIA'!J40","v":0},null,null,null,null,null,{"$f":"'Schedule IIA (EBS)'!H40","v":0},null,{"$f":"'Schedule IIA (EBS)'!J40","v":0}]
["Sch IIA","Funds Held",null,"Equity Mutual Funds -  Quoted",{"$f":"'Schedule IIA'!L41","v":0},null,{"$f":"'Schedule IIA'!N41","v":0},null,null,null,null,null,{"$f":"'Schedule IIA (EBS)'!L41","v":0},null,{"$f":"'Schedule IIA (EBS)'!N41","v":0}]
["Sch IIA","Funds Held",null,"Equity Mutual Funds -  Unquoted",{"$f":"'Schedule IIA'!L42","v":0},null,{"$f":"'Schedule IIA'!N42","v":0},null,null,null,null,null,{"$f":"'Schedule IIA (EBS)'!L42","v":0},null,{"$f":"'Schedule IIA (EBS)'!N42","v":0}]
["Sch IIA","Funds Held",null,"Other Investments -  Quoted",{"$f":"+'Schedule IIA'!P41","v":0},null,{"$f":"+'Schedule IIA'!R41","v":0},null,null,null,null,null,{"$f":"'Schedule IIA (EBS)'!P41","v":0},null,{"$f":"'Schedule IIA (EBS)'!R41","v":0}]
["Sch IIA","Funds Held",null,"Other Investments -  Unquoted",{"$f":"+'Schedule IIA'!P42","v":0},null,{"$f":"+'Schedule IIA'!R42","v":0},null,null,null,null,null,{"$f":"'Schedule IIA (EBS)'!P42","v":0},null,{"$f":"'Schedule IIA (EBS)'!R42","v":0}]
["Sch IIA","Funds Held",null,"Mortgage Loans - Insured",{"$f":"'Schedule IIA'!D57","v":0},null,{"$f":"'Schedule IIA'!F57","v":0},null,null,null,null,null,{"$f":"'Schedule IIA (EBS)'!D57","v":0},null,{"$f":"'Schedule IIA (EBS)'!F57","v":0}]
["Sch IIA","Funds Held",null,"Mortgage Loans - Other Commercial",{"$f":"'Schedule IIA'!D58","v":0},null,{"$f":"'Schedule IIA'!F58","v":0},null,null,null,null,null,{"$f":"'Schedule IIA (EBS)'!D58","v":0},null,{"$f":"'Schedule IIA (EBS)'!F58","v":0}]
["Sch IIA","Funds Held",null,"Mortgage Loans - Other Residential",{"$f":"'Schedule IIA'!D59","v":0},null,{"$f":"'Schedule IIA'!F59","v":0},null,null,null,null,null,{"$f":"'Schedule IIA (EBS)'!D59","v":0},null,{"$f":"'Schedule IIA (EBS)'!F59","v":0}]
["Sch IIA","Funds Held",null,"Mortgage Loans - Not Good Stand.",{"$f":"'Schedule IIA'!D60","v":0},null,{"$f":"'Schedule IIA'!F60","v":0},null,null,null,null,null,{"$f":"'Schedule IIA (EBS)'!D60","v":0},null,{"$f":"'Schedule IIA (EBS)'!F60","v":0}]
["Sch IIA","Funds Held",null,"Cash and Cash Equivalents",{"$f":"'Schedule IIA'!D68","v":0},null,{"$f":"'Schedule IIA'!F68","v":0},null,null,null,null,null,{"$f":"'Schedule IIA (EBS)'!D68","v":0},null,{"$f":"'Schedule IIA (EBS)'!F68","v":0}]
["Sch IIA","Funds Held",null,"NAIC Resid. MBS - Orig. Class 1",{"$f":"'Schedule IIA'!L55","v":0},null,null,null,null,null,null,null,{"$f":"'Schedule IIA (EBS)'!L55","v":0}]
["Sch IIA","Funds Held",null,"NAIC Resid. MBS - Orig. Class 2",{"$f":"'Schedule IIA'!L56","v":0},null,null,null,null,null,null,null,{"$f":"'Schedule IIA (EBS)'!L56","v":0}]
["Sch IIA","Funds Held",null,"NAIC Resid. MBS - Orig. Class 3",{"$f":"'Schedule IIA'!L57","v":0},null,null,null,null,null,null,null,{"$f":"'Schedule IIA (EBS)'!L57","v":0}]
["Sch IIA","Funds Held",null,"NAIC Resid. MBS - Orig. Class 4",{"$f":"'Schedule IIA'!L58","v":0},null,null,null,null,null,null,null,{"$f":"'Schedule IIA (EBS)'!L58","v":0}]
["Sch IIA","Funds Held",null,"NAIC Resid. MBS - Orig. Class 5",{"$f":"'Schedule IIA'!L59","v":0},null,null,null,null,null,null,null,{"$f":"'Schedule IIA (EBS)'!L59","v":0}]
["Sch IIA","Funds Held",null,"NAIC Resid. MBS - Orig. Class 6",{"$f":"'Schedule IIA'!L60","v":0},null,null,null,null,null,null,null,{"$f":"'Schedule IIA (EBS)'!L60","v":0}]
["Sch IIA","Funds Held",null,"NAIC Resid. MBS - Orig. Total",{"$f":"'Schedule IIA'!L62","v":0},null,null,null,null,null,null,null,{"$f":"'Schedule IIA (EBS)'!L62","v":0}]
["Sch IIA","Funds Held",null,"NAIC Resid. MBS - Rev. Class 1",{"$f":"'Schedule IIA'!N55","v":0},null,null,null,null,null,null,null,{"$f":"'Schedule IIA (EBS)'!N55","v":0}]
["Sch IIA","Funds Held",null,"NAIC Resid. MBS - Rev. Class 2",{"$f":"'Schedule IIA'!N56","v":0},null,null,null,null,null,null,null,{"$f":"'Schedule IIA (EBS)'!N56","v":0}]
["Sch IIA","Funds Held",null,"NAIC Resid. MBS - Rev. Class 3",{"$f":"'Schedule IIA'!N57","v":0},null,null,null,null,null,null,null,{"$f":"'Schedule IIA (EBS)'!N57","v":0}]
["Sch IIA","Funds Held",null,"NAIC Resid. MBS - Rev. Class 4",{"$f":"'Schedule IIA'!N58","v":0},null,null,null,null,null,null,null,{"$f":"'Schedule IIA (EBS)'!N58","v":0}]
["Sch IIA","Funds Held",null,"NAIC Resid. MBS - Rev. Class 5",{"$f":"'Schedule IIA'!N59","v":0},null,null,null,null,null,null,null,{"$f":"'Schedule IIA (EBS)'!N59","v":0}]
["Sch IIA","Funds Held",null,"NAIC Resid. MBS - Rev. Class 6",{"$f":"'Schedule IIA'!N60","v":0},null,null,null,null,null,null,null,{"$f":"'Schedule IIA (EBS)'!N60","v":0}]
["Sch IIA","Funds Held",null,"NAIC Resid. MBS - Rev. Total",{"$f":"'Schedule IIA'!N62","v":0},null,null,null,null,null,null,null,{"$f":"'Schedule IIA (EBS)'!N62","v":0}]
["Sch IIA","Funds Held",null,"NAIC Comm. MBS - Orig. Class 1",{"$f":"'Schedule IIA'!P55","v":0},null,null,null,null,null,null,null,{"$f":"'Schedule IIA (EBS)'!P55","v":0}]
["Sch IIA","Funds Held",null,"NAIC Comm. MBS - Orig. Class 2",{"$f":"'Schedule IIA'!P56","v":0},null,null,null,null,null,null,null,{"$f":"'Schedule IIA (EBS)'!P56","v":0}]
["Sch IIA","Funds Held",null,"NAIC Comm. MBS - Orig. Class 3",{"$f":"'Schedule IIA'!P57","v":0},null,null,null,null,null,null,null,{"$f":"'Schedule IIA (EBS)'!P57","v":0}]
["Sch IIA","Funds Held",null,"NAIC Comm. MBS - Orig. Class 4",{"$f":"'Schedule IIA'!P58","v":0},null,null,null,null,null,null,null,{"$f":"'Schedule IIA (EBS)'!P58","v":0}]
["Sch IIA","Funds Held",null,"NAIC Comm. MBS - Orig. Class 5",{"$f":"'Schedule IIA'!P59","v":0},null,null,null,null,null,null,null,{"$f":"'Schedule IIA (EBS)'!P59","v":0}]
["Sch IIA","Funds Held",null,"NAIC Comm. MBS - Orig. Class 6",{"$f":"'Schedule IIA'!P60","v":0},null,null,null,null,null,null,null,{"$f":"'Schedule IIA (EBS)'!P60","v":0}]
["Sch IIA","Funds Held",null,"NAIC Comm. MBS - Orig. Total",{"$f":"'Schedule IIA'!P62","v":0},null,null,null,null,null,null,null,{"$f":"'Schedule IIA (EBS)'!P62","v":0}]
["Sch IIA","Funds Held",null,"NAIC Comm. MBS - Rev. Class 1",{"$f":"'Schedule IIA'!R55","v":0},null,null,null,null,null,null,null,{"$f":"'Schedule IIA (EBS)'!R55","v":0}]
["Sch IIA","Funds Held",null,"NAIC Comm. MBS - Rev. Class 2",{"$f":"'Schedule IIA'!R56","v":0},null,null,null,null,null,null,null,{"$f":"'Schedule IIA (EBS)'!R56","v":0}]
["Sch IIA","Funds Held",null,"NAIC Comm. MBS - Rev. Class 3",{"$f":"'Schedule IIA'!R57","v":0},null,null,null,null,null,null,null,{"$f":"'Schedule IIA (EBS)'!R57","v":0}]
["Sch IIA","Funds Held",null,"NAIC Comm. MBS - Rev. Class 4",{"$f":"'Schedule IIA'!R58","v":0},null,null,null,null,null,null,null,{"$f":"'Schedule IIA (EBS)'!R58","v":0}]
["Sch IIA","Funds Held",null,"NAIC Comm. MBS - Rev. Class 5",{"$f":"'Schedule IIA'!R59","v":0},null,null,null,null,null,null,null,{"$f":"'Schedule IIA (EBS)'!R59","v":0}]
["Sch IIA","Funds Held",null,"NAIC Comm. MBS - Rev. Class 6",{"$f":"'Schedule IIA'!R60","v":0},null,null,null,null,null,null,null,{"$f":"'Schedule IIA (EBS)'!R60","v":0}]
["Sch IIA","Funds Held",null,"NAIC Comm. MBS - Rev. Total",{"$f":"'Schedule IIA'!R62","v":0},null,null,null,null,null,null,null,{"$f":"'Schedule IIA (EBS)'!R62","v":0}]
[]
["Sch III","Losses by Line",null,"Reserve - Property Catastrophe",{"$f":"'Schedule III'!E9","v":0},null,{"$f":"'Schedule III'!G9","v":0}]
["Sch III","Losses by Line",null,"Reserve - Property",{"$f":"'Schedule III'!E10","v":0},null,{"$f":"'Schedule III'!G10","v":0}]
["Sch III","Losses by Line",null,"Reserve - Property Non-Proportion",{"$f":"'Schedule III'!E11","v":0},null,{"$f":"'Schedule III'!G11","v":0}]
["Sch III","Losses by Line",null,"Reserve - Personal Accident",{"$f":"'Schedule III'!E12","v":0},null,{"$f":"'Schedule III'!G12","v":0}]
["Sch III","Losses by Line",null,"Reserve - Personal Acc. Non Prop.",{"$f":"'Schedule III'!E13","v":0},null,{"$f":"'Schedule III'!G13","v":0}]
["Sch III","Losses by Line",null,"Reserve - Aviation",{"$f":"'Schedule III'!E14","v":0},null,{"$f":"'Schedule III'!G14","v":0}]
["Sch III","Losses by Line",null,"Reserve - Aviation Non-Proportional",{"$f":"'Schedule III'!E15","v":0},null,{"$f":"'Schedule III'!G15","v":0}]
["Sch III","Losses by Line",null,"Reserve - Credit Surety",{"$f":"'Schedule III'!E16","v":0},null,{"$f":"'Schedule III'!G16","v":0}]
["Sch III","Losses by Line",null,"Reserve - Credit Surety Non-Prop.",{"$f":"'Schedule III'!E17","v":0},null,{"$f":"'Schedule III'!G17","v":0}]
["Sch III","Losses by Line",null,"Reserve - Energy",{"$f":"'Schedule III'!E18","v":0},null,{"$f":"'Schedule III'!G18","v":0}]
["Sch III","Losses by Line",null,"Reserve - Energy Non-Proportional",{"$f":"'Schedule III'!E19","v":0},null,{"$f":"'Schedule III'!G19","v":0}]
["Sch III","Losses by Line",null,"Reserve - US Casualty",{"$f":"'Schedule III'!E20","v":0},null,{"$f":"'Schedule III'!G20","v":0}]
["Sch III","Losses by Line",null,"Reserve - US Casualty Non-Prop.",{"$f":"'Schedule III'!E21","v":0},null,{"$f":"'Schedule III'!G21","v":0}]
["Sch III","Losses by Line",null,"Reserve - US Professional",{"$f":"'Schedule III'!E22","v":0},null,{"$f":"'Schedule III'!G22","v":0}]
["Sch III","Losses by Line",null,"Reserve - US Professional Non-Prop.",{"$f":"'Schedule III'!E23","v":0},null,{"$f":"'Schedule III'!G23","v":0}]
["Sch III","Losses by Line",null,"Reserve - US Specialty",{"$f":"'Schedule III'!E24","v":0},null,{"$f":"'Schedule III'!G24","v":0}]
["Sch III","Losses by Line",null,"Reserve - US Specialty Non-Prop.",{"$f":"'Schedule III'!E25","v":0},null,{"$f":"'Schedule III'!G25","v":0}]
["Sch III","Losses by Line",null,"Reserve - Int'l Motor",{"$f":"'Schedule III'!E26","v":0},null,{"$f":"'Schedule III'!G26","v":0}]
["Sch III","Losses by Line",null,"Reserve - Int'l Motor Non-Prop.",{"$f":"'Schedule III'!E27","v":0},null,{"$f":"'Schedule III'!G27","v":0}]
["Sch III","Losses by Line",null,"Reserve - Int'l Casualty",{"$f":"'Schedule III'!E28","v":0},null,{"$f":"'Schedule III'!G28","v":0}]
["Sch III","Losses by Line",null,"Reserve - Int'l Casualty Non-Prop.",{"$f":"'Schedule III'!E29","v":0},null,{"$f":"'Schedule III'!G29","v":0}]
["Sch III","Losses by Line",null,"Reserve - Retro Property",{"$f":"'Schedule III'!E30","v":0},null,{"$f":"'Schedule III'!G30","v":0}]
["Sch III","Losses by Line",null,"Reserve - Structured / Finite R/I",{"$f":"'Schedule III'!E31","v":0},null,{"$f":"'Schedule III'!G31","v":0}]
["Sch III","Losses by Line",null,"Reserve - Health",{"$f":"'Schedule III'!E32","v":0},null,{"$f":"'Schedule III'!G32","v":0}]
[]
["Sch III","Losses by Line",null,"Res. Gross - Property Catastrophe",null,null,null,null,null,null,null,null,{"$f":"'Schedule III (EBS)'!D10","v":0}]
["Sch III","Losses by Line",null,"Res. Gross - Property",null,null,null,null,null,null,null,null,{"$f":"'Schedule III (EBS)'!D11","v":0}]
["Sch III","Losses by Line",null,"Res. Gross - Property Non-Proportion",null,null,null,null,null,null,null,null,{"$f":"'Schedule III (EBS)'!D12","v":0}]
["Sch III","Losses by Line",null,"Res. Gross - Personal Accident",null,null,null,null,null,null,null,null,{"$f":"'Schedule III (EBS)'!D13","v":0}]
["Sch III","Losses by Line",null,"Res. Gross - Personal Acc. Non Prop.",null,null,null,null,null,null,null,null,{"$f":"'Schedule III (EBS)'!D14","v":0}]
["Sch III","Losses by Line",null,"Res. Gross - Aviation",null,null,null,null,null,null,null,null,{"$f":"'Schedule III (EBS)'!D15","v":0}]
["Sch III","Losses by Line",null,"Res. Gross - Aviation Non-Proportional",null,null,null,null,null,null,null,null,{"$f":"'Schedule III (EBS)'!D16","v":0}]
["Sch III","Losses by Line",null,"Res. Gross - Credit Surety",null,null,null,null,null,null,null,null,{"$f":"'Schedule III (EBS)'!D17","v":0}]
["Sch III","Losses by Line",null,"Res. Gross - Credit Surety Non-Prop.",null,null,null,null,null,null,null,null,{"$f":"'Schedule III (EBS)'!D18","v":0}]
["Sch III","Losses by Line",null,"Res. Gross - Energy",null,null,null,null,null,null,null,null,{"$f":"'Schedule III (EBS)'!D19","v":0}]
["Sch III","Losses by Line",null,"Res. Gross - Energy Non-Proportional",null,null,null,null,null,null,null,null,{"$f":"'Schedule III (EBS)'!D20","v":0}]
["Sch III","Losses by Line",null,"Res. Gross - US Casualty",null,null,null,null,null,null,null,null,{"$f":"'Schedule III (EBS)'!D21","v":0}]
["Sch III","Losses by Line",null,"Res. Gross - US Casualty Non-Prop.",null,null,null,null,null,null,null,null,{"$f":"'Schedule III (EBS)'!D22","v":0}]
["Sch III","Losses by Line",null,"Res. Gross - US Professional",null,null,null,null,null,null,null,null,{"$f":"'Schedule III (EBS)'!D23","v":0}]
["Sch III","Losses by Line",null,"Res. Gross - US Professional Non-Prop.",null,null,null,null,null,null,null,null,{"$f":"'Schedule III (EBS)'!D24","v":0}]
["Sch III","Losses by Line",null,"Res. Gross - US Specialty",null,null,null,null,null,null,null,null,{"$f":"'Schedule III (EBS)'!D25","v":0}]
["Sch III","Losses by Line",null,"Res. Gross - US Specialty Non-Prop.",null,null,null,null,null,null,null,null,{"$f":"'Schedule III (EBS)'!D26","v":0}]
["Sch III","Losses by Line",null,"Res. Gross - Int'l Motor",null,null,null,null,null,null,null,null,{"$f":"'Schedule III (EBS)'!D27","v":0}]
["Sch III","Losses by Line",null,"Res. Gross - Int'l Motor Non-Prop.",null,null,null,null,null,null,null,null,{"$f":"'Schedule III (EBS)'!D28","v":0}]
["Sch III","Losses by Line",null,"Res. Gross - Int'l Casualty",null,null,null,null,null,null,null,null,{"$f":"'Schedule III (EBS)'!D29","v":0}]
["Sch III","Losses by Line",null,"Res. Gross - Int'l Casualty Non-Prop.",null,null,null,null,null,null,null,null,{"$f":"'Schedule III (EBS)'!D30","v":0}]
["Sch III","Losses by Line",null,"Res. Gross - Retro Property",null,null,null,null,null,null,null,null,{"$f":"'Schedule III (EBS)'!D31","v":0}]
["Sch III","Losses by Line",null,"Res. Gross - Structured / Finite R/I",null,null,null,null,null,null,null,null,{"$f":"'Schedule III (EBS)'!D32","v":0}]
["Sch III","Losses by Line",null,"Res. Gross - Health",null,null,null,null,null,null,null,null,{"$f":"'Schedule III (EBS)'!D33","v":0}]
["Sch III","Losses by Line",null,"Res. Net - Property Catastrophe",null,null,null,null,null,null,null,null,{"$f":"'Schedule III (EBS)'!F10","v":0}]
["Sch III","Losses by Line",null,"Res. Net - Property",null,null,null,null,null,null,null,null,{"$f":"'Schedule III (EBS)'!F11","v":0}]
["Sch III","Losses by Line",null,"Res. Net - Property Non-Proportion",null,null,null,null,null,null,null,null,{"$f":"'Schedule III (EBS)'!F12","v":0}]
["Sch III","Losses by Line",null,"Res. Net - Personal Accident",null,null,null,null,null,null,null,null,{"$f":"'Schedule III (EBS)'!F13","v":0}]
["Sch III","Losses by Line",null,"Res. Net - Personal Acc. Non Prop.",null,null,null,null,null,null,null,null,{"$f":"'Schedule III (EBS)'!F14","v":0}]
["Sch III","Losses by Line",null,"Res. Net - Aviation",null,null,null,null,null,null,null,null,{"$f":"'Schedule III (EBS)'!F15","v":0}]
["Sch III","Losses by Line",null,"Res. Net - Aviation Non-Proportional",null,null,null,null,null,null,null,null,{"$f":"'Schedule III (EBS)'!F16","v":0}]
["Sch III","Losses by Line",null,"Res. Net - Credit Surety",null,null,null,null,null,null,null,null,{"$f":"'Schedule III (EBS)'!F17","v":0}]
["Sch III","Losses by Line",null,"Res. Net - Credit Surety Non-Prop.",null,null,null,null,null,null,null,null,{"$f":"'Schedule III (EBS)'!F18","v":0}]
["Sch III","Losses by Line",null,"Res. Net - Energy",null,null,null,null,null,null,null,null,{"$f":"'Schedule III (EBS)'!F19","v":0}]
["Sch III","Losses by Line",null,"Res. Net - Energy Non-Proportional",null,null,null,null,null,null,null,null,{"$f":"'Schedule III (EBS)'!F20","v":0}]
["Sch III","Losses by Line",null,"Res. Net - US Casualty",null,null,null,null,null,null,null,null,{"$f":"'Schedule III (EBS)'!F21","v":0}]
["Sch III","Losses by Line",null,"Res. Net - US Casualty Non-Prop.",null,null,null,null,null,null,null,null,{"$f":"'Schedule III (EBS)'!F22","v":0}]
["Sch III","Losses by Line",null,"Res. Net - US Professional",null,null,null,null,null,null,null,null,{"$f":"'Schedule III (EBS)'!F23","v":0}]
["Sch III","Losses by Line",null,"Res. Net - US Professional Non-Prop.",null,null,null,null,null,null,null,null,{"$f":"'Schedule III (EBS)'!F24","v":0}]
["Sch III","Losses by Line",null,"Res. Net - US Specialty",null,null,null,null,null,null,null,null,{"$f":"'Schedule III (EBS)'!F25","v":0}]
["Sch III","Losses by Line",null,"Res. Net - US Specialty Non-Prop.",null,null,null,null,null,null,null,null,{"$f":"'Schedule III (EBS)'!F26","v":0}]
["Sch III","Losses by Line",null,"Res. Net - Int'l Motor",null,null,null,null,null,null,null,null,{"$f":"'Schedule III (EBS)'!F27","v":0}]
["Sch III","Losses by Line",null,"Res. Net - Int'l Motor Non-Prop.",null,null,null,null,null,null,null,null,{"$f":"'Schedule III (EBS)'!F28","v":0}]
["Sch III","Losses by Line",null,"Res. Net - Int'l Casualty",null,null,null,null,null,null,null,null,{"$f":"'Schedule III (EBS)'!F29","v":0}]
["Sch III","Losses by Line",null,"Res. Net - Int'l Casualty Non-Prop.",null,null,null,null,null,null,null,null,{"$f":"'Schedule III (EBS)'!F30","v":0}]
["Sch III","Losses by Line",null,"Res. Net - Retro Property",null,null,null,null,null,null,null,null,{"$f":"'Schedule III (EBS)'!F31","v":0}]
["Sch III","Losses by Line",null,"Res. Net - Structured / Finite R/I",null,null,null,null,null,null,null,null,{"$f":"'Schedule III (EBS)'!F32","v":0}]
["Sch III","Losses by Line",null,"Res. Net - Health",null,null,null,null,null,null,null,null,{"$f":"'Schedule III (EBS)'!F33","v":0}]
["Sch III","Losses by Line",null,"Note 16di - Property Catastrophe",null,null,null,null,null,null,null,null,{"$f":"'Schedule III (EBS)'!J10","v":0}]
["Sch III","Losses by Line",null,"Note 16di - Property",null,null,null,null,null,null,null,null,{"$f":"'Schedule III (EBS)'!J11","v":0}]
["Sch III","Losses by Line",null,"Note 16di - Property Non-Proportion",null,null,null,null,null,null,null,null,{"$f":"'Schedule III (EBS)'!J12","v":0}]
["Sch III","Losses by Line",null,"Note 16di - Personal Accident",null,null,null,null,null,null,null,null,{"$f":"'Schedule III (EBS)'!J13","v":0}]
["Sch III","Losses by Line",null,"Note 16di - Personal Acc. Non Prop.",null,null,null,null,null,null,null,null,{"$f":"'Schedule III (EBS)'!J14","v":0}]
["Sch III","Losses by Line",null,"Note 16di - Aviation",null,null,null,null,null,null,null,null,{"$f":"'Schedule III (EBS)'!J15","v":0}]
["Sch III","Losses by Line",null,"Note 16di - Aviation Non-Proportional",null,null,null,null,null,null,null,null,{"$f":"'Schedule III (EBS)'!J16","v":0}]
["Sch III","Losses by Line",null,"Note 16di - Credit Surety",null,null,null,null,null,null,null,null,{"$f":"'Schedule III (EBS)'!J17","v":0}]
["Sch III","Losses by Line",null,"Note 16di - Credit Surety Non-Prop.",null,null,null,null,null,null,null,null,{"$f":"'Schedule III (EBS)'!J18","v":0}]
["Sch III","Losses by Line",null,"Note 16di - Energy",null,null,null,null,null,null,null,null,{"$f":"'Schedule III (EBS)'!J19","v":0}]
["Sch III","Losses by Line",null,"Note 16di - Energy Non-Proportional",null,null,null,null,null,null,null,null,{"$f":"'Schedule III (EBS)'!J20","v":0}]
["Sch III","Losses by Line",null,"Note 16di - US Casualty",null,null,null,null,null,null,null,null,{"$f":"'Schedule III (EBS)'!J21","v":0}]
["Sch III","Losses by Line",null,"Note 16di - US Casualty Non-Prop.",null,null,null,null,null,null,null,null,{"$f":"'Schedule III (EBS)'!J22","v":0}]
["Sch III","Losses by Line",null,"Note 16di - US Professional",null,null,null,null,null,null,null,null,{"$f":"'Schedule III (EBS)'!J23","v":0}]
["Sch III","Losses by Line",null,"Note 16di - US Professional Non-Prop.",null,null,null,null,null,null,null,null,{"$f":"'Schedule III (EBS)'!J24","v":0}]
["Sch III","Losses by Line",null,"Note 16di - US Specialty",null,null,null,null,null,null,null,null,{"$f":"'Schedule III (EBS)'!J25","v":0}]
["Sch III","Losses by Line",null,"Note 16di - US Specialty Non-Prop.",null,null,null,null,null,null,null,null,{"$f":"'Schedule III (EBS)'!J26","v":0}]
["Sch III","Losses by Line",null,"Note 16di - Int'l Motor",null,null,null,null,null,null,null,null,{"$f":"'Schedule III (EBS)'!J27","v":0}]
["Sch III","Losses by Line",null,"Note 16di - Int'l Motor Non-Prop.",null,null,null,null,null,null,null,null,{"$f":"'Schedule III (EBS)'!J28","v":0}]
["Sch III","Losses by Line",null,"Note 16di - Int'l Casualty",null,null,null,null,null,null,null,null,{"$f":"'Schedule III (EBS)'!J29","v":0}]
["Sch III","Losses by Line",null,"Note 16di - Int'l Casualty Non-Prop.",null,null,null,null,null,null,null,null,{"$f":"'Schedule III (EBS)'!J30","v":0}]
["Sch III","Losses by Line",null,"Note 16di - Retro Property",null,null,null,null,null,null,null,null,{"$f":"'Schedule III (EBS)'!J31","v":0}]
["Sch III","Losses by Line",null,"Note 16di - Structured / Finite R/I",null,null,null,null,null,null,null,null,{"$f":"'Schedule III (EBS)'!J32","v":0}]
["Sch III","Losses by Line",null,"Note 16di - Health",null,null,null,null,null,null,null,null,{"$f":"'Schedule III (EBS)'!J33","v":0}]
["Sch III","Losses by Line",null,"Note 16dii - Property Catastrophe",null,null,null,null,null,null,null,null,{"$f":"'Schedule III (EBS)'!K10","v":0}]
["Sch III","Losses by Line",null,"Note 16dii - Property",null,null,null,null,null,null,null,null,{"$f":"'Schedule III (EBS)'!K11","v":0}]
["Sch III","Losses by Line",null,"Note 16dii - Property Non-Proportion",null,null,null,null,null,null,null,null,{"$f":"'Schedule III (EBS)'!K12","v":0}]
["Sch III","Losses by Line",null,"Note 16dii - Personal Accident",null,null,null,null,null,null,null,null,{"$f":"'Schedule III (EBS)'!K13","v":0}]
["Sch III","Losses by Line",null,"Note 16dii - Personal Acc. Non Prop.",null,null,null,null,null,null,null,null,{"$f":"'Schedule III (EBS)'!K14","v":0}]
["Sch III","Losses by Line",null,"Note 16dii - Aviation",null,null,null,null,null,null,null,null,{"$f":"'Schedule III (EBS)'!K15","v":0}]
["Sch III","Losses by Line",null,"Note 16dii - Aviation Non-Proportional",null,null,null,null,null,null,null,null,{"$f":"'Schedule III (EBS)'!K16","v":0}]
["Sch III","Losses by Line",null,"Note 16dii - Credit Surety",null,null,null,null,null,null,null,null,{"$f":"'Schedule III (EBS)'!K17","v":0}]
["Sch III","Losses by Line",null,"Note 16dii - Credit Surety Non-Prop.",null,null,null,null,null,null,null,null,{"$f":"'Schedule III (EBS)'!K18","v":0}]
["Sch III","Losses by Line",null,"Note 16dii - Energy",null,null,null,null,null,null,null,null,{"$f":"'Schedule III (EBS)'!K19","v":0}]
["Sch III","Losses by Line",null,"Note 16dii - Energy Non-Proportional",null,null,null,null,null,null,null,null,{"$f":"'Schedule III (EBS)'!K20","v":0}]
["Sch III","Losses by Line",null,"Note 16dii - US Casualty",null,null,null,null,null,null,null,null,{"$f":"'Schedule III (EBS)'!K21","v":0}]
["Sch III","Losses by Line",null,"Note 16dii - US Casualty Non-Prop.",null,null,null,null,null,null,null,null,{"$f":"'Schedule III (EBS)'!K22","v":0}]
["Sch III","Losses by Line",null,"Note 16dii - US Professional",null,null,null,null,null,null,null,null,{"$f":"'Schedule III (EBS)'!K23","v":0}]
["Sch III","Losses by Line",null,"Note 16dii - US Professional Non-Prop.",null,null,null,null,null,null,null,null,{"$f":"'Schedule III (EBS)'!K24","v":0}]
["Sch III","Losses by Line",null,"Note 16dii - US Specialty",null,null,null,null,null,null,null,null,{"$f":"'Schedule III (EBS)'!K25","v":0}]
["Sch III","Losses by Line",null,"Note 16dii - US Specialty Non-Prop.",null,null,null,null,null,null,null,null,{"$f":"'Schedule III (EBS)'!K26","v":0}]
["Sch III","Losses by Line",null,"Note 16dii - Int'l Motor",null,null,null,null,null,null,null,null,{"$f":"'Schedule III (EBS)'!K27","v":0}]
["Sch III","Losses by Line",null,"Note 16dii - Int'l Motor Non-Prop.",null,null,null,null,null,null,null,null,{"$f":"'Schedule III (EBS)'!K28","v":0}]
["Sch III","Losses by Line",null,"Note 16dii - Int'l Casualty",null,null,null,null,null,null,null,null,{"$f":"'Schedule III (EBS)'!K29","v":0}]
["Sch III","Losses by Line",null,"Note 16dii - Int'l Casualty Non-Prop.",null,null,null,null,null,null,null,null,{"$f":"'Schedule III (EBS)'!K30","v":0}]
["Sch III","Losses by Line",null,"Note 16dii - Retro Property",null,null,null,null,null,null,null,null,{"$f":"'Schedule III (EBS)'!K31","v":0}]
["Sch III","Losses by Line",null,"Note 16dii - Structured / Finite R/I",null,null,null,null,null,null,null,null,{"$f":"'Schedule III (EBS)'!K32","v":0}]
["Sch III","Losses by Line",null,"Note 16dii - Health",null,null,null,null,null,null,null,null,{"$f":"'Schedule III (EBS)'!K33","v":0}]
["Sch III","Losses by Line",null,"Note 17d - Property Catastrophe",null,null,null,null,null,null,null,null,{"$f":"'Schedule III (EBS)'!L10","v":0}]
["Sch III","Losses by Line",null,"Note 17d - Property",null,null,null,null,null,null,null,null,{"$f":"'Schedule III (EBS)'!L11","v":0}]
["Sch III","Losses by Line",null,"Note 17d - Property Non-Proportion",null,null,null,null,null,null,null,null,{"$f":"'Schedule III (EBS)'!L12","v":0}]
["Sch III","Losses by Line",null,"Note 17d - Personal Accident",null,null,null,null,null,null,null,null,{"$f":"'Schedule III (EBS)'!L13","v":0}]
["Sch III","Losses by Line",null,"Note 17d - Personal Acc. Non Prop.",null,null,null,null,null,null,null,null,{"$f":"'Schedule III (EBS)'!L14","v":0}]
["Sch III","Losses by Line",null,"Note 17d - Aviation",null,null,null,null,null,null,null,null,{"$f":"'Schedule III (EBS)'!L15","v":0}]
["Sch III","Losses by Line",null,"Note 17d - Aviation Non-Proportional",null,null,null,null,null,null,null,null,{"$f":"'Schedule III (EBS)'!L16","v":0}]
["Sch III","Losses by Line",null,"Note 17d - Credit Surety",null,null,null,null,null,null,null,null,{"$f":"'Schedule III (EBS)'!L17","v":0}]
["Sch III","Losses by Line",null,"Note 17d - Credit Surety Non-Prop.",null,null,null,null,null,null,null,null,{"$f":"'Schedule III (EBS)'!L18","v":0}]
["Sch III","Losses by Line",null,"Note 17d - Energy",null,null,null,null,null,null,null,null,{"$f":"'Schedule III (EBS)'!L19","v":0}]
["Sch III","Losses by Line",null,"Note 17d - Energy Non-Proportional",null,null,null,null,null,null,null,null,{"$f":"'Schedule III (EBS)'!L20","v":0}]
["Sch III","Losses by Line",null,"Note 17d - US Casualty",null,null,null,null,null,null,null,null,{"$f":"'Schedule III (EBS)'!L21","v":0}]
["Sch III","Losses by Line",null,"Note 17d - US Casualty Non-Prop.",null,null,null,null,null,null,null,null,{"$f":"'Schedule III (EBS)'!L22","v":0}]
["Sch III","Losses by Line",null,"Note 17d - US Professional",null,null,null,null,null,null,null,null,{"$f":"'Schedule III (EBS)'!L23","v":0}]
["Sch III","Losses by Line",null,"Note 17d - US Professional Non-Prop.",null,null,null,null,null,null,null,null,{"$f":"'Schedule III (EBS)'!L24","v":0}]
["Sch III","Losses by Line",null,"Note 17d - US Specialty",null,null,null,null,null,null,null,null,{"$f":"'Schedule III (EBS)'!L25","v":0}]
["Sch III","Losses by Line",null,"Note 17d - US Specialty Non-Prop.",null,null,null,null,null,null,null,null,{"$f":"'Schedule III (EBS)'!L26","v":0}]
["Sch III","Losses by Line",null,"Note 17d - Int'l Motor",null,null,null,null,null,null,null,null,{"$f":"'Schedule III (EBS)'!L27","v":0}]
["Sch III","Losses by Line",null,"Note 17d - Int'l Motor Non-Prop.",null,null,null,null,null,null,null,null,{"$f":"'Schedule III (EBS)'!L28","v":0}]
["Sch III","Losses by Line",null,"Note 17d - Int'l Casualty",null,null,null,null,null,null,null,null,{"$f":"'Schedule III (EBS)'!L29","v":0}]
["Sch III","Losses by Line",null,"Note 17d - Int'l Casualty Non-Prop.",null,null,null,null,null,null,null,null,{"$f":"'Schedule III (EBS)'!L30","v":0}]
["Sch III","Losses by Line",null,"Note 17d - Retro Property",null,null,null,null,null,null,null,null,{"$f":"'Schedule III (EBS)'!L31","v":0}]
["Sch III","Losses by Line",null,"Note 17d - Structured / Finite R/I",null,null,null,null,null,null,null,null,{"$f":"'Schedule III (EBS)'!L32","v":0}]
["Sch III","Losses by Line",null,"Note 17d - Health",null,null,null,null,null,null,null,null,{"$f":"'Schedule III (EBS)'!L33","v":0}]
[]
["Sch IIIA","Losses by Zone",null,"Res. Zn 1 - Property Catastrophe",null,null,null,null,null,null,null,null,{"$f":"'Schedule IIIA (EBS)'!E10","v":0}]
["Sch IIIA","Losses by Zone",null,"Res. Zn 1 - Property",null,null,null,null,null,null,null,null,{"$f":"'Schedule IIIA (EBS)'!E11","v":0}]
["Sch IIIA","Losses by Zone",null,"Res. Zn 1 - Property Non-Proportion",null,null,null,null,null,null,null,null,{"$f":"'Schedule IIIA (EBS)'!E12","v":0}]
["Sch IIIA","Losses by Zone",null,"Res. Zn 1 - Personal Accident",null,null,null,null,null,null,null,null,{"$f":"'Schedule IIIA (EBS)'!E13","v":0}]
["Sch IIIA","Losses by Zone",null,"Res. Zn 1 - Personal Acc. Non Prop.",null,null,null,null,null,null,null,null,{"$f":"'Schedule IIIA (EBS)'!E14","v":0}]
["Sch IIIA","Losses by Zone",null,"Res. Zn 1 - Aviation",null,null,null,null,null,null,null,null,{"$f":"'Schedule IIIA (EBS)'!E15","v":0}]
["Sch IIIA","Losses by Zone",null,"Res. Zn 1 - Aviation Non-Proportional",null,null,null,null,null,null,null,null,{"$f":"'Schedule IIIA (EBS)'!E16","v":0}]
["Sch IIIA","Losses by Zone",null,"Res. Zn 1 - Credit Surety",null,null,null,null,null,null,null,null,{"$f":"'Schedule IIIA (EBS)'!E17","v":0}]
["Sch IIIA","Losses by Zone",null,"Res. Zn 1 - Credit Surety Non-Prop.",null,null,null,null,null,null,null,null,{"$f":"'Schedule IIIA (EBS)'!E18","v":0}]
["Sch IIIA","Losses by Zone",null,"Res. Zn 1 - Energy",null,null,null,null,null,null,null,null,{"$f":"'Schedule IIIA (EBS)'!E19","v":0}]
["Sch IIIA","Losses by Zone",null,"Res. Zn 1 - Energy Non-Proportional",null,null,null,null,null,null,null,null,{"$f":"'Schedule IIIA (EBS)'!E20","v":0}]
["Sch IIIA","Losses by Zone",null,"Res. Zn 1 - US Casualty",null,null,null,null,null,null,null,null,{"$f":"'Schedule IIIA (EBS)'!E21","v":0}]
["Sch IIIA","Losses by Zone",null,"Res. Zn 1 - US Casualty Non-Prop.",null,null,null,null,null,null,null,null,{"$f":"'Schedule IIIA (EBS)'!E22","v":0}]
["Sch IIIA","Losses by Zone",null,"Res. Zn 1 - US Professional",null,null,null,null,null,null,null,null,{"$f":"'Schedule IIIA (EBS)'!E23","v":0}]
["Sch IIIA","Losses by Zone",null,"Res. Zn 1 - US Professional Non-Prop.",null,null,null,null,null,null,null,null,{"$f":"'Schedule IIIA (EBS)'!E24","v":0}]
["Sch IIIA","Losses by Zone",null,"Res. Zn 1 - US Specialty",null,null,null,null,null,null,null,null,{"$f":"'Schedule IIIA (EBS)'!E25","v":0}]
["Sch IIIA","Losses by Zone",null,"Res. Zn 1 - US Specialty Non-Prop.",null,null,null,null,null,null,null,null,{"$f":"'Schedule IIIA (EBS)'!E26","v":0}]
["Sch IIIA","Losses by Zone",null,"Res. Zn 1 - Int'l Motor",null,null,null,null,null,null,null,null,{"$f":"'Schedule IIIA (EBS)'!E27","v":0}]
["Sch IIIA","Losses by Zone",null,"Res. Zn 1 - Int'l Motor Non-Prop.",null,null,null,null,null,null,null,null,{"$f":"'Schedule IIIA (EBS)'!E28","v":0}]
["Sch IIIA","Losses by Zone",null,"Res. Zn 1 - Int'l Casualty",null,null,null,null,null,null,null,null,{"$f":"'Schedule IIIA (EBS)'!E29","v":0}]
["Sch IIIA","Losses by Zone",null,"Res. Zn 1 - Int'l Casualty Non-Prop.",null,null,null,null,null,null,null,null,{"$f":"'Schedule IIIA (EBS)'!E30","v":0}]
["Sch IIIA","Losses by Zone",null,"Res. Zn 1 - Retro Property",null,null,null,null,null,null,null,null,{"$f":"'Schedule IIIA (EBS)'!E31","v":0}]
["Sch IIIA","Losses by Zone",null,"Res. Zn 1 - Structured / Finite R/I",null,null,null,null,null,null,null,null,{"$f":"'Schedule IIIA (EBS)'!E32","v":0}]
["Sch IIIA","Losses by Zone",null,"Res. Zn 1 - Health",null,null,null,null,null,null,null,null,{"$f":"'Schedule IIIA (EBS)'!E33","v":0}]
["Sch IIIA","Losses by Zone",null,"Res. Zn 1 - Total",null,null,null,null,null,null,null,null,{"$f":"'Schedule IIIA (EBS)'!E34","v":0}]
["Sch IIIA","Losses by Zone",null,"Res. Zn 2 - Property Catastrophe",null,null,null,null,null,null,null,null,{"$f":"'Schedule IIIA (EBS)'!F10","v":0}]
["Sch IIIA","Losses by Zone",null,"Res. Zn 2 - Property",null,null,null,null,null,null,null,null,{"$f":"'Schedule IIIA (EBS)'!F11","v":0}]
["Sch IIIA","Losses by Zone",null,"Res. Zn 2 - Property Non-Proportion",null,null,null,null,null,null,null,null,{"$f":"'Schedule IIIA (EBS)'!F12","v":0}]
["Sch IIIA","Losses by Zone",null,"Res. Zn 2 - Personal Accident",null,null,null,null,null,null,null,null,{"$f":"'Schedule IIIA (EBS)'!F13","v":0}]
["Sch IIIA","Losses by Zone",null,"Res. Zn 2 - Personal Acc. Non Prop.",null,null,null,null,null,null,null,null,{"$f":"'Schedule IIIA (EBS)'!F14","v":0}]
["Sch IIIA","Losses by Zone",null,"Res. Zn 2 - Aviation",null,null,null,null,null,null,null,null,{"$f":"'Schedule IIIA (EBS)'!F15","v":0}]
["Sch IIIA","Losses by Zone",null,"Res. Zn 2 - Aviation Non-Proportional",null,null,null,null,null,null,null,null,{"$f":"'Schedule IIIA (EBS)'!F16","v":0}]
["Sch IIIA","Losses by Zone",null,"Res. Zn 2 - Credit Surety",null,null,null,null,null,null,null,null,{"$f":"'Schedule IIIA (EBS)'!F17","v":0}]
["Sch IIIA","Losses by Zone",null,"Res. Zn 2 - Credit Surety Non-Prop.",null,null,null,null,null,null,null,null,{"$f":"'Schedule IIIA (EBS)'!F18","v":0}]
["Sch IIIA","Losses by Zone",null,"Res. Zn 2 - Energy",null,null,null,null,null,null,null,null,{"$f":"'Schedule IIIA (EBS)'!F19","v":0}]
["Sch IIIA","Losses by Zone",null,"Res. Zn 2 - Energy Non-Proportional",null,null,null,null,null,null,null,null,{"$f":"'Schedule IIIA (EBS)'!F20","v":0}]
["Sch IIIA","Losses by Zone",null,"Res. Zn 2 - US Casualty",null,null,null,null,null,null,null,null,{"$f":"'Schedule IIIA (EBS)'!F21","v":0}]
["Sch IIIA","Losses by Zone",null,"Res. Zn 2 - US Casualty Non-Prop.",null,null,null,null,null,null,null,null,{"$f":"'Schedule IIIA (EBS)'!F22","v":0}]
["Sch IIIA","Losses by Zone",null,"Res. Zn 2 - US Professional",null,null,null,null,null,null,null,null,{"$f":"'Schedule IIIA (EBS)'!F23","v":0}]
["Sch IIIA","Losses by Zone",null,"Res. Zn 2 - US Professional Non-Prop.",null,null,null,null,null,null,null,null,{"$f":"'Schedule IIIA (EBS)'!F24","v":0}]
["Sch IIIA","Losses by Zone",null,"Res. Zn 2 - US Specialty",null,null,null,null,null,null,null,null,{"$f":"'Schedule IIIA (EBS)'!F25","v":0}]
["Sch IIIA","Losses by Zone",null,"Res. Zn 2 - US Specialty Non-Prop.",null,null,null,null,null,null,null,null,{"$f":"'Schedule IIIA (EBS)'!F26","v":0}]
["Sch IIIA","Losses by Zone",null,"Res. Zn 2 - Int'l Motor",null,null,null,null,null,null,null,null,{"$f":"'Schedule IIIA (EBS)'!F27","v":0}]
["Sch IIIA","Losses by Zone",null,"Res. Zn 2 - Int'l Motor Non-Prop.",null,null,null,null,null,null,null,null,{"$f":"'Schedule IIIA (EBS)'!F28","v":0}]
["Sch IIIA","Losses by Zone",null,"Res. Zn 2 - Int'l Casualty",null,null,null,null,null,null,null,null,{"$f":"'Schedule IIIA (EBS)'!F29","v":0}]
["Sch IIIA","Losses by Zone",null,"Res. Zn 2 - Int'l Casualty Non-Prop.",null,null,null,null,null,null,null,null,{"$f":"'Schedule IIIA (EBS)'!F30","v":0}]
["Sch IIIA","Losses by Zone",null,"Res. Zn 2 - Retro Property",null,null,null,null,null,null,null,null,{"$f":"'Schedule IIIA (EBS)'!F31","v":0}]
["Sch IIIA","Losses by Zone",null,"Res. Zn 2 - Structured / Finite R/I",null,null,null,null,null,null,null,null,{"$f":"'Schedule IIIA (EBS)'!F32","v":0}]
["Sch IIIA","Losses by Zone",null,"Res. Zn 2 - Health",null,null,null,null,null,null,null,null,{"$f":"'Schedule IIIA (EBS)'!F33","v":0}]
["Sch IIIA","Losses by Zone",null,"Res. Zn 2 - Total",null,null,null,null,null,null,null,null,{"$f":"'Schedule IIIA (EBS)'!F34","v":0}]
["Sch IIIA","Losses by Zone",null,"Res. Zn 3 - Property Catastrophe",null,null,null,null,null,null,null,null,{"$f":"'Schedule IIIA (EBS)'!G10","v":0}]
["Sch IIIA","Losses by Zone",null,"Res. Zn 3 - Property",null,null,null,null,null,null,null,null,{"$f":"'Schedule IIIA (EBS)'!G11","v":0}]
["Sch IIIA","Losses by Zone",null,"Res. Zn 3 - Property Non-Proportion",null,null,null,null,null,null,null,null,{"$f":"'Schedule IIIA (EBS)'!G12","v":0}]
["Sch IIIA","Losses by Zone",null,"Res. Zn 3 - Personal Accident",null,null,null,null,null,null,null,null,{"$f":"'Schedule IIIA (EBS)'!G13","v":0}]
["Sch IIIA","Losses by Zone",null,"Res. Zn 3 - Personal Acc. Non Prop.",null,null,null,null,null,null,null,null,{"$f":"'Schedule IIIA (EBS)'!G14","v":0}]
["Sch IIIA","Losses by Zone",null,"Res. Zn 3 - Aviation",null,null,null,null,null,null,null,null,{"$f":"'Schedule IIIA (EBS)'!G15","v":0}]
["Sch IIIA","Losses by Zone",null,"Res. Zn 3 - Aviation Non-Proportional",null,null,null,null,null,null,null,null,{"$f":"'Schedule IIIA (EBS)'!G16","v":0}]
["Sch IIIA","Losses by Zone",null,"Res. Zn 3 - Credit Surety",null,null,null,null,null,null,null,null,{"$f":"'Schedule IIIA (EBS)'!G17","v":0}]
["Sch IIIA","Losses by Zone",null,"Res. Zn 3 - Credit Surety Non-Prop.",null,null,null,null,null,null,null,null,{"$f":"'Schedule IIIA (EBS)'!G18","v":0}]
["Sch IIIA","Losses by Zone",null,"Res. Zn 3 - Energy",null,null,null,null,null,null,null,null,{"$f":"'Schedule IIIA (EBS)'!G19","v":0}]
["Sch IIIA","Losses by Zone",null,"Res. Zn 3 - Energy Non-Proportional",null,null,null,null,null,null,null,null,{"$f":"'Schedule IIIA (EBS)'!G20","v":0}]
["Sch IIIA","Losses by Zone",null,"Res. Zn 3 - US Casualty",null,null,null,null,null,null,null,null,{"$f":"'Schedule IIIA (EBS)'!G21","v":0}]
["Sch IIIA","Losses by Zone",null,"Res. Zn 3 - US Casualty Non-Prop.",null,null,null,null,null,null,null,null,{"$f":"'Schedule IIIA (EBS)'!G22","v":0}]
["Sch IIIA","Losses by Zone",null,"Res. Zn 3 - US Professional",null,null,null,null,null,null,null,null,{"$f":"'Schedule IIIA (EBS)'!G23","v":0}]
["Sch IIIA","Losses by Zone",null,"Res. Zn 3 - US Professional Non-Prop.",null,null,null,null,null,null,null,null,{"$f":"'Schedule IIIA (EBS)'!G24","v":0}]
["Sch IIIA","Losses by Zone",null,"Res. Zn 3 - US Specialty",null,null,null,null,null,null,null,null,{"$f":"'Schedule IIIA (EBS)'!G25","v":0}]
["Sch IIIA","Losses by Zone",null,"Res. Zn 3 - US Specialty Non-Prop.",null,null,null,null,null,null,null,null,{"$f":"'Schedule IIIA (EBS)'!G26","v":0}]
["Sch IIIA","Losses by Zone",null,"Res. Zn 3 - Int'l Motor",null,null,null,null,null,null,null,null,{"$f":"'Schedule IIIA (EBS)'!G27","v":0}]
["Sch IIIA","Losses by Zone",null,"Res. Zn 3 - Int'l Motor Non-Prop.",null,null,null,null,null,null,null,null,{"$f":"'Schedule IIIA (EBS)'!G28","v":0}]
["Sch IIIA","Losses by Zone",null,"Res. Zn 3 - Int'l Casualty",null,null,null,null,null,null,null,null,{"$f":"'Schedule IIIA (EBS)'!G29","v":0}]
["Sch IIIA","Losses by Zone",null,"Res. Zn 3 - Int'l Casualty Non-Prop.",null,null,null,null,null,null,null,null,{"$f":"'Schedule IIIA (EBS)'!G30","v":0}]
["Sch IIIA","Losses by Zone",null,"Res. Zn 3 - Retro Property",null,null,null,null,null,null,null,null,{"$f":"'Schedule IIIA (EBS)'!G31","v":0}]
["Sch IIIA","Losses by Zone",null,"Res. Zn 3 - Structured / Finite R/I",null,null,null,null,null,null,null,null,{"$f":"'Schedule IIIA (EBS)'!G32","v":0}]
["Sch IIIA","Losses by Zone",null,"Res. Zn 3 - Health",null,null,null,null,null,null,null,null,{"$f":"'Schedule IIIA (EBS)'!G33","v":0}]
["Sch IIIA","Losses by Zone",null,"Res. Zn 3 - Total",null,null,null,null,null,null,null,null,{"$f":"'Schedule IIIA (EBS)'!G34","v":0}]
["Sch IIIA","Losses by Zone",null,"Res. Zn 4 - Property Catastrophe",null,null,null,null,null,null,null,null,{"$f":"'Schedule IIIA (EBS)'!H10","v":0}]
["Sch IIIA","Losses by Zone",null,"Res. Zn 4 - Property",null,null,null,null,null,null,null,null,{"$f":"'Schedule IIIA (EBS)'!H11","v":0}]
["Sch IIIA","Losses by Zone",null,"Res. Zn 4 - Property Non-Proportion",null,null,null,null,null,null,null,null,{"$f":"'Schedule IIIA (EBS)'!H12","v":0}]
["Sch IIIA","Losses by Zone",null,"Res. Zn 4 - Personal Accident",null,null,null,null,null,null,null,null,{"$f":"'Schedule IIIA (EBS)'!H13","v":0}]
["Sch IIIA","Losses by Zone",null,"Res. Zn 4 - Personal Acc. Non Prop.",null,null,null,null,null,null,null,null,{"$f":"'Schedule IIIA (EBS)'!H14","v":0}]
["Sch IIIA","Losses by Zone",null,"Res. Zn 4 - Aviation",null,null,null,null,null,null,null,null,{"$f":"'Schedule IIIA (EBS)'!H15","v":0}]
["Sch IIIA","Losses by Zone",null,"Res. Zn 4 - Aviation Non-Proportional",null,null,null,null,null,null,null,null,{"$f":"'Schedule IIIA (EBS)'!H16","v":0}]
["Sch IIIA","Losses by Zone",null,"Res. Zn 4 - Credit Surety",null,null,null,null,null,null,null,null,{"$f":"'Schedule IIIA (EBS)'!H17","v":0}]
["Sch IIIA","Losses by Zone",null,"Res. Zn 4 - Credit Surety Non-Prop.",null,null,null,null,null,null,null,null,{"$f":"'Schedule IIIA (EBS)'!H18","v":0}]
["Sch IIIA","Losses by Zone",null,"Res. Zn 4 - Energy",null,null,null,null,null,null,null,null,{"$f":"'Schedule IIIA (EBS)'!H19","v":0}]
["Sch IIIA","Losses by Zone",null,"Res. Zn 4 - Energy Non-Proportional",null,null,null,null,null,null,null,null,{"$f":"'Schedule IIIA (EBS)'!H20","v":0}]
["Sch IIIA","Losses by Zone",null,"Res. Zn 4 - US Casualty",null,null,null,null,null,null,null,null,{"$f":"'Schedule IIIA (EBS)'!H21","v":0}]
["Sch IIIA","Losses by Zone",null,"Res. Zn 4 - US Casualty Non-Prop.",null,null,null,null,null,null,null,null,{"$f":"'Schedule IIIA (EBS)'!H22","v":0}]
["Sch IIIA","Losses by Zone",null,"Res. Zn 4 - US Professional",null,null,null,null,null,null,null,null,{"$f":"'Schedule IIIA (EBS)'!H23","v":0}]
["Sch IIIA","Losses by Zone",null,"Res. Zn 4 - US Professional Non-Prop.",null,null,null,null,null,null,null,null,{"$f":"'Schedule IIIA (EBS)'!H24","v":0}]
["Sch IIIA","Losses by Zone",null,"Res. Zn 4 - US Specialty",null,null,null,null,null,null,null,null,{"$f":"'Schedule IIIA (EBS)'!H25","v":0}]
["Sch IIIA","Losses by Zone",null,"Res. Zn 4 - US Specialty Non-Prop.",null,null,null,null,null,null,null,null,{"$f":"'Schedule IIIA (EBS)'!H26","v":0}]
["Sch IIIA","Losses by Zone",null,"Res. Zn 4 - Int'l Motor",null,null,null,null,null,null,null,null,{"$f":"'Schedule IIIA (EBS)'!H27","v":0}]
["Sch IIIA","Losses by Zone",null,"Res. Zn 4 - Int'l Motor Non-Prop.",null,null,null,null,null,null,null,null,{"$f":"'Schedule IIIA (EBS)'!H28","v":0}]
["Sch IIIA","Losses by Zone",null,"Res. Zn 4 - Int'l Casualty",null,null,null,null,null,null,null,null,{"$f":"'Schedule IIIA (EBS)'!H29","v":0}]
["Sch IIIA","Losses by Zone",null,"Res. Zn 4 - Int'l Casualty Non-Prop.",null,null,null,null,null,null,null,null,{"$f":"'Schedule IIIA (EBS)'!H30","v":0}]
["Sch IIIA","Losses by Zone",null,"Res. Zn 4 - Retro Property",null,null,null,null,null,null,null,null,{"$f":"'Schedule IIIA (EBS)'!H31","v":0}]
["Sch IIIA","Losses by Zone",null,"Res. Zn 4 - Structured / Finite R/I",null,null,null,null,null,null,null,null,{"$f":"'Schedule IIIA (EBS)'!H32","v":0}]
["Sch IIIA","Losses by Zone",null,"Res. Zn 4 - Health",null,null,null,null,null,null,null,null,{"$f":"'Schedule IIIA (EBS)'!H33","v":0}]
["Sch IIIA","Losses by Zone",null,"Res. Zn 4 - Total",null,null,null,null,null,null,null,null,{"$f":"'Schedule IIIA (EBS)'!H34","v":0}]
["Sch IIIA","Losses by Zone",null,"Res. Zn 5 - Property Catastrophe",null,null,null,null,null,null,null,null,{"$f":"'Schedule IIIA (EBS)'!I10","v":0}]
["Sch IIIA","Losses by Zone",null,"Res. Zn 5 - Property",null,null,null,null,null,null,null,null,{"$f":"'Schedule IIIA (EBS)'!I11","v":0}]
["Sch IIIA","Losses by Zone",null,"Res. Zn 5 - Property Non-Proportion",null,null,null,null,null,null,null,null,{"$f":"'Schedule IIIA (EBS)'!I12","v":0}]
["Sch IIIA","Losses by Zone",null,"Res. Zn 5 - Personal Accident",null,null,null,null,null,null,null,null,{"$f":"'Schedule IIIA (EBS)'!I13","v":0}]
["Sch IIIA","Losses by Zone",null,"Res. Zn 5 - Personal Acc. Non Prop.",null,null,null,null,null,null,null,null,{"$f":"'Schedule IIIA (EBS)'!I14","v":0}]
["Sch IIIA","Losses by Zone",null,"Res. Zn 5 - Aviation",null,null,null,null,null,null,null,null,{"$f":"'Schedule IIIA (EBS)'!I15","v":0}]
["Sch IIIA","Losses by Zone",null,"Res. Zn 5 - Aviation Non-Proportional",null,null,null,null,null,null,null,null,{"$f":"'Schedule IIIA (EBS)'!I16","v":0}]
["Sch IIIA","Losses by Zone",null,"Res. Zn 5 - Credit Surety",null,null,null,null,null,null,null,null,{"$f":"'Schedule IIIA (EBS)'!I17","v":0}]
["Sch IIIA","Losses by Zone",null,"Res. Zn 5 - Credit Surety Non-Prop.",null,null,null,null,null,null,null,null,{"$f":"'Schedule IIIA (EBS)'!I18","v":0}]
["Sch IIIA","Losses by Zone",null,"Res. Zn 5 - Energy",null,null,null,null,null,null,null,null,{"$f":"'Schedule IIIA (EBS)'!I19","v":0}]
["Sch IIIA","Losses by Zone",null,"Res. Zn 5 - Energy Non-Proportional",null,null,null,null,null,null,null,null,{"$f":"'Schedule IIIA (EBS)'!I20","v":0}]
["Sch IIIA","Losses by Zone",null,"Res. Zn 5 - US Casualty",null,null,null,null,null,null,null,null,{"$f":"'Schedule IIIA (EBS)'!I21","v":0}]
["Sch IIIA","Losses by Zone",null,"Res. Zn 5 - US Casualty Non-Prop.",null,null,null,null,null,null,null,null,{"$f":"'Schedule IIIA (EBS)'!I22","v":0}]
["Sch IIIA","Losses by Zone",null,"Res. Zn 5 - US Professional",null,null,null,null,null,null,null,null,{"$f":"'Schedule IIIA (EBS)'!I23","v":0}]
["Sch IIIA","Losses by Zone",null,"Res. Zn 5 - US Professional Non-Prop.",null,null,null,null,null,null,null,null,{"$f":"'Schedule IIIA (EBS)'!I24","v":0}]
["Sch IIIA","Losses by Zone",null,"Res. Zn 5 - US Specialty",null,null,null,null,null,null,null,null,{"$f":"'Schedule IIIA (EBS)'!I25","v":0}]
["Sch IIIA","Losses by Zone",null,"Res. Zn 5 - US Specialty Non-Prop.",null,null,null,null,null,null,null,null,{"$f":"'Schedule IIIA (EBS)'!I26","v":0}]
["Sch IIIA","Losses by Zone",null,"Res. Zn 5 - Int'l Motor",null,null,null,null,null,null,null,null,{"$f":"'Schedule IIIA (EBS)'!I27","v":0}]
["Sch IIIA","Losses by Zone",null,"Res. Zn 5 - Int'l Motor Non-Prop.",null,null,null,null,null,null,null,null,{"$f":"'Schedule IIIA (EBS)'!I28","v":0}]
["Sch IIIA","Losses by Zone",null,"Res. Zn 5 - Int'l Casualty",null,null,null,null,null,null,null,null,{"$f":"'Schedule IIIA (EBS)'!I29","v":0}]
["Sch IIIA","Losses by Zone",null,"Res. Zn 5 - Int'l Casualty Non-Prop.",null,null,null,null,null,null,null,null,{"$f":"'Schedule IIIA (EBS)'!I30","v":0}]
["Sch IIIA","Losses by Zone",null,"Res. Zn 5 - Retro Property",null,null,null,null,null,null,null,null,{"$f":"'Schedule IIIA (EBS)'!I31","v":0}]
["Sch IIIA","Losses by Zone",null,"Res. Zn 5 - Structured / Finite R/I",null,null,null,null,null,null,null,null,{"$f":"'Schedule IIIA (EBS)'!I32","v":0}]
["Sch IIIA","Losses by Zone",null,"Res. Zn 5 - Health",null,null,null,null,null,null,null,null,{"$f":"'Schedule IIIA (EBS)'!I33","v":0}]
["Sch IIIA","Losses by Zone",null,"Res. Zn 5 - Total",null,null,null,null,null,null,null,null,{"$f":"'Schedule IIIA (EBS)'!I34","v":0}]
["Sch IIIA","Losses by Zone",null,"Res. Zn 6 - Property Catastrophe",null,null,null,null,null,null,null,null,{"$f":"'Schedule IIIA (EBS)'!J10","v":0}]
["Sch IIIA","Losses by Zone",null,"Res. Zn 6 - Property",null,null,null,null,null,null,null,null,{"$f":"'Schedule IIIA (EBS)'!J11","v":0}]
["Sch IIIA","Losses by Zone",null,"Res. Zn 6 - Property Non-Proportion",null,null,null,null,null,null,null,null,{"$f":"'Schedule IIIA (EBS)'!J12","v":0}]
["Sch IIIA","Losses by Zone",null,"Res. Zn 6 - Personal Accident",null,null,null,null,null,null,null,null,{"$f":"'Schedule IIIA (EBS)'!J13","v":0}]
["Sch IIIA","Losses by Zone",null,"Res. Zn 6 - Personal Acc. Non Prop.",null,null,null,null,null,null,null,null,{"$f":"'Schedule IIIA (EBS)'!J14","v":0}]
["Sch IIIA","Losses by Zone",null,"Res. Zn 6 - Aviation",null,null,null,null,null,null,null,null,{"$f":"'Schedule IIIA (EBS)'!J15","v":0}]
["Sch IIIA","Losses by Zone",null,"Res. Zn 6 - Aviation Non-Proportional",null,null,null,null,null,null,null,null,{"$f":"'Schedule IIIA (EBS)'!J16","v":0}]
["Sch IIIA","Losses by Zone",null,"Res. Zn 6 - Credit Surety",null,null,null,null,null,null,null,null,{"$f":"'Schedule IIIA (EBS)'!J17","v":0}]
["Sch IIIA","Losses by Zone",null,"Res. Zn 6 - Credit Surety Non-Prop.",null,null,null,null,null,null,null,null,{"$f":"'Schedule IIIA (EBS)'!J18","v":0}]
["Sch IIIA","Losses by Zone",null,"Res. Zn 6 - Energy",null,null,null,null,null,null,null,null,{"$f":"'Schedule IIIA (EBS)'!J19","v":0}]
["Sch IIIA","Losses by Zone",null,"Res. Zn 6 - Energy Non-Proportional",null,null,null,null,null,null,null,null,{"$f":"'Schedule IIIA (EBS)'!J20","v":0}]
["Sch IIIA","Losses by Zone",null,"Res. Zn 6 - US Casualty",null,null,null,null,null,null,null,null,{"$f":"'Schedule IIIA (EBS)'!J21","v":0}]
["Sch IIIA","Losses by Zone",null,"Res. Zn 6 - US Casualty Non-Prop.",null,null,null,null,null,null,null,null,{"$f":"'Schedule IIIA (EBS)'!J22","v":0}]
["Sch IIIA","Losses by Zone",null,"Res. Zn 6 - US Professional",null,null,null,null,null,null,null,null,{"$f":"'Schedule IIIA (EBS)'!J23","v":0}]
["Sch IIIA","Losses by Zone",null,"Res. Zn 6 - US Professional Non-Prop.",null,null,null,null,null,null,null,null,{"$f":"'Schedule IIIA (EBS)'!J24","v":0}]
["Sch IIIA","Losses by Zone",null,"Res. Zn 6 - US Specialty",null,null,null,null,null,null,null,null,{"$f":"'Schedule IIIA (EBS)'!J25","v":0}]
["Sch IIIA","Losses by Zone",null,"Res. Zn 6 - US Specialty Non-Prop.",null,null,null,null,null,null,null,null,{"$f":"'Schedule IIIA (EBS)'!J26","v":0}]
["Sch IIIA","Losses by Zone",null,"Res. Zn 6 - Int'l Motor",null,null,null,null,null,null,null,null,{"$f":"'Schedule IIIA (EBS)'!J27","v":0}]
["Sch IIIA","Losses by Zone",null,"Res. Zn 6 - Int'l Motor Non-Prop.",null,null,null,null,null,null,null,null,{"$f":"'Schedule IIIA (EBS)'!J28","v":0}]
["Sch IIIA","Losses by Zone",null,"Res. Zn 6 - Int'l Casualty",null,null,null,null,null,null,null,null,{"$f":"'Schedule IIIA (EBS)'!J29","v":0}]
["Sch IIIA","Losses by Zone",null,"Res. Zn 6 - Int'l Casualty Non-Prop.",null,null,null,null,null,null,null,null,{"$f":"'Schedule IIIA (EBS)'!J30","v":0}]
["Sch IIIA","Losses by Zone",null,"Res. Zn 6 - Retro Property",null,null,null,null,null,null,null,null,{"$f":"'Schedule IIIA (EBS)'!J31","v":0}]
["Sch IIIA","Losses by Zone",null,"Res. Zn 6 - Structured / Finite R/I",null,null,null,null,null,null,null,null,{"$f":"'Schedule IIIA (EBS)'!J32","v":0}]
["Sch IIIA","Losses by Zone",null,"Res. Zn 6 - Health",null,null,null,null,null,null,null,null,{"$f":"'Schedule IIIA (EBS)'!J33","v":0}]
["Sch IIIA","Losses by Zone",null,"Res. Zn 6 - Total",null,null,null,null,null,null,null,null,{"$f":"'Schedule IIIA (EBS)'!J34","v":0}]
["Sch IIIA","Losses by Zone",null,"Res. Zn 7 - Property Catastrophe",null,null,null,null,null,null,null,null,{"$f":"'Schedule IIIA (EBS)'!K10","v":0}]
["Sch IIIA","Losses by Zone",null,"Res. Zn 7 - Property",null,null,null,null,null,null,null,null,{"$f":"'Schedule IIIA (EBS)'!K11","v":0}]
["Sch IIIA","Losses by Zone",null,"Res. Zn 7 - Property Non-Proportion",null,null,null,null,null,null,null,null,{"$f":"'Schedule IIIA (EBS)'!K12","v":0}]
["Sch IIIA","Losses by Zone",null,"Res. Zn 7 - Personal Accident",null,null,null,null,null,null,null,null,{"$f":"'Schedule IIIA (EBS)'!K13","v":0}]
["Sch IIIA","Losses by Zone",null,"Res. Zn 7 - Personal Acc. Non Prop.",null,null,null,null,null,null,null,null,{"$f":"'Schedule IIIA (EBS)'!K14","v":0}]
["Sch IIIA","Losses by Zone",null,"Res. Zn 7 - Aviation",null,null,null,null,null,null,null,null,{"$f":"'Schedule IIIA (EBS)'!K15","v":0}]
["Sch IIIA","Losses by Zone",null,"Res. Zn 7 - Aviation Non-Proportional",null,null,null,null,null,null,null,null,{"$f":"'Schedule IIIA (EBS)'!K16","v":0}]
["Sch IIIA","Losses by Zone",null,"Res. Zn 7 - Credit Surety",null,null,null,null,null,null,null,null,{"$f":"'Schedule IIIA (EBS)'!K17","v":0}]
["Sch IIIA","Losses by Zone",null,"Res. Zn 7 - Credit Surety Non-Prop.",null,null,null,null,null,null,null,null,{"$f":"'Schedule IIIA (EBS)'!K18","v":0}]
["Sch IIIA","Losses by Zone",null,"Res. Zn 7 - Energy",null,null,null,null,null,null,null,null,{"$f":"'Schedule IIIA (EBS)'!K19","v":0}]
["Sch IIIA","Losses by Zone",null,"Res. Zn 7 - Energy Non-Proportional",null,null,null,null,null,null,null,null,{"$f":"'Schedule IIIA (EBS)'!K20","v":0}]
["Sch IIIA","Losses by Zone",null,"Res. Zn 7 - US Casualty",null,null,null,null,null,null,null,null,{"$f":"'Schedule IIIA (EBS)'!K21","v":0}]
["Sch IIIA","Losses by Zone",null,"Res. Zn 7 - US Casualty Non-Prop.",null,null,null,null,null,null,null,null,{"$f":"'Schedule IIIA (EBS)'!K22","v":0}]
["Sch IIIA","Losses by Zone",null,"Res. Zn 7 - US Professional",null,null,null,null,null,null,null,null,{"$f":"'Schedule IIIA (EBS)'!K23","v":0}]
["Sch IIIA","Losses by Zone",null,"Res. Zn 7 - US Professional Non-Prop.",null,null,null,null,null,null,null,null,{"$f":"'Schedule IIIA (EBS)'!K24","v":0}]
["Sch IIIA","Losses by Zone",null,"Res. Zn 7 - US Specialty",null,null,null,null,null,null,null,null,{"$f":"'Schedule IIIA (EBS)'!K25","v":0}]
["Sch IIIA","Losses by Zone",null,"Res. Zn 7 - US Specialty Non-Prop.",null,null,null,null,null,null,null,null,{"$f":"'Schedule IIIA (EBS)'!K26","v":0}]
["Sch IIIA","Losses by Zone",null,"Res. Zn 7 - Int'l Motor",null,null,null,null,null,null,null,null,{"$f":"'Schedule IIIA (EBS)'!K27","v":0}]
["Sch IIIA","Losses by Zone",null,"Res. Zn 7 - Int'l Motor Non-Prop.",null,null,null,null,null,null,null,null,{"$f":"'Schedule IIIA (EBS)'!K28","v":0}]
["Sch IIIA","Losses by Zone",null,"Res. Zn 7 - Int'l Casualty",null,null,null,null,null,null,null,null,{"$f":"'Schedule IIIA (EBS)'!K29","v":0}]
["Sch IIIA","Losses by Zone",null,"Res. Zn 7 - Int'l Casualty Non-Prop.",null,null,null,null,null,null,null,null,{"$f":"'Schedule IIIA (EBS)'!K30","v":0}]
["Sch IIIA","Losses by Zone",null,"Res. Zn 7 - Retro Property",null,null,null,null,null,null,null,null,{"$f":"'Schedule IIIA (EBS)'!K31","v":0}]
["Sch IIIA","Losses by Zone",null,"Res. Zn 7 - Structured / Finite R/I",null,null,null,null,null,null,null,null,{"$f":"'Schedule IIIA (EBS)'!K32","v":0}]
["Sch IIIA","Losses by Zone",null,"Res. Zn 7 - Health",null,null,null,null,null,null,null,null,{"$f":"'Schedule IIIA (EBS)'!K33","v":0}]
["Sch IIIA","Losses by Zone",null,"Res. Zn 7 - Total",null,null,null,null,null,null,null,null,{"$f":"'Schedule IIIA (EBS)'!K34","v":0}]
["Sch IIIA","Losses by Zone",null,"Res. Zn 8 - Property Catastrophe",null,null,null,null,null,null,null,null,{"$f":"'Schedule IIIA (EBS)'!L10","v":0}]
["Sch IIIA","Losses by Zone",null,"Res. Zn 8 - Property",null,null,null,null,null,null,null,null,{"$f":"'Schedule IIIA (EBS)'!L11","v":0}]
["Sch IIIA","Losses by Zone",null,"Res. Zn 8 - Property Non-Proportion",null,null,null,null,null,null,null,null,{"$f":"'Schedule IIIA (EBS)'!L12","v":0}]
["Sch IIIA","Losses by Zone",null,"Res. Zn 8 - Personal Accident",null,null,null,null,null,null,null,null,{"$f":"'Schedule IIIA (EBS)'!L13","v":0}]
["Sch IIIA","Losses by Zone",null,"Res. Zn 8 - Personal Acc. Non Prop.",null,null,null,null,null,null,null,null,{"$f":"'Schedule IIIA (EBS)'!L14","v":0}]
["Sch IIIA","Losses by Zone",null,"Res. Zn 8 - Aviation",null,null,null,null,null,null,null,null,{"$f":"'Schedule IIIA (EBS)'!L15","v":0}]
["Sch IIIA","Losses by Zone",null,"Res. Zn 8 - Aviation Non-Proportional",null,null,null,null,null,null,null,null,{"$f":"'Schedule IIIA (EBS)'!L16","v":0}]
["Sch IIIA","Losses by Zone",null,"Res. Zn 8 - Credit Surety",null,null,null,null,null,null,null,null,{"$f":"'Schedule IIIA (EBS)'!L17","v":0}]
["Sch IIIA","Losses by Zone",null,"Res. Zn 8 - Credit Surety Non-Prop.",null,null,null,null,null,null,null,null,{"$f":"'Schedule IIIA (EBS)'!L18","v":0}]
["Sch IIIA","Losses by Zone",null,"Res. Zn 8 - Energy",null,null,null,null,null,null,null,null,{"$f":"'Schedule IIIA (EBS)'!L19","v":0}]
["Sch IIIA","Losses by Zone",null,"Res. Zn 8 - Energy Non-Proportional",null,null,null,null,null,null,null,null,{"$f":"'Schedule IIIA (EBS)'!L20","v":0}]
["Sch IIIA","Losses by Zone",null,"Res. Zn 8 - US Casualty",null,null,null,null,null,null,null,null,{"$f":"'Schedule IIIA (EBS)'!L21","v":0}]
["Sch IIIA","Losses by Zone",null,"Res. Zn 8 - US Casualty Non-Prop.",null,null,null,null,null,null,null,null,{"$f":"'Schedule IIIA (EBS)'!L22","v":0}]
["Sch IIIA","Losses by Zone",null,"Res. Zn 8 - US Professional",null,null,null,null,null,null,null,null,{"$f":"'Schedule IIIA (EBS)'!L23","v":0}]
["Sch IIIA","Losses by Zone",null,"Res. Zn 8 - US Professional Non-Prop.",null,null,null,null,null,null,null,null,{"$f":"'Schedule IIIA (EBS)'!L24","v":0}]
["Sch IIIA","Losses by Zone",null,"Res. Zn 8 - US Specialty",null,null,null,null,null,null,null,null,{"$f":"'Schedule IIIA (EBS)'!L25","v":0}]
["Sch IIIA","Losses by Zone",null,"Res. Zn 8 - US Specialty Non-Prop.",null,null,null,null,null,null,null,null,{"$f":"'Schedule IIIA (EBS)'!L26","v":0}]
["Sch IIIA","Losses by Zone",null,"Res. Zn 8 - Int'l Motor",null,null,null,null,null,null,null,null,{"$f":"'Schedule IIIA (EBS)'!L27","v":0}]
["Sch IIIA","Losses by Zone",null,"Res. Zn 8 - Int'l Motor Non-Prop.",null,null,null,null,null,null,null,null,{"$f":"'Schedule IIIA (EBS)'!L28","v":0}]
["Sch IIIA","Losses by Zone",null,"Res. Zn 8 - Int'l Casualty",null,null,null,null,null,null,null,null,{"$f":"'Schedule IIIA (EBS)'!L29","v":0}]
["Sch IIIA","Losses by Zone",null,"Res. Zn 8 - Int'l Casualty Non-Prop.",null,null,null,null,null,null,null,null,{"$f":"'Schedule IIIA (EBS)'!L30","v":0}]
["Sch IIIA","Losses by Zone",null,"Res. Zn 8 - Retro Property",null,null,null,null,null,null,null,null,{"$f":"'Schedule IIIA (EBS)'!L31","v":0}]
["Sch IIIA","Losses by Zone",null,"Res. Zn 8 - Structured / Finite R/I",null,null,null,null,null,null,null,null,{"$f":"'Schedule IIIA (EBS)'!L32","v":0}]
["Sch IIIA","Losses by Zone",null,"Res. Zn 8 - Health",null,null,null,null,null,null,null,null,{"$f":"'Schedule IIIA (EBS)'!L33","v":0}]
["Sch IIIA","Losses by Zone",null,"Res. Zn 8 - Total",null,null,null,null,null,null,null,null,{"$f":"'Schedule IIIA (EBS)'!L34","v":0}]
["Sch IIIA","Losses by Zone",null,"Res. Zn 9 - Property Catastrophe",null,null,null,null,null,null,null,null,{"$f":"'Schedule IIIA (EBS)'!M10","v":0}]
["Sch IIIA","Losses by Zone",null,"Res. Zn 9 - Property",null,null,null,null,null,null,null,null,{"$f":"'Schedule IIIA (EBS)'!M11","v":0}]
["Sch IIIA","Losses by Zone",null,"Res. Zn 9 - Property Non-Proportion",null,null,null,null,null,null,null,null,{"$f":"'Schedule IIIA (EBS)'!M12","v":0}]
["Sch IIIA","Losses by Zone",null,"Res. Zn 9 - Personal Accident",null,null,null,null,null,null,null,null,{"$f":"'Schedule IIIA (EBS)'!M13","v":0}]
["Sch IIIA","Losses by Zone",null,"Res. Zn 9 - Personal Acc. Non Prop.",null,null,null,null,null,null,null,null,{"$f":"'Schedule IIIA (EBS)'!M14","v":0}]
["Sch IIIA","Losses by Zone",null,"Res. Zn 9 - Aviation",null,null,null,null,null,null,null,null,{"$f":"'Schedule IIIA (EBS)'!M15","v":0}]
["Sch IIIA","Losses by Zone",null,"Res. Zn 9 - Aviation Non-Proportional",null,null,null,null,null,null,null,null,{"$f":"'Schedule IIIA (EBS)'!M16","v":0}]
["Sch IIIA","Losses by Zone",null,"Res. Zn 9 - Credit Surety",null,null,null,null,null,null,null,null,{"$f":"'Schedule IIIA (EBS)'!M17","v":0}]
["Sch IIIA","Losses by Zone",null,"Res. Zn 9 - Credit Surety Non-Prop.",null,null,null,null,null,null,null,null,{"$f":"'Schedule IIIA (EBS)'!M18","v":0}]
["Sch IIIA","Losses by Zone",null,"Res. Zn 9 - Energy",null,null,null,null,null,null,null,null,{"$f":"'Schedule IIIA (EBS)'!M19","v":0}]
["Sch IIIA","Losses by Zone",null,"Res. Zn 9 - Energy Non-Proportional",null,null,null,null,null,null,null,null,{"$f":"'Schedule IIIA (EBS)'!M20","v":0}]
["Sch IIIA","Losses by Zone",null,"Res. Zn 9 - US Casualty",null,null,null,null,null,null,null,null,{"$f":"'Schedule IIIA (EBS)'!M21","v":0}]
["Sch IIIA","Losses by Zone",null,"Res. Zn 9 - US Casualty Non-Prop.",null,null,null,null,null,null,null,null,{"$f":"'Schedule IIIA (EBS)'!M22","v":0}]
["Sch IIIA","Losses by Zone",null,"Res. Zn 9 - US Professional",null,null,null,null,null,null,null,null,{"$f":"'Schedule IIIA (EBS)'!M23","v":0}]
["Sch IIIA","Losses by Zone",null,"Res. Zn 9 - US Professional Non-Prop.",null,null,null,null,null,null,null,null,{"$f":"'Schedule IIIA (EBS)'!M24","v":0}]
["Sch IIIA","Losses by Zone",null,"Res. Zn 9 - US Specialty",null,null,null,null,null,null,null,null,{"$f":"'Schedule IIIA (EBS)'!M25","v":0}]
["Sch IIIA","Losses by Zone",null,"Res. Zn 9 - US Specialty Non-Prop.",null,null,null,null,null,null,null,null,{"$f":"'Schedule IIIA (EBS)'!M26","v":0}]
["Sch IIIA","Losses by Zone",null,"Res. Zn 9 - Int'l Motor",null,null,null,null,null,null,null,null,{"$f":"'Schedule IIIA (EBS)'!M27","v":0}]
["Sch IIIA","Losses by Zone",null,"Res. Zn 9 - Int'l Motor Non-Prop.",null,null,null,null,null,null,null,null,{"$f":"'Schedule IIIA (EBS)'!M28","v":0}]
["Sch IIIA","Losses by Zone",null,"Res. Zn 9 - Int'l Casualty",null,null,null,null,null,null,null,null,{"$f":"'Schedule IIIA (EBS)'!M29","v":0}]
["Sch IIIA","Losses by Zone",null,"Res. Zn 9 - Int'l Casualty Non-Prop.",null,null,null,null,null,null,null,null,{"$f":"'Schedule IIIA (EBS)'!M30","v":0}]
["Sch IIIA","Losses by Zone",null,"Res. Zn 9 - Retro Property",null,null,null,null,null,null,null,null,{"$f":"'Schedule IIIA (EBS)'!M31","v":0}]
["Sch IIIA","Losses by Zone",null,"Res. Zn 9 - Structured / Finite R/I",null,null,null,null,null,null,null,null,{"$f":"'Schedule IIIA (EBS)'!M32","v":0}]
["Sch IIIA","Losses by Zone",null,"Res. Zn 9 - Health",null,null,null,null,null,null,null,null,{"$f":"'Schedule IIIA (EBS)'!M33","v":0}]
["Sch IIIA","Losses by Zone",null,"Res. Zn 9 - Total",null,null,null,null,null,null,null,null,{"$f":"'Schedule IIIA (EBS)'!M34","v":0}]
["Sch IIIA","Losses by Zone",null,"Res. Zn 10 - Property Catastrophe",null,null,null,null,null,null,null,null,{"$f":"'Schedule IIIA (EBS)'!N10","v":0}]
["Sch IIIA","Losses by Zone",null,"Res. Zn 10 - Property",null,null,null,null,null,null,null,null,{"$f":"'Schedule IIIA (EBS)'!N11","v":0}]
["Sch IIIA","Losses by Zone",null,"Res. Zn 10 - Property Non-Proportion",null,null,null,null,null,null,null,null,{"$f":"'Schedule IIIA (EBS)'!N12","v":0}]
["Sch IIIA","Losses by Zone",null,"Res. Zn 10 - Personal Accident",null,null,null,null,null,null,null,null,{"$f":"'Schedule IIIA (EBS)'!N13","v":0}]
["Sch IIIA","Losses by Zone",null,"Res. Zn 10 - Personal Acc. Non Prop.",null,null,null,null,null,null,null,null,{"$f":"'Schedule IIIA (EBS)'!N14","v":0}]
["Sch IIIA","Losses by Zone",null,"Res. Zn 10 - Aviation",null,null,null,null,null,null,null,null,{"$f":"'Schedule IIIA (EBS)'!N15","v":0}]
["Sch IIIA","Losses by Zone",null,"Res. Zn 10 - Aviation Non-Proportional",null,null,null,null,null,null,null,null,{"$f":"'Schedule IIIA (EBS)'!N16","v":0}]
["Sch IIIA","Losses by Zone",null,"Res. Zn 10 - Credit Surety",null,null,null,null,null,null,null,null,{"$f":"'Schedule IIIA (EBS)'!N17","v":0}]
["Sch IIIA","Losses by Zone",null,"Res. Zn 10 - Credit Surety Non-Prop.",null,null,null,null,null,null,null,null,{"$f":"'Schedule IIIA (EBS)'!N18","v":0}]
["Sch IIIA","Losses by Zone",null,"Res. Zn 10 - Energy",null,null,null,null,null,null,null,null,{"$f":"'Schedule IIIA (EBS)'!N19","v":0}]
["Sch IIIA","Losses by Zone",null,"Res. Zn 10 - Energy Non-Proportional",null,null,null,null,null,null,null,null,{"$f":"'Schedule IIIA (EBS)'!N20","v":0}]
["Sch IIIA","Losses by Zone",null,"Res. Zn 10 - US Casualty",null,null,null,null,null,null,null,null,{"$f":"'Schedule IIIA (EBS)'!N21","v":0}]
["Sch IIIA","Losses by Zone",null,"Res. Zn 10 - US Casualty Non-Prop.",null,null,null,null,null,null,null,null,{"$f":"'Schedule IIIA (EBS)'!N22","v":0}]
["Sch IIIA","Losses by Zone",null,"Res. Zn 10 - US Professional",null,null,null,null,null,null,null,null,{"$f":"'Schedule IIIA (EBS)'!N23","v":0}]
["Sch IIIA","Losses by Zone",null,"Res. Zn 10 - US Professional Non-Prop.",null,null,null,null,null,null,null,null,{"$f":"'Schedule IIIA (EBS)'!N24","v":0}]
["Sch IIIA","Losses by Zone",null,"Res. Zn 10 - US Specialty",null,null,null,null,null,null,null,null,{"$f":"'Schedule IIIA (EBS)'!N25","v":0}]
["Sch IIIA","Losses by Zone",null,"Res. Zn 10 - US Specialty Non-Prop.",null,null,null,null,null,null,null,null,{"$f":"'Schedule IIIA (EBS)'!N26","v":0}]
["Sch IIIA","Losses by Zone",null,"Res. Zn 10 - Int'l Motor",null,null,null,null,null,null,null,null,{"$f":"'Schedule IIIA (EBS)'!N27","v":0}]
["Sch IIIA","Losses by Zone",null,"Res. Zn 10 - Int'l Motor Non-Prop.",null,null,null,null,null,null,null,null,{"$f":"'Schedule IIIA (EBS)'!N28","v":0}]
["Sch IIIA","Losses by Zone",null,"Res. Zn 10 - Int'l Casualty",null,null,null,null,null,null,null,null,{"$f":"'Schedule IIIA (EBS)'!N29","v":0}]
["Sch IIIA","Losses by Zone",null,"Res. Zn 10 - Int'l Casualty Non-Prop.",null,null,null,null,null,null,null,null,{"$f":"'Schedule IIIA (EBS)'!N30","v":0}]
["Sch IIIA","Losses by Zone",null,"Res. Zn 10 - Retro Property",null,null,null,null,null,null,null,null,{"$f":"'Schedule IIIA (EBS)'!N31","v":0}]
["Sch IIIA","Losses by Zone",null,"Res. Zn 10 - Structured / Finite R/I",null,null,null,null,null,null,null,null,{"$f":"'Schedule IIIA (EBS)'!N32","v":0}]
["Sch IIIA","Losses by Zone",null,"Res. Zn 10 - Health",null,null,null,null,null,null,null,null,{"$f":"'Schedule IIIA (EBS)'!N33","v":0}]
["Sch IIIA","Losses by Zone",null,"Res. Zn 10 - Total",null,null,null,null,null,null,null,null,{"$f":"'Schedule IIIA (EBS)'!N34","v":0}]
["Sch IIIA","Losses by Zone",null,"Res. Zn 11 - Property Catastrophe",null,null,null,null,null,null,null,null,{"$f":"'Schedule IIIA (EBS)'!O10","v":0}]
["Sch IIIA","Losses by Zone",null,"Res. Zn 11 - Property",null,null,null,null,null,null,null,null,{"$f":"'Schedule IIIA (EBS)'!O11","v":0}]
["Sch IIIA","Losses by Zone",null,"Res. Zn 11 - Property Non-Proportion",null,null,null,null,null,null,null,null,{"$f":"'Schedule IIIA (EBS)'!O12","v":0}]
["Sch IIIA","Losses by Zone",null,"Res. Zn 11 - Personal Accident",null,null,null,null,null,null,null,null,{"$f":"'Schedule IIIA (EBS)'!O13","v":0}]
["Sch IIIA","Losses by Zone",null,"Res. Zn 11 - Personal Acc. Non Prop.",null,null,null,null,null,null,null,null,{"$f":"'Schedule IIIA (EBS)'!O14","v":0}]
["Sch IIIA","Losses by Zone",null,"Res. Zn 11 - Aviation",null,null,null,null,null,null,null,null,{"$f":"'Schedule IIIA (EBS)'!O15","v":0}]
["Sch IIIA","Losses by Zone",null,"Res. Zn 11 - Aviation Non-Proportional",null,null,null,null,null,null,null,null,{"$f":"'Schedule IIIA (EBS)'!O16","v":0}]
["Sch IIIA","Losses by Zone",null,"Res. Zn 11 - Credit Surety",null,null,null,null,null,null,null,null,{"$f":"'Schedule IIIA (EBS)'!O17","v":0}]
["Sch IIIA","Losses by Zone",null,"Res. Zn 11 - Credit Surety Non-Prop.",null,null,null,null,null,null,null,null,{"$f":"'Schedule IIIA (EBS)'!O18","v":0}]
["Sch IIIA","Losses by Zone",null,"Res. Zn 11 - Energy",null,null,null,null,null,null,null,null,{"$f":"'Schedule IIIA (EBS)'!O19","v":0}]
["Sch IIIA","Losses by Zone",null,"Res. Zn 11 - Energy Non-Proportional",null,null,null,null,null,null,null,null,{"$f":"'Schedule IIIA (EBS)'!O20","v":0}]
["Sch IIIA","Losses by Zone",null,"Res. Zn 11 - US Casualty",null,null,null,null,null,null,null,null,{"$f":"'Schedule IIIA (EBS)'!O21","v":0}]
["Sch IIIA","Losses by Zone",null,"Res. Zn 11 - US Casualty Non-Prop.",null,null,null,null,null,null,null,null,{"$f":"'Schedule IIIA (EBS)'!O22","v":0}]
["Sch IIIA","Losses by Zone",null,"Res. Zn 11 - US Professional",null,null,null,null,null,null,null,null,{"$f":"'Schedule IIIA (EBS)'!O23","v":0}]
["Sch IIIA","Losses by Zone",null,"Res. Zn 11 - US Professional Non-Prop.",null,null,null,null,null,null,null,null,{"$f":"'Schedule IIIA (EBS)'!O24","v":0}]
["Sch IIIA","Losses by Zone",null,"Res. Zn 11 - US Specialty",null,null,null,null,null,null,null,null,{"$f":"'Schedule IIIA (EBS)'!O25","v":0}]
["Sch IIIA","Losses by Zone",null,"Res. Zn 11 - US Specialty Non-Prop.",null,null,null,null,null,null,null,null,{"$f":"'Schedule IIIA (EBS)'!O26","v":0}]
["Sch IIIA","Losses by Zone",null,"Res. Zn 11 - Int'l Motor",null,null,null,null,null,null,null,null,{"$f":"'Schedule IIIA (EBS)'!O27","v":0}]
["Sch IIIA","Losses by Zone",null,"Res. Zn 11 - Int'l Motor Non-Prop.",null,null,null,null,null,null,null,null,{"$f":"'Schedule IIIA (EBS)'!O28","v":0}]
["Sch IIIA","Losses by Zone",null,"Res. Zn 11 - Int'l Casualty",null,null,null,null,null,null,null,null,{"$f":"'Schedule IIIA (EBS)'!O29","v":0}]
["Sch IIIA","Losses by Zone",null,"Res. Zn 11 - Int'l Casualty Non-Prop.",null,null,null,null,null,null,null,null,{"$f":"'Schedule IIIA (EBS)'!O30","v":0}]
["Sch IIIA","Losses by Zone",null,"Res. Zn 11 - Retro Property",null,null,null,null,null,null,null,null,{"$f":"'Schedule IIIA (EBS)'!O31","v":0}]
["Sch IIIA","Losses by Zone",null,"Res. Zn 11 - Structured / Finite R/I",null,null,null,null,null,null,null,null,{"$f":"'Schedule IIIA (EBS)'!O32","v":0}]
["Sch IIIA","Losses by Zone",null,"Res. Zn 11 - Health",null,null,null,null,null,null,null,null,{"$f":"'Schedule IIIA (EBS)'!O33","v":0}]
["Sch IIIA","Losses by Zone",null,"Res. Zn 11 - Total",null,null,null,null,null,null,null,null,{"$f":"'Schedule IIIA (EBS)'!O34","v":0}]
["Sch IIIA","Losses by Zone",null,"Res. Zn 12 - Property Catastrophe",null,null,null,null,null,null,null,null,{"$f":"'Schedule IIIA (EBS)'!P10","v":0}]
["Sch IIIA","Losses by Zone",null,"Res. Zn 12 - Property",null,null,null,null,null,null,null,null,{"$f":"'Schedule IIIA (EBS)'!P11","v":0}]
["Sch IIIA","Losses by Zone",null,"Res. Zn 12 - Property Non-Proportion",null,null,null,null,null,null,null,null,{"$f":"'Schedule IIIA (EBS)'!P12","v":0}]
["Sch IIIA","Losses by Zone",null,"Res. Zn 12 - Personal Accident",null,null,null,null,null,null,null,null,{"$f":"'Schedule IIIA (EBS)'!P13","v":0}]
["Sch IIIA","Losses by Zone",null,"Res. Zn 12 - Personal Acc. Non Prop.",null,null,null,null,null,null,null,null,{"$f":"'Schedule IIIA (EBS)'!P14","v":0}]
["Sch IIIA","Losses by Zone",null,"Res. Zn 12 - Aviation",null,null,null,null,null,null,null,null,{"$f":"'Schedule IIIA (EBS)'!P15","v":0}]
["Sch IIIA","Losses by Zone",null,"Res. Zn 12 - Aviation Non-Proportional",null,null,null,null,null,null,null,null,{"$f":"'Schedule IIIA (EBS)'!P16","v":0}]
["Sch IIIA","Losses by Zone",null,"Res. Zn 12 - Credit Surety",null,null,null,null,null,null,null,null,{"$f":"'Schedule IIIA (EBS)'!P17","v":0}]
["Sch IIIA","Losses by Zone",null,"Res. Zn 12 - Credit Surety Non-Prop.",null,null,null,null,null,null,null,null,{"$f":"'Schedule IIIA (EBS)'!P18","v":0}]
["Sch IIIA","Losses by Zone",null,"Res. Zn 12 - Energy",null,null,null,null,null,null,null,null,{"$f":"'Schedule IIIA (EBS)'!P19","v":0}]
["Sch IIIA","Losses by Zone",null,"Res. Zn 12 - Energy Non-Proportional",null,null,null,null,null,null,null,null,{"$f":"'Schedule IIIA (EBS)'!P20","v":0}]
["Sch IIIA","Losses by Zone",null,"Res. Zn 12 - US Casualty",null,null,null,null,null,null,null,null,{"$f":"'Schedule IIIA (EBS)'!P21","v":0}]
["Sch IIIA","Losses by Zone",null,"Res. Zn 12 - US Casualty Non-Prop.",null,null,null,null,null,null,null,null,{"$f":"'Schedule IIIA (EBS)'!P22","v":0}]
["Sch IIIA","Losses by Zone",null,"Res. Zn 12 - US Professional",null,null,null,null,null,null,null,null,{"$f":"'Schedule IIIA (EBS)'!P23","v":0}]
["Sch IIIA","Losses by Zone",null,"Res. Zn 12 - US Professional Non-Prop.",null,null,null,null,null,null,null,null,{"$f":"'Schedule IIIA (EBS)'!P24","v":0}]
["Sch IIIA","Losses by Zone",null,"Res. Zn 12 - US Specialty",null,null,null,null,null,null,null,null,{"$f":"'Schedule IIIA (EBS)'!P25","v":0}]
["Sch IIIA","Losses by Zone",null,"Res. Zn 12 - US Specialty Non-Prop.",null,null,null,null,null,null,null,null,{"$f":"'Schedule IIIA (EBS)'!P26","v":0}]
["Sch IIIA","Losses by Zone",null,"Res. Zn 12 - Int'l Motor",null,null,null,null,null,null,null,null,{"$f":"'Schedule IIIA (EBS)'!P27","v":0}]
["Sch IIIA","Losses by Zone",null,"Res. Zn 12 - Int'l Motor Non-Prop.",null,null,null,null,null,null,null,null,{"$f":"'Schedule IIIA (EBS)'!P28","v":0}]
["Sch IIIA","Losses by Zone",null,"Res. Zn 12 - Int'l Casualty",null,null,null,null,null,null,null,null,{"$f":"'Schedule IIIA (EBS)'!P29","v":0}]
["Sch IIIA","Losses by Zone",null,"Res. Zn 12 - Int'l Casualty Non-Prop.",null,null,null,null,null,null,null,null,{"$f":"'Schedule IIIA (EBS)'!P30","v":0}]
["Sch IIIA","Losses by Zone",null,"Res. Zn 12 - Retro Property",null,null,null,null,null,null,null,null,{"$f":"'Schedule IIIA (EBS)'!P31","v":0}]
["Sch IIIA","Losses by Zone",null,"Res. Zn 12 - Structured / Finite R/I",null,null,null,null,null,null,null,null,{"$f":"'Schedule IIIA (EBS)'!P32","v":0}]
["Sch IIIA","Losses by Zone",null,"Res. Zn 12 - Health",null,null,null,null,null,null,null,null,{"$f":"'Schedule IIIA (EBS)'!P33","v":0}]
["Sch IIIA","Losses by Zone",null,"Res. Zn 12 - Total",null,null,null,null,null,null,null,null,{"$f":"'Schedule IIIA (EBS)'!P34","v":0}]
["Sch IIIA","Losses by Zone",null,"Res. Zn 13 - Property Catastrophe",null,null,null,null,null,null,null,null,{"$f":"'Schedule IIIA (EBS)'!Q10","v":0}]
["Sch IIIA","Losses by Zone",null,"Res. Zn 13 - Property",null,null,null,null,null,null,null,null,{"$f":"'Schedule IIIA (EBS)'!Q11","v":0}]
["Sch IIIA","Losses by Zone",null,"Res. Zn 13 - Property Non-Proportion",null,null,null,null,null,null,null,null,{"$f":"'Schedule IIIA (EBS)'!Q12","v":0}]
["Sch IIIA","Losses by Zone",null,"Res. Zn 13 - Personal Accident",null,null,null,null,null,null,null,null,{"$f":"'Schedule IIIA (EBS)'!Q13","v":0}]
["Sch IIIA","Losses by Zone",null,"Res. Zn 13 - Personal Acc. Non Prop.",null,null,null,null,null,null,null,null,{"$f":"'Schedule IIIA (EBS)'!Q14","v":0}]
["Sch IIIA","Losses by Zone",null,"Res. Zn 13 - Aviation",null,null,null,null,null,null,null,null,{"$f":"'Schedule IIIA (EBS)'!Q15","v":0}]
["Sch IIIA","Losses by Zone",null,"Res. Zn 13 - Aviation Non-Proportional",null,null,null,null,null,null,null,null,{"$f":"'Schedule IIIA (EBS)'!Q16","v":0}]
["Sch IIIA","Losses by Zone",null,"Res. Zn 13 - Credit Surety",null,null,null,null,null,null,null,null,{"$f":"'Schedule IIIA (EBS)'!Q17","v":0}]
["Sch IIIA","Losses by Zone",null,"Res. Zn 13 - Credit Surety Non-Prop.",null,null,null,null,null,null,null,null,{"$f":"'Schedule IIIA (EBS)'!Q18","v":0}]
["Sch IIIA","Losses by Zone",null,"Res. Zn 13 - Energy",null,null,null,null,null,null,null,null,{"$f":"'Schedule IIIA (EBS)'!Q19","v":0}]
["Sch IIIA","Losses by Zone",null,"Res. Zn 13 - Energy Non-Proportional",null,null,null,null,null,null,null,null,{"$f":"'Schedule IIIA (EBS)'!Q20","v":0}]
["Sch IIIA","Losses by Zone",null,"Res. Zn 13 - US Casualty",null,null,null,null,null,null,null,null,{"$f":"'Schedule IIIA (EBS)'!Q21","v":0}]
["Sch IIIA","Losses by Zone",null,"Res. Zn 13 - US Casualty Non-Prop.",null,null,null,null,null,null,null,null,{"$f":"'Schedule IIIA (EBS)'!Q22","v":0}]
["Sch IIIA","Losses by Zone",null,"Res. Zn 13 - US Professional",null,null,null,null,null,null,null,null,{"$f":"'Schedule IIIA (EBS)'!Q23","v":0}]
["Sch IIIA","Losses by Zone",null,"Res. Zn 13 - US Professional Non-Prop.",null,null,null,null,null,null,null,null,{"$f":"'Schedule IIIA (EBS)'!Q24","v":0}]
["Sch IIIA","Losses by Zone",null,"Res. Zn 13 - US Specialty",null,null,null,null,null,null,null,null,{"$f":"'Schedule IIIA (EBS)'!Q25","v":0}]
["Sch IIIA","Losses by Zone",null,"Res. Zn 13 - US Specialty Non-Prop.",null,null,null,null,null,null,null,null,{"$f":"'Schedule IIIA (EBS)'!Q26","v":0}]
["Sch IIIA","Losses by Zone",null,"Res. Zn 13 - Int'l Motor",null,null,null,null,null,null,null,null,{"$f":"'Schedule IIIA (EBS)'!Q27","v":0}]
["Sch IIIA","Losses by Zone",null,"Res. Zn 13 - Int'l Motor Non-Prop.",null,null,null,null,null,null,null,null,{"$f":"'Schedule IIIA (EBS)'!Q28","v":0}]
["Sch IIIA","Losses by Zone",null,"Res. Zn 13 - Int'l Casualty",null,null,null,null,null,null,null,null,{"$f":"'Schedule IIIA (EBS)'!Q29","v":0}]
["Sch IIIA","Losses by Zone",null,"Res. Zn 13 - Int'l Casualty Non-Prop.",null,null,null,null,null,null,null,null,{"$f":"'Schedule IIIA (EBS)'!Q30","v":0}]
["Sch IIIA","Losses by Zone",null,"Res. Zn 13 - Retro Property",null,null,null,null,null,null,null,null,{"$f":"'Schedule IIIA (EBS)'!Q31","v":0}]
["Sch IIIA","Losses by Zone",null,"Res. Zn 13 - Structured / Finite R/I",null,null,null,null,null,null,null,null,{"$f":"'Schedule IIIA (EBS)'!Q32","v":0}]
["Sch IIIA","Losses by Zone",null,"Res. Zn 13 - Health",null,null,null,null,null,null,null,null,{"$f":"'Schedule IIIA (EBS)'!Q33","v":0}]
["Sch IIIA","Losses by Zone",null,"Res. Zn 13 - Total",null,null,null,null,null,null,null,null,{"$f":"'Schedule IIIA (EBS)'!Q34","v":0}]
["Sch IIIA","Losses by Zone",null,"Res. Zn 14 - Property Catastrophe",null,null,null,null,null,null,null,null,{"$f":"'Schedule IIIA (EBS)'!R10","v":0}]
["Sch IIIA","Losses by Zone",null,"Res. Zn 14 - Property",null,null,null,null,null,null,null,null,{"$f":"'Schedule IIIA (EBS)'!R11","v":0}]
["Sch IIIA","Losses by Zone",null,"Res. Zn 14 - Property Non-Proportion",null,null,null,null,null,null,null,null,{"$f":"'Schedule IIIA (EBS)'!R12","v":0}]
["Sch IIIA","Losses by Zone",null,"Res. Zn 14 - Personal Accident",null,null,null,null,null,null,null,null,{"$f":"'Schedule IIIA (EBS)'!R13","v":0}]
["Sch IIIA","Losses by Zone",null,"Res. Zn 14 - Personal Acc. Non Prop.",null,null,null,null,null,null,null,null,{"$f":"'Schedule IIIA (EBS)'!R14","v":0}]
["Sch IIIA","Losses by Zone",null,"Res. Zn 14 - Aviation",null,null,null,null,null,null,null,null,{"$f":"'Schedule IIIA (EBS)'!R15","v":0}]
["Sch IIIA","Losses by Zone",null,"Res. Zn 14 - Aviation Non-Proportional",null,null,null,null,null,null,null,null,{"$f":"'Schedule IIIA (EBS)'!R16","v":0}]
["Sch IIIA","Losses by Zone",null,"Res. Zn 14 - Credit Surety",null,null,null,null,null,null,null,null,{"$f":"'Schedule IIIA (EBS)'!R17","v":0}]
["Sch IIIA","Losses by Zone",null,"Res. Zn 14 - Credit Surety Non-Prop.",null,null,null,null,null,null,null,null,{"$f":"'Schedule IIIA (EBS)'!R18","v":0}]
["Sch IIIA","Losses by Zone",null,"Res. Zn 14 - Energy",null,null,null,null,null,null,null,null,{"$f":"'Schedule IIIA (EBS)'!R19","v":0}]
["Sch IIIA","Losses by Zone",null,"Res. Zn 14 - Energy Non-Proportional",null,null,null,null,null,null,null,null,{"$f":"'Schedule IIIA (EBS)'!R20","v":0}]
["Sch IIIA","Losses by Zone",null,"Res. Zn 14 - US Casualty",null,null,null,null,null,null,null,null,{"$f":"'Schedule IIIA (EBS)'!R21","v":0}]
["Sch IIIA","Losses by Zone",null,"Res. Zn 14 - US Casualty Non-Prop.",null,null,null,null,null,null,null,null,{"$f":"'Schedule IIIA (EBS)'!R22","v":0}]
["Sch IIIA","Losses by Zone",null,"Res. Zn 14 - US Professional",null,null,null,null,null,null,null,null,{"$f":"'Schedule IIIA (EBS)'!R23","v":0}]
["Sch IIIA","Losses by Zone",null,"Res. Zn 14 - US Professional Non-Prop.",null,null,null,null,null,null,null,null,{"$f":"'Schedule IIIA (EBS)'!R24","v":0}]
["Sch IIIA","Losses by Zone",null,"Res. Zn 14 - US Specialty",null,null,null,null,null,null,null,null,{"$f":"'Schedule IIIA (EBS)'!R25","v":0}]
["Sch IIIA","Losses by Zone",null,"Res. Zn 14 - US Specialty Non-Prop.",null,null,null,null,null,null,null,null,{"$f":"'Schedule IIIA (EBS)'!R26","v":0}]
["Sch IIIA","Losses by Zone",null,"Res. Zn 14 - Int'l Motor",null,null,null,null,null,null,null,null,{"$f":"'Schedule IIIA (EBS)'!R27","v":0}]
["Sch IIIA","Losses by Zone",null,"Res. Zn 14 - Int'l Motor Non-Prop.",null,null,null,null,null,null,null,null,{"$f":"'Schedule IIIA (EBS)'!R28","v":0}]
["Sch IIIA","Losses by Zone",null,"Res. Zn 14 - Int'l Casualty",null,null,null,null,null,null,null,null,{"$f":"'Schedule IIIA (EBS)'!R29","v":0}]
["Sch IIIA","Losses by Zone",null,"Res. Zn 14 - Int'l Casualty Non-Prop.",null,null,null,null,null,null,null,null,{"$f":"'Schedule IIIA (EBS)'!R30","v":0}]
["Sch IIIA","Losses by Zone",null,"Res. Zn 14 - Retro Property",null,null,null,null,null,null,null,null,{"$f":"'Schedule IIIA (EBS)'!R31","v":0}]
["Sch IIIA","Losses by Zone",null,"Res. Zn 14 - Structured / Finite R/I",null,null,null,null,null,null,null,null,{"$f":"'Schedule IIIA (EBS)'!R32","v":0}]
["Sch IIIA","Losses by Zone",null,"Res. Zn 14 - Health",null,null,null,null,null,null,null,null,{"$f":"'Schedule IIIA (EBS)'!R33","v":0}]
["Sch IIIA","Losses by Zone",null,"Res. Zn 14 - Total",null,null,null,null,null,null,null,null,{"$f":"'Schedule IIIA (EBS)'!R34","v":0}]
["Sch IIIA","Losses by Zone",null,"Res. Zn 15 - Property Catastrophe",null,null,null,null,null,null,null,null,{"$f":"'Schedule IIIA (EBS)'!S10","v":0}]
["Sch IIIA","Losses by Zone",null,"Res. Zn 15 - Property",null,null,null,null,null,null,null,null,{"$f":"'Schedule IIIA (EBS)'!S11","v":0}]
["Sch IIIA","Losses by Zone",null,"Res. Zn 15 - Property Non-Proportion",null,null,null,null,null,null,null,null,{"$f":"'Schedule IIIA (EBS)'!S12","v":0}]
["Sch IIIA","Losses by Zone",null,"Res. Zn 15 - Personal Accident",null,null,null,null,null,null,null,null,{"$f":"'Schedule IIIA (EBS)'!S13","v":0}]
["Sch IIIA","Losses by Zone",null,"Res. Zn 15 - Personal Acc. Non Prop.",null,null,null,null,null,null,null,null,{"$f":"'Schedule IIIA (EBS)'!S14","v":0}]
["Sch IIIA","Losses by Zone",null,"Res. Zn 15 - Aviation",null,null,null,null,null,null,null,null,{"$f":"'Schedule IIIA (EBS)'!S15","v":0}]
["Sch IIIA","Losses by Zone",null,"Res. Zn 15 - Aviation Non-Proportional",null,null,null,null,null,null,null,null,{"$f":"'Schedule IIIA (EBS)'!S16","v":0}]
["Sch IIIA","Losses by Zone",null,"Res. Zn 15 - Credit Surety",null,null,null,null,null,null,null,null,{"$f":"'Schedule IIIA (EBS)'!S17","v":0}]
["Sch IIIA","Losses by Zone",null,"Res. Zn 15 - Credit Surety Non-Prop.",null,null,null,null,null,null,null,null,{"$f":"'Schedule IIIA (EBS)'!S18","v":0}]
["Sch IIIA","Losses by Zone",null,"Res. Zn 15 - Energy",null,null,null,null,null,null,null,null,{"$f":"'Schedule IIIA (EBS)'!S19","v":0}]
["Sch IIIA","Losses by Zone",null,"Res. Zn 15 - Energy Non-Proportional",null,null,null,null,null,null,null,null,{"$f":"'Schedule IIIA (EBS)'!S20","v":0}]
["Sch IIIA","Losses by Zone",null,"Res. Zn 15 - US Casualty",null,null,null,null,null,null,null,null,{"$f":"'Schedule IIIA (EBS)'!S21","v":0}]
["Sch IIIA","Losses by Zone",null,"Res. Zn 15 - US Casualty Non-Prop.",null,null,null,null,null,null,null,null,{"$f":"'Schedule IIIA (EBS)'!S22","v":0}]
["Sch IIIA","Losses by Zone",null,"Res. Zn 15 - US Professional",null,null,null,null,null,null,null,null,{"$f":"'Schedule IIIA (EBS)'!S23","v":0}]
["Sch IIIA","Losses by Zone",null,"Res. Zn 15 - US Professional Non-Prop.",null,null,null,null,null,null,null,null,{"$f":"'Schedule IIIA (EBS)'!S24","v":0}]
["Sch IIIA","Losses by Zone",null,"Res. Zn 15 - US Specialty",null,null,null,null,null,null,null,null,{"$f":"'Schedule IIIA (EBS)'!S25","v":0}]
["Sch IIIA","Losses by Zone",null,"Res. Zn 15 - US Specialty Non-Prop.",null,null,null,null,null,null,null,null,{"$f":"'Schedule IIIA (EBS)'!S26","v":0}]
["Sch IIIA","Losses by Zone",null,"Res. Zn 15 - Int'l Motor",null,null,null,null,null,null,null,null,{"$f":"'Schedule IIIA (EBS)'!S27","v":0}]
["Sch IIIA","Losses by Zone",null,"Res. Zn 15 - Int'l Motor Non-Prop.",null,null,null,null,null,null,null,null,{"$f":"'Schedule IIIA (EBS)'!S28","v":0}]
["Sch IIIA","Losses by Zone",null,"Res. Zn 15 - Int'l Casualty",null,null,null,null,null,null,null,null,{"$f":"'Schedule IIIA (EBS)'!S29","v":0}]
["Sch IIIA","Losses by Zone",null,"Res. Zn 15 - Int'l Casualty Non-Prop.",null,null,null,null,null,null,null,null,{"$f":"'Schedule IIIA (EBS)'!S30","v":0}]
["Sch IIIA","Losses by Zone",null,"Res. Zn 15 - Retro Property",null,null,null,null,null,null,null,null,{"$f":"'Schedule IIIA (EBS)'!S31","v":0}]
["Sch IIIA","Losses by Zone",null,"Res. Zn 15 - Structured / Finite R/I",null,null,null,null,null,null,null,null,{"$f":"'Schedule IIIA (EBS)'!S32","v":0}]
["Sch IIIA","Losses by Zone",null,"Res. Zn 15 - Health",null,null,null,null,null,null,null,null,{"$f":"'Schedule IIIA (EBS)'!S33","v":0}]
["Sch IIIA","Losses by Zone",null,"Res. Zn 15 - Total",null,null,null,null,null,null,null,null,{"$f":"'Schedule IIIA (EBS)'!S34","v":0}]
["Sch IIIA","Losses by Zone",null,"Res. Zn 16 - Property Catastrophe",null,null,null,null,null,null,null,null,{"$f":"'Schedule IIIA (EBS)'!T10","v":0}]
["Sch IIIA","Losses by Zone",null,"Res. Zn 16 - Property",null,null,null,null,null,null,null,null,{"$f":"'Schedule IIIA (EBS)'!T11","v":0}]
["Sch IIIA","Losses by Zone",null,"Res. Zn 16 - Property Non-Proportion",null,null,null,null,null,null,null,null,{"$f":"'Schedule IIIA (EBS)'!T12","v":0}]
["Sch IIIA","Losses by Zone",null,"Res. Zn 16 - Personal Accident",null,null,null,null,null,null,null,null,{"$f":"'Schedule IIIA (EBS)'!T13","v":0}]
["Sch IIIA","Losses by Zone",null,"Res. Zn 16 - Personal Acc. Non Prop.",null,null,null,null,null,null,null,null,{"$f":"'Schedule IIIA (EBS)'!T14","v":0}]
["Sch IIIA","Losses by Zone",null,"Res. Zn 16 - Aviation",null,null,null,null,null,null,null,null,{"$f":"'Schedule IIIA (EBS)'!T15","v":0}]
["Sch IIIA","Losses by Zone",null,"Res. Zn 16 - Aviation Non-Proportional",null,null,null,null,null,null,null,null,{"$f":"'Schedule IIIA (EBS)'!T16","v":0}]
["Sch IIIA","Losses by Zone",null,"Res. Zn 16 - Credit Surety",null,null,null,null,null,null,null,null,{"$f":"'Schedule IIIA (EBS)'!T17","v":0}]
["Sch IIIA","Losses by Zone",null,"Res. Zn 16 - Credit Surety Non-Prop.",null,null,null,null,null,null,null,null,{"$f":"'Schedule IIIA (EBS)'!T18","v":0}]
["Sch IIIA","Losses by Zone",null,"Res. Zn 16 - Energy",null,null,null,null,null,null,null,null,{"$f":"'Schedule IIIA (EBS)'!T19","v":0}]
["Sch IIIA","Losses by Zone",null,"Res. Zn 16 - Energy Non-Proportional",null,null,null,null,null,null,null,null,{"$f":"'Schedule IIIA (EBS)'!T20","v":0}]
["Sch IIIA","Losses by Zone",null,"Res. Zn 16 - US Casualty",null,null,null,null,null,null,null,null,{"$f":"'Schedule IIIA (EBS)'!T21","v":0}]
["Sch IIIA","Losses by Zone",null,"Res. Zn 16 - US Casualty Non-Prop.",null,null,null,null,null,null,null,null,{"$f":"'Schedule IIIA (EBS)'!T22","v":0}]
["Sch IIIA","Losses by Zone",null,"Res. Zn 16 - US Professional",null,null,null,null,null,null,null,null,{"$f":"'Schedule IIIA (EBS)'!T23","v":0}]
["Sch IIIA","Losses by Zone",null,"Res. Zn 16 - US Professional Non-Prop.",null,null,null,null,null,null,null,null,{"$f":"'Schedule IIIA (EBS)'!T24","v":0}]
["Sch IIIA","Losses by Zone",null,"Res. Zn 16 - US Specialty",null,null,null,null,null,null,null,null,{"$f":"'Schedule IIIA (EBS)'!T25","v":0}]
["Sch IIIA","Losses by Zone",null,"Res. Zn 16 - US Specialty Non-Prop.",null,null,null,null,null,null,null,null,{"$f":"'Schedule IIIA (EBS)'!T26","v":0}]
["Sch IIIA","Losses by Zone",null,"Res. Zn 16 - Int'l Motor",null,null,null,null,null,null,null,null,{"$f":"'Schedule IIIA (EBS)'!T27","v":0}]
["Sch IIIA","Losses by Zone",null,"Res. Zn 16 - Int'l Motor Non-Prop.",null,null,null,null,null,null,null,null,{"$f":"'Schedule IIIA (EBS)'!T28","v":0}]
["Sch IIIA","Losses by Zone",null,"Res. Zn 16 - Int'l Casualty",null,null,null,null,null,null,null,null,{"$f":"'Schedule IIIA (EBS)'!T29","v":0}]
["Sch IIIA","Losses by Zone",null,"Res. Zn 16 - Int'l Casualty Non-Prop.",null,null,null,null,null,null,null,null,{"$f":"'Schedule IIIA (EBS)'!T30","v":0}]
["Sch IIIA","Losses by Zone",null,"Res. Zn 16 - Retro Property",null,null,null,null,null,null,null,null,{"$f":"'Schedule IIIA (EBS)'!T31","v":0}]
["Sch IIIA","Losses by Zone",null,"Res. Zn 16 - Structured / Finite R/I",null,null,null,null,null,null,null,null,{"$f":"'Schedule IIIA (EBS)'!T32","v":0}]
["Sch IIIA","Losses by Zone",null,"Res. Zn 16 - Health",null,null,null,null,null,null,null,null,{"$f":"'Schedule IIIA (EBS)'!T33","v":0}]
["Sch IIIA","Losses by Zone",null,"Res. Zn 16 - Total",null,null,null,null,null,null,null,null,{"$f":"'Schedule IIIA (EBS)'!T34","v":0}]
["Sch IIIA","Losses by Zone",null,"Res. Zn 17 - Property Catastrophe",null,null,null,null,null,null,null,null,{"$f":"'Schedule IIIA (EBS)'!U10","v":0}]
["Sch IIIA","Losses by Zone",null,"Res. Zn 17 - Property",null,null,null,null,null,null,null,null,{"$f":"'Schedule IIIA (EBS)'!U11","v":0}]
["Sch IIIA","Losses by Zone",null,"Res. Zn 17 - Property Non-Proportion",null,null,null,null,null,null,null,null,{"$f":"'Schedule IIIA (EBS)'!U12","v":0}]
["Sch IIIA","Losses by Zone",null,"Res. Zn 17 - Personal Accident",null,null,null,null,null,null,null,null,{"$f":"'Schedule IIIA (EBS)'!U13","v":0}]
["Sch IIIA","Losses by Zone",null,"Res. Zn 17 - Personal Acc. Non Prop.",null,null,null,null,null,null,null,null,{"$f":"'Schedule IIIA (EBS)'!U14","v":0}]
["Sch IIIA","Losses by Zone",null,"Res. Zn 17 - Aviation",null,null,null,null,null,null,null,null,{"$f":"'Schedule IIIA (EBS)'!U15","v":0}]
["Sch IIIA","Losses by Zone",null,"Res. Zn 17 - Aviation Non-Proportional",null,null,null,null,null,null,null,null,{"$f":"'Schedule IIIA (EBS)'!U16","v":0}]
["Sch IIIA","Losses by Zone",null,"Res. Zn 17 - Credit Surety",null,null,null,null,null,null,null,null,{"$f":"'Schedule IIIA (EBS)'!U17","v":0}]
["Sch IIIA","Losses by Zone",null,"Res. Zn 17 - Credit Surety Non-Prop.",null,null,null,null,null,null,null,null,{"$f":"'Schedule IIIA (EBS)'!U18","v":0}]
["Sch IIIA","Losses by Zone",null,"Res. Zn 17 - Energy",null,null,null,null,null,null,null,null,{"$f":"'Schedule IIIA (EBS)'!U19","v":0}]
["Sch IIIA","Losses by Zone",null,"Res. Zn 17 - Energy Non-Proportional",null,null,null,null,null,null,null,null,{"$f":"'Schedule IIIA (EBS)'!U20","v":0}]
["Sch IIIA","Losses by Zone",null,"Res. Zn 17 - US Casualty",null,null,null,null,null,null,null,null,{"$f":"'Schedule IIIA (EBS)'!U21","v":0}]
["Sch IIIA","Losses by Zone",null,"Res. Zn 17 - US Casualty Non-Prop.",null,null,null,null,null,null,null,null,{"$f":"'Schedule IIIA (EBS)'!U22","v":0}]
["Sch IIIA","Losses by Zone",null,"Res. Zn 17 - US Professional",null,null,null,null,null,null,null,null,{"$f":"'Schedule IIIA (EBS)'!U23","v":0}]
["Sch IIIA","Losses by Zone",null,"Res. Zn 17 - US Professional Non-Prop.",null,null,null,null,null,null,null,null,{"$f":"'Schedule IIIA (EBS)'!U24","v":0}]
["Sch IIIA","Losses by Zone",null,"Res. Zn 17 - US Specialty",null,null,null,null,null,null,null,null,{"$f":"'Schedule IIIA (EBS)'!U25","v":0}]
["Sch IIIA","Losses by Zone",null,"Res. Zn 17 - US Specialty Non-Prop.",null,null,null,null,null,null,null,null,{"$f":"'Schedule IIIA (EBS)'!U26","v":0}]
["Sch IIIA","Losses by Zone",null,"Res. Zn 17 - Int'l Motor",null,null,null,null,null,null,null,null,{"$f":"'Schedule IIIA (EBS)'!U27","v":0}]
["Sch IIIA","Losses by Zone",null,"Res. Zn 17 - Int'l Motor Non-Prop.",null,null,null,null,null,null,null,null,{"$f":"'Schedule IIIA (EBS)'!U28","v":0}]
["Sch IIIA","Losses by Zone",null,"Res. Zn 17 - Int'l Casualty",null,null,null,null,null,null,null,null,{"$f":"'Schedule IIIA (EBS)'!U29","v":0}]
["Sch IIIA","Losses by Zone",null,"Res. Zn 17 - Int'l Casualty Non-Prop.",null,null,null,null,null,null,null,null,{"$f":"'Schedule IIIA (EBS)'!U30","v":0}]
["Sch IIIA","Losses by Zone",null,"Res. Zn 17 - Retro Property",null,null,null,null,null,null,null,null,{"$f":"'Schedule IIIA (EBS)'!U31","v":0}]
["Sch IIIA","Losses by Zone",null,"Res. Zn 17 - Structured / Finite R/I",null,null,null,null,null,null,null,null,{"$f":"'Schedule IIIA (EBS)'!U32","v":0}]
["Sch IIIA","Losses by Zone",null,"Res. Zn 17 - Health",null,null,null,null,null,null,null,null,{"$f":"'Schedule IIIA (EBS)'!U33","v":0}]
["Sch IIIA","Losses by Zone",null,"Res. Zn 17 - Total",null,null,null,null,null,null,null,null,{"$f":"'Schedule IIIA (EBS)'!U34","v":0}]
["Sch IIIA","Losses by Zone",null,"Res. Zn 18 - Property Catastrophe",null,null,null,null,null,null,null,null,{"$f":"'Schedule IIIA (EBS)'!V10","v":0}]
["Sch IIIA","Losses by Zone",null,"Res. Zn 18 - Property",null,null,null,null,null,null,null,null,{"$f":"'Schedule IIIA (EBS)'!V11","v":0}]
["Sch IIIA","Losses by Zone",null,"Res. Zn 18 - Property Non-Proportion",null,null,null,null,null,null,null,null,{"$f":"'Schedule IIIA (EBS)'!V12","v":0}]
["Sch IIIA","Losses by Zone",null,"Res. Zn 18 - Personal Accident",null,null,null,null,null,null,null,null,{"$f":"'Schedule IIIA (EBS)'!V13","v":0}]
["Sch IIIA","Losses by Zone",null,"Res. Zn 18 - Personal Acc. Non Prop.",null,null,null,null,null,null,null,null,{"$f":"'Schedule IIIA (EBS)'!V14","v":0}]
["Sch IIIA","Losses by Zone",null,"Res. Zn 18 - Aviation",null,null,null,null,null,null,null,null,{"$f":"'Schedule IIIA (EBS)'!V15","v":0}]
["Sch IIIA","Losses by Zone",null,"Res. Zn 18 - Aviation Non-Proportional",null,null,null,null,null,null,null,null,{"$f":"'Schedule IIIA (EBS)'!V16","v":0}]
["Sch IIIA","Losses by Zone",null,"Res. Zn 18 - Credit Surety",null,null,null,null,null,null,null,null,{"$f":"'Schedule IIIA (EBS)'!V17","v":0}]
["Sch IIIA","Losses by Zone",null,"Res. Zn 18 - Credit Surety Non-Prop.",null,null,null,null,null,null,null,null,{"$f":"'Schedule IIIA (EBS)'!V18","v":0}]
["Sch IIIA","Losses by Zone",null,"Res. Zn 18 - Energy",null,null,null,null,null,null,null,null,{"$f":"'Schedule IIIA (EBS)'!V19","v":0}]
["Sch IIIA","Losses by Zone",null,"Res. Zn 18 - Energy Non-Proportional",null,null,null,null,null,null,null,null,{"$f":"'Schedule IIIA (EBS)'!V20","v":0}]
["Sch IIIA","Losses by Zone",null,"Res. Zn 18 - US Casualty",null,null,null,null,null,null,null,null,{"$f":"'Schedule IIIA (EBS)'!V21","v":0}]
["Sch IIIA","Losses by Zone",null,"Res. Zn 18 - US Casualty Non-Prop.",null,null,null,null,null,null,null,null,{"$f":"'Schedule IIIA (EBS)'!V22","v":0}]
["Sch IIIA","Losses by Zone",null,"Res. Zn 18 - US Professional",null,null,null,null,null,null,null,null,{"$f":"'Schedule IIIA (EBS)'!V23","v":0}]
["Sch IIIA","Losses by Zone",null,"Res. Zn 18 - US Professional Non-Prop.",null,null,null,null,null,null,null,null,{"$f":"'Schedule IIIA (EBS)'!V24","v":0}]
["Sch IIIA","Losses by Zone",null,"Res. Zn 18 - US Specialty",null,null,null,null,null,null,null,null,{"$f":"'Schedule IIIA (EBS)'!V25","v":0}]
["Sch IIIA","Losses by Zone",null,"Res. Zn 18 - US Specialty Non-Prop.",null,null,null,null,null,null,null,null,{"$f":"'Schedule IIIA (EBS)'!V26","v":0}]
["Sch IIIA","Losses by Zone",null,"Res. Zn 18 - Int'l Motor",null,null,null,null,null,null,null,null,{"$f":"'Schedule IIIA (EBS)'!V27","v":0}]
["Sch IIIA","Losses by Zone",null,"Res. Zn 18 - Int'l Motor Non-Prop.",null,null,null,null,null,null,null,null,{"$f":"'Schedule IIIA (EBS)'!V28","v":0}]
["Sch IIIA","Losses by Zone",null,"Res. Zn 18 - Int'l Casualty",null,null,null,null,null,null,null,null,{"$f":"'Schedule IIIA (EBS)'!V29","v":0}]
["Sch IIIA","Losses by Zone",null,"Res. Zn 18 - Int'l Casualty Non-Prop.",null,null,null,null,null,null,null,null,{"$f":"'Schedule IIIA (EBS)'!V30","v":0}]
["Sch IIIA","Losses by Zone",null,"Res. Zn 18 - Retro Property",null,null,null,null,null,null,null,null,{"$f":"'Schedule IIIA (EBS)'!V31","v":0}]
["Sch IIIA","Losses by Zone",null,"Res. Zn 18 - Structured / Finite R/I",null,null,null,null,null,null,null,null,{"$f":"'Schedule IIIA (EBS)'!V32","v":0}]
["Sch IIIA","Losses by Zone",null,"Res. Zn 18 - Health",null,null,null,null,null,null,null,null,{"$f":"'Schedule IIIA (EBS)'!V33","v":0}]
["Sch IIIA","Losses by Zone",null,"Res. Zn 18 - Total",null,null,null,null,null,null,null,null,{"$f":"'Schedule IIIA (EBS)'!V34","v":0}]
["Sch IIIA","Losses by Zone",null,"Res. Total - Property Catastrophe",null,null,null,null,null,null,null,null,{"$f":"'Schedule IIIA (EBS)'!X10","v":0}]
["Sch IIIA","Losses by Zone",null,"Res. Total - Property",null,null,null,null,null,null,null,null,{"$f":"'Schedule IIIA (EBS)'!X11","v":0}]
["Sch IIIA","Losses by Zone",null,"Res. Total - Property Non-Proportion",null,null,null,null,null,null,null,null,{"$f":"'Schedule IIIA (EBS)'!X12","v":0}]
["Sch IIIA","Losses by Zone",null,"Res. Total - Personal Accident",null,null,null,null,null,null,null,null,{"$f":"'Schedule IIIA (EBS)'!X13","v":0}]
["Sch IIIA","Losses by Zone",null,"Res. Total - Personal Acc. Non Prop.",null,null,null,null,null,null,null,null,{"$f":"'Schedule IIIA (EBS)'!X14","v":0}]
["Sch IIIA","Losses by Zone",null,"Res. Total - Aviation",null,null,null,null,null,null,null,null,{"$f":"'Schedule IIIA (EBS)'!X15","v":0}]
["Sch IIIA","Losses by Zone",null,"Res. Total - Aviation Non-Proportional",null,null,null,null,null,null,null,null,{"$f":"'Schedule IIIA (EBS)'!X16","v":0}]
["Sch IIIA","Losses by Zone",null,"Res. Total - Credit Surety",null,null,null,null,null,null,null,null,{"$f":"'Schedule IIIA (EBS)'!X17","v":0}]
["Sch IIIA","Losses by Zone",null,"Res. Total - Credit Surety Non-Prop.",null,null,null,null,null,null,null,null,{"$f":"'Schedule IIIA (EBS)'!X18","v":0}]
["Sch IIIA","Losses by Zone",null,"Res. Total - Energy",null,null,null,null,null,null,null,null,{"$f":"'Schedule IIIA (EBS)'!X19","v":0}]
["Sch IIIA","Losses by Zone",null,"Res. Total - Energy Non-Proportional",null,null,null,null,null,null,null,null,{"$f":"'Schedule IIIA (EBS)'!X20","v":0}]
["Sch IIIA","Losses by Zone",null,"Res. Total - US Casualty",null,null,null,null,null,null,null,null,{"$f":"'Schedule IIIA (EBS)'!X21","v":0}]
["Sch IIIA","Losses by Zone",null,"Res. Total - US Casualty Non-Prop.",null,null,null,null,null,null,null,null,{"$f":"'Schedule IIIA (EBS)'!X22","v":0}]
["Sch IIIA","Losses by Zone",null,"Res. Total - US Professional",null,null,null,null,null,null,null,null,{"$f":"'Schedule IIIA (EBS)'!X23","v":0}]
["Sch IIIA","Losses by Zone",null,"Res. Total - US Professional Non-Prop.",null,null,null,null,null,null,null,null,{"$f":"'Schedule IIIA (EBS)'!X24","v":0}]
["Sch IIIA","Losses by Zone",null,"Res. Total - US Specialty",null,null,null,null,null,null,null,null,{"$f":"'Schedule IIIA (EBS)'!X25","v":0}]
["Sch IIIA","Losses by Zone",null,"Res. Total - US Specialty Non-Prop.",null,null,null,null,null,null,null,null,{"$f":"'Schedule IIIA (EBS)'!X26","v":0}]
["Sch IIIA","Losses by Zone",null,"Res. Total - Int'l Motor",null,null,null,null,null,null,null,null,{"$f":"'Schedule IIIA (EBS)'!X27","v":0}]
["Sch IIIA","Losses by Zone",null,"Res. Total - Int'l Motor Non-Prop.",null,null,null,null,null,null,null,null,{"$f":"'Schedule IIIA (EBS)'!X28","v":0}]
["Sch IIIA","Losses by Zone",null,"Res. Total - Int'l Casualty",null,null,null,null,null,null,null,null,{"$f":"'Schedule IIIA (EBS)'!X29","v":0}]
["Sch IIIA","Losses by Zone",null,"Res. Total - Int'l Casualty Non-Prop.",null,null,null,null,null,null,null,null,{"$f":"'Schedule IIIA (EBS)'!X30","v":0}]
["Sch IIIA","Losses by Zone",null,"Res. Total - Retro Property",null,null,null,null,null,null,null,null,{"$f":"'Schedule IIIA (EBS)'!X31","v":0}]
["Sch IIIA","Losses by Zone",null,"Res. Total - Structured / Finite R/I",null,null,null,null,null,null,null,null,{"$f":"'Schedule IIIA (EBS)'!X32","v":0}]
["Sch IIIA","Losses by Zone",null,"Res. Total - Health",null,null,null,null,null,null,null,null,{"$f":"'Schedule IIIA (EBS)'!X33","v":0}]
["Sch IIIA","Losses by Zone",null,"Res. Total - Total",null,null,null,null,null,null,null,null,{"$f":"'Schedule IIIA (EBS)'!X34","v":0}]
[]
["Sch IV","Premium by Line",null,"Unrelated - Property Catastrophe",{"$f":"'Schedule IV'!E11","v":0},null,{"$f":"'Schedule IV'!G11","v":0},null,{"$f":"'Schedule IVA (EBS)'!E11","v":0},null,{"$f":"'Schedule IVA (EBS)'!G11","v":0}]
["Sch IV","Premium by Line",null,"Unrelated - Property",{"$f":"'Schedule IV'!E12","v":0},null,{"$f":"'Schedule IV'!G12","v":0},null,{"$f":"'Schedule IVA (EBS)'!E12","v":0},null,{"$f":"'Schedule IVA (EBS)'!G12","v":0}]
["Sch IV","Premium by Line",null,"Unrelated - Property Non-Proportion",{"$f":"'Schedule IV'!E13","v":0},null,{"$f":"'Schedule IV'!G13","v":0},null,{"$f":"'Schedule IVA (EBS)'!E13","v":0},null,{"$f":"'Schedule IVA (EBS)'!G13","v":0}]
["Sch IV","Premium by Line",null,"Unrelated - Personal Accident",{"$f":"'Schedule IV'!E14","v":0},null,{"$f":"'Schedule IV'!G14","v":0},null,{"$f":"'Schedule IVA (EBS)'!E14","v":0},null,{"$f":"'Schedule IVA (EBS)'!G14","v":0}]
["Sch IV","Premium by Line",null,"Unrelated - Personal Acc. Non Prop.",{"$f":"'Schedule IV'!E15","v":0},null,{"$f":"'Schedule IV'!G15","v":0},null,{"$f":"'Schedule IVA (EBS)'!E15","v":0},null,{"$f":"'Schedule IVA (EBS)'!G15","v":0}]
["Sch IV","Premium by Line",null,"Unrelated - Aviation",{"$f":"'Schedule IV'!E16","v":0},null,{"$f":"'Schedule IV'!G16","v":0},null,{"$f":"'Schedule IVA (EBS)'!E16","v":0},null,{"$f":"'Schedule IVA (EBS)'!G16","v":0}]
["Sch IV","Premium by Line",null,"Unrelated - Aviation Non-Proportional",{"$f":"'Schedule IV'!E17","v":0},null,{"$f":"'Schedule IV'!G17","v":0},null,{"$f":"'Schedule IVA (EBS)'!E17","v":0},null,{"$f":"'Schedule IVA (EBS)'!G17","v":0}]
["Sch IV","Premium by Line",null,"Unrelated - Credit Surety",{"$f":"'Schedule IV'!E18","v":0},null,{"$f":"'Schedule IV'!G18","v":0},null,{"$f":"'Schedule IVA (EBS)'!E18","v":0},null,{"$f":"'Schedule IVA (EBS)'!G18","v":0}]
["Sch IV","Premium by Line",null,"Unrelated - Credit Surety Non-Prop.",{"$f":"'Schedule IV'!E19","v":0},null,{"$f":"'Schedule IV'!G19","v":0},null,{"$f":"'Schedule IVA (EBS)'!E19","v":0},null,{"$f":"'Schedule IVA (EBS)'!G19","v":0}]
["Sch IV","Premium by Line",null,"Unrelated - Energy",{"$f":"'Schedule IV'!E20","v":0},null,{"$f":"'Schedule IV'!G20","v":0},null,{"$f":"'Schedule IVA (EBS)'!E20","v":0},null,{"$f":"'Schedule IVA (EBS)'!G20","v":0}]
["Sch IV","Premium by Line",null,"Unrelated - Energy Non-Proportional",{"$f":"'Schedule IV'!E21","v":0},null,{"$f":"'Schedule IV'!G21","v":0},null,{"$f":"'Schedule IVA (EBS)'!E21","v":0},null,{"$f":"'Schedule IVA (EBS)'!G21","v":0}]
["Sch IV","Premium by Line",null,"Unrelated - US Casualty",{"$f":"'Schedule IV'!E22","v":0},null,{"$f":"'Schedule IV'!G22","v":0},null,{"$f":"'Schedule IVA (EBS)'!E22","v":0},null,{"$f":"'Schedule IVA (EBS)'!G22","v":0}]
["Sch IV","Premium by Line",null,"Unrelated - US Casualty Non-Prop.",{"$f":"'Schedule IV'!E23","v":0},null,{"$f":"'Schedule IV'!G23","v":0},null,{"$f":"'Schedule IVA (EBS)'!E23","v":0},null,{"$f":"'Schedule IVA (EBS)'!G23","v":0}]
["Sch IV","Premium by Line",null,"Unrelated - US Professional",{"$f":"'Schedule IV'!E24","v":0},null,{"$f":"'Schedule IV'!G24","v":0},null,{"$f":"'Schedule IVA (EBS)'!E24","v":0},null,{"$f":"'Schedule IVA (EBS)'!G24","v":0}]
["Sch IV","Premium by Line",null,"Unrelated - US Professional Non-Prop.",{"$f":"'Schedule IV'!E25","v":0},null,{"$f":"'Schedule IV'!G25","v":0},null,{"$f":"'Schedule IVA (EBS)'!E25","v":0},null,{"$f":"'Schedule IVA (EBS)'!G25","v":0}]
["Sch IV","Premium by Line",null,"Unrelated - US Specialty",{"$f":"'Schedule IV'!E26","v":0},null,{"$f":"'Schedule IV'!G26","v":0},null,{"$f":"'Schedule IVA (EBS)'!E26","v":0},null,{"$f":"'Schedule IVA (EBS)'!G26","v":0}]
["Sch IV","Premium by Line",null,"Unrelated - US Specialty Non-Prop.",{"$f":"'Schedule IV'!E27","v":0},null,{"$f":"'Schedule IV'!G27","v":0},null,{"$f":"'Schedule IVA (EBS)'!E27","v":0},null,{"$f":"'Schedule IVA (EBS)'!G27","v":0}]
["Sch IV","Premium by Line",null,"Unrelated - Int'l Motor",{"$f":"'Schedule IV'!E28","v":0},null,{"$f":"'Schedule IV'!G28","v":0},null,{"$f":"'Schedule IVA (EBS)'!E28","v":0},null,{"$f":"'Schedule IVA (EBS)'!G28","v":0}]
["Sch IV","Premium by Line",null,"Unrelated - Int'l Motor Non-Prop.",{"$f":"'Schedule IV'!E29","v":0},null,{"$f":"'Schedule IV'!G29","v":0},null,{"$f":"'Schedule IVA (EBS)'!E29","v":0},null,{"$f":"'Schedule IVA (EBS)'!G29","v":0}]
["Sch IV","Premium by Line",null,"Unrelated - Int'l Casualty",{"$f":"'Schedule IV'!E30","v":0},null,{"$f":"'Schedule IV'!G30","v":0},null,{"$f":"'Schedule IVA (EBS)'!E30","v":0},null,{"$f":"'Schedule IVA (EBS)'!G30","v":0}]
["Sch IV","Premium by Line",null,"Unrelated - Int'l Casualty Non-Prop.",{"$f":"'Schedule IV'!E31","v":0},null,{"$f":"'Schedule IV'!G31","v":0},null,{"$f":"'Schedule IVA (EBS)'!E31","v":0},null,{"$f":"'Schedule IVA (EBS)'!G31","v":0}]
["Sch IV","Premium by Line",null,"Unrelated - Retro Property",{"$f":"'Schedule IV'!E32","v":0},null,{"$f":"'Schedule IV'!G32","v":0},null,{"$f":"'Schedule IVA (EBS)'!E32","v":0},null,{"$f":"'Schedule IVA (EBS)'!G32","v":0}]
["Sch IV","Premium by Line",null,"Unrelated - Structured / Finite R/I",{"$f":"'Schedule IV'!E33","v":0},null,{"$f":"'Schedule IV'!G33","v":0},null,{"$f":"'Schedule IVA (EBS)'!E33","v":0},null,{"$f":"'Schedule IVA (EBS)'!G33","v":0}]
["Sch IV","Premium by Line",null,"Unrelated - Health",{"$f":"'Schedule IV'!E34","v":0},null,{"$f":"'Schedule IV'!G34","v":0},null,{"$f":"'Schedule IVA (EBS)'!E34","v":0},null,{"$f":"'Schedule IVA (EBS)'!G34","v":0}]
["Sch IV","Premium by Line",null,"Related - Property Catastrophe",{"$f":"'Schedule IV'!I11","v":0},null,{"$f":"'Schedule IV'!K11","v":0},null,{"$f":"'Schedule IVA (EBS)'!I11","v":0},null,{"$f":"'Schedule IVA (EBS)'!K11","v":0}]
["Sch IV","Premium by Line",null,"Related - Property",{"$f":"'Schedule IV'!I12","v":0},null,{"$f":"'Schedule IV'!K12","v":0},null,{"$f":"'Schedule IVA (EBS)'!I12","v":0},null,{"$f":"'Schedule IVA (EBS)'!K12","v":0}]
["Sch IV","Premium by Line",null,"Related - Property Non-Proportion",{"$f":"'Schedule IV'!I13","v":0},null,{"$f":"'Schedule IV'!K13","v":0},null,{"$f":"'Schedule IVA (EBS)'!I13","v":0},null,{"$f":"'Schedule IVA (EBS)'!K13","v":0}]
["Sch IV","Premium by Line",null,"Related - Personal Accident",{"$f":"'Schedule IV'!I14","v":0},null,{"$f":"'Schedule IV'!K14","v":0},null,{"$f":"'Schedule IVA (EBS)'!I14","v":0},null,{"$f":"'Schedule IVA (EBS)'!K14","v":0}]
["Sch IV","Premium by Line",null,"Related - Personal Acc. Non Prop.",{"$f":"'Schedule IV'!I15","v":0},null,{"$f":"'Schedule IV'!K15","v":0},null,{"$f":"'Schedule IVA (EBS)'!I15","v":0},null,{"$f":"'Schedule IVA (EBS)'!K15","v":0}]
["Sch IV","Premium by Line",null,"Related - Aviation",{"$f":"'Schedule IV'!I16","v":0},null,{"$f":"'Schedule IV'!K16","v":0},null,{"$f":"'Schedule IVA (EBS)'!I16","v":0},null,{"$f":"'Schedule IVA (EBS)'!K16","v":0}]
["Sch IV","Premium by Line",null,"Related - Aviation Non-Proportional",{"$f":"'Schedule IV'!I17","v":0},null,{"$f":"'Schedule IV'!K17","v":0},null,{"$f":"'Schedule IVA (EBS)'!I17","v":0},null,{"$f":"'Schedule IVA (EBS)'!K17","v":0}]
["Sch IV","Premium by Line",null,"Related - Credit Surety",{"$f":"'Schedule IV'!I18","v":0},null,{"$f":"'Schedule IV'!K18","v":0},null,{"$f":"'Schedule IVA (EBS)'!I18","v":0},null,{"$f":"'Schedule IVA (EBS)'!K18","v":0}]
["Sch IV","Premium by Line",null,"Related - Credit Surety Non-Prop.",{"$f":"'Schedule IV'!I19","v":0},null,{"$f":"'Schedule IV'!K19","v":0},null,{"$f":"'Schedule IVA (EBS)'!I19","v":0},null,{"$f":"'Schedule IVA (EBS)'!K19","v":0}]
["Sch IV","Premium by Line",null,"Related - Energy",{"$f":"'Schedule IV'!I20","v":0},null,{"$f":"'Schedule IV'!K20","v":0},null,{"$f":"'Schedule IVA (EBS)'!I20","v":0},null,{"$f":"'Schedule IVA (EBS)'!K20","v":0}]
["Sch IV","Premium by Line",null,"Related - Energy Non-Proportional",{"$f":"'Schedule IV'!I21","v":0},null,{"$f":"'Schedule IV'!K21","v":0},null,{"$f":"'Schedule IVA (EBS)'!I21","v":0},null,{"$f":"'Schedule IVA (EBS)'!K21","v":0}]
["Sch IV","Premium by Line",null,"Related - US Casualty",{"$f":"'Schedule IV'!I22","v":0},null,{"$f":"'Schedule IV'!K22","v":0},null,{"$f":"'Schedule IVA (EBS)'!I22","v":0},null,{"$f":"'Schedule IVA (EBS)'!K22","v":0}]
["Sch IV","Premium by Line",null,"Related - US Casualty Non-Prop.",{"$f":"'Schedule IV'!I23","v":0},null,{"$f":"'Schedule IV'!K23","v":0},null,{"$f":"'Schedule IVA (EBS)'!I23","v":0},null,{"$f":"'Schedule IVA (EBS)'!K23","v":0}]
["Sch IV","Premium by Line",null,"Related - US Professional",{"$f":"'Schedule IV'!I24","v":0},null,{"$f":"'Schedule IV'!K24","v":0},null,{"$f":"'Schedule IVA (EBS)'!I24","v":0},null,{"$f":"'Schedule IVA (EBS)'!K24","v":0}]
["Sch IV","Premium by Line",null,"Related - US Professional Non-Prop.",{"$f":"'Schedule IV'!I25","v":0},null,{"$f":"'Schedule IV'!K25","v":0},null,{"$f":"'Schedule IVA (EBS)'!I25","v":0},null,{"$f":"'Schedule IVA (EBS)'!K25","v":0}]
["Sch IV","Premium by Line",null,"Related - US Specialty",{"$f":"'Schedule IV'!I26","v":0},null,{"$f":"'Schedule IV'!K26","v":0},null,{"$f":"'Schedule IVA (EBS)'!I26","v":0},null,{"$f":"'Schedule IVA (EBS)'!K26","v":0}]
["Sch IV","Premium by Line",null,"Related - US Specialty Non-Prop.",{"$f":"'Schedule IV'!I27","v":0},null,{"$f":"'Schedule IV'!K27","v":0},null,{"$f":"'Schedule IVA (EBS)'!I27","v":0},null,{"$f":"'Schedule IVA (EBS)'!K27","v":0}]
["Sch IV","Premium by Line",null,"Related - Int'l Motor",{"$f":"'Schedule IV'!I28","v":0},null,{"$f":"'Schedule IV'!K28","v":0},null,{"$f":"'Schedule IVA (EBS)'!I28","v":0},null,{"$f":"'Schedule IVA (EBS)'!K28","v":0}]
["Sch IV","Premium by Line",null,"Related - Int'l Motor Non-Prop.",{"$f":"'Schedule IV'!I29","v":0},null,{"$f":"'Schedule IV'!K29","v":0},null,{"$f":"'Schedule IVA (EBS)'!I29","v":0},null,{"$f":"'Schedule IVA (EBS)'!K29","v":0}]
["Sch IV","Premium by Line",null,"Related - Int'l Casualty",{"$f":"'Schedule IV'!I30","v":0},null,{"$f":"'Schedule IV'!K30","v":0},null,{"$f":"'Schedule IVA (EBS)'!I30","v":0},null,{"$f":"'Schedule IVA (EBS)'!K30","v":0}]
["Sch IV","Premium by Line",null,"Related - Int'l Casualty Non-Prop.",{"$f":"'Schedule IV'!I31","v":0},null,{"$f":"'Schedule IV'!K31","v":0},null,{"$f":"'Schedule IVA (EBS)'!I31","v":0},null,{"$f":"'Schedule IVA (EBS)'!K31","v":0}]
["Sch IV","Premium by Line",null,"Related - Retro Property",{"$f":"'Schedule IV'!I32","v":0},null,{"$f":"'Schedule IV'!K32","v":0},null,{"$f":"'Schedule IVA (EBS)'!I32","v":0},null,{"$f":"'Schedule IVA (EBS)'!K32","v":0}]
["Sch IV","Premium by Line",null,"Related - Structured / Finite R/I",{"$f":"'Schedule IV'!I33","v":0},null,{"$f":"'Schedule IV'!K33","v":0},null,{"$f":"'Schedule IVA (EBS)'!I33","v":0},null,{"$f":"'Schedule IVA (EBS)'!K33","v":0}]
["Sch IV","Premium by Line",null,"Related - Health",{"$f":"'Schedule IV'!I34","v":0},null,{"$f":"'Schedule IV'!K34","v":0},null,{"$f":"'Schedule IVA (EBS)'!I34","v":0},null,{"$f":"'Schedule IVA (EBS)'!K34","v":0}]
["Sch IV","Premium by Line",null,"NPW - Property Catastrophe",{"$f":"'Schedule IV'!Q11","v":0},null,{"$f":"'Schedule IV'!S11","v":0},null,{"$f":"'Schedule IVA (EBS)'!Q11","v":0},null,{"$f":"'Schedule IVA (EBS)'!S11","v":0}]
["Sch IV","Premium by Line",null,"NPW - Property",{"$f":"'Schedule IV'!Q12","v":0},null,{"$f":"'Schedule IV'!S12","v":0},null,{"$f":"'Schedule IVA (EBS)'!Q12","v":0},null,{"$f":"'Schedule IVA (EBS)'!S12","v":0}]
["Sch IV","Premium by Line",null,"NPW - Property Non-Proportion",{"$f":"'Schedule IV'!Q13","v":0},null,{"$f":"'Schedule IV'!S13","v":0},null,{"$f":"'Schedule IVA (EBS)'!Q13","v":0},null,{"$f":"'Schedule IVA (EBS)'!S13","v":0}]
["Sch IV","Premium by Line",null,"NPW - Personal Accident",{"$f":"'Schedule IV'!Q14","v":0},null,{"$f":"'Schedule IV'!S14","v":0},null,{"$f":"'Schedule IVA (EBS)'!Q14","v":0},null,{"$f":"'Schedule IVA (EBS)'!S14","v":0}]
["Sch IV","Premium by Line",null,"NPW - Personal Acc. Non Prop.",{"$f":"'Schedule IV'!Q15","v":0},null,{"$f":"'Schedule IV'!S15","v":0},null,{"$f":"'Schedule IVA (EBS)'!Q15","v":0},null,{"$f":"'Schedule IVA (EBS)'!S15","v":0}]
["Sch IV","Premium by Line",null,"NPW - Aviation",{"$f":"'Schedule IV'!Q16","v":0},null,{"$f":"'Schedule IV'!S16","v":0},null,{"$f":"'Schedule IVA (EBS)'!Q16","v":0},null,{"$f":"'Schedule IVA (EBS)'!S16","v":0}]
["Sch IV","Premium by Line",null,"NPW - Aviation Non-Proportional",{"$f":"'Schedule IV'!Q17","v":0},null,{"$f":"'Schedule IV'!S17","v":0},null,{"$f":"'Schedule IVA (EBS)'!Q17","v":0},null,{"$f":"'Schedule IVA (EBS)'!S17","v":0}]
["Sch IV","Premium by Line",null,"NPW - Credit Surety",{"$f":"'Schedule IV'!Q18","v":0},null,{"$f":"'Schedule IV'!S18","v":0},null,{"$f":"'Schedule IVA (EBS)'!Q18","v":0},null,{"$f":"'Schedule IVA (EBS)'!S18","v":0}]
["Sch IV","Premium by Line",null,"NPW - Credit Surety Non-Prop.",{"$f":"'Schedule IV'!Q19","v":0},null,{"$f":"'Schedule IV'!S19","v":0},null,{"$f":"'Schedule IVA (EBS)'!Q19","v":0},null,{"$f":"'Schedule IVA (EBS)'!S19","v":0}]
["Sch IV","Premium by Line",null,"NPW - Energy",{"$f":"'Schedule IV'!Q20","v":0},null,{"$f":"'Schedule IV'!S20","v":0},null,{"$f":"'Schedule IVA (EBS)'!Q20","v":0},null,{"$f":"'Schedule IVA (EBS)'!S20","v":0}]
["Sch IV","Premium by Line",null,"NPW - Energy Non-Proportional",{"$f":"'Schedule IV'!Q21","v":0},null,{"$f":"'Schedule IV'!S21","v":0},null,{"$f":"'Schedule IVA (EBS)'!Q21","v":0},null,{"$f":"'Schedule IVA (EBS)'!S21","v":0}]
["Sch IV","Premium by Line",null,"NPW - US Casualty",{"$f":"'Schedule IV'!Q22","v":0},null,{"$f":"'Schedule IV'!S22","v":0},null,{"$f":"'Schedule IVA (EBS)'!Q22","v":0},null,{"$f":"'Schedule IVA (EBS)'!S22","v":0}]
["Sch IV","Premium by Line",null,"NPW - US Casualty Non-Prop.",{"$f":"'Schedule IV'!Q23","v":0},null,{"$f":"'Schedule IV'!S23","v":0},null,{"$f":"'Schedule IVA (EBS)'!Q23","v":0},null,{"$f":"'Schedule IVA (EBS)'!S23","v":0}]
["Sch IV","Premium by Line",null,"NPW - US Professional",{"$f":"'Schedule IV'!Q24","v":0},null,{"$f":"'Schedule IV'!S24","v":0},null,{"$f":"'Schedule IVA (EBS)'!Q24","v":0},null,{"$f":"'Schedule IVA (EBS)'!S24","v":0}]
["Sch IV","Premium by Line",null,"NPW - US Professional Non-Prop.",{"$f":"'Schedule IV'!Q25","v":0},null,{"$f":"'Schedule IV'!S25","v":0},null,{"$f":"'Schedule IVA (EBS)'!Q25","v":0},null,{"$f":"'Schedule IVA (EBS)'!S25","v":0}]
["Sch IV","Premium by Line",null,"NPW - US Specialty",{"$f":"'Schedule IV'!Q26","v":0},null,{"$f":"'Schedule IV'!S26","v":0},null,{"$f":"'Schedule IVA (EBS)'!Q26","v":0},null,{"$f":"'Schedule IVA (EBS)'!S26","v":0}]
["Sch IV","Premium by Line",null,"NPW - US Specialty Non-Prop.",{"$f":"'Schedule IV'!Q27","v":0},null,{"$f":"'Schedule IV'!S27","v":0},null,{"$f":"'Schedule IVA (EBS)'!Q27","v":0},null,{"$f":"'Schedule IVA (EBS)'!S27","v":0}]
["Sch IV","Premium by Line",null,"NPW - Int'l Motor",{"$f":"'Schedule IV'!Q28","v":0},null,{"$f":"'Schedule IV'!S28","v":0},null,{"$f":"'Schedule IVA (EBS)'!Q28","v":0},null,{"$f":"'Schedule IVA (EBS)'!S28","v":0}]
["Sch IV","Premium by Line",null,"NPW - Int'l Motor Non-Prop.",{"$f":"'Schedule IV'!Q29","v":0},null,{"$f":"'Schedule IV'!S29","v":0},null,{"$f":"'Schedule IVA (EBS)'!Q29","v":0},null,{"$f":"'Schedule IVA (EBS)'!S29","v":0}]
["Sch IV","Premium by Line",null,"NPW - Int'l Casualty",{"$f":"'Schedule IV'!Q30","v":0},null,{"$f":"'Schedule IV'!S30","v":0},null,{"$f":"'Schedule IVA (EBS)'!Q30","v":0},null,{"$f":"'Schedule IVA (EBS)'!S30","v":0}]
["Sch IV","Premium by Line",null,"NPW - Int'l Casualty Non-Prop.",{"$f":"'Schedule IV'!Q31","v":0},null,{"$f":"'Schedule IV'!S31","v":0},null,{"$f":"'Schedule IVA (EBS)'!Q31","v":0},null,{"$f":"'Schedule IVA (EBS)'!S31","v":0}]
["Sch IV","Premium by Line",null,"NPW - Retro Property",{"$f":"'Schedule IV'!Q32","v":0},null,{"$f":"'Schedule IV'!S32","v":0},null,{"$f":"'Schedule IVA (EBS)'!Q32","v":0},null,{"$f":"'Schedule IVA (EBS)'!S32","v":0}]
["Sch IV","Premium by Line",null,"NPW - Structured / Finite R/I",{"$f":"'Schedule IV'!Q33","v":0},null,{"$f":"'Schedule IV'!S33","v":0},null,{"$f":"'Schedule IVA (EBS)'!Q33","v":0},null,{"$f":"'Schedule IVA (EBS)'!S33","v":0}]
["Sch IV","Premium by Line",null,"NPW - Health",{"$f":"'Schedule IV'!Q34","v":0},null,{"$f":"'Schedule IV'!S34","v":0},null,{"$f":"'Schedule IVA (EBS)'!Q34","v":0},null,{"$f":"'Schedule IVA (EBS)'!S34","v":0}]
["Sch IV","Premium by Line",null,"NPW - Total",null,null,null,null,{"$f":"'Schedule IVA (EBS)'!Q35","v":0},null,{"$f":"'Schedule IVA (EBS)'!S35","v":0}]
[]
["Sch IVC","Premium by Zone",null,"NPW Zn 1 - Property Catastrophe",null,null,null,null,{"$f":"'Schedule IVC (EBS)'!E9","v":0}]
["Sch IVC","Premium by Zone",null,"NPW Zn 1 - Property",null,null,null,null,{"$f":"'Schedule IVC (EBS)'!E10","v":0}]
["Sch IVC","Premium by Zone",null,"NPW Zn 1 - Property Non-Proportion",null,null,null,null,{"$f":"'Schedule IVC (EBS)'!E11","v":0}]
["Sch IVC","Premium by Zone",null,"NPW Zn 1 - Personal Accident",null,null,null,null,{"$f":"'Schedule IVC (EBS)'!E12","v":0}]
["Sch IVC","Premium by Zone",null,"NPW Zn 1 - Personal Acc. Non Prop.",null,null,null,null,{"$f":"'Schedule IVC (EBS)'!E13","v":0}]
["Sch IVC","Premium by Zone",null,"NPW Zn 1 - Aviation",null,null,null,null,{"$f":"'Schedule IVC (EBS)'!E14","v":0}]
["Sch IVC","Premium by Zone",null,"NPW Zn 1 - Aviation Non-Proportional",null,null,null,null,{"$f":"'Schedule IVC (EBS)'!E15","v":0}]
["Sch IVC","Premium by Zone",null,"NPW Zn 1 - Credit Surety",null,null,null,null,{"$f":"'Schedule IVC (EBS)'!E16","v":0}]
["Sch IVC","Premium by Zone",null,"NPW Zn 1 - Credit Surety Non-Prop.",null,null,null,null,{"$f":"'Schedule IVC (EBS)'!E17","v":0}]
["Sch IVC","Premium by Zone",null,"NPW Zn 1 - Energy",null,null,null,null,{"$f":"'Schedule IVC (EBS)'!E18","v":0}]
["Sch IVC","Premium by Zone",null,"NPW Zn 1 - Energy Non-Proportional",null,null,null,null,{"$f":"'Schedule IVC (EBS)'!E19","v":0}]
["Sch IVC","Premium by Zone",null,"NPW Zn 1 - US Casualty",null,null,null,null,{"$f":"'Schedule IVC (EBS)'!E20","v":0}]
["Sch IVC","Premium by Zone",null,"NPW Zn 1 - US Casualty Non-Prop.",null,null,null,null,{"$f":"'Schedule IVC (EBS)'!E21","v":0}]
["Sch IVC","Premium by Zone",null,"NPW Zn 1 - US Professional",null,null,null,null,{"$f":"'Schedule IVC (EBS)'!E22","v":0}]
["Sch IVC","Premium by Zone",null,"NPW Zn 1 - US Professional Non-Prop.",null,null,null,null,{"$f":"'Schedule IVC (EBS)'!E23","v":0}]
["Sch IVC","Premium by Zone",null,"NPW Zn 1 - US Specialty",null,null,null,null,{"$f":"'Schedule IVC (EBS)'!E24","v":0}]
["Sch IVC","Premium by Zone",null,"NPW Zn 1 - US Specialty Non-Prop.",null,null,null,null,{"$f":"'Schedule IVC (EBS)'!E25","v":0}]
["Sch IVC","Premium by Zone",null,"NPW Zn 1 - Int'l Motor",null,null,null,null,{"$f":"'Schedule IVC (EBS)'!E26","v":0}]
["Sch IVC","Premium by Zone",null,"NPW Zn 1 - Int'l Motor Non-Prop.",null,null,null,null,{"$f":"'Schedule IVC (EBS)'!E27","v":0}]
["Sch IVC","Premium by Zone",null,"NPW Zn 1 - Int'l Casualty",null,null,null,null,{"$f":"'Schedule IVC (EBS)'!E28","v":0}]
["Sch IVC","Premium by Zone",null,"NPW Zn 1 - Int'l Casualty Non-Prop.",null,null,null,null,{"$f":"'Schedule IVC (EBS)'!E29","v":0}]
["Sch IVC","Premium by Zone",null,"NPW Zn 1 - Retro Property",null,null,null,null,{"$f":"'Schedule IVC (EBS)'!E30","v":0}]
["Sch IVC","Premium by Zone",null,"NPW Zn 1 - Structured / Finite R/I",null,null,null,null,{"$f":"'Schedule IVC (EBS)'!E31","v":0}]
["Sch IVC","Premium by Zone",null,"NPW Zn 1 - Health",null,null,null,null,{"$f":"'Schedule IVC (EBS)'!E32","v":0}]
["Sch IVC","Premium by Zone",null,"NPW Zn 1 - Total",null,null,null,null,{"$f":"'Schedule IVC (EBS)'!E33","v":0}]
["Sch IVC","Premium by Zone",null,"NPW Zn 2 - Property Catastrophe",null,null,null,null,{"$f":"'Schedule IVC (EBS)'!F9","v":0}]
["Sch IVC","Premium by Zone",null,"NPW Zn 2 - Property",null,null,null,null,{"$f":"'Schedule IVC (EBS)'!F10","v":0}]
["Sch IVC","Premium by Zone",null,"NPW Zn 2 - Property Non-Proportion",null,null,null,null,{"$f":"'Schedule IVC (EBS)'!F11","v":0}]
["Sch IVC","Premium by Zone",null,"NPW Zn 2 - Personal Accident",null,null,null,null,{"$f":"'Schedule IVC (EBS)'!F12","v":0}]
["Sch IVC","Premium by Zone",null,"NPW Zn 2 - Personal Acc. Non Prop.",null,null,null,null,{"$f":"'Schedule IVC (EBS)'!F13","v":0}]
["Sch IVC","Premium by Zone",null,"NPW Zn 2 - Aviation",null,null,null,null,{"$f":"'Schedule IVC (EBS)'!F14","v":0}]
["Sch IVC","Premium by Zone",null,"NPW Zn 2 - Aviation Non-Proportional",null,null,null,null,{"$f":"'Schedule IVC (EBS)'!F15","v":0}]
["Sch IVC","Premium by Zone",null,"NPW Zn 2 - Credit Surety",null,null,null,null,{"$f":"'Schedule IVC (EBS)'!F16","v":0}]
["Sch IVC","Premium by Zone",null,"NPW Zn 2 - Credit Surety Non-Prop.",null,null,null,null,{"$f":"'Schedule IVC (EBS)'!F17","v":0}]
["Sch IVC","Premium by Zone",null,"NPW Zn 2 - Energy",null,null,null,null,{"$f":"'Schedule IVC (EBS)'!F18","v":0}]
["Sch IVC","Premium by Zone",null,"NPW Zn 2 - Energy Non-Proportional",null,null,null,null,{"$f":"'Schedule IVC (EBS)'!F19","v":0}]
["Sch IVC","Premium by Zone",null,"NPW Zn 2 - US Casualty",null,null,null,null,{"$f":"'Schedule IVC (EBS)'!F20","v":0}]
["Sch IVC","Premium by Zone",null,"NPW Zn 2 - US Casualty Non-Prop.",null,null,null,null,{"$f":"'Schedule IVC (EBS)'!F21","v":0}]
["Sch IVC","Premium by Zone",null,"NPW Zn 2 - US Professional",null,null,null,null,{"$f":"'Schedule IVC (EBS)'!F22","v":0}]
["Sch IVC","Premium by Zone",null,"NPW Zn 2 - US Professional Non-Prop.",null,null,null,null,{"$f":"'Schedule IVC (EBS)'!F23","v":0}]
["Sch IVC","Premium by Zone",null,"NPW Zn 2 - US Specialty",null,null,null,null,{"$f":"'Schedule IVC (EBS)'!F24","v":0}]
["Sch IVC","Premium by Zone",null,"NPW Zn 2 - US Specialty Non-Prop.",null,null,null,null,{"$f":"'Schedule IVC (EBS)'!F25","v":0}]
["Sch IVC","Premium by Zone",null,"NPW Zn 2 - Int'l Motor",null,null,null,null,{"$f":"'Schedule IVC (EBS)'!F26","v":0}]
["Sch IVC","Premium by Zone",null,"NPW Zn 2 - Int'l Motor Non-Prop.",null,null,null,null,{"$f":"'Schedule IVC (EBS)'!F27","v":0}]
["Sch IVC","Premium by Zone",null,"NPW Zn 2 - Int'l Casualty",null,null,null,null,{"$f":"'Schedule IVC (EBS)'!F28","v":0}]
["Sch IVC","Premium by Zone",null,"NPW Zn 2 - Int'l Casualty Non-Prop.",null,null,null,null,{"$f":"'Schedule IVC (EBS)'!F29","v":0}]
["Sch IVC","Premium by Zone",null,"NPW Zn 2 - Retro Property",null,null,null,null,{"$f":"'Schedule IVC (EBS)'!F30","v":0}]
["Sch IVC","Premium by Zone",null,"NPW Zn 2 - Structured / Finite R/I",null,null,null,null,{"$f":"'Schedule IVC (EBS)'!F31","v":0}]
["Sch IVC","Premium by Zone",null,"NPW Zn 2 - Health",null,null,null,null,{"$f":"'Schedule IVC (EBS)'!F32","v":0}]
["Sch IVC","Premium by Zone",null,"NPW Zn 2 - Total",null,null,null,null,{"$f":"'Schedule IVC (EBS)'!F33","v":0}]
["Sch IVC","Premium by Zone",null,"NPW Zn 3 - Property Catastrophe",null,null,null,null,{"$f":"'Schedule IVC (EBS)'!G9","v":0}]
["Sch IVC","Premium by Zone",null,"NPW Zn 3 - Property",null,null,null,null,{"$f":"'Schedule IVC (EBS)'!G10","v":0}]
["Sch IVC","Premium by Zone",null,"NPW Zn 3 - Property Non-Proportion",null,null,null,null,{"$f":"'Schedule IVC (EBS)'!G11","v":0}]
["Sch IVC","Premium by Zone",null,"NPW Zn 3 - Personal Accident",null,null,null,null,{"$f":"'Schedule IVC (EBS)'!G12","v":0}]
["Sch IVC","Premium by Zone",null,"NPW Zn 3 - Personal Acc. Non Prop.",null,null,null,null,{"$f":"'Schedule IVC (EBS)'!G13","v":0}]
["Sch IVC","Premium by Zone",null,"NPW Zn 3 - Aviation",null,null,null,null,{"$f":"'Schedule IVC (EBS)'!G14","v":0}]
["Sch IVC","Premium by Zone",null,"NPW Zn 3 - Aviation Non-Proportional",null,null,null,null,{"$f":"'Schedule IVC (EBS)'!G15","v":0}]
["Sch IVC","Premium by Zone",null,"NPW Zn 3 - Credit Surety",null,null,null,null,{"$f":"'Schedule IVC (EBS)'!G16","v":0}]
["Sch IVC","Premium by Zone",null,"NPW Zn 3 - Credit Surety Non-Prop.",null,null,null,null,{"$f":"'Schedule IVC (EBS)'!G17","v":0}]
["Sch IVC","Premium by Zone",null,"NPW Zn 3 - Energy",null,null,null,null,{"$f":"'Schedule IVC (EBS)'!G18","v":0}]
["Sch IVC","Premium by Zone",null,"NPW Zn 3 - Energy Non-Proportional",null,null,null,null,{"$f":"'Schedule IVC (EBS)'!G19","v":0}]
["Sch IVC","Premium by Zone",null,"NPW Zn 3 - US Casualty",null,null,null,null,{"$f":"'Schedule IVC (EBS)'!G20","v":0}]
["Sch IVC","Premium by Zone",null,"NPW Zn 3 - US Casualty Non-Prop.",null,null,null,null,{"$f":"'Schedule IVC (EBS)'!G21","v":0}]
["Sch IVC","Premium by Zone",null,"NPW Zn 3 - US Professional",null,null,null,null,{"$f":"'Schedule IVC (EBS)'!G22","v":0}]
["Sch IVC","Premium by Zone",null,"NPW Zn 3 - US Professional Non-Prop.",null,null,null,null,{"$f":"'Schedule IVC (EBS)'!G23","v":0}]
["Sch IVC","Premium by Zone",null,"NPW Zn 3 - US Specialty",null,null,null,null,{"$f":"'Schedule IVC (EBS)'!G24","v":0}]
["Sch IVC","Premium by Zone",null,"NPW Zn 3 - US Specialty Non-Prop.",null,null,null,null,{"$f":"'Schedule IVC (EBS)'!G25","v":0}]
["Sch IVC","Premium by Zone",null,"NPW Zn 3 - Int'l Motor",null,null,null,null,{"$f":"'Schedule IVC (EBS)'!G26","v":0}]
["Sch IVC","Premium by Zone",null,"NPW Zn 3 - Int'l Motor Non-Prop.",null,null,null,null,{"$f":"'Schedule IVC (EBS)'!G27","v":0}]
["Sch IVC","Premium by Zone",null,"NPW Zn 3 - Int'l Casualty",null,null,null,null,{"$f":"'Schedule IVC (EBS)'!G28","v":0}]
["Sch IVC","Premium by Zone",null,"NPW Zn 3 - Int'l Casualty Non-Prop.",null,null,null,null,{"$f":"'Schedule IVC (EBS)'!G29","v":0}]
["Sch IVC","Premium by Zone",null,"NPW Zn 3 - Retro Property",null,null,null,null,{"$f":"'Schedule IVC (EBS)'!G30","v":0}]
["Sch IVC","Premium by Zone",null,"NPW Zn 3 - Structured / Finite R/I",null,null,null,null,{"$f":"'Schedule IVC (EBS)'!G31","v":0}]
["Sch IVC","Premium by Zone",null,"NPW Zn 3 - Health",null,null,null,null,{"$f":"'Schedule IVC (EBS)'!G32","v":0}]
["Sch IVC","Premium by Zone",null,"NPW Zn 3 - Total",null,null,null,null,{"$f":"'Schedule IVC (EBS)'!G33","v":0}]
["Sch IVC","Premium by Zone",null,"NPW Zn 4 - Property Catastrophe",null,null,null,null,{"$f":"'Schedule IVC (EBS)'!H9","v":0}]
["Sch IVC","Premium by Zone",null,"NPW Zn 4 - Property",null,null,null,null,{"$f":"'Schedule IVC (EBS)'!H10","v":0}]
["Sch IVC","Premium by Zone",null,"NPW Zn 4 - Property Non-Proportion",null,null,null,null,{"$f":"'Schedule IVC (EBS)'!H11","v":0}]
["Sch IVC","Premium by Zone",null,"NPW Zn 4 - Personal Accident",null,null,null,null,{"$f":"'Schedule IVC (EBS)'!H12","v":0}]
["Sch IVC","Premium by Zone",null,"NPW Zn 4 - Personal Acc. Non Prop.",null,null,null,null,{"$f":"'Schedule IVC (EBS)'!H13","v":0}]
["Sch IVC","Premium by Zone",null,"NPW Zn 4 - Aviation",null,null,null,null,{"$f":"'Schedule IVC (EBS)'!H14","v":0}]
["Sch IVC","Premium by Zone",null,"NPW Zn 4 - Aviation Non-Proportional",null,null,null,null,{"$f":"'Schedule IVC (EBS)'!H15","v":0}]
["Sch IVC","Premium by Zone",null,"NPW Zn 4 - Credit Surety",null,null,null,null,{"$f":"'Schedule IVC (EBS)'!H16","v":0}]
["Sch IVC","Premium by Zone",null,"NPW Zn 4 - Credit Surety Non-Prop.",null,null,null,null,{"$f":"'Schedule IVC (EBS)'!H17","v":0}]
["Sch IVC","Premium by Zone",null,"NPW Zn 4 - Energy",null,null,null,null,{"$f":"'Schedule IVC (EBS)'!H18","v":0}]
["Sch IVC","Premium by Zone",null,"NPW Zn 4 - Energy Non-Proportional",null,null,null,null,{"$f":"'Schedule IVC (EBS)'!H19","v":0}]
["Sch IVC","Premium by Zone",null,"NPW Zn 4 - US Casualty",null,null,null,null,{"$f":"'Schedule IVC (EBS)'!H20","v":0}]
["Sch IVC","Premium by Zone",null,"NPW Zn 4 - US Casualty Non-Prop.",null,null,null,null,{"$f":"'Schedule IVC (EBS)'!H21","v":0}]
["Sch IVC","Premium by Zone",null,"NPW Zn 4 - US Professional",null,null,null,null,{"$f":"'Schedule IVC (EBS)'!H22","v":0}]
["Sch IVC","Premium by Zone",null,"NPW Zn 4 - US Professional Non-Prop.",null,null,null,null,{"$f":"'Schedule IVC (EBS)'!H23","v":0}]
["Sch IVC","Premium by Zone",null,"NPW Zn 4 - US Specialty",null,null,null,null,{"$f":"'Schedule IVC (EBS)'!H24","v":0}]
["Sch IVC","Premium by Zone",null,"NPW Zn 4 - US Specialty Non-Prop.",null,null,null,null,{"$f":"'Schedule IVC (EBS)'!H25","v":0}]
["Sch IVC","Premium by Zone",null,"NPW Zn 4 - Int'l Motor",null,null,null,null,{"$f":"'Schedule IVC (EBS)'!H26","v":0}]
["Sch IVC","Premium by Zone",null,"NPW Zn 4 - Int'l Motor Non-Prop.",null,null,null,null,{"$f":"'Schedule IVC (EBS)'!H27","v":0}]
["Sch IVC","Premium by Zone",null,"NPW Zn 4 - Int'l Casualty",null,null,null,null,{"$f":"'Schedule IVC (EBS)'!H28","v":0}]
["Sch IVC","Premium by Zone",null,"NPW Zn 4 - Int'l Casualty Non-Prop.",null,null,null,null,{"$f":"'Schedule IVC (EBS)'!H29","v":0}]
["Sch IVC","Premium by Zone",null,"NPW Zn 4 - Retro Property",null,null,null,null,{"$f":"'Schedule IVC (EBS)'!H30","v":0}]
["Sch IVC","Premium by Zone",null,"NPW Zn 4 - Structured / Finite R/I",null,null,null,null,{"$f":"'Schedule IVC (EBS)'!H31","v":0}]
["Sch IVC","Premium by Zone",null,"NPW Zn 4 - Health",null,null,null,null,{"$f":"'Schedule IVC (EBS)'!H32","v":0}]
["Sch IVC","Premium by Zone",null,"NPW Zn 4 - Total",null,null,null,null,{"$f":"'Schedule IVC (EBS)'!H33","v":0}]
["Sch IVC","Premium by Zone",null,"NPW Zn 5 - Property Catastrophe",null,null,null,null,{"$f":"'Schedule IVC (EBS)'!I9","v":0}]
["Sch IVC","Premium by Zone",null,"NPW Zn 5 - Property",null,null,null,null,{"$f":"'Schedule IVC (EBS)'!I10","v":0}]
["Sch IVC","Premium by Zone",null,"NPW Zn 5 - Property Non-Proportion",null,null,null,null,{"$f":"'Schedule IVC (EBS)'!I11","v":0}]
["Sch IVC","Premium by Zone",null,"NPW Zn 5 - Personal Accident",null,null,null,null,{"$f":"'Schedule IVC (EBS)'!I12","v":0}]
["Sch IVC","Premium by Zone",null,"NPW Zn 5 - Personal Acc. Non Prop.",null,null,null,null,{"$f":"'Schedule IVC (EBS)'!I13","v":0}]
["Sch IVC","Premium by Zone",null,"NPW Zn 5 - Aviation",null,null,null,null,{"$f":"'Schedule IVC (EBS)'!I14","v":0}]
["Sch IVC","Premium by Zone",null,"NPW Zn 5 - Aviation Non-Proportional",null,null,null,null,{"$f":"'Schedule IVC (EBS)'!I15","v":0}]
["Sch IVC","Premium by Zone",null,"NPW Zn 5 - Credit Surety",null,null,null,null,{"$f":"'Schedule IVC (EBS)'!I16","v":0}]
["Sch IVC","Premium by Zone",null,"NPW Zn 5 - Credit Surety Non-Prop.",null,null,null,null,{"$f":"'Schedule IVC (EBS)'!I17","v":0}]
["Sch IVC","Premium by Zone",null,"NPW Zn 5 - Energy",null,null,null,null,{"$f":"'Schedule IVC (EBS)'!I18","v":0}]
["Sch IVC","Premium by Zone",null,"NPW Zn 5 - Energy Non-Proportional",null,null,null,null,{"$f":"'Schedule IVC (EBS)'!I19","v":0}]
["Sch IVC","Premium by Zone",null,"NPW Zn 5 - US Casualty",null,null,null,null,{"$f":"'Schedule IVC (EBS)'!I20","v":0}]
["Sch IVC","Premium by Zone",null,"NPW Zn 5 - US Casualty Non-Prop.",null,null,null,null,{"$f":"'Schedule IVC (EBS)'!I21","v":0}]
["Sch IVC","Premium by Zone",null,"NPW Zn 5 - US Professional",null,null,null,null,{"$f":"'Schedule IVC (EBS)'!I22","v":0}]
["Sch IVC","Premium by Zone",null,"NPW Zn 5 - US Professional Non-Prop.",null,null,null,null,{"$f":"'Schedule IVC (EBS)'!I23","v":0}]
["Sch IVC","Premium by Zone",null,"NPW Zn 5 - US Specialty",null,null,null,null,{"$f":"'Schedule IVC (EBS)'!I24","v":0}]
["Sch IVC","Premium by Zone",null,"NPW Zn 5 - US Specialty Non-Prop.",null,null,null,null,{"$f":"'Schedule IVC (EBS)'!I25","v":0}]
["Sch IVC","Premium by Zone",null,"NPW Zn 5 - Int'l Motor",null,null,null,null,{"$f":"'Schedule IVC (EBS)'!I26","v":0}]
["Sch IVC","Premium by Zone",null,"NPW Zn 5 - Int'l Motor Non-Prop.",null,null,null,null,{"$f":"'Schedule IVC (EBS)'!I27","v":0}]
["Sch IVC","Premium by Zone",null,"NPW Zn 5 - Int'l Casualty",null,null,null,null,{"$f":"'Schedule IVC (EBS)'!I28","v":0}]
["Sch IVC","Premium by Zone",null,"NPW Zn 5 - Int'l Casualty Non-Prop.",null,null,null,null,{"$f":"'Schedule IVC (EBS)'!I29","v":0}]
["Sch IVC","Premium by Zone",null,"NPW Zn 5 - Retro Property",null,null,null,null,{"$f":"'Schedule IVC (EBS)'!I30","v":0}]
["Sch IVC","Premium by Zone",null,"NPW Zn 5 - Structured / Finite R/I",null,null,null,null,{"$f":"'Schedule IVC (EBS)'!I31","v":0}]
["Sch IVC","Premium by Zone",null,"NPW Zn 5 - Health",null,null,null,null,{"$f":"'Schedule IVC (EBS)'!I32","v":0}]
["Sch IVC","Premium by Zone",null,"NPW Zn 5 - Total",null,null,null,null,{"$f":"'Schedule IVC (EBS)'!I33","v":0}]
["Sch IVC","Premium by Zone",null,"NPW Zn 6 - Property Catastrophe",null,null,null,null,{"$f":"'Schedule IVC (EBS)'!J9","v":0}]
["Sch IVC","Premium by Zone",null,"NPW Zn 6 - Property",null,null,null,null,{"$f":"'Schedule IVC (EBS)'!J10","v":0}]
["Sch IVC","Premium by Zone",null,"NPW Zn 6 - Property Non-Proportion",null,null,null,null,{"$f":"'Schedule IVC (EBS)'!J11","v":0}]
["Sch IVC","Premium by Zone",null,"NPW Zn 6 - Personal Accident",null,null,null,null,{"$f":"'Schedule IVC (EBS)'!J12","v":0}]
["Sch IVC","Premium by Zone",null,"NPW Zn 6 - Personal Acc. Non Prop.",null,null,null,null,{"$f":"'Schedule IVC (EBS)'!J13","v":0}]
["Sch IVC","Premium by Zone",null,"NPW Zn 6 - Aviation",null,null,null,null,{"$f":"'Schedule IVC (EBS)'!J14","v":0}]
["Sch IVC","Premium by Zone",null,"NPW Zn 6 - Aviation Non-Proportional",null,null,null,null,{"$f":"'Schedule IVC (EBS)'!J15","v":0}]
["Sch IVC","Premium by Zone",null,"NPW Zn 6 - Credit Surety",null,null,null,null,{"$f":"'Schedule IVC (EBS)'!J16","v":0}]
["Sch IVC","Premium by Zone",null,"NPW Zn 6 - Credit Surety Non-Prop.",null,null,null,null,{"$f":"'Schedule IVC (EBS)'!J17","v":0}]
["Sch IVC","Premium by Zone",null,"NPW Zn 6 - Energy",null,null,null,null,{"$f":"'Schedule IVC (EBS)'!J18","v":0}]
["Sch IVC","Premium by Zone",null,"NPW Zn 6 - Energy Non-Proportional",null,null,null,null,{"$f":"'Schedule IVC (EBS)'!J19","v":0}]
["Sch IVC","Premium by Zone",null,"NPW Zn 6 - US Casualty",null,null,null,null,{"$f":"'Schedule IVC (EBS)'!J20","v":0}]
["Sch IVC","Premium by Zone",null,"NPW Zn 6 - US Casualty Non-Prop.",null,null,null,null,{"$f":"'Schedule IVC (EBS)'!J21","v":0}]
["Sch IVC","Premium by Zone",null,"NPW Zn 6 - US Professional",null,null,null,null,{"$f":"'Schedule IVC (EBS)'!J22","v":0}]
["Sch IVC","Premium by Zone",null,"NPW Zn 6 - US Professional Non-Prop.",null,null,null,null,{"$f":"'Schedule IVC (EBS)'!J23","v":0}]
["Sch IVC","Premium by Zone",null,"NPW Zn 6 - US Specialty",null,null,null,null,{"$f":"'Schedule IVC (EBS)'!J24","v":0}]
["Sch IVC","Premium by Zone",null,"NPW Zn 6 - US Specialty Non-Prop.",null,null,null,null,{"$f":"'Schedule IVC (EBS)'!J25","v":0}]
["Sch IVC","Premium by Zone",null,"NPW Zn 6 - Int'l Motor",null,null,null,null,{"$f":"'Schedule IVC (EBS)'!J26","v":0}]
["Sch IVC","Premium by Zone",null,"NPW Zn 6 - Int'l Motor Non-Prop.",null,null,null,null,{"$f":"'Schedule IVC (EBS)'!J27","v":0}]
["Sch IVC","Premium by Zone",null,"NPW Zn 6 - Int'l Casualty",null,null,null,null,{"$f":"'Schedule IVC (EBS)'!J28","v":0}]
["Sch IVC","Premium by Zone",null,"NPW Zn 6 - Int'l Casualty Non-Prop.",null,null,null,null,{"$f":"'Schedule IVC (EBS)'!J29","v":0}]
["Sch IVC","Premium by Zone",null,"NPW Zn 6 - Retro Property",null,null,null,null,{"$f":"'Schedule IVC (EBS)'!J30","v":0}]
["Sch IVC","Premium by Zone",null,"NPW Zn 6 - Structured / Finite R/I",null,null,null,null,{"$f":"'Schedule IVC (EBS)'!J31","v":0}]
["Sch IVC","Premium by Zone",null,"NPW Zn 6 - Health",null,null,null,null,{"$f":"'Schedule IVC (EBS)'!J32","v":0}]
["Sch IVC","Premium by Zone",null,"NPW Zn 6 - Total",null,null,null,null,{"$f":"'Schedule IVC (EBS)'!J33","v":0}]
["Sch IVC","Premium by Zone",null,"NPW Zn 7 - Property Catastrophe",null,null,null,null,{"$f":"'Schedule IVC (EBS)'!K9","v":0}]
["Sch IVC","Premium by Zone",null,"NPW Zn 7 - Property",null,null,null,null,{"$f":"'Schedule IVC (EBS)'!K10","v":0}]
["Sch IVC","Premium by Zone",null,"NPW Zn 7 - Property Non-Proportion",null,null,null,null,{"$f":"'Schedule IVC (EBS)'!K11","v":0}]
["Sch IVC","Premium by Zone",null,"NPW Zn 7 - Personal Accident",null,null,null,null,{"$f":"'Schedule IVC (EBS)'!K12","v":0}]
["Sch IVC","Premium by Zone",null,"NPW Zn 7 - Personal Acc. Non Prop.",null,null,null,null,{"$f":"'Schedule IVC (EBS)'!K13","v":0}]
["Sch IVC","Premium by Zone",null,"NPW Zn 7 - Aviation",null,null,null,null,{"$f":"'Schedule IVC (EBS)'!K14","v":0}]
["Sch IVC","Premium by Zone",null,"NPW Zn 7 - Aviation Non-Proportional",null,null,null,null,{"$f":"'Schedule IVC (EBS)'!K15","v":0}]
["Sch IVC","Premium by Zone",null,"NPW Zn 7 - Credit Surety",null,null,null,null,{"$f":"'Schedule IVC (EBS)'!K16","v":0}]
["Sch IVC","Premium by Zone",null,"NPW Zn 7 - Credit Surety Non-Prop.",null,null,null,null,{"$f":"'Schedule IVC (EBS)'!K17","v":0}]
["Sch IVC","Premium by Zone",null,"NPW Zn 7 - Energy",null,null,null,null,{"$f":"'Schedule IVC (EBS)'!K18","v":0}]
["Sch IVC","Premium by Zone",null,"NPW Zn 7 - Energy Non-Proportional",null,null,null,null,{"$f":"'Schedule IVC (EBS)'!K19","v":0}]
["Sch IVC","Premium by Zone",null,"NPW Zn 7 - US Casualty",null,null,null,null,{"$f":"'Schedule IVC (EBS)'!K20","v":0}]
["Sch IVC","Premium by Zone",null,"NPW Zn 7 - US Casualty Non-Prop.",null,null,null,null,{"$f":"'Schedule IVC (EBS)'!K21","v":0}]
["Sch IVC","Premium by Zone",null,"NPW Zn 7 - US Professional",null,null,null,null,{"$f":"'Schedule IVC (EBS)'!K22","v":0}]
["Sch IVC","Premium by Zone",null,"NPW Zn 7 - US Professional Non-Prop.",null,null,null,null,{"$f":"'Schedule IVC (EBS)'!K23","v":0}]
["Sch IVC","Premium by Zone",null,"NPW Zn 7 - US Specialty",null,null,null,null,{"$f":"'Schedule IVC (EBS)'!K24","v":0}]
["Sch IVC","Premium by Zone",null,"NPW Zn 7 - US Specialty Non-Prop.",null,null,null,null,{"$f":"'Schedule IVC (EBS)'!K25","v":0}]
["Sch IVC","Premium by Zone",null,"NPW Zn 7 - Int'l Motor",null,null,null,null,{"$f":"'Schedule IVC (EBS)'!K26","v":0}]
["Sch IVC","Premium by Zone",null,"NPW Zn 7 - Int'l Motor Non-Prop.",null,null,null,null,{"$f":"'Schedule IVC (EBS)'!K27","v":0}]
["Sch IVC","Premium by Zone",null,"NPW Zn 7 - Int'l Casualty",null,null,null,null,{"$f":"'Schedule IVC (EBS)'!K28","v":0}]
["Sch IVC","Premium by Zone",null,"NPW Zn 7 - Int'l Casualty Non-Prop.",null,null,null,null,{"$f":"'Schedule IVC (EBS)'!K29","v":0}]
["Sch IVC","Premium by Zone",null,"NPW Zn 7 - Retro Property",null,null,null,null,{"$f":"'Schedule IVC (EBS)'!K30","v":0}]
["Sch IVC","Premium by Zone",null,"NPW Zn 7 - Structured / Finite R/I",null,null,null,null,{"$f":"'Schedule IVC (EBS)'!K31","v":0}]
["Sch IVC","Premium by Zone",null,"NPW Zn 7 - Health",null,null,null,null,{"$f":"'Schedule IVC (EBS)'!K32","v":0}]
["Sch IVC","Premium by Zone",null,"NPW Zn 7 - Total",null,null,null,null,{"$f":"'Schedule IVC (EBS)'!K33","v":0}]
["Sch IVC","Premium by Zone",null,"NPW Zn 8 - Property Catastrophe",null,null,null,null,{"$f":"'Schedule IVC (EBS)'!L9","v":0}]
["Sch IVC","Premium by Zone",null,"NPW Zn 8 - Property",null,null,null,null,{"$f":"'Schedule IVC (EBS)'!L10","v":0}]
["Sch IVC","Premium by Zone",null,"NPW Zn 8 - Property Non-Proportion",null,null,null,null,{"$f":"'Schedule IVC (EBS)'!L11","v":0}]
["Sch IVC","Premium by Zone",null,"NPW Zn 8 - Personal Accident",null,null,null,null,{"$f":"'Schedule IVC (EBS)'!L12","v":0}]
["Sch IVC","Premium by Zone",null,"NPW Zn 8 - Personal Acc. Non Prop.",null,null,null,null,{"$f":"'Schedule IVC (EBS)'!L13","v":0}]
["Sch IVC","Premium by Zone",null,"NPW Zn 8 - Aviation",null,null,null,null,{"$f":"'Schedule IVC (EBS)'!L14","v":0}]
["Sch IVC","Premium by Zone",null,"NPW Zn 8 - Aviation Non-Proportional",null,null,null,null,{"$f":"'Schedule IVC (EBS)'!L15","v":0}]
["Sch IVC","Premium by Zone",null,"NPW Zn 8 - Credit Surety",null,null,null,null,{"$f":"'Schedule IVC (EBS)'!L16","v":0}]
["Sch IVC","Premium by Zone",null,"NPW Zn 8 - Credit Surety Non-Prop.",null,null,null,null,{"$f":"'Schedule IVC (EBS)'!L17","v":0}]
["Sch IVC","Premium by Zone",null,"NPW Zn 8 - Energy",null,null,null,null,{"$f":"'Schedule IVC (EBS)'!L18","v":0}]
["Sch IVC","Premium by Zone",null,"NPW Zn 8 - Energy Non-Proportional",null,null,null,null,{"$f":"'Schedule IVC (EBS)'!L19","v":0}]
["Sch IVC","Premium by Zone",null,"NPW Zn 8 - US Casualty",null,null,null,null,{"$f":"'Schedule IVC (EBS)'!L20","v":0}]
["Sch IVC","Premium by Zone",null,"NPW Zn 8 - US Casualty Non-Prop.",null,null,null,null,{"$f":"'Schedule IVC (EBS)'!L21","v":0}]
["Sch IVC","Premium by Zone",null,"NPW Zn 8 - US Professional",null,null,null,null,{"$f":"'Schedule IVC (EBS)'!L22","v":0}]
["Sch IVC","Premium by Zone",null,"NPW Zn 8 - US Professional Non-Prop.",null,null,null,null,{"$f":"'Schedule IVC (EBS)'!L23","v":0}]
["Sch IVC","Premium by Zone",null,"NPW Zn 8 - US Specialty",null,null,null,null,{"$f":"'Schedule IVC (EBS)'!L24","v":0}]
["Sch IVC","Premium by Zone",null,"NPW Zn 8 - US Specialty Non-Prop.",null,null,null,null,{"$f":"'Schedule IVC (EBS)'!L25","v":0}]
["Sch IVC","Premium by Zone",null,"NPW Zn 8 - Int'l Motor",null,null,null,null,{"$f":"'Schedule IVC (EBS)'!L26","v":0}]
["Sch IVC","Premium by Zone",null,"NPW Zn 8 - Int'l Motor Non-Prop.",null,null,null,null,{"$f":"'Schedule IVC (EBS)'!L27","v":0}]
["Sch IVC","Premium by Zone",null,"NPW Zn 8 - Int'l Casualty",null,null,null,null,{"$f":"'Schedule IVC (EBS)'!L28","v":0}]
["Sch IVC","Premium by Zone",null,"NPW Zn 8 - Int'l Casualty Non-Prop.",null,null,null,null,{"$f":"'Schedule IVC (EBS)'!L29","v":0}]
["Sch IVC","Premium by Zone",null,"NPW Zn 8 - Retro Property",null,null,null,null,{"$f":"'Schedule IVC (EBS)'!L30","v":0}]
["Sch IVC","Premium by Zone",null,"NPW Zn 8 - Structured / Finite R/I",null,null,null,null,{"$f":"'Schedule IVC (EBS)'!L31","v":0}]
["Sch IVC","Premium by Zone",null,"NPW Zn 8 - Health",null,null,null,null,{"$f":"'Schedule IVC (EBS)'!L32","v":0}]
["Sch IVC","Premium by Zone",null,"NPW Zn 8 - Total",null,null,null,null,{"$f":"'Schedule IVC (EBS)'!L33","v":0}]
["Sch IVC","Premium by Zone",null,"NPW Zn 9 - Property Catastrophe",null,null,null,null,{"$f":"'Schedule IVC (EBS)'!M9","v":0}]
["Sch IVC","Premium by Zone",null,"NPW Zn 9 - Property",null,null,null,null,{"$f":"'Schedule IVC (EBS)'!M10","v":0}]
["Sch IVC","Premium by Zone",null,"NPW Zn 9 - Property Non-Proportion",null,null,null,null,{"$f":"'Schedule IVC (EBS)'!M11","v":0}]
["Sch IVC","Premium by Zone",null,"NPW Zn 9 - Personal Accident",null,null,null,null,{"$f":"'Schedule IVC (EBS)'!M12","v":0}]
["Sch IVC","Premium by Zone",null,"NPW Zn 9 - Personal Acc. Non Prop.",null,null,null,null,{"$f":"'Schedule IVC (EBS)'!M13","v":0}]
["Sch IVC","Premium by Zone",null,"NPW Zn 9 - Aviation",null,null,null,null,{"$f":"'Schedule IVC (EBS)'!M14","v":0}]
["Sch IVC","Premium by Zone",null,"NPW Zn 9 - Aviation Non-Proportional",null,null,null,null,{"$f":"'Schedule IVC (EBS)'!M15","v":0}]
["Sch IVC","Premium by Zone",null,"NPW Zn 9 - Credit Surety",null,null,null,null,{"$f":"'Schedule IVC (EBS)'!M16","v":0}]
["Sch IVC","Premium by Zone",null,"NPW Zn 9 - Credit Surety Non-Prop.",null,null,null,null,{"$f":"'Schedule IVC (EBS)'!M17","v":0}]
["Sch IVC","Premium by Zone",null,"NPW Zn 9 - Energy",null,null,null,null,{"$f":"'Schedule IVC (EBS)'!M18","v":0}]
["Sch IVC","Premium by Zone",null,"NPW Zn 9 - Energy Non-Proportional",null,null,null,null,{"$f":"'Schedule IVC (EBS)'!M19","v":0}]
["Sch IVC","Premium by Zone",null,"NPW Zn 9 - US Casualty",null,null,null,null,{"$f":"'Schedule IVC (EBS)'!M20","v":0}]
["Sch IVC","Premium by Zone",null,"NPW Zn 9 - US Casualty Non-Prop.",null,null,null,null,{"$f":"'Schedule IVC (EBS)'!M21","v":0}]
["Sch IVC","Premium by Zone",null,"NPW Zn 9 - US Professional",null,null,null,null,{"$f":"'Schedule IVC (EBS)'!M22","v":0}]
["Sch IVC","Premium by Zone",null,"NPW Zn 9 - US Professional Non-Prop.",null,null,null,null,{"$f":"'Schedule IVC (EBS)'!M23","v":0}]
["Sch IVC","Premium by Zone",null,"NPW Zn 9 - US Specialty",null,null,null,null,{"$f":"'Schedule IVC (EBS)'!M24","v":0}]
["Sch IVC","Premium by Zone",null,"NPW Zn 9 - US Specialty Non-Prop.",null,null,null,null,{"$f":"'Schedule IVC (EBS)'!M25","v":0}]
["Sch IVC","Premium by Zone",null,"NPW Zn 9 - Int'l Motor",null,null,null,null,{"$f":"'Schedule IVC (EBS)'!M26","v":0}]
["Sch IVC","Premium by Zone",null,"NPW Zn 9 - Int'l Motor Non-Prop.",null,null,null,null,{"$f":"'Schedule IVC (EBS)'!M27","v":0}]
["Sch IVC","Premium by Zone",null,"NPW Zn 9 - Int'l Casualty",null,null,null,null,{"$f":"'Schedule IVC (EBS)'!M28","v":0}]
["Sch IVC","Premium by Zone",null,"NPW Zn 9 - Int'l Casualty Non-Prop.",null,null,null,null,{"$f":"'Schedule IVC (EBS)'!M29","v":0}]
["Sch IVC","Premium by Zone",null,"NPW Zn 9 - Retro Property",null,null,null,null,{"$f":"'Schedule IVC (EBS)'!M30","v":0}]
["Sch IVC","Premium by Zone",null,"NPW Zn 9 - Structured / Finite R/I",null,null,null,null,{"$f":"'Schedule IVC (EBS)'!M31","v":0}]
["Sch IVC","Premium by Zone",null,"NPW Zn 9 - Health",null,null,null,null,{"$f":"'Schedule IVC (EBS)'!M32","v":0}]
["Sch IVC","Premium by Zone",null,"NPW Zn 9 - Total",null,null,null,null,{"$f":"'Schedule IVC (EBS)'!M33","v":0}]
["Sch IVC","Premium by Zone",null,"NPW Zn 10 - Property Catastrophe",null,null,null,null,{"$f":"'Schedule IVC (EBS)'!N9","v":0}]
["Sch IVC","Premium by Zone",null,"NPW Zn 10 - Property",null,null,null,null,{"$f":"'Schedule IVC (EBS)'!N10","v":0}]
["Sch IVC","Premium by Zone",null,"NPW Zn 10 - Property Non-Proportion",null,null,null,null,{"$f":"'Schedule IVC (EBS)'!N11","v":0}]
["Sch IVC","Premium by Zone",null,"NPW Zn 10 - Personal Accident",null,null,null,null,{"$f":"'Schedule IVC (EBS)'!N12","v":0}]
["Sch IVC","Premium by Zone",null,"NPW Zn 10 - Personal Acc. Non Prop.",null,null,null,null,{"$f":"'Schedule IVC (EBS)'!N13","v":0}]
["Sch IVC","Premium by Zone",null,"NPW Zn 10 - Aviation",null,null,null,null,{"$f":"'Schedule IVC (EBS)'!N14","v":0}]
["Sch IVC","Premium by Zone",null,"NPW Zn 10 - Aviation Non-Proportional",null,null,null,null,{"$f":"'Schedule IVC (EBS)'!N15","v":0}]
["Sch IVC","Premium by Zone",null,"NPW Zn 10 - Credit Surety",null,null,null,null,{"$f":"'Schedule IVC (EBS)'!N16","v":0}]
["Sch IVC","Premium by Zone",null,"NPW Zn 10 - Credit Surety Non-Prop.",null,null,null,null,{"$f":"'Schedule IVC (EBS)'!N17","v":0}]
["Sch IVC","Premium by Zone",null,"NPW Zn 10 - Energy",null,null,null,null,{"$f":"'Schedule IVC (EBS)'!N18","v":0}]
["Sch IVC","Premium by Zone",null,"NPW Zn 10 - Energy Non-Proportional",null,null,null,null,{"$f":"'Schedule IVC (EBS)'!N19","v":0}]
["Sch IVC","Premium by Zone",null,"NPW Zn 10 - US Casualty",null,null,null,null,{"$f":"'Schedule IVC (EBS)'!N20","v":0}]
["Sch IVC","Premium by Zone",null,"NPW Zn 10 - US Casualty Non-Prop.",null,null,null,null,{"$f":"'Schedule IVC (EBS)'!N21","v":0}]
["Sch IVC","Premium by Zone",null,"NPW Zn 10 - US Professional",null,null,null,null,{"$f":"'Schedule IVC (EBS)'!N22","v":0}]
["Sch IVC","Premium by Zone",null,"NPW Zn 10 - US Professional Non-Prop.",null,null,null,null,{"$f":"'Schedule IVC (EBS)'!N23","v":0}]
["Sch IVC","Premium by Zone",null,"NPW Zn 10 - US Specialty",null,null,null,null,{"$f":"'Schedule IVC (EBS)'!N24","v":0}]
["Sch IVC","Premium by Zone",null,"NPW Zn 10 - US Specialty Non-Prop.",null,null,null,null,{"$f":"'Schedule IVC (EBS)'!N25","v":0}]
["Sch IVC","Premium by Zone",null,"NPW Zn 10 - Int'l Motor",null,null,null,null,{"$f":"'Schedule IVC (EBS)'!N26","v":0}]
["Sch IVC","Premium by Zone",null,"NPW Zn 10 - Int'l Motor Non-Prop.",null,null,null,null,{"$f":"'Schedule IVC (EBS)'!N27","v":0}]
["Sch IVC","Premium by Zone",null,"NPW Zn 10 - Int'l Casualty",null,null,null,null,{"$f":"'Schedule IVC (EBS)'!N28","v":0}]
["Sch IVC","Premium by Zone",null,"NPW Zn 10 - Int'l Casualty Non-Prop.",null,null,null,null,{"$f":"'Schedule IVC (EBS)'!N29","v":0}]
["Sch IVC","Premium by Zone",null,"NPW Zn 10 - Retro Property",null,null,null,null,{"$f":"'Schedule IVC (EBS)'!N30","v":0}]
["Sch IVC","Premium by Zone",null,"NPW Zn 10 - Structured / Finite R/I",null,null,null,null,{"$f":"'Schedule IVC (EBS)'!N31","v":0}]
["Sch IVC","Premium by Zone",null,"NPW Zn 10 - Health",null,null,null,null,{"$f":"'Schedule IVC (EBS)'!N32","v":0}]
["Sch IVC","Premium by Zone",null,"NPW Zn 10 - Total",null,null,null,null,{"$f":"'Schedule IVC (EBS)'!N33","v":0}]
["Sch IVC","Premium by Zone",null,"NPW Zn 11 - Property Catastrophe",null,null,null,null,{"$f":"'Schedule IVC (EBS)'!O9","v":0}]
["Sch IVC","Premium by Zone",null,"NPW Zn 11 - Property",null,null,null,null,{"$f":"'Schedule IVC (EBS)'!O10","v":0}]
["Sch IVC","Premium by Zone",null,"NPW Zn 11 - Property Non-Proportion",null,null,null,null,{"$f":"'Schedule IVC (EBS)'!O11","v":0}]
["Sch IVC","Premium by Zone",null,"NPW Zn 11 - Personal Accident",null,null,null,null,{"$f":"'Schedule IVC (EBS)'!O12","v":0}]
["Sch IVC","Premium by Zone",null,"NPW Zn 11 - Personal Acc. Non Prop.",null,null,null,null,{"$f":"'Schedule IVC (EBS)'!O13","v":0}]
["Sch IVC","Premium by Zone",null,"NPW Zn 11 - Aviation",null,null,null,null,{"$f":"'Schedule IVC (EBS)'!O14","v":0}]
["Sch IVC","Premium by Zone",null,"NPW Zn 11 - Aviation Non-Proportional",null,null,null,null,{"$f":"'Schedule IVC (EBS)'!O15","v":0}]
["Sch IVC","Premium by Zone",null,"NPW Zn 11 - Credit Surety",null,null,null,null,{"$f":"'Schedule IVC (EBS)'!O16","v":0}]
["Sch IVC","Premium by Zone",null,"NPW Zn 11 - Credit Surety Non-Prop.",null,null,null,null,{"$f":"'Schedule IVC (EBS)'!O17","v":0}]
["Sch IVC","Premium by Zone",null,"NPW Zn 11 - Energy",null,null,null,null,{"$f":"'Schedule IVC (EBS)'!O18","v":0}]
["Sch IVC","Premium by Zone",null,"NPW Zn 11 - Energy Non-Proportional",null,null,null,null,{"$f":"'Schedule IVC (EBS)'!O19","v":0}]
["Sch IVC","Premium by Zone",null,"NPW Zn 11 - US Casualty",null,null,null,null,{"$f":"'Schedule IVC (EBS)'!O20","v":0}]
["Sch IVC","Premium by Zone",null,"NPW Zn 11 - US Casualty Non-Prop.",null,null,null,null,{"$f":"'Schedule IVC (EBS)'!O21","v":0}]
["Sch IVC","Premium by Zone",null,"NPW Zn 11 - US Professional",null,null,null,null,{"$f":"'Schedule IVC (EBS)'!O22","v":0}]
["Sch IVC","Premium by Zone",null,"NPW Zn 11 - US Professional Non-Prop.",null,null,null,null,{"$f":"'Schedule IVC (EBS)'!O23","v":0}]
["Sch IVC","Premium by Zone",null,"NPW Zn 11 - US Specialty",null,null,null,null,{"$f":"'Schedule IVC (EBS)'!O24","v":0}]
["Sch IVC","Premium by Zone",null,"NPW Zn 11 - US Specialty Non-Prop.",null,null,null,null,{"$f":"'Schedule IVC (EBS)'!O25","v":0}]
["Sch IVC","Premium by Zone",null,"NPW Zn 11 - Int'l Motor",null,null,null,null,{"$f":"'Schedule IVC (EBS)'!O26","v":0}]
["Sch IVC","Premium by Zone",null,"NPW Zn 11 - Int'l Motor Non-Prop.",null,null,null,null,{"$f":"'Schedule IVC (EBS)'!O27","v":0}]
["Sch IVC","Premium by Zone",null,"NPW Zn 11 - Int'l Casualty",null,null,null,null,{"$f":"'Schedule IVC (EBS)'!O28","v":0}]
["Sch IVC","Premium by Zone",null,"NPW Zn 11 - Int'l Casualty Non-Prop.",null,null,null,null,{"$f":"'Schedule IVC (EBS)'!O29","v":0}]
["Sch IVC","Premium by Zone",null,"NPW Zn 11 - Retro Property",null,null,null,null,{"$f":"'Schedule IVC (EBS)'!O30","v":0}]
["Sch IVC","Premium by Zone",null,"NPW Zn 11 - Structured / Finite R/I",null,null,null,null,{"$f":"'Schedule IVC (EBS)'!O31","v":0}]
["Sch IVC","Premium by Zone",null,"NPW Zn 11 - Health",null,null,null,null,{"$f":"'Schedule IVC (EBS)'!O32","v":0}]
["Sch IVC","Premium by Zone",null,"NPW Zn 11 - Total",null,null,null,null,{"$f":"'Schedule IVC (EBS)'!O33","v":0}]
["Sch IVC","Premium by Zone",null,"NPW Zn 12 - Property Catastrophe",null,null,null,null,{"$f":"'Schedule IVC (EBS)'!P9","v":0}]
["Sch IVC","Premium by Zone",null,"NPW Zn 12 - Property",null,null,null,null,{"$f":"'Schedule IVC (EBS)'!P10","v":0}]
["Sch IVC","Premium by Zone",null,"NPW Zn 12 - Property Non-Proportion",null,null,null,null,{"$f":"'Schedule IVC (EBS)'!P11","v":0}]
["Sch IVC","Premium by Zone",null,"NPW Zn 12 - Personal Accident",null,null,null,null,{"$f":"'Schedule IVC (EBS)'!P12","v":0}]
["Sch IVC","Premium by Zone",null,"NPW Zn 12 - Personal Acc. Non Prop.",null,null,null,null,{"$f":"'Schedule IVC (EBS)'!P13","v":0}]
["Sch IVC","Premium by Zone",null,"NPW Zn 12 - Aviation",null,null,null,null,{"$f":"'Schedule IVC (EBS)'!P14","v":0}]
["Sch IVC","Premium by Zone",null,"NPW Zn 12 - Aviation Non-Proportional",null,null,null,null,{"$f":"'Schedule IVC (EBS)'!P15","v":0}]
["Sch IVC","Premium by Zone",null,"NPW Zn 12 - Credit Surety",null,null,null,null,{"$f":"'Schedule IVC (EBS)'!P16","v":0}]
["Sch IVC","Premium by Zone",null,"NPW Zn 12 - Credit Surety Non-Prop.",null,null,null,null,{"$f":"'Schedule IVC (EBS)'!P17","v":0}]
["Sch IVC","Premium by Zone",null,"NPW Zn 12 - Energy",null,null,null,null,{"$f":"'Schedule IVC (EBS)'!P18","v":0}]
["Sch IVC","Premium by Zone",null,"NPW Zn 12 - Energy Non-Proportional",null,null,null,null,{"$f":"'Schedule IVC (EBS)'!P19","v":0}]
["Sch IVC","Premium by Zone",null,"NPW Zn 12 - US Casualty",null,null,null,null,{"$f":"'Schedule IVC (EBS)'!P20","v":0}]
["Sch IVC","Premium by Zone",null,"NPW Zn 12 - US Casualty Non-Prop.",null,null,null,null,{"$f":"'Schedule IVC (EBS)'!P21","v":0}]
["Sch IVC","Premium by Zone",null,"NPW Zn 12 - US Professional",null,null,null,null,{"$f":"'Schedule IVC (EBS)'!P22","v":0}]
["Sch IVC","Premium by Zone",null,"NPW Zn 12 - US Professional Non-Prop.",null,null,null,null,{"$f":"'Schedule IVC (EBS)'!P23","v":0}]
["Sch IVC","Premium by Zone",null,"NPW Zn 12 - US Specialty",null,null,null,null,{"$f":"'Schedule IVC (EBS)'!P24","v":0}]
["Sch IVC","Premium by Zone",null,"NPW Zn 12 - US Specialty Non-Prop.",null,null,null,null,{"$f":"'Schedule IVC (EBS)'!P25","v":0}]
["Sch IVC","Premium by Zone",null,"NPW Zn 12 - Int'l Motor",null,null,null,null,{"$f":"'Schedule IVC (EBS)'!P26","v":0}]
["Sch IVC","Premium by Zone",null,"NPW Zn 12 - Int'l Motor Non-Prop.",null,null,null,null,{"$f":"'Schedule IVC (EBS)'!P27","v":0}]
["Sch IVC","Premium by Zone",null,"NPW Zn 12 - Int'l Casualty",null,null,null,null,{"$f":"'Schedule IVC (EBS)'!P28","v":0}]
["Sch IVC","Premium by Zone",null,"NPW Zn 12 - Int'l Casualty Non-Prop.",null,null,null,null,{"$f":"'Schedule IVC (EBS)'!P29","v":0}]
["Sch IVC","Premium by Zone",null,"NPW Zn 12 - Retro Property",null,null,null,null,{"$f":"'Schedule IVC (EBS)'!P30","v":0}]
["Sch IVC","Premium by Zone",null,"NPW Zn 12 - Structured / Finite R/I",null,null,null,null,{"$f":"'Schedule IVC (EBS)'!P31","v":0}]
["Sch IVC","Premium by Zone",null,"NPW Zn 12 - Health",null,null,null,null,{"$f":"'Schedule IVC (EBS)'!P32","v":0}]
["Sch IVC","Premium by Zone",null,"NPW Zn 12 - Total",null,null,null,null,{"$f":"'Schedule IVC (EBS)'!P33","v":0}]
["Sch IVC","Premium by Zone",null,"NPW Zn 13 - Property Catastrophe",null,null,null,null,{"$f":"'Schedule IVC (EBS)'!Q9","v":0}]
["Sch IVC","Premium by Zone",null,"NPW Zn 13 - Property",null,null,null,null,{"$f":"'Schedule IVC (EBS)'!Q10","v":0}]
["Sch IVC","Premium by Zone",null,"NPW Zn 13 - Property Non-Proportion",null,null,null,null,{"$f":"'Schedule IVC (EBS)'!Q11","v":0}]
["Sch IVC","Premium by Zone",null,"NPW Zn 13 - Personal Accident",null,null,null,null,{"$f":"'Schedule IVC (EBS)'!Q12","v":0}]
["Sch IVC","Premium by Zone",null,"NPW Zn 13 - Personal Acc. Non Prop.",null,null,null,null,{"$f":"'Schedule IVC (EBS)'!Q13","v":0}]
["Sch IVC","Premium by Zone",null,"NPW Zn 13 - Aviation",null,null,null,null,{"$f":"'Schedule IVC (EBS)'!Q14","v":0}]
["Sch IVC","Premium by Zone",null,"NPW Zn 13 - Aviation Non-Proportional",null,null,null,null,{"$f":"'Schedule IVC (EBS)'!Q15","v":0}]
["Sch IVC","Premium by Zone",null,"NPW Zn 13 - Credit Surety",null,null,null,null,{"$f":"'Schedule IVC (EBS)'!Q16","v":0}]
["Sch IVC","Premium by Zone",null,"NPW Zn 13 - Credit Surety Non-Prop.",null,null,null,null,{"$f":"'Schedule IVC (EBS)'!Q17","v":0}]
["Sch IVC","Premium by Zone",null,"NPW Zn 13 - Energy",null,null,null,null,{"$f":"'Schedule IVC (EBS)'!Q18","v":0}]
["Sch IVC","Premium by Zone",null,"NPW Zn 13 - Energy Non-Proportional",null,null,null,null,{"$f":"'Schedule IVC (EBS)'!Q19","v":0}]
["Sch IVC","Premium by Zone",null,"NPW Zn 13 - US Casualty",null,null,null,null,{"$f":"'Schedule IVC (EBS)'!Q20","v":0}]
["Sch IVC","Premium by Zone",null,"NPW Zn 13 - US Casualty Non-Prop.",null,null,null,null,{"$f":"'Schedule IVC (EBS)'!Q21","v":0}]
["Sch IVC","Premium by Zone",null,"NPW Zn 13 - US Professional",null,null,null,null,{"$f":"'Schedule IVC (EBS)'!Q22","v":0}]
["Sch IVC","Premium by Zone",null,"NPW Zn 13 - US Professional Non-Prop.",null,null,null,null,{"$f":"'Schedule IVC (EBS)'!Q23","v":0}]
["Sch IVC","Premium by Zone",null,"NPW Zn 13 - US Specialty",null,null,null,null,{"$f":"'Schedule IVC (EBS)'!Q24","v":0}]
["Sch IVC","Premium by Zone",null,"NPW Zn 13 - US Specialty Non-Prop.",null,null,null,null,{"$f":"'Schedule IVC (EBS)'!Q25","v":0}]
["Sch IVC","Premium by Zone",null,"NPW Zn 13 - Int'l Motor",null,null,null,null,{"$f":"'Schedule IVC (EBS)'!Q26","v":0}]
["Sch IVC","Premium by Zone",null,"NPW Zn 13 - Int'l Motor Non-Prop.",null,null,null,null,{"$f":"'Schedule IVC (EBS)'!Q27","v":0}]
["Sch IVC","Premium by Zone",null,"NPW Zn 13 - Int'l Casualty",null,null,null,null,{"$f":"'Schedule IVC (EBS)'!Q28","v":0}]
["Sch IVC","Premium by Zone",null,"NPW Zn 13 - Int'l Casualty Non-Prop.",null,null,null,null,{"$f":"'Schedule IVC (EBS)'!Q29","v":0}]
["Sch IVC","Premium by Zone",null,"NPW Zn 13 - Retro Property",null,null,null,null,{"$f":"'Schedule IVC (EBS)'!Q30","v":0}]
["Sch IVC","Premium by Zone",null,"NPW Zn 13 - Structured / Finite R/I",null,null,null,null,{"$f":"'Schedule IVC (EBS)'!Q31","v":0}]
["Sch IVC","Premium by Zone",null,"NPW Zn 13 - Health",null,null,null,null,{"$f":"'Schedule IVC (EBS)'!Q32","v":0}]
["Sch IVC","Premium by Zone",null,"NPW Zn 13 - Total",null,null,null,null,{"$f":"'Schedule IVC (EBS)'!Q33","v":0}]
["Sch IVC","Premium by Zone",null,"NPW Zn 14 - Property Catastrophe",null,null,null,null,{"$f":"'Schedule IVC (EBS)'!R9","v":0}]
["Sch IVC","Premium by Zone",null,"NPW Zn 14 - Property",null,null,null,null,{"$f":"'Schedule IVC (EBS)'!R10","v":0}]
["Sch IVC","Premium by Zone",null,"NPW Zn 14 - Property Non-Proportion",null,null,null,null,{"$f":"'Schedule IVC (EBS)'!R11","v":0}]
["Sch IVC","Premium by Zone",null,"NPW Zn 14 - Personal Accident",null,null,null,null,{"$f":"'Schedule IVC (EBS)'!R12","v":0}]
["Sch IVC","Premium by Zone",null,"NPW Zn 14 - Personal Acc. Non Prop.",null,null,null,null,{"$f":"'Schedule IVC (EBS)'!R13","v":0}]
["Sch IVC","Premium by Zone",null,"NPW Zn 14 - Aviation",null,null,null,null,{"$f":"'Schedule IVC (EBS)'!R14","v":0}]
["Sch IVC","Premium by Zone",null,"NPW Zn 14 - Aviation Non-Proportional",null,null,null,null,{"$f":"'Schedule IVC (EBS)'!R15","v":0}]
["Sch IVC","Premium by Zone",null,"NPW Zn 14 - Credit Surety",null,null,null,null,{"$f":"'Schedule IVC (EBS)'!R16","v":0}]
["Sch IVC","Premium by Zone",null,"NPW Zn 14 - Credit Surety Non-Prop.",null,null,null,null,{"$f":"'Schedule IVC (EBS)'!R17","v":0}]
["Sch IVC","Premium by Zone",null,"NPW Zn 14 - Energy",null,null,null,null,{"$f":"'Schedule IVC (EBS)'!R18","v":0}]
["Sch IVC","Premium by Zone",null,"NPW Zn 14 - Energy Non-Proportional",null,null,null,null,{"$f":"'Schedule IVC (EBS)'!R19","v":0}]
["Sch IVC","Premium by Zone",null,"NPW Zn 14 - US Casualty",null,null,null,null,{"$f":"'Schedule IVC (EBS)'!R20","v":0}]
["Sch IVC","Premium by Zone",null,"NPW Zn 14 - US Casualty Non-Prop.",null,null,null,null,{"$f":"'Schedule IVC (EBS)'!R21","v":0}]
["Sch IVC","Premium by Zone",null,"NPW Zn 14 - US Professional",null,null,null,null,{"$f":"'Schedule IVC (EBS)'!R22","v":0}]
["Sch IVC","Premium by Zone",null,"NPW Zn 14 - US Professional Non-Prop.",null,null,null,null,{"$f":"'Schedule IVC (EBS)'!R23","v":0}]
["Sch IVC","Premium by Zone",null,"NPW Zn 14 - US Specialty",null,null,null,null,{"$f":"'Schedule IVC (EBS)'!R24","v":0}]
["Sch IVC","Premium by Zone",null,"NPW Zn 14 - US Specialty Non-Prop.",null,null,null,null,{"$f":"'Schedule IVC (EBS)'!R25","v":0}]
["Sch IVC","Premium by Zone",null,"NPW Zn 14 - Int'l Motor",null,null,null,null,{"$f":"'Schedule IVC (EBS)'!R26","v":0}]
["Sch IVC","Premium by Zone",null,"NPW Zn 14 - Int'l Motor Non-Prop.",null,null,null,null,{"$f":"'Schedule IVC (EBS)'!R27","v":0}]
["Sch IVC","Premium by Zone",null,"NPW Zn 14 - Int'l Casualty",null,null,null,null,{"$f":"'Schedule IVC (EBS)'!R28","v":0}]
["Sch IVC","Premium by Zone",null,"NPW Zn 14 - Int'l Casualty Non-Prop.",null,null,null,null,{"$f":"'Schedule IVC (EBS)'!R29","v":0}]
["Sch IVC","Premium by Zone",null,"NPW Zn 14 - Retro Property",null,null,null,null,{"$f":"'Schedule IVC (EBS)'!R30","v":0}]
["Sch IVC","Premium by Zone",null,"NPW Zn 14 - Structured / Finite R/I",null,null,null,null,{"$f":"'Schedule IVC (EBS)'!R31","v":0}]
["Sch IVC","Premium by Zone",null,"NPW Zn 14 - Health",null,null,null,null,{"$f":"'Schedule IVC (EBS)'!R32","v":0}]
["Sch IVC","Premium by Zone",null,"NPW Zn 14 - Total",null,null,null,null,{"$f":"'Schedule IVC (EBS)'!R33","v":0}]
["Sch IVC","Premium by Zone",null,"NPW Zn 15 - Property Catastrophe",null,null,null,null,{"$f":"'Schedule IVC (EBS)'!S9","v":0}]
["Sch IVC","Premium by Zone",null,"NPW Zn 15 - Property",null,null,null,null,{"$f":"'Schedule IVC (EBS)'!S10","v":0}]
["Sch IVC","Premium by Zone",null,"NPW Zn 15 - Property Non-Proportion",null,null,null,null,{"$f":"'Schedule IVC (EBS)'!S11","v":0}]
["Sch IVC","Premium by Zone",null,"NPW Zn 15 - Personal Accident",null,null,null,null,{"$f":"'Schedule IVC (EBS)'!S12","v":0}]
["Sch IVC","Premium by Zone",null,"NPW Zn 15 - Personal Acc. Non Prop.",null,null,null,null,{"$f":"'Schedule IVC (EBS)'!S13","v":0}]
["Sch IVC","Premium by Zone",null,"NPW Zn 15 - Aviation",null,null,null,null,{"$f":"'Schedule IVC (EBS)'!S14","v":0}]
["Sch IVC","Premium by Zone",null,"NPW Zn 15 - Aviation Non-Proportional",null,null,null,null,{"$f":"'Schedule IVC (EBS)'!S15","v":0}]
["Sch IVC","Premium by Zone",null,"NPW Zn 15 - Credit Surety",null,null,null,null,{"$f":"'Schedule IVC (EBS)'!S16","v":0}]
["Sch IVC","Premium by Zone",null,"NPW Zn 15 - Credit Surety Non-Prop.",null,null,null,null,{"$f":"'Schedule IVC (EBS)'!S17","v":0}]
["Sch IVC","Premium by Zone",null,"NPW Zn 15 - Energy",null,null,null,null,{"$f":"'Schedule IVC (EBS)'!S18","v":0}]
["Sch IVC","Premium by Zone",null,"NPW Zn 15 - Energy Non-Proportional",null,null,null,null,{"$f":"'Schedule IVC (EBS)'!S19","v":0}]
["Sch IVC","Premium by Zone",null,"NPW Zn 15 - US Casualty",null,null,null,null,{"$f":"'Schedule IVC (EBS)'!S20","v":0}]
["Sch IVC","Premium by Zone",null,"NPW Zn 15 - US Casualty Non-Prop.",null,null,null,null,{"$f":"'Schedule IVC (EBS)'!S21","v":0}]
["Sch IVC","Premium by Zone",null,"NPW Zn 15 - US Professional",null,null,null,null,{"$f":"'Schedule IVC (EBS)'!S22","v":0}]
["Sch IVC","Premium by Zone",null,"NPW Zn 15 - US Professional Non-Prop.",null,null,null,null,{"$f":"'Schedule IVC (EBS)'!S23","v":0}]
["Sch IVC","Premium by Zone",null,"NPW Zn 15 - US Specialty",null,null,null,null,{"$f":"'Schedule IVC (EBS)'!S24","v":0}]
["Sch IVC","Premium by Zone",null,"NPW Zn 15 - US Specialty Non-Prop.",null,null,null,null,{"$f":"'Schedule IVC (EBS)'!S25","v":0}]
["Sch IVC","Premium by Zone",null,"NPW Zn 15 - Int'l Motor",null,null,null,null,{"$f":"'Schedule IVC (EBS)'!S26","v":0}]
["Sch IVC","Premium by Zone",null,"NPW Zn 15 - Int'l Motor Non-Prop.",null,null,null,null,{"$f":"'Schedule IVC (EBS)'!S27","v":0}]
["Sch IVC","Premium by Zone",null,"NPW Zn 15 - Int'l Casualty",null,null,null,null,{"$f":"'Schedule IVC (EBS)'!S28","v":0}]
["Sch IVC","Premium by Zone",null,"NPW Zn 15 - Int'l Casualty Non-Prop.",null,null,null,null,{"$f":"'Schedule IVC (EBS)'!S29","v":0}]
["Sch IVC","Premium by Zone",null,"NPW Zn 15 - Retro Property",null,null,null,null,{"$f":"'Schedule IVC (EBS)'!S30","v":0}]
["Sch IVC","Premium by Zone",null,"NPW Zn 15 - Structured / Finite R/I",null,null,null,null,{"$f":"'Schedule IVC (EBS)'!S31","v":0}]
["Sch IVC","Premium by Zone",null,"NPW Zn 15 - Health",null,null,null,null,{"$f":"'Schedule IVC (EBS)'!S32","v":0}]
["Sch IVC","Premium by Zone",null,"NPW Zn 15 - Total",null,null,null,null,{"$f":"'Schedule IVC (EBS)'!S33","v":0}]
["Sch IVC","Premium by Zone",null,"NPW Zn 16 - Property Catastrophe",null,null,null,null,{"$f":"'Schedule IVC (EBS)'!T9","v":0}]
["Sch IVC","Premium by Zone",null,"NPW Zn 16 - Property",null,null,null,null,{"$f":"'Schedule IVC (EBS)'!T10","v":0}]
["Sch IVC","Premium by Zone",null,"NPW Zn 16 - Property Non-Proportion",null,null,null,null,{"$f":"'Schedule IVC (EBS)'!T11","v":0}]
["Sch IVC","Premium by Zone",null,"NPW Zn 16 - Personal Accident",null,null,null,null,{"$f":"'Schedule IVC (EBS)'!T12","v":0}]
["Sch IVC","Premium by Zone",null,"NPW Zn 16 - Personal Acc. Non Prop.",null,null,null,null,{"$f":"'Schedule IVC (EBS)'!T13","v":0}]
["Sch IVC","Premium by Zone",null,"NPW Zn 16 - Aviation",null,null,null,null,{"$f":"'Schedule IVC (EBS)'!T14","v":0}]
["Sch IVC","Premium by Zone",null,"NPW Zn 16 - Aviation Non-Proportional",null,null,null,null,{"$f":"'Schedule IVC (EBS)'!T15","v":0}]
["Sch IVC","Premium by Zone",null,"NPW Zn 16 - Credit Surety",null,null,null,null,{"$f":"'Schedule IVC (EBS)'!T16","v":0}]
["Sch IVC","Premium by Zone",null,"NPW Zn 16 - Credit Surety Non-Prop.",null,null,null,null,{"$f":"'Schedule IVC (EBS)'!T17","v":0}]
["Sch IVC","Premium by Zone",null,"NPW Zn 16 - Energy",null,null,null,null,{"$f":"'Schedule IVC (EBS)'!T18","v":0}]
["Sch IVC","Premium by Zone",null,"NPW Zn 16 - Energy Non-Proportional",null,null,null,null,{"$f":"'Schedule IVC (EBS)'!T19","v":0}]
["Sch IVC","Premium by Zone",null,"NPW Zn 16 - US Casualty",null,null,null,null,{"$f":"'Schedule IVC (EBS)'!T20","v":0}]
["Sch IVC","Premium by Zone",null,"NPW Zn 16 - US Casualty Non-Prop.",null,null,null,null,{"$f":"'Schedule IVC (EBS)'!T21","v":0}]
["Sch IVC","Premium by Zone",null,"NPW Zn 16 - US Professional",null,null,null,null,{"$f":"'Schedule IVC (EBS)'!T22","v":0}]
["Sch IVC","Premium by Zone",null,"NPW Zn 16 - US Professional Non-Prop.",null,null,null,null,{"$f":"'Schedule IVC (EBS)'!T23","v":0}]
["Sch IVC","Premium by Zone",null,"NPW Zn 16 - US Specialty",null,null,null,null,{"$f":"'Schedule IVC (EBS)'!T24","v":0}]
["Sch IVC","Premium by Zone",null,"NPW Zn 16 - US Specialty Non-Prop.",null,null,null,null,{"$f":"'Schedule IVC (EBS)'!T25","v":0}]
["Sch IVC","Premium by Zone",null,"NPW Zn 16 - Int'l Motor",null,null,null,null,{"$f":"'Schedule IVC (EBS)'!T26","v":0}]
["Sch IVC","Premium by Zone",null,"NPW Zn 16 - Int'l Motor Non-Prop.",null,null,null,null,{"$f":"'Schedule IVC (EBS)'!T27","v":0}]
["Sch IVC","Premium by Zone",null,"NPW Zn 16 - Int'l Casualty",null,null,null,null,{"$f":"'Schedule IVC (EBS)'!T28","v":0}]
["Sch IVC","Premium by Zone",null,"NPW Zn 16 - Int'l Casualty Non-Prop.",null,null,null,null,{"$f":"'Schedule IVC (EBS)'!T29","v":0}]
["Sch IVC","Premium by Zone",null,"NPW Zn 16 - Retro Property",null,null,null,null,{"$f":"'Schedule IVC (EBS)'!T30","v":0}]
["Sch IVC","Premium by Zone",null,"NPW Zn 16 - Structured / Finite R/I",null,null,null,null,{"$f":"'Schedule IVC (EBS)'!T31","v":0}]
["Sch IVC","Premium by Zone",null,"NPW Zn 16 - Health",null,null,null,null,{"$f":"'Schedule IVC (EBS)'!T32","v":0}]
["Sch IVC","Premium by Zone",null,"NPW Zn 16 - Total",null,null,null,null,{"$f":"'Schedule IVC (EBS)'!T33","v":0}]
["Sch IVC","Premium by Zone",null,"NPW Zn 17 - Property Catastrophe",null,null,null,null,{"$f":"'Schedule IVC (EBS)'!U9","v":0}]
["Sch IVC","Premium by Zone",null,"NPW Zn 17 - Property",null,null,null,null,{"$f":"'Schedule IVC (EBS)'!U10","v":0}]
["Sch IVC","Premium by Zone",null,"NPW Zn 17 - Property Non-Proportion",null,null,null,null,{"$f":"'Schedule IVC (EBS)'!U11","v":0}]
["Sch IVC","Premium by Zone",null,"NPW Zn 17 - Personal Accident",null,null,null,null,{"$f":"'Schedule IVC (EBS)'!U12","v":0}]
["Sch IVC","Premium by Zone",null,"NPW Zn 17 - Personal Acc. Non Prop.",null,null,null,null,{"$f":"'Schedule IVC (EBS)'!U13","v":0}]
["Sch IVC","Premium by Zone",null,"NPW Zn 17 - Aviation",null,null,null,null,{"$f":"'Schedule IVC (EBS)'!U14","v":0}]
["Sch IVC","Premium by Zone",null,"NPW Zn 17 - Aviation Non-Proportional",null,null,null,null,{"$f":"'Schedule IVC (EBS)'!U15","v":0}]
["Sch IVC","Premium by Zone",null,"NPW Zn 17 - Credit Surety",null,null,null,null,{"$f":"'Schedule IVC (EBS)'!U16","v":0}]
["Sch IVC","Premium by Zone",null,"NPW Zn 17 - Credit Surety Non-Prop.",null,null,null,null,{"$f":"'Schedule IVC (EBS)'!U17","v":0}]
["Sch IVC","Premium by Zone",null,"NPW Zn 17 - Energy",null,null,null,null,{"$f":"'Schedule IVC (EBS)'!U18","v":0}]
["Sch IVC","Premium by Zone",null,"NPW Zn 17 - Energy Non-Proportional",null,null,null,null,{"$f":"'Schedule IVC (EBS)'!U19","v":0}]
["Sch IVC","Premium by Zone",null,"NPW Zn 17 - US Casualty",null,null,null,null,{"$f":"'Schedule IVC (EBS)'!U20","v":0}]
["Sch IVC","Premium by Zone",null,"NPW Zn 17 - US Casualty Non-Prop.",null,null,null,null,{"$f":"'Schedule IVC (EBS)'!U21","v":0}]
["Sch IVC","Premium by Zone",null,"NPW Zn 17 - US Professional",null,null,null,null,{"$f":"'Schedule IVC (EBS)'!U22","v":0}]
["Sch IVC","Premium by Zone",null,"NPW Zn 17 - US Professional Non-Prop.",null,null,null,null,{"$f":"'Schedule IVC (EBS)'!U23","v":0}]
["Sch IVC","Premium by Zone",null,"NPW Zn 17 - US Specialty",null,null,null,null,{"$f":"'Schedule IVC (EBS)'!U24","v":0}]
["Sch IVC","Premium by Zone",null,"NPW Zn 17 - US Specialty Non-Prop.",null,null,null,null,{"$f":"'Schedule IVC (EBS)'!U25","v":0}]
["Sch IVC","Premium by Zone",null,"NPW Zn 17 - Int'l Motor",null,null,null,null,{"$f":"'Schedule IVC (EBS)'!U26","v":0}]
["Sch IVC","Premium by Zone",null,"NPW Zn 17 - Int'l Motor Non-Prop.",null,null,null,null,{"$f":"'Schedule IVC (EBS)'!U27","v":0}]
["Sch IVC","Premium by Zone",null,"NPW Zn 17 - Int'l Casualty",null,null,null,null,{"$f":"'Schedule IVC (EBS)'!U28","v":0}]
["Sch IVC","Premium by Zone",null,"NPW Zn 17 - Int'l Casualty Non-Prop.",null,null,null,null,{"$f":"'Schedule IVC (EBS)'!U29","v":0}]
["Sch IVC","Premium by Zone",null,"NPW Zn 17 - Retro Property",null,null,null,null,{"$f":"'Schedule IVC (EBS)'!U30","v":0}]
["Sch IVC","Premium by Zone",null,"NPW Zn 17 - Structured / Finite R/I",null,null,null,null,{"$f":"'Schedule IVC (EBS)'!U31","v":0}]
["Sch IVC","Premium by Zone",null,"NPW Zn 17 - Health",null,null,null,null,{"$f":"'Schedule IVC (EBS)'!U32","v":0}]
["Sch IVC","Premium by Zone",null,"NPW Zn 17 - Total",null,null,null,null,{"$f":"'Schedule IVC (EBS)'!U33","v":0}]
["Sch IVC","Premium by Zone",null,"NPW Zn 18 - Property Catastrophe",null,null,null,null,{"$f":"'Schedule IVC (EBS)'!V9","v":0}]
["Sch IVC","Premium by Zone",null,"NPW Zn 18 - Property",null,null,null,null,{"$f":"'Schedule IVC (EBS)'!V10","v":0}]
["Sch IVC","Premium by Zone",null,"NPW Zn 18 - Property Non-Proportion",null,null,null,null,{"$f":"'Schedule IVC (EBS)'!V11","v":0}]
["Sch IVC","Premium by Zone",null,"NPW Zn 18 - Personal Accident",null,null,null,null,{"$f":"'Schedule IVC (EBS)'!V12","v":0}]
["Sch IVC","Premium by Zone",null,"NPW Zn 18 - Personal Acc. Non Prop.",null,null,null,null,{"$f":"'Schedule IVC (EBS)'!V13","v":0}]
["Sch IVC","Premium by Zone",null,"NPW Zn 18 - Aviation",null,null,null,null,{"$f":"'Schedule IVC (EBS)'!V14","v":0}]
["Sch IVC","Premium by Zone",null,"NPW Zn 18 - Aviation Non-Proportional",null,null,null,null,{"$f":"'Schedule IVC (EBS)'!V15","v":0}]
["Sch IVC","Premium by Zone",null,"NPW Zn 18 - Credit Surety",null,null,null,null,{"$f":"'Schedule IVC (EBS)'!V16","v":0}]
["Sch IVC","Premium by Zone",null,"NPW Zn 18 - Credit Surety Non-Prop.",null,null,null,null,{"$f":"'Schedule IVC (EBS)'!V17","v":0}]
["Sch IVC","Premium by Zone",null,"NPW Zn 18 - Energy",null,null,null,null,{"$f":"'Schedule IVC (EBS)'!V18","v":0}]
["Sch IVC","Premium by Zone",null,"NPW Zn 18 - Energy Non-Proportional",null,null,null,null,{"$f":"'Schedule IVC (EBS)'!V19","v":0}]
["Sch IVC","Premium by Zone",null,"NPW Zn 18 - US Casualty",null,null,null,null,{"$f":"'Schedule IVC (EBS)'!V20","v":0}]
["Sch IVC","Premium by Zone",null,"NPW Zn 18 - US Casualty Non-Prop.",null,null,null,null,{"$f":"'Schedule IVC (EBS)'!V21","v":0}]
["Sch IVC","Premium by Zone",null,"NPW Zn 18 - US Professional",null,null,null,null,{"$f":"'Schedule IVC (EBS)'!V22","v":0}]
["Sch IVC","Premium by Zone",null,"NPW Zn 18 - US Professional Non-Prop.",null,null,null,null,{"$f":"'Schedule IVC (EBS)'!V23","v":0}]
["Sch IVC","Premium by Zone",null,"NPW Zn 18 - US Specialty",null,null,null,null,{"$f":"'Schedule IVC (EBS)'!V24","v":0}]
["Sch IVC","Premium by Zone",null,"NPW Zn 18 - US Specialty Non-Prop.",null,null,null,null,{"$f":"'Schedule IVC (EBS)'!V25","v":0}]
["Sch IVC","Premium by Zone",null,"NPW Zn 18 - Int'l Motor",null,null,null,null,{"$f":"'Schedule IVC (EBS)'!V26","v":0}]
["Sch IVC","Premium by Zone",null,"NPW Zn 18 - Int'l Motor Non-Prop.",null,null,null,null,{"$f":"'Schedule IVC (EBS)'!V27","v":0}]
["Sch IVC","Premium by Zone",null,"NPW Zn 18 - Int'l Casualty",null,null,null,null,{"$f":"'Schedule IVC (EBS)'!V28","v":0}]
["Sch IVC","Premium by Zone",null,"NPW Zn 18 - Int'l Casualty Non-Prop.",null,null,null,null,{"$f":"'Schedule IVC (EBS)'!V29","v":0}]
["Sch IVC","Premium by Zone",null,"NPW Zn 18 - Retro Property",null,null,null,null,{"$f":"'Schedule IVC (EBS)'!V30","v":0}]
["Sch IVC","Premium by Zone",null,"NPW Zn 18 - Structured / Finite R/I",null,null,null,null,{"$f":"'Schedule IVC (EBS)'!V31","v":0}]
["Sch IVC","Premium by Zone",null,"NPW Zn 18 - Health",null,null,null,null,{"$f":"'Schedule IVC (EBS)'!V32","v":0}]
["Sch IVC","Premium by Zone",null,"NPW Zn 18 - Total",null,null,null,null,{"$f":"'Schedule IVC (EBS)'!V33","v":0}]
[]
["Sch V","Risk Mgnt",null,"Asset Duration",null,null,null,null,null,null,null,null,{"$f":"'Schedule V'!H10","v":0}]
["Sch V","Risk Mgnt",null,"Liability Duration",null,null,null,null,null,null,null,null,{"$f":"'Schedule V'!H12","v":0}]
["Sch V","Risk Mgnt",null,"Gross PML",{"$f":"'Schedule V'!F16","v":0},null,null,null,{"$f":"'Schedule V'!H16","v":0}]
["Sch V","Risk Mgnt",null,"Net PML",{"$f":"'Schedule V'!F18","v":0},null,null,null,{"$f":"'Schedule V'!H18","v":0}]
["Sch V","Risk Mgnt",null,"Average Annual Loss",null,null,null,null,{"$f":"'Schedule V'!H20","v":0}]
["Sch V","Risk Mgnt",null,"Actual Attritional Loss - Relevant Yr.",null,null,null,null,{"$f":"'Schedule V'!H22","v":0}]
["Sch V","Risk Mgnt",null,"Prop. Cat. Recoverable - Collateral",null,null,null,null,{"$f":"'Schedule V'!H25","v":0}]
["Sch V","Risk Mgnt",null,"Prop. Cat. Recoverable - Cat. Bond",null,null,null,null,{"$f":"'Schedule V'!H26","v":0}]
["Sch V","Risk Mgnt",null,"Prop. Cat. Recoverable - SPI Indemnity",null,null,null,null,{"$f":"'Schedule V'!H27","v":0}]
["Sch V","Risk Mgnt",null,"Prop. Cat. Recoverable - Other",null,null,null,null,{"$f":"'Schedule V'!H28","v":0}]
["Sch V","Risk Mgnt",null,"Prop. Cat. Recoverable - Total",null,null,null,null,{"$f":"'Schedule V'!H29","v":0}]
["Sch V","Risk Mgnt",null,"Projected Net Premium Written",null,null,null,null,{"$f":"'Schedule V'!H34","v":0}]
["Sch V","Risk Mgnt",null,"Projected Underwriting Result",null,null,null,null,{"$f":"'Schedule V'!H35","v":0}]
["Sch V","Risk Mgnt",null,"Projected Net Income",null,null,null,null,{"$f":"'Schedule V'!H36","v":0}]
[]
["Sch Va","Governance",null,"# of Directors",{"$f":"'Schedule V(a)'!D8","v":0}]
["Sch Va","Governance",null,"Director Name - 1",{"$f":"'Schedule V(a)'!C12","v":0}]
["Sch Va","Governance",null,"Director Name - 2",{"$f":"'Schedule V(a)'!C13","v":0}]
["Sch Va","Governance",null,"Director Name - 3",{"$f":"'Schedule V(a)'!C14","v":0}]
["Sch Va","Governance",null,"Director Name - 4",{"$f":"'Schedule V(a)'!C15","v":0}]
["Sch Va","Governance",null,"Director Name - 5",{"$f":"'Schedule V(a)'!C16","v":0}]
["Sch Va","Governance",null,"Director Name - 6",{"$f":"'Schedule V(a)'!C17","v":0}]
["Sch Va","Governance",null,"Director Name - 7",{"$f":"'Schedule V(a)'!C18","v":0}]
["Sch Va","Governance",null,"Director Name - 8",{"$f":"'Schedule V(a)'!C19","v":0}]
["Sch Va","Governance",null,"Director Name - 9",{"$f":"'Schedule V(a)'!C20","v":0}]
["Sch Va","Governance",null,"Director Name - 10",{"$f":"'Schedule V(a)'!C21","v":0}]
["Sch Va","Governance",null,"Director Name - 11",{"$f":"'Schedule V(a)'!C22","v":0}]
["Sch Va","Governance",null,"Director Name - 12",{"$f":"'Schedule V(a)'!C23","v":0}]
["Sch Va","Governance",null,"Director Name - 13",{"$f":"'Schedule V(a)'!C24","v":0}]
["Sch Va","Governance",null,"Director Name - 14",{"$f":"'Schedule V(a)'!C25","v":0}]
["Sch Va","Governance",null,"Director Name - 15",{"$f":"'Schedule V(a)'!C26","v":0}]
["Sch Va","Governance",null,"Director Name - 16",{"$f":"'Schedule V(a)'!C27","v":0}]
["Sch Va","Governance",null,"Director Name - 17",{"$f":"'Schedule V(a)'!C28","v":0}]
["Sch Va","Governance",null,"Director Name - 18",{"$f":"'Schedule V(a)'!C29","v":0}]
["Sch Va","Governance",null,"Director Name - 19",{"$f":"'Schedule V(a)'!C30","v":0}]
["Sch Va","Governance",null,"Director Name - 20",{"$f":"'Schedule V(a)'!C31","v":0}]
["Sch Va","Governance",null,"Director Position - 1",{"$f":"'Schedule V(a)'!D12","v":0}]
["Sch Va","Governance",null,"Director Position - 2",{"$f":"'Schedule V(a)'!D13","v":0}]
["Sch Va","Governance",null,"Director Position - 3",{"$f":"'Schedule V(a)'!D14","v":0}]
["Sch Va","Governance",null,"Director Position - 4",{"$f":"'Schedule V(a)'!D15","v":0}]
["Sch Va","Governance",null,"Director Position - 5",{"$f":"'Schedule V(a)'!D16","v":0}]
["Sch Va","Governance",null,"Director Position - 6",{"$f":"'Schedule V(a)'!D17","v":0}]
["Sch Va","Governance",null,"Director Position - 7",{"$f":"'Schedule V(a)'!D18","v":0}]
["Sch Va","Governance",null,"Director Position - 8",{"$f":"'Schedule V(a)'!D19","v":0}]
["Sch Va","Governance",null,"Director Position - 9",{"$f":"'Schedule V(a)'!D20","v":0}]
["Sch Va","Governance",null,"Director Position - 10",{"$f":"'Schedule V(a)'!D21","v":0}]
["Sch Va","Governance",null,"Director Position - 11",{"$f":"'Schedule V(a)'!D22","v":0}]
["Sch Va","Governance",null,"Director Position - 12",{"$f":"'Schedule V(a)'!D23","v":0}]
["Sch Va","Governance",null,"Director Position - 13",{"$f":"'Schedule V(a)'!D24","v":0}]
["Sch Va","Governance",null,"Director Position - 14",{"$f":"'Schedule V(a)'!D25","v":0}]
["Sch Va","Governance",null,"Director Position - 15",{"$f":"'Schedule V(a)'!D26","v":0}]
["Sch Va","Governance",null,"Director Position - 16",{"$f":"'Schedule V(a)'!D27","v":0}]
["Sch Va","Governance",null,"Director Position - 17",{"$f":"'Schedule V(a)'!D28","v":0}]
["Sch Va","Governance",null,"Director Position - 18",{"$f":"'Schedule V(a)'!D29","v":0}]
["Sch Va","Governance",null,"Director Position - 19",{"$f":"'Schedule V(a)'!D30","v":0}]
["Sch Va","Governance",null,"Director Position - 20",{"$f":"'Schedule V(a)'!D31","v":0}]
["Sch Va","Governance",null,"Director Residence - 1",{"$f":"'Schedule V(a)'!E12","v":0}]
["Sch Va","Governance",null,"Director Residence - 2",{"$f":"'Schedule V(a)'!E13","v":0}]
["Sch Va","Governance",null,"Director Residence - 3",{"$f":"'Schedule V(a)'!E14","v":0}]
["Sch Va","Governance",null,"Director Residence - 4",{"$f":"'Schedule V(a)'!E15","v":0}]
["Sch Va","Governance",null,"Director Residence - 5",{"$f":"'Schedule V(a)'!E16","v":0}]
["Sch Va","Governance",null,"Director Residence - 6",{"$f":"'Schedule V(a)'!E17","v":0}]
["Sch Va","Governance",null,"Director Residence - 7",{"$f":"'Schedule V(a)'!E18","v":0}]
["Sch Va","Governance",null,"Director Residence - 8",{"$f":"'Schedule V(a)'!E19","v":0}]
["Sch Va","Governance",null,"Director Residence - 9",{"$f":"'Schedule V(a)'!E20","v":0}]
["Sch Va","Governance",null,"Director Residence - 10",{"$f":"'Schedule V(a)'!E21","v":0}]
["Sch Va","Governance",null,"Director Residence - 11",{"$f":"'Schedule V(a)'!E22","v":0}]
["Sch Va","Governance",null,"Director Residence - 12",{"$f":"'Schedule V(a)'!E23","v":0}]
["Sch Va","Governance",null,"Director Residence - 13",{"$f":"'Schedule V(a)'!E24","v":0}]
["Sch Va","Governance",null,"Director Residence - 14",{"$f":"'Schedule V(a)'!E25","v":0}]
["Sch Va","Governance",null,"Director Residence - 15",{"$f":"'Schedule V(a)'!E26","v":0}]
["Sch Va","Governance",null,"Director Residence - 16",{"$f":"'Schedule V(a)'!E27","v":0}]
["Sch Va","Governance",null,"Director Residence - 17",{"$f":"'Schedule V(a)'!E28","v":0}]
["Sch Va","Governance",null,"Director Residence - 18",{"$f":"'Schedule V(a)'!E29","v":0}]
["Sch Va","Governance",null,"Director Residence - 19",{"$f":"'Schedule V(a)'!E30","v":0}]
["Sch Va","Governance",null,"Director Residence - 20",{"$f":"'Schedule V(a)'!E31","v":0}]
["Sch Va","Governance",null,"Director Work Experience - 1",{"$f":"'Schedule V(a)'!F12","v":0}]
["Sch Va","Governance",null,"Director Work Experience - 2",{"$f":"'Schedule V(a)'!F13","v":0}]
["Sch Va","Governance",null,"Director Work Experience - 3",{"$f":"'Schedule V(a)'!F14","v":0}]
["Sch Va","Governance",null,"Director Work Experience - 4",{"$f":"'Schedule V(a)'!F15","v":0}]
["Sch Va","Governance",null,"Director Work Experience - 5",{"$f":"'Schedule V(a)'!F16","v":0}]
["Sch Va","Governance",null,"Director Work Experience - 6",{"$f":"'Schedule V(a)'!F17","v":0}]
["Sch Va","Governance",null,"Director Work Experience - 7",{"$f":"'Schedule V(a)'!F18","v":0}]
["Sch Va","Governance",null,"Director Work Experience - 8",{"$f":"'Schedule V(a)'!F19","v":0}]
["Sch Va","Governance",null,"Director Work Experience - 9",{"$f":"'Schedule V(a)'!F20","v":0}]
["Sch Va","Governance",null,"Director Work Experience - 10",{"$f":"'Schedule V(a)'!F21","v":0}]
["Sch Va","Governance",null,"Director Work Experience - 11",{"$f":"'Schedule V(a)'!F22","v":0}]
["Sch Va","Governance",null,"Director Work Experience - 12",{"$f":"'Schedule V(a)'!F23","v":0}]
["Sch Va","Governance",null,"Director Work Experience - 13",{"$f":"'Schedule V(a)'!F24","v":0}]
["Sch Va","Governance",null,"Director Work Experience - 14",{"$f":"'Schedule V(a)'!F25","v":0}]
["Sch Va","Governance",null,"Director Work Experience - 15",{"$f":"'Schedule V(a)'!F26","v":0}]
["Sch Va","Governance",null,"Director Work Experience - 16",{"$f":"'Schedule V(a)'!F27","v":0}]
["Sch Va","Governance",null,"Director Work Experience - 17",{"$f":"'Schedule V(a)'!F28","v":0}]
["Sch Va","Governance",null,"Director Work Experience - 18",{"$f":"'Schedule V(a)'!F29","v":0}]
["Sch Va","Governance",null,"Director Work Experience - 19",{"$f":"'Schedule V(a)'!F30","v":0}]
["Sch Va","Governance",null,"Director Work Experience - 20",{"$f":"'Schedule V(a)'!F31","v":0}]
["Sch Va","Governance",null,"Director Status on Board - 1",{"$f":"'Schedule V(a)'!H12","v":"Select"}]
["Sch Va","Governance",null,"Director Status on Board - 2",{"$f":"'Schedule V(a)'!H13","v":"Select"}]
["Sch Va","Governance",null,"Director Status on Board - 3",{"$f":"'Schedule V(a)'!H14","v":"Select"}]
["Sch Va","Governance",null,"Director Status on Board - 4",{"$f":"'Schedule V(a)'!H15","v":"Select"}]
["Sch Va","Governance",null,"Director Status on Board - 5",{"$f":"'Schedule V(a)'!H16","v":"Select"}]
["Sch Va","Governance",null,"Director Status on Board - 6",{"$f":"'Schedule V(a)'!H17","v":"Select"}]
["Sch Va","Governance",null,"Director Status on Board - 7",{"$f":"'Schedule V(a)'!H18","v":"Select"}]
["Sch Va","Governance",null,"Director Status on Board - 8",{"$f":"'Schedule V(a)'!H19","v":"Select"}]
["Sch Va","Governance",null,"Director Status on Board - 9",{"$f":"'Schedule V(a)'!H20","v":"Select"}]
["Sch Va","Governance",null,"Director Status on Board - 10",{"$f":"'Schedule V(a)'!H21","v":"Select"}]
["Sch Va","Governance",null,"Director Status on Board - 11",{"$f":"'Schedule V(a)'!H22","v":"Select"}]
["Sch Va","Governance",null,"Director Status on Board - 12",{"$f":"'Schedule V(a)'!H23","v":"Select"}]
["Sch Va","Governance",null,"Director Status on Board - 13",{"$f":"'Schedule V(a)'!H24","v":"Select"}]
["Sch Va","Governance",null,"Director Status on Board - 14",{"$f":"'Schedule V(a)'!H25","v":"Select"}]
["Sch Va","Governance",null,"Director Status on Board - 15",{"$f":"'Schedule V(a)'!H26","v":"Select"}]
["Sch Va","Governance",null,"Director Status on Board - 16",{"$f":"'Schedule V(a)'!H27","v":"Select"}]
["Sch Va","Governance",null,"Director Status on Board - 17",{"$f":"'Schedule V(a)'!H28","v":"Select"}]
["Sch Va","Governance",null,"Director Status on Board - 18",{"$f":"'Schedule V(a)'!H29","v":"Select"}]
["Sch Va","Governance",null,"Director Status on Board - 19",{"$f":"'Schedule V(a)'!H30","v":"Select"}]
["Sch Va","Governance",null,"Director Status on Board - 20",{"$f":"'Schedule V(a)'!H31","v":"Select"}]
["Sch Va","Governance",null,"# of Executives",{"$f":"'Schedule V(a)'!D33","v":0}]
["Sch Va","Governance",null,"Executive Name - 1",{"$f":"'Schedule V(a)'!C37","v":0}]
["Sch Va","Governance",null,"Executive Name - 2",{"$f":"'Schedule V(a)'!C38","v":0}]
["Sch Va","Governance",null,"Executive Name - 3",{"$f":"'Schedule V(a)'!C39","v":0}]
["Sch Va","Governance",null,"Executive Name - 4",{"$f":"'Schedule V(a)'!C40","v":0}]
["Sch Va","Governance",null,"Executive Name - 5",{"$f":"'Schedule V(a)'!C41","v":0}]
["Sch Va","Governance",null,"Executive Name - 6",{"$f":"'Schedule V(a)'!C42","v":0}]
["Sch Va","Governance",null,"Executive Name - 7",{"$f":"'Schedule V(a)'!C43","v":0}]
["Sch Va","Governance",null,"Executive Name - 8",{"$f":"'Schedule V(a)'!C44","v":0}]
["Sch Va","Governance",null,"Executive Name - 9",{"$f":"'Schedule V(a)'!C45","v":0}]
["Sch Va","Governance",null,"Executive Name - 10",{"$f":"'Schedule V(a)'!C46","v":0}]
["Sch Va","Governance",null,"Executive Name - 11",{"$f":"'Schedule V(a)'!C47","v":0}]
["Sch Va","Governance",null,"Executive Name - 12",{"$f":"'Schedule V(a)'!C48","v":0}]
["Sch Va","Governance",null,"Executive Name - 13",{"$f":"'Schedule V(a)'!C49","v":0}]
["Sch Va","Governance",null,"Executive Name - 14",{"$f":"'Schedule V(a)'!C50","v":0}]
["Sch Va","Governance",null,"Executive Name - 15",{"$f":"'Schedule V(a)'!C51","v":0}]
["Sch Va","Governance",null,"Executive Name - 16",{"$f":"'Schedule V(a)'!C52","v":0}]
["Sch Va","Governance",null,"Executive Name - 17",{"$f":"'Schedule V(a)'!C53","v":0}]
["Sch Va","Governance",null,"Executive Name - 18",{"$f":"'Schedule V(a)'!C54","v":0}]
["Sch Va","Governance",null,"Executive Name - 19",{"$f":"'Schedule V(a)'!C55","v":0}]
["Sch Va","Governance",null,"Executive Name - 20",{"$f":"'Schedule V(a)'!C56","v":0}]
["Sch Va","Governance",null,"Executive Position - 1",{"$f":"'Schedule V(a)'!D37","v":0}]
["Sch Va","Governance",null,"Executive Position - 2",{"$f":"'Schedule V(a)'!D38","v":0}]
["Sch Va","Governance",null,"Executive Position - 3",{"$f":"'Schedule V(a)'!D39","v":0}]
["Sch Va","Governance",null,"Executive Position - 4",{"$f":"'Schedule V(a)'!D40","v":0}]
["Sch Va","Governance",null,"Executive Position - 5",{"$f":"'Schedule V(a)'!D41","v":0}]
["Sch Va","Governance",null,"Executive Position - 6",{"$f":"'Schedule V(a)'!D42","v":0}]
["Sch Va","Governance",null,"Executive Position - 7",{"$f":"'Schedule V(a)'!D43","v":0}]
["Sch Va","Governance",null,"Executive Position - 8",{"$f":"'Schedule V(a)'!D44","v":0}]
["Sch Va","Governance",null,"Executive Position - 9",{"$f":"'Schedule V(a)'!D45","v":0}]
["Sch Va","Governance",null,"Executive Position - 10",{"$f":"'Schedule V(a)'!D46","v":0}]
["Sch Va","Governance",null,"Executive Position - 11",{"$f":"'Schedule V(a)'!D47","v":0}]
["Sch Va","Governance",null,"Executive Position - 12",{"$f":"'Schedule V(a)'!D48","v":0}]
["Sch Va","Governance",null,"Executive Position - 13",{"$f":"'Schedule V(a)'!D49","v":0}]
["Sch Va","Governance",null,"Executive Position - 14",{"$f":"'Schedule V(a)'!D50","v":0}]
["Sch Va","Governance",null,"Executive Position - 15",{"$f":"'Schedule V(a)'!D51","v":0}]
["Sch Va","Governance",null,"Executive Position - 16",{"$f":"'Schedule V(a)'!D52","v":0}]
["Sch Va","Governance",null,"Executive Position - 17",{"$f":"'Schedule V(a)'!D53","v":0}]
["Sch Va","Governance",null,"Executive Position - 18",{"$f":"'Schedule V(a)'!D54","v":0}]
["Sch Va","Governance",null,"Executive Position - 19",{"$f":"'Schedule V(a)'!D55","v":0}]
["Sch Va","Governance",null,"Executive Position - 20",{"$f":"'Schedule V(a)'!D56","v":0}]
["Sch Va","Governance",null,"Executive Residence - 1",{"$f":"'Schedule V(a)'!E37","v":0}]
["Sch Va","Governance",null,"Executive Residence - 2",{"$f":"'Schedule V(a)'!E38","v":0}]
["Sch Va","Governance",null,"Executive Residence - 3",{"$f":"'Schedule V(a)'!E39","v":0}]
["Sch Va","Governance",null,"Executive Residence - 4",{"$f":"'Schedule V(a)'!E40","v":0}]
["Sch Va","Governance",null,"Executive Residence - 5",{"$f":"'Schedule V(a)'!E41","v":0}]
["Sch Va","Governance",null,"Executive Residence - 6",{"$f":"'Schedule V(a)'!E42","v":0}]
["Sch Va","Governance",null,"Executive Residence - 7",{"$f":"'Schedule V(a)'!E43","v":0}]
["Sch Va","Governance",null,"Executive Residence - 8",{"$f":"'Schedule V(a)'!E44","v":0}]
["Sch Va","Governance",null,"Executive Residence - 9",{"$f":"'Schedule V(a)'!E45","v":0}]
["Sch Va","Governance",null,"Executive Residence - 10",{"$f":"'Schedule V(a)'!E46","v":0}]
["Sch Va","Governance",null,"Executive Residence - 11",{"$f":"'Schedule V(a)'!E47","v":0}]
["Sch Va","Governance",null,"Executive Residence - 12",{"$f":"'Schedule V(a)'!E48","v":0}]
["Sch Va","Governance",null,"Executive Residence - 13",{"$f":"'Schedule V(a)'!E49","v":0}]
["Sch Va","Governance",null,"Executive Residence - 14",{"$f":"'Schedule V(a)'!E50","v":0}]
["Sch Va","Governance",null,"Executive Residence - 15",{"$f":"'Schedule V(a)'!E51","v":0}]
["Sch Va","Governance",null,"Executive Residence - 16",{"$f":"'Schedule V(a)'!E52","v":0}]
["Sch Va","Governance",null,"Executive Residence - 17",{"$f":"'Schedule V(a)'!E53","v":0}]
["Sch Va","Governance",null,"Executive Residence - 18",{"$f":"'Schedule V(a)'!E54","v":0}]
["Sch Va","Governance",null,"Executive Residence - 19",{"$f":"'Schedule V(a)'!E55","v":0}]
["Sch Va","Governance",null,"Executive Residence - 20",{"$f":"'Schedule V(a)'!E56","v":0}]
["Sch Va","Governance",null,"Executive Work Experience - 1",{"$f":"'Schedule V(a)'!F37","v":0}]
["Sch Va","Governance",null,"Executive Work Experience - 2",{"$f":"'Schedule V(a)'!F38","v":0}]
["Sch Va","Governance",null,"Executive Work Experience - 3",{"$f":"'Schedule V(a)'!F39","v":0}]
["Sch Va","Governance",null,"Executive Work Experience - 4",{"$f":"'Schedule V(a)'!F40","v":0}]
["Sch Va","Governance",null,"Executive Work Experience - 5",{"$f":"'Schedule V(a)'!F41","v":0}]
["Sch Va","Governance",null,"Executive Work Experience - 6",{"$f":"'Schedule V(a)'!F42","v":0}]
["Sch Va","Governance",null,"Executive Work Experience - 7",{"$f":"'Schedule V(a)'!F43","v":0}]
["Sch Va","Governance",null,"Executive Work Experience - 8",{"$f":"'Schedule V(a)'!F44","v":0}]
["Sch Va","Governance",null,"Executive Work Experience - 9",{"$f":"'Schedule V(a)'!F45","v":0}]
["Sch Va","Governance",null,"Executive Work Experience - 10",{"$f":"'Schedule V(a)'!F46","v":0}]
["Sch Va","Governance",null,"Executive Work Experience - 11",{"$f":"'Schedule V(a)'!F47","v":0}]
["Sch Va","Governance",null,"Executive Work Experience - 12",{"$f":"'Schedule V(a)'!F48","v":0}]
["Sch Va","Governance",null,"Executive Work Experience - 13",{"$f":"'Schedule V(a)'!F49","v":0}]
["Sch Va","Governance",null,"Executive Work Experience - 14",{"$f":"'Schedule V(a)'!F50","v":0}]
["Sch Va","Governance",null,"Executive Work Experience - 15",{"$f":"'Schedule V(a)'!F51","v":0}]
["Sch Va","Governance",null,"Executive Work Experience - 16",{"$f":"'Schedule V(a)'!F52","v":0}]
["Sch Va","Governance",null,"Executive Work Experience - 17",{"$f":"'Schedule V(a)'!F53","v":0}]
["Sch Va","Governance",null,"Executive Work Experience - 18",{"$f":"'Schedule V(a)'!F54","v":0}]
["Sch Va","Governance",null,"Executive Work Experience - 19",{"$f":"'Schedule V(a)'!F55","v":0}]
["Sch Va","Governance",null,"Executive Work Experience - 20",{"$f":"'Schedule V(a)'!F56","v":"Select"}]
["Sch Va","Governance",null,"Executive Employee Arrangement - 1",{"$f":"'Schedule V(a)'!H37","v":"Select"}]
["Sch Va","Governance",null,"Executive Employee Arrangement - 2",{"$f":"'Schedule V(a)'!H38","v":"Select"}]
["Sch Va","Governance",null,"Executive Employee Arrangement - 3",{"$f":"'Schedule V(a)'!H39","v":"Select"}]
["Sch Va","Governance",null,"Executive Employee Arrangement - 4",{"$f":"'Schedule V(a)'!H40","v":"Select"}]
["Sch Va","Governance",null,"Executive Employee Arrangement - 5",{"$f":"'Schedule V(a)'!H41","v":"Select"}]
["Sch Va","Governance",null,"Executive Employee Arrangement - 6",{"$f":"'Schedule V(a)'!H42","v":"Select"}]
["Sch Va","Governance",null,"Executive Employee Arrangement - 7",{"$f":"'Schedule V(a)'!H43","v":"Select"}]
["Sch Va","Governance",null,"Executive Employee Arrangement - 8",{"$f":"'Schedule V(a)'!H44","v":"Select"}]
["Sch Va","Governance",null,"Executive Employee Arrangement - 9",{"$f":"'Schedule V(a)'!H45","v":"Select"}]
["Sch Va","Governance",null,"Executive Employee Arrangement - 10",{"$f":"'Schedule V(a)'!H46","v":"Select"}]
["Sch Va","Governance",null,"Executive Employee Arrangement - 11",{"$f":"'Schedule V(a)'!H47","v":"Select"}]
["Sch Va","Governance",null,"Executive Employee Arrangement - 12",{"$f":"'Schedule V(a)'!H48","v":"Select"}]
["Sch Va","Governance",null,"Executive Employee Arrangement - 13",{"$f":"'Schedule V(a)'!H49","v":"Select"}]
["Sch Va","Governance",null,"Executive Employee Arrangement - 14",{"$f":"'Schedule V(a)'!H50","v":"Select"}]
["Sch Va","Governance",null,"Executive Employee Arrangement - 15",{"$f":"'Schedule V(a)'!H51","v":"Select"}]
["Sch Va","Governance",null,"Executive Employee Arrangement - 16",{"$f":"'Schedule V(a)'!H52","v":"Select"}]
["Sch Va","Governance",null,"Executive Employee Arrangement - 17",{"$f":"'Schedule V(a)'!H53","v":"Select"}]
["Sch Va","Governance",null,"Executive Employee Arrangement - 18",{"$f":"'Schedule V(a)'!H54","v":"Select"}]
["Sch Va","Governance",null,"Executive Responsibilities - 2",{"$f":"'Schedule V(a)'!I38","v":"Select"}]
["Sch Va","Governance",null,"Executive Responsibilities - 9",{"$f":"'Schedule V(a)'!I45","v":"Select"}]
["Sch Va","Governance",null,"Executive Responsibilities - 12",{"$f":"'Schedule V(a)'!I48","v":"Select"}]
["Sch Va","Governance",null,"Executive Responsibilities - 19",{"$f":"'Schedule V(a)'!I55","v":"Select"}]
["Sch Va","Governance",null,"BOD Location - Risk Appetite",{"$f":"IF('Schedule V(a)'!F66=\"\",\"Bermuda\",'Schedule V(a)'!F66)","v":0}]
["Sch Va","Governance",null,"U/W - Operation in Bermuda",{"$f":"'Schedule V(a)'!E72","v":"Select Yes/No"}]
["Sch Va","Governance",null,"Int. Audit - Operation in Bermuda",{"$f":"'Schedule V(a)'!E77","v":"Select Yes/No"}]
["Sch Va","Governance",null,"Int. Audit - Operation Location",{"$f":"IF('Schedule V(a)'!F77=\"\",\"Bermuda\",'Schedule V(a)'!F77)","v":0}]
["Sch Va","Governance",null,"U/W - Provider Type",{"$f":"'Schedule V(a)'!I72","v":"Select"}]
["Sch Va","Governance",null,"Actuarial - Name of Provider",{"$f":"'Schedule V(a)'!J75","v":0}]
["Sch Va","Governance",null,"Services Outsourced - Principal Rep.",{"$f":"'Schedule V(a)'!F81","v":"Select Yes/No"}]
["Sch Va","Governance",null,"Services Outsourced - Risk Mgmt.",{"$f":"'Schedule V(a)'!F88","v":"Select Yes/No"}]
["Sch Va","Governance",null,"Services in BDA - Principal Rep.",{"$f":"'Schedule V(a)'!G81","v":"Select Yes/No"}]
["Sch Va","Governance",null,"Services in BDA - Accounting",{"$f":"'Schedule V(a)'!G84","v":"Select Yes/No"}]
["Sch Va","Governance",null,"Services in BDA - Internal Audit",{"$f":"'Schedule V(a)'!G92","v":"Select Yes/No"}]
["Sch Va","Governance",null,"Services in BDA - Money Laundering Officer",{"$f":"'Schedule V(a)'!G95","v":"Select Yes/No"}]
["Sch Va","Governance",null,"7b Group BOD-Risk Appet.- Location",null,null,null,null,{"$f":"'Schedule V(a)'!G111","v":0}]
["Sch Va","Governance",null,"Name of Insurer - 1",null,null,null,null,{"$f":"'Schedule V(a)'!C130","v":0}]
["Sch Va","Governance",null,"Name of Insurer - 4",null,null,null,null,{"$f":"'Schedule V(a)'!C133","v":0}]
["Sch Va","Governance",null,"Insurer Location - 2",null,null,null,null,{"$f":"'Schedule V(a)'!D131","v":0}]
["Sch Va","Governance",null,"Insurer Location - 6",null,null,null,null,{"$f":"'Schedule V(a)'!D135","v":0}]
["Sch Va","Governance",null,"Insurer Asset - 4",null,null,null,null,{"$f":"'Schedule V(a)'!E133","v":0}]
["Sch Va","Governance",null,"Insurer Reserve - 4",null,null,null,null,{"$f":"'Schedule V(a)'!F133","v":0}]
["Sch Va","Governance",null,"Insurer Reserve - 7",null,null,null,null,{"$f":"'Schedule V(a)'!F136","v":0}]
["Sch Va","Governance",null,"Insurer Capital & Surplus - 5",null,null,null,null,{"$f":"'Schedule V(a)'!G134","v":0}]
["Sch Vc","Group Structure",null,"Issuer/Borrower Name - 3",{"$f":"'Schedule V(c)'!C17","v":0}]
["Sch Vc","Group Structure",null,"Issuer/Borrower Name - 6",{"$f":"'Schedule V(c)'!C20","v":0}]
["Sch Vc","Group Structure",null,"Issuer/Borrower Name - 16",{"$f":"'Schedule V(c)'!C30","v":0}]
["Sch Vc","Group Structure",null,"Issuer/Borrower Name - 23",{"$f":"'Schedule V(c)'!C37","v":0}]
["Sch Vc","Group Structure",null,"Issuer/Borrower Name - 24",{"$f":"'Schedule V(c)'!C38","v":0}]
["Sch Vc","Group Structure",null,"Issuer Jurisdiction - 8",{"$f":"'Schedule V(c)'!D22","v":0}]
["Sch Vc","Group Structure",null,"Issuer Jurisdiction - 11",{"$f":"'Schedule V(c)'!D25","v":0}]
["Sch Vc","Group Structure",null,"Issuer Jurisdiction - 18",{"$f":"'Schedule V(c)'!D32","v":0}]
["Sch Vc","Group Structure",null,"Investor/Lendor Name - 2",{"$f":"'Schedule V(c)'!E16","v":0}]
["Sch Vc","Group Structure",null,"Investor/Lendor Name - 10",{"$f":"'Schedule V(c)'!E24","v":0}]
["Sch Vc","Group Structure",null,"Investor/Lendor Name - 13",{"$f":"'Schedule V(c)'!E27","v":0}]
["Sch Vc","Group Structure",null,"Investor/Lendor Name - 22",{"$f":"'Schedule V(c)'!E36","v":0}]
["Sch Vc","Group Structure",null,"Investor/Lendor Name - 23",{"$f":"'Schedule V(c)'!E37","v":0}]
["Sch Vc","Group Structure",null,"Investor Jurisdiction - 7",{"$f":"'Schedule V(c)'!F21","v":0}]
["Sch Vc","Group Structure",null,"Investor Jurisdiction - 10",{"$f":"'Schedule V(c)'!F24","v":0}]
["Sch Vc","Group Structure",null,"Investor Jurisdiction - 17",{"$f":"'Schedule V(c)'!F31","v":0}]
["Sch Vc","Group Structure",null,"Transaction Details - 1",{"$f":"'Schedule V(c)'!G15","v":0}]
["Sch Vc","Group Structure",null,"Transaction Details - 9",{"$f":"'Schedule V(c)'!G23","v":0}]
["Sch Vc","Group Structure",null,"Transaction Details - 12",{"$f":"'Schedule V(c)'!G26","v":0}]
["Sch Vc","Group Structure",null,"Transaction Details - 21",{"$f":"'Schedule V(c)'!G35","v":0}]
["Sch Vc","Group Structure",null,"Transaction Details - 22",{"$f":"'Schedule V(c)'!G36","v":0}]
["Sch Vc","Group Structure",null,"Exposure Value - 6",{"$f":"'Schedule V(c)'!J20","v":0}]
["Sch Vc","Group Structure",null,"Exposure Value - 9",{"$f":"'Schedule V(c)'!J23","v":0}]
["Sch Vc","Group Structure",null,"Exposure Value - 17",{"$f":"'Schedule V(c)'!J31","v":0}]
["Sch Vc","Group Structure",null,"# of Intra-Group R/I & Retro. Arrangmnt",{"$f":"'Schedule V(c)'!E43","v":0}]
["Sch Vc","Group Structure",null,"Assuming Party Name - 7",{"$f":"'Schedule V(c)'!C54","v":0}]
["Sch Vc","Group Structure",null,"Assuming Party Name - 10",{"$f":"'Schedule V(c)'!C57","v":0}]
["Sch Vc","Group Structure",null,"Assuming Party Name - 19",{"$f":"'Schedule V(c)'!C66","v":0}]
["Sch Vc","Group Structure",null,"Assuming Party Name - 20",{"$f":"'Schedule V(c)'!C67","v":0}]
["Sch Vc","Group Structure",null,"Assuming Party Jurisdiction - 4",{"$f":"'Schedule V(c)'!D51","v":0}]
["Sch Vc","Group Structure",null,"Assuming Party Jurisdiction - 7",{"$f":"'Schedule V(c)'!D54","v":0}]
["Sch Vc","Group Structure",null,"Assuming Party Jurisdiction - 15",{"$f":"'Schedule V(c)'!D62","v":0}]
["Sch Vc","Group Structure",null,"Assuming Party Jurisdiction - 24",{"$f":"'Schedule V(c)'!D71","v":0}]
["Sch Vc","Group Structure",null,"Assuming Party Rating - 6",{"$f":"'Schedule V(c)'!E53","v":0}]
["Sch Vc","Group Structure",null,"Assuming Party Rating - 9",{"$f":"'Schedule V(c)'!E56","v":0}]
["Sch Vc","Group Structure",null,"Assuming Party Rating - 18",{"$f":"'Schedule V(c)'!E65","v":0}]
["Sch Vc","Group Structure",null,"Assuming Party Rating - 19",{"$f":"'Schedule V(c)'!E66","v":0}]
["Sch Vc","Group Structure",null,"Ceding Party Name - 1",{"$f":"'Schedule V(c)'!F48","v":0}]
["Sch Vc","Group Structure",null,"Ceding Party Name - 11",{"$f":"'Schedule V(c)'!F58","v":0}]
["Sch Vc","Group Structure",null,"Ceding Party Name - 14",{"$f":"'Schedule V(c)'!F61","v":0}]
["Sch Vc","Group Structure",null,"Ceding Party Name - 23",{"$f":"'Schedule V(c)'!F70","v":0}]
["Sch Vc","Group Structure",null,"Ceding Party Jurisdiction - 5",{"$f":"'Schedule V(c)'!G52","v":0}]
["Sch Vc","Group Structure",null,"Ceding Party Jurisdiction - 8",{"$f":"'Schedule V(c)'!G55","v":0}]
["Sch Vc","Group Structure",null,"Ceding Party Jurisdiction - 13",{"$f":"'Schedule V(c)'!G60","v":0}]
["Sch Vc","Group Structure",null,"Ceding Party Jurisdiction - 19",{"$f":"'Schedule V(c)'!G66","v":0}]
["Sch Vc","Group Structure",null,"Ceding Party Rating - 3",{"$f":"'Schedule V(c)'!H50","v":0}]
["Sch Vc","Group Structure",null,"Ceding Party Rating - 10",{"$f":"'Schedule V(c)'!H57","v":0}]
["Sch Vc","Group Structure",null,"Ceding Party Rating - 13",{"$f":"'Schedule V(c)'!H60","v":0}]
["Sch Vc","Group Structure",null,"Ceding Party Rating - 22",{"$f":"'Schedule V(c)'!H69","v":0}]
["Sch Vc","Group Structure",null,"Gross Exposure Limit - 4",{"$f":"'Schedule V(c)'!I51","v":0}]
["Sch Vc","Group Structure",null,"Gross Exposure Limit - 11",{"$f":"'Schedule V(c)'!I58","v":0}]
["Sch Vc","Group Structure",null,"Gross Exposure Limit - 15",{"$f":"'Schedule V(c)'!I62","v":0}]
["Sch Vc","Group Structure",null,"Gross Exposure Limit - 18",{"$f":"'Schedule V(c)'!I65","v":0}]
["Sch Vc","Group Structure",null,"Net Exposure Limit - 2",{"$f":"'Schedule V(c)'!J49","v":0}]
["Sch Vc","Group Structure",null,"Net Exposure Limit - 9",{"$f":"'Schedule V(c)'!J56","v":0}]
["Sch Vc","Group Structure",null,"Net Exposure Limit - 12",{"$f":"'Schedule V(c)'!J59","v":0}]
["Sch Vc","Group Structure",null,"Net Exposure Limit - 21",{"$f":"'Schedule V(c)'!J68","v":0}]
["Sch Vc","Group Structure",null,"Gross Premium Written - 2",{"$f":"'Schedule V(c)'!K49","v":0}]
["Sch Vc","Group Structure",null,"Gross Premium Written - 7",{"$f":"'Schedule V(c)'!K54","v":0}]
["Sch Vc","Group Structure",null,"Gross Premium Written - 14",{"$f":"'Schedule V(c)'!K61","v":0}]
["Sch Vc","Group Structure",null,"Gross Premium Written - 17",{"$f":"'Schedule V(c)'!K64","v":0}]
["Sch Vc","Group Structure",null,"Net Premium Written - 1",{"$f":"'Schedule V(c)'!L48","v":0}]
["Sch Vc","Group Structure",null,"Net Premium Written - 8",{"$f":"'Schedule V(c)'!L55","v":0}]
["Sch Vc","Group Structure",null,"Net Premium Written - 11",{"$f":"'Schedule V(c)'!L58","v":0}]
["Sch Vc","Group Structure",null,"Net Premium Written - 21",{"$f":"'Schedule V(c)'!L68","v":0}]
["Sch Vc","Group Structure",null,"Counterparty Name - 1",{"$f":"'Schedule V(c)'!C83","v":0}]
["Sch Vc","Group Structure",null,"Counterparty Name - 4",{"$f":"'Schedule V(c)'!C86","v":0}]
["Sch Vc","Group Structure",null,"Counterparty Name - 11",{"$f":"'Schedule V(c)'!C93","v":0}]
["Sch Vc","Group Structure",null,"Counterparty Name - 14",{"$f":"'Schedule V(c)'!C96","v":0}]
["Sch Vc","Group Structure",null,"Counterparty Name - 23",{"$f":"'Schedule V(c)'!C105","v":0}]
["Sch Vc","Group Structure",null,"Counterparty Name - 30",{"$f":"'Schedule V(c)'!C112","v":0}]
["Sch Vc","Group Structure",null,"Counterparty Name - 35",{"$f":"'Schedule V(c)'!C117","v":0}]
["Sch Vc","Group Structure",null,"Counterparty Location - 1",{"$f":"'Schedule V(c)'!G83","v":0}]
["Sch Vc","Group Structure",null,"Counterparty Location - 10",{"$f":"'Schedule V(c)'!G92","v":0}]
["Sch Vc","Group Structure",null,"Counterparty Location - 13",{"$f":"'Schedule V(c)'!G95","v":0}]
["Sch Vc","Group Structure",null,"Counterparty Location - 20",{"$f":"'Schedule V(c)'!G102","v":0}]
["Sch Vc","Group Structure",null,"Counterparty Location - 23",{"$f":"'Schedule V(c)'!G105","v":0}]
["Sch Vc","Group Structure",null,"Counterparty Location - 32",{"$f":"'Schedule V(c)'!G114","v":0}]
["Sch Vc","Group Structure",null,"Counterparty Location - 36",{"$f":"'Schedule V(c)'!G118","v":0}]
["Sch Vc","Group Structure",null,"Exposure Fair Value - 3",{"$f":"'Schedule V(c)'!H85","v":0}]
["Sch Vc","Group Structure",null,"Exposure Fair Value - 10",{"$f":"'Schedule V(c)'!H92","v":0}]
["Sch Vc","Group Structure",null,"Exposure Fair Value - 19",{"$f":"'Schedule V(c)'!H101","v":0}]
["Sch Vc","Group Structure",null,"Exposure Fair Value - 22",{"$f":"'Schedule V(c)'!H104","v":0}]
["Sch Vc","Group Structure",null,"Exposure Fair Value - 29",{"$f":"'Schedule V(c)'!H111","v":0}]
["Sch Vc","Group Structure",null,"Exposure Fair Value - 32",{"$f":"'Schedule V(c)'!H114","v":0}]
["Sch Vc","Group Structure",null,"Exposure Market Value - 4",{"$f":"'Schedule V(c)'!I86","v":0}]
["Sch Vc","Group Structure",null,"Exposure Market Value - 9",{"$f":"'Schedule V(c)'!I91","v":0}]
["Sch Vc","Group Structure",null,"Exposure Market Value - 12",{"$f":"'Schedule V(c)'!I94","v":0}]
["Sch Vc","Group Structure",null,"Exposure Market Value - 19",{"$f":"'Schedule V(c)'!I101","v":0}]
["Sch Vc","Group Structure",null,"Exposure Market Value - 28",{"$f":"'Schedule V(c)'!I110","v":0}]
["Sch Vc","Group Structure",null,"Exposure Market Value - 31",{"$f":"'Schedule V(c)'!I113","v":0}]
["Sch Vc","Group Structure",null,"Exposure Market Value - 38",{"$f":"'Schedule V(c)'!I120","v":0}]
["Sch Vc","Group Structure",null,"Transaction Type - 1",{"$f":"'Schedule V(c)'!J83","v":0}]
["Sch Vc","Group Structure",null,"Transaction Type - 9",{"$f":"'Schedule V(c)'!J91","v":0}]
["Sch Vc","Group Structure",null,"Transaction Type - 18",{"$f":"'Schedule V(c)'!J100","v":0}]
["Sch Vc","Group Structure",null,"Transaction Type - 21",{"$f":"'Schedule V(c)'!J103","v":0}]
["Sch Vc","Group Structure",null,"Transaction Type - 28",{"$f":"'Schedule V(c)'!J110","v":0}]
["Sch Vc","Group Structure",null,"Transaction Type - 37",{"$f":"'Schedule V(c)'!J119","v":0}]
["Sch Vc","Group Structure",null,"Transaction Type - 40",{"$f":"'Schedule V(c)'!J122","v":0}]
["Sch Ve","Scenario Tests",null,"R8 Scenario - Assets",null,null,null,null,{"$f":"'Schedule V(e)'!F19","v":0}]
["Sch Ve","Scenario Tests",null,"R2 Scenario - Liabilities",null,null,null,null,{"$f":"'Schedule V(e)'!G13","v":0}]
["Sch Ve","Scenario Tests",null,"R5 - Greece",null,null,null,null,{"$f":"'Schedule V(e)'!E22","v":0}]
["Sch Ve","Scenario Tests",null,"Mortgage Loan - Shock 2 Assets",null,null,null,null,{"$f":"'Schedule V(e)'!F27","v":0}]
["Sch Ve","Scenario Tests",null,"Mortgage Loan - GPW - Related - Insurance - US",null,null,null,null,{"$f":"'Schedule V(e)'!D31","v":0}]
["Sch Ve","Scenario Tests",null,"Mortgage Loan - GPW - Unrelated - Insurance - Other",null,null,null,null,{"$f":"'Schedule V(e)'!E33","v":0}]
["Sch Ve","Scenario Tests",null,"Mortgage Loan - NPW - Unrelated - R/I - US",null,null,null,null,{"$f":"'Schedule V(e)'!G32","v":0}]
["Sch Ve","Scenario Tests",null,"Mortgage Loan - Claims - Related - Insurance - US",null,null,null,null,{"$f":"'Schedule V(e)'!H31","v":0}]
["Sch Ve","Scenario Tests",null,"Mortgage Loan - Claims - Unrelated - Insurance - Other",null,null,null,null,{"$f":"'Schedule V(e)'!I33","v":0}]
["Sch Ve","Scenario Tests",null,"Mortgage Loan - Reserves - Related - Insurance - US",null,null,null,null,{"$f":"'Schedule V(e)'!J31","v":0}]
["Sch Ve","Scenario Tests",null,"Mortgage Loan - Reserves - Unrelated - Insurance - Other",null,null,null,null,{"$f":"'Schedule V(e)'!K33","v":0}]
["Sch Ve","Scenario Tests",null,"Mortgage Loan - Loss Ratio",null,null,null,null,{"$f":"'Schedule V(e)'!K39","v":0}]
["Sch Ve","Scenario Tests",null,"Mortgage Loan - Weighted Average FICO Score",null,null,null,null,{"$f":"'Schedule V(e)'!N39","v":0}]
["Sch Ve","Scenario Tests",null,"UE3. Gross Loss ",null,null,null,null,{"$f":"Import!I2845","v":0}]
["Sch Ve","Scenario Tests",null,"N3. Gross Loss ",null,null,null,null,{"$f":"Import!I2854","v":0}]
["Sch Ve","Scenario Tests",null,"N4. Gross Loss ",null,null,null,null,{"$f":"Import!I2855","v":0}]
["Sch Ve","Scenario Tests",null,"UE3. Net Loss - After Reinsurance",null,null,null,null,{"$f":"'Schedule V(e)'!F58","v":0}]
["Sch Ve","Scenario Tests",null,"IE1. Net Loss - After Reinsurance",null,null,null,null,{"$f":"'Schedule V(e)'!F61","v":0}]
["Sch Ve","Scenario Tests",null,"N4. Net Loss - After Reinsurance",null,null,null,null,{"$f":"'Schedule V(e)'!F68","v":0}]
["Sch Ve","Scenario Tests",null,"UE3. Net Loss - Cat Mitigation Tech.",null,null,null,null,{"$f":"'Schedule V(e)'!G58","v":0}]
["Sch Ve","Scenario Tests",null,"IE1. Net Loss - Cat Mitigation Tech.",null,null,null,null,{"$f":"'Schedule V(e)'!G61","v":0}]
["Sch Ve","Scenario Tests",null,"P1. Net Loss - Cat Mitigation Tech.",null,null,null,null,{"$f":"'Schedule V(e)'!G69","v":0}]
["Sch Ve","Scenario Tests",null,"IW1. Return Period 1",null,null,null,null,{"$f":"'Schedule V(e)'!J59","v":0}]
["Sch Ve","Scenario Tests",null,"IW2. Return Period 1",null,null,null,null,{"$f":"'Schedule V(e)'!J60","v":0}]
["Sch Ve","Scenario Tests",null,"UW1. Return Period 2",null,null,null,null,{"$f":"'Schedule V(e)'!K51","v":0}]
["Sch Ve","Scenario Tests",null,"UW4. Return Period 2",null,null,null,null,{"$f":"'Schedule V(e)'!K54","v":0}]
["Sch Ve","Scenario Tests",null,"IE1. Return Period 2",null,null,null,null,{"$f":"'Schedule V(e)'!K61","v":0}]
["Sch Ve","Scenario Tests",null,"N4. Return Period 2",null,null,null,null,{"$f":"'Schedule V(e)'!K68","v":0}]
["Sch Ve","Scenario Tests",null,"IW2. Catastrophe Model",null,null,null,null,{"$f":"'Schedule V(e)'!L60","v":0}]
["Sch Ve","Scenario Tests",null,"M1. Catastrophe Model",null,null,null,null,{"$f":"'Schedule V(e)'!L63","v":0}]
["Sch Ve","Scenario Tests",null," Other Scenario - Name 3",null,null,null,null,{"$f":"'Schedule V(e)'!B81","v":0}]
["Sch Ve","Scenario Tests",null," Other - Gross Loss 1",null,null,null,null,{"$f":"'Schedule V(e)'!G79","v":0}]
["Sch Ve","Scenario Tests",null," Other - Return Period 1 -  1",null,null,null,null,{"$f":"'Schedule V(e)'!M79","v":0}]
["Sch Ve","Scenario Tests",null," Other - Return Period 2 -  1",null,null,null,null,{"$f":"'Schedule V(e)'!N79","v":0}]
["Sch Ve","Scenario Tests",null,"Latent Liab - Scen 1 - NPW - Product Liab - Pro - EEA & Switzerland",null,null,null,null,{"$f":"'Schedule V(e)'!D97","v":0}]
["Sch Ve","Scenario Tests",null,"Latent Liab - Scen 1 - NPW - Product Liab - Non Pro - Emerging Mkts",null,null,null,null,{"$f":"'Schedule V(e)'!E102","v":0}]
["Sch Ve","Scenario Tests",null,"Latent Liab - Scen 1 - NPW - Gen Comm Liab - Non Pro - EEA & Switzerland",null,null,null,null,{"$f":"'Schedule V(e)'!G97","v":0}]
["Sch Ve","Scenario Tests",null,"Latent Liab - Scen 1 - NPW - Gen Comm Liab - Non Pro - China",null,null,null,null,{"$f":"'Schedule V(e)'!G100","v":0}]
["Sch Ve","Scenario Tests",null,"Latent Liab - Scen 1 - NPW - Empl. Liab/Workers Comp - Non Pro - EEA & Switzerland",null,null,null,null,{"$f":"'Schedule V(e)'!I97","v":0}]
["Sch Ve","Scenario Tests",null,"Latent Liab - Scen 1 - NPW - Empl. Liab/Workers Comp - Non Pro - US/Canada",null,null,null,null,{"$f":"'Schedule V(e)'!I98","v":0}]
["Sch Ve","Scenario Tests",null,"Latent Liab - Scen 1 - Prem. Growth - Product Liab - Pro - Other Developed Mkts",null,null,null,null,{"$f":"'Schedule V(e)'!D110","v":0}]
["Sch Ve","Scenario Tests",null,"Latent Liab - Scen 1 - Prem. Growth - Gen Comm Liab - Pro - EEA & Switzerland",null,null,null,null,{"$f":"'Schedule V(e)'!F106","v":0}]
["Sch Ve","Scenario Tests",null,"Latent Liab - Scen 1 - Prem. Growth - Gen Comm Liab - Pro - China",null,null,null,null,{"$f":"'Schedule V(e)'!F109","v":0}]
["Sch Ve","Scenario Tests",null,"Latent Liab - Scen 1 - Prem. Growth - Empl. Liab/Workers Comp - Pro - EEA & Switzerland",null,null,null,null,{"$f":"'Schedule V(e)'!H106","v":0}]
["Sch Ve","Scenario Tests",null,"Latent Liab - Scen 1 - Prem. Growth - Empl. Liab/Workers Comp - Non Pro - US/Canada",null,null,null,null,{"$f":"'Schedule V(e)'!I107","v":0}]
["Sch Ve","Scenario Tests",null,"Latent Liab - Scen 1 - Prem. Growth - Empl. Liab/Workers Comp - Non Pro - Other Developed Mkts",null,null,null,null,{"$f":"'Schedule V(e)'!I110","v":0}]
["Sch Ve","Scenario Tests",null,"Latent Liab - Scen 1 - Yr Growth - Product Liab - Non Pro - US/Canada",null,null,null,null,{"$f":"'Schedule V(e)'!M107","v":0}]
["Sch Ve","Scenario Tests",null,"Latent Liab - Scen 1 - Yr Growth - Product Liab - Non Pro - Japan",null,null,null,null,{"$f":"'Schedule V(e)'!M108","v":0}]
["Sch Ve","Scenario Tests",null,"Latent Liab - Scen 1 - Yr Growth - Gen Comm Liab - Non Pro - Japan",null,null,null,null,{"$f":"'Schedule V(e)'!O108","v":0}]
["Sch Ve","Scenario Tests",null,"Latent Liab - Scen 1 - Yr Growth - Empl. Liab/Workers Comp - Pro - US/Canada",null,null,null,null,{"$f":"'Schedule V(e)'!P107","v":0}]
["Sch Ve","Scenario Tests",null,"Latent Liab - Scen 1 - Yr Growth - Empl. Liab/Workers Comp - Pro - Other Developed Mkts",null,null,null,null,{"$f":"'Schedule V(e)'!P110","v":0}]
["Sch Ve","Scenario Tests",null,"Latent Liab - Scen 2 - US Asbestos - Cur Yr - Net Paid",null,null,null,null,{"$f":"'Schedule V(e)'!E135","v":0}]
["Sch Ve","Scenario Tests",null,"Latent Liab - Scen 2 - US Asbestos - PY Yr - Net Paid",null,null,null,null,{"$f":"'Schedule V(e)'!F135","v":0}]
["Sch Ve","Scenario Tests",null,"Latent Liab - Scen 2 - US Enviro - Cur Yr - GAAP Reserves",null,null,null,null,{"$f":"'Schedule V(e)'!H134","v":0}]
["Sch Ve","Scenario Tests",null,"Latent Liab - Scen 2 - US Enviro - PY+1 Yr - Net Paid",null,null,null,null,{"$f":"'Schedule V(e)'!J135","v":0}]
["Sch Ve","Scenario Tests",null,"Latent Liab - Scen 2 - UK Asbestos - Cur Yr - Reserves after Inflation",null,null,null,null,{"$f":"'Schedule V(e)'!E158","v":0}]
["Sch Ve","Scenario Tests",null," 2a. Series of Loss - Net Loss",null,null,null,null,{"$f":"'Schedule V(e)'!D187","v":0}]
["Sch Ve","Scenario Tests",null,"2b. Specific WC Scen.- Gross Loss",null,null,null,null,{"$f":"'Schedule V(e)'!D199","v":0}]
["Sch Ve","Scenario Tests",null,"2b. Specific WC Scen.- RP 2",null,null,null,null,{"$f":"'Schedule V(e)'!D202","v":0}]
["Sch Ve","Scenario Tests",null," Terrorism Loss 1 - Gross Loss",null,null,null,null,{"$f":"'Schedule V(e)'!D220","v":0}]
["Sch Ve","Scenario Tests",null," Terrorism Loss 2 - Gross Loss",null,null,null,null,{"$f":"'Schedule V(e)'!E220","v":0}]
["Sch Ve","Scenario Tests",null," Terrorism Loss 2 - Net Loss",null,null,null,null,{"$f":"'Schedule V(e)'!E223","v":0}]
["Sch Ve","Scenario Tests",null," Terrorism Loss 3 - R/I Recoverable",null,null,null,null,{"$f":"'Schedule V(e)'!F222","v":0}]
["Sch Ve","Scenario Tests",null," Terrorism Loss 4 - Gross Loss",null,null,null,null,{"$f":"'Schedule V(e)'!G220","v":0}]
["Sch Ve","Scenario Tests",null," Terrorism Loss 5 - R/I Recoverable",null,null,null,null,{"$f":"'Schedule V(e)'!H222","v":0}]
["Sch Ve","Scenario Tests",null," Terrorism Loss 6 - R/I Recoverable",null,null,null,null,{"$f":"'Schedule V(e)'!I222","v":0}]
["Sch Ve","Scenario Tests",null," Terrorism Loss 7 - State",null,null,null,null,{"$f":"'Schedule V(e)'!J218","v":0}]
["Sch Ve","Scenario Tests",null," Terrorism Loss 8 - Gross Loss",null,null,null,null,{"$f":"'Schedule V(e)'!K220","v":0}]
["Sch Ve","Scenario Tests",null," Terrorism Loss 9 - Gross Loss",null,null,null,null,{"$f":"'Schedule V(e)'!L220","v":0}]
["Sch Ve","Scenario Tests",null," Terrorism Loss 9 - Location",null,null,null,null,{"$f":"'Schedule V(e)'!L224","v":0}]
["Sch Ve","Scenario Tests",null," Terrorism Loss 1 - Location",null,null,null,null,{"$f":"'Schedule V(e)'!M224","v":0}]
["Sch Ve","Scenario Tests",null,"Cyber - 1. Cyber Policies in Force - No - Direct",{"$f":"'Schedule V(e)'!D258","v":0},null,{"$f":"'Schedule V(e)'!E258","v":0},null,{"$f":"'Schedule V(e)'!D241","v":0},null,{"$f":"'Schedule V(e)'!E241","v":0}]
["Sch Ve","Scenario Tests",null,"Cyber - 1. Claims Incur - Direct",{"$f":"'Schedule V(e)'!D267","v":0},null,{"$f":"'Schedule V(e)'!E267","v":0},null,{"$f":"'Schedule V(e)'!D250","v":0},null,{"$f":"'Schedule V(e)'!E250","v":0}]
["Sch Ve","Scenario Tests",null,"Cyber - 1. Cyber GPW - R/I",{"$f":"'Schedule V(e)'!G261","v":0},null,{"$f":"'Schedule V(e)'!H261","v":0},null,{"$f":"'Schedule V(e)'!G244","v":0},null,{"$f":"'Schedule V(e)'!H244","v":0}]
["Sch Ve","Scenario Tests",null,"Cyber - 1. Net Reserves - R/I",{"$f":"'Schedule V(e)'!G264","v":0},null,{"$f":"'Schedule V(e)'!H264","v":0},null,{"$f":"'Schedule V(e)'!G247","v":0},null,{"$f":"'Schedule V(e)'!H247","v":0}]
["Sch Ve","Scenario Tests",null,"Cyber - 1. Cyber Lrg Claims - R/I",{"$f":"'Schedule V(e)'!G269","v":0},null,{"$f":"'Schedule V(e)'!H269","v":0},null,{"$f":"'Schedule V(e)'!G252","v":0},null,{"$f":"'Schedule V(e)'!H252","v":0}]
["Sch Ve","Scenario Tests",null,"Cyber - 1. Cyber Avg. Claims - Package",{"$f":"'Schedule V(e)'!J268","v":0},null,{"$f":"'Schedule V(e)'!K268","v":0},null,{"$f":"'Schedule V(e)'!J251","v":0},null,{"$f":"'Schedule V(e)'!K251","v":0}]
["Sch Ve","Scenario Tests",null,"Cyber - 1. Cyber Policies in Force - No - Related",{"$f":"'Schedule V(e)'!M258","v":0},null,{"$f":"'Schedule V(e)'!N258","v":0}]
["Sch Ve","Scenario Tests",null,"Cyber - 1. No. Reported Claims - Related",{"$f":"'Schedule V(e)'!M265","v":0},null,{"$f":"'Schedule V(e)'!N265","v":0}]
["Sch Ve","Scenario Tests",null,"Cyber - 1. Cyber Avg. Claims - Related",{"$f":"'Schedule V(e)'!M268","v":0},null,{"$f":"'Schedule V(e)'!N268","v":0}]
["Sch Ve","Scenario Tests",null,"Cyber - 1. Net Reserves - Unrelated",{"$f":"'Schedule V(e)'!P264","v":0},null,{"$f":"'Schedule V(e)'!Q264","v":0}]
["Sch Ve","Scenario Tests",null,"Cyber - 1. # of Policies Direct - US",{"$f":"'Schedule V(e)'!D291","v":0},null,null,null,{"$f":"'Schedule V(e)'!D277","v":0}]
["Sch Ve","Scenario Tests",null,"Cyber - 1. # of Policies Direct - Australia & New Zealand",{"$f":"'Schedule V(e)'!D294","v":0},null,null,null,{"$f":"'Schedule V(e)'!D280","v":0}]
["Sch Ve","Scenario Tests",null,"Cyber - 1. Cyber GPW-Direct - Japan",{"$f":"'Schedule V(e)'!E295","v":0},null,null,null,{"$f":"'Schedule V(e)'!E281","v":0}]
["Sch Ve","Scenario Tests",null,"Cyber - 1. Cyber NPW-Direct - Other",{"$f":"'Schedule V(e)'!F297","v":0},null,null,null,{"$f":"'Schedule V(e)'!F283","v":0}]
["Sch Ve","Scenario Tests",null,"Cyber - 1. Cyber Gross Exposure-Direct - UK & Europe",{"$f":"'Schedule V(e)'!G293","v":0},null,null,null,{"$f":"'Schedule V(e)'!G279","v":0}]
["Sch Ve","Scenario Tests",null,"Cyber - 1. Cyber Net Exposure-Direct - UK & Europe",{"$f":"'Schedule V(e)'!H293","v":0},null,null,null,{"$f":"'Schedule V(e)'!H279","v":0}]
["Sch Ve","Scenario Tests",null,"Cyber - 1. Cyber Net Exposure-Direct - Worldwide",{"$f":"'Schedule V(e)'!H296","v":0},null,null,null,{"$f":"'Schedule V(e)'!H282","v":0}]
["Sch Ve","Scenario Tests",null,"Cyber - 1. Cyber GPW-R/I - US",{"$f":"'Schedule V(e)'!J291","v":0},null,null,null,{"$f":"'Schedule V(e)'!J277","v":0}]
["Sch Ve","Scenario Tests",null,"Cyber - 1. Cyber NPW-R/I - UK & Europe",{"$f":"'Schedule V(e)'!K293","v":0},null,null,null,{"$f":"'Schedule V(e)'!K279","v":0}]
["Sch Ve","Scenario Tests",null,"Cyber - 1. Cyber NPW-R/I - Japan",{"$f":"'Schedule V(e)'!K295","v":0},null,null,null,{"$f":"'Schedule V(e)'!K281","v":0}]
["Sch Ve","Scenario Tests",null,"Cyber - 1. Cyber Gross Exposure-R/I - Japan",{"$f":"'Schedule V(e)'!L295","v":0},null,null,null,{"$f":"'Schedule V(e)'!L281","v":0}]
["Sch Ve","Scenario Tests",null,"Cyber - 1. Cyber Net Exposure-R/I - Other",{"$f":"'Schedule V(e)'!M297","v":0},null,null,null,{"$f":"'Schedule V(e)'!M283","v":0}]
["Sch Ve","Scenario Tests",null,"Cyber - 1. # of Policies Package - UK & Europe",{"$f":"'Schedule V(e)'!N293","v":0},null,null,null,{"$f":"'Schedule V(e)'!N279","v":0}]
["Sch Ve","Scenario Tests",null,"Cyber - 1. Cyber GPW-Package - UK & Europe",{"$f":"'Schedule V(e)'!O293","v":0},null,null,null,{"$f":"'Schedule V(e)'!O279","v":0}]
["Sch Ve","Scenario Tests",null,"Cyber - 1. Cyber GPW-Package - Worldwide",{"$f":"'Schedule V(e)'!O296","v":0},null,null,null,{"$f":"'Schedule V(e)'!O282","v":0}]
["Sch Ve","Scenario Tests",null,"Cyber - 1. Cyber Gross Exposure-Package - Canada",{"$f":"'Schedule V(e)'!Q292","v":0},null,null,null,{"$f":"'Schedule V(e)'!Q278","v":0}]
["Sch Ve","Scenario Tests",null,"Cyber - 1. Cyber Net Exposure-Package - Canada",{"$f":"'Schedule V(e)'!R292","v":0},null,null,null,{"$f":"'Schedule V(e)'!R278","v":0}]
["Sch Ve","Scenario Tests",null,"Cyber - 1. Cyber Net Exposure-Package - Japan",{"$f":"'Schedule V(e)'!R295","v":0},null,null,null,{"$f":"'Schedule V(e)'!R281","v":0}]
["Sch Ve","Scenario Tests",null,"Cyber - 2. Yes/No Aviation",null,null,null,null,{"$f":"'Schedule V(e)'!F314","v":"Select Yes/No"}]
["Sch Ve","Scenario Tests",null,"Cyber - 2. Yes/No US Professional Non-Proportional",null,null,null,null,{"$f":"'Schedule V(e)'!F323","v":"Select Yes/No"}]
["Sch Ve","Scenario Tests",null,"Cyber - 2. Yes/No International Motor",null,null,null,null,{"$f":"'Schedule V(e)'!F326","v":"Select Yes/No"}]
["Sch Ve","Scenario Tests",null,"Cyber - 2. Current Yr Property",null,null,null,null,{"$f":"'Schedule V(e)'!G310","v":0}]
["Sch Ve","Scenario Tests",null,"Cyber - 2. Current Yr Energy Offshore/Marine",null,null,null,null,{"$f":"'Schedule V(e)'!G318","v":0}]
["Sch Ve","Scenario Tests",null,"Cyber - 2. Current Yr US Casualty Non-Proportional",null,null,null,null,{"$f":"'Schedule V(e)'!G321","v":0}]
["Sch Ve","Scenario Tests",null,"Cyber - 2. Current Yr Retro Property",null,null,null,null,{"$f":"'Schedule V(e)'!G330","v":0}]
["Sch Ve","Scenario Tests",null,"Cyber - 2. Prior Yr Property",null,null,null,null,{"$f":"'Schedule V(e)'!H310","v":0}]
["Sch Ve","Scenario Tests",null,"Cyber - 2. Prior Yr Credit/Surety - Non-Proportional",null,null,null,null,{"$f":"'Schedule V(e)'!H317","v":0}]
["Sch Ve","Scenario Tests",null,"Cyber - 2. Prior Yr International Motor",null,null,null,null,{"$f":"'Schedule V(e)'!H326","v":0}]
["Sch Ve","Scenario Tests",null,"Cyber - 2. Prior Yr International Casualty Non-Motor Non-Proportional",null,null,null,null,{"$f":"'Schedule V(e)'!H329","v":0}]
["Sch Ve","Scenario Tests",null,"Cyber - 2. Claims Made or Occurrence -  Personal Accident Non-Proportional",null,null,null,null,{"$f":"'Schedule V(e)'!I313","v":"Select from Drop-down"}]
["Sch Ve","Scenario Tests",null,"Cyber - 2. Claims Made or Occurrence -  Credit/Surety - Non-Proportional",null,null,null,null,{"$f":"'Schedule V(e)'!I317","v":"Select from Drop-down"}]
["Sch Ve","Scenario Tests",null,"Cyber - 2. Claims Made or Occurrence -  US Specialty",null,null,null,null,{"$f":"'Schedule V(e)'!I324","v":"Select from Drop-down"}]
["Sch Ve","Scenario Tests",null,"Cyber - 2. No Cyber Exclusion -  Property",null,null,null,null,{"$f":"'Schedule V(e)'!K310","v":"Select Yes/No"}]
["Sch Ve","Scenario Tests",null,"Cyber - 2. No Cyber Exclusion -  Personal Accident Non-Proportional",null,null,null,null,{"$f":"'Schedule V(e)'!K313","v":"Select Yes/No"}]
["Sch Ve","Scenario Tests",null,"Cyber - 2. No Cyber Exclusion -  US Casualty",null,null,null,null,{"$f":"'Schedule V(e)'!K320","v":"Select Yes/No"}]
["Sch Ve","Scenario Tests",null,"Cyber - 2. No Cyber Exclusion -  International Casualty Non-Motor Non-Proportional",null,null,null,null,{"$f":"'Schedule V(e)'!K329","v":"Select Yes/No"}]
["Sch Ve","Scenario Tests",null,"Cyber - 2. No Cyber Exclusion -  Structured/Finite reinsurance",null,null,null,null,{"$f":"'Schedule V(e)'!K331","v":"Select Yes/No"}]
["Sch Ve","Scenario Tests",null,"A1) Headquarters in Bermuda?",{"$f":"'Schedule V(e)'!L360","v":"Select Yes/No"}]
["Sch Ve","Scenario Tests",null,"A4) Data centre in Bermuda to host servers",{"$f":"'Schedule V(e)'!L363","v":"Select Yes/No"}]
["Sch Ve","Scenario Tests",null,"A11) Web applications",{"$f":"'Schedule V(e)'!L372","v":"Select Yes/No"}]
["Sch Ve","Scenario Tests",null,"A16a) Dedicated Business Continuity Manager details",{"$f":"'Schedule V(e)'!N378","v":"Confirm role holder's name"}]
["Sch Ve","Scenario Tests",null,"A18) IT Audit completed annually",{"$f":"'Schedule V(e)'!L380","v":"Select Yes/No"}]
["Sch Ve","Scenario Tests",null,"B6) Asset Management inventoried",{"$f":"'Schedule V(e)'!L389","v":"Select Yes/No"}]
["Sch Ve","Scenario Tests",null,"B12) Staff complete cybersecurity training",{"$f":"'Schedule V(e)'!L396","v":"Select Yes/No"}]
["Sch Ve","Scenario Tests",null,"B17) Detect-Process for threat alerting",{"$f":"'Schedule V(e)'!L402","v":"Select Yes/No"}]
["Sch Ve","Scenario Tests",null,"C3) DLP controls in place",{"$f":"'Schedule V(e)'!L416","v":"Select Yes/No"}]
["Sch Ve","Scenario Tests",null,"C5) External Vulnerability scanning conducted",{"$f":"'Schedule V(e)'!L418","v":"Select Yes/No"}]
["Sch Vg","GAAP - BSCR Rec",null,"Assets Fin. Stmts. - Prepaid Expenses",{"$f":"'Schedule V(g)'!D11","v":0}]
["Sch Vg","GAAP - BSCR Rec",null,"Assets Fin. Stmts. - Other 7",{"$f":"'Schedule V(g)'!D20","v":0}]
["Sch Vg","GAAP - BSCR Rec",null,"Liab. Fin. Stmts. - Other 3",{"$f":"'Schedule V(g)'!E16","v":0}]
["Sch Vg","GAAP - BSCR Rec",null,"Liab. Fin. Stmts. - Other 4",{"$f":"'Schedule V(g)'!E17","v":0}]
["Sch Vg","GAAP - BSCR Rec",null,"Net. Inc. Fin. Stmts. - Other 5",{"$f":"'Schedule V(g)'!F18","v":0}]
["Sch Vg","GAAP - BSCR Rec",null,"Net. Inc. Fin. Stmts. - Other 6",{"$f":"'Schedule V(g)'!F19","v":0}]
["Sch Vg","GAAP - BSCR Rec",null,"Assets Form 1SFS - Goodwill",{"$f":"'Schedule V(g)'!D36","v":0}]
["Sch Vg","GAAP - BSCR Rec",null,"Assets Form 1SFS - Unquoted Investments",{"$f":"'Schedule V(g)'!D39","v":0}]
["Sch Vg","GAAP - BSCR Rec",null,"Assets Form 1SFS - Other 2",{"$f":"'Schedule V(g)'!D46","v":0}]
["Sch Vg","GAAP - BSCR Rec",null,"Liab. Form 1SFS - Goodwill",{"$f":"'Schedule V(g)'!E36","v":0}]
["Sch Vg","GAAP - BSCR Rec",null,"Liab. Form 1SFS - Debt Ins.",{"$f":"'Schedule V(g)'!E43","v":0}]
["Sch Vg","GAAP - BSCR Rec",null,"Liab. Form 1SFS - Other 3",{"$f":"'Schedule V(g)'!E47","v":0}]
["Sch Vg","GAAP - BSCR Rec",null,"Net Inc. Form 1SFS - Deferred Tax",{"$f":"'Schedule V(g)'!F37","v":0}]
["Sch Vg","GAAP - BSCR Rec",null,"Net Inc. Form 1SFS - Quoted Investments",{"$f":"'Schedule V(g)'!F38","v":0}]
["Sch Vg","GAAP - BSCR Rec",null,"Net Inc. Form 1SFS - Other 3",{"$f":"'Schedule V(g)'!F47","v":0}]
["Sch Vg","GAAP - BSCR Rec",null,"C&S Form 1SFS - Gross Loss Provision",{"$f":"'Schedule V(g)'!G31","v":0}]
["Sch Vg","GAAP - BSCR Rec",null,"C&S Form 1SFS - Off Balance Sheet Ins.",{"$f":"'Schedule V(g)'!G42","v":0}]
["Sch Vg","GAAP - BSCR Rec",null,"C&S Form 1SFS - Total",{"$f":"'Schedule V(g)'!G51","v":0}]
["Sch Vk","Deposit Details",null,"Name of Exposure - 5",{"$f":"'Schedule V(k)'!C12","v":0}]
["Sch Vk","Deposit Details",null,"Name of Exposure - 8",{"$f":"'Schedule V(k)'!C15","v":0}]
["Sch Vk","Deposit Details",null,"Name of Exposure - 17",{"$f":"'Schedule V(k)'!C24","v":0}]
["Sch Vk","Deposit Details",null,"Name of Exposure - 18",{"$f":"'Schedule V(k)'!C25","v":0}]
["Sch Vk","Deposit Details",null,"Line of Business - 2",{"$f":"'Schedule V(k)'!E9","v":0}]
["Sch Vk","Deposit Details",null,"Line of Business - 8",{"$f":"'Schedule V(k)'!E15","v":0}]
["Sch Vk","Deposit Details",null,"Line of Business - 13",{"$f":"'Schedule V(k)'!E20","v":0}]
["Sch Vk","Deposit Details",null,"Line of Business - 22",{"$f":"'Schedule V(k)'!E29","v":0}]
["Sch Vk","Deposit Details",null,"Assets in Trust - 4",{"$f":"'Schedule V(k)'!F11","v":0}]
["Sch Vk","Deposit Details",null,"Assets in Trust - 7",{"$f":"'Schedule V(k)'!F14","v":0}]
["Sch Vk","Deposit Details",null,"Assets in Trust - 16",{"$f":"'Schedule V(k)'!F23","v":0}]
["Sch Vk","Deposit Details",null,"Assets in Trust - 17",{"$f":"'Schedule V(k)'!F24","v":0}]
["Sch Vk","Deposit Details",null,"Collateral - 1",{"$f":"'Schedule V(k)'!G8","v":0}]
["Sch Vk","Deposit Details",null,"Collateral - 8",{"$f":"'Schedule V(k)'!G15","v":0}]
["Sch Vk","Deposit Details",null,"Collateral - 11",{"$f":"'Schedule V(k)'!G18","v":0}]
["Sch Vk","Deposit Details",null,"Collateral - 20",{"$f":"'Schedule V(k)'!G27","v":0}]
["Sch Vk","Deposit Details",null,"GPW for the Period - 1",{"$f":"'Schedule V(k)'!H8","v":0}]
["Sch Vk","Deposit Details",null,"GPW for the Period - 4",{"$f":"'Schedule V(k)'!H11","v":0}]
["Sch Vk","Deposit Details",null,"GPW for the Period - 11",{"$f":"'Schedule V(k)'!H18","v":0}]
["Sch Vk","Deposit Details",null,"GPW for the Period - 16",{"$f":"'Schedule V(k)'!H23","v":0}]
["Sch Vk","Deposit Details",null,"GPW for the Period - 24",{"$f":"'Schedule V(k)'!H31","v":0}]
["Sch Vk","Deposit Details",null,"NPW for the Period - 5",{"$f":"'Schedule V(k)'!I12","v":0}]
["Sch Vk","Deposit Details",null,"NPW for the Period - 8",{"$f":"'Schedule V(k)'!I15","v":0}]
["Sch Vk","Deposit Details",null,"NPW for the Period - 17",{"$f":"'Schedule V(k)'!I24","v":0}]
["Sch Vk","Deposit Details",null,"NPW for the Period - 24",{"$f":"'Schedule V(k)'!I31","v":0}]
["Sch Vk","Deposit Details",null,"Exposure - 1",{"$f":"'Schedule V(k)'!J8","v":0}]
["Sch Vk","Deposit Details",null,"Exposure - 5",{"$f":"'Schedule V(k)'!J12","v":0}]
["Sch Vk","Deposit Details",null,"Exposure - 12",{"$f":"'Schedule V(k)'!J19","v":0}]
["Sch Vk","Deposit Details",null,"Exposure - 21",{"$f":"'Schedule V(k)'!J28","v":0}]
["Sch Vk","Deposit Details",null,"Limit @ 99.0 TVAR - 2",{"$f":"'Schedule V(k)'!K9","v":0}]
["Sch Vk","Deposit Details",null,"Limit @ 99.0 TVAR - 5",{"$f":"'Schedule V(k)'!K12","v":0}]
["Sch Vk","Deposit Details",null,"Limit @ 99.0 TVAR - 14",{"$f":"'Schedule V(k)'!K21","v":0}]
["Sch Vk","Deposit Details",null,"Limit @ 99.0 TVAR - 21",{"$f":"'Schedule V(k)'!K28","v":0}]
["Sch Vk","Deposit Details",null,"Limit @ 99.0 TVAR - 23",{"$f":"'Schedule V(k)'!K30","v":0}]
["Sch Vk","Deposit Details",null,"Unlimited Exposure Details - 6",{"$f":"'Schedule V(k)'!L13","v":0}]
["Sch Vk","Deposit Details",null,"Unlimited Exposure Details - 9",{"$f":"'Schedule V(k)'!L16","v":0}]
["Sch Vk","Deposit Details",null,"Unlimited Exposure Details - 18",{"$f":"'Schedule V(k)'!L25","v":0}]
["Sch Vk","Deposit Details",null,"Unlimited Exposure Details - 25",{"$f":"'Schedule V(k)'!L32","v":0}]
["Sch V(L)","Segregated Acc",null,"Cell Ref # - Cell 1",{"$f":"'Schedule V(l)'!D6","v":0}]
["Sch V(L)","Segregated Acc",null,"Net Income - Cell 1",{"$f":"'Schedule V(l)'!D14","v":0}]
["Sch V(L)","Segregated Acc",null,"Net Loss & Loss Expense Provisions - Cell 1",{"$f":"'Schedule V(l)'!D24","v":0}]
["Sch V(L)","Segregated Acc",null,"Cell is in Run-Off - Cell 1",{"$f":"'Schedule V(l)'!D27","v":"Select Yes/No"}]
["Sch V(L)","Segregated Acc",null,"Additional Capital Support - Cell 1",{"$f":"'Schedule V(l)'!D34","v":"Confirm"}]
["Sch V(L)","Segregated Acc",null,"Details of Benefical Owners of Cell - Cell 1",{"$f":"'Schedule V(l)'!D37","v":"Confirm"}]
["Sch V(L)","Segregated Acc",null,"Primary Cell Funding - Cell 1",{"$f":"'Schedule V(l)'!D46","v":"Select Funding"}]
["Sch V(L)","Segregated Acc",null,"i) NPW - Cell 1",{"$f":"'Schedule V(l)'!D58","v":0}]
["Sch V(L)","Segregated Acc",null,"ii) Premiums Ceded - Cell 1",{"$f":"'Schedule V(l)'!D61","v":0}]
["Sch V(L)","Segregated Acc",null,"iv) NPW - Cell 1",{"$f":"'Schedule V(l)'!D70","v":0}]
["Sch V(L)","Segregated Acc",null,"Total Assets - Cell 2",{"$f":"'Schedule V(l)'!E9","v":0}]
["Sch V(L)","Segregated Acc",null,"Statutory Capital - Cell 2",{"$f":"'Schedule V(l)'!E12","v":0}]
["Sch V(L)","Segregated Acc",null,"Unquoted: Equities - Cell 2",{"$f":"'Schedule V(l)'!E20","v":0}]
["Sch V(L)","Segregated Acc",null,"Due to Affiliates - Cell 2",{"$f":"'Schedule V(l)'!E23","v":0}]
["Sch V(L)","Segregated Acc",null,"General Cell to Cell Activity Details - Cell 2",{"$f":"'Schedule V(l)'!E32","v":0}]
["Sch V(L)","Segregated Acc",null,"Benefical Ownership - Cell 2",{"$f":"'Schedule V(l)'!E39","v":"Confirm"}]
["Sch V(L)","Segregated Acc",null,"Primary Cell Funding - Cell 2",{"$f":"'Schedule V(l)'!E46","v":"Select Funding"}]
["Sch V(L)","Segregated Acc",null,"i) Statutory Line of Business - Cell 2",{"$f":"'Schedule V(l)'!E55","v":"Select Line of Business"}]
["Sch V(L)","Segregated Acc",null,"iii) GPW - Cell 2",{"$f":"'Schedule V(l)'!E64","v":0}]
["Sch V(L)","Segregated Acc",null,"iv) Statutory Line of Business - Cell 2",{"$f":"'Schedule V(l)'!E67","v":"Select Line of Business"}]
["Sch V(L)","Segregated Acc",null,"v) NPW - Cell 2",{"$f":"'Schedule V(l)'!E74","v":0}]
["Sch V(L)","Segregated Acc",null,"Direct Insurer, Reinsurer or Both - Cell 3",{"$f":"'Schedule V(l)'!F8","v":"Select Premiums Written"}]
["Sch V(L)","Segregated Acc",null,"Quoted: Bonds and Debentures - Cell 3",{"$f":"'Schedule V(l)'!F16","v":0}]
["Sch V(L)","Segregated Acc",null,"Net Loss & Loss Expense Provisions - Cell 3",{"$f":"'Schedule V(l)'!F24","v":0}]
["Sch V(L)","Segregated Acc",null,"Cell to Cell Activity  - Cell 3",{"$f":"'Schedule V(l)'!F29","v":"Confirm Activity"}]
["Sch V(L)","Segregated Acc",null,"Details of Benefical Owners of Risk - Cell 3",{"$f":"'Schedule V(l)'!F36","v":"Confirm"}]
["Sch V(L)","Segregated Acc",null,"Limited recourse  - Cell 3",{"$f":"'Schedule V(l)'!F45","v":"Select Yes/No"}]
["Sch V(L)","Segregated Acc",null,"Limit of Cell  Funding/ Collateral Details - Cell 3",{"$f":"'Schedule V(l)'!F48","v":0}]
["Sch V(L)","Segregated Acc",null,"ii) GPW - Cell 3",{"$f":"'Schedule V(l)'!F60","v":0}]
["Sch V(L)","Segregated Acc",null,"iii) NPW - Cell 3",{"$f":"'Schedule V(l)'!F66","v":0}]
["Sch V(L)","Segregated Acc",null,"v) Statutory Line of Business - Cell 3",{"$f":"'Schedule V(l)'!F71","v":"Select Line of Business"}]
["Sch V(L)","Segregated Acc",null,"Statutory Surplus - Cell 4",{"$f":"'Schedule V(l)'!G11","v":0}]
["Sch V(L)","Segregated Acc",null,"Cash  - Cell 4",{"$f":"'Schedule V(l)'!G15","v":0}]
["Sch V(L)","Segregated Acc",null,"Due from Affiliates - Cell 4",{"$f":"'Schedule V(l)'!G22","v":0}]
["Sch V(L)","Segregated Acc",null,"General Cell to Cell Activity - Cell 4",{"$f":"'Schedule V(l)'!G31","v":"Confirm Activity"}]
["Sch V(L)","Segregated Acc",null,"General Cell to Cell Activity Details - Cell 4",{"$f":"'Schedule V(l)'!G32","v":0}]
["Sch V(L)","Segregated Acc",null,"Benefical Ownership - Cell 4",{"$f":"'Schedule V(l)'!G39","v":"Confirm"}]
["Sch V(L)","Segregated Acc",null,"Limited recourse  - Cell 4",{"$f":"'Schedule V(l)'!G45","v":"Select Yes/No"}]
["Sch V(L)","Segregated Acc",null,"i) Premiums Ceded - Cell 4",{"$f":"'Schedule V(l)'!G57","v":0}]
["Sch V(L)","Segregated Acc",null,"iii) NPW - Cell 4",{"$f":"'Schedule V(l)'!G66","v":0}]
["Sch V(L)","Segregated Acc",null,"iv) Premiums Ceded - Cell 4",{"$f":"'Schedule V(l)'!G69","v":0}]
["Sch V(L)","Segregated Acc",null,"Cell name - Cell 5",{"$f":"'Schedule V(l)'!H7","v":0}]
["Sch V(L)","Segregated Acc",null,"Quoted: Equites - Cell 5",{"$f":"'Schedule V(l)'!H17","v":0}]
["Sch V(L)","Segregated Acc",null,"Net Loss & Loss Expense Provisions - Cell 5",{"$f":"'Schedule V(l)'!H24","v":0}]
["Sch V(L)","Segregated Acc",null,"currency used - Cell 5",{"$f":"'Schedule V(l)'!H28","v":"Select Currency"}]
["Sch V(L)","Segregated Acc",null,"General Cell to Cell Activity - Cell 5",{"$f":"'Schedule V(l)'!H31","v":"Confirm Activity"}]
["Sch V(L)","Segregated Acc",null,"Benefical Owners - Cell 5",{"$f":"'Schedule V(l)'!H38","v":"Confirm"}]
["Sch V(L)","Segregated Acc",null,"Limit of Cell  Funding/ Collateral - Cell 5",{"$f":"'Schedule V(l)'!H47","v":"Confirm Funding / Collateral"}]
["Sch V(L)","Segregated Acc",null,"i) Statutory Line of Business - Cell 5",{"$f":"'Schedule V(l)'!H55","v":"Select Line of Business"}]
["Sch V(L)","Segregated Acc",null,"ii) NPW - Cell 5",{"$f":"'Schedule V(l)'!H62","v":0}]
["Sch V(L)","Segregated Acc",null,"iii) NPW - Cell 5",{"$f":"'Schedule V(l)'!H66","v":0}]
["Sch V(L)","Segregated Acc",null,"v) Premiums Ceded - Cell 5",{"$f":"'Schedule V(l)'!H73","v":0}]
["Sch V(L)","Segregated Acc",null,"Net Income - Cell 6",{"$f":"'Schedule V(l)'!I14","v":0}]
["Sch V(L)","Segregated Acc",null,"Quoted: Equites - Cell 6",{"$f":"'Schedule V(l)'!I17","v":0}]
["Sch V(L)","Segregated Acc",null,"Net Loss & Loss Expense Provisions - Cell 6",{"$f":"'Schedule V(l)'!I24","v":0}]
["Sch V(L)","Segregated Acc",null,"Cell Deficit - Cell 6",{"$f":"'Schedule V(l)'!I33","v":0}]
["Sch V(L)","Segregated Acc",null,"Benefical Ownership Add. Details - Cell 6",{"$f":"'Schedule V(l)'!I40","v":0}]
["Sch V(L)","Segregated Acc",null,"Primary Cell Funding - Cell 6",{"$f":"'Schedule V(l)'!I46","v":"Select Funding"}]
["Sch V(L)","Segregated Acc",null,"i) NPW - Cell 6",{"$f":"'Schedule V(l)'!I58","v":0}]
["Sch V(L)","Segregated Acc",null,"ii) Statutory Line of Business - Cell 6",{"$f":"'Schedule V(l)'!I59","v":"Select Line of Business"}]
["Sch V(L)","Segregated Acc",null,"iv) GPW - Cell 6",{"$f":"'Schedule V(l)'!I68","v":0}]
["Sch V(L)","Segregated Acc",null,"v) Statutory Line of Business - Cell 6",{"$f":"'Schedule V(l)'!I71","v":"Select Line of Business"}]
["Sch V(L)","Segregated Acc",null,"Total Assets - Cell 7",{"$f":"'Schedule V(l)'!J9","v":0}]
["Sch V(L)","Segregated Acc",null,"Unquoted: Bonds and Debentures - Cell 7",{"$f":"'Schedule V(l)'!J19","v":0}]
["Sch V(L)","Segregated Acc",null,"Net Loss & Loss Expense Provisions - Cell 7",{"$f":"'Schedule V(l)'!J24","v":0}]
["Sch V(L)","Segregated Acc",null,"Cell to Cell Activity Details - Cell 7",{"$f":"'Schedule V(l)'!J30","v":0}]
["Sch V(L)","Segregated Acc",null,"Benefical Ownership - Cell 7",{"$f":"'Schedule V(l)'!J39","v":"Confirm"}]
["Sch V(L)","Segregated Acc",null,"Benefical Ownership Add. Details - Cell 7",{"$f":"'Schedule V(l)'!J40","v":0}]
["Sch V(L)","Segregated Acc",null,"Operational Risk Mitigants - Cell 7",{"$f":"'Schedule V(l)'!J49","v":"Confirm Mitigants & Attach Support"}]
["Sch V(L)","Segregated Acc",null,"ii) Premiums Ceded - Cell 7",{"$f":"'Schedule V(l)'!J61","v":0}]
["Sch V(L)","Segregated Acc",null,"iii) GPW - Cell 7",{"$f":"'Schedule V(l)'!J64","v":0}]
["Sch V(L)","Segregated Acc",null,"v) Premiums Ceded - Cell 7",{"$f":"'Schedule V(l)'!J73","v":0}]
["Sch V(L)","Segregated Acc",null,"Statutory Capital - Cell 8",{"$f":"'Schedule V(l)'!K12","v":0}]
["Sch V(L)","Segregated Acc",null,"Quoted: Bonds and Debentures - Cell 8",{"$f":"'Schedule V(l)'!K16","v":0}]
["Sch V(L)","Segregated Acc",null,"Prior Year loss reserve development - Cell 8",{"$f":"'Schedule V(l)'!K25","v":0}]
["Sch V(L)","Segregated Acc",null,"Reinsurance Recoverable Balance - Cell 8",{"$f":"'Schedule V(l)'!K26","v":0}]
["Sch V(L)","Segregated Acc",null,"Additional Capital Support Details - Cell 8",{"$f":"'Schedule V(l)'!K35","v":0}]
["Sch V(L)","Segregated Acc",null,"Benefical Ownership Gov Intrument - Cell 8",{"$f":"'Schedule V(l)'!K42","v":"Confirm Instrument"}]
["Sch V(L)","Segregated Acc",null,"Primary Cell Funding - Cell 8",{"$f":"'Schedule V(l)'!K46","v":"Select Funding"}]
["Sch V(L)","Segregated Acc",null,"ii) GPW - Cell 8",{"$f":"'Schedule V(l)'!K60","v":0}]
["Sch V(L)","Segregated Acc",null,"iv) Statutory Line of Business - Cell 8",{"$f":"'Schedule V(l)'!K67","v":"Select Line of Business"}]
["Sch V(L)","Segregated Acc",null,"iv) NPW - Cell 8",{"$f":"'Schedule V(l)'!K70","v":0}]
["Sch V(L)","Segregated Acc",null,"Total Liabilities - Cell 9",{"$f":"'Schedule V(l)'!L10","v":0}]
["Sch V(L)","Segregated Acc",null,"Statutory Surplus - Cell 9",{"$f":"'Schedule V(l)'!L11","v":0}]
["Sch V(L)","Segregated Acc",null,"Unquoted: Other - Cell 9",{"$f":"'Schedule V(l)'!L21","v":0}]
["Sch V(L)","Segregated Acc",null,"Net Loss & Loss Expense Provisions - Cell 9",{"$f":"'Schedule V(l)'!L24","v":0}]
["Sch V(L)","Segregated Acc",null,"General Cell to Cell Activity Details - Cell 9",{"$f":"'Schedule V(l)'!L32","v":0}]
["Sch V(L)","Segregated Acc",null,"Jurisdiction - Cell 9",{"$f":"'Schedule V(l)'!L41","v":"Confirm Jurisdiction"}]
["Sch V(L)","Segregated Acc",null,"Limit of Cell  Funding/ Collateral Details - Cell 9",{"$f":"'Schedule V(l)'!L48","v":0}]
["Sch V(L)","Segregated Acc",null,"i) GPW - Cell 9",{"$f":"'Schedule V(l)'!L56","v":0}]
["Sch V(L)","Segregated Acc",null,"iii) Statutory Line of Business - Cell 9",{"$f":"'Schedule V(l)'!L63","v":"Select Line of Business"}]
["Sch V(L)","Segregated Acc",null,"iii) NPW - Cell 9",{"$f":"'Schedule V(l)'!L66","v":0}]
["Sch V(L)","Segregated Acc",null,"Cell name - Cell 10",{"$f":"'Schedule V(l)'!M7","v":0}]
["Sch V(L)","Segregated Acc",null,"Cash  - Cell 10",{"$f":"'Schedule V(l)'!M15","v":0}]
["Sch V(L)","Segregated Acc",null,"Quoted: Other  - Cell 10",{"$f":"'Schedule V(l)'!M18","v":0}]
["Sch V(L)","Segregated Acc",null,"Cell is in Run-Off - Cell 10",{"$f":"'Schedule V(l)'!M27","v":"Select Yes/No"}]
["Sch V(L)","Segregated Acc",null,"Additional Capital Support - Cell 10",{"$f":"'Schedule V(l)'!M34","v":"Confirm"}]
["Sch V(L)","Segregated Acc",null,"Details of Benefical Owners of Cell - Cell 10",{"$f":"'Schedule V(l)'!M37","v":"Confirm"}]
["Sch V(L)","Segregated Acc",null,"Primary Cell Funding - Cell 10",{"$f":"'Schedule V(l)'!M46","v":"Select Funding"}]
["Sch V(L)","Segregated Acc",null,"Limit of Cell  Funding/ Collateral Details - Cell 10",{"$f":"'Schedule V(l)'!M48","v":0}]
["Sch V(L)","Segregated Acc",null,"ii) NPW - Cell 10",{"$f":"'Schedule V(l)'!M62","v":0}]
["Sch V(L)","Segregated Acc",null,"iv) Premiums Ceded - Cell 10",{"$f":"'Schedule V(l)'!M69","v":0}]
["Sch V(L)","Segregated Acc",null,"v) GPW - Cell 10",{"$f":"'Schedule V(l)'!M72","v":0}]
["Sch V(L)","Segregated Acc",null,"Statutory Capital - Cell 11",{"$f":"'Schedule V(l)'!N12","v":0}]
["Sch V(L)","Segregated Acc",null,"Unquoted: Equities - Cell 11",{"$f":"'Schedule V(l)'!N20","v":0}]
["Sch V(L)","Segregated Acc",null,"Cell is in Run-Off - Cell 11",{"$f":"'Schedule V(l)'!N27","v":"Select Yes/No"}]
["Sch V(L)","Segregated Acc",null,"General Cell to Cell Activity - Cell 11",{"$f":"'Schedule V(l)'!N31","v":"Confirm Activity"}]
["Sch V(L)","Segregated Acc",null,"Additional Capital Support - Cell 11",{"$f":"'Schedule V(l)'!N34","v":"Confirm"}]
["Sch V(L)","Segregated Acc",null,"Benefical Ownership Gov Intrument Det. - Cell 11",{"$f":"'Schedule V(l)'!N43","v":0}]
["Sch V(L)","Segregated Acc",null,"i) Statutory Line of Business - Cell 11",{"$f":"'Schedule V(l)'!N55","v":"Select Line of Business"}]
["Sch V(L)","Segregated Acc",null,"i) NPW - Cell 11",{"$f":"'Schedule V(l)'!N58","v":0}]
["Sch V(L)","Segregated Acc",null,"iii) Premiums Ceded - Cell 11",{"$f":"'Schedule V(l)'!N65","v":0}]
["Sch V(L)","Segregated Acc",null,"v) Premiums Ceded - Cell 11",{"$f":"'Schedule V(l)'!N73","v":0}]
["Sch V(L)","Segregated Acc",null,"Total Assets - Cell 12",{"$f":"'Schedule V(l)'!O9","v":0}]
["Sch V(L)","Segregated Acc",null,"Quoted: Equites - Cell 12",{"$f":"'Schedule V(l)'!O17","v":0}]
["Sch V(L)","Segregated Acc",null,"Unquoted: Equities - Cell 12",{"$f":"'Schedule V(l)'!O20","v":0}]
["Sch V(L)","Segregated Acc",null,"Cell to Cell Activity  - Cell 12",{"$f":"'Schedule V(l)'!O29","v":"Confirm Activity"}]
["Sch V(L)","Segregated Acc",null,"Details of Benefical Owners of Risk - Cell 12",{"$f":"'Schedule V(l)'!O36","v":"Confirm"}]
["Sch V(L)","Segregated Acc",null,"Benefical Ownership - Cell 12",{"$f":"'Schedule V(l)'!O39","v":"Confirm"}]
["Sch V(L)","Segregated Acc",null,"Primary Cell Funding - Cell 12",{"$f":"'Schedule V(l)'!O46","v":"Select Funding"}]
["Sch V(L)","Segregated Acc",null,"ii) Premiums Ceded - Cell 12",{"$f":"'Schedule V(l)'!O61","v":0}]
["Sch V(L)","Segregated Acc",null,"iii) GPW - Cell 12",{"$f":"'Schedule V(l)'!O64","v":0}]
["Sch V(L)","Segregated Acc",null,"v) Statutory Line of Business - Cell 12",{"$f":"'Schedule V(l)'!O71","v":"Select Line of Business"}]
["Sch V(L)","Segregated Acc",null,"v) NPW - Cell 12",{"$f":"'Schedule V(l)'!O74","v":0}]
["Sch V(L)","Segregated Acc",null,"Statutory Capital - Cell 13",{"$f":"'Schedule V(l)'!P12","v":0}]
["Sch V(L)","Segregated Acc",null,"Due from Affiliates - Cell 13",{"$f":"'Schedule V(l)'!P22","v":0}]
["Sch V(L)","Segregated Acc",null,"Cell is in Run-Off - Cell 13",{"$f":"'Schedule V(l)'!P27","v":"Select Yes/No"}]
["Sch V(L)","Segregated Acc",null,"Cell Deficit - Cell 13",{"$f":"'Schedule V(l)'!P33","v":0}]
["Sch V(L)","Segregated Acc",null,"Benefical Ownership Gov Intrument - Cell 13",{"$f":"'Schedule V(l)'!P42","v":"Confirm Instrument"}]
["Sch V(L)","Segregated Acc",null,"Limited recourse  - Cell 13",{"$f":"'Schedule V(l)'!P45","v":"Select Yes/No"}]
["Sch V(L)","Segregated Acc",null,"i) Premiums Ceded - Cell 13",{"$f":"'Schedule V(l)'!P57","v":0}]
["Sch V(L)","Segregated Acc",null,"ii) GPW - Cell 13",{"$f":"'Schedule V(l)'!P60","v":0}]
["Sch V(L)","Segregated Acc",null,"iv) Statutory Line of Business - Cell 13",{"$f":"'Schedule V(l)'!P67","v":"Select Line of Business"}]
["Sch V(L)","Segregated Acc",null,"v) Premiums Ceded - Cell 13",{"$f":"'Schedule V(l)'!P73","v":0}]
["Sch V(L)","Segregated Acc",null,"Statutory Surplus - Cell 14",{"$f":"'Schedule V(l)'!Q11","v":0}]
["Sch V(L)","Segregated Acc",null,"Unquoted: Bonds and Debentures - Cell 14",{"$f":"'Schedule V(l)'!Q19","v":0}]
["Sch V(L)","Segregated Acc",null,"currency used - Cell 14",{"$f":"'Schedule V(l)'!Q28","v":"Select Currency"}]
["Sch V(L)","Segregated Acc",null,"General Cell to Cell Activity - Cell 14",{"$f":"'Schedule V(l)'!Q31","v":"Confirm Activity"}]
["Sch V(L)","Segregated Acc",null,"Benefical Owners - Cell 14",{"$f":"'Schedule V(l)'!Q38","v":"Confirm"}]
["Sch V(L)","Segregated Acc",null,"Jurisdiction - Cell 14",{"$f":"'Schedule V(l)'!Q41","v":"Confirm Jurisdiction"}]
["Sch V(L)","Segregated Acc",null,"i) NPW - Cell 14",{"$f":"'Schedule V(l)'!Q58","v":0}]
["Sch V(L)","Segregated Acc",null,"iii) Statutory Line of Business - Cell 14",{"$f":"'Schedule V(l)'!Q63","v":"Select Line of Business"}]
["Sch V(L)","Segregated Acc",null,"iii) NPW - Cell 14",{"$f":"'Schedule V(l)'!Q66","v":0}]
["Sch V(L)","Segregated Acc",null,"v) Premiums Ceded - Cell 14",{"$f":"'Schedule V(l)'!Q73","v":0}]
["Sch V(L)","Segregated Acc",null,"Net Income - Cell 15",{"$f":"'Schedule V(l)'!R14","v":0}]
["Sch V(L)","Segregated Acc",null,"Cash  - Cell 15",{"$f":"'Schedule V(l)'!R15","v":0}]
["Sch V(L)","Segregated Acc",null,"Net Loss & Loss Expense Provisions - Cell 15",{"$f":"'Schedule V(l)'!R24","v":0}]
["Sch V(L)","Segregated Acc",null,"Cell is in Run-Off - Cell 15",{"$f":"'Schedule V(l)'!R27","v":"Select Yes/No"}]
["Sch V(L)","Segregated Acc",null,"Additional Capital Support Details - Cell 15",{"$f":"'Schedule V(l)'!R35","v":0}]
["Sch V(L)","Segregated Acc",null,"Indemnity Provisions - Cell 15",{"$f":"'Schedule V(l)'!R44","v":"Select Yes/No"}]
["Sch V(L)","Segregated Acc",null,"Limit of Cell  Funding/ Collateral - Cell 15",{"$f":"'Schedule V(l)'!R47","v":"Confirm Funding / Collateral"}]
["Sch V(L)","Segregated Acc",null,"ii) Statutory Line of Business - Cell 15",{"$f":"'Schedule V(l)'!R59","v":"Select Line of Business"}]
["Sch V(L)","Segregated Acc",null,"iv) GPW - Cell 15",{"$f":"'Schedule V(l)'!R68","v":0}]
["Sch V(L)","Segregated Acc",null,"iv) Premiums Ceded - Cell 15",{"$f":"'Schedule V(l)'!R69","v":0}]
["Sch V(L)","Segregated Acc",null,"Statutory Surplus - Cell 16",{"$f":"'Schedule V(l)'!S11","v":0}]
["Sch V(L)","Segregated Acc",null,"Net Income - Cell 16",{"$f":"'Schedule V(l)'!S14","v":0}]
["Sch V(L)","Segregated Acc",null,"Unquoted: Other - Cell 16",{"$f":"'Schedule V(l)'!S21","v":0}]
["Sch V(L)","Segregated Acc",null,"Cell to Cell Activity Details - Cell 16",{"$f":"'Schedule V(l)'!S30","v":0}]
["Sch V(L)","Segregated Acc",null,"Cell Deficit - Cell 16",{"$f":"'Schedule V(l)'!S33","v":0}]
["Sch V(L)","Segregated Acc",null,"Benefical Ownership Add. Details - Cell 16",{"$f":"'Schedule V(l)'!S40","v":0}]
["Sch V(L)","Segregated Acc",null,"Operational Risk Mitigants - Cell 16",{"$f":"'Schedule V(l)'!S49","v":"Confirm Mitigants & Attach Support"}]
["Sch V(L)","Segregated Acc",null,"i) GPW - Cell 16",{"$f":"'Schedule V(l)'!S56","v":0}]
["Sch V(L)","Segregated Acc",null,"iii) Premiums Ceded - Cell 16",{"$f":"'Schedule V(l)'!S65","v":0}]
["Sch V(L)","Segregated Acc",null,"iv) GPW - Cell 16",{"$f":"'Schedule V(l)'!S68","v":0}]
["Sch V(L)","Segregated Acc",null,"Cell Ref # - Cell 17",{"$f":"'Schedule V(l)'!T6","v":0}]
["Sch V(L)","Segregated Acc",null,"Quoted: Bonds and Debentures - Cell 17",{"$f":"'Schedule V(l)'!T16","v":0}]
["Sch V(L)","Segregated Acc",null,"Due to Affiliates - Cell 17",{"$f":"'Schedule V(l)'!T23","v":0}]
["Sch V(L)","Segregated Acc",null,"Cell is in Run-Off - Cell 17",{"$f":"'Schedule V(l)'!T27","v":"Select Yes/No"}]
["Sch V(L)","Segregated Acc",null,"Details of Benefical Owners of Risk - Cell 17",{"$f":"'Schedule V(l)'!T36","v":"Confirm"}]
["Sch V(L)","Segregated Acc",null,"Details of Benefical Owners of Cell - Cell 17",{"$f":"'Schedule V(l)'!T37","v":"Confirm"}]
["Sch V(L)","Segregated Acc",null,"Primary Cell Funding - Cell 17",{"$f":"'Schedule V(l)'!T46","v":"Select Funding"}]
["Sch V(L)","Segregated Acc",null,"Operational Risk Mitigants - Cell 17",{"$f":"'Schedule V(l)'!T49","v":"Confirm Mitigants & Attach Support"}]
["Sch V(L)","Segregated Acc",null,"ii) Premiums Ceded - Cell 17",{"$f":"'Schedule V(l)'!T61","v":0}]
["Sch V(L)","Segregated Acc",null,"iv) NPW - Cell 17",{"$f":"'Schedule V(l)'!T70","v":0}]
["Sch V(L)","Segregated Acc",null,"v) Premiums Ceded - Cell 17",{"$f":"'Schedule V(l)'!T73","v":0}]
["Sch V(L)","Segregated Acc",null,"Statutory Capital - Cell 18",{"$f":"'Schedule V(l)'!U12","v":0}]
["Sch V(L)","Segregated Acc",null,"Due from Affiliates - Cell 18",{"$f":"'Schedule V(l)'!U22","v":0}]
["Sch V(L)","Segregated Acc",null,"Due to Affiliates - Cell 18",{"$f":"'Schedule V(l)'!U23","v":0}]
["Sch V(L)","Segregated Acc",null,"General Cell to Cell Activity Details - Cell 18",{"$f":"'Schedule V(l)'!U32","v":0}]
["Sch V(L)","Segregated Acc",null,"Benefical Ownership - Cell 18",{"$f":"'Schedule V(l)'!U39","v":"Confirm"}]
["Sch V(L)","Segregated Acc",null,"Benefical Ownership Gov Intrument - Cell 18",{"$f":"'Schedule V(l)'!U42","v":"Confirm Instrument"}]
["Sch V(L)","Segregated Acc",null,"Operational Risk Mitigants - Cell 18",{"$f":"'Schedule V(l)'!U49","v":"Confirm Mitigants & Attach Support"}]
["Sch V(L)","Segregated Acc",null,"iii) GPW - Cell 18",{"$f":"'Schedule V(l)'!U64","v":0}]
["Sch V(L)","Segregated Acc",null,"iv) Statutory Line of Business - Cell 18",{"$f":"'Schedule V(l)'!U67","v":"Select Line of Business"}]
["Sch V(L)","Segregated Acc",null,"Cell name - Cell 19",{"$f":"'Schedule V(l)'!V7","v":0}]
["Sch V(L)","Segregated Acc",null,"Direct Insurer, Reinsurer or Both - Cell 19",{"$f":"'Schedule V(l)'!V8","v":"Select Premiums Written"}]
["Sch V(L)","Segregated Acc",null,"Quoted: Other  - Cell 19",{"$f":"'Schedule V(l)'!V18","v":0}]
["Sch V(L)","Segregated Acc",null,"Prior Year loss reserve development - Cell 19",{"$f":"'Schedule V(l)'!V25","v":0}]
["Sch V(L)","Segregated Acc",null,"Cell is in Run-Off - Cell 19",{"$f":"'Schedule V(l)'!V27","v":"Select Yes/No"}]
["Sch V(L)","Segregated Acc",null,"Benefical Owners - Cell 19",{"$f":"'Schedule V(l)'!V38","v":"Confirm"}]
["Sch V(L)","Segregated Acc",null,"Limited recourse  - Cell 19",{"$f":"'Schedule V(l)'!V45","v":"Select Yes/No"}]
["Sch V(L)","Segregated Acc",null,"Limit of Cell  Funding/ Collateral Details - Cell 19",{"$f":"'Schedule V(l)'!V48","v":0}]
["Sch V(L)","Segregated Acc",null,"ii) NPW - Cell 19",{"$f":"'Schedule V(l)'!V62","v":0}]
["Sch V(L)","Segregated Acc",null,"iii) Statutory Line of Business - Cell 19",{"$f":"'Schedule V(l)'!V63","v":"Select Line of Business"}]
["Sch V(L)","Segregated Acc",null,"v) GPW - Cell 19",{"$f":"'Schedule V(l)'!V72","v":0}]
["Sch V(L)","Segregated Acc",null,"Statutory Surplus - Cell 20",{"$f":"'Schedule V(l)'!W11","v":0}]
["Sch V(L)","Segregated Acc",null,"Cash  - Cell 20",{"$f":"'Schedule V(l)'!W15","v":0}]
["Sch V(L)","Segregated Acc",null,"Net Loss & Loss Expense Provisions - Cell 20",{"$f":"'Schedule V(l)'!W24","v":0}]
["Sch V(L)","Segregated Acc",null,"General Cell to Cell Activity - Cell 20",{"$f":"'Schedule V(l)'!W31","v":"Confirm Activity"}]
["Sch V(L)","Segregated Acc",null,"Additional Capital Support - Cell 20",{"$f":"'Schedule V(l)'!W34","v":"Confirm"}]
["Sch V(L)","Segregated Acc",null,"Jurisdiction - Cell 20",{"$f":"'Schedule V(l)'!W41","v":"Confirm Jurisdiction"}]
["Sch V(L)","Segregated Acc",null,"Indemnity Provisions - Cell 20",{"$f":"'Schedule V(l)'!W44","v":"Select Yes/No"}]
["Sch V(L)","Segregated Acc",null,"ii) Premiums Ceded - Cell 20",{"$f":"'Schedule V(l)'!W61","v":0}]
["Sch V(L)","Segregated Acc",null,"iii) NPW - Cell 20",{"$f":"'Schedule V(l)'!W66","v":0}]
["Sch V(L)","Segregated Acc",null,"iv) Premiums Ceded - Cell 20",{"$f":"'Schedule V(l)'!W69","v":0}]
["Sch V(L)","Segregated Acc",null,"Total Assets - Cell 21",{"$f":"'Schedule V(l)'!X9","v":0}]
["Sch V(L)","Segregated Acc",null,"Quoted: Equites - Cell 21",{"$f":"'Schedule V(l)'!X17","v":0}]
["Sch V(L)","Segregated Acc",null,"Unquoted: Equities - Cell 21",{"$f":"'Schedule V(l)'!X20","v":0}]
["Sch V(L)","Segregated Acc",null,"Cell is in Run-Off - Cell 21",{"$f":"'Schedule V(l)'!X27","v":"Select Yes/No"}]
["Sch V(L)","Segregated Acc",null,"Additional Capital Support - Cell 21",{"$f":"'Schedule V(l)'!X34","v":"Confirm"}]
["Sch V(L)","Segregated Acc",null,"Benefical Ownership Add. Details - Cell 21",{"$f":"'Schedule V(l)'!X40","v":0}]
["Sch V(L)","Segregated Acc",null,"Limit of Cell  Funding/ Collateral - Cell 21",{"$f":"'Schedule V(l)'!X47","v":"Confirm Funding / Collateral"}]
["Sch V(L)","Segregated Acc",null,"i) Statutory Line of Business - Cell 21",{"$f":"'Schedule V(l)'!X55","v":"Select Line of Business"}]
["Sch V(L)","Segregated Acc",null,"ii) NPW - Cell 21",{"$f":"'Schedule V(l)'!X62","v":0}]
["Sch V(L)","Segregated Acc",null,"v) Statutory Line of Business - Cell 21",{"$f":"'Schedule V(l)'!X71","v":"Select Line of Business"}]
["Sch V(L)","Segregated Acc",null,"v) NPW - Cell 21",{"$f":"'Schedule V(l)'!X74","v":0}]
["Sch V(L)","Segregated Acc",null,"Statutory Surplus - Cell 22",{"$f":"'Schedule V(l)'!Y11","v":0}]
["Sch V(L)","Segregated Acc",null,"Quoted: Equites - Cell 22",{"$f":"'Schedule V(l)'!Y17","v":0}]
["Sch V(L)","Segregated Acc",null,"Reinsurance Recoverable Balance - Cell 22",{"$f":"'Schedule V(l)'!Y26","v":0}]
["Sch V(L)","Segregated Acc",null,"Cell Deficit - Cell 22",{"$f":"'Schedule V(l)'!Y33","v":0}]
["Sch V(L)","Segregated Acc",null,"Details of Benefical Owners of Risk - Cell 22",{"$f":"'Schedule V(l)'!Y36","v":"Confirm"}]
["Sch V(L)","Segregated Acc",null,"Benefical Ownership Gov Intrument Det. - Cell 22",{"$f":"'Schedule V(l)'!Y43","v":0}]
["Sch V(L)","Segregated Acc",null,"i) Premiums Ceded - Cell 22",{"$f":"'Schedule V(l)'!Y57","v":0}]
["Sch V(L)","Segregated Acc",null,"ii) Premiums Ceded - Cell 22",{"$f":"'Schedule V(l)'!Y61","v":0}]
["Sch V(L)","Segregated Acc",null,"iv) GPW - Cell 22",{"$f":"'Schedule V(l)'!Y68","v":0}]
["Sch V(L)","Segregated Acc",null,"v) Statutory Line of Business - Cell 22",{"$f":"'Schedule V(l)'!Y71","v":"Select Line of Business"}]
["Sch V(L)","Segregated Acc",null,"Statutory Surplus - Cell 23",{"$f":"'Schedule V(l)'!Z11","v":0}]
["Sch V(L)","Segregated Acc",null,"Unquoted: Bonds and Debentures - Cell 23",{"$f":"'Schedule V(l)'!Z19","v":0}]
["Sch V(L)","Segregated Acc",null,"Due from Affiliates - Cell 23",{"$f":"'Schedule V(l)'!Z22","v":0}]
["Sch V(L)","Segregated Acc",null,"Cell is in Run-Off - Cell 23",{"$f":"'Schedule V(l)'!Z27","v":"Select Yes/No"}]
["Sch V(L)","Segregated Acc",null,"Benefical Ownership - Cell 23",{"$f":"'Schedule V(l)'!Z39","v":"Confirm"}]
["Sch V(L)","Segregated Acc",null,"Benefical Ownership Gov Intrument - Cell 23",{"$f":"'Schedule V(l)'!Z42","v":"Confirm Instrument"}]
["Sch V(L)","Segregated Acc",null,"Operational Risk Mitigants - Cell 23",{"$f":"'Schedule V(l)'!Z49","v":"Confirm Mitigants & Attach Support"}]
["Sch V(L)","Segregated Acc",null,"i) Premiums Ceded - Cell 23",{"$f":"'Schedule V(l)'!Z57","v":0}]
["Sch V(L)","Segregated Acc",null,"iii) GPW - Cell 23",{"$f":"'Schedule V(l)'!Z64","v":0}]
["Sch V(L)","Segregated Acc",null,"v) Premiums Ceded - Cell 23",{"$f":"'Schedule V(l)'!Z73","v":0}]
["Sch V(L)","Segregated Acc",null,"Cell name - Cell 24",{"$f":"'Schedule V(l)'!AA7","v":0}]
["Sch V(L)","Segregated Acc",null,"Quoted: Bonds and Debentures - Cell 24",{"$f":"'Schedule V(l)'!AA16","v":0}]
["Sch V(L)","Segregated Acc",null,"Prior Year loss reserve development - Cell 24",{"$f":"'Schedule V(l)'!AA25","v":0}]
["Sch V(L)","Segregated Acc",null,"currency used - Cell 24",{"$f":"'Schedule V(l)'!AA28","v":"Select Currency"}]
["Sch V(L)","Segregated Acc",null,"Additional Capital Support Details - Cell 24",{"$f":"'Schedule V(l)'!AA35","v":0}]
["Sch V(L)","Segregated Acc",null,"Benefical Owners - Cell 24",{"$f":"'Schedule V(l)'!AA38","v":"Confirm"}]
["Sch V(L)","Segregated Acc",null,"Limited recourse  - Cell 24",{"$f":"'Schedule V(l)'!AA45","v":"Select Yes/No"}]
["Sch V(L)","Segregated Acc",null,"ii) Premiums Ceded - Cell 24",{"$f":"'Schedule V(l)'!AA61","v":0}]
["Sch V(L)","Segregated Acc",null,"iii) Statutory Line of Business - Cell 24",{"$f":"'Schedule V(l)'!AA63","v":"Select Line of Business"}]
["Sch V(L)","Segregated Acc",null,"iv) NPW - Cell 24",{"$f":"'Schedule V(l)'!AA70","v":0}]
["Sch V(L)","Segregated Acc",null,"Total Liabilities - Cell 25",{"$f":"'Schedule V(l)'!AB10","v":0}]
["Sch V(L)","Segregated Acc",null,"Net Income - Cell 25",{"$f":"'Schedule V(l)'!AB14","v":0}]
["Sch V(L)","Segregated Acc",null,"Unquoted: Other - Cell 25",{"$f":"'Schedule V(l)'!AB21","v":0}]
["Sch V(L)","Segregated Acc",null,"Net Loss & Loss Expense Provisions - Cell 25",{"$f":"'Schedule V(l)'!AB24","v":0}]
["Sch V(L)","Segregated Acc",null,"Additional Capital Support - Cell 25",{"$f":"'Schedule V(l)'!AB34","v":"Confirm"}]
["Sch V(L)","Segregated Acc",null,"Jurisdiction - Cell 25",{"$f":"'Schedule V(l)'!AB41","v":"Confirm Jurisdiction"}]
["Sch V(L)","Segregated Acc",null,"Indemnity Provisions - Cell 25",{"$f":"'Schedule V(l)'!AB44","v":"Select Yes/No"}]
["Sch V(L)","Segregated Acc",null,"i) GPW - Cell 25",{"$f":"'Schedule V(l)'!AB56","v":0}]
["Sch V(L)","Segregated Acc",null,"iii) Premiums Ceded - Cell 25",{"$f":"'Schedule V(l)'!AB65","v":0}]
["Sch V(L)","Segregated Acc",null,"iii) NPW - Cell 25",{"$f":"'Schedule V(l)'!AB66","v":0}]
["Sch V(L)","Segregated Acc",null,"Total Assets - Gen Acc.",{"$f":"'Schedule V(l)'!BE9","v":0}]
["Sch V(L)","Segregated Acc",null,"Quoted: Other  - Gen Acc.",{"$f":"'Schedule V(l)'!BE18","v":0}]
["Sch V(L)","Segregated Acc",null,"Unquoted: Other - Gen Acc.",{"$f":"'Schedule V(l)'!BE21","v":0}]
["Sch V(L)","Segregated Acc",null,"i) NPW - Gen Acc.",{"$f":"'Schedule V(l)'!BE58","v":0}]
["Sch V(L)","Segregated Acc",null,"ii) Premiums Ceded - Gen Acc.",{"$f":"'Schedule V(l)'!BE61","v":0}]
["Sch V(L)","Segregated Acc",null,"iv) GPW - Gen Acc.",{"$f":"'Schedule V(l)'!BE68","v":0}]
["Sch V(L)","Segregated Acc",null,"Comment on Statutory Capital & Surplus Difference",{"$f":"'Schedule V(l)'!BM13","v":0}]
[]
["Sch V(m)","Alternative Capital",null,"Name of Cedant - 7",{"$f":"'Schedule V(m)'!B17","v":0}]
["Sch V(m)","Alternative Capital",null,"Name of Cedant - 11",{"$f":"'Schedule V(m)'!B21","v":0}]
["Sch V(m)","Alternative Capital",null,"Name of Cedant - 18",{"$f":"'Schedule V(m)'!B28","v":0}]
["Sch V(m)","Alternative Capital",null,"Contract Reference - 2",{"$f":"'Schedule V(m)'!C12","v":0}]
["Sch V(m)","Alternative Capital",null,"Contract Reference - 9",{"$f":"'Schedule V(m)'!C19","v":0}]
["Sch V(m)","Alternative Capital",null,"Contract Reference - 12",{"$f":"'Schedule V(m)'!C22","v":0}]
["Sch V(m)","Alternative Capital",null,"Contract Reference - 21",{"$f":"'Schedule V(m)'!C31","v":0}]
["Sch V(m)","Alternative Capital",null,"Contract Reference - 23",{"$f":"'Schedule V(m)'!C33","v":0}]
["Sch V(m)","Alternative Capital",null,"Type of Coverage - 7",{"$f":"'Schedule V(m)'!D17","v":"Select from Drop Down"}]
["Sch V(m)","Alternative Capital",null,"Type of Coverage - 10",{"$f":"'Schedule V(m)'!D20","v":"Select from Drop Down"}]
["Sch V(m)","Alternative Capital",null,"Type of Coverage - 17",{"$f":"'Schedule V(m)'!D27","v":"Select from Drop Down"}]
["Sch V(m)","Alternative Capital",null,"Statutory Line of Business - 1",{"$f":"'Schedule V(m)'!E11","v":"Select from Drop Down"}]
["Sch V(m)","Alternative Capital",null,"Statutory Line of Business - 8",{"$f":"'Schedule V(m)'!E18","v":"Select from Drop Down"}]
["Sch V(m)","Alternative Capital",null,"Statutory Line of Business - 11",{"$f":"'Schedule V(m)'!E21","v":"Select from Drop Down"}]
["Sch V(m)","Alternative Capital",null,"Statutory Line of Business - 17",{"$f":"'Schedule V(m)'!E27","v":"Select from Drop Down"}]
["Sch V(m)","Alternative Capital",null,"Statutory Line of Business - 22",{"$f":"'Schedule V(m)'!E32","v":"Select from Drop Down"}]
["Sch V(m)","Alternative Capital",null,"Location of Coverage - 6",{"$f":"'Schedule V(m)'!F16","v":"Select from Drop Down"}]
["Sch V(m)","Alternative Capital",null,"Location of Coverage - 9",{"$f":"'Schedule V(m)'!F19","v":"Select from Drop Down"}]
["Sch V(m)","Alternative Capital",null,"Location of Coverage - 16",{"$f":"'Schedule V(m)'!F26","v":"Select from Drop Down"}]
["Sch V(m)","Alternative Capital",null,"Location of Coverage - 25",{"$f":"'Schedule V(m)'!F35","v":"Select from Drop Down"}]
["Sch V(m)","Alternative Capital",null,"Agg. Max. Limit at Inception - 7",{"$f":"'Schedule V(m)'!G17","v":0}]
["Sch V(m)","Alternative Capital",null,"Agg. Max. Limit at Inception - 8",{"$f":"'Schedule V(m)'!G18","v":0}]
["Sch V(m)","Alternative Capital",null,"Agg. Max. Limit at Inception - 20",{"$f":"'Schedule V(m)'!G30","v":0}]
["Sch V(m)","Alternative Capital",null,"Agg. Max. Limit at Inception - 21",{"$f":"'Schedule V(m)'!G31","v":0}]
["Sch V(m)","Alternative Capital",null,"Net Agg. Max. Limit at End of Year - 4",{"$f":"'Schedule V(m)'!H14","v":0}]
["Sch V(m)","Alternative Capital",null,"Net Agg. Max. Limit at End of Year - 11",{"$f":"'Schedule V(m)'!H21","v":0}]
["Sch V(m)","Alternative Capital",null,"Net Agg. Max. Limit at End of Year - 14",{"$f":"'Schedule V(m)'!H24","v":0}]
["Sch V(m)","Alternative Capital",null,"Net Agg. Max. Limit at End of Year - 19",{"$f":"'Schedule V(m)'!H29","v":0}]
["Sch V(m)","Alternative Capital",null,"Inception Date of Cover Period - 5",{"$f":"'Schedule V(m)'!I15","v":""}]
["Sch V(m)","Alternative Capital",null,"Inception Date of Cover Period - 8",{"$f":"'Schedule V(m)'!I18","v":""}]
["Sch V(m)","Alternative Capital",null,"Inception Date of Cover Period - 17",{"$f":"'Schedule V(m)'!I27","v":""}]
["Sch V(m)","Alternative Capital",null,"Inception Date of Cover Period - 18",{"$f":"'Schedule V(m)'!I28","v":""}]
["Sch V(m)","Alternative Capital",null,"Effective Date of Contract - 2",{"$f":"'Schedule V(m)'!J12","v":""}]
["Sch V(m)","Alternative Capital",null,"Effective Date of Contract - 9",{"$f":"'Schedule V(m)'!J19","v":""}]
["Sch V(m)","Alternative Capital",null,"Effective Date of Contract - 16",{"$f":"'Schedule V(m)'!J26","v":""}]
["Sch V(m)","Alternative Capital",null,"Effective Date of Contract - 22",{"$f":"'Schedule V(m)'!J32","v":""}]
["Sch V(m)","Alternative Capital",null,"Expiry Date of Cover - 4",{"$f":"'Schedule V(m)'!K14","v":""}]
["Sch V(m)","Alternative Capital",null,"Expiry Date of Cover - 7",{"$f":"'Schedule V(m)'!K17","v":""}]
["Sch V(m)","Alternative Capital",null,"Expiry Date of Cover - 16",{"$f":"'Schedule V(m)'!K26","v":""}]
["Sch V(m)","Alternative Capital",null,"Expiry Date of Cover - 17",{"$f":"'Schedule V(m)'!K27","v":""}]
["Sch V(m)","Alternative Capital",null,"Cover Period GPW - 1",{"$f":"'Schedule V(m)'!L11","v":0}]
["Sch V(m)","Alternative Capital",null,"Cover Period GPW - 7",{"$f":"'Schedule V(m)'!L17","v":0}]
["Sch V(m)","Alternative Capital",null,"Cover Period GPW - 12",{"$f":"'Schedule V(m)'!L22","v":0}]
["Sch V(m)","Alternative Capital",null,"Cover Period GPW - 21",{"$f":"'Schedule V(m)'!L31","v":0}]
["Sch V(m)","Alternative Capital",null,"Cover Period NPW - 2",{"$f":"'Schedule V(m)'!M12","v":0}]
["Sch V(m)","Alternative Capital",null,"Cover Period NPW - 5",{"$f":"'Schedule V(m)'!M15","v":0}]
["Sch V(m)","Alternative Capital",null,"Cover Period NPW - 12",{"$f":"'Schedule V(m)'!M22","v":0}]
["Sch V(m)","Alternative Capital",null,"Cover Period NPW - 15",{"$f":"'Schedule V(m)'!M25","v":0}]
["Sch V(m)","Alternative Capital",null,"Cover Period NPW - 25",{"$f":"'Schedule V(m)'!M35","v":0}]
["Sch V(m)","Alternative Capital",null,"Attachment Point - 6",{"$f":"'Schedule V(m)'!N16","v":0}]
["Sch V(m)","Alternative Capital",null,"Attachment Point - 9",{"$f":"'Schedule V(m)'!N19","v":0}]
["Sch V(m)","Alternative Capital",null,"Attachment Point - 18",{"$f":"'Schedule V(m)'!N28","v":0}]
["Sch V(m)","Alternative Capital",null,"Attachment Point - 25",{"$f":"'Schedule V(m)'!N35","v":0}]
["Sch V(m)","Alternative Capital",null,"Aggregate Losses Beg. Of Year - 2",{"$f":"'Schedule V(m)'!O12","v":0}]
["Sch V(m)","Alternative Capital",null,"Aggregate Losses Beg. Of Year - 9",{"$f":"'Schedule V(m)'!O19","v":0}]
["Sch V(m)","Alternative Capital",null,"Aggregate Losses Beg. Of Year - 14",{"$f":"'Schedule V(m)'!O24","v":0}]
["Sch V(m)","Alternative Capital",null,"Aggregate Losses Beg. Of Year - 22",{"$f":"'Schedule V(m)'!O32","v":0}]
["Sch V(m)","Alternative Capital",null,"Aggregate Losses Incurred - 3",{"$f":"'Schedule V(m)'!P13","v":0}]
["Sch V(m)","Alternative Capital",null,"Aggregate Losses Incurred - 6",{"$f":"'Schedule V(m)'!P16","v":0}]
["Sch V(m)","Alternative Capital",null,"Aggregate Losses Incurred - 13",{"$f":"'Schedule V(m)'!P23","v":0}]
["Sch V(m)","Alternative Capital",null,"Aggregate Losses Incurred - 22",{"$f":"'Schedule V(m)'!P32","v":0}]
["Sch V(m)","Alternative Capital",null,"Aggregate Losses Incurred - 25",{"$f":"'Schedule V(m)'!P35","v":0}]
["Sch V(m)","Alternative Capital",null,"Aggregate Losses End Of Year - 3",{"$f":"'Schedule V(m)'!Q13","v":0}]
["Sch V(m)","Alternative Capital",null,"Aggregate Losses End Of Year - 10",{"$f":"'Schedule V(m)'!Q20","v":0}]
["Sch V(m)","Alternative Capital",null,"Aggregate Losses End Of Year - 19",{"$f":"'Schedule V(m)'!Q29","v":0}]
["Sch V(m)","Alternative Capital",null,"Aggregate Losses End Of Year - Total",{"$f":"'Schedule V(m)'!Q1512","v":0}]
["Sch V(m)","Alternative Capital",null,"Collateral Reserve Buffer - 3",{"$f":"'Schedule V(m)'!R13","v":0}]
["Sch V(m)","Alternative Capital",null,"Collateral Reserve Buffer - 10",{"$f":"'Schedule V(m)'!R20","v":0}]
["Sch V(m)","Alternative Capital",null,"Collateral Reserve Buffer - 19",{"$f":"'Schedule V(m)'!R29","v":0}]
["Sch V(m)","Alternative Capital",null,"Collateral Reserve Buffer - 21",{"$f":"'Schedule V(m)'!R31","v":0}]
["Sch V(m)","Alternative Capital",null,"Currency of Exposure - 4",{"$f":"'Schedule V(m)'!S14","v":"Select from Drop Down"}]
["Sch V(m)","Alternative Capital",null,"Currency of Exposure - 7",{"$f":"'Schedule V(m)'!S17","v":"Select from Drop Down"}]
["Sch V(m)","Alternative Capital",null,"Currency of Exposure - 16",{"$f":"'Schedule V(m)'!S26","v":"Select from Drop Down"}]
["Sch V(m)","Alternative Capital",null,"Currency of Exposure - 23",{"$f":"'Schedule V(m)'!S33","v":"Select from Drop Down"}]
["Sch V(m)","Alternative Capital",null,"Nature of Collateral - 1",{"$f":"'Schedule V(m)'!T11","v":"Select from Drop Down"}]
["Sch V(m)","Alternative Capital",null,"Nature of Collateral - 8",{"$f":"'Schedule V(m)'!T18","v":"Select from Drop Down"}]
["Sch V(m)","Alternative Capital",null,"Nature of Collateral - 18",{"$f":"'Schedule V(m)'!T28","v":"Select from Drop Down"}]
["Sch V(m)","Alternative Capital",null,"Nature of Collateral - 21",{"$f":"'Schedule V(m)'!T31","v":"Select from Drop Down"}]
["Sch V(m)","Alternative Capital",null,"Collateral Rating - 3",{"$f":"'Schedule V(m)'!U13","v":"Select from Drop Down"}]
["Sch V(m)","Alternative Capital",null,"Collateral Rating - 6",{"$f":"'Schedule V(m)'!U16","v":"Select from Drop Down"}]
["Sch V(m)","Alternative Capital",null,"Collateral Rating - 13",{"$f":"'Schedule V(m)'!U23","v":"Select from Drop Down"}]
["Sch V(m)","Alternative Capital",null,"Collateral Rating - 22",{"$f":"'Schedule V(m)'!U32","v":"Select from Drop Down"}]
["Sch V(m)","Alternative Capital",null,"Collateral Rating - 25",{"$f":"'Schedule V(m)'!U35","v":"Select from Drop Down"}]
["Sch V(m)","Alternative Capital",null,"Amount of Collateral - 9",{"$f":"'Schedule V(m)'!V19","v":0}]
["Sch V(m)","Alternative Capital",null,"Amount of Collateral - 17",{"$f":"'Schedule V(m)'!V27","v":0}]
["Sch V(m)","Alternative Capital",null,"Amount of Collateral - 20",{"$f":"'Schedule V(m)'!V30","v":0}]
["Sch V(m)","Alternative Capital",null,"Comments - 1",{"$f":"'Schedule V(m)'!W11","v":0}]
["Sch V(m)","Alternative Capital",null,"Comments - 4",{"$f":"'Schedule V(m)'!W14","v":0}]
["Sch V(m)","Alternative Capital",null,"Comments - 11",{"$f":"'Schedule V(m)'!W21","v":0}]
["Sch V(m)","Alternative Capital",null,"Comments - 20",{"$f":"'Schedule V(m)'!W30","v":0}]
[]
["Sch VI","Fixed Income Sec",null,"2 Non-US Government",{"$f":"'Schedule VI'!E12","v":0},null,null,null,null,null,null,null,{"$f":"'Schedule VI (EBS)'!E12","v":0}]
["Sch VI","Fixed Income Sec",null,"6c MBS - Commercial",{"$f":"'Schedule VI'!E23","v":0},null,null,null,null,null,null,null,{"$f":"'Schedule VI (EBS)'!E23","v":0}]
["Sch VI","Fixed Income Sec",null,"7 Mutual Funds",{"$f":"'Schedule VI'!E24","v":0},null,null,null,null,null,null,null,{"$f":"'Schedule VI (EBS)'!E24","v":0}]
["Sch VI","Fixed Income Sec",null,"Face Value - 3 States, Municipalities",{"$f":"'Schedule VI'!G13","v":0},null,null,null,null,null,null,null,{"$f":"'Schedule VI (EBS)'!G13","v":0}]
["Sch VI","Fixed Income Sec",null,"Face Value - 4c Corp Sec. - FDIC Guaranteed",{"$f":"'Schedule VI'!G17","v":0},null,null,null,null,null,null,null,{"$f":"'Schedule VI (EBS)'!G17","v":0}]
["Sch VI","Fixed Income Sec",null,"Face Value - 9 Cat Bonds & ILS",{"$f":"'Schedule VI'!G26","v":0},null,null,null,null,null,null,null,{"$f":"'Schedule VI (EBS)'!G26","v":0}]
["Sch VI","Fixed Income Sec",null,"Fair Value - 4b Corp Sec. - Non-US Gov. backed",{"$f":"'Schedule VI'!I16","v":0},null,null,null,null,null,null,null,{"$f":"'Schedule VI (EBS)'!I16","v":0}]
["Sch VI","Fixed Income Sec",null,"Fair Value - 5 ABS",{"$f":"'Schedule VI'!I19","v":0},null,null,null,null,null,null,null,{"$f":"'Schedule VI (EBS)'!I19","v":0}]
["Sch VI","Fixed Income Sec",null,"Fair Value - 10 Others",{"$f":"'Schedule VI'!I27","v":0},null,null,null,null,null,null,null,{"$f":"'Schedule VI (EBS)'!I27","v":0}]
["Sch VI","Fixed Income Sec",null,"YTM - 4c Corp Sec. - FDIC Guaranteed",{"$f":"'Schedule VI'!K17","v":0},null,null,null,null,null,null,null,{"$f":"'Schedule VI (EBS)'!K17","v":0}]
["Sch VI","Fixed Income Sec",null,"YTM - 4d Corp Sec. - Other ",{"$f":"'Schedule VI'!K18","v":0},null,null,null,null,null,null,null,{"$f":"'Schedule VI (EBS)'!K18","v":0}]
["Sch VI","Fixed Income Sec",null,"Rate - 1a US Gov. Federal",{"$f":"'Schedule VI'!M9","v":0},null,null,null,null,null,null,null,{"$f":"'Schedule VI (EBS)'!M9","v":0}]
["Sch VI","Fixed Income Sec",null,"Rate - 4b Corp Sec. - Non-US Gov. backed",{"$f":"'Schedule VI'!M16","v":0},null,null,null,null,null,null,null,{"$f":"'Schedule VI (EBS)'!M16","v":0}]
["Sch VI","Fixed Income Sec",null,"Rate - 6b MBS - Resid. Non-subprime",{"$f":"'Schedule VI'!M22","v":0},null,null,null,null,null,null,null,{"$f":"'Schedule VI (EBS)'!M22","v":0}]
["Sch VI","Fixed Income Sec",null,"Duration - 2 Non-US Government",{"$f":"'Schedule VI'!O12","v":0},null,null,null,null,null,null,null,{"$f":"'Schedule VI (EBS)'!O12","v":0}]
["Sch VI","Fixed Income Sec",null,"Duration - 4b Corp Sec. - Non-US Gov. backed",{"$f":"'Schedule VI'!O16","v":0},null,null,null,null,null,null,null,{"$f":"'Schedule VI (EBS)'!O16","v":0}]
["Sch VI","Fixed Income Sec",null,"Duration - 7 Mutual Funds",{"$f":"'Schedule VI'!O24","v":0},null,null,null,null,null,null,null,{"$f":"'Schedule VI (EBS)'!O24","v":0}]
["Sch VI","Fixed Income Sec",null,"Convexity - 4a Corp Sec. - US Gov. backed",{"$f":"'Schedule VI'!Q15","v":0},null,null,null,null,null,null,null,{"$f":"'Schedule VI (EBS)'!Q15","v":0}]
["Sch VI","Fixed Income Sec",null,"Convexity - 4b Corp Sec. - Non-US Gov. backed",{"$f":"'Schedule VI'!Q16","v":0},null,null,null,null,null,null,null,{"$f":"'Schedule VI (EBS)'!Q16","v":0}]
["Sch VI","Fixed Income Sec",null,"Convexity - 7 Mutual Funds",{"$f":"'Schedule VI'!Q24","v":0},null,null,null,null,null,null,null,{"$f":"'Schedule VI (EBS)'!Q24","v":0}]
[]
["Sch IX(a)","CISSA Capital Summary",null,"Group, Concentration, & Strategic Risk",null,null,null,null,null,null,null,null,{"$f":"'Schedule IX(a)'!E16","v":0}]
["Sch IX(a)","CISSA Capital Summary",null,"1. Reason for CISSA - Business Expansion",{"$f":"IF('Schedule IX(a)'!B42=0,\"No\",'Schedule IX(a)'!B42)","v":"Select Yes/No"}]
["Sch IX(a)","CISSA Capital Summary",null,"2. Agg. Risk Categories - Linear Correlation",{"$f":"IF('Schedule IX(a)'!B51=0,\"No\",'Schedule IX(a)'!B51)","v":"Select Yes/No"}]
["Sch IX(a)","CISSA Capital Summary",null,"2. Agg. Risk Categories - Clayton Copulas",{"$f":"IF('Schedule IX(a)'!B54=0,\"No\",'Schedule IX(a)'!B54)","v":"Select Yes/No"}]
["Sch IX(a)","CISSA Capital Summary",null,"3. Contingency Plan - Parent Capital Injection",{"$f":"IF('Schedule IX(a)'!B65=0,\"No\",'Schedule IX(a)'!B65)","v":"Select Yes/No"}]
["Sch IX(a)","CISSA Capital Summary",null,"5. Insurer Issues Downstream Debt ",{"$f":"IF('Schedule IX(a)'!G75=0,\"No\",'Schedule IX(a)'!G75)","v":"Select Yes/No"}]
["Sch IX(a)","CISSA Capital Summary",null,"7. Insurer has Assets Restrict. and Not Trans.",{"$f":"IF('Schedule IX(a)'!G83=0,\"No\",'Schedule IX(a)'!G83)","v":"Select Yes/No"}]
["Sch IX(a)","CISSA Capital Summary",null,"7. Restricted Assets in Excess of Cap. Req.",{"$f":"'Schedule IX(a)'!G89","v":0}]
["Sch IX(b)","CISSA General Questions",null,"1. CISSA Used For - Capital Adequacy",{"$f":"IF('Schedule IX(b)'!F15=0,\"No\",'Schedule IX(b)'!F15)","v":"Select Yes/No"}]
["Sch IX(b)","CISSA General Questions",null,"1. CISSA Used For - Product Profitability",{"$f":"IF('Schedule IX(b)'!F24=0,\"No\",'Schedule IX(b)'!F24)","v":"Select Yes/No"}]
["Sch IX(b)","CISSA General Questions",null,"4. BOD & Senior Officers Review CISSA",{"$f":"'Schedule IX(b)'!F63","v":"Select"}]
[]
["Sch IX(c)","CISSA Assessment of Material Risks",null,"12d. Validation - Regular Review",{"$f":"IF('Schedule IX(c)'!E71=0,\"No\",'Schedule IX(c)'!E71)","v":"Select Yes/No"}]
["Sch IX(c)","CISSA Assessment of Material Risks",null,"12j. Internal Controls - Strict Protocols",{"$f":"IF('Schedule IX(c)'!E80=0,\"No\",'Schedule IX(c)'!E80)","v":"Select Yes/No"}]
["Sch IX(c)","CISSA Assessment of Material Risks",null,"12i. Doc. Comment - BOD Review Frequency",{"$f":"'Schedule IX(c)'!F77","v":0}]
["Sch IX(c)","CISSA Assessment of Material Risks",null,"12l. Risk Measure - Confidence Interval",{"$f":"'Schedule IX(c)'!E82","v":0}]
["Sch X(a)","CAT Return - EP Curve Total",null,"Gross Loss - Aggregate - 50 Yrs",null,null,null,null,{"$f":"'Schedule X(a)'!F9","v":0}]
["Sch X(a)","CAT Return - EP Curve Total",null,"Net Loss - Occurrence - 1,000 Yrs",null,null,null,null,{"$f":"'Schedule X(a)'!G13","v":0}]
["Sch X(a)","CAT Return - EP Curve Total",null,"Gross - Standard Deviation",null,null,null,null,{"$f":"'Schedule X(a)'!E18","v":0}]
["Sch X(a)","CAT Return - EP Curve Total",null,"Gross - All Other Limited - Not Modeled",null,null,null,null,{"$f":"'Schedule X(a)'!E26","v":0}]
["Sch X(a)","CAT Return - EP Curve Total",null,"Net - All Other Premium Modeled",null,null,null,null,{"$f":"'Schedule X(a)'!J21","v":0}]
["Sch X(a)","CAT Return - EP Curve Total",null,"Net - Property Cat. Limited - Modeled",null,null,null,null,{"$f":"'Schedule X(a)'!J23","v":0}]
["Sch X(a)","CAT Return - EP Curve Total",null,"2. Additional Living Expense",null,null,null,null,{"$f":"IF('Schedule X(a)'!E34=0,\"No\",'Schedule X(a)'!E34)","v":"Select Yes/No"}]
["Sch X(a)","CAT Return - EP Curve Total",null,"2. Offshore Energy",null,null,null,null,{"$f":"IF('Schedule X(a)'!E41=0,\"No\",'Schedule X(a)'!E41)","v":"Select"}]
["Sch X(a)","CAT Return - EP Curve Total",null,"2. Flood",null,null,null,null,{"$f":"IF('Schedule X(a)'!E44=0,\"No\",'Schedule X(a)'!E44)","v":"Select"}]
["Sch X(a)","CAT Return - EP Curve Total",null,"4. Involuntary Pools and/or Assessments",null,null,null,null,{"$f":"IF('Schedule X(a)'!E57=0,\"No\",'Schedule X(a)'!E57)","v":"Select"}]
["Sch X(a)","CAT Return - EP Curve Total",null,"5. Secondary Uncertainty",null,null,null,null,{"$f":"IF('Schedule X(a)'!E64=0,\"No\",'Schedule X(a)'!E64)","v":"Select"}]
["Sch X(a)","CAT Return - EP Curve Total",null,"6. Adj. for Model Deficiencies - Severity",null,null,null,null,{"$f":"IF('Schedule X(a)'!E72=0,\"No\",'Schedule X(a)'!E72)","v":"Select"}]
["Sch X(b)","CAT Return - EP Curve Insurance",null,"Gross Loss - Occurrence - 50 Yrs",null,null,null,null,{"$f":"'Schedule X(b)'!E11","v":0}]
["Sch X(b)","CAT Return - EP Curve Insurance",null,"Gross Loss - Occurrence - 100 Yrs",null,null,null,null,{"$f":"'Schedule X(b)'!E12","v":0}]
["Sch X(b)","CAT Return - EP Curve Insurance",null,"Net Loss - Occurrence - 50 Yrs",null,null,null,null,{"$f":"'Schedule X(b)'!G11","v":0}]
["Sch X(b)","CAT Return - EP Curve Insurance",null,"Net Loss - Aggregate - 250 Yrs",null,null,null,null,{"$f":"'Schedule X(b)'!H13","v":0}]
["Sch X(b)","CAT Return - EP Curve Insurance",null,"Gross - Average Annual Loss",null,null,null,null,{"$f":"'Schedule X(b)'!E18","v":0}]
["Sch X(b)","CAT Return - EP Curve Insurance",null,"Gross - with Not Determinable TIV",null,null,null,null,{"$f":"'Schedule X(b)'!E30","v":0}]
["Sch X(b)","CAT Return - EP Curve Insurance",null,"Net - All Other Limited - Modeled",null,null,null,null,{"$f":"'Schedule X(b)'!J27","v":0}]
["Sch X(b)","CAT Return - EP Curve Insurance",null,"Net - with Not Determinable TIV",null,null,null,null,{"$f":"'Schedule X(b)'!J30","v":0}]
["Sch X(c)","CAT Return - EP Curve Region Perils",null,"Atl. Hurr. - Gross Occurrence - 500 Yrs",null,null,null,null,{"$f":"'Schedule X(c)'!D19","v":0}]
["Sch X(c)","CAT Return - EP Curve Region Perils",null,"Atl. Hurr. - Gross Aggregate - 100 Yrs",null,null,null,null,{"$f":"'Schedule X(c)'!E17","v":0}]
["Sch X(c)","CAT Return - EP Curve Region Perils",null,"Atl. Hurr. - Net Aggregate - 50 Yrs",null,null,null,null,{"$f":"'Schedule X(c)'!G16","v":0}]
["Sch X(c)","CAT Return - EP Curve Region Perils",null,"Atl. Hurr. - Gross Prop. Cat. Limits",null,null,null,null,{"$f":"'Schedule X(c)'!E26","v":0}]
["Sch X(c)","CAT Return - EP Curve Region Perils",null,"Atl. Hurr. - Net Prop. Cat. Limits",null,null,null,null,{"$f":"'Schedule X(c)'!F26","v":0}]
["Sch X(c)","CAT Return - EP Curve Region Perils",null,"NA. EQ. - Gross Aggregate - 50 Yrs",null,null,null,null,{"$f":"'Schedule X(c)'!E38","v":0}]
["Sch X(c)","CAT Return - EP Curve Region Perils",null,"NA. EQ. - Net Occurrence - 250 Yrs",null,null,null,null,{"$f":"'Schedule X(c)'!F40","v":0}]
["Sch X(c)","CAT Return - EP Curve Region Perils",null,"NA. EQ. - Net Aggregate - 50 Yrs",null,null,null,null,{"$f":"'Schedule X(c)'!G38","v":0}]
["Sch X(c)","CAT Return - EP Curve Region Perils",null,"NA. EQ. - Gross Prop. Cat. Limits",null,null,null,null,{"$f":"'Schedule X(c)'!E48","v":0}]
["Sch X(c)","CAT Return - EP Curve Region Perils",null,"NA. EQ. - Net All Other Premium",null,null,null,null,{"$f":"'Schedule X(c)'!F47","v":0}]
["Sch X(c)","CAT Return - EP Curve Region Perils",null,"Eur. Wind - Gross Occurrence - 1,000 Yrs",null,null,null,null,{"$f":"'Schedule X(c)'!D64","v":0}]
["Sch X(c)","CAT Return - EP Curve Region Perils",null,"Eur. Wind - Gross Aggregate - 250 Yrs",null,null,null,null,{"$f":"'Schedule X(c)'!E62","v":0}]
["Sch X(c)","CAT Return - EP Curve Region Perils",null,"Eur. Wind - Net Aggregate - 50 Yrs",null,null,null,null,{"$f":"'Schedule X(c)'!G60","v":0}]
["Sch X(c)","CAT Return - EP Curve Region Perils",null,"Eur. Wind - Net Prop. Cat. Premium",null,null,null,null,{"$f":"'Schedule X(c)'!F68","v":0}]
["Sch X(c)","CAT Return - EP Curve Region Perils",null,"Japan EQ. - Gross Occurrence - 100 Yrs",null,null,null,null,{"$f":"'Schedule X(c)'!D83","v":0}]
["Sch X(c)","CAT Return - EP Curve Region Perils",null,"Japan EQ. - Gross Occurrence - 1,000 Yrs",null,null,null,null,{"$f":"'Schedule X(c)'!D86","v":0}]
["Sch X(c)","CAT Return - EP Curve Region Perils",null,"Japan EQ. - Net Occurrence - 100 Yrs",null,null,null,null,{"$f":"'Schedule X(c)'!F83","v":0}]
["Sch X(c)","CAT Return - EP Curve Region Perils",null,"Japan EQ. - Net Occurrence - 1,000 Yrs",null,null,null,null,{"$f":"'Schedule X(c)'!F86","v":0}]
["Sch X(c)","CAT Return - EP Curve Region Perils",null,"Japan EQ. - Net Prop. Cat. Premium",null,null,null,null,{"$f":"'Schedule X(c)'!F90","v":0}]
["Sch X(c)","CAT Return - EP Curve Region Perils",null,"Jpn. Typ. - Gross Occurrence - 100 Yrs",null,null,null,null,{"$f":"'Schedule X(c)'!D105","v":0}]
["Sch X(c)","CAT Return - EP Curve Region Perils",null,"Jpn. Typ. - Gross Occurrence - 1,000 Yrs",null,null,null,null,{"$f":"'Schedule X(c)'!D108","v":0}]
["Sch X(c)","CAT Return - EP Curve Region Perils",null,"Jpn. Typ. - Net Occurrence - 100 Yrs",null,null,null,null,{"$f":"'Schedule X(c)'!F105","v":0}]
["Sch X(c)","CAT Return - EP Curve Region Perils",null,"Jpn. Typ. - Gross Prop. Cat. Premium",null,null,null,null,{"$f":"'Schedule X(c)'!E112","v":0}]
["Sch X(c)","CAT Return - EP Curve Region Perils",null,"Jpn. Typ. - Gross All Other Limits",null,null,null,null,{"$f":"'Schedule X(c)'!E115","v":0}]
["Sch X(d)","CAT Return - Region Perils Exposure to Zones and Lines of Business",null,"Atlantic Hurricane - Zone 4",null,null,null,null,{"$f":"'Schedule X(d)'!C12","v":"Select Yes/No"}]
["Sch X(d)","CAT Return - Region Perils Exposure to Zones and Lines of Business",null,"Atlantic Hurricane - Zone 6",null,null,null,null,{"$f":"'Schedule X(d)'!C14","v":"Select Yes/No"}]
["Sch X(d)","CAT Return - Region Perils Exposure to Zones and Lines of Business",null,"North American Earthquake - Zone 2",null,null,null,null,{"$f":"'Schedule X(d)'!D10","v":"Select Yes/No"}]
["Sch X(d)","CAT Return - Region Perils Exposure to Zones and Lines of Business",null,"North American Earthquake - Zone 9",null,null,null,null,{"$f":"'Schedule X(d)'!D17","v":"Select Yes/No"}]
["Sch X(d)","CAT Return - Region Perils Exposure to Zones and Lines of Business",null,"North American Earthquake - Zone 12",null,null,null,null,{"$f":"'Schedule X(d)'!D20","v":"Select Yes/No"}]
["Sch X(d)","CAT Return - Region Perils Exposure to Zones and Lines of Business",null,"European Windstorm - Zone 6",null,null,null,null,{"$f":"'Schedule X(d)'!E14","v":"Select Yes/No"}]
["Sch X(d)","CAT Return - Region Perils Exposure to Zones and Lines of Business",null,"Japan Earthquake - Zone 2",null,null,null,null,{"$f":"'Schedule X(d)'!F10","v":"Select Yes/No"}]
["Sch X(d)","CAT Return - Region Perils Exposure to Zones and Lines of Business",null,"Japan Earthquake - Zone 9",null,null,null,null,{"$f":"'Schedule X(d)'!F17","v":"Select Yes/No"}]
["Sch X(d)","CAT Return - Region Perils Exposure to Zones and Lines of Business",null,"Japan Earthquake - Zone 13",null,null,null,null,{"$f":"'Schedule X(d)'!F21","v":"Select Yes/No"}]
["Sch X(d)","CAT Return - Region Perils Exposure to Zones and Lines of Business",null,"Japan Typhoon - Zone 3",null,null,null,null,{"$f":"'Schedule X(d)'!G11","v":"Select Yes/No"}]
["Sch X(d)","CAT Return - Region Perils Exposure to Zones and Lines of Business",null,"Japan Typhoon - Zone 10",null,null,null,null,{"$f":"'Schedule X(d)'!G18","v":"Select Yes/No"}]
["Sch X(d)","CAT Return - Region Perils Exposure to Zones and Lines of Business",null,"All Other - Zone 6",null,null,null,null,{"$f":"'Schedule X(d)'!H14","v":"Select Yes/No"}]
["Sch X(d)","CAT Return - Region Perils Exposure to Zones and Lines of Business",null,"All Other - Zone 9",null,null,null,null,{"$f":"'Schedule X(d)'!H17","v":"Select Yes/No"}]
["Sch X(d)","CAT Return - Region Perils Exposure to Zones and Lines of Business",null,"Atlantic Hurricane - Line 3",null,null,null,null,{"$f":"'Schedule X(d)'!C27","v":"Select Yes/No"}]
["Sch X(d)","CAT Return - Region Perils Exposure to Zones and Lines of Business",null,"Atlantic Hurricane - Line 11",null,null,null,null,{"$f":"'Schedule X(d)'!C35","v":"Select Yes/No"}]
["Sch X(d)","CAT Return - Region Perils Exposure to Zones and Lines of Business",null,"Atlantic Hurricane - Line 16",null,null,null,null,{"$f":"'Schedule X(d)'!C40","v":"Select Yes/No"}]
["Sch X(d)","CAT Return - Region Perils Exposure to Zones and Lines of Business",null,"Atlantic Hurricane - Line 23",null,null,null,null,{"$f":"'Schedule X(d)'!C47","v":"Select Yes/No"}]
["Sch X(d)","CAT Return - Region Perils Exposure to Zones and Lines of Business",null,"North American Earthquake - Line 2",null,null,null,null,{"$f":"'Schedule X(d)'!D26","v":"Select Yes/No"}]
["Sch X(d)","CAT Return - Region Perils Exposure to Zones and Lines of Business",null,"North American Earthquake - Line 9",null,null,null,null,{"$f":"'Schedule X(d)'!D33","v":"Select Yes/No"}]
["Sch X(d)","CAT Return - Region Perils Exposure to Zones and Lines of Business",null,"North American Earthquake - Line 18",null,null,null,null,{"$f":"'Schedule X(d)'!D42","v":"Select Yes/No"}]
["Sch X(d)","CAT Return - Region Perils Exposure to Zones and Lines of Business",null,"North American Earthquake - Line 21",null,null,null,null,{"$f":"'Schedule X(d)'!D45","v":"Select Yes/No"}]
["Sch X(d)","CAT Return - Region Perils Exposure to Zones and Lines of Business",null,"European Windstorm - Line 4",null,null,null,null,{"$f":"'Schedule X(d)'!E28","v":"Select Yes/No"}]
["Sch X(d)","CAT Return - Region Perils Exposure to Zones and Lines of Business",null,"European Windstorm - Line 14",null,null,null,null,{"$f":"'Schedule X(d)'!E38","v":"Select Yes/No"}]
["Sch X(d)","CAT Return - Region Perils Exposure to Zones and Lines of Business",null,"European Windstorm - Line 17",null,null,null,null,{"$f":"'Schedule X(d)'!E41","v":"Select Yes/No"}]
["Sch X(d)","CAT Return - Region Perils Exposure to Zones and Lines of Business",null,"European Windstorm - Line 24",null,null,null,null,{"$f":"'Schedule X(d)'!E48","v":"Select Yes/No"}]
["Sch X(d)","CAT Return - Region Perils Exposure to Zones and Lines of Business",null,"Japan Earthquake - Line 3",null,null,null,null,{"$f":"'Schedule X(d)'!F27","v":"Select Yes/No"}]
["Sch X(d)","CAT Return - Region Perils Exposure to Zones and Lines of Business",null,"Japan Earthquake - Line 10",null,null,null,null,{"$f":"'Schedule X(d)'!F34","v":"Select Yes/No"}]
["Sch X(d)","CAT Return - Region Perils Exposure to Zones and Lines of Business",null,"Japan Earthquake - Line 19",null,null,null,null,{"$f":"'Schedule X(d)'!F43","v":"Select Yes/No"}]
["Sch X(d)","CAT Return - Region Perils Exposure to Zones and Lines of Business",null,"Japan Earthquake - Line 24",null,null,null,null,{"$f":"'Schedule X(d)'!F48","v":"Select Yes/No"}]
["Sch X(d)","CAT Return - Region Perils Exposure to Zones and Lines of Business",null,"Japan Typhoon - Line 6",null,null,null,null,{"$f":"'Schedule X(d)'!G30","v":"Select Yes/No"}]
["Sch X(d)","CAT Return - Region Perils Exposure to Zones and Lines of Business",null,"Japan Typhoon - Line 15",null,null,null,null,{"$f":"'Schedule X(d)'!G39","v":"Select Yes/No"}]
["Sch X(d)","CAT Return - Region Perils Exposure to Zones and Lines of Business",null,"Japan Typhoon - Line 16",null,null,null,null,{"$f":"'Schedule X(d)'!G40","v":"Select Yes/No"}]
["Sch X(d)","CAT Return - Region Perils Exposure to Zones and Lines of Business",null,"All Other - Line 1",null,null,null,null,{"$f":"'Schedule X(d)'!H25","v":"Select Yes/No"}]
["Sch X(d)","CAT Return - Region Perils Exposure to Zones and Lines of Business",null,"All Other - Line 4",null,null,null,null,{"$f":"'Schedule X(d)'!H28","v":"Select Yes/No"}]
["Sch X(d)","CAT Return - Region Perils Exposure to Zones and Lines of Business",null,"All Other - Line 11",null,null,null,null,{"$f":"'Schedule X(d)'!H35","v":"Select Yes/No"}]
["Sch X(d)","CAT Return - Region Perils Exposure to Zones and Lines of Business",null,"All Other - Line 17",null,null,null,null,{"$f":"'Schedule X(d)'!H41","v":"Select Yes/No"}]
["Sch X(d)","CAT Return - Region Perils Exposure to Zones and Lines of Business",null,"All Other - Line 24",null,null,null,null,{"$f":"'Schedule X(d)'!H48","v":"Select Yes/No"}]
["Sch X(e)","CAT Return - Accumulations Overview",null,"Q5. Accumulation Methodology",null,null,null,null,{"$f":"'Schedule X(e)'!C19","v":"Select"}]
["Sch X(f)","CAT Return - Data Analysis",null,"1. All - Modelable - US - Contract",null,null,null,null,{"$f":"'Schedule X(f)'!E10","v":0}]
["Sch X(f)","CAT Return - Data Analysis",null,"1. All - Not-modelable - US - Contract",null,null,null,null,{"$f":"'Schedule X(f)'!E11","v":0}]
["Sch X(f)","CAT Return - Data Analysis",null,"1. All - Not-modelable - Other - Contract",null,null,null,null,{"$f":"'Schedule X(f)'!H11","v":0}]
["Sch X(f)","CAT Return - Data Analysis",null,"1. All - Not-modelable - Other - Gross Limit",null,null,null,null,{"$f":"'Schedule X(f)'!I11","v":0}]
["Sch X(f)","CAT Return - Data Analysis",null,"2. Modelable - Not Modeled - US - Net Limit",null,null,null,null,{"$f":"'Schedule X(f)'!G20","v":0}]
["Sch X(f)","CAT Return - Data Analysis",null,"2. Modelable - Modeled - Other -Gross Limit",null,null,null,null,{"$f":"'Schedule X(f)'!I19","v":0}]
["Sch X(f)","CAT Return - Data Analysis",null,"2. Modelable - Modeled - Other -Net Limit",null,null,null,null,{"$f":"'Schedule X(f)'!J19","v":0}]
["Sch X(f)","CAT Return - Data Analysis",null,"3. Modeled - Other - US - Contract",null,null,null,null,{"$f":"'Schedule X(f)'!E32","v":0}]
["Sch X(f)","CAT Return - Data Analysis",null,"3. Modeled - Agg. Data - US - Net Limit",null,null,null,null,{"$f":"'Schedule X(f)'!G29","v":0}]
["Sch X(f)","CAT Return - Data Analysis",null,"3. Modeled - Peer Proxy - US - Net Limit",null,null,null,null,{"$f":"'Schedule X(f)'!G30","v":0}]
["Sch X(f)","CAT Return - Data Analysis",null,"3. Modeled - Total - Other - Contract",null,null,null,null,{"$f":"'Schedule X(f)'!H33","v":0}]
["Sch X(f)","CAT Return - Data Analysis",null,"3. Modeled - Peer Proxy - Other - Gross Limit",null,null,null,null,{"$f":"'Schedule X(f)'!I30","v":0}]
["Sch X(f)","CAT Return - Data Analysis",null,"3. Modeled - Other - Other - Net Limit",null,null,null,null,{"$f":"'Schedule X(f)'!J32","v":0}]
["Sch X(f)","CAT Return - Data Analysis",null,"4. Not Modeled - Other - US - Gross Limit",null,null,null,null,{"$f":"'Schedule X(f)'!F45","v":0}]
["Sch X(f)","CAT Return - Data Analysis",null,"4. Not Modeled - Model Deficient - Other - Contract",null,null,null,null,{"$f":"'Schedule X(f)'!H44","v":0}]
["Sch X(f)","CAT Return - Data Analysis",null,"4. Not Modeled - Data Deficient - Other - Gross Limit",null,null,null,null,{"$f":"'Schedule X(f)'!I43","v":0}]
["Sch X(f)","CAT Return - Data Analysis",null,"Q5 Describe Accumulation Details",null,null,null,null,{"$f":"'Schedule X(f)'!C53","v":0}]
["Sch X(f)","CAT Return - Data Analysis",null,"6. Unable Model - Total - US - Contract",null,null,null,null,{"$f":"'Schedule X(f)'!E64","v":0}]
["Sch X(f)","CAT Return - Data Analysis",null,"6. Unable Model - Data Deficient - US - Net Limit",null,null,null,null,{"$f":"'Schedule X(f)'!G60","v":0}]
["Sch X(f)","CAT Return - Data Analysis",null,"6. Unable Model - Other - US - Net Limit",null,null,null,null,{"$f":"'Schedule X(f)'!G63","v":0}]
["Sch X(f)","CAT Return - Data Analysis",null,"6. Unable Model - Data Deficient - Other - Gross Limit",null,null,null,null,{"$f":"'Schedule X(f)'!I60","v":0}]
["Sch X(f)","CAT Return - Data Analysis",null,"6. Unable Model - Total - Other - Net Limit",null,null,null,null,{"$f":"'Schedule X(f)'!J64","v":0}]
["Sch X(g)","CAT Return - Reinsurance Disclosures",null,"US - Premium - Ind. Loss Warranty Contracts",null,null,null,null,{"$f":"'Schedule X(g)'!D11","v":0}]
["Sch X(g)","CAT Return - Reinsurance Disclosures",null,"US - Premium - Catastrophe Swaps",null,null,null,null,{"$f":"'Schedule X(g)'!D14","v":0}]
["Sch X(g)","CAT Return - Reinsurance Disclosures",null,"US - Occuren. - Property Cat. Contracts",null,null,null,null,{"$f":"'Schedule X(g)'!E13","v":0}]
["Sch X(g)","CAT Return - Reinsurance Disclosures",null,"US - Occuren. - Property per Risk Contracts",null,null,null,null,{"$f":"'Schedule X(g)'!E15","v":0}]
["Sch X(g)","CAT Return - Reinsurance Disclosures",null,"World - Premium - Catastrophe Swaps",null,null,null,null,{"$f":"'Schedule X(g)'!F14","v":0}]
["Sch X(g)","CAT Return - Reinsurance Disclosures",null,"World - Occuren. - Ind. Loss Warranty Contracts",null,null,null,null,{"$f":"'Schedule X(g)'!G11","v":0}]
["Sch X(g)","CAT Return - Reinsurance Disclosures",null,"World - Occuren. - Catastrophe Swaps",null,null,null,null,{"$f":"'Schedule X(g)'!G14","v":0}]
["Sch X(g)","CAT Return - Reinsurance Disclosures",null,"Other - Premium - Property Cat. Contracts",null,null,null,null,{"$f":"'Schedule X(g)'!H13","v":0}]
["Sch X(g)","CAT Return - Reinsurance Disclosures",null,"Other - Occuren. - ILS Protection",null,null,null,null,{"$f":"'Schedule X(g)'!I10","v":0}]
["Sch X(g)","CAT Return - Reinsurance Disclosures",null,"Other - Occuren. - Catastrophe Swaps",null,null,null,null,{"$f":"'Schedule X(g)'!I14","v":0}]
["Sch X(h)","CAT Return - Insurance Terrorism Exposure",null,"Insurance - Convent. Terrorism - State 2",null,null,null,null,{"$f":"IF('Schedule X(h)'!D10=\"\",\"\",'Schedule X(h)'!D10)","v":0}]
["Sch X(h)","CAT Return - Insurance Terrorism Exposure",null,"Insurance - Convent. Terrorism - State 3",null,null,null,null,{"$f":"IF('Schedule X(h)'!D11=\"\",\"\",'Schedule X(h)'!D11)","v":0}]
["Sch X(h)","CAT Return - Insurance Terrorism Exposure",null,"Insurance - Convent. Terrorism - Country 2",null,null,null,null,{"$f":"IF('Schedule X(h)'!E10=\"\",\"\",'Schedule X(h)'!E10)","v":0}]
["Sch X(h)","CAT Return - Insurance Terrorism Exposure",null,"Insurance - Convent. Terrorism - Country 9",null,null,null,null,{"$f":"IF('Schedule X(h)'!E17=\"\",\"\",'Schedule X(h)'!E17)","v":0}]
["Sch X(h)","CAT Return - Insurance Terrorism Exposure",null,"Insurance - Convent. Terrorism - Property Exposure 2",null,null,null,null,{"$f":"'Schedule X(h)'!F10","v":0}]
["Sch X(h)","CAT Return - Insurance Terrorism Exposure",null,"Insurance - Convent. Terrorism - Gross Exposure 1",null,null,null,null,{"$f":"'Schedule X(h)'!G9","v":0}]
["Sch X(h)","CAT Return - Insurance Terrorism Exposure",null,"Insurance - Convent. Terrorism - Gross Exposure 4",null,null,null,null,{"$f":"'Schedule X(h)'!G12","v":0}]
["Sch X(h)","CAT Return - Insurance Terrorism Exposure",null,"Insurance - Convent. Terrorism - TRIP Recover. 2",null,null,null,null,{"$f":"'Schedule X(h)'!H10","v":0}]
["Sch X(h)","CAT Return - Insurance Terrorism Exposure",null,"Insurance - Convent. Terrorism - R/I Recover. 1",null,null,null,null,{"$f":"'Schedule X(h)'!I9","v":0}]
["Sch X(h)","CAT Return - Insurance Terrorism Exposure",null,"Insurance - Convent. Terrorism - R/I Recover. 2",null,null,null,null,{"$f":"'Schedule X(h)'!I10","v":0}]
["Sch X(h)","CAT Return - Insurance Terrorism Exposure",null,"Insurance - Convent. Terrorism - Net Exposure 1",null,null,null,null,{"$f":"'Schedule X(h)'!J9","v":0}]
["Sch X(h)","CAT Return - Insurance Terrorism Exposure",null,"Insurance - Convent. Terrorism - Net Exposure 8",null,null,null,null,{"$f":"'Schedule X(h)'!J16","v":0}]
["Sch X(h)","CAT Return - Insurance Terrorism Exposure",null,"Insurance - Convent. Terrorism - Location 1",null,null,null,null,{"$f":"IF('Schedule X(h)'!K9=\"\",\"\",'Schedule X(h)'!K9)","v":0}]
["Sch X(h)","CAT Return - Insurance Terrorism Exposure",null,"Insurance - Convent. Terrorism - Location 8",null,null,null,null,{"$f":"IF('Schedule X(h)'!K16=\"\",\"\",'Schedule X(h)'!K16)","v":0}]
["Sch X(h)","CAT Return - Insurance Terrorism Exposure",null,"Insurance - NBCR Terrorism - State 8",null,null,null,null,{"$f":"IF('Schedule X(h)'!D31=\"\",\"\",'Schedule X(h)'!D31)","v":0}]
["Sch X(h)","CAT Return - Insurance Terrorism Exposure",null,"Insurance - NBCR Terrorism - Country 1",null,null,null,null,{"$f":"IF('Schedule X(h)'!E24=\"\",\"\",'Schedule X(h)'!E24)","v":0}]
["Sch X(h)","CAT Return - Insurance Terrorism Exposure",null,"Insurance - NBCR Terrorism - Country 8",null,null,null,null,{"$f":"IF('Schedule X(h)'!E31=\"\",\"\",'Schedule X(h)'!E31)","v":0}]
["Sch X(h)","CAT Return - Insurance Terrorism Exposure",null,"Insurance - NBCR Terrorism - Property Exposure 1",null,null,null,null,{"$f":"'Schedule X(h)'!F24","v":0}]
["Sch X(h)","CAT Return - Insurance Terrorism Exposure",null,"Insurance - NBCR Terrorism - Property Exposure 10",null,null,null,null,{"$f":"'Schedule X(h)'!F33","v":0}]
["Sch X(h)","CAT Return - Insurance Terrorism Exposure",null,"Insurance - NBCR Terrorism - Gross Exposure 7",null,null,null,null,{"$f":"'Schedule X(h)'!G30","v":0}]
["Sch X(h)","CAT Return - Insurance Terrorism Exposure",null,"Insurance - NBCR Terrorism - Gross Exposure 9",null,null,null,null,{"$f":"'Schedule X(h)'!G32","v":0}]
["Sch X(h)","CAT Return - Insurance Terrorism Exposure",null,"Insurance - NBCR Terrorism - TRIP Recover. 10",null,null,null,null,{"$f":"'Schedule X(h)'!H33","v":0}]
["Sch X(h)","CAT Return - Insurance Terrorism Exposure",null,"Insurance - NBCR Terrorism - R/I Recover. 7",null,null,null,null,{"$f":"'Schedule X(h)'!I30","v":0}]
["Sch X(h)","CAT Return - Insurance Terrorism Exposure",null,"Insurance - NBCR Terrorism - R/I Recover. 10",null,null,null,null,{"$f":"'Schedule X(h)'!I33","v":0}]
["Sch X(h)","CAT Return - Insurance Terrorism Exposure",null,"Insurance - NBCR Terrorism - Net Exposure 7",null,null,null,null,{"$f":"'Schedule X(h)'!J30","v":0}]
["Sch X(h)","CAT Return - Insurance Terrorism Exposure",null,"Insurance - NBCR Terrorism - Net Exposure 10",null,null,null,null,{"$f":"'Schedule X(h)'!J33","v":0}]
["Sch X(i)","CAT Return - Reinsurance Terrorism Exposure",null,"Reins. - Convent. Terrorism - State 8",null,null,null,null,{"$f":"IF('Schedule X(i)'!E16=\"\",\"\",'Schedule X(i)'!E16)","v":0}]
["Sch X(i)","CAT Return - Reinsurance Terrorism Exposure",null,"Reins. - Convent. Terrorism - Country 6",null,null,null,null,{"$f":"IF('Schedule X(i)'!F14=\"\",\"\",'Schedule X(i)'!F14)","v":0}]
["Sch X(i)","CAT Return - Reinsurance Terrorism Exposure",null,"Reins. - Convent. Terrorism - Country 9",null,null,null,null,{"$f":"IF('Schedule X(i)'!F17=\"\",\"\",'Schedule X(i)'!F17)","v":0}]
["Sch X(i)","CAT Return - Reinsurance Terrorism Exposure",null,"Reins. - Convent. Terrorism - Property Exposure 8",null,null,null,null,{"$f":"'Schedule X(i)'!G16","v":0}]
["Sch X(i)","CAT Return - Reinsurance Terrorism Exposure",null,"Reins. - Convent. Terrorism - Gross Exposure 5",null,null,null,null,{"$f":"'Schedule X(i)'!H13","v":0}]
["Sch X(i)","CAT Return - Reinsurance Terrorism Exposure",null,"Reins. - Convent. Terrorism - Gross Exposure 8",null,null,null,null,{"$f":"'Schedule X(i)'!H16","v":0}]
["Sch X(i)","CAT Return - Reinsurance Terrorism Exposure",null,"Reins. - Convent. Terrorism - TRIP Recover. 5",null,null,null,null,{"$f":"'Schedule X(i)'!I13","v":0}]
["Sch X(i)","CAT Return - Reinsurance Terrorism Exposure",null,"Reins. - Convent. Terrorism - TRIP Recover. 8",null,null,null,null,{"$f":"'Schedule X(i)'!I16","v":0}]
["Sch X(i)","CAT Return - Reinsurance Terrorism Exposure",null,"Reins. - Convent. Terrorism - R/I Recover. 10",null,null,null,null,{"$f":"'Schedule X(i)'!J18","v":0}]
["Sch X(i)","CAT Return - Reinsurance Terrorism Exposure",null,"Reins. - Convent. Terrorism - Net Exposure 5",null,null,null,null,{"$f":"'Schedule X(i)'!K13","v":0}]
["Sch X(i)","CAT Return - Reinsurance Terrorism Exposure",null,"Reins. - Convent. Terrorism - Net Exposure 8",null,null,null,null,{"$f":"'Schedule X(i)'!K16","v":0}]
["Sch X(i)","CAT Return - Reinsurance Terrorism Exposure",null,"Reins. - NBCR Terrorism - State 5",null,null,null,null,{"$f":"IF('Schedule X(i)'!E28=\"\",\"\",'Schedule X(i)'!E28)","v":0}]
["Sch X(i)","CAT Return - Reinsurance Terrorism Exposure",null,"Reins. - NBCR Terrorism - Country 4",null,null,null,null,{"$f":"IF('Schedule X(i)'!F27=\"\",\"\",'Schedule X(i)'!F27)","v":0}]
["Sch X(i)","CAT Return - Reinsurance Terrorism Exposure",null,"Reins. - NBCR Terrorism - Country 7",null,null,null,null,{"$f":"IF('Schedule X(i)'!F30=\"\",\"\",'Schedule X(i)'!F30)","v":0}]
["Sch X(i)","CAT Return - Reinsurance Terrorism Exposure",null,"Reins. - NBCR Terrorism - Property Exposure 4",null,null,null,null,{"$f":"'Schedule X(i)'!G27","v":0}]
["Sch X(i)","CAT Return - Reinsurance Terrorism Exposure",null,"Reins. - NBCR Terrorism - Gross Exposure 1",null,null,null,null,{"$f":"'Schedule X(i)'!H24","v":0}]
["Sch X(i)","CAT Return - Reinsurance Terrorism Exposure",null,"Reins. - NBCR Terrorism - Gross Exposure 7",null,null,null,null,{"$f":"'Schedule X(i)'!H30","v":0}]
["Sch X(i)","CAT Return - Reinsurance Terrorism Exposure",null,"Reins. - NBCR Terrorism - TRIP Recover. 4",null,null,null,null,{"$f":"'Schedule X(i)'!I27","v":0}]
["Sch X(i)","CAT Return - Reinsurance Terrorism Exposure",null,"Reins. - NBCR Terrorism - TRIP Recover. 7",null,null,null,null,{"$f":"'Schedule X(i)'!I30","v":0}]
["Sch X(i)","CAT Return - Reinsurance Terrorism Exposure",null,"Reins. - NBCR Terrorism - R/I Recover. 4",null,null,null,null,{"$f":"'Schedule X(i)'!J27","v":0}]
["Sch X(i)","CAT Return - Reinsurance Terrorism Exposure",null,"Reins. - NBCR Terrorism - Net Exposure 3",null,null,null,null,{"$f":"'Schedule X(i)'!K26","v":0}]
["Sch X(i)","CAT Return - Reinsurance Terrorism Exposure",null,"Reins. - NBCR Terrorism - Net Exposure 6",null,null,null,null,{"$f":"'Schedule X(i)'!K29","v":0}]
["Sch X(j)","CAT Return - Assumed Exchange Rates",null,"Currency - USD",null,null,null,null,{"$f":"'Schedule X(j)'!C8","v":"USD"}]
["Sch X(j)","CAT Return - Assumed Exchange Rates",null,"Currency - USD:Other 1",null,null,null,null,{"$f":"'Schedule X(j)'!C13","v":"USD:"}]
["Sch X(j)","CAT Return - Assumed Exchange Rates",null,"Exchange Rate - USD:Eur",null,null,null,null,{"$f":"'Schedule X(j)'!D9","v":0}]
["Sch X(j)","CAT Return - Assumed Exchange Rates",null,"Exchange Rate - USD:Other 6",null,null,null,null,{"$f":"'Schedule X(j)'!D18","v":0}]
["Sch XI(a)(i)","Loss Triangles - Property Castarophe",null,{"$f":"\"Prop Cat - Incurred - Line 2 - \"&$E$2-9&\" - \"&$E$2-9","v":"Prop Cat - Incurred - Line 2 - 2010 - 2010"},null,null,null,null,{"$f":"+'Sch XI(a)(i)'!C12","v":0}]
["Sch XI(a)(i)","Loss Triangles - Property Castarophe",null,{"$f":"\"Prop Cat - Incurred - Line 4 - \"&$E$2-7&\" - \"&$E$2-7","v":"Prop Cat - Incurred - Line 4 - 2012 - 2012"},null,null,null,null,{"$f":"+'Sch XI(a)(i)'!E14","v":0}]
["Sch XI(a)(i)","Loss Triangles - Property Castarophe",null,{"$f":"\"Prop Cat - Incurred - Line 1 - \"&$E$2-5&\" - Prior\"","v":"Prop Cat - Incurred - Line 1 - 2014 - Prior"},null,null,null,null,{"$f":"+'Sch XI(a)(i)'!G11","v":0}]
["Sch XI(a)(i)","Loss Triangles - Property Castarophe",null,{"$f":"\"Prop Cat - Incurred - Line 2 - \"&$E$2-4&\" - \"&$E$2-9","v":"Prop Cat - Incurred - Line 2 - 2015 - 2010"},null,null,null,null,{"$f":"+'Sch XI(a)(i)'!H12","v":0}]
["Sch XI(a)(i)","Loss Triangles - Property Castarophe",null,{"$f":"\"Prop Cat - Incurred - Line 2 - \"&$E$2-3&\" - \"&$E$2-9","v":"Prop Cat - Incurred - Line 2 - 2016 - 2010"},null,null,null,null,{"$f":"+'Sch XI(a)(i)'!I12","v":0}]
["Sch XI(a)(i)","Loss Triangles - Property Castarophe",null,{"$f":"\"Prop Cat - Incurred - Line 5 - \"&$E$2-3&\" - \"&$E$2-6","v":"Prop Cat - Incurred - Line 5 - 2016 - 2013"},null,null,null,null,{"$f":"+'Sch XI(a)(i)'!I15","v":0}]
["Sch XI(a)(i)","Loss Triangles - Property Castarophe",null,{"$f":"\"Prop Cat - Incurred - Line 4 - \"&$E$2-2&\" - \"&$E$2-7","v":"Prop Cat - Incurred - Line 4 - 2017 - 2012"},null,null,null,null,{"$f":"+'Sch XI(a)(i)'!J14","v":0}]
["Sch XI(a)(i)","Loss Triangles - Property Castarophe",null,{"$f":"\"Prop Cat - Incurred - Line 4 - \"&$E$2-1&\" - \"&$E$2-7","v":"Prop Cat - Incurred - Line 4 - 2018 - 2012"},null,null,null,null,{"$f":"+'Sch XI(a)(i)'!K14","v":0}]
["Sch XI(a)(i)","Loss Triangles - Property Castarophe",null,{"$f":"\"Prop Cat - Incurred - Line 7 - \"&$E$2-1&\" - \"&$E$2-4","v":"Prop Cat - Incurred - Line 7 - 2018 - 2015"},null,null,null,null,{"$f":"+'Sch XI(a)(i)'!K17","v":0}]
["Sch XI(a)(i)","Loss Triangles - Property Castarophe",null,{"$f":"\"Prop Cat - Incurred - Line 2 - \"&$E$2&\" - \"&$E$2-9","v":"Prop Cat - Incurred - Line 2 - 2019 - 2010"},null,null,null,null,{"$f":"+'Sch XI(a)(i)'!L12","v":0}]
["Sch XI(a)(i)","Loss Triangles - Property Castarophe",null,{"$f":"\"Prop Cat - Incurred - Line 3 - Cat Loss. - \"&$E$2-8","v":"Prop Cat - Incurred - Line 3 - Cat Loss. - 2011"},null,null,null,null,{"$f":"+'Sch XI(a)(i)'!M13","v":0}]
["Sch XI(a)(i)","Loss Triangles - Property Castarophe",null,{"$f":"\"Prop Cat - Incurred - Line 6 - Cat Loss. - \"&$E$2-5","v":"Prop Cat - Incurred - Line 6 - Cat Loss. - 2014"},null,null,null,null,{"$f":"+'Sch XI(a)(i)'!M16","v":0}]
["Sch XI(a)(i)","Loss Triangles - Property Castarophe",null,{"$f":"\"Prop Cat - Paid - Line 14 - \"&$E$2-9&\" - \"&$E$2-9","v":"Prop Cat - Paid - Line 14 - 2010 - 2010"},null,null,null,null,{"$f":"+'Sch XI(a)(i)'!C30","v":0}]
["Sch XI(a)(i)","Loss Triangles - Property Castarophe",null,{"$f":"\"Prop Cat - Paid - Line 15 - \"&$E$2-8&\" - \"&$E$2-8","v":"Prop Cat - Paid - Line 15 - 2011 - 2011"},null,null,null,null,{"$f":"+'Sch XI(a)(i)'!D31","v":0}]
["Sch XI(a)(i)","Loss Triangles - Property Castarophe",null,{"$f":"\"Prop Cat - Paid - Line 15 - \"&$E$2-6&\" - \"&$E$2-8","v":"Prop Cat - Paid - Line 15 - 2013 - 2011"},null,null,null,null,{"$f":"+'Sch XI(a)(i)'!F31","v":0}]
["Sch XI(a)(i)","Loss Triangles - Property Castarophe",null,{"$f":"\"Prop Cat - Paid - Line 13 - \"&$E$2-4&\" - Prior\"","v":"Prop Cat - Paid - Line 13 - 2015 - Prior"},null,null,null,null,{"$f":"+'Sch XI(a)(i)'!H29","v":0}]
["Sch XI(a)(i)","Loss Triangles - Property Castarophe",null,{"$f":"\"Prop Cat - Paid - Line 16 - \"&$E$2-4&\" - \"&$E$2-7","v":"Prop Cat - Paid - Line 16 - 2015 - 2012"},null,null,null,null,{"$f":"+'Sch XI(a)(i)'!H32","v":0}]
["Sch XI(a)(i)","Loss Triangles - Property Castarophe",null,{"$f":"\"Prop Cat - Paid - Line 17 - \"&$E$2-3&\" - \"&$E$2-6","v":"Prop Cat - Paid - Line 17 - 2016 - 2013"},null,null,null,null,{"$f":"+'Sch XI(a)(i)'!I33","v":0}]
["Sch XI(a)(i)","Loss Triangles - Property Castarophe",null,{"$f":"\"Prop Cat - Paid - Line 18 - \"&$E$2-2&\" - \"&$E$2-5","v":"Prop Cat - Paid - Line 18 - 2017 - 2014"},null,null,null,null,{"$f":"+'Sch XI(a)(i)'!J34","v":0}]
["Sch XI(a)(i)","Loss Triangles - Property Castarophe",null,{"$f":"\"Prop Cat - Paid - Line 19 - \"&$E$2-2&\" - \"&$E$2-4","v":"Prop Cat - Paid - Line 19 - 2017 - 2015"},null,null,null,null,{"$f":"+'Sch XI(a)(i)'!J35","v":0}]
["Sch XI(a)(i)","Loss Triangles - Property Castarophe",null,{"$f":"\"Prop Cat - Paid - Line 19 - \"&$E$2-1&\" - \"&$E$2-4","v":"Prop Cat - Paid - Line 19 - 2018 - 2015"},null,null,null,null,{"$f":"+'Sch XI(a)(i)'!K35","v":0}]
["Sch XI(a)(i)","Loss Triangles - Property Castarophe",null,{"$f":"\"Prop Cat - Paid - Line 22 - \"&$E$2-1&\" - \"&$E$2-1","v":"Prop Cat - Paid - Line 22 - 2018 - 2018"},null,null,null,null,{"$f":"+'Sch XI(a)(i)'!K38","v":0}]
["Sch XI(a)(i)","Loss Triangles - Property Castarophe",null,{"$f":"\"Prop Cat - Paid - Line 19 - \"&$E$2&\" - \"&$E$2-4","v":"Prop Cat - Paid - Line 19 - 2019 - 2015"},null,null,null,null,{"$f":"+'Sch XI(a)(i)'!L35","v":0}]
["Sch XI(a)(i)","Loss Triangles - Property Castarophe",null,{"$f":"\"Prop Cat - Paid - Line 19 - Cat Loss. - \"&$E$2-4","v":"Prop Cat - Paid - Line 19 - Cat Loss. - 2015"},null,null,null,null,{"$f":"+'Sch XI(a)(i)'!M35","v":0}]
["Sch XI(a)(i)","Loss Triangles - Property Castarophe",null,{"$f":"\"Prop Cat - Paid - Line 21 - Cat Loss. - \"&$E$2-2","v":"Prop Cat - Paid - Line 21 - Cat Loss. - 2017"},null,null,null,null,{"$f":"+'Sch XI(a)(i)'!M37","v":0}]
["Sch XI(a)(i)","Loss Triangles - Property Castarophe",null,{"$f":"\"Prop Cat - Reserve - Line 27 - \"&$E$2-8&\" - \"&$E$2-8","v":"Prop Cat - Reserve - Line 27 - 2011 - 2011"},null,null,null,null,{"$f":"+'Sch XI(a)(i)'!D49","v":0}]
["Sch XI(a)(i)","Loss Triangles - Property Castarophe",null,{"$f":"\"Prop Cat - Reserve - Line 29 - \"&$E$2-6&\" - \"&$E$2-6","v":"Prop Cat - Reserve - Line 29 - 2013 - 2013"},null,null,null,null,{"$f":"+'Sch XI(a)(i)'!F51","v":0}]
["Sch XI(a)(i)","Loss Triangles - Property Castarophe",null,{"$f":"\"Prop Cat - Reserve - Line 25 - \"&$E$2-5&\" - Prior\"","v":"Prop Cat - Reserve - Line 25 - 2014 - Prior"},null,null,null,null,{"$f":"+'Sch XI(a)(i)'!G47","v":0}]
["Sch XI(a)(i)","Loss Triangles - Property Castarophe",null,{"$f":"\"Prop Cat - Reserve - Line 28 - \"&$E$2-4&\" - \"&$E$2-7","v":"Prop Cat - Reserve - Line 28 - 2015 - 2012"},null,null,null,null,{"$f":"+'Sch XI(a)(i)'!H50","v":0}]
["Sch XI(a)(i)","Loss Triangles - Property Castarophe",null,{"$f":"\"Prop Cat - Reserve - Line 31 - \"&$E$2-4&\" - \"&$E$2-4","v":"Prop Cat - Reserve - Line 31 - 2015 - 2015"},null,null,null,null,{"$f":"+'Sch XI(a)(i)'!H53","v":0}]
["Sch XI(a)(i)","Loss Triangles - Property Castarophe",null,{"$f":"\"Prop Cat - Reserve - Line 26 - \"&$E$2-2&\" - \"&$E$2-9","v":"Prop Cat - Reserve - Line 26 - 2017 - 2010"},null,null,null,null,{"$f":"+'Sch XI(a)(i)'!J48","v":0}]
["Sch XI(a)(i)","Loss Triangles - Property Castarophe",null,{"$f":"\"Prop Cat - Reserve - Line 33 - \"&$E$2-2&\" - \"&$E$2-2","v":"Prop Cat - Reserve - Line 33 - 2017 - 2017"},null,null,null,null,{"$f":"+'Sch XI(a)(i)'!J55","v":0}]
["Sch XI(a)(i)","Loss Triangles - Property Castarophe",null,{"$f":"\"Prop Cat - Reserve - Line 31 - \"&$E$2-1&\" - \"&$E$2-4","v":"Prop Cat - Reserve - Line 31 - 2018 - 2015"},null,null,null,null,{"$f":"+'Sch XI(a)(i)'!K53","v":0}]
["Sch XI(a)(i)","Loss Triangles - Property Castarophe",null,{"$f":"\"Prop Cat - Reserve - Line 34 - \"&$E$2-1&\" - \"&$E$2-1","v":"Prop Cat - Reserve - Line 34 - 2018 - 2018"},null,null,null,null,{"$f":"+'Sch XI(a)(i)'!K56","v":0}]
["Sch XI(a)(i)","Loss Triangles - Property Castarophe",null,{"$f":"\"Prop Cat - Reserve - Line 33 - \"&$E$2&\" - \"&$E$2-2","v":"Prop Cat - Reserve - Line 33 - 2019 - 2017"},null,null,null,null,{"$f":"+'Sch XI(a)(i)'!L55","v":0}]
["Sch XI(a)(i)","Loss Triangles - Property Castarophe",null,{"$f":"\"Prop Cat - Reserve - Line 34 - \"&$E$2&\" - \"&$E$2-1","v":"Prop Cat - Reserve - Line 34 - 2019 - 2018"},null,null,null,null,{"$f":"+'Sch XI(a)(i)'!L56","v":0}]
["Sch XI(a)(i)","Loss Triangles - Property Castarophe",null,{"$f":"\"Prop Cat - Reserve - Line 32 - Cat Loss. - \"&$E$2-3","v":"Prop Cat - Reserve - Line 32 - Cat Loss. - 2016"},null,null,null,null,{"$f":"+'Sch XI(a)(i)'!M54","v":0}]
["Sch XI(a)(i)","Loss Triangles - Property Castarophe",null,{"$f":"\"Prop Cat - GPW - Line 41 - \"&$E$2-6","v":"Prop Cat - GPW - Line 41 - 2013"},null,null,null,null,{"$f":"+'Sch XI(a)(i)'!C71","v":0}]
["Sch XI(a)(i)","Loss Triangles - Property Castarophe",null,{"$f":"\"Prop Cat - GPW - Line 44 - \"&$E$2-3","v":"Prop Cat - GPW - Line 44 - 2016"},null,null,null,null,{"$f":"+'Sch XI(a)(i)'!C74","v":0}]
["Sch XI(a)(i)","Loss Triangles - Property Castarophe",null,{"$f":"\"Prop Cat - Gross Premiums Earned - Line 42 - \"&$E$2-5","v":"Prop Cat - Gross Premiums Earned - Line 42 - 2014"},null,null,null,null,{"$f":"+'Sch XI(a)(i)'!D72","v":0}]
["Sch XI(a)(i)","Loss Triangles - Property Castarophe",null,{"$f":"\"Prop Cat - NPW - Line 38 - \"&$E$2-9","v":"Prop Cat - NPW - Line 38 - 2010"},null,null,null,null,{"$f":"+'Sch XI(a)(i)'!E68","v":0}]
["Sch XI(a)(i)","Loss Triangles - Property Castarophe",null,{"$f":"\"Prop Cat - NPW - Line 41 - \"&$E$2-6","v":"Prop Cat - NPW - Line 41 - 2013"},null,null,null,null,{"$f":"+'Sch XI(a)(i)'!E71","v":0}]
["Sch XI(a)(i)","Loss Triangles - Property Castarophe",null,{"$f":"\"Prop Cat - Net Premiums Earned - Line 39 - \"&$E$2-8","v":"Prop Cat - Net Premiums Earned - Line 39 - 2011"},null,null,null,null,{"$f":"+'Sch XI(a)(i)'!F69","v":0}]
["Sch XI(a)(i)","Loss Triangles - Property Castarophe",null,{"$f":"\"Prop Cat - Net Premiums Earned - Line 40 - \"&$E$2-7","v":"Prop Cat - Net Premiums Earned - Line 40 - 2012"},null,null,null,null,{"$f":"+'Sch XI(a)(i)'!F70","v":0}]
["Sch XI(a)(i)","Loss Triangles - Property Castarophe",null,{"$f":"\"Prop Cat - Expenses Paid - Line 38 - \"&$E$2-9","v":"Prop Cat - Expenses Paid - Line 38 - 2010"},null,null,null,null,{"$f":"+'Sch XI(a)(i)'!G68","v":0}]
["Sch XI(a)(i)","Loss Triangles - Property Castarophe",null,{"$f":"\"Prop Cat - Expenses Paid - Line 42 - \"&$E$2-5","v":"Prop Cat - Expenses Paid - Line 42 - 2014"},null,null,null,null,{"$f":"+'Sch XI(a)(i)'!G72","v":0}]
["Sch XI(a)(i)","Loss Triangles - Property Castarophe",null,{"$f":"\"Prop Cat - Expenses Incurred - Line 38 - \"&$E$2-9","v":"Prop Cat - Expenses Incurred - Line 38 - 2010"},null,null,null,null,{"$f":"+'Sch XI(a)(i)'!H68","v":0}]
["Sch XI(a)(i)","Loss Triangles - Property Castarophe",null,{"$f":"\"Prop Cat - Expenses Incurred - Line 47 - \"&$E$2","v":"Prop Cat - Expenses Incurred - Line 47 - 2019"},null,null,null,null,{"$f":"+'Sch XI(a)(i)'!H77","v":0}]
["Sch XI(a)(i)","Loss Triangles - Property Castarophe",null,{"$f":"\"Prop Cat - Brokerage - Line 43 - \"&$E$2-4","v":"Prop Cat - Brokerage - Line 43 - 2015"},null,null,null,null,{"$f":"+'Sch XI(a)(i)'!J73","v":0}]
["Sch XI(a)(i)","Loss Triangles - Property Castarophe",null,{"$f":"\"Prop Cat - Brokerage - Line 46 - \"&$E$2-1","v":"Prop Cat - Brokerage - Line 46 - 2018"},null,null,null,null,{"$f":"+'Sch XI(a)(i)'!J76","v":0}]
["Sch XI(a)(i)","Loss Triangles - Property Castarophe",null,{"$f":"\"Prop Cat - G&A - Line 44 - \"&$E$2-3","v":"Prop Cat - G&A - Line 44 - 2016"},null,null,null,null,{"$f":"+'Sch XI(a)(i)'!K74","v":0}]
["Sch XI(a)(i)","Loss Triangles - Property Castarophe",null,{"$f":"\"Prop Cat - G&A - Line 46 - \"&$E$2-1","v":"Prop Cat - G&A - Line 46 - 2018"},null,null,null,null,{"$f":"+'Sch XI(a)(i)'!K76","v":0}]
["Sch XI(a)(i)","Loss Triangles - Property Castarophe",null,{"$f":"\"Prop Cat - Personnel Costs - Line 44 - \"&$E$2-3","v":"Prop Cat - Personnel Costs - Line 44 - 2016"},null,null,null,null,{"$f":"+'Sch XI(a)(i)'!L74","v":0}]
["Sch XI(a)(i)","Loss Triangles - Property Castarophe",null,{"$f":"\"Prop Cat - Other Exp. - Line 40 - \"&$E$2-7","v":"Prop Cat - Other Exp. - Line 40 - 2012"},null,null,null,null,{"$f":"+'Sch XI(a)(i)'!M70","v":0}]
["Sch XI(a)(i)","Loss Triangles - Property Castarophe",null,{"$f":"\"Prop Cat - Other Exp. - Line 43 - \"&$E$2-4","v":"Prop Cat - Other Exp. - Line 43 - 2015"},null,null,null,null,{"$f":"+'Sch XI(a)(i)'!M73","v":0}]
["Sch XI(a)(ii)","Loss Triangles - Property",null,{"$f":"\"Property - Incurred - Line 2 - \"&$E$2-8&\" - \"&$E$2-9","v":"Property - Incurred - Line 2 - 2011 - 2010"},null,null,null,null,{"$f":"+'Sch XI(a)(ii)'!D12","v":0}]
["Sch XI(a)(ii)","Loss Triangles - Property",null,{"$f":"\"Property - Incurred - Line 2 - \"&$E$2-6&\" - \"&$E$2-9","v":"Property - Incurred - Line 2 - 2013 - 2010"},null,null,null,null,{"$f":"+'Sch XI(a)(ii)'!F12","v":0}]
["Sch XI(a)(ii)","Loss Triangles - Property",null,{"$f":"\"Property - Incurred - Line 5 - \"&$E$2-6&\" - \"&$E$2-6","v":"Property - Incurred - Line 5 - 2013 - 2013"},null,null,null,null,{"$f":"+'Sch XI(a)(ii)'!F15","v":0}]
["Sch XI(a)(ii)","Loss Triangles - Property",null,{"$f":"\"Property - Incurred - Line 6 - \"&$E$2-5&\" - \"&$E$2-5","v":"Property - Incurred - Line 6 - 2014 - 2014"},null,null,null,null,{"$f":"+'Sch XI(a)(ii)'!G16","v":0}]
["Sch XI(a)(ii)","Loss Triangles - Property",null,{"$f":"\"Property - Incurred - Line 5 - \"&$E$2-4&\" - \"&$E$2-6","v":"Property - Incurred - Line 5 - 2015 - 2013"},null,null,null,null,{"$f":"+'Sch XI(a)(ii)'!H15","v":0}]
["Sch XI(a)(ii)","Loss Triangles - Property",null,{"$f":"\"Property - Incurred - Line 7 - \"&$E$2-3&\" - \"&$E$2-4","v":"Property - Incurred - Line 7 - 2016 - 2015"},null,null,null,null,{"$f":"+'Sch XI(a)(ii)'!I17","v":0}]
["Sch XI(a)(ii)","Loss Triangles - Property",null,{"$f":"\"Property - Incurred - Line 6 - \"&$E$2-2&\" - \"&$E$2-5","v":"Property - Incurred - Line 6 - 2017 - 2014"},null,null,null,null,{"$f":"+'Sch XI(a)(ii)'!J16","v":0}]
["Sch XI(a)(ii)","Loss Triangles - Property",null,{"$f":"\"Property - Incurred - Line 9 - \"&$E$2-2&\" - \"&$E$2-2","v":"Property - Incurred - Line 9 - 2017 - 2017"},null,null,null,null,{"$f":"+'Sch XI(a)(ii)'!J19","v":0}]
["Sch XI(a)(ii)","Loss Triangles - Property",null,{"$f":"\"Property - Incurred - Line 9 - \"&$E$2-1&\" - \"&$E$2-2","v":"Property - Incurred - Line 9 - 2018 - 2017"},null,null,null,null,{"$f":"+'Sch XI(a)(ii)'!K19","v":0}]
["Sch XI(a)(ii)","Loss Triangles - Property",null,{"$f":"\"Property - Incurred - Line 6 - \"&$E$2&\" - \"&$E$2-5","v":"Property - Incurred - Line 6 - 2019 - 2014"},null,null,null,null,{"$f":"+'Sch XI(a)(ii)'!L16","v":0}]
["Sch XI(a)(ii)","Loss Triangles - Property",null,{"$f":"\"Property - Incurred - Line 7 - \"&$E$2&\" - \"&$E$2-4","v":"Property - Incurred - Line 7 - 2019 - 2015"},null,null,null,null,{"$f":"+'Sch XI(a)(ii)'!L17","v":0}]
["Sch XI(a)(ii)","Loss Triangles - Property",null,{"$f":"\"Property - Incurred - Line 8 - Cat Loss. - \"&$E$2-3","v":"Property - Incurred - Line 8 - Cat Loss. - 2016"},null,null,null,null,{"$f":"+'Sch XI(a)(ii)'!M18","v":0}]
["Sch XI(a)(ii)","Loss Triangles - Property",null,{"$f":"\"Property - Incurred - Line 9 - Cat Loss. - \"&$E$2-2","v":"Property - Incurred - Line 9 - Cat Loss. - 2017"},null,null,null,null,{"$f":"+'Sch XI(a)(ii)'!M19","v":0}]
["Sch XI(a)(ii)","Loss Triangles - Property",null,{"$f":"\"Property - Paid - Line 14 - \"&$E$2-7&\" - \"&$E$2-9","v":"Property - Paid - Line 14 - 2012 - 2010"},null,null,null,null,{"$f":"+'Sch XI(a)(ii)'!E30","v":0}]
["Sch XI(a)(ii)","Loss Triangles - Property",null,{"$f":"\"Property - Paid - Line 17 - \"&$E$2-6&\" - \"&$E$2-6","v":"Property - Paid - Line 17 - 2013 - 2013"},null,null,null,null,{"$f":"+'Sch XI(a)(ii)'!F33","v":0}]
["Sch XI(a)(ii)","Loss Triangles - Property",null,{"$f":"\"Property - Paid - Line 15 - \"&$E$2-5&\" - \"&$E$2-8","v":"Property - Paid - Line 15 - 2014 - 2011"},null,null,null,null,{"$f":"+'Sch XI(a)(ii)'!G31","v":0}]
["Sch XI(a)(ii)","Loss Triangles - Property",null,{"$f":"\"Property - Paid - Line 14 - \"&$E$2-4&\" - \"&$E$2-9","v":"Property - Paid - Line 14 - 2015 - 2010"},null,null,null,null,{"$f":"+'Sch XI(a)(ii)'!H30","v":0}]
["Sch XI(a)(ii)","Loss Triangles - Property",null,{"$f":"\"Property - Paid - Line 19 - \"&$E$2-3&\" - \"&$E$2-4","v":"Property - Paid - Line 19 - 2016 - 2015"},null,null,null,null,{"$f":"+'Sch XI(a)(ii)'!I35","v":0}]
["Sch XI(a)(ii)","Loss Triangles - Property",null,{"$f":"\"Property - Paid - Line 14 - \"&$E$2-2&\" - \"&$E$2-9","v":"Property - Paid - Line 14 - 2017 - 2010"},null,null,null,null,{"$f":"+'Sch XI(a)(ii)'!J30","v":0}]
["Sch XI(a)(ii)","Loss Triangles - Property",null,{"$f":"\"Property - Paid - Line 21 - \"&$E$2-2&\" - \"&$E$2-2","v":"Property - Paid - Line 21 - 2017 - 2017"},null,null,null,null,{"$f":"+'Sch XI(a)(ii)'!J37","v":0}]
["Sch XI(a)(ii)","Loss Triangles - Property",null,{"$f":"\"Property - Paid - Line 15 - \"&$E$2-1&\" - \"&$E$2-8","v":"Property - Paid - Line 15 - 2018 - 2011"},null,null,null,null,{"$f":"+'Sch XI(a)(ii)'!K31","v":0}]
["Sch XI(a)(ii)","Loss Triangles - Property",null,{"$f":"\"Property - Paid - Line 14 - \"&$E$2&\" - \"&$E$2-9","v":"Property - Paid - Line 14 - 2019 - 2010"},null,null,null,null,{"$f":"+'Sch XI(a)(ii)'!L30","v":0}]
["Sch XI(a)(ii)","Loss Triangles - Property",null,{"$f":"\"Property - Paid - Line 21 - \"&$E$2&\" - \"&$E$2-2","v":"Property - Paid - Line 21 - 2019 - 2017"},null,null,null,null,{"$f":"+'Sch XI(a)(ii)'!L37","v":0}]
["Sch XI(a)(ii)","Loss Triangles - Property",null,{"$f":"\"Property - Paid - Line 17 - Cat Loss. - \"&$E$2-6","v":"Property - Paid - Line 17 - Cat Loss. - 2013"},null,null,null,null,{"$f":"+'Sch XI(a)(ii)'!M33","v":0}]
["Sch XI(a)(ii)","Loss Triangles - Property",null,{"$f":"\"Property - Paid - Line 23 - Cat Loss. - \"&$E$2","v":"Property - Paid - Line 23 - Cat Loss. - 2019"},null,null,null,null,{"$f":"+'Sch XI(a)(ii)'!M39","v":0}]
["Sch XI(a)(ii)","Loss Triangles - Property",null,{"$f":"\"Property - Reserve - Line 26 - \"&$E$2-7&\" - \"&$E$2-9","v":"Property - Reserve - Line 26 - 2012 - 2010"},null,null,null,null,{"$f":"+'Sch XI(a)(ii)'!E48","v":0}]
["Sch XI(a)(ii)","Loss Triangles - Property",null,{"$f":"\"Property - Reserve - Line 25 - \"&$E$2-6&\" - Prior\"","v":"Property - Reserve - Line 25 - 2013 - Prior"},null,null,null,null,{"$f":"+'Sch XI(a)(ii)'!F47","v":0}]
["Sch XI(a)(ii)","Loss Triangles - Property",null,{"$f":"\"Property - Reserve - Line 27 - \"&$E$2-5&\" - \"&$E$2-8","v":"Property - Reserve - Line 27 - 2014 - 2011"},null,null,null,null,{"$f":"+'Sch XI(a)(ii)'!G49","v":0}]
["Sch XI(a)(ii)","Loss Triangles - Property",null,{"$f":"\"Property - Reserve - Line 30 - \"&$E$2-5&\" - \"&$E$2-5","v":"Property - Reserve - Line 30 - 2014 - 2014"},null,null,null,null,{"$f":"+'Sch XI(a)(ii)'!G52","v":0}]
["Sch XI(a)(ii)","Loss Triangles - Property",null,{"$f":"\"Property - Reserve - Line 26 - \"&$E$2-3&\" - \"&$E$2-9","v":"Property - Reserve - Line 26 - 2016 - 2010"},null,null,null,null,{"$f":"+'Sch XI(a)(ii)'!I48","v":0}]
["Sch XI(a)(ii)","Loss Triangles - Property",null,{"$f":"\"Property - Reserve - Line 32 - \"&$E$2-3&\" - \"&$E$2-3","v":"Property - Reserve - Line 32 - 2016 - 2016"},null,null,null,null,{"$f":"+'Sch XI(a)(ii)'!I54","v":0}]
["Sch XI(a)(ii)","Loss Triangles - Property",null,{"$f":"\"Property - Reserve - Line 29 - \"&$E$2-2&\" - \"&$E$2-6","v":"Property - Reserve - Line 29 - 2017 - 2013"},null,null,null,null,{"$f":"+'Sch XI(a)(ii)'!J51","v":0}]
["Sch XI(a)(ii)","Loss Triangles - Property",null,{"$f":"\"Property - Reserve - Line 27 - \"&$E$2-1&\" - \"&$E$2-8","v":"Property - Reserve - Line 27 - 2018 - 2011"},null,null,null,null,{"$f":"+'Sch XI(a)(ii)'!K49","v":0}]
["Sch XI(a)(ii)","Loss Triangles - Property",null,{"$f":"\"Property - Reserve - Line 26 - \"&$E$2&\" - \"&$E$2-9","v":"Property - Reserve - Line 26 - 2019 - 2010"},null,null,null,null,{"$f":"+'Sch XI(a)(ii)'!L48","v":0}]
["Sch XI(a)(ii)","Loss Triangles - Property",null,{"$f":"\"Property - Reserve - Line 29 - \"&$E$2&\" - \"&$E$2-6","v":"Property - Reserve - Line 29 - 2019 - 2013"},null,null,null,null,{"$f":"+'Sch XI(a)(ii)'!L51","v":0}]
["Sch XI(a)(ii)","Loss Triangles - Property",null,{"$f":"\"Property - Reserve - Line 25 - Cat Loss - Prior\"","v":"Property - Reserve - Line 25 - Cat Loss - Prior"},null,null,null,null,{"$f":"+'Sch XI(a)(ii)'!M47","v":0}]
["Sch XI(a)(ii)","Loss Triangles - Property",null,{"$f":"\"Property - Reserve - Line 28 - Cat Loss. - \"&$E$2-7","v":"Property - Reserve - Line 28 - Cat Loss. - 2012"},null,null,null,null,{"$f":"+'Sch XI(a)(ii)'!M50","v":0}]
["Sch XI(a)(ii)","Loss Triangles - Property",null,{"$f":"\"Property - GPW - Line 39 - \"&$E$2-8","v":"Property - GPW - Line 39 - 2011"},null,null,null,null,{"$f":"+'Sch XI(a)(ii)'!C69","v":0}]
["Sch XI(a)(ii)","Loss Triangles - Property",null,{"$f":"\"Property - GPW - Line 46 - \"&$E$2-1","v":"Property - GPW - Line 46 - 2018"},null,null,null,null,{"$f":"+'Sch XI(a)(ii)'!C76","v":0}]
["Sch XI(a)(ii)","Loss Triangles - Property",null,{"$f":"\"Property - Gross Premiums Earned - Line 38 - \"&$E$2-9","v":"Property - Gross Premiums Earned - Line 38 - 2010"},null,null,null,null,{"$f":"+'Sch XI(a)(ii)'!D68","v":0}]
["Sch XI(a)(ii)","Loss Triangles - Property",null,{"$f":"\"Property - Gross Premiums Earned - Line 45 - \"&$E$2-2","v":"Property - Gross Premiums Earned - Line 45 - 2017"},null,null,null,null,{"$f":"+'Sch XI(a)(ii)'!D75","v":0}]
["Sch XI(a)(ii)","Loss Triangles - Property",null,{"$f":"\"Property - NPW - Line 43 - \"&$E$2-4","v":"Property - NPW - Line 43 - 2015"},null,null,null,null,{"$f":"+'Sch XI(a)(ii)'!E73","v":0}]
["Sch XI(a)(ii)","Loss Triangles - Property",null,{"$f":"\"Property - NPW - Line 46 - \"&$E$2-1","v":"Property - NPW - Line 46 - 2018"},null,null,null,null,{"$f":"+'Sch XI(a)(ii)'!E76","v":0}]
["Sch XI(a)(ii)","Loss Triangles - Property",null,{"$f":"\"Property - Net Premiums Earned - Line 42 - \"&$E$2-5","v":"Property - Net Premiums Earned - Line 42 - 2014"},null,null,null,null,{"$f":"+'Sch XI(a)(ii)'!F72","v":0}]
["Sch XI(a)(ii)","Loss Triangles - Property",null,{"$f":"\"Property - Net Premiums Earned - Line 47 - \"&$E$2","v":"Property - Net Premiums Earned - Line 47 - 2019"},null,null,null,null,{"$f":"+'Sch XI(a)(ii)'!F77","v":0}]
["Sch XI(a)(ii)","Loss Triangles - Property",null,{"$f":"\"Property - Expenses Paid - Line 44 - \"&$E$2-3","v":"Property - Expenses Paid - Line 44 - 2016"},null,null,null,null,{"$f":"+'Sch XI(a)(ii)'!G74","v":0}]
["Sch XI(a)(ii)","Loss Triangles - Property",null,{"$f":"\"Property - Expenses Incurred - Line 40 - \"&$E$2-7","v":"Property - Expenses Incurred - Line 40 - 2012"},null,null,null,null,{"$f":"+'Sch XI(a)(ii)'!H70","v":0}]
["Sch XI(a)(ii)","Loss Triangles - Property",null,{"$f":"\"Property - Expenses Incurred - Line 43 - \"&$E$2-4","v":"Property - Expenses Incurred - Line 43 - 2015"},null,null,null,null,{"$f":"+'Sch XI(a)(ii)'!H73","v":0}]
["Sch XI(a)(ii)","Loss Triangles - Property",null,{"$f":"\"Property - Brokerage - Line 39 - \"&$E$2-8","v":"Property - Brokerage - Line 39 - 2011"},null,null,null,null,{"$f":"+'Sch XI(a)(ii)'!J69","v":0}]
["Sch XI(a)(ii)","Loss Triangles - Property",null,{"$f":"\"Property - G&A - Line 37 - Prior\"","v":"Property - G&A - Line 37 - Prior"},null,null,null,null,{"$f":"+'Sch XI(a)(ii)'!K67","v":0}]
["Sch XI(a)(ii)","Loss Triangles - Property",null,{"$f":"\"Property - G&A - Line 40 - \"&$E$2-7","v":"Property - G&A - Line 40 - 2012"},null,null,null,null,{"$f":"+'Sch XI(a)(ii)'!K70","v":0}]
["Sch XI(a)(ii)","Loss Triangles - Property",null,{"$f":"\"Property - G&A - Line 44 - \"&$E$2-3","v":"Property - G&A - Line 44 - 2016"},null,null,null,null,{"$f":"+'Sch XI(a)(ii)'!K74","v":0}]
["Sch XI(a)(ii)","Loss Triangles - Property",null,{"$f":"\"Property - Personnel Costs - Line 40 - \"&$E$2-7","v":"Property - Personnel Costs - Line 40 - 2012"},null,null,null,null,{"$f":"+'Sch XI(a)(ii)'!L70","v":0}]
["Sch XI(a)(ii)","Loss Triangles - Property",null,{"$f":"\"Property - Personnel Costs - Line 47 - \"&$E$2","v":"Property - Personnel Costs - Line 47 - 2019"},null,null,null,null,{"$f":"+'Sch XI(a)(ii)'!L77","v":0}]
["Sch XI(a)(ii)","Loss Triangles - Property",null,{"$f":"\"Property - Other Exp. - Line 45 - \"&$E$2-2","v":"Property - Other Exp. - Line 45 - 2017"},null,null,null,null,{"$f":"+'Sch XI(a)(ii)'!M75","v":0}]
["Sch XI(a)(ii)","Loss Triangles - Property",null,"Property - Note",null,null,null,null,{"$f":"+'Sch XI(a)(ii)'!B81","v":0}]
["Sch XI(a)(iii)","Loss Triangles - Property Non-Proportional",null,{"$f":"\"Prop. Non-Prop.- Incurred - Line 2 - \"&$E$2-7&\" - \"&$E$2-9","v":"Prop. Non-Prop.- Incurred - Line 2 - 2012 - 2010"},null,null,null,null,{"$f":"+'Sch XI(a)(iii)'!E12","v":0}]
["Sch XI(a)(iii)","Loss Triangles - Property Non-Proportional",null,{"$f":"\"Prop. Non-Prop.- Incurred - Line 2 - \"&$E$2-5&\" - \"&$E$2-9","v":"Prop. Non-Prop.- Incurred - Line 2 - 2014 - 2010"},null,null,null,null,{"$f":"+'Sch XI(a)(iii)'!G12","v":0}]
["Sch XI(a)(iii)","Loss Triangles - Property Non-Proportional",null,{"$f":"\"Prop. Non-Prop.- Incurred - Line 4 - \"&$E$2-5&\" - \"&$E$2-7","v":"Prop. Non-Prop.- Incurred - Line 4 - 2014 - 2012"},null,null,null,null,{"$f":"+'Sch XI(a)(iii)'!G14","v":0}]
["Sch XI(a)(iii)","Loss Triangles - Property Non-Proportional",null,{"$f":"\"Prop. Non-Prop.- Incurred - Line 7 - \"&$E$2-4&\" - \"&$E$2-4","v":"Prop. Non-Prop.- Incurred - Line 7 - 2015 - 2015"},null,null,null,null,{"$f":"+'Sch XI(a)(iii)'!H17","v":0}]
["Sch XI(a)(iii)","Loss Triangles - Property Non-Proportional",null,{"$f":"\"Prop. Non-Prop.- Incurred - Line 3 - \"&$E$2-3&\" - \"&$E$2-8","v":"Prop. Non-Prop.- Incurred - Line 3 - 2016 - 2011"},null,null,null,null,{"$f":"+'Sch XI(a)(iii)'!I13","v":0}]
["Sch XI(a)(iii)","Loss Triangles - Property Non-Proportional",null,{"$f":"\"Prop. Non-Prop.- Incurred - Line 2 - \"&$E$2-2&\" - \"&$E$2-9","v":"Prop. Non-Prop.- Incurred - Line 2 - 2017 - 2010"},null,null,null,null,{"$f":"+'Sch XI(a)(iii)'!J12","v":0}]
["Sch XI(a)(iii)","Loss Triangles - Property Non-Proportional",null,{"$f":"\"Prop. Non-Prop.- Incurred - Line 2 - \"&$E$2-1&\" - \"&$E$2-9","v":"Prop. Non-Prop.- Incurred - Line 2 - 2018 - 2010"},null,null,null,null,{"$f":"+'Sch XI(a)(iii)'!K12","v":0}]
["Sch XI(a)(iii)","Loss Triangles - Property Non-Proportional",null,{"$f":"\"Prop. Non-Prop.- Incurred - Line 5 - \"&$E$2-1&\" - \"&$E$2-6","v":"Prop. Non-Prop.- Incurred - Line 5 - 2018 - 2013"},null,null,null,null,{"$f":"+'Sch XI(a)(iii)'!K15","v":0}]
["Sch XI(a)(iii)","Loss Triangles - Property Non-Proportional",null,{"$f":"\"Prop. Non-Prop.- Incurred - Line 2 - \"&$E$2&\" - \"&$E$2-9","v":"Prop. Non-Prop.- Incurred - Line 2 - 2019 - 2010"},null,null,null,null,{"$f":"+'Sch XI(a)(iii)'!L12","v":0}]
["Sch XI(a)(iii)","Loss Triangles - Property Non-Proportional",null,{"$f":"\"Prop. Non-Prop.- Incurred - Line 1 - Cat Loss - Prior\"","v":"Prop. Non-Prop.- Incurred - Line 1 - Cat Loss - Prior"},null,null,null,null,{"$f":"+'Sch XI(a)(iii)'!M11","v":0}]
["Sch XI(a)(iii)","Loss Triangles - Property Non-Proportional",null,{"$f":"\"Prop. Non-Prop.- Incurred - Line 2 - Cat Loss. - \"&$E$2-9","v":"Prop. Non-Prop.- Incurred - Line 2 - Cat Loss. - 2010"},null,null,null,null,{"$f":"+'Sch XI(a)(iii)'!M12","v":0}]
["Sch XI(a)(iii)","Loss Triangles - Property Non-Proportional",null,{"$f":"\"Prop. Non-Prop.- Incurred - Line 11 - Cat Loss. - \"&$E$2","v":"Prop. Non-Prop.- Incurred - Line 11 - Cat Loss. - 2019"},null,null,null,null,{"$f":"+'Sch XI(a)(iii)'!M21","v":0}]
["Sch XI(a)(iii)","Loss Triangles - Property Non-Proportional",null,{"$f":"\"Prop. Non-Prop.- Paid - Line 13 - \"&$E$2-8&\" - Prior\"","v":"Prop. Non-Prop.- Paid - Line 13 - 2011 - Prior"},null,null,null,null,{"$f":"+'Sch XI(a)(iii)'!D29","v":0}]
["Sch XI(a)(iii)","Loss Triangles - Property Non-Proportional",null,{"$f":"\"Prop. Non-Prop.- Paid - Line 13 - \"&$E$2-6&\" - Prior\"","v":"Prop. Non-Prop.- Paid - Line 13 - 2013 - Prior"},null,null,null,null,{"$f":"+'Sch XI(a)(iii)'!F29","v":0}]
["Sch XI(a)(iii)","Loss Triangles - Property Non-Proportional",null,{"$f":"\"Prop. Non-Prop.- Paid - Line 17 - \"&$E$2-5&\" - \"&$E$2-6","v":"Prop. Non-Prop.- Paid - Line 17 - 2014 - 2013"},null,null,null,null,{"$f":"+'Sch XI(a)(iii)'!G33","v":0}]
["Sch XI(a)(iii)","Loss Triangles - Property Non-Proportional",null,{"$f":"\"Prop. Non-Prop.- Paid - Line 14 - \"&$E$2-4&\" - \"&$E$2-9","v":"Prop. Non-Prop.- Paid - Line 14 - 2015 - 2010"},null,null,null,null,{"$f":"+'Sch XI(a)(iii)'!H30","v":0}]
["Sch XI(a)(iii)","Loss Triangles - Property Non-Proportional",null,{"$f":"\"Prop. Non-Prop.- Paid - Line 16 - \"&$E$2-3&\" - \"&$E$2-7","v":"Prop. Non-Prop.- Paid - Line 16 - 2016 - 2012"},null,null,null,null,{"$f":"+'Sch XI(a)(iii)'!I32","v":0}]
["Sch XI(a)(iii)","Loss Triangles - Property Non-Proportional",null,{"$f":"\"Prop. Non-Prop.- Paid - Line 16 - \"&$E$2-2&\" - \"&$E$2-7","v":"Prop. Non-Prop.- Paid - Line 16 - 2017 - 2012"},null,null,null,null,{"$f":"+'Sch XI(a)(iii)'!J32","v":0}]
["Sch XI(a)(iii)","Loss Triangles - Property Non-Proportional",null,{"$f":"\"Prop. Non-Prop.- Paid - Line 17 - \"&$E$2-2&\" - \"&$E$2-6","v":"Prop. Non-Prop.- Paid - Line 17 - 2017 - 2013"},null,null,null,null,{"$f":"+'Sch XI(a)(iii)'!J33","v":0}]
["Sch XI(a)(iii)","Loss Triangles - Property Non-Proportional",null,{"$f":"\"Prop. Non-Prop.- Paid - Line 17 - \"&$E$2-1&\" - \"&$E$2-6","v":"Prop. Non-Prop.- Paid - Line 17 - 2018 - 2013"},null,null,null,null,{"$f":"+'Sch XI(a)(iii)'!K33","v":0}]
["Sch XI(a)(iii)","Loss Triangles - Property Non-Proportional",null,{"$f":"\"Prop. Non-Prop.- Paid - Line 20 - \"&$E$2-1&\" - \"&$E$2-3","v":"Prop. Non-Prop.- Paid - Line 20 - 2018 - 2016"},null,null,null,null,{"$f":"+'Sch XI(a)(iii)'!K36","v":0}]
["Sch XI(a)(iii)","Loss Triangles - Property Non-Proportional",null,{"$f":"\"Prop. Non-Prop.- Paid - Line 17 - \"&$E$2&\" - \"&$E$2-6","v":"Prop. Non-Prop.- Paid - Line 17 - 2019 - 2013"},null,null,null,null,{"$f":"+'Sch XI(a)(iii)'!L33","v":0}]
["Sch XI(a)(iii)","Loss Triangles - Property Non-Proportional",null,{"$f":"\"Prop. Non-Prop.- Paid - Line 15 - Cat Loss. - \"&$E$2-8","v":"Prop. Non-Prop.- Paid - Line 15 - Cat Loss. - 2011"},null,null,null,null,{"$f":"+'Sch XI(a)(iii)'!M31","v":0}]
["Sch XI(a)(iii)","Loss Triangles - Property Non-Proportional",null,{"$f":"\"Prop. Non-Prop.- Paid - Line 19 - Cat Loss. - \"&$E$2-4","v":"Prop. Non-Prop.- Paid - Line 19 - Cat Loss. - 2015"},null,null,null,null,{"$f":"+'Sch XI(a)(iii)'!M35","v":0}]
["Sch XI(a)(iii)","Loss Triangles - Property Non-Proportional",null,{"$f":"\"Prop. Non-Prop.- Reserve - Line 25 - \"&$E$2-8&\" - Prior\"","v":"Prop. Non-Prop.- Reserve - Line 25 - 2011 - Prior"},null,null,null,null,{"$f":"+'Sch XI(a)(iii)'!D47","v":0}]
["Sch XI(a)(iii)","Loss Triangles - Property Non-Proportional",null,{"$f":"\"Prop. Non-Prop.- Reserve - Line 27 - \"&$E$2-6&\" - \"&$E$2-8","v":"Prop. Non-Prop.- Reserve - Line 27 - 2013 - 2011"},null,null,null,null,{"$f":"+'Sch XI(a)(iii)'!F49","v":0}]
["Sch XI(a)(iii)","Loss Triangles - Property Non-Proportional",null,{"$f":"\"Prop. Non-Prop.- Reserve - Line 28 - \"&$E$2-6&\" - \"&$E$2-7","v":"Prop. Non-Prop.- Reserve - Line 28 - 2013 - 2012"},null,null,null,null,{"$f":"+'Sch XI(a)(iii)'!F50","v":0}]
["Sch XI(a)(iii)","Loss Triangles - Property Non-Proportional",null,{"$f":"\"Prop. Non-Prop.- Reserve - Line 26 - \"&$E$2-4&\" - \"&$E$2-9","v":"Prop. Non-Prop.- Reserve - Line 26 - 2015 - 2010"},null,null,null,null,{"$f":"+'Sch XI(a)(iii)'!H48","v":0}]
["Sch XI(a)(iii)","Loss Triangles - Property Non-Proportional",null,{"$f":"\"Prop. Non-Prop.- Reserve - Line 29 - \"&$E$2-4&\" - \"&$E$2-6","v":"Prop. Non-Prop.- Reserve - Line 29 - 2015 - 2013"},null,null,null,null,{"$f":"+'Sch XI(a)(iii)'!H51","v":0}]
["Sch XI(a)(iii)","Loss Triangles - Property Non-Proportional",null,{"$f":"\"Prop. Non-Prop.- Reserve - Line 30 - \"&$E$2-3&\" - \"&$E$2-5","v":"Prop. Non-Prop.- Reserve - Line 30 - 2016 - 2014"},null,null,null,null,{"$f":"+'Sch XI(a)(iii)'!I52","v":0}]
["Sch XI(a)(iii)","Loss Triangles - Property Non-Proportional",null,{"$f":"\"Prop. Non-Prop.- Reserve - Line 31 - \"&$E$2-2&\" - \"&$E$2-4","v":"Prop. Non-Prop.- Reserve - Line 31 - 2017 - 2015"},null,null,null,null,{"$f":"+'Sch XI(a)(iii)'!J53","v":0}]
["Sch XI(a)(iii)","Loss Triangles - Property Non-Proportional",null,{"$f":"\"Prop. Non-Prop.- Reserve - Line 29 - \"&$E$2-1&\" - \"&$E$2-6","v":"Prop. Non-Prop.- Reserve - Line 29 - 2018 - 2013"},null,null,null,null,{"$f":"+'Sch XI(a)(iii)'!K51","v":0}]
["Sch XI(a)(iii)","Loss Triangles - Property Non-Proportional",null,{"$f":"\"Prop. Non-Prop.- Reserve - Line 32 - \"&$E$2-1&\" - \"&$E$2-3","v":"Prop. Non-Prop.- Reserve - Line 32 - 2018 - 2016"},null,null,null,null,{"$f":"+'Sch XI(a)(iii)'!K54","v":0}]
["Sch XI(a)(iii)","Loss Triangles - Property Non-Proportional",null,{"$f":"\"Prop. Non-Prop.- Reserve - Line 31 - \"&$E$2&\" - \"&$E$2-4","v":"Prop. Non-Prop.- Reserve - Line 31 - 2019 - 2015"},null,null,null,null,{"$f":"+'Sch XI(a)(iii)'!L53","v":0}]
["Sch XI(a)(iii)","Loss Triangles - Property Non-Proportional",null,{"$f":"\"Prop. Non-Prop.- Reserve - Line 32 - \"&$E$2&\" - \"&$E$2-3","v":"Prop. Non-Prop.- Reserve - Line 32 - 2019 - 2016"},null,null,null,null,{"$f":"+'Sch XI(a)(iii)'!L54","v":0}]
["Sch XI(a)(iii)","Loss Triangles - Property Non-Proportional",null,{"$f":"\"Prop. Non-Prop.- Reserve - Line 30 - Cat Loss. - \"&$E$2-5","v":"Prop. Non-Prop.- Reserve - Line 30 - Cat Loss. - 2014"},null,null,null,null,{"$f":"+'Sch XI(a)(iii)'!M52","v":0}]
["Sch XI(a)(iii)","Loss Triangles - Property Non-Proportional",null,{"$f":"\"Prop. Non-Prop.- GPW - Line 37 - Prior\"","v":"Prop. Non-Prop.- GPW - Line 37 - Prior"},null,null,null,null,{"$f":"+'Sch XI(a)(iii)'!C67","v":"XXX"}]
["Sch XI(a)(iii)","Loss Triangles - Property Non-Proportional",null,{"$f":"\"Prop. Non-Prop.- GPW - Line 42 - \"&$E$2-5","v":"Prop. Non-Prop.- GPW - Line 42 - 2014"},null,null,null,null,{"$f":"+'Sch XI(a)(iii)'!C72","v":0}]
["Sch XI(a)(iii)","Loss Triangles - Property Non-Proportional",null,{"$f":"\"Prop. Non-Prop.- Gross Premiums Earned - Line 40 - \"&$E$2-7","v":"Prop. Non-Prop.- Gross Premiums Earned - Line 40 - 2012"},null,null,null,null,{"$f":"+'Sch XI(a)(iii)'!D70","v":0}]
["Sch XI(a)(iii)","Loss Triangles - Property Non-Proportional",null,{"$f":"\"Prop. Non-Prop.- Gross Premiums Earned - Line 47 - \"&$E$2","v":"Prop. Non-Prop.- Gross Premiums Earned - Line 47 - 2019"},null,null,null,null,{"$f":"+'Sch XI(a)(iii)'!D77","v":0}]
["Sch XI(a)(iii)","Loss Triangles - Property Non-Proportional",null,{"$f":"\"Prop. Non-Prop.- NPW - Line 39 - \"&$E$2-8","v":"Prop. Non-Prop.- NPW - Line 39 - 2011"},null,null,null,null,{"$f":"+'Sch XI(a)(iii)'!E69","v":0}]
["Sch XI(a)(iii)","Loss Triangles - Property Non-Proportional",null,{"$f":"\"Prop. Non-Prop.- Net Premiums Earned - Line 37 - Prior\"","v":"Prop. Non-Prop.- Net Premiums Earned - Line 37 - Prior"},null,null,null,null,{"$f":"+'Sch XI(a)(iii)'!F67","v":"XXX"}]
["Sch XI(a)(iii)","Loss Triangles - Property Non-Proportional",null,{"$f":"\"Prop. Non-Prop.- Net Premiums Earned - Line 38 - \"&$E$2-9","v":"Prop. Non-Prop.- Net Premiums Earned - Line 38 - 2010"},null,null,null,null,{"$f":"+'Sch XI(a)(iii)'!F68","v":0}]
["Sch XI(a)(iii)","Loss Triangles - Property Non-Proportional",null,{"$f":"\"Prop. Non-Prop.- Net Premiums Earned - Line 45 - \"&$E$2-2","v":"Prop. Non-Prop.- Net Premiums Earned - Line 45 - 2017"},null,null,null,null,{"$f":"+'Sch XI(a)(iii)'!F75","v":0}]
["Sch XI(a)(iii)","Loss Triangles - Property Non-Proportional",null,{"$f":"\"Prop. Non-Prop.- Expenses Paid - Line 40 - \"&$E$2-7","v":"Prop. Non-Prop.- Expenses Paid - Line 40 - 2012"},null,null,null,null,{"$f":"+'Sch XI(a)(iii)'!G70","v":0}]
["Sch XI(a)(iii)","Loss Triangles - Property Non-Proportional",null,{"$f":"\"Prop. Non-Prop.- Expenses Paid - Line 47 - \"&$E$2","v":"Prop. Non-Prop.- Expenses Paid - Line 47 - 2019"},null,null,null,null,{"$f":"+'Sch XI(a)(iii)'!G77","v":0}]
["Sch XI(a)(iii)","Loss Triangles - Property Non-Proportional",null,{"$f":"\"Prop. Non-Prop.- Expenses Incurred - Line 45 - \"&$E$2-2","v":"Prop. Non-Prop.- Expenses Incurred - Line 45 - 2017"},null,null,null,null,{"$f":"+'Sch XI(a)(iii)'!H75","v":0}]
["Sch XI(a)(iii)","Loss Triangles - Property Non-Proportional",null,{"$f":"\"Prop. Non-Prop.- Brokerage - Line 41 - \"&$E$2-6","v":"Prop. Non-Prop.- Brokerage - Line 41 - 2013"},null,null,null,null,{"$f":"+'Sch XI(a)(iii)'!J71","v":0}]
["Sch XI(a)(iii)","Loss Triangles - Property Non-Proportional",null,{"$f":"\"Prop. Non-Prop.- Brokerage - Line 44 - \"&$E$2-3","v":"Prop. Non-Prop.- Brokerage - Line 44 - 2016"},null,null,null,null,{"$f":"+'Sch XI(a)(iii)'!J74","v":0}]
["Sch XI(a)(iii)","Loss Triangles - Property Non-Proportional",null,{"$f":"\"Prop. Non-Prop.- G&A - Line 42 - \"&$E$2-5","v":"Prop. Non-Prop.- G&A - Line 42 - 2014"},null,null,null,null,{"$f":"+'Sch XI(a)(iii)'!K72","v":0}]
["Sch XI(a)(iii)","Loss Triangles - Property Non-Proportional",null,{"$f":"\"Prop. Non-Prop.- Personnel Costs - Line 38 - \"&$E$2-9","v":"Prop. Non-Prop.- Personnel Costs - Line 38 - 2010"},null,null,null,null,{"$f":"+'Sch XI(a)(iii)'!L68","v":0}]
["Sch XI(a)(iii)","Loss Triangles - Property Non-Proportional",null,{"$f":"\"Prop. Non-Prop.- Personnel Costs - Line 42 - \"&$E$2-5","v":"Prop. Non-Prop.- Personnel Costs - Line 42 - 2014"},null,null,null,null,{"$f":"+'Sch XI(a)(iii)'!L72","v":0}]
["Sch XI(a)(iii)","Loss Triangles - Property Non-Proportional",null,{"$f":"\"Prop. Non-Prop.- Other Exp. - Line 38 - \"&$E$2-9","v":"Prop. Non-Prop.- Other Exp. - Line 38 - 2010"},null,null,null,null,{"$f":"+'Sch XI(a)(iii)'!M68","v":0}]
["Sch XI(a)(iii)","Loss Triangles - Property Non-Proportional",null,{"$f":"\"Prop. Non-Prop.- Other Exp. - Line 41 - \"&$E$2-6","v":"Prop. Non-Prop.- Other Exp. - Line 41 - 2013"},null,null,null,null,{"$f":"+'Sch XI(a)(iii)'!M71","v":0}]
["Sch XI(a)(iv)","Loss Triangles - Casualty",null,{"$f":"\"Casualty - Incurred - Line 2 - \"&$E$2-9&\" - \"&$E$2-9","v":"Casualty - Incurred - Line 2 - 2010 - 2010"},null,null,null,null,{"$f":"+'Sch XI(a)(iv)'!C12","v":0}]
["Sch XI(a)(iv)","Loss Triangles - Casualty",null,{"$f":"\"Casualty - Incurred - Line 4 - \"&$E$2-7&\" - \"&$E$2-7","v":"Casualty - Incurred - Line 4 - 2012 - 2012"},null,null,null,null,{"$f":"+'Sch XI(a)(iv)'!E14","v":0}]
["Sch XI(a)(iv)","Loss Triangles - Casualty",null,{"$f":"\"Casualty - Incurred - Line 3 - \"&$E$2-6&\" - \"&$E$2-8","v":"Casualty - Incurred - Line 3 - 2013 - 2011"},null,null,null,null,{"$f":"+'Sch XI(a)(iv)'!F13","v":0}]
["Sch XI(a)(iv)","Loss Triangles - Casualty",null,{"$f":"\"Casualty - Incurred - Line 2 - \"&$E$2-5&\" - \"&$E$2-9","v":"Casualty - Incurred - Line 2 - 2014 - 2010"},null,null,null,null,{"$f":"+'Sch XI(a)(iv)'!G12","v":0}]
["Sch XI(a)(iv)","Loss Triangles - Casualty",null,{"$f":"\"Casualty - Incurred - Line 3 - \"&$E$2-4&\" - \"&$E$2-8","v":"Casualty - Incurred - Line 3 - 2015 - 2011"},null,null,null,null,{"$f":"+'Sch XI(a)(iv)'!H13","v":0}]
["Sch XI(a)(iv)","Loss Triangles - Casualty",null,{"$f":"\"Casualty - Incurred - Line 5 - \"&$E$2-3&\" - \"&$E$2-6","v":"Casualty - Incurred - Line 5 - 2016 - 2013"},null,null,null,null,{"$f":"+'Sch XI(a)(iv)'!I15","v":0}]
["Sch XI(a)(iv)","Loss Triangles - Casualty",null,{"$f":"\"Casualty - Incurred - Line 4 - \"&$E$2-2&\" - \"&$E$2-7","v":"Casualty - Incurred - Line 4 - 2017 - 2012"},null,null,null,null,{"$f":"+'Sch XI(a)(iv)'!J14","v":0}]
["Sch XI(a)(iv)","Loss Triangles - Casualty",null,{"$f":"\"Casualty - Incurred - Line 7 - \"&$E$2-2&\" - \"&$E$2-4","v":"Casualty - Incurred - Line 7 - 2017 - 2015"},null,null,null,null,{"$f":"+'Sch XI(a)(iv)'!J17","v":0}]
["Sch XI(a)(iv)","Loss Triangles - Casualty",null,{"$f":"\"Casualty - Incurred - Line 7 - \"&$E$2-1&\" - \"&$E$2-4","v":"Casualty - Incurred - Line 7 - 2018 - 2015"},null,null,null,null,{"$f":"+'Sch XI(a)(iv)'!K17","v":0}]
["Sch XI(a)(iv)","Loss Triangles - Casualty",null,{"$f":"\"Casualty - Incurred - Line 4 - \"&$E$2&\" - \"&$E$2-7","v":"Casualty - Incurred - Line 4 - 2019 - 2012"},null,null,null,null,{"$f":"+'Sch XI(a)(iv)'!L14","v":0}]
["Sch XI(a)(iv)","Loss Triangles - Casualty",null,{"$f":"\"Casualty - Incurred - Line 10 - \"&$E$2&\" - \"&$E$2-1","v":"Casualty - Incurred - Line 10 - 2019 - 2018"},null,null,null,null,{"$f":"+'Sch XI(a)(iv)'!L20","v":0}]
["Sch XI(a)(iv)","Loss Triangles - Casualty",null,{"$f":"\"Casualty - Incurred - Line 4 - Cat Loss. - \"&$E$2-7","v":"Casualty - Incurred - Line 4 - Cat Loss. - 2012"},null,null,null,null,{"$f":"+'Sch XI(a)(iv)'!M14","v":0}]
["Sch XI(a)(iv)","Loss Triangles - Casualty",null,{"$f":"\"Casualty - Incurred - Line 7 - Cat Loss. - \"&$E$2-4","v":"Casualty - Incurred - Line 7 - Cat Loss. - 2015"},null,null,null,null,{"$f":"+'Sch XI(a)(iv)'!M17","v":0}]
["Sch XI(a)(iv)","Loss Triangles - Casualty",null,{"$f":"\"Casualty - Paid - Line 15 - \"&$E$2-8&\" - \"&$E$2-8","v":"Casualty - Paid - Line 15 - 2011 - 2011"},null,null,null,null,{"$f":"+'Sch XI(a)(iv)'!D31","v":0}]
["Sch XI(a)(iv)","Loss Triangles - Casualty",null,{"$f":"\"Casualty - Paid - Line 15 - \"&$E$2-6&\" - \"&$E$2-8","v":"Casualty - Paid - Line 15 - 2013 - 2011"},null,null,null,null,{"$f":"+'Sch XI(a)(iv)'!F31","v":0}]
["Sch XI(a)(iv)","Loss Triangles - Casualty",null,{"$f":"\"Casualty - Paid - Line 13 - \"&$E$2-5&\" - Prior\"","v":"Casualty - Paid - Line 13 - 2014 - Prior"},null,null,null,null,{"$f":"+'Sch XI(a)(iv)'!G29","v":0}]
["Sch XI(a)(iv)","Loss Triangles - Casualty",null,{"$f":"\"Casualty - Paid - Line 16 - \"&$E$2-4&\" - \"&$E$2-7","v":"Casualty - Paid - Line 16 - 2015 - 2012"},null,null,null,null,{"$f":"+'Sch XI(a)(iv)'!H32","v":0}]
["Sch XI(a)(iv)","Loss Triangles - Casualty",null,{"$f":"\"Casualty - Paid - Line 14 - \"&$E$2-3&\" - \"&$E$2-9","v":"Casualty - Paid - Line 14 - 2016 - 2010"},null,null,null,null,{"$f":"+'Sch XI(a)(iv)'!I30","v":0}]
["Sch XI(a)(iv)","Loss Triangles - Casualty",null,{"$f":"\"Casualty - Paid - Line 20 - \"&$E$2-3&\" - \"&$E$2-3","v":"Casualty - Paid - Line 20 - 2016 - 2016"},null,null,null,null,{"$f":"+'Sch XI(a)(iv)'!I36","v":0}]
["Sch XI(a)(iv)","Loss Triangles - Casualty",null,{"$f":"\"Casualty - Paid - Line 19 - \"&$E$2-2&\" - \"&$E$2-4","v":"Casualty - Paid - Line 19 - 2017 - 2015"},null,null,null,null,{"$f":"+'Sch XI(a)(iv)'!J35","v":0}]
["Sch XI(a)(iv)","Loss Triangles - Casualty",null,{"$f":"\"Casualty - Paid - Line 13 - \"&$E$2-1&\" - Prior\"","v":"Casualty - Paid - Line 13 - 2018 - Prior"},null,null,null,null,{"$f":"+'Sch XI(a)(iv)'!K29","v":0}]
["Sch XI(a)(iv)","Loss Triangles - Casualty",null,{"$f":"\"Casualty - Paid - Line 22 - \"&$E$2-1&\" - \"&$E$2-1","v":"Casualty - Paid - Line 22 - 2018 - 2018"},null,null,null,null,{"$f":"+'Sch XI(a)(iv)'!K38","v":0}]
["Sch XI(a)(iv)","Loss Triangles - Casualty",null,{"$f":"\"Casualty - Paid - Line 19 - \"&$E$2&\" - \"&$E$2-4","v":"Casualty - Paid - Line 19 - 2019 - 2015"},null,null,null,null,{"$f":"+'Sch XI(a)(iv)'!L35","v":0}]
["Sch XI(a)(iv)","Loss Triangles - Casualty",null,{"$f":"\"Casualty - Paid - Line 22 - \"&$E$2&\" - \"&$E$2-1","v":"Casualty - Paid - Line 22 - 2019 - 2018"},null,null,null,null,{"$f":"+'Sch XI(a)(iv)'!L38","v":0}]
["Sch XI(a)(iv)","Loss Triangles - Casualty",null,{"$f":"\"Casualty - Paid - Line 20 - Cat Loss. - \"&$E$2-3","v":"Casualty - Paid - Line 20 - Cat Loss. - 2016"},null,null,null,null,{"$f":"+'Sch XI(a)(iv)'!M36","v":0}]
["Sch XI(a)(iv)","Loss Triangles - Casualty",null,{"$f":"\"Casualty - Reserve - Line 27 - \"&$E$2-8&\" - \"&$E$2-8","v":"Casualty - Reserve - Line 27 - 2011 - 2011"},null,null,null,null,{"$f":"+'Sch XI(a)(iv)'!D49","v":0}]
["Sch XI(a)(iv)","Loss Triangles - Casualty",null,{"$f":"\"Casualty - Reserve - Line 27 - \"&$E$2-7&\" - \"&$E$2-8","v":"Casualty - Reserve - Line 27 - 2012 - 2011"},null,null,null,null,{"$f":"+'Sch XI(a)(iv)'!E49","v":0}]
["Sch XI(a)(iv)","Loss Triangles - Casualty",null,{"$f":"\"Casualty - Reserve - Line 25 - \"&$E$2-5&\" - Prior\"","v":"Casualty - Reserve - Line 25 - 2014 - Prior"},null,null,null,null,{"$f":"+'Sch XI(a)(iv)'!G47","v":0}]
["Sch XI(a)(iv)","Loss Triangles - Casualty",null,{"$f":"\"Casualty - Reserve - Line 28 - \"&$E$2-5&\" - \"&$E$2-7","v":"Casualty - Reserve - Line 28 - 2014 - 2012"},null,null,null,null,{"$f":"+'Sch XI(a)(iv)'!G50","v":0}]
["Sch XI(a)(iv)","Loss Triangles - Casualty",null,{"$f":"\"Casualty - Reserve - Line 31 - \"&$E$2-4&\" - \"&$E$2-4","v":"Casualty - Reserve - Line 31 - 2015 - 2015"},null,null,null,null,{"$f":"+'Sch XI(a)(iv)'!H53","v":0}]
["Sch XI(a)(iv)","Loss Triangles - Casualty",null,{"$f":"\"Casualty - Reserve - Line 31 - \"&$E$2-3&\" - \"&$E$2-4","v":"Casualty - Reserve - Line 31 - 2016 - 2015"},null,null,null,null,{"$f":"+'Sch XI(a)(iv)'!I53","v":0}]
["Sch XI(a)(iv)","Loss Triangles - Casualty",null,{"$f":"\"Casualty - Reserve - Line 27 - \"&$E$2-2&\" - \"&$E$2-8","v":"Casualty - Reserve - Line 27 - 2017 - 2011"},null,null,null,null,{"$f":"+'Sch XI(a)(iv)'!J49","v":0}]
["Sch XI(a)(iv)","Loss Triangles - Casualty",null,{"$f":"\"Casualty - Reserve - Line 25 - \"&$E$2-1&\" - Prior\"","v":"Casualty - Reserve - Line 25 - 2018 - Prior"},null,null,null,null,{"$f":"+'Sch XI(a)(iv)'!K47","v":0}]
["Sch XI(a)(iv)","Loss Triangles - Casualty",null,{"$f":"\"Casualty - Reserve - Line 34 - \"&$E$2-1&\" - \"&$E$2-1","v":"Casualty - Reserve - Line 34 - 2018 - 2018"},null,null,null,null,{"$f":"+'Sch XI(a)(iv)'!K56","v":0}]
["Sch XI(a)(iv)","Loss Triangles - Casualty",null,{"$f":"\"Casualty - Reserve - Line 27 - \"&$E$2&\" - \"&$E$2-8","v":"Casualty - Reserve - Line 27 - 2019 - 2011"},null,null,null,null,{"$f":"+'Sch XI(a)(iv)'!L49","v":0}]
["Sch XI(a)(iv)","Loss Triangles - Casualty",null,{"$f":"\"Casualty - Reserve - Line 34 - \"&$E$2&\" - \"&$E$2-1","v":"Casualty - Reserve - Line 34 - 2019 - 2018"},null,null,null,null,{"$f":"+'Sch XI(a)(iv)'!L56","v":0}]
["Sch XI(a)(iv)","Loss Triangles - Casualty",null,{"$f":"\"Casualty - Reserve - Line 26 - Cat Loss. - \"&$E$2-9","v":"Casualty - Reserve - Line 26 - Cat Loss. - 2010"},null,null,null,null,{"$f":"+'Sch XI(a)(iv)'!M48","v":0}]
["Sch XI(a)(iv)","Loss Triangles - Casualty",null,{"$f":"\"Casualty - Reserve - Line 34 - Cat Loss. - \"&$E$2-1","v":"Casualty - Reserve - Line 34 - Cat Loss. - 2018"},null,null,null,null,{"$f":"+'Sch XI(a)(iv)'!M56","v":0}]
["Sch XI(a)(iv)","Loss Triangles - Casualty",null,{"$f":"\"Casualty - GPW - Line 44 - \"&$E$2-3","v":"Casualty - GPW - Line 44 - 2016"},null,null,null,null,{"$f":"+'Sch XI(a)(iv)'!C74","v":0}]
["Sch XI(a)(iv)","Loss Triangles - Casualty",null,{"$f":"\"Casualty - GPW - Line 47 - \"&$E$2","v":"Casualty - GPW - Line 47 - 2019"},null,null,null,null,{"$f":"+'Sch XI(a)(iv)'!C77","v":0}]
["Sch XI(a)(iv)","Loss Triangles - Casualty",null,{"$f":"\"Casualty - Gross Premiums Earned - Line 43 - \"&$E$2-4","v":"Casualty - Gross Premiums Earned - Line 43 - 2015"},null,null,null,null,{"$f":"+'Sch XI(a)(iv)'!D73","v":0}]
["Sch XI(a)(iv)","Loss Triangles - Casualty",null,{"$f":"\"Casualty - NPW - Line 41 - \"&$E$2-6","v":"Casualty - NPW - Line 41 - 2013"},null,null,null,null,{"$f":"+'Sch XI(a)(iv)'!E71","v":0}]
["Sch XI(a)(iv)","Loss Triangles - Casualty",null,{"$f":"\"Casualty - NPW - Line 44 - \"&$E$2-3","v":"Casualty - NPW - Line 44 - 2016"},null,null,null,null,{"$f":"+'Sch XI(a)(iv)'!E74","v":0}]
["Sch XI(a)(iv)","Loss Triangles - Casualty",null,{"$f":"\"Casualty - Net Premiums Earned - Line 40 - \"&$E$2-7","v":"Casualty - Net Premiums Earned - Line 40 - 2012"},null,null,null,null,{"$f":"+'Sch XI(a)(iv)'!F70","v":0}]
["Sch XI(a)(iv)","Loss Triangles - Casualty",null,{"$f":"\"Casualty - Net Premiums Earned - Line 43 - \"&$E$2-4","v":"Casualty - Net Premiums Earned - Line 43 - 2015"},null,null,null,null,{"$f":"+'Sch XI(a)(iv)'!F73","v":0}]
["Sch XI(a)(iv)","Loss Triangles - Casualty",null,{"$f":"\"Casualty - Expenses Paid - Line 42 - \"&$E$2-5","v":"Casualty - Expenses Paid - Line 42 - 2014"},null,null,null,null,{"$f":"+'Sch XI(a)(iv)'!G72","v":0}]
["Sch XI(a)(iv)","Loss Triangles - Casualty",null,{"$f":"\"Casualty - Expenses Incurred - Line 38 - \"&$E$2-9","v":"Casualty - Expenses Incurred - Line 38 - 2010"},null,null,null,null,{"$f":"+'Sch XI(a)(iv)'!H68","v":0}]
["Sch XI(a)(iv)","Loss Triangles - Casualty",null,{"$f":"\"Casualty - Expenses Incurred - Line 41 - \"&$E$2-6","v":"Casualty - Expenses Incurred - Line 41 - 2013"},null,null,null,null,{"$f":"+'Sch XI(a)(iv)'!H71","v":0}]
["Sch XI(a)(iv)","Loss Triangles - Casualty",null,{"$f":"\"Casualty - Brokerage - Line 37 - Prior\"","v":"Casualty - Brokerage - Line 37 - Prior"},null,null,null,null,{"$f":"+'Sch XI(a)(iv)'!J67","v":0}]
["Sch XI(a)(iv)","Loss Triangles - Casualty",null,{"$f":"\"Casualty - Brokerage - Line 46 - \"&$E$2-1","v":"Casualty - Brokerage - Line 46 - 2018"},null,null,null,null,{"$f":"+'Sch XI(a)(iv)'!J76","v":0}]
["Sch XI(a)(iv)","Loss Triangles - Casualty",null,{"$f":"\"Casualty - G&A - Line 38 - \"&$E$2-9","v":"Casualty - G&A - Line 38 - 2010"},null,null,null,null,{"$f":"+'Sch XI(a)(iv)'!K68","v":0}]
["Sch XI(a)(iv)","Loss Triangles - Casualty",null,{"$f":"\"Casualty - G&A - Line 47 - \"&$E$2","v":"Casualty - G&A - Line 47 - 2019"},null,null,null,null,{"$f":"+'Sch XI(a)(iv)'!K77","v":0}]
["Sch XI(a)(iv)","Loss Triangles - Casualty",null,{"$f":"\"Casualty - Personnel Costs - Line 38 - \"&$E$2-9","v":"Casualty - Personnel Costs - Line 38 - 2010"},null,null,null,null,{"$f":"+'Sch XI(a)(iv)'!L68","v":0}]
["Sch XI(a)(iv)","Loss Triangles - Casualty",null,{"$f":"\"Casualty - Personnel Costs - Line 45 - \"&$E$2-2","v":"Casualty - Personnel Costs - Line 45 - 2017"},null,null,null,null,{"$f":"+'Sch XI(a)(iv)'!L75","v":0}]
["Sch XI(a)(iv)","Loss Triangles - Casualty",null,{"$f":"\"Casualty - Other Exp. - Line 43 - \"&$E$2-4","v":"Casualty - Other Exp. - Line 43 - 2015"},null,null,null,null,{"$f":"+'Sch XI(a)(iv)'!M73","v":0}]
["Sch XI(a)(iv)","Loss Triangles - Casualty",null,{"$f":"\"Casualty - Other Exp. - Line 46 - \"&$E$2-1","v":"Casualty - Other Exp. - Line 46 - 2018"},null,null,null,null,{"$f":"+'Sch XI(a)(iv)'!M76","v":0}]
["Sch XI(a)(v)","Loss Triangles - Casualty Non-Proportional",null,{"$f":"\"Cas. Non-Prop.- Incurred - Line 3 - \"&$E$2-8&\" - \"&$E$2-8","v":"Cas. Non-Prop.- Incurred - Line 3 - 2011 - 2011"},null,null,null,null,{"$f":"+'Sch XI(a)(v)'!D13","v":0}]
["Sch XI(a)(v)","Loss Triangles - Casualty Non-Proportional",null,{"$f":"\"Cas. Non-Prop.- Incurred - Line 5 - \"&$E$2-6&\" - \"&$E$2-6","v":"Cas. Non-Prop.- Incurred - Line 5 - 2013 - 2013"},null,null,null,null,{"$f":"+'Sch XI(a)(v)'!F15","v":0}]
["Sch XI(a)(v)","Loss Triangles - Casualty Non-Proportional",null,{"$f":"\"Cas. Non-Prop.- Incurred - Line 1 - \"&$E$2-4&\" - Prior\"","v":"Cas. Non-Prop.- Incurred - Line 1 - 2015 - Prior"},null,null,null,null,{"$f":"+'Sch XI(a)(v)'!H11","v":0}]
["Sch XI(a)(v)","Loss Triangles - Casualty Non-Proportional",null,{"$f":"\"Cas. Non-Prop.- Incurred - Line 5 - \"&$E$2-4&\" - \"&$E$2-6","v":"Cas. Non-Prop.- Incurred - Line 5 - 2015 - 2013"},null,null,null,null,{"$f":"+'Sch XI(a)(v)'!H15","v":0}]
["Sch XI(a)(v)","Loss Triangles - Casualty Non-Proportional",null,{"$f":"\"Cas. Non-Prop.- Incurred - Line 1 - \"&$E$2-3&\" - Prior\"","v":"Cas. Non-Prop.- Incurred - Line 1 - 2016 - Prior"},null,null,null,null,{"$f":"+'Sch XI(a)(v)'!I11","v":0}]
["Sch XI(a)(v)","Loss Triangles - Casualty Non-Proportional",null,{"$f":"\"Cas. Non-Prop.- Incurred - Line 8 - \"&$E$2-3&\" - \"&$E$2-3","v":"Cas. Non-Prop.- Incurred - Line 8 - 2016 - 2016"},null,null,null,null,{"$f":"+'Sch XI(a)(v)'!I18","v":0}]
["Sch XI(a)(v)","Loss Triangles - Casualty Non-Proportional",null,{"$f":"\"Cas. Non-Prop.- Incurred - Line 9 - \"&$E$2-2&\" - \"&$E$2-2","v":"Cas. Non-Prop.- Incurred - Line 9 - 2017 - 2017"},null,null,null,null,{"$f":"+'Sch XI(a)(v)'!J19","v":0}]
["Sch XI(a)(v)","Loss Triangles - Casualty Non-Proportional",null,{"$f":"\"Cas. Non-Prop.- Incurred - Line 3 - \"&$E$2-1&\" - \"&$E$2-8","v":"Cas. Non-Prop.- Incurred - Line 3 - 2018 - 2011"},null,null,null,null,{"$f":"+'Sch XI(a)(v)'!K13","v":0}]
["Sch XI(a)(v)","Loss Triangles - Casualty Non-Proportional",null,{"$f":"\"Cas. Non-Prop.- Incurred - Line 10 - \"&$E$2-1&\" - \"&$E$2-1","v":"Cas. Non-Prop.- Incurred - Line 10 - 2018 - 2018"},null,null,null,null,{"$f":"+'Sch XI(a)(v)'!K20","v":0}]
["Sch XI(a)(v)","Loss Triangles - Casualty Non-Proportional",null,{"$f":"\"Cas. Non-Prop.- Incurred - Line 8 - \"&$E$2&\" - \"&$E$2-3","v":"Cas. Non-Prop.- Incurred - Line 8 - 2019 - 2016"},null,null,null,null,{"$f":"+'Sch XI(a)(v)'!L18","v":0}]
["Sch XI(a)(v)","Loss Triangles - Casualty Non-Proportional",null,{"$f":"\"Cas. Non-Prop.- Incurred - Line 11 - \"&$E$2&\" - \"&$E$2","v":"Cas. Non-Prop.- Incurred - Line 11 - 2019 - 2019"},null,null,null,null,{"$f":"+'Sch XI(a)(v)'!L21","v":0}]
["Sch XI(a)(v)","Loss Triangles - Casualty Non-Proportional",null,{"$f":"\"Cas. Non-Prop.- Incurred - Line 9 - Cat Loss. - \"&$E$2-2","v":"Cas. Non-Prop.- Incurred - Line 9 - Cat Loss. - 2017"},null,null,null,null,{"$f":"+'Sch XI(a)(v)'!M19","v":0}]
["Sch XI(a)(v)","Loss Triangles - Casualty Non-Proportional",null,{"$f":"\"Cas. Non-Prop.- Paid - Line 13 - \"&$E$2-9&\" - Prior\"","v":"Cas. Non-Prop.- Paid - Line 13 - 2010 - Prior"},null,null,null,null,{"$f":"+'Sch XI(a)(v)'!C29","v":0}]
["Sch XI(a)(v)","Loss Triangles - Casualty Non-Proportional",null,{"$f":"\"Cas. Non-Prop.- Paid - Line 15 - \"&$E$2-7&\" - \"&$E$2-8","v":"Cas. Non-Prop.- Paid - Line 15 - 2012 - 2011"},null,null,null,null,{"$f":"+'Sch XI(a)(v)'!E31","v":0}]
["Sch XI(a)(v)","Loss Triangles - Casualty Non-Proportional",null,{"$f":"\"Cas. Non-Prop.- Paid - Line 15 - \"&$E$2-5&\" - \"&$E$2-8","v":"Cas. Non-Prop.- Paid - Line 15 - 2014 - 2011"},null,null,null,null,{"$f":"+'Sch XI(a)(v)'!G31","v":0}]
["Sch XI(a)(v)","Loss Triangles - Casualty Non-Proportional",null,{"$f":"\"Cas. Non-Prop.- Paid - Line 18 - \"&$E$2-5&\" - \"&$E$2-5","v":"Cas. Non-Prop.- Paid - Line 18 - 2014 - 2014"},null,null,null,null,{"$f":"+'Sch XI(a)(v)'!G34","v":0}]
["Sch XI(a)(v)","Loss Triangles - Casualty Non-Proportional",null,{"$f":"\"Cas. Non-Prop.- Paid - Line 19 - \"&$E$2-4&\" - \"&$E$2-4","v":"Cas. Non-Prop.- Paid - Line 19 - 2015 - 2015"},null,null,null,null,{"$f":"+'Sch XI(a)(v)'!H35","v":0}]
["Sch XI(a)(v)","Loss Triangles - Casualty Non-Proportional",null,{"$f":"\"Cas. Non-Prop.- Paid - Line 14 - \"&$E$2-2&\" - \"&$E$2-9","v":"Cas. Non-Prop.- Paid - Line 14 - 2017 - 2010"},null,null,null,null,{"$f":"+'Sch XI(a)(v)'!J30","v":0}]
["Sch XI(a)(v)","Loss Triangles - Casualty Non-Proportional",null,{"$f":"\"Cas. Non-Prop.- Paid - Line 15 - \"&$E$2-2&\" - \"&$E$2-8","v":"Cas. Non-Prop.- Paid - Line 15 - 2017 - 2011"},null,null,null,null,{"$f":"+'Sch XI(a)(v)'!J31","v":0}]
["Sch XI(a)(v)","Loss Triangles - Casualty Non-Proportional",null,{"$f":"\"Cas. Non-Prop.- Paid - Line 15 - \"&$E$2-1&\" - \"&$E$2-8","v":"Cas. Non-Prop.- Paid - Line 15 - 2018 - 2011"},null,null,null,null,{"$f":"+'Sch XI(a)(v)'!K31","v":0}]
["Sch XI(a)(v)","Loss Triangles - Casualty Non-Proportional",null,{"$f":"\"Cas. Non-Prop.- Paid - Line 18 - \"&$E$2-1&\" - \"&$E$2-5","v":"Cas. Non-Prop.- Paid - Line 18 - 2018 - 2014"},null,null,null,null,{"$f":"+'Sch XI(a)(v)'!K34","v":0}]
["Sch XI(a)(v)","Loss Triangles - Casualty Non-Proportional",null,{"$f":"\"Cas. Non-Prop.- Paid - Line 15 - \"&$E$2&\" - \"&$E$2-8","v":"Cas. Non-Prop.- Paid - Line 15 - 2019 - 2011"},null,null,null,null,{"$f":"+'Sch XI(a)(v)'!L31","v":0}]
["Sch XI(a)(v)","Loss Triangles - Casualty Non-Proportional",null,{"$f":"\"Cas. Non-Prop.- Paid - Line 13 - Cat Loss - Prior\"","v":"Cas. Non-Prop.- Paid - Line 13 - Cat Loss - Prior"},null,null,null,null,{"$f":"+'Sch XI(a)(v)'!M29","v":0}]
["Sch XI(a)(v)","Loss Triangles - Casualty Non-Proportional",null,{"$f":"\"Cas. Non-Prop.- Paid - Line 18 - Cat Loss. - \"&$E$2-5","v":"Cas. Non-Prop.- Paid - Line 18 - Cat Loss. - 2014"},null,null,null,null,{"$f":"+'Sch XI(a)(v)'!M34","v":0}]
["Sch XI(a)(v)","Loss Triangles - Casualty Non-Proportional",null,{"$f":"\"Cas. Non-Prop.- Reserve - Line 25 - \"&$E$2-9&\" - Prior\"","v":"Cas. Non-Prop.- Reserve - Line 25 - 2010 - Prior"},null,null,null,null,{"$f":"+'Sch XI(a)(v)'!C47","v":0}]
["Sch XI(a)(v)","Loss Triangles - Casualty Non-Proportional",null,{"$f":"\"Cas. Non-Prop.- Reserve - Line 25 - \"&$E$2-6&\" - Prior\"","v":"Cas. Non-Prop.- Reserve - Line 25 - 2013 - Prior"},null,null,null,null,{"$f":"+'Sch XI(a)(v)'!F47","v":0}]
["Sch XI(a)(v)","Loss Triangles - Casualty Non-Proportional",null,{"$f":"\"Cas. Non-Prop.- Reserve - Line 26 - \"&$E$2-6&\" - \"&$E$2-9","v":"Cas. Non-Prop.- Reserve - Line 26 - 2013 - 2010"},null,null,null,null,{"$f":"+'Sch XI(a)(v)'!F48","v":0}]
["Sch XI(a)(v)","Loss Triangles - Casualty Non-Proportional",null,{"$f":"\"Cas. Non-Prop.- Reserve - Line 30 - \"&$E$2-5&\" - \"&$E$2-5","v":"Cas. Non-Prop.- Reserve - Line 30 - 2014 - 2014"},null,null,null,null,{"$f":"+'Sch XI(a)(v)'!G52","v":0}]
["Sch XI(a)(v)","Loss Triangles - Casualty Non-Proportional",null,{"$f":"\"Cas. Non-Prop.- Reserve - Line 27 - \"&$E$2-4&\" - \"&$E$2-8","v":"Cas. Non-Prop.- Reserve - Line 27 - 2015 - 2011"},null,null,null,null,{"$f":"+'Sch XI(a)(v)'!H49","v":0}]
["Sch XI(a)(v)","Loss Triangles - Casualty Non-Proportional",null,{"$f":"\"Cas. Non-Prop.- Reserve - Line 27 - \"&$E$2-3&\" - \"&$E$2-8","v":"Cas. Non-Prop.- Reserve - Line 27 - 2016 - 2011"},null,null,null,null,{"$f":"+'Sch XI(a)(v)'!I49","v":0}]
["Sch XI(a)(v)","Loss Triangles - Casualty Non-Proportional",null,{"$f":"\"Cas. Non-Prop.- Reserve - Line 25 - \"&$E$2-2&\" - Prior\"","v":"Cas. Non-Prop.- Reserve - Line 25 - 2017 - Prior"},null,null,null,null,{"$f":"+'Sch XI(a)(v)'!J47","v":0}]
["Sch XI(a)(v)","Loss Triangles - Casualty Non-Proportional",null,{"$f":"\"Cas. Non-Prop.- Reserve - Line 27 - \"&$E$2-1&\" - \"&$E$2-8","v":"Cas. Non-Prop.- Reserve - Line 27 - 2018 - 2011"},null,null,null,null,{"$f":"+'Sch XI(a)(v)'!K49","v":0}]
["Sch XI(a)(v)","Loss Triangles - Casualty Non-Proportional",null,{"$f":"\"Cas. Non-Prop.- Reserve - Line 30 - \"&$E$2-1&\" - \"&$E$2-5","v":"Cas. Non-Prop.- Reserve - Line 30 - 2018 - 2014"},null,null,null,null,{"$f":"+'Sch XI(a)(v)'!K52","v":0}]
["Sch XI(a)(v)","Loss Triangles - Casualty Non-Proportional",null,{"$f":"\"Cas. Non-Prop.- Reserve - Line 29 - \"&$E$2&\" - \"&$E$2-6","v":"Cas. Non-Prop.- Reserve - Line 29 - 2019 - 2013"},null,null,null,null,{"$f":"+'Sch XI(a)(v)'!L51","v":0}]
["Sch XI(a)(v)","Loss Triangles - Casualty Non-Proportional",null,{"$f":"\"Cas. Non-Prop.- Reserve - Line 30 - \"&$E$2&\" - \"&$E$2-5","v":"Cas. Non-Prop.- Reserve - Line 30 - 2019 - 2014"},null,null,null,null,{"$f":"+'Sch XI(a)(v)'!L52","v":0}]
["Sch XI(a)(v)","Loss Triangles - Casualty Non-Proportional",null,{"$f":"\"Cas. Non-Prop.- Reserve - Line 28 - Cat Loss. - \"&$E$2-7","v":"Cas. Non-Prop.- Reserve - Line 28 - Cat Loss. - 2012"},null,null,null,null,{"$f":"+'Sch XI(a)(v)'!M50","v":0}]
["Sch XI(a)(v)","Loss Triangles - Casualty Non-Proportional",null,{"$f":"\"Cas. Non-Prop.- Reserve - Line 31 - Cat Loss. - \"&$E$2-4","v":"Cas. Non-Prop.- Reserve - Line 31 - Cat Loss. - 2015"},null,null,null,null,{"$f":"+'Sch XI(a)(v)'!M53","v":0}]
["Sch XI(a)(v)","Loss Triangles - Casualty Non-Proportional",null,{"$f":"\"Cas. Non-Prop.- GPW - Line 44 - \"&$E$2-3","v":"Cas. Non-Prop.- GPW - Line 44 - 2016"},null,null,null,null,{"$f":"+'Sch XI(a)(v)'!C74","v":0}]
["Sch XI(a)(v)","Loss Triangles - Casualty Non-Proportional",null,{"$f":"\"Cas. Non-Prop.- Gross Premiums Earned - Line 38 - \"&$E$2-9","v":"Cas. Non-Prop.- Gross Premiums Earned - Line 38 - 2010"},null,null,null,null,{"$f":"+'Sch XI(a)(v)'!D68","v":0}]
["Sch XI(a)(v)","Loss Triangles - Casualty Non-Proportional",null,{"$f":"\"Cas. Non-Prop.- Gross Premiums Earned - Line 45 - \"&$E$2-2","v":"Cas. Non-Prop.- Gross Premiums Earned - Line 45 - 2017"},null,null,null,null,{"$f":"+'Sch XI(a)(v)'!D75","v":0}]
["Sch XI(a)(v)","Loss Triangles - Casualty Non-Proportional",null,{"$f":"\"Cas. Non-Prop.- NPW - Line 37 - Prior\"","v":"Cas. Non-Prop.- NPW - Line 37 - Prior"},null,null,null,null,{"$f":"+'Sch XI(a)(v)'!E67","v":"XXX"}]
["Sch XI(a)(v)","Loss Triangles - Casualty Non-Proportional",null,{"$f":"\"Cas. Non-Prop.- NPW - Line 46 - \"&$E$2-1","v":"Cas. Non-Prop.- NPW - Line 46 - 2018"},null,null,null,null,{"$f":"+'Sch XI(a)(v)'!E76","v":0}]
["Sch XI(a)(v)","Loss Triangles - Casualty Non-Proportional",null,{"$f":"\"Cas. Non-Prop.- NPW - Line 47 - \"&$E$2","v":"Cas. Non-Prop.- NPW - Line 47 - 2019"},null,null,null,null,{"$f":"+'Sch XI(a)(v)'!E77","v":0}]
["Sch XI(a)(v)","Loss Triangles - Casualty Non-Proportional",null,{"$f":"\"Cas. Non-Prop.- Net Premiums Earned - Line 45 - \"&$E$2-2","v":"Cas. Non-Prop.- Net Premiums Earned - Line 45 - 2017"},null,null,null,null,{"$f":"+'Sch XI(a)(v)'!F75","v":0}]
["Sch XI(a)(v)","Loss Triangles - Casualty Non-Proportional",null,{"$f":"\"Cas. Non-Prop.- Expenses Paid - Line 41 - \"&$E$2-6","v":"Cas. Non-Prop.- Expenses Paid - Line 41 - 2013"},null,null,null,null,{"$f":"+'Sch XI(a)(v)'!G71","v":0}]
["Sch XI(a)(v)","Loss Triangles - Casualty Non-Proportional",null,{"$f":"\"Cas. Non-Prop.- Expenses Paid - Line 45 - \"&$E$2-2","v":"Cas. Non-Prop.- Expenses Paid - Line 45 - 2017"},null,null,null,null,{"$f":"+'Sch XI(a)(v)'!G75","v":0}]
["Sch XI(a)(v)","Loss Triangles - Casualty Non-Proportional",null,{"$f":"\"Cas. Non-Prop.- Expenses Incurred - Line 43 - \"&$E$2-4","v":"Cas. Non-Prop.- Expenses Incurred - Line 43 - 2015"},null,null,null,null,{"$f":"+'Sch XI(a)(v)'!H73","v":0}]
["Sch XI(a)(v)","Loss Triangles - Casualty Non-Proportional",null,{"$f":"\"Cas. Non-Prop.- Brokerage - Line 39 - \"&$E$2-8","v":"Cas. Non-Prop.- Brokerage - Line 39 - 2011"},null,null,null,null,{"$f":"+'Sch XI(a)(v)'!J69","v":0}]
["Sch XI(a)(v)","Loss Triangles - Casualty Non-Proportional",null,{"$f":"\"Cas. Non-Prop.- Brokerage - Line 42 - \"&$E$2-5","v":"Cas. Non-Prop.- Brokerage - Line 42 - 2014"},null,null,null,null,{"$f":"+'Sch XI(a)(v)'!J72","v":0}]
["Sch XI(a)(v)","Loss Triangles - Casualty Non-Proportional",null,{"$f":"\"Cas. Non-Prop.- G&A - Line 40 - \"&$E$2-7","v":"Cas. Non-Prop.- G&A - Line 40 - 2012"},null,null,null,null,{"$f":"+'Sch XI(a)(v)'!K70","v":0}]
["Sch XI(a)(v)","Loss Triangles - Casualty Non-Proportional",null,{"$f":"\"Cas. Non-Prop.- G&A - Line 45 - \"&$E$2-2","v":"Cas. Non-Prop.- G&A - Line 45 - 2017"},null,null,null,null,{"$f":"+'Sch XI(a)(v)'!K75","v":0}]
["Sch XI(a)(v)","Loss Triangles - Casualty Non-Proportional",null,{"$f":"\"Cas. Non-Prop.- Personnel Costs - Line 40 - \"&$E$2-7","v":"Cas. Non-Prop.- Personnel Costs - Line 40 - 2012"},null,null,null,null,{"$f":"+'Sch XI(a)(v)'!L70","v":0}]
["Sch XI(a)(v)","Loss Triangles - Casualty Non-Proportional",null,{"$f":"\"Cas. Non-Prop.- Personnel Costs - Line 47 - \"&$E$2","v":"Cas. Non-Prop.- Personnel Costs - Line 47 - 2019"},null,null,null,null,{"$f":"+'Sch XI(a)(v)'!L77","v":0}]
["Sch XI(a)(v)","Loss Triangles - Casualty Non-Proportional",null,{"$f":"\"Cas. Non-Prop.- Other Exp. - Line 39 - \"&$E$2-8","v":"Cas. Non-Prop.- Other Exp. - Line 39 - 2011"},null,null,null,null,{"$f":"+'Sch XI(a)(v)'!M69","v":0}]
["Sch XI(a)(v)","Loss Triangles - Casualty Non-Proportional",null,"Casualty Non-Proportional - Note",null,null,null,null,{"$f":"+'Sch XI(a)(v)'!B81","v":0}]
["Sch XI(a)(vi)","Loss Triangles - Financial Lines",null,{"$f":"\"Fin Lines Incurred - Line 2 - \"&$E$2-7&\" - \"&$E$2-9","v":"Fin Lines Incurred - Line 2 - 2012 - 2010"},null,null,null,null,{"$f":"+'Sch XI(a)(vi)'!E12","v":0}]
["Sch XI(a)(vi)","Loss Triangles - Financial Lines",null,{"$f":"\"Fin Lines Incurred - Line 1 - \"&$E$2-6&\" - Prior\"","v":"Fin Lines Incurred - Line 1 - 2013 - Prior"},null,null,null,null,{"$f":"+'Sch XI(a)(vi)'!F11","v":0}]
["Sch XI(a)(vi)","Loss Triangles - Financial Lines",null,{"$f":"\"Fin Lines Incurred - Line 5 - \"&$E$2-5&\" - \"&$E$2-6","v":"Fin Lines Incurred - Line 5 - 2014 - 2013"},null,null,null,null,{"$f":"+'Sch XI(a)(vi)'!G15","v":0}]
["Sch XI(a)(vi)","Loss Triangles - Financial Lines",null,{"$f":"\"Fin Lines Incurred - Line 1 - \"&$E$2-4&\" - Prior\"","v":"Fin Lines Incurred - Line 1 - 2015 - Prior"},null,null,null,null,{"$f":"+'Sch XI(a)(vi)'!H11","v":0}]
["Sch XI(a)(vi)","Loss Triangles - Financial Lines",null,{"$f":"\"Fin Lines Incurred - Line 3 - \"&$E$2-3&\" - \"&$E$2-8","v":"Fin Lines Incurred - Line 3 - 2016 - 2011"},null,null,null,null,{"$f":"+'Sch XI(a)(vi)'!I13","v":0}]
["Sch XI(a)(vi)","Loss Triangles - Financial Lines",null,{"$f":"\"Fin Lines Incurred - Line 2 - \"&$E$2-2&\" - \"&$E$2-9","v":"Fin Lines Incurred - Line 2 - 2017 - 2010"},null,null,null,null,{"$f":"+'Sch XI(a)(vi)'!J12","v":0}]
["Sch XI(a)(vi)","Loss Triangles - Financial Lines",null,{"$f":"\"Fin Lines Incurred - Line 5 - \"&$E$2-2&\" - \"&$E$2-6","v":"Fin Lines Incurred - Line 5 - 2017 - 2013"},null,null,null,null,{"$f":"+'Sch XI(a)(vi)'!J15","v":0}]
["Sch XI(a)(vi)","Loss Triangles - Financial Lines",null,{"$f":"\"Fin Lines Incurred - Line 5 - \"&$E$2-1&\" - \"&$E$2-6","v":"Fin Lines Incurred - Line 5 - 2018 - 2013"},null,null,null,null,{"$f":"+'Sch XI(a)(vi)'!K15","v":0}]
["Sch XI(a)(vi)","Loss Triangles - Financial Lines",null,{"$f":"\"Fin Lines Incurred - Line 2 - \"&$E$2&\" - \"&$E$2-9","v":"Fin Lines Incurred - Line 2 - 2019 - 2010"},null,null,null,null,{"$f":"+'Sch XI(a)(vi)'!L12","v":0}]
["Sch XI(a)(vi)","Loss Triangles - Financial Lines",null,{"$f":"\"Fin Lines Incurred - Line 6 - \"&$E$2&\" - \"&$E$2-5","v":"Fin Lines Incurred - Line 6 - 2019 - 2014"},null,null,null,null,{"$f":"+'Sch XI(a)(vi)'!L16","v":0}]
["Sch XI(a)(vi)","Loss Triangles - Financial Lines",null,{"$f":"\"Fin Lines Incurred - Line 2 - Cat Loss. - \"&$E$2-9","v":"Fin Lines Incurred - Line 2 - Cat Loss. - 2010"},null,null,null,null,{"$f":"+'Sch XI(a)(vi)'!M12","v":0}]
["Sch XI(a)(vi)","Loss Triangles - Financial Lines",null,{"$f":"\"Fin Lines Incurred - Line 5 - Cat Loss. - \"&$E$2-6","v":"Fin Lines Incurred - Line 5 - Cat Loss. - 2013"},null,null,null,null,{"$f":"+'Sch XI(a)(vi)'!M15","v":0}]
["Sch XI(a)(vi)","Loss Triangles - Financial Lines",null,{"$f":"\"Fin Lines Paid - Line 13 - \"&$E$2-8&\" - Prior\"","v":"Fin Lines Paid - Line 13 - 2011 - Prior"},null,null,null,null,{"$f":"+'Sch XI(a)(vi)'!D29","v":0}]
["Sch XI(a)(vi)","Loss Triangles - Financial Lines",null,{"$f":"\"Fin Lines Paid - Line 13 - \"&$E$2-6&\" - Prior\"","v":"Fin Lines Paid - Line 13 - 2013 - Prior"},null,null,null,null,{"$f":"+'Sch XI(a)(vi)'!F29","v":0}]
["Sch XI(a)(vi)","Loss Triangles - Financial Lines",null,{"$f":"\"Fin Lines Paid - Line 16 - \"&$E$2-6&\" - \"&$E$2-7","v":"Fin Lines Paid - Line 16 - 2013 - 2012"},null,null,null,null,{"$f":"+'Sch XI(a)(vi)'!F32","v":0}]
["Sch XI(a)(vi)","Loss Triangles - Financial Lines",null,{"$f":"\"Fin Lines Paid - Line 14 - \"&$E$2-4&\" - \"&$E$2-9","v":"Fin Lines Paid - Line 14 - 2015 - 2010"},null,null,null,null,{"$f":"+'Sch XI(a)(vi)'!H30","v":0}]
["Sch XI(a)(vi)","Loss Triangles - Financial Lines",null,{"$f":"\"Fin Lines Paid - Line 17 - \"&$E$2-4&\" - \"&$E$2-6","v":"Fin Lines Paid - Line 17 - 2015 - 2013"},null,null,null,null,{"$f":"+'Sch XI(a)(vi)'!H33","v":0}]
["Sch XI(a)(vi)","Loss Triangles - Financial Lines",null,{"$f":"\"Fin Lines Paid - Line 18 - \"&$E$2-3&\" - \"&$E$2-5","v":"Fin Lines Paid - Line 18 - 2016 - 2014"},null,null,null,null,{"$f":"+'Sch XI(a)(vi)'!I34","v":0}]
["Sch XI(a)(vi)","Loss Triangles - Financial Lines",null,{"$f":"\"Fin Lines Paid - Line 17 - \"&$E$2-2&\" - \"&$E$2-6","v":"Fin Lines Paid - Line 17 - 2017 - 2013"},null,null,null,null,{"$f":"+'Sch XI(a)(vi)'!J33","v":0}]
["Sch XI(a)(vi)","Loss Triangles - Financial Lines",null,{"$f":"\"Fin Lines Paid - Line 20 - \"&$E$2-2&\" - \"&$E$2-3","v":"Fin Lines Paid - Line 20 - 2017 - 2016"},null,null,null,null,{"$f":"+'Sch XI(a)(vi)'!J36","v":0}]
["Sch XI(a)(vi)","Loss Triangles - Financial Lines",null,{"$f":"\"Fin Lines Paid - Line 20 - \"&$E$2-1&\" - \"&$E$2-3","v":"Fin Lines Paid - Line 20 - 2018 - 2016"},null,null,null,null,{"$f":"+'Sch XI(a)(vi)'!K36","v":0}]
["Sch XI(a)(vi)","Loss Triangles - Financial Lines",null,{"$f":"\"Fin Lines Paid - Line 17 - \"&$E$2&\" - \"&$E$2-6","v":"Fin Lines Paid - Line 17 - 2019 - 2013"},null,null,null,null,{"$f":"+'Sch XI(a)(vi)'!L33","v":0}]
["Sch XI(a)(vi)","Loss Triangles - Financial Lines",null,{"$f":"\"Fin Lines Paid - Line 20 - \"&$E$2&\" - \"&$E$2-3","v":"Fin Lines Paid - Line 20 - 2019 - 2016"},null,null,null,null,{"$f":"+'Sch XI(a)(vi)'!L36","v":0}]
["Sch XI(a)(vi)","Loss Triangles - Financial Lines",null,{"$f":"\"Fin Lines Paid - Line 16 - Cat Loss. - \"&$E$2-7","v":"Fin Lines Paid - Line 16 - Cat Loss. - 2012"},null,null,null,null,{"$f":"+'Sch XI(a)(vi)'!M32","v":0}]
["Sch XI(a)(vi)","Loss Triangles - Financial Lines",null,{"$f":"\"Fin Lines Reserve - Line 25 - \"&$E$2-8&\" - Prior\"","v":"Fin Lines Reserve - Line 25 - 2011 - Prior"},null,null,null,null,{"$f":"+'Sch XI(a)(vi)'!D47","v":0}]
["Sch XI(a)(vi)","Loss Triangles - Financial Lines",null,{"$f":"\"Fin Lines Reserve - Line 25 - \"&$E$2-7&\" - Prior\"","v":"Fin Lines Reserve - Line 25 - 2012 - Prior"},null,null,null,null,{"$f":"+'Sch XI(a)(vi)'!E47","v":0}]
["Sch XI(a)(vi)","Loss Triangles - Financial Lines",null,{"$f":"\"Fin Lines Reserve - Line 28 - \"&$E$2-6&\" - \"&$E$2-7","v":"Fin Lines Reserve - Line 28 - 2013 - 2012"},null,null,null,null,{"$f":"+'Sch XI(a)(vi)'!F50","v":0}]
["Sch XI(a)(vi)","Loss Triangles - Financial Lines",null,{"$f":"\"Fin Lines Reserve - Line 26 - \"&$E$2-5&\" - \"&$E$2-9","v":"Fin Lines Reserve - Line 26 - 2014 - 2010"},null,null,null,null,{"$f":"+'Sch XI(a)(vi)'!G48","v":0}]
["Sch XI(a)(vi)","Loss Triangles - Financial Lines",null,{"$f":"\"Fin Lines Reserve - Line 29 - \"&$E$2-4&\" - \"&$E$2-6","v":"Fin Lines Reserve - Line 29 - 2015 - 2013"},null,null,null,null,{"$f":"+'Sch XI(a)(vi)'!H51","v":0}]
["Sch XI(a)(vi)","Loss Triangles - Financial Lines",null,{"$f":"\"Fin Lines Reserve - Line 29 - \"&$E$2-3&\" - \"&$E$2-6","v":"Fin Lines Reserve - Line 29 - 2016 - 2013"},null,null,null,null,{"$f":"+'Sch XI(a)(vi)'!I51","v":0}]
["Sch XI(a)(vi)","Loss Triangles - Financial Lines",null,{"$f":"\"Fin Lines Reserve - Line 31 - \"&$E$2-3&\" - \"&$E$2-4","v":"Fin Lines Reserve - Line 31 - 2016 - 2015"},null,null,null,null,{"$f":"+'Sch XI(a)(vi)'!I53","v":0}]
["Sch XI(a)(vi)","Loss Triangles - Financial Lines",null,{"$f":"\"Fin Lines Reserve - Line 32 - \"&$E$2-2&\" - \"&$E$2-3","v":"Fin Lines Reserve - Line 32 - 2017 - 2016"},null,null,null,null,{"$f":"+'Sch XI(a)(vi)'!J54","v":0}]
["Sch XI(a)(vi)","Loss Triangles - Financial Lines",null,{"$f":"\"Fin Lines Reserve - Line 32 - \"&$E$2-1&\" - \"&$E$2-3","v":"Fin Lines Reserve - Line 32 - 2018 - 2016"},null,null,null,null,{"$f":"+'Sch XI(a)(vi)'!K54","v":0}]
["Sch XI(a)(vi)","Loss Triangles - Financial Lines",null,{"$f":"\"Fin Lines Reserve - Line 25 - \"&$E$2&\" - Prior\"","v":"Fin Lines Reserve - Line 25 - 2019 - Prior"},null,null,null,null,{"$f":"+'Sch XI(a)(vi)'!L47","v":0}]
["Sch XI(a)(vi)","Loss Triangles - Financial Lines",null,{"$f":"\"Fin Lines Reserve - Line 32 - \"&$E$2&\" - \"&$E$2-3","v":"Fin Lines Reserve - Line 32 - 2019 - 2016"},null,null,null,null,{"$f":"+'Sch XI(a)(vi)'!L54","v":0}]
["Sch XI(a)(vi)","Loss Triangles - Financial Lines",null,{"$f":"\"Fin Lines Reserve - Line 35 - \"&$E$2&\" - \"&$E$2","v":"Fin Lines Reserve - Line 35 - 2019 - 2019"},null,null,null,null,{"$f":"+'Sch XI(a)(vi)'!L57","v":0}]
["Sch XI(a)(vi)","Loss Triangles - Financial Lines",null,{"$f":"\"Fin Lines Reserve - Line 33 - Cat Loss. - \"&$E$2-2","v":"Fin Lines Reserve - Line 33 - Cat Loss. - 2017"},null,null,null,null,{"$f":"+'Sch XI(a)(vi)'!M55","v":0}]
["Sch XI(a)(vi)","Loss Triangles - Financial Lines",null,{"$f":"\"Fin Lines GPW - Line 42 - \"&$E$2-5","v":"Fin Lines GPW - Line 42 - 2014"},null,null,null,null,{"$f":"+'Sch XI(a)(vi)'!C72","v":0}]
["Sch XI(a)(vi)","Loss Triangles - Financial Lines",null,{"$f":"\"Fin Lines GPW - Line 45 - \"&$E$2-2","v":"Fin Lines GPW - Line 45 - 2017"},null,null,null,null,{"$f":"+'Sch XI(a)(vi)'!C75","v":0}]
["Sch XI(a)(vi)","Loss Triangles - Financial Lines",null,{"$f":"\"Fin Lines Gross Premiums Earned - Line 41 - \"&$E$2-6","v":"Fin Lines Gross Premiums Earned - Line 41 - 2013"},null,null,null,null,{"$f":"+'Sch XI(a)(vi)'!D71","v":0}]
["Sch XI(a)(vi)","Loss Triangles - Financial Lines",null,{"$f":"\"Fin Lines NPW - Line 39 - \"&$E$2-8","v":"Fin Lines NPW - Line 39 - 2011"},null,null,null,null,{"$f":"+'Sch XI(a)(vi)'!E69","v":0}]
["Sch XI(a)(vi)","Loss Triangles - Financial Lines",null,{"$f":"\"Fin Lines NPW - Line 42 - \"&$E$2-5","v":"Fin Lines NPW - Line 42 - 2014"},null,null,null,null,{"$f":"+'Sch XI(a)(vi)'!E72","v":0}]
["Sch XI(a)(vi)","Loss Triangles - Financial Lines",null,{"$f":"\"Fin Lines Net Premiums Earned - Line 38 - \"&$E$2-9","v":"Fin Lines Net Premiums Earned - Line 38 - 2010"},null,null,null,null,{"$f":"+'Sch XI(a)(vi)'!F68","v":0}]
["Sch XI(a)(vi)","Loss Triangles - Financial Lines",null,{"$f":"\"Fin Lines Net Premiums Earned - Line 41 - \"&$E$2-6","v":"Fin Lines Net Premiums Earned - Line 41 - 2013"},null,null,null,null,{"$f":"+'Sch XI(a)(vi)'!F71","v":0}]
["Sch XI(a)(vi)","Loss Triangles - Financial Lines",null,{"$f":"\"Fin Lines Expenses Paid - Line 39 - \"&$E$2-8","v":"Fin Lines Expenses Paid - Line 39 - 2011"},null,null,null,null,{"$f":"+'Sch XI(a)(vi)'!G69","v":0}]
["Sch XI(a)(vi)","Loss Triangles - Financial Lines",null,{"$f":"\"Fin Lines Expenses Paid - Line 47 - \"&$E$2","v":"Fin Lines Expenses Paid - Line 47 - 2019"},null,null,null,null,{"$f":"+'Sch XI(a)(vi)'!G77","v":0}]
["Sch XI(a)(vi)","Loss Triangles - Financial Lines",null,{"$f":"\"Fin Lines Expenses Incurred - Line 39 - \"&$E$2-8","v":"Fin Lines Expenses Incurred - Line 39 - 2011"},null,null,null,null,{"$f":"+'Sch XI(a)(vi)'!H69","v":0}]
["Sch XI(a)(vi)","Loss Triangles - Financial Lines",null,{"$f":"\"Fin Lines Expenses Incurred - Line 46 - \"&$E$2-1","v":"Fin Lines Expenses Incurred - Line 46 - 2018"},null,null,null,null,{"$f":"+'Sch XI(a)(vi)'!H76","v":0}]
["Sch XI(a)(vi)","Loss Triangles - Financial Lines",null,{"$f":"\"Fin Lines Brokerage - Line 44 - \"&$E$2-3","v":"Fin Lines Brokerage - Line 44 - 2016"},null,null,null,null,{"$f":"+'Sch XI(a)(vi)'!J74","v":0}]
["Sch XI(a)(vi)","Loss Triangles - Financial Lines",null,{"$f":"\"Fin Lines Brokerage - Line 47 - \"&$E$2","v":"Fin Lines Brokerage - Line 47 - 2019"},null,null,null,null,{"$f":"+'Sch XI(a)(vi)'!J77","v":0}]
["Sch XI(a)(vi)","Loss Triangles - Financial Lines",null,{"$f":"\"Fin Lines G&A - Line 43 - \"&$E$2-4","v":"Fin Lines G&A - Line 43 - 2015"},null,null,null,null,{"$f":"+'Sch XI(a)(vi)'!K73","v":0}]
["Sch XI(a)(vi)","Loss Triangles - Financial Lines",null,{"$f":"\"Fin Lines Personnel Costs - Line 39 - \"&$E$2-8","v":"Fin Lines Personnel Costs - Line 39 - 2011"},null,null,null,null,{"$f":"+'Sch XI(a)(vi)'!L69","v":0}]
["Sch XI(a)(vi)","Loss Triangles - Financial Lines",null,{"$f":"\"Fin Lines Personnel Costs - Line 43 - \"&$E$2-4","v":"Fin Lines Personnel Costs - Line 43 - 2015"},null,null,null,null,{"$f":"+'Sch XI(a)(vi)'!L73","v":0}]
["Sch XI(a)(vi)","Loss Triangles - Financial Lines",null,{"$f":"\"Fin Lines Other Exp. - Line 41 - \"&$E$2-6","v":"Fin Lines Other Exp. - Line 41 - 2013"},null,null,null,null,{"$f":"+'Sch XI(a)(vi)'!M71","v":0}]
["Sch XI(a)(vi)","Loss Triangles - Financial Lines",null,{"$f":"\"Fin Lines Other Exp. - Line 44 - \"&$E$2-3","v":"Fin Lines Other Exp. - Line 44 - 2016"},null,null,null,null,{"$f":"+'Sch XI(a)(vi)'!M74","v":0}]
["Sch XI(a)(vii)","Loss Triangles - Other Specialty Lines",null,{"$f":"\"Otr. Special - Incurred - Line 1 - \"&$E$2-8&\" - Prior\"","v":"Otr. Special - Incurred - Line 1 - 2011 - Prior"},null,null,null,null,{"$f":"+'Sch XI(a)(vii)'!D11","v":0}]
["Sch XI(a)(vii)","Loss Triangles - Other Specialty Lines",null,{"$f":"\"Otr. Special - Incurred - Line 3 - \"&$E$2-6&\" - \"&$E$2-8","v":"Otr. Special - Incurred - Line 3 - 2013 - 2011"},null,null,null,null,{"$f":"+'Sch XI(a)(vii)'!F13","v":0}]
["Sch XI(a)(vii)","Loss Triangles - Other Specialty Lines",null,{"$f":"\"Otr. Special - Incurred - Line 3 - \"&$E$2-5&\" - \"&$E$2-8","v":"Otr. Special - Incurred - Line 3 - 2014 - 2011"},null,null,null,null,{"$f":"+'Sch XI(a)(vii)'!G13","v":0}]
["Sch XI(a)(vii)","Loss Triangles - Other Specialty Lines",null,{"$f":"\"Otr. Special - Incurred - Line 3 - \"&$E$2-4&\" - \"&$E$2-8","v":"Otr. Special - Incurred - Line 3 - 2015 - 2011"},null,null,null,null,{"$f":"+'Sch XI(a)(vii)'!H13","v":0}]
["Sch XI(a)(vii)","Loss Triangles - Other Specialty Lines",null,{"$f":"\"Otr. Special - Incurred - Line 6 - \"&$E$2-4&\" - \"&$E$2-5","v":"Otr. Special - Incurred - Line 6 - 2015 - 2014"},null,null,null,null,{"$f":"+'Sch XI(a)(vii)'!H16","v":0}]
["Sch XI(a)(vii)","Loss Triangles - Other Specialty Lines",null,{"$f":"\"Otr. Special - Incurred - Line 6 - \"&$E$2-3&\" - \"&$E$2-5","v":"Otr. Special - Incurred - Line 6 - 2016 - 2014"},null,null,null,null,{"$f":"+'Sch XI(a)(vii)'!I16","v":0}]
["Sch XI(a)(vii)","Loss Triangles - Other Specialty Lines",null,{"$f":"\"Otr. Special - Incurred - Line 7 - \"&$E$2-2&\" - \"&$E$2-4","v":"Otr. Special - Incurred - Line 7 - 2017 - 2015"},null,null,null,null,{"$f":"+'Sch XI(a)(vii)'!J17","v":0}]
["Sch XI(a)(vii)","Loss Triangles - Other Specialty Lines",null,{"$f":"\"Otr. Special - Incurred - Line 1 - \"&$E$2-1&\" - Prior\"","v":"Otr. Special - Incurred - Line 1 - 2018 - Prior"},null,null,null,null,{"$f":"+'Sch XI(a)(vii)'!K11","v":0}]
["Sch XI(a)(vii)","Loss Triangles - Other Specialty Lines",null,{"$f":"\"Otr. Special - Incurred - Line 8 - \"&$E$2-1&\" - \"&$E$2-3","v":"Otr. Special - Incurred - Line 8 - 2018 - 2016"},null,null,null,null,{"$f":"+'Sch XI(a)(vii)'!K18","v":0}]
["Sch XI(a)(vii)","Loss Triangles - Other Specialty Lines",null,{"$f":"\"Otr. Special - Incurred - Line 4 - \"&$E$2&\" - \"&$E$2-7","v":"Otr. Special - Incurred - Line 4 - 2019 - 2012"},null,null,null,null,{"$f":"+'Sch XI(a)(vii)'!L14","v":0}]
["Sch XI(a)(vii)","Loss Triangles - Other Specialty Lines",null,{"$f":"\"Otr. Special - Incurred - Line 9 - \"&$E$2&\" - \"&$E$2-2","v":"Otr. Special - Incurred - Line 9 - 2019 - 2017"},null,null,null,null,{"$f":"+'Sch XI(a)(vii)'!L19","v":0}]
["Sch XI(a)(vii)","Loss Triangles - Other Specialty Lines",null,{"$f":"\"Otr. Special - Incurred - Line 7 - Cat Loss. - \"&$E$2-4","v":"Otr. Special - Incurred - Line 7 - Cat Loss. - 2015"},null,null,null,null,{"$f":"+'Sch XI(a)(vii)'!M17","v":0}]
["Sch XI(a)(vii)","Loss Triangles - Other Specialty Lines",null,{"$f":"\"Otr. Special - Incurred - Line 10 - Cat Loss. - \"&$E$2-1","v":"Otr. Special - Incurred - Line 10 - Cat Loss. - 2018"},null,null,null,null,{"$f":"+'Sch XI(a)(vii)'!M20","v":0}]
["Sch XI(a)(vii)","Loss Triangles - Other Specialty Lines",null,{"$f":"\"Otr. Special - Paid - Line 13 - \"&$E$2-7&\" - Prior\"","v":"Otr. Special - Paid - Line 13 - 2012 - Prior"},null,null,null,null,{"$f":"+'Sch XI(a)(vii)'!E29","v":0}]
["Sch XI(a)(vii)","Loss Triangles - Other Specialty Lines",null,{"$f":"\"Otr. Special - Paid - Line 13 - \"&$E$2-5&\" - Prior\"","v":"Otr. Special - Paid - Line 13 - 2014 - Prior"},null,null,null,null,{"$f":"+'Sch XI(a)(vii)'!G29","v":0}]
["Sch XI(a)(vii)","Loss Triangles - Other Specialty Lines",null,{"$f":"\"Otr. Special - Paid - Line 16 - \"&$E$2-5&\" - \"&$E$2-7","v":"Otr. Special - Paid - Line 16 - 2014 - 2012"},null,null,null,null,{"$f":"+'Sch XI(a)(vii)'!G32","v":0}]
["Sch XI(a)(vii)","Loss Triangles - Other Specialty Lines",null,{"$f":"\"Otr. Special - Paid - Line 15 - \"&$E$2-4&\" - \"&$E$2-8","v":"Otr. Special - Paid - Line 15 - 2015 - 2011"},null,null,null,null,{"$f":"+'Sch XI(a)(vii)'!H31","v":0}]
["Sch XI(a)(vii)","Loss Triangles - Other Specialty Lines",null,{"$f":"\"Otr. Special - Paid - Line 20 - \"&$E$2-3&\" - \"&$E$2-3","v":"Otr. Special - Paid - Line 20 - 2016 - 2016"},null,null,null,null,{"$f":"+'Sch XI(a)(vii)'!I36","v":0}]
["Sch XI(a)(vii)","Loss Triangles - Other Specialty Lines",null,{"$f":"\"Otr. Special - Paid - Line 13 - \"&$E$2-2&\" - Prior\"","v":"Otr. Special - Paid - Line 13 - 2017 - Prior"},null,null,null,null,{"$f":"+'Sch XI(a)(vii)'!J29","v":0}]
["Sch XI(a)(vii)","Loss Triangles - Other Specialty Lines",null,{"$f":"\"Otr. Special - Paid - Line 13 - \"&$E$2-1&\" - Prior\"","v":"Otr. Special - Paid - Line 13 - 2018 - Prior"},null,null,null,null,{"$f":"+'Sch XI(a)(vii)'!K29","v":0}]
["Sch XI(a)(vii)","Loss Triangles - Other Specialty Lines",null,{"$f":"\"Otr. Special - Paid - Line 16 - \"&$E$2-1&\" - \"&$E$2-7","v":"Otr. Special - Paid - Line 16 - 2018 - 2012"},null,null,null,null,{"$f":"+'Sch XI(a)(vii)'!K32","v":0}]
["Sch XI(a)(vii)","Loss Triangles - Other Specialty Lines",null,{"$f":"\"Otr. Special - Paid - Line 13 - \"&$E$2&\" - Prior\"","v":"Otr. Special - Paid - Line 13 - 2019 - Prior"},null,null,null,null,{"$f":"+'Sch XI(a)(vii)'!L29","v":0}]
["Sch XI(a)(vii)","Loss Triangles - Other Specialty Lines",null,{"$f":"\"Otr. Special - Paid - Line 22 - \"&$E$2&\" - \"&$E$2-1","v":"Otr. Special - Paid - Line 22 - 2019 - 2018"},null,null,null,null,{"$f":"+'Sch XI(a)(vii)'!L38","v":0}]
["Sch XI(a)(vii)","Loss Triangles - Other Specialty Lines",null,{"$f":"\"Otr. Special - Paid - Line 14 - Cat Loss. - \"&$E$2-9","v":"Otr. Special - Paid - Line 14 - Cat Loss. - 2010"},null,null,null,null,{"$f":"+'Sch XI(a)(vii)'!M30","v":0}]
["Sch XI(a)(vii)","Loss Triangles - Other Specialty Lines",null,{"$f":"\"Otr. Special - Paid - Line 22 - Cat Loss. - \"&$E$2-1","v":"Otr. Special - Paid - Line 22 - Cat Loss. - 2018"},null,null,null,null,{"$f":"+'Sch XI(a)(vii)'!M38","v":0}]
["Sch XI(a)(vii)","Loss Triangles - Other Specialty Lines",null,{"$f":"\"Otr. Special - Reserve - Line 27 - \"&$E$2-7&\" - \"&$E$2-8","v":"Otr. Special - Reserve - Line 27 - 2012 - 2011"},null,null,null,null,{"$f":"+'Sch XI(a)(vii)'!E49","v":0}]
["Sch XI(a)(vii)","Loss Triangles - Other Specialty Lines",null,{"$f":"\"Otr. Special - Reserve - Line 28 - \"&$E$2-7&\" - \"&$E$2-7","v":"Otr. Special - Reserve - Line 28 - 2012 - 2012"},null,null,null,null,{"$f":"+'Sch XI(a)(vii)'!E50","v":0}]
["Sch XI(a)(vii)","Loss Triangles - Other Specialty Lines",null,{"$f":"\"Otr. Special - Reserve - Line 28 - \"&$E$2-5&\" - \"&$E$2-7","v":"Otr. Special - Reserve - Line 28 - 2014 - 2012"},null,null,null,null,{"$f":"+'Sch XI(a)(vii)'!G50","v":0}]
["Sch XI(a)(vii)","Loss Triangles - Other Specialty Lines",null,{"$f":"\"Otr. Special - Reserve - Line 25 - \"&$E$2-4&\" - Prior\"","v":"Otr. Special - Reserve - Line 25 - 2015 - Prior"},null,null,null,null,{"$f":"+'Sch XI(a)(vii)'!H47","v":0}]
["Sch XI(a)(vii)","Loss Triangles - Other Specialty Lines",null,{"$f":"\"Otr. Special - Reserve - Line 25 - \"&$E$2-3&\" - Prior\"","v":"Otr. Special - Reserve - Line 25 - 2016 - Prior"},null,null,null,null,{"$f":"+'Sch XI(a)(vii)'!I47","v":0}]
["Sch XI(a)(vii)","Loss Triangles - Other Specialty Lines",null,{"$f":"\"Otr. Special - Reserve - Line 28 - \"&$E$2-2&\" - \"&$E$2-7","v":"Otr. Special - Reserve - Line 28 - 2017 - 2012"},null,null,null,null,{"$f":"+'Sch XI(a)(vii)'!J50","v":0}]
["Sch XI(a)(vii)","Loss Triangles - Other Specialty Lines",null,{"$f":"\"Otr. Special - Reserve - Line 25 - \"&$E$2-1&\" - Prior\"","v":"Otr. Special - Reserve - Line 25 - 2018 - Prior"},null,null,null,null,{"$f":"+'Sch XI(a)(vii)'!K47","v":0}]
["Sch XI(a)(vii)","Loss Triangles - Other Specialty Lines",null,{"$f":"\"Otr. Special - Reserve - Line 28 - \"&$E$2-1&\" - \"&$E$2-7","v":"Otr. Special - Reserve - Line 28 - 2018 - 2012"},null,null,null,null,{"$f":"+'Sch XI(a)(vii)'!K50","v":0}]
["Sch XI(a)(vii)","Loss Triangles - Other Specialty Lines",null,{"$f":"\"Otr. Special - Reserve - Line 27 - \"&$E$2&\" - \"&$E$2-8","v":"Otr. Special - Reserve - Line 27 - 2019 - 2011"},null,null,null,null,{"$f":"+'Sch XI(a)(vii)'!L49","v":0}]
["Sch XI(a)(vii)","Loss Triangles - Other Specialty Lines",null,{"$f":"\"Otr. Special - Reserve - Line 28 - \"&$E$2&\" - \"&$E$2-7","v":"Otr. Special - Reserve - Line 28 - 2019 - 2012"},null,null,null,null,{"$f":"+'Sch XI(a)(vii)'!L50","v":0}]
["Sch XI(a)(vii)","Loss Triangles - Other Specialty Lines",null,{"$f":"\"Otr. Special - Reserve - Line 26 - Cat Loss. - \"&$E$2-9","v":"Otr. Special - Reserve - Line 26 - Cat Loss. - 2010"},null,null,null,null,{"$f":"+'Sch XI(a)(vii)'!M48","v":0}]
["Sch XI(a)(vii)","Loss Triangles - Other Specialty Lines",null,{"$f":"\"Otr. Special - Reserve - Line 29 - Cat Loss. - \"&$E$2-6","v":"Otr. Special - Reserve - Line 29 - Cat Loss. - 2013"},null,null,null,null,{"$f":"+'Sch XI(a)(vii)'!M51","v":0}]
["Sch XI(a)(vii)","Loss Triangles - Other Specialty Lines",null,{"$f":"\"Otr. Special - GPW - Line 40 - \"&$E$2-7","v":"Otr. Special - GPW - Line 40 - 2012"},null,null,null,null,{"$f":"+'Sch XI(a)(vii)'!C70","v":0}]
["Sch XI(a)(vii)","Loss Triangles - Other Specialty Lines",null,{"$f":"\"Otr. Special - GPW - Line 47 - \"&$E$2","v":"Otr. Special - GPW - Line 47 - 2019"},null,null,null,null,{"$f":"+'Sch XI(a)(vii)'!C77","v":0}]
["Sch XI(a)(vii)","Loss Triangles - Other Specialty Lines",null,{"$f":"\"Otr. Special - Gross Premiums Earned - Line 43 - \"&$E$2-4","v":"Otr. Special - Gross Premiums Earned - Line 43 - 2015"},null,null,null,null,{"$f":"+'Sch XI(a)(vii)'!D73","v":0}]
["Sch XI(a)(vii)","Loss Triangles - Other Specialty Lines",null,{"$f":"\"Otr. Special - Gross Premiums Earned - Line 46 - \"&$E$2-1","v":"Otr. Special - Gross Premiums Earned - Line 46 - 2018"},null,null,null,null,{"$f":"+'Sch XI(a)(vii)'!D76","v":0}]
["Sch XI(a)(vii)","Loss Triangles - Other Specialty Lines",null,{"$f":"\"Otr. Special - NPW - Line 44 - \"&$E$2-3","v":"Otr. Special - NPW - Line 44 - 2016"},null,null,null,null,{"$f":"+'Sch XI(a)(vii)'!E74","v":0}]
["Sch XI(a)(vii)","Loss Triangles - Other Specialty Lines",null,{"$f":"\"Otr. Special - NPW - Line 45 - \"&$E$2-2","v":"Otr. Special - NPW - Line 45 - 2017"},null,null,null,null,{"$f":"+'Sch XI(a)(vii)'!E75","v":0}]
["Sch XI(a)(vii)","Loss Triangles - Other Specialty Lines",null,{"$f":"\"Otr. Special - Net Premiums Earned - Line 43 - \"&$E$2-4","v":"Otr. Special - Net Premiums Earned - Line 43 - 2015"},null,null,null,null,{"$f":"+'Sch XI(a)(vii)'!F73","v":0}]
["Sch XI(a)(vii)","Loss Triangles - Other Specialty Lines",null,{"$f":"\"Otr. Special - Expenses Paid - Line 37 - Prior\"","v":"Otr. Special - Expenses Paid - Line 37 - Prior"},null,null,null,null,{"$f":"+'Sch XI(a)(vii)'!G67","v":0}]
["Sch XI(a)(vii)","Loss Triangles - Other Specialty Lines",null,{"$f":"\"Otr. Special - Expenses Paid - Line 43 - \"&$E$2-4","v":"Otr. Special - Expenses Paid - Line 43 - 2015"},null,null,null,null,{"$f":"+'Sch XI(a)(vii)'!G73","v":0}]
["Sch XI(a)(vii)","Loss Triangles - Other Specialty Lines",null,{"$f":"\"Otr. Special - Expenses Incurred - Line 41 - \"&$E$2-6","v":"Otr. Special - Expenses Incurred - Line 41 - 2013"},null,null,null,null,{"$f":"+'Sch XI(a)(vii)'!H71","v":0}]
["Sch XI(a)(vii)","Loss Triangles - Other Specialty Lines",null,{"$f":"\"Otr. Special - Brokerage - Line 37 - Prior\"","v":"Otr. Special - Brokerage - Line 37 - Prior"},null,null,null,null,{"$f":"+'Sch XI(a)(vii)'!J67","v":0}]
["Sch XI(a)(vii)","Loss Triangles - Other Specialty Lines",null,{"$f":"\"Otr. Special - Brokerage - Line 40 - \"&$E$2-7","v":"Otr. Special - Brokerage - Line 40 - 2012"},null,null,null,null,{"$f":"+'Sch XI(a)(vii)'!J70","v":0}]
["Sch XI(a)(vii)","Loss Triangles - Other Specialty Lines",null,{"$f":"\"Otr. Special - G&A - Line 38 - \"&$E$2-9","v":"Otr. Special - G&A - Line 38 - 2010"},null,null,null,null,{"$f":"+'Sch XI(a)(vii)'!K68","v":0}]
["Sch XI(a)(vii)","Loss Triangles - Other Specialty Lines",null,{"$f":"\"Otr. Special - G&A - Line 39 - \"&$E$2-8","v":"Otr. Special - G&A - Line 39 - 2011"},null,null,null,null,{"$f":"+'Sch XI(a)(vii)'!K69","v":0}]
["Sch XI(a)(vii)","Loss Triangles - Other Specialty Lines",null,{"$f":"\"Otr. Special - Personnel Costs - Line 37 - Prior\"","v":"Otr. Special - Personnel Costs - Line 37 - Prior"},null,null,null,null,{"$f":"+'Sch XI(a)(vii)'!L67","v":0}]
["Sch XI(a)(vii)","Loss Triangles - Other Specialty Lines",null,{"$f":"\"Otr. Special - Personnel Costs - Line 45 - \"&$E$2-2","v":"Otr. Special - Personnel Costs - Line 45 - 2017"},null,null,null,null,{"$f":"+'Sch XI(a)(vii)'!L75","v":0}]
["Sch XI(a)(vii)","Loss Triangles - Other Specialty Lines",null,{"$f":"\"Otr. Special - Other Exp. - Line 37 - Prior\"","v":"Otr. Special - Other Exp. - Line 37 - Prior"},null,null,null,null,{"$f":"+'Sch XI(a)(vii)'!M67","v":0}]
["Sch XI(a)(vii)","Loss Triangles - Other Specialty Lines",null,{"$f":"\"Otr. Special - Other Exp. - Line 46 - \"&$E$2-1","v":"Otr. Special - Other Exp. - Line 46 - 2018"},null,null,null,null,{"$f":"+'Sch XI(a)(vii)'!M76","v":0}]
["Sch XI(a)(viii)","Loss Triangles - Structured/Finite Lines",null,{"$f":"\"Stuct. Lines - Incurred - Line 3 - \"&$E$2-8&\" - \"&$E$2-8","v":"Stuct. Lines - Incurred - Line 3 - 2011 - 2011"},null,null,null,null,{"$f":"+'Sch XI(a)(viii)'!D13","v":0}]
["Sch XI(a)(viii)","Loss Triangles - Structured/Finite Lines",null,{"$f":"\"Stuct. Lines - Incurred - Line 3 - \"&$E$2-7&\" - \"&$E$2-8","v":"Stuct. Lines - Incurred - Line 3 - 2012 - 2011"},null,null,null,null,{"$f":"+'Sch XI(a)(viii)'!E13","v":0}]
["Sch XI(a)(viii)","Loss Triangles - Structured/Finite Lines",null,{"$f":"\"Stuct. Lines - Incurred - Line 3 - \"&$E$2-5&\" - \"&$E$2-8","v":"Stuct. Lines - Incurred - Line 3 - 2014 - 2011"},null,null,null,null,{"$f":"+'Sch XI(a)(viii)'!G13","v":0}]
["Sch XI(a)(viii)","Loss Triangles - Structured/Finite Lines",null,{"$f":"\"Stuct. Lines - Incurred - Line 5 - \"&$E$2-5&\" - \"&$E$2-6","v":"Stuct. Lines - Incurred - Line 5 - 2014 - 2013"},null,null,null,null,{"$f":"+'Sch XI(a)(viii)'!G15","v":0}]
["Sch XI(a)(viii)","Loss Triangles - Structured/Finite Lines",null,{"$f":"\"Stuct. Lines - Incurred - Line 1 - \"&$E$2-3&\" - Prior\"","v":"Stuct. Lines - Incurred - Line 1 - 2016 - Prior"},null,null,null,null,{"$f":"+'Sch XI(a)(viii)'!I11","v":0}]
["Sch XI(a)(viii)","Loss Triangles - Structured/Finite Lines",null,{"$f":"\"Stuct. Lines - Incurred - Line 8 - \"&$E$2-3&\" - \"&$E$2-3","v":"Stuct. Lines - Incurred - Line 8 - 2016 - 2016"},null,null,null,null,{"$f":"+'Sch XI(a)(viii)'!I18","v":0}]
["Sch XI(a)(viii)","Loss Triangles - Structured/Finite Lines",null,{"$f":"\"Stuct. Lines - Incurred - Line 3 - \"&$E$2-2&\" - \"&$E$2-8","v":"Stuct. Lines - Incurred - Line 3 - 2017 - 2011"},null,null,null,null,{"$f":"+'Sch XI(a)(viii)'!J13","v":0}]
["Sch XI(a)(viii)","Loss Triangles - Structured/Finite Lines",null,{"$f":"\"Stuct. Lines - Incurred - Line 3 - \"&$E$2-1&\" - \"&$E$2-8","v":"Stuct. Lines - Incurred - Line 3 - 2018 - 2011"},null,null,null,null,{"$f":"+'Sch XI(a)(viii)'!K13","v":0}]
["Sch XI(a)(viii)","Loss Triangles - Structured/Finite Lines",null,{"$f":"\"Stuct. Lines - Incurred - Line 10 - \"&$E$2-1&\" - \"&$E$2-1","v":"Stuct. Lines - Incurred - Line 10 - 2018 - 2018"},null,null,null,null,{"$f":"+'Sch XI(a)(viii)'!K20","v":0}]
["Sch XI(a)(viii)","Loss Triangles - Structured/Finite Lines",null,{"$f":"\"Stuct. Lines - Incurred - Line 3 - \"&$E$2&\" - \"&$E$2-8","v":"Stuct. Lines - Incurred - Line 3 - 2019 - 2011"},null,null,null,null,{"$f":"+'Sch XI(a)(viii)'!L13","v":0}]
["Sch XI(a)(viii)","Loss Triangles - Structured/Finite Lines",null,{"$f":"\"Stuct. Lines - Incurred - Line 2 - Cat Loss. - \"&$E$2-9","v":"Stuct. Lines - Incurred - Line 2 - Cat Loss. - 2010"},null,null,null,null,{"$f":"+'Sch XI(a)(viii)'!M12","v":0}]
["Sch XI(a)(viii)","Loss Triangles - Structured/Finite Lines",null,{"$f":"\"Stuct. Lines - Incurred - Line 3 - Cat Loss. - \"&$E$2-8","v":"Stuct. Lines - Incurred - Line 3 - Cat Loss. - 2011"},null,null,null,null,{"$f":"+'Sch XI(a)(viii)'!M13","v":0}]
["Sch XI(a)(viii)","Loss Triangles - Structured/Finite Lines",null,{"$f":"\"Stuct. Lines - Paid - Line 13 - \"&$E$2-9&\" - Prior\"","v":"Stuct. Lines - Paid - Line 13 - 2010 - Prior"},null,null,null,null,{"$f":"+'Sch XI(a)(viii)'!C29","v":0}]
["Sch XI(a)(viii)","Loss Triangles - Structured/Finite Lines",null,{"$f":"\"Stuct. Lines - Paid - Line 15 - \"&$E$2-7&\" - \"&$E$2-8","v":"Stuct. Lines - Paid - Line 15 - 2012 - 2011"},null,null,null,null,{"$f":"+'Sch XI(a)(viii)'!E31","v":0}]
["Sch XI(a)(viii)","Loss Triangles - Structured/Finite Lines",null,{"$f":"\"Stuct. Lines - Paid - Line 14 - \"&$E$2-6&\" - \"&$E$2-9","v":"Stuct. Lines - Paid - Line 14 - 2013 - 2010"},null,null,null,null,{"$f":"+'Sch XI(a)(viii)'!F30","v":0}]
["Sch XI(a)(viii)","Loss Triangles - Structured/Finite Lines",null,{"$f":"\"Stuct. Lines - Paid - Line 18 - \"&$E$2-5&\" - \"&$E$2-5","v":"Stuct. Lines - Paid - Line 18 - 2014 - 2014"},null,null,null,null,{"$f":"+'Sch XI(a)(viii)'!G34","v":0}]
["Sch XI(a)(viii)","Loss Triangles - Structured/Finite Lines",null,{"$f":"\"Stuct. Lines - Paid - Line 13 - \"&$E$2-3&\" - Prior\"","v":"Stuct. Lines - Paid - Line 13 - 2016 - Prior"},null,null,null,null,{"$f":"+'Sch XI(a)(viii)'!I29","v":0}]
["Sch XI(a)(viii)","Loss Triangles - Structured/Finite Lines",null,{"$f":"\"Stuct. Lines - Paid - Line 16 - \"&$E$2-3&\" - \"&$E$2-7","v":"Stuct. Lines - Paid - Line 16 - 2016 - 2012"},null,null,null,null,{"$f":"+'Sch XI(a)(viii)'!I32","v":0}]
["Sch XI(a)(viii)","Loss Triangles - Structured/Finite Lines",null,{"$f":"\"Stuct. Lines - Paid - Line 15 - \"&$E$2-2&\" - \"&$E$2-8","v":"Stuct. Lines - Paid - Line 15 - 2017 - 2011"},null,null,null,null,{"$f":"+'Sch XI(a)(viii)'!J31","v":0}]
["Sch XI(a)(viii)","Loss Triangles - Structured/Finite Lines",null,{"$f":"\"Stuct. Lines - Paid - Line 18 - \"&$E$2-2&\" - \"&$E$2-5","v":"Stuct. Lines - Paid - Line 18 - 2017 - 2014"},null,null,null,null,{"$f":"+'Sch XI(a)(viii)'!J34","v":0}]
["Sch XI(a)(viii)","Loss Triangles - Structured/Finite Lines",null,{"$f":"\"Stuct. Lines - Paid - Line 18 - \"&$E$2-1&\" - \"&$E$2-5","v":"Stuct. Lines - Paid - Line 18 - 2018 - 2014"},null,null,null,null,{"$f":"+'Sch XI(a)(viii)'!K34","v":0}]
["Sch XI(a)(viii)","Loss Triangles - Structured/Finite Lines",null,{"$f":"\"Stuct. Lines - Paid - Line 15 - \"&$E$2&\" - \"&$E$2-8","v":"Stuct. Lines - Paid - Line 15 - 2019 - 2011"},null,null,null,null,{"$f":"+'Sch XI(a)(viii)'!L31","v":0}]
["Sch XI(a)(viii)","Loss Triangles - Structured/Finite Lines",null,{"$f":"\"Stuct. Lines - Paid - Line 18 - \"&$E$2&\" - \"&$E$2-5","v":"Stuct. Lines - Paid - Line 18 - 2019 - 2014"},null,null,null,null,{"$f":"+'Sch XI(a)(viii)'!L34","v":0}]
["Sch XI(a)(viii)","Loss Triangles - Structured/Finite Lines",null,{"$f":"\"Stuct. Lines - Paid - Line 16 - Cat Loss. - \"&$E$2-7","v":"Stuct. Lines - Paid - Line 16 - Cat Loss. - 2012"},null,null,null,null,{"$f":"+'Sch XI(a)(viii)'!M32","v":0}]
["Sch XI(a)(viii)","Loss Triangles - Structured/Finite Lines",null,{"$f":"\"Stuct. Lines - Reserve - Line 25 - \"&$E$2-9&\" - Prior\"","v":"Stuct. Lines - Reserve - Line 25 - 2010 - Prior"},null,null,null,null,{"$f":"+'Sch XI(a)(viii)'!C47","v":0}]
["Sch XI(a)(viii)","Loss Triangles - Structured/Finite Lines",null,{"$f":"\"Stuct. Lines - Reserve - Line 26 - \"&$E$2-8&\" - \"&$E$2-9","v":"Stuct. Lines - Reserve - Line 26 - 2011 - 2010"},null,null,null,null,{"$f":"+'Sch XI(a)(viii)'!D48","v":0}]
["Sch XI(a)(viii)","Loss Triangles - Structured/Finite Lines",null,{"$f":"\"Stuct. Lines - Reserve - Line 26 - \"&$E$2-6&\" - \"&$E$2-9","v":"Stuct. Lines - Reserve - Line 26 - 2013 - 2010"},null,null,null,null,{"$f":"+'Sch XI(a)(viii)'!F48","v":0}]
["Sch XI(a)(viii)","Loss Triangles - Structured/Finite Lines",null,{"$f":"\"Stuct. Lines - Reserve - Line 29 - \"&$E$2-6&\" - \"&$E$2-6","v":"Stuct. Lines - Reserve - Line 29 - 2013 - 2013"},null,null,null,null,{"$f":"+'Sch XI(a)(viii)'!F51","v":0}]
["Sch XI(a)(viii)","Loss Triangles - Structured/Finite Lines",null,{"$f":"\"Stuct. Lines - Reserve - Line 27 - \"&$E$2-4&\" - \"&$E$2-8","v":"Stuct. Lines - Reserve - Line 27 - 2015 - 2011"},null,null,null,null,{"$f":"+'Sch XI(a)(viii)'!H49","v":0}]
["Sch XI(a)(viii)","Loss Triangles - Structured/Finite Lines",null,{"$f":"\"Stuct. Lines - Reserve - Line 27 - \"&$E$2-3&\" - \"&$E$2-8","v":"Stuct. Lines - Reserve - Line 27 - 2016 - 2011"},null,null,null,null,{"$f":"+'Sch XI(a)(viii)'!I49","v":0}]
["Sch XI(a)(viii)","Loss Triangles - Structured/Finite Lines",null,{"$f":"\"Stuct. Lines - Reserve - Line 26 - \"&$E$2-2&\" - \"&$E$2-9","v":"Stuct. Lines - Reserve - Line 26 - 2017 - 2010"},null,null,null,null,{"$f":"+'Sch XI(a)(viii)'!J48","v":0}]
["Sch XI(a)(viii)","Loss Triangles - Structured/Finite Lines",null,{"$f":"\"Stuct. Lines - Reserve - Line 30 - \"&$E$2-2&\" - \"&$E$2-5","v":"Stuct. Lines - Reserve - Line 30 - 2017 - 2014"},null,null,null,null,{"$f":"+'Sch XI(a)(viii)'!J52","v":0}]
["Sch XI(a)(viii)","Loss Triangles - Structured/Finite Lines",null,{"$f":"\"Stuct. Lines - Reserve - Line 30 - \"&$E$2-1&\" - \"&$E$2-5","v":"Stuct. Lines - Reserve - Line 30 - 2018 - 2014"},null,null,null,null,{"$f":"+'Sch XI(a)(viii)'!K52","v":0}]
["Sch XI(a)(viii)","Loss Triangles - Structured/Finite Lines",null,{"$f":"\"Stuct. Lines - Reserve - Line 33 - \"&$E$2-1&\" - \"&$E$2-2","v":"Stuct. Lines - Reserve - Line 33 - 2018 - 2017"},null,null,null,null,{"$f":"+'Sch XI(a)(viii)'!K55","v":0}]
["Sch XI(a)(viii)","Loss Triangles - Structured/Finite Lines",null,{"$f":"\"Stuct. Lines - Reserve - Line 30 - \"&$E$2&\" - \"&$E$2-5","v":"Stuct. Lines - Reserve - Line 30 - 2019 - 2014"},null,null,null,null,{"$f":"+'Sch XI(a)(viii)'!L52","v":0}]
["Sch XI(a)(viii)","Loss Triangles - Structured/Finite Lines",null,{"$f":"\"Stuct. Lines - Reserve - Line 33 - \"&$E$2&\" - \"&$E$2-2","v":"Stuct. Lines - Reserve - Line 33 - 2019 - 2017"},null,null,null,null,{"$f":"+'Sch XI(a)(viii)'!L55","v":0}]
["Sch XI(a)(viii)","Loss Triangles - Structured/Finite Lines",null,{"$f":"\"Stuct. Lines - Reserve - Line 31 - Cat Loss. - \"&$E$2-4","v":"Stuct. Lines - Reserve - Line 31 - Cat Loss. - 2015"},null,null,null,null,{"$f":"+'Sch XI(a)(viii)'!M53","v":0}]
["Sch XI(a)(viii)","Loss Triangles - Structured/Finite Lines",null,{"$f":"\"Stuct. Lines - GPW - Line 38 - \"&$E$2-9","v":"Stuct. Lines - GPW - Line 38 - 2010"},null,null,null,null,{"$f":"+'Sch XI(a)(viii)'!C68","v":0}]
["Sch XI(a)(viii)","Loss Triangles - Structured/Finite Lines",null,{"$f":"\"Stuct. Lines - GPW - Line 43 - \"&$E$2-4","v":"Stuct. Lines - GPW - Line 43 - 2015"},null,null,null,null,{"$f":"+'Sch XI(a)(viii)'!C73","v":0}]
["Sch XI(a)(viii)","Loss Triangles - Structured/Finite Lines",null,{"$f":"\"Stuct. Lines - Gross Premiums Earned - Line 39 - \"&$E$2-8","v":"Stuct. Lines - Gross Premiums Earned - Line 39 - 2011"},null,null,null,null,{"$f":"+'Sch XI(a)(viii)'!D69","v":0}]
["Sch XI(a)(viii)","Loss Triangles - Structured/Finite Lines",null,{"$f":"\"Stuct. Lines - NPW - Line 37 - Prior\"","v":"Stuct. Lines - NPW - Line 37 - Prior"},null,null,null,null,{"$f":"+'Sch XI(a)(viii)'!E67","v":"XXX"}]
["Sch XI(a)(viii)","Loss Triangles - Structured/Finite Lines",null,{"$f":"\"Stuct. Lines - NPW - Line 40 - \"&$E$2-7","v":"Stuct. Lines - NPW - Line 40 - 2012"},null,null,null,null,{"$f":"+'Sch XI(a)(viii)'!E70","v":0}]
["Sch XI(a)(viii)","Loss Triangles - Structured/Finite Lines",null,{"$f":"\"Stuct. Lines - NPW - Line 47 - \"&$E$2","v":"Stuct. Lines - NPW - Line 47 - 2019"},null,null,null,null,{"$f":"+'Sch XI(a)(viii)'!E77","v":0}]
["Sch XI(a)(viii)","Loss Triangles - Structured/Finite Lines",null,{"$f":"\"Stuct. Lines - Net Premiums Earned - Line 39 - \"&$E$2-8","v":"Stuct. Lines - Net Premiums Earned - Line 39 - 2011"},null,null,null,null,{"$f":"+'Sch XI(a)(viii)'!F69","v":0}]
["Sch XI(a)(viii)","Loss Triangles - Structured/Finite Lines",null,{"$f":"\"Stuct. Lines - Net Premiums Earned - Line 46 - \"&$E$2-1","v":"Stuct. Lines - Net Premiums Earned - Line 46 - 2018"},null,null,null,null,{"$f":"+'Sch XI(a)(viii)'!F76","v":0}]
["Sch XI(a)(viii)","Loss Triangles - Structured/Finite Lines",null,{"$f":"\"Stuct. Lines - Expenses Paid - Line 45 - \"&$E$2-2","v":"Stuct. Lines - Expenses Paid - Line 45 - 2017"},null,null,null,null,{"$f":"+'Sch XI(a)(viii)'!G75","v":0}]
["Sch XI(a)(viii)","Loss Triangles - Structured/Finite Lines",null,{"$f":"\"Stuct. Lines - Expenses Incurred - Line 37 - Prior\"","v":"Stuct. Lines - Expenses Incurred - Line 37 - Prior"},null,null,null,null,{"$f":"+'Sch XI(a)(viii)'!H67","v":0}]
["Sch XI(a)(viii)","Loss Triangles - Structured/Finite Lines",null,{"$f":"\"Stuct. Lines - Expenses Incurred - Line 44 - \"&$E$2-3","v":"Stuct. Lines - Expenses Incurred - Line 44 - 2016"},null,null,null,null,{"$f":"+'Sch XI(a)(viii)'!H74","v":0}]
["Sch XI(a)(viii)","Loss Triangles - Structured/Finite Lines",null,{"$f":"\"Stuct. Lines - Brokerage - Line 42 - \"&$E$2-5","v":"Stuct. Lines - Brokerage - Line 42 - 2014"},null,null,null,null,{"$f":"+'Sch XI(a)(viii)'!J72","v":0}]
["Sch XI(a)(viii)","Loss Triangles - Structured/Finite Lines",null,{"$f":"\"Stuct. Lines - Brokerage - Line 45 - \"&$E$2-2","v":"Stuct. Lines - Brokerage - Line 45 - 2017"},null,null,null,null,{"$f":"+'Sch XI(a)(viii)'!J75","v":0}]
["Sch XI(a)(viii)","Loss Triangles - Structured/Finite Lines",null,{"$f":"\"Stuct. Lines - G&A - Line 41 - \"&$E$2-6","v":"Stuct. Lines - G&A - Line 41 - 2013"},null,null,null,null,{"$f":"+'Sch XI(a)(viii)'!K71","v":0}]
["Sch XI(a)(viii)","Loss Triangles - Structured/Finite Lines",null,{"$f":"\"Stuct. Lines - G&A - Line 46 - \"&$E$2-1","v":"Stuct. Lines - G&A - Line 46 - 2018"},null,null,null,null,{"$f":"+'Sch XI(a)(viii)'!K76","v":0}]
["Sch XI(a)(viii)","Loss Triangles - Structured/Finite Lines",null,{"$f":"\"Stuct. Lines - Personnel Costs - Line 41 - \"&$E$2-6","v":"Stuct. Lines - Personnel Costs - Line 41 - 2013"},null,null,null,null,{"$f":"+'Sch XI(a)(viii)'!L71","v":0}]
["Sch XI(a)(viii)","Loss Triangles - Structured/Finite Lines",null,{"$f":"\"Stuct. Lines - Other Exp. - Line 39 - \"&$E$2-8","v":"Stuct. Lines - Other Exp. - Line 39 - 2011"},null,null,null,null,{"$f":"+'Sch XI(a)(viii)'!M69","v":0}]
["Sch XI(a)(viii)","Loss Triangles - Structured/Finite Lines",null,{"$f":"\"Stuct. Lines - Other Exp. - Line 42 - \"&$E$2-5","v":"Stuct. Lines - Other Exp. - Line 42 - 2014"},null,null,null,null,{"$f":"+'Sch XI(a)(viii)'!M72","v":0}]
[]
["SchXI(bi)","Reserve Rec - Property Castarophe",null,"Cat. - Best Estimate Provision - From CY",null,null,null,null,null,null,null,null,{"$f":"'Sch XI(b)(i)'!D20","v":0},null,{"$f":"'Sch XI(b)(i)'!F20","v":0}]
["SchXI(bii)","Reserve Rec - Property",null,"Property - Best Estimate Provision - Beg. Of Year",null,null,null,null,null,null,null,null,{"$f":"'Sch XI(b)(ii)'!D10","v":0},null,{"$f":"'Sch XI(b)(ii)'!F10","v":0}]
["SchXI(bii)","Reserve Rec - Property",null,"Property - Best Estimate Provision - From PY",null,null,null,null,null,null,null,null,{"$f":"'Sch XI(b)(ii)'!D15","v":0},null,{"$f":"'Sch XI(b)(ii)'!F15","v":0}]
["SchXI(biii)","Reserve Rec - Property Non-Proportional",null,"Prop. Non-Prop - Best Estimate Provision - Beg. Of Year",null,null,null,null,null,null,null,null,{"$f":"'Sch XI(b)(iii)'!D10","v":0},null,{"$f":"'Sch XI(b)(iii)'!F10","v":0}]
["SchXI(biii)","Reserve Rec - Property Non-Proportional",null,"Prop. Non-Prop - Foreign Exchange and Other",null,null,null,null,null,null,null,null,{"$f":"'Sch XI(b)(iii)'!D19","v":0},null,{"$f":"'Sch XI(b)(iii)'!F19","v":0}]
["SchXI(biv)","Reserve Rec - Casualty",null,"Casualty - Net Losses Incurred - Current Year",null,null,null,null,null,null,null,null,{"$f":"'Sch XI(b)(iv)'!D17","v":0},null,{"$f":"'Sch XI(b)(iv)'!F17","v":0}]
["SchXI(biv)","Reserve Rec - Casualty",null,"Casualty - Best Estimate Provision - From CY",null,null,null,null,null,null,null,null,{"$f":"'Sch XI(b)(iv)'!D20","v":0},null,{"$f":"'Sch XI(b)(iv)'!F20","v":0}]
["SchXI(bv)","Reserve Rec - Casualty Non-Proportional",null,"Caus. Non-Prop. - Best Estimate Provision - From PY",null,null,null,null,null,null,null,null,{"$f":"'Sch XI(b)(v)'!D15","v":0},null,{"$f":"'Sch XI(b)(v)'!F15","v":0}]
["SchXI(bvi)","Reserve Rec - Financial Lines",null,"Fin. Lines - Net Loss Paid - Prior Years",null,null,null,null,null,null,null,null,{"$f":"'Sch XI(b)(vi)'!D13","v":0},null,{"$f":"'Sch XI(b)(vi)'!F13","v":0}]
["SchXI(bvi)","Reserve Rec - Financial Lines",null,"Fin. Lines - Best Estimate Provision - From CY",null,null,null,null,null,null,null,null,{"$f":"'Sch XI(b)(vi)'!D20","v":0},null,{"$f":"'Sch XI(b)(vi)'!F20","v":0}]
["SchXI(bvii)","Reserve Rec - Other Specialty Lines",null,"Otr. Specialty - Net Loss Paid - Prior Years",null,null,null,null,null,null,null,null,{"$f":"'Sch XI(b)(vii)'!D13","v":0},null,{"$f":"'Sch XI(b)(vii)'!F13","v":0}]
["SchXI(bvii)","Reserve Rec - Other Specialty Lines",null,"Otr. Specialty - Net Losses Incurred - Current Year",null,null,null,null,null,null,null,null,{"$f":"'Sch XI(b)(vii)'!D17","v":0},null,{"$f":"'Sch XI(b)(vii)'!F17","v":0}]
["SchXI(bviii)","Reserve Rec - Structured/Finite Lines",null,"Stuct. Lines - Unwind of Discount",null,null,null,null,null,null,null,null,{"$f":"'Sch XI(b)(viii)'!D12","v":0},null,{"$f":"'Sch XI(b)(viii)'!F12","v":0}]
["SchXI(bviii)","Reserve Rec - Structured/Finite Lines",null,"Stuct. Lines - Best Estimate Provision - End Of Year",null,null,null,null,null,null,null,null,{"$f":"'Sch XI(b)(viii)'!D24","v":0},null,{"$f":"'Sch XI(b)(viii)'!F24","v":0}]
["Sch XII(a)","Eligible Capital",null,"Tier 1 - 1c Statutory Economic Surplus",null,null,null,null,null,null,null,null,{"$f":"'Schedule XII(a)'!J14","v":0}]
["Sch XII(a)","Eligible Capital",null,"Policyholder Obl. - Pledged Asset - Not Collat.",null,null,null,null,null,null,null,null,{"$f":"'Schedule XII(a)'!G27","v":0}]
["Sch XII(a)","Eligible Capital",null,"Tier 1 - Total Capital",null,null,null,null,null,null,null,null,{"$f":"'Schedule XII(a)'!J56","v":0}]
["Sch XII(a)","Eligible Capital",null,"Tier 2 Basic - a. Hybrid Capital Instruments",null,null,null,null,null,null,null,null,{"$f":"'Schedule XII(a)'!J59","v":0}]
["Sch XII(a)","Eligible Capital",null,"Tier 2 - Total Capital",null,null,null,null,null,null,null,null,{"$f":"'Schedule XII(a)'!J69","v":0}]
["Sch XII(a)","Eligible Capital",null,"Tier 3 Ancillary - b. Letters of Credit",null,null,null,null,null,null,null,null,{"$f":"'Schedule XII(a)'!J75","v":0}]
["Sch XII(b)","Eligible Capital - Additional Details",null,"Description of Capital Instrument 2",{"$f":"'Schedule XII(b)'!B12","v":0}]
["Sch XII(b)","Eligible Capital - Additional Details",null,"Description of Capital Instrument 11",{"$f":"'Schedule XII(b)'!B21","v":0}]
["Sch XII(b)","Eligible Capital - Additional Details",null,"Description of Capital Instrument 18",{"$f":"'Schedule XII(b)'!B28","v":0}]
["Sch XII(b)","Eligible Capital - Additional Details",null,"Date of Issue - Instrument 3",{"$f":"'Schedule XII(b)'!C13","v":0}]
["Sch XII(b)","Eligible Capital - Additional Details",null,"Date of Issue - Instrument 11",{"$f":"'Schedule XII(b)'!C21","v":0}]
["Sch XII(b)","Eligible Capital - Additional Details",null,"Date of Issue - Instrument 12",{"$f":"'Schedule XII(b)'!C22","v":0}]
["Sch XII(b)","Eligible Capital - Additional Details",null,"Maturity Date - Instrument 1",{"$f":"'Schedule XII(b)'!D11","v":0}]
["Sch XII(b)","Eligible Capital - Additional Details",null,"Maturity Date - Instrument 4",{"$f":"'Schedule XII(b)'!D14","v":0}]
["Sch XII(b)","Eligible Capital - Additional Details",null,"Maturity Date - Instrument 11",{"$f":"'Schedule XII(b)'!D21","v":0}]
["Sch XII(b)","Eligible Capital - Additional Details",null,"Maturity Date - Instrument 20",{"$f":"'Schedule XII(b)'!D30","v":0}]
["Sch XII(b)","Eligible Capital - Additional Details",null,"Authority Approval Date - Instrument 8",{"$f":"'Schedule XII(b)'!E18","v":0}]
["Sch XII(b)","Eligible Capital - Additional Details",null,"Authority Approval Date - Instrument 11",{"$f":"'Schedule XII(b)'!E21","v":0}]
["Sch XII(b)","Eligible Capital - Additional Details",null,"Authority Approval Date - Instrument 20",{"$f":"'Schedule XII(b)'!E30","v":0}]
["Sch XII(b)","Eligible Capital - Additional Details",null,"Valuation - Instrument 1",{"$f":"+'Schedule XII(b)'!F11","v":0}]
["Sch XII(b)","Eligible Capital - Additional Details",null,"Valuation - Instrument 10",{"$f":"+'Schedule XII(b)'!F20","v":0}]
["Sch XII(b)","Eligible Capital - Additional Details",null,"Valuation - Instrument 13",{"$f":"+'Schedule XII(b)'!F23","v":0}]
["Sch XII(b)","Eligible Capital - Additional Details",null,"Tier - Instrument 1",{"$f":"'Schedule XII(b)'!G11","v":0}]
["Sch XII(b)","Eligible Capital - Additional Details",null,"Tier - Instrument 10",{"$f":"'Schedule XII(b)'!G20","v":0}]
["Sch XII(b)","Eligible Capital - Additional Details",null,"Tier - Instrument 17",{"$f":"'Schedule XII(b)'!G27","v":0}]
["Sch XII(b)","Eligible Capital - Additional Details",null,"Tier - Instrument 20",{"$f":"'Schedule XII(b)'!G30","v":0}]
["Sch XVI","Non-Insurance",null,"Entity Name - 7",null,null,null,null,{"$f":"'Schedule XVI'!B17","v":0}]
["Sch XVI","Non-Insurance",null,"Entity Name - 8",null,null,null,null,{"$f":"'Schedule XVI'!B18","v":0}]
["Sch XVI","Non-Insurance",null,"Entity Jurisdiction - 2",null,null,null,null,{"$f":"'Schedule XVI'!C12","v":0}]
["Sch XVI","Non-Insurance",null,"Entity Jurisdiction - 5",null,null,null,null,{"$f":"'Schedule XVI'!C15","v":0}]
["Sch XVI","Non-Insurance",null,"Entity Jurisdiction - 13",null,null,null,null,{"$f":"'Schedule XVI'!C23","v":0}]
["Sch XVI","Non-Insurance",null,"Entity Sector - 7",null,null,null,null,{"$f":"'Schedule XVI'!D17","v":"Select"}]
["Sch XVI","Non-Insurance",null,"Entity Sector - 14",null,null,null,null,{"$f":"'Schedule XVI'!D24","v":"Select"}]
["Sch XVI","Non-Insurance",null,"Entity Strategic Purpose - 2",null,null,null,null,{"$f":"'Schedule XVI'!E12","v":0}]
["Sch XVI","Non-Insurance",null,"Entity Strategic Purpose - 11",null,null,null,null,{"$f":"'Schedule XVI'!E21","v":0}]
["Sch XVI","Non-Insurance",null,"Entity Strategic Purpose - 12",null,null,null,null,{"$f":"'Schedule XVI'!E22","v":0}]
["Sch XVI","Non-Insurance",null,"Entity Type - 4",null,null,null,null,{"$f":"'Schedule XVI'!F14","v":"Select"}]
["Sch XVI","Non-Insurance",null,"Entity Type - 14",null,null,null,null,{"$f":"'Schedule XVI'!F24","v":"Select"}]
["Sch XVI","Non-Insurance",null,"Entity Product & Services - 2",null,null,null,null,{"$f":"'Schedule XVI'!G12","v":0}]
["Sch XVI","Non-Insurance",null,"Entity Product & Services - 11",null,null,null,null,{"$f":"'Schedule XVI'!G21","v":0}]
["Sch XVI","Non-Insurance",null,"Entity Participation - 3",null,null,null,null,{"$f":"'Schedule XVI'!H13","v":"Select"}]
["Sch XVI","Non-Insurance",null,"Entity Participation - 6",null,null,null,null,{"$f":"'Schedule XVI'!H16","v":"Select"}]
["Sch XVI","Non-Insurance",null,"Entity Participation - 13",null,null,null,null,{"$f":"'Schedule XVI'!H23","v":"Select"}]
["Sch XVI","Non-Insurance",null,"% Interest in Entity - 7",null,null,null,null,{"$f":"'Schedule XVI'!I17","v":0}]
["Sch XVI","Non-Insurance",null,"% Interest in Entity - 11",null,null,null,null,{"$f":"'Schedule XVI'!I21","v":0}]
["Sch XVI","Non-Insurance",null,"Total Assets in Entity - 3",null,null,null,null,{"$f":"'Schedule XVI'!J13","v":0}]
["Sch XVI","Non-Insurance",null,"Total Assets in Entity - 6",null,null,null,null,{"$f":"'Schedule XVI'!J16","v":0}]
["Sch XVI","Non-Insurance",null,"Total Assets in Entity - 15",null,null,null,null,{"$f":"'Schedule XVI'!J25","v":0}]
["Sch XVI","Non-Insurance",null,"Investments in Entity - 6",null,null,null,null,{"$f":"'Schedule XVI'!K16","v":0}]
["Sch XVI","Non-Insurance",null,"Investments in Entity - 9",null,null,null,null,{"$f":"'Schedule XVI'!K19","v":0}]
["Sch XVI","Non-Insurance",null,"Regulatory Capital in Entity - 1",null,null,null,null,{"$f":"'Schedule XVI'!L11","v":0}]
["Sch XVI","Non-Insurance",null,"Regulatory Capital in Entity - 4",null,null,null,null,{"$f":"'Schedule XVI'!L14","v":0}]
["Sch XVI","Non-Insurance",null,"Regulatory Capital in Entity - 13",null,null,null,null,{"$f":"'Schedule XVI'!L23","v":0}]
["Sch XVI","Non-Insurance",null,"RCR 5",null,null,null,null,{"$f":"'Schedule XVI'!M15","v":0}]
["Sch XVI","Non-Insurance",null,"RCR 8",null,null,null,null,{"$f":"'Schedule XVI'!M18","v":0}]
[]
["Sch XVII","Sovency Analysis",null,"Name of Entity - 6",null,null,null,null,{"$f":"'Schedule XVII'!B16","v":0}]
["Sch XVII","Sovency Analysis",null,"Name of Entity - 12",null,null,null,null,{"$f":"'Schedule XVII'!B22","v":0}]
["Sch XVII","Sovency Analysis",null,"Name of Entity - 17",null,null,null,null,{"$f":"'Schedule XVII'!B27","v":0}]
["Sch XVII","Sovency Analysis",null,"Name of Entity - 20",null,null,null,null,{"$f":"'Schedule XVII'!B30","v":0}]
["Sch XVII","Sovency Analysis",null,"Name of Entity - 29",null,null,null,null,{"$f":"'Schedule XVII'!B39","v":0}]
["Sch XVII","Sovency Analysis",null,"Jurisdiction of Entity - 6",null,null,null,null,{"$f":"'Schedule XVII'!C16","v":0}]
["Sch XVII","Sovency Analysis",null,"Jurisdiction of Entity - 9",null,null,null,null,{"$f":"'Schedule XVII'!C19","v":0}]
["Sch XVII","Sovency Analysis",null,"Jurisdiction of Entity - 16",null,null,null,null,{"$f":"'Schedule XVII'!C26","v":0}]
["Sch XVII","Sovency Analysis",null,"Jurisdiction of Entity - 23",null,null,null,null,{"$f":"'Schedule XVII'!C33","v":0}]
["Sch XVII","Sovency Analysis",null,"Jurisdiction of Entity - 29",null,null,null,null,{"$f":"'Schedule XVII'!C39","v":0}]
["Sch XVII","Sovency Analysis",null,"Type of Entity - 6",null,null,null,null,{"$f":"'Schedule XVII'!D16","v":"Select"}]
["Sch XVII","Sovency Analysis",null,"Type of Entity - 9",null,null,null,null,{"$f":"'Schedule XVII'!D19","v":"Select"}]
["Sch XVII","Sovency Analysis",null,"Type of Entity - 18",null,null,null,null,{"$f":"'Schedule XVII'!D28","v":"Select"}]
["Sch XVII","Sovency Analysis",null,"Type of Entity - 25",null,null,null,null,{"$f":"'Schedule XVII'!D35","v":"Select"}]
["Sch XVII","Sovency Analysis",null,"Type of Entity - 28",null,null,null,null,{"$f":"'Schedule XVII'!D38","v":"Select"}]
["Sch XVII","Sovency Analysis",null,"% Ownership of Entity - 4",null,null,null,null,{"$f":"'Schedule XVII'!E14","v":0}]
["Sch XVII","Sovency Analysis",null,"% Ownership of Entity - 15",null,null,null,null,{"$f":"'Schedule XVII'!E25","v":0}]
["Sch XVII","Sovency Analysis",null,"% Ownership of Entity - 18",null,null,null,null,{"$f":"'Schedule XVII'!E28","v":0}]
["Sch XVII","Sovency Analysis",null,"% Ownership of Entity - 25",null,null,null,null,{"$f":"'Schedule XVII'!E35","v":0}]
["Sch XVII","Sovency Analysis",null,"% Ownership of Entity - 28",null,null,null,null,{"$f":"'Schedule XVII'!E38","v":0}]
["Sch XVII","Sovency Analysis",null,"GPW of Entity - 7",null,null,null,null,{"$f":"'Schedule XVII'!F17","v":0}]
["Sch XVII","Sovency Analysis",null,"GPW of Entity - 11",null,null,null,null,{"$f":"'Schedule XVII'!F21","v":0}]
["Sch XVII","Sovency Analysis",null,"GPW of Entity - 18",null,null,null,null,{"$f":"'Schedule XVII'!F28","v":0}]
["Sch XVII","Sovency Analysis",null,"GPW of Entity - 25",null,null,null,null,{"$f":"'Schedule XVII'!F35","v":0}]
["Sch XVII","Sovency Analysis",null,"NPW of Entity - 3",null,null,null,null,{"$f":"'Schedule XVII'!G13","v":0}]
["Sch XVII","Sovency Analysis",null,"NPW of Entity - 6",null,null,null,null,{"$f":"'Schedule XVII'!G16","v":0}]
["Sch XVII","Sovency Analysis",null,"NPW of Entity - 13",null,null,null,null,{"$f":"'Schedule XVII'!G23","v":0}]
["Sch XVII","Sovency Analysis",null,"NPW of Entity - 16",null,null,null,null,{"$f":"'Schedule XVII'!G26","v":0}]
["Sch XVII","Sovency Analysis",null,"NPW of Entity - 28",null,null,null,null,{"$f":"'Schedule XVII'!G38","v":0}]
["Sch XVII","Sovency Analysis",null,"Total Assets of Entity - 2",null,null,null,null,{"$f":"'Schedule XVII'!H12","v":0}]
["Sch XVII","Sovency Analysis",null,"Total Assets of Entity - 5",null,null,null,null,{"$f":"'Schedule XVII'!H15","v":0}]
["Sch XVII","Sovency Analysis",null,"Total Assets of Entity - 12",null,null,null,null,{"$f":"'Schedule XVII'!H22","v":0}]
["Sch XVII","Sovency Analysis",null,"Total Assets of Entity - 21",null,null,null,null,{"$f":"'Schedule XVII'!H31","v":0}]
["Sch XVII","Sovency Analysis",null,"Total Assets of Entity - 24",null,null,null,null,{"$f":"'Schedule XVII'!H34","v":0}]
["Sch XVII","Sovency Analysis",null,"Total Assets",null,null,null,null,{"$f":"'Schedule XVII'!H211","v":0}]
["Sch XVII","Sovency Analysis",null,"Net Assets of Entity - 3",null,null,null,null,{"$f":"'Schedule XVII'!I13","v":0}]
["Sch XVII","Sovency Analysis",null,"Net Assets of Entity - 11",null,null,null,null,{"$f":"'Schedule XVII'!I21","v":0}]
["Sch XVII","Sovency Analysis",null,"Net Assets of Entity - 20",null,null,null,null,{"$f":"'Schedule XVII'!I30","v":0}]
["Sch XVII","Sovency Analysis",null,"Net Assets of Entity - 23",null,null,null,null,{"$f":"'Schedule XVII'!I33","v":0}]
["Sch XVII","Sovency Analysis",null,"Net Assets of Entity - 30",null,null,null,null,{"$f":"'Schedule XVII'!I40","v":0}]
["Sch XVII","Sovency Analysis",null,"Regulatory Capital of Entity - 8",null,null,null,null,{"$f":"'Schedule XVII'!J18","v":0}]
["Sch XVII","Sovency Analysis",null,"Regulatory Capital of Entity - 9",null,null,null,null,{"$f":"'Schedule XVII'!J19","v":0}]
["Sch XVII","Sovency Analysis",null,"Regulatory Capital of Entity - 20",null,null,null,null,{"$f":"'Schedule XVII'!J30","v":0}]
["Sch XVII","Sovency Analysis",null,"Regulatory Capital of Entity - 22",null,null,null,null,{"$f":"'Schedule XVII'!J32","v":0}]
["Sch XVII","Sovency Analysis",null,"Regulatory Capital of Entity - 29",null,null,null,null,{"$f":"'Schedule XVII'!J39","v":0}]
["Sch XVIII","Ceded Reins",null,"Reinsurer Name - 5",{"$f":"'Schedule XVIII'!C19","v":0},null,null,null,null,null,null,null,{"$f":"'Schedule XVIII (EBS)'!C19","v":0}]
["Sch XVIII","Ceded Reins",null,"Reinsurer Name - 8",{"$f":"'Schedule XVIII'!C22","v":0},null,null,null,null,null,null,null,{"$f":"'Schedule XVIII (EBS)'!C22","v":0}]
["Sch XVIII","Ceded Reins",null,"Reinsurer Name - 15",{"$f":"'Schedule XVIII'!C29","v":0},null,null,null,null,null,null,null,{"$f":"'Schedule XVIII (EBS)'!C29","v":0}]
["Sch XVIII","Ceded Reins",null,"Reinsurer Name - 24",{"$f":"'Schedule XVIII'!C38","v":0},null,null,null,null,null,null,null,{"$f":"'Schedule XVIII (EBS)'!C38","v":0}]
["Sch XVIII","Ceded Reins",null,"Reinsurer Name - 28",{"$f":"'Schedule XVIII'!C42","v":0},null,null,null,null,null,null,null,{"$f":"'Schedule XVIII (EBS)'!C42","v":0}]
["Sch XVIII","Ceded Reins",null,"Reinsurer BSCR Rating - 5",{"$f":"'Schedule XVIII'!E19","v":"Select"},null,null,null,null,null,null,null,{"$f":"'Schedule XVIII (EBS)'!E19","v":"Select"}]
["Sch XVIII","Ceded Reins",null,"Reinsurer BSCR Rating - 8",{"$f":"'Schedule XVIII'!E22","v":"Select"},null,null,null,null,null,null,null,{"$f":"'Schedule XVIII (EBS)'!E22","v":"Select"}]
["Sch XVIII","Ceded Reins",null,"Reinsurer BSCR Rating - 15",{"$f":"'Schedule XVIII'!E29","v":"Select"},null,null,null,null,null,null,null,{"$f":"'Schedule XVIII (EBS)'!E29","v":"Select"}]
["Sch XVIII","Ceded Reins",null,"Reinsurer BSCR Rating - 24",{"$f":"'Schedule XVIII'!E38","v":"Select"},null,null,null,null,null,null,null,{"$f":"'Schedule XVIII (EBS)'!E38","v":"Select"}]
["Sch XVIII","Ceded Reins",null,"Reinsurer BSCR Rating - 27",{"$f":"'Schedule XVIII'!E41","v":"Select"},null,null,null,null,null,null,null,{"$f":"'Schedule XVIII (EBS)'!E41","v":"Select"}]
["Sch XVIII","Ceded Reins",null,"Reinsurer R/I Assets - 4",{"$f":"'Schedule XVIII'!G18","v":0},null,null,null,null,null,null,null,{"$f":"'Schedule XVIII (EBS)'!G18","v":0}]
["Sch XVIII","Ceded Reins",null,"Reinsurer R/I Assets - 12",{"$f":"'Schedule XVIII'!G26","v":0},null,null,null,null,null,null,null,{"$f":"'Schedule XVIII (EBS)'!G26","v":0}]
["Sch XVIII","Ceded Reins",null,"Reinsurer R/I Assets - 15",{"$f":"'Schedule XVIII'!G29","v":0},null,null,null,null,null,null,null,{"$f":"'Schedule XVIII (EBS)'!G29","v":0}]
["Sch XVIII","Ceded Reins",null,"Reinsurer R/I Assets - 24",{"$f":"'Schedule XVIII'!G38","v":0},null,null,null,null,null,null,null,{"$f":"'Schedule XVIII (EBS)'!G38","v":0}]
["Sch XVIII","Ceded Reins",null,"Reinsurer R/I Assets - 27",{"$f":"'Schedule XVIII'!G41","v":0},null,null,null,null,null,null,null,{"$f":"'Schedule XVIII (EBS)'!G41","v":0}]
["Sch XVIII","Ceded Reins",null,"Reinsurer R/I Payable - 3",{"$f":"'Schedule XVIII'!I17","v":0},null,null,null,null,null,null,null,{"$f":"'Schedule XVIII (EBS)'!I17","v":0}]
["Sch XVIII","Ceded Reins",null,"Reinsurer R/I Payable - 12",{"$f":"'Schedule XVIII'!I26","v":0},null,null,null,null,null,null,null,{"$f":"'Schedule XVIII (EBS)'!I26","v":0}]
["Sch XVIII","Ceded Reins",null,"Reinsurer R/I Payable - 19",{"$f":"'Schedule XVIII'!I33","v":0},null,null,null,null,null,null,null,{"$f":"'Schedule XVIII (EBS)'!I33","v":0}]
["Sch XVIII","Ceded Reins",null,"Reinsurer R/I Payable - 22",{"$f":"'Schedule XVIII'!I36","v":0},null,null,null,null,null,null,null,{"$f":"'Schedule XVIII (EBS)'!I36","v":0}]
["Sch XVIII","Ceded Reins",null,"Reinsurer Collateral - 1",{"$f":"'Schedule XVIII'!K15","v":0},null,null,null,null,null,null,null,{"$f":"'Schedule XVIII (EBS)'!K15","v":0}]
["Sch XVIII","Ceded Reins",null,"Reinsurer Collateral - 2",{"$f":"'Schedule XVIII'!K16","v":0},null,null,null,null,null,null,null,{"$f":"'Schedule XVIII (EBS)'!K16","v":0}]
["Sch XVIII","Ceded Reins",null,"Reinsurer Collateral - 11",{"$f":"'Schedule XVIII'!K25","v":0},null,null,null,null,null,null,null,{"$f":"'Schedule XVIII (EBS)'!K25","v":0}]
["Sch XVIII","Ceded Reins",null,"Reinsurer Collateral - 14",{"$f":"'Schedule XVIII'!K28","v":0},null,null,null,null,null,null,null,{"$f":"'Schedule XVIII (EBS)'!K28","v":0}]
["Sch XVIII","Ceded Reins",null,"Reinsurer Collateral - 21",{"$f":"'Schedule XVIII'!K35","v":0},null,null,null,null,null,null,null,{"$f":"'Schedule XVIII (EBS)'!K35","v":0}]
["Sch XVIII","Ceded Reins",null,"Reinsurer Collateral - 30",{"$f":"'Schedule XVIII'!K44","v":0},null,null,null,null,null,null,null,{"$f":"'Schedule XVIII (EBS)'!K44","v":0}]
["Sch XVIII","Ceded Reins",null,"R/I Assets - Exposure by BSCR Rate 0",{"$f":"'Schedule XVIII'!G58","v":0},null,null,null,null,null,null,null,{"$f":"'Schedule XVIII (EBS)'!G58","v":0}]
["Sch XVIII","Ceded Reins",null,"R/I Assets - Exposure Total",{"$f":"'Schedule XVIII'!G67","v":0},null,null,null,null,null,null,null,{"$f":"'Schedule XVIII (EBS)'!G67","v":0}]
["Sch XVIII","Ceded Reins",null,"R/I Payable - Exposure by BSCR Rate 7",{"$f":"'Schedule XVIII'!I65","v":0},null,null,null,null,null,null,null,{"$f":"'Schedule XVIII (EBS)'!I65","v":0}]
["Sch XVIII","Ceded Reins",null,"R/I Payable - Exposure by BSCR Rate 8",{"$f":"'Schedule XVIII'!I66","v":0},null,null,null,null,null,null,null,{"$f":"'Schedule XVIII (EBS)'!I66","v":0}]
["Sch XVIII","Ceded Reins",null,"Collateral - Exposure by BSCR Rate 6",{"$f":"'Schedule XVIII'!K64","v":0},null,null,null,null,null,null,null,{"$f":"'Schedule XVIII (EBS)'!K64","v":0}]
["Sch XVIII","Ceded Reins",null,"Collateral - Exposure Total",{"$f":"'Schedule XVIII'!K67","v":0},null,null,null,null,null,null,null,{"$f":"'Schedule XVIII (EBS)'!K67","v":0}]
["Sch XIX","Cash Counterpart",null,"Name - Counterparty 5",{"$f":"'Schedule XIX'!C18","v":0}]
["Sch XIX","Cash Counterpart",null,"Name - Counterparty 11",{"$f":"'Schedule XIX'!C24","v":0}]
["Sch XIX","Cash Counterpart",null,"BSCR Rating - Counterparty 2",{"$f":"'Schedule XIX'!D15","v":"Select"}]
["Sch XIX","Cash Counterpart",null,"BSCR Rating - Counterparty 5",{"$f":"'Schedule XIX'!D18","v":"Select"}]
["Sch XIX","Cash Counterpart",null,"BSCR Rating - Counterparty 14",{"$f":"'Schedule XIX'!D27","v":"Select"}]
["Sch XIX","Cash Counterpart",null,"BSCR Rating - Counterparty 15",{"$f":"'Schedule XIX'!D28","v":"Select"}]
["Sch XIX","Cash Counterpart",null,"Counterparty Value 4",{"$f":"'Schedule XIX'!F17","v":0},null,null,null,null,null,null,null,{"$f":"'Schedule XIX'!H17","v":0}]
["Sch XIX","Cash Counterpart",null,"Counterparty Value 11",{"$f":"'Schedule XIX'!F24","v":0},null,null,null,null,null,null,null,{"$f":"'Schedule XIX'!H24","v":0}]
["Sch XIX","Cash Counterpart",null,"Counterparty Value 19",{"$f":"'Schedule XIX'!F32","v":0},null,null,null,null,null,null,null,{"$f":"'Schedule XIX'!H32","v":0}]
["Sch XIX","Cash Counterpart",null,"Exposure BSCR Rate 2",{"$f":"'Schedule XIX'!F59","v":0},null,null,null,null,null,null,null,{"$f":"'Schedule XIX'!H59","v":0}]
[]
["Sch XX","Currency Analysis",null,"Assets - UK £",{"$f":"'Schedule XX'!D11","v":0},null,null,null,null,null,null,null,{"$f":"'Schedule XX'!L11","v":0}]
["Sch XX","Currency Analysis",null,"Assets - Other 7",{"$f":"'Schedule XX'!D20","v":0},null,null,null,null,null,null,null,{"$f":"'Schedule XX'!L20","v":0}]
["Sch XX","Currency Analysis",null,"Assets - Other 8",{"$f":"'Schedule XX'!D21","v":0},null,null,null,null,null,null,null,{"$f":"'Schedule XX'!L21","v":0}]
["Sch XX","Currency Analysis",null,"Hedge Assets - Other 4",{"$f":"'Schedule XX'!F17","v":0},null,null,null,null,null,null,null,{"$f":"'Schedule XX'!N17","v":0}]
["Sch XX","Currency Analysis",null,"Hedge Assets - Other 9",{"$f":"'Schedule XX'!F22","v":0},null,null,null,null,null,null,null,{"$f":"'Schedule XX'!N22","v":0}]
["Sch XX","Currency Analysis",null,"Liab. - USD",{"$f":"'Schedule XX'!H9","v":0},null,null,null,null,null,null,null,{"$f":"'Schedule XX'!P9","v":0}]
["Sch XX","Currency Analysis",null,"Liab. - Other 5",{"$f":"'Schedule XX'!H18","v":0},null,null,null,null,null,null,null,{"$f":"'Schedule XX'!P18","v":0}]
["Sch XX","Currency Analysis",null,"Hedge Liab. - USD",{"$f":"'Schedule XX'!J9","v":0},null,null,null,null,null,null,null,{"$f":"'Schedule XX'!R9","v":0}]
["Sch XX","Currency Analysis",null,"Hedge Liab. - CDN",{"$f":"'Schedule XX'!J12","v":0},null,null,null,null,null,null,null,{"$f":"'Schedule XX'!R12","v":0}]
["Sch XX","Currency Analysis",null,"Hedge Liab. - Other 6",{"$f":"'Schedule XX'!J19","v":0},null,null,null,null,null,null,null,{"$f":"'Schedule XX'!R19","v":0}]
["Sch XX","Currency Analysis",null,"Liabilities Prior Year 2",null,null,null,null,null,null,null,null,{"$f":"'Schedule XX'!L35","v":0}]
["Sch XXI","Inv Con Risk",null,"# of Exposures",{"$f":"'Schedule XXI'!J3","v":0}]
["Sch XXI","Inv Con Risk",null,"Name of Exposure - 7",{"$f":"'Schedule XXI'!C14","v":0}]
["Sch XXI","Inv Con Risk",null,"Name of Exposure - 10",{"$f":"'Schedule XXI'!C17","v":0}]
["Sch XXI","Inv Con Risk",null,"Name of Exposure - 19",{"$f":"'Schedule XXI'!C26","v":0}]
["Sch XXI","Inv Con Risk",null,"Name of Exposure - 26",{"$f":"'Schedule XXI'!C33","v":0}]
["Sch XXI","Inv Con Risk",null,"Name of Exposure - 29",{"$f":"'Schedule XXI'!C36","v":0}]
["Sch XXI","Inv Con Risk",null,"Name of Exposure - 35",{"$f":"'Schedule XXI'!C42","v":0}]
["Sch XXI","Inv Con Risk",null,"Name of Exposure - 40",{"$f":"'Schedule XXI'!C47","v":0}]
["Sch XXI","Inv Con Risk",null,"Asset Type - 9",{"$f":"'Schedule XXI'!E16","v":"Select"},null,null,null,null,null,null,null,{"$f":"'Schedule XXI'!J16","v":"Select"}]
["Sch XXI","Inv Con Risk",null,"Asset Type - 16",{"$f":"'Schedule XXI'!E23","v":"Select"},null,null,null,null,null,null,null,{"$f":"'Schedule XXI'!J23","v":"Select"}]
["Sch XXI","Inv Con Risk",null,"Asset Type - 19",{"$f":"'Schedule XXI'!E26","v":"Select"},null,null,null,null,null,null,null,{"$f":"'Schedule XXI'!J26","v":"Select"}]
["Sch XXI","Inv Con Risk",null,"Asset Type - 28",{"$f":"'Schedule XXI'!E35","v":"Select"},null,null,null,null,null,null,null,{"$f":"'Schedule XXI'!J35","v":"Select"}]
["Sch XXI","Inv Con Risk",null,"Asset Type - 35",{"$f":"'Schedule XXI'!E42","v":"Select"},null,null,null,null,null,null,null,{"$f":"'Schedule XXI'!J42","v":"Select"}]
["Sch XXI","Inv Con Risk",null,"Asset Type - 39",{"$f":"'Schedule XXI'!E46","v":"Select"},null,null,null,null,null,null,null,{"$f":"'Schedule XXI'!J46","v":"Select"}]
["Sch XXI","Inv Con Risk",null,"Bond Type - 6",{"$f":"'Schedule XXI'!F13","v":"Select"},null,null,null,null,null,null,null,{"$f":"'Schedule XXI'!K13","v":"Select"}]
["Sch XXI","Inv Con Risk",null,"Bond Type - 9",{"$f":"'Schedule XXI'!F16","v":"Select"},null,null,null,null,null,null,null,{"$f":"'Schedule XXI'!K16","v":"Select"}]
["Sch XXI","Inv Con Risk",null,"Bond Type - 18",{"$f":"'Schedule XXI'!F25","v":"Select"},null,null,null,null,null,null,null,{"$f":"'Schedule XXI'!K25","v":"Select"}]
["Sch XXI","Inv Con Risk",null,"Bond Type - 25",{"$f":"'Schedule XXI'!F32","v":"Select"},null,null,null,null,null,null,null,{"$f":"'Schedule XXI'!K32","v":"Select"}]
["Sch XXI","Inv Con Risk",null,"Bond Type - 28",{"$f":"'Schedule XXI'!F35","v":"Select"},null,null,null,null,null,null,null,{"$f":"'Schedule XXI'!K35","v":"Select"}]
["Sch XXI","Inv Con Risk",null,"Bond Type - 35",{"$f":"'Schedule XXI'!F42","v":"Select"},null,null,null,null,null,null,null,{"$f":"'Schedule XXI'!K42","v":"Select"}]
["Sch XXI","Inv Con Risk",null,"Bond Type - 40",{"$f":"'Schedule XXI'!F47","v":"Select"},null,null,null,null,null,null,null,{"$f":"'Schedule XXI'!K47","v":"Select"}]
["Sch XXI","Inv Con Risk",null,"BSCR Rating - 8",{"$f":"'Schedule XXI'!G15","v":"Select"},null,null,null,null,null,null,null,{"$f":"'Schedule XXI'!L15","v":"Select"}]
["Sch XXI","Inv Con Risk",null,"BSCR Rating - 15",{"$f":"'Schedule XXI'!G22","v":"Select"},null,null,null,null,null,null,null,{"$f":"'Schedule XXI'!L22","v":"Select"}]
["Sch XXI","Inv Con Risk",null,"BSCR Rating - 18",{"$f":"'Schedule XXI'!G25","v":"Select"},null,null,null,null,null,null,null,{"$f":"'Schedule XXI'!L25","v":"Select"}]
["Sch XXI","Inv Con Risk",null,"BSCR Rating - 27",{"$f":"'Schedule XXI'!G34","v":"Select"},null,null,null,null,null,null,null,{"$f":"'Schedule XXI'!L34","v":"Select"}]
["Sch XXI","Inv Con Risk",null,"BSCR Rating - 34",{"$f":"'Schedule XXI'!G41","v":"Select"},null,null,null,null,null,null,null,{"$f":"'Schedule XXI'!L41","v":"Select"}]
["Sch XXI","Inv Con Risk",null,"BSCR Rating - 37",{"$f":"'Schedule XXI'!G44","v":"Select"},null,null,null,null,null,null,null,{"$f":"'Schedule XXI'!L44","v":"Select"}]
["Sch XXI","Inv Con Risk",null,"Asset Value - 8",{"$f":"'Schedule XXI'!H15","v":0},null,null,null,null,null,null,null,{"$f":"'Schedule XXI'!M15","v":0}]
["Sch XXI","Inv Con Risk",null,"Asset Value - 14",{"$f":"'Schedule XXI'!H21","v":0},null,null,null,null,null,null,null,{"$f":"'Schedule XXI'!M21","v":0}]
["Sch XXI","Inv Con Risk",null,"Asset Value - 17",{"$f":"'Schedule XXI'!H24","v":0},null,null,null,null,null,null,null,{"$f":"'Schedule XXI'!M24","v":0}]
["Sch XXI","Inv Con Risk",null,"Asset Value - 24",{"$f":"'Schedule XXI'!H31","v":0},null,null,null,null,null,null,null,{"$f":"'Schedule XXI'!M31","v":0}]
["Sch XXI","Inv Con Risk",null,"Asset Value - 27",{"$f":"'Schedule XXI'!H34","v":0},null,null,null,null,null,null,null,{"$f":"'Schedule XXI'!M34","v":0}]
["Sch XXI","Inv Con Risk",null,"Asset Value - 34",{"$f":"'Schedule XXI'!H41","v":0},null,null,null,null,null,null,null,{"$f":"'Schedule XXI'!M41","v":0}]
["Op Risk","Corp Gov",null,"Corporate Governance Q1",null,null,null,null,{"$f":"'Corp Gov'!D12","v":0}]
["Op Risk","Corp Gov",null,"Corporate Governance Q3",null,null,null,null,{"$f":"'Corp Gov'!D14","v":0}]
["Op Risk","Risk Mngt",null,"Risk Management Q5",null,null,null,null,{"$f":"'Risk Man'!D15","v":0}]
["Op Risk","Indentification",null,"Identification - Info. Systems (Class 4/3B Only)",null,null,null,null,{"$f":"Identification!K19","v":0}]
["Op Risk","Measurement",null,"Measurement - HR (Class 4/3B Only)",null,null,null,null,{"$f":"Measurement!F19","v":0}]
["Op Risk","Response",null,"Response - Fraud (Class 4/3B Only)",null,null,null,null,{"$f":"Response!E19","v":0}]
["Op Risk","Response",null,"Response - Dis. Channels (Class 4/3B Only)",null,null,null,null,{"$f":"Response!H19","v":0}]
["Op Risk","Mont. & Reporting",null,"Mont. & Reporting - Outsourcing (Class 4/3B Only)",null,null,null,null,{"$f":"'Monitoring & Reporting'!G19","v":0}]
["Summary",null,null,"Deferred Tax Asset - Loss Carryback Provision",null,null,null,null,null,null,null,null,{"$f":"Summary!G154","v":0}]
["Sch IIB","Investments",null,"Corp. Bonds - BSCR Rate 0",null,null,null,null,null,null,null,null,{"$f":"'Schedule IIB (EBS)'!D13","v":0},null,{"$f":"'Schedule IIB (EBS)'!F13","v":0}]
["Sch IIB","Investments",null,"Corp. Bonds - BSCR Rate 7",null,null,null,null,null,null,null,null,{"$f":"'Schedule IIB (EBS)'!D20","v":0},null,{"$f":"'Schedule IIB (EBS)'!F20","v":0}]
["Sch IIB","Investments",null,"Residential MBS - BSCR Rate 8",null,null,null,null,null,null,null,null,{"$f":"'Schedule IIB (EBS)'!H21","v":0},null,{"$f":"'Schedule IIB (EBS)'!J21","v":0}]
["Sch IIB","Investments",null,"Commercial MBS - BSCR Rate 3",null,null,null,null,null,null,null,null,{"$f":"'Schedule IIB (EBS)'!L16","v":0},null,{"$f":"'Schedule IIB (EBS)'!N16","v":0}]
["Sch IIB","Investments",null,"Bonds Mutual Fund - BSCR Rate 1",null,null,null,null,null,null,null,null,{"$f":"'Schedule IIB (EBS)'!P14","v":0},null,{"$f":"'Schedule IIB (EBS)'!R14","v":0}]
["Sch IIB","Investments",null,"Bonds Mutual Fund - BSCR Rate 4",null,null,null,null,null,null,null,null,{"$f":"'Schedule IIB (EBS)'!P17","v":0},null,{"$f":"'Schedule IIB (EBS)'!R17","v":0}]
["Sch IIB","Investments",null,"Long Positions - Before - Strategic Holdings - Listed",null,null,null,null,null,null,null,null,{"$f":"'Schedule IIB (EBS)'!D39","v":0}]
["Sch IIB","Investments",null,"Long Positions - Before - Preferred Stocks, BSCR Rating 6",null,null,null,null,null,null,null,null,{"$f":"'Schedule IIB (EBS)'!D47","v":0}]
["Sch IIB","Investments",null,"Long Positions - Before - Equity Derivatives on Type 1 Equities",null,null,null,null,null,null,null,null,{"$f":"'Schedule IIB (EBS)'!D50","v":0}]
["Sch IIB","Investments",null,"Long Positions - Before - Infrastructure",null,null,null,null,null,null,null,null,{"$f":"'Schedule IIB (EBS)'!D57","v":0}]
["Sch IIB","Investments",null,"Long Positions - After - Preferred Stocks, BSCR Rating 3",null,null,null,null,null,null,null,null,{"$f":"'Schedule IIB (EBS)'!F44","v":0}]
["Sch IIB","Investments",null,"Long Positions - After - Preferred Stocks, BSCR Rating 4",null,null,null,null,null,null,null,null,{"$f":"'Schedule IIB (EBS)'!F45","v":0}]
["Sch IIB","Investments",null,"Long Positions - After - Intangible assets",null,null,null,null,null,null,null,null,{"$f":"'Schedule IIB (EBS)'!F54","v":0}]
["Sch IIB","Investments",null,"Short - Before - Qualified Assets - Strategic Holdings - Listed",null,null,null,null,null,null,null,null,{"$f":"'Schedule IIB (EBS)'!H39","v":0}]
["Sch IIB","Investments",null,"Short - Before - Qualified Assets - Preferred Stocks, BSCR Rating 2",null,null,null,null,null,null,null,null,{"$f":"'Schedule IIB (EBS)'!H43","v":0}]
["Sch IIB","Investments",null,"Short - Before - Qualified Assets - Other Equities",null,null,null,null,null,null,null,null,{"$f":"'Schedule IIB (EBS)'!H52","v":0}]
["Sch IIB","Investments",null,"Short - Before - Qualified Assets - Pension Benefit Surplus",null,null,null,null,null,null,null,null,{"$f":"'Schedule IIB (EBS)'!H55","v":0}]
["Sch IIB","Investments",null,"Short - After - Qualified Assets - Duration Based",null,null,null,null,null,null,null,null,{"$f":"'Schedule IIB (EBS)'!J40","v":0}]
["Sch IIB","Investments",null,"Short - After - Qualified Assets - Preferred Stocks, BSCR Rating 8",null,null,null,null,null,null,null,null,{"$f":"'Schedule IIB (EBS)'!J49","v":0}]
["Sch IIB","Investments",null,"Short - After - Qualified Assets - Strategic Holdings - Unlisted",null,null,null,null,null,null,null,null,{"$f":"'Schedule IIB (EBS)'!J51","v":0}]
["Sch IIB","Investments",null,"Short - After - Qualified Assets - Equity Real Estate 2",null,null,null,null,null,null,null,null,{"$f":"'Schedule IIB (EBS)'!J60","v":0}]
["Sch IIB","Investments",null,"Short - Before - UnQualified Assets - Listed Equity Securities in Developed Markets",null,null,null,null,null,null,null,null,{"$f":"'Schedule IIB (EBS)'!L41","v":0}]
["Sch IIB","Investments",null,"Short - Before - UnQualified Assets - Preferred Stocks, BSCR Rating 7",null,null,null,null,null,null,null,null,{"$f":"'Schedule IIB (EBS)'!L48","v":0}]
["Sch IIB","Investments",null,"Short - Before - UnQualified Assets - Infrastructure",null,null,null,null,null,null,null,null,{"$f":"'Schedule IIB (EBS)'!L57","v":0}]
["Sch IIB","Investments",null,"Short - Before - UnQualified Assets - Equity Real Estate 2",null,null,null,null,null,null,null,null,{"$f":"'Schedule IIB (EBS)'!L60","v":0}]
["Sch IIB","Investments",null,"Short - After - UnQualified Assets - Preferred Stocks, BSCR Rating 4",null,null,null,null,null,null,null,null,{"$f":"'Schedule IIB (EBS)'!N45","v":0}]
["Sch IIB","Investments",null,"Short - After - UnQualified Assets - Strategic Holdings - Unlisted",null,null,null,null,null,null,null,null,{"$f":"'Schedule IIB (EBS)'!N51","v":0}]
["Sch IIB","Investments",null,"Short - After - UnQualified Assets - Equity Derivatives on Type 2 Equities",null,null,null,null,null,null,null,null,{"$f":"'Schedule IIB (EBS)'!N56","v":0}]
["Sch IIB","Investments",null,"Liabilities - Before - W/O Mgmt Actions - Preferred Stocks, BSCR Rating 2",null,null,null,null,null,null,null,null,{"$f":"'Schedule IIB (EBS)'!P43","v":0}]
["Sch IIB","Investments",null,"Liabilities - Before - W/O Mgmt Actions - Preferred Stocks, BSCR Rating 5",null,null,null,null,null,null,null,null,{"$f":"'Schedule IIB (EBS)'!P46","v":0}]
["Sch IIB","Investments",null,"Liabilities - Before - W/O Mgmt Actions - Letters of Credit",null,null,null,null,null,null,null,null,{"$f":"'Schedule IIB (EBS)'!P53","v":0}]
["Sch IIB","Investments",null,"Liabilities - After - W/O Mgmt Actions - Duration Based",null,null,null,null,null,null,null,null,{"$f":"'Schedule IIB (EBS)'!R40","v":0}]
["Sch IIB","Investments",null,"Liabilities - After - W/O Mgmt Actions - Preferred Stocks, BSCR Rating 6",null,null,null,null,null,null,null,null,{"$f":"'Schedule IIB (EBS)'!R47","v":0}]
["Sch IIB","Investments",null,"Liabilities - After - W/O Mgmt Actions - Preferred Stocks, BSCR Rating 7",null,null,null,null,null,null,null,null,{"$f":"'Schedule IIB (EBS)'!R48","v":0}]
["Sch IIB","Investments",null,"Liabilities - After - W/O Mgmt Actions - Equity Real Estate 2",null,null,null,null,null,null,null,null,{"$f":"'Schedule IIB (EBS)'!R60","v":0}]
["Sch IIB","Investments",null,"Liabilities - After - With Mgmt Actions - Strategic Holdings - Listed",null,null,null,null,null,null,null,null,{"$f":"'Schedule IIB (EBS)'!T39","v":0}]
["Sch IIB","Investments",null,"Liabilities - After - With Mgmt Actions - Preferred Stocks, BSCR Rating 7",null,null,null,null,null,null,null,null,{"$f":"'Schedule IIB (EBS)'!T48","v":0}]
["Sch IIB","Investments",null,"Liabilities - After - With Mgmt Actions - Strategic Holdings - Unlisted",null,null,null,null,null,null,null,null,{"$f":"'Schedule IIB (EBS)'!T51","v":0}]
["Sch IIB","Investments",null,"Liabilities - After - With Mgmt Actions - Derivatives on Infrastructure",null,null,null,null,null,null,null,null,{"$f":"'Schedule IIB (EBS)'!T58","v":0}]
["Sch IIB","Investments",null,"Credit Derivatives - Up - Before - Long-Rating 6",null,null,null,null,null,null,null,null,{"$f":"'Schedule IIB (EBS)'!D74","v":0}]
["Sch IIB","Investments",null,"Credit Derivatives - Up - After - Long- Rating 4",null,null,null,null,null,null,null,null,{"$f":"'Schedule IIB (EBS)'!F72","v":0}]
["Sch IIB","Investments",null,"Credit Derivatives - Up - After - Long- Rating 8",null,null,null,null,null,null,null,null,{"$f":"'Schedule IIB (EBS)'!F76","v":0}]
["Sch IIB","Investments",null,"Credit Derivatives - Up - Before - Short- Rating 8",null,null,null,null,null,null,null,null,{"$f":"'Schedule IIB (EBS)'!H76","v":0}]
["Sch IIB","Investments",null,"Credit Derivatives - Up - After - Short- Rating 0",null,null,null,null,null,null,null,null,{"$f":"'Schedule IIB (EBS)'!J68","v":0}]
["Sch IIB","Investments",null,"Credit Derivatives - Down - Before - Long-Rating 0",null,null,null,null,null,null,null,null,{"$f":"'Schedule IIB (EBS)'!N68","v":0}]
["Sch IIB","Investments",null,"Credit Derivatives - Down - Before - Long-Rating 7",null,null,null,null,null,null,null,null,{"$f":"'Schedule IIB (EBS)'!N75","v":0}]
["Sch IIB","Investments",null,"Credit Derivatives - Down - After - Long- Rating 1",null,null,null,null,null,null,null,null,{"$f":"'Schedule IIB (EBS)'!P69","v":0}]
["Sch IIB","Investments",null,"Credit Derivatives - Down - Before - Short- Rating 3",null,null,null,null,null,null,null,null,{"$f":"'Schedule IIB (EBS)'!R71","v":0}]
["Sch IIB","Investments",null,"Credit Derivatives - Down - After - Short- Rating 0",null,null,null,null,null,null,null,null,{"$f":"'Schedule IIB (EBS)'!T68","v":0}]
["Sch IIB","Investments",null,"Credit Derivatives - Down - After - Short- Rating 3",null,null,null,null,null,null,null,null,{"$f":"'Schedule IIB (EBS)'!T71","v":0}]
["Sch IIB","Investments",null,"Counterparty Default Risk - MV of Derivatives - MV Positive - Rating 3",null,null,null,null,null,null,null,null,{"$f":"'Schedule IIB (EBS)'!D87","v":0}]
["Sch IIB","Investments",null,"Counterparty Default Risk - MV of Derivatives - MV Positive - Rating 4",null,null,null,null,null,null,null,null,{"$f":"'Schedule IIB (EBS)'!D88","v":0}]
["Sch IIB","Investments",null,"Counterparty Default Risk - MV of Derivatives - MV Negative - Rating 4",null,null,null,null,null,null,null,null,{"$f":"'Schedule IIB (EBS)'!F88","v":0}]
["Sch IIB","Investments",null,"Counterparty Default Risk - MV of Collateral - Rating 2",null,null,null,null,null,null,null,null,{"$f":"'Schedule IIB (EBS)'!H86","v":0}]
["Sch IIB","Investments",null,"Counterparty Default Risk - MV of Collateral - Rating 8",null,null,null,null,null,null,null,null,{"$f":"'Schedule IIB (EBS)'!H92","v":0}]
["Sch IIB","Investments",null,"NAIC Resid. MBS - Orig. Class 6",null,null,null,null,null,null,null,null,{"$f":"'Schedule IIB (EBS)'!N91","v":0}]
["Sch IIB","Investments",null,"NAIC Resid. MBS - Rev. Class 6",null,null,null,null,null,null,null,null,{"$f":"'Schedule IIB (EBS)'!P91","v":0}]
["Sch IIB","Investments",null,"NAIC Comm. MBS - Orig. Class 2",null,null,null,null,null,null,null,null,{"$f":"'Schedule IIB (EBS)'!R87","v":0}]
["Sch IIB","Investments",null,"NAIC Comm. MBS - Rev. Class 4",null,null,null,null,null,null,null,null,{"$f":"'Schedule IIB (EBS)'!T89","v":0}]
["Sch IIB","Investments",null,"NAIC Comm. MBS - Rev. Class 5",null,null,null,null,null,null,null,null,{"$f":"'Schedule IIB (EBS)'!T90","v":0}]
["Sch IIC","Funds Held",null,"Corp. Bonds - BSCR Rate 5",null,null,null,null,null,null,null,null,{"$f":"'Schedule IIC (EBS)'!D18","v":0},null,{"$f":"'Schedule IIC (EBS)'!F18","v":0}]
["Sch IIC","Funds Held",null,"Residential MBS - BSCR Rate 2",null,null,null,null,null,null,null,null,{"$f":"'Schedule IIC (EBS)'!H15","v":0},null,{"$f":"'Schedule IIC (EBS)'!J15","v":0}]
["Sch IIC","Funds Held",null,"Residential MBS - BSCR Rate 8",null,null,null,null,null,null,null,null,{"$f":"'Schedule IIC (EBS)'!H21","v":0},null,{"$f":"'Schedule IIC (EBS)'!J21","v":0}]
["Sch IIC","Funds Held",null,"Bonds Mutual Fund - BSCR Rate 0",null,null,null,null,null,null,null,null,{"$f":"'Schedule IIC (EBS)'!P13","v":0},null,{"$f":"'Schedule IIC (EBS)'!R13","v":0}]
["Sch IIC","Funds Held",null,"Bonds Mutual Fund - BSCR Rate 7",null,null,null,null,null,null,null,null,{"$f":"'Schedule IIC (EBS)'!P20","v":0},null,{"$f":"'Schedule IIC (EBS)'!R20","v":0}]
["Sch IIC","Funds Held",null,"Mortgage Loans - Other Commercial",null,null,null,null,null,null,null,null,{"$f":"'Schedule IIC (EBS)'!T23","v":0},null,{"$f":"'Schedule IIC (EBS)'!V23","v":0}]
["Sch IIC","Funds Held",null,"Long Positions - Before - Preferred Stocks, BSCR Rating 2",null,null,null,null,null,null,null,null,{"$f":"'Schedule IIC (EBS)'!D43","v":0}]
["Sch IIC","Funds Held",null,"Long Positions - Before - Preferred Stocks, BSCR Rating 5",null,null,null,null,null,null,null,null,{"$f":"'Schedule IIC (EBS)'!D46","v":0}]
["Sch IIC","Funds Held",null,"Long Positions - Before - Pension Benefit Surplus",null,null,null,null,null,null,null,null,{"$f":"'Schedule IIC (EBS)'!D55","v":0}]
["Sch IIC","Funds Held",null,"Long Positions - After - Listed Equity Securities in Developed Markets",null,null,null,null,null,null,null,null,{"$f":"'Schedule IIC (EBS)'!F41","v":0}]
["Sch IIC","Funds Held",null,"Long Positions - After - Preferred Stocks, BSCR Rating 3",null,null,null,null,null,null,null,null,{"$f":"'Schedule IIC (EBS)'!F44","v":0}]
["Sch IIC","Funds Held",null,"Long Positions - After - Letters of Credit",null,null,null,null,null,null,null,null,{"$f":"'Schedule IIC (EBS)'!F53","v":0}]
["Sch IIC","Funds Held",null,"Long Positions - After - Equity Real Estate 2",null,null,null,null,null,null,null,null,{"$f":"'Schedule IIC (EBS)'!F60","v":0}]
["Sch IIC","Funds Held",null,"Short - Before - Qualified Assets - Listed Equity Securities in Developed Markets",null,null,null,null,null,null,null,null,{"$f":"'Schedule IIC (EBS)'!H41","v":0}]
["Sch IIC","Funds Held",null,"Short - Before - Qualified Assets - Preferred Stocks, BSCR Rating 7",null,null,null,null,null,null,null,null,{"$f":"'Schedule IIC (EBS)'!H48","v":0}]
["Sch IIC","Funds Held",null,"Short - Before - Qualified Assets - Other Equities",null,null,null,null,null,null,null,null,{"$f":"'Schedule IIC (EBS)'!H52","v":0}]
["Sch IIC","Funds Held",null,"Short - After - Qualified Assets - Strategic Holdings - Listed",null,null,null,null,null,null,null,null,{"$f":"'Schedule IIC (EBS)'!J39","v":0}]
["Sch IIC","Funds Held",null,"Short - After - Qualified Assets - Preferred Stocks, BSCR Rating 5",null,null,null,null,null,null,null,null,{"$f":"'Schedule IIC (EBS)'!J46","v":0}]
["Sch IIC","Funds Held",null,"Short - After - Qualified Assets - Preferred Stocks, BSCR Rating 8",null,null,null,null,null,null,null,null,{"$f":"'Schedule IIC (EBS)'!J49","v":0}]
["Sch IIC","Funds Held",null,"Short - After - Qualified Assets - Derivatives on Infrastructure",null,null,null,null,null,null,null,null,{"$f":"'Schedule IIC (EBS)'!J58","v":0}]
["Sch IIC","Funds Held",null,"Short - Before - UnQualified Assets - Preferred Stocks, BSCR Rating 2",null,null,null,null,null,null,null,null,{"$f":"'Schedule IIC (EBS)'!L43","v":0}]
["Sch IIC","Funds Held",null,"Short - Before - UnQualified Assets - Preferred Stocks, BSCR Rating 4",null,null,null,null,null,null,null,null,{"$f":"'Schedule IIC (EBS)'!L45","v":0}]
["Sch IIC","Funds Held",null,"Short - Before - UnQualified Assets - Intangible assets",null,null,null,null,null,null,null,null,{"$f":"'Schedule IIC (EBS)'!L54","v":0}]
["Sch IIC","Funds Held",null,"Short - Before - UnQualified Assets - Infrastructure",null,null,null,null,null,null,null,null,{"$f":"'Schedule IIC (EBS)'!L57","v":0}]
["Sch IIC","Funds Held",null,"Short - After - UnQualified Assets - Preferred Stocks, BSCR Rating 3",null,null,null,null,null,null,null,null,{"$f":"'Schedule IIC (EBS)'!N44","v":0}]
["Sch IIC","Funds Held",null,"Short - After - UnQualified Assets - Strategic Holdings - Unlisted",null,null,null,null,null,null,null,null,{"$f":"'Schedule IIC (EBS)'!N51","v":0}]
["Sch IIC","Funds Held",null,"Short - After - UnQualified Assets - Intangible assets",null,null,null,null,null,null,null,null,{"$f":"'Schedule IIC (EBS)'!N54","v":0}]
["Sch IIC","Funds Held",null,"Liabilities - Before - W/O Mgmt Actions - Strategic Holdings - Listed",null,null,null,null,null,null,null,null,{"$f":"'Schedule IIC (EBS)'!P39","v":0}]
["Sch IIC","Funds Held",null,"Liabilities - Before - W/O Mgmt Actions - Preferred Stocks, BSCR Rating 8",null,null,null,null,null,null,null,null,{"$f":"'Schedule IIC (EBS)'!P49","v":0}]
["Sch IIC","Funds Held",null,"Liabilities - Before - W/O Mgmt Actions - Other Equities",null,null,null,null,null,null,null,null,{"$f":"'Schedule IIC (EBS)'!P52","v":0}]
["Sch IIC","Funds Held",null,"Liabilities - Before - W/O Mgmt Actions - Equity Real Estate 1",null,null,null,null,null,null,null,null,{"$f":"'Schedule IIC (EBS)'!P59","v":0}]
["Sch IIC","Funds Held",null,"Liabilities - After - W/O Mgmt Actions - Duration Based",null,null,null,null,null,null,null,null,{"$f":"'Schedule IIC (EBS)'!R40","v":0}]
["Sch IIC","Funds Held",null,"Liabilities - After - W/O Mgmt Actions - Preferred Stocks, BSCR Rating 8",null,null,null,null,null,null,null,null,{"$f":"'Schedule IIC (EBS)'!R49","v":0}]
["Sch IIC","Funds Held",null,"Liabilities - After - W/O Mgmt Actions - Equity Derivatives on Type 2 Equities",null,null,null,null,null,null,null,null,{"$f":"'Schedule IIC (EBS)'!R56","v":0}]
["Sch IIC","Funds Held",null,"Liabilities - After - W/O Mgmt Actions - Equity Real Estate 1",null,null,null,null,null,null,null,null,{"$f":"'Schedule IIC (EBS)'!R59","v":0}]
["Sch IIC","Funds Held",null,"Liabilities - After - With Mgmt Actions - Preferred Stocks, BSCR Rating 5",null,null,null,null,null,null,null,null,{"$f":"'Schedule IIC (EBS)'!T46","v":0}]
["Sch IIC","Funds Held",null,"Liabilities - After - With Mgmt Actions - Intangible assets",null,null,null,null,null,null,null,null,{"$f":"'Schedule IIC (EBS)'!T54","v":0}]
["Sch IIC","Funds Held",null,"Liabilities - After - With Mgmt Actions - Infrastructure",null,null,null,null,null,null,null,null,{"$f":"'Schedule IIC (EBS)'!T57","v":0}]
["Sch IIC","Funds Held",null,"Credit Derivatives - Up - Before - Long-Rating 3",null,null,null,null,null,null,null,null,{"$f":"'Schedule IIC (EBS)'!D71","v":0}]
["Sch IIC","Funds Held",null,"Credit Derivatives - Up - Before - Long-Rating 6",null,null,null,null,null,null,null,null,{"$f":"'Schedule IIC (EBS)'!D74","v":0}]
["Sch IIC","Funds Held",null,"Credit Derivatives - Up - After - Long- Rating 4",null,null,null,null,null,null,null,null,{"$f":"'Schedule IIC (EBS)'!F72","v":0}]
["Sch IIC","Funds Held",null,"Credit Derivatives - Up - Before - Short- Rating 4",null,null,null,null,null,null,null,null,{"$f":"'Schedule IIC (EBS)'!H72","v":0}]
["Sch IIC","Funds Held",null,"Credit Derivatives - Up - After - Short- Rating 2",null,null,null,null,null,null,null,null,{"$f":"'Schedule IIC (EBS)'!J70","v":0}]
["Sch IIC","Funds Held",null,"Credit Derivatives - Up - After - Short- Rating 6",null,null,null,null,null,null,null,null,{"$f":"'Schedule IIC (EBS)'!J74","v":0}]
["Sch IIC","Funds Held",null,"Credit Derivatives - Down - Before - Long-Rating 6",null,null,null,null,null,null,null,null,{"$f":"'Schedule IIC (EBS)'!N74","v":0}]
["Sch IIC","Funds Held",null,"Credit Derivatives - Down - After - Long- Rating 0",null,null,null,null,null,null,null,null,{"$f":"'Schedule IIC (EBS)'!P68","v":0}]
["Sch IIC","Funds Held",null,"Credit Derivatives - Down - After - Long- Rating 7",null,null,null,null,null,null,null,null,{"$f":"'Schedule IIC (EBS)'!P75","v":0}]
["Sch IIC","Funds Held",null,"Credit Derivatives - Down - Before - Short- Rating 1",null,null,null,null,null,null,null,null,{"$f":"'Schedule IIC (EBS)'!R69","v":0}]
["Sch IIC","Funds Held",null,"Credit Derivatives - Down - Before - Short- Rating 8",null,null,null,null,null,null,null,null,{"$f":"'Schedule IIC (EBS)'!R76","v":0}]
["Sch IIC","Funds Held",null,"Credit Derivatives - Down - After - Short- Rating 7",null,null,null,null,null,null,null,null,{"$f":"'Schedule IIC (EBS)'!T75","v":0}]
["Sch IIC","Funds Held",null,"Counterparty Default Risk - MV of Derivatives - MV Positive - Rating 3",null,null,null,null,null,null,null,null,{"$f":"'Schedule IIC (EBS)'!D87","v":0}]
["Sch IIC","Funds Held",null,"Counterparty Default Risk - MV of Derivatives - MV Negative - Rating 1",null,null,null,null,null,null,null,null,{"$f":"'Schedule IIC (EBS)'!F85","v":0}]
["Sch IIC","Funds Held",null,"Counterparty Default Risk - MV of Collateral - Rating 1",null,null,null,null,null,null,null,null,{"$f":"'Schedule IIC (EBS)'!H85","v":0}]
["Sch IIC","Funds Held",null,"Counterparty Default Risk - MV of Collateral - Rating 4",null,null,null,null,null,null,null,null,{"$f":"'Schedule IIC (EBS)'!H88","v":0}]
["Sch IID","Segregated Acc",null,"Corp. Bonds - BSCR Rate 0",null,null,null,null,null,null,null,null,{"$f":"'Schedule IID (EBS)'!D13","v":0}]
["Sch IID","Segregated Acc",null,"Corp. Bonds - BSCR Rate 3",null,null,null,null,null,null,null,null,{"$f":"'Schedule IID (EBS)'!D16","v":0}]
["Sch IID","Segregated Acc",null,"Liabilities Supported by Corp. Bonds - BSCR Rate 1",null,null,null,null,null,null,null,null,{"$f":"'Schedule IID (EBS)'!F14","v":0}]
["Sch IID","Segregated Acc",null,"Residential MBS - BSCR Rate 3",null,null,null,null,null,null,null,null,{"$f":"'Schedule IID (EBS)'!H16","v":0}]
["Sch IID","Segregated Acc",null,"Residential MBS - BSCR Rate 6",null,null,null,null,null,null,null,null,{"$f":"'Schedule IID (EBS)'!H19","v":0}]
["Sch IID","Segregated Acc",null,"Liabilities Supported by Residential MBS - BSCR Rate 5",null,null,null,null,null,null,null,null,{"$f":"'Schedule IID (EBS)'!J18","v":0}]
["Sch IID","Segregated Acc",null,"Commercial MBS - BSCR Rate 6",null,null,null,null,null,null,null,null,{"$f":"'Schedule IID (EBS)'!L19","v":0}]
["Sch IID","Segregated Acc",null,"Commercial MBS - BSCR Rate 7",null,null,null,null,null,null,null,null,{"$f":"'Schedule IID (EBS)'!L20","v":0}]
["Sch IID","Segregated Acc",null,"Liabilities Supported by Commercial MBS - BSCR Rate 8",null,null,null,null,null,null,null,null,{"$f":"'Schedule IID (EBS)'!N21","v":0}]
["Sch IID","Segregated Acc",null,"Bonds Mutual Fund - BSCR Rate 4",null,null,null,null,null,null,null,null,{"$f":"'Schedule IID (EBS)'!P17","v":0}]
["Sch IID","Segregated Acc",null,"Liabilities Supported by Bonds Mutual Fund - BSCR Rate 1",null,null,null,null,null,null,null,null,{"$f":"'Schedule IID (EBS)'!R14","v":0}]
["Sch IID","Segregated Acc",null,"Mortgage Loans - Other Commercial",null,null,null,null,null,null,null,null,{"$f":"'Schedule IID (EBS)'!T23","v":0}]
["Sch IID","Segregated Acc",null,"Liabilities Supported by Mortgage Loans - Insured",null,null,null,null,null,null,null,null,{"$f":"'Schedule IID (EBS)'!V22","v":0}]
["Sch IID","Segregated Acc",null,"Long Positions - Before - Preferred Stocks, BSCR Rating 1",null,null,null,null,null,null,null,null,{"$f":"'Schedule IID (EBS)'!D42","v":0}]
["Sch IID","Segregated Acc",null,"Long Positions - Before - Strategic Holdings - Unlisted",null,null,null,null,null,null,null,null,{"$f":"'Schedule IID (EBS)'!D51","v":0}]
["Sch IID","Segregated Acc",null,"Long Positions - Before - Other Equities",null,null,null,null,null,null,null,null,{"$f":"'Schedule IID (EBS)'!D52","v":0}]
["Sch IID","Segregated Acc",null,"Long Positions - Before - Derivatives on Infrastructure",null,null,null,null,null,null,null,null,{"$f":"'Schedule IID (EBS)'!D58","v":0}]
["Sch IID","Segregated Acc",null,"Long Positions - After - Preferred Stocks, BSCR Rating 2",null,null,null,null,null,null,null,null,{"$f":"'Schedule IID (EBS)'!F43","v":0}]
["Sch IID","Segregated Acc",null,"Long Positions - After - Equity Derivatives on Type 1 Equities",null,null,null,null,null,null,null,null,{"$f":"'Schedule IID (EBS)'!F50","v":0}]
["Sch IID","Segregated Acc",null,"Long Positions - After - Equity Real Estate 1",null,null,null,null,null,null,null,null,{"$f":"'Schedule IID (EBS)'!F59","v":0}]
["Sch IID","Segregated Acc",null,"Short - Before - Qualified Assets - Preferred Stocks, BSCR Rating 3",null,null,null,null,null,null,null,null,{"$f":"'Schedule IID (EBS)'!H44","v":0}]
["Sch IID","Segregated Acc",null,"Short - Before - Qualified Assets - Preferred Stocks, BSCR Rating 6",null,null,null,null,null,null,null,null,{"$f":"'Schedule IID (EBS)'!H47","v":0}]
["Sch IID","Segregated Acc",null,"Short - Before - Qualified Assets - Equity Derivatives on Type 2 Equities",null,null,null,null,null,null,null,null,{"$f":"'Schedule IID (EBS)'!H56","v":0}]
["Sch IID","Segregated Acc",null,"Short - After - Qualified Assets - Duration Based",null,null,null,null,null,null,null,null,{"$f":"'Schedule IID (EBS)'!J40","v":0}]
["Sch IID","Segregated Acc",null,"Short - After - Qualified Assets - Preferred Stocks, BSCR Rating 4",null,null,null,null,null,null,null,null,{"$f":"'Schedule IID (EBS)'!J45","v":0}]
["Sch IID","Segregated Acc",null,"Short - After - Qualified Assets - Preferred Stocks, BSCR Rating 7",null,null,null,null,null,null,null,null,{"$f":"'Schedule IID (EBS)'!J48","v":0}]
["Sch IID","Segregated Acc",null,"Short - After - Qualified Assets - Pension Benefit Surplus",null,null,null,null,null,null,null,null,{"$f":"'Schedule IID (EBS)'!J55","v":0}]
["Sch IID","Segregated Acc",null,"Short - Before - UnQualified Assets - Preferred Stocks, BSCR Rating 1",null,null,null,null,null,null,null,null,{"$f":"'Schedule IID (EBS)'!L42","v":0}]
["Sch IID","Segregated Acc",null,"Short - Before - UnQualified Assets - Preferred Stocks, BSCR Rating 8",null,null,null,null,null,null,null,null,{"$f":"'Schedule IID (EBS)'!L49","v":0}]
["Sch IID","Segregated Acc",null,"Short - Before - UnQualified Assets - Other Equities",null,null,null,null,null,null,null,null,{"$f":"'Schedule IID (EBS)'!L52","v":0}]
["Sch IID","Segregated Acc",null,"Short - After - UnQualified Assets - Duration Based",null,null,null,null,null,null,null,null,{"$f":"'Schedule IID (EBS)'!N40","v":0}]
["Sch IID","Segregated Acc",null,"Short - After - UnQualified Assets - Listed Equity Securities in Developed Markets",null,null,null,null,null,null,null,null,{"$f":"'Schedule IID (EBS)'!N41","v":0}]
["Sch IID","Segregated Acc",null,"Short - After - UnQualified Assets - Equity Derivatives on Type 1 Equities",null,null,null,null,null,null,null,null,{"$f":"'Schedule IID (EBS)'!N50","v":0}]
["Sch IID","Segregated Acc",null,"Short - After - UnQualified Assets - Letters of Credit",null,null,null,null,null,null,null,null,{"$f":"'Schedule IID (EBS)'!N53","v":0}]
["Sch IID","Segregated Acc",null,"Short - After - UnQualified Assets - Equity Real Estate 2",null,null,null,null,null,null,null,null,{"$f":"'Schedule IID (EBS)'!N60","v":0}]
["Sch IID","Segregated Acc",null,"Liabilities - Before - W/O Mgmt Actions - Preferred Stocks, BSCR Rating 6",null,null,null,null,null,null,null,null,{"$f":"'Schedule IID (EBS)'!P47","v":0}]
["Sch IID","Segregated Acc",null,"Liabilities - Before - W/O Mgmt Actions - Other Equities",null,null,null,null,null,null,null,null,{"$f":"'Schedule IID (EBS)'!P52","v":0}]
["Sch IID","Segregated Acc",null,"Liabilities - Before - W/O Mgmt Actions - Derivatives on Infrastructure",null,null,null,null,null,null,null,null,{"$f":"'Schedule IID (EBS)'!P58","v":0}]
["Sch IID","Segregated Acc",null,"Liabilities - After - W/O Mgmt Actions - Preferred Stocks, BSCR Rating 4",null,null,null,null,null,null,null,null,{"$f":"'Schedule IID (EBS)'!R45","v":0}]
["Sch IID","Segregated Acc",null,"Liabilities - After - W/O Mgmt Actions - Preferred Stocks, BSCR Rating 5",null,null,null,null,null,null,null,null,{"$f":"'Schedule IID (EBS)'!R46","v":0}]
["Sch IID","Segregated Acc",null,"Liabilities - After - W/O Mgmt Actions - Pension Benefit Surplus",null,null,null,null,null,null,null,null,{"$f":"'Schedule IID (EBS)'!R55","v":0}]
["Sch IID","Segregated Acc",null,"Liabilities - After - With Mgmt Actions - Duration Based",null,null,null,null,null,null,null,null,{"$f":"'Schedule IID (EBS)'!T40","v":0}]
["Sch IID","Segregated Acc",null,"Liabilities - After - With Mgmt Actions - Preferred Stocks, BSCR Rating 2",null,null,null,null,null,null,null,null,{"$f":"'Schedule IID (EBS)'!T43","v":0}]
["Sch IID","Segregated Acc",null,"Liabilities - After - With Mgmt Actions - Other Equities",null,null,null,null,null,null,null,null,{"$f":"'Schedule IID (EBS)'!T52","v":0}]
["Sch IID","Segregated Acc",null,"Liabilities - After - With Mgmt Actions - Equity Real Estate 2",null,null,null,null,null,null,null,null,{"$f":"'Schedule IID (EBS)'!T60","v":0}]
["Sch IID","Segregated Acc",null,"Credit Derivatives - Up - Before - Long-Rating 2",null,null,null,null,null,null,null,null,{"$f":"'Schedule IID (EBS)'!D70","v":0}]
["Sch IID","Segregated Acc",null,"Credit Derivatives - Up - After - Long- Rating 2",null,null,null,null,null,null,null,null,{"$f":"'Schedule IID (EBS)'!F70","v":0}]
["Sch IID","Segregated Acc",null,"Credit Derivatives - Up - After - Long- Rating 3",null,null,null,null,null,null,null,null,{"$f":"'Schedule IID (EBS)'!F71","v":0}]
["Sch IID","Segregated Acc",null,"Credit Derivatives - Up - Before - Short- Rating 3",null,null,null,null,null,null,null,null,{"$f":"'Schedule IID (EBS)'!H71","v":0}]
["Sch IID","Segregated Acc",null,"Credit Derivatives - Up - After - Short- Rating 1",null,null,null,null,null,null,null,null,{"$f":"'Schedule IID (EBS)'!J69","v":0}]
["Sch IID","Segregated Acc",null,"Credit Derivatives - Up - After - Short- Rating 5",null,null,null,null,null,null,null,null,{"$f":"'Schedule IID (EBS)'!J73","v":0}]
["Sch IID","Segregated Acc",null,"Credit Derivatives - Down - Before - Long-Rating 5",null,null,null,null,null,null,null,null,{"$f":"'Schedule IID (EBS)'!N73","v":0}]
["Sch IID","Segregated Acc",null,"Credit Derivatives - Down - After - Long- Rating 3",null,null,null,null,null,null,null,null,{"$f":"'Schedule IID (EBS)'!P71","v":0}]
["Sch IID","Segregated Acc",null,"Credit Derivatives - Down - After - Long- Rating 6",null,null,null,null,null,null,null,null,{"$f":"'Schedule IID (EBS)'!P74","v":0}]
["Sch IID","Segregated Acc",null,"Credit Derivatives - Down - Before - Short- Rating 6",null,null,null,null,null,null,null,null,{"$f":"'Schedule IID (EBS)'!R74","v":0}]
["Sch IID","Segregated Acc",null,"Credit Derivatives - Down - Before - Short- Rating 7",null,null,null,null,null,null,null,null,{"$f":"'Schedule IID (EBS)'!R75","v":0}]
["Sch IID","Segregated Acc",null,"Credit Derivatives - Down - After - Short- Rating 7",null,null,null,null,null,null,null,null,{"$f":"'Schedule IID (EBS)'!T75","v":0}]
["Sch IID","Segregated Acc",null,"Counterparty Default Risk - MV of Derivatives - MV Positive - Rating 1",null,null,null,null,null,null,null,null,{"$f":"'Schedule IID (EBS)'!D85","v":0}]
["Sch IID","Segregated Acc",null,"Counterparty Default Risk - MV of Derivatives - MV Negative - Rating 0",null,null,null,null,null,null,null,null,{"$f":"'Schedule IID (EBS)'!F84","v":0}]
["Sch IID","Segregated Acc",null,"Counterparty Default Risk - MV of Collateral - Rating 0",null,null,null,null,null,null,null,null,{"$f":"'Schedule IID (EBS)'!H84","v":0}]
["Sch IID","Segregated Acc",null,"Counterparty Default Risk - MV of Collateral - Rating 7",null,null,null,null,null,null,null,null,{"$f":"'Schedule IID (EBS)'!H91","v":0}]
[]
["Sch IIE","Deposits",null,"Corp. Bonds - BSCR Rate 6",null,null,null,null,null,null,null,null,{"$f":"'Schedule IIE (EBS)'!D19","v":0},null,{"$f":"'Schedule IIE (EBS)'!F19","v":0}]
["Sch IIE","Deposits",null,"Residential MBS - BSCR Rate 1",null,null,null,null,null,null,null,null,{"$f":"'Schedule IIE (EBS)'!H14","v":0},null,{"$f":"'Schedule IIE (EBS)'!J14","v":0}]
["Sch IIE","Deposits",null,"Residential MBS - BSCR Rate 8",null,null,null,null,null,null,null,null,{"$f":"'Schedule IIE (EBS)'!H21","v":0},null,{"$f":"'Schedule IIE (EBS)'!J21","v":0}]
["Sch IIE","Deposits",null,"Bonds Mutual Fund - BSCR Rate 1",null,null,null,null,null,null,null,null,{"$f":"'Schedule IIE (EBS)'!P14","v":0},null,{"$f":"'Schedule IIE (EBS)'!R14","v":0}]
["Sch IIE","Deposits",null,"Bonds Mutual Fund - BSCR Rate 4",null,null,null,null,null,null,null,null,{"$f":"'Schedule IIE (EBS)'!P17","v":0},null,{"$f":"'Schedule IIE (EBS)'!R17","v":0}]
["Sch IIE","Deposits",null,"Long Positions - Before - Strategic Holdings - Listed",null,null,null,null,null,null,null,null,{"$f":"'Schedule IIE (EBS)'!D39","v":0}]
["Sch IIE","Deposits",null,"Long Positions - Before - Preferred Stocks, BSCR Rating 5",null,null,null,null,null,null,null,null,{"$f":"'Schedule IIE (EBS)'!D46","v":0}]
["Sch IIE","Deposits",null,"Long Positions - Before - Preferred Stocks, BSCR Rating 8",null,null,null,null,null,null,null,null,{"$f":"'Schedule IIE (EBS)'!D49","v":0}]
["Sch IIE","Deposits",null,"Long Positions - Before - Equity Derivatives on Type 2 Equities",null,null,null,null,null,null,null,null,{"$f":"'Schedule IIE (EBS)'!D56","v":0}]
["Sch IIE","Deposits",null,"Long Positions - After - Preferred Stocks, BSCR Rating 2",null,null,null,null,null,null,null,null,{"$f":"'Schedule IIE (EBS)'!F43","v":0}]
["Sch IIE","Deposits",null,"Long Positions - After - Preferred Stocks, BSCR Rating 6",null,null,null,null,null,null,null,null,{"$f":"'Schedule IIE (EBS)'!F47","v":0}]
["Sch IIE","Deposits",null,"Long Positions - After - Intangible assets",null,null,null,null,null,null,null,null,{"$f":"'Schedule IIE (EBS)'!F54","v":0}]
["Sch IIE","Deposits",null,"Long Positions - After - Infrastructure",null,null,null,null,null,null,null,null,{"$f":"'Schedule IIE (EBS)'!F57","v":0}]
["Sch IIE","Deposits",null,"Short - Before - Qualified Assets - Preferred Stocks, BSCR Rating 1",null,null,null,null,null,null,null,null,{"$f":"'Schedule IIE (EBS)'!H42","v":0}]
["Sch IIE","Deposits",null,"Short - Before - Qualified Assets - Strategic Holdings - Unlisted",null,null,null,null,null,null,null,null,{"$f":"'Schedule IIE (EBS)'!H51","v":0}]
["Sch IIE","Deposits",null,"Short - Before - Qualified Assets - Intangible assets",null,null,null,null,null,null,null,null,{"$f":"'Schedule IIE (EBS)'!H54","v":0}]
["Sch IIE","Deposits",null,"Short - After - Qualified Assets - Duration Based",null,null,null,null,null,null,null,null,{"$f":"'Schedule IIE (EBS)'!J40","v":0}]
["Sch IIE","Deposits",null,"Short - After - Qualified Assets - Preferred Stocks, BSCR Rating 2",null,null,null,null,null,null,null,null,{"$f":"'Schedule IIE (EBS)'!J43","v":0}]
["Sch IIE","Deposits",null,"Short - After - Qualified Assets - Other Equities",null,null,null,null,null,null,null,null,{"$f":"'Schedule IIE (EBS)'!J52","v":0}]
["Sch IIE","Deposits",null,"Short - After - Qualified Assets - Equity Real Estate 1",null,null,null,null,null,null,null,null,{"$f":"'Schedule IIE (EBS)'!J59","v":0}]
["Sch IIE","Deposits",null,"Short - Before - UnQualified Assets - Duration Based",null,null,null,null,null,null,null,null,{"$f":"'Schedule IIE (EBS)'!L40","v":0}]
["Sch IIE","Deposits",null,"Short - Before - UnQualified Assets - Preferred Stocks, BSCR Rating 6",null,null,null,null,null,null,null,null,{"$f":"'Schedule IIE (EBS)'!L47","v":0}]
["Sch IIE","Deposits",null,"Short - Before - UnQualified Assets - Equity Derivatives on Type 2 Equities",null,null,null,null,null,null,null,null,{"$f":"'Schedule IIE (EBS)'!L56","v":0}]
["Sch IIE","Deposits",null,"Short - After - UnQualified Assets - Duration Based",null,null,null,null,null,null,null,null,{"$f":"'Schedule IIE (EBS)'!N40","v":0}]
["Sch IIE","Deposits",null,"Short - After - UnQualified Assets - Preferred Stocks, BSCR Rating 4",null,null,null,null,null,null,null,null,{"$f":"'Schedule IIE (EBS)'!N45","v":0}]
["Sch IIE","Deposits",null,"Short - After - UnQualified Assets - Preferred Stocks, BSCR Rating 7",null,null,null,null,null,null,null,null,{"$f":"'Schedule IIE (EBS)'!N48","v":0}]
["Sch IIE","Deposits",null,"Short - After - UnQualified Assets - Infrastructure",null,null,null,null,null,null,null,null,{"$f":"'Schedule IIE (EBS)'!N57","v":0}]
["Sch IIE","Deposits",null,"Liabilities - Before - W/O Mgmt Actions - Preferred Stocks, BSCR Rating 1",null,null,null,null,null,null,null,null,{"$f":"'Schedule IIE (EBS)'!P42","v":0}]
["Sch IIE","Deposits",null,"Liabilities - Before - W/O Mgmt Actions - Preferred Stocks, BSCR Rating 4",null,null,null,null,null,null,null,null,{"$f":"'Schedule IIE (EBS)'!P45","v":0}]
["Sch IIE","Deposits",null,"Liabilities - Before - W/O Mgmt Actions - Other Equities",null,null,null,null,null,null,null,null,{"$f":"'Schedule IIE (EBS)'!P52","v":0}]
["Sch IIE","Deposits",null,"Liabilities - Before - W/O Mgmt Actions - Equity Real Estate 1",null,null,null,null,null,null,null,null,{"$f":"'Schedule IIE (EBS)'!P59","v":0}]
["Sch IIE","Deposits",null,"Liabilities - After - W/O Mgmt Actions - Preferred Stocks, BSCR Rating 2",null,null,null,null,null,null,null,null,{"$f":"'Schedule IIE (EBS)'!R43","v":0}]
["Sch IIE","Deposits",null,"Liabilities - After - W/O Mgmt Actions - Equity Derivatives on Type 1 Equities",null,null,null,null,null,null,null,null,{"$f":"'Schedule IIE (EBS)'!R50","v":0}]
["Sch IIE","Deposits",null,"Liabilities - After - W/O Mgmt Actions - Letters of Credit",null,null,null,null,null,null,null,null,{"$f":"'Schedule IIE (EBS)'!R53","v":0}]
["Sch IIE","Deposits",null,"Liabilities - After - W/O Mgmt Actions - Equity Real Estate 2",null,null,null,null,null,null,null,null,{"$f":"'Schedule IIE (EBS)'!R60","v":0}]
["Sch IIE","Deposits",null,"Liabilities - After - With Mgmt Actions - Preferred Stocks, BSCR Rating 6",null,null,null,null,null,null,null,null,{"$f":"'Schedule IIE (EBS)'!T47","v":0}]
["Sch IIE","Deposits",null,"Liabilities - After - With Mgmt Actions - Equity Derivatives on Type 1 Equities",null,null,null,null,null,null,null,null,{"$f":"'Schedule IIE (EBS)'!T50","v":0}]
["Sch IIE","Deposits",null,"Liabilities - After - With Mgmt Actions - Equity Derivatives on Type 2 Equities",null,null,null,null,null,null,null,null,{"$f":"'Schedule IIE (EBS)'!T56","v":0}]
["Sch IIE","Deposits",null,"Credit Derivatives - Up - Before - Long-Rating 6",null,null,null,null,null,null,null,null,{"$f":"'Schedule IIE (EBS)'!D74","v":0}]
["Sch IIE","Deposits",null,"Credit Derivatives - Up - After - Long- Rating 0",null,null,null,null,null,null,null,null,{"$f":"'Schedule IIE (EBS)'!F68","v":0}]
["Sch IIE","Deposits",null,"Credit Derivatives - Up - After - Long- Rating 7",null,null,null,null,null,null,null,null,{"$f":"'Schedule IIE (EBS)'!F75","v":0}]
["Sch IIE","Deposits",null,"Credit Derivatives - Up - Before - Short- Rating 1",null,null,null,null,null,null,null,null,{"$f":"'Schedule IIE (EBS)'!H69","v":0}]
["Sch IIE","Deposits",null,"Credit Derivatives - Up - Before - Short- Rating 8",null,null,null,null,null,null,null,null,{"$f":"'Schedule IIE (EBS)'!H76","v":0}]
["Sch IIE","Deposits",null,"Credit Derivatives - Up - After - Short- Rating 5",null,null,null,null,null,null,null,null,{"$f":"'Schedule IIE (EBS)'!J73","v":0}]
["Sch IIE","Deposits",null,"Credit Derivatives - Down - Before - Long-Rating 3",null,null,null,null,null,null,null,null,{"$f":"'Schedule IIE (EBS)'!N71","v":0}]
["Sch IIE","Deposits",null,"Credit Derivatives - Down - After - Long- Rating 1",null,null,null,null,null,null,null,null,{"$f":"'Schedule IIE (EBS)'!P69","v":0}]
["Sch IIE","Deposits",null,"Credit Derivatives - Down - Before - Short- Rating 1",null,null,null,null,null,null,null,null,{"$f":"'Schedule IIE (EBS)'!R69","v":0}]
["Sch IIE","Deposits",null,"Credit Derivatives - Down - Before - Short- Rating 2",null,null,null,null,null,null,null,null,{"$f":"'Schedule IIE (EBS)'!R70","v":0}]
["Sch IIE","Deposits",null,"Credit Derivatives - Down - After - Short- Rating 2",null,null,null,null,null,null,null,null,{"$f":"'Schedule IIE (EBS)'!T70","v":0}]
["Sch IIE","Deposits",null,"Credit Derivatives - Down - After - Short- Rating 5",null,null,null,null,null,null,null,null,{"$f":"'Schedule IIE (EBS)'!T73","v":0}]
["Sch IIE","Deposits",null,"Counterparty Default Risk - MV of Derivatives - MV Positive - Rating 8",null,null,null,null,null,null,null,null,{"$f":"'Schedule IIE (EBS)'!D92","v":0}]
["Sch IIE","Deposits",null,"Counterparty Default Risk - MV of Derivatives - MV Negative - Rating 4",null,null,null,null,null,null,null,null,{"$f":"'Schedule IIE (EBS)'!F88","v":0}]
["Sch IIE","Deposits",null,"Counterparty Default Risk - MV of Derivatives - MV Negative - Rating 7",null,null,null,null,null,null,null,null,{"$f":"'Schedule IIE (EBS)'!F91","v":0}]
["Sch IIE","Deposits",null,"Counterparty Default Risk - MV of Collateral - Rating 5",null,null,null,null,null,null,null,null,{"$f":"'Schedule IIE (EBS)'!H89","v":0}]
["Sch IIF","Other Sundry",null,"Corp. Bonds - BSCR Rate 3",null,null,null,null,null,null,null,null,{"$f":"'Schedule IIF (EBS)'!D16","v":0},null,{"$f":"'Schedule IIF (EBS)'!F16","v":0}]
["Sch IIF","Other Sundry",null,"Corp. Bonds - BSCR Rate 4",null,null,null,null,null,null,null,null,{"$f":"'Schedule IIF (EBS)'!D17","v":0},null,{"$f":"'Schedule IIF (EBS)'!F17","v":0}]
["Sch IIF","Other Sundry",null,"Residential MBS - BSCR Rate 5",null,null,null,null,null,null,null,null,{"$f":"'Schedule IIF (EBS)'!H18","v":0},null,{"$f":"'Schedule IIF (EBS)'!J18","v":0}]
["Sch IIF","Other Sundry",null,"Residential MBS - BSCR Rate 8",null,null,null,null,null,null,null,null,{"$f":"'Schedule IIF (EBS)'!H21","v":0},null,{"$f":"'Schedule IIF (EBS)'!J21","v":0}]
["Sch IIF","Other Sundry",null,"Commercial MBS - BSCR Rate 8",null,null,null,null,null,null,null,null,{"$f":"'Schedule IIF (EBS)'!L21","v":0},null,{"$f":"'Schedule IIF (EBS)'!N21","v":0}]
["Sch IIF","Other Sundry",null,"Bonds Mutual Fund - BSCR Rate 8",null,null,null,null,null,null,null,null,{"$f":"'Schedule IIF (EBS)'!P21","v":0},null,{"$f":"'Schedule IIF (EBS)'!R21","v":0}]
["Sch IIF","Other Sundry",null,"Mortgage Loans - Other Residential",null,null,null,null,null,null,null,null,{"$f":"'Schedule IIF (EBS)'!T24","v":0},null,{"$f":"'Schedule IIF (EBS)'!V24","v":0}]
["Sch IIF","Other Sundry",null,"Long Positions - Before - Preferred Stocks, BSCR Rating 3",null,null,null,null,null,null,null,null,{"$f":"'Schedule IIF (EBS)'!D44","v":0}]
["Sch IIF","Other Sundry",null,"Long Positions - Before - Letters of Credit",null,null,null,null,null,null,null,null,{"$f":"'Schedule IIF (EBS)'!D53","v":0}]
["Sch IIF","Other Sundry",null,"Long Positions - Before - Intangible assets",null,null,null,null,null,null,null,null,{"$f":"'Schedule IIF (EBS)'!D54","v":0}]
["Sch IIF","Other Sundry",null,"Long Positions - After - Preferred Stocks, BSCR Rating 2",null,null,null,null,null,null,null,null,{"$f":"'Schedule IIF (EBS)'!F43","v":0}]
["Sch IIF","Other Sundry",null,"Long Positions - After - Preferred Stocks, BSCR Rating 4",null,null,null,null,null,null,null,null,{"$f":"'Schedule IIF (EBS)'!F45","v":0}]
["Sch IIF","Other Sundry",null,"Long Positions - After - Other Equities",null,null,null,null,null,null,null,null,{"$f":"'Schedule IIF (EBS)'!F52","v":0}]
["Sch IIF","Other Sundry",null,"Short - Before - Qualified Assets - Strategic Holdings - Listed",null,null,null,null,null,null,null,null,{"$f":"'Schedule IIF (EBS)'!H39","v":0}]
["Sch IIF","Other Sundry",null,"Short - Before - Qualified Assets - Preferred Stocks, BSCR Rating 5",null,null,null,null,null,null,null,null,{"$f":"'Schedule IIF (EBS)'!H46","v":0}]
["Sch IIF","Other Sundry",null,"Short - Before - Qualified Assets - Preferred Stocks, BSCR Rating 8",null,null,null,null,null,null,null,null,{"$f":"'Schedule IIF (EBS)'!H49","v":0}]
["Sch IIF","Other Sundry",null,"Short - Before - Qualified Assets - Derivatives on Infrastructure",null,null,null,null,null,null,null,null,{"$f":"'Schedule IIF (EBS)'!H58","v":0}]
["Sch IIF","Other Sundry",null,"Short - After - Qualified Assets - Duration Based",null,null,null,null,null,null,null,null,{"$f":"'Schedule IIF (EBS)'!J40","v":0}]
["Sch IIF","Other Sundry",null,"Short - After - Qualified Assets - Preferred Stocks, BSCR Rating 6",null,null,null,null,null,null,null,null,{"$f":"'Schedule IIF (EBS)'!J47","v":0}]
["Sch IIF","Other Sundry",null,"Short - After - Qualified Assets - Equity Derivatives on Type 1 Equities",null,null,null,null,null,null,null,null,{"$f":"'Schedule IIF (EBS)'!J50","v":0}]
["Sch IIF","Other Sundry",null,"Short - After - Qualified Assets - Infrastructure",null,null,null,null,null,null,null,null,{"$f":"'Schedule IIF (EBS)'!J57","v":0}]
["Sch IIF","Other Sundry",null,"Short - Before - UnQualified Assets - Preferred Stocks, BSCR Rating 3",null,null,null,null,null,null,null,null,{"$f":"'Schedule IIF (EBS)'!L44","v":0}]
["Sch IIF","Other Sundry",null,"Short - Before - UnQualified Assets - Strategic Holdings - Unlisted",null,null,null,null,null,null,null,null,{"$f":"'Schedule IIF (EBS)'!L51","v":0}]
["Sch IIF","Other Sundry",null,"Short - Before - UnQualified Assets - Intangible assets",null,null,null,null,null,null,null,null,{"$f":"'Schedule IIF (EBS)'!L54","v":0}]
["Sch IIF","Other Sundry",null,"Short - After - UnQualified Assets - Duration Based",null,null,null,null,null,null,null,null,{"$f":"'Schedule IIF (EBS)'!N40","v":0}]
["Sch IIF","Other Sundry",null,"Short - After - UnQualified Assets - Preferred Stocks, BSCR Rating 2",null,null,null,null,null,null,null,null,{"$f":"'Schedule IIF (EBS)'!N43","v":0}]
["Sch IIF","Other Sundry",null,"Short - After - UnQualified Assets - Other Equities",null,null,null,null,null,null,null,null,{"$f":"'Schedule IIF (EBS)'!N52","v":0}]
["Sch IIF","Other Sundry",null,"Short - After - UnQualified Assets - Pension Benefit Surplus",null,null,null,null,null,null,null,null,{"$f":"'Schedule IIF (EBS)'!N55","v":0}]
["Sch IIF","Other Sundry",null,"Liabilities - Before - W/O Mgmt Actions - Duration Based",null,null,null,null,null,null,null,null,{"$f":"'Schedule IIF (EBS)'!P40","v":0}]
["Sch IIF","Other Sundry",null,"Liabilities - Before - W/O Mgmt Actions - Preferred Stocks, BSCR Rating 8",null,null,null,null,null,null,null,null,{"$f":"'Schedule IIF (EBS)'!P49","v":0}]
["Sch IIF","Other Sundry",null,"Liabilities - Before - W/O Mgmt Actions - Equity Derivatives on Type 2 Equities",null,null,null,null,null,null,null,null,{"$f":"'Schedule IIF (EBS)'!P56","v":0}]
["Sch IIF","Other Sundry",null,"Liabilities - Before - W/O Mgmt Actions - Equity Real Estate 1",null,null,null,null,null,null,null,null,{"$f":"'Schedule IIF (EBS)'!P59","v":0}]
["Sch IIF","Other Sundry",null,"Liabilities - After - W/O Mgmt Actions - Preferred Stocks, BSCR Rating 6",null,null,null,null,null,null,null,null,{"$f":"'Schedule IIF (EBS)'!R47","v":0}]
["Sch IIF","Other Sundry",null,"Liabilities - After - W/O Mgmt Actions - Preferred Stocks, BSCR Rating 7",null,null,null,null,null,null,null,null,{"$f":"'Schedule IIF (EBS)'!R48","v":0}]
["Sch IIF","Other Sundry",null,"Liabilities - After - W/O Mgmt Actions - Infrastructure",null,null,null,null,null,null,null,null,{"$f":"'Schedule IIF (EBS)'!R57","v":0}]
["Sch IIF","Other Sundry",null,"Liabilities - After - With Mgmt Actions - Preferred Stocks, BSCR Rating 1",null,null,null,null,null,null,null,null,{"$f":"'Schedule IIF (EBS)'!T42","v":0}]
["Sch IIF","Other Sundry",null,"Liabilities - After - With Mgmt Actions - Preferred Stocks, BSCR Rating 4",null,null,null,null,null,null,null,null,{"$f":"'Schedule IIF (EBS)'!T45","v":0}]
["Sch IIF","Other Sundry",null,"Liabilities - After - With Mgmt Actions - Intangible assets",null,null,null,null,null,null,null,null,{"$f":"'Schedule IIF (EBS)'!T54","v":0}]
["Sch IIF","Other Sundry",null,"Liabilities - After - With Mgmt Actions - Equity Derivatives on Type 2 Equities",null,null,null,null,null,null,null,null,{"$f":"'Schedule IIF (EBS)'!T56","v":0}]
["Sch IIF","Other Sundry",null,"Credit Derivatives - Up - Before - Long-Rating 4",null,null,null,null,null,null,null,null,{"$f":"'Schedule IIF (EBS)'!D72","v":0}]
["Sch IIF","Other Sundry",null,"Credit Derivatives - Up - After - Long- Rating 4",null,null,null,null,null,null,null,null,{"$f":"'Schedule IIF (EBS)'!F72","v":0}]
["Sch IIF","Other Sundry",null,"Credit Derivatives - Up - After - Long- Rating 5",null,null,null,null,null,null,null,null,{"$f":"'Schedule IIF (EBS)'!F73","v":0}]
["Sch IIF","Other Sundry",null,"Credit Derivatives - Up - Before - Short- Rating 5",null,null,null,null,null,null,null,null,{"$f":"'Schedule IIF (EBS)'!H73","v":0}]
["Sch IIF","Other Sundry",null,"Credit Derivatives - Up - After - Short- Rating 3",null,null,null,null,null,null,null,null,{"$f":"'Schedule IIF (EBS)'!J71","v":0}]
["Sch IIF","Other Sundry",null,"Credit Derivatives - Up - After - Short- Rating 6",null,null,null,null,null,null,null,null,{"$f":"'Schedule IIF (EBS)'!J74","v":0}]
["Sch IIF","Other Sundry",null,"Credit Derivatives - Down - Before - Long-Rating 3",null,null,null,null,null,null,null,null,{"$f":"'Schedule IIF (EBS)'!N71","v":0}]
["Sch IIF","Other Sundry",null,"Credit Derivatives - Down - After - Long- Rating 5",null,null,null,null,null,null,null,null,{"$f":"'Schedule IIF (EBS)'!P73","v":0}]
["Sch IIF","Other Sundry",null,"Credit Derivatives - Down - After - Long- Rating 8",null,null,null,null,null,null,null,null,{"$f":"'Schedule IIF (EBS)'!P76","v":0}]
["Sch IIF","Other Sundry",null,"Credit Derivatives - Down - Before - Short- Rating 6",null,null,null,null,null,null,null,null,{"$f":"'Schedule IIF (EBS)'!R74","v":0}]
["Sch IIF","Other Sundry",null,"Credit Derivatives - Down - After - Short- Rating 0",null,null,null,null,null,null,null,null,{"$f":"'Schedule IIF (EBS)'!T68","v":0}]
["Sch IIF","Other Sundry",null,"Counterparty Default Risk - MV of Derivatives - MV Positive - Rating 0",null,null,null,null,null,null,null,null,{"$f":"'Schedule IIF (EBS)'!D84","v":0}]
["Sch IIF","Other Sundry",null,"Counterparty Default Risk - MV of Derivatives - MV Positive - Rating 8",null,null,null,null,null,null,null,null,{"$f":"'Schedule IIF (EBS)'!D92","v":0}]
["Sch IIF","Other Sundry",null,"Counterparty Default Risk - MV of Derivatives - MV Negative - Rating 2",null,null,null,null,null,null,null,null,{"$f":"'Schedule IIF (EBS)'!F86","v":0}]
["Sch IIF","Other Sundry",null,"Counterparty Default Risk - MV of Collateral - Rating 2",null,null,null,null,null,null,null,null,{"$f":"'Schedule IIF (EBS)'!H86","v":0}]
["Sch IIF","Other Sundry",null,"Cash and Cash Equivalents",null,null,null,null,null,null,null,null,{"$f":"'Schedule IIF (EBS)'!D95","v":0}]
["Sch IVD","Exposure by Line",null,"NPE - Est. Next 12 Month - Property",null,null,null,null,{"$f":"'Schedule IVD (EBS)'!G10","v":0}]
["Sch IVD","Exposure by Line",null,"NPE - Est. Next 12 Month - Credit Surety Non-Prop.",null,null,null,null,{"$f":"'Schedule IVD (EBS)'!G17","v":0}]
["Sch IVD","Exposure by Line",null,"NPE - Est. Next 12 Month - US Casualty",null,null,null,null,{"$f":"'Schedule IVD (EBS)'!G20","v":0}]
["Sch IVD","Exposure by Line",null,"NPE - Est. Next 12 Month - Health",null,null,null,null,{"$f":"'Schedule IVD (EBS)'!G32","v":0}]
["Sch IVD","Exposure by Line",null,"NPE FP Existing - Personal Accident",null,null,null,null,{"$f":"'Schedule IVD (EBS)'!K12","v":0}]
["Sch IVD","Exposure by Line",null,"NPE FP Existing - Aviation Non-Proportional",null,null,null,null,{"$f":"'Schedule IVD (EBS)'!K15","v":0}]
["Sch IVD","Exposure by Line",null,"NPE FP Existing - US Specialty",null,null,null,null,{"$f":"'Schedule IVD (EBS)'!K24","v":0}]
["Sch IVD","Exposure by Line",null,"NPE FP Existing - Structured / Finite R/I",null,null,null,null,{"$f":"'Schedule IVD (EBS)'!K31","v":0}]
["Sch IVD","Exposure by Line",null,"NPE FP Future - Property Catastrophe",null,null,null,null,{"$f":"'Schedule IVD (EBS)'!M9","v":0}]
["Sch IVD","Exposure by Line",null,"NPE FP Future - Credit Surety",null,null,null,null,{"$f":"'Schedule IVD (EBS)'!M16","v":0}]
["Sch IVD","Exposure by Line",null,"NPE FP Future - US Professional Non-Prop.",null,null,null,null,{"$f":"'Schedule IVD (EBS)'!M23","v":0}]
["Sch IVD","Exposure by Line",null,"NPE FP Future - Int'l Casualty Non-Prop.",null,null,null,null,{"$f":"'Schedule IVD (EBS)'!M29","v":0}]
["Sch IVD","Exposure by Line",null,"Gross Premium Exposure - Property Non-Proportion",null,null,null,null,{"$f":"'Schedule IVD (EBS)'!Q11","v":0}]
["Sch IVD","Exposure by Line",null,"Gross Premium Exposure - Aviation",null,null,null,null,{"$f":"'Schedule IVD (EBS)'!Q14","v":0}]
["Sch IVD","Exposure by Line",null,"Gross Premium Exposure - US Casualty Non-Prop.",null,null,null,null,{"$f":"'Schedule IVD (EBS)'!Q21","v":0}]
["Sch IVD","Exposure by Line",null,"Gross Premium Exposure - Retro Property",null,null,null,null,{"$f":"'Schedule IVD (EBS)'!Q30","v":0}]
["Sch IVD","Exposure by Line",null,"Gross Premium Exposure - Total",null,null,null,null,{"$f":"'Schedule IVD (EBS)'!Q33","v":0}]
["Sch IVE","Net Prem by Zone",null,"NPE Zn 1 - Personal Acc. Non Prop.",null,null,null,null,{"$f":"'Schedule IVE (EBS)'!E15","v":0}]
["Sch IVE","Net Prem by Zone",null,"NPE Zn 1 - Energy",null,null,null,null,{"$f":"'Schedule IVE (EBS)'!E20","v":0}]
["Sch IVE","Net Prem by Zone",null,"NPE Zn 1 - Int'l Motor Non-Prop.",null,null,null,null,{"$f":"'Schedule IVE (EBS)'!E29","v":0}]
["Sch IVE","Net Prem by Zone",null,"NPE Zn 2 - Property Catastrophe",null,null,null,null,{"$f":"'Schedule IVE (EBS)'!F11","v":0}]
["Sch IVE","Net Prem by Zone",null,"NPE Zn 2 - Personal Accident",null,null,null,null,{"$f":"'Schedule IVE (EBS)'!F14","v":0}]
["Sch IVE","Net Prem by Zone",null,"NPE Zn 2 - Energy Non-Proportional",null,null,null,null,{"$f":"'Schedule IVE (EBS)'!F21","v":0}]
["Sch IVE","Net Prem by Zone",null,"NPE Zn 2 - Int'l Casualty",null,null,null,null,{"$f":"'Schedule IVE (EBS)'!F30","v":0}]
["Sch IVE","Net Prem by Zone",null,"NPE Zn 2 - Health",null,null,null,null,{"$f":"'Schedule IVE (EBS)'!F34","v":0}]
["Sch IVE","Net Prem by Zone",null,"NPE Zn 3 - Aviation",null,null,null,null,{"$f":"'Schedule IVE (EBS)'!G16","v":0}]
["Sch IVE","Net Prem by Zone",null,"NPE Zn 3 - Credit Surety Non-Prop.",null,null,null,null,{"$f":"'Schedule IVE (EBS)'!G19","v":0}]
["Sch IVE","Net Prem by Zone",null,"NPE Zn 3 - Int'l Motor",null,null,null,null,{"$f":"'Schedule IVE (EBS)'!G28","v":0}]
["Sch IVE","Net Prem by Zone",null,"NPE Zn 3 - Total",null,null,null,null,{"$f":"'Schedule IVE (EBS)'!G35","v":0}]
["Sch IVE","Net Prem by Zone",null,"NPE Zn 4 - Property Non-Proportion",null,null,null,null,{"$f":"'Schedule IVE (EBS)'!H13","v":0}]
["Sch IVE","Net Prem by Zone",null,"NPE Zn 4 - Energy",null,null,null,null,{"$f":"'Schedule IVE (EBS)'!H20","v":0}]
["Sch IVE","Net Prem by Zone",null,"NPE Zn 4 - US Professional Non-Prop.",null,null,null,null,{"$f":"'Schedule IVE (EBS)'!H25","v":0}]
["Sch IVE","Net Prem by Zone",null,"NPE Zn 4 - Structured / Finite R/I",null,null,null,null,{"$f":"'Schedule IVE (EBS)'!H33","v":0}]
["Sch IVE","Net Prem by Zone",null,"NPE Zn 5 - Personal Acc. Non Prop.",null,null,null,null,{"$f":"'Schedule IVE (EBS)'!I15","v":0}]
["Sch IVE","Net Prem by Zone",null,"NPE Zn 5 - Credit Surety",null,null,null,null,{"$f":"'Schedule IVE (EBS)'!I18","v":0}]
["Sch IVE","Net Prem by Zone",null,"NPE Zn 5 - US Professional Non-Prop.",null,null,null,null,{"$f":"'Schedule IVE (EBS)'!I25","v":0}]
["Sch IVE","Net Prem by Zone",null,"NPE Zn 5 - Health",null,null,null,null,{"$f":"'Schedule IVE (EBS)'!I34","v":0}]
["Sch IVE","Net Prem by Zone",null,"NPE Zn 6 - Property",null,null,null,null,{"$f":"'Schedule IVE (EBS)'!J12","v":0}]
["Sch IVE","Net Prem by Zone",null,"NPE Zn 6 - US Casualty Non-Prop.",null,null,null,null,{"$f":"'Schedule IVE (EBS)'!J23","v":0}]
["Sch IVE","Net Prem by Zone",null,"NPE Zn 6 - Int'l Motor Non-Prop.",null,null,null,null,{"$f":"'Schedule IVE (EBS)'!J29","v":0}]
["Sch IVE","Net Prem by Zone",null,"NPE Zn 6 - Retro Property",null,null,null,null,{"$f":"'Schedule IVE (EBS)'!J32","v":0}]
["Sch IVE","Net Prem by Zone",null,"NPE Zn 7 - Personal Accident",null,null,null,null,{"$f":"'Schedule IVE (EBS)'!K14","v":0}]
["Sch IVE","Net Prem by Zone",null,"NPE Zn 7 - Aviation Non-Proportional",null,null,null,null,{"$f":"'Schedule IVE (EBS)'!K17","v":0}]
["Sch IVE","Net Prem by Zone",null,"NPE Zn 7 - US Professional",null,null,null,null,{"$f":"'Schedule IVE (EBS)'!K24","v":0}]
["Sch IVE","Net Prem by Zone",null,"NPE Zn 7 - Structured / Finite R/I",null,null,null,null,{"$f":"'Schedule IVE (EBS)'!K33","v":0}]
["Sch IVE","Net Prem by Zone",null,"NPE Zn 7 - Total",null,null,null,null,{"$f":"'Schedule IVE (EBS)'!K35","v":0}]
["Sch IVE","Net Prem by Zone",null,"NPE Zn 8 - Credit Surety Non-Prop.",null,null,null,null,{"$f":"'Schedule IVE (EBS)'!L19","v":0}]
["Sch IVE","Net Prem by Zone",null,"NPE Zn 8 - Int'l Motor",null,null,null,null,{"$f":"'Schedule IVE (EBS)'!L28","v":0}]
["Sch IVE","Net Prem by Zone",null,"NPE Zn 8 - Int'l Motor Non-Prop.",null,null,null,null,{"$f":"'Schedule IVE (EBS)'!L29","v":0}]
["Sch IVE","Net Prem by Zone",null,"NPE Zn 9 - Property Non-Proportion",null,null,null,null,{"$f":"'Schedule IVE (EBS)'!M13","v":0}]
["Sch IVE","Net Prem by Zone",null,"NPE Zn 9 - Aviation",null,null,null,null,{"$f":"'Schedule IVE (EBS)'!M16","v":0}]
["Sch IVE","Net Prem by Zone",null,"NPE Zn 9 - US Casualty Non-Prop.",null,null,null,null,{"$f":"'Schedule IVE (EBS)'!M23","v":0}]
["Sch IVE","Net Prem by Zone",null,"NPE Zn 9 - Structured / Finite R/I",null,null,null,null,{"$f":"'Schedule IVE (EBS)'!M33","v":0}]
["Sch IVE","Net Prem by Zone",null,"NPE Zn 10 - Property Catastrophe",null,null,null,null,{"$f":"'Schedule IVE (EBS)'!N11","v":0}]
["Sch IVE","Net Prem by Zone",null,"NPE Zn 10 - Credit Surety",null,null,null,null,{"$f":"'Schedule IVE (EBS)'!N18","v":0}]
["Sch IVE","Net Prem by Zone",null,"NPE Zn 10 - US Specialty Non-Prop.",null,null,null,null,{"$f":"'Schedule IVE (EBS)'!N27","v":0}]
["Sch IVE","Net Prem by Zone",null,"NPE Zn 10 - Int'l Motor",null,null,null,null,{"$f":"'Schedule IVE (EBS)'!N28","v":0}]
["Sch IVE","Net Prem by Zone",null,"NPE Zn 11 - Property",null,null,null,null,{"$f":"'Schedule IVE (EBS)'!O12","v":0}]
["Sch IVE","Net Prem by Zone",null,"NPE Zn 11 - Personal Acc. Non Prop.",null,null,null,null,{"$f":"'Schedule IVE (EBS)'!O15","v":0}]
["Sch IVE","Net Prem by Zone",null,"NPE Zn 11 - US Professional",null,null,null,null,{"$f":"'Schedule IVE (EBS)'!O24","v":0}]
["Sch IVE","Net Prem by Zone",null,"NPE Zn 11 - Retro Property",null,null,null,null,{"$f":"'Schedule IVE (EBS)'!O32","v":0}]
["Sch IVE","Net Prem by Zone",null,"NPE Zn 11 - Total",null,null,null,null,{"$f":"'Schedule IVE (EBS)'!O35","v":0}]
["Sch IVE","Net Prem by Zone",null,"NPE Zn 12 - Aviation Non-Proportional",null,null,null,null,{"$f":"'Schedule IVE (EBS)'!P17","v":0}]
["Sch IVE","Net Prem by Zone",null,"NPE Zn 12 - US Specialty",null,null,null,null,{"$f":"'Schedule IVE (EBS)'!P26","v":0}]
["Sch IVE","Net Prem by Zone",null,"NPE Zn 12 - US Specialty Non-Prop.",null,null,null,null,{"$f":"'Schedule IVE (EBS)'!P27","v":0}]
["Sch IVE","Net Prem by Zone",null,"NPE Zn 13 - Property Catastrophe",null,null,null,null,{"$f":"'Schedule IVE (EBS)'!Q11","v":0}]
["Sch IVE","Net Prem by Zone",null,"NPE Zn 13 - Personal Acc. Non Prop.",null,null,null,null,{"$f":"'Schedule IVE (EBS)'!Q15","v":0}]
["Sch IVE","Net Prem by Zone",null,"NPE Zn 13 - US Casualty",null,null,null,null,{"$f":"'Schedule IVE (EBS)'!Q22","v":0}]
["Sch IVE","Net Prem by Zone",null,"NPE Zn 13 - Int'l Casualty Non-Prop.",null,null,null,null,{"$f":"'Schedule IVE (EBS)'!Q31","v":0}]
["Sch IVE","Net Prem by Zone",null,"NPE Zn 14 - Property Non-Proportion",null,null,null,null,{"$f":"'Schedule IVE (EBS)'!R13","v":0}]
["Sch IVE","Net Prem by Zone",null,"NPE Zn 14 - Aviation",null,null,null,null,{"$f":"'Schedule IVE (EBS)'!R16","v":0}]
["Sch IVE","Net Prem by Zone",null,"NPE Zn 14 - US Professional Non-Prop.",null,null,null,null,{"$f":"'Schedule IVE (EBS)'!R25","v":0}]
["Sch IVE","Net Prem by Zone",null,"NPE Zn 14 - US Specialty Non-Prop.",null,null,null,null,{"$f":"'Schedule IVE (EBS)'!R27","v":0}]
["Sch IVE","Net Prem by Zone",null,"NPE Zn 15 - Property Catastrophe",null,null,null,null,{"$f":"'Schedule IVE (EBS)'!S11","v":0}]
["Sch IVE","Net Prem by Zone",null,"NPE Zn 15 - Personal Accident",null,null,null,null,{"$f":"'Schedule IVE (EBS)'!S14","v":0}]
["Sch IVE","Net Prem by Zone",null,"NPE Zn 15 - Energy Non-Proportional",null,null,null,null,{"$f":"'Schedule IVE (EBS)'!S21","v":0}]
["Sch IVE","Net Prem by Zone",null,"NPE Zn 15 - Int'l Casualty",null,null,null,null,{"$f":"'Schedule IVE (EBS)'!S30","v":0}]
["Sch IVE","Net Prem by Zone",null,"NPE Zn 16 - Property",null,null,null,null,{"$f":"'Schedule IVE (EBS)'!T12","v":0}]
["Sch IVE","Net Prem by Zone",null,"NPE Zn 16 - Personal Acc. Non Prop.",null,null,null,null,{"$f":"'Schedule IVE (EBS)'!T15","v":0}]
["Sch IVE","Net Prem by Zone",null,"NPE Zn 16 - Energy Non-Proportional",null,null,null,null,{"$f":"'Schedule IVE (EBS)'!T21","v":0}]
["Sch IVE","Net Prem by Zone",null,"NPE Zn 16 - US Specialty",null,null,null,null,{"$f":"'Schedule IVE (EBS)'!T26","v":0}]
["Sch IVE","Net Prem by Zone",null,"NPE Zn 16 - Total",null,null,null,null,{"$f":"'Schedule IVE (EBS)'!T35","v":0}]
["Sch IVE","Net Prem by Zone",null,"NPE Zn 17 - Aviation Non-Proportional",null,null,null,null,{"$f":"'Schedule IVE (EBS)'!U17","v":0}]
["Sch IVE","Net Prem by Zone",null,"NPE Zn 17 - Energy",null,null,null,null,{"$f":"'Schedule IVE (EBS)'!U20","v":0}]
["Sch IVE","Net Prem by Zone",null,"NPE Zn 17 - Int'l Motor Non-Prop.",null,null,null,null,{"$f":"'Schedule IVE (EBS)'!U29","v":0}]
["Sch IVE","Net Prem by Zone",null,"NPE Zn 18 - Property Catastrophe",null,null,null,null,{"$f":"'Schedule IVE (EBS)'!V11","v":0}]
["Sch IVE","Net Prem by Zone",null,"NPE Zn 18 - Property",null,null,null,null,{"$f":"'Schedule IVE (EBS)'!V12","v":0}]
["Sch IVE","Net Prem by Zone",null,"NPE Zn 18 - US Professional",null,null,null,null,{"$f":"'Schedule IVE (EBS)'!V24","v":0}]
["Sch IVE","Net Prem by Zone",null,"NPE Zn 18 - US Professional Non-Prop.",null,null,null,null,{"$f":"'Schedule IVE (EBS)'!V25","v":0}]
["Sch IVE","Net Prem by Zone",null,"NPE Zn 18 - Health",null,null,null,null,{"$f":"'Schedule IVE (EBS)'!V34","v":0}]
["Sch XIXA","Cash Counterpart",null,"Name - Counterparty 4",null,null,null,null,null,null,null,null,{"$f":"'Schedule XIXA'!C17","v":0}]
["Sch XIXA","Cash Counterpart",null,"Name - Counterparty 7",null,null,null,null,null,null,null,null,{"$f":"'Schedule XIXA'!C20","v":0}]
["Sch XIXA","Cash Counterpart",null,"Name - Counterparty 16",null,null,null,null,null,null,null,null,{"$f":"'Schedule XIXA'!C29","v":0}]
["Sch XIXA","Cash Counterpart",null,"BSCR Rating - Counterparty 3",null,null,null,null,null,null,null,null,{"$f":"'Schedule XIXA'!D16","v":"Select"}]
["Sch XIXA","Cash Counterpart",null,"BSCR Rating - Counterparty 7",null,null,null,null,null,null,null,null,{"$f":"'Schedule XIXA'!D20","v":"Select"}]
["Sch XIXA","Cash Counterpart",null,"BSCR Rating - Counterparty 16",null,null,null,null,null,null,null,null,{"$f":"'Schedule XIXA'!D29","v":"Select"}]
["Sch XIXA","Cash Counterpart",null,"BSCR Rating - Counterparty 17",null,null,null,null,null,null,null,null,{"$f":"'Schedule XIXA'!D30","v":"Select"}]
["Sch XIXA","Cash Counterpart",null,"Counterparty Value 6",null,null,null,null,null,null,null,null,{"$f":"'Schedule XIXA'!F19","v":0}]
["Sch XIXA","Cash Counterpart",null,"Counterparty Value 13",null,null,null,null,null,null,null,null,{"$f":"'Schedule XIXA'!F26","v":0}]
["Sch XIXA","Cash Counterpart",null,"Counterparty Value 16",null,null,null,null,null,null,null,null,{"$f":"'Schedule XIXA'!F29","v":0}]
["Sch XIXA","Cash Counterpart",null,"Exposure BSCR Rate 5",null,null,null,null,null,null,null,null,{"$f":"'Schedule XIXA'!F62","v":0}]
["Sch XXA","Currency Shock",null,"Other Currency 2",null,null,null,null,null,null,null,null,{"$f":"'Schedule XXA'!B24","v":"Other currency 2"}]
["Sch XXA","Currency Shock",null,"Other Currency 5",null,null,null,null,null,null,null,null,{"$f":"'Schedule XXA'!B27","v":"Other currency 5"}]
["Sch XXA","Currency Shock",null,{"$f":"\"Before Shock - Assets - Excluding Currency - Sensitive Derivatives \"&'Schedule XXA'!$B$11","v":"Before Shock - Assets - Excluding Currency - Sensitive Derivatives Bermuda Dollars"},null,null,null,null,null,null,null,null,{"$f":"'Schedule XXA'!D11","v":0}]
["Sch XXA","Currency Shock",null,{"$f":"\"Before Shock - Assets - Excluding Currency - Sensitive Derivatives \"&'Schedule XXA'!$B$14","v":"Before Shock - Assets - Excluding Currency - Sensitive Derivatives Euro"},null,null,null,null,null,null,null,null,{"$f":"'Schedule XXA'!D14","v":0}]
["Sch XXA","Currency Shock",null,{"$f":"\"Before Shock - Assets - Excluding Currency - Sensitive Derivatives \"&'Schedule XXA'!$B$23","v":"Before Shock - Assets - Excluding Currency - Sensitive Derivatives Other currency 1"},null,null,null,null,null,null,null,null,{"$f":"'Schedule XXA'!D23","v":0}]
["Sch XXA","Currency Shock",null,{"$f":"\"Before Shock - Assets - Excluding Currency - Sensitive Derivatives \"&'Schedule XXA'!$B$30","v":"Before Shock - Assets - Excluding Currency - Sensitive Derivatives Other currency 8"},null,null,null,null,null,null,null,null,{"$f":"'Schedule XXA'!D30","v":0}]
["Sch XXA","Currency Shock",null,{"$f":"\"Before Shock - Long Exposures - Currency Derivatives Qualifying as held for risk-mitigation purposes \"&'Schedule XXA'!$B$13","v":"Before Shock - Long Exposures - Currency Derivatives Qualifying as held for risk-mitigation purposes Hong Kong Dollars"},null,null,null,null,null,null,null,null,{"$f":"'Schedule XXA'!F13","v":0}]
["Sch XXA","Currency Shock",null,{"$f":"\"Before Shock - Long Exposures - Currency Derivatives Qualifying as held for risk-mitigation purposes \"&'Schedule XXA'!$B$20","v":"Before Shock - Long Exposures - Currency Derivatives Qualifying as held for risk-mitigation purposes United Kingdom Pounds"},null,null,null,null,null,null,null,null,{"$f":"'Schedule XXA'!F20","v":0}]
["Sch XXA","Currency Shock",null,{"$f":"\"Before Shock - Long Exposures - Currency Derivatives Qualifying as held for risk-mitigation purposes \"&'Schedule XXA'!$B$27","v":"Before Shock - Long Exposures - Currency Derivatives Qualifying as held for risk-mitigation purposes Other currency 5"},null,null,null,null,null,null,null,null,{"$f":"'Schedule XXA'!F27","v":0}]
["Sch XXA","Currency Shock",null,{"$f":"\"Before Shock - Long Exposures - Currency Derivatives Qualifying as held for risk-mitigation purposes \"&'Schedule XXA'!$B$30","v":"Before Shock - Long Exposures - Currency Derivatives Qualifying as held for risk-mitigation purposes Other currency 8"},null,null,null,null,null,null,null,null,{"$f":"'Schedule XXA'!F30","v":0}]
["Sch XXA","Currency Shock",null,{"$f":"\"Before Shock - Long Exposures - Currency Derivatives Not Qualifying as held for risk-mitigation purposes \"&'Schedule XXA'!$B$14","v":"Before Shock - Long Exposures - Currency Derivatives Not Qualifying as held for risk-mitigation purposes Euro"},null,null,null,null,null,null,null,null,{"$f":"'Schedule XXA'!H14","v":0}]
["Sch XXA","Currency Shock",null,{"$f":"\"Before Shock - Long Exposures - Currency Derivatives Not Qualifying as held for risk-mitigation purposes \"&'Schedule XXA'!$B$17","v":"Before Shock - Long Exposures - Currency Derivatives Not Qualifying as held for risk-mitigation purposes West African CFA Francs"},null,null,null,null,null,null,null,null,{"$f":"'Schedule XXA'!H17","v":0}]
["Sch XXA","Currency Shock",null,{"$f":"\"Before Shock - Long Exposures - Currency Derivatives Not Qualifying as held for risk-mitigation purposes \"&'Schedule XXA'!$B$26","v":"Before Shock - Long Exposures - Currency Derivatives Not Qualifying as held for risk-mitigation purposes Other currency 4"},null,null,null,null,null,null,null,null,{"$f":"'Schedule XXA'!H26","v":0}]
["Sch XXA","Currency Shock",null,{"$f":"\"Before Shock - Long Exposures - Currency Derivatives Not Qualifying as held for risk-mitigation purposes \"&'Schedule XXA'!$B$31","v":"Before Shock - Long Exposures - Currency Derivatives Not Qualifying as held for risk-mitigation purposes Other currency 9"},null,null,null,null,null,null,null,null,{"$f":"'Schedule XXA'!H31","v":0}]
["Sch XXA","Currency Shock",null,{"$f":"\"Before Shock - Short Exposures - Currency Derivatives Qualifying as held for risk-mitigation purposes \"&'Schedule XXA'!$B$14","v":"Before Shock - Short Exposures - Currency Derivatives Qualifying as held for risk-mitigation purposes Euro"},null,null,null,null,null,null,null,null,{"$f":"'Schedule XXA'!J14","v":0}]
["Sch XXA","Currency Shock",null,{"$f":"\"Before Shock - Short Exposures - Currency Derivatives Qualifying as held for risk-mitigation purposes \"&'Schedule XXA'!$B$23","v":"Before Shock - Short Exposures - Currency Derivatives Qualifying as held for risk-mitigation purposes Other currency 1"},null,null,null,null,null,null,null,null,{"$f":"'Schedule XXA'!J23","v":0}]
["Sch XXA","Currency Shock",null,{"$f":"\"Before Shock - Short Exposures - Currency Derivatives Qualifying as held for risk-mitigation purposes \"&'Schedule XXA'!$B$30","v":"Before Shock - Short Exposures - Currency Derivatives Qualifying as held for risk-mitigation purposes Other currency 8"},null,null,null,null,null,null,null,null,{"$f":"'Schedule XXA'!J30","v":0}]
["Sch XXA","Currency Shock",null,{"$f":"\"Before Shock - Short Exposures - Currency Derivatives Not Qualifying as held for risk-mitigation purposes \"&'Schedule XXA'!$B$10","v":"Before Shock - Short Exposures - Currency Derivatives Not Qualifying as held for risk-mitigation purposes United States Dollars"},null,null,null,null,null,null,null,null,{"$f":"'Schedule XXA'!L10","v":0}]
["Sch XXA","Currency Shock",null,{"$f":"\"Before Shock - Short Exposures - Currency Derivatives Not Qualifying as held for risk-mitigation purposes \"&'Schedule XXA'!$B$17","v":"Before Shock - Short Exposures - Currency Derivatives Not Qualifying as held for risk-mitigation purposes West African CFA Francs"},null,null,null,null,null,null,null,null,{"$f":"'Schedule XXA'!L17","v":0}]
["Sch XXA","Currency Shock",null,{"$f":"\"Before Shock - Short Exposures - Currency Derivatives Not Qualifying as held for risk-mitigation purposes \"&'Schedule XXA'!$B$20","v":"Before Shock - Short Exposures - Currency Derivatives Not Qualifying as held for risk-mitigation purposes United Kingdom Pounds"},null,null,null,null,null,null,null,null,{"$f":"'Schedule XXA'!L20","v":0}]
["Sch XXA","Currency Shock",null,{"$f":"\"Before Shock - Short Exposures - Currency Derivatives Not Qualifying as held for risk-mitigation purposes \"&'Schedule XXA'!$B$29","v":"Before Shock - Short Exposures - Currency Derivatives Not Qualifying as held for risk-mitigation purposes Other currency 7"},null,null,null,null,null,null,null,null,{"$f":"'Schedule XXA'!L29","v":0}]
["Sch XXA","Currency Shock",null,{"$f":"\"Before Shock - B.E. Liabilities \"&'Schedule XXA'!$B$14","v":"Before Shock - B.E. Liabilities Euro"},null,null,null,null,null,null,null,null,{"$f":"'Schedule XXA'!N14","v":0}]
["Sch XXA","Currency Shock",null,{"$f":"\"Before Shock - B.E. Liabilities \"&'Schedule XXA'!$B$17","v":"Before Shock - B.E. Liabilities West African CFA Francs"},null,null,null,null,null,null,null,null,{"$f":"'Schedule XXA'!N17","v":0}]
["Sch XXA","Currency Shock",null,{"$f":"\"Before Shock - B.E. Liabilities \"&'Schedule XXA'!$B$24","v":"Before Shock - B.E. Liabilities Other currency 2"},null,null,null,null,null,null,null,null,{"$f":"'Schedule XXA'!N24","v":0}]
["Sch XXA","Currency Shock",null,{"$f":"\"After Shock - Assets - Excluding Currency - Sensitive Derivatives \"&'Schedule XXA'!$B$10","v":"After Shock - Assets - Excluding Currency - Sensitive Derivatives United States Dollars"},null,null,null,null,null,null,null,null,{"$f":"'Schedule XXA'!V10","v":0}]
["Sch XXA","Currency Shock",null,{"$f":"\"After Shock - Assets - Excluding Currency - Sensitive Derivatives \"&'Schedule XXA'!$B$13","v":"After Shock - Assets - Excluding Currency - Sensitive Derivatives Hong Kong Dollars"},null,null,null,null,null,null,null,null,{"$f":"'Schedule XXA'!V13","v":0}]
["Sch XXA","Currency Shock",null,{"$f":"\"After Shock - Assets - Excluding Currency - Sensitive Derivatives \"&'Schedule XXA'!$B$20","v":"After Shock - Assets - Excluding Currency - Sensitive Derivatives United Kingdom Pounds"},null,null,null,null,null,null,null,null,{"$f":"'Schedule XXA'!V20","v":0}]
["Sch XXA","Currency Shock",null,{"$f":"\"After Shock - Assets - Excluding Currency - Sensitive Derivatives \"&'Schedule XXA'!$B$24","v":"After Shock - Assets - Excluding Currency - Sensitive Derivatives Other currency 2"},null,null,null,null,null,null,null,null,{"$f":"'Schedule XXA'!V24","v":0}]
["Sch XXA","Currency Shock",null,{"$f":"\"After Shock - Long Exposures - Currency Derivatives Qualifying as held for risk-mitigation purposes \"&'Schedule XXA'!$B$10","v":"After Shock - Long Exposures - Currency Derivatives Qualifying as held for risk-mitigation purposes United States Dollars"},null,null,null,null,null,null,null,null,{"$f":"'Schedule XXA'!X10","v":0}]
["Sch XXA","Currency Shock",null,{"$f":"\"After Shock - Long Exposures - Currency Derivatives Qualifying as held for risk-mitigation purposes \"&'Schedule XXA'!$B$17","v":"After Shock - Long Exposures - Currency Derivatives Qualifying as held for risk-mitigation purposes West African CFA Francs"},null,null,null,null,null,null,null,null,{"$f":"'Schedule XXA'!X17","v":0}]
["Sch XXA","Currency Shock",null,{"$f":"\"After Shock - Long Exposures - Currency Derivatives Qualifying as held for risk-mitigation purposes \"&'Schedule XXA'!$B$20","v":"After Shock - Long Exposures - Currency Derivatives Qualifying as held for risk-mitigation purposes United Kingdom Pounds"},null,null,null,null,null,null,null,null,{"$f":"'Schedule XXA'!X20","v":0}]
["Sch XXA","Currency Shock",null,{"$f":"\"After Shock - Long Exposures - Currency Derivatives Qualifying as held for risk-mitigation purposes \"&'Schedule XXA'!$B$27","v":"After Shock - Long Exposures - Currency Derivatives Qualifying as held for risk-mitigation purposes Other currency 5"},null,null,null,null,null,null,null,null,{"$f":"'Schedule XXA'!X27","v":0}]
["Sch XXA","Currency Shock",null,{"$f":"\"After Shock - Long Exposures - Currency Derivatives Not Qualifying as held for risk-mitigation purposes \"&'Schedule XXA'!$B$13","v":"After Shock - Long Exposures - Currency Derivatives Not Qualifying as held for risk-mitigation purposes Hong Kong Dollars"},null,null,null,null,null,null,null,null,{"$f":"'Schedule XXA'!Z13","v":0}]
["Sch XXA","Currency Shock",null,{"$f":"\"After Shock - Long Exposures - Currency Derivatives Not Qualifying as held for risk-mitigation purposes \"&'Schedule XXA'!$B$15","v":"After Shock - Long Exposures - Currency Derivatives Not Qualifying as held for risk-mitigation purposes Denmark Kroner"},null,null,null,null,null,null,null,null,{"$f":"'Schedule XXA'!Z15","v":0}]
["Sch XXA","Currency Shock",null,{"$f":"\"After Shock - Long Exposures - Currency Derivatives Not Qualifying as held for risk-mitigation purposes \"&'Schedule XXA'!$B$24","v":"After Shock - Long Exposures - Currency Derivatives Not Qualifying as held for risk-mitigation purposes Other currency 2"},null,null,null,null,null,null,null,null,{"$f":"'Schedule XXA'!Z24","v":0}]
["Sch XXA","Currency Shock",null,{"$f":"\"After Shock - Long Exposures - Currency Derivatives Not Qualifying as held for risk-mitigation purposes \"&'Schedule XXA'!$B$27","v":"After Shock - Long Exposures - Currency Derivatives Not Qualifying as held for risk-mitigation purposes Other currency 5"},null,null,null,null,null,null,null,null,{"$f":"'Schedule XXA'!Z27","v":0}]
["Sch XXA","Currency Shock",null,{"$f":"\"After Shock - Short Exposures - Currency Derivatives Qualifying as held for risk-mitigation purposes \"&'Schedule XXA'!$B$11","v":"After Shock - Short Exposures - Currency Derivatives Qualifying as held for risk-mitigation purposes Bermuda Dollars"},null,null,null,null,null,null,null,null,{"$f":"'Schedule XXA'!AB11","v":0}]
["Sch XXA","Currency Shock",null,{"$f":"\"After Shock - Short Exposures - Currency Derivatives Qualifying as held for risk-mitigation purposes \"&'Schedule XXA'!$B$20","v":"After Shock - Short Exposures - Currency Derivatives Qualifying as held for risk-mitigation purposes United Kingdom Pounds"},null,null,null,null,null,null,null,null,{"$f":"'Schedule XXA'!AB20","v":0}]
["Sch XXA","Currency Shock",null,{"$f":"\"After Shock - Short Exposures - Currency Derivatives Qualifying as held for risk-mitigation purposes \"&'Schedule XXA'!$B$23","v":"After Shock - Short Exposures - Currency Derivatives Qualifying as held for risk-mitigation purposes Other currency 1"},null,null,null,null,null,null,null,null,{"$f":"'Schedule XXA'!AB23","v":0}]
["Sch XXA","Currency Shock",null,{"$f":"\"After Shock - Short Exposures - Currency Derivatives Qualifying as held for risk-mitigation purposes \"&'Schedule XXA'!$B$30","v":"After Shock - Short Exposures - Currency Derivatives Qualifying as held for risk-mitigation purposes Other currency 8"},null,null,null,null,null,null,null,null,{"$f":"'Schedule XXA'!AB30","v":0}]
["Sch XXA","Currency Shock",null,{"$f":"\"After Shock - Short Exposures - Currency Derivatives Not Qualifying as held for risk-mitigation purposes \"&'Schedule XXA'!$B$17","v":"After Shock - Short Exposures - Currency Derivatives Not Qualifying as held for risk-mitigation purposes West African CFA Francs"},null,null,null,null,null,null,null,null,{"$f":"'Schedule XXA'!AD17","v":0}]
["Sch XXA","Currency Shock",null,{"$f":"\"After Shock - Short Exposures - Currency Derivatives Not Qualifying as held for risk-mitigation purposes \"&'Schedule XXA'!$B$20","v":"After Shock - Short Exposures - Currency Derivatives Not Qualifying as held for risk-mitigation purposes United Kingdom Pounds"},null,null,null,null,null,null,null,null,{"$f":"'Schedule XXA'!AD20","v":0}]
["Sch XXA","Currency Shock",null,{"$f":"\"After Shock - Short Exposures - Currency Derivatives Not Qualifying as held for risk-mitigation purposes \"&'Schedule XXA'!$B$27","v":"After Shock - Short Exposures - Currency Derivatives Not Qualifying as held for risk-mitigation purposes Other currency 5"},null,null,null,null,null,null,null,null,{"$f":"'Schedule XXA'!AD27","v":0}]
["Sch XXA","Currency Shock",null,{"$f":"\"After Shock - Short Exposures - Currency Derivatives Not Qualifying as held for risk-mitigation purposes \"&'Schedule XXA'!$B$30","v":"After Shock - Short Exposures - Currency Derivatives Not Qualifying as held for risk-mitigation purposes Other currency 8"},null,null,null,null,null,null,null,null,{"$f":"'Schedule XXA'!AD30","v":0}]
["Sch XXA","Currency Shock",null,{"$f":"\"After Shock - B.E. Liabilities \"&'Schedule XXA'!$B$14","v":"After Shock - B.E. Liabilities Euro"},null,null,null,null,null,null,null,null,{"$f":"'Schedule XXA'!AF14","v":0}]
["Sch XXA","Currency Shock",null,{"$f":"\"After Shock - B.E. Liabilities \"&'Schedule XXA'!$B$23","v":"After Shock - B.E. Liabilities Other currency 1"},null,null,null,null,null,null,null,null,{"$f":"'Schedule XXA'!AF23","v":0}]
["Sch XXA","Currency Shock",null,{"$f":"\"After Shock - B.E. Liabilities \"&'Schedule XXA'!$B$26","v":"After Shock - B.E. Liabilities Other currency 4"},null,null,null,null,null,null,null,null,{"$f":"'Schedule XXA'!AF26","v":0}]
["Sch XXA","Currency Shock",null,{"$f":"\"After Shock - Liabilities w Mgmt. Actions \"&'Schedule XXA'!$B$12","v":"After Shock - Liabilities w Mgmt. Actions Qatar Riyals"},null,null,null,null,null,null,null,null,{"$f":"'Schedule XXA'!AH12","v":0}]
["Sch XXA","Currency Shock",null,{"$f":"\"After Shock - Liabilities w Mgmt. Actions \"&'Schedule XXA'!$B$20","v":"After Shock - Liabilities w Mgmt. Actions United Kingdom Pounds"},null,null,null,null,null,null,null,null,{"$f":"'Schedule XXA'!AH20","v":0}]
["Sch XXA","Currency Shock",null,{"$f":"\"After Shock - Liabilities w Mgmt. Actions \"&'Schedule XXA'!$B$23","v":"After Shock - Liabilities w Mgmt. Actions Other currency 1"},null,null,null,null,null,null,null,null,{"$f":"'Schedule XXA'!AH23","v":0}]
["Sch XXA","Currency Shock",null,{"$f":"\"After Shock - Liabilities w Mgmt. Actions \"&'Schedule XXA'!$B$30","v":"After Shock - Liabilities w Mgmt. Actions Other currency 8"},null,null,null,null,null,null,null,null,{"$f":"'Schedule XXA'!AH30","v":0}]
["Sch XXA","Currency Shock",null,"Liabilities Prior Year 1",null,null,null,null,null,null,null,null,{"$f":"'Schedule XXA'!D43","v":0}]
["Sch XXIA","Inv Con Risk",null,"# of Exposures",{"$f":"'Schedule XXIA'!J3","v":0}]
["Sch XXIA","Inv Con Risk",null,"Name of Exposure - 9",{"$f":"'Schedule XXIA'!C16","v":0}]
["Sch XXIA","Inv Con Risk",null,"Name of Exposure - 16",{"$f":"'Schedule XXIA'!C23","v":0}]
["Sch XXIA","Inv Con Risk",null,"Name of Exposure - 20",{"$f":"'Schedule XXIA'!C27","v":0}]
["Sch XXIA","Inv Con Risk",null,"Name of Exposure - 29",{"$f":"'Schedule XXIA'!C36","v":0}]
["Sch XXIA","Inv Con Risk",null,"Name of Exposure - 30",{"$f":"'Schedule XXIA'!C37","v":0}]
["Sch XXIA","Inv Con Risk",null,"Name of Exposure - 39",{"$f":"'Schedule XXIA'!C46","v":0}]
["Sch XXIA","Inv Con Risk",null,"Name of Exposure - 42",{"$f":"'Schedule XXIA'!C49","v":0}]
["Sch XXIA","Inv Con Risk",null,"Name of Exposure - 49",{"$f":"'Schedule XXIA'!C56","v":0}]
["Sch XXIA","Inv Con Risk",null,"Asset Type - 7",{"$f":"'Schedule XXIA'!E14","v":"Select"},null,null,null,null,null,null,null,{"$f":"'Schedule XXIA'!J14","v":"Select"}]
["Sch XXIA","Inv Con Risk",null,"Asset Type - 12",{"$f":"'Schedule XXIA'!E19","v":"Select"},null,null,null,null,null,null,null,{"$f":"'Schedule XXIA'!J19","v":"Select"}]
["Sch XXIA","Inv Con Risk",null,"Asset Type - 19",{"$f":"'Schedule XXIA'!E26","v":"Select"},null,null,null,null,null,null,null,{"$f":"'Schedule XXIA'!J26","v":"Select"}]
["Sch XXIA","Inv Con Risk",null,"Asset Type - 28",{"$f":"'Schedule XXIA'!E35","v":"Select"},null,null,null,null,null,null,null,{"$f":"'Schedule XXIA'!J35","v":"Select"}]
["Sch XXIA","Inv Con Risk",null,"Asset Type - 29",{"$f":"'Schedule XXIA'!E36","v":"Select"},null,null,null,null,null,null,null,{"$f":"'Schedule XXIA'!J36","v":"Select"}]
["Sch XXIA","Inv Con Risk",null,"Asset Type - 38",{"$f":"'Schedule XXIA'!E45","v":"Select"},null,null,null,null,null,null,null,{"$f":"'Schedule XXIA'!J45","v":"Select"}]
["Sch XXIA","Inv Con Risk",null,"Asset Type - 41",{"$f":"'Schedule XXIA'!E48","v":"Select"},null,null,null,null,null,null,null,{"$f":"'Schedule XXIA'!J48","v":"Select"}]
["Sch XXIA","Inv Con Risk",null,"Asset Type - 48",{"$f":"'Schedule XXIA'!E55","v":"Select"},null,null,null,null,null,null,null,{"$f":"'Schedule XXIA'!J55","v":"Select"}]
["Sch XXIA","Inv Con Risk",null,"Bond Type - 8",{"$f":"'Schedule XXIA'!F15","v":"Select"},null,null,null,null,null,null,null,{"$f":"'Schedule XXIA'!K15","v":"Select"}]
["Sch XXIA","Inv Con Risk",null,"Bond Type - 15",{"$f":"'Schedule XXIA'!F22","v":"Select"},null,null,null,null,null,null,null,{"$f":"'Schedule XXIA'!K22","v":"Select"}]
["Sch XXIA","Inv Con Risk",null,"Bond Type - 18",{"$f":"'Schedule XXIA'!F25","v":"Select"},null,null,null,null,null,null,null,{"$f":"'Schedule XXIA'!K25","v":"Select"}]
["Sch XXIA","Inv Con Risk",null,"Bond Type - 27",{"$f":"'Schedule XXIA'!F34","v":"Select"},null,null,null,null,null,null,null,{"$f":"'Schedule XXIA'!K34","v":"Select"}]
["Sch XXIA","Inv Con Risk",null,"Bond Type - 28",{"$f":"'Schedule XXIA'!F35","v":"Select"},null,null,null,null,null,null,null,{"$f":"'Schedule XXIA'!K35","v":"Select"}]
["Sch XXIA","Inv Con Risk",null,"Bond Type - 37",{"$f":"'Schedule XXIA'!F44","v":"Select"},null,null,null,null,null,null,null,{"$f":"'Schedule XXIA'!K44","v":"Select"}]
["Sch XXIA","Inv Con Risk",null,"Bond Type - 42",{"$f":"'Schedule XXIA'!F49","v":"Select"},null,null,null,null,null,null,null,{"$f":"'Schedule XXIA'!K49","v":"Select"}]
["Sch XXIA","Inv Con Risk",null,"Bond Type - 48",{"$f":"'Schedule XXIA'!F55","v":"Select"},null,null,null,null,null,null,null,{"$f":"'Schedule XXIA'!K55","v":"Select"}]
["Sch XXIA","Inv Con Risk",null,"BSCR Rating - 7",{"$f":"'Schedule XXIA'!G14","v":"Select"},null,null,null,null,null,null,null,{"$f":"'Schedule XXIA'!L14","v":"Select"}]
["Sch XXIA","Inv Con Risk",null,"BSCR Rating - 14",{"$f":"'Schedule XXIA'!G21","v":"Select"},null,null,null,null,null,null,null,{"$f":"'Schedule XXIA'!L21","v":"Select"}]
["Sch XXIA","Inv Con Risk",null,"BSCR Rating - 17",{"$f":"'Schedule XXIA'!G24","v":"Select"},null,null,null,null,null,null,null,{"$f":"'Schedule XXIA'!L24","v":"Select"}]
["Sch XXIA","Inv Con Risk",null,"BSCR Rating - 26",{"$f":"'Schedule XXIA'!G33","v":"Select"},null,null,null,null,null,null,null,{"$f":"'Schedule XXIA'!L33","v":"Select"}]
["Sch XXIA","Inv Con Risk",null,"BSCR Rating - 27",{"$f":"'Schedule XXIA'!G34","v":"Select"},null,null,null,null,null,null,null,{"$f":"'Schedule XXIA'!L34","v":"Select"}]
["Sch XXIA","Inv Con Risk",null,"BSCR Rating - 33",{"$f":"'Schedule XXIA'!G40","v":"Select"},null,null,null,null,null,null,null,{"$f":"'Schedule XXIA'!L40","v":"Select"}]
["Sch XXIA","Inv Con Risk",null,"BSCR Rating - 40",{"$f":"'Schedule XXIA'!G47","v":"Select"},null,null,null,null,null,null,null,{"$f":"'Schedule XXIA'!L47","v":"Select"}]
["Sch XXIA","Inv Con Risk",null,"BSCR Rating - 47",{"$f":"'Schedule XXIA'!G54","v":"Select"},null,null,null,null,null,null,null,{"$f":"'Schedule XXIA'!L54","v":"Select"}]
["Sch XXIA","Inv Con Risk",null,"Asset Value - 6",{"$f":"'Schedule XXIA'!H13","v":0},null,null,null,null,null,null,null,{"$f":"'Schedule XXIA'!M13","v":0}]
["Sch XXIA","Inv Con Risk",null,"Asset Value - 13",{"$f":"'Schedule XXIA'!H20","v":0},null,null,null,null,null,null,null,{"$f":"'Schedule XXIA'!M20","v":0}]
["Sch XXIA","Inv Con Risk",null,"Asset Value - 16",{"$f":"'Schedule XXIA'!H23","v":0},null,null,null,null,null,null,null,{"$f":"'Schedule XXIA'!M23","v":0}]
["Sch XXIA","Inv Con Risk",null,"Asset Value - 25",{"$f":"'Schedule XXIA'!H32","v":0},null,null,null,null,null,null,null,{"$f":"'Schedule XXIA'!M32","v":0}]
["Sch XXIA","Inv Con Risk",null,"Asset Value - 31",{"$f":"'Schedule XXIA'!H38","v":0},null,null,null,null,null,null,null,{"$f":"'Schedule XXIA'!M38","v":0}]
["Sch XXIA","Inv Con Risk",null,"Asset Value - 36",{"$f":"'Schedule XXIA'!H43","v":0},null,null,null,null,null,null,null,{"$f":"'Schedule XXIA'!M43","v":0}]
["Sch XXIA","Inv Con Risk",null,"Asset Value - 43",{"$f":"'Schedule XXIA'!H50","v":0},null,null,null,null,null,null,null,{"$f":"'Schedule XXIA'!M50","v":0}]
["Sch XXIA","Inv Con Risk",null,"Asset Value - 46",{"$f":"'Schedule XXIA'!H53","v":0},null,null,null,null,null,null,null,{"$f":"'Schedule XXIA'!M53","v":0}]
["Sch XXIII","Interest Rates",null,"Other currency 3",null,null,null,null,null,null,null,null,{"$f":"'Schedule XXIII'!C20","v":"Other currency 3"}]
["Sch XXIII","Interest Rates",null,"Other currency 10",null,null,null,null,null,null,null,null,{"$f":"'Schedule XXIII'!C27","v":"Other currency 10"}]
["Sch XXIII","Interest Rates",null,"Int. Down - Before Shock - Other - Qualifying Assets - Swiss Francs",null,null,null,null,null,null,null,null,{"$f":"'Schedule XXIII'!E15","v":0}]
["Sch XXIII","Interest Rates",null,"Int. Down - Before Shock - Other - Qualifying Assets - New Zealand Dollar",null,null,null,null,null,null,null,null,{"$f":"'Schedule XXIII'!E17","v":0}]
["Sch XXIII","Interest Rates",null,{"$f":"\"Int. Down - Before Shock - Other - Qualifying Assets - \"&'Schedule XXIII'!$C$18","v":"Int. Down - Before Shock - Other - Qualifying Assets - Other currency 1"},null,null,null,null,null,null,null,null,{"$f":"'Schedule XXIII'!E18","v":0}]
["Sch XXIII","Interest Rates",null,{"$f":"\"Int. Down - Before Shock - Other - Qualifying Assets - \"&'Schedule XXIII'!$C$19","v":"Int. Down - Before Shock - Other - Qualifying Assets - Other currency 2"},null,null,null,null,null,null,null,null,{"$f":"'Schedule XXIII'!E19","v":0}]
["Sch XXIII","Interest Rates",null,{"$f":"\"Int. Down - Before Shock - Other - Qualifying Assets - \"&'Schedule XXIII'!$C$20","v":"Int. Down - Before Shock - Other - Qualifying Assets - Other currency 3"},null,null,null,null,null,null,null,null,{"$f":"'Schedule XXIII'!E20","v":0}]
["Sch XXIII","Interest Rates",null,{"$f":"\"Int. Down - Before Shock - Other - Qualifying Assets - \"&'Schedule XXIII'!$C$21","v":"Int. Down - Before Shock - Other - Qualifying Assets - Other currency 4"},null,null,null,null,null,null,null,null,{"$f":"'Schedule XXIII'!E21","v":0}]
["Sch XXIII","Interest Rates",null,{"$f":"\"Int. Down - Before Shock - Other - Qualifying Assets - \"&'Schedule XXIII'!$C$22","v":"Int. Down - Before Shock - Other - Qualifying Assets - Other currency 5"},null,null,null,null,null,null,null,null,{"$f":"'Schedule XXIII'!E22","v":0}]
["Sch XXIII","Interest Rates",null,{"$f":"\"Int. Down - Before Shock - Other - Qualifying Assets - \"&'Schedule XXIII'!$C$23","v":"Int. Down - Before Shock - Other - Qualifying Assets - Other currency 6"},null,null,null,null,null,null,null,null,{"$f":"'Schedule XXIII'!E23","v":0}]
["Sch XXIII","Interest Rates",null,{"$f":"\"Int. Down - Before Shock - Other - Qualifying Assets - \"&'Schedule XXIII'!$C$24","v":"Int. Down - Before Shock - Other - Qualifying Assets - Other currency 7"},null,null,null,null,null,null,null,null,{"$f":"'Schedule XXIII'!E24","v":0}]
["Sch XXIII","Interest Rates",null,{"$f":"\"Int. Down - Before Shock - Other - Qualifying Assets - \"&'Schedule XXIII'!$C$25","v":"Int. Down - Before Shock - Other - Qualifying Assets - Other currency 8"},null,null,null,null,null,null,null,null,{"$f":"'Schedule XXIII'!E25","v":0}]
["Sch XXIII","Interest Rates",null,{"$f":"\"Int. Down - Before Shock - Other - Qualifying Assets - \"&'Schedule XXIII'!$C$26","v":"Int. Down - Before Shock - Other - Qualifying Assets - Other currency 9"},null,null,null,null,null,null,null,null,{"$f":"'Schedule XXIII'!E26","v":0}]
["Sch XXIII","Interest Rates",null,{"$f":"\"Int. Down - Before Shock - Other - Qualifying Assets - \"&'Schedule XXIII'!$C$27","v":"Int. Down - Before Shock - Other - Qualifying Assets - Other currency 10"},null,null,null,null,null,null,null,null,{"$f":"'Schedule XXIII'!E27","v":0}]
["Sch XXIII","Interest Rates",null,"Int. Down - Before Shock - Other - Qualifying Assets - Total",null,null,null,null,null,null,null,null,{"$f":"'Schedule XXIII'!E28","v":0}]
["Sch XXIII","Interest Rates",null,"Int. Down - After Shock - Other - Qualifying Assets - United States Dollars",null,null,null,null,null,null,null,null,{"$f":"'Schedule XXIII'!F10","v":0}]
["Sch XXIII","Interest Rates",null,"Int. Down - After Shock - Other - Qualifying Assets - Euro",null,null,null,null,null,null,null,null,{"$f":"'Schedule XXIII'!F11","v":0}]
["Sch XXIII","Interest Rates",null,"Int. Down - After Shock - Other - Qualifying Assets - United Kingdom Pounds",null,null,null,null,null,null,null,null,{"$f":"'Schedule XXIII'!F12","v":0}]
["Sch XXIII","Interest Rates",null,"Int. Down - After Shock - Other - Qualifying Assets - Japan Yen",null,null,null,null,null,null,null,null,{"$f":"'Schedule XXIII'!F13","v":0}]
["Sch XXIII","Interest Rates",null,"Int. Down - After Shock - Other - Qualifying Assets - Canada Dollars",null,null,null,null,null,null,null,null,{"$f":"'Schedule XXIII'!F14","v":0}]
["Sch XXIII","Interest Rates",null,"Int. Down - After Shock - Other - Qualifying Assets - Swiss Francs",null,null,null,null,null,null,null,null,{"$f":"'Schedule XXIII'!F15","v":0}]
["Sch XXIII","Interest Rates",null,"Int. Down - After Shock - Other - Qualifying Assets - Australia Dollar",null,null,null,null,null,null,null,null,{"$f":"'Schedule XXIII'!F16","v":0}]
["Sch XXIII","Interest Rates",null,"Int. Down - After Shock - Other - Qualifying Assets - New Zealand Dollar",null,null,null,null,null,null,null,null,{"$f":"'Schedule XXIII'!F17","v":0}]
["Sch XXIII","Interest Rates",null,{"$f":"\"Int. Down - After Shock - Other - Qualifying Assets - \"&'Schedule XXIII'!$C$18","v":"Int. Down - After Shock - Other - Qualifying Assets - Other currency 1"},null,null,null,null,null,null,null,null,{"$f":"'Schedule XXIII'!F18","v":0}]
["Sch XXIII","Interest Rates",null,{"$f":"\"Int. Down - After Shock - Other - Qualifying Assets - \"&'Schedule XXIII'!$C$19","v":"Int. Down - After Shock - Other - Qualifying Assets - Other currency 2"},null,null,null,null,null,null,null,null,{"$f":"'Schedule XXIII'!F19","v":0}]
["Sch XXIII","Interest Rates",null,{"$f":"\"Int. Down - After Shock - Other - Qualifying Assets - \"&'Schedule XXIII'!$C$20","v":"Int. Down - After Shock - Other - Qualifying Assets - Other currency 3"},null,null,null,null,null,null,null,null,{"$f":"'Schedule XXIII'!F20","v":0}]
["Sch XXIII","Interest Rates",null,{"$f":"\"Int. Down - After Shock - Other - Qualifying Assets - \"&'Schedule XXIII'!$C$21","v":"Int. Down - After Shock - Other - Qualifying Assets - Other currency 4"},null,null,null,null,null,null,null,null,{"$f":"'Schedule XXIII'!F21","v":0}]
["Sch XXIII","Interest Rates",null,{"$f":"\"Int. Down - After Shock - Other - Qualifying Assets - \"&'Schedule XXIII'!$C$22","v":"Int. Down - After Shock - Other - Qualifying Assets - Other currency 5"},null,null,null,null,null,null,null,null,{"$f":"'Schedule XXIII'!F22","v":0}]
["Sch XXIII","Interest Rates",null,{"$f":"\"Int. Down - After Shock - Other - Qualifying Assets - \"&'Schedule XXIII'!$C$23","v":"Int. Down - After Shock - Other - Qualifying Assets - Other currency 6"},null,null,null,null,null,null,null,null,{"$f":"'Schedule XXIII'!F23","v":0}]
["Sch XXIII","Interest Rates",null,{"$f":"\"Int. Down - After Shock - Other - Qualifying Assets - \"&'Schedule XXIII'!$C$24","v":"Int. Down - After Shock - Other - Qualifying Assets - Other currency 7"},null,null,null,null,null,null,null,null,{"$f":"'Schedule XXIII'!F24","v":0}]
["Sch XXIII","Interest Rates",null,{"$f":"\"Int. Down - After Shock - Other - Qualifying Assets - \"&'Schedule XXIII'!$C$25","v":"Int. Down - After Shock - Other - Qualifying Assets - Other currency 8"},null,null,null,null,null,null,null,null,{"$f":"'Schedule XXIII'!F25","v":0}]
["Sch XXIII","Interest Rates",null,{"$f":"\"Int. Down - After Shock - Other - Qualifying Assets - \"&'Schedule XXIII'!$C$26","v":"Int. Down - After Shock - Other - Qualifying Assets - Other currency 9"},null,null,null,null,null,null,null,null,{"$f":"'Schedule XXIII'!F26","v":0}]
["Sch XXIII","Interest Rates",null,{"$f":"\"Int. Down - After Shock - Other - Qualifying Assets - \"&'Schedule XXIII'!$C$27","v":"Int. Down - After Shock - Other - Qualifying Assets - Other currency 10"},null,null,null,null,null,null,null,null,{"$f":"'Schedule XXIII'!F27","v":0}]
["Sch XXIII","Interest Rates",null,"Int. Down - After Shock - Other - Qualifying Assets - Total",null,null,null,null,null,null,null,null,{"$f":"'Schedule XXIII'!F28","v":0}]
["Sch XXIII","Interest Rates",null,"Int. Down - Before Shock - Other - Liab. w/o Mgmt Action - United States Dollars",null,null,null,null,null,null,null,null,{"$f":"'Schedule XXIII'!H10","v":0}]
["Sch XXIII","Interest Rates",null,"Int. Down - Before Shock - Other - Liab. w/o Mgmt Action - Euro",null,null,null,null,null,null,null,null,{"$f":"'Schedule XXIII'!H11","v":0}]
["Sch XXIII","Interest Rates",null,"Int. Down - Before Shock - Other - Liab. w/o Mgmt Action - United Kingdom Pounds",null,null,null,null,null,null,null,null,{"$f":"'Schedule XXIII'!H12","v":0}]
["Sch XXIII","Interest Rates",null,"Int. Down - Before Shock - Other - Liab. w/o Mgmt Action - Japan Yen",null,null,null,null,null,null,null,null,{"$f":"'Schedule XXIII'!H13","v":0}]
["Sch XXIII","Interest Rates",null,"Int. Down - Before Shock - Other - Liab. w/o Mgmt Action - Canada Dollars",null,null,null,null,null,null,null,null,{"$f":"'Schedule XXIII'!H14","v":0}]
["Sch XXIII","Interest Rates",null,"Int. Down - Before Shock - Other - Liab. w/o Mgmt Action - Swiss Francs",null,null,null,null,null,null,null,null,{"$f":"'Schedule XXIII'!H15","v":0}]
["Sch XXIII","Interest Rates",null,"Int. Down - Before Shock - Other - Liab. w/o Mgmt Action - Australia Dollar",null,null,null,null,null,null,null,null,{"$f":"'Schedule XXIII'!H16","v":0}]
["Sch XXIII","Interest Rates",null,"Int. Down - Before Shock - Other - Liab. w/o Mgmt Action - New Zealand Dollar",null,null,null,null,null,null,null,null,{"$f":"'Schedule XXIII'!H17","v":0}]
["Sch XXIII","Interest Rates",null,{"$f":"\"Int. Down - Before Shock - Other - Liab. w/o Mgmt Action - \"&'Schedule XXIII'!$C$18","v":"Int. Down - Before Shock - Other - Liab. w/o Mgmt Action - Other currency 1"},null,null,null,null,null,null,null,null,{"$f":"'Schedule XXIII'!H18","v":0}]
["Sch XXIII","Interest Rates",null,{"$f":"\"Int. Down - Before Shock - Other - Liab. w/o Mgmt Action - \"&'Schedule XXIII'!$C$19","v":"Int. Down - Before Shock - Other - Liab. w/o Mgmt Action - Other currency 2"},null,null,null,null,null,null,null,null,{"$f":"'Schedule XXIII'!H19","v":0}]
["Sch XXIII","Interest Rates",null,{"$f":"\"Int. Down - Before Shock - Other - Liab. w/o Mgmt Action - \"&'Schedule XXIII'!$C$20","v":"Int. Down - Before Shock - Other - Liab. w/o Mgmt Action - Other currency 3"},null,null,null,null,null,null,null,null,{"$f":"'Schedule XXIII'!H20","v":0}]
["Sch XXIII","Interest Rates",null,{"$f":"\"Int. Down - Before Shock - Other - Liab. w/o Mgmt Action - \"&'Schedule XXIII'!$C$21","v":"Int. Down - Before Shock - Other - Liab. w/o Mgmt Action - Other currency 4"},null,null,null,null,null,null,null,null,{"$f":"'Schedule XXIII'!H21","v":0}]
["Sch XXIII","Interest Rates",null,{"$f":"\"Int. Down - Before Shock - Other - Liab. w/o Mgmt Action - \"&'Schedule XXIII'!$C$22","v":"Int. Down - Before Shock - Other - Liab. w/o Mgmt Action - Other currency 5"},null,null,null,null,null,null,null,null,{"$f":"'Schedule XXIII'!H22","v":0}]
["Sch XXIII","Interest Rates",null,{"$f":"\"Int. Down - Before Shock - Other - Liab. w/o Mgmt Action - \"&'Schedule XXIII'!$C$23","v":"Int. Down - Before Shock - Other - Liab. w/o Mgmt Action - Other currency 6"},null,null,null,null,null,null,null,null,{"$f":"'Schedule XXIII'!H23","v":0}]
["Sch XXIII","Interest Rates",null,{"$f":"\"Int. Down - Before Shock - Other - Liab. w/o Mgmt Action - \"&'Schedule XXIII'!$C$24","v":"Int. Down - Before Shock - Other - Liab. w/o Mgmt Action - Other currency 7"},null,null,null,null,null,null,null,null,{"$f":"'Schedule XXIII'!H24","v":0}]
["Sch XXIII","Interest Rates",null,{"$f":"\"Int. Down - Before Shock - Other - Liab. w/o Mgmt Action - \"&'Schedule XXIII'!$C$25","v":"Int. Down - Before Shock - Other - Liab. w/o Mgmt Action - Other currency 8"},null,null,null,null,null,null,null,null,{"$f":"'Schedule XXIII'!H25","v":0}]
["Sch XXIII","Interest Rates",null,{"$f":"\"Int. Down - Before Shock - Other - Liab. w/o Mgmt Action - \"&'Schedule XXIII'!$C$26","v":"Int. Down - Before Shock - Other - Liab. w/o Mgmt Action - Other currency 9"},null,null,null,null,null,null,null,null,{"$f":"'Schedule XXIII'!H26","v":0}]
["Sch XXIII","Interest Rates",null,{"$f":"\"Int. Down - Before Shock - Other - Liab. w/o Mgmt Action - \"&'Schedule XXIII'!$C$27","v":"Int. Down - Before Shock - Other - Liab. w/o Mgmt Action - Other currency 10"},null,null,null,null,null,null,null,null,{"$f":"'Schedule XXIII'!H27","v":0}]
["Sch XXIII","Interest Rates",null,"Int. Down - Before Shock - Other - Liab. w/o Mgmt Action - Total",null,null,null,null,null,null,null,null,{"$f":"'Schedule XXIII'!H28","v":0}]
["Sch XXIII","Interest Rates",null,"Int. Down - After Shock - Other - Liab. w/o Mgmt Action - United States Dollars",null,null,null,null,null,null,null,null,{"$f":"'Schedule XXIII'!I10","v":0}]
["Sch XXIII","Interest Rates",null,"Int. Down - After Shock - Other - Liab. w/o Mgmt Action - Euro",null,null,null,null,null,null,null,null,{"$f":"'Schedule XXIII'!I11","v":0}]
["Sch XXIII","Interest Rates",null,"Int. Down - After Shock - Other - Liab. w/o Mgmt Action - United Kingdom Pounds",null,null,null,null,null,null,null,null,{"$f":"'Schedule XXIII'!I12","v":0}]
["Sch XXIII","Interest Rates",null,"Int. Down - After Shock - Other - Liab. w/o Mgmt Action - Japan Yen",null,null,null,null,null,null,null,null,{"$f":"'Schedule XXIII'!I13","v":0}]
["Sch XXIII","Interest Rates",null,"Int. Down - After Shock - Other - Liab. w/o Mgmt Action - Canada Dollars",null,null,null,null,null,null,null,null,{"$f":"'Schedule XXIII'!I14","v":0}]
["Sch XXIII","Interest Rates",null,"Int. Down - After Shock - Other - Liab. w/o Mgmt Action - Swiss Francs",null,null,null,null,null,null,null,null,{"$f":"'Schedule XXIII'!I15","v":0}]
["Sch XXIII","Interest Rates",null,"Int. Down - After Shock - Other - Liab. w/o Mgmt Action - Australia Dollar",null,null,null,null,null,null,null,null,{"$f":"'Schedule XXIII'!I16","v":0}]
["Sch XXIII","Interest Rates",null,"Int. Down - After Shock - Other - Liab. w/o Mgmt Action - New Zealand Dollar",null,null,null,null,null,null,null,null,{"$f":"'Schedule XXIII'!I17","v":0}]
["Sch XXIII","Interest Rates",null,{"$f":"\"Int. Down - After Shock - Other - Liab. w/o Mgmt Action - \"&'Schedule XXIII'!$C$18","v":"Int. Down - After Shock - Other - Liab. w/o Mgmt Action - Other currency 1"},null,null,null,null,null,null,null,null,{"$f":"'Schedule XXIII'!I18","v":0}]
["Sch XXIII","Interest Rates",null,{"$f":"\"Int. Down - After Shock - Other - Liab. w/o Mgmt Action - \"&'Schedule XXIII'!$C$19","v":"Int. Down - After Shock - Other - Liab. w/o Mgmt Action - Other currency 2"},null,null,null,null,null,null,null,null,{"$f":"'Schedule XXIII'!I19","v":0}]
["Sch XXIII","Interest Rates",null,{"$f":"\"Int. Down - After Shock - Other - Liab. w/o Mgmt Action - \"&'Schedule XXIII'!$C$20","v":"Int. Down - After Shock - Other - Liab. w/o Mgmt Action - Other currency 3"},null,null,null,null,null,null,null,null,{"$f":"'Schedule XXIII'!I20","v":0}]
["Sch XXIII","Interest Rates",null,{"$f":"\"Int. Down - After Shock - Other - Liab. w/o Mgmt Action - \"&'Schedule XXIII'!$C$21","v":"Int. Down - After Shock - Other - Liab. w/o Mgmt Action - Other currency 4"},null,null,null,null,null,null,null,null,{"$f":"'Schedule XXIII'!I21","v":0}]
["Sch XXIII","Interest Rates",null,{"$f":"\"Int. Down - After Shock - Other - Liab. w/o Mgmt Action - \"&'Schedule XXIII'!$C$22","v":"Int. Down - After Shock - Other - Liab. w/o Mgmt Action - Other currency 5"},null,null,null,null,null,null,null,null,{"$f":"'Schedule XXIII'!I22","v":0}]
["Sch XXIII","Interest Rates",null,{"$f":"\"Int. Down - After Shock - Other - Liab. w/o Mgmt Action - \"&'Schedule XXIII'!$C$23","v":"Int. Down - After Shock - Other - Liab. w/o Mgmt Action - Other currency 6"},null,null,null,null,null,null,null,null,{"$f":"'Schedule XXIII'!I23","v":0}]
["Sch XXIII","Interest Rates",null,{"$f":"\"Int. Down - After Shock - Other - Liab. w/o Mgmt Action - \"&'Schedule XXIII'!$C$24","v":"Int. Down - After Shock - Other - Liab. w/o Mgmt Action - Other currency 7"},null,null,null,null,null,null,null,null,{"$f":"'Schedule XXIII'!I24","v":0}]
["Sch XXIII","Interest Rates",null,{"$f":"\"Int. Down - After Shock - Other - Liab. w/o Mgmt Action - \"&'Schedule XXIII'!$C$25","v":"Int. Down - After Shock - Other - Liab. w/o Mgmt Action - Other currency 8"},null,null,null,null,null,null,null,null,{"$f":"'Schedule XXIII'!I25","v":0}]
["Sch XXIII","Interest Rates",null,{"$f":"\"Int. Down - After Shock - Other - Liab. w/o Mgmt Action - \"&'Schedule XXIII'!$C$26","v":"Int. Down - After Shock - Other - Liab. w/o Mgmt Action - Other currency 9"},null,null,null,null,null,null,null,null,{"$f":"'Schedule XXIII'!I26","v":0}]
["Sch XXIII","Interest Rates",null,{"$f":"\"Int. Down - After Shock - Other - Liab. w/o Mgmt Action - \"&'Schedule XXIII'!$C$27","v":"Int. Down - After Shock - Other - Liab. w/o Mgmt Action - Other currency 10"},null,null,null,null,null,null,null,null,{"$f":"'Schedule XXIII'!I27","v":0}]
["Sch XXIII","Interest Rates",null,"Int. Down - After Shock - Other - Liab. w/o Mgmt Action - Total",null,null,null,null,null,null,null,null,{"$f":"'Schedule XXIII'!I28","v":0}]
["Sch XXIII","Interest Rates",null,"Int. Down - After Shock - Other - Liab. with Mgmt Action - United States Dollars",null,null,null,null,null,null,null,null,{"$f":"'Schedule XXIII'!K10","v":0}]
["Sch XXIII","Interest Rates",null,"Int. Down - After Shock - Other - Liab. with Mgmt Action - Euro",null,null,null,null,null,null,null,null,{"$f":"'Schedule XXIII'!K11","v":0}]
["Sch XXIII","Interest Rates",null,"Int. Down - After Shock - Other - Liab. with Mgmt Action - United Kingdom Pounds",null,null,null,null,null,null,null,null,{"$f":"'Schedule XXIII'!K12","v":0}]
["Sch XXIII","Interest Rates",null,"Int. Down - After Shock - Other - Liab. with Mgmt Action - Japan Yen",null,null,null,null,null,null,null,null,{"$f":"'Schedule XXIII'!K13","v":0}]
["Sch XXIII","Interest Rates",null,"Int. Down - After Shock - Other - Liab. with Mgmt Action - Canada Dollars",null,null,null,null,null,null,null,null,{"$f":"'Schedule XXIII'!K14","v":0}]
["Sch XXIII","Interest Rates",null,"Int. Down - After Shock - Other - Liab. with Mgmt Action - Swiss Francs",null,null,null,null,null,null,null,null,{"$f":"'Schedule XXIII'!K15","v":0}]
["Sch XXIII","Interest Rates",null,"Int. Down - After Shock - Other - Liab. with Mgmt Action - Australia Dollar",null,null,null,null,null,null,null,null,{"$f":"'Schedule XXIII'!K16","v":0}]
["Sch XXIII","Interest Rates",null,"Int. Down - After Shock - Other - Liab. with Mgmt Action - New Zealand Dollar",null,null,null,null,null,null,null,null,{"$f":"'Schedule XXIII'!K17","v":0}]
["Sch XXIII","Interest Rates",null,{"$f":"\"Int. Down - After Shock - Other - Liab. with Mgmt Action - \"&'Schedule XXIII'!$C$18","v":"Int. Down - After Shock - Other - Liab. with Mgmt Action - Other currency 1"},null,null,null,null,null,null,null,null,{"$f":"'Schedule XXIII'!K18","v":0}]
["Sch XXIII","Interest Rates",null,{"$f":"\"Int. Down - After Shock - Other - Liab. with Mgmt Action - \"&'Schedule XXIII'!$C$19","v":"Int. Down - After Shock - Other - Liab. with Mgmt Action - Other currency 2"},null,null,null,null,null,null,null,null,{"$f":"'Schedule XXIII'!K19","v":0}]
["Sch XXIII","Interest Rates",null,{"$f":"\"Int. Down - After Shock - Other - Liab. with Mgmt Action - \"&'Schedule XXIII'!$C$20","v":"Int. Down - After Shock - Other - Liab. with Mgmt Action - Other currency 3"},null,null,null,null,null,null,null,null,{"$f":"'Schedule XXIII'!K20","v":0}]
["Sch XXIII","Interest Rates",null,{"$f":"\"Int. Down - After Shock - Other - Liab. with Mgmt Action - \"&'Schedule XXIII'!$C$21","v":"Int. Down - After Shock - Other - Liab. with Mgmt Action - Other currency 4"},null,null,null,null,null,null,null,null,{"$f":"'Schedule XXIII'!K21","v":0}]
["Sch XXIII","Interest Rates",null,{"$f":"\"Int. Down - After Shock - Other - Liab. with Mgmt Action - \"&'Schedule XXIII'!$C$22","v":"Int. Down - After Shock - Other - Liab. with Mgmt Action - Other currency 5"},null,null,null,null,null,null,null,null,{"$f":"'Schedule XXIII'!K22","v":0}]
["Sch XXIII","Interest Rates",null,{"$f":"\"Int. Down - After Shock - Other - Liab. with Mgmt Action - \"&'Schedule XXIII'!$C$23","v":"Int. Down - After Shock - Other - Liab. with Mgmt Action - Other currency 6"},null,null,null,null,null,null,null,null,{"$f":"'Schedule XXIII'!K23","v":0}]
["Sch XXIII","Interest Rates",null,{"$f":"\"Int. Down - After Shock - Other - Liab. with Mgmt Action - \"&'Schedule XXIII'!$C$24","v":"Int. Down - After Shock - Other - Liab. with Mgmt Action - Other currency 7"},null,null,null,null,null,null,null,null,{"$f":"'Schedule XXIII'!K24","v":0}]
["Sch XXIII","Interest Rates",null,{"$f":"\"Int. Down - After Shock - Other - Liab. with Mgmt Action - \"&'Schedule XXIII'!$C$25","v":"Int. Down - After Shock - Other - Liab. with Mgmt Action - Other currency 8"},null,null,null,null,null,null,null,null,{"$f":"'Schedule XXIII'!K25","v":0}]
["Sch XXIII","Interest Rates",null,{"$f":"\"Int. Down - After Shock - Other - Liab. with Mgmt Action - \"&'Schedule XXIII'!$C$26","v":"Int. Down - After Shock - Other - Liab. with Mgmt Action - Other currency 9"},null,null,null,null,null,null,null,null,{"$f":"'Schedule XXIII'!K26","v":0}]
["Sch XXIII","Interest Rates",null,{"$f":"\"Int. Down - After Shock - Other - Liab. with Mgmt Action - \"&'Schedule XXIII'!$C$27","v":"Int. Down - After Shock - Other - Liab. with Mgmt Action - Other currency 10"},null,null,null,null,null,null,null,null,{"$f":"'Schedule XXIII'!K27","v":0}]
["Sch XXIII","Interest Rates",null,"Int. Down - After Shock - Other - Liab. with Mgmt Action - Total",null,null,null,null,null,null,null,null,{"$f":"'Schedule XXIII'!K28","v":0}]
["Sch XXIII","Interest Rates",null,"Int. Down - Before Shock - Derivatives - Qualifying Assets - United States Dollars",null,null,null,null,null,null,null,null,{"$f":"'Schedule XXIII'!M10","v":0}]
["Sch XXIII","Interest Rates",null,"Int. Down - Before Shock - Derivatives - Qualifying Assets - Euro",null,null,null,null,null,null,null,null,{"$f":"'Schedule XXIII'!M11","v":0}]
["Sch XXIII","Interest Rates",null,"Int. Down - Before Shock - Derivatives - Qualifying Assets - United Kingdom Pounds",null,null,null,null,null,null,null,null,{"$f":"'Schedule XXIII'!M12","v":0}]
["Sch XXIII","Interest Rates",null,"Int. Down - Before Shock - Derivatives - Qualifying Assets - Japan Yen",null,null,null,null,null,null,null,null,{"$f":"'Schedule XXIII'!M13","v":0}]
["Sch XXIII","Interest Rates",null,"Int. Down - Before Shock - Derivatives - Qualifying Assets - Canada Dollars",null,null,null,null,null,null,null,null,{"$f":"'Schedule XXIII'!M14","v":0}]
["Sch XXIII","Interest Rates",null,"Int. Down - Before Shock - Derivatives - Qualifying Assets - Swiss Francs",null,null,null,null,null,null,null,null,{"$f":"'Schedule XXIII'!M15","v":0}]
["Sch XXIII","Interest Rates",null,"Int. Down - Before Shock - Derivatives - Qualifying Assets - Australia Dollar",null,null,null,null,null,null,null,null,{"$f":"'Schedule XXIII'!M16","v":0}]
["Sch XXIII","Interest Rates",null,"Int. Down - Before Shock - Derivatives - Qualifying Assets - New Zealand Dollar",null,null,null,null,null,null,null,null,{"$f":"'Schedule XXIII'!M17","v":0}]
["Sch XXIII","Interest Rates",null,{"$f":"\"Int. Down - Before Shock - Derivatives - Qualifying Assets - \"&'Schedule XXIII'!$C$18","v":"Int. Down - Before Shock - Derivatives - Qualifying Assets - Other currency 1"},null,null,null,null,null,null,null,null,{"$f":"'Schedule XXIII'!M18","v":0}]
["Sch XXIII","Interest Rates",null,{"$f":"\"Int. Down - Before Shock - Derivatives - Qualifying Assets - \"&'Schedule XXIII'!$C$19","v":"Int. Down - Before Shock - Derivatives - Qualifying Assets - Other currency 2"},null,null,null,null,null,null,null,null,{"$f":"'Schedule XXIII'!M19","v":0}]
["Sch XXIII","Interest Rates",null,{"$f":"\"Int. Down - Before Shock - Derivatives - Qualifying Assets - \"&'Schedule XXIII'!$C$20","v":"Int. Down - Before Shock - Derivatives - Qualifying Assets - Other currency 3"},null,null,null,null,null,null,null,null,{"$f":"'Schedule XXIII'!M20","v":0}]
["Sch XXIII","Interest Rates",null,{"$f":"\"Int. Down - Before Shock - Derivatives - Qualifying Assets - \"&'Schedule XXIII'!$C$21","v":"Int. Down - Before Shock - Derivatives - Qualifying Assets - Other currency 4"},null,null,null,null,null,null,null,null,{"$f":"'Schedule XXIII'!M21","v":0}]
["Sch XXIII","Interest Rates",null,{"$f":"\"Int. Down - Before Shock - Derivatives - Qualifying Assets - \"&'Schedule XXIII'!$C$22","v":"Int. Down - Before Shock - Derivatives - Qualifying Assets - Other currency 5"},null,null,null,null,null,null,null,null,{"$f":"'Schedule XXIII'!M22","v":0}]
["Sch XXIII","Interest Rates",null,{"$f":"\"Int. Down - Before Shock - Derivatives - Qualifying Assets - \"&'Schedule XXIII'!$C$23","v":"Int. Down - Before Shock - Derivatives - Qualifying Assets - Other currency 6"},null,null,null,null,null,null,null,null,{"$f":"'Schedule XXIII'!M23","v":0}]
["Sch XXIII","Interest Rates",null,{"$f":"\"Int. Down - Before Shock - Derivatives - Qualifying Assets - \"&'Schedule XXIII'!$C$24","v":"Int. Down - Before Shock - Derivatives - Qualifying Assets - Other currency 7"},null,null,null,null,null,null,null,null,{"$f":"'Schedule XXIII'!M24","v":0}]
["Sch XXIII","Interest Rates",null,{"$f":"\"Int. Down - Before Shock - Derivatives - Qualifying Assets - \"&'Schedule XXIII'!$C$25","v":"Int. Down - Before Shock - Derivatives - Qualifying Assets - Other currency 8"},null,null,null,null,null,null,null,null,{"$f":"'Schedule XXIII'!M25","v":0}]
["Sch XXIII","Interest Rates",null,{"$f":"\"Int. Down - Before Shock - Derivatives - Qualifying Assets - \"&'Schedule XXIII'!$C$26","v":"Int. Down - Before Shock - Derivatives - Qualifying Assets - Other currency 9"},null,null,null,null,null,null,null,null,{"$f":"'Schedule XXIII'!M26","v":0}]
["Sch XXIII","Interest Rates",null,{"$f":"\"Int. Down - Before Shock - Derivatives - Qualifying Assets - \"&'Schedule XXIII'!$C$27","v":"Int. Down - Before Shock - Derivatives - Qualifying Assets - Other currency 10"},null,null,null,null,null,null,null,null,{"$f":"'Schedule XXIII'!M27","v":0}]
["Sch XXIII","Interest Rates",null,"Int. Down - Before Shock - Derivatives - Qualifying Assets - Total",null,null,null,null,null,null,null,null,{"$f":"'Schedule XXIII'!M28","v":0}]
["Sch XXIII","Interest Rates",null,"Int. Down - After Shock - Derivatives - Qualifying Assets - United States Dollars",null,null,null,null,null,null,null,null,{"$f":"'Schedule XXIII'!N10","v":0}]
["Sch XXIII","Interest Rates",null,"Int. Down - After Shock - Derivatives - Qualifying Assets - Euro",null,null,null,null,null,null,null,null,{"$f":"'Schedule XXIII'!N11","v":0}]
["Sch XXIII","Interest Rates",null,"Int. Down - After Shock - Derivatives - Qualifying Assets - United Kingdom Pounds",null,null,null,null,null,null,null,null,{"$f":"'Schedule XXIII'!N12","v":0}]
["Sch XXIII","Interest Rates",null,"Int. Down - After Shock - Derivatives - Qualifying Assets - Japan Yen",null,null,null,null,null,null,null,null,{"$f":"'Schedule XXIII'!N13","v":0}]
["Sch XXIII","Interest Rates",null,"Int. Down - After Shock - Derivatives - Qualifying Assets - Canada Dollars",null,null,null,null,null,null,null,null,{"$f":"'Schedule XXIII'!N14","v":0}]
["Sch XXIII","Interest Rates",null,"Int. Down - After Shock - Derivatives - Qualifying Assets - Swiss Francs",null,null,null,null,null,null,null,null,{"$f":"'Schedule XXIII'!N15","v":0}]
["Sch XXIII","Interest Rates",null,"Int. Down - After Shock - Derivatives - Qualifying Assets - Australia Dollar",null,null,null,null,null,null,null,null,{"$f":"'Schedule XXIII'!N16","v":0}]
["Sch XXIII","Interest Rates",null,"Int. Down - After Shock - Derivatives - Qualifying Assets - New Zealand Dollar",null,null,null,null,null,null,null,null,{"$f":"'Schedule XXIII'!N17","v":0}]
["Sch XXIII","Interest Rates",null,{"$f":"\"Int. Down - After Shock - Derivatives - Qualifying Assets - \"&'Schedule XXIII'!$C$18","v":"Int. Down - After Shock - Derivatives - Qualifying Assets - Other currency 1"},null,null,null,null,null,null,null,null,{"$f":"'Schedule XXIII'!N18","v":0}]
["Sch XXIII","Interest Rates",null,{"$f":"\"Int. Down - After Shock - Derivatives - Qualifying Assets - \"&'Schedule XXIII'!$C$19","v":"Int. Down - After Shock - Derivatives - Qualifying Assets - Other currency 2"},null,null,null,null,null,null,null,null,{"$f":"'Schedule XXIII'!N19","v":0}]
["Sch XXIII","Interest Rates",null,{"$f":"\"Int. Down - After Shock - Derivatives - Qualifying Assets - \"&'Schedule XXIII'!$C$20","v":"Int. Down - After Shock - Derivatives - Qualifying Assets - Other currency 3"},null,null,null,null,null,null,null,null,{"$f":"'Schedule XXIII'!N20","v":0}]
["Sch XXIII","Interest Rates",null,{"$f":"\"Int. Down - After Shock - Derivatives - Qualifying Assets - \"&'Schedule XXIII'!$C$21","v":"Int. Down - After Shock - Derivatives - Qualifying Assets - Other currency 4"},null,null,null,null,null,null,null,null,{"$f":"'Schedule XXIII'!N21","v":0}]
["Sch XXIII","Interest Rates",null,{"$f":"\"Int. Down - After Shock - Derivatives - Qualifying Assets - \"&'Schedule XXIII'!$C$22","v":"Int. Down - After Shock - Derivatives - Qualifying Assets - Other currency 5"},null,null,null,null,null,null,null,null,{"$f":"'Schedule XXIII'!N22","v":0}]
["Sch XXIII","Interest Rates",null,{"$f":"\"Int. Down - After Shock - Derivatives - Qualifying Assets - \"&'Schedule XXIII'!$C$23","v":"Int. Down - After Shock - Derivatives - Qualifying Assets - Other currency 6"},null,null,null,null,null,null,null,null,{"$f":"'Schedule XXIII'!N23","v":0}]
["Sch XXIII","Interest Rates",null,{"$f":"\"Int. Down - After Shock - Derivatives - Qualifying Assets - \"&'Schedule XXIII'!$C$24","v":"Int. Down - After Shock - Derivatives - Qualifying Assets - Other currency 7"},null,null,null,null,null,null,null,null,{"$f":"'Schedule XXIII'!N24","v":0}]
["Sch XXIII","Interest Rates",null,{"$f":"\"Int. Down - After Shock - Derivatives - Qualifying Assets - \"&'Schedule XXIII'!$C$25","v":"Int. Down - After Shock - Derivatives - Qualifying Assets - Other currency 8"},null,null,null,null,null,null,null,null,{"$f":"'Schedule XXIII'!N25","v":0}]
["Sch XXIII","Interest Rates",null,{"$f":"\"Int. Down - After Shock - Derivatives - Qualifying Assets - \"&'Schedule XXIII'!$C$26","v":"Int. Down - After Shock - Derivatives - Qualifying Assets - Other currency 9"},null,null,null,null,null,null,null,null,{"$f":"'Schedule XXIII'!N26","v":0}]
["Sch XXIII","Interest Rates",null,{"$f":"\"Int. Down - After Shock - Derivatives - Qualifying Assets - \"&'Schedule XXIII'!$C$27","v":"Int. Down - After Shock - Derivatives - Qualifying Assets - Other currency 10"},null,null,null,null,null,null,null,null,{"$f":"'Schedule XXIII'!N27","v":0}]
["Sch XXIII","Interest Rates",null,"Int. Down - After Shock - Derivatives - Qualifying Assets - Total",null,null,null,null,null,null,null,null,{"$f":"'Schedule XXIII'!N28","v":0}]
["Sch XXIII","Interest Rates",null,"Int. Down - Before Shock - Derivatives - Not Qualifying Assets - United States Dollars",null,null,null,null,null,null,null,null,{"$f":"'Schedule XXIII'!P10","v":0}]
["Sch XXIII","Interest Rates",null,"Int. Down - Before Shock - Derivatives - Not Qualifying Assets - Euro",null,null,null,null,null,null,null,null,{"$f":"'Schedule XXIII'!P11","v":0}]
["Sch XXIII","Interest Rates",null,"Int. Down - Before Shock - Derivatives - Not Qualifying Assets - United Kingdom Pounds",null,null,null,null,null,null,null,null,{"$f":"'Schedule XXIII'!P12","v":0}]
["Sch XXIII","Interest Rates",null,"Int. Down - Before Shock - Derivatives - Not Qualifying Assets - Japan Yen",null,null,null,null,null,null,null,null,{"$f":"'Schedule XXIII'!P13","v":0}]
["Sch XXIII","Interest Rates",null,"Int. Down - Before Shock - Derivatives - Not Qualifying Assets - Canada Dollars",null,null,null,null,null,null,null,null,{"$f":"'Schedule XXIII'!P14","v":0}]
["Sch XXIII","Interest Rates",null,"Int. Down - Before Shock - Derivatives - Not Qualifying Assets - Swiss Francs",null,null,null,null,null,null,null,null,{"$f":"'Schedule XXIII'!P15","v":0}]
["Sch XXIII","Interest Rates",null,"Int. Down - Before Shock - Derivatives - Not Qualifying Assets - Australia Dollar",null,null,null,null,null,null,null,null,{"$f":"'Schedule XXIII'!P16","v":0}]
["Sch XXIII","Interest Rates",null,"Int. Down - Before Shock - Derivatives - Not Qualifying Assets - New Zealand Dollar",null,null,null,null,null,null,null,null,{"$f":"'Schedule XXIII'!P17","v":0}]
["Sch XXIII","Interest Rates",null,{"$f":"\"Int. Down - Before Shock - Derivatives - Not Qualifying Assets - \"&'Schedule XXIII'!$C$18","v":"Int. Down - Before Shock - Derivatives - Not Qualifying Assets - Other currency 1"},null,null,null,null,null,null,null,null,{"$f":"'Schedule XXIII'!P18","v":0}]
["Sch XXIII","Interest Rates",null,{"$f":"\"Int. Down - Before Shock - Derivatives - Not Qualifying Assets - \"&'Schedule XXIII'!$C$19","v":"Int. Down - Before Shock - Derivatives - Not Qualifying Assets - Other currency 2"},null,null,null,null,null,null,null,null,{"$f":"'Schedule XXIII'!P19","v":0}]
["Sch XXIII","Interest Rates",null,{"$f":"\"Int. Down - Before Shock - Derivatives - Not Qualifying Assets - \"&'Schedule XXIII'!$C$20","v":"Int. Down - Before Shock - Derivatives - Not Qualifying Assets - Other currency 3"},null,null,null,null,null,null,null,null,{"$f":"'Schedule XXIII'!P20","v":0}]
["Sch XXIII","Interest Rates",null,{"$f":"\"Int. Down - Before Shock - Derivatives - Not Qualifying Assets - \"&'Schedule XXIII'!$C$21","v":"Int. Down - Before Shock - Derivatives - Not Qualifying Assets - Other currency 4"},null,null,null,null,null,null,null,null,{"$f":"'Schedule XXIII'!P21","v":0}]
["Sch XXIII","Interest Rates",null,{"$f":"\"Int. Down - Before Shock - Derivatives - Not Qualifying Assets - \"&'Schedule XXIII'!$C$22","v":"Int. Down - Before Shock - Derivatives - Not Qualifying Assets - Other currency 5"},null,null,null,null,null,null,null,null,{"$f":"'Schedule XXIII'!P22","v":0}]
["Sch XXIII","Interest Rates",null,{"$f":"\"Int. Down - Before Shock - Derivatives - Not Qualifying Assets - \"&'Schedule XXIII'!$C$23","v":"Int. Down - Before Shock - Derivatives - Not Qualifying Assets - Other currency 6"},null,null,null,null,null,null,null,null,{"$f":"'Schedule XXIII'!P23","v":0}]
["Sch XXIII","Interest Rates",null,{"$f":"\"Int. Down - Before Shock - Derivatives - Not Qualifying Assets - \"&'Schedule XXIII'!$C$24","v":"Int. Down - Before Shock - Derivatives - Not Qualifying Assets - Other currency 7"},null,null,null,null,null,null,null,null,{"$f":"'Schedule XXIII'!P24","v":0}]
["Sch XXIII","Interest Rates",null,{"$f":"\"Int. Down - Before Shock - Derivatives - Not Qualifying Assets - \"&'Schedule XXIII'!$C$25","v":"Int. Down - Before Shock - Derivatives - Not Qualifying Assets - Other currency 8"},null,null,null,null,null,null,null,null,{"$f":"'Schedule XXIII'!P25","v":0}]
["Sch XXIII","Interest Rates",null,{"$f":"\"Int. Down - Before Shock - Derivatives - Not Qualifying Assets - \"&'Schedule XXIII'!$C$26","v":"Int. Down - Before Shock - Derivatives - Not Qualifying Assets - Other currency 9"},null,null,null,null,null,null,null,null,{"$f":"'Schedule XXIII'!P26","v":0}]
["Sch XXIII","Interest Rates",null,{"$f":"\"Int. Down - Before Shock - Derivatives - Not Qualifying Assets - \"&'Schedule XXIII'!$C$27","v":"Int. Down - Before Shock - Derivatives - Not Qualifying Assets - Other currency 10"},null,null,null,null,null,null,null,null,{"$f":"'Schedule XXIII'!P27","v":0}]
["Sch XXIII","Interest Rates",null,"Int. Down - Before Shock - Derivatives - Not Qualifying Assets - Total",null,null,null,null,null,null,null,null,{"$f":"'Schedule XXIII'!P28","v":0}]
["Sch XXIII","Interest Rates",null,"Int. Down - After Shock - Derivatives - Not Qualifying Assets - United States Dollars",null,null,null,null,null,null,null,null,{"$f":"'Schedule XXIII'!Q10","v":0}]
["Sch XXIII","Interest Rates",null,"Int. Down - After Shock - Derivatives - Not Qualifying Assets - Euro",null,null,null,null,null,null,null,null,{"$f":"'Schedule XXIII'!Q11","v":0}]
["Sch XXIII","Interest Rates",null,"Int. Down - After Shock - Derivatives - Not Qualifying Assets - United Kingdom Pounds",null,null,null,null,null,null,null,null,{"$f":"'Schedule XXIII'!Q12","v":0}]
["Sch XXIII","Interest Rates",null,"Int. Down - After Shock - Derivatives - Not Qualifying Assets - Japan Yen",null,null,null,null,null,null,null,null,{"$f":"'Schedule XXIII'!Q13","v":0}]
["Sch XXIII","Interest Rates",null,"Int. Down - After Shock - Derivatives - Not Qualifying Assets - Canada Dollars",null,null,null,null,null,null,null,null,{"$f":"'Schedule XXIII'!Q14","v":0}]
["Sch XXIII","Interest Rates",null,"Int. Down - After Shock - Derivatives - Not Qualifying Assets - Swiss Francs",null,null,null,null,null,null,null,null,{"$f":"'Schedule XXIII'!Q15","v":0}]
["Sch XXIII","Interest Rates",null,"Int. Down - After Shock - Derivatives - Not Qualifying Assets - Australia Dollar",null,null,null,null,null,null,null,null,{"$f":"'Schedule XXIII'!Q16","v":0}]
["Sch XXIII","Interest Rates",null,"Int. Down - After Shock - Derivatives - Not Qualifying Assets - New Zealand Dollar",null,null,null,null,null,null,null,null,{"$f":"'Schedule XXIII'!Q17","v":0}]
["Sch XXIII","Interest Rates",null,{"$f":"\"Int. Down - After Shock - Derivatives - Not Qualifying Assets - \"&'Schedule XXIII'!$C$18","v":"Int. Down - After Shock - Derivatives - Not Qualifying Assets - Other currency 1"},null,null,null,null,null,null,null,null,{"$f":"'Schedule XXIII'!Q18","v":0}]
["Sch XXIII","Interest Rates",null,{"$f":"\"Int. Down - After Shock - Derivatives - Not Qualifying Assets - \"&'Schedule XXIII'!$C$19","v":"Int. Down - After Shock - Derivatives - Not Qualifying Assets - Other currency 2"},null,null,null,null,null,null,null,null,{"$f":"'Schedule XXIII'!Q19","v":0}]
["Sch XXIII","Interest Rates",null,{"$f":"\"Int. Down - After Shock - Derivatives - Not Qualifying Assets - \"&'Schedule XXIII'!$C$20","v":"Int. Down - After Shock - Derivatives - Not Qualifying Assets - Other currency 3"},null,null,null,null,null,null,null,null,{"$f":"'Schedule XXIII'!Q20","v":0}]
["Sch XXIII","Interest Rates",null,{"$f":"\"Int. Down - After Shock - Derivatives - Not Qualifying Assets - \"&'Schedule XXIII'!$C$21","v":"Int. Down - After Shock - Derivatives - Not Qualifying Assets - Other currency 4"},null,null,null,null,null,null,null,null,{"$f":"'Schedule XXIII'!Q21","v":0}]
["Sch XXIII","Interest Rates",null,{"$f":"\"Int. Down - After Shock - Derivatives - Not Qualifying Assets - \"&'Schedule XXIII'!$C$22","v":"Int. Down - After Shock - Derivatives - Not Qualifying Assets - Other currency 5"},null,null,null,null,null,null,null,null,{"$f":"'Schedule XXIII'!Q22","v":0}]
["Sch XXIII","Interest Rates",null,{"$f":"\"Int. Down - After Shock - Derivatives - Not Qualifying Assets - \"&'Schedule XXIII'!$C$23","v":"Int. Down - After Shock - Derivatives - Not Qualifying Assets - Other currency 6"},null,null,null,null,null,null,null,null,{"$f":"'Schedule XXIII'!Q23","v":0}]
["Sch XXIII","Interest Rates",null,{"$f":"\"Int. Down - After Shock - Derivatives - Not Qualifying Assets - \"&'Schedule XXIII'!$C$24","v":"Int. Down - After Shock - Derivatives - Not Qualifying Assets - Other currency 7"},null,null,null,null,null,null,null,null,{"$f":"'Schedule XXIII'!Q24","v":0}]
["Sch XXIII","Interest Rates",null,{"$f":"\"Int. Down - After Shock - Derivatives - Not Qualifying Assets - \"&'Schedule XXIII'!$C$25","v":"Int. Down - After Shock - Derivatives - Not Qualifying Assets - Other currency 8"},null,null,null,null,null,null,null,null,{"$f":"'Schedule XXIII'!Q25","v":0}]
["Sch XXIII","Interest Rates",null,{"$f":"\"Int. Down - After Shock - Derivatives - Not Qualifying Assets - \"&'Schedule XXIII'!$C$26","v":"Int. Down - After Shock - Derivatives - Not Qualifying Assets - Other currency 9"},null,null,null,null,null,null,null,null,{"$f":"'Schedule XXIII'!Q26","v":0}]
["Sch XXIII","Interest Rates",null,{"$f":"\"Int. Down - After Shock - Derivatives - Not Qualifying Assets - \"&'Schedule XXIII'!$C$27","v":"Int. Down - After Shock - Derivatives - Not Qualifying Assets - Other currency 10"},null,null,null,null,null,null,null,null,{"$f":"'Schedule XXIII'!Q27","v":0}]
["Sch XXIII","Interest Rates",null,"Int. Down - After Shock - Derivatives - Not Qualifying Assets - Total",null,null,null,null,null,null,null,null,{"$f":"'Schedule XXIII'!Q28","v":0}]
["Sch XXIII","Interest Rates",null,"Int. Down - Before Shock - Derivatives - Liab. w/o Mgmt Action - United States Dollars",null,null,null,null,null,null,null,null,{"$f":"'Schedule XXIII'!S10","v":0}]
["Sch XXIII","Interest Rates",null,"Int. Down - Before Shock - Derivatives - Liab. w/o Mgmt Action - Euro",null,null,null,null,null,null,null,null,{"$f":"'Schedule XXIII'!S11","v":0}]
["Sch XXIII","Interest Rates",null,"Int. Down - Before Shock - Derivatives - Liab. w/o Mgmt Action - United Kingdom Pounds",null,null,null,null,null,null,null,null,{"$f":"'Schedule XXIII'!S12","v":0}]
["Sch XXIII","Interest Rates",null,"Int. Down - Before Shock - Derivatives - Liab. w/o Mgmt Action - Japan Yen",null,null,null,null,null,null,null,null,{"$f":"'Schedule XXIII'!S13","v":0}]
["Sch XXIII","Interest Rates",null,"Int. Down - Before Shock - Derivatives - Liab. w/o Mgmt Action - Canada Dollars",null,null,null,null,null,null,null,null,{"$f":"'Schedule XXIII'!S14","v":0}]
["Sch XXIII","Interest Rates",null,"Int. Down - Before Shock - Derivatives - Liab. w/o Mgmt Action - Swiss Francs",null,null,null,null,null,null,null,null,{"$f":"'Schedule XXIII'!S15","v":0}]
["Sch XXIII","Interest Rates",null,"Int. Down - Before Shock - Derivatives - Liab. w/o Mgmt Action - Australia Dollar",null,null,null,null,null,null,null,null,{"$f":"'Schedule XXIII'!S16","v":0}]
["Sch XXIII","Interest Rates",null,"Int. Down - Before Shock - Derivatives - Liab. w/o Mgmt Action - New Zealand Dollar",null,null,null,null,null,null,null,null,{"$f":"'Schedule XXIII'!S17","v":0}]
["Sch XXIII","Interest Rates",null,{"$f":"\"Int. Down - Before Shock - Derivatives - Liab. w/o Mgmt Action - \"&'Schedule XXIII'!$C$18","v":"Int. Down - Before Shock - Derivatives - Liab. w/o Mgmt Action - Other currency 1"},null,null,null,null,null,null,null,null,{"$f":"'Schedule XXIII'!S18","v":0}]
["Sch XXIII","Interest Rates",null,{"$f":"\"Int. Down - Before Shock - Derivatives - Liab. w/o Mgmt Action - \"&'Schedule XXIII'!$C$19","v":"Int. Down - Before Shock - Derivatives - Liab. w/o Mgmt Action - Other currency 2"},null,null,null,null,null,null,null,null,{"$f":"'Schedule XXIII'!S19","v":0}]
["Sch XXIII","Interest Rates",null,{"$f":"\"Int. Down - Before Shock - Derivatives - Liab. w/o Mgmt Action - \"&'Schedule XXIII'!$C$20","v":"Int. Down - Before Shock - Derivatives - Liab. w/o Mgmt Action - Other currency 3"},null,null,null,null,null,null,null,null,{"$f":"'Schedule XXIII'!S20","v":0}]
["Sch XXIII","Interest Rates",null,{"$f":"\"Int. Down - Before Shock - Derivatives - Liab. w/o Mgmt Action - \"&'Schedule XXIII'!$C$21","v":"Int. Down - Before Shock - Derivatives - Liab. w/o Mgmt Action - Other currency 4"},null,null,null,null,null,null,null,null,{"$f":"'Schedule XXIII'!S21","v":0}]
["Sch XXIII","Interest Rates",null,{"$f":"\"Int. Down - Before Shock - Derivatives - Liab. w/o Mgmt Action - \"&'Schedule XXIII'!$C$22","v":"Int. Down - Before Shock - Derivatives - Liab. w/o Mgmt Action - Other currency 5"},null,null,null,null,null,null,null,null,{"$f":"'Schedule XXIII'!S22","v":0}]
["Sch XXIII","Interest Rates",null,{"$f":"\"Int. Down - Before Shock - Derivatives - Liab. w/o Mgmt Action - \"&'Schedule XXIII'!$C$23","v":"Int. Down - Before Shock - Derivatives - Liab. w/o Mgmt Action - Other currency 6"},null,null,null,null,null,null,null,null,{"$f":"'Schedule XXIII'!S23","v":0}]
["Sch XXIII","Interest Rates",null,{"$f":"\"Int. Down - Before Shock - Derivatives - Liab. w/o Mgmt Action - \"&'Schedule XXIII'!$C$24","v":"Int. Down - Before Shock - Derivatives - Liab. w/o Mgmt Action - Other currency 7"},null,null,null,null,null,null,null,null,{"$f":"'Schedule XXIII'!S24","v":0}]
["Sch XXIII","Interest Rates",null,{"$f":"\"Int. Down - Before Shock - Derivatives - Liab. w/o Mgmt Action - \"&'Schedule XXIII'!$C$25","v":"Int. Down - Before Shock - Derivatives - Liab. w/o Mgmt Action - Other currency 8"},null,null,null,null,null,null,null,null,{"$f":"'Schedule XXIII'!S25","v":0}]
["Sch XXIII","Interest Rates",null,{"$f":"\"Int. Down - Before Shock - Derivatives - Liab. w/o Mgmt Action - \"&'Schedule XXIII'!$C$26","v":"Int. Down - Before Shock - Derivatives - Liab. w/o Mgmt Action - Other currency 9"},null,null,null,null,null,null,null,null,{"$f":"'Schedule XXIII'!S26","v":0}]
["Sch XXIII","Interest Rates",null,{"$f":"\"Int. Down - Before Shock - Derivatives - Liab. w/o Mgmt Action - \"&'Schedule XXIII'!$C$27","v":"Int. Down - Before Shock - Derivatives - Liab. w/o Mgmt Action - Other currency 10"},null,null,null,null,null,null,null,null,{"$f":"'Schedule XXIII'!S27","v":0}]
["Sch XXIII","Interest Rates",null,"Int. Down - Before Shock - Derivatives - Liab. w/o Mgmt Action - Total",null,null,null,null,null,null,null,null,{"$f":"'Schedule XXIII'!S28","v":0}]
["Sch XXIII","Interest Rates",null,"Int. Down - After Shock - Derivatives - Liab. w/o Mgmt Action - United States Dollars",null,null,null,null,null,null,null,null,{"$f":"'Schedule XXIII'!T10","v":0}]
["Sch XXIII","Interest Rates",null,"Int. Down - After Shock - Derivatives - Liab. w/o Mgmt Action - Euro",null,null,null,null,null,null,null,null,{"$f":"'Schedule XXIII'!T11","v":0}]
["Sch XXIII","Interest Rates",null,"Int. Down - After Shock - Derivatives - Liab. w/o Mgmt Action - United Kingdom Pounds",null,null,null,null,null,null,null,null,{"$f":"'Schedule XXIII'!T12","v":0}]
["Sch XXIII","Interest Rates",null,"Int. Down - After Shock - Derivatives - Liab. w/o Mgmt Action - Japan Yen",null,null,null,null,null,null,null,null,{"$f":"'Schedule XXIII'!T13","v":0}]
["Sch XXIII","Interest Rates",null,"Int. Down - After Shock - Derivatives - Liab. w/o Mgmt Action - Canada Dollars",null,null,null,null,null,null,null,null,{"$f":"'Schedule XXIII'!T14","v":0}]
["Sch XXIII","Interest Rates",null,"Int. Down - After Shock - Derivatives - Liab. w/o Mgmt Action - Swiss Francs",null,null,null,null,null,null,null,null,{"$f":"'Schedule XXIII'!T15","v":0}]
["Sch XXIII","Interest Rates",null,"Int. Down - After Shock - Derivatives - Liab. w/o Mgmt Action - Australia Dollar",null,null,null,null,null,null,null,null,{"$f":"'Schedule XXIII'!T16","v":0}]
["Sch XXIII","Interest Rates",null,"Int. Down - After Shock - Derivatives - Liab. w/o Mgmt Action - New Zealand Dollar",null,null,null,null,null,null,null,null,{"$f":"'Schedule XXIII'!T17","v":0}]
["Sch XXIII","Interest Rates",null,{"$f":"\"Int. Down - After Shock - Derivatives - Liab. w/o Mgmt Action - \"&'Schedule XXIII'!$C$18","v":"Int. Down - After Shock - Derivatives - Liab. w/o Mgmt Action - Other currency 1"},null,null,null,null,null,null,null,null,{"$f":"'Schedule XXIII'!T18","v":0}]
["Sch XXIII","Interest Rates",null,{"$f":"\"Int. Down - After Shock - Derivatives - Liab. w/o Mgmt Action - \"&'Schedule XXIII'!$C$19","v":"Int. Down - After Shock - Derivatives - Liab. w/o Mgmt Action - Other currency 2"},null,null,null,null,null,null,null,null,{"$f":"'Schedule XXIII'!T19","v":0}]
["Sch XXIII","Interest Rates",null,{"$f":"\"Int. Down - After Shock - Derivatives - Liab. w/o Mgmt Action - \"&'Schedule XXIII'!$C$20","v":"Int. Down - After Shock - Derivatives - Liab. w/o Mgmt Action - Other currency 3"},null,null,null,null,null,null,null,null,{"$f":"'Schedule XXIII'!T20","v":0}]
["Sch XXIII","Interest Rates",null,{"$f":"\"Int. Down - After Shock - Derivatives - Liab. w/o Mgmt Action - \"&'Schedule XXIII'!$C$21","v":"Int. Down - After Shock - Derivatives - Liab. w/o Mgmt Action - Other currency 4"},null,null,null,null,null,null,null,null,{"$f":"'Schedule XXIII'!T21","v":0}]
["Sch XXIII","Interest Rates",null,{"$f":"\"Int. Down - After Shock - Derivatives - Liab. w/o Mgmt Action - \"&'Schedule XXIII'!$C$22","v":"Int. Down - After Shock - Derivatives - Liab. w/o Mgmt Action - Other currency 5"},null,null,null,null,null,null,null,null,{"$f":"'Schedule XXIII'!T22","v":0}]
["Sch XXIII","Interest Rates",null,{"$f":"\"Int. Down - After Shock - Derivatives - Liab. w/o Mgmt Action - \"&'Schedule XXIII'!$C$23","v":"Int. Down - After Shock - Derivatives - Liab. w/o Mgmt Action - Other currency 6"},null,null,null,null,null,null,null,null,{"$f":"'Schedule XXIII'!T23","v":0}]
["Sch XXIII","Interest Rates",null,{"$f":"\"Int. Down - After Shock - Derivatives - Liab. w/o Mgmt Action - \"&'Schedule XXIII'!$C$24","v":"Int. Down - After Shock - Derivatives - Liab. w/o Mgmt Action - Other currency 7"},null,null,null,null,null,null,null,null,{"$f":"'Schedule XXIII'!T24","v":0}]
["Sch XXIII","Interest Rates",null,{"$f":"\"Int. Down - After Shock - Derivatives - Liab. w/o Mgmt Action - \"&'Schedule XXIII'!$C$25","v":"Int. Down - After Shock - Derivatives - Liab. w/o Mgmt Action - Other currency 8"},null,null,null,null,null,null,null,null,{"$f":"'Schedule XXIII'!T25","v":0}]
["Sch XXIII","Interest Rates",null,{"$f":"\"Int. Down - After Shock - Derivatives - Liab. w/o Mgmt Action - \"&'Schedule XXIII'!$C$26","v":"Int. Down - After Shock - Derivatives - Liab. w/o Mgmt Action - Other currency 9"},null,null,null,null,null,null,null,null,{"$f":"'Schedule XXIII'!T26","v":0}]
["Sch XXIII","Interest Rates",null,{"$f":"\"Int. Down - After Shock - Derivatives - Liab. w/o Mgmt Action - \"&'Schedule XXIII'!$C$27","v":"Int. Down - After Shock - Derivatives - Liab. w/o Mgmt Action - Other currency 10"},null,null,null,null,null,null,null,null,{"$f":"'Schedule XXIII'!T27","v":0}]
["Sch XXIII","Interest Rates",null,"Int. Down - After Shock - Derivatives - Liab. w/o Mgmt Action - Total",null,null,null,null,null,null,null,null,{"$f":"'Schedule XXIII'!T28","v":0}]
["Sch XXIII","Interest Rates",null,"Int. Down - After Shock - Derivatives - Liab. with Mgmt Action - United States Dollars",null,null,null,null,null,null,null,null,{"$f":"'Schedule XXIII'!V10","v":0}]
["Sch XXIII","Interest Rates",null,"Int. Down - After Shock - Derivatives - Liab. with Mgmt Action - Euro",null,null,null,null,null,null,null,null,{"$f":"'Schedule XXIII'!V11","v":0}]
["Sch XXIII","Interest Rates",null,"Int. Down - After Shock - Derivatives - Liab. with Mgmt Action - United Kingdom Pounds",null,null,null,null,null,null,null,null,{"$f":"'Schedule XXIII'!V12","v":0}]
["Sch XXIII","Interest Rates",null,"Int. Down - After Shock - Derivatives - Liab. with Mgmt Action - Japan Yen",null,null,null,null,null,null,null,null,{"$f":"'Schedule XXIII'!V13","v":0}]
["Sch XXIII","Interest Rates",null,"Int. Down - After Shock - Derivatives - Liab. with Mgmt Action - Canada Dollars",null,null,null,null,null,null,null,null,{"$f":"'Schedule XXIII'!V14","v":0}]
["Sch XXIII","Interest Rates",null,"Int. Down - After Shock - Derivatives - Liab. with Mgmt Action - Swiss Francs",null,null,null,null,null,null,null,null,{"$f":"'Schedule XXIII'!V15","v":0}]
["Sch XXIII","Interest Rates",null,"Int. Down - After Shock - Derivatives - Liab. with Mgmt Action - Australia Dollar",null,null,null,null,null,null,null,null,{"$f":"'Schedule XXIII'!V16","v":0}]
["Sch XXIII","Interest Rates",null,"Int. Down - After Shock - Derivatives - Liab. with Mgmt Action - New Zealand Dollar",null,null,null,null,null,null,null,null,{"$f":"'Schedule XXIII'!V17","v":0}]
["Sch XXIII","Interest Rates",null,{"$f":"\"Int. Down - After Shock - Derivatives - Liab. with Mgmt Action - \"&'Schedule XXIII'!$C$18","v":"Int. Down - After Shock - Derivatives - Liab. with Mgmt Action - Other currency 1"},null,null,null,null,null,null,null,null,{"$f":"'Schedule XXIII'!V18","v":0}]
["Sch XXIII","Interest Rates",null,{"$f":"\"Int. Down - After Shock - Derivatives - Liab. with Mgmt Action - \"&'Schedule XXIII'!$C$19","v":"Int. Down - After Shock - Derivatives - Liab. with Mgmt Action - Other currency 2"},null,null,null,null,null,null,null,null,{"$f":"'Schedule XXIII'!V19","v":0}]
["Sch XXIII","Interest Rates",null,{"$f":"\"Int. Down - After Shock - Derivatives - Liab. with Mgmt Action - \"&'Schedule XXIII'!$C$20","v":"Int. Down - After Shock - Derivatives - Liab. with Mgmt Action - Other currency 3"},null,null,null,null,null,null,null,null,{"$f":"'Schedule XXIII'!V20","v":0}]
["Sch XXIII","Interest Rates",null,{"$f":"\"Int. Down - After Shock - Derivatives - Liab. with Mgmt Action - \"&'Schedule XXIII'!$C$21","v":"Int. Down - After Shock - Derivatives - Liab. with Mgmt Action - Other currency 4"},null,null,null,null,null,null,null,null,{"$f":"'Schedule XXIII'!V21","v":0}]
["Sch XXIII","Interest Rates",null,{"$f":"\"Int. Down - After Shock - Derivatives - Liab. with Mgmt Action - \"&'Schedule XXIII'!$C$22","v":"Int. Down - After Shock - Derivatives - Liab. with Mgmt Action - Other currency 5"},null,null,null,null,null,null,null,null,{"$f":"'Schedule XXIII'!V22","v":0}]
["Sch XXIII","Interest Rates",null,{"$f":"\"Int. Down - After Shock - Derivatives - Liab. with Mgmt Action - \"&'Schedule XXIII'!$C$23","v":"Int. Down - After Shock - Derivatives - Liab. with Mgmt Action - Other currency 6"},null,null,null,null,null,null,null,null,{"$f":"'Schedule XXIII'!V23","v":0}]
["Sch XXIII","Interest Rates",null,{"$f":"\"Int. Down - After Shock - Derivatives - Liab. with Mgmt Action - \"&'Schedule XXIII'!$C$24","v":"Int. Down - After Shock - Derivatives - Liab. with Mgmt Action - Other currency 7"},null,null,null,null,null,null,null,null,{"$f":"'Schedule XXIII'!V24","v":0}]
["Sch XXIII","Interest Rates",null,{"$f":"\"Int. Down - After Shock - Derivatives - Liab. with Mgmt Action - \"&'Schedule XXIII'!$C$25","v":"Int. Down - After Shock - Derivatives - Liab. with Mgmt Action - Other currency 8"},null,null,null,null,null,null,null,null,{"$f":"'Schedule XXIII'!V25","v":0}]
["Sch XXIII","Interest Rates",null,{"$f":"\"Int. Down - After Shock - Derivatives - Liab. with Mgmt Action - \"&'Schedule XXIII'!$C$26","v":"Int. Down - After Shock - Derivatives - Liab. with Mgmt Action - Other currency 9"},null,null,null,null,null,null,null,null,{"$f":"'Schedule XXIII'!V26","v":0}]
["Sch XXIII","Interest Rates",null,{"$f":"\"Int. Down - After Shock - Derivatives - Liab. with Mgmt Action - \"&'Schedule XXIII'!$C$27","v":"Int. Down - After Shock - Derivatives - Liab. with Mgmt Action - Other currency 10"},null,null,null,null,null,null,null,null,{"$f":"'Schedule XXIII'!V27","v":0}]
["Sch XXIII","Interest Rates",null,"Int. Down - After Shock - Derivatives - Liab. with Mgmt Action - Total",null,null,null,null,null,null,null,null,{"$f":"'Schedule XXIII'!V28","v":0}]
["Sch XXIII","Interest Rates",null,"Other currency 1",null,null,null,null,null,null,null,null,{"$f":"'Schedule XXIII'!C43","v":"Other currency 1"}]
["Sch XXIII","Interest Rates",null,"Other currency 2",null,null,null,null,null,null,null,null,{"$f":"'Schedule XXIII'!C44","v":"Other currency 2"}]
["Sch XXIII","Interest Rates",null,"Other currency 3",null,null,null,null,null,null,null,null,{"$f":"'Schedule XXIII'!C45","v":"Other currency 3"}]
["Sch XXIII","Interest Rates",null,"Other currency 4",null,null,null,null,null,null,null,null,{"$f":"'Schedule XXIII'!C46","v":"Other currency 4"}]
["Sch XXIII","Interest Rates",null,"Other currency 5",null,null,null,null,null,null,null,null,{"$f":"'Schedule XXIII'!C47","v":"Other currency 5"}]
["Sch XXIII","Interest Rates",null,"Other currency 6",null,null,null,null,null,null,null,null,{"$f":"'Schedule XXIII'!C48","v":"Other currency 6"}]
["Sch XXIII","Interest Rates",null,"Other currency 7",null,null,null,null,null,null,null,null,{"$f":"'Schedule XXIII'!C49","v":"Other currency 7"}]
["Sch XXIII","Interest Rates",null,"Other currency 8",null,null,null,null,null,null,null,null,{"$f":"'Schedule XXIII'!C50","v":"Other currency 8"}]
["Sch XXIII","Interest Rates",null,"Other currency 9",null,null,null,null,null,null,null,null,{"$f":"'Schedule XXIII'!C51","v":"Other currency 9"}]
["Sch XXIII","Interest Rates",null,"Other currency 10",null,null,null,null,null,null,null,null,{"$f":"'Schedule XXIII'!C52","v":"Other currency 10"}]
["Sch XXIII","Interest Rates",null,"Int. Up - Before Shock - Other - Qualifying Assets - United States Dollars",null,null,null,null,null,null,null,null,{"$f":"'Schedule XXIII'!E35","v":0}]
["Sch XXIII","Interest Rates",null,"Int. Up - Before Shock - Other - Qualifying Assets - Euro",null,null,null,null,null,null,null,null,{"$f":"'Schedule XXIII'!E36","v":0}]
["Sch XXIII","Interest Rates",null,"Int. Up - Before Shock - Other - Qualifying Assets - United Kingdom Pounds",null,null,null,null,null,null,null,null,{"$f":"'Schedule XXIII'!E37","v":0}]
["Sch XXIII","Interest Rates",null,"Int. Up - Before Shock - Other - Qualifying Assets - Japan Yen",null,null,null,null,null,null,null,null,{"$f":"'Schedule XXIII'!E38","v":0}]
["Sch XXIII","Interest Rates",null,"Int. Up - Before Shock - Other - Qualifying Assets - Canada Dollars",null,null,null,null,null,null,null,null,{"$f":"'Schedule XXIII'!E39","v":0}]
["Sch XXIII","Interest Rates",null,"Int. Up - Before Shock - Other - Qualifying Assets - Swiss Francs",null,null,null,null,null,null,null,null,{"$f":"'Schedule XXIII'!E40","v":0}]
["Sch XXIII","Interest Rates",null,"Int. Up - Before Shock - Other - Qualifying Assets - Australia Dollar",null,null,null,null,null,null,null,null,{"$f":"'Schedule XXIII'!E41","v":0}]
["Sch XXIII","Interest Rates",null,"Int. Up - Before Shock - Other - Qualifying Assets - New Zealand Dollar",null,null,null,null,null,null,null,null,{"$f":"'Schedule XXIII'!E42","v":0}]
["Sch XXIII","Interest Rates",null,{"$f":"\"Int. Up - Before Shock - Other - Qualifying Assets - \"&'Schedule XXIII'!$C$18","v":"Int. Up - Before Shock - Other - Qualifying Assets - Other currency 1"},null,null,null,null,null,null,null,null,{"$f":"'Schedule XXIII'!E43","v":0}]
["Sch XXIII","Interest Rates",null,{"$f":"\"Int. Up - Before Shock - Other - Qualifying Assets - \"&'Schedule XXIII'!$C$19","v":"Int. Up - Before Shock - Other - Qualifying Assets - Other currency 2"},null,null,null,null,null,null,null,null,{"$f":"'Schedule XXIII'!E44","v":0}]
["Sch XXIII","Interest Rates",null,{"$f":"\"Int. Up - Before Shock - Other - Qualifying Assets - \"&'Schedule XXIII'!$C$20","v":"Int. Up - Before Shock - Other - Qualifying Assets - Other currency 3"},null,null,null,null,null,null,null,null,{"$f":"'Schedule XXIII'!E45","v":0}]
["Sch XXIII","Interest Rates",null,{"$f":"\"Int. Up - Before Shock - Other - Qualifying Assets - \"&'Schedule XXIII'!$C$21","v":"Int. Up - Before Shock - Other - Qualifying Assets - Other currency 4"},null,null,null,null,null,null,null,null,{"$f":"'Schedule XXIII'!E46","v":0}]
["Sch XXIII","Interest Rates",null,{"$f":"\"Int. Up - Before Shock - Other - Qualifying Assets - \"&'Schedule XXIII'!$C$22","v":"Int. Up - Before Shock - Other - Qualifying Assets - Other currency 5"},null,null,null,null,null,null,null,null,{"$f":"'Schedule XXIII'!E47","v":0}]
["Sch XXIII","Interest Rates",null,{"$f":"\"Int. Up - Before Shock - Other - Qualifying Assets - \"&'Schedule XXIII'!$C$23","v":"Int. Up - Before Shock - Other - Qualifying Assets - Other currency 6"},null,null,null,null,null,null,null,null,{"$f":"'Schedule XXIII'!E48","v":0}]
["Sch XXIII","Interest Rates",null,{"$f":"\"Int. Up - Before Shock - Other - Qualifying Assets - \"&'Schedule XXIII'!$C$24","v":"Int. Up - Before Shock - Other - Qualifying Assets - Other currency 7"},null,null,null,null,null,null,null,null,{"$f":"'Schedule XXIII'!E49","v":0}]
["Sch XXIII","Interest Rates",null,{"$f":"\"Int. Up - Before Shock - Other - Qualifying Assets - \"&'Schedule XXIII'!$C$25","v":"Int. Up - Before Shock - Other - Qualifying Assets - Other currency 8"},null,null,null,null,null,null,null,null,{"$f":"'Schedule XXIII'!E50","v":0}]
["Sch XXIII","Interest Rates",null,{"$f":"\"Int. Up - Before Shock - Other - Qualifying Assets - \"&'Schedule XXIII'!$C$26","v":"Int. Up - Before Shock - Other - Qualifying Assets - Other currency 9"},null,null,null,null,null,null,null,null,{"$f":"'Schedule XXIII'!E51","v":0}]
["Sch XXIII","Interest Rates",null,{"$f":"\"Int. Up - Before Shock - Other - Qualifying Assets - \"&'Schedule XXIII'!$C$27","v":"Int. Up - Before Shock - Other - Qualifying Assets - Other currency 10"},null,null,null,null,null,null,null,null,{"$f":"'Schedule XXIII'!E52","v":0}]
["Sch XXIII","Interest Rates",null,"Int. Up - Before Shock - Other - Qualifying Assets - Total",null,null,null,null,null,null,null,null,{"$f":"'Schedule XXIII'!E53","v":0}]
["Sch XXIII","Interest Rates",null,"Int. Up - After Shock - Other - Qualifying Assets - United States Dollars",null,null,null,null,null,null,null,null,{"$f":"'Schedule XXIII'!F35","v":0}]
["Sch XXIII","Interest Rates",null,"Int. Up - After Shock - Other - Qualifying Assets - Euro",null,null,null,null,null,null,null,null,{"$f":"'Schedule XXIII'!F36","v":0}]
["Sch XXIII","Interest Rates",null,"Int. Up - After Shock - Other - Qualifying Assets - United Kingdom Pounds",null,null,null,null,null,null,null,null,{"$f":"'Schedule XXIII'!F37","v":0}]
["Sch XXIII","Interest Rates",null,"Int. Up - After Shock - Other - Qualifying Assets - Japan Yen",null,null,null,null,null,null,null,null,{"$f":"'Schedule XXIII'!F38","v":0}]
["Sch XXIII","Interest Rates",null,"Int. Up - After Shock - Other - Qualifying Assets - Canada Dollars",null,null,null,null,null,null,null,null,{"$f":"'Schedule XXIII'!F39","v":0}]
["Sch XXIII","Interest Rates",null,"Int. Up - After Shock - Other - Qualifying Assets - Swiss Francs",null,null,null,null,null,null,null,null,{"$f":"'Schedule XXIII'!F40","v":0}]
["Sch XXIII","Interest Rates",null,"Int. Up - After Shock - Other - Qualifying Assets - Australia Dollar",null,null,null,null,null,null,null,null,{"$f":"'Schedule XXIII'!F41","v":0}]
["Sch XXIII","Interest Rates",null,"Int. Up - After Shock - Other - Qualifying Assets - New Zealand Dollar",null,null,null,null,null,null,null,null,{"$f":"'Schedule XXIII'!F42","v":0}]
["Sch XXIII","Interest Rates",null,{"$f":"\"Int. Up - After Shock - Other - Qualifying Assets - \"&'Schedule XXIII'!$C$18","v":"Int. Up - After Shock - Other - Qualifying Assets - Other currency 1"},null,null,null,null,null,null,null,null,{"$f":"'Schedule XXIII'!F43","v":0}]
["Sch XXIII","Interest Rates",null,{"$f":"\"Int. Up - After Shock - Other - Qualifying Assets - \"&'Schedule XXIII'!$C$19","v":"Int. Up - After Shock - Other - Qualifying Assets - Other currency 2"},null,null,null,null,null,null,null,null,{"$f":"'Schedule XXIII'!F44","v":0}]
["Sch XXIII","Interest Rates",null,{"$f":"\"Int. Up - After Shock - Other - Qualifying Assets - \"&'Schedule XXIII'!$C$20","v":"Int. Up - After Shock - Other - Qualifying Assets - Other currency 3"},null,null,null,null,null,null,null,null,{"$f":"'Schedule XXIII'!F45","v":0}]
["Sch XXIII","Interest Rates",null,{"$f":"\"Int. Up - After Shock - Other - Qualifying Assets - \"&'Schedule XXIII'!$C$21","v":"Int. Up - After Shock - Other - Qualifying Assets - Other currency 4"},null,null,null,null,null,null,null,null,{"$f":"'Schedule XXIII'!F46","v":0}]
["Sch XXIII","Interest Rates",null,{"$f":"\"Int. Up - After Shock - Other - Qualifying Assets - \"&'Schedule XXIII'!$C$22","v":"Int. Up - After Shock - Other - Qualifying Assets - Other currency 5"},null,null,null,null,null,null,null,null,{"$f":"'Schedule XXIII'!F47","v":0}]
["Sch XXIII","Interest Rates",null,{"$f":"\"Int. Up - After Shock - Other - Qualifying Assets - \"&'Schedule XXIII'!$C$23","v":"Int. Up - After Shock - Other - Qualifying Assets - Other currency 6"},null,null,null,null,null,null,null,null,{"$f":"'Schedule XXIII'!F48","v":0}]
["Sch XXIII","Interest Rates",null,{"$f":"\"Int. Up - After Shock - Other - Qualifying Assets - \"&'Schedule XXIII'!$C$24","v":"Int. Up - After Shock - Other - Qualifying Assets - Other currency 7"},null,null,null,null,null,null,null,null,{"$f":"'Schedule XXIII'!F49","v":0}]
["Sch XXIII","Interest Rates",null,{"$f":"\"Int. Up - After Shock - Other - Qualifying Assets - \"&'Schedule XXIII'!$C$25","v":"Int. Up - After Shock - Other - Qualifying Assets - Other currency 8"},null,null,null,null,null,null,null,null,{"$f":"'Schedule XXIII'!F50","v":0}]
["Sch XXIII","Interest Rates",null,{"$f":"\"Int. Up - After Shock - Other - Qualifying Assets - \"&'Schedule XXIII'!$C$26","v":"Int. Up - After Shock - Other - Qualifying Assets - Other currency 9"},null,null,null,null,null,null,null,null,{"$f":"'Schedule XXIII'!F51","v":0}]
["Sch XXIII","Interest Rates",null,{"$f":"\"Int. Up - After Shock - Other - Qualifying Assets - \"&'Schedule XXIII'!$C$27","v":"Int. Up - After Shock - Other - Qualifying Assets - Other currency 10"},null,null,null,null,null,null,null,null,{"$f":"'Schedule XXIII'!F52","v":0}]
["Sch XXIII","Interest Rates",null,"Int. Up - After Shock - Other - Qualifying Assets - Total",null,null,null,null,null,null,null,null,{"$f":"'Schedule XXIII'!F53","v":0}]
["Sch XXIII","Interest Rates",null,"Int. Up - Before Shock - Other - Liab. w/o Mgmt Action - United States Dollars",null,null,null,null,null,null,null,null,{"$f":"'Schedule XXIII'!H35","v":0}]
["Sch XXIII","Interest Rates",null,"Int. Up - Before Shock - Other - Liab. w/o Mgmt Action - Euro",null,null,null,null,null,null,null,null,{"$f":"'Schedule XXIII'!H36","v":0}]
["Sch XXIII","Interest Rates",null,"Int. Up - Before Shock - Other - Liab. w/o Mgmt Action - United Kingdom Pounds",null,null,null,null,null,null,null,null,{"$f":"'Schedule XXIII'!H37","v":0}]
["Sch XXIII","Interest Rates",null,"Int. Up - Before Shock - Other - Liab. w/o Mgmt Action - Japan Yen",null,null,null,null,null,null,null,null,{"$f":"'Schedule XXIII'!H38","v":0}]
["Sch XXIII","Interest Rates",null,"Int. Up - Before Shock - Other - Liab. w/o Mgmt Action - Canada Dollars",null,null,null,null,null,null,null,null,{"$f":"'Schedule XXIII'!H39","v":0}]
["Sch XXIII","Interest Rates",null,"Int. Up - Before Shock - Other - Liab. w/o Mgmt Action - Swiss Francs",null,null,null,null,null,null,null,null,{"$f":"'Schedule XXIII'!H40","v":0}]
["Sch XXIII","Interest Rates",null,"Int. Up - Before Shock - Other - Liab. w/o Mgmt Action - Australia Dollar",null,null,null,null,null,null,null,null,{"$f":"'Schedule XXIII'!H41","v":0}]
["Sch XXIII","Interest Rates",null,"Int. Up - Before Shock - Other - Liab. w/o Mgmt Action - New Zealand Dollar",null,null,null,null,null,null,null,null,{"$f":"'Schedule XXIII'!H42","v":0}]
["Sch XXIII","Interest Rates",null,{"$f":"\"Int. Up - Before Shock - Other - Liab. w/o Mgmt Action - \"&'Schedule XXIII'!$C$18","v":"Int. Up - Before Shock - Other - Liab. w/o Mgmt Action - Other currency 1"},null,null,null,null,null,null,null,null,{"$f":"'Schedule XXIII'!H43","v":0}]
["Sch XXIII","Interest Rates",null,{"$f":"\"Int. Up - Before Shock - Other - Liab. w/o Mgmt Action - \"&'Schedule XXIII'!$C$19","v":"Int. Up - Before Shock - Other - Liab. w/o Mgmt Action - Other currency 2"},null,null,null,null,null,null,null,null,{"$f":"'Schedule XXIII'!H44","v":0}]
["Sch XXIII","Interest Rates",null,{"$f":"\"Int. Up - Before Shock - Other - Liab. w/o Mgmt Action - \"&'Schedule XXIII'!$C$20","v":"Int. Up - Before Shock - Other - Liab. w/o Mgmt Action - Other currency 3"},null,null,null,null,null,null,null,null,{"$f":"'Schedule XXIII'!H45","v":0}]
["Sch XXIII","Interest Rates",null,{"$f":"\"Int. Up - Before Shock - Other - Liab. w/o Mgmt Action - \"&'Schedule XXIII'!$C$21","v":"Int. Up - Before Shock - Other - Liab. w/o Mgmt Action - Other currency 4"},null,null,null,null,null,null,null,null,{"$f":"'Schedule XXIII'!H46","v":0}]
["Sch XXIII","Interest Rates",null,{"$f":"\"Int. Up - Before Shock - Other - Liab. w/o Mgmt Action - \"&'Schedule XXIII'!$C$22","v":"Int. Up - Before Shock - Other - Liab. w/o Mgmt Action - Other currency 5"},null,null,null,null,null,null,null,null,{"$f":"'Schedule XXIII'!H47","v":0}]
["Sch XXIII","Interest Rates",null,{"$f":"\"Int. Up - Before Shock - Other - Liab. w/o Mgmt Action - \"&'Schedule XXIII'!$C$23","v":"Int. Up - Before Shock - Other - Liab. w/o Mgmt Action - Other currency 6"},null,null,null,null,null,null,null,null,{"$f":"'Schedule XXIII'!H48","v":0}]
["Sch XXIII","Interest Rates",null,{"$f":"\"Int. Up - Before Shock - Other - Liab. w/o Mgmt Action - \"&'Schedule XXIII'!$C$24","v":"Int. Up - Before Shock - Other - Liab. w/o Mgmt Action - Other currency 7"},null,null,null,null,null,null,null,null,{"$f":"'Schedule XXIII'!H49","v":0}]
["Sch XXIII","Interest Rates",null,{"$f":"\"Int. Up - Before Shock - Other - Liab. w/o Mgmt Action - \"&'Schedule XXIII'!$C$25","v":"Int. Up - Before Shock - Other - Liab. w/o Mgmt Action - Other currency 8"},null,null,null,null,null,null,null,null,{"$f":"'Schedule XXIII'!H50","v":0}]
["Sch XXIII","Interest Rates",null,{"$f":"\"Int. Up - Before Shock - Other - Liab. w/o Mgmt Action - \"&'Schedule XXIII'!$C$26","v":"Int. Up - Before Shock - Other - Liab. w/o Mgmt Action - Other currency 9"},null,null,null,null,null,null,null,null,{"$f":"'Schedule XXIII'!H51","v":0}]
["Sch XXIII","Interest Rates",null,{"$f":"\"Int. Up - Before Shock - Other - Liab. w/o Mgmt Action - \"&'Schedule XXIII'!$C$27","v":"Int. Up - Before Shock - Other - Liab. w/o Mgmt Action - Other currency 10"},null,null,null,null,null,null,null,null,{"$f":"'Schedule XXIII'!H52","v":0}]
["Sch XXIII","Interest Rates",null,"Int. Up - Before Shock - Other - Liab. w/o Mgmt Action - Total",null,null,null,null,null,null,null,null,{"$f":"'Schedule XXIII'!H53","v":0}]
["Sch XXIII","Interest Rates",null,"Int. Up - After Shock - Other - Liab. w/o Mgmt Action - United States Dollars",null,null,null,null,null,null,null,null,{"$f":"'Schedule XXIII'!I35","v":0}]
["Sch XXIII","Interest Rates",null,"Int. Up - After Shock - Other - Liab. w/o Mgmt Action - Euro",null,null,null,null,null,null,null,null,{"$f":"'Schedule XXIII'!I36","v":0}]
["Sch XXIII","Interest Rates",null,"Int. Up - After Shock - Other - Liab. w/o Mgmt Action - United Kingdom Pounds",null,null,null,null,null,null,null,null,{"$f":"'Schedule XXIII'!I37","v":0}]
["Sch XXIII","Interest Rates",null,"Int. Up - After Shock - Other - Liab. w/o Mgmt Action - Japan Yen",null,null,null,null,null,null,null,null,{"$f":"'Schedule XXIII'!I38","v":0}]
["Sch XXIII","Interest Rates",null,"Int. Up - After Shock - Other - Liab. w/o Mgmt Action - Canada Dollars",null,null,null,null,null,null,null,null,{"$f":"'Schedule XXIII'!I39","v":0}]
["Sch XXIII","Interest Rates",null,"Int. Up - After Shock - Other - Liab. w/o Mgmt Action - Swiss Francs",null,null,null,null,null,null,null,null,{"$f":"'Schedule XXIII'!I40","v":0}]
["Sch XXIII","Interest Rates",null,"Int. Up - After Shock - Other - Liab. w/o Mgmt Action - Australia Dollar",null,null,null,null,null,null,null,null,{"$f":"'Schedule XXIII'!I41","v":0}]
["Sch XXIII","Interest Rates",null,"Int. Up - After Shock - Other - Liab. w/o Mgmt Action - New Zealand Dollar",null,null,null,null,null,null,null,null,{"$f":"'Schedule XXIII'!I42","v":0}]
["Sch XXIII","Interest Rates",null,{"$f":"\"Int. Up - After Shock - Other - Liab. w/o Mgmt Action - \"&'Schedule XXIII'!$C$18","v":"Int. Up - After Shock - Other - Liab. w/o Mgmt Action - Other currency 1"},null,null,null,null,null,null,null,null,{"$f":"'Schedule XXIII'!I43","v":0}]
["Sch XXIII","Interest Rates",null,{"$f":"\"Int. Up - After Shock - Other - Liab. w/o Mgmt Action - \"&'Schedule XXIII'!$C$19","v":"Int. Up - After Shock - Other - Liab. w/o Mgmt Action - Other currency 2"},null,null,null,null,null,null,null,null,{"$f":"'Schedule XXIII'!I44","v":0}]
["Sch XXIII","Interest Rates",null,{"$f":"\"Int. Up - After Shock - Other - Liab. w/o Mgmt Action - \"&'Schedule XXIII'!$C$20","v":"Int. Up - After Shock - Other - Liab. w/o Mgmt Action - Other currency 3"},null,null,null,null,null,null,null,null,{"$f":"'Schedule XXIII'!I45","v":0}]
["Sch XXIII","Interest Rates",null,{"$f":"\"Int. Up - After Shock - Other - Liab. w/o Mgmt Action - \"&'Schedule XXIII'!$C$21","v":"Int. Up - After Shock - Other - Liab. w/o Mgmt Action - Other currency 4"},null,null,null,null,null,null,null,null,{"$f":"'Schedule XXIII'!I46","v":0}]
["Sch XXIII","Interest Rates",null,{"$f":"\"Int. Up - After Shock - Other - Liab. w/o Mgmt Action - \"&'Schedule XXIII'!$C$22","v":"Int. Up - After Shock - Other - Liab. w/o Mgmt Action - Other currency 5"},null,null,null,null,null,null,null,null,{"$f":"'Schedule XXIII'!I47","v":0}]
["Sch XXIII","Interest Rates",null,{"$f":"\"Int. Up - After Shock - Other - Liab. w/o Mgmt Action - \"&'Schedule XXIII'!$C$23","v":"Int. Up - After Shock - Other - Liab. w/o Mgmt Action - Other currency 6"},null,null,null,null,null,null,null,null,{"$f":"'Schedule XXIII'!I48","v":0}]
["Sch XXIII","Interest Rates",null,{"$f":"\"Int. Up - After Shock - Other - Liab. w/o Mgmt Action - \"&'Schedule XXIII'!$C$24","v":"Int. Up - After Shock - Other - Liab. w/o Mgmt Action - Other currency 7"},null,null,null,null,null,null,null,null,{"$f":"'Schedule XXIII'!I49","v":0}]
["Sch XXIII","Interest Rates",null,{"$f":"\"Int. Up - After Shock - Other - Liab. w/o Mgmt Action - \"&'Schedule XXIII'!$C$25","v":"Int. Up - After Shock - Other - Liab. w/o Mgmt Action - Other currency 8"},null,null,null,null,null,null,null,null,{"$f":"'Schedule XXIII'!I50","v":0}]
["Sch XXIII","Interest Rates",null,{"$f":"\"Int. Up - After Shock - Other - Liab. w/o Mgmt Action - \"&'Schedule XXIII'!$C$26","v":"Int. Up - After Shock - Other - Liab. w/o Mgmt Action - Other currency 9"},null,null,null,null,null,null,null,null,{"$f":"'Schedule XXIII'!I51","v":0}]
["Sch XXIII","Interest Rates",null,{"$f":"\"Int. Up - After Shock - Other - Liab. w/o Mgmt Action - \"&'Schedule XXIII'!$C$27","v":"Int. Up - After Shock - Other - Liab. w/o Mgmt Action - Other currency 10"},null,null,null,null,null,null,null,null,{"$f":"'Schedule XXIII'!I52","v":0}]
["Sch XXIII","Interest Rates",null,"Int. Up - After Shock - Other - Liab. w/o Mgmt Action - Total",null,null,null,null,null,null,null,null,{"$f":"'Schedule XXIII'!I53","v":0}]
["Sch XXIII","Interest Rates",null,"Int. Up - After Shock - Other - Liab. with Mgmt Action - United States Dollars",null,null,null,null,null,null,null,null,{"$f":"'Schedule XXIII'!K35","v":0}]
["Sch XXIII","Interest Rates",null,"Int. Up - After Shock - Other - Liab. with Mgmt Action - Euro",null,null,null,null,null,null,null,null,{"$f":"'Schedule XXIII'!K36","v":0}]
["Sch XXIII","Interest Rates",null,"Int. Up - After Shock - Other - Liab. with Mgmt Action - United Kingdom Pounds",null,null,null,null,null,null,null,null,{"$f":"'Schedule XXIII'!K37","v":0}]
["Sch XXIII","Interest Rates",null,"Int. Up - After Shock - Other - Liab. with Mgmt Action - Japan Yen",null,null,null,null,null,null,null,null,{"$f":"'Schedule XXIII'!K38","v":0}]
["Sch XXIII","Interest Rates",null,"Int. Up - After Shock - Other - Liab. with Mgmt Action - Canada Dollars",null,null,null,null,null,null,null,null,{"$f":"'Schedule XXIII'!K39","v":0}]
["Sch XXIII","Interest Rates",null,"Int. Up - After Shock - Other - Liab. with Mgmt Action - Swiss Francs",null,null,null,null,null,null,null,null,{"$f":"'Schedule XXIII'!K40","v":0}]
["Sch XXIII","Interest Rates",null,"Int. Up - After Shock - Other - Liab. with Mgmt Action - Australia Dollar",null,null,null,null,null,null,null,null,{"$f":"'Schedule XXIII'!K41","v":0}]
["Sch XXIII","Interest Rates",null,"Int. Up - After Shock - Other - Liab. with Mgmt Action - New Zealand Dollar",null,null,null,null,null,null,null,null,{"$f":"'Schedule XXIII'!K42","v":0}]
["Sch XXIII","Interest Rates",null,{"$f":"\"Int. Up - After Shock - Other - Liab. with Mgmt Action - \"&'Schedule XXIII'!$C$18","v":"Int. Up - After Shock - Other - Liab. with Mgmt Action - Other currency 1"},null,null,null,null,null,null,null,null,{"$f":"'Schedule XXIII'!K43","v":0}]
["Sch XXIII","Interest Rates",null,{"$f":"\"Int. Up - After Shock - Other - Liab. with Mgmt Action - \"&'Schedule XXIII'!$C$19","v":"Int. Up - After Shock - Other - Liab. with Mgmt Action - Other currency 2"},null,null,null,null,null,null,null,null,{"$f":"'Schedule XXIII'!K44","v":0}]
["Sch XXIII","Interest Rates",null,{"$f":"\"Int. Up - After Shock - Other - Liab. with Mgmt Action - \"&'Schedule XXIII'!$C$20","v":"Int. Up - After Shock - Other - Liab. with Mgmt Action - Other currency 3"},null,null,null,null,null,null,null,null,{"$f":"'Schedule XXIII'!K45","v":0}]
["Sch XXIII","Interest Rates",null,{"$f":"\"Int. Up - After Shock - Other - Liab. with Mgmt Action - \"&'Schedule XXIII'!$C$21","v":"Int. Up - After Shock - Other - Liab. with Mgmt Action - Other currency 4"},null,null,null,null,null,null,null,null,{"$f":"'Schedule XXIII'!K46","v":0}]
["Sch XXIII","Interest Rates",null,{"$f":"\"Int. Up - After Shock - Other - Liab. with Mgmt Action - \"&'Schedule XXIII'!$C$22","v":"Int. Up - After Shock - Other - Liab. with Mgmt Action - Other currency 5"},null,null,null,null,null,null,null,null,{"$f":"'Schedule XXIII'!K47","v":0}]
["Sch XXIII","Interest Rates",null,{"$f":"\"Int. Up - After Shock - Other - Liab. with Mgmt Action - \"&'Schedule XXIII'!$C$23","v":"Int. Up - After Shock - Other - Liab. with Mgmt Action - Other currency 6"},null,null,null,null,null,null,null,null,{"$f":"'Schedule XXIII'!K48","v":0}]
["Sch XXIII","Interest Rates",null,{"$f":"\"Int. Up - After Shock - Other - Liab. with Mgmt Action - \"&'Schedule XXIII'!$C$24","v":"Int. Up - After Shock - Other - Liab. with Mgmt Action - Other currency 7"},null,null,null,null,null,null,null,null,{"$f":"'Schedule XXIII'!K49","v":0}]
["Sch XXIII","Interest Rates",null,{"$f":"\"Int. Up - After Shock - Other - Liab. with Mgmt Action - \"&'Schedule XXIII'!$C$25","v":"Int. Up - After Shock - Other - Liab. with Mgmt Action - Other currency 8"},null,null,null,null,null,null,null,null,{"$f":"'Schedule XXIII'!K50","v":0}]
["Sch XXIII","Interest Rates",null,{"$f":"\"Int. Up - After Shock - Other - Liab. with Mgmt Action - \"&'Schedule XXIII'!$C$26","v":"Int. Up - After Shock - Other - Liab. with Mgmt Action - Other currency 9"},null,null,null,null,null,null,null,null,{"$f":"'Schedule XXIII'!K51","v":0}]
["Sch XXIII","Interest Rates",null,{"$f":"\"Int. Up - After Shock - Other - Liab. with Mgmt Action - \"&'Schedule XXIII'!$C$27","v":"Int. Up - After Shock - Other - Liab. with Mgmt Action - Other currency 10"},null,null,null,null,null,null,null,null,{"$f":"'Schedule XXIII'!K52","v":0}]
["Sch XXIII","Interest Rates",null,"Int. Up - After Shock - Other - Liab. with Mgmt Action - Total",null,null,null,null,null,null,null,null,{"$f":"'Schedule XXIII'!K53","v":0}]
["Sch XXIII","Interest Rates",null,"Int. Up - Before Shock - Derivatives - Qualifying Assets - United States Dollars",null,null,null,null,null,null,null,null,{"$f":"'Schedule XXIII'!M35","v":0}]
["Sch XXIII","Interest Rates",null,"Int. Up - Before Shock - Derivatives - Qualifying Assets - Euro",null,null,null,null,null,null,null,null,{"$f":"'Schedule XXIII'!M36","v":0}]
["Sch XXIII","Interest Rates",null,"Int. Up - Before Shock - Derivatives - Qualifying Assets - United Kingdom Pounds",null,null,null,null,null,null,null,null,{"$f":"'Schedule XXIII'!M37","v":0}]
["Sch XXIII","Interest Rates",null,"Int. Up - Before Shock - Derivatives - Qualifying Assets - Japan Yen",null,null,null,null,null,null,null,null,{"$f":"'Schedule XXIII'!M38","v":0}]
["Sch XXIII","Interest Rates",null,"Int. Up - Before Shock - Derivatives - Qualifying Assets - Canada Dollars",null,null,null,null,null,null,null,null,{"$f":"'Schedule XXIII'!M39","v":0}]
["Sch XXIII","Interest Rates",null,"Int. Up - Before Shock - Derivatives - Qualifying Assets - Swiss Francs",null,null,null,null,null,null,null,null,{"$f":"'Schedule XXIII'!M40","v":0}]
["Sch XXIII","Interest Rates",null,"Int. Up - Before Shock - Derivatives - Qualifying Assets - Australia Dollar",null,null,null,null,null,null,null,null,{"$f":"'Schedule XXIII'!M41","v":0}]
["Sch XXIII","Interest Rates",null,"Int. Up - Before Shock - Derivatives - Qualifying Assets - New Zealand Dollar",null,null,null,null,null,null,null,null,{"$f":"'Schedule XXIII'!M42","v":0}]
["Sch XXIII","Interest Rates",null,{"$f":"\"Int. Up - Before Shock - Derivatives - Qualifying Assets - \"&'Schedule XXIII'!$C$18","v":"Int. Up - Before Shock - Derivatives - Qualifying Assets - Other currency 1"},null,null,null,null,null,null,null,null,{"$f":"'Schedule XXIII'!M43","v":0}]
["Sch XXIII","Interest Rates",null,{"$f":"\"Int. Up - Before Shock - Derivatives - Qualifying Assets - \"&'Schedule XXIII'!$C$19","v":"Int. Up - Before Shock - Derivatives - Qualifying Assets - Other currency 2"},null,null,null,null,null,null,null,null,{"$f":"'Schedule XXIII'!M44","v":0}]
["Sch XXIII","Interest Rates",null,{"$f":"\"Int. Up - Before Shock - Derivatives - Qualifying Assets - \"&'Schedule XXIII'!$C$20","v":"Int. Up - Before Shock - Derivatives - Qualifying Assets - Other currency 3"},null,null,null,null,null,null,null,null,{"$f":"'Schedule XXIII'!M45","v":0}]
["Sch XXIII","Interest Rates",null,{"$f":"\"Int. Up - Before Shock - Derivatives - Qualifying Assets - \"&'Schedule XXIII'!$C$21","v":"Int. Up - Before Shock - Derivatives - Qualifying Assets - Other currency 4"},null,null,null,null,null,null,null,null,{"$f":"'Schedule XXIII'!M46","v":0}]
["Sch XXIII","Interest Rates",null,{"$f":"\"Int. Up - Before Shock - Derivatives - Qualifying Assets - \"&'Schedule XXIII'!$C$22","v":"Int. Up - Before Shock - Derivatives - Qualifying Assets - Other currency 5"},null,null,null,null,null,null,null,null,{"$f":"'Schedule XXIII'!M47","v":0}]
["Sch XXIII","Interest Rates",null,{"$f":"\"Int. Up - Before Shock - Derivatives - Qualifying Assets - \"&'Schedule XXIII'!$C$23","v":"Int. Up - Before Shock - Derivatives - Qualifying Assets - Other currency 6"},null,null,null,null,null,null,null,null,{"$f":"'Schedule XXIII'!M48","v":0}]
["Sch XXIII","Interest Rates",null,{"$f":"\"Int. Up - Before Shock - Derivatives - Qualifying Assets - \"&'Schedule XXIII'!$C$24","v":"Int. Up - Before Shock - Derivatives - Qualifying Assets - Other currency 7"},null,null,null,null,null,null,null,null,{"$f":"'Schedule XXIII'!M49","v":0}]
["Sch XXIII","Interest Rates",null,{"$f":"\"Int. Up - Before Shock - Derivatives - Qualifying Assets - \"&'Schedule XXIII'!$C$25","v":"Int. Up - Before Shock - Derivatives - Qualifying Assets - Other currency 8"},null,null,null,null,null,null,null,null,{"$f":"'Schedule XXIII'!M50","v":0}]
["Sch XXIII","Interest Rates",null,{"$f":"\"Int. Up - Before Shock - Derivatives - Qualifying Assets - \"&'Schedule XXIII'!$C$26","v":"Int. Up - Before Shock - Derivatives - Qualifying Assets - Other currency 9"},null,null,null,null,null,null,null,null,{"$f":"'Schedule XXIII'!M51","v":0}]
["Sch XXIII","Interest Rates",null,{"$f":"\"Int. Up - Before Shock - Derivatives - Qualifying Assets - \"&'Schedule XXIII'!$C$27","v":"Int. Up - Before Shock - Derivatives - Qualifying Assets - Other currency 10"},null,null,null,null,null,null,null,null,{"$f":"'Schedule XXIII'!M52","v":0}]
["Sch XXIII","Interest Rates",null,"Int. Up - Before Shock - Derivatives - Qualifying Assets - Total",null,null,null,null,null,null,null,null,{"$f":"'Schedule XXIII'!M53","v":0}]
["Sch XXIII","Interest Rates",null,"Int. Up - After Shock - Derivatives - Qualifying Assets - United States Dollars",null,null,null,null,null,null,null,null,{"$f":"'Schedule XXIII'!N35","v":0}]
["Sch XXIII","Interest Rates",null,"Int. Up - After Shock - Derivatives - Qualifying Assets - Euro",null,null,null,null,null,null,null,null,{"$f":"'Schedule XXIII'!N36","v":0}]
["Sch XXIII","Interest Rates",null,"Int. Up - After Shock - Derivatives - Qualifying Assets - United Kingdom Pounds",null,null,null,null,null,null,null,null,{"$f":"'Schedule XXIII'!N37","v":0}]
["Sch XXIII","Interest Rates",null,"Int. Up - After Shock - Derivatives - Qualifying Assets - Japan Yen",null,null,null,null,null,null,null,null,{"$f":"'Schedule XXIII'!N38","v":0}]
["Sch XXIII","Interest Rates",null,"Int. Up - After Shock - Derivatives - Qualifying Assets - Canada Dollars",null,null,null,null,null,null,null,null,{"$f":"'Schedule XXIII'!N39","v":0}]
["Sch XXIII","Interest Rates",null,"Int. Up - After Shock - Derivatives - Qualifying Assets - Swiss Francs",null,null,null,null,null,null,null,null,{"$f":"'Schedule XXIII'!N40","v":0}]
["Sch XXIII","Interest Rates",null,"Int. Up - After Shock - Derivatives - Qualifying Assets - Australia Dollar",null,null,null,null,null,null,null,null,{"$f":"'Schedule XXIII'!N41","v":0}]
["Sch XXIII","Interest Rates",null,"Int. Up - After Shock - Derivatives - Qualifying Assets - New Zealand Dollar",null,null,null,null,null,null,null,null,{"$f":"'Schedule XXIII'!N42","v":0}]
["Sch XXIII","Interest Rates",null,{"$f":"\"Int. Up - After Shock - Derivatives - Qualifying Assets - \"&'Schedule XXIII'!$C$18","v":"Int. Up - After Shock - Derivatives - Qualifying Assets - Other currency 1"},null,null,null,null,null,null,null,null,{"$f":"'Schedule XXIII'!N43","v":0}]
["Sch XXIII","Interest Rates",null,{"$f":"\"Int. Up - After Shock - Derivatives - Qualifying Assets - \"&'Schedule XXIII'!$C$19","v":"Int. Up - After Shock - Derivatives - Qualifying Assets - Other currency 2"},null,null,null,null,null,null,null,null,{"$f":"'Schedule XXIII'!N44","v":0}]
["Sch XXIII","Interest Rates",null,{"$f":"\"Int. Up - After Shock - Derivatives - Qualifying Assets - \"&'Schedule XXIII'!$C$20","v":"Int. Up - After Shock - Derivatives - Qualifying Assets - Other currency 3"},null,null,null,null,null,null,null,null,{"$f":"'Schedule XXIII'!N45","v":0}]
["Sch XXIII","Interest Rates",null,{"$f":"\"Int. Up - After Shock - Derivatives - Qualifying Assets - \"&'Schedule XXIII'!$C$21","v":"Int. Up - After Shock - Derivatives - Qualifying Assets - Other currency 4"},null,null,null,null,null,null,null,null,{"$f":"'Schedule XXIII'!N46","v":0}]
["Sch XXIII","Interest Rates",null,{"$f":"\"Int. Up - After Shock - Derivatives - Qualifying Assets - \"&'Schedule XXIII'!$C$22","v":"Int. Up - After Shock - Derivatives - Qualifying Assets - Other currency 5"},null,null,null,null,null,null,null,null,{"$f":"'Schedule XXIII'!N47","v":0}]
["Sch XXIII","Interest Rates",null,{"$f":"\"Int. Up - After Shock - Derivatives - Qualifying Assets - \"&'Schedule XXIII'!$C$23","v":"Int. Up - After Shock - Derivatives - Qualifying Assets - Other currency 6"},null,null,null,null,null,null,null,null,{"$f":"'Schedule XXIII'!N48","v":0}]
["Sch XXIII","Interest Rates",null,{"$f":"\"Int. Up - After Shock - Derivatives - Qualifying Assets - \"&'Schedule XXIII'!$C$24","v":"Int. Up - After Shock - Derivatives - Qualifying Assets - Other currency 7"},null,null,null,null,null,null,null,null,{"$f":"'Schedule XXIII'!N49","v":0}]
["Sch XXIII","Interest Rates",null,{"$f":"\"Int. Up - After Shock - Derivatives - Qualifying Assets - \"&'Schedule XXIII'!$C$25","v":"Int. Up - After Shock - Derivatives - Qualifying Assets - Other currency 8"},null,null,null,null,null,null,null,null,{"$f":"'Schedule XXIII'!N50","v":0}]
["Sch XXIII","Interest Rates",null,{"$f":"\"Int. Up - After Shock - Derivatives - Qualifying Assets - \"&'Schedule XXIII'!$C$26","v":"Int. Up - After Shock - Derivatives - Qualifying Assets - Other currency 9"},null,null,null,null,null,null,null,null,{"$f":"'Schedule XXIII'!N51","v":0}]
["Sch XXIII","Interest Rates",null,{"$f":"\"Int. Up - After Shock - Derivatives - Qualifying Assets - \"&'Schedule XXIII'!$C$27","v":"Int. Up - After Shock - Derivatives - Qualifying Assets - Other currency 10"},null,null,null,null,null,null,null,null,{"$f":"'Schedule XXIII'!N52","v":0}]
["Sch XXIII","Interest Rates",null,"Int. Up - After Shock - Derivatives - Qualifying Assets - Total",null,null,null,null,null,null,null,null,{"$f":"'Schedule XXIII'!N53","v":0}]
["Sch XXIII","Interest Rates",null,"Int. Up - Before Shock - Derivatives - Not Qualifying Assets - United States Dollars",null,null,null,null,null,null,null,null,{"$f":"'Schedule XXIII'!P35","v":0}]
["Sch XXIII","Interest Rates",null,"Int. Up - Before Shock - Derivatives - Not Qualifying Assets - Euro",null,null,null,null,null,null,null,null,{"$f":"'Schedule XXIII'!P36","v":0}]
["Sch XXIII","Interest Rates",null,"Int. Up - Before Shock - Derivatives - Not Qualifying Assets - United Kingdom Pounds",null,null,null,null,null,null,null,null,{"$f":"'Schedule XXIII'!P37","v":0}]
["Sch XXIII","Interest Rates",null,"Int. Up - Before Shock - Derivatives - Not Qualifying Assets - Japan Yen",null,null,null,null,null,null,null,null,{"$f":"'Schedule XXIII'!P38","v":0}]
["Sch XXIII","Interest Rates",null,"Int. Up - Before Shock - Derivatives - Not Qualifying Assets - Canada Dollars",null,null,null,null,null,null,null,null,{"$f":"'Schedule XXIII'!P39","v":0}]
["Sch XXIII","Interest Rates",null,"Int. Up - Before Shock - Derivatives - Not Qualifying Assets - Swiss Francs",null,null,null,null,null,null,null,null,{"$f":"'Schedule XXIII'!P40","v":0}]
["Sch XXIII","Interest Rates",null,"Int. Up - Before Shock - Derivatives - Not Qualifying Assets - Australia Dollar",null,null,null,null,null,null,null,null,{"$f":"'Schedule XXIII'!P41","v":0}]
["Sch XXIII","Interest Rates",null,"Int. Up - Before Shock - Derivatives - Not Qualifying Assets - New Zealand Dollar",null,null,null,null,null,null,null,null,{"$f":"'Schedule XXIII'!P42","v":0}]
["Sch XXIII","Interest Rates",null,{"$f":"\"Int. Up - Before Shock - Derivatives - Not Qualifying Assets - \"&'Schedule XXIII'!$C$18","v":"Int. Up - Before Shock - Derivatives - Not Qualifying Assets - Other currency 1"},null,null,null,null,null,null,null,null,{"$f":"'Schedule XXIII'!P43","v":0}]
["Sch XXIII","Interest Rates",null,{"$f":"\"Int. Up - Before Shock - Derivatives - Not Qualifying Assets - \"&'Schedule XXIII'!$C$19","v":"Int. Up - Before Shock - Derivatives - Not Qualifying Assets - Other currency 2"},null,null,null,null,null,null,null,null,{"$f":"'Schedule XXIII'!P44","v":0}]
["Sch XXIII","Interest Rates",null,{"$f":"\"Int. Up - Before Shock - Derivatives - Not Qualifying Assets - \"&'Schedule XXIII'!$C$20","v":"Int. Up - Before Shock - Derivatives - Not Qualifying Assets - Other currency 3"},null,null,null,null,null,null,null,null,{"$f":"'Schedule XXIII'!P45","v":0}]
["Sch XXIII","Interest Rates",null,{"$f":"\"Int. Up - Before Shock - Derivatives - Not Qualifying Assets - \"&'Schedule XXIII'!$C$21","v":"Int. Up - Before Shock - Derivatives - Not Qualifying Assets - Other currency 4"},null,null,null,null,null,null,null,null,{"$f":"'Schedule XXIII'!P46","v":0}]
["Sch XXIII","Interest Rates",null,{"$f":"\"Int. Up - Before Shock - Derivatives - Not Qualifying Assets - \"&'Schedule XXIII'!$C$22","v":"Int. Up - Before Shock - Derivatives - Not Qualifying Assets - Other currency 5"},null,null,null,null,null,null,null,null,{"$f":"'Schedule XXIII'!P47","v":0}]
["Sch XXIII","Interest Rates",null,{"$f":"\"Int. Up - Before Shock - Derivatives - Not Qualifying Assets - \"&'Schedule XXIII'!$C$23","v":"Int. Up - Before Shock - Derivatives - Not Qualifying Assets - Other currency 6"},null,null,null,null,null,null,null,null,{"$f":"'Schedule XXIII'!P48","v":0}]
["Sch XXIII","Interest Rates",null,{"$f":"\"Int. Up - Before Shock - Derivatives - Not Qualifying Assets - \"&'Schedule XXIII'!$C$24","v":"Int. Up - Before Shock - Derivatives - Not Qualifying Assets - Other currency 7"},null,null,null,null,null,null,null,null,{"$f":"'Schedule XXIII'!P49","v":0}]
["Sch XXIII","Interest Rates",null,{"$f":"\"Int. Up - Before Shock - Derivatives - Not Qualifying Assets - \"&'Schedule XXIII'!$C$25","v":"Int. Up - Before Shock - Derivatives - Not Qualifying Assets - Other currency 8"},null,null,null,null,null,null,null,null,{"$f":"'Schedule XXIII'!P50","v":0}]
["Sch XXIII","Interest Rates",null,{"$f":"\"Int. Up - Before Shock - Derivatives - Not Qualifying Assets - \"&'Schedule XXIII'!$C$26","v":"Int. Up - Before Shock - Derivatives - Not Qualifying Assets - Other currency 9"},null,null,null,null,null,null,null,null,{"$f":"'Schedule XXIII'!P51","v":0}]
["Sch XXIII","Interest Rates",null,{"$f":"\"Int. Up - Before Shock - Derivatives - Not Qualifying Assets - \"&'Schedule XXIII'!$C$27","v":"Int. Up - Before Shock - Derivatives - Not Qualifying Assets - Other currency 10"},null,null,null,null,null,null,null,null,{"$f":"'Schedule XXIII'!P52","v":0}]
["Sch XXIII","Interest Rates",null,"Int. Up - Before Shock - Derivatives - Not Qualifying Assets - Total",null,null,null,null,null,null,null,null,{"$f":"'Schedule XXIII'!P53","v":0}]
["Sch XXIII","Interest Rates",null,"Int. Up - After Shock - Derivatives - Not Qualifying Assets - United States Dollars",null,null,null,null,null,null,null,null,{"$f":"'Schedule XXIII'!Q35","v":0}]
["Sch XXIII","Interest Rates",null,"Int. Up - After Shock - Derivatives - Not Qualifying Assets - Euro",null,null,null,null,null,null,null,null,{"$f":"'Schedule XXIII'!Q36","v":0}]
["Sch XXIII","Interest Rates",null,"Int. Up - After Shock - Derivatives - Not Qualifying Assets - United Kingdom Pounds",null,null,null,null,null,null,null,null,{"$f":"'Schedule XXIII'!Q37","v":0}]
["Sch XXIII","Interest Rates",null,"Int. Up - After Shock - Derivatives - Not Qualifying Assets - Japan Yen",null,null,null,null,null,null,null,null,{"$f":"'Schedule XXIII'!Q38","v":0}]
["Sch XXIII","Interest Rates",null,"Int. Up - After Shock - Derivatives - Not Qualifying Assets - Canada Dollars",null,null,null,null,null,null,null,null,{"$f":"'Schedule XXIII'!Q39","v":0}]
["Sch XXIII","Interest Rates",null,"Int. Up - After Shock - Derivatives - Not Qualifying Assets - Swiss Francs",null,null,null,null,null,null,null,null,{"$f":"'Schedule XXIII'!Q40","v":0}]
["Sch XXIII","Interest Rates",null,"Int. Up - After Shock - Derivatives - Not Qualifying Assets - Australia Dollar",null,null,null,null,null,null,null,null,{"$f":"'Schedule XXIII'!Q41","v":0}]
["Sch XXIII","Interest Rates",null,"Int. Up - After Shock - Derivatives - Not Qualifying Assets - New Zealand Dollar",null,null,null,null,null,null,null,null,{"$f":"'Schedule XXIII'!Q42","v":0}]
["Sch XXIII","Interest Rates",null,{"$f":"\"Int. Up - After Shock - Derivatives - Not Qualifying Assets - \"&'Schedule XXIII'!$C$18","v":"Int. Up - After Shock - Derivatives - Not Qualifying Assets - Other currency 1"},null,null,null,null,null,null,null,null,{"$f":"'Schedule XXIII'!Q43","v":0}]
["Sch XXIII","Interest Rates",null,{"$f":"\"Int. Up - After Shock - Derivatives - Not Qualifying Assets - \"&'Schedule XXIII'!$C$19","v":"Int. Up - After Shock - Derivatives - Not Qualifying Assets - Other currency 2"},null,null,null,null,null,null,null,null,{"$f":"'Schedule XXIII'!Q44","v":0}]
["Sch XXIII","Interest Rates",null,{"$f":"\"Int. Up - After Shock - Derivatives - Not Qualifying Assets - \"&'Schedule XXIII'!$C$20","v":"Int. Up - After Shock - Derivatives - Not Qualifying Assets - Other currency 3"},null,null,null,null,null,null,null,null,{"$f":"'Schedule XXIII'!Q45","v":0}]
["Sch XXIII","Interest Rates",null,{"$f":"\"Int. Up - After Shock - Derivatives - Not Qualifying Assets - \"&'Schedule XXIII'!$C$21","v":"Int. Up - After Shock - Derivatives - Not Qualifying Assets - Other currency 4"},null,null,null,null,null,null,null,null,{"$f":"'Schedule XXIII'!Q46","v":0}]
["Sch XXIII","Interest Rates",null,{"$f":"\"Int. Up - After Shock - Derivatives - Not Qualifying Assets - \"&'Schedule XXIII'!$C$22","v":"Int. Up - After Shock - Derivatives - Not Qualifying Assets - Other currency 5"},null,null,null,null,null,null,null,null,{"$f":"'Schedule XXIII'!Q47","v":0}]
["Sch XXIII","Interest Rates",null,{"$f":"\"Int. Up - After Shock - Derivatives - Not Qualifying Assets - \"&'Schedule XXIII'!$C$23","v":"Int. Up - After Shock - Derivatives - Not Qualifying Assets - Other currency 6"},null,null,null,null,null,null,null,null,{"$f":"'Schedule XXIII'!Q48","v":0}]
["Sch XXIII","Interest Rates",null,{"$f":"\"Int. Up - After Shock - Derivatives - Not Qualifying Assets - \"&'Schedule XXIII'!$C$24","v":"Int. Up - After Shock - Derivatives - Not Qualifying Assets - Other currency 7"},null,null,null,null,null,null,null,null,{"$f":"'Schedule XXIII'!Q49","v":0}]
["Sch XXIII","Interest Rates",null,{"$f":"\"Int. Up - After Shock - Derivatives - Not Qualifying Assets - \"&'Schedule XXIII'!$C$25","v":"Int. Up - After Shock - Derivatives - Not Qualifying Assets - Other currency 8"},null,null,null,null,null,null,null,null,{"$f":"'Schedule XXIII'!Q50","v":0}]
["Sch XXIII","Interest Rates",null,{"$f":"\"Int. Up - After Shock - Derivatives - Not Qualifying Assets - \"&'Schedule XXIII'!$C$26","v":"Int. Up - After Shock - Derivatives - Not Qualifying Assets - Other currency 9"},null,null,null,null,null,null,null,null,{"$f":"'Schedule XXIII'!Q51","v":0}]
["Sch XXIII","Interest Rates",null,{"$f":"\"Int. Up - After Shock - Derivatives - Not Qualifying Assets - \"&'Schedule XXIII'!$C$27","v":"Int. Up - After Shock - Derivatives - Not Qualifying Assets - Other currency 10"},null,null,null,null,null,null,null,null,{"$f":"'Schedule XXIII'!Q52","v":0}]
["Sch XXIII","Interest Rates",null,"Int. Up - After Shock - Derivatives - Not Qualifying Assets - Total",null,null,null,null,null,null,null,null,{"$f":"'Schedule XXIII'!Q53","v":0}]
["Sch XXIII","Interest Rates",null,"Int. Up - Before Shock - Derivatives - Liab. w/o Mgmt Action - United States Dollars",null,null,null,null,null,null,null,null,{"$f":"'Schedule XXIII'!S35","v":0}]
["Sch XXIII","Interest Rates",null,"Int. Up - Before Shock - Derivatives - Liab. w/o Mgmt Action - Euro",null,null,null,null,null,null,null,null,{"$f":"'Schedule XXIII'!S36","v":0}]
["Sch XXIII","Interest Rates",null,"Int. Up - Before Shock - Derivatives - Liab. w/o Mgmt Action - United Kingdom Pounds",null,null,null,null,null,null,null,null,{"$f":"'Schedule XXIII'!S37","v":0}]
["Sch XXIII","Interest Rates",null,"Int. Up - Before Shock - Derivatives - Liab. w/o Mgmt Action - Japan Yen",null,null,null,null,null,null,null,null,{"$f":"'Schedule XXIII'!S38","v":0}]
["Sch XXIII","Interest Rates",null,"Int. Up - Before Shock - Derivatives - Liab. w/o Mgmt Action - Canada Dollars",null,null,null,null,null,null,null,null,{"$f":"'Schedule XXIII'!S39","v":0}]
["Sch XXIII","Interest Rates",null,"Int. Up - Before Shock - Derivatives - Liab. w/o Mgmt Action - Swiss Francs",null,null,null,null,null,null,null,null,{"$f":"'Schedule XXIII'!S40","v":0}]
["Sch XXIII","Interest Rates",null,"Int. Up - Before Shock - Derivatives - Liab. w/o Mgmt Action - Australia Dollar",null,null,null,null,null,null,null,null,{"$f":"'Schedule XXIII'!S41","v":0}]
["Sch XXIII","Interest Rates",null,"Int. Up - Before Shock - Derivatives - Liab. w/o Mgmt Action - New Zealand Dollar",null,null,null,null,null,null,null,null,{"$f":"'Schedule XXIII'!S42","v":0}]
["Sch XXIII","Interest Rates",null,{"$f":"\"Int. Up - Before Shock - Derivatives - Liab. w/o Mgmt Action - \"&'Schedule XXIII'!$C$18","v":"Int. Up - Before Shock - Derivatives - Liab. w/o Mgmt Action - Other currency 1"},null,null,null,null,null,null,null,null,{"$f":"'Schedule XXIII'!S43","v":0}]
["Sch XXIII","Interest Rates",null,{"$f":"\"Int. Up - Before Shock - Derivatives - Liab. w/o Mgmt Action - \"&'Schedule XXIII'!$C$19","v":"Int. Up - Before Shock - Derivatives - Liab. w/o Mgmt Action - Other currency 2"},null,null,null,null,null,null,null,null,{"$f":"'Schedule XXIII'!S44","v":0}]
["Sch XXIII","Interest Rates",null,{"$f":"\"Int. Up - Before Shock - Derivatives - Liab. w/o Mgmt Action - \"&'Schedule XXIII'!$C$20","v":"Int. Up - Before Shock - Derivatives - Liab. w/o Mgmt Action - Other currency 3"},null,null,null,null,null,null,null,null,{"$f":"'Schedule XXIII'!S45","v":0}]
["Sch XXIII","Interest Rates",null,{"$f":"\"Int. Up - Before Shock - Derivatives - Liab. w/o Mgmt Action - \"&'Schedule XXIII'!$C$21","v":"Int. Up - Before Shock - Derivatives - Liab. w/o Mgmt Action - Other currency 4"},null,null,null,null,null,null,null,null,{"$f":"'Schedule XXIII'!S46","v":0}]
["Sch XXIII","Interest Rates",null,{"$f":"\"Int. Up - Before Shock - Derivatives - Liab. w/o Mgmt Action - \"&'Schedule XXIII'!$C$22","v":"Int. Up - Before Shock - Derivatives - Liab. w/o Mgmt Action - Other currency 5"},null,null,null,null,null,null,null,null,{"$f":"'Schedule XXIII'!S47","v":0}]
["Sch XXIII","Interest Rates",null,{"$f":"\"Int. Up - Before Shock - Derivatives - Liab. w/o Mgmt Action - \"&'Schedule XXIII'!$C$23","v":"Int. Up - Before Shock - Derivatives - Liab. w/o Mgmt Action - Other currency 6"},null,null,null,null,null,null,null,null,{"$f":"'Schedule XXIII'!S48","v":0}]
["Sch XXIII","Interest Rates",null,{"$f":"\"Int. Up - Before Shock - Derivatives - Liab. w/o Mgmt Action - \"&'Schedule XXIII'!$C$24","v":"Int. Up - Before Shock - Derivatives - Liab. w/o Mgmt Action - Other currency 7"},null,null,null,null,null,null,null,null,{"$f":"'Schedule XXIII'!S49","v":0}]
["Sch XXIII","Interest Rates",null,{"$f":"\"Int. Up - Before Shock - Derivatives - Liab. w/o Mgmt Action - \"&'Schedule XXIII'!$C$25","v":"Int. Up - Before Shock - Derivatives - Liab. w/o Mgmt Action - Other currency 8"},null,null,null,null,null,null,null,null,{"$f":"'Schedule XXIII'!S50","v":0}]
["Sch XXIII","Interest Rates",null,{"$f":"\"Int. Up - Before Shock - Derivatives - Liab. w/o Mgmt Action - \"&'Schedule XXIII'!$C$26","v":"Int. Up - Before Shock - Derivatives - Liab. w/o Mgmt Action - Other currency 9"},null,null,null,null,null,null,null,null,{"$f":"'Schedule XXIII'!S51","v":0}]
["Sch XXIII","Interest Rates",null,{"$f":"\"Int. Up - Before Shock - Derivatives - Liab. w/o Mgmt Action - \"&'Schedule XXIII'!$C$27","v":"Int. Up - Before Shock - Derivatives - Liab. w/o Mgmt Action - Other currency 10"},null,null,null,null,null,null,null,null,{"$f":"'Schedule XXIII'!S52","v":0}]
["Sch XXIII","Interest Rates",null,"Int. Up - Before Shock - Derivatives - Liab. w/o Mgmt Action - Total",null,null,null,null,null,null,null,null,{"$f":"'Schedule XXIII'!S53","v":0}]
["Sch XXIII","Interest Rates",null,"Int. Up - After Shock - Derivatives - Liab. w/o Mgmt Action - United States Dollars",null,null,null,null,null,null,null,null,{"$f":"'Schedule XXIII'!T35","v":0}]
["Sch XXIII","Interest Rates",null,"Int. Up - After Shock - Derivatives - Liab. w/o Mgmt Action - Euro",null,null,null,null,null,null,null,null,{"$f":"'Schedule XXIII'!T36","v":0}]
["Sch XXIII","Interest Rates",null,"Int. Up - After Shock - Derivatives - Liab. w/o Mgmt Action - United Kingdom Pounds",null,null,null,null,null,null,null,null,{"$f":"'Schedule XXIII'!T37","v":0}]
["Sch XXIII","Interest Rates",null,"Int. Up - After Shock - Derivatives - Liab. w/o Mgmt Action - Japan Yen",null,null,null,null,null,null,null,null,{"$f":"'Schedule XXIII'!T38","v":0}]
["Sch XXIII","Interest Rates",null,"Int. Up - After Shock - Derivatives - Liab. w/o Mgmt Action - Canada Dollars",null,null,null,null,null,null,null,null,{"$f":"'Schedule XXIII'!T39","v":0}]
["Sch XXIII","Interest Rates",null,"Int. Up - After Shock - Derivatives - Liab. w/o Mgmt Action - Swiss Francs",null,null,null,null,null,null,null,null,{"$f":"'Schedule XXIII'!T40","v":0}]
["Sch XXIII","Interest Rates",null,"Int. Up - After Shock - Derivatives - Liab. w/o Mgmt Action - Australia Dollar",null,null,null,null,null,null,null,null,{"$f":"'Schedule XXIII'!T41","v":0}]
["Sch XXIII","Interest Rates",null,"Int. Up - After Shock - Derivatives - Liab. w/o Mgmt Action - New Zealand Dollar",null,null,null,null,null,null,null,null,{"$f":"'Schedule XXIII'!T42","v":0}]
["Sch XXIII","Interest Rates",null,{"$f":"\"Int. Up - After Shock - Derivatives - Liab. w/o Mgmt Action - \"&'Schedule XXIII'!$C$18","v":"Int. Up - After Shock - Derivatives - Liab. w/o Mgmt Action - Other currency 1"},null,null,null,null,null,null,null,null,{"$f":"'Schedule XXIII'!T43","v":0}]
["Sch XXIII","Interest Rates",null,{"$f":"\"Int. Up - After Shock - Derivatives - Liab. w/o Mgmt Action - \"&'Schedule XXIII'!$C$19","v":"Int. Up - After Shock - Derivatives - Liab. w/o Mgmt Action - Other currency 2"},null,null,null,null,null,null,null,null,{"$f":"'Schedule XXIII'!T44","v":0}]
["Sch XXIII","Interest Rates",null,{"$f":"\"Int. Up - After Shock - Derivatives - Liab. w/o Mgmt Action - \"&'Schedule XXIII'!$C$20","v":"Int. Up - After Shock - Derivatives - Liab. w/o Mgmt Action - Other currency 3"},null,null,null,null,null,null,null,null,{"$f":"'Schedule XXIII'!T45","v":0}]
["Sch XXIII","Interest Rates",null,{"$f":"\"Int. Up - After Shock - Derivatives - Liab. w/o Mgmt Action - \"&'Schedule XXIII'!$C$21","v":"Int. Up - After Shock - Derivatives - Liab. w/o Mgmt Action - Other currency 4"},null,null,null,null,null,null,null,null,{"$f":"'Schedule XXIII'!T46","v":0}]
["Sch XXIII","Interest Rates",null,{"$f":"\"Int. Up - After Shock - Derivatives - Liab. w/o Mgmt Action - \"&'Schedule XXIII'!$C$22","v":"Int. Up - After Shock - Derivatives - Liab. w/o Mgmt Action - Other currency 5"},null,null,null,null,null,null,null,null,{"$f":"'Schedule XXIII'!T47","v":0}]
["Sch XXIII","Interest Rates",null,{"$f":"\"Int. Up - After Shock - Derivatives - Liab. w/o Mgmt Action - \"&'Schedule XXIII'!$C$23","v":"Int. Up - After Shock - Derivatives - Liab. w/o Mgmt Action - Other currency 6"},null,null,null,null,null,null,null,null,{"$f":"'Schedule XXIII'!T48","v":0}]
["Sch XXIII","Interest Rates",null,{"$f":"\"Int. Up - After Shock - Derivatives - Liab. w/o Mgmt Action - \"&'Schedule XXIII'!$C$24","v":"Int. Up - After Shock - Derivatives - Liab. w/o Mgmt Action - Other currency 7"},null,null,null,null,null,null,null,null,{"$f":"'Schedule XXIII'!T49","v":0}]
["Sch XXIII","Interest Rates",null,{"$f":"\"Int. Up - After Shock - Derivatives - Liab. w/o Mgmt Action - \"&'Schedule XXIII'!$C$25","v":"Int. Up - After Shock - Derivatives - Liab. w/o Mgmt Action - Other currency 8"},null,null,null,null,null,null,null,null,{"$f":"'Schedule XXIII'!T50","v":0}]
["Sch XXIII","Interest Rates",null,{"$f":"\"Int. Up - After Shock - Derivatives - Liab. w/o Mgmt Action - \"&'Schedule XXIII'!$C$26","v":"Int. Up - After Shock - Derivatives - Liab. w/o Mgmt Action - Other currency 9"},null,null,null,null,null,null,null,null,{"$f":"'Schedule XXIII'!T51","v":0}]
["Sch XXIII","Interest Rates",null,{"$f":"\"Int. Up - After Shock - Derivatives - Liab. w/o Mgmt Action - \"&'Schedule XXIII'!$C$27","v":"Int. Up - After Shock - Derivatives - Liab. w/o Mgmt Action - Other currency 10"},null,null,null,null,null,null,null,null,{"$f":"'Schedule XXIII'!T52","v":0}]
["Sch XXIII","Interest Rates",null,"Int. Up - After Shock - Derivatives - Liab. w/o Mgmt Action - Total",null,null,null,null,null,null,null,null,{"$f":"'Schedule XXIII'!T53","v":0}]
["Sch XXIII","Interest Rates",null,"Int. Up - After Shock - Derivatives - Liab. with Mgmt Action - United States Dollars",null,null,null,null,null,null,null,null,{"$f":"'Schedule XXIII'!V35","v":0}]
["Sch XXIII","Interest Rates",null,"Int. Up - After Shock - Derivatives - Liab. with Mgmt Action - Euro",null,null,null,null,null,null,null,null,{"$f":"'Schedule XXIII'!V36","v":0}]
["Sch XXIII","Interest Rates",null,"Int. Up - After Shock - Derivatives - Liab. with Mgmt Action - United Kingdom Pounds",null,null,null,null,null,null,null,null,{"$f":"'Schedule XXIII'!V37","v":0}]
["Sch XXIII","Interest Rates",null,"Int. Up - After Shock - Derivatives - Liab. with Mgmt Action - Japan Yen",null,null,null,null,null,null,null,null,{"$f":"'Schedule XXIII'!V38","v":0}]
["Sch XXIII","Interest Rates",null,"Int. Up - After Shock - Derivatives - Liab. with Mgmt Action - Canada Dollars",null,null,null,null,null,null,null,null,{"$f":"'Schedule XXIII'!V39","v":0}]
["Sch XXIII","Interest Rates",null,"Int. Up - After Shock - Derivatives - Liab. with Mgmt Action - Swiss Francs",null,null,null,null,null,null,null,null,{"$f":"'Schedule XXIII'!V40","v":0}]
["Sch XXIII","Interest Rates",null,"Int. Up - After Shock - Derivatives - Liab. with Mgmt Action - Australia Dollar",null,null,null,null,null,null,null,null,{"$f":"'Schedule XXIII'!V41","v":0}]
["Sch XXIII","Interest Rates",null,"Int. Up - After Shock - Derivatives - Liab. with Mgmt Action - New Zealand Dollar",null,null,null,null,null,null,null,null,{"$f":"'Schedule XXIII'!V42","v":0}]
["Sch XXIII","Interest Rates",null,{"$f":"\"Int. Up - After Shock - Derivatives - Liab. with Mgmt Action - \"&'Schedule XXIII'!$C$18","v":"Int. Up - After Shock - Derivatives - Liab. with Mgmt Action - Other currency 1"},null,null,null,null,null,null,null,null,{"$f":"'Schedule XXIII'!V43","v":0}]
["Sch XXIII","Interest Rates",null,{"$f":"\"Int. Up - After Shock - Derivatives - Liab. with Mgmt Action - \"&'Schedule XXIII'!$C$19","v":"Int. Up - After Shock - Derivatives - Liab. with Mgmt Action - Other currency 2"},null,null,null,null,null,null,null,null,{"$f":"'Schedule XXIII'!V44","v":0}]
["Sch XXIII","Interest Rates",null,{"$f":"\"Int. Up - After Shock - Derivatives - Liab. with Mgmt Action - \"&'Schedule XXIII'!$C$20","v":"Int. Up - After Shock - Derivatives - Liab. with Mgmt Action - Other currency 3"},null,null,null,null,null,null,null,null,{"$f":"'Schedule XXIII'!V45","v":0}]
["Sch XXIII","Interest Rates",null,{"$f":"\"Int. Up - After Shock - Derivatives - Liab. with Mgmt Action - \"&'Schedule XXIII'!$C$21","v":"Int. Up - After Shock - Derivatives - Liab. with Mgmt Action - Other currency 4"},null,null,null,null,null,null,null,null,{"$f":"'Schedule XXIII'!V46","v":0}]
["Sch XXIII","Interest Rates",null,{"$f":"\"Int. Up - After Shock - Derivatives - Liab. with Mgmt Action - \"&'Schedule XXIII'!$C$22","v":"Int. Up - After Shock - Derivatives - Liab. with Mgmt Action - Other currency 5"},null,null,null,null,null,null,null,null,{"$f":"'Schedule XXIII'!V47","v":0}]
["Sch XXIII","Interest Rates",null,{"$f":"\"Int. Up - After Shock - Derivatives - Liab. with Mgmt Action - \"&'Schedule XXIII'!$C$23","v":"Int. Up - After Shock - Derivatives - Liab. with Mgmt Action - Other currency 6"},null,null,null,null,null,null,null,null,{"$f":"'Schedule XXIII'!V48","v":0}]
["Sch XXIII","Interest Rates",null,{"$f":"\"Int. Up - After Shock - Derivatives - Liab. with Mgmt Action - \"&'Schedule XXIII'!$C$24","v":"Int. Up - After Shock - Derivatives - Liab. with Mgmt Action - Other currency 7"},null,null,null,null,null,null,null,null,{"$f":"'Schedule XXIII'!V49","v":0}]
["Sch XXIII","Interest Rates",null,{"$f":"\"Int. Up - After Shock - Derivatives - Liab. with Mgmt Action - \"&'Schedule XXIII'!$C$25","v":"Int. Up - After Shock - Derivatives - Liab. with Mgmt Action - Other currency 8"},null,null,null,null,null,null,null,null,{"$f":"'Schedule XXIII'!V50","v":0}]
["Sch XXIII","Interest Rates",null,{"$f":"\"Int. Up - After Shock - Derivatives - Liab. with Mgmt Action - \"&'Schedule XXIII'!$C$26","v":"Int. Up - After Shock - Derivatives - Liab. with Mgmt Action - Other currency 9"},null,null,null,null,null,null,null,null,{"$f":"'Schedule XXIII'!V51","v":0}]
["Sch XXIII","Interest Rates",null,{"$f":"\"Int. Up - After Shock - Derivatives - Liab. with Mgmt Action - \"&'Schedule XXIII'!$C$27","v":"Int. Up - After Shock - Derivatives - Liab. with Mgmt Action - Other currency 10"},null,null,null,null,null,null,null,null,{"$f":"'Schedule XXIII'!V52","v":0}]
["Sch XXIII","Interest Rates",null,"Int. Up - After Shock - Derivatives - Liab. with Mgmt Action - Total",null,null,null,null,null,null,null,null,{"$f":"'Schedule XXIII'!V53","v":0}]
[]
["Sar & Sanc.","SAR & Santions",null,"E.1 Registered GoAML",{"$f":"'SAR & Sanc. (All)'!I8","v":"Select Yes/No"}]
["Sar & Sanc.","SAR & Santions",null,"E.1.1 When",{"$f":"'SAR & Sanc. (All)'!I10","v":"(Select)"}]
["Sar & Sanc.","SAR & Santions",null,"E.1.1 Name",{"$f":"'SAR & Sanc. (All)'!C10","v":0}]
["Sar & Sanc.","SAR & Santions",null,"E.1.2 Another Registered",{"$f":"'SAR & Sanc. (All)'!I12","v":"Select Yes/No"}]
["Sar & Sanc.","SAR & Santions",null,"E.1.3 Name",{"$f":"'SAR & Sanc. (All)'!C14","v":0}]
["Sar & Sanc.","SAR & Santions",null,"E.1.4 Filed SAR",{"$f":"'SAR & Sanc. (All)'!C17","v":0}]
["Sar & Sanc.","SAR & Santions",null,"E.2 SAR Filed - Internal - Current Year",{"$f":"'SAR & Sanc. (All)'!G21","v":0}]
["Sar & Sanc.","SAR & Santions",null,"E.2 SAR Filed - Internal - Prior Year",{"$f":"'SAR & Sanc. (All)'!G22","v":0}]
["Sar & Sanc.","SAR & Santions",null,"E.2 SAR Filed - Internal - 2 Years Prior",{"$f":"'SAR & Sanc. (All)'!G23","v":0}]
["Sar & Sanc.","SAR & Santions",null,"E.2 SAR Filed - Internal - 3 Years Prior",{"$f":"'SAR & Sanc. (All)'!G24","v":0}]
["Sar & Sanc.","SAR & Santions",null,"E.2 SAR Filed - Internal - Total",{"$f":"'SAR & Sanc. (All)'!G25","v":0}]
["Sar & Sanc.","SAR & Santions",null,"E.2 SAR Filed - w FIA - Current Year",{"$f":"'SAR & Sanc. (All)'!I21","v":0}]
["Sar & Sanc.","SAR & Santions",null,"E.2 SAR Filed - w FIA - Prior Year",{"$f":"'SAR & Sanc. (All)'!I22","v":0}]
["Sar & Sanc.","SAR & Santions",null,"E.2 SAR Filed - w FIA - 2 Years Prior",{"$f":"'SAR & Sanc. (All)'!I23","v":0}]
["Sar & Sanc.","SAR & Santions",null,"E.2 SAR Filed - w FIA - 3 Years Prior",{"$f":"'SAR & Sanc. (All)'!I24","v":0}]
["Sar & Sanc.","SAR & Santions",null,"E.2 SAR Filed - w FIA - Total",{"$f":"'SAR & Sanc. (All)'!I25","v":0}]
["Sar & Sanc.","SAR & Santions",null,"E.2 Additional Comments",{"$f":"'SAR & Sanc. (All)'!C28","v":0}]
["Sar & Sanc.","SAR & Santions",null,"E. Sanction - 1. Screen insurers",{"$f":"'SAR & Sanc. (All)'!I35","v":"Select Yes/No"}]
["Sar & Sanc.","SAR & Santions",null,"E. Sanction - 2. Screen employees",{"$f":"'SAR & Sanc. (All)'!I37","v":"Select Yes/No"}]
["Sar & Sanc.","SAR & Santions",null,"E. Sanction - 3. Freeze Assets",{"$f":"'SAR & Sanc. (All)'!I39","v":"Select Yes/No"}]
["Sar & Sanc.","SAR & Santions",null,"E. Sanction - 3.1 # of Assets Frozen",{"$f":"'SAR & Sanc. (All)'!I41","v":0}]
["Sar & Sanc.","SAR & Santions",null,"E. Sanction - 3.2 Group ID 1",{"$f":"'SAR & Sanc. (All)'!E45","v":0}]
["Sar & Sanc.","SAR & Santions",null,"E. Sanction - 3.2 Group ID 2",{"$f":"'SAR & Sanc. (All)'!E46","v":0}]
["Sar & Sanc.","SAR & Santions",null,"E. Sanction - 3.2 Group ID 3",{"$f":"'SAR & Sanc. (All)'!E47","v":0}]
["Sar & Sanc.","SAR & Santions",null,"E. Sanction - 3.2 Group ID 4",{"$f":"'SAR & Sanc. (All)'!E48","v":0}]
["Sar & Sanc.","SAR & Santions",null,"E. Sanction - 3.2 Name Given 1",{"$f":"'SAR & Sanc. (All)'!F45","v":0}]
["Sar & Sanc.","SAR & Santions",null,"E. Sanction - 3.2 Name Given 2",{"$f":"'SAR & Sanc. (All)'!F46","v":0}]
["Sar & Sanc.","SAR & Santions",null,"E. Sanction - 3.2 Name Given 3",{"$f":"'SAR & Sanc. (All)'!F47","v":0}]
["Sar & Sanc.","SAR & Santions",null,"E. Sanction - 3.2 Name Given 4",{"$f":"'SAR & Sanc. (All)'!F48","v":0}]
["Sar & Sanc.","SAR & Santions",null,"E. Sanction - 3.2 Owned 1",{"$f":"'SAR & Sanc. (All)'!F45","v":0}]
["Sar & Sanc.","SAR & Santions",null,"E. Sanction - 3.2 Owned 2",{"$f":"'SAR & Sanc. (All)'!F46","v":0}]
["Sar & Sanc.","SAR & Santions",null,"E. Sanction - 3.2 Owned 3",{"$f":"'SAR & Sanc. (All)'!F47","v":0}]
["Sar & Sanc.","SAR & Santions",null,"E. Sanction - 3.2 Owned 4",{"$f":"'SAR & Sanc. (All)'!F48","v":0}]
["Sar & Sanc.","SAR & Santions",null,"E. Sanction - 3.2 Value of Assets 1",{"$f":"'SAR & Sanc. (All)'!J45","v":0}]
["Sar & Sanc.","SAR & Santions",null,"E. Sanction - 3.2 Value of Assets 2",{"$f":"'SAR & Sanc. (All)'!J46","v":0}]
["Sar & Sanc.","SAR & Santions",null,"E. Sanction - 3.2 Value of Assets 3",{"$f":"'SAR & Sanc. (All)'!J47","v":0}]
["Sar & Sanc.","SAR & Santions",null,"E. Sanction - 3.2 Value of Assets 4",{"$f":"'SAR & Sanc. (All)'!J48","v":0}]
["Sar & Sanc.","SAR & Santions",null,"E. Sanction - 3.2 Value of Total",{"$f":"SUM(E14784:E14787)","v":0}]
["Sar & Sanc.","SAR & Santions",null,"E. Sanction - 4 Frequency of Screen for Sanctions",{"$f":"'SAR & Sanc. (All)'!I50","v":"Select"}]
["Sar & Sanc.","SAR & Santions",null,"E. Sanction - Additional Comments ",{"$f":"'SAR & Sanc. (All)'!C53","v":0}]

{"sheet":"Import Differences","index":8,"n_rows":12,"n_cols":4,"rows_kept":12,"cut":false,"hidden":true,"merged":[]}
["General Business BSCR Model"]
["Import/Export Row Changes"]
["From the 2017 year-end model to 2018 year-end Model"]
[]
[null,"Section","Line","Row"]
[1,"Information Sheet","AML Questions","Rows 20:26"]
[{"$f":"A6+1","v":2},"Form 1SFS","Removed Total Restricted Assets and Unsecured Policyholder Obligations","Formerly rows 306:308"]
[{"$f":"A7+1","v":3},"Sch V(e) ","Financial Market Scenario ","Rows 2725:2746"]
[4,"Sch V(e) ","Underwriting Stress Scenarios","Rows 2801:2924"]
[5,"Sch V(e) ","Liability Loss Accumulation Stress Scenario","Rows 2934:3061"]
[6,"Sch V(e) ","Cyber Risk Stress Scenario","Rows 3157:3499"]
[7,"Sch V(L)","Segregated Account Reporting","Rows 3876:5460"]

{"sheet":"Attachments","index":9,"n_rows":204,"n_cols":11,"rows_kept":204,"cut":false,"hidden":false,"merged":[[203,2,203,4],[194,2,194,4],[195,2,195,4],[196,2,196,4],[197,2,197,4],[198,2,198,4],[199,2,199,4],[200,2,200,4],[201,2,201,4],[202,2,202,4],[191,2,191,4],[192,2,192,4],[193,2,193,4],[143,2,143,4],[14,2,14,4],[15,2,15,4],[16,2,16,4],[17,2,17,4],[18,2,18,4],[19,2,19,4],[126,2,126,4],[20,2,20,4],[21,2,21,4],[22,2,22,4],[137,2,137,4],[138,2,138,4],[125,2,125,4],[124,2,124,4],[122,2,122,4],[123,2,123,4],[49,2,49,4],[50,2,50,4],[51,2,51,4],[52,2,52,4],[53,2,53,4],[23,2,23,4],[44,2,44,4],[45,2,45,4],[46,2,46,4],[47,2,47,4],[48,2,48,4],[25,2,25,4],[30,2,30,4],[32,2,32,4],[33,2,33,4],[39,2,39,4],[40,2,40,4],[41,2,41,4],[42,2,42,4],[130,2,130,4],[155,2,155,4],[156,2,156,4],[134,2,134,4],[135,2,135,4],[136,2,136,4],[140,2,140,4],[141,2,141,4],[142,2,142,4],[139,2,139,4],[59,2,59,4],[68,2,68,4],[69,2,69,4],[70,2,70,4],[71,2,71,4],[105,2,105,4],[104,2,104,4],[103,2,103,4],[87,2,87,4],[88,2,88,4],[73,2,73,4],[77,2,77,4],[79,2,79,4],[82,2,82,4],[74,2,74,4],[75,2,75,4],[66,2,66,4],[63,2,63,4],[64,2,64,4],[65,2,65,4],[67,2,67,4],[60,2,60,4],[61,2,61,4],[62,2,62,4],[54,2,54,4],[55,2,55,4],[56,2,56,4],[57,2,57,4],[149,2,149,4],[150,2,150,4],[151,2,151,4],[152,2,152,4],[78,2,78,4],[72,2,72,4],[99,2,99,4],[100,2,100,4],[101,2,101,4],[85,2,85,4],[106,2,106,4],[113,2,113,4],[111,2,111,4],[112,2,112,4],[109,2,109,4],[119,2,119,4],[118,2,118,4],[117,2,117,4],[58,2,58,4],[84,2,84,4],[91,2,91,4],[92,2,92,4],[93,2,93,4],[89,2,89,4],[90,2,90,4],[102,2,102,4],[95,2,95,4],[164,2,164,4],[115,2,115,4],[120,2,120,4],[116,2,116,4],[110,2,110,4],[107,2,107,4],[108,2,108,4],[114,2,114,4],[121,2,121,4],[96,2,96,4],[98,2,98,4],[127,2,127,4],[128,2,128,4],[131,2,131,4],[132,2,132,4],[133,2,133,4],[129,2,129,4],[4,2,4,4],[31,2,31,4],[24,2,24,4],[9,2,9,4],[10,2,10,4],[11,2,11,4],[5,2,5,4],[6,2,6,4],[7,2,7,4],[12,2,12,4],[8,2,8,4],[13,2,13,4],[26,2,26,4],[27,2,27,4],[28,2,28,4],[81,2,81,4],[80,2,80,4],[83,2,83,4],[29,2,29,4],[173,2,173,4],[36,2,36,4],[37,2,37,4],[38,2,38,4],[171,2,171,4],[172,2,172,4],[43,2,43,4],[34,2,34,4],[35,2,35,4],[76,2,76,4],[144,2,144,4],[145,2,145,4],[146,2,146,4],[147,2,147,4],[148,2,148,4],[167,2,167,4],[166,2,166,4],[86,2,86,4],[97,2,97,4],[94,2,94,4],[180,2,180,4],[181,2,181,4],[153,2,153,4],[176,2,176,4],[177,2,177,4],[178,2,178,4],[175,2,175,4],[157,2,157,4],[158,2,158,4],[154,2,154,4],[170,2,170,4],[159,2,159,4],[160,2,160,4],[163,2,163,4],[161,2,161,4],[162,2,162,4],[179,2,179,4],[168,2,168,4],[169,2,169,4],[174,2,174,4],[165,2,165,4],[189,2,189,4],[190,2,190,4],[183,2,183,4],[184,2,184,4],[185,2,185,4],[186,2,186,4],[187,2,187,4],[188,2,188,4],[182,2,182,4]]}
[null,"File Attachments",null,null,null,null,null,null,null,{"$f":"HYPERLINK(\"#'Index'!A1\",\"Return to Index\")","v":"Return to Index"}]
[]
[]
[null,null,null,null,null,null,null,null,null,"Input comment for each attached file here."]
[null,"1.","General purpose financial statement attachments",null,null,"<Attach file>","Attach","View","Remove",null,"Governance structure"]
[null,null,null,null,null,"<Attach file>","Attach","View","Remove",null,"Governance structure"]
[null,null,null,null,null,"<Attach file>","Attach","View","Remove",null,"Governance structure"]
[null,null,null,null,null,"<Attach file>","Attach","View","Remove",null,"Governance structure"]
[null,null,null,null,null,"<Attach file>","Attach","View","Remove",null,"Governance structure"]
[null,null,null,null,null,"<Attach file>","Attach","View","Remove",null,"Governance structure"]
[null,null,null,null,null,"<Attach file>","Attach","View","Remove",null,"Governance structure"]
[null,null,null,null,null,"<Attach file>","Attach","View","Remove",null,"Governance structure"]
[null,null,null,null,null,"<Attach file>","Attach","View","Remove",null,"Governance structure"]
[null,null,null,null,null,"<Attach file>","Attach","View","Remove","","Governance structure"]
[null,"2.","Financial Condition Report",null,null,"<Attach file>","Attach","View","Remove",null,"Governance structure"]
[null,null,null,null,null,"<Attach file>","Attach","View","Remove",null,"Governance structure"]
[null,null,null,null,null,"<Attach file>","Attach","View","Remove",null,"Governance structure"]
[null,null,null,null,null,"<Attach file>","Attach","View","Remove",null,"Governance structure"]
[null,null,null,null,null,"<Attach file>","Attach","View","Remove",null,"Governance structure"]
[null,null,null,null,null,"<Attach file>","Attach","View","Remove",null,"Governance structure"]
[null,null,null,null,null,"<Attach file>","Attach","View","Remove",null,"Governance structure"]
[null,null,null,null,null,"<Attach file>","Attach","View","Remove",null,"Governance structure"]
[null,null,null,null,null,"<Attach file>","Attach","View","Remove",null,"Governance structure"]
[null,null,null,null,null,"<Attach file>","Attach","View","Remove","","Governance structure"]
[null,"3.","Declaration of Compliance",null,null,"<Attach file>","Attach","View","Remove",null,"Intra-group exposures"]
[null,null,null,null,null,"<Attach file>","Attach","View","Remove",null,"Intra-group exposures"]
[null,null,null,null,null,"<Attach file>","Attach","View","Remove",null,"Intra-group exposures"]
[null,null,null,null,null,"<Attach file>","Attach","View","Remove",null,"Intra-group exposures"]
[null,null,null,null,null,"<Attach file>","Attach","View","Remove",null,"Intra-group exposures"]
[null,null,null,null,null,"<Attach file>","Attach","View","Remove",null,"Intra-group exposures"]
[null,null,null,null,null,"<Attach file>","Attach","View","Remove",null,"Intra-group exposures"]
[null,null,null,null,null,"<Attach file>","Attach","View","Remove",null,"Intra-group exposures"]
[null,null,null,null,null,"<Attach file>","Attach","View","Remove",null,"Intra-group exposures"]
[null,null,null,null,null,"<Attach file>","Attach","View","Remove","","Intra-group exposures"]
[null,"4.","CISSA attachments",null,null,"<Attach file>","Attach","View","Remove",null,"Description of the effective duration of assets and liabilities calculations and key assumptions"]
[null,null,null,null,null,"<Attach file>","Attach","View","Remove",null,"Description of the effective duration of assets and liabilities calculations and key assumptions"]
[null,null,null,null,null,"<Attach file>","Attach","View","Remove",null,"Description of the effective duration of assets and liabilities calculations and key assumptions"]
[null,null,null,null,null,"<Attach file>","Attach","View","Remove",null,"Description of the effective duration of assets and liabilities calculations and key assumptions"]
[null,null,null,null,null,"<Attach file>","Attach","View","Remove",null,"Description of the effective duration of assets and liabilities calculations and key assumptions"]
[null,null,null,null,null,"<Attach file>","Attach","View","Remove",null,"Description of the effective duration of assets and liabilities calculations and key assumptions"]
[null,null,null,null,null,"<Attach file>","Attach","View","Remove",null,"Description of the effective duration of assets and liabilities calculations and key assumptions"]
[null,null,null,null,null,"<Attach file>","Attach","View","Remove",null,"Description of the effective duration of assets and liabilities calculations and key assumptions"]
[null,null,null,null,null,"<Attach file>","Attach","View","Remove",null,"Description of the effective duration of assets and liabilities calculations and key assumptions"]
[null,null,null,null,null,"<Attach file>","Attach","View","Remove",null,"Description of the effective duration of assets and liabilities calculations and key assumptions"]
[null,"5.","Form 1EBS Attachments - Collateral Balances and Sundry Assets/Liabilities",null,null,"<Attach file>","Attach","View","Remove",null,"Financial impact and description of stress & scenarios"]
[null,null,null,null,null,"<Attach file>","Attach","View","Remove",null,"Financial impact and description of stress & scenarios"]
[null,null,null,null,null,"<Attach file>","Attach","View","Remove",null,"Financial impact and description of stress & scenarios"]
[null,null,null,null,null,"<Attach file>","Attach","View","Remove",null,"Financial impact and description of stress & scenarios"]
[null,null,null,null,null,"<Attach file>","Attach","View","Remove",null,"Financial impact and description of stress & scenarios"]
[null,null,null,null,null,"<Attach file>","Attach","View","Remove",null,"Financial impact and description of stress & scenarios"]
[null,null,null,null,null,"<Attach file>","Attach","View","Remove",null,"Financial impact and description of stress & scenarios"]
[null,null,null,null,null,"<Attach file>","Attach","View","Remove",null,"Financial impact and description of stress & scenarios"]
[null,null,null,null,null,"<Attach file>","Attach","View","Remove",null,"Financial impact and description of stress & scenarios"]
[null,null,null,null,null,"<Attach file>","Attach","View","Remove",null,"Financial impact and description of stress & scenarios"]
[null,"6.","Form 1EBS Attachments - General Business Reserves & Actuarial Memorandum",null,null,"<Attach file>","Attach","View","Remove",null,"Financial impact and description of stress & scenarios"]
[null,null,null,null,null,"<Attach file>","Attach","View","Remove",null,"Financial impact and description of stress & scenarios"]
[null,null,null,null,null,"<Attach file>","Attach","View","Remove",null,"Financial impact and description of stress & scenarios"]
[null,null,null,null,null,"<Attach file>","Attach","View","Remove",null,"Financial impact and description of stress & scenarios"]
[null,null,null,null,null,"<Attach file>","Attach","View","Remove",null,"Financial impact and description of stress & scenarios"]
[null,null,null,null,null,"<Attach file>","Attach","View","Remove",null,"Financial impact and description of stress & scenarios"]
[null,null,null,null,null,"<Attach file>","Attach","View","Remove",null,"Financial impact and description of stress & scenarios"]
[null,null,null,null,null,"<Attach file>","Attach","View","Remove",null,"Financial impact and description of stress & scenarios"]
[null,null,null,null,null,"<Attach file>","Attach","View","Remove",null,"Financial impact and description of stress & scenarios"]
[null,null,null,null,null,"<Attach file>","Attach","View","Remove",null,"Financial impact and description of stress & scenarios"]
[null,"7.","Governance and group structure",null,null,"<Attach file>","Attach","View","Remove",null,"Financial impact and description of stress & scenarios"]
[null,null,null,null,null,"<Attach file>","Attach","View","Remove",null,"Financial impact and description of stress & scenarios"]
[null,null,null,null,null,"<Attach file>","Attach","View","Remove",null,"Financial impact and description of stress & scenarios"]
[null,null,null,null,null,"<Attach file>","Attach","View","Remove",null,"Financial impact and description of stress & scenarios"]
[null,null,null,null,null,"<Attach file>","Attach","View","Remove",null,"Financial impact and description of stress & scenarios"]
[null,null,null,null,null,"<Attach file>","Attach","View","Remove",null,"Financial impact and description of stress & scenarios"]
[null,null,null,null,null,"<Attach file>","Attach","View","Remove",null,"Financial impact and description of stress & scenarios"]
[null,null,null,null,null,"<Attach file>","Attach","View","Remove",null,"Financial impact and description of stress & scenarios"]
[null,null,null,null,null,"<Attach file>","Attach","View","Remove",null,"Financial impact and description of stress & scenarios"]
[null,null,null,null,null,"<Attach file>","Attach","View","Remove",null,"Financial impact and description of stress & scenarios"]
[null,"8.","Organisational Chart",null,null,"<Attach file>","Attach","View","Remove",null,"Investment policy"]
[null,null,null,null,null,"<Attach file>","Attach","View","Remove",null,"Investment policy"]
[null,null,null,null,null,"<Attach file>","Attach","View","Remove",null,"Investment policy"]
[null,null,null,null,null,"<Attach file>","Attach","View","Remove",null,"Investment policy"]
[null,null,null,null,null,"<Attach file>","Attach","View","Remove",null,"Investment policy"]
[null,null,null,null,null,"<Attach file>","Attach","View","Remove",null,"Investment policy"]
[null,null,null,null,null,"<Attach file>","Attach","View","Remove",null,"Investment policy"]
[null,null,null,null,null,"<Attach file>","Attach","View","Remove",null,"Investment policy"]
[null,null,null,null,null,"<Attach file>","Attach","View","Remove",null,"Investment policy"]
[null,null,null,null,null,"<Attach file>","Attach","View","Remove",null,"Investment policy"]
[null,"9.","Intra-group transactions and risk concentrations",null,null,"<Attach file>","Attach","View","Remove",null,"Description of underwriting strategy"]
[null,null,null,null,null,"<Attach file>","Attach","View","Remove",null,"Description of underwriting strategy"]
[null,null,null,null,null,"<Attach file>","Attach","View","Remove",null,"Description of underwriting strategy"]
[null,null,null,null,null,"<Attach file>","Attach","View","Remove",null,"Description of underwriting strategy"]
[null,null,null,null,null,"<Attach file>","Attach","View","Remove",null,"Description of underwriting strategy"]
[null,null,null,null,null,"<Attach file>","Attach","View","Remove",null,"Description of underwriting strategy"]
[null,null,null,null,null,"<Attach file>","Attach","View","Remove",null,"Description of underwriting strategy"]
[null,null,null,null,null,"<Attach file>","Attach","View","Remove",null,"Description of underwriting strategy"]
[null,null,null,null,null,"<Attach file>","Attach","View","Remove",null,"Description of underwriting strategy"]
[null,null,null,null,null,"<Attach file>","Attach","View","Remove",null,"Description of underwriting strategy"]
[null,"10.","Description of the effective duration of assets and liabilities calculations and key assumptions",null,null,"<Attach file>","Attach","View","Remove",null,"Financial impact and description of stress & scenarios"]
[null,null,null,null,null,"<Attach file>","Attach","View","Remove",null,"Financial impact and description of stress & scenarios"]
[null,null,null,null,null,"<Attach file>","Attach","View","Remove",null,"Financial impact and description of stress & scenarios"]
[null,null,null,null,null,"<Attach file>","Attach","View","Remove",null,"Financial impact and description of stress & scenarios"]
[null,null,null,null,null,"<Attach file>","Attach","View","Remove",null,"Financial impact and description of stress & scenarios"]
[null,null,null,null,null,"<Attach file>","Attach","View","Remove",null,"Financial impact and description of stress & scenarios"]
[null,null,null,null,null,"<Attach file>","Attach","View","Remove",null,"Financial impact and description of stress & scenarios"]
[null,null,null,null,null,"<Attach file>","Attach","View","Remove",null,"Financial impact and description of stress & scenarios"]
[null,null,null,null,null,"<Attach file>","Attach","View","Remove",null,"Financial impact and description of stress & scenarios"]
[null,null,null,null,null,"<Attach file>","Attach","View","Remove",null,"Financial impact and description of stress & scenarios"]
[null,"11.","Investments, derivatives and strategies policy",null,null,"<Attach file>","Attach","View","Remove",null,"Description of the insurer's risk management program"]
[null,null,null,null,null,"<Attach file>","Attach","View","Remove",null,"Description of the insurer's risk management program"]
[null,null,null,null,null,"<Attach file>","Attach","View","Remove",null,"Description of the insurer's risk management program"]
[null,null,null,null,null,"<Attach file>","Attach","View","Remove",null,"Description of the insurer's risk management program"]
[null,null,null,null,null,"<Attach file>","Attach","View","Remove",null,"Description of the insurer's risk management program"]
[null,null,null,null,null,"<Attach file>","Attach","View","Remove",null,"Description of the insurer's risk management program"]
[null,null,null,null,null,"<Attach file>","Attach","View","Remove",null,"Description of the insurer's risk management program"]
[null,null,null,null,null,"<Attach file>","Attach","View","Remove",null,"Description of the insurer's risk management program"]
[null,null,null,null,null,"<Attach file>","Attach","View","Remove",null,"Description of the insurer's risk management program"]
[null,null,null,null,null,"<Attach file>","Attach","View","Remove",null,"Description of the insurer's risk management program"]
[null,"12.","Bonds and debentures that have been reclassed in accordance with the NAIC",null,null,"<Attach file>","Attach","View","Remove",null,"Risk register"]
[null,null,null,null,null,"<Attach file>","Attach","View","Remove",null,"Risk register"]
[null,null,null,null,null,"<Attach file>","Attach","View","Remove",null,"Risk register"]
[null,null,null,null,null,"<Attach file>","Attach","View","Remove",null,"Risk register"]
[null,null,null,null,null,"<Attach file>","Attach","View","Remove",null,"Risk register"]
[null,null,null,null,null,"<Attach file>","Attach","View","Remove",null,"Risk register"]
[null,null,null,null,null,"<Attach file>","Attach","View","Remove",null,"Risk register"]
[null,null,null,null,null,"<Attach file>","Attach","View","Remove",null,"Risk register"]
[null,null,null,null,null,"<Attach file>","Attach","View","Remove",null,"Risk register"]
[null,null,null,null,null,"<Attach file>","Attach","View","Remove",null,"Risk register"]
[null,"13.","Mutual Fund Disclosure",null,null,"<Attach file>","Attach","View","Remove",null,"CISSA Attachments"]
[null,null,null,null,null,"<Attach file>","Attach","View","Remove",null,"CISSA Attachments"]
[null,null,null,null,null,"<Attach file>","Attach","View","Remove",null,"CISSA Attachments"]
[null,null,null,null,null,"<Attach file>","Attach","View","Remove",null,"CISSA Attachments"]
[null,null,null,null,null,"<Attach file>","Attach","View","Remove",null,"CISSA Attachments"]
[null,null,null,null,null,"<Attach file>","Attach","View","Remove",null,"CISSA Attachments"]
[null,null,null,null,null,"<Attach file>","Attach","View","Remove",null,"CISSA Attachments"]
[null,null,null,null,null,"<Attach file>","Attach","View","Remove",null,"CISSA Attachments"]
[null,null,null,null,null,"<Attach file>","Attach","View","Remove",null,"CISSA Attachments"]
[null,null,null,null,null,"<Attach file>","Attach","View","Remove",null,"CISSA Attachments"]
[null,"14.","Description of underwriting strategy",null,null,"<Attach file>","Attach","View","Remove",null,"CISSA Attachments"]
[null,null,null,null,null,"<Attach file>","Attach","View","Remove",null,"CISSA Attachments"]
[null,null,null,null,null,"<Attach file>","Attach","View","Remove",null,"CISSA Attachments"]
[null,null,null,null,null,"<Attach file>","Attach","View","Remove",null,"CISSA Attachments"]
[null,null,null,null,null,"<Attach file>","Attach","View","Remove",null,"CISSA Attachments"]
[null,null,null,null,null,"<Attach file>","Attach","View","Remove",null,"CISSA Attachments"]
[null,null,null,null,null,"<Attach file>","Attach","View","Remove",null,"CISSA Attachments"]
[null,null,null,null,null,"<Attach file>","Attach","View","Remove",null,"CISSA Attachments"]
[null,null,null,null,null,"<Attach file>","Attach","View","Remove",null,"CISSA Attachments"]
[null,null,null,null,null,"<Attach file>","Attach","View","Remove",null,"CISSA Attachments"]
[null,"15.","Financial impact and description of stress & scenarios",null,null,"<Attach file>","Attach","View","Remove",null,"CISSA Attachments"]
[null,null,null,null,null,"<Attach file>","Attach","View","Remove",null,"CISSA Attachments"]
[null,null,null,null,null,"<Attach file>","Attach","View","Remove",null,"CISSA Attachments"]
[null,null,null,null,null,"<Attach file>","Attach","View","Remove",null,"CISSA Attachments"]
[null,null,null,null,null,"<Attach file>","Attach","View","Remove",null,"CISSA Attachments"]
[null,null,null,null,null,"<Attach file>","Attach","View","Remove",null,"CISSA Attachments"]
[null,null,null,null,null,"<Attach file>","Attach","View","Remove",null,"CISSA Attachments"]
[null,null,null,null,null,"<Attach file>","Attach","View","Remove",null,"CISSA Attachments"]
[null,null,null,null,null,"<Attach file>","Attach","View","Remove",null,"CISSA Attachments"]
[null,null,null,null,null,"<Attach file>","Attach","View","Remove",null,"CISSA Attachments"]
[null,"16.","Description of the insurer's risk management program",null,null,"<Attach file>","Attach","View","Remove",null,"Other Attachments"]
[null,null,null,null,null,"<Attach file>","Attach","View","Remove",null,"Other Attachments"]
[null,null,null,null,null,"<Attach file>","Attach","View","Remove",null,"Other Attachments"]
[null,null,null,null,null,"<Attach file>","Attach","View","Remove",null,"Other Attachments"]
[null,null,null,null,null,"<Attach file>","Attach","View","Remove",null,"Other Attachments"]
[null,null,null,null,null,"<Attach file>","Attach","View","Remove",null,"Other Attachments"]
[null,null,null,null,null,"<Attach file>","Attach","View","Remove",null,"Other Attachments"]
[null,null,null,null,null,"<Attach file>","Attach","View","Remove",null,"Other Attachments"]
[null,null,null,null,null,"<Attach file>","Attach","View","Remove",null,"Other Attachments"]
[null,null,null,null,null,"<Attach file>","Attach","View","Remove",null,"Other Attachments"]
[null,"17.","Risk register",null,null,"<Attach file>","Attach","View","Remove",null,"Other Attachments"]
[null,null,null,null,null,"<Attach file>","Attach","View","Remove",null,"Other Attachments"]
[null,null,null,null,null,"<Attach file>","Attach","View","Remove",null,"Other Attachments"]
[null,null,null,null,null,"<Attach file>","Attach","View","Remove",null,"Other Attachments"]
[null,null,null,null,null,"<Attach file>","Attach","View","Remove",null,"Other Attachments"]
[null,null,null,null,null,"<Attach file>","Attach","View","Remove",null,"Other Attachments"]
[null,null,null,null,null,"<Attach file>","Attach","View","Remove",null,"Other Attachments"]
[null,null,null,null,null,"<Attach file>","Attach","View","Remove",null,"Other Attachments"]
[null,null,null,null,null,"<Attach file>","Attach","View","Remove",null,"Other Attachments"]
[null,null,null,null,null,"<Attach file>","Attach","View","Remove",null,"Other Attachments"]
[null,"18.","Reconciliation to Company Specific Parameters",null,null,"<Attach file>","Attach","View","Remove",null,"Other Attachments"]
[null,null,null,null,null,"<Attach file>","Attach","View","Remove",null,"Other Attachments"]
[null,null,null,null,null,"<Attach file>","Attach","View","Remove",null,"Other Attachments"]
[null,null,null,null,null,"<Attach file>","Attach","View","Remove",null,"Other Attachments"]
[null,null,null,null,null,"<Attach file>","Attach","View","Remove",null,"Other Attachments"]
[null,null,null,null,null,"<Attach file>","Attach","View","Remove",null,"Other Attachments"]
[null,null,null,null,null,"<Attach file>","Attach","View","Remove",null,"Other Attachments"]
[null,null,null,null,null,"<Attach file>","Attach","View","Remove",null,"Other Attachments"]
[null,null,null,null,null,"<Attach file>","Attach","View","Remove",null,"Other Attachments"]
[null,null,null,null,null,"<Attach file>","Attach","View","Remove",null,"Other Attachments"]
[null,"19.","Other Attachments",null,null,"<Attach file>","Attach","View","Remove",null,"Other Attachments"]
[null,null,null,null,null,"<Attach file>","Attach","View","Remove",null,"Other Attachments"]
[null,null,null,null,null,"<Attach file>","Attach","View","Remove",null,"Other Attachments"]
[null,null,null,null,null,"<Attach file>","Attach","View","Remove",null,"Other Attachments"]
[null,null,null,null,null,"<Attach file>","Attach","View","Remove",null,"Other Attachments"]
[null,null,null,null,null,"<Attach file>","Attach","View","Remove",null,"Other Attachments"]
[null,null,null,null,null,"<Attach file>","Attach","View","Remove",null,"Other Attachments"]
[null,null,null,null,null,"<Attach file>","Attach","View","Remove",null,"Other Attachments"]
[null,null,null,null,null,"<Attach file>","Attach","View","Remove","","Other Attachments"]
[null,null,null,null,null,"<Attach file>","Attach","View","Remove","","Other Attachments"]
[null,"20.","Other Attachments",null,null,"<Attach file>","Attach","View","Remove",null,"Other Attachments"]
[null,null,null,null,null,"<Attach file>","Attach","View","Remove",null,"Other Attachments"]
[null,null,null,null,null,"<Attach file>","Attach","View","Remove",null,"Other Attachments"]
[null,null,null,null,null,"<Attach file>","Attach","View","Remove",null,"Other Attachments"]
[null,null,null,null,null,"<Attach file>","Attach","View","Remove",null,"Other Attachments"]
[null,null,null,null,null,"<Attach file>","Attach","View","Remove",null,"Other Attachments"]
[null,null,null,null,null,"<Attach file>","Attach","View","Remove",null,"Other Attachments"]
[null,null,null,null,null,"<Attach file>","Attach","View","Remove",null,"Other Attachments"]
[null,null,null,null,null,"<Attach file>","Attach","View","Remove",null,"Other Attachments"]
[null,null,null,null,null,"<Attach file>","Attach","View","Remove",null,"Other Attachments"]

{"sheet":"FileStorage","index":10,"n_rows":0,"n_cols":0,"rows_kept":0,"cut":false,"hidden":true,"merged":[]}

{"sheet":"Declaration","index":11,"n_rows":89,"n_cols":16,"rows_kept":89,"cut":false,"hidden":false,"merged":[[0,0,0,2],[5,1,5,3]]}
["CAPITAL AND SOLVENCY RETURN DECLARATION",null,null,{"$f":"HYPERLINK(\"#'Index'!A1\",\"Return to Index\")","v":"Return to Index"},null,null,null,null,null,null,null,null,null,null,null,{"$f":"IF(C4=\"\",\"\",TEXT(DATE(YEAR(C4+1)-1,MONTH(C4+1),DAY(C4+1)),\"mm/dd/yyyy\"))","v":"01/01/2019"}]
[null,null,null,null,null,null,null,"",null,null,null,null,null,null,null,{"$f":"IF(C4=\"\",\"\",TEXT(C4,\"mm/dd/yyyy\"))","v":"12/31/2019"}]
[null,{"$f":"'Company Information'!C7","v":"Enter Company Name"}]
[null,"For the Year Ending ",{"$f":"'Company Information'!C3","v":"2019-12-31"},null,null,null,null,""]
[]
[null,"We declare that to the best of our knowledge and belief, the information in this Capital and Solvency Return fairly represents the financial condition of the Company in all material respects."]
[]
[]
[null,"Signatory:",null,null,null,null,"brrt_DeclarationSIgnatory"]
[]
[null,"Print Name:",{"$f":"+Import!E5","v":0},null,null,null,"brrt_DeclarationPrintName"]
[null,null,"Director",null,null,null,"brrt_DeclarationTitle"]
[null,null,null,null,null,null,""]
[null,"Date:",{"$f":"+Import!E6","v":"00:00:00"},null,null,null,"brrt_DeclarationDate"]
[null,null,null,null,null,null,"brrt_Declaration",{"$f":"XBRLMapTuple(G15,$P$1,$P$2,\"BMA\",CONFIGURATION!$B$1,\"bscr\",\"\",CONFIGURATION!$B$12,G12,C12,G9,C9,G11,C11,G14,C14)","v":"Mapped"}]
[]
[null,"Signatory:",null,null,null,null,"brrt_DeclarationSIgnatory"]
[]
[null,"Print Name:",{"$f":"+Import!E7","v":0},null,null,null,"brrt_DeclarationPrintName"]
[null,null,"Director",null,null,null,"brrt_DeclarationTitle"]
[null,null,null,null,null,null,""]
[null,"Date:",{"$f":"+Import!E8","v":"00:00:00"},null,null,null,"brrt_DeclarationDate"]
[null,null,null,null,null,null,"brrt_Declaration",{"$f":"XBRLMapTuple(G23,$P$1,$P$2,\"BMA\",CONFIGURATION!$B$1,\"bscr\",\"\",CONFIGURATION!$B$12,G20,C20,G17,C17,G19,C19,G22,C22)","v":"Mapped"}]
[null,"Signatory:",null,null,null,null,"brrt_DeclarationSIgnatory"]
[]
[null,"Print Name:",{"$f":"+Import!E9","v":0},null,null,null,"brrt_DeclarationPrintName"]
[null,null,{"$f":"IF('Company Information'!F11=\"Class 3A\",\"Principal Representative\",\"Chief Risk Officer or Chief Financial Officer\")","v":"Chief Risk Officer or Chief Financial Officer"},null,null,null,"brrt_DeclarationTitle"]
[null,null,null,null,null,null,""]
[null,"Date:",{"$f":"+Import!E10","v":"00:00:00"},null,null,null,"brrt_DeclarationDate"]
[null,null,null,null,null,null,"brrt_Declaration",{"$f":"XBRLMapTuple(G30,$P$1,$P$2,\"BMA\",CONFIGURATION!$B$1,\"bscr\",\"\",CONFIGURATION!$B$12,G27,C27,G24,C24,G26,C26,G29,C29)","v":"Mapped"}]
[null,"Insurer Name:",{"$f":"B3","v":"Enter Company Name"}]
[]
[null,"Year-end:",{"$f":"C4","v":"2019-12-31"}]
[]
[]
[]
[]
[]
[]
[]
[]
[]
[]
[]
[]
[]
[]
[]
[]
[]
[]
[]
[]
[]
[]
[]
[]
[]
[]
[]
[]
[]
[]
[]
[]
[]
[]
[]
[]
[]
[]
[]
[]
[]
[]
[]
[]
[]
[]
[]
[]
[]
[]
[]
[]
[]
[]
[]
[null,null,null,null,null,null,null,""]

{"sheet":"Zones","index":12,"n_rows":143,"n_cols":12,"rows_kept":143,"cut":false,"hidden":false,"merged":[[134,3,134,9]]}
[null,"ZONE CATEGORISATION AND BSCR RATING SCHEDULE",null,null,null,null,null,null,null,null,{"$f":"HYPERLINK(\"#'Index'!A1\",\"Return to Index\")","v":"Return to Index"}]
[null,{"$f":"+'Company Information'!C7","v":"Enter Company Name"}]
[null,"ZONE CATEGORISATION "]
[null,null,"Zone 1 - Central & Western Asia"]
[null,null,null,"Armenia",null,"Azerbaijan",null,"Bahrain",null,"Georgia"]
[null,null,null,"Iraq",null,"Israel",null,"Jordan",null,"Kazakhstan"]
[null,null,null,"Kuwait",null,"Kyrgyzstan",null,"Lebanon",null,"Oman"]
[null,null,null,"Palestinian",null,"Qatar",null,"Saudi Arabia",null,"Saudi Arab Republic"]
[null,null,null,"Tajikistan",null,"Turkey",null,"Turkmenistan",null,"United Arab Emirates"]
[null,null,null,"Uzbekistan",null,"Yemen"]
[]
[]
[null,null,"Zone 2 - Eastern Asia"]
[null,null,null,"China",null,"Hong Kong",null,"Japan",null,"Macao"]
[null,null,null,"Mongolia",null,"North Korea",null,"South Korea",null,"Taiwan"]
[]
[]
[null,null,"Zone 3 - South and South-Eastern Asia"]
[null,null,null,"Afghanistan",null,"Bangladesh",null,"Bhutan",null,"Brunei Darussalam"]
[null,null,null,"Cambodia",null,"India",null,"Indonesia",null,"Iran"]
[null,null,null,"Lao PDR",null,"Malaysia",null,"Maldives",null,"Myanmar"]
[null,null,null,"Nepal",null,"Pakistan",null,"Philippines",null,"Singapore"]
[null,null,null,"Sri Lanka",null,"Thailand",null,"Timor-Leste",null,"Vietnam"]
[]
[]
[null,null,"Zone 4 - Oceania"]
[null,null,null,"American Samoa",null,"Australia",null,"Cook Islands",null,"Fiji"]
[null,null,null,"French Polynesia",null,"Guam",null,"Kiribati",null,"Marshall Islands"]
[null,null,null,"Micronesia",null,"Nauru",null,"New Caledonia",null,"New Zealand"]
[null,null,null,"Niue",null,"Norfolk Island",null,"N. Mariana Islands",null,"Palau"]
[null,null,null,"Papua New Guinea",null,"Pitcairn",null,"Samoa",null,"Solomon Islands"]
[null,null,null,"Tokelau",null,"Tonga",null,"Tuvalu",null,"Vanuatu"]
[null,null,null,"Wallis & Futuna Islands"]
[]
[]
[null,null,"Zone 5 - Northern Africa"]
[null,null,null,"Algeria",null,"Benin",null,"Burkina Faso",null,"Cameroon"]
[null,null,null,"Cape Verde",null,"Central African Republic",null,"Chad",null,"Cote d' Ivoire"]
[null,null,null,"Egypt",null,"Gambia",null,"Ghana",null,"Guinea"]
[null,null,null,"Guinea-Bissau",null,"Liberia",null,"Libya",null,"Mali"]
[null,null,null,"Mauritania",null,"Morocco",null,"Niger",null,"Nigeria"]
[null,null,null,"Saint Helena",null,"Senegal",null,"Sierra Leone",null,"Sudan"]
[null,null,null,"Togo",null,"Tunisia",null,"Western Sahara"]
[]
[]
[null,null,"Zone 6 - Southern Africa"]
[null,null,null,"Angola",null,"Botswana",null,"Burundi",null,"Democratic Republic of Congo"]
[null,null,null,"Comoros",null,"Djibouti",null,"Equatorial Guinea",null,"Eritrea"]
[null,null,null,"Ethiopia",null,"Gabon",null,"Kenya",null,"Lesotho"]
[null,null,null,"Madagascar",null,"Malawi",null,"Mauritius",null,"Mayotte"]
[null,null,null,"Mozambique",null,"Namibia",null,"Republic of Congo",null,"Reunion"]
[null,null,null,"Rwanda",null,"Sao Tome & Principe",null,"Seychelles",null,"Somalia"]
[null,null,null,"South Africa",null,"Swaziland",null,"Uganda",null,"United Republic of Tanzania"]
[null,null,null,"Zambia",null,"Zimbabwe"]
[]
[]
[null,null,"Zone 7 - Eastern Europe"]
[null,null,null,"Belarus",null,"Bulgaria",null,"Czech Republic",null,"Hungary"]
[null,null,null,"Moldova",null,"Poland",null,"Romania",null,"Russian Federation"]
[null,null,null,"Slovakia",null,"Ukraine"]
[]
[null,null,"Zone 8 - Northern Europe"]
[null,null,null,"Aland Islands",null,"Channel Islands",null,"Denmark",null,"Estonia"]
[null,null,null,"Faeroe Islands",null,"Finland",null,"Guernsey",null,"Iceland"]
[null,null,null,"Republic of Ireland",null,"Isle of Man",null,"Jersey",null,"Latvia"]
[null,null,null,"Lithuania",null,"Norway",null,"Svalbard, Jan Mayen",null,"Sweden"]
[null,null,null,"United Kingdom"]
[]
[]
[null,null,"Zone 9 - Southern Europe"]
[null,null,null,"Albania",null,"Andorra",null,"Bosnia",null,"Croatia"]
[null,null,null,"Cyprus",null,"Gibraltar",null,"Greece",null,"Italy"]
[null,null,null,"fYR of Macedonia",null,"Malta",null,"Montenegro",null,"Portugal"]
[null,null,null,"San Marino",null,"Serbia",null,"Slovenia",null,"Spain"]
[null,null,null,"Vatican City"]
[]
[]
[null,null,"Zone 10 - Western Europe"]
[null,null,null,"Austria",null,"Belgium",null,"France",null,"Germany"]
[null,null,null,"Liechtenstein",null,"Luxembourg",null,"Monaco",null,"Netherlands"]
[null,null,null,"Switzerland"]
[]
[]
[null,null,"Zone 11 - Northern America (Excluding USA)"]
[null,null,null,"Bermuda",null,"Canada",null,"Greenland",null,"St Pierre & Miquelon"]
[]
[]
[null,null,"Zone 12 - Caribbean & Central America"]
[]
[null,null,null,"Anguilla",null,"Antigua & Barbuda",null,"Aruba",null,"Bahamas"]
[null,null,null,"Barbados",null,"Belize",null,"British Virgin Islands",null,"Cayman Islands"]
[null,null,null,"Costa Rica",null,"Cuba",null,"Dominica",null,"Dominican Republic"]
[null,null,null,"El Salvador",null,"Grenada",null,"Guadeloupe",null,"Guatemala"]
[null,null,null,"Haiti",null,"Honduras",null,"Jamaica",null,"Martinique"]
[null,null,null,"Mexico",null,"Montserrat",null,"Netherlands Antilles",null,"Nicaragua"]
[null,null,null,"Panama",null,"Puerto Rico",null,"St-Barthelemy",null,"St Kitts & Nevis"]
[null,null,null,"St Lucia",null,"St Martin",null,"St Vincent",null,"Trinidad & Tobago",null,"Tobago"]
[null,null,null,"Turks & Caicos Islands",null,"US Virgin Islands"]
[]
[]
[null,null,"Zone 13 - Eastern South America"]
[null,null,null,"Brazil",null,"Falkland Islands",null,"French Guiana",null,"Guyana"]
[null,null,null,"Paraguay",null,"Suriname",null,"Uruguay"]
[]
[]
[null,null,"Zone 14 - Northern, Southern and Western South America"]
[null,null,null,"Argentina",null,"Bolivia",null,"Chile",null,"Colombia"]
[null,null,null,"Ecuador",null,"Peru",null,"Venezuela"]
[]
[null,null,"Zone 15 - North-East United States"]
[null,null,null,"Connecticut",null,"Delaware",null,"District of Columbia",null,"Maine"]
[null,null,null,"Maryland",null,"Massachusetts",null,"New Hampshire",null,"New Jersey"]
[null,null,null,"New York",null,"Pennsylvania",null,"Rhode Island",null,"Vermont"]
[]
[null,null,"Zone 16 - South-East United States"]
[null,null,null,"Alabama",null,"Arkansas",null,"Florida",null,"Georgia"]
[null,null,null,"Kentucky",null,"Louisiana",null,"Mississippi",null,"North Carolina"]
[null,null,null,"South Carolina",null,"Tennessee",null,"Virginia",null,"West Virigina"]
[]
[]
[null,null,"Zone 17 - Mid-West United States"]
[null,null,null,"Illinois",null,"Indiana",null,"Iowa",null,"Kansas"]
[null,null,null,"Michigan",null,"Minnesota",null,"Missouri",null,"Nebraska"]
[null,null,null,"North Dakota",null,"Ohio",null,"Oklahoma",null,"South Dakota"]
[null,null,null,"Wisconsin"]
[]
[null,null,"Zone 18 - Western United States"]
[null,null,null,"Alaska",null,"Arizona",null,"California",null,"Colorado"]
[null,null,null,"Hawaii",null,"Idaho",null,"Montana",null,"Nevada"]
[null,null,null,"New Mexico",null,"Oregon",null,"Texas",null,"Utah"]
[null,null,null,"Washington",null,"Wyoming"]
[]
[null,"BSCR RATING SCHEDULE"]
[null,null,null,"Standard & Poor’s",null,"Moody’s",null,"AM Best",null,"Fitch"]
[null,0,null,"Sovereign debt issued by a country in its own currency that is rated AA- or better"]
[null,1,null,"AAA",null,"Aaa",null,"A++",null,"AAA"]
[null,2,null,"AA+ to AA-",null,"Aa1 to Aa3",null,"A+",null,"AA+ to AA-"]
[null,3,null,"A+ to A-",null,"A1 to A3",null,"A",null,"A+ to A-"]
[null,4,null,"BBB+ to BBB-",null,"Baa1 to Baa3",null,"A-",null,"BBB+ to BBB-"]
[null,5,null,"BB+ to BB-",null,"Ba1 to Ba3",null,"B++ to B",null,"BB+ to BB-"]
[null,6,null,"B+ to B-",null,"B1 to B3",null,"B- to C+",null,"B+ to B-"]
[null,7,null,"CCC+ to CCC-",null,"Caa1 to Caa3",null,"C, C-",null,"CCC+ to CCC-"]
[null,8,null,"Below CCC-",null,"Below Caa3",null,"Below C-",null,"Below CCC-"]

{"sheet":"Information Sheet","index":13,"n_rows":131,"n_cols":12,"rows_kept":131,"cut":false,"hidden":false,"merged":[[8,2,9,6],[42,2,44,6],[86,2,87,6],[88,2,90,6],[28,2,28,6],[31,2,31,6]]}
[null,"Insurer Information Sheet",null,null,null,null,null,{"$f":"HYPERLINK(\"#'Index'!A1\",\"Return to Index\")","v":"Return to Index"}]
[]
[null,"(a)","Name of Insurer:",null,null,null,null,{"$f":"+'Company Information'!C7","v":"Enter Company Name"}]
[]
[null,"(b)","Certificate of Registration Number",null,null,null,null,{"$f":"+'Company Information'!F9","v":0}]
[]
[null,"(c)","Class of Registration:",null,null,null,null,{"$f":"+'Company Information'!F11","v":"Class 3B"},null,null,"brrt_DeclarationSIgnatory"]
[]
[null,"(d)","Statements are available at the insurer's registered office in Bermuda pursuant to section 17(1) or, as the case may be, have been filed pursuant to section 17(3) of the Act",null,null,null,null,{"$f":"Import!E12","v":"Select Yes/No"}]
[]
[]
[null,"(e)","Filing Period:",null,null,null,null,null,null,null,"brrt_DeclarationPrintName"]
[null,null,"Period Start Date:",null,null,null,null,{"$f":"Import!E13","v":"00:00:00"},null,null,"brrt_DeclarationTitle"]
[null,null,"Period End Date:",null,null,null,null,{"$f":"+'Company Information'!C3","v":"2019-12-31"}]
[]
[null,"(f)","Currency used in the statutory financial statements:",null,null,null,null,{"$f":"+'Form 1SFS'!C5","v":"United States Dollars"}]
[null,null,null,null,null,null,null,null,null,null,""]
[null,"(g)","To prepare this return, the figures extracted were translated into Bermuda Dollars at",null,null,null,null,{"$f":"Import!E14","v":0}]
[]
[null,"(h)","Ultimate Parent",null,null,null,null,{"$f":"Import!E15","v":0},null,null,"brrt_DeclarationPrintName"]
[null,null,null,null,null,null,null,null,null,null,"brrt_DeclarationTitle"]
[null,"(i)","Insurer's Parent Company",null,null,null,null,{"$f":"Import!E16","v":0},null,null,"brrt_DeclarationSIgnatory"]
[]
[null,"(j)","Industry Sector of the Insurer's Parent",null,null,null,null,{"$f":"Import!E17","v":"Select from Drop-Down"}]
[null,null,null,null,null,null,null,null,null,null,"brrt_DeclarationPrintName"]
[null,"(k)","Insurer's Ownership Structure",null,null,null,null,{"$f":"Import!E18","v":"Select from Drop-Down"},null,null,"brrt_DeclarationDate"]
[null,null,null,null,null,null,null,null,null,null,"brrt_Declaration",{"$f":"XBRLMapTuple(K27,$T$1,#REF!,\"BMA\",CONFIGURATION!$B$1,\"bscr\",\"\",CONFIGURATION!$B$12,K28,D28,#REF!,#REF!,K25,D25,K26,D26)","v":{"$error":"#VALUE!"}}]
[null,"(l)","Insurer's Company Structure",null,null,null,null,{"$f":"Import!E19","v":"Select from Drop-Down"},null,null,"brrt_DeclarationTitle"]
[null,"(l).1","Confirm if the Company has written or currently writes Long-Term insurance",null,null,null,null,{"$f":"Import!E20","v":"Select Yes/No"}]
[null,"(l).2","Did the Company actively write Long-Term insurance business during the financial period",null,null,null,null,{"$f":"Import!E21","v":"Select Yes/No"}]
[null,"(l).3","If the Company has subsidiaries, confirm if the subsidiaries wrote Long-Term insurane business durign the financial period",null,null,null,null,{"$f":"Import!E22","v":"Select Yes/No"}]
[null,"(l).4","If the subsidiaries wrote Long-Term insurance business during the financial period, confirm if the subsidiaries are in another jurisdication outside of Bermuda",null,null,null,null,{"$f":"Import!E23","v":"Select Yes/No"}]
[null,"(l).5","If other jurisdictions outside of Bermuda, list the jurisdictions",null,null,null,null,{"$f":"Import!E24","v":0}]
[null,null,null,null,null,null,null,{"$f":"Import!E25","v":0}]
[null,null,null,null,null,null,null,{"$f":"Import!E26","v":0}]
[]
[null,"(m)","General Questions",null,null,null,null,null,null,null,""]
[null,null,"(i) Is the Insurer a member of a group?",null,null,null,null,{"$f":"Import!E27","v":"Select Yes/No"},null,null,"brrt_DeclarationDate"]
[null,null,"(ii) Does the Insurer have segregated accounts?",null,null,null,null,{"$f":"Import!E28","v":"Select Yes/No"},null,null,"brrt_Declaration",{"$f":"XBRLMapTuple(K39,$T$1,#REF!,\"BMA\",CONFIGURATION!$B$1,\"bscr\",\"\",CONFIGURATION!$B$12,K21,D21,K22,D22,K20,D20,K38,D38)","v":{"$error":"#VALUE!"}}]
[null,null,"(iii) Is the insurer in run-off?",null,null,null,null,{"$f":"Import!E29","v":"Select Yes/No"}]
[null,null,"(iv) Whether the general purpose financial statements of the insurer for the relevant year have been audited and/or an unqualified opinion issued",null,null,null,null,{"$f":"Import!E30","v":"Select Yes/No"}]
[null,null,"If a qualified opinion was issued, indicate the qualification:"]
[null,null,{"$f":"Import!E31","v":0}]
[]
[]
[null,null,"(v) The minimum solvency margin was met:",null,null,null,null,{"$f":"Import!E32","v":"Select Yes/No"}]
[null,null,"(vi) The applicable minimum liquidity ratio was met during the reporting period:",null,null,null,null,{"$f":"Import!E33","v":"Select Yes/No"}]
[]
[null,"(n)","Certificate of Registration Conditions"]
[]
[null,1,"Certificate of Registration for General Business - Effective Date",null,null,null,null,{"$f":"IF(+'Company Information'!C11=0,\"\",+'Company Information'!C11)","v":""}]
[]
[null,2,"Certificate of Registration for General Business - General Conditions (Enter Number of Conditions)",null,null,null,null,{"$f":"Import!E35","v":0}]
[]
[null,null,null,null,"Effective Start Date","Effective End Date","Condition Description"]
[null,null,null,1,{"$f":"Import!E36","v":"00:00:00"},{"$f":"Import!E46","v":"00:00:00"},{"$f":"Import!E56","v":0}]
[null,null,null,{"$f":"D56+1","v":2},{"$f":"Import!E37","v":"00:00:00"},{"$f":"Import!E47","v":"00:00:00"},{"$f":"Import!E57","v":0}]
[null,null,null,{"$f":"D57+1","v":3},{"$f":"Import!E38","v":"00:00:00"},{"$f":"Import!E48","v":"00:00:00"},{"$f":"Import!E58","v":0}]
[null,null,null,4,{"$f":"Import!E39","v":"00:00:00"},{"$f":"Import!E49","v":"00:00:00"},{"$f":"Import!E59","v":0}]
[null,null,null,5,{"$f":"Import!E40","v":"00:00:00"},{"$f":"Import!E50","v":"00:00:00"},{"$f":"Import!E60","v":0}]
[null,null,null,6,{"$f":"Import!E41","v":"00:00:00"},{"$f":"Import!E51","v":"00:00:00"},{"$f":"Import!E61","v":0}]
[null,null,null,7,{"$f":"Import!E42","v":"00:00:00"},{"$f":"Import!E52","v":"00:00:00"},{"$f":"Import!E62","v":0}]
[null,null,null,8,{"$f":"Import!E43","v":"00:00:00"},{"$f":"Import!E53","v":"00:00:00"},{"$f":"Import!E63","v":0}]
[null,null,null,9,{"$f":"Import!E44","v":"00:00:00"},{"$f":"Import!E54","v":"00:00:00"},{"$f":"Import!E64","v":0}]
[null,null,null,10,{"$f":"Import!E45","v":"00:00:00"},{"$f":"Import!E55","v":"00:00:00"},{"$f":"Import!E65","v":0}]
[]
[null,"(o)","The insurer has complied with conditions on Certificate of Registration",null,null,null,null,{"$f":"Import!E66","v":"Select Yes/No"}]
[]
[null,"(p)","Regulatory Approvals"]
[]
[null,1,"Regulatory - Approved Direction (Enter Number of Directions)",null,null,null,null,{"$f":"Import!E67","v":0}]
[]
[null,null,null,null,"Effective Start Date","Effective End Date","Direction Description"]
[null,null,null,1,{"$f":"Import!E68","v":"00:00:00"},{"$f":"Import!E78","v":"00:00:00"},{"$f":"Import!E88","v":0}]
[null,null,null,{"$f":"D74+1","v":2},{"$f":"Import!E69","v":"00:00:00"},{"$f":"Import!E79","v":"00:00:00"},{"$f":"Import!E89","v":0}]
[null,null,null,{"$f":"D75+1","v":3},{"$f":"Import!E70","v":"00:00:00"},{"$f":"Import!E80","v":"00:00:00"},{"$f":"Import!E90","v":0}]
[null,null,null,4,{"$f":"Import!E71","v":"00:00:00"},{"$f":"Import!E81","v":"00:00:00"},{"$f":"Import!E91","v":0}]
[null,null,null,5,{"$f":"Import!E72","v":"00:00:00"},{"$f":"Import!E82","v":"00:00:00"},{"$f":"Import!E92","v":0}]
[null,null,null,6,{"$f":"Import!E73","v":"00:00:00"},{"$f":"Import!E83","v":"00:00:00"},{"$f":"Import!E93","v":0}]
[null,null,null,7,{"$f":"Import!E74","v":"00:00:00"},{"$f":"Import!E84","v":"00:00:00"},{"$f":"Import!E94","v":0}]
[null,null,null,8,{"$f":"Import!E75","v":"00:00:00"},{"$f":"Import!E85","v":"00:00:00"},{"$f":"Import!E95","v":0}]
[null,null,null,9,{"$f":"Import!E76","v":"00:00:00"},{"$f":"Import!E86","v":"00:00:00"},{"$f":"Import!E96","v":0}]
[null,null,null,10,{"$f":"Import!E77","v":"00:00:00"},{"$f":"Import!E87","v":"00:00:00"},{"$f":"Import!E97","v":0}]
[]
[]
[]
[null,"(q)","If any question in points (m)(v), (m)(vi) or (o) has been answered in the negative, state the reason for negative answer and describe whether or not the insurer has taken corrective action in any case and, where the insurer has taken such action, describe the action in a statement attached ",null,null,null,null,{"$f":"Import!E98","v":"Select Yes/No"}]
[]
[null,null,{"$f":"Import!E99","v":0}]
[]
[]
[]
[]
[null,null,null,null,null,null,null,null,null,null,null,""]
[null,"Industry Sector","Type of Company"]
[null,"Select from Drop-Down","Select from Drop-Down"]
[null,"Administrative and Support Services","Pure Captive"]
[null,"Agriculture, Mining, Forestry and Fishing","Rent-a-Captive"]
[null,"Automotive, Manufacturing and Retail","Agency Captive"]
[null,"Charities & Non-profit Organisations","Group Captive"]
[null,"Chemical and Pharmaceutical","Association Captive"]
[null,"Construction","Risk Retention Group"]
[null,"Education","Insurer/Reinsurer"]
[null,"Energy, Power and Utilities"]
[null,"Financial Institution"]
[null,"Government or Public Sector"]
[null,"Healthcare"]
[null,"Hospitality"]
[null,"Leisure"]
[null,"Media and Gaming"]
[null,"Professional Services"]
[null,"Science and Research"]
[null,"Shipping, Transport & Storage"]
[null,"Technology and Telecoms"]
[null,"Wholesale and Retail"]
[]
[null,"Ownership"]
[null,"Select from Drop-Down"]
[null,"Mutual"]
[null,"Shares"]
[null,"Partnership"]
[null,"Government or Government Agency"]
[null,"Limited Partnership"]
[null,"Permit/Branch"]
[null,"Trust"]
[]
[null,"General Questions"]
[null,"Select Yes/No"]
[null,"Yes"]
[null,"No"]
[null,"N/A"]

{"sheet":"Financial Condition","index":14,"n_rows":477,"n_cols":10,"rows_kept":477,"cut":false,"hidden":true,"merged":[[85,1,85,2],[86,1,86,2],[87,1,87,2],[80,1,80,2],[81,1,81,2],[82,1,82,2],[83,1,83,2],[84,1,84,2],[75,1,75,2],[76,1,76,2],[77,1,77,2],[78,1,78,2],[79,1,79,2],[70,1,70,2],[71,1,71,2],[72,1,72,2],[73,1,73,2],[74,1,74,2],[252,1,254,5],[115,1,117,5],[121,1,123,5],[163,1,165,5],[345,1,346,5],[158,1,160,5],[234,1,236,5],[168,1,170,5],[173,1,175,5],[185,1,187,5],[180,1,182,5],[192,1,194,5],[198,1,200,5],[196,1,197,5],[241,1,243,5],[246,1,248,5],[203,1,205,5],[208,1,210,5],[215,1,217,5],[220,1,222,5],[227,1,229,5],[285,1,287,5],[256,1,257,5],[289,1,289,5],[292,1,294,5],[298,1,300,5],[275,1,277,5],[280,1,282,5],[270,1,272,5],[260,1,262,5],[265,1,267,5],[397,1,399,5],[313,1,315,5],[296,1,297,5],[317,1,317,5],[347,1,349,5],[371,1,371,5],[362,1,364,5],[367,1,369,5],[308,1,310,5],[323,1,325,5],[303,1,305,5],[321,1,322,5],[334,1,336,5],[332,1,333,5],[352,1,354,5],[357,1,359,5],[385,1,387,5],[380,1,382,5],[449,1,451,5],[443,1,443,5],[444,1,446,5],[439,1,441,5],[438,1,438,5],[422,1,424,5],[431,1,431,5],[434,1,436,5],[427,1,428,5],[390,1,392,5],[402,1,404,5],[407,1,409,5],[412,1,414,5],[417,1,419,5]]}
[null,"SCHEDULE OF FINANCIAL CONDITION REPORT"]
["i)","Business and Performance - particulars regarding the organisational structure, insurance business activities and financial performance "]
[]
["(a)","Name of the insurer:"]
[null,null,null,null,null,{"$f":"+'Company Information'!C7","v":"Enter Company Name"}]
["(b)","Name and contact details of the insurance supervisor and group supervisor"]
[null,null,null,"Insurance Supervisor",null,"Group Supervisor"]
[null,"Name:"]
[null,"Jurisdiction:"]
[null,"Email Address:"]
[null,"Phone Number:"]
[]
["(c)","Name and contact details of the Approved Auditor"]
[]
[null,"Organisation:"]
[null,"Name:"]
[null,"Jurisdiction:"]
[null,"Email Address:"]
[null,"Phone Number:"]
[]
["(d)","Ownership details: ",null,null,null,"Enter Number of Owners"]
[]
[null,null,null,"Owner Name",null,"Ownership Percentage"]
[null,null,1]
[null,null,{"$f":"C24+1","v":2}]
[null,null,{"$f":"C25+1","v":3}]
[null,null,4]
[null,null,5]
[null,null,6]
[null,null,7]
[null,null,8]
[null,null,9]
[null,null,10]
[null,null,11]
[null,null,12]
[null,null,13]
[null,null,14]
[null,null,{"$f":"C37+1","v":15}]
[]
["(e)","Where the insurer is part of a group, a group structure chart showing where the insurer fits within the group structure"]
[]
["(f)","Insurance business written by business segment and by geographical region during the reporting period:"]
[null,"Line of Business",null,"Gross Premium Written",null,"Net Premium Written"]
[1,"Property Catastrophe",null,{"$f":"+'Schedule IVA (EBS)'!M11","v":0},null,{"$f":"+'Schedule IVA (EBS)'!Q11","v":0}]
[2,"Property",null,{"$f":"+'Schedule IVA (EBS)'!M12","v":0},null,{"$f":"+'Schedule IVA (EBS)'!Q12","v":0}]
[3,"Property Non – Proportional",null,{"$f":"+'Schedule IVA (EBS)'!M13","v":0},null,{"$f":"+'Schedule IVA (EBS)'!Q13","v":0}]
[4,"Personal Accident",null,{"$f":"+'Schedule IVA (EBS)'!M14","v":0},null,{"$f":"+'Schedule IVA (EBS)'!Q14","v":0}]
[5,"Personal Accident Non- Proportional",null,{"$f":"+'Schedule IVA (EBS)'!M15","v":0},null,{"$f":"+'Schedule IVA (EBS)'!Q15","v":0}]
[6,"Aviation",null,{"$f":"+'Schedule IVA (EBS)'!M16","v":0},null,{"$f":"+'Schedule IVA (EBS)'!Q16","v":0}]
[7,"Aviation Non – Proportional",null,{"$f":"+'Schedule IVA (EBS)'!M17","v":0},null,{"$f":"+'Schedule IVA (EBS)'!Q17","v":0}]
[8,"Credit / Surety ",null,{"$f":"+'Schedule IVA (EBS)'!M18","v":0},null,{"$f":"+'Schedule IVA (EBS)'!Q18","v":0}]
[9,"Credit / Surety Non – Proportional",null,{"$f":"+'Schedule IVA (EBS)'!M19","v":0},null,{"$f":"+'Schedule IVA (EBS)'!Q19","v":0}]
[10,"Energy Offshore / Marine",null,{"$f":"+'Schedule IVA (EBS)'!M20","v":0},null,{"$f":"+'Schedule IVA (EBS)'!Q20","v":0}]
[11,"Energy Offshore / Marine Non - Proportional ",null,{"$f":"+'Schedule IVA (EBS)'!M21","v":0},null,{"$f":"+'Schedule IVA (EBS)'!Q21","v":0}]
[12,"US Casualty",null,{"$f":"+'Schedule IVA (EBS)'!M22","v":0},null,{"$f":"+'Schedule IVA (EBS)'!Q22","v":0}]
[13,"US Casualty Non - Proportional ",null,{"$f":"+'Schedule IVA (EBS)'!M23","v":0},null,{"$f":"+'Schedule IVA (EBS)'!Q23","v":0}]
[14,"US Professional",null,{"$f":"+'Schedule IVA (EBS)'!M24","v":0},null,{"$f":"+'Schedule IVA (EBS)'!Q24","v":0}]
[15,"US Professional Non – Proportional",null,{"$f":"+'Schedule IVA (EBS)'!M25","v":0},null,{"$f":"+'Schedule IVA (EBS)'!Q25","v":0}]
[16,"US Specialty ",null,{"$f":"+'Schedule IVA (EBS)'!M26","v":0},null,{"$f":"+'Schedule IVA (EBS)'!Q26","v":0}]
[17,"US Specialty Non - Proportional",null,{"$f":"+'Schedule IVA (EBS)'!M27","v":0},null,{"$f":"+'Schedule IVA (EBS)'!Q27","v":0}]
[18,"International Motor ",null,{"$f":"+'Schedule IVA (EBS)'!M28","v":0},null,{"$f":"+'Schedule IVA (EBS)'!Q28","v":0}]
[19,"International Motor Non – Proportional",null,{"$f":"+'Schedule IVA (EBS)'!M29","v":0},null,{"$f":"+'Schedule IVA (EBS)'!Q29","v":0}]
[20,"International Casualty Non – Motor ",null,{"$f":"+'Schedule IVA (EBS)'!M30","v":0},null,{"$f":"+'Schedule IVA (EBS)'!Q30","v":0}]
[21,"International Casualty Non Motor Non – Proportional ",null,{"$f":"+'Schedule IVA (EBS)'!M31","v":0},null,{"$f":"+'Schedule IVA (EBS)'!Q31","v":0}]
[22,"Retro Property",null,{"$f":"+'Schedule IVA (EBS)'!M32","v":0},null,{"$f":"+'Schedule IVA (EBS)'!Q32","v":0}]
[23,"Structured / Finite Reinsurance",null,{"$f":"+'Schedule IVA (EBS)'!M33","v":0},null,{"$f":"+'Schedule IVA (EBS)'!Q33","v":0}]
[24,"Health",null,{"$f":"+'Schedule IVA (EBS)'!M34","v":0},null,{"$f":"+'Schedule IVA (EBS)'!Q34","v":0}]
[25,"Total ",null,{"$f":"SUM(D44:D67)","v":0},null,{"$f":"SUM(F44:F67)","v":0}]
[]
[null,"Geographical Location",null,"Gross Premium Written"]
[1,{"$f":"HYPERLINK(\"#'Zones'!c4\",\"Central & Western Asia\")","v":"Central & Western Asia"}]
[2,{"$f":"HYPERLINK(\"#'Zones'!c13\",\"Eastern Asia\")","v":"Eastern Asia"}]
[3,{"$f":"HYPERLINK(\"#'Zones'!c18\",\"South and South-Eastern Asia\")","v":"South and South-Eastern Asia"}]
[4,{"$f":"HYPERLINK(\"#'Zones'!c26\",\"Oceania\")","v":"Oceania"}]
[5,{"$f":"HYPERLINK(\"#'Zones'!c36\",\"Nothern Africa\")","v":"Nothern Africa"}]
[6,{"$f":"HYPERLINK(\"#'Zones'!c46\",\"Southern Africa\")","v":"Southern Africa"}]
[7,{"$f":"HYPERLINK(\"#'Zones'!c57\",\"Eastern Europe\")","v":"Eastern Europe"}]
[8,{"$f":"HYPERLINK(\"#'Zones'!c68\",\"Nothern Europe\")","v":"Nothern Europe"}]
[9,{"$f":"HYPERLINK(\"#'Zones'!c76\",\"Southern Europe\")","v":"Southern Europe"}]
[10,{"$f":"HYPERLINK(\"#'Zones'!c84\",\"Western Europe\")","v":"Western Europe"}]
[11,{"$f":"HYPERLINK(\"#'Zones'!c90\",\"Nothern America (Excluding USA)\")","v":"Nothern America (Excluding USA)"}]
[12,{"$f":"HYPERLINK(\"#'Zones'!c94\",\"Caribean & Centeral America\")","v":"Caribean & Centeral America"}]
[13,{"$f":"HYPERLINK(\"#'Zones'!c107\",\"Eastern South America\")","v":"Eastern South America"}]
[14,{"$f":"HYPERLINK(\"#'Zones'!c112\",\"Nothern, Southern, and Western South America\")","v":"Nothern, Southern, and Western South America"}]
[15,{"$f":"HYPERLINK(\"#'Zones'!c116\",\"North-East United States\")","v":"North-East United States"}]
[16,{"$f":"HYPERLINK(\"#'Zones'!c121\",\"South-East United States\")","v":"South-East United States"}]
[17,{"$f":"HYPERLINK(\"#'Zones'!c127\",\"Mid-West United States\")","v":"Mid-West United States"}]
[18,{"$f":"HYPERLINK(\"#'Zones'!c133\",\"Western United States\")","v":"Western United States"}]
[null,"TOTAL",null,{"$f":"SUM(D71:D88)","v":0}]
[]
["(g)","Performance  of  investments during the reporting period:"]
[null,null,null,"Market Value",null,"Performance"]
[1,{"$f":"+'Schedule VI'!C8","v":"U.S. Government "}]
[null,{"$f":"+'Schedule VI'!C9","v":"(a) U.S. Government Federal"},null,{"$f":"'Schedule VI (EBS)'!E9","v":0}]
[null,{"$f":"+'Schedule VI'!C10","v":"(b) U.S. Government Agency - mortgage-backed securities"},null,{"$f":"'Schedule VI (EBS)'!E10","v":0}]
[null,{"$f":"+'Schedule VI'!C11","v":"(c) U.S. Government Agency - other"},null,{"$f":"'Schedule VI (EBS)'!E11","v":0}]
[2,{"$f":"+'Schedule VI'!C12","v":"Non-U.S. Government"},null,{"$f":"'Schedule VI (EBS)'!E12","v":0}]
[3,{"$f":"+'Schedule VI'!C13","v":"States, Municipalities, and Political Subdivision"},null,{"$f":"'Schedule VI (EBS)'!E13","v":0}]
[4,{"$f":"+'Schedule VI'!C14","v":"Corporate Securities"}]
[null,{"$f":"+'Schedule VI'!C15","v":"(a) U.S. Government-backed Corporate"},null,{"$f":"'Schedule VI (EBS)'!E15","v":0}]
[null,{"$f":"+'Schedule VI'!C16","v":"(b) Non-U.S. Government-backed Corporate"},null,{"$f":"'Schedule VI (EBS)'!E16","v":0}]
[null,{"$f":"+'Schedule VI'!C17","v":"(c) FDIC Guaranteed Corporate"},null,{"$f":"'Schedule VI (EBS)'!E17","v":0}]
[null,{"$f":"+'Schedule VI'!C18","v":"(d) Other Corporate"},null,{"$f":"'Schedule VI (EBS)'!E18","v":0}]
[5,{"$f":"+'Schedule VI'!C19","v":"Asset-backed Securities"},null,{"$f":"'Schedule VI (EBS)'!E19","v":0}]
[6,{"$f":"+'Schedule VI'!C20","v":"Mortgage-backed Securities"}]
[null,{"$f":"+'Schedule VI'!C21","v":"(a) Residential Subprime"},null,{"$f":"'Schedule VI (EBS)'!E21","v":0}]
[null,{"$f":"+'Schedule VI'!C22","v":"(b) Residential Non-subprime"},null,{"$f":"'Schedule VI (EBS)'!E22","v":0}]
[null,{"$f":"+'Schedule VI'!C23","v":"(c) Commercial"},null,{"$f":"'Schedule VI (EBS)'!E23","v":0}]
[7,{"$f":"+'Schedule VI'!C24","v":"Mutual Funds"},null,{"$f":"'Schedule VI (EBS)'!E24","v":0}]
[8,{"$f":"+'Schedule VI'!C25","v":"Bank Loans"},null,{"$f":"'Schedule VI (EBS)'!E25","v":0}]
[9,{"$f":"+'Schedule VI'!C26","v":"Catastrophe Bonds and Insurance-Linked Securities"},null,{"$f":"'Schedule VI (EBS)'!E26","v":0}]
[10,{"$f":"+'Schedule VI'!C27","v":"Others (Briefly describe)"},null,{"$f":"'Schedule VI (EBS)'!E27","v":0}]
[null,{"$f":"+'Schedule VI'!C28","v":"TOTAL PORTFOLIO"},null,{"$f":"SUM(D93:D112)","v":0}]
[]
[null,"Details  on  material income and expenses incurred"]
[]
[]
[]
[]
["(h)","Any other material information:"]
[]
[]
[]
[]
[]
["ii)","Governance Structure - particulars of corporate governance, risk management and solvency self-assessment frameworks"]
[]
["(a)","Board and Senior Executive:"]
[]
["i.","Directors",null,null,null,{"$f":"'Schedule V(a)'!D8","v":0}]
[]
[null,"Name","Board Position"]
[1,{"$f":"'Schedule V(a)'!C12","v":0},{"$f":"'Schedule V(a)'!D12","v":0}]
[{"$f":"A133+1","v":2},{"$f":"'Schedule V(a)'!C13","v":0},{"$f":"'Schedule V(a)'!D13","v":0}]
[{"$f":"A134+1","v":3},{"$f":"'Schedule V(a)'!C14","v":0},{"$f":"'Schedule V(a)'!D14","v":0}]
[4,{"$f":"'Schedule V(a)'!C15","v":0},{"$f":"'Schedule V(a)'!D15","v":0}]
[5,{"$f":"'Schedule V(a)'!C16","v":0},{"$f":"'Schedule V(a)'!D16","v":0}]
[6,{"$f":"'Schedule V(a)'!C17","v":0},{"$f":"'Schedule V(a)'!D17","v":0}]
[7,{"$f":"'Schedule V(a)'!C18","v":0},{"$f":"'Schedule V(a)'!D18","v":0}]
[8,{"$f":"'Schedule V(a)'!C19","v":0},{"$f":"'Schedule V(a)'!D19","v":0}]
[{"$f":"A140+1","v":9},{"$f":"'Schedule V(a)'!C20","v":0},{"$f":"'Schedule V(a)'!D20","v":0}]
[{"$f":"A141+1","v":10},{"$f":"'Schedule V(a)'!C21","v":0},{"$f":"'Schedule V(a)'!D21","v":0}]
[]
[null,"Officers",null,null,null,{"$f":"'Schedule V(a)'!D33","v":0}]
[]
[null,"Name","Board Position","Responsibilities"]
[1,{"$f":"'Schedule V(a)'!C37","v":0},{"$f":"'Schedule V(a)'!D37","v":0}]
[{"$f":"A147+1","v":2},{"$f":"'Schedule V(a)'!C38","v":0},{"$f":"'Schedule V(a)'!D38","v":0}]
[{"$f":"A148+1","v":3},{"$f":"'Schedule V(a)'!C39","v":0},{"$f":"'Schedule V(a)'!D39","v":0}]
[4,{"$f":"'Schedule V(a)'!C40","v":0},{"$f":"'Schedule V(a)'!D40","v":0}]
[5,{"$f":"'Schedule V(a)'!C41","v":0},{"$f":"'Schedule V(a)'!D41","v":0}]
[6,{"$f":"'Schedule V(a)'!C42","v":0},{"$f":"'Schedule V(a)'!D42","v":0}]
[7,{"$f":"'Schedule V(a)'!C43","v":0},{"$f":"'Schedule V(a)'!D43","v":0}]
[8,{"$f":"'Schedule V(a)'!C44","v":0},{"$f":"'Schedule V(a)'!D44","v":0}]
[9,{"$f":"'Schedule V(a)'!C45","v":0},{"$f":"'Schedule V(a)'!D45","v":0}]
[10,{"$f":"'Schedule V(a)'!C46","v":0},{"$f":"'Schedule V(a)'!D46","v":0}]
[]
[null,"Description of segregation of these responsibilities"]
[]
[]
[]
[]
["ii.","Description of remuneration policy and practices and performance- based criteria governing the board, senior executive and employees"]
[]
[]
[]
[]
["iii.","Description of the supplementary pension or early retirement schemes for members, the board and senior executive"]
[]
[]
[]
[]
["iv.","Any material transactions with shareholder controllers, persons who exercise significant influence, the board or senior executive"]
[]
[]
[]
[]
["(b)","Fitness and Propriety Requirements"]
[]
["i.","Description of the fit and proper process in assessing the board and senior executive"]
[]
[]
[]
[]
["ii.","Description of the professional qualifications, skills, and expertise of the board and senior executives to carry out their functions"]
[]
[]
[]
[]
["(c)","Risk Management and Solvency Self-Assessment"]
[]
["i.","Description of  the risk management process and procedures to effectively identify, measure, manage and report on risk exposures"]
[]
[]
[]
[]
["ii.","Description of how the risk management and solvency self- assessment systems are implemented and integrated into the insurer’s operations; including strategic planning and organisational and decision making process"]
[]
[]
[]
[]
[]
["iii.","Description of the relationship between the solvency self- assessment, solvency needs, and capital and risk management systems"]
[]
[]
[]
[]
["iv.","Description of the solvency self-assessment approval process including the level of oversight and independent verification by the board and senior executives"]
[]
[]
[]
[]
["(d)","Internal Controls"]
[]
["i.","Description of the internal control system"]
[]
[]
[]
[]
["ii.","Description of how the compliance function is executed"]
[]
[]
[]
[]
["(e)","Internal Audit"]
[]
[null,"Description of how the internal audit function is implemented and how it maintains its independence and objectivity when conducting its functions"]
[]
[]
[]
[]
["(f)","Actuarial Function"]
[]
[null,"Description of how the actuarial function is implemented"]
[]
[]
[]
[]
["(g)","Outsourcing"]
[]
["i.","Description of the outsourcing policy and information on any key or important functions that have been outsourced"]
[]
[]
[]
[]
["ii.","Description of material intra-group outsourcing"]
[]
[]
[]
[]
["(h)","Any other material information:"]
[]
[]
[]
[]
[]
["iii)","Risk Profile - particulars on exposures on underwriting risk, market risk including off balance sheet exposures, credit risk, liquidity risk, operational risk and other material risks"]
[]
[]
["(a)","Material risks that the insurer is exposed to, including how these risks are measured and any material changes that have occurred during the reporting period:"]
[]
[]
[]
[]
["(b)","How risks are mitigated including the methods used and the process to monitor the effectiveness of these methods"]
[]
[]
[]
[]
["(c)","Material risk concentrations"]
[]
[]
[]
[]
["(d)","How assets are invested in accordance with the prudent person principle as stated in Paragraph 5.1.2 of the Code"]
[]
[]
[]
[]
["(e)","The stress testing and sensitivity analysis to assess material risks, including the methods and assumptions used, and the outcomes"]
[]
[]
[]
[]
["(f)","Any other material information:"]
[]
[]
[]
[]
["iv)","Solvency Valuation - particulars of the valuation bases, methods and assumptions on the inputs used to determine solvency"]
[]
["(a)","The valuation bases, assumptions and methods used to derive the value of each asset class"]
[]
[]
[]
[]
["(b)","The valuation bases, assumptions and methods used to derive the value of technical provisions and the amount of the best estimate. The amount of the risk margin as well as the level of uncertainty to determine the value of the technical provisions should be included"]
[]
[]
[]
[]
[]
["(c)","Description of recoverables from reinsurance contracts, including special purpose insurers and other risk transfer mechanisms"]
[]
[]
[]
[]
["(d)","The valuation bases, assumptions and methods used to derive the value of other liabilities"]
[]
[]
[]
[]
["(e)","Any other material information:"]
[]
[]
[]
[]
["v)","Capital Management - particulars regarding an assessment of capital needs and regulatory capital requirements"]
[]
["(a)","Eligible Capital"]
[]
["i.","Description of the capital management policy and process to determine capital needs for business planning, how capital is managed and any material changes during the reporting period"]
[]
[]
[]
[]
[]
["ii.","Eligible Capital"]
[null,"Tier 1",null,null,null,{"$f":"+'Schedule XII(a)'!J56","v":0}]
[null,"Tier 2",null,null,null,{"$f":"+'Schedule XII(a)'!J69","v":0}]
[null,"Tier 3",null,null,null,{"$f":"+'Schedule XII(a)'!J77","v":0}]
[null,"Total",null,null,null,{"$f":"SUM(F329:F331)","v":0}]
[null,"Description of the eligible capital categorised by tiers in accordance with the Eligible Capital Rules"]
[]
[]
[]
[]
[]
["iii.","Eligible Capital by Regulatory Limitations"]
[null,null,"Limits:                 MSM                    ECR","Minimum Margin of Solvency",null,"Enhanced Capital Requirement"]
[null,"Tier 1",{"$f":"IF('Company Information'!$F$11=\"Class 3A\",\"min                             80%                          50%\",\"min                             80%                          60%\")","v":"min                             80%                          60%"},{"$f":"+'Schedule XII(a)'!G93","v":0},null,{"$f":"+'Schedule XII(a)'!I93","v":0}]
[null,"Tier 2",{"$f":"IF('Company Information'!$F$11=\"Class 3A\",\"max                             25%                          50%\",\"max                             25%                          66.67%\")","v":"max                             25%                          66.67%"},{"$f":"+'Schedule XII(a)'!G94","v":0},null,{"$f":"+'Schedule XII(a)'!I94","v":0}]
[null,"Tier 3","max                                                              17.65%",{"$f":"+'Schedule XII(a)'!G95","v":0},null,{"$f":"+'Schedule XII(a)'!I95","v":0}]
[null,"Total",null,{"$f":"SUM(D341:D343)","v":0},null,{"$f":"SUM(F341:F343)","v":0}]
[]
[null,"Description of the  eligible capital categorised by tiers, in accordance with the Eligible Capital Rules used to meet the Enhanced Capital Requirement (“ECR”) and the Minimum Margin of Solvency (“MSM”) defined in accordance with section (1) (1) of the Act"]
[]
[]
[]
[]
[]
["iv.","Confirmation that eligible capital is subject to transitional arrangements as required under the Eligible Capital Rules",null,null,null,"Select from Drop-Down"]
[]
[]
[]
[]
["v.","Identification of any factors affecting encumbrances affecting the availability and transferability of capital to meet the ECR"]
[]
[]
[]
[]
["vi."," Identification of ancillary capital instruments that have been approved by the Authority"]
[]
[]
[]
[]
["vii.","Identification of differences in shareholder’s equity as stated in the financial statements versus available statutory capital and surplus"]
[]
[]
[]
[]
["(b)","Regulatory Capital Requirements"]
[]
["i.","Amount of the ECR and MSM at the end of the reporting period:"]
[]
[null,null,null,null,null,"Amount"]
[null,"Minimum Margin of Solvency",null,null,null,{"$f":"+Summary!N103","v":1000}]
[null,"Enhanced Capital Requirement",null,null,null,{"$f":"+Summary!N109","v":1000}]
[]
["ii.","Identification of any non-compliance with the MSM and the ECR"]
[]
[]
[]
[]
["iii.","Description of the amount and circumstances surrounding the non-compliance, the remedial measures taken and their effectiveness"]
[]
[]
[]
[]
["iv.","Where the non-compliance has not been resolved, description of the amount of the non-compliance at the end of the reporting period"]
[]
[]
[]
[]
["(c)","Approved Internal Capital Model used to derive the ECR"]
[]
["i.","Description of the purpose and scope of the business and risk areas where the internal model is used"]
[]
[]
[]
[]
["ii.","where a partial internal model is used, description of how it is integrated with the BSCR Model"]
[]
[]
[]
[]
["iii.","Description of methods used in the internal model to calculate the ECR"]
[]
[]
[]
[]
["iv.","Description of aggregation methodologies and diversification effects"]
[]
[]
[]
[]
["v.","description of the main differences in the methods and assumptions used for the risk areas in the internal model versus the BSCR Model"]
[]
[]
[]
[]
["vi.","Description of the nature and suitability of the data used in the internal model"]
[]
[]
[]
[]
["vii.","Any other material information:"]
[]
[]
[]
[]
["vi)","Significant Event - particulars and explanations of a significant event including, but not limited to the following"]
[]
["(a)","Description of the significant event"]
[]
[]
[]
[]
["(b)","Approximate date(s) or proposed timing of the significant event"]
[]
[]
[]
[]
["(c)","Confirmation of how the significant event has impacted or will impact, any information provided in the most recent financial condition report filed with the Authority"]
[]
[]
[]
[]
["(d)","Any other material information:"]
[]
[]
[]
[]
[]
[null,null,null,null,null,null,null,null,null,""]
[]
[null,"General Questions"]
[null,"Select from Drop-Down"]
[null,"Yes"]
[null,"No"]
[]
[null,"Ra"]
[null,"Rating Agency"]
[null,"Select Rating Agency"]
[null,"Standard & Poor"]
[null,"Moody's"]
[null,"AM Best"]
[null,"Fitch"]
[null,"Standard & Poor","Moody's","AM Best","Fitch"]
[null,"AAA","Aaa","A++","AAA"]
[null,"AA+ to AA-","Aa1 to Aa3","A+","AA+ to AA-"]
[null,"A+ to A-","A1 to A3","A","A+ to A-"]
[null,"BBB+ to BBB-","Baa1 to Baa3","A-","BBB+ to BBB-"]
[null,"BB+ to BB-","Ba1 to Ba3","B++ to B","BB+ to BB-"]
[null,"B+ to B-","B1 to B3","B- to C+","B+ to B-"]
[null,"CCC+ to CCC-","Caa1 to Caa3","C, C-","CCC+ to CCC-"]
[null,"Below CCC-","Below Caa3","Below C-","Below CCC-"]

{"sheet":"SAR & Sanc. (All)","index":15,"n_rows":66,"n_cols":19,"rows_kept":66,"cut":false,"hidden":false,"merged":[[52,2,56,9],[0,1,0,4],[4,1,4,9],[9,2,9,4],[13,2,13,4],[16,2,16,4],[27,2,31,9],[43,5,43,7],[44,5,44,7],[45,5,45,7],[46,5,46,7],[47,5,47,7]]}
[null,"SCHEDULE OF SUSPICIOUS ACTIVITY REPORTING AND SANCTIONS",null,null,null,null,null,null,null,{"$f":"HYPERLINK(\"#'Index'!A1\",\"Return to Index\")","v":"Return to Index"},null,null,null,null,null,{"$f":"HYPERLINK(\"#'Index'!A1\",\"Return to Index\")","v":"Return to Index"},{"$f":"IF($B$3=\"\",\"\",TEXT(DATE(YEAR($B$3+1)-1,MONTH($B$3+1),DAY($B$3+1)),\"mm/dd/yyyy\"))","v":"01/01/2019"}]
[null,{"$f":"'Company Information'!C7","v":"Enter Company Name"},null,null,null,null,null,null,null,null,null,null,null,null,null,null,{"$f":"IF($B$3=\"\",\"\",TEXT($B$3,\"mm/dd/yyyy\"))","v":"12/31/2019"}]
[null,{"$f":" TEXT('Company Information'!C3,\"mmmm dd, yyyy\")","v":"December 31, 2019"},null,null,null,null,null,null,null,"SAR & Sanctions"]
[]
[null,"All insurers shall be required to complete the questions set out in the Suspicious Activity Reporting and Sanctions Schedule (on a unconsolidated basis). "]
[]
["Section E - Reporting"]
[null,1,"Is your company registered with GoAML at www.fia.bm",null,null,null,null,null,{"$f":"Import!E14751","v":"Select Yes/No"}]
[null,null,"1.1 If yes, under what name and when?"]
[null,null,{"$f":"Import!E14753","v":0},null,null,null,null,null,{"$f":"Import!E14752","v":"(Select)"}]
[]
[null,null,"1.2 If you answered no to 1., do you have access to GoAML through another registration?",null,null,null,null,null,{"$f":"Import!E14754","v":"Select Yes/No"}]
[null,null,"1.3 Under what name and how are you connected?"]
[null,null,{"$f":"Import!E14755","v":0}]
[]
[null,null,"1.4 if you answered no to 1. and 1.2 who would file a SAR on your behalf?"]
[null,null,{"$f":"Import!E14756","v":0}]
[]
[null,2,"How many Suspicious Activity Reports (SAR) have been filed?"]
[null,null,null,null,null,null,"Internal",null,"With FIA"]
[null,null,null,null,null,2020,{"$f":"Import!E14757","v":0},2020,{"$f":"Import!E14762","v":0}]
[null,null,null,null,null,{"$f":"F21-1","v":2019},{"$f":"Import!E14758","v":0},{"$f":"H21-1","v":2019},{"$f":"Import!E14763","v":0}]
[null,null,null,null,null,{"$f":"F22-1","v":2018},{"$f":"Import!E14759","v":0},2018,{"$f":"Import!E14764","v":0}]
[null,null,null,null,null,2017,{"$f":"Import!E14760","v":0},2017,{"$f":"Import!E14765","v":0}]
[null,null,null,null,null,"Total",{"$f":"SUM(G21:G24)","v":0},"Total",{"$f":"SUM(I21:I24)","v":0}]
[]
[null,null,"Include any additional information/comments which you think might be relevant to this exercise?"]
[null,null,{"$f":"Import!E14767","v":0}]
[]
[]
[]
[]
[]
["SANCTIONS QUESTIONNAIRE"]
[null,1,"Does the company screen insurers and beneficiaries (where relevant) to determine if they are subject to measures imposed under Bermuda sanctions regime?",null,null,null,null,null,{"$f":"Import!E14769","v":"Select Yes/No"}]
[]
[null,2,"Does the company screen employees to determine if they are subject to measures imposed under Bermuda sanctions regime?",null,null,null,null,null,{"$f":"Import!E14769","v":"Select Yes/No"}]
[]
[null,3,"Has the Company frozen any customer assets in the last 12 months under the Bermuda sanctions regime?",null,null,null,null,null,{"$f":"Import!E14770","v":"Select Yes/No"}]
[]
[null,null,"3.1 If yes, how many asset freezes have there been?",null,null,null,null,null,{"$f":"Import!E14771","v":0}]
[]
[null,null,"3.2 Provide the following details for those assets freezes from the consolidated list:"]
[null,null,null,null,"Group ID","Name of the designated person as given on the consolidated list",null,null,"Name of the person/entity if owned/controlled by a designated person.","Value of Assets"]
[null,null,null,1,{"$f":"Import!E14772","v":0},{"$f":"Import!E14776","v":0},null,null,{"$f":"Import!E14780","v":0},{"$f":"Import!E14784","v":0}]
[null,null,null,2,{"$f":"Import!E14773","v":0},{"$f":"Import!E14777","v":0},null,null,{"$f":"Import!E14781","v":0},{"$f":"Import!E14785","v":0}]
[null,null,null,3,{"$f":"Import!E14774","v":0},{"$f":"Import!E14778","v":0},null,null,{"$f":"Import!E14782","v":0},{"$f":"Import!E14786","v":0}]
[null,null,null,4,{"$f":"Import!E14775","v":0},{"$f":"Import!E14779","v":0},null,null,{"$f":"Import!E14783","v":0},{"$f":"Import!E14787","v":0}]
[]
[null,4,"How often does the licensee screen for sanctions?",null,null,null,null,null,{"$f":"Import!E14789","v":"Select"}]
[]
[null,null,"Include any additional information/comments which you think might be relevant to this exercise?"]
[null,null,{"$f":"Import!E14790","v":0}]
[]
[]
[]
[]
[null,null,null,null,null,null,null,null,null,null,null,null,null,null,null,null,null,null,""]
[]
[]
[null,null,null,null,null,null,null,2016,"Every year","Yes"]
[null,null,null,null,null,null,null,2015,"1 to 2 years","No"]
[null,null,null,null,null,null,null,2014,"2 to 5 years"]
[null,null,null,null,null,null,null,2013,"+5 years"]
[null,null,null,null,null,null,null,2012]
[null,null,null,null,null,null,null,"Prior 2012"]

{"sheet":"Form 1SFS","index":16,"n_rows":336,"n_cols":24,"rows_kept":336,"cut":false,"hidden":false,"merged":[[247,2,248,8],[7,12,7,14],[7,4,7,6],[6,4,6,6],[6,12,6,14],[6,8,6,10],[7,8,7,10],[2,4,5,10],[318,4,318,8],[318,10,318,14],[220,8,220,10],[221,8,221,10],[222,8,222,10],[223,8,223,10],[224,8,224,10],[230,8,230,10],[231,8,231,10],[232,8,232,10],[233,8,233,10],[234,8,234,10],[241,2,242,8],[241,10,242,14],[244,2,245,8]]}
[null,"STATUTORY BALANCE SHEET",null,null,null,null,null,null,null,null,null,null,null,null,{"$f":"HYPERLINK(\"#'Index'!A1\",\"Return to Index\")","v":"Return to Index"}]
[]
[null,{"$f":"'Company Information'!C7","v":"Enter Company Name"},null,null,"Note if an insurer does not have any entities to consolidate, select \"No Subsidiaries\" on the Company Information tab (This cell is editable for deletion)",null,null,null,null,null,null,null,null,null,"FORM 1SFS"]
[null,"As at",{"$f":"'Company Information'!C3","v":"2019-12-31"}]
[null,{"$f":"\"expressed in\"& IF(CONFIGURATION!$B$12>1,\" ['\"&MID(CONFIGURATION!$B$12,2,LEN(CONFIGURATION!$B$12))&\"s]\",\"\")","v":"expressed in ['000s]"},"United States Dollars"]
[null,null,null,null,null,null,null,null,null,null,null,null,null,null,null,null,null,null,{"$f":"IF(M9=\"\",\"\",TEXT(DATE(YEAR(M9+1)-1,MONTH(M9+1),DAY(M9+1)),\"mm/dd/yyyy\"))","v":"01/01/2019"},{"$f":"IF(O9=\"\",\"\",TEXT(DATE(YEAR(O9+1)-1,MONTH(O9+1),DAY(O9+1)),\"mm/dd/yyyy\"))","v":"01/01/2018"}]
[null,null,null,null,"General Business",null,null,null,"Long-Term Business",null,null,null,"General & Long-Term Business"]
[null,"STMT.",null,null,"Unconsolidated",null,null,null,"Unconsolidated",null,null,null,"Consolidated",null,null,null,null,null,{"$f":"IF(M9=\"\",\"\",TEXT(M9,\"mm/dd/yyyy\"))","v":"12/31/2019"},{"$f":"IF(O9=\"\",\"\",TEXT(O9,\"mm/dd/yyyy\"))","v":"12/31/2018"}]
[null,"LINE No.",null,null,{"$f":"C4","v":"2019-12-31"},null,{"$f":"DATE(YEAR(C4) -1, MONTH(C4), DAY(C4))","v":"2018-12-31"},null,{"$f":"C4","v":"2019-12-31"},null,{"$f":"DATE(YEAR(C4) -1, MONTH(C4), DAY(C4))","v":"2018-12-31"},null,{"$f":"C4","v":"2019-12-31"},null,{"$f":"DATE(YEAR(C4) -1, MONTH(C4), DAY(C4))","v":"2018-12-31"}]
[null,null,null,null,{"$f":"CONFIGURATION!$D$12","v":" ('000s)"},null,{"$f":"CONFIGURATION!$D$12","v":" ('000s)"},null,{"$f":"CONFIGURATION!$D$12","v":" ('000s)"},null,{"$f":"CONFIGURATION!$D$12","v":" ('000s)"},null,{"$f":"CONFIGURATION!$D$12","v":" ('000s)"},null,{"$f":"CONFIGURATION!$D$12","v":" ('000s)"},null,null,""]
[null,null,null,null,null,null,null,null,null,null,null,null,null,null,null,null,null,""]
[null,"1.","CASH AND CASH EQUIVALENTS",null,{"$f":"+Import!E102","v":0},null,{"$f":"+Import!G102","v":0},null,{"$f":"+Import!E211","v":0},null,{"$f":"+Import!G211","v":0},null,{"$f":"+Import!I102","v":0},null,{"$f":"+Import!K102","v":0},null,null,"brrt_CashAndTimeDeposits",{"$f":"XBRLMap(M12,$R12,$S$6,$S$8,CONFIGURATION!$B$10,\"BMA\",CONFIGURATION!$B$1,\"bscr\",CONFIGURATION!$B$12)","v":"Mapped"},{"$f":"XBRLMap(O12,$R12,$T$6,$T$8,CONFIGURATION!$B$10,\"BMA\",CONFIGURATION!$B$1,\"bscr\",CONFIGURATION!$B$12)","v":"Mapped"},null,null,null,"bma_CashAndTimeDeposits"]
[null,null,null,null,null,null,null,null,null,null,null,null,null,null,null,null,null,"",{"$f":"XBRLMap(M13,$R13,$S$6,$S$8,CONFIGURATION!$B$10,\"BMA\",CONFIGURATION!$B$1,\"bscr\",CONFIGURATION!$B$12)","v":"-"},{"$f":"XBRLMap(O13,$R13,$T$6,$T$8,CONFIGURATION!$B$10,\"BMA\",CONFIGURATION!$B$1,\"bscr\",CONFIGURATION!$B$12)","v":"-"},null,null,null,""]
[null,"2.","QUOTED INVESTMENTS:",null,null,null,null,null,null,null,null,null,null,null,null,null,null,"",{"$f":"XBRLMap(M14,$R14,$S$6,$S$8,CONFIGURATION!$B$10,\"BMA\",CONFIGURATION!$B$1,\"bscr\",CONFIGURATION!$B$12)","v":"-"},{"$f":"XBRLMap(O14,$R14,$T$6,$T$8,CONFIGURATION!$B$10,\"BMA\",CONFIGURATION!$B$1,\"bscr\",CONFIGURATION!$B$12)","v":"-"}]
[null,"(a)","Bonds and Debentures",null,null,null,null,null,null,null,null,null,null,null,null,null,null,"",{"$f":"XBRLMap(M15,$R15,$S$6,$S$8,CONFIGURATION!$B$10,\"BMA\",CONFIGURATION!$B$1,\"bscr\",CONFIGURATION!$B$12)","v":"-"},{"$f":"XBRLMap(O15,$R15,$T$6,$T$8,CONFIGURATION!$B$10,\"BMA\",CONFIGURATION!$B$1,\"bscr\",CONFIGURATION!$B$12)","v":"-"}]
[null,null,"  i.   Held to maturity",null,{"$f":"+Import!E103","v":0},null,{"$f":"+Import!G103","v":0},null,{"$f":"+Import!E212","v":0},null,{"$f":"+Import!G212","v":0},null,{"$f":"+Import!I103","v":0},null,{"$f":"+Import!K103","v":0},null,null,"brrt_QuotedInvestmentsBondsAndDebenturesHeldToMaturity",{"$f":"XBRLMap(M16,$R16,$S$6,$S$8,CONFIGURATION!$B$10,\"BMA\",CONFIGURATION!$B$1,\"bscr\",CONFIGURATION!$B$12)","v":"Mapped"},{"$f":"XBRLMap(O16,$R16,$T$6,$T$8,CONFIGURATION!$B$10,\"BMA\",CONFIGURATION!$B$1,\"bscr\",CONFIGURATION!$B$12)","v":"Mapped"},null,null,null,"bma_QuotedInvestmentsBondsAndDebenturesHeldToMaturity"]
[null,null,"  ii.  Other",null,{"$f":"+Import!E104","v":0},null,{"$f":"+Import!G104","v":0},null,{"$f":"+Import!E213","v":0},null,{"$f":"+Import!G213","v":0},null,{"$f":"+Import!I104","v":0},null,{"$f":"+Import!K104","v":0},null,null,"brrt_QuotedInvestmentsBondsAndDebenturesOther",{"$f":"XBRLMap(M17,$R17,$S$6,$S$8,CONFIGURATION!$B$10,\"BMA\",CONFIGURATION!$B$1,\"bscr\",CONFIGURATION!$B$12)","v":"Mapped"},{"$f":"XBRLMap(O17,$R17,$T$6,$T$8,CONFIGURATION!$B$10,\"BMA\",CONFIGURATION!$B$1,\"bscr\",CONFIGURATION!$B$12)","v":"Mapped"},null,null,null,"bma_QuotedInvestmentsBondsAndDebenturesOther"]
[null,"(b)","Total Bonds and Debentures",null,{"$f":"SUM(E16:E17)","v":0},null,{"$f":"SUM(G16:G17)","v":0},null,{"$f":"SUM(I16:I17)","v":0},null,{"$f":"SUM(K16:K17)","v":0},null,{"$f":"SUM(M16:M17)","v":0},null,{"$f":"SUM(O16:O17)","v":0},null,null,"brrt_QuotedInvestmentsBondsAndDebentures",{"$f":"XBRLMap(M18,$R18,$S$6,$S$8,CONFIGURATION!$B$10,\"BMA\",CONFIGURATION!$B$1,\"bscr\",CONFIGURATION!$B$12)","v":"Mapped"},{"$f":"XBRLMap(O18,$R18,$T$6,$T$8,CONFIGURATION!$B$10,\"BMA\",CONFIGURATION!$B$1,\"bscr\",CONFIGURATION!$B$12)","v":"Mapped"},null,null,null,"bma_QuotedInvestmentsTotalBondsAndDebentures"]
[null,"(c) ","Equities ",null,null,null,null,null,null,null,null,null,null,null,null,null,null,"",{"$f":"XBRLMap(M19,$R19,$S$6,$S$8,CONFIGURATION!$B$10,\"BMA\",CONFIGURATION!$B$1,\"bscr\",CONFIGURATION!$B$12)","v":"-"},{"$f":"XBRLMap(O19,$R19,$T$6,$T$8,CONFIGURATION!$B$10,\"BMA\",CONFIGURATION!$B$1,\"bscr\",CONFIGURATION!$B$12)","v":"-"}]
[null,null,"  i.   Common stocks",null,{"$f":"Import!E106","v":0},null,{"$f":"Import!G106","v":0},null,{"$f":"+Import!E214","v":0},null,{"$f":"+Import!G214","v":0},null,{"$f":"+Import!I106","v":0},null,{"$f":"+Import!K106","v":0},null,null,"brrt_QuotedInvestmentsEquitiesCommonStocks",{"$f":"XBRLMap(M20,$R20,$S$6,$S$8,CONFIGURATION!$B$10,\"BMA\",CONFIGURATION!$B$1,\"bscr\",CONFIGURATION!$B$12)","v":"Mapped"},{"$f":"XBRLMap(O20,$R20,$T$6,$T$8,CONFIGURATION!$B$10,\"BMA\",CONFIGURATION!$B$1,\"bscr\",CONFIGURATION!$B$12)","v":"Mapped"},null,null,null,"bma_QuotedInvestmentsEquitiesCommonStocks"]
[null,null,"  ii. Preferred stocks",null,{"$f":"Import!E107","v":0},null,{"$f":"Import!G107","v":0},null,{"$f":"+Import!E215","v":0},null,{"$f":"+Import!G215","v":0},null,{"$f":"+Import!I107","v":0},null,{"$f":"+Import!K107","v":0},null,null,"brrt_QuotedInvestmentsEquitiesPreferredStocks",{"$f":"XBRLMap(M21,$R21,$S$6,$S$8,CONFIGURATION!$B$10,\"BMA\",CONFIGURATION!$B$1,\"bscr\",CONFIGURATION!$B$12)","v":"Mapped"},{"$f":"XBRLMap(O21,$R21,$T$6,$T$8,CONFIGURATION!$B$10,\"BMA\",CONFIGURATION!$B$1,\"bscr\",CONFIGURATION!$B$12)","v":"Mapped"},null,null,null,"bma_QuotedInvestmentsEquitiesPreferredStocks"]
[null,null,"  iii. Mutual Funds",null,{"$f":"Import!E108","v":0},null,{"$f":"Import!G108","v":0},null,{"$f":"+Import!E216","v":0},null,{"$f":"+Import!G216","v":0},null,{"$f":"+Import!I108","v":0},null,{"$f":"+Import!K108","v":0},null,null,"brrt_QuotedInvestmentsEquitiesMutualFunds",{"$f":"XBRLMap(M22,$R22,$S$6,$S$8,CONFIGURATION!$B$10,\"BMA\",CONFIGURATION!$B$1,\"bscr\",CONFIGURATION!$B$12)","v":"Mapped"},{"$f":"XBRLMap(O22,$R22,$T$6,$T$8,CONFIGURATION!$B$10,\"BMA\",CONFIGURATION!$B$1,\"bscr\",CONFIGURATION!$B$12)","v":"Mapped"},null,null,null,"bma_QuotedInvestmentsEquitiesMutualFunds"]
[null,"(d) ","Total equity investments",null,{"$f":"SUM(E20:E22)","v":0},null,{"$f":"SUM(G20:G22)","v":0},null,{"$f":"SUM(I20:I22)","v":0},null,{"$f":"SUM(K20:K22)","v":0},null,{"$f":"SUM(M20:M22)","v":0},null,{"$f":"SUM(O20:O22)","v":0},null,null,"brrt_QuotedInvestmentsEquities",{"$f":"XBRLMap(M23,$R23,$S$6,$S$8,CONFIGURATION!$B$10,\"BMA\",CONFIGURATION!$B$1,\"bscr\",CONFIGURATION!$B$12)","v":"Mapped"},{"$f":"XBRLMap(O23,$R23,$T$6,$T$8,CONFIGURATION!$B$10,\"BMA\",CONFIGURATION!$B$1,\"bscr\",CONFIGURATION!$B$12)","v":"Mapped"},null,null,null,"bma_QuotedInvestmentsTotalEquityInvestments"]
[null,"(e)","Other quoted investments",null,{"$f":"Import!E109","v":0},null,{"$f":"Import!G109","v":0},null,{"$f":"+Import!E217","v":0},null,{"$f":"+Import!G217","v":0},null,{"$f":"+Import!I109","v":0},null,{"$f":"+Import!K109","v":0},null,null,"brrt_QuotedInvestmentsOther",{"$f":"XBRLMap(M24,$R24,$S$6,$S$8,CONFIGURATION!$B$10,\"BMA\",CONFIGURATION!$B$1,\"bscr\",CONFIGURATION!$B$12)","v":"Mapped"},{"$f":"XBRLMap(O24,$R24,$T$6,$T$8,CONFIGURATION!$B$10,\"BMA\",CONFIGURATION!$B$1,\"bscr\",CONFIGURATION!$B$12)","v":"Mapped"},null,null,null,"bma_QuotedInvestmentsOtherInvestments"]
[null,"(f)","Total quoted investments",null,{"$f":"E18+E23+E24","v":0},null,{"$f":"G18+G23+G24","v":0},null,{"$f":"I18+I23+I24","v":0},null,{"$f":"K18+K23+K24","v":0},null,{"$f":"M18+M23+M24","v":0},null,{"$f":"O18+O23+O24","v":0},null,null,"brrt_QuotedInvestments",{"$f":"XBRLMap(M25,$R25,$S$6,$S$8,CONFIGURATION!$B$10,\"BMA\",CONFIGURATION!$B$1,\"bscr\",CONFIGURATION!$B$12)","v":"Mapped"},{"$f":"XBRLMap(O25,$R25,$T$6,$T$8,CONFIGURATION!$B$10,\"BMA\",CONFIGURATION!$B$1,\"bscr\",CONFIGURATION!$B$12)","v":"Mapped"},null,null,null,"bma_QuotedInvestmentsTotalInvestments"]
[null,null,null,null,null,null,null,null,null,null,null,null,null,null,null,null,null,"",{"$f":"XBRLMap(M26,$R26,$S$6,$S$8,CONFIGURATION!$B$10,\"BMA\",CONFIGURATION!$B$1,\"bscr\",CONFIGURATION!$B$12)","v":"-"},{"$f":"XBRLMap(O26,$R26,$T$6,$T$8,CONFIGURATION!$B$10,\"BMA\",CONFIGURATION!$B$1,\"bscr\",CONFIGURATION!$B$12)","v":"-"},null,null,null,""]
[null,"3.","UNQUOTED INVESTMENTS:",null,null,null,null,null,null,null,null,null,null,null,null,null,null,"",{"$f":"XBRLMap(M27,$R27,$S$6,$S$8,CONFIGURATION!$B$10,\"BMA\",CONFIGURATION!$B$1,\"bscr\",CONFIGURATION!$B$12)","v":"-"},{"$f":"XBRLMap(O27,$R27,$T$6,$T$8,CONFIGURATION!$B$10,\"BMA\",CONFIGURATION!$B$1,\"bscr\",CONFIGURATION!$B$12)","v":"-"}]
[null,"(a)","Bonds and Debentures",null,null,null,null,null,null,null,null,null,null,null,null,null,null,"",{"$f":"XBRLMap(M28,$R28,$S$6,$S$8,CONFIGURATION!$B$10,\"BMA\",CONFIGURATION!$B$1,\"bscr\",CONFIGURATION!$B$12)","v":"-"},{"$f":"XBRLMap(O28,$R28,$T$6,$T$8,CONFIGURATION!$B$10,\"BMA\",CONFIGURATION!$B$1,\"bscr\",CONFIGURATION!$B$12)","v":"-"}]
[null,null,"  i.   Held to maturity",null,{"$f":"Import!E110","v":0},null,{"$f":"Import!G110","v":0},null,{"$f":"+Import!E218","v":0},null,{"$f":"+Import!G218","v":0},null,{"$f":"+Import!I110","v":0},null,{"$f":"+Import!K110","v":0},null,null,"brrt_UnquotedInvestmentsBondsAndDebenturesHeldToMaturity",{"$f":"XBRLMap(M29,$R29,$S$6,$S$8,CONFIGURATION!$B$10,\"BMA\",CONFIGURATION!$B$1,\"bscr\",CONFIGURATION!$B$12)","v":"Mapped"},{"$f":"XBRLMap(O29,$R29,$T$6,$T$8,CONFIGURATION!$B$10,\"BMA\",CONFIGURATION!$B$1,\"bscr\",CONFIGURATION!$B$12)","v":"Mapped"},null,null,null,"bma_UnquotedInvestmentsBondsAndDebenturesHeldToMaturity"]
[null,null,"  ii.  Other",null,{"$f":"Import!E111","v":0},null,{"$f":"Import!G111","v":0},null,{"$f":"+Import!E219","v":0},null,{"$f":"+Import!G219","v":0},null,{"$f":"+Import!I111","v":0},null,{"$f":"+Import!K111","v":0},null,null,"brrt_UnquotedInvestmentsBondsAndDebenturesOther",{"$f":"XBRLMap(M30,$R30,$S$6,$S$8,CONFIGURATION!$B$10,\"BMA\",CONFIGURATION!$B$1,\"bscr\",CONFIGURATION!$B$12)","v":"Mapped"},{"$f":"XBRLMap(O30,$R30,$T$6,$T$8,CONFIGURATION!$B$10,\"BMA\",CONFIGURATION!$B$1,\"bscr\",CONFIGURATION!$B$12)","v":"Mapped"},null,null,null,"bma_UnquotedInvestmentsBondsAndDebenturesOther"]
[null,"(b)","Total Bonds and Debentures",null,{"$f":"SUM(E29:E30)","v":0},null,{"$f":"SUM(G29:G30)","v":0},null,{"$f":"SUM(I29:I30)","v":0},null,{"$f":"SUM(K29:K30)","v":0},null,{"$f":"SUM(M29:M30)","v":0},null,{"$f":"SUM(O29:O30)","v":0},null,null,"brrt_UnquotedInvestmentsBondsAndDebentures",{"$f":"XBRLMap(M31,$R31,$S$6,$S$8,CONFIGURATION!$B$10,\"BMA\",CONFIGURATION!$B$1,\"bscr\",CONFIGURATION!$B$12)","v":"Mapped"},{"$f":"XBRLMap(O31,$R31,$T$6,$T$8,CONFIGURATION!$B$10,\"BMA\",CONFIGURATION!$B$1,\"bscr\",CONFIGURATION!$B$12)","v":"Mapped"},null,null,null,"bma_UnquotedInvestmentsTotalBondsAndDebentures"]
[null,"(c) ","Equities ",null,null,null,null,null,null,null,null,null,null,null,null,null,null,"",{"$f":"XBRLMap(M32,$R32,$S$6,$S$8,CONFIGURATION!$B$10,\"BMA\",CONFIGURATION!$B$1,\"bscr\",CONFIGURATION!$B$12)","v":"-"},{"$f":"XBRLMap(O32,$R32,$T$6,$T$8,CONFIGURATION!$B$10,\"BMA\",CONFIGURATION!$B$1,\"bscr\",CONFIGURATION!$B$12)","v":"-"}]
[null,null,"  i.   Common stocks",null,{"$f":"Import!E113","v":0},null,{"$f":"Import!G113","v":0},null,{"$f":"+Import!E220","v":0},null,{"$f":"+Import!G220","v":0},null,{"$f":"+Import!I113","v":0},null,{"$f":"+Import!K113","v":0},null,null,"brrt_UnquotedInvestmentsEquitiesCommonStocks",{"$f":"XBRLMap(M33,$R33,$S$6,$S$8,CONFIGURATION!$B$10,\"BMA\",CONFIGURATION!$B$1,\"bscr\",CONFIGURATION!$B$12)","v":"Mapped"},{"$f":"XBRLMap(O33,$R33,$T$6,$T$8,CONFIGURATION!$B$10,\"BMA\",CONFIGURATION!$B$1,\"bscr\",CONFIGURATION!$B$12)","v":"Mapped"},null,null,null,"bma_UnquotedInvestmentsEquitiesCommonStocks"]
[null,null,"  ii. Preferred stocks",null,{"$f":"Import!E114","v":0},null,{"$f":"Import!G114","v":0},null,{"$f":"+Import!E221","v":0},null,{"$f":"+Import!G221","v":0},null,{"$f":"+Import!I114","v":0},null,{"$f":"+Import!K114","v":0},null,null,"brrt_UnquotedInvestmentsEquitiesPreferredStocks",{"$f":"XBRLMap(M34,$R34,$S$6,$S$8,CONFIGURATION!$B$10,\"BMA\",CONFIGURATION!$B$1,\"bscr\",CONFIGURATION!$B$12)","v":"Mapped"},{"$f":"XBRLMap(O34,$R34,$T$6,$T$8,CONFIGURATION!$B$10,\"BMA\",CONFIGURATION!$B$1,\"bscr\",CONFIGURATION!$B$12)","v":"Mapped"},null,null,null,"bma_UnquotedInvestmentsEquitiesPreferredStocks"]
[null,null,"  iii . Mutual Funds",null,{"$f":"Import!E115","v":0},null,{"$f":"Import!G115","v":0},null,{"$f":"+Import!E222","v":0},null,{"$f":"+Import!G222","v":0},null,{"$f":"+Import!I115","v":0},null,{"$f":"+Import!K115","v":0},null,null,"brrt_UnquotedInvestmentsEquitiesMutualFunds",{"$f":"XBRLMap(M35,$R35,$S$6,$S$8,CONFIGURATION!$B$10,\"BMA\",CONFIGURATION!$B$1,\"bscr\",CONFIGURATION!$B$12)","v":"Mapped"},{"$f":"XBRLMap(O35,$R35,$T$6,$T$8,CONFIGURATION!$B$10,\"BMA\",CONFIGURATION!$B$1,\"bscr\",CONFIGURATION!$B$12)","v":"Mapped"},null,null,null,"bma_UnquotedInvestmentsEquitiesMutualFunds"]
[null,"(d) ","Total equity investments",null,{"$f":"SUM(E33:E35)","v":0},null,{"$f":"SUM(G33:G35)","v":0},null,{"$f":"SUM(I33:I35)","v":0},null,{"$f":"SUM(K33:K35)","v":0},null,{"$f":"SUM(M33:M35)","v":0},null,{"$f":"SUM(O33:O35)","v":0},null,null,"brrt_UnquotedInvestmentsEquities",{"$f":"XBRLMap(M36,$R36,$S$6,$S$8,CONFIGURATION!$B$10,\"BMA\",CONFIGURATION!$B$1,\"bscr\",CONFIGURATION!$B$12)","v":"Mapped"},{"$f":"XBRLMap(O36,$R36,$T$6,$T$8,CONFIGURATION!$B$10,\"BMA\",CONFIGURATION!$B$1,\"bscr\",CONFIGURATION!$B$12)","v":"Mapped"},null,null,null,"bma_UnquotedInvestmentsTotalEquityInvestments"]
[null,"(e) ","Other unquoted investments",null,{"$f":"Import!E116","v":0},null,{"$f":"Import!G116","v":0},null,{"$f":"+Import!E223","v":0},null,{"$f":"+Import!G223","v":0},null,{"$f":"+Import!I116","v":0},null,{"$f":"+Import!K116","v":0},null,null,"brrt_UnquotedInvestmentsOther",{"$f":"XBRLMap(M37,$R37,$S$6,$S$8,CONFIGURATION!$B$10,\"BMA\",CONFIGURATION!$B$1,\"bscr\",CONFIGURATION!$B$12)","v":"Mapped"},{"$f":"XBRLMap(O37,$R37,$T$6,$T$8,CONFIGURATION!$B$10,\"BMA\",CONFIGURATION!$B$1,\"bscr\",CONFIGURATION!$B$12)","v":"Mapped"},null,null,null,"bma_UnquotedInvestmentsOtherInvestments"]
[null,"(f) ","Total unquoted investments",null,{"$f":"E31+E36+E37","v":0},null,{"$f":"G31+G36+G37","v":0},null,{"$f":"I31+I36+I37","v":0},null,{"$f":"K31+K36+K37","v":0},null,{"$f":"M31+M36+M37","v":0},null,{"$f":"O31+O36+O37","v":0},null,null,"brrt_UnquotedInvestments",{"$f":"XBRLMap(M38,$R38,$S$6,$S$8,CONFIGURATION!$B$10,\"BMA\",CONFIGURATION!$B$1,\"bscr\",CONFIGURATION!$B$12)","v":"Mapped"},{"$f":"XBRLMap(O38,$R38,$T$6,$T$8,CONFIGURATION!$B$10,\"BMA\",CONFIGURATION!$B$1,\"bscr\",CONFIGURATION!$B$12)","v":"Mapped"},null,null,null,"bma_UnquotedInvestmentsTotalInvestments"]
[null,null,null,null,null,null,null,null,null,null,null,null,null,null,null,null,null,"",{"$f":"XBRLMap(M39,$R39,$S$6,$S$8,CONFIGURATION!$B$10,\"BMA\",CONFIGURATION!$B$1,\"bscr\",CONFIGURATION!$B$12)","v":"-"},{"$f":"XBRLMap(O39,$R39,$T$6,$T$8,CONFIGURATION!$B$10,\"BMA\",CONFIGURATION!$B$1,\"bscr\",CONFIGURATION!$B$12)","v":"-"},null,null,null,""]
[null,"4.","INVESTMENTS IN AND ADVANCES TO AFFILIATES (EQUITY METHOD):",null,null,null,null,null,null,null,null,null,null,null,null,null,null,"",{"$f":"XBRLMap(M40,$R40,$S$6,$S$8,CONFIGURATION!$B$10,\"BMA\",CONFIGURATION!$B$1,\"bscr\",CONFIGURATION!$B$12)","v":"-"},{"$f":"XBRLMap(O40,$R40,$T$6,$T$8,CONFIGURATION!$B$10,\"BMA\",CONFIGURATION!$B$1,\"bscr\",CONFIGURATION!$B$12)","v":"-"}]
[null,"(a)","Unregulated entities that conduct ancillary services",null,{"$f":"Import!E117","v":0},null,{"$f":"Import!G117","v":0},null,{"$f":"+Import!E224","v":0},null,{"$f":"+Import!G224","v":0},null,{"$f":"+Import!I117","v":0},null,{"$f":"+Import!K117","v":0}]
[null,"(b)","Unregulated non-financial operating entities",null,{"$f":"Import!E118","v":0},null,{"$f":"Import!G118","v":0},null,{"$f":"+Import!E225","v":0},null,{"$f":"+Import!G225","v":0},null,{"$f":"+Import!I118","v":0},null,{"$f":"+Import!K118","v":0}]
[null,"(c)","Unregulated financial operating entities",null,{"$f":"Import!E119","v":0},null,{"$f":"Import!G119","v":0},null,{"$f":"+Import!E226","v":0},null,{"$f":"+Import!G226","v":0},null,{"$f":"+Import!I119","v":0},null,{"$f":"+Import!K119","v":0}]
[null,"(d)","Regulated non-insurance financial operating entities",null,{"$f":"Import!E120","v":0},null,{"$f":"Import!G120","v":0},null,{"$f":"+Import!E227","v":0},null,{"$f":"+Import!G227","v":0},null,{"$f":"+Import!I120","v":0},null,{"$f":"+Import!K120","v":0}]
[null,"(e)","Regulated insurance financial operating entities",null,{"$f":"Import!E121","v":0},null,{"$f":"Import!G121","v":0},null,{"$f":"+Import!E228","v":0},null,{"$f":"+Import!G228","v":0},null,{"$f":"+Import!I121","v":0},null,{"$f":"+Import!K121","v":0}]
[null,"(f)","Total investments in affiliates (equity method)",null,{"$f":"SUM(E41:E45)","v":0},null,{"$f":"SUM(G41:G45)","v":0},null,{"$f":"SUM(I41:I45)","v":0},null,{"$f":"SUM(K41:K45)","v":0},null,{"$f":"SUM(M41:M45)","v":0},null,{"$f":"SUM(O41:O45)","v":0},null,null,"brrt_InvestmentInAffiliates",{"$f":"XBRLMap(M46,$R46,$S$6,$S$8,CONFIGURATION!$B$10,\"BMA\",CONFIGURATION!$B$1,\"bscr\",CONFIGURATION!$B$12)","v":"Mapped"},{"$f":"XBRLMap(O46,$R46,$T$6,$T$8,CONFIGURATION!$B$10,\"BMA\",CONFIGURATION!$B$1,\"bscr\",CONFIGURATION!$B$12)","v":"Mapped"},null,null,null,"bma_InvestmentsInAndAdvancesToAffiliatesInvestmentInAffiliatesCostOrEquity"]
[null,"(g)","Advances to affiliates",null,{"$f":"Import!E122","v":0},null,{"$f":"Import!G122","v":0},null,{"$f":"+Import!E229","v":0},null,{"$f":"+Import!G229","v":0},null,{"$f":"+Import!I122","v":0},null,{"$f":"+Import!K122","v":0},null,null,"brrt_AdvancesToAffiliates",{"$f":"XBRLMap(M47,$R47,$S$6,$S$8,CONFIGURATION!$B$10,\"BMA\",CONFIGURATION!$B$1,\"bscr\",CONFIGURATION!$B$12)","v":"Mapped"},{"$f":"XBRLMap(O47,$R47,$T$6,$T$8,CONFIGURATION!$B$10,\"BMA\",CONFIGURATION!$B$1,\"bscr\",CONFIGURATION!$B$12)","v":"Mapped"},null,null,null,"bma_InvestmentsInAndAdvancesToAffiliatesAdvancesToAffiliates"]
[null,"(h)","Total investments in and advances to affiliates (equity method)",null,{"$f":"E46+E47","v":0},null,{"$f":"G46+G47","v":0},null,{"$f":"I46+I47","v":0},null,{"$f":"K46+K47","v":0},null,{"$f":"M46+M47","v":0},null,{"$f":"O46+O47","v":0},null,null,"brrt_InvestmentInAndAdvancesToAffiliates",{"$f":"XBRLMap(M48,$R48,$S$6,$S$8,CONFIGURATION!$B$10,\"BMA\",CONFIGURATION!$B$1,\"bscr\",CONFIGURATION!$B$12)","v":"Mapped"},{"$f":"XBRLMap(O48,$R48,$T$6,$T$8,CONFIGURATION!$B$10,\"BMA\",CONFIGURATION!$B$1,\"bscr\",CONFIGURATION!$B$12)","v":"Mapped"},null,null,null,"bma_InvestmentsInAndAdvancesToAffiliatesTotalInvestmentsInAndAdvancesToAffiliates"]
[null,null,null,null,null,null,null,null,null,null,null,null,null,null,null,null,null,"",{"$f":"XBRLMap(M49,$R49,$S$6,$S$8,CONFIGURATION!$B$10,\"BMA\",CONFIGURATION!$B$1,\"bscr\",CONFIGURATION!$B$12)","v":"-"},{"$f":"XBRLMap(O49,$R49,$T$6,$T$8,CONFIGURATION!$B$10,\"BMA\",CONFIGURATION!$B$1,\"bscr\",CONFIGURATION!$B$12)","v":"-"},null,null,null,""]
[null,"5.","INVESTMENTS IN MORTGAGE LOANS ON REAL ESTATE:",null,null,null,null,null,null,null,null,null,null,null,null,null,null,"",{"$f":"XBRLMap(M50,$R50,$S$6,$S$8,CONFIGURATION!$B$10,\"BMA\",CONFIGURATION!$B$1,\"bscr\",CONFIGURATION!$B$12)","v":"-"},{"$f":"XBRLMap(O50,$R50,$T$6,$T$8,CONFIGURATION!$B$10,\"BMA\",CONFIGURATION!$B$1,\"bscr\",CONFIGURATION!$B$12)","v":"-"}]
[null,"(a)","First liens",null,{"$f":"Import!E123","v":0},null,{"$f":"Import!G123","v":0},null,{"$f":"+Import!E230","v":0},null,{"$f":"+Import!G230","v":0},null,{"$f":"+Import!I123","v":0},null,{"$f":"+Import!K123","v":0},null,null,"brrt_InvestmentsInMortgageLoansOnRealEstateFirstLiens",{"$f":"XBRLMap(M51,$R51,$S$6,$S$8,CONFIGURATION!$B$10,\"BMA\",CONFIGURATION!$B$1,\"bscr\",CONFIGURATION!$B$12)","v":"Mapped"},{"$f":"XBRLMap(O51,$R51,$T$6,$T$8,CONFIGURATION!$B$10,\"BMA\",CONFIGURATION!$B$1,\"bscr\",CONFIGURATION!$B$12)","v":"Mapped"},null,null,null,"bma_InvestmentsInMortgageLoansOnRealEstateFirstLiens"]
[null,"(b)","Other than first liens ",null,{"$f":"Import!E124","v":0},null,{"$f":"Import!G124","v":0},null,{"$f":"+Import!E231","v":0},null,{"$f":"+Import!G231","v":0},null,{"$f":"+Import!I124","v":0},null,{"$f":"+Import!K124","v":0},null,null,"brrt_InvestmentsInMortgageLoansOnRealEstateOtherThanFirstLiens",{"$f":"XBRLMap(M52,$R52,$S$6,$S$8,CONFIGURATION!$B$10,\"BMA\",CONFIGURATION!$B$1,\"bscr\",CONFIGURATION!$B$12)","v":"Mapped"},{"$f":"XBRLMap(O52,$R52,$T$6,$T$8,CONFIGURATION!$B$10,\"BMA\",CONFIGURATION!$B$1,\"bscr\",CONFIGURATION!$B$12)","v":"Mapped"},null,null,null,"bma_InvestmentsInMortgageLoansOnRealEstateOtherThanFirstLiens"]
[null,"(c) ","Total investments in mortgage loans on real estate",null,{"$f":"SUM(E51:E52)","v":0},null,{"$f":"SUM(G51:G52)","v":0},null,{"$f":"SUM(I51:I52)","v":0},null,{"$f":"SUM(K51:K52)","v":0},null,{"$f":"SUM(M51:M52)","v":0},null,{"$f":"SUM(O51:O52)","v":0},null,null,"brrt_InvestmentsInMortgageLoansOnRealEstate",{"$f":"XBRLMap(M53,$R53,$S$6,$S$8,CONFIGURATION!$B$10,\"BMA\",CONFIGURATION!$B$1,\"bscr\",CONFIGURATION!$B$12)","v":"Mapped"},{"$f":"XBRLMap(O53,$R53,$T$6,$T$8,CONFIGURATION!$B$10,\"BMA\",CONFIGURATION!$B$1,\"bscr\",CONFIGURATION!$B$12)","v":"Mapped"},null,null,null,"bma_InvestmentsInMortgageLoansOnRealEstateTotalInvestmentsInMortgageLoansOnRealEstate"]
[null,null,null,null,null,null,null,null,null,null,null,null,null,null,null,null,null,"",{"$f":"XBRLMap(M54,$R54,$S$6,$S$8,CONFIGURATION!$B$10,\"BMA\",CONFIGURATION!$B$1,\"bscr\",CONFIGURATION!$B$12)","v":"-"},{"$f":"XBRLMap(O54,$R54,$T$6,$T$8,CONFIGURATION!$B$10,\"BMA\",CONFIGURATION!$B$1,\"bscr\",CONFIGURATION!$B$12)","v":"-"},null,null,null,""]
[null,"6.","POLICY LOANS",null,null,null,null,null,{"$f":"+Import!E232","v":0},null,{"$f":"+Import!G232","v":0},null,{"$f":"+Import!I125","v":0},null,{"$f":"+Import!K125","v":0}]
[]
[null,"7.","REAL ESTATE:",null,null,null,null,null,null,null,null,null,null,null,null,null,null,"",{"$f":"XBRLMap(M57,$R57,$S$6,$S$8,CONFIGURATION!$B$10,\"BMA\",CONFIGURATION!$B$1,\"bscr\",CONFIGURATION!$B$12)","v":"-"},{"$f":"XBRLMap(O57,$R57,$T$6,$T$8,CONFIGURATION!$B$10,\"BMA\",CONFIGURATION!$B$1,\"bscr\",CONFIGURATION!$B$12)","v":"-"}]
[null,"(a)","Occupied by the company (less encumbrances)",null,{"$f":"Import!E126","v":0},null,{"$f":"Import!G126","v":0},null,{"$f":"+Import!E233","v":0},null,{"$f":"+Import!G233","v":0},null,{"$f":"+Import!I126","v":0},null,{"$f":"+Import!K126","v":0},null,null,"brrt_RealEstateOccupiedByTheCompanyLessEncumbrances",{"$f":"XBRLMap(M58,$R58,$S$6,$S$8,CONFIGURATION!$B$10,\"BMA\",CONFIGURATION!$B$1,\"bscr\",CONFIGURATION!$B$12)","v":"Mapped"},{"$f":"XBRLMap(O58,$R58,$T$6,$T$8,CONFIGURATION!$B$10,\"BMA\",CONFIGURATION!$B$1,\"bscr\",CONFIGURATION!$B$12)","v":"Mapped"},null,null,null,"bma_RealEstateOccupiedByTheCompanyLessEncumbrances"]
[null,"(b)","Other properties (less encumbrances)",null,{"$f":"Import!E127","v":0},null,{"$f":"Import!G127","v":0},null,{"$f":"+Import!E234","v":0},null,{"$f":"+Import!G234","v":0},null,{"$f":"+Import!I127","v":0},null,{"$f":"+Import!K127","v":0},null,null,"brrt_OtherRealEstatePropertiesLessEncumbrances",{"$f":"XBRLMap(M59,$R59,$S$6,$S$8,CONFIGURATION!$B$10,\"BMA\",CONFIGURATION!$B$1,\"bscr\",CONFIGURATION!$B$12)","v":"Mapped"},{"$f":"XBRLMap(O59,$R59,$T$6,$T$8,CONFIGURATION!$B$10,\"BMA\",CONFIGURATION!$B$1,\"bscr\",CONFIGURATION!$B$12)","v":"Mapped"},null,null,null,"bma_RealEstateOtherPropertiesLessEncumbrances"]
[null,"(c) ","Total real estate",null,{"$f":"SUM(E58:E59)","v":0},null,{"$f":"SUM(G58:G59)","v":0},null,{"$f":"SUM(I58:I59)","v":0},null,{"$f":"SUM(K58:K59)","v":0},null,{"$f":"SUM(M58:M59)","v":0},null,{"$f":"SUM(O58:O59)","v":0},null,null,"brrt_RealEstate",{"$f":"XBRLMap(M60,$R60,$S$6,$S$8,CONFIGURATION!$B$10,\"BMA\",CONFIGURATION!$B$1,\"bscr\",CONFIGURATION!$B$12)","v":"Mapped"},{"$f":"XBRLMap(O60,$R60,$T$6,$T$8,CONFIGURATION!$B$10,\"BMA\",CONFIGURATION!$B$1,\"bscr\",CONFIGURATION!$B$12)","v":"Mapped"},null,null,null,"bma_TotalRealEstate"]
[null,null,null,null,null,null,null,null,null,null,null,null,null,null,null,null,null,"",{"$f":"XBRLMap(M61,$R61,$S$6,$S$8,CONFIGURATION!$B$10,\"BMA\",CONFIGURATION!$B$1,\"bscr\",CONFIGURATION!$B$12)","v":"-"},{"$f":"XBRLMap(O61,$R61,$T$6,$T$8,CONFIGURATION!$B$10,\"BMA\",CONFIGURATION!$B$1,\"bscr\",CONFIGURATION!$B$12)","v":"-"},null,null,null,""]
[null,"8.","COLLATERAL LOANS",null,{"$f":"Import!E128","v":0},null,{"$f":"Import!G128","v":0},null,{"$f":"+Import!E235","v":0},null,{"$f":"+Import!G235","v":0},null,{"$f":"+Import!I128","v":0},null,{"$f":"+Import!K128","v":0},null,null,"brrt_CollateralLoans",{"$f":"XBRLMap(M62,$R62,$S$6,$S$8,CONFIGURATION!$B$10,\"BMA\",CONFIGURATION!$B$1,\"bscr\",CONFIGURATION!$B$12)","v":"Mapped"},{"$f":"XBRLMap(O62,$R62,$T$6,$T$8,CONFIGURATION!$B$10,\"BMA\",CONFIGURATION!$B$1,\"bscr\",CONFIGURATION!$B$12)","v":"Mapped"},null,null,null,"bma_CollateralLoans"]
[null,null,null,null,null,null,null,null,null,null,null,null,null,null,null,null,null,"",{"$f":"XBRLMap(M63,$R63,$S$6,$S$8,CONFIGURATION!$B$10,\"BMA\",CONFIGURATION!$B$1,\"bscr\",CONFIGURATION!$B$12)","v":"-"},{"$f":"XBRLMap(O63,$R63,$T$6,$T$8,CONFIGURATION!$B$10,\"BMA\",CONFIGURATION!$B$1,\"bscr\",CONFIGURATION!$B$12)","v":"-"},null,null,null,""]
[null,"9.","INVESTMENT INCOME DUE AND ACCRUED",null,{"$f":"Import!E129","v":0},null,{"$f":"Import!G129","v":0},null,{"$f":"+Import!E236","v":0},null,{"$f":"+Import!G236","v":0},null,{"$f":"+Import!I129","v":0},null,{"$f":"+Import!K129","v":0},null,null,"brrt_InvestmentIncomeDueAndAccrued",{"$f":"XBRLMap(M64,$R64,$S$6,$S$8,CONFIGURATION!$B$10,\"BMA\",CONFIGURATION!$B$1,\"bscr\",CONFIGURATION!$B$12)","v":"Mapped"},{"$f":"XBRLMap(O64,$R64,$T$6,$T$8,CONFIGURATION!$B$10,\"BMA\",CONFIGURATION!$B$1,\"bscr\",CONFIGURATION!$B$12)","v":"Mapped"},null,null,null,"bma_InvestmentIncomeDueAndAccrued"]
[null,null,null,null,null,null,null,null,null,null,null,null,null,null,null,null,null,"",{"$f":"XBRLMap(M65,$R65,$S$6,$S$8,CONFIGURATION!$B$10,\"BMA\",CONFIGURATION!$B$1,\"bscr\",CONFIGURATION!$B$12)","v":"-"},{"$f":"XBRLMap(O65,$R65,$T$6,$T$8,CONFIGURATION!$B$10,\"BMA\",CONFIGURATION!$B$1,\"bscr\",CONFIGURATION!$B$12)","v":"-"},null,null,null,""]
[null,"10.","ACCOUNTS AND PREMIUMS RECEIVABLE:",null,null,null,null,null,null,null,null,null,null,null,null,null,null,"",{"$f":"XBRLMap(M66,$R66,$S$6,$S$8,CONFIGURATION!$B$10,\"BMA\",CONFIGURATION!$B$1,\"bscr\",CONFIGURATION!$B$12)","v":"-"},{"$f":"XBRLMap(O66,$R66,$T$6,$T$8,CONFIGURATION!$B$10,\"BMA\",CONFIGURATION!$B$1,\"bscr\",CONFIGURATION!$B$12)","v":"-"}]
[null,"(a)","In course of collection",null,{"$f":"Import!E130","v":0},null,{"$f":"Import!G130","v":0},null,{"$f":"+Import!E237","v":0},null,{"$f":"+Import!G237","v":0},null,{"$f":"+Import!I130","v":0},null,{"$f":"+Import!K130","v":0},null,null,"brrt_AccountsAndPremiumsReceivableInCourseOfCollection",{"$f":"XBRLMap(M67,$R67,$S$6,$S$8,CONFIGURATION!$B$10,\"BMA\",CONFIGURATION!$B$1,\"bscr\",CONFIGURATION!$B$12)","v":"Mapped"},{"$f":"XBRLMap(O67,$R67,$T$6,$T$8,CONFIGURATION!$B$10,\"BMA\",CONFIGURATION!$B$1,\"bscr\",CONFIGURATION!$B$12)","v":"Mapped"},null,null,null,"bma_AccountsAndPremiumsReceivableInCourseOfCollection"]
[null,"(b)","Deferred - not yet due",null,{"$f":"Import!E131","v":0},null,{"$f":"Import!G131","v":0},null,{"$f":"+Import!E238","v":0},null,{"$f":"+Import!G238","v":0},null,{"$f":"+Import!I131","v":0},null,{"$f":"+Import!K131","v":0}]
[null,"(c) ","Receivables from retrocessional contracts",null,{"$f":"Import!E132","v":0},null,{"$f":"Import!G132","v":0},null,{"$f":"+Import!E239","v":0},null,{"$f":"+Import!G239","v":0},null,{"$f":"+Import!I132","v":0},null,{"$f":"+Import!K132","v":0},null,null,"brrt_AccountsAndPremiumsReceivableReceivablesFromRetrocessionalContracts",{"$f":"XBRLMap(M69,$R69,$S$6,$S$8,CONFIGURATION!$B$10,\"BMA\",CONFIGURATION!$B$1,\"bscr\",CONFIGURATION!$B$12)","v":"Mapped"},{"$f":"XBRLMap(O69,$R69,$T$6,$T$8,CONFIGURATION!$B$10,\"BMA\",CONFIGURATION!$B$1,\"bscr\",CONFIGURATION!$B$12)","v":"Mapped"},null,null,null,"bma_AccountsAndPremiumsReceivableReceivablesFromRetrocessionalContracts"]
[null,"(d) ","Total accounts and premiums receivable",null,{"$f":"SUM(E67:E69)","v":0},null,{"$f":"SUM(G67:G69)","v":0},null,{"$f":"SUM(I67:I69)","v":0},null,{"$f":"SUM(K67:K69)","v":0},null,{"$f":"SUM(M67:M69)","v":0},null,{"$f":"SUM(O67:O69)","v":0},null,null,"brrt_AccountsAndPremiumsReceivable",{"$f":"XBRLMap(M70,$R70,$S$6,$S$8,CONFIGURATION!$B$10,\"BMA\",CONFIGURATION!$B$1,\"bscr\",CONFIGURATION!$B$12)","v":"Mapped"},{"$f":"XBRLMap(O70,$R70,$T$6,$T$8,CONFIGURATION!$B$10,\"BMA\",CONFIGURATION!$B$1,\"bscr\",CONFIGURATION!$B$12)","v":"Mapped"},null,null,null,"bma_TotalAccountsAndPremiumsReceivable"]
[null,null,null,null,null,null,null,null,null,null,null,null,null,null,null,null,null,"",{"$f":"XBRLMap(M71,$R71,$S$6,$S$8,CONFIGURATION!$B$10,\"BMA\",CONFIGURATION!$B$1,\"bscr\",CONFIGURATION!$B$12)","v":"-"},{"$f":"XBRLMap(O71,$R71,$T$6,$T$8,CONFIGURATION!$B$10,\"BMA\",CONFIGURATION!$B$1,\"bscr\",CONFIGURATION!$B$12)","v":"-"},null,null,null,""]
[null,"11.","REINSURANCE BALANCES RECEIVABLE:",null,null,null,null,null,null,null,null,null,null,null,null,null,null,"",{"$f":"XBRLMap(M72,$R72,$S$6,$S$8,CONFIGURATION!$B$10,\"BMA\",CONFIGURATION!$B$1,\"bscr\",CONFIGURATION!$B$12)","v":"-"},{"$f":"XBRLMap(O72,$R72,$T$6,$T$8,CONFIGURATION!$B$10,\"BMA\",CONFIGURATION!$B$1,\"bscr\",CONFIGURATION!$B$12)","v":"-"}]
[null,"(a)","Foreign affiliates",null,{"$f":"Import!E133","v":0},null,{"$f":"Import!G133","v":0},null,{"$f":"+Import!E240","v":0},null,{"$f":"+Import!G240","v":0},null,{"$f":"+Import!I133","v":0},null,{"$f":"+Import!K133","v":0},null,null,"brrt_ReinsuranceBalancesReceivableForeignAffiliates",{"$f":"XBRLMap(M73,$R73,$S$6,$S$8,CONFIGURATION!$B$10,\"BMA\",CONFIGURATION!$B$1,\"bscr\",CONFIGURATION!$B$12)","v":"Mapped"},{"$f":"XBRLMap(O73,$R73,$T$6,$T$8,CONFIGURATION!$B$10,\"BMA\",CONFIGURATION!$B$1,\"bscr\",CONFIGURATION!$B$12)","v":"Mapped"},null,null,null,"bma_ReinsuranceBalancesReceivableForeignAffiliates"]
[null,"(b)","Domestic affiliates",null,{"$f":"Import!E134","v":0},null,{"$f":"Import!G134","v":0},null,{"$f":"+Import!E241","v":0},null,{"$f":"+Import!G241","v":0},null,{"$f":"+Import!I134","v":0},null,{"$f":"+Import!K134","v":0},null,null,"brrt_ReinsuranceBalancesReceivableDomesticAffiliates",{"$f":"XBRLMap(M74,$R74,$S$6,$S$8,CONFIGURATION!$B$10,\"BMA\",CONFIGURATION!$B$1,\"bscr\",CONFIGURATION!$B$12)","v":"Mapped"},{"$f":"XBRLMap(O74,$R74,$T$6,$T$8,CONFIGURATION!$B$10,\"BMA\",CONFIGURATION!$B$1,\"bscr\",CONFIGURATION!$B$12)","v":"Mapped"},null,null,null,"bma_ReinsuranceBalancesReceivableDomesticAffiliates"]
[null,"(c) ","Pools & associations",null,{"$f":"Import!E135","v":0},null,{"$f":"Import!G135","v":0},null,{"$f":"+Import!E242","v":0},null,{"$f":"+Import!G242","v":0},null,{"$f":"+Import!I135","v":0},null,{"$f":"+Import!K135","v":0},null,null,"brrt_ReinsuranceBalancesReceivablePoolsAndAssociations",{"$f":"XBRLMap(M75,$R75,$S$6,$S$8,CONFIGURATION!$B$10,\"BMA\",CONFIGURATION!$B$1,\"bscr\",CONFIGURATION!$B$12)","v":"Mapped"},{"$f":"XBRLMap(O75,$R75,$T$6,$T$8,CONFIGURATION!$B$10,\"BMA\",CONFIGURATION!$B$1,\"bscr\",CONFIGURATION!$B$12)","v":"Mapped"},null,null,null,"bma_ReinsuranceBalancesReceivablePoolsAndAssociations"]
[null,"(d) ","All other insurers",null,{"$f":"Import!E136","v":0},null,{"$f":"Import!G136","v":0},null,{"$f":"+Import!E243","v":0},null,{"$f":"+Import!G243","v":0},null,{"$f":"+Import!I136","v":0},null,{"$f":"+Import!K136","v":0},null,null,"brrt_ReinsuranceBalancesReceivableAllOtherInsurers",{"$f":"XBRLMap(M76,$R76,$S$6,$S$8,CONFIGURATION!$B$10,\"BMA\",CONFIGURATION!$B$1,\"bscr\",CONFIGURATION!$B$12)","v":"Mapped"},{"$f":"XBRLMap(O76,$R76,$T$6,$T$8,CONFIGURATION!$B$10,\"BMA\",CONFIGURATION!$B$1,\"bscr\",CONFIGURATION!$B$12)","v":"Mapped"},null,null,null,"bma_ReinsuranceBalancesReceivableAllOtherInsurers"]
[null,"(e)","Total reinsurance balances receivable",null,{"$f":"SUM(E73:E76)","v":0},null,{"$f":"SUM(G73:G76)","v":0},null,{"$f":"SUM(I73:I76)","v":0},null,{"$f":"SUM(K73:K76)","v":0},null,{"$f":"SUM(M73:M76)","v":0},null,{"$f":"SUM(O73:O76)","v":0},null,null,"brrt_ReinsuranceBalancesReceivable",{"$f":"XBRLMap(M77,$R77,$S$6,$S$8,CONFIGURATION!$B$10,\"BMA\",CONFIGURATION!$B$1,\"bscr\",CONFIGURATION!$B$12)","v":"Mapped"},{"$f":"XBRLMap(O77,$R77,$T$6,$T$8,CONFIGURATION!$B$10,\"BMA\",CONFIGURATION!$B$1,\"bscr\",CONFIGURATION!$B$12)","v":"Mapped"},null,null,null,"bma_TotalReinsuranceBalancesReceivable"]
[null,null,null,null,null,null,null,null,null,null,null,null,null,null,null,null,null,"",{"$f":"XBRLMap(M78,$R78,$S$6,$S$8,CONFIGURATION!$B$10,\"BMA\",CONFIGURATION!$B$1,\"bscr\",CONFIGURATION!$B$12)","v":"-"},{"$f":"XBRLMap(O78,$R78,$T$6,$T$8,CONFIGURATION!$B$10,\"BMA\",CONFIGURATION!$B$1,\"bscr\",CONFIGURATION!$B$12)","v":"-"},null,null,null,""]
[null,"12.","FUNDS HELD BY CEDING REINSURERS:",null,{"$f":"Import!E139","v":0},null,{"$f":"Import!G139","v":0},null,{"$f":"+Import!E244","v":0},null,{"$f":"+Import!G244","v":0},null,{"$f":"+Import!I139","v":0},null,{"$f":"+Import!K139","v":0},null,null,"brrt_FundsHeldByCedingReinsurers",{"$f":"XBRLMap(M79,$R79,$S$6,$S$8,CONFIGURATION!$B$10,\"BMA\",CONFIGURATION!$B$1,\"bscr\",CONFIGURATION!$B$12)","v":"Mapped"},{"$f":"XBRLMap(O79,$R79,$T$6,$T$8,CONFIGURATION!$B$10,\"BMA\",CONFIGURATION!$B$1,\"bscr\",CONFIGURATION!$B$12)","v":"Mapped"},null,null,null,"bma_TotalFundsHeldByCedingReinsurers"]
[null,null,null,null,null,null,null,null,null,null,null,null,null,null,null,null,null,"",{"$f":"XBRLMap(M80,$R80,$S$6,$S$8,CONFIGURATION!$B$10,\"BMA\",CONFIGURATION!$B$1,\"bscr\",CONFIGURATION!$B$12)","v":"-"},{"$f":"XBRLMap(O80,$R80,$T$6,$T$8,CONFIGURATION!$B$10,\"BMA\",CONFIGURATION!$B$1,\"bscr\",CONFIGURATION!$B$12)","v":"-"},null,null,null,""]
[null,"13.","SUNDRY ASSETS:",null,null,null,null,null,null,null,null,null,null,null,null,null,null,"",{"$f":"XBRLMap(M81,$R81,$S$6,$S$8,CONFIGURATION!$B$10,\"BMA\",CONFIGURATION!$B$1,\"bscr\",CONFIGURATION!$B$12)","v":"-"},{"$f":"XBRLMap(O81,$R81,$T$6,$T$8,CONFIGURATION!$B$10,\"BMA\",CONFIGURATION!$B$1,\"bscr\",CONFIGURATION!$B$12)","v":"-"}]
[null,"(a)","Derivative instruments",null,{"$f":"Import!E140","v":0},null,{"$f":"Import!G140","v":0},null,{"$f":"+Import!E245","v":0},null,{"$f":"+Import!G245","v":0},null,{"$f":"+Import!I140","v":0},null,{"$f":"+Import!K140","v":0},null,null,"brrt_SundryAssetsDerivativeInstruments",{"$f":"XBRLMap(M82,$R82,$S$6,$S$8,CONFIGURATION!$B$10,\"BMA\",CONFIGURATION!$B$1,\"bscr\",CONFIGURATION!$B$12)","v":"Mapped"},{"$f":"XBRLMap(O82,$R82,$T$6,$T$8,CONFIGURATION!$B$10,\"BMA\",CONFIGURATION!$B$1,\"bscr\",CONFIGURATION!$B$12)","v":"Mapped"},null,null,null,"bma_SundryAssetsDerivativeInstruments"]
[null,"(b)","Segregated accounts companies - long-term business - variable annuities",null,null,null,null,null,{"$f":"+Import!E246","v":0},null,{"$f":"+Import!G246","v":0},null,{"$f":"+Import!I141","v":0},null,{"$f":"+Import!K141","v":0}]
[null,"(c) ","Segregated accounts companies - long-term business - others",null,null,null,null,null,{"$f":"+Import!E247","v":0},null,{"$f":"+Import!G247","v":0},null,{"$f":"+Import!I142","v":0},null,{"$f":"+Import!K142","v":0}]
[null,"(d)","Segregated accounts companies - general business",null,{"$f":"Import!E143","v":0},null,{"$f":"Import!G143","v":0},null,null,null,null,null,{"$f":"+Import!I143","v":0},null,{"$f":"+Import!K143","v":0},null,null,"brrt_SundryAssetsSegregatedAccountsCompanies",{"$f":"XBRLMap(M85,$R85,$S$6,$S$8,CONFIGURATION!$B$10,\"BMA\",CONFIGURATION!$B$1,\"bscr\",CONFIGURATION!$B$12)","v":"Mapped"},{"$f":"XBRLMap(O85,$R85,$T$6,$T$8,CONFIGURATION!$B$10,\"BMA\",CONFIGURATION!$B$1,\"bscr\",CONFIGURATION!$B$12)","v":"Mapped"},null,null,null,"bma_SundryAssetsSegregatedAccountsCompanies"]
[null,"(e) ","Deposit assets",null,{"$f":"Import!E144","v":0},null,{"$f":"Import!G144","v":0},null,{"$f":"+Import!E249","v":0},null,{"$f":"+Import!G249","v":0},null,{"$f":"+Import!I144","v":0},null,{"$f":"+Import!K144","v":0},null,null,"brrt_SundryAssetsDepositAssets",{"$f":"XBRLMap(M86,$R86,$S$6,$S$8,CONFIGURATION!$B$10,\"BMA\",CONFIGURATION!$B$1,\"bscr\",CONFIGURATION!$B$12)","v":"Mapped"},{"$f":"XBRLMap(O86,$R86,$T$6,$T$8,CONFIGURATION!$B$10,\"BMA\",CONFIGURATION!$B$1,\"bscr\",CONFIGURATION!$B$12)","v":"Mapped"},null,null,null,"bma_SundryAssetsDepositAssets"]
[null,"(f) ","Deferred acquisition costs",null,{"$f":"Import!E145","v":0},null,{"$f":"Import!G145","v":0},null,{"$f":"+Import!E250","v":0},null,{"$f":"+Import!G250","v":0},null,{"$f":"+Import!I145","v":0},null,{"$f":"+Import!K145","v":0},null,null,"brrt_SundryAssetsDepositAssets",{"$f":"XBRLMap(M87,$R87,$S$6,$S$8,CONFIGURATION!$B$10,\"BMA\",CONFIGURATION!$B$1,\"bscr\",CONFIGURATION!$B$12)","v":"Mapped"},{"$f":"XBRLMap(O87,$R87,$T$6,$T$8,CONFIGURATION!$B$10,\"BMA\",CONFIGURATION!$B$1,\"bscr\",CONFIGURATION!$B$12)","v":"Mapped"},null,null,null,"bma_SundryAssetsDepositAssets"]
[null,"(g) ","Net receivables for investments sold",null,{"$f":"Import!E146","v":0},null,{"$f":"Import!G146","v":0},null,{"$f":"+Import!E251","v":0},null,{"$f":"+Import!G251","v":0},null,{"$f":"+Import!I146","v":0},null,{"$f":"+Import!K146","v":0}]
[null,"(h) ","Other Sundry Assets (Specify)",null,{"$f":"Import!E150","v":0},null,{"$f":"Import!G150","v":0},null,{"$f":"+Import!E252","v":0},null,{"$f":"+Import!G252","v":0},null,{"$f":"+Import!I150","v":0},null,{"$f":"+Import!K150","v":0}]
[null,"(i) ","Other Sundry Assets (Specify)",null,{"$f":"Import!E151","v":0},null,{"$f":"Import!G151","v":0},null,{"$f":"+Import!E253","v":0},null,{"$f":"+Import!G253","v":0},null,{"$f":"+Import!I151","v":0},null,{"$f":"+Import!K151","v":0}]
[null,"(j)","Other Sundry Assets (Specify)",null,{"$f":"Import!E152","v":0},null,{"$f":"Import!G152","v":0},null,{"$f":"+Import!E254","v":0},null,{"$f":"+Import!G254","v":0},null,{"$f":"+Import!I152","v":0},null,{"$f":"+Import!K152","v":0},null,null,"brrt_SundryAssetsOther",{"$f":"XBRLMap(M91,$R91,$S$6,$S$8,CONFIGURATION!$B$10,\"BMA\",CONFIGURATION!$B$1,\"bscr\",CONFIGURATION!$B$12)","v":"Mapped"},{"$f":"XBRLMap(O91,$R91,$T$6,$T$8,CONFIGURATION!$B$10,\"BMA\",CONFIGURATION!$B$1,\"bscr\",CONFIGURATION!$B$12)","v":"Mapped"},null,null,null,"bma_SundryAssetsOther"]
[null,"(k)","Total sundry assets",null,{"$f":"SUM(E82:E91)","v":0},null,{"$f":"SUM(G82:G91)","v":0},null,{"$f":"SUM(I82:I91)","v":0},null,{"$f":"SUM(K82:K91)","v":0},null,{"$f":"SUM(M82:M91)","v":0},null,{"$f":"SUM(O82:O91)","v":0},null,null,"brrt_SundryAssets",{"$f":"XBRLMap(M92,$R92,$S$6,$S$8,CONFIGURATION!$B$10,\"BMA\",CONFIGURATION!$B$1,\"bscr\",CONFIGURATION!$B$12)","v":"Mapped"},{"$f":"XBRLMap(O92,$R92,$T$6,$T$8,CONFIGURATION!$B$10,\"BMA\",CONFIGURATION!$B$1,\"bscr\",CONFIGURATION!$B$12)","v":"Mapped"},null,null,null,"bma_TotalSundryAssets"]
[null,null,null,null,null,null,null,null,null,null,null,null,null,null,null,null,null,"brrt_SundryAssetsOtherDescription",{"$f":"XBRLMap(C91,$R93,$S$6,$S$8,CONFIGURATION!$B$10,\"BMA\",CONFIGURATION!$B$1,\"bscr\")","v":"Mapped"},null,null,null,null,"bma_SundryAssetsOtherType"]
[null,"14.","LETTERS OF CREDIT, GUARANTEES AND OTHER INSTRUMENTS:",null,null,null,null,null,null,null,null,null,null,null,null,null,null,"",{"$f":"XBRLMap(M94,$R94,$S$6,$S$8,CONFIGURATION!$B$10,\"BMA\",CONFIGURATION!$B$1,\"bscr\",CONFIGURATION!$B$12)","v":"-"},{"$f":"XBRLMap(O94,$R94,$T$6,$T$8,CONFIGURATION!$B$10,\"BMA\",CONFIGURATION!$B$1,\"bscr\",CONFIGURATION!$B$12)","v":"-"}]
[null,"(a)","Letters of credit ",null,{"$f":"Import!E153","v":0},null,{"$f":"Import!G153","v":0},null,{"$f":"+Import!E255","v":0},null,{"$f":"+Import!G255","v":0},null,{"$f":"+Import!I153","v":0},null,{"$f":"+Import!K153","v":0},null,null,"brrt_AssetsLettersOfCredit",{"$f":"XBRLMap(M95,$R95,$S$6,$S$8,CONFIGURATION!$B$10,\"BMA\",CONFIGURATION!$B$1,\"bscr\",CONFIGURATION!$B$12)","v":"Mapped"},{"$f":"XBRLMap(O95,$R95,$T$6,$T$8,CONFIGURATION!$B$10,\"BMA\",CONFIGURATION!$B$1,\"bscr\",CONFIGURATION!$B$12)","v":"Mapped"},null,null,null,"bma_AssetsLettersOfCredit"]
[null,"(b)","Guarantees",null,{"$f":"Import!E154","v":0},null,{"$f":"Import!G154","v":0},null,{"$f":"+Import!E256","v":0},null,{"$f":"+Import!G256","v":0},null,{"$f":"+Import!I154","v":0},null,{"$f":"+Import!K154","v":0},null,null,"brrt_AssetsGuarantees",{"$f":"XBRLMap(M96,$R96,$S$6,$S$8,CONFIGURATION!$B$10,\"BMA\",CONFIGURATION!$B$1,\"bscr\",CONFIGURATION!$B$12)","v":"Mapped"},{"$f":"XBRLMap(O96,$R96,$T$6,$T$8,CONFIGURATION!$B$10,\"BMA\",CONFIGURATION!$B$1,\"bscr\",CONFIGURATION!$B$12)","v":"Mapped"},null,null,null,"bma_AssetsGuarantees"]
[null,"(c) ","Other instruments",null,{"$f":"Import!E155","v":0},null,{"$f":"Import!G155","v":0},null,{"$f":"+Import!E257","v":0},null,{"$f":"+Import!G257","v":0},null,{"$f":"+Import!I155","v":0},null,{"$f":"+Import!K155","v":0},null,null,"brrt_AssetsOtherInstruments",{"$f":"XBRLMap(M97,$R97,$S$6,$S$8,CONFIGURATION!$B$10,\"BMA\",CONFIGURATION!$B$1,\"bscr\",CONFIGURATION!$B$12)","v":"Mapped"},{"$f":"XBRLMap(O97,$R97,$T$6,$T$8,CONFIGURATION!$B$10,\"BMA\",CONFIGURATION!$B$1,\"bscr\",CONFIGURATION!$B$12)","v":"Mapped"},null,null,null,"bma_AssetsOtherInstruments"]
[null,"(e) ","Total letters of credit, guarantees and other instruments",null,{"$f":"SUM(E95:E97)","v":0},null,{"$f":"SUM(G95:G97)","v":0},null,{"$f":"SUM(I95:I97)","v":0},null,{"$f":"SUM(K95:K97)","v":0},null,{"$f":"SUM(M95:M97)","v":0},null,{"$f":"SUM(O95:O97)","v":0},null,null,"brrt_AssetsLettersOfCreditGuaranteesOtherInstruments",{"$f":"XBRLMap(M98,$R98,$S$6,$S$8,CONFIGURATION!$B$10,\"BMA\",CONFIGURATION!$B$1,\"bscr\",CONFIGURATION!$B$12)","v":"Mapped"},{"$f":"XBRLMap(O98,$R98,$T$6,$T$8,CONFIGURATION!$B$10,\"BMA\",CONFIGURATION!$B$1,\"bscr\",CONFIGURATION!$B$12)","v":"Mapped"},null,null,null,"bma_AssetsTotalLettersOfCreditGuaranteesAndOtherInstruments"]
[null,null,null,null,null,null,null,null,null,null,null,null,null,null,null,null,null,"",{"$f":"XBRLMap(M99,$R99,$S$6,$S$8,CONFIGURATION!$B$10,\"BMA\",CONFIGURATION!$B$1,\"bscr\",CONFIGURATION!$B$12)","v":"-"},{"$f":"XBRLMap(O99,$R99,$T$6,$T$8,CONFIGURATION!$B$10,\"BMA\",CONFIGURATION!$B$1,\"bscr\",CONFIGURATION!$B$12)","v":"-"},null,null,null,""]
[null,"15.","TOTAL",null,{"$f":"E12+E25+E38+E48+E53+E55+E60+E62+E64+E70+E77+E79+E92+E98","v":0},null,{"$f":"G12+G25+G38+G48+G53+G55+G60+G62+G64+G70+G77+G79+G92+G98","v":0},null,{"$f":"I12+I25+I38+I48+I53+I55+I60+I62+I64+I70+I77+I79+I92+I98","v":0},null,{"$f":"K12+K25+K38+K48+K53+K55+K60+K62+K64+K70+K77+K79+K92+K98","v":0},null,{"$f":"M12+M25+M38+M48+M53+M55+M60+M62+M64+M70+M77+M79+M92+M98","v":0},null,{"$f":"O12+O25+O38+O48+O53+O55+O60+O62+O64+O70+O77+O79+O92+O98","v":0},null,null,"brrt_Assets",{"$f":"XBRLMap(M100,$R100,$S$6,$S$8,CONFIGURATION!$B$10,\"BMA\",CONFIGURATION!$B$1,\"bscr\",CONFIGURATION!$B$12)","v":"Mapped"},{"$f":"XBRLMap(O100,$R100,$T$6,$T$8,CONFIGURATION!$B$10,\"BMA\",CONFIGURATION!$B$1,\"bscr\",CONFIGURATION!$B$12)","v":"Mapped"},null,null,null,"bma_TotalAssets"]
[]
[null,null,"INSURANCE RESERVES, OTHER LIABILITIES AND STATUTORY CAPITAL AND SURPLUS",null,null,null,null,null,null,null,null,null,null,null,null,null,null,"",{"$f":"XBRLMap(M102,$R102,$S$6,$S$8,CONFIGURATION!$B$10,\"BMA\",CONFIGURATION!$B$1,\"bscr\",CONFIGURATION!$B$12)","v":"-"},{"$f":"XBRLMap(O102,$R102,$T$6,$T$8,CONFIGURATION!$B$10,\"BMA\",CONFIGURATION!$B$1,\"bscr\",CONFIGURATION!$B$12)","v":"-"},null,null,null,""]
[]
[null,null,"INSURANCE RESERVES",null,null,null,null,null,null,null,null,null,null,null,null,null,null,"",{"$f":"XBRLMap(M104,$R104,$S$6,$S$8,CONFIGURATION!$B$10,\"BMA\",CONFIGURATION!$B$1,\"bscr\",CONFIGURATION!$B$12)","v":"-"},{"$f":"XBRLMap(O104,$R104,$T$6,$T$8,CONFIGURATION!$B$10,\"BMA\",CONFIGURATION!$B$1,\"bscr\",CONFIGURATION!$B$12)","v":"-"}]
[null,null,null,null,null,null,null,null,null,null,null,null,null,null,null,null,null,"",{"$f":"XBRLMap(M105,$R105,$S$6,$S$8,CONFIGURATION!$B$10,\"BMA\",CONFIGURATION!$B$1,\"bscr\",CONFIGURATION!$B$12)","v":"-"},{"$f":"XBRLMap(O105,$R105,$T$6,$T$8,CONFIGURATION!$B$10,\"BMA\",CONFIGURATION!$B$1,\"bscr\",CONFIGURATION!$B$12)","v":"-"},null,null,null,""]
[null,"16.","UNEARNED PREMIUM RESERVE"]
[null,"(a)","Gross unearned premium reserves",null,{"$f":"+Import!E157","v":0},null,{"$f":"+Import!G157","v":0},null,null,null,null,null,{"$f":"+Import!I157","v":0},null,{"$f":"+Import!K157","v":0}]
[null,"(b)","Less: Ceded unearned premium reserve"]
[null,null,"  i.   Foreign affiliates",null,{"$f":"+Import!E158","v":0},null,{"$f":"+Import!G158","v":0},null,null,null,null,null,{"$f":"+Import!I158","v":0},null,{"$f":"+Import!K158","v":0}]
[null,null,"  ii.  Domestic affiliates",null,{"$f":"+Import!E159","v":0},null,{"$f":"+Import!G159","v":0},null,null,null,null,null,{"$f":"+Import!I159","v":0},null,{"$f":"+Import!K159","v":0}]
[null,null,"  iii. Pools & associations",null,{"$f":"+Import!E160","v":0},null,{"$f":"+Import!G160","v":0},null,null,null,null,null,{"$f":"+Import!I160","v":0},null,{"$f":"+Import!K160","v":0}]
[null,null,"  iv.  All other insurers",null,{"$f":"+Import!E161","v":0},null,{"$f":"+Import!G161","v":0},null,null,null,null,null,{"$f":"+Import!I161","v":0},null,{"$f":"+Import!K161","v":0}]
[null,"(c) ","Total ceded unearned premium reserve",null,{"$f":"SUM(E109:E112)","v":0},null,{"$f":"SUM(G109:G112)","v":0},null,null,null,null,null,{"$f":"SUM(M109:M112)","v":0},null,{"$f":"SUM(O109:O112)","v":0}]
[null,"(d) ","Net unearned premium reserves",null,{"$f":"E107-E113","v":0},null,{"$f":"G107-G113","v":0},null,null,null,null,null,{"$f":"M107-M113","v":0},null,{"$f":"O107-O113","v":0},null,null,"brrt_UnearnedPremiums",{"$f":"XBRLMap(M114,$R114,$S$6,$S$8,CONFIGURATION!$B$10,\"BMA\",CONFIGURATION!$B$1,\"bscr\",CONFIGURATION!$B$12)","v":"Mapped"},{"$f":"XBRLMap(O114,$R114,$T$6,$T$8,CONFIGURATION!$B$10,\"BMA\",CONFIGURATION!$B$1,\"bscr\",CONFIGURATION!$B$12)","v":"Mapped"},null,null,null,"bma_UnearnedPremiums"]
[null,null,null,null,null,null,null,null,null,null,null,null,null,null,null,null,null,"",{"$f":"XBRLMap(M115,$R115,$S$6,$S$8,CONFIGURATION!$B$10,\"BMA\",CONFIGURATION!$B$1,\"bscr\",CONFIGURATION!$B$12)","v":"-"},{"$f":"XBRLMap(O115,$R115,$T$6,$T$8,CONFIGURATION!$B$10,\"BMA\",CONFIGURATION!$B$1,\"bscr\",CONFIGURATION!$B$12)","v":"-"},null,null,null,""]
[null,"17.","LOSS AND LOSS EXPENSE PROVISIONS:",null,null,null,null,null,null,null,null,null,null,null,null,null,null,"",{"$f":"XBRLMap(M116,$R116,$S$6,$S$8,CONFIGURATION!$B$10,\"BMA\",CONFIGURATION!$B$1,\"bscr\",CONFIGURATION!$B$12)","v":"-"},{"$f":"XBRLMap(O116,$R116,$T$6,$T$8,CONFIGURATION!$B$10,\"BMA\",CONFIGURATION!$B$1,\"bscr\",CONFIGURATION!$B$12)","v":"-"}]
[null,"(a)","Gross loss and loss expense provisions",null,{"$f":"+Import!E162","v":0},null,{"$f":"+Import!G162","v":0},null,null,null,null,null,{"$f":"+Import!I162","v":0},null,{"$f":"+Import!K162","v":0},null,null,"brrt_GrossLossAndLossExpenseProvisions",{"$f":"XBRLMap(M117,$R117,$S$6,$S$8,CONFIGURATION!$B$10,\"BMA\",CONFIGURATION!$B$1,\"bscr\",CONFIGURATION!$B$12)","v":"Mapped"},{"$f":"XBRLMap(O117,$R117,$T$6,$T$8,CONFIGURATION!$B$10,\"BMA\",CONFIGURATION!$B$1,\"bscr\",CONFIGURATION!$B$12)","v":"Mapped"},null,null,null,"bma_GrossLossAndLossExpenseProvisions"]
[null,"(b)","Less : Reinsurance recoverable balance",null,null,null,null,null,null,null,null,null,null,null,null,null,null,"",{"$f":"XBRLMap(M118,$R118,$S$6,$S$8,CONFIGURATION!$B$10,\"BMA\",CONFIGURATION!$B$1,\"bscr\",CONFIGURATION!$B$12)","v":"-"},{"$f":"XBRLMap(O118,$R118,$T$6,$T$8,CONFIGURATION!$B$10,\"BMA\",CONFIGURATION!$B$1,\"bscr\",CONFIGURATION!$B$12)","v":"-"}]
[null,null,"  i.   Foreign affiliates",null,{"$f":"+Import!E163","v":0},null,{"$f":"+Import!G163","v":0},null,null,null,null,null,{"$f":"+Import!I163","v":0},null,{"$f":"+Import!K163","v":0},null,null,"brrt_ReinsuranceRecoverableBalanceForeignAffiliates",{"$f":"XBRLMap(M119,$R119,$S$6,$S$8,CONFIGURATION!$B$10,\"BMA\",CONFIGURATION!$B$1,\"bscr\",CONFIGURATION!$B$12)","v":"Mapped"},{"$f":"XBRLMap(O119,$R119,$T$6,$T$8,CONFIGURATION!$B$10,\"BMA\",CONFIGURATION!$B$1,\"bscr\",CONFIGURATION!$B$12)","v":"Mapped"},null,null,null,"bma_LessReinsuranceRecoverableBalanceForeignAffiliates"]
[null,null,"  ii.  Domestic affiliates",null,{"$f":"+Import!E164","v":0},null,{"$f":"+Import!G164","v":0},null,null,null,null,null,{"$f":"+Import!I164","v":0},null,{"$f":"+Import!K164","v":0},null,null,"brrt_ReinsuranceRecoverableBalanceDomesticAffiliates",{"$f":"XBRLMap(M120,$R120,$S$6,$S$8,CONFIGURATION!$B$10,\"BMA\",CONFIGURATION!$B$1,\"bscr\",CONFIGURATION!$B$12)","v":"Mapped"},{"$f":"XBRLMap(O120,$R120,$T$6,$T$8,CONFIGURATION!$B$10,\"BMA\",CONFIGURATION!$B$1,\"bscr\",CONFIGURATION!$B$12)","v":"Mapped"},null,null,null,"bma_LessReinsuranceRecoverableBalanceDomesticAffiliates"]
[null,null,"  iii. Pools & associations",null,{"$f":"+Import!E165","v":0},null,{"$f":"+Import!G165","v":0},null,null,null,null,null,{"$f":"+Import!I165","v":0},null,{"$f":"+Import!K165","v":0},null,null,"brrt_ReinsuranceRecoverableBalancePoolsAndAssociations",{"$f":"XBRLMap(M121,$R121,$S$6,$S$8,CONFIGURATION!$B$10,\"BMA\",CONFIGURATION!$B$1,\"bscr\",CONFIGURATION!$B$12)","v":"Mapped"},{"$f":"XBRLMap(O121,$R121,$T$6,$T$8,CONFIGURATION!$B$10,\"BMA\",CONFIGURATION!$B$1,\"bscr\",CONFIGURATION!$B$12)","v":"Mapped"},null,null,null,"bma_LessReinsuranceRecoverableBalancePoolsAndAssociations"]
[null,null,"  iv.  All other insurers",null,{"$f":"+Import!E166","v":0},null,{"$f":"+Import!G166","v":0},null,null,null,null,null,{"$f":"+Import!I166","v":0},null,{"$f":"+Import!K166","v":0},null,null,"brrt_OtherInsurersReinsuranceRecoverableBalance",{"$f":"XBRLMap(M122,$R122,$S$6,$S$8,CONFIGURATION!$B$10,\"BMA\",CONFIGURATION!$B$1,\"bscr\",CONFIGURATION!$B$12)","v":"Mapped"},{"$f":"XBRLMap(O122,$R122,$T$6,$T$8,CONFIGURATION!$B$10,\"BMA\",CONFIGURATION!$B$1,\"bscr\",CONFIGURATION!$B$12)","v":"Mapped"},null,null,null,"bma_LessReinsuranceRecoverableBalanceAllOtherInsurers"]
[null,"(c) ","Total reinsurance recoverable balance",null,{"$f":"SUM(E119:E122)","v":0},null,{"$f":"SUM(G119:G122)","v":0},null,null,null,null,null,{"$f":"SUM(M119:M122)","v":0},null,{"$f":"SUM(O119:O122)","v":0},null,null,"brrt_ReinsuranceRecoverableBalance",{"$f":"XBRLMap(M123,$R123,$S$6,$S$8,CONFIGURATION!$B$10,\"BMA\",CONFIGURATION!$B$1,\"bscr\",CONFIGURATION!$B$12)","v":"Mapped"},{"$f":"XBRLMap(O123,$R123,$T$6,$T$8,CONFIGURATION!$B$10,\"BMA\",CONFIGURATION!$B$1,\"bscr\",CONFIGURATION!$B$12)","v":"Mapped"},null,null,null,"bma_TotalReinsuranceRecoverableBalance"]
[null,"(d) ","Net loss and loss expense provisions",null,{"$f":"E117-E123","v":0},null,{"$f":"G117-G123","v":0},null,null,null,null,null,{"$f":"M117-M123","v":0},null,{"$f":"O117-O123","v":0},null,null,"brrt_NetLossAndLossExpenseProvisions",{"$f":"XBRLMap(M124,$R124,$S$6,$S$8,CONFIGURATION!$B$10,\"BMA\",CONFIGURATION!$B$1,\"bscr\",CONFIGURATION!$B$12)","v":"Mapped"},{"$f":"XBRLMap(O124,$R124,$T$6,$T$8,CONFIGURATION!$B$10,\"BMA\",CONFIGURATION!$B$1,\"bscr\",CONFIGURATION!$B$12)","v":"Mapped"},null,null,null,"bma_NetLossAndLossExpenseProvisions"]
[null,null,null,null,null,null,null,null,null,null,null,null,null,null,null,null,null,"",{"$f":"XBRLMap(M125,$R125,$S$6,$S$8,CONFIGURATION!$B$10,\"BMA\",CONFIGURATION!$B$1,\"bscr\",CONFIGURATION!$B$12)","v":"-"},{"$f":"XBRLMap(O125,$R125,$T$6,$T$8,CONFIGURATION!$B$10,\"BMA\",CONFIGURATION!$B$1,\"bscr\",CONFIGURATION!$B$12)","v":"-"},null,null,null,""]
[null,"18.","OTHER INSURANCE RESERVES",null,{"$f":"+Import!E167","v":0},null,{"$f":"+Import!G167","v":0},null,null,null,null,null,{"$f":"+Import!I167","v":0},null,{"$f":"+Import!K167","v":0},null,null,"brrt_OtherInsuranceReserves",{"$f":"XBRLMap(M126,$R126,$S$6,$S$8,CONFIGURATION!$B$10,\"BMA\",CONFIGURATION!$B$1,\"bscr\",CONFIGURATION!$B$12)","v":"Mapped"},{"$f":"XBRLMap(O126,$R126,$T$6,$T$8,CONFIGURATION!$B$10,\"BMA\",CONFIGURATION!$B$1,\"bscr\",CONFIGURATION!$B$12)","v":"Mapped"},null,null,null,"bma_OtherInsuranceReservesGeneralBusiness"]
[null,null,null,null,null,null,null,null,null,null,null,null,null,null,null,null,null,"",{"$f":"XBRLMap(M127,$R127,$S$6,$S$8,CONFIGURATION!$B$10,\"BMA\",CONFIGURATION!$B$1,\"bscr\",CONFIGURATION!$B$12)","v":"-"},{"$f":"XBRLMap(O127,$R127,$T$6,$T$8,CONFIGURATION!$B$10,\"BMA\",CONFIGURATION!$B$1,\"bscr\",CONFIGURATION!$B$12)","v":"-"},null,null,null,""]
[null,"19.","TOTAL GENERAL BUSINESS - INSURANCE RESERVES",null,{"$f":"E114+E124+E126","v":0},null,{"$f":"G114+G124+G126","v":0},null,null,null,null,null,{"$f":"M114+M124+M126","v":0},null,{"$f":"O114+O124+O126","v":0},null,null,"brrt_InsuranceReserves",{"$f":"XBRLMap(M128,$R128,$S$6,$S$8,CONFIGURATION!$B$10,\"BMA\",CONFIGURATION!$B$1,\"bscr\",CONFIGURATION!$B$12)","v":"Mapped"},{"$f":"XBRLMap(O128,$R128,$T$6,$T$8,CONFIGURATION!$B$10,\"BMA\",CONFIGURATION!$B$1,\"bscr\",CONFIGURATION!$B$12)","v":"Mapped"},null,null,null,"bma_TotalGeneralBusinessInsuranceReserves"]
[null,null,null,null,null,null,null,null,null,null,null,null,null,null,null,null,null,"",{"$f":"XBRLMap(M129,$R129,$S$6,$S$8,CONFIGURATION!$B$10,\"BMA\",CONFIGURATION!$B$1,\"bscr\",CONFIGURATION!$B$12)","v":"-"},{"$f":"XBRLMap(O129,$R129,$T$6,$T$8,CONFIGURATION!$B$10,\"BMA\",CONFIGURATION!$B$1,\"bscr\",CONFIGURATION!$B$12)","v":"-"},null,null,null,""]
[null,null,"LONG-TERM BUSINESS INSURANCE RESERVES",null,null,null,null,null,null,null,null,null,null,null,null,null,null,"",{"$f":"XBRLMap(M130,$R130,$S$6,$S$8,CONFIGURATION!$B$10,\"BMA\",CONFIGURATION!$B$1,\"bscr\",CONFIGURATION!$B$12)","v":"-"},{"$f":"XBRLMap(O130,$R130,$T$6,$T$8,CONFIGURATION!$B$10,\"BMA\",CONFIGURATION!$B$1,\"bscr\",CONFIGURATION!$B$12)","v":"-"}]
[null,null,null,null,null,null,null,null,null,null,null,null,null,null,null,null,null,"",{"$f":"XBRLMap(M131,$R131,$S$6,$S$8,CONFIGURATION!$B$10,\"BMA\",CONFIGURATION!$B$1,\"bscr\",CONFIGURATION!$B$12)","v":"-"},{"$f":"XBRLMap(O131,$R131,$T$6,$T$8,CONFIGURATION!$B$10,\"BMA\",CONFIGURATION!$B$1,\"bscr\",CONFIGURATION!$B$12)","v":"-"},null,null,null,""]
[null,20,"RESERVES FOR REPORTED CLAIMS",null,null,null,null,null,{"$f":"+Import!E258","v":0},null,{"$f":"+Import!G258","v":0},null,{"$f":"+Import!I168","v":0},null,{"$f":"+Import!K168","v":0}]
[]
[null,21,"RESERVES FOR UNREPORTED CLAIMS",null,null,null,null,null,{"$f":"+Import!E259","v":0},null,{"$f":"+Import!G259","v":0},null,{"$f":"+Import!I169","v":0},null,{"$f":"+Import!K169","v":0}]
[]
[null,22,"POLICY RESERVES - LIFE",null,null,null,null,null,{"$f":"+Import!E260","v":0},null,{"$f":"+Import!G260","v":0},null,{"$f":"+Import!I170","v":0},null,{"$f":"+Import!K170","v":0}]
[]
[null,23,"POLICY RESERVES - ACCIDENT AND HEALTH",null,null,null,null,null,{"$f":"+Import!E261","v":0},null,{"$f":"+Import!G261","v":0},null,{"$f":"+Import!I171","v":0},null,{"$f":"+Import!K171","v":0}]
[]
[null,24,"POLICYHOLDER'S FUNDS ON DEPOSIT",null,null,null,null,null,{"$f":"+Import!E262","v":0},null,{"$f":"+Import!G262","v":0},null,{"$f":"+Import!I172","v":0},null,{"$f":"+Import!K172","v":0}]
[]
[null,25,"LIABILITY FOR FUTURE POLICYHOLDER DIVIDENDS",null,null,null,null,null,{"$f":"+Import!E263","v":0},null,{"$f":"+Import!G263","v":0},null,{"$f":"+Import!I173","v":0},null,{"$f":"+Import!K173","v":0}]
[]
[null,26,"OTHER LONG-TERM BUSINESS INSURANCE RESERVES",null,null,null,null,null,{"$f":"+Import!E264","v":0},null,{"$f":"+Import!G264","v":0},null,{"$f":"+Import!I174","v":0},null,{"$f":"+Import!K174","v":0}]
[]
[null,27,"TOTAL LONG-TERM BUSINESS INSURANCE RESERVES"]
[null,"(a)","Total Gross Long-Term Business Insurance Reserves",null,null,null,null,{"$f":"H154+H153","v":0},0,0,0,0,0,0,0]
[null,"(b)","Less: Reinsurance Recoverable Balance:"]
[null,null,"(i) Foreign Affiliates",null,null,null,null,null,{"$f":"+Import!E265","v":0},null,{"$f":"+Import!G265","v":0},null,{"$f":"+Import!I175","v":0},null,{"$f":"+Import!K175","v":0}]
[null,null,"(ii) Domestic Affiliaties",null,null,null,null,null,{"$f":"+Import!E266","v":0},null,{"$f":"+Import!G266","v":0},null,{"$f":"+Import!I176","v":0},null,{"$f":"+Import!K176","v":0}]
[null,null,"(iii) Pools and Associations",null,null,null,null,null,{"$f":"+Import!E267","v":0},null,{"$f":"+Import!G267","v":0},null,{"$f":"+Import!I177","v":0},null,{"$f":"+Import!K177","v":0}]
[null,null,"(iv) All Other Insurers",null,null,null,null,null,{"$f":"+Import!E268","v":0},null,{"$f":"+Import!G268","v":0},null,{"$f":"+Import!I178","v":0},null,{"$f":"+Import!K178","v":0}]
[null,"(c)","Total Reinsurance Recoverable Balance",null,null,null,null,{"$f":"SUM(H149:H152)","v":0},0,0,0,0,0,0,0]
[null,"(d)","Net Long-Term Business Insurance Reserves",null,null,null,null,{"$f":"H132+H134+H136+H138+H140+H142+H144","v":0},0,0,0,0,0,0,0]
[]
[null,null,"OTHER LIABILITIES"]
[]
[null,"28.","INSURANCE AND REINSURANCE BALANCES PAYABLE",null,{"$f":"+Import!E186","v":0},null,{"$f":"+Import!G186","v":0},null,{"$f":"+Import!E269","v":0},null,{"$f":"+Import!G269","v":0},null,{"$f":"+Import!I186","v":0},null,{"$f":"+Import!K186","v":0},null,null,"brrt_InsuranceAndReinsuranceBalancesPayable",{"$f":"XBRLMap(M158,$R158,$S$6,$S$8,CONFIGURATION!$B$10,\"BMA\",CONFIGURATION!$B$1,\"bscr\",CONFIGURATION!$B$12)","v":"Mapped"},{"$f":"XBRLMap(O158,$R158,$T$6,$T$8,CONFIGURATION!$B$10,\"BMA\",CONFIGURATION!$B$1,\"bscr\",CONFIGURATION!$B$12)","v":"Mapped"},null,null,null,"bma_InsuranceAndReinsuranceBalancesPayable"]
[null,null,null,null,null,null,null,null,null,null,null,null,null,null,null,null,null,"",{"$f":"XBRLMap(M159,$R159,$S$6,$S$8,CONFIGURATION!$B$10,\"BMA\",CONFIGURATION!$B$1,\"bscr\",CONFIGURATION!$B$12)","v":"-"},{"$f":"XBRLMap(O159,$R159,$T$6,$T$8,CONFIGURATION!$B$10,\"BMA\",CONFIGURATION!$B$1,\"bscr\",CONFIGURATION!$B$12)","v":"-"},null,null,null,""]
[null,"29.","COMMISSIONS, EXPENSES, FEES AND TAXES PAYABLE",null,{"$f":"+Import!E187","v":0},null,{"$f":"+Import!G187","v":0},null,{"$f":"+Import!E270","v":0},null,{"$f":"+Import!G270","v":0},null,{"$f":"+Import!I187","v":0},null,{"$f":"+Import!K187","v":0},null,null,"brrt_CommissionsExpensesFeesAndTaxesPayable",{"$f":"XBRLMap(M160,$R160,$S$6,$S$8,CONFIGURATION!$B$10,\"BMA\",CONFIGURATION!$B$1,\"bscr\",CONFIGURATION!$B$12)","v":"Mapped"},{"$f":"XBRLMap(O160,$R160,$T$6,$T$8,CONFIGURATION!$B$10,\"BMA\",CONFIGURATION!$B$1,\"bscr\",CONFIGURATION!$B$12)","v":"Mapped"},null,null,null,"bma_CommissionsExpensesFeesAndTaxesPayable"]
[null,null,null,null,null,null,null,null,null,null,null,null,null,null,null,null,null,"",{"$f":"XBRLMap(M161,$R161,$S$6,$S$8,CONFIGURATION!$B$10,\"BMA\",CONFIGURATION!$B$1,\"bscr\",CONFIGURATION!$B$12)","v":"-"},{"$f":"XBRLMap(O161,$R161,$T$6,$T$8,CONFIGURATION!$B$10,\"BMA\",CONFIGURATION!$B$1,\"bscr\",CONFIGURATION!$B$12)","v":"-"},null,null,null,""]
[null,"30.","LOANS AND NOTES PAYABLE",null,{"$f":"+Import!E188","v":0},null,{"$f":"+Import!G188","v":0},null,{"$f":"+Import!E271","v":0},null,{"$f":"+Import!G271","v":0},null,{"$f":"+Import!I188","v":0},null,{"$f":"+Import!K188","v":0},null,null,"brrt_LoansAndNotesPayable",{"$f":"XBRLMap(M162,$R162,$S$6,$S$8,CONFIGURATION!$B$10,\"BMA\",CONFIGURATION!$B$1,\"bscr\",CONFIGURATION!$B$12)","v":"Mapped"},{"$f":"XBRLMap(O162,$R162,$T$6,$T$8,CONFIGURATION!$B$10,\"BMA\",CONFIGURATION!$B$1,\"bscr\",CONFIGURATION!$B$12)","v":"Mapped"},null,null,null,"bma_LoansAndNotesPayable"]
[null,null,null,null,null,null,null,null,null,null,null,null,null,null,null,null,null,"",{"$f":"XBRLMap(M163,$R163,$S$6,$S$8,CONFIGURATION!$B$10,\"BMA\",CONFIGURATION!$B$1,\"bscr\",CONFIGURATION!$B$12)","v":"-"},{"$f":"XBRLMap(O163,$R163,$T$6,$T$8,CONFIGURATION!$B$10,\"BMA\",CONFIGURATION!$B$1,\"bscr\",CONFIGURATION!$B$12)","v":"-"},null,null,null,""]
[null,"31.","(a) INCOME TAXES PAYABLE",null,{"$f":"+Import!E189","v":0},null,{"$f":"+Import!G189","v":0},null,{"$f":"+Import!E272","v":0},null,{"$f":"+Import!G272","v":0},null,{"$f":"+Import!I189","v":0},null,{"$f":"+Import!K189","v":0},null,null,"brrt_IncomeTaxesPayable",{"$f":"XBRLMap(M164,$R164,$S$6,$S$8,CONFIGURATION!$B$10,\"BMA\",CONFIGURATION!$B$1,\"bscr\",CONFIGURATION!$B$12)","v":"Mapped"},{"$f":"XBRLMap(O164,$R164,$T$6,$T$8,CONFIGURATION!$B$10,\"BMA\",CONFIGURATION!$B$1,\"bscr\",CONFIGURATION!$B$12)","v":"Mapped"},null,null,null,"bma_IncomeTaxesPayable"]
[]
[null,null,"(b) DEFERRED INCOME TAXES",null,{"$f":"+Import!E190","v":0},null,{"$f":"+Import!G190","v":0},null,{"$f":"+Import!E273","v":0},null,{"$f":"+Import!G273","v":0},null,{"$f":"+Import!I190","v":0},null,{"$f":"+Import!K190","v":0},null,null,"brrt_DeferredIncomeTaxes",{"$f":"XBRLMap(M166,$R166,$S$6,$S$8,CONFIGURATION!$B$10,\"BMA\",CONFIGURATION!$B$1,\"bscr\",CONFIGURATION!$B$12)","v":"Mapped"},{"$f":"XBRLMap(O166,$R166,$T$6,$T$8,CONFIGURATION!$B$10,\"BMA\",CONFIGURATION!$B$1,\"bscr\",CONFIGURATION!$B$12)","v":"Mapped"},null,null,null,"bma_DeferredIncomeTaxes"]
[null,null,null,null,null,null,null,null,null,null,null,null,null,null,null,null,null,"",{"$f":"XBRLMap(M167,$R167,$S$6,$S$8,CONFIGURATION!$B$10,\"BMA\",CONFIGURATION!$B$1,\"bscr\",CONFIGURATION!$B$12)","v":"-"},{"$f":"XBRLMap(O167,$R167,$T$6,$T$8,CONFIGURATION!$B$10,\"BMA\",CONFIGURATION!$B$1,\"bscr\",CONFIGURATION!$B$12)","v":"-"},null,null,null,""]
[null,"32.","AMOUNTS DUE TO AFFILIATES",null,{"$f":"+Import!E191","v":0},null,{"$f":"+Import!G191","v":0},null,{"$f":"+Import!E274","v":0},null,{"$f":"+Import!G274","v":0},null,{"$f":"+Import!I191","v":0},null,{"$f":"+Import!K191","v":0},null,null,"brrt_AmountsDueToAffiliates",{"$f":"XBRLMap(M168,$R168,$S$6,$S$8,CONFIGURATION!$B$10,\"BMA\",CONFIGURATION!$B$1,\"bscr\",CONFIGURATION!$B$12)","v":"Mapped"},{"$f":"XBRLMap(O168,$R168,$T$6,$T$8,CONFIGURATION!$B$10,\"BMA\",CONFIGURATION!$B$1,\"bscr\",CONFIGURATION!$B$12)","v":"Mapped"},null,null,null,"bma_AmountsDueToAffiliates"]
[null,null,null,null,null,null,null,null,null,null,null,null,null,null,null,null,null,"",{"$f":"XBRLMap(M169,$R169,$S$6,$S$8,CONFIGURATION!$B$10,\"BMA\",CONFIGURATION!$B$1,\"bscr\",CONFIGURATION!$B$12)","v":"-"},{"$f":"XBRLMap(O169,$R169,$T$6,$T$8,CONFIGURATION!$B$10,\"BMA\",CONFIGURATION!$B$1,\"bscr\",CONFIGURATION!$B$12)","v":"-"},null,null,null,""]
[null,"33.","ACCOUNTS PAYABLE AND ACCRUED LIABILITIES",null,{"$f":"+Import!E192","v":0},null,{"$f":"+Import!G192","v":0},null,{"$f":"+Import!E275","v":0},null,{"$f":"+Import!G275","v":0},null,{"$f":"+Import!I192","v":0},null,{"$f":"+Import!K192","v":0},null,null,"brrt_AccountsPayableAndAccruedLiabilities",{"$f":"XBRLMap(M170,$R170,$S$6,$S$8,CONFIGURATION!$B$10,\"BMA\",CONFIGURATION!$B$1,\"bscr\",CONFIGURATION!$B$12)","v":"Mapped"},{"$f":"XBRLMap(O170,$R170,$T$6,$T$8,CONFIGURATION!$B$10,\"BMA\",CONFIGURATION!$B$1,\"bscr\",CONFIGURATION!$B$12)","v":"Mapped"},null,null,null,"bma_AccountsPayableAndAccruedLiabilities"]
[null,null,null,null,null,null,null,null,null,null,null,null,null,null,null,null,null,"",{"$f":"XBRLMap(M171,$R171,$S$6,$S$8,CONFIGURATION!$B$10,\"BMA\",CONFIGURATION!$B$1,\"bscr\",CONFIGURATION!$B$12)","v":"-"},{"$f":"XBRLMap(O171,$R171,$T$6,$T$8,CONFIGURATION!$B$10,\"BMA\",CONFIGURATION!$B$1,\"bscr\",CONFIGURATION!$B$12)","v":"-"},null,null,null,""]
[null,"34.","FUNDS HELD UNDER REINSURANCE CONTRACTS:",null,{"$f":"+Import!E195","v":0},null,{"$f":"+Import!G195","v":0},null,{"$f":"+Import!E276","v":0},null,{"$f":"+Import!G276","v":0},null,{"$f":"+Import!I195","v":0},null,{"$f":"+Import!K195","v":0},null,null,"",{"$f":"XBRLMap(#REF!,$R172,$S$6,$S$8,CONFIGURATION!$B$10,\"BMA\",CONFIGURATION!$B$1,\"bscr\",CONFIGURATION!$B$12)","v":{"$error":"#VALUE!"}},{"$f":"XBRLMap(#REF!,$R172,$T$6,$T$8,CONFIGURATION!$B$10,\"BMA\",CONFIGURATION!$B$1,\"bscr\",CONFIGURATION!$B$12)","v":{"$error":"#VALUE!"}}]
[null,null,null,null,null,null,null,null,null,null,null,null,null,null,null,null,null,"",{"$f":"XBRLMap(M173,$R173,$S$6,$S$8,CONFIGURATION!$B$10,\"BMA\",CONFIGURATION!$B$1,\"bscr\",CONFIGURATION!$B$12)","v":"-"},{"$f":"XBRLMap(O173,$R173,$T$6,$T$8,CONFIGURATION!$B$10,\"BMA\",CONFIGURATION!$B$1,\"bscr\",CONFIGURATION!$B$12)","v":"-"},null,null,null,""]
[null,"35.","DIVIDENDS PAYABLE",null,{"$f":"+Import!E196","v":0},null,{"$f":"+Import!G196","v":0},null,{"$f":"+Import!E277","v":0},null,{"$f":"+Import!G277","v":0},null,{"$f":"+Import!I196","v":0},null,{"$f":"+Import!K196","v":0},null,null,"brrt_DividendsPayable",{"$f":"XBRLMap(M174,$R174,$S$6,$S$8,CONFIGURATION!$B$10,\"BMA\",CONFIGURATION!$B$1,\"bscr\",CONFIGURATION!$B$12)","v":"Mapped"},{"$f":"XBRLMap(O174,$R174,$T$6,$T$8,CONFIGURATION!$B$10,\"BMA\",CONFIGURATION!$B$1,\"bscr\",CONFIGURATION!$B$12)","v":"Mapped"},null,null,null,"bma_DividendsPayable"]
[null,null,null,null,null,null,null,null,null,null,null,null,null,null,null,null,null,"",{"$f":"XBRLMap(M175,$R175,$S$6,$S$8,CONFIGURATION!$B$10,\"BMA\",CONFIGURATION!$B$1,\"bscr\",CONFIGURATION!$B$12)","v":"-"},{"$f":"XBRLMap(O175,$R175,$T$6,$T$8,CONFIGURATION!$B$10,\"BMA\",CONFIGURATION!$B$1,\"bscr\",CONFIGURATION!$B$12)","v":"-"},null,null,null,""]
[null,"36.","SUNDRY LIABILITIES:",null,null,null,null,null,null,null,null,null,null,null,null,null,null,"",{"$f":"XBRLMap(M176,$R176,$S$6,$S$8,CONFIGURATION!$B$10,\"BMA\",CONFIGURATION!$B$1,\"bscr\",CONFIGURATION!$B$12)","v":"-"},{"$f":"XBRLMap(O176,$R176,$T$6,$T$8,CONFIGURATION!$B$10,\"BMA\",CONFIGURATION!$B$1,\"bscr\",CONFIGURATION!$B$12)","v":"-"}]
[null,"(a)","Derivative instruments ",null,{"$f":"+Import!E197","v":0},null,{"$f":"+Import!G197","v":0},null,{"$f":"+Import!E278","v":0},null,{"$f":"+Import!G278","v":0},null,{"$f":"+Import!I197","v":0},null,{"$f":"+Import!K197","v":0},null,null,"brrt_SundryLiabilitiesDerivativeInstruments",{"$f":"XBRLMap(M177,$R177,$S$6,$S$8,CONFIGURATION!$B$10,\"BMA\",CONFIGURATION!$B$1,\"bscr\",CONFIGURATION!$B$12)","v":"Mapped"},{"$f":"XBRLMap(O177,$R177,$T$6,$T$8,CONFIGURATION!$B$10,\"BMA\",CONFIGURATION!$B$1,\"bscr\",CONFIGURATION!$B$12)","v":"Mapped"},null,null,null,"bma_SundryLiabilitiesDerivativeInstruments"]
[null,"(b)","Segregated accounts companies",null,{"$f":"+Import!E199","v":0},null,{"$f":"+Import!G199","v":0},null,{"$f":"+Import!E279","v":0},null,{"$f":"+Import!G279","v":0},null,{"$f":"+Import!I199","v":0},null,{"$f":"+Import!K199","v":0},null,null,"brrt_SundryLiabilitiesSegregatedAccountsCompanies",{"$f":"XBRLMap(M178,$R178,$S$6,$S$8,CONFIGURATION!$B$10,\"BMA\",CONFIGURATION!$B$1,\"bscr\",CONFIGURATION!$B$12)","v":"Mapped"},{"$f":"XBRLMap(O178,$R178,$T$6,$T$8,CONFIGURATION!$B$10,\"BMA\",CONFIGURATION!$B$1,\"bscr\",CONFIGURATION!$B$12)","v":"Mapped"},null,null,null,"bma_SundryLiabilitiesSegregatedAccountsCompanies"]
[null,"(c)","Deposit liabilities",null,{"$f":"+Import!E200","v":0},null,{"$f":"+Import!G200","v":0},null,{"$f":"+Import!E280","v":0},null,{"$f":"+Import!G280","v":0},null,{"$f":"+Import!I200","v":0},null,{"$f":"+Import!K200","v":0},null,null,"brrt_SundryLiabilitiesDepositLiabilities",{"$f":"XBRLMap(M179,$R179,$S$6,$S$8,CONFIGURATION!$B$10,\"BMA\",CONFIGURATION!$B$1,\"bscr\",CONFIGURATION!$B$12)","v":"Mapped"},{"$f":"XBRLMap(O179,$R179,$T$6,$T$8,CONFIGURATION!$B$10,\"BMA\",CONFIGURATION!$B$1,\"bscr\",CONFIGURATION!$B$12)","v":"Mapped"},null,null,null,"bma_SundryLiabilitiesDepositLiabilities"]
[null,"(d)","Net payable for investments purchased",null,{"$f":"+Import!E202","v":0},null,{"$f":"+Import!G202","v":0},null,{"$f":"+Import!E281","v":0},null,{"$f":"+Import!G281","v":0},null,{"$f":"+Import!I202","v":0},null,{"$f":"+Import!K202","v":0}]
[null,"(e)","Other sundry liabilities (specify)",null,{"$f":"+Import!E203","v":0},null,{"$f":"+Import!G203","v":0},null,{"$f":"+Import!E282","v":0},null,{"$f":"+Import!G282","v":0},null,{"$f":"+Import!I203","v":0},null,{"$f":"+Import!K203","v":0}]
[null,"(f)","Other sundry liabilities (specify)",null,{"$f":"+Import!E204","v":0},null,{"$f":"+Import!G204","v":0},null,{"$f":"+Import!E283","v":0},null,{"$f":"+Import!G283","v":0},null,{"$f":"+Import!I204","v":0},null,{"$f":"+Import!K204","v":0}]
[null,"(g)","Other sundry liabilities (specify)",null,{"$f":"+Import!E205","v":0},null,{"$f":"+Import!G205","v":0},null,{"$f":"+Import!E284","v":0},null,{"$f":"+Import!G284","v":0},null,{"$f":"+Import!I205","v":0},null,{"$f":"+Import!K205","v":0},null,null,"brrt_SundryLiabilitiesOther",{"$f":"XBRLMap(M183,$R183,$S$6,$S$8,CONFIGURATION!$B$10,\"BMA\",CONFIGURATION!$B$1,\"bscr\",CONFIGURATION!$B$12)","v":"Mapped"},{"$f":"XBRLMap(O183,$R183,$T$6,$T$8,CONFIGURATION!$B$10,\"BMA\",CONFIGURATION!$B$1,\"bscr\",CONFIGURATION!$B$12)","v":"Mapped"},null,null,null,"bma_SundryLiabilitiesOther"]
[null,"(h)","Total sundry liabilities",null,{"$f":"SUM(E177:E183)","v":0},null,{"$f":"SUM(G177:G183)","v":0},null,{"$f":"SUM(I177:I183)","v":0},null,{"$f":"SUM(K177:K183)","v":0},null,{"$f":"SUM(M177:M183)","v":0},null,{"$f":"SUM(O177:O183)","v":0},null,null,"brrt_SundryLiabilities",{"$f":"XBRLMap(M184,$R184,$S$6,$S$8,CONFIGURATION!$B$10,\"BMA\",CONFIGURATION!$B$1,\"bscr\",CONFIGURATION!$B$12)","v":"Mapped"},{"$f":"XBRLMap(O184,$R184,$T$6,$T$8,CONFIGURATION!$B$10,\"BMA\",CONFIGURATION!$B$1,\"bscr\",CONFIGURATION!$B$12)","v":"Mapped"},null,null,null,"bma_TotalSundryLiabilities"]
[null,null,null,null,null,null,null,null,null,null,null,null,null,null,null,null,null,"brrt_SundryLiabilitiesOtherDescription",{"$f":"XBRLMap(C183,$R185,$S$6,$S$8,CONFIGURATION!$B$10,\"BMA\",CONFIGURATION!$B$1,\"bscr\")","v":"Mapped"},null,null,null,null,"bma_SundryLiabilitiesOtherType"]
[null,"37.","LETTERS OF CREDIT, GUARANTEES AND OTHER INSTRUMENTS:",null,null,null,null,null,null,null,null,null,null,null,null,null,null,"",{"$f":"XBRLMap(M186,$R186,$S$6,$S$8,CONFIGURATION!$B$10,\"BMA\",CONFIGURATION!$B$1,\"bscr\",CONFIGURATION!$B$12)","v":"-"},{"$f":"XBRLMap(O186,$R186,$T$6,$T$8,CONFIGURATION!$B$10,\"BMA\",CONFIGURATION!$B$1,\"bscr\",CONFIGURATION!$B$12)","v":"-"}]
[null,"(a)","Letters of credit ",null,{"$f":"+Import!E206","v":0},null,{"$f":"+Import!G206","v":0},null,{"$f":"+Import!E285","v":0},null,{"$f":"+Import!G285","v":0},null,{"$f":"+Import!I206","v":0},null,{"$f":"+Import!K206","v":0},null,null,"brrt_LiabilitiesLettersOfCredit",{"$f":"XBRLMap(M187,$R187,$S$6,$S$8,CONFIGURATION!$B$10,\"BMA\",CONFIGURATION!$B$1,\"bscr\",CONFIGURATION!$B$12)","v":"Mapped"},{"$f":"XBRLMap(O187,$R187,$T$6,$T$8,CONFIGURATION!$B$10,\"BMA\",CONFIGURATION!$B$1,\"bscr\",CONFIGURATION!$B$12)","v":"Mapped"},null,null,null,"bma_LiabilitiesLettersOfCredit"]
[null,"(b)","Guarantees",null,{"$f":"+Import!E207","v":0},null,{"$f":"+Import!G207","v":0},null,{"$f":"+Import!E286","v":0},null,{"$f":"+Import!G286","v":0},null,{"$f":"+Import!I207","v":0},null,{"$f":"+Import!K207","v":0},null,null,"brrt_LiabilitiesGuarantees",{"$f":"XBRLMap(M188,$R188,$S$6,$S$8,CONFIGURATION!$B$10,\"BMA\",CONFIGURATION!$B$1,\"bscr\",CONFIGURATION!$B$12)","v":"Mapped"},{"$f":"XBRLMap(O188,$R188,$T$6,$T$8,CONFIGURATION!$B$10,\"BMA\",CONFIGURATION!$B$1,\"bscr\",CONFIGURATION!$B$12)","v":"Mapped"},null,null,null,"bma_LiabilitiesGuarantees"]
[null,"(c) ","Other instruments",null,{"$f":"+Import!E208","v":0},null,{"$f":"+Import!G208","v":0},null,{"$f":"+Import!E287","v":0},null,{"$f":"+Import!G287","v":0},null,{"$f":"+Import!I208","v":0},null,{"$f":"+Import!K208","v":0},null,null,"brrt_LiabilitiesOtherInstruments",{"$f":"XBRLMap(M189,$R189,$S$6,$S$8,CONFIGURATION!$B$10,\"BMA\",CONFIGURATION!$B$1,\"bscr\",CONFIGURATION!$B$12)","v":"Mapped"},{"$f":"XBRLMap(O189,$R189,$T$6,$T$8,CONFIGURATION!$B$10,\"BMA\",CONFIGURATION!$B$1,\"bscr\",CONFIGURATION!$B$12)","v":"Mapped"},null,null,null,"bma_LiabilitiesOtherInstruments"]
[null,"(d)","Total letters of credit, guarantees and other instruments",null,{"$f":"SUM(E187:E189)","v":0},null,{"$f":"SUM(G187:G189)","v":0},null,{"$f":"SUM(I187:I189)","v":0},null,{"$f":"SUM(K187:K189)","v":0},null,{"$f":"SUM(M187:M189)","v":0},null,{"$f":"SUM(O187:O189)","v":0},null,null,"brrt_LiabilitiesLettersOfCreditGuaranteesAndOtherInstruments",{"$f":"XBRLMap(M190,$R190,$S$6,$S$8,CONFIGURATION!$B$10,\"BMA\",CONFIGURATION!$B$1,\"bscr\",CONFIGURATION!$B$12)","v":"Mapped"},{"$f":"XBRLMap(O190,$R190,$T$6,$T$8,CONFIGURATION!$B$10,\"BMA\",CONFIGURATION!$B$1,\"bscr\",CONFIGURATION!$B$12)","v":"Mapped"},null,null,null,"bma_LiabilitiesTotalLettersOfCreditGuaranteesAndOtherInstruments"]
[null,null,null,null,null,null,null,null,null,null,null,null,null,null,null,null,null,"",{"$f":"XBRLMap(M191,$R191,$S$6,$S$8,CONFIGURATION!$B$10,\"BMA\",CONFIGURATION!$B$1,\"bscr\",CONFIGURATION!$B$12)","v":"-"},{"$f":"XBRLMap(O191,$R191,$T$6,$T$8,CONFIGURATION!$B$10,\"BMA\",CONFIGURATION!$B$1,\"bscr\",CONFIGURATION!$B$12)","v":"-"},null,null,null,""]
[null,"38.","TOTAL OTHER LIABILITIES",null,{"$f":"E158+E160+E162+E164+E166+E168+E170+E172+E174+E184+E190","v":0},null,{"$f":"G158+G160+G162+G164+G166+G168+G170+G172+G174+G184+G190","v":0},null,{"$f":"I158+I160+I162+I164+I166+I168+I170+I172+I174+I184+I190","v":0},null,{"$f":"K158+K160+K162+K164+K166+K168+K170+K172+K174+K184+K190","v":0},null,{"$f":"M158+M160+M162+M164+M166+M168+M170+M172+M174+M184+M190","v":0},null,{"$f":"O158+O160+O162+O164+O166+O168+O170+O172+O174+O184+O190","v":0},null,null,"brrt_OtherLiabilities",{"$f":"XBRLMap(M192,$R192,$S$6,$S$8,CONFIGURATION!$B$10,\"BMA\",CONFIGURATION!$B$1,\"bscr\",CONFIGURATION!$B$12)","v":"Mapped"},{"$f":"XBRLMap(O192,$R192,$T$6,$T$8,CONFIGURATION!$B$10,\"BMA\",CONFIGURATION!$B$1,\"bscr\",CONFIGURATION!$B$12)","v":"Mapped"},null,null,null,"bma_TotalOtherLiabilities"]
[null,null,null,null,null,null,null,null,null,null,null,null,null,null,null,null,null,"",{"$f":"XBRLMap(M193,$R193,$S$6,$S$8,CONFIGURATION!$B$10,\"BMA\",CONFIGURATION!$B$1,\"bscr\",CONFIGURATION!$B$12)","v":"-"},{"$f":"XBRLMap(O193,$R193,$T$6,$T$8,CONFIGURATION!$B$10,\"BMA\",CONFIGURATION!$B$1,\"bscr\",CONFIGURATION!$B$12)","v":"-"},null,null,null,""]
[null,"39.","TOTAL INSURANCE PROVISIONS AND OTHER LIABILITIES",null,{"$f":"E128+E154+E192","v":0},null,{"$f":"G128+G154+G192","v":0},null,{"$f":"I128+I154+I192","v":0},null,{"$f":"K128+K154+K192","v":0},null,{"$f":"M128+M154+M192","v":0},null,{"$f":"O128+O154+O192","v":0},null,null,"brrt_InsuranceReservesAndOtherLiabilities",{"$f":"XBRLMap(M194,$R194,$S$6,$S$8,CONFIGURATION!$B$10,\"BMA\",CONFIGURATION!$B$1,\"bscr\",CONFIGURATION!$B$12)","v":"Mapped"},{"$f":"XBRLMap(O194,$R194,$T$6,$T$8,CONFIGURATION!$B$10,\"BMA\",CONFIGURATION!$B$1,\"bscr\",CONFIGURATION!$B$12)","v":"Mapped"},null,null,null,"bma_TotalGeneralBusinessInsuranceReservesAndOtherLiabilities"]
[null,null,null,null,null,null,null,null,null,null,null,null,null,null,null,null,null,"",{"$f":"XBRLMap(M195,$R195,$S$6,$S$8,CONFIGURATION!$B$10,\"BMA\",CONFIGURATION!$B$1,\"bscr\",CONFIGURATION!$B$12)","v":"-"},{"$f":"XBRLMap(O195,$R195,$T$6,$T$8,CONFIGURATION!$B$10,\"BMA\",CONFIGURATION!$B$1,\"bscr\",CONFIGURATION!$B$12)","v":"-"},null,null,null,""]
[null,null,"STATUTORY CAPITAL AND SURPLUS",null,null,null,null,null,null,null,null,null,null,null,null,null,null,"",{"$f":"XBRLMap(M196,$R196,$S$6,$S$8,CONFIGURATION!$B$10,\"BMA\",CONFIGURATION!$B$1,\"bscr\",CONFIGURATION!$B$12)","v":"-"},{"$f":"XBRLMap(O196,$R196,$T$6,$T$8,CONFIGURATION!$B$10,\"BMA\",CONFIGURATION!$B$1,\"bscr\",CONFIGURATION!$B$12)","v":"-"}]
[null,null,null,null,null,null,null,null,null,null,null,null,null,null,null,null,null,"",{"$f":"XBRLMap(M197,$R197,$S$6,$S$8,CONFIGURATION!$B$10,\"BMA\",CONFIGURATION!$B$1,\"bscr\",CONFIGURATION!$B$12)","v":"-"},{"$f":"XBRLMap(O197,$R197,$T$6,$T$8,CONFIGURATION!$B$10,\"BMA\",CONFIGURATION!$B$1,\"bscr\",CONFIGURATION!$B$12)","v":"-"},null,null,null,""]
[null,"40.","TOTAL STATUTORY CAPITAL AND SURPLUS ",null,{"$f":"+'Form 8SFS'!G58","v":0},null,{"$f":"+'Form 8SFS'!I58","v":0},null,{"$f":"+'Form 8SFS'!K58","v":0},null,{"$f":"+'Form 8SFS'!M58","v":0},null,{"$f":"+'Form 8SFS'!O58","v":0},null,{"$f":"+'Form 8SFS'!Q58","v":0},null,null,null,null,null,null,null,null,"bma_TotalStatutoryCapitalAndSurplus"]
[null,null,null,null,null,null,null,null,null,null,null,null,null,null,null,null,null,"",{"$f":"XBRLMap(M199,$R199,$S$6,$S$8,CONFIGURATION!$B$10,\"BMA\",CONFIGURATION!$B$1,\"bscr\",CONFIGURATION!$B$12)","v":"-"},{"$f":"XBRLMap(O199,$R199,$T$6,$T$8,CONFIGURATION!$B$10,\"BMA\",CONFIGURATION!$B$1,\"bscr\",CONFIGURATION!$B$12)","v":"-"},null,null,null,""]
[null,"41.","TOTAL",null,{"$f":"E194+E198","v":0},null,{"$f":"G194+G198","v":0},null,{"$f":"I194+I198","v":0},null,{"$f":"K194+K198","v":0},null,{"$f":"M194+M198","v":0},null,{"$f":"O194+O198","v":0},null,null,"brrt_Liabilities",{"$f":"XBRLMap(M200,$R200,$S$6,$S$8,CONFIGURATION!$B$10,\"BMA\",CONFIGURATION!$B$1,\"bscr\",CONFIGURATION!$B$12)","v":"Mapped"},{"$f":"XBRLMap(O200,$R200,$T$6,$T$8,CONFIGURATION!$B$10,\"BMA\",CONFIGURATION!$B$1,\"bscr\",CONFIGURATION!$B$12)","v":"Mapped"},null,null,null,"bma_TotalLiabilities"]
[null,null,null,null,null,null,null,null,null,null,null,null,null,null,null,null,null,"",{"$f":"XBRLMap(M201,$R201,$S$6,$S$8,CONFIGURATION!$B$10,\"BMA\",CONFIGURATION!$B$1,\"bscr\",CONFIGURATION!$B$12)","v":"-"},{"$f":"XBRLMap(O201,$R201,$T$6,$T$8,CONFIGURATION!$B$10,\"BMA\",CONFIGURATION!$B$1,\"bscr\",CONFIGURATION!$B$12)","v":"-"},null,null,null,""]
[null,null,null,null,{"$f":"IF(E203=\"TRUE\",HYPERLINK(\"#'Form 1SFS'!E100\",\"TRUE\"),HYPERLINK(\"#'Form 1SFS'!E100\",\"FALSE\"))","v":"TRUE"},null,{"$f":"IF(G203=\"TRUE\",HYPERLINK(\"#'Form 1SFS'!G100\",\"TRUE\"),HYPERLINK(\"#'Form 1SFS'!G100\",\"FALSE\"))","v":"TRUE"},null,{"$f":"IF(I203=\"TRUE\",HYPERLINK(\"#'Form 1SFS'!I100\",\"TRUE\"),HYPERLINK(\"#'Form 1SFS'!I100\",\"FALSE\"))","v":"TRUE"},null,{"$f":"IF(K203=\"TRUE\",HYPERLINK(\"#'Form 1SFS'!K100\",\"TRUE\"),HYPERLINK(\"#'Form 1SFS'!K100\",\"FALSE\"))","v":"TRUE"},null,{"$f":"IF(M203=\"TRUE\",HYPERLINK(\"#'Form 1SFS'!M100\",\"TRUE\"),HYPERLINK(\"#'Form 1SFS'!M100\",\"FALSE\"))","v":"TRUE"},null,{"$f":"IF(O203=\"TRUE\",HYPERLINK(\"#'Form 1SFS'!O100\",\"TRUE\"),HYPERLINK(\"#'Form 1SFS'!O100\",\"FALSE\"))","v":"TRUE"},null,"CHECK","",{"$f":"XBRLMap(M202,$R202,$S$6,$S$8,CONFIGURATION!$B$10,\"BMA\",CONFIGURATION!$B$1,\"bscr\",CONFIGURATION!$B$12)","v":"-"},{"$f":"XBRLMap(O202,$R202,$T$6,$T$8,CONFIGURATION!$B$10,\"BMA\",CONFIGURATION!$B$1,\"bscr\",CONFIGURATION!$B$12)","v":"-"},null,null,null,""]
[null,null,null,null,{"$f":"IF(ROUND((E100-E200),0)=0,\"TRUE\",\"FALSE\")","v":"TRUE"},null,{"$f":"IF(ROUND((G100-G200),0)=0,\"TRUE\",\"FALSE\")","v":"TRUE"},null,{"$f":"IF(ROUND((I100-I200),0)=0,\"TRUE\",\"FALSE\")","v":"TRUE"},null,{"$f":"IF(ROUND((K100-K200),0)=0,\"TRUE\",\"FALSE\")","v":"TRUE"},null,{"$f":"IF(ROUND((M100-M200),0)=0,\"TRUE\",\"FALSE\")","v":"TRUE"},null,{"$f":"IF(ROUND((O100-O200),0)=0,\"TRUE\",\"FALSE\")","v":"TRUE"},null,null,"",{"$f":"XBRLMap(M203,$R203,$S$6,$S$8,CONFIGURATION!$B$10,\"BMA\",CONFIGURATION!$B$1,\"bscr\",CONFIGURATION!$B$12)","v":"-"},{"$f":"XBRLMap(O203,$R203,$T$6,$T$8,CONFIGURATION!$B$10,\"BMA\",CONFIGURATION!$B$1,\"bscr\",CONFIGURATION!$B$12)","v":"-"},null,null,null,""]
[null,null,"Difference",null,{"$f":"ROUND((E100-E200),0)","v":0},null,{"$f":"ROUND((G100-G200),0)","v":0},null,{"$f":"ROUND((I100-I200),0)","v":0},null,{"$f":"ROUND((K100-K200),0)","v":0},null,{"$f":"ROUND((M100-M200),0)","v":0},null,{"$f":"ROUND((O100-O200),0)","v":0},null,null,"",{"$f":"XBRLMap(M204,$R204,$S$6,$S$8,CONFIGURATION!$B$10,\"BMA\",CONFIGURATION!$B$1,\"bscr\",CONFIGURATION!$B$12)","v":"-"},{"$f":"XBRLMap(O204,$R204,$T$6,$T$8,CONFIGURATION!$B$10,\"BMA\",CONFIGURATION!$B$1,\"bscr\",CONFIGURATION!$B$12)","v":"-"}]
[]
[null,null,null,null,{"$f":"IF(E202=\"False\",\"Line 15 does not equal Line 41\",\"\")","v":""},null,{"$f":"IF(G202=\"False\",\"Line 15 does not equal Line 41\",\"\")","v":""},null,{"$f":"IF(I202=\"False\",\"Line 15 does not equal Line 41\",\"\")","v":""},null,{"$f":"IF(K202=\"False\",\"Line 15 does not equal Line 41\",\"\")","v":""},null,{"$f":"IF(M202=\"False\",\"Line 15 does not equal Line 41\",\"\")","v":""},null,{"$f":"IF(O202=\"False\",\"Line 15 does not equal Line 41\",\"\")","v":""}]
[]
[null,"Notes to Unconsolidated Form 1SFS"]
[]
[null,"Line 10 ","Collateralized balances",null,null,null,null,null,null,null,null,null,{"$f":"Import!E289","v":0},null,{"$f":"Import!G289","v":0},null,null,"brrt_CollateralizedBalances",{"$f":"XBRLMap(M210,$R210,$S$6,$S$8,CONFIGURATION!$B$10,\"BMA\",CONFIGURATION!$B$1,\"bscr\",CONFIGURATION!$B$12)","v":"Mapped"},{"$f":"XBRLMap(O210,$R210,$T$6,$T$8,CONFIGURATION!$B$10,\"BMA\",CONFIGURATION!$B$1,\"bscr\",CONFIGURATION!$B$12)","v":"Mapped"},null,null,null,"bma_CollateralizedBalances"]
[]
[null,"Line 11(e) ","Collateralized balances",null,null,null,null,null,null,null,null,null,{"$f":"Import!E290","v":0}]
[]
[null,"Line 17(c) ","Collateral placed in favor of the insurer ",null,null,null,null,null,null,null,null,null,{"$f":"Import!E291","v":0}]
[]
[null,"Line 13 ","Sundry assets",null,null,null,null,null,null,null,null,null,{"$f":"Import!E292","v":0},null,{"$f":"Import!G292","v":0},null,null,"brrt_CollateralizedBalances",{"$f":"XBRLMap(M216,$R216,$S$6,$S$8,CONFIGURATION!$B$10,\"BMA\",CONFIGURATION!$B$1,\"bscr\",CONFIGURATION!$B$12)","v":"Mapped"},{"$f":"XBRLMap(O216,$R216,$T$6,$T$8,CONFIGURATION!$B$10,\"BMA\",CONFIGURATION!$B$1,\"bscr\",CONFIGURATION!$B$12)","v":"Mapped"},null,null,null,"bma_CollateralizedBalances"]
[]
[null,"Line 15","Encumbered assets for policyholder obligations",null,null,null,null,null,null,null,null,null,null,null,null,null,null,null,null,null,null,null,null,"bma_GrossLossAndLossExpenseProvisionsAtBeginningOfYear"]
[null,null,null,null,null,null,null,null,null,null,null,null,null,null,null,null,null,"brrt_EncumberedAssetsAxis_brrt_EncumberedAssetsForPolicyholderObligationsMember",null,null,null,null,null,""]
[null,null,"Asset",null,null,null,null,null,"Purpose of Encumbrance",null,null,null,null,null,null,null,null,null,null,null,null,null,null,"bma_LessReinsuranceRecoverableAtBeginningOfYear"]
[null,null,"                Cash and cash equivalents",null,null,null,null,null,null,null,null,null,{"$f":"Import!E293","v":0},null,{"$f":"Import!G293","v":0},null,null,"brrt_CashAmountOfEncumbrance",{"$f":"XBRLMap(M221,$R221&\".\"&$R$219,$S$6,$S$8,CONFIGURATION!$B$10,\"BMA\",CONFIGURATION!$B$1,\"bscr\",CONFIGURATION!$B$12)","v":"Mapped"},{"$f":"XBRLMap(O221,$R221&\".\"&$R$219,$T$6,$T$8,CONFIGURATION!$B$10,\"BMA\",CONFIGURATION!$B$1,\"bscr\",CONFIGURATION!$B$12)","v":"Mapped"},null,null,null,""]
[null,null,"                Total quoted investments",null,null,null,null,null,null,null,null,null,{"$f":"Import!E294","v":0},null,{"$f":"Import!G294","v":0},null,null,"brrt_QuotedInvestmentsAmountOfEncumbrance",{"$f":"XBRLMap(M222,$R222&\".\"&$R$219,$S$6,$S$8,CONFIGURATION!$B$10,\"BMA\",CONFIGURATION!$B$1,\"bscr\",CONFIGURATION!$B$12)","v":"Mapped"},{"$f":"XBRLMap(O222,$R222&\".\"&$R$219,$T$6,$T$8,CONFIGURATION!$B$10,\"BMA\",CONFIGURATION!$B$1,\"bscr\",CONFIGURATION!$B$12)","v":"Mapped"},null,null,null,"bma_NetLossAndLossExpenseProvisionsAtBeginningOfYear"]
[null,null,"                Total unquoted investments",null,null,null,null,null,null,null,null,null,{"$f":"Import!E295","v":0},null,{"$f":"Import!G295","v":0},null,null,"brrt_UnquotedInvestmentsAmountOfEncumbrance",{"$f":"XBRLMap(M223,$R223&\".\"&$R$219,$S$6,$S$8,CONFIGURATION!$B$10,\"BMA\",CONFIGURATION!$B$1,\"bscr\",CONFIGURATION!$B$12)","v":"Mapped"},{"$f":"XBRLMap(O223,$R223&\".\"&$R$219,$T$6,$T$8,CONFIGURATION!$B$10,\"BMA\",CONFIGURATION!$B$1,\"bscr\",CONFIGURATION!$B$12)","v":"Mapped"},null,null,null,""]
[null,null,"                Funds held by ceding reinsurers",null,null,null,null,null,null,null,null,null,{"$f":"IF(SUM(E100,I100)=0,M79,E79+I79)","v":0},null,{"$f":"IF(SUM(G100,K100)=0,O79,G79+K79)","v":0},null,null,"brrt_FundsHeldByCedingReinsurersAmountOfEncumbrance",{"$f":"XBRLMap(M224,$R224&\".\"&$R$219,$S$6,$S$8,CONFIGURATION!$B$10,\"BMA\",CONFIGURATION!$B$1,\"bscr\",CONFIGURATION!$B$12)","v":"Mapped"},{"$f":"XBRLMap(O224,$R224&\".\"&$R$219,$T$6,$T$8,CONFIGURATION!$B$10,\"BMA\",CONFIGURATION!$B$1,\"bscr\",CONFIGURATION!$B$12)","v":"Mapped"}]
[null,null,"                Other assets",null,null,null,null,null,null,null,null,null,{"$f":"Import!E297","v":0},null,{"$f":"Import!G297","v":0},null,null,"brrt_OtherAssetsTypesAmountOfEncumbrance",{"$f":"XBRLMap(M225,$R225&\".\"&$R$219,$S$6,$S$8,CONFIGURATION!$B$10,\"BMA\",CONFIGURATION!$B$1,\"bscr\",CONFIGURATION!$B$12)","v":"Mapped"},{"$f":"XBRLMap(O225,$R225&\".\"&$R$219,$T$6,$T$8,CONFIGURATION!$B$10,\"BMA\",CONFIGURATION!$B$1,\"bscr\",CONFIGURATION!$B$12)","v":"Mapped"},null,null,null,""]
[null,null,"                Total encumbered assets",null,null,null,null,null,null,null,null,null,{"$f":"SUM(M221:M225)","v":0},null,{"$f":"SUM(O221:O225)","v":0},null,null,"brrt_AssetsEncumberedAmountOfEncumbrance",{"$f":"XBRLMap(M226,$R226&\".\"&$R$219,$S$6,$S$8,CONFIGURATION!$B$10,\"BMA\",CONFIGURATION!$B$1,\"bscr\",CONFIGURATION!$B$12)","v":"Mapped"},{"$f":"XBRLMap(O226,$R226&\".\"&$R$219,$T$6,$T$8,CONFIGURATION!$B$10,\"BMA\",CONFIGURATION!$B$1,\"bscr\",CONFIGURATION!$B$12)","v":"Mapped"},null,null,null,"bma_NetLossesIncurredAndNetLossExpensesIncurredRelatedToCurrentYear"]
[null,null,null,null,null,null,null,null,null,null,null,null,null,null,null,null,null,null,null,null,null,null,null,"bma_NetLossesIncurredAndNetLossExpensesIncurredRelatedToPriorYears"]
[null,"Line 15","Encumbered assets not securing policyholder obligations",null,null,null,null,null,null,null,null,null,null,null,null,null,null,"brrt_EncumberedAssetsAxis_brrt_EncumberedAssetsNotSecuringPolicyholderObligationsMember",null,null,null,null,null,""]
[null,null,null,null,null,null,null,null,null,null,null,null,null,null,null,null,null,null,null,null,null,null,null,"bma_TotalNetIncurredLossesAndLossExpenses"]
[null,null,"Asset",null,null,null,null,null,"Purpose of Encumbrance",null,null,null,null,null,null,null,null,null,null,null,null,null,null,""]
[null,null,"                Cash and cash equivalents",null,null,null,null,null,null,null,null,null,{"$f":"Import!E299","v":0},null,{"$f":"Import!G299","v":0},null,"brrt_CashPurposeOfEncumbrance","brrt_CashAmountOfEncumbrance",{"$f":"XBRLMap(M231,$R231&\".\"&$R$228,$S$6,$S$8,CONFIGURATION!$B$10,\"BMA\",CONFIGURATION!$B$1,\"bscr\",CONFIGURATION!$B$12)","v":"Mapped"},{"$f":"XBRLMap(O231,$R231&\".\"&$R$228,$T$6,$T$8,CONFIGURATION!$B$10,\"BMA\",CONFIGURATION!$B$1,\"bscr\",CONFIGURATION!$B$12)","v":"Mapped"},{"$f":"XBRLMap(G231,$Q231&\".\"&$R$228,$S$6,$S$8,CONFIGURATION!$B$10,\"BMA\",CONFIGURATION!$B$1,\"bscr\",CONFIGURATION!$B$12)","v":"Mapped"}]
[null,null,"                Total quoted investments",null,null,null,null,null,null,null,null,null,{"$f":"Import!E300","v":0},null,{"$f":"Import!G300","v":0},null,"brrt_QuotedInvestmentsPurposeOfEncumbrance","brrt_QuotedInvestmentsAmountOfEncumbrance",{"$f":"XBRLMap(M232,$R232&\".\"&$R$228,$S$6,$S$8,CONFIGURATION!$B$10,\"BMA\",CONFIGURATION!$B$1,\"bscr\",CONFIGURATION!$B$12)","v":"Mapped"},{"$f":"XBRLMap(O232,$R232&\".\"&$R$228,$T$6,$T$8,CONFIGURATION!$B$10,\"BMA\",CONFIGURATION!$B$1,\"bscr\",CONFIGURATION!$B$12)","v":"Mapped"},{"$f":"XBRLMap(G232,$Q232&\".\"&$R$228,$S$6,$S$8,CONFIGURATION!$B$10,\"BMA\",CONFIGURATION!$B$1,\"bscr\",CONFIGURATION!$B$12)","v":"Mapped"},null,null,""]
[null,null,"                Total unquoted investments",null,null,null,null,null,null,null,null,null,{"$f":"Import!E301","v":0},null,{"$f":"Import!G301","v":0},null,"brrt_UnquotedInvestmentsPurposeOfEncumbrance","brrt_UnquotedInvestmentsAmountOfEncumbrance",{"$f":"XBRLMap(M233,$R233&\".\"&$R$228,$S$6,$S$8,CONFIGURATION!$B$10,\"BMA\",CONFIGURATION!$B$1,\"bscr\",CONFIGURATION!$B$12)","v":"Mapped"},{"$f":"XBRLMap(O233,$R233&\".\"&$R$228,$T$6,$T$8,CONFIGURATION!$B$10,\"BMA\",CONFIGURATION!$B$1,\"bscr\",CONFIGURATION!$B$12)","v":"Mapped"},{"$f":"XBRLMap(G233,$Q233&\".\"&$R$228,$S$6,$S$8,CONFIGURATION!$B$10,\"BMA\",CONFIGURATION!$B$1,\"bscr\",CONFIGURATION!$B$12)","v":"Mapped"},null,null,"bma_NetLossesAndLossExpensesPaidOrPayableRelatedToCurrentYear"]
[null,null,"                Other assets",null,null,null,null,null,null,null,null,null,{"$f":"Import!E302","v":0},null,{"$f":"Import!G302","v":0},null,"brrt_OtherAssetsTypesPurposeOfEncumbrance","brrt_OtherAssetsTypesAmountOfEncumbrance",{"$f":"XBRLMap(M234,$R234&\".\"&$R$228,$S$6,$S$8,CONFIGURATION!$B$10,\"BMA\",CONFIGURATION!$B$1,\"bscr\",CONFIGURATION!$B$12)","v":"Mapped"},{"$f":"XBRLMap(O234,$R234&\".\"&$R$228,$T$6,$T$8,CONFIGURATION!$B$10,\"BMA\",CONFIGURATION!$B$1,\"bscr\",CONFIGURATION!$B$12)","v":"Mapped"},{"$f":"XBRLMap(G234,$Q234&\".\"&$R$228,$S$6,$S$8,CONFIGURATION!$B$10,\"BMA\",CONFIGURATION!$B$1,\"bscr\",CONFIGURATION!$B$12)","v":"Mapped"},null,null,"bma_NetLossesAndLossExpensesPaidOrPayableRelatedToPriorYears"]
[null,null,"                Total encumbered assets",null,null,null,null,null,null,null,null,null,{"$f":"SUM(M231:M234)","v":0},null,{"$f":"SUM(O231:O234)","v":0},null,null,"brrt_AssetsEncumberedAmountOfEncumbrance",{"$f":"XBRLMap(M235,$R235&\".\"&$R$228,$S$6,$S$8,CONFIGURATION!$B$10,\"BMA\",CONFIGURATION!$B$1,\"bscr\",CONFIGURATION!$B$12)","v":"Mapped"},{"$f":"XBRLMap(O235,$R235&\".\"&$R$228,$T$6,$T$8,CONFIGURATION!$B$10,\"BMA\",CONFIGURATION!$B$1,\"bscr\",CONFIGURATION!$B$12)","v":"Mapped"},null,null,null,""]
[null,null,null,null,null,null,null,null,null,null,null,null,null,null,null,null,null,null,{"$f":"XBRLMap(M236,$R235,$S$6,$S$8,CONFIGURATION!$B$10,\"BMA\",CONFIGURATION!$B$1,\"bscr\",CONFIGURATION!$B$12)","v":"Mapped"},{"$f":"XBRLMap(O236,$R235,$T$6,$T$8,CONFIGURATION!$B$10,\"BMA\",CONFIGURATION!$B$1,\"bscr\",CONFIGURATION!$B$12)","v":"Mapped"},null,null,null,"bma_TotalLossesAndLossExpensesPaidOrPayable"]
[null,"Line 36","Sundry liabilities",null,null,null,null,null,null,null,null,null,{"$f":"Import!E304","v":0},null,{"$f":"Import!G304","v":0},null,null,"brrt_CollateralizedBalances",{"$f":"XBRLMap(M237,$R237,$S$6,$S$8,CONFIGURATION!$B$10,\"BMA\",CONFIGURATION!$B$1,\"bscr\",CONFIGURATION!$B$12)","v":"Mapped"},{"$f":"XBRLMap(O237,$R237,$T$6,$T$8,CONFIGURATION!$B$10,\"BMA\",CONFIGURATION!$B$1,\"bscr\",CONFIGURATION!$B$12)","v":"Mapped"},null,null,null,"bma_CollateralizedBalances"]
[]
[null,"Line 37","Letters of Credit, Guarantees and other Instruments",null,null,null,null,null,null,null,null,null,{"$f":"Import!E305","v":0},null,{"$f":"Import!G305","v":0},null,null,"brrt_CollateralizedBalances",{"$f":"XBRLMap(M239,$R239,$S$6,$S$8,CONFIGURATION!$B$10,\"BMA\",CONFIGURATION!$B$1,\"bscr\",CONFIGURATION!$B$12)","v":"Mapped"},{"$f":"XBRLMap(O239,$R239,$T$6,$T$8,CONFIGURATION!$B$10,\"BMA\",CONFIGURATION!$B$1,\"bscr\",CONFIGURATION!$B$12)","v":"Mapped"},null,null,null,"bma_CollateralizedBalances"]
[]
[null,null,"General Business"]
[null,"Line 17","Reasons for the change in the net losses incurred and net loss expenses incurred related to prior years and indicate whether additional premiums or return premiums have been accrued as a result of the prior year effects. ",null,null,null,null,null,null,null,{"$f":"Import!E306","v":0}]
[]
[]
[null,"Line 17","Loss and loss expense provisions total restricted assets - an amount equal to the value of all that are held for security or collateral against a liability or contingent liabilit"]
[]
[]
[null,"Line 17","Loss and loss expense provision unsecured policyholder obligations - an amount equal to all policyholder obligations that are not secured by assets or collateral"]
[]
[]
[null,"Line 17","Gross loss and loss expense provisions at beginning of year",null,null,null,null,null,null,null,null,null,{"$f":"Import!E307","v":0},null,{"$f":"Import!G307","v":0},null,null,"brrt_GrossLossAndLossExpenseProvisions",{"$f":"XBRLMap(M251,$R251,$S$6,$S$6,CONFIGURATION!$B$10,\"BMA\",CONFIGURATION!$B$1,\"bscr\",CONFIGURATION!$B$12)","v":"Mapped"},{"$f":"XBRLMap(O251,$R251,$T$6,$T$6,CONFIGURATION!$B$10,\"BMA\",CONFIGURATION!$B$1,\"bscr\",CONFIGURATION!$B$12)","v":"Mapped"},null,null,null,""]
[null,null,null,null,null,null,null,null,null,null,null,null,null,null,null,null,null,"",{"$f":"XBRLMap(M252,$R252,$S$6,$S$8,CONFIGURATION!$B$10,\"BMA\",CONFIGURATION!$B$1,\"bscr\",CONFIGURATION!$B$12)","v":"-"},{"$f":"XBRLMap(O252,$R252,$T$6,$T$8,CONFIGURATION!$B$10,\"BMA\",CONFIGURATION!$B$1,\"bscr\",CONFIGURATION!$B$12)","v":"-"},null,null,null,"bma_ForeignExchangeAndOther"]
[null,null,"Less: Reinsurance recoverable at beginning of year",null,null,null,null,null,null,null,null,null,{"$f":"Import!E308","v":0},null,{"$f":"Import!G308","v":0},null,null,"brrt_ReinsuranceRecoverable",{"$f":"XBRLMap(M253,$R253,$S$6,$S$6,CONFIGURATION!$B$10,\"BMA\",CONFIGURATION!$B$1,\"bscr\",CONFIGURATION!$B$12)","v":"Mapped"},{"$f":"XBRLMap(O253,$R253,$T$6,$T$6,CONFIGURATION!$B$10,\"BMA\",CONFIGURATION!$B$1,\"bscr\",CONFIGURATION!$B$12)","v":"Mapped"},null,null,null,""]
[null,null,null,null,null,null,null,null,null,null,null,null,null,null,null,null,null,"",{"$f":"XBRLMap(M254,$R254,$S$6,$S$8,CONFIGURATION!$B$10,\"BMA\",CONFIGURATION!$B$1,\"bscr\",CONFIGURATION!$B$12)","v":"-"},{"$f":"XBRLMap(O254,$R254,$T$6,$T$8,CONFIGURATION!$B$10,\"BMA\",CONFIGURATION!$B$1,\"bscr\",CONFIGURATION!$B$12)","v":"-"},null,null,null,"bma_NetLossAndLossExpenseProvisionsAtEndOfYear"]
[null,null,"Net loss and loss expense provisions at beginning of year",null,null,null,null,null,null,null,null,null,{"$f":"M251-M253","v":0},null,{"$f":"O251-O253","v":0},null,null,"brrt_NetLossAndLossExpenseProvisions",{"$f":"XBRLMap(M255,$R255,$S$6,$S$6,CONFIGURATION!$B$10,\"BMA\",CONFIGURATION!$B$1,\"bscr\",CONFIGURATION!$B$12)","v":"Mapped"},{"$f":"XBRLMap(O255,$R255,$T$6,$T$6,CONFIGURATION!$B$10,\"BMA\",CONFIGURATION!$B$1,\"bscr\",CONFIGURATION!$B$12)","v":"Mapped"},null,null,null,""]
[null,null,null,null,null,null,null,null,null,null,null,null,null,null,null,null,null,"",{"$f":"XBRLMap(M256,$R256,$S$6,$S$8,CONFIGURATION!$B$10,\"BMA\",CONFIGURATION!$B$1,\"bscr\",CONFIGURATION!$B$12)","v":"-"},{"$f":"XBRLMap(O256,$R256,$T$6,$T$8,CONFIGURATION!$B$10,\"BMA\",CONFIGURATION!$B$1,\"bscr\",CONFIGURATION!$B$12)","v":"-"},null,null,null,"bma_AddReinsuranceRecoverableAtEndOfYear"]
[null,null,"Acquisition / Sale of loss reserves (net):",null,null,null,null,null,null,null,null,null,{"$f":"Import!E310","v":0},null,{"$f":"Import!G310","v":0}]
[]
[null,null,"Net losses incurred and net loss expenses incurred related to:"]
[]
[null,null,"               Current year",null,null,null,null,null,null,null,null,null,{"$f":"Import!E311","v":0},null,{"$f":"Import!G311","v":0}]
[null,null,"               Prior years",null,null,null,null,null,null,null,null,null,{"$f":"Import!E312","v":0},null,{"$f":"Import!G312","v":0}]
[]
[null,null,"Total net incurred losses & loss expenses",null,null,null,null,null,null,null,null,null,{"$f":"SUM(M261:M262)","v":0},null,{"$f":"SUM(O261:O262)","v":0}]
[]
[null,null,"Net losses and loss expenses paid or payable related to:"]
[]
[null,null,"               Current year",null,null,null,null,null,null,null,null,null,{"$f":"Import!E314","v":0},null,{"$f":"Import!G314","v":0}]
[null,null,"               Prior years",null,null,null,null,null,null,null,null,null,{"$f":"Import!E315","v":0},null,{"$f":"Import!G315","v":0}]
[]
[null,null,"Total losses and loss expenses paid or payable",null,null,null,null,null,null,null,null,null,{"$f":"SUM(M268:M269)","v":0},null,{"$f":"SUM(O268:O269)","v":0}]
[]
[null,null,"Foreign exchange and other",null,null,null,null,null,null,null,null,null,{"$f":"Import!E317","v":0},null,{"$f":"Import!G317","v":0}]
[]
[null,null,"Net loss and loss expense provisions at end of year",null,null,null,null,null,null,null,null,null,{"$f":"M255+M257+M264+M271+M273","v":0},null,{"$f":"O255+O257+O264+O271+O273","v":0}]
[]
[null,null,"Add: Reinsurance recoverable at end of year",null,null,null,null,null,null,null,null,null,{"$f":"Import!E319","v":0},null,{"$f":"Import!G319","v":0},null,null,"",{"$f":"XBRLMap(M277,$R277,$S$6,$S$8,CONFIGURATION!$B$10,\"BMA\",CONFIGURATION!$B$1,\"bscr\",CONFIGURATION!$B$12)","v":"-"},{"$f":"XBRLMap(O277,$R277,$T$6,$T$8,CONFIGURATION!$B$10,\"BMA\",CONFIGURATION!$B$1,\"bscr\",CONFIGURATION!$B$12)","v":"-"},null,null,null,""]
[null,null,null,null,null,null,null,null,null,null,null,null,null,null,null,null,null,"",{"$f":"XBRLMap(M278,$R278,$S$6,$S$8,CONFIGURATION!$B$10,\"BMA\",CONFIGURATION!$B$1,\"bscr\",CONFIGURATION!$B$12)","v":"-"},{"$f":"XBRLMap(O278,$R278,$T$6,$T$8,CONFIGURATION!$B$10,\"BMA\",CONFIGURATION!$B$1,\"bscr\",CONFIGURATION!$B$12)","v":"-"}]
[null,null,"Gross loss and loss expense provisions at end of year",null,null,null,null,null,null,null,null,null,{"$f":"M275+M277","v":0},null,{"$f":"O275+O277","v":0},null,null,"brrt_GrossLossAndLossExpenseProvisions",{"$f":"XBRLMap(M279,$R279,$S$8,$S$8,CONFIGURATION!$B$10,\"BMA\",CONFIGURATION!$B$1,\"bscr\",CONFIGURATION!$B$12)","v":"Mapped"},{"$f":"XBRLMap(O279,$R279,$T$8,$T$8,CONFIGURATION!$B$10,\"BMA\",CONFIGURATION!$B$1,\"bscr\",CONFIGURATION!$B$12)","v":"Mapped"}]
[null,null,null,null,null,null,null,null,null,null,null,null,null,null,null,null,"",""]
[null,null,null,null,null,null,null,null,null,null,null,null,{"$f":"IF(M282=\"TRUE\",HYPERLINK(\"#'Form 1SFS'!E117:M117\",\"TRUE\"),HYPERLINK(\"#'Form 1SFS'!E117:M117\",\"FALSE\"))","v":"TRUE"},null,{"$f":"IF(O282=\"TRUE\",HYPERLINK(\"#'Form 1SFS'!G117:O117\",\"TRUE\"),HYPERLINK(\"#'Form 1SFS'!G117:O117\",\"FALSE\"))","v":"TRUE"},null,null,""]
[null,null,null,null,null,null,null,null,null,null,null,null,{"$f":"IF('Company Information'!$B$2=\"Unconsolidated BSCR Model\",IF(ROUND((M279-M117),0)=0,\"TRUE\",\"FALSE\"),IF(ROUND((M279-E117),0)=0,\"TRUE\",\"FALSE\"))","v":"TRUE"},null,{"$f":"IF('Company Information'!$B$2=\"Unconsolidated BSCR Model\",IF(ROUND((O279-O117),0)=0,\"TRUE\",\"FALSE\"),IF(ROUND((O279-G117),0)=0,\"TRUE\",\"FALSE\"))","v":"TRUE"}]
[null,null,"Difference",null,null,null,null,null,null,null,null,null,{"$f":"IF('Company Information'!$B$2=\"Unconsolidated BSCR Model\",ROUND(M117-M279,0),ROUND(E117-M279,0))","v":0},null,{"$f":"IF('Company Information'!$B$2=\"Unconsolidated BSCR Model\",ROUND(O117-O279,0),ROUND(G117-O279,0))","v":0}]
[]
[null,null,null,null,null,null,null,null,null,null,null,null,{"$f":"IF(M281=\"False\",\"Does not equal Line 17(a)\",\"\")","v":""},null,{"$f":"IF(O281=\"False\",\"Does not equal Line 17(a)\",\"\")","v":""}]
[]
[null,null,"Long-Term Business"]
[]
[null,"Line 27","Total gross long-term business insurance reserves at beginning of year",null,null,null,null,null,null,null,null,null,null,null,null,null,null,"brrt_GrossLossAndLossExpenseProvisions",{"$f":"XBRLMap(M289,$R289,$S$6,$S$6,CONFIGURATION!$B$10,\"BMA\",CONFIGURATION!$B$1,\"bscr\",CONFIGURATION!$B$12)","v":"Mapped"},{"$f":"XBRLMap(O289,$R289,$T$6,$T$6,CONFIGURATION!$B$10,\"BMA\",CONFIGURATION!$B$1,\"bscr\",CONFIGURATION!$B$12)","v":"Mapped"},null,null,null,""]
[null,null,null,null,null,null,null,null,null,null,null,null,null,null,null,null,null,"",{"$f":"XBRLMap(M290,$R290,$S$6,$S$8,CONFIGURATION!$B$10,\"BMA\",CONFIGURATION!$B$1,\"bscr\",CONFIGURATION!$B$12)","v":"-"},{"$f":"XBRLMap(O290,$R290,$T$6,$T$8,CONFIGURATION!$B$10,\"BMA\",CONFIGURATION!$B$1,\"bscr\",CONFIGURATION!$B$12)","v":"-"},null,null,null,"bma_ForeignExchangeAndOther"]
[null,null,"Less: Reinsurance recoverable on long-term business at beginning of year",null,null,null,null,null,null,null,null,null,null,null,null,null,null,"brrt_ReinsuranceRecoverable",{"$f":"XBRLMap(M291,$R291,$S$6,$S$6,CONFIGURATION!$B$10,\"BMA\",CONFIGURATION!$B$1,\"bscr\",CONFIGURATION!$B$12)","v":"Mapped"},{"$f":"XBRLMap(O291,$R291,$T$6,$T$6,CONFIGURATION!$B$10,\"BMA\",CONFIGURATION!$B$1,\"bscr\",CONFIGURATION!$B$12)","v":"Mapped"},null,null,null,""]
[null,null,null,null,null,null,null,null,null,null,null,null,null,null,null,null,null,"",{"$f":"XBRLMap(M292,$R292,$S$6,$S$8,CONFIGURATION!$B$10,\"BMA\",CONFIGURATION!$B$1,\"bscr\",CONFIGURATION!$B$12)","v":"-"},{"$f":"XBRLMap(O292,$R292,$T$6,$T$8,CONFIGURATION!$B$10,\"BMA\",CONFIGURATION!$B$1,\"bscr\",CONFIGURATION!$B$12)","v":"-"},null,null,null,"bma_NetLossAndLossExpenseProvisionsAtEndOfYear"]
[null,null,"Total net long-term business insurance reserves at beginning of year",null,null,null,null,null,null,null,null,null,{"$f":"M289-M291","v":0},null,{"$f":"O289-O291","v":0},null,null,"brrt_NetLossAndLossExpenseProvisions",{"$f":"XBRLMap(M293,$R293,$S$6,$S$6,CONFIGURATION!$B$10,\"BMA\",CONFIGURATION!$B$1,\"bscr\",CONFIGURATION!$B$12)","v":"Mapped"},{"$f":"XBRLMap(O293,$R293,$T$6,$T$6,CONFIGURATION!$B$10,\"BMA\",CONFIGURATION!$B$1,\"bscr\",CONFIGURATION!$B$12)","v":"Mapped"},null,null,null,""]
[null,null,null,null,null,null,null,null,null,null,null,null,null,null,null,null,null,"",{"$f":"XBRLMap(M294,$R294,$S$6,$S$8,CONFIGURATION!$B$10,\"BMA\",CONFIGURATION!$B$1,\"bscr\",CONFIGURATION!$B$12)","v":"-"},{"$f":"XBRLMap(O294,$R294,$T$6,$T$8,CONFIGURATION!$B$10,\"BMA\",CONFIGURATION!$B$1,\"bscr\",CONFIGURATION!$B$12)","v":"-"},null,null,null,"bma_AddReinsuranceRecoverableAtEndOfYear"]
[null,null,"Long-term business deductions related to:"]
[]
[null,null,"               Current year"]
[null,null,"               Prior years"]
[]
[null,null,"Total long-term business deductions",null,null,null,null,null,null,null,null,null,{"$f":"SUM(M297:M298)","v":0},null,{"$f":"SUM(O297:O298)","v":0}]
[]
[null,null,"Less: Long-term business deductions paid or payable related to:"]
[]
[null,null,"               Current year"]
[null,null,"               Prior years"]
[]
[null,null,"Total long-term business deductions paid or payable",null,null,null,null,null,null,null,null,null,{"$f":"SUM(M304:M305)","v":0},null,{"$f":"SUM(O304:O305)","v":0}]
[]
[null,null,"Total net long-term business insurance reserves at end of year",null,null,null,null,null,null,null,null,null,{"$f":"M293+M300+M307","v":0},null,{"$f":"O293+O300+O307","v":0}]
[]
[null,null,"Add: Reinsurance recoverable on long-term business at end of year",null,null,null,null,null,null,null,null,null,null,null,null,null,null,"",{"$f":"XBRLMap(M311,$R311,$S$6,$S$8,CONFIGURATION!$B$10,\"BMA\",CONFIGURATION!$B$1,\"bscr\",CONFIGURATION!$B$12)","v":"-"},{"$f":"XBRLMap(O311,$R311,$T$6,$T$8,CONFIGURATION!$B$10,\"BMA\",CONFIGURATION!$B$1,\"bscr\",CONFIGURATION!$B$12)","v":"-"},null,null,null,""]
[null,null,null,null,null,null,null,null,null,null,null,null,null,null,null,null,null,"",{"$f":"XBRLMap(M312,$R312,$S$6,$S$8,CONFIGURATION!$B$10,\"BMA\",CONFIGURATION!$B$1,\"bscr\",CONFIGURATION!$B$12)","v":"-"},{"$f":"XBRLMap(O312,$R312,$T$6,$T$8,CONFIGURATION!$B$10,\"BMA\",CONFIGURATION!$B$1,\"bscr\",CONFIGURATION!$B$12)","v":"-"}]
[null,null,"Total gross long-term business insurance reserves at end of year",null,null,null,null,null,null,null,null,null,{"$f":"M309+M311","v":0},null,{"$f":"O309+O311","v":0},null,null,"brrt_GrossLossAndLossExpenseProvisions",{"$f":"XBRLMap(M313,$R313,$S$8,$S$8,CONFIGURATION!$B$10,\"BMA\",CONFIGURATION!$B$1,\"bscr\",CONFIGURATION!$B$12)","v":"Mapped"},{"$f":"XBRLMap(O313,$R313,$T$8,$T$8,CONFIGURATION!$B$10,\"BMA\",CONFIGURATION!$B$1,\"bscr\",CONFIGURATION!$B$12)","v":"Mapped"}]
[null,null,null,null,null,null,null,null,null,null,null,null,null,null,null,null,"",""]
[null,null,null,null,null,null,null,null,null,null,null,null,{"$f":"IF((M313-I147)=0,TRUE,FALSE)","v":true},null,{"$f":"IF((O313-I147)=0,TRUE,FALSE)","v":true},null,null,""]
[]
[null,null,"Difference",null,null,null,null,null,null,null,null,null,{"$f":"I147-M313","v":0},null,{"$f":"I147-O313","v":0}]
[]
[null,"Line 27",null,null,"Insurance Contracts",null,null,null,null,null,"Investment Contracts"]
[null,null,"CURRENT YEAR",null,"Gross",null,"Reinsurance",null,"Net",null,"Gross",null,"Reinsurance",null,"Net"]
[null,null,"Balance - Beginning of Year",null,{"$f":"Import!E321","v":0},null,{"$f":"Import!E328","v":0},null,{"$f":"E321-G321","v":0},null,{"$f":"Import!E342","v":0},null,{"$f":"Import!E349","v":0},null,{"$f":"K321-M321","v":0}]
[null,null,"Impact of Terminations",null,{"$f":"Import!E322","v":0},null,{"$f":"Import!E329","v":0},null,0,null,{"$f":"Import!E343","v":0},null,{"$f":"Import!E350","v":0},null,0]
[null,null,"Impact of New Business",null,{"$f":"Import!E323","v":0},null,{"$f":"Import!E330","v":0},null,0,null,{"$f":"Import!E344","v":0},null,{"$f":"Import!E351","v":0},null,0]
[null,null,"Normal Change in force",null,{"$f":"Import!E324","v":0},null,{"$f":"Import!E331","v":0},null,0,null,{"$f":"Import!E345","v":0},null,{"$f":"Import!E352","v":0},null,0]
[null,null,"Management Actions and Changes in Assumptions",null,{"$f":"Import!E325","v":0},null,{"$f":"Import!E332","v":0},null,0,null,{"$f":"Import!E346","v":0},null,{"$f":"Import!E353","v":0},null,0]
[null,null,"Impact of Foreign Exchange rate changes",null,{"$f":"Import!E326","v":0},null,{"$f":"Import!E333","v":0},null,0,null,{"$f":"Import!E347","v":0},null,{"$f":"Import!E354","v":0},null,0]
[null,null,"Balance - End of Year",null,{"$f":"SUM(E321:E326)","v":0},null,{"$f":"SUM(G321:G326)","v":0},null,{"$f":"SUM(I321:I326)","v":0},null,{"$f":"SUM(K321:K326)","v":0},null,{"$f":"SUM(M321:M326)","v":0},null,{"$f":"SUM(O321:O326)","v":0}]
[]
[null,null,"PRIOR YEAR"]
[null,null,"Balance - Beginning of Year",null,{"$f":"Import!G321","v":0},null,{"$f":"Import!G328","v":0},null,{"$f":"E330-G330","v":0},null,{"$f":"Import!G342","v":0},null,{"$f":"Import!G349","v":0},null,{"$f":"K330-M330","v":0}]
[null,null,"Impact of Terminations",null,{"$f":"Import!G322","v":0},null,{"$f":"Import!G329","v":0},null,0,null,{"$f":"Import!G343","v":0},null,{"$f":"Import!G350","v":0},null,0]
[null,null,"Impact of New Business",null,{"$f":"Import!G323","v":0},null,{"$f":"Import!G330","v":0},null,0,null,{"$f":"Import!G344","v":0},null,{"$f":"Import!G351","v":0},null,0]
[null,null,"Normal Change in force",null,{"$f":"Import!G324","v":0},null,{"$f":"Import!G331","v":0},null,0,null,{"$f":"Import!G345","v":0},null,{"$f":"Import!G352","v":0},null,0]
[null,null,"Management Actions and Changes in Assumptions",null,{"$f":"Import!G325","v":0},null,{"$f":"Import!G332","v":0},null,0,null,{"$f":"Import!G346","v":0},null,{"$f":"Import!G353","v":0},null,0]
[null,null,"Impact of Foreign Exchange rate changes",null,{"$f":"Import!G326","v":0},null,{"$f":"Import!G333","v":0},null,0,null,{"$f":"Import!G347","v":0},null,{"$f":"Import!G354","v":0},null,0]
[null,null,"Balance - End of Year",null,{"$f":"SUM(E330:E335)","v":0},null,{"$f":"SUM(G330:G335)","v":0},null,{"$f":"SUM(I330:I335)","v":0},null,{"$f":"SUM(K330:K335)","v":0},null,{"$f":"SUM(M330:M335)","v":0},null,{"$f":"SUM(O330:O335)","v":0}]

{"sheet":"Form 2SFS","index":17,"n_rows":118,"n_cols":28,"rows_kept":118,"cut":false,"hidden":false,"merged":[[1,4,3,10],[5,4,5,6],[5,12,5,14],[5,8,5,10],[4,4,4,6],[4,8,4,10],[4,12,4,14]]}
[null,"STATUTORY STATEMENT OF INCOME",null,null,null,null,null,null,null,null,null,null,null,null,{"$f":"HYPERLINK(\"#'Index'!A1\",\"Return to Index\")","v":"Return to Index"}]
[null,{"$f":"'Company Information'!C7","v":"Enter Company Name"},null,null,"Note if an insurer does not have any entities to consolidate, select \"No Subsidiaries\" on the Company Information tab (This cell is editable for deletion)"]
[null,"For the year ending",{"$f":"'Company Information'!C3","v":"2019-12-31"},null,null,null,null,null,null,null,null,null,null,null,"FORM 2SFS"]
[null,{"$f":"\"expressed in\"& IF(CONFIGURATION!$B$12>1,\" ['\"&MID(CONFIGURATION!$B$12,2,LEN(CONFIGURATION!$B$12))&\"s]\",\"\")","v":"expressed in ['000s]"},{"$f":"'Form 1EBS'!$C$4","v":"United States Dollars"}]
[null,null,null,null,"General Business",null,null,null,"Long-Term Business",null,null,null,"General and Long-Term Business",null,null,null,null,null,{"$f":"IF(M7=\"\",\"\",TEXT(DATE(YEAR(M7+1)-1,MONTH(M7+1),DAY(M7+1)),\"mm/dd/yyyy\"))","v":"01/01/2019"},{"$f":"IF(O7=\"\",\"\",TEXT(DATE(YEAR(O7+1)-1,MONTH(O7+1),DAY(O7+1)),\"mm/dd/yyyy\"))","v":"01/01/2018"}]
[null,"STMT.",null,null,"Unconsolidated",null,null,null,"Unconsolidated",null,null,null,"Consolidated",null,null,null,null,null,{"$f":"IF(M7=\"\",\"\",TEXT(M7,\"mm/dd/yyyy\"))","v":"12/31/2019"},{"$f":"IF(O7=\"\",\"\",TEXT(O7,\"mm/dd/yyyy\"))","v":"12/31/2018"}]
[null,"LINE No.",null,null,{"$f":"'Form 1EBS'!F7","v":"2019-12-31"},null,{"$f":"'Form 1EBS'!H7","v":"2018-12-31"},null,{"$f":"'Form 1EBS'!F7","v":"2019-12-31"},null,{"$f":"'Form 1EBS'!H7","v":"2018-12-31"},null,{"$f":"'Form 1EBS'!F7","v":"2019-12-31"},null,{"$f":"'Form 1EBS'!H7","v":"2018-12-31"},null,null,""]
[null,null,null,null,{"$f":"CONFIGURATION!$D$12","v":" ('000s)"},null,{"$f":"CONFIGURATION!$D$12","v":" ('000s)"},null,{"$f":"CONFIGURATION!$D$12","v":" ('000s)"},null,{"$f":"CONFIGURATION!$D$12","v":" ('000s)"},null,{"$f":"CONFIGURATION!$D$12","v":" ('000s)"},null,{"$f":"CONFIGURATION!$D$12","v":" ('000s)"},null,null,""]
[null,null,"GENERAL BUSINESS UNDERWRITING INCOME",null,null,null,null,null,null,null,null,null,null,null,null,null,null,null,{"$f":"XBRLMap(M9,$R9,$S$5,$S$6,CONFIGURATION!$B$10,\"BMA\",CONFIGURATION!$B$1,\"bscr\",CONFIGURATION!$B$12)","v":"-"},{"$f":"XBRLMap(O9,$R9,$T$5,$T$6,CONFIGURATION!$B$10,\"BMA\",CONFIGURATION!$B$1,\"bscr\",CONFIGURATION!$B$12)","v":"-"}]
[null,null,null,null,null,null,null,null,null,null,null,null,null,null,null,null,null,"",{"$f":"XBRLMap(M10,$R10,$S$5,$S$6,CONFIGURATION!$B$10,\"BMA\",CONFIGURATION!$B$1,\"bscr\",CONFIGURATION!$B$12)","v":"-"},{"$f":"XBRLMap(O10,$R10,$T$5,$T$6,CONFIGURATION!$B$10,\"BMA\",CONFIGURATION!$B$1,\"bscr\",CONFIGURATION!$B$12)","v":"-"}]
[null,"1.","GROSS PREMIUMS WRITTEN:",null,null,null,null,null,null,null,null,null,null,null,null,null,null,null,{"$f":"XBRLMap(M11,$R11,$S$5,$S$6,CONFIGURATION!$B$10,\"BMA\",CONFIGURATION!$B$1,\"bscr\",CONFIGURATION!$B$12)","v":"-"},{"$f":"XBRLMap(O11,$R11,$T$5,$T$6,CONFIGURATION!$B$10,\"BMA\",CONFIGURATION!$B$1,\"bscr\",CONFIGURATION!$B$12)","v":"-"}]
[null,null,"(a) Direct gross premiums written",null,{"$f":"+Import!E386","v":0},null,{"$f":"+Import!G386","v":0},null,null,null,null,null,{"$f":"+Import!I386","v":0},null,{"$f":"+Import!K386","v":0},null,null,"brrt_GrossPremiumsWrittenDirect",{"$f":"XBRLMap(M12,$R12,$S$5,$S$6,CONFIGURATION!$B$10,\"BMA\",CONFIGURATION!$B$1,\"bscr\",CONFIGURATION!$B$12)","v":"Mapped"},{"$f":"XBRLMap(O12,$R12,$T$5,$T$6,CONFIGURATION!$B$10,\"BMA\",CONFIGURATION!$B$1,\"bscr\",CONFIGURATION!$B$12)","v":"Mapped"},null,null,null,null,null,null,null,"bma_DirectGrossPremiumsWritten"]
[null,null,"(b) Assumed gross premiums written",null,{"$f":"+Import!E387","v":0},null,{"$f":"+Import!G387","v":0},null,null,null,null,null,{"$f":"+Import!I387","v":0},null,{"$f":"+Import!K387","v":0},null,null,"brrt_GrossPremiumsWrittenAssumed",{"$f":"XBRLMap(M13,$R13,$S$5,$S$6,CONFIGURATION!$B$10,\"BMA\",CONFIGURATION!$B$1,\"bscr\",CONFIGURATION!$B$12)","v":"Mapped"},{"$f":"XBRLMap(O13,$R13,$T$5,$T$6,CONFIGURATION!$B$10,\"BMA\",CONFIGURATION!$B$1,\"bscr\",CONFIGURATION!$B$12)","v":"Mapped"},null,null,null,null,null,null,null,"bma_AssumedGrossPremiumsWritten"]
[null,null,"(c) Total gross premiums written",null,{"$f":"SUM(E12:E13)","v":0},null,{"$f":"SUM(G12:G13)","v":0},null,null,null,null,null,{"$f":"SUM(M12:M13)","v":0},null,{"$f":"SUM(O12:O13)","v":0},null,null,"brrt_GrossPremiumsWritten",{"$f":"XBRLMap(M14,$R14,$S$5,$S$6,CONFIGURATION!$B$10,\"BMA\",CONFIGURATION!$B$1,\"bscr\",CONFIGURATION!$B$12)","v":"Mapped"},{"$f":"XBRLMap(O14,$R14,$T$5,$T$6,CONFIGURATION!$B$10,\"BMA\",CONFIGURATION!$B$1,\"bscr\",CONFIGURATION!$B$12)","v":"Mapped"},null,null,null,null,null,null,null,"bma_TotalGrossPremiumsWritten"]
[null,null,null,null,null,null,null,null,null,null,null,null,null,null,null,null,null,"",null,null,null,null,null,null,null,null,null,""]
[null,"2.","REINSURANCE PREMIUMS CEDED",null,{"$f":"+Import!E388","v":0},null,{"$f":"+Import!G388","v":0},null,null,null,null,null,{"$f":"+Import!I388","v":0},null,{"$f":"+Import!K388","v":0},null,null,"brrt_ReinsurancePremiumsCeded",{"$f":"XBRLMap(M16,$R16,$S$5,$S$6,CONFIGURATION!$B$10,\"BMA\",CONFIGURATION!$B$1,\"bscr\",CONFIGURATION!$B$12)","v":"Mapped"},{"$f":"XBRLMap(O16,$R16,$T$5,$T$6,CONFIGURATION!$B$10,\"BMA\",CONFIGURATION!$B$1,\"bscr\",CONFIGURATION!$B$12)","v":"Mapped"},null,null,null,null,null,null,null,"bma_ReinsurancePremiumsCeded"]
[null,null,null,null,null,null,null,null,null,null,null,null,null,null,null,null,null,"",{"$f":"XBRLMap(M17,$R17,$S$5,$S$6,CONFIGURATION!$B$10,\"BMA\",CONFIGURATION!$B$1,\"bscr\",CONFIGURATION!$B$12)","v":"-"},{"$f":"XBRLMap(O17,$R17,$T$5,$T$6,CONFIGURATION!$B$10,\"BMA\",CONFIGURATION!$B$1,\"bscr\",CONFIGURATION!$B$12)","v":"-"},null,null,null,null,null,null,null,""]
[null,"3.","NET PREMIUMS WRITTEN",null,{"$f":"E14-E16","v":0},null,{"$f":"G14-G16","v":0},null,null,null,null,null,{"$f":"M14-M16","v":0},null,{"$f":"O14-O16","v":0},null,null,"brrt_NetPremiumsWritten",{"$f":"XBRLMap(M18,$R18,$S$5,$S$6,CONFIGURATION!$B$10,\"BMA\",CONFIGURATION!$B$1,\"bscr\",CONFIGURATION!$B$12)","v":"Mapped"},{"$f":"XBRLMap(O18,$R18,$T$5,$T$6,CONFIGURATION!$B$10,\"BMA\",CONFIGURATION!$B$1,\"bscr\",CONFIGURATION!$B$12)","v":"Mapped"},null,null,null,null,null,null,null,"bma_NetPremiumsWritten"]
[null,null,null,null,null,null,null,null,null,null,null,null,null,null,null,null,null,"",{"$f":"XBRLMap(M19,$R19,$S$5,$S$6,CONFIGURATION!$B$10,\"BMA\",CONFIGURATION!$B$1,\"bscr\",CONFIGURATION!$B$12)","v":"-"},{"$f":"XBRLMap(O19,$R19,$T$5,$T$6,CONFIGURATION!$B$10,\"BMA\",CONFIGURATION!$B$1,\"bscr\",CONFIGURATION!$B$12)","v":"-"},null,null,null,null,null,null,null,""]
[null,"4.","INCREASE (DECREASE) IN UNEARNED PREMIUMS",null,{"$f":"+Import!E389","v":0},null,{"$f":"+Import!G389","v":0},null,null,null,null,null,{"$f":"+Import!I389","v":0},null,{"$f":"+Import!K389","v":0},null,null,"brrt_IncreaseDecreaseInUnearnedPremiums",{"$f":"XBRLMap(M20,$R20,$S$5,$S$6,CONFIGURATION!$B$10,\"BMA\",CONFIGURATION!$B$1,\"bscr\",CONFIGURATION!$B$12)","v":"Mapped"},{"$f":"XBRLMap(O20,$R20,$T$5,$T$6,CONFIGURATION!$B$10,\"BMA\",CONFIGURATION!$B$1,\"bscr\",CONFIGURATION!$B$12)","v":"Mapped"},null,null,null,null,null,null,null,"bma_IncreaseDecreaseInUnearnedPremiums"]
[null,null,null,null,null,null,null,null,null,null,null,null,null,null,null,null,null,"",{"$f":"XBRLMap(M21,$R21,$S$5,$S$6,CONFIGURATION!$B$10,\"BMA\",CONFIGURATION!$B$1,\"bscr\",CONFIGURATION!$B$12)","v":"-"},{"$f":"XBRLMap(O21,$R21,$T$5,$T$6,CONFIGURATION!$B$10,\"BMA\",CONFIGURATION!$B$1,\"bscr\",CONFIGURATION!$B$12)","v":"-"},null,null,null,null,null,null,null,""]
[null,"5.","NET PREMIUMS EARNED",null,{"$f":"E18+E20","v":0},null,{"$f":"G18+G20","v":0},null,null,null,null,null,{"$f":"M18+M20","v":0},null,{"$f":"O18+O20","v":0},null,null,"brrt_NetPremiumsEarned",{"$f":"XBRLMap(M22,$R22,$S$5,$S$6,CONFIGURATION!$B$10,\"BMA\",CONFIGURATION!$B$1,\"bscr\",CONFIGURATION!$B$12)","v":"Mapped"},{"$f":"XBRLMap(O22,$R22,$T$5,$T$6,CONFIGURATION!$B$10,\"BMA\",CONFIGURATION!$B$1,\"bscr\",CONFIGURATION!$B$12)","v":"Mapped"},null,null,null,null,null,null,null,"bma_NetPremiumsEarned"]
[null,null,null,null,null,null,null,null,null,null,null,null,null,null,null,null,null,"",{"$f":"XBRLMap(M23,$R23,$S$5,$S$6,CONFIGURATION!$B$10,\"BMA\",CONFIGURATION!$B$1,\"bscr\",CONFIGURATION!$B$12)","v":"-"},{"$f":"XBRLMap(O23,$R23,$T$5,$T$6,CONFIGURATION!$B$10,\"BMA\",CONFIGURATION!$B$1,\"bscr\",CONFIGURATION!$B$12)","v":"-"},null,null,null,null,null,null,null,""]
[null,"6.","OTHER INSURANCE INCOME",null,{"$f":"+Import!E390","v":0},null,{"$f":"+Import!G390","v":0},null,null,null,null,null,{"$f":"+Import!I390","v":0},null,{"$f":"+Import!K390","v":0},null,null,"brrt_OtherInsuranceIncome",{"$f":"XBRLMap(M24,$R24,$S$5,$S$6,CONFIGURATION!$B$10,\"BMA\",CONFIGURATION!$B$1,\"bscr\",CONFIGURATION!$B$12)","v":"Mapped"},{"$f":"XBRLMap(O24,$R24,$T$5,$T$6,CONFIGURATION!$B$10,\"BMA\",CONFIGURATION!$B$1,\"bscr\",CONFIGURATION!$B$12)","v":"Mapped"},null,null,null,null,null,null,null,"bma_OtherInsuranceIncome"]
[null,null,null,null,null,null,null,null,null,null,null,null,null,null,null,null,null,"",{"$f":"XBRLMap(M25,$R25,$S$5,$S$6,CONFIGURATION!$B$10,\"BMA\",CONFIGURATION!$B$1,\"bscr\",CONFIGURATION!$B$12)","v":"-"},{"$f":"XBRLMap(O25,$R25,$T$5,$T$6,CONFIGURATION!$B$10,\"BMA\",CONFIGURATION!$B$1,\"bscr\",CONFIGURATION!$B$12)","v":"-"},null,null,null,null,null,null,null,""]
[null,"7.",null,null,{"$f":"E22+E24","v":0},null,{"$f":"G22+G24","v":0},null,null,null,null,null,{"$f":"M22+M24","v":0},null,{"$f":"O22+O24","v":0},null,null,"brrt_UnderwritingIncome",{"$f":"XBRLMap(M26,$R26,$S$5,$S$6,CONFIGURATION!$B$10,\"BMA\",CONFIGURATION!$B$1,\"bscr\",CONFIGURATION!$B$12)","v":"Mapped"},{"$f":"XBRLMap(O26,$R26,$T$5,$T$6,CONFIGURATION!$B$10,\"BMA\",CONFIGURATION!$B$1,\"bscr\",CONFIGURATION!$B$12)","v":"Mapped"},null,null,null,null,null,null,null,"bma_UnderwritingIncomeTotal"]
[null,null,null,null,null,null,null,null,null,null,null,null,null,null,null,null,null,"",{"$f":"XBRLMap(M27,$R27,$S$5,$S$6,CONFIGURATION!$B$10,\"BMA\",CONFIGURATION!$B$1,\"bscr\",CONFIGURATION!$B$12)","v":"-"},{"$f":"XBRLMap(O27,$R27,$T$5,$T$6,CONFIGURATION!$B$10,\"BMA\",CONFIGURATION!$B$1,\"bscr\",CONFIGURATION!$B$12)","v":"-"},null,null,null,null,null,null,null,""]
[null,null,"GENERAL BUSINESS UNDERWRITING EXPENSES",null,null,null,null,null,null,null,null,null,null,null,null,null,null,"",{"$f":"XBRLMap(M28,$R28,$S$5,$S$6,CONFIGURATION!$B$10,\"BMA\",CONFIGURATION!$B$1,\"bscr\",CONFIGURATION!$B$12)","v":"-"},{"$f":"XBRLMap(O28,$R28,$T$5,$T$6,CONFIGURATION!$B$10,\"BMA\",CONFIGURATION!$B$1,\"bscr\",CONFIGURATION!$B$12)","v":"-"}]
[null,null,null,null,null,null,null,null,null,null,null,null,null,null,null,null,null,"",{"$f":"XBRLMap(M29,$R29,$S$5,$S$6,CONFIGURATION!$B$10,\"BMA\",CONFIGURATION!$B$1,\"bscr\",CONFIGURATION!$B$12)","v":"-"},{"$f":"XBRLMap(O29,$R29,$T$5,$T$6,CONFIGURATION!$B$10,\"BMA\",CONFIGURATION!$B$1,\"bscr\",CONFIGURATION!$B$12)","v":"-"},null,null,null,null,null,null,null,""]
[null,"8.","NET LOSSES INCURRED AND NET LOSS EXPENSES INCURRED",null,{"$f":"+Import!E391","v":0},null,{"$f":"+Import!G391","v":0},null,null,null,null,null,{"$f":"+Import!I391","v":0},null,{"$f":"+Import!K391","v":0},null,null,"brrt_NetLossesAndNetLossExpensesIncurred",{"$f":"XBRLMap(M30,$R30,$S$5,$S$6,CONFIGURATION!$B$10,\"BMA\",CONFIGURATION!$B$1,\"bscr\",CONFIGURATION!$B$12)","v":"Mapped"},{"$f":"XBRLMap(O30,$R30,$T$5,$T$6,CONFIGURATION!$B$10,\"BMA\",CONFIGURATION!$B$1,\"bscr\",CONFIGURATION!$B$12)","v":"Mapped"},null,null,null,null,null,null,null,"bma_NetLossesIncurredAndNetLossExpensesIncurred"]
[null,null,null,null,null,null,null,null,null,null,null,null,null,null,null,null,null,"",{"$f":"XBRLMap(M31,$R31,$S$5,$S$6,CONFIGURATION!$B$10,\"BMA\",CONFIGURATION!$B$1,\"bscr\",CONFIGURATION!$B$12)","v":"-"},{"$f":"XBRLMap(O31,$R31,$T$5,$T$6,CONFIGURATION!$B$10,\"BMA\",CONFIGURATION!$B$1,\"bscr\",CONFIGURATION!$B$12)","v":"-"},null,null,null,null,null,null,null,""]
[null,"9.","COMMISSIONS AND BROKERAGE",null,{"$f":"+Import!E392","v":0},null,{"$f":"+Import!G392","v":0},null,null,null,null,null,{"$f":"+Import!I392","v":0},null,{"$f":"+Import!K392","v":0},null,null,"brrt_CommissionsAndBrokerage",{"$f":"XBRLMap(M32,$R32,$S$5,$S$6,CONFIGURATION!$B$10,\"BMA\",CONFIGURATION!$B$1,\"bscr\",CONFIGURATION!$B$12)","v":"Mapped"},{"$f":"XBRLMap(O32,$R32,$T$5,$T$6,CONFIGURATION!$B$10,\"BMA\",CONFIGURATION!$B$1,\"bscr\",CONFIGURATION!$B$12)","v":"Mapped"},null,null,null,null,null,null,null,"bma_CommissionsAndBrokerage"]
[null,null,null,null,null,null,null,null,null,null,null,null,null,null,null,null,null,"",{"$f":"XBRLMap(M33,$R33,$S$5,$S$6,CONFIGURATION!$B$10,\"BMA\",CONFIGURATION!$B$1,\"bscr\",CONFIGURATION!$B$12)","v":"-"},{"$f":"XBRLMap(O33,$R33,$T$5,$T$6,CONFIGURATION!$B$10,\"BMA\",CONFIGURATION!$B$1,\"bscr\",CONFIGURATION!$B$12)","v":"-"},null,null,null,null,null,null,null,""]
[null,"10.",null,null,{"$f":"E30+E32","v":0},null,{"$f":"G30+G32","v":0},null,null,null,null,null,{"$f":"M30+M32","v":0},null,{"$f":"O30+O32","v":0}]
[]
[null,"11.","NET UNDERWRITING PROFIT (LOSS) - GENERAL BUSINESS",null,{"$f":"E26-E34","v":0},null,{"$f":"G26-G34","v":0},null,null,null,null,null,{"$f":"M26-M34","v":0},null,{"$f":"O26-O34","v":0}]
[]
[null,null,"LONG-TERM BUSINESS UNDERWRITING INCOME"]
[]
[null,"12.","GROSS PREMIUMS AND OTHER CONSIDERATIONS:"]
[null,null,"(a) Direct gross premiums and other considerations",null,null,null,null,null,{"$f":"+Import!E421","v":0},null,{"$f":"+Import!G421","v":0},null,{"$f":"+Import!I393","v":0},null,{"$f":"+Import!K393","v":0}]
[null,null,"(b) Assumed gross premiums and other considerations",null,null,null,null,null,{"$f":"+Import!E422","v":0},null,{"$f":"+Import!G422","v":0},null,{"$f":"+Import!I394","v":0},null,{"$f":"+Import!K394","v":0}]
[null,null,"(c) Total gross premiums and other considerations",null,null,null,null,null,{"$f":"SUM(I41:I42)","v":0},null,{"$f":"SUM(K41:K42)","v":0},null,{"$f":"SUM(M41:M42)","v":0},null,{"$f":"SUM(O41:O42)","v":0}]
[]
[null,"13.","PREMIUMS CEDED",null,null,null,null,null,{"$f":"+Import!E423","v":0},null,{"$f":"+Import!G423","v":0},null,{"$f":"+Import!I395","v":0},null,{"$f":"+Import!K395","v":0}]
[]
[null,"14.","NET PREMIUMS AND OTHER CONSIDERATIONS:"]
[null,null,"(a) Life",null,null,null,null,null,{"$f":"+Import!E424","v":0},null,{"$f":"+Import!G424","v":0},null,{"$f":"+Import!I396","v":0},null,{"$f":"+Import!K396","v":0}]
[null,null,"(b) Annuities",null,null,null,null,null,{"$f":"+Import!E425","v":0},null,{"$f":"+Import!G425","v":0},null,{"$f":"+Import!I397","v":0},null,{"$f":"+Import!K397","v":0}]
[null,null,"(c) Accident and health",null,null,null,null,null,{"$f":"+Import!E426","v":0},null,{"$f":"+Import!G426","v":0},null,{"$f":"+Import!I398","v":0},null,{"$f":"+Import!K398","v":0}]
[null,null,"(d) Total net premiums and other considerations",null,null,null,null,null,{"$f":"SUM(I48:I50)","v":0},null,{"$f":"SUM(K48:K50)","v":0},null,{"$f":"SUM(M48:M50)","v":0},null,{"$f":"SUM(O48:O50)","v":0}]
[]
[null,"15.","OTHER INSURANCE INCOME",null,null,null,null,null,{"$f":"+Import!E427","v":0},null,{"$f":"+Import!G427","v":0},null,{"$f":"+Import!I399","v":0},null,{"$f":"+Import!K399","v":0}]
[]
[null,"16.",null,null,null,null,null,null,{"$f":"I51+I53","v":0},null,{"$f":"K51+K53","v":0},null,{"$f":"M51+M53","v":0},null,{"$f":"O51+O53","v":0}]
[]
[null,null,"LONG-TERM BUSINESS DEDUCTIONS AND EXPENSES"]
[]
[null,"17.","CLAIMS - LIFE",null,null,null,null,null,{"$f":"+Import!E428","v":0},null,{"$f":"+Import!G428","v":0},null,{"$f":"+Import!I400","v":0},null,{"$f":"+Import!K400","v":0}]
[]
[null,"18.","POLICYHOLDERS' DIVIDENDS",null,null,null,null,null,{"$f":"+Import!E429","v":0},null,{"$f":"+Import!G429","v":0},null,{"$f":"+Import!I401","v":0},null,{"$f":"+Import!K401","v":0}]
[]
[null,"19.","SURRENDERS",null,null,null,null,null,{"$f":"+Import!E430","v":0},null,{"$f":"+Import!G430","v":0},null,{"$f":"+Import!I402","v":0},null,{"$f":"+Import!K402","v":0}]
[]
[null,"20.","MATURITIES",null,null,null,null,null,{"$f":"+Import!E431","v":0},null,{"$f":"+Import!G431","v":0},null,{"$f":"+Import!I403","v":0},null,{"$f":"+Import!K403","v":0}]
[]
[null,"21.","ANNUITIES",null,null,null,null,null,{"$f":"+Import!E432","v":0},null,{"$f":"+Import!G432","v":0},null,{"$f":"+Import!I404","v":0},null,{"$f":"+Import!K404","v":0}]
[]
[null,"22.","ACCIDENT AND HEALTH BENEFITS",null,null,null,null,null,{"$f":"+Import!E433","v":0},null,{"$f":"+Import!G433","v":0},null,{"$f":"+Import!I405","v":0},null,{"$f":"+Import!K405","v":0}]
[]
[null,"23.","COMMISSIONS",null,null,null,null,null,{"$f":"+Import!E434","v":0},null,{"$f":"+Import!G434","v":0},null,{"$f":"+Import!I406","v":0},null,{"$f":"+Import!K406","v":0}]
[]
[null,"24.","OTHER",null,null,null,null,null,{"$f":"+Import!E435","v":0},null,{"$f":"+Import!G435","v":0},null,{"$f":"+Import!I407","v":0},null,{"$f":"+Import!K407","v":0}]
[]
[null,"25.",null,null,null,null,null,null,{"$f":"I59+I61+I63+I65+I67+I69+I71+I73","v":0},null,{"$f":"K59+K61+K63+K65+K67+K69+K71+K73","v":0},null,{"$f":"M59+M61+M63+M65+M67+M69+M71+M73","v":0},null,{"$f":"O59+O61+O63+O65+O67+O69+O71+O73","v":0}]
[]
[null,"26.","INCREASE (DECREASE) IN POLICY RESERVES:"]
[null,null,"(a) Life",null,null,null,null,null,{"$f":"+Import!E436","v":0},null,{"$f":"+Import!G436","v":0},null,{"$f":"+Import!I408","v":0},null,{"$f":"+Import!K408","v":0}]
[null,null,"(b) Annuities",null,null,null,null,null,{"$f":"+Import!E437","v":0},null,{"$f":"+Import!G437","v":0},null,{"$f":"+Import!I409","v":0},null,{"$f":"+Import!K409","v":0}]
[null,null,"(c) Accident and health",null,null,null,null,null,{"$f":"+Import!E438","v":0},null,{"$f":"+Import!G438","v":0},null,{"$f":"+Import!I410","v":0},null,{"$f":"+Import!K410","v":0}]
[null,null,"(d) Total increase (decrease) in policy reserves",null,null,null,null,null,{"$f":"SUM(I78:I80)","v":0},null,{"$f":"SUM(K78:K80)","v":0},null,{"$f":"SUM(M78:M80)","v":0},null,{"$f":"SUM(O78:O80)","v":0}]
[]
[null,"27.",null,null,null,null,null,null,{"$f":"I75+I81","v":0},null,{"$f":"K75+K81","v":0},null,{"$f":"M75+M81","v":0},null,{"$f":"O75+O81","v":0}]
[]
[null,"28.","NET UNDERWRITING PROFIT (LOSS) - LONG-TERM BUSINESS",null,null,null,null,null,{"$f":"I55-I83","v":0},null,{"$f":"K55-K83","v":0},null,{"$f":"M55-M83","v":0},null,{"$f":"O55-O83","v":0}]
[]
[null,"29.","COMBINED NET UNDERWRITING PROFIT (LOSS) BEFORE "]
[null,null,"THE UNDERNOTED ITEMS",null,{"$f":"E36+E85","v":0},null,{"$f":"G36+G85","v":0},null,{"$f":"I36+I85","v":0},null,{"$f":"K36+K85","v":0},null,{"$f":"M36+M85","v":0},null,{"$f":"O36+O85","v":0}]
[]
[null,null,"UNDERNOTED ITEMS"]
[]
[null,"30.","COMBINED OPERATING EXPENSES:"]
[null,null,"(a) General and administrative ",null,{"$f":"Import!E411","v":0},null,{"$f":"Import!G411","v":0},null,{"$f":"+Import!E439","v":0},null,{"$f":"+Import!G439","v":0},null,{"$f":"+Import!I411","v":0},null,{"$f":"+Import!K411","v":0}]
[null,null,"(b) Personnel Costs  ",null,{"$f":"Import!E412","v":0},null,{"$f":"Import!G412","v":0},null,{"$f":"+Import!E440","v":0},null,{"$f":"+Import!G440","v":0},null,{"$f":"+Import!I412","v":0},null,{"$f":"+Import!K412","v":0}]
[null,null,"(c) Other  ",null,{"$f":"Import!E413","v":0},null,{"$f":"Import!G413","v":0},null,{"$f":"+Import!E441","v":0},null,{"$f":"+Import!G441","v":0},null,{"$f":"+Import!I413","v":0},null,{"$f":"+Import!K413","v":0}]
[null,null,"(d) Total combined operating expenses  ",null,{"$f":"SUM(E93:E95)","v":0},null,{"$f":"SUM(G93:G95)","v":0},null,{"$f":"SUM(I93:I95)","v":0},null,{"$f":"SUM(K93:K95)","v":0},null,{"$f":"SUM(M93:M95)","v":0},null,{"$f":"SUM(O93:O95)","v":0}]
[]
[null,"31.","COMBINED INVESTMENT INCOME - NET",null,{"$f":"Import!E414","v":0},null,{"$f":"Import!G414","v":0},null,{"$f":"+Import!E442","v":0},null,{"$f":"+Import!G442","v":0},null,{"$f":"+Import!I414","v":0},null,{"$f":"+Import!K414","v":0}]
[null,null,null,null,null,null,null,null,null,null,null,null,null,null,null,null,null,"",{"$f":"XBRLMap(M99,$R99,$S$5,$S$6,CONFIGURATION!$B$10,\"BMA\",CONFIGURATION!$B$1,\"bscr\",CONFIGURATION!$B$12)","v":"-"},{"$f":"XBRLMap(O99,$R99,$T$5,$T$6,CONFIGURATION!$B$10,\"BMA\",CONFIGURATION!$B$1,\"bscr\",CONFIGURATION!$B$12)","v":"-"},null,null,null,null,null,null,null,""]
[null,"32.","COMBINED OTHER INCOME (DEDUCTIONS)",null,{"$f":"Import!E415","v":0},null,{"$f":"Import!G415","v":0},null,{"$f":"+Import!E443","v":0},null,{"$f":"+Import!G443","v":0},null,{"$f":"+Import!I415","v":0},null,{"$f":"+Import!K415","v":0}]
[]
[null,"33.","COMBINED INCOME BEFORE TAXES",null,{"$f":"E88-E96+E98+E100","v":0},null,{"$f":"G88-G96+G98+G100","v":0},null,{"$f":"I88-I96+I98+I100","v":0},null,{"$f":"K88-K96+K98+K100","v":0},null,{"$f":"M88-M96+M98+M100","v":0},null,{"$f":"O88-O96+O98+O100","v":0}]
[]
[null,"34.","COMBINED INCOME TAXES (IF APPLICABLE):",null,null,null,null,null,null,null,null,null,null,null,null,null,null,"",{"$f":"XBRLMap(M104,$R104,$S$5,$S$6,CONFIGURATION!$B$10,\"BMA\",CONFIGURATION!$B$1,\"bscr\",CONFIGURATION!$B$12)","v":"-"},{"$f":"XBRLMap(O104,$R104,$T$5,$T$6,CONFIGURATION!$B$10,\"BMA\",CONFIGURATION!$B$1,\"bscr\",CONFIGURATION!$B$12)","v":"-"}]
[null,null,"(a) Current",null,{"$f":"Import!E416","v":0},null,{"$f":"Import!G416","v":0},null,{"$f":"+Import!E444","v":0},null,{"$f":"+Import!G444","v":0},null,{"$f":"+Import!I416","v":0},null,{"$f":"+Import!K416","v":0},null,null,"brrt_IncomeTaxesCurrent",{"$f":"XBRLMap(M105,$R105,$S$5,$S$6,CONFIGURATION!$B$10,\"BMA\",CONFIGURATION!$B$1,\"bscr\",CONFIGURATION!$B$12)","v":"Mapped"},{"$f":"XBRLMap(O105,$R105,$T$5,$T$6,CONFIGURATION!$B$10,\"BMA\",CONFIGURATION!$B$1,\"bscr\",CONFIGURATION!$B$12)","v":"Mapped"},null,null,null,null,null,null,null,"bma_IncomeTaxesCurrent"]
[null,null,"(b) Deferred",null,{"$f":"Import!E417","v":0},null,{"$f":"Import!G417","v":0},null,{"$f":"+Import!E445","v":0},null,{"$f":"+Import!G445","v":0},null,{"$f":"+Import!I417","v":0},null,{"$f":"+Import!K417","v":0},null,null,"brrt_IncomeTaxesDeferred",{"$f":"XBRLMap(M106,$R106,$S$5,$S$6,CONFIGURATION!$B$10,\"BMA\",CONFIGURATION!$B$1,\"bscr\",CONFIGURATION!$B$12)","v":"Mapped"},{"$f":"XBRLMap(O106,$R106,$T$5,$T$6,CONFIGURATION!$B$10,\"BMA\",CONFIGURATION!$B$1,\"bscr\",CONFIGURATION!$B$12)","v":"Mapped"},null,null,null,null,null,null,null,"bma_IncomeTaxesDeferred"]
[null,null,"(c) Total ",null,{"$f":"E105+E106","v":0},null,{"$f":"G105+G106","v":0},null,{"$f":"I105+I106","v":0},null,{"$f":"K105+K106","v":0},null,{"$f":"M105+M106","v":0},null,{"$f":"O105+O106","v":0},null,null,"brrt_IncomeTaxes",{"$f":"XBRLMap(M107,$R107,$S$5,$S$6,CONFIGURATION!$B$10,\"BMA\",CONFIGURATION!$B$1,\"bscr\",CONFIGURATION!$B$12)","v":"Mapped"},{"$f":"XBRLMap(O107,$R107,$T$5,$T$6,CONFIGURATION!$B$10,\"BMA\",CONFIGURATION!$B$1,\"bscr\",CONFIGURATION!$B$12)","v":"Mapped"},null,null,null,null,null,null,null,"bma_IncomeTaxesTotal"]
[null,null,null,null,null,null,null,null,null,null,null,null,null,null,null,null,null,"",{"$f":"XBRLMap(M108,$R108,$S$5,$S$6,CONFIGURATION!$B$10,\"BMA\",CONFIGURATION!$B$1,\"bscr\",CONFIGURATION!$B$12)","v":"-"},{"$f":"XBRLMap(O108,$R108,$T$5,$T$6,CONFIGURATION!$B$10,\"BMA\",CONFIGURATION!$B$1,\"bscr\",CONFIGURATION!$B$12)","v":"-"},null,null,null,null,null,null,null,""]
[null,"35.","COMBINED INCOME BEFORE REALIZED GAINS (LOSSES)",null,{"$f":"E102-E107","v":0},null,{"$f":"G102-G107","v":0},null,{"$f":"I102-I107","v":0},null,{"$f":"K102-K107","v":0},null,{"$f":"M102-M107","v":0},null,{"$f":"O102-O107","v":0},null,null,"brrt_IncomeBeforeRealizedGainsLosses",{"$f":"XBRLMap(M109,$R109,$S$5,$S$6,CONFIGURATION!$B$10,\"BMA\",CONFIGURATION!$B$1,\"bscr\",CONFIGURATION!$B$12)","v":"Mapped"},{"$f":"XBRLMap(O109,$R109,$T$5,$T$6,CONFIGURATION!$B$10,\"BMA\",CONFIGURATION!$B$1,\"bscr\",CONFIGURATION!$B$12)","v":"Mapped"},null,null,null,null,null,null,null,"bma_IncomeBeforeRealizedGainsLosses"]
[null,null,null,null,null,null,null,null,null,null,null,null,null,null,null,null,null,"",{"$f":"XBRLMap(M110,$R110,$S$5,$S$6,CONFIGURATION!$B$10,\"BMA\",CONFIGURATION!$B$1,\"bscr\",CONFIGURATION!$B$12)","v":"-"},{"$f":"XBRLMap(O110,$R110,$T$5,$T$6,CONFIGURATION!$B$10,\"BMA\",CONFIGURATION!$B$1,\"bscr\",CONFIGURATION!$B$12)","v":"-"},null,null,null,null,null,null,null,""]
[null,"36.","COMBINED REALIZED GAINS (LOSSES)",null,{"$f":"Import!E418","v":0},null,{"$f":"Import!G418","v":0},null,{"$f":"+Import!E446","v":0},null,{"$f":"+Import!G446","v":0},null,{"$f":"+Import!I418","v":0},null,{"$f":"+Import!K418","v":0},null,null,"brrt_RealizedGainsLosses",{"$f":"XBRLMap(M111,$R111,$S$5,$S$6,CONFIGURATION!$B$10,\"BMA\",CONFIGURATION!$B$1,\"bscr\",CONFIGURATION!$B$12)","v":"Mapped"},{"$f":"XBRLMap(O111,$R111,$T$5,$T$6,CONFIGURATION!$B$10,\"BMA\",CONFIGURATION!$B$1,\"bscr\",CONFIGURATION!$B$12)","v":"Mapped"},null,null,null,null,null,null,null,"bma_RealizedGainsLosses"]
[null,null,null,null,null,null,null,null,null,null,null,null,null,null,null,null,null,"",{"$f":"XBRLMap(M112,$R112,$S$5,$S$6,CONFIGURATION!$B$10,\"BMA\",CONFIGURATION!$B$1,\"bscr\",CONFIGURATION!$B$12)","v":"-"},{"$f":"XBRLMap(O112,$R112,$T$5,$T$6,CONFIGURATION!$B$10,\"BMA\",CONFIGURATION!$B$1,\"bscr\",CONFIGURATION!$B$12)","v":"-"},null,null,null,null,null,null,null,""]
[null,"37.","COMBINED INTEREST CHARGES",null,{"$f":"Import!E419","v":0},null,{"$f":"Import!G419","v":0},null,{"$f":"+Import!E447","v":0},null,{"$f":"+Import!G447","v":0},null,{"$f":"+Import!I419","v":0},null,{"$f":"+Import!K419","v":0}]
[]
[null,"38.","NET INCOME",null,{"$f":"E109+E111-E113","v":0},null,{"$f":"G109+G111-G113","v":0},null,{"$f":"I109+I111-I113","v":0},null,{"$f":"K109+K111-K113","v":0},null,{"$f":"M109+M111-M113","v":0},null,{"$f":"O109+O111-O113","v":0},null,null,"brrt_NetIncome",{"$f":"XBRLMap(M115,$R115,$S$5,$S$6,CONFIGURATION!$B$10,\"BMA\",CONFIGURATION!$B$1,\"bscr\",CONFIGURATION!$B$12)","v":"Mapped"},{"$f":"XBRLMap(O115,$R115,$T$5,$T$6,CONFIGURATION!$B$10,\"BMA\",CONFIGURATION!$B$1,\"bscr\",CONFIGURATION!$B$12)","v":"Mapped"},null,null,null,null,null,null,null,"bma_NetIncome"]
[null,null,null,null,null,null,null,null,null,null,null,null,null,null,null,null,null,""]
[null,null,null,null,null,null,null,null,null,null,null,null,null,null,null,null,null,""]
[null,null,null,null,null,null,null,null,null,null,null,null,null,null,null,null,null,""]

{"sheet":"Form 8SFS","index":18,"n_rows":63,"n_cols":28,"rows_kept":63,"cut":false,"hidden":false,"merged":[[5,14,5,16],[5,10,5,12],[4,10,4,12],[4,6,4,8],[5,6,5,8],[4,14,4,16],[62,2,62,4],[60,10,60,12],[60,2,60,4],[2,2,2,3],[3,2,3,3],[45,2,45,4],[62,10,62,12],[1,6,3,12]]}
[null,"STATUTORY STATEMENT OF CAPITAL AND SURPLUS ",null,null,null,null,null,null,null,null,null,null,null,null,null,null,{"$f":"HYPERLINK(\"#'Index'!A1\",\"Return to Index\")","v":"Return to Index"}]
[null,{"$f":"'Company Information'!C7","v":"Enter Company Name"},null,null,null,null,"Note if an insurer does not have any entities to consolidate, select \"No Subsidiaries\" on the Company Information tab (This cell is editable for deletion)"]
[null,"For the year ending",{"$f":"'Company Information'!C3","v":"2019-12-31"},null,null,null,null,null,null,null,null,null,null,null,null,null,"FORM 8SFS"]
[null,{"$f":"\"expressed in\"& IF(CONFIGURATION!$B$12>1,\" ['\"&MID(CONFIGURATION!$B$12,2,LEN(CONFIGURATION!$B$12))&\"s]\",\"\")","v":"expressed in ['000s]"},{"$f":"'Form 1EBS'!C4","v":"United States Dollars"}]
[null,null,null,null,null,null,"General Business",null,null,null,"Long-Term Business",null,null,null,"General and Long-Term Business"]
[null,"STMT.",null,null,null,null,"Unconsolidated",null,null,null,"Unconsolidated",null,null,null,"Consolidated",null,null,null,null,null,null,null,{"$f":"IF(O7=\"\",\"\",TEXT(DATE(YEAR(O7+1)-1,MONTH(O7+1),DAY(O7+1)),\"mm/dd/yyyy\"))","v":"01/01/2019"},{"$f":"IF(Q7=\"\",\"\",TEXT(DATE(YEAR(Q7+1)-1,MONTH(Q7+1),DAY(Q7+1)),\"mm/dd/yyyy\"))","v":"01/01/2018"}]
[null,"LINE No.",null,null,null,null,{"$f":"'Form 1EBS'!F7","v":"2019-12-31"},null,{"$f":"'Form 1EBS'!H7","v":"2018-12-31"},null,{"$f":"'Form 1EBS'!F7","v":"2019-12-31"},null,{"$f":"'Form 1EBS'!H7","v":"2018-12-31"},null,{"$f":"'Form 1EBS'!F7","v":"2019-12-31"},null,{"$f":"'Form 1EBS'!H7","v":"2018-12-31"},null,null,null,null,null,{"$f":"IF(O7=\"\",\"\",TEXT(O7,\"mm/dd/yyyy\"))","v":"12/31/2019"},{"$f":"IF(Q7=\"\",\"\",TEXT(Q7,\"mm/dd/yyyy\"))","v":"12/31/2018"}]
[null,null,null,null,null,null,{"$f":"CONFIGURATION!$D$12","v":" ('000s)"},null,{"$f":"CONFIGURATION!$D$12","v":" ('000s)"},null,{"$f":"CONFIGURATION!$D$12","v":" ('000s)"},null,{"$f":"CONFIGURATION!$D$12","v":" ('000s)"},null,{"$f":"CONFIGURATION!$D$12","v":" ('000s)"},null,{"$f":"CONFIGURATION!$D$12","v":" ('000s)"}]
[null,"1.","STATUTORY CAPITAL",null,null,null,null,null,null,null,null,null,null,null,null,null,null,null,null,null,null,null,{"$f":"XBRLMap(O9,$V9,$W$6,$W$7,CONFIGURATION!$B$10,\"BMA\",CONFIGURATION!$B$1,\"bscr\",CONFIGURATION!$B$12)","v":"-"},{"$f":"XBRLMap(Q9,$V9,$X$6,$X$7,CONFIGURATION!$B$10,\"BMA\",CONFIGURATION!$B$1,\"bscr\",CONFIGURATION!$B$12)","v":"-"}]
[]
[null,"(a)","Capital Stock",null,null,null,{"$f":"Import!E450","v":0},null,{"$f":"Import!G450","v":0},null,{"$f":"Import!E465","v":0},null,{"$f":"Import!G465","v":0}]
[null,null,"(i) Common Shares",null,null,null,null,null,null,null,null,null,null,null,{"$f":"Import!I451","v":0},null,{"$f":"Import!K451","v":0},null,null,null,null,"brrt_CommonShares",{"$f":"XBRLMap(O12,$V12,$W$6,$W$7,CONFIGURATION!$B$10,\"BMA\",CONFIGURATION!$B$1,\"bscr\",CONFIGURATION!$B$12)","v":"Mapped"},{"$f":"XBRLMap(Q12,$V12,$X$6,$X$7,CONFIGURATION!$B$10,\"BMA\",CONFIGURATION!$B$1,\"bscr\",CONFIGURATION!$B$12)","v":"Mapped"},null,null,null,"bma_CapitalStock"]
[null,null,"authorized",null,"shares of par",null,null,null,null,null,null,null,null,null,null,null,null,null,null,null,null,"brrt_CommonSharesAuthorized",{"$f":"XBRLMap(D13,$V13,$W$6,$W$7,\"\",\"BMA\",CONFIGURATION!$B$1,\"bscr\")","v":"Mapped"},null,null,null,null,"bma_CapitalStockAuthorized"]
[null,null,"value",null,"each issued and",null,null,null,null,null,null,null,null,null,null,null,null,null,null,null,null,"brrt_CommonSharesValue",{"$f":"XBRLMap(D14,$V14,$W$6,$W$7,CONFIGURATION!$B$10,\"BMA\",CONFIGURATION!$B$1,\"bscr\")","v":"Mapped"},null,null,null,null,"bma_CapitalStockValue"]
[null,null,"fully paid",null,"shares",null,null,null,null,null,null,null,null,null,null,null,null,null,null,null,null,"brrt_CommonSharesFullyPaid",{"$f":"XBRLMap(D15,$V15,$W$6,$W$7,CONFIGURATION!$B$10,\"BMA\",CONFIGURATION!$B$1,\"bscr\")","v":"Mapped"},null,null,null,null,"bma_CapitalStockFullyPaid"]
[]
[null,null,"(ii) Preferred Shares",null,null,null,null,null,null,null,null,null,null,null,{"$f":"Import!I452","v":0},null,{"$f":"Import!K452","v":0},null,null,null,null,"brrt_PreferredShares",{"$f":"XBRLMap(O17,$V17,$W$6,$W$7,CONFIGURATION!$B$10,\"BMA\",CONFIGURATION!$B$1,\"bscr\",CONFIGURATION!$B$12)","v":"Mapped"},{"$f":"XBRLMap(Q17,$V17,$X$6,$X$7,CONFIGURATION!$B$10,\"BMA\",CONFIGURATION!$B$1,\"bscr\",CONFIGURATION!$B$12)","v":"Mapped"}]
[null,null,"authorized",null,"shares of par",null,null,null,null,null,null,null,null,null,null,null,null,null,null,null,null,"brrt_PreferredSharesAuthorized",{"$f":"XBRLMap(D18,$V18,$W$6,$W$7,\"\",\"BMA\",CONFIGURATION!$B$1,\"bscr\")","v":"Mapped"}]
[null,null,"value",null,"each issued and",null,null,null,null,null,null,null,null,null,null,null,null,null,null,null,null,"brrt_PreferredSharesValue",{"$f":"XBRLMap(D19,$V19,$W$6,$W$7,CONFIGURATION!$B$10,\"BMA\",CONFIGURATION!$B$1,\"bscr\")","v":"Mapped"}]
[null,null,"fully paid",null,"shares",null,null,null,null,null,null,null,null,null,null,null,null,null,null,null,null,"brrt_PreferredSharesFullyPaid",{"$f":"XBRLMap(D20,$V20,$W$6,$W$7,CONFIGURATION!$B$10,\"BMA\",CONFIGURATION!$B$1,\"bscr\")","v":"Mapped"}]
[null,null,"aggregate liquidation value for —"]
[null,null,{"$f":"O7","v":"2019-12-31"},null,null,null,null,null,null,null,null,null,null,null,null,null,null,null,null,null,null,"brrt_PreferredSharesAggregateLiquidationValue",{"$f":"XBRLMap(D22,$V22,$W$6,$W$7,CONFIGURATION!$B$10,\"BMA\",CONFIGURATION!$B$1,\"bscr\",CONFIGURATION!$B$12)","v":"Mapped"},{"$f":"XBRLMap(D23,$V22,$X$6,$X$7,CONFIGURATION!$B$10,\"BMA\",CONFIGURATION!$B$1,\"bscr\",CONFIGURATION!$B$12)","v":"Mapped"}]
[null,null,{"$f":"Q7","v":"2018-12-31"}]
[]
[null,null,"(iii) Treasury Shares",null,null,null,null,null,null,null,null,null,null,null,{"$f":"Import!I453","v":0},null,{"$f":"Import!K453","v":0},null,null,null,null,"brrt_TreasuryShares",{"$f":"XBRLMap(O25,$V25,$W$6,$W$7,CONFIGURATION!$B$10,\"BMA\",CONFIGURATION!$B$1,\"bscr\",CONFIGURATION!$B$12)","v":"Mapped"},{"$f":"XBRLMap(Q25,$V25,$X$6,$X$7,CONFIGURATION!$B$10,\"BMA\",CONFIGURATION!$B$1,\"bscr\",CONFIGURATION!$B$12)","v":"Mapped"}]
[null,null,"repurchased",null,"shares of par",null,null,null,null,null,null,null,null,null,null,null,null,null,null,null,null,"brrt_TreasurySharesRepurchased",{"$f":"XBRLMap(D26,$V26,$W$6,$W$7,\"\",\"BMA\",CONFIGURATION!$B$1,\"bscr\")","v":"Mapped"}]
[null,null,"value",null,"each issued",null,null,null,null,null,null,null,null,null,null,null,null,null,null,null,null,"brrt_TreasurySharesValue",{"$f":"XBRLMap(D27,$V27,$W$6,$W$7,CONFIGURATION!$B$10,\"BMA\",CONFIGURATION!$B$1,\"bscr\")","v":"Mapped"}]
[null,null,null,null,null,null,null,null,null,null,null,null,null,null,null,null,null,null,null,null,null,"",null,null,null,null,null,""]
[null,"(b)","Contributed surplus",null,null,null,{"$f":"Import!E454","v":0},null,{"$f":"Import!G454","v":0},null,{"$f":"Import!E466","v":0},null,{"$f":"Import!G466","v":0},null,{"$f":"Import!I454","v":0},null,{"$f":"Import!K454","v":0},null,null,null,null,"brrt_ContributedSurplus",{"$f":"XBRLMap(O29,$V29,$W$6,$W$7,CONFIGURATION!$B$10,\"BMA\",CONFIGURATION!$B$1,\"bscr\",CONFIGURATION!$B$12)","v":"Mapped"},{"$f":"XBRLMap(Q29,$V29,$X$6,$X$7,CONFIGURATION!$B$10,\"BMA\",CONFIGURATION!$B$1,\"bscr\",CONFIGURATION!$B$12)","v":"Mapped"},null,null,null,"bma_ContributedSurplus"]
[null,null,null,null,null,null,null,null,null,null,null,null,null,null,null,null,null,null,null,null,null,"",{"$f":"XBRLMap(O30,$V30,$W$6,$W$7,CONFIGURATION!$B$10,\"BMA\",CONFIGURATION!$B$1,\"bscr\",CONFIGURATION!$B$12)","v":"-"},{"$f":"XBRLMap(Q30,$V30,$X$6,$X$7,CONFIGURATION!$B$10,\"BMA\",CONFIGURATION!$B$1,\"bscr\",CONFIGURATION!$B$12)","v":"-"},null,null,null,""]
[null,"(c)","Any other fixed capital",null,null,null,null,null,null,null,null,null,null,null,null,null,null,null,null,null,null,"",{"$f":"XBRLMap(O31,$V31,$W$6,$W$7,CONFIGURATION!$B$10,\"BMA\",CONFIGURATION!$B$1,\"bscr\",CONFIGURATION!$B$12)","v":"-"},{"$f":"XBRLMap(Q31,$V31,$X$6,$X$7,CONFIGURATION!$B$10,\"BMA\",CONFIGURATION!$B$1,\"bscr\",CONFIGURATION!$B$12)","v":"-"},null,null,null,""]
[null,null,"(i) Hybrid capital instruments",null,null,null,{"$f":"Import!E455","v":0},null,{"$f":"Import!G455","v":0},null,{"$f":"Import!E467","v":0},null,{"$f":"Import!G467","v":0},null,{"$f":"Import!I455","v":0},null,{"$f":"Import!K455","v":0},null,null,null,null,"brrt_AnyOtherFixedCapitalHybridCapitalInstruments",{"$f":"XBRLMap(O32,$V32,$W$6,$W$7,CONFIGURATION!$B$10,\"BMA\",CONFIGURATION!$B$1,\"bscr\",CONFIGURATION!$B$12)","v":"Mapped"},{"$f":"XBRLMap(Q32,$V32,$X$6,$X$7,CONFIGURATION!$B$10,\"BMA\",CONFIGURATION!$B$1,\"bscr\",CONFIGURATION!$B$12)","v":"Mapped"},null,null,null,"bma_AnyOtherFixedCapital"]
[null,null,"(ii) Guarantees and others",null,null,null,{"$f":"Import!E456","v":0},null,{"$f":"Import!G456","v":0},null,{"$f":"Import!E468","v":0},null,{"$f":"Import!G468","v":0},null,{"$f":"Import!I456","v":0},null,{"$f":"Import!K456","v":0},null,null,null,null,"brrt_AnyOtherFixedCapitalGuaranteesAndOthers",{"$f":"XBRLMap(O33,$V33,$W$6,$W$7,CONFIGURATION!$B$10,\"BMA\",CONFIGURATION!$B$1,\"bscr\",CONFIGURATION!$B$12)","v":"Mapped"},{"$f":"XBRLMap(Q33,$V33,$X$6,$X$7,CONFIGURATION!$B$10,\"BMA\",CONFIGURATION!$B$1,\"bscr\",CONFIGURATION!$B$12)","v":"Mapped"},null,null,null,"bma_AnyOtherFixedCapitalType"]
[null,null,"(iii) Total any other fixed capital",null,null,null,{"$f":"SUM(G32:G33)","v":0},null,{"$f":"SUM(I32:I33)","v":0},null,{"$f":"SUM(K32:K33)","v":0},null,{"$f":"SUM(M32:M33)","v":0},null,{"$f":"SUM(O32:O33)","v":0},null,{"$f":"SUM(Q32:Q33)","v":0},null,null,null,null,"brrt_AnyOtherFixedCapital",{"$f":"XBRLMap(O34,$V34,$W$6,$W$7,CONFIGURATION!$B$10,\"BMA\",CONFIGURATION!$B$1,\"bscr\",CONFIGURATION!$B$12)","v":"Mapped"},{"$f":"XBRLMap(Q34,$V34,$X$6,$X$7,CONFIGURATION!$B$10,\"BMA\",CONFIGURATION!$B$1,\"bscr\",CONFIGURATION!$B$12)","v":"Mapped"},null,null,null,"bma_TotalStatutoryCapital"]
[null,null,null,null,null,null,null,null,null,null,null,null,null,null,null,null,null,null,null,null,null,"",null,null,null,null,null,""]
[null,"(d)","Total Statutory Capital",null,null,null,{"$f":"G11+G29+G34","v":0},null,{"$f":"I11+I29+I34","v":0},null,{"$f":"K11+K29+K34","v":0},null,{"$f":"M11+M29+M34","v":0},null,{"$f":"O12+O17-O25+O29+O34","v":0},null,{"$f":"Q12+Q17-Q25+Q29+Q34","v":0},null,null,null,null,"brrt_StatutoryCapital",{"$f":"XBRLMap(O36,$V36,$W$6,$W$7,CONFIGURATION!$B$10,\"BMA\",CONFIGURATION!$B$1,\"bscr\",CONFIGURATION!$B$12)","v":"Mapped"},{"$f":"XBRLMap(Q36,$V36,$X$6,$X$7,CONFIGURATION!$B$10,\"BMA\",CONFIGURATION!$B$1,\"bscr\",CONFIGURATION!$B$12)","v":"Mapped"}]
[null,null,null,null,null,null,null,null,null,null,null,null,null,null,null,null,null,null,null,null,null,"",{"$f":"XBRLMap(O37,$V37,$W$6,$W$7,CONFIGURATION!$B$10,\"BMA\",CONFIGURATION!$B$1,\"bscr\",CONFIGURATION!$B$12)","v":"-"},{"$f":"XBRLMap(Q37,$V37,$X$6,$X$7,CONFIGURATION!$B$10,\"BMA\",CONFIGURATION!$B$1,\"bscr\",CONFIGURATION!$B$12)","v":"-"},null,null,null,""]
[null,"2.","STATUTORY SURPLUS:",null,null,null,null,null,null,null,null,null,null,null,null,null,null,null,null,null,null,"",{"$f":"XBRLMap(O38,$V38,$W$6,$W$7,CONFIGURATION!$B$10,\"BMA\",CONFIGURATION!$B$1,\"bscr\",CONFIGURATION!$B$12)","v":"-"},{"$f":"XBRLMap(Q38,$V38,$X$6,$X$7,CONFIGURATION!$B$10,\"BMA\",CONFIGURATION!$B$1,\"bscr\",CONFIGURATION!$B$12)","v":"-"},null,null,null,""]
[null,null,null,null,null,null,null,null,null,null,null,null,null,null,null,null,null,null,null,null,null,"",{"$f":"XBRLMap(O39,$V39,$W$6,$W$7,CONFIGURATION!$B$10,\"BMA\",CONFIGURATION!$B$1,\"bscr\",CONFIGURATION!$B$12)","v":"-"},{"$f":"XBRLMap(Q39,$V39,$X$6,$X$7,CONFIGURATION!$B$10,\"BMA\",CONFIGURATION!$B$1,\"bscr\",CONFIGURATION!$B$12)","v":"-"},null,null,null,"bma_AddIncomeForYear"]
[null,"(a)","Statutory Surplus - Beginning of Year",null,null,null,{"$f":"Import!E457","v":0},null,{"$f":"Import!G457","v":0},null,{"$f":"Import!E469","v":0},null,{"$f":"Import!G469","v":0},null,{"$f":"Import!I457","v":0},null,{"$f":"Import!K457","v":0},null,null,null,null,"brrt_StatutorySurplus",{"$f":"XBRLMap(O40,$V40,$W$6,$W$6,CONFIGURATION!$B$10,\"BMA\",CONFIGURATION!$B$1,\"bscr\",CONFIGURATION!$B$12)","v":"Mapped"},{"$f":"XBRLMap(Q40,$V40,$X$6,$X$6,CONFIGURATION!$B$10,\"BMA\",CONFIGURATION!$B$1,\"bscr\",CONFIGURATION!$B$12)","v":"Mapped"},null,null,null,""]
[null,null,null,null,null,null,null,null,null,null,null,null,null,null,null,null,null,null,null,null,null,"",{"$f":"XBRLMap(O41,$V41,$W$6,$W$7,CONFIGURATION!$B$10,\"BMA\",CONFIGURATION!$B$1,\"bscr\",CONFIGURATION!$B$12)","v":"-"},{"$f":"XBRLMap(Q41,$V41,$X$6,$X$7,CONFIGURATION!$B$10,\"BMA\",CONFIGURATION!$B$1,\"bscr\",CONFIGURATION!$B$12)","v":"-"},null,null,null,"bma_LessDividendsPaidAndPayable"]
[null,"(b)","Add: Income for Year",null,null,null,{"$f":"'Form 2SFS'!E115","v":0},null,{"$f":"'Form 2SFS'!G115","v":0},null,{"$f":"'Form 2SFS'!I115","v":0},null,{"$f":"'Form 2SFS'!K115","v":0},null,{"$f":"'Form 2SFS'!M115","v":0},null,{"$f":"'Form 2SFS'!O115","v":0},null,null,null,null,null,null,null,null,null,null,""]
[null,null,null,null,null,null,null,null,null,null,null,null,null,null,null,null,null,null,null,0,null,"",{"$f":"XBRLMap(O43,$V43,$W$6,$W$7,CONFIGURATION!$B$10,\"BMA\",CONFIGURATION!$B$1,\"bscr\",CONFIGURATION!$B$12)","v":"-"},{"$f":"XBRLMap(Q43,$V43,$X$6,$X$7,CONFIGURATION!$B$10,\"BMA\",CONFIGURATION!$B$1,\"bscr\",CONFIGURATION!$B$12)","v":"-"},null,null,null,"bma_AddDeductChangeInUnrealizedAppreciationDepreciationOfInvestments"]
[null,"(c)","Less: Dividends paid and payable",null,null,null,{"$f":"Import!E458","v":0},null,{"$f":"Import!G458","v":0},null,{"$f":"Import!E470","v":0},null,{"$f":"Import!G470","v":0},null,{"$f":"Import!I458","v":0},null,{"$f":"Import!K458","v":0},null,null,null,null,"brrt_DividendsPaidAndPayable",{"$f":"XBRLMap(O44,$V44,$W$6,$W$7,CONFIGURATION!$B$10,\"BMA\",CONFIGURATION!$B$1,\"bscr\",CONFIGURATION!$B$12)","v":"Mapped"},{"$f":"XBRLMap(Q44,$V44,$X$6,$X$7,CONFIGURATION!$B$10,\"BMA\",CONFIGURATION!$B$1,\"bscr\",CONFIGURATION!$B$12)","v":"Mapped"},null,null,null,""]
[null,null,null,null,null,null,null,null,null,null,null,null,null,null,null,null,null,null,null,null,null,"",{"$f":"XBRLMap(O45,$V45,$W$6,$W$7,CONFIGURATION!$B$10,\"BMA\",CONFIGURATION!$B$1,\"bscr\",CONFIGURATION!$B$12)","v":"-"},{"$f":"XBRLMap(Q45,$V45,$X$6,$X$7,CONFIGURATION!$B$10,\"BMA\",CONFIGURATION!$B$1,\"bscr\",CONFIGURATION!$B$12)","v":"-"},null,null,null,"bma_AddDeductChangeInNonAdmittedAssets"]
[null,"(d)","Add (Deduct): Change in unrealized appreciation (depreciation) of investments",null,null,null,{"$f":"Import!E459","v":0},null,{"$f":"Import!G459","v":0},null,{"$f":"Import!E471","v":0},null,{"$f":"Import!G471","v":0},null,{"$f":"Import!I459","v":0},null,{"$f":"Import!K459","v":0},null,null,null,null,"brrt_ChangeInUnrealizedAppreciationDepreciationOfInvestments",{"$f":"XBRLMap(O46,$V46,$W$6,$W$7,CONFIGURATION!$B$10,\"BMA\",CONFIGURATION!$B$1,\"bscr\",CONFIGURATION!$B$12)","v":"Mapped"},{"$f":"XBRLMap(Q46,$V46,$X$6,$X$7,CONFIGURATION!$B$10,\"BMA\",CONFIGURATION!$B$1,\"bscr\",CONFIGURATION!$B$12)","v":"Mapped"},null,null,null,""]
[null,null,null,null,null,null,null,null,null,null,null,null,null,null,null,null,null,null,null,null,null,"",{"$f":"XBRLMap(O47,$V47,$W$6,$W$7,CONFIGURATION!$B$10,\"BMA\",CONFIGURATION!$B$1,\"bscr\",CONFIGURATION!$B$12)","v":"-"},{"$f":"XBRLMap(Q47,$V47,$X$6,$X$7,CONFIGURATION!$B$10,\"BMA\",CONFIGURATION!$B$1,\"bscr\",CONFIGURATION!$B$12)","v":"-"},null,null,null,"bma_AddDeductChangeInAppraisalOfRealEstate"]
[null,"(e)","Add (Deduct): Change in non-admitted assets",null,null,null,{"$f":"Import!E460","v":0},null,{"$f":"Import!G460","v":0},null,{"$f":"Import!E472","v":0},null,{"$f":"Import!G472","v":0},null,{"$f":"Import!I460","v":0},null,{"$f":"Import!K460","v":0},null,null,null,null,"brrt_ChangeInNonAdmittedAssets",{"$f":"XBRLMap(O48,$V48,$W$6,$W$7,CONFIGURATION!$B$10,\"BMA\",CONFIGURATION!$B$1,\"bscr\",CONFIGURATION!$B$12)","v":"Mapped"},{"$f":"XBRLMap(Q48,$V48,$X$6,$X$7,CONFIGURATION!$B$10,\"BMA\",CONFIGURATION!$B$1,\"bscr\",CONFIGURATION!$B$12)","v":"Mapped"},null,null,null,""]
[null,null,null,null,null,null,null,null,null,null,null,null,null,null,null,null,null,null,null,null,null,"",{"$f":"XBRLMap(O49,$V49,$W$6,$W$7,CONFIGURATION!$B$10,\"BMA\",CONFIGURATION!$B$1,\"bscr\",CONFIGURATION!$B$12)","v":"-"},{"$f":"XBRLMap(Q49,$V49,$X$6,$X$7,CONFIGURATION!$B$10,\"BMA\",CONFIGURATION!$B$1,\"bscr\",CONFIGURATION!$B$12)","v":"-"},null,null,null,"bma_AddDeductChangeInAnyOtherStatutoryCapital"]
[null,"(f)","Add (Deduct): Change in appraisal of real estate",null,null,null,{"$f":"Import!E461","v":0},null,{"$f":"Import!G461","v":0},null,{"$f":"Import!E473","v":0},null,{"$f":"Import!G473","v":0},null,{"$f":"Import!I461","v":0},null,{"$f":"Import!K461","v":0},null,null,null,null,"brrt_ChangeInAppraisalOfRealEstate",{"$f":"XBRLMap(O50,$V50,$W$6,$W$7,CONFIGURATION!$B$10,\"BMA\",CONFIGURATION!$B$1,\"bscr\",CONFIGURATION!$B$12)","v":"Mapped"},{"$f":"XBRLMap(Q50,$V50,$X$6,$X$7,CONFIGURATION!$B$10,\"BMA\",CONFIGURATION!$B$1,\"bscr\",CONFIGURATION!$B$12)","v":"Mapped"},null,null,null,""]
[null,null,null,null,null,null,null,null,null,null,null,null,null,null,null,null,null,null,null,null,null,"",{"$f":"XBRLMap(O51,$V51,$W$6,$W$7,CONFIGURATION!$B$10,\"BMA\",CONFIGURATION!$B$1,\"bscr\",CONFIGURATION!$B$12)","v":"-"},{"$f":"XBRLMap(Q51,$V51,$X$6,$X$7,CONFIGURATION!$B$10,\"BMA\",CONFIGURATION!$B$1,\"bscr\",CONFIGURATION!$B$12)","v":"-"},null,null,null,"bma_StatutorySurplusEndOfYear"]
[null,"(g)","Add (Deduct): Change in any other statutory capital",null,null,null,{"$f":"Import!E462","v":0},null,{"$f":"Import!G462","v":0},null,{"$f":"Import!E474","v":0},null,{"$f":"Import!G474","v":0},null,{"$f":"Import!I462","v":0},null,{"$f":"Import!K462","v":0},null,null,null,null,"brrt_ChangeInAnyOtherStatutoryCapital",{"$f":"XBRLMap(O52,$V52,$W$6,$W$7,CONFIGURATION!$B$10,\"BMA\",CONFIGURATION!$B$1,\"bscr\",CONFIGURATION!$B$12)","v":"Mapped"},{"$f":"XBRLMap(Q52,$V52,$X$6,$X$7,CONFIGURATION!$B$10,\"BMA\",CONFIGURATION!$B$1,\"bscr\",CONFIGURATION!$B$12)","v":"Mapped"},null,null,null,""]
[null,null,null,null,null,null,null,null,null,null,null,null,null,null,null,null,null,null,null,null,null,"",{"$f":"XBRLMap(O53,$V53,$W$6,$W$7,CONFIGURATION!$B$10,\"BMA\",CONFIGURATION!$B$1,\"bscr\",CONFIGURATION!$B$12)","v":"-"},{"$f":"XBRLMap(Q53,$V53,$X$6,$X$7,CONFIGURATION!$B$10,\"BMA\",CONFIGURATION!$B$1,\"bscr\",CONFIGURATION!$B$12)","v":"-"},null,null,null,"bma_StatutoryStatementTotalStatutoryCapitalAndSurplus"]
[null,"(h)","Statutory Surplus - End of Year",null,null,null,{"$f":"G40+G42+G44+G46+G48+G50+G52","v":0},null,{"$f":"I40+I42+I44+I46+I48+I50+I52","v":0},null,{"$f":"K40+K42+K44+K46+K48+K50+K52","v":0},null,{"$f":"M40+M42+M44+M46+M48+M50+M52","v":0},null,{"$f":"O40+O42+O44+O46+O48+O50+O52","v":0},null,{"$f":"Q40+Q42+Q44+Q46+Q48+Q50+Q52","v":0},null,null,null,null,"brrt_StatutorySurplus",{"$f":"XBRLMap(O54,$V54,$W$6,$W$7,CONFIGURATION!$B$10,\"BMA\",CONFIGURATION!$B$1,\"bscr\",CONFIGURATION!$B$12)","v":"Mapped"},{"$f":"XBRLMap(Q54,$V54,$X$6,$X$7,CONFIGURATION!$B$10,\"BMA\",CONFIGURATION!$B$1,\"bscr\",CONFIGURATION!$B$12)","v":"Mapped"}]
[null,null,null,null,null,null,null,null,null,null,null,null,null,null,null,null,null,null,null,null,null,"",{"$f":"XBRLMap(O55,$V55,$W$6,$W$7,CONFIGURATION!$B$10,\"BMA\",CONFIGURATION!$B$1,\"bscr\",CONFIGURATION!$B$12)","v":"-"},{"$f":"XBRLMap(Q55,$V55,$X$6,$X$7,CONFIGURATION!$B$10,\"BMA\",CONFIGURATION!$B$1,\"bscr\",CONFIGURATION!$B$12)","v":"-"}]
[null,"3.","MINORITY INTEREST",null,null,null,{"$f":"Import!E463","v":0},null,{"$f":"Import!G463","v":0},null,{"$f":"Import!E475","v":0},null,{"$f":"Import!G475","v":0},null,{"$f":"Import!I463","v":0},null,{"$f":"Import!K463","v":0}]
[]
[null,"4.","TOTAL STATUTORY CAPITAL AND SURPLUS",null,null,null,{"$f":"G36+G54+G56","v":0},null,{"$f":"I36+I54+I56","v":0},null,{"$f":"K36+K54+K56","v":0},null,{"$f":"M36+M54+M56","v":0},null,{"$f":"O36+O54+O56","v":0},null,{"$f":"Q36+Q54+Q56","v":0},null,null,null,null,"brrt_StatutoryCapitalAndSurplus",{"$f":"XBRLMap(O58,$V58,$W$6,$W$7,CONFIGURATION!$B$10,\"BMA\",CONFIGURATION!$B$1,\"bscr\",CONFIGURATION!$B$12)","v":"Mapped"},{"$f":"XBRLMap(Q58,$V58,$X$6,$X$7,CONFIGURATION!$B$10,\"BMA\",CONFIGURATION!$B$1,\"bscr\",CONFIGURATION!$B$12)","v":"Mapped"}]
[]
[null,null,null,null,null,null,null,null,null,null,"Change in other statutory capital and surplus"]
[null,"Line 2g","Change in any other statutory capital"]
[]
[null,"Line 4","Total Statutory Capital & Surplus",null,null,null,null,null,null,null,{"$f":"HYPERLINK(\"#'Schedule V(g)'!A1\",\"Refer to Schedule V(g)\")","v":"Refer to Schedule V(g)"}]

{"sheet":"Form 1EBS","index":19,"n_rows":238,"n_cols":17,"rows_kept":238,"cut":false,"hidden":false,"merged":[[227,2,227,3],[222,2,222,3]]}
[null,"ECONOMIC BALANCE SHEET",null,null,null,null,null,{"$f":"HYPERLINK(\"#'Index'!A1\",\"Return to Index\")","v":"Return to Index"}]
[null,{"$f":"'Company Information'!C7","v":"Enter Company Name"}]
[null,"As at",{"$f":"'Company Information'!C3","v":"2019-12-31"},null,null,null,null,"FORM 1EBS"]
[null,{"$f":"\"expressed in\"& IF(CONFIGURATION!$B$12>1,\" ['\"&MID(CONFIGURATION!$B$12,2,LEN(CONFIGURATION!$B$12))&\"s]\",\"\")","v":"expressed in ['000s]"},"United States Dollars"]
[null,null,null,null,null,null,null,null,null,null,null,{"$f":"IF(F7=\"\",\"\",TEXT(DATE(YEAR(F7+1)-1,MONTH(F7+1),DAY(F7+1)),\"mm/dd/yyyy\"))","v":"01/01/2019"},{"$f":"IF(H7=\"\",\"\",TEXT(DATE(YEAR(H7+1)-1,MONTH(H7+1),DAY(H7+1)),\"mm/dd/yyyy\"))","v":"01/01/2018"}]
[null,"STMT.",null,null,null,null,null,null,null,null,null,{"$f":"IF(F7=\"\",\"\",TEXT(F7,\"mm/dd/yyyy\"))","v":"12/31/2019"},{"$f":"IF(H7=\"\",\"\",TEXT(H7,\"mm/dd/yyyy\"))","v":"12/31/2018"}]
[null,"LINE No.",null,null,null,{"$f":"C3","v":"2019-12-31"},null,{"$f":"DATE(YEAR(C3) -1, MONTH(C3), DAY(C3))","v":"2018-12-31"}]
[null,null,null,null,null,{"$f":"CONFIGURATION!$D$12","v":" ('000s)"},null,{"$f":"CONFIGURATION!$D$12","v":" ('000s)"},null,null,""]
[null,null,null,null,null,null,null,null,null,null,""]
[null,"1.","CASH AND CASH EQUIVALENTS",null,null,{"$f":"Import!M102","v":0},null,{"$f":"Import!O102","v":0},null,null,"brrt_CashAndTimeDeposits",{"$f":"XBRLMap(F10,$K10,$L$5,$L$6,CONFIGURATION!$B$10,\"BMA\",CONFIGURATION!$B$1,\"bscr\",CONFIGURATION!$B$12)","v":"Mapped"},{"$f":"XBRLMap(H10,$K10,$M$5,$M$6,CONFIGURATION!$B$10,\"BMA\",CONFIGURATION!$B$1,\"bscr\",CONFIGURATION!$B$12)","v":"Mapped"},null,null,null,"bma_CashAndTimeDeposits"]
[null,null,null,null,null,null,null,null,null,null,"",{"$f":"XBRLMap(F11,$K11,$L$5,$L$6,CONFIGURATION!$B$10,\"BMA\",CONFIGURATION!$B$1,\"bscr\",CONFIGURATION!$B$12)","v":"-"},{"$f":"XBRLMap(H11,$K11,$M$5,$M$6,CONFIGURATION!$B$10,\"BMA\",CONFIGURATION!$B$1,\"bscr\",CONFIGURATION!$B$12)","v":"-"},null,null,null,""]
[null,"2.","QUOTED INVESTMENTS:",null,null,null,null,null,null,null,"",{"$f":"XBRLMap(F12,$K12,$L$5,$L$6,CONFIGURATION!$B$10,\"BMA\",CONFIGURATION!$B$1,\"bscr\",CONFIGURATION!$B$12)","v":"-"},{"$f":"XBRLMap(H12,$K12,$M$5,$M$6,CONFIGURATION!$B$10,\"BMA\",CONFIGURATION!$B$1,\"bscr\",CONFIGURATION!$B$12)","v":"-"}]
[null,"(b)","Total Bonds and Debentures",null,null,{"$f":"Import!M105","v":0},null,{"$f":"Import!O105","v":0},null,null,"brrt_QuotedInvestmentsBondsAndDebentures",{"$f":"XBRLMap(F13,$K13,$L$5,$L$6,CONFIGURATION!$B$10,\"BMA\",CONFIGURATION!$B$1,\"bscr\",CONFIGURATION!$B$12)","v":"Mapped"},{"$f":"XBRLMap(H13,$K13,$M$5,$M$6,CONFIGURATION!$B$10,\"BMA\",CONFIGURATION!$B$1,\"bscr\",CONFIGURATION!$B$12)","v":"Mapped"},null,null,null,"bma_QuotedInvestmentsTotalBondsAndDebentures"]
[null,"(c) ","Equities ",null,null,null,null,null,null,null,"",{"$f":"XBRLMap(F14,$K14,$L$5,$L$6,CONFIGURATION!$B$10,\"BMA\",CONFIGURATION!$B$1,\"bscr\",CONFIGURATION!$B$12)","v":"-"},{"$f":"XBRLMap(H14,$K14,$M$5,$M$6,CONFIGURATION!$B$10,\"BMA\",CONFIGURATION!$B$1,\"bscr\",CONFIGURATION!$B$12)","v":"-"}]
[null,null,"  i.   Common stocks",null,null,{"$f":"Import!M106","v":0},null,{"$f":"Import!O106","v":0},null,null,"brrt_QuotedInvestmentsEquitiesCommonStocks",{"$f":"XBRLMap(F15,$K15,$L$5,$L$6,CONFIGURATION!$B$10,\"BMA\",CONFIGURATION!$B$1,\"bscr\",CONFIGURATION!$B$12)","v":"Mapped"},{"$f":"XBRLMap(H15,$K15,$M$5,$M$6,CONFIGURATION!$B$10,\"BMA\",CONFIGURATION!$B$1,\"bscr\",CONFIGURATION!$B$12)","v":"Mapped"},null,null,null,"bma_QuotedInvestmentsEquitiesCommonStocks"]
[null,null,"  ii. Preferred stocks",null,null,{"$f":"Import!M107","v":0},null,{"$f":"Import!O107","v":0},null,null,"brrt_QuotedInvestmentsEquitiesPreferredStocks",{"$f":"XBRLMap(F16,$K16,$L$5,$L$6,CONFIGURATION!$B$10,\"BMA\",CONFIGURATION!$B$1,\"bscr\",CONFIGURATION!$B$12)","v":"Mapped"},{"$f":"XBRLMap(H16,$K16,$M$5,$M$6,CONFIGURATION!$B$10,\"BMA\",CONFIGURATION!$B$1,\"bscr\",CONFIGURATION!$B$12)","v":"Mapped"},null,null,null,"bma_QuotedInvestmentsEquitiesPreferredStocks"]
[null,null,"  iii. Mutual Funds",null,null,{"$f":"Import!M108","v":0},null,{"$f":"Import!O108","v":0},null,null,"brrt_QuotedInvestmentsEquitiesMutualFunds",{"$f":"XBRLMap(F17,$K17,$L$5,$L$6,CONFIGURATION!$B$10,\"BMA\",CONFIGURATION!$B$1,\"bscr\",CONFIGURATION!$B$12)","v":"Mapped"},{"$f":"XBRLMap(H17,$K17,$M$5,$M$6,CONFIGURATION!$B$10,\"BMA\",CONFIGURATION!$B$1,\"bscr\",CONFIGURATION!$B$12)","v":"Mapped"},null,null,null,"bma_QuotedInvestmentsEquitiesMutualFunds"]
[null,"(d) ","Total equity investments",null,null,{"$f":"SUM(F15:F17)","v":0},null,{"$f":"SUM(H15:H17)","v":0},null,null,"brrt_QuotedInvestmentsEquities",{"$f":"XBRLMap(F18,$K18,$L$5,$L$6,CONFIGURATION!$B$10,\"BMA\",CONFIGURATION!$B$1,\"bscr\",CONFIGURATION!$B$12)","v":"Mapped"},{"$f":"XBRLMap(H18,$K18,$M$5,$M$6,CONFIGURATION!$B$10,\"BMA\",CONFIGURATION!$B$1,\"bscr\",CONFIGURATION!$B$12)","v":"Mapped"},null,null,null,"bma_QuotedInvestmentsTotalEquityInvestments"]
[null,"(e)","Other quoted investments",null,null,{"$f":"Import!M109","v":0},null,{"$f":"Import!O109","v":0},null,null,"brrt_QuotedInvestmentsOther",{"$f":"XBRLMap(F19,$K19,$L$5,$L$6,CONFIGURATION!$B$10,\"BMA\",CONFIGURATION!$B$1,\"bscr\",CONFIGURATION!$B$12)","v":"Mapped"},{"$f":"XBRLMap(H19,$K19,$M$5,$M$6,CONFIGURATION!$B$10,\"BMA\",CONFIGURATION!$B$1,\"bscr\",CONFIGURATION!$B$12)","v":"Mapped"},null,null,null,"bma_QuotedInvestmentsOtherInvestments"]
[null,"(f)","Total quoted investments",null,null,{"$f":"F13+F18+F19","v":0},null,{"$f":"H13+H18+H19","v":0},null,null,"brrt_QuotedInvestments",{"$f":"XBRLMap(F20,$K20,$L$5,$L$6,CONFIGURATION!$B$10,\"BMA\",CONFIGURATION!$B$1,\"bscr\",CONFIGURATION!$B$12)","v":"Mapped"},{"$f":"XBRLMap(H20,$K20,$M$5,$M$6,CONFIGURATION!$B$10,\"BMA\",CONFIGURATION!$B$1,\"bscr\",CONFIGURATION!$B$12)","v":"Mapped"},null,null,null,"bma_QuotedInvestmentsTotalInvestments"]
[null,null,null,null,null,null,null,null,null,null,"",{"$f":"XBRLMap(F21,$K21,$L$5,$L$6,CONFIGURATION!$B$10,\"BMA\",CONFIGURATION!$B$1,\"bscr\",CONFIGURATION!$B$12)","v":"-"},{"$f":"XBRLMap(H21,$K21,$M$5,$M$6,CONFIGURATION!$B$10,\"BMA\",CONFIGURATION!$B$1,\"bscr\",CONFIGURATION!$B$12)","v":"-"},null,null,null,""]
[null,"3.","UNQUOTED INVESTMENTS:",null,null,null,null,null,null,null,"",{"$f":"XBRLMap(F22,$K22,$L$5,$L$6,CONFIGURATION!$B$10,\"BMA\",CONFIGURATION!$B$1,\"bscr\",CONFIGURATION!$B$12)","v":"-"},{"$f":"XBRLMap(H22,$K22,$M$5,$M$6,CONFIGURATION!$B$10,\"BMA\",CONFIGURATION!$B$1,\"bscr\",CONFIGURATION!$B$12)","v":"-"}]
[null,"(b)","Total Bonds and Debentures",null,null,{"$f":"Import!M112","v":0},null,{"$f":"Import!O112","v":0},null,null,"brrt_UnquotedInvestmentsBondsAndDebentures",{"$f":"XBRLMap(F23,$K23,$L$5,$L$6,CONFIGURATION!$B$10,\"BMA\",CONFIGURATION!$B$1,\"bscr\",CONFIGURATION!$B$12)","v":"Mapped"},{"$f":"XBRLMap(H23,$K23,$M$5,$M$6,CONFIGURATION!$B$10,\"BMA\",CONFIGURATION!$B$1,\"bscr\",CONFIGURATION!$B$12)","v":"Mapped"},null,null,null,"bma_UnquotedInvestmentsTotalBondsAndDebentures"]
[null,"(c) ","Equities ",null,null,null,null,null,null,null,"",{"$f":"XBRLMap(F24,$K24,$L$5,$L$6,CONFIGURATION!$B$10,\"BMA\",CONFIGURATION!$B$1,\"bscr\",CONFIGURATION!$B$12)","v":"-"},{"$f":"XBRLMap(H24,$K24,$M$5,$M$6,CONFIGURATION!$B$10,\"BMA\",CONFIGURATION!$B$1,\"bscr\",CONFIGURATION!$B$12)","v":"-"}]
[null,null,"  i.   Common stocks",null,null,{"$f":"Import!M113","v":0},null,{"$f":"Import!O113","v":0},null,null,"brrt_UnquotedInvestmentsEquitiesCommonStocks",{"$f":"XBRLMap(F25,$K25,$L$5,$L$6,CONFIGURATION!$B$10,\"BMA\",CONFIGURATION!$B$1,\"bscr\",CONFIGURATION!$B$12)","v":"Mapped"},{"$f":"XBRLMap(H25,$K25,$M$5,$M$6,CONFIGURATION!$B$10,\"BMA\",CONFIGURATION!$B$1,\"bscr\",CONFIGURATION!$B$12)","v":"Mapped"},null,null,null,"bma_UnquotedInvestmentsEquitiesCommonStocks"]
[null,null,"  ii. Preferred stocks",null,null,{"$f":"Import!M114","v":0},null,{"$f":"Import!O114","v":0},null,null,"brrt_UnquotedInvestmentsEquitiesPreferredStocks",{"$f":"XBRLMap(F26,$K26,$L$5,$L$6,CONFIGURATION!$B$10,\"BMA\",CONFIGURATION!$B$1,\"bscr\",CONFIGURATION!$B$12)","v":"Mapped"},{"$f":"XBRLMap(H26,$K26,$M$5,$M$6,CONFIGURATION!$B$10,\"BMA\",CONFIGURATION!$B$1,\"bscr\",CONFIGURATION!$B$12)","v":"Mapped"},null,null,null,"bma_UnquotedInvestmentsEquitiesPreferredStocks"]
[null,null,"  iii . Mutual Funds",null,null,{"$f":"Import!M115","v":0},null,{"$f":"Import!O115","v":0},null,null,"brrt_UnquotedInvestmentsEquitiesMutualFunds",{"$f":"XBRLMap(F27,$K27,$L$5,$L$6,CONFIGURATION!$B$10,\"BMA\",CONFIGURATION!$B$1,\"bscr\",CONFIGURATION!$B$12)","v":"Mapped"},{"$f":"XBRLMap(H27,$K27,$M$5,$M$6,CONFIGURATION!$B$10,\"BMA\",CONFIGURATION!$B$1,\"bscr\",CONFIGURATION!$B$12)","v":"Mapped"},null,null,null,"bma_UnquotedInvestmentsEquitiesMutualFunds"]
[null,"(d) ","Total equity investments",null,null,{"$f":"SUM(F25:F27)","v":0},null,{"$f":"SUM(H25:H27)","v":0},null,null,"brrt_UnquotedInvestmentsEquities",{"$f":"XBRLMap(F28,$K28,$L$5,$L$6,CONFIGURATION!$B$10,\"BMA\",CONFIGURATION!$B$1,\"bscr\",CONFIGURATION!$B$12)","v":"Mapped"},{"$f":"XBRLMap(H28,$K28,$M$5,$M$6,CONFIGURATION!$B$10,\"BMA\",CONFIGURATION!$B$1,\"bscr\",CONFIGURATION!$B$12)","v":"Mapped"},null,null,null,"bma_UnquotedInvestmentsTotalEquityInvestments"]
[null,"(e) ","Other unquoted investments",null,null,{"$f":"Import!M116","v":0},null,{"$f":"Import!O116","v":0},null,null,"brrt_UnquotedInvestmentsOther",{"$f":"XBRLMap(F29,$K29,$L$5,$L$6,CONFIGURATION!$B$10,\"BMA\",CONFIGURATION!$B$1,\"bscr\",CONFIGURATION!$B$12)","v":"Mapped"},{"$f":"XBRLMap(H29,$K29,$M$5,$M$6,CONFIGURATION!$B$10,\"BMA\",CONFIGURATION!$B$1,\"bscr\",CONFIGURATION!$B$12)","v":"Mapped"},null,null,null,"bma_UnquotedInvestmentsOtherInvestments"]
[null,"(f) ","Total unquoted investments",null,null,{"$f":"F23+F28+F29","v":0},null,{"$f":"H23+H28+H29","v":0},null,null,"brrt_UnquotedInvestments",{"$f":"XBRLMap(F30,$K30,$L$5,$L$6,CONFIGURATION!$B$10,\"BMA\",CONFIGURATION!$B$1,\"bscr\",CONFIGURATION!$B$12)","v":"Mapped"},{"$f":"XBRLMap(H30,$K30,$M$5,$M$6,CONFIGURATION!$B$10,\"BMA\",CONFIGURATION!$B$1,\"bscr\",CONFIGURATION!$B$12)","v":"Mapped"},null,null,null,"bma_UnquotedInvestmentsTotalInvestments"]
[null,null,null,null,null,null,null,null,null,null,"",{"$f":"XBRLMap(F31,$K31,$L$5,$L$6,CONFIGURATION!$B$10,\"BMA\",CONFIGURATION!$B$1,\"bscr\",CONFIGURATION!$B$12)","v":"-"},{"$f":"XBRLMap(H31,$K31,$M$5,$M$6,CONFIGURATION!$B$10,\"BMA\",CONFIGURATION!$B$1,\"bscr\",CONFIGURATION!$B$12)","v":"-"},null,null,null,""]
[null,"4.","INVESTMENTS IN AND ADVANCES TO AFFILIATES (EQUITY METHOD):",null,null,null,null,null,null,null,"",{"$f":"XBRLMap(F32,$K32,$L$5,$L$6,CONFIGURATION!$B$10,\"BMA\",CONFIGURATION!$B$1,\"bscr\",CONFIGURATION!$B$12)","v":"-"},{"$f":"XBRLMap(H32,$K32,$M$5,$M$6,CONFIGURATION!$B$10,\"BMA\",CONFIGURATION!$B$1,\"bscr\",CONFIGURATION!$B$12)","v":"-"}]
[null,"(a)","Unregulated entities that conduct ancillary services",null,null,{"$f":"Import!M117","v":0},null,{"$f":"Import!O117","v":0}]
[null,"(b)","Unregulated non-financial operating entities",null,null,{"$f":"Import!M118","v":0},null,{"$f":"Import!O118","v":0}]
[null,"(c)","Unregulated financial operating entities",null,null,{"$f":"Import!M119","v":0},null,{"$f":"Import!O119","v":0}]
[null,"(d)","Regulated non-insurance financial operating entities",null,null,{"$f":"Import!M120","v":0},null,{"$f":"Import!O120","v":0}]
[null,"(e)","Regulated insurance financial operating entities",null,null,{"$f":"Import!M121","v":0},null,{"$f":"Import!O121","v":0}]
[null,"(f)","Total investments in affiliates (equity method)",null,null,{"$f":"SUM(F33:F37)","v":0},null,{"$f":"SUM(H33:H37)","v":0},null,null,"brrt_InvestmentInAffiliates",{"$f":"XBRLMap(F38,$K38,$L$5,$L$6,CONFIGURATION!$B$10,\"BMA\",CONFIGURATION!$B$1,\"bscr\",CONFIGURATION!$B$12)","v":"Mapped"},{"$f":"XBRLMap(H38,$K38,$M$5,$M$6,CONFIGURATION!$B$10,\"BMA\",CONFIGURATION!$B$1,\"bscr\",CONFIGURATION!$B$12)","v":"Mapped"},null,null,null,"bma_InvestmentsInAndAdvancesToAffiliatesInvestmentInAffiliatesCostOrEquity"]
[null,"(g)","Advances to affiliates",null,null,{"$f":"Import!M122","v":0},null,{"$f":"Import!O122","v":0},null,null,"brrt_AdvancesToAffiliates",{"$f":"XBRLMap(F39,$K39,$L$5,$L$6,CONFIGURATION!$B$10,\"BMA\",CONFIGURATION!$B$1,\"bscr\",CONFIGURATION!$B$12)","v":"Mapped"},{"$f":"XBRLMap(H39,$K39,$M$5,$M$6,CONFIGURATION!$B$10,\"BMA\",CONFIGURATION!$B$1,\"bscr\",CONFIGURATION!$B$12)","v":"Mapped"},null,null,null,"bma_InvestmentsInAndAdvancesToAffiliatesAdvancesToAffiliates"]
[null,"(h)","Total investments in and advances to affiliates (equity method)",null,null,{"$f":"F38+F39","v":0},null,{"$f":"H38+H39","v":0},null,null,"brrt_InvestmentInAndAdvancesToAffiliates",{"$f":"XBRLMap(F40,$K40,$L$5,$L$6,CONFIGURATION!$B$10,\"BMA\",CONFIGURATION!$B$1,\"bscr\",CONFIGURATION!$B$12)","v":"Mapped"},{"$f":"XBRLMap(H40,$K40,$M$5,$M$6,CONFIGURATION!$B$10,\"BMA\",CONFIGURATION!$B$1,\"bscr\",CONFIGURATION!$B$12)","v":"Mapped"},null,null,null,"bma_InvestmentsInAndAdvancesToAffiliatesTotalInvestmentsInAndAdvancesToAffiliates"]
[null,null,null,null,null,null,null,null,null,null,"",{"$f":"XBRLMap(F41,$K41,$L$5,$L$6,CONFIGURATION!$B$10,\"BMA\",CONFIGURATION!$B$1,\"bscr\",CONFIGURATION!$B$12)","v":"-"},{"$f":"XBRLMap(H41,$K41,$M$5,$M$6,CONFIGURATION!$B$10,\"BMA\",CONFIGURATION!$B$1,\"bscr\",CONFIGURATION!$B$12)","v":"-"},null,null,null,""]
[null,"5.","INVESTMENTS IN MORTGAGE LOANS ON REAL ESTATE:",null,null,null,null,null,null,null,"",{"$f":"XBRLMap(F42,$K42,$L$5,$L$6,CONFIGURATION!$B$10,\"BMA\",CONFIGURATION!$B$1,\"bscr\",CONFIGURATION!$B$12)","v":"-"},{"$f":"XBRLMap(H42,$K42,$M$5,$M$6,CONFIGURATION!$B$10,\"BMA\",CONFIGURATION!$B$1,\"bscr\",CONFIGURATION!$B$12)","v":"-"}]
[null,"(a)","First liens",null,null,{"$f":"Import!M123","v":0},null,{"$f":"Import!O123","v":0},null,null,"brrt_InvestmentsInMortgageLoansOnRealEstateFirstLiens",{"$f":"XBRLMap(F43,$K43,$L$5,$L$6,CONFIGURATION!$B$10,\"BMA\",CONFIGURATION!$B$1,\"bscr\",CONFIGURATION!$B$12)","v":"Mapped"},{"$f":"XBRLMap(H43,$K43,$M$5,$M$6,CONFIGURATION!$B$10,\"BMA\",CONFIGURATION!$B$1,\"bscr\",CONFIGURATION!$B$12)","v":"Mapped"},null,null,null,"bma_InvestmentsInMortgageLoansOnRealEstateFirstLiens"]
[null,"(b)","Other than first liens ",null,null,{"$f":"Import!M124","v":0},null,{"$f":"Import!O124","v":0},null,null,"brrt_InvestmentsInMortgageLoansOnRealEstateOtherThanFirstLiens",{"$f":"XBRLMap(F44,$K44,$L$5,$L$6,CONFIGURATION!$B$10,\"BMA\",CONFIGURATION!$B$1,\"bscr\",CONFIGURATION!$B$12)","v":"Mapped"},{"$f":"XBRLMap(H44,$K44,$M$5,$M$6,CONFIGURATION!$B$10,\"BMA\",CONFIGURATION!$B$1,\"bscr\",CONFIGURATION!$B$12)","v":"Mapped"},null,null,null,"bma_InvestmentsInMortgageLoansOnRealEstateOtherThanFirstLiens"]
[null,"(c) ","Total investments in mortgage loans on real estate",null,null,{"$f":"SUM(F43:F44)","v":0},null,{"$f":"SUM(H43:H44)","v":0},null,null,"brrt_InvestmentsInMortgageLoansOnRealEstate",{"$f":"XBRLMap(F45,$K45,$L$5,$L$6,CONFIGURATION!$B$10,\"BMA\",CONFIGURATION!$B$1,\"bscr\",CONFIGURATION!$B$12)","v":"Mapped"},{"$f":"XBRLMap(H45,$K45,$M$5,$M$6,CONFIGURATION!$B$10,\"BMA\",CONFIGURATION!$B$1,\"bscr\",CONFIGURATION!$B$12)","v":"Mapped"},null,null,null,"bma_InvestmentsInMortgageLoansOnRealEstateTotalInvestmentsInMortgageLoansOnRealEstate"]
[null,null,null,null,null,null,null,null,null,null,"",{"$f":"XBRLMap(F46,$K46,$L$5,$L$6,CONFIGURATION!$B$10,\"BMA\",CONFIGURATION!$B$1,\"bscr\",CONFIGURATION!$B$12)","v":"-"},{"$f":"XBRLMap(H46,$K46,$M$5,$M$6,CONFIGURATION!$B$10,\"BMA\",CONFIGURATION!$B$1,\"bscr\",CONFIGURATION!$B$12)","v":"-"},null,null,null,""]
[null,"7.","REAL ESTATE:",null,null,null,null,null,null,null,"",{"$f":"XBRLMap(F47,$K47,$L$5,$L$6,CONFIGURATION!$B$10,\"BMA\",CONFIGURATION!$B$1,\"bscr\",CONFIGURATION!$B$12)","v":"-"},{"$f":"XBRLMap(H47,$K47,$M$5,$M$6,CONFIGURATION!$B$10,\"BMA\",CONFIGURATION!$B$1,\"bscr\",CONFIGURATION!$B$12)","v":"-"}]
[null,"(a)","Occupied by the company (less encumbrances)",null,null,{"$f":"Import!M126","v":0},null,{"$f":"Import!O126","v":0},null,null,"brrt_RealEstateOccupiedByTheCompanyLessEncumbrances",{"$f":"XBRLMap(F48,$K48,$L$5,$L$6,CONFIGURATION!$B$10,\"BMA\",CONFIGURATION!$B$1,\"bscr\",CONFIGURATION!$B$12)","v":"Mapped"},{"$f":"XBRLMap(H48,$K48,$M$5,$M$6,CONFIGURATION!$B$10,\"BMA\",CONFIGURATION!$B$1,\"bscr\",CONFIGURATION!$B$12)","v":"Mapped"},null,null,null,"bma_RealEstateOccupiedByTheCompanyLessEncumbrances"]
[null,"(b)","Other properties (less encumbrances)",null,null,{"$f":"Import!M127","v":0},null,{"$f":"Import!O127","v":0},null,null,"brrt_OtherRealEstatePropertiesLessEncumbrances",{"$f":"XBRLMap(F49,$K49,$L$5,$L$6,CONFIGURATION!$B$10,\"BMA\",CONFIGURATION!$B$1,\"bscr\",CONFIGURATION!$B$12)","v":"Mapped"},{"$f":"XBRLMap(H49,$K49,$M$5,$M$6,CONFIGURATION!$B$10,\"BMA\",CONFIGURATION!$B$1,\"bscr\",CONFIGURATION!$B$12)","v":"Mapped"},null,null,null,"bma_RealEstateOtherPropertiesLessEncumbrances"]
[null,"(c) ","Total real estate",null,null,{"$f":"SUM(F48:F49)","v":0},null,{"$f":"SUM(H48:H49)","v":0},null,null,"brrt_RealEstate",{"$f":"XBRLMap(F50,$K50,$L$5,$L$6,CONFIGURATION!$B$10,\"BMA\",CONFIGURATION!$B$1,\"bscr\",CONFIGURATION!$B$12)","v":"Mapped"},{"$f":"XBRLMap(H50,$K50,$M$5,$M$6,CONFIGURATION!$B$10,\"BMA\",CONFIGURATION!$B$1,\"bscr\",CONFIGURATION!$B$12)","v":"Mapped"},null,null,null,"bma_TotalRealEstate"]
[null,null,null,null,null,null,null,null,null,null,"",{"$f":"XBRLMap(F51,$K51,$L$5,$L$6,CONFIGURATION!$B$10,\"BMA\",CONFIGURATION!$B$1,\"bscr\",CONFIGURATION!$B$12)","v":"-"},{"$f":"XBRLMap(H51,$K51,$M$5,$M$6,CONFIGURATION!$B$10,\"BMA\",CONFIGURATION!$B$1,\"bscr\",CONFIGURATION!$B$12)","v":"-"},null,null,null,""]
[null,"8.","COLLATERAL LOANS",null,null,{"$f":"Import!M128","v":0},null,{"$f":"Import!O128","v":0},null,null,"brrt_CollateralLoans",{"$f":"XBRLMap(F52,$K52,$L$5,$L$6,CONFIGURATION!$B$10,\"BMA\",CONFIGURATION!$B$1,\"bscr\",CONFIGURATION!$B$12)","v":"Mapped"},{"$f":"XBRLMap(H52,$K52,$M$5,$M$6,CONFIGURATION!$B$10,\"BMA\",CONFIGURATION!$B$1,\"bscr\",CONFIGURATION!$B$12)","v":"Mapped"},null,null,null,"bma_CollateralLoans"]
[null,null,null,null,null,null,null,null,null,null,"",{"$f":"XBRLMap(F53,$K53,$L$5,$L$6,CONFIGURATION!$B$10,\"BMA\",CONFIGURATION!$B$1,\"bscr\",CONFIGURATION!$B$12)","v":"-"},{"$f":"XBRLMap(H53,$K53,$M$5,$M$6,CONFIGURATION!$B$10,\"BMA\",CONFIGURATION!$B$1,\"bscr\",CONFIGURATION!$B$12)","v":"-"},null,null,null,""]
[null,"9.","INVESTMENT INCOME DUE AND ACCRUED",null,null,{"$f":"Import!M129","v":0},null,{"$f":"Import!O129","v":0},null,null,"brrt_InvestmentIncomeDueAndAccrued",{"$f":"XBRLMap(F54,$K54,$L$5,$L$6,CONFIGURATION!$B$10,\"BMA\",CONFIGURATION!$B$1,\"bscr\",CONFIGURATION!$B$12)","v":"Mapped"},{"$f":"XBRLMap(H54,$K54,$M$5,$M$6,CONFIGURATION!$B$10,\"BMA\",CONFIGURATION!$B$1,\"bscr\",CONFIGURATION!$B$12)","v":"Mapped"},null,null,null,"bma_InvestmentIncomeDueAndAccrued"]
[null,null,null,null,null,null,null,null,null,null,"",{"$f":"XBRLMap(F55,$K55,$L$5,$L$6,CONFIGURATION!$B$10,\"BMA\",CONFIGURATION!$B$1,\"bscr\",CONFIGURATION!$B$12)","v":"-"},{"$f":"XBRLMap(H55,$K55,$M$5,$M$6,CONFIGURATION!$B$10,\"BMA\",CONFIGURATION!$B$1,\"bscr\",CONFIGURATION!$B$12)","v":"-"},null,null,null,""]
[null,"10.","ACCOUNTS AND PREMIUMS RECEIVABLE:",null,null,null,null,null,null,null,"",{"$f":"XBRLMap(F56,$K56,$L$5,$L$6,CONFIGURATION!$B$10,\"BMA\",CONFIGURATION!$B$1,\"bscr\",CONFIGURATION!$B$12)","v":"-"},{"$f":"XBRLMap(H56,$K56,$M$5,$M$6,CONFIGURATION!$B$10,\"BMA\",CONFIGURATION!$B$1,\"bscr\",CONFIGURATION!$B$12)","v":"-"}]
[null,"(a)","In course of collection",null,null,{"$f":"Import!M130","v":0},null,{"$f":"Import!O130","v":0},null,null,"brrt_AccountsAndPremiumsReceivableInCourseOfCollection",{"$f":"XBRLMap(F57,$K57,$L$5,$L$6,CONFIGURATION!$B$10,\"BMA\",CONFIGURATION!$B$1,\"bscr\",CONFIGURATION!$B$12)","v":"Mapped"},{"$f":"XBRLMap(H57,$K57,$M$5,$M$6,CONFIGURATION!$B$10,\"BMA\",CONFIGURATION!$B$1,\"bscr\",CONFIGURATION!$B$12)","v":"Mapped"},null,null,null,"bma_AccountsAndPremiumsReceivableInCourseOfCollection"]
[null,"(c) ","Receivables from retrocessional contracts",null,null,{"$f":"Import!M132","v":0},null,{"$f":"Import!O132","v":0},null,null,"brrt_AccountsAndPremiumsReceivableReceivablesFromRetrocessionalContracts",{"$f":"XBRLMap(F58,$K58,$L$5,$L$6,CONFIGURATION!$B$10,\"BMA\",CONFIGURATION!$B$1,\"bscr\",CONFIGURATION!$B$12)","v":"Mapped"},{"$f":"XBRLMap(H58,$K58,$M$5,$M$6,CONFIGURATION!$B$10,\"BMA\",CONFIGURATION!$B$1,\"bscr\",CONFIGURATION!$B$12)","v":"Mapped"},null,null,null,"bma_AccountsAndPremiumsReceivableReceivablesFromRetrocessionalContracts"]
[null,"(d) ","Total accounts and premiums receivable",null,null,{"$f":"SUM(F57:F58)","v":0},null,{"$f":"SUM(H57:H58)","v":0},null,null,"brrt_AccountsAndPremiumsReceivable",{"$f":"XBRLMap(F59,$K59,$L$5,$L$6,CONFIGURATION!$B$10,\"BMA\",CONFIGURATION!$B$1,\"bscr\",CONFIGURATION!$B$12)","v":"Mapped"},{"$f":"XBRLMap(H59,$K59,$M$5,$M$6,CONFIGURATION!$B$10,\"BMA\",CONFIGURATION!$B$1,\"bscr\",CONFIGURATION!$B$12)","v":"Mapped"},null,null,null,"bma_TotalAccountsAndPremiumsReceivable"]
[null,null,null,null,null,null,null,null,null,null,"",{"$f":"XBRLMap(F60,$K60,$L$5,$L$6,CONFIGURATION!$B$10,\"BMA\",CONFIGURATION!$B$1,\"bscr\",CONFIGURATION!$B$12)","v":"-"},{"$f":"XBRLMap(H60,$K60,$M$5,$M$6,CONFIGURATION!$B$10,\"BMA\",CONFIGURATION!$B$1,\"bscr\",CONFIGURATION!$B$12)","v":"-"},null,null,null,""]
[null,"11.","REINSURANCE BALANCES RECEIVABLE:",null,null,null,null,null,null,null,"",{"$f":"XBRLMap(F61,$K61,$L$5,$L$6,CONFIGURATION!$B$10,\"BMA\",CONFIGURATION!$B$1,\"bscr\",CONFIGURATION!$B$12)","v":"-"},{"$f":"XBRLMap(H61,$K61,$M$5,$M$6,CONFIGURATION!$B$10,\"BMA\",CONFIGURATION!$B$1,\"bscr\",CONFIGURATION!$B$12)","v":"-"}]
[null,"(a)","Foreign affiliates",null,null,{"$f":"Import!M133","v":0},null,{"$f":"Import!O133","v":0},null,null,"brrt_ReinsuranceBalancesReceivableForeignAffiliates",{"$f":"XBRLMap(F62,$K62,$L$5,$L$6,CONFIGURATION!$B$10,\"BMA\",CONFIGURATION!$B$1,\"bscr\",CONFIGURATION!$B$12)","v":"Mapped"},{"$f":"XBRLMap(H62,$K62,$M$5,$M$6,CONFIGURATION!$B$10,\"BMA\",CONFIGURATION!$B$1,\"bscr\",CONFIGURATION!$B$12)","v":"Mapped"},null,null,null,"bma_ReinsuranceBalancesReceivableForeignAffiliates"]
[null,"(b)","Domestic affiliates",null,null,{"$f":"Import!M134","v":0},null,{"$f":"Import!O134","v":0},null,null,"brrt_ReinsuranceBalancesReceivableDomesticAffiliates",{"$f":"XBRLMap(F63,$K63,$L$5,$L$6,CONFIGURATION!$B$10,\"BMA\",CONFIGURATION!$B$1,\"bscr\",CONFIGURATION!$B$12)","v":"Mapped"},{"$f":"XBRLMap(H63,$K63,$M$5,$M$6,CONFIGURATION!$B$10,\"BMA\",CONFIGURATION!$B$1,\"bscr\",CONFIGURATION!$B$12)","v":"Mapped"},null,null,null,"bma_ReinsuranceBalancesReceivableDomesticAffiliates"]
[null,"(c) ","Pools & associations",null,null,{"$f":"Import!M135","v":0},null,{"$f":"Import!O135","v":0},null,null,"brrt_ReinsuranceBalancesReceivablePoolsAndAssociations",{"$f":"XBRLMap(F64,$K64,$L$5,$L$6,CONFIGURATION!$B$10,\"BMA\",CONFIGURATION!$B$1,\"bscr\",CONFIGURATION!$B$12)","v":"Mapped"},{"$f":"XBRLMap(H64,$K64,$M$5,$M$6,CONFIGURATION!$B$10,\"BMA\",CONFIGURATION!$B$1,\"bscr\",CONFIGURATION!$B$12)","v":"Mapped"},null,null,null,"bma_ReinsuranceBalancesReceivablePoolsAndAssociations"]
[null,"(d) ","All other insurers",null,null,{"$f":"Import!M136","v":0},null,{"$f":"Import!O136","v":0},null,null,"brrt_ReinsuranceBalancesReceivableAllOtherInsurers",{"$f":"XBRLMap(F65,$K65,$L$5,$L$6,CONFIGURATION!$B$10,\"BMA\",CONFIGURATION!$B$1,\"bscr\",CONFIGURATION!$B$12)","v":"Mapped"},{"$f":"XBRLMap(H65,$K65,$M$5,$M$6,CONFIGURATION!$B$10,\"BMA\",CONFIGURATION!$B$1,\"bscr\",CONFIGURATION!$B$12)","v":"Mapped"},null,null,null,"bma_ReinsuranceBalancesReceivableAllOtherInsurers"]
[null,"(e)","Total reinsurance balances receivable",null,null,{"$f":"SUM(F62:F65)","v":0},null,{"$f":"SUM(H62:H65)","v":0},null,null,"brrt_ReinsuranceBalancesReceivable",{"$f":"XBRLMap(F66,$K66,$L$5,$L$6,CONFIGURATION!$B$10,\"BMA\",CONFIGURATION!$B$1,\"bscr\",CONFIGURATION!$B$12)","v":"Mapped"},{"$f":"XBRLMap(H66,$K66,$M$5,$M$6,CONFIGURATION!$B$10,\"BMA\",CONFIGURATION!$B$1,\"bscr\",CONFIGURATION!$B$12)","v":"Mapped"},null,null,null,"bma_TotalReinsuranceBalancesReceivable"]
[null,null,null,null,null,null,null,null,null,null,"",{"$f":"XBRLMap(F67,$K67,$L$5,$L$6,CONFIGURATION!$B$10,\"BMA\",CONFIGURATION!$B$1,\"bscr\",CONFIGURATION!$B$12)","v":"-"},{"$f":"XBRLMap(H67,$K67,$M$5,$M$6,CONFIGURATION!$B$10,\"BMA\",CONFIGURATION!$B$1,\"bscr\",CONFIGURATION!$B$12)","v":"-"},null,null,null,""]
[null,"12.","FUNDS HELD BY CEDING REINSURERS:",null,null,null,null,null,null,null,"",{"$f":"XBRLMap(F68,$K68,$L$5,$L$6,CONFIGURATION!$B$10,\"BMA\",CONFIGURATION!$B$1,\"bscr\",CONFIGURATION!$B$12)","v":"-"},{"$f":"XBRLMap(H68,$K68,$M$5,$M$6,CONFIGURATION!$B$10,\"BMA\",CONFIGURATION!$B$1,\"bscr\",CONFIGURATION!$B$12)","v":"-"}]
[null,"(a)","Affiliated",null,null,{"$f":"Import!M137","v":0},null,{"$f":"Import!O137","v":0},null,null,"brrt_FundsHeldByCedingInsurersAffiliated",{"$f":"XBRLMap(F69,$K69,$L$5,$L$6,CONFIGURATION!$B$10,\"BMA\",CONFIGURATION!$B$1,\"bscr\",CONFIGURATION!$B$12)","v":"Mapped"},{"$f":"XBRLMap(H69,$K69,$M$5,$M$6,CONFIGURATION!$B$10,\"BMA\",CONFIGURATION!$B$1,\"bscr\",CONFIGURATION!$B$12)","v":"Mapped"},null,null,null,"bma_FundsHeldByCedingReinsurersAffiliated"]
[null,"(b)","Non-affiliated",null,null,{"$f":"Import!M138","v":0},null,{"$f":"Import!O138","v":0},null,null,"brrt_FundsHeldByCedingInsurersNonAffiliated",{"$f":"XBRLMap(F70,$K70,$L$5,$L$6,CONFIGURATION!$B$10,\"BMA\",CONFIGURATION!$B$1,\"bscr\",CONFIGURATION!$B$12)","v":"Mapped"},{"$f":"XBRLMap(H70,$K70,$M$5,$M$6,CONFIGURATION!$B$10,\"BMA\",CONFIGURATION!$B$1,\"bscr\",CONFIGURATION!$B$12)","v":"Mapped"},null,null,null,"bma_FundsHeldByCedingReinsurersNonAffiliated"]
[null,"(c)","Total funds held by ceding reinsurers",null,null,{"$f":"SUM(F69:F70)","v":0},null,{"$f":"SUM(H69:H70)","v":0},null,null,"brrt_FundsHeldByCedingReinsurers",{"$f":"XBRLMap(F71,$K71,$L$5,$L$6,CONFIGURATION!$B$10,\"BMA\",CONFIGURATION!$B$1,\"bscr\",CONFIGURATION!$B$12)","v":"Mapped"},{"$f":"XBRLMap(H71,$K71,$M$5,$M$6,CONFIGURATION!$B$10,\"BMA\",CONFIGURATION!$B$1,\"bscr\",CONFIGURATION!$B$12)","v":"Mapped"},null,null,null,"bma_TotalFundsHeldByCedingReinsurers"]
[null,null,null,null,null,null,null,null,null,null,"",{"$f":"XBRLMap(F72,$K72,$L$5,$L$6,CONFIGURATION!$B$10,\"BMA\",CONFIGURATION!$B$1,\"bscr\",CONFIGURATION!$B$12)","v":"-"},{"$f":"XBRLMap(H72,$K72,$M$5,$M$6,CONFIGURATION!$B$10,\"BMA\",CONFIGURATION!$B$1,\"bscr\",CONFIGURATION!$B$12)","v":"-"},null,null,null,""]
[null,"13.","SUNDRY ASSETS:",null,null,null,null,null,null,null,"",{"$f":"XBRLMap(F73,$K73,$L$5,$L$6,CONFIGURATION!$B$10,\"BMA\",CONFIGURATION!$B$1,\"bscr\",CONFIGURATION!$B$12)","v":"-"},{"$f":"XBRLMap(H73,$K73,$M$5,$M$6,CONFIGURATION!$B$10,\"BMA\",CONFIGURATION!$B$1,\"bscr\",CONFIGURATION!$B$12)","v":"-"}]
[null,"(a)","Derivative instruments",null,null,{"$f":"Import!M140","v":0},null,{"$f":"Import!O140","v":0},null,null,"brrt_SundryAssetsDerivativeInstruments",{"$f":"XBRLMap(F74,$K74,$L$5,$L$6,CONFIGURATION!$B$10,\"BMA\",CONFIGURATION!$B$1,\"bscr\",CONFIGURATION!$B$12)","v":"Mapped"},{"$f":"XBRLMap(H74,$K74,$M$5,$M$6,CONFIGURATION!$B$10,\"BMA\",CONFIGURATION!$B$1,\"bscr\",CONFIGURATION!$B$12)","v":"Mapped"},null,null,null,"bma_SundryAssetsDerivativeInstruments"]
[null,"(d)","Segregated accounts companies",null,null,{"$f":"Import!M143","v":0},null,{"$f":"Import!O143","v":0},null,null,"brrt_SundryAssetsSegregatedAccountsCompanies",{"$f":"XBRLMap(F75,$K75,$L$5,$L$6,CONFIGURATION!$B$10,\"BMA\",CONFIGURATION!$B$1,\"bscr\",CONFIGURATION!$B$12)","v":"Mapped"},{"$f":"XBRLMap(H75,$K75,$M$5,$M$6,CONFIGURATION!$B$10,\"BMA\",CONFIGURATION!$B$1,\"bscr\",CONFIGURATION!$B$12)","v":"Mapped"},null,null,null,"bma_SundryAssetsSegregatedAccountsCompanies"]
[null,"(e)","Deposit assets",null,null,{"$f":"Import!M144","v":0},null,{"$f":"Import!O144","v":0},null,null,"brrt_SundryAssetsDepositAssets",{"$f":"XBRLMap(F76,$K76,$L$5,$L$6,CONFIGURATION!$B$10,\"BMA\",CONFIGURATION!$B$1,\"bscr\",CONFIGURATION!$B$12)","v":"Mapped"},{"$f":"XBRLMap(H76,$K76,$M$5,$M$6,CONFIGURATION!$B$10,\"BMA\",CONFIGURATION!$B$1,\"bscr\",CONFIGURATION!$B$12)","v":"Mapped"},null,null,null,"bma_SundryAssetsDepositAssets"]
[null,"(f)","Balances receivable on sale of investments",null,null,{"$f":"Import!M146","v":0},null,{"$f":"Import!O146","v":0}]
[null,"(g)","Intangible assets",null,null,{"$f":"Import!M147","v":0},null,{"$f":"Import!O147","v":0}]
[null,"(h)","Deferred tax Assets",null,null,{"$f":"Import!M148","v":0},null,{"$f":"Import!O148","v":0}]
[null,"(i)","Pension Benefit Surplus",null,null,{"$f":"Import!M149","v":0},null,{"$f":"Import!O149","v":0}]
[null,"(j)",null,null,null,{"$f":"Import!M150","v":0},null,{"$f":"Import!O150","v":0},null,null,"brrt_SundryAssetsOther",{"$f":"XBRLMap(F81,$K81,$L$5,$L$6,CONFIGURATION!$B$10,\"BMA\",CONFIGURATION!$B$1,\"bscr\",CONFIGURATION!$B$12)","v":"Mapped"},{"$f":"XBRLMap(H81,$K81,$M$5,$M$6,CONFIGURATION!$B$10,\"BMA\",CONFIGURATION!$B$1,\"bscr\",CONFIGURATION!$B$12)","v":"Mapped"},null,null,null,"bma_SundryAssetsOther"]
[null,"(k)","Total sundry assets",null,null,{"$f":"SUM(F74:F81)","v":0},null,{"$f":"SUM(H74:H81)","v":0},null,null,"brrt_SundryAssets",{"$f":"XBRLMap(F82,$K82,$L$5,$L$6,CONFIGURATION!$B$10,\"BMA\",CONFIGURATION!$B$1,\"bscr\",CONFIGURATION!$B$12)","v":"Mapped"},{"$f":"XBRLMap(H82,$K82,$M$5,$M$6,CONFIGURATION!$B$10,\"BMA\",CONFIGURATION!$B$1,\"bscr\",CONFIGURATION!$B$12)","v":"Mapped"},null,null,null,"bma_TotalSundryAssets"]
[null,null,null,null,null,null,null,null,null,null,"brrt_SundryAssetsOtherDescription",{"$f":"XBRLMap(C81,$K83,$L$5,$L$6,CONFIGURATION!$B$10,\"BMA\",CONFIGURATION!$B$1,\"bscr\")","v":"Mapped"},null,null,null,null,"bma_SundryAssetsOtherType"]
[null,"14.","LETTERS OF CREDIT, GUARANTEES AND OTHER INSTRUMENTS:",null,null,null,null,null,null,null,"",{"$f":"XBRLMap(F84,$K84,$L$5,$L$6,CONFIGURATION!$B$10,\"BMA\",CONFIGURATION!$B$1,\"bscr\",CONFIGURATION!$B$12)","v":"-"},{"$f":"XBRLMap(H84,$K84,$M$5,$M$6,CONFIGURATION!$B$10,\"BMA\",CONFIGURATION!$B$1,\"bscr\",CONFIGURATION!$B$12)","v":"-"}]
[null,"(a)","Letters of credit ",null,null,{"$f":"Import!M153","v":0},null,{"$f":"Import!O153","v":0},null,null,"brrt_AssetsLettersOfCredit",{"$f":"XBRLMap(F85,$K85,$L$5,$L$6,CONFIGURATION!$B$10,\"BMA\",CONFIGURATION!$B$1,\"bscr\",CONFIGURATION!$B$12)","v":"Mapped"},{"$f":"XBRLMap(H85,$K85,$M$5,$M$6,CONFIGURATION!$B$10,\"BMA\",CONFIGURATION!$B$1,\"bscr\",CONFIGURATION!$B$12)","v":"Mapped"},null,null,null,"bma_AssetsLettersOfCredit"]
[null,"(b)","Guarantees",null,null,{"$f":"Import!M154","v":0},null,{"$f":"Import!O154","v":0},null,null,"brrt_AssetsGuarantees",{"$f":"XBRLMap(F86,$K86,$L$5,$L$6,CONFIGURATION!$B$10,\"BMA\",CONFIGURATION!$B$1,\"bscr\",CONFIGURATION!$B$12)","v":"Mapped"},{"$f":"XBRLMap(H86,$K86,$M$5,$M$6,CONFIGURATION!$B$10,\"BMA\",CONFIGURATION!$B$1,\"bscr\",CONFIGURATION!$B$12)","v":"Mapped"},null,null,null,"bma_AssetsGuarantees"]
[null,"(c) ","Other instruments",null,null,{"$f":"Import!M155","v":0},null,{"$f":"Import!O155","v":0},null,null,"brrt_AssetsOtherInstruments",{"$f":"XBRLMap(F87,$K87,$L$5,$L$6,CONFIGURATION!$B$10,\"BMA\",CONFIGURATION!$B$1,\"bscr\",CONFIGURATION!$B$12)","v":"Mapped"},{"$f":"XBRLMap(H87,$K87,$M$5,$M$6,CONFIGURATION!$B$10,\"BMA\",CONFIGURATION!$B$1,\"bscr\",CONFIGURATION!$B$12)","v":"Mapped"},null,null,null,"bma_AssetsOtherInstruments"]
[null,"(d)","Total letters of credit, guarantees and other instruments",null,null,{"$f":"SUM(F85:F87)","v":0},null,{"$f":"SUM(H85:H87)","v":0},null,null,"brrt_AssetsLettersOfCreditGuaranteesOtherInstruments",{"$f":"XBRLMap(F88,$K88,$L$5,$L$6,CONFIGURATION!$B$10,\"BMA\",CONFIGURATION!$B$1,\"bscr\",CONFIGURATION!$B$12)","v":"Mapped"},{"$f":"XBRLMap(H88,$K88,$M$5,$M$6,CONFIGURATION!$B$10,\"BMA\",CONFIGURATION!$B$1,\"bscr\",CONFIGURATION!$B$12)","v":"Mapped"},null,null,null,"bma_AssetsTotalLettersOfCreditGuaranteesAndOtherInstruments"]
[null,null,null,null,null,null,null,null,null,null,"",{"$f":"XBRLMap(F89,$K89,$L$5,$L$6,CONFIGURATION!$B$10,\"BMA\",CONFIGURATION!$B$1,\"bscr\",CONFIGURATION!$B$12)","v":"-"},{"$f":"XBRLMap(H89,$K89,$M$5,$M$6,CONFIGURATION!$B$10,\"BMA\",CONFIGURATION!$B$1,\"bscr\",CONFIGURATION!$B$12)","v":"-"},null,null,null,""]
[null,"15.","TOTAL",null,null,{"$f":"F10+F20+F30+F40+F45+F50+F52+F54+F59+F66+F71+F82+F88","v":0},null,{"$f":"H10+H20+H30+H40+H45+H50+H52+H54+H59+H66+H71+H82+H88","v":0},null,null,"brrt_Assets",{"$f":"XBRLMap(F90,$K90,$L$5,$L$6,CONFIGURATION!$B$10,\"BMA\",CONFIGURATION!$B$1,\"bscr\",CONFIGURATION!$B$12)","v":"Mapped"},{"$f":"XBRLMap(H90,$K90,$M$5,$M$6,CONFIGURATION!$B$10,\"BMA\",CONFIGURATION!$B$1,\"bscr\",CONFIGURATION!$B$12)","v":"Mapped"},null,null,null,"bma_TotalAssets"]
[]
[null,null,"GENERAL BUSINESS INSURANCE TECHNICAL PROVISIONS, OTHER LIABILITIES ",null,null,null,null,null,null,null,"",{"$f":"XBRLMap(F92,$K92,$L$5,$L$6,CONFIGURATION!$B$10,\"BMA\",CONFIGURATION!$B$1,\"bscr\",CONFIGURATION!$B$12)","v":"-"},{"$f":"XBRLMap(H92,$K92,$M$5,$M$6,CONFIGURATION!$B$10,\"BMA\",CONFIGURATION!$B$1,\"bscr\",CONFIGURATION!$B$12)","v":"-"},null,null,null,""]
[null,null,"AND STATUTORY CAPITAL AND SURPLUS",null,null,null,null,null,null,null,"",{"$f":"XBRLMap(F93,$K93,$L$5,$L$6,CONFIGURATION!$B$10,\"BMA\",CONFIGURATION!$B$1,\"bscr\",CONFIGURATION!$B$12)","v":"-"},{"$f":"XBRLMap(H93,$K93,$M$5,$M$6,CONFIGURATION!$B$10,\"BMA\",CONFIGURATION!$B$1,\"bscr\",CONFIGURATION!$B$12)","v":"-"},null,null,null,""]
[]
[null,null,"GENERAL BUSINESS INSURANCE TECHNICAL PROVISIONS",null,null,null,null,null,null,null,"",{"$f":"XBRLMap(F95,$K95,$L$5,$L$6,CONFIGURATION!$B$10,\"BMA\",CONFIGURATION!$B$1,\"bscr\",CONFIGURATION!$B$12)","v":"-"},{"$f":"XBRLMap(H95,$K95,$M$5,$M$6,CONFIGURATION!$B$10,\"BMA\",CONFIGURATION!$B$1,\"bscr\",CONFIGURATION!$B$12)","v":"-"}]
[null,null,null,null,null,null,null,null,null,null,"",{"$f":"XBRLMap(F96,$K96,$L$5,$L$6,CONFIGURATION!$B$10,\"BMA\",CONFIGURATION!$B$1,\"bscr\",CONFIGURATION!$B$12)","v":"-"},{"$f":"XBRLMap(H96,$K96,$M$5,$M$6,CONFIGURATION!$B$10,\"BMA\",CONFIGURATION!$B$1,\"bscr\",CONFIGURATION!$B$12)","v":"-"},null,null,null,""]
[null,"16.","BEST ESTIMATE PREMIUM PROVISIONS"]
[null,"(a)","Gross premium provisions",null,null,{"$f":"Import!M157","v":0},null,{"$f":"Import!O157","v":0}]
[null,"(b)","Less : Reinsurance recoverable balance"]
[null,null,"  i.   Foreign affiliates",null,null,{"$f":"Import!M158","v":0},null,{"$f":"Import!O158","v":0}]
[null,null,"  ii.  Domestic affiliates",null,null,{"$f":"Import!M159","v":0},null,{"$f":"Import!O159","v":0}]
[null,null,"  iii. Pools & associations",null,null,{"$f":"Import!M160","v":0},null,{"$f":"Import!O160","v":0}]
[null,null,"  iv.  All other insurers",null,null,{"$f":"Import!M161","v":0},null,{"$f":"Import!O161","v":0}]
[null,"(c) ","Total reinsurance recoverable balance",null,null,{"$f":"SUM(F100:F103)","v":0},null,{"$f":"SUM(H100:H103)","v":0}]
[null,"(d) ","Net premium provisions",null,null,{"$f":"F98-F104","v":0},null,{"$f":"H98-H104","v":0},null,null,"brrt_UnearnedPremiums",{"$f":"XBRLMap(F105,$K105,$L$5,$L$6,CONFIGURATION!$B$10,\"BMA\",CONFIGURATION!$B$1,\"bscr\",CONFIGURATION!$B$12)","v":"Mapped"},{"$f":"XBRLMap(H105,$K105,$M$5,$M$6,CONFIGURATION!$B$10,\"BMA\",CONFIGURATION!$B$1,\"bscr\",CONFIGURATION!$B$12)","v":"Mapped"},null,null,null,"bma_UnearnedPremiums"]
[null,null,null,null,null,null,null,null,null,null,"",{"$f":"XBRLMap(F106,$K106,$L$5,$L$6,CONFIGURATION!$B$10,\"BMA\",CONFIGURATION!$B$1,\"bscr\",CONFIGURATION!$B$12)","v":"-"},{"$f":"XBRLMap(H106,$K106,$M$5,$M$6,CONFIGURATION!$B$10,\"BMA\",CONFIGURATION!$B$1,\"bscr\",CONFIGURATION!$B$12)","v":"-"},null,null,null,""]
[null,"17.","BEST ESTIMATE LOSS AND LOSS EXPENSE PROVISIONS:",null,null,null,null,null,null,null,"",{"$f":"XBRLMap(F107,$K107,$L$5,$L$6,CONFIGURATION!$B$10,\"BMA\",CONFIGURATION!$B$1,\"bscr\",CONFIGURATION!$B$12)","v":"-"},{"$f":"XBRLMap(H107,$K107,$M$5,$M$6,CONFIGURATION!$B$10,\"BMA\",CONFIGURATION!$B$1,\"bscr\",CONFIGURATION!$B$12)","v":"-"}]
[null,"(a)","Gross loss and loss expense provisions",null,null,{"$f":"Import!M162","v":0},null,{"$f":"Import!O162","v":0},null,null,"brrt_GrossLossAndLossExpenseProvisions",{"$f":"XBRLMap(F108,$K108,$L$5,$L$6,CONFIGURATION!$B$10,\"BMA\",CONFIGURATION!$B$1,\"bscr\",CONFIGURATION!$B$12)","v":"Mapped"},{"$f":"XBRLMap(H108,$K108,$M$5,$M$6,CONFIGURATION!$B$10,\"BMA\",CONFIGURATION!$B$1,\"bscr\",CONFIGURATION!$B$12)","v":"Mapped"},null,null,null,"bma_GrossLossAndLossExpenseProvisions"]
[null,"(b)","Less : Reinsurance recoverable balance",null,null,null,null,null,null,null,"",{"$f":"XBRLMap(F109,$K109,$L$5,$L$6,CONFIGURATION!$B$10,\"BMA\",CONFIGURATION!$B$1,\"bscr\",CONFIGURATION!$B$12)","v":"-"},{"$f":"XBRLMap(H109,$K109,$M$5,$M$6,CONFIGURATION!$B$10,\"BMA\",CONFIGURATION!$B$1,\"bscr\",CONFIGURATION!$B$12)","v":"-"}]
[null,null,"  i.   Foreign affiliates",null,null,{"$f":"Import!M163","v":0},null,{"$f":"Import!O163","v":0},null,null,"brrt_ReinsuranceRecoverableBalanceForeignAffiliates",{"$f":"XBRLMap(F110,$K110,$L$5,$L$6,CONFIGURATION!$B$10,\"BMA\",CONFIGURATION!$B$1,\"bscr\",CONFIGURATION!$B$12)","v":"Mapped"},{"$f":"XBRLMap(H110,$K110,$M$5,$M$6,CONFIGURATION!$B$10,\"BMA\",CONFIGURATION!$B$1,\"bscr\",CONFIGURATION!$B$12)","v":"Mapped"},null,null,null,"bma_LessReinsuranceRecoverableBalanceForeignAffiliates"]
[null,null,"  ii.  Domestic affiliates",null,null,{"$f":"Import!M164","v":0},null,{"$f":"Import!O164","v":0},null,null,"brrt_ReinsuranceRecoverableBalanceDomesticAffiliates",{"$f":"XBRLMap(F111,$K111,$L$5,$L$6,CONFIGURATION!$B$10,\"BMA\",CONFIGURATION!$B$1,\"bscr\",CONFIGURATION!$B$12)","v":"Mapped"},{"$f":"XBRLMap(H111,$K111,$M$5,$M$6,CONFIGURATION!$B$10,\"BMA\",CONFIGURATION!$B$1,\"bscr\",CONFIGURATION!$B$12)","v":"Mapped"},null,null,null,"bma_LessReinsuranceRecoverableBalanceDomesticAffiliates"]
[null,null,"  iii. Pools & associations",null,null,{"$f":"Import!M165","v":0},null,{"$f":"Import!O165","v":0},null,null,"brrt_ReinsuranceRecoverableBalancePoolsAndAssociations",{"$f":"XBRLMap(F112,$K112,$L$5,$L$6,CONFIGURATION!$B$10,\"BMA\",CONFIGURATION!$B$1,\"bscr\",CONFIGURATION!$B$12)","v":"Mapped"},{"$f":"XBRLMap(H112,$K112,$M$5,$M$6,CONFIGURATION!$B$10,\"BMA\",CONFIGURATION!$B$1,\"bscr\",CONFIGURATION!$B$12)","v":"Mapped"},null,null,null,"bma_LessReinsuranceRecoverableBalancePoolsAndAssociations"]
[null,null,"  iv.  All other insurers",null,null,{"$f":"Import!M166","v":0},null,{"$f":"Import!O166","v":0},null,null,"brrt_OtherInsurersReinsuranceRecoverableBalance",{"$f":"XBRLMap(F113,$K113,$L$5,$L$6,CONFIGURATION!$B$10,\"BMA\",CONFIGURATION!$B$1,\"bscr\",CONFIGURATION!$B$12)","v":"Mapped"},{"$f":"XBRLMap(H113,$K113,$M$5,$M$6,CONFIGURATION!$B$10,\"BMA\",CONFIGURATION!$B$1,\"bscr\",CONFIGURATION!$B$12)","v":"Mapped"},null,null,null,"bma_LessReinsuranceRecoverableBalanceAllOtherInsurers"]
[null,"(c) ","Total reinsurance recoverable balance",null,null,{"$f":"SUM(F110:F113)","v":0},null,{"$f":"SUM(H110:H113)","v":0},null,null,"brrt_ReinsuranceRecoverableBalance",{"$f":"XBRLMap(F114,$K114,$L$5,$L$6,CONFIGURATION!$B$10,\"BMA\",CONFIGURATION!$B$1,\"bscr\",CONFIGURATION!$B$12)","v":"Mapped"},{"$f":"XBRLMap(H114,$K114,$M$5,$M$6,CONFIGURATION!$B$10,\"BMA\",CONFIGURATION!$B$1,\"bscr\",CONFIGURATION!$B$12)","v":"Mapped"},null,null,null,"bma_TotalReinsuranceRecoverableBalance"]
[null,"(d) ","Net loss and loss expense provisions",null,null,{"$f":"F108-F114","v":0},null,{"$f":"H108-H114","v":0},null,null,"brrt_NetLossAndLossExpenseProvisions",{"$f":"XBRLMap(F115,$K115,$L$5,$L$6,CONFIGURATION!$B$10,\"BMA\",CONFIGURATION!$B$1,\"bscr\",CONFIGURATION!$B$12)","v":"Mapped"},{"$f":"XBRLMap(H115,$K115,$M$5,$M$6,CONFIGURATION!$B$10,\"BMA\",CONFIGURATION!$B$1,\"bscr\",CONFIGURATION!$B$12)","v":"Mapped"},null,null,null,"bma_NetLossAndLossExpenseProvisions"]
[null,null,null,null,null,null,null,null,null,null,"",{"$f":"XBRLMap(F116,$K116,$L$5,$L$6,CONFIGURATION!$B$10,\"BMA\",CONFIGURATION!$B$1,\"bscr\",CONFIGURATION!$B$12)","v":"-"},{"$f":"XBRLMap(H116,$K116,$M$5,$M$6,CONFIGURATION!$B$10,\"BMA\",CONFIGURATION!$B$1,\"bscr\",CONFIGURATION!$B$12)","v":"-"},null,null,null,""]
[null,"18.","RISK MARGIN – GENERAL INSURANCE BUSINESS",null,null,{"$f":"Import!M167","v":0},null,{"$f":"Import!O167","v":0},null,null,"brrt_OtherInsuranceReserves",{"$f":"XBRLMap(F117,$K117,$L$5,$L$6,CONFIGURATION!$B$10,\"BMA\",CONFIGURATION!$B$1,\"bscr\",CONFIGURATION!$B$12)","v":"Mapped"},{"$f":"XBRLMap(H117,$K117,$M$5,$M$6,CONFIGURATION!$B$10,\"BMA\",CONFIGURATION!$B$1,\"bscr\",CONFIGURATION!$B$12)","v":"Mapped"},null,null,null,"bma_OtherInsuranceReservesGeneralBusiness"]
[null,null,null,null,null,null,null,null,null,null,"",{"$f":"XBRLMap(F118,$K118,$L$5,$L$6,CONFIGURATION!$B$10,\"BMA\",CONFIGURATION!$B$1,\"bscr\",CONFIGURATION!$B$12)","v":"-"},{"$f":"XBRLMap(H118,$K118,$M$5,$M$6,CONFIGURATION!$B$10,\"BMA\",CONFIGURATION!$B$1,\"bscr\",CONFIGURATION!$B$12)","v":"-"},null,null,null,""]
[null,"19.","TOTAL GENERAL BUSINESS INSURANCE TECHNICAL PROVISIONS",null,null,{"$f":"F105+F115+F117","v":0},null,{"$f":"H105+H115+H117","v":0},null,null,"brrt_InsuranceReserves",{"$f":"XBRLMap(F119,$K119,$L$5,$L$6,CONFIGURATION!$B$10,\"BMA\",CONFIGURATION!$B$1,\"bscr\",CONFIGURATION!$B$12)","v":"Mapped"},{"$f":"XBRLMap(H119,$K119,$M$5,$M$6,CONFIGURATION!$B$10,\"BMA\",CONFIGURATION!$B$1,\"bscr\",CONFIGURATION!$B$12)","v":"Mapped"},null,null,null,"bma_TotalGeneralBusinessInsuranceReserves"]
[null,null,null,null,null,null,null,null,null,null,"",{"$f":"XBRLMap(F120,$K120,$L$5,$L$6,CONFIGURATION!$B$10,\"BMA\",CONFIGURATION!$B$1,\"bscr\",CONFIGURATION!$B$12)","v":"-"},{"$f":"XBRLMap(H120,$K120,$M$5,$M$6,CONFIGURATION!$B$10,\"BMA\",CONFIGURATION!$B$1,\"bscr\",CONFIGURATION!$B$12)","v":"-"},null,null,null,""]
[null,null,"OTHER LIABILITIES",null,null,null,null,null,null,null,"",{"$f":"XBRLMap(F121,$K121,$L$5,$L$6,CONFIGURATION!$B$10,\"BMA\",CONFIGURATION!$B$1,\"bscr\",CONFIGURATION!$B$12)","v":"-"},{"$f":"XBRLMap(H121,$K121,$M$5,$M$6,CONFIGURATION!$B$10,\"BMA\",CONFIGURATION!$B$1,\"bscr\",CONFIGURATION!$B$12)","v":"-"}]
[null,null,null,null,null,null,null,null,null,null,"",{"$f":"XBRLMap(F122,$K122,$L$5,$L$6,CONFIGURATION!$B$10,\"BMA\",CONFIGURATION!$B$1,\"bscr\",CONFIGURATION!$B$12)","v":"-"},{"$f":"XBRLMap(H122,$K122,$M$5,$M$6,CONFIGURATION!$B$10,\"BMA\",CONFIGURATION!$B$1,\"bscr\",CONFIGURATION!$B$12)","v":"-"},null,null,null,""]
[null,"28.","INSURANCE AND REINSURANCE BALANCES PAYABLE",null,null,{"$f":"Import!M186","v":0},null,{"$f":"Import!O186","v":0},null,null,"brrt_InsuranceAndReinsuranceBalancesPayable",{"$f":"XBRLMap(F123,$K123,$L$5,$L$6,CONFIGURATION!$B$10,\"BMA\",CONFIGURATION!$B$1,\"bscr\",CONFIGURATION!$B$12)","v":"Mapped"},{"$f":"XBRLMap(H123,$K123,$M$5,$M$6,CONFIGURATION!$B$10,\"BMA\",CONFIGURATION!$B$1,\"bscr\",CONFIGURATION!$B$12)","v":"Mapped"},null,null,null,"bma_InsuranceAndReinsuranceBalancesPayable"]
[null,null,null,null,null,null,null,null,null,null,"",{"$f":"XBRLMap(F124,$K124,$L$5,$L$6,CONFIGURATION!$B$10,\"BMA\",CONFIGURATION!$B$1,\"bscr\",CONFIGURATION!$B$12)","v":"-"},{"$f":"XBRLMap(H124,$K124,$M$5,$M$6,CONFIGURATION!$B$10,\"BMA\",CONFIGURATION!$B$1,\"bscr\",CONFIGURATION!$B$12)","v":"-"},null,null,null,""]
[null,"29.","COMMISSIONS, EXPENSES, FEES AND TAXES PAYABLE",null,null,{"$f":"Import!M187","v":0},null,{"$f":"Import!O187","v":0},null,null,"brrt_CommissionsExpensesFeesAndTaxesPayable",{"$f":"XBRLMap(F125,$K125,$L$5,$L$6,CONFIGURATION!$B$10,\"BMA\",CONFIGURATION!$B$1,\"bscr\",CONFIGURATION!$B$12)","v":"Mapped"},{"$f":"XBRLMap(H125,$K125,$M$5,$M$6,CONFIGURATION!$B$10,\"BMA\",CONFIGURATION!$B$1,\"bscr\",CONFIGURATION!$B$12)","v":"Mapped"},null,null,null,"bma_CommissionsExpensesFeesAndTaxesPayable"]
[null,null,null,null,null,null,null,null,null,null,"",{"$f":"XBRLMap(F126,$K126,$L$5,$L$6,CONFIGURATION!$B$10,\"BMA\",CONFIGURATION!$B$1,\"bscr\",CONFIGURATION!$B$12)","v":"-"},{"$f":"XBRLMap(H126,$K126,$M$5,$M$6,CONFIGURATION!$B$10,\"BMA\",CONFIGURATION!$B$1,\"bscr\",CONFIGURATION!$B$12)","v":"-"},null,null,null,""]
[null,"30.","LOANS AND NOTES PAYABLE",null,null,{"$f":"Import!M188","v":0},null,{"$f":"Import!O188","v":0},null,null,"brrt_LoansAndNotesPayable",{"$f":"XBRLMap(F127,$K127,$L$5,$L$6,CONFIGURATION!$B$10,\"BMA\",CONFIGURATION!$B$1,\"bscr\",CONFIGURATION!$B$12)","v":"Mapped"},{"$f":"XBRLMap(H127,$K127,$M$5,$M$6,CONFIGURATION!$B$10,\"BMA\",CONFIGURATION!$B$1,\"bscr\",CONFIGURATION!$B$12)","v":"Mapped"},null,null,null,"bma_LoansAndNotesPayable"]
[null,null,null,null,null,null,null,null,null,null,"",{"$f":"XBRLMap(F128,$K128,$L$5,$L$6,CONFIGURATION!$B$10,\"BMA\",CONFIGURATION!$B$1,\"bscr\",CONFIGURATION!$B$12)","v":"-"},{"$f":"XBRLMap(H128,$K128,$M$5,$M$6,CONFIGURATION!$B$10,\"BMA\",CONFIGURATION!$B$1,\"bscr\",CONFIGURATION!$B$12)","v":"-"},null,null,null,""]
[null,"31.","TAX LIABILITIES"]
[null,"(a)","Income taxes payable",null,null,{"$f":"Import!M189","v":0},null,{"$f":"Import!O189","v":0},null,null,"brrt_IncomeTaxesPayable",{"$f":"XBRLMap(F130,$K130,$L$5,$L$6,CONFIGURATION!$B$10,\"BMA\",CONFIGURATION!$B$1,\"bscr\",CONFIGURATION!$B$12)","v":"Mapped"},{"$f":"XBRLMap(H130,$K130,$M$5,$M$6,CONFIGURATION!$B$10,\"BMA\",CONFIGURATION!$B$1,\"bscr\",CONFIGURATION!$B$12)","v":"Mapped"},null,null,null,"bma_IncomeTaxesPayable"]
[null,"(b)","Deferred income taxes",null,null,{"$f":"Import!M190","v":0},null,{"$f":"Import!O190","v":0},null,null,"brrt_DeferredIncomeTaxes",{"$f":"XBRLMap(F131,$K131,$L$5,$L$6,CONFIGURATION!$B$10,\"BMA\",CONFIGURATION!$B$1,\"bscr\",CONFIGURATION!$B$12)","v":"Mapped"},{"$f":"XBRLMap(H131,$K131,$M$5,$M$6,CONFIGURATION!$B$10,\"BMA\",CONFIGURATION!$B$1,\"bscr\",CONFIGURATION!$B$12)","v":"Mapped"},null,null,null,"bma_DeferredIncomeTaxes"]
[null,null,null,null,null,null,null,null,null,null,"",{"$f":"XBRLMap(F132,$K132,$L$5,$L$6,CONFIGURATION!$B$10,\"BMA\",CONFIGURATION!$B$1,\"bscr\",CONFIGURATION!$B$12)","v":"-"},{"$f":"XBRLMap(H132,$K132,$M$5,$M$6,CONFIGURATION!$B$10,\"BMA\",CONFIGURATION!$B$1,\"bscr\",CONFIGURATION!$B$12)","v":"-"},null,null,null,""]
[null,"32.","AMOUNTS DUE TO AFFILIATES",null,null,{"$f":"Import!M191","v":0},null,{"$f":"Import!O191","v":0},null,null,"brrt_AmountsDueToAffiliates",{"$f":"XBRLMap(F133,$K133,$L$5,$L$6,CONFIGURATION!$B$10,\"BMA\",CONFIGURATION!$B$1,\"bscr\",CONFIGURATION!$B$12)","v":"Mapped"},{"$f":"XBRLMap(H133,$K133,$M$5,$M$6,CONFIGURATION!$B$10,\"BMA\",CONFIGURATION!$B$1,\"bscr\",CONFIGURATION!$B$12)","v":"Mapped"},null,null,null,"bma_AmountsDueToAffiliates"]
[null,null,null,null,null,null,null,null,null,null,"",{"$f":"XBRLMap(F134,$K134,$L$5,$L$6,CONFIGURATION!$B$10,\"BMA\",CONFIGURATION!$B$1,\"bscr\",CONFIGURATION!$B$12)","v":"-"},{"$f":"XBRLMap(H134,$K134,$M$5,$M$6,CONFIGURATION!$B$10,\"BMA\",CONFIGURATION!$B$1,\"bscr\",CONFIGURATION!$B$12)","v":"-"},null,null,null,""]
[null,"33.","ACCOUNTS PAYABLE AND ACCRUED LIABILITIES",null,null,{"$f":"Import!M192","v":0},null,{"$f":"Import!O192","v":0},null,null,"brrt_AccountsPayableAndAccruedLiabilities",{"$f":"XBRLMap(F135,$K135,$L$5,$L$6,CONFIGURATION!$B$10,\"BMA\",CONFIGURATION!$B$1,\"bscr\",CONFIGURATION!$B$12)","v":"Mapped"},{"$f":"XBRLMap(H135,$K135,$M$5,$M$6,CONFIGURATION!$B$10,\"BMA\",CONFIGURATION!$B$1,\"bscr\",CONFIGURATION!$B$12)","v":"Mapped"},null,null,null,"bma_AccountsPayableAndAccruedLiabilities"]
[null,null,null,null,null,null,null,null,null,null,"",{"$f":"XBRLMap(F136,$K136,$L$5,$L$6,CONFIGURATION!$B$10,\"BMA\",CONFIGURATION!$B$1,\"bscr\",CONFIGURATION!$B$12)","v":"-"},{"$f":"XBRLMap(H136,$K136,$M$5,$M$6,CONFIGURATION!$B$10,\"BMA\",CONFIGURATION!$B$1,\"bscr\",CONFIGURATION!$B$12)","v":"-"},null,null,null,""]
[null,"34.","FUNDS HELD UNDER REINSURANCE CONTRACTS:",null,null,null,null,null,null,null,"",{"$f":"XBRLMap(F137,$K137,$L$5,$L$6,CONFIGURATION!$B$10,\"BMA\",CONFIGURATION!$B$1,\"bscr\",CONFIGURATION!$B$12)","v":"-"},{"$f":"XBRLMap(H137,$K137,$M$5,$M$6,CONFIGURATION!$B$10,\"BMA\",CONFIGURATION!$B$1,\"bscr\",CONFIGURATION!$B$12)","v":"-"}]
[null,"(a)","Affiliated",null,null,{"$f":"Import!M193","v":0},null,{"$f":"Import!O193","v":0},null,null,"brrt_FundsHeldUnderReinsuranceContractsAffiliated",{"$f":"XBRLMap(F138,$K138,$L$5,$L$6,CONFIGURATION!$B$10,\"BMA\",CONFIGURATION!$B$1,\"bscr\",CONFIGURATION!$B$12)","v":"Mapped"},{"$f":"XBRLMap(H138,$K138,$M$5,$M$6,CONFIGURATION!$B$10,\"BMA\",CONFIGURATION!$B$1,\"bscr\",CONFIGURATION!$B$12)","v":"Mapped"},null,null,null,"bma_FundsHeldUnderReinsuranceContractsAffiliated"]
[null,"(b)","Non-affiliated",null,null,{"$f":"Import!M194","v":0},null,{"$f":"Import!O194","v":0},null,null,"brrt_FundsHeldUnderReinsuranceContractsNonAffiliated",{"$f":"XBRLMap(F139,$K139,$L$5,$L$6,CONFIGURATION!$B$10,\"BMA\",CONFIGURATION!$B$1,\"bscr\",CONFIGURATION!$B$12)","v":"Mapped"},{"$f":"XBRLMap(H139,$K139,$M$5,$M$6,CONFIGURATION!$B$10,\"BMA\",CONFIGURATION!$B$1,\"bscr\",CONFIGURATION!$B$12)","v":"Mapped"},null,null,null,"bma_FundsHeldUnderReinsuranceContractsNonAffiliated"]
[null,"(c)","Total funds held under reinsurance contracts",null,null,{"$f":"SUM(F138:F139)","v":0},null,{"$f":"SUM(H138:H139)","v":0},null,null,"brrt_FundsHeldUnderReinsuranceContracts",{"$f":"XBRLMap(F140,$K140,$L$5,$L$6,CONFIGURATION!$B$10,\"BMA\",CONFIGURATION!$B$1,\"bscr\",CONFIGURATION!$B$12)","v":"Mapped"},{"$f":"XBRLMap(H140,$K140,$M$5,$M$6,CONFIGURATION!$B$10,\"BMA\",CONFIGURATION!$B$1,\"bscr\",CONFIGURATION!$B$12)","v":"Mapped"},null,null,null,"bma_TotalFundsHeldUnderReinsuranceContracts"]
[null,null,null,null,null,null,null,null,null,null,"",{"$f":"XBRLMap(F141,$K141,$L$5,$L$6,CONFIGURATION!$B$10,\"BMA\",CONFIGURATION!$B$1,\"bscr\",CONFIGURATION!$B$12)","v":"-"},{"$f":"XBRLMap(H141,$K141,$M$5,$M$6,CONFIGURATION!$B$10,\"BMA\",CONFIGURATION!$B$1,\"bscr\",CONFIGURATION!$B$12)","v":"-"},null,null,null,""]
[null,"35.","DIVIDENDS PAYABLE",null,null,{"$f":"Import!M196","v":0},null,{"$f":"Import!O196","v":0},null,null,"brrt_DividendsPayable",{"$f":"XBRLMap(F142,$K142,$L$5,$L$6,CONFIGURATION!$B$10,\"BMA\",CONFIGURATION!$B$1,\"bscr\",CONFIGURATION!$B$12)","v":"Mapped"},{"$f":"XBRLMap(H142,$K142,$M$5,$M$6,CONFIGURATION!$B$10,\"BMA\",CONFIGURATION!$B$1,\"bscr\",CONFIGURATION!$B$12)","v":"Mapped"},null,null,null,"bma_DividendsPayable"]
[null,null,null,null,null,null,null,null,null,null,"",{"$f":"XBRLMap(F143,$K143,$L$5,$L$6,CONFIGURATION!$B$10,\"BMA\",CONFIGURATION!$B$1,\"bscr\",CONFIGURATION!$B$12)","v":"-"},{"$f":"XBRLMap(H143,$K143,$M$5,$M$6,CONFIGURATION!$B$10,\"BMA\",CONFIGURATION!$B$1,\"bscr\",CONFIGURATION!$B$12)","v":"-"},null,null,null,""]
[null,"36.","SUNDRY LIABILITIES:",null,null,null,null,null,null,null,"",{"$f":"XBRLMap(F144,$K144,$L$5,$L$6,CONFIGURATION!$B$10,\"BMA\",CONFIGURATION!$B$1,\"bscr\",CONFIGURATION!$B$12)","v":"-"},{"$f":"XBRLMap(H144,$K144,$M$5,$M$6,CONFIGURATION!$B$10,\"BMA\",CONFIGURATION!$B$1,\"bscr\",CONFIGURATION!$B$12)","v":"-"}]
[null,"(a)","Derivative instruments – held for hedging purposes",null,null,{"$f":"Import!M197","v":0},null,{"$f":"Import!O197","v":0},null,null,"brrt_SundryLiabilitiesDerivativeInstruments",{"$f":"XBRLMap(F145,$K145,$L$5,$L$6,CONFIGURATION!$B$10,\"BMA\",CONFIGURATION!$B$1,\"bscr\",CONFIGURATION!$B$12)","v":"Mapped"},{"$f":"XBRLMap(H145,$K145,$M$5,$M$6,CONFIGURATION!$B$10,\"BMA\",CONFIGURATION!$B$1,\"bscr\",CONFIGURATION!$B$12)","v":"Mapped"},null,null,null,"bma_SundryLiabilitiesDerivativeInstruments"]
[null,"(b)","Derivative instruments – not held for hedging purposes",null,null,{"$f":"Import!M198","v":0},null,{"$f":"Import!O198","v":0}]
[null,"(e)","Segregated accounts companies",null,null,{"$f":"Import!M199","v":0},null,{"$f":"Import!O199","v":0},null,null,"brrt_SundryLiabilitiesSegregatedAccountsCompanies",{"$f":"XBRLMap(F147,$K147,$L$5,$L$6,CONFIGURATION!$B$10,\"BMA\",CONFIGURATION!$B$1,\"bscr\",CONFIGURATION!$B$12)","v":"Mapped"},{"$f":"XBRLMap(H147,$K147,$M$5,$M$6,CONFIGURATION!$B$10,\"BMA\",CONFIGURATION!$B$1,\"bscr\",CONFIGURATION!$B$12)","v":"Mapped"},null,null,null,"bma_SundryLiabilitiesSegregatedAccountsCompanies"]
[null,"(f)","Deposit liabilities",null,null,{"$f":"Import!M200","v":0},null,{"$f":"Import!O200","v":0},null,null,"brrt_SundryLiabilitiesDepositLiabilities",{"$f":"XBRLMap(F148,$K148,$L$5,$L$6,CONFIGURATION!$B$10,\"BMA\",CONFIGURATION!$B$1,\"bscr\",CONFIGURATION!$B$12)","v":"Mapped"},{"$f":"XBRLMap(H148,$K148,$M$5,$M$6,CONFIGURATION!$B$10,\"BMA\",CONFIGURATION!$B$1,\"bscr\",CONFIGURATION!$B$12)","v":"Mapped"},null,null,null,"bma_SundryLiabilitiesDepositLiabilities"]
[null,"(g)","Pension benefit obligations",null,null,{"$f":"Import!M201","v":0},null,{"$f":"Import!O201","v":0}]
[null,"(h)","Balances payable for purchase of investments",null,null,{"$f":"Import!M202","v":0},null,{"$f":"Import!O202","v":0}]
[null,"(i)",null,null,null,{"$f":"Import!M203","v":0},null,{"$f":"Import!O203","v":0},null,null,"brrt_SundryLiabilitiesOther",{"$f":"XBRLMap(F151,$K151,$L$5,$L$6,CONFIGURATION!$B$10,\"BMA\",CONFIGURATION!$B$1,\"bscr\",CONFIGURATION!$B$12)","v":"Mapped"},{"$f":"XBRLMap(H151,$K151,$M$5,$M$6,CONFIGURATION!$B$10,\"BMA\",CONFIGURATION!$B$1,\"bscr\",CONFIGURATION!$B$12)","v":"Mapped"},null,null,null,"bma_SundryLiabilitiesOther"]
[null,"(j)","Total sundry liabilities",null,null,{"$f":"SUM(F145:F151)","v":0},null,{"$f":"SUM(H145:H151)","v":0},null,null,"brrt_SundryLiabilities",{"$f":"XBRLMap(F152,$K152,$L$5,$L$6,CONFIGURATION!$B$10,\"BMA\",CONFIGURATION!$B$1,\"bscr\",CONFIGURATION!$B$12)","v":"Mapped"},{"$f":"XBRLMap(H152,$K152,$M$5,$M$6,CONFIGURATION!$B$10,\"BMA\",CONFIGURATION!$B$1,\"bscr\",CONFIGURATION!$B$12)","v":"Mapped"},null,null,null,"bma_TotalSundryLiabilities"]
[null,null,null,null,null,null,null,null,null,null,"brrt_SundryLiabilitiesOtherDescription",{"$f":"XBRLMap(C151,$K153,$L$5,$L$6,CONFIGURATION!$B$10,\"BMA\",CONFIGURATION!$B$1,\"bscr\")","v":"Mapped"},null,null,null,null,"bma_SundryLiabilitiesOtherType"]
[null,"37.","LETTERS OF CREDIT, GUARANTEES AND OTHER INSTRUMENTS:",null,null,null,null,null,null,null,"",{"$f":"XBRLMap(F154,$K154,$L$5,$L$6,CONFIGURATION!$B$10,\"BMA\",CONFIGURATION!$B$1,\"bscr\",CONFIGURATION!$B$12)","v":"-"},{"$f":"XBRLMap(H154,$K154,$M$5,$M$6,CONFIGURATION!$B$10,\"BMA\",CONFIGURATION!$B$1,\"bscr\",CONFIGURATION!$B$12)","v":"-"}]
[null,"(a)","Letters of credit ",null,null,{"$f":"Import!M206","v":0},null,{"$f":"Import!O206","v":0},null,null,"brrt_LiabilitiesLettersOfCredit",{"$f":"XBRLMap(F155,$K155,$L$5,$L$6,CONFIGURATION!$B$10,\"BMA\",CONFIGURATION!$B$1,\"bscr\",CONFIGURATION!$B$12)","v":"Mapped"},{"$f":"XBRLMap(H155,$K155,$M$5,$M$6,CONFIGURATION!$B$10,\"BMA\",CONFIGURATION!$B$1,\"bscr\",CONFIGURATION!$B$12)","v":"Mapped"},null,null,null,"bma_LiabilitiesLettersOfCredit"]
[null,"(b)","Guarantees",null,null,{"$f":"Import!M207","v":0},null,{"$f":"Import!O207","v":0},null,null,"brrt_LiabilitiesGuarantees",{"$f":"XBRLMap(F156,$K156,$L$5,$L$6,CONFIGURATION!$B$10,\"BMA\",CONFIGURATION!$B$1,\"bscr\",CONFIGURATION!$B$12)","v":"Mapped"},{"$f":"XBRLMap(H156,$K156,$M$5,$M$6,CONFIGURATION!$B$10,\"BMA\",CONFIGURATION!$B$1,\"bscr\",CONFIGURATION!$B$12)","v":"Mapped"},null,null,null,"bma_LiabilitiesGuarantees"]
[null,"(c) ","Other instruments",null,null,{"$f":"Import!M208","v":0},null,{"$f":"Import!O208","v":0},null,null,"brrt_LiabilitiesOtherInstruments",{"$f":"XBRLMap(F157,$K157,$L$5,$L$6,CONFIGURATION!$B$10,\"BMA\",CONFIGURATION!$B$1,\"bscr\",CONFIGURATION!$B$12)","v":"Mapped"},{"$f":"XBRLMap(H157,$K157,$M$5,$M$6,CONFIGURATION!$B$10,\"BMA\",CONFIGURATION!$B$1,\"bscr\",CONFIGURATION!$B$12)","v":"Mapped"},null,null,null,"bma_LiabilitiesOtherInstruments"]
[null,"(d)","Total letters of credit, guarantees and other instruments",null,null,{"$f":"SUM(F155:F157)","v":0},null,{"$f":"SUM(H155:H157)","v":0},null,null,"brrt_LiabilitiesLettersOfCreditGuaranteesAndOtherInstruments",{"$f":"XBRLMap(F158,$K158,$L$5,$L$6,CONFIGURATION!$B$10,\"BMA\",CONFIGURATION!$B$1,\"bscr\",CONFIGURATION!$B$12)","v":"Mapped"},{"$f":"XBRLMap(H158,$K158,$M$5,$M$6,CONFIGURATION!$B$10,\"BMA\",CONFIGURATION!$B$1,\"bscr\",CONFIGURATION!$B$12)","v":"Mapped"},null,null,null,"bma_LiabilitiesTotalLettersOfCreditGuaranteesAndOtherInstruments"]
[null,null,null,null,null,null,null,null,null,null,"",{"$f":"XBRLMap(F159,$K159,$L$5,$L$6,CONFIGURATION!$B$10,\"BMA\",CONFIGURATION!$B$1,\"bscr\",CONFIGURATION!$B$12)","v":"-"},{"$f":"XBRLMap(H159,$K159,$M$5,$M$6,CONFIGURATION!$B$10,\"BMA\",CONFIGURATION!$B$1,\"bscr\",CONFIGURATION!$B$12)","v":"-"},null,null,null,""]
[null,null,null,null,null,null,null,null,null,null,"",{"$f":"XBRLMap(F160,$K160,$L$5,$L$6,CONFIGURATION!$B$10,\"BMA\",CONFIGURATION!$B$1,\"bscr\",CONFIGURATION!$B$12)","v":"-"},{"$f":"XBRLMap(H160,$K160,$M$5,$M$6,CONFIGURATION!$B$10,\"BMA\",CONFIGURATION!$B$1,\"bscr\",CONFIGURATION!$B$12)","v":"-"},null,null,null,""]
[null,"38.","TOTAL OTHER LIABILITIES",null,null,{"$f":"F123+F125+F127+F130+F131+F133+F135+F140+F142+F152+F158","v":0},null,{"$f":"H123+H125+H127+H130+H131+H133+H135+H140+H142+H152+H158","v":0},null,null,"brrt_OtherLiabilities",{"$f":"XBRLMap(F161,$K161,$L$5,$L$6,CONFIGURATION!$B$10,\"BMA\",CONFIGURATION!$B$1,\"bscr\",CONFIGURATION!$B$12)","v":"Mapped"},{"$f":"XBRLMap(H161,$K161,$M$5,$M$6,CONFIGURATION!$B$10,\"BMA\",CONFIGURATION!$B$1,\"bscr\",CONFIGURATION!$B$12)","v":"Mapped"},null,null,null,"bma_TotalOtherLiabilities"]
[null,null,null,null,null,null,null,null,null,null,"",{"$f":"XBRLMap(F162,$K162,$L$5,$L$6,CONFIGURATION!$B$10,\"BMA\",CONFIGURATION!$B$1,\"bscr\",CONFIGURATION!$B$12)","v":"-"},{"$f":"XBRLMap(H162,$K162,$M$5,$M$6,CONFIGURATION!$B$10,\"BMA\",CONFIGURATION!$B$1,\"bscr\",CONFIGURATION!$B$12)","v":"-"},null,null,null,""]
[null,"39.","TOTAL INSURANCE TECHNICAL PROVISIONS AND OTHER LIABILITIES",null,null,{"$f":"F119+F161","v":0},null,{"$f":"H119+H161","v":0},null,null,"brrt_InsuranceReservesAndOtherLiabilities",{"$f":"XBRLMap(F163,$K163,$L$5,$L$6,CONFIGURATION!$B$10,\"BMA\",CONFIGURATION!$B$1,\"bscr\",CONFIGURATION!$B$12)","v":"Mapped"},{"$f":"XBRLMap(H163,$K163,$M$5,$M$6,CONFIGURATION!$B$10,\"BMA\",CONFIGURATION!$B$1,\"bscr\",CONFIGURATION!$B$12)","v":"Mapped"},null,null,null,"bma_TotalGeneralBusinessInsuranceReservesAndOtherLiabilities"]
[null,null,null,null,null,null,null,null,null,null,"",{"$f":"XBRLMap(F164,$K164,$L$5,$L$6,CONFIGURATION!$B$10,\"BMA\",CONFIGURATION!$B$1,\"bscr\",CONFIGURATION!$B$12)","v":"-"},{"$f":"XBRLMap(H164,$K164,$M$5,$M$6,CONFIGURATION!$B$10,\"BMA\",CONFIGURATION!$B$1,\"bscr\",CONFIGURATION!$B$12)","v":"-"},null,null,null,""]
[null,null,"STATUTORY ECONOMIC CAPITAL AND SURPLUS",null,null,null,null,null,null,null,"",{"$f":"XBRLMap(F165,$K165,$L$5,$L$6,CONFIGURATION!$B$10,\"BMA\",CONFIGURATION!$B$1,\"bscr\",CONFIGURATION!$B$12)","v":"-"},{"$f":"XBRLMap(H165,$K165,$M$5,$M$6,CONFIGURATION!$B$10,\"BMA\",CONFIGURATION!$B$1,\"bscr\",CONFIGURATION!$B$12)","v":"-"}]
[null,null,null,null,null,null,null,null,null,null,"",{"$f":"XBRLMap(F166,$K166,$L$5,$L$6,CONFIGURATION!$B$10,\"BMA\",CONFIGURATION!$B$1,\"bscr\",CONFIGURATION!$B$12)","v":"-"},{"$f":"XBRLMap(H166,$K166,$M$5,$M$6,CONFIGURATION!$B$10,\"BMA\",CONFIGURATION!$B$1,\"bscr\",CONFIGURATION!$B$12)","v":"-"},null,null,null,""]
[null,"40.","TOTAL STATUTORY ECONOMIC CAPITAL AND SURPLUS ",null,null,{"$f":"Import!M209","v":0},null,{"$f":"Import!O209","v":0},null,null,null,null,null,null,null,null,"bma_TotalStatutoryCapitalAndSurplus"]
[null,null,null,null,null,null,null,null,null,null,"",{"$f":"XBRLMap(F168,$K168,$L$5,$L$6,CONFIGURATION!$B$10,\"BMA\",CONFIGURATION!$B$1,\"bscr\",CONFIGURATION!$B$12)","v":"-"},{"$f":"XBRLMap(H168,$K168,$M$5,$M$6,CONFIGURATION!$B$10,\"BMA\",CONFIGURATION!$B$1,\"bscr\",CONFIGURATION!$B$12)","v":"-"},null,null,null,""]
[null,"41.","TOTAL",null,null,{"$f":"F163+F167","v":0},null,{"$f":"H163+H167","v":0},null,null,"brrt_Liabilities",{"$f":"XBRLMap(F169,$K169,$L$5,$L$6,CONFIGURATION!$B$10,\"BMA\",CONFIGURATION!$B$1,\"bscr\",CONFIGURATION!$B$12)","v":"Mapped"},{"$f":"XBRLMap(H169,$K169,$M$5,$M$6,CONFIGURATION!$B$10,\"BMA\",CONFIGURATION!$B$1,\"bscr\",CONFIGURATION!$B$12)","v":"Mapped"},null,null,null,"bma_TotalLiabilities"]
[null,null,null,null,null,null,null,null,null,null,"",{"$f":"XBRLMap(F170,$K170,$L$5,$L$6,CONFIGURATION!$B$10,\"BMA\",CONFIGURATION!$B$1,\"bscr\",CONFIGURATION!$B$12)","v":"-"},{"$f":"XBRLMap(H170,$K170,$M$5,$M$6,CONFIGURATION!$B$10,\"BMA\",CONFIGURATION!$B$1,\"bscr\",CONFIGURATION!$B$12)","v":"-"},null,null,null,""]
[null,null,null,null,null,{"$f":"IF(F172=\"TRUE\",HYPERLINK(\"#'Form 1EBS'!F90\",\"TRUE\"),HYPERLINK(\"#'Form 1EBS'!F90\",\"FALSE\"))","v":"TRUE"},null,{"$f":"IF(H172=\"TRUE\",HYPERLINK(\"#'Form 1EBS'!H90\",\"TRUE\"),HYPERLINK(\"#'Form 1EBS'!H90\",\"FALSE\"))","v":"TRUE"},null,"CHECK","",{"$f":"XBRLMap(F171,$K171,$L$5,$L$6,CONFIGURATION!$B$10,\"BMA\",CONFIGURATION!$B$1,\"bscr\",CONFIGURATION!$B$12)","v":"-"},{"$f":"XBRLMap(H171,$K171,$M$5,$M$6,CONFIGURATION!$B$10,\"BMA\",CONFIGURATION!$B$1,\"bscr\",CONFIGURATION!$B$12)","v":"-"},null,null,null,""]
[null,null,null,null,null,{"$f":"IF(ROUND((F90-F169),0)=0,\"TRUE\",\"FALSE\")","v":"TRUE"},null,{"$f":"IF(ROUND((H90-H169),0)=0,\"TRUE\",\"FALSE\")","v":"TRUE"},null,null,"",{"$f":"XBRLMap(F172,$K172,$L$5,$L$6,CONFIGURATION!$B$10,\"BMA\",CONFIGURATION!$B$1,\"bscr\",CONFIGURATION!$B$12)","v":"-"},{"$f":"XBRLMap(H172,$K172,$M$5,$M$6,CONFIGURATION!$B$10,\"BMA\",CONFIGURATION!$B$1,\"bscr\",CONFIGURATION!$B$12)","v":"-"},null,null,null,""]
[null,null,null,null,null,{"$f":"ROUND(F90-F169,0)","v":0},null,{"$f":"ROUND(H90-H169,0)","v":0},null,null,"",{"$f":"XBRLMap(F173,$K173,$L$5,$L$6,CONFIGURATION!$B$10,\"BMA\",CONFIGURATION!$B$1,\"bscr\",CONFIGURATION!$B$12)","v":"-"},{"$f":"XBRLMap(H173,$K173,$M$5,$M$6,CONFIGURATION!$B$10,\"BMA\",CONFIGURATION!$B$1,\"bscr\",CONFIGURATION!$B$12)","v":"-"}]
[]
[null,null,null,null,null,{"$f":"IF(F171=\"False\",\"Line 15 does not equal Line 41\",\"\")","v":""},null,{"$f":"IF(H171=\"False\",\"Line 15 does not equal Line 41\",\"\")","v":""}]
[]
[null,"Notes to Form 1EBS"]
[null,null,null,"Additional Details"]
[null,"Line 10 ","Collateralized balances",null,null,{"$f":"Import!M289","v":0},null,null,null,null,"brrt_CollateralizedBalances",{"$f":"XBRLMap(F179,$K179,$L$5,$L$6,CONFIGURATION!$B$10,\"BMA\",CONFIGURATION!$B$1,\"bscr\",CONFIGURATION!$B$12)","v":"Mapped"},{"$f":"XBRLMap(H179,$K179,$M$5,$M$6,CONFIGURATION!$B$10,\"BMA\",CONFIGURATION!$B$1,\"bscr\",CONFIGURATION!$B$12)","v":"Mapped"},null,null,null,"bma_CollateralizedBalances"]
[null,"Line 11(e)","Collateralized balances",null,null,{"$f":"Import!M290","v":0}]
[null,"Line 17(c)-(ii)","Collateral placed in favor of the insurer ",{"$f":"HYPERLINK(\"#'Attachments'!G225\",\"Attach file\")","v":"Attach file"},null,{"$f":"Import!M291","v":0}]
[null,"Line 13(j)","Any other assets",{"$f":"HYPERLINK(\"#'Attachments'!G225\",\"Attach file\")","v":"Attach file"},null,{"$f":"Import!M292","v":0}]
[null,"Line 36(i)","Other sundry liabilities",{"$f":"HYPERLINK(\"#'Attachments'!G225\",\"Attach file\")","v":"Attach file"},null,{"$f":"Import!M364","v":0}]
[null,null,null,null,null,null,null,null,null,null,"",{"$f":"XBRLMap(F184,$K184,$L$5,$L$6,CONFIGURATION!$B$10,\"BMA\",CONFIGURATION!$B$1,\"bscr\",CONFIGURATION!$B$12)","v":"-"},{"$f":"XBRLMap(H184,$K184,$M$5,$M$6,CONFIGURATION!$B$10,\"BMA\",CONFIGURATION!$B$1,\"bscr\",CONFIGURATION!$B$12)","v":"-"},null,null,null,""]
[null,"Line 15","Encumbered assets for policyholder obligations",null,null,null,null,null,null,null,null,null,null,null,null,null,"bma_GrossLossAndLossExpenseProvisionsAtBeginningOfYear"]
[null,null,null,null,null,null,null,null,null,null,"brrt_EncumberedAssetsAxis_brrt_EncumberedAssetsForPolicyholderObligationsMember",null,null,null,null,null,""]
[null,null,"Asset",null,null,null,null,null,null,null,null,null,null,null,null,null,"bma_LessReinsuranceRecoverableAtBeginningOfYear"]
[null,null,"                Cash and cash equivalents",null,null,{"$f":"Import!M293","v":0},null,{"$f":"Import!O293","v":0},null,null,"brrt_CashAmountOfEncumbrance",{"$f":"XBRLMap(F188,$K188&\".\"&$K$186,$L$5,$L$6,CONFIGURATION!$B$10,\"BMA\",CONFIGURATION!$B$1,\"bscr\",CONFIGURATION!$B$12)","v":"Mapped"},{"$f":"XBRLMap(H188,$K188&\".\"&$K$186,$M$5,$M$6,CONFIGURATION!$B$10,\"BMA\",CONFIGURATION!$B$1,\"bscr\",CONFIGURATION!$B$12)","v":"Mapped"},null,null,null,""]
[null,null,"                Total quoted investments",null,null,{"$f":"Import!M294","v":0},null,{"$f":"Import!O294","v":0},null,null,"brrt_QuotedInvestmentsAmountOfEncumbrance",{"$f":"XBRLMap(F189,$K189&\".\"&$K$186,$L$5,$L$6,CONFIGURATION!$B$10,\"BMA\",CONFIGURATION!$B$1,\"bscr\",CONFIGURATION!$B$12)","v":"Mapped"},{"$f":"XBRLMap(H189,$K189&\".\"&$K$186,$M$5,$M$6,CONFIGURATION!$B$10,\"BMA\",CONFIGURATION!$B$1,\"bscr\",CONFIGURATION!$B$12)","v":"Mapped"},null,null,null,"bma_NetLossAndLossExpenseProvisionsAtBeginningOfYear"]
[null,null,"                Total unquoted investments",null,null,{"$f":"Import!M295","v":0},null,{"$f":"Import!O295","v":0},null,null,"brrt_UnquotedInvestmentsAmountOfEncumbrance",{"$f":"XBRLMap(F190,$K190&\".\"&$K$186,$L$5,$L$6,CONFIGURATION!$B$10,\"BMA\",CONFIGURATION!$B$1,\"bscr\",CONFIGURATION!$B$12)","v":"Mapped"},{"$f":"XBRLMap(H190,$K190&\".\"&$K$186,$M$5,$M$6,CONFIGURATION!$B$10,\"BMA\",CONFIGURATION!$B$1,\"bscr\",CONFIGURATION!$B$12)","v":"Mapped"},null,null,null,""]
[null,null,"                Funds held by ceding reinsurers",null,null,{"$f":"F71","v":0},null,{"$f":"H71","v":0},null,null,"brrt_FundsHeldByCedingReinsurersAmountOfEncumbrance",{"$f":"XBRLMap(F191,$K191&\".\"&$K$186,$L$5,$L$6,CONFIGURATION!$B$10,\"BMA\",CONFIGURATION!$B$1,\"bscr\",CONFIGURATION!$B$12)","v":"Mapped"},{"$f":"XBRLMap(H191,$K191&\".\"&$K$186,$M$5,$M$6,CONFIGURATION!$B$10,\"BMA\",CONFIGURATION!$B$1,\"bscr\",CONFIGURATION!$B$12)","v":"Mapped"}]
[null,null,"                Other assets",null,null,{"$f":"Import!M297","v":0},null,{"$f":"Import!O297","v":0},null,null,"brrt_OtherAssetsTypesAmountOfEncumbrance",{"$f":"XBRLMap(F192,$K192&\".\"&$K$186,$L$5,$L$6,CONFIGURATION!$B$10,\"BMA\",CONFIGURATION!$B$1,\"bscr\",CONFIGURATION!$B$12)","v":"Mapped"},{"$f":"XBRLMap(H192,$K192&\".\"&$K$186,$M$5,$M$6,CONFIGURATION!$B$10,\"BMA\",CONFIGURATION!$B$1,\"bscr\",CONFIGURATION!$B$12)","v":"Mapped"},null,null,null,""]
[null,null,"                Total encumbered assets",null,null,{"$f":"SUM(F188:F192)","v":0},null,{"$f":"SUM(H188:H192)","v":0},null,null,"brrt_AssetsEncumberedAmountOfEncumbrance",{"$f":"XBRLMap(F193,$K193&\".\"&$K$186,$L$5,$L$6,CONFIGURATION!$B$10,\"BMA\",CONFIGURATION!$B$1,\"bscr\",CONFIGURATION!$B$12)","v":"Mapped"},{"$f":"XBRLMap(H193,$K193&\".\"&$K$186,$M$5,$M$6,CONFIGURATION!$B$10,\"BMA\",CONFIGURATION!$B$1,\"bscr\",CONFIGURATION!$B$12)","v":"Mapped"},null,null,null,"bma_NetLossesIncurredAndNetLossExpensesIncurredRelatedToCurrentYear"]
[null,null,null,null,null,null,null,null,null,null,null,null,null,null,null,null,"bma_NetLossesIncurredAndNetLossExpensesIncurredRelatedToPriorYears"]
[null,"Line 15","Encumbered assets not securing policyholder obligations",null,null,null,null,null,null,null,"brrt_EncumberedAssetsAxis_brrt_EncumberedAssetsNotSecuringPolicyholderObligationsMember",null,null,null,null,null,""]
[null,null,null,null,null,null,null,null,null,null,null,null,null,null,null,null,"bma_TotalNetIncurredLossesAndLossExpenses"]
[null,null,"Asset","Purpose of Encumbrance",null,null,null,null,null,null,null,null,null,null,null,null,""]
[null,null,"                Cash and cash equivalents",null,null,{"$f":"Import!M299","v":0},null,{"$f":"Import!O299","v":0},null,"brrt_CashPurposeOfEncumbrance","brrt_CashAmountOfEncumbrance",{"$f":"XBRLMap(F198,$K198&\".\"&$K$195,$L$5,$L$6,CONFIGURATION!$B$10,\"BMA\",CONFIGURATION!$B$1,\"bscr\",CONFIGURATION!$B$12)","v":"Mapped"},{"$f":"XBRLMap(H198,$K198&\".\"&$K$195,$M$5,$M$6,CONFIGURATION!$B$10,\"BMA\",CONFIGURATION!$B$1,\"bscr\",CONFIGURATION!$B$12)","v":"Mapped"},{"$f":"XBRLMap(D198,$J198&\".\"&$K$195,$L$5,$L$6,CONFIGURATION!$B$10,\"BMA\",CONFIGURATION!$B$1,\"bscr\",CONFIGURATION!$B$12)","v":"Mapped"}]
[null,null,"                Total quoted investments",null,null,{"$f":"Import!M300","v":0},null,{"$f":"Import!O300","v":0},null,"brrt_QuotedInvestmentsPurposeOfEncumbrance","brrt_QuotedInvestmentsAmountOfEncumbrance",{"$f":"XBRLMap(F199,$K199&\".\"&$K$195,$L$5,$L$6,CONFIGURATION!$B$10,\"BMA\",CONFIGURATION!$B$1,\"bscr\",CONFIGURATION!$B$12)","v":"Mapped"},{"$f":"XBRLMap(H199,$K199&\".\"&$K$195,$M$5,$M$6,CONFIGURATION!$B$10,\"BMA\",CONFIGURATION!$B$1,\"bscr\",CONFIGURATION!$B$12)","v":"Mapped"},{"$f":"XBRLMap(D199,$J199&\".\"&$K$195,$L$5,$L$6,CONFIGURATION!$B$10,\"BMA\",CONFIGURATION!$B$1,\"bscr\",CONFIGURATION!$B$12)","v":"Mapped"},null,null,""]
[null,null,"                Total unquoted investments",null,null,{"$f":"Import!M301","v":0},null,{"$f":"Import!O301","v":0},null,"brrt_UnquotedInvestmentsPurposeOfEncumbrance","brrt_UnquotedInvestmentsAmountOfEncumbrance",{"$f":"XBRLMap(F200,$K200&\".\"&$K$195,$L$5,$L$6,CONFIGURATION!$B$10,\"BMA\",CONFIGURATION!$B$1,\"bscr\",CONFIGURATION!$B$12)","v":"Mapped"},{"$f":"XBRLMap(H200,$K200&\".\"&$K$195,$M$5,$M$6,CONFIGURATION!$B$10,\"BMA\",CONFIGURATION!$B$1,\"bscr\",CONFIGURATION!$B$12)","v":"Mapped"},{"$f":"XBRLMap(D200,$J200&\".\"&$K$195,$L$5,$L$6,CONFIGURATION!$B$10,\"BMA\",CONFIGURATION!$B$1,\"bscr\",CONFIGURATION!$B$12)","v":"Mapped"},null,null,"bma_NetLossesAndLossExpensesPaidOrPayableRelatedToCurrentYear"]
[null,null,"                Other assets",null,null,{"$f":"Import!M302","v":0},null,{"$f":"Import!O302","v":0},null,"brrt_OtherAssetsTypesPurposeOfEncumbrance","brrt_OtherAssetsTypesAmountOfEncumbrance",{"$f":"XBRLMap(F201,$K201&\".\"&$K$195,$L$5,$L$6,CONFIGURATION!$B$10,\"BMA\",CONFIGURATION!$B$1,\"bscr\",CONFIGURATION!$B$12)","v":"Mapped"},{"$f":"XBRLMap(H201,$K201&\".\"&$K$195,$M$5,$M$6,CONFIGURATION!$B$10,\"BMA\",CONFIGURATION!$B$1,\"bscr\",CONFIGURATION!$B$12)","v":"Mapped"},{"$f":"XBRLMap(D201,$J201&\".\"&$K$195,$L$5,$L$6,CONFIGURATION!$B$10,\"BMA\",CONFIGURATION!$B$1,\"bscr\",CONFIGURATION!$B$12)","v":"Mapped"},null,null,"bma_NetLossesAndLossExpensesPaidOrPayableRelatedToPriorYears"]
[null,null,"                Total encumbered assets",null,null,{"$f":"SUM(F198:F201)","v":0},null,{"$f":"SUM(H198:H201)","v":0},null,null,"brrt_AssetsEncumberedAmountOfEncumbrance",{"$f":"XBRLMap(F202,$K202&\".\"&$K$195,$L$5,$L$6,CONFIGURATION!$B$10,\"BMA\",CONFIGURATION!$B$1,\"bscr\",CONFIGURATION!$B$12)","v":"Mapped"},{"$f":"XBRLMap(H202,$K202&\".\"&$K$195,$M$5,$M$6,CONFIGURATION!$B$10,\"BMA\",CONFIGURATION!$B$1,\"bscr\",CONFIGURATION!$B$12)","v":"Mapped"},null,null,null,""]
[null,null,null,null,null,null,null,null,null,null,null,{"$f":"XBRLMap(F203,$K202,$L$5,$L$6,CONFIGURATION!$B$10,\"BMA\",CONFIGURATION!$B$1,\"bscr\",CONFIGURATION!$B$12)","v":"Mapped"},{"$f":"XBRLMap(H203,$K202,$M$5,$M$6,CONFIGURATION!$B$10,\"BMA\",CONFIGURATION!$B$1,\"bscr\",CONFIGURATION!$B$12)","v":"Mapped"},null,null,null,"bma_TotalLossesAndLossExpensesPaidOrPayable"]
[null,"Line 13(e) ","Details of business treated under deposit accounting techniques as a asset",{"$f":"IF('Company Information'!$F$11=\"Class 3A\",HYPERLINK(\"#'Attachments'!G115\",\"Attach file\"),HYPERLINK(\"#'Attachments'!G165\",\"Attach file\"))","v":"Attach file"},null,{"$f":"Import!M365","v":0}]
[null,"Line 36(f)","Details of business treated under deposit accounting techniques as a liability",{"$f":"IF('Company Information'!$F$11=\"Class 3A\",HYPERLINK(\"#'Attachments'!G115\",\"Attach file\"),HYPERLINK(\"#'Attachments'!G165\",\"Attach file\"))","v":"Attach file"},null,{"$f":"Import!M304","v":0}]
[null,"Line 37","Details of the basis used to derive the amounts disclosed",{"$f":"IF('Company Information'!$F$11=\"Class 3A\",HYPERLINK(\"#'Attachments'!G115\",\"Attach file\"),HYPERLINK(\"#'Attachments'!G165\",\"Attach file\"))","v":"Attach file"},null,{"$f":"Import!M305","v":0}]
[null,"Line 40","Reconciliation between Line 40 of 1EBS and Line 40 of Form 1SFS",{"$f":"HYPERLINK(\"#'Schedule V(g)'!A1\",\"Refer to Schedule V(g)\")","v":"Refer to Schedule V(g)"},null,{"$f":"Import!M366","v":0}]
[null,null,null,null,null,null,null,null,null,null,null,{"$f":"XBRLMap(F208,$K207,$L$5,$L$6,CONFIGURATION!$B$10,\"BMA\",CONFIGURATION!$B$1,\"bscr\",CONFIGURATION!$B$12)","v":"-"},{"$f":"XBRLMap(H208,$K207,$M$5,$M$6,CONFIGURATION!$B$10,\"BMA\",CONFIGURATION!$B$1,\"bscr\",CONFIGURATION!$B$12)","v":"-"},null,null,null,"bma_TotalLossesAndLossExpensesPaidOrPayable"]
[null,null,"General Business Provisions Additional Disclosures","Additional Details"]
[null,"Line 16(c) ","Adjustment for counterparty default ",{"$f":"IF('Company Information'!$F$11=\"Class 3A\",HYPERLINK(\"#'Attachments'!G125\",\"Attach file With Details of Line Of Business\"),HYPERLINK(\"#'Attachments'!G175\",\"Attach file With Details of Line Of Business\"))","v":"Attach file With Details of Line Of Business"},null,{"$f":"Import!M367","v":0}]
[null,"Line 17(c)-(i)","Adjustment for counterparty default ",{"$f":"IF('Company Information'!$F$11=\"Class 3A\",HYPERLINK(\"#'Attachments'!G125\",\"Attach file\"),HYPERLINK(\"#'Attachments'!G175\",\"Attach file\"))","v":"Attach file"},null,{"$f":"Import!M368","v":0}]
[null,"Line 16(d)-(i)","Premium included as Bound But Not Incepted","See and complete Sch III (EBS)",null,{"$f":"Import!M369","v":0},null,{"$f":"'Schedule III (EBS)'!J34","v":0}]
[null,"Line 16(d)-(ii)","Best estimate Premium included as Bound But Not Incepted","See and complete Sch III (EBS)",null,{"$f":"Import!M370","v":0},null,{"$f":"'Schedule III (EBS)'!K34","v":0}]
[null,"Line 17(d)-(i)","Loss and loss expense provision discount","See and complete Sch III (EBS)",null,{"$f":"Import!M371","v":0},null,{"$f":"'Schedule III (EBS)'!L34","v":0}]
[null,"Line 17(d)-(ii)","Scenario based approach loss and loss expense provision ",{"$f":"IF('Company Information'!$F$11=\"Class 3A\",HYPERLINK(\"#'Attachments'!G125\",\"Attach file With Details\"),HYPERLINK(\"#'Attachments'!G175\",\"Attach file With Details\"))","v":"Attach file With Details"},null,{"$f":"Import!M372","v":0}]
[]
[null,null,"General Business Reserves:"]
[null,"Line 17","Net best estimate loss and loss expense provisions at start of year",null,null,{"$f":"Import!M373","v":0},null,{"$f":"Import!O373","v":0},null,null,"brrt_GrossLossAndLossExpenseProvisions",{"$f":"XBRLMap(F218,$K218,$L$5,$L$5,CONFIGURATION!$B$10,\"BMA\",CONFIGURATION!$B$1,\"bscr\",CONFIGURATION!$B$12)","v":"Mapped"},{"$f":"XBRLMap(H218,$K218,$M$5,$M$5,CONFIGURATION!$B$10,\"BMA\",CONFIGURATION!$B$1,\"bscr\",CONFIGURATION!$B$12)","v":"Mapped"},null,null,null,""]
[null,null,null,null,null,null,null,null,null,null,"",{"$f":"XBRLMap(F219,$K219,$L$5,$L$6,CONFIGURATION!$B$10,\"BMA\",CONFIGURATION!$B$1,\"bscr\",CONFIGURATION!$B$12)","v":"-"},{"$f":"XBRLMap(H219,$K219,$M$5,$M$6,CONFIGURATION!$B$10,\"BMA\",CONFIGURATION!$B$1,\"bscr\",CONFIGURATION!$B$12)","v":"-"},null,null,null,"bma_ForeignExchangeAndOther"]
[null,null,"Unwind of discount (start year discount curve)",null,null,{"$f":"Import!M374","v":0},null,{"$f":"Import!O374","v":0},null,null,"brrt_NetLossAndLossExpenseProvisions",{"$f":"XBRLMap(F220,$K220,$L$5,$L$5,CONFIGURATION!$B$10,\"BMA\",CONFIGURATION!$B$1,\"bscr\",CONFIGURATION!$B$12)","v":"Mapped"},{"$f":"XBRLMap(H220,$K220,$M$5,$M$5,CONFIGURATION!$B$10,\"BMA\",CONFIGURATION!$B$1,\"bscr\",CONFIGURATION!$B$12)","v":"Mapped"},null,null,null,""]
[null,null,"Net losses and loss expenses paid or payable related to prior years",null,null,{"$f":"Import!M375","v":0},null,{"$f":"Import!O375","v":0},null,null,"brrt_ReinsuranceRecoverable",{"$f":"XBRLMap(F221,$K221,$L$5,$L$5,CONFIGURATION!$B$10,\"BMA\",CONFIGURATION!$B$1,\"bscr\",CONFIGURATION!$B$12)","v":"Mapped"},{"$f":"XBRLMap(H221,$K221,$M$5,$M$5,CONFIGURATION!$B$10,\"BMA\",CONFIGURATION!$B$1,\"bscr\",CONFIGURATION!$B$12)","v":"Mapped"},null,null,null,""]
[null,null,"Net losses incurred and net loss expenses incurred related to prior years",null,null,{"$f":"Import!M376","v":0},null,{"$f":"Import!O376","v":0},null,null,"",{"$f":"XBRLMap(F222,$K222,$L$5,$L$6,CONFIGURATION!$B$10,\"BMA\",CONFIGURATION!$B$1,\"bscr\",CONFIGURATION!$B$12)","v":"-"},{"$f":"XBRLMap(H222,$K222,$M$5,$M$6,CONFIGURATION!$B$10,\"BMA\",CONFIGURATION!$B$1,\"bscr\",CONFIGURATION!$B$12)","v":"-"},null,null,null,""]
[null,null,"Undiscounted net best estimate loss and loss expense provisions at end of year related to prior years.",null,null,{"$f":"SUM(F218:F222)","v":0},null,{"$f":"SUM(H218:H222)","v":0},null,null,"",{"$f":"XBRLMap(F223,$K223,$L$5,$L$6,CONFIGURATION!$B$10,\"BMA\",CONFIGURATION!$B$1,\"bscr\",CONFIGURATION!$B$12)","v":"-"},{"$f":"XBRLMap(H223,$K223,$M$5,$M$6,CONFIGURATION!$B$10,\"BMA\",CONFIGURATION!$B$1,\"bscr\",CONFIGURATION!$B$12)","v":"-"},null,null,null,"bma_GrossLossAndLossExpenseProvisionsAtEndOfYear"]
[null,null,null,null,null,null,null,null,null,null,"brrt_NetLossesAndNetLossExpensesIncurredRelatedToCurrentYear",{"$f":"XBRLMap(F224,$K224,$L$5,$L$6,CONFIGURATION!$B$10,\"BMA\",CONFIGURATION!$B$1,\"bscr\",CONFIGURATION!$B$12)","v":"Mapped"},{"$f":"XBRLMap(H224,$K224,$M$5,$M$6,CONFIGURATION!$B$10,\"BMA\",CONFIGURATION!$B$1,\"bscr\",CONFIGURATION!$B$12)","v":"Mapped"},null,null,null,""]
[null,null,"Net losses incurred and net loss expenses incurred related to current year",null,null,{"$f":"Import!M378","v":0},null,{"$f":"Import!O378","v":0},null,null,"brrt_NetLossesAndNetLossExpensesIncurredRelatedToPriorYears",{"$f":"XBRLMap(F225,$K225,$L$5,$L$6,CONFIGURATION!$B$10,\"BMA\",CONFIGURATION!$B$1,\"bscr\",CONFIGURATION!$B$12)","v":"Mapped"},{"$f":"XBRLMap(H225,$K225,$M$5,$M$6,CONFIGURATION!$B$10,\"BMA\",CONFIGURATION!$B$1,\"bscr\",CONFIGURATION!$B$12)","v":"Mapped"}]
[null,null,"Net losses and loss expenses paid or payable related to current year",null,null,{"$f":"Import!M379","v":0},null,{"$f":"Import!O379","v":0},null,null,"",{"$f":"XBRLMap(F226,$K226,$L$5,$L$6,CONFIGURATION!$B$10,\"BMA\",CONFIGURATION!$B$1,\"bscr\",CONFIGURATION!$B$12)","v":"-"},{"$f":"XBRLMap(H226,$K226,$M$5,$M$6,CONFIGURATION!$B$10,\"BMA\",CONFIGURATION!$B$1,\"bscr\",CONFIGURATION!$B$12)","v":"-"}]
[null,null,"Foreign exchange and other adjustments",null,null,{"$f":"Import!M380","v":0},null,{"$f":"Import!O380","v":0},null,null,"",{"$f":"XBRLMap(F227,$K227,$L$5,$L$6,CONFIGURATION!$B$10,\"BMA\",CONFIGURATION!$B$1,\"bscr\",CONFIGURATION!$B$12)","v":"-"},{"$f":"XBRLMap(H227,$K227,$M$5,$M$6,CONFIGURATION!$B$10,\"BMA\",CONFIGURATION!$B$1,\"bscr\",CONFIGURATION!$B$12)","v":"-"},null,null,null,"bma_NetLossAndLossExpenseProvisionsAtEndOfYear"]
[null,null,"Undiscounted net best estimate loss and loss expense provisions at end of year related to current year.",null,null,{"$f":"SUM(F225:F227)","v":0},null,{"$f":"SUM(H225:H227)","v":0},null,null,"brrt_NetIncurredLossesAndLossExpenses",{"$f":"XBRLMap(F228,$K228,$L$5,$L$6,CONFIGURATION!$B$10,\"BMA\",CONFIGURATION!$B$1,\"bscr\",CONFIGURATION!$B$12)","v":"Mapped"},{"$f":"XBRLMap(H228,$K228,$M$5,$M$6,CONFIGURATION!$B$10,\"BMA\",CONFIGURATION!$B$1,\"bscr\",CONFIGURATION!$B$12)","v":"Mapped"}]
[null,null,null,null,null,null,null,null,null,null,"",{"$f":"XBRLMap(F229,$K229,$L$5,$L$6,CONFIGURATION!$B$10,\"BMA\",CONFIGURATION!$B$1,\"bscr\",CONFIGURATION!$B$12)","v":"-"},{"$f":"XBRLMap(H229,$K229,$M$5,$M$6,CONFIGURATION!$B$10,\"BMA\",CONFIGURATION!$B$1,\"bscr\",CONFIGURATION!$B$12)","v":"-"}]
[null,null,"Impact of change in discount curve",null,null,{"$f":"Import!M382","v":0},null,{"$f":"Import!O382","v":0},null,null,"",{"$f":"XBRLMap(F230,$K230,$L$5,$L$6,CONFIGURATION!$B$10,\"BMA\",CONFIGURATION!$B$1,\"bscr\",CONFIGURATION!$B$12)","v":"-"},{"$f":"XBRLMap(H230,$K230,$M$5,$M$6,CONFIGURATION!$B$10,\"BMA\",CONFIGURATION!$B$1,\"bscr\",CONFIGURATION!$B$12)","v":"-"},null,null,null,"bma_AddReinsuranceRecoverableAtEndOfYear"]
[null,null,null,null,null,null,null,null,null,null,"",{"$f":"XBRLMap(F231,$K231,$L$5,$L$6,CONFIGURATION!$B$10,\"BMA\",CONFIGURATION!$B$1,\"bscr\",CONFIGURATION!$B$12)","v":"-"},{"$f":"XBRLMap(H231,$K231,$M$5,$M$6,CONFIGURATION!$B$10,\"BMA\",CONFIGURATION!$B$1,\"bscr\",CONFIGURATION!$B$12)","v":"-"}]
[null,null,"Net best estimate loss and loss expense provisions at end of year",null,null,{"$f":"F223+F228+F230","v":0},null,{"$f":"H223+H228+H230","v":0},null,null,"brrt_GrossLossAndLossExpenseProvisions",{"$f":"XBRLMap(F232,$K232,$L$6,$L$6,CONFIGURATION!$B$10,\"BMA\",CONFIGURATION!$B$1,\"bscr\",CONFIGURATION!$B$12)","v":"Mapped"},{"$f":"XBRLMap(H232,$K232,$M$6,$M$6,CONFIGURATION!$B$10,\"BMA\",CONFIGURATION!$B$1,\"bscr\",CONFIGURATION!$B$12)","v":"Mapped"}]
[null,null,null,null,null,null,null,null,null,"",""]
[null,null,null,null,null,{"$f":"IF(F235=\"TRUE\",HYPERLINK(\"#'Form 1EBS'!F115\",\"TRUE\"),HYPERLINK(\"#'Form 1EBS'!F115\",\"FALSE\"))","v":"TRUE"},null,{"$f":"IF(H235=\"TRUE\",HYPERLINK(\"#'Form 1EBS'!H115\",\"TRUE\"),HYPERLINK(\"#'Form 1EBS'!H115\",\"FALSE\"))","v":"TRUE"},null,null,""]
[null,null,null,null,null,{"$f":"IF(ROUND((F232-F115),0)=0,\"TRUE\",\"FALSE\")","v":"TRUE"},null,{"$f":"IF(ROUND((H232-H115),0)=0,\"TRUE\",\"FALSE\")","v":"TRUE"}]
[null,null,null,null,null,{"$f":"IF(F232=0,0,ROUND(F115-F232,0))","v":0},null,{"$f":"IF(H232=0,0,ROUND(H115-H232,0))","v":0}]
[]
[null,null,null,null,null,{"$f":"IF(F234=\"False\",\"Does not equal Line 17(d)\",\"\")","v":""},null,{"$f":"IF(H234=\"False\",\"Does not equal Line 17(d)\",\"\")","v":""}]

{"sheet":"Schedule II","index":20,"n_rows":115,"n_cols":28,"rows_kept":115,"cut":false,"hidden":false,"merged":[[51,3,51,5],[51,8,51,18],[52,11,52,13],[52,15,52,17],[54,3,54,5],[1,2,1,4],[2,3,2,5],[3,3,3,5],[6,3,6,5],[6,7,6,9],[6,19,6,21],[28,3,28,5],[28,7,28,9],[28,11,28,13],[28,19,28,21],[6,15,6,17],[6,11,6,13]]}
[null,"SCHEDULE OF FIXED INCOME & EQUITY INVESTMENTS BY BSCR RATING",null,null,null,null,null,null,null,null,null,null,null,null,null,null,null,null,null,null,null,{"$f":"HYPERLINK(\"#'Index'!A1\",\"Return to Index\")","v":"Return to Index"}]
[null,null,{"$f":"'Company Information'!C7","v":"Enter Company Name"}]
[null,null,"As at",{"$f":"'Company Information'!C3","v":"2019-12-31"},null,null,null,null,null,null,null,null,null,null,null,null,null,null,null,null,null,"SCHEDULE II"]
[null,null,{"$f":"\"expressed in\"& IF(CONFIGURATION!$B$12>1,\" ['\"&MID(CONFIGURATION!$B$12,2,LEN(CONFIGURATION!$B$12))&\"s]\",\"\")","v":"expressed in ['000s]"},{"$f":"'Form 1EBS'!C4","v":"United States Dollars"}]
[]
[null,null,null,"(1)",null,"(2)",null,"(3)",null,"(4)",null,"(5)",null,"(6)",null,"(7)",null,"(8)",null,"(9)",null,"(10)"]
[null,null,null,"CORPORATE & SOVEREIGN BONDS",null,null,null,"RESIDENTIAL MORTGAGE-BACKED SECURITIES",null,null,null,"COMMERCIAL MORTGAGE-BACKED SECURITIES / ASSET-BACKED SECURITIES",null,null,null,"BOND MUTUAL FUNDS",null,null,null,"TOTAL\n[ Form 1SFS Lines 2(b) & 3(b)]"]
[null,null,null,{"$f":"+'Form 1EBS'!$F$7","v":"2019-12-31"},null,{"$f":"+'Form 1EBS'!$H$7","v":"2018-12-31"},null,{"$f":"+'Form 1EBS'!$F$7","v":"2019-12-31"},null,{"$f":"+'Form 1EBS'!$H$7","v":"2018-12-31"},null,{"$f":"+'Form 1EBS'!$F$7","v":"2019-12-31"},null,{"$f":"+'Form 1EBS'!$H$7","v":"2018-12-31"},null,{"$f":"+'Form 1EBS'!$F$7","v":"2019-12-31"},null,{"$f":"+'Form 1EBS'!$H$7","v":"2018-12-31"},null,{"$f":"+'Form 1EBS'!$F$7","v":"2019-12-31"},null,{"$f":"+'Form 1EBS'!$H$7","v":"2018-12-31"}]
[null,null,null,{"$f":"+'Form 1EBS'!$F$8","v":" ('000s)"},null,{"$f":"+'Form 1EBS'!$H$8","v":" ('000s)"},null,{"$f":"+'Form 1EBS'!$F$8","v":" ('000s)"},null,{"$f":"+'Form 1EBS'!$H$8","v":" ('000s)"},null,{"$f":"+'Form 1EBS'!$F$8","v":" ('000s)"},null,{"$f":"+'Form 1EBS'!$H$8","v":" ('000s)"},null,{"$f":"+'Form 1EBS'!$F$8","v":" ('000s)"},null,{"$f":"+'Form 1EBS'!$H$8","v":" ('000s)"},null,{"$f":"+'Form 1EBS'!$F$8","v":" ('000s)"},null,{"$f":"+'Form 1EBS'!$H$8","v":" ('000s)"}]
[null,"Line no. "]
[null,"Quoted and Unquoted Bonds and Debentures"]
[null,1,"BSCR Rating 0",{"$f":"Import!E478","v":0},null,{"$f":"Import!G478","v":0},null,null,null,null,null,null,null,null,null,{"$f":"Import!E503","v":0},null,{"$f":"Import!G503","v":0},null,{"$f":"D12+H12+L12+P12","v":0},null,{"$f":"F12+J12+N12+R12","v":0},null,null,"brrt_RiskGradeAxis_brrt_BSCRRating0Member"]
[null,2,"BSCR Rating 1",{"$f":"Import!E479","v":0},null,{"$f":"Import!G479","v":0},null,{"$f":"Import!E487","v":0},null,{"$f":"Import!G487","v":0},null,{"$f":"Import!E495","v":0},null,{"$f":"Import!G495","v":0},null,{"$f":"Import!E504","v":0},null,{"$f":"Import!G504","v":0},null,{"$f":"D13+H13+L13+P13","v":0},null,0,null,null,"brrt_RiskGradeAxis_brrt_BSCRRating1Member"]
[null,3,"BSCR Rating 2",{"$f":"Import!E480","v":0},null,{"$f":"Import!G480","v":0},null,{"$f":"Import!E488","v":0},null,{"$f":"Import!G488","v":0},null,{"$f":"Import!E496","v":0},null,{"$f":"Import!G496","v":0},null,{"$f":"Import!E505","v":0},null,{"$f":"Import!G505","v":0},null,0,null,0,null,null,"brrt_RiskGradeAxis_brrt_BSCRRating2Member"]
[null,4,"BSCR Rating 3",{"$f":"Import!E481","v":0},null,{"$f":"Import!G481","v":0},null,{"$f":"Import!E489","v":0},null,{"$f":"Import!G489","v":0},null,{"$f":"Import!E497","v":0},null,{"$f":"Import!G497","v":0},null,{"$f":"Import!E506","v":0},null,{"$f":"Import!G506","v":0},null,0,null,0,null,null,"brrt_RiskGradeAxis_brrt_BSCRRating3Member"]
[null,5,"BSCR Rating 4",{"$f":"Import!E482","v":0},null,{"$f":"Import!G482","v":0},null,{"$f":"Import!E490","v":0},null,{"$f":"Import!G490","v":0},null,{"$f":"Import!E498","v":0},null,{"$f":"Import!G498","v":0},null,{"$f":"Import!E507","v":0},null,{"$f":"Import!G507","v":0},null,0,null,0,null,null,"brrt_RiskGradeAxis_brrt_BSCRRating4Member"]
[null,6,"BSCR Rating 5",{"$f":"Import!E483","v":0},null,{"$f":"Import!G483","v":0},null,{"$f":"Import!E491","v":0},null,{"$f":"Import!G491","v":0},null,{"$f":"Import!E499","v":0},null,{"$f":"Import!G499","v":0},null,{"$f":"Import!E508","v":0},null,{"$f":"Import!G508","v":0},null,0,null,0,null,null,"brrt_RiskGradeAxis_brrt_BSCRRating5Member"]
[null,7,"BSCR Rating 6",{"$f":"Import!E484","v":0},null,{"$f":"Import!G484","v":0},null,{"$f":"Import!E492","v":0},null,{"$f":"Import!G492","v":0},null,{"$f":"Import!E500","v":0},null,{"$f":"Import!G500","v":0},null,{"$f":"Import!E509","v":0},null,{"$f":"Import!G509","v":0},null,0,null,0,null,null,"brrt_RiskGradeAxis_brrt_BSCRRating6Member"]
[null,8,"BSCR Rating 7",{"$f":"Import!E485","v":0},null,{"$f":"Import!G485","v":0},null,{"$f":"Import!E493","v":0},null,{"$f":"Import!G493","v":0},null,{"$f":"Import!E501","v":0},null,{"$f":"Import!G501","v":0},null,{"$f":"Import!E510","v":0},null,{"$f":"Import!G510","v":0},null,0,null,0,null,null,"brrt_RiskGradeAxis_brrt_BSCRRating7Member"]
[null,9,"BSCR Rating 8",{"$f":"Import!E486","v":0},null,{"$f":"Import!G486","v":0},null,{"$f":"Import!E494","v":0},null,{"$f":"Import!G494","v":0},null,{"$f":"Import!E502","v":0},null,{"$f":"Import!G502","v":0},null,{"$f":"Import!E511","v":0},null,{"$f":"Import!G511","v":0},null,0,null,0,null,null,"brrt_RiskGradeAxis_brrt_BSCRRating8Member"]
[]
[null,10,"Total",{"$f":"SUM(D12:D20)","v":0},null,{"$f":"SUM(F12:F20)","v":0},null,{"$f":"SUM(H12:H20)","v":0},null,{"$f":"SUM(J12:J20)","v":0},null,{"$f":"SUM(L12:L20)","v":0},null,{"$f":"SUM(N12:N20)","v":0},null,{"$f":"SUM(P11:P20)","v":0},null,{"$f":"SUM(R11:R20)","v":0},null,{"$f":"SUM(T12:T20)","v":0},null,{"$f":"SUM(V12:V20)","v":0},null,null,"brrt_RiskGradeAxis_brrt_TotalMember"]
[]
[null,null,null,null,null,null,null,null,null,null,null,null,null,null,null,null,null,null,null,{"$f":"IF(T25=\"TRUE\",HYPERLINK(\"#'Form 1SFS'!E16:M31\",\"TRUE\"),HYPERLINK(\"#'Form 1SFS'!E16:M31\",\"FALSE\"))","v":"TRUE"},null,{"$f":"IF(V25=\"TRUE\",HYPERLINK(\"#'Form 1SFS'!G16:O31\",\"TRUE\"),HYPERLINK(\"#'Form 1SFS'!G16:O31\",\"FALSE\"))","v":"TRUE"}]
[null,null,null,null,null,null,null,null,null,null,null,null,null,null,null,null,null,null,null,{"$f":"IF(ROUND((T22-('Form 1SFS'!E18+'Form 1SFS'!I18+'Form 1SFS'!E31+'Form 1SFS'!I31)),0)=0,\"TRUE\",\"FALSE\")","v":"TRUE"},null,{"$f":"IF(ROUND((V22-('Form 1SFS'!G18+'Form 1SFS'!K18+'Form 1SFS'!G31+'Form 1SFS'!K31)),0)=0,\"TRUE\",\"FALSE\")","v":"TRUE"}]
[null,null,"Difference",null,null,null,null,null,null,null,null,null,null,null,null," ",null,null,null,{"$f":"ROUND(('Form 1SFS'!E18+'Form 1SFS'!I18+'Form 1SFS'!E31+'Form 1SFS'!I31)-T22,0)","v":0},null,{"$f":"ROUND(('Form 1SFS'!G18+'Form 1SFS'!K18+'Form 1SFS'!G31+'Form 1SFS'!K31)-V22,0)","v":0}]
[]
[null,null,null,null,null,null,null,null,null,null,null,null,null,null,null,null,null,null,null,{"$f":"IF(T24=\"False\",\"Does not equal Form 1SFS Lines 2(b) & 3(b)\",\"\")","v":""},null,{"$f":"IF(V24=\"False\",\"Does not equal Form 1SFS Lines 2(b) & 3(b)\",\"\")","v":""}]
[null,null,null,"COMMON STOCK\n[ Form 1SFS Lines 2(c)(i) & 3(c)(i) ]",null,null,null,"PREFERRED STOCK\n[ Form 1SFS Lines 2(c)(ii) & 3(c)(ii) ]",null,null,null,"EQUITY MUTUAL FUNDS\n[ Form 1SFS Lines 2(c)(iii) & 3(c)(iii) ]",null,null,null,null,null,null,null,"TOTAL\n[ Form 1SFS Lines 2(d) & 3(d)]"]
[null,null,null,{"$f":"+'Form 1EBS'!$F$7","v":"2019-12-31"},null,{"$f":"+'Form 1EBS'!$H$7","v":"2018-12-31"},null,{"$f":"+'Form 1EBS'!$F$7","v":"2019-12-31"},null,{"$f":"+'Form 1EBS'!$H$7","v":"2018-12-31"},null,{"$f":"+'Form 1EBS'!$F$7","v":"2019-12-31"},null,{"$f":"+'Form 1EBS'!$H$7","v":"2018-12-31"},null,null,null,null,null,{"$f":"+'Form 1EBS'!$F$7","v":"2019-12-31"},null,{"$f":"+'Form 1EBS'!$H$7","v":"2018-12-31"}]
[null,null,null,{"$f":"+'Form 1EBS'!$F$8","v":" ('000s)"},null,{"$f":"+'Form 1EBS'!$H$8","v":" ('000s)"},null,{"$f":"+'Form 1EBS'!$F$8","v":" ('000s)"},null,{"$f":"+'Form 1EBS'!$H$8","v":" ('000s)"},null,{"$f":"+'Form 1EBS'!$F$8","v":" ('000s)"},null,{"$f":"+'Form 1EBS'!$H$8","v":" ('000s)"},null,null,null,null,null,{"$f":"+'Form 1EBS'!$F$8","v":" ('000s)"},null,{"$f":"+'Form 1EBS'!$H$8","v":" ('000s)"}]
[null,"Quoted and Unquoted Equities"]
[null,11,"BSCR Rating 1",null,null,null,null,{"$f":"Import!E514","v":0},null,{"$f":"Import!G514","v":0},null,null,null,null,null,null,null,null,null,{"$f":"D33+H33+L33","v":0},null,0,null,null,"brrt_RiskGradeAxis_brrt_BSCRRating1Member"]
[null,12,"BSCR Rating 2",null,null,null,null,{"$f":"Import!E515","v":0},null,{"$f":"Import!G515","v":0},null,null,null,null,null,null,null,null,null,0,null,0,null,null,"brrt_RiskGradeAxis_brrt_BSCRRating2Member"]
[null,13,"BSCR Rating 3",null,null,null,null,{"$f":"Import!E516","v":0},null,{"$f":"Import!G516","v":0},null,null,null,null,null,null,null,null,null,0,null,0,null,null,"brrt_RiskGradeAxis_brrt_BSCRRating3Member"]
[null,14,"BSCR Rating 4",null,null,null,null,{"$f":"Import!E517","v":0},null,{"$f":"Import!G517","v":0},null,null,null,null,null,null,null,null,null,0,null,0,null,null,"brrt_RiskGradeAxis_brrt_BSCRRating4Member"]
[null,15,"BSCR Rating 5",null,null,null,null,{"$f":"Import!E518","v":0},null,{"$f":"Import!G518","v":0},null,null,null,null,null,null,null,null,null,0,null,0,null,null,"brrt_RiskGradeAxis_brrt_BSCRRating5Member"]
[null,16,"BSCR Rating 6",null,null,null,null,{"$f":"Import!E519","v":0},null,{"$f":"Import!G519","v":0},null,null,null,null,null,null,null,null,null,0,null,0,null,null,"brrt_RiskGradeAxis_brrt_BSCRRating6Member"]
[null,17,"BSCR Rating 7",null,null,null,null,{"$f":"Import!E520","v":0},null,{"$f":"Import!G520","v":0},null,null,null,null,null,null,null,null,null,0,null,0,null,null,"brrt_RiskGradeAxis_brrt_BSCRRating7Member"]
[null,18,"BSCR Rating 8",null,null,null,null,{"$f":"Import!E521","v":0},null,{"$f":"Import!G521","v":0},null,null,null,null,null,null,null,null,null,0,null,0,null,null,"brrt_RiskGradeAxis_brrt_BSCRRating8Member"]
[null,19,"Quoted Equity Funds",{"$f":"'Form 1SFS'!E20+'Form 1SFS'!I20","v":0},null,{"$f":"'Form 1SFS'!G20+'Form 1SFS'!K20","v":0},null,null,null,null,null,{"$f":"'Form 1SFS'!E22+'Form 1SFS'!I22","v":0},null,{"$f":"'Form 1SFS'!G22+'Form 1SFS'!K22","v":0},null,null,null,null,null,{"$f":"D41+H41+L41","v":0},null,{"$f":"F41+J41+N41","v":0}]
[null,20,"Unquoted Equity Funds",{"$f":"'Form 1SFS'!E33+'Form 1SFS'!I33","v":0},null,{"$f":"'Form 1SFS'!G33+'Form 1SFS'!K33","v":0},null,null,null,null,null,{"$f":"'Form 1SFS'!E35+'Form 1SFS'!I35","v":0},null,{"$f":"'Form 1SFS'!G35+'Form 1SFS'!K35","v":0},null,null,null,null,null,{"$f":"D42+H42+L42","v":0},null,0]
[]
[null,21,"Total",{"$f":"SUM(D33:D42)","v":0},null,{"$f":"SUM(F33:F42)","v":0},null,{"$f":"SUM(H33:H42)","v":0},null,{"$f":"SUM(J33:J42)","v":0},null,{"$f":"SUM(L32:L42)","v":0},null,{"$f":"SUM(N32:N42)","v":0},null,null,null,null,null,{"$f":"SUM(T33:T42)","v":0},null,{"$f":"SUM(V33:V42)","v":0},null,null,"brrt_RiskGradeAxis_brrt_TotalMember"]
[]
[null,null,null,{"$f":"IF(D47=\"TRUE\",HYPERLINK(\"#'Form 1SFS'!E20:M33\",\"TRUE\"),HYPERLINK(\"#'Form 1SFS'!E20:M33\",\"FALSE\"))","v":"TRUE"},null,{"$f":"IF(F47=\"TRUE\",HYPERLINK(\"#'Form 1SFS'!G20:O33\",\"TRUE\"),HYPERLINK(\"#'Form 1SFS'!G20:O33\",\"FALSE\"))","v":"TRUE"},null,{"$f":"IF(H47=\"TRUE\",HYPERLINK(\"#'Form 1SFS'!E21:M34\",\"TRUE\"),HYPERLINK(\"#'Form 1SFS'!E21:M34\",\"FALSE\"))","v":"TRUE"},null,{"$f":"IF(J47=\"TRUE\",HYPERLINK(\"#'Form 1SFS'!G21:O34\",\"TRUE\"),HYPERLINK(\"#'Form 1SFS'!G21:O34\",\"FALSE\"))","v":"TRUE"},null,{"$f":"IF(L47=\"TRUE\",HYPERLINK(\"#'Form 1SFS'!E22:M35\",\"TRUE\"),HYPERLINK(\"#'Form 1SFS'!E22:M35\",\"FALSE\"))","v":"TRUE"},null,{"$f":"IF(N47=\"TRUE\",HYPERLINK(\"#'Form 1SFS'!G22:O35\",\"TRUE\"),HYPERLINK(\"#'Form 1SFS'!G22:O35\",\"FALSE\"))","v":"TRUE"},null,null,null,null,null,{"$f":"IF(T47=\"TRUE\",HYPERLINK(\"#'Form 1SFS'!E20:M36\",\"TRUE\"),HYPERLINK(\"#'Form 1SFS'!E20:M36\",\"FALSE\"))","v":"TRUE"},null,{"$f":"IF(V47=\"TRUE\",HYPERLINK(\"#'Form 1SFS'!G20:O36\",\"TRUE\"),HYPERLINK(\"#'Form 1SFS'!G20:O36\",\"FALSE\"))","v":"TRUE"}]
[null,null,null,{"$f":"IF(ROUND(D44-('Form 1SFS'!E20+'Form 1SFS'!E33+'Form 1SFS'!I20+'Form 1SFS'!I33),0)=0,\"TRUE\",\"FALSE\")","v":"TRUE"},null,{"$f":"IF(ROUND(F44-('Form 1SFS'!G20+'Form 1SFS'!G33+'Form 1SFS'!K20+'Form 1SFS'!K33),0)=0,\"TRUE\",\"FALSE\")","v":"TRUE"},null,{"$f":"IF(ROUND(H44-('Form 1SFS'!E21+'Form 1SFS'!I21+'Form 1SFS'!E34+'Form 1SFS'!I34),0)=0,\"TRUE\",\"FALSE\")","v":"TRUE"},null,{"$f":"IF(ROUND(J44-('Form 1SFS'!G21+'Form 1SFS'!K21+'Form 1SFS'!G34+'Form 1SFS'!K34),0)=0,\"TRUE\",\"FALSE\")","v":"TRUE"},null,{"$f":"IF(ROUND(L44-('Form 1SFS'!E22+'Form 1SFS'!E35+'Form 1SFS'!I22+'Form 1SFS'!I35),0)=0,\"TRUE\",\"FALSE\")","v":"TRUE"},null,{"$f":"IF(ROUND(N44-('Form 1SFS'!G22+'Form 1SFS'!G35+'Form 1SFS'!K22+'Form 1SFS'!K35),0)=0,\"TRUE\",\"FALSE\")","v":"TRUE"},null,null,null,null,null,{"$f":"IF(ROUND(T44-('Form 1SFS'!E23+'Form 1SFS'!I23+'Form 1SFS'!E36+'Form 1SFS'!I36),0)=0,\"TRUE\",\"FALSE\")","v":"TRUE"},null,{"$f":"IF(ROUND(V44-('Form 1SFS'!G23+'Form 1SFS'!K23+'Form 1SFS'!G36+'Form 1SFS'!K36),0)=0,\"TRUE\",\"FALSE\")","v":"TRUE"}]
[null,null,null,{"$f":"ROUND(('Form 1SFS'!E20+'Form 1SFS'!E33+'Form 1SFS'!I20+'Form 1SFS'!I33)-D44,0)","v":0},null,{"$f":"ROUND(('Form 1SFS'!G20+'Form 1SFS'!G33+'Form 1SFS'!K20+'Form 1SFS'!K33)-F44,0)","v":0},null,{"$f":"ROUND(('Form 1SFS'!E21+'Form 1SFS'!I21+'Form 1SFS'!E34+'Form 1SFS'!I34)-H44,0)","v":0},null,{"$f":"ROUND(('Form 1SFS'!G21+'Form 1SFS'!K21+'Form 1SFS'!G34+'Form 1SFS'!K34)-J44,0)","v":0},null,{"$f":"ROUND(('Form 1SFS'!E22+'Form 1SFS'!E35+'Form 1SFS'!I22+'Form 1SFS'!I35)-L44,0)","v":0},null,{"$f":"ROUND(('Form 1SFS'!G22+'Form 1SFS'!G35+'Form 1SFS'!K22+'Form 1SFS'!K35)-N44,0)","v":0},null,null,null,null,null,{"$f":"ROUND(('Form 1SFS'!E23+'Form 1SFS'!I23+'Form 1SFS'!E36+'Form 1SFS'!I36)-T44,0)","v":0},null,{"$f":"ROUND(('Form 1SFS'!G23+'Form 1SFS'!K23+'Form 1SFS'!G36+'Form 1SFS'!K36)-V44,0)","v":0}]
[]
[null,null,null,{"$f":"IF(D46=\"False\",\"Does not equal Form 1SFS Lines 2(c)(i) & 3(c)(i)\",\"\")","v":""},null,{"$f":"IF(F46=\"False\",\"Does not equal Form 1SFS Lines 2(c)(i) & 3(c)(i)\",\"\")","v":""},null,{"$f":"IF(H46=\"False\",\"Does not equal Form 1SFS Lines 2(c)(ii) & 3(c)(ii)\",\"\")","v":""},null,{"$f":"IF(J46=\"False\",\"Does not equal Form 1SFS Lines 2(c)(ii) & 3(c)(ii)\",\"\")","v":""},null,{"$f":"IF(L46=\"False\",\"Does not equal Form 1SFS Lines 2(c)(iii) & 3(c)(iii)\",\"\")","v":""},null,{"$f":"IF(N46=\"False\",\"Does not equal Form 1SFS Lines 2(c)(iii) & 3(c)(iii)\",\"\")","v":""},null,null,null,null,null,{"$f":"IF(T46=\"False\",\"Does not equal Form 1SFS Lines 2(d) & 3(d)\",\"\")","v":""},null,{"$f":"IF(V46=\"False\",\"Does not equal Form 1SFS Lines 2(d) & 3(d)\",\"\")","v":""}]
[]
[null,null,null,"MORTGAGE LOANS\n[ Form 1SFS Lines 5(c) ]",null,null,null,null,"This Section is Only Applicable to Companies that have Mortgage Backed Securities that have been Reclassified in Accordance with the NAIC and that elect to use NAIC reclassifications to map to the BSCR classes"]
[null,null,null,{"$f":"+'Form 1EBS'!$F$7","v":"2019-12-31"},null,{"$f":"+'Form 1EBS'!$H$7","v":"2018-12-31"},null,null,null,null,null,"VALUES OF RESIDENTIAL MORTGAGE BACKED SECURITIES",null,null,null,"VALUES OF COMMERCIAL MORTGAGE BACKED SECURITIES / ASSET BACKED SECURITIES"]
[null,null,null,{"$f":"+'Form 1EBS'!$F$8","v":" ('000s)"},null,{"$f":"+'Form 1EBS'!$H$8","v":" ('000s)"},null,null,null,null,null,"Original Classification",null,"Revised Classification",null,"Original Classification",null,"Revised Classification"]
[null,null,null,null,null,null,null,null,null,"NAIC Class 1",null,{"$f":"Import!E528","v":0},null,{"$f":"Import!E535","v":0},null,{"$f":"Import!E542","v":0},null,{"$f":"Import!E549","v":0},null,null,null,null,null,null,null,null,null,"brrt_RiskGradeAxis_brrt_NAICClass1Member"]
[null,"Mortgage Loans",null,null,null,null,null,null,null,"NAIC Class 2",null,{"$f":"Import!E529","v":0},null,{"$f":"Import!E536","v":0},null,{"$f":"Import!E543","v":0},null,{"$f":"Import!E550","v":0},null,null,null,null,null,null,null,null,null,"brrt_RiskGradeAxis_brrt_NAICClass2Member"]
[null,22,"Insured/Guaranteed Mortgages",{"$f":"Import!E524","v":0},null,{"$f":"Import!G524","v":0},null,null,null,"NAIC Class 3",null,{"$f":"Import!E530","v":0},null,{"$f":"Import!E537","v":0},null,{"$f":"Import!E544","v":0},null,{"$f":"Import!E551","v":0},null,null,null,null,null,"brrt_InvestmentsInMortgageLoansOnRealEstateInsuredGuaranteedMortgages",{"$f":"XBRLMap(D57,$X57,$D$73,$D$74,CONFIGURATION!$B$10,\"BMA\",CONFIGURATION!$B$1,\"bscr\",CONFIGURATION!$B$12)","v":"Mapped"},{"$f":"XBRLMap(F57,$X57,$F$73,$F$74,CONFIGURATION!$B$10,\"BMA\",CONFIGURATION!$B$1,\"bscr\",CONFIGURATION!$B$12)","v":"Mapped"},null,"brrt_RiskGradeAxis_brrt_NAICClass3Member"]
[null,23,"Other Commercial and Farm Mortgages",{"$f":"Import!E525","v":0},null,{"$f":"Import!G525","v":0},null,null,null,"NAIC Class 4",null,{"$f":"Import!E531","v":0},null,{"$f":"Import!E538","v":0},null,{"$f":"Import!E545","v":0},null,{"$f":"Import!E552","v":0},null,null,null,null,null,"brrt_InvestmentsInMortgageLoansOnRealEstateOtherCommercialFarmMortgages",{"$f":"XBRLMap(D58,$X58,$D$73,$D$74,CONFIGURATION!$B$10,\"BMA\",CONFIGURATION!$B$1,\"bscr\",CONFIGURATION!$B$12)","v":"Mapped"},{"$f":"XBRLMap(F58,$X58,$F$73,$F$74,CONFIGURATION!$B$10,\"BMA\",CONFIGURATION!$B$1,\"bscr\",CONFIGURATION!$B$12)","v":"Mapped"},null,"brrt_RiskGradeAxis_brrt_NAICClass4Member"]
[null,24,"Other Residential Mortgages",{"$f":"Import!E526","v":0},null,{"$f":"Import!G526","v":0},null,null,null,"NAIC Class 5",null,{"$f":"Import!E532","v":0},null,{"$f":"Import!E539","v":0},null,{"$f":"Import!E546","v":0},null,{"$f":"Import!E553","v":0},null,null,null,null,null,"brrt_InvestmentsInMortgageLoansOnRealEstateOtherResidentialMortgages",{"$f":"XBRLMap(D59,$X59,$D$73,$D$74,CONFIGURATION!$B$10,\"BMA\",CONFIGURATION!$B$1,\"bscr\",CONFIGURATION!$B$12)","v":"Mapped"},{"$f":"XBRLMap(F59,$X59,$F$73,$F$74,CONFIGURATION!$B$10,\"BMA\",CONFIGURATION!$B$1,\"bscr\",CONFIGURATION!$B$12)","v":"Mapped"},null,"brrt_RiskGradeAxis_brrt_NAICClass5Member"]
[null,25,"Mortgages Not In Good Standing",{"$f":"Import!E527","v":0},null,{"$f":"Import!G527","v":0},null,null,null,"NAIC Class 6",null,{"$f":"Import!E533","v":0},null,{"$f":"Import!E540","v":0},null,{"$f":"Import!E547","v":0},null,{"$f":"Import!E554","v":0},null,null,null,null,null,"brrt_InvestmentsInMortgageLoansOnRealEstateMortgagesNotInGoodStanding",{"$f":"XBRLMap(D60,$X60,$D$73,$D$74,CONFIGURATION!$B$10,\"BMA\",CONFIGURATION!$B$1,\"bscr\",CONFIGURATION!$B$12)","v":"Mapped"},{"$f":"XBRLMap(F60,$X60,$F$73,$F$74,CONFIGURATION!$B$10,\"BMA\",CONFIGURATION!$B$1,\"bscr\",CONFIGURATION!$B$12)","v":"Mapped"},null,"brrt_RiskGradeAxis_brrt_NAICClass6Member"]
[]
[null,26,"Total",{"$f":"SUM(D57:D60)","v":0},null,{"$f":"SUM(F57:F60)","v":0},null,null,null,null,null,{"$f":"SUM(L55:L60)","v":0},null,{"$f":"SUM(N55:N60)","v":0},null,{"$f":"SUM(P55:P60)","v":0},null,{"$f":"SUM(R55:R60)","v":0},null,null,null,null,null,"Already mapped in Form 4",null,null,null,"brrt_RiskGradeAxis_brrt_TotalMember"]
[]
[null,null,null,{"$f":"IF(D65=\"TRUE\",HYPERLINK(\"#'Form 1SFS'!E53:M53\",\"TRUE\"),HYPERLINK(\"#'Form 1SFS'!E53:M53\",\"FALSE\"))","v":"TRUE"},null,{"$f":"IF(F65=\"TRUE\",HYPERLINK(\"#'Form 1SFS'!G53:O53\",\"TRUE\"),HYPERLINK(\"#'Form 1SFS'!G53:O53\",\"FALSE\"))","v":"TRUE"},null,null,null,{"$f":"IF('Company Information'!$F$11=\"Class 3A\",HYPERLINK(\"#'Attachments'!G45\",\"Attach file\"),HYPERLINK(\"#'Attachments'!G65\",\"Attach file\"))","v":"Attach file"}]
[null,null,null,{"$f":"IF(ROUND((D62-('Form 1SFS'!E53+'Form 1SFS'!I53)),0)=0,\"TRUE\",\"FALSE\")","v":"TRUE"},null,{"$f":"IF(ROUND((F62-('Form 1SFS'!G53+'Form 1SFS'!K53)),0)=0,\"TRUE\",\"FALSE\")","v":"TRUE"}]
[null,null,null,{"$f":"ROUND(('Form 1SFS'!E53+'Form 1SFS'!I53)-D62,0)","v":0},null,{"$f":"ROUND(('Form 1SFS'!G53+'Form 1SFS'!K53)-F62,0)","v":0}]
[]
[null,null,null,{"$f":"IF(D64=\"False\",\"Does not equal Form 1SFS Line 5(c)\",\"\")","v":""},null,{"$f":"IF(F64=\"False\",\"Does not equal Form 1SFS Line 5(c)\",\"\")","v":""}]
[]
[]
[]
[]
[null,null,null,{"$f":"IF(D8=\"\",\"\",TEXT(DATE(YEAR(D8+1)-1,MONTH(D8+1),DAY(D8+1)),\"mm/dd/yyyy\"))","v":"01/01/2019"},null,{"$f":"IF(F8=\"\",\"\",TEXT(DATE(YEAR(F8+1)-1,MONTH(F8+1),DAY(F8+1)),\"mm/dd/yyyy\"))","v":"01/01/2018"}]
[null,null,null,{"$f":"IF(D8=\"\",\"\",TEXT(D8,\"mm/dd/yyyy\"))","v":"12/31/2019"},null,{"$f":"IF(F8=\"\",\"\",TEXT(F8,\"mm/dd/yyyy\"))","v":"12/31/2018"}]
[null,null,null,"brrt_BondsAndDebentures",null,"brrt_BondsAndDebentures",null,"brrt_BondsAndDebentures",null,"brrt_BondsAndDebentures",null,"brrt_BondsAndDebentures",null,"brrt_BondsAndDebentures",null,"brrt_BondsAndDebentures",null,"brrt_BondsAndDebentures",null,"brrt_BondsAndDebentures",null,"brrt_BondsAndDebentures"]
[null,null,null,"brrt_SecurityTypeAxis_brrt_CorporateSovereignBondsMember",null,"brrt_SecurityTypeAxis_brrt_CorporateSovereignBondsMember",null,"brrt_SecurityTypeAxis_brrt_ResidentialMortgageBackedSecuritiesMember",null,"brrt_SecurityTypeAxis_brrt_ResidentialMortgageBackedSecuritiesMember",null,"brrt_SecurityTypeAxis_brrt_CommercialMortgageBackedSecuritiesAssetBackedSecuritiesMember",null,"brrt_SecurityTypeAxis_brrt_CommercialMortgageBackedSecuritiesAssetBackedSecuritiesMember",null,"brrt_SecurityTypeAxis_brrt_MutualFundsMember",null,"brrt_SecurityTypeAxis_brrt_MutualFundsMember",null,"brrt_SecurityTypeAxis_brrt_TotalMember",null,"brrt_SecurityTypeAxis_brrt_TotalMember"]
[null,null,null,{"$f":"XBRLMap(D12,D$75&\".\"&$Y12&\".\"&$D$76,$D$73,$D$74,CONFIGURATION!$B$10,\"BMA\",CONFIGURATION!$B$1,\"bscr\",CONFIGURATION!$B$12)","v":"Mapped"},null,{"$f":"XBRLMap(F12,F$75&\".\"&$Y12&\".\"&$F$76,$F$73,$F$74,CONFIGURATION!$B$10,\"BMA\",CONFIGURATION!$B$1,\"bscr\",CONFIGURATION!$B$12)","v":"Mapped"},null,null,null,null,null,null,null,null,null,{"$f":"XBRLMap(P12,P$75&\".\"&$Y12&\".\"&$P$76,$D$73,$D$74,CONFIGURATION!$B$10,\"BMA\",CONFIGURATION!$B$1,\"bscr\",CONFIGURATION!$B$12)","v":"Mapped"},null,{"$f":"XBRLMap(R12,R$75&\".\"&$Y12&\".\"&$R$76,$F$73,$F$74,CONFIGURATION!$B$10,\"BMA\",CONFIGURATION!$B$1,\"bscr\",CONFIGURATION!$B$12)","v":"Mapped"},null,{"$f":"XBRLMap(T12,T$75&\".\"&$Y12&\".\"&$T$76,$D$73,$D$74,CONFIGURATION!$B$10,\"BMA\",CONFIGURATION!$B$1,\"bscr\",CONFIGURATION!$B$12)","v":"Mapped"},null,{"$f":"XBRLMap(V12,V$75&\".\"&$Y12&\".\"&$V$76,$F$73,$F$74,CONFIGURATION!$B$10,\"BMA\",CONFIGURATION!$B$1,\"bscr\",CONFIGURATION!$B$12)","v":"Mapped"}]
[null,null,null,{"$f":"XBRLMap(D13,D$75&\".\"&$Y13&\".\"&$D$76,$D$73,$D$74,CONFIGURATION!$B$10,\"BMA\",CONFIGURATION!$B$1,\"bscr\",CONFIGURATION!$B$12)","v":"Mapped"},null,{"$f":"XBRLMap(F13,F$75&\".\"&$Y13&\".\"&$F$76,$F$73,$F$74,CONFIGURATION!$B$10,\"BMA\",CONFIGURATION!$B$1,\"bscr\",CONFIGURATION!$B$12)","v":"Mapped"},null,{"$f":"XBRLMap(H13,H$75&\".\"&$Y13&\".\"&$H$76,$D$73,$D$74,CONFIGURATION!$B$10,\"BMA\",CONFIGURATION!$B$1,\"bscr\",CONFIGURATION!$B$12)","v":"Mapped"},null,{"$f":"XBRLMap(J13,J$75&\".\"&$Y13&\".\"&$J$76,$F$73,$F$74,CONFIGURATION!$B$10,\"BMA\",CONFIGURATION!$B$1,\"bscr\",CONFIGURATION!$B$12)","v":"Mapped"},null,{"$f":"XBRLMap(L13,L$75&\".\"&$Y13&\".\"&$L$76,$D$73,$D$74,CONFIGURATION!$B$10,\"BMA\",CONFIGURATION!$B$1,\"bscr\",CONFIGURATION!$B$12)","v":"Mapped"},null,{"$f":"XBRLMap(N13,N$75&\".\"&$Y13&\".\"&$N$76,$F$73,$F$74,CONFIGURATION!$B$10,\"BMA\",CONFIGURATION!$B$1,\"bscr\",CONFIGURATION!$B$12)","v":"Mapped"},null,{"$f":"XBRLMap(P13,P$75&\".\"&$Y13&\".\"&$P$76,$D$73,$D$74,CONFIGURATION!$B$10,\"BMA\",CONFIGURATION!$B$1,\"bscr\",CONFIGURATION!$B$12)","v":"Mapped"},null,{"$f":"XBRLMap(R13,R$75&\".\"&$Y13&\".\"&$R$76,$F$73,$F$74,CONFIGURATION!$B$10,\"BMA\",CONFIGURATION!$B$1,\"bscr\",CONFIGURATION!$B$12)","v":"Mapped"},null,{"$f":"XBRLMap(T13,T$75&\".\"&$Y13&\".\"&$T$76,$D$73,$D$74,CONFIGURATION!$B$10,\"BMA\",CONFIGURATION!$B$1,\"bscr\",CONFIGURATION!$B$12)","v":"Mapped"},null,{"$f":"XBRLMap(V13,V$75&\".\"&$Y13&\".\"&$V$76,$F$73,$F$74,CONFIGURATION!$B$10,\"BMA\",CONFIGURATION!$B$1,\"bscr\",CONFIGURATION!$B$12)","v":"Mapped"}]
[null,null,null,{"$f":"XBRLMap(D14,D$75&\".\"&$Y14&\".\"&$D$76,$D$73,$D$74,CONFIGURATION!$B$10,\"BMA\",CONFIGURATION!$B$1,\"bscr\",CONFIGURATION!$B$12)","v":"Mapped"},null,{"$f":"XBRLMap(F14,F$75&\".\"&$Y14&\".\"&$F$76,$F$73,$F$74,CONFIGURATION!$B$10,\"BMA\",CONFIGURATION!$B$1,\"bscr\",CONFIGURATION!$B$12)","v":"Mapped"},null,{"$f":"XBRLMap(H14,H$75&\".\"&$Y14&\".\"&$H$76,$D$73,$D$74,CONFIGURATION!$B$10,\"BMA\",CONFIGURATION!$B$1,\"bscr\",CONFIGURATION!$B$12)","v":"Mapped"},null,{"$f":"XBRLMap(J14,J$75&\".\"&$Y14&\".\"&$J$76,$F$73,$F$74,CONFIGURATION!$B$10,\"BMA\",CONFIGURATION!$B$1,\"bscr\",CONFIGURATION!$B$12)","v":"Mapped"},null,{"$f":"XBRLMap(L14,L$75&\".\"&$Y14&\".\"&$L$76,$D$73,$D$74,CONFIGURATION!$B$10,\"BMA\",CONFIGURATION!$B$1,\"bscr\",CONFIGURATION!$B$12)","v":"Mapped"},null,{"$f":"XBRLMap(N14,N$75&\".\"&$Y14&\".\"&$N$76,$F$73,$F$74,CONFIGURATION!$B$10,\"BMA\",CONFIGURATION!$B$1,\"bscr\",CONFIGURATION!$B$12)","v":"Mapped"},null,{"$f":"XBRLMap(P14,P$75&\".\"&$Y14&\".\"&$P$76,$D$73,$D$74,CONFIGURATION!$B$10,\"BMA\",CONFIGURATION!$B$1,\"bscr\",CONFIGURATION!$B$12)","v":"Mapped"},null,{"$f":"XBRLMap(R14,R$75&\".\"&$Y14&\".\"&$R$76,$F$73,$F$74,CONFIGURATION!$B$10,\"BMA\",CONFIGURATION!$B$1,\"bscr\",CONFIGURATION!$B$12)","v":"Mapped"},null,{"$f":"XBRLMap(T14,T$75&\".\"&$Y14&\".\"&$T$76,$D$73,$D$74,CONFIGURATION!$B$10,\"BMA\",CONFIGURATION!$B$1,\"bscr\",CONFIGURATION!$B$12)","v":"Mapped"},null,{"$f":"XBRLMap(V14,V$75&\".\"&$Y14&\".\"&$V$76,$F$73,$F$74,CONFIGURATION!$B$10,\"BMA\",CONFIGURATION!$B$1,\"bscr\",CONFIGURATION!$B$12)","v":"Mapped"}]
[null,null,null,{"$f":"XBRLMap(D15,D$75&\".\"&$Y15&\".\"&$D$76,$D$73,$D$74,CONFIGURATION!$B$10,\"BMA\",CONFIGURATION!$B$1,\"bscr\",CONFIGURATION!$B$12)","v":"Mapped"},null,{"$f":"XBRLMap(F15,F$75&\".\"&$Y15&\".\"&$F$76,$F$73,$F$74,CONFIGURATION!$B$10,\"BMA\",CONFIGURATION!$B$1,\"bscr\",CONFIGURATION!$B$12)","v":"Mapped"},null,{"$f":"XBRLMap(H15,H$75&\".\"&$Y15&\".\"&$H$76,$D$73,$D$74,CONFIGURATION!$B$10,\"BMA\",CONFIGURATION!$B$1,\"bscr\",CONFIGURATION!$B$12)","v":"Mapped"},null,{"$f":"XBRLMap(J15,J$75&\".\"&$Y15&\".\"&$J$76,$F$73,$F$74,CONFIGURATION!$B$10,\"BMA\",CONFIGURATION!$B$1,\"bscr\",CONFIGURATION!$B$12)","v":"Mapped"},null,{"$f":"XBRLMap(L15,L$75&\".\"&$Y15&\".\"&$L$76,$D$73,$D$74,CONFIGURATION!$B$10,\"BMA\",CONFIGURATION!$B$1,\"bscr\",CONFIGURATION!$B$12)","v":"Mapped"},null,{"$f":"XBRLMap(N15,N$75&\".\"&$Y15&\".\"&$N$76,$F$73,$F$74,CONFIGURATION!$B$10,\"BMA\",CONFIGURATION!$B$1,\"bscr\",CONFIGURATION!$B$12)","v":"Mapped"},null,{"$f":"XBRLMap(P15,P$75&\".\"&$Y15&\".\"&$P$76,$D$73,$D$74,CONFIGURATION!$B$10,\"BMA\",CONFIGURATION!$B$1,\"bscr\",CONFIGURATION!$B$12)","v":"Mapped"},null,{"$f":"XBRLMap(R15,R$75&\".\"&$Y15&\".\"&$R$76,$F$73,$F$74,CONFIGURATION!$B$10,\"BMA\",CONFIGURATION!$B$1,\"bscr\",CONFIGURATION!$B$12)","v":"Mapped"},null,{"$f":"XBRLMap(T15,T$75&\".\"&$Y15&\".\"&$T$76,$D$73,$D$74,CONFIGURATION!$B$10,\"BMA\",CONFIGURATION!$B$1,\"bscr\",CONFIGURATION!$B$12)","v":"Mapped"},null,{"$f":"XBRLMap(V15,V$75&\".\"&$Y15&\".\"&$V$76,$F$73,$F$74,CONFIGURATION!$B$10,\"BMA\",CONFIGURATION!$B$1,\"bscr\",CONFIGURATION!$B$12)","v":"Mapped"}]
[null,null,null,{"$f":"XBRLMap(D16,D$75&\".\"&$Y16&\".\"&$D$76,$D$73,$D$74,CONFIGURATION!$B$10,\"BMA\",CONFIGURATION!$B$1,\"bscr\",CONFIGURATION!$B$12)","v":"Mapped"},null,{"$f":"XBRLMap(F16,F$75&\".\"&$Y16&\".\"&$F$76,$F$73,$F$74,CONFIGURATION!$B$10,\"BMA\",CONFIGURATION!$B$1,\"bscr\",CONFIGURATION!$B$12)","v":"Mapped"},null,{"$f":"XBRLMap(H16,H$75&\".\"&$Y16&\".\"&$H$76,$D$73,$D$74,CONFIGURATION!$B$10,\"BMA\",CONFIGURATION!$B$1,\"bscr\",CONFIGURATION!$B$12)","v":"Mapped"},null,{"$f":"XBRLMap(J16,J$75&\".\"&$Y16&\".\"&$J$76,$F$73,$F$74,CONFIGURATION!$B$10,\"BMA\",CONFIGURATION!$B$1,\"bscr\",CONFIGURATION!$B$12)","v":"Mapped"},null,{"$f":"XBRLMap(L16,L$75&\".\"&$Y16&\".\"&$L$76,$D$73,$D$74,CONFIGURATION!$B$10,\"BMA\",CONFIGURATION!$B$1,\"bscr\",CONFIGURATION!$B$12)","v":"Mapped"},null,{"$f":"XBRLMap(N16,N$75&\".\"&$Y16&\".\"&$N$76,$F$73,$F$74,CONFIGURATION!$B$10,\"BMA\",CONFIGURATION!$B$1,\"bscr\",CONFIGURATION!$B$12)","v":"Mapped"},null,{"$f":"XBRLMap(P16,P$75&\".\"&$Y16&\".\"&$P$76,$D$73,$D$74,CONFIGURATION!$B$10,\"BMA\",CONFIGURATION!$B$1,\"bscr\",CONFIGURATION!$B$12)","v":"Mapped"},null,{"$f":"XBRLMap(R16,R$75&\".\"&$Y16&\".\"&$R$76,$F$73,$F$74,CONFIGURATION!$B$10,\"BMA\",CONFIGURATION!$B$1,\"bscr\",CONFIGURATION!$B$12)","v":"Mapped"},null,{"$f":"XBRLMap(T16,T$75&\".\"&$Y16&\".\"&$T$76,$D$73,$D$74,CONFIGURATION!$B$10,\"BMA\",CONFIGURATION!$B$1,\"bscr\",CONFIGURATION!$B$12)","v":"Mapped"},null,{"$f":"XBRLMap(V16,V$75&\".\"&$Y16&\".\"&$V$76,$F$73,$F$74,CONFIGURATION!$B$10,\"BMA\",CONFIGURATION!$B$1,\"bscr\",CONFIGURATION!$B$12)","v":"Mapped"}]
[null,null,null,{"$f":"XBRLMap(D17,D$75&\".\"&$Y17&\".\"&$D$76,$D$73,$D$74,CONFIGURATION!$B$10,\"BMA\",CONFIGURATION!$B$1,\"bscr\",CONFIGURATION!$B$12)","v":"Mapped"},null,{"$f":"XBRLMap(F17,F$75&\".\"&$Y17&\".\"&$F$76,$F$73,$F$74,CONFIGURATION!$B$10,\"BMA\",CONFIGURATION!$B$1,\"bscr\",CONFIGURATION!$B$12)","v":"Mapped"},null,{"$f":"XBRLMap(H17,H$75&\".\"&$Y17&\".\"&$H$76,$D$73,$D$74,CONFIGURATION!$B$10,\"BMA\",CONFIGURATION!$B$1,\"bscr\",CONFIGURATION!$B$12)","v":"Mapped"},null,{"$f":"XBRLMap(J17,J$75&\".\"&$Y17&\".\"&$J$76,$F$73,$F$74,CONFIGURATION!$B$10,\"BMA\",CONFIGURATION!$B$1,\"bscr\",CONFIGURATION!$B$12)","v":"Mapped"},null,{"$f":"XBRLMap(L17,L$75&\".\"&$Y17&\".\"&$L$76,$D$73,$D$74,CONFIGURATION!$B$10,\"BMA\",CONFIGURATION!$B$1,\"bscr\",CONFIGURATION!$B$12)","v":"Mapped"},null,{"$f":"XBRLMap(N17,N$75&\".\"&$Y17&\".\"&$N$76,$F$73,$F$74,CONFIGURATION!$B$10,\"BMA\",CONFIGURATION!$B$1,\"bscr\",CONFIGURATION!$B$12)","v":"Mapped"},null,{"$f":"XBRLMap(P17,P$75&\".\"&$Y17&\".\"&$P$76,$D$73,$D$74,CONFIGURATION!$B$10,\"BMA\",CONFIGURATION!$B$1,\"bscr\",CONFIGURATION!$B$12)","v":"Mapped"},null,{"$f":"XBRLMap(R17,R$75&\".\"&$Y17&\".\"&$R$76,$F$73,$F$74,CONFIGURATION!$B$10,\"BMA\",CONFIGURATION!$B$1,\"bscr\",CONFIGURATION!$B$12)","v":"Mapped"},null,{"$f":"XBRLMap(T17,T$75&\".\"&$Y17&\".\"&$T$76,$D$73,$D$74,CONFIGURATION!$B$10,\"BMA\",CONFIGURATION!$B$1,\"bscr\",CONFIGURATION!$B$12)","v":"Mapped"},null,{"$f":"XBRLMap(V17,V$75&\".\"&$Y17&\".\"&$V$76,$F$73,$F$74,CONFIGURATION!$B$10,\"BMA\",CONFIGURATION!$B$1,\"bscr\",CONFIGURATION!$B$12)","v":"Mapped"}]
[null,null,null,{"$f":"XBRLMap(D18,D$75&\".\"&$Y18&\".\"&$D$76,$D$73,$D$74,CONFIGURATION!$B$10,\"BMA\",CONFIGURATION!$B$1,\"bscr\",CONFIGURATION!$B$12)","v":"Mapped"},null,{"$f":"XBRLMap(F18,F$75&\".\"&$Y18&\".\"&$F$76,$F$73,$F$74,CONFIGURATION!$B$10,\"BMA\",CONFIGURATION!$B$1,\"bscr\",CONFIGURATION!$B$12)","v":"Mapped"},null,{"$f":"XBRLMap(H18,H$75&\".\"&$Y18&\".\"&$H$76,$D$73,$D$74,CONFIGURATION!$B$10,\"BMA\",CONFIGURATION!$B$1,\"bscr\",CONFIGURATION!$B$12)","v":"Mapped"},null,{"$f":"XBRLMap(J18,J$75&\".\"&$Y18&\".\"&$J$76,$F$73,$F$74,CONFIGURATION!$B$10,\"BMA\",CONFIGURATION!$B$1,\"bscr\",CONFIGURATION!$B$12)","v":"Mapped"},null,{"$f":"XBRLMap(L18,L$75&\".\"&$Y18&\".\"&$L$76,$D$73,$D$74,CONFIGURATION!$B$10,\"BMA\",CONFIGURATION!$B$1,\"bscr\",CONFIGURATION!$B$12)","v":"Mapped"},null,{"$f":"XBRLMap(N18,N$75&\".\"&$Y18&\".\"&$N$76,$F$73,$F$74,CONFIGURATION!$B$10,\"BMA\",CONFIGURATION!$B$1,\"bscr\",CONFIGURATION!$B$12)","v":"Mapped"},null,{"$f":"XBRLMap(P18,P$75&\".\"&$Y18&\".\"&$P$76,$D$73,$D$74,CONFIGURATION!$B$10,\"BMA\",CONFIGURATION!$B$1,\"bscr\",CONFIGURATION!$B$12)","v":"Mapped"},null,{"$f":"XBRLMap(R18,R$75&\".\"&$Y18&\".\"&$R$76,$F$73,$F$74,CONFIGURATION!$B$10,\"BMA\",CONFIGURATION!$B$1,\"bscr\",CONFIGURATION!$B$12)","v":"Mapped"},null,{"$f":"XBRLMap(T18,T$75&\".\"&$Y18&\".\"&$T$76,$D$73,$D$74,CONFIGURATION!$B$10,\"BMA\",CONFIGURATION!$B$1,\"bscr\",CONFIGURATION!$B$12)","v":"Mapped"},null,{"$f":"XBRLMap(V18,V$75&\".\"&$Y18&\".\"&$V$76,$F$73,$F$74,CONFIGURATION!$B$10,\"BMA\",CONFIGURATION!$B$1,\"bscr\",CONFIGURATION!$B$12)","v":"Mapped"}]
[null,null,null,{"$f":"XBRLMap(D19,D$75&\".\"&$Y19&\".\"&$D$76,$D$73,$D$74,CONFIGURATION!$B$10,\"BMA\",CONFIGURATION!$B$1,\"bscr\",CONFIGURATION!$B$12)","v":"Mapped"},null,{"$f":"XBRLMap(F19,F$75&\".\"&$Y19&\".\"&$F$76,$F$73,$F$74,CONFIGURATION!$B$10,\"BMA\",CONFIGURATION!$B$1,\"bscr\",CONFIGURATION!$B$12)","v":"Mapped"},null,{"$f":"XBRLMap(H19,H$75&\".\"&$Y19&\".\"&$H$76,$D$73,$D$74,CONFIGURATION!$B$10,\"BMA\",CONFIGURATION!$B$1,\"bscr\",CONFIGURATION!$B$12)","v":"Mapped"},null,{"$f":"XBRLMap(J19,J$75&\".\"&$Y19&\".\"&$J$76,$F$73,$F$74,CONFIGURATION!$B$10,\"BMA\",CONFIGURATION!$B$1,\"bscr\",CONFIGURATION!$B$12)","v":"Mapped"},null,{"$f":"XBRLMap(L19,L$75&\".\"&$Y19&\".\"&$L$76,$D$73,$D$74,CONFIGURATION!$B$10,\"BMA\",CONFIGURATION!$B$1,\"bscr\",CONFIGURATION!$B$12)","v":"Mapped"},null,{"$f":"XBRLMap(N19,N$75&\".\"&$Y19&\".\"&$N$76,$F$73,$F$74,CONFIGURATION!$B$10,\"BMA\",CONFIGURATION!$B$1,\"bscr\",CONFIGURATION!$B$12)","v":"Mapped"},null,{"$f":"XBRLMap(P19,P$75&\".\"&$Y19&\".\"&$P$76,$D$73,$D$74,CONFIGURATION!$B$10,\"BMA\",CONFIGURATION!$B$1,\"bscr\",CONFIGURATION!$B$12)","v":"Mapped"},null,{"$f":"XBRLMap(R19,R$75&\".\"&$Y19&\".\"&$R$76,$F$73,$F$74,CONFIGURATION!$B$10,\"BMA\",CONFIGURATION!$B$1,\"bscr\",CONFIGURATION!$B$12)","v":"Mapped"},null,{"$f":"XBRLMap(T19,T$75&\".\"&$Y19&\".\"&$T$76,$D$73,$D$74,CONFIGURATION!$B$10,\"BMA\",CONFIGURATION!$B$1,\"bscr\",CONFIGURATION!$B$12)","v":"Mapped"},null,{"$f":"XBRLMap(V19,V$75&\".\"&$Y19&\".\"&$V$76,$F$73,$F$74,CONFIGURATION!$B$10,\"BMA\",CONFIGURATION!$B$1,\"bscr\",CONFIGURATION!$B$12)","v":"Mapped"}]
[null,null,null,{"$f":"XBRLMap(D20,D$75&\".\"&$Y20&\".\"&$D$76,$D$73,$D$74,CONFIGURATION!$B$10,\"BMA\",CONFIGURATION!$B$1,\"bscr\",CONFIGURATION!$B$12)","v":"Mapped"},null,{"$f":"XBRLMap(F20,F$75&\".\"&$Y20&\".\"&$F$76,$F$73,$F$74,CONFIGURATION!$B$10,\"BMA\",CONFIGURATION!$B$1,\"bscr\",CONFIGURATION!$B$12)","v":"Mapped"},null,{"$f":"XBRLMap(H20,H$75&\".\"&$Y20&\".\"&$H$76,$D$73,$D$74,CONFIGURATION!$B$10,\"BMA\",CONFIGURATION!$B$1,\"bscr\",CONFIGURATION!$B$12)","v":"Mapped"},null,{"$f":"XBRLMap(J20,J$75&\".\"&$Y20&\".\"&$J$76,$F$73,$F$74,CONFIGURATION!$B$10,\"BMA\",CONFIGURATION!$B$1,\"bscr\",CONFIGURATION!$B$12)","v":"Mapped"},null,{"$f":"XBRLMap(L20,L$75&\".\"&$Y20&\".\"&$L$76,$D$73,$D$74,CONFIGURATION!$B$10,\"BMA\",CONFIGURATION!$B$1,\"bscr\",CONFIGURATION!$B$12)","v":"Mapped"},null,{"$f":"XBRLMap(N20,N$75&\".\"&$Y20&\".\"&$N$76,$F$73,$F$74,CONFIGURATION!$B$10,\"BMA\",CONFIGURATION!$B$1,\"bscr\",CONFIGURATION!$B$12)","v":"Mapped"},null,{"$f":"XBRLMap(P20,P$75&\".\"&$Y20&\".\"&$P$76,$D$73,$D$74,CONFIGURATION!$B$10,\"BMA\",CONFIGURATION!$B$1,\"bscr\",CONFIGURATION!$B$12)","v":"Mapped"},null,{"$f":"XBRLMap(R20,R$75&\".\"&$Y20&\".\"&$R$76,$F$73,$F$74,CONFIGURATION!$B$10,\"BMA\",CONFIGURATION!$B$1,\"bscr\",CONFIGURATION!$B$12)","v":"Mapped"},null,{"$f":"XBRLMap(T20,T$75&\".\"&$Y20&\".\"&$T$76,$D$73,$D$74,CONFIGURATION!$B$10,\"BMA\",CONFIGURATION!$B$1,\"bscr\",CONFIGURATION!$B$12)","v":"Mapped"},null,{"$f":"XBRLMap(V20,V$75&\".\"&$Y20&\".\"&$V$76,$F$73,$F$74,CONFIGURATION!$B$10,\"BMA\",CONFIGURATION!$B$1,\"bscr\",CONFIGURATION!$B$12)","v":"Mapped"}]
[]
[null,null,null,{"$f":"XBRLMap(D22,D$75&\".\"&$Y22&\".\"&$D$76,$D$73,$D$74,CONFIGURATION!$B$10,\"BMA\",CONFIGURATION!$B$1,\"bscr\",CONFIGURATION!$B$12)","v":"Mapped"},null,{"$f":"XBRLMap(F22,F$75&\".\"&$Y22&\".\"&$F$76,$F$73,$F$74,CONFIGURATION!$B$10,\"BMA\",CONFIGURATION!$B$1,\"bscr\",CONFIGURATION!$B$12)","v":"Mapped"},null,{"$f":"XBRLMap(H22,H$75&\".\"&$Y22&\".\"&$H$76,$D$73,$D$74,CONFIGURATION!$B$10,\"BMA\",CONFIGURATION!$B$1,\"bscr\",CONFIGURATION!$B$12)","v":"Mapped"},null,{"$f":"XBRLMap(J22,J$75&\".\"&$Y22&\".\"&$J$76,$F$73,$F$74,CONFIGURATION!$B$10,\"BMA\",CONFIGURATION!$B$1,\"bscr\",CONFIGURATION!$B$12)","v":"Mapped"},null,{"$f":"XBRLMap(L22,L$75&\".\"&$Y22&\".\"&$L$76,$D$73,$D$74,CONFIGURATION!$B$10,\"BMA\",CONFIGURATION!$B$1,\"bscr\",CONFIGURATION!$B$12)","v":"Mapped"},null,{"$f":"XBRLMap(N22,N$75&\".\"&$Y22&\".\"&$N$76,$F$73,$F$74,CONFIGURATION!$B$10,\"BMA\",CONFIGURATION!$B$1,\"bscr\",CONFIGURATION!$B$12)","v":"Mapped"},null,{"$f":"XBRLMap(P22,P$75&\".\"&$Y22&\".\"&$P$76,$D$73,$D$74,CONFIGURATION!$B$10,\"BMA\",CONFIGURATION!$B$1,\"bscr\",CONFIGURATION!$B$12)","v":"Mapped"},null,{"$f":"XBRLMap(R22,R$75&\".\"&$Y22&\".\"&$R$76,$F$73,$F$74,CONFIGURATION!$B$10,\"BMA\",CONFIGURATION!$B$1,\"bscr\",CONFIGURATION!$B$12)","v":"Mapped"},null,{"$f":"XBRLMap(T22,T$75&\".\"&$Y22&\".\"&$T$76,$D$73,$D$74,CONFIGURATION!$B$10,\"BMA\",CONFIGURATION!$B$1,\"bscr\",CONFIGURATION!$B$12)","v":"Mapped"},null,{"$f":"XBRLMap(V22,V$75&\".\"&$Y22&\".\"&$V$76,$F$73,$F$74,CONFIGURATION!$B$10,\"BMA\",CONFIGURATION!$B$1,\"bscr\",CONFIGURATION!$B$12)","v":"Mapped"}]
[null,null,null,null,null,null,null,null,null,null,null,null,null,null,null,null,null,null,null,"brrt_QuotedInvestmentsEquitiesCommonStocksMutualFunds",null,"brrt_QuotedInvestmentsEquitiesCommonStocksMutualFunds"]
[null,null,null,null,null,null,null,null,null,null,null,null,null,null,null,null,null,null,null,"brrt_UnquotedInvestmentsEquitiesCommonStocksMutualFunds",null,"brrt_UnquotedInvestmentsEquitiesCommonStocksMutualFunds"]
[null,null,null,"brrt_EquitiesCommonStocks",null,"brrt_EquitiesCommonStocks",null,"brrt_EquitiesPreferredStocks",null,"brrt_EquitiesPreferredStocks",null,"brrt_EquitiesMutualFunds",null,"brrt_EquitiesMutualFunds",null,null,null,null,null,"brrt_Equities",null,"brrt_Equities"]
[null,null,null,null,null,null,null,{"$f":"XBRLMap(H33,H$90&\".\"&$Y33,$D$73,$D$74,CONFIGURATION!$B$10,\"BMA\",CONFIGURATION!$B$1,\"bscr\",CONFIGURATION!$B$12)","v":"Mapped"},null,{"$f":"XBRLMap(J33,J$90&\".\"&$Y33,$F$73,$F$74,CONFIGURATION!$B$10,\"BMA\",CONFIGURATION!$B$1,\"bscr\",CONFIGURATION!$B$12)","v":"Mapped"},null,null,null,null,null,null,null,null,null,"The same data point as in column H",null,"The same data point as in column J"]
[null,null,null,null,null,null,null,{"$f":"XBRLMap(H34,H$90&\".\"&$Y34,$D$73,$D$74,CONFIGURATION!$B$10,\"BMA\",CONFIGURATION!$B$1,\"bscr\",CONFIGURATION!$B$12)","v":"Mapped"},null,{"$f":"XBRLMap(J34,J$90&\".\"&$Y34,$F$73,$F$74,CONFIGURATION!$B$10,\"BMA\",CONFIGURATION!$B$1,\"bscr\",CONFIGURATION!$B$12)","v":"Mapped"},null,null,null,null,null,null,null,null,null,"The same data point as in column H",null,"The same data point as in column J"]
[null,null,null,null,null,null,null,{"$f":"XBRLMap(H35,H$90&\".\"&$Y35,$D$73,$D$74,CONFIGURATION!$B$10,\"BMA\",CONFIGURATION!$B$1,\"bscr\",CONFIGURATION!$B$12)","v":"Mapped"},null,{"$f":"XBRLMap(J35,J$90&\".\"&$Y35,$F$73,$F$74,CONFIGURATION!$B$10,\"BMA\",CONFIGURATION!$B$1,\"bscr\",CONFIGURATION!$B$12)","v":"Mapped"},null,null,null,null,null,null,null,null,null,"The same data point as in column H",null,"The same data point as in column J"]
[null,null,null,null,null,null,null,{"$f":"XBRLMap(H36,H$90&\".\"&$Y36,$D$73,$D$74,CONFIGURATION!$B$10,\"BMA\",CONFIGURATION!$B$1,\"bscr\",CONFIGURATION!$B$12)","v":"Mapped"},null,{"$f":"XBRLMap(J36,J$90&\".\"&$Y36,$F$73,$F$74,CONFIGURATION!$B$10,\"BMA\",CONFIGURATION!$B$1,\"bscr\",CONFIGURATION!$B$12)","v":"Mapped"},null,null,null,null,null,null,null,null,null,"The same data point as in column H",null,"The same data point as in column J"]
[null,null,null,null,null,null,null,{"$f":"XBRLMap(H37,H$90&\".\"&$Y37,$D$73,$D$74,CONFIGURATION!$B$10,\"BMA\",CONFIGURATION!$B$1,\"bscr\",CONFIGURATION!$B$12)","v":"Mapped"},null,{"$f":"XBRLMap(J37,J$90&\".\"&$Y37,$F$73,$F$74,CONFIGURATION!$B$10,\"BMA\",CONFIGURATION!$B$1,\"bscr\",CONFIGURATION!$B$12)","v":"Mapped"},null,null,null,null,null,null,null,null,null,"The same data point as in column H",null,"The same data point as in column J"]
[null,null,null,null,null,null,null,{"$f":"XBRLMap(H38,H$90&\".\"&$Y38,$D$73,$D$74,CONFIGURATION!$B$10,\"BMA\",CONFIGURATION!$B$1,\"bscr\",CONFIGURATION!$B$12)","v":"Mapped"},null,{"$f":"XBRLMap(J38,J$90&\".\"&$Y38,$F$73,$F$74,CONFIGURATION!$B$10,\"BMA\",CONFIGURATION!$B$1,\"bscr\",CONFIGURATION!$B$12)","v":"Mapped"},null,null,null,null,null,null,null,null,null,"The same data point as in column H",null,"The same data point as in column J"]
[null,null,null,null,null,null,null,{"$f":"XBRLMap(H39,H$90&\".\"&$Y39,$D$73,$D$74,CONFIGURATION!$B$10,\"BMA\",CONFIGURATION!$B$1,\"bscr\",CONFIGURATION!$B$12)","v":"Mapped"},null,{"$f":"XBRLMap(J39,J$90&\".\"&$Y39,$F$73,$F$74,CONFIGURATION!$B$10,\"BMA\",CONFIGURATION!$B$1,\"bscr\",CONFIGURATION!$B$12)","v":"Mapped"},null,null,null,null,null,null,null,null,null,"The same data point as in column H",null,"The same data point as in column J"]
[null,null,null,null,null,null,null,{"$f":"XBRLMap(H40,H$90&\".\"&$Y40,$D$73,$D$74,CONFIGURATION!$B$10,\"BMA\",CONFIGURATION!$B$1,\"bscr\",CONFIGURATION!$B$12)","v":"Mapped"},null,{"$f":"XBRLMap(J40,J$90&\".\"&$Y40,$F$73,$F$74,CONFIGURATION!$B$10,\"BMA\",CONFIGURATION!$B$1,\"bscr\",CONFIGURATION!$B$12)","v":"Mapped"},null,null,null,null,null,null,null,null,null,"The same data point as in column H",null,"The same data point as in column J"]
[null,null,null,"Already mapped in Form 4",null,"Already mapped in Form 4",null,null,null,null,null,"Already mapped in Form 4",null,"Already mapped in Form 4",null,null,null,null,null,{"$f":"XBRLMap(T41,T$88,$D$73,$D$74,CONFIGURATION!$B$10,\"BMA\",CONFIGURATION!$B$1,\"bscr\",CONFIGURATION!$B$12)","v":"Mapped"},null,{"$f":"XBRLMap(V41,V$88,$F$73,$F$74,CONFIGURATION!$B$10,\"BMA\",CONFIGURATION!$B$1,\"bscr\",CONFIGURATION!$B$12)","v":"Mapped"}]
[null,null,null,"Already mapped in Form 4",null,"Already mapped in Form 4",null,null,null,null,null,"Already mapped in Form 4",null,"Already mapped in Form 4",null,null,null,null,null,{"$f":"XBRLMap(T42,T$89,$D$73,$D$74,CONFIGURATION!$B$10,\"BMA\",CONFIGURATION!$B$1,\"bscr\",CONFIGURATION!$B$12)","v":"Mapped"},null,{"$f":"XBRLMap(V42,V$89,$F$73,$F$74,CONFIGURATION!$B$10,\"BMA\",CONFIGURATION!$B$1,\"bscr\",CONFIGURATION!$B$12)","v":"Mapped"}]
[null,null,null,{"$f":"XBRLMap(D44,D$90,$D$73,$D$74,CONFIGURATION!$B$10,\"BMA\",CONFIGURATION!$B$1,\"bscr\",CONFIGURATION!$B$12)","v":"Mapped"},null,{"$f":"XBRLMap(F44,F$90,$F$73,$F$74,CONFIGURATION!$B$10,\"BMA\",CONFIGURATION!$B$1,\"bscr\",CONFIGURATION!$B$12)","v":"Mapped"},null,{"$f":"XBRLMap(H44,H$90&\".\"&$Y44,$D$73,$D$74,CONFIGURATION!$B$10,\"BMA\",CONFIGURATION!$B$1,\"bscr\",CONFIGURATION!$B$12)","v":"Mapped"},null,{"$f":"XBRLMap(J44,J$90&\".\"&$Y44,$F$73,$F$74,CONFIGURATION!$B$10,\"BMA\",CONFIGURATION!$B$1,\"bscr\",CONFIGURATION!$B$12)","v":"Mapped"},null,{"$f":"XBRLMap(L44,L$90,$D$73,$D$74,CONFIGURATION!$B$10,\"BMA\",CONFIGURATION!$B$1,\"bscr\",CONFIGURATION!$B$12)","v":"Mapped"},null,{"$f":"XBRLMap(N44,N$90,$F$73,$F$74,CONFIGURATION!$B$10,\"BMA\",CONFIGURATION!$B$1,\"bscr\",CONFIGURATION!$B$12)","v":"Mapped"},null,null,null,null,null,{"$f":"XBRLMap(T44,T$90,$D$73,$D$74,CONFIGURATION!$B$10,\"BMA\",CONFIGURATION!$B$1,\"bscr\",CONFIGURATION!$B$12)","v":"Mapped"},null,{"$f":"XBRLMap(V44,V$90,$F$73,$F$74,CONFIGURATION!$B$10,\"BMA\",CONFIGURATION!$B$1,\"bscr\",CONFIGURATION!$B$12)","v":"Mapped"}]
[]
[]
[]
[null,null,null,null,null,null,null,null,null,null,null,"brrt_BondsAndDebentures",null,"brrt_BondsAndDebentures",null,"brrt_BondsAndDebentures",null,"brrt_BondsAndDebentures"]
[null,null,null,null,null,null,null,null,null,null,null,"brrt_SecurityTypeAxis_brrt_ResidentialMortgageBackedSecuritiesMember",null,"brrt_SecurityTypeAxis_brrt_ResidentialMortgageBackedSecuritiesMember",null,"brrt_SecurityTypeAxis_brrt_CommercialMortgageBackedSecuritiesAssetBackedSecuritiesMember",null,"brrt_SecurityTypeAxis_brrt_CommercialMortgageBackedSecuritiesAssetBackedSecuritiesMember"]
[null,null,null,null,null,null,null,null,null,null,null,"brrt_ClassificationAxis_brrt_OriginalClassificationMember",null,"brrt_ClassificationAxis_brrt_RevisedClassificationMember",null,"brrt_ClassificationAxis_brrt_OriginalClassificationMember",null,"brrt_ClassificationAxis_brrt_RevisedClassificationMember"]
[null,null,null,null,null,null,null,null,null,null,null,{"$f":"XBRLMap(L55,L$105&\".\"&$AB55&\".\"&$L$106&\".\"&$L$107,$D$73,$D$74,CONFIGURATION!$B$10,\"BMA\",CONFIGURATION!$B$1,\"bscr\",CONFIGURATION!$B$12)","v":"Mapped"},null,{"$f":"XBRLMap(N55,N$105&\".\"&$AB55&\".\"&$N$106&\".\"&$N$107,$D$73,$D$74,CONFIGURATION!$B$10,\"BMA\",CONFIGURATION!$B$1,\"bscr\",CONFIGURATION!$B$12)","v":"Mapped"},null,{"$f":"XBRLMap(P55,P$105&\".\"&$AB55&\".\"&$P$106&\".\"&$P$107,$D$73,$D$74,CONFIGURATION!$B$10,\"BMA\",CONFIGURATION!$B$1,\"bscr\",CONFIGURATION!$B$12)","v":"Mapped"},null,{"$f":"XBRLMap(R55,R$105&\".\"&$AB55&\".\"&$R$106&\".\"&$R$107,$D$73,$D$74,CONFIGURATION!$B$10,\"BMA\",CONFIGURATION!$B$1,\"bscr\",CONFIGURATION!$B$12)","v":"Mapped"}]
[null,null,null,null,null,null,null,null,null,null,null,{"$f":"XBRLMap(L56,L$105&\".\"&$AB56&\".\"&$L$106&\".\"&$L$107,$D$73,$D$74,CONFIGURATION!$B$10,\"BMA\",CONFIGURATION!$B$1,\"bscr\",CONFIGURATION!$B$12)","v":"Mapped"},null,{"$f":"XBRLMap(N56,N$105&\".\"&$AB56&\".\"&$N$106&\".\"&$N$107,$D$73,$D$74,CONFIGURATION!$B$10,\"BMA\",CONFIGURATION!$B$1,\"bscr\",CONFIGURATION!$B$12)","v":"Mapped"},null,{"$f":"XBRLMap(P56,P$105&\".\"&$AB56&\".\"&$P$106&\".\"&$P$107,$D$73,$D$74,CONFIGURATION!$B$10,\"BMA\",CONFIGURATION!$B$1,\"bscr\",CONFIGURATION!$B$12)","v":"Mapped"},null,{"$f":"XBRLMap(R56,R$105&\".\"&$AB56&\".\"&$R$106&\".\"&$R$107,$D$73,$D$74,CONFIGURATION!$B$10,\"BMA\",CONFIGURATION!$B$1,\"bscr\",CONFIGURATION!$B$12)","v":"Mapped"}]
[null,null,null,null,null,null,null,null,null,null,null,{"$f":"XBRLMap(L57,L$105&\".\"&$AB57&\".\"&$L$106&\".\"&$L$107,$D$73,$D$74,CONFIGURATION!$B$10,\"BMA\",CONFIGURATION!$B$1,\"bscr\",CONFIGURATION!$B$12)","v":"Mapped"},null,{"$f":"XBRLMap(N57,N$105&\".\"&$AB57&\".\"&$N$106&\".\"&$N$107,$D$73,$D$74,CONFIGURATION!$B$10,\"BMA\",CONFIGURATION!$B$1,\"bscr\",CONFIGURATION!$B$12)","v":"Mapped"},null,{"$f":"XBRLMap(P57,P$105&\".\"&$AB57&\".\"&$P$106&\".\"&$P$107,$D$73,$D$74,CONFIGURATION!$B$10,\"BMA\",CONFIGURATION!$B$1,\"bscr\",CONFIGURATION!$B$12)","v":"Mapped"},null,{"$f":"XBRLMap(R57,R$105&\".\"&$AB57&\".\"&$R$106&\".\"&$R$107,$D$73,$D$74,CONFIGURATION!$B$10,\"BMA\",CONFIGURATION!$B$1,\"bscr\",CONFIGURATION!$B$12)","v":"Mapped"}]
[null,null,null,null,null,null,null,null,null,null,null,{"$f":"XBRLMap(L58,L$105&\".\"&$AB58&\".\"&$L$106&\".\"&$L$107,$D$73,$D$74,CONFIGURATION!$B$10,\"BMA\",CONFIGURATION!$B$1,\"bscr\",CONFIGURATION!$B$12)","v":"Mapped"},null,{"$f":"XBRLMap(N58,N$105&\".\"&$AB58&\".\"&$N$106&\".\"&$N$107,$D$73,$D$74,CONFIGURATION!$B$10,\"BMA\",CONFIGURATION!$B$1,\"bscr\",CONFIGURATION!$B$12)","v":"Mapped"},null,{"$f":"XBRLMap(P58,P$105&\".\"&$AB58&\".\"&$P$106&\".\"&$P$107,$D$73,$D$74,CONFIGURATION!$B$10,\"BMA\",CONFIGURATION!$B$1,\"bscr\",CONFIGURATION!$B$12)","v":"Mapped"},null,{"$f":"XBRLMap(R58,R$105&\".\"&$AB58&\".\"&$R$106&\".\"&$R$107,$D$73,$D$74,CONFIGURATION!$B$10,\"BMA\",CONFIGURATION!$B$1,\"bscr\",CONFIGURATION!$B$12)","v":"Mapped"}]
[null,null,null,null,null,null,null,null,null,null,null,{"$f":"XBRLMap(L59,L$105&\".\"&$AB59&\".\"&$L$106&\".\"&$L$107,$D$73,$D$74,CONFIGURATION!$B$10,\"BMA\",CONFIGURATION!$B$1,\"bscr\",CONFIGURATION!$B$12)","v":"Mapped"},null,{"$f":"XBRLMap(N59,N$105&\".\"&$AB59&\".\"&$N$106&\".\"&$N$107,$D$73,$D$74,CONFIGURATION!$B$10,\"BMA\",CONFIGURATION!$B$1,\"bscr\",CONFIGURATION!$B$12)","v":"Mapped"},null,{"$f":"XBRLMap(P59,P$105&\".\"&$AB59&\".\"&$P$106&\".\"&$P$107,$D$73,$D$74,CONFIGURATION!$B$10,\"BMA\",CONFIGURATION!$B$1,\"bscr\",CONFIGURATION!$B$12)","v":"Mapped"},null,{"$f":"XBRLMap(R59,R$105&\".\"&$AB59&\".\"&$R$106&\".\"&$R$107,$D$73,$D$74,CONFIGURATION!$B$10,\"BMA\",CONFIGURATION!$B$1,\"bscr\",CONFIGURATION!$B$12)","v":"Mapped"}]
[null,null,null,null,null,null,null,null,null,null,null,{"$f":"XBRLMap(L60,L$105&\".\"&$AB60&\".\"&$L$106&\".\"&$L$107,$D$73,$D$74,CONFIGURATION!$B$10,\"BMA\",CONFIGURATION!$B$1,\"bscr\",CONFIGURATION!$B$12)","v":"Mapped"},null,{"$f":"XBRLMap(N60,N$105&\".\"&$AB60&\".\"&$N$106&\".\"&$N$107,$D$73,$D$74,CONFIGURATION!$B$10,\"BMA\",CONFIGURATION!$B$1,\"bscr\",CONFIGURATION!$B$12)","v":"Mapped"},null,{"$f":"XBRLMap(P60,P$105&\".\"&$AB60&\".\"&$P$106&\".\"&$P$107,$D$73,$D$74,CONFIGURATION!$B$10,\"BMA\",CONFIGURATION!$B$1,\"bscr\",CONFIGURATION!$B$12)","v":"Mapped"},null,{"$f":"XBRLMap(R60,R$105&\".\"&$AB60&\".\"&$R$106&\".\"&$R$107,$D$73,$D$74,CONFIGURATION!$B$10,\"BMA\",CONFIGURATION!$B$1,\"bscr\",CONFIGURATION!$B$12)","v":"Mapped"}]
[]
[null,null,null,null,null,null,null,null,null,null,null,{"$f":"XBRLMap(L62,L$105&\".\"&$AB62&\".\"&$L$106&\".\"&$L$107,$D$73,$D$74,CONFIGURATION!$B$10,\"BMA\",CONFIGURATION!$B$1,\"bscr\",CONFIGURATION!$B$12)","v":"Mapped"},null,{"$f":"XBRLMap(N62,N$105&\".\"&$AB62&\".\"&$N$106&\".\"&$N$107,$D$73,$D$74,CONFIGURATION!$B$10,\"BMA\",CONFIGURATION!$B$1,\"bscr\",CONFIGURATION!$B$12)","v":"Mapped"},null,{"$f":"XBRLMap(P62,P$105&\".\"&$AB62&\".\"&$P$106&\".\"&$P$107,$D$73,$D$74,CONFIGURATION!$B$10,\"BMA\",CONFIGURATION!$B$1,\"bscr\",CONFIGURATION!$B$12)","v":"Mapped"},null,{"$f":"XBRLMap(R62,R$105&\".\"&$AB62&\".\"&$R$106&\".\"&$R$107,$D$73,$D$74,CONFIGURATION!$B$10,\"BMA\",CONFIGURATION!$B$1,\"bscr\",CONFIGURATION!$B$12)","v":"Mapped"}]

{"sheet":"Schedule II (EBS)","index":21,"n_rows":115,"n_cols":28,"rows_kept":115,"cut":false,"hidden":false,"merged":[[6,19,6,21],[28,3,28,5],[28,7,28,9],[28,11,28,13],[28,19,28,21],[52,15,52,17],[54,3,54,5],[2,3,2,5],[3,3,3,5],[1,2,1,4],[6,3,6,5],[6,7,6,9],[6,11,6,13],[6,15,6,17],[51,3,51,5],[51,8,51,18],[52,11,52,13]]}
[null,"SCHEDULE OF FIXED INCOME & EQUITY INVESTMENTS BY BSCR RATING",null,null,null,null,null,null,null,null,null,null,null,null,null,null,null,null,null,null,null,{"$f":"HYPERLINK(\"#'Index'!A1\",\"Return to Index\")","v":"Return to Index"}]
[null,null,{"$f":"'Company Information'!C7","v":"Enter Company Name"}]
[null,null,"As at",{"$f":"'Company Information'!C3","v":"2019-12-31"},null,null,null,null,null,null,null,null,null,null,null,null,null,null,null,null,null,"SCHEDULE II (EBS)"]
[null,null,{"$f":"\"expressed in\"& IF(CONFIGURATION!$B$12>1,\" ['\"&MID(CONFIGURATION!$B$12,2,LEN(CONFIGURATION!$B$12))&\"s]\",\"\")","v":"expressed in ['000s]"},{"$f":"'Form 1EBS'!C4","v":"United States Dollars"}]
[]
[null,null,null,"(1)",null,"(2)",null,"(3)",null,"(4)",null,"(5)",null,"(6)",null,"(7)",null,"(8)",null,"(9)",null,"(10)"]
[null,null,null,"CORPORATE & SOVEREIGN BONDS",null,null,null,"RESIDENTIAL MORTGAGE-BACKED SECURITIES",null,null,null,"COMMERCIAL MORTGAGE-BACKED SECURITIES / ASSET-BACKED SECURITIES",null,null,null,"BOND MUTUAL FUNDS",null,null,null,"TOTAL\n[ Form 1EBS Lines 2(b) & 3(b)]"]
[null,null,null,{"$f":"+'Form 1EBS'!$F$7","v":"2019-12-31"},null,{"$f":"+'Form 1EBS'!$H$7","v":"2018-12-31"},null,{"$f":"+'Form 1EBS'!$F$7","v":"2019-12-31"},null,{"$f":"+'Form 1EBS'!$H$7","v":"2018-12-31"},null,{"$f":"+'Form 1EBS'!$F$7","v":"2019-12-31"},null,{"$f":"+'Form 1EBS'!$H$7","v":"2018-12-31"},null,{"$f":"+'Form 1EBS'!$F$7","v":"2019-12-31"},null,{"$f":"+'Form 1EBS'!$H$7","v":"2018-12-31"},null,{"$f":"+'Form 1EBS'!$F$7","v":"2019-12-31"},null,{"$f":"+'Form 1EBS'!$H$7","v":"2018-12-31"}]
[null,null,null,{"$f":"+'Form 1EBS'!$F$8","v":" ('000s)"},null,{"$f":"+'Form 1EBS'!$H$8","v":" ('000s)"},null,{"$f":"+'Form 1EBS'!$F$8","v":" ('000s)"},null,{"$f":"+'Form 1EBS'!$H$8","v":" ('000s)"},null,{"$f":"+'Form 1EBS'!$F$8","v":" ('000s)"},null,{"$f":"+'Form 1EBS'!$H$8","v":" ('000s)"},null,{"$f":"+'Form 1EBS'!$F$8","v":" ('000s)"},null,{"$f":"+'Form 1EBS'!$H$8","v":" ('000s)"},null,{"$f":"+'Form 1EBS'!$F$8","v":" ('000s)"},null,{"$f":"+'Form 1EBS'!$H$8","v":" ('000s)"}]
[null,"Line no. "]
[null,"Quoted and Unquoted Bonds and Debentures"]
[null,1,"BSCR Rating 0",{"$f":"Import!M478","v":0},null,{"$f":"Import!O478","v":0},null,null,null,null,null,null,null,null,null,{"$f":"Import!M503","v":0},null,{"$f":"Import!O503","v":0},null,{"$f":"D12+H12+L12+P12","v":0},null,{"$f":"F12+J12+N12+R12","v":0},null,null,"brrt_RiskGradeAxis_brrt_BSCRRating0Member"]
[null,2,"BSCR Rating 1",{"$f":"Import!M479","v":0},null,{"$f":"Import!O479","v":0},null,{"$f":"Import!M487","v":0},null,{"$f":"Import!O487","v":0},null,{"$f":"Import!M495","v":0},null,{"$f":"Import!O495","v":0},null,{"$f":"Import!M504","v":0},null,{"$f":"Import!O504","v":0},null,{"$f":"D13+H13+L13+P13","v":0},null,0,null,null,"brrt_RiskGradeAxis_brrt_BSCRRating1Member"]
[null,3,"BSCR Rating 2",{"$f":"Import!M480","v":0},null,{"$f":"Import!O480","v":0},null,{"$f":"Import!M488","v":0},null,{"$f":"Import!O488","v":0},null,{"$f":"Import!M496","v":0},null,{"$f":"Import!O496","v":0},null,{"$f":"Import!M505","v":0},null,{"$f":"Import!O505","v":0},null,0,null,0,null,null,"brrt_RiskGradeAxis_brrt_BSCRRating2Member"]
[null,4,"BSCR Rating 3",{"$f":"Import!M481","v":0},null,{"$f":"Import!O481","v":0},null,{"$f":"Import!M489","v":0},null,{"$f":"Import!O489","v":0},null,{"$f":"Import!M497","v":0},null,{"$f":"Import!O497","v":0},null,{"$f":"Import!M506","v":0},null,{"$f":"Import!O506","v":0},null,0,null,0,null,null,"brrt_RiskGradeAxis_brrt_BSCRRating3Member"]
[null,5,"BSCR Rating 4",{"$f":"Import!M482","v":0},null,{"$f":"Import!O482","v":0},null,{"$f":"Import!M490","v":0},null,{"$f":"Import!O490","v":0},null,{"$f":"Import!M498","v":0},null,{"$f":"Import!O498","v":0},null,{"$f":"Import!M507","v":0},null,{"$f":"Import!O507","v":0},null,0,null,0,null,null,"brrt_RiskGradeAxis_brrt_BSCRRating4Member"]
[null,6,"BSCR Rating 5",{"$f":"Import!M483","v":0},null,{"$f":"Import!O483","v":0},null,{"$f":"Import!M491","v":0},null,{"$f":"Import!O491","v":0},null,{"$f":"Import!M499","v":0},null,{"$f":"Import!O499","v":0},null,{"$f":"Import!M508","v":0},null,{"$f":"Import!O508","v":0},null,0,null,0,null,null,"brrt_RiskGradeAxis_brrt_BSCRRating5Member"]
[null,7,"BSCR Rating 6",{"$f":"Import!M484","v":0},null,{"$f":"Import!O484","v":0},null,{"$f":"Import!M492","v":0},null,{"$f":"Import!O492","v":0},null,{"$f":"Import!M500","v":0},null,{"$f":"Import!O500","v":0},null,{"$f":"Import!M509","v":0},null,{"$f":"Import!O509","v":0},null,0,null,0,null,null,"brrt_RiskGradeAxis_brrt_BSCRRating6Member"]
[null,8,"BSCR Rating 7",{"$f":"Import!M485","v":0},null,{"$f":"Import!O485","v":0},null,{"$f":"Import!M493","v":0},null,{"$f":"Import!O493","v":0},null,{"$f":"Import!M501","v":0},null,{"$f":"Import!O501","v":0},null,{"$f":"Import!M510","v":0},null,{"$f":"Import!O510","v":0},null,0,null,0,null,null,"brrt_RiskGradeAxis_brrt_BSCRRating7Member"]
[null,9,"BSCR Rating 8",{"$f":"Import!M486","v":0},null,{"$f":"Import!O486","v":0},null,{"$f":"Import!M494","v":0},null,{"$f":"Import!O494","v":0},null,{"$f":"Import!M502","v":0},null,{"$f":"Import!O502","v":0},null,{"$f":"Import!M511","v":0},null,{"$f":"Import!O511","v":0},null,0,null,0,null,null,"brrt_RiskGradeAxis_brrt_BSCRRating8Member"]
[]
[null,10,"Total",{"$f":"SUM(D12:D20)","v":0},null,{"$f":"SUM(F12:F20)","v":0},null,{"$f":"SUM(H12:H20)","v":0},null,{"$f":"SUM(J12:J20)","v":0},null,{"$f":"SUM(L12:L20)","v":0},null,{"$f":"SUM(N12:N20)","v":0},null,{"$f":"SUM(P11:P20)","v":0},null,{"$f":"SUM(R11:R20)","v":0},null,{"$f":"SUM(T12:T20)","v":0},null,{"$f":"SUM(V12:V20)","v":0},null,null,"brrt_RiskGradeAxis_brrt_TotalMember"]
[]
[null,null,null,null,null,null,null,null,null,null,null,null,null,null,null,null,null,null,null,{"$f":"IF(T25=\"TRUE\",HYPERLINK(\"#'Form 1EBS'!F13:F28\",\"TRUE\"),HYPERLINK(\"#'Form 1EBS'!F13:F28\",\"FALSE\"))","v":"TRUE"},null,{"$f":"IF(V25=\"TRUE\",HYPERLINK(\"#'Form 1EBS'!F13:F28\",\"TRUE\"),HYPERLINK(\"#'Form 1EBS'!F13:F28\",\"FALSE\"))","v":"TRUE"}]
[null,null,null,null,null,null,null,null,null,null,null,null,null,null,null,null,null,null,null,{"$f":"IF((ROUND((T22-('Form 1EBS'!F13+'Form 1EBS'!F23)),0))=0,\"TRUE\",\"FALSE\")","v":"TRUE"},null,{"$f":"IF((ROUND((V22-('Form 1EBS'!H13+'Form 1EBS'!H23)),0))=0,\"TRUE\",\"FALSE\")","v":"TRUE"}]
[null,null,"Difference",null,null,null,null,null,null,null,null,null,null,null,null," ",null,null,null,{"$f":"ROUND(('Form 1EBS'!F13+'Form 1EBS'!F23)-T22,0)","v":0},null,{"$f":"ROUND(('Form 1EBS'!H13+'Form 1EBS'!H23)-V22,0)","v":0}]
[]
[null,null,null,null,null,null,null,null,null,null,null,null,null,null,null,null,null,null,null,{"$f":"IF(T24=\"False\",\"Does not equal Form 1EBS Lines 2(b) & 3(b)\",\"\")","v":""},null,{"$f":"IF(V24=\"False\",\"Does not equal Form 1EBS Lines 2(b) & 3(b)\",\"\")","v":""}]
[null,null,null,"COMMON STOCK\n[ Form 1EBS Lines 2(c)(i) & 3(c)(i) ]",null,null,null,"PREFERRED STOCK\n[ Form 1EBS Lines 2(c)(ii) & 3(c)(ii) ]",null,null,null,"EQUITY MUTUAL FUNDS\n[ Form 1EBS Lines 2(c)(iii) & 3(c)(iii) ]",null,null,null,null,null,null,null,"TOTAL\n[ Form 1EBS Lines 2(d) & 3(d)]"]
[null,null,null,{"$f":"+'Form 1EBS'!$F$7","v":"2019-12-31"},null,{"$f":"+'Form 1EBS'!$H$7","v":"2018-12-31"},null,{"$f":"+'Form 1EBS'!$F$7","v":"2019-12-31"},null,{"$f":"+'Form 1EBS'!$H$7","v":"2018-12-31"},null,{"$f":"+'Form 1EBS'!$F$7","v":"2019-12-31"},null,{"$f":"+'Form 1EBS'!$H$7","v":"2018-12-31"},null,null,null,null,null,{"$f":"+'Form 1EBS'!$F$7","v":"2019-12-31"},null,{"$f":"+'Form 1EBS'!$H$7","v":"2018-12-31"}]
[null,null,null,{"$f":"+'Form 1EBS'!$F$8","v":" ('000s)"},null,{"$f":"+'Form 1EBS'!$H$8","v":" ('000s)"},null,{"$f":"+'Form 1EBS'!$F$8","v":" ('000s)"},null,{"$f":"+'Form 1EBS'!$H$8","v":" ('000s)"},null,{"$f":"+'Form 1EBS'!$F$8","v":" ('000s)"},null,{"$f":"+'Form 1EBS'!$H$8","v":" ('000s)"},null,null,null,null,null,{"$f":"+'Form 1EBS'!$F$8","v":" ('000s)"},null,{"$f":"+'Form 1EBS'!$H$8","v":" ('000s)"}]
[null,"Quoted and Unquoted Equities"]
[null,11,"BSCR Rating 1",null,null,null,null,{"$f":"Import!M514","v":0},null,{"$f":"Import!O514","v":0},null,null,null,null,null,null,null,null,null,{"$f":"D33+H33+L33","v":0},null,0,null,null,"brrt_RiskGradeAxis_brrt_BSCRRating1Member"]
[null,12,"BSCR Rating 2",null,null,null,null,{"$f":"Import!M515","v":0},null,{"$f":"Import!O515","v":0},null,null,null,null,null,null,null,null,null,0,null,0,null,null,"brrt_RiskGradeAxis_brrt_BSCRRating2Member"]
[null,13,"BSCR Rating 3",null,null,null,null,{"$f":"Import!M516","v":0},null,{"$f":"Import!O516","v":0},null,null,null,null,null,null,null,null,null,0,null,0,null,null,"brrt_RiskGradeAxis_brrt_BSCRRating3Member"]
[null,14,"BSCR Rating 4",null,null,null,null,{"$f":"Import!M517","v":0},null,{"$f":"Import!O517","v":0},null,null,null,null,null,null,null,null,null,0,null,0,null,null,"brrt_RiskGradeAxis_brrt_BSCRRating4Member"]
[null,15,"BSCR Rating 5",null,null,null,null,{"$f":"Import!M518","v":0},null,{"$f":"Import!O518","v":0},null,null,null,null,null,null,null,null,null,0,null,0,null,null,"brrt_RiskGradeAxis_brrt_BSCRRating5Member"]
[null,16,"BSCR Rating 6",null,null,null,null,{"$f":"Import!M519","v":0},null,{"$f":"Import!O519","v":0},null,null,null,null,null,null,null,null,null,0,null,0,null,null,"brrt_RiskGradeAxis_brrt_BSCRRating6Member"]
[null,17,"BSCR Rating 7",null,null,null,null,{"$f":"Import!M520","v":0},null,{"$f":"Import!O520","v":0},null,null,null,null,null,null,null,null,null,0,null,0,null,null,"brrt_RiskGradeAxis_brrt_BSCRRating7Member"]
[null,18,"BSCR Rating 8",null,null,null,null,{"$f":"Import!M521","v":0},null,{"$f":"Import!O521","v":0},null,null,null,null,null,null,null,null,null,0,null,0,null,null,"brrt_RiskGradeAxis_brrt_BSCRRating8Member"]
[null,19,"Quoted Equity Funds",{"$f":"+'Form 1EBS'!F15","v":0},null,{"$f":"+'Form 1EBS'!H15","v":0},null,null,null,null,null,{"$f":"+'Form 1EBS'!F17","v":0},null,{"$f":"+'Form 1EBS'!H17","v":0},null,null,null,null,null,{"$f":"D41+H41+L41","v":0},null,{"$f":"F41+J41+N41","v":0}]
[null,20,"Unquoted Equity Funds",{"$f":"+'Form 1EBS'!F25","v":0},null,{"$f":"+'Form 1EBS'!H25","v":0},null,null,null,null,null,{"$f":"+'Form 1EBS'!F27","v":0},null,{"$f":"+'Form 1EBS'!H27","v":0},null,null,null,null,null,{"$f":"D42+H42+L42","v":0},null,0]
[]
[null,21,"Total",{"$f":"SUM(D33:D42)","v":0},null,{"$f":"SUM(F33:F42)","v":0},null,{"$f":"SUM(H33:H42)","v":0},null,{"$f":"SUM(J33:J42)","v":0},null,{"$f":"SUM(L32:L42)","v":0},null,{"$f":"SUM(N32:N42)","v":0},null,null,null,null,null,{"$f":"SUM(T33:T42)","v":0},null,{"$f":"SUM(V33:V42)","v":0},null,null,"brrt_RiskGradeAxis_brrt_TotalMember"]
[]
[null,null,null,{"$f":"IF(D47=\"TRUE\",HYPERLINK(\"#'Form 1EBS'!F15:F25\",\"TRUE\"),HYPERLINK(\"#'Form 1EBS'!F15:F25\",\"FALSE\"))","v":"TRUE"},null,{"$f":"IF(F47=\"TRUE\",HYPERLINK(\"#'Form 1EBS'!H15:H25\",\"TRUE\"),HYPERLINK(\"#'Form 1EBS'!H15:H25\",\"FALSE\"))","v":"TRUE"},null,{"$f":"IF(H47=\"TRUE\",HYPERLINK(\"#'Form 1EBS'!F16:F26\",\"TRUE\"),HYPERLINK(\"#'Form 1EBS'!F16:F26\",\"FALSE\"))","v":"TRUE"},null,{"$f":"IF(J47=\"TRUE\",HYPERLINK(\"#'Form 1EBS'!H16:H26\",\"TRUE\"),HYPERLINK(\"#'Form 1EBS'!H16:H26\",\"FALSE\"))","v":"TRUE"},null,{"$f":"IF(L47=\"TRUE\",HYPERLINK(\"#'Form 1EBS'!F17:F27\",\"TRUE\"),HYPERLINK(\"#'Form 1EBS'!F17:F27\",\"FALSE\"))","v":"TRUE"},null,{"$f":"IF(N47=\"TRUE\",HYPERLINK(\"#'Form 1EBS'!H17:H27\",\"TRUE\"),HYPERLINK(\"#'Form 1EBS'!H17:H27\",\"FALSE\"))","v":"TRUE"},null,null,null,null,null,{"$f":"IF(T47=\"TRUE\",HYPERLINK(\"#'Form 1EBS'!F15:F29\",\"TRUE\"),HYPERLINK(\"#'Form 1EBS'!F15:F29\",\"FALSE\"))","v":"TRUE"},null,{"$f":"IF(V47=\"TRUE\",HYPERLINK(\"#'Form 1EBS'!H15:H29\",\"TRUE\"),HYPERLINK(\"#'Form 1EBS'!H15:H29\",\"FALSE\"))","v":"TRUE"}]
[null,null,null,{"$f":"IF(ROUND(D44-('Form 1EBS'!F15+'Form 1EBS'!F25),0)=0,\"TRUE\",\"FALSE\")","v":"TRUE"},null,{"$f":"IF(ROUND(F44-('Form 1EBS'!H15+'Form 1EBS'!H25),0)=0,\"TRUE\",\"FALSE\")","v":"TRUE"},null,{"$f":"IF((ROUND((H44-('Form 1EBS'!F16+'Form 1EBS'!F26)),0))=0,\"TRUE\",\"FALSE\")","v":"TRUE"},null,{"$f":"IF((ROUND((J44-('Form 1EBS'!H16+'Form 1EBS'!H26)),0))=0,\"TRUE\",\"FALSE\")","v":"TRUE"},null,{"$f":"IF(ROUND(L44-('Form 1EBS'!F17+'Form 1EBS'!F27),0)=0,\"TRUE\",\"FALSE\")","v":"TRUE"},null,{"$f":"IF(ROUND(N44-('Form 1EBS'!H17+'Form 1EBS'!H27),0)=0,\"TRUE\",\"FALSE\")","v":"TRUE"},null,null,null,null,null,{"$f":"IF(ROUND(T44-('Form 1EBS'!F18+'Form 1EBS'!F28),0)=0,\"TRUE\",\"FALSE\")","v":"TRUE"},null,{"$f":"IF(ROUND(V44-('Form 1EBS'!H18+'Form 1EBS'!H28),0)=0,\"TRUE\",\"FALSE\")","v":"TRUE"}]
[null,null,null,{"$f":"ROUND(('Form 1EBS'!F15+'Form 1EBS'!F25)-D44,0)","v":0},null,{"$f":"ROUND(('Form 1EBS'!H15+'Form 1EBS'!H25)-F44,0)","v":0},null,{"$f":"ROUND(('Form 1EBS'!F16+'Form 1EBS'!F26)-H44,0)","v":0},null,{"$f":"ROUND(('Form 1EBS'!H16+'Form 1EBS'!H26)-J44,0)","v":0},null,{"$f":"ROUND(('Form 1EBS'!F17+'Form 1EBS'!F27)-L44,0)","v":0},null,{"$f":"ROUND(('Form 1EBS'!H17+'Form 1EBS'!H27)-N44,0)","v":0},null,null,null,null,null,{"$f":"ROUND(('Form 1EBS'!F18+'Form 1EBS'!F28)-T44,0)","v":0},null,{"$f":"ROUND(('Form 1EBS'!H18+'Form 1EBS'!H28)-V44,0)","v":0}]
[]
[null,null,null,{"$f":"IF(D46=\"False\",\"Does not equal Form 1EBS Lines 2(c)(i) & 3(c)(i)\",\"\")","v":""},null,{"$f":"IF(F46=\"False\",\"Does not equal Form 1EBS Lines 2(c)(i) & 3(c)(i)\",\"\")","v":""},null,{"$f":"IF(H46=\"False\",\"Does not equal Form 1EBS Lines 2(c)(ii) & 3(c)(ii)\",\"\")","v":""},null,{"$f":"IF(J46=\"False\",\"Does not equal Form 1EBS Lines 2(c)(ii) & 3(c)(ii)\",\"\")","v":""},null,{"$f":"IF(L46=\"False\",\"Does not equal Form 1EBS Lines 2(c)(iii) & 3(c)(iii)\",\"\")","v":""},null,{"$f":"IF(N46=\"False\",\"Does not equal Form 1EBS Lines 2(c)(iii) & 3(c)(iii)\",\"\")","v":""},null,null,null,null,null,{"$f":"IF(T46=\"False\",\"Does not equal Form 1EBS Lines 2(d) & 3(d)\",\"\")","v":""},null,{"$f":"IF(V46=\"False\",\"Does not equal Form 1EBS Lines 2(d) & 3(d)\",\"\")","v":""}]
[]
[null,null,null,"MORTGAGE LOANS\n[ Form 1EBS Lines 5(c) ]",null,null,null,null,"This Section is Only Applicable to Companies that have Mortgage Backed Securities that have been Reclassified in Accordance with the NAIC and that elect to use NAIC reclassifications to map to the BSCR classes"]
[null,null,null,{"$f":"+'Form 1EBS'!$F$7","v":"2019-12-31"},null,{"$f":"+'Form 1EBS'!$H$7","v":"2018-12-31"},null,null,null,null,null,"VALUES OF RESIDENTIAL MORTGAGE BACKED SECURITIES",null,null,null,"VALUES OF COMMERCIAL MORTGAGE BACKED SECURITIES / ASSET BACKED SECURITIES"]
[null,null,null,{"$f":"+'Form 1EBS'!$F$8","v":" ('000s)"},null,{"$f":"+'Form 1EBS'!$H$8","v":" ('000s)"},null,null,null,null,null,"Original Classification",null,"Revised Classification",null,"Original Classification",null,"Revised Classification"]
[null,null,null,null,null,null,null,null,null,"NAIC Class 1",null,{"$f":"Import!M528","v":0},null,{"$f":"Import!M535","v":0},null,{"$f":"Import!M542","v":0},null,{"$f":"Import!M549","v":0}]
[null,"Mortgage Loans",null,null,null,null,null,null,null,"NAIC Class 2",null,{"$f":"Import!M529","v":0},null,{"$f":"Import!M536","v":0},null,{"$f":"Import!M543","v":0},null,{"$f":"Import!M550","v":0},null,null,null,null,null,null,null,null,null,"brrt_RiskGradeAxis_brrt_NAICClass1Member"]
[null,22,"Insured/Guaranteed Mortgages",{"$f":"Import!M524","v":0},null,{"$f":"Import!O524","v":0},null,null,null,"NAIC Class 3",null,{"$f":"Import!M530","v":0},null,{"$f":"Import!M537","v":0},null,{"$f":"Import!M544","v":0},null,{"$f":"Import!M551","v":0},null,null,null,null,null,null,null,null,null,"brrt_RiskGradeAxis_brrt_NAICClass2Member"]
[null,23,"Other Commercial and Farm Mortgages",{"$f":"Import!M525","v":0},null,{"$f":"Import!O525","v":0},null,null,null,"NAIC Class 4",null,{"$f":"Import!M531","v":0},null,{"$f":"Import!M538","v":0},null,{"$f":"Import!M545","v":0},null,{"$f":"Import!M552","v":0},null,null,null,null,null,"brrt_InvestmentsInMortgageLoansOnRealEstateInsuredGuaranteedMortgages",{"$f":"XBRLMap(D57,$X58,$D$73,$D$74,CONFIGURATION!$B$10,\"BMA\",CONFIGURATION!$B$1,\"bscr\",CONFIGURATION!$B$12)","v":"Mapped"},{"$f":"XBRLMap(F57,$X58,$F$73,$F$74,CONFIGURATION!$B$10,\"BMA\",CONFIGURATION!$B$1,\"bscr\",CONFIGURATION!$B$12)","v":"Mapped"},null,"brrt_RiskGradeAxis_brrt_NAICClass3Member"]
[null,24,"Other Residential Mortgages",{"$f":"Import!M526","v":0},null,{"$f":"Import!O526","v":0},null,null,null,"NAIC Class 5",null,{"$f":"Import!M532","v":0},null,{"$f":"Import!M539","v":0},null,{"$f":"Import!M546","v":0},null,{"$f":"Import!M553","v":0},null,null,null,null,null,"brrt_InvestmentsInMortgageLoansOnRealEstateOtherCommercialFarmMortgages",{"$f":"XBRLMap(D58,$X59,$D$73,$D$74,CONFIGURATION!$B$10,\"BMA\",CONFIGURATION!$B$1,\"bscr\",CONFIGURATION!$B$12)","v":"Mapped"},{"$f":"XBRLMap(F58,$X59,$F$73,$F$74,CONFIGURATION!$B$10,\"BMA\",CONFIGURATION!$B$1,\"bscr\",CONFIGURATION!$B$12)","v":"Mapped"},null,"brrt_RiskGradeAxis_brrt_NAICClass4Member"]
[null,25,"Mortgages Not In Good Standing",{"$f":"Import!M527","v":0},null,{"$f":"Import!O527","v":0},null,null,null,"NAIC Class 6",null,{"$f":"Import!M533","v":0},null,{"$f":"Import!M540","v":0},null,{"$f":"Import!M547","v":0},null,{"$f":"Import!M554","v":0},null,null,null,null,null,"brrt_InvestmentsInMortgageLoansOnRealEstateOtherResidentialMortgages",{"$f":"XBRLMap(D59,$X60,$D$73,$D$74,CONFIGURATION!$B$10,\"BMA\",CONFIGURATION!$B$1,\"bscr\",CONFIGURATION!$B$12)","v":"Mapped"},{"$f":"XBRLMap(F59,$X60,$F$73,$F$74,CONFIGURATION!$B$10,\"BMA\",CONFIGURATION!$B$1,\"bscr\",CONFIGURATION!$B$12)","v":"Mapped"},null,"brrt_RiskGradeAxis_brrt_NAICClass5Member"]
[null,null,null,null,null,null,null,null,null,null,null,null,null,null,null,null,null,null,null,null,null,null,null,"brrt_InvestmentsInMortgageLoansOnRealEstateMortgagesNotInGoodStanding",{"$f":"XBRLMap(D60,$X61,$D$73,$D$74,CONFIGURATION!$B$10,\"BMA\",CONFIGURATION!$B$1,\"bscr\",CONFIGURATION!$B$12)","v":"Mapped"},{"$f":"XBRLMap(F60,$X61,$F$73,$F$74,CONFIGURATION!$B$10,\"BMA\",CONFIGURATION!$B$1,\"bscr\",CONFIGURATION!$B$12)","v":"Mapped"},null,"brrt_RiskGradeAxis_brrt_NAICClass6Member"]
[null,26,"Total",{"$f":"SUM(D57:D60)","v":0},null,{"$f":"SUM(F57:F60)","v":0},null,null,null,null,null,{"$f":"SUM(L55:L60)","v":0},null,{"$f":"SUM(N55:N60)","v":0},null,{"$f":"SUM(P55:P60)","v":0},null,{"$f":"SUM(R55:R60)","v":0}]
[null,null,null,null,null,null,null,null,null,null,null,null,null,null,null,null,null,null,null,null,null,null,null,"Already mapped in Form 4",null,null,null,"brrt_RiskGradeAxis_brrt_TotalMember"]
[null,null,null,{"$f":"IF(D65=\"TRUE\",HYPERLINK(\"#'Form 1EBS'!F45\",\"TRUE\"),HYPERLINK(\"#'Form 1EBS'!F45\",\"FALSE\"))","v":"TRUE"},null,{"$f":"IF(F65=\"TRUE\",HYPERLINK(\"#'Form 1EBS'!H45\",\"TRUE\"),HYPERLINK(\"#'Form 1EBS'!H45\",\"FALSE\"))","v":"TRUE"}]
[null,null,null,{"$f":"IF(ROUND((D62-'Form 1EBS'!F45),0)=0,\"TRUE\",\"FALSE\")","v":"TRUE"},null,{"$f":"IF(ROUND((F62-'Form 1EBS'!H45),0)=0,\"TRUE\",\"FALSE\")","v":"TRUE"}]
[null,null,null,{"$f":"ROUND(('Form 1EBS'!F45)-D62,0)","v":0},null,{"$f":"ROUND(('Form 1EBS'!H45)-F62,0)","v":0},null,null,null,{"$f":"IF('Company Information'!$F$11=\"Class 3A\",HYPERLINK(\"#'Attachments'!G45\",\"Attach file\"),HYPERLINK(\"#'Attachments'!G65\",\"Attach file\"))","v":"Attach file"}]
[]
[null,null,null,{"$f":"IF(D64=\"False\",\"Does not equal Form 1EBS Line 5(c)\",\"\")","v":""},null,{"$f":"IF(F64=\"False\",\"Does not equal Form 1EBS Line 5(c)\",\"\")","v":""}]
[]
[]
[]
[]
[null,null,null,{"$f":"IF(D8=\"\",\"\",TEXT(DATE(YEAR(D8+1)-1,MONTH(D8+1),DAY(D8+1)),\"mm/dd/yyyy\"))","v":"01/01/2019"},null,{"$f":"IF(F8=\"\",\"\",TEXT(DATE(YEAR(F8+1)-1,MONTH(F8+1),DAY(F8+1)),\"mm/dd/yyyy\"))","v":"01/01/2018"}]
[null,null,null,{"$f":"IF(D8=\"\",\"\",TEXT(D8,\"mm/dd/yyyy\"))","v":"12/31/2019"},null,{"$f":"IF(F8=\"\",\"\",TEXT(F8,\"mm/dd/yyyy\"))","v":"12/31/2018"}]
[null,null,null,"brrt_BondsAndDebentures",null,"brrt_BondsAndDebentures",null,"brrt_BondsAndDebentures",null,"brrt_BondsAndDebentures",null,"brrt_BondsAndDebentures",null,"brrt_BondsAndDebentures",null,"brrt_BondsAndDebentures",null,"brrt_BondsAndDebentures",null,"brrt_BondsAndDebentures",null,"brrt_BondsAndDebentures"]
[null,null,null,"brrt_SecurityTypeAxis_brrt_CorporateSovereignBondsMember",null,"brrt_SecurityTypeAxis_brrt_CorporateSovereignBondsMember",null,"brrt_SecurityTypeAxis_brrt_ResidentialMortgageBackedSecuritiesMember",null,"brrt_SecurityTypeAxis_brrt_ResidentialMortgageBackedSecuritiesMember",null,"brrt_SecurityTypeAxis_brrt_CommercialMortgageBackedSecuritiesAssetBackedSecuritiesMember",null,"brrt_SecurityTypeAxis_brrt_CommercialMortgageBackedSecuritiesAssetBackedSecuritiesMember",null,"brrt_SecurityTypeAxis_brrt_MutualFundsMember",null,"brrt_SecurityTypeAxis_brrt_MutualFundsMember",null,"brrt_SecurityTypeAxis_brrt_TotalMember",null,"brrt_SecurityTypeAxis_brrt_TotalMember"]
[null,null,null,{"$f":"XBRLMap(D12,D$75&\".\"&$Y12&\".\"&$D$76,$D$73,$D$74,CONFIGURATION!$B$10,\"BMA\",CONFIGURATION!$B$1,\"bscr\",CONFIGURATION!$B$12)","v":"Mapped"},null,{"$f":"XBRLMap(F12,F$75&\".\"&$Y12&\".\"&$F$76,$F$73,$F$74,CONFIGURATION!$B$10,\"BMA\",CONFIGURATION!$B$1,\"bscr\",CONFIGURATION!$B$12)","v":"Mapped"},null,null,null,null,null,null,null,null,null,{"$f":"XBRLMap(P12,P$75&\".\"&$Y12&\".\"&$P$76,$D$73,$D$74,CONFIGURATION!$B$10,\"BMA\",CONFIGURATION!$B$1,\"bscr\",CONFIGURATION!$B$12)","v":"Mapped"},null,{"$f":"XBRLMap(R12,R$75&\".\"&$Y12&\".\"&$R$76,$F$73,$F$74,CONFIGURATION!$B$10,\"BMA\",CONFIGURATION!$B$1,\"bscr\",CONFIGURATION!$B$12)","v":"Mapped"},null,{"$f":"XBRLMap(T12,T$75&\".\"&$Y12&\".\"&$T$76,$D$73,$D$74,CONFIGURATION!$B$10,\"BMA\",CONFIGURATION!$B$1,\"bscr\",CONFIGURATION!$B$12)","v":"Mapped"},null,{"$f":"XBRLMap(V12,V$75&\".\"&$Y12&\".\"&$V$76,$F$73,$F$74,CONFIGURATION!$B$10,\"BMA\",CONFIGURATION!$B$1,\"bscr\",CONFIGURATION!$B$12)","v":"Mapped"}]
[null,null,null,{"$f":"XBRLMap(D13,D$75&\".\"&$Y13&\".\"&$D$76,$D$73,$D$74,CONFIGURATION!$B$10,\"BMA\",CONFIGURATION!$B$1,\"bscr\",CONFIGURATION!$B$12)","v":"Mapped"},null,{"$f":"XBRLMap(F13,F$75&\".\"&$Y13&\".\"&$F$76,$F$73,$F$74,CONFIGURATION!$B$10,\"BMA\",CONFIGURATION!$B$1,\"bscr\",CONFIGURATION!$B$12)","v":"Mapped"},null,{"$f":"XBRLMap(H13,H$75&\".\"&$Y13&\".\"&$H$76,$D$73,$D$74,CONFIGURATION!$B$10,\"BMA\",CONFIGURATION!$B$1,\"bscr\",CONFIGURATION!$B$12)","v":"Mapped"},null,{"$f":"XBRLMap(J13,J$75&\".\"&$Y13&\".\"&$J$76,$F$73,$F$74,CONFIGURATION!$B$10,\"BMA\",CONFIGURATION!$B$1,\"bscr\",CONFIGURATION!$B$12)","v":"Mapped"},null,{"$f":"XBRLMap(L13,L$75&\".\"&$Y13&\".\"&$L$76,$D$73,$D$74,CONFIGURATION!$B$10,\"BMA\",CONFIGURATION!$B$1,\"bscr\",CONFIGURATION!$B$12)","v":"Mapped"},null,{"$f":"XBRLMap(N13,N$75&\".\"&$Y13&\".\"&$N$76,$F$73,$F$74,CONFIGURATION!$B$10,\"BMA\",CONFIGURATION!$B$1,\"bscr\",CONFIGURATION!$B$12)","v":"Mapped"},null,{"$f":"XBRLMap(P13,P$75&\".\"&$Y13&\".\"&$P$76,$D$73,$D$74,CONFIGURATION!$B$10,\"BMA\",CONFIGURATION!$B$1,\"bscr\",CONFIGURATION!$B$12)","v":"Mapped"},null,{"$f":"XBRLMap(R13,R$75&\".\"&$Y13&\".\"&$R$76,$F$73,$F$74,CONFIGURATION!$B$10,\"BMA\",CONFIGURATION!$B$1,\"bscr\",CONFIGURATION!$B$12)","v":"Mapped"},null,{"$f":"XBRLMap(T13,T$75&\".\"&$Y13&\".\"&$T$76,$D$73,$D$74,CONFIGURATION!$B$10,\"BMA\",CONFIGURATION!$B$1,\"bscr\",CONFIGURATION!$B$12)","v":"Mapped"},null,{"$f":"XBRLMap(V13,V$75&\".\"&$Y13&\".\"&$V$76,$F$73,$F$74,CONFIGURATION!$B$10,\"BMA\",CONFIGURATION!$B$1,\"bscr\",CONFIGURATION!$B$12)","v":"Mapped"}]
[null,null,null,{"$f":"XBRLMap(D14,D$75&\".\"&$Y14&\".\"&$D$76,$D$73,$D$74,CONFIGURATION!$B$10,\"BMA\",CONFIGURATION!$B$1,\"bscr\",CONFIGURATION!$B$12)","v":"Mapped"},null,{"$f":"XBRLMap(F14,F$75&\".\"&$Y14&\".\"&$F$76,$F$73,$F$74,CONFIGURATION!$B$10,\"BMA\",CONFIGURATION!$B$1,\"bscr\",CONFIGURATION!$B$12)","v":"Mapped"},null,{"$f":"XBRLMap(H14,H$75&\".\"&$Y14&\".\"&$H$76,$D$73,$D$74,CONFIGURATION!$B$10,\"BMA\",CONFIGURATION!$B$1,\"bscr\",CONFIGURATION!$B$12)","v":"Mapped"},null,{"$f":"XBRLMap(J14,J$75&\".\"&$Y14&\".\"&$J$76,$F$73,$F$74,CONFIGURATION!$B$10,\"BMA\",CONFIGURATION!$B$1,\"bscr\",CONFIGURATION!$B$12)","v":"Mapped"},null,{"$f":"XBRLMap(L14,L$75&\".\"&$Y14&\".\"&$L$76,$D$73,$D$74,CONFIGURATION!$B$10,\"BMA\",CONFIGURATION!$B$1,\"bscr\",CONFIGURATION!$B$12)","v":"Mapped"},null,{"$f":"XBRLMap(N14,N$75&\".\"&$Y14&\".\"&$N$76,$F$73,$F$74,CONFIGURATION!$B$10,\"BMA\",CONFIGURATION!$B$1,\"bscr\",CONFIGURATION!$B$12)","v":"Mapped"},null,{"$f":"XBRLMap(P14,P$75&\".\"&$Y14&\".\"&$P$76,$D$73,$D$74,CONFIGURATION!$B$10,\"BMA\",CONFIGURATION!$B$1,\"bscr\",CONFIGURATION!$B$12)","v":"Mapped"},null,{"$f":"XBRLMap(R14,R$75&\".\"&$Y14&\".\"&$R$76,$F$73,$F$74,CONFIGURATION!$B$10,\"BMA\",CONFIGURATION!$B$1,\"bscr\",CONFIGURATION!$B$12)","v":"Mapped"},null,{"$f":"XBRLMap(T14,T$75&\".\"&$Y14&\".\"&$T$76,$D$73,$D$74,CONFIGURATION!$B$10,\"BMA\",CONFIGURATION!$B$1,\"bscr\",CONFIGURATION!$B$12)","v":"Mapped"},null,{"$f":"XBRLMap(V14,V$75&\".\"&$Y14&\".\"&$V$76,$F$73,$F$74,CONFIGURATION!$B$10,\"BMA\",CONFIGURATION!$B$1,\"bscr\",CONFIGURATION!$B$12)","v":"Mapped"}]
[null,null,null,{"$f":"XBRLMap(D15,D$75&\".\"&$Y15&\".\"&$D$76,$D$73,$D$74,CONFIGURATION!$B$10,\"BMA\",CONFIGURATION!$B$1,\"bscr\",CONFIGURATION!$B$12)","v":"Mapped"},null,{"$f":"XBRLMap(F15,F$75&\".\"&$Y15&\".\"&$F$76,$F$73,$F$74,CONFIGURATION!$B$10,\"BMA\",CONFIGURATION!$B$1,\"bscr\",CONFIGURATION!$B$12)","v":"Mapped"},null,{"$f":"XBRLMap(H15,H$75&\".\"&$Y15&\".\"&$H$76,$D$73,$D$74,CONFIGURATION!$B$10,\"BMA\",CONFIGURATION!$B$1,\"bscr\",CONFIGURATION!$B$12)","v":"Mapped"},null,{"$f":"XBRLMap(J15,J$75&\".\"&$Y15&\".\"&$J$76,$F$73,$F$74,CONFIGURATION!$B$10,\"BMA\",CONFIGURATION!$B$1,\"bscr\",CONFIGURATION!$B$12)","v":"Mapped"},null,{"$f":"XBRLMap(L15,L$75&\".\"&$Y15&\".\"&$L$76,$D$73,$D$74,CONFIGURATION!$B$10,\"BMA\",CONFIGURATION!$B$1,\"bscr\",CONFIGURATION!$B$12)","v":"Mapped"},null,{"$f":"XBRLMap(N15,N$75&\".\"&$Y15&\".\"&$N$76,$F$73,$F$74,CONFIGURATION!$B$10,\"BMA\",CONFIGURATION!$B$1,\"bscr\",CONFIGURATION!$B$12)","v":"Mapped"},null,{"$f":"XBRLMap(P15,P$75&\".\"&$Y15&\".\"&$P$76,$D$73,$D$74,CONFIGURATION!$B$10,\"BMA\",CONFIGURATION!$B$1,\"bscr\",CONFIGURATION!$B$12)","v":"Mapped"},null,{"$f":"XBRLMap(R15,R$75&\".\"&$Y15&\".\"&$R$76,$F$73,$F$74,CONFIGURATION!$B$10,\"BMA\",CONFIGURATION!$B$1,\"bscr\",CONFIGURATION!$B$12)","v":"Mapped"},null,{"$f":"XBRLMap(T15,T$75&\".\"&$Y15&\".\"&$T$76,$D$73,$D$74,CONFIGURATION!$B$10,\"BMA\",CONFIGURATION!$B$1,\"bscr\",CONFIGURATION!$B$12)","v":"Mapped"},null,{"$f":"XBRLMap(V15,V$75&\".\"&$Y15&\".\"&$V$76,$F$73,$F$74,CONFIGURATION!$B$10,\"BMA\",CONFIGURATION!$B$1,\"bscr\",CONFIGURATION!$B$12)","v":"Mapped"}]
[null,null,null,{"$f":"XBRLMap(D16,D$75&\".\"&$Y16&\".\"&$D$76,$D$73,$D$74,CONFIGURATION!$B$10,\"BMA\",CONFIGURATION!$B$1,\"bscr\",CONFIGURATION!$B$12)","v":"Mapped"},null,{"$f":"XBRLMap(F16,F$75&\".\"&$Y16&\".\"&$F$76,$F$73,$F$74,CONFIGURATION!$B$10,\"BMA\",CONFIGURATION!$B$1,\"bscr\",CONFIGURATION!$B$12)","v":"Mapped"},null,{"$f":"XBRLMap(H16,H$75&\".\"&$Y16&\".\"&$H$76,$D$73,$D$74,CONFIGURATION!$B$10,\"BMA\",CONFIGURATION!$B$1,\"bscr\",CONFIGURATION!$B$12)","v":"Mapped"},null,{"$f":"XBRLMap(J16,J$75&\".\"&$Y16&\".\"&$J$76,$F$73,$F$74,CONFIGURATION!$B$10,\"BMA\",CONFIGURATION!$B$1,\"bscr\",CONFIGURATION!$B$12)","v":"Mapped"},null,{"$f":"XBRLMap(L16,L$75&\".\"&$Y16&\".\"&$L$76,$D$73,$D$74,CONFIGURATION!$B$10,\"BMA\",CONFIGURATION!$B$1,\"bscr\",CONFIGURATION!$B$12)","v":"Mapped"},null,{"$f":"XBRLMap(N16,N$75&\".\"&$Y16&\".\"&$N$76,$F$73,$F$74,CONFIGURATION!$B$10,\"BMA\",CONFIGURATION!$B$1,\"bscr\",CONFIGURATION!$B$12)","v":"Mapped"},null,{"$f":"XBRLMap(P16,P$75&\".\"&$Y16&\".\"&$P$76,$D$73,$D$74,CONFIGURATION!$B$10,\"BMA\",CONFIGURATION!$B$1,\"bscr\",CONFIGURATION!$B$12)","v":"Mapped"},null,{"$f":"XBRLMap(R16,R$75&\".\"&$Y16&\".\"&$R$76,$F$73,$F$74,CONFIGURATION!$B$10,\"BMA\",CONFIGURATION!$B$1,\"bscr\",CONFIGURATION!$B$12)","v":"Mapped"},null,{"$f":"XBRLMap(T16,T$75&\".\"&$Y16&\".\"&$T$76,$D$73,$D$74,CONFIGURATION!$B$10,\"BMA\",CONFIGURATION!$B$1,\"bscr\",CONFIGURATION!$B$12)","v":"Mapped"},null,{"$f":"XBRLMap(V16,V$75&\".\"&$Y16&\".\"&$V$76,$F$73,$F$74,CONFIGURATION!$B$10,\"BMA\",CONFIGURATION!$B$1,\"bscr\",CONFIGURATION!$B$12)","v":"Mapped"}]
[null,null,null,{"$f":"XBRLMap(D17,D$75&\".\"&$Y17&\".\"&$D$76,$D$73,$D$74,CONFIGURATION!$B$10,\"BMA\",CONFIGURATION!$B$1,\"bscr\",CONFIGURATION!$B$12)","v":"Mapped"},null,{"$f":"XBRLMap(F17,F$75&\".\"&$Y17&\".\"&$F$76,$F$73,$F$74,CONFIGURATION!$B$10,\"BMA\",CONFIGURATION!$B$1,\"bscr\",CONFIGURATION!$B$12)","v":"Mapped"},null,{"$f":"XBRLMap(H17,H$75&\".\"&$Y17&\".\"&$H$76,$D$73,$D$74,CONFIGURATION!$B$10,\"BMA\",CONFIGURATION!$B$1,\"bscr\",CONFIGURATION!$B$12)","v":"Mapped"},null,{"$f":"XBRLMap(J17,J$75&\".\"&$Y17&\".\"&$J$76,$F$73,$F$74,CONFIGURATION!$B$10,\"BMA\",CONFIGURATION!$B$1,\"bscr\",CONFIGURATION!$B$12)","v":"Mapped"},null,{"$f":"XBRLMap(L17,L$75&\".\"&$Y17&\".\"&$L$76,$D$73,$D$74,CONFIGURATION!$B$10,\"BMA\",CONFIGURATION!$B$1,\"bscr\",CONFIGURATION!$B$12)","v":"Mapped"},null,{"$f":"XBRLMap(N17,N$75&\".\"&$Y17&\".\"&$N$76,$F$73,$F$74,CONFIGURATION!$B$10,\"BMA\",CONFIGURATION!$B$1,\"bscr\",CONFIGURATION!$B$12)","v":"Mapped"},null,{"$f":"XBRLMap(P17,P$75&\".\"&$Y17&\".\"&$P$76,$D$73,$D$74,CONFIGURATION!$B$10,\"BMA\",CONFIGURATION!$B$1,\"bscr\",CONFIGURATION!$B$12)","v":"Mapped"},null,{"$f":"XBRLMap(R17,R$75&\".\"&$Y17&\".\"&$R$76,$F$73,$F$74,CONFIGURATION!$B$10,\"BMA\",CONFIGURATION!$B$1,\"bscr\",CONFIGURATION!$B$12)","v":"Mapped"},null,{"$f":"XBRLMap(T17,T$75&\".\"&$Y17&\".\"&$T$76,$D$73,$D$74,CONFIGURATION!$B$10,\"BMA\",CONFIGURATION!$B$1,\"bscr\",CONFIGURATION!$B$12)","v":"Mapped"},null,{"$f":"XBRLMap(V17,V$75&\".\"&$Y17&\".\"&$V$76,$F$73,$F$74,CONFIGURATION!$B$10,\"BMA\",CONFIGURATION!$B$1,\"bscr\",CONFIGURATION!$B$12)","v":"Mapped"}]
[null,null,null,{"$f":"XBRLMap(D18,D$75&\".\"&$Y18&\".\"&$D$76,$D$73,$D$74,CONFIGURATION!$B$10,\"BMA\",CONFIGURATION!$B$1,\"bscr\",CONFIGURATION!$B$12)","v":"Mapped"},null,{"$f":"XBRLMap(F18,F$75&\".\"&$Y18&\".\"&$F$76,$F$73,$F$74,CONFIGURATION!$B$10,\"BMA\",CONFIGURATION!$B$1,\"bscr\",CONFIGURATION!$B$12)","v":"Mapped"},null,{"$f":"XBRLMap(H18,H$75&\".\"&$Y18&\".\"&$H$76,$D$73,$D$74,CONFIGURATION!$B$10,\"BMA\",CONFIGURATION!$B$1,\"bscr\",CONFIGURATION!$B$12)","v":"Mapped"},null,{"$f":"XBRLMap(J18,J$75&\".\"&$Y18&\".\"&$J$76,$F$73,$F$74,CONFIGURATION!$B$10,\"BMA\",CONFIGURATION!$B$1,\"bscr\",CONFIGURATION!$B$12)","v":"Mapped"},null,{"$f":"XBRLMap(L18,L$75&\".\"&$Y18&\".\"&$L$76,$D$73,$D$74,CONFIGURATION!$B$10,\"BMA\",CONFIGURATION!$B$1,\"bscr\",CONFIGURATION!$B$12)","v":"Mapped"},null,{"$f":"XBRLMap(N18,N$75&\".\"&$Y18&\".\"&$N$76,$F$73,$F$74,CONFIGURATION!$B$10,\"BMA\",CONFIGURATION!$B$1,\"bscr\",CONFIGURATION!$B$12)","v":"Mapped"},null,{"$f":"XBRLMap(P18,P$75&\".\"&$Y18&\".\"&$P$76,$D$73,$D$74,CONFIGURATION!$B$10,\"BMA\",CONFIGURATION!$B$1,\"bscr\",CONFIGURATION!$B$12)","v":"Mapped"},null,{"$f":"XBRLMap(R18,R$75&\".\"&$Y18&\".\"&$R$76,$F$73,$F$74,CONFIGURATION!$B$10,\"BMA\",CONFIGURATION!$B$1,\"bscr\",CONFIGURATION!$B$12)","v":"Mapped"},null,{"$f":"XBRLMap(T18,T$75&\".\"&$Y18&\".\"&$T$76,$D$73,$D$74,CONFIGURATION!$B$10,\"BMA\",CONFIGURATION!$B$1,\"bscr\",CONFIGURATION!$B$12)","v":"Mapped"},null,{"$f":"XBRLMap(V18,V$75&\".\"&$Y18&\".\"&$V$76,$F$73,$F$74,CONFIGURATION!$B$10,\"BMA\",CONFIGURATION!$B$1,\"bscr\",CONFIGURATION!$B$12)","v":"Mapped"}]
[null,null,null,{"$f":"XBRLMap(D19,D$75&\".\"&$Y19&\".\"&$D$76,$D$73,$D$74,CONFIGURATION!$B$10,\"BMA\",CONFIGURATION!$B$1,\"bscr\",CONFIGURATION!$B$12)","v":"Mapped"},null,{"$f":"XBRLMap(F19,F$75&\".\"&$Y19&\".\"&$F$76,$F$73,$F$74,CONFIGURATION!$B$10,\"BMA\",CONFIGURATION!$B$1,\"bscr\",CONFIGURATION!$B$12)","v":"Mapped"},null,{"$f":"XBRLMap(H19,H$75&\".\"&$Y19&\".\"&$H$76,$D$73,$D$74,CONFIGURATION!$B$10,\"BMA\",CONFIGURATION!$B$1,\"bscr\",CONFIGURATION!$B$12)","v":"Mapped"},null,{"$f":"XBRLMap(J19,J$75&\".\"&$Y19&\".\"&$J$76,$F$73,$F$74,CONFIGURATION!$B$10,\"BMA\",CONFIGURATION!$B$1,\"bscr\",CONFIGURATION!$B$12)","v":"Mapped"},null,{"$f":"XBRLMap(L19,L$75&\".\"&$Y19&\".\"&$L$76,$D$73,$D$74,CONFIGURATION!$B$10,\"BMA\",CONFIGURATION!$B$1,\"bscr\",CONFIGURATION!$B$12)","v":"Mapped"},null,{"$f":"XBRLMap(N19,N$75&\".\"&$Y19&\".\"&$N$76,$F$73,$F$74,CONFIGURATION!$B$10,\"BMA\",CONFIGURATION!$B$1,\"bscr\",CONFIGURATION!$B$12)","v":"Mapped"},null,{"$f":"XBRLMap(P19,P$75&\".\"&$Y19&\".\"&$P$76,$D$73,$D$74,CONFIGURATION!$B$10,\"BMA\",CONFIGURATION!$B$1,\"bscr\",CONFIGURATION!$B$12)","v":"Mapped"},null,{"$f":"XBRLMap(R19,R$75&\".\"&$Y19&\".\"&$R$76,$F$73,$F$74,CONFIGURATION!$B$10,\"BMA\",CONFIGURATION!$B$1,\"bscr\",CONFIGURATION!$B$12)","v":"Mapped"},null,{"$f":"XBRLMap(T19,T$75&\".\"&$Y19&\".\"&$T$76,$D$73,$D$74,CONFIGURATION!$B$10,\"BMA\",CONFIGURATION!$B$1,\"bscr\",CONFIGURATION!$B$12)","v":"Mapped"},null,{"$f":"XBRLMap(V19,V$75&\".\"&$Y19&\".\"&$V$76,$F$73,$F$74,CONFIGURATION!$B$10,\"BMA\",CONFIGURATION!$B$1,\"bscr\",CONFIGURATION!$B$12)","v":"Mapped"}]
[null,null,null,{"$f":"XBRLMap(D20,D$75&\".\"&$Y20&\".\"&$D$76,$D$73,$D$74,CONFIGURATION!$B$10,\"BMA\",CONFIGURATION!$B$1,\"bscr\",CONFIGURATION!$B$12)","v":"Mapped"},null,{"$f":"XBRLMap(F20,F$75&\".\"&$Y20&\".\"&$F$76,$F$73,$F$74,CONFIGURATION!$B$10,\"BMA\",CONFIGURATION!$B$1,\"bscr\",CONFIGURATION!$B$12)","v":"Mapped"},null,{"$f":"XBRLMap(H20,H$75&\".\"&$Y20&\".\"&$H$76,$D$73,$D$74,CONFIGURATION!$B$10,\"BMA\",CONFIGURATION!$B$1,\"bscr\",CONFIGURATION!$B$12)","v":"Mapped"},null,{"$f":"XBRLMap(J20,J$75&\".\"&$Y20&\".\"&$J$76,$F$73,$F$74,CONFIGURATION!$B$10,\"BMA\",CONFIGURATION!$B$1,\"bscr\",CONFIGURATION!$B$12)","v":"Mapped"},null,{"$f":"XBRLMap(L20,L$75&\".\"&$Y20&\".\"&$L$76,$D$73,$D$74,CONFIGURATION!$B$10,\"BMA\",CONFIGURATION!$B$1,\"bscr\",CONFIGURATION!$B$12)","v":"Mapped"},null,{"$f":"XBRLMap(N20,N$75&\".\"&$Y20&\".\"&$N$76,$F$73,$F$74,CONFIGURATION!$B$10,\"BMA\",CONFIGURATION!$B$1,\"bscr\",CONFIGURATION!$B$12)","v":"Mapped"},null,{"$f":"XBRLMap(P20,P$75&\".\"&$Y20&\".\"&$P$76,$D$73,$D$74,CONFIGURATION!$B$10,\"BMA\",CONFIGURATION!$B$1,\"bscr\",CONFIGURATION!$B$12)","v":"Mapped"},null,{"$f":"XBRLMap(R20,R$75&\".\"&$Y20&\".\"&$R$76,$F$73,$F$74,CONFIGURATION!$B$10,\"BMA\",CONFIGURATION!$B$1,\"bscr\",CONFIGURATION!$B$12)","v":"Mapped"},null,{"$f":"XBRLMap(T20,T$75&\".\"&$Y20&\".\"&$T$76,$D$73,$D$74,CONFIGURATION!$B$10,\"BMA\",CONFIGURATION!$B$1,\"bscr\",CONFIGURATION!$B$12)","v":"Mapped"},null,{"$f":"XBRLMap(V20,V$75&\".\"&$Y20&\".\"&$V$76,$F$73,$F$74,CONFIGURATION!$B$10,\"BMA\",CONFIGURATION!$B$1,\"bscr\",CONFIGURATION!$B$12)","v":"Mapped"}]
[]
[null,null,null,{"$f":"XBRLMap(D22,D$75&\".\"&$Y22&\".\"&$D$76,$D$73,$D$74,CONFIGURATION!$B$10,\"BMA\",CONFIGURATION!$B$1,\"bscr\",CONFIGURATION!$B$12)","v":"Mapped"},null,{"$f":"XBRLMap(F22,F$75&\".\"&$Y22&\".\"&$F$76,$F$73,$F$74,CONFIGURATION!$B$10,\"BMA\",CONFIGURATION!$B$1,\"bscr\",CONFIGURATION!$B$12)","v":"Mapped"},null,{"$f":"XBRLMap(H22,H$75&\".\"&$Y22&\".\"&$H$76,$D$73,$D$74,CONFIGURATION!$B$10,\"BMA\",CONFIGURATION!$B$1,\"bscr\",CONFIGURATION!$B$12)","v":"Mapped"},null,{"$f":"XBRLMap(J22,J$75&\".\"&$Y22&\".\"&$J$76,$F$73,$F$74,CONFIGURATION!$B$10,\"BMA\",CONFIGURATION!$B$1,\"bscr\",CONFIGURATION!$B$12)","v":"Mapped"},null,{"$f":"XBRLMap(L22,L$75&\".\"&$Y22&\".\"&$L$76,$D$73,$D$74,CONFIGURATION!$B$10,\"BMA\",CONFIGURATION!$B$1,\"bscr\",CONFIGURATION!$B$12)","v":"Mapped"},null,{"$f":"XBRLMap(N22,N$75&\".\"&$Y22&\".\"&$N$76,$F$73,$F$74,CONFIGURATION!$B$10,\"BMA\",CONFIGURATION!$B$1,\"bscr\",CONFIGURATION!$B$12)","v":"Mapped"},null,{"$f":"XBRLMap(P22,P$75&\".\"&$Y22&\".\"&$P$76,$D$73,$D$74,CONFIGURATION!$B$10,\"BMA\",CONFIGURATION!$B$1,\"bscr\",CONFIGURATION!$B$12)","v":"Mapped"},null,{"$f":"XBRLMap(R22,R$75&\".\"&$Y22&\".\"&$R$76,$F$73,$F$74,CONFIGURATION!$B$10,\"BMA\",CONFIGURATION!$B$1,\"bscr\",CONFIGURATION!$B$12)","v":"Mapped"},null,{"$f":"XBRLMap(T22,T$75&\".\"&$Y22&\".\"&$T$76,$D$73,$D$74,CONFIGURATION!$B$10,\"BMA\",CONFIGURATION!$B$1,\"bscr\",CONFIGURATION!$B$12)","v":"Mapped"},null,{"$f":"XBRLMap(V22,V$75&\".\"&$Y22&\".\"&$V$76,$F$73,$F$74,CONFIGURATION!$B$10,\"BMA\",CONFIGURATION!$B$1,\"bscr\",CONFIGURATION!$B$12)","v":"Mapped"}]
[null,null,null,null,null,null,null,null,null,null,null,null,null,null,null,null,null,null,null,"brrt_QuotedInvestmentsEquitiesCommonStocksMutualFunds",null,"brrt_QuotedInvestmentsEquitiesCommonStocksMutualFunds"]
[null,null,null,null,null,null,null,null,null,null,null,null,null,null,null,null,null,null,null,"brrt_UnquotedInvestmentsEquitiesCommonStocksMutualFunds",null,"brrt_UnquotedInvestmentsEquitiesCommonStocksMutualFunds"]
[null,null,null,"brrt_EquitiesCommonStocks",null,"brrt_EquitiesCommonStocks",null,"brrt_EquitiesPreferredStocks",null,"brrt_EquitiesPreferredStocks",null,"brrt_EquitiesMutualFunds",null,"brrt_EquitiesMutualFunds",null,null,null,null,null,"brrt_Equities",null,"brrt_Equities"]
[null,null,null,null,null,null,null,{"$f":"XBRLMap(H33,H$90&\".\"&$Y33,$D$73,$D$74,CONFIGURATION!$B$10,\"BMA\",CONFIGURATION!$B$1,\"bscr\",CONFIGURATION!$B$12)","v":"Mapped"},null,{"$f":"XBRLMap(J33,J$90&\".\"&$Y33,$F$73,$F$74,CONFIGURATION!$B$10,\"BMA\",CONFIGURATION!$B$1,\"bscr\",CONFIGURATION!$B$12)","v":"Mapped"},null,null,null,null,null,null,null,null,null,"The same data point as in column H",null,"The same data point as in column J"]
[null,null,null,null,null,null,null,{"$f":"XBRLMap(H34,H$90&\".\"&$Y34,$D$73,$D$74,CONFIGURATION!$B$10,\"BMA\",CONFIGURATION!$B$1,\"bscr\",CONFIGURATION!$B$12)","v":"Mapped"},null,{"$f":"XBRLMap(J34,J$90&\".\"&$Y34,$F$73,$F$74,CONFIGURATION!$B$10,\"BMA\",CONFIGURATION!$B$1,\"bscr\",CONFIGURATION!$B$12)","v":"Mapped"},null,null,null,null,null,null,null,null,null,"The same data point as in column H",null,"The same data point as in column J"]
[null,null,null,null,null,null,null,{"$f":"XBRLMap(H35,H$90&\".\"&$Y35,$D$73,$D$74,CONFIGURATION!$B$10,\"BMA\",CONFIGURATION!$B$1,\"bscr\",CONFIGURATION!$B$12)","v":"Mapped"},null,{"$f":"XBRLMap(J35,J$90&\".\"&$Y35,$F$73,$F$74,CONFIGURATION!$B$10,\"BMA\",CONFIGURATION!$B$1,\"bscr\",CONFIGURATION!$B$12)","v":"Mapped"},null,null,null,null,null,null,null,null,null,"The same data point as in column H",null,"The same data point as in column J"]
[null,null,null,null,null,null,null,{"$f":"XBRLMap(H36,H$90&\".\"&$Y36,$D$73,$D$74,CONFIGURATION!$B$10,\"BMA\",CONFIGURATION!$B$1,\"bscr\",CONFIGURATION!$B$12)","v":"Mapped"},null,{"$f":"XBRLMap(J36,J$90&\".\"&$Y36,$F$73,$F$74,CONFIGURATION!$B$10,\"BMA\",CONFIGURATION!$B$1,\"bscr\",CONFIGURATION!$B$12)","v":"Mapped"},null,null,null,null,null,null,null,null,null,"The same data point as in column H",null,"The same data point as in column J"]
[null,null,null,null,null,null,null,{"$f":"XBRLMap(H37,H$90&\".\"&$Y37,$D$73,$D$74,CONFIGURATION!$B$10,\"BMA\",CONFIGURATION!$B$1,\"bscr\",CONFIGURATION!$B$12)","v":"Mapped"},null,{"$f":"XBRLMap(J37,J$90&\".\"&$Y37,$F$73,$F$74,CONFIGURATION!$B$10,\"BMA\",CONFIGURATION!$B$1,\"bscr\",CONFIGURATION!$B$12)","v":"Mapped"},null,null,null,null,null,null,null,null,null,"The same data point as in column H",null,"The same data point as in column J"]
[null,null,null,null,null,null,null,{"$f":"XBRLMap(H38,H$90&\".\"&$Y38,$D$73,$D$74,CONFIGURATION!$B$10,\"BMA\",CONFIGURATION!$B$1,\"bscr\",CONFIGURATION!$B$12)","v":"Mapped"},null,{"$f":"XBRLMap(J38,J$90&\".\"&$Y38,$F$73,$F$74,CONFIGURATION!$B$10,\"BMA\",CONFIGURATION!$B$1,\"bscr\",CONFIGURATION!$B$12)","v":"Mapped"},null,null,null,null,null,null,null,null,null,"The same data point as in column H",null,"The same data point as in column J"]
[null,null,null,null,null,null,null,{"$f":"XBRLMap(H39,H$90&\".\"&$Y39,$D$73,$D$74,CONFIGURATION!$B$10,\"BMA\",CONFIGURATION!$B$1,\"bscr\",CONFIGURATION!$B$12)","v":"Mapped"},null,{"$f":"XBRLMap(J39,J$90&\".\"&$Y39,$F$73,$F$74,CONFIGURATION!$B$10,\"BMA\",CONFIGURATION!$B$1,\"bscr\",CONFIGURATION!$B$12)","v":"Mapped"},null,null,null,null,null,null,null,null,null,"The same data point as in column H",null,"The same data point as in column J"]
[null,null,null,null,null,null,null,{"$f":"XBRLMap(H40,H$90&\".\"&$Y40,$D$73,$D$74,CONFIGURATION!$B$10,\"BMA\",CONFIGURATION!$B$1,\"bscr\",CONFIGURATION!$B$12)","v":"Mapped"},null,{"$f":"XBRLMap(J40,J$90&\".\"&$Y40,$F$73,$F$74,CONFIGURATION!$B$10,\"BMA\",CONFIGURATION!$B$1,\"bscr\",CONFIGURATION!$B$12)","v":"Mapped"},null,null,null,null,null,null,null,null,null,"The same data point as in column H",null,"The same data point as in column J"]
[null,null,null,"Already mapped in Form 4",null,"Already mapped in Form 4",null,null,null,null,null,"Already mapped in Form 4",null,"Already mapped in Form 4",null,null,null,null,null,{"$f":"XBRLMap(T41,T$88,$D$73,$D$74,CONFIGURATION!$B$10,\"BMA\",CONFIGURATION!$B$1,\"bscr\",CONFIGURATION!$B$12)","v":"Mapped"},null,{"$f":"XBRLMap(V41,V$88,$F$73,$F$74,CONFIGURATION!$B$10,\"BMA\",CONFIGURATION!$B$1,\"bscr\",CONFIGURATION!$B$12)","v":"Mapped"}]
[null,null,null,"Already mapped in Form 4",null,"Already mapped in Form 4",null,null,null,null,null,"Already mapped in Form 4",null,"Already mapped in Form 4",null,null,null,null,null,{"$f":"XBRLMap(T42,T$89,$D$73,$D$74,CONFIGURATION!$B$10,\"BMA\",CONFIGURATION!$B$1,\"bscr\",CONFIGURATION!$B$12)","v":"Mapped"},null,{"$f":"XBRLMap(V42,V$89,$F$73,$F$74,CONFIGURATION!$B$10,\"BMA\",CONFIGURATION!$B$1,\"bscr\",CONFIGURATION!$B$12)","v":"Mapped"}]
[null,null,null,{"$f":"XBRLMap(D44,D$90,$D$73,$D$74,CONFIGURATION!$B$10,\"BMA\",CONFIGURATION!$B$1,\"bscr\",CONFIGURATION!$B$12)","v":"Mapped"},null,{"$f":"XBRLMap(F44,F$90,$F$73,$F$74,CONFIGURATION!$B$10,\"BMA\",CONFIGURATION!$B$1,\"bscr\",CONFIGURATION!$B$12)","v":"Mapped"},null,{"$f":"XBRLMap(H44,H$90&\".\"&$Y44,$D$73,$D$74,CONFIGURATION!$B$10,\"BMA\",CONFIGURATION!$B$1,\"bscr\",CONFIGURATION!$B$12)","v":"Mapped"},null,{"$f":"XBRLMap(J44,J$90&\".\"&$Y44,$F$73,$F$74,CONFIGURATION!$B$10,\"BMA\",CONFIGURATION!$B$1,\"bscr\",CONFIGURATION!$B$12)","v":"Mapped"},null,{"$f":"XBRLMap(L44,L$90,$D$73,$D$74,CONFIGURATION!$B$10,\"BMA\",CONFIGURATION!$B$1,\"bscr\",CONFIGURATION!$B$12)","v":"Mapped"},null,{"$f":"XBRLMap(N44,N$90,$F$73,$F$74,CONFIGURATION!$B$10,\"BMA\",CONFIGURATION!$B$1,\"bscr\",CONFIGURATION!$B$12)","v":"Mapped"},null,null,null,null,null,{"$f":"XBRLMap(T44,T$90,$D$73,$D$74,CONFIGURATION!$B$10,\"BMA\",CONFIGURATION!$B$1,\"bscr\",CONFIGURATION!$B$12)","v":"Mapped"},null,{"$f":"XBRLMap(V44,V$90,$F$73,$F$74,CONFIGURATION!$B$10,\"BMA\",CONFIGURATION!$B$1,\"bscr\",CONFIGURATION!$B$12)","v":"Mapped"}]
[]
[]
[]
[null,null,null,null,null,null,null,null,null,null,null,"brrt_BondsAndDebentures",null,"brrt_BondsAndDebentures",null,"brrt_BondsAndDebentures",null,"brrt_BondsAndDebentures"]
[null,null,null,null,null,null,null,null,null,null,null,"brrt_SecurityTypeAxis_brrt_ResidentialMortgageBackedSecuritiesMember",null,"brrt_SecurityTypeAxis_brrt_ResidentialMortgageBackedSecuritiesMember",null,"brrt_SecurityTypeAxis_brrt_CommercialMortgageBackedSecuritiesAssetBackedSecuritiesMember",null,"brrt_SecurityTypeAxis_brrt_CommercialMortgageBackedSecuritiesAssetBackedSecuritiesMember"]
[null,null,null,null,null,null,null,null,null,null,null,"brrt_ClassificationAxis_brrt_OriginalClassificationMember",null,"brrt_ClassificationAxis_brrt_RevisedClassificationMember",null,"brrt_ClassificationAxis_brrt_OriginalClassificationMember",null,"brrt_ClassificationAxis_brrt_RevisedClassificationMember"]
[null,null,null,null,null,null,null,null,null,null,null,{"$f":"XBRLMap(L55,L$105&\".\"&$AB56&\".\"&$L$106&\".\"&$L$107,$D$73,$D$74,CONFIGURATION!$B$10,\"BMA\",CONFIGURATION!$B$1,\"bscr\",CONFIGURATION!$B$12)","v":"Mapped"},null,{"$f":"XBRLMap(N55,N$105&\".\"&$AB56&\".\"&$N$106&\".\"&$N$107,$D$73,$D$74,CONFIGURATION!$B$10,\"BMA\",CONFIGURATION!$B$1,\"bscr\",CONFIGURATION!$B$12)","v":"Mapped"},null,{"$f":"XBRLMap(P55,P$105&\".\"&$AB56&\".\"&$P$106&\".\"&$P$107,$D$73,$D$74,CONFIGURATION!$B$10,\"BMA\",CONFIGURATION!$B$1,\"bscr\",CONFIGURATION!$B$12)","v":"Mapped"},null,{"$f":"XBRLMap(R55,R$105&\".\"&$AB56&\".\"&$R$106&\".\"&$R$107,$D$73,$D$74,CONFIGURATION!$B$10,\"BMA\",CONFIGURATION!$B$1,\"bscr\",CONFIGURATION!$B$12)","v":"Mapped"}]
[null,null,null,null,null,null,null,null,null,null,null,{"$f":"XBRLMap(L56,L$105&\".\"&$AB57&\".\"&$L$106&\".\"&$L$107,$D$73,$D$74,CONFIGURATION!$B$10,\"BMA\",CONFIGURATION!$B$1,\"bscr\",CONFIGURATION!$B$12)","v":"Mapped"},null,{"$f":"XBRLMap(N56,N$105&\".\"&$AB57&\".\"&$N$106&\".\"&$N$107,$D$73,$D$74,CONFIGURATION!$B$10,\"BMA\",CONFIGURATION!$B$1,\"bscr\",CONFIGURATION!$B$12)","v":"Mapped"},null,{"$f":"XBRLMap(P56,P$105&\".\"&$AB57&\".\"&$P$106&\".\"&$P$107,$D$73,$D$74,CONFIGURATION!$B$10,\"BMA\",CONFIGURATION!$B$1,\"bscr\",CONFIGURATION!$B$12)","v":"Mapped"},null,{"$f":"XBRLMap(R56,R$105&\".\"&$AB57&\".\"&$R$106&\".\"&$R$107,$D$73,$D$74,CONFIGURATION!$B$10,\"BMA\",CONFIGURATION!$B$1,\"bscr\",CONFIGURATION!$B$12)","v":"Mapped"}]
[null,null,null,null,null,null,null,null,null,null,null,{"$f":"XBRLMap(L57,L$105&\".\"&$AB58&\".\"&$L$106&\".\"&$L$107,$D$73,$D$74,CONFIGURATION!$B$10,\"BMA\",CONFIGURATION!$B$1,\"bscr\",CONFIGURATION!$B$12)","v":"Mapped"},null,{"$f":"XBRLMap(N57,N$105&\".\"&$AB58&\".\"&$N$106&\".\"&$N$107,$D$73,$D$74,CONFIGURATION!$B$10,\"BMA\",CONFIGURATION!$B$1,\"bscr\",CONFIGURATION!$B$12)","v":"Mapped"},null,{"$f":"XBRLMap(P57,P$105&\".\"&$AB58&\".\"&$P$106&\".\"&$P$107,$D$73,$D$74,CONFIGURATION!$B$10,\"BMA\",CONFIGURATION!$B$1,\"bscr\",CONFIGURATION!$B$12)","v":"Mapped"},null,{"$f":"XBRLMap(R57,R$105&\".\"&$AB58&\".\"&$R$106&\".\"&$R$107,$D$73,$D$74,CONFIGURATION!$B$10,\"BMA\",CONFIGURATION!$B$1,\"bscr\",CONFIGURATION!$B$12)","v":"Mapped"}]
[null,null,null,null,null,null,null,null,null,null,null,{"$f":"XBRLMap(L58,L$105&\".\"&$AB59&\".\"&$L$106&\".\"&$L$107,$D$73,$D$74,CONFIGURATION!$B$10,\"BMA\",CONFIGURATION!$B$1,\"bscr\",CONFIGURATION!$B$12)","v":"Mapped"},null,{"$f":"XBRLMap(N58,N$105&\".\"&$AB59&\".\"&$N$106&\".\"&$N$107,$D$73,$D$74,CONFIGURATION!$B$10,\"BMA\",CONFIGURATION!$B$1,\"bscr\",CONFIGURATION!$B$12)","v":"Mapped"},null,{"$f":"XBRLMap(P58,P$105&\".\"&$AB59&\".\"&$P$106&\".\"&$P$107,$D$73,$D$74,CONFIGURATION!$B$10,\"BMA\",CONFIGURATION!$B$1,\"bscr\",CONFIGURATION!$B$12)","v":"Mapped"},null,{"$f":"XBRLMap(R58,R$105&\".\"&$AB59&\".\"&$R$106&\".\"&$R$107,$D$73,$D$74,CONFIGURATION!$B$10,\"BMA\",CONFIGURATION!$B$1,\"bscr\",CONFIGURATION!$B$12)","v":"Mapped"}]
[null,null,null,null,null,null,null,null,null,null,null,{"$f":"XBRLMap(L59,L$105&\".\"&$AB60&\".\"&$L$106&\".\"&$L$107,$D$73,$D$74,CONFIGURATION!$B$10,\"BMA\",CONFIGURATION!$B$1,\"bscr\",CONFIGURATION!$B$12)","v":"Mapped"},null,{"$f":"XBRLMap(N59,N$105&\".\"&$AB60&\".\"&$N$106&\".\"&$N$107,$D$73,$D$74,CONFIGURATION!$B$10,\"BMA\",CONFIGURATION!$B$1,\"bscr\",CONFIGURATION!$B$12)","v":"Mapped"},null,{"$f":"XBRLMap(P59,P$105&\".\"&$AB60&\".\"&$P$106&\".\"&$P$107,$D$73,$D$74,CONFIGURATION!$B$10,\"BMA\",CONFIGURATION!$B$1,\"bscr\",CONFIGURATION!$B$12)","v":"Mapped"},null,{"$f":"XBRLMap(R59,R$105&\".\"&$AB60&\".\"&$R$106&\".\"&$R$107,$D$73,$D$74,CONFIGURATION!$B$10,\"BMA\",CONFIGURATION!$B$1,\"bscr\",CONFIGURATION!$B$12)","v":"Mapped"}]
[null,null,null,null,null,null,null,null,null,null,null,{"$f":"XBRLMap(L60,L$105&\".\"&$AB61&\".\"&$L$106&\".\"&$L$107,$D$73,$D$74,CONFIGURATION!$B$10,\"BMA\",CONFIGURATION!$B$1,\"bscr\",CONFIGURATION!$B$12)","v":"Mapped"},null,{"$f":"XBRLMap(N60,N$105&\".\"&$AB61&\".\"&$N$106&\".\"&$N$107,$D$73,$D$74,CONFIGURATION!$B$10,\"BMA\",CONFIGURATION!$B$1,\"bscr\",CONFIGURATION!$B$12)","v":"Mapped"},null,{"$f":"XBRLMap(P60,P$105&\".\"&$AB61&\".\"&$P$106&\".\"&$P$107,$D$73,$D$74,CONFIGURATION!$B$10,\"BMA\",CONFIGURATION!$B$1,\"bscr\",CONFIGURATION!$B$12)","v":"Mapped"},null,{"$f":"XBRLMap(R60,R$105&\".\"&$AB61&\".\"&$R$106&\".\"&$R$107,$D$73,$D$74,CONFIGURATION!$B$10,\"BMA\",CONFIGURATION!$B$1,\"bscr\",CONFIGURATION!$B$12)","v":"Mapped"}]
[]
[null,null,null,null,null,null,null,null,null,null,null,{"$f":"XBRLMap(L62,L$105&\".\"&$AB63&\".\"&$L$106&\".\"&$L$107,$D$73,$D$74,CONFIGURATION!$B$10,\"BMA\",CONFIGURATION!$B$1,\"bscr\",CONFIGURATION!$B$12)","v":"Mapped"},null,{"$f":"XBRLMap(N62,N$105&\".\"&$AB63&\".\"&$N$106&\".\"&$N$107,$D$73,$D$74,CONFIGURATION!$B$10,\"BMA\",CONFIGURATION!$B$1,\"bscr\",CONFIGURATION!$B$12)","v":"Mapped"},null,{"$f":"XBRLMap(P62,P$105&\".\"&$AB63&\".\"&$P$106&\".\"&$P$107,$D$73,$D$74,CONFIGURATION!$B$10,\"BMA\",CONFIGURATION!$B$1,\"bscr\",CONFIGURATION!$B$12)","v":"Mapped"},null,{"$f":"XBRLMap(R62,R$105&\".\"&$AB63&\".\"&$R$106&\".\"&$R$107,$D$73,$D$74,CONFIGURATION!$B$10,\"BMA\",CONFIGURATION!$B$1,\"bscr\",CONFIGURATION!$B$12)","v":"Mapped"}]

{"sheet":"Schedule IIA","index":22,"n_rows":121,"n_cols":29,"rows_kept":121,"cut":false,"hidden":false,"merged":[[71,2,73,2],[51,3,51,5],[50,8,51,20],[52,11,52,13],[52,15,52,17],[63,3,63,5],[6,11,6,13],[6,15,6,17],[6,19,6,21],[28,3,28,5],[28,7,28,9],[28,11,28,13],[28,19,28,21],[28,15,28,17],[1,2,1,4],[2,3,2,5],[3,3,3,5],[6,3,6,5],[6,7,6,9]]}
[null,"SCHEDULE OF FUNDS HELD BY CEDING REINSURERS IN SEGREGATED ACCOUNTS / TRUSTS BY BSCR RATING",null,null,null,null,null,null,null,null,null,null,null,null,null,null,null,null,null,null,null,{"$f":"HYPERLINK(\"#'Index'!A1\",\"Return to Index\")","v":"Return to Index"}]
[null,null,{"$f":"+'Company Information'!C7","v":"Enter Company Name"}]
[null,null,"As at",{"$f":"+'Company Information'!C3","v":"2019-12-31"},null,null,null,null,null,null,null,null,null,null,null,null,null,null,null,null,null,"SCHEDULE IIA"]
[null,null,{"$f":"+'Form 1EBS'!B4","v":"expressed in ['000s]"},{"$f":"+'Form 1EBS'!C4","v":"United States Dollars"}]
[]
[null,null,null,"(1)",null,"(2)",null,"(3)",null,"(4)",null,"(5)",null,"(6)",null,"(7)",null,"(8)",null,"(9)",null,"(10)"]
[null,null,null,"CORPORATE & SOVEREIGN BONDS",null,null,null,"RESIDENTIAL MORTGAGE-BACKED SECURITIES",null,null,null,"COMMERCIAL MORTGAGE-BACKED SECURITIES / ASSET-BACKED SECURITIES",null,null,null,"BOND MUTUAL FUNDS",null,null,null,"TOTAL",null,null,null,null,"brrt_RiskTransferAxis_brrt_FundsHeldByCedingReinsurersInSegregatedAccountsTrustsMember"]
[null,null,null,{"$f":"+'Form 1EBS'!$F$7","v":"2019-12-31"},null,{"$f":"+'Form 1EBS'!$H$7","v":"2018-12-31"},null,{"$f":"+'Form 1EBS'!$F$7","v":"2019-12-31"},null,{"$f":"+'Form 1EBS'!$H$7","v":"2018-12-31"},null,{"$f":"+'Form 1EBS'!$F$7","v":"2019-12-31"},null,{"$f":"+'Form 1EBS'!$H$7","v":"2018-12-31"},null,{"$f":"+'Form 1EBS'!$F$7","v":"2019-12-31"},null,{"$f":"+'Form 1EBS'!$H$7","v":"2018-12-31"},null,{"$f":"+'Form 1EBS'!$F$7","v":"2019-12-31"},null,{"$f":"+'Form 1EBS'!$H$7","v":"2018-12-31"}]
[null,null,null,{"$f":"+'Form 1EBS'!$F$8","v":" ('000s)"},null,{"$f":"+'Form 1EBS'!$H$8","v":" ('000s)"},null,{"$f":"+'Form 1EBS'!$F$8","v":" ('000s)"},null,{"$f":"+'Form 1EBS'!$H$8","v":" ('000s)"},null,{"$f":"+'Form 1EBS'!$F$8","v":" ('000s)"},null,{"$f":"+'Form 1EBS'!$H$8","v":" ('000s)"},null,{"$f":"+'Form 1EBS'!$F$8","v":" ('000s)"},null,{"$f":"+'Form 1EBS'!$H$8","v":" ('000s)"},null,{"$f":"+'Form 1EBS'!$F$8","v":" ('000s)"},null,{"$f":"+'Form 1EBS'!$H$8","v":" ('000s)"}]
[null,"Line no. "]
[null,"Quoted and Unquoted Bonds and Debentures"]
[null,1,"BSCR Rating 0",{"$f":"Import!E557","v":0},null,{"$f":"Import!G557","v":0},null,null,null,null,null,null,null,null,null,{"$f":"Import!E582","v":0},null,{"$f":"Import!G582","v":0},null,{"$f":"D12+H12+L12+P12","v":0},null,{"$f":"F12+J12+N12+R12","v":0},null,null,"brrt_RiskGradeAxis_brrt_BSCRRating0Member"]
[null,2,"BSCR Rating 1",{"$f":"Import!E558","v":0},null,{"$f":"Import!G558","v":0},null,{"$f":"Import!E566","v":0},null,{"$f":"Import!G566","v":0},null,{"$f":"Import!E574","v":0},null,{"$f":"Import!G574","v":0},null,{"$f":"Import!E583","v":0},null,{"$f":"Import!G583","v":0},null,{"$f":"D13+H13+L13+P13","v":0},null,0,null,null,"brrt_RiskGradeAxis_brrt_BSCRRating1Member"]
[null,3,"BSCR Rating 2",{"$f":"Import!E559","v":0},null,{"$f":"Import!G559","v":0},null,{"$f":"Import!E567","v":0},null,{"$f":"Import!G567","v":0},null,{"$f":"Import!E575","v":0},null,{"$f":"Import!G575","v":0},null,{"$f":"Import!E584","v":0},null,{"$f":"Import!G584","v":0},null,0,null,0,null,null,"brrt_RiskGradeAxis_brrt_BSCRRating2Member"]
[null,4,"BSCR Rating 3",{"$f":"Import!E560","v":0},null,{"$f":"Import!G560","v":0},null,{"$f":"Import!E568","v":0},null,{"$f":"Import!G568","v":0},null,{"$f":"Import!E576","v":0},null,{"$f":"Import!G576","v":0},null,{"$f":"Import!E585","v":0},null,{"$f":"Import!G585","v":0},null,0,null,0,null,null,"brrt_RiskGradeAxis_brrt_BSCRRating3Member"]
[null,5,"BSCR Rating 4",{"$f":"Import!E561","v":0},null,{"$f":"Import!G561","v":0},null,{"$f":"Import!E569","v":0},null,{"$f":"Import!G569","v":0},null,{"$f":"Import!E577","v":0},null,{"$f":"Import!G577","v":0},null,{"$f":"Import!E586","v":0},null,{"$f":"Import!G586","v":0},null,0,null,0,null,null,"brrt_RiskGradeAxis_brrt_BSCRRating4Member"]
[null,6,"BSCR Rating 5",{"$f":"Import!E562","v":0},null,{"$f":"Import!G562","v":0},null,{"$f":"Import!E570","v":0},null,{"$f":"Import!G570","v":0},null,{"$f":"Import!E578","v":0},null,{"$f":"Import!G578","v":0},null,{"$f":"Import!E587","v":0},null,{"$f":"Import!G587","v":0},null,0,null,0,null,null,"brrt_RiskGradeAxis_brrt_BSCRRating5Member"]
[null,7,"BSCR Rating 6",{"$f":"Import!E563","v":0},null,{"$f":"Import!G563","v":0},null,{"$f":"Import!E571","v":0},null,{"$f":"Import!G571","v":0},null,{"$f":"Import!E579","v":0},null,{"$f":"Import!G579","v":0},null,{"$f":"Import!E588","v":0},null,{"$f":"Import!G588","v":0},null,0,null,0,null,null,"brrt_RiskGradeAxis_brrt_BSCRRating6Member"]
[null,8,"BSCR Rating 7",{"$f":"Import!E564","v":0},null,{"$f":"Import!G564","v":0},null,{"$f":"Import!E572","v":0},null,{"$f":"Import!G572","v":0},null,{"$f":"Import!E580","v":0},null,{"$f":"Import!G580","v":0},null,{"$f":"Import!E589","v":0},null,{"$f":"Import!G589","v":0},null,0,null,0,null,null,"brrt_RiskGradeAxis_brrt_BSCRRating7Member"]
[null,9,"BSCR Rating 8",{"$f":"Import!E565","v":0},null,{"$f":"Import!G565","v":0},null,{"$f":"Import!E573","v":0},null,{"$f":"Import!G573","v":0},null,{"$f":"Import!E581","v":0},null,{"$f":"Import!G581","v":0},null,{"$f":"Import!E590","v":0},null,{"$f":"Import!G590","v":0},null,0,null,0,null,null,"brrt_RiskGradeAxis_brrt_BSCRRating8Member"]
[]
[null,10,"Total",{"$f":"SUM(D12:D20)","v":0},null,{"$f":"SUM(F12:F20)","v":0},null,{"$f":"SUM(H12:H20)","v":0},null,{"$f":"SUM(J12:J20)","v":0},null,{"$f":"SUM(L12:L20)","v":0},null,{"$f":"SUM(N12:N20)","v":0},null,{"$f":"SUM(P12:P20)","v":0},null,{"$f":"SUM(R12:R20)","v":0},null,{"$f":"SUM(T12:T20)","v":0},null,{"$f":"SUM(V12:V20)","v":0},null,null,"brrt_RiskGradeAxis_brrt_TotalMember"]
[]
[]
[]
[]
[]
[]
[null,null,null,"COMMON STOCK",null,null,null,"PREFERRED STOCK",null,null,null,"EQUITY MUTUAL FUNDS",null,null,null,"OTHER INVESTMENTS",null,null,null,"TOTAL\n"]
[null,null,null,{"$f":"+'Form 1EBS'!$F$7","v":"2019-12-31"},null,{"$f":"+'Form 1EBS'!$H$7","v":"2018-12-31"},null,{"$f":"+'Form 1EBS'!$F$7","v":"2019-12-31"},null,{"$f":"+'Form 1EBS'!$H$7","v":"2018-12-31"},null,{"$f":"+'Form 1EBS'!$F$7","v":"2019-12-31"},null,{"$f":"+'Form 1EBS'!$H$7","v":"2018-12-31"},null,{"$f":"+'Form 1EBS'!$F$7","v":"2019-12-31"},null,{"$f":"+'Form 1EBS'!$H$7","v":"2018-12-31"},null,{"$f":"+'Form 1EBS'!$F$7","v":"2019-12-31"},null,{"$f":"+'Form 1EBS'!$H$7","v":"2018-12-31"}]
[null,null,null,{"$f":"+'Form 1EBS'!$F$8","v":" ('000s)"},null,{"$f":"+'Form 1EBS'!$H$8","v":" ('000s)"},null,{"$f":"+'Form 1EBS'!$F$8","v":" ('000s)"},null,{"$f":"+'Form 1EBS'!$H$8","v":" ('000s)"},null,{"$f":"+'Form 1EBS'!$F$8","v":" ('000s)"},null,{"$f":"+'Form 1EBS'!$H$8","v":" ('000s)"},null,{"$f":"+'Form 1EBS'!$F$8","v":" ('000s)"},null,{"$f":"+'Form 1EBS'!$H$8","v":" ('000s)"},null,{"$f":"+'Form 1EBS'!$F$8","v":" ('000s)"},null,{"$f":"+'Form 1EBS'!$H$8","v":" ('000s)"}]
[null,"Quoted and Unquoted Equities"]
[null,11,"BSCR Rating 1",null,null,null,null,{"$f":"Import!E593","v":0},null,{"$f":"Import!G593","v":0},null,null,null,null,null,null,null,null,null,{"$f":"D33+H33+L33","v":0},null,{"$f":"F33+J33+N33","v":0},null,null,"brrt_RiskGradeAxis_brrt_BSCRRating1Member"]
[null,12,"BSCR Rating 2",null,null,null,null,{"$f":"Import!E594","v":0},null,{"$f":"Import!G594","v":0},null,null,null,null,null,null,null,null,null,0,null,0,null,null,"brrt_RiskGradeAxis_brrt_BSCRRating2Member"]
[null,13,"BSCR Rating 3",null,null,null,null,{"$f":"Import!E595","v":0},null,{"$f":"Import!G595","v":0},null,null,null,null,null,null,null,null,null,0,null,0,null,null,"brrt_RiskGradeAxis_brrt_BSCRRating3Member"]
[null,14,"BSCR Rating 4",null,null,null,null,{"$f":"Import!E596","v":0},null,{"$f":"Import!G596","v":0},null,null,null,null,null,null,null,null,null,0,null,0,null,null,"brrt_RiskGradeAxis_brrt_BSCRRating4Member"]
[null,15,"BSCR Rating 5",null,null,null,null,{"$f":"Import!E597","v":0},null,{"$f":"Import!G597","v":0},null,null,null,null,null,null,null,null,null,0,null,0,null,null,"brrt_RiskGradeAxis_brrt_BSCRRating5Member"]
[null,16,"BSCR Rating 6",null,null,null,null,{"$f":"Import!E598","v":0},null,{"$f":"Import!G598","v":0},null,null,null,null,null,null,null,null,null,0,null,0,null,null,"brrt_RiskGradeAxis_brrt_BSCRRating6Member"]
[null,17,"BSCR Rating 7",null,null,null,null,{"$f":"Import!E599","v":0},null,{"$f":"Import!G599","v":0},null,null,null,null,null,null,null,null,null,0,null,0,null,null,"brrt_RiskGradeAxis_brrt_BSCRRating7Member"]
[null,18,"BSCR Rating 8",null,null,null,null,{"$f":"Import!E600","v":0},null,{"$f":"Import!G600","v":0},null,null,null,null,null,null,null,null,null,0,null,0,null,null,"brrt_RiskGradeAxis_brrt_BSCRRating8Member"]
[null,19,"Quoted Equity Funds",{"$f":"Import!E591","v":0},null,{"$f":"Import!G591","v":0},null,null,null,null,null,{"$f":"Import!E601","v":0},null,{"$f":"Import!G601","v":0},null,{"$f":"Import!E603","v":0},null,{"$f":"Import!G603","v":0},null,{"$f":"D41+H41+L41+P41","v":0},null,{"$f":"F41+J41+N41+R41","v":0}]
[null,20,"Unquoted Equity Funds",{"$f":"Import!E592","v":0},null,{"$f":"Import!G592","v":0},null,null,null,null,null,{"$f":"Import!E602","v":0},null,{"$f":"Import!G602","v":0},null,{"$f":"Import!E604","v":0},null,{"$f":"Import!G604","v":0},null,{"$f":"D42+H42+L42+P42","v":0},null,{"$f":"F42+J42+N42+R42","v":0}]
[]
[null,21,"Total",{"$f":"SUM(D33:D42)","v":0},null,{"$f":"SUM(F33:F42)","v":0},null,{"$f":"SUM(H33:H42)","v":0},null,{"$f":"SUM(J33:J42)","v":0},null,{"$f":"SUM(L33:L42)","v":0},null,{"$f":"SUM(N33:N42)","v":0},null,{"$f":"SUM(P33:P42)","v":0},null,{"$f":"SUM(R33:R42)","v":0},null,{"$f":"SUM(T33:T42)","v":0},null,{"$f":"SUM(V33:V42)","v":0},null,null,"brrt_RiskGradeAxis_brrt_TotalMember"]
[]
[]
[]
[]
[]
[]
[null,null,null,null,null,null,null,null,"This Section is Only Applicable to Companies that have Mortgage Backed Securities that have been Reclassified in Accordance with the NAIC and that elect to use NAIC reclassifications to map to the BSCR classes"]
[null,null,null,"MORTGAGE LOANS"]
[null,null,null,{"$f":"+'Form 1EBS'!$F$7","v":"2019-12-31"},null,{"$f":"+'Form 1EBS'!$H$7","v":"2018-12-31"},null,null,null,null,null,"VALUES OF RESIDENTIAL MORTGAGE BACKED SECURITIES",null,null,null,"VALUES OF COMMERCIAL MORTGAGE BACKED SECURITIES / ASSET BACKED SECURITIES"]
[null,null,null,{"$f":"+'Form 1EBS'!$F$8","v":" ('000s)"},null,{"$f":"+'Form 1EBS'!$H$8","v":" ('000s)"},null,null,null,null,null,"Original Classification",null,"Revised Classification",null,"Original Classification",null,"Revised Classification"]
[null,null,null,null,null,null,null,null,null,"NAIC Class 1",null,{"$f":"Import!E610","v":0},null,{"$f":"Import!E617","v":0},null,{"$f":"Import!E624","v":0},null,{"$f":"Import!E631","v":0},null,null,null,null,null,"brrt_InvestmentsInMortgageLoansOnRealEstateInsuredGuaranteedMortgages",{"$f":"XBRLMap(D57,$X55&\".\"&$Y$7,$D$78,$D$79,CONFIGURATION!$B$10,\"BMA\",CONFIGURATION!$B$1,\"bscr\",CONFIGURATION!$B$12)","v":"Mapped"},{"$f":"XBRLMap(F57,$X55&\".\"&$Y$7,$F$78,$F$79,CONFIGURATION!$B$10,\"BMA\",CONFIGURATION!$B$1,\"bscr\",CONFIGURATION!$B$12)","v":"Mapped"}]
[null,"Mortgage Loans",null,null,null,null,null,null,null,"NAIC Class 2",null,{"$f":"Import!E611","v":0},null,{"$f":"Import!E618","v":0},null,{"$f":"Import!E625","v":0},null,{"$f":"Import!E632","v":0},null,null,null,null,null,"brrt_InvestmentsInMortgageLoansOnRealEstateOtherCommercialFarmMortgages",{"$f":"XBRLMap(D58,$X56&\".\"&$Y$7,$D$78,$D$79,CONFIGURATION!$B$10,\"BMA\",CONFIGURATION!$B$1,\"bscr\",CONFIGURATION!$B$12)","v":"Mapped"},{"$f":"XBRLMap(F58,$X56&\".\"&$Y$7,$F$78,$F$79,CONFIGURATION!$B$10,\"BMA\",CONFIGURATION!$B$1,\"bscr\",CONFIGURATION!$B$12)","v":"Mapped"},null,null,"brrt_RiskGradeAxis_brrt_NAICClass1Member"]
[null,22,"Insured/Guaranteed Mortgages",{"$f":"Import!E605","v":0},null,{"$f":"Import!G605","v":0},null,null,null,"NAIC Class 3",null,{"$f":"Import!E612","v":0},null,{"$f":"Import!E619","v":0},null,{"$f":"Import!E626","v":0},null,{"$f":"Import!E633","v":0},null,null,null,null,null,"brrt_InvestmentsInMortgageLoansOnRealEstateOtherResidentialMortgages",{"$f":"XBRLMap(D59,$X57&\".\"&$Y$7,$D$78,$D$79,CONFIGURATION!$B$10,\"BMA\",CONFIGURATION!$B$1,\"bscr\",CONFIGURATION!$B$12)","v":"Mapped"},{"$f":"XBRLMap(F59,$X57&\".\"&$Y$7,$F$78,$F$79,CONFIGURATION!$B$10,\"BMA\",CONFIGURATION!$B$1,\"bscr\",CONFIGURATION!$B$12)","v":"Mapped"},null,null,"brrt_RiskGradeAxis_brrt_NAICClass2Member"]
[null,23,"Other Commercial and Farm Mortgages",{"$f":"Import!E606","v":0},null,{"$f":"Import!G606","v":0},null,null,null,"NAIC Class 4",null,{"$f":"Import!E613","v":0},null,{"$f":"Import!E620","v":0},null,{"$f":"Import!E627","v":0},null,{"$f":"Import!E634","v":0},null,null,null,null,null,"brrt_InvestmentsInMortgageLoansOnRealEstateMortgagesNotInGoodStanding",{"$f":"XBRLMap(D60,$X58&\".\"&$Y$7,$D$78,$D$79,CONFIGURATION!$B$10,\"BMA\",CONFIGURATION!$B$1,\"bscr\",CONFIGURATION!$B$12)","v":"Mapped"},{"$f":"XBRLMap(F60,$X58&\".\"&$Y$7,$F$78,$F$79,CONFIGURATION!$B$10,\"BMA\",CONFIGURATION!$B$1,\"bscr\",CONFIGURATION!$B$12)","v":"Mapped"},null,null,"brrt_RiskGradeAxis_brrt_NAICClass3Member"]
[null,24,"Other Residential Mortgages",{"$f":"Import!E607","v":0},null,{"$f":"Import!G607","v":0},null,null,null,"NAIC Class 5",null,{"$f":"Import!E614","v":0},null,{"$f":"Import!E621","v":0},null,{"$f":"Import!E628","v":0},null,{"$f":"Import!E635","v":0},null,null,null,null,null,null,null,null,null,null,"brrt_RiskGradeAxis_brrt_NAICClass4Member"]
[null,25,"Mortgages Not In Good Standing",{"$f":"Import!E608","v":0},null,{"$f":"Import!G608","v":0},null,null,null,"NAIC Class 6",null,{"$f":"Import!E615","v":0},null,{"$f":"Import!E622","v":0},null,{"$f":"Import!E629","v":0},null,{"$f":"Import!E636","v":0},null,null,null,null,null,"brrt_InvestmentsInMortgageLoansOnRealEstate",{"$f":"XBRLMap(D62,$X60&\".\"&$Y$7,$D$78,$D$79,CONFIGURATION!$B$10,\"BMA\",CONFIGURATION!$B$1,\"bscr\",CONFIGURATION!$B$12)","v":"Mapped"},{"$f":"XBRLMap(F62,$X60&\".\"&$Y$7,$F$78,$F$79,CONFIGURATION!$B$10,\"BMA\",CONFIGURATION!$B$1,\"bscr\",CONFIGURATION!$B$12)","v":"Mapped"},null,null,"brrt_RiskGradeAxis_brrt_NAICClass5Member"]
[null,null,null,null,null,null,null,null,null,null,null,null,null,null,null,null,null,null,null,null,null,null,null,null,null,null,null,null,"brrt_RiskGradeAxis_brrt_NAICClass6Member"]
[null,26,"Total",{"$f":"SUM(D57:D60)","v":0},null,{"$f":"SUM(F57:F60)","v":0},null,null,null,null,null,{"$f":"SUM(L55:L60)","v":0},null,{"$f":"SUM(N55:N60)","v":0},null,{"$f":"SUM(P55:P60)","v":0},null,{"$f":"SUM(R55:R60)","v":0}]
[null,null,null,null,null,null,null,null,null,null,null,null,null,null,null,null,null,null,null,null,null,null,null,null,null,null,null,null,"brrt_RiskGradeAxis_brrt_TotalMember"]
[null,null,null,"CASH AND CASH EQUIVALENTS"]
[null,null,null,{"$f":"+'Form 1EBS'!$F$7","v":"2019-12-31"},null,{"$f":"+'Form 1EBS'!$H$7","v":"2018-12-31"},null,null,null,{"$f":"IF('Company Information'!$F$11=\"Class 3A\",HYPERLINK(\"#'Attachments'!G45\",\"Attach file\"),HYPERLINK(\"#'Attachments'!G65\",\"Attach file\"))","v":"Attach file"},null,null,null,null,null,null,null,null,null,null,null,null,null,"brrt_CashAndTimeDeposits",{"$f":"XBRLMap(D68,$X65&\".\"&$Y$7,$D$78,$D$79,CONFIGURATION!$B$10,\"BMA\",CONFIGURATION!$B$1,\"bscr\",CONFIGURATION!$B$12)","v":"Mapped"},{"$f":"XBRLMap(F68,$X65&\".\"&$Y$7,$F$78,$F$79,CONFIGURATION!$B$10,\"BMA\",CONFIGURATION!$B$1,\"bscr\",CONFIGURATION!$B$12)","v":"Mapped"}]
[null,null,null,{"$f":"+'Form 1EBS'!$F$8","v":" ('000s)"},null,{"$f":"+'Form 1EBS'!$H$8","v":" ('000s)"}]
[]
[null,27,"Cash and Cash Equivalents",{"$f":"Import!E609","v":0},null,{"$f":"Import!G609","v":0}]
[]
[null,null,null,{"$f":"+'Form 1EBS'!$F$7","v":"2019-12-31"},null,{"$f":"+'Form 1EBS'!$H$7","v":"2018-12-31"}]
[null,null,null,{"$f":"+'Form 1EBS'!$F$8","v":" ('000s)"},null,{"$f":"+'Form 1EBS'!$H$8","v":" ('000s)"}]
[null,null,"Total Funds Held by Ceding Reinsurers in Segregated Accounts / Trusts (Lines 10, 21, 26 and 27)",null,null,null,null,null,null,null,null,null,null,null,null,null,null,null,null,null,null,null,null,"brrt_FundsHeldByCedingReinsurers",{"$f":"XBRLMap(D74,$X72&\".\"&$Y$7,$D$78,$D$79,CONFIGURATION!$B$10,\"BMA\",CONFIGURATION!$B$1,\"bscr\",CONFIGURATION!$B$12)","v":"Mapped"},{"$f":"XBRLMap(F74,$X72&\".\"&$Y$7,$F$78,$F$79,CONFIGURATION!$B$10,\"BMA\",CONFIGURATION!$B$1,\"bscr\",CONFIGURATION!$B$12)","v":"Mapped"}]
[]
[null,{"$f":"B68+1","v":28},null,{"$f":"T22+T44+D62+D68","v":0},null,{"$f":"V22+V44+F62+F68","v":0}]
[]
[]
[]
[null,null,null,{"$f":"IF(D8=\"\",\"\",TEXT(DATE(YEAR(D8+1)-1,MONTH(D8+1),DAY(D8+1)),\"mm/dd/yyyy\"))","v":"01/01/2019"},null,{"$f":"IF(F8=\"\",\"\",TEXT(DATE(YEAR(F8+1)-1,MONTH(F8+1),DAY(F8+1)),\"mm/dd/yyyy\"))","v":"01/01/2018"}]
[null,null,null,{"$f":"IF(D8=\"\",\"\",TEXT(D8,\"mm/dd/yyyy\"))","v":"12/31/2019"},null,{"$f":"IF(F8=\"\",\"\",TEXT(F8,\"mm/dd/yyyy\"))","v":"12/31/2018"}]
[null,null,null,"brrt_BondsAndDebentures",null,"brrt_BondsAndDebentures",null,"brrt_BondsAndDebentures",null,"brrt_BondsAndDebentures",null,"brrt_BondsAndDebentures",null,"brrt_BondsAndDebentures",null,"brrt_BondsAndDebentures",null,"brrt_BondsAndDebentures",null,"brrt_BondsAndDebentures",null,"brrt_BondsAndDebentures"]
[null,null,null,"brrt_SecurityTypeAxis_brrt_CorporateSovereignBondsMember",null,"brrt_SecurityTypeAxis_brrt_CorporateSovereignBondsMember",null,"brrt_SecurityTypeAxis_brrt_ResidentialMortgageBackedSecuritiesMember",null,"brrt_SecurityTypeAxis_brrt_ResidentialMortgageBackedSecuritiesMember",null,"brrt_SecurityTypeAxis_brrt_CommercialMortgageBackedSecuritiesAssetBackedSecuritiesMember",null,"brrt_SecurityTypeAxis_brrt_CommercialMortgageBackedSecuritiesAssetBackedSecuritiesMember",null,"brrt_SecurityTypeAxis_brrt_MutualFundsMember",null,"brrt_SecurityTypeAxis_brrt_MutualFundsMember",null,"brrt_SecurityTypeAxis_brrt_TotalMember",null,"brrt_SecurityTypeAxis_brrt_TotalMember"]
[null,null,null,{"$f":"XBRLMap(D12,D$80&\".\"&$Y12&\".\"&$D$81&\".\"&$Y$7,$D$78,$D$79,CONFIGURATION!$B$10,\"BMA\",CONFIGURATION!$B$1,\"bscr\",CONFIGURATION!$B$12)","v":"Mapped"},null,{"$f":"XBRLMap(F12,F$80&\".\"&$Y12&\".\"&$F$81&\".\"&$Y$7,$F$78,$F$79,CONFIGURATION!$B$10,\"BMA\",CONFIGURATION!$B$1,\"bscr\",CONFIGURATION!$B$12)","v":"Mapped"},null,null,null,null,null,null,null,null,null,{"$f":"XBRLMap(P12,P$80&\".\"&$Y12&\".\"&$P$81&\".\"&$Y$7,$D$78,$D$79,CONFIGURATION!$B$10,\"BMA\",CONFIGURATION!$B$1,\"bscr\",CONFIGURATION!$B$12)","v":"Mapped"},null,{"$f":"XBRLMap(R12,R$80&\".\"&$Y12&\".\"&$R$81&\".\"&$Y$7,$F$78,$F$79,CONFIGURATION!$B$10,\"BMA\",CONFIGURATION!$B$1,\"bscr\",CONFIGURATION!$B$12)","v":"Mapped"},null,{"$f":"XBRLMap(T12,T$80&\".\"&$Y12&\".\"&$T$81&\".\"&$Y$7,$D$78,$D$79,CONFIGURATION!$B$10,\"BMA\",CONFIGURATION!$B$1,\"bscr\",CONFIGURATION!$B$12)","v":"Mapped"},null,{"$f":"XBRLMap(V12,V$80&\".\"&$Y12&\".\"&$V$81&\".\"&$Y$7,$F$78,$F$79,CONFIGURATION!$B$10,\"BMA\",CONFIGURATION!$B$1,\"bscr\",CONFIGURATION!$B$12)","v":"Mapped"}]
[null,null,null,{"$f":"XBRLMap(D13,D$80&\".\"&$Y13&\".\"&$D$81&\".\"&$Y$7,$D$78,$D$79,CONFIGURATION!$B$10,\"BMA\",CONFIGURATION!$B$1,\"bscr\",CONFIGURATION!$B$12)","v":"Mapped"},null,{"$f":"XBRLMap(F13,F$80&\".\"&$Y13&\".\"&$F$81&\".\"&$Y$7,$F$78,$F$79,CONFIGURATION!$B$10,\"BMA\",CONFIGURATION!$B$1,\"bscr\",CONFIGURATION!$B$12)","v":"Mapped"},null,{"$f":"XBRLMap(H13,H$80&\".\"&$Y13&\".\"&$H$81&\".\"&$Y$7,$D$78,$D$79,CONFIGURATION!$B$10,\"BMA\",CONFIGURATION!$B$1,\"bscr\",CONFIGURATION!$B$12)","v":"Mapped"},null,{"$f":"XBRLMap(J13,J$80&\".\"&$Y13&\".\"&$J$81&\".\"&$Y$7,$F$78,$F$79,CONFIGURATION!$B$10,\"BMA\",CONFIGURATION!$B$1,\"bscr\",CONFIGURATION!$B$12)","v":"Mapped"},null,{"$f":"XBRLMap(L13,L$80&\".\"&$Y13&\".\"&$L$81&\".\"&$Y$7,$D$78,$D$79,CONFIGURATION!$B$10,\"BMA\",CONFIGURATION!$B$1,\"bscr\",CONFIGURATION!$B$12)","v":"Mapped"},null,{"$f":"XBRLMap(N13,N$80&\".\"&$Y13&\".\"&$N$81&\".\"&$Y$7,$F$78,$F$79,CONFIGURATION!$B$10,\"BMA\",CONFIGURATION!$B$1,\"bscr\",CONFIGURATION!$B$12)","v":"Mapped"},null,{"$f":"XBRLMap(P13,P$80&\".\"&$Y13&\".\"&$P$81&\".\"&$Y$7,$D$78,$D$79,CONFIGURATION!$B$10,\"BMA\",CONFIGURATION!$B$1,\"bscr\",CONFIGURATION!$B$12)","v":"Mapped"},null,{"$f":"XBRLMap(R13,R$80&\".\"&$Y13&\".\"&$R$81&\".\"&$Y$7,$F$78,$F$79,CONFIGURATION!$B$10,\"BMA\",CONFIGURATION!$B$1,\"bscr\",CONFIGURATION!$B$12)","v":"Mapped"},null,{"$f":"XBRLMap(T13,T$80&\".\"&$Y13&\".\"&$T$81&\".\"&$Y$7,$D$78,$D$79,CONFIGURATION!$B$10,\"BMA\",CONFIGURATION!$B$1,\"bscr\",CONFIGURATION!$B$12)","v":"Mapped"},null,{"$f":"XBRLMap(V13,V$80&\".\"&$Y13&\".\"&$V$81&\".\"&$Y$7,$F$78,$F$79,CONFIGURATION!$B$10,\"BMA\",CONFIGURATION!$B$1,\"bscr\",CONFIGURATION!$B$12)","v":"Mapped"}]
[null,null,null,{"$f":"XBRLMap(D14,D$80&\".\"&$Y14&\".\"&$D$81&\".\"&$Y$7,$D$78,$D$79,CONFIGURATION!$B$10,\"BMA\",CONFIGURATION!$B$1,\"bscr\",CONFIGURATION!$B$12)","v":"Mapped"},null,{"$f":"XBRLMap(F14,F$80&\".\"&$Y14&\".\"&$F$81&\".\"&$Y$7,$F$78,$F$79,CONFIGURATION!$B$10,\"BMA\",CONFIGURATION!$B$1,\"bscr\",CONFIGURATION!$B$12)","v":"Mapped"},null,{"$f":"XBRLMap(H14,H$80&\".\"&$Y14&\".\"&$H$81&\".\"&$Y$7,$D$78,$D$79,CONFIGURATION!$B$10,\"BMA\",CONFIGURATION!$B$1,\"bscr\",CONFIGURATION!$B$12)","v":"Mapped"},null,{"$f":"XBRLMap(J14,J$80&\".\"&$Y14&\".\"&$J$81&\".\"&$Y$7,$F$78,$F$79,CONFIGURATION!$B$10,\"BMA\",CONFIGURATION!$B$1,\"bscr\",CONFIGURATION!$B$12)","v":"Mapped"},null,{"$f":"XBRLMap(L14,L$80&\".\"&$Y14&\".\"&$L$81&\".\"&$Y$7,$D$78,$D$79,CONFIGURATION!$B$10,\"BMA\",CONFIGURATION!$B$1,\"bscr\",CONFIGURATION!$B$12)","v":"Mapped"},null,{"$f":"XBRLMap(N14,N$80&\".\"&$Y14&\".\"&$N$81&\".\"&$Y$7,$F$78,$F$79,CONFIGURATION!$B$10,\"BMA\",CONFIGURATION!$B$1,\"bscr\",CONFIGURATION!$B$12)","v":"Mapped"},null,{"$f":"XBRLMap(P14,P$80&\".\"&$Y14&\".\"&$P$81&\".\"&$Y$7,$D$78,$D$79,CONFIGURATION!$B$10,\"BMA\",CONFIGURATION!$B$1,\"bscr\",CONFIGURATION!$B$12)","v":"Mapped"},null,{"$f":"XBRLMap(R14,R$80&\".\"&$Y14&\".\"&$R$81&\".\"&$Y$7,$F$78,$F$79,CONFIGURATION!$B$10,\"BMA\",CONFIGURATION!$B$1,\"bscr\",CONFIGURATION!$B$12)","v":"Mapped"},null,{"$f":"XBRLMap(T14,T$80&\".\"&$Y14&\".\"&$T$81&\".\"&$Y$7,$D$78,$D$79,CONFIGURATION!$B$10,\"BMA\",CONFIGURATION!$B$1,\"bscr\",CONFIGURATION!$B$12)","v":"Mapped"},null,{"$f":"XBRLMap(V14,V$80&\".\"&$Y14&\".\"&$V$81&\".\"&$Y$7,$F$78,$F$79,CONFIGURATION!$B$10,\"BMA\",CONFIGURATION!$B$1,\"bscr\",CONFIGURATION!$B$12)","v":"Mapped"}]
[null,null,null,{"$f":"XBRLMap(D15,D$80&\".\"&$Y15&\".\"&$D$81&\".\"&$Y$7,$D$78,$D$79,CONFIGURATION!$B$10,\"BMA\",CONFIGURATION!$B$1,\"bscr\",CONFIGURATION!$B$12)","v":"Mapped"},null,{"$f":"XBRLMap(F15,F$80&\".\"&$Y15&\".\"&$F$81&\".\"&$Y$7,$F$78,$F$79,CONFIGURATION!$B$10,\"BMA\",CONFIGURATION!$B$1,\"bscr\",CONFIGURATION!$B$12)","v":"Mapped"},null,{"$f":"XBRLMap(H15,H$80&\".\"&$Y15&\".\"&$H$81&\".\"&$Y$7,$D$78,$D$79,CONFIGURATION!$B$10,\"BMA\",CONFIGURATION!$B$1,\"bscr\",CONFIGURATION!$B$12)","v":"Mapped"},null,{"$f":"XBRLMap(J15,J$80&\".\"&$Y15&\".\"&$J$81&\".\"&$Y$7,$F$78,$F$79,CONFIGURATION!$B$10,\"BMA\",CONFIGURATION!$B$1,\"bscr\",CONFIGURATION!$B$12)","v":"Mapped"},null,{"$f":"XBRLMap(L15,L$80&\".\"&$Y15&\".\"&$L$81&\".\"&$Y$7,$D$78,$D$79,CONFIGURATION!$B$10,\"BMA\",CONFIGURATION!$B$1,\"bscr\",CONFIGURATION!$B$12)","v":"Mapped"},null,{"$f":"XBRLMap(N15,N$80&\".\"&$Y15&\".\"&$N$81&\".\"&$Y$7,$F$78,$F$79,CONFIGURATION!$B$10,\"BMA\",CONFIGURATION!$B$1,\"bscr\",CONFIGURATION!$B$12)","v":"Mapped"},null,{"$f":"XBRLMap(P15,P$80&\".\"&$Y15&\".\"&$P$81&\".\"&$Y$7,$D$78,$D$79,CONFIGURATION!$B$10,\"BMA\",CONFIGURATION!$B$1,\"bscr\",CONFIGURATION!$B$12)","v":"Mapped"},null,{"$f":"XBRLMap(R15,R$80&\".\"&$Y15&\".\"&$R$81&\".\"&$Y$7,$F$78,$F$79,CONFIGURATION!$B$10,\"BMA\",CONFIGURATION!$B$1,\"bscr\",CONFIGURATION!$B$12)","v":"Mapped"},null,{"$f":"XBRLMap(T15,T$80&\".\"&$Y15&\".\"&$T$81&\".\"&$Y$7,$D$78,$D$79,CONFIGURATION!$B$10,\"BMA\",CONFIGURATION!$B$1,\"bscr\",CONFIGURATION!$B$12)","v":"Mapped"},null,{"$f":"XBRLMap(V15,V$80&\".\"&$Y15&\".\"&$V$81&\".\"&$Y$7,$F$78,$F$79,CONFIGURATION!$B$10,\"BMA\",CONFIGURATION!$B$1,\"bscr\",CONFIGURATION!$B$12)","v":"Mapped"}]
[null,null,null,{"$f":"XBRLMap(D16,D$80&\".\"&$Y16&\".\"&$D$81&\".\"&$Y$7,$D$78,$D$79,CONFIGURATION!$B$10,\"BMA\",CONFIGURATION!$B$1,\"bscr\",CONFIGURATION!$B$12)","v":"Mapped"},null,{"$f":"XBRLMap(F16,F$80&\".\"&$Y16&\".\"&$F$81&\".\"&$Y$7,$F$78,$F$79,CONFIGURATION!$B$10,\"BMA\",CONFIGURATION!$B$1,\"bscr\",CONFIGURATION!$B$12)","v":"Mapped"},null,{"$f":"XBRLMap(H16,H$80&\".\"&$Y16&\".\"&$H$81&\".\"&$Y$7,$D$78,$D$79,CONFIGURATION!$B$10,\"BMA\",CONFIGURATION!$B$1,\"bscr\",CONFIGURATION!$B$12)","v":"Mapped"},null,{"$f":"XBRLMap(J16,J$80&\".\"&$Y16&\".\"&$J$81&\".\"&$Y$7,$F$78,$F$79,CONFIGURATION!$B$10,\"BMA\",CONFIGURATION!$B$1,\"bscr\",CONFIGURATION!$B$12)","v":"Mapped"},null,{"$f":"XBRLMap(L16,L$80&\".\"&$Y16&\".\"&$L$81&\".\"&$Y$7,$D$78,$D$79,CONFIGURATION!$B$10,\"BMA\",CONFIGURATION!$B$1,\"bscr\",CONFIGURATION!$B$12)","v":"Mapped"},null,{"$f":"XBRLMap(N16,N$80&\".\"&$Y16&\".\"&$N$81&\".\"&$Y$7,$F$78,$F$79,CONFIGURATION!$B$10,\"BMA\",CONFIGURATION!$B$1,\"bscr\",CONFIGURATION!$B$12)","v":"Mapped"},null,{"$f":"XBRLMap(P16,P$80&\".\"&$Y16&\".\"&$P$81&\".\"&$Y$7,$D$78,$D$79,CONFIGURATION!$B$10,\"BMA\",CONFIGURATION!$B$1,\"bscr\",CONFIGURATION!$B$12)","v":"Mapped"},null,{"$f":"XBRLMap(R16,R$80&\".\"&$Y16&\".\"&$R$81&\".\"&$Y$7,$F$78,$F$79,CONFIGURATION!$B$10,\"BMA\",CONFIGURATION!$B$1,\"bscr\",CONFIGURATION!$B$12)","v":"Mapped"},null,{"$f":"XBRLMap(T16,T$80&\".\"&$Y16&\".\"&$T$81&\".\"&$Y$7,$D$78,$D$79,CONFIGURATION!$B$10,\"BMA\",CONFIGURATION!$B$1,\"bscr\",CONFIGURATION!$B$12)","v":"Mapped"},null,{"$f":"XBRLMap(V16,V$80&\".\"&$Y16&\".\"&$V$81&\".\"&$Y$7,$F$78,$F$79,CONFIGURATION!$B$10,\"BMA\",CONFIGURATION!$B$1,\"bscr\",CONFIGURATION!$B$12)","v":"Mapped"}]
[null,null,null,{"$f":"XBRLMap(D17,D$80&\".\"&$Y17&\".\"&$D$81&\".\"&$Y$7,$D$78,$D$79,CONFIGURATION!$B$10,\"BMA\",CONFIGURATION!$B$1,\"bscr\",CONFIGURATION!$B$12)","v":"Mapped"},null,{"$f":"XBRLMap(F17,F$80&\".\"&$Y17&\".\"&$F$81&\".\"&$Y$7,$F$78,$F$79,CONFIGURATION!$B$10,\"BMA\",CONFIGURATION!$B$1,\"bscr\",CONFIGURATION!$B$12)","v":"Mapped"},null,{"$f":"XBRLMap(H17,H$80&\".\"&$Y17&\".\"&$H$81&\".\"&$Y$7,$D$78,$D$79,CONFIGURATION!$B$10,\"BMA\",CONFIGURATION!$B$1,\"bscr\",CONFIGURATION!$B$12)","v":"Mapped"},null,{"$f":"XBRLMap(J17,J$80&\".\"&$Y17&\".\"&$J$81&\".\"&$Y$7,$F$78,$F$79,CONFIGURATION!$B$10,\"BMA\",CONFIGURATION!$B$1,\"bscr\",CONFIGURATION!$B$12)","v":"Mapped"},null,{"$f":"XBRLMap(L17,L$80&\".\"&$Y17&\".\"&$L$81&\".\"&$Y$7,$D$78,$D$79,CONFIGURATION!$B$10,\"BMA\",CONFIGURATION!$B$1,\"bscr\",CONFIGURATION!$B$12)","v":"Mapped"},null,{"$f":"XBRLMap(N17,N$80&\".\"&$Y17&\".\"&$N$81&\".\"&$Y$7,$F$78,$F$79,CONFIGURATION!$B$10,\"BMA\",CONFIGURATION!$B$1,\"bscr\",CONFIGURATION!$B$12)","v":"Mapped"},null,{"$f":"XBRLMap(P17,P$80&\".\"&$Y17&\".\"&$P$81&\".\"&$Y$7,$D$78,$D$79,CONFIGURATION!$B$10,\"BMA\",CONFIGURATION!$B$1,\"bscr\",CONFIGURATION!$B$12)","v":"Mapped"},null,{"$f":"XBRLMap(R17,R$80&\".\"&$Y17&\".\"&$R$81&\".\"&$Y$7,$F$78,$F$79,CONFIGURATION!$B$10,\"BMA\",CONFIGURATION!$B$1,\"bscr\",CONFIGURATION!$B$12)","v":"Mapped"},null,{"$f":"XBRLMap(T17,T$80&\".\"&$Y17&\".\"&$T$81&\".\"&$Y$7,$D$78,$D$79,CONFIGURATION!$B$10,\"BMA\",CONFIGURATION!$B$1,\"bscr\",CONFIGURATION!$B$12)","v":"Mapped"},null,{"$f":"XBRLMap(V17,V$80&\".\"&$Y17&\".\"&$V$81&\".\"&$Y$7,$F$78,$F$79,CONFIGURATION!$B$10,\"BMA\",CONFIGURATION!$B$1,\"bscr\",CONFIGURATION!$B$12)","v":"Mapped"}]
[null,null,null,{"$f":"XBRLMap(D18,D$80&\".\"&$Y18&\".\"&$D$81&\".\"&$Y$7,$D$78,$D$79,CONFIGURATION!$B$10,\"BMA\",CONFIGURATION!$B$1,\"bscr\",CONFIGURATION!$B$12)","v":"Mapped"},null,{"$f":"XBRLMap(F18,F$80&\".\"&$Y18&\".\"&$F$81&\".\"&$Y$7,$F$78,$F$79,CONFIGURATION!$B$10,\"BMA\",CONFIGURATION!$B$1,\"bscr\",CONFIGURATION!$B$12)","v":"Mapped"},null,{"$f":"XBRLMap(H18,H$80&\".\"&$Y18&\".\"&$H$81&\".\"&$Y$7,$D$78,$D$79,CONFIGURATION!$B$10,\"BMA\",CONFIGURATION!$B$1,\"bscr\",CONFIGURATION!$B$12)","v":"Mapped"},null,{"$f":"XBRLMap(J18,J$80&\".\"&$Y18&\".\"&$J$81&\".\"&$Y$7,$F$78,$F$79,CONFIGURATION!$B$10,\"BMA\",CONFIGURATION!$B$1,\"bscr\",CONFIGURATION!$B$12)","v":"Mapped"},null,{"$f":"XBRLMap(L18,L$80&\".\"&$Y18&\".\"&$L$81&\".\"&$Y$7,$D$78,$D$79,CONFIGURATION!$B$10,\"BMA\",CONFIGURATION!$B$1,\"bscr\",CONFIGURATION!$B$12)","v":"Mapped"},null,{"$f":"XBRLMap(N18,N$80&\".\"&$Y18&\".\"&$N$81&\".\"&$Y$7,$F$78,$F$79,CONFIGURATION!$B$10,\"BMA\",CONFIGURATION!$B$1,\"bscr\",CONFIGURATION!$B$12)","v":"Mapped"},null,{"$f":"XBRLMap(P18,P$80&\".\"&$Y18&\".\"&$P$81&\".\"&$Y$7,$D$78,$D$79,CONFIGURATION!$B$10,\"BMA\",CONFIGURATION!$B$1,\"bscr\",CONFIGURATION!$B$12)","v":"Mapped"},null,{"$f":"XBRLMap(R18,R$80&\".\"&$Y18&\".\"&$R$81&\".\"&$Y$7,$F$78,$F$79,CONFIGURATION!$B$10,\"BMA\",CONFIGURATION!$B$1,\"bscr\",CONFIGURATION!$B$12)","v":"Mapped"},null,{"$f":"XBRLMap(T18,T$80&\".\"&$Y18&\".\"&$T$81&\".\"&$Y$7,$D$78,$D$79,CONFIGURATION!$B$10,\"BMA\",CONFIGURATION!$B$1,\"bscr\",CONFIGURATION!$B$12)","v":"Mapped"},null,{"$f":"XBRLMap(V18,V$80&\".\"&$Y18&\".\"&$V$81&\".\"&$Y$7,$F$78,$F$79,CONFIGURATION!$B$10,\"BMA\",CONFIGURATION!$B$1,\"bscr\",CONFIGURATION!$B$12)","v":"Mapped"}]
[null,null,null,{"$f":"XBRLMap(D19,D$80&\".\"&$Y19&\".\"&$D$81&\".\"&$Y$7,$D$78,$D$79,CONFIGURATION!$B$10,\"BMA\",CONFIGURATION!$B$1,\"bscr\",CONFIGURATION!$B$12)","v":"Mapped"},null,{"$f":"XBRLMap(F19,F$80&\".\"&$Y19&\".\"&$F$81&\".\"&$Y$7,$F$78,$F$79,CONFIGURATION!$B$10,\"BMA\",CONFIGURATION!$B$1,\"bscr\",CONFIGURATION!$B$12)","v":"Mapped"},null,{"$f":"XBRLMap(H19,H$80&\".\"&$Y19&\".\"&$H$81&\".\"&$Y$7,$D$78,$D$79,CONFIGURATION!$B$10,\"BMA\",CONFIGURATION!$B$1,\"bscr\",CONFIGURATION!$B$12)","v":"Mapped"},null,{"$f":"XBRLMap(J19,J$80&\".\"&$Y19&\".\"&$J$81&\".\"&$Y$7,$F$78,$F$79,CONFIGURATION!$B$10,\"BMA\",CONFIGURATION!$B$1,\"bscr\",CONFIGURATION!$B$12)","v":"Mapped"},null,{"$f":"XBRLMap(L19,L$80&\".\"&$Y19&\".\"&$L$81&\".\"&$Y$7,$D$78,$D$79,CONFIGURATION!$B$10,\"BMA\",CONFIGURATION!$B$1,\"bscr\",CONFIGURATION!$B$12)","v":"Mapped"},null,{"$f":"XBRLMap(N19,N$80&\".\"&$Y19&\".\"&$N$81&\".\"&$Y$7,$F$78,$F$79,CONFIGURATION!$B$10,\"BMA\",CONFIGURATION!$B$1,\"bscr\",CONFIGURATION!$B$12)","v":"Mapped"},null,{"$f":"XBRLMap(P19,P$80&\".\"&$Y19&\".\"&$P$81&\".\"&$Y$7,$D$78,$D$79,CONFIGURATION!$B$10,\"BMA\",CONFIGURATION!$B$1,\"bscr\",CONFIGURATION!$B$12)","v":"Mapped"},null,{"$f":"XBRLMap(R19,R$80&\".\"&$Y19&\".\"&$R$81&\".\"&$Y$7,$F$78,$F$79,CONFIGURATION!$B$10,\"BMA\",CONFIGURATION!$B$1,\"bscr\",CONFIGURATION!$B$12)","v":"Mapped"},null,{"$f":"XBRLMap(T19,T$80&\".\"&$Y19&\".\"&$T$81&\".\"&$Y$7,$D$78,$D$79,CONFIGURATION!$B$10,\"BMA\",CONFIGURATION!$B$1,\"bscr\",CONFIGURATION!$B$12)","v":"Mapped"},null,{"$f":"XBRLMap(V19,V$80&\".\"&$Y19&\".\"&$V$81&\".\"&$Y$7,$F$78,$F$79,CONFIGURATION!$B$10,\"BMA\",CONFIGURATION!$B$1,\"bscr\",CONFIGURATION!$B$12)","v":"Mapped"}]
[null,null,null,{"$f":"XBRLMap(D20,D$80&\".\"&$Y20&\".\"&$D$81&\".\"&$Y$7,$D$78,$D$79,CONFIGURATION!$B$10,\"BMA\",CONFIGURATION!$B$1,\"bscr\",CONFIGURATION!$B$12)","v":"Mapped"},null,{"$f":"XBRLMap(F20,F$80&\".\"&$Y20&\".\"&$F$81&\".\"&$Y$7,$F$78,$F$79,CONFIGURATION!$B$10,\"BMA\",CONFIGURATION!$B$1,\"bscr\",CONFIGURATION!$B$12)","v":"Mapped"},null,{"$f":"XBRLMap(H20,H$80&\".\"&$Y20&\".\"&$H$81&\".\"&$Y$7,$D$78,$D$79,CONFIGURATION!$B$10,\"BMA\",CONFIGURATION!$B$1,\"bscr\",CONFIGURATION!$B$12)","v":"Mapped"},null,{"$f":"XBRLMap(J20,J$80&\".\"&$Y20&\".\"&$J$81&\".\"&$Y$7,$F$78,$F$79,CONFIGURATION!$B$10,\"BMA\",CONFIGURATION!$B$1,\"bscr\",CONFIGURATION!$B$12)","v":"Mapped"},null,{"$f":"XBRLMap(L20,L$80&\".\"&$Y20&\".\"&$L$81&\".\"&$Y$7,$D$78,$D$79,CONFIGURATION!$B$10,\"BMA\",CONFIGURATION!$B$1,\"bscr\",CONFIGURATION!$B$12)","v":"Mapped"},null,{"$f":"XBRLMap(N20,N$80&\".\"&$Y20&\".\"&$N$81&\".\"&$Y$7,$F$78,$F$79,CONFIGURATION!$B$10,\"BMA\",CONFIGURATION!$B$1,\"bscr\",CONFIGURATION!$B$12)","v":"Mapped"},null,{"$f":"XBRLMap(P20,P$80&\".\"&$Y20&\".\"&$P$81&\".\"&$Y$7,$D$78,$D$79,CONFIGURATION!$B$10,\"BMA\",CONFIGURATION!$B$1,\"bscr\",CONFIGURATION!$B$12)","v":"Mapped"},null,{"$f":"XBRLMap(R20,R$80&\".\"&$Y20&\".\"&$R$81&\".\"&$Y$7,$F$78,$F$79,CONFIGURATION!$B$10,\"BMA\",CONFIGURATION!$B$1,\"bscr\",CONFIGURATION!$B$12)","v":"Mapped"},null,{"$f":"XBRLMap(T20,T$80&\".\"&$Y20&\".\"&$T$81&\".\"&$Y$7,$D$78,$D$79,CONFIGURATION!$B$10,\"BMA\",CONFIGURATION!$B$1,\"bscr\",CONFIGURATION!$B$12)","v":"Mapped"},null,{"$f":"XBRLMap(V20,V$80&\".\"&$Y20&\".\"&$V$81&\".\"&$Y$7,$F$78,$F$79,CONFIGURATION!$B$10,\"BMA\",CONFIGURATION!$B$1,\"bscr\",CONFIGURATION!$B$12)","v":"Mapped"}]
[]
[null,null,null,{"$f":"XBRLMap(D22,D$80&\".\"&$Y22&\".\"&$D$81&\".\"&$Y$7,$D$78,$D$79,CONFIGURATION!$B$10,\"BMA\",CONFIGURATION!$B$1,\"bscr\",CONFIGURATION!$B$12)","v":"Mapped"},null,{"$f":"XBRLMap(F22,F$80&\".\"&$Y22&\".\"&$F$81&\".\"&$Y$7,$F$78,$F$79,CONFIGURATION!$B$10,\"BMA\",CONFIGURATION!$B$1,\"bscr\",CONFIGURATION!$B$12)","v":"Mapped"},null,{"$f":"XBRLMap(H22,H$80&\".\"&$Y22&\".\"&$H$81&\".\"&$Y$7,$D$78,$D$79,CONFIGURATION!$B$10,\"BMA\",CONFIGURATION!$B$1,\"bscr\",CONFIGURATION!$B$12)","v":"Mapped"},null,{"$f":"XBRLMap(J22,J$80&\".\"&$Y22&\".\"&$J$81&\".\"&$Y$7,$F$78,$F$79,CONFIGURATION!$B$10,\"BMA\",CONFIGURATION!$B$1,\"bscr\",CONFIGURATION!$B$12)","v":"Mapped"},null,{"$f":"XBRLMap(L22,L$80&\".\"&$Y22&\".\"&$L$81&\".\"&$Y$7,$D$78,$D$79,CONFIGURATION!$B$10,\"BMA\",CONFIGURATION!$B$1,\"bscr\",CONFIGURATION!$B$12)","v":"Mapped"},null,{"$f":"XBRLMap(N22,N$80&\".\"&$Y22&\".\"&$N$81&\".\"&$Y$7,$F$78,$F$79,CONFIGURATION!$B$10,\"BMA\",CONFIGURATION!$B$1,\"bscr\",CONFIGURATION!$B$12)","v":"Mapped"},null,{"$f":"XBRLMap(P22,P$80&\".\"&$Y22&\".\"&$P$81&\".\"&$Y$7,$D$78,$D$79,CONFIGURATION!$B$10,\"BMA\",CONFIGURATION!$B$1,\"bscr\",CONFIGURATION!$B$12)","v":"Mapped"},null,{"$f":"XBRLMap(R22,R$80&\".\"&$Y22&\".\"&$R$81&\".\"&$Y$7,$F$78,$F$79,CONFIGURATION!$B$10,\"BMA\",CONFIGURATION!$B$1,\"bscr\",CONFIGURATION!$B$12)","v":"Mapped"},null,{"$f":"XBRLMap(T22,T$80&\".\"&$Y22&\".\"&$T$81&\".\"&$Y$7,$D$78,$D$79,CONFIGURATION!$B$10,\"BMA\",CONFIGURATION!$B$1,\"bscr\",CONFIGURATION!$B$12)","v":"Mapped"},null,{"$f":"XBRLMap(V22,V$80&\".\"&$Y22&\".\"&$V$81&\".\"&$Y$7,$F$78,$F$79,CONFIGURATION!$B$10,\"BMA\",CONFIGURATION!$B$1,\"bscr\",CONFIGURATION!$B$12)","v":"Mapped"}]
[]
[null,null,null,"brrt_QuotedInvestmentsEquitiesCommonStocks",null,"brrt_QuotedInvestmentsEquitiesCommonStocks",null,null,null,null,null,"brrt_QuotedInvestmentsEquitiesMutualFunds",null,"brrt_QuotedInvestmentsEquitiesMutualFunds",null,null,null,null,null,"brrt_QuotedInvestmentsEquitiesCommonStocksMutualFunds",null,"brrt_QuotedInvestmentsEquitiesCommonStocksMutualFunds"]
[null,null,null,"brrt_UnquotedInvestmentsEquitiesCommonStocks",null,"brrt_UnquotedInvestmentsEquitiesCommonStocks",null,null,null,null,null,"brrt_UnquotedInvestmentsEquitiesMutualFunds",null,"brrt_UnquotedInvestmentsEquitiesMutualFunds",null,null,null,null,null,"brrt_UnquotedInvestmentsEquitiesCommonStocksMutualFunds",null,"brrt_UnquotedInvestmentsEquitiesCommonStocksMutualFunds"]
[null,null,null,"brrt_EquitiesCommonStocks",null,"brrt_EquitiesCommonStocks",null,"brrt_EquitiesPreferredStocks",null,"brrt_EquitiesPreferredStocks",null,"brrt_EquitiesMutualFunds",null,"brrt_EquitiesMutualFunds",null,null,null,null,null,"brrt_Equities",null,"brrt_Equities"]
[null,null,null,null,null,null,null,{"$f":"XBRLMap(H33,H$96&\".\"&$Y33&\".\"&$Y$7,$D$78,$D$79,CONFIGURATION!$B$10,\"BMA\",CONFIGURATION!$B$1,\"bscr\",CONFIGURATION!$B$12)","v":"Mapped"},null,{"$f":"XBRLMap(J33,J$96&\".\"&$Y33&\".\"&$Y$7,$F$78,$F$79,CONFIGURATION!$B$10,\"BMA\",CONFIGURATION!$B$1,\"bscr\",CONFIGURATION!$B$12)","v":"Mapped"},null,null,null,null,null,null,null,null,null,"The same data point as in column H",null,"The same data point as in column J"]
[null,null,null,null,null,null,null,{"$f":"XBRLMap(H34,H$96&\".\"&$Y34&\".\"&$Y$7,$D$78,$D$79,CONFIGURATION!$B$10,\"BMA\",CONFIGURATION!$B$1,\"bscr\",CONFIGURATION!$B$12)","v":"Mapped"},null,{"$f":"XBRLMap(J34,J$96&\".\"&$Y34&\".\"&$Y$7,$F$78,$F$79,CONFIGURATION!$B$10,\"BMA\",CONFIGURATION!$B$1,\"bscr\",CONFIGURATION!$B$12)","v":"Mapped"},null,null,null,null,null,null,null,null,null,"The same data point as in column H",null,"The same data point as in column J"]
[null,null,null,null,null,null,null,{"$f":"XBRLMap(H35,H$96&\".\"&$Y35&\".\"&$Y$7,$D$78,$D$79,CONFIGURATION!$B$10,\"BMA\",CONFIGURATION!$B$1,\"bscr\",CONFIGURATION!$B$12)","v":"Mapped"},null,{"$f":"XBRLMap(J35,J$96&\".\"&$Y35&\".\"&$Y$7,$F$78,$F$79,CONFIGURATION!$B$10,\"BMA\",CONFIGURATION!$B$1,\"bscr\",CONFIGURATION!$B$12)","v":"Mapped"},null,null,null,null,null,null,null,null,null,"The same data point as in column H",null,"The same data point as in column J"]
[null,null,null,null,null,null,null,{"$f":"XBRLMap(H36,H$96&\".\"&$Y36&\".\"&$Y$7,$D$78,$D$79,CONFIGURATION!$B$10,\"BMA\",CONFIGURATION!$B$1,\"bscr\",CONFIGURATION!$B$12)","v":"Mapped"},null,{"$f":"XBRLMap(J36,J$96&\".\"&$Y36&\".\"&$Y$7,$F$78,$F$79,CONFIGURATION!$B$10,\"BMA\",CONFIGURATION!$B$1,\"bscr\",CONFIGURATION!$B$12)","v":"Mapped"},null,null,null,null,null,null,null,null,null,"The same data point as in column H",null,"The same data point as in column J"]
[null,null,null,null,null,null,null,{"$f":"XBRLMap(H37,H$96&\".\"&$Y37&\".\"&$Y$7,$D$78,$D$79,CONFIGURATION!$B$10,\"BMA\",CONFIGURATION!$B$1,\"bscr\",CONFIGURATION!$B$12)","v":"Mapped"},null,{"$f":"XBRLMap(J37,J$96&\".\"&$Y37&\".\"&$Y$7,$F$78,$F$79,CONFIGURATION!$B$10,\"BMA\",CONFIGURATION!$B$1,\"bscr\",CONFIGURATION!$B$12)","v":"Mapped"},null,null,null,null,null,null,null,null,null,"The same data point as in column H",null,"The same data point as in column J"]
[null,null,null,null,null,null,null,{"$f":"XBRLMap(H38,H$96&\".\"&$Y38&\".\"&$Y$7,$D$78,$D$79,CONFIGURATION!$B$10,\"BMA\",CONFIGURATION!$B$1,\"bscr\",CONFIGURATION!$B$12)","v":"Mapped"},null,{"$f":"XBRLMap(J38,J$96&\".\"&$Y38&\".\"&$Y$7,$F$78,$F$79,CONFIGURATION!$B$10,\"BMA\",CONFIGURATION!$B$1,\"bscr\",CONFIGURATION!$B$12)","v":"Mapped"},null,null,null,null,null,null,null,null,null,"The same data point as in column H",null,"The same data point as in column J"]
[null,null,null,null,null,null,null,{"$f":"XBRLMap(H39,H$96&\".\"&$Y39&\".\"&$Y$7,$D$78,$D$79,CONFIGURATION!$B$10,\"BMA\",CONFIGURATION!$B$1,\"bscr\",CONFIGURATION!$B$12)","v":"Mapped"},null,{"$f":"XBRLMap(J39,J$96&\".\"&$Y39&\".\"&$Y$7,$F$78,$F$79,CONFIGURATION!$B$10,\"BMA\",CONFIGURATION!$B$1,\"bscr\",CONFIGURATION!$B$12)","v":"Mapped"},null,null,null,null,null,null,null,null,null,"The same data point as in column H",null,"The same data point as in column J"]
[null,null,null,null,null,null,null,{"$f":"XBRLMap(H40,H$96&\".\"&$Y40&\".\"&$Y$7,$D$78,$D$79,CONFIGURATION!$B$10,\"BMA\",CONFIGURATION!$B$1,\"bscr\",CONFIGURATION!$B$12)","v":"Mapped"},null,{"$f":"XBRLMap(J40,J$96&\".\"&$Y40&\".\"&$Y$7,$F$78,$F$79,CONFIGURATION!$B$10,\"BMA\",CONFIGURATION!$B$1,\"bscr\",CONFIGURATION!$B$12)","v":"Mapped"},null,null,null,null,null,null,null,null,null,"The same data point as in column H",null,"The same data point as in column J"]
[null,null,null,{"$f":"XBRLMap(D41,D$94&\".\"&$Y$7,$D$78,$D$79,CONFIGURATION!$B$10,\"BMA\",CONFIGURATION!$B$1,\"bscr\",CONFIGURATION!$B$12)","v":"Mapped"},null,{"$f":"XBRLMap(F41,F$94&\".\"&$Y$7,$F$78,$F$79,CONFIGURATION!$B$10,\"BMA\",CONFIGURATION!$B$1,\"bscr\",CONFIGURATION!$B$12)","v":"Mapped"},null,null,null,null,null,{"$f":"XBRLMap(L41,L$94&\".\"&$Y$7,$D$78,$D$79,CONFIGURATION!$B$10,\"BMA\",CONFIGURATION!$B$1,\"bscr\",CONFIGURATION!$B$12)","v":"Mapped"},null,{"$f":"XBRLMap(N41,N$94&\".\"&$Y$7,$F$78,$F$79,CONFIGURATION!$B$10,\"BMA\",CONFIGURATION!$B$1,\"bscr\",CONFIGURATION!$B$12)","v":"Mapped"},null,null,null,null,null,{"$f":"XBRLMap(T41,T$94&\".\"&$Y$7,$D$78,$D$79,CONFIGURATION!$B$10,\"BMA\",CONFIGURATION!$B$1,\"bscr\",CONFIGURATION!$B$12)","v":"Mapped"},null,{"$f":"XBRLMap(V41,V$94&\".\"&$Y$7,$F$78,$F$79,CONFIGURATION!$B$10,\"BMA\",CONFIGURATION!$B$1,\"bscr\",CONFIGURATION!$B$12)","v":"Mapped"}]
[null,null,null,{"$f":"XBRLMap(D42,D$95&\".\"&$Y$7,$D$78,$D$79,CONFIGURATION!$B$10,\"BMA\",CONFIGURATION!$B$1,\"bscr\",CONFIGURATION!$B$12)","v":"Mapped"},null,{"$f":"XBRLMap(F42,F$95&\".\"&$Y$7,$F$78,$F$79,CONFIGURATION!$B$10,\"BMA\",CONFIGURATION!$B$1,\"bscr\",CONFIGURATION!$B$12)","v":"Mapped"},null,null,null,null,null,{"$f":"XBRLMap(L42,L$95&\".\"&$Y$7,$D$78,$D$79,CONFIGURATION!$B$10,\"BMA\",CONFIGURATION!$B$1,\"bscr\",CONFIGURATION!$B$12)","v":"Mapped"},null,{"$f":"XBRLMap(N42,N$95&\".\"&$Y$7,$F$78,$F$79,CONFIGURATION!$B$10,\"BMA\",CONFIGURATION!$B$1,\"bscr\",CONFIGURATION!$B$12)","v":"Mapped"},null,null,null,null,null,{"$f":"XBRLMap(T42,T$95&\".\"&$Y$7,$D$78,$D$79,CONFIGURATION!$B$10,\"BMA\",CONFIGURATION!$B$1,\"bscr\",CONFIGURATION!$B$12)","v":"Mapped"},null,{"$f":"XBRLMap(V42,V$95&\".\"&$Y$7,$F$78,$F$79,CONFIGURATION!$B$10,\"BMA\",CONFIGURATION!$B$1,\"bscr\",CONFIGURATION!$B$12)","v":"Mapped"}]
[]
[null,null,null,{"$f":"XBRLMap(D44,D$96&\".\"&$Y$7,$D$78,$D$79,CONFIGURATION!$B$10,\"BMA\",CONFIGURATION!$B$1,\"bscr\",CONFIGURATION!$B$12)","v":"Mapped"},null,{"$f":"XBRLMap(F44,F$96&\".\"&$Y$7,$F$78,$F$79,CONFIGURATION!$B$10,\"BMA\",CONFIGURATION!$B$1,\"bscr\",CONFIGURATION!$B$12)","v":"Mapped"},null,{"$f":"XBRLMap(H44,H$96&\".\"&$Y44&\".\"&$Y$7,$D$78,$D$79,CONFIGURATION!$B$10,\"BMA\",CONFIGURATION!$B$1,\"bscr\",CONFIGURATION!$B$12)","v":"Mapped"},null,{"$f":"XBRLMap(J44,J$96&\".\"&$Y44&\".\"&$Y$7,$F$78,$F$79,CONFIGURATION!$B$10,\"BMA\",CONFIGURATION!$B$1,\"bscr\",CONFIGURATION!$B$12)","v":"Mapped"},null,{"$f":"XBRLMap(L44,L$96&\".\"&$Y$7,$D$78,$D$79,CONFIGURATION!$B$10,\"BMA\",CONFIGURATION!$B$1,\"bscr\",CONFIGURATION!$B$12)","v":"Mapped"},null,{"$f":"XBRLMap(N44,N$96&\".\"&$Y$7,$F$78,$F$79,CONFIGURATION!$B$10,\"BMA\",CONFIGURATION!$B$1,\"bscr\",CONFIGURATION!$B$12)","v":"Mapped"},null,null,null,null,null,{"$f":"XBRLMap(T44,T$96&\".\"&$Y$7,$D$78,$D$79,CONFIGURATION!$B$10,\"BMA\",CONFIGURATION!$B$1,\"bscr\",CONFIGURATION!$B$12)","v":"Mapped"},null,{"$f":"XBRLMap(V44,V$96&\".\"&$Y$7,$F$78,$F$79,CONFIGURATION!$B$10,\"BMA\",CONFIGURATION!$B$1,\"bscr\",CONFIGURATION!$B$12)","v":"Mapped"}]
[]
[]
[null,null,null,null,null,null,null,null,null,null,null,"brrt_BondsAndDebentures",null,"brrt_BondsAndDebentures",null,"brrt_BondsAndDebentures",null,"brrt_BondsAndDebentures"]
[null,null,null,null,null,null,null,null,null,null,null,"brrt_SecurityTypeAxis_brrt_ResidentialMortgageBackedSecuritiesMember",null,"brrt_SecurityTypeAxis_brrt_ResidentialMortgageBackedSecuritiesMember",null,"brrt_SecurityTypeAxis_brrt_CommercialMortgageBackedSecuritiesAssetBackedSecuritiesMember",null,"brrt_SecurityTypeAxis_brrt_CommercialMortgageBackedSecuritiesAssetBackedSecuritiesMember"]
[null,null,null,null,null,null,null,null,null,null,null,"brrt_ClassificationAxis_brrt_OriginalClassificationMember",null,"brrt_ClassificationAxis_brrt_RevisedClassificationMember",null,"brrt_ClassificationAxis_brrt_OriginalClassificationMember",null,"brrt_ClassificationAxis_brrt_RevisedClassificationMember"]
[null,null,null,null,null,null,null,null,null,null,null,{"$f":"XBRLMap(L55,L$111&\".\"&$AC56&\".\"&$L$112&\".\"&$L$113&\".\"&$Y$7,$D$78,$D$79,CONFIGURATION!$B$10,\"BMA\",CONFIGURATION!$B$1,\"bscr\",CONFIGURATION!$B$12)","v":"Mapped"},null,{"$f":"XBRLMap(N55,N$111&\".\"&$AC56&\".\"&$N$112&\".\"&$N$113&\".\"&$Y$7,$D$78,$D$79,CONFIGURATION!$B$10,\"BMA\",CONFIGURATION!$B$1,\"bscr\",CONFIGURATION!$B$12)","v":"Mapped"},null,{"$f":"XBRLMap(P55,P$111&\".\"&$AC56&\".\"&$P$112&\".\"&$P$113&\".\"&$Y$7,$D$78,$D$79,CONFIGURATION!$B$10,\"BMA\",CONFIGURATION!$B$1,\"bscr\",CONFIGURATION!$B$12)","v":"Mapped"},null,{"$f":"XBRLMap(R55,R$111&\".\"&$AC56&\".\"&$R$112&\".\"&$R$113&\".\"&$Y$7,$D$78,$D$79,CONFIGURATION!$B$10,\"BMA\",CONFIGURATION!$B$1,\"bscr\",CONFIGURATION!$B$12)","v":"Mapped"}]
[null,null,null,null,null,null,null,null,null,null,null,{"$f":"XBRLMap(L56,L$111&\".\"&$AC57&\".\"&$L$112&\".\"&$L$113&\".\"&$Y$7,$D$78,$D$79,CONFIGURATION!$B$10,\"BMA\",CONFIGURATION!$B$1,\"bscr\",CONFIGURATION!$B$12)","v":"Mapped"},null,{"$f":"XBRLMap(N56,N$111&\".\"&$AC57&\".\"&$N$112&\".\"&$N$113&\".\"&$Y$7,$D$78,$D$79,CONFIGURATION!$B$10,\"BMA\",CONFIGURATION!$B$1,\"bscr\",CONFIGURATION!$B$12)","v":"Mapped"},null,{"$f":"XBRLMap(P56,P$111&\".\"&$AC57&\".\"&$P$112&\".\"&$P$113&\".\"&$Y$7,$D$78,$D$79,CONFIGURATION!$B$10,\"BMA\",CONFIGURATION!$B$1,\"bscr\",CONFIGURATION!$B$12)","v":"Mapped"},null,{"$f":"XBRLMap(R56,R$111&\".\"&$AC57&\".\"&$R$112&\".\"&$R$113&\".\"&$Y$7,$D$78,$D$79,CONFIGURATION!$B$10,\"BMA\",CONFIGURATION!$B$1,\"bscr\",CONFIGURATION!$B$12)","v":"Mapped"}]
[null,null,null,null,null,null,null,null,null,null,null,{"$f":"XBRLMap(L57,L$111&\".\"&$AC58&\".\"&$L$112&\".\"&$L$113&\".\"&$Y$7,$D$78,$D$79,CONFIGURATION!$B$10,\"BMA\",CONFIGURATION!$B$1,\"bscr\",CONFIGURATION!$B$12)","v":"Mapped"},null,{"$f":"XBRLMap(N57,N$111&\".\"&$AC58&\".\"&$N$112&\".\"&$N$113&\".\"&$Y$7,$D$78,$D$79,CONFIGURATION!$B$10,\"BMA\",CONFIGURATION!$B$1,\"bscr\",CONFIGURATION!$B$12)","v":"Mapped"},null,{"$f":"XBRLMap(P57,P$111&\".\"&$AC58&\".\"&$P$112&\".\"&$P$113&\".\"&$Y$7,$D$78,$D$79,CONFIGURATION!$B$10,\"BMA\",CONFIGURATION!$B$1,\"bscr\",CONFIGURATION!$B$12)","v":"Mapped"},null,{"$f":"XBRLMap(R57,R$111&\".\"&$AC58&\".\"&$R$112&\".\"&$R$113&\".\"&$Y$7,$D$78,$D$79,CONFIGURATION!$B$10,\"BMA\",CONFIGURATION!$B$1,\"bscr\",CONFIGURATION!$B$12)","v":"Mapped"}]
[null,null,null,null,null,null,null,null,null,null,null,{"$f":"XBRLMap(L58,L$111&\".\"&$AC59&\".\"&$L$112&\".\"&$L$113&\".\"&$Y$7,$D$78,$D$79,CONFIGURATION!$B$10,\"BMA\",CONFIGURATION!$B$1,\"bscr\",CONFIGURATION!$B$12)","v":"Mapped"},null,{"$f":"XBRLMap(N58,N$111&\".\"&$AC59&\".\"&$N$112&\".\"&$N$113&\".\"&$Y$7,$D$78,$D$79,CONFIGURATION!$B$10,\"BMA\",CONFIGURATION!$B$1,\"bscr\",CONFIGURATION!$B$12)","v":"Mapped"},null,{"$f":"XBRLMap(P58,P$111&\".\"&$AC59&\".\"&$P$112&\".\"&$P$113&\".\"&$Y$7,$D$78,$D$79,CONFIGURATION!$B$10,\"BMA\",CONFIGURATION!$B$1,\"bscr\",CONFIGURATION!$B$12)","v":"Mapped"},null,{"$f":"XBRLMap(R58,R$111&\".\"&$AC59&\".\"&$R$112&\".\"&$R$113&\".\"&$Y$7,$D$78,$D$79,CONFIGURATION!$B$10,\"BMA\",CONFIGURATION!$B$1,\"bscr\",CONFIGURATION!$B$12)","v":"Mapped"}]
[null,null,null,null,null,null,null,null,null,null,null,{"$f":"XBRLMap(L59,L$111&\".\"&$AC60&\".\"&$L$112&\".\"&$L$113&\".\"&$Y$7,$D$78,$D$79,CONFIGURATION!$B$10,\"BMA\",CONFIGURATION!$B$1,\"bscr\",CONFIGURATION!$B$12)","v":"Mapped"},null,{"$f":"XBRLMap(N59,N$111&\".\"&$AC60&\".\"&$N$112&\".\"&$N$113&\".\"&$Y$7,$D$78,$D$79,CONFIGURATION!$B$10,\"BMA\",CONFIGURATION!$B$1,\"bscr\",CONFIGURATION!$B$12)","v":"Mapped"},null,{"$f":"XBRLMap(P59,P$111&\".\"&$AC60&\".\"&$P$112&\".\"&$P$113&\".\"&$Y$7,$D$78,$D$79,CONFIGURATION!$B$10,\"BMA\",CONFIGURATION!$B$1,\"bscr\",CONFIGURATION!$B$12)","v":"Mapped"},null,{"$f":"XBRLMap(R59,R$111&\".\"&$AC60&\".\"&$R$112&\".\"&$R$113&\".\"&$Y$7,$D$78,$D$79,CONFIGURATION!$B$10,\"BMA\",CONFIGURATION!$B$1,\"bscr\",CONFIGURATION!$B$12)","v":"Mapped"}]
[null,null,null,null,null,null,null,null,null,null,null,{"$f":"XBRLMap(L60,L$111&\".\"&$AC61&\".\"&$L$112&\".\"&$L$113&\".\"&$Y$7,$D$78,$D$79,CONFIGURATION!$B$10,\"BMA\",CONFIGURATION!$B$1,\"bscr\",CONFIGURATION!$B$12)","v":"Mapped"},null,{"$f":"XBRLMap(N60,N$111&\".\"&$AC61&\".\"&$N$112&\".\"&$N$113&\".\"&$Y$7,$D$78,$D$79,CONFIGURATION!$B$10,\"BMA\",CONFIGURATION!$B$1,\"bscr\",CONFIGURATION!$B$12)","v":"Mapped"},null,{"$f":"XBRLMap(P60,P$111&\".\"&$AC61&\".\"&$P$112&\".\"&$P$113&\".\"&$Y$7,$D$78,$D$79,CONFIGURATION!$B$10,\"BMA\",CONFIGURATION!$B$1,\"bscr\",CONFIGURATION!$B$12)","v":"Mapped"},null,{"$f":"XBRLMap(R60,R$111&\".\"&$AC61&\".\"&$R$112&\".\"&$R$113&\".\"&$Y$7,$D$78,$D$79,CONFIGURATION!$B$10,\"BMA\",CONFIGURATION!$B$1,\"bscr\",CONFIGURATION!$B$12)","v":"Mapped"}]
[]
[null,null,null,null,null,null,null,null,null,null,null,{"$f":"XBRLMap(L62,L$111&\".\"&$AC63&\".\"&$L$112&\".\"&$L$113&\".\"&$Y$7,$D$78,$D$79,CONFIGURATION!$B$10,\"BMA\",CONFIGURATION!$B$1,\"bscr\",CONFIGURATION!$B$12)","v":"Mapped"},null,{"$f":"XBRLMap(N62,N$111&\".\"&$AC63&\".\"&$N$112&\".\"&$N$113&\".\"&$Y$7,$D$78,$D$79,CONFIGURATION!$B$10,\"BMA\",CONFIGURATION!$B$1,\"bscr\",CONFIGURATION!$B$12)","v":"Mapped"},null,{"$f":"XBRLMap(P62,P$111&\".\"&$AC63&\".\"&$P$112&\".\"&$P$113&\".\"&$Y$7,$D$78,$D$79,CONFIGURATION!$B$10,\"BMA\",CONFIGURATION!$B$1,\"bscr\",CONFIGURATION!$B$12)","v":"Mapped"},null,{"$f":"XBRLMap(R62,R$111&\".\"&$AC63&\".\"&$R$112&\".\"&$R$113&\".\"&$Y$7,$D$78,$D$79,CONFIGURATION!$B$10,\"BMA\",CONFIGURATION!$B$1,\"bscr\",CONFIGURATION!$B$12)","v":"Mapped"}]

{"sheet":"Schedule IIA (EBS)","index":23,"n_rows":121,"n_cols":29,"rows_kept":121,"cut":false,"hidden":false,"merged":[[52,11,52,13],[52,15,52,17],[63,3,63,5],[2,3,2,5],[3,3,3,5],[71,2,73,2],[6,3,6,5],[6,7,6,9],[28,3,28,5],[28,7,28,9],[1,2,1,4],[51,3,51,5],[50,8,51,20],[6,19,6,21],[28,19,28,21],[6,11,6,13],[6,15,6,17],[28,11,28,13],[28,15,28,17]]}
[null,"SCHEDULE OF FUNDS HELD BY CEDING REINSURERS IN SEGREGATED ACCOUNTS / TRUSTS BY BSCR RATING",null,null,null,null,null,null,null,null,null,null,null,null,null,null,null,null,null,null,null,{"$f":"HYPERLINK(\"#'Index'!A1\",\"Return to Index\")","v":"Return to Index"}]
[null,null,{"$f":"+'Company Information'!C7","v":"Enter Company Name"}]
[null,null,"As at",{"$f":"+'Company Information'!C3","v":"2019-12-31"},null,null,null,null,null,null,null,null,null,null,null,null,null,null,null,null,null,"SCHEDULE IIA (EBS)"]
[null,null,{"$f":"+'Form 1EBS'!B4","v":"expressed in ['000s]"},{"$f":"+'Form 1EBS'!C4","v":"United States Dollars"}]
[]
[null,null,null,"(1)",null,"(2)",null,"(3)",null,"(4)",null,"(5)",null,"(6)",null,"(7)",null,"(8)",null,"(9)",null,"(10)"]
[null,null,null,"CORPORATE & SOVEREIGN BONDS",null,null,null,"RESIDENTIAL MORTGAGE-BACKED SECURITIES",null,null,null,"COMMERCIAL MORTGAGE-BACKED SECURITIES / ASSET-BACKED SECURITIES",null,null,null,"BOND MUTUAL FUNDS",null,null,null,"TOTAL",null,null,null,null,"brrt_RiskTransferAxis_brrt_FundsHeldByCedingReinsurersInSegregatedAccountsTrustsMember"]
[null,null,null,{"$f":"+'Form 1EBS'!$F$7","v":"2019-12-31"},null,{"$f":"+'Form 1EBS'!$H$7","v":"2018-12-31"},null,{"$f":"+'Form 1EBS'!$F$7","v":"2019-12-31"},null,{"$f":"+'Form 1EBS'!$H$7","v":"2018-12-31"},null,{"$f":"+'Form 1EBS'!$F$7","v":"2019-12-31"},null,{"$f":"+'Form 1EBS'!$H$7","v":"2018-12-31"},null,{"$f":"+'Form 1EBS'!$F$7","v":"2019-12-31"},null,{"$f":"+'Form 1EBS'!$H$7","v":"2018-12-31"},null,{"$f":"+'Form 1EBS'!$F$7","v":"2019-12-31"},null,{"$f":"+'Form 1EBS'!$H$7","v":"2018-12-31"}]
[null,null,null,{"$f":"+'Form 1EBS'!$F$8","v":" ('000s)"},null,{"$f":"+'Form 1EBS'!$H$8","v":" ('000s)"},null,{"$f":"+'Form 1EBS'!$F$8","v":" ('000s)"},null,{"$f":"+'Form 1EBS'!$H$8","v":" ('000s)"},null,{"$f":"+'Form 1EBS'!$F$8","v":" ('000s)"},null,{"$f":"+'Form 1EBS'!$H$8","v":" ('000s)"},null,{"$f":"+'Form 1EBS'!$F$8","v":" ('000s)"},null,{"$f":"+'Form 1EBS'!$H$8","v":" ('000s)"},null,{"$f":"+'Form 1EBS'!$F$8","v":" ('000s)"},null,{"$f":"+'Form 1EBS'!$H$8","v":" ('000s)"}]
[null,"Line no. "]
[null,"Quoted and Unquoted Bonds and Debentures"]
[null,1,"BSCR Rating 0",{"$f":"Import!M557","v":0},null,{"$f":"Import!O557","v":0},null,null,null,null,null,null,null,null,null,{"$f":"Import!M582","v":0},null,{"$f":"Import!O582","v":0},null,{"$f":"D12+H12+L12+P12","v":0},null,{"$f":"F12+J12+N12+R12","v":0},null,null,"brrt_RiskGradeAxis_brrt_BSCRRating0Member"]
[null,2,"BSCR Rating 1",{"$f":"Import!M558","v":0},null,{"$f":"Import!O558","v":0},null,{"$f":"Import!M566","v":0},null,{"$f":"Import!O566","v":0},null,{"$f":"Import!M574","v":0},null,{"$f":"Import!O574","v":0},null,{"$f":"Import!M583","v":0},null,{"$f":"Import!O583","v":0},null,{"$f":"D13+H13+L13+P13","v":0},null,0,null,null,"brrt_RiskGradeAxis_brrt_BSCRRating1Member"]
[null,3,"BSCR Rating 2",{"$f":"Import!M559","v":0},null,{"$f":"Import!O559","v":0},null,{"$f":"Import!M567","v":0},null,{"$f":"Import!O567","v":0},null,{"$f":"Import!M575","v":0},null,{"$f":"Import!O575","v":0},null,{"$f":"Import!M584","v":0},null,{"$f":"Import!O584","v":0},null,0,null,0,null,null,"brrt_RiskGradeAxis_brrt_BSCRRating2Member"]
[null,4,"BSCR Rating 3",{"$f":"Import!M560","v":0},null,{"$f":"Import!O560","v":0},null,{"$f":"Import!M568","v":0},null,{"$f":"Import!O568","v":0},null,{"$f":"Import!M576","v":0},null,{"$f":"Import!O576","v":0},null,{"$f":"Import!M585","v":0},null,{"$f":"Import!O585","v":0},null,0,null,0,null,null,"brrt_RiskGradeAxis_brrt_BSCRRating3Member"]
[null,5,"BSCR Rating 4",{"$f":"Import!M561","v":0},null,{"$f":"Import!O561","v":0},null,{"$f":"Import!M569","v":0},null,{"$f":"Import!O569","v":0},null,{"$f":"Import!M577","v":0},null,{"$f":"Import!O577","v":0},null,{"$f":"Import!M586","v":0},null,{"$f":"Import!O586","v":0},null,0,null,0,null,null,"brrt_RiskGradeAxis_brrt_BSCRRating4Member"]
[null,6,"BSCR Rating 5",{"$f":"Import!M562","v":0},null,{"$f":"Import!O562","v":0},null,{"$f":"Import!M570","v":0},null,{"$f":"Import!O570","v":0},null,{"$f":"Import!M578","v":0},null,{"$f":"Import!O578","v":0},null,{"$f":"Import!M587","v":0},null,{"$f":"Import!O587","v":0},null,0,null,0,null,null,"brrt_RiskGradeAxis_brrt_BSCRRating5Member"]
[null,7,"BSCR Rating 6",{"$f":"Import!M563","v":0},null,{"$f":"Import!O563","v":0},null,{"$f":"Import!M571","v":0},null,{"$f":"Import!O571","v":0},null,{"$f":"Import!M579","v":0},null,{"$f":"Import!O579","v":0},null,{"$f":"Import!M588","v":0},null,{"$f":"Import!O588","v":0},null,0,null,0,null,null,"brrt_RiskGradeAxis_brrt_BSCRRating6Member"]
[null,8,"BSCR Rating 7",{"$f":"Import!M564","v":0},null,{"$f":"Import!O564","v":0},null,{"$f":"Import!M572","v":0},null,{"$f":"Import!O572","v":0},null,{"$f":"Import!M580","v":0},null,{"$f":"Import!O580","v":0},null,{"$f":"Import!M589","v":0},null,{"$f":"Import!O589","v":0},null,0,null,0,null,null,"brrt_RiskGradeAxis_brrt_BSCRRating7Member"]
[null,9,"BSCR Rating 8",{"$f":"Import!M565","v":0},null,{"$f":"Import!O565","v":0},null,{"$f":"Import!M573","v":0},null,{"$f":"Import!O573","v":0},null,{"$f":"Import!M581","v":0},null,{"$f":"Import!O581","v":0},null,{"$f":"Import!M590","v":0},null,{"$f":"Import!O590","v":0},null,0,null,0,null,null,"brrt_RiskGradeAxis_brrt_BSCRRating8Member"]
[]
[null,10,"Total",{"$f":"SUM(D12:D20)","v":0},null,{"$f":"SUM(F12:F20)","v":0},null,{"$f":"SUM(H12:H20)","v":0},null,{"$f":"SUM(J12:J20)","v":0},null,{"$f":"SUM(L12:L20)","v":0},null,{"$f":"SUM(N12:N20)","v":0},null,{"$f":"SUM(P12:P20)","v":0},null,{"$f":"SUM(R12:R20)","v":0},null,{"$f":"SUM(T12:T20)","v":0},null,{"$f":"SUM(V12:V20)","v":0},null,null,"brrt_RiskGradeAxis_brrt_TotalMember"]
[]
[]
[]
[]
[]
[]
[null,null,null,"COMMON STOCK",null,null,null,"PREFERRED STOCK",null,null,null,"EQUITY MUTUAL FUNDS",null,null,null,"OTHER INVESTMENTS",null,null,null,"TOTAL\n"]
[null,null,null,{"$f":"+'Form 1EBS'!$F$7","v":"2019-12-31"},null,{"$f":"+'Form 1EBS'!$H$7","v":"2018-12-31"},null,{"$f":"+'Form 1EBS'!$F$7","v":"2019-12-31"},null,{"$f":"+'Form 1EBS'!$H$7","v":"2018-12-31"},null,{"$f":"+'Form 1EBS'!$F$7","v":"2019-12-31"},null,{"$f":"+'Form 1EBS'!$H$7","v":"2018-12-31"},null,{"$f":"+'Form 1EBS'!$F$7","v":"2019-12-31"},null,{"$f":"+'Form 1EBS'!$H$7","v":"2018-12-31"},null,{"$f":"+'Form 1EBS'!$F$7","v":"2019-12-31"},null,{"$f":"+'Form 1EBS'!$H$7","v":"2018-12-31"}]
[null,null,null,{"$f":"+'Form 1EBS'!$F$8","v":" ('000s)"},null,{"$f":"+'Form 1EBS'!$H$8","v":" ('000s)"},null,{"$f":"+'Form 1EBS'!$F$8","v":" ('000s)"},null,{"$f":"+'Form 1EBS'!$H$8","v":" ('000s)"},null,{"$f":"+'Form 1EBS'!$F$8","v":" ('000s)"},null,{"$f":"+'Form 1EBS'!$H$8","v":" ('000s)"},null,{"$f":"+'Form 1EBS'!$F$8","v":" ('000s)"},null,{"$f":"+'Form 1EBS'!$H$8","v":" ('000s)"},null,{"$f":"+'Form 1EBS'!$F$8","v":" ('000s)"},null,{"$f":"+'Form 1EBS'!$H$8","v":" ('000s)"}]
[null,"Quoted and Unquoted Equities"]
[null,11,"BSCR Rating 1",null,null,null,null,{"$f":"Import!M593","v":0},null,{"$f":"Import!O593","v":0},null,null,null,null,null,null,null,null,null,{"$f":"D33+H33+L33","v":0},null,{"$f":"F33+J33+N33","v":0},null,null,"brrt_RiskGradeAxis_brrt_BSCRRating1Member"]
[null,12,"BSCR Rating 2",null,null,null,null,{"$f":"Import!M594","v":0},null,{"$f":"Import!O594","v":0},null,null,null,null,null,null,null,null,null,0,null,0,null,null,"brrt_RiskGradeAxis_brrt_BSCRRating2Member"]
[null,13,"BSCR Rating 3",null,null,null,null,{"$f":"Import!M595","v":0},null,{"$f":"Import!O595","v":0},null,null,null,null,null,null,null,null,null,0,null,0,null,null,"brrt_RiskGradeAxis_brrt_BSCRRating3Member"]
[null,14,"BSCR Rating 4",null,null,null,null,{"$f":"Import!M596","v":0},null,{"$f":"Import!O596","v":0},null,null,null,null,null,null,null,null,null,0,null,0,null,null,"brrt_RiskGradeAxis_brrt_BSCRRating4Member"]
[null,15,"BSCR Rating 5",null,null,null,null,{"$f":"Import!M597","v":0},null,{"$f":"Import!O597","v":0},null,null,null,null,null,null,null,null,null,0,null,0,null,null,"brrt_RiskGradeAxis_brrt_BSCRRating5Member"]
[null,16,"BSCR Rating 6",null,null,null,null,{"$f":"Import!M598","v":0},null,{"$f":"Import!O598","v":0},null,null,null,null,null,null,null,null,null,0,null,0,null,null,"brrt_RiskGradeAxis_brrt_BSCRRating6Member"]
[null,17,"BSCR Rating 7",null,null,null,null,{"$f":"Import!M599","v":0},null,{"$f":"Import!O599","v":0},null,null,null,null,null,null,null,null,null,0,null,0,null,null,"brrt_RiskGradeAxis_brrt_BSCRRating7Member"]
[null,18,"BSCR Rating 8",null,null,null,null,{"$f":"Import!M600","v":0},null,{"$f":"Import!O600","v":0},null,null,null,null,null,null,null,null,null,0,null,0,null,null,"brrt_RiskGradeAxis_brrt_BSCRRating8Member"]
[null,19,"Quoted Equity Funds",{"$f":"Import!M591","v":0},null,{"$f":"Import!O591","v":0},null,null,null,null,null,{"$f":"Import!M601","v":0},null,{"$f":"Import!O601","v":0},null,{"$f":"Import!M603","v":0},null,{"$f":"Import!O603","v":0},null,{"$f":"D41+H41+L41+P41","v":0},null,{"$f":"F41+J41+N41+R41","v":0}]
[null,20,"Unquoted Equity Funds",{"$f":"Import!M592","v":0},null,{"$f":"Import!O592","v":0},null,null,null,null,null,{"$f":"Import!M602","v":0},null,{"$f":"Import!O602","v":0},null,{"$f":"Import!M604","v":0},null,{"$f":"Import!O604","v":0},null,{"$f":"D42+H42+L42+P42","v":0},null,{"$f":"F42+J42+N42+R42","v":0}]
[]
[null,21,"Total",{"$f":"SUM(D33:D42)","v":0},null,{"$f":"SUM(F33:F42)","v":0},null,{"$f":"SUM(H33:H42)","v":0},null,{"$f":"SUM(J33:J42)","v":0},null,{"$f":"SUM(L33:L42)","v":0},null,{"$f":"SUM(N33:N42)","v":0},null,{"$f":"SUM(P33:P42)","v":0},null,{"$f":"SUM(R33:R42)","v":0},null,{"$f":"SUM(T33:T42)","v":0},null,{"$f":"SUM(V33:V42)","v":0},null,null,"brrt_RiskGradeAxis_brrt_TotalMember"]
[]
[]
[]
[]
[]
[]
[null,null,null,null,null,null,null,null,"This Section is Only Applicable to Companies that have Mortgage Backed Securities that have been Reclassified in Accordance with the NAIC and that elect to use NAIC reclassifications to map to the BSCR classes"]
[null,null,null,"MORTGAGE LOANS"]
[null,null,null,{"$f":"+'Form 1EBS'!$F$7","v":"2019-12-31"},null,{"$f":"+'Form 1EBS'!$H$7","v":"2018-12-31"},null,null,null,null,null,"VALUES OF RESIDENTIAL MORTGAGE BACKED SECURITIES",null,null,null,"VALUES OF COMMERCIAL MORTGAGE BACKED SECURITIES / ASSET BACKED SECURITIES"]
[null,null,null,{"$f":"+'Form 1EBS'!$F$8","v":" ('000s)"},null,{"$f":"+'Form 1EBS'!$H$8","v":" ('000s)"},null,null,null,null,null,"Original Classification",null,"Revised Classification",null,"Original Classification",null,"Revised Classification"]
[null,null,null,null,null,null,null,null,null,"NAIC Class 1",null,{"$f":"Import!M610","v":0},null,{"$f":"Import!M617","v":0},null,{"$f":"Import!M624","v":0},null,{"$f":"Import!M631","v":0},null,null,null,null,null,"brrt_InvestmentsInMortgageLoansOnRealEstateInsuredGuaranteedMortgages",{"$f":"XBRLMap(D57,$X55&\".\"&$Y$7,$D$78,$D$79,CONFIGURATION!$B$10,\"BMA\",CONFIGURATION!$B$1,\"bscr\",CONFIGURATION!$B$12)","v":"Mapped"},{"$f":"XBRLMap(F57,$X55&\".\"&$Y$7,$F$78,$F$79,CONFIGURATION!$B$10,\"BMA\",CONFIGURATION!$B$1,\"bscr\",CONFIGURATION!$B$12)","v":"Mapped"}]
[null,"Mortgage Loans",null,null,null,null,null,null,null,"NAIC Class 2",null,{"$f":"Import!M611","v":0},null,{"$f":"Import!M618","v":0},null,{"$f":"Import!M625","v":0},null,{"$f":"Import!M632","v":0},null,null,null,null,null,"brrt_InvestmentsInMortgageLoansOnRealEstateOtherCommercialFarmMortgages",{"$f":"XBRLMap(D58,$X56&\".\"&$Y$7,$D$78,$D$79,CONFIGURATION!$B$10,\"BMA\",CONFIGURATION!$B$1,\"bscr\",CONFIGURATION!$B$12)","v":"Mapped"},{"$f":"XBRLMap(F58,$X56&\".\"&$Y$7,$F$78,$F$79,CONFIGURATION!$B$10,\"BMA\",CONFIGURATION!$B$1,\"bscr\",CONFIGURATION!$B$12)","v":"Mapped"},null,null,"brrt_RiskGradeAxis_brrt_NAICClass1Member"]
[null,22,"Insured/Guaranteed Mortgages",{"$f":"Import!M605","v":0},null,{"$f":"Import!O605","v":0},null,null,null,"NAIC Class 3",null,{"$f":"Import!M612","v":0},null,{"$f":"Import!M619","v":0},null,{"$f":"Import!M626","v":0},null,{"$f":"Import!M633","v":0},null,null,null,null,null,"brrt_InvestmentsInMortgageLoansOnRealEstateOtherResidentialMortgages",{"$f":"XBRLMap(D59,$X57&\".\"&$Y$7,$D$78,$D$79,CONFIGURATION!$B$10,\"BMA\",CONFIGURATION!$B$1,\"bscr\",CONFIGURATION!$B$12)","v":"Mapped"},{"$f":"XBRLMap(F59,$X57&\".\"&$Y$7,$F$78,$F$79,CONFIGURATION!$B$10,\"BMA\",CONFIGURATION!$B$1,\"bscr\",CONFIGURATION!$B$12)","v":"Mapped"},null,null,"brrt_RiskGradeAxis_brrt_NAICClass2Member"]
[null,23,"Other Commercial and Farm Mortgages",{"$f":"Import!M606","v":0},null,{"$f":"Import!O606","v":0},null,null,null,"NAIC Class 4",null,{"$f":"Import!M613","v":0},null,{"$f":"Import!M620","v":0},null,{"$f":"Import!M627","v":0},null,{"$f":"Import!M634","v":0},null,null,null,null,null,"brrt_InvestmentsInMortgageLoansOnRealEstateMortgagesNotInGoodStanding",{"$f":"XBRLMap(D60,$X58&\".\"&$Y$7,$D$78,$D$79,CONFIGURATION!$B$10,\"BMA\",CONFIGURATION!$B$1,\"bscr\",CONFIGURATION!$B$12)","v":"Mapped"},{"$f":"XBRLMap(F60,$X58&\".\"&$Y$7,$F$78,$F$79,CONFIGURATION!$B$10,\"BMA\",CONFIGURATION!$B$1,\"bscr\",CONFIGURATION!$B$12)","v":"Mapped"},null,null,"brrt_RiskGradeAxis_brrt_NAICClass3Member"]
[null,24,"Other Residential Mortgages",{"$f":"Import!M607","v":0},null,{"$f":"Import!O607","v":0},null,null,null,"NAIC Class 5",null,{"$f":"Import!M614","v":0},null,{"$f":"Import!M621","v":0},null,{"$f":"Import!M628","v":0},null,{"$f":"Import!M635","v":0},null,null,null,null,null,null,null,null,null,null,"brrt_RiskGradeAxis_brrt_NAICClass4Member"]
[null,25,"Mortgages Not In Good Standing",{"$f":"Import!M608","v":0},null,{"$f":"Import!O608","v":0},null,null,null,"NAIC Class 6",null,{"$f":"Import!M615","v":0},null,{"$f":"Import!M622","v":0},null,{"$f":"Import!M629","v":0},null,{"$f":"Import!M636","v":0},null,null,null,null,null,"brrt_InvestmentsInMortgageLoansOnRealEstate",{"$f":"XBRLMap(D62,$X60&\".\"&$Y$7,$D$78,$D$79,CONFIGURATION!$B$10,\"BMA\",CONFIGURATION!$B$1,\"bscr\",CONFIGURATION!$B$12)","v":"Mapped"},{"$f":"XBRLMap(F62,$X60&\".\"&$Y$7,$F$78,$F$79,CONFIGURATION!$B$10,\"BMA\",CONFIGURATION!$B$1,\"bscr\",CONFIGURATION!$B$12)","v":"Mapped"},null,null,"brrt_RiskGradeAxis_brrt_NAICClass5Member"]
[null,null,null,null,null,null,null,null,null,null,null,null,null,null,null,null,null,null,null,null,null,null,null,null,null,null,null,null,"brrt_RiskGradeAxis_brrt_NAICClass6Member"]
[null,26,"Total",{"$f":"SUM(D57:D60)","v":0},null,{"$f":"SUM(F57:F60)","v":0},null,null,null,null,null,{"$f":"SUM(L55:L60)","v":0},null,{"$f":"SUM(N55:N60)","v":0},null,{"$f":"SUM(P55:P60)","v":0},null,{"$f":"SUM(R55:R60)","v":0}]
[null,null,null,null,null,null,null,null,null,null,null,null,null,null,null,null,null,null,null,null,null,null,null,null,null,null,null,null,"brrt_RiskGradeAxis_brrt_TotalMember"]
[null,null,null,"CASH AND CASH EQUIVALENTS",null,null,null,null,null,{"$f":"IF('Company Information'!$F$11=\"Class 3A\",HYPERLINK(\"#'Attachments'!G45\",\"Attach file\"),HYPERLINK(\"#'Attachments'!G65\",\"Attach file\"))","v":"Attach file"}]
[null,null,null,{"$f":"+'Form 1EBS'!$F$7","v":"2019-12-31"},null,{"$f":"+'Form 1EBS'!$H$7","v":"2018-12-31"},null,null,null,null,null,null,null,null,null,null,null,null,null,null,null,null,null,"brrt_CashAndTimeDeposits",{"$f":"XBRLMap(D68,$X65&\".\"&$Y$7,$D$78,$D$79,CONFIGURATION!$B$10,\"BMA\",CONFIGURATION!$B$1,\"bscr\",CONFIGURATION!$B$12)","v":"Mapped"},{"$f":"XBRLMap(F68,$X65&\".\"&$Y$7,$F$78,$F$79,CONFIGURATION!$B$10,\"BMA\",CONFIGURATION!$B$1,\"bscr\",CONFIGURATION!$B$12)","v":"Mapped"}]
[null,null,null,{"$f":"+'Form 1EBS'!$F$8","v":" ('000s)"},null,{"$f":"+'Form 1EBS'!$H$8","v":" ('000s)"}]
[]
[null,27,"Cash and Cash Equivalents",{"$f":"Import!M609","v":0},null,{"$f":"Import!O609","v":0}]
[]
[null,null,null,{"$f":"+'Form 1EBS'!$F$7","v":"2019-12-31"},null,{"$f":"+'Form 1EBS'!$H$7","v":"2018-12-31"}]
[null,null,null,{"$f":"+'Form 1EBS'!$F$8","v":" ('000s)"},null,{"$f":"+'Form 1EBS'!$H$8","v":" ('000s)"}]
[null,null,"Total Funds Held by Ceding Reinsurers in Segregated Accounts / Trusts (Lines 10, 21, 26 and 27)",null,null,null,null,null,null,null,null,null,null,null,null,null,null,null,null,null,null,null,null,"brrt_FundsHeldByCedingReinsurers",{"$f":"XBRLMap(D74,$X72&\".\"&$Y$7,$D$78,$D$79,CONFIGURATION!$B$10,\"BMA\",CONFIGURATION!$B$1,\"bscr\",CONFIGURATION!$B$12)","v":"Mapped"},{"$f":"XBRLMap(F74,$X72&\".\"&$Y$7,$F$78,$F$79,CONFIGURATION!$B$10,\"BMA\",CONFIGURATION!$B$1,\"bscr\",CONFIGURATION!$B$12)","v":"Mapped"}]
[]
[null,{"$f":"B68+1","v":28},null,{"$f":"T22+T44+D62+D68","v":0},null,{"$f":"V22+V44+F62+F68","v":0}]
[]
[]
[]
[null,null,null,{"$f":"IF(D8=\"\",\"\",TEXT(DATE(YEAR(D8+1)-1,MONTH(D8+1),DAY(D8+1)),\"mm/dd/yyyy\"))","v":"01/01/2019"},null,{"$f":"IF(F8=\"\",\"\",TEXT(DATE(YEAR(F8+1)-1,MONTH(F8+1),DAY(F8+1)),\"mm/dd/yyyy\"))","v":"01/01/2018"}]
[null,null,null,{"$f":"IF(D8=\"\",\"\",TEXT(D8,\"mm/dd/yyyy\"))","v":"12/31/2019"},null,{"$f":"IF(F8=\"\",\"\",TEXT(F8,\"mm/dd/yyyy\"))","v":"12/31/2018"}]
[null,null,null,"brrt_BondsAndDebentures",null,"brrt_BondsAndDebentures",null,"brrt_BondsAndDebentures",null,"brrt_BondsAndDebentures",null,"brrt_BondsAndDebentures",null,"brrt_BondsAndDebentures",null,"brrt_BondsAndDebentures",null,"brrt_BondsAndDebentures",null,"brrt_BondsAndDebentures",null,"brrt_BondsAndDebentures"]
[null,null,null,"brrt_SecurityTypeAxis_brrt_CorporateSovereignBondsMember",null,"brrt_SecurityTypeAxis_brrt_CorporateSovereignBondsMember",null,"brrt_SecurityTypeAxis_brrt_ResidentialMortgageBackedSecuritiesMember",null,"brrt_SecurityTypeAxis_brrt_ResidentialMortgageBackedSecuritiesMember",null,"brrt_SecurityTypeAxis_brrt_CommercialMortgageBackedSecuritiesAssetBackedSecuritiesMember",null,"brrt_SecurityTypeAxis_brrt_CommercialMortgageBackedSecuritiesAssetBackedSecuritiesMember",null,"brrt_SecurityTypeAxis_brrt_MutualFundsMember",null,"brrt_SecurityTypeAxis_brrt_MutualFundsMember",null,"brrt_SecurityTypeAxis_brrt_TotalMember",null,"brrt_SecurityTypeAxis_brrt_TotalMember"]
[null,null,null,{"$f":"XBRLMap(D12,D$80&\".\"&$Y12&\".\"&$D$81&\".\"&$Y$7,$D$78,$D$79,CONFIGURATION!$B$10,\"BMA\",CONFIGURATION!$B$1,\"bscr\",CONFIGURATION!$B$12)","v":"Mapped"},null,{"$f":"XBRLMap(F12,F$80&\".\"&$Y12&\".\"&$F$81&\".\"&$Y$7,$F$78,$F$79,CONFIGURATION!$B$10,\"BMA\",CONFIGURATION!$B$1,\"bscr\",CONFIGURATION!$B$12)","v":"Mapped"},null,null,null,null,null,null,null,null,null,{"$f":"XBRLMap(P12,P$80&\".\"&$Y12&\".\"&$P$81&\".\"&$Y$7,$D$78,$D$79,CONFIGURATION!$B$10,\"BMA\",CONFIGURATION!$B$1,\"bscr\",CONFIGURATION!$B$12)","v":"Mapped"},null,{"$f":"XBRLMap(R12,R$80&\".\"&$Y12&\".\"&$R$81&\".\"&$Y$7,$F$78,$F$79,CONFIGURATION!$B$10,\"BMA\",CONFIGURATION!$B$1,\"bscr\",CONFIGURATION!$B$12)","v":"Mapped"},null,{"$f":"XBRLMap(T12,T$80&\".\"&$Y12&\".\"&$T$81&\".\"&$Y$7,$D$78,$D$79,CONFIGURATION!$B$10,\"BMA\",CONFIGURATION!$B$1,\"bscr\",CONFIGURATION!$B$12)","v":"Mapped"},null,{"$f":"XBRLMap(V12,V$80&\".\"&$Y12&\".\"&$V$81&\".\"&$Y$7,$F$78,$F$79,CONFIGURATION!$B$10,\"BMA\",CONFIGURATION!$B$1,\"bscr\",CONFIGURATION!$B$12)","v":"Mapped"}]
[null,null,null,{"$f":"XBRLMap(D13,D$80&\".\"&$Y13&\".\"&$D$81&\".\"&$Y$7,$D$78,$D$79,CONFIGURATION!$B$10,\"BMA\",CONFIGURATION!$B$1,\"bscr\",CONFIGURATION!$B$12)","v":"Mapped"},null,{"$f":"XBRLMap(F13,F$80&\".\"&$Y13&\".\"&$F$81&\".\"&$Y$7,$F$78,$F$79,CONFIGURATION!$B$10,\"BMA\",CONFIGURATION!$B$1,\"bscr\",CONFIGURATION!$B$12)","v":"Mapped"},null,{"$f":"XBRLMap(H13,H$80&\".\"&$Y13&\".\"&$H$81&\".\"&$Y$7,$D$78,$D$79,CONFIGURATION!$B$10,\"BMA\",CONFIGURATION!$B$1,\"bscr\",CONFIGURATION!$B$12)","v":"Mapped"},null,{"$f":"XBRLMap(J13,J$80&\".\"&$Y13&\".\"&$J$81&\".\"&$Y$7,$F$78,$F$79,CONFIGURATION!$B$10,\"BMA\",CONFIGURATION!$B$1,\"bscr\",CONFIGURATION!$B$12)","v":"Mapped"},null,{"$f":"XBRLMap(L13,L$80&\".\"&$Y13&\".\"&$L$81&\".\"&$Y$7,$D$78,$D$79,CONFIGURATION!$B$10,\"BMA\",CONFIGURATION!$B$1,\"bscr\",CONFIGURATION!$B$12)","v":"Mapped"},null,{"$f":"XBRLMap(N13,N$80&\".\"&$Y13&\".\"&$N$81&\".\"&$Y$7,$F$78,$F$79,CONFIGURATION!$B$10,\"BMA\",CONFIGURATION!$B$1,\"bscr\",CONFIGURATION!$B$12)","v":"Mapped"},null,{"$f":"XBRLMap(P13,P$80&\".\"&$Y13&\".\"&$P$81&\".\"&$Y$7,$D$78,$D$79,CONFIGURATION!$B$10,\"BMA\",CONFIGURATION!$B$1,\"bscr\",CONFIGURATION!$B$12)","v":"Mapped"},null,{"$f":"XBRLMap(R13,R$80&\".\"&$Y13&\".\"&$R$81&\".\"&$Y$7,$F$78,$F$79,CONFIGURATION!$B$10,\"BMA\",CONFIGURATION!$B$1,\"bscr\",CONFIGURATION!$B$12)","v":"Mapped"},null,{"$f":"XBRLMap(T13,T$80&\".\"&$Y13&\".\"&$T$81&\".\"&$Y$7,$D$78,$D$79,CONFIGURATION!$B$10,\"BMA\",CONFIGURATION!$B$1,\"bscr\",CONFIGURATION!$B$12)","v":"Mapped"},null,{"$f":"XBRLMap(V13,V$80&\".\"&$Y13&\".\"&$V$81&\".\"&$Y$7,$F$78,$F$79,CONFIGURATION!$B$10,\"BMA\",CONFIGURATION!$B$1,\"bscr\",CONFIGURATION!$B$12)","v":"Mapped"}]
[null,null,null,{"$f":"XBRLMap(D14,D$80&\".\"&$Y14&\".\"&$D$81&\".\"&$Y$7,$D$78,$D$79,CONFIGURATION!$B$10,\"BMA\",CONFIGURATION!$B$1,\"bscr\",CONFIGURATION!$B$12)","v":"Mapped"},null,{"$f":"XBRLMap(F14,F$80&\".\"&$Y14&\".\"&$F$81&\".\"&$Y$7,$F$78,$F$79,CONFIGURATION!$B$10,\"BMA\",CONFIGURATION!$B$1,\"bscr\",CONFIGURATION!$B$12)","v":"Mapped"},null,{"$f":"XBRLMap(H14,H$80&\".\"&$Y14&\".\"&$H$81&\".\"&$Y$7,$D$78,$D$79,CONFIGURATION!$B$10,\"BMA\",CONFIGURATION!$B$1,\"bscr\",CONFIGURATION!$B$12)","v":"Mapped"},null,{"$f":"XBRLMap(J14,J$80&\".\"&$Y14&\".\"&$J$81&\".\"&$Y$7,$F$78,$F$79,CONFIGURATION!$B$10,\"BMA\",CONFIGURATION!$B$1,\"bscr\",CONFIGURATION!$B$12)","v":"Mapped"},null,{"$f":"XBRLMap(L14,L$80&\".\"&$Y14&\".\"&$L$81&\".\"&$Y$7,$D$78,$D$79,CONFIGURATION!$B$10,\"BMA\",CONFIGURATION!$B$1,\"bscr\",CONFIGURATION!$B$12)","v":"Mapped"},null,{"$f":"XBRLMap(N14,N$80&\".\"&$Y14&\".\"&$N$81&\".\"&$Y$7,$F$78,$F$79,CONFIGURATION!$B$10,\"BMA\",CONFIGURATION!$B$1,\"bscr\",CONFIGURATION!$B$12)","v":"Mapped"},null,{"$f":"XBRLMap(P14,P$80&\".\"&$Y14&\".\"&$P$81&\".\"&$Y$7,$D$78,$D$79,CONFIGURATION!$B$10,\"BMA\",CONFIGURATION!$B$1,\"bscr\",CONFIGURATION!$B$12)","v":"Mapped"},null,{"$f":"XBRLMap(R14,R$80&\".\"&$Y14&\".\"&$R$81&\".\"&$Y$7,$F$78,$F$79,CONFIGURATION!$B$10,\"BMA\",CONFIGURATION!$B$1,\"bscr\",CONFIGURATION!$B$12)","v":"Mapped"},null,{"$f":"XBRLMap(T14,T$80&\".\"&$Y14&\".\"&$T$81&\".\"&$Y$7,$D$78,$D$79,CONFIGURATION!$B$10,\"BMA\",CONFIGURATION!$B$1,\"bscr\",CONFIGURATION!$B$12)","v":"Mapped"},null,{"$f":"XBRLMap(V14,V$80&\".\"&$Y14&\".\"&$V$81&\".\"&$Y$7,$F$78,$F$79,CONFIGURATION!$B$10,\"BMA\",CONFIGURATION!$B$1,\"bscr\",CONFIGURATION!$B$12)","v":"Mapped"}]
[null,null,null,{"$f":"XBRLMap(D15,D$80&\".\"&$Y15&\".\"&$D$81&\".\"&$Y$7,$D$78,$D$79,CONFIGURATION!$B$10,\"BMA\",CONFIGURATION!$B$1,\"bscr\",CONFIGURATION!$B$12)","v":"Mapped"},null,{"$f":"XBRLMap(F15,F$80&\".\"&$Y15&\".\"&$F$81&\".\"&$Y$7,$F$78,$F$79,CONFIGURATION!$B$10,\"BMA\",CONFIGURATION!$B$1,\"bscr\",CONFIGURATION!$B$12)","v":"Mapped"},null,{"$f":"XBRLMap(H15,H$80&\".\"&$Y15&\".\"&$H$81&\".\"&$Y$7,$D$78,$D$79,CONFIGURATION!$B$10,\"BMA\",CONFIGURATION!$B$1,\"bscr\",CONFIGURATION!$B$12)","v":"Mapped"},null,{"$f":"XBRLMap(J15,J$80&\".\"&$Y15&\".\"&$J$81&\".\"&$Y$7,$F$78,$F$79,CONFIGURATION!$B$10,\"BMA\",CONFIGURATION!$B$1,\"bscr\",CONFIGURATION!$B$12)","v":"Mapped"},null,{"$f":"XBRLMap(L15,L$80&\".\"&$Y15&\".\"&$L$81&\".\"&$Y$7,$D$78,$D$79,CONFIGURATION!$B$10,\"BMA\",CONFIGURATION!$B$1,\"bscr\",CONFIGURATION!$B$12)","v":"Mapped"},null,{"$f":"XBRLMap(N15,N$80&\".\"&$Y15&\".\"&$N$81&\".\"&$Y$7,$F$78,$F$79,CONFIGURATION!$B$10,\"BMA\",CONFIGURATION!$B$1,\"bscr\",CONFIGURATION!$B$12)","v":"Mapped"},null,{"$f":"XBRLMap(P15,P$80&\".\"&$Y15&\".\"&$P$81&\".\"&$Y$7,$D$78,$D$79,CONFIGURATION!$B$10,\"BMA\",CONFIGURATION!$B$1,\"bscr\",CONFIGURATION!$B$12)","v":"Mapped"},null,{"$f":"XBRLMap(R15,R$80&\".\"&$Y15&\".\"&$R$81&\".\"&$Y$7,$F$78,$F$79,CONFIGURATION!$B$10,\"BMA\",CONFIGURATION!$B$1,\"bscr\",CONFIGURATION!$B$12)","v":"Mapped"},null,{"$f":"XBRLMap(T15,T$80&\".\"&$Y15&\".\"&$T$81&\".\"&$Y$7,$D$78,$D$79,CONFIGURATION!$B$10,\"BMA\",CONFIGURATION!$B$1,\"bscr\",CONFIGURATION!$B$12)","v":"Mapped"},null,{"$f":"XBRLMap(V15,V$80&\".\"&$Y15&\".\"&$V$81&\".\"&$Y$7,$F$78,$F$79,CONFIGURATION!$B$10,\"BMA\",CONFIGURATION!$B$1,\"bscr\",CONFIGURATION!$B$12)","v":"Mapped"}]
[null,null,null,{"$f":"XBRLMap(D16,D$80&\".\"&$Y16&\".\"&$D$81&\".\"&$Y$7,$D$78,$D$79,CONFIGURATION!$B$10,\"BMA\",CONFIGURATION!$B$1,\"bscr\",CONFIGURATION!$B$12)","v":"Mapped"},null,{"$f":"XBRLMap(F16,F$80&\".\"&$Y16&\".\"&$F$81&\".\"&$Y$7,$F$78,$F$79,CONFIGURATION!$B$10,\"BMA\",CONFIGURATION!$B$1,\"bscr\",CONFIGURATION!$B$12)","v":"Mapped"},null,{"$f":"XBRLMap(H16,H$80&\".\"&$Y16&\".\"&$H$81&\".\"&$Y$7,$D$78,$D$79,CONFIGURATION!$B$10,\"BMA\",CONFIGURATION!$B$1,\"bscr\",CONFIGURATION!$B$12)","v":"Mapped"},null,{"$f":"XBRLMap(J16,J$80&\".\"&$Y16&\".\"&$J$81&\".\"&$Y$7,$F$78,$F$79,CONFIGURATION!$B$10,\"BMA\",CONFIGURATION!$B$1,\"bscr\",CONFIGURATION!$B$12)","v":"Mapped"},null,{"$f":"XBRLMap(L16,L$80&\".\"&$Y16&\".\"&$L$81&\".\"&$Y$7,$D$78,$D$79,CONFIGURATION!$B$10,\"BMA\",CONFIGURATION!$B$1,\"bscr\",CONFIGURATION!$B$12)","v":"Mapped"},null,{"$f":"XBRLMap(N16,N$80&\".\"&$Y16&\".\"&$N$81&\".\"&$Y$7,$F$78,$F$79,CONFIGURATION!$B$10,\"BMA\",CONFIGURATION!$B$1,\"bscr\",CONFIGURATION!$B$12)","v":"Mapped"},null,{"$f":"XBRLMap(P16,P$80&\".\"&$Y16&\".\"&$P$81&\".\"&$Y$7,$D$78,$D$79,CONFIGURATION!$B$10,\"BMA\",CONFIGURATION!$B$1,\"bscr\",CONFIGURATION!$B$12)","v":"Mapped"},null,{"$f":"XBRLMap(R16,R$80&\".\"&$Y16&\".\"&$R$81&\".\"&$Y$7,$F$78,$F$79,CONFIGURATION!$B$10,\"BMA\",CONFIGURATION!$B$1,\"bscr\",CONFIGURATION!$B$12)","v":"Mapped"},null,{"$f":"XBRLMap(T16,T$80&\".\"&$Y16&\".\"&$T$81&\".\"&$Y$7,$D$78,$D$79,CONFIGURATION!$B$10,\"BMA\",CONFIGURATION!$B$1,\"bscr\",CONFIGURATION!$B$12)","v":"Mapped"},null,{"$f":"XBRLMap(V16,V$80&\".\"&$Y16&\".\"&$V$81&\".\"&$Y$7,$F$78,$F$79,CONFIGURATION!$B$10,\"BMA\",CONFIGURATION!$B$1,\"bscr\",CONFIGURATION!$B$12)","v":"Mapped"}]
[null,null,null,{"$f":"XBRLMap(D17,D$80&\".\"&$Y17&\".\"&$D$81&\".\"&$Y$7,$D$78,$D$79,CONFIGURATION!$B$10,\"BMA\",CONFIGURATION!$B$1,\"bscr\",CONFIGURATION!$B$12)","v":"Mapped"},null,{"$f":"XBRLMap(F17,F$80&\".\"&$Y17&\".\"&$F$81&\".\"&$Y$7,$F$78,$F$79,CONFIGURATION!$B$10,\"BMA\",CONFIGURATION!$B$1,\"bscr\",CONFIGURATION!$B$12)","v":"Mapped"},null,{"$f":"XBRLMap(H17,H$80&\".\"&$Y17&\".\"&$H$81&\".\"&$Y$7,$D$78,$D$79,CONFIGURATION!$B$10,\"BMA\",CONFIGURATION!$B$1,\"bscr\",CONFIGURATION!$B$12)","v":"Mapped"},null,{"$f":"XBRLMap(J17,J$80&\".\"&$Y17&\".\"&$J$81&\".\"&$Y$7,$F$78,$F$79,CONFIGURATION!$B$10,\"BMA\",CONFIGURATION!$B$1,\"bscr\",CONFIGURATION!$B$12)","v":"Mapped"},null,{"$f":"XBRLMap(L17,L$80&\".\"&$Y17&\".\"&$L$81&\".\"&$Y$7,$D$78,$D$79,CONFIGURATION!$B$10,\"BMA\",CONFIGURATION!$B$1,\"bscr\",CONFIGURATION!$B$12)","v":"Mapped"},null,{"$f":"XBRLMap(N17,N$80&\".\"&$Y17&\".\"&$N$81&\".\"&$Y$7,$F$78,$F$79,CONFIGURATION!$B$10,\"BMA\",CONFIGURATION!$B$1,\"bscr\",CONFIGURATION!$B$12)","v":"Mapped"},null,{"$f":"XBRLMap(P17,P$80&\".\"&$Y17&\".\"&$P$81&\".\"&$Y$7,$D$78,$D$79,CONFIGURATION!$B$10,\"BMA\",CONFIGURATION!$B$1,\"bscr\",CONFIGURATION!$B$12)","v":"Mapped"},null,{"$f":"XBRLMap(R17,R$80&\".\"&$Y17&\".\"&$R$81&\".\"&$Y$7,$F$78,$F$79,CONFIGURATION!$B$10,\"BMA\",CONFIGURATION!$B$1,\"bscr\",CONFIGURATION!$B$12)","v":"Mapped"},null,{"$f":"XBRLMap(T17,T$80&\".\"&$Y17&\".\"&$T$81&\".\"&$Y$7,$D$78,$D$79,CONFIGURATION!$B$10,\"BMA\",CONFIGURATION!$B$1,\"bscr\",CONFIGURATION!$B$12)","v":"Mapped"},null,{"$f":"XBRLMap(V17,V$80&\".\"&$Y17&\".\"&$V$81&\".\"&$Y$7,$F$78,$F$79,CONFIGURATION!$B$10,\"BMA\",CONFIGURATION!$B$1,\"bscr\",CONFIGURATION!$B$12)","v":"Mapped"}]
[null,null,null,{"$f":"XBRLMap(D18,D$80&\".\"&$Y18&\".\"&$D$81&\".\"&$Y$7,$D$78,$D$79,CONFIGURATION!$B$10,\"BMA\",CONFIGURATION!$B$1,\"bscr\",CONFIGURATION!$B$12)","v":"Mapped"},null,{"$f":"XBRLMap(F18,F$80&\".\"&$Y18&\".\"&$F$81&\".\"&$Y$7,$F$78,$F$79,CONFIGURATION!$B$10,\"BMA\",CONFIGURATION!$B$1,\"bscr\",CONFIGURATION!$B$12)","v":"Mapped"},null,{"$f":"XBRLMap(H18,H$80&\".\"&$Y18&\".\"&$H$81&\".\"&$Y$7,$D$78,$D$79,CONFIGURATION!$B$10,\"BMA\",CONFIGURATION!$B$1,\"bscr\",CONFIGURATION!$B$12)","v":"Mapped"},null,{"$f":"XBRLMap(J18,J$80&\".\"&$Y18&\".\"&$J$81&\".\"&$Y$7,$F$78,$F$79,CONFIGURATION!$B$10,\"BMA\",CONFIGURATION!$B$1,\"bscr\",CONFIGURATION!$B$12)","v":"Mapped"},null,{"$f":"XBRLMap(L18,L$80&\".\"&$Y18&\".\"&$L$81&\".\"&$Y$7,$D$78,$D$79,CONFIGURATION!$B$10,\"BMA\",CONFIGURATION!$B$1,\"bscr\",CONFIGURATION!$B$12)","v":"Mapped"},null,{"$f":"XBRLMap(N18,N$80&\".\"&$Y18&\".\"&$N$81&\".\"&$Y$7,$F$78,$F$79,CONFIGURATION!$B$10,\"BMA\",CONFIGURATION!$B$1,\"bscr\",CONFIGURATION!$B$12)","v":"Mapped"},null,{"$f":"XBRLMap(P18,P$80&\".\"&$Y18&\".\"&$P$81&\".\"&$Y$7,$D$78,$D$79,CONFIGURATION!$B$10,\"BMA\",CONFIGURATION!$B$1,\"bscr\",CONFIGURATION!$B$12)","v":"Mapped"},null,{"$f":"XBRLMap(R18,R$80&\".\"&$Y18&\".\"&$R$81&\".\"&$Y$7,$F$78,$F$79,CONFIGURATION!$B$10,\"BMA\",CONFIGURATION!$B$1,\"bscr\",CONFIGURATION!$B$12)","v":"Mapped"},null,{"$f":"XBRLMap(T18,T$80&\".\"&$Y18&\".\"&$T$81&\".\"&$Y$7,$D$78,$D$79,CONFIGURATION!$B$10,\"BMA\",CONFIGURATION!$B$1,\"bscr\",CONFIGURATION!$B$12)","v":"Mapped"},null,{"$f":"XBRLMap(V18,V$80&\".\"&$Y18&\".\"&$V$81&\".\"&$Y$7,$F$78,$F$79,CONFIGURATION!$B$10,\"BMA\",CONFIGURATION!$B$1,\"bscr\",CONFIGURATION!$B$12)","v":"Mapped"}]
[null,null,null,{"$f":"XBRLMap(D19,D$80&\".\"&$Y19&\".\"&$D$81&\".\"&$Y$7,$D$78,$D$79,CONFIGURATION!$B$10,\"BMA\",CONFIGURATION!$B$1,\"bscr\",CONFIGURATION!$B$12)","v":"Mapped"},null,{"$f":"XBRLMap(F19,F$80&\".\"&$Y19&\".\"&$F$81&\".\"&$Y$7,$F$78,$F$79,CONFIGURATION!$B$10,\"BMA\",CONFIGURATION!$B$1,\"bscr\",CONFIGURATION!$B$12)","v":"Mapped"},null,{"$f":"XBRLMap(H19,H$80&\".\"&$Y19&\".\"&$H$81&\".\"&$Y$7,$D$78,$D$79,CONFIGURATION!$B$10,\"BMA\",CONFIGURATION!$B$1,\"bscr\",CONFIGURATION!$B$12)","v":"Mapped"},null,{"$f":"XBRLMap(J19,J$80&\".\"&$Y19&\".\"&$J$81&\".\"&$Y$7,$F$78,$F$79,CONFIGURATION!$B$10,\"BMA\",CONFIGURATION!$B$1,\"bscr\",CONFIGURATION!$B$12)","v":"Mapped"},null,{"$f":"XBRLMap(L19,L$80&\".\"&$Y19&\".\"&$L$81&\".\"&$Y$7,$D$78,$D$79,CONFIGURATION!$B$10,\"BMA\",CONFIGURATION!$B$1,\"bscr\",CONFIGURATION!$B$12)","v":"Mapped"},null,{"$f":"XBRLMap(N19,N$80&\".\"&$Y19&\".\"&$N$81&\".\"&$Y$7,$F$78,$F$79,CONFIGURATION!$B$10,\"BMA\",CONFIGURATION!$B$1,\"bscr\",CONFIGURATION!$B$12)","v":"Mapped"},null,{"$f":"XBRLMap(P19,P$80&\".\"&$Y19&\".\"&$P$81&\".\"&$Y$7,$D$78,$D$79,CONFIGURATION!$B$10,\"BMA\",CONFIGURATION!$B$1,\"bscr\",CONFIGURATION!$B$12)","v":"Mapped"},null,{"$f":"XBRLMap(R19,R$80&\".\"&$Y19&\".\"&$R$81&\".\"&$Y$7,$F$78,$F$79,CONFIGURATION!$B$10,\"BMA\",CONFIGURATION!$B$1,\"bscr\",CONFIGURATION!$B$12)","v":"Mapped"},null,{"$f":"XBRLMap(T19,T$80&\".\"&$Y19&\".\"&$T$81&\".\"&$Y$7,$D$78,$D$79,CONFIGURATION!$B$10,\"BMA\",CONFIGURATION!$B$1,\"bscr\",CONFIGURATION!$B$12)","v":"Mapped"},null,{"$f":"XBRLMap(V19,V$80&\".\"&$Y19&\".\"&$V$81&\".\"&$Y$7,$F$78,$F$79,CONFIGURATION!$B$10,\"BMA\",CONFIGURATION!$B$1,\"bscr\",CONFIGURATION!$B$12)","v":"Mapped"}]
[null,null,null,{"$f":"XBRLMap(D20,D$80&\".\"&$Y20&\".\"&$D$81&\".\"&$Y$7,$D$78,$D$79,CONFIGURATION!$B$10,\"BMA\",CONFIGURATION!$B$1,\"bscr\",CONFIGURATION!$B$12)","v":"Mapped"},null,{"$f":"XBRLMap(F20,F$80&\".\"&$Y20&\".\"&$F$81&\".\"&$Y$7,$F$78,$F$79,CONFIGURATION!$B$10,\"BMA\",CONFIGURATION!$B$1,\"bscr\",CONFIGURATION!$B$12)","v":"Mapped"},null,{"$f":"XBRLMap(H20,H$80&\".\"&$Y20&\".\"&$H$81&\".\"&$Y$7,$D$78,$D$79,CONFIGURATION!$B$10,\"BMA\",CONFIGURATION!$B$1,\"bscr\",CONFIGURATION!$B$12)","v":"Mapped"},null,{"$f":"XBRLMap(J20,J$80&\".\"&$Y20&\".\"&$J$81&\".\"&$Y$7,$F$78,$F$79,CONFIGURATION!$B$10,\"BMA\",CONFIGURATION!$B$1,\"bscr\",CONFIGURATION!$B$12)","v":"Mapped"},null,{"$f":"XBRLMap(L20,L$80&\".\"&$Y20&\".\"&$L$81&\".\"&$Y$7,$D$78,$D$79,CONFIGURATION!$B$10,\"BMA\",CONFIGURATION!$B$1,\"bscr\",CONFIGURATION!$B$12)","v":"Mapped"},null,{"$f":"XBRLMap(N20,N$80&\".\"&$Y20&\".\"&$N$81&\".\"&$Y$7,$F$78,$F$79,CONFIGURATION!$B$10,\"BMA\",CONFIGURATION!$B$1,\"bscr\",CONFIGURATION!$B$12)","v":"Mapped"},null,{"$f":"XBRLMap(P20,P$80&\".\"&$Y20&\".\"&$P$81&\".\"&$Y$7,$D$78,$D$79,CONFIGURATION!$B$10,\"BMA\",CONFIGURATION!$B$1,\"bscr\",CONFIGURATION!$B$12)","v":"Mapped"},null,{"$f":"XBRLMap(R20,R$80&\".\"&$Y20&\".\"&$R$81&\".\"&$Y$7,$F$78,$F$79,CONFIGURATION!$B$10,\"BMA\",CONFIGURATION!$B$1,\"bscr\",CONFIGURATION!$B$12)","v":"Mapped"},null,{"$f":"XBRLMap(T20,T$80&\".\"&$Y20&\".\"&$T$81&\".\"&$Y$7,$D$78,$D$79,CONFIGURATION!$B$10,\"BMA\",CONFIGURATION!$B$1,\"bscr\",CONFIGURATION!$B$12)","v":"Mapped"},null,{"$f":"XBRLMap(V20,V$80&\".\"&$Y20&\".\"&$V$81&\".\"&$Y$7,$F$78,$F$79,CONFIGURATION!$B$10,\"BMA\",CONFIGURATION!$B$1,\"bscr\",CONFIGURATION!$B$12)","v":"Mapped"}]
[]
[null,null,null,{"$f":"XBRLMap(D22,D$80&\".\"&$Y22&\".\"&$D$81&\".\"&$Y$7,$D$78,$D$79,CONFIGURATION!$B$10,\"BMA\",CONFIGURATION!$B$1,\"bscr\",CONFIGURATION!$B$12)","v":"Mapped"},null,{"$f":"XBRLMap(F22,F$80&\".\"&$Y22&\".\"&$F$81&\".\"&$Y$7,$F$78,$F$79,CONFIGURATION!$B$10,\"BMA\",CONFIGURATION!$B$1,\"bscr\",CONFIGURATION!$B$12)","v":"Mapped"},null,{"$f":"XBRLMap(H22,H$80&\".\"&$Y22&\".\"&$H$81&\".\"&$Y$7,$D$78,$D$79,CONFIGURATION!$B$10,\"BMA\",CONFIGURATION!$B$1,\"bscr\",CONFIGURATION!$B$12)","v":"Mapped"},null,{"$f":"XBRLMap(J22,J$80&\".\"&$Y22&\".\"&$J$81&\".\"&$Y$7,$F$78,$F$79,CONFIGURATION!$B$10,\"BMA\",CONFIGURATION!$B$1,\"bscr\",CONFIGURATION!$B$12)","v":"Mapped"},null,{"$f":"XBRLMap(L22,L$80&\".\"&$Y22&\".\"&$L$81&\".\"&$Y$7,$D$78,$D$79,CONFIGURATION!$B$10,\"BMA\",CONFIGURATION!$B$1,\"bscr\",CONFIGURATION!$B$12)","v":"Mapped"},null,{"$f":"XBRLMap(N22,N$80&\".\"&$Y22&\".\"&$N$81&\".\"&$Y$7,$F$78,$F$79,CONFIGURATION!$B$10,\"BMA\",CONFIGURATION!$B$1,\"bscr\",CONFIGURATION!$B$12)","v":"Mapped"},null,{"$f":"XBRLMap(P22,P$80&\".\"&$Y22&\".\"&$P$81&\".\"&$Y$7,$D$78,$D$79,CONFIGURATION!$B$10,\"BMA\",CONFIGURATION!$B$1,\"bscr\",CONFIGURATION!$B$12)","v":"Mapped"},null,{"$f":"XBRLMap(R22,R$80&\".\"&$Y22&\".\"&$R$81&\".\"&$Y$7,$F$78,$F$79,CONFIGURATION!$B$10,\"BMA\",CONFIGURATION!$B$1,\"bscr\",CONFIGURATION!$B$12)","v":"Mapped"},null,{"$f":"XBRLMap(T22,T$80&\".\"&$Y22&\".\"&$T$81&\".\"&$Y$7,$D$78,$D$79,CONFIGURATION!$B$10,\"BMA\",CONFIGURATION!$B$1,\"bscr\",CONFIGURATION!$B$12)","v":"Mapped"},null,{"$f":"XBRLMap(V22,V$80&\".\"&$Y22&\".\"&$V$81&\".\"&$Y$7,$F$78,$F$79,CONFIGURATION!$B$10,\"BMA\",CONFIGURATION!$B$1,\"bscr\",CONFIGURATION!$B$12)","v":"Mapped"}]
[]
[null,null,null,"brrt_QuotedInvestmentsEquitiesCommonStocks",null,"brrt_QuotedInvestmentsEquitiesCommonStocks",null,null,null,null,null,"brrt_QuotedInvestmentsEquitiesMutualFunds",null,"brrt_QuotedInvestmentsEquitiesMutualFunds",null,null,null,null,null,"brrt_QuotedInvestmentsEquitiesCommonStocksMutualFunds",null,"brrt_QuotedInvestmentsEquitiesCommonStocksMutualFunds"]
[null,null,null,"brrt_UnquotedInvestmentsEquitiesCommonStocks",null,"brrt_UnquotedInvestmentsEquitiesCommonStocks",null,null,null,null,null,"brrt_UnquotedInvestmentsEquitiesMutualFunds",null,"brrt_UnquotedInvestmentsEquitiesMutualFunds",null,null,null,null,null,"brrt_UnquotedInvestmentsEquitiesCommonStocksMutualFunds",null,"brrt_UnquotedInvestmentsEquitiesCommonStocksMutualFunds"]
[null,null,null,"brrt_EquitiesCommonStocks",null,"brrt_EquitiesCommonStocks",null,"brrt_EquitiesPreferredStocks",null,"brrt_EquitiesPreferredStocks",null,"brrt_EquitiesMutualFunds",null,"brrt_EquitiesMutualFunds",null,null,null,null,null,"brrt_Equities",null,"brrt_Equities"]
[null,null,null,null,null,null,null,{"$f":"XBRLMap(H33,H$96&\".\"&$Y33&\".\"&$Y$7,$D$78,$D$79,CONFIGURATION!$B$10,\"BMA\",CONFIGURATION!$B$1,\"bscr\",CONFIGURATION!$B$12)","v":"Mapped"},null,{"$f":"XBRLMap(J33,J$96&\".\"&$Y33&\".\"&$Y$7,$F$78,$F$79,CONFIGURATION!$B$10,\"BMA\",CONFIGURATION!$B$1,\"bscr\",CONFIGURATION!$B$12)","v":"Mapped"},null,null,null,null,null,null,null,null,null,"The same data point as in column H",null,"The same data point as in column J"]
[null,null,null,null,null,null,null,{"$f":"XBRLMap(H34,H$96&\".\"&$Y34&\".\"&$Y$7,$D$78,$D$79,CONFIGURATION!$B$10,\"BMA\",CONFIGURATION!$B$1,\"bscr\",CONFIGURATION!$B$12)","v":"Mapped"},null,{"$f":"XBRLMap(J34,J$96&\".\"&$Y34&\".\"&$Y$7,$F$78,$F$79,CONFIGURATION!$B$10,\"BMA\",CONFIGURATION!$B$1,\"bscr\",CONFIGURATION!$B$12)","v":"Mapped"},null,null,null,null,null,null,null,null,null,"The same data point as in column H",null,"The same data point as in column J"]
[null,null,null,null,null,null,null,{"$f":"XBRLMap(H35,H$96&\".\"&$Y35&\".\"&$Y$7,$D$78,$D$79,CONFIGURATION!$B$10,\"BMA\",CONFIGURATION!$B$1,\"bscr\",CONFIGURATION!$B$12)","v":"Mapped"},null,{"$f":"XBRLMap(J35,J$96&\".\"&$Y35&\".\"&$Y$7,$F$78,$F$79,CONFIGURATION!$B$10,\"BMA\",CONFIGURATION!$B$1,\"bscr\",CONFIGURATION!$B$12)","v":"Mapped"},null,null,null,null,null,null,null,null,null,"The same data point as in column H",null,"The same data point as in column J"]
[null,null,null,null,null,null,null,{"$f":"XBRLMap(H36,H$96&\".\"&$Y36&\".\"&$Y$7,$D$78,$D$79,CONFIGURATION!$B$10,\"BMA\",CONFIGURATION!$B$1,\"bscr\",CONFIGURATION!$B$12)","v":"Mapped"},null,{"$f":"XBRLMap(J36,J$96&\".\"&$Y36&\".\"&$Y$7,$F$78,$F$79,CONFIGURATION!$B$10,\"BMA\",CONFIGURATION!$B$1,\"bscr\",CONFIGURATION!$B$12)","v":"Mapped"},null,null,null,null,null,null,null,null,null,"The same data point as in column H",null,"The same data point as in column J"]
[null,null,null,null,null,null,null,{"$f":"XBRLMap(H37,H$96&\".\"&$Y37&\".\"&$Y$7,$D$78,$D$79,CONFIGURATION!$B$10,\"BMA\",CONFIGURATION!$B$1,\"bscr\",CONFIGURATION!$B$12)","v":"Mapped"},null,{"$f":"XBRLMap(J37,J$96&\".\"&$Y37&\".\"&$Y$7,$F$78,$F$79,CONFIGURATION!$B$10,\"BMA\",CONFIGURATION!$B$1,\"bscr\",CONFIGURATION!$B$12)","v":"Mapped"},null,null,null,null,null,null,null,null,null,"The same data point as in column H",null,"The same data point as in column J"]
[null,null,null,null,null,null,null,{"$f":"XBRLMap(H38,H$96&\".\"&$Y38&\".\"&$Y$7,$D$78,$D$79,CONFIGURATION!$B$10,\"BMA\",CONFIGURATION!$B$1,\"bscr\",CONFIGURATION!$B$12)","v":"Mapped"},null,{"$f":"XBRLMap(J38,J$96&\".\"&$Y38&\".\"&$Y$7,$F$78,$F$79,CONFIGURATION!$B$10,\"BMA\",CONFIGURATION!$B$1,\"bscr\",CONFIGURATION!$B$12)","v":"Mapped"},null,null,null,null,null,null,null,null,null,"The same data point as in column H",null,"The same data point as in column J"]
[null,null,null,null,null,null,null,{"$f":"XBRLMap(H39,H$96&\".\"&$Y39&\".\"&$Y$7,$D$78,$D$79,CONFIGURATION!$B$10,\"BMA\",CONFIGURATION!$B$1,\"bscr\",CONFIGURATION!$B$12)","v":"Mapped"},null,{"$f":"XBRLMap(J39,J$96&\".\"&$Y39&\".\"&$Y$7,$F$78,$F$79,CONFIGURATION!$B$10,\"BMA\",CONFIGURATION!$B$1,\"bscr\",CONFIGURATION!$B$12)","v":"Mapped"},null,null,null,null,null,null,null,null,null,"The same data point as in column H",null,"The same data point as in column J"]
[null,null,null,null,null,null,null,{"$f":"XBRLMap(H40,H$96&\".\"&$Y40&\".\"&$Y$7,$D$78,$D$79,CONFIGURATION!$B$10,\"BMA\",CONFIGURATION!$B$1,\"bscr\",CONFIGURATION!$B$12)","v":"Mapped"},null,{"$f":"XBRLMap(J40,J$96&\".\"&$Y40&\".\"&$Y$7,$F$78,$F$79,CONFIGURATION!$B$10,\"BMA\",CONFIGURATION!$B$1,\"bscr\",CONFIGURATION!$B$12)","v":"Mapped"},null,null,null,null,null,null,null,null,null,"The same data point as in column H",null,"The same data point as in column J"]
[null,null,null,{"$f":"XBRLMap(D41,D$94&\".\"&$Y$7,$D$78,$D$79,CONFIGURATION!$B$10,\"BMA\",CONFIGURATION!$B$1,\"bscr\",CONFIGURATION!$B$12)","v":"Mapped"},null,{"$f":"XBRLMap(F41,F$94&\".\"&$Y$7,$F$78,$F$79,CONFIGURATION!$B$10,\"BMA\",CONFIGURATION!$B$1,\"bscr\",CONFIGURATION!$B$12)","v":"Mapped"},null,null,null,null,null,{"$f":"XBRLMap(L41,L$94&\".\"&$Y$7,$D$78,$D$79,CONFIGURATION!$B$10,\"BMA\",CONFIGURATION!$B$1,\"bscr\",CONFIGURATION!$B$12)","v":"Mapped"},null,{"$f":"XBRLMap(N41,N$94&\".\"&$Y$7,$F$78,$F$79,CONFIGURATION!$B$10,\"BMA\",CONFIGURATION!$B$1,\"bscr\",CONFIGURATION!$B$12)","v":"Mapped"},null,null,null,null,null,{"$f":"XBRLMap(T41,T$94&\".\"&$Y$7,$D$78,$D$79,CONFIGURATION!$B$10,\"BMA\",CONFIGURATION!$B$1,\"bscr\",CONFIGURATION!$B$12)","v":"Mapped"},null,{"$f":"XBRLMap(V41,V$94&\".\"&$Y$7,$F$78,$F$79,CONFIGURATION!$B$10,\"BMA\",CONFIGURATION!$B$1,\"bscr\",CONFIGURATION!$B$12)","v":"Mapped"}]
[null,null,null,{"$f":"XBRLMap(D42,D$95&\".\"&$Y$7,$D$78,$D$79,CONFIGURATION!$B$10,\"BMA\",CONFIGURATION!$B$1,\"bscr\",CONFIGURATION!$B$12)","v":"Mapped"},null,{"$f":"XBRLMap(F42,F$95&\".\"&$Y$7,$F$78,$F$79,CONFIGURATION!$B$10,\"BMA\",CONFIGURATION!$B$1,\"bscr\",CONFIGURATION!$B$12)","v":"Mapped"},null,null,null,null,null,{"$f":"XBRLMap(L42,L$95&\".\"&$Y$7,$D$78,$D$79,CONFIGURATION!$B$10,\"BMA\",CONFIGURATION!$B$1,\"bscr\",CONFIGURATION!$B$12)","v":"Mapped"},null,{"$f":"XBRLMap(N42,N$95&\".\"&$Y$7,$F$78,$F$79,CONFIGURATION!$B$10,\"BMA\",CONFIGURATION!$B$1,\"bscr\",CONFIGURATION!$B$12)","v":"Mapped"},null,null,null,null,null,{"$f":"XBRLMap(T42,T$95&\".\"&$Y$7,$D$78,$D$79,CONFIGURATION!$B$10,\"BMA\",CONFIGURATION!$B$1,\"bscr\",CONFIGURATION!$B$12)","v":"Mapped"},null,{"$f":"XBRLMap(V42,V$95&\".\"&$Y$7,$F$78,$F$79,CONFIGURATION!$B$10,\"BMA\",CONFIGURATION!$B$1,\"bscr\",CONFIGURATION!$B$12)","v":"Mapped"}]
[]
[null,null,null,{"$f":"XBRLMap(D44,D$96&\".\"&$Y$7,$D$78,$D$79,CONFIGURATION!$B$10,\"BMA\",CONFIGURATION!$B$1,\"bscr\",CONFIGURATION!$B$12)","v":"Mapped"},null,{"$f":"XBRLMap(F44,F$96&\".\"&$Y$7,$F$78,$F$79,CONFIGURATION!$B$10,\"BMA\",CONFIGURATION!$B$1,\"bscr\",CONFIGURATION!$B$12)","v":"Mapped"},null,{"$f":"XBRLMap(H44,H$96&\".\"&$Y44&\".\"&$Y$7,$D$78,$D$79,CONFIGURATION!$B$10,\"BMA\",CONFIGURATION!$B$1,\"bscr\",CONFIGURATION!$B$12)","v":"Mapped"},null,{"$f":"XBRLMap(J44,J$96&\".\"&$Y44&\".\"&$Y$7,$F$78,$F$79,CONFIGURATION!$B$10,\"BMA\",CONFIGURATION!$B$1,\"bscr\",CONFIGURATION!$B$12)","v":"Mapped"},null,{"$f":"XBRLMap(L44,L$96&\".\"&$Y$7,$D$78,$D$79,CONFIGURATION!$B$10,\"BMA\",CONFIGURATION!$B$1,\"bscr\",CONFIGURATION!$B$12)","v":"Mapped"},null,{"$f":"XBRLMap(N44,N$96&\".\"&$Y$7,$F$78,$F$79,CONFIGURATION!$B$10,\"BMA\",CONFIGURATION!$B$1,\"bscr\",CONFIGURATION!$B$12)","v":"Mapped"},null,null,null,null,null,{"$f":"XBRLMap(T44,T$96&\".\"&$Y$7,$D$78,$D$79,CONFIGURATION!$B$10,\"BMA\",CONFIGURATION!$B$1,\"bscr\",CONFIGURATION!$B$12)","v":"Mapped"},null,{"$f":"XBRLMap(V44,V$96&\".\"&$Y$7,$F$78,$F$79,CONFIGURATION!$B$10,\"BMA\",CONFIGURATION!$B$1,\"bscr\",CONFIGURATION!$B$12)","v":"Mapped"}]
[]
[]
[null,null,null,null,null,null,null,null,null,null,null,"brrt_BondsAndDebentures",null,"brrt_BondsAndDebentures",null,"brrt_BondsAndDebentures",null,"brrt_BondsAndDebentures"]
[null,null,null,null,null,null,null,null,null,null,null,"brrt_SecurityTypeAxis_brrt_ResidentialMortgageBackedSecuritiesMember",null,"brrt_SecurityTypeAxis_brrt_ResidentialMortgageBackedSecuritiesMember",null,"brrt_SecurityTypeAxis_brrt_CommercialMortgageBackedSecuritiesAssetBackedSecuritiesMember",null,"brrt_SecurityTypeAxis_brrt_CommercialMortgageBackedSecuritiesAssetBackedSecuritiesMember"]
[null,null,null,null,null,null,null,null,null,null,null,"brrt_ClassificationAxis_brrt_OriginalClassificationMember",null,"brrt_ClassificationAxis_brrt_RevisedClassificationMember",null,"brrt_ClassificationAxis_brrt_OriginalClassificationMember",null,"brrt_ClassificationAxis_brrt_RevisedClassificationMember"]
[null,null,null,null,null,null,null,null,null,null,null,{"$f":"XBRLMap(L55,L$111&\".\"&$AC56&\".\"&$L$112&\".\"&$L$113&\".\"&$Y$7,$D$78,$D$79,CONFIGURATION!$B$10,\"BMA\",CONFIGURATION!$B$1,\"bscr\",CONFIGURATION!$B$12)","v":"Mapped"},null,{"$f":"XBRLMap(N55,N$111&\".\"&$AC56&\".\"&$N$112&\".\"&$N$113&\".\"&$Y$7,$D$78,$D$79,CONFIGURATION!$B$10,\"BMA\",CONFIGURATION!$B$1,\"bscr\",CONFIGURATION!$B$12)","v":"Mapped"},null,{"$f":"XBRLMap(P55,P$111&\".\"&$AC56&\".\"&$P$112&\".\"&$P$113&\".\"&$Y$7,$D$78,$D$79,CONFIGURATION!$B$10,\"BMA\",CONFIGURATION!$B$1,\"bscr\",CONFIGURATION!$B$12)","v":"Mapped"},null,{"$f":"XBRLMap(R55,R$111&\".\"&$AC56&\".\"&$R$112&\".\"&$R$113&\".\"&$Y$7,$D$78,$D$79,CONFIGURATION!$B$10,\"BMA\",CONFIGURATION!$B$1,\"bscr\",CONFIGURATION!$B$12)","v":"Mapped"}]
[null,null,null,null,null,null,null,null,null,null,null,{"$f":"XBRLMap(L56,L$111&\".\"&$AC57&\".\"&$L$112&\".\"&$L$113&\".\"&$Y$7,$D$78,$D$79,CONFIGURATION!$B$10,\"BMA\",CONFIGURATION!$B$1,\"bscr\",CONFIGURATION!$B$12)","v":"Mapped"},null,{"$f":"XBRLMap(N56,N$111&\".\"&$AC57&\".\"&$N$112&\".\"&$N$113&\".\"&$Y$7,$D$78,$D$79,CONFIGURATION!$B$10,\"BMA\",CONFIGURATION!$B$1,\"bscr\",CONFIGURATION!$B$12)","v":"Mapped"},null,{"$f":"XBRLMap(P56,P$111&\".\"&$AC57&\".\"&$P$112&\".\"&$P$113&\".\"&$Y$7,$D$78,$D$79,CONFIGURATION!$B$10,\"BMA\",CONFIGURATION!$B$1,\"bscr\",CONFIGURATION!$B$12)","v":"Mapped"},null,{"$f":"XBRLMap(R56,R$111&\".\"&$AC57&\".\"&$R$112&\".\"&$R$113&\".\"&$Y$7,$D$78,$D$79,CONFIGURATION!$B$10,\"BMA\",CONFIGURATION!$B$1,\"bscr\",CONFIGURATION!$B$12)","v":"Mapped"}]
[null,null,null,null,null,null,null,null,null,null,null,{"$f":"XBRLMap(L57,L$111&\".\"&$AC58&\".\"&$L$112&\".\"&$L$113&\".\"&$Y$7,$D$78,$D$79,CONFIGURATION!$B$10,\"BMA\",CONFIGURATION!$B$1,\"bscr\",CONFIGURATION!$B$12)","v":"Mapped"},null,{"$f":"XBRLMap(N57,N$111&\".\"&$AC58&\".\"&$N$112&\".\"&$N$113&\".\"&$Y$7,$D$78,$D$79,CONFIGURATION!$B$10,\"BMA\",CONFIGURATION!$B$1,\"bscr\",CONFIGURATION!$B$12)","v":"Mapped"},null,{"$f":"XBRLMap(P57,P$111&\".\"&$AC58&\".\"&$P$112&\".\"&$P$113&\".\"&$Y$7,$D$78,$D$79,CONFIGURATION!$B$10,\"BMA\",CONFIGURATION!$B$1,\"bscr\",CONFIGURATION!$B$12)","v":"Mapped"},null,{"$f":"XBRLMap(R57,R$111&\".\"&$AC58&\".\"&$R$112&\".\"&$R$113&\".\"&$Y$7,$D$78,$D$79,CONFIGURATION!$B$10,\"BMA\",CONFIGURATION!$B$1,\"bscr\",CONFIGURATION!$B$12)","v":"Mapped"}]
[null,null,null,null,null,null,null,null,null,null,null,{"$f":"XBRLMap(L58,L$111&\".\"&$AC59&\".\"&$L$112&\".\"&$L$113&\".\"&$Y$7,$D$78,$D$79,CONFIGURATION!$B$10,\"BMA\",CONFIGURATION!$B$1,\"bscr\",CONFIGURATION!$B$12)","v":"Mapped"},null,{"$f":"XBRLMap(N58,N$111&\".\"&$AC59&\".\"&$N$112&\".\"&$N$113&\".\"&$Y$7,$D$78,$D$79,CONFIGURATION!$B$10,\"BMA\",CONFIGURATION!$B$1,\"bscr\",CONFIGURATION!$B$12)","v":"Mapped"},null,{"$f":"XBRLMap(P58,P$111&\".\"&$AC59&\".\"&$P$112&\".\"&$P$113&\".\"&$Y$7,$D$78,$D$79,CONFIGURATION!$B$10,\"BMA\",CONFIGURATION!$B$1,\"bscr\",CONFIGURATION!$B$12)","v":"Mapped"},null,{"$f":"XBRLMap(R58,R$111&\".\"&$AC59&\".\"&$R$112&\".\"&$R$113&\".\"&$Y$7,$D$78,$D$79,CONFIGURATION!$B$10,\"BMA\",CONFIGURATION!$B$1,\"bscr\",CONFIGURATION!$B$12)","v":"Mapped"}]
[null,null,null,null,null,null,null,null,null,null,null,{"$f":"XBRLMap(L59,L$111&\".\"&$AC60&\".\"&$L$112&\".\"&$L$113&\".\"&$Y$7,$D$78,$D$79,CONFIGURATION!$B$10,\"BMA\",CONFIGURATION!$B$1,\"bscr\",CONFIGURATION!$B$12)","v":"Mapped"},null,{"$f":"XBRLMap(N59,N$111&\".\"&$AC60&\".\"&$N$112&\".\"&$N$113&\".\"&$Y$7,$D$78,$D$79,CONFIGURATION!$B$10,\"BMA\",CONFIGURATION!$B$1,\"bscr\",CONFIGURATION!$B$12)","v":"Mapped"},null,{"$f":"XBRLMap(P59,P$111&\".\"&$AC60&\".\"&$P$112&\".\"&$P$113&\".\"&$Y$7,$D$78,$D$79,CONFIGURATION!$B$10,\"BMA\",CONFIGURATION!$B$1,\"bscr\",CONFIGURATION!$B$12)","v":"Mapped"},null,{"$f":"XBRLMap(R59,R$111&\".\"&$AC60&\".\"&$R$112&\".\"&$R$113&\".\"&$Y$7,$D$78,$D$79,CONFIGURATION!$B$10,\"BMA\",CONFIGURATION!$B$1,\"bscr\",CONFIGURATION!$B$12)","v":"Mapped"}]
[null,null,null,null,null,null,null,null,null,null,null,{"$f":"XBRLMap(L60,L$111&\".\"&$AC61&\".\"&$L$112&\".\"&$L$113&\".\"&$Y$7,$D$78,$D$79,CONFIGURATION!$B$10,\"BMA\",CONFIGURATION!$B$1,\"bscr\",CONFIGURATION!$B$12)","v":"Mapped"},null,{"$f":"XBRLMap(N60,N$111&\".\"&$AC61&\".\"&$N$112&\".\"&$N$113&\".\"&$Y$7,$D$78,$D$79,CONFIGURATION!$B$10,\"BMA\",CONFIGURATION!$B$1,\"bscr\",CONFIGURATION!$B$12)","v":"Mapped"},null,{"$f":"XBRLMap(P60,P$111&\".\"&$AC61&\".\"&$P$112&\".\"&$P$113&\".\"&$Y$7,$D$78,$D$79,CONFIGURATION!$B$10,\"BMA\",CONFIGURATION!$B$1,\"bscr\",CONFIGURATION!$B$12)","v":"Mapped"},null,{"$f":"XBRLMap(R60,R$111&\".\"&$AC61&\".\"&$R$112&\".\"&$R$113&\".\"&$Y$7,$D$78,$D$79,CONFIGURATION!$B$10,\"BMA\",CONFIGURATION!$B$1,\"bscr\",CONFIGURATION!$B$12)","v":"Mapped"}]
[]
[null,null,null,null,null,null,null,null,null,null,null,{"$f":"XBRLMap(L62,L$111&\".\"&$AC63&\".\"&$L$112&\".\"&$L$113&\".\"&$Y$7,$D$78,$D$79,CONFIGURATION!$B$10,\"BMA\",CONFIGURATION!$B$1,\"bscr\",CONFIGURATION!$B$12)","v":"Mapped"},null,{"$f":"XBRLMap(N62,N$111&\".\"&$AC63&\".\"&$N$112&\".\"&$N$113&\".\"&$Y$7,$D$78,$D$79,CONFIGURATION!$B$10,\"BMA\",CONFIGURATION!$B$1,\"bscr\",CONFIGURATION!$B$12)","v":"Mapped"},null,{"$f":"XBRLMap(P62,P$111&\".\"&$AC63&\".\"&$P$112&\".\"&$P$113&\".\"&$Y$7,$D$78,$D$79,CONFIGURATION!$B$10,\"BMA\",CONFIGURATION!$B$1,\"bscr\",CONFIGURATION!$B$12)","v":"Mapped"},null,{"$f":"XBRLMap(R62,R$111&\".\"&$AC63&\".\"&$R$112&\".\"&$R$113&\".\"&$Y$7,$D$78,$D$79,CONFIGURATION!$B$10,\"BMA\",CONFIGURATION!$B$1,\"bscr\",CONFIGURATION!$B$12)","v":"Mapped"}]

{"sheet":"Inv Recon (Original)","index":24,"n_rows":46,"n_cols":37,"rows_kept":46,"cut":false,"hidden":true,"merged":[[0,2,0,8],[1,2,1,7],[2,2,2,8],[7,3,7,5],[7,6,7,17]]}
[null,null,"INVESTMENT RECONCILIATION ",null,null,null,null,null,null,null,null,null,null,null,null,null,null,{"$f":"HYPERLINK(\"#'Index'!A1\",\"Return to Index\")","v":"Return to Index"}]
[null,null,{"$f":"'Company Information'!C7","v":"Enter Company Name"},null,null,null,null,null,null,null,null,null,null,null,null,null,null,null,null,null,null,null,null,null,null,null,null,null,null,null,null,null,null,null,null,null,{"$f":"IF(C3=\"\",\"\",TEXT(C3,\"mm/dd/yyyy\"))","v":"For the year ending December 31, 2019"}]
[null,null,{"$f":"\"For the year ending \"&TEXT('Company Information'!C3,\"MMMM DD, YYYY\")","v":"For the year ending December 31, 2019"}]
[null,null,{"$f":"\"expressed in\"& IF(CONFIGURATION!$B$12>1,\" ['\"&MID(CONFIGURATION!$B$12,2,LEN(CONFIGURATION!$B$12))&\"s]\",\"\")&\" \"&'Form 1EBS'!C4","v":"expressed in ['000s] United States Dollars"}]
[]
[null,null,"A reconciliation of investments reported on Form 1EBS to Schedules IIB, IIC, IID, IIE and IIF"]
[]
[null,null,null,"Amounts as Reported in Balance Sheet",null,null,"Amounts results from Look-Through"]
[null,null,"Adjustment Description","Form 1EBS Balance","Form 1EBS Balance - Amounts Reported under Bonds and Debentures","Form 1EBS Balance - Amounts reported under Equities","Schedule IIB - Interest rate-sensitive investments","Schedule IIB - Investments sensitive to equity prices","Schedule IIC - Interest rate-sensitive investments","Schedule IIC - Investments sensitive to equity prices","Schedule IID - Interest rate-sensitive investments","Schedule IID - Investments sensitive to equity prices","Schedule IIE - Interest rate-sensitive investments","Schedule IIE - Investments sensitive to equity prices","Schedule IIF - Interest rate-sensitive investments","Schedule IIF - Investments sensitive to equity prices","Total - Interest rate-sensitive investments","Total - Investments sensitive to equity prices"]
[null,null,"Form 1EBS Open Balance",null,null,null,{"$f":"'Form 1EBS'!F10+'Form 1EBS'!F13+'Form 1EBS'!F23+'Form 1EBS'!F45","v":0},{"$f":"'Form 1EBS'!F18+'Form 1EBS'!F19+'Form 1EBS'!F28+'Form 1EBS'!F29+'Form 1EBS'!F38","v":0},{"$f":"'Schedule IIA (EBS)'!T22","v":0},{"$f":"'Schedule IIA (EBS)'!T44","v":0},null,null,null,null,null,null,{"$f":"G10+I10+K10+M10+O10","v":0},{"$f":"H10+J10+L10+N10+P10","v":0},null,null,null,null,null,null,null,null,null,null,null,null,null,null,null,null,null,null,{"$f":"IF(OR(C10<>\"\",G10<>\"\",H10<>\"\",I10<>\"\",J10<>\"\"),XBRLMapTuple($C$45,#REF!,AK$2,\"BMA\",CONFIGURATION!$B$1,\"bscr\",\"\",CONFIGURATION!$B$12,$C$46,C10,$G$46,G10,$H$46,H10,$I$46,I10,$J$46,J10),\"emptyTuple\")","v":{"$error":"#VALUE!"}}]
[null,1,"Cash and Cash Equivalents",null,null,null,null,null,null,null,null,null,null,null,null,null,{"$f":"G11+I11+K11+M11+O11-E11","v":0},{"$f":"H11+J11+L11+N11+P11-F11","v":0}]
[null,{"$f":"B11+1","v":2},"Bonds and Debentures",null,null,null,null,null,null,null,null,null,null,null,null,null,{"$f":"G12+I12+K12+M12+O12-E12","v":0},{"$f":"H12+J12+L12+N12+P12-F12","v":0}]
[null,3,"Equities ",null,null,null,null,null,null,null,null,null,null,null,null,null,0,0,null,null,null,null,null,null,null,null,null,null,null,null,null,null,null,null,null,null,{"$f":"IF(OR(C13<>\"\",G13<>\"\",H13<>\"\",I13<>\"\",J13<>\"\"),XBRLMapTuple($C$45,#REF!,AK$2,\"BMA\",CONFIGURATION!$B$1,\"bscr\",\"\",CONFIGURATION!$B$12,$C$46,C13,$G$46,G13,$H$46,H13,$I$46,I13,$J$46,J13),\"emptyTuple\")","v":{"$error":"#VALUE!"}}]
[null,4,"Real Estate",null,null,null,null,null,null,null,null,null,null,null,null,null,0,0,null,null,null,null,null,null,null,null,null,null,null,null,null,null,null,null,null,null,{"$f":"IF(OR(C14<>\"\",G14<>\"\",H14<>\"\",I14<>\"\",J14<>\"\"),XBRLMapTuple($C$45,#REF!,AK$2,\"BMA\",CONFIGURATION!$B$1,\"bscr\",\"\",CONFIGURATION!$B$12,$C$46,C14,$G$46,G14,$H$46,H14,$I$46,I14,$J$46,J14),\"emptyTuple\")","v":{"$error":"#VALUE!"}}]
[null,5,"Collective Investment Vehicles",null,null,null,null,null,null,null,null,null,null,null,null,null,0,0]
[null,6,"Derivatives",null,null,null,null,null,null,null,null,null,null,null,null,null,0,0]
[null,7,"Funds withheld",null,null,null,null,null,null,null,null,null,null,null,null,null,0,0]
[null,8,"Segregated Accounts Assets",null,null,null,null,null,null,null,null,null,null,null,null,null,0,0,null,null,null,null,null,null,null,null,null,null,null,null,null,null,null,null,null,null,{"$f":"IF(OR(C18<>\"\",G18<>\"\",H18<>\"\",I18<>\"\",J18<>\"\"),XBRLMapTuple($C$45,#REF!,AK$2,\"BMA\",CONFIGURATION!$B$1,\"bscr\",\"\",CONFIGURATION!$B$12,$C$46,C18,$G$46,G18,$H$46,H18,$I$46,I18,$J$46,J18),\"emptyTuple\")","v":{"$error":"#VALUE!"}}]
[null,9,"Deposit Assets",null,null,null,null,null,null,null,null,null,null,null,null,null,0,0,null,null,null,null,null,null,null,null,null,null,null,null,null,null,null,null,null,null,{"$f":"IF(OR(C19<>\"\",G19<>\"\",H19<>\"\",I19<>\"\",J19<>\"\"),XBRLMapTuple($C$45,#REF!,AK$2,\"BMA\",CONFIGURATION!$B$1,\"bscr\",\"\",CONFIGURATION!$B$12,$C$46,C19,$G$46,G19,$H$46,H19,$I$46,I19,$J$46,J19),\"emptyTuple\")","v":{"$error":"#VALUE!"}}]
[null,10,"Other Sundry Assets",null,null,null,null,null,null,null,null,null,null,null,null,null,0,0,null,null,null,null,null,null,null,null,null,null,null,null,null,null,null,null,null,null,{"$f":"IF(OR(C20<>\"\",G20<>\"\",H20<>\"\",I20<>\"\",J20<>\"\"),XBRLMapTuple($C$45,#REF!,AK$2,\"BMA\",CONFIGURATION!$B$1,\"bscr\",\"\",CONFIGURATION!$B$12,$C$46,C20,$G$46,G20,$H$46,H20,$I$46,I20,$J$46,J20),\"emptyTuple\")","v":{"$error":"#VALUE!"}}]
[null,11,"Other Adjustment ",null,null,null,null,null,null,null,null,null,null,null,null,null,0,0,null,null,null,null,null,null,null,null,null,null,null,null,null,null,null,null,null,null,{"$f":"IF(OR(C21<>\"\",G21<>\"\",H21<>\"\",I21<>\"\",J21<>\"\"),XBRLMapTuple($C$45,#REF!,AK$2,\"BMA\",CONFIGURATION!$B$1,\"bscr\",\"\",CONFIGURATION!$B$12,$C$46,C21,$G$46,G21,$H$46,H21,$I$46,I21,$J$46,J21),\"emptyTuple\")","v":{"$error":"#VALUE!"}}]
[null,12,"Other Adjustment ",null,null,null,null,null,null,null,null,null,null,null,null,null,0,0,null,null,null,null,null,null,null,null,null,null,null,null,null,null,null,null,null,null,{"$f":"IF(OR(C22<>\"\",G22<>\"\",H22<>\"\",I22<>\"\",J22<>\"\"),XBRLMapTuple($C$45,#REF!,AK$2,\"BMA\",CONFIGURATION!$B$1,\"bscr\",\"\",CONFIGURATION!$B$12,$C$46,C22,$G$46,G22,$H$46,H22,$I$46,I22,$J$46,J22),\"emptyTuple\")","v":{"$error":"#VALUE!"}}]
[null,13,"Other Adjustment ",null,null,null,null,null,null,null,null,null,null,null,null,null,0,0,null,null,null,null,null,null,null,null,null,null,null,null,null,null,null,null,null,null,{"$f":"IF(OR(C23<>\"\",G23<>\"\",H23<>\"\",I23<>\"\",J23<>\"\"),XBRLMapTuple($C$45,#REF!,AK$2,\"BMA\",CONFIGURATION!$B$1,\"bscr\",\"\",CONFIGURATION!$B$12,$C$46,C23,$G$46,G23,$H$46,H23,$I$46,I23,$J$46,J23),\"emptyTuple\")","v":{"$error":"#VALUE!"}}]
[null,14,"Other Adjustment ",null,null,null,null,null,null,null,null,null,null,null,null,null,0,0,null,null,null,null,null,null,null,null,null,null,null,null,null,null,null,null,null,null,{"$f":"IF(OR(C24<>\"\",G24<>\"\",H24<>\"\",I24<>\"\",J24<>\"\"),XBRLMapTuple($C$45,#REF!,AK$2,\"BMA\",CONFIGURATION!$B$1,\"bscr\",\"\",CONFIGURATION!$B$12,$C$46,C24,$G$46,G24,$H$46,H24,$I$46,I24,$J$46,J24),\"emptyTuple\")","v":{"$error":"#VALUE!"}}]
[null,15,"Other Adjustment ",null,null,null,null,null,null,null,null,null,null,null,null,null,0,0,null,null,null,null,null,null,null,null,null,null,null,null,null,null,null,null,null,null,{"$f":"IF(OR(C25<>\"\",G25<>\"\",H25<>\"\",I25<>\"\",J25<>\"\"),XBRLMapTuple($C$45,#REF!,AK$2,\"BMA\",CONFIGURATION!$B$1,\"bscr\",\"\",CONFIGURATION!$B$12,$C$46,C25,$G$46,G25,$H$46,H25,$I$46,I25,$J$46,J25),\"emptyTuple\")","v":{"$error":"#VALUE!"}}]
[null,null,"Schedule IIB, IIC, IID, IIE & IIF Balances",null,null,null,{"$f":"G10+SUM(G11:G25)-SUM(E11:E25)","v":0},{"$f":"H10+SUM(H11:H25)-SUM(F11:F25)","v":0},{"$f":"SUM(I10:I25)","v":0},{"$f":"SUM(J10:J25)","v":0},{"$f":"SUM(K10:K25)","v":0},0,0,0,0,0,0,0,null,null,null,null,null,null,null,null,null,null,null,null,null,null,null,null,null,null,{"$f":"IF(OR(C26<>\"\",G26<>\"\",H26<>\"\",I26<>\"\",J26<>\"\"),XBRLMapTuple($C$45,#REF!,AK$2,\"BMA\",CONFIGURATION!$B$1,\"bscr\",\"\",CONFIGURATION!$B$12,$C$46,C26,$G$46,G26,$H$46,H26,$I$46,I26,$J$46,J26),\"emptyTuple\")","v":{"$error":"#VALUE!"}}]
[]
[null,null,null,null,null,null,null,{"$f":"IF(ROUND(('Schedule IIB (EBS)'!X62-H26),0)=0,\"TRUE\",\"FALSE\")","v":"TRUE"},null,{"$f":"IF(ROUND(('Schedule IIC (EBS)'!X62-J26),0)=0,\"TRUE\",\"FALSE\")","v":"TRUE"}]
[]
[null,null,null,null,null,null,null,{"$f":"'Schedule IIB (EBS)'!X62-H26","v":0},null,{"$f":"'Schedule IIC (EBS)'!X62-J26","v":0}]
[]
[null,null,"Interest rate-sensitive investments",null,"Total","Difference"]
[null,null,"Amount after Look-through",null,{"$f":"Q26","v":0}]
[null,null,"Amount in Interest Rate & Liquidity Risk calculation",null,{"$f":"'Interest Rate-Liquidity (Rev.)'!C51","v":0},{"$f":"E34-E33","v":0}]
[]
[]
[null,null,"Investments sensitive to equity prices",null,"Total","Difference"]
[null,null,"Amount after Look-through",null,{"$f":"R26","v":0}]
[null,null,"Amount in Equity Risk calculations",null,{"$f":"'Equity Investments (Revised)'!D48+'Equity Investments (Revised)'!F48+'Equity Investments (Revised)'!H48","v":0},{"$f":"E39-E38","v":0}]
[]
[]
[]
[]
[]
[null,null,"brrt_ReconciliationOfGroupFinancialStatement"]
[null,null,"brrt_ReconciliationOfGroupFinancialStatementDescription",null,null,null,"brrt_ReconciliationOfGroupFinancialStatementAssets","brrt_ReconciliationOfGroupFinancialStatementLiabilities","brrt_ReconciliationOfGroupFinancialStatementNetIncome","brrt_ReconciliationOfGroupFinancialStatementCapitalAndSurplus"]

{"sheet":"Investment Reconciliation","index":25,"n_rows":68,"n_cols":37,"rows_kept":68,"cut":false,"hidden":false,"merged":[[33,2,33,11],[0,2,0,8],[1,2,1,7],[2,2,2,8],[7,3,7,5],[7,6,7,17]]}
[null,null,"INVESTMENT RECONCILIATION ",null,null,null,null,null,null,null,null,null,null,null,null,null,null,{"$f":"HYPERLINK(\"#'Index'!A1\",\"Return to Index\")","v":"Return to Index"}]
[null,null,{"$f":"'Company Information'!C7","v":"Enter Company Name"},null,null,null,null,null,null,null,null,null,null,null,null,null,null,null,null,null,null,null,null,null,null,null,null,null,null,null,null,null,null,null,null,null,{"$f":"IF(C3=\"\",\"\",TEXT(C3,\"mm/dd/yyyy\"))","v":"For the year ending December 31, 2019"}]
[null,null,{"$f":"\"For the year ending \"&TEXT('Company Information'!C3,\"MMMM DD, YYYY\")","v":"For the year ending December 31, 2019"}]
[null,null,{"$f":"\"expressed in\"& IF(CONFIGURATION!$B$12>1,\" ['\"&MID(CONFIGURATION!$B$12,2,LEN(CONFIGURATION!$B$12))&\"s]\",\"\")&\" \"&'Form 1EBS'!C4","v":"expressed in ['000s] United States Dollars"}]
[]
[null,null,"A reconciliation of investments reported on Form 1EBS to Schedules IIB, IIC, IID, IIE and IIF"]
[]
[null,null,null,"Amounts as Reported in Balance Sheet",null,null,"Amounts results from Look-Through"]
[null,null,"Adjustment Description","Form 1EBS Balance","Form 1EBS Balance - Amounts Reported under Bonds and Debentures","Form 1EBS Balance - Amounts reported under Equities","Schedule IIB - Interest rate-sensitive investments","Schedule IIB - Investments sensitive to equity prices","Schedule IIC - Interest rate-sensitive investments","Schedule IIC - Investments sensitive to equity prices","Schedule IID - Interest rate-sensitive investments","Schedule IID - Investments sensitive to equity prices","Schedule IIE - Interest rate-sensitive investments","Schedule IIE - Investments sensitive to equity prices","Schedule IIF - Interest rate-sensitive investments","Schedule IIF - Investments sensitive to equity prices","Total - Interest rate-sensitive investments","Total - Investments sensitive to equity prices"]
[null,1,"Form 1EBS Open Balance",null,null,null,{"$f":"'Form 1EBS'!F13+'Form 1EBS'!F23+'Form 1EBS'!F45","v":0},{"$f":"'Form 1EBS'!F18+'Form 1EBS'!F19+'Form 1EBS'!F28+'Form 1EBS'!F29+'Form 1EBS'!F38","v":0},{"$f":"'Schedule IIA (EBS)'!T22+'Schedule IIA (EBS)'!D62","v":0},{"$f":"'Schedule IIA (EBS)'!T44","v":0},null,null,null,null,null,null,{"$f":"G10+I10+K10+M10+O10","v":0},{"$f":"H10+J10+L10+N10+P10","v":0},null,null,null,null,null,null,null,null,null,null,null,null,null,null,null,null,null,null,{"$f":"IF(OR(C10<>\"\",G10<>\"\",H10<>\"\",I10<>\"\",J10<>\"\"),XBRLMapTuple($C$67,#REF!,AK$2,\"BMA\",CONFIGURATION!$B$1,\"bscr\",\"\",CONFIGURATION!$B$12,$C$68,C10,$G$68,G10,$H$68,H10,$I$68,I10,$J$68,J10),\"emptyTuple\")","v":{"$error":"#VALUE!"}}]
[null,{"$f":"B10+1","v":2},"Cash and Cash Equivalents",null,null,null,null,null,null,null,null,null,null,null,null,null,{"$f":"G11+I11+K11+M11+O11-E11","v":0},{"$f":"H11+J11+L11+N11+P11-F11","v":0}]
[null,{"$f":"B11+1","v":3},"Bonds and Debentures",null,null,null,null,null,null,null,null,null,null,null,null,null,{"$f":"G12+I12+K12+M12+O12-E12","v":0},0]
[null,4,"Equities ",null,null,null,null,null,null,null,null,null,null,null,null,null,0,0,null,null,null,null,null,null,null,null,null,null,null,null,null,null,null,null,null,null,{"$f":"IF(OR(C13<>\"\",G13<>\"\",H13<>\"\",I13<>\"\",J13<>\"\"),XBRLMapTuple($C$67,#REF!,AK$2,\"BMA\",CONFIGURATION!$B$1,\"bscr\",\"\",CONFIGURATION!$B$12,$C$68,C13,$G$68,G13,$H$68,H13,$I$68,I13,$J$68,J13),\"emptyTuple\")","v":{"$error":"#VALUE!"}}]
[null,5,"Real Estate",null,null,null,null,null,null,null,null,null,null,null,null,null,0,0,null,null,null,null,null,null,null,null,null,null,null,null,null,null,null,null,null,null,{"$f":"IF(OR(C14<>\"\",G14<>\"\",H14<>\"\",I14<>\"\",J14<>\"\"),XBRLMapTuple($C$67,#REF!,AK$2,\"BMA\",CONFIGURATION!$B$1,\"bscr\",\"\",CONFIGURATION!$B$12,$C$68,C14,$G$68,G14,$H$68,H14,$I$68,I14,$J$68,J14),\"emptyTuple\")","v":{"$error":"#VALUE!"}}]
[null,6,"Collective Investment Vehicles",null,null,null,null,null,null,null,null,null,null,null,null,null,0,0]
[null,7,"Derivatives",null,null,null,null,null,null,null,null,null,null,null,null,null,0,0]
[null,8,"Funds withheld",null,null,null,null,null,null,null,null,null,null,null,null,null,0,0]
[null,9,"Segregated Accounts Assets",null,null,null,null,null,null,null,null,null,null,null,null,null,0,0,null,null,null,null,null,null,null,null,null,null,null,null,null,null,null,null,null,null,{"$f":"IF(OR(C18<>\"\",G18<>\"\",H18<>\"\",I18<>\"\",J18<>\"\"),XBRLMapTuple($C$67,#REF!,AK$2,\"BMA\",CONFIGURATION!$B$1,\"bscr\",\"\",CONFIGURATION!$B$12,$C$68,C18,$G$68,G18,$H$68,H18,$I$68,I18,$J$68,J18),\"emptyTuple\")","v":{"$error":"#VALUE!"}}]
[null,10,"Deposit Assets",null,null,null,null,null,null,null,null,null,null,null,null,null,0,0,null,null,null,null,null,null,null,null,null,null,null,null,null,null,null,null,null,null,{"$f":"IF(OR(C19<>\"\",G19<>\"\",H19<>\"\",I19<>\"\",J19<>\"\"),XBRLMapTuple($C$67,#REF!,AK$2,\"BMA\",CONFIGURATION!$B$1,\"bscr\",\"\",CONFIGURATION!$B$12,$C$68,C19,$G$68,G19,$H$68,H19,$I$68,I19,$J$68,J19),\"emptyTuple\")","v":{"$error":"#VALUE!"}}]
[null,11,"Other Sundry Assets",null,null,null,null,null,null,null,null,null,null,null,null,null,0,0,null,null,null,null,null,null,null,null,null,null,null,null,null,null,null,null,null,null,{"$f":"IF(OR(C20<>\"\",G20<>\"\",H20<>\"\",I20<>\"\",J20<>\"\"),XBRLMapTuple($C$67,#REF!,AK$2,\"BMA\",CONFIGURATION!$B$1,\"bscr\",\"\",CONFIGURATION!$B$12,$C$68,C20,$G$68,G20,$H$68,H20,$I$68,I20,$J$68,J20),\"emptyTuple\")","v":{"$error":"#VALUE!"}}]
[null,12,"Other Adjustment ",null,null,null,null,null,null,null,null,null,null,null,null,null,0,0,null,null,null,null,null,null,null,null,null,null,null,null,null,null,null,null,null,null,{"$f":"IF(OR(C21<>\"\",G21<>\"\",H21<>\"\",I21<>\"\",J21<>\"\"),XBRLMapTuple($C$67,#REF!,AK$2,\"BMA\",CONFIGURATION!$B$1,\"bscr\",\"\",CONFIGURATION!$B$12,$C$68,C21,$G$68,G21,$H$68,H21,$I$68,I21,$J$68,J21),\"emptyTuple\")","v":{"$error":"#VALUE!"}}]
[null,13,"Other Adjustment ",null,null,null,null,null,null,null,null,null,null,null,null,null,{"$f":"G22+I22+K22+M22+O22-E22","v":0},{"$f":"H22+J22+L22+N22+P22-F22","v":0},null,null,null,null,null,null,null,null,null,null,null,null,null,null,null,null,null,null,{"$f":"IF(OR(C22<>\"\",G22<>\"\",H22<>\"\",I22<>\"\",J22<>\"\"),XBRLMapTuple($C$67,#REF!,AK$2,\"BMA\",CONFIGURATION!$B$1,\"bscr\",\"\",CONFIGURATION!$B$12,$C$68,C22,$G$68,G22,$H$68,H22,$I$68,I22,$J$68,J22),\"emptyTuple\")","v":{"$error":"#VALUE!"}}]
[null,14,"Other Adjustment ",null,null,null,null,null,null,null,null,null,null,null,null,null,0,0,null,null,null,null,null,null,null,null,null,null,null,null,null,null,null,null,null,null,{"$f":"IF(OR(C23<>\"\",G23<>\"\",H23<>\"\",I23<>\"\",J23<>\"\"),XBRLMapTuple($C$67,#REF!,AK$2,\"BMA\",CONFIGURATION!$B$1,\"bscr\",\"\",CONFIGURATION!$B$12,$C$68,C23,$G$68,G23,$H$68,H23,$I$68,I23,$J$68,J23),\"emptyTuple\")","v":{"$error":"#VALUE!"}}]
[null,15,"Other Adjustment ",null,null,null,null,null,null,null,null,null,null,null,null,null,0,0,null,null,null,null,null,null,null,null,null,null,null,null,null,null,null,null,null,null,{"$f":"IF(OR(C24<>\"\",G24<>\"\",H24<>\"\",I24<>\"\",J24<>\"\"),XBRLMapTuple($C$67,#REF!,AK$2,\"BMA\",CONFIGURATION!$B$1,\"bscr\",\"\",CONFIGURATION!$B$12,$C$68,C24,$G$68,G24,$H$68,H24,$I$68,I24,$J$68,J24),\"emptyTuple\")","v":{"$error":"#VALUE!"}}]
[null,16,"Other Adjustment ",null,null,null,null,null,null,null,null,null,null,null,null,null,0,0,null,null,null,null,null,null,null,null,null,null,null,null,null,null,null,null,null,null,{"$f":"IF(OR(C25<>\"\",G25<>\"\",H25<>\"\",I25<>\"\",J25<>\"\"),XBRLMapTuple($C$67,#REF!,AK$2,\"BMA\",CONFIGURATION!$B$1,\"bscr\",\"\",CONFIGURATION!$B$12,$C$68,C25,$G$68,G25,$H$68,H25,$I$68,I25,$J$68,J25),\"emptyTuple\")","v":{"$error":"#VALUE!"}}]
[null,17,"Other Adjustment ",null,null,null,null,null,null,null,null,null,null,null,null,null,0,0,null,null,null,null,null,null,null,null,null,null,null,null,null,null,null,null,null,null,{"$f":"IF(OR(C26<>\"\",G26<>\"\",H26<>\"\",I26<>\"\",J26<>\"\"),XBRLMapTuple($C$67,#REF!,AK$2,\"BMA\",CONFIGURATION!$B$1,\"bscr\",\"\",CONFIGURATION!$B$12,$C$68,C26,$G$68,G26,$H$68,H26,$I$68,I26,$J$68,J26),\"emptyTuple\")","v":{"$error":"#VALUE!"}}]
[null,18,"Calculated Balances",null,null,null,{"$f":"G10+SUM(G11:G26)-SUM(E11:E26)","v":0},{"$f":"H10+SUM(H11:H26)-SUM(F11:F26)","v":0},{"$f":"SUM(I10:I26)","v":0},0,0,0,0,0,0,0,0,0]
[null,null,"Balance after Look-Through adjustments",null,null,null,{"$f":"'Schedule IIB (EBS)'!X27","v":0},{"$f":"'Schedule IIB (EBS)'!X62","v":0},{"$f":"'Schedule IIC (EBS)'!X27","v":0},{"$f":"'Schedule IIC (EBS)'!X62","v":0},{"$f":"'Schedule IID (EBS)'!X27","v":0},{"$f":"'Schedule IID (EBS)'!X62","v":0},{"$f":"'Schedule IIE (EBS)'!X27","v":0},{"$f":"'Schedule IIE (EBS)'!X62","v":0},{"$f":"'Schedule IIF (EBS)'!X27","v":0},{"$f":"'Schedule IIF (EBS)'!X62","v":0},{"$f":"G28+I28+K28+M28+O28-E28","v":0},{"$f":"H28+J28+L28+N28+P28-F28","v":0},null,null,null,null,null,null,null,null,null,null,null,null,null,null,null,null,null,null,{"$f":"IF(OR(C28<>\"\",G28<>\"\",H28<>\"\",I28<>\"\",J28<>\"\"),XBRLMapTuple($C$67,#REF!,AK$2,\"BMA\",CONFIGURATION!$B$1,\"bscr\",\"\",CONFIGURATION!$B$12,$C$68,C28,$G$68,G28,$H$68,H28,$I$68,I28,$J$68,J28),\"emptyTuple\")","v":{"$error":"#VALUE!"}}]
[]
[null,null,null,null,null,null,{"$f":"IF(ROUND((G28-G27),0)=0,\"TRUE\",\"FALSE\")","v":"TRUE"},{"$f":"IF(ROUND((H28-H27),0)=0,\"TRUE\",\"FALSE\")","v":"TRUE"},"TRUE","TRUE","TRUE","TRUE","TRUE","TRUE","TRUE","TRUE","TRUE","TRUE"]
[]
[null,null,null,null,null,null,{"$f":"G27-G28","v":0},{"$f":"H27-H28","v":0},0,0,0,0,0,0,0,0,0,0]
[]
[null,null,"A reconciliation of investments reported on Schedules IIB, IIC, IID, IIE and IIF to exposures in Equity Risk and Interest Rate Risk calculations taking into account look-through"]
[]
[null,null,"Adjustment Description",null,null,null,"Interest rate-sensitive investments","Investments sensitive to equity prices","Interest rate-sensitive investments","Investments sensitive to equity prices","Interest rate-sensitive investments","Investments sensitive to equity prices","Interest rate-sensitive investments","Investments sensitive to equity prices","Interest rate-sensitive investments","Investments sensitive to equity prices","Total - Interest rate-sensitive investments","Total - Investments sensitive to equity prices"]
[null,null,"Schedule IIB, IIC, IID, IIE & IIF Balances",null,null,null,{"$f":"'Schedule IIB (EBS)'!X27","v":0},{"$f":"'Schedule IIB (EBS)'!X62","v":0},{"$f":"'Schedule IIC (EBS)'!X27","v":0},{"$f":"'Schedule IIC (EBS)'!X62","v":0},{"$f":"'Schedule IID (EBS)'!X27","v":0},{"$f":"'Schedule IID (EBS)'!X62","v":0},{"$f":"'Schedule IIE (EBS)'!X27","v":0},{"$f":"'Schedule IIE (EBS)'!X62","v":0},{"$f":"'Schedule IIF (EBS)'!X27","v":0},{"$f":"'Schedule IIF (EBS)'!X62","v":0},{"$f":"G37+I37+K37+M37+O37","v":0},{"$f":"H37+J37+L37+N37+P37","v":0}]
[null,{"$f":"B27+1","v":19},"Cash and Cash Equivalents",null,null,null,null,null,null,null,null,null,null,null,null,null,{"$f":"G38+I38+K38+M38+O38","v":0},0]
[null,{"$f":"B38+1","v":20},"Derivatives not included in Schedules IIB-IIF",null,null,null,null,null,null,null,null,null,null,null,null,null,0,0]
[null,{"$f":"B39+1","v":21},"Other Interest/Equity sensitive items not included in Schedules IIB-IIF",null,null,null,null,null,null,null,null,null,null,null,null,null,0,0]
[null,22,"Other Interest/Equity sensitive items not included in Schedules IIB-IIF",null,null,null,null,null,null,null,null,null,null,null,null,null,0,0]
[null,23,"Other Interest/Equity sensitive items not included in Schedules IIB-IIF",null,null,null,null,null,null,null,null,null,null,null,null,null,0,0]
[null,24,"Other Interest/Equity sensitive items not included in Schedules IIB-IIF",null,null,null,null,null,null,null,null,null,null,null,null,null,0,0]
[null,25,"Other Interest/Equity sensitive items not included in Schedules IIB-IIF",null,null,null,null,null,null,null,null,null,null,null,null,null,0,0]
[null,26,"Other Interest/Equity sensitive items not included in Schedules IIB-IIF",null,null,null,null,null,null,null,null,null,null,null,null,null,0,0]
[null,27,"Other Interest/Equity sensitive items not included in Schedules IIB-IIF",null,null,null,null,null,null,null,null,null,null,null,null,null,0,0]
[null,28,"Other Interest/Equity sensitive items not included in Schedules IIB-IIF",null,null,null,null,null,null,null,null,null,null,null,null,null,0,0]
[null,29,"Other Interest/Equity sensitive items not included in Schedules IIB-IIF",null,null,null,null,null,null,null,null,null,null,null,null,null,0,0]
[null,30,"Other Interest/Equity sensitive items not included in Schedules IIB-IIF",null,null,null,null,null,null,null,null,null,null,null,null,null,0,0]
[null,31,"Exposures after adjustments",null,null,null,{"$f":"SUM(G37:G49)","v":0},{"$f":"SUM(H37:H49)","v":0},0,0,0,0,0,0,0,0,{"$f":"SUM(Q37:Q49)","v":0},{"$f":"SUM(R37:R49)","v":0}]
[null,null,"Total Exposure in Risk calculations",null,null,null,null,null,null,null,null,null,null,null,null,null,{"$f":"'Interest Rate-Liquidity (Rev.)'!C51","v":0},{"$f":"'Equity Investments (Revised)'!D48+'Equity Investments (Revised)'!F48+'Equity Investments (Revised)'!H48","v":0}]
[]
[null,null,null,null,null,null,null,null,null,null,null,null,null,null,null,null,{"$f":"IF(ROUND((Q51-Q50),0)=0,\"TRUE\",\"FALSE\")","v":"TRUE"},{"$f":"IF(ROUND((R51-R50),0)=0,\"TRUE\",\"FALSE\")","v":"TRUE"}]
[null,null,"Interest rate-sensitive investments",null,"Total","Difference"]
[null,null,"Amount after Look-through",null,{"$f":"Q50","v":0},null,null,null,null,null,null,null,null,null,null,null,{"$f":"Q50-Q51","v":0},{"$f":"R50-R51","v":0}]
[null,null,"Amount in Interest Rate & Liquidity Risk calculation",null,{"$f":"'Interest Rate-Liquidity (Rev.)'!C51","v":0},{"$f":"E56-E55","v":0},{"$f":"IF(ROUND(F56,0)=0,\"TRUE\",\"FALSE\")","v":"TRUE"}]
[]
[]
[null,null,"Investments sensitive to equity prices",null,"Total","Difference"]
[null,null,"Amount after Look-through",null,{"$f":"R50","v":0}]
[null,null,"Amount in Equity Risk calculations",null,{"$f":"'Equity Investments (Revised)'!D48+'Equity Investments (Revised)'!F48+'Equity Investments (Revised)'!H48","v":0},{"$f":"E61-E60","v":0},{"$f":"IF(ROUND(F61,0)=0,\"TRUE\",\"FALSE\")","v":"TRUE"}]
[]
[]
[]
[]
[]
[null,null,"brrt_ReconciliationOfGroupFinancialStatement"]
[null,null,"brrt_ReconciliationOfGroupFinancialStatementDescription",null,null,null,"brrt_ReconciliationOfGroupFinancialStatementAssets","brrt_ReconciliationOfGroupFinancialStatementLiabilities","brrt_ReconciliationOfGroupFinancialStatementNetIncome","brrt_ReconciliationOfGroupFinancialStatementCapitalAndSurplus"]

{"sheet":"Schedule IIB (EBS)","index":26,"n_rows":144,"n_cols":31,"rows_kept":144,"cut":false,"hidden":false,"merged":[[33,27,34,27],[81,11,81,20],[83,13,84,13],[83,15,84,15],[83,17,84,17],[83,19,84,19],[82,12,82,15],[82,16,82,19],[63,13,63,21],[63,3,63,11],[64,3,64,5],[64,7,64,9],[64,13,64,15],[64,17,64,19],[7,15,7,17],[7,23,7,25],[7,11,7,13],[7,19,7,21],[33,23,34,23],[33,7,33,13],[32,3,32,13],[33,3,34,5],[34,7,34,9],[34,11,34,13],[33,17,34,17],[33,19,34,19],[33,15,34,15],[32,15,32,19],[2,1,2,3],[3,3,3,5],[4,3,4,5],[7,3,7,5],[7,7,7,9]]}
[null,"SCHEDULE OF FIXED INCOME & EQUITY INVESTMENTS BY BSCR RATING",null,null,null,null,null,null,null,null,null,null,null,null,null,null,null,null,null,null,null,null,null,null,null,null,null,{"$f":"HYPERLINK(\"#'Index'!A1\",\"Return to Index\")","v":"Return to Index"}]
[]
[null,{"$f":"'Company Information'!C7","v":"Enter Company Name"}]
[null,"As at",null,{"$f":"'Company Information'!C3","v":"2019-12-31"},null,null,null,null,null,null,null,null,null,null,null,null,null,null,null,null,null,null,null,null,null,"SCHEDULE IIB (EBS)"]
[null,{"$f":"\"expressed in\"& IF(CONFIGURATION!$B$12>1,\" ['\"&MID(CONFIGURATION!$B$12,2,LEN(CONFIGURATION!$B$12))&\"s]\",\"\")","v":"expressed in ['000s]"},null,{"$f":"'Form 1EBS'!C4","v":"United States Dollars"}]
[]
[null,null,null,"(1)",null,"(2)",null,"(3)",null,"(4)",null,"(5)",null,"(6)",null,"(7)",null,"(8)",null,"(9)",null,"(10)",null,"(11)",null,"(12)"]
[null,null,null,"CORPORATE & SOVEREIGN BONDS",null,null,null,"RESIDENTIAL MORTGAGE-BACKED SECURITIES",null,null,null,"COMMERCIAL MORTGAGE-BACKED SECURITIES / ASSET-BACKED SECURITIES",null,null,null,"BOND MUTUAL FUNDS",null,null,null,"MORTGAGE LOANS",null,null,null,"TOTAL\n"]
[null,null,null,{"$f":"+'Form 1EBS'!$F$7","v":"2019-12-31"},null,{"$f":"+'Form 1EBS'!$H$7","v":"2018-12-31"},null,{"$f":"+'Form 1EBS'!$F$7","v":"2019-12-31"},null,{"$f":"+'Form 1EBS'!$H$7","v":"2018-12-31"},null,{"$f":"+'Form 1EBS'!$F$7","v":"2019-12-31"},null,{"$f":"+'Form 1EBS'!$H$7","v":"2018-12-31"},null,{"$f":"+'Form 1EBS'!$F$7","v":"2019-12-31"},null,{"$f":"+'Form 1EBS'!$H$7","v":"2018-12-31"},null,{"$f":"+'Form 1EBS'!$F$7","v":"2019-12-31"},null,{"$f":"+'Form 1EBS'!$H$7","v":"2018-12-31"},null,{"$f":"+'Form 1EBS'!$F$7","v":"2019-12-31"},null,{"$f":"+'Form 1EBS'!$H$7","v":"2018-12-31"}]
[null,null,null,{"$f":"+'Form 1EBS'!$F$8","v":" ('000s)"},null,{"$f":"+'Form 1EBS'!$H$8","v":" ('000s)"},null,{"$f":"+'Form 1EBS'!$F$8","v":" ('000s)"},null,{"$f":"+'Form 1EBS'!$H$8","v":" ('000s)"},null,{"$f":"+'Form 1EBS'!$F$8","v":" ('000s)"},null,{"$f":"+'Form 1EBS'!$H$8","v":" ('000s)"},null,{"$f":"+'Form 1EBS'!$F$8","v":" ('000s)"},null,{"$f":"+'Form 1EBS'!$H$8","v":" ('000s)"},null,{"$f":"+'Form 1EBS'!$F$8","v":" ('000s)"},null,{"$f":"+'Form 1EBS'!$H$8","v":" ('000s)"},null,{"$f":"+'Form 1EBS'!$F$8","v":" ('000s)"},null,{"$f":"+'Form 1EBS'!$H$8","v":" ('000s)"}]
[null,"Line no. "]
[null,"Quoted and Unquoted Bonds and Debentures"]
[null,1,"BSCR Rating 0",{"$f":"Import!M11330","v":0},null,{"$f":"Import!O11330","v":0},null,null,null,null,null,null,null,null,null,{"$f":"Import!M11355","v":0},null,{"$f":"Import!O11355","v":0},null,null,null,null,null,{"$f":"D13+H13+L13+P13","v":0},null,{"$f":"F13+J13+N13+R13","v":0},null,null,null,null,"brrt_RiskGradeAxis_brrt_BSCRRating0Member"]
[null,2,"BSCR Rating 1",{"$f":"Import!M11331","v":0},null,{"$f":"Import!O11331","v":0},null,{"$f":"Import!M11339","v":0},null,{"$f":"Import!O11339","v":0},null,{"$f":"Import!M11347","v":0},null,{"$f":"Import!O11347","v":0},null,{"$f":"Import!M11356","v":0},null,{"$f":"Import!O11356","v":0},null,null,null,null,null,0,null,0,null,null,null,null,"brrt_RiskGradeAxis_brrt_BSCRRating1Member"]
[null,3,"BSCR Rating 2",{"$f":"Import!M11332","v":0},null,{"$f":"Import!O11332","v":0},null,{"$f":"Import!M11340","v":0},null,{"$f":"Import!O11340","v":0},null,{"$f":"Import!M11348","v":0},null,{"$f":"Import!O11348","v":0},null,{"$f":"Import!M11357","v":0},null,{"$f":"Import!O11357","v":0},null,null,null,null,null,0,null,0,null,null,null,null,"brrt_RiskGradeAxis_brrt_BSCRRating2Member"]
[null,4,"BSCR Rating 3",{"$f":"Import!M11333","v":0},null,{"$f":"Import!O11333","v":0},null,{"$f":"Import!M11341","v":0},null,{"$f":"Import!O11341","v":0},null,{"$f":"Import!M11349","v":0},null,{"$f":"Import!O11349","v":0},null,{"$f":"Import!M11358","v":0},null,{"$f":"Import!O11358","v":0},null,null,null,null,null,0,null,0,null,null,null,null,"brrt_RiskGradeAxis_brrt_BSCRRating3Member"]
[null,5,"BSCR Rating 4",{"$f":"Import!M11334","v":0},null,{"$f":"Import!O11334","v":0},null,{"$f":"Import!M11342","v":0},null,{"$f":"Import!O11342","v":0},null,{"$f":"Import!M11350","v":0},null,{"$f":"Import!O11350","v":0},null,{"$f":"Import!M11359","v":0},null,{"$f":"Import!O11359","v":0},null,null,null,null,null,0,null,0,null,null,null,null,"brrt_RiskGradeAxis_brrt_BSCRRating4Member"]
[null,6,"BSCR Rating 5",{"$f":"Import!M11335","v":0},null,{"$f":"Import!O11335","v":0},null,{"$f":"Import!M11343","v":0},null,{"$f":"Import!O11343","v":0},null,{"$f":"Import!M11351","v":0},null,{"$f":"Import!O11351","v":0},null,{"$f":"Import!M11360","v":0},null,{"$f":"Import!O11360","v":0},null,null,null,null,null,0,null,0,null,null,null,null,"brrt_RiskGradeAxis_brrt_BSCRRating5Member"]
[null,7,"BSCR Rating 6",{"$f":"Import!M11336","v":0},null,{"$f":"Import!O11336","v":0},null,{"$f":"Import!M11344","v":0},null,{"$f":"Import!O11344","v":0},null,{"$f":"Import!M11352","v":0},null,{"$f":"Import!O11352","v":0},null,{"$f":"Import!M11361","v":0},null,{"$f":"Import!O11361","v":0},null,null,null,null,null,0,null,0,null,null,null,null,"brrt_RiskGradeAxis_brrt_BSCRRating6Member"]
[null,8,"BSCR Rating 7",{"$f":"Import!M11337","v":0},null,{"$f":"Import!O11337","v":0},null,{"$f":"Import!M11345","v":0},null,{"$f":"Import!O11345","v":0},null,{"$f":"Import!M11353","v":0},null,{"$f":"Import!O11353","v":0},null,{"$f":"Import!M11362","v":0},null,{"$f":"Import!O11362","v":0},null,null,null,null,null,0,null,0,null,null,null,null,"brrt_RiskGradeAxis_brrt_BSCRRating7Member"]
[null,9,"BSCR Rating 8",{"$f":"Import!M11338","v":0},null,{"$f":"Import!O11338","v":0},null,{"$f":"Import!M11346","v":0},null,{"$f":"Import!O11346","v":0},null,{"$f":"Import!M11354","v":0},null,{"$f":"Import!O11354","v":0},null,{"$f":"Import!M11363","v":0},null,{"$f":"Import!O11363","v":0},null,null,null,null,null,{"$f":"D21+H21+L21+P21","v":0},null,{"$f":"F21+J21+N21+R21","v":0},null,null,null,null,"brrt_RiskGradeAxis_brrt_BSCRRating8Member"]
[null,{"$f":"B21+1","v":10},"Insured/Guaranteed Mortgages",null,null,null,null,null,null,null,null,null,null,null,null,null,null,null,null,{"$f":"Import!M11364","v":0},null,{"$f":"Import!O11364","v":0},null,{"$f":"D22+H22+L22+P22+T22","v":0},null,{"$f":"F22+J22+N22+R22+V22","v":0}]
[null,{"$f":"B22+1","v":11},"Other Commercial and Farm Mortgages",null,null,null,null,null,null,null,null,null,null,null,null,null,null,null,null,{"$f":"Import!M11365","v":0},null,{"$f":"Import!O11365","v":0},null,{"$f":"D23+H23+L23+P23+T23","v":0},null,0]
[null,{"$f":"B23+1","v":12},"Other Residential Mortgages",null,null,null,null,null,null,null,null,null,null,null,null,null,null,null,null,{"$f":"Import!M11366","v":0},null,{"$f":"Import!O11366","v":0},null,0,null,0]
[null,{"$f":"B24+1","v":13},"Mortgages Not In Good Standing",null,null,null,null,null,null,null,null,null,null,null,null,null,null,null,null,{"$f":"Import!M11367","v":0},null,{"$f":"Import!O11367","v":0},null,0,null,0]
[]
[null,{"$f":"B25+1","v":14},"Total",{"$f":"SUM(D13:D21)","v":0},null,{"$f":"SUM(F13:F21)","v":0},null,{"$f":"SUM(H13:H21)","v":0},null,{"$f":"SUM(J13:J21)","v":0},null,{"$f":"SUM(L13:L21)","v":0},null,{"$f":"SUM(N13:N21)","v":0},null,{"$f":"SUM(P12:P21)","v":0},null,{"$f":"SUM(R12:R21)","v":0},null,{"$f":"SUM(T12:T25)","v":0},null,{"$f":"SUM(V12:V25)","v":0},null,{"$f":"SUM(X12:X25)","v":0},null,{"$f":"SUM(Z12:Z25)","v":0},null,null,null,null,"brrt_RiskGradeAxis_brrt_TotalMember"]
[]
[null,null,null,null,null,null,null,null,null,null,null,null,null,null,null,null,null,null,null,{"$f":"IF((ROUND((X27-('Form 1EBS'!F13+'Form 1EBS'!F23)),0))=0,TRUE,FALSE)","v":true},null,{"$f":"IF((ROUND((Z27-('Form 1EBS'!H13+'Form 1EBS'!H23)),0))=0,TRUE,FALSE)","v":true}]
[]
[null,null,"Difference",null,null,null,null,null,null,null,null,null,null,null,null," ",null,null,null,{"$f":"('Form 1EBS'!F13+'Form 1EBS'!F23)-X27","v":0},null,{"$f":"('Form 1EBS'!H13+'Form 1EBS'!H23)-Z27","v":0}]
[]
[null,null,null,"ASSETS",null,null,null,null,null,null,null,null,null,null,null,"Liabilities"]
[null,null,null,"Long Exposures",null,null,null,"Short Exposures",null,null,null,null,null,null,null,null,null,"Without Management Actions",null,"With Management Actions",null,null,null,"Total Assets Before Shock",null,null,null,"Shocks"]
[null,null,null,null,null,null,null,"Qualifying as Assets held for risk-mitigation purposes",null,null,null,"Not Qualifying as Assets held for risk-mitigation purposes",null,null,null,null,null,null,null,null,null,null,null,null,null,null,null,"Shocks"]
[null,null,null,"Before Shock",null,"After Shock",null,"Before Shock",null,"After Shock",null,"Before Shock",null,"After Shock",null,"Before Shock",null,"After Shock",null,"After Shock"]
[null,null,null,{"$f":"+'Form 1EBS'!$F$8","v":" ('000s)"},null,{"$f":"+'Form 1EBS'!$F$8","v":" ('000s)"},null,{"$f":"+'Form 1EBS'!$H$8","v":" ('000s)"},null,{"$f":"+'Form 1EBS'!$H$8","v":" ('000s)"},null,{"$f":"+'Form 1EBS'!$F$8","v":" ('000s)"},null,{"$f":"+'Form 1EBS'!$F$8","v":" ('000s)"},null,{"$f":"+'Form 1EBS'!$H$8","v":" ('000s)"},null,{"$f":"+'Form 1EBS'!$H$8","v":" ('000s)"},null,{"$f":"+'Form 1EBS'!$F$8","v":" ('000s)"},null,null,null,{"$f":"+'Form 1EBS'!$F$8","v":" ('000s)"}]
[null,"Equity Holdings "]
[null,{"$f":"B27+1","v":15},"Strategic Holdings - Listed",{"$f":"Import!M11368","v":0},null,{"$f":"IF(OR(Import!M11390=0,Import!M11390=\"\"),(1-$AB39)*D39,Import!M11390)","v":0},null,{"$f":"Import!M11412","v":0},null,{"$f":"IF(OR(Import!M11434=0,Import!M11434=\"\"),(1-$AB39)*H39,Import!M11434)","v":0},null,{"$f":"Import!M11456","v":0},null,{"$f":"IF(OR(Import!M11478=0,Import!M11478=\"\"),(1-$AB39)*L39,Import!M11478)","v":0},null,{"$f":"Import!M11500","v":0},null,{"$f":"IF(OR(Import!M11522=0,Import!M11522=\"\"),P39,Import!M11522)","v":0},null,{"$f":"IF(OR(Import!M11544=0,Import!M11544=\"\"),R39,Import!M11544)","v":0},null,null,null,{"$f":"D39+H39+L39","v":0},null,null,null,0.2,null,null,"brrt_RiskGradeAxis_brrt_BSCRRating2Member"]
[null,{"$f":"B39+1","v":16},"Duration Based",{"$f":"Import!M11369","v":0},null,{"$f":"IF(OR(Import!M11391=0,Import!M11391=\"\"),(1-$AB40)*D40,Import!M11391)","v":0},null,{"$f":"Import!M11413","v":0},null,{"$f":"IF(OR(Import!M11435=0,Import!M11435=\"\"),(1-$AB40)*H40,Import!M11435)","v":0},null,{"$f":"Import!M11457","v":0},null,{"$f":"IF(OR(Import!M11479=0,Import!M11479=\"\"),(1-$AB40)*L40,Import!M11479)","v":0},null,{"$f":"Import!M11501","v":0},null,{"$f":"IF(OR(Import!M11523=0,Import!M11523=\"\"),P40,Import!M11523)","v":0},null,{"$f":"IF(OR(Import!M11545=0,Import!M11545=\"\"),R40,Import!M11545)","v":0},null,null,null,{"$f":"D40+H40+L40","v":0},null,null,null,0.2,null,null,"brrt_RiskGradeAxis_brrt_BSCRRating3Member"]
[null,17,"Listed Equity Securities in Developed Markets",{"$f":"Import!M11370","v":0},null,{"$f":"IF(OR(Import!M11392=0,Import!M11392=\"\"),(1-$AB41)*D41,Import!M11392)","v":0},null,{"$f":"Import!M11414","v":0},null,{"$f":"IF(OR(Import!M11436=0,Import!M11436=\"\"),(1-$AB41)*H41,Import!M11436)","v":0},null,{"$f":"Import!M11458","v":0},null,{"$f":"IF(OR(Import!M11480=0,Import!M11480=\"\"),(1-$AB41)*L41,Import!M11480)","v":0},null,{"$f":"Import!M11502","v":0},null,{"$f":"IF(OR(Import!M11524=0,Import!M11524=\"\"),P41,Import!M11524)","v":0},null,{"$f":"IF(OR(Import!M11546=0,Import!M11546=\"\"),R41,Import!M11546)","v":0},null,null,null,0,null,null,null,0.35,null,null,"brrt_RiskGradeAxis_brrt_BSCRRating4Member"]
[null,18,"Preferred Stocks, BSCR Rating 1",{"$f":"Import!M11371","v":0},null,{"$f":"IF(OR(Import!M11393=0,Import!M11393=\"\"),(1-$AB42)*D42,Import!M11393)","v":0},null,{"$f":"Import!M11415","v":0},null,{"$f":"IF(OR(Import!M11437=0,Import!M11437=\"\"),(1-$AB42)*H42,Import!M11437)","v":0},null,{"$f":"Import!M11459","v":0},null,{"$f":"IF(OR(Import!M11481=0,Import!M11481=\"\"),(1-$AB42)*L42,Import!M11481)","v":0},null,null,null,{"$f":"IF(OR(Import!M11525=0,Import!M11525=\"\"),P42,Import!M11525)","v":0},null,{"$f":"IF(OR(Import!M11547=0,Import!M11547=\"\"),R42,Import!M11547)","v":0},null,null,null,0,null,null,null,6.0000000000000001E-3,null,null,"brrt_RiskGradeAxis_brrt_BSCRRating5Member"]
[null,19,"Preferred Stocks, BSCR Rating 2",{"$f":"Import!M11372","v":0},null,{"$f":"IF(OR(Import!M11394=0,Import!M11394=\"\"),(1-$AB43)*D43,Import!M11394)","v":0},null,{"$f":"Import!M11416","v":0},null,{"$f":"IF(OR(Import!M11438=0,Import!M11438=\"\"),(1-$AB43)*H43,Import!M11438)","v":0},null,{"$f":"Import!M11460","v":0},null,{"$f":"IF(OR(Import!M11482=0,Import!M11482=\"\"),(1-$AB43)*L43,Import!M11482)","v":0},null,{"$f":"Import!M11504","v":0},null,{"$f":"IF(OR(Import!M11526=0,Import!M11526=\"\"),P43,Import!M11526)","v":0},null,{"$f":"IF(OR(Import!M11548=0,Import!M11548=\"\"),R43,Import!M11548)","v":0},null,null,null,0,null,null,null,1.2E-2,null,null,"brrt_RiskGradeAxis_brrt_BSCRRating6Member"]
[null,20,"Preferred Stocks, BSCR Rating 3",{"$f":"Import!M11373","v":0},null,{"$f":"IF(OR(Import!M11395=0,Import!M11395=\"\"),(1-$AB44)*D44,Import!M11395)","v":0},null,{"$f":"Import!M11417","v":0},null,{"$f":"IF(OR(Import!M11439=0,Import!M11439=\"\"),(1-$AB44)*H44,Import!M11439)","v":0},null,{"$f":"Import!M11461","v":0},null,{"$f":"IF(OR(Import!M11483=0,Import!M11483=\"\"),(1-$AB44)*L44,Import!M11483)","v":0},null,{"$f":"Import!M11505","v":0},null,{"$f":"IF(OR(Import!M11527=0,Import!M11527=\"\"),P44,Import!M11527)","v":0},null,{"$f":"IF(OR(Import!M11549=0,Import!M11549=\"\"),R44,Import!M11549)","v":0},null,null,null,0,null,null,null,0.02,null,null,"brrt_RiskGradeAxis_brrt_BSCRRating7Member"]
[null,21,"Preferred Stocks, BSCR Rating 4",{"$f":"Import!M11374","v":0},null,{"$f":"IF(OR(Import!M11396=0,Import!M11396=\"\"),(1-$AB45)*D45,Import!M11396)","v":0},null,{"$f":"Import!M11418","v":0},null,{"$f":"IF(OR(Import!M11440=0,Import!M11440=\"\"),(1-$AB45)*H45,Import!M11440)","v":0},null,{"$f":"Import!M11462","v":0},null,{"$f":"IF(OR(Import!M11484=0,Import!M11484=\"\"),(1-$AB45)*L45,Import!M11484)","v":0},null,{"$f":"Import!M11506","v":0},null,{"$f":"IF(OR(Import!M11528=0,Import!M11528=\"\"),P45,Import!M11528)","v":0},null,{"$f":"IF(OR(Import!M11550=0,Import!M11550=\"\"),R45,Import!M11550)","v":0},null,null,null,0,null,null,null,0.04,null,null,"brrt_RiskGradeAxis_brrt_BSCRRating8Member"]
[null,22,"Preferred Stocks, BSCR Rating 5",{"$f":"Import!M11375","v":0},null,{"$f":"IF(OR(Import!M11397=0,Import!M11397=\"\"),(1-$AB46)*D46,Import!M11397)","v":0},null,{"$f":"Import!M11419","v":0},null,{"$f":"IF(OR(Import!M11441=0,Import!M11441=\"\"),(1-$AB46)*H46,Import!M11441)","v":0},null,{"$f":"Import!M11463","v":0},null,{"$f":"IF(OR(Import!M11485=0,Import!M11485=\"\"),(1-$AB46)*L46,Import!M11485)","v":0},null,{"$f":"Import!M11507","v":0},null,{"$f":"IF(OR(Import!M11529=0,Import!M11529=\"\"),P46,Import!M11529)","v":0},null,{"$f":"IF(OR(Import!M11551=0,Import!M11551=\"\"),R46,Import!M11551)","v":0},null,null,null,0,null,null,null,0.11]
[null,23,"Preferred Stocks, BSCR Rating 6",{"$f":"Import!M11376","v":0},null,{"$f":"IF(OR(Import!M11398=0,Import!M11398=\"\"),(1-$AB47)*D47,Import!M11398)","v":0},null,{"$f":"Import!M11420","v":0},null,{"$f":"IF(OR(Import!M11442=0,Import!M11442=\"\"),(1-$AB47)*H47,Import!M11442)","v":0},null,{"$f":"Import!M11464","v":0},null,{"$f":"IF(OR(Import!M11486=0,Import!M11486=\"\"),(1-$AB47)*L47,Import!M11486)","v":0},null,{"$f":"Import!M11508","v":0},null,{"$f":"IF(OR(Import!M11530=0,Import!M11530=\"\"),P47,Import!M11530)","v":0},null,{"$f":"IF(OR(Import!M11552=0,Import!M11552=\"\"),R47,Import!M11552)","v":0},null,null,null,0,null,null,null,0.25]
[null,24,"Preferred Stocks, BSCR Rating 7",{"$f":"Import!M11377","v":0},null,{"$f":"IF(OR(Import!M11399=0,Import!M11399=\"\"),(1-$AB48)*D48,Import!M11399)","v":0},null,{"$f":"Import!M11421","v":0},null,{"$f":"IF(OR(Import!M11443=0,Import!M11443=\"\"),(1-$AB48)*H48,Import!M11443)","v":0},null,{"$f":"Import!M11465","v":0},null,{"$f":"IF(OR(Import!M11487=0,Import!M11487=\"\"),(1-$AB48)*L48,Import!M11487)","v":0},null,{"$f":"Import!M11509","v":0},null,{"$f":"IF(OR(Import!M11531=0,Import!M11531=\"\"),P48,Import!M11531)","v":0},null,{"$f":"IF(OR(Import!M11553=0,Import!M11553=\"\"),R48,Import!M11553)","v":0},null,null,null,0,null,null,null,0.35]
[null,25,"Preferred Stocks, BSCR Rating 8",{"$f":"Import!M11378","v":0},null,{"$f":"IF(OR(Import!M11400=0,Import!M11400=\"\"),(1-$AB49)*D49,Import!M11400)","v":0},null,{"$f":"Import!M11422","v":0},null,{"$f":"IF(OR(Import!M11444=0,Import!M11444=\"\"),(1-$AB49)*H49,Import!M11444)","v":0},null,{"$f":"Import!M11466","v":0},null,{"$f":"IF(OR(Import!M11488=0,Import!M11488=\"\"),(1-$AB49)*L49,Import!M11488)","v":0},null,{"$f":"Import!M11510","v":0},null,{"$f":"IF(OR(Import!M11532=0,Import!M11532=\"\"),P49,Import!M11532)","v":0},null,{"$f":"IF(OR(Import!M11554=0,Import!M11554=\"\"),R49,Import!M11554)","v":0},null,null,null,0,null,null,null,0.35]
[null,26,"Equity Derivatives on Type 1 Equities",{"$f":"Import!M11379","v":0},null,{"$f":"Import!M11401","v":0},null,{"$f":"Import!M11423","v":0},null,{"$f":"Import!M11445","v":0},null,{"$f":"Import!M11467","v":0},null,{"$f":"Import!M11489","v":0},null,{"$f":"Import!M11511","v":0},null,{"$f":"IF(OR(Import!M11533=0,Import!M11533=\"\"),P50,Import!M11533)","v":0},null,{"$f":"IF(OR(Import!M11555=0,Import!M11555=\"\"),R50,Import!M11555)","v":0},null,null,null,0,null,null,null,0.35]
[null,27,"Strategic Holdings - Unlisted",{"$f":"Import!M11380","v":0},null,{"$f":"IF(OR(Import!M11402=0,Import!M11402=\"\"),(1-$AB51)*D51,Import!M11402)","v":0},null,{"$f":"Import!M11424","v":0},null,{"$f":"IF(OR(Import!M11446=0,Import!M11446=\"\"),(1-$AB51)*H51,Import!M11446)","v":0},null,{"$f":"Import!M11468","v":0},null,{"$f":"IF(OR(Import!M11490=0,Import!M11490=\"\"),(1-$AB51)*L51,Import!M11490)","v":0},null,{"$f":"Import!M11512","v":0},null,{"$f":"IF(OR(Import!M11534=0,Import!M11534=\"\"),P51,Import!M11534)","v":0},null,{"$f":"IF(OR(Import!M11556=0,Import!M11556=\"\"),R51,Import!M11556)","v":0},null,null,null,0,null,null,null,0.2]
[null,28,"Other Equities / Other Assets",{"$f":"Import!M11381","v":0},null,{"$f":"IF(OR(Import!M11403=0,Import!M11403=\"\"),(1-$AB52)*D52,Import!M11403)","v":0},null,{"$f":"Import!M11425","v":0},null,{"$f":"IF(OR(Import!M11447=0,Import!M11447=\"\"),(1-$AB52)*H52,Import!M11447)","v":0},null,{"$f":"Import!M11469","v":0},null,{"$f":"IF(OR(Import!M11491=0,Import!M11491=\"\"),(1-$AB52)*L52,Import!M11491)","v":0},null,{"$f":"Import!M11513","v":0},null,{"$f":"IF(OR(Import!M11535=0,Import!M11535=\"\"),P52,Import!M11535)","v":0},null,{"$f":"IF(OR(Import!M11557=0,Import!M11557=\"\"),R52,Import!M11557)","v":0},null,null,null,0,null,null,null,0.45]
[null,29,"Letters of Credit",{"$f":"Import!M11382","v":0},null,{"$f":"IF(OR(Import!M11404=0,Import!M11404=\"\"),(1-$AB53)*D53,Import!M11404)","v":0},null,{"$f":"Import!M11426","v":0},null,{"$f":"IF(OR(Import!M11448=0,Import!M11448=\"\"),(1-$AB53)*H53,Import!M11448)","v":0},null,{"$f":"Import!M11470","v":0},null,{"$f":"IF(OR(Import!M11492=0,Import!M11492=\"\"),(1-$AB53)*L53,Import!M11492)","v":0},null,{"$f":"Import!M11514","v":0},null,{"$f":"IF(OR(Import!M11536=0,Import!M11536=\"\"),P53,Import!M11536)","v":0},null,{"$f":"IF(OR(Import!M11558=0,Import!M11558=\"\"),R53,Import!M11558)","v":0},null,null,null,0,null,null,null,0.2]
[null,30,"Intangible assets",{"$f":"Import!M11383","v":0},null,{"$f":"IF(OR(Import!M11405=0,Import!M11405=\"\"),(1-$AB54)*D54,Import!M11405)","v":0},null,{"$f":"Import!M11427","v":0},null,{"$f":"IF(OR(Import!M11449=0,Import!M11449=\"\"),(1-$AB54)*H54,Import!M11449)","v":0},null,{"$f":"Import!M11471","v":0},null,{"$f":"IF(OR(Import!M11493=0,Import!M11493=\"\"),(1-$AB54)*L54,Import!M11493)","v":0},null,{"$f":"Import!M11515","v":0},null,{"$f":"IF(OR(Import!M11537=0,Import!M11537=\"\"),P54,Import!M11537)","v":0},null,{"$f":"IF(OR(Import!M11559=0,Import!M11559=\"\"),R54,Import!M11559)","v":0},null,null,null,0,null,null,null,0.2]
[null,31,"Pension Benefit Surplus",{"$f":"Import!M11384","v":0},null,{"$f":"IF(OR(Import!M11406=0,Import!M11406=\"\"),(1-$AB55)*D55,Import!M11406)","v":0},null,{"$f":"Import!M11428","v":0},null,{"$f":"IF(OR(Import!M11450=0,Import!M11450=\"\"),(1-$AB55)*H55,Import!M11450)","v":0},null,{"$f":"Import!M11472","v":0},null,{"$f":"IF(OR(Import!M11494=0,Import!M11494=\"\"),(1-$AB55)*L55,Import!M11494)","v":0},null,{"$f":"Import!M11516","v":0},null,{"$f":"IF(OR(Import!M11538=0,Import!M11538=\"\"),P55,Import!M11538)","v":0},null,{"$f":"IF(OR(Import!M11560=0,Import!M11560=\"\"),R55,Import!M11560)","v":0},null,null,null,0,null,null,null,0.2]
[null,32,"Equity Derivatives on Type 2 Equities",{"$f":"Import!M11385","v":0},null,{"$f":"Import!M11407","v":0},null,{"$f":"Import!M11429","v":0},null,{"$f":"Import!M11451","v":0},null,{"$f":"Import!M11473","v":0},null,{"$f":"Import!M11495","v":0},null,{"$f":"Import!M11517","v":0},null,{"$f":"IF(OR(Import!M11539=0,Import!M11539=\"\"),P56,Import!M11539)","v":0},null,{"$f":"IF(OR(Import!M11561=0,Import!M11561=\"\"),R56,Import!M11561)","v":0},null,null,null,0,null,null,null,0.45]
[null,33,"Infrastructure",{"$f":"Import!M11386","v":0},null,{"$f":"IF(OR(Import!M11408=0,Import!M11408=\"\"),(1-$AB57)*D57,Import!M11408)","v":0},null,{"$f":"Import!M11430","v":0},null,{"$f":"IF(OR(Import!M11452=0,Import!M11452=\"\"),(1-$AB57)*H57,Import!M11452)","v":0},null,{"$f":"Import!M11474","v":0},null,{"$f":"IF(OR(Import!M11496=0,Import!M11496=\"\"),(1-$AB57)*L57,Import!M11496)","v":0},null,{"$f":"Import!M11518","v":0},null,{"$f":"IF(OR(Import!M11540=0,Import!M11540=\"\"),P57,Import!M11540)","v":0},null,{"$f":"IF(OR(Import!M11562=0,Import!M11562=\"\"),R57,Import!M11562)","v":0},null,null,null,0,null,null,null,0.25]
[null,34,"Derivatives on Infrastructure",{"$f":"Import!M11387","v":0},null,{"$f":"Import!M11409","v":0},null,{"$f":"Import!M11431","v":0},null,{"$f":"Import!M11453","v":0},null,{"$f":"Import!M11475","v":0},null,{"$f":"Import!M11497","v":0},null,{"$f":"Import!M11519","v":0},null,{"$f":"IF(OR(Import!M11541=0,Import!M11541=\"\"),P58,Import!M11541)","v":0},null,{"$f":"IF(OR(Import!M11563=0,Import!M11563=\"\"),R58,Import!M11563)","v":0},null,null,null,0,null,null,null,0.25]
[null,35,"Equity Real Estate 1",{"$f":"Import!M11388","v":0},null,{"$f":"IF(OR(Import!M11410=0,Import!M11410=\"\"),(1-$AB59)*D59,Import!M11410)","v":0},null,{"$f":"Import!M11432","v":0},null,{"$f":"IF(OR(Import!M11454=0,Import!M11454=\"\"),(1-$AB59)*H59,Import!M11454)","v":0},null,{"$f":"Import!M11476","v":0},null,{"$f":"IF(OR(Import!M11498=0,Import!M11498=\"\"),(1-$AB59)*L59,Import!M11498)","v":0},null,{"$f":"Import!M11520","v":0},null,{"$f":"IF(OR(Import!M11542=0,Import!M11542=\"\"),P59,Import!M11542)","v":0},null,{"$f":"IF(OR(Import!M11564=0,Import!M11564=\"\"),R59,Import!M11564)","v":0},null,null,null,0,null,null,null,0.1]
[null,36,"Equity Real Estate 2",{"$f":"Import!M11389","v":0},null,{"$f":"IF(OR(Import!M11411=0,Import!M11411=\"\"),(1-$AB60)*D60,Import!M11411)","v":0},null,{"$f":"Import!M11433","v":0},null,{"$f":"IF(OR(Import!M11455=0,Import!M11455=\"\"),(1-$AB60)*H60,Import!M11455)","v":0},null,{"$f":"Import!M11477","v":0},null,{"$f":"IF(OR(Import!M11499=0,Import!M11499=\"\"),(1-$AB60)*L60,Import!M11499)","v":0},null,{"$f":"Import!M11521","v":0},null,{"$f":"IF(OR(Import!M11543=0,Import!M11543=\"\"),P60,Import!M11543)","v":0},null,{"$f":"IF(OR(Import!M11565=0,Import!M11565=\"\"),R60,Import!M11565)","v":0},null,null,null,0,null,null,null,0.2]
[]
[null,{"$f":"B60+1","v":37},"Total Equity Holdings",{"$f":"SUM(D38:D61)","v":0},null,{"$f":"SUM(F38:F61)","v":0},null,{"$f":"SUM(H38:H61)","v":0},null,{"$f":"SUM(J38:J61)","v":0},null,{"$f":"SUM(L38:L61)","v":0},null,{"$f":"SUM(N38:N61)","v":0},null,{"$f":"SUM(P38:P61)","v":0},null,{"$f":"SUM(R38:R61)","v":0},null,{"$f":"SUM(T38:T61)","v":0},null,null,null,{"$f":"SUM(X38:X61)","v":0},null,null,null,null,null,null,"brrt_RiskGradeAxis_brrt_TotalMember"]
[]
[null,null,null,"Spread Up",null,null,null,null,null,null,null,null,null,"Spread Down"]
[null,null,null,"Long Exposures",null,null,null,"Short Exposures",null,null,null,"Shock (bps)",null,"Long Exposures",null,null,null,"Short Exposures",null,null,{"$f":"SUM(K69:K77)","v":0},"Shock Rates"]
[null,null,null,"Before Shock",null,"After Shock",null,"Before Shock",null,"After Shock",null,null,null,"Before Shock",null,"After Shock",null,"Before Shock",null,"After Shock"]
[null,null,"Spread Risk for Credit Derivatives",null,null,null,null,null,null,null,null,null,null,null,null,null,{"$f":"SUM(G71:G79)","v":0},null,{"$f":"SUM(I71:I79)","v":0},null,{"$f":"SUM(K71:K79)","v":0}]
[null,{"$f":"B62+1","v":38},"BSCR Rating 0",{"$f":"Import!M11566","v":0},null,{"$f":"Import!M11575","v":0},null,{"$f":"Import!M11584","v":0},null,{"$f":"Import!M11593","v":0},null,0,null,{"$f":"Import!M11602","v":0},null,{"$f":"Import!M11611","v":0},{"$f":"SUM(G72:G80)","v":0},{"$f":"Import!M11620","v":0},{"$f":"SUM(I72:I80)","v":0},{"$f":"Import!M11629","v":0},{"$f":"SUM(K72:K80)","v":0},0]
[null,{"$f":"B68+1","v":39},"BSCR Rating 1",{"$f":"Import!M11567","v":0},null,{"$f":"Import!M11576","v":0},null,{"$f":"Import!M11585","v":0},null,{"$f":"Import!M11594","v":0},null,130,null,{"$f":"Import!M11603","v":0},null,{"$f":"Import!M11612","v":0},{"$f":"SUM(G73:G80)","v":0},{"$f":"Import!M11621","v":0},{"$f":"SUM(I73:I80)","v":0},{"$f":"Import!M11630","v":0},{"$f":"SUM(K73:K80)","v":0},-0.75]
[null,{"$f":"B69+1","v":40},"BSCR Rating 2",{"$f":"Import!M11568","v":0},null,{"$f":"Import!M11577","v":0},null,{"$f":"Import!M11586","v":0},null,{"$f":"Import!M11595","v":0},null,150,null,{"$f":"Import!M11604","v":0},null,{"$f":"Import!M11613","v":0},{"$f":"SUM(G74:G80)","v":0},{"$f":"Import!M11622","v":0},{"$f":"SUM(I74:I80)","v":0},{"$f":"Import!M11631","v":0},{"$f":"SUM(K74:K80)","v":0},-0.75]
[null,41,"BSCR Rating 3",{"$f":"Import!M11569","v":0},null,{"$f":"Import!M11578","v":0},null,{"$f":"Import!M11587","v":0},null,{"$f":"Import!M11596","v":0},null,260,null,{"$f":"Import!M11605","v":0},null,{"$f":"Import!M11614","v":0},{"$f":"SUM(G75:G80)","v":0},{"$f":"Import!M11623","v":0},{"$f":"SUM(I75:I80)","v":0},{"$f":"Import!M11632","v":0},{"$f":"SUM(K75:K80)","v":0},-0.75]
[null,42,"BSCR Rating 4",{"$f":"Import!M11570","v":0},null,{"$f":"Import!M11579","v":0},null,{"$f":"Import!M11588","v":0},null,{"$f":"Import!M11597","v":0},null,450,null,{"$f":"Import!M11606","v":0},null,{"$f":"Import!M11615","v":0},{"$f":"SUM(G76:G80)","v":0},{"$f":"Import!M11624","v":0},{"$f":"SUM(I76:I80)","v":0},{"$f":"Import!M11633","v":0},{"$f":"SUM(K76:K80)","v":0},-0.75]
[null,43,"BSCR Rating 5",{"$f":"Import!M11571","v":0},null,{"$f":"Import!M11580","v":0},null,{"$f":"Import!M11589","v":0},null,{"$f":"Import!M11598","v":0},null,840,null,{"$f":"Import!M11607","v":0},null,{"$f":"Import!M11616","v":0},{"$f":"SUM(G77:G80)","v":0},{"$f":"Import!M11625","v":0},{"$f":"SUM(I77:I80)","v":0},{"$f":"Import!M11634","v":0},{"$f":"SUM(K77:K80)","v":0},-0.75]
[null,44,"BSCR Rating 6",{"$f":"Import!M11572","v":0},null,{"$f":"Import!M11581","v":0},null,{"$f":"Import!M11590","v":0},null,{"$f":"Import!M11599","v":0},null,1620,null,{"$f":"Import!M11608","v":0},null,{"$f":"Import!M11617","v":0},{"$f":"SUM(G78:G80)","v":0},{"$f":"Import!M11626","v":0},{"$f":"SUM(I78:I80)","v":0},{"$f":"Import!M11635","v":0},{"$f":"SUM(K78:K80)","v":0},-0.75]
[null,45,"BSCR Rating 7",{"$f":"Import!M11573","v":0},null,{"$f":"Import!M11582","v":0},null,{"$f":"Import!M11591","v":0},null,{"$f":"Import!M11600","v":0},null,1620,null,{"$f":"Import!M11609","v":0},null,{"$f":"Import!M11618","v":0},{"$f":"SUM(Q64:Q74)","v":0},{"$f":"Import!M11627","v":0},{"$f":"SUM(S64:S74)","v":0},{"$f":"Import!M11636","v":0},{"$f":"SUM(U64:U74)","v":0},-0.75]
[null,46,"BSCR Rating 8",{"$f":"Import!M11574","v":0},null,{"$f":"Import!M11583","v":0},null,{"$f":"Import!M11592","v":0},null,{"$f":"Import!M11601","v":0},null,1620,null,{"$f":"Import!M11610","v":0},null,{"$f":"Import!M11619","v":0},{"$f":"SUM(Q66:Q75)","v":0},{"$f":"Import!M11628","v":0},{"$f":"SUM(S66:S75)","v":0},{"$f":"Import!M11637","v":0},{"$f":"SUM(U66:U75)","v":0},-0.75]
[null,47,"Total Spread",{"$f":"SUM(D67:D76)","v":0},null,{"$f":"SUM(F67:F76)","v":0},null,{"$f":"SUM(H67:H76)","v":0},null,{"$f":"SUM(J67:J76)","v":0},null,null,null,{"$f":"SUM(N67:N76)","v":0},null,{"$f":"SUM(P67:P76)","v":0},{"$f":"SUM(Q67:Q76)","v":0},{"$f":"SUM(R67:R76)","v":0},{"$f":"SUM(S67:S76)","v":0},{"$f":"SUM(T67:T76)","v":0},{"$f":"SUM(U67:U76)","v":0}]
[]
[null,null,"Spread Risk Check",null,null,null,null,null,null,null,null,null,null,{"$f":"IF(ROUND(D77-N77,0)=0,\"Yes\",\"No\")","v":"Yes"},null,null,null,{"$f":"IF(ROUND(H77-R77,0)=0,\"Yes\",\"No\")","v":"Yes"}]
[null,null,"Difference",null,null,null,null,null,null,null,null,null,null,{"$f":"ROUND(D77-N77,0)","v":0},null,null,null,{"$f":"ROUND(H77-R77,0)","v":0}]
[]
[null,null,null,"Market Value of Derivatives with Positive Market Value",null,"Market Value of Derivatives with Negative Market Value",null,"Market Value of Collateral, Excluding any over-collateralization",null,null,null,"This Section is Only Applicable to Companies that have Mortgage Backed Securities that have been Reclassified in Accordance with the NAIC and that elect to use NAIC reclassifications to map to the BSCR classes"]
[null,null,"Counterparty Default Risk for OTC Derivatives",null,null,null,null,null,null,null,null,null,"VALUES OF RESIDENTIAL MORTGAGE BACKED SECURITIES",null,null,null,"VALUES OF COMMERCIAL MORTGAGE BACKED SECURITIES / ASSET BACKED SECURITIES"]
[null,{"$f":"B77+1","v":48},"BSCR Rating 0",{"$f":"Import!M11638","v":0},null,{"$f":"Import!M11647","v":0},null,{"$f":"Import!M11656","v":0},null,null,null,null,null,"Original Classification",null,"Revised Classification",null,"Original Classification",null,"Revised Classification"]
[null,{"$f":"B84+1","v":49},"BSCR Rating 1",{"$f":"Import!M11639","v":0},null,{"$f":"Import!M11648","v":0},null,{"$f":"Import!M11657","v":0}]
[null,{"$f":"B85+1","v":50},"BSCR Rating 2",{"$f":"Import!M11640","v":0},null,{"$f":"Import!M11649","v":0},null,{"$f":"Import!M11658","v":0},null,null,null,"NAIC Class 1",null,{"$f":"Import!M11666","v":0},null,{"$f":"Import!M11673","v":0},null,{"$f":"Import!M11680","v":0},null,{"$f":"Import!M11687","v":0}]
[null,51,"BSCR Rating 3",{"$f":"Import!M11641","v":0},null,{"$f":"Import!M11650","v":0},null,{"$f":"Import!M11659","v":0},null,null,null,"NAIC Class 2",null,{"$f":"Import!M11667","v":0},null,{"$f":"Import!M11674","v":0},null,{"$f":"Import!M11681","v":0},null,{"$f":"Import!M11688","v":0}]
[null,52,"BSCR Rating 4",{"$f":"Import!M11642","v":0},null,{"$f":"Import!M11651","v":0},null,{"$f":"Import!M11660","v":0},null,null,null,"NAIC Class 3",null,{"$f":"Import!M11668","v":0},null,{"$f":"Import!M11675","v":0},null,{"$f":"Import!M11682","v":0},null,{"$f":"Import!M11689","v":0}]
[null,53,"BSCR Rating 5",{"$f":"Import!M11643","v":0},null,{"$f":"Import!M11652","v":0},null,{"$f":"Import!M11661","v":0},null,null,null,"NAIC Class 4",null,{"$f":"Import!M11669","v":0},null,{"$f":"Import!M11676","v":0},null,{"$f":"Import!M11683","v":0},null,{"$f":"Import!M11690","v":0}]
[null,54,"BSCR Rating 6",{"$f":"Import!M11644","v":0},null,{"$f":"Import!M11653","v":0},null,{"$f":"Import!M11662","v":0},null,null,null,"NAIC Class 5",null,{"$f":"Import!M11670","v":0},null,{"$f":"Import!M11677","v":0},null,{"$f":"Import!M11684","v":0},null,{"$f":"Import!M11691","v":0}]
[null,55,"BSCR Rating 7",{"$f":"Import!M11645","v":0},null,{"$f":"Import!M11654","v":0},null,{"$f":"Import!M11663","v":0},null,null,null,"NAIC Class 6",null,{"$f":"Import!M11671","v":0},null,{"$f":"Import!M11678","v":0},null,{"$f":"Import!M11685","v":0},null,{"$f":"Import!M11692","v":0}]
[null,56,"BSCR Rating 8",{"$f":"Import!M11646","v":0},null,{"$f":"Import!M11655","v":0},null,{"$f":"Import!M11664","v":0},null,null,null,{"$f":"IF('Company Information'!$F$11=\"Class 3A\",HYPERLINK(\"#'Attachments'!G45\",\"Attach file\"),HYPERLINK(\"#'Attachments'!G65\",\"Attach file\"))","v":"Attach file"},null,{"$f":"SUM(N86:N91)","v":0},null,{"$f":"SUM(P86:P91)","v":0},null,{"$f":"SUM(R86:R91)","v":0},null,{"$f":"SUM(T86:T91)","v":0}]
[null,57,"Total Default Risk for OTC Derivatives ",{"$f":"SUM(D83:D92)","v":0},null,{"$f":"SUM(F83:F92)","v":0},null,{"$f":"SUM(H83:H92)","v":0},null,null,null,null,null,null,{"$f":"SUM(N86:N91)","v":0},null,{"$f":"SUM(P86:P91)","v":0},null,{"$f":"SUM(R86:R91)","v":0}]
[]
[null,{"$f":"B93+1","v":58},"Cash and Cash Equivalents",{"$f":"Import!M11665","v":0}]
[]
[null,{"$f":"B95+1","v":59},"Total Fixed Income & Equity Investments",{"$f":"X27+X62+D77+H77+D93+F93+H93+D95","v":0}]
[]
[]
[]
[]
[null,null,null,{"$f":"IF(D9=\"\",\"\",TEXT(DATE(YEAR(D9+1)-1,MONTH(D9+1),DAY(D9+1)),\"mm/dd/yyyy\"))","v":"01/01/2019"},null,{"$f":"IF(F9=\"\",\"\",TEXT(DATE(YEAR(F9+1)-1,MONTH(F9+1),DAY(F9+1)),\"mm/dd/yyyy\"))","v":"01/01/2018"}]
[null,null,null,{"$f":"IF(D9=\"\",\"\",TEXT(D9,\"mm/dd/yyyy\"))","v":"12/31/2019"},null,{"$f":"IF(F9=\"\",\"\",TEXT(F9,\"mm/dd/yyyy\"))","v":"12/31/2018"}]
[null,null,null,"brrt_BondsAndDebentures",null,"brrt_BondsAndDebentures",null,"brrt_BondsAndDebentures",null,"brrt_BondsAndDebentures",null,"brrt_BondsAndDebentures",null,"brrt_BondsAndDebentures",null,"brrt_BondsAndDebentures",null,"brrt_BondsAndDebentures",null,"brrt_BondsAndDebentures",null,"brrt_BondsAndDebentures"]
[null,null,null,"brrt_SecurityTypeAxis_brrt_CorporateSovereignBondsMember",null,"brrt_SecurityTypeAxis_brrt_CorporateSovereignBondsMember",null,"brrt_SecurityTypeAxis_brrt_ResidentialMortgageBackedSecuritiesMember",null,"brrt_SecurityTypeAxis_brrt_ResidentialMortgageBackedSecuritiesMember",null,"brrt_SecurityTypeAxis_brrt_CommercialMortgageBackedSecuritiesAssetBackedSecuritiesMember",null,"brrt_SecurityTypeAxis_brrt_CommercialMortgageBackedSecuritiesAssetBackedSecuritiesMember",null,"brrt_SecurityTypeAxis_brrt_MutualFundsMember",null,"brrt_SecurityTypeAxis_brrt_MutualFundsMember",null,"brrt_SecurityTypeAxis_brrt_TotalMember",null,"brrt_SecurityTypeAxis_brrt_TotalMember"]
[null,null,null,{"$f":"XBRLMap(D13,D$104&\".\"&$AE13&\".\"&$D$105,$D$102,$D$103,CONFIGURATION!$B$10,\"BMA\",CONFIGURATION!$B$1,\"bscr\",CONFIGURATION!$B$12)","v":"Mapped"},null,{"$f":"XBRLMap(F13,F$104&\".\"&$AE13&\".\"&$F$105,$F$102,$F$103,CONFIGURATION!$B$10,\"BMA\",CONFIGURATION!$B$1,\"bscr\",CONFIGURATION!$B$12)","v":"Mapped"},null,null,null,null,null,null,null,null,null,{"$f":"XBRLMap(P13,P$104&\".\"&$AE13&\".\"&$P$105,$D$102,$D$103,CONFIGURATION!$B$10,\"BMA\",CONFIGURATION!$B$1,\"bscr\",CONFIGURATION!$B$12)","v":"Mapped"},null,{"$f":"XBRLMap(R13,R$104&\".\"&$AE13&\".\"&$R$105,$F$102,$F$103,CONFIGURATION!$B$10,\"BMA\",CONFIGURATION!$B$1,\"bscr\",CONFIGURATION!$B$12)","v":"Mapped"},null,{"$f":"XBRLMap(X13,T$104&\".\"&$AE13&\".\"&$T$105,$D$102,$D$103,CONFIGURATION!$B$10,\"BMA\",CONFIGURATION!$B$1,\"bscr\",CONFIGURATION!$B$12)","v":"Mapped"},null,{"$f":"XBRLMap(Z13,V$104&\".\"&$AE13&\".\"&$V$105,$F$102,$F$103,CONFIGURATION!$B$10,\"BMA\",CONFIGURATION!$B$1,\"bscr\",CONFIGURATION!$B$12)","v":"Mapped"}]
[null,null,null,{"$f":"XBRLMap(D14,D$104&\".\"&$AE14&\".\"&$D$105,$D$102,$D$103,CONFIGURATION!$B$10,\"BMA\",CONFIGURATION!$B$1,\"bscr\",CONFIGURATION!$B$12)","v":"Mapped"},null,{"$f":"XBRLMap(F14,F$104&\".\"&$AE14&\".\"&$F$105,$F$102,$F$103,CONFIGURATION!$B$10,\"BMA\",CONFIGURATION!$B$1,\"bscr\",CONFIGURATION!$B$12)","v":"Mapped"},null,{"$f":"XBRLMap(H14,H$104&\".\"&$AE14&\".\"&$H$105,$D$102,$D$103,CONFIGURATION!$B$10,\"BMA\",CONFIGURATION!$B$1,\"bscr\",CONFIGURATION!$B$12)","v":"Mapped"},null,{"$f":"XBRLMap(J14,J$104&\".\"&$AE14&\".\"&$J$105,$F$102,$F$103,CONFIGURATION!$B$10,\"BMA\",CONFIGURATION!$B$1,\"bscr\",CONFIGURATION!$B$12)","v":"Mapped"},null,{"$f":"XBRLMap(L14,L$104&\".\"&$AE14&\".\"&$L$105,$D$102,$D$103,CONFIGURATION!$B$10,\"BMA\",CONFIGURATION!$B$1,\"bscr\",CONFIGURATION!$B$12)","v":"Mapped"},null,{"$f":"XBRLMap(N14,N$104&\".\"&$AE14&\".\"&$N$105,$F$102,$F$103,CONFIGURATION!$B$10,\"BMA\",CONFIGURATION!$B$1,\"bscr\",CONFIGURATION!$B$12)","v":"Mapped"},null,{"$f":"XBRLMap(P14,P$104&\".\"&$AE14&\".\"&$P$105,$D$102,$D$103,CONFIGURATION!$B$10,\"BMA\",CONFIGURATION!$B$1,\"bscr\",CONFIGURATION!$B$12)","v":"Mapped"},null,{"$f":"XBRLMap(R14,R$104&\".\"&$AE14&\".\"&$R$105,$F$102,$F$103,CONFIGURATION!$B$10,\"BMA\",CONFIGURATION!$B$1,\"bscr\",CONFIGURATION!$B$12)","v":"Mapped"},null,{"$f":"XBRLMap(X14,T$104&\".\"&$AE14&\".\"&$T$105,$D$102,$D$103,CONFIGURATION!$B$10,\"BMA\",CONFIGURATION!$B$1,\"bscr\",CONFIGURATION!$B$12)","v":"Mapped"},null,{"$f":"XBRLMap(Z14,V$104&\".\"&$AE14&\".\"&$V$105,$F$102,$F$103,CONFIGURATION!$B$10,\"BMA\",CONFIGURATION!$B$1,\"bscr\",CONFIGURATION!$B$12)","v":"Mapped"}]
[null,null,null,{"$f":"XBRLMap(D15,D$104&\".\"&$AE15&\".\"&$D$105,$D$102,$D$103,CONFIGURATION!$B$10,\"BMA\",CONFIGURATION!$B$1,\"bscr\",CONFIGURATION!$B$12)","v":"Mapped"},null,{"$f":"XBRLMap(F15,F$104&\".\"&$AE15&\".\"&$F$105,$F$102,$F$103,CONFIGURATION!$B$10,\"BMA\",CONFIGURATION!$B$1,\"bscr\",CONFIGURATION!$B$12)","v":"Mapped"},null,{"$f":"XBRLMap(H15,H$104&\".\"&$AE15&\".\"&$H$105,$D$102,$D$103,CONFIGURATION!$B$10,\"BMA\",CONFIGURATION!$B$1,\"bscr\",CONFIGURATION!$B$12)","v":"Mapped"},null,{"$f":"XBRLMap(J15,J$104&\".\"&$AE15&\".\"&$J$105,$F$102,$F$103,CONFIGURATION!$B$10,\"BMA\",CONFIGURATION!$B$1,\"bscr\",CONFIGURATION!$B$12)","v":"Mapped"},null,{"$f":"XBRLMap(L15,L$104&\".\"&$AE15&\".\"&$L$105,$D$102,$D$103,CONFIGURATION!$B$10,\"BMA\",CONFIGURATION!$B$1,\"bscr\",CONFIGURATION!$B$12)","v":"Mapped"},null,{"$f":"XBRLMap(N15,N$104&\".\"&$AE15&\".\"&$N$105,$F$102,$F$103,CONFIGURATION!$B$10,\"BMA\",CONFIGURATION!$B$1,\"bscr\",CONFIGURATION!$B$12)","v":"Mapped"},null,{"$f":"XBRLMap(P15,P$104&\".\"&$AE15&\".\"&$P$105,$D$102,$D$103,CONFIGURATION!$B$10,\"BMA\",CONFIGURATION!$B$1,\"bscr\",CONFIGURATION!$B$12)","v":"Mapped"},null,{"$f":"XBRLMap(R15,R$104&\".\"&$AE15&\".\"&$R$105,$F$102,$F$103,CONFIGURATION!$B$10,\"BMA\",CONFIGURATION!$B$1,\"bscr\",CONFIGURATION!$B$12)","v":"Mapped"},null,{"$f":"XBRLMap(X15,T$104&\".\"&$AE15&\".\"&$T$105,$D$102,$D$103,CONFIGURATION!$B$10,\"BMA\",CONFIGURATION!$B$1,\"bscr\",CONFIGURATION!$B$12)","v":"Mapped"},null,{"$f":"XBRLMap(Z15,V$104&\".\"&$AE15&\".\"&$V$105,$F$102,$F$103,CONFIGURATION!$B$10,\"BMA\",CONFIGURATION!$B$1,\"bscr\",CONFIGURATION!$B$12)","v":"Mapped"}]
[null,null,null,{"$f":"XBRLMap(D16,D$104&\".\"&$AE16&\".\"&$D$105,$D$102,$D$103,CONFIGURATION!$B$10,\"BMA\",CONFIGURATION!$B$1,\"bscr\",CONFIGURATION!$B$12)","v":"Mapped"},null,{"$f":"XBRLMap(F16,F$104&\".\"&$AE16&\".\"&$F$105,$F$102,$F$103,CONFIGURATION!$B$10,\"BMA\",CONFIGURATION!$B$1,\"bscr\",CONFIGURATION!$B$12)","v":"Mapped"},null,{"$f":"XBRLMap(H16,H$104&\".\"&$AE16&\".\"&$H$105,$D$102,$D$103,CONFIGURATION!$B$10,\"BMA\",CONFIGURATION!$B$1,\"bscr\",CONFIGURATION!$B$12)","v":"Mapped"},null,{"$f":"XBRLMap(J16,J$104&\".\"&$AE16&\".\"&$J$105,$F$102,$F$103,CONFIGURATION!$B$10,\"BMA\",CONFIGURATION!$B$1,\"bscr\",CONFIGURATION!$B$12)","v":"Mapped"},null,{"$f":"XBRLMap(L16,L$104&\".\"&$AE16&\".\"&$L$105,$D$102,$D$103,CONFIGURATION!$B$10,\"BMA\",CONFIGURATION!$B$1,\"bscr\",CONFIGURATION!$B$12)","v":"Mapped"},null,{"$f":"XBRLMap(N16,N$104&\".\"&$AE16&\".\"&$N$105,$F$102,$F$103,CONFIGURATION!$B$10,\"BMA\",CONFIGURATION!$B$1,\"bscr\",CONFIGURATION!$B$12)","v":"Mapped"},null,{"$f":"XBRLMap(P16,P$104&\".\"&$AE16&\".\"&$P$105,$D$102,$D$103,CONFIGURATION!$B$10,\"BMA\",CONFIGURATION!$B$1,\"bscr\",CONFIGURATION!$B$12)","v":"Mapped"},null,{"$f":"XBRLMap(R16,R$104&\".\"&$AE16&\".\"&$R$105,$F$102,$F$103,CONFIGURATION!$B$10,\"BMA\",CONFIGURATION!$B$1,\"bscr\",CONFIGURATION!$B$12)","v":"Mapped"},null,{"$f":"XBRLMap(X16,T$104&\".\"&$AE16&\".\"&$T$105,$D$102,$D$103,CONFIGURATION!$B$10,\"BMA\",CONFIGURATION!$B$1,\"bscr\",CONFIGURATION!$B$12)","v":"Mapped"},null,{"$f":"XBRLMap(Z16,V$104&\".\"&$AE16&\".\"&$V$105,$F$102,$F$103,CONFIGURATION!$B$10,\"BMA\",CONFIGURATION!$B$1,\"bscr\",CONFIGURATION!$B$12)","v":"Mapped"}]
[null,null,null,{"$f":"XBRLMap(D17,D$104&\".\"&$AE17&\".\"&$D$105,$D$102,$D$103,CONFIGURATION!$B$10,\"BMA\",CONFIGURATION!$B$1,\"bscr\",CONFIGURATION!$B$12)","v":"Mapped"},null,{"$f":"XBRLMap(F17,F$104&\".\"&$AE17&\".\"&$F$105,$F$102,$F$103,CONFIGURATION!$B$10,\"BMA\",CONFIGURATION!$B$1,\"bscr\",CONFIGURATION!$B$12)","v":"Mapped"},null,{"$f":"XBRLMap(H17,H$104&\".\"&$AE17&\".\"&$H$105,$D$102,$D$103,CONFIGURATION!$B$10,\"BMA\",CONFIGURATION!$B$1,\"bscr\",CONFIGURATION!$B$12)","v":"Mapped"},null,{"$f":"XBRLMap(J17,J$104&\".\"&$AE17&\".\"&$J$105,$F$102,$F$103,CONFIGURATION!$B$10,\"BMA\",CONFIGURATION!$B$1,\"bscr\",CONFIGURATION!$B$12)","v":"Mapped"},null,{"$f":"XBRLMap(L17,L$104&\".\"&$AE17&\".\"&$L$105,$D$102,$D$103,CONFIGURATION!$B$10,\"BMA\",CONFIGURATION!$B$1,\"bscr\",CONFIGURATION!$B$12)","v":"Mapped"},null,{"$f":"XBRLMap(N17,N$104&\".\"&$AE17&\".\"&$N$105,$F$102,$F$103,CONFIGURATION!$B$10,\"BMA\",CONFIGURATION!$B$1,\"bscr\",CONFIGURATION!$B$12)","v":"Mapped"},null,{"$f":"XBRLMap(P17,P$104&\".\"&$AE17&\".\"&$P$105,$D$102,$D$103,CONFIGURATION!$B$10,\"BMA\",CONFIGURATION!$B$1,\"bscr\",CONFIGURATION!$B$12)","v":"Mapped"},null,{"$f":"XBRLMap(R17,R$104&\".\"&$AE17&\".\"&$R$105,$F$102,$F$103,CONFIGURATION!$B$10,\"BMA\",CONFIGURATION!$B$1,\"bscr\",CONFIGURATION!$B$12)","v":"Mapped"},null,{"$f":"XBRLMap(X17,T$104&\".\"&$AE17&\".\"&$T$105,$D$102,$D$103,CONFIGURATION!$B$10,\"BMA\",CONFIGURATION!$B$1,\"bscr\",CONFIGURATION!$B$12)","v":"Mapped"},null,{"$f":"XBRLMap(Z17,V$104&\".\"&$AE17&\".\"&$V$105,$F$102,$F$103,CONFIGURATION!$B$10,\"BMA\",CONFIGURATION!$B$1,\"bscr\",CONFIGURATION!$B$12)","v":"Mapped"}]
[null,null,null,{"$f":"XBRLMap(D18,D$104&\".\"&$AE18&\".\"&$D$105,$D$102,$D$103,CONFIGURATION!$B$10,\"BMA\",CONFIGURATION!$B$1,\"bscr\",CONFIGURATION!$B$12)","v":"Mapped"},null,{"$f":"XBRLMap(F18,F$104&\".\"&$AE18&\".\"&$F$105,$F$102,$F$103,CONFIGURATION!$B$10,\"BMA\",CONFIGURATION!$B$1,\"bscr\",CONFIGURATION!$B$12)","v":"Mapped"},null,{"$f":"XBRLMap(H18,H$104&\".\"&$AE18&\".\"&$H$105,$D$102,$D$103,CONFIGURATION!$B$10,\"BMA\",CONFIGURATION!$B$1,\"bscr\",CONFIGURATION!$B$12)","v":"Mapped"},null,{"$f":"XBRLMap(J18,J$104&\".\"&$AE18&\".\"&$J$105,$F$102,$F$103,CONFIGURATION!$B$10,\"BMA\",CONFIGURATION!$B$1,\"bscr\",CONFIGURATION!$B$12)","v":"Mapped"},null,{"$f":"XBRLMap(L18,L$104&\".\"&$AE18&\".\"&$L$105,$D$102,$D$103,CONFIGURATION!$B$10,\"BMA\",CONFIGURATION!$B$1,\"bscr\",CONFIGURATION!$B$12)","v":"Mapped"},null,{"$f":"XBRLMap(N18,N$104&\".\"&$AE18&\".\"&$N$105,$F$102,$F$103,CONFIGURATION!$B$10,\"BMA\",CONFIGURATION!$B$1,\"bscr\",CONFIGURATION!$B$12)","v":"Mapped"},null,{"$f":"XBRLMap(P18,P$104&\".\"&$AE18&\".\"&$P$105,$D$102,$D$103,CONFIGURATION!$B$10,\"BMA\",CONFIGURATION!$B$1,\"bscr\",CONFIGURATION!$B$12)","v":"Mapped"},null,{"$f":"XBRLMap(R18,R$104&\".\"&$AE18&\".\"&$R$105,$F$102,$F$103,CONFIGURATION!$B$10,\"BMA\",CONFIGURATION!$B$1,\"bscr\",CONFIGURATION!$B$12)","v":"Mapped"},null,{"$f":"XBRLMap(X18,T$104&\".\"&$AE18&\".\"&$T$105,$D$102,$D$103,CONFIGURATION!$B$10,\"BMA\",CONFIGURATION!$B$1,\"bscr\",CONFIGURATION!$B$12)","v":"Mapped"},null,{"$f":"XBRLMap(Z18,V$104&\".\"&$AE18&\".\"&$V$105,$F$102,$F$103,CONFIGURATION!$B$10,\"BMA\",CONFIGURATION!$B$1,\"bscr\",CONFIGURATION!$B$12)","v":"Mapped"}]
[null,null,null,{"$f":"XBRLMap(D19,D$104&\".\"&$AE19&\".\"&$D$105,$D$102,$D$103,CONFIGURATION!$B$10,\"BMA\",CONFIGURATION!$B$1,\"bscr\",CONFIGURATION!$B$12)","v":"Mapped"},null,{"$f":"XBRLMap(F19,F$104&\".\"&$AE19&\".\"&$F$105,$F$102,$F$103,CONFIGURATION!$B$10,\"BMA\",CONFIGURATION!$B$1,\"bscr\",CONFIGURATION!$B$12)","v":"Mapped"},null,{"$f":"XBRLMap(H19,H$104&\".\"&$AE19&\".\"&$H$105,$D$102,$D$103,CONFIGURATION!$B$10,\"BMA\",CONFIGURATION!$B$1,\"bscr\",CONFIGURATION!$B$12)","v":"Mapped"},null,{"$f":"XBRLMap(J19,J$104&\".\"&$AE19&\".\"&$J$105,$F$102,$F$103,CONFIGURATION!$B$10,\"BMA\",CONFIGURATION!$B$1,\"bscr\",CONFIGURATION!$B$12)","v":"Mapped"},null,{"$f":"XBRLMap(L19,L$104&\".\"&$AE19&\".\"&$L$105,$D$102,$D$103,CONFIGURATION!$B$10,\"BMA\",CONFIGURATION!$B$1,\"bscr\",CONFIGURATION!$B$12)","v":"Mapped"},null,{"$f":"XBRLMap(N19,N$104&\".\"&$AE19&\".\"&$N$105,$F$102,$F$103,CONFIGURATION!$B$10,\"BMA\",CONFIGURATION!$B$1,\"bscr\",CONFIGURATION!$B$12)","v":"Mapped"},null,{"$f":"XBRLMap(P19,P$104&\".\"&$AE19&\".\"&$P$105,$D$102,$D$103,CONFIGURATION!$B$10,\"BMA\",CONFIGURATION!$B$1,\"bscr\",CONFIGURATION!$B$12)","v":"Mapped"},null,{"$f":"XBRLMap(R19,R$104&\".\"&$AE19&\".\"&$R$105,$F$102,$F$103,CONFIGURATION!$B$10,\"BMA\",CONFIGURATION!$B$1,\"bscr\",CONFIGURATION!$B$12)","v":"Mapped"},null,{"$f":"XBRLMap(X19,T$104&\".\"&$AE19&\".\"&$T$105,$D$102,$D$103,CONFIGURATION!$B$10,\"BMA\",CONFIGURATION!$B$1,\"bscr\",CONFIGURATION!$B$12)","v":"Mapped"},null,{"$f":"XBRLMap(Z19,V$104&\".\"&$AE19&\".\"&$V$105,$F$102,$F$103,CONFIGURATION!$B$10,\"BMA\",CONFIGURATION!$B$1,\"bscr\",CONFIGURATION!$B$12)","v":"Mapped"}]
[null,null,null,{"$f":"XBRLMap(D20,D$104&\".\"&$AE20&\".\"&$D$105,$D$102,$D$103,CONFIGURATION!$B$10,\"BMA\",CONFIGURATION!$B$1,\"bscr\",CONFIGURATION!$B$12)","v":"Mapped"},null,{"$f":"XBRLMap(F20,F$104&\".\"&$AE20&\".\"&$F$105,$F$102,$F$103,CONFIGURATION!$B$10,\"BMA\",CONFIGURATION!$B$1,\"bscr\",CONFIGURATION!$B$12)","v":"Mapped"},null,{"$f":"XBRLMap(H20,H$104&\".\"&$AE20&\".\"&$H$105,$D$102,$D$103,CONFIGURATION!$B$10,\"BMA\",CONFIGURATION!$B$1,\"bscr\",CONFIGURATION!$B$12)","v":"Mapped"},null,{"$f":"XBRLMap(J20,J$104&\".\"&$AE20&\".\"&$J$105,$F$102,$F$103,CONFIGURATION!$B$10,\"BMA\",CONFIGURATION!$B$1,\"bscr\",CONFIGURATION!$B$12)","v":"Mapped"},null,{"$f":"XBRLMap(L20,L$104&\".\"&$AE20&\".\"&$L$105,$D$102,$D$103,CONFIGURATION!$B$10,\"BMA\",CONFIGURATION!$B$1,\"bscr\",CONFIGURATION!$B$12)","v":"Mapped"},null,{"$f":"XBRLMap(N20,N$104&\".\"&$AE20&\".\"&$N$105,$F$102,$F$103,CONFIGURATION!$B$10,\"BMA\",CONFIGURATION!$B$1,\"bscr\",CONFIGURATION!$B$12)","v":"Mapped"},null,{"$f":"XBRLMap(P20,P$104&\".\"&$AE20&\".\"&$P$105,$D$102,$D$103,CONFIGURATION!$B$10,\"BMA\",CONFIGURATION!$B$1,\"bscr\",CONFIGURATION!$B$12)","v":"Mapped"},null,{"$f":"XBRLMap(R20,R$104&\".\"&$AE20&\".\"&$R$105,$F$102,$F$103,CONFIGURATION!$B$10,\"BMA\",CONFIGURATION!$B$1,\"bscr\",CONFIGURATION!$B$12)","v":"Mapped"},null,{"$f":"XBRLMap(X20,T$104&\".\"&$AE20&\".\"&$T$105,$D$102,$D$103,CONFIGURATION!$B$10,\"BMA\",CONFIGURATION!$B$1,\"bscr\",CONFIGURATION!$B$12)","v":"Mapped"},null,{"$f":"XBRLMap(Z20,V$104&\".\"&$AE20&\".\"&$V$105,$F$102,$F$103,CONFIGURATION!$B$10,\"BMA\",CONFIGURATION!$B$1,\"bscr\",CONFIGURATION!$B$12)","v":"Mapped"}]
[null,null,null,{"$f":"XBRLMap(D21,D$104&\".\"&$AE21&\".\"&$D$105,$D$102,$D$103,CONFIGURATION!$B$10,\"BMA\",CONFIGURATION!$B$1,\"bscr\",CONFIGURATION!$B$12)","v":"Mapped"},null,{"$f":"XBRLMap(F21,F$104&\".\"&$AE21&\".\"&$F$105,$F$102,$F$103,CONFIGURATION!$B$10,\"BMA\",CONFIGURATION!$B$1,\"bscr\",CONFIGURATION!$B$12)","v":"Mapped"},null,{"$f":"XBRLMap(H21,H$104&\".\"&$AE21&\".\"&$H$105,$D$102,$D$103,CONFIGURATION!$B$10,\"BMA\",CONFIGURATION!$B$1,\"bscr\",CONFIGURATION!$B$12)","v":"Mapped"},null,{"$f":"XBRLMap(J21,J$104&\".\"&$AE21&\".\"&$J$105,$F$102,$F$103,CONFIGURATION!$B$10,\"BMA\",CONFIGURATION!$B$1,\"bscr\",CONFIGURATION!$B$12)","v":"Mapped"},null,{"$f":"XBRLMap(L21,L$104&\".\"&$AE21&\".\"&$L$105,$D$102,$D$103,CONFIGURATION!$B$10,\"BMA\",CONFIGURATION!$B$1,\"bscr\",CONFIGURATION!$B$12)","v":"Mapped"},null,{"$f":"XBRLMap(N21,N$104&\".\"&$AE21&\".\"&$N$105,$F$102,$F$103,CONFIGURATION!$B$10,\"BMA\",CONFIGURATION!$B$1,\"bscr\",CONFIGURATION!$B$12)","v":"Mapped"},null,{"$f":"XBRLMap(P21,P$104&\".\"&$AE21&\".\"&$P$105,$D$102,$D$103,CONFIGURATION!$B$10,\"BMA\",CONFIGURATION!$B$1,\"bscr\",CONFIGURATION!$B$12)","v":"Mapped"},null,{"$f":"XBRLMap(R21,R$104&\".\"&$AE21&\".\"&$R$105,$F$102,$F$103,CONFIGURATION!$B$10,\"BMA\",CONFIGURATION!$B$1,\"bscr\",CONFIGURATION!$B$12)","v":"Mapped"},null,{"$f":"XBRLMap(X21,T$104&\".\"&$AE21&\".\"&$T$105,$D$102,$D$103,CONFIGURATION!$B$10,\"BMA\",CONFIGURATION!$B$1,\"bscr\",CONFIGURATION!$B$12)","v":"Mapped"},null,{"$f":"XBRLMap(Z21,V$104&\".\"&$AE21&\".\"&$V$105,$F$102,$F$103,CONFIGURATION!$B$10,\"BMA\",CONFIGURATION!$B$1,\"bscr\",CONFIGURATION!$B$12)","v":"Mapped"}]
[]
[null,null,null,{"$f":"XBRLMap(D27,D$104&\".\"&$AE27&\".\"&$D$105,$D$102,$D$103,CONFIGURATION!$B$10,\"BMA\",CONFIGURATION!$B$1,\"bscr\",CONFIGURATION!$B$12)","v":"Mapped"},null,{"$f":"XBRLMap(F27,F$104&\".\"&$AE27&\".\"&$F$105,$F$102,$F$103,CONFIGURATION!$B$10,\"BMA\",CONFIGURATION!$B$1,\"bscr\",CONFIGURATION!$B$12)","v":"Mapped"},null,{"$f":"XBRLMap(H27,H$104&\".\"&$AE27&\".\"&$H$105,$D$102,$D$103,CONFIGURATION!$B$10,\"BMA\",CONFIGURATION!$B$1,\"bscr\",CONFIGURATION!$B$12)","v":"Mapped"},null,{"$f":"XBRLMap(J27,J$104&\".\"&$AE27&\".\"&$J$105,$F$102,$F$103,CONFIGURATION!$B$10,\"BMA\",CONFIGURATION!$B$1,\"bscr\",CONFIGURATION!$B$12)","v":"Mapped"},null,{"$f":"XBRLMap(L27,L$104&\".\"&$AE27&\".\"&$L$105,$D$102,$D$103,CONFIGURATION!$B$10,\"BMA\",CONFIGURATION!$B$1,\"bscr\",CONFIGURATION!$B$12)","v":"Mapped"},null,{"$f":"XBRLMap(N27,N$104&\".\"&$AE27&\".\"&$N$105,$F$102,$F$103,CONFIGURATION!$B$10,\"BMA\",CONFIGURATION!$B$1,\"bscr\",CONFIGURATION!$B$12)","v":"Mapped"},null,{"$f":"XBRLMap(P27,P$104&\".\"&$AE27&\".\"&$P$105,$D$102,$D$103,CONFIGURATION!$B$10,\"BMA\",CONFIGURATION!$B$1,\"bscr\",CONFIGURATION!$B$12)","v":"Mapped"},null,{"$f":"XBRLMap(R27,R$104&\".\"&$AE27&\".\"&$R$105,$F$102,$F$103,CONFIGURATION!$B$10,\"BMA\",CONFIGURATION!$B$1,\"bscr\",CONFIGURATION!$B$12)","v":"Mapped"},null,{"$f":"XBRLMap(X27,T$104&\".\"&$AE27&\".\"&$T$105,$D$102,$D$103,CONFIGURATION!$B$10,\"BMA\",CONFIGURATION!$B$1,\"bscr\",CONFIGURATION!$B$12)","v":"Mapped"},null,{"$f":"XBRLMap(Z27,V$104&\".\"&$AE27&\".\"&$V$105,$F$102,$F$103,CONFIGURATION!$B$10,\"BMA\",CONFIGURATION!$B$1,\"bscr\",CONFIGURATION!$B$12)","v":"Mapped"}]
[null,null,null,null,null,null,null,null,null,null,null,null,null,null,null,null,null,null,null,"brrt_QuotedInvestmentsEquitiesCommonStocksMutualFunds",null,"brrt_QuotedInvestmentsEquitiesCommonStocksMutualFunds"]
[null,null,null,null,null,null,null,null,null,null,null,null,null,null,null,null,null,null,null,"brrt_UnquotedInvestmentsEquitiesCommonStocksMutualFunds",null,"brrt_UnquotedInvestmentsEquitiesCommonStocksMutualFunds"]
[null,null,null,"brrt_EquitiesCommonStocks",null,"brrt_EquitiesCommonStocks",null,"brrt_EquitiesPreferredStocks",null,"brrt_EquitiesPreferredStocks",null,"brrt_EquitiesMutualFunds",null,"brrt_EquitiesMutualFunds",null,null,null,null,null,"brrt_Equities",null,"brrt_Equities"]
[null,null,null,null,null,null,null,{"$f":"XBRLMap(#REF!,H$119&\".\"&#REF!,$D$102,$D$103,CONFIGURATION!$B$10,\"BMA\",CONFIGURATION!$B$1,\"bscr\",CONFIGURATION!$B$12)","v":{"$error":"#VALUE!"}},null,{"$f":"XBRLMap(#REF!,J$119&\".\"&#REF!,$F$102,$F$103,CONFIGURATION!$B$10,\"BMA\",CONFIGURATION!$B$1,\"bscr\",CONFIGURATION!$B$12)","v":{"$error":"#VALUE!"}},null,null,null,null,null,null,null,null,null,"The same data point as in column H",null,"The same data point as in column J"]
[null,null,null,null,null,null,null,{"$f":"XBRLMap(L39,H$119&\".\"&$AE39,$D$102,$D$103,CONFIGURATION!$B$10,\"BMA\",CONFIGURATION!$B$1,\"bscr\",CONFIGURATION!$B$12)","v":"Mapped"},null,{"$f":"XBRLMap(P39,J$119&\".\"&$AE39,$F$102,$F$103,CONFIGURATION!$B$10,\"BMA\",CONFIGURATION!$B$1,\"bscr\",CONFIGURATION!$B$12)","v":"Mapped"},null,null,null,null,null,null,null,null,null,"The same data point as in column H",null,"The same data point as in column J"]
[null,null,null,null,null,null,null,{"$f":"XBRLMap(L40,H$119&\".\"&$AE40,$D$102,$D$103,CONFIGURATION!$B$10,\"BMA\",CONFIGURATION!$B$1,\"bscr\",CONFIGURATION!$B$12)","v":"Mapped"},null,{"$f":"XBRLMap(P40,J$119&\".\"&$AE40,$F$102,$F$103,CONFIGURATION!$B$10,\"BMA\",CONFIGURATION!$B$1,\"bscr\",CONFIGURATION!$B$12)","v":"Mapped"},null,null,null,null,null,null,null,null,null,"The same data point as in column H",null,"The same data point as in column J"]
[null,null,null,null,null,null,null,{"$f":"XBRLMap(L41,H$119&\".\"&$AE41,$D$102,$D$103,CONFIGURATION!$B$10,\"BMA\",CONFIGURATION!$B$1,\"bscr\",CONFIGURATION!$B$12)","v":"Mapped"},null,{"$f":"XBRLMap(P41,J$119&\".\"&$AE41,$F$102,$F$103,CONFIGURATION!$B$10,\"BMA\",CONFIGURATION!$B$1,\"bscr\",CONFIGURATION!$B$12)","v":"Mapped"},null,null,null,null,null,null,null,null,null,"The same data point as in column H",null,"The same data point as in column J"]
[null,null,null,null,null,null,null,{"$f":"XBRLMap(L42,H$119&\".\"&$AE42,$D$102,$D$103,CONFIGURATION!$B$10,\"BMA\",CONFIGURATION!$B$1,\"bscr\",CONFIGURATION!$B$12)","v":"Mapped"},null,{"$f":"XBRLMap(P42,J$119&\".\"&$AE42,$F$102,$F$103,CONFIGURATION!$B$10,\"BMA\",CONFIGURATION!$B$1,\"bscr\",CONFIGURATION!$B$12)","v":"Mapped"},null,null,null,null,null,null,null,null,null,"The same data point as in column H",null,"The same data point as in column J"]
[null,null,null,null,null,null,null,{"$f":"XBRLMap(L43,H$119&\".\"&$AE43,$D$102,$D$103,CONFIGURATION!$B$10,\"BMA\",CONFIGURATION!$B$1,\"bscr\",CONFIGURATION!$B$12)","v":"Mapped"},null,{"$f":"XBRLMap(P43,J$119&\".\"&$AE43,$F$102,$F$103,CONFIGURATION!$B$10,\"BMA\",CONFIGURATION!$B$1,\"bscr\",CONFIGURATION!$B$12)","v":"Mapped"},null,null,null,null,null,null,null,null,null,"The same data point as in column H",null,"The same data point as in column J"]
[null,null,null,null,null,null,null,{"$f":"XBRLMap(L44,H$119&\".\"&$AE44,$D$102,$D$103,CONFIGURATION!$B$10,\"BMA\",CONFIGURATION!$B$1,\"bscr\",CONFIGURATION!$B$12)","v":"Mapped"},null,{"$f":"XBRLMap(P44,J$119&\".\"&$AE44,$F$102,$F$103,CONFIGURATION!$B$10,\"BMA\",CONFIGURATION!$B$1,\"bscr\",CONFIGURATION!$B$12)","v":"Mapped"},null,null,null,null,null,null,null,null,null,"The same data point as in column H",null,"The same data point as in column J"]
[null,null,null,null,null,null,null,{"$f":"XBRLMap(L45,H$119&\".\"&$AE45,$D$102,$D$103,CONFIGURATION!$B$10,\"BMA\",CONFIGURATION!$B$1,\"bscr\",CONFIGURATION!$B$12)","v":"Mapped"},null,{"$f":"XBRLMap(P45,J$119&\".\"&$AE45,$F$102,$F$103,CONFIGURATION!$B$10,\"BMA\",CONFIGURATION!$B$1,\"bscr\",CONFIGURATION!$B$12)","v":"Mapped"},null,null,null,null,null,null,null,null,null,"The same data point as in column H",null,"The same data point as in column J"]
[null,null,null,"Already mapped in Form 4",null,"Already mapped in Form 4",null,null,null,null,null,"Already mapped in Form 4",null,"Already mapped in Form 4",null,null,null,null,null,{"$f":"XBRLMap(#REF!,T$117,$D$102,$D$103,CONFIGURATION!$B$10,\"BMA\",CONFIGURATION!$B$1,\"bscr\",CONFIGURATION!$B$12)","v":{"$error":"#VALUE!"}},null,{"$f":"XBRLMap(#REF!,V$117,$F$102,$F$103,CONFIGURATION!$B$10,\"BMA\",CONFIGURATION!$B$1,\"bscr\",CONFIGURATION!$B$12)","v":{"$error":"#VALUE!"}}]
[null,null,null,"Already mapped in Form 4",null,"Already mapped in Form 4",null,null,null,null,null,"Already mapped in Form 4",null,"Already mapped in Form 4",null,null,null,null,null,{"$f":"XBRLMap(#REF!,T$118,$D$102,$D$103,CONFIGURATION!$B$10,\"BMA\",CONFIGURATION!$B$1,\"bscr\",CONFIGURATION!$B$12)","v":{"$error":"#VALUE!"}},null,{"$f":"XBRLMap(#REF!,V$118,$F$102,$F$103,CONFIGURATION!$B$10,\"BMA\",CONFIGURATION!$B$1,\"bscr\",CONFIGURATION!$B$12)","v":{"$error":"#VALUE!"}}]
[null,null,null,{"$f":"XBRLMap(D62,D$119,$D$102,$D$103,CONFIGURATION!$B$10,\"BMA\",CONFIGURATION!$B$1,\"bscr\",CONFIGURATION!$B$12)","v":"Mapped"},null,{"$f":"XBRLMap(H62,F$119,$F$102,$F$103,CONFIGURATION!$B$10,\"BMA\",CONFIGURATION!$B$1,\"bscr\",CONFIGURATION!$B$12)","v":"Mapped"},null,{"$f":"XBRLMap(L62,H$119&\".\"&$AE62,$D$102,$D$103,CONFIGURATION!$B$10,\"BMA\",CONFIGURATION!$B$1,\"bscr\",CONFIGURATION!$B$12)","v":"Mapped"},null,{"$f":"XBRLMap(P62,J$119&\".\"&$AE62,$F$102,$F$103,CONFIGURATION!$B$10,\"BMA\",CONFIGURATION!$B$1,\"bscr\",CONFIGURATION!$B$12)","v":"Mapped"},null,{"$f":"XBRLMap(#REF!,L$119,$D$102,$D$103,CONFIGURATION!$B$10,\"BMA\",CONFIGURATION!$B$1,\"bscr\",CONFIGURATION!$B$12)","v":{"$error":"#VALUE!"}},null,{"$f":"XBRLMap(#REF!,N$119,$F$102,$F$103,CONFIGURATION!$B$10,\"BMA\",CONFIGURATION!$B$1,\"bscr\",CONFIGURATION!$B$12)","v":{"$error":"#VALUE!"}},null,null,null,null,null,{"$f":"XBRLMap(#REF!,T$119,$D$102,$D$103,CONFIGURATION!$B$10,\"BMA\",CONFIGURATION!$B$1,\"bscr\",CONFIGURATION!$B$12)","v":{"$error":"#VALUE!"}},null,{"$f":"XBRLMap(#REF!,V$119,$F$102,$F$103,CONFIGURATION!$B$10,\"BMA\",CONFIGURATION!$B$1,\"bscr\",CONFIGURATION!$B$12)","v":{"$error":"#VALUE!"}}]
[]
[]
[]
[null,null,null,null,null,null,null,null,null,null,null,"brrt_BondsAndDebentures",null,"brrt_BondsAndDebentures",null,"brrt_BondsAndDebentures",null,"brrt_BondsAndDebentures"]
[null,null,null,null,null,null,null,null,null,null,null,"brrt_SecurityTypeAxis_brrt_ResidentialMortgageBackedSecuritiesMember",null,"brrt_SecurityTypeAxis_brrt_ResidentialMortgageBackedSecuritiesMember",null,"brrt_SecurityTypeAxis_brrt_CommercialMortgageBackedSecuritiesAssetBackedSecuritiesMember",null,"brrt_SecurityTypeAxis_brrt_CommercialMortgageBackedSecuritiesAssetBackedSecuritiesMember"]
[null,null,null,null,null,null,null,null,null,null,null,"brrt_ClassificationAxis_brrt_OriginalClassificationMember",null,"brrt_ClassificationAxis_brrt_RevisedClassificationMember",null,"brrt_ClassificationAxis_brrt_OriginalClassificationMember",null,"brrt_ClassificationAxis_brrt_RevisedClassificationMember"]
[null,null,null,null,null,null,null,null,null,null,null,{"$f":"XBRLMap(N86,L$134&\".\"&#REF!&\".\"&$L$135&\".\"&$L$136,$D$102,$D$103,CONFIGURATION!$B$10,\"BMA\",CONFIGURATION!$B$1,\"bscr\",CONFIGURATION!$B$12)","v":{"$error":"#VALUE!"}},null,{"$f":"XBRLMap(P86,N$134&\".\"&#REF!&\".\"&$N$135&\".\"&$N$136,$D$102,$D$103,CONFIGURATION!$B$10,\"BMA\",CONFIGURATION!$B$1,\"bscr\",CONFIGURATION!$B$12)","v":{"$error":"#VALUE!"}},null,{"$f":"XBRLMap(R86,P$134&\".\"&#REF!&\".\"&$P$135&\".\"&$P$136,$D$102,$D$103,CONFIGURATION!$B$10,\"BMA\",CONFIGURATION!$B$1,\"bscr\",CONFIGURATION!$B$12)","v":{"$error":"#VALUE!"}},null,{"$f":"XBRLMap(T86,R$134&\".\"&#REF!&\".\"&$R$135&\".\"&$R$136,$D$102,$D$103,CONFIGURATION!$B$10,\"BMA\",CONFIGURATION!$B$1,\"bscr\",CONFIGURATION!$B$12)","v":{"$error":"#VALUE!"}}]
[null,null,null,null,null,null,null,null,null,null,null,{"$f":"XBRLMap(N87,L$134&\".\"&#REF!&\".\"&$L$135&\".\"&$L$136,$D$102,$D$103,CONFIGURATION!$B$10,\"BMA\",CONFIGURATION!$B$1,\"bscr\",CONFIGURATION!$B$12)","v":{"$error":"#VALUE!"}},null,{"$f":"XBRLMap(P87,N$134&\".\"&#REF!&\".\"&$N$135&\".\"&$N$136,$D$102,$D$103,CONFIGURATION!$B$10,\"BMA\",CONFIGURATION!$B$1,\"bscr\",CONFIGURATION!$B$12)","v":{"$error":"#VALUE!"}},null,{"$f":"XBRLMap(R87,P$134&\".\"&#REF!&\".\"&$P$135&\".\"&$P$136,$D$102,$D$103,CONFIGURATION!$B$10,\"BMA\",CONFIGURATION!$B$1,\"bscr\",CONFIGURATION!$B$12)","v":{"$error":"#VALUE!"}},null,{"$f":"XBRLMap(T87,R$134&\".\"&#REF!&\".\"&$R$135&\".\"&$R$136,$D$102,$D$103,CONFIGURATION!$B$10,\"BMA\",CONFIGURATION!$B$1,\"bscr\",CONFIGURATION!$B$12)","v":{"$error":"#VALUE!"}}]
[null,null,null,null,null,null,null,null,null,null,null,{"$f":"XBRLMap(N88,L$134&\".\"&#REF!&\".\"&$L$135&\".\"&$L$136,$D$102,$D$103,CONFIGURATION!$B$10,\"BMA\",CONFIGURATION!$B$1,\"bscr\",CONFIGURATION!$B$12)","v":{"$error":"#VALUE!"}},null,{"$f":"XBRLMap(P88,N$134&\".\"&#REF!&\".\"&$N$135&\".\"&$N$136,$D$102,$D$103,CONFIGURATION!$B$10,\"BMA\",CONFIGURATION!$B$1,\"bscr\",CONFIGURATION!$B$12)","v":{"$error":"#VALUE!"}},null,{"$f":"XBRLMap(R88,P$134&\".\"&#REF!&\".\"&$P$135&\".\"&$P$136,$D$102,$D$103,CONFIGURATION!$B$10,\"BMA\",CONFIGURATION!$B$1,\"bscr\",CONFIGURATION!$B$12)","v":{"$error":"#VALUE!"}},null,{"$f":"XBRLMap(T88,R$134&\".\"&#REF!&\".\"&$R$135&\".\"&$R$136,$D$102,$D$103,CONFIGURATION!$B$10,\"BMA\",CONFIGURATION!$B$1,\"bscr\",CONFIGURATION!$B$12)","v":{"$error":"#VALUE!"}}]
[null,null,null,null,null,null,null,null,null,null,null,{"$f":"XBRLMap(N89,L$134&\".\"&#REF!&\".\"&$L$135&\".\"&$L$136,$D$102,$D$103,CONFIGURATION!$B$10,\"BMA\",CONFIGURATION!$B$1,\"bscr\",CONFIGURATION!$B$12)","v":{"$error":"#VALUE!"}},null,{"$f":"XBRLMap(P89,N$134&\".\"&#REF!&\".\"&$N$135&\".\"&$N$136,$D$102,$D$103,CONFIGURATION!$B$10,\"BMA\",CONFIGURATION!$B$1,\"bscr\",CONFIGURATION!$B$12)","v":{"$error":"#VALUE!"}},null,{"$f":"XBRLMap(R89,P$134&\".\"&#REF!&\".\"&$P$135&\".\"&$P$136,$D$102,$D$103,CONFIGURATION!$B$10,\"BMA\",CONFIGURATION!$B$1,\"bscr\",CONFIGURATION!$B$12)","v":{"$error":"#VALUE!"}},null,{"$f":"XBRLMap(T89,R$134&\".\"&#REF!&\".\"&$R$135&\".\"&$R$136,$D$102,$D$103,CONFIGURATION!$B$10,\"BMA\",CONFIGURATION!$B$1,\"bscr\",CONFIGURATION!$B$12)","v":{"$error":"#VALUE!"}}]
[null,null,null,null,null,null,null,null,null,null,null,{"$f":"XBRLMap(N90,L$134&\".\"&#REF!&\".\"&$L$135&\".\"&$L$136,$D$102,$D$103,CONFIGURATION!$B$10,\"BMA\",CONFIGURATION!$B$1,\"bscr\",CONFIGURATION!$B$12)","v":{"$error":"#VALUE!"}},null,{"$f":"XBRLMap(P90,N$134&\".\"&#REF!&\".\"&$N$135&\".\"&$N$136,$D$102,$D$103,CONFIGURATION!$B$10,\"BMA\",CONFIGURATION!$B$1,\"bscr\",CONFIGURATION!$B$12)","v":{"$error":"#VALUE!"}},null,{"$f":"XBRLMap(R90,P$134&\".\"&#REF!&\".\"&$P$135&\".\"&$P$136,$D$102,$D$103,CONFIGURATION!$B$10,\"BMA\",CONFIGURATION!$B$1,\"bscr\",CONFIGURATION!$B$12)","v":{"$error":"#VALUE!"}},null,{"$f":"XBRLMap(T90,R$134&\".\"&#REF!&\".\"&$R$135&\".\"&$R$136,$D$102,$D$103,CONFIGURATION!$B$10,\"BMA\",CONFIGURATION!$B$1,\"bscr\",CONFIGURATION!$B$12)","v":{"$error":"#VALUE!"}}]
[null,null,null,null,null,null,null,null,null,null,null,{"$f":"XBRLMap(N91,L$134&\".\"&#REF!&\".\"&$L$135&\".\"&$L$136,$D$102,$D$103,CONFIGURATION!$B$10,\"BMA\",CONFIGURATION!$B$1,\"bscr\",CONFIGURATION!$B$12)","v":{"$error":"#VALUE!"}},null,{"$f":"XBRLMap(P91,N$134&\".\"&#REF!&\".\"&$N$135&\".\"&$N$136,$D$102,$D$103,CONFIGURATION!$B$10,\"BMA\",CONFIGURATION!$B$1,\"bscr\",CONFIGURATION!$B$12)","v":{"$error":"#VALUE!"}},null,{"$f":"XBRLMap(R91,P$134&\".\"&#REF!&\".\"&$P$135&\".\"&$P$136,$D$102,$D$103,CONFIGURATION!$B$10,\"BMA\",CONFIGURATION!$B$1,\"bscr\",CONFIGURATION!$B$12)","v":{"$error":"#VALUE!"}},null,{"$f":"XBRLMap(T91,R$134&\".\"&#REF!&\".\"&$R$135&\".\"&$R$136,$D$102,$D$103,CONFIGURATION!$B$10,\"BMA\",CONFIGURATION!$B$1,\"bscr\",CONFIGURATION!$B$12)","v":{"$error":"#VALUE!"}}]
[]
[null,null,null,null,null,null,null,null,null,null,null,{"$f":"XBRLMap(O93,L$134&\".\"&#REF!&\".\"&$L$135&\".\"&$L$136,$D$102,$D$103,CONFIGURATION!$B$10,\"BMA\",CONFIGURATION!$B$1,\"bscr\",CONFIGURATION!$B$12)","v":{"$error":"#VALUE!"}},null,{"$f":"XBRLMap(Q93,N$134&\".\"&#REF!&\".\"&$N$135&\".\"&$N$136,$D$102,$D$103,CONFIGURATION!$B$10,\"BMA\",CONFIGURATION!$B$1,\"bscr\",CONFIGURATION!$B$12)","v":{"$error":"#VALUE!"}},null,{"$f":"XBRLMap(S93,P$134&\".\"&#REF!&\".\"&$P$135&\".\"&$P$136,$D$102,$D$103,CONFIGURATION!$B$10,\"BMA\",CONFIGURATION!$B$1,\"bscr\",CONFIGURATION!$B$12)","v":{"$error":"#VALUE!"}},null,{"$f":"XBRLMap(U93,R$134&\".\"&#REF!&\".\"&$R$135&\".\"&$R$136,$D$102,$D$103,CONFIGURATION!$B$10,\"BMA\",CONFIGURATION!$B$1,\"bscr\",CONFIGURATION!$B$12)","v":{"$error":"#VALUE!"}}]

{"sheet":"Schedule IIC (EBS)","index":27,"n_rows":144,"n_cols":37,"rows_kept":144,"cut":false,"hidden":false,"merged":[[33,27,34,27],[2,1,2,3],[3,3,3,5],[4,3,4,5],[7,3,7,5],[7,7,7,9],[33,23,34,23],[33,15,34,15],[33,17,34,17],[33,19,34,19],[7,23,7,25],[64,17,64,19],[63,3,63,11],[63,13,63,21],[7,19,7,21],[32,3,32,13],[7,15,7,17],[32,15,32,19],[34,7,34,9],[34,11,34,13],[33,3,34,5],[33,7,33,13],[7,11,7,13],[64,3,64,5],[64,7,64,9],[64,13,64,15]]}
[null,"SCHEDULE OF FUNDS HELD",null,null,null,null,null,null,null,null,null,null,null,null,null,null,null,null,null,null,null,null,null,null,null,null,null,{"$f":"HYPERLINK(\"#'Index'!A1\",\"Return to Index\")","v":"Return to Index"}]
[]
[null,{"$f":"+'Company Information'!C7","v":"Enter Company Name"}]
[null,"As at",null,{"$f":"+'Company Information'!C3","v":"2019-12-31"},null,null,null,null,null,null,null,null,null,null,null,null,null,null,null,null,null,null,null,null,null,"SCHEDULE IIC (EBS)"]
[null,{"$f":"+'Form 1EBS'!B4","v":"expressed in ['000s]"},null,{"$f":"+'Form 1EBS'!C4","v":"United States Dollars"}]
[]
[null,null,null,"(1)",null,"(2)",null,"(3)",null,"(4)",null,"(5)",null,"(6)",null,"(7)",null,"(8)",null,"(9)",null,"(10)",null,"(11)",null,"(12)"]
[null,null,null,"Corporate & Sovereign Bonds",null,null,null,"Residential Mortgage Backed Securities",null,null,null,"Commercial Mortgage Backed Securities / Asset- Backed Securities",null,null,null,"Bond Mutual Funds",null,null,null,"Mortgage Loans",null,null,null,"TOTAL",null,null,null,null,null,null,"brrt_RiskTransferAxis_brrt_FundsHeldByCedingReinsurersInSegregatedAccountsTrustsMember"]
[null,null,null,{"$f":"+'Form 1EBS'!$F$7","v":"2019-12-31"},null,{"$f":"+'Form 1EBS'!$H$7","v":"2018-12-31"},null,{"$f":"+'Form 1EBS'!$F$7","v":"2019-12-31"},null,{"$f":"+'Form 1EBS'!$H$7","v":"2018-12-31"},null,{"$f":"+'Form 1EBS'!$F$7","v":"2019-12-31"},null,{"$f":"+'Form 1EBS'!$H$7","v":"2018-12-31"},null,{"$f":"+'Form 1EBS'!$F$7","v":"2019-12-31"},null,{"$f":"+'Form 1EBS'!$H$7","v":"2018-12-31"},null,{"$f":"+'Form 1EBS'!$F$7","v":"2019-12-31"},null,{"$f":"+'Form 1EBS'!$H$7","v":"2018-12-31"},null,{"$f":"+'Form 1EBS'!$F$7","v":"2019-12-31"},null,{"$f":"+'Form 1EBS'!$H$7","v":"2018-12-31"}]
[null,null,null,{"$f":"+'Form 1EBS'!$F$8","v":" ('000s)"},null,{"$f":"+'Form 1EBS'!$F$8","v":" ('000s)"},null,{"$f":"+'Form 1EBS'!$F$8","v":" ('000s)"},null,{"$f":"+'Form 1EBS'!$F$8","v":" ('000s)"},null,{"$f":"+'Form 1EBS'!$F$8","v":" ('000s)"},null,{"$f":"+'Form 1EBS'!$F$8","v":" ('000s)"},null,{"$f":"+'Form 1EBS'!$F$8","v":" ('000s)"},null,{"$f":"+'Form 1EBS'!$F$8","v":" ('000s)"},null,{"$f":"+'Form 1EBS'!$F$8","v":" ('000s)"},null,{"$f":"+'Form 1EBS'!$F$8","v":" ('000s)"},null,{"$f":"+'Form 1EBS'!$F$8","v":" ('000s)"},null,{"$f":"+'Form 1EBS'!$H$8","v":" ('000s)"}]
[null,"Line no. "]
[null,"Quoted and Unquoted Bonds and Debentures"]
[null,1,"BSCR Rating 0",{"$f":"Import!M11695","v":0},null,{"$f":"Import!O11695","v":0},null,null,null,null,null,null,null,null,null,{"$f":"Import!M11720","v":0},null,{"$f":"Import!O11720","v":0},null,null,null,null,null,{"$f":"D13+H13+L13+P13","v":0},null,{"$f":"F13+J13+N13+R13","v":0},null,null,null,null,"brrt_RiskGradeAxis_brrt_BSCRRating0Member"]
[null,2,"BSCR Rating 1",{"$f":"Import!M11696","v":0},null,{"$f":"Import!O11696","v":0},null,{"$f":"Import!M11704","v":0},null,{"$f":"Import!O11704","v":0},null,{"$f":"Import!M11712","v":0},null,{"$f":"Import!O11712","v":0},null,{"$f":"Import!M11721","v":0},null,{"$f":"Import!O11721","v":0},null,null,null,null,null,{"$f":"D14+H14+L14+P14","v":0},null,0,null,null,null,null,"brrt_RiskGradeAxis_brrt_BSCRRating1Member"]
[null,3,"BSCR Rating 2",{"$f":"Import!M11697","v":0},null,{"$f":"Import!O11697","v":0},null,{"$f":"Import!M11705","v":0},null,{"$f":"Import!O11705","v":0},null,{"$f":"Import!M11713","v":0},null,{"$f":"Import!O11713","v":0},null,{"$f":"Import!M11722","v":0},null,{"$f":"Import!O11722","v":0},null,null,null,null,null,0,null,0,null,null,null,null,"brrt_RiskGradeAxis_brrt_BSCRRating2Member"]
[null,4,"BSCR Rating 3",{"$f":"Import!M11698","v":0},null,{"$f":"Import!O11698","v":0},null,{"$f":"Import!M11706","v":0},null,{"$f":"Import!O11706","v":0},null,{"$f":"Import!M11714","v":0},null,{"$f":"Import!O11714","v":0},null,{"$f":"Import!M11723","v":0},null,{"$f":"Import!O11723","v":0},null,null,null,null,null,0,null,0,null,null,null,null,"brrt_RiskGradeAxis_brrt_BSCRRating3Member"]
[null,5,"BSCR Rating 4",{"$f":"Import!M11699","v":0},null,{"$f":"Import!O11699","v":0},null,{"$f":"Import!M11707","v":0},null,{"$f":"Import!O11707","v":0},null,{"$f":"Import!M11715","v":0},null,{"$f":"Import!O11715","v":0},null,{"$f":"Import!M11724","v":0},null,{"$f":"Import!O11724","v":0},null,null,null,null,null,0,null,0,null,null,null,null,"brrt_RiskGradeAxis_brrt_BSCRRating4Member"]
[null,6,"BSCR Rating 5",{"$f":"Import!M11700","v":0},null,{"$f":"Import!O11700","v":0},null,{"$f":"Import!M11708","v":0},null,{"$f":"Import!O11708","v":0},null,{"$f":"Import!M11716","v":0},null,{"$f":"Import!O11716","v":0},null,{"$f":"Import!M11725","v":0},null,{"$f":"Import!O11725","v":0},null,null,null,null,null,0,null,0,null,null,null,null,"brrt_RiskGradeAxis_brrt_BSCRRating5Member"]
[null,7,"BSCR Rating 6",{"$f":"Import!M11701","v":0},null,{"$f":"Import!O11701","v":0},null,{"$f":"Import!M11709","v":0},null,{"$f":"Import!O11709","v":0},null,{"$f":"Import!M11717","v":0},null,{"$f":"Import!O11717","v":0},null,{"$f":"Import!M11726","v":0},null,{"$f":"Import!O11726","v":0},null,null,null,null,null,0,null,0,null,null,null,null,"brrt_RiskGradeAxis_brrt_BSCRRating6Member"]
[null,8,"BSCR Rating 7",{"$f":"Import!M11702","v":0},null,{"$f":"Import!O11702","v":0},null,{"$f":"Import!M11710","v":0},null,{"$f":"Import!O11710","v":0},null,{"$f":"Import!M11718","v":0},null,{"$f":"Import!O11718","v":0},null,{"$f":"Import!M11727","v":0},null,{"$f":"Import!O11727","v":0},null,null,null,null,null,0,null,0,null,null,null,null,"brrt_RiskGradeAxis_brrt_BSCRRating7Member"]
[null,9,"BSCR Rating 8",{"$f":"Import!M11703","v":0},null,{"$f":"Import!O11703","v":0},null,{"$f":"Import!M11711","v":0},null,{"$f":"Import!O11711","v":0},null,{"$f":"Import!M11719","v":0},null,{"$f":"Import!O11719","v":0},null,{"$f":"Import!M11728","v":0},null,{"$f":"Import!O11728","v":0},null,null,null,null,null,{"$f":"D21+H21+L21+P21","v":0},null,{"$f":"F21+J21+N21+R21","v":0},null,null,null,null,"brrt_RiskGradeAxis_brrt_BSCRRating8Member"]
[null,{"$f":"B21+1","v":10},"Insured/Guaranteed Mortgages",null,null,null,null,null,null,null,null,null,null,null,null,null,null,null,null,{"$f":"Import!M11729","v":0},null,{"$f":"Import!O11729","v":0},null,{"$f":"D22+H22+L22+P22+T22","v":0},null,{"$f":"F22+J22+N22+R22+V22","v":0}]
[null,{"$f":"B22+1","v":11},"Other Commercial and Farm Mortgages",null,null,null,null,null,null,null,null,null,null,null,null,null,null,null,null,{"$f":"Import!M11730","v":0},null,{"$f":"Import!O11730","v":0},null,{"$f":"D23+H23+L23+P23+T23","v":0},null,0]
[null,{"$f":"B23+1","v":12},"Other Residential Mortgages",null,null,null,null,null,null,null,null,null,null,null,null,null,null,null,null,{"$f":"Import!M11731","v":0},null,{"$f":"Import!O11731","v":0},null,{"$f":"D24+H24+L24+P24+T24","v":0},null,{"$f":"F24+J24+N24+R24+V24","v":0}]
[null,13,"Mortgages Not In Good Standing",null,null,null,null,null,null,null,null,null,null,null,null,null,null,null,null,{"$f":"Import!M11732","v":0},null,{"$f":"Import!O11732","v":0},null,0,null,0]
[]
[null,{"$f":"B25+1","v":14},"Total",{"$f":"SUM(D13:D21)","v":0},null,{"$f":"SUM(F13:F21)","v":0},null,{"$f":"SUM(H13:H21)","v":0},null,{"$f":"SUM(J13:J21)","v":0},null,{"$f":"SUM(L13:L21)","v":0},null,{"$f":"SUM(N13:N21)","v":0},null,{"$f":"SUM(P13:P21)","v":0},null,{"$f":"SUM(R13:R21)","v":0},null,{"$f":"SUM(T13:T26)","v":0},null,{"$f":"SUM(V13:V26)","v":0},null,{"$f":"SUM(X13:X26)","v":0},null,{"$f":"SUM(Z13:Z26)","v":0},null,null,null,null,"brrt_RiskGradeAxis_brrt_TotalMember"]
[]
[]
[]
[]
[]
[null,null,null,"ASSETS",null,null,null,null,null,null,null,null,null,null,null,"Liabilities"]
[null,null,null,"Long Exposures",null,null,null,"Short Exposures",null,null,null,null,null,null,null,null,null,"Without Management Actions",null,"With Management Actions",null,null,null,"Total Assets Before Shock",null,null,null,"Shocks"]
[null,null,null,null,null,null,null,"Qualifying as Assets held for risk-mitigation purposes",null,null,null,"Not Qualifying as Assets held for risk-mitigation purposes",null,null,null,null,null,null,null,null,null,null,null,null,null,null,null,"Shocks"]
[null,null,null,"Before Shock",null,"After Shock",null,"Before Shock",null,"After Shock",null,"Before Shock",null,"After Shock",null,"Before Shock",null,"After Shock",null,"After Shock"]
[null,null,null,{"$f":"+'Form 1EBS'!$F$8","v":" ('000s)"},null,{"$f":"+'Form 1EBS'!$F$8","v":" ('000s)"},null,{"$f":"+'Form 1EBS'!$H$8","v":" ('000s)"},null,{"$f":"+'Form 1EBS'!$H$8","v":" ('000s)"},null,{"$f":"+'Form 1EBS'!$F$8","v":" ('000s)"},null,{"$f":"+'Form 1EBS'!$F$8","v":" ('000s)"},null,{"$f":"+'Form 1EBS'!$H$8","v":" ('000s)"},null,{"$f":"+'Form 1EBS'!$H$8","v":" ('000s)"},null,{"$f":"+'Form 1EBS'!$F$8","v":" ('000s)"},null,null,null,{"$f":"+'Form 1EBS'!$F$8","v":" ('000s)"}]
[null,"Equity Holdings "]
[null,{"$f":"B27+1","v":15},"Strategic Holdings - Listed",{"$f":"Import!M11733","v":0},null,{"$f":"IF(OR(Import!M11755=0,Import!M11755=\"\"),(1-$AB39)*D39,Import!M11755)","v":0},null,{"$f":"Import!M11777","v":0},null,{"$f":"IF(OR(Import!M11799=0,Import!M11799=\"\"),(1-$AB39)*H39,Import!M11799)","v":0},null,{"$f":"Import!M11821","v":0},null,{"$f":"IF(OR(Import!M11843=0,Import!M11843=\"\"),(1-$AB39)*L39,Import!M11843)","v":0},null,{"$f":"Import!M11865","v":0},null,{"$f":"IF(OR(Import!M11887=0,Import!M11887=\"\"),P39,Import!M11887)","v":0},null,{"$f":"IF(OR(Import!M11909=0,Import!M11909=\"\"),R39,Import!M11909)","v":0},null,null,null,{"$f":"D39+H39+L39","v":0},null,null,null,0.2]
[null,{"$f":"B39+1","v":16},"Duration Based",{"$f":"Import!M11734","v":0},null,{"$f":"IF(OR(Import!M11756=0,Import!M11756=\"\"),(1-$AB40)*D40,Import!M11756)","v":0},null,{"$f":"Import!M11778","v":0},null,{"$f":"IF(OR(Import!M11800=0,Import!M11800=\"\"),(1-$AB40)*H40,Import!M11800)","v":0},null,{"$f":"Import!M11822","v":0},null,{"$f":"IF(OR(Import!M11844=0,Import!M11844=\"\"),(1-$AB40)*L40,Import!M11844)","v":0},null,{"$f":"Import!M11866","v":0},null,{"$f":"IF(OR(Import!M11888=0,Import!M11888=\"\"),P40,Import!M11888)","v":0},null,{"$f":"IF(OR(Import!M11910=0,Import!M11910=\"\"),R40,Import!M11910)","v":0},null,null,null,{"$f":"D40+H40+L40","v":0},null,null,null,0.2]
[null,17,"Listed Equity Securities in Developed Markets",{"$f":"Import!M11735","v":0},null,{"$f":"IF(OR(Import!M11757=0,Import!M11757=\"\"),(1-$AB41)*D41,Import!M11757)","v":0},null,{"$f":"Import!M11779","v":0},null,{"$f":"IF(OR(Import!M11801=0,Import!M11801=\"\"),(1-$AB41)*H41,Import!M11801)","v":0},null,{"$f":"Import!M11823","v":0},null,{"$f":"IF(OR(Import!M11845=0,Import!M11845=\"\"),(1-$AB41)*L41,Import!M11845)","v":0},null,{"$f":"Import!M11867","v":0},null,{"$f":"IF(OR(Import!M11889=0,Import!M11889=\"\"),P41,Import!M11889)","v":0},null,{"$f":"IF(OR(Import!M11911=0,Import!M11911=\"\"),R41,Import!M11911)","v":0},null,null,null,0,null,null,null,0.35]
[null,18,"Preferred Stocks, BSCR Rating 1",{"$f":"Import!M11736","v":0},null,{"$f":"IF(OR(Import!M11758=0,Import!M11758=\"\"),(1-$AB42)*D42,Import!M11758)","v":0},null,{"$f":"Import!M11780","v":0},null,{"$f":"IF(OR(Import!M11802=0,Import!M11802=\"\"),(1-$AB42)*H42,Import!M11802)","v":0},null,{"$f":"Import!M11824","v":0},null,{"$f":"IF(OR(Import!M11846=0,Import!M11846=\"\"),(1-$AB42)*L42,Import!M11846)","v":0},null,{"$f":"Import!M11868","v":0},null,{"$f":"IF(OR(Import!M11890=0,Import!M11890=\"\"),P42,Import!M11890)","v":0},null,{"$f":"IF(OR(Import!M11912=0,Import!M11912=\"\"),R42,Import!M11912)","v":0},null,null,null,0,null,null,null,6.0000000000000001E-3]
[null,19,"Preferred Stocks, BSCR Rating 2",{"$f":"Import!M11737","v":0},null,{"$f":"IF(OR(Import!M11759=0,Import!M11759=\"\"),(1-$AB43)*D43,Import!M11759)","v":0},null,{"$f":"Import!M11781","v":0},null,{"$f":"IF(OR(Import!M11803=0,Import!M11803=\"\"),(1-$AB43)*H43,Import!M11803)","v":0},null,{"$f":"Import!M11825","v":0},null,{"$f":"IF(OR(Import!M11847=0,Import!M11847=\"\"),(1-$AB43)*L43,Import!M11847)","v":0},null,{"$f":"Import!M11869","v":0},null,{"$f":"IF(OR(Import!M11891=0,Import!M11891=\"\"),P43,Import!M11891)","v":0},null,{"$f":"IF(OR(Import!M11913=0,Import!M11913=\"\"),R43,Import!M11913)","v":0},null,null,null,0,null,null,null,1.2E-2]
[null,20,"Preferred Stocks, BSCR Rating 3",{"$f":"Import!M11738","v":0},null,{"$f":"IF(OR(Import!M11760=0,Import!M11760=\"\"),(1-$AB44)*D44,Import!M11760)","v":0},null,{"$f":"Import!M11782","v":0},null,{"$f":"IF(OR(Import!M11804=0,Import!M11804=\"\"),(1-$AB44)*H44,Import!M11804)","v":0},null,{"$f":"Import!M11826","v":0},null,{"$f":"IF(OR(Import!M11848=0,Import!M11848=\"\"),(1-$AB44)*L44,Import!M11848)","v":0},null,{"$f":"Import!M11870","v":0},null,{"$f":"IF(OR(Import!M11892=0,Import!M11892=\"\"),P44,Import!M11892)","v":0},null,{"$f":"IF(OR(Import!M11914=0,Import!M11914=\"\"),R44,Import!M11914)","v":0},null,null,null,0,null,null,null,0.02]
[null,21,"Preferred Stocks, BSCR Rating 4",{"$f":"Import!M11739","v":0},null,{"$f":"IF(OR(Import!M11761=0,Import!M11761=\"\"),(1-$AB45)*D45,Import!M11761)","v":0},null,{"$f":"Import!M11783","v":0},null,{"$f":"IF(OR(Import!M11805=0,Import!M11805=\"\"),(1-$AB45)*H45,Import!M11805)","v":0},null,{"$f":"Import!M11827","v":0},null,{"$f":"IF(OR(Import!M11849=0,Import!M11849=\"\"),(1-$AB45)*L45,Import!M11849)","v":0},null,{"$f":"Import!M11871","v":0},null,{"$f":"IF(OR(Import!M11893=0,Import!M11893=\"\"),P45,Import!M11893)","v":0},null,{"$f":"IF(OR(Import!M11915=0,Import!M11915=\"\"),R45,Import!M11915)","v":0},null,null,null,0,null,null,null,0.04]
[null,22,"Preferred Stocks, BSCR Rating 5",{"$f":"Import!M11740","v":0},null,{"$f":"IF(OR(Import!M11762=0,Import!M11762=\"\"),(1-$AB46)*D46,Import!M11762)","v":0},null,{"$f":"Import!M11784","v":0},null,{"$f":"IF(OR(Import!M11806=0,Import!M11806=\"\"),(1-$AB46)*H46,Import!M11806)","v":0},null,{"$f":"Import!M11828","v":0},null,{"$f":"IF(OR(Import!M11850=0,Import!M11850=\"\"),(1-$AB46)*L46,Import!M11850)","v":0},null,{"$f":"Import!M11872","v":0},null,{"$f":"IF(OR(Import!M11894=0,Import!M11894=\"\"),P46,Import!M11894)","v":0},null,{"$f":"IF(OR(Import!M11916=0,Import!M11916=\"\"),R46,Import!M11916)","v":0},null,null,null,0,null,null,null,0.11]
[null,23,"Preferred Stocks, BSCR Rating 6",{"$f":"Import!M11741","v":0},null,{"$f":"IF(OR(Import!M11763=0,Import!M11763=\"\"),(1-$AB47)*D47,Import!M11763)","v":0},null,{"$f":"Import!M11785","v":0},null,{"$f":"IF(OR(Import!M11807=0,Import!M11807=\"\"),(1-$AB47)*H47,Import!M11807)","v":0},null,{"$f":"Import!M11829","v":0},null,{"$f":"IF(OR(Import!M11851=0,Import!M11851=\"\"),(1-$AB47)*L47,Import!M11851)","v":0},null,{"$f":"Import!M11873","v":0},null,{"$f":"IF(OR(Import!M11895=0,Import!M11895=\"\"),P47,Import!M11895)","v":0},null,{"$f":"IF(OR(Import!M11917=0,Import!M11917=\"\"),R47,Import!M11917)","v":0},null,null,null,0,null,null,null,0.25]
[null,24,"Preferred Stocks, BSCR Rating 7",{"$f":"Import!M11742","v":0},null,{"$f":"IF(OR(Import!M11764=0,Import!M11764=\"\"),(1-$AB48)*D48,Import!M11764)","v":0},null,{"$f":"Import!M11786","v":0},null,{"$f":"IF(OR(Import!M11808=0,Import!M11808=\"\"),(1-$AB48)*H48,Import!M11808)","v":0},null,{"$f":"Import!M11830","v":0},null,{"$f":"IF(OR(Import!M11852=0,Import!M11852=\"\"),(1-$AB48)*L48,Import!M11852)","v":0},null,{"$f":"Import!M11874","v":0},null,{"$f":"IF(OR(Import!M11896=0,Import!M11896=\"\"),P48,Import!M11896)","v":0},null,{"$f":"IF(OR(Import!M11918=0,Import!M11918=\"\"),R48,Import!M11918)","v":0},null,null,null,0,null,null,null,0.35]
[null,25,"Preferred Stocks, BSCR Rating 8",{"$f":"Import!M11743","v":0},null,{"$f":"IF(OR(Import!M11765=0,Import!M11765=\"\"),(1-$AB49)*D49,Import!M11765)","v":0},null,{"$f":"Import!M11787","v":0},null,{"$f":"IF(OR(Import!M11809=0,Import!M11809=\"\"),(1-$AB49)*H49,Import!M11809)","v":0},null,{"$f":"Import!M11831","v":0},null,{"$f":"IF(OR(Import!M11853=0,Import!M11853=\"\"),(1-$AB49)*L49,Import!M11853)","v":0},null,{"$f":"Import!M11875","v":0},null,{"$f":"IF(OR(Import!M11897=0,Import!M11897=\"\"),P49,Import!M11897)","v":0},null,{"$f":"IF(OR(Import!M11919=0,Import!M11919=\"\"),R49,Import!M11919)","v":0},null,null,null,0,null,null,null,0.35]
[null,26,"Equity Derivatives on Type 1 Equities",{"$f":"Import!M11744","v":0},null,{"$f":"Import!M11766","v":0},null,{"$f":"Import!M11788","v":0},null,{"$f":"Import!M11810","v":0},null,{"$f":"Import!M11832","v":0},null,{"$f":"Import!M11854","v":0},null,{"$f":"Import!M11876","v":0},null,{"$f":"IF(OR(Import!M11898=0,Import!M11898=\"\"),P50,Import!M11898)","v":0},null,{"$f":"IF(OR(Import!M11920=0,Import!M11920=\"\"),R50,Import!M11920)","v":0},null,null,null,0,null,null,null,0.35]
[null,27,"Strategic Holdings - Unlisted",{"$f":"Import!M11745","v":0},null,{"$f":"IF(OR(Import!M11767=0,Import!M11767=\"\"),(1-$AB51)*D51,Import!M11767)","v":0},null,{"$f":"Import!M11789","v":0},null,{"$f":"IF(OR(Import!M11811=0,Import!M11811=\"\"),(1-$AB51)*H51,Import!M11811)","v":0},null,{"$f":"Import!M11833","v":0},null,{"$f":"IF(OR(Import!M11855=0,Import!M11855=\"\"),(1-$AB51)*L51,Import!M11855)","v":0},null,{"$f":"Import!M11877","v":0},null,{"$f":"IF(OR(Import!M11899=0,Import!M11899=\"\"),P51,Import!M11899)","v":0},null,{"$f":"IF(OR(Import!M11921=0,Import!M11921=\"\"),R51,Import!M11921)","v":0},null,null,null,0,null,null,null,0.2]
[null,28,"Other Equities / Other Assets",{"$f":"Import!M11746","v":0},null,{"$f":"IF(OR(Import!M11768=0,Import!M11768=\"\"),(1-$AB52)*D52,Import!M11768)","v":0},null,{"$f":"Import!M11790","v":0},null,{"$f":"IF(OR(Import!M11812=0,Import!M11812=\"\"),(1-$AB52)*H52,Import!M11812)","v":0},null,{"$f":"Import!M11834","v":0},null,{"$f":"IF(OR(Import!M11856=0,Import!M11856=\"\"),(1-$AB52)*L52,Import!M11856)","v":0},null,{"$f":"Import!M11878","v":0},null,{"$f":"IF(OR(Import!M11900=0,Import!M11900=\"\"),P52,Import!M11900)","v":0},null,{"$f":"IF(OR(Import!M11922=0,Import!M11922=\"\"),R52,Import!M11922)","v":0},null,null,null,0,null,null,null,0.45]
[null,29,"Letters of Credit",{"$f":"Import!M11747","v":0},null,{"$f":"IF(OR(Import!M11769=0,Import!M11769=\"\"),(1-$AB53)*D53,Import!M11769)","v":0},null,{"$f":"Import!M11791","v":0},null,{"$f":"IF(OR(Import!M11813=0,Import!M11813=\"\"),(1-$AB53)*H53,Import!M11813)","v":0},null,{"$f":"Import!M11835","v":0},null,{"$f":"IF(OR(Import!M11857=0,Import!M11857=\"\"),(1-$AB53)*L53,Import!M11857)","v":0},null,{"$f":"Import!M11879","v":0},null,{"$f":"IF(OR(Import!M11901=0,Import!M11901=\"\"),P53,Import!M11901)","v":0},null,{"$f":"IF(OR(Import!M11923=0,Import!M11923=\"\"),R53,Import!M11923)","v":0},null,null,null,0,null,null,null,0.2]
[null,30,"Intangible assets",{"$f":"Import!M11748","v":0},null,{"$f":"IF(OR(Import!M11770=0,Import!M11770=\"\"),(1-$AB54)*D54,Import!M11770)","v":0},null,{"$f":"Import!M11792","v":0},null,{"$f":"IF(OR(Import!M11814=0,Import!M11814=\"\"),(1-$AB54)*H54,Import!M11814)","v":0},null,{"$f":"Import!M11836","v":0},null,{"$f":"IF(OR(Import!M11858=0,Import!M11858=\"\"),(1-$AB54)*L54,Import!M11858)","v":0},null,{"$f":"Import!M11880","v":0},null,{"$f":"IF(OR(Import!M11902=0,Import!M11902=\"\"),P54,Import!M11902)","v":0},null,{"$f":"IF(OR(Import!M11924=0,Import!M11924=\"\"),R54,Import!M11924)","v":0},null,null,null,0,null,null,null,0.2]
[null,31,"Pension Benefit Surplus",{"$f":"Import!M11749","v":0},null,{"$f":"IF(OR(Import!M11771=0,Import!M11771=\"\"),(1-$AB55)*D55,Import!M11771)","v":0},null,{"$f":"Import!M11793","v":0},null,{"$f":"IF(OR(Import!M11815=0,Import!M11815=\"\"),(1-$AB55)*H55,Import!M11815)","v":0},null,{"$f":"Import!M11837","v":0},null,{"$f":"IF(OR(Import!M11859=0,Import!M11859=\"\"),(1-$AB55)*L55,Import!M11859)","v":0},null,{"$f":"Import!M11881","v":0},null,{"$f":"IF(OR(Import!M11903=0,Import!M11903=\"\"),P55,Import!M11903)","v":0},null,{"$f":"IF(OR(Import!M11925=0,Import!M11925=\"\"),R55,Import!M11925)","v":0},null,null,null,0,null,null,null,0.2]
[null,32,"Equity Derivatives on Type 2 Equities",{"$f":"Import!M11750","v":0},null,{"$f":"Import!M11772","v":0},null,{"$f":"Import!M11794","v":0},null,{"$f":"Import!M11816","v":0},null,{"$f":"Import!M11838","v":0},null,{"$f":"Import!M11860","v":0},null,{"$f":"Import!M11882","v":0},null,{"$f":"IF(OR(Import!M11904=0,Import!M11904=\"\"),P56,Import!M11904)","v":0},null,{"$f":"IF(OR(Import!M11926=0,Import!M11926=\"\"),R56,Import!M11926)","v":0},null,null,null,0,null,null,null,0.45]
[null,33,"Infrastructure",{"$f":"Import!M11751","v":0},null,{"$f":"IF(OR(Import!M11773=0,Import!M11773=\"\"),(1-$AB57)*D57,Import!M11773)","v":0},null,{"$f":"Import!M11795","v":0},null,{"$f":"IF(OR(Import!M11817=0,Import!M11817=\"\"),(1-$AB57)*H57,Import!M11817)","v":0},null,{"$f":"Import!M11839","v":0},null,{"$f":"IF(OR(Import!M11861=0,Import!M11861=\"\"),(1-$AB57)*L57,Import!M11861)","v":0},null,{"$f":"Import!M11883","v":0},null,{"$f":"IF(OR(Import!M11905=0,Import!M11905=\"\"),P57,Import!M11905)","v":0},null,{"$f":"IF(OR(Import!M11927=0,Import!M11927=\"\"),R57,Import!M11927)","v":0},null,null,null,0,null,null,null,0.25]
[null,34,"Derivatives on Infrastructure",{"$f":"Import!M11752","v":0},null,{"$f":"Import!M11774","v":0},null,{"$f":"Import!M11796","v":0},null,{"$f":"Import!M11818","v":0},null,{"$f":"Import!M11840","v":0},null,{"$f":"Import!M11862","v":0},null,{"$f":"Import!M11884","v":0},null,{"$f":"IF(OR(Import!M11906=0,Import!M11906=\"\"),P58,Import!M11906)","v":0},null,{"$f":"IF(OR(Import!M11928=0,Import!M11928=\"\"),R58,Import!M11928)","v":0},null,null,null,0,null,null,null,0.25]
[null,35,"Equity Real Estate 1",{"$f":"Import!M11753","v":0},null,{"$f":"IF(OR(Import!M11775=0,Import!M11775=\"\"),(1-$AB59)*D59,Import!M11775)","v":0},null,{"$f":"Import!M11797","v":0},null,{"$f":"IF(OR(Import!M11819=0,Import!M11819=\"\"),(1-$AB59)*H59,Import!M11819)","v":0},null,{"$f":"Import!M11841","v":0},null,{"$f":"IF(OR(Import!M11863=0,Import!M11863=\"\"),(1-$AB59)*L59,Import!M11863)","v":0},null,{"$f":"Import!M11885","v":0},null,{"$f":"IF(OR(Import!M11907=0,Import!M11907=\"\"),P59,Import!M11907)","v":0},null,{"$f":"IF(OR(Import!M11929=0,Import!M11929=\"\"),R59,Import!M11929)","v":0},null,null,null,0,null,null,null,0.1]
[null,36,"Equity Real Estate 2",{"$f":"Import!M11754","v":0},null,{"$f":"IF(OR(Import!M11776=0,Import!M11776=\"\"),(1-$AB60)*D60,Import!M11776)","v":0},null,{"$f":"Import!M11798","v":0},null,{"$f":"IF(OR(Import!M11820=0,Import!M11820=\"\"),(1-$AB60)*H60,Import!M11820)","v":0},null,{"$f":"Import!M11842","v":0},null,{"$f":"IF(OR(Import!M11864=0,Import!M11864=\"\"),(1-$AB60)*L60,Import!M11864)","v":0},null,{"$f":"Import!M11886","v":0},null,{"$f":"IF(OR(Import!M11908=0,Import!M11908=\"\"),P60,Import!M11908)","v":0},null,{"$f":"IF(OR(Import!M11930=0,Import!M11930=\"\"),R60,Import!M11930)","v":0},null,null,null,0,null,null,null,0.2]
[]
[null,{"$f":"B60+1","v":37},"Total Equity Holdings",{"$f":"SUM(D38:D61)","v":0},null,{"$f":"SUM(F38:F61)","v":0},null,{"$f":"SUM(H38:H61)","v":0},null,{"$f":"SUM(J38:J61)","v":0},null,{"$f":"SUM(L38:L61)","v":0},null,{"$f":"SUM(N38:N61)","v":0},null,{"$f":"SUM(P38:P61)","v":0},null,{"$f":"SUM(R38:R61)","v":0},null,{"$f":"SUM(T38:T61)","v":0},null,null,null,{"$f":"SUM(X38:X61)","v":0}]
[null,null,null,null,null,null,null,null,null,null,null,null,null,null,null,null,null,null,null,null,null,null,null,null,null,null,null,null,null,null,"brrt_RiskGradeAxis_brrt_TotalMember"]
[null,null,null,"Spread Up",null,null,null,null,null,null,null,null,null,"Spread Down"]
[null,null,null,"Long Exposures",null,null,null,"Short Exposures",null,null,null,"Shock (bps)",null,"Long Exposures",null,null,null,"Short Exposures",null,null,null,"Shock Rates"]
[null,null,null,"Before Shock",null,"After Shock",null,"Before Shock",null,"After Shock",null,null,null,"Before Shock",null,"After Shock",null,"Before Shock",null,"After Shock"]
[null,null,"Spread Risk for Credit Derivatives",null,null,null,null,null,null,null,null,null,null,null,null,null,{"$f":"SUM(G71:G79)","v":0},null,{"$f":"SUM(I71:I79)","v":0},null,{"$f":"SUM(K71:K79)","v":0}]
[null,{"$f":"B62+1","v":38},"BSCR Rating 0",{"$f":"Import!M11931","v":0},null,{"$f":"Import!M11940","v":0},null,{"$f":"Import!M11949","v":0},null,{"$f":"Import!M11958","v":0},null,0,null,{"$f":"Import!M11967","v":0},null,{"$f":"Import!M11976","v":0},null,{"$f":"Import!M11985","v":0},null,{"$f":"Import!M11994","v":0},null,0]
[null,{"$f":"B68+1","v":39},"BSCR Rating 1",{"$f":"Import!M11932","v":0},null,{"$f":"Import!M11941","v":0},null,{"$f":"Import!M11950","v":0},null,{"$f":"Import!M11959","v":0},null,130,null,{"$f":"Import!M11968","v":0},null,{"$f":"Import!M11977","v":0},null,{"$f":"Import!M11986","v":0},null,{"$f":"Import!M11995","v":0},null,-0.75]
[null,{"$f":"B69+1","v":40},"BSCR Rating 2",{"$f":"Import!M11933","v":0},null,{"$f":"Import!M11942","v":0},null,{"$f":"Import!M11951","v":0},null,{"$f":"Import!M11960","v":0},null,150,null,{"$f":"Import!M11969","v":0},null,{"$f":"Import!M11978","v":0},null,{"$f":"Import!M11987","v":0},null,{"$f":"Import!M11996","v":0},null,-0.75]
[null,41,"BSCR Rating 3",{"$f":"Import!M11934","v":0},null,{"$f":"Import!M11943","v":0},null,{"$f":"Import!M11952","v":0},null,{"$f":"Import!M11961","v":0},null,260,null,{"$f":"Import!M11970","v":0},null,{"$f":"Import!M11979","v":0},null,{"$f":"Import!M11988","v":0},null,{"$f":"Import!M11997","v":0},null,-0.75]
[null,42,"BSCR Rating 4",{"$f":"Import!M11935","v":0},null,{"$f":"Import!M11944","v":0},null,{"$f":"Import!M11953","v":0},null,{"$f":"Import!M11962","v":0},null,450,null,{"$f":"Import!M11971","v":0},null,{"$f":"Import!M11980","v":0},null,{"$f":"Import!M11989","v":0},null,{"$f":"Import!M11998","v":0},null,-0.75]
[null,43,"BSCR Rating 5",{"$f":"Import!M11936","v":0},null,{"$f":"Import!M11945","v":0},null,{"$f":"Import!M11954","v":0},null,{"$f":"Import!M11963","v":0},null,840,null,{"$f":"Import!M11972","v":0},null,{"$f":"Import!M11981","v":0},null,{"$f":"Import!M11990","v":0},null,{"$f":"Import!M11999","v":0},null,-0.75]
[null,44,"BSCR Rating 6",{"$f":"Import!M11937","v":0},null,{"$f":"Import!M11946","v":0},null,{"$f":"Import!M11955","v":0},null,{"$f":"Import!M11964","v":0},null,1620,null,{"$f":"Import!M11973","v":0},null,{"$f":"Import!M11982","v":0},null,{"$f":"Import!M11991","v":0},null,{"$f":"Import!M12000","v":0},null,-0.75]
[null,45,"BSCR Rating 7",{"$f":"Import!M11938","v":0},null,{"$f":"Import!M11947","v":0},null,{"$f":"Import!M11956","v":0},null,{"$f":"Import!M11965","v":0},null,1620,null,{"$f":"Import!M11974","v":0},null,{"$f":"Import!M11983","v":0},null,{"$f":"Import!M11992","v":0},null,{"$f":"Import!M12001","v":0},null,-0.75]
[null,46,"BSCR Rating 8",{"$f":"Import!M11939","v":0},null,{"$f":"Import!M11948","v":0},null,{"$f":"Import!M11957","v":0},null,{"$f":"Import!M11966","v":0},null,1620,null,{"$f":"Import!M11975","v":0},null,{"$f":"Import!M11984","v":0},null,{"$f":"Import!M11993","v":0},null,{"$f":"Import!M12002","v":0},null,-0.75]
[null,47,"Total Spread",{"$f":"SUM(D67:D76)","v":0},null,{"$f":"SUM(F67:F76)","v":0},null,{"$f":"SUM(H67:H76)","v":0},null,{"$f":"SUM(J67:J76)","v":0},null,null,null,{"$f":"SUM(N67:N76)","v":0},null,{"$f":"SUM(P67:P76)","v":0},{"$f":"SUM(Q67:Q76)","v":0},{"$f":"SUM(R67:R76)","v":0},{"$f":"SUM(S67:S76)","v":0},{"$f":"SUM(T67:T76)","v":0},{"$f":"SUM(U67:U76)","v":0}]
[]
[null,null,"Spread Risk Check",null,null,null,null,null,null,null,null,null,null,{"$f":"IF(ROUND(D77-N77,0)=0,\"Yes\",\"No\")","v":"Yes"},null,null,null,{"$f":"IF(ROUND(H77-R77,0)=0,\"Yes\",\"No\")","v":"Yes"}]
[null,null,"Difference",null,null,null,null,null,null,null,null,null,null,{"$f":"ROUND(D77-N77,0)","v":0},null,null,null,{"$f":"ROUND(H77-R77,0)","v":0}]
[]
[null,null,null,"Market Value of Derivatives with Positive Market Value",null,"Market Value of Derivatives with Negative Market Value",null,"Market Value of Collateral, Excluding any over-collateralization"]
[null,null,"Counterparty Default Risk for OTC Derivatives"]
[null,{"$f":"B77+1","v":48},"BSCR Rating 0",{"$f":"Import!M12003","v":0},null,{"$f":"Import!M12012","v":0},null,{"$f":"Import!M12021","v":0}]
[null,{"$f":"B84+1","v":49},"BSCR Rating 1",{"$f":"Import!M12004","v":0},null,{"$f":"Import!M12013","v":0},null,{"$f":"Import!M12022","v":0}]
[null,{"$f":"B85+1","v":50},"BSCR Rating 2",{"$f":"Import!M12005","v":0},null,{"$f":"Import!M12014","v":0},null,{"$f":"Import!M12023","v":0}]
[null,51,"BSCR Rating 3",{"$f":"Import!M12006","v":0},null,{"$f":"Import!M12015","v":0},null,{"$f":"Import!M12024","v":0}]
[null,52,"BSCR Rating 4",{"$f":"Import!M12007","v":0},null,{"$f":"Import!M12016","v":0},null,{"$f":"Import!M12025","v":0}]
[null,53,"BSCR Rating 5",{"$f":"Import!M12008","v":0},null,{"$f":"Import!M12017","v":0},null,{"$f":"Import!M12026","v":0}]
[null,54,"BSCR Rating 6",{"$f":"Import!M12009","v":0},null,{"$f":"Import!M12018","v":0},null,{"$f":"Import!M12027","v":0}]
[null,55,"BSCR Rating 7",{"$f":"Import!M12010","v":0},null,{"$f":"Import!M12019","v":0},null,{"$f":"Import!M12028","v":0}]
[null,56,"BSCR Rating 8",{"$f":"Import!M12011","v":0},null,{"$f":"Import!M12020","v":0},null,{"$f":"Import!M12029","v":0}]
[null,57,"Total Default Risk for OTC Derivatives ",{"$f":"SUM(D83:D92)","v":0},null,{"$f":"SUM(F83:F92)","v":0},null,{"$f":"SUM(H83:H92)","v":0}]
[]
[null,{"$f":"B93+1","v":58},"Cash and Cash Equivalents",{"$f":"Import!M12030","v":0}]
[null,null,null,null,null,null,null,null,null,null,null,null,null,null,null,null,null,null,null,null,null,null,null,null,null,null,null,null,null,null,null,null,null,null,null,null,"brrt_RiskGradeAxis_brrt_NAICClass4Member"]
[null,{"$f":"B95+1","v":59},"Total Funds Held",{"$f":"X27+X62+D77+H77+D93+F93+H93+D95","v":0},null,null,null,null,null,null,null,null,null,null,null,null,null,null,null,null,null,null,null,null,null,null,null,null,null,null,null,"brrt_InvestmentsInMortgageLoansOnRealEstate",{"$f":"XBRLMap(H97,$AF97&\".\"&$AE$8,$D$101,$D$102,CONFIGURATION!$B$10,\"BMA\",CONFIGURATION!$B$1,\"bscr\",CONFIGURATION!$B$12)","v":"Mapped"},{"$f":"XBRLMap(J97,$AF97&\".\"&$AE$8,$F$101,$F$102,CONFIGURATION!$B$10,\"BMA\",CONFIGURATION!$B$1,\"bscr\",CONFIGURATION!$B$12)","v":"Mapped"},null,null,"brrt_RiskGradeAxis_brrt_NAICClass5Member"]
[]
[]
[]
[null,null,null,{"$f":"IF(D9=\"\",\"\",TEXT(DATE(YEAR(D9+1)-1,MONTH(D9+1),DAY(D9+1)),\"mm/dd/yyyy\"))","v":"01/01/2019"},null,{"$f":"IF(F9=\"\",\"\",TEXT(DATE(YEAR(F9+1)-1,MONTH(F9+1),DAY(F9+1)),\"mm/dd/yyyy\"))","v":"01/01/2018"}]
[null,null,null,{"$f":"IF(D9=\"\",\"\",TEXT(D9,\"mm/dd/yyyy\"))","v":"12/31/2019"},null,{"$f":"IF(F9=\"\",\"\",TEXT(F9,\"mm/dd/yyyy\"))","v":"12/31/2018"}]
[null,null,null,"brrt_BondsAndDebentures",null,"brrt_BondsAndDebentures",null,"brrt_BondsAndDebentures",null,"brrt_BondsAndDebentures",null,"brrt_BondsAndDebentures",null,"brrt_BondsAndDebentures",null,"brrt_BondsAndDebentures",null,"brrt_BondsAndDebentures",null,null,null,null,null,"brrt_BondsAndDebentures",null,"brrt_BondsAndDebentures"]
[null,null,null,"brrt_SecurityTypeAxis_brrt_CorporateSovereignBondsMember",null,"brrt_SecurityTypeAxis_brrt_CorporateSovereignBondsMember",null,"brrt_SecurityTypeAxis_brrt_ResidentialMortgageBackedSecuritiesMember",null,"brrt_SecurityTypeAxis_brrt_ResidentialMortgageBackedSecuritiesMember",null,"brrt_SecurityTypeAxis_brrt_CommercialMortgageBackedSecuritiesAssetBackedSecuritiesMember",null,"brrt_SecurityTypeAxis_brrt_CommercialMortgageBackedSecuritiesAssetBackedSecuritiesMember",null,"brrt_SecurityTypeAxis_brrt_MutualFundsMember",null,"brrt_SecurityTypeAxis_brrt_MutualFundsMember",null,null,null,null,null,"brrt_SecurityTypeAxis_brrt_TotalMember",null,"brrt_SecurityTypeAxis_brrt_TotalMember"]
[null,null,null,{"$f":"XBRLMap(D13,D$103&\".\"&$AE13&\".\"&$D$104&\".\"&$AE$8,$D$101,$D$102,CONFIGURATION!$B$10,\"BMA\",CONFIGURATION!$B$1,\"bscr\",CONFIGURATION!$B$12)","v":"Mapped"},null,{"$f":"XBRLMap(F13,F$103&\".\"&$AE13&\".\"&$F$104&\".\"&$AE$8,$F$101,$F$102,CONFIGURATION!$B$10,\"BMA\",CONFIGURATION!$B$1,\"bscr\",CONFIGURATION!$B$12)","v":"Mapped"},null,null,null,null,null,null,null,null,null,{"$f":"XBRLMap(P13,P$103&\".\"&$AE13&\".\"&$P$104&\".\"&$AE$8,$D$101,$D$102,CONFIGURATION!$B$10,\"BMA\",CONFIGURATION!$B$1,\"bscr\",CONFIGURATION!$B$12)","v":"Mapped"},null,{"$f":"XBRLMap(R13,R$103&\".\"&$AE13&\".\"&$R$104&\".\"&$AE$8,$F$101,$F$102,CONFIGURATION!$B$10,\"BMA\",CONFIGURATION!$B$1,\"bscr\",CONFIGURATION!$B$12)","v":"Mapped"},null,null,null,null,null,{"$f":"XBRLMap(X13,X$103&\".\"&$AE13&\".\"&$X$104&\".\"&$AE$8,$D$101,$D$102,CONFIGURATION!$B$10,\"BMA\",CONFIGURATION!$B$1,\"bscr\",CONFIGURATION!$B$12)","v":"Mapped"},null,{"$f":"XBRLMap(Z13,Z$103&\".\"&$AE13&\".\"&$Z$104&\".\"&$AE$8,$F$101,$F$102,CONFIGURATION!$B$10,\"BMA\",CONFIGURATION!$B$1,\"bscr\",CONFIGURATION!$B$12)","v":"Mapped"}]
[null,null,null,{"$f":"XBRLMap(D14,D$103&\".\"&$AE14&\".\"&$D$104&\".\"&$AE$8,$D$101,$D$102,CONFIGURATION!$B$10,\"BMA\",CONFIGURATION!$B$1,\"bscr\",CONFIGURATION!$B$12)","v":"Mapped"},null,{"$f":"XBRLMap(F14,F$103&\".\"&$AE14&\".\"&$F$104&\".\"&$AE$8,$F$101,$F$102,CONFIGURATION!$B$10,\"BMA\",CONFIGURATION!$B$1,\"bscr\",CONFIGURATION!$B$12)","v":"Mapped"},null,{"$f":"XBRLMap(H14,H$103&\".\"&$AE14&\".\"&$H$104&\".\"&$AE$8,$D$101,$D$102,CONFIGURATION!$B$10,\"BMA\",CONFIGURATION!$B$1,\"bscr\",CONFIGURATION!$B$12)","v":"Mapped"},null,{"$f":"XBRLMap(J14,J$103&\".\"&$AE14&\".\"&$J$104&\".\"&$AE$8,$F$101,$F$102,CONFIGURATION!$B$10,\"BMA\",CONFIGURATION!$B$1,\"bscr\",CONFIGURATION!$B$12)","v":"Mapped"},null,{"$f":"XBRLMap(L14,L$103&\".\"&$AE14&\".\"&$L$104&\".\"&$AE$8,$D$101,$D$102,CONFIGURATION!$B$10,\"BMA\",CONFIGURATION!$B$1,\"bscr\",CONFIGURATION!$B$12)","v":"Mapped"},null,{"$f":"XBRLMap(N14,N$103&\".\"&$AE14&\".\"&$N$104&\".\"&$AE$8,$F$101,$F$102,CONFIGURATION!$B$10,\"BMA\",CONFIGURATION!$B$1,\"bscr\",CONFIGURATION!$B$12)","v":"Mapped"},null,{"$f":"XBRLMap(P14,P$103&\".\"&$AE14&\".\"&$P$104&\".\"&$AE$8,$D$101,$D$102,CONFIGURATION!$B$10,\"BMA\",CONFIGURATION!$B$1,\"bscr\",CONFIGURATION!$B$12)","v":"Mapped"},null,{"$f":"XBRLMap(R14,R$103&\".\"&$AE14&\".\"&$R$104&\".\"&$AE$8,$F$101,$F$102,CONFIGURATION!$B$10,\"BMA\",CONFIGURATION!$B$1,\"bscr\",CONFIGURATION!$B$12)","v":"Mapped"},null,null,null,null,null,{"$f":"XBRLMap(X14,X$103&\".\"&$AE14&\".\"&$X$104&\".\"&$AE$8,$D$101,$D$102,CONFIGURATION!$B$10,\"BMA\",CONFIGURATION!$B$1,\"bscr\",CONFIGURATION!$B$12)","v":"Mapped"},null,{"$f":"XBRLMap(Z14,Z$103&\".\"&$AE14&\".\"&$Z$104&\".\"&$AE$8,$F$101,$F$102,CONFIGURATION!$B$10,\"BMA\",CONFIGURATION!$B$1,\"bscr\",CONFIGURATION!$B$12)","v":"Mapped"}]
[null,null,null,{"$f":"XBRLMap(D15,D$103&\".\"&$AE15&\".\"&$D$104&\".\"&$AE$8,$D$101,$D$102,CONFIGURATION!$B$10,\"BMA\",CONFIGURATION!$B$1,\"bscr\",CONFIGURATION!$B$12)","v":"Mapped"},null,{"$f":"XBRLMap(F15,F$103&\".\"&$AE15&\".\"&$F$104&\".\"&$AE$8,$F$101,$F$102,CONFIGURATION!$B$10,\"BMA\",CONFIGURATION!$B$1,\"bscr\",CONFIGURATION!$B$12)","v":"Mapped"},null,{"$f":"XBRLMap(H15,H$103&\".\"&$AE15&\".\"&$H$104&\".\"&$AE$8,$D$101,$D$102,CONFIGURATION!$B$10,\"BMA\",CONFIGURATION!$B$1,\"bscr\",CONFIGURATION!$B$12)","v":"Mapped"},null,{"$f":"XBRLMap(J15,J$103&\".\"&$AE15&\".\"&$J$104&\".\"&$AE$8,$F$101,$F$102,CONFIGURATION!$B$10,\"BMA\",CONFIGURATION!$B$1,\"bscr\",CONFIGURATION!$B$12)","v":"Mapped"},null,{"$f":"XBRLMap(L15,L$103&\".\"&$AE15&\".\"&$L$104&\".\"&$AE$8,$D$101,$D$102,CONFIGURATION!$B$10,\"BMA\",CONFIGURATION!$B$1,\"bscr\",CONFIGURATION!$B$12)","v":"Mapped"},null,{"$f":"XBRLMap(N15,N$103&\".\"&$AE15&\".\"&$N$104&\".\"&$AE$8,$F$101,$F$102,CONFIGURATION!$B$10,\"BMA\",CONFIGURATION!$B$1,\"bscr\",CONFIGURATION!$B$12)","v":"Mapped"},null,{"$f":"XBRLMap(P15,P$103&\".\"&$AE15&\".\"&$P$104&\".\"&$AE$8,$D$101,$D$102,CONFIGURATION!$B$10,\"BMA\",CONFIGURATION!$B$1,\"bscr\",CONFIGURATION!$B$12)","v":"Mapped"},null,{"$f":"XBRLMap(R15,R$103&\".\"&$AE15&\".\"&$R$104&\".\"&$AE$8,$F$101,$F$102,CONFIGURATION!$B$10,\"BMA\",CONFIGURATION!$B$1,\"bscr\",CONFIGURATION!$B$12)","v":"Mapped"},null,null,null,null,null,{"$f":"XBRLMap(X15,X$103&\".\"&$AE15&\".\"&$X$104&\".\"&$AE$8,$D$101,$D$102,CONFIGURATION!$B$10,\"BMA\",CONFIGURATION!$B$1,\"bscr\",CONFIGURATION!$B$12)","v":"Mapped"},null,{"$f":"XBRLMap(Z15,Z$103&\".\"&$AE15&\".\"&$Z$104&\".\"&$AE$8,$F$101,$F$102,CONFIGURATION!$B$10,\"BMA\",CONFIGURATION!$B$1,\"bscr\",CONFIGURATION!$B$12)","v":"Mapped"}]
[null,null,null,{"$f":"XBRLMap(D16,D$103&\".\"&$AE16&\".\"&$D$104&\".\"&$AE$8,$D$101,$D$102,CONFIGURATION!$B$10,\"BMA\",CONFIGURATION!$B$1,\"bscr\",CONFIGURATION!$B$12)","v":"Mapped"},null,{"$f":"XBRLMap(F16,F$103&\".\"&$AE16&\".\"&$F$104&\".\"&$AE$8,$F$101,$F$102,CONFIGURATION!$B$10,\"BMA\",CONFIGURATION!$B$1,\"bscr\",CONFIGURATION!$B$12)","v":"Mapped"},null,{"$f":"XBRLMap(H16,H$103&\".\"&$AE16&\".\"&$H$104&\".\"&$AE$8,$D$101,$D$102,CONFIGURATION!$B$10,\"BMA\",CONFIGURATION!$B$1,\"bscr\",CONFIGURATION!$B$12)","v":"Mapped"},null,{"$f":"XBRLMap(J16,J$103&\".\"&$AE16&\".\"&$J$104&\".\"&$AE$8,$F$101,$F$102,CONFIGURATION!$B$10,\"BMA\",CONFIGURATION!$B$1,\"bscr\",CONFIGURATION!$B$12)","v":"Mapped"},null,{"$f":"XBRLMap(L16,L$103&\".\"&$AE16&\".\"&$L$104&\".\"&$AE$8,$D$101,$D$102,CONFIGURATION!$B$10,\"BMA\",CONFIGURATION!$B$1,\"bscr\",CONFIGURATION!$B$12)","v":"Mapped"},null,{"$f":"XBRLMap(N16,N$103&\".\"&$AE16&\".\"&$N$104&\".\"&$AE$8,$F$101,$F$102,CONFIGURATION!$B$10,\"BMA\",CONFIGURATION!$B$1,\"bscr\",CONFIGURATION!$B$12)","v":"Mapped"},null,{"$f":"XBRLMap(P16,P$103&\".\"&$AE16&\".\"&$P$104&\".\"&$AE$8,$D$101,$D$102,CONFIGURATION!$B$10,\"BMA\",CONFIGURATION!$B$1,\"bscr\",CONFIGURATION!$B$12)","v":"Mapped"},null,{"$f":"XBRLMap(R16,R$103&\".\"&$AE16&\".\"&$R$104&\".\"&$AE$8,$F$101,$F$102,CONFIGURATION!$B$10,\"BMA\",CONFIGURATION!$B$1,\"bscr\",CONFIGURATION!$B$12)","v":"Mapped"},null,null,null,null,null,{"$f":"XBRLMap(X16,X$103&\".\"&$AE16&\".\"&$X$104&\".\"&$AE$8,$D$101,$D$102,CONFIGURATION!$B$10,\"BMA\",CONFIGURATION!$B$1,\"bscr\",CONFIGURATION!$B$12)","v":"Mapped"},null,{"$f":"XBRLMap(Z16,Z$103&\".\"&$AE16&\".\"&$Z$104&\".\"&$AE$8,$F$101,$F$102,CONFIGURATION!$B$10,\"BMA\",CONFIGURATION!$B$1,\"bscr\",CONFIGURATION!$B$12)","v":"Mapped"}]
[null,null,null,{"$f":"XBRLMap(D17,D$103&\".\"&$AE17&\".\"&$D$104&\".\"&$AE$8,$D$101,$D$102,CONFIGURATION!$B$10,\"BMA\",CONFIGURATION!$B$1,\"bscr\",CONFIGURATION!$B$12)","v":"Mapped"},null,{"$f":"XBRLMap(F17,F$103&\".\"&$AE17&\".\"&$F$104&\".\"&$AE$8,$F$101,$F$102,CONFIGURATION!$B$10,\"BMA\",CONFIGURATION!$B$1,\"bscr\",CONFIGURATION!$B$12)","v":"Mapped"},null,{"$f":"XBRLMap(H17,H$103&\".\"&$AE17&\".\"&$H$104&\".\"&$AE$8,$D$101,$D$102,CONFIGURATION!$B$10,\"BMA\",CONFIGURATION!$B$1,\"bscr\",CONFIGURATION!$B$12)","v":"Mapped"},null,{"$f":"XBRLMap(J17,J$103&\".\"&$AE17&\".\"&$J$104&\".\"&$AE$8,$F$101,$F$102,CONFIGURATION!$B$10,\"BMA\",CONFIGURATION!$B$1,\"bscr\",CONFIGURATION!$B$12)","v":"Mapped"},null,{"$f":"XBRLMap(L17,L$103&\".\"&$AE17&\".\"&$L$104&\".\"&$AE$8,$D$101,$D$102,CONFIGURATION!$B$10,\"BMA\",CONFIGURATION!$B$1,\"bscr\",CONFIGURATION!$B$12)","v":"Mapped"},null,{"$f":"XBRLMap(N17,N$103&\".\"&$AE17&\".\"&$N$104&\".\"&$AE$8,$F$101,$F$102,CONFIGURATION!$B$10,\"BMA\",CONFIGURATION!$B$1,\"bscr\",CONFIGURATION!$B$12)","v":"Mapped"},null,{"$f":"XBRLMap(P17,P$103&\".\"&$AE17&\".\"&$P$104&\".\"&$AE$8,$D$101,$D$102,CONFIGURATION!$B$10,\"BMA\",CONFIGURATION!$B$1,\"bscr\",CONFIGURATION!$B$12)","v":"Mapped"},null,{"$f":"XBRLMap(R17,R$103&\".\"&$AE17&\".\"&$R$104&\".\"&$AE$8,$F$101,$F$102,CONFIGURATION!$B$10,\"BMA\",CONFIGURATION!$B$1,\"bscr\",CONFIGURATION!$B$12)","v":"Mapped"},null,null,null,null,null,{"$f":"XBRLMap(X17,X$103&\".\"&$AE17&\".\"&$X$104&\".\"&$AE$8,$D$101,$D$102,CONFIGURATION!$B$10,\"BMA\",CONFIGURATION!$B$1,\"bscr\",CONFIGURATION!$B$12)","v":"Mapped"},null,{"$f":"XBRLMap(Z17,Z$103&\".\"&$AE17&\".\"&$Z$104&\".\"&$AE$8,$F$101,$F$102,CONFIGURATION!$B$10,\"BMA\",CONFIGURATION!$B$1,\"bscr\",CONFIGURATION!$B$12)","v":"Mapped"}]
[null,null,null,{"$f":"XBRLMap(D18,D$103&\".\"&$AE18&\".\"&$D$104&\".\"&$AE$8,$D$101,$D$102,CONFIGURATION!$B$10,\"BMA\",CONFIGURATION!$B$1,\"bscr\",CONFIGURATION!$B$12)","v":"Mapped"},null,{"$f":"XBRLMap(F18,F$103&\".\"&$AE18&\".\"&$F$104&\".\"&$AE$8,$F$101,$F$102,CONFIGURATION!$B$10,\"BMA\",CONFIGURATION!$B$1,\"bscr\",CONFIGURATION!$B$12)","v":"Mapped"},null,{"$f":"XBRLMap(H18,H$103&\".\"&$AE18&\".\"&$H$104&\".\"&$AE$8,$D$101,$D$102,CONFIGURATION!$B$10,\"BMA\",CONFIGURATION!$B$1,\"bscr\",CONFIGURATION!$B$12)","v":"Mapped"},null,{"$f":"XBRLMap(J18,J$103&\".\"&$AE18&\".\"&$J$104&\".\"&$AE$8,$F$101,$F$102,CONFIGURATION!$B$10,\"BMA\",CONFIGURATION!$B$1,\"bscr\",CONFIGURATION!$B$12)","v":"Mapped"},null,{"$f":"XBRLMap(L18,L$103&\".\"&$AE18&\".\"&$L$104&\".\"&$AE$8,$D$101,$D$102,CONFIGURATION!$B$10,\"BMA\",CONFIGURATION!$B$1,\"bscr\",CONFIGURATION!$B$12)","v":"Mapped"},null,{"$f":"XBRLMap(N18,N$103&\".\"&$AE18&\".\"&$N$104&\".\"&$AE$8,$F$101,$F$102,CONFIGURATION!$B$10,\"BMA\",CONFIGURATION!$B$1,\"bscr\",CONFIGURATION!$B$12)","v":"Mapped"},null,{"$f":"XBRLMap(P18,P$103&\".\"&$AE18&\".\"&$P$104&\".\"&$AE$8,$D$101,$D$102,CONFIGURATION!$B$10,\"BMA\",CONFIGURATION!$B$1,\"bscr\",CONFIGURATION!$B$12)","v":"Mapped"},null,{"$f":"XBRLMap(R18,R$103&\".\"&$AE18&\".\"&$R$104&\".\"&$AE$8,$F$101,$F$102,CONFIGURATION!$B$10,\"BMA\",CONFIGURATION!$B$1,\"bscr\",CONFIGURATION!$B$12)","v":"Mapped"},null,null,null,null,null,{"$f":"XBRLMap(X18,X$103&\".\"&$AE18&\".\"&$X$104&\".\"&$AE$8,$D$101,$D$102,CONFIGURATION!$B$10,\"BMA\",CONFIGURATION!$B$1,\"bscr\",CONFIGURATION!$B$12)","v":"Mapped"},null,{"$f":"XBRLMap(Z18,Z$103&\".\"&$AE18&\".\"&$Z$104&\".\"&$AE$8,$F$101,$F$102,CONFIGURATION!$B$10,\"BMA\",CONFIGURATION!$B$1,\"bscr\",CONFIGURATION!$B$12)","v":"Mapped"}]
[null,null,null,{"$f":"XBRLMap(D19,D$103&\".\"&$AE19&\".\"&$D$104&\".\"&$AE$8,$D$101,$D$102,CONFIGURATION!$B$10,\"BMA\",CONFIGURATION!$B$1,\"bscr\",CONFIGURATION!$B$12)","v":"Mapped"},null,{"$f":"XBRLMap(F19,F$103&\".\"&$AE19&\".\"&$F$104&\".\"&$AE$8,$F$101,$F$102,CONFIGURATION!$B$10,\"BMA\",CONFIGURATION!$B$1,\"bscr\",CONFIGURATION!$B$12)","v":"Mapped"},null,{"$f":"XBRLMap(H19,H$103&\".\"&$AE19&\".\"&$H$104&\".\"&$AE$8,$D$101,$D$102,CONFIGURATION!$B$10,\"BMA\",CONFIGURATION!$B$1,\"bscr\",CONFIGURATION!$B$12)","v":"Mapped"},null,{"$f":"XBRLMap(J19,J$103&\".\"&$AE19&\".\"&$J$104&\".\"&$AE$8,$F$101,$F$102,CONFIGURATION!$B$10,\"BMA\",CONFIGURATION!$B$1,\"bscr\",CONFIGURATION!$B$12)","v":"Mapped"},null,{"$f":"XBRLMap(L19,L$103&\".\"&$AE19&\".\"&$L$104&\".\"&$AE$8,$D$101,$D$102,CONFIGURATION!$B$10,\"BMA\",CONFIGURATION!$B$1,\"bscr\",CONFIGURATION!$B$12)","v":"Mapped"},null,{"$f":"XBRLMap(N19,N$103&\".\"&$AE19&\".\"&$N$104&\".\"&$AE$8,$F$101,$F$102,CONFIGURATION!$B$10,\"BMA\",CONFIGURATION!$B$1,\"bscr\",CONFIGURATION!$B$12)","v":"Mapped"},null,{"$f":"XBRLMap(P19,P$103&\".\"&$AE19&\".\"&$P$104&\".\"&$AE$8,$D$101,$D$102,CONFIGURATION!$B$10,\"BMA\",CONFIGURATION!$B$1,\"bscr\",CONFIGURATION!$B$12)","v":"Mapped"},null,{"$f":"XBRLMap(R19,R$103&\".\"&$AE19&\".\"&$R$104&\".\"&$AE$8,$F$101,$F$102,CONFIGURATION!$B$10,\"BMA\",CONFIGURATION!$B$1,\"bscr\",CONFIGURATION!$B$12)","v":"Mapped"},null,null,null,null,null,{"$f":"XBRLMap(X19,X$103&\".\"&$AE19&\".\"&$X$104&\".\"&$AE$8,$D$101,$D$102,CONFIGURATION!$B$10,\"BMA\",CONFIGURATION!$B$1,\"bscr\",CONFIGURATION!$B$12)","v":"Mapped"},null,{"$f":"XBRLMap(Z19,Z$103&\".\"&$AE19&\".\"&$Z$104&\".\"&$AE$8,$F$101,$F$102,CONFIGURATION!$B$10,\"BMA\",CONFIGURATION!$B$1,\"bscr\",CONFIGURATION!$B$12)","v":"Mapped"}]
[null,null,null,{"$f":"XBRLMap(D20,D$103&\".\"&$AE20&\".\"&$D$104&\".\"&$AE$8,$D$101,$D$102,CONFIGURATION!$B$10,\"BMA\",CONFIGURATION!$B$1,\"bscr\",CONFIGURATION!$B$12)","v":"Mapped"},null,{"$f":"XBRLMap(F20,F$103&\".\"&$AE20&\".\"&$F$104&\".\"&$AE$8,$F$101,$F$102,CONFIGURATION!$B$10,\"BMA\",CONFIGURATION!$B$1,\"bscr\",CONFIGURATION!$B$12)","v":"Mapped"},null,{"$f":"XBRLMap(H20,H$103&\".\"&$AE20&\".\"&$H$104&\".\"&$AE$8,$D$101,$D$102,CONFIGURATION!$B$10,\"BMA\",CONFIGURATION!$B$1,\"bscr\",CONFIGURATION!$B$12)","v":"Mapped"},null,{"$f":"XBRLMap(J20,J$103&\".\"&$AE20&\".\"&$J$104&\".\"&$AE$8,$F$101,$F$102,CONFIGURATION!$B$10,\"BMA\",CONFIGURATION!$B$1,\"bscr\",CONFIGURATION!$B$12)","v":"Mapped"},null,{"$f":"XBRLMap(L20,L$103&\".\"&$AE20&\".\"&$L$104&\".\"&$AE$8,$D$101,$D$102,CONFIGURATION!$B$10,\"BMA\",CONFIGURATION!$B$1,\"bscr\",CONFIGURATION!$B$12)","v":"Mapped"},null,{"$f":"XBRLMap(N20,N$103&\".\"&$AE20&\".\"&$N$104&\".\"&$AE$8,$F$101,$F$102,CONFIGURATION!$B$10,\"BMA\",CONFIGURATION!$B$1,\"bscr\",CONFIGURATION!$B$12)","v":"Mapped"},null,{"$f":"XBRLMap(P20,P$103&\".\"&$AE20&\".\"&$P$104&\".\"&$AE$8,$D$101,$D$102,CONFIGURATION!$B$10,\"BMA\",CONFIGURATION!$B$1,\"bscr\",CONFIGURATION!$B$12)","v":"Mapped"},null,{"$f":"XBRLMap(R20,R$103&\".\"&$AE20&\".\"&$R$104&\".\"&$AE$8,$F$101,$F$102,CONFIGURATION!$B$10,\"BMA\",CONFIGURATION!$B$1,\"bscr\",CONFIGURATION!$B$12)","v":"Mapped"},null,null,null,null,null,{"$f":"XBRLMap(X20,X$103&\".\"&$AE20&\".\"&$X$104&\".\"&$AE$8,$D$101,$D$102,CONFIGURATION!$B$10,\"BMA\",CONFIGURATION!$B$1,\"bscr\",CONFIGURATION!$B$12)","v":"Mapped"},null,{"$f":"XBRLMap(Z20,Z$103&\".\"&$AE20&\".\"&$Z$104&\".\"&$AE$8,$F$101,$F$102,CONFIGURATION!$B$10,\"BMA\",CONFIGURATION!$B$1,\"bscr\",CONFIGURATION!$B$12)","v":"Mapped"}]
[null,null,null,{"$f":"XBRLMap(D21,D$103&\".\"&$AE21&\".\"&$D$104&\".\"&$AE$8,$D$101,$D$102,CONFIGURATION!$B$10,\"BMA\",CONFIGURATION!$B$1,\"bscr\",CONFIGURATION!$B$12)","v":"Mapped"},null,{"$f":"XBRLMap(F21,F$103&\".\"&$AE21&\".\"&$F$104&\".\"&$AE$8,$F$101,$F$102,CONFIGURATION!$B$10,\"BMA\",CONFIGURATION!$B$1,\"bscr\",CONFIGURATION!$B$12)","v":"Mapped"},null,{"$f":"XBRLMap(H21,H$103&\".\"&$AE21&\".\"&$H$104&\".\"&$AE$8,$D$101,$D$102,CONFIGURATION!$B$10,\"BMA\",CONFIGURATION!$B$1,\"bscr\",CONFIGURATION!$B$12)","v":"Mapped"},null,{"$f":"XBRLMap(J21,J$103&\".\"&$AE21&\".\"&$J$104&\".\"&$AE$8,$F$101,$F$102,CONFIGURATION!$B$10,\"BMA\",CONFIGURATION!$B$1,\"bscr\",CONFIGURATION!$B$12)","v":"Mapped"},null,{"$f":"XBRLMap(L21,L$103&\".\"&$AE21&\".\"&$L$104&\".\"&$AE$8,$D$101,$D$102,CONFIGURATION!$B$10,\"BMA\",CONFIGURATION!$B$1,\"bscr\",CONFIGURATION!$B$12)","v":"Mapped"},null,{"$f":"XBRLMap(N21,N$103&\".\"&$AE21&\".\"&$N$104&\".\"&$AE$8,$F$101,$F$102,CONFIGURATION!$B$10,\"BMA\",CONFIGURATION!$B$1,\"bscr\",CONFIGURATION!$B$12)","v":"Mapped"},null,{"$f":"XBRLMap(P21,P$103&\".\"&$AE21&\".\"&$P$104&\".\"&$AE$8,$D$101,$D$102,CONFIGURATION!$B$10,\"BMA\",CONFIGURATION!$B$1,\"bscr\",CONFIGURATION!$B$12)","v":"Mapped"},null,{"$f":"XBRLMap(R21,R$103&\".\"&$AE21&\".\"&$R$104&\".\"&$AE$8,$F$101,$F$102,CONFIGURATION!$B$10,\"BMA\",CONFIGURATION!$B$1,\"bscr\",CONFIGURATION!$B$12)","v":"Mapped"},null,null,null,null,null,{"$f":"XBRLMap(X21,X$103&\".\"&$AE21&\".\"&$X$104&\".\"&$AE$8,$D$101,$D$102,CONFIGURATION!$B$10,\"BMA\",CONFIGURATION!$B$1,\"bscr\",CONFIGURATION!$B$12)","v":"Mapped"},null,{"$f":"XBRLMap(Z21,Z$103&\".\"&$AE21&\".\"&$Z$104&\".\"&$AE$8,$F$101,$F$102,CONFIGURATION!$B$10,\"BMA\",CONFIGURATION!$B$1,\"bscr\",CONFIGURATION!$B$12)","v":"Mapped"}]
[]
[null,null,null,{"$f":"XBRLMap(D27,D$103&\".\"&$AE27&\".\"&$D$104&\".\"&$AE$8,$D$101,$D$102,CONFIGURATION!$B$10,\"BMA\",CONFIGURATION!$B$1,\"bscr\",CONFIGURATION!$B$12)","v":"Mapped"},null,{"$f":"XBRLMap(F27,F$103&\".\"&$AE27&\".\"&$F$104&\".\"&$AE$8,$F$101,$F$102,CONFIGURATION!$B$10,\"BMA\",CONFIGURATION!$B$1,\"bscr\",CONFIGURATION!$B$12)","v":"Mapped"},null,{"$f":"XBRLMap(H27,H$103&\".\"&$AE27&\".\"&$H$104&\".\"&$AE$8,$D$101,$D$102,CONFIGURATION!$B$10,\"BMA\",CONFIGURATION!$B$1,\"bscr\",CONFIGURATION!$B$12)","v":"Mapped"},null,{"$f":"XBRLMap(J27,J$103&\".\"&$AE27&\".\"&$J$104&\".\"&$AE$8,$F$101,$F$102,CONFIGURATION!$B$10,\"BMA\",CONFIGURATION!$B$1,\"bscr\",CONFIGURATION!$B$12)","v":"Mapped"},null,{"$f":"XBRLMap(L27,L$103&\".\"&$AE27&\".\"&$L$104&\".\"&$AE$8,$D$101,$D$102,CONFIGURATION!$B$10,\"BMA\",CONFIGURATION!$B$1,\"bscr\",CONFIGURATION!$B$12)","v":"Mapped"},null,{"$f":"XBRLMap(N27,N$103&\".\"&$AE27&\".\"&$N$104&\".\"&$AE$8,$F$101,$F$102,CONFIGURATION!$B$10,\"BMA\",CONFIGURATION!$B$1,\"bscr\",CONFIGURATION!$B$12)","v":"Mapped"},null,{"$f":"XBRLMap(P27,P$103&\".\"&$AE27&\".\"&$P$104&\".\"&$AE$8,$D$101,$D$102,CONFIGURATION!$B$10,\"BMA\",CONFIGURATION!$B$1,\"bscr\",CONFIGURATION!$B$12)","v":"Mapped"},null,{"$f":"XBRLMap(R27,R$103&\".\"&$AE27&\".\"&$R$104&\".\"&$AE$8,$F$101,$F$102,CONFIGURATION!$B$10,\"BMA\",CONFIGURATION!$B$1,\"bscr\",CONFIGURATION!$B$12)","v":"Mapped"},null,null,null,null,null,{"$f":"XBRLMap(X27,X$103&\".\"&$AE27&\".\"&$X$104&\".\"&$AE$8,$D$101,$D$102,CONFIGURATION!$B$10,\"BMA\",CONFIGURATION!$B$1,\"bscr\",CONFIGURATION!$B$12)","v":"Mapped"},null,{"$f":"XBRLMap(Z27,Z$103&\".\"&$AE27&\".\"&$Z$104&\".\"&$AE$8,$F$101,$F$102,CONFIGURATION!$B$10,\"BMA\",CONFIGURATION!$B$1,\"bscr\",CONFIGURATION!$B$12)","v":"Mapped"}]
[]
[null,null,null,"brrt_QuotedInvestmentsEquitiesCommonStocks",null,"brrt_QuotedInvestmentsEquitiesCommonStocks",null,null,null,null,null,"brrt_QuotedInvestmentsEquitiesMutualFunds",null,"brrt_QuotedInvestmentsEquitiesMutualFunds",null,null,null,null,null,null,null,null,null,"brrt_QuotedInvestmentsEquitiesCommonStocksMutualFunds",null,"brrt_QuotedInvestmentsEquitiesCommonStocksMutualFunds"]
[null,null,null,"brrt_UnquotedInvestmentsEquitiesCommonStocks",null,"brrt_UnquotedInvestmentsEquitiesCommonStocks",null,null,null,null,null,"brrt_UnquotedInvestmentsEquitiesMutualFunds",null,"brrt_UnquotedInvestmentsEquitiesMutualFunds",null,null,null,null,null,null,null,null,null,"brrt_UnquotedInvestmentsEquitiesCommonStocksMutualFunds",null,"brrt_UnquotedInvestmentsEquitiesCommonStocksMutualFunds"]
[null,null,null,"brrt_EquitiesCommonStocks",null,"brrt_EquitiesCommonStocks",null,"brrt_EquitiesPreferredStocks",null,"brrt_EquitiesPreferredStocks",null,"brrt_EquitiesMutualFunds",null,"brrt_EquitiesMutualFunds",null,null,null,null,null,null,null,null,null,"brrt_Equities",null,"brrt_Equities"]
[null,null,null,null,null,null,null,{"$f":"XBRLMap(#REF!,H$119&\".\"&#REF!&\".\"&$AE$8,$D$101,$D$102,CONFIGURATION!$B$10,\"BMA\",CONFIGURATION!$B$1,\"bscr\",CONFIGURATION!$B$12)","v":{"$error":"#VALUE!"}},null,{"$f":"XBRLMap(#REF!,J$119&\".\"&#REF!&\".\"&$AE$8,$F$101,$F$102,CONFIGURATION!$B$10,\"BMA\",CONFIGURATION!$B$1,\"bscr\",CONFIGURATION!$B$12)","v":{"$error":"#VALUE!"}},null,null,null,null,null,null,null,null,null,null,null,null,null,"The same data point as in column H",null,"The same data point as in column J"]
[null,null,null,null,null,null,null,{"$f":"XBRLMap(#REF!,H$119&\".\"&#REF!&\".\"&$AE$8,$D$101,$D$102,CONFIGURATION!$B$10,\"BMA\",CONFIGURATION!$B$1,\"bscr\",CONFIGURATION!$B$12)","v":{"$error":"#VALUE!"}},null,{"$f":"XBRLMap(#REF!,J$119&\".\"&#REF!&\".\"&$AE$8,$F$101,$F$102,CONFIGURATION!$B$10,\"BMA\",CONFIGURATION!$B$1,\"bscr\",CONFIGURATION!$B$12)","v":{"$error":"#VALUE!"}},null,null,null,null,null,null,null,null,null,null,null,null,null,"The same data point as in column H",null,"The same data point as in column J"]
[null,null,null,null,null,null,null,{"$f":"XBRLMap(#REF!,H$119&\".\"&#REF!&\".\"&$AE$8,$D$101,$D$102,CONFIGURATION!$B$10,\"BMA\",CONFIGURATION!$B$1,\"bscr\",CONFIGURATION!$B$12)","v":{"$error":"#VALUE!"}},null,{"$f":"XBRLMap(#REF!,J$119&\".\"&#REF!&\".\"&$AE$8,$F$101,$F$102,CONFIGURATION!$B$10,\"BMA\",CONFIGURATION!$B$1,\"bscr\",CONFIGURATION!$B$12)","v":{"$error":"#VALUE!"}},null,null,null,null,null,null,null,null,null,null,null,null,null,"The same data point as in column H",null,"The same data point as in column J"]
[null,null,null,null,null,null,null,{"$f":"XBRLMap(#REF!,H$119&\".\"&#REF!&\".\"&$AE$8,$D$101,$D$102,CONFIGURATION!$B$10,\"BMA\",CONFIGURATION!$B$1,\"bscr\",CONFIGURATION!$B$12)","v":{"$error":"#VALUE!"}},null,{"$f":"XBRLMap(#REF!,J$119&\".\"&#REF!&\".\"&$AE$8,$F$101,$F$102,CONFIGURATION!$B$10,\"BMA\",CONFIGURATION!$B$1,\"bscr\",CONFIGURATION!$B$12)","v":{"$error":"#VALUE!"}},null,null,null,null,null,null,null,null,null,null,null,null,null,"The same data point as in column H",null,"The same data point as in column J"]
[null,null,null,null,null,null,null,{"$f":"XBRLMap(#REF!,H$119&\".\"&#REF!&\".\"&$AE$8,$D$101,$D$102,CONFIGURATION!$B$10,\"BMA\",CONFIGURATION!$B$1,\"bscr\",CONFIGURATION!$B$12)","v":{"$error":"#VALUE!"}},null,{"$f":"XBRLMap(#REF!,J$119&\".\"&#REF!&\".\"&$AE$8,$F$101,$F$102,CONFIGURATION!$B$10,\"BMA\",CONFIGURATION!$B$1,\"bscr\",CONFIGURATION!$B$12)","v":{"$error":"#VALUE!"}},null,null,null,null,null,null,null,null,null,null,null,null,null,"The same data point as in column H",null,"The same data point as in column J"]
[null,null,null,null,null,null,null,{"$f":"XBRLMap(#REF!,H$119&\".\"&#REF!&\".\"&$AE$8,$D$101,$D$102,CONFIGURATION!$B$10,\"BMA\",CONFIGURATION!$B$1,\"bscr\",CONFIGURATION!$B$12)","v":{"$error":"#VALUE!"}},null,{"$f":"XBRLMap(#REF!,J$119&\".\"&#REF!&\".\"&$AE$8,$F$101,$F$102,CONFIGURATION!$B$10,\"BMA\",CONFIGURATION!$B$1,\"bscr\",CONFIGURATION!$B$12)","v":{"$error":"#VALUE!"}},null,null,null,null,null,null,null,null,null,null,null,null,null,"The same data point as in column H",null,"The same data point as in column J"]
[null,null,null,null,null,null,null,{"$f":"XBRLMap(#REF!,H$119&\".\"&#REF!&\".\"&$AE$8,$D$101,$D$102,CONFIGURATION!$B$10,\"BMA\",CONFIGURATION!$B$1,\"bscr\",CONFIGURATION!$B$12)","v":{"$error":"#VALUE!"}},null,{"$f":"XBRLMap(#REF!,J$119&\".\"&#REF!&\".\"&$AE$8,$F$101,$F$102,CONFIGURATION!$B$10,\"BMA\",CONFIGURATION!$B$1,\"bscr\",CONFIGURATION!$B$12)","v":{"$error":"#VALUE!"}},null,null,null,null,null,null,null,null,null,null,null,null,null,"The same data point as in column H",null,"The same data point as in column J"]
[null,null,null,null,null,null,null,{"$f":"XBRLMap(#REF!,H$119&\".\"&#REF!&\".\"&$AE$8,$D$101,$D$102,CONFIGURATION!$B$10,\"BMA\",CONFIGURATION!$B$1,\"bscr\",CONFIGURATION!$B$12)","v":{"$error":"#VALUE!"}},null,{"$f":"XBRLMap(#REF!,J$119&\".\"&#REF!&\".\"&$AE$8,$F$101,$F$102,CONFIGURATION!$B$10,\"BMA\",CONFIGURATION!$B$1,\"bscr\",CONFIGURATION!$B$12)","v":{"$error":"#VALUE!"}},null,null,null,null,null,null,null,null,null,null,null,null,null,"The same data point as in column H",null,"The same data point as in column J"]
[null,null,null,{"$f":"XBRLMap(#REF!,D$117&\".\"&$AE$8,$D$101,$D$102,CONFIGURATION!$B$10,\"BMA\",CONFIGURATION!$B$1,\"bscr\",CONFIGURATION!$B$12)","v":{"$error":"#VALUE!"}},null,{"$f":"XBRLMap(#REF!,F$117&\".\"&$AE$8,$F$101,$F$102,CONFIGURATION!$B$10,\"BMA\",CONFIGURATION!$B$1,\"bscr\",CONFIGURATION!$B$12)","v":{"$error":"#VALUE!"}},null,null,null,null,null,{"$f":"XBRLMap(#REF!,L$117&\".\"&$AE$8,$D$101,$D$102,CONFIGURATION!$B$10,\"BMA\",CONFIGURATION!$B$1,\"bscr\",CONFIGURATION!$B$12)","v":{"$error":"#VALUE!"}},null,{"$f":"XBRLMap(#REF!,N$117&\".\"&$AE$8,$F$101,$F$102,CONFIGURATION!$B$10,\"BMA\",CONFIGURATION!$B$1,\"bscr\",CONFIGURATION!$B$12)","v":{"$error":"#VALUE!"}},null,null,null,null,null,null,null,null,null,{"$f":"XBRLMap(#REF!,X$117&\".\"&$AE$8,$D$101,$D$102,CONFIGURATION!$B$10,\"BMA\",CONFIGURATION!$B$1,\"bscr\",CONFIGURATION!$B$12)","v":{"$error":"#VALUE!"}},null,{"$f":"XBRLMap(#REF!,Z$117&\".\"&$AE$8,$F$101,$F$102,CONFIGURATION!$B$10,\"BMA\",CONFIGURATION!$B$1,\"bscr\",CONFIGURATION!$B$12)","v":{"$error":"#VALUE!"}}]
[null,null,null,{"$f":"XBRLMap(#REF!,D$118&\".\"&$AE$8,$D$101,$D$102,CONFIGURATION!$B$10,\"BMA\",CONFIGURATION!$B$1,\"bscr\",CONFIGURATION!$B$12)","v":{"$error":"#VALUE!"}},null,{"$f":"XBRLMap(#REF!,F$118&\".\"&$AE$8,$F$101,$F$102,CONFIGURATION!$B$10,\"BMA\",CONFIGURATION!$B$1,\"bscr\",CONFIGURATION!$B$12)","v":{"$error":"#VALUE!"}},null,null,null,null,null,{"$f":"XBRLMap(#REF!,L$118&\".\"&$AE$8,$D$101,$D$102,CONFIGURATION!$B$10,\"BMA\",CONFIGURATION!$B$1,\"bscr\",CONFIGURATION!$B$12)","v":{"$error":"#VALUE!"}},null,{"$f":"XBRLMap(#REF!,N$118&\".\"&$AE$8,$F$101,$F$102,CONFIGURATION!$B$10,\"BMA\",CONFIGURATION!$B$1,\"bscr\",CONFIGURATION!$B$12)","v":{"$error":"#VALUE!"}},null,null,null,null,null,null,null,null,null,{"$f":"XBRLMap(#REF!,X$118&\".\"&$AE$8,$D$101,$D$102,CONFIGURATION!$B$10,\"BMA\",CONFIGURATION!$B$1,\"bscr\",CONFIGURATION!$B$12)","v":{"$error":"#VALUE!"}},null,{"$f":"XBRLMap(#REF!,Z$118&\".\"&$AE$8,$F$101,$F$102,CONFIGURATION!$B$10,\"BMA\",CONFIGURATION!$B$1,\"bscr\",CONFIGURATION!$B$12)","v":{"$error":"#VALUE!"}}]
[]
[null,null,null,{"$f":"XBRLMap(#REF!,D$119&\".\"&$AE$8,$D$101,$D$102,CONFIGURATION!$B$10,\"BMA\",CONFIGURATION!$B$1,\"bscr\",CONFIGURATION!$B$12)","v":{"$error":"#VALUE!"}},null,{"$f":"XBRLMap(#REF!,F$119&\".\"&$AE$8,$F$101,$F$102,CONFIGURATION!$B$10,\"BMA\",CONFIGURATION!$B$1,\"bscr\",CONFIGURATION!$B$12)","v":{"$error":"#VALUE!"}},null,{"$f":"XBRLMap(#REF!,H$119&\".\"&#REF!&\".\"&$AE$8,$D$101,$D$102,CONFIGURATION!$B$10,\"BMA\",CONFIGURATION!$B$1,\"bscr\",CONFIGURATION!$B$12)","v":{"$error":"#VALUE!"}},null,{"$f":"XBRLMap(#REF!,J$119&\".\"&#REF!&\".\"&$AE$8,$F$101,$F$102,CONFIGURATION!$B$10,\"BMA\",CONFIGURATION!$B$1,\"bscr\",CONFIGURATION!$B$12)","v":{"$error":"#VALUE!"}},null,{"$f":"XBRLMap(#REF!,L$119&\".\"&$AE$8,$D$101,$D$102,CONFIGURATION!$B$10,\"BMA\",CONFIGURATION!$B$1,\"bscr\",CONFIGURATION!$B$12)","v":{"$error":"#VALUE!"}},null,{"$f":"XBRLMap(#REF!,N$119&\".\"&$AE$8,$F$101,$F$102,CONFIGURATION!$B$10,\"BMA\",CONFIGURATION!$B$1,\"bscr\",CONFIGURATION!$B$12)","v":{"$error":"#VALUE!"}},null,null,null,null,null,null,null,null,null,{"$f":"XBRLMap(#REF!,X$119&\".\"&$AE$8,$D$101,$D$102,CONFIGURATION!$B$10,\"BMA\",CONFIGURATION!$B$1,\"bscr\",CONFIGURATION!$B$12)","v":{"$error":"#VALUE!"}},null,{"$f":"XBRLMap(#REF!,Z$119&\".\"&$AE$8,$F$101,$F$102,CONFIGURATION!$B$10,\"BMA\",CONFIGURATION!$B$1,\"bscr\",CONFIGURATION!$B$12)","v":{"$error":"#VALUE!"}}]
[]
[]
[null,null,null,null,null,null,null,null,null,null,null,"brrt_BondsAndDebentures",null,"brrt_BondsAndDebentures",null,"brrt_BondsAndDebentures",null,"brrt_BondsAndDebentures"]
[null,null,null,null,null,null,null,null,null,null,null,"brrt_SecurityTypeAxis_brrt_ResidentialMortgageBackedSecuritiesMember",null,"brrt_SecurityTypeAxis_brrt_ResidentialMortgageBackedSecuritiesMember",null,"brrt_SecurityTypeAxis_brrt_CommercialMortgageBackedSecuritiesAssetBackedSecuritiesMember",null,"brrt_SecurityTypeAxis_brrt_CommercialMortgageBackedSecuritiesAssetBackedSecuritiesMember"]
[null,null,null,null,null,null,null,null,null,null,null,"brrt_ClassificationAxis_brrt_OriginalClassificationMember",null,"brrt_ClassificationAxis_brrt_RevisedClassificationMember",null,"brrt_ClassificationAxis_brrt_OriginalClassificationMember",null,"brrt_ClassificationAxis_brrt_RevisedClassificationMember"]
[null,null,null,null,null,null,null,null,null,null,null,{"$f":"XBRLMap(#REF!,L$134&\".\"&#REF!&\".\"&$L$135&\".\"&$L$136&\".\"&$AE$8,$D$101,$D$102,CONFIGURATION!$B$10,\"BMA\",CONFIGURATION!$B$1,\"bscr\",CONFIGURATION!$B$12)","v":{"$error":"#VALUE!"}},null,{"$f":"XBRLMap(#REF!,N$134&\".\"&#REF!&\".\"&$N$135&\".\"&$N$136&\".\"&$AE$8,$D$101,$D$102,CONFIGURATION!$B$10,\"BMA\",CONFIGURATION!$B$1,\"bscr\",CONFIGURATION!$B$12)","v":{"$error":"#VALUE!"}},null,{"$f":"XBRLMap(#REF!,P$134&\".\"&#REF!&\".\"&$P$135&\".\"&$P$136&\".\"&$AE$8,$D$101,$D$102,CONFIGURATION!$B$10,\"BMA\",CONFIGURATION!$B$1,\"bscr\",CONFIGURATION!$B$12)","v":{"$error":"#VALUE!"}},null,{"$f":"XBRLMap(#REF!,R$134&\".\"&#REF!&\".\"&$R$135&\".\"&$R$136&\".\"&$AE$8,$D$101,$D$102,CONFIGURATION!$B$10,\"BMA\",CONFIGURATION!$B$1,\"bscr\",CONFIGURATION!$B$12)","v":{"$error":"#VALUE!"}}]
[null,null,null,null,null,null,null,null,null,null,null,{"$f":"XBRLMap(#REF!,L$134&\".\"&#REF!&\".\"&$L$135&\".\"&$L$136&\".\"&$AE$8,$D$101,$D$102,CONFIGURATION!$B$10,\"BMA\",CONFIGURATION!$B$1,\"bscr\",CONFIGURATION!$B$12)","v":{"$error":"#VALUE!"}},null,{"$f":"XBRLMap(#REF!,N$134&\".\"&#REF!&\".\"&$N$135&\".\"&$N$136&\".\"&$AE$8,$D$101,$D$102,CONFIGURATION!$B$10,\"BMA\",CONFIGURATION!$B$1,\"bscr\",CONFIGURATION!$B$12)","v":{"$error":"#VALUE!"}},null,{"$f":"XBRLMap(#REF!,P$134&\".\"&#REF!&\".\"&$P$135&\".\"&$P$136&\".\"&$AE$8,$D$101,$D$102,CONFIGURATION!$B$10,\"BMA\",CONFIGURATION!$B$1,\"bscr\",CONFIGURATION!$B$12)","v":{"$error":"#VALUE!"}},null,{"$f":"XBRLMap(#REF!,R$134&\".\"&#REF!&\".\"&$R$135&\".\"&$R$136&\".\"&$AE$8,$D$101,$D$102,CONFIGURATION!$B$10,\"BMA\",CONFIGURATION!$B$1,\"bscr\",CONFIGURATION!$B$12)","v":{"$error":"#VALUE!"}}]
[null,null,null,null,null,null,null,null,null,null,null,{"$f":"XBRLMap(#REF!,L$134&\".\"&#REF!&\".\"&$L$135&\".\"&$L$136&\".\"&$AE$8,$D$101,$D$102,CONFIGURATION!$B$10,\"BMA\",CONFIGURATION!$B$1,\"bscr\",CONFIGURATION!$B$12)","v":{"$error":"#VALUE!"}},null,{"$f":"XBRLMap(#REF!,N$134&\".\"&#REF!&\".\"&$N$135&\".\"&$N$136&\".\"&$AE$8,$D$101,$D$102,CONFIGURATION!$B$10,\"BMA\",CONFIGURATION!$B$1,\"bscr\",CONFIGURATION!$B$12)","v":{"$error":"#VALUE!"}},null,{"$f":"XBRLMap(#REF!,P$134&\".\"&#REF!&\".\"&$P$135&\".\"&$P$136&\".\"&$AE$8,$D$101,$D$102,CONFIGURATION!$B$10,\"BMA\",CONFIGURATION!$B$1,\"bscr\",CONFIGURATION!$B$12)","v":{"$error":"#VALUE!"}},null,{"$f":"XBRLMap(#REF!,R$134&\".\"&#REF!&\".\"&$R$135&\".\"&$R$136&\".\"&$AE$8,$D$101,$D$102,CONFIGURATION!$B$10,\"BMA\",CONFIGURATION!$B$1,\"bscr\",CONFIGURATION!$B$12)","v":{"$error":"#VALUE!"}}]
[null,null,null,null,null,null,null,null,null,null,null,{"$f":"XBRLMap(#REF!,L$134&\".\"&$AK96&\".\"&$L$135&\".\"&$L$136&\".\"&$AE$8,$D$101,$D$102,CONFIGURATION!$B$10,\"BMA\",CONFIGURATION!$B$1,\"bscr\",CONFIGURATION!$B$12)","v":{"$error":"#VALUE!"}},null,{"$f":"XBRLMap(#REF!,N$134&\".\"&$AK96&\".\"&$N$135&\".\"&$N$136&\".\"&$AE$8,$D$101,$D$102,CONFIGURATION!$B$10,\"BMA\",CONFIGURATION!$B$1,\"bscr\",CONFIGURATION!$B$12)","v":{"$error":"#VALUE!"}},null,{"$f":"XBRLMap(#REF!,P$134&\".\"&$AK96&\".\"&$P$135&\".\"&$P$136&\".\"&$AE$8,$D$101,$D$102,CONFIGURATION!$B$10,\"BMA\",CONFIGURATION!$B$1,\"bscr\",CONFIGURATION!$B$12)","v":{"$error":"#VALUE!"}},null,{"$f":"XBRLMap(#REF!,R$134&\".\"&$AK96&\".\"&$R$135&\".\"&$R$136&\".\"&$AE$8,$D$101,$D$102,CONFIGURATION!$B$10,\"BMA\",CONFIGURATION!$B$1,\"bscr\",CONFIGURATION!$B$12)","v":{"$error":"#VALUE!"}}]
[null,null,null,null,null,null,null,null,null,null,null,{"$f":"XBRLMap(N96,L$134&\".\"&$AK97&\".\"&$L$135&\".\"&$L$136&\".\"&$AE$8,$D$101,$D$102,CONFIGURATION!$B$10,\"BMA\",CONFIGURATION!$B$1,\"bscr\",CONFIGURATION!$B$12)","v":"Mapped"},null,{"$f":"XBRLMap(P96,N$134&\".\"&$AK97&\".\"&$N$135&\".\"&$N$136&\".\"&$AE$8,$D$101,$D$102,CONFIGURATION!$B$10,\"BMA\",CONFIGURATION!$B$1,\"bscr\",CONFIGURATION!$B$12)","v":"Mapped"},null,{"$f":"XBRLMap(R96,P$134&\".\"&$AK97&\".\"&$P$135&\".\"&$P$136&\".\"&$AE$8,$D$101,$D$102,CONFIGURATION!$B$10,\"BMA\",CONFIGURATION!$B$1,\"bscr\",CONFIGURATION!$B$12)","v":"Mapped"},null,{"$f":"XBRLMap(X96,R$134&\".\"&$AK97&\".\"&$R$135&\".\"&$R$136&\".\"&$AE$8,$D$101,$D$102,CONFIGURATION!$B$10,\"BMA\",CONFIGURATION!$B$1,\"bscr\",CONFIGURATION!$B$12)","v":"Mapped"}]
[null,null,null,null,null,null,null,null,null,null,null,{"$f":"XBRLMap(N97,L$134&\".\"&#REF!&\".\"&$L$135&\".\"&$L$136&\".\"&$AE$8,$D$101,$D$102,CONFIGURATION!$B$10,\"BMA\",CONFIGURATION!$B$1,\"bscr\",CONFIGURATION!$B$12)","v":{"$error":"#VALUE!"}},null,{"$f":"XBRLMap(P97,N$134&\".\"&#REF!&\".\"&$N$135&\".\"&$N$136&\".\"&$AE$8,$D$101,$D$102,CONFIGURATION!$B$10,\"BMA\",CONFIGURATION!$B$1,\"bscr\",CONFIGURATION!$B$12)","v":{"$error":"#VALUE!"}},null,{"$f":"XBRLMap(R97,P$134&\".\"&#REF!&\".\"&$P$135&\".\"&$P$136&\".\"&$AE$8,$D$101,$D$102,CONFIGURATION!$B$10,\"BMA\",CONFIGURATION!$B$1,\"bscr\",CONFIGURATION!$B$12)","v":{"$error":"#VALUE!"}},null,{"$f":"XBRLMap(X97,R$134&\".\"&#REF!&\".\"&$R$135&\".\"&$R$136&\".\"&$AE$8,$D$101,$D$102,CONFIGURATION!$B$10,\"BMA\",CONFIGURATION!$B$1,\"bscr\",CONFIGURATION!$B$12)","v":{"$error":"#VALUE!"}}]
[]
[null,null,null,null,null,null,null,null,null,null,null,{"$f":"XBRLMap(#REF!,L$134&\".\"&#REF!&\".\"&$L$135&\".\"&$L$136&\".\"&$AE$8,$D$101,$D$102,CONFIGURATION!$B$10,\"BMA\",CONFIGURATION!$B$1,\"bscr\",CONFIGURATION!$B$12)","v":{"$error":"#VALUE!"}},null,{"$f":"XBRLMap(#REF!,N$134&\".\"&#REF!&\".\"&$N$135&\".\"&$N$136&\".\"&$AE$8,$D$101,$D$102,CONFIGURATION!$B$10,\"BMA\",CONFIGURATION!$B$1,\"bscr\",CONFIGURATION!$B$12)","v":{"$error":"#VALUE!"}},null,{"$f":"XBRLMap(#REF!,P$134&\".\"&#REF!&\".\"&$P$135&\".\"&$P$136&\".\"&$AE$8,$D$101,$D$102,CONFIGURATION!$B$10,\"BMA\",CONFIGURATION!$B$1,\"bscr\",CONFIGURATION!$B$12)","v":{"$error":"#VALUE!"}},null,{"$f":"XBRLMap(#REF!,R$134&\".\"&#REF!&\".\"&$R$135&\".\"&$R$136&\".\"&$AE$8,$D$101,$D$102,CONFIGURATION!$B$10,\"BMA\",CONFIGURATION!$B$1,\"bscr\",CONFIGURATION!$B$12)","v":{"$error":"#VALUE!"}}]

{"sheet":"Schedule IID (EBS)","index":28,"n_rows":144,"n_cols":37,"rows_kept":144,"cut":false,"hidden":false,"merged":[[2,1,2,3],[3,3,3,5],[4,3,4,5],[7,3,7,5],[7,7,7,9],[7,19,7,21],[7,15,7,17],[63,3,63,11],[63,13,63,21],[33,27,34,27],[7,23,7,25],[32,3,32,13],[33,3,34,5],[33,7,33,13],[33,23,34,23],[7,11,7,13],[34,7,34,9],[34,11,34,13],[32,15,32,19],[33,15,34,15],[64,3,64,5],[64,7,64,9],[64,13,64,15],[64,17,64,19],[33,17,34,17],[33,19,34,19]]}
[null,"SEGREGATED ACCOUNTS\n",null,null,null,null,null,null,null,null,null,null,null,null,null,null,null,null,null,null,null,null,null,null,null,null,null,{"$f":"HYPERLINK(\"#'Index'!A1\",\"Return to Index\")","v":"Return to Index"}]
[]
[null,{"$f":"+'Company Information'!C7","v":"Enter Company Name"}]
[null,"As at",null,{"$f":"+'Company Information'!C3","v":"2019-12-31"},null,null,null,null,null,null,null,null,null,null,null,null,null,null,null,null,null,null,null,null,null,"SCHEDULE IID (EBS)"]
[null,{"$f":"+'Form 1EBS'!B4","v":"expressed in ['000s]"},null,{"$f":"+'Form 1EBS'!C4","v":"United States Dollars"}]
[]
[null,null,null,"(1)",null,"(2)",null,"(3)",null,"(4)",null,"(5)",null,"(6)",null,"(7)",null,"(8)",null,"(9)",null,"(10)",null,"(11)",null,"(12)"]
[null,null,null,"Corporate & Sovereign Bonds",null,null,null,"Residential Mortgage Backed Securities",null,null,null,"Commercial Mortgage Backed Securities / Asset- Backed Securities",null,null,null,"Bond Mutual Funds",null,null,null,"Mortgage Loans",null,null,null,"TOTAL",null,null,null,null,null,null,"brrt_RiskTransferAxis_brrt_FundsHeldByCedingReinsurersInSegregatedAccountsTrustsMember"]
[null,null,null,"Assets",null,"Liabilities",null,"Assets",null,"Liabilities",null,"Assets",null,"Liabilities",null,"Assets",null,"Liabilities",null,"Assets",null,"Liabilities",null,{"$f":"D9","v":"Assets"},null,{"$f":"F9","v":"Liabilities"}]
[null,null,null,{"$f":"+'Form 1EBS'!$F$8","v":" ('000s)"},null,{"$f":"+'Form 1EBS'!$F$8","v":" ('000s)"},null,{"$f":"+'Form 1EBS'!$F$8","v":" ('000s)"},null,{"$f":"+'Form 1EBS'!$F$8","v":" ('000s)"},null,{"$f":"+'Form 1EBS'!$F$8","v":" ('000s)"},null,{"$f":"+'Form 1EBS'!$F$8","v":" ('000s)"},null,{"$f":"+'Form 1EBS'!$F$8","v":" ('000s)"},null,{"$f":"+'Form 1EBS'!$F$8","v":" ('000s)"},null,{"$f":"+'Form 1EBS'!$F$8","v":" ('000s)"},null,{"$f":"+'Form 1EBS'!$F$8","v":" ('000s)"},null,{"$f":"+'Form 1EBS'!$F$8","v":" ('000s)"},null,{"$f":"+'Form 1EBS'!$H$8","v":" ('000s)"}]
[null,"Line no. "]
[null,"Quoted and Unquoted Bonds and Debentures"]
[null,1,"BSCR Rating 0",{"$f":"Import!M12032","v":0},null,{"$f":"Import!M12041","v":0},null,null,null,null,null,null,null,null,null,{"$f":"Import!M12082","v":0},null,{"$f":"Import!M12091","v":0},null,null,null,null,null,{"$f":"D13+H13+L13+P13","v":0},null,{"$f":"F13+J13+N13+R13","v":0},null,null,null,null,"brrt_RiskGradeAxis_brrt_BSCRRating0Member"]
[null,2,"BSCR Rating 1",{"$f":"Import!M12033","v":0},null,{"$f":"Import!M12042","v":0},null,{"$f":"Import!M12050","v":0},null,{"$f":"Import!M12058","v":0},null,{"$f":"Import!M12066","v":0},null,{"$f":"Import!M12074","v":0},null,{"$f":"Import!M12083","v":0},null,{"$f":"Import!M12092","v":0},null,null,null,null,null,{"$f":"D14+H14+L14+P14","v":0},null,0,null,null,null,null,"brrt_RiskGradeAxis_brrt_BSCRRating1Member"]
[null,3,"BSCR Rating 2",{"$f":"Import!M12034","v":0},null,{"$f":"Import!M12043","v":0},null,{"$f":"Import!M12051","v":0},null,{"$f":"Import!M12059","v":0},null,{"$f":"Import!M12067","v":0},null,{"$f":"Import!M12075","v":0},null,{"$f":"Import!M12084","v":0},null,{"$f":"Import!M12093","v":0},null,null,null,null,null,0,null,0,null,null,null,null,"brrt_RiskGradeAxis_brrt_BSCRRating2Member"]
[null,4,"BSCR Rating 3",{"$f":"Import!M12035","v":0},null,{"$f":"Import!M12044","v":0},null,{"$f":"Import!M12052","v":0},null,{"$f":"Import!M12060","v":0},null,{"$f":"Import!M12068","v":0},null,{"$f":"Import!M12076","v":0},null,{"$f":"Import!M12085","v":0},null,{"$f":"Import!M12094","v":0},null,null,null,null,null,0,null,0,null,null,null,null,"brrt_RiskGradeAxis_brrt_BSCRRating3Member"]
[null,5,"BSCR Rating 4",{"$f":"Import!M12036","v":0},null,{"$f":"Import!M12045","v":0},null,{"$f":"Import!M12053","v":0},null,{"$f":"Import!M12061","v":0},null,{"$f":"Import!M12069","v":0},null,{"$f":"Import!M12077","v":0},null,{"$f":"Import!M12086","v":0},null,{"$f":"Import!M12095","v":0},null,null,null,null,null,0,null,0,null,null,null,null,"brrt_RiskGradeAxis_brrt_BSCRRating4Member"]
[null,6,"BSCR Rating 5",{"$f":"Import!M12037","v":0},null,{"$f":"Import!M12046","v":0},null,{"$f":"Import!M12054","v":0},null,{"$f":"Import!M12062","v":0},null,{"$f":"Import!M12070","v":0},null,{"$f":"Import!M12078","v":0},null,{"$f":"Import!M12087","v":0},null,{"$f":"Import!M12096","v":0},null,null,null,null,null,0,null,0,null,null,null,null,"brrt_RiskGradeAxis_brrt_BSCRRating5Member"]
[null,7,"BSCR Rating 6",{"$f":"Import!M12038","v":0},null,{"$f":"Import!M12047","v":0},null,{"$f":"Import!M12055","v":0},null,{"$f":"Import!M12063","v":0},null,{"$f":"Import!M12071","v":0},null,{"$f":"Import!M12079","v":0},null,{"$f":"Import!M12088","v":0},null,{"$f":"Import!M12097","v":0},null,null,null,null,null,0,null,0,null,null,null,null,"brrt_RiskGradeAxis_brrt_BSCRRating6Member"]
[null,8,"BSCR Rating 7",{"$f":"Import!M12039","v":0},null,{"$f":"Import!M12048","v":0},null,{"$f":"Import!M12056","v":0},null,{"$f":"Import!M12064","v":0},null,{"$f":"Import!M12072","v":0},null,{"$f":"Import!M12080","v":0},null,{"$f":"Import!M12089","v":0},null,{"$f":"Import!M12098","v":0},null,null,null,null,null,0,null,0,null,null,null,null,"brrt_RiskGradeAxis_brrt_BSCRRating7Member"]
[null,9,"BSCR Rating 8",{"$f":"Import!M12040","v":0},null,{"$f":"Import!M12049","v":0},null,{"$f":"Import!M12057","v":0},null,{"$f":"Import!M12065","v":0},null,{"$f":"Import!M12073","v":0},null,{"$f":"Import!M12081","v":0},null,{"$f":"Import!M12090","v":0},null,{"$f":"Import!M12099","v":0},null,null,null,null,null,0,null,0,null,null,null,null,"brrt_RiskGradeAxis_brrt_BSCRRating8Member"]
[null,{"$f":"B21+1","v":10},"Insured/Guaranteed Mortgages",null,null,null,null,null,null,null,null,null,null,null,null,null,null,null,null,{"$f":"Import!M12100","v":0},null,{"$f":"Import!M12104","v":0},null,{"$f":"D22+H22+L22+P22+T22","v":0},null,{"$f":"F22+J22+N22+R22+V22","v":0}]
[null,{"$f":"B22+1","v":11},"Other Commercial and Farm Mortgages",null,null,null,null,null,null,null,null,null,null,null,null,null,null,null,null,{"$f":"Import!M12101","v":0},null,{"$f":"Import!M12105","v":0},null,{"$f":"D23+H23+L23+P23+T23","v":0},null,0]
[null,{"$f":"B23+1","v":12},"Other Residential Mortgages",null,null,null,null,null,null,null,null,null,null,null,null,null,null,null,null,{"$f":"Import!M12102","v":0},null,{"$f":"Import!M12106","v":0},null,{"$f":"D24+H24+L24+P24+T24","v":0},null,{"$f":"F24+J24+N24+R24+V24","v":0}]
[null,13,"Mortgages Not In Good Standing",null,null,null,null,null,null,null,null,null,null,null,null,null,null,null,null,{"$f":"Import!M12103","v":0},null,{"$f":"Import!M12107","v":0},null,0,null,0]
[]
[null,{"$f":"B25+1","v":14},"Total",{"$f":"SUM(D13:D21)","v":0},null,{"$f":"SUM(F13:F21)","v":0},null,{"$f":"SUM(H13:H21)","v":0},null,{"$f":"SUM(J13:J21)","v":0},null,{"$f":"SUM(L13:L21)","v":0},null,{"$f":"SUM(N13:N21)","v":0},null,{"$f":"SUM(P13:P21)","v":0},null,{"$f":"SUM(R13:R21)","v":0},null,{"$f":"SUM(T13:T26)","v":0},null,{"$f":"SUM(V13:V26)","v":0},null,{"$f":"SUM(X13:X26)","v":0},null,{"$f":"SUM(Z13:Z26)","v":0},null,null,null,null,"brrt_RiskGradeAxis_brrt_TotalMember"]
[]
[]
[]
[]
[]
[null,null,null,"ASSETS",null,null,null,null,null,null,null,null,null,null,null,"Liabilities"]
[null,null,null,"Long Exposures",null,null,null,"Short Exposures",null,null,null,null,null,null,null,null,null,"Without Management Actions",null,"With Management Actions",null,null,null,"Total Assets Before Shock",null,null,null,"Shocks"]
[null,null,null,null,null,null,null,"Qualifying as Assets held for risk-mitigation purposes",null,null,null,"Not Qualifying as Assets held for risk-mitigation purposes",null,null,null,null,null,null,null,null,null,null,null,null,null,null,null,"Shocks"]
[null,null,null,"Before Shock",null,"After Shock",null,"Before Shock",null,"After Shock",null,"Before Shock",null,"After Shock",null,"Before Shock",null,"After Shock",null,"After Shock"]
[null,null,null,{"$f":"+'Form 1EBS'!$F$8","v":" ('000s)"},null,{"$f":"+'Form 1EBS'!$F$8","v":" ('000s)"},null,{"$f":"+'Form 1EBS'!$H$8","v":" ('000s)"},null,{"$f":"+'Form 1EBS'!$H$8","v":" ('000s)"},null,{"$f":"+'Form 1EBS'!$F$8","v":" ('000s)"},null,{"$f":"+'Form 1EBS'!$F$8","v":" ('000s)"},null,{"$f":"+'Form 1EBS'!$H$8","v":" ('000s)"},null,{"$f":"+'Form 1EBS'!$H$8","v":" ('000s)"},null,{"$f":"+'Form 1EBS'!$F$8","v":" ('000s)"},null,null,null,{"$f":"+'Form 1EBS'!$F$8","v":" ('000s)"}]
[null,"Equity Holdings "]
[null,{"$f":"B27+1","v":15},"Strategic Holdings - Listed",{"$f":"Import!M12108","v":0},null,{"$f":"IF(OR(Import!M12130=0,Import!M12130=\"\"),(1-$AB39)*D39,Import!M12130)","v":0},null,{"$f":"Import!M12152","v":0},null,{"$f":"IF(OR(Import!M12174=0,Import!M12174=\"\"),(1-$AB39)*H39,Import!M12174)","v":0},null,{"$f":"Import!M12196","v":0},null,{"$f":"IF(OR(Import!M12218=0,Import!M12218=\"\"),(1-$AB39)*L39,Import!M12218)","v":0},null,{"$f":"Import!M12240","v":0},null,{"$f":"IF(OR(Import!M12262=0,Import!M12262=\"\"),P39,Import!M12262)","v":0},null,{"$f":"IF(OR(Import!M12284=0,Import!M12284=\"\"),R39,Import!M12284)","v":0},null,null,null,{"$f":"D39+H39+L39","v":0},null,null,null,0.2]
[null,{"$f":"B39+1","v":16},"Duration Based",{"$f":"Import!M12109","v":0},null,{"$f":"IF(OR(Import!M12131=0,Import!M12131=\"\"),(1-$AB40)*D40,Import!M12131)","v":0},null,{"$f":"Import!M12153","v":0},null,{"$f":"IF(OR(Import!M12175=0,Import!M12175=\"\"),(1-$AB40)*H40,Import!M12175)","v":0},null,{"$f":"Import!M12197","v":0},null,{"$f":"IF(OR(Import!M12219=0,Import!M12219=\"\"),(1-$AB40)*L40,Import!M12219)","v":0},null,{"$f":"Import!M12241","v":0},null,{"$f":"IF(OR(Import!M12263=0,Import!M12263=\"\"),P40,Import!M12263)","v":0},null,{"$f":"IF(OR(Import!M12285=0,Import!M12285=\"\"),R40,Import!M12285)","v":0},null,null,null,{"$f":"D40+H40+L40","v":0},null,null,null,0.2]
[null,17,"Listed Equity Securities in Developed Markets",{"$f":"Import!M12110","v":0},null,{"$f":"IF(OR(Import!M12132=0,Import!M12132=\"\"),(1-$AB41)*D41,Import!M12132)","v":0},null,{"$f":"Import!M12154","v":0},null,{"$f":"IF(OR(Import!M12176=0,Import!M12176=\"\"),(1-$AB41)*H41,Import!M12176)","v":0},null,{"$f":"Import!M12198","v":0},null,{"$f":"IF(OR(Import!M12220=0,Import!M12220=\"\"),(1-$AB41)*L41,Import!M12220)","v":0},null,{"$f":"Import!M12242","v":0},null,{"$f":"IF(OR(Import!M12264=0,Import!M12264=\"\"),P41,Import!M12264)","v":0},null,{"$f":"IF(OR(Import!M12286=0,Import!M12286=\"\"),R41,Import!M12286)","v":0},null,null,null,0,null,null,null,0.35]
[null,18,"Preferred Stocks, BSCR Rating 1",{"$f":"Import!M12111","v":0},null,{"$f":"IF(OR(Import!M12133=0,Import!M12133=\"\"),(1-$AB42)*D42,Import!M12133)","v":0},null,{"$f":"Import!M12155","v":0},null,{"$f":"IF(OR(Import!M12177=0,Import!M12177=\"\"),(1-$AB42)*H42,Import!M12177)","v":0},null,{"$f":"Import!M12199","v":0},null,{"$f":"IF(OR(Import!M12221=0,Import!M12221=\"\"),(1-$AB42)*L42,Import!M12221)","v":0},null,{"$f":"Import!M12243","v":0},null,{"$f":"IF(OR(Import!M12265=0,Import!M12265=\"\"),P42,Import!M12265)","v":0},null,{"$f":"IF(OR(Import!M12287=0,Import!M12287=\"\"),R42,Import!M12287)","v":0},null,null,null,0,null,null,null,6.0000000000000001E-3]
[null,19,"Preferred Stocks, BSCR Rating 2",{"$f":"Import!M12112","v":0},null,{"$f":"IF(OR(Import!M12134=0,Import!M12134=\"\"),(1-$AB43)*D43,Import!M12134)","v":0},null,{"$f":"Import!M12156","v":0},null,{"$f":"IF(OR(Import!M12178=0,Import!M12178=\"\"),(1-$AB43)*H43,Import!M12178)","v":0},null,{"$f":"Import!M12200","v":0},null,{"$f":"IF(OR(Import!M12222=0,Import!M12222=\"\"),(1-$AB43)*L43,Import!M12222)","v":0},null,{"$f":"Import!M12244","v":0},null,{"$f":"IF(OR(Import!M12266=0,Import!M12266=\"\"),P43,Import!M12266)","v":0},null,{"$f":"IF(OR(Import!M12288=0,Import!M12288=\"\"),R43,Import!M12288)","v":0},null,null,null,0,null,null,null,1.2E-2]
[null,20,"Preferred Stocks, BSCR Rating 3",{"$f":"Import!M12113","v":0},null,{"$f":"IF(OR(Import!M12135=0,Import!M12135=\"\"),(1-$AB44)*D44,Import!M12135)","v":0},null,{"$f":"Import!M12157","v":0},null,{"$f":"IF(OR(Import!M12179=0,Import!M12179=\"\"),(1-$AB44)*H44,Import!M12179)","v":0},null,{"$f":"Import!M12201","v":0},null,{"$f":"IF(OR(Import!M12223=0,Import!M12223=\"\"),(1-$AB44)*L44,Import!M12223)","v":0},null,{"$f":"Import!M12245","v":0},null,{"$f":"IF(OR(Import!M12267=0,Import!M12267=\"\"),P44,Import!M12267)","v":0},null,{"$f":"IF(OR(Import!M12289=0,Import!M12289=\"\"),R44,Import!M12289)","v":0},null,null,null,0,null,null,null,0.02]
[null,21,"Preferred Stocks, BSCR Rating 4",{"$f":"Import!M12114","v":0},null,{"$f":"IF(OR(Import!M12136=0,Import!M12136=\"\"),(1-$AB45)*D45,Import!M12136)","v":0},null,{"$f":"Import!M12158","v":0},null,{"$f":"IF(OR(Import!M12180=0,Import!M12180=\"\"),(1-$AB45)*H45,Import!M12180)","v":0},null,{"$f":"Import!M12202","v":0},null,{"$f":"IF(OR(Import!M12224=0,Import!M12224=\"\"),(1-$AB45)*L45,Import!M12224)","v":0},null,{"$f":"Import!M12246","v":0},null,{"$f":"IF(OR(Import!M12268=0,Import!M12268=\"\"),P45,Import!M12268)","v":0},null,{"$f":"IF(OR(Import!M12290=0,Import!M12290=\"\"),R45,Import!M12290)","v":0},null,null,null,0,null,null,null,0.04]
[null,22,"Preferred Stocks, BSCR Rating 5",{"$f":"Import!M12115","v":0},null,{"$f":"IF(OR(Import!M12137=0,Import!M12137=\"\"),(1-$AB46)*D46,Import!M12137)","v":0},null,{"$f":"Import!M12159","v":0},null,{"$f":"IF(OR(Import!M12181=0,Import!M12181=\"\"),(1-$AB46)*H46,Import!M12181)","v":0},null,{"$f":"Import!M12203","v":0},null,{"$f":"IF(OR(Import!M12225=0,Import!M12225=\"\"),(1-$AB46)*L46,Import!M12225)","v":0},null,{"$f":"Import!M12247","v":0},null,{"$f":"IF(OR(Import!M12269=0,Import!M12269=\"\"),P46,Import!M12269)","v":0},null,{"$f":"IF(OR(Import!M12291=0,Import!M12291=\"\"),R46,Import!M12291)","v":0},null,null,null,0,null,null,null,0.11]
[null,23,"Preferred Stocks, BSCR Rating 6",{"$f":"Import!M12116","v":0},null,{"$f":"IF(OR(Import!M12138=0,Import!M12138=\"\"),(1-$AB47)*D47,Import!M12138)","v":0},null,{"$f":"Import!M12160","v":0},null,{"$f":"IF(OR(Import!M12182=0,Import!M12182=\"\"),(1-$AB47)*H47,Import!M12182)","v":0},null,{"$f":"Import!M12204","v":0},null,{"$f":"IF(OR(Import!M12226=0,Import!M12226=\"\"),(1-$AB47)*L47,Import!M12226)","v":0},null,{"$f":"Import!M12248","v":0},null,{"$f":"IF(OR(Import!M12270=0,Import!M12270=\"\"),P47,Import!M12270)","v":0},null,{"$f":"IF(OR(Import!M12292=0,Import!M12292=\"\"),R47,Import!M12292)","v":0},null,null,null,0,null,null,null,0.25]
[null,24,"Preferred Stocks, BSCR Rating 7",{"$f":"Import!M12117","v":0},null,{"$f":"IF(OR(Import!M12139=0,Import!M12139=\"\"),(1-$AB48)*D48,Import!M12139)","v":0},null,{"$f":"Import!M12161","v":0},null,{"$f":"IF(OR(Import!M12183=0,Import!M12183=\"\"),(1-$AB48)*H48,Import!M12183)","v":0},null,{"$f":"Import!M12205","v":0},null,{"$f":"IF(OR(Import!M12227=0,Import!M12227=\"\"),(1-$AB48)*L48,Import!M12227)","v":0},null,{"$f":"Import!M12249","v":0},null,{"$f":"IF(OR(Import!M12271=0,Import!M12271=\"\"),P48,Import!M12271)","v":0},null,{"$f":"IF(OR(Import!M12293=0,Import!M12293=\"\"),R48,Import!M12293)","v":0},null,null,null,0,null,null,null,0.35]
[null,25,"Preferred Stocks, BSCR Rating 8",{"$f":"Import!M12118","v":0},null,{"$f":"IF(OR(Import!M12140=0,Import!M12140=\"\"),(1-$AB49)*D49,Import!M12140)","v":0},null,{"$f":"Import!M12162","v":0},null,{"$f":"IF(OR(Import!M12184=0,Import!M12184=\"\"),(1-$AB49)*H49,Import!M12184)","v":0},null,{"$f":"Import!M12206","v":0},null,{"$f":"IF(OR(Import!M12228=0,Import!M12228=\"\"),(1-$AB49)*L49,Import!M12228)","v":0},null,{"$f":"Import!M12250","v":0},null,{"$f":"IF(OR(Import!M12272=0,Import!M12272=\"\"),P49,Import!M12272)","v":0},null,{"$f":"IF(OR(Import!M12294=0,Import!M12294=\"\"),R49,Import!M12294)","v":0},null,null,null,0,null,null,null,0.35]
[null,26,"Equity Derivatives on Type 1 Equities",{"$f":"Import!M12119","v":0},null,{"$f":"Import!M12141","v":0},null,{"$f":"Import!M12163","v":0},null,{"$f":"Import!M12185","v":0},null,{"$f":"Import!M12207","v":0},null,{"$f":"Import!M12229","v":0},null,{"$f":"Import!M12251","v":0},null,{"$f":"IF(OR(Import!M12273=0,Import!M12273=\"\"),P50,Import!M12273)","v":0},null,{"$f":"IF(OR(Import!M12295=0,Import!M12295=\"\"),R50,Import!M12295)","v":0},null,null,null,0,null,null,null,0.35]
[null,27,"Strategic Holdings - Unlisted",{"$f":"Import!M12120","v":0},null,{"$f":"IF(OR(Import!M12142=0,Import!M12142=\"\"),(1-$AB51)*D51,Import!M12142)","v":0},null,{"$f":"Import!M12164","v":0},null,{"$f":"IF(OR(Import!M12186=0,Import!M12186=\"\"),(1-$AB51)*H51,Import!M12186)","v":0},null,{"$f":"Import!M12208","v":0},null,{"$f":"IF(OR(Import!M12230=0,Import!M12230=\"\"),(1-$AB51)*L51,Import!M12230)","v":0},null,{"$f":"Import!M12252","v":0},null,{"$f":"IF(OR(Import!M12274=0,Import!M12274=\"\"),P51,Import!M12274)","v":0},null,{"$f":"IF(OR(Import!M12296=0,Import!M12296=\"\"),R51,Import!M12296)","v":0},null,null,null,0,null,null,null,0.2]
[null,28,"Other Equities / Other Assets",{"$f":"Import!M12121","v":0},null,{"$f":"IF(OR(Import!M12143=0,Import!M12143=\"\"),(1-$AB52)*D52,Import!M12143)","v":0},null,{"$f":"Import!M12165","v":0},null,{"$f":"IF(OR(Import!M12187=0,Import!M12187=\"\"),(1-$AB52)*H52,Import!M12187)","v":0},null,{"$f":"Import!M12209","v":0},null,{"$f":"IF(OR(Import!M12231=0,Import!M12231=\"\"),(1-$AB52)*L52,Import!M12231)","v":0},null,{"$f":"Import!M12253","v":0},null,{"$f":"IF(OR(Import!M12275=0,Import!M12275=\"\"),P52,Import!M12275)","v":0},null,{"$f":"IF(OR(Import!M12297=0,Import!M12297=\"\"),R52,Import!M12297)","v":0},null,null,null,0,null,null,null,0.45]
[null,29,"Letters of Credit",{"$f":"Import!M12122","v":0},null,{"$f":"IF(OR(Import!M12144=0,Import!M12144=\"\"),(1-$AB53)*D53,Import!M12144)","v":0},null,{"$f":"Import!M12166","v":0},null,{"$f":"IF(OR(Import!M12188=0,Import!M12188=\"\"),(1-$AB53)*H53,Import!M12188)","v":0},null,{"$f":"Import!M12210","v":0},null,{"$f":"IF(OR(Import!M12232=0,Import!M12232=\"\"),(1-$AB53)*L53,Import!M12232)","v":0},null,{"$f":"Import!M12254","v":0},null,{"$f":"IF(OR(Import!M12276=0,Import!M12276=\"\"),P53,Import!M12276)","v":0},null,{"$f":"IF(OR(Import!M12298=0,Import!M12298=\"\"),R53,Import!M12298)","v":0},null,null,null,0,null,null,null,0.2]
[null,30,"Intangible assets",{"$f":"Import!M12123","v":0},null,{"$f":"IF(OR(Import!M12145=0,Import!M12145=\"\"),(1-$AB54)*D54,Import!M12145)","v":0},null,{"$f":"Import!M12167","v":0},null,{"$f":"IF(OR(Import!M12189=0,Import!M12189=\"\"),(1-$AB54)*H54,Import!M12189)","v":0},null,{"$f":"Import!M12211","v":0},null,{"$f":"IF(OR(Import!M12233=0,Import!M12233=\"\"),(1-$AB54)*L54,Import!M12233)","v":0},null,{"$f":"Import!M12255","v":0},null,{"$f":"IF(OR(Import!M12277=0,Import!M12277=\"\"),P54,Import!M12277)","v":0},null,{"$f":"IF(OR(Import!M12299=0,Import!M12299=\"\"),R54,Import!M12299)","v":0},null,null,null,0,null,null,null,0.2]
[null,31,"Pension Benefit Surplus",{"$f":"Import!M12124","v":0},null,{"$f":"IF(OR(Import!M12146=0,Import!M12146=\"\"),(1-$AB55)*D55,Import!M12146)","v":0},null,{"$f":"Import!M12168","v":0},null,{"$f":"IF(OR(Import!M12190=0,Import!M12190=\"\"),(1-$AB55)*H55,Import!M12190)","v":0},null,{"$f":"Import!M12212","v":0},null,{"$f":"IF(OR(Import!M12234=0,Import!M12234=\"\"),(1-$AB55)*L55,Import!M12234)","v":0},null,{"$f":"Import!M12256","v":0},null,{"$f":"IF(OR(Import!M12278=0,Import!M12278=\"\"),P55,Import!M12278)","v":0},null,{"$f":"IF(OR(Import!M12300=0,Import!M12300=\"\"),R55,Import!M12300)","v":0},null,null,null,0,null,null,null,0.2]
[null,32,"Equity Derivatives on Type 2 Equities",{"$f":"Import!M12125","v":0},null,{"$f":"Import!M12147","v":0},null,{"$f":"Import!M12169","v":0},null,{"$f":"Import!M12191","v":0},null,{"$f":"Import!M12213","v":0},null,{"$f":"Import!M12235","v":0},null,{"$f":"Import!M12257","v":0},null,{"$f":"IF(OR(Import!M12279=0,Import!M12279=\"\"),P56,Import!M12279)","v":0},null,{"$f":"IF(OR(Import!M12301=0,Import!M12301=\"\"),R56,Import!M12301)","v":0},null,null,null,0,null,null,null,0.45]
[null,33,"Infrastructure",{"$f":"Import!M12126","v":0},null,{"$f":"IF(OR(Import!M12148=0,Import!M12148=\"\"),(1-$AB57)*D57,Import!M12148)","v":0},null,{"$f":"Import!M12170","v":0},null,{"$f":"IF(OR(Import!M12192=0,Import!M12192=\"\"),(1-$AB57)*H57,Import!M12192)","v":0},null,{"$f":"Import!M12214","v":0},null,{"$f":"IF(OR(Import!M12236=0,Import!M12236=\"\"),(1-$AB57)*L57,Import!M12236)","v":0},null,{"$f":"Import!M12258","v":0},null,{"$f":"IF(OR(Import!M12280=0,Import!M12280=\"\"),P57,Import!M12280)","v":0},null,{"$f":"IF(OR(Import!M12302=0,Import!M12302=\"\"),R57,Import!M12302)","v":0},null,null,null,0,null,null,null,0.25]
[null,34,"Derivatives on Infrastructure",{"$f":"Import!M12127","v":0},null,{"$f":"Import!M12149","v":0},null,{"$f":"Import!M12171","v":0},null,{"$f":"Import!M12193","v":0},null,{"$f":"Import!M12215","v":0},null,{"$f":"Import!M12237","v":0},null,{"$f":"Import!M12259","v":0},null,{"$f":"IF(OR(Import!M12281=0,Import!M12281=\"\"),P58,Import!M12281)","v":0},null,{"$f":"IF(OR(Import!M12303=0,Import!M12303=\"\"),R58,Import!M12303)","v":0},null,null,null,0,null,null,null,0.25]
[null,35,"Equity Real Estate 1",{"$f":"Import!M12128","v":0},null,{"$f":"IF(OR(Import!M12150=0,Import!M12150=\"\"),(1-$AB59)*D59,Import!M12150)","v":0},null,{"$f":"Import!M12172","v":0},null,{"$f":"IF(OR(Import!M12194=0,Import!M12194=\"\"),(1-$AB59)*H59,Import!M12194)","v":0},null,{"$f":"Import!M12216","v":0},null,{"$f":"IF(OR(Import!M12238=0,Import!M12238=\"\"),(1-$AB59)*L59,Import!M12238)","v":0},null,{"$f":"Import!M12260","v":0},null,{"$f":"IF(OR(Import!M12282=0,Import!M12282=\"\"),P59,Import!M12282)","v":0},null,{"$f":"IF(OR(Import!M12304=0,Import!M12304=\"\"),R59,Import!M12304)","v":0},null,null,null,0,null,null,null,0.1]
[null,36,"Equity Real Estate 2",{"$f":"Import!M12129","v":0},null,{"$f":"IF(OR(Import!M12151=0,Import!M12151=\"\"),(1-$AB60)*D60,Import!M12151)","v":0},null,{"$f":"Import!M12173","v":0},null,{"$f":"IF(OR(Import!M12195=0,Import!M12195=\"\"),(1-$AB60)*H60,Import!M12195)","v":0},null,{"$f":"Import!M12217","v":0},null,{"$f":"IF(OR(Import!M12239=0,Import!M12239=\"\"),(1-$AB60)*L60,Import!M12239)","v":0},null,{"$f":"Import!M12261","v":0},null,{"$f":"IF(OR(Import!M12283=0,Import!M12283=\"\"),P60,Import!M12283)","v":0},null,{"$f":"IF(OR(Import!M12305=0,Import!M12305=\"\"),R60,Import!M12305)","v":0},null,null,null,0,null,null,null,0.2]
[]
[null,{"$f":"B60+1","v":37},"Total Equity Holdings",{"$f":"SUM(D38:D61)","v":0},null,{"$f":"SUM(F38:F61)","v":0},null,{"$f":"SUM(H38:H61)","v":0},null,{"$f":"SUM(J38:J61)","v":0},null,{"$f":"SUM(L38:L61)","v":0},null,{"$f":"SUM(N38:N61)","v":0},null,{"$f":"SUM(P38:P61)","v":0},null,{"$f":"SUM(R38:R61)","v":0},null,{"$f":"SUM(T38:T61)","v":0},null,null,null,{"$f":"SUM(X38:X61)","v":0}]
[null,null,null,null,null,null,null,null,null,null,null,null,null,null,null,null,null,null,null,null,null,null,null,null,null,null,null,null,null,null,"brrt_RiskGradeAxis_brrt_TotalMember"]
[null,null,null,"Spread Up",null,null,null,null,null,null,null,null,null,"Spread Down"]
[null,null,null,"Long Exposures",null,null,null,"Short Exposures",null,null,null,"Shock (bps)",null,"Long Exposures",null,null,null,"Short Exposures",null,null,null,"Shock Rates"]
[null,null,null,"Before Shock",null,"After Shock",null,"Before Shock",null,"After Shock",null,null,null,"Before Shock",null,"After Shock",null,"Before Shock",null,"After Shock"]
[null,null,"Spread Risk for Credit Derivatives",null,null,null,null,null,null,null,null,null,null,null,null,null,{"$f":"SUM(G71:G80)","v":0},null,{"$f":"SUM(I71:I80)","v":0},null,{"$f":"SUM(K71:K80)","v":0}]
[null,{"$f":"B62+1","v":38},"BSCR Rating 0",{"$f":"Import!M12306","v":0},null,{"$f":"Import!M12315","v":0},null,{"$f":"Import!M12324","v":0},null,{"$f":"Import!M12333","v":0},null,0,null,{"$f":"Import!M12342","v":0},null,{"$f":"Import!M12351","v":0},null,{"$f":"Import!M12360","v":0},null,{"$f":"Import!M12369","v":0},null,0]
[null,{"$f":"B68+1","v":39},"BSCR Rating 1",{"$f":"Import!M12307","v":0},null,{"$f":"Import!M12316","v":0},null,{"$f":"Import!M12325","v":0},null,{"$f":"Import!M12334","v":0},null,130,null,{"$f":"Import!M12343","v":0},null,{"$f":"Import!M12352","v":0},null,{"$f":"Import!M12361","v":0},null,{"$f":"Import!M12370","v":0},null,-0.75]
[null,{"$f":"B69+1","v":40},"BSCR Rating 2",{"$f":"Import!M12308","v":0},null,{"$f":"Import!M12317","v":0},null,{"$f":"Import!M12326","v":0},null,{"$f":"Import!M12335","v":0},null,150,null,{"$f":"Import!M12344","v":0},null,{"$f":"Import!M12353","v":0},null,{"$f":"Import!M12362","v":0},null,{"$f":"Import!M12371","v":0},null,-0.75]
[null,41,"BSCR Rating 3",{"$f":"Import!M12309","v":0},null,{"$f":"Import!M12318","v":0},null,{"$f":"Import!M12327","v":0},null,{"$f":"Import!M12336","v":0},null,260,null,{"$f":"Import!M12345","v":0},null,{"$f":"Import!M12354","v":0},null,{"$f":"Import!M12363","v":0},null,{"$f":"Import!M12372","v":0},null,-0.75]
[null,42,"BSCR Rating 4",{"$f":"Import!M12310","v":0},null,{"$f":"Import!M12319","v":0},null,{"$f":"Import!M12328","v":0},null,{"$f":"Import!M12337","v":0},null,450,null,{"$f":"Import!M12346","v":0},null,{"$f":"Import!M12355","v":0},null,{"$f":"Import!M12364","v":0},null,{"$f":"Import!M12373","v":0},null,-0.75]
[null,43,"BSCR Rating 5",{"$f":"Import!M12311","v":0},null,{"$f":"Import!M12320","v":0},null,{"$f":"Import!M12329","v":0},null,{"$f":"Import!M12338","v":0},null,840,null,{"$f":"Import!M12347","v":0},null,{"$f":"Import!M12356","v":0},null,{"$f":"Import!M12365","v":0},null,{"$f":"Import!M12374","v":0},null,-0.75]
[null,44,"BSCR Rating 6",{"$f":"Import!M12312","v":0},null,{"$f":"Import!M12321","v":0},null,{"$f":"Import!M12330","v":0},null,{"$f":"Import!M12339","v":0},null,1620,null,{"$f":"Import!M12348","v":0},null,{"$f":"Import!M12357","v":0},null,{"$f":"Import!M12366","v":0},null,{"$f":"Import!M12375","v":0},null,-0.75]
[null,45,"BSCR Rating 7",{"$f":"Import!M12313","v":0},null,{"$f":"Import!M12322","v":0},null,{"$f":"Import!M12331","v":0},null,{"$f":"Import!M12340","v":0},null,1620,null,{"$f":"Import!M12349","v":0},null,{"$f":"Import!M12358","v":0},null,{"$f":"Import!M12367","v":0},null,{"$f":"Import!M12376","v":0},null,-0.75]
[null,46,"BSCR Rating 8",{"$f":"Import!M12314","v":0},null,{"$f":"Import!M12323","v":0},null,{"$f":"Import!M12332","v":0},null,{"$f":"Import!M12341","v":0},null,1620,null,{"$f":"Import!M12350","v":0},null,{"$f":"Import!M12359","v":0},null,{"$f":"Import!M12368","v":0},null,{"$f":"Import!M12377","v":0},null,-0.75]
[null,47,"Total Spread",{"$f":"SUM(D67:D76)","v":0},null,{"$f":"SUM(F67:F76)","v":0},null,{"$f":"SUM(H67:H76)","v":0},null,{"$f":"SUM(J67:J76)","v":0},null,null,null,{"$f":"SUM(N67:N76)","v":0},null,{"$f":"SUM(P67:P76)","v":0},0,0,0,0,0]
[]
[null,null,"Spread Risk Check",null,null,null,null,null,null,null,null,null,null,{"$f":"IF(ROUND(D77-N77,0)=0,\"Yes\",\"No\")","v":"Yes"},null,null,null,{"$f":"IF(ROUND(H77-R77,0)=0,\"Yes\",\"No\")","v":"Yes"}]
[null,null,"Difference",null,null,null,null,null,null,null,null,null,null,{"$f":"ROUND(D77-N77,0)","v":0},null,null,null,{"$f":"ROUND(H77-R77,0)","v":0}]
[]
[null,null,null,"Market Value of Derivatives with Positive Market Value",null,"Market Value of Derivatives with Negative Market Value",null,"Market Value of Collateral, Excluding any over-collateralization"]
[null,null,"Counterparty Default Risk for OTC Derivatives"]
[null,{"$f":"B77+1","v":48},"BSCR Rating 0",{"$f":"Import!M12378","v":0},null,{"$f":"Import!M12387","v":0},null,{"$f":"Import!M12396","v":0}]
[null,{"$f":"B84+1","v":49},"BSCR Rating 1",{"$f":"Import!M12379","v":0},null,{"$f":"Import!M12388","v":0},null,{"$f":"Import!M12397","v":0}]
[null,{"$f":"B85+1","v":50},"BSCR Rating 2",{"$f":"Import!M12380","v":0},null,{"$f":"Import!M12389","v":0},null,{"$f":"Import!M12398","v":0}]
[null,51,"BSCR Rating 3",{"$f":"Import!M12381","v":0},null,{"$f":"Import!M12390","v":0},null,{"$f":"Import!M12399","v":0}]
[null,52,"BSCR Rating 4",{"$f":"Import!M12382","v":0},null,{"$f":"Import!M12391","v":0},null,{"$f":"Import!M12400","v":0}]
[null,53,"BSCR Rating 5",{"$f":"Import!M12383","v":0},null,{"$f":"Import!M12392","v":0},null,{"$f":"Import!M12401","v":0}]
[null,54,"BSCR Rating 6",{"$f":"Import!M12384","v":0},null,{"$f":"Import!M12393","v":0},null,{"$f":"Import!M12402","v":0}]
[null,55,"BSCR Rating 7",{"$f":"Import!M12385","v":0},null,{"$f":"Import!M12394","v":0},null,{"$f":"Import!M12403","v":0}]
[null,56,"BSCR Rating 8",{"$f":"Import!M12386","v":0},null,{"$f":"Import!M12395","v":0},null,{"$f":"Import!M12404","v":0}]
[null,57,"Total Default Risk for OTC Derivatives ",{"$f":"SUM(D83:D92)","v":0},null,{"$f":"SUM(F83:F92)","v":0},null,{"$f":"SUM(H83:H92)","v":0}]
[]
[null,{"$f":"B93+1","v":58},"Cash and Cash Equivalents",{"$f":"Import!M12405","v":0}]
[null,null,null,null,null,null,null,null,null,null,null,null,null,null,null,null,null,null,null,null,null,null,null,null,null,null,null,null,null,null,null,null,null,null,null,null,"brrt_RiskGradeAxis_brrt_NAICClass4Member"]
[null,{"$f":"B95+1","v":59},"Total Segregated Account Assets",{"$f":"X27+X62+D77+H77+D93+F93+H93+D95","v":0},null,null,null,null,null,null,null,null,null,null,null,null,null,null,null,null,null,null,null,null,null,null,null,null,null,null,null,"brrt_InvestmentsInMortgageLoansOnRealEstate",{"$f":"XBRLMap(H97,$AF97&\".\"&$AE$8,$D$101,$D$102,CONFIGURATION!$B$10,\"BMA\",CONFIGURATION!$B$1,\"bscr\",CONFIGURATION!$B$12)","v":{"$error":"#VALUE!"}},{"$f":"XBRLMap(J97,$AF97&\".\"&$AE$8,$F$101,$F$102,CONFIGURATION!$B$10,\"BMA\",CONFIGURATION!$B$1,\"bscr\",CONFIGURATION!$B$12)","v":{"$error":"#VALUE!"}},null,null,"brrt_RiskGradeAxis_brrt_NAICClass5Member"]
[]
[]
[]
[null,null,null,{"$f":"IF(D9=\"\",\"\",TEXT(DATE(YEAR(D9+1)-1,MONTH(D9+1),DAY(D9+1)),\"mm/dd/yyyy\"))","v":{"$error":"#VALUE!"}},null,{"$f":"IF(F9=\"\",\"\",TEXT(DATE(YEAR(F9+1)-1,MONTH(F9+1),DAY(F9+1)),\"mm/dd/yyyy\"))","v":{"$error":"#VALUE!"}}]
[null,null,null,{"$f":"IF(D9=\"\",\"\",TEXT(D9,\"mm/dd/yyyy\"))","v":"Assets"},null,{"$f":"IF(F9=\"\",\"\",TEXT(F9,\"mm/dd/yyyy\"))","v":"Liabilities"}]
[null,null,null,"brrt_BondsAndDebentures",null,"brrt_BondsAndDebentures",null,"brrt_BondsAndDebentures",null,"brrt_BondsAndDebentures",null,"brrt_BondsAndDebentures",null,"brrt_BondsAndDebentures",null,"brrt_BondsAndDebentures",null,"brrt_BondsAndDebentures",null,null,null,null,null,"brrt_BondsAndDebentures",null,"brrt_BondsAndDebentures"]
[null,null,null,"brrt_SecurityTypeAxis_brrt_CorporateSovereignBondsMember",null,"brrt_SecurityTypeAxis_brrt_CorporateSovereignBondsMember",null,"brrt_SecurityTypeAxis_brrt_ResidentialMortgageBackedSecuritiesMember",null,"brrt_SecurityTypeAxis_brrt_ResidentialMortgageBackedSecuritiesMember",null,"brrt_SecurityTypeAxis_brrt_CommercialMortgageBackedSecuritiesAssetBackedSecuritiesMember",null,"brrt_SecurityTypeAxis_brrt_CommercialMortgageBackedSecuritiesAssetBackedSecuritiesMember",null,"brrt_SecurityTypeAxis_brrt_MutualFundsMember",null,"brrt_SecurityTypeAxis_brrt_MutualFundsMember",null,null,null,null,null,"brrt_SecurityTypeAxis_brrt_TotalMember",null,"brrt_SecurityTypeAxis_brrt_TotalMember"]
[null,null,null,{"$f":"XBRLMap(D13,D$103&\".\"&$AE13&\".\"&$D$104&\".\"&$AE$8,$D$101,$D$102,CONFIGURATION!$B$10,\"BMA\",CONFIGURATION!$B$1,\"bscr\",CONFIGURATION!$B$12)","v":{"$error":"#VALUE!"}},null,{"$f":"XBRLMap(F13,F$103&\".\"&$AE13&\".\"&$F$104&\".\"&$AE$8,$F$101,$F$102,CONFIGURATION!$B$10,\"BMA\",CONFIGURATION!$B$1,\"bscr\",CONFIGURATION!$B$12)","v":{"$error":"#VALUE!"}},null,null,null,null,null,null,null,null,null,{"$f":"XBRLMap(P13,P$103&\".\"&$AE13&\".\"&$P$104&\".\"&$AE$8,$D$101,$D$102,CONFIGURATION!$B$10,\"BMA\",CONFIGURATION!$B$1,\"bscr\",CONFIGURATION!$B$12)","v":{"$error":"#VALUE!"}},null,{"$f":"XBRLMap(R13,R$103&\".\"&$AE13&\".\"&$R$104&\".\"&$AE$8,$F$101,$F$102,CONFIGURATION!$B$10,\"BMA\",CONFIGURATION!$B$1,\"bscr\",CONFIGURATION!$B$12)","v":{"$error":"#VALUE!"}},null,null,null,null,null,{"$f":"XBRLMap(X13,X$103&\".\"&$AE13&\".\"&$X$104&\".\"&$AE$8,$D$101,$D$102,CONFIGURATION!$B$10,\"BMA\",CONFIGURATION!$B$1,\"bscr\",CONFIGURATION!$B$12)","v":{"$error":"#VALUE!"}},null,{"$f":"XBRLMap(Z13,Z$103&\".\"&$AE13&\".\"&$Z$104&\".\"&$AE$8,$F$101,$F$102,CONFIGURATION!$B$10,\"BMA\",CONFIGURATION!$B$1,\"bscr\",CONFIGURATION!$B$12)","v":{"$error":"#VALUE!"}}]
[null,null,null,{"$f":"XBRLMap(D14,D$103&\".\"&$AE14&\".\"&$D$104&\".\"&$AE$8,$D$101,$D$102,CONFIGURATION!$B$10,\"BMA\",CONFIGURATION!$B$1,\"bscr\",CONFIGURATION!$B$12)","v":{"$error":"#VALUE!"}},null,{"$f":"XBRLMap(F14,F$103&\".\"&$AE14&\".\"&$F$104&\".\"&$AE$8,$F$101,$F$102,CONFIGURATION!$B$10,\"BMA\",CONFIGURATION!$B$1,\"bscr\",CONFIGURATION!$B$12)","v":{"$error":"#VALUE!"}},null,{"$f":"XBRLMap(H14,H$103&\".\"&$AE14&\".\"&$H$104&\".\"&$AE$8,$D$101,$D$102,CONFIGURATION!$B$10,\"BMA\",CONFIGURATION!$B$1,\"bscr\",CONFIGURATION!$B$12)","v":{"$error":"#VALUE!"}},null,{"$f":"XBRLMap(J14,J$103&\".\"&$AE14&\".\"&$J$104&\".\"&$AE$8,$F$101,$F$102,CONFIGURATION!$B$10,\"BMA\",CONFIGURATION!$B$1,\"bscr\",CONFIGURATION!$B$12)","v":{"$error":"#VALUE!"}},null,{"$f":"XBRLMap(L14,L$103&\".\"&$AE14&\".\"&$L$104&\".\"&$AE$8,$D$101,$D$102,CONFIGURATION!$B$10,\"BMA\",CONFIGURATION!$B$1,\"bscr\",CONFIGURATION!$B$12)","v":{"$error":"#VALUE!"}},null,{"$f":"XBRLMap(N14,N$103&\".\"&$AE14&\".\"&$N$104&\".\"&$AE$8,$F$101,$F$102,CONFIGURATION!$B$10,\"BMA\",CONFIGURATION!$B$1,\"bscr\",CONFIGURATION!$B$12)","v":{"$error":"#VALUE!"}},null,{"$f":"XBRLMap(P14,P$103&\".\"&$AE14&\".\"&$P$104&\".\"&$AE$8,$D$101,$D$102,CONFIGURATION!$B$10,\"BMA\",CONFIGURATION!$B$1,\"bscr\",CONFIGURATION!$B$12)","v":{"$error":"#VALUE!"}},null,{"$f":"XBRLMap(R14,R$103&\".\"&$AE14&\".\"&$R$104&\".\"&$AE$8,$F$101,$F$102,CONFIGURATION!$B$10,\"BMA\",CONFIGURATION!$B$1,\"bscr\",CONFIGURATION!$B$12)","v":{"$error":"#VALUE!"}},null,null,null,null,null,{"$f":"XBRLMap(X14,X$103&\".\"&$AE14&\".\"&$X$104&\".\"&$AE$8,$D$101,$D$102,CONFIGURATION!$B$10,\"BMA\",CONFIGURATION!$B$1,\"bscr\",CONFIGURATION!$B$12)","v":{"$error":"#VALUE!"}},null,{"$f":"XBRLMap(Z14,Z$103&\".\"&$AE14&\".\"&$Z$104&\".\"&$AE$8,$F$101,$F$102,CONFIGURATION!$B$10,\"BMA\",CONFIGURATION!$B$1,\"bscr\",CONFIGURATION!$B$12)","v":{"$error":"#VALUE!"}}]
[null,null,null,{"$f":"XBRLMap(D15,D$103&\".\"&$AE15&\".\"&$D$104&\".\"&$AE$8,$D$101,$D$102,CONFIGURATION!$B$10,\"BMA\",CONFIGURATION!$B$1,\"bscr\",CONFIGURATION!$B$12)","v":{"$error":"#VALUE!"}},null,{"$f":"XBRLMap(F15,F$103&\".\"&$AE15&\".\"&$F$104&\".\"&$AE$8,$F$101,$F$102,CONFIGURATION!$B$10,\"BMA\",CONFIGURATION!$B$1,\"bscr\",CONFIGURATION!$B$12)","v":{"$error":"#VALUE!"}},null,{"$f":"XBRLMap(H15,H$103&\".\"&$AE15&\".\"&$H$104&\".\"&$AE$8,$D$101,$D$102,CONFIGURATION!$B$10,\"BMA\",CONFIGURATION!$B$1,\"bscr\",CONFIGURATION!$B$12)","v":{"$error":"#VALUE!"}},null,{"$f":"XBRLMap(J15,J$103&\".\"&$AE15&\".\"&$J$104&\".\"&$AE$8,$F$101,$F$102,CONFIGURATION!$B$10,\"BMA\",CONFIGURATION!$B$1,\"bscr\",CONFIGURATION!$B$12)","v":{"$error":"#VALUE!"}},null,{"$f":"XBRLMap(L15,L$103&\".\"&$AE15&\".\"&$L$104&\".\"&$AE$8,$D$101,$D$102,CONFIGURATION!$B$10,\"BMA\",CONFIGURATION!$B$1,\"bscr\",CONFIGURATION!$B$12)","v":{"$error":"#VALUE!"}},null,{"$f":"XBRLMap(N15,N$103&\".\"&$AE15&\".\"&$N$104&\".\"&$AE$8,$F$101,$F$102,CONFIGURATION!$B$10,\"BMA\",CONFIGURATION!$B$1,\"bscr\",CONFIGURATION!$B$12)","v":{"$error":"#VALUE!"}},null,{"$f":"XBRLMap(P15,P$103&\".\"&$AE15&\".\"&$P$104&\".\"&$AE$8,$D$101,$D$102,CONFIGURATION!$B$10,\"BMA\",CONFIGURATION!$B$1,\"bscr\",CONFIGURATION!$B$12)","v":{"$error":"#VALUE!"}},null,{"$f":"XBRLMap(R15,R$103&\".\"&$AE15&\".\"&$R$104&\".\"&$AE$8,$F$101,$F$102,CONFIGURATION!$B$10,\"BMA\",CONFIGURATION!$B$1,\"bscr\",CONFIGURATION!$B$12)","v":{"$error":"#VALUE!"}},null,null,null,null,null,{"$f":"XBRLMap(X15,X$103&\".\"&$AE15&\".\"&$X$104&\".\"&$AE$8,$D$101,$D$102,CONFIGURATION!$B$10,\"BMA\",CONFIGURATION!$B$1,\"bscr\",CONFIGURATION!$B$12)","v":{"$error":"#VALUE!"}},null,{"$f":"XBRLMap(Z15,Z$103&\".\"&$AE15&\".\"&$Z$104&\".\"&$AE$8,$F$101,$F$102,CONFIGURATION!$B$10,\"BMA\",CONFIGURATION!$B$1,\"bscr\",CONFIGURATION!$B$12)","v":{"$error":"#VALUE!"}}]
[null,null,null,{"$f":"XBRLMap(D16,D$103&\".\"&$AE16&\".\"&$D$104&\".\"&$AE$8,$D$101,$D$102,CONFIGURATION!$B$10,\"BMA\",CONFIGURATION!$B$1,\"bscr\",CONFIGURATION!$B$12)","v":{"$error":"#VALUE!"}},null,{"$f":"XBRLMap(F16,F$103&\".\"&$AE16&\".\"&$F$104&\".\"&$AE$8,$F$101,$F$102,CONFIGURATION!$B$10,\"BMA\",CONFIGURATION!$B$1,\"bscr\",CONFIGURATION!$B$12)","v":{"$error":"#VALUE!"}},null,{"$f":"XBRLMap(H16,H$103&\".\"&$AE16&\".\"&$H$104&\".\"&$AE$8,$D$101,$D$102,CONFIGURATION!$B$10,\"BMA\",CONFIGURATION!$B$1,\"bscr\",CONFIGURATION!$B$12)","v":{"$error":"#VALUE!"}},null,{"$f":"XBRLMap(J16,J$103&\".\"&$AE16&\".\"&$J$104&\".\"&$AE$8,$F$101,$F$102,CONFIGURATION!$B$10,\"BMA\",CONFIGURATION!$B$1,\"bscr\",CONFIGURATION!$B$12)","v":{"$error":"#VALUE!"}},null,{"$f":"XBRLMap(L16,L$103&\".\"&$AE16&\".\"&$L$104&\".\"&$AE$8,$D$101,$D$102,CONFIGURATION!$B$10,\"BMA\",CONFIGURATION!$B$1,\"bscr\",CONFIGURATION!$B$12)","v":{"$error":"#VALUE!"}},null,{"$f":"XBRLMap(N16,N$103&\".\"&$AE16&\".\"&$N$104&\".\"&$AE$8,$F$101,$F$102,CONFIGURATION!$B$10,\"BMA\",CONFIGURATION!$B$1,\"bscr\",CONFIGURATION!$B$12)","v":{"$error":"#VALUE!"}},null,{"$f":"XBRLMap(P16,P$103&\".\"&$AE16&\".\"&$P$104&\".\"&$AE$8,$D$101,$D$102,CONFIGURATION!$B$10,\"BMA\",CONFIGURATION!$B$1,\"bscr\",CONFIGURATION!$B$12)","v":{"$error":"#VALUE!"}},null,{"$f":"XBRLMap(R16,R$103&\".\"&$AE16&\".\"&$R$104&\".\"&$AE$8,$F$101,$F$102,CONFIGURATION!$B$10,\"BMA\",CONFIGURATION!$B$1,\"bscr\",CONFIGURATION!$B$12)","v":{"$error":"#VALUE!"}},null,null,null,null,null,{"$f":"XBRLMap(X16,X$103&\".\"&$AE16&\".\"&$X$104&\".\"&$AE$8,$D$101,$D$102,CONFIGURATION!$B$10,\"BMA\",CONFIGURATION!$B$1,\"bscr\",CONFIGURATION!$B$12)","v":{"$error":"#VALUE!"}},null,{"$f":"XBRLMap(Z16,Z$103&\".\"&$AE16&\".\"&$Z$104&\".\"&$AE$8,$F$101,$F$102,CONFIGURATION!$B$10,\"BMA\",CONFIGURATION!$B$1,\"bscr\",CONFIGURATION!$B$12)","v":{"$error":"#VALUE!"}}]
[null,null,null,{"$f":"XBRLMap(D17,D$103&\".\"&$AE17&\".\"&$D$104&\".\"&$AE$8,$D$101,$D$102,CONFIGURATION!$B$10,\"BMA\",CONFIGURATION!$B$1,\"bscr\",CONFIGURATION!$B$12)","v":{"$error":"#VALUE!"}},null,{"$f":"XBRLMap(F17,F$103&\".\"&$AE17&\".\"&$F$104&\".\"&$AE$8,$F$101,$F$102,CONFIGURATION!$B$10,\"BMA\",CONFIGURATION!$B$1,\"bscr\",CONFIGURATION!$B$12)","v":{"$error":"#VALUE!"}},null,{"$f":"XBRLMap(H17,H$103&\".\"&$AE17&\".\"&$H$104&\".\"&$AE$8,$D$101,$D$102,CONFIGURATION!$B$10,\"BMA\",CONFIGURATION!$B$1,\"bscr\",CONFIGURATION!$B$12)","v":{"$error":"#VALUE!"}},null,{"$f":"XBRLMap(J17,J$103&\".\"&$AE17&\".\"&$J$104&\".\"&$AE$8,$F$101,$F$102,CONFIGURATION!$B$10,\"BMA\",CONFIGURATION!$B$1,\"bscr\",CONFIGURATION!$B$12)","v":{"$error":"#VALUE!"}},null,{"$f":"XBRLMap(L17,L$103&\".\"&$AE17&\".\"&$L$104&\".\"&$AE$8,$D$101,$D$102,CONFIGURATION!$B$10,\"BMA\",CONFIGURATION!$B$1,\"bscr\",CONFIGURATION!$B$12)","v":{"$error":"#VALUE!"}},null,{"$f":"XBRLMap(N17,N$103&\".\"&$AE17&\".\"&$N$104&\".\"&$AE$8,$F$101,$F$102,CONFIGURATION!$B$10,\"BMA\",CONFIGURATION!$B$1,\"bscr\",CONFIGURATION!$B$12)","v":{"$error":"#VALUE!"}},null,{"$f":"XBRLMap(P17,P$103&\".\"&$AE17&\".\"&$P$104&\".\"&$AE$8,$D$101,$D$102,CONFIGURATION!$B$10,\"BMA\",CONFIGURATION!$B$1,\"bscr\",CONFIGURATION!$B$12)","v":{"$error":"#VALUE!"}},null,{"$f":"XBRLMap(R17,R$103&\".\"&$AE17&\".\"&$R$104&\".\"&$AE$8,$F$101,$F$102,CONFIGURATION!$B$10,\"BMA\",CONFIGURATION!$B$1,\"bscr\",CONFIGURATION!$B$12)","v":{"$error":"#VALUE!"}},null,null,null,null,null,{"$f":"XBRLMap(X17,X$103&\".\"&$AE17&\".\"&$X$104&\".\"&$AE$8,$D$101,$D$102,CONFIGURATION!$B$10,\"BMA\",CONFIGURATION!$B$1,\"bscr\",CONFIGURATION!$B$12)","v":{"$error":"#VALUE!"}},null,{"$f":"XBRLMap(Z17,Z$103&\".\"&$AE17&\".\"&$Z$104&\".\"&$AE$8,$F$101,$F$102,CONFIGURATION!$B$10,\"BMA\",CONFIGURATION!$B$1,\"bscr\",CONFIGURATION!$B$12)","v":{"$error":"#VALUE!"}}]
[null,null,null,{"$f":"XBRLMap(D18,D$103&\".\"&$AE18&\".\"&$D$104&\".\"&$AE$8,$D$101,$D$102,CONFIGURATION!$B$10,\"BMA\",CONFIGURATION!$B$1,\"bscr\",CONFIGURATION!$B$12)","v":{"$error":"#VALUE!"}},null,{"$f":"XBRLMap(F18,F$103&\".\"&$AE18&\".\"&$F$104&\".\"&$AE$8,$F$101,$F$102,CONFIGURATION!$B$10,\"BMA\",CONFIGURATION!$B$1,\"bscr\",CONFIGURATION!$B$12)","v":{"$error":"#VALUE!"}},null,{"$f":"XBRLMap(H18,H$103&\".\"&$AE18&\".\"&$H$104&\".\"&$AE$8,$D$101,$D$102,CONFIGURATION!$B$10,\"BMA\",CONFIGURATION!$B$1,\"bscr\",CONFIGURATION!$B$12)","v":{"$error":"#VALUE!"}},null,{"$f":"XBRLMap(J18,J$103&\".\"&$AE18&\".\"&$J$104&\".\"&$AE$8,$F$101,$F$102,CONFIGURATION!$B$10,\"BMA\",CONFIGURATION!$B$1,\"bscr\",CONFIGURATION!$B$12)","v":{"$error":"#VALUE!"}},null,{"$f":"XBRLMap(L18,L$103&\".\"&$AE18&\".\"&$L$104&\".\"&$AE$8,$D$101,$D$102,CONFIGURATION!$B$10,\"BMA\",CONFIGURATION!$B$1,\"bscr\",CONFIGURATION!$B$12)","v":{"$error":"#VALUE!"}},null,{"$f":"XBRLMap(N18,N$103&\".\"&$AE18&\".\"&$N$104&\".\"&$AE$8,$F$101,$F$102,CONFIGURATION!$B$10,\"BMA\",CONFIGURATION!$B$1,\"bscr\",CONFIGURATION!$B$12)","v":{"$error":"#VALUE!"}},null,{"$f":"XBRLMap(P18,P$103&\".\"&$AE18&\".\"&$P$104&\".\"&$AE$8,$D$101,$D$102,CONFIGURATION!$B$10,\"BMA\",CONFIGURATION!$B$1,\"bscr\",CONFIGURATION!$B$12)","v":{"$error":"#VALUE!"}},null,{"$f":"XBRLMap(R18,R$103&\".\"&$AE18&\".\"&$R$104&\".\"&$AE$8,$F$101,$F$102,CONFIGURATION!$B$10,\"BMA\",CONFIGURATION!$B$1,\"bscr\",CONFIGURATION!$B$12)","v":{"$error":"#VALUE!"}},null,null,null,null,null,{"$f":"XBRLMap(X18,X$103&\".\"&$AE18&\".\"&$X$104&\".\"&$AE$8,$D$101,$D$102,CONFIGURATION!$B$10,\"BMA\",CONFIGURATION!$B$1,\"bscr\",CONFIGURATION!$B$12)","v":{"$error":"#VALUE!"}},null,{"$f":"XBRLMap(Z18,Z$103&\".\"&$AE18&\".\"&$Z$104&\".\"&$AE$8,$F$101,$F$102,CONFIGURATION!$B$10,\"BMA\",CONFIGURATION!$B$1,\"bscr\",CONFIGURATION!$B$12)","v":{"$error":"#VALUE!"}}]
[null,null,null,{"$f":"XBRLMap(D19,D$103&\".\"&$AE19&\".\"&$D$104&\".\"&$AE$8,$D$101,$D$102,CONFIGURATION!$B$10,\"BMA\",CONFIGURATION!$B$1,\"bscr\",CONFIGURATION!$B$12)","v":{"$error":"#VALUE!"}},null,{"$f":"XBRLMap(F19,F$103&\".\"&$AE19&\".\"&$F$104&\".\"&$AE$8,$F$101,$F$102,CONFIGURATION!$B$10,\"BMA\",CONFIGURATION!$B$1,\"bscr\",CONFIGURATION!$B$12)","v":{"$error":"#VALUE!"}},null,{"$f":"XBRLMap(H19,H$103&\".\"&$AE19&\".\"&$H$104&\".\"&$AE$8,$D$101,$D$102,CONFIGURATION!$B$10,\"BMA\",CONFIGURATION!$B$1,\"bscr\",CONFIGURATION!$B$12)","v":{"$error":"#VALUE!"}},null,{"$f":"XBRLMap(J19,J$103&\".\"&$AE19&\".\"&$J$104&\".\"&$AE$8,$F$101,$F$102,CONFIGURATION!$B$10,\"BMA\",CONFIGURATION!$B$1,\"bscr\",CONFIGURATION!$B$12)","v":{"$error":"#VALUE!"}},null,{"$f":"XBRLMap(L19,L$103&\".\"&$AE19&\".\"&$L$104&\".\"&$AE$8,$D$101,$D$102,CONFIGURATION!$B$10,\"BMA\",CONFIGURATION!$B$1,\"bscr\",CONFIGURATION!$B$12)","v":{"$error":"#VALUE!"}},null,{"$f":"XBRLMap(N19,N$103&\".\"&$AE19&\".\"&$N$104&\".\"&$AE$8,$F$101,$F$102,CONFIGURATION!$B$10,\"BMA\",CONFIGURATION!$B$1,\"bscr\",CONFIGURATION!$B$12)","v":{"$error":"#VALUE!"}},null,{"$f":"XBRLMap(P19,P$103&\".\"&$AE19&\".\"&$P$104&\".\"&$AE$8,$D$101,$D$102,CONFIGURATION!$B$10,\"BMA\",CONFIGURATION!$B$1,\"bscr\",CONFIGURATION!$B$12)","v":{"$error":"#VALUE!"}},null,{"$f":"XBRLMap(R19,R$103&\".\"&$AE19&\".\"&$R$104&\".\"&$AE$8,$F$101,$F$102,CONFIGURATION!$B$10,\"BMA\",CONFIGURATION!$B$1,\"bscr\",CONFIGURATION!$B$12)","v":{"$error":"#VALUE!"}},null,null,null,null,null,{"$f":"XBRLMap(X19,X$103&\".\"&$AE19&\".\"&$X$104&\".\"&$AE$8,$D$101,$D$102,CONFIGURATION!$B$10,\"BMA\",CONFIGURATION!$B$1,\"bscr\",CONFIGURATION!$B$12)","v":{"$error":"#VALUE!"}},null,{"$f":"XBRLMap(Z19,Z$103&\".\"&$AE19&\".\"&$Z$104&\".\"&$AE$8,$F$101,$F$102,CONFIGURATION!$B$10,\"BMA\",CONFIGURATION!$B$1,\"bscr\",CONFIGURATION!$B$12)","v":{"$error":"#VALUE!"}}]
[null,null,null,{"$f":"XBRLMap(D20,D$103&\".\"&$AE20&\".\"&$D$104&\".\"&$AE$8,$D$101,$D$102,CONFIGURATION!$B$10,\"BMA\",CONFIGURATION!$B$1,\"bscr\",CONFIGURATION!$B$12)","v":{"$error":"#VALUE!"}},null,{"$f":"XBRLMap(F20,F$103&\".\"&$AE20&\".\"&$F$104&\".\"&$AE$8,$F$101,$F$102,CONFIGURATION!$B$10,\"BMA\",CONFIGURATION!$B$1,\"bscr\",CONFIGURATION!$B$12)","v":{"$error":"#VALUE!"}},null,{"$f":"XBRLMap(H20,H$103&\".\"&$AE20&\".\"&$H$104&\".\"&$AE$8,$D$101,$D$102,CONFIGURATION!$B$10,\"BMA\",CONFIGURATION!$B$1,\"bscr\",CONFIGURATION!$B$12)","v":{"$error":"#VALUE!"}},null,{"$f":"XBRLMap(J20,J$103&\".\"&$AE20&\".\"&$J$104&\".\"&$AE$8,$F$101,$F$102,CONFIGURATION!$B$10,\"BMA\",CONFIGURATION!$B$1,\"bscr\",CONFIGURATION!$B$12)","v":{"$error":"#VALUE!"}},null,{"$f":"XBRLMap(L20,L$103&\".\"&$AE20&\".\"&$L$104&\".\"&$AE$8,$D$101,$D$102,CONFIGURATION!$B$10,\"BMA\",CONFIGURATION!$B$1,\"bscr\",CONFIGURATION!$B$12)","v":{"$error":"#VALUE!"}},null,{"$f":"XBRLMap(N20,N$103&\".\"&$AE20&\".\"&$N$104&\".\"&$AE$8,$F$101,$F$102,CONFIGURATION!$B$10,\"BMA\",CONFIGURATION!$B$1,\"bscr\",CONFIGURATION!$B$12)","v":{"$error":"#VALUE!"}},null,{"$f":"XBRLMap(P20,P$103&\".\"&$AE20&\".\"&$P$104&\".\"&$AE$8,$D$101,$D$102,CONFIGURATION!$B$10,\"BMA\",CONFIGURATION!$B$1,\"bscr\",CONFIGURATION!$B$12)","v":{"$error":"#VALUE!"}},null,{"$f":"XBRLMap(R20,R$103&\".\"&$AE20&\".\"&$R$104&\".\"&$AE$8,$F$101,$F$102,CONFIGURATION!$B$10,\"BMA\",CONFIGURATION!$B$1,\"bscr\",CONFIGURATION!$B$12)","v":{"$error":"#VALUE!"}},null,null,null,null,null,{"$f":"XBRLMap(X20,X$103&\".\"&$AE20&\".\"&$X$104&\".\"&$AE$8,$D$101,$D$102,CONFIGURATION!$B$10,\"BMA\",CONFIGURATION!$B$1,\"bscr\",CONFIGURATION!$B$12)","v":{"$error":"#VALUE!"}},null,{"$f":"XBRLMap(Z20,Z$103&\".\"&$AE20&\".\"&$Z$104&\".\"&$AE$8,$F$101,$F$102,CONFIGURATION!$B$10,\"BMA\",CONFIGURATION!$B$1,\"bscr\",CONFIGURATION!$B$12)","v":{"$error":"#VALUE!"}}]
[null,null,null,{"$f":"XBRLMap(D21,D$103&\".\"&$AE21&\".\"&$D$104&\".\"&$AE$8,$D$101,$D$102,CONFIGURATION!$B$10,\"BMA\",CONFIGURATION!$B$1,\"bscr\",CONFIGURATION!$B$12)","v":{"$error":"#VALUE!"}},null,{"$f":"XBRLMap(F21,F$103&\".\"&$AE21&\".\"&$F$104&\".\"&$AE$8,$F$101,$F$102,CONFIGURATION!$B$10,\"BMA\",CONFIGURATION!$B$1,\"bscr\",CONFIGURATION!$B$12)","v":{"$error":"#VALUE!"}},null,{"$f":"XBRLMap(H21,H$103&\".\"&$AE21&\".\"&$H$104&\".\"&$AE$8,$D$101,$D$102,CONFIGURATION!$B$10,\"BMA\",CONFIGURATION!$B$1,\"bscr\",CONFIGURATION!$B$12)","v":{"$error":"#VALUE!"}},null,{"$f":"XBRLMap(J21,J$103&\".\"&$AE21&\".\"&$J$104&\".\"&$AE$8,$F$101,$F$102,CONFIGURATION!$B$10,\"BMA\",CONFIGURATION!$B$1,\"bscr\",CONFIGURATION!$B$12)","v":{"$error":"#VALUE!"}},null,{"$f":"XBRLMap(L21,L$103&\".\"&$AE21&\".\"&$L$104&\".\"&$AE$8,$D$101,$D$102,CONFIGURATION!$B$10,\"BMA\",CONFIGURATION!$B$1,\"bscr\",CONFIGURATION!$B$12)","v":{"$error":"#VALUE!"}},null,{"$f":"XBRLMap(N21,N$103&\".\"&$AE21&\".\"&$N$104&\".\"&$AE$8,$F$101,$F$102,CONFIGURATION!$B$10,\"BMA\",CONFIGURATION!$B$1,\"bscr\",CONFIGURATION!$B$12)","v":{"$error":"#VALUE!"}},null,{"$f":"XBRLMap(P21,P$103&\".\"&$AE21&\".\"&$P$104&\".\"&$AE$8,$D$101,$D$102,CONFIGURATION!$B$10,\"BMA\",CONFIGURATION!$B$1,\"bscr\",CONFIGURATION!$B$12)","v":{"$error":"#VALUE!"}},null,{"$f":"XBRLMap(R21,R$103&\".\"&$AE21&\".\"&$R$104&\".\"&$AE$8,$F$101,$F$102,CONFIGURATION!$B$10,\"BMA\",CONFIGURATION!$B$1,\"bscr\",CONFIGURATION!$B$12)","v":{"$error":"#VALUE!"}},null,null,null,null,null,{"$f":"XBRLMap(X21,X$103&\".\"&$AE21&\".\"&$X$104&\".\"&$AE$8,$D$101,$D$102,CONFIGURATION!$B$10,\"BMA\",CONFIGURATION!$B$1,\"bscr\",CONFIGURATION!$B$12)","v":{"$error":"#VALUE!"}},null,{"$f":"XBRLMap(Z21,Z$103&\".\"&$AE21&\".\"&$Z$104&\".\"&$AE$8,$F$101,$F$102,CONFIGURATION!$B$10,\"BMA\",CONFIGURATION!$B$1,\"bscr\",CONFIGURATION!$B$12)","v":{"$error":"#VALUE!"}}]
[]
[null,null,null,{"$f":"XBRLMap(D27,D$103&\".\"&$AE27&\".\"&$D$104&\".\"&$AE$8,$D$101,$D$102,CONFIGURATION!$B$10,\"BMA\",CONFIGURATION!$B$1,\"bscr\",CONFIGURATION!$B$12)","v":{"$error":"#VALUE!"}},null,{"$f":"XBRLMap(F27,F$103&\".\"&$AE27&\".\"&$F$104&\".\"&$AE$8,$F$101,$F$102,CONFIGURATION!$B$10,\"BMA\",CONFIGURATION!$B$1,\"bscr\",CONFIGURATION!$B$12)","v":{"$error":"#VALUE!"}},null,{"$f":"XBRLMap(H27,H$103&\".\"&$AE27&\".\"&$H$104&\".\"&$AE$8,$D$101,$D$102,CONFIGURATION!$B$10,\"BMA\",CONFIGURATION!$B$1,\"bscr\",CONFIGURATION!$B$12)","v":{"$error":"#VALUE!"}},null,{"$f":"XBRLMap(J27,J$103&\".\"&$AE27&\".\"&$J$104&\".\"&$AE$8,$F$101,$F$102,CONFIGURATION!$B$10,\"BMA\",CONFIGURATION!$B$1,\"bscr\",CONFIGURATION!$B$12)","v":{"$error":"#VALUE!"}},null,{"$f":"XBRLMap(L27,L$103&\".\"&$AE27&\".\"&$L$104&\".\"&$AE$8,$D$101,$D$102,CONFIGURATION!$B$10,\"BMA\",CONFIGURATION!$B$1,\"bscr\",CONFIGURATION!$B$12)","v":{"$error":"#VALUE!"}},null,{"$f":"XBRLMap(N27,N$103&\".\"&$AE27&\".\"&$N$104&\".\"&$AE$8,$F$101,$F$102,CONFIGURATION!$B$10,\"BMA\",CONFIGURATION!$B$1,\"bscr\",CONFIGURATION!$B$12)","v":{"$error":"#VALUE!"}},null,{"$f":"XBRLMap(P27,P$103&\".\"&$AE27&\".\"&$P$104&\".\"&$AE$8,$D$101,$D$102,CONFIGURATION!$B$10,\"BMA\",CONFIGURATION!$B$1,\"bscr\",CONFIGURATION!$B$12)","v":{"$error":"#VALUE!"}},null,{"$f":"XBRLMap(R27,R$103&\".\"&$AE27&\".\"&$R$104&\".\"&$AE$8,$F$101,$F$102,CONFIGURATION!$B$10,\"BMA\",CONFIGURATION!$B$1,\"bscr\",CONFIGURATION!$B$12)","v":{"$error":"#VALUE!"}},null,null,null,null,null,{"$f":"XBRLMap(X27,X$103&\".\"&$AE27&\".\"&$X$104&\".\"&$AE$8,$D$101,$D$102,CONFIGURATION!$B$10,\"BMA\",CONFIGURATION!$B$1,\"bscr\",CONFIGURATION!$B$12)","v":{"$error":"#VALUE!"}},null,{"$f":"XBRLMap(Z27,Z$103&\".\"&$AE27&\".\"&$Z$104&\".\"&$AE$8,$F$101,$F$102,CONFIGURATION!$B$10,\"BMA\",CONFIGURATION!$B$1,\"bscr\",CONFIGURATION!$B$12)","v":{"$error":"#VALUE!"}}]
[]
[null,null,null,"brrt_QuotedInvestmentsEquitiesCommonStocks",null,"brrt_QuotedInvestmentsEquitiesCommonStocks",null,null,null,null,null,"brrt_QuotedInvestmentsEquitiesMutualFunds",null,"brrt_QuotedInvestmentsEquitiesMutualFunds",null,null,null,null,null,null,null,null,null,"brrt_QuotedInvestmentsEquitiesCommonStocksMutualFunds",null,"brrt_QuotedInvestmentsEquitiesCommonStocksMutualFunds"]
[null,null,null,"brrt_UnquotedInvestmentsEquitiesCommonStocks",null,"brrt_UnquotedInvestmentsEquitiesCommonStocks",null,null,null,null,null,"brrt_UnquotedInvestmentsEquitiesMutualFunds",null,"brrt_UnquotedInvestmentsEquitiesMutualFunds",null,null,null,null,null,null,null,null,null,"brrt_UnquotedInvestmentsEquitiesCommonStocksMutualFunds",null,"brrt_UnquotedInvestmentsEquitiesCommonStocksMutualFunds"]
[null,null,null,"brrt_EquitiesCommonStocks",null,"brrt_EquitiesCommonStocks",null,"brrt_EquitiesPreferredStocks",null,"brrt_EquitiesPreferredStocks",null,"brrt_EquitiesMutualFunds",null,"brrt_EquitiesMutualFunds",null,null,null,null,null,null,null,null,null,"brrt_Equities",null,"brrt_Equities"]
[null,null,null,null,null,null,null,{"$f":"XBRLMap(#REF!,H$119&\".\"&#REF!&\".\"&$AE$8,$D$101,$D$102,CONFIGURATION!$B$10,\"BMA\",CONFIGURATION!$B$1,\"bscr\",CONFIGURATION!$B$12)","v":{"$error":"#VALUE!"}},null,{"$f":"XBRLMap(#REF!,J$119&\".\"&#REF!&\".\"&$AE$8,$F$101,$F$102,CONFIGURATION!$B$10,\"BMA\",CONFIGURATION!$B$1,\"bscr\",CONFIGURATION!$B$12)","v":{"$error":"#VALUE!"}},null,null,null,null,null,null,null,null,null,null,null,null,null,"The same data point as in column H",null,"The same data point as in column J"]
[null,null,null,null,null,null,null,{"$f":"XBRLMap(#REF!,H$119&\".\"&#REF!&\".\"&$AE$8,$D$101,$D$102,CONFIGURATION!$B$10,\"BMA\",CONFIGURATION!$B$1,\"bscr\",CONFIGURATION!$B$12)","v":{"$error":"#VALUE!"}},null,{"$f":"XBRLMap(#REF!,J$119&\".\"&#REF!&\".\"&$AE$8,$F$101,$F$102,CONFIGURATION!$B$10,\"BMA\",CONFIGURATION!$B$1,\"bscr\",CONFIGURATION!$B$12)","v":{"$error":"#VALUE!"}},null,null,null,null,null,null,null,null,null,null,null,null,null,"The same data point as in column H",null,"The same data point as in column J"]
[null,null,null,null,null,null,null,{"$f":"XBRLMap(#REF!,H$119&\".\"&#REF!&\".\"&$AE$8,$D$101,$D$102,CONFIGURATION!$B$10,\"BMA\",CONFIGURATION!$B$1,\"bscr\",CONFIGURATION!$B$12)","v":{"$error":"#VALUE!"}},null,{"$f":"XBRLMap(#REF!,J$119&\".\"&#REF!&\".\"&$AE$8,$F$101,$F$102,CONFIGURATION!$B$10,\"BMA\",CONFIGURATION!$B$1,\"bscr\",CONFIGURATION!$B$12)","v":{"$error":"#VALUE!"}},null,null,null,null,null,null,null,null,null,null,null,null,null,"The same data point as in column H",null,"The same data point as in column J"]
[null,null,null,null,null,null,null,{"$f":"XBRLMap(#REF!,H$119&\".\"&#REF!&\".\"&$AE$8,$D$101,$D$102,CONFIGURATION!$B$10,\"BMA\",CONFIGURATION!$B$1,\"bscr\",CONFIGURATION!$B$12)","v":{"$error":"#VALUE!"}},null,{"$f":"XBRLMap(#REF!,J$119&\".\"&#REF!&\".\"&$AE$8,$F$101,$F$102,CONFIGURATION!$B$10,\"BMA\",CONFIGURATION!$B$1,\"bscr\",CONFIGURATION!$B$12)","v":{"$error":"#VALUE!"}},null,null,null,null,null,null,null,null,null,null,null,null,null,"The same data point as in column H",null,"The same data point as in column J"]
[null,null,null,null,null,null,null,{"$f":"XBRLMap(#REF!,H$119&\".\"&#REF!&\".\"&$AE$8,$D$101,$D$102,CONFIGURATION!$B$10,\"BMA\",CONFIGURATION!$B$1,\"bscr\",CONFIGURATION!$B$12)","v":{"$error":"#VALUE!"}},null,{"$f":"XBRLMap(#REF!,J$119&\".\"&#REF!&\".\"&$AE$8,$F$101,$F$102,CONFIGURATION!$B$10,\"BMA\",CONFIGURATION!$B$1,\"bscr\",CONFIGURATION!$B$12)","v":{"$error":"#VALUE!"}},null,null,null,null,null,null,null,null,null,null,null,null,null,"The same data point as in column H",null,"The same data point as in column J"]
[null,null,null,null,null,null,null,{"$f":"XBRLMap(#REF!,H$119&\".\"&#REF!&\".\"&$AE$8,$D$101,$D$102,CONFIGURATION!$B$10,\"BMA\",CONFIGURATION!$B$1,\"bscr\",CONFIGURATION!$B$12)","v":{"$error":"#VALUE!"}},null,{"$f":"XBRLMap(#REF!,J$119&\".\"&#REF!&\".\"&$AE$8,$F$101,$F$102,CONFIGURATION!$B$10,\"BMA\",CONFIGURATION!$B$1,\"bscr\",CONFIGURATION!$B$12)","v":{"$error":"#VALUE!"}},null,null,null,null,null,null,null,null,null,null,null,null,null,"The same data point as in column H",null,"The same data point as in column J"]
[null,null,null,null,null,null,null,{"$f":"XBRLMap(#REF!,H$119&\".\"&#REF!&\".\"&$AE$8,$D$101,$D$102,CONFIGURATION!$B$10,\"BMA\",CONFIGURATION!$B$1,\"bscr\",CONFIGURATION!$B$12)","v":{"$error":"#VALUE!"}},null,{"$f":"XBRLMap(#REF!,J$119&\".\"&#REF!&\".\"&$AE$8,$F$101,$F$102,CONFIGURATION!$B$10,\"BMA\",CONFIGURATION!$B$1,\"bscr\",CONFIGURATION!$B$12)","v":{"$error":"#VALUE!"}},null,null,null,null,null,null,null,null,null,null,null,null,null,"The same data point as in column H",null,"The same data point as in column J"]
[null,null,null,null,null,null,null,{"$f":"XBRLMap(#REF!,H$119&\".\"&#REF!&\".\"&$AE$8,$D$101,$D$102,CONFIGURATION!$B$10,\"BMA\",CONFIGURATION!$B$1,\"bscr\",CONFIGURATION!$B$12)","v":{"$error":"#VALUE!"}},null,{"$f":"XBRLMap(#REF!,J$119&\".\"&#REF!&\".\"&$AE$8,$F$101,$F$102,CONFIGURATION!$B$10,\"BMA\",CONFIGURATION!$B$1,\"bscr\",CONFIGURATION!$B$12)","v":{"$error":"#VALUE!"}},null,null,null,null,null,null,null,null,null,null,null,null,null,"The same data point as in column H",null,"The same data point as in column J"]
[null,null,null,{"$f":"XBRLMap(#REF!,D$117&\".\"&$AE$8,$D$101,$D$102,CONFIGURATION!$B$10,\"BMA\",CONFIGURATION!$B$1,\"bscr\",CONFIGURATION!$B$12)","v":{"$error":"#VALUE!"}},null,{"$f":"XBRLMap(#REF!,F$117&\".\"&$AE$8,$F$101,$F$102,CONFIGURATION!$B$10,\"BMA\",CONFIGURATION!$B$1,\"bscr\",CONFIGURATION!$B$12)","v":{"$error":"#VALUE!"}},null,null,null,null,null,{"$f":"XBRLMap(#REF!,L$117&\".\"&$AE$8,$D$101,$D$102,CONFIGURATION!$B$10,\"BMA\",CONFIGURATION!$B$1,\"bscr\",CONFIGURATION!$B$12)","v":{"$error":"#VALUE!"}},null,{"$f":"XBRLMap(#REF!,N$117&\".\"&$AE$8,$F$101,$F$102,CONFIGURATION!$B$10,\"BMA\",CONFIGURATION!$B$1,\"bscr\",CONFIGURATION!$B$12)","v":{"$error":"#VALUE!"}},null,null,null,null,null,null,null,null,null,{"$f":"XBRLMap(#REF!,X$117&\".\"&$AE$8,$D$101,$D$102,CONFIGURATION!$B$10,\"BMA\",CONFIGURATION!$B$1,\"bscr\",CONFIGURATION!$B$12)","v":{"$error":"#VALUE!"}},null,{"$f":"XBRLMap(#REF!,Z$117&\".\"&$AE$8,$F$101,$F$102,CONFIGURATION!$B$10,\"BMA\",CONFIGURATION!$B$1,\"bscr\",CONFIGURATION!$B$12)","v":{"$error":"#VALUE!"}}]
[null,null,null,{"$f":"XBRLMap(#REF!,D$118&\".\"&$AE$8,$D$101,$D$102,CONFIGURATION!$B$10,\"BMA\",CONFIGURATION!$B$1,\"bscr\",CONFIGURATION!$B$12)","v":{"$error":"#VALUE!"}},null,{"$f":"XBRLMap(#REF!,F$118&\".\"&$AE$8,$F$101,$F$102,CONFIGURATION!$B$10,\"BMA\",CONFIGURATION!$B$1,\"bscr\",CONFIGURATION!$B$12)","v":{"$error":"#VALUE!"}},null,null,null,null,null,{"$f":"XBRLMap(#REF!,L$118&\".\"&$AE$8,$D$101,$D$102,CONFIGURATION!$B$10,\"BMA\",CONFIGURATION!$B$1,\"bscr\",CONFIGURATION!$B$12)","v":{"$error":"#VALUE!"}},null,{"$f":"XBRLMap(#REF!,N$118&\".\"&$AE$8,$F$101,$F$102,CONFIGURATION!$B$10,\"BMA\",CONFIGURATION!$B$1,\"bscr\",CONFIGURATION!$B$12)","v":{"$error":"#VALUE!"}},null,null,null,null,null,null,null,null,null,{"$f":"XBRLMap(#REF!,X$118&\".\"&$AE$8,$D$101,$D$102,CONFIGURATION!$B$10,\"BMA\",CONFIGURATION!$B$1,\"bscr\",CONFIGURATION!$B$12)","v":{"$error":"#VALUE!"}},null,{"$f":"XBRLMap(#REF!,Z$118&\".\"&$AE$8,$F$101,$F$102,CONFIGURATION!$B$10,\"BMA\",CONFIGURATION!$B$1,\"bscr\",CONFIGURATION!$B$12)","v":{"$error":"#VALUE!"}}]
[]
[null,null,null,{"$f":"XBRLMap(#REF!,D$119&\".\"&$AE$8,$D$101,$D$102,CONFIGURATION!$B$10,\"BMA\",CONFIGURATION!$B$1,\"bscr\",CONFIGURATION!$B$12)","v":{"$error":"#VALUE!"}},null,{"$f":"XBRLMap(#REF!,F$119&\".\"&$AE$8,$F$101,$F$102,CONFIGURATION!$B$10,\"BMA\",CONFIGURATION!$B$1,\"bscr\",CONFIGURATION!$B$12)","v":{"$error":"#VALUE!"}},null,{"$f":"XBRLMap(#REF!,H$119&\".\"&#REF!&\".\"&$AE$8,$D$101,$D$102,CONFIGURATION!$B$10,\"BMA\",CONFIGURATION!$B$1,\"bscr\",CONFIGURATION!$B$12)","v":{"$error":"#VALUE!"}},null,{"$f":"XBRLMap(#REF!,J$119&\".\"&#REF!&\".\"&$AE$8,$F$101,$F$102,CONFIGURATION!$B$10,\"BMA\",CONFIGURATION!$B$1,\"bscr\",CONFIGURATION!$B$12)","v":{"$error":"#VALUE!"}},null,{"$f":"XBRLMap(#REF!,L$119&\".\"&$AE$8,$D$101,$D$102,CONFIGURATION!$B$10,\"BMA\",CONFIGURATION!$B$1,\"bscr\",CONFIGURATION!$B$12)","v":{"$error":"#VALUE!"}},null,{"$f":"XBRLMap(#REF!,N$119&\".\"&$AE$8,$F$101,$F$102,CONFIGURATION!$B$10,\"BMA\",CONFIGURATION!$B$1,\"bscr\",CONFIGURATION!$B$12)","v":{"$error":"#VALUE!"}},null,null,null,null,null,null,null,null,null,{"$f":"XBRLMap(#REF!,X$119&\".\"&$AE$8,$D$101,$D$102,CONFIGURATION!$B$10,\"BMA\",CONFIGURATION!$B$1,\"bscr\",CONFIGURATION!$B$12)","v":{"$error":"#VALUE!"}},null,{"$f":"XBRLMap(#REF!,Z$119&\".\"&$AE$8,$F$101,$F$102,CONFIGURATION!$B$10,\"BMA\",CONFIGURATION!$B$1,\"bscr\",CONFIGURATION!$B$12)","v":{"$error":"#VALUE!"}}]
[]
[]
[null,null,null,null,null,null,null,null,null,null,null,"brrt_BondsAndDebentures",null,"brrt_BondsAndDebentures",null,"brrt_BondsAndDebentures",null,"brrt_BondsAndDebentures"]
[null,null,null,null,null,null,null,null,null,null,null,"brrt_SecurityTypeAxis_brrt_ResidentialMortgageBackedSecuritiesMember",null,"brrt_SecurityTypeAxis_brrt_ResidentialMortgageBackedSecuritiesMember",null,"brrt_SecurityTypeAxis_brrt_CommercialMortgageBackedSecuritiesAssetBackedSecuritiesMember",null,"brrt_SecurityTypeAxis_brrt_CommercialMortgageBackedSecuritiesAssetBackedSecuritiesMember"]
[null,null,null,null,null,null,null,null,null,null,null,"brrt_ClassificationAxis_brrt_OriginalClassificationMember",null,"brrt_ClassificationAxis_brrt_RevisedClassificationMember",null,"brrt_ClassificationAxis_brrt_OriginalClassificationMember",null,"brrt_ClassificationAxis_brrt_RevisedClassificationMember"]
[null,null,null,null,null,null,null,null,null,null,null,{"$f":"XBRLMap(#REF!,L$134&\".\"&#REF!&\".\"&$L$135&\".\"&$L$136&\".\"&$AE$8,$D$101,$D$102,CONFIGURATION!$B$10,\"BMA\",CONFIGURATION!$B$1,\"bscr\",CONFIGURATION!$B$12)","v":{"$error":"#VALUE!"}},null,{"$f":"XBRLMap(#REF!,N$134&\".\"&#REF!&\".\"&$N$135&\".\"&$N$136&\".\"&$AE$8,$D$101,$D$102,CONFIGURATION!$B$10,\"BMA\",CONFIGURATION!$B$1,\"bscr\",CONFIGURATION!$B$12)","v":{"$error":"#VALUE!"}},null,{"$f":"XBRLMap(#REF!,P$134&\".\"&#REF!&\".\"&$P$135&\".\"&$P$136&\".\"&$AE$8,$D$101,$D$102,CONFIGURATION!$B$10,\"BMA\",CONFIGURATION!$B$1,\"bscr\",CONFIGURATION!$B$12)","v":{"$error":"#VALUE!"}},null,{"$f":"XBRLMap(#REF!,R$134&\".\"&#REF!&\".\"&$R$135&\".\"&$R$136&\".\"&$AE$8,$D$101,$D$102,CONFIGURATION!$B$10,\"BMA\",CONFIGURATION!$B$1,\"bscr\",CONFIGURATION!$B$12)","v":{"$error":"#VALUE!"}}]
[null,null,null,null,null,null,null,null,null,null,null,{"$f":"XBRLMap(#REF!,L$134&\".\"&#REF!&\".\"&$L$135&\".\"&$L$136&\".\"&$AE$8,$D$101,$D$102,CONFIGURATION!$B$10,\"BMA\",CONFIGURATION!$B$1,\"bscr\",CONFIGURATION!$B$12)","v":{"$error":"#VALUE!"}},null,{"$f":"XBRLMap(#REF!,N$134&\".\"&#REF!&\".\"&$N$135&\".\"&$N$136&\".\"&$AE$8,$D$101,$D$102,CONFIGURATION!$B$10,\"BMA\",CONFIGURATION!$B$1,\"bscr\",CONFIGURATION!$B$12)","v":{"$error":"#VALUE!"}},null,{"$f":"XBRLMap(#REF!,P$134&\".\"&#REF!&\".\"&$P$135&\".\"&$P$136&\".\"&$AE$8,$D$101,$D$102,CONFIGURATION!$B$10,\"BMA\",CONFIGURATION!$B$1,\"bscr\",CONFIGURATION!$B$12)","v":{"$error":"#VALUE!"}},null,{"$f":"XBRLMap(#REF!,R$134&\".\"&#REF!&\".\"&$R$135&\".\"&$R$136&\".\"&$AE$8,$D$101,$D$102,CONFIGURATION!$B$10,\"BMA\",CONFIGURATION!$B$1,\"bscr\",CONFIGURATION!$B$12)","v":{"$error":"#VALUE!"}}]
[null,null,null,null,null,null,null,null,null,null,null,{"$f":"XBRLMap(#REF!,L$134&\".\"&#REF!&\".\"&$L$135&\".\"&$L$136&\".\"&$AE$8,$D$101,$D$102,CONFIGURATION!$B$10,\"BMA\",CONFIGURATION!$B$1,\"bscr\",CONFIGURATION!$B$12)","v":{"$error":"#VALUE!"}},null,{"$f":"XBRLMap(#REF!,N$134&\".\"&#REF!&\".\"&$N$135&\".\"&$N$136&\".\"&$AE$8,$D$101,$D$102,CONFIGURATION!$B$10,\"BMA\",CONFIGURATION!$B$1,\"bscr\",CONFIGURATION!$B$12)","v":{"$error":"#VALUE!"}},null,{"$f":"XBRLMap(#REF!,P$134&\".\"&#REF!&\".\"&$P$135&\".\"&$P$136&\".\"&$AE$8,$D$101,$D$102,CONFIGURATION!$B$10,\"BMA\",CONFIGURATION!$B$1,\"bscr\",CONFIGURATION!$B$12)","v":{"$error":"#VALUE!"}},null,{"$f":"XBRLMap(#REF!,R$134&\".\"&#REF!&\".\"&$R$135&\".\"&$R$136&\".\"&$AE$8,$D$101,$D$102,CONFIGURATION!$B$10,\"BMA\",CONFIGURATION!$B$1,\"bscr\",CONFIGURATION!$B$12)","v":{"$error":"#VALUE!"}}]
[null,null,null,null,null,null,null,null,null,null,null,{"$f":"XBRLMap(#REF!,L$134&\".\"&$AK96&\".\"&$L$135&\".\"&$L$136&\".\"&$AE$8,$D$101,$D$102,CONFIGURATION!$B$10,\"BMA\",CONFIGURATION!$B$1,\"bscr\",CONFIGURATION!$B$12)","v":{"$error":"#VALUE!"}},null,{"$f":"XBRLMap(#REF!,N$134&\".\"&$AK96&\".\"&$N$135&\".\"&$N$136&\".\"&$AE$8,$D$101,$D$102,CONFIGURATION!$B$10,\"BMA\",CONFIGURATION!$B$1,\"bscr\",CONFIGURATION!$B$12)","v":{"$error":"#VALUE!"}},null,{"$f":"XBRLMap(#REF!,P$134&\".\"&$AK96&\".\"&$P$135&\".\"&$P$136&\".\"&$AE$8,$D$101,$D$102,CONFIGURATION!$B$10,\"BMA\",CONFIGURATION!$B$1,\"bscr\",CONFIGURATION!$B$12)","v":{"$error":"#VALUE!"}},null,{"$f":"XBRLMap(#REF!,R$134&\".\"&$AK96&\".\"&$R$135&\".\"&$R$136&\".\"&$AE$8,$D$101,$D$102,CONFIGURATION!$B$10,\"BMA\",CONFIGURATION!$B$1,\"bscr\",CONFIGURATION!$B$12)","v":{"$error":"#VALUE!"}}]
[null,null,null,null,null,null,null,null,null,null,null,{"$f":"XBRLMap(N96,L$134&\".\"&$AK97&\".\"&$L$135&\".\"&$L$136&\".\"&$AE$8,$D$101,$D$102,CONFIGURATION!$B$10,\"BMA\",CONFIGURATION!$B$1,\"bscr\",CONFIGURATION!$B$12)","v":{"$error":"#VALUE!"}},null,{"$f":"XBRLMap(P96,N$134&\".\"&$AK97&\".\"&$N$135&\".\"&$N$136&\".\"&$AE$8,$D$101,$D$102,CONFIGURATION!$B$10,\"BMA\",CONFIGURATION!$B$1,\"bscr\",CONFIGURATION!$B$12)","v":{"$error":"#VALUE!"}},null,{"$f":"XBRLMap(R96,P$134&\".\"&$AK97&\".\"&$P$135&\".\"&$P$136&\".\"&$AE$8,$D$101,$D$102,CONFIGURATION!$B$10,\"BMA\",CONFIGURATION!$B$1,\"bscr\",CONFIGURATION!$B$12)","v":{"$error":"#VALUE!"}},null,{"$f":"XBRLMap(X96,R$134&\".\"&$AK97&\".\"&$R$135&\".\"&$R$136&\".\"&$AE$8,$D$101,$D$102,CONFIGURATION!$B$10,\"BMA\",CONFIGURATION!$B$1,\"bscr\",CONFIGURATION!$B$12)","v":{"$error":"#VALUE!"}}]
[null,null,null,null,null,null,null,null,null,null,null,{"$f":"XBRLMap(N97,L$134&\".\"&#REF!&\".\"&$L$135&\".\"&$L$136&\".\"&$AE$8,$D$101,$D$102,CONFIGURATION!$B$10,\"BMA\",CONFIGURATION!$B$1,\"bscr\",CONFIGURATION!$B$12)","v":{"$error":"#VALUE!"}},null,{"$f":"XBRLMap(P97,N$134&\".\"&#REF!&\".\"&$N$135&\".\"&$N$136&\".\"&$AE$8,$D$101,$D$102,CONFIGURATION!$B$10,\"BMA\",CONFIGURATION!$B$1,\"bscr\",CONFIGURATION!$B$12)","v":{"$error":"#VALUE!"}},null,{"$f":"XBRLMap(R97,P$134&\".\"&#REF!&\".\"&$P$135&\".\"&$P$136&\".\"&$AE$8,$D$101,$D$102,CONFIGURATION!$B$10,\"BMA\",CONFIGURATION!$B$1,\"bscr\",CONFIGURATION!$B$12)","v":{"$error":"#VALUE!"}},null,{"$f":"XBRLMap(X97,R$134&\".\"&#REF!&\".\"&$R$135&\".\"&$R$136&\".\"&$AE$8,$D$101,$D$102,CONFIGURATION!$B$10,\"BMA\",CONFIGURATION!$B$1,\"bscr\",CONFIGURATION!$B$12)","v":{"$error":"#VALUE!"}}]
[]
[null,null,null,null,null,null,null,null,null,null,null,{"$f":"XBRLMap(#REF!,L$134&\".\"&#REF!&\".\"&$L$135&\".\"&$L$136&\".\"&$AE$8,$D$101,$D$102,CONFIGURATION!$B$10,\"BMA\",CONFIGURATION!$B$1,\"bscr\",CONFIGURATION!$B$12)","v":{"$error":"#VALUE!"}},null,{"$f":"XBRLMap(#REF!,N$134&\".\"&#REF!&\".\"&$N$135&\".\"&$N$136&\".\"&$AE$8,$D$101,$D$102,CONFIGURATION!$B$10,\"BMA\",CONFIGURATION!$B$1,\"bscr\",CONFIGURATION!$B$12)","v":{"$error":"#VALUE!"}},null,{"$f":"XBRLMap(#REF!,P$134&\".\"&#REF!&\".\"&$P$135&\".\"&$P$136&\".\"&$AE$8,$D$101,$D$102,CONFIGURATION!$B$10,\"BMA\",CONFIGURATION!$B$1,\"bscr\",CONFIGURATION!$B$12)","v":{"$error":"#VALUE!"}},null,{"$f":"XBRLMap(#REF!,R$134&\".\"&#REF!&\".\"&$R$135&\".\"&$R$136&\".\"&$AE$8,$D$101,$D$102,CONFIGURATION!$B$10,\"BMA\",CONFIGURATION!$B$1,\"bscr\",CONFIGURATION!$B$12)","v":{"$error":"#VALUE!"}}]

{"sheet":"Schedule IIE (EBS)","index":29,"n_rows":144,"n_cols":37,"rows_kept":144,"cut":false,"hidden":false,"merged":[[33,27,34,27],[2,1,2,3],[3,3,3,5],[4,3,4,5],[7,3,7,5],[7,7,7,9],[7,23,7,25],[32,3,32,13],[33,3,34,5],[33,7,33,13],[33,23,34,23],[7,11,7,13],[34,7,34,9],[34,11,34,13],[33,15,34,15],[33,17,34,17],[7,15,7,17],[32,15,32,19],[7,19,7,21],[63,3,63,11],[63,13,63,21],[64,3,64,5],[64,7,64,9],[64,13,64,15],[64,17,64,19],[33,19,34,19]]}
[null,"DEPOSIT ASSETS AND LIABILITIES",null,null,null,null,null,null,null,null,null,null,null,null,null,null,null,null,null,null,null,null,null,null,null,null,null,{"$f":"HYPERLINK(\"#'Index'!A1\",\"Return to Index\")","v":"Return to Index"}]
[]
[null,{"$f":"+'Company Information'!C7","v":"Enter Company Name"}]
[null,"As at",null,{"$f":"+'Company Information'!C3","v":"2019-12-31"},null,null,null,null,null,null,null,null,null,null,null,null,null,null,null,null,null,null,null,null,null,"SCHEDULE IIE (EBS)"]
[null,{"$f":"+'Form 1EBS'!B4","v":"expressed in ['000s]"},null,{"$f":"+'Form 1EBS'!C4","v":"United States Dollars"}]
[]
[null,null,null,"(1)",null,"(2)",null,"(3)",null,"(4)",null,"(5)",null,"(6)",null,"(7)",null,"(8)",null,"(9)",null,"(10)",null,"(11)",null,"(12)"]
[null,null,null,"Corporate & Sovereign Bonds",null,null,null,"Residential Mortgage Backed Securities",null,null,null,"Commercial Mortgage Backed Securities / Asset- Backed Securities",null,null,null,"Bond Mutual Funds",null,null,null,"Mortgage Loans",null,null,null,"TOTAL",null,null,null,null,null,null,"brrt_RiskTransferAxis_brrt_FundsHeldByCedingReinsurersInSegregatedAccountsTrustsMember"]
[null,null,null,{"$f":"+'Form 1EBS'!$F$7","v":"2019-12-31"},null,{"$f":"+'Form 1EBS'!$H$7","v":"2018-12-31"},null,{"$f":"+'Form 1EBS'!$F$7","v":"2019-12-31"},null,{"$f":"+'Form 1EBS'!$H$7","v":"2018-12-31"},null,{"$f":"+'Form 1EBS'!$F$7","v":"2019-12-31"},null,{"$f":"+'Form 1EBS'!$H$7","v":"2018-12-31"},null,{"$f":"+'Form 1EBS'!$F$7","v":"2019-12-31"},null,{"$f":"+'Form 1EBS'!$H$7","v":"2018-12-31"},null,{"$f":"+'Form 1EBS'!$F$7","v":"2019-12-31"},null,{"$f":"+'Form 1EBS'!$H$7","v":"2018-12-31"},null,{"$f":"+'Form 1EBS'!$F$7","v":"2019-12-31"},null,{"$f":"+'Form 1EBS'!$H$7","v":"2018-12-31"}]
[null,null,null,{"$f":"+'Form 1EBS'!$F$8","v":" ('000s)"},null,{"$f":"+'Form 1EBS'!$F$8","v":" ('000s)"},null,{"$f":"+'Form 1EBS'!$F$8","v":" ('000s)"},null,{"$f":"+'Form 1EBS'!$F$8","v":" ('000s)"},null,{"$f":"+'Form 1EBS'!$F$8","v":" ('000s)"},null,{"$f":"+'Form 1EBS'!$F$8","v":" ('000s)"},null,{"$f":"+'Form 1EBS'!$F$8","v":" ('000s)"},null,{"$f":"+'Form 1EBS'!$F$8","v":" ('000s)"},null,{"$f":"+'Form 1EBS'!$F$8","v":" ('000s)"},null,{"$f":"+'Form 1EBS'!$F$8","v":" ('000s)"},null,{"$f":"+'Form 1EBS'!$F$8","v":" ('000s)"},null,{"$f":"+'Form 1EBS'!$H$8","v":" ('000s)"}]
[null,"Line no. "]
[null,"Quoted and Unquoted Bonds and Debentures"]
[null,1,"BSCR Rating 0",{"$f":"Import!M12407","v":0},null,{"$f":"Import!O12407","v":0},null,null,null,null,null,null,null,null,null,{"$f":"Import!M12432","v":0},null,{"$f":"Import!O12432","v":0},null,null,null,null,null,{"$f":"D13+H13+L13+P13","v":0},null,{"$f":"F13+J13+N13+R13","v":0},null,null,null,null,"brrt_RiskGradeAxis_brrt_BSCRRating0Member"]
[null,2,"BSCR Rating 1",{"$f":"Import!M12408","v":0},null,{"$f":"Import!O12408","v":0},null,{"$f":"Import!M12416","v":0},null,{"$f":"Import!O12416","v":0},null,{"$f":"Import!M12424","v":0},null,{"$f":"Import!O12424","v":0},null,{"$f":"Import!M12433","v":0},null,{"$f":"Import!O12433","v":0},null,null,null,null,null,{"$f":"D14+H14+L14+P14","v":0},null,0,null,null,null,null,"brrt_RiskGradeAxis_brrt_BSCRRating1Member"]
[null,3,"BSCR Rating 2",{"$f":"Import!M12409","v":0},null,{"$f":"Import!O12409","v":0},null,{"$f":"Import!M12417","v":0},null,{"$f":"Import!O12417","v":0},null,{"$f":"Import!M12425","v":0},null,{"$f":"Import!O12425","v":0},null,{"$f":"Import!M12434","v":0},null,{"$f":"Import!O12434","v":0},null,null,null,null,null,0,null,0,null,null,null,null,"brrt_RiskGradeAxis_brrt_BSCRRating2Member"]
[null,4,"BSCR Rating 3",{"$f":"Import!M12410","v":0},null,{"$f":"Import!O12410","v":0},null,{"$f":"Import!M12418","v":0},null,{"$f":"Import!O12418","v":0},null,{"$f":"Import!M12426","v":0},null,{"$f":"Import!O12426","v":0},null,{"$f":"Import!M12435","v":0},null,{"$f":"Import!O12435","v":0},null,null,null,null,null,0,null,0,null,null,null,null,"brrt_RiskGradeAxis_brrt_BSCRRating3Member"]
[null,5,"BSCR Rating 4",{"$f":"Import!M12411","v":0},null,{"$f":"Import!O12411","v":0},null,{"$f":"Import!M12419","v":0},null,{"$f":"Import!O12419","v":0},null,{"$f":"Import!M12427","v":0},null,{"$f":"Import!O12427","v":0},null,{"$f":"Import!M12436","v":0},null,{"$f":"Import!O12436","v":0},null,null,null,null,null,0,null,0,null,null,null,null,"brrt_RiskGradeAxis_brrt_BSCRRating4Member"]
[null,6,"BSCR Rating 5",{"$f":"Import!M12412","v":0},null,{"$f":"Import!O12412","v":0},null,{"$f":"Import!M12420","v":0},null,{"$f":"Import!O12420","v":0},null,{"$f":"Import!M12428","v":0},null,{"$f":"Import!O12428","v":0},null,{"$f":"Import!M12437","v":0},null,{"$f":"Import!O12437","v":0},null,null,null,null,null,0,null,0,null,null,null,null,"brrt_RiskGradeAxis_brrt_BSCRRating5Member"]
[null,7,"BSCR Rating 6",{"$f":"Import!M12413","v":0},null,{"$f":"Import!O12413","v":0},null,{"$f":"Import!M12421","v":0},null,{"$f":"Import!O12421","v":0},null,{"$f":"Import!M12429","v":0},null,{"$f":"Import!O12429","v":0},null,{"$f":"Import!M12438","v":0},null,{"$f":"Import!O12438","v":0},null,null,null,null,null,0,null,0,null,null,null,null,"brrt_RiskGradeAxis_brrt_BSCRRating6Member"]
[null,8,"BSCR Rating 7",{"$f":"Import!M12414","v":0},null,{"$f":"Import!O12414","v":0},null,{"$f":"Import!M12422","v":0},null,{"$f":"Import!O12422","v":0},null,{"$f":"Import!M12430","v":0},null,{"$f":"Import!O12430","v":0},null,{"$f":"Import!M12439","v":0},null,{"$f":"Import!O12439","v":0},null,null,null,null,null,0,null,0,null,null,null,null,"brrt_RiskGradeAxis_brrt_BSCRRating7Member"]
[null,9,"BSCR Rating 8",{"$f":"Import!M12415","v":0},null,{"$f":"Import!O12415","v":0},null,{"$f":"Import!M12423","v":0},null,{"$f":"Import!O12423","v":0},null,{"$f":"Import!M12431","v":0},null,{"$f":"Import!O12431","v":0},null,{"$f":"Import!M12440","v":0},null,{"$f":"Import!O12440","v":0},null,null,null,null,null,0,null,0,null,null,null,null,"brrt_RiskGradeAxis_brrt_BSCRRating8Member"]
[null,{"$f":"B21+1","v":10},"Insured/Guaranteed Mortgages",null,null,null,null,null,null,null,null,null,null,null,null,null,null,null,null,{"$f":"Import!M12441","v":0},null,{"$f":"Import!O12441","v":0},null,{"$f":"D22+H22+L22+P22+T22","v":0},null,{"$f":"F22+J22+N22+R22+V22","v":0}]
[null,{"$f":"B22+1","v":11},"Other Commercial and Farm Mortgages",null,null,null,null,null,null,null,null,null,null,null,null,null,null,null,null,{"$f":"Import!M12442","v":0},null,{"$f":"Import!O12442","v":0},null,{"$f":"D23+H23+L23+P23+T23","v":0},null,0]
[null,{"$f":"B23+1","v":12},"Other Residential Mortgages",null,null,null,null,null,null,null,null,null,null,null,null,null,null,null,null,{"$f":"Import!M12443","v":0},null,{"$f":"Import!O12443","v":0},null,{"$f":"D24+H24+L24+P24+T24","v":0},null,{"$f":"F24+J24+N24+R24+V24","v":0}]
[null,13,"Mortgages Not In Good Standing",null,null,null,null,null,null,null,null,null,null,null,null,null,null,null,null,{"$f":"Import!M12444","v":0},null,{"$f":"Import!O12444","v":0},null,0,null,0]
[]
[null,{"$f":"B25+1","v":14},"Total",{"$f":"SUM(D13:D21)","v":0},null,{"$f":"SUM(F13:F21)","v":0},null,{"$f":"SUM(H13:H21)","v":0},null,{"$f":"SUM(J13:J21)","v":0},null,{"$f":"SUM(L13:L21)","v":0},null,{"$f":"SUM(N13:N21)","v":0},null,{"$f":"SUM(P13:P21)","v":0},null,{"$f":"SUM(R13:R21)","v":0},null,{"$f":"SUM(T13:T26)","v":0},null,{"$f":"SUM(V13:V26)","v":0},null,{"$f":"SUM(X13:X26)","v":0},null,{"$f":"SUM(Z13:Z26)","v":0},null,null,null,null,"brrt_RiskGradeAxis_brrt_TotalMember"]
[]
[]
[]
[]
[]
[null,null,null,"ASSETS",null,null,null,null,null,null,null,null,null,null,null,"Liabilities"]
[null,null,null,"Long Exposures",null,null,null,"Short Exposures",null,null,null,null,null,null,null,null,null,"Without Management Actions",null,"With Management Actions",null,null,null,"Total Assets Before Shock",null,null,null,"Shocks"]
[null,null,null,null,null,null,null,"Qualifying as Assets held for risk-mitigation purposes",null,null,null,"Not Qualifying as Assets held for risk-mitigation purposes",null,null,null,null,null,null,null,null,null,null,null,null,null,null,null,"Shocks"]
[null,null,null,"Before Shock",null,"After Shock",null,"Before Shock",null,"After Shock",null,"Before Shock",null,"After Shock",null,"Before Shock",null,"After Shock",null,"After Shock"]
[null,null,null,{"$f":"+'Form 1EBS'!$F$8","v":" ('000s)"},null,{"$f":"+'Form 1EBS'!$F$8","v":" ('000s)"},null,{"$f":"+'Form 1EBS'!$H$8","v":" ('000s)"},null,{"$f":"+'Form 1EBS'!$H$8","v":" ('000s)"},null,{"$f":"+'Form 1EBS'!$F$8","v":" ('000s)"},null,{"$f":"+'Form 1EBS'!$F$8","v":" ('000s)"},null,{"$f":"+'Form 1EBS'!$H$8","v":" ('000s)"},null,{"$f":"+'Form 1EBS'!$H$8","v":" ('000s)"},null,{"$f":"+'Form 1EBS'!$F$8","v":" ('000s)"},null,null,null,{"$f":"+'Form 1EBS'!$F$8","v":" ('000s)"}]
[null,"Equity Holdings "]
[null,{"$f":"B27+1","v":15},"Strategic Holdings - Listed",{"$f":"Import!M12445","v":0},null,{"$f":"IF(OR(Import!M12467=0,Import!M12467=\"\"),(1-$AB39)*D39,Import!M12467)","v":0},null,{"$f":"Import!M12489","v":0},null,{"$f":"IF(OR(Import!M12511=0,Import!M12511=\"\"),(1-$AB39)*H39,Import!M12511)","v":0},null,{"$f":"Import!M12533","v":0},null,{"$f":"IF(OR(Import!M12555=0,Import!M12555=\"\"),(1-$AB39)*L39,Import!M12555)","v":0},null,{"$f":"Import!M12577","v":0},null,{"$f":"IF(OR(Import!M12599=0,Import!M12599=\"\"),P39,Import!M12599)","v":0},null,{"$f":"IF(OR(Import!M12621=0,Import!M12621=\"\"),R39,Import!M12621)","v":0},null,null,null,{"$f":"D39+H39+L39","v":0},null,null,null,0.2]
[null,{"$f":"B39+1","v":16},"Duration Based",{"$f":"Import!M12446","v":0},null,{"$f":"IF(OR(Import!M12468=0,Import!M12468=\"\"),(1-$AB40)*D40,Import!M12468)","v":0},null,{"$f":"Import!M12490","v":0},null,{"$f":"IF(OR(Import!M12512=0,Import!M12512=\"\"),(1-$AB40)*H40,Import!M12512)","v":0},null,{"$f":"Import!M12534","v":0},null,{"$f":"IF(OR(Import!M12556=0,Import!M12556=\"\"),(1-$AB40)*L40,Import!M12556)","v":0},null,{"$f":"Import!M12578","v":0},null,{"$f":"IF(OR(Import!M12600=0,Import!M12600=\"\"),P40,Import!M12600)","v":0},null,{"$f":"IF(OR(Import!M12622=0,Import!M12622=\"\"),R40,Import!M12622)","v":0},null,null,null,{"$f":"D40+H40+L40","v":0},null,null,null,0.2]
[null,17,"Listed Equity Securities in Developed Markets",{"$f":"Import!M12447","v":0},null,{"$f":"IF(OR(Import!M12469=0,Import!M12469=\"\"),(1-$AB41)*D41,Import!M12469)","v":0},null,{"$f":"Import!M12491","v":0},null,{"$f":"IF(OR(Import!M12513=0,Import!M12513=\"\"),(1-$AB41)*H41,Import!M12513)","v":0},null,{"$f":"Import!M12535","v":0},null,{"$f":"IF(OR(Import!M12557=0,Import!M12557=\"\"),(1-$AB41)*L41,Import!M12557)","v":0},null,{"$f":"Import!M12579","v":0},null,{"$f":"IF(OR(Import!M12601=0,Import!M12601=\"\"),P41,Import!M12601)","v":0},null,{"$f":"IF(OR(Import!M12623=0,Import!M12623=\"\"),R41,Import!M12623)","v":0},null,null,null,0,null,null,null,0.35]
[null,18,"Preferred Stocks, BSCR Rating 1",{"$f":"Import!M12448","v":0},null,{"$f":"IF(OR(Import!M12470=0,Import!M12470=\"\"),(1-$AB42)*D42,Import!M12470)","v":0},null,{"$f":"Import!M12492","v":0},null,{"$f":"IF(OR(Import!M12514=0,Import!M12514=\"\"),(1-$AB42)*H42,Import!M12514)","v":0},null,{"$f":"Import!M12536","v":0},null,{"$f":"IF(OR(Import!M12558=0,Import!M12558=\"\"),(1-$AB42)*L42,Import!M12558)","v":0},null,{"$f":"Import!M12580","v":0},null,{"$f":"IF(OR(Import!M12602=0,Import!M12602=\"\"),P42,Import!M12602)","v":0},null,{"$f":"IF(OR(Import!M12624=0,Import!M12624=\"\"),R42,Import!M12624)","v":0},null,null,null,0,null,null,null,6.0000000000000001E-3]
[null,19,"Preferred Stocks, BSCR Rating 2",{"$f":"Import!M12449","v":0},null,{"$f":"IF(OR(Import!M12471=0,Import!M12471=\"\"),(1-$AB43)*D43,Import!M12471)","v":0},null,{"$f":"Import!M12493","v":0},null,{"$f":"IF(OR(Import!M12515=0,Import!M12515=\"\"),(1-$AB43)*H43,Import!M12515)","v":0},null,{"$f":"Import!M12537","v":0},null,{"$f":"IF(OR(Import!M12559=0,Import!M12559=\"\"),(1-$AB43)*L43,Import!M12559)","v":0},null,{"$f":"Import!M12581","v":0},null,{"$f":"IF(OR(Import!M12603=0,Import!M12603=\"\"),P43,Import!M12603)","v":0},null,{"$f":"IF(OR(Import!M12625=0,Import!M12625=\"\"),R43,Import!M12625)","v":0},null,null,null,0,null,null,null,1.2E-2]
[null,20,"Preferred Stocks, BSCR Rating 3",{"$f":"Import!M12450","v":0},null,{"$f":"IF(OR(Import!M12472=0,Import!M12472=\"\"),(1-$AB44)*D44,Import!M12472)","v":0},null,{"$f":"Import!M12494","v":0},null,{"$f":"IF(OR(Import!M12516=0,Import!M12516=\"\"),(1-$AB44)*H44,Import!M12516)","v":0},null,{"$f":"Import!M12538","v":0},null,{"$f":"IF(OR(Import!M12560=0,Import!M12560=\"\"),(1-$AB44)*L44,Import!M12560)","v":0},null,{"$f":"Import!M12582","v":0},null,{"$f":"IF(OR(Import!M12604=0,Import!M12604=\"\"),P44,Import!M12604)","v":0},null,{"$f":"IF(OR(Import!M12626=0,Import!M12626=\"\"),R44,Import!M12626)","v":0},null,null,null,0,null,null,null,0.02]
[null,21,"Preferred Stocks, BSCR Rating 4",{"$f":"Import!M12451","v":0},null,{"$f":"IF(OR(Import!M12473=0,Import!M12473=\"\"),(1-$AB45)*D45,Import!M12473)","v":0},null,{"$f":"Import!M12495","v":0},null,{"$f":"IF(OR(Import!M12517=0,Import!M12517=\"\"),(1-$AB45)*H45,Import!M12517)","v":0},null,{"$f":"Import!M12539","v":0},null,{"$f":"IF(OR(Import!M12561=0,Import!M12561=\"\"),(1-$AB45)*L45,Import!M12561)","v":0},null,{"$f":"Import!M12583","v":0},null,{"$f":"IF(OR(Import!M12605=0,Import!M12605=\"\"),P45,Import!M12605)","v":0},null,{"$f":"IF(OR(Import!M12627=0,Import!M12627=\"\"),R45,Import!M12627)","v":0},null,null,null,0,null,null,null,0.04]
[null,22,"Preferred Stocks, BSCR Rating 5",{"$f":"Import!M12452","v":0},null,{"$f":"IF(OR(Import!M12474=0,Import!M12474=\"\"),(1-$AB46)*D46,Import!M12474)","v":0},null,{"$f":"Import!M12496","v":0},null,{"$f":"IF(OR(Import!M12518=0,Import!M12518=\"\"),(1-$AB46)*H46,Import!M12518)","v":0},null,{"$f":"Import!M12540","v":0},null,{"$f":"IF(OR(Import!M12562=0,Import!M12562=\"\"),(1-$AB46)*L46,Import!M12562)","v":0},null,{"$f":"Import!M12584","v":0},null,{"$f":"IF(OR(Import!M12606=0,Import!M12606=\"\"),P46,Import!M12606)","v":0},null,{"$f":"IF(OR(Import!M12628=0,Import!M12628=\"\"),R46,Import!M12628)","v":0},null,null,null,0,null,null,null,0.11]
[null,23,"Preferred Stocks, BSCR Rating 6",{"$f":"Import!M12453","v":0},null,{"$f":"IF(OR(Import!M12475=0,Import!M12475=\"\"),(1-$AB47)*D47,Import!M12475)","v":0},null,{"$f":"Import!M12497","v":0},null,{"$f":"IF(OR(Import!M12519=0,Import!M12519=\"\"),(1-$AB47)*H47,Import!M12519)","v":0},null,{"$f":"Import!M12541","v":0},null,{"$f":"IF(OR(Import!M12563=0,Import!M12563=\"\"),(1-$AB47)*L47,Import!M12563)","v":0},null,{"$f":"Import!M12585","v":0},null,{"$f":"IF(OR(Import!M12607=0,Import!M12607=\"\"),P47,Import!M12607)","v":0},null,{"$f":"IF(OR(Import!M12629=0,Import!M12629=\"\"),R47,Import!M12629)","v":0},null,null,null,0,null,null,null,0.25]
[null,24,"Preferred Stocks, BSCR Rating 7",{"$f":"Import!M12454","v":0},null,{"$f":"IF(OR(Import!M12476=0,Import!M12476=\"\"),(1-$AB48)*D48,Import!M12476)","v":0},null,{"$f":"Import!M12498","v":0},null,{"$f":"IF(OR(Import!M12520=0,Import!M12520=\"\"),(1-$AB48)*H48,Import!M12520)","v":0},null,{"$f":"Import!M12542","v":0},null,{"$f":"IF(OR(Import!M12564=0,Import!M12564=\"\"),(1-$AB48)*L48,Import!M12564)","v":0},null,{"$f":"Import!M12586","v":0},null,{"$f":"IF(OR(Import!M12608=0,Import!M12608=\"\"),P48,Import!M12608)","v":0},null,{"$f":"IF(OR(Import!M12630=0,Import!M12630=\"\"),R48,Import!M12630)","v":0},null,null,null,0,null,null,null,0.35]
[null,25,"Preferred Stocks, BSCR Rating 8",{"$f":"Import!M12455","v":0},null,{"$f":"IF(OR(Import!M12477=0,Import!M12477=\"\"),(1-$AB49)*D49,Import!M12477)","v":0},null,{"$f":"Import!M12499","v":0},null,{"$f":"IF(OR(Import!M12521=0,Import!M12521=\"\"),(1-$AB49)*H49,Import!M12521)","v":0},null,{"$f":"Import!M12543","v":0},null,{"$f":"IF(OR(Import!M12565=0,Import!M12565=\"\"),(1-$AB49)*L49,Import!M12565)","v":0},null,{"$f":"Import!M12587","v":0},null,{"$f":"IF(OR(Import!M12609=0,Import!M12609=\"\"),P49,Import!M12609)","v":0},null,{"$f":"IF(OR(Import!M12631=0,Import!M12631=\"\"),R49,Import!M12631)","v":0},null,null,null,0,null,null,null,0.35]
[null,26,"Equity Derivatives on Type 1 Equities",{"$f":"Import!M12456","v":0},null,{"$f":"Import!M12478","v":0},null,{"$f":"Import!M12500","v":0},null,{"$f":"Import!M12522","v":0},null,{"$f":"Import!M12544","v":0},null,{"$f":"Import!M12566","v":0},null,{"$f":"Import!M12588","v":0},null,{"$f":"IF(OR(Import!M12610=0,Import!M12610=\"\"),P50,Import!M12610)","v":0},null,{"$f":"IF(OR(Import!M12632=0,Import!M12632=\"\"),R50,Import!M12632)","v":0},null,null,null,0,null,null,null,0.35]
[null,27,"Strategic Holdings - Unlisted",{"$f":"Import!M12457","v":0},null,{"$f":"IF(OR(Import!M12479=0,Import!M12479=\"\"),(1-$AB51)*D51,Import!M12479)","v":0},null,{"$f":"Import!M12501","v":0},null,{"$f":"IF(OR(Import!M12523=0,Import!M12523=\"\"),(1-$AB51)*H51,Import!M12523)","v":0},null,{"$f":"Import!M12545","v":0},null,{"$f":"IF(OR(Import!M12567=0,Import!M12567=\"\"),(1-$AB51)*L51,Import!M12567)","v":0},null,{"$f":"Import!M12589","v":0},null,{"$f":"IF(OR(Import!M12611=0,Import!M12611=\"\"),P51,Import!M12611)","v":0},null,{"$f":"IF(OR(Import!M12633=0,Import!M12633=\"\"),R51,Import!M12633)","v":0},null,null,null,0,null,null,null,0.2]
[null,28,"Other Equities / Other Assets",{"$f":"Import!M12458","v":0},null,{"$f":"IF(OR(Import!M12480=0,Import!M12480=\"\"),(1-$AB52)*D52,Import!M12480)","v":0},null,{"$f":"Import!M12502","v":0},null,{"$f":"IF(OR(Import!M12524=0,Import!M12524=\"\"),(1-$AB52)*H52,Import!M12524)","v":0},null,{"$f":"Import!M12546","v":0},null,{"$f":"IF(OR(Import!M12568=0,Import!M12568=\"\"),(1-$AB52)*L52,Import!M12568)","v":0},null,{"$f":"Import!M12590","v":0},null,{"$f":"IF(OR(Import!M12612=0,Import!M12612=\"\"),P52,Import!M12612)","v":0},null,{"$f":"IF(OR(Import!M12634=0,Import!M12634=\"\"),R52,Import!M12634)","v":0},null,null,null,0,null,null,null,0.45]
[null,29,"Letters of Credit",{"$f":"Import!M12459","v":0},null,{"$f":"IF(OR(Import!M12481=0,Import!M12481=\"\"),(1-$AB53)*D53,Import!M12481)","v":0},null,{"$f":"Import!M12503","v":0},null,{"$f":"IF(OR(Import!M12525=0,Import!M12525=\"\"),(1-$AB53)*H53,Import!M12525)","v":0},null,{"$f":"Import!M12547","v":0},null,{"$f":"IF(OR(Import!M12569=0,Import!M12569=\"\"),(1-$AB53)*L53,Import!M12569)","v":0},null,{"$f":"Import!M12591","v":0},null,{"$f":"IF(OR(Import!M12613=0,Import!M12613=\"\"),P53,Import!M12613)","v":0},null,{"$f":"IF(OR(Import!M12635=0,Import!M12635=\"\"),R53,Import!M12635)","v":0},null,null,null,0,null,null,null,0.2]
[null,30,"Intangible assets",{"$f":"Import!M12460","v":0},null,{"$f":"IF(OR(Import!M12482=0,Import!M12482=\"\"),(1-$AB54)*D54,Import!M12482)","v":0},null,{"$f":"Import!M12504","v":0},null,{"$f":"IF(OR(Import!M12526=0,Import!M12526=\"\"),(1-$AB54)*H54,Import!M12526)","v":0},null,{"$f":"Import!M12548","v":0},null,{"$f":"IF(OR(Import!M12570=0,Import!M12570=\"\"),(1-$AB54)*L54,Import!M12570)","v":0},null,{"$f":"Import!M12592","v":0},null,{"$f":"IF(OR(Import!M12614=0,Import!M12614=\"\"),P54,Import!M12614)","v":0},null,{"$f":"IF(OR(Import!M12636=0,Import!M12636=\"\"),R54,Import!M12636)","v":0},null,null,null,0,null,null,null,0.2]
[null,31,"Pension Benefit Surplus",{"$f":"Import!M12461","v":0},null,{"$f":"IF(OR(Import!M12483=0,Import!M12483=\"\"),(1-$AB55)*D55,Import!M12483)","v":0},null,{"$f":"Import!M12505","v":0},null,{"$f":"IF(OR(Import!M12527=0,Import!M12527=\"\"),(1-$AB55)*H55,Import!M12527)","v":0},null,{"$f":"Import!M12549","v":0},null,{"$f":"IF(OR(Import!M12571=0,Import!M12571=\"\"),(1-$AB55)*L55,Import!M12571)","v":0},null,{"$f":"Import!M12593","v":0},null,{"$f":"IF(OR(Import!M12615=0,Import!M12615=\"\"),P55,Import!M12615)","v":0},null,{"$f":"IF(OR(Import!M12637=0,Import!M12637=\"\"),R55,Import!M12637)","v":0},null,null,null,0,null,null,null,0.2]
[null,32,"Equity Derivatives on Type 2 Equities",{"$f":"Import!M12462","v":0},null,{"$f":"Import!M12484","v":0},null,{"$f":"Import!M12506","v":0},null,{"$f":"Import!M12528","v":0},null,{"$f":"Import!M12550","v":0},null,{"$f":"Import!M12572","v":0},null,{"$f":"Import!M12594","v":0},null,{"$f":"IF(OR(Import!M12616=0,Import!M12616=\"\"),P56,Import!M12616)","v":0},null,{"$f":"IF(OR(Import!M12638=0,Import!M12638=\"\"),R56,Import!M12638)","v":0},null,null,null,0,null,null,null,0.45]
[null,33,"Infrastructure",{"$f":"Import!M12463","v":0},null,{"$f":"IF(OR(Import!M12485=0,Import!M12485=\"\"),(1-$AB57)*D57,Import!M12485)","v":0},null,{"$f":"Import!M12507","v":0},null,{"$f":"IF(OR(Import!M12529=0,Import!M12529=\"\"),(1-$AB57)*H57,Import!M12529)","v":0},null,{"$f":"Import!M12551","v":0},null,{"$f":"IF(OR(Import!M12573=0,Import!M12573=\"\"),(1-$AB57)*L57,Import!M12573)","v":0},null,{"$f":"Import!M12595","v":0},null,{"$f":"IF(OR(Import!M12617=0,Import!M12617=\"\"),P57,Import!M12617)","v":0},null,{"$f":"IF(OR(Import!M12639=0,Import!M12639=\"\"),R57,Import!M12639)","v":0},null,null,null,0,null,null,null,0.25]
[null,34,"Derivatives on Infrastructure",{"$f":"Import!M12464","v":0},null,{"$f":"Import!M12486","v":0},null,{"$f":"Import!M12508","v":0},null,{"$f":"Import!M12530","v":0},null,{"$f":"Import!M12552","v":0},null,{"$f":"Import!M12574","v":0},null,{"$f":"Import!M12596","v":0},null,{"$f":"IF(OR(Import!M12618=0,Import!M12618=\"\"),P58,Import!M12618)","v":0},null,{"$f":"IF(OR(Import!M12640=0,Import!M12640=\"\"),R58,Import!M12640)","v":0},null,null,null,0,null,null,null,0.25]
[null,35,"Equity Real Estate 1",{"$f":"Import!M12465","v":0},null,{"$f":"IF(OR(Import!M12487=0,Import!M12487=\"\"),(1-$AB59)*D59,Import!M12487)","v":0},null,{"$f":"Import!M12509","v":0},null,{"$f":"IF(OR(Import!M12531=0,Import!M12531=\"\"),(1-$AB59)*H59,Import!M12531)","v":0},null,{"$f":"Import!M12553","v":0},null,{"$f":"IF(OR(Import!M12575=0,Import!M12575=\"\"),(1-$AB59)*L59,Import!M12575)","v":0},null,{"$f":"Import!M12597","v":0},null,{"$f":"IF(OR(Import!M12619=0,Import!M12619=\"\"),P59,Import!M12619)","v":0},null,{"$f":"IF(OR(Import!M12641=0,Import!M12641=\"\"),R59,Import!M12641)","v":0},null,null,null,0,null,null,null,0.1]
[null,36,"Equity Real Estate 2",{"$f":"Import!M12466","v":0},null,{"$f":"IF(OR(Import!M12488=0,Import!M12488=\"\"),(1-$AB60)*D60,Import!M12488)","v":0},null,{"$f":"Import!M12510","v":0},null,{"$f":"IF(OR(Import!M12532=0,Import!M12532=\"\"),(1-$AB60)*H60,Import!M12532)","v":0},null,{"$f":"Import!M12554","v":0},null,{"$f":"IF(OR(Import!M12576=0,Import!M12576=\"\"),(1-$AB60)*L60,Import!M12576)","v":0},null,{"$f":"Import!M12598","v":0},null,{"$f":"IF(OR(Import!M12620=0,Import!M12620=\"\"),P60,Import!M12620)","v":0},null,{"$f":"IF(OR(Import!M12642=0,Import!M12642=\"\"),R60,Import!M12642)","v":0},null,null,null,0,null,null,null,0.2]
[]
[null,{"$f":"B60+1","v":37},"Total Equity Holdings",{"$f":"SUM(D38:D61)","v":0},null,{"$f":"SUM(F38:F61)","v":0},null,{"$f":"SUM(H38:H61)","v":0},null,{"$f":"SUM(J38:J61)","v":0},null,{"$f":"SUM(L38:L61)","v":0},null,{"$f":"SUM(N38:N61)","v":0},null,{"$f":"SUM(P38:P61)","v":0},null,{"$f":"SUM(R38:R61)","v":0},null,{"$f":"SUM(T38:T61)","v":0},null,null,null,{"$f":"SUM(X38:X61)","v":0}]
[null,null,null,null,null,null,null,null,null,null,null,null,null,null,null,null,null,null,null,null,null,null,null,null,null,null,null,null,null,null,"brrt_RiskGradeAxis_brrt_TotalMember"]
[null,null,null,"Spread Up",null,null,null,null,null,null,null,null,null,"Spread Down"]
[null,null,null,"Long Exposures",null,null,null,"Short Exposures",null,null,null,"Shock (bps)",null,"Long Exposures",null,null,null,"Short Exposures",null,null,null,"Shock Rates"]
[null,null,null,"Before Shock",null,"After Shock",null,"Before Shock",null,"After Shock",null,null,null,"Before Shock",null,"After Shock",null,"Before Shock",null,"After Shock"]
[null,null,"Spread Risk for Credit Derivatives",null,null,null,null,null,null,null,null,null,null,null,null,null,{"$f":"SUM(G71:G80)","v":0},null,{"$f":"SUM(I71:I80)","v":0},null,{"$f":"SUM(K71:K80)","v":0}]
[null,{"$f":"B62+1","v":38},"BSCR Rating 0",{"$f":"Import!M12643","v":0},null,{"$f":"Import!M12652","v":0},null,{"$f":"Import!M12661","v":0},null,{"$f":"Import!M12670","v":0},null,0,null,{"$f":"Import!M12679","v":0},null,{"$f":"Import!M12688","v":0},null,{"$f":"Import!M12697","v":0},null,{"$f":"Import!M12706","v":0},null,0]
[null,{"$f":"B68+1","v":39},"BSCR Rating 1",{"$f":"Import!M12644","v":0},null,{"$f":"Import!M12653","v":0},null,{"$f":"Import!M12662","v":0},null,{"$f":"Import!M12671","v":0},null,130,null,{"$f":"Import!M12680","v":0},null,{"$f":"Import!M12689","v":0},null,{"$f":"Import!M12698","v":0},null,{"$f":"Import!M12707","v":0},null,-0.75]
[null,{"$f":"B69+1","v":40},"BSCR Rating 2",{"$f":"Import!M12645","v":0},null,{"$f":"Import!M12654","v":0},null,{"$f":"Import!M12663","v":0},null,{"$f":"Import!M12672","v":0},null,150,null,{"$f":"Import!M12681","v":0},null,{"$f":"Import!M12690","v":0},null,{"$f":"Import!M12699","v":0},null,{"$f":"Import!M12708","v":0},null,-0.75]
[null,41,"BSCR Rating 3",{"$f":"Import!M12646","v":0},null,{"$f":"Import!M12655","v":0},null,{"$f":"Import!M12664","v":0},null,{"$f":"Import!M12673","v":0},null,260,null,{"$f":"Import!M12682","v":0},null,{"$f":"Import!M12691","v":0},null,{"$f":"Import!M12700","v":0},null,{"$f":"Import!M12709","v":0},null,-0.75]
[null,42,"BSCR Rating 4",{"$f":"Import!M12647","v":0},null,{"$f":"Import!M12656","v":0},null,{"$f":"Import!M12665","v":0},null,{"$f":"Import!M12674","v":0},null,450,null,{"$f":"Import!M12683","v":0},null,{"$f":"Import!M12692","v":0},null,{"$f":"Import!M12701","v":0},null,{"$f":"Import!M12710","v":0},null,-0.75]
[null,43,"BSCR Rating 5",{"$f":"Import!M12648","v":0},null,{"$f":"Import!M12657","v":0},null,{"$f":"Import!M12666","v":0},null,{"$f":"Import!M12675","v":0},null,840,null,{"$f":"Import!M12684","v":0},null,{"$f":"Import!M12693","v":0},null,{"$f":"Import!M12702","v":0},null,{"$f":"Import!M12711","v":0},null,-0.75]
[null,44,"BSCR Rating 6",{"$f":"Import!M12649","v":0},null,{"$f":"Import!M12658","v":0},null,{"$f":"Import!M12667","v":0},null,{"$f":"Import!M12676","v":0},null,1620,null,{"$f":"Import!M12685","v":0},null,{"$f":"Import!M12694","v":0},null,{"$f":"Import!M12703","v":0},null,{"$f":"Import!M12712","v":0},null,-0.75]
[null,45,"BSCR Rating 7",{"$f":"Import!M12650","v":0},null,{"$f":"Import!M12659","v":0},null,{"$f":"Import!M12668","v":0},null,{"$f":"Import!M12677","v":0},null,1620,null,{"$f":"Import!M12686","v":0},null,{"$f":"Import!M12695","v":0},null,{"$f":"Import!M12704","v":0},null,{"$f":"Import!M12713","v":0},null,-0.75]
[null,46,"BSCR Rating 8",{"$f":"Import!M12651","v":0},null,{"$f":"Import!M12660","v":0},null,{"$f":"Import!M12669","v":0},null,{"$f":"Import!M12678","v":0},null,1620,null,{"$f":"Import!M12687","v":0},null,{"$f":"Import!M12696","v":0},null,{"$f":"Import!M12705","v":0},null,{"$f":"Import!M12714","v":0},null,-0.75]
[null,47,"Total Spread",{"$f":"SUM(D67:D76)","v":0},null,{"$f":"SUM(F67:F76)","v":0},null,{"$f":"SUM(H67:H76)","v":0},null,{"$f":"SUM(J67:J76)","v":0},null,null,null,{"$f":"SUM(N67:N76)","v":0},null,{"$f":"SUM(P67:P76)","v":0},0,0,0,0,0]
[]
[null,null,"Spread Risk Check",null,null,null,null,null,null,null,null,null,null,{"$f":"IF(ROUND(D77-N77,0)=0,\"Yes\",\"No\")","v":"Yes"},null,null,null,{"$f":"IF(ROUND(H77-R77,0)=0,\"Yes\",\"No\")","v":"Yes"}]
[null,null,"Difference",null,null,null,null,null,null,null,null,null,null,{"$f":"ROUND(D77-N77,0)","v":0},null,null,null,{"$f":"ROUND(H77-R77,0)","v":0}]
[]
[null,null,null,"Market Value of Derivatives with Positive Market Value",null,"Market Value of Derivatives with Negative Market Value",null,"Market Value of Collateral, Excluding any over-collateralization"]
[null,null,"Counterparty Default Risk for OTC Derivatives"]
[null,{"$f":"B77+1","v":48},"BSCR Rating 0",{"$f":"Import!M12715","v":0},null,{"$f":"Import!M12724","v":0},null,{"$f":"Import!M12733","v":0}]
[null,{"$f":"B84+1","v":49},"BSCR Rating 1",{"$f":"Import!M12716","v":0},null,{"$f":"Import!M12725","v":0},null,{"$f":"Import!M12734","v":0}]
[null,{"$f":"B85+1","v":50},"BSCR Rating 2",{"$f":"Import!M12717","v":0},null,{"$f":"Import!M12726","v":0},null,{"$f":"Import!M12735","v":0}]
[null,51,"BSCR Rating 3",{"$f":"Import!M12718","v":0},null,{"$f":"Import!M12727","v":0},null,{"$f":"Import!M12736","v":0}]
[null,52,"BSCR Rating 4",{"$f":"Import!M12719","v":0},null,{"$f":"Import!M12728","v":0},null,{"$f":"Import!M12737","v":0}]
[null,53,"BSCR Rating 5",{"$f":"Import!M12720","v":0},null,{"$f":"Import!M12729","v":0},null,{"$f":"Import!M12738","v":0}]
[null,54,"BSCR Rating 6",{"$f":"Import!M12721","v":0},null,{"$f":"Import!M12730","v":0},null,{"$f":"Import!M12739","v":0}]
[null,55,"BSCR Rating 7",{"$f":"Import!M12722","v":0},null,{"$f":"Import!M12731","v":0},null,{"$f":"Import!M12740","v":0}]
[null,56,"BSCR Rating 8",{"$f":"Import!M12723","v":0},null,{"$f":"Import!M12732","v":0},null,{"$f":"Import!M12741","v":0}]
[null,57,"Total Default Risk for OTC Derivatives ",{"$f":"SUM(D83:D92)","v":0},null,{"$f":"SUM(F83:F92)","v":0},null,{"$f":"SUM(H83:H92)","v":0}]
[]
[null,{"$f":"B93+1","v":58},"Cash and Cash Equivalents",{"$f":"Import!M12742","v":0}]
[null,null,null,null,null,null,null,null,null,null,null,null,null,null,null,null,null,null,null,null,null,null,null,null,null,null,null,null,null,null,null,null,null,null,null,null,"brrt_RiskGradeAxis_brrt_NAICClass4Member"]
[null,{"$f":"B95+1","v":59},"Total Deposit Assets",{"$f":"X27+X62+D77+H77+D93+F93+H93+D95","v":0},null,null,null,null,null,null,null,null,null,null,null,null,null,null,null,null,null,null,null,null,null,null,null,null,null,null,null,"brrt_InvestmentsInMortgageLoansOnRealEstate",{"$f":"XBRLMap(H97,$AF97&\".\"&$AE$8,$D$101,$D$102,CONFIGURATION!$B$10,\"BMA\",CONFIGURATION!$B$1,\"bscr\",CONFIGURATION!$B$12)","v":"Mapped"},{"$f":"XBRLMap(J97,$AF97&\".\"&$AE$8,$F$101,$F$102,CONFIGURATION!$B$10,\"BMA\",CONFIGURATION!$B$1,\"bscr\",CONFIGURATION!$B$12)","v":"Mapped"},null,null,"brrt_RiskGradeAxis_brrt_NAICClass5Member"]
[]
[]
[]
[null,null,null,{"$f":"IF(D9=\"\",\"\",TEXT(DATE(YEAR(D9+1)-1,MONTH(D9+1),DAY(D9+1)),\"mm/dd/yyyy\"))","v":"01/01/2019"},null,{"$f":"IF(F9=\"\",\"\",TEXT(DATE(YEAR(F9+1)-1,MONTH(F9+1),DAY(F9+1)),\"mm/dd/yyyy\"))","v":"01/01/2018"}]
[null,null,null,{"$f":"IF(D9=\"\",\"\",TEXT(D9,\"mm/dd/yyyy\"))","v":"12/31/2019"},null,{"$f":"IF(F9=\"\",\"\",TEXT(F9,\"mm/dd/yyyy\"))","v":"12/31/2018"}]
[null,null,null,"brrt_BondsAndDebentures",null,"brrt_BondsAndDebentures",null,"brrt_BondsAndDebentures",null,"brrt_BondsAndDebentures",null,"brrt_BondsAndDebentures",null,"brrt_BondsAndDebentures",null,"brrt_BondsAndDebentures",null,"brrt_BondsAndDebentures",null,null,null,null,null,"brrt_BondsAndDebentures",null,"brrt_BondsAndDebentures"]
[null,null,null,"brrt_SecurityTypeAxis_brrt_CorporateSovereignBondsMember",null,"brrt_SecurityTypeAxis_brrt_CorporateSovereignBondsMember",null,"brrt_SecurityTypeAxis_brrt_ResidentialMortgageBackedSecuritiesMember",null,"brrt_SecurityTypeAxis_brrt_ResidentialMortgageBackedSecuritiesMember",null,"brrt_SecurityTypeAxis_brrt_CommercialMortgageBackedSecuritiesAssetBackedSecuritiesMember",null,"brrt_SecurityTypeAxis_brrt_CommercialMortgageBackedSecuritiesAssetBackedSecuritiesMember",null,"brrt_SecurityTypeAxis_brrt_MutualFundsMember",null,"brrt_SecurityTypeAxis_brrt_MutualFundsMember",null,null,null,null,null,"brrt_SecurityTypeAxis_brrt_TotalMember",null,"brrt_SecurityTypeAxis_brrt_TotalMember"]
[null,null,null,{"$f":"XBRLMap(D13,D$103&\".\"&$AE13&\".\"&$D$104&\".\"&$AE$8,$D$101,$D$102,CONFIGURATION!$B$10,\"BMA\",CONFIGURATION!$B$1,\"bscr\",CONFIGURATION!$B$12)","v":"Mapped"},null,{"$f":"XBRLMap(F13,F$103&\".\"&$AE13&\".\"&$F$104&\".\"&$AE$8,$F$101,$F$102,CONFIGURATION!$B$10,\"BMA\",CONFIGURATION!$B$1,\"bscr\",CONFIGURATION!$B$12)","v":"Mapped"},null,null,null,null,null,null,null,null,null,{"$f":"XBRLMap(P13,P$103&\".\"&$AE13&\".\"&$P$104&\".\"&$AE$8,$D$101,$D$102,CONFIGURATION!$B$10,\"BMA\",CONFIGURATION!$B$1,\"bscr\",CONFIGURATION!$B$12)","v":"Mapped"},null,{"$f":"XBRLMap(R13,R$103&\".\"&$AE13&\".\"&$R$104&\".\"&$AE$8,$F$101,$F$102,CONFIGURATION!$B$10,\"BMA\",CONFIGURATION!$B$1,\"bscr\",CONFIGURATION!$B$12)","v":"Mapped"},null,null,null,null,null,{"$f":"XBRLMap(X13,X$103&\".\"&$AE13&\".\"&$X$104&\".\"&$AE$8,$D$101,$D$102,CONFIGURATION!$B$10,\"BMA\",CONFIGURATION!$B$1,\"bscr\",CONFIGURATION!$B$12)","v":"Mapped"},null,{"$f":"XBRLMap(Z13,Z$103&\".\"&$AE13&\".\"&$Z$104&\".\"&$AE$8,$F$101,$F$102,CONFIGURATION!$B$10,\"BMA\",CONFIGURATION!$B$1,\"bscr\",CONFIGURATION!$B$12)","v":"Mapped"}]
[null,null,null,{"$f":"XBRLMap(D14,D$103&\".\"&$AE14&\".\"&$D$104&\".\"&$AE$8,$D$101,$D$102,CONFIGURATION!$B$10,\"BMA\",CONFIGURATION!$B$1,\"bscr\",CONFIGURATION!$B$12)","v":"Mapped"},null,{"$f":"XBRLMap(F14,F$103&\".\"&$AE14&\".\"&$F$104&\".\"&$AE$8,$F$101,$F$102,CONFIGURATION!$B$10,\"BMA\",CONFIGURATION!$B$1,\"bscr\",CONFIGURATION!$B$12)","v":"Mapped"},null,{"$f":"XBRLMap(H14,H$103&\".\"&$AE14&\".\"&$H$104&\".\"&$AE$8,$D$101,$D$102,CONFIGURATION!$B$10,\"BMA\",CONFIGURATION!$B$1,\"bscr\",CONFIGURATION!$B$12)","v":"Mapped"},null,{"$f":"XBRLMap(J14,J$103&\".\"&$AE14&\".\"&$J$104&\".\"&$AE$8,$F$101,$F$102,CONFIGURATION!$B$10,\"BMA\",CONFIGURATION!$B$1,\"bscr\",CONFIGURATION!$B$12)","v":"Mapped"},null,{"$f":"XBRLMap(L14,L$103&\".\"&$AE14&\".\"&$L$104&\".\"&$AE$8,$D$101,$D$102,CONFIGURATION!$B$10,\"BMA\",CONFIGURATION!$B$1,\"bscr\",CONFIGURATION!$B$12)","v":"Mapped"},null,{"$f":"XBRLMap(N14,N$103&\".\"&$AE14&\".\"&$N$104&\".\"&$AE$8,$F$101,$F$102,CONFIGURATION!$B$10,\"BMA\",CONFIGURATION!$B$1,\"bscr\",CONFIGURATION!$B$12)","v":"Mapped"},null,{"$f":"XBRLMap(P14,P$103&\".\"&$AE14&\".\"&$P$104&\".\"&$AE$8,$D$101,$D$102,CONFIGURATION!$B$10,\"BMA\",CONFIGURATION!$B$1,\"bscr\",CONFIGURATION!$B$12)","v":"Mapped"},null,{"$f":"XBRLMap(R14,R$103&\".\"&$AE14&\".\"&$R$104&\".\"&$AE$8,$F$101,$F$102,CONFIGURATION!$B$10,\"BMA\",CONFIGURATION!$B$1,\"bscr\",CONFIGURATION!$B$12)","v":"Mapped"},null,null,null,null,null,{"$f":"XBRLMap(X14,X$103&\".\"&$AE14&\".\"&$X$104&\".\"&$AE$8,$D$101,$D$102,CONFIGURATION!$B$10,\"BMA\",CONFIGURATION!$B$1,\"bscr\",CONFIGURATION!$B$12)","v":"Mapped"},null,{"$f":"XBRLMap(Z14,Z$103&\".\"&$AE14&\".\"&$Z$104&\".\"&$AE$8,$F$101,$F$102,CONFIGURATION!$B$10,\"BMA\",CONFIGURATION!$B$1,\"bscr\",CONFIGURATION!$B$12)","v":"Mapped"}]
[null,null,null,{"$f":"XBRLMap(D15,D$103&\".\"&$AE15&\".\"&$D$104&\".\"&$AE$8,$D$101,$D$102,CONFIGURATION!$B$10,\"BMA\",CONFIGURATION!$B$1,\"bscr\",CONFIGURATION!$B$12)","v":"Mapped"},null,{"$f":"XBRLMap(F15,F$103&\".\"&$AE15&\".\"&$F$104&\".\"&$AE$8,$F$101,$F$102,CONFIGURATION!$B$10,\"BMA\",CONFIGURATION!$B$1,\"bscr\",CONFIGURATION!$B$12)","v":"Mapped"},null,{"$f":"XBRLMap(H15,H$103&\".\"&$AE15&\".\"&$H$104&\".\"&$AE$8,$D$101,$D$102,CONFIGURATION!$B$10,\"BMA\",CONFIGURATION!$B$1,\"bscr\",CONFIGURATION!$B$12)","v":"Mapped"},null,{"$f":"XBRLMap(J15,J$103&\".\"&$AE15&\".\"&$J$104&\".\"&$AE$8,$F$101,$F$102,CONFIGURATION!$B$10,\"BMA\",CONFIGURATION!$B$1,\"bscr\",CONFIGURATION!$B$12)","v":"Mapped"},null,{"$f":"XBRLMap(L15,L$103&\".\"&$AE15&\".\"&$L$104&\".\"&$AE$8,$D$101,$D$102,CONFIGURATION!$B$10,\"BMA\",CONFIGURATION!$B$1,\"bscr\",CONFIGURATION!$B$12)","v":"Mapped"},null,{"$f":"XBRLMap(N15,N$103&\".\"&$AE15&\".\"&$N$104&\".\"&$AE$8,$F$101,$F$102,CONFIGURATION!$B$10,\"BMA\",CONFIGURATION!$B$1,\"bscr\",CONFIGURATION!$B$12)","v":"Mapped"},null,{"$f":"XBRLMap(P15,P$103&\".\"&$AE15&\".\"&$P$104&\".\"&$AE$8,$D$101,$D$102,CONFIGURATION!$B$10,\"BMA\",CONFIGURATION!$B$1,\"bscr\",CONFIGURATION!$B$12)","v":"Mapped"},null,{"$f":"XBRLMap(R15,R$103&\".\"&$AE15&\".\"&$R$104&\".\"&$AE$8,$F$101,$F$102,CONFIGURATION!$B$10,\"BMA\",CONFIGURATION!$B$1,\"bscr\",CONFIGURATION!$B$12)","v":"Mapped"},null,null,null,null,null,{"$f":"XBRLMap(X15,X$103&\".\"&$AE15&\".\"&$X$104&\".\"&$AE$8,$D$101,$D$102,CONFIGURATION!$B$10,\"BMA\",CONFIGURATION!$B$1,\"bscr\",CONFIGURATION!$B$12)","v":"Mapped"},null,{"$f":"XBRLMap(Z15,Z$103&\".\"&$AE15&\".\"&$Z$104&\".\"&$AE$8,$F$101,$F$102,CONFIGURATION!$B$10,\"BMA\",CONFIGURATION!$B$1,\"bscr\",CONFIGURATION!$B$12)","v":"Mapped"}]
[null,null,null,{"$f":"XBRLMap(D16,D$103&\".\"&$AE16&\".\"&$D$104&\".\"&$AE$8,$D$101,$D$102,CONFIGURATION!$B$10,\"BMA\",CONFIGURATION!$B$1,\"bscr\",CONFIGURATION!$B$12)","v":"Mapped"},null,{"$f":"XBRLMap(F16,F$103&\".\"&$AE16&\".\"&$F$104&\".\"&$AE$8,$F$101,$F$102,CONFIGURATION!$B$10,\"BMA\",CONFIGURATION!$B$1,\"bscr\",CONFIGURATION!$B$12)","v":"Mapped"},null,{"$f":"XBRLMap(H16,H$103&\".\"&$AE16&\".\"&$H$104&\".\"&$AE$8,$D$101,$D$102,CONFIGURATION!$B$10,\"BMA\",CONFIGURATION!$B$1,\"bscr\",CONFIGURATION!$B$12)","v":"Mapped"},null,{"$f":"XBRLMap(J16,J$103&\".\"&$AE16&\".\"&$J$104&\".\"&$AE$8,$F$101,$F$102,CONFIGURATION!$B$10,\"BMA\",CONFIGURATION!$B$1,\"bscr\",CONFIGURATION!$B$12)","v":"Mapped"},null,{"$f":"XBRLMap(L16,L$103&\".\"&$AE16&\".\"&$L$104&\".\"&$AE$8,$D$101,$D$102,CONFIGURATION!$B$10,\"BMA\",CONFIGURATION!$B$1,\"bscr\",CONFIGURATION!$B$12)","v":"Mapped"},null,{"$f":"XBRLMap(N16,N$103&\".\"&$AE16&\".\"&$N$104&\".\"&$AE$8,$F$101,$F$102,CONFIGURATION!$B$10,\"BMA\",CONFIGURATION!$B$1,\"bscr\",CONFIGURATION!$B$12)","v":"Mapped"},null,{"$f":"XBRLMap(P16,P$103&\".\"&$AE16&\".\"&$P$104&\".\"&$AE$8,$D$101,$D$102,CONFIGURATION!$B$10,\"BMA\",CONFIGURATION!$B$1,\"bscr\",CONFIGURATION!$B$12)","v":"Mapped"},null,{"$f":"XBRLMap(R16,R$103&\".\"&$AE16&\".\"&$R$104&\".\"&$AE$8,$F$101,$F$102,CONFIGURATION!$B$10,\"BMA\",CONFIGURATION!$B$1,\"bscr\",CONFIGURATION!$B$12)","v":"Mapped"},null,null,null,null,null,{"$f":"XBRLMap(X16,X$103&\".\"&$AE16&\".\"&$X$104&\".\"&$AE$8,$D$101,$D$102,CONFIGURATION!$B$10,\"BMA\",CONFIGURATION!$B$1,\"bscr\",CONFIGURATION!$B$12)","v":"Mapped"},null,{"$f":"XBRLMap(Z16,Z$103&\".\"&$AE16&\".\"&$Z$104&\".\"&$AE$8,$F$101,$F$102,CONFIGURATION!$B$10,\"BMA\",CONFIGURATION!$B$1,\"bscr\",CONFIGURATION!$B$12)","v":"Mapped"}]
[null,null,null,{"$f":"XBRLMap(D17,D$103&\".\"&$AE17&\".\"&$D$104&\".\"&$AE$8,$D$101,$D$102,CONFIGURATION!$B$10,\"BMA\",CONFIGURATION!$B$1,\"bscr\",CONFIGURATION!$B$12)","v":"Mapped"},null,{"$f":"XBRLMap(F17,F$103&\".\"&$AE17&\".\"&$F$104&\".\"&$AE$8,$F$101,$F$102,CONFIGURATION!$B$10,\"BMA\",CONFIGURATION!$B$1,\"bscr\",CONFIGURATION!$B$12)","v":"Mapped"},null,{"$f":"XBRLMap(H17,H$103&\".\"&$AE17&\".\"&$H$104&\".\"&$AE$8,$D$101,$D$102,CONFIGURATION!$B$10,\"BMA\",CONFIGURATION!$B$1,\"bscr\",CONFIGURATION!$B$12)","v":"Mapped"},null,{"$f":"XBRLMap(J17,J$103&\".\"&$AE17&\".\"&$J$104&\".\"&$AE$8,$F$101,$F$102,CONFIGURATION!$B$10,\"BMA\",CONFIGURATION!$B$1,\"bscr\",CONFIGURATION!$B$12)","v":"Mapped"},null,{"$f":"XBRLMap(L17,L$103&\".\"&$AE17&\".\"&$L$104&\".\"&$AE$8,$D$101,$D$102,CONFIGURATION!$B$10,\"BMA\",CONFIGURATION!$B$1,\"bscr\",CONFIGURATION!$B$12)","v":"Mapped"},null,{"$f":"XBRLMap(N17,N$103&\".\"&$AE17&\".\"&$N$104&\".\"&$AE$8,$F$101,$F$102,CONFIGURATION!$B$10,\"BMA\",CONFIGURATION!$B$1,\"bscr\",CONFIGURATION!$B$12)","v":"Mapped"},null,{"$f":"XBRLMap(P17,P$103&\".\"&$AE17&\".\"&$P$104&\".\"&$AE$8,$D$101,$D$102,CONFIGURATION!$B$10,\"BMA\",CONFIGURATION!$B$1,\"bscr\",CONFIGURATION!$B$12)","v":"Mapped"},null,{"$f":"XBRLMap(R17,R$103&\".\"&$AE17&\".\"&$R$104&\".\"&$AE$8,$F$101,$F$102,CONFIGURATION!$B$10,\"BMA\",CONFIGURATION!$B$1,\"bscr\",CONFIGURATION!$B$12)","v":"Mapped"},null,null,null,null,null,{"$f":"XBRLMap(X17,X$103&\".\"&$AE17&\".\"&$X$104&\".\"&$AE$8,$D$101,$D$102,CONFIGURATION!$B$10,\"BMA\",CONFIGURATION!$B$1,\"bscr\",CONFIGURATION!$B$12)","v":"Mapped"},null,{"$f":"XBRLMap(Z17,Z$103&\".\"&$AE17&\".\"&$Z$104&\".\"&$AE$8,$F$101,$F$102,CONFIGURATION!$B$10,\"BMA\",CONFIGURATION!$B$1,\"bscr\",CONFIGURATION!$B$12)","v":"Mapped"}]
[null,null,null,{"$f":"XBRLMap(D18,D$103&\".\"&$AE18&\".\"&$D$104&\".\"&$AE$8,$D$101,$D$102,CONFIGURATION!$B$10,\"BMA\",CONFIGURATION!$B$1,\"bscr\",CONFIGURATION!$B$12)","v":"Mapped"},null,{"$f":"XBRLMap(F18,F$103&\".\"&$AE18&\".\"&$F$104&\".\"&$AE$8,$F$101,$F$102,CONFIGURATION!$B$10,\"BMA\",CONFIGURATION!$B$1,\"bscr\",CONFIGURATION!$B$12)","v":"Mapped"},null,{"$f":"XBRLMap(H18,H$103&\".\"&$AE18&\".\"&$H$104&\".\"&$AE$8,$D$101,$D$102,CONFIGURATION!$B$10,\"BMA\",CONFIGURATION!$B$1,\"bscr\",CONFIGURATION!$B$12)","v":"Mapped"},null,{"$f":"XBRLMap(J18,J$103&\".\"&$AE18&\".\"&$J$104&\".\"&$AE$8,$F$101,$F$102,CONFIGURATION!$B$10,\"BMA\",CONFIGURATION!$B$1,\"bscr\",CONFIGURATION!$B$12)","v":"Mapped"},null,{"$f":"XBRLMap(L18,L$103&\".\"&$AE18&\".\"&$L$104&\".\"&$AE$8,$D$101,$D$102,CONFIGURATION!$B$10,\"BMA\",CONFIGURATION!$B$1,\"bscr\",CONFIGURATION!$B$12)","v":"Mapped"},null,{"$f":"XBRLMap(N18,N$103&\".\"&$AE18&\".\"&$N$104&\".\"&$AE$8,$F$101,$F$102,CONFIGURATION!$B$10,\"BMA\",CONFIGURATION!$B$1,\"bscr\",CONFIGURATION!$B$12)","v":"Mapped"},null,{"$f":"XBRLMap(P18,P$103&\".\"&$AE18&\".\"&$P$104&\".\"&$AE$8,$D$101,$D$102,CONFIGURATION!$B$10,\"BMA\",CONFIGURATION!$B$1,\"bscr\",CONFIGURATION!$B$12)","v":"Mapped"},null,{"$f":"XBRLMap(R18,R$103&\".\"&$AE18&\".\"&$R$104&\".\"&$AE$8,$F$101,$F$102,CONFIGURATION!$B$10,\"BMA\",CONFIGURATION!$B$1,\"bscr\",CONFIGURATION!$B$12)","v":"Mapped"},null,null,null,null,null,{"$f":"XBRLMap(X18,X$103&\".\"&$AE18&\".\"&$X$104&\".\"&$AE$8,$D$101,$D$102,CONFIGURATION!$B$10,\"BMA\",CONFIGURATION!$B$1,\"bscr\",CONFIGURATION!$B$12)","v":"Mapped"},null,{"$f":"XBRLMap(Z18,Z$103&\".\"&$AE18&\".\"&$Z$104&\".\"&$AE$8,$F$101,$F$102,CONFIGURATION!$B$10,\"BMA\",CONFIGURATION!$B$1,\"bscr\",CONFIGURATION!$B$12)","v":"Mapped"}]
[null,null,null,{"$f":"XBRLMap(D19,D$103&\".\"&$AE19&\".\"&$D$104&\".\"&$AE$8,$D$101,$D$102,CONFIGURATION!$B$10,\"BMA\",CONFIGURATION!$B$1,\"bscr\",CONFIGURATION!$B$12)","v":"Mapped"},null,{"$f":"XBRLMap(F19,F$103&\".\"&$AE19&\".\"&$F$104&\".\"&$AE$8,$F$101,$F$102,CONFIGURATION!$B$10,\"BMA\",CONFIGURATION!$B$1,\"bscr\",CONFIGURATION!$B$12)","v":"Mapped"},null,{"$f":"XBRLMap(H19,H$103&\".\"&$AE19&\".\"&$H$104&\".\"&$AE$8,$D$101,$D$102,CONFIGURATION!$B$10,\"BMA\",CONFIGURATION!$B$1,\"bscr\",CONFIGURATION!$B$12)","v":"Mapped"},null,{"$f":"XBRLMap(J19,J$103&\".\"&$AE19&\".\"&$J$104&\".\"&$AE$8,$F$101,$F$102,CONFIGURATION!$B$10,\"BMA\",CONFIGURATION!$B$1,\"bscr\",CONFIGURATION!$B$12)","v":"Mapped"},null,{"$f":"XBRLMap(L19,L$103&\".\"&$AE19&\".\"&$L$104&\".\"&$AE$8,$D$101,$D$102,CONFIGURATION!$B$10,\"BMA\",CONFIGURATION!$B$1,\"bscr\",CONFIGURATION!$B$12)","v":"Mapped"},null,{"$f":"XBRLMap(N19,N$103&\".\"&$AE19&\".\"&$N$104&\".\"&$AE$8,$F$101,$F$102,CONFIGURATION!$B$10,\"BMA\",CONFIGURATION!$B$1,\"bscr\",CONFIGURATION!$B$12)","v":"Mapped"},null,{"$f":"XBRLMap(P19,P$103&\".\"&$AE19&\".\"&$P$104&\".\"&$AE$8,$D$101,$D$102,CONFIGURATION!$B$10,\"BMA\",CONFIGURATION!$B$1,\"bscr\",CONFIGURATION!$B$12)","v":"Mapped"},null,{"$f":"XBRLMap(R19,R$103&\".\"&$AE19&\".\"&$R$104&\".\"&$AE$8,$F$101,$F$102,CONFIGURATION!$B$10,\"BMA\",CONFIGURATION!$B$1,\"bscr\",CONFIGURATION!$B$12)","v":"Mapped"},null,null,null,null,null,{"$f":"XBRLMap(X19,X$103&\".\"&$AE19&\".\"&$X$104&\".\"&$AE$8,$D$101,$D$102,CONFIGURATION!$B$10,\"BMA\",CONFIGURATION!$B$1,\"bscr\",CONFIGURATION!$B$12)","v":"Mapped"},null,{"$f":"XBRLMap(Z19,Z$103&\".\"&$AE19&\".\"&$Z$104&\".\"&$AE$8,$F$101,$F$102,CONFIGURATION!$B$10,\"BMA\",CONFIGURATION!$B$1,\"bscr\",CONFIGURATION!$B$12)","v":"Mapped"}]
[null,null,null,{"$f":"XBRLMap(D20,D$103&\".\"&$AE20&\".\"&$D$104&\".\"&$AE$8,$D$101,$D$102,CONFIGURATION!$B$10,\"BMA\",CONFIGURATION!$B$1,\"bscr\",CONFIGURATION!$B$12)","v":"Mapped"},null,{"$f":"XBRLMap(F20,F$103&\".\"&$AE20&\".\"&$F$104&\".\"&$AE$8,$F$101,$F$102,CONFIGURATION!$B$10,\"BMA\",CONFIGURATION!$B$1,\"bscr\",CONFIGURATION!$B$12)","v":"Mapped"},null,{"$f":"XBRLMap(H20,H$103&\".\"&$AE20&\".\"&$H$104&\".\"&$AE$8,$D$101,$D$102,CONFIGURATION!$B$10,\"BMA\",CONFIGURATION!$B$1,\"bscr\",CONFIGURATION!$B$12)","v":"Mapped"},null,{"$f":"XBRLMap(J20,J$103&\".\"&$AE20&\".\"&$J$104&\".\"&$AE$8,$F$101,$F$102,CONFIGURATION!$B$10,\"BMA\",CONFIGURATION!$B$1,\"bscr\",CONFIGURATION!$B$12)","v":"Mapped"},null,{"$f":"XBRLMap(L20,L$103&\".\"&$AE20&\".\"&$L$104&\".\"&$AE$8,$D$101,$D$102,CONFIGURATION!$B$10,\"BMA\",CONFIGURATION!$B$1,\"bscr\",CONFIGURATION!$B$12)","v":"Mapped"},null,{"$f":"XBRLMap(N20,N$103&\".\"&$AE20&\".\"&$N$104&\".\"&$AE$8,$F$101,$F$102,CONFIGURATION!$B$10,\"BMA\",CONFIGURATION!$B$1,\"bscr\",CONFIGURATION!$B$12)","v":"Mapped"},null,{"$f":"XBRLMap(P20,P$103&\".\"&$AE20&\".\"&$P$104&\".\"&$AE$8,$D$101,$D$102,CONFIGURATION!$B$10,\"BMA\",CONFIGURATION!$B$1,\"bscr\",CONFIGURATION!$B$12)","v":"Mapped"},null,{"$f":"XBRLMap(R20,R$103&\".\"&$AE20&\".\"&$R$104&\".\"&$AE$8,$F$101,$F$102,CONFIGURATION!$B$10,\"BMA\",CONFIGURATION!$B$1,\"bscr\",CONFIGURATION!$B$12)","v":"Mapped"},null,null,null,null,null,{"$f":"XBRLMap(X20,X$103&\".\"&$AE20&\".\"&$X$104&\".\"&$AE$8,$D$101,$D$102,CONFIGURATION!$B$10,\"BMA\",CONFIGURATION!$B$1,\"bscr\",CONFIGURATION!$B$12)","v":"Mapped"},null,{"$f":"XBRLMap(Z20,Z$103&\".\"&$AE20&\".\"&$Z$104&\".\"&$AE$8,$F$101,$F$102,CONFIGURATION!$B$10,\"BMA\",CONFIGURATION!$B$1,\"bscr\",CONFIGURATION!$B$12)","v":"Mapped"}]
[null,null,null,{"$f":"XBRLMap(D21,D$103&\".\"&$AE21&\".\"&$D$104&\".\"&$AE$8,$D$101,$D$102,CONFIGURATION!$B$10,\"BMA\",CONFIGURATION!$B$1,\"bscr\",CONFIGURATION!$B$12)","v":"Mapped"},null,{"$f":"XBRLMap(F21,F$103&\".\"&$AE21&\".\"&$F$104&\".\"&$AE$8,$F$101,$F$102,CONFIGURATION!$B$10,\"BMA\",CONFIGURATION!$B$1,\"bscr\",CONFIGURATION!$B$12)","v":"Mapped"},null,{"$f":"XBRLMap(H21,H$103&\".\"&$AE21&\".\"&$H$104&\".\"&$AE$8,$D$101,$D$102,CONFIGURATION!$B$10,\"BMA\",CONFIGURATION!$B$1,\"bscr\",CONFIGURATION!$B$12)","v":"Mapped"},null,{"$f":"XBRLMap(J21,J$103&\".\"&$AE21&\".\"&$J$104&\".\"&$AE$8,$F$101,$F$102,CONFIGURATION!$B$10,\"BMA\",CONFIGURATION!$B$1,\"bscr\",CONFIGURATION!$B$12)","v":"Mapped"},null,{"$f":"XBRLMap(L21,L$103&\".\"&$AE21&\".\"&$L$104&\".\"&$AE$8,$D$101,$D$102,CONFIGURATION!$B$10,\"BMA\",CONFIGURATION!$B$1,\"bscr\",CONFIGURATION!$B$12)","v":"Mapped"},null,{"$f":"XBRLMap(N21,N$103&\".\"&$AE21&\".\"&$N$104&\".\"&$AE$8,$F$101,$F$102,CONFIGURATION!$B$10,\"BMA\",CONFIGURATION!$B$1,\"bscr\",CONFIGURATION!$B$12)","v":"Mapped"},null,{"$f":"XBRLMap(P21,P$103&\".\"&$AE21&\".\"&$P$104&\".\"&$AE$8,$D$101,$D$102,CONFIGURATION!$B$10,\"BMA\",CONFIGURATION!$B$1,\"bscr\",CONFIGURATION!$B$12)","v":"Mapped"},null,{"$f":"XBRLMap(R21,R$103&\".\"&$AE21&\".\"&$R$104&\".\"&$AE$8,$F$101,$F$102,CONFIGURATION!$B$10,\"BMA\",CONFIGURATION!$B$1,\"bscr\",CONFIGURATION!$B$12)","v":"Mapped"},null,null,null,null,null,{"$f":"XBRLMap(X21,X$103&\".\"&$AE21&\".\"&$X$104&\".\"&$AE$8,$D$101,$D$102,CONFIGURATION!$B$10,\"BMA\",CONFIGURATION!$B$1,\"bscr\",CONFIGURATION!$B$12)","v":"Mapped"},null,{"$f":"XBRLMap(Z21,Z$103&\".\"&$AE21&\".\"&$Z$104&\".\"&$AE$8,$F$101,$F$102,CONFIGURATION!$B$10,\"BMA\",CONFIGURATION!$B$1,\"bscr\",CONFIGURATION!$B$12)","v":"Mapped"}]
[]
[null,null,null,{"$f":"XBRLMap(D27,D$103&\".\"&$AE27&\".\"&$D$104&\".\"&$AE$8,$D$101,$D$102,CONFIGURATION!$B$10,\"BMA\",CONFIGURATION!$B$1,\"bscr\",CONFIGURATION!$B$12)","v":"Mapped"},null,{"$f":"XBRLMap(F27,F$103&\".\"&$AE27&\".\"&$F$104&\".\"&$AE$8,$F$101,$F$102,CONFIGURATION!$B$10,\"BMA\",CONFIGURATION!$B$1,\"bscr\",CONFIGURATION!$B$12)","v":"Mapped"},null,{"$f":"XBRLMap(H27,H$103&\".\"&$AE27&\".\"&$H$104&\".\"&$AE$8,$D$101,$D$102,CONFIGURATION!$B$10,\"BMA\",CONFIGURATION!$B$1,\"bscr\",CONFIGURATION!$B$12)","v":"Mapped"},null,{"$f":"XBRLMap(J27,J$103&\".\"&$AE27&\".\"&$J$104&\".\"&$AE$8,$F$101,$F$102,CONFIGURATION!$B$10,\"BMA\",CONFIGURATION!$B$1,\"bscr\",CONFIGURATION!$B$12)","v":"Mapped"},null,{"$f":"XBRLMap(L27,L$103&\".\"&$AE27&\".\"&$L$104&\".\"&$AE$8,$D$101,$D$102,CONFIGURATION!$B$10,\"BMA\",CONFIGURATION!$B$1,\"bscr\",CONFIGURATION!$B$12)","v":"Mapped"},null,{"$f":"XBRLMap(N27,N$103&\".\"&$AE27&\".\"&$N$104&\".\"&$AE$8,$F$101,$F$102,CONFIGURATION!$B$10,\"BMA\",CONFIGURATION!$B$1,\"bscr\",CONFIGURATION!$B$12)","v":"Mapped"},null,{"$f":"XBRLMap(P27,P$103&\".\"&$AE27&\".\"&$P$104&\".\"&$AE$8,$D$101,$D$102,CONFIGURATION!$B$10,\"BMA\",CONFIGURATION!$B$1,\"bscr\",CONFIGURATION!$B$12)","v":"Mapped"},null,{"$f":"XBRLMap(R27,R$103&\".\"&$AE27&\".\"&$R$104&\".\"&$AE$8,$F$101,$F$102,CONFIGURATION!$B$10,\"BMA\",CONFIGURATION!$B$1,\"bscr\",CONFIGURATION!$B$12)","v":"Mapped"},null,null,null,null,null,{"$f":"XBRLMap(X27,X$103&\".\"&$AE27&\".\"&$X$104&\".\"&$AE$8,$D$101,$D$102,CONFIGURATION!$B$10,\"BMA\",CONFIGURATION!$B$1,\"bscr\",CONFIGURATION!$B$12)","v":"Mapped"},null,{"$f":"XBRLMap(Z27,Z$103&\".\"&$AE27&\".\"&$Z$104&\".\"&$AE$8,$F$101,$F$102,CONFIGURATION!$B$10,\"BMA\",CONFIGURATION!$B$1,\"bscr\",CONFIGURATION!$B$12)","v":"Mapped"}]
[]
[null,null,null,"brrt_QuotedInvestmentsEquitiesCommonStocks",null,"brrt_QuotedInvestmentsEquitiesCommonStocks",null,null,null,null,null,"brrt_QuotedInvestmentsEquitiesMutualFunds",null,"brrt_QuotedInvestmentsEquitiesMutualFunds",null,null,null,null,null,null,null,null,null,"brrt_QuotedInvestmentsEquitiesCommonStocksMutualFunds",null,"brrt_QuotedInvestmentsEquitiesCommonStocksMutualFunds"]
[null,null,null,"brrt_UnquotedInvestmentsEquitiesCommonStocks",null,"brrt_UnquotedInvestmentsEquitiesCommonStocks",null,null,null,null,null,"brrt_UnquotedInvestmentsEquitiesMutualFunds",null,"brrt_UnquotedInvestmentsEquitiesMutualFunds",null,null,null,null,null,null,null,null,null,"brrt_UnquotedInvestmentsEquitiesCommonStocksMutualFunds",null,"brrt_UnquotedInvestmentsEquitiesCommonStocksMutualFunds"]
[null,null,null,"brrt_EquitiesCommonStocks",null,"brrt_EquitiesCommonStocks",null,"brrt_EquitiesPreferredStocks",null,"brrt_EquitiesPreferredStocks",null,"brrt_EquitiesMutualFunds",null,"brrt_EquitiesMutualFunds",null,null,null,null,null,null,null,null,null,"brrt_Equities",null,"brrt_Equities"]
[null,null,null,null,null,null,null,{"$f":"XBRLMap(#REF!,H$119&\".\"&#REF!&\".\"&$AE$8,$D$101,$D$102,CONFIGURATION!$B$10,\"BMA\",CONFIGURATION!$B$1,\"bscr\",CONFIGURATION!$B$12)","v":{"$error":"#VALUE!"}},null,{"$f":"XBRLMap(#REF!,J$119&\".\"&#REF!&\".\"&$AE$8,$F$101,$F$102,CONFIGURATION!$B$10,\"BMA\",CONFIGURATION!$B$1,\"bscr\",CONFIGURATION!$B$12)","v":{"$error":"#VALUE!"}},null,null,null,null,null,null,null,null,null,null,null,null,null,"The same data point as in column H",null,"The same data point as in column J"]
[null,null,null,null,null,null,null,{"$f":"XBRLMap(#REF!,H$119&\".\"&#REF!&\".\"&$AE$8,$D$101,$D$102,CONFIGURATION!$B$10,\"BMA\",CONFIGURATION!$B$1,\"bscr\",CONFIGURATION!$B$12)","v":{"$error":"#VALUE!"}},null,{"$f":"XBRLMap(#REF!,J$119&\".\"&#REF!&\".\"&$AE$8,$F$101,$F$102,CONFIGURATION!$B$10,\"BMA\",CONFIGURATION!$B$1,\"bscr\",CONFIGURATION!$B$12)","v":{"$error":"#VALUE!"}},null,null,null,null,null,null,null,null,null,null,null,null,null,"The same data point as in column H",null,"The same data point as in column J"]
[null,null,null,null,null,null,null,{"$f":"XBRLMap(#REF!,H$119&\".\"&#REF!&\".\"&$AE$8,$D$101,$D$102,CONFIGURATION!$B$10,\"BMA\",CONFIGURATION!$B$1,\"bscr\",CONFIGURATION!$B$12)","v":{"$error":"#VALUE!"}},null,{"$f":"XBRLMap(#REF!,J$119&\".\"&#REF!&\".\"&$AE$8,$F$101,$F$102,CONFIGURATION!$B$10,\"BMA\",CONFIGURATION!$B$1,\"bscr\",CONFIGURATION!$B$12)","v":{"$error":"#VALUE!"}},null,null,null,null,null,null,null,null,null,null,null,null,null,"The same data point as in column H",null,"The same data point as in column J"]
[null,null,null,null,null,null,null,{"$f":"XBRLMap(#REF!,H$119&\".\"&#REF!&\".\"&$AE$8,$D$101,$D$102,CONFIGURATION!$B$10,\"BMA\",CONFIGURATION!$B$1,\"bscr\",CONFIGURATION!$B$12)","v":{"$error":"#VALUE!"}},null,{"$f":"XBRLMap(#REF!,J$119&\".\"&#REF!&\".\"&$AE$8,$F$101,$F$102,CONFIGURATION!$B$10,\"BMA\",CONFIGURATION!$B$1,\"bscr\",CONFIGURATION!$B$12)","v":{"$error":"#VALUE!"}},null,null,null,null,null,null,null,null,null,null,null,null,null,"The same data point as in column H",null,"The same data point as in column J"]
[null,null,null,null,null,null,null,{"$f":"XBRLMap(#REF!,H$119&\".\"&#REF!&\".\"&$AE$8,$D$101,$D$102,CONFIGURATION!$B$10,\"BMA\",CONFIGURATION!$B$1,\"bscr\",CONFIGURATION!$B$12)","v":{"$error":"#VALUE!"}},null,{"$f":"XBRLMap(#REF!,J$119&\".\"&#REF!&\".\"&$AE$8,$F$101,$F$102,CONFIGURATION!$B$10,\"BMA\",CONFIGURATION!$B$1,\"bscr\",CONFIGURATION!$B$12)","v":{"$error":"#VALUE!"}},null,null,null,null,null,null,null,null,null,null,null,null,null,"The same data point as in column H",null,"The same data point as in column J"]
[null,null,null,null,null,null,null,{"$f":"XBRLMap(#REF!,H$119&\".\"&#REF!&\".\"&$AE$8,$D$101,$D$102,CONFIGURATION!$B$10,\"BMA\",CONFIGURATION!$B$1,\"bscr\",CONFIGURATION!$B$12)","v":{"$error":"#VALUE!"}},null,{"$f":"XBRLMap(#REF!,J$119&\".\"&#REF!&\".\"&$AE$8,$F$101,$F$102,CONFIGURATION!$B$10,\"BMA\",CONFIGURATION!$B$1,\"bscr\",CONFIGURATION!$B$12)","v":{"$error":"#VALUE!"}},null,null,null,null,null,null,null,null,null,null,null,null,null,"The same data point as in column H",null,"The same data point as in column J"]
[null,null,null,null,null,null,null,{"$f":"XBRLMap(#REF!,H$119&\".\"&#REF!&\".\"&$AE$8,$D$101,$D$102,CONFIGURATION!$B$10,\"BMA\",CONFIGURATION!$B$1,\"bscr\",CONFIGURATION!$B$12)","v":{"$error":"#VALUE!"}},null,{"$f":"XBRLMap(#REF!,J$119&\".\"&#REF!&\".\"&$AE$8,$F$101,$F$102,CONFIGURATION!$B$10,\"BMA\",CONFIGURATION!$B$1,\"bscr\",CONFIGURATION!$B$12)","v":{"$error":"#VALUE!"}},null,null,null,null,null,null,null,null,null,null,null,null,null,"The same data point as in column H",null,"The same data point as in column J"]
[null,null,null,null,null,null,null,{"$f":"XBRLMap(#REF!,H$119&\".\"&#REF!&\".\"&$AE$8,$D$101,$D$102,CONFIGURATION!$B$10,\"BMA\",CONFIGURATION!$B$1,\"bscr\",CONFIGURATION!$B$12)","v":{"$error":"#VALUE!"}},null,{"$f":"XBRLMap(#REF!,J$119&\".\"&#REF!&\".\"&$AE$8,$F$101,$F$102,CONFIGURATION!$B$10,\"BMA\",CONFIGURATION!$B$1,\"bscr\",CONFIGURATION!$B$12)","v":{"$error":"#VALUE!"}},null,null,null,null,null,null,null,null,null,null,null,null,null,"The same data point as in column H",null,"The same data point as in column J"]
[null,null,null,{"$f":"XBRLMap(#REF!,D$117&\".\"&$AE$8,$D$101,$D$102,CONFIGURATION!$B$10,\"BMA\",CONFIGURATION!$B$1,\"bscr\",CONFIGURATION!$B$12)","v":{"$error":"#VALUE!"}},null,{"$f":"XBRLMap(#REF!,F$117&\".\"&$AE$8,$F$101,$F$102,CONFIGURATION!$B$10,\"BMA\",CONFIGURATION!$B$1,\"bscr\",CONFIGURATION!$B$12)","v":{"$error":"#VALUE!"}},null,null,null,null,null,{"$f":"XBRLMap(#REF!,L$117&\".\"&$AE$8,$D$101,$D$102,CONFIGURATION!$B$10,\"BMA\",CONFIGURATION!$B$1,\"bscr\",CONFIGURATION!$B$12)","v":{"$error":"#VALUE!"}},null,{"$f":"XBRLMap(#REF!,N$117&\".\"&$AE$8,$F$101,$F$102,CONFIGURATION!$B$10,\"BMA\",CONFIGURATION!$B$1,\"bscr\",CONFIGURATION!$B$12)","v":{"$error":"#VALUE!"}},null,null,null,null,null,null,null,null,null,{"$f":"XBRLMap(#REF!,X$117&\".\"&$AE$8,$D$101,$D$102,CONFIGURATION!$B$10,\"BMA\",CONFIGURATION!$B$1,\"bscr\",CONFIGURATION!$B$12)","v":{"$error":"#VALUE!"}},null,{"$f":"XBRLMap(#REF!,Z$117&\".\"&$AE$8,$F$101,$F$102,CONFIGURATION!$B$10,\"BMA\",CONFIGURATION!$B$1,\"bscr\",CONFIGURATION!$B$12)","v":{"$error":"#VALUE!"}}]
[null,null,null,{"$f":"XBRLMap(#REF!,D$118&\".\"&$AE$8,$D$101,$D$102,CONFIGURATION!$B$10,\"BMA\",CONFIGURATION!$B$1,\"bscr\",CONFIGURATION!$B$12)","v":{"$error":"#VALUE!"}},null,{"$f":"XBRLMap(#REF!,F$118&\".\"&$AE$8,$F$101,$F$102,CONFIGURATION!$B$10,\"BMA\",CONFIGURATION!$B$1,\"bscr\",CONFIGURATION!$B$12)","v":{"$error":"#VALUE!"}},null,null,null,null,null,{"$f":"XBRLMap(#REF!,L$118&\".\"&$AE$8,$D$101,$D$102,CONFIGURATION!$B$10,\"BMA\",CONFIGURATION!$B$1,\"bscr\",CONFIGURATION!$B$12)","v":{"$error":"#VALUE!"}},null,{"$f":"XBRLMap(#REF!,N$118&\".\"&$AE$8,$F$101,$F$102,CONFIGURATION!$B$10,\"BMA\",CONFIGURATION!$B$1,\"bscr\",CONFIGURATION!$B$12)","v":{"$error":"#VALUE!"}},null,null,null,null,null,null,null,null,null,{"$f":"XBRLMap(#REF!,X$118&\".\"&$AE$8,$D$101,$D$102,CONFIGURATION!$B$10,\"BMA\",CONFIGURATION!$B$1,\"bscr\",CONFIGURATION!$B$12)","v":{"$error":"#VALUE!"}},null,{"$f":"XBRLMap(#REF!,Z$118&\".\"&$AE$8,$F$101,$F$102,CONFIGURATION!$B$10,\"BMA\",CONFIGURATION!$B$1,\"bscr\",CONFIGURATION!$B$12)","v":{"$error":"#VALUE!"}}]
[]
[null,null,null,{"$f":"XBRLMap(#REF!,D$119&\".\"&$AE$8,$D$101,$D$102,CONFIGURATION!$B$10,\"BMA\",CONFIGURATION!$B$1,\"bscr\",CONFIGURATION!$B$12)","v":{"$error":"#VALUE!"}},null,{"$f":"XBRLMap(#REF!,F$119&\".\"&$AE$8,$F$101,$F$102,CONFIGURATION!$B$10,\"BMA\",CONFIGURATION!$B$1,\"bscr\",CONFIGURATION!$B$12)","v":{"$error":"#VALUE!"}},null,{"$f":"XBRLMap(#REF!,H$119&\".\"&#REF!&\".\"&$AE$8,$D$101,$D$102,CONFIGURATION!$B$10,\"BMA\",CONFIGURATION!$B$1,\"bscr\",CONFIGURATION!$B$12)","v":{"$error":"#VALUE!"}},null,{"$f":"XBRLMap(#REF!,J$119&\".\"&#REF!&\".\"&$AE$8,$F$101,$F$102,CONFIGURATION!$B$10,\"BMA\",CONFIGURATION!$B$1,\"bscr\",CONFIGURATION!$B$12)","v":{"$error":"#VALUE!"}},null,{"$f":"XBRLMap(#REF!,L$119&\".\"&$AE$8,$D$101,$D$102,CONFIGURATION!$B$10,\"BMA\",CONFIGURATION!$B$1,\"bscr\",CONFIGURATION!$B$12)","v":{"$error":"#VALUE!"}},null,{"$f":"XBRLMap(#REF!,N$119&\".\"&$AE$8,$F$101,$F$102,CONFIGURATION!$B$10,\"BMA\",CONFIGURATION!$B$1,\"bscr\",CONFIGURATION!$B$12)","v":{"$error":"#VALUE!"}},null,null,null,null,null,null,null,null,null,{"$f":"XBRLMap(#REF!,X$119&\".\"&$AE$8,$D$101,$D$102,CONFIGURATION!$B$10,\"BMA\",CONFIGURATION!$B$1,\"bscr\",CONFIGURATION!$B$12)","v":{"$error":"#VALUE!"}},null,{"$f":"XBRLMap(#REF!,Z$119&\".\"&$AE$8,$F$101,$F$102,CONFIGURATION!$B$10,\"BMA\",CONFIGURATION!$B$1,\"bscr\",CONFIGURATION!$B$12)","v":{"$error":"#VALUE!"}}]
[]
[]
[null,null,null,null,null,null,null,null,null,null,null,"brrt_BondsAndDebentures",null,"brrt_BondsAndDebentures",null,"brrt_BondsAndDebentures",null,"brrt_BondsAndDebentures"]
[null,null,null,null,null,null,null,null,null,null,null,"brrt_SecurityTypeAxis_brrt_ResidentialMortgageBackedSecuritiesMember",null,"brrt_SecurityTypeAxis_brrt_ResidentialMortgageBackedSecuritiesMember",null,"brrt_SecurityTypeAxis_brrt_CommercialMortgageBackedSecuritiesAssetBackedSecuritiesMember",null,"brrt_SecurityTypeAxis_brrt_CommercialMortgageBackedSecuritiesAssetBackedSecuritiesMember"]
[null,null,null,null,null,null,null,null,null,null,null,"brrt_ClassificationAxis_brrt_OriginalClassificationMember",null,"brrt_ClassificationAxis_brrt_RevisedClassificationMember",null,"brrt_ClassificationAxis_brrt_OriginalClassificationMember",null,"brrt_ClassificationAxis_brrt_RevisedClassificationMember"]
[null,null,null,null,null,null,null,null,null,null,null,{"$f":"XBRLMap(#REF!,L$134&\".\"&#REF!&\".\"&$L$135&\".\"&$L$136&\".\"&$AE$8,$D$101,$D$102,CONFIGURATION!$B$10,\"BMA\",CONFIGURATION!$B$1,\"bscr\",CONFIGURATION!$B$12)","v":{"$error":"#VALUE!"}},null,{"$f":"XBRLMap(#REF!,N$134&\".\"&#REF!&\".\"&$N$135&\".\"&$N$136&\".\"&$AE$8,$D$101,$D$102,CONFIGURATION!$B$10,\"BMA\",CONFIGURATION!$B$1,\"bscr\",CONFIGURATION!$B$12)","v":{"$error":"#VALUE!"}},null,{"$f":"XBRLMap(#REF!,P$134&\".\"&#REF!&\".\"&$P$135&\".\"&$P$136&\".\"&$AE$8,$D$101,$D$102,CONFIGURATION!$B$10,\"BMA\",CONFIGURATION!$B$1,\"bscr\",CONFIGURATION!$B$12)","v":{"$error":"#VALUE!"}},null,{"$f":"XBRLMap(#REF!,R$134&\".\"&#REF!&\".\"&$R$135&\".\"&$R$136&\".\"&$AE$8,$D$101,$D$102,CONFIGURATION!$B$10,\"BMA\",CONFIGURATION!$B$1,\"bscr\",CONFIGURATION!$B$12)","v":{"$error":"#VALUE!"}}]
[null,null,null,null,null,null,null,null,null,null,null,{"$f":"XBRLMap(#REF!,L$134&\".\"&#REF!&\".\"&$L$135&\".\"&$L$136&\".\"&$AE$8,$D$101,$D$102,CONFIGURATION!$B$10,\"BMA\",CONFIGURATION!$B$1,\"bscr\",CONFIGURATION!$B$12)","v":{"$error":"#VALUE!"}},null,{"$f":"XBRLMap(#REF!,N$134&\".\"&#REF!&\".\"&$N$135&\".\"&$N$136&\".\"&$AE$8,$D$101,$D$102,CONFIGURATION!$B$10,\"BMA\",CONFIGURATION!$B$1,\"bscr\",CONFIGURATION!$B$12)","v":{"$error":"#VALUE!"}},null,{"$f":"XBRLMap(#REF!,P$134&\".\"&#REF!&\".\"&$P$135&\".\"&$P$136&\".\"&$AE$8,$D$101,$D$102,CONFIGURATION!$B$10,\"BMA\",CONFIGURATION!$B$1,\"bscr\",CONFIGURATION!$B$12)","v":{"$error":"#VALUE!"}},null,{"$f":"XBRLMap(#REF!,R$134&\".\"&#REF!&\".\"&$R$135&\".\"&$R$136&\".\"&$AE$8,$D$101,$D$102,CONFIGURATION!$B$10,\"BMA\",CONFIGURATION!$B$1,\"bscr\",CONFIGURATION!$B$12)","v":{"$error":"#VALUE!"}}]
[null,null,null,null,null,null,null,null,null,null,null,{"$f":"XBRLMap(#REF!,L$134&\".\"&#REF!&\".\"&$L$135&\".\"&$L$136&\".\"&$AE$8,$D$101,$D$102,CONFIGURATION!$B$10,\"BMA\",CONFIGURATION!$B$1,\"bscr\",CONFIGURATION!$B$12)","v":{"$error":"#VALUE!"}},null,{"$f":"XBRLMap(#REF!,N$134&\".\"&#REF!&\".\"&$N$135&\".\"&$N$136&\".\"&$AE$8,$D$101,$D$102,CONFIGURATION!$B$10,\"BMA\",CONFIGURATION!$B$1,\"bscr\",CONFIGURATION!$B$12)","v":{"$error":"#VALUE!"}},null,{"$f":"XBRLMap(#REF!,P$134&\".\"&#REF!&\".\"&$P$135&\".\"&$P$136&\".\"&$AE$8,$D$101,$D$102,CONFIGURATION!$B$10,\"BMA\",CONFIGURATION!$B$1,\"bscr\",CONFIGURATION!$B$12)","v":{"$error":"#VALUE!"}},null,{"$f":"XBRLMap(#REF!,R$134&\".\"&#REF!&\".\"&$R$135&\".\"&$R$136&\".\"&$AE$8,$D$101,$D$102,CONFIGURATION!$B$10,\"BMA\",CONFIGURATION!$B$1,\"bscr\",CONFIGURATION!$B$12)","v":{"$error":"#VALUE!"}}]
[null,null,null,null,null,null,null,null,null,null,null,{"$f":"XBRLMap(#REF!,L$134&\".\"&$AK96&\".\"&$L$135&\".\"&$L$136&\".\"&$AE$8,$D$101,$D$102,CONFIGURATION!$B$10,\"BMA\",CONFIGURATION!$B$1,\"bscr\",CONFIGURATION!$B$12)","v":{"$error":"#VALUE!"}},null,{"$f":"XBRLMap(#REF!,N$134&\".\"&$AK96&\".\"&$N$135&\".\"&$N$136&\".\"&$AE$8,$D$101,$D$102,CONFIGURATION!$B$10,\"BMA\",CONFIGURATION!$B$1,\"bscr\",CONFIGURATION!$B$12)","v":{"$error":"#VALUE!"}},null,{"$f":"XBRLMap(#REF!,P$134&\".\"&$AK96&\".\"&$P$135&\".\"&$P$136&\".\"&$AE$8,$D$101,$D$102,CONFIGURATION!$B$10,\"BMA\",CONFIGURATION!$B$1,\"bscr\",CONFIGURATION!$B$12)","v":{"$error":"#VALUE!"}},null,{"$f":"XBRLMap(#REF!,R$134&\".\"&$AK96&\".\"&$R$135&\".\"&$R$136&\".\"&$AE$8,$D$101,$D$102,CONFIGURATION!$B$10,\"BMA\",CONFIGURATION!$B$1,\"bscr\",CONFIGURATION!$B$12)","v":{"$error":"#VALUE!"}}]
[null,null,null,null,null,null,null,null,null,null,null,{"$f":"XBRLMap(N96,L$134&\".\"&$AK97&\".\"&$L$135&\".\"&$L$136&\".\"&$AE$8,$D$101,$D$102,CONFIGURATION!$B$10,\"BMA\",CONFIGURATION!$B$1,\"bscr\",CONFIGURATION!$B$12)","v":"Mapped"},null,{"$f":"XBRLMap(P96,N$134&\".\"&$AK97&\".\"&$N$135&\".\"&$N$136&\".\"&$AE$8,$D$101,$D$102,CONFIGURATION!$B$10,\"BMA\",CONFIGURATION!$B$1,\"bscr\",CONFIGURATION!$B$12)","v":"Mapped"},null,{"$f":"XBRLMap(R96,P$134&\".\"&$AK97&\".\"&$P$135&\".\"&$P$136&\".\"&$AE$8,$D$101,$D$102,CONFIGURATION!$B$10,\"BMA\",CONFIGURATION!$B$1,\"bscr\",CONFIGURATION!$B$12)","v":"Mapped"},null,{"$f":"XBRLMap(X96,R$134&\".\"&$AK97&\".\"&$R$135&\".\"&$R$136&\".\"&$AE$8,$D$101,$D$102,CONFIGURATION!$B$10,\"BMA\",CONFIGURATION!$B$1,\"bscr\",CONFIGURATION!$B$12)","v":"Mapped"}]
[null,null,null,null,null,null,null,null,null,null,null,{"$f":"XBRLMap(N97,L$134&\".\"&#REF!&\".\"&$L$135&\".\"&$L$136&\".\"&$AE$8,$D$101,$D$102,CONFIGURATION!$B$10,\"BMA\",CONFIGURATION!$B$1,\"bscr\",CONFIGURATION!$B$12)","v":{"$error":"#VALUE!"}},null,{"$f":"XBRLMap(P97,N$134&\".\"&#REF!&\".\"&$N$135&\".\"&$N$136&\".\"&$AE$8,$D$101,$D$102,CONFIGURATION!$B$10,\"BMA\",CONFIGURATION!$B$1,\"bscr\",CONFIGURATION!$B$12)","v":{"$error":"#VALUE!"}},null,{"$f":"XBRLMap(R97,P$134&\".\"&#REF!&\".\"&$P$135&\".\"&$P$136&\".\"&$AE$8,$D$101,$D$102,CONFIGURATION!$B$10,\"BMA\",CONFIGURATION!$B$1,\"bscr\",CONFIGURATION!$B$12)","v":{"$error":"#VALUE!"}},null,{"$f":"XBRLMap(X97,R$134&\".\"&#REF!&\".\"&$R$135&\".\"&$R$136&\".\"&$AE$8,$D$101,$D$102,CONFIGURATION!$B$10,\"BMA\",CONFIGURATION!$B$1,\"bscr\",CONFIGURATION!$B$12)","v":{"$error":"#VALUE!"}}]
[]
[null,null,null,null,null,null,null,null,null,null,null,{"$f":"XBRLMap(#REF!,L$134&\".\"&#REF!&\".\"&$L$135&\".\"&$L$136&\".\"&$AE$8,$D$101,$D$102,CONFIGURATION!$B$10,\"BMA\",CONFIGURATION!$B$1,\"bscr\",CONFIGURATION!$B$12)","v":{"$error":"#VALUE!"}},null,{"$f":"XBRLMap(#REF!,N$134&\".\"&#REF!&\".\"&$N$135&\".\"&$N$136&\".\"&$AE$8,$D$101,$D$102,CONFIGURATION!$B$10,\"BMA\",CONFIGURATION!$B$1,\"bscr\",CONFIGURATION!$B$12)","v":{"$error":"#VALUE!"}},null,{"$f":"XBRLMap(#REF!,P$134&\".\"&#REF!&\".\"&$P$135&\".\"&$P$136&\".\"&$AE$8,$D$101,$D$102,CONFIGURATION!$B$10,\"BMA\",CONFIGURATION!$B$1,\"bscr\",CONFIGURATION!$B$12)","v":{"$error":"#VALUE!"}},null,{"$f":"XBRLMap(#REF!,R$134&\".\"&#REF!&\".\"&$R$135&\".\"&$R$136&\".\"&$AE$8,$D$101,$D$102,CONFIGURATION!$B$10,\"BMA\",CONFIGURATION!$B$1,\"bscr\",CONFIGURATION!$B$12)","v":{"$error":"#VALUE!"}}]

{"sheet":"Schedule IIF (EBS)","index":30,"n_rows":144,"n_cols":37,"rows_kept":144,"cut":false,"hidden":false,"merged":[[33,27,34,27],[2,1,2,3],[3,3,3,5],[4,3,4,5],[7,3,7,5],[7,7,7,9],[7,23,7,25],[32,3,32,13],[33,3,34,5],[33,7,33,13],[33,23,34,23],[7,11,7,13],[34,7,34,9],[34,11,34,13],[32,15,32,19],[33,15,34,15],[33,17,34,17],[33,19,34,19],[7,19,7,21],[64,3,64,5],[64,7,64,9],[64,13,64,15],[64,17,64,19],[7,15,7,17],[63,3,63,11],[63,13,63,21]]}
[null,"OTHER SUNDRY ASSETS AND LIABILITIES",null,null,null,null,null,null,null,null,null,null,null,null,null,null,null,null,null,null,null,null,null,null,null,null,null,{"$f":"HYPERLINK(\"#'Index'!A1\",\"Return to Index\")","v":"Return to Index"}]
[]
[null,{"$f":"+'Company Information'!C7","v":"Enter Company Name"}]
[null,"As at",null,{"$f":"+'Company Information'!C3","v":"2019-12-31"},null,null,null,null,null,null,null,null,null,null,null,null,null,null,null,null,null,null,null,null,null,"SCHEDULE IIF (EBS)"]
[null,{"$f":"+'Form 1EBS'!B4","v":"expressed in ['000s]"},null,{"$f":"+'Form 1EBS'!C4","v":"United States Dollars"}]
[]
[null,null,null,"(1)",null,"(2)",null,"(3)",null,"(4)",null,"(5)",null,"(6)",null,"(7)",null,"(8)",null,"(9)",null,"(10)",null,"(11)",null,"(12)"]
[null,null,null,"Corporate & Sovereign Bonds",null,null,null,"Residential Mortgage Backed Securities",null,null,null,"Commercial Mortgage Backed Securities / Asset- Backed Securities",null,null,null,"Bond Mutual Funds",null,null,null,"Mortgage Loans",null,null,null,"TOTAL",null,null,null,null,null,null,"brrt_RiskTransferAxis_brrt_FundsHeldByCedingReinsurersInSegregatedAccountsTrustsMember"]
[null,null,null,{"$f":"+'Form 1EBS'!$F$7","v":"2019-12-31"},null,{"$f":"+'Form 1EBS'!$H$7","v":"2018-12-31"},null,{"$f":"+'Form 1EBS'!$F$7","v":"2019-12-31"},null,{"$f":"+'Form 1EBS'!$H$7","v":"2018-12-31"},null,{"$f":"+'Form 1EBS'!$F$7","v":"2019-12-31"},null,{"$f":"+'Form 1EBS'!$H$7","v":"2018-12-31"},null,{"$f":"+'Form 1EBS'!$F$7","v":"2019-12-31"},null,{"$f":"+'Form 1EBS'!$H$7","v":"2018-12-31"},null,{"$f":"+'Form 1EBS'!$F$7","v":"2019-12-31"},null,{"$f":"+'Form 1EBS'!$H$7","v":"2018-12-31"},null,{"$f":"+'Form 1EBS'!$F$7","v":"2019-12-31"},null,{"$f":"+'Form 1EBS'!$H$7","v":"2018-12-31"}]
[null,null,null,{"$f":"+'Form 1EBS'!$F$8","v":" ('000s)"},null,{"$f":"+'Form 1EBS'!$F$8","v":" ('000s)"},null,{"$f":"+'Form 1EBS'!$F$8","v":" ('000s)"},null,{"$f":"+'Form 1EBS'!$F$8","v":" ('000s)"},null,{"$f":"+'Form 1EBS'!$F$8","v":" ('000s)"},null,{"$f":"+'Form 1EBS'!$F$8","v":" ('000s)"},null,{"$f":"+'Form 1EBS'!$F$8","v":" ('000s)"},null,{"$f":"+'Form 1EBS'!$F$8","v":" ('000s)"},null,{"$f":"+'Form 1EBS'!$F$8","v":" ('000s)"},null,{"$f":"+'Form 1EBS'!$F$8","v":" ('000s)"},null,{"$f":"+'Form 1EBS'!$F$8","v":" ('000s)"},null,{"$f":"+'Form 1EBS'!$H$8","v":" ('000s)"}]
[null,"Line no. "]
[null,"Quoted and Unquoted Bonds and Debentures"]
[null,1,"BSCR Rating 0",{"$f":"Import!M12744","v":0},null,{"$f":"Import!O12744","v":0},null,null,null,null,null,null,null,null,null,{"$f":"Import!M12769","v":0},null,{"$f":"Import!O12769","v":0},null,null,null,null,null,{"$f":"D13+H13+L13+P13","v":0},null,{"$f":"F13+J13+N13+R13","v":0},null,null,null,null,"brrt_RiskGradeAxis_brrt_BSCRRating0Member"]
[null,2,"BSCR Rating 1",{"$f":"Import!M12745","v":0},null,{"$f":"Import!O12745","v":0},null,{"$f":"Import!M12753","v":0},null,{"$f":"Import!O12753","v":0},null,{"$f":"Import!M12761","v":0},null,{"$f":"Import!O12761","v":0},null,{"$f":"Import!M12770","v":0},null,{"$f":"Import!O12770","v":0},null,null,null,null,null,{"$f":"D14+H14+L14+P14","v":0},null,0,null,null,null,null,"brrt_RiskGradeAxis_brrt_BSCRRating1Member"]
[null,3,"BSCR Rating 2",{"$f":"Import!M12746","v":0},null,{"$f":"Import!O12746","v":0},null,{"$f":"Import!M12754","v":0},null,{"$f":"Import!O12754","v":0},null,{"$f":"Import!M12762","v":0},null,{"$f":"Import!O12762","v":0},null,{"$f":"Import!M12771","v":0},null,{"$f":"Import!O12771","v":0},null,null,null,null,null,0,null,0,null,null,null,null,"brrt_RiskGradeAxis_brrt_BSCRRating2Member"]
[null,4,"BSCR Rating 3",{"$f":"Import!M12747","v":0},null,{"$f":"Import!O12747","v":0},null,{"$f":"Import!M12755","v":0},null,{"$f":"Import!O12755","v":0},null,{"$f":"Import!M12763","v":0},null,{"$f":"Import!O12763","v":0},null,{"$f":"Import!M12772","v":0},null,{"$f":"Import!O12772","v":0},null,null,null,null,null,0,null,0,null,null,null,null,"brrt_RiskGradeAxis_brrt_BSCRRating3Member"]
[null,5,"BSCR Rating 4",{"$f":"Import!M12748","v":0},null,{"$f":"Import!O12748","v":0},null,{"$f":"Import!M12756","v":0},null,{"$f":"Import!O12756","v":0},null,{"$f":"Import!M12764","v":0},null,{"$f":"Import!O12764","v":0},null,{"$f":"Import!M12773","v":0},null,{"$f":"Import!O12773","v":0},null,null,null,null,null,0,null,0,null,null,null,null,"brrt_RiskGradeAxis_brrt_BSCRRating4Member"]
[null,6,"BSCR Rating 5",{"$f":"Import!M12749","v":0},null,{"$f":"Import!O12749","v":0},null,{"$f":"Import!M12757","v":0},null,{"$f":"Import!O12757","v":0},null,{"$f":"Import!M12765","v":0},null,{"$f":"Import!O12765","v":0},null,{"$f":"Import!M12774","v":0},null,{"$f":"Import!O12774","v":0},null,null,null,null,null,0,null,0,null,null,null,null,"brrt_RiskGradeAxis_brrt_BSCRRating5Member"]
[null,7,"BSCR Rating 6",{"$f":"Import!M12750","v":0},null,{"$f":"Import!O12750","v":0},null,{"$f":"Import!M12758","v":0},null,{"$f":"Import!O12758","v":0},null,{"$f":"Import!M12766","v":0},null,{"$f":"Import!O12766","v":0},null,{"$f":"Import!M12775","v":0},null,{"$f":"Import!O12775","v":0},null,null,null,null,null,0,null,0,null,null,null,null,"brrt_RiskGradeAxis_brrt_BSCRRating6Member"]
[null,8,"BSCR Rating 7",{"$f":"Import!M12751","v":0},null,{"$f":"Import!O12751","v":0},null,{"$f":"Import!M12759","v":0},null,{"$f":"Import!O12759","v":0},null,{"$f":"Import!M12767","v":0},null,{"$f":"Import!O12767","v":0},null,{"$f":"Import!M12776","v":0},null,{"$f":"Import!O12776","v":0},null,null,null,null,null,0,null,0,null,null,null,null,"brrt_RiskGradeAxis_brrt_BSCRRating7Member"]
[null,9,"BSCR Rating 8",{"$f":"Import!M12752","v":0},null,{"$f":"Import!O12752","v":0},null,{"$f":"Import!M12760","v":0},null,{"$f":"Import!O12760","v":0},null,{"$f":"Import!M12768","v":0},null,{"$f":"Import!O12768","v":0},null,{"$f":"Import!M12777","v":0},null,{"$f":"Import!O12777","v":0},null,null,null,null,null,0,null,0,null,null,null,null,"brrt_RiskGradeAxis_brrt_BSCRRating8Member"]
[null,{"$f":"B21+1","v":10},"Insured/Guaranteed Mortgages",null,null,null,null,null,null,null,null,null,null,null,null,null,null,null,null,{"$f":"Import!M12778","v":0},null,{"$f":"Import!O12778","v":0},null,{"$f":"D22+H22+L22+P22+T22","v":0},null,{"$f":"F22+J22+N22+R22+V22","v":0}]
[null,{"$f":"B22+1","v":11},"Other Commercial and Farm Mortgages",null,null,null,null,null,null,null,null,null,null,null,null,null,null,null,null,{"$f":"Import!M12779","v":0},null,{"$f":"Import!O12779","v":0},null,{"$f":"D23+H23+L23+P23+T23","v":0},null,0]
[null,{"$f":"B23+1","v":12},"Other Residential Mortgages",null,null,null,null,null,null,null,null,null,null,null,null,null,null,null,null,{"$f":"Import!M12780","v":0},null,{"$f":"Import!O12780","v":0},null,{"$f":"D24+H24+L24+P24+T24","v":0},null,{"$f":"F24+J24+N24+R24+V24","v":0}]
[null,13,"Mortgages Not In Good Standing",null,null,null,null,null,null,null,null,null,null,null,null,null,null,null,null,{"$f":"Import!M12781","v":0},null,{"$f":"Import!O12781","v":0},null,0,null,0]
[]
[null,{"$f":"B25+1","v":14},"Total",{"$f":"SUM(D13:D21)","v":0},null,{"$f":"SUM(F13:F21)","v":0},null,{"$f":"SUM(H13:H21)","v":0},null,{"$f":"SUM(J13:J21)","v":0},null,{"$f":"SUM(L13:L21)","v":0},null,{"$f":"SUM(N13:N21)","v":0},null,{"$f":"SUM(P13:P21)","v":0},null,{"$f":"SUM(R13:R21)","v":0},null,{"$f":"SUM(T13:T26)","v":0},null,{"$f":"SUM(V13:V26)","v":0},null,{"$f":"SUM(X13:X26)","v":0},null,{"$f":"SUM(Z13:Z26)","v":0},null,null,null,null,"brrt_RiskGradeAxis_brrt_TotalMember"]
[]
[]
[]
[]
[]
[null,null,null,"ASSETS",null,null,null,null,null,null,null,null,null,null,null,"Liabilities"]
[null,null,null,"Long Exposures",null,null,null,"Short Exposures",null,null,null,null,null,null,null,null,null,"Without Management Actions",null,"With Management Actions",null,null,null,"Total Assets Before Shock",null,null,null,"Shocks"]
[null,null,null,null,null,null,null,"Qualifying as Assets held for risk-mitigation purposes",null,null,null,"Not Qualifying as Assets held for risk-mitigation purposes",null,null,null,null,null,null,null,null,null,null,null,null,null,null,null,"Shocks"]
[null,null,null,"Before Shock",null,"After Shock",null,"Before Shock",null,"After Shock",null,"Before Shock",null,"After Shock",null,"Before Shock",null,"After Shock",null,"After Shock"]
[null,null,null,{"$f":"+'Form 1EBS'!$F$8","v":" ('000s)"},null,{"$f":"+'Form 1EBS'!$F$8","v":" ('000s)"},null,{"$f":"+'Form 1EBS'!$H$8","v":" ('000s)"},null,{"$f":"+'Form 1EBS'!$H$8","v":" ('000s)"},null,{"$f":"+'Form 1EBS'!$F$8","v":" ('000s)"},null,{"$f":"+'Form 1EBS'!$F$8","v":" ('000s)"},null,{"$f":"+'Form 1EBS'!$H$8","v":" ('000s)"},null,{"$f":"+'Form 1EBS'!$H$8","v":" ('000s)"},null,{"$f":"+'Form 1EBS'!$F$8","v":" ('000s)"},null,null,null,{"$f":"+'Form 1EBS'!$F$8","v":" ('000s)"}]
[null,"Equity Holdings "]
[null,{"$f":"B27+1","v":15},"Strategic Holdings - Listed",{"$f":"Import!M12782","v":0},null,{"$f":"IF(OR(Import!M12804=0,Import!M12804=\"\"),(1-$AB39)*D39,Import!M12804)","v":0},null,{"$f":"Import!M12826","v":0},null,{"$f":"IF(OR(Import!M12848=0,Import!M12848=\"\"),(1-$AB39)*H39,Import!M12848)","v":0},null,{"$f":"Import!M12870","v":0},null,{"$f":"IF(OR(Import!M12892=0,Import!M12892=\"\"),(1-$AB39)*L39,Import!M12892)","v":0},null,{"$f":"Import!M12914","v":0},null,{"$f":"IF(OR(Import!M12936=0,Import!M12936=\"\"),P39,Import!M12936)","v":0},null,{"$f":"IF(OR(Import!M12958=0,Import!M12958=\"\"),R39,Import!M12958)","v":0},null,null,null,{"$f":"D39+H39+L39","v":0},null,null,null,0.2]
[null,{"$f":"B39+1","v":16},"Duration Based",{"$f":"Import!M12783","v":0},null,{"$f":"IF(OR(Import!M12805=0,Import!M12805=\"\"),(1-$AB40)*D40,Import!M12805)","v":0},null,{"$f":"Import!M12827","v":0},null,{"$f":"IF(OR(Import!M12849=0,Import!M12849=\"\"),(1-$AB40)*H40,Import!M12849)","v":0},null,{"$f":"Import!M12871","v":0},null,{"$f":"IF(OR(Import!M12893=0,Import!M12893=\"\"),(1-$AB40)*L40,Import!M12893)","v":0},null,{"$f":"Import!M12915","v":0},null,{"$f":"IF(OR(Import!M12937=0,Import!M12937=\"\"),P40,Import!M12937)","v":0},null,{"$f":"IF(OR(Import!M12959=0,Import!M12959=\"\"),R40,Import!M12959)","v":0},null,null,null,{"$f":"D40+H40+L40","v":0},null,null,null,0.2]
[null,17,"Listed Equity Securities in Developed Markets",{"$f":"Import!M12784","v":0},null,{"$f":"IF(OR(Import!M12806=0,Import!M12806=\"\"),(1-$AB41)*D41,Import!M12806)","v":0},null,{"$f":"Import!M12828","v":0},null,{"$f":"IF(OR(Import!M12850=0,Import!M12850=\"\"),(1-$AB41)*H41,Import!M12850)","v":0},null,{"$f":"Import!M12872","v":0},null,{"$f":"IF(OR(Import!M12894=0,Import!M12894=\"\"),(1-$AB41)*L41,Import!M12894)","v":0},null,{"$f":"Import!M12916","v":0},null,{"$f":"IF(OR(Import!M12938=0,Import!M12938=\"\"),P41,Import!M12938)","v":0},null,{"$f":"IF(OR(Import!M12960=0,Import!M12960=\"\"),R41,Import!M12960)","v":0},null,null,null,0,null,null,null,0.35]
[null,18,"Preferred Stocks, BSCR Rating 1",{"$f":"Import!M12785","v":0},null,{"$f":"IF(OR(Import!M12807=0,Import!M12807=\"\"),(1-$AB42)*D42,Import!M12807)","v":0},null,{"$f":"Import!M12829","v":0},null,{"$f":"IF(OR(Import!M12851=0,Import!M12851=\"\"),(1-$AB42)*H42,Import!M12851)","v":0},null,{"$f":"Import!M12873","v":0},null,{"$f":"IF(OR(Import!M12895=0,Import!M12895=\"\"),(1-$AB42)*L42,Import!M12895)","v":0},null,{"$f":"Import!M12917","v":0},null,{"$f":"IF(OR(Import!M12939=0,Import!M12939=\"\"),P42,Import!M12939)","v":0},null,{"$f":"IF(OR(Import!M12961=0,Import!M12961=\"\"),R42,Import!M12961)","v":0},null,null,null,0,null,null,null,6.0000000000000001E-3]
[null,19,"Preferred Stocks, BSCR Rating 2",{"$f":"Import!M12786","v":0},null,{"$f":"IF(OR(Import!M12808=0,Import!M12808=\"\"),(1-$AB43)*D43,Import!M12808)","v":0},null,{"$f":"Import!M12830","v":0},null,{"$f":"IF(OR(Import!M12852=0,Import!M12852=\"\"),(1-$AB43)*H43,Import!M12852)","v":0},null,{"$f":"Import!M12874","v":0},null,{"$f":"IF(OR(Import!M12896=0,Import!M12896=\"\"),(1-$AB43)*L43,Import!M12896)","v":0},null,{"$f":"Import!M12918","v":0},null,{"$f":"IF(OR(Import!M12940=0,Import!M12940=\"\"),P43,Import!M12940)","v":0},null,{"$f":"IF(OR(Import!M12962=0,Import!M12962=\"\"),R43,Import!M12962)","v":0},null,null,null,0,null,null,null,1.2E-2]
[null,20,"Preferred Stocks, BSCR Rating 3",{"$f":"Import!M12787","v":0},null,{"$f":"IF(OR(Import!M12809=0,Import!M12809=\"\"),(1-$AB44)*D44,Import!M12809)","v":0},null,{"$f":"Import!M12831","v":0},null,{"$f":"IF(OR(Import!M12853=0,Import!M12853=\"\"),(1-$AB44)*H44,Import!M12853)","v":0},null,{"$f":"Import!M12875","v":0},null,{"$f":"IF(OR(Import!M12897=0,Import!M12897=\"\"),(1-$AB44)*L44,Import!M12897)","v":0},null,{"$f":"Import!M12919","v":0},null,{"$f":"IF(OR(Import!M12941=0,Import!M12941=\"\"),P44,Import!M12941)","v":0},null,{"$f":"IF(OR(Import!M12963=0,Import!M12963=\"\"),R44,Import!M12963)","v":0},null,null,null,0,null,null,null,0.02]
[null,21,"Preferred Stocks, BSCR Rating 4",{"$f":"Import!M12788","v":0},null,{"$f":"IF(OR(Import!M12810=0,Import!M12810=\"\"),(1-$AB45)*D45,Import!M12810)","v":0},null,{"$f":"Import!M12832","v":0},null,{"$f":"IF(OR(Import!M12854=0,Import!M12854=\"\"),(1-$AB45)*H45,Import!M12854)","v":0},null,{"$f":"Import!M12876","v":0},null,{"$f":"IF(OR(Import!M12898=0,Import!M12898=\"\"),(1-$AB45)*L45,Import!M12898)","v":0},null,{"$f":"Import!M12920","v":0},null,{"$f":"IF(OR(Import!M12942=0,Import!M12942=\"\"),P45,Import!M12942)","v":0},null,{"$f":"IF(OR(Import!M12964=0,Import!M12964=\"\"),R45,Import!M12964)","v":0},null,null,null,0,null,null,null,0.04]
[null,22,"Preferred Stocks, BSCR Rating 5",{"$f":"Import!M12789","v":0},null,{"$f":"IF(OR(Import!M12811=0,Import!M12811=\"\"),(1-$AB46)*D46,Import!M12811)","v":0},null,{"$f":"Import!M12833","v":0},null,{"$f":"IF(OR(Import!M12855=0,Import!M12855=\"\"),(1-$AB46)*H46,Import!M12855)","v":0},null,{"$f":"Import!M12877","v":0},null,{"$f":"IF(OR(Import!M12899=0,Import!M12899=\"\"),(1-$AB46)*L46,Import!M12899)","v":0},null,{"$f":"Import!M12921","v":0},null,{"$f":"IF(OR(Import!M12943=0,Import!M12943=\"\"),P46,Import!M12943)","v":0},null,{"$f":"IF(OR(Import!M12965=0,Import!M12965=\"\"),R46,Import!M12965)","v":0},null,null,null,0,null,null,null,0.11]
[null,23,"Preferred Stocks, BSCR Rating 6",{"$f":"Import!M12790","v":0},null,{"$f":"IF(OR(Import!M12812=0,Import!M12812=\"\"),(1-$AB47)*D47,Import!M12812)","v":0},null,{"$f":"Import!M12834","v":0},null,{"$f":"IF(OR(Import!M12856=0,Import!M12856=\"\"),(1-$AB47)*H47,Import!M12856)","v":0},null,{"$f":"Import!M12878","v":0},null,{"$f":"IF(OR(Import!M12900=0,Import!M12900=\"\"),(1-$AB47)*L47,Import!M12900)","v":0},null,{"$f":"Import!M12922","v":0},null,{"$f":"IF(OR(Import!M12944=0,Import!M12944=\"\"),P47,Import!M12944)","v":0},null,{"$f":"IF(OR(Import!M12966=0,Import!M12966=\"\"),R47,Import!M12966)","v":0},null,null,null,0,null,null,null,0.25]
[null,24,"Preferred Stocks, BSCR Rating 7",{"$f":"Import!M12791","v":0},null,{"$f":"IF(OR(Import!M12813=0,Import!M12813=\"\"),(1-$AB48)*D48,Import!M12813)","v":0},null,{"$f":"Import!M12835","v":0},null,{"$f":"IF(OR(Import!M12857=0,Import!M12857=\"\"),(1-$AB48)*H48,Import!M12857)","v":0},null,{"$f":"Import!M12879","v":0},null,{"$f":"IF(OR(Import!M12901=0,Import!M12901=\"\"),(1-$AB48)*L48,Import!M12901)","v":0},null,{"$f":"Import!M12923","v":0},null,{"$f":"IF(OR(Import!M12945=0,Import!M12945=\"\"),P48,Import!M12945)","v":0},null,{"$f":"IF(OR(Import!M12967=0,Import!M12967=\"\"),R48,Import!M12967)","v":0},null,null,null,0,null,null,null,0.35]
[null,25,"Preferred Stocks, BSCR Rating 8",{"$f":"Import!M12792","v":0},null,{"$f":"IF(OR(Import!M12814=0,Import!M12814=\"\"),(1-$AB49)*D49,Import!M12814)","v":0},null,{"$f":"Import!M12836","v":0},null,{"$f":"IF(OR(Import!M12858=0,Import!M12858=\"\"),(1-$AB49)*H49,Import!M12858)","v":0},null,{"$f":"Import!M12880","v":0},null,{"$f":"IF(OR(Import!M12902=0,Import!M12902=\"\"),(1-$AB49)*L49,Import!M12902)","v":0},null,{"$f":"Import!M12924","v":0},null,{"$f":"IF(OR(Import!M12946=0,Import!M12946=\"\"),P49,Import!M12946)","v":0},null,{"$f":"IF(OR(Import!M12968=0,Import!M12968=\"\"),R49,Import!M12968)","v":0},null,null,null,0,null,null,null,0.35]
[null,26,"Equity Derivatives on Type 1 Equities",{"$f":"Import!M12793","v":0},null,{"$f":"Import!M12815","v":0},null,{"$f":"Import!M12837","v":0},null,{"$f":"Import!M12859","v":0},null,{"$f":"Import!M12881","v":0},null,{"$f":"Import!M12903","v":0},null,{"$f":"Import!M12925","v":0},null,{"$f":"IF(OR(Import!M12947=0,Import!M12947=\"\"),P50,Import!M12947)","v":0},null,{"$f":"IF(OR(Import!M12969=0,Import!M12969=\"\"),R50,Import!M12969)","v":0},null,null,null,0,null,null,null,0.35]
[null,27,"Strategic Holdings - Unlisted",{"$f":"Import!M12794","v":0},null,{"$f":"IF(OR(Import!M12816=0,Import!M12816=\"\"),(1-$AB51)*D51,Import!M12816)","v":0},null,{"$f":"Import!M12838","v":0},null,{"$f":"IF(OR(Import!M12860=0,Import!M12860=\"\"),(1-$AB51)*H51,Import!M12860)","v":0},null,{"$f":"Import!M12882","v":0},null,{"$f":"IF(OR(Import!M12904=0,Import!M12904=\"\"),(1-$AB51)*L51,Import!M12904)","v":0},null,{"$f":"Import!M12926","v":0},null,{"$f":"IF(OR(Import!M12948=0,Import!M12948=\"\"),P51,Import!M12948)","v":0},null,{"$f":"IF(OR(Import!M12970=0,Import!M12970=\"\"),R51,Import!M12970)","v":0},null,null,null,0,null,null,null,0.2]
[null,28,"Other Equities / Other Assets",{"$f":"Import!M12795","v":0},null,{"$f":"IF(OR(Import!M12817=0,Import!M12817=\"\"),(1-$AB52)*D52,Import!M12817)","v":0},null,{"$f":"Import!M12839","v":0},null,{"$f":"IF(OR(Import!M12861=0,Import!M12861=\"\"),(1-$AB52)*H52,Import!M12861)","v":0},null,{"$f":"Import!M12883","v":0},null,{"$f":"IF(OR(Import!M12905=0,Import!M12905=\"\"),(1-$AB52)*L52,Import!M12905)","v":0},null,{"$f":"Import!M12927","v":0},null,{"$f":"IF(OR(Import!M12949=0,Import!M12949=\"\"),P52,Import!M12949)","v":0},null,{"$f":"IF(OR(Import!M12971=0,Import!M12971=\"\"),R52,Import!M12971)","v":0},null,null,null,0,null,null,null,0.45]
[null,29,"Letters of Credit",{"$f":"Import!M12796","v":0},null,{"$f":"IF(OR(Import!M12818=0,Import!M12818=\"\"),(1-$AB53)*D53,Import!M12818)","v":0},null,{"$f":"Import!M12840","v":0},null,{"$f":"IF(OR(Import!M12862=0,Import!M12862=\"\"),(1-$AB53)*H53,Import!M12862)","v":0},null,{"$f":"Import!M12884","v":0},null,{"$f":"IF(OR(Import!M12906=0,Import!M12906=\"\"),(1-$AB53)*L53,Import!M12906)","v":0},null,{"$f":"Import!M12928","v":0},null,{"$f":"IF(OR(Import!M12950=0,Import!M12950=\"\"),P53,Import!M12950)","v":0},null,{"$f":"IF(OR(Import!M12972=0,Import!M12972=\"\"),R53,Import!M12972)","v":0},null,null,null,0,null,null,null,0.2]
[null,30,"Intangible assets",{"$f":"Import!M12797","v":0},null,{"$f":"IF(OR(Import!M12819=0,Import!M12819=\"\"),(1-$AB54)*D54,Import!M12819)","v":0},null,{"$f":"Import!M12841","v":0},null,{"$f":"IF(OR(Import!M12863=0,Import!M12863=\"\"),(1-$AB54)*H54,Import!M12863)","v":0},null,{"$f":"Import!M12885","v":0},null,{"$f":"IF(OR(Import!M12907=0,Import!M12907=\"\"),(1-$AB54)*L54,Import!M12907)","v":0},null,{"$f":"Import!M12929","v":0},null,{"$f":"IF(OR(Import!M12951=0,Import!M12951=\"\"),P54,Import!M12951)","v":0},null,{"$f":"IF(OR(Import!M12973=0,Import!M12973=\"\"),R54,Import!M12973)","v":0},null,null,null,0,null,null,null,0.2]
[null,31,"Pension Benefit Surplus",{"$f":"Import!M12798","v":0},null,{"$f":"IF(OR(Import!M12820=0,Import!M12820=\"\"),(1-$AB55)*D55,Import!M12820)","v":0},null,{"$f":"Import!M12842","v":0},null,{"$f":"IF(OR(Import!M12864=0,Import!M12864=\"\"),(1-$AB55)*H55,Import!M12864)","v":0},null,{"$f":"Import!M12886","v":0},null,{"$f":"IF(OR(Import!M12908=0,Import!M12908=\"\"),(1-$AB55)*L55,Import!M12908)","v":0},null,{"$f":"Import!M12930","v":0},null,{"$f":"IF(OR(Import!M12952=0,Import!M12952=\"\"),P55,Import!M12952)","v":0},null,{"$f":"IF(OR(Import!M12974=0,Import!M12974=\"\"),R55,Import!M12974)","v":0},null,null,null,0,null,null,null,0.2]
[null,32,"Equity Derivatives on Type 2 Equities",{"$f":"Import!M12799","v":0},null,{"$f":"Import!M12821","v":0},null,{"$f":"Import!M12843","v":0},null,{"$f":"Import!M12865","v":0},null,{"$f":"Import!M12887","v":0},null,{"$f":"Import!M12909","v":0},null,{"$f":"Import!M12931","v":0},null,{"$f":"IF(OR(Import!M12953=0,Import!M12953=\"\"),P56,Import!M12953)","v":0},null,{"$f":"IF(OR(Import!M12975=0,Import!M12975=\"\"),R56,Import!M12975)","v":0},null,null,null,0,null,null,null,0.45]
[null,33,"Infrastructure",{"$f":"Import!M12800","v":0},null,{"$f":"IF(OR(Import!M12822=0,Import!M12822=\"\"),(1-$AB57)*D57,Import!M12822)","v":0},null,{"$f":"Import!M12844","v":0},null,{"$f":"IF(OR(Import!M12866=0,Import!M12866=\"\"),(1-$AB57)*H57,Import!M12866)","v":0},null,{"$f":"Import!M12888","v":0},null,{"$f":"IF(OR(Import!M12910=0,Import!M12910=\"\"),(1-$AB57)*L57,Import!M12910)","v":0},null,{"$f":"Import!M12932","v":0},null,{"$f":"IF(OR(Import!M12954=0,Import!M12954=\"\"),P57,Import!M12954)","v":0},null,{"$f":"IF(OR(Import!M12976=0,Import!M12976=\"\"),R57,Import!M12976)","v":0},null,null,null,0,null,null,null,0.25]
[null,34,"Derivatives on Infrastructure",{"$f":"Import!M12801","v":0},null,{"$f":"Import!M12823","v":0},null,{"$f":"Import!M12845","v":0},null,{"$f":"Import!M12867","v":0},null,{"$f":"Import!M12889","v":0},null,{"$f":"Import!M12911","v":0},null,{"$f":"Import!M12933","v":0},null,{"$f":"IF(OR(Import!M12955=0,Import!M12955=\"\"),P58,Import!M12955)","v":0},null,{"$f":"IF(OR(Import!M12977=0,Import!M12977=\"\"),R58,Import!M12977)","v":0},null,null,null,0,null,null,null,0.25]
[null,35,"Equity Real Estate 1",{"$f":"Import!M12802","v":0},null,{"$f":"IF(OR(Import!M12824=0,Import!M12824=\"\"),(1-$AB59)*D59,Import!M12824)","v":0},null,{"$f":"Import!M12846","v":0},null,{"$f":"IF(OR(Import!M12868=0,Import!M12868=\"\"),(1-$AB59)*H59,Import!M12868)","v":0},null,{"$f":"Import!M12890","v":0},null,{"$f":"IF(OR(Import!M12912=0,Import!M12912=\"\"),(1-$AB59)*L59,Import!M12912)","v":0},null,{"$f":"Import!M12934","v":0},null,{"$f":"IF(OR(Import!M12956=0,Import!M12956=\"\"),P59,Import!M12956)","v":0},null,{"$f":"IF(OR(Import!M12978=0,Import!M12978=\"\"),R59,Import!M12978)","v":0},null,null,null,0,null,null,null,0.1]
[null,36,"Equity Real Estate 2",{"$f":"Import!M12803","v":0},null,{"$f":"IF(OR(Import!M12825=0,Import!M12825=\"\"),(1-$AB60)*D60,Import!M12825)","v":0},null,{"$f":"Import!M12847","v":0},null,{"$f":"IF(OR(Import!M12869=0,Import!M12869=\"\"),(1-$AB60)*H60,Import!M12869)","v":0},null,{"$f":"Import!M12891","v":0},null,{"$f":"IF(OR(Import!M12913=0,Import!M12913=\"\"),(1-$AB60)*L60,Import!M12913)","v":0},null,{"$f":"Import!M12935","v":0},null,{"$f":"IF(OR(Import!M12957=0,Import!M12957=\"\"),P60,Import!M12957)","v":0},null,{"$f":"IF(OR(Import!M12979=0,Import!M12979=\"\"),R60,Import!M12979)","v":0},null,null,null,0,null,null,null,0.2]
[]
[null,{"$f":"B60+1","v":37},"Total Equity Holdings",{"$f":"SUM(D38:D61)","v":0},null,{"$f":"SUM(F38:F61)","v":0},null,{"$f":"SUM(H38:H61)","v":0},null,{"$f":"SUM(J38:J61)","v":0},null,{"$f":"SUM(L38:L61)","v":0},null,{"$f":"SUM(N38:N61)","v":0},null,{"$f":"SUM(P38:P61)","v":0},null,{"$f":"SUM(R38:R61)","v":0},null,{"$f":"SUM(T38:T61)","v":0},null,null,null,{"$f":"SUM(X38:X61)","v":0}]
[null,null,null,null,null,null,null,null,null,null,null,null,null,null,null,null,null,null,null,null,null,null,null,null,null,null,null,null,null,null,"brrt_RiskGradeAxis_brrt_TotalMember"]
[null,null,null,"Spread Up",null,null,null,null,null,null,null,null,null,"Spread Down"]
[null,null,null,"Long Exposures",null,null,null,"Short Exposures",null,null,null,"Shock (bps)",null,"Long Exposures",null,null,null,"Short Exposures",null,null,null,"Shock Rates"]
[null,null,null,"Before Shock",null,"After Shock",null,"Before Shock",null,"After Shock",null,null,null,"Before Shock",null,"After Shock",null,"Before Shock",null,"After Shock"]
[null,null,"Spread Risk for Credit Derivatives",null,null,null,null,null,null,null,null,null,null,null,null,null,{"$f":"SUM(G71:G79)","v":0},null,{"$f":"SUM(I71:I79)","v":0},null,{"$f":"SUM(K71:K79)","v":0}]
[null,{"$f":"B62+1","v":38},"BSCR Rating 0",{"$f":"Import!M12980","v":0},null,{"$f":"Import!M12989","v":0},null,{"$f":"Import!M12998","v":0},null,{"$f":"Import!M13007","v":0},null,0,null,{"$f":"Import!M13016","v":0},null,{"$f":"Import!M13025","v":0},null,{"$f":"Import!M13034","v":0},null,{"$f":"Import!M13043","v":0},null,0]
[null,{"$f":"B68+1","v":39},"BSCR Rating 1",{"$f":"Import!M12981","v":0},null,{"$f":"Import!M12990","v":0},null,{"$f":"Import!M12999","v":0},null,{"$f":"Import!M13008","v":0},null,130,null,{"$f":"Import!M13017","v":0},null,{"$f":"Import!M13026","v":0},null,{"$f":"Import!M13035","v":0},null,{"$f":"Import!M13044","v":0},null,-0.75]
[null,{"$f":"B69+1","v":40},"BSCR Rating 2",{"$f":"Import!M12982","v":0},null,{"$f":"Import!M12991","v":0},null,{"$f":"Import!M13000","v":0},null,{"$f":"Import!M13009","v":0},null,150,null,{"$f":"Import!M13018","v":0},null,{"$f":"Import!M13027","v":0},null,{"$f":"Import!M13036","v":0},null,{"$f":"Import!M13045","v":0},null,-0.75]
[null,41,"BSCR Rating 3",{"$f":"Import!M12983","v":0},null,{"$f":"Import!M12992","v":0},null,{"$f":"Import!M13001","v":0},null,{"$f":"Import!M13010","v":0},null,260,null,{"$f":"Import!M13019","v":0},null,{"$f":"Import!M13028","v":0},null,{"$f":"Import!M13037","v":0},null,{"$f":"Import!M13046","v":0},null,-0.75]
[null,42,"BSCR Rating 4",{"$f":"Import!M12984","v":0},null,{"$f":"Import!M12993","v":0},null,{"$f":"Import!M13002","v":0},null,{"$f":"Import!M13011","v":0},null,450,null,{"$f":"Import!M13020","v":0},null,{"$f":"Import!M13029","v":0},null,{"$f":"Import!M13038","v":0},null,{"$f":"Import!M13047","v":0},null,-0.75]
[null,43,"BSCR Rating 5",{"$f":"Import!M12985","v":0},null,{"$f":"Import!M12994","v":0},null,{"$f":"Import!M13003","v":0},null,{"$f":"Import!M13012","v":0},null,840,null,{"$f":"Import!M13021","v":0},null,{"$f":"Import!M13030","v":0},null,{"$f":"Import!M13039","v":0},null,{"$f":"Import!M13048","v":0},null,-0.75]
[null,44,"BSCR Rating 6",{"$f":"Import!M12986","v":0},null,{"$f":"Import!M12995","v":0},null,{"$f":"Import!M13004","v":0},null,{"$f":"Import!M13013","v":0},null,1620,null,{"$f":"Import!M13022","v":0},null,{"$f":"Import!M13031","v":0},null,{"$f":"Import!M13040","v":0},null,{"$f":"Import!M13049","v":0},null,-0.75]
[null,45,"BSCR Rating 7",{"$f":"Import!M12987","v":0},null,{"$f":"Import!M12996","v":0},null,{"$f":"Import!M13005","v":0},null,{"$f":"Import!M13014","v":0},null,1620,null,{"$f":"Import!M13023","v":0},null,{"$f":"Import!M13032","v":0},null,{"$f":"Import!M13041","v":0},null,{"$f":"Import!M13050","v":0},null,-0.75]
[null,46,"BSCR Rating 8",{"$f":"Import!M12988","v":0},null,{"$f":"Import!M12997","v":0},null,{"$f":"Import!M13006","v":0},null,{"$f":"Import!M13015","v":0},null,1620,null,{"$f":"Import!M13024","v":0},null,{"$f":"Import!M13033","v":0},null,{"$f":"Import!M13042","v":0},null,{"$f":"Import!M13051","v":0},null,-0.75]
[null,47,"Total Spread",{"$f":"SUM(D67:D76)","v":0},null,{"$f":"SUM(F67:F76)","v":0},null,{"$f":"SUM(H67:H76)","v":0},null,{"$f":"SUM(J67:J76)","v":0},null,null,null,{"$f":"SUM(N67:N76)","v":0},null,{"$f":"SUM(P67:P76)","v":0},{"$f":"SUM(Q67:Q76)","v":0},{"$f":"SUM(R67:R76)","v":0},{"$f":"SUM(S67:S76)","v":0},{"$f":"SUM(T67:T76)","v":0},{"$f":"SUM(U67:U76)","v":0}]
[]
[null,null,"Spread Risk Check",null,null,null,null,null,null,null,null,null,null,{"$f":"IF(ROUND(D77-N77,0)=0,\"Yes\",\"No\")","v":"Yes"},null,null,null,{"$f":"IF(ROUND(H77-R77,0)=0,\"Yes\",\"No\")","v":"Yes"}]
[null,null,"Difference",null,null,null,null,null,null,null,null,null,null,{"$f":"ROUND(D77-N77,0)","v":0},null,null,null,{"$f":"ROUND(H77-R77,0)","v":0}]
[]
[null,null,null,"Market Value of Derivatives with Positive Market Value",null,"Market Value of Derivatives with Negative Market Value",null,"Market Value of Collateral, Excluding any over-collateralization"]
[null,null,"Counterparty Default Risk for OTC Derivatives"]
[null,{"$f":"B77+1","v":48},"BSCR Rating 0",{"$f":"Import!M13052","v":0},null,{"$f":"Import!M13061","v":0},null,{"$f":"Import!M13070","v":0}]
[null,{"$f":"B84+1","v":49},"BSCR Rating 1",{"$f":"Import!M13053","v":0},null,{"$f":"Import!M13062","v":0},null,{"$f":"Import!M13071","v":0}]
[null,{"$f":"B85+1","v":50},"BSCR Rating 2",{"$f":"Import!M13054","v":0},null,{"$f":"Import!M13063","v":0},null,{"$f":"Import!M13072","v":0}]
[null,51,"BSCR Rating 3",{"$f":"Import!M13055","v":0},null,{"$f":"Import!M13064","v":0},null,{"$f":"Import!M13073","v":0}]
[null,52,"BSCR Rating 4",{"$f":"Import!M13056","v":0},null,{"$f":"Import!M13065","v":0},null,{"$f":"Import!M13074","v":0}]
[null,53,"BSCR Rating 5",{"$f":"Import!M13057","v":0},null,{"$f":"Import!M13066","v":0},null,{"$f":"Import!M13075","v":0}]
[null,54,"BSCR Rating 6",{"$f":"Import!M13058","v":0},null,{"$f":"Import!M13067","v":0},null,{"$f":"Import!M13076","v":0}]
[null,55,"BSCR Rating 7",{"$f":"Import!M13059","v":0},null,{"$f":"Import!M13068","v":0},null,{"$f":"Import!M13077","v":0}]
[null,56,"BSCR Rating 8",{"$f":"Import!M13060","v":0},null,{"$f":"Import!M13069","v":0},null,{"$f":"Import!M13078","v":0}]
[null,57,"Total Default Risk for OTC Derivatives ",{"$f":"SUM(D83:D92)","v":0},null,{"$f":"SUM(F83:F92)","v":0},null,{"$f":"SUM(H83:H92)","v":0}]
[]
[null,{"$f":"B93+1","v":58},"Cash and Cash Equivalents",{"$f":"Import!M13079","v":0}]
[null,null,null,null,null,null,null,null,null,null,null,null,null,null,null,null,null,null,null,null,null,null,null,null,null,null,null,null,null,null,null,null,null,null,null,null,"brrt_RiskGradeAxis_brrt_NAICClass4Member"]
[null,{"$f":"B95+1","v":59},"Total Other Sundry Assets",{"$f":"X27+X62+D77+H77+D93+F93+H93+D95","v":0},null,null,null,null,null,null,null,null,null,null,null,null,null,null,null,null,null,null,null,null,null,null,null,null,null,null,null,"brrt_InvestmentsInMortgageLoansOnRealEstate",{"$f":"XBRLMap(H97,$AF97&\".\"&$AE$8,$D$101,$D$102,CONFIGURATION!$B$10,\"BMA\",CONFIGURATION!$B$1,\"bscr\",CONFIGURATION!$B$12)","v":"Mapped"},{"$f":"XBRLMap(J97,$AF97&\".\"&$AE$8,$F$101,$F$102,CONFIGURATION!$B$10,\"BMA\",CONFIGURATION!$B$1,\"bscr\",CONFIGURATION!$B$12)","v":"Mapped"},null,null,"brrt_RiskGradeAxis_brrt_NAICClass5Member"]
[]
[]
[]
[null,null,null,{"$f":"IF(D9=\"\",\"\",TEXT(DATE(YEAR(D9+1)-1,MONTH(D9+1),DAY(D9+1)),\"mm/dd/yyyy\"))","v":"01/01/2019"},null,{"$f":"IF(F9=\"\",\"\",TEXT(DATE(YEAR(F9+1)-1,MONTH(F9+1),DAY(F9+1)),\"mm/dd/yyyy\"))","v":"01/01/2018"}]
[null,null,null,{"$f":"IF(D9=\"\",\"\",TEXT(D9,\"mm/dd/yyyy\"))","v":"12/31/2019"},null,{"$f":"IF(F9=\"\",\"\",TEXT(F9,\"mm/dd/yyyy\"))","v":"12/31/2018"}]
[null,null,null,"brrt_BondsAndDebentures",null,"brrt_BondsAndDebentures",null,"brrt_BondsAndDebentures",null,"brrt_BondsAndDebentures",null,"brrt_BondsAndDebentures",null,"brrt_BondsAndDebentures",null,"brrt_BondsAndDebentures",null,"brrt_BondsAndDebentures",null,null,null,null,null,"brrt_BondsAndDebentures",null,"brrt_BondsAndDebentures"]
[null,null,null,"brrt_SecurityTypeAxis_brrt_CorporateSovereignBondsMember",null,"brrt_SecurityTypeAxis_brrt_CorporateSovereignBondsMember",null,"brrt_SecurityTypeAxis_brrt_ResidentialMortgageBackedSecuritiesMember",null,"brrt_SecurityTypeAxis_brrt_ResidentialMortgageBackedSecuritiesMember",null,"brrt_SecurityTypeAxis_brrt_CommercialMortgageBackedSecuritiesAssetBackedSecuritiesMember",null,"brrt_SecurityTypeAxis_brrt_CommercialMortgageBackedSecuritiesAssetBackedSecuritiesMember",null,"brrt_SecurityTypeAxis_brrt_MutualFundsMember",null,"brrt_SecurityTypeAxis_brrt_MutualFundsMember",null,null,null,null,null,"brrt_SecurityTypeAxis_brrt_TotalMember",null,"brrt_SecurityTypeAxis_brrt_TotalMember"]
[null,null,null,{"$f":"XBRLMap(D13,D$103&\".\"&$AE13&\".\"&$D$104&\".\"&$AE$8,$D$101,$D$102,CONFIGURATION!$B$10,\"BMA\",CONFIGURATION!$B$1,\"bscr\",CONFIGURATION!$B$12)","v":"Mapped"},null,{"$f":"XBRLMap(F13,F$103&\".\"&$AE13&\".\"&$F$104&\".\"&$AE$8,$F$101,$F$102,CONFIGURATION!$B$10,\"BMA\",CONFIGURATION!$B$1,\"bscr\",CONFIGURATION!$B$12)","v":"Mapped"},null,null,null,null,null,null,null,null,null,{"$f":"XBRLMap(P13,P$103&\".\"&$AE13&\".\"&$P$104&\".\"&$AE$8,$D$101,$D$102,CONFIGURATION!$B$10,\"BMA\",CONFIGURATION!$B$1,\"bscr\",CONFIGURATION!$B$12)","v":"Mapped"},null,{"$f":"XBRLMap(R13,R$103&\".\"&$AE13&\".\"&$R$104&\".\"&$AE$8,$F$101,$F$102,CONFIGURATION!$B$10,\"BMA\",CONFIGURATION!$B$1,\"bscr\",CONFIGURATION!$B$12)","v":"Mapped"},null,null,null,null,null,{"$f":"XBRLMap(X13,X$103&\".\"&$AE13&\".\"&$X$104&\".\"&$AE$8,$D$101,$D$102,CONFIGURATION!$B$10,\"BMA\",CONFIGURATION!$B$1,\"bscr\",CONFIGURATION!$B$12)","v":"Mapped"},null,{"$f":"XBRLMap(Z13,Z$103&\".\"&$AE13&\".\"&$Z$104&\".\"&$AE$8,$F$101,$F$102,CONFIGURATION!$B$10,\"BMA\",CONFIGURATION!$B$1,\"bscr\",CONFIGURATION!$B$12)","v":"Mapped"}]
[null,null,null,{"$f":"XBRLMap(D14,D$103&\".\"&$AE14&\".\"&$D$104&\".\"&$AE$8,$D$101,$D$102,CONFIGURATION!$B$10,\"BMA\",CONFIGURATION!$B$1,\"bscr\",CONFIGURATION!$B$12)","v":"Mapped"},null,{"$f":"XBRLMap(F14,F$103&\".\"&$AE14&\".\"&$F$104&\".\"&$AE$8,$F$101,$F$102,CONFIGURATION!$B$10,\"BMA\",CONFIGURATION!$B$1,\"bscr\",CONFIGURATION!$B$12)","v":"Mapped"},null,{"$f":"XBRLMap(H14,H$103&\".\"&$AE14&\".\"&$H$104&\".\"&$AE$8,$D$101,$D$102,CONFIGURATION!$B$10,\"BMA\",CONFIGURATION!$B$1,\"bscr\",CONFIGURATION!$B$12)","v":"Mapped"},null,{"$f":"XBRLMap(J14,J$103&\".\"&$AE14&\".\"&$J$104&\".\"&$AE$8,$F$101,$F$102,CONFIGURATION!$B$10,\"BMA\",CONFIGURATION!$B$1,\"bscr\",CONFIGURATION!$B$12)","v":"Mapped"},null,{"$f":"XBRLMap(L14,L$103&\".\"&$AE14&\".\"&$L$104&\".\"&$AE$8,$D$101,$D$102,CONFIGURATION!$B$10,\"BMA\",CONFIGURATION!$B$1,\"bscr\",CONFIGURATION!$B$12)","v":"Mapped"},null,{"$f":"XBRLMap(N14,N$103&\".\"&$AE14&\".\"&$N$104&\".\"&$AE$8,$F$101,$F$102,CONFIGURATION!$B$10,\"BMA\",CONFIGURATION!$B$1,\"bscr\",CONFIGURATION!$B$12)","v":"Mapped"},null,{"$f":"XBRLMap(P14,P$103&\".\"&$AE14&\".\"&$P$104&\".\"&$AE$8,$D$101,$D$102,CONFIGURATION!$B$10,\"BMA\",CONFIGURATION!$B$1,\"bscr\",CONFIGURATION!$B$12)","v":"Mapped"},null,{"$f":"XBRLMap(R14,R$103&\".\"&$AE14&\".\"&$R$104&\".\"&$AE$8,$F$101,$F$102,CONFIGURATION!$B$10,\"BMA\",CONFIGURATION!$B$1,\"bscr\",CONFIGURATION!$B$12)","v":"Mapped"},null,null,null,null,null,{"$f":"XBRLMap(X14,X$103&\".\"&$AE14&\".\"&$X$104&\".\"&$AE$8,$D$101,$D$102,CONFIGURATION!$B$10,\"BMA\",CONFIGURATION!$B$1,\"bscr\",CONFIGURATION!$B$12)","v":"Mapped"},null,{"$f":"XBRLMap(Z14,Z$103&\".\"&$AE14&\".\"&$Z$104&\".\"&$AE$8,$F$101,$F$102,CONFIGURATION!$B$10,\"BMA\",CONFIGURATION!$B$1,\"bscr\",CONFIGURATION!$B$12)","v":"Mapped"}]
[null,null,null,{"$f":"XBRLMap(D15,D$103&\".\"&$AE15&\".\"&$D$104&\".\"&$AE$8,$D$101,$D$102,CONFIGURATION!$B$10,\"BMA\",CONFIGURATION!$B$1,\"bscr\",CONFIGURATION!$B$12)","v":"Mapped"},null,{"$f":"XBRLMap(F15,F$103&\".\"&$AE15&\".\"&$F$104&\".\"&$AE$8,$F$101,$F$102,CONFIGURATION!$B$10,\"BMA\",CONFIGURATION!$B$1,\"bscr\",CONFIGURATION!$B$12)","v":"Mapped"},null,{"$f":"XBRLMap(H15,H$103&\".\"&$AE15&\".\"&$H$104&\".\"&$AE$8,$D$101,$D$102,CONFIGURATION!$B$10,\"BMA\",CONFIGURATION!$B$1,\"bscr\",CONFIGURATION!$B$12)","v":"Mapped"},null,{"$f":"XBRLMap(J15,J$103&\".\"&$AE15&\".\"&$J$104&\".\"&$AE$8,$F$101,$F$102,CONFIGURATION!$B$10,\"BMA\",CONFIGURATION!$B$1,\"bscr\",CONFIGURATION!$B$12)","v":"Mapped"},null,{"$f":"XBRLMap(L15,L$103&\".\"&$AE15&\".\"&$L$104&\".\"&$AE$8,$D$101,$D$102,CONFIGURATION!$B$10,\"BMA\",CONFIGURATION!$B$1,\"bscr\",CONFIGURATION!$B$12)","v":"Mapped"},null,{"$f":"XBRLMap(N15,N$103&\".\"&$AE15&\".\"&$N$104&\".\"&$AE$8,$F$101,$F$102,CONFIGURATION!$B$10,\"BMA\",CONFIGURATION!$B$1,\"bscr\",CONFIGURATION!$B$12)","v":"Mapped"},null,{"$f":"XBRLMap(P15,P$103&\".\"&$AE15&\".\"&$P$104&\".\"&$AE$8,$D$101,$D$102,CONFIGURATION!$B$10,\"BMA\",CONFIGURATION!$B$1,\"bscr\",CONFIGURATION!$B$12)","v":"Mapped"},null,{"$f":"XBRLMap(R15,R$103&\".\"&$AE15&\".\"&$R$104&\".\"&$AE$8,$F$101,$F$102,CONFIGURATION!$B$10,\"BMA\",CONFIGURATION!$B$1,\"bscr\",CONFIGURATION!$B$12)","v":"Mapped"},null,null,null,null,null,{"$f":"XBRLMap(X15,X$103&\".\"&$AE15&\".\"&$X$104&\".\"&$AE$8,$D$101,$D$102,CONFIGURATION!$B$10,\"BMA\",CONFIGURATION!$B$1,\"bscr\",CONFIGURATION!$B$12)","v":"Mapped"},null,{"$f":"XBRLMap(Z15,Z$103&\".\"&$AE15&\".\"&$Z$104&\".\"&$AE$8,$F$101,$F$102,CONFIGURATION!$B$10,\"BMA\",CONFIGURATION!$B$1,\"bscr\",CONFIGURATION!$B$12)","v":"Mapped"}]
[null,null,null,{"$f":"XBRLMap(D16,D$103&\".\"&$AE16&\".\"&$D$104&\".\"&$AE$8,$D$101,$D$102,CONFIGURATION!$B$10,\"BMA\",CONFIGURATION!$B$1,\"bscr\",CONFIGURATION!$B$12)","v":"Mapped"},null,{"$f":"XBRLMap(F16,F$103&\".\"&$AE16&\".\"&$F$104&\".\"&$AE$8,$F$101,$F$102,CONFIGURATION!$B$10,\"BMA\",CONFIGURATION!$B$1,\"bscr\",CONFIGURATION!$B$12)","v":"Mapped"},null,{"$f":"XBRLMap(H16,H$103&\".\"&$AE16&\".\"&$H$104&\".\"&$AE$8,$D$101,$D$102,CONFIGURATION!$B$10,\"BMA\",CONFIGURATION!$B$1,\"bscr\",CONFIGURATION!$B$12)","v":"Mapped"},null,{"$f":"XBRLMap(J16,J$103&\".\"&$AE16&\".\"&$J$104&\".\"&$AE$8,$F$101,$F$102,CONFIGURATION!$B$10,\"BMA\",CONFIGURATION!$B$1,\"bscr\",CONFIGURATION!$B$12)","v":"Mapped"},null,{"$f":"XBRLMap(L16,L$103&\".\"&$AE16&\".\"&$L$104&\".\"&$AE$8,$D$101,$D$102,CONFIGURATION!$B$10,\"BMA\",CONFIGURATION!$B$1,\"bscr\",CONFIGURATION!$B$12)","v":"Mapped"},null,{"$f":"XBRLMap(N16,N$103&\".\"&$AE16&\".\"&$N$104&\".\"&$AE$8,$F$101,$F$102,CONFIGURATION!$B$10,\"BMA\",CONFIGURATION!$B$1,\"bscr\",CONFIGURATION!$B$12)","v":"Mapped"},null,{"$f":"XBRLMap(P16,P$103&\".\"&$AE16&\".\"&$P$104&\".\"&$AE$8,$D$101,$D$102,CONFIGURATION!$B$10,\"BMA\",CONFIGURATION!$B$1,\"bscr\",CONFIGURATION!$B$12)","v":"Mapped"},null,{"$f":"XBRLMap(R16,R$103&\".\"&$AE16&\".\"&$R$104&\".\"&$AE$8,$F$101,$F$102,CONFIGURATION!$B$10,\"BMA\",CONFIGURATION!$B$1,\"bscr\",CONFIGURATION!$B$12)","v":"Mapped"},null,null,null,null,null,{"$f":"XBRLMap(X16,X$103&\".\"&$AE16&\".\"&$X$104&\".\"&$AE$8,$D$101,$D$102,CONFIGURATION!$B$10,\"BMA\",CONFIGURATION!$B$1,\"bscr\",CONFIGURATION!$B$12)","v":"Mapped"},null,{"$f":"XBRLMap(Z16,Z$103&\".\"&$AE16&\".\"&$Z$104&\".\"&$AE$8,$F$101,$F$102,CONFIGURATION!$B$10,\"BMA\",CONFIGURATION!$B$1,\"bscr\",CONFIGURATION!$B$12)","v":"Mapped"}]
[null,null,null,{"$f":"XBRLMap(D17,D$103&\".\"&$AE17&\".\"&$D$104&\".\"&$AE$8,$D$101,$D$102,CONFIGURATION!$B$10,\"BMA\",CONFIGURATION!$B$1,\"bscr\",CONFIGURATION!$B$12)","v":"Mapped"},null,{"$f":"XBRLMap(F17,F$103&\".\"&$AE17&\".\"&$F$104&\".\"&$AE$8,$F$101,$F$102,CONFIGURATION!$B$10,\"BMA\",CONFIGURATION!$B$1,\"bscr\",CONFIGURATION!$B$12)","v":"Mapped"},null,{"$f":"XBRLMap(H17,H$103&\".\"&$AE17&\".\"&$H$104&\".\"&$AE$8,$D$101,$D$102,CONFIGURATION!$B$10,\"BMA\",CONFIGURATION!$B$1,\"bscr\",CONFIGURATION!$B$12)","v":"Mapped"},null,{"$f":"XBRLMap(J17,J$103&\".\"&$AE17&\".\"&$J$104&\".\"&$AE$8,$F$101,$F$102,CONFIGURATION!$B$10,\"BMA\",CONFIGURATION!$B$1,\"bscr\",CONFIGURATION!$B$12)","v":"Mapped"},null,{"$f":"XBRLMap(L17,L$103&\".\"&$AE17&\".\"&$L$104&\".\"&$AE$8,$D$101,$D$102,CONFIGURATION!$B$10,\"BMA\",CONFIGURATION!$B$1,\"bscr\",CONFIGURATION!$B$12)","v":"Mapped"},null,{"$f":"XBRLMap(N17,N$103&\".\"&$AE17&\".\"&$N$104&\".\"&$AE$8,$F$101,$F$102,CONFIGURATION!$B$10,\"BMA\",CONFIGURATION!$B$1,\"bscr\",CONFIGURATION!$B$12)","v":"Mapped"},null,{"$f":"XBRLMap(P17,P$103&\".\"&$AE17&\".\"&$P$104&\".\"&$AE$8,$D$101,$D$102,CONFIGURATION!$B$10,\"BMA\",CONFIGURATION!$B$1,\"bscr\",CONFIGURATION!$B$12)","v":"Mapped"},null,{"$f":"XBRLMap(R17,R$103&\".\"&$AE17&\".\"&$R$104&\".\"&$AE$8,$F$101,$F$102,CONFIGURATION!$B$10,\"BMA\",CONFIGURATION!$B$1,\"bscr\",CONFIGURATION!$B$12)","v":"Mapped"},null,null,null,null,null,{"$f":"XBRLMap(X17,X$103&\".\"&$AE17&\".\"&$X$104&\".\"&$AE$8,$D$101,$D$102,CONFIGURATION!$B$10,\"BMA\",CONFIGURATION!$B$1,\"bscr\",CONFIGURATION!$B$12)","v":"Mapped"},null,{"$f":"XBRLMap(Z17,Z$103&\".\"&$AE17&\".\"&$Z$104&\".\"&$AE$8,$F$101,$F$102,CONFIGURATION!$B$10,\"BMA\",CONFIGURATION!$B$1,\"bscr\",CONFIGURATION!$B$12)","v":"Mapped"}]
[null,null,null,{"$f":"XBRLMap(D18,D$103&\".\"&$AE18&\".\"&$D$104&\".\"&$AE$8,$D$101,$D$102,CONFIGURATION!$B$10,\"BMA\",CONFIGURATION!$B$1,\"bscr\",CONFIGURATION!$B$12)","v":"Mapped"},null,{"$f":"XBRLMap(F18,F$103&\".\"&$AE18&\".\"&$F$104&\".\"&$AE$8,$F$101,$F$102,CONFIGURATION!$B$10,\"BMA\",CONFIGURATION!$B$1,\"bscr\",CONFIGURATION!$B$12)","v":"Mapped"},null,{"$f":"XBRLMap(H18,H$103&\".\"&$AE18&\".\"&$H$104&\".\"&$AE$8,$D$101,$D$102,CONFIGURATION!$B$10,\"BMA\",CONFIGURATION!$B$1,\"bscr\",CONFIGURATION!$B$12)","v":"Mapped"},null,{"$f":"XBRLMap(J18,J$103&\".\"&$AE18&\".\"&$J$104&\".\"&$AE$8,$F$101,$F$102,CONFIGURATION!$B$10,\"BMA\",CONFIGURATION!$B$1,\"bscr\",CONFIGURATION!$B$12)","v":"Mapped"},null,{"$f":"XBRLMap(L18,L$103&\".\"&$AE18&\".\"&$L$104&\".\"&$AE$8,$D$101,$D$102,CONFIGURATION!$B$10,\"BMA\",CONFIGURATION!$B$1,\"bscr\",CONFIGURATION!$B$12)","v":"Mapped"},null,{"$f":"XBRLMap(N18,N$103&\".\"&$AE18&\".\"&$N$104&\".\"&$AE$8,$F$101,$F$102,CONFIGURATION!$B$10,\"BMA\",CONFIGURATION!$B$1,\"bscr\",CONFIGURATION!$B$12)","v":"Mapped"},null,{"$f":"XBRLMap(P18,P$103&\".\"&$AE18&\".\"&$P$104&\".\"&$AE$8,$D$101,$D$102,CONFIGURATION!$B$10,\"BMA\",CONFIGURATION!$B$1,\"bscr\",CONFIGURATION!$B$12)","v":"Mapped"},null,{"$f":"XBRLMap(R18,R$103&\".\"&$AE18&\".\"&$R$104&\".\"&$AE$8,$F$101,$F$102,CONFIGURATION!$B$10,\"BMA\",CONFIGURATION!$B$1,\"bscr\",CONFIGURATION!$B$12)","v":"Mapped"},null,null,null,null,null,{"$f":"XBRLMap(X18,X$103&\".\"&$AE18&\".\"&$X$104&\".\"&$AE$8,$D$101,$D$102,CONFIGURATION!$B$10,\"BMA\",CONFIGURATION!$B$1,\"bscr\",CONFIGURATION!$B$12)","v":"Mapped"},null,{"$f":"XBRLMap(Z18,Z$103&\".\"&$AE18&\".\"&$Z$104&\".\"&$AE$8,$F$101,$F$102,CONFIGURATION!$B$10,\"BMA\",CONFIGURATION!$B$1,\"bscr\",CONFIGURATION!$B$12)","v":"Mapped"}]
[null,null,null,{"$f":"XBRLMap(D19,D$103&\".\"&$AE19&\".\"&$D$104&\".\"&$AE$8,$D$101,$D$102,CONFIGURATION!$B$10,\"BMA\",CONFIGURATION!$B$1,\"bscr\",CONFIGURATION!$B$12)","v":"Mapped"},null,{"$f":"XBRLMap(F19,F$103&\".\"&$AE19&\".\"&$F$104&\".\"&$AE$8,$F$101,$F$102,CONFIGURATION!$B$10,\"BMA\",CONFIGURATION!$B$1,\"bscr\",CONFIGURATION!$B$12)","v":"Mapped"},null,{"$f":"XBRLMap(H19,H$103&\".\"&$AE19&\".\"&$H$104&\".\"&$AE$8,$D$101,$D$102,CONFIGURATION!$B$10,\"BMA\",CONFIGURATION!$B$1,\"bscr\",CONFIGURATION!$B$12)","v":"Mapped"},null,{"$f":"XBRLMap(J19,J$103&\".\"&$AE19&\".\"&$J$104&\".\"&$AE$8,$F$101,$F$102,CONFIGURATION!$B$10,\"BMA\",CONFIGURATION!$B$1,\"bscr\",CONFIGURATION!$B$12)","v":"Mapped"},null,{"$f":"XBRLMap(L19,L$103&\".\"&$AE19&\".\"&$L$104&\".\"&$AE$8,$D$101,$D$102,CONFIGURATION!$B$10,\"BMA\",CONFIGURATION!$B$1,\"bscr\",CONFIGURATION!$B$12)","v":"Mapped"},null,{"$f":"XBRLMap(N19,N$103&\".\"&$AE19&\".\"&$N$104&\".\"&$AE$8,$F$101,$F$102,CONFIGURATION!$B$10,\"BMA\",CONFIGURATION!$B$1,\"bscr\",CONFIGURATION!$B$12)","v":"Mapped"},null,{"$f":"XBRLMap(P19,P$103&\".\"&$AE19&\".\"&$P$104&\".\"&$AE$8,$D$101,$D$102,CONFIGURATION!$B$10,\"BMA\",CONFIGURATION!$B$1,\"bscr\",CONFIGURATION!$B$12)","v":"Mapped"},null,{"$f":"XBRLMap(R19,R$103&\".\"&$AE19&\".\"&$R$104&\".\"&$AE$8,$F$101,$F$102,CONFIGURATION!$B$10,\"BMA\",CONFIGURATION!$B$1,\"bscr\",CONFIGURATION!$B$12)","v":"Mapped"},null,null,null,null,null,{"$f":"XBRLMap(X19,X$103&\".\"&$AE19&\".\"&$X$104&\".\"&$AE$8,$D$101,$D$102,CONFIGURATION!$B$10,\"BMA\",CONFIGURATION!$B$1,\"bscr\",CONFIGURATION!$B$12)","v":"Mapped"},null,{"$f":"XBRLMap(Z19,Z$103&\".\"&$AE19&\".\"&$Z$104&\".\"&$AE$8,$F$101,$F$102,CONFIGURATION!$B$10,\"BMA\",CONFIGURATION!$B$1,\"bscr\",CONFIGURATION!$B$12)","v":"Mapped"}]
[null,null,null,{"$f":"XBRLMap(D20,D$103&\".\"&$AE20&\".\"&$D$104&\".\"&$AE$8,$D$101,$D$102,CONFIGURATION!$B$10,\"BMA\",CONFIGURATION!$B$1,\"bscr\",CONFIGURATION!$B$12)","v":"Mapped"},null,{"$f":"XBRLMap(F20,F$103&\".\"&$AE20&\".\"&$F$104&\".\"&$AE$8,$F$101,$F$102,CONFIGURATION!$B$10,\"BMA\",CONFIGURATION!$B$1,\"bscr\",CONFIGURATION!$B$12)","v":"Mapped"},null,{"$f":"XBRLMap(H20,H$103&\".\"&$AE20&\".\"&$H$104&\".\"&$AE$8,$D$101,$D$102,CONFIGURATION!$B$10,\"BMA\",CONFIGURATION!$B$1,\"bscr\",CONFIGURATION!$B$12)","v":"Mapped"},null,{"$f":"XBRLMap(J20,J$103&\".\"&$AE20&\".\"&$J$104&\".\"&$AE$8,$F$101,$F$102,CONFIGURATION!$B$10,\"BMA\",CONFIGURATION!$B$1,\"bscr\",CONFIGURATION!$B$12)","v":"Mapped"},null,{"$f":"XBRLMap(L20,L$103&\".\"&$AE20&\".\"&$L$104&\".\"&$AE$8,$D$101,$D$102,CONFIGURATION!$B$10,\"BMA\",CONFIGURATION!$B$1,\"bscr\",CONFIGURATION!$B$12)","v":"Mapped"},null,{"$f":"XBRLMap(N20,N$103&\".\"&$AE20&\".\"&$N$104&\".\"&$AE$8,$F$101,$F$102,CONFIGURATION!$B$10,\"BMA\",CONFIGURATION!$B$1,\"bscr\",CONFIGURATION!$B$12)","v":"Mapped"},null,{"$f":"XBRLMap(P20,P$103&\".\"&$AE20&\".\"&$P$104&\".\"&$AE$8,$D$101,$D$102,CONFIGURATION!$B$10,\"BMA\",CONFIGURATION!$B$1,\"bscr\",CONFIGURATION!$B$12)","v":"Mapped"},null,{"$f":"XBRLMap(R20,R$103&\".\"&$AE20&\".\"&$R$104&\".\"&$AE$8,$F$101,$F$102,CONFIGURATION!$B$10,\"BMA\",CONFIGURATION!$B$1,\"bscr\",CONFIGURATION!$B$12)","v":"Mapped"},null,null,null,null,null,{"$f":"XBRLMap(X20,X$103&\".\"&$AE20&\".\"&$X$104&\".\"&$AE$8,$D$101,$D$102,CONFIGURATION!$B$10,\"BMA\",CONFIGURATION!$B$1,\"bscr\",CONFIGURATION!$B$12)","v":"Mapped"},null,{"$f":"XBRLMap(Z20,Z$103&\".\"&$AE20&\".\"&$Z$104&\".\"&$AE$8,$F$101,$F$102,CONFIGURATION!$B$10,\"BMA\",CONFIGURATION!$B$1,\"bscr\",CONFIGURATION!$B$12)","v":"Mapped"}]
[null,null,null,{"$f":"XBRLMap(D21,D$103&\".\"&$AE21&\".\"&$D$104&\".\"&$AE$8,$D$101,$D$102,CONFIGURATION!$B$10,\"BMA\",CONFIGURATION!$B$1,\"bscr\",CONFIGURATION!$B$12)","v":"Mapped"},null,{"$f":"XBRLMap(F21,F$103&\".\"&$AE21&\".\"&$F$104&\".\"&$AE$8,$F$101,$F$102,CONFIGURATION!$B$10,\"BMA\",CONFIGURATION!$B$1,\"bscr\",CONFIGURATION!$B$12)","v":"Mapped"},null,{"$f":"XBRLMap(H21,H$103&\".\"&$AE21&\".\"&$H$104&\".\"&$AE$8,$D$101,$D$102,CONFIGURATION!$B$10,\"BMA\",CONFIGURATION!$B$1,\"bscr\",CONFIGURATION!$B$12)","v":"Mapped"},null,{"$f":"XBRLMap(J21,J$103&\".\"&$AE21&\".\"&$J$104&\".\"&$AE$8,$F$101,$F$102,CONFIGURATION!$B$10,\"BMA\",CONFIGURATION!$B$1,\"bscr\",CONFIGURATION!$B$12)","v":"Mapped"},null,{"$f":"XBRLMap(L21,L$103&\".\"&$AE21&\".\"&$L$104&\".\"&$AE$8,$D$101,$D$102,CONFIGURATION!$B$10,\"BMA\",CONFIGURATION!$B$1,\"bscr\",CONFIGURATION!$B$12)","v":"Mapped"},null,{"$f":"XBRLMap(N21,N$103&\".\"&$AE21&\".\"&$N$104&\".\"&$AE$8,$F$101,$F$102,CONFIGURATION!$B$10,\"BMA\",CONFIGURATION!$B$1,\"bscr\",CONFIGURATION!$B$12)","v":"Mapped"},null,{"$f":"XBRLMap(P21,P$103&\".\"&$AE21&\".\"&$P$104&\".\"&$AE$8,$D$101,$D$102,CONFIGURATION!$B$10,\"BMA\",CONFIGURATION!$B$1,\"bscr\",CONFIGURATION!$B$12)","v":"Mapped"},null,{"$f":"XBRLMap(R21,R$103&\".\"&$AE21&\".\"&$R$104&\".\"&$AE$8,$F$101,$F$102,CONFIGURATION!$B$10,\"BMA\",CONFIGURATION!$B$1,\"bscr\",CONFIGURATION!$B$12)","v":"Mapped"},null,null,null,null,null,{"$f":"XBRLMap(X21,X$103&\".\"&$AE21&\".\"&$X$104&\".\"&$AE$8,$D$101,$D$102,CONFIGURATION!$B$10,\"BMA\",CONFIGURATION!$B$1,\"bscr\",CONFIGURATION!$B$12)","v":"Mapped"},null,{"$f":"XBRLMap(Z21,Z$103&\".\"&$AE21&\".\"&$Z$104&\".\"&$AE$8,$F$101,$F$102,CONFIGURATION!$B$10,\"BMA\",CONFIGURATION!$B$1,\"bscr\",CONFIGURATION!$B$12)","v":"Mapped"}]
[]
[null,null,null,{"$f":"XBRLMap(D27,D$103&\".\"&$AE27&\".\"&$D$104&\".\"&$AE$8,$D$101,$D$102,CONFIGURATION!$B$10,\"BMA\",CONFIGURATION!$B$1,\"bscr\",CONFIGURATION!$B$12)","v":"Mapped"},null,{"$f":"XBRLMap(F27,F$103&\".\"&$AE27&\".\"&$F$104&\".\"&$AE$8,$F$101,$F$102,CONFIGURATION!$B$10,\"BMA\",CONFIGURATION!$B$1,\"bscr\",CONFIGURATION!$B$12)","v":"Mapped"},null,{"$f":"XBRLMap(H27,H$103&\".\"&$AE27&\".\"&$H$104&\".\"&$AE$8,$D$101,$D$102,CONFIGURATION!$B$10,\"BMA\",CONFIGURATION!$B$1,\"bscr\",CONFIGURATION!$B$12)","v":"Mapped"},null,{"$f":"XBRLMap(J27,J$103&\".\"&$AE27&\".\"&$J$104&\".\"&$AE$8,$F$101,$F$102,CONFIGURATION!$B$10,\"BMA\",CONFIGURATION!$B$1,\"bscr\",CONFIGURATION!$B$12)","v":"Mapped"},null,{"$f":"XBRLMap(L27,L$103&\".\"&$AE27&\".\"&$L$104&\".\"&$AE$8,$D$101,$D$102,CONFIGURATION!$B$10,\"BMA\",CONFIGURATION!$B$1,\"bscr\",CONFIGURATION!$B$12)","v":"Mapped"},null,{"$f":"XBRLMap(N27,N$103&\".\"&$AE27&\".\"&$N$104&\".\"&$AE$8,$F$101,$F$102,CONFIGURATION!$B$10,\"BMA\",CONFIGURATION!$B$1,\"bscr\",CONFIGURATION!$B$12)","v":"Mapped"},null,{"$f":"XBRLMap(P27,P$103&\".\"&$AE27&\".\"&$P$104&\".\"&$AE$8,$D$101,$D$102,CONFIGURATION!$B$10,\"BMA\",CONFIGURATION!$B$1,\"bscr\",CONFIGURATION!$B$12)","v":"Mapped"},null,{"$f":"XBRLMap(R27,R$103&\".\"&$AE27&\".\"&$R$104&\".\"&$AE$8,$F$101,$F$102,CONFIGURATION!$B$10,\"BMA\",CONFIGURATION!$B$1,\"bscr\",CONFIGURATION!$B$12)","v":"Mapped"},null,null,null,null,null,{"$f":"XBRLMap(X27,X$103&\".\"&$AE27&\".\"&$X$104&\".\"&$AE$8,$D$101,$D$102,CONFIGURATION!$B$10,\"BMA\",CONFIGURATION!$B$1,\"bscr\",CONFIGURATION!$B$12)","v":"Mapped"},null,{"$f":"XBRLMap(Z27,Z$103&\".\"&$AE27&\".\"&$Z$104&\".\"&$AE$8,$F$101,$F$102,CONFIGURATION!$B$10,\"BMA\",CONFIGURATION!$B$1,\"bscr\",CONFIGURATION!$B$12)","v":"Mapped"}]
[]
[null,null,null,"brrt_QuotedInvestmentsEquitiesCommonStocks",null,"brrt_QuotedInvestmentsEquitiesCommonStocks",null,null,null,null,null,"brrt_QuotedInvestmentsEquitiesMutualFunds",null,"brrt_QuotedInvestmentsEquitiesMutualFunds",null,null,null,null,null,null,null,null,null,"brrt_QuotedInvestmentsEquitiesCommonStocksMutualFunds",null,"brrt_QuotedInvestmentsEquitiesCommonStocksMutualFunds"]
[null,null,null,"brrt_UnquotedInvestmentsEquitiesCommonStocks",null,"brrt_UnquotedInvestmentsEquitiesCommonStocks",null,null,null,null,null,"brrt_UnquotedInvestmentsEquitiesMutualFunds",null,"brrt_UnquotedInvestmentsEquitiesMutualFunds",null,null,null,null,null,null,null,null,null,"brrt_UnquotedInvestmentsEquitiesCommonStocksMutualFunds",null,"brrt_UnquotedInvestmentsEquitiesCommonStocksMutualFunds"]
[null,null,null,"brrt_EquitiesCommonStocks",null,"brrt_EquitiesCommonStocks",null,"brrt_EquitiesPreferredStocks",null,"brrt_EquitiesPreferredStocks",null,"brrt_EquitiesMutualFunds",null,"brrt_EquitiesMutualFunds",null,null,null,null,null,null,null,null,null,"brrt_Equities",null,"brrt_Equities"]
[null,null,null,null,null,null,null,{"$f":"XBRLMap(#REF!,H$119&\".\"&#REF!&\".\"&$AE$8,$D$101,$D$102,CONFIGURATION!$B$10,\"BMA\",CONFIGURATION!$B$1,\"bscr\",CONFIGURATION!$B$12)","v":{"$error":"#VALUE!"}},null,{"$f":"XBRLMap(#REF!,J$119&\".\"&#REF!&\".\"&$AE$8,$F$101,$F$102,CONFIGURATION!$B$10,\"BMA\",CONFIGURATION!$B$1,\"bscr\",CONFIGURATION!$B$12)","v":{"$error":"#VALUE!"}},null,null,null,null,null,null,null,null,null,null,null,null,null,"The same data point as in column H",null,"The same data point as in column J"]
[null,null,null,null,null,null,null,{"$f":"XBRLMap(#REF!,H$119&\".\"&#REF!&\".\"&$AE$8,$D$101,$D$102,CONFIGURATION!$B$10,\"BMA\",CONFIGURATION!$B$1,\"bscr\",CONFIGURATION!$B$12)","v":{"$error":"#VALUE!"}},null,{"$f":"XBRLMap(#REF!,J$119&\".\"&#REF!&\".\"&$AE$8,$F$101,$F$102,CONFIGURATION!$B$10,\"BMA\",CONFIGURATION!$B$1,\"bscr\",CONFIGURATION!$B$12)","v":{"$error":"#VALUE!"}},null,null,null,null,null,null,null,null,null,null,null,null,null,"The same data point as in column H",null,"The same data point as in column J"]
[null,null,null,null,null,null,null,{"$f":"XBRLMap(#REF!,H$119&\".\"&#REF!&\".\"&$AE$8,$D$101,$D$102,CONFIGURATION!$B$10,\"BMA\",CONFIGURATION!$B$1,\"bscr\",CONFIGURATION!$B$12)","v":{"$error":"#VALUE!"}},null,{"$f":"XBRLMap(#REF!,J$119&\".\"&#REF!&\".\"&$AE$8,$F$101,$F$102,CONFIGURATION!$B$10,\"BMA\",CONFIGURATION!$B$1,\"bscr\",CONFIGURATION!$B$12)","v":{"$error":"#VALUE!"}},null,null,null,null,null,null,null,null,null,null,null,null,null,"The same data point as in column H",null,"The same data point as in column J"]
[null,null,null,null,null,null,null,{"$f":"XBRLMap(#REF!,H$119&\".\"&#REF!&\".\"&$AE$8,$D$101,$D$102,CONFIGURATION!$B$10,\"BMA\",CONFIGURATION!$B$1,\"bscr\",CONFIGURATION!$B$12)","v":{"$error":"#VALUE!"}},null,{"$f":"XBRLMap(#REF!,J$119&\".\"&#REF!&\".\"&$AE$8,$F$101,$F$102,CONFIGURATION!$B$10,\"BMA\",CONFIGURATION!$B$1,\"bscr\",CONFIGURATION!$B$12)","v":{"$error":"#VALUE!"}},null,null,null,null,null,null,null,null,null,null,null,null,null,"The same data point as in column H",null,"The same data point as in column J"]
[null,null,null,null,null,null,null,{"$f":"XBRLMap(#REF!,H$119&\".\"&#REF!&\".\"&$AE$8,$D$101,$D$102,CONFIGURATION!$B$10,\"BMA\",CONFIGURATION!$B$1,\"bscr\",CONFIGURATION!$B$12)","v":{"$error":"#VALUE!"}},null,{"$f":"XBRLMap(#REF!,J$119&\".\"&#REF!&\".\"&$AE$8,$F$101,$F$102,CONFIGURATION!$B$10,\"BMA\",CONFIGURATION!$B$1,\"bscr\",CONFIGURATION!$B$12)","v":{"$error":"#VALUE!"}},null,null,null,null,null,null,null,null,null,null,null,null,null,"The same data point as in column H",null,"The same data point as in column J"]
[null,null,null,null,null,null,null,{"$f":"XBRLMap(#REF!,H$119&\".\"&#REF!&\".\"&$AE$8,$D$101,$D$102,CONFIGURATION!$B$10,\"BMA\",CONFIGURATION!$B$1,\"bscr\",CONFIGURATION!$B$12)","v":{"$error":"#VALUE!"}},null,{"$f":"XBRLMap(#REF!,J$119&\".\"&#REF!&\".\"&$AE$8,$F$101,$F$102,CONFIGURATION!$B$10,\"BMA\",CONFIGURATION!$B$1,\"bscr\",CONFIGURATION!$B$12)","v":{"$error":"#VALUE!"}},null,null,null,null,null,null,null,null,null,null,null,null,null,"The same data point as in column H",null,"The same data point as in column J"]
[null,null,null,null,null,null,null,{"$f":"XBRLMap(#REF!,H$119&\".\"&#REF!&\".\"&$AE$8,$D$101,$D$102,CONFIGURATION!$B$10,\"BMA\",CONFIGURATION!$B$1,\"bscr\",CONFIGURATION!$B$12)","v":{"$error":"#VALUE!"}},null,{"$f":"XBRLMap(#REF!,J$119&\".\"&#REF!&\".\"&$AE$8,$F$101,$F$102,CONFIGURATION!$B$10,\"BMA\",CONFIGURATION!$B$1,\"bscr\",CONFIGURATION!$B$12)","v":{"$error":"#VALUE!"}},null,null,null,null,null,null,null,null,null,null,null,null,null,"The same data point as in column H",null,"The same data point as in column J"]
[null,null,null,null,null,null,null,{"$f":"XBRLMap(#REF!,H$119&\".\"&#REF!&\".\"&$AE$8,$D$101,$D$102,CONFIGURATION!$B$10,\"BMA\",CONFIGURATION!$B$1,\"bscr\",CONFIGURATION!$B$12)","v":{"$error":"#VALUE!"}},null,{"$f":"XBRLMap(#REF!,J$119&\".\"&#REF!&\".\"&$AE$8,$F$101,$F$102,CONFIGURATION!$B$10,\"BMA\",CONFIGURATION!$B$1,\"bscr\",CONFIGURATION!$B$12)","v":{"$error":"#VALUE!"}},null,null,null,null,null,null,null,null,null,null,null,null,null,"The same data point as in column H",null,"The same data point as in column J"]
[null,null,null,{"$f":"XBRLMap(#REF!,D$117&\".\"&$AE$8,$D$101,$D$102,CONFIGURATION!$B$10,\"BMA\",CONFIGURATION!$B$1,\"bscr\",CONFIGURATION!$B$12)","v":{"$error":"#VALUE!"}},null,{"$f":"XBRLMap(#REF!,F$117&\".\"&$AE$8,$F$101,$F$102,CONFIGURATION!$B$10,\"BMA\",CONFIGURATION!$B$1,\"bscr\",CONFIGURATION!$B$12)","v":{"$error":"#VALUE!"}},null,null,null,null,null,{"$f":"XBRLMap(#REF!,L$117&\".\"&$AE$8,$D$101,$D$102,CONFIGURATION!$B$10,\"BMA\",CONFIGURATION!$B$1,\"bscr\",CONFIGURATION!$B$12)","v":{"$error":"#VALUE!"}},null,{"$f":"XBRLMap(#REF!,N$117&\".\"&$AE$8,$F$101,$F$102,CONFIGURATION!$B$10,\"BMA\",CONFIGURATION!$B$1,\"bscr\",CONFIGURATION!$B$12)","v":{"$error":"#VALUE!"}},null,null,null,null,null,null,null,null,null,{"$f":"XBRLMap(#REF!,X$117&\".\"&$AE$8,$D$101,$D$102,CONFIGURATION!$B$10,\"BMA\",CONFIGURATION!$B$1,\"bscr\",CONFIGURATION!$B$12)","v":{"$error":"#VALUE!"}},null,{"$f":"XBRLMap(#REF!,Z$117&\".\"&$AE$8,$F$101,$F$102,CONFIGURATION!$B$10,\"BMA\",CONFIGURATION!$B$1,\"bscr\",CONFIGURATION!$B$12)","v":{"$error":"#VALUE!"}}]
[null,null,null,{"$f":"XBRLMap(#REF!,D$118&\".\"&$AE$8,$D$101,$D$102,CONFIGURATION!$B$10,\"BMA\",CONFIGURATION!$B$1,\"bscr\",CONFIGURATION!$B$12)","v":{"$error":"#VALUE!"}},null,{"$f":"XBRLMap(#REF!,F$118&\".\"&$AE$8,$F$101,$F$102,CONFIGURATION!$B$10,\"BMA\",CONFIGURATION!$B$1,\"bscr\",CONFIGURATION!$B$12)","v":{"$error":"#VALUE!"}},null,null,null,null,null,{"$f":"XBRLMap(#REF!,L$118&\".\"&$AE$8,$D$101,$D$102,CONFIGURATION!$B$10,\"BMA\",CONFIGURATION!$B$1,\"bscr\",CONFIGURATION!$B$12)","v":{"$error":"#VALUE!"}},null,{"$f":"XBRLMap(#REF!,N$118&\".\"&$AE$8,$F$101,$F$102,CONFIGURATION!$B$10,\"BMA\",CONFIGURATION!$B$1,\"bscr\",CONFIGURATION!$B$12)","v":{"$error":"#VALUE!"}},null,null,null,null,null,null,null,null,null,{"$f":"XBRLMap(#REF!,X$118&\".\"&$AE$8,$D$101,$D$102,CONFIGURATION!$B$10,\"BMA\",CONFIGURATION!$B$1,\"bscr\",CONFIGURATION!$B$12)","v":{"$error":"#VALUE!"}},null,{"$f":"XBRLMap(#REF!,Z$118&\".\"&$AE$8,$F$101,$F$102,CONFIGURATION!$B$10,\"BMA\",CONFIGURATION!$B$1,\"bscr\",CONFIGURATION!$B$12)","v":{"$error":"#VALUE!"}}]
[]
[null,null,null,{"$f":"XBRLMap(#REF!,D$119&\".\"&$AE$8,$D$101,$D$102,CONFIGURATION!$B$10,\"BMA\",CONFIGURATION!$B$1,\"bscr\",CONFIGURATION!$B$12)","v":{"$error":"#VALUE!"}},null,{"$f":"XBRLMap(#REF!,F$119&\".\"&$AE$8,$F$101,$F$102,CONFIGURATION!$B$10,\"BMA\",CONFIGURATION!$B$1,\"bscr\",CONFIGURATION!$B$12)","v":{"$error":"#VALUE!"}},null,{"$f":"XBRLMap(#REF!,H$119&\".\"&#REF!&\".\"&$AE$8,$D$101,$D$102,CONFIGURATION!$B$10,\"BMA\",CONFIGURATION!$B$1,\"bscr\",CONFIGURATION!$B$12)","v":{"$error":"#VALUE!"}},null,{"$f":"XBRLMap(#REF!,J$119&\".\"&#REF!&\".\"&$AE$8,$F$101,$F$102,CONFIGURATION!$B$10,\"BMA\",CONFIGURATION!$B$1,\"bscr\",CONFIGURATION!$B$12)","v":{"$error":"#VALUE!"}},null,{"$f":"XBRLMap(#REF!,L$119&\".\"&$AE$8,$D$101,$D$102,CONFIGURATION!$B$10,\"BMA\",CONFIGURATION!$B$1,\"bscr\",CONFIGURATION!$B$12)","v":{"$error":"#VALUE!"}},null,{"$f":"XBRLMap(#REF!,N$119&\".\"&$AE$8,$F$101,$F$102,CONFIGURATION!$B$10,\"BMA\",CONFIGURATION!$B$1,\"bscr\",CONFIGURATION!$B$12)","v":{"$error":"#VALUE!"}},null,null,null,null,null,null,null,null,null,{"$f":"XBRLMap(#REF!,X$119&\".\"&$AE$8,$D$101,$D$102,CONFIGURATION!$B$10,\"BMA\",CONFIGURATION!$B$1,\"bscr\",CONFIGURATION!$B$12)","v":{"$error":"#VALUE!"}},null,{"$f":"XBRLMap(#REF!,Z$119&\".\"&$AE$8,$F$101,$F$102,CONFIGURATION!$B$10,\"BMA\",CONFIGURATION!$B$1,\"bscr\",CONFIGURATION!$B$12)","v":{"$error":"#VALUE!"}}]
[]
[]
[null,null,null,null,null,null,null,null,null,null,null,"brrt_BondsAndDebentures",null,"brrt_BondsAndDebentures",null,"brrt_BondsAndDebentures",null,"brrt_BondsAndDebentures"]
[null,null,null,null,null,null,null,null,null,null,null,"brrt_SecurityTypeAxis_brrt_ResidentialMortgageBackedSecuritiesMember",null,"brrt_SecurityTypeAxis_brrt_ResidentialMortgageBackedSecuritiesMember",null,"brrt_SecurityTypeAxis_brrt_CommercialMortgageBackedSecuritiesAssetBackedSecuritiesMember",null,"brrt_SecurityTypeAxis_brrt_CommercialMortgageBackedSecuritiesAssetBackedSecuritiesMember"]
[null,null,null,null,null,null,null,null,null,null,null,"brrt_ClassificationAxis_brrt_OriginalClassificationMember",null,"brrt_ClassificationAxis_brrt_RevisedClassificationMember",null,"brrt_ClassificationAxis_brrt_OriginalClassificationMember",null,"brrt_ClassificationAxis_brrt_RevisedClassificationMember"]
[null,null,null,null,null,null,null,null,null,null,null,{"$f":"XBRLMap(#REF!,L$134&\".\"&#REF!&\".\"&$L$135&\".\"&$L$136&\".\"&$AE$8,$D$101,$D$102,CONFIGURATION!$B$10,\"BMA\",CONFIGURATION!$B$1,\"bscr\",CONFIGURATION!$B$12)","v":{"$error":"#VALUE!"}},null,{"$f":"XBRLMap(#REF!,N$134&\".\"&#REF!&\".\"&$N$135&\".\"&$N$136&\".\"&$AE$8,$D$101,$D$102,CONFIGURATION!$B$10,\"BMA\",CONFIGURATION!$B$1,\"bscr\",CONFIGURATION!$B$12)","v":{"$error":"#VALUE!"}},null,{"$f":"XBRLMap(#REF!,P$134&\".\"&#REF!&\".\"&$P$135&\".\"&$P$136&\".\"&$AE$8,$D$101,$D$102,CONFIGURATION!$B$10,\"BMA\",CONFIGURATION!$B$1,\"bscr\",CONFIGURATION!$B$12)","v":{"$error":"#VALUE!"}},null,{"$f":"XBRLMap(#REF!,R$134&\".\"&#REF!&\".\"&$R$135&\".\"&$R$136&\".\"&$AE$8,$D$101,$D$102,CONFIGURATION!$B$10,\"BMA\",CONFIGURATION!$B$1,\"bscr\",CONFIGURATION!$B$12)","v":{"$error":"#VALUE!"}}]
[null,null,null,null,null,null,null,null,null,null,null,{"$f":"XBRLMap(#REF!,L$134&\".\"&#REF!&\".\"&$L$135&\".\"&$L$136&\".\"&$AE$8,$D$101,$D$102,CONFIGURATION!$B$10,\"BMA\",CONFIGURATION!$B$1,\"bscr\",CONFIGURATION!$B$12)","v":{"$error":"#VALUE!"}},null,{"$f":"XBRLMap(#REF!,N$134&\".\"&#REF!&\".\"&$N$135&\".\"&$N$136&\".\"&$AE$8,$D$101,$D$102,CONFIGURATION!$B$10,\"BMA\",CONFIGURATION!$B$1,\"bscr\",CONFIGURATION!$B$12)","v":{"$error":"#VALUE!"}},null,{"$f":"XBRLMap(#REF!,P$134&\".\"&#REF!&\".\"&$P$135&\".\"&$P$136&\".\"&$AE$8,$D$101,$D$102,CONFIGURATION!$B$10,\"BMA\",CONFIGURATION!$B$1,\"bscr\",CONFIGURATION!$B$12)","v":{"$error":"#VALUE!"}},null,{"$f":"XBRLMap(#REF!,R$134&\".\"&#REF!&\".\"&$R$135&\".\"&$R$136&\".\"&$AE$8,$D$101,$D$102,CONFIGURATION!$B$10,\"BMA\",CONFIGURATION!$B$1,\"bscr\",CONFIGURATION!$B$12)","v":{"$error":"#VALUE!"}}]
[null,null,null,null,null,null,null,null,null,null,null,{"$f":"XBRLMap(#REF!,L$134&\".\"&#REF!&\".\"&$L$135&\".\"&$L$136&\".\"&$AE$8,$D$101,$D$102,CONFIGURATION!$B$10,\"BMA\",CONFIGURATION!$B$1,\"bscr\",CONFIGURATION!$B$12)","v":{"$error":"#VALUE!"}},null,{"$f":"XBRLMap(#REF!,N$134&\".\"&#REF!&\".\"&$N$135&\".\"&$N$136&\".\"&$AE$8,$D$101,$D$102,CONFIGURATION!$B$10,\"BMA\",CONFIGURATION!$B$1,\"bscr\",CONFIGURATION!$B$12)","v":{"$error":"#VALUE!"}},null,{"$f":"XBRLMap(#REF!,P$134&\".\"&#REF!&\".\"&$P$135&\".\"&$P$136&\".\"&$AE$8,$D$101,$D$102,CONFIGURATION!$B$10,\"BMA\",CONFIGURATION!$B$1,\"bscr\",CONFIGURATION!$B$12)","v":{"$error":"#VALUE!"}},null,{"$f":"XBRLMap(#REF!,R$134&\".\"&#REF!&\".\"&$R$135&\".\"&$R$136&\".\"&$AE$8,$D$101,$D$102,CONFIGURATION!$B$10,\"BMA\",CONFIGURATION!$B$1,\"bscr\",CONFIGURATION!$B$12)","v":{"$error":"#VALUE!"}}]
[null,null,null,null,null,null,null,null,null,null,null,{"$f":"XBRLMap(#REF!,L$134&\".\"&$AK96&\".\"&$L$135&\".\"&$L$136&\".\"&$AE$8,$D$101,$D$102,CONFIGURATION!$B$10,\"BMA\",CONFIGURATION!$B$1,\"bscr\",CONFIGURATION!$B$12)","v":{"$error":"#VALUE!"}},null,{"$f":"XBRLMap(#REF!,N$134&\".\"&$AK96&\".\"&$N$135&\".\"&$N$136&\".\"&$AE$8,$D$101,$D$102,CONFIGURATION!$B$10,\"BMA\",CONFIGURATION!$B$1,\"bscr\",CONFIGURATION!$B$12)","v":{"$error":"#VALUE!"}},null,{"$f":"XBRLMap(#REF!,P$134&\".\"&$AK96&\".\"&$P$135&\".\"&$P$136&\".\"&$AE$8,$D$101,$D$102,CONFIGURATION!$B$10,\"BMA\",CONFIGURATION!$B$1,\"bscr\",CONFIGURATION!$B$12)","v":{"$error":"#VALUE!"}},null,{"$f":"XBRLMap(#REF!,R$134&\".\"&$AK96&\".\"&$R$135&\".\"&$R$136&\".\"&$AE$8,$D$101,$D$102,CONFIGURATION!$B$10,\"BMA\",CONFIGURATION!$B$1,\"bscr\",CONFIGURATION!$B$12)","v":{"$error":"#VALUE!"}}]
[null,null,null,null,null,null,null,null,null,null,null,{"$f":"XBRLMap(N96,L$134&\".\"&$AK97&\".\"&$L$135&\".\"&$L$136&\".\"&$AE$8,$D$101,$D$102,CONFIGURATION!$B$10,\"BMA\",CONFIGURATION!$B$1,\"bscr\",CONFIGURATION!$B$12)","v":"Mapped"},null,{"$f":"XBRLMap(P96,N$134&\".\"&$AK97&\".\"&$N$135&\".\"&$N$136&\".\"&$AE$8,$D$101,$D$102,CONFIGURATION!$B$10,\"BMA\",CONFIGURATION!$B$1,\"bscr\",CONFIGURATION!$B$12)","v":"Mapped"},null,{"$f":"XBRLMap(R96,P$134&\".\"&$AK97&\".\"&$P$135&\".\"&$P$136&\".\"&$AE$8,$D$101,$D$102,CONFIGURATION!$B$10,\"BMA\",CONFIGURATION!$B$1,\"bscr\",CONFIGURATION!$B$12)","v":"Mapped"},null,{"$f":"XBRLMap(X96,R$134&\".\"&$AK97&\".\"&$R$135&\".\"&$R$136&\".\"&$AE$8,$D$101,$D$102,CONFIGURATION!$B$10,\"BMA\",CONFIGURATION!$B$1,\"bscr\",CONFIGURATION!$B$12)","v":"Mapped"}]
[null,null,null,null,null,null,null,null,null,null,null,{"$f":"XBRLMap(N97,L$134&\".\"&#REF!&\".\"&$L$135&\".\"&$L$136&\".\"&$AE$8,$D$101,$D$102,CONFIGURATION!$B$10,\"BMA\",CONFIGURATION!$B$1,\"bscr\",CONFIGURATION!$B$12)","v":{"$error":"#VALUE!"}},null,{"$f":"XBRLMap(P97,N$134&\".\"&#REF!&\".\"&$N$135&\".\"&$N$136&\".\"&$AE$8,$D$101,$D$102,CONFIGURATION!$B$10,\"BMA\",CONFIGURATION!$B$1,\"bscr\",CONFIGURATION!$B$12)","v":{"$error":"#VALUE!"}},null,{"$f":"XBRLMap(R97,P$134&\".\"&#REF!&\".\"&$P$135&\".\"&$P$136&\".\"&$AE$8,$D$101,$D$102,CONFIGURATION!$B$10,\"BMA\",CONFIGURATION!$B$1,\"bscr\",CONFIGURATION!$B$12)","v":{"$error":"#VALUE!"}},null,{"$f":"XBRLMap(X97,R$134&\".\"&#REF!&\".\"&$R$135&\".\"&$R$136&\".\"&$AE$8,$D$101,$D$102,CONFIGURATION!$B$10,\"BMA\",CONFIGURATION!$B$1,\"bscr\",CONFIGURATION!$B$12)","v":{"$error":"#VALUE!"}}]
[]
[null,null,null,null,null,null,null,null,null,null,null,{"$f":"XBRLMap(#REF!,L$134&\".\"&#REF!&\".\"&$L$135&\".\"&$L$136&\".\"&$AE$8,$D$101,$D$102,CONFIGURATION!$B$10,\"BMA\",CONFIGURATION!$B$1,\"bscr\",CONFIGURATION!$B$12)","v":{"$error":"#VALUE!"}},null,{"$f":"XBRLMap(#REF!,N$134&\".\"&#REF!&\".\"&$N$135&\".\"&$N$136&\".\"&$AE$8,$D$101,$D$102,CONFIGURATION!$B$10,\"BMA\",CONFIGURATION!$B$1,\"bscr\",CONFIGURATION!$B$12)","v":{"$error":"#VALUE!"}},null,{"$f":"XBRLMap(#REF!,P$134&\".\"&#REF!&\".\"&$P$135&\".\"&$P$136&\".\"&$AE$8,$D$101,$D$102,CONFIGURATION!$B$10,\"BMA\",CONFIGURATION!$B$1,\"bscr\",CONFIGURATION!$B$12)","v":{"$error":"#VALUE!"}},null,{"$f":"XBRLMap(#REF!,R$134&\".\"&#REF!&\".\"&$R$135&\".\"&$R$136&\".\"&$AE$8,$D$101,$D$102,CONFIGURATION!$B$10,\"BMA\",CONFIGURATION!$B$1,\"bscr\",CONFIGURATION!$B$12)","v":{"$error":"#VALUE!"}}]

{"sheet":"Schedule III","index":31,"n_rows":42,"n_cols":17,"rows_kept":42,"cut":false,"hidden":false,"merged":[[43,1,43,6],[8,2,8,3],[9,2,9,3],[10,2,10,3],[11,2,11,3],[12,2,12,3],[13,2,13,3],[14,2,14,3],[15,2,15,3],[16,2,16,3],[17,2,17,3],[18,2,18,3],[19,2,19,3],[20,2,20,3],[21,2,21,3],[22,2,22,3],[28,2,28,3],[29,2,29,3],[30,2,30,3],[31,2,31,3],[23,2,23,3],[24,2,24,3],[25,2,25,3],[26,2,26,3],[27,2,27,3]]}
[null,"SCHEDULE OF NET LOSS AND LOSS EXPENSE PROVISIONS BY LINE OF BUSINESS",null,null,null,null,{"$f":"HYPERLINK(\"#'Index'!A1\",\"Return to Index\")","v":"Return to Index"}]
[null,{"$f":"'Company Information'!C7","v":"Enter Company Name"}]
[null,"As at",null,{"$f":"'Company Information'!C3","v":"2019-12-31"},null,null,"SCHEDULE III"]
[null,{"$f":"\"expressed in\"& IF(CONFIGURATION!$B$12>1,\" ['\"&MID(CONFIGURATION!$B$12,2,LEN(CONFIGURATION!$B$12))&\"s]\",\"\")","v":"expressed in ['000s]"},null,{"$f":"'Form 1EBS'!C4","v":"United States Dollars"}]
[]
[null,"Schedule ",null,null,{"$f":"'Form 1EBS'!F7","v":"2019-12-31"},null,{"$f":"'Form 1EBS'!H7","v":"2018-12-31"}]
[null,"Line no. ",null,null,{"$f":"CONFIGURATION!$D$12","v":" ('000s)"},null,{"$f":"CONFIGURATION!$D$12","v":" ('000s)"},null,null,null,{"$f":"IF(E6=\"\",\"\",TEXT(DATE(YEAR(E6+1)-1,MONTH(E6+1),DAY(E6+1)),\"mm/dd/yyyy\"))","v":"01/01/2019"},{"$f":"IF(G6=\"\",\"\",TEXT(DATE(YEAR(G6+1)-1,MONTH(G6+1),DAY(G6+1)),\"mm/dd/yyyy\"))","v":"01/01/2018"}]
[null,null,null,null,null,null,null,null,null,null,{"$f":"IF(E6=\"\",\"\",TEXT(E6,\"mm/dd/yyyy\"))","v":"12/31/2019"},{"$f":"IF(G6=\"\",\"\",TEXT(G6,\"mm/dd/yyyy\"))","v":"12/31/2018"}]
[null,1,"Property Catastrophe",null,{"$f":"Import!E639","v":0},null,{"$f":"Import!G639","v":0},null,"brrt_LineOfBusinessAxis_brrt_PropertyCatastropheMember","brrt_TypeOfContractAxis_brrt_ProportionalMember",{"$f":"XBRLMap(E9,E$42&\".\"&$I9&\".\"&$J9,$K$7,$K$8,CONFIGURATION!$B$10,\"BMA\",CONFIGURATION!$B$1,\"bscr\",CONFIGURATION!$B$12)","v":"Mapped"},{"$f":"XBRLMap(G9,G$42&\".\"&$I9&\".\"&$J9,$L$7,$L$8,CONFIGURATION!$B$10,\"BMA\",CONFIGURATION!$B$1,\"bscr\",CONFIGURATION!$B$12)","v":"Mapped"},null,null,null,null,"bma_ScheduleOfNetLossAndLossExpenseProvisionsByLineOfBusinessPropertyCatastrophe"]
[null,2,"Property",null,{"$f":"Import!E640","v":0},null,{"$f":"Import!G640","v":0},null,"brrt_LineOfBusinessAxis_brrt_PropertyMember","brrt_TypeOfContractAxis_brrt_ProportionalMember",{"$f":"XBRLMap(E10,E$42&\".\"&$I10&\".\"&$J10,$K$7,$K$8,CONFIGURATION!$B$10,\"BMA\",CONFIGURATION!$B$1,\"bscr\",CONFIGURATION!$B$12)","v":"Mapped"},{"$f":"XBRLMap(G10,G$42&\".\"&$I10&\".\"&$J10,$L$7,$L$8,CONFIGURATION!$B$10,\"BMA\",CONFIGURATION!$B$1,\"bscr\",CONFIGURATION!$B$12)","v":"Mapped"},null,null,null,null,"bma_ScheduleOfNetLossAndLossExpenseProvisionsByLineOfBusinessProperty"]
[null,3,"Property Non – Proportional",null,{"$f":"Import!E641","v":0},null,{"$f":"Import!G641","v":0},null,"brrt_LineOfBusinessAxis_brrt_PropertyMember","brrt_TypeOfContractAxis_brrt_NonProportionalMember",{"$f":"XBRLMap(E11,E$42&\".\"&$I11&\".\"&$J11,$K$7,$K$8,CONFIGURATION!$B$10,\"BMA\",CONFIGURATION!$B$1,\"bscr\",CONFIGURATION!$B$12)","v":"Mapped"},{"$f":"XBRLMap(G11,G$42&\".\"&$I11&\".\"&$J11,$L$7,$L$8,CONFIGURATION!$B$10,\"BMA\",CONFIGURATION!$B$1,\"bscr\",CONFIGURATION!$B$12)","v":"Mapped"},null,null,null,null,"bma_ScheduleOfNetLossAndLossExpenseProvisionsByLineOfBusinessPropertyNonProportional"]
[null,4,"Personal Accident",null,{"$f":"Import!E642","v":0},null,{"$f":"Import!G642","v":0},null,"brrt_LineOfBusinessAxis_brrt_PersonalAccidentMember","brrt_TypeOfContractAxis_brrt_ProportionalMember",{"$f":"XBRLMap(E12,E$42&\".\"&$I12&\".\"&$J12,$K$7,$K$8,CONFIGURATION!$B$10,\"BMA\",CONFIGURATION!$B$1,\"bscr\",CONFIGURATION!$B$12)","v":"Mapped"},{"$f":"XBRLMap(G12,G$42&\".\"&$I12&\".\"&$J12,$L$7,$L$8,CONFIGURATION!$B$10,\"BMA\",CONFIGURATION!$B$1,\"bscr\",CONFIGURATION!$B$12)","v":"Mapped"},null,null,null,null,"bma_ScheduleOfNetLossAndLossExpenseProvisionsByLineOfBusinessPersonalAccident"]
[null,5,"Personal Accident Non- Proportional",null,{"$f":"Import!E643","v":0},null,{"$f":"Import!G643","v":0},null,"brrt_LineOfBusinessAxis_brrt_PersonalAccidentMember","brrt_TypeOfContractAxis_brrt_NonProportionalMember",{"$f":"XBRLMap(E13,E$42&\".\"&$I13&\".\"&$J13,$K$7,$K$8,CONFIGURATION!$B$10,\"BMA\",CONFIGURATION!$B$1,\"bscr\",CONFIGURATION!$B$12)","v":"Mapped"},{"$f":"XBRLMap(G13,G$42&\".\"&$I13&\".\"&$J13,$L$7,$L$8,CONFIGURATION!$B$10,\"BMA\",CONFIGURATION!$B$1,\"bscr\",CONFIGURATION!$B$12)","v":"Mapped"},null,null,null,null,"bma_ScheduleOfNetLossAndLossExpenseProvisionsByLineOfBusinessPersonalAccidentNonProportional"]
[null,6,"Aviation",null,{"$f":"Import!E644","v":0},null,{"$f":"Import!G644","v":0},null,"brrt_LineOfBusinessAxis_brrt_AviationMember","brrt_TypeOfContractAxis_brrt_ProportionalMember",{"$f":"XBRLMap(E14,E$42&\".\"&$I14&\".\"&$J14,$K$7,$K$8,CONFIGURATION!$B$10,\"BMA\",CONFIGURATION!$B$1,\"bscr\",CONFIGURATION!$B$12)","v":"Mapped"},{"$f":"XBRLMap(G14,G$42&\".\"&$I14&\".\"&$J14,$L$7,$L$8,CONFIGURATION!$B$10,\"BMA\",CONFIGURATION!$B$1,\"bscr\",CONFIGURATION!$B$12)","v":"Mapped"},null,null,null,null,"bma_ScheduleOfNetLossAndLossExpenseProvisionsByLineOfBusinessAviation"]
[null,7,"Aviation Non – Proportional",null,{"$f":"Import!E645","v":0},null,{"$f":"Import!G645","v":0},null,"brrt_LineOfBusinessAxis_brrt_AviationMember","brrt_TypeOfContractAxis_brrt_NonProportionalMember",{"$f":"XBRLMap(E15,E$42&\".\"&$I15&\".\"&$J15,$K$7,$K$8,CONFIGURATION!$B$10,\"BMA\",CONFIGURATION!$B$1,\"bscr\",CONFIGURATION!$B$12)","v":"Mapped"},{"$f":"XBRLMap(G15,G$42&\".\"&$I15&\".\"&$J15,$L$7,$L$8,CONFIGURATION!$B$10,\"BMA\",CONFIGURATION!$B$1,\"bscr\",CONFIGURATION!$B$12)","v":"Mapped"},null,null,null,null,"bma_ScheduleOfNetLossAndLossExpenseProvisionsByLineOfBusinessAviationNonProportional"]
[null,8,"Credit / Surety",null,{"$f":"Import!E646","v":0},null,{"$f":"Import!G646","v":0},null,"brrt_LineOfBusinessAxis_brrt_CreditSuretyMember","brrt_TypeOfContractAxis_brrt_ProportionalMember",{"$f":"XBRLMap(E16,E$42&\".\"&$I16&\".\"&$J16,$K$7,$K$8,CONFIGURATION!$B$10,\"BMA\",CONFIGURATION!$B$1,\"bscr\",CONFIGURATION!$B$12)","v":"Mapped"},{"$f":"XBRLMap(G16,G$42&\".\"&$I16&\".\"&$J16,$L$7,$L$8,CONFIGURATION!$B$10,\"BMA\",CONFIGURATION!$B$1,\"bscr\",CONFIGURATION!$B$12)","v":"Mapped"},null,null,null,null,"bma_ScheduleOfNetLossAndLossExpenseProvisionsByLineOfBusinessCreditSurety"]
[null,9,"Credit / Surety Non – Proportional",null,{"$f":"Import!E647","v":0},null,{"$f":"Import!G647","v":0},null,"brrt_LineOfBusinessAxis_brrt_CreditSuretyMember","brrt_TypeOfContractAxis_brrt_NonProportionalMember",{"$f":"XBRLMap(E17,E$42&\".\"&$I17&\".\"&$J17,$K$7,$K$8,CONFIGURATION!$B$10,\"BMA\",CONFIGURATION!$B$1,\"bscr\",CONFIGURATION!$B$12)","v":"Mapped"},{"$f":"XBRLMap(G17,G$42&\".\"&$I17&\".\"&$J17,$L$7,$L$8,CONFIGURATION!$B$10,\"BMA\",CONFIGURATION!$B$1,\"bscr\",CONFIGURATION!$B$12)","v":"Mapped"},null,null,null,null,"bma_ScheduleOfNetLossAndLossExpenseProvisionsByLineOfBusinessCreditSuretyNonProportional"]
[null,10,"Energy Offshore / Marine",null,{"$f":"Import!E648","v":0},null,{"$f":"Import!G648","v":0},null,"brrt_LineOfBusinessAxis_brrt_EnergyOffshoreMarineMember","brrt_TypeOfContractAxis_brrt_ProportionalMember",{"$f":"XBRLMap(E18,E$42&\".\"&$I18&\".\"&$J18,$K$7,$K$8,CONFIGURATION!$B$10,\"BMA\",CONFIGURATION!$B$1,\"bscr\",CONFIGURATION!$B$12)","v":"Mapped"},{"$f":"XBRLMap(G18,G$42&\".\"&$I18&\".\"&$J18,$L$7,$L$8,CONFIGURATION!$B$10,\"BMA\",CONFIGURATION!$B$1,\"bscr\",CONFIGURATION!$B$12)","v":"Mapped"},null,null,null,null,"bma_ScheduleOfNetLossAndLossExpenseProvisionsByLineOfBusinessEnergyOffshoreMarine"]
[null,11,"Energy Offshore / Marine Non - Proportional ",null,{"$f":"Import!E649","v":0},null,{"$f":"Import!G649","v":0},null,"brrt_LineOfBusinessAxis_brrt_EnergyOffshoreMarineMember","brrt_TypeOfContractAxis_brrt_NonProportionalMember",{"$f":"XBRLMap(E19,E$42&\".\"&$I19&\".\"&$J19,$K$7,$K$8,CONFIGURATION!$B$10,\"BMA\",CONFIGURATION!$B$1,\"bscr\",CONFIGURATION!$B$12)","v":"Mapped"},{"$f":"XBRLMap(G19,G$42&\".\"&$I19&\".\"&$J19,$L$7,$L$8,CONFIGURATION!$B$10,\"BMA\",CONFIGURATION!$B$1,\"bscr\",CONFIGURATION!$B$12)","v":"Mapped"},null,null,null,null,"bma_ScheduleOfNetLossAndLossExpenseProvisionsByLineOfBusinessEnergyOffshoreMarineNonProportional"]
[null,12,"US Casualty",null,{"$f":"Import!E650","v":0},null,{"$f":"Import!G650","v":0},null,"brrt_LineOfBusinessAxis_brrt_USCasualtyMember","brrt_TypeOfContractAxis_brrt_ProportionalMember",{"$f":"XBRLMap(E20,E$42&\".\"&$I20&\".\"&$J20,$K$7,$K$8,CONFIGURATION!$B$10,\"BMA\",CONFIGURATION!$B$1,\"bscr\",CONFIGURATION!$B$12)","v":"Mapped"},{"$f":"XBRLMap(G20,G$42&\".\"&$I20&\".\"&$J20,$L$7,$L$8,CONFIGURATION!$B$10,\"BMA\",CONFIGURATION!$B$1,\"bscr\",CONFIGURATION!$B$12)","v":"Mapped"},null,null,null,null,"bma_ScheduleOfNetLossAndLossExpenseProvisionsByLineOfBusinessUsCasualty"]
[null,13,"US Casualty Non - Proportional ",null,{"$f":"Import!E651","v":0},null,{"$f":"Import!G651","v":0},null,"brrt_LineOfBusinessAxis_brrt_USCasualtyMember","brrt_TypeOfContractAxis_brrt_NonProportionalMember",{"$f":"XBRLMap(E21,E$42&\".\"&$I21&\".\"&$J21,$K$7,$K$8,CONFIGURATION!$B$10,\"BMA\",CONFIGURATION!$B$1,\"bscr\",CONFIGURATION!$B$12)","v":"Mapped"},{"$f":"XBRLMap(G21,G$42&\".\"&$I21&\".\"&$J21,$L$7,$L$8,CONFIGURATION!$B$10,\"BMA\",CONFIGURATION!$B$1,\"bscr\",CONFIGURATION!$B$12)","v":"Mapped"},null,null,null,null,"bma_ScheduleOfNetLossAndLossExpenseProvisionsByLineOfBusinessUsCasualtyNonProportional"]
[null,14,"US Professional",null,{"$f":"Import!E652","v":0},null,{"$f":"Import!G652","v":0},null,"brrt_LineOfBusinessAxis_brrt_USProfessionalMember","brrt_TypeOfContractAxis_brrt_ProportionalMember",{"$f":"XBRLMap(E22,E$42&\".\"&$I22&\".\"&$J22,$K$7,$K$8,CONFIGURATION!$B$10,\"BMA\",CONFIGURATION!$B$1,\"bscr\",CONFIGURATION!$B$12)","v":"Mapped"},{"$f":"XBRLMap(G22,G$42&\".\"&$I22&\".\"&$J22,$L$7,$L$8,CONFIGURATION!$B$10,\"BMA\",CONFIGURATION!$B$1,\"bscr\",CONFIGURATION!$B$12)","v":"Mapped"},null,null,null,null,"bma_ScheduleOfNetLossAndLossExpenseProvisionsByLineOfBusinessUsProfessional"]
[null,15,"US Professional Non – Proportional",null,{"$f":"Import!E653","v":0},null,{"$f":"Import!G653","v":0},null,"brrt_LineOfBusinessAxis_brrt_USProfessionalMember","brrt_TypeOfContractAxis_brrt_NonProportionalMember",{"$f":"XBRLMap(E23,E$42&\".\"&$I23&\".\"&$J23,$K$7,$K$8,CONFIGURATION!$B$10,\"BMA\",CONFIGURATION!$B$1,\"bscr\",CONFIGURATION!$B$12)","v":"Mapped"},{"$f":"XBRLMap(G23,G$42&\".\"&$I23&\".\"&$J23,$L$7,$L$8,CONFIGURATION!$B$10,\"BMA\",CONFIGURATION!$B$1,\"bscr\",CONFIGURATION!$B$12)","v":"Mapped"},null,null,null,null,"bma_ScheduleOfNetLossAndLossExpenseProvisionsByLineOfBusinessUsProfessionalNonProportional"]
[null,16,"US Specialty",null,{"$f":"Import!E654","v":0},null,{"$f":"Import!G654","v":0},null,"brrt_LineOfBusinessAxis_brrt_USSpecialtyMember","brrt_TypeOfContractAxis_brrt_ProportionalMember",{"$f":"XBRLMap(E24,E$42&\".\"&$I24&\".\"&$J24,$K$7,$K$8,CONFIGURATION!$B$10,\"BMA\",CONFIGURATION!$B$1,\"bscr\",CONFIGURATION!$B$12)","v":"Mapped"},{"$f":"XBRLMap(G24,G$42&\".\"&$I24&\".\"&$J24,$L$7,$L$8,CONFIGURATION!$B$10,\"BMA\",CONFIGURATION!$B$1,\"bscr\",CONFIGURATION!$B$12)","v":"Mapped"},null,null,null,null,"bma_ScheduleOfNetLossAndLossExpenseProvisionsByLineOfBusinessUsSpecialty"]
[null,17,"US Specialty Non - Proportional",null,{"$f":"Import!E655","v":0},null,{"$f":"Import!G655","v":0},null,"brrt_LineOfBusinessAxis_brrt_USSpecialtyMember","brrt_TypeOfContractAxis_brrt_NonProportionalMember",{"$f":"XBRLMap(E25,E$42&\".\"&$I25&\".\"&$J25,$K$7,$K$8,CONFIGURATION!$B$10,\"BMA\",CONFIGURATION!$B$1,\"bscr\",CONFIGURATION!$B$12)","v":"Mapped"},{"$f":"XBRLMap(G25,G$42&\".\"&$I25&\".\"&$J25,$L$7,$L$8,CONFIGURATION!$B$10,\"BMA\",CONFIGURATION!$B$1,\"bscr\",CONFIGURATION!$B$12)","v":"Mapped"},null,null,null,null,"bma_ScheduleOfNetLossAndLossExpenseProvisionsByLineOfBusinessUsSpecialtyNonProportional"]
[null,18,"International Motor",null,{"$f":"Import!E656","v":0},null,{"$f":"Import!G656","v":0},null,"brrt_LineOfBusinessAxis_brrt_InternationalMotorMember","brrt_TypeOfContractAxis_brrt_ProportionalMember",{"$f":"XBRLMap(E26,E$42&\".\"&$I26&\".\"&$J26,$K$7,$K$8,CONFIGURATION!$B$10,\"BMA\",CONFIGURATION!$B$1,\"bscr\",CONFIGURATION!$B$12)","v":"Mapped"},{"$f":"XBRLMap(G26,G$42&\".\"&$I26&\".\"&$J26,$L$7,$L$8,CONFIGURATION!$B$10,\"BMA\",CONFIGURATION!$B$1,\"bscr\",CONFIGURATION!$B$12)","v":"Mapped"},null,null,null,null,"bma_ScheduleOfNetLossAndLossExpenseProvisionsByLineOfBusinessInternationalMotor"]
[null,19,"International Motor Non – Proportional",null,{"$f":"Import!E657","v":0},null,{"$f":"Import!G657","v":0},null,"brrt_LineOfBusinessAxis_brrt_InternationalMotorMember","brrt_TypeOfContractAxis_brrt_NonProportionalMember",{"$f":"XBRLMap(E27,E$42&\".\"&$I27&\".\"&$J27,$K$7,$K$8,CONFIGURATION!$B$10,\"BMA\",CONFIGURATION!$B$1,\"bscr\",CONFIGURATION!$B$12)","v":"Mapped"},{"$f":"XBRLMap(G27,G$42&\".\"&$I27&\".\"&$J27,$L$7,$L$8,CONFIGURATION!$B$10,\"BMA\",CONFIGURATION!$B$1,\"bscr\",CONFIGURATION!$B$12)","v":"Mapped"},null,null,null,null,"bma_ScheduleOfNetLossAndLossExpenseProvisionsByLineOfBusinessInternationalMotorNonProportional"]
[null,20,"International Casualty Non Motor",null,{"$f":"Import!E658","v":0},null,{"$f":"Import!G658","v":0},null,"brrt_LineOfBusinessAxis_brrt_InternationalCasualtyNonMotorMember","brrt_TypeOfContractAxis_brrt_ProportionalMember",{"$f":"XBRLMap(E28,E$42&\".\"&$I28&\".\"&$J28,$K$7,$K$8,CONFIGURATION!$B$10,\"BMA\",CONFIGURATION!$B$1,\"bscr\",CONFIGURATION!$B$12)","v":"Mapped"},{"$f":"XBRLMap(G28,G$42&\".\"&$I28&\".\"&$J28,$L$7,$L$8,CONFIGURATION!$B$10,\"BMA\",CONFIGURATION!$B$1,\"bscr\",CONFIGURATION!$B$12)","v":"Mapped"},null,null,null,null,"bma_ScheduleOfNetLossAndLossExpenseProvisionsByLineOfBusinessInternationalCasualtyNonMotor"]
[null,21,"International Casualty Non Motor Non – Proportional ",null,{"$f":"Import!E659","v":0},null,{"$f":"Import!G659","v":0},null,"brrt_LineOfBusinessAxis_brrt_InternationalCasualtyNonMotorMember","brrt_TypeOfContractAxis_brrt_NonProportionalMember",{"$f":"XBRLMap(E29,E$42&\".\"&$I29&\".\"&$J29,$K$7,$K$8,CONFIGURATION!$B$10,\"BMA\",CONFIGURATION!$B$1,\"bscr\",CONFIGURATION!$B$12)","v":"Mapped"},{"$f":"XBRLMap(G29,G$42&\".\"&$I29&\".\"&$J29,$L$7,$L$8,CONFIGURATION!$B$10,\"BMA\",CONFIGURATION!$B$1,\"bscr\",CONFIGURATION!$B$12)","v":"Mapped"},null,null,null,null,"bma_ScheduleOfNetLossAndLossExpenseProvisionsByLineOfBusinessInternationalCasualtyNonMotorNonProportional"]
[null,22,"Retro Property",null,{"$f":"Import!E660","v":0},null,{"$f":"Import!G660","v":0},null,"brrt_LineOfBusinessAxis_brrt_RetroPropertyMember","brrt_TypeOfContractAxis_brrt_ProportionalMember",{"$f":"XBRLMap(E30,E$42&\".\"&$I30&\".\"&$J30,$K$7,$K$8,CONFIGURATION!$B$10,\"BMA\",CONFIGURATION!$B$1,\"bscr\",CONFIGURATION!$B$12)","v":"Mapped"},{"$f":"XBRLMap(G30,G$42&\".\"&$I30&\".\"&$J30,$L$7,$L$8,CONFIGURATION!$B$10,\"BMA\",CONFIGURATION!$B$1,\"bscr\",CONFIGURATION!$B$12)","v":"Mapped"},null,null,null,null,"bma_ScheduleOfNetLossAndLossExpenseProvisionsByLineOfBusinessRetroProperty"]
[null,23,"Structured / Finite Reinsurance",null,{"$f":"Import!E661","v":0},null,{"$f":"Import!G661","v":0},null,"brrt_LineOfBusinessAxis_brrt_StructuredFiniteReinsuranceMember","brrt_TypeOfContractAxis_brrt_ProportionalMember",{"$f":"XBRLMap(E31,E$42&\".\"&$I31&\".\"&$J31,$K$7,$K$8,CONFIGURATION!$B$10,\"BMA\",CONFIGURATION!$B$1,\"bscr\",CONFIGURATION!$B$12)","v":"Mapped"},{"$f":"XBRLMap(G31,G$42&\".\"&$I31&\".\"&$J31,$L$7,$L$8,CONFIGURATION!$B$10,\"BMA\",CONFIGURATION!$B$1,\"bscr\",CONFIGURATION!$B$12)","v":"Mapped"},null,null,null,null,"bma_ScheduleOfNetLossAndLossExpenseProvisionsByLineOfBusinessStructuredFiniteReinsurance"]
[null,24,"Health",null,{"$f":"Import!E662","v":0},null,{"$f":"Import!G662","v":0},null,"brrt_LineOfBusinessAxis_brrt_HealthMember","brrt_TypeOfContractAxis_brrt_ProportionalMember",{"$f":"XBRLMap(E32,E$42&\".\"&$I32&\".\"&$J32,$K$7,$K$8,CONFIGURATION!$B$10,\"BMA\",CONFIGURATION!$B$1,\"bscr\",CONFIGURATION!$B$12)","v":"Mapped"},{"$f":"XBRLMap(G32,G$42&\".\"&$I32&\".\"&$J32,$L$7,$L$8,CONFIGURATION!$B$10,\"BMA\",CONFIGURATION!$B$1,\"bscr\",CONFIGURATION!$B$12)","v":"Mapped"},null,null,null,null,"bma_ScheduleOfNetLossAndLossExpenseProvisionsByLineOfBusinessHealth"]
[null,25,"Total ",null,{"$f":"SUM(E9:E32)","v":0},null,{"$f":"SUM(G9:G32)","v":0},null,"brrt_LineOfBusinessAxis_brrt_TotalMember","brrt_TypeOfContractAxis_brrt_ProportionalMember",{"$f":"XBRLMap(E33,E$42&\".\"&$I33&\".\"&$J33,$K$7,$K$8,CONFIGURATION!$B$10,\"BMA\",CONFIGURATION!$B$1,\"bscr\",CONFIGURATION!$B$12)","v":"Mapped"},{"$f":"XBRLMap(G33,G$42&\".\"&$I33&\".\"&$J33,$L$7,$L$8,CONFIGURATION!$B$10,\"BMA\",CONFIGURATION!$B$1,\"bscr\",CONFIGURATION!$B$12)","v":"Mapped"},null,null,null,null,"bma_ScheduleOfNetLossAndLossExpenseProvisionsByLineOfBusinessTotalForm1ALine17D"]
[]
[null,null,null,null,{"$f":"IF(E36=\"TRUE\",HYPERLINK(\"#'Form 1SFS'!E124\",\"TRUE\"),HYPERLINK(\"#'Form 1SFS'!E124\",\"FALSE\"))","v":"TRUE"},null,{"$f":"IF(G36=\"TRUE\",HYPERLINK(\"#'Form 1SFS'!G124\",\"TRUE\"),HYPERLINK(\"#'Form 1SFS'!G124\",\"FALSE\"))","v":"TRUE"}]
[null,null,null,null,{"$f":"IF(SUM('Form 1SFS'!$E$100,'Form 1SFS'!$I$100)=0,IF(ROUND(E33-'Form 1SFS'!M124,0)=0,\"TRUE\",\"FALSE\"),IF(ROUND(E33-'Form 1SFS'!E124,0)=0,\"TRUE\",\"FALSE\"))","v":"TRUE"},null,{"$f":"IF(SUM('Form 1SFS'!$G$100,'Form 1SFS'!$K$100)=0,IF(ROUND(G33-'Form 1SFS'!O124,0)=0,\"TRUE\",\"FALSE\"),IF(ROUND(G33-'Form 1SFS'!G124,0)=0,\"TRUE\",\"FALSE\"))","v":"TRUE"}]
[null,null,null,null,{"$f":"IF(SUM('Form 1SFS'!$E$100,'Form 1SFS'!$I$100)=0,ROUND('Form 1SFS'!M124-E33,0),ROUND('Form 1SFS'!E124-E33,0))","v":0},null,{"$f":"IF(SUM('Form 1SFS'!$G$100,'Form 1SFS'!$K$100)=0,ROUND('Form 1SFS'!O124-G33,0),ROUND('Form 1SFS'!G124-G33,0))","v":0}]
[]
[null,null,null,null,{"$f":"IF(E35=\"False\",\"Does not equal Form 1SFS Line 17(d)\",\"\")","v":""},null,{"$f":"IF(G35=\"False\",\"Does not equal Form 1SFS Line 17(d)\",\"\")","v":""}]
[]
[]
[null,null,null,null,"brrt_NetLossAndLossExpenseProvisions",null,"brrt_NetLossAndLossExpenseProvisions"]

{"sheet":"Schedule III (EBS)","index":32,"n_rows":45,"n_cols":22,"rows_kept":45,"cut":false,"hidden":false,"merged":[[46,1,46,11],[5,3,5,7],[5,9,5,11]]}
[null,"SCHEDULE OF NET LOSS AND LOSS EXPENSE PROVISIONS BY LINE OF BUSINESS",null,null,null,null,null,null,null,null,null,{"$f":"HYPERLINK(\"#'Index'!A1\",\"Return to Index\")","v":"Return to Index"}]
[null,{"$f":"'Company Information'!C7","v":"Enter Company Name"}]
[null,"As at",{"$f":"'Company Information'!C3","v":"2019-12-31"},null,null,null,null,null,null,null,null,"SCHEDULE III (EBS)"]
[null,{"$f":"\"expressed in\"& IF(CONFIGURATION!$B$12>1,\" ['\"&MID(CONFIGURATION!$B$12,2,LEN(CONFIGURATION!$B$12))&\"s]\",\"\")","v":"expressed in ['000s]"},{"$f":"'Form 1EBS'!C4","v":"United States Dollars"},"(A)",null,"(B)",null,"(C)",null,"(D)","(E)","(F)"]
[]
[null,null,null,{"$f":"'Form 1EBS'!F7","v":"2019-12-31"},null,null,null,null,null,"Supplemental Notes to General Business Provisions"]
[null,"Schedule ",null,"Gross Loss Reserves",null,"Net Loss Reserves",null,"Geo Loss Reserves",null,"Bound But Not Incepted (BBNI) Premium","Best Estimate Premium Provision In Respect of BBNI","Discount included in Best Estimate Loss and Loss Expense Provisions"]
[null,"Line no. ",null,"[ Form 1EBS, Line 17(a) ]",null,"[ Form 1EBS, Line 17(d) ]",null,"[ Schedule III(a) ]",null,"[ Form 1EBS, note Line 16(d)-(i) ]","[ Form 1EBS,note Line 16(d)-(ii) ]","[ Form 1EBS,note Line 17(d) ]",null,null,null,{"$f":"IF(F7=\"\",\"\",TEXT(DATE(YEAR(F7+1)-1,MONTH(F7+1),DAY(F7+1)),\"mm/dd/yyyy\"))","v":{"$error":"#VALUE!"}},{"$f":"IF(H7=\"\",\"\",TEXT(DATE(YEAR(H7+1)-1,MONTH(H7+1),DAY(H7+1)),\"mm/dd/yyyy\"))","v":{"$error":"#VALUE!"}}]
[null,null,null,null,null,null,null,null,null,null,null,null,null,null,null,{"$f":"IF(F7=\"\",\"\",TEXT(F7,\"mm/dd/yyyy\"))","v":"Net Loss Reserves"},{"$f":"IF(H7=\"\",\"\",TEXT(H7,\"mm/dd/yyyy\"))","v":"Geo Loss Reserves"}]
[null,1,"Property Catastrophe",{"$f":"Import!M664","v":0},null,{"$f":"Import!M688","v":0},null,{"$f":"+'Schedule IIIA (EBS)'!X10","v":0},null,{"$f":"Import!M712","v":0},{"$f":"Import!M736","v":0},{"$f":"Import!M760","v":0},null,"brrt_LineOfBusinessAxis_brrt_PropertyCatastropheMember","brrt_TypeOfContractAxis_brrt_ProportionalMember",{"$f":"XBRLMap(F10,J$45&\".\"&$N10&\".\"&$O10,$P$8,$P$9,CONFIGURATION!$B$10,\"BMA\",CONFIGURATION!$B$1,\"bscr\",CONFIGURATION!$B$12)","v":{"$error":"#VALUE!"}},{"$f":"XBRLMap(H10,L$45&\".\"&$N10&\".\"&$O10,$Q$8,$Q$9,CONFIGURATION!$B$10,\"BMA\",CONFIGURATION!$B$1,\"bscr\",CONFIGURATION!$B$12)","v":{"$error":"#VALUE!"}},null,null,null,null,"bma_ScheduleOfNetLossAndLossExpenseProvisionsByLineOfBusinessPropertyCatastrophe"]
[null,2,"Property",{"$f":"Import!M665","v":0},null,{"$f":"Import!M689","v":0},null,{"$f":"+'Schedule IIIA (EBS)'!X11","v":0},null,{"$f":"Import!M713","v":0},{"$f":"Import!M737","v":0},{"$f":"Import!M761","v":0},null,"brrt_LineOfBusinessAxis_brrt_PropertyMember","brrt_TypeOfContractAxis_brrt_ProportionalMember",{"$f":"XBRLMap(F11,J$45&\".\"&$N11&\".\"&$O11,$P$8,$P$9,CONFIGURATION!$B$10,\"BMA\",CONFIGURATION!$B$1,\"bscr\",CONFIGURATION!$B$12)","v":{"$error":"#VALUE!"}},{"$f":"XBRLMap(H11,L$45&\".\"&$N11&\".\"&$O11,$Q$8,$Q$9,CONFIGURATION!$B$10,\"BMA\",CONFIGURATION!$B$1,\"bscr\",CONFIGURATION!$B$12)","v":{"$error":"#VALUE!"}},null,null,null,null,"bma_ScheduleOfNetLossAndLossExpenseProvisionsByLineOfBusinessProperty"]
[null,3,"Property Non – Proportional",{"$f":"Import!M666","v":0},null,{"$f":"Import!M690","v":0},null,{"$f":"+'Schedule IIIA (EBS)'!X12","v":0},null,{"$f":"Import!M714","v":0},{"$f":"Import!M738","v":0},{"$f":"Import!M762","v":0},null,"brrt_LineOfBusinessAxis_brrt_PropertyMember","brrt_TypeOfContractAxis_brrt_NonProportionalMember",{"$f":"XBRLMap(F12,J$45&\".\"&$N12&\".\"&$O12,$P$8,$P$9,CONFIGURATION!$B$10,\"BMA\",CONFIGURATION!$B$1,\"bscr\",CONFIGURATION!$B$12)","v":{"$error":"#VALUE!"}},{"$f":"XBRLMap(H12,L$45&\".\"&$N12&\".\"&$O12,$Q$8,$Q$9,CONFIGURATION!$B$10,\"BMA\",CONFIGURATION!$B$1,\"bscr\",CONFIGURATION!$B$12)","v":{"$error":"#VALUE!"}},null,null,null,null,"bma_ScheduleOfNetLossAndLossExpenseProvisionsByLineOfBusinessPropertyNonProportional"]
[null,4,"Personal Accident",{"$f":"Import!M667","v":0},null,{"$f":"Import!M691","v":0},null,{"$f":"+'Schedule IIIA (EBS)'!X13","v":0},null,{"$f":"Import!M715","v":0},{"$f":"Import!M739","v":0},{"$f":"Import!M763","v":0},null,"brrt_LineOfBusinessAxis_brrt_PersonalAccidentMember","brrt_TypeOfContractAxis_brrt_ProportionalMember",{"$f":"XBRLMap(F13,J$45&\".\"&$N13&\".\"&$O13,$P$8,$P$9,CONFIGURATION!$B$10,\"BMA\",CONFIGURATION!$B$1,\"bscr\",CONFIGURATION!$B$12)","v":{"$error":"#VALUE!"}},{"$f":"XBRLMap(H13,L$45&\".\"&$N13&\".\"&$O13,$Q$8,$Q$9,CONFIGURATION!$B$10,\"BMA\",CONFIGURATION!$B$1,\"bscr\",CONFIGURATION!$B$12)","v":{"$error":"#VALUE!"}},null,null,null,null,"bma_ScheduleOfNetLossAndLossExpenseProvisionsByLineOfBusinessPersonalAccident"]
[null,5,"Personal Accident Non- Proportional",{"$f":"Import!M668","v":0},null,{"$f":"Import!M692","v":0},null,{"$f":"+'Schedule IIIA (EBS)'!X14","v":0},null,{"$f":"Import!M716","v":0},{"$f":"Import!M740","v":0},{"$f":"Import!M764","v":0},null,"brrt_LineOfBusinessAxis_brrt_PersonalAccidentMember","brrt_TypeOfContractAxis_brrt_NonProportionalMember",{"$f":"XBRLMap(F14,J$45&\".\"&$N14&\".\"&$O14,$P$8,$P$9,CONFIGURATION!$B$10,\"BMA\",CONFIGURATION!$B$1,\"bscr\",CONFIGURATION!$B$12)","v":{"$error":"#VALUE!"}},{"$f":"XBRLMap(H14,L$45&\".\"&$N14&\".\"&$O14,$Q$8,$Q$9,CONFIGURATION!$B$10,\"BMA\",CONFIGURATION!$B$1,\"bscr\",CONFIGURATION!$B$12)","v":{"$error":"#VALUE!"}},null,null,null,null,"bma_ScheduleOfNetLossAndLossExpenseProvisionsByLineOfBusinessPersonalAccidentNonProportional"]
[null,6,"Aviation",{"$f":"Import!M669","v":0},null,{"$f":"Import!M693","v":0},null,{"$f":"+'Schedule IIIA (EBS)'!X15","v":0},null,{"$f":"Import!M717","v":0},{"$f":"Import!M741","v":0},{"$f":"Import!M765","v":0},null,"brrt_LineOfBusinessAxis_brrt_AviationMember","brrt_TypeOfContractAxis_brrt_ProportionalMember",{"$f":"XBRLMap(F15,J$45&\".\"&$N15&\".\"&$O15,$P$8,$P$9,CONFIGURATION!$B$10,\"BMA\",CONFIGURATION!$B$1,\"bscr\",CONFIGURATION!$B$12)","v":{"$error":"#VALUE!"}},{"$f":"XBRLMap(H15,L$45&\".\"&$N15&\".\"&$O15,$Q$8,$Q$9,CONFIGURATION!$B$10,\"BMA\",CONFIGURATION!$B$1,\"bscr\",CONFIGURATION!$B$12)","v":{"$error":"#VALUE!"}},null,null,null,null,"bma_ScheduleOfNetLossAndLossExpenseProvisionsByLineOfBusinessAviation"]
[null,7,"Aviation Non – Proportional",{"$f":"Import!M670","v":0},null,{"$f":"Import!M694","v":0},null,{"$f":"+'Schedule IIIA (EBS)'!X16","v":0},null,{"$f":"Import!M718","v":0},{"$f":"Import!M742","v":0},{"$f":"Import!M766","v":0},null,"brrt_LineOfBusinessAxis_brrt_AviationMember","brrt_TypeOfContractAxis_brrt_NonProportionalMember",{"$f":"XBRLMap(F16,J$45&\".\"&$N16&\".\"&$O16,$P$8,$P$9,CONFIGURATION!$B$10,\"BMA\",CONFIGURATION!$B$1,\"bscr\",CONFIGURATION!$B$12)","v":{"$error":"#VALUE!"}},{"$f":"XBRLMap(H16,L$45&\".\"&$N16&\".\"&$O16,$Q$8,$Q$9,CONFIGURATION!$B$10,\"BMA\",CONFIGURATION!$B$1,\"bscr\",CONFIGURATION!$B$12)","v":{"$error":"#VALUE!"}},null,null,null,null,"bma_ScheduleOfNetLossAndLossExpenseProvisionsByLineOfBusinessAviationNonProportional"]
[null,8,"Credit / Surety ",{"$f":"Import!M671","v":0},null,{"$f":"Import!M695","v":0},null,{"$f":"+'Schedule IIIA (EBS)'!X17","v":0},null,{"$f":"Import!M719","v":0},{"$f":"Import!M743","v":0},{"$f":"Import!M767","v":0},null,"brrt_LineOfBusinessAxis_brrt_CreditSuretyMember","brrt_TypeOfContractAxis_brrt_ProportionalMember",{"$f":"XBRLMap(F17,J$45&\".\"&$N17&\".\"&$O17,$P$8,$P$9,CONFIGURATION!$B$10,\"BMA\",CONFIGURATION!$B$1,\"bscr\",CONFIGURATION!$B$12)","v":{"$error":"#VALUE!"}},{"$f":"XBRLMap(H17,L$45&\".\"&$N17&\".\"&$O17,$Q$8,$Q$9,CONFIGURATION!$B$10,\"BMA\",CONFIGURATION!$B$1,\"bscr\",CONFIGURATION!$B$12)","v":{"$error":"#VALUE!"}},null,null,null,null,"bma_ScheduleOfNetLossAndLossExpenseProvisionsByLineOfBusinessCreditSurety"]
[null,9,"Credit / Surety Non – Proportional",{"$f":"Import!M672","v":0},null,{"$f":"Import!M696","v":0},null,{"$f":"+'Schedule IIIA (EBS)'!X18","v":0},null,{"$f":"Import!M720","v":0},{"$f":"Import!M744","v":0},{"$f":"Import!M768","v":0},null,"brrt_LineOfBusinessAxis_brrt_CreditSuretyMember","brrt_TypeOfContractAxis_brrt_NonProportionalMember",{"$f":"XBRLMap(F18,J$45&\".\"&$N18&\".\"&$O18,$P$8,$P$9,CONFIGURATION!$B$10,\"BMA\",CONFIGURATION!$B$1,\"bscr\",CONFIGURATION!$B$12)","v":{"$error":"#VALUE!"}},{"$f":"XBRLMap(H18,L$45&\".\"&$N18&\".\"&$O18,$Q$8,$Q$9,CONFIGURATION!$B$10,\"BMA\",CONFIGURATION!$B$1,\"bscr\",CONFIGURATION!$B$12)","v":{"$error":"#VALUE!"}},null,null,null,null,"bma_ScheduleOfNetLossAndLossExpenseProvisionsByLineOfBusinessCreditSuretyNonProportional"]
[null,10,"Energy Offshore / Marine",{"$f":"Import!M673","v":0},null,{"$f":"Import!M697","v":0},null,{"$f":"+'Schedule IIIA (EBS)'!X19","v":0},null,{"$f":"Import!M721","v":0},{"$f":"Import!M745","v":0},{"$f":"Import!M769","v":0},null,"brrt_LineOfBusinessAxis_brrt_EnergyOffshoreMarineMember","brrt_TypeOfContractAxis_brrt_ProportionalMember",{"$f":"XBRLMap(F19,J$45&\".\"&$N19&\".\"&$O19,$P$8,$P$9,CONFIGURATION!$B$10,\"BMA\",CONFIGURATION!$B$1,\"bscr\",CONFIGURATION!$B$12)","v":{"$error":"#VALUE!"}},{"$f":"XBRLMap(H19,L$45&\".\"&$N19&\".\"&$O19,$Q$8,$Q$9,CONFIGURATION!$B$10,\"BMA\",CONFIGURATION!$B$1,\"bscr\",CONFIGURATION!$B$12)","v":{"$error":"#VALUE!"}},null,null,null,null,"bma_ScheduleOfNetLossAndLossExpenseProvisionsByLineOfBusinessEnergyOffshoreMarine"]
[null,11,"Energy Offshore / Marine Non - Proportional ",{"$f":"Import!M674","v":0},null,{"$f":"Import!M698","v":0},null,{"$f":"+'Schedule IIIA (EBS)'!X20","v":0},null,{"$f":"Import!M722","v":0},{"$f":"Import!M746","v":0},{"$f":"Import!M770","v":0},null,"brrt_LineOfBusinessAxis_brrt_EnergyOffshoreMarineMember","brrt_TypeOfContractAxis_brrt_NonProportionalMember",{"$f":"XBRLMap(F20,J$45&\".\"&$N20&\".\"&$O20,$P$8,$P$9,CONFIGURATION!$B$10,\"BMA\",CONFIGURATION!$B$1,\"bscr\",CONFIGURATION!$B$12)","v":{"$error":"#VALUE!"}},{"$f":"XBRLMap(H20,L$45&\".\"&$N20&\".\"&$O20,$Q$8,$Q$9,CONFIGURATION!$B$10,\"BMA\",CONFIGURATION!$B$1,\"bscr\",CONFIGURATION!$B$12)","v":{"$error":"#VALUE!"}},null,null,null,null,"bma_ScheduleOfNetLossAndLossExpenseProvisionsByLineOfBusinessEnergyOffshoreMarineNonProportional"]
[null,12,"US Casualty",{"$f":"Import!M675","v":0},null,{"$f":"Import!M699","v":0},null,{"$f":"+'Schedule IIIA (EBS)'!X21","v":0},null,{"$f":"Import!M723","v":0},{"$f":"Import!M747","v":0},{"$f":"Import!M771","v":0},null,"brrt_LineOfBusinessAxis_brrt_USCasualtyMember","brrt_TypeOfContractAxis_brrt_ProportionalMember",{"$f":"XBRLMap(F21,J$45&\".\"&$N21&\".\"&$O21,$P$8,$P$9,CONFIGURATION!$B$10,\"BMA\",CONFIGURATION!$B$1,\"bscr\",CONFIGURATION!$B$12)","v":{"$error":"#VALUE!"}},{"$f":"XBRLMap(H21,L$45&\".\"&$N21&\".\"&$O21,$Q$8,$Q$9,CONFIGURATION!$B$10,\"BMA\",CONFIGURATION!$B$1,\"bscr\",CONFIGURATION!$B$12)","v":{"$error":"#VALUE!"}},null,null,null,null,"bma_ScheduleOfNetLossAndLossExpenseProvisionsByLineOfBusinessUsCasualty"]
[null,13,"US Casualty Non - Proportional ",{"$f":"Import!M676","v":0},null,{"$f":"Import!M700","v":0},null,{"$f":"+'Schedule IIIA (EBS)'!X22","v":0},null,{"$f":"Import!M724","v":0},{"$f":"Import!M748","v":0},{"$f":"Import!M772","v":0},null,"brrt_LineOfBusinessAxis_brrt_USCasualtyMember","brrt_TypeOfContractAxis_brrt_NonProportionalMember",{"$f":"XBRLMap(F22,J$45&\".\"&$N22&\".\"&$O22,$P$8,$P$9,CONFIGURATION!$B$10,\"BMA\",CONFIGURATION!$B$1,\"bscr\",CONFIGURATION!$B$12)","v":{"$error":"#VALUE!"}},{"$f":"XBRLMap(H22,L$45&\".\"&$N22&\".\"&$O22,$Q$8,$Q$9,CONFIGURATION!$B$10,\"BMA\",CONFIGURATION!$B$1,\"bscr\",CONFIGURATION!$B$12)","v":{"$error":"#VALUE!"}},null,null,null,null,"bma_ScheduleOfNetLossAndLossExpenseProvisionsByLineOfBusinessUsCasualtyNonProportional"]
[null,14,"US Professional",{"$f":"Import!M677","v":0},null,{"$f":"Import!M701","v":0},null,{"$f":"+'Schedule IIIA (EBS)'!X23","v":0},null,{"$f":"Import!M725","v":0},{"$f":"Import!M749","v":0},{"$f":"Import!M773","v":0},null,"brrt_LineOfBusinessAxis_brrt_USProfessionalMember","brrt_TypeOfContractAxis_brrt_ProportionalMember",{"$f":"XBRLMap(F23,J$45&\".\"&$N23&\".\"&$O23,$P$8,$P$9,CONFIGURATION!$B$10,\"BMA\",CONFIGURATION!$B$1,\"bscr\",CONFIGURATION!$B$12)","v":{"$error":"#VALUE!"}},{"$f":"XBRLMap(H23,L$45&\".\"&$N23&\".\"&$O23,$Q$8,$Q$9,CONFIGURATION!$B$10,\"BMA\",CONFIGURATION!$B$1,\"bscr\",CONFIGURATION!$B$12)","v":{"$error":"#VALUE!"}},null,null,null,null,"bma_ScheduleOfNetLossAndLossExpenseProvisionsByLineOfBusinessUsProfessional"]
[null,15,"US Professional Non – Proportional",{"$f":"Import!M678","v":0},null,{"$f":"Import!M702","v":0},null,{"$f":"+'Schedule IIIA (EBS)'!X24","v":0},null,{"$f":"Import!M726","v":0},{"$f":"Import!M750","v":0},{"$f":"Import!M774","v":0},null,"brrt_LineOfBusinessAxis_brrt_USProfessionalMember","brrt_TypeOfContractAxis_brrt_NonProportionalMember",{"$f":"XBRLMap(F24,J$45&\".\"&$N24&\".\"&$O24,$P$8,$P$9,CONFIGURATION!$B$10,\"BMA\",CONFIGURATION!$B$1,\"bscr\",CONFIGURATION!$B$12)","v":{"$error":"#VALUE!"}},{"$f":"XBRLMap(H24,L$45&\".\"&$N24&\".\"&$O24,$Q$8,$Q$9,CONFIGURATION!$B$10,\"BMA\",CONFIGURATION!$B$1,\"bscr\",CONFIGURATION!$B$12)","v":{"$error":"#VALUE!"}},null,null,null,null,"bma_ScheduleOfNetLossAndLossExpenseProvisionsByLineOfBusinessUsProfessionalNonProportional"]
[null,16,"US Specialty ",{"$f":"Import!M679","v":0},null,{"$f":"Import!M703","v":0},null,{"$f":"+'Schedule IIIA (EBS)'!X25","v":0},null,{"$f":"Import!M727","v":0},{"$f":"Import!M751","v":0},{"$f":"Import!M775","v":0},null,"brrt_LineOfBusinessAxis_brrt_USSpecialtyMember","brrt_TypeOfContractAxis_brrt_ProportionalMember",{"$f":"XBRLMap(F25,J$45&\".\"&$N25&\".\"&$O25,$P$8,$P$9,CONFIGURATION!$B$10,\"BMA\",CONFIGURATION!$B$1,\"bscr\",CONFIGURATION!$B$12)","v":{"$error":"#VALUE!"}},{"$f":"XBRLMap(H25,L$45&\".\"&$N25&\".\"&$O25,$Q$8,$Q$9,CONFIGURATION!$B$10,\"BMA\",CONFIGURATION!$B$1,\"bscr\",CONFIGURATION!$B$12)","v":{"$error":"#VALUE!"}},null,null,null,null,"bma_ScheduleOfNetLossAndLossExpenseProvisionsByLineOfBusinessUsSpecialty"]
[null,17,"US Specialty Non - Proportional",{"$f":"Import!M680","v":0},null,{"$f":"Import!M704","v":0},null,{"$f":"+'Schedule IIIA (EBS)'!X26","v":0},null,{"$f":"Import!M728","v":0},{"$f":"Import!M752","v":0},{"$f":"Import!M776","v":0},null,"brrt_LineOfBusinessAxis_brrt_USSpecialtyMember","brrt_TypeOfContractAxis_brrt_NonProportionalMember",{"$f":"XBRLMap(F26,J$45&\".\"&$N26&\".\"&$O26,$P$8,$P$9,CONFIGURATION!$B$10,\"BMA\",CONFIGURATION!$B$1,\"bscr\",CONFIGURATION!$B$12)","v":{"$error":"#VALUE!"}},{"$f":"XBRLMap(H26,L$45&\".\"&$N26&\".\"&$O26,$Q$8,$Q$9,CONFIGURATION!$B$10,\"BMA\",CONFIGURATION!$B$1,\"bscr\",CONFIGURATION!$B$12)","v":{"$error":"#VALUE!"}},null,null,null,null,"bma_ScheduleOfNetLossAndLossExpenseProvisionsByLineOfBusinessUsSpecialtyNonProportional"]
[null,18,"International Motor ",{"$f":"Import!M681","v":0},null,{"$f":"Import!M705","v":0},null,{"$f":"+'Schedule IIIA (EBS)'!X27","v":0},null,{"$f":"Import!M729","v":0},{"$f":"Import!M753","v":0},{"$f":"Import!M777","v":0},null,"brrt_LineOfBusinessAxis_brrt_InternationalMotorMember","brrt_TypeOfContractAxis_brrt_ProportionalMember",{"$f":"XBRLMap(F27,J$45&\".\"&$N27&\".\"&$O27,$P$8,$P$9,CONFIGURATION!$B$10,\"BMA\",CONFIGURATION!$B$1,\"bscr\",CONFIGURATION!$B$12)","v":{"$error":"#VALUE!"}},{"$f":"XBRLMap(H27,L$45&\".\"&$N27&\".\"&$O27,$Q$8,$Q$9,CONFIGURATION!$B$10,\"BMA\",CONFIGURATION!$B$1,\"bscr\",CONFIGURATION!$B$12)","v":{"$error":"#VALUE!"}},null,null,null,null,"bma_ScheduleOfNetLossAndLossExpenseProvisionsByLineOfBusinessInternationalMotor"]
[null,19,"International Motor Non – Proportional",{"$f":"Import!M682","v":0},null,{"$f":"Import!M706","v":0},null,{"$f":"+'Schedule IIIA (EBS)'!X28","v":0},null,{"$f":"Import!M730","v":0},{"$f":"Import!M754","v":0},{"$f":"Import!M778","v":0},null,"brrt_LineOfBusinessAxis_brrt_InternationalMotorMember","brrt_TypeOfContractAxis_brrt_NonProportionalMember",{"$f":"XBRLMap(F28,J$45&\".\"&$N28&\".\"&$O28,$P$8,$P$9,CONFIGURATION!$B$10,\"BMA\",CONFIGURATION!$B$1,\"bscr\",CONFIGURATION!$B$12)","v":{"$error":"#VALUE!"}},{"$f":"XBRLMap(H28,L$45&\".\"&$N28&\".\"&$O28,$Q$8,$Q$9,CONFIGURATION!$B$10,\"BMA\",CONFIGURATION!$B$1,\"bscr\",CONFIGURATION!$B$12)","v":{"$error":"#VALUE!"}},null,null,null,null,"bma_ScheduleOfNetLossAndLossExpenseProvisionsByLineOfBusinessInternationalMotorNonProportional"]
[null,20,"International Casualty Non – Motor ",{"$f":"Import!M683","v":0},null,{"$f":"Import!M707","v":0},null,{"$f":"+'Schedule IIIA (EBS)'!X29","v":0},null,{"$f":"Import!M731","v":0},{"$f":"Import!M755","v":0},{"$f":"Import!M779","v":0},null,"brrt_LineOfBusinessAxis_brrt_InternationalCasualtyNonMotorMember","brrt_TypeOfContractAxis_brrt_ProportionalMember",{"$f":"XBRLMap(F29,J$45&\".\"&$N29&\".\"&$O29,$P$8,$P$9,CONFIGURATION!$B$10,\"BMA\",CONFIGURATION!$B$1,\"bscr\",CONFIGURATION!$B$12)","v":{"$error":"#VALUE!"}},{"$f":"XBRLMap(H29,L$45&\".\"&$N29&\".\"&$O29,$Q$8,$Q$9,CONFIGURATION!$B$10,\"BMA\",CONFIGURATION!$B$1,\"bscr\",CONFIGURATION!$B$12)","v":{"$error":"#VALUE!"}},null,null,null,null,"bma_ScheduleOfNetLossAndLossExpenseProvisionsByLineOfBusinessInternationalCasualtyNonMotor"]
[null,21,"International Casualty Non Motor Non – Proportional ",{"$f":"Import!M684","v":0},null,{"$f":"Import!M708","v":0},null,{"$f":"+'Schedule IIIA (EBS)'!X30","v":0},null,{"$f":"Import!M732","v":0},{"$f":"Import!M756","v":0},{"$f":"Import!M780","v":0},null,"brrt_LineOfBusinessAxis_brrt_InternationalCasualtyNonMotorMember","brrt_TypeOfContractAxis_brrt_NonProportionalMember",{"$f":"XBRLMap(F30,J$45&\".\"&$N30&\".\"&$O30,$P$8,$P$9,CONFIGURATION!$B$10,\"BMA\",CONFIGURATION!$B$1,\"bscr\",CONFIGURATION!$B$12)","v":{"$error":"#VALUE!"}},{"$f":"XBRLMap(H30,L$45&\".\"&$N30&\".\"&$O30,$Q$8,$Q$9,CONFIGURATION!$B$10,\"BMA\",CONFIGURATION!$B$1,\"bscr\",CONFIGURATION!$B$12)","v":{"$error":"#VALUE!"}},null,null,null,null,"bma_ScheduleOfNetLossAndLossExpenseProvisionsByLineOfBusinessInternationalCasualtyNonMotorNonProportional"]
[null,22,"Retro Property",{"$f":"Import!M685","v":0},null,{"$f":"Import!M709","v":0},null,{"$f":"+'Schedule IIIA (EBS)'!X31","v":0},null,{"$f":"Import!M733","v":0},{"$f":"Import!M757","v":0},{"$f":"Import!M781","v":0},null,"brrt_LineOfBusinessAxis_brrt_RetroPropertyMember","brrt_TypeOfContractAxis_brrt_ProportionalMember",{"$f":"XBRLMap(F31,J$45&\".\"&$N31&\".\"&$O31,$P$8,$P$9,CONFIGURATION!$B$10,\"BMA\",CONFIGURATION!$B$1,\"bscr\",CONFIGURATION!$B$12)","v":{"$error":"#VALUE!"}},{"$f":"XBRLMap(H31,L$45&\".\"&$N31&\".\"&$O31,$Q$8,$Q$9,CONFIGURATION!$B$10,\"BMA\",CONFIGURATION!$B$1,\"bscr\",CONFIGURATION!$B$12)","v":{"$error":"#VALUE!"}},null,null,null,null,"bma_ScheduleOfNetLossAndLossExpenseProvisionsByLineOfBusinessRetroProperty"]
[null,23,"Structured / Finite Reinsurance",{"$f":"Import!M686","v":0},null,{"$f":"Import!M710","v":0},null,{"$f":"+'Schedule IIIA (EBS)'!X32","v":0},null,{"$f":"Import!M734","v":0},{"$f":"Import!M758","v":0},{"$f":"Import!M782","v":0},null,"brrt_LineOfBusinessAxis_brrt_StructuredFiniteReinsuranceMember","brrt_TypeOfContractAxis_brrt_ProportionalMember",{"$f":"XBRLMap(F32,J$45&\".\"&$N32&\".\"&$O32,$P$8,$P$9,CONFIGURATION!$B$10,\"BMA\",CONFIGURATION!$B$1,\"bscr\",CONFIGURATION!$B$12)","v":{"$error":"#VALUE!"}},{"$f":"XBRLMap(H32,L$45&\".\"&$N32&\".\"&$O32,$Q$8,$Q$9,CONFIGURATION!$B$10,\"BMA\",CONFIGURATION!$B$1,\"bscr\",CONFIGURATION!$B$12)","v":{"$error":"#VALUE!"}},null,null,null,null,"bma_ScheduleOfNetLossAndLossExpenseProvisionsByLineOfBusinessStructuredFiniteReinsurance"]
[null,24,"Health",{"$f":"Import!M687","v":0},null,{"$f":"Import!M711","v":0},null,{"$f":"+'Schedule IIIA (EBS)'!X33","v":0},null,{"$f":"Import!M735","v":0},{"$f":"Import!M759","v":0},{"$f":"Import!M783","v":0},null,"brrt_LineOfBusinessAxis_brrt_HealthMember","brrt_TypeOfContractAxis_brrt_ProportionalMember",{"$f":"XBRLMap(F33,J$45&\".\"&$N33&\".\"&$O33,$P$8,$P$9,CONFIGURATION!$B$10,\"BMA\",CONFIGURATION!$B$1,\"bscr\",CONFIGURATION!$B$12)","v":{"$error":"#VALUE!"}},{"$f":"XBRLMap(H33,L$45&\".\"&$N33&\".\"&$O33,$Q$8,$Q$9,CONFIGURATION!$B$10,\"BMA\",CONFIGURATION!$B$1,\"bscr\",CONFIGURATION!$B$12)","v":{"$error":"#VALUE!"}},null,null,null,null,"bma_ScheduleOfNetLossAndLossExpenseProvisionsByLineOfBusinessHealth"]
[null,25,"Total ",{"$f":"SUM(D10:D33)","v":0},null,{"$f":"SUM(F10:F33)","v":0},null,{"$f":"SUM(H10:H33)","v":0},null,{"$f":"SUM(J10:J33)","v":0},{"$f":"SUM(K10:K33)","v":0},{"$f":"SUM(L10:L33)","v":0},null,"brrt_LineOfBusinessAxis_brrt_TotalMember","brrt_TypeOfContractAxis_brrt_ProportionalMember",{"$f":"XBRLMap(F34,J$45&\".\"&$N34&\".\"&$O34,$P$8,$P$9,CONFIGURATION!$B$10,\"BMA\",CONFIGURATION!$B$1,\"bscr\",CONFIGURATION!$B$12)","v":{"$error":"#VALUE!"}},{"$f":"XBRLMap(H34,L$45&\".\"&$N34&\".\"&$O34,$Q$8,$Q$9,CONFIGURATION!$B$10,\"BMA\",CONFIGURATION!$B$1,\"bscr\",CONFIGURATION!$B$12)","v":{"$error":"#VALUE!"}},null,null,null,null,"bma_ScheduleOfNetLossAndLossExpenseProvisionsByLineOfBusinessTotalForm1ALine17D"]
[]
[null,null,"Form 1EBS Check",{"$f":"+'Form 1EBS'!F108","v":0},null,{"$f":"+'Form 1EBS'!F115","v":0},null,null,null,{"$f":"+'Form 1EBS'!F212","v":0},{"$f":"+'Form 1EBS'!F213","v":0},{"$f":"+'Form 1EBS'!F214","v":0}]
[]
[null,null,null,{"$f":"IF(D39=\"TRUE\",HYPERLINK(\"#'Form 1EBS'!F108\",\"TRUE\"),HYPERLINK(\"#'Form 1EBS'!F108\",\"FALSE\"))","v":"TRUE"},null,{"$f":"IF(F39=\"TRUE\",HYPERLINK(\"#'Form 1EBS'!F115\",\"TRUE\"),HYPERLINK(\"#'Form 1EBS'!F115\",\"FALSE\"))","v":"TRUE"},null,null,null,{"$f":"IF(J39=\"TRUE\",HYPERLINK(\"#'Form 1EBS'!F212\",\"TRUE\"),HYPERLINK(\"#'Form 1EBS'!F212\",\"FALSE\"))","v":"TRUE"},{"$f":"IF(K39=\"TRUE\",HYPERLINK(\"#'Form 1EBS'!F213\",\"TRUE\"),HYPERLINK(\"#'Form 1EBS'!F213\",\"FALSE\"))","v":"TRUE"},{"$f":"IF(L39=\"TRUE\",HYPERLINK(\"#'Form 1EBS'!F214\",\"TRUE\"),HYPERLINK(\"#'Form 1EBS'!F214\",\"FALSE\"))","v":"TRUE"}]
[null,null,null,{"$f":"IF(ROUND((D34-'Form 1EBS'!F108),0)=0,\"TRUE\",\"FALSE\")","v":"TRUE"},null,{"$f":"IF(ROUND((F34-'Form 1EBS'!F115),0)=0,\"TRUE\",\"FALSE\")","v":"TRUE"},null,null,null,{"$f":"IF(ROUND((J34-+'Form 1EBS'!F212),0)=0,\"TRUE\",\"FALSE\")","v":"TRUE"},{"$f":"IF(ROUND((K34-+'Form 1EBS'!F213),0)=0,\"TRUE\",\"FALSE\")","v":"TRUE"},{"$f":"IF(ROUND((L34-+'Form 1EBS'!F214),0)=0,\"TRUE\",\"FALSE\")","v":"TRUE"}]
[null,null,null,{"$f":"ROUND('Form 1EBS'!F108-D34,0)","v":0},null,{"$f":"ROUND('Form 1EBS'!F115-F34,0)","v":0},null,null,null,{"$f":"ROUND('Form 1EBS'!F212-J34,0)","v":0},{"$f":"ROUND('Form 1EBS'!F213-K34,0)","v":0},{"$f":"ROUND('Form 1EBS'!F214-L34,0)","v":0}]
[]
[null,null,null,{"$f":"IF(D38=\"False\",\"Does not equal Form 1EBS Line 17(a)\",\"\")","v":""},null,{"$f":"IF(F38=\"False\",\"Does not equal Form 1EBS Line 17(d)\",\"\")","v":""},null,null,null,{"$f":"IF(J38=\"False\",\"Does not equal Form 1EBS Note Line 16(d)(i)\",\"\")","v":""},{"$f":"IF(K38=\"False\",\"Does not equal Form 1EBS Note Line 16(d)(ii)\",\"\")","v":""},{"$f":"IF(L38=\"False\",\"Does not equal Form 1EBS Note Line 17(d)(i)\",\"\")","v":""}]
[]
[]
[null,null,null,null,null,null,null,"brrt_NetLossAndLossExpenseProvisions",null,"brrt_NetLossAndLossExpenseProvisions",null,"brrt_NetLossAndLossExpenseProvisions"]

{"sheet":"Schedule IIIA (EBS)","index":33,"n_rows":46,"n_cols":37,"rows_kept":46,"cut":false,"hidden":false,"merged":[[42,1,42,25]]}
[null,"SCHEDULE OF GEOGRAPHIC DIVERSIFICATION OF NET LOSS AND LOSS EXPENSE PROVISIONS ",null,null,null,null,null,null,null,null,null,null,null,null,null,null,null,null,null,null,null,null,null,null,null,{"$f":"HYPERLINK(\"#'Index'!A1\",\"Return to Index\")","v":"Return to Index"}]
[null,{"$f":"'Company Information'!C7","v":"Enter Company Name"}]
[null,"As at",{"$f":"'Company Information'!C3","v":"2019-12-31"},null,null,null,null,null,null,null,null,null,null,null,null,null,null,null,null,null,null,null,null,null,null,"SCHEDULE III(a) (EBS)"]
[null,{"$f":"\"expressed in\"& IF(CONFIGURATION!$B$12>1,\" ['\"&MID(CONFIGURATION!$B$12,2,LEN(CONFIGURATION!$B$12))&\"s]\",\"\")","v":"expressed in ['000s]"},{"$f":"'Form 1EBS'!C4","v":"United States Dollars"},null,null,null,null,null,null,null,null,null,null,null,null,null,null,null,null,null,null,null,null,{"$f":"\"Confirmation that \"&B2& \" Is Taking Advantage of Geographic Diversification of Reserves\"","v":"Confirmation that Enter Company Name Is Taking Advantage of Geographic Diversification of Reserves"},null,"Yes"]
[]
[null,"Schedule ",null,null,{"$f":"HYPERLINK(\"#'Zones'!c4\",\"Zone 1\")","v":"Zone 1"},{"$f":"HYPERLINK(\"#'Zones'!c13\",\"Zone 2\")","v":"Zone 2"},{"$f":"HYPERLINK(\"#'Zones'!c18\",\"Zone 3\")","v":"Zone 3"},{"$f":"HYPERLINK(\"#'Zones'!c26\",\"Zone 4\")","v":"Zone 4"},{"$f":"HYPERLINK(\"#'Zones'!c36\",\"Zone 5\")","v":"Zone 5"},{"$f":"HYPERLINK(\"#'Zones'!c46\",\"Zone 6\")","v":"Zone 6"},{"$f":"HYPERLINK(\"#'Zones'!c57\",\"Zone 7\")","v":"Zone 7"},{"$f":"HYPERLINK(\"#'Zones'!c68\",\"Zone 8\")","v":"Zone 8"},{"$f":"HYPERLINK(\"#'Zones'!c76\",\"Zone 9\")","v":"Zone 9"},{"$f":"HYPERLINK(\"#'Zones'!c84\",\"Zone 10\")","v":"Zone 10"},{"$f":"HYPERLINK(\"#'Zones'!c90\",\"Zone 11\")","v":"Zone 11"},{"$f":"HYPERLINK(\"#'Zones'!c94\",\"Zone 12\")","v":"Zone 12"},{"$f":"HYPERLINK(\"#'Zones'!c107\",\"Zone 13\")","v":"Zone 13"},{"$f":"HYPERLINK(\"#'Zones'!c112\",\"Zone 14\")","v":"Zone 14"},{"$f":"HYPERLINK(\"#'Zones'!c116\",\"Zone 15\")","v":"Zone 15"},{"$f":"HYPERLINK(\"#'Zones'!c121\",\"Zone 16\")","v":"Zone 16"},{"$f":"HYPERLINK(\"#'Zones'!c127\",\"Zone 17\")","v":"Zone 17"},{"$f":"HYPERLINK(\"#'Zones'!c133\",\"Zone 18\")","v":"Zone 18"},null,"Geo Net Provision",null,"Net Loss Provision"]
[null,"Line no. ",null,null,{"$f":"CONFIGURATION!$D$12","v":" ('000s)"},{"$f":"CONFIGURATION!$D$12","v":" ('000s)"},{"$f":"CONFIGURATION!$D$12","v":" ('000s)"},{"$f":"CONFIGURATION!$D$12","v":" ('000s)"},{"$f":"CONFIGURATION!$D$12","v":" ('000s)"},{"$f":"CONFIGURATION!$D$12","v":" ('000s)"},{"$f":"CONFIGURATION!$D$12","v":" ('000s)"},{"$f":"CONFIGURATION!$D$12","v":" ('000s)"},{"$f":"CONFIGURATION!$D$12","v":" ('000s)"},{"$f":"CONFIGURATION!$D$12","v":" ('000s)"},{"$f":"CONFIGURATION!$D$12","v":" ('000s)"},{"$f":"CONFIGURATION!$D$12","v":" ('000s)"},{"$f":"CONFIGURATION!$D$12","v":" ('000s)"},{"$f":"CONFIGURATION!$D$12","v":" ('000s)"},{"$f":"CONFIGURATION!$D$12","v":" ('000s)"},{"$f":"CONFIGURATION!$D$12","v":" ('000s)"},{"$f":"CONFIGURATION!$D$12","v":" ('000s)"},{"$f":"CONFIGURATION!$D$12","v":" ('000s)"},null,{"$f":"CONFIGURATION!$D$12","v":" ('000s)"},null,{"$f":"CONFIGURATION!$D$12","v":" ('000s)"},null,null,null,null,{"$f":"IF(F6=\"\",\"\",TEXT(DATE(YEAR(F6+1)-1,MONTH(F6+1),DAY(F6+1)),\"mm/dd/yyyy\"))","v":{"$error":"#VALUE!"}},{"$f":"IF(Z6=\"\",\"\",TEXT(DATE(YEAR(Z6+1)-1,MONTH(Z6+1),DAY(Z6+1)),\"mm/dd/yyyy\"))","v":{"$error":"#VALUE!"}}]
[null,null,null,null,null,null,null,null,null,null,null,null,null,null,null,null,null,null,null,null,null,null,null,null,null,null,null,null,null,null,{"$f":"IF(F6=\"\",\"\",TEXT(F6,\"mm/dd/yyyy\"))","v":"Zone 2"},{"$f":"IF(Z6=\"\",\"\",TEXT(Z6,\"mm/dd/yyyy\"))","v":"Net Loss Provision"}]
[]
[null,1,"Property Catastrophe",null,{"$f":"Import!M785","v":0},{"$f":"Import!M810","v":0},{"$f":"Import!M835","v":0},{"$f":"Import!M860","v":0},{"$f":"Import!M885","v":0},{"$f":"Import!M910","v":0},{"$f":"Import!M935","v":0},{"$f":"Import!M960","v":0},{"$f":"Import!M985","v":0},{"$f":"Import!M1010","v":0},{"$f":"Import!M1035","v":0},{"$f":"Import!M1060","v":0},{"$f":"Import!M1085","v":0},{"$f":"Import!M1110","v":0},{"$f":"Import!M1135","v":0},{"$f":"Import!M1160","v":0},{"$f":"Import!M1185","v":0},{"$f":"Import!M1210","v":0},null,{"$f":"ROUND(SUM(E10:V10),0)","v":0},null,{"$f":"ROUND('Schedule III (EBS)'!F10,0)","v":0},null,{"$f":"IF($Z$4=\"Yes\",IF(X10=0,\" - \",IF(ROUND(SUM(X10-Z10),0)=0,\"TRUE\",\"FALSE\")),\"N/A\")","v":" - "},"brrt_LineOfBusinessAxis_brrt_PropertyCatastropheMember","brrt_TypeOfContractAxis_brrt_ProportionalMember",{"$f":"XBRLMap(F10,F$41&\".\"&$AC10&\".\"&$AD10,$AE$7,$AE$8,CONFIGURATION!$B$10,\"BMA\",CONFIGURATION!$B$1,\"bscr\",CONFIGURATION!$B$12)","v":{"$error":"#VALUE!"}},{"$f":"XBRLMap(Z10,Z$41&\".\"&$AC10&\".\"&$AD10,$AF$7,$AF$8,CONFIGURATION!$B$10,\"BMA\",CONFIGURATION!$B$1,\"bscr\",CONFIGURATION!$B$12)","v":{"$error":"#VALUE!"}},null,null,null,null,"bma_ScheduleOfNetLossAndLossExpenseProvisionsByLineOfBusinessPropertyCatastrophe"]
[null,2,"Property",null,{"$f":"Import!M786","v":0},{"$f":"Import!M811","v":0},{"$f":"Import!M836","v":0},{"$f":"Import!M861","v":0},{"$f":"Import!M886","v":0},{"$f":"Import!M911","v":0},{"$f":"Import!M936","v":0},{"$f":"Import!M961","v":0},{"$f":"Import!M986","v":0},{"$f":"Import!M1011","v":0},{"$f":"Import!M1036","v":0},{"$f":"Import!M1061","v":0},{"$f":"Import!M1086","v":0},{"$f":"Import!M1111","v":0},{"$f":"Import!M1136","v":0},{"$f":"Import!M1161","v":0},{"$f":"Import!M1186","v":0},{"$f":"Import!M1211","v":0},null,{"$f":"ROUND(SUM(E11:V11),0)","v":0},null,{"$f":"ROUND('Schedule III (EBS)'!F11,0)","v":0},null,{"$f":"IF($Z$4=\"Yes\",IF(X11=0,\" - \",IF(ROUND(SUM(X11-Z11),0)=0,\"TRUE\",\"FALSE\")),\"N/A\")","v":" - "},"brrt_LineOfBusinessAxis_brrt_PropertyMember","brrt_TypeOfContractAxis_brrt_ProportionalMember",{"$f":"XBRLMap(F11,F$41&\".\"&$AC11&\".\"&$AD11,$AE$7,$AE$8,CONFIGURATION!$B$10,\"BMA\",CONFIGURATION!$B$1,\"bscr\",CONFIGURATION!$B$12)","v":{"$error":"#VALUE!"}},{"$f":"XBRLMap(Z11,Z$41&\".\"&$AC11&\".\"&$AD11,$AF$7,$AF$8,CONFIGURATION!$B$10,\"BMA\",CONFIGURATION!$B$1,\"bscr\",CONFIGURATION!$B$12)","v":{"$error":"#VALUE!"}},null,null,null,null,"bma_ScheduleOfNetLossAndLossExpenseProvisionsByLineOfBusinessProperty"]
[null,3,"Property Non – Proportional",null,{"$f":"Import!M787","v":0},{"$f":"Import!M812","v":0},{"$f":"Import!M837","v":0},{"$f":"Import!M862","v":0},{"$f":"Import!M887","v":0},{"$f":"Import!M912","v":0},{"$f":"Import!M937","v":0},{"$f":"Import!M962","v":0},{"$f":"Import!M987","v":0},{"$f":"Import!M1012","v":0},{"$f":"Import!M1037","v":0},{"$f":"Import!M1062","v":0},{"$f":"Import!M1087","v":0},{"$f":"Import!M1112","v":0},{"$f":"Import!M1137","v":0},{"$f":"Import!M1162","v":0},{"$f":"Import!M1187","v":0},{"$f":"Import!M1212","v":0},null,0,null,{"$f":"ROUND('Schedule III (EBS)'!F12,0)","v":0},null," - ","brrt_LineOfBusinessAxis_brrt_PropertyMember","brrt_TypeOfContractAxis_brrt_NonProportionalMember",{"$f":"XBRLMap(F12,F$41&\".\"&$AC12&\".\"&$AD12,$AE$7,$AE$8,CONFIGURATION!$B$10,\"BMA\",CONFIGURATION!$B$1,\"bscr\",CONFIGURATION!$B$12)","v":{"$error":"#VALUE!"}},{"$f":"XBRLMap(Z12,Z$41&\".\"&$AC12&\".\"&$AD12,$AF$7,$AF$8,CONFIGURATION!$B$10,\"BMA\",CONFIGURATION!$B$1,\"bscr\",CONFIGURATION!$B$12)","v":{"$error":"#VALUE!"}},null,null,null,null,"bma_ScheduleOfNetLossAndLossExpenseProvisionsByLineOfBusinessPropertyNonProportional"]
[null,4,"Personal Accident",null,{"$f":"Import!M788","v":0},{"$f":"Import!M813","v":0},{"$f":"Import!M838","v":0},{"$f":"Import!M863","v":0},{"$f":"Import!M888","v":0},{"$f":"Import!M913","v":0},{"$f":"Import!M938","v":0},{"$f":"Import!M963","v":0},{"$f":"Import!M988","v":0},{"$f":"Import!M1013","v":0},{"$f":"Import!M1038","v":0},{"$f":"Import!M1063","v":0},{"$f":"Import!M1088","v":0},{"$f":"Import!M1113","v":0},{"$f":"Import!M1138","v":0},{"$f":"Import!M1163","v":0},{"$f":"Import!M1188","v":0},{"$f":"Import!M1213","v":0},null,0,null,{"$f":"ROUND('Schedule III (EBS)'!F13,0)","v":0},null," - ","brrt_LineOfBusinessAxis_brrt_PersonalAccidentMember","brrt_TypeOfContractAxis_brrt_ProportionalMember",{"$f":"XBRLMap(F13,F$41&\".\"&$AC13&\".\"&$AD13,$AE$7,$AE$8,CONFIGURATION!$B$10,\"BMA\",CONFIGURATION!$B$1,\"bscr\",CONFIGURATION!$B$12)","v":{"$error":"#VALUE!"}},{"$f":"XBRLMap(Z13,Z$41&\".\"&$AC13&\".\"&$AD13,$AF$7,$AF$8,CONFIGURATION!$B$10,\"BMA\",CONFIGURATION!$B$1,\"bscr\",CONFIGURATION!$B$12)","v":{"$error":"#VALUE!"}},null,null,null,null,"bma_ScheduleOfNetLossAndLossExpenseProvisionsByLineOfBusinessPersonalAccident"]
[null,5,"Personal Accident Non- Proportional",null,{"$f":"Import!M789","v":0},{"$f":"Import!M814","v":0},{"$f":"Import!M839","v":0},{"$f":"Import!M864","v":0},{"$f":"Import!M889","v":0},{"$f":"Import!M914","v":0},{"$f":"Import!M939","v":0},{"$f":"Import!M964","v":0},{"$f":"Import!M989","v":0},{"$f":"Import!M1014","v":0},{"$f":"Import!M1039","v":0},{"$f":"Import!M1064","v":0},{"$f":"Import!M1089","v":0},{"$f":"Import!M1114","v":0},{"$f":"Import!M1139","v":0},{"$f":"Import!M1164","v":0},{"$f":"Import!M1189","v":0},{"$f":"Import!M1214","v":0},null,0,null,{"$f":"ROUND('Schedule III (EBS)'!F14,0)","v":0},null," - ","brrt_LineOfBusinessAxis_brrt_PersonalAccidentMember","brrt_TypeOfContractAxis_brrt_NonProportionalMember",{"$f":"XBRLMap(F14,F$41&\".\"&$AC14&\".\"&$AD14,$AE$7,$AE$8,CONFIGURATION!$B$10,\"BMA\",CONFIGURATION!$B$1,\"bscr\",CONFIGURATION!$B$12)","v":{"$error":"#VALUE!"}},{"$f":"XBRLMap(Z14,Z$41&\".\"&$AC14&\".\"&$AD14,$AF$7,$AF$8,CONFIGURATION!$B$10,\"BMA\",CONFIGURATION!$B$1,\"bscr\",CONFIGURATION!$B$12)","v":{"$error":"#VALUE!"}},null,null,null,null,"bma_ScheduleOfNetLossAndLossExpenseProvisionsByLineOfBusinessPersonalAccidentNonProportional"]
[null,6,"Aviation",null,{"$f":"Import!M790","v":0},{"$f":"Import!M815","v":0},{"$f":"Import!M840","v":0},{"$f":"Import!M865","v":0},{"$f":"Import!M890","v":0},{"$f":"Import!M915","v":0},{"$f":"Import!M940","v":0},{"$f":"Import!M965","v":0},{"$f":"Import!M990","v":0},{"$f":"Import!M1015","v":0},{"$f":"Import!M1040","v":0},{"$f":"Import!M1065","v":0},{"$f":"Import!M1090","v":0},{"$f":"Import!M1115","v":0},{"$f":"Import!M1140","v":0},{"$f":"Import!M1165","v":0},{"$f":"Import!M1190","v":0},{"$f":"Import!M1215","v":0},null,0,null,{"$f":"ROUND('Schedule III (EBS)'!F15,0)","v":0},null," - ","brrt_LineOfBusinessAxis_brrt_AviationMember","brrt_TypeOfContractAxis_brrt_ProportionalMember",{"$f":"XBRLMap(F15,F$41&\".\"&$AC15&\".\"&$AD15,$AE$7,$AE$8,CONFIGURATION!$B$10,\"BMA\",CONFIGURATION!$B$1,\"bscr\",CONFIGURATION!$B$12)","v":{"$error":"#VALUE!"}},{"$f":"XBRLMap(Z15,Z$41&\".\"&$AC15&\".\"&$AD15,$AF$7,$AF$8,CONFIGURATION!$B$10,\"BMA\",CONFIGURATION!$B$1,\"bscr\",CONFIGURATION!$B$12)","v":{"$error":"#VALUE!"}},null,null,null,null,"bma_ScheduleOfNetLossAndLossExpenseProvisionsByLineOfBusinessAviation"]
[null,7,"Aviation Non – Proportional",null,{"$f":"Import!M791","v":0},{"$f":"Import!M816","v":0},{"$f":"Import!M841","v":0},{"$f":"Import!M866","v":0},{"$f":"Import!M891","v":0},{"$f":"Import!M916","v":0},{"$f":"Import!M941","v":0},{"$f":"Import!M966","v":0},{"$f":"Import!M991","v":0},{"$f":"Import!M1016","v":0},{"$f":"Import!M1041","v":0},{"$f":"Import!M1066","v":0},{"$f":"Import!M1091","v":0},{"$f":"Import!M1116","v":0},{"$f":"Import!M1141","v":0},{"$f":"Import!M1166","v":0},{"$f":"Import!M1191","v":0},{"$f":"Import!M1216","v":0},null,0,null,{"$f":"ROUND('Schedule III (EBS)'!F16,0)","v":0},null," - ","brrt_LineOfBusinessAxis_brrt_AviationMember","brrt_TypeOfContractAxis_brrt_NonProportionalMember",{"$f":"XBRLMap(F16,F$41&\".\"&$AC16&\".\"&$AD16,$AE$7,$AE$8,CONFIGURATION!$B$10,\"BMA\",CONFIGURATION!$B$1,\"bscr\",CONFIGURATION!$B$12)","v":{"$error":"#VALUE!"}},{"$f":"XBRLMap(Z16,Z$41&\".\"&$AC16&\".\"&$AD16,$AF$7,$AF$8,CONFIGURATION!$B$10,\"BMA\",CONFIGURATION!$B$1,\"bscr\",CONFIGURATION!$B$12)","v":{"$error":"#VALUE!"}},null,null,null,null,"bma_ScheduleOfNetLossAndLossExpenseProvisionsByLineOfBusinessAviationNonProportional"]
[null,8,"Credit / Surety ",null,{"$f":"Import!M792","v":0},{"$f":"Import!M817","v":0},{"$f":"Import!M842","v":0},{"$f":"Import!M867","v":0},{"$f":"Import!M892","v":0},{"$f":"Import!M917","v":0},{"$f":"Import!M942","v":0},{"$f":"Import!M967","v":0},{"$f":"Import!M992","v":0},{"$f":"Import!M1017","v":0},{"$f":"Import!M1042","v":0},{"$f":"Import!M1067","v":0},{"$f":"Import!M1092","v":0},{"$f":"Import!M1117","v":0},{"$f":"Import!M1142","v":0},{"$f":"Import!M1167","v":0},{"$f":"Import!M1192","v":0},{"$f":"Import!M1217","v":0},null,0,null,{"$f":"ROUND('Schedule III (EBS)'!F17,0)","v":0},null," - ","brrt_LineOfBusinessAxis_brrt_CreditSuretyMember","brrt_TypeOfContractAxis_brrt_ProportionalMember",{"$f":"XBRLMap(F17,F$41&\".\"&$AC17&\".\"&$AD17,$AE$7,$AE$8,CONFIGURATION!$B$10,\"BMA\",CONFIGURATION!$B$1,\"bscr\",CONFIGURATION!$B$12)","v":{"$error":"#VALUE!"}},{"$f":"XBRLMap(Z17,Z$41&\".\"&$AC17&\".\"&$AD17,$AF$7,$AF$8,CONFIGURATION!$B$10,\"BMA\",CONFIGURATION!$B$1,\"bscr\",CONFIGURATION!$B$12)","v":{"$error":"#VALUE!"}},null,null,null,null,"bma_ScheduleOfNetLossAndLossExpenseProvisionsByLineOfBusinessCreditSurety"]
[null,9,"Credit / Surety Non – Proportional",null,{"$f":"Import!M793","v":0},{"$f":"Import!M818","v":0},{"$f":"Import!M843","v":0},{"$f":"Import!M868","v":0},{"$f":"Import!M893","v":0},{"$f":"Import!M918","v":0},{"$f":"Import!M943","v":0},{"$f":"Import!M968","v":0},{"$f":"Import!M993","v":0},{"$f":"Import!M1018","v":0},{"$f":"Import!M1043","v":0},{"$f":"Import!M1068","v":0},{"$f":"Import!M1093","v":0},{"$f":"Import!M1118","v":0},{"$f":"Import!M1143","v":0},{"$f":"Import!M1168","v":0},{"$f":"Import!M1193","v":0},{"$f":"Import!M1218","v":0},null,0,null,{"$f":"ROUND('Schedule III (EBS)'!F18,0)","v":0},null," - ","brrt_LineOfBusinessAxis_brrt_CreditSuretyMember","brrt_TypeOfContractAxis_brrt_NonProportionalMember",{"$f":"XBRLMap(F18,F$41&\".\"&$AC18&\".\"&$AD18,$AE$7,$AE$8,CONFIGURATION!$B$10,\"BMA\",CONFIGURATION!$B$1,\"bscr\",CONFIGURATION!$B$12)","v":{"$error":"#VALUE!"}},{"$f":"XBRLMap(Z18,Z$41&\".\"&$AC18&\".\"&$AD18,$AF$7,$AF$8,CONFIGURATION!$B$10,\"BMA\",CONFIGURATION!$B$1,\"bscr\",CONFIGURATION!$B$12)","v":{"$error":"#VALUE!"}},null,null,null,null,"bma_ScheduleOfNetLossAndLossExpenseProvisionsByLineOfBusinessCreditSuretyNonProportional"]
[null,10,"Energy Offshore / Marine",null,{"$f":"Import!M794","v":0},{"$f":"Import!M819","v":0},{"$f":"Import!M844","v":0},{"$f":"Import!M869","v":0},{"$f":"Import!M894","v":0},{"$f":"Import!M919","v":0},{"$f":"Import!M944","v":0},{"$f":"Import!M969","v":0},{"$f":"Import!M994","v":0},{"$f":"Import!M1019","v":0},{"$f":"Import!M1044","v":0},{"$f":"Import!M1069","v":0},{"$f":"Import!M1094","v":0},{"$f":"Import!M1119","v":0},{"$f":"Import!M1144","v":0},{"$f":"Import!M1169","v":0},{"$f":"Import!M1194","v":0},{"$f":"Import!M1219","v":0},null,0,null,{"$f":"ROUND('Schedule III (EBS)'!F19,0)","v":0},null," - ","brrt_LineOfBusinessAxis_brrt_EnergyOffshoreMarineMember","brrt_TypeOfContractAxis_brrt_ProportionalMember",{"$f":"XBRLMap(F19,F$41&\".\"&$AC19&\".\"&$AD19,$AE$7,$AE$8,CONFIGURATION!$B$10,\"BMA\",CONFIGURATION!$B$1,\"bscr\",CONFIGURATION!$B$12)","v":{"$error":"#VALUE!"}},{"$f":"XBRLMap(Z19,Z$41&\".\"&$AC19&\".\"&$AD19,$AF$7,$AF$8,CONFIGURATION!$B$10,\"BMA\",CONFIGURATION!$B$1,\"bscr\",CONFIGURATION!$B$12)","v":{"$error":"#VALUE!"}},null,null,null,null,"bma_ScheduleOfNetLossAndLossExpenseProvisionsByLineOfBusinessEnergyOffshoreMarine"]
[null,11,"Energy Offshore / Marine Non - Proportional ",null,{"$f":"Import!M795","v":0},{"$f":"Import!M820","v":0},{"$f":"Import!M845","v":0},{"$f":"Import!M870","v":0},{"$f":"Import!M895","v":0},{"$f":"Import!M920","v":0},{"$f":"Import!M945","v":0},{"$f":"Import!M970","v":0},{"$f":"Import!M995","v":0},{"$f":"Import!M1020","v":0},{"$f":"Import!M1045","v":0},{"$f":"Import!M1070","v":0},{"$f":"Import!M1095","v":0},{"$f":"Import!M1120","v":0},{"$f":"Import!M1145","v":0},{"$f":"Import!M1170","v":0},{"$f":"Import!M1195","v":0},{"$f":"Import!M1220","v":0},null,0,null,{"$f":"ROUND('Schedule III (EBS)'!F20,0)","v":0},null," - ","brrt_LineOfBusinessAxis_brrt_EnergyOffshoreMarineMember","brrt_TypeOfContractAxis_brrt_NonProportionalMember",{"$f":"XBRLMap(F20,F$41&\".\"&$AC20&\".\"&$AD20,$AE$7,$AE$8,CONFIGURATION!$B$10,\"BMA\",CONFIGURATION!$B$1,\"bscr\",CONFIGURATION!$B$12)","v":{"$error":"#VALUE!"}},{"$f":"XBRLMap(Z20,Z$41&\".\"&$AC20&\".\"&$AD20,$AF$7,$AF$8,CONFIGURATION!$B$10,\"BMA\",CONFIGURATION!$B$1,\"bscr\",CONFIGURATION!$B$12)","v":{"$error":"#VALUE!"}},null,null,null,null,"bma_ScheduleOfNetLossAndLossExpenseProvisionsByLineOfBusinessEnergyOffshoreMarineNonProportional"]
[null,12,"US Casualty",null,{"$f":"Import!M796","v":0},{"$f":"Import!M821","v":0},{"$f":"Import!M846","v":0},{"$f":"Import!M871","v":0},{"$f":"Import!M896","v":0},{"$f":"Import!M921","v":0},{"$f":"Import!M946","v":0},{"$f":"Import!M971","v":0},{"$f":"Import!M996","v":0},{"$f":"Import!M1021","v":0},{"$f":"Import!M1046","v":0},{"$f":"Import!M1071","v":0},{"$f":"Import!M1096","v":0},{"$f":"Import!M1121","v":0},{"$f":"Import!M1146","v":0},{"$f":"Import!M1171","v":0},{"$f":"Import!M1196","v":0},{"$f":"Import!M1221","v":0},null,0,null,{"$f":"ROUND('Schedule III (EBS)'!F21,0)","v":0},null," - ","brrt_LineOfBusinessAxis_brrt_USCasualtyMember","brrt_TypeOfContractAxis_brrt_ProportionalMember",{"$f":"XBRLMap(F21,F$41&\".\"&$AC21&\".\"&$AD21,$AE$7,$AE$8,CONFIGURATION!$B$10,\"BMA\",CONFIGURATION!$B$1,\"bscr\",CONFIGURATION!$B$12)","v":{"$error":"#VALUE!"}},{"$f":"XBRLMap(Z21,Z$41&\".\"&$AC21&\".\"&$AD21,$AF$7,$AF$8,CONFIGURATION!$B$10,\"BMA\",CONFIGURATION!$B$1,\"bscr\",CONFIGURATION!$B$12)","v":{"$error":"#VALUE!"}},null,null,null,null,"bma_ScheduleOfNetLossAndLossExpenseProvisionsByLineOfBusinessUsCasualty"]
[null,13,"US Casualty Non - Proportional ",null,{"$f":"Import!M797","v":0},{"$f":"Import!M822","v":0},{"$f":"Import!M847","v":0},{"$f":"Import!M872","v":0},{"$f":"Import!M897","v":0},{"$f":"Import!M922","v":0},{"$f":"Import!M947","v":0},{"$f":"Import!M972","v":0},{"$f":"Import!M997","v":0},{"$f":"Import!M1022","v":0},{"$f":"Import!M1047","v":0},{"$f":"Import!M1072","v":0},{"$f":"Import!M1097","v":0},{"$f":"Import!M1122","v":0},{"$f":"Import!M1147","v":0},{"$f":"Import!M1172","v":0},{"$f":"Import!M1197","v":0},{"$f":"Import!M1222","v":0},null,0,null,{"$f":"ROUND('Schedule III (EBS)'!F22,0)","v":0},null," - ","brrt_LineOfBusinessAxis_brrt_USCasualtyMember","brrt_TypeOfContractAxis_brrt_NonProportionalMember",{"$f":"XBRLMap(F22,F$41&\".\"&$AC22&\".\"&$AD22,$AE$7,$AE$8,CONFIGURATION!$B$10,\"BMA\",CONFIGURATION!$B$1,\"bscr\",CONFIGURATION!$B$12)","v":{"$error":"#VALUE!"}},{"$f":"XBRLMap(Z22,Z$41&\".\"&$AC22&\".\"&$AD22,$AF$7,$AF$8,CONFIGURATION!$B$10,\"BMA\",CONFIGURATION!$B$1,\"bscr\",CONFIGURATION!$B$12)","v":{"$error":"#VALUE!"}},null,null,null,null,"bma_ScheduleOfNetLossAndLossExpenseProvisionsByLineOfBusinessUsCasualtyNonProportional"]
[null,14,"US Professional",null,{"$f":"Import!M798","v":0},{"$f":"Import!M823","v":0},{"$f":"Import!M848","v":0},{"$f":"Import!M873","v":0},{"$f":"Import!M898","v":0},{"$f":"Import!M923","v":0},{"$f":"Import!M948","v":0},{"$f":"Import!M973","v":0},{"$f":"Import!M998","v":0},{"$f":"Import!M1023","v":0},{"$f":"Import!M1048","v":0},{"$f":"Import!M1073","v":0},{"$f":"Import!M1098","v":0},{"$f":"Import!M1123","v":0},{"$f":"Import!M1148","v":0},{"$f":"Import!M1173","v":0},{"$f":"Import!M1198","v":0},{"$f":"Import!M1223","v":0},null,0,null,{"$f":"ROUND('Schedule III (EBS)'!F23,0)","v":0},null," - ","brrt_LineOfBusinessAxis_brrt_USProfessionalMember","brrt_TypeOfContractAxis_brrt_ProportionalMember",{"$f":"XBRLMap(F23,F$41&\".\"&$AC23&\".\"&$AD23,$AE$7,$AE$8,CONFIGURATION!$B$10,\"BMA\",CONFIGURATION!$B$1,\"bscr\",CONFIGURATION!$B$12)","v":{"$error":"#VALUE!"}},{"$f":"XBRLMap(Z23,Z$41&\".\"&$AC23&\".\"&$AD23,$AF$7,$AF$8,CONFIGURATION!$B$10,\"BMA\",CONFIGURATION!$B$1,\"bscr\",CONFIGURATION!$B$12)","v":{"$error":"#VALUE!"}},null,null,null,null,"bma_ScheduleOfNetLossAndLossExpenseProvisionsByLineOfBusinessUsProfessional"]
[null,15,"US Professional Non – Proportional",null,{"$f":"Import!M799","v":0},{"$f":"Import!M824","v":0},{"$f":"Import!M849","v":0},{"$f":"Import!M874","v":0},{"$f":"Import!M899","v":0},{"$f":"Import!M924","v":0},{"$f":"Import!M949","v":0},{"$f":"Import!M974","v":0},{"$f":"Import!M999","v":0},{"$f":"Import!M1024","v":0},{"$f":"Import!M1049","v":0},{"$f":"Import!M1074","v":0},{"$f":"Import!M1099","v":0},{"$f":"Import!M1124","v":0},{"$f":"Import!M1149","v":0},{"$f":"Import!M1174","v":0},{"$f":"Import!M1199","v":0},{"$f":"Import!M1224","v":0},null,0,null,{"$f":"ROUND('Schedule III (EBS)'!F24,0)","v":0},null," - ","brrt_LineOfBusinessAxis_brrt_USProfessionalMember","brrt_TypeOfContractAxis_brrt_NonProportionalMember",{"$f":"XBRLMap(F24,F$41&\".\"&$AC24&\".\"&$AD24,$AE$7,$AE$8,CONFIGURATION!$B$10,\"BMA\",CONFIGURATION!$B$1,\"bscr\",CONFIGURATION!$B$12)","v":{"$error":"#VALUE!"}},{"$f":"XBRLMap(Z24,Z$41&\".\"&$AC24&\".\"&$AD24,$AF$7,$AF$8,CONFIGURATION!$B$10,\"BMA\",CONFIGURATION!$B$1,\"bscr\",CONFIGURATION!$B$12)","v":{"$error":"#VALUE!"}},null,null,null,null,"bma_ScheduleOfNetLossAndLossExpenseProvisionsByLineOfBusinessUsProfessionalNonProportional"]
[null,16,"US Specialty ",null,{"$f":"Import!M800","v":0},{"$f":"Import!M825","v":0},{"$f":"Import!M850","v":0},{"$f":"Import!M875","v":0},{"$f":"Import!M900","v":0},{"$f":"Import!M925","v":0},{"$f":"Import!M950","v":0},{"$f":"Import!M975","v":0},{"$f":"Import!M1000","v":0},{"$f":"Import!M1025","v":0},{"$f":"Import!M1050","v":0},{"$f":"Import!M1075","v":0},{"$f":"Import!M1100","v":0},{"$f":"Import!M1125","v":0},{"$f":"Import!M1150","v":0},{"$f":"Import!M1175","v":0},{"$f":"Import!M1200","v":0},{"$f":"Import!M1225","v":0},null,0,null,{"$f":"ROUND('Schedule III (EBS)'!F25,0)","v":0},null," - ","brrt_LineOfBusinessAxis_brrt_USSpecialtyMember","brrt_TypeOfContractAxis_brrt_ProportionalMember",{"$f":"XBRLMap(F25,F$41&\".\"&$AC25&\".\"&$AD25,$AE$7,$AE$8,CONFIGURATION!$B$10,\"BMA\",CONFIGURATION!$B$1,\"bscr\",CONFIGURATION!$B$12)","v":{"$error":"#VALUE!"}},{"$f":"XBRLMap(Z25,Z$41&\".\"&$AC25&\".\"&$AD25,$AF$7,$AF$8,CONFIGURATION!$B$10,\"BMA\",CONFIGURATION!$B$1,\"bscr\",CONFIGURATION!$B$12)","v":{"$error":"#VALUE!"}},null,null,null,null,"bma_ScheduleOfNetLossAndLossExpenseProvisionsByLineOfBusinessUsSpecialty"]
[null,17,"US Specialty Non - Proportional",null,{"$f":"Import!M801","v":0},{"$f":"Import!M826","v":0},{"$f":"Import!M851","v":0},{"$f":"Import!M876","v":0},{"$f":"Import!M901","v":0},{"$f":"Import!M926","v":0},{"$f":"Import!M951","v":0},{"$f":"Import!M976","v":0},{"$f":"Import!M1001","v":0},{"$f":"Import!M1026","v":0},{"$f":"Import!M1051","v":0},{"$f":"Import!M1076","v":0},{"$f":"Import!M1101","v":0},{"$f":"Import!M1126","v":0},{"$f":"Import!M1151","v":0},{"$f":"Import!M1176","v":0},{"$f":"Import!M1201","v":0},{"$f":"Import!M1226","v":0},null,0,null,{"$f":"ROUND('Schedule III (EBS)'!F26,0)","v":0},null," - ","brrt_LineOfBusinessAxis_brrt_USSpecialtyMember","brrt_TypeOfContractAxis_brrt_NonProportionalMember",{"$f":"XBRLMap(F26,F$41&\".\"&$AC26&\".\"&$AD26,$AE$7,$AE$8,CONFIGURATION!$B$10,\"BMA\",CONFIGURATION!$B$1,\"bscr\",CONFIGURATION!$B$12)","v":{"$error":"#VALUE!"}},{"$f":"XBRLMap(Z26,Z$41&\".\"&$AC26&\".\"&$AD26,$AF$7,$AF$8,CONFIGURATION!$B$10,\"BMA\",CONFIGURATION!$B$1,\"bscr\",CONFIGURATION!$B$12)","v":{"$error":"#VALUE!"}},null,null,null,null,"bma_ScheduleOfNetLossAndLossExpenseProvisionsByLineOfBusinessUsSpecialtyNonProportional"]
[null,18,"International Motor ",null,{"$f":"Import!M802","v":0},{"$f":"Import!M827","v":0},{"$f":"Import!M852","v":0},{"$f":"Import!M877","v":0},{"$f":"Import!M902","v":0},{"$f":"Import!M927","v":0},{"$f":"Import!M952","v":0},{"$f":"Import!M977","v":0},{"$f":"Import!M1002","v":0},{"$f":"Import!M1027","v":0},{"$f":"Import!M1052","v":0},{"$f":"Import!M1077","v":0},{"$f":"Import!M1102","v":0},{"$f":"Import!M1127","v":0},{"$f":"Import!M1152","v":0},{"$f":"Import!M1177","v":0},{"$f":"Import!M1202","v":0},{"$f":"Import!M1227","v":0},null,0,null,{"$f":"ROUND('Schedule III (EBS)'!F27,0)","v":0},null," - ","brrt_LineOfBusinessAxis_brrt_InternationalMotorMember","brrt_TypeOfContractAxis_brrt_ProportionalMember",{"$f":"XBRLMap(F27,F$41&\".\"&$AC27&\".\"&$AD27,$AE$7,$AE$8,CONFIGURATION!$B$10,\"BMA\",CONFIGURATION!$B$1,\"bscr\",CONFIGURATION!$B$12)","v":{"$error":"#VALUE!"}},{"$f":"XBRLMap(Z27,Z$41&\".\"&$AC27&\".\"&$AD27,$AF$7,$AF$8,CONFIGURATION!$B$10,\"BMA\",CONFIGURATION!$B$1,\"bscr\",CONFIGURATION!$B$12)","v":{"$error":"#VALUE!"}},null,null,null,null,"bma_ScheduleOfNetLossAndLossExpenseProvisionsByLineOfBusinessInternationalMotor"]
[null,19,"International Motor Non – Proportional",null,{"$f":"Import!M803","v":0},{"$f":"Import!M828","v":0},{"$f":"Import!M853","v":0},{"$f":"Import!M878","v":0},{"$f":"Import!M903","v":0},{"$f":"Import!M928","v":0},{"$f":"Import!M953","v":0},{"$f":"Import!M978","v":0},{"$f":"Import!M1003","v":0},{"$f":"Import!M1028","v":0},{"$f":"Import!M1053","v":0},{"$f":"Import!M1078","v":0},{"$f":"Import!M1103","v":0},{"$f":"Import!M1128","v":0},{"$f":"Import!M1153","v":0},{"$f":"Import!M1178","v":0},{"$f":"Import!M1203","v":0},{"$f":"Import!M1228","v":0},null,0,null,{"$f":"ROUND('Schedule III (EBS)'!F28,0)","v":0},null," - ","brrt_LineOfBusinessAxis_brrt_InternationalMotorMember","brrt_TypeOfContractAxis_brrt_NonProportionalMember",{"$f":"XBRLMap(F28,F$41&\".\"&$AC28&\".\"&$AD28,$AE$7,$AE$8,CONFIGURATION!$B$10,\"BMA\",CONFIGURATION!$B$1,\"bscr\",CONFIGURATION!$B$12)","v":{"$error":"#VALUE!"}},{"$f":"XBRLMap(Z28,Z$41&\".\"&$AC28&\".\"&$AD28,$AF$7,$AF$8,CONFIGURATION!$B$10,\"BMA\",CONFIGURATION!$B$1,\"bscr\",CONFIGURATION!$B$12)","v":{"$error":"#VALUE!"}},null,null,null,null,"bma_ScheduleOfNetLossAndLossExpenseProvisionsByLineOfBusinessInternationalMotorNonProportional"]
[null,20,"International Casualty Non – Motor ",null,{"$f":"Import!M804","v":0},{"$f":"Import!M829","v":0},{"$f":"Import!M854","v":0},{"$f":"Import!M879","v":0},{"$f":"Import!M904","v":0},{"$f":"Import!M929","v":0},{"$f":"Import!M954","v":0},{"$f":"Import!M979","v":0},{"$f":"Import!M1004","v":0},{"$f":"Import!M1029","v":0},{"$f":"Import!M1054","v":0},{"$f":"Import!M1079","v":0},{"$f":"Import!M1104","v":0},{"$f":"Import!M1129","v":0},{"$f":"Import!M1154","v":0},{"$f":"Import!M1179","v":0},{"$f":"Import!M1204","v":0},{"$f":"Import!M1229","v":0},null,0,null,{"$f":"ROUND('Schedule III (EBS)'!F29,0)","v":0},null," - ","brrt_LineOfBusinessAxis_brrt_InternationalCasualtyNonMotorMember","brrt_TypeOfContractAxis_brrt_ProportionalMember",{"$f":"XBRLMap(F29,F$41&\".\"&$AC29&\".\"&$AD29,$AE$7,$AE$8,CONFIGURATION!$B$10,\"BMA\",CONFIGURATION!$B$1,\"bscr\",CONFIGURATION!$B$12)","v":{"$error":"#VALUE!"}},{"$f":"XBRLMap(Z29,Z$41&\".\"&$AC29&\".\"&$AD29,$AF$7,$AF$8,CONFIGURATION!$B$10,\"BMA\",CONFIGURATION!$B$1,\"bscr\",CONFIGURATION!$B$12)","v":{"$error":"#VALUE!"}},null,null,null,null,"bma_ScheduleOfNetLossAndLossExpenseProvisionsByLineOfBusinessInternationalCasualtyNonMotor"]
[null,21,"International Casualty Non Motor Non – Proportional ",null,{"$f":"Import!M805","v":0},{"$f":"Import!M830","v":0},{"$f":"Import!M855","v":0},{"$f":"Import!M880","v":0},{"$f":"Import!M905","v":0},{"$f":"Import!M930","v":0},{"$f":"Import!M955","v":0},{"$f":"Import!M980","v":0},{"$f":"Import!M1005","v":0},{"$f":"Import!M1030","v":0},{"$f":"Import!M1055","v":0},{"$f":"Import!M1080","v":0},{"$f":"Import!M1105","v":0},{"$f":"Import!M1130","v":0},{"$f":"Import!M1155","v":0},{"$f":"Import!M1180","v":0},{"$f":"Import!M1205","v":0},{"$f":"Import!M1230","v":0},null,0,null,{"$f":"ROUND('Schedule III (EBS)'!F30,0)","v":0},null," - ","brrt_LineOfBusinessAxis_brrt_InternationalCasualtyNonMotorMember","brrt_TypeOfContractAxis_brrt_NonProportionalMember",{"$f":"XBRLMap(F30,F$41&\".\"&$AC30&\".\"&$AD30,$AE$7,$AE$8,CONFIGURATION!$B$10,\"BMA\",CONFIGURATION!$B$1,\"bscr\",CONFIGURATION!$B$12)","v":{"$error":"#VALUE!"}},{"$f":"XBRLMap(Z30,Z$41&\".\"&$AC30&\".\"&$AD30,$AF$7,$AF$8,CONFIGURATION!$B$10,\"BMA\",CONFIGURATION!$B$1,\"bscr\",CONFIGURATION!$B$12)","v":{"$error":"#VALUE!"}},null,null,null,null,"bma_ScheduleOfNetLossAndLossExpenseProvisionsByLineOfBusinessInternationalCasualtyNonMotorNonProportional"]
[null,22,"Retro Property",null,{"$f":"Import!M806","v":0},{"$f":"Import!M831","v":0},{"$f":"Import!M856","v":0},{"$f":"Import!M881","v":0},{"$f":"Import!M906","v":0},{"$f":"Import!M931","v":0},{"$f":"Import!M956","v":0},{"$f":"Import!M981","v":0},{"$f":"Import!M1006","v":0},{"$f":"Import!M1031","v":0},{"$f":"Import!M1056","v":0},{"$f":"Import!M1081","v":0},{"$f":"Import!M1106","v":0},{"$f":"Import!M1131","v":0},{"$f":"Import!M1156","v":0},{"$f":"Import!M1181","v":0},{"$f":"Import!M1206","v":0},{"$f":"Import!M1231","v":0},null,0,null,{"$f":"ROUND('Schedule III (EBS)'!F31,0)","v":0},null," - ","brrt_LineOfBusinessAxis_brrt_RetroPropertyMember","brrt_TypeOfContractAxis_brrt_ProportionalMember",{"$f":"XBRLMap(F31,F$41&\".\"&$AC31&\".\"&$AD31,$AE$7,$AE$8,CONFIGURATION!$B$10,\"BMA\",CONFIGURATION!$B$1,\"bscr\",CONFIGURATION!$B$12)","v":{"$error":"#VALUE!"}},{"$f":"XBRLMap(Z31,Z$41&\".\"&$AC31&\".\"&$AD31,$AF$7,$AF$8,CONFIGURATION!$B$10,\"BMA\",CONFIGURATION!$B$1,\"bscr\",CONFIGURATION!$B$12)","v":{"$error":"#VALUE!"}},null,null,null,null,"bma_ScheduleOfNetLossAndLossExpenseProvisionsByLineOfBusinessRetroProperty"]
[null,23,"Structured / Finite Reinsurance",null,{"$f":"Import!M807","v":0},{"$f":"Import!M832","v":0},{"$f":"Import!M857","v":0},{"$f":"Import!M882","v":0},{"$f":"Import!M907","v":0},{"$f":"Import!M932","v":0},{"$f":"Import!M957","v":0},{"$f":"Import!M982","v":0},{"$f":"Import!M1007","v":0},{"$f":"Import!M1032","v":0},{"$f":"Import!M1057","v":0},{"$f":"Import!M1082","v":0},{"$f":"Import!M1107","v":0},{"$f":"Import!M1132","v":0},{"$f":"Import!M1157","v":0},{"$f":"Import!M1182","v":0},{"$f":"Import!M1207","v":0},{"$f":"Import!M1232","v":0},null,0,null,{"$f":"ROUND('Schedule III (EBS)'!F32,0)","v":0},null," - ","brrt_LineOfBusinessAxis_brrt_StructuredFiniteReinsuranceMember","brrt_TypeOfContractAxis_brrt_ProportionalMember",{"$f":"XBRLMap(F32,F$41&\".\"&$AC32&\".\"&$AD32,$AE$7,$AE$8,CONFIGURATION!$B$10,\"BMA\",CONFIGURATION!$B$1,\"bscr\",CONFIGURATION!$B$12)","v":{"$error":"#VALUE!"}},{"$f":"XBRLMap(Z32,Z$41&\".\"&$AC32&\".\"&$AD32,$AF$7,$AF$8,CONFIGURATION!$B$10,\"BMA\",CONFIGURATION!$B$1,\"bscr\",CONFIGURATION!$B$12)","v":{"$error":"#VALUE!"}},null,null,null,null,"bma_ScheduleOfNetLossAndLossExpenseProvisionsByLineOfBusinessStructuredFiniteReinsurance"]
[null,24,"Health",null,{"$f":"Import!M808","v":0},{"$f":"Import!M833","v":0},{"$f":"Import!M858","v":0},{"$f":"Import!M883","v":0},{"$f":"Import!M908","v":0},{"$f":"Import!M933","v":0},{"$f":"Import!M958","v":0},{"$f":"Import!M983","v":0},{"$f":"Import!M1008","v":0},{"$f":"Import!M1033","v":0},{"$f":"Import!M1058","v":0},{"$f":"Import!M1083","v":0},{"$f":"Import!M1108","v":0},{"$f":"Import!M1133","v":0},{"$f":"Import!M1158","v":0},{"$f":"Import!M1183","v":0},{"$f":"Import!M1208","v":0},{"$f":"Import!M1233","v":0},null,0,null,{"$f":"ROUND('Schedule III (EBS)'!F33,0)","v":0},null," - ","brrt_LineOfBusinessAxis_brrt_HealthMember","brrt_TypeOfContractAxis_brrt_ProportionalMember",{"$f":"XBRLMap(F33,F$41&\".\"&$AC33&\".\"&$AD33,$AE$7,$AE$8,CONFIGURATION!$B$10,\"BMA\",CONFIGURATION!$B$1,\"bscr\",CONFIGURATION!$B$12)","v":{"$error":"#VALUE!"}},{"$f":"XBRLMap(Z33,Z$41&\".\"&$AC33&\".\"&$AD33,$AF$7,$AF$8,CONFIGURATION!$B$10,\"BMA\",CONFIGURATION!$B$1,\"bscr\",CONFIGURATION!$B$12)","v":{"$error":"#VALUE!"}},null,null,null,null,"bma_ScheduleOfNetLossAndLossExpenseProvisionsByLineOfBusinessHealth"]
[null,25,"Total ",null,{"$f":"SUM(E10:E33)","v":0},0,0,0,0,0,0,0,0,0,0,0,0,0,0,0,0,0,null,{"$f":"SUM(X10:X33)","v":0},null,{"$f":"SUM(Z10:Z33)","v":0},null,null,"brrt_LineOfBusinessAxis_brrt_TotalMember","brrt_TypeOfContractAxis_brrt_ProportionalMember",{"$f":"XBRLMap(F34,F$41&\".\"&$AC34&\".\"&$AD34,$AE$7,$AE$8,CONFIGURATION!$B$10,\"BMA\",CONFIGURATION!$B$1,\"bscr\",CONFIGURATION!$B$12)","v":{"$error":"#VALUE!"}},{"$f":"XBRLMap(Z34,Z$41&\".\"&$AC34&\".\"&$AD34,$AF$7,$AF$8,CONFIGURATION!$B$10,\"BMA\",CONFIGURATION!$B$1,\"bscr\",CONFIGURATION!$B$12)","v":{"$error":"#VALUE!"}},null,null,null,null,"bma_ScheduleOfNetLossAndLossExpenseProvisionsByLineOfBusinessTotalForm1ALine17D"]
[]
[]
[]
[]
[]
[]
[null,null,null,null,"brrt_NetLossAndLossExpenseProvisions","brrt_NetLossAndLossExpenseProvisions",null,null,null,null,null,null,null,null,null,null,null,null,null,null,null,null,null,"brrt_NetLossAndLossExpenseProvisions",null,"brrt_NetLossAndLossExpenseProvisions"]
[]
[]
[]
[null,null,null,null,null,null,null,null,null,null,null,null,null,null,null,null,null,null,null,null,null,null,null,null,null,"Yes"]
[null,null,null,null,null,null,null,null,null,null,null,null,null,null,null,null,null,null,null,null,null,null,null,null,null,"No"]

{"sheet":"Schedule IV","index":34,"n_rows":75,"n_cols":27,"rows_kept":75,"cut":false,"hidden":false,"merged":[[6,12,6,14],[6,16,6,18],[1,1,1,2],[4,4,4,14],[4,16,4,18],[5,4,5,6],[5,8,5,10],[5,12,5,14]]}
[null,"SCHEDULE OF PREMIUMS WRITTEN BY LINE OF BUSINESS",null,null,null,null,null,null,null,null,null,null,null,null,null,null,null,null,{"$f":"HYPERLINK(\"#'Index'!A1\",\"Return to Index\")","v":"Return to Index"}]
[null,{"$f":"'Company Information'!C7","v":"Enter Company Name"}]
[null,{"$f":"\"For the year ending \"&TEXT('Company Information'!C3,\"MMMM DD, YYYY\")","v":"For the year ending December 31, 2019"},null,null,null,null,null,null,null,null,null,null,null,null,null,null,null,null,"SCHEDULE IV"]
[null,{"$f":"\"expressed in\"& IF(CONFIGURATION!$B$12>1,\" ['\"&MID(CONFIGURATION!$B$12,2,LEN(CONFIGURATION!$B$12))&\"s]\",\"\")&\" \"&'Form 1EBS'!C4","v":"expressed in ['000s] United States Dollars"}]
[null,null,null,null,"Gross Premiums Written",null,null,null,null,null,null,null,null,null,null,null,"Net Premiums Written"]
[null,null,null,null,"Unrelated",null,null,null,"Related",null,null,null,"Total"]
[null,"Schedule ",null,null,null,null,null,null,null,null,null,null,"Form 2SFS, Line 1(c) ",null,null,null,"Form 2SFS, Line 3"]
[null,"Line no. ",null,null,{"$f":"'Form 1EBS'!F7","v":"2019-12-31"},null,{"$f":"'Form 1EBS'!H7","v":"2018-12-31"},null,{"$f":"'Form 1EBS'!F7","v":"2019-12-31"},null,{"$f":"'Form 1EBS'!H7","v":"2018-12-31"},null,{"$f":"'Form 1EBS'!F7","v":"2019-12-31"},null,{"$f":"'Form 1EBS'!H7","v":"2018-12-31"},null,{"$f":"'Form 1EBS'!F7","v":"2019-12-31"},null,{"$f":"'Form 1EBS'!H7","v":"2018-12-31"}]
[null,null,null,null,{"$f":"CONFIGURATION!$D$12","v":" ('000s)"},null,{"$f":"CONFIGURATION!$D$12","v":" ('000s)"},null,{"$f":"CONFIGURATION!$D$12","v":" ('000s)"},null,{"$f":"CONFIGURATION!$D$12","v":" ('000s)"},null,{"$f":"CONFIGURATION!$D$12","v":" ('000s)"},null,{"$f":"CONFIGURATION!$D$12","v":" ('000s)"},null,{"$f":"CONFIGURATION!$D$12","v":" ('000s)"},null,{"$f":"CONFIGURATION!$D$12","v":" ('000s)"}]
[]
[null,1,"Property Catastrophe",null,{"$f":"Import!E1261","v":0},null,{"$f":"Import!G1261","v":0},null,{"$f":"Import!E1285","v":0},null,{"$f":"Import!G1285","v":0},null,{"$f":"E11+I11","v":0},null,{"$f":"G11+K11","v":0},null,{"$f":"Import!E1309","v":0},null,{"$f":"Import!G1309","v":0},null,"brrt_LineOfBusinessAxis_brrt_PropertyCatastropheMember","brrt_TypeOfContractAxis_brrt_ProportionalMember",null,null,null,null,"bma_ScheduleOfPremiumsWrittenByLineOfBusinessPropertyCatastrophe"]
[null,2,"Property",null,{"$f":"Import!E1262","v":0},null,{"$f":"Import!G1262","v":0},null,{"$f":"Import!E1286","v":0},null,{"$f":"Import!G1286","v":0},null,0,null,0,null,{"$f":"Import!E1310","v":0},null,{"$f":"Import!G1310","v":0},null,"brrt_LineOfBusinessAxis_brrt_PropertyMember","brrt_TypeOfContractAxis_brrt_ProportionalMember",null,null,null,null,"bma_ScheduleOfPremiumsWrittenByLineOfBusinessProperty"]
[null,3,"Property Non – Proportional",null,{"$f":"Import!E1263","v":0},null,{"$f":"Import!G1263","v":0},null,{"$f":"Import!E1287","v":0},null,{"$f":"Import!G1287","v":0},null,0,null,0,null,{"$f":"Import!E1311","v":0},null,{"$f":"Import!G1311","v":0},null,"brrt_LineOfBusinessAxis_brrt_PropertyMember","brrt_TypeOfContractAxis_brrt_NonProportionalMember",null,null,null,null,"bma_ScheduleOfPremiumsWrittenByLineOfBusinessPropertyNonProportional"]
[null,4,"Personal Accident",null,{"$f":"Import!E1264","v":0},null,{"$f":"Import!G1264","v":0},null,{"$f":"Import!E1288","v":0},null,{"$f":"Import!G1288","v":0},null,0,null,0,null,{"$f":"Import!E1312","v":0},null,{"$f":"Import!G1312","v":0},null,"brrt_LineOfBusinessAxis_brrt_PersonalAccidentMember","brrt_TypeOfContractAxis_brrt_ProportionalMember",null,null,null,null,"bma_ScheduleOfPremiumsWrittenByLineOfBusinessPersonalAccident"]
[null,5,"Personal Accident Non- Proportional",null,{"$f":"Import!E1265","v":0},null,{"$f":"Import!G1265","v":0},null,{"$f":"Import!E1289","v":0},null,{"$f":"Import!G1289","v":0},null,0,null,0,null,{"$f":"Import!E1313","v":0},null,{"$f":"Import!G1313","v":0},null,"brrt_LineOfBusinessAxis_brrt_PersonalAccidentMember","brrt_TypeOfContractAxis_brrt_NonProportionalMember",null,null,null,null,"bma_ScheduleOfPremiumsWrittenByLineOfBusinessPersonalAccidentNonProportional"]
[null,6,"Aviation",null,{"$f":"Import!E1266","v":0},null,{"$f":"Import!G1266","v":0},null,{"$f":"Import!E1290","v":0},null,{"$f":"Import!G1290","v":0},null,0,null,0,null,{"$f":"Import!E1314","v":0},null,{"$f":"Import!G1314","v":0},null,"brrt_LineOfBusinessAxis_brrt_AviationMember","brrt_TypeOfContractAxis_brrt_ProportionalMember",null,null,null,null,"bma_ScheduleOfPremiumsWrittenByLineOfBusinessAviation"]
[null,7,"Aviation Non – Proportional",null,{"$f":"Import!E1267","v":0},null,{"$f":"Import!G1267","v":0},null,{"$f":"Import!E1291","v":0},null,{"$f":"Import!G1291","v":0},null,0,null,0,null,{"$f":"Import!E1315","v":0},null,{"$f":"Import!G1315","v":0},null,"brrt_LineOfBusinessAxis_brrt_AviationMember","brrt_TypeOfContractAxis_brrt_NonProportionalMember",null,null,null,null,"bma_ScheduleOfPremiumsWrittenByLineOfBusinessAviationNonProportional"]
[null,8,"Credit / Surety ",null,{"$f":"Import!E1268","v":0},null,{"$f":"Import!G1268","v":0},null,{"$f":"Import!E1292","v":0},null,{"$f":"Import!G1292","v":0},null,0,null,0,null,{"$f":"Import!E1316","v":0},null,{"$f":"Import!G1316","v":0},null,"brrt_LineOfBusinessAxis_brrt_CreditSuretyMember","brrt_TypeOfContractAxis_brrt_ProportionalMember",null,null,null,null,"bma_ScheduleOfPremiumsWrittenByLineOfBusinessCreditSurety"]
[null,9,"Credit / Surety Non – Proportional",null,{"$f":"Import!E1269","v":0},null,{"$f":"Import!G1269","v":0},null,{"$f":"Import!E1293","v":0},null,{"$f":"Import!G1293","v":0},null,0,null,0,null,{"$f":"Import!E1317","v":0},null,{"$f":"Import!G1317","v":0},null,"brrt_LineOfBusinessAxis_brrt_CreditSuretyMember","brrt_TypeOfContractAxis_brrt_NonProportionalMember",null,null,null,null,"bma_ScheduleOfPremiumsWrittenByLineOfBusinessCreditSuretyNonProportional"]
[null,10,"Energy Offshore / Marine",null,{"$f":"Import!E1270","v":0},null,{"$f":"Import!G1270","v":0},null,{"$f":"Import!E1294","v":0},null,{"$f":"Import!G1294","v":0},null,0,null,0,null,{"$f":"Import!E1318","v":0},null,{"$f":"Import!G1318","v":0},null,"brrt_LineOfBusinessAxis_brrt_EnergyOffshoreMarineMember","brrt_TypeOfContractAxis_brrt_ProportionalMember",null,null,null,null,"bma_ScheduleOfPremiumsWrittenByLineOfBusinessEnergyOffshoreMarine"]
[null,11,"Energy Offshore / Marine Non - Proportional ","  ",{"$f":"Import!E1271","v":0},null,{"$f":"Import!G1271","v":0},null,{"$f":"Import!E1295","v":0},null,{"$f":"Import!G1295","v":0},null,0,null,0,null,{"$f":"Import!E1319","v":0},null,{"$f":"Import!G1319","v":0},null,"brrt_LineOfBusinessAxis_brrt_EnergyOffshoreMarineMember","brrt_TypeOfContractAxis_brrt_NonProportionalMember",null,null,null,null,"bma_ScheduleOfPremiumsWrittenByLineOfBusinessEnergyOffshoreMarineNonProportional"]
[null,12,"US Casualty",null,{"$f":"Import!E1272","v":0},null,{"$f":"Import!G1272","v":0},null,{"$f":"Import!E1296","v":0},null,{"$f":"Import!G1296","v":0},null,0,null,0,null,{"$f":"Import!E1320","v":0},null,{"$f":"Import!G1320","v":0},null,"brrt_LineOfBusinessAxis_brrt_USCasualtyMember","brrt_TypeOfContractAxis_brrt_ProportionalMember",null,null,null,null,"bma_ScheduleOfPremiumsWrittenByLineOfBusinessUsCasualty"]
[null,13,"US Casualty Non - Proportional ",null,{"$f":"Import!E1273","v":0},null,{"$f":"Import!G1273","v":0},null,{"$f":"Import!E1297","v":0},null,{"$f":"Import!G1297","v":0},null,0,null,0,null,{"$f":"Import!E1321","v":0},null,{"$f":"Import!G1321","v":0},null,"brrt_LineOfBusinessAxis_brrt_USCasualtyMember","brrt_TypeOfContractAxis_brrt_NonProportionalMember",null,null,null,null,"bma_ScheduleOfPremiumsWrittenByLineOfBusinessUsCasualtyNonProportional"]
[null,14,"US Professional",null,{"$f":"Import!E1274","v":0},null,{"$f":"Import!G1274","v":0},null,{"$f":"Import!E1298","v":0},null,{"$f":"Import!G1298","v":0},null,0,null,0,null,{"$f":"Import!E1322","v":0},null,{"$f":"Import!G1322","v":0},null,"brrt_LineOfBusinessAxis_brrt_USProfessionalMember","brrt_TypeOfContractAxis_brrt_ProportionalMember",null,null,null,null,"bma_ScheduleOfPremiumsWrittenByLineOfBusinessUsProfessional"]
[null,15,"US Professional Non – Proportional",null,{"$f":"Import!E1275","v":0},null,{"$f":"Import!G1275","v":0},null,{"$f":"Import!E1299","v":0},null,{"$f":"Import!G1299","v":0},null,0,null,0,null,{"$f":"Import!E1323","v":0},null,{"$f":"Import!G1323","v":0},null,"brrt_LineOfBusinessAxis_brrt_USProfessionalMember","brrt_TypeOfContractAxis_brrt_NonProportionalMember",null,null,null,null,"bma_ScheduleOfPremiumsWrittenByLineOfBusinessUsProfessionalNonProportional"]
[null,16,"US Specialty ",null,{"$f":"Import!E1276","v":0},null,{"$f":"Import!G1276","v":0},null,{"$f":"Import!E1300","v":0},null,{"$f":"Import!G1300","v":0},null,0,null,0,null,{"$f":"Import!E1324","v":0},null,{"$f":"Import!G1324","v":0},null,"brrt_LineOfBusinessAxis_brrt_USSpecialtyMember","brrt_TypeOfContractAxis_brrt_ProportionalMember",null,null,null,null,"bma_ScheduleOfPremiumsWrittenByLineOfBusinessUsSpecialty"]
[null,17,"US Specialty Non - Proportional",null,{"$f":"Import!E1277","v":0},null,{"$f":"Import!G1277","v":0},null,{"$f":"Import!E1301","v":0},null,{"$f":"Import!G1301","v":0},null,0,null,0,null,{"$f":"Import!E1325","v":0},null,{"$f":"Import!G1325","v":0},null,"brrt_LineOfBusinessAxis_brrt_USSpecialtyMember","brrt_TypeOfContractAxis_brrt_NonProportionalMember",null,null,null,null,"bma_ScheduleOfPremiumsWrittenByLineOfBusinessUsSpecialtyNonProportional"]
[null,18,"International Motor ",null,{"$f":"Import!E1278","v":0},null,{"$f":"Import!G1278","v":0},null,{"$f":"Import!E1302","v":0},null,{"$f":"Import!G1302","v":0},null,0,null,0,null,{"$f":"Import!E1326","v":0},null,{"$f":"Import!G1326","v":0},null,"brrt_LineOfBusinessAxis_brrt_InternationalMotorMember","brrt_TypeOfContractAxis_brrt_ProportionalMember",null,null,null,null,"bma_ScheduleOfPremiumsWrittenByLineOfBusinessInternationalMotor"]
[null,19,"International Motor Non – Proportional",null,{"$f":"Import!E1279","v":0},null,{"$f":"Import!G1279","v":0},null,{"$f":"Import!E1303","v":0},null,{"$f":"Import!G1303","v":0},null,0,null,0,null,{"$f":"Import!E1327","v":0},null,{"$f":"Import!G1327","v":0},null,"brrt_LineOfBusinessAxis_brrt_InternationalMotorMember","brrt_TypeOfContractAxis_brrt_NonProportionalMember",null,null,null,null,"bma_ScheduleOfPremiumsWrittenByLineOfBusinessInternationalMotorNonProportional"]
[null,20,"International Casualty Non – Motor ",null,{"$f":"Import!E1280","v":0},null,{"$f":"Import!G1280","v":0},null,{"$f":"Import!E1304","v":0},null,{"$f":"Import!G1304","v":0},null,0,null,0,null,{"$f":"Import!E1328","v":0},null,{"$f":"Import!G1328","v":0},null,"brrt_LineOfBusinessAxis_brrt_InternationalCasualtyNonMotorMember","brrt_TypeOfContractAxis_brrt_ProportionalMember",null,null,null,null,"bma_ScheduleOfPremiumsWrittenByLineOfBusinessInternationalCasualtyNonMotor"]
[null,21,"International Casualty Non Motor Non – Proportional ",null,{"$f":"Import!E1281","v":0},null,{"$f":"Import!G1281","v":0},null,{"$f":"Import!E1305","v":0},null,{"$f":"Import!G1305","v":0},null,0,null,0,null,{"$f":"Import!E1329","v":0},null,{"$f":"Import!G1329","v":0},null,"brrt_LineOfBusinessAxis_brrt_InternationalCasualtyNonMotorMember","brrt_TypeOfContractAxis_brrt_NonProportionalMember",null,null,null,null,"bma_ScheduleOfPremiumsWrittenByLineOfBusinessInternationalCasualtyNonMotorNonProportional"]
[null,22,"Retro Property",null,{"$f":"Import!E1282","v":0},null,{"$f":"Import!G1282","v":0},null,{"$f":"Import!E1306","v":0},null,{"$f":"Import!G1306","v":0},null,0,null,0,null,{"$f":"Import!E1330","v":0},null,{"$f":"Import!G1330","v":0},null,"brrt_LineOfBusinessAxis_brrt_RetroPropertyMember","brrt_TypeOfContractAxis_brrt_ProportionalMember",null,null,null,null,"bma_ScheduleOfPremiumsWrittenByLineOfBusinessRetroProperty"]
[null,23,"Structured / Finite Reinsurance",null,{"$f":"Import!E1283","v":0},null,{"$f":"Import!G1283","v":0},null,{"$f":"Import!E1307","v":0},null,{"$f":"Import!G1307","v":0},null,0,null,0,null,{"$f":"Import!E1331","v":0},null,{"$f":"Import!G1331","v":0},null,"brrt_LineOfBusinessAxis_brrt_StructuredFiniteReinsuranceMember","brrt_TypeOfContractAxis_brrt_ProportionalMember",null,null,null,null,"bma_ScheduleOfPremiumsWrittenByLineOfBusinessStructuredFiniteReinsurance"]
[null,24,"Health",null,{"$f":"Import!E1284","v":0},null,{"$f":"Import!G1284","v":0},null,{"$f":"Import!E1308","v":0},null,{"$f":"Import!G1308","v":0},null,0,null,0,null,{"$f":"Import!E1332","v":0},null,{"$f":"Import!G1332","v":0},null,"brrt_LineOfBusinessAxis_brrt_HealthMember","brrt_TypeOfContractAxis_brrt_ProportionalMember",null,null,null,null,"bma_ScheduleOfPremiumsWrittenByLineOfBusinessHealth"]
[null,25,"Total ",null,{"$f":"SUM(E11:E34)","v":0},null,{"$f":"SUM(G11:G34)","v":0},null,{"$f":"SUM(I11:I34)","v":0},null,{"$f":"SUM(K11:K34)","v":0},null,{"$f":"SUM(M11:M34)","v":0},null,{"$f":"SUM(O11:O34)","v":0},null,{"$f":"SUM(Q11:Q34)","v":0},null,{"$f":"SUM(S11:S34)","v":0},null,"brrt_LineOfBusinessAxis_brrt_TotalMember","brrt_TypeOfContractAxis_brrt_ProportionalMember",null,null,null,null,"bma_ScheduleOfPremiumsWrittenByLineOfBusinessTotal"]
[]
[null,null,null,null,null,null,null,null,null,null,null,null,{"$f":"IF(M38=\"TRUE\",HYPERLINK(\"#'Form 2SFS'!E14\",\"TRUE\"),HYPERLINK(\"#'Form 2SFS'!E14\",\"FALSE\"))","v":"TRUE"},null,{"$f":"IF(O38=\"TRUE\",HYPERLINK(\"#'Form 2SFS'!G14\",\"TRUE\"),HYPERLINK(\"#'Form 2SFS'!G14\",\"FALSE\"))","v":"TRUE"},null,{"$f":"IF(Q38=\"TRUE\",HYPERLINK(\"#'Form 2SFS'!E18\",\"TRUE\"),HYPERLINK(\"#'Form 2SFS'!E18\",\"FALSE\"))","v":"TRUE"},null,{"$f":"IF(S38=\"TRUE\",HYPERLINK(\"#'Form 2SFS'!G18\",\"TRUE\"),HYPERLINK(\"#'Form 2SFS'!G18\",\"FALSE\"))","v":"TRUE"}]
[null,null,null,null,null,null,null,null,null,null,null,null,{"$f":"IF(ROUND((M35-'Form 2SFS'!E14),0)=0,\"TRUE\",\"FALSE\")","v":"TRUE"},null,{"$f":"IF(ROUND((O35-'Form 2SFS'!G14),0)=0,\"TRUE\",\"FALSE\")","v":"TRUE"},null,{"$f":"IF(ROUND((Q35-'Form 2SFS'!E18),0)=0,\"TRUE\",\"FALSE\")","v":"TRUE"},null,{"$f":"IF(ROUND((S35-'Form 2SFS'!G18),0)=0,\"TRUE\",\"FALSE\")","v":"TRUE"}]
[null,null,null,null,null,null,null,null,null,null,null,null,{"$f":"'Form 2SFS'!E14-M35","v":0},null,{"$f":"'Form 2SFS'!G14-O35","v":0},null,{"$f":"'Form 2SFS'!E18-Q35","v":0},null,{"$f":"'Form 2SFS'!G18-S35","v":0}]
[]
[null,null,null,null,{"$f":"IF(E8=\"\",\"\",TEXT(DATE(YEAR(E8+1)-1,MONTH(E8+1),DAY(E8+1)),\"mm/dd/yyyy\"))","v":"01/01/2019"},null,{"$f":"IF(G8=\"\",\"\",TEXT(DATE(YEAR(G8+1)-1,MONTH(G8+1),DAY(G8+1)),\"mm/dd/yyyy\"))","v":"01/01/2018"},null,"01/01/2019",null,"01/01/2018",null,"01/01/2019",null,"01/01/2018",null,"01/01/2019",null,"01/01/2018"]
[null,null,null,null,{"$f":"IF(E8=\"\",\"\",TEXT(E8,\"mm/dd/yyyy\"))","v":"12/31/2019"},null,{"$f":"IF(G8=\"\",\"\",TEXT(G8,\"mm/dd/yyyy\"))","v":"12/31/2018"},null,"12/31/2019",null,"12/31/2018",null,"12/31/2019",null,"12/31/2018",null,"12/31/2019",null,"12/31/2018"]
[null,null,null,null,"brrt_GrossPremiumsWritten",null,"brrt_GrossPremiumsWritten",null,"brrt_GrossPremiumsWritten",null,"brrt_GrossPremiumsWritten",null,"brrt_GrossPremiumsWritten",null,"brrt_GrossPremiumsWritten",null,"brrt_NetPremiumsWritten",null,"brrt_NetPremiumsWritten"]
[null,null,null,null,"brrt_TypeOfBusinessAxis_brrt_UnrelatedMember",null,"brrt_TypeOfBusinessAxis_brrt_UnrelatedMember",null,"brrt_TypeOfBusinessAxis_brrt_RelatedMember",null,"brrt_TypeOfBusinessAxis_brrt_RelatedMember",null,"brrt_TypeOfBusinessAxis_brrt_TotalMember",null,"brrt_TypeOfBusinessAxis_brrt_TotalMember"]
[null,null,null,null,{"$f":"XBRLMap(E11,E$43&\".\"&E$44&\".\"&$U11&\".\"&$V11,E$41,E$42,CONFIGURATION!$B$10,\"BMA\",CONFIGURATION!$B$1,\"bscr\",CONFIGURATION!$B$12)","v":"Mapped"},null,{"$f":"XBRLMap(G11,G$43&\".\"&G$44&\".\"&$U11&\".\"&$V11,G$41,G$42,CONFIGURATION!$B$10,\"BMA\",CONFIGURATION!$B$1,\"bscr\",CONFIGURATION!$B$12)","v":"Mapped"},null,{"$f":"XBRLMap(I11,I$43&\".\"&I$44&\".\"&$U11&\".\"&$V11,I$41,I$42,CONFIGURATION!$B$10,\"BMA\",CONFIGURATION!$B$1,\"bscr\",CONFIGURATION!$B$12)","v":"Mapped"},null,{"$f":"XBRLMap(K11,K$43&\".\"&K$44&\".\"&$U11&\".\"&$V11,K$41,K$42,CONFIGURATION!$B$10,\"BMA\",CONFIGURATION!$B$1,\"bscr\",CONFIGURATION!$B$12)","v":"Mapped"},null,{"$f":"XBRLMap(M11,M$43&\".\"&M$44&\".\"&$U11&\".\"&$V11,M$41,M$42,CONFIGURATION!$B$10,\"BMA\",CONFIGURATION!$B$1,\"bscr\",CONFIGURATION!$B$12)","v":"Mapped"},null,{"$f":"XBRLMap(O11,O$43&\".\"&O$44&\".\"&$U11&\".\"&$V11,O$41,O$42,CONFIGURATION!$B$10,\"BMA\",CONFIGURATION!$B$1,\"bscr\",CONFIGURATION!$B$12)","v":"Mapped"},null,{"$f":"XBRLMap(Q11,Q$43&\".\"&$U11&\".\"&$V11,Q$41,Q$42,CONFIGURATION!$B$10,\"BMA\",CONFIGURATION!$B$1,\"bscr\",CONFIGURATION!$B$12)","v":"Mapped"},null,{"$f":"XBRLMap(S11,S$43&\".\"&$U11&\".\"&$V11,S$41,S$42,CONFIGURATION!$B$10,\"BMA\",CONFIGURATION!$B$1,\"bscr\",CONFIGURATION!$B$12)","v":"Mapped"}]
[null,null,null,null,{"$f":"XBRLMap(E12,E$43&\".\"&E$44&\".\"&$U12&\".\"&$V12,E$41,E$42,CONFIGURATION!$B$10,\"BMA\",CONFIGURATION!$B$1,\"bscr\",CONFIGURATION!$B$12)","v":"Mapped"},null,{"$f":"XBRLMap(G12,G$43&\".\"&G$44&\".\"&$U12&\".\"&$V12,G$41,G$42,CONFIGURATION!$B$10,\"BMA\",CONFIGURATION!$B$1,\"bscr\",CONFIGURATION!$B$12)","v":"Mapped"},null,{"$f":"XBRLMap(I12,I$43&\".\"&I$44&\".\"&$U12&\".\"&$V12,I$41,I$42,CONFIGURATION!$B$10,\"BMA\",CONFIGURATION!$B$1,\"bscr\",CONFIGURATION!$B$12)","v":"Mapped"},null,{"$f":"XBRLMap(K12,K$43&\".\"&K$44&\".\"&$U12&\".\"&$V12,K$41,K$42,CONFIGURATION!$B$10,\"BMA\",CONFIGURATION!$B$1,\"bscr\",CONFIGURATION!$B$12)","v":"Mapped"},null,{"$f":"XBRLMap(M12,M$43&\".\"&M$44&\".\"&$U12&\".\"&$V12,M$41,M$42,CONFIGURATION!$B$10,\"BMA\",CONFIGURATION!$B$1,\"bscr\",CONFIGURATION!$B$12)","v":"Mapped"},null,{"$f":"XBRLMap(O12,O$43&\".\"&O$44&\".\"&$U12&\".\"&$V12,O$41,O$42,CONFIGURATION!$B$10,\"BMA\",CONFIGURATION!$B$1,\"bscr\",CONFIGURATION!$B$12)","v":"Mapped"},null,{"$f":"XBRLMap(Q12,Q$43&\".\"&$U12&\".\"&$V12,Q$41,Q$42,CONFIGURATION!$B$10,\"BMA\",CONFIGURATION!$B$1,\"bscr\",CONFIGURATION!$B$12)","v":"Mapped"},null,{"$f":"XBRLMap(S12,S$43&\".\"&$U12&\".\"&$V12,S$41,S$42,CONFIGURATION!$B$10,\"BMA\",CONFIGURATION!$B$1,\"bscr\",CONFIGURATION!$B$12)","v":"Mapped"}]
[null,null,null,null,{"$f":"XBRLMap(E13,E$43&\".\"&E$44&\".\"&$U13&\".\"&$V13,E$41,E$42,CONFIGURATION!$B$10,\"BMA\",CONFIGURATION!$B$1,\"bscr\",CONFIGURATION!$B$12)","v":"Mapped"},null,{"$f":"XBRLMap(G13,G$43&\".\"&G$44&\".\"&$U13&\".\"&$V13,G$41,G$42,CONFIGURATION!$B$10,\"BMA\",CONFIGURATION!$B$1,\"bscr\",CONFIGURATION!$B$12)","v":"Mapped"},null,{"$f":"XBRLMap(I13,I$43&\".\"&I$44&\".\"&$U13&\".\"&$V13,I$41,I$42,CONFIGURATION!$B$10,\"BMA\",CONFIGURATION!$B$1,\"bscr\",CONFIGURATION!$B$12)","v":"Mapped"},null,{"$f":"XBRLMap(K13,K$43&\".\"&K$44&\".\"&$U13&\".\"&$V13,K$41,K$42,CONFIGURATION!$B$10,\"BMA\",CONFIGURATION!$B$1,\"bscr\",CONFIGURATION!$B$12)","v":"Mapped"},null,{"$f":"XBRLMap(M13,M$43&\".\"&M$44&\".\"&$U13&\".\"&$V13,M$41,M$42,CONFIGURATION!$B$10,\"BMA\",CONFIGURATION!$B$1,\"bscr\",CONFIGURATION!$B$12)","v":"Mapped"},null,{"$f":"XBRLMap(O13,O$43&\".\"&O$44&\".\"&$U13&\".\"&$V13,O$41,O$42,CONFIGURATION!$B$10,\"BMA\",CONFIGURATION!$B$1,\"bscr\",CONFIGURATION!$B$12)","v":"Mapped"},null,{"$f":"XBRLMap(Q13,Q$43&\".\"&$U13&\".\"&$V13,Q$41,Q$42,CONFIGURATION!$B$10,\"BMA\",CONFIGURATION!$B$1,\"bscr\",CONFIGURATION!$B$12)","v":"Mapped"},null,{"$f":"XBRLMap(S13,S$43&\".\"&$U13&\".\"&$V13,S$41,S$42,CONFIGURATION!$B$10,\"BMA\",CONFIGURATION!$B$1,\"bscr\",CONFIGURATION!$B$12)","v":"Mapped"}]
[null,null,null,null,{"$f":"XBRLMap(E14,E$43&\".\"&E$44&\".\"&$U14&\".\"&$V14,E$41,E$42,CONFIGURATION!$B$10,\"BMA\",CONFIGURATION!$B$1,\"bscr\",CONFIGURATION!$B$12)","v":"Mapped"},null,{"$f":"XBRLMap(G14,G$43&\".\"&G$44&\".\"&$U14&\".\"&$V14,G$41,G$42,CONFIGURATION!$B$10,\"BMA\",CONFIGURATION!$B$1,\"bscr\",CONFIGURATION!$B$12)","v":"Mapped"},null,{"$f":"XBRLMap(I14,I$43&\".\"&I$44&\".\"&$U14&\".\"&$V14,I$41,I$42,CONFIGURATION!$B$10,\"BMA\",CONFIGURATION!$B$1,\"bscr\",CONFIGURATION!$B$12)","v":"Mapped"},null,{"$f":"XBRLMap(K14,K$43&\".\"&K$44&\".\"&$U14&\".\"&$V14,K$41,K$42,CONFIGURATION!$B$10,\"BMA\",CONFIGURATION!$B$1,\"bscr\",CONFIGURATION!$B$12)","v":"Mapped"},null,{"$f":"XBRLMap(M14,M$43&\".\"&M$44&\".\"&$U14&\".\"&$V14,M$41,M$42,CONFIGURATION!$B$10,\"BMA\",CONFIGURATION!$B$1,\"bscr\",CONFIGURATION!$B$12)","v":"Mapped"},null,{"$f":"XBRLMap(O14,O$43&\".\"&O$44&\".\"&$U14&\".\"&$V14,O$41,O$42,CONFIGURATION!$B$10,\"BMA\",CONFIGURATION!$B$1,\"bscr\",CONFIGURATION!$B$12)","v":"Mapped"},null,{"$f":"XBRLMap(Q14,Q$43&\".\"&$U14&\".\"&$V14,Q$41,Q$42,CONFIGURATION!$B$10,\"BMA\",CONFIGURATION!$B$1,\"bscr\",CONFIGURATION!$B$12)","v":"Mapped"},null,{"$f":"XBRLMap(S14,S$43&\".\"&$U14&\".\"&$V14,S$41,S$42,CONFIGURATION!$B$10,\"BMA\",CONFIGURATION!$B$1,\"bscr\",CONFIGURATION!$B$12)","v":"Mapped"}]
[null,null,null,null,{"$f":"XBRLMap(E15,E$43&\".\"&E$44&\".\"&$U15&\".\"&$V15,E$41,E$42,CONFIGURATION!$B$10,\"BMA\",CONFIGURATION!$B$1,\"bscr\",CONFIGURATION!$B$12)","v":"Mapped"},null,{"$f":"XBRLMap(G15,G$43&\".\"&G$44&\".\"&$U15&\".\"&$V15,G$41,G$42,CONFIGURATION!$B$10,\"BMA\",CONFIGURATION!$B$1,\"bscr\",CONFIGURATION!$B$12)","v":"Mapped"},null,{"$f":"XBRLMap(I15,I$43&\".\"&I$44&\".\"&$U15&\".\"&$V15,I$41,I$42,CONFIGURATION!$B$10,\"BMA\",CONFIGURATION!$B$1,\"bscr\",CONFIGURATION!$B$12)","v":"Mapped"},null,{"$f":"XBRLMap(K15,K$43&\".\"&K$44&\".\"&$U15&\".\"&$V15,K$41,K$42,CONFIGURATION!$B$10,\"BMA\",CONFIGURATION!$B$1,\"bscr\",CONFIGURATION!$B$12)","v":"Mapped"},null,{"$f":"XBRLMap(M15,M$43&\".\"&M$44&\".\"&$U15&\".\"&$V15,M$41,M$42,CONFIGURATION!$B$10,\"BMA\",CONFIGURATION!$B$1,\"bscr\",CONFIGURATION!$B$12)","v":"Mapped"},null,{"$f":"XBRLMap(O15,O$43&\".\"&O$44&\".\"&$U15&\".\"&$V15,O$41,O$42,CONFIGURATION!$B$10,\"BMA\",CONFIGURATION!$B$1,\"bscr\",CONFIGURATION!$B$12)","v":"Mapped"},null,{"$f":"XBRLMap(Q15,Q$43&\".\"&$U15&\".\"&$V15,Q$41,Q$42,CONFIGURATION!$B$10,\"BMA\",CONFIGURATION!$B$1,\"bscr\",CONFIGURATION!$B$12)","v":"Mapped"},null,{"$f":"XBRLMap(S15,S$43&\".\"&$U15&\".\"&$V15,S$41,S$42,CONFIGURATION!$B$10,\"BMA\",CONFIGURATION!$B$1,\"bscr\",CONFIGURATION!$B$12)","v":"Mapped"}]
[null,null,null,null,{"$f":"XBRLMap(E16,E$43&\".\"&E$44&\".\"&$U16&\".\"&$V16,E$41,E$42,CONFIGURATION!$B$10,\"BMA\",CONFIGURATION!$B$1,\"bscr\",CONFIGURATION!$B$12)","v":"Mapped"},null,{"$f":"XBRLMap(G16,G$43&\".\"&G$44&\".\"&$U16&\".\"&$V16,G$41,G$42,CONFIGURATION!$B$10,\"BMA\",CONFIGURATION!$B$1,\"bscr\",CONFIGURATION!$B$12)","v":"Mapped"},null,{"$f":"XBRLMap(I16,I$43&\".\"&I$44&\".\"&$U16&\".\"&$V16,I$41,I$42,CONFIGURATION!$B$10,\"BMA\",CONFIGURATION!$B$1,\"bscr\",CONFIGURATION!$B$12)","v":"Mapped"},null,{"$f":"XBRLMap(K16,K$43&\".\"&K$44&\".\"&$U16&\".\"&$V16,K$41,K$42,CONFIGURATION!$B$10,\"BMA\",CONFIGURATION!$B$1,\"bscr\",CONFIGURATION!$B$12)","v":"Mapped"},null,{"$f":"XBRLMap(M16,M$43&\".\"&M$44&\".\"&$U16&\".\"&$V16,M$41,M$42,CONFIGURATION!$B$10,\"BMA\",CONFIGURATION!$B$1,\"bscr\",CONFIGURATION!$B$12)","v":"Mapped"},null,{"$f":"XBRLMap(O16,O$43&\".\"&O$44&\".\"&$U16&\".\"&$V16,O$41,O$42,CONFIGURATION!$B$10,\"BMA\",CONFIGURATION!$B$1,\"bscr\",CONFIGURATION!$B$12)","v":"Mapped"},null,{"$f":"XBRLMap(Q16,Q$43&\".\"&$U16&\".\"&$V16,Q$41,Q$42,CONFIGURATION!$B$10,\"BMA\",CONFIGURATION!$B$1,\"bscr\",CONFIGURATION!$B$12)","v":"Mapped"},null,{"$f":"XBRLMap(S16,S$43&\".\"&$U16&\".\"&$V16,S$41,S$42,CONFIGURATION!$B$10,\"BMA\",CONFIGURATION!$B$1,\"bscr\",CONFIGURATION!$B$12)","v":"Mapped"}]
[null,null,null,null,{"$f":"XBRLMap(E17,E$43&\".\"&E$44&\".\"&$U17&\".\"&$V17,E$41,E$42,CONFIGURATION!$B$10,\"BMA\",CONFIGURATION!$B$1,\"bscr\",CONFIGURATION!$B$12)","v":"Mapped"},null,{"$f":"XBRLMap(G17,G$43&\".\"&G$44&\".\"&$U17&\".\"&$V17,G$41,G$42,CONFIGURATION!$B$10,\"BMA\",CONFIGURATION!$B$1,\"bscr\",CONFIGURATION!$B$12)","v":"Mapped"},null,{"$f":"XBRLMap(I17,I$43&\".\"&I$44&\".\"&$U17&\".\"&$V17,I$41,I$42,CONFIGURATION!$B$10,\"BMA\",CONFIGURATION!$B$1,\"bscr\",CONFIGURATION!$B$12)","v":"Mapped"},null,{"$f":"XBRLMap(K17,K$43&\".\"&K$44&\".\"&$U17&\".\"&$V17,K$41,K$42,CONFIGURATION!$B$10,\"BMA\",CONFIGURATION!$B$1,\"bscr\",CONFIGURATION!$B$12)","v":"Mapped"},null,{"$f":"XBRLMap(M17,M$43&\".\"&M$44&\".\"&$U17&\".\"&$V17,M$41,M$42,CONFIGURATION!$B$10,\"BMA\",CONFIGURATION!$B$1,\"bscr\",CONFIGURATION!$B$12)","v":"Mapped"},null,{"$f":"XBRLMap(O17,O$43&\".\"&O$44&\".\"&$U17&\".\"&$V17,O$41,O$42,CONFIGURATION!$B$10,\"BMA\",CONFIGURATION!$B$1,\"bscr\",CONFIGURATION!$B$12)","v":"Mapped"},null,{"$f":"XBRLMap(Q17,Q$43&\".\"&$U17&\".\"&$V17,Q$41,Q$42,CONFIGURATION!$B$10,\"BMA\",CONFIGURATION!$B$1,\"bscr\",CONFIGURATION!$B$12)","v":"Mapped"},null,{"$f":"XBRLMap(S17,S$43&\".\"&$U17&\".\"&$V17,S$41,S$42,CONFIGURATION!$B$10,\"BMA\",CONFIGURATION!$B$1,\"bscr\",CONFIGURATION!$B$12)","v":"Mapped"}]
[null,null,null,null,{"$f":"XBRLMap(E18,E$43&\".\"&E$44&\".\"&$U18&\".\"&$V18,E$41,E$42,CONFIGURATION!$B$10,\"BMA\",CONFIGURATION!$B$1,\"bscr\",CONFIGURATION!$B$12)","v":"Mapped"},null,{"$f":"XBRLMap(G18,G$43&\".\"&G$44&\".\"&$U18&\".\"&$V18,G$41,G$42,CONFIGURATION!$B$10,\"BMA\",CONFIGURATION!$B$1,\"bscr\",CONFIGURATION!$B$12)","v":"Mapped"},null,{"$f":"XBRLMap(I18,I$43&\".\"&I$44&\".\"&$U18&\".\"&$V18,I$41,I$42,CONFIGURATION!$B$10,\"BMA\",CONFIGURATION!$B$1,\"bscr\",CONFIGURATION!$B$12)","v":"Mapped"},null,{"$f":"XBRLMap(K18,K$43&\".\"&K$44&\".\"&$U18&\".\"&$V18,K$41,K$42,CONFIGURATION!$B$10,\"BMA\",CONFIGURATION!$B$1,\"bscr\",CONFIGURATION!$B$12)","v":"Mapped"},null,{"$f":"XBRLMap(M18,M$43&\".\"&M$44&\".\"&$U18&\".\"&$V18,M$41,M$42,CONFIGURATION!$B$10,\"BMA\",CONFIGURATION!$B$1,\"bscr\",CONFIGURATION!$B$12)","v":"Mapped"},null,{"$f":"XBRLMap(O18,O$43&\".\"&O$44&\".\"&$U18&\".\"&$V18,O$41,O$42,CONFIGURATION!$B$10,\"BMA\",CONFIGURATION!$B$1,\"bscr\",CONFIGURATION!$B$12)","v":"Mapped"},null,{"$f":"XBRLMap(Q18,Q$43&\".\"&$U18&\".\"&$V18,Q$41,Q$42,CONFIGURATION!$B$10,\"BMA\",CONFIGURATION!$B$1,\"bscr\",CONFIGURATION!$B$12)","v":"Mapped"},null,{"$f":"XBRLMap(S18,S$43&\".\"&$U18&\".\"&$V18,S$41,S$42,CONFIGURATION!$B$10,\"BMA\",CONFIGURATION!$B$1,\"bscr\",CONFIGURATION!$B$12)","v":"Mapped"}]
[null,null,null,null,{"$f":"XBRLMap(E19,E$43&\".\"&E$44&\".\"&$U19&\".\"&$V19,E$41,E$42,CONFIGURATION!$B$10,\"BMA\",CONFIGURATION!$B$1,\"bscr\",CONFIGURATION!$B$12)","v":"Mapped"},null,{"$f":"XBRLMap(G19,G$43&\".\"&G$44&\".\"&$U19&\".\"&$V19,G$41,G$42,CONFIGURATION!$B$10,\"BMA\",CONFIGURATION!$B$1,\"bscr\",CONFIGURATION!$B$12)","v":"Mapped"},null,{"$f":"XBRLMap(I19,I$43&\".\"&I$44&\".\"&$U19&\".\"&$V19,I$41,I$42,CONFIGURATION!$B$10,\"BMA\",CONFIGURATION!$B$1,\"bscr\",CONFIGURATION!$B$12)","v":"Mapped"},null,{"$f":"XBRLMap(K19,K$43&\".\"&K$44&\".\"&$U19&\".\"&$V19,K$41,K$42,CONFIGURATION!$B$10,\"BMA\",CONFIGURATION!$B$1,\"bscr\",CONFIGURATION!$B$12)","v":"Mapped"},null,{"$f":"XBRLMap(M19,M$43&\".\"&M$44&\".\"&$U19&\".\"&$V19,M$41,M$42,CONFIGURATION!$B$10,\"BMA\",CONFIGURATION!$B$1,\"bscr\",CONFIGURATION!$B$12)","v":"Mapped"},null,{"$f":"XBRLMap(O19,O$43&\".\"&O$44&\".\"&$U19&\".\"&$V19,O$41,O$42,CONFIGURATION!$B$10,\"BMA\",CONFIGURATION!$B$1,\"bscr\",CONFIGURATION!$B$12)","v":"Mapped"},null,{"$f":"XBRLMap(Q19,Q$43&\".\"&$U19&\".\"&$V19,Q$41,Q$42,CONFIGURATION!$B$10,\"BMA\",CONFIGURATION!$B$1,\"bscr\",CONFIGURATION!$B$12)","v":"Mapped"},null,{"$f":"XBRLMap(S19,S$43&\".\"&$U19&\".\"&$V19,S$41,S$42,CONFIGURATION!$B$10,\"BMA\",CONFIGURATION!$B$1,\"bscr\",CONFIGURATION!$B$12)","v":"Mapped"}]
[null,null,null,null,{"$f":"XBRLMap(E20,E$43&\".\"&E$44&\".\"&$U20&\".\"&$V20,E$41,E$42,CONFIGURATION!$B$10,\"BMA\",CONFIGURATION!$B$1,\"bscr\",CONFIGURATION!$B$12)","v":"Mapped"},null,{"$f":"XBRLMap(G20,G$43&\".\"&G$44&\".\"&$U20&\".\"&$V20,G$41,G$42,CONFIGURATION!$B$10,\"BMA\",CONFIGURATION!$B$1,\"bscr\",CONFIGURATION!$B$12)","v":"Mapped"},null,{"$f":"XBRLMap(I20,I$43&\".\"&I$44&\".\"&$U20&\".\"&$V20,I$41,I$42,CONFIGURATION!$B$10,\"BMA\",CONFIGURATION!$B$1,\"bscr\",CONFIGURATION!$B$12)","v":"Mapped"},null,{"$f":"XBRLMap(K20,K$43&\".\"&K$44&\".\"&$U20&\".\"&$V20,K$41,K$42,CONFIGURATION!$B$10,\"BMA\",CONFIGURATION!$B$1,\"bscr\",CONFIGURATION!$B$12)","v":"Mapped"},null,{"$f":"XBRLMap(M20,M$43&\".\"&M$44&\".\"&$U20&\".\"&$V20,M$41,M$42,CONFIGURATION!$B$10,\"BMA\",CONFIGURATION!$B$1,\"bscr\",CONFIGURATION!$B$12)","v":"Mapped"},null,{"$f":"XBRLMap(O20,O$43&\".\"&O$44&\".\"&$U20&\".\"&$V20,O$41,O$42,CONFIGURATION!$B$10,\"BMA\",CONFIGURATION!$B$1,\"bscr\",CONFIGURATION!$B$12)","v":"Mapped"},null,{"$f":"XBRLMap(Q20,Q$43&\".\"&$U20&\".\"&$V20,Q$41,Q$42,CONFIGURATION!$B$10,\"BMA\",CONFIGURATION!$B$1,\"bscr\",CONFIGURATION!$B$12)","v":"Mapped"},null,{"$f":"XBRLMap(S20,S$43&\".\"&$U20&\".\"&$V20,S$41,S$42,CONFIGURATION!$B$10,\"BMA\",CONFIGURATION!$B$1,\"bscr\",CONFIGURATION!$B$12)","v":"Mapped"}]
[null,null,null,null,{"$f":"XBRLMap(E21,E$43&\".\"&E$44&\".\"&$U21&\".\"&$V21,E$41,E$42,CONFIGURATION!$B$10,\"BMA\",CONFIGURATION!$B$1,\"bscr\",CONFIGURATION!$B$12)","v":"Mapped"},null,{"$f":"XBRLMap(G21,G$43&\".\"&G$44&\".\"&$U21&\".\"&$V21,G$41,G$42,CONFIGURATION!$B$10,\"BMA\",CONFIGURATION!$B$1,\"bscr\",CONFIGURATION!$B$12)","v":"Mapped"},null,{"$f":"XBRLMap(I21,I$43&\".\"&I$44&\".\"&$U21&\".\"&$V21,I$41,I$42,CONFIGURATION!$B$10,\"BMA\",CONFIGURATION!$B$1,\"bscr\",CONFIGURATION!$B$12)","v":"Mapped"},null,{"$f":"XBRLMap(K21,K$43&\".\"&K$44&\".\"&$U21&\".\"&$V21,K$41,K$42,CONFIGURATION!$B$10,\"BMA\",CONFIGURATION!$B$1,\"bscr\",CONFIGURATION!$B$12)","v":"Mapped"},null,{"$f":"XBRLMap(M21,M$43&\".\"&M$44&\".\"&$U21&\".\"&$V21,M$41,M$42,CONFIGURATION!$B$10,\"BMA\",CONFIGURATION!$B$1,\"bscr\",CONFIGURATION!$B$12)","v":"Mapped"},null,{"$f":"XBRLMap(O21,O$43&\".\"&O$44&\".\"&$U21&\".\"&$V21,O$41,O$42,CONFIGURATION!$B$10,\"BMA\",CONFIGURATION!$B$1,\"bscr\",CONFIGURATION!$B$12)","v":"Mapped"},null,{"$f":"XBRLMap(Q21,Q$43&\".\"&$U21&\".\"&$V21,Q$41,Q$42,CONFIGURATION!$B$10,\"BMA\",CONFIGURATION!$B$1,\"bscr\",CONFIGURATION!$B$12)","v":"Mapped"},null,{"$f":"XBRLMap(S21,S$43&\".\"&$U21&\".\"&$V21,S$41,S$42,CONFIGURATION!$B$10,\"BMA\",CONFIGURATION!$B$1,\"bscr\",CONFIGURATION!$B$12)","v":"Mapped"}]
[null,null,null,null,{"$f":"XBRLMap(E22,E$43&\".\"&E$44&\".\"&$U22&\".\"&$V22,E$41,E$42,CONFIGURATION!$B$10,\"BMA\",CONFIGURATION!$B$1,\"bscr\",CONFIGURATION!$B$12)","v":"Mapped"},null,{"$f":"XBRLMap(G22,G$43&\".\"&G$44&\".\"&$U22&\".\"&$V22,G$41,G$42,CONFIGURATION!$B$10,\"BMA\",CONFIGURATION!$B$1,\"bscr\",CONFIGURATION!$B$12)","v":"Mapped"},null,{"$f":"XBRLMap(I22,I$43&\".\"&I$44&\".\"&$U22&\".\"&$V22,I$41,I$42,CONFIGURATION!$B$10,\"BMA\",CONFIGURATION!$B$1,\"bscr\",CONFIGURATION!$B$12)","v":"Mapped"},null,{"$f":"XBRLMap(K22,K$43&\".\"&K$44&\".\"&$U22&\".\"&$V22,K$41,K$42,CONFIGURATION!$B$10,\"BMA\",CONFIGURATION!$B$1,\"bscr\",CONFIGURATION!$B$12)","v":"Mapped"},null,{"$f":"XBRLMap(M22,M$43&\".\"&M$44&\".\"&$U22&\".\"&$V22,M$41,M$42,CONFIGURATION!$B$10,\"BMA\",CONFIGURATION!$B$1,\"bscr\",CONFIGURATION!$B$12)","v":"Mapped"},null,{"$f":"XBRLMap(O22,O$43&\".\"&O$44&\".\"&$U22&\".\"&$V22,O$41,O$42,CONFIGURATION!$B$10,\"BMA\",CONFIGURATION!$B$1,\"bscr\",CONFIGURATION!$B$12)","v":"Mapped"},null,{"$f":"XBRLMap(Q22,Q$43&\".\"&$U22&\".\"&$V22,Q$41,Q$42,CONFIGURATION!$B$10,\"BMA\",CONFIGURATION!$B$1,\"bscr\",CONFIGURATION!$B$12)","v":"Mapped"},null,{"$f":"XBRLMap(S22,S$43&\".\"&$U22&\".\"&$V22,S$41,S$42,CONFIGURATION!$B$10,\"BMA\",CONFIGURATION!$B$1,\"bscr\",CONFIGURATION!$B$12)","v":"Mapped"}]
[null,null,null,null,{"$f":"XBRLMap(E23,E$43&\".\"&E$44&\".\"&$U23&\".\"&$V23,E$41,E$42,CONFIGURATION!$B$10,\"BMA\",CONFIGURATION!$B$1,\"bscr\",CONFIGURATION!$B$12)","v":"Mapped"},null,{"$f":"XBRLMap(G23,G$43&\".\"&G$44&\".\"&$U23&\".\"&$V23,G$41,G$42,CONFIGURATION!$B$10,\"BMA\",CONFIGURATION!$B$1,\"bscr\",CONFIGURATION!$B$12)","v":"Mapped"},null,{"$f":"XBRLMap(I23,I$43&\".\"&I$44&\".\"&$U23&\".\"&$V23,I$41,I$42,CONFIGURATION!$B$10,\"BMA\",CONFIGURATION!$B$1,\"bscr\",CONFIGURATION!$B$12)","v":"Mapped"},null,{"$f":"XBRLMap(K23,K$43&\".\"&K$44&\".\"&$U23&\".\"&$V23,K$41,K$42,CONFIGURATION!$B$10,\"BMA\",CONFIGURATION!$B$1,\"bscr\",CONFIGURATION!$B$12)","v":"Mapped"},null,{"$f":"XBRLMap(M23,M$43&\".\"&M$44&\".\"&$U23&\".\"&$V23,M$41,M$42,CONFIGURATION!$B$10,\"BMA\",CONFIGURATION!$B$1,\"bscr\",CONFIGURATION!$B$12)","v":"Mapped"},null,{"$f":"XBRLMap(O23,O$43&\".\"&O$44&\".\"&$U23&\".\"&$V23,O$41,O$42,CONFIGURATION!$B$10,\"BMA\",CONFIGURATION!$B$1,\"bscr\",CONFIGURATION!$B$12)","v":"Mapped"},null,{"$f":"XBRLMap(Q23,Q$43&\".\"&$U23&\".\"&$V23,Q$41,Q$42,CONFIGURATION!$B$10,\"BMA\",CONFIGURATION!$B$1,\"bscr\",CONFIGURATION!$B$12)","v":"Mapped"},null,{"$f":"XBRLMap(S23,S$43&\".\"&$U23&\".\"&$V23,S$41,S$42,CONFIGURATION!$B$10,\"BMA\",CONFIGURATION!$B$1,\"bscr\",CONFIGURATION!$B$12)","v":"Mapped"}]
[null,null,null,null,{"$f":"XBRLMap(E24,E$43&\".\"&E$44&\".\"&$U24&\".\"&$V24,E$41,E$42,CONFIGURATION!$B$10,\"BMA\",CONFIGURATION!$B$1,\"bscr\",CONFIGURATION!$B$12)","v":"Mapped"},null,{"$f":"XBRLMap(G24,G$43&\".\"&G$44&\".\"&$U24&\".\"&$V24,G$41,G$42,CONFIGURATION!$B$10,\"BMA\",CONFIGURATION!$B$1,\"bscr\",CONFIGURATION!$B$12)","v":"Mapped"},null,{"$f":"XBRLMap(I24,I$43&\".\"&I$44&\".\"&$U24&\".\"&$V24,I$41,I$42,CONFIGURATION!$B$10,\"BMA\",CONFIGURATION!$B$1,\"bscr\",CONFIGURATION!$B$12)","v":"Mapped"},null,{"$f":"XBRLMap(K24,K$43&\".\"&K$44&\".\"&$U24&\".\"&$V24,K$41,K$42,CONFIGURATION!$B$10,\"BMA\",CONFIGURATION!$B$1,\"bscr\",CONFIGURATION!$B$12)","v":"Mapped"},null,{"$f":"XBRLMap(M24,M$43&\".\"&M$44&\".\"&$U24&\".\"&$V24,M$41,M$42,CONFIGURATION!$B$10,\"BMA\",CONFIGURATION!$B$1,\"bscr\",CONFIGURATION!$B$12)","v":"Mapped"},null,{"$f":"XBRLMap(O24,O$43&\".\"&O$44&\".\"&$U24&\".\"&$V24,O$41,O$42,CONFIGURATION!$B$10,\"BMA\",CONFIGURATION!$B$1,\"bscr\",CONFIGURATION!$B$12)","v":"Mapped"},null,{"$f":"XBRLMap(Q24,Q$43&\".\"&$U24&\".\"&$V24,Q$41,Q$42,CONFIGURATION!$B$10,\"BMA\",CONFIGURATION!$B$1,\"bscr\",CONFIGURATION!$B$12)","v":"Mapped"},null,{"$f":"XBRLMap(S24,S$43&\".\"&$U24&\".\"&$V24,S$41,S$42,CONFIGURATION!$B$10,\"BMA\",CONFIGURATION!$B$1,\"bscr\",CONFIGURATION!$B$12)","v":"Mapped"}]
[null,null,null,null,{"$f":"XBRLMap(E25,E$43&\".\"&E$44&\".\"&$U25&\".\"&$V25,E$41,E$42,CONFIGURATION!$B$10,\"BMA\",CONFIGURATION!$B$1,\"bscr\",CONFIGURATION!$B$12)","v":"Mapped"},null,{"$f":"XBRLMap(G25,G$43&\".\"&G$44&\".\"&$U25&\".\"&$V25,G$41,G$42,CONFIGURATION!$B$10,\"BMA\",CONFIGURATION!$B$1,\"bscr\",CONFIGURATION!$B$12)","v":"Mapped"},null,{"$f":"XBRLMap(I25,I$43&\".\"&I$44&\".\"&$U25&\".\"&$V25,I$41,I$42,CONFIGURATION!$B$10,\"BMA\",CONFIGURATION!$B$1,\"bscr\",CONFIGURATION!$B$12)","v":"Mapped"},null,{"$f":"XBRLMap(K25,K$43&\".\"&K$44&\".\"&$U25&\".\"&$V25,K$41,K$42,CONFIGURATION!$B$10,\"BMA\",CONFIGURATION!$B$1,\"bscr\",CONFIGURATION!$B$12)","v":"Mapped"},null,{"$f":"XBRLMap(M25,M$43&\".\"&M$44&\".\"&$U25&\".\"&$V25,M$41,M$42,CONFIGURATION!$B$10,\"BMA\",CONFIGURATION!$B$1,\"bscr\",CONFIGURATION!$B$12)","v":"Mapped"},null,{"$f":"XBRLMap(O25,O$43&\".\"&O$44&\".\"&$U25&\".\"&$V25,O$41,O$42,CONFIGURATION!$B$10,\"BMA\",CONFIGURATION!$B$1,\"bscr\",CONFIGURATION!$B$12)","v":"Mapped"},null,{"$f":"XBRLMap(Q25,Q$43&\".\"&$U25&\".\"&$V25,Q$41,Q$42,CONFIGURATION!$B$10,\"BMA\",CONFIGURATION!$B$1,\"bscr\",CONFIGURATION!$B$12)","v":"Mapped"},null,{"$f":"XBRLMap(S25,S$43&\".\"&$U25&\".\"&$V25,S$41,S$42,CONFIGURATION!$B$10,\"BMA\",CONFIGURATION!$B$1,\"bscr\",CONFIGURATION!$B$12)","v":"Mapped"}]
[null,null,null,null,{"$f":"XBRLMap(E26,E$43&\".\"&E$44&\".\"&$U26&\".\"&$V26,E$41,E$42,CONFIGURATION!$B$10,\"BMA\",CONFIGURATION!$B$1,\"bscr\",CONFIGURATION!$B$12)","v":"Mapped"},null,{"$f":"XBRLMap(G26,G$43&\".\"&G$44&\".\"&$U26&\".\"&$V26,G$41,G$42,CONFIGURATION!$B$10,\"BMA\",CONFIGURATION!$B$1,\"bscr\",CONFIGURATION!$B$12)","v":"Mapped"},null,{"$f":"XBRLMap(I26,I$43&\".\"&I$44&\".\"&$U26&\".\"&$V26,I$41,I$42,CONFIGURATION!$B$10,\"BMA\",CONFIGURATION!$B$1,\"bscr\",CONFIGURATION!$B$12)","v":"Mapped"},null,{"$f":"XBRLMap(K26,K$43&\".\"&K$44&\".\"&$U26&\".\"&$V26,K$41,K$42,CONFIGURATION!$B$10,\"BMA\",CONFIGURATION!$B$1,\"bscr\",CONFIGURATION!$B$12)","v":"Mapped"},null,{"$f":"XBRLMap(M26,M$43&\".\"&M$44&\".\"&$U26&\".\"&$V26,M$41,M$42,CONFIGURATION!$B$10,\"BMA\",CONFIGURATION!$B$1,\"bscr\",CONFIGURATION!$B$12)","v":"Mapped"},null,{"$f":"XBRLMap(O26,O$43&\".\"&O$44&\".\"&$U26&\".\"&$V26,O$41,O$42,CONFIGURATION!$B$10,\"BMA\",CONFIGURATION!$B$1,\"bscr\",CONFIGURATION!$B$12)","v":"Mapped"},null,{"$f":"XBRLMap(Q26,Q$43&\".\"&$U26&\".\"&$V26,Q$41,Q$42,CONFIGURATION!$B$10,\"BMA\",CONFIGURATION!$B$1,\"bscr\",CONFIGURATION!$B$12)","v":"Mapped"},null,{"$f":"XBRLMap(S26,S$43&\".\"&$U26&\".\"&$V26,S$41,S$42,CONFIGURATION!$B$10,\"BMA\",CONFIGURATION!$B$1,\"bscr\",CONFIGURATION!$B$12)","v":"Mapped"}]
[null,null,null,null,{"$f":"XBRLMap(E27,E$43&\".\"&E$44&\".\"&$U27&\".\"&$V27,E$41,E$42,CONFIGURATION!$B$10,\"BMA\",CONFIGURATION!$B$1,\"bscr\",CONFIGURATION!$B$12)","v":"Mapped"},null,{"$f":"XBRLMap(G27,G$43&\".\"&G$44&\".\"&$U27&\".\"&$V27,G$41,G$42,CONFIGURATION!$B$10,\"BMA\",CONFIGURATION!$B$1,\"bscr\",CONFIGURATION!$B$12)","v":"Mapped"},null,{"$f":"XBRLMap(I27,I$43&\".\"&I$44&\".\"&$U27&\".\"&$V27,I$41,I$42,CONFIGURATION!$B$10,\"BMA\",CONFIGURATION!$B$1,\"bscr\",CONFIGURATION!$B$12)","v":"Mapped"},null,{"$f":"XBRLMap(K27,K$43&\".\"&K$44&\".\"&$U27&\".\"&$V27,K$41,K$42,CONFIGURATION!$B$10,\"BMA\",CONFIGURATION!$B$1,\"bscr\",CONFIGURATION!$B$12)","v":"Mapped"},null,{"$f":"XBRLMap(M27,M$43&\".\"&M$44&\".\"&$U27&\".\"&$V27,M$41,M$42,CONFIGURATION!$B$10,\"BMA\",CONFIGURATION!$B$1,\"bscr\",CONFIGURATION!$B$12)","v":"Mapped"},null,{"$f":"XBRLMap(O27,O$43&\".\"&O$44&\".\"&$U27&\".\"&$V27,O$41,O$42,CONFIGURATION!$B$10,\"BMA\",CONFIGURATION!$B$1,\"bscr\",CONFIGURATION!$B$12)","v":"Mapped"},null,{"$f":"XBRLMap(Q27,Q$43&\".\"&$U27&\".\"&$V27,Q$41,Q$42,CONFIGURATION!$B$10,\"BMA\",CONFIGURATION!$B$1,\"bscr\",CONFIGURATION!$B$12)","v":"Mapped"},null,{"$f":"XBRLMap(S27,S$43&\".\"&$U27&\".\"&$V27,S$41,S$42,CONFIGURATION!$B$10,\"BMA\",CONFIGURATION!$B$1,\"bscr\",CONFIGURATION!$B$12)","v":"Mapped"}]
[null,null,null,null,{"$f":"XBRLMap(E28,E$43&\".\"&E$44&\".\"&$U28&\".\"&$V28,E$41,E$42,CONFIGURATION!$B$10,\"BMA\",CONFIGURATION!$B$1,\"bscr\",CONFIGURATION!$B$12)","v":"Mapped"},null,{"$f":"XBRLMap(G28,G$43&\".\"&G$44&\".\"&$U28&\".\"&$V28,G$41,G$42,CONFIGURATION!$B$10,\"BMA\",CONFIGURATION!$B$1,\"bscr\",CONFIGURATION!$B$12)","v":"Mapped"},null,{"$f":"XBRLMap(I28,I$43&\".\"&I$44&\".\"&$U28&\".\"&$V28,I$41,I$42,CONFIGURATION!$B$10,\"BMA\",CONFIGURATION!$B$1,\"bscr\",CONFIGURATION!$B$12)","v":"Mapped"},null,{"$f":"XBRLMap(K28,K$43&\".\"&K$44&\".\"&$U28&\".\"&$V28,K$41,K$42,CONFIGURATION!$B$10,\"BMA\",CONFIGURATION!$B$1,\"bscr\",CONFIGURATION!$B$12)","v":"Mapped"},null,{"$f":"XBRLMap(M28,M$43&\".\"&M$44&\".\"&$U28&\".\"&$V28,M$41,M$42,CONFIGURATION!$B$10,\"BMA\",CONFIGURATION!$B$1,\"bscr\",CONFIGURATION!$B$12)","v":"Mapped"},null,{"$f":"XBRLMap(O28,O$43&\".\"&O$44&\".\"&$U28&\".\"&$V28,O$41,O$42,CONFIGURATION!$B$10,\"BMA\",CONFIGURATION!$B$1,\"bscr\",CONFIGURATION!$B$12)","v":"Mapped"},null,{"$f":"XBRLMap(Q28,Q$43&\".\"&$U28&\".\"&$V28,Q$41,Q$42,CONFIGURATION!$B$10,\"BMA\",CONFIGURATION!$B$1,\"bscr\",CONFIGURATION!$B$12)","v":"Mapped"},null,{"$f":"XBRLMap(S28,S$43&\".\"&$U28&\".\"&$V28,S$41,S$42,CONFIGURATION!$B$10,\"BMA\",CONFIGURATION!$B$1,\"bscr\",CONFIGURATION!$B$12)","v":"Mapped"}]
[null,null,null,null,{"$f":"XBRLMap(E29,E$43&\".\"&E$44&\".\"&$U29&\".\"&$V29,E$41,E$42,CONFIGURATION!$B$10,\"BMA\",CONFIGURATION!$B$1,\"bscr\",CONFIGURATION!$B$12)","v":"Mapped"},null,{"$f":"XBRLMap(G29,G$43&\".\"&G$44&\".\"&$U29&\".\"&$V29,G$41,G$42,CONFIGURATION!$B$10,\"BMA\",CONFIGURATION!$B$1,\"bscr\",CONFIGURATION!$B$12)","v":"Mapped"},null,{"$f":"XBRLMap(I29,I$43&\".\"&I$44&\".\"&$U29&\".\"&$V29,I$41,I$42,CONFIGURATION!$B$10,\"BMA\",CONFIGURATION!$B$1,\"bscr\",CONFIGURATION!$B$12)","v":"Mapped"},null,{"$f":"XBRLMap(K29,K$43&\".\"&K$44&\".\"&$U29&\".\"&$V29,K$41,K$42,CONFIGURATION!$B$10,\"BMA\",CONFIGURATION!$B$1,\"bscr\",CONFIGURATION!$B$12)","v":"Mapped"},null,{"$f":"XBRLMap(M29,M$43&\".\"&M$44&\".\"&$U29&\".\"&$V29,M$41,M$42,CONFIGURATION!$B$10,\"BMA\",CONFIGURATION!$B$1,\"bscr\",CONFIGURATION!$B$12)","v":"Mapped"},null,{"$f":"XBRLMap(O29,O$43&\".\"&O$44&\".\"&$U29&\".\"&$V29,O$41,O$42,CONFIGURATION!$B$10,\"BMA\",CONFIGURATION!$B$1,\"bscr\",CONFIGURATION!$B$12)","v":"Mapped"},null,{"$f":"XBRLMap(Q29,Q$43&\".\"&$U29&\".\"&$V29,Q$41,Q$42,CONFIGURATION!$B$10,\"BMA\",CONFIGURATION!$B$1,\"bscr\",CONFIGURATION!$B$12)","v":"Mapped"},null,{"$f":"XBRLMap(S29,S$43&\".\"&$U29&\".\"&$V29,S$41,S$42,CONFIGURATION!$B$10,\"BMA\",CONFIGURATION!$B$1,\"bscr\",CONFIGURATION!$B$12)","v":"Mapped"}]
[null,null,null,null,{"$f":"XBRLMap(E30,E$43&\".\"&E$44&\".\"&$U30&\".\"&$V30,E$41,E$42,CONFIGURATION!$B$10,\"BMA\",CONFIGURATION!$B$1,\"bscr\",CONFIGURATION!$B$12)","v":"Mapped"},null,{"$f":"XBRLMap(G30,G$43&\".\"&G$44&\".\"&$U30&\".\"&$V30,G$41,G$42,CONFIGURATION!$B$10,\"BMA\",CONFIGURATION!$B$1,\"bscr\",CONFIGURATION!$B$12)","v":"Mapped"},null,{"$f":"XBRLMap(I30,I$43&\".\"&I$44&\".\"&$U30&\".\"&$V30,I$41,I$42,CONFIGURATION!$B$10,\"BMA\",CONFIGURATION!$B$1,\"bscr\",CONFIGURATION!$B$12)","v":"Mapped"},null,{"$f":"XBRLMap(K30,K$43&\".\"&K$44&\".\"&$U30&\".\"&$V30,K$41,K$42,CONFIGURATION!$B$10,\"BMA\",CONFIGURATION!$B$1,\"bscr\",CONFIGURATION!$B$12)","v":"Mapped"},null,{"$f":"XBRLMap(M30,M$43&\".\"&M$44&\".\"&$U30&\".\"&$V30,M$41,M$42,CONFIGURATION!$B$10,\"BMA\",CONFIGURATION!$B$1,\"bscr\",CONFIGURATION!$B$12)","v":"Mapped"},null,{"$f":"XBRLMap(O30,O$43&\".\"&O$44&\".\"&$U30&\".\"&$V30,O$41,O$42,CONFIGURATION!$B$10,\"BMA\",CONFIGURATION!$B$1,\"bscr\",CONFIGURATION!$B$12)","v":"Mapped"},null,{"$f":"XBRLMap(Q30,Q$43&\".\"&$U30&\".\"&$V30,Q$41,Q$42,CONFIGURATION!$B$10,\"BMA\",CONFIGURATION!$B$1,\"bscr\",CONFIGURATION!$B$12)","v":"Mapped"},null,{"$f":"XBRLMap(S30,S$43&\".\"&$U30&\".\"&$V30,S$41,S$42,CONFIGURATION!$B$10,\"BMA\",CONFIGURATION!$B$1,\"bscr\",CONFIGURATION!$B$12)","v":"Mapped"}]
[null,null,null,null,{"$f":"XBRLMap(E31,E$43&\".\"&E$44&\".\"&$U31&\".\"&$V31,E$41,E$42,CONFIGURATION!$B$10,\"BMA\",CONFIGURATION!$B$1,\"bscr\",CONFIGURATION!$B$12)","v":"Mapped"},null,{"$f":"XBRLMap(G31,G$43&\".\"&G$44&\".\"&$U31&\".\"&$V31,G$41,G$42,CONFIGURATION!$B$10,\"BMA\",CONFIGURATION!$B$1,\"bscr\",CONFIGURATION!$B$12)","v":"Mapped"},null,{"$f":"XBRLMap(I31,I$43&\".\"&I$44&\".\"&$U31&\".\"&$V31,I$41,I$42,CONFIGURATION!$B$10,\"BMA\",CONFIGURATION!$B$1,\"bscr\",CONFIGURATION!$B$12)","v":"Mapped"},null,{"$f":"XBRLMap(K31,K$43&\".\"&K$44&\".\"&$U31&\".\"&$V31,K$41,K$42,CONFIGURATION!$B$10,\"BMA\",CONFIGURATION!$B$1,\"bscr\",CONFIGURATION!$B$12)","v":"Mapped"},null,{"$f":"XBRLMap(M31,M$43&\".\"&M$44&\".\"&$U31&\".\"&$V31,M$41,M$42,CONFIGURATION!$B$10,\"BMA\",CONFIGURATION!$B$1,\"bscr\",CONFIGURATION!$B$12)","v":"Mapped"},null,{"$f":"XBRLMap(O31,O$43&\".\"&O$44&\".\"&$U31&\".\"&$V31,O$41,O$42,CONFIGURATION!$B$10,\"BMA\",CONFIGURATION!$B$1,\"bscr\",CONFIGURATION!$B$12)","v":"Mapped"},null,{"$f":"XBRLMap(Q31,Q$43&\".\"&$U31&\".\"&$V31,Q$41,Q$42,CONFIGURATION!$B$10,\"BMA\",CONFIGURATION!$B$1,\"bscr\",CONFIGURATION!$B$12)","v":"Mapped"},null,{"$f":"XBRLMap(S31,S$43&\".\"&$U31&\".\"&$V31,S$41,S$42,CONFIGURATION!$B$10,\"BMA\",CONFIGURATION!$B$1,\"bscr\",CONFIGURATION!$B$12)","v":"Mapped"}]
[null,null,null,null,{"$f":"XBRLMap(E32,E$43&\".\"&E$44&\".\"&$U32&\".\"&$V32,E$41,E$42,CONFIGURATION!$B$10,\"BMA\",CONFIGURATION!$B$1,\"bscr\",CONFIGURATION!$B$12)","v":"Mapped"},null,{"$f":"XBRLMap(G32,G$43&\".\"&G$44&\".\"&$U32&\".\"&$V32,G$41,G$42,CONFIGURATION!$B$10,\"BMA\",CONFIGURATION!$B$1,\"bscr\",CONFIGURATION!$B$12)","v":"Mapped"},null,{"$f":"XBRLMap(I32,I$43&\".\"&I$44&\".\"&$U32&\".\"&$V32,I$41,I$42,CONFIGURATION!$B$10,\"BMA\",CONFIGURATION!$B$1,\"bscr\",CONFIGURATION!$B$12)","v":"Mapped"},null,{"$f":"XBRLMap(K32,K$43&\".\"&K$44&\".\"&$U32&\".\"&$V32,K$41,K$42,CONFIGURATION!$B$10,\"BMA\",CONFIGURATION!$B$1,\"bscr\",CONFIGURATION!$B$12)","v":"Mapped"},null,{"$f":"XBRLMap(M32,M$43&\".\"&M$44&\".\"&$U32&\".\"&$V32,M$41,M$42,CONFIGURATION!$B$10,\"BMA\",CONFIGURATION!$B$1,\"bscr\",CONFIGURATION!$B$12)","v":"Mapped"},null,{"$f":"XBRLMap(O32,O$43&\".\"&O$44&\".\"&$U32&\".\"&$V32,O$41,O$42,CONFIGURATION!$B$10,\"BMA\",CONFIGURATION!$B$1,\"bscr\",CONFIGURATION!$B$12)","v":"Mapped"},null,{"$f":"XBRLMap(Q32,Q$43&\".\"&$U32&\".\"&$V32,Q$41,Q$42,CONFIGURATION!$B$10,\"BMA\",CONFIGURATION!$B$1,\"bscr\",CONFIGURATION!$B$12)","v":"Mapped"},null,{"$f":"XBRLMap(S32,S$43&\".\"&$U32&\".\"&$V32,S$41,S$42,CONFIGURATION!$B$10,\"BMA\",CONFIGURATION!$B$1,\"bscr\",CONFIGURATION!$B$12)","v":"Mapped"}]
[null,null,null,null,{"$f":"XBRLMap(E33,E$43&\".\"&E$44&\".\"&$U33&\".\"&$V33,E$41,E$42,CONFIGURATION!$B$10,\"BMA\",CONFIGURATION!$B$1,\"bscr\",CONFIGURATION!$B$12)","v":"Mapped"},null,{"$f":"XBRLMap(G33,G$43&\".\"&G$44&\".\"&$U33&\".\"&$V33,G$41,G$42,CONFIGURATION!$B$10,\"BMA\",CONFIGURATION!$B$1,\"bscr\",CONFIGURATION!$B$12)","v":"Mapped"},null,{"$f":"XBRLMap(I33,I$43&\".\"&I$44&\".\"&$U33&\".\"&$V33,I$41,I$42,CONFIGURATION!$B$10,\"BMA\",CONFIGURATION!$B$1,\"bscr\",CONFIGURATION!$B$12)","v":"Mapped"},null,{"$f":"XBRLMap(K33,K$43&\".\"&K$44&\".\"&$U33&\".\"&$V33,K$41,K$42,CONFIGURATION!$B$10,\"BMA\",CONFIGURATION!$B$1,\"bscr\",CONFIGURATION!$B$12)","v":"Mapped"},null,{"$f":"XBRLMap(M33,M$43&\".\"&M$44&\".\"&$U33&\".\"&$V33,M$41,M$42,CONFIGURATION!$B$10,\"BMA\",CONFIGURATION!$B$1,\"bscr\",CONFIGURATION!$B$12)","v":"Mapped"},null,{"$f":"XBRLMap(O33,O$43&\".\"&O$44&\".\"&$U33&\".\"&$V33,O$41,O$42,CONFIGURATION!$B$10,\"BMA\",CONFIGURATION!$B$1,\"bscr\",CONFIGURATION!$B$12)","v":"Mapped"},null,{"$f":"XBRLMap(Q33,Q$43&\".\"&$U33&\".\"&$V33,Q$41,Q$42,CONFIGURATION!$B$10,\"BMA\",CONFIGURATION!$B$1,\"bscr\",CONFIGURATION!$B$12)","v":"Mapped"},null,{"$f":"XBRLMap(S33,S$43&\".\"&$U33&\".\"&$V33,S$41,S$42,CONFIGURATION!$B$10,\"BMA\",CONFIGURATION!$B$1,\"bscr\",CONFIGURATION!$B$12)","v":"Mapped"}]
[null,null,null,null,{"$f":"XBRLMap(E34,E$43&\".\"&E$44&\".\"&$U34&\".\"&$V34,E$41,E$42,CONFIGURATION!$B$10,\"BMA\",CONFIGURATION!$B$1,\"bscr\",CONFIGURATION!$B$12)","v":"Mapped"},null,{"$f":"XBRLMap(G34,G$43&\".\"&G$44&\".\"&$U34&\".\"&$V34,G$41,G$42,CONFIGURATION!$B$10,\"BMA\",CONFIGURATION!$B$1,\"bscr\",CONFIGURATION!$B$12)","v":"Mapped"},null,{"$f":"XBRLMap(I34,I$43&\".\"&I$44&\".\"&$U34&\".\"&$V34,I$41,I$42,CONFIGURATION!$B$10,\"BMA\",CONFIGURATION!$B$1,\"bscr\",CONFIGURATION!$B$12)","v":"Mapped"},null,{"$f":"XBRLMap(K34,K$43&\".\"&K$44&\".\"&$U34&\".\"&$V34,K$41,K$42,CONFIGURATION!$B$10,\"BMA\",CONFIGURATION!$B$1,\"bscr\",CONFIGURATION!$B$12)","v":"Mapped"},null,{"$f":"XBRLMap(M34,M$43&\".\"&M$44&\".\"&$U34&\".\"&$V34,M$41,M$42,CONFIGURATION!$B$10,\"BMA\",CONFIGURATION!$B$1,\"bscr\",CONFIGURATION!$B$12)","v":"Mapped"},null,{"$f":"XBRLMap(O34,O$43&\".\"&O$44&\".\"&$U34&\".\"&$V34,O$41,O$42,CONFIGURATION!$B$10,\"BMA\",CONFIGURATION!$B$1,\"bscr\",CONFIGURATION!$B$12)","v":"Mapped"},null,{"$f":"XBRLMap(Q34,Q$43&\".\"&$U34&\".\"&$V34,Q$41,Q$42,CONFIGURATION!$B$10,\"BMA\",CONFIGURATION!$B$1,\"bscr\",CONFIGURATION!$B$12)","v":"Mapped"},null,{"$f":"XBRLMap(S34,S$43&\".\"&$U34&\".\"&$V34,S$41,S$42,CONFIGURATION!$B$10,\"BMA\",CONFIGURATION!$B$1,\"bscr\",CONFIGURATION!$B$12)","v":"Mapped"}]
[null,null,null,null,{"$f":"XBRLMap(E35,E$43&\".\"&E$44&\".\"&$U35&\".\"&$V35,E$41,E$42,CONFIGURATION!$B$10,\"BMA\",CONFIGURATION!$B$1,\"bscr\",CONFIGURATION!$B$12)","v":"Mapped"},null,{"$f":"XBRLMap(G35,G$43&\".\"&G$44&\".\"&$U35&\".\"&$V35,G$41,G$42,CONFIGURATION!$B$10,\"BMA\",CONFIGURATION!$B$1,\"bscr\",CONFIGURATION!$B$12)","v":"Mapped"},null,{"$f":"XBRLMap(I35,I$43&\".\"&I$44&\".\"&$U35&\".\"&$V35,I$41,I$42,CONFIGURATION!$B$10,\"BMA\",CONFIGURATION!$B$1,\"bscr\",CONFIGURATION!$B$12)","v":"Mapped"},null,{"$f":"XBRLMap(K35,K$43&\".\"&K$44&\".\"&$U35&\".\"&$V35,K$41,K$42,CONFIGURATION!$B$10,\"BMA\",CONFIGURATION!$B$1,\"bscr\",CONFIGURATION!$B$12)","v":"Mapped"},null,{"$f":"XBRLMap(M35,M$43&\".\"&M$44&\".\"&$U35&\".\"&$V35,M$41,M$42,CONFIGURATION!$B$10,\"BMA\",CONFIGURATION!$B$1,\"bscr\",CONFIGURATION!$B$12)","v":"Mapped"},null,{"$f":"XBRLMap(O35,O$43&\".\"&O$44&\".\"&$U35&\".\"&$V35,O$41,O$42,CONFIGURATION!$B$10,\"BMA\",CONFIGURATION!$B$1,\"bscr\",CONFIGURATION!$B$12)","v":"Mapped"},null,{"$f":"XBRLMap(Q35,Q$43&\".\"&$U35&\".\"&$V35,Q$41,Q$42,CONFIGURATION!$B$10,\"BMA\",CONFIGURATION!$B$1,\"bscr\",CONFIGURATION!$B$12)","v":"Mapped"},null,{"$f":"XBRLMap(S35,S$43&\".\"&$U35&\".\"&$V35,S$41,S$42,CONFIGURATION!$B$10,\"BMA\",CONFIGURATION!$B$1,\"bscr\",CONFIGURATION!$B$12)","v":"Mapped"}]
[]
[]
[]
[]
[null,null,null,null,"bma_StatementComponentAxis_bma_GrossWrittenMember",null,"bma_StatementComponentAxis_bma_GrossWrittenMember",null,"bma_StatementComponentAxis_bma_GrossWrittenMember",null,"bma_StatementComponentAxis_bma_GrossWrittenMember",null,"bma_StatementComponentAxis_bma_GrossWrittenMember",null,"bma_StatementComponentAxis_bma_GrossWrittenMember",null,"bma_StatementComponentAxis_bma_NetWrittenMember",null,"bma_NetWrittenMember"]
[null,null,null,null,"bma_StatementComponentAxis_bma_UnrelatedWrittenMember",null,"bma_StatementComponentAxis_bma_UnrelatedWrittenMember",null,"bma_StatementComponentAxis_bma_RelatedWrittenMember",null,"bma_StatementComponentAxis_bma_RelatedWrittenMember",null,"bma_StatementComponentAxis_bma_TotalWrittenMember",null,"bma_StatementComponentAxis_bma_TotalWrittenMember"]

{"sheet":"Schedule IVA (EBS)","index":35,"n_rows":77,"n_cols":29,"rows_kept":77,"cut":false,"hidden":false,"merged":[[6,12,6,14],[6,16,6,18],[1,1,1,2],[4,4,4,14],[5,4,5,6],[4,16,4,18],[5,8,5,10],[5,12,5,14]]}
[null,"SCHEDULE OF PREMIUMS WRITTEN BY LINE OF BUSINESS",null,null,null,null,null,null,null,null,null,null,null,null,null,null,null,null,null,null,{"$f":"HYPERLINK(\"#'Index'!A1\",\"Return to Index\")","v":"Return to Index"}]
[null,{"$f":"'Company Information'!C7","v":"Enter Company Name"}]
[null,{"$f":"\"For the year ending \"&TEXT('Company Information'!C3,\"MMMM DD, YYYY\")","v":"For the year ending December 31, 2019"},null,null,null,null,null,null,null,null,null,null,null,null,null,null,null,null,null,null,"SCHEDULE IV(A) (EBS)"]
[null,{"$f":"\"expressed in\"& IF(CONFIGURATION!$B$12>1,\" ['\"&MID(CONFIGURATION!$B$12,2,LEN(CONFIGURATION!$B$12))&\"s]\",\"\")&\" \"&'Form 1EBS'!C4","v":"expressed in ['000s] United States Dollars"}]
[null,null,null,null,"Gross Premiums Written",null,null,null,null,null,null,null,null,null,null,null,"Net Premiums Written",null,null,null,"Geo NPW"]
[null,null,null,null,"Unrelated",null,null,null,"Related",null,null,null,"Total"]
[null,"Schedule ",null,null,null,null,null,null,null,null,null,null,"Form 2SFS, Line 1(c) ",null,null,null,"Form 2SFS, Line 3",null,null,null,"[ Schedule IV(C) ]"]
[null,"Line no. ",null,null,{"$f":"'Form 1EBS'!F7","v":"2019-12-31"},null,{"$f":"'Form 1EBS'!H7","v":"2018-12-31"},null,{"$f":"'Form 1EBS'!F7","v":"2019-12-31"},null,{"$f":"'Form 1EBS'!H7","v":"2018-12-31"},null,{"$f":"'Form 1EBS'!F7","v":"2019-12-31"},null,{"$f":"'Form 1EBS'!H7","v":"2018-12-31"},null,{"$f":"'Form 1EBS'!F7","v":"2019-12-31"},null,{"$f":"'Form 1EBS'!H7","v":"2018-12-31"},null,{"$f":"'Form 1EBS'!F7","v":"2019-12-31"}]
[null,null,null,null,{"$f":"CONFIGURATION!$D$12","v":" ('000s)"},null,{"$f":"CONFIGURATION!$D$12","v":" ('000s)"},null,{"$f":"CONFIGURATION!$D$12","v":" ('000s)"},null,{"$f":"CONFIGURATION!$D$12","v":" ('000s)"},null,{"$f":"CONFIGURATION!$D$12","v":" ('000s)"},null,{"$f":"CONFIGURATION!$D$12","v":" ('000s)"},null,{"$f":"CONFIGURATION!$D$12","v":" ('000s)"},null,{"$f":"CONFIGURATION!$D$12","v":" ('000s)"},null,{"$f":"CONFIGURATION!$D$12","v":" ('000s)"}]
[]
[null,1,"Property Catastrophe",null,{"$f":"Import!I1261","v":0},null,{"$f":"Import!K1261","v":0},null,{"$f":"Import!I1285","v":0},null,{"$f":"Import!K1285","v":0},null,{"$f":"E11+I11","v":0},null,{"$f":"G11+K11","v":0},null,{"$f":"Import!I1309","v":0},null,{"$f":"Import!K1309","v":0},null,{"$f":"+'Schedule IVC (EBS)'!X9","v":0},null,"brrt_LineOfBusinessAxis_brrt_PropertyCatastropheMember","brrt_TypeOfContractAxis_brrt_ProportionalMember",null,null,null,null,"bma_ScheduleOfPremiumsWrittenByLineOfBusinessPropertyCatastrophe"]
[null,2,"Property",null,{"$f":"Import!I1262","v":0},null,{"$f":"Import!K1262","v":0},null,{"$f":"Import!I1286","v":0},null,{"$f":"Import!K1286","v":0},null,0,null,0,null,{"$f":"Import!I1310","v":0},null,{"$f":"Import!K1310","v":0},null,{"$f":"+'Schedule IVC (EBS)'!X10","v":0},null,"brrt_LineOfBusinessAxis_brrt_PropertyMember","brrt_TypeOfContractAxis_brrt_ProportionalMember",null,null,null,null,"bma_ScheduleOfPremiumsWrittenByLineOfBusinessProperty"]
[null,3,"Property Non – Proportional",null,{"$f":"Import!I1263","v":0},null,{"$f":"Import!K1263","v":0},null,{"$f":"Import!I1287","v":0},null,{"$f":"Import!K1287","v":0},null,0,null,0,null,{"$f":"Import!I1311","v":0},null,{"$f":"Import!K1311","v":0},null,{"$f":"+'Schedule IVC (EBS)'!X11","v":0},null,"brrt_LineOfBusinessAxis_brrt_PropertyMember","brrt_TypeOfContractAxis_brrt_NonProportionalMember",null,null,null,null,"bma_ScheduleOfPremiumsWrittenByLineOfBusinessPropertyNonProportional"]
[null,4,"Personal Accident",null,{"$f":"Import!I1264","v":0},null,{"$f":"Import!K1264","v":0},null,{"$f":"Import!I1288","v":0},null,{"$f":"Import!K1288","v":0},null,0,null,0,null,{"$f":"Import!I1312","v":0},null,{"$f":"Import!K1312","v":0},null,{"$f":"+'Schedule IVC (EBS)'!X12","v":0},null,"brrt_LineOfBusinessAxis_brrt_PersonalAccidentMember","brrt_TypeOfContractAxis_brrt_ProportionalMember",null,null,null,null,"bma_ScheduleOfPremiumsWrittenByLineOfBusinessPersonalAccident"]
[null,5,"Personal Accident Non- Proportional",null,{"$f":"Import!I1265","v":0},null,{"$f":"Import!K1265","v":0},null,{"$f":"Import!I1289","v":0},null,{"$f":"Import!K1289","v":0},null,0,null,0,null,{"$f":"Import!I1313","v":0},null,{"$f":"Import!K1313","v":0},null,{"$f":"+'Schedule IVC (EBS)'!X13","v":0},null,"brrt_LineOfBusinessAxis_brrt_PersonalAccidentMember","brrt_TypeOfContractAxis_brrt_NonProportionalMember",null,null,null,null,"bma_ScheduleOfPremiumsWrittenByLineOfBusinessPersonalAccidentNonProportional"]
[null,6,"Aviation",null,{"$f":"Import!I1266","v":0},null,{"$f":"Import!K1266","v":0},null,{"$f":"Import!I1290","v":0},null,{"$f":"Import!K1290","v":0},null,0,null,0,null,{"$f":"Import!I1314","v":0},null,{"$f":"Import!K1314","v":0},null,{"$f":"+'Schedule IVC (EBS)'!X14","v":0},null,"brrt_LineOfBusinessAxis_brrt_AviationMember","brrt_TypeOfContractAxis_brrt_ProportionalMember",null,null,null,null,"bma_ScheduleOfPremiumsWrittenByLineOfBusinessAviation"]
[null,7,"Aviation Non – Proportional",null,{"$f":"Import!I1267","v":0},null,{"$f":"Import!K1267","v":0},null,{"$f":"Import!I1291","v":0},null,{"$f":"Import!K1291","v":0},null,0,null,0,null,{"$f":"Import!I1315","v":0},null,{"$f":"Import!K1315","v":0},null,{"$f":"+'Schedule IVC (EBS)'!X15","v":0},null,"brrt_LineOfBusinessAxis_brrt_AviationMember","brrt_TypeOfContractAxis_brrt_NonProportionalMember",null,null,null,null,"bma_ScheduleOfPremiumsWrittenByLineOfBusinessAviationNonProportional"]
[null,8,"Credit / Surety ",null,{"$f":"Import!I1268","v":0},null,{"$f":"Import!K1268","v":0},null,{"$f":"Import!I1292","v":0},null,{"$f":"Import!K1292","v":0},null,0,null,0,null,{"$f":"Import!I1316","v":0},null,{"$f":"Import!K1316","v":0},null,{"$f":"+'Schedule IVC (EBS)'!X16","v":0},null,"brrt_LineOfBusinessAxis_brrt_CreditSuretyMember","brrt_TypeOfContractAxis_brrt_ProportionalMember",null,null,null,null,"bma_ScheduleOfPremiumsWrittenByLineOfBusinessCreditSurety"]
[null,9,"Credit / Surety Non – Proportional",null,{"$f":"Import!I1269","v":0},null,{"$f":"Import!K1269","v":0},null,{"$f":"Import!I1293","v":0},null,{"$f":"Import!K1293","v":0},null,0,null,0,null,{"$f":"Import!I1317","v":0},null,{"$f":"Import!K1317","v":0},null,{"$f":"+'Schedule IVC (EBS)'!X17","v":0},null,"brrt_LineOfBusinessAxis_brrt_CreditSuretyMember","brrt_TypeOfContractAxis_brrt_NonProportionalMember",null,null,null,null,"bma_ScheduleOfPremiumsWrittenByLineOfBusinessCreditSuretyNonProportional"]
[null,10,"Energy Offshore / Marine",null,{"$f":"Import!I1270","v":0},null,{"$f":"Import!K1270","v":0},null,{"$f":"Import!I1294","v":0},null,{"$f":"Import!K1294","v":0},null,0,null,0,null,{"$f":"Import!I1318","v":0},null,{"$f":"Import!K1318","v":0},null,{"$f":"+'Schedule IVC (EBS)'!X18","v":0},null,"brrt_LineOfBusinessAxis_brrt_EnergyOffshoreMarineMember","brrt_TypeOfContractAxis_brrt_ProportionalMember",null,null,null,null,"bma_ScheduleOfPremiumsWrittenByLineOfBusinessEnergyOffshoreMarine"]
[null,11,"Energy Offshore / Marine Non - Proportional ","  ",{"$f":"Import!I1271","v":0},null,{"$f":"Import!K1271","v":0},null,{"$f":"Import!I1295","v":0},null,{"$f":"Import!K1295","v":0},null,0,null,0,null,{"$f":"Import!I1319","v":0},null,{"$f":"Import!K1319","v":0},null,{"$f":"+'Schedule IVC (EBS)'!X19","v":0},null,"brrt_LineOfBusinessAxis_brrt_EnergyOffshoreMarineMember","brrt_TypeOfContractAxis_brrt_NonProportionalMember",null,null,null,null,"bma_ScheduleOfPremiumsWrittenByLineOfBusinessEnergyOffshoreMarineNonProportional"]
[null,12,"US Casualty",null,{"$f":"Import!I1272","v":0},null,{"$f":"Import!K1272","v":0},null,{"$f":"Import!I1296","v":0},null,{"$f":"Import!K1296","v":0},null,0,null,0,null,{"$f":"Import!I1320","v":0},null,{"$f":"Import!K1320","v":0},null,{"$f":"+'Schedule IVC (EBS)'!X20","v":0},null,"brrt_LineOfBusinessAxis_brrt_USCasualtyMember","brrt_TypeOfContractAxis_brrt_ProportionalMember",null,null,null,null,"bma_ScheduleOfPremiumsWrittenByLineOfBusinessUsCasualty"]
[null,13,"US Casualty Non - Proportional ",null,{"$f":"Import!I1273","v":0},null,{"$f":"Import!K1273","v":0},null,{"$f":"Import!I1297","v":0},null,{"$f":"Import!K1297","v":0},null,0,null,0,null,{"$f":"Import!I1321","v":0},null,{"$f":"Import!K1321","v":0},null,{"$f":"+'Schedule IVC (EBS)'!X21","v":0},null,"brrt_LineOfBusinessAxis_brrt_USCasualtyMember","brrt_TypeOfContractAxis_brrt_NonProportionalMember",null,null,null,null,"bma_ScheduleOfPremiumsWrittenByLineOfBusinessUsCasualtyNonProportional"]
[null,14,"US Professional",null,{"$f":"Import!I1274","v":0},null,{"$f":"Import!K1274","v":0},null,{"$f":"Import!I1298","v":0},null,{"$f":"Import!K1298","v":0},null,0,null,0,null,{"$f":"Import!I1322","v":0},null,{"$f":"Import!K1322","v":0},null,{"$f":"+'Schedule IVC (EBS)'!X22","v":0},null,"brrt_LineOfBusinessAxis_brrt_USProfessionalMember","brrt_TypeOfContractAxis_brrt_ProportionalMember",null,null,null,null,"bma_ScheduleOfPremiumsWrittenByLineOfBusinessUsProfessional"]
[null,15,"US Professional Non – Proportional",null,{"$f":"Import!I1275","v":0},null,{"$f":"Import!K1275","v":0},null,{"$f":"Import!I1299","v":0},null,{"$f":"Import!K1299","v":0},null,0,null,0,null,{"$f":"Import!I1323","v":0},null,{"$f":"Import!K1323","v":0},null,{"$f":"+'Schedule IVC (EBS)'!X23","v":0},null,"brrt_LineOfBusinessAxis_brrt_USProfessionalMember","brrt_TypeOfContractAxis_brrt_NonProportionalMember",null,null,null,null,"bma_ScheduleOfPremiumsWrittenByLineOfBusinessUsProfessionalNonProportional"]
[null,16,"US Specialty ",null,{"$f":"Import!I1276","v":0},null,{"$f":"Import!K1276","v":0},null,{"$f":"Import!I1300","v":0},null,{"$f":"Import!K1300","v":0},null,0,null,0,null,{"$f":"Import!I1324","v":0},null,{"$f":"Import!K1324","v":0},null,{"$f":"+'Schedule IVC (EBS)'!X24","v":0},null,"brrt_LineOfBusinessAxis_brrt_USSpecialtyMember","brrt_TypeOfContractAxis_brrt_ProportionalMember",null,null,null,null,"bma_ScheduleOfPremiumsWrittenByLineOfBusinessUsSpecialty"]
[null,17,"US Specialty Non - Proportional",null,{"$f":"Import!I1277","v":0},null,{"$f":"Import!K1277","v":0},null,{"$f":"Import!I1301","v":0},null,{"$f":"Import!K1301","v":0},null,0,null,0,null,{"$f":"Import!I1325","v":0},null,{"$f":"Import!K1325","v":0},null,{"$f":"+'Schedule IVC (EBS)'!X25","v":0},null,"brrt_LineOfBusinessAxis_brrt_USSpecialtyMember","brrt_TypeOfContractAxis_brrt_NonProportionalMember",null,null,null,null,"bma_ScheduleOfPremiumsWrittenByLineOfBusinessUsSpecialtyNonProportional"]
[null,18,"International Motor ",null,{"$f":"Import!I1278","v":0},null,{"$f":"Import!K1278","v":0},null,{"$f":"Import!I1302","v":0},null,{"$f":"Import!K1302","v":0},null,0,null,0,null,{"$f":"Import!I1326","v":0},null,{"$f":"Import!K1326","v":0},null,{"$f":"+'Schedule IVC (EBS)'!X26","v":0},null,"brrt_LineOfBusinessAxis_brrt_InternationalMotorMember","brrt_TypeOfContractAxis_brrt_ProportionalMember",null,null,null,null,"bma_ScheduleOfPremiumsWrittenByLineOfBusinessInternationalMotor"]
[null,19,"International Motor Non – Proportional",null,{"$f":"Import!I1279","v":0},null,{"$f":"Import!K1279","v":0},null,{"$f":"Import!I1303","v":0},null,{"$f":"Import!K1303","v":0},null,0,null,0,null,{"$f":"Import!I1327","v":0},null,{"$f":"Import!K1327","v":0},null,{"$f":"+'Schedule IVC (EBS)'!X27","v":0},null,"brrt_LineOfBusinessAxis_brrt_InternationalMotorMember","brrt_TypeOfContractAxis_brrt_NonProportionalMember",null,null,null,null,"bma_ScheduleOfPremiumsWrittenByLineOfBusinessInternationalMotorNonProportional"]
[null,20,"International Casualty Non – Motor ",null,{"$f":"Import!I1280","v":0},null,{"$f":"Import!K1280","v":0},null,{"$f":"Import!I1304","v":0},null,{"$f":"Import!K1304","v":0},null,0,null,0,null,{"$f":"Import!I1328","v":0},null,{"$f":"Import!K1328","v":0},null,{"$f":"+'Schedule IVC (EBS)'!X28","v":0},null,"brrt_LineOfBusinessAxis_brrt_InternationalCasualtyNonMotorMember","brrt_TypeOfContractAxis_brrt_ProportionalMember",null,null,null,null,"bma_ScheduleOfPremiumsWrittenByLineOfBusinessInternationalCasualtyNonMotor"]
[null,21,"International Casualty Non Motor Non – Proportional ",null,{"$f":"Import!I1281","v":0},null,{"$f":"Import!K1281","v":0},null,{"$f":"Import!I1305","v":0},null,{"$f":"Import!K1305","v":0},null,0,null,0,null,{"$f":"Import!I1329","v":0},null,{"$f":"Import!K1329","v":0},null,{"$f":"+'Schedule IVC (EBS)'!X29","v":0},null,"brrt_LineOfBusinessAxis_brrt_InternationalCasualtyNonMotorMember","brrt_TypeOfContractAxis_brrt_NonProportionalMember",null,null,null,null,"bma_ScheduleOfPremiumsWrittenByLineOfBusinessInternationalCasualtyNonMotorNonProportional"]
[null,22,"Retro Property",null,{"$f":"Import!I1282","v":0},null,{"$f":"Import!K1282","v":0},null,{"$f":"Import!I1306","v":0},null,{"$f":"Import!K1306","v":0},null,0,null,0,null,{"$f":"Import!I1330","v":0},null,{"$f":"Import!K1330","v":0},null,{"$f":"+'Schedule IVC (EBS)'!X30","v":0},null,"brrt_LineOfBusinessAxis_brrt_RetroPropertyMember","brrt_TypeOfContractAxis_brrt_ProportionalMember",null,null,null,null,"bma_ScheduleOfPremiumsWrittenByLineOfBusinessRetroProperty"]
[null,23,"Structured / Finite Reinsurance",null,{"$f":"Import!I1283","v":0},null,{"$f":"Import!K1283","v":0},null,{"$f":"Import!I1307","v":0},null,{"$f":"Import!K1307","v":0},null,0,null,0,null,{"$f":"Import!I1331","v":0},null,{"$f":"Import!K1331","v":0},null,{"$f":"+'Schedule IVC (EBS)'!X31","v":0},null,"brrt_LineOfBusinessAxis_brrt_StructuredFiniteReinsuranceMember","brrt_TypeOfContractAxis_brrt_ProportionalMember",null,null,null,null,"bma_ScheduleOfPremiumsWrittenByLineOfBusinessStructuredFiniteReinsurance"]
[null,24,"Health",null,{"$f":"Import!I1284","v":0},null,{"$f":"Import!K1284","v":0},null,{"$f":"Import!I1308","v":0},null,{"$f":"Import!K1308","v":0},null,0,null,0,null,{"$f":"Import!I1332","v":0},null,{"$f":"Import!K1332","v":0},null,{"$f":"+'Schedule IVC (EBS)'!X32","v":0},null,"brrt_LineOfBusinessAxis_brrt_HealthMember","brrt_TypeOfContractAxis_brrt_ProportionalMember",null,null,null,null,"bma_ScheduleOfPremiumsWrittenByLineOfBusinessHealth"]
[null,25,"Total ",null,{"$f":"SUM(E11:E34)","v":0},null,{"$f":"SUM(G11:G34)","v":0},null,{"$f":"SUM(I11:I34)","v":0},null,{"$f":"SUM(K11:K34)","v":0},null,{"$f":"SUM(M11:M34)","v":0},null,{"$f":"SUM(O11:O34)","v":0},null,{"$f":"SUM(Q11:Q34)","v":0},null,{"$f":"SUM(S11:S34)","v":0},null,{"$f":"SUM(U11:U34)","v":0},null,"brrt_LineOfBusinessAxis_brrt_TotalMember","brrt_TypeOfContractAxis_brrt_ProportionalMember",null,null,null,null,"bma_ScheduleOfPremiumsWrittenByLineOfBusinessTotal"]
[]
[null,null,null,null,null,null,null,null,null,null,null,null,{"$f":"IF(M38=\"TRUE\",HYPERLINK(\"#'Form 2SFS'!E14:M14\",\"TRUE\"),HYPERLINK(\"#'Form 2SFS'!E14:M14\",\"FALSE\"))","v":"TRUE"},null,{"$f":"IF(O38=\"TRUE\",HYPERLINK(\"#'Form 2SFS'!G14:O14\",\"TRUE\"),HYPERLINK(\"#'Form 2SFS'!G14:O14\",\"FALSE\"))","v":"TRUE"},null,{"$f":"IF(Q38=\"TRUE\",HYPERLINK(\"#'Form 2SFS'!E18:M18\",\"TRUE\"),HYPERLINK(\"#'Form 2SFS'!E18:M18\",\"FALSE\"))","v":"TRUE"},null,{"$f":"IF(S38=\"TRUE\",HYPERLINK(\"#'Form 2SFS'!G18:O18\",\"TRUE\"),HYPERLINK(\"#'Form 2SFS'!G18:O18\",\"FALSE\"))","v":"TRUE"}]
[null,null,null,null,null,null,null,null,null,null,null,null,{"$f":"IF(SUM('Form 1SFS'!$E$100,'Form 1SFS'!$I$100)=0,IF(ROUND((M35-'Form 2SFS'!M14),0)=0,\"TRUE\",\"FALSE\"),IF('Form 2SFS'!M14=0,IF(ROUND((M35-'Form 2SFS'!E14),0)=0,\"TRUE\",\"FALSE\"),IF(ROUND((M35-'Form 2SFS'!M14),0)=0,\"TRUE\",\"FALSE\")))","v":"TRUE"},null,{"$f":"IF(SUM('Form 1SFS'!$E$100,'Form 1SFS'!$I$100)=0,IF(ROUND((O35-'Form 2SFS'!O14),0)=0,\"TRUE\",\"FALSE\"),IF('Form 2SFS'!O14=0,IF(ROUND((O35-'Form 2SFS'!G14),0)=0,\"TRUE\",\"FALSE\"),IF(ROUND((O35-'Form 2SFS'!O14),0)=0,\"TRUE\",\"FALSE\")))","v":"TRUE"},null,{"$f":"IF(SUM('Form 1SFS'!$E$100,'Form 1SFS'!$I$100)=0,IF(ROUND((Q35-'Form 2SFS'!M18),0)=0,\"TRUE\",\"FALSE\"),IF('Form 2SFS'!M18=0,IF(ROUND((Q35-'Form 2SFS'!E18),0)=0,\"TRUE\",\"FALSE\"),IF(ROUND((Q35-'Form 2SFS'!M18),0)=0,\"TRUE\",\"FALSE\")))","v":"TRUE"},null,{"$f":"IF(SUM('Form 1SFS'!$E$100,'Form 1SFS'!$I$100)=0,IF(ROUND((S35-'Form 2SFS'!O18),0)=0,\"TRUE\",\"FALSE\"),IF('Form 2SFS'!O18=0,IF(ROUND((S35-'Form 2SFS'!G18),0)=0,\"TRUE\",\"FALSE\"),IF(ROUND((S35-'Form 2SFS'!O18),0)=0,\"TRUE\",\"FALSE\")))","v":"TRUE"}]
[null,null,null,null,null,null,null,null,null,null,null,null,{"$f":"IF(SUM('Form 1SFS'!$E$100,'Form 1SFS'!$I$100)=0,ROUND('Form 2SFS'!M14-M35,0),IF('Form 2SFS'!M14=0,ROUND('Form 2SFS'!E14-M35,0),ROUND('Form 2SFS'!M14-M35,0)))","v":0},null,{"$f":"IF(SUM('Form 1SFS'!$E$100,'Form 1SFS'!$I$100)=0,ROUND('Form 2SFS'!O14-O35,0),IF('Form 2SFS'!O14=0,ROUND('Form 2SFS'!G14-O35,0),ROUND('Form 2SFS'!O14-O35,0)))","v":0},null,{"$f":"IF(SUM('Form 1SFS'!$E$100,'Form 1SFS'!$I$100)=0,ROUND('Form 2SFS'!M18-Q35,0),IF('Form 2SFS'!M18=0,ROUND('Form 2SFS'!E18-Q35,0),ROUND('Form 2SFS'!M18-Q35,0)))","v":0},null,{"$f":"IF(SUM('Form 1SFS'!$E$100,'Form 1SFS'!$I$100)=0,ROUND('Form 2SFS'!O18-S35,0),IF('Form 2SFS'!O18=0,ROUND('Form 2SFS'!G18-S35,0),ROUND('Form 2SFS'!O18-S35,0)))","v":0}]
[]
[]
[]
[null,null,null,null,{"$f":"IF(E8=\"\",\"\",TEXT(DATE(YEAR(E8+1)-1,MONTH(E8+1),DAY(E8+1)),\"mm/dd/yyyy\"))","v":"01/01/2019"},null,{"$f":"IF(G8=\"\",\"\",TEXT(DATE(YEAR(G8+1)-1,MONTH(G8+1),DAY(G8+1)),\"mm/dd/yyyy\"))","v":"01/01/2018"},null,"01/01/2019",null,"01/01/2018",null,"01/01/2019",null,"01/01/2018",null,"01/01/2019",null,"01/01/2018",null,{"$f":"IF(U8=\"\",\"\",TEXT(DATE(YEAR(U8+1)-1,MONTH(U8+1),DAY(U8+1)),\"mm/dd/yyyy\"))","v":"01/01/2019"}]
[null,null,null,null,{"$f":"IF(E8=\"\",\"\",TEXT(E8,\"mm/dd/yyyy\"))","v":"12/31/2019"},null,{"$f":"IF(G8=\"\",\"\",TEXT(G8,\"mm/dd/yyyy\"))","v":"12/31/2018"},null,"12/31/2019",null,"12/31/2018",null,"12/31/2019",null,"12/31/2018",null,"12/31/2019",null,"12/31/2018",null,{"$f":"IF(U8=\"\",\"\",TEXT(U8,\"mm/dd/yyyy\"))","v":"12/31/2019"}]
[null,null,null,null,"brrt_GrossPremiumsWritten",null,"brrt_GrossPremiumsWritten",null,"brrt_GrossPremiumsWritten",null,"brrt_GrossPremiumsWritten",null,"brrt_GrossPremiumsWritten",null,"brrt_GrossPremiumsWritten",null,"brrt_NetPremiumsWritten",null,"brrt_NetPremiumsWritten",null,"brrt_NetPremiumsWritten"]
[null,null,null,null,"brrt_TypeOfBusinessAxis_brrt_UnrelatedMember",null,"brrt_TypeOfBusinessAxis_brrt_UnrelatedMember",null,"brrt_TypeOfBusinessAxis_brrt_RelatedMember",null,"brrt_TypeOfBusinessAxis_brrt_RelatedMember",null,"brrt_TypeOfBusinessAxis_brrt_TotalMember",null,"brrt_TypeOfBusinessAxis_brrt_TotalMember"]
[null,null,null,null,{"$f":"XBRLMap(E11,E$45&\".\"&E$46&\".\"&$W11&\".\"&$X11,E$43,E$44,CONFIGURATION!$B$10,\"BMA\",CONFIGURATION!$B$1,\"bscr\",CONFIGURATION!$B$12)","v":"Mapped"},null,{"$f":"XBRLMap(G11,G$45&\".\"&G$46&\".\"&$W11&\".\"&$X11,G$43,G$44,CONFIGURATION!$B$10,\"BMA\",CONFIGURATION!$B$1,\"bscr\",CONFIGURATION!$B$12)","v":"Mapped"},null,{"$f":"XBRLMap(I11,I$45&\".\"&I$46&\".\"&$W11&\".\"&$X11,I$43,I$44,CONFIGURATION!$B$10,\"BMA\",CONFIGURATION!$B$1,\"bscr\",CONFIGURATION!$B$12)","v":"Mapped"},null,{"$f":"XBRLMap(K11,K$45&\".\"&K$46&\".\"&$W11&\".\"&$X11,K$43,K$44,CONFIGURATION!$B$10,\"BMA\",CONFIGURATION!$B$1,\"bscr\",CONFIGURATION!$B$12)","v":"Mapped"},null,{"$f":"XBRLMap(M11,M$45&\".\"&M$46&\".\"&$W11&\".\"&$X11,M$43,M$44,CONFIGURATION!$B$10,\"BMA\",CONFIGURATION!$B$1,\"bscr\",CONFIGURATION!$B$12)","v":"Mapped"},null,{"$f":"XBRLMap(O11,O$45&\".\"&O$46&\".\"&$W11&\".\"&$X11,O$43,O$44,CONFIGURATION!$B$10,\"BMA\",CONFIGURATION!$B$1,\"bscr\",CONFIGURATION!$B$12)","v":"Mapped"},null,{"$f":"XBRLMap(Q11,Q$45&\".\"&$W11&\".\"&$X11,Q$43,Q$44,CONFIGURATION!$B$10,\"BMA\",CONFIGURATION!$B$1,\"bscr\",CONFIGURATION!$B$12)","v":"Mapped"},null,{"$f":"XBRLMap(S11,S$45&\".\"&$W11&\".\"&$X11,S$43,S$44,CONFIGURATION!$B$10,\"BMA\",CONFIGURATION!$B$1,\"bscr\",CONFIGURATION!$B$12)","v":"Mapped"},null,{"$f":"XBRLMap(U11,U$45&\".\"&$W11&\".\"&$X11,U$43,U$44,CONFIGURATION!$B$10,\"BMA\",CONFIGURATION!$B$1,\"bscr\",CONFIGURATION!$B$12)","v":"Mapped"}]
[null,null,null,null,{"$f":"XBRLMap(E12,E$45&\".\"&E$46&\".\"&$W12&\".\"&$X12,E$43,E$44,CONFIGURATION!$B$10,\"BMA\",CONFIGURATION!$B$1,\"bscr\",CONFIGURATION!$B$12)","v":"Mapped"},null,{"$f":"XBRLMap(G12,G$45&\".\"&G$46&\".\"&$W12&\".\"&$X12,G$43,G$44,CONFIGURATION!$B$10,\"BMA\",CONFIGURATION!$B$1,\"bscr\",CONFIGURATION!$B$12)","v":"Mapped"},null,{"$f":"XBRLMap(I12,I$45&\".\"&I$46&\".\"&$W12&\".\"&$X12,I$43,I$44,CONFIGURATION!$B$10,\"BMA\",CONFIGURATION!$B$1,\"bscr\",CONFIGURATION!$B$12)","v":"Mapped"},null,{"$f":"XBRLMap(K12,K$45&\".\"&K$46&\".\"&$W12&\".\"&$X12,K$43,K$44,CONFIGURATION!$B$10,\"BMA\",CONFIGURATION!$B$1,\"bscr\",CONFIGURATION!$B$12)","v":"Mapped"},null,{"$f":"XBRLMap(M12,M$45&\".\"&M$46&\".\"&$W12&\".\"&$X12,M$43,M$44,CONFIGURATION!$B$10,\"BMA\",CONFIGURATION!$B$1,\"bscr\",CONFIGURATION!$B$12)","v":"Mapped"},null,{"$f":"XBRLMap(O12,O$45&\".\"&O$46&\".\"&$W12&\".\"&$X12,O$43,O$44,CONFIGURATION!$B$10,\"BMA\",CONFIGURATION!$B$1,\"bscr\",CONFIGURATION!$B$12)","v":"Mapped"},null,{"$f":"XBRLMap(Q12,Q$45&\".\"&$W12&\".\"&$X12,Q$43,Q$44,CONFIGURATION!$B$10,\"BMA\",CONFIGURATION!$B$1,\"bscr\",CONFIGURATION!$B$12)","v":"Mapped"},null,{"$f":"XBRLMap(S12,S$45&\".\"&$W12&\".\"&$X12,S$43,S$44,CONFIGURATION!$B$10,\"BMA\",CONFIGURATION!$B$1,\"bscr\",CONFIGURATION!$B$12)","v":"Mapped"},null,{"$f":"XBRLMap(U12,U$45&\".\"&$W12&\".\"&$X12,U$43,U$44,CONFIGURATION!$B$10,\"BMA\",CONFIGURATION!$B$1,\"bscr\",CONFIGURATION!$B$12)","v":"Mapped"}]
[null,null,null,null,{"$f":"XBRLMap(E13,E$45&\".\"&E$46&\".\"&$W13&\".\"&$X13,E$43,E$44,CONFIGURATION!$B$10,\"BMA\",CONFIGURATION!$B$1,\"bscr\",CONFIGURATION!$B$12)","v":"Mapped"},null,{"$f":"XBRLMap(G13,G$45&\".\"&G$46&\".\"&$W13&\".\"&$X13,G$43,G$44,CONFIGURATION!$B$10,\"BMA\",CONFIGURATION!$B$1,\"bscr\",CONFIGURATION!$B$12)","v":"Mapped"},null,{"$f":"XBRLMap(I13,I$45&\".\"&I$46&\".\"&$W13&\".\"&$X13,I$43,I$44,CONFIGURATION!$B$10,\"BMA\",CONFIGURATION!$B$1,\"bscr\",CONFIGURATION!$B$12)","v":"Mapped"},null,{"$f":"XBRLMap(K13,K$45&\".\"&K$46&\".\"&$W13&\".\"&$X13,K$43,K$44,CONFIGURATION!$B$10,\"BMA\",CONFIGURATION!$B$1,\"bscr\",CONFIGURATION!$B$12)","v":"Mapped"},null,{"$f":"XBRLMap(M13,M$45&\".\"&M$46&\".\"&$W13&\".\"&$X13,M$43,M$44,CONFIGURATION!$B$10,\"BMA\",CONFIGURATION!$B$1,\"bscr\",CONFIGURATION!$B$12)","v":"Mapped"},null,{"$f":"XBRLMap(O13,O$45&\".\"&O$46&\".\"&$W13&\".\"&$X13,O$43,O$44,CONFIGURATION!$B$10,\"BMA\",CONFIGURATION!$B$1,\"bscr\",CONFIGURATION!$B$12)","v":"Mapped"},null,{"$f":"XBRLMap(Q13,Q$45&\".\"&$W13&\".\"&$X13,Q$43,Q$44,CONFIGURATION!$B$10,\"BMA\",CONFIGURATION!$B$1,\"bscr\",CONFIGURATION!$B$12)","v":"Mapped"},null,{"$f":"XBRLMap(S13,S$45&\".\"&$W13&\".\"&$X13,S$43,S$44,CONFIGURATION!$B$10,\"BMA\",CONFIGURATION!$B$1,\"bscr\",CONFIGURATION!$B$12)","v":"Mapped"},null,{"$f":"XBRLMap(U13,U$45&\".\"&$W13&\".\"&$X13,U$43,U$44,CONFIGURATION!$B$10,\"BMA\",CONFIGURATION!$B$1,\"bscr\",CONFIGURATION!$B$12)","v":"Mapped"}]
[null,null,null,null,{"$f":"XBRLMap(E14,E$45&\".\"&E$46&\".\"&$W14&\".\"&$X14,E$43,E$44,CONFIGURATION!$B$10,\"BMA\",CONFIGURATION!$B$1,\"bscr\",CONFIGURATION!$B$12)","v":"Mapped"},null,{"$f":"XBRLMap(G14,G$45&\".\"&G$46&\".\"&$W14&\".\"&$X14,G$43,G$44,CONFIGURATION!$B$10,\"BMA\",CONFIGURATION!$B$1,\"bscr\",CONFIGURATION!$B$12)","v":"Mapped"},null,{"$f":"XBRLMap(I14,I$45&\".\"&I$46&\".\"&$W14&\".\"&$X14,I$43,I$44,CONFIGURATION!$B$10,\"BMA\",CONFIGURATION!$B$1,\"bscr\",CONFIGURATION!$B$12)","v":"Mapped"},null,{"$f":"XBRLMap(K14,K$45&\".\"&K$46&\".\"&$W14&\".\"&$X14,K$43,K$44,CONFIGURATION!$B$10,\"BMA\",CONFIGURATION!$B$1,\"bscr\",CONFIGURATION!$B$12)","v":"Mapped"},null,{"$f":"XBRLMap(M14,M$45&\".\"&M$46&\".\"&$W14&\".\"&$X14,M$43,M$44,CONFIGURATION!$B$10,\"BMA\",CONFIGURATION!$B$1,\"bscr\",CONFIGURATION!$B$12)","v":"Mapped"},null,{"$f":"XBRLMap(O14,O$45&\".\"&O$46&\".\"&$W14&\".\"&$X14,O$43,O$44,CONFIGURATION!$B$10,\"BMA\",CONFIGURATION!$B$1,\"bscr\",CONFIGURATION!$B$12)","v":"Mapped"},null,{"$f":"XBRLMap(Q14,Q$45&\".\"&$W14&\".\"&$X14,Q$43,Q$44,CONFIGURATION!$B$10,\"BMA\",CONFIGURATION!$B$1,\"bscr\",CONFIGURATION!$B$12)","v":"Mapped"},null,{"$f":"XBRLMap(S14,S$45&\".\"&$W14&\".\"&$X14,S$43,S$44,CONFIGURATION!$B$10,\"BMA\",CONFIGURATION!$B$1,\"bscr\",CONFIGURATION!$B$12)","v":"Mapped"},null,{"$f":"XBRLMap(U14,U$45&\".\"&$W14&\".\"&$X14,U$43,U$44,CONFIGURATION!$B$10,\"BMA\",CONFIGURATION!$B$1,\"bscr\",CONFIGURATION!$B$12)","v":"Mapped"}]
[null,null,null,null,{"$f":"XBRLMap(E15,E$45&\".\"&E$46&\".\"&$W15&\".\"&$X15,E$43,E$44,CONFIGURATION!$B$10,\"BMA\",CONFIGURATION!$B$1,\"bscr\",CONFIGURATION!$B$12)","v":"Mapped"},null,{"$f":"XBRLMap(G15,G$45&\".\"&G$46&\".\"&$W15&\".\"&$X15,G$43,G$44,CONFIGURATION!$B$10,\"BMA\",CONFIGURATION!$B$1,\"bscr\",CONFIGURATION!$B$12)","v":"Mapped"},null,{"$f":"XBRLMap(I15,I$45&\".\"&I$46&\".\"&$W15&\".\"&$X15,I$43,I$44,CONFIGURATION!$B$10,\"BMA\",CONFIGURATION!$B$1,\"bscr\",CONFIGURATION!$B$12)","v":"Mapped"},null,{"$f":"XBRLMap(K15,K$45&\".\"&K$46&\".\"&$W15&\".\"&$X15,K$43,K$44,CONFIGURATION!$B$10,\"BMA\",CONFIGURATION!$B$1,\"bscr\",CONFIGURATION!$B$12)","v":"Mapped"},null,{"$f":"XBRLMap(M15,M$45&\".\"&M$46&\".\"&$W15&\".\"&$X15,M$43,M$44,CONFIGURATION!$B$10,\"BMA\",CONFIGURATION!$B$1,\"bscr\",CONFIGURATION!$B$12)","v":"Mapped"},null,{"$f":"XBRLMap(O15,O$45&\".\"&O$46&\".\"&$W15&\".\"&$X15,O$43,O$44,CONFIGURATION!$B$10,\"BMA\",CONFIGURATION!$B$1,\"bscr\",CONFIGURATION!$B$12)","v":"Mapped"},null,{"$f":"XBRLMap(Q15,Q$45&\".\"&$W15&\".\"&$X15,Q$43,Q$44,CONFIGURATION!$B$10,\"BMA\",CONFIGURATION!$B$1,\"bscr\",CONFIGURATION!$B$12)","v":"Mapped"},null,{"$f":"XBRLMap(S15,S$45&\".\"&$W15&\".\"&$X15,S$43,S$44,CONFIGURATION!$B$10,\"BMA\",CONFIGURATION!$B$1,\"bscr\",CONFIGURATION!$B$12)","v":"Mapped"},null,{"$f":"XBRLMap(U15,U$45&\".\"&$W15&\".\"&$X15,U$43,U$44,CONFIGURATION!$B$10,\"BMA\",CONFIGURATION!$B$1,\"bscr\",CONFIGURATION!$B$12)","v":"Mapped"}]
[null,null,null,null,{"$f":"XBRLMap(E16,E$45&\".\"&E$46&\".\"&$W16&\".\"&$X16,E$43,E$44,CONFIGURATION!$B$10,\"BMA\",CONFIGURATION!$B$1,\"bscr\",CONFIGURATION!$B$12)","v":"Mapped"},null,{"$f":"XBRLMap(G16,G$45&\".\"&G$46&\".\"&$W16&\".\"&$X16,G$43,G$44,CONFIGURATION!$B$10,\"BMA\",CONFIGURATION!$B$1,\"bscr\",CONFIGURATION!$B$12)","v":"Mapped"},null,{"$f":"XBRLMap(I16,I$45&\".\"&I$46&\".\"&$W16&\".\"&$X16,I$43,I$44,CONFIGURATION!$B$10,\"BMA\",CONFIGURATION!$B$1,\"bscr\",CONFIGURATION!$B$12)","v":"Mapped"},null,{"$f":"XBRLMap(K16,K$45&\".\"&K$46&\".\"&$W16&\".\"&$X16,K$43,K$44,CONFIGURATION!$B$10,\"BMA\",CONFIGURATION!$B$1,\"bscr\",CONFIGURATION!$B$12)","v":"Mapped"},null,{"$f":"XBRLMap(M16,M$45&\".\"&M$46&\".\"&$W16&\".\"&$X16,M$43,M$44,CONFIGURATION!$B$10,\"BMA\",CONFIGURATION!$B$1,\"bscr\",CONFIGURATION!$B$12)","v":"Mapped"},null,{"$f":"XBRLMap(O16,O$45&\".\"&O$46&\".\"&$W16&\".\"&$X16,O$43,O$44,CONFIGURATION!$B$10,\"BMA\",CONFIGURATION!$B$1,\"bscr\",CONFIGURATION!$B$12)","v":"Mapped"},null,{"$f":"XBRLMap(Q16,Q$45&\".\"&$W16&\".\"&$X16,Q$43,Q$44,CONFIGURATION!$B$10,\"BMA\",CONFIGURATION!$B$1,\"bscr\",CONFIGURATION!$B$12)","v":"Mapped"},null,{"$f":"XBRLMap(S16,S$45&\".\"&$W16&\".\"&$X16,S$43,S$44,CONFIGURATION!$B$10,\"BMA\",CONFIGURATION!$B$1,\"bscr\",CONFIGURATION!$B$12)","v":"Mapped"},null,{"$f":"XBRLMap(U16,U$45&\".\"&$W16&\".\"&$X16,U$43,U$44,CONFIGURATION!$B$10,\"BMA\",CONFIGURATION!$B$1,\"bscr\",CONFIGURATION!$B$12)","v":"Mapped"}]
[null,null,null,null,{"$f":"XBRLMap(E17,E$45&\".\"&E$46&\".\"&$W17&\".\"&$X17,E$43,E$44,CONFIGURATION!$B$10,\"BMA\",CONFIGURATION!$B$1,\"bscr\",CONFIGURATION!$B$12)","v":"Mapped"},null,{"$f":"XBRLMap(G17,G$45&\".\"&G$46&\".\"&$W17&\".\"&$X17,G$43,G$44,CONFIGURATION!$B$10,\"BMA\",CONFIGURATION!$B$1,\"bscr\",CONFIGURATION!$B$12)","v":"Mapped"},null,{"$f":"XBRLMap(I17,I$45&\".\"&I$46&\".\"&$W17&\".\"&$X17,I$43,I$44,CONFIGURATION!$B$10,\"BMA\",CONFIGURATION!$B$1,\"bscr\",CONFIGURATION!$B$12)","v":"Mapped"},null,{"$f":"XBRLMap(K17,K$45&\".\"&K$46&\".\"&$W17&\".\"&$X17,K$43,K$44,CONFIGURATION!$B$10,\"BMA\",CONFIGURATION!$B$1,\"bscr\",CONFIGURATION!$B$12)","v":"Mapped"},null,{"$f":"XBRLMap(M17,M$45&\".\"&M$46&\".\"&$W17&\".\"&$X17,M$43,M$44,CONFIGURATION!$B$10,\"BMA\",CONFIGURATION!$B$1,\"bscr\",CONFIGURATION!$B$12)","v":"Mapped"},null,{"$f":"XBRLMap(O17,O$45&\".\"&O$46&\".\"&$W17&\".\"&$X17,O$43,O$44,CONFIGURATION!$B$10,\"BMA\",CONFIGURATION!$B$1,\"bscr\",CONFIGURATION!$B$12)","v":"Mapped"},null,{"$f":"XBRLMap(Q17,Q$45&\".\"&$W17&\".\"&$X17,Q$43,Q$44,CONFIGURATION!$B$10,\"BMA\",CONFIGURATION!$B$1,\"bscr\",CONFIGURATION!$B$12)","v":"Mapped"},null,{"$f":"XBRLMap(S17,S$45&\".\"&$W17&\".\"&$X17,S$43,S$44,CONFIGURATION!$B$10,\"BMA\",CONFIGURATION!$B$1,\"bscr\",CONFIGURATION!$B$12)","v":"Mapped"},null,{"$f":"XBRLMap(U17,U$45&\".\"&$W17&\".\"&$X17,U$43,U$44,CONFIGURATION!$B$10,\"BMA\",CONFIGURATION!$B$1,\"bscr\",CONFIGURATION!$B$12)","v":"Mapped"}]
[null,null,null,null,{"$f":"XBRLMap(E18,E$45&\".\"&E$46&\".\"&$W18&\".\"&$X18,E$43,E$44,CONFIGURATION!$B$10,\"BMA\",CONFIGURATION!$B$1,\"bscr\",CONFIGURATION!$B$12)","v":"Mapped"},null,{"$f":"XBRLMap(G18,G$45&\".\"&G$46&\".\"&$W18&\".\"&$X18,G$43,G$44,CONFIGURATION!$B$10,\"BMA\",CONFIGURATION!$B$1,\"bscr\",CONFIGURATION!$B$12)","v":"Mapped"},null,{"$f":"XBRLMap(I18,I$45&\".\"&I$46&\".\"&$W18&\".\"&$X18,I$43,I$44,CONFIGURATION!$B$10,\"BMA\",CONFIGURATION!$B$1,\"bscr\",CONFIGURATION!$B$12)","v":"Mapped"},null,{"$f":"XBRLMap(K18,K$45&\".\"&K$46&\".\"&$W18&\".\"&$X18,K$43,K$44,CONFIGURATION!$B$10,\"BMA\",CONFIGURATION!$B$1,\"bscr\",CONFIGURATION!$B$12)","v":"Mapped"},null,{"$f":"XBRLMap(M18,M$45&\".\"&M$46&\".\"&$W18&\".\"&$X18,M$43,M$44,CONFIGURATION!$B$10,\"BMA\",CONFIGURATION!$B$1,\"bscr\",CONFIGURATION!$B$12)","v":"Mapped"},null,{"$f":"XBRLMap(O18,O$45&\".\"&O$46&\".\"&$W18&\".\"&$X18,O$43,O$44,CONFIGURATION!$B$10,\"BMA\",CONFIGURATION!$B$1,\"bscr\",CONFIGURATION!$B$12)","v":"Mapped"},null,{"$f":"XBRLMap(Q18,Q$45&\".\"&$W18&\".\"&$X18,Q$43,Q$44,CONFIGURATION!$B$10,\"BMA\",CONFIGURATION!$B$1,\"bscr\",CONFIGURATION!$B$12)","v":"Mapped"},null,{"$f":"XBRLMap(S18,S$45&\".\"&$W18&\".\"&$X18,S$43,S$44,CONFIGURATION!$B$10,\"BMA\",CONFIGURATION!$B$1,\"bscr\",CONFIGURATION!$B$12)","v":"Mapped"},null,{"$f":"XBRLMap(U18,U$45&\".\"&$W18&\".\"&$X18,U$43,U$44,CONFIGURATION!$B$10,\"BMA\",CONFIGURATION!$B$1,\"bscr\",CONFIGURATION!$B$12)","v":"Mapped"}]
[null,null,null,null,{"$f":"XBRLMap(E19,E$45&\".\"&E$46&\".\"&$W19&\".\"&$X19,E$43,E$44,CONFIGURATION!$B$10,\"BMA\",CONFIGURATION!$B$1,\"bscr\",CONFIGURATION!$B$12)","v":"Mapped"},null,{"$f":"XBRLMap(G19,G$45&\".\"&G$46&\".\"&$W19&\".\"&$X19,G$43,G$44,CONFIGURATION!$B$10,\"BMA\",CONFIGURATION!$B$1,\"bscr\",CONFIGURATION!$B$12)","v":"Mapped"},null,{"$f":"XBRLMap(I19,I$45&\".\"&I$46&\".\"&$W19&\".\"&$X19,I$43,I$44,CONFIGURATION!$B$10,\"BMA\",CONFIGURATION!$B$1,\"bscr\",CONFIGURATION!$B$12)","v":"Mapped"},null,{"$f":"XBRLMap(K19,K$45&\".\"&K$46&\".\"&$W19&\".\"&$X19,K$43,K$44,CONFIGURATION!$B$10,\"BMA\",CONFIGURATION!$B$1,\"bscr\",CONFIGURATION!$B$12)","v":"Mapped"},null,{"$f":"XBRLMap(M19,M$45&\".\"&M$46&\".\"&$W19&\".\"&$X19,M$43,M$44,CONFIGURATION!$B$10,\"BMA\",CONFIGURATION!$B$1,\"bscr\",CONFIGURATION!$B$12)","v":"Mapped"},null,{"$f":"XBRLMap(O19,O$45&\".\"&O$46&\".\"&$W19&\".\"&$X19,O$43,O$44,CONFIGURATION!$B$10,\"BMA\",CONFIGURATION!$B$1,\"bscr\",CONFIGURATION!$B$12)","v":"Mapped"},null,{"$f":"XBRLMap(Q19,Q$45&\".\"&$W19&\".\"&$X19,Q$43,Q$44,CONFIGURATION!$B$10,\"BMA\",CONFIGURATION!$B$1,\"bscr\",CONFIGURATION!$B$12)","v":"Mapped"},null,{"$f":"XBRLMap(S19,S$45&\".\"&$W19&\".\"&$X19,S$43,S$44,CONFIGURATION!$B$10,\"BMA\",CONFIGURATION!$B$1,\"bscr\",CONFIGURATION!$B$12)","v":"Mapped"},null,{"$f":"XBRLMap(U19,U$45&\".\"&$W19&\".\"&$X19,U$43,U$44,CONFIGURATION!$B$10,\"BMA\",CONFIGURATION!$B$1,\"bscr\",CONFIGURATION!$B$12)","v":"Mapped"}]
[null,null,null,null,{"$f":"XBRLMap(E20,E$45&\".\"&E$46&\".\"&$W20&\".\"&$X20,E$43,E$44,CONFIGURATION!$B$10,\"BMA\",CONFIGURATION!$B$1,\"bscr\",CONFIGURATION!$B$12)","v":"Mapped"},null,{"$f":"XBRLMap(G20,G$45&\".\"&G$46&\".\"&$W20&\".\"&$X20,G$43,G$44,CONFIGURATION!$B$10,\"BMA\",CONFIGURATION!$B$1,\"bscr\",CONFIGURATION!$B$12)","v":"Mapped"},null,{"$f":"XBRLMap(I20,I$45&\".\"&I$46&\".\"&$W20&\".\"&$X20,I$43,I$44,CONFIGURATION!$B$10,\"BMA\",CONFIGURATION!$B$1,\"bscr\",CONFIGURATION!$B$12)","v":"Mapped"},null,{"$f":"XBRLMap(K20,K$45&\".\"&K$46&\".\"&$W20&\".\"&$X20,K$43,K$44,CONFIGURATION!$B$10,\"BMA\",CONFIGURATION!$B$1,\"bscr\",CONFIGURATION!$B$12)","v":"Mapped"},null,{"$f":"XBRLMap(M20,M$45&\".\"&M$46&\".\"&$W20&\".\"&$X20,M$43,M$44,CONFIGURATION!$B$10,\"BMA\",CONFIGURATION!$B$1,\"bscr\",CONFIGURATION!$B$12)","v":"Mapped"},null,{"$f":"XBRLMap(O20,O$45&\".\"&O$46&\".\"&$W20&\".\"&$X20,O$43,O$44,CONFIGURATION!$B$10,\"BMA\",CONFIGURATION!$B$1,\"bscr\",CONFIGURATION!$B$12)","v":"Mapped"},null,{"$f":"XBRLMap(Q20,Q$45&\".\"&$W20&\".\"&$X20,Q$43,Q$44,CONFIGURATION!$B$10,\"BMA\",CONFIGURATION!$B$1,\"bscr\",CONFIGURATION!$B$12)","v":"Mapped"},null,{"$f":"XBRLMap(S20,S$45&\".\"&$W20&\".\"&$X20,S$43,S$44,CONFIGURATION!$B$10,\"BMA\",CONFIGURATION!$B$1,\"bscr\",CONFIGURATION!$B$12)","v":"Mapped"},null,{"$f":"XBRLMap(U20,U$45&\".\"&$W20&\".\"&$X20,U$43,U$44,CONFIGURATION!$B$10,\"BMA\",CONFIGURATION!$B$1,\"bscr\",CONFIGURATION!$B$12)","v":"Mapped"}]
[null,null,null,null,{"$f":"XBRLMap(E21,E$45&\".\"&E$46&\".\"&$W21&\".\"&$X21,E$43,E$44,CONFIGURATION!$B$10,\"BMA\",CONFIGURATION!$B$1,\"bscr\",CONFIGURATION!$B$12)","v":"Mapped"},null,{"$f":"XBRLMap(G21,G$45&\".\"&G$46&\".\"&$W21&\".\"&$X21,G$43,G$44,CONFIGURATION!$B$10,\"BMA\",CONFIGURATION!$B$1,\"bscr\",CONFIGURATION!$B$12)","v":"Mapped"},null,{"$f":"XBRLMap(I21,I$45&\".\"&I$46&\".\"&$W21&\".\"&$X21,I$43,I$44,CONFIGURATION!$B$10,\"BMA\",CONFIGURATION!$B$1,\"bscr\",CONFIGURATION!$B$12)","v":"Mapped"},null,{"$f":"XBRLMap(K21,K$45&\".\"&K$46&\".\"&$W21&\".\"&$X21,K$43,K$44,CONFIGURATION!$B$10,\"BMA\",CONFIGURATION!$B$1,\"bscr\",CONFIGURATION!$B$12)","v":"Mapped"},null,{"$f":"XBRLMap(M21,M$45&\".\"&M$46&\".\"&$W21&\".\"&$X21,M$43,M$44,CONFIGURATION!$B$10,\"BMA\",CONFIGURATION!$B$1,\"bscr\",CONFIGURATION!$B$12)","v":"Mapped"},null,{"$f":"XBRLMap(O21,O$45&\".\"&O$46&\".\"&$W21&\".\"&$X21,O$43,O$44,CONFIGURATION!$B$10,\"BMA\",CONFIGURATION!$B$1,\"bscr\",CONFIGURATION!$B$12)","v":"Mapped"},null,{"$f":"XBRLMap(Q21,Q$45&\".\"&$W21&\".\"&$X21,Q$43,Q$44,CONFIGURATION!$B$10,\"BMA\",CONFIGURATION!$B$1,\"bscr\",CONFIGURATION!$B$12)","v":"Mapped"},null,{"$f":"XBRLMap(S21,S$45&\".\"&$W21&\".\"&$X21,S$43,S$44,CONFIGURATION!$B$10,\"BMA\",CONFIGURATION!$B$1,\"bscr\",CONFIGURATION!$B$12)","v":"Mapped"},null,{"$f":"XBRLMap(U21,U$45&\".\"&$W21&\".\"&$X21,U$43,U$44,CONFIGURATION!$B$10,\"BMA\",CONFIGURATION!$B$1,\"bscr\",CONFIGURATION!$B$12)","v":"Mapped"}]
[null,null,null,null,{"$f":"XBRLMap(E22,E$45&\".\"&E$46&\".\"&$W22&\".\"&$X22,E$43,E$44,CONFIGURATION!$B$10,\"BMA\",CONFIGURATION!$B$1,\"bscr\",CONFIGURATION!$B$12)","v":"Mapped"},null,{"$f":"XBRLMap(G22,G$45&\".\"&G$46&\".\"&$W22&\".\"&$X22,G$43,G$44,CONFIGURATION!$B$10,\"BMA\",CONFIGURATION!$B$1,\"bscr\",CONFIGURATION!$B$12)","v":"Mapped"},null,{"$f":"XBRLMap(I22,I$45&\".\"&I$46&\".\"&$W22&\".\"&$X22,I$43,I$44,CONFIGURATION!$B$10,\"BMA\",CONFIGURATION!$B$1,\"bscr\",CONFIGURATION!$B$12)","v":"Mapped"},null,{"$f":"XBRLMap(K22,K$45&\".\"&K$46&\".\"&$W22&\".\"&$X22,K$43,K$44,CONFIGURATION!$B$10,\"BMA\",CONFIGURATION!$B$1,\"bscr\",CONFIGURATION!$B$12)","v":"Mapped"},null,{"$f":"XBRLMap(M22,M$45&\".\"&M$46&\".\"&$W22&\".\"&$X22,M$43,M$44,CONFIGURATION!$B$10,\"BMA\",CONFIGURATION!$B$1,\"bscr\",CONFIGURATION!$B$12)","v":"Mapped"},null,{"$f":"XBRLMap(O22,O$45&\".\"&O$46&\".\"&$W22&\".\"&$X22,O$43,O$44,CONFIGURATION!$B$10,\"BMA\",CONFIGURATION!$B$1,\"bscr\",CONFIGURATION!$B$12)","v":"Mapped"},null,{"$f":"XBRLMap(Q22,Q$45&\".\"&$W22&\".\"&$X22,Q$43,Q$44,CONFIGURATION!$B$10,\"BMA\",CONFIGURATION!$B$1,\"bscr\",CONFIGURATION!$B$12)","v":"Mapped"},null,{"$f":"XBRLMap(S22,S$45&\".\"&$W22&\".\"&$X22,S$43,S$44,CONFIGURATION!$B$10,\"BMA\",CONFIGURATION!$B$1,\"bscr\",CONFIGURATION!$B$12)","v":"Mapped"},null,{"$f":"XBRLMap(U22,U$45&\".\"&$W22&\".\"&$X22,U$43,U$44,CONFIGURATION!$B$10,\"BMA\",CONFIGURATION!$B$1,\"bscr\",CONFIGURATION!$B$12)","v":"Mapped"}]
[null,null,null,null,{"$f":"XBRLMap(E23,E$45&\".\"&E$46&\".\"&$W23&\".\"&$X23,E$43,E$44,CONFIGURATION!$B$10,\"BMA\",CONFIGURATION!$B$1,\"bscr\",CONFIGURATION!$B$12)","v":"Mapped"},null,{"$f":"XBRLMap(G23,G$45&\".\"&G$46&\".\"&$W23&\".\"&$X23,G$43,G$44,CONFIGURATION!$B$10,\"BMA\",CONFIGURATION!$B$1,\"bscr\",CONFIGURATION!$B$12)","v":"Mapped"},null,{"$f":"XBRLMap(I23,I$45&\".\"&I$46&\".\"&$W23&\".\"&$X23,I$43,I$44,CONFIGURATION!$B$10,\"BMA\",CONFIGURATION!$B$1,\"bscr\",CONFIGURATION!$B$12)","v":"Mapped"},null,{"$f":"XBRLMap(K23,K$45&\".\"&K$46&\".\"&$W23&\".\"&$X23,K$43,K$44,CONFIGURATION!$B$10,\"BMA\",CONFIGURATION!$B$1,\"bscr\",CONFIGURATION!$B$12)","v":"Mapped"},null,{"$f":"XBRLMap(M23,M$45&\".\"&M$46&\".\"&$W23&\".\"&$X23,M$43,M$44,CONFIGURATION!$B$10,\"BMA\",CONFIGURATION!$B$1,\"bscr\",CONFIGURATION!$B$12)","v":"Mapped"},null,{"$f":"XBRLMap(O23,O$45&\".\"&O$46&\".\"&$W23&\".\"&$X23,O$43,O$44,CONFIGURATION!$B$10,\"BMA\",CONFIGURATION!$B$1,\"bscr\",CONFIGURATION!$B$12)","v":"Mapped"},null,{"$f":"XBRLMap(Q23,Q$45&\".\"&$W23&\".\"&$X23,Q$43,Q$44,CONFIGURATION!$B$10,\"BMA\",CONFIGURATION!$B$1,\"bscr\",CONFIGURATION!$B$12)","v":"Mapped"},null,{"$f":"XBRLMap(S23,S$45&\".\"&$W23&\".\"&$X23,S$43,S$44,CONFIGURATION!$B$10,\"BMA\",CONFIGURATION!$B$1,\"bscr\",CONFIGURATION!$B$12)","v":"Mapped"},null,{"$f":"XBRLMap(U23,U$45&\".\"&$W23&\".\"&$X23,U$43,U$44,CONFIGURATION!$B$10,\"BMA\",CONFIGURATION!$B$1,\"bscr\",CONFIGURATION!$B$12)","v":"Mapped"}]
[null,null,null,null,{"$f":"XBRLMap(E24,E$45&\".\"&E$46&\".\"&$W24&\".\"&$X24,E$43,E$44,CONFIGURATION!$B$10,\"BMA\",CONFIGURATION!$B$1,\"bscr\",CONFIGURATION!$B$12)","v":"Mapped"},null,{"$f":"XBRLMap(G24,G$45&\".\"&G$46&\".\"&$W24&\".\"&$X24,G$43,G$44,CONFIGURATION!$B$10,\"BMA\",CONFIGURATION!$B$1,\"bscr\",CONFIGURATION!$B$12)","v":"Mapped"},null,{"$f":"XBRLMap(I24,I$45&\".\"&I$46&\".\"&$W24&\".\"&$X24,I$43,I$44,CONFIGURATION!$B$10,\"BMA\",CONFIGURATION!$B$1,\"bscr\",CONFIGURATION!$B$12)","v":"Mapped"},null,{"$f":"XBRLMap(K24,K$45&\".\"&K$46&\".\"&$W24&\".\"&$X24,K$43,K$44,CONFIGURATION!$B$10,\"BMA\",CONFIGURATION!$B$1,\"bscr\",CONFIGURATION!$B$12)","v":"Mapped"},null,{"$f":"XBRLMap(M24,M$45&\".\"&M$46&\".\"&$W24&\".\"&$X24,M$43,M$44,CONFIGURATION!$B$10,\"BMA\",CONFIGURATION!$B$1,\"bscr\",CONFIGURATION!$B$12)","v":"Mapped"},null,{"$f":"XBRLMap(O24,O$45&\".\"&O$46&\".\"&$W24&\".\"&$X24,O$43,O$44,CONFIGURATION!$B$10,\"BMA\",CONFIGURATION!$B$1,\"bscr\",CONFIGURATION!$B$12)","v":"Mapped"},null,{"$f":"XBRLMap(Q24,Q$45&\".\"&$W24&\".\"&$X24,Q$43,Q$44,CONFIGURATION!$B$10,\"BMA\",CONFIGURATION!$B$1,\"bscr\",CONFIGURATION!$B$12)","v":"Mapped"},null,{"$f":"XBRLMap(S24,S$45&\".\"&$W24&\".\"&$X24,S$43,S$44,CONFIGURATION!$B$10,\"BMA\",CONFIGURATION!$B$1,\"bscr\",CONFIGURATION!$B$12)","v":"Mapped"},null,{"$f":"XBRLMap(U24,U$45&\".\"&$W24&\".\"&$X24,U$43,U$44,CONFIGURATION!$B$10,\"BMA\",CONFIGURATION!$B$1,\"bscr\",CONFIGURATION!$B$12)","v":"Mapped"}]
[null,null,null,null,{"$f":"XBRLMap(E25,E$45&\".\"&E$46&\".\"&$W25&\".\"&$X25,E$43,E$44,CONFIGURATION!$B$10,\"BMA\",CONFIGURATION!$B$1,\"bscr\",CONFIGURATION!$B$12)","v":"Mapped"},null,{"$f":"XBRLMap(G25,G$45&\".\"&G$46&\".\"&$W25&\".\"&$X25,G$43,G$44,CONFIGURATION!$B$10,\"BMA\",CONFIGURATION!$B$1,\"bscr\",CONFIGURATION!$B$12)","v":"Mapped"},null,{"$f":"XBRLMap(I25,I$45&\".\"&I$46&\".\"&$W25&\".\"&$X25,I$43,I$44,CONFIGURATION!$B$10,\"BMA\",CONFIGURATION!$B$1,\"bscr\",CONFIGURATION!$B$12)","v":"Mapped"},null,{"$f":"XBRLMap(K25,K$45&\".\"&K$46&\".\"&$W25&\".\"&$X25,K$43,K$44,CONFIGURATION!$B$10,\"BMA\",CONFIGURATION!$B$1,\"bscr\",CONFIGURATION!$B$12)","v":"Mapped"},null,{"$f":"XBRLMap(M25,M$45&\".\"&M$46&\".\"&$W25&\".\"&$X25,M$43,M$44,CONFIGURATION!$B$10,\"BMA\",CONFIGURATION!$B$1,\"bscr\",CONFIGURATION!$B$12)","v":"Mapped"},null,{"$f":"XBRLMap(O25,O$45&\".\"&O$46&\".\"&$W25&\".\"&$X25,O$43,O$44,CONFIGURATION!$B$10,\"BMA\",CONFIGURATION!$B$1,\"bscr\",CONFIGURATION!$B$12)","v":"Mapped"},null,{"$f":"XBRLMap(Q25,Q$45&\".\"&$W25&\".\"&$X25,Q$43,Q$44,CONFIGURATION!$B$10,\"BMA\",CONFIGURATION!$B$1,\"bscr\",CONFIGURATION!$B$12)","v":"Mapped"},null,{"$f":"XBRLMap(S25,S$45&\".\"&$W25&\".\"&$X25,S$43,S$44,CONFIGURATION!$B$10,\"BMA\",CONFIGURATION!$B$1,\"bscr\",CONFIGURATION!$B$12)","v":"Mapped"},null,{"$f":"XBRLMap(U25,U$45&\".\"&$W25&\".\"&$X25,U$43,U$44,CONFIGURATION!$B$10,\"BMA\",CONFIGURATION!$B$1,\"bscr\",CONFIGURATION!$B$12)","v":"Mapped"}]
[null,null,null,null,{"$f":"XBRLMap(E26,E$45&\".\"&E$46&\".\"&$W26&\".\"&$X26,E$43,E$44,CONFIGURATION!$B$10,\"BMA\",CONFIGURATION!$B$1,\"bscr\",CONFIGURATION!$B$12)","v":"Mapped"},null,{"$f":"XBRLMap(G26,G$45&\".\"&G$46&\".\"&$W26&\".\"&$X26,G$43,G$44,CONFIGURATION!$B$10,\"BMA\",CONFIGURATION!$B$1,\"bscr\",CONFIGURATION!$B$12)","v":"Mapped"},null,{"$f":"XBRLMap(I26,I$45&\".\"&I$46&\".\"&$W26&\".\"&$X26,I$43,I$44,CONFIGURATION!$B$10,\"BMA\",CONFIGURATION!$B$1,\"bscr\",CONFIGURATION!$B$12)","v":"Mapped"},null,{"$f":"XBRLMap(K26,K$45&\".\"&K$46&\".\"&$W26&\".\"&$X26,K$43,K$44,CONFIGURATION!$B$10,\"BMA\",CONFIGURATION!$B$1,\"bscr\",CONFIGURATION!$B$12)","v":"Mapped"},null,{"$f":"XBRLMap(M26,M$45&\".\"&M$46&\".\"&$W26&\".\"&$X26,M$43,M$44,CONFIGURATION!$B$10,\"BMA\",CONFIGURATION!$B$1,\"bscr\",CONFIGURATION!$B$12)","v":"Mapped"},null,{"$f":"XBRLMap(O26,O$45&\".\"&O$46&\".\"&$W26&\".\"&$X26,O$43,O$44,CONFIGURATION!$B$10,\"BMA\",CONFIGURATION!$B$1,\"bscr\",CONFIGURATION!$B$12)","v":"Mapped"},null,{"$f":"XBRLMap(Q26,Q$45&\".\"&$W26&\".\"&$X26,Q$43,Q$44,CONFIGURATION!$B$10,\"BMA\",CONFIGURATION!$B$1,\"bscr\",CONFIGURATION!$B$12)","v":"Mapped"},null,{"$f":"XBRLMap(S26,S$45&\".\"&$W26&\".\"&$X26,S$43,S$44,CONFIGURATION!$B$10,\"BMA\",CONFIGURATION!$B$1,\"bscr\",CONFIGURATION!$B$12)","v":"Mapped"},null,{"$f":"XBRLMap(U26,U$45&\".\"&$W26&\".\"&$X26,U$43,U$44,CONFIGURATION!$B$10,\"BMA\",CONFIGURATION!$B$1,\"bscr\",CONFIGURATION!$B$12)","v":"Mapped"}]
[null,null,null,null,{"$f":"XBRLMap(E27,E$45&\".\"&E$46&\".\"&$W27&\".\"&$X27,E$43,E$44,CONFIGURATION!$B$10,\"BMA\",CONFIGURATION!$B$1,\"bscr\",CONFIGURATION!$B$12)","v":"Mapped"},null,{"$f":"XBRLMap(G27,G$45&\".\"&G$46&\".\"&$W27&\".\"&$X27,G$43,G$44,CONFIGURATION!$B$10,\"BMA\",CONFIGURATION!$B$1,\"bscr\",CONFIGURATION!$B$12)","v":"Mapped"},null,{"$f":"XBRLMap(I27,I$45&\".\"&I$46&\".\"&$W27&\".\"&$X27,I$43,I$44,CONFIGURATION!$B$10,\"BMA\",CONFIGURATION!$B$1,\"bscr\",CONFIGURATION!$B$12)","v":"Mapped"},null,{"$f":"XBRLMap(K27,K$45&\".\"&K$46&\".\"&$W27&\".\"&$X27,K$43,K$44,CONFIGURATION!$B$10,\"BMA\",CONFIGURATION!$B$1,\"bscr\",CONFIGURATION!$B$12)","v":"Mapped"},null,{"$f":"XBRLMap(M27,M$45&\".\"&M$46&\".\"&$W27&\".\"&$X27,M$43,M$44,CONFIGURATION!$B$10,\"BMA\",CONFIGURATION!$B$1,\"bscr\",CONFIGURATION!$B$12)","v":"Mapped"},null,{"$f":"XBRLMap(O27,O$45&\".\"&O$46&\".\"&$W27&\".\"&$X27,O$43,O$44,CONFIGURATION!$B$10,\"BMA\",CONFIGURATION!$B$1,\"bscr\",CONFIGURATION!$B$12)","v":"Mapped"},null,{"$f":"XBRLMap(Q27,Q$45&\".\"&$W27&\".\"&$X27,Q$43,Q$44,CONFIGURATION!$B$10,\"BMA\",CONFIGURATION!$B$1,\"bscr\",CONFIGURATION!$B$12)","v":"Mapped"},null,{"$f":"XBRLMap(S27,S$45&\".\"&$W27&\".\"&$X27,S$43,S$44,CONFIGURATION!$B$10,\"BMA\",CONFIGURATION!$B$1,\"bscr\",CONFIGURATION!$B$12)","v":"Mapped"},null,{"$f":"XBRLMap(U27,U$45&\".\"&$W27&\".\"&$X27,U$43,U$44,CONFIGURATION!$B$10,\"BMA\",CONFIGURATION!$B$1,\"bscr\",CONFIGURATION!$B$12)","v":"Mapped"}]
[null,null,null,null,{"$f":"XBRLMap(E28,E$45&\".\"&E$46&\".\"&$W28&\".\"&$X28,E$43,E$44,CONFIGURATION!$B$10,\"BMA\",CONFIGURATION!$B$1,\"bscr\",CONFIGURATION!$B$12)","v":"Mapped"},null,{"$f":"XBRLMap(G28,G$45&\".\"&G$46&\".\"&$W28&\".\"&$X28,G$43,G$44,CONFIGURATION!$B$10,\"BMA\",CONFIGURATION!$B$1,\"bscr\",CONFIGURATION!$B$12)","v":"Mapped"},null,{"$f":"XBRLMap(I28,I$45&\".\"&I$46&\".\"&$W28&\".\"&$X28,I$43,I$44,CONFIGURATION!$B$10,\"BMA\",CONFIGURATION!$B$1,\"bscr\",CONFIGURATION!$B$12)","v":"Mapped"},null,{"$f":"XBRLMap(K28,K$45&\".\"&K$46&\".\"&$W28&\".\"&$X28,K$43,K$44,CONFIGURATION!$B$10,\"BMA\",CONFIGURATION!$B$1,\"bscr\",CONFIGURATION!$B$12)","v":"Mapped"},null,{"$f":"XBRLMap(M28,M$45&\".\"&M$46&\".\"&$W28&\".\"&$X28,M$43,M$44,CONFIGURATION!$B$10,\"BMA\",CONFIGURATION!$B$1,\"bscr\",CONFIGURATION!$B$12)","v":"Mapped"},null,{"$f":"XBRLMap(O28,O$45&\".\"&O$46&\".\"&$W28&\".\"&$X28,O$43,O$44,CONFIGURATION!$B$10,\"BMA\",CONFIGURATION!$B$1,\"bscr\",CONFIGURATION!$B$12)","v":"Mapped"},null,{"$f":"XBRLMap(Q28,Q$45&\".\"&$W28&\".\"&$X28,Q$43,Q$44,CONFIGURATION!$B$10,\"BMA\",CONFIGURATION!$B$1,\"bscr\",CONFIGURATION!$B$12)","v":"Mapped"},null,{"$f":"XBRLMap(S28,S$45&\".\"&$W28&\".\"&$X28,S$43,S$44,CONFIGURATION!$B$10,\"BMA\",CONFIGURATION!$B$1,\"bscr\",CONFIGURATION!$B$12)","v":"Mapped"},null,{"$f":"XBRLMap(U28,U$45&\".\"&$W28&\".\"&$X28,U$43,U$44,CONFIGURATION!$B$10,\"BMA\",CONFIGURATION!$B$1,\"bscr\",CONFIGURATION!$B$12)","v":"Mapped"}]
[null,null,null,null,{"$f":"XBRLMap(E29,E$45&\".\"&E$46&\".\"&$W29&\".\"&$X29,E$43,E$44,CONFIGURATION!$B$10,\"BMA\",CONFIGURATION!$B$1,\"bscr\",CONFIGURATION!$B$12)","v":"Mapped"},null,{"$f":"XBRLMap(G29,G$45&\".\"&G$46&\".\"&$W29&\".\"&$X29,G$43,G$44,CONFIGURATION!$B$10,\"BMA\",CONFIGURATION!$B$1,\"bscr\",CONFIGURATION!$B$12)","v":"Mapped"},null,{"$f":"XBRLMap(I29,I$45&\".\"&I$46&\".\"&$W29&\".\"&$X29,I$43,I$44,CONFIGURATION!$B$10,\"BMA\",CONFIGURATION!$B$1,\"bscr\",CONFIGURATION!$B$12)","v":"Mapped"},null,{"$f":"XBRLMap(K29,K$45&\".\"&K$46&\".\"&$W29&\".\"&$X29,K$43,K$44,CONFIGURATION!$B$10,\"BMA\",CONFIGURATION!$B$1,\"bscr\",CONFIGURATION!$B$12)","v":"Mapped"},null,{"$f":"XBRLMap(M29,M$45&\".\"&M$46&\".\"&$W29&\".\"&$X29,M$43,M$44,CONFIGURATION!$B$10,\"BMA\",CONFIGURATION!$B$1,\"bscr\",CONFIGURATION!$B$12)","v":"Mapped"},null,{"$f":"XBRLMap(O29,O$45&\".\"&O$46&\".\"&$W29&\".\"&$X29,O$43,O$44,CONFIGURATION!$B$10,\"BMA\",CONFIGURATION!$B$1,\"bscr\",CONFIGURATION!$B$12)","v":"Mapped"},null,{"$f":"XBRLMap(Q29,Q$45&\".\"&$W29&\".\"&$X29,Q$43,Q$44,CONFIGURATION!$B$10,\"BMA\",CONFIGURATION!$B$1,\"bscr\",CONFIGURATION!$B$12)","v":"Mapped"},null,{"$f":"XBRLMap(S29,S$45&\".\"&$W29&\".\"&$X29,S$43,S$44,CONFIGURATION!$B$10,\"BMA\",CONFIGURATION!$B$1,\"bscr\",CONFIGURATION!$B$12)","v":"Mapped"},null,{"$f":"XBRLMap(U29,U$45&\".\"&$W29&\".\"&$X29,U$43,U$44,CONFIGURATION!$B$10,\"BMA\",CONFIGURATION!$B$1,\"bscr\",CONFIGURATION!$B$12)","v":"Mapped"}]
[null,null,null,null,{"$f":"XBRLMap(E30,E$45&\".\"&E$46&\".\"&$W30&\".\"&$X30,E$43,E$44,CONFIGURATION!$B$10,\"BMA\",CONFIGURATION!$B$1,\"bscr\",CONFIGURATION!$B$12)","v":"Mapped"},null,{"$f":"XBRLMap(G30,G$45&\".\"&G$46&\".\"&$W30&\".\"&$X30,G$43,G$44,CONFIGURATION!$B$10,\"BMA\",CONFIGURATION!$B$1,\"bscr\",CONFIGURATION!$B$12)","v":"Mapped"},null,{"$f":"XBRLMap(I30,I$45&\".\"&I$46&\".\"&$W30&\".\"&$X30,I$43,I$44,CONFIGURATION!$B$10,\"BMA\",CONFIGURATION!$B$1,\"bscr\",CONFIGURATION!$B$12)","v":"Mapped"},null,{"$f":"XBRLMap(K30,K$45&\".\"&K$46&\".\"&$W30&\".\"&$X30,K$43,K$44,CONFIGURATION!$B$10,\"BMA\",CONFIGURATION!$B$1,\"bscr\",CONFIGURATION!$B$12)","v":"Mapped"},null,{"$f":"XBRLMap(M30,M$45&\".\"&M$46&\".\"&$W30&\".\"&$X30,M$43,M$44,CONFIGURATION!$B$10,\"BMA\",CONFIGURATION!$B$1,\"bscr\",CONFIGURATION!$B$12)","v":"Mapped"},null,{"$f":"XBRLMap(O30,O$45&\".\"&O$46&\".\"&$W30&\".\"&$X30,O$43,O$44,CONFIGURATION!$B$10,\"BMA\",CONFIGURATION!$B$1,\"bscr\",CONFIGURATION!$B$12)","v":"Mapped"},null,{"$f":"XBRLMap(Q30,Q$45&\".\"&$W30&\".\"&$X30,Q$43,Q$44,CONFIGURATION!$B$10,\"BMA\",CONFIGURATION!$B$1,\"bscr\",CONFIGURATION!$B$12)","v":"Mapped"},null,{"$f":"XBRLMap(S30,S$45&\".\"&$W30&\".\"&$X30,S$43,S$44,CONFIGURATION!$B$10,\"BMA\",CONFIGURATION!$B$1,\"bscr\",CONFIGURATION!$B$12)","v":"Mapped"},null,{"$f":"XBRLMap(U30,U$45&\".\"&$W30&\".\"&$X30,U$43,U$44,CONFIGURATION!$B$10,\"BMA\",CONFIGURATION!$B$1,\"bscr\",CONFIGURATION!$B$12)","v":"Mapped"}]
[null,null,null,null,{"$f":"XBRLMap(E31,E$45&\".\"&E$46&\".\"&$W31&\".\"&$X31,E$43,E$44,CONFIGURATION!$B$10,\"BMA\",CONFIGURATION!$B$1,\"bscr\",CONFIGURATION!$B$12)","v":"Mapped"},null,{"$f":"XBRLMap(G31,G$45&\".\"&G$46&\".\"&$W31&\".\"&$X31,G$43,G$44,CONFIGURATION!$B$10,\"BMA\",CONFIGURATION!$B$1,\"bscr\",CONFIGURATION!$B$12)","v":"Mapped"},null,{"$f":"XBRLMap(I31,I$45&\".\"&I$46&\".\"&$W31&\".\"&$X31,I$43,I$44,CONFIGURATION!$B$10,\"BMA\",CONFIGURATION!$B$1,\"bscr\",CONFIGURATION!$B$12)","v":"Mapped"},null,{"$f":"XBRLMap(K31,K$45&\".\"&K$46&\".\"&$W31&\".\"&$X31,K$43,K$44,CONFIGURATION!$B$10,\"BMA\",CONFIGURATION!$B$1,\"bscr\",CONFIGURATION!$B$12)","v":"Mapped"},null,{"$f":"XBRLMap(M31,M$45&\".\"&M$46&\".\"&$W31&\".\"&$X31,M$43,M$44,CONFIGURATION!$B$10,\"BMA\",CONFIGURATION!$B$1,\"bscr\",CONFIGURATION!$B$12)","v":"Mapped"},null,{"$f":"XBRLMap(O31,O$45&\".\"&O$46&\".\"&$W31&\".\"&$X31,O$43,O$44,CONFIGURATION!$B$10,\"BMA\",CONFIGURATION!$B$1,\"bscr\",CONFIGURATION!$B$12)","v":"Mapped"},null,{"$f":"XBRLMap(Q31,Q$45&\".\"&$W31&\".\"&$X31,Q$43,Q$44,CONFIGURATION!$B$10,\"BMA\",CONFIGURATION!$B$1,\"bscr\",CONFIGURATION!$B$12)","v":"Mapped"},null,{"$f":"XBRLMap(S31,S$45&\".\"&$W31&\".\"&$X31,S$43,S$44,CONFIGURATION!$B$10,\"BMA\",CONFIGURATION!$B$1,\"bscr\",CONFIGURATION!$B$12)","v":"Mapped"},null,{"$f":"XBRLMap(U31,U$45&\".\"&$W31&\".\"&$X31,U$43,U$44,CONFIGURATION!$B$10,\"BMA\",CONFIGURATION!$B$1,\"bscr\",CONFIGURATION!$B$12)","v":"Mapped"}]
[null,null,null,null,{"$f":"XBRLMap(E32,E$45&\".\"&E$46&\".\"&$W32&\".\"&$X32,E$43,E$44,CONFIGURATION!$B$10,\"BMA\",CONFIGURATION!$B$1,\"bscr\",CONFIGURATION!$B$12)","v":"Mapped"},null,{"$f":"XBRLMap(G32,G$45&\".\"&G$46&\".\"&$W32&\".\"&$X32,G$43,G$44,CONFIGURATION!$B$10,\"BMA\",CONFIGURATION!$B$1,\"bscr\",CONFIGURATION!$B$12)","v":"Mapped"},null,{"$f":"XBRLMap(I32,I$45&\".\"&I$46&\".\"&$W32&\".\"&$X32,I$43,I$44,CONFIGURATION!$B$10,\"BMA\",CONFIGURATION!$B$1,\"bscr\",CONFIGURATION!$B$12)","v":"Mapped"},null,{"$f":"XBRLMap(K32,K$45&\".\"&K$46&\".\"&$W32&\".\"&$X32,K$43,K$44,CONFIGURATION!$B$10,\"BMA\",CONFIGURATION!$B$1,\"bscr\",CONFIGURATION!$B$12)","v":"Mapped"},null,{"$f":"XBRLMap(M32,M$45&\".\"&M$46&\".\"&$W32&\".\"&$X32,M$43,M$44,CONFIGURATION!$B$10,\"BMA\",CONFIGURATION!$B$1,\"bscr\",CONFIGURATION!$B$12)","v":"Mapped"},null,{"$f":"XBRLMap(O32,O$45&\".\"&O$46&\".\"&$W32&\".\"&$X32,O$43,O$44,CONFIGURATION!$B$10,\"BMA\",CONFIGURATION!$B$1,\"bscr\",CONFIGURATION!$B$12)","v":"Mapped"},null,{"$f":"XBRLMap(Q32,Q$45&\".\"&$W32&\".\"&$X32,Q$43,Q$44,CONFIGURATION!$B$10,\"BMA\",CONFIGURATION!$B$1,\"bscr\",CONFIGURATION!$B$12)","v":"Mapped"},null,{"$f":"XBRLMap(S32,S$45&\".\"&$W32&\".\"&$X32,S$43,S$44,CONFIGURATION!$B$10,\"BMA\",CONFIGURATION!$B$1,\"bscr\",CONFIGURATION!$B$12)","v":"Mapped"},null,{"$f":"XBRLMap(U32,U$45&\".\"&$W32&\".\"&$X32,U$43,U$44,CONFIGURATION!$B$10,\"BMA\",CONFIGURATION!$B$1,\"bscr\",CONFIGURATION!$B$12)","v":"Mapped"}]
[null,null,null,null,{"$f":"XBRLMap(E33,E$45&\".\"&E$46&\".\"&$W33&\".\"&$X33,E$43,E$44,CONFIGURATION!$B$10,\"BMA\",CONFIGURATION!$B$1,\"bscr\",CONFIGURATION!$B$12)","v":"Mapped"},null,{"$f":"XBRLMap(G33,G$45&\".\"&G$46&\".\"&$W33&\".\"&$X33,G$43,G$44,CONFIGURATION!$B$10,\"BMA\",CONFIGURATION!$B$1,\"bscr\",CONFIGURATION!$B$12)","v":"Mapped"},null,{"$f":"XBRLMap(I33,I$45&\".\"&I$46&\".\"&$W33&\".\"&$X33,I$43,I$44,CONFIGURATION!$B$10,\"BMA\",CONFIGURATION!$B$1,\"bscr\",CONFIGURATION!$B$12)","v":"Mapped"},null,{"$f":"XBRLMap(K33,K$45&\".\"&K$46&\".\"&$W33&\".\"&$X33,K$43,K$44,CONFIGURATION!$B$10,\"BMA\",CONFIGURATION!$B$1,\"bscr\",CONFIGURATION!$B$12)","v":"Mapped"},null,{"$f":"XBRLMap(M33,M$45&\".\"&M$46&\".\"&$W33&\".\"&$X33,M$43,M$44,CONFIGURATION!$B$10,\"BMA\",CONFIGURATION!$B$1,\"bscr\",CONFIGURATION!$B$12)","v":"Mapped"},null,{"$f":"XBRLMap(O33,O$45&\".\"&O$46&\".\"&$W33&\".\"&$X33,O$43,O$44,CONFIGURATION!$B$10,\"BMA\",CONFIGURATION!$B$1,\"bscr\",CONFIGURATION!$B$12)","v":"Mapped"},null,{"$f":"XBRLMap(Q33,Q$45&\".\"&$W33&\".\"&$X33,Q$43,Q$44,CONFIGURATION!$B$10,\"BMA\",CONFIGURATION!$B$1,\"bscr\",CONFIGURATION!$B$12)","v":"Mapped"},null,{"$f":"XBRLMap(S33,S$45&\".\"&$W33&\".\"&$X33,S$43,S$44,CONFIGURATION!$B$10,\"BMA\",CONFIGURATION!$B$1,\"bscr\",CONFIGURATION!$B$12)","v":"Mapped"},null,{"$f":"XBRLMap(U33,U$45&\".\"&$W33&\".\"&$X33,U$43,U$44,CONFIGURATION!$B$10,\"BMA\",CONFIGURATION!$B$1,\"bscr\",CONFIGURATION!$B$12)","v":"Mapped"}]
[null,null,null,null,{"$f":"XBRLMap(E34,E$45&\".\"&E$46&\".\"&$W34&\".\"&$X34,E$43,E$44,CONFIGURATION!$B$10,\"BMA\",CONFIGURATION!$B$1,\"bscr\",CONFIGURATION!$B$12)","v":"Mapped"},null,{"$f":"XBRLMap(G34,G$45&\".\"&G$46&\".\"&$W34&\".\"&$X34,G$43,G$44,CONFIGURATION!$B$10,\"BMA\",CONFIGURATION!$B$1,\"bscr\",CONFIGURATION!$B$12)","v":"Mapped"},null,{"$f":"XBRLMap(I34,I$45&\".\"&I$46&\".\"&$W34&\".\"&$X34,I$43,I$44,CONFIGURATION!$B$10,\"BMA\",CONFIGURATION!$B$1,\"bscr\",CONFIGURATION!$B$12)","v":"Mapped"},null,{"$f":"XBRLMap(K34,K$45&\".\"&K$46&\".\"&$W34&\".\"&$X34,K$43,K$44,CONFIGURATION!$B$10,\"BMA\",CONFIGURATION!$B$1,\"bscr\",CONFIGURATION!$B$12)","v":"Mapped"},null,{"$f":"XBRLMap(M34,M$45&\".\"&M$46&\".\"&$W34&\".\"&$X34,M$43,M$44,CONFIGURATION!$B$10,\"BMA\",CONFIGURATION!$B$1,\"bscr\",CONFIGURATION!$B$12)","v":"Mapped"},null,{"$f":"XBRLMap(O34,O$45&\".\"&O$46&\".\"&$W34&\".\"&$X34,O$43,O$44,CONFIGURATION!$B$10,\"BMA\",CONFIGURATION!$B$1,\"bscr\",CONFIGURATION!$B$12)","v":"Mapped"},null,{"$f":"XBRLMap(Q34,Q$45&\".\"&$W34&\".\"&$X34,Q$43,Q$44,CONFIGURATION!$B$10,\"BMA\",CONFIGURATION!$B$1,\"bscr\",CONFIGURATION!$B$12)","v":"Mapped"},null,{"$f":"XBRLMap(S34,S$45&\".\"&$W34&\".\"&$X34,S$43,S$44,CONFIGURATION!$B$10,\"BMA\",CONFIGURATION!$B$1,\"bscr\",CONFIGURATION!$B$12)","v":"Mapped"},null,{"$f":"XBRLMap(U34,U$45&\".\"&$W34&\".\"&$X34,U$43,U$44,CONFIGURATION!$B$10,\"BMA\",CONFIGURATION!$B$1,\"bscr\",CONFIGURATION!$B$12)","v":"Mapped"}]
[null,null,null,null,{"$f":"XBRLMap(E35,E$45&\".\"&E$46&\".\"&$W35&\".\"&$X35,E$43,E$44,CONFIGURATION!$B$10,\"BMA\",CONFIGURATION!$B$1,\"bscr\",CONFIGURATION!$B$12)","v":"Mapped"},null,{"$f":"XBRLMap(G35,G$45&\".\"&G$46&\".\"&$W35&\".\"&$X35,G$43,G$44,CONFIGURATION!$B$10,\"BMA\",CONFIGURATION!$B$1,\"bscr\",CONFIGURATION!$B$12)","v":"Mapped"},null,{"$f":"XBRLMap(I35,I$45&\".\"&I$46&\".\"&$W35&\".\"&$X35,I$43,I$44,CONFIGURATION!$B$10,\"BMA\",CONFIGURATION!$B$1,\"bscr\",CONFIGURATION!$B$12)","v":"Mapped"},null,{"$f":"XBRLMap(K35,K$45&\".\"&K$46&\".\"&$W35&\".\"&$X35,K$43,K$44,CONFIGURATION!$B$10,\"BMA\",CONFIGURATION!$B$1,\"bscr\",CONFIGURATION!$B$12)","v":"Mapped"},null,{"$f":"XBRLMap(M35,M$45&\".\"&M$46&\".\"&$W35&\".\"&$X35,M$43,M$44,CONFIGURATION!$B$10,\"BMA\",CONFIGURATION!$B$1,\"bscr\",CONFIGURATION!$B$12)","v":"Mapped"},null,{"$f":"XBRLMap(O35,O$45&\".\"&O$46&\".\"&$W35&\".\"&$X35,O$43,O$44,CONFIGURATION!$B$10,\"BMA\",CONFIGURATION!$B$1,\"bscr\",CONFIGURATION!$B$12)","v":"Mapped"},null,{"$f":"XBRLMap(Q35,Q$45&\".\"&$W35&\".\"&$X35,Q$43,Q$44,CONFIGURATION!$B$10,\"BMA\",CONFIGURATION!$B$1,\"bscr\",CONFIGURATION!$B$12)","v":"Mapped"},null,{"$f":"XBRLMap(S35,S$45&\".\"&$W35&\".\"&$X35,S$43,S$44,CONFIGURATION!$B$10,\"BMA\",CONFIGURATION!$B$1,\"bscr\",CONFIGURATION!$B$12)","v":"Mapped"},null,{"$f":"XBRLMap(U35,U$45&\".\"&$W35&\".\"&$X35,U$43,U$44,CONFIGURATION!$B$10,\"BMA\",CONFIGURATION!$B$1,\"bscr\",CONFIGURATION!$B$12)","v":"Mapped"}]
[]
[]
[]
[]
[null,null,null,null,"bma_StatementComponentAxis_bma_GrossWrittenMember",null,"bma_StatementComponentAxis_bma_GrossWrittenMember",null,"bma_StatementComponentAxis_bma_GrossWrittenMember",null,"bma_StatementComponentAxis_bma_GrossWrittenMember",null,"bma_StatementComponentAxis_bma_GrossWrittenMember",null,"bma_StatementComponentAxis_bma_GrossWrittenMember",null,"bma_StatementComponentAxis_bma_NetWrittenMember",null,"bma_NetWrittenMember",null,"bma_NetWrittenMember"]
[null,null,null,null,"bma_StatementComponentAxis_bma_UnrelatedWrittenMember",null,"bma_StatementComponentAxis_bma_UnrelatedWrittenMember",null,"bma_StatementComponentAxis_bma_RelatedWrittenMember",null,"bma_StatementComponentAxis_bma_RelatedWrittenMember",null,"bma_StatementComponentAxis_bma_TotalWrittenMember",null,"bma_StatementComponentAxis_bma_TotalWrittenMember"]

{"sheet":"Schedule IVC (EBS)","index":36,"n_rows":69,"n_cols":35,"rows_kept":69,"cut":false,"hidden":false,"merged":[[1,1,1,2]]}
[null,"SCHEDULE OF GEOGRAPHIC DIVERSIFICATION OF PREMIUMS WRITTEN",null,null,null,null,null,null,null,null,null,null,null,null,null,null,null,null,null,null,null,null,null,null,null,{"$f":"HYPERLINK(\"#'Index'!A1\",\"Return to Index\")","v":"Return to Index"}]
[null,{"$f":"'Company Information'!C7","v":"Enter Company Name"}]
[null,{"$f":"\"For the year ending \"&TEXT('Company Information'!C3,\"MMMM DD, YYYY\")","v":"For the year ending December 31, 2019"},null,null,null,null,null,null,null,null,null,null,null,null,null,null,null,null,null,null,null,null,null,null,null,"SCHEDULE IV(C) (EBS)"]
[null,{"$f":"\"expressed in\"& IF(CONFIGURATION!$B$12>1,\" ['\"&MID(CONFIGURATION!$B$12,2,LEN(CONFIGURATION!$B$12))&\"s]\",\"\")&\" \"&'Form 1EBS'!C4","v":"expressed in ['000s] United States Dollars"},null,null,null,null,null,null,null,null,null,null,null,null,null,null,null,null,null,null,null,null,null,{"$f":"\"Confirmation that \"&B2& \" Is Taking Advantage of Geographic Diversification of Premiums\"","v":"Confirmation that Enter Company Name Is Taking Advantage of Geographic Diversification of Premiums"},null,"Yes"]
[]
[null,"Schedule ",null,null,{"$f":"HYPERLINK(\"#'Zones'!c4\",\"Zone 1\")","v":"Zone 1"},{"$f":"HYPERLINK(\"#'Zones'!c13\",\"Zone 2\")","v":"Zone 2"},{"$f":"HYPERLINK(\"#'Zones'!c18\",\"Zone 3\")","v":"Zone 3"},{"$f":"HYPERLINK(\"#'Zones'!c26\",\"Zone 4\")","v":"Zone 4"},{"$f":"HYPERLINK(\"#'Zones'!c36\",\"Zone 5\")","v":"Zone 5"},{"$f":"HYPERLINK(\"#'Zones'!c46\",\"Zone 6\")","v":"Zone 6"},{"$f":"HYPERLINK(\"#'Zones'!c57\",\"Zone 7\")","v":"Zone 7"},{"$f":"HYPERLINK(\"#'Zones'!c68\",\"Zone 8\")","v":"Zone 8"},{"$f":"HYPERLINK(\"#'Zones'!c76\",\"Zone 9\")","v":"Zone 9"},{"$f":"HYPERLINK(\"#'Zones'!c84\",\"Zone 10\")","v":"Zone 10"},{"$f":"HYPERLINK(\"#'Zones'!c90\",\"Zone 11\")","v":"Zone 11"},{"$f":"HYPERLINK(\"#'Zones'!c94\",\"Zone 12\")","v":"Zone 12"},{"$f":"HYPERLINK(\"#'Zones'!c107\",\"Zone 13\")","v":"Zone 13"},{"$f":"HYPERLINK(\"#'Zones'!c112\",\"Zone 14\")","v":"Zone 14"},{"$f":"HYPERLINK(\"#'Zones'!c116\",\"Zone 15\")","v":"Zone 15"},{"$f":"HYPERLINK(\"#'Zones'!c121\",\"Zone 16\")","v":"Zone 16"},{"$f":"HYPERLINK(\"#'Zones'!c127\",\"Zone 17\")","v":"Zone 17"},{"$f":"HYPERLINK(\"#'Zones'!c133\",\"Zone 18\")","v":"Zone 18"},null,"Total Geo NPW",null,"Total NPW"]
[null,"Line no. ",null,null,{"$f":"CONFIGURATION!$D$12","v":" ('000s)"},{"$f":"CONFIGURATION!$D$12","v":" ('000s)"},{"$f":"CONFIGURATION!$D$12","v":" ('000s)"},{"$f":"CONFIGURATION!$D$12","v":" ('000s)"},{"$f":"CONFIGURATION!$D$12","v":" ('000s)"},{"$f":"CONFIGURATION!$D$12","v":" ('000s)"},{"$f":"CONFIGURATION!$D$12","v":" ('000s)"},{"$f":"CONFIGURATION!$D$12","v":" ('000s)"},{"$f":"CONFIGURATION!$D$12","v":" ('000s)"},{"$f":"CONFIGURATION!$D$12","v":" ('000s)"},{"$f":"CONFIGURATION!$D$12","v":" ('000s)"},{"$f":"CONFIGURATION!$D$12","v":" ('000s)"},{"$f":"CONFIGURATION!$D$12","v":" ('000s)"},{"$f":"CONFIGURATION!$D$12","v":" ('000s)"},{"$f":"CONFIGURATION!$D$12","v":" ('000s)"},{"$f":"CONFIGURATION!$D$12","v":" ('000s)"},{"$f":"CONFIGURATION!$D$12","v":" ('000s)"},{"$f":"CONFIGURATION!$D$12","v":" ('000s)"},null,{"$f":"CONFIGURATION!$D$12","v":" ('000s)"},null,{"$f":"CONFIGURATION!$D$12","v":" ('000s)"}]
[]
[null,1,"Property Catastrophe",null,{"$f":"Import!I1335","v":0},{"$f":"Import!I1360","v":0},{"$f":"Import!I1385","v":0},{"$f":"Import!I1410","v":0},{"$f":"Import!I1435","v":0},{"$f":"Import!I1460","v":0},{"$f":"Import!I1485","v":0},{"$f":"Import!I1510","v":0},{"$f":"Import!I1535","v":0},{"$f":"Import!I1560","v":0},{"$f":"Import!I1585","v":0},{"$f":"Import!I1610","v":0},{"$f":"Import!I1635","v":0},{"$f":"Import!I1660","v":0},{"$f":"Import!I1685","v":0},{"$f":"Import!I1710","v":0},{"$f":"Import!I1735","v":0},{"$f":"Import!I1760","v":0},null,{"$f":"SUM(E9:V9)","v":0},null,{"$f":"'Schedule IVA (EBS)'!Q11","v":0},null,{"$f":"IF($Z$4=\"Yes\",IF(X9=0,\" - \",IF(ROUND(SUM(X9-Z9),0)=0,\"TRUE\",\"FALSE\")),\"N/A\")","v":" - "},"brrt_LineOfBusinessAxis_brrt_PropertyCatastropheMember","brrt_TypeOfContractAxis_brrt_ProportionalMember",null,null,null,null,"bma_ScheduleOfPremiumsWrittenByLineOfBusinessPropertyCatastrophe"]
[null,2,"Property",null,{"$f":"Import!I1336","v":0},{"$f":"Import!I1361","v":0},{"$f":"Import!I1386","v":0},{"$f":"Import!I1411","v":0},{"$f":"Import!I1436","v":0},{"$f":"Import!I1461","v":0},{"$f":"Import!I1486","v":0},{"$f":"Import!I1511","v":0},{"$f":"Import!I1536","v":0},{"$f":"Import!I1561","v":0},{"$f":"Import!I1586","v":0},{"$f":"Import!I1611","v":0},{"$f":"Import!I1636","v":0},{"$f":"Import!I1661","v":0},{"$f":"Import!I1686","v":0},{"$f":"Import!I1711","v":0},{"$f":"Import!I1736","v":0},{"$f":"Import!I1761","v":0},null,{"$f":"SUM(E10:V10)","v":0},null,{"$f":"'Schedule IVA (EBS)'!Q12","v":0},null,{"$f":"IF($Z$4=\"Yes\",IF(X10=0,\" - \",IF(ROUND(SUM(X10-Z10),0)=0,\"TRUE\",\"FALSE\")),\"N/A\")","v":" - "},"brrt_LineOfBusinessAxis_brrt_PropertyMember","brrt_TypeOfContractAxis_brrt_ProportionalMember",null,null,null,null,"bma_ScheduleOfPremiumsWrittenByLineOfBusinessProperty"]
[null,3,"Property Non – Proportional",null,{"$f":"Import!I1337","v":0},{"$f":"Import!I1362","v":0},{"$f":"Import!I1387","v":0},{"$f":"Import!I1412","v":0},{"$f":"Import!I1437","v":0},{"$f":"Import!I1462","v":0},{"$f":"Import!I1487","v":0},{"$f":"Import!I1512","v":0},{"$f":"Import!I1537","v":0},{"$f":"Import!I1562","v":0},{"$f":"Import!I1587","v":0},{"$f":"Import!I1612","v":0},{"$f":"Import!I1637","v":0},{"$f":"Import!I1662","v":0},{"$f":"Import!I1687","v":0},{"$f":"Import!I1712","v":0},{"$f":"Import!I1737","v":0},{"$f":"Import!I1762","v":0},null,0,null,{"$f":"'Schedule IVA (EBS)'!Q13","v":0},null," - ","brrt_LineOfBusinessAxis_brrt_PropertyMember","brrt_TypeOfContractAxis_brrt_NonProportionalMember",null,null,null,null,"bma_ScheduleOfPremiumsWrittenByLineOfBusinessPropertyNonProportional"]
[null,4,"Personal Accident",null,{"$f":"Import!I1338","v":0},{"$f":"Import!I1363","v":0},{"$f":"Import!I1388","v":0},{"$f":"Import!I1413","v":0},{"$f":"Import!I1438","v":0},{"$f":"Import!I1463","v":0},{"$f":"Import!I1488","v":0},{"$f":"Import!I1513","v":0},{"$f":"Import!I1538","v":0},{"$f":"Import!I1563","v":0},{"$f":"Import!I1588","v":0},{"$f":"Import!I1613","v":0},{"$f":"Import!I1638","v":0},{"$f":"Import!I1663","v":0},{"$f":"Import!I1688","v":0},{"$f":"Import!I1713","v":0},{"$f":"Import!I1738","v":0},{"$f":"Import!I1763","v":0},null,0,null,{"$f":"'Schedule IVA (EBS)'!Q14","v":0},null," - ","brrt_LineOfBusinessAxis_brrt_PersonalAccidentMember","brrt_TypeOfContractAxis_brrt_ProportionalMember",null,null,null,null,"bma_ScheduleOfPremiumsWrittenByLineOfBusinessPersonalAccident"]
[null,5,"Personal Accident Non- Proportional",null,{"$f":"Import!I1339","v":0},{"$f":"Import!I1364","v":0},{"$f":"Import!I1389","v":0},{"$f":"Import!I1414","v":0},{"$f":"Import!I1439","v":0},{"$f":"Import!I1464","v":0},{"$f":"Import!I1489","v":0},{"$f":"Import!I1514","v":0},{"$f":"Import!I1539","v":0},{"$f":"Import!I1564","v":0},{"$f":"Import!I1589","v":0},{"$f":"Import!I1614","v":0},{"$f":"Import!I1639","v":0},{"$f":"Import!I1664","v":0},{"$f":"Import!I1689","v":0},{"$f":"Import!I1714","v":0},{"$f":"Import!I1739","v":0},{"$f":"Import!I1764","v":0},null,0,null,{"$f":"'Schedule IVA (EBS)'!Q15","v":0},null," - ","brrt_LineOfBusinessAxis_brrt_PersonalAccidentMember","brrt_TypeOfContractAxis_brrt_NonProportionalMember",null,null,null,null,"bma_ScheduleOfPremiumsWrittenByLineOfBusinessPersonalAccidentNonProportional"]
[null,6,"Aviation",null,{"$f":"Import!I1340","v":0},{"$f":"Import!I1365","v":0},{"$f":"Import!I1390","v":0},{"$f":"Import!I1415","v":0},{"$f":"Import!I1440","v":0},{"$f":"Import!I1465","v":0},{"$f":"Import!I1490","v":0},{"$f":"Import!I1515","v":0},{"$f":"Import!I1540","v":0},{"$f":"Import!I1565","v":0},{"$f":"Import!I1590","v":0},{"$f":"Import!I1615","v":0},{"$f":"Import!I1640","v":0},{"$f":"Import!I1665","v":0},{"$f":"Import!I1690","v":0},{"$f":"Import!I1715","v":0},{"$f":"Import!I1740","v":0},{"$f":"Import!I1765","v":0},null,0,null,{"$f":"'Schedule IVA (EBS)'!Q16","v":0},null," - ","brrt_LineOfBusinessAxis_brrt_AviationMember","brrt_TypeOfContractAxis_brrt_ProportionalMember",null,null,null,null,"bma_ScheduleOfPremiumsWrittenByLineOfBusinessAviation"]
[null,7,"Aviation Non – Proportional",null,{"$f":"Import!I1341","v":0},{"$f":"Import!I1366","v":0},{"$f":"Import!I1391","v":0},{"$f":"Import!I1416","v":0},{"$f":"Import!I1441","v":0},{"$f":"Import!I1466","v":0},{"$f":"Import!I1491","v":0},{"$f":"Import!I1516","v":0},{"$f":"Import!I1541","v":0},{"$f":"Import!I1566","v":0},{"$f":"Import!I1591","v":0},{"$f":"Import!I1616","v":0},{"$f":"Import!I1641","v":0},{"$f":"Import!I1666","v":0},{"$f":"Import!I1691","v":0},{"$f":"Import!I1716","v":0},{"$f":"Import!I1741","v":0},{"$f":"Import!I1766","v":0},null,0,null,{"$f":"'Schedule IVA (EBS)'!Q17","v":0},null," - ","brrt_LineOfBusinessAxis_brrt_AviationMember","brrt_TypeOfContractAxis_brrt_NonProportionalMember",null,null,null,null,"bma_ScheduleOfPremiumsWrittenByLineOfBusinessAviationNonProportional"]
[null,8,"Credit / Surety ",null,{"$f":"Import!I1342","v":0},{"$f":"Import!I1367","v":0},{"$f":"Import!I1392","v":0},{"$f":"Import!I1417","v":0},{"$f":"Import!I1442","v":0},{"$f":"Import!I1467","v":0},{"$f":"Import!I1492","v":0},{"$f":"Import!I1517","v":0},{"$f":"Import!I1542","v":0},{"$f":"Import!I1567","v":0},{"$f":"Import!I1592","v":0},{"$f":"Import!I1617","v":0},{"$f":"Import!I1642","v":0},{"$f":"Import!I1667","v":0},{"$f":"Import!I1692","v":0},{"$f":"Import!I1717","v":0},{"$f":"Import!I1742","v":0},{"$f":"Import!I1767","v":0},null,0,null,{"$f":"'Schedule IVA (EBS)'!Q18","v":0},null," - ","brrt_LineOfBusinessAxis_brrt_CreditSuretyMember","brrt_TypeOfContractAxis_brrt_ProportionalMember",null,null,null,null,"bma_ScheduleOfPremiumsWrittenByLineOfBusinessCreditSurety"]
[null,9,"Credit / Surety Non – Proportional",null,{"$f":"Import!I1343","v":0},{"$f":"Import!I1368","v":0},{"$f":"Import!I1393","v":0},{"$f":"Import!I1418","v":0},{"$f":"Import!I1443","v":0},{"$f":"Import!I1468","v":0},{"$f":"Import!I1493","v":0},{"$f":"Import!I1518","v":0},{"$f":"Import!I1543","v":0},{"$f":"Import!I1568","v":0},{"$f":"Import!I1593","v":0},{"$f":"Import!I1618","v":0},{"$f":"Import!I1643","v":0},{"$f":"Import!I1668","v":0},{"$f":"Import!I1693","v":0},{"$f":"Import!I1718","v":0},{"$f":"Import!I1743","v":0},{"$f":"Import!I1768","v":0},null,0,null,{"$f":"'Schedule IVA (EBS)'!Q19","v":0},null," - ","brrt_LineOfBusinessAxis_brrt_CreditSuretyMember","brrt_TypeOfContractAxis_brrt_NonProportionalMember",null,null,null,null,"bma_ScheduleOfPremiumsWrittenByLineOfBusinessCreditSuretyNonProportional"]
[null,10,"Energy Offshore / Marine",null,{"$f":"Import!I1344","v":0},{"$f":"Import!I1369","v":0},{"$f":"Import!I1394","v":0},{"$f":"Import!I1419","v":0},{"$f":"Import!I1444","v":0},{"$f":"Import!I1469","v":0},{"$f":"Import!I1494","v":0},{"$f":"Import!I1519","v":0},{"$f":"Import!I1544","v":0},{"$f":"Import!I1569","v":0},{"$f":"Import!I1594","v":0},{"$f":"Import!I1619","v":0},{"$f":"Import!I1644","v":0},{"$f":"Import!I1669","v":0},{"$f":"Import!I1694","v":0},{"$f":"Import!I1719","v":0},{"$f":"Import!I1744","v":0},{"$f":"Import!I1769","v":0},null,0,null,{"$f":"'Schedule IVA (EBS)'!Q20","v":0},null," - ","brrt_LineOfBusinessAxis_brrt_EnergyOffshoreMarineMember","brrt_TypeOfContractAxis_brrt_ProportionalMember",null,null,null,null,"bma_ScheduleOfPremiumsWrittenByLineOfBusinessEnergyOffshoreMarine"]
[null,11,"Energy Offshore / Marine Non - Proportional ","  ",{"$f":"Import!I1345","v":0},{"$f":"Import!I1370","v":0},{"$f":"Import!I1395","v":0},{"$f":"Import!I1420","v":0},{"$f":"Import!I1445","v":0},{"$f":"Import!I1470","v":0},{"$f":"Import!I1495","v":0},{"$f":"Import!I1520","v":0},{"$f":"Import!I1545","v":0},{"$f":"Import!I1570","v":0},{"$f":"Import!I1595","v":0},{"$f":"Import!I1620","v":0},{"$f":"Import!I1645","v":0},{"$f":"Import!I1670","v":0},{"$f":"Import!I1695","v":0},{"$f":"Import!I1720","v":0},{"$f":"Import!I1745","v":0},{"$f":"Import!I1770","v":0},null,0,null,{"$f":"'Schedule IVA (EBS)'!Q21","v":0},null," - ","brrt_LineOfBusinessAxis_brrt_EnergyOffshoreMarineMember","brrt_TypeOfContractAxis_brrt_NonProportionalMember",null,null,null,null,"bma_ScheduleOfPremiumsWrittenByLineOfBusinessEnergyOffshoreMarineNonProportional"]
[null,12,"US Casualty",null,{"$f":"Import!I1346","v":0},{"$f":"Import!I1371","v":0},{"$f":"Import!I1396","v":0},{"$f":"Import!I1421","v":0},{"$f":"Import!I1446","v":0},{"$f":"Import!I1471","v":0},{"$f":"Import!I1496","v":0},{"$f":"Import!I1521","v":0},{"$f":"Import!I1546","v":0},{"$f":"Import!I1571","v":0},{"$f":"Import!I1596","v":0},{"$f":"Import!I1621","v":0},{"$f":"Import!I1646","v":0},{"$f":"Import!I1671","v":0},{"$f":"Import!I1696","v":0},{"$f":"Import!I1721","v":0},{"$f":"Import!I1746","v":0},{"$f":"Import!I1771","v":0},null,0,null,{"$f":"'Schedule IVA (EBS)'!Q22","v":0},null," - ","brrt_LineOfBusinessAxis_brrt_USCasualtyMember","brrt_TypeOfContractAxis_brrt_ProportionalMember",null,null,null,null,"bma_ScheduleOfPremiumsWrittenByLineOfBusinessUsCasualty"]
[null,13,"US Casualty Non - Proportional ",null,{"$f":"Import!I1347","v":0},{"$f":"Import!I1372","v":0},{"$f":"Import!I1397","v":0},{"$f":"Import!I1422","v":0},{"$f":"Import!I1447","v":0},{"$f":"Import!I1472","v":0},{"$f":"Import!I1497","v":0},{"$f":"Import!I1522","v":0},{"$f":"Import!I1547","v":0},{"$f":"Import!I1572","v":0},{"$f":"Import!I1597","v":0},{"$f":"Import!I1622","v":0},{"$f":"Import!I1647","v":0},{"$f":"Import!I1672","v":0},{"$f":"Import!I1697","v":0},{"$f":"Import!I1722","v":0},{"$f":"Import!I1747","v":0},{"$f":"Import!I1772","v":0},null,0,null,{"$f":"'Schedule IVA (EBS)'!Q23","v":0},null," - ","brrt_LineOfBusinessAxis_brrt_USCasualtyMember","brrt_TypeOfContractAxis_brrt_NonProportionalMember",null,null,null,null,"bma_ScheduleOfPremiumsWrittenByLineOfBusinessUsCasualtyNonProportional"]
[null,14,"US Professional",null,{"$f":"Import!I1348","v":0},{"$f":"Import!I1373","v":0},{"$f":"Import!I1398","v":0},{"$f":"Import!I1423","v":0},{"$f":"Import!I1448","v":0},{"$f":"Import!I1473","v":0},{"$f":"Import!I1498","v":0},{"$f":"Import!I1523","v":0},{"$f":"Import!I1548","v":0},{"$f":"Import!I1573","v":0},{"$f":"Import!I1598","v":0},{"$f":"Import!I1623","v":0},{"$f":"Import!I1648","v":0},{"$f":"Import!I1673","v":0},{"$f":"Import!I1698","v":0},{"$f":"Import!I1723","v":0},{"$f":"Import!I1748","v":0},{"$f":"Import!I1773","v":0},null,0,null,{"$f":"'Schedule IVA (EBS)'!Q24","v":0},null," - ","brrt_LineOfBusinessAxis_brrt_USProfessionalMember","brrt_TypeOfContractAxis_brrt_ProportionalMember",null,null,null,null,"bma_ScheduleOfPremiumsWrittenByLineOfBusinessUsProfessional"]
[null,15,"US Professional Non – Proportional",null,{"$f":"Import!I1349","v":0},{"$f":"Import!I1374","v":0},{"$f":"Import!I1399","v":0},{"$f":"Import!I1424","v":0},{"$f":"Import!I1449","v":0},{"$f":"Import!I1474","v":0},{"$f":"Import!I1499","v":0},{"$f":"Import!I1524","v":0},{"$f":"Import!I1549","v":0},{"$f":"Import!I1574","v":0},{"$f":"Import!I1599","v":0},{"$f":"Import!I1624","v":0},{"$f":"Import!I1649","v":0},{"$f":"Import!I1674","v":0},{"$f":"Import!I1699","v":0},{"$f":"Import!I1724","v":0},{"$f":"Import!I1749","v":0},{"$f":"Import!I1774","v":0},null,0,null,{"$f":"'Schedule IVA (EBS)'!Q25","v":0},null," - ","brrt_LineOfBusinessAxis_brrt_USProfessionalMember","brrt_TypeOfContractAxis_brrt_NonProportionalMember",null,null,null,null,"bma_ScheduleOfPremiumsWrittenByLineOfBusinessUsProfessionalNonProportional"]
[null,16,"US Specialty ",null,{"$f":"Import!I1350","v":0},{"$f":"Import!I1375","v":0},{"$f":"Import!I1400","v":0},{"$f":"Import!I1425","v":0},{"$f":"Import!I1450","v":0},{"$f":"Import!I1475","v":0},{"$f":"Import!I1500","v":0},{"$f":"Import!I1525","v":0},{"$f":"Import!I1550","v":0},{"$f":"Import!I1575","v":0},{"$f":"Import!I1600","v":0},{"$f":"Import!I1625","v":0},{"$f":"Import!I1650","v":0},{"$f":"Import!I1675","v":0},{"$f":"Import!I1700","v":0},{"$f":"Import!I1725","v":0},{"$f":"Import!I1750","v":0},{"$f":"Import!I1775","v":0},null,0,null,{"$f":"'Schedule IVA (EBS)'!Q26","v":0},null," - ","brrt_LineOfBusinessAxis_brrt_USSpecialtyMember","brrt_TypeOfContractAxis_brrt_ProportionalMember",null,null,null,null,"bma_ScheduleOfPremiumsWrittenByLineOfBusinessUsSpecialty"]
[null,17,"US Specialty Non - Proportional",null,{"$f":"Import!I1351","v":0},{"$f":"Import!I1376","v":0},{"$f":"Import!I1401","v":0},{"$f":"Import!I1426","v":0},{"$f":"Import!I1451","v":0},{"$f":"Import!I1476","v":0},{"$f":"Import!I1501","v":0},{"$f":"Import!I1526","v":0},{"$f":"Import!I1551","v":0},{"$f":"Import!I1576","v":0},{"$f":"Import!I1601","v":0},{"$f":"Import!I1626","v":0},{"$f":"Import!I1651","v":0},{"$f":"Import!I1676","v":0},{"$f":"Import!I1701","v":0},{"$f":"Import!I1726","v":0},{"$f":"Import!I1751","v":0},{"$f":"Import!I1776","v":0},null,0,null,{"$f":"'Schedule IVA (EBS)'!Q27","v":0},null," - ","brrt_LineOfBusinessAxis_brrt_USSpecialtyMember","brrt_TypeOfContractAxis_brrt_NonProportionalMember",null,null,null,null,"bma_ScheduleOfPremiumsWrittenByLineOfBusinessUsSpecialtyNonProportional"]
[null,18,"International Motor ",null,{"$f":"Import!I1352","v":0},{"$f":"Import!I1377","v":0},{"$f":"Import!I1402","v":0},{"$f":"Import!I1427","v":0},{"$f":"Import!I1452","v":0},{"$f":"Import!I1477","v":0},{"$f":"Import!I1502","v":0},{"$f":"Import!I1527","v":0},{"$f":"Import!I1552","v":0},{"$f":"Import!I1577","v":0},{"$f":"Import!I1602","v":0},{"$f":"Import!I1627","v":0},{"$f":"Import!I1652","v":0},{"$f":"Import!I1677","v":0},{"$f":"Import!I1702","v":0},{"$f":"Import!I1727","v":0},{"$f":"Import!I1752","v":0},{"$f":"Import!I1777","v":0},null,0,null,{"$f":"'Schedule IVA (EBS)'!Q28","v":0},null," - ","brrt_LineOfBusinessAxis_brrt_InternationalMotorMember","brrt_TypeOfContractAxis_brrt_ProportionalMember",null,null,null,null,"bma_ScheduleOfPremiumsWrittenByLineOfBusinessInternationalMotor"]
[null,19,"International Motor Non – Proportional",null,{"$f":"Import!I1353","v":0},{"$f":"Import!I1378","v":0},{"$f":"Import!I1403","v":0},{"$f":"Import!I1428","v":0},{"$f":"Import!I1453","v":0},{"$f":"Import!I1478","v":0},{"$f":"Import!I1503","v":0},{"$f":"Import!I1528","v":0},{"$f":"Import!I1553","v":0},{"$f":"Import!I1578","v":0},{"$f":"Import!I1603","v":0},{"$f":"Import!I1628","v":0},{"$f":"Import!I1653","v":0},{"$f":"Import!I1678","v":0},{"$f":"Import!I1703","v":0},{"$f":"Import!I1728","v":0},{"$f":"Import!I1753","v":0},{"$f":"Import!I1778","v":0},null,0,null,{"$f":"'Schedule IVA (EBS)'!Q29","v":0},null," - ","brrt_LineOfBusinessAxis_brrt_InternationalMotorMember","brrt_TypeOfContractAxis_brrt_NonProportionalMember",null,null,null,null,"bma_ScheduleOfPremiumsWrittenByLineOfBusinessInternationalMotorNonProportional"]
[null,20,"International Casualty Non – Motor ",null,{"$f":"Import!I1354","v":0},{"$f":"Import!I1379","v":0},{"$f":"Import!I1404","v":0},{"$f":"Import!I1429","v":0},{"$f":"Import!I1454","v":0},{"$f":"Import!I1479","v":0},{"$f":"Import!I1504","v":0},{"$f":"Import!I1529","v":0},{"$f":"Import!I1554","v":0},{"$f":"Import!I1579","v":0},{"$f":"Import!I1604","v":0},{"$f":"Import!I1629","v":0},{"$f":"Import!I1654","v":0},{"$f":"Import!I1679","v":0},{"$f":"Import!I1704","v":0},{"$f":"Import!I1729","v":0},{"$f":"Import!I1754","v":0},{"$f":"Import!I1779","v":0},null,0,null,{"$f":"'Schedule IVA (EBS)'!Q30","v":0},null," - ","brrt_LineOfBusinessAxis_brrt_InternationalCasualtyNonMotorMember","brrt_TypeOfContractAxis_brrt_ProportionalMember",null,null,null,null,"bma_ScheduleOfPremiumsWrittenByLineOfBusinessInternationalCasualtyNonMotor"]
[null,21,"International Casualty Non Motor Non – Proportional ",null,{"$f":"Import!I1355","v":0},{"$f":"Import!I1380","v":0},{"$f":"Import!I1405","v":0},{"$f":"Import!I1430","v":0},{"$f":"Import!I1455","v":0},{"$f":"Import!I1480","v":0},{"$f":"Import!I1505","v":0},{"$f":"Import!I1530","v":0},{"$f":"Import!I1555","v":0},{"$f":"Import!I1580","v":0},{"$f":"Import!I1605","v":0},{"$f":"Import!I1630","v":0},{"$f":"Import!I1655","v":0},{"$f":"Import!I1680","v":0},{"$f":"Import!I1705","v":0},{"$f":"Import!I1730","v":0},{"$f":"Import!I1755","v":0},{"$f":"Import!I1780","v":0},null,0,null,{"$f":"'Schedule IVA (EBS)'!Q31","v":0},null," - ","brrt_LineOfBusinessAxis_brrt_InternationalCasualtyNonMotorMember","brrt_TypeOfContractAxis_brrt_NonProportionalMember",null,null,null,null,"bma_ScheduleOfPremiumsWrittenByLineOfBusinessInternationalCasualtyNonMotorNonProportional"]
[null,22,"Retro Property",null,{"$f":"Import!I1356","v":0},{"$f":"Import!I1381","v":0},{"$f":"Import!I1406","v":0},{"$f":"Import!I1431","v":0},{"$f":"Import!I1456","v":0},{"$f":"Import!I1481","v":0},{"$f":"Import!I1506","v":0},{"$f":"Import!I1531","v":0},{"$f":"Import!I1556","v":0},{"$f":"Import!I1581","v":0},{"$f":"Import!I1606","v":0},{"$f":"Import!I1631","v":0},{"$f":"Import!I1656","v":0},{"$f":"Import!I1681","v":0},{"$f":"Import!I1706","v":0},{"$f":"Import!I1731","v":0},{"$f":"Import!I1756","v":0},{"$f":"Import!I1781","v":0},null,0,null,{"$f":"'Schedule IVA (EBS)'!Q32","v":0},null," - ","brrt_LineOfBusinessAxis_brrt_RetroPropertyMember","brrt_TypeOfContractAxis_brrt_ProportionalMember",null,null,null,null,"bma_ScheduleOfPremiumsWrittenByLineOfBusinessRetroProperty"]
[null,23,"Structured / Finite Reinsurance",null,{"$f":"Import!I1357","v":0},{"$f":"Import!I1382","v":0},{"$f":"Import!I1407","v":0},{"$f":"Import!I1432","v":0},{"$f":"Import!I1457","v":0},{"$f":"Import!I1482","v":0},{"$f":"Import!I1507","v":0},{"$f":"Import!I1532","v":0},{"$f":"Import!I1557","v":0},{"$f":"Import!I1582","v":0},{"$f":"Import!I1607","v":0},{"$f":"Import!I1632","v":0},{"$f":"Import!I1657","v":0},{"$f":"Import!I1682","v":0},{"$f":"Import!I1707","v":0},{"$f":"Import!I1732","v":0},{"$f":"Import!I1757","v":0},{"$f":"Import!I1782","v":0},null,0,null,{"$f":"'Schedule IVA (EBS)'!Q33","v":0},null," - ","brrt_LineOfBusinessAxis_brrt_StructuredFiniteReinsuranceMember","brrt_TypeOfContractAxis_brrt_ProportionalMember",null,null,null,null,"bma_ScheduleOfPremiumsWrittenByLineOfBusinessStructuredFiniteReinsurance"]
[null,24,"Health",null,{"$f":"Import!I1358","v":0},{"$f":"Import!I1383","v":0},{"$f":"Import!I1408","v":0},{"$f":"Import!I1433","v":0},{"$f":"Import!I1458","v":0},{"$f":"Import!I1483","v":0},{"$f":"Import!I1508","v":0},{"$f":"Import!I1533","v":0},{"$f":"Import!I1558","v":0},{"$f":"Import!I1583","v":0},{"$f":"Import!I1608","v":0},{"$f":"Import!I1633","v":0},{"$f":"Import!I1658","v":0},{"$f":"Import!I1683","v":0},{"$f":"Import!I1708","v":0},{"$f":"Import!I1733","v":0},{"$f":"Import!I1758","v":0},{"$f":"Import!I1783","v":0},null,{"$f":"SUM(E32:V32)","v":0},null,{"$f":"'Schedule IVA (EBS)'!Q34","v":0},null," - ","brrt_LineOfBusinessAxis_brrt_HealthMember","brrt_TypeOfContractAxis_brrt_ProportionalMember",null,null,null,null,"bma_ScheduleOfPremiumsWrittenByLineOfBusinessHealth"]
[null,25,"Total ",null,{"$f":"SUM(E9:E32)","v":0},{"$f":"SUM(F9:F32)","v":0},0,0,0,0,0,0,0,0,0,0,0,0,0,0,0,0,null,0,null,{"$f":"SUM(Z9:Z32)","v":0},null,null,"brrt_LineOfBusinessAxis_brrt_TotalMember","brrt_TypeOfContractAxis_brrt_ProportionalMember",null,null,null,null,"bma_ScheduleOfPremiumsWrittenByLineOfBusinessTotal"]
[]
[]
[]
[null,null,null,null,"brrt_GrossPremiumsWritten",null,null,null,null,null,null,null,null,null,null,null,null,null,null,null,null,null,null,null,null,"brrt_NetPremiumsWritten"]
[null,null,null,null,"brrt_TypeOfBusinessAxis_brrt_UnrelatedMember"]
[null,null,null,null,{"$f":"XBRLMap(E9,E$37&\".\"&E$38&\".\"&$AC9&\".\"&$AD9,E$35,E$36,CONFIGURATION!$B$10,\"BMA\",CONFIGURATION!$B$1,\"bscr\",CONFIGURATION!$B$12)","v":"Mapped"},null,null,null,null,null,null,null,null,null,null,null,null,null,null,null,null,null,null,null,null,{"$f":"XBRLMap(Z9,Z$37&\".\"&$AC9&\".\"&$AD9,Z$35,Z$36,CONFIGURATION!$B$10,\"BMA\",CONFIGURATION!$B$1,\"bscr\",CONFIGURATION!$B$12)","v":"Mapped"}]
[null,null,null,null,{"$f":"XBRLMap(E10,E$37&\".\"&E$38&\".\"&$AC10&\".\"&$AD10,E$35,E$36,CONFIGURATION!$B$10,\"BMA\",CONFIGURATION!$B$1,\"bscr\",CONFIGURATION!$B$12)","v":"Mapped"},null,null,null,null,null,null,null,null,null,null,null,null,null,null,null,null,null,null,null,null,{"$f":"XBRLMap(Z10,Z$37&\".\"&$AC10&\".\"&$AD10,Z$35,Z$36,CONFIGURATION!$B$10,\"BMA\",CONFIGURATION!$B$1,\"bscr\",CONFIGURATION!$B$12)","v":"Mapped"}]
[null,null,null,null,{"$f":"XBRLMap(E11,E$37&\".\"&E$38&\".\"&$AC11&\".\"&$AD11,E$35,E$36,CONFIGURATION!$B$10,\"BMA\",CONFIGURATION!$B$1,\"bscr\",CONFIGURATION!$B$12)","v":"Mapped"},null,null,null,null,null,null,null,null,null,null,null,null,null,null,null,null,null,null,null,null,{"$f":"XBRLMap(Z11,Z$37&\".\"&$AC11&\".\"&$AD11,Z$35,Z$36,CONFIGURATION!$B$10,\"BMA\",CONFIGURATION!$B$1,\"bscr\",CONFIGURATION!$B$12)","v":"Mapped"}]
[null,null,null,null,{"$f":"XBRLMap(E12,E$37&\".\"&E$38&\".\"&$AC12&\".\"&$AD12,E$35,E$36,CONFIGURATION!$B$10,\"BMA\",CONFIGURATION!$B$1,\"bscr\",CONFIGURATION!$B$12)","v":"Mapped"},null,null,null,null,null,null,null,null,null,null,null,null,null,null,null,null,null,null,null,null,{"$f":"XBRLMap(Z12,Z$37&\".\"&$AC12&\".\"&$AD12,Z$35,Z$36,CONFIGURATION!$B$10,\"BMA\",CONFIGURATION!$B$1,\"bscr\",CONFIGURATION!$B$12)","v":"Mapped"}]
[null,null,null,null,{"$f":"XBRLMap(E13,E$37&\".\"&E$38&\".\"&$AC13&\".\"&$AD13,E$35,E$36,CONFIGURATION!$B$10,\"BMA\",CONFIGURATION!$B$1,\"bscr\",CONFIGURATION!$B$12)","v":"Mapped"},null,null,null,null,null,null,null,null,null,null,null,null,null,null,null,null,null,null,null,null,{"$f":"XBRLMap(Z13,Z$37&\".\"&$AC13&\".\"&$AD13,Z$35,Z$36,CONFIGURATION!$B$10,\"BMA\",CONFIGURATION!$B$1,\"bscr\",CONFIGURATION!$B$12)","v":"Mapped"}]
[null,null,null,null,{"$f":"XBRLMap(E14,E$37&\".\"&E$38&\".\"&$AC14&\".\"&$AD14,E$35,E$36,CONFIGURATION!$B$10,\"BMA\",CONFIGURATION!$B$1,\"bscr\",CONFIGURATION!$B$12)","v":"Mapped"},null,null,null,null,null,null,null,null,null,null,null,null,null,null,null,null,null,null,null,null,{"$f":"XBRLMap(Z14,Z$37&\".\"&$AC14&\".\"&$AD14,Z$35,Z$36,CONFIGURATION!$B$10,\"BMA\",CONFIGURATION!$B$1,\"bscr\",CONFIGURATION!$B$12)","v":"Mapped"}]
[null,null,null,null,{"$f":"XBRLMap(E15,E$37&\".\"&E$38&\".\"&$AC15&\".\"&$AD15,E$35,E$36,CONFIGURATION!$B$10,\"BMA\",CONFIGURATION!$B$1,\"bscr\",CONFIGURATION!$B$12)","v":"Mapped"},null,null,null,null,null,null,null,null,null,null,null,null,null,null,null,null,null,null,null,null,{"$f":"XBRLMap(Z15,Z$37&\".\"&$AC15&\".\"&$AD15,Z$35,Z$36,CONFIGURATION!$B$10,\"BMA\",CONFIGURATION!$B$1,\"bscr\",CONFIGURATION!$B$12)","v":"Mapped"}]
[null,null,null,null,{"$f":"XBRLMap(E16,E$37&\".\"&E$38&\".\"&$AC16&\".\"&$AD16,E$35,E$36,CONFIGURATION!$B$10,\"BMA\",CONFIGURATION!$B$1,\"bscr\",CONFIGURATION!$B$12)","v":"Mapped"},null,null,null,null,null,null,null,null,null,null,null,null,null,null,null,null,null,null,null,null,{"$f":"XBRLMap(Z16,Z$37&\".\"&$AC16&\".\"&$AD16,Z$35,Z$36,CONFIGURATION!$B$10,\"BMA\",CONFIGURATION!$B$1,\"bscr\",CONFIGURATION!$B$12)","v":"Mapped"}]
[null,null,null,null,{"$f":"XBRLMap(E17,E$37&\".\"&E$38&\".\"&$AC17&\".\"&$AD17,E$35,E$36,CONFIGURATION!$B$10,\"BMA\",CONFIGURATION!$B$1,\"bscr\",CONFIGURATION!$B$12)","v":"Mapped"},null,null,null,null,null,null,null,null,null,null,null,null,null,null,null,null,null,null,null,null,{"$f":"XBRLMap(Z17,Z$37&\".\"&$AC17&\".\"&$AD17,Z$35,Z$36,CONFIGURATION!$B$10,\"BMA\",CONFIGURATION!$B$1,\"bscr\",CONFIGURATION!$B$12)","v":"Mapped"}]
[null,null,null,null,{"$f":"XBRLMap(E18,E$37&\".\"&E$38&\".\"&$AC18&\".\"&$AD18,E$35,E$36,CONFIGURATION!$B$10,\"BMA\",CONFIGURATION!$B$1,\"bscr\",CONFIGURATION!$B$12)","v":"Mapped"},null,null,null,null,null,null,null,null,null,null,null,null,null,null,null,null,null,null,null,null,{"$f":"XBRLMap(Z18,Z$37&\".\"&$AC18&\".\"&$AD18,Z$35,Z$36,CONFIGURATION!$B$10,\"BMA\",CONFIGURATION!$B$1,\"bscr\",CONFIGURATION!$B$12)","v":"Mapped"}]
[null,null,null,null,{"$f":"XBRLMap(E19,E$37&\".\"&E$38&\".\"&$AC19&\".\"&$AD19,E$35,E$36,CONFIGURATION!$B$10,\"BMA\",CONFIGURATION!$B$1,\"bscr\",CONFIGURATION!$B$12)","v":"Mapped"},null,null,null,null,null,null,null,null,null,null,null,null,null,null,null,null,null,null,null,null,{"$f":"XBRLMap(Z19,Z$37&\".\"&$AC19&\".\"&$AD19,Z$35,Z$36,CONFIGURATION!$B$10,\"BMA\",CONFIGURATION!$B$1,\"bscr\",CONFIGURATION!$B$12)","v":"Mapped"}]
[null,null,null,null,{"$f":"XBRLMap(E20,E$37&\".\"&E$38&\".\"&$AC20&\".\"&$AD20,E$35,E$36,CONFIGURATION!$B$10,\"BMA\",CONFIGURATION!$B$1,\"bscr\",CONFIGURATION!$B$12)","v":"Mapped"},null,null,null,null,null,null,null,null,null,null,null,null,null,null,null,null,null,null,null,null,{"$f":"XBRLMap(Z20,Z$37&\".\"&$AC20&\".\"&$AD20,Z$35,Z$36,CONFIGURATION!$B$10,\"BMA\",CONFIGURATION!$B$1,\"bscr\",CONFIGURATION!$B$12)","v":"Mapped"}]
[null,null,null,null,{"$f":"XBRLMap(E21,E$37&\".\"&E$38&\".\"&$AC21&\".\"&$AD21,E$35,E$36,CONFIGURATION!$B$10,\"BMA\",CONFIGURATION!$B$1,\"bscr\",CONFIGURATION!$B$12)","v":"Mapped"},null,null,null,null,null,null,null,null,null,null,null,null,null,null,null,null,null,null,null,null,{"$f":"XBRLMap(Z21,Z$37&\".\"&$AC21&\".\"&$AD21,Z$35,Z$36,CONFIGURATION!$B$10,\"BMA\",CONFIGURATION!$B$1,\"bscr\",CONFIGURATION!$B$12)","v":"Mapped"}]
[null,null,null,null,{"$f":"XBRLMap(E22,E$37&\".\"&E$38&\".\"&$AC22&\".\"&$AD22,E$35,E$36,CONFIGURATION!$B$10,\"BMA\",CONFIGURATION!$B$1,\"bscr\",CONFIGURATION!$B$12)","v":"Mapped"},null,null,null,null,null,null,null,null,null,null,null,null,null,null,null,null,null,null,null,null,{"$f":"XBRLMap(Z22,Z$37&\".\"&$AC22&\".\"&$AD22,Z$35,Z$36,CONFIGURATION!$B$10,\"BMA\",CONFIGURATION!$B$1,\"bscr\",CONFIGURATION!$B$12)","v":"Mapped"}]
[null,null,null,null,{"$f":"XBRLMap(E23,E$37&\".\"&E$38&\".\"&$AC23&\".\"&$AD23,E$35,E$36,CONFIGURATION!$B$10,\"BMA\",CONFIGURATION!$B$1,\"bscr\",CONFIGURATION!$B$12)","v":"Mapped"},null,null,null,null,null,null,null,null,null,null,null,null,null,null,null,null,null,null,null,null,{"$f":"XBRLMap(Z23,Z$37&\".\"&$AC23&\".\"&$AD23,Z$35,Z$36,CONFIGURATION!$B$10,\"BMA\",CONFIGURATION!$B$1,\"bscr\",CONFIGURATION!$B$12)","v":"Mapped"}]
[null,null,null,null,{"$f":"XBRLMap(E24,E$37&\".\"&E$38&\".\"&$AC24&\".\"&$AD24,E$35,E$36,CONFIGURATION!$B$10,\"BMA\",CONFIGURATION!$B$1,\"bscr\",CONFIGURATION!$B$12)","v":"Mapped"},null,null,null,null,null,null,null,null,null,null,null,null,null,null,null,null,null,null,null,null,{"$f":"XBRLMap(Z24,Z$37&\".\"&$AC24&\".\"&$AD24,Z$35,Z$36,CONFIGURATION!$B$10,\"BMA\",CONFIGURATION!$B$1,\"bscr\",CONFIGURATION!$B$12)","v":"Mapped"}]
[null,null,null,null,{"$f":"XBRLMap(E25,E$37&\".\"&E$38&\".\"&$AC25&\".\"&$AD25,E$35,E$36,CONFIGURATION!$B$10,\"BMA\",CONFIGURATION!$B$1,\"bscr\",CONFIGURATION!$B$12)","v":"Mapped"},null,null,null,null,null,null,null,null,null,null,null,null,null,null,null,null,null,null,null,null,{"$f":"XBRLMap(Z25,Z$37&\".\"&$AC25&\".\"&$AD25,Z$35,Z$36,CONFIGURATION!$B$10,\"BMA\",CONFIGURATION!$B$1,\"bscr\",CONFIGURATION!$B$12)","v":"Mapped"}]
[null,null,null,null,{"$f":"XBRLMap(E26,E$37&\".\"&E$38&\".\"&$AC26&\".\"&$AD26,E$35,E$36,CONFIGURATION!$B$10,\"BMA\",CONFIGURATION!$B$1,\"bscr\",CONFIGURATION!$B$12)","v":"Mapped"},null,null,null,null,null,null,null,null,null,null,null,null,null,null,null,null,null,null,null,null,{"$f":"XBRLMap(Z26,Z$37&\".\"&$AC26&\".\"&$AD26,Z$35,Z$36,CONFIGURATION!$B$10,\"BMA\",CONFIGURATION!$B$1,\"bscr\",CONFIGURATION!$B$12)","v":"Mapped"}]
[null,null,null,null,{"$f":"XBRLMap(E27,E$37&\".\"&E$38&\".\"&$AC27&\".\"&$AD27,E$35,E$36,CONFIGURATION!$B$10,\"BMA\",CONFIGURATION!$B$1,\"bscr\",CONFIGURATION!$B$12)","v":"Mapped"},null,null,null,null,null,null,null,null,null,null,null,null,null,null,null,null,null,null,null,null,{"$f":"XBRLMap(Z27,Z$37&\".\"&$AC27&\".\"&$AD27,Z$35,Z$36,CONFIGURATION!$B$10,\"BMA\",CONFIGURATION!$B$1,\"bscr\",CONFIGURATION!$B$12)","v":"Mapped"}]
[null,null,null,null,{"$f":"XBRLMap(E28,E$37&\".\"&E$38&\".\"&$AC28&\".\"&$AD28,E$35,E$36,CONFIGURATION!$B$10,\"BMA\",CONFIGURATION!$B$1,\"bscr\",CONFIGURATION!$B$12)","v":"Mapped"},null,null,null,null,null,null,null,null,null,null,null,null,null,null,null,null,null,null,null,null,{"$f":"XBRLMap(Z28,Z$37&\".\"&$AC28&\".\"&$AD28,Z$35,Z$36,CONFIGURATION!$B$10,\"BMA\",CONFIGURATION!$B$1,\"bscr\",CONFIGURATION!$B$12)","v":"Mapped"}]
[null,null,null,null,{"$f":"XBRLMap(E29,E$37&\".\"&E$38&\".\"&$AC29&\".\"&$AD29,E$35,E$36,CONFIGURATION!$B$10,\"BMA\",CONFIGURATION!$B$1,\"bscr\",CONFIGURATION!$B$12)","v":"Mapped"},null,null,null,null,null,null,null,null,null,null,null,null,null,null,null,null,null,null,null,null,{"$f":"XBRLMap(Z29,Z$37&\".\"&$AC29&\".\"&$AD29,Z$35,Z$36,CONFIGURATION!$B$10,\"BMA\",CONFIGURATION!$B$1,\"bscr\",CONFIGURATION!$B$12)","v":"Mapped"}]
[null,null,null,null,{"$f":"XBRLMap(E30,E$37&\".\"&E$38&\".\"&$AC30&\".\"&$AD30,E$35,E$36,CONFIGURATION!$B$10,\"BMA\",CONFIGURATION!$B$1,\"bscr\",CONFIGURATION!$B$12)","v":"Mapped"},null,null,null,null,null,null,null,null,null,null,null,null,null,null,null,null,null,null,null,null,{"$f":"XBRLMap(Z30,Z$37&\".\"&$AC30&\".\"&$AD30,Z$35,Z$36,CONFIGURATION!$B$10,\"BMA\",CONFIGURATION!$B$1,\"bscr\",CONFIGURATION!$B$12)","v":"Mapped"}]
[null,null,null,null,{"$f":"XBRLMap(E31,E$37&\".\"&E$38&\".\"&$AC31&\".\"&$AD31,E$35,E$36,CONFIGURATION!$B$10,\"BMA\",CONFIGURATION!$B$1,\"bscr\",CONFIGURATION!$B$12)","v":"Mapped"},null,null,null,null,null,null,null,null,null,null,null,null,null,null,null,null,null,null,null,null,{"$f":"XBRLMap(Z31,Z$37&\".\"&$AC31&\".\"&$AD31,Z$35,Z$36,CONFIGURATION!$B$10,\"BMA\",CONFIGURATION!$B$1,\"bscr\",CONFIGURATION!$B$12)","v":"Mapped"}]
[null,null,null,null,{"$f":"XBRLMap(E32,E$37&\".\"&E$38&\".\"&$AC32&\".\"&$AD32,E$35,E$36,CONFIGURATION!$B$10,\"BMA\",CONFIGURATION!$B$1,\"bscr\",CONFIGURATION!$B$12)","v":"Mapped"},null,null,null,null,null,null,null,null,null,null,null,null,null,null,null,null,null,null,null,null,{"$f":"XBRLMap(Z32,Z$37&\".\"&$AC32&\".\"&$AD32,Z$35,Z$36,CONFIGURATION!$B$10,\"BMA\",CONFIGURATION!$B$1,\"bscr\",CONFIGURATION!$B$12)","v":"Mapped"}]
[null,null,null,null,{"$f":"XBRLMap(E33,E$37&\".\"&E$38&\".\"&$AC33&\".\"&$AD33,E$35,E$36,CONFIGURATION!$B$10,\"BMA\",CONFIGURATION!$B$1,\"bscr\",CONFIGURATION!$B$12)","v":"Mapped"},null,null,null,null,null,null,null,null,null,null,null,null,null,null,null,null,null,null,null,null,{"$f":"XBRLMap(Z33,Z$37&\".\"&$AC33&\".\"&$AD33,Z$35,Z$36,CONFIGURATION!$B$10,\"BMA\",CONFIGURATION!$B$1,\"bscr\",CONFIGURATION!$B$12)","v":"Mapped"}]
[]
[]
[null,null,null,null,null,null,null,null,null,null,null,null,null,null,null,null,null,null,null,null,null,null,null,null,null,"Yes"]
[null,null,null,null,null,null,null,null,null,null,null,null,null,null,null,null,null,null,null,null,null,null,null,null,null,"No"]
[null,null,null,null,"bma_StatementComponentAxis_bma_GrossWrittenMember",null,null,null,null,null,null,null,null,null,null,null,null,null,null,null,null,null,null,null,null,"bma_NetWrittenMember"]
[null,null,null,null,"bma_StatementComponentAxis_bma_UnrelatedWrittenMember"]

{"sheet":"Schedule IVD (EBS)","index":37,"n_rows":82,"n_cols":27,"rows_kept":82,"cut":false,"hidden":false,"merged":[[4,16,5,16],[4,14,5,14],[1,1,1,2],[4,10,5,10],[4,6,5,6],[4,12,5,12],[4,4,5,4],[4,8,5,8]]}
[null,"SCHEDULE OF EXPOSURE MEASURE BY LINE OF BUSINESS",null,null,null,null,null,null,null,null,null,null,null,null,null,null,null,null,{"$f":"HYPERLINK(\"#'Index'!A1\",\"Return to Index\")","v":"Return to Index"}]
[null,{"$f":"'Company Information'!C7","v":"Enter Company Name"}]
[null,{"$f":"\"For the year ending \"&TEXT('Company Information'!C3,\"MMMM DD, YYYY\")","v":"For the year ending December 31, 2019"},null,null,null,null,null,null,null,null,null,null,null,null,null,null,null,null,"SCHEDULE IV(D) (EBS)"]
[null,{"$f":"\"expressed in\"& IF(CONFIGURATION!$B$12>1,\" ['\"&MID(CONFIGURATION!$B$12,2,LEN(CONFIGURATION!$B$12))&\"s]\",\"\")&\" \"&'Form 1EBS'!C4","v":"expressed in ['000s] United States Dollars"},null,null,"(A)",null,"(B)",null,"(C)",null,"(D)",null,"(E)",null,"(F)",null,"(G)",null,"(H)"]
[null,null,null,null,"Net Premiums Written",null,"Est. of Net Earned Premiums for Next 12 Months",null,"Net Base Exposure",null,"Net FP (Exisiting) ",null,"Net FP (Future) ",null,"Net Premium Exposure Measure",null,"Gross Premium Exposure Measure",null,"Geo NPE"]
[null,"Schedule ",null,null,null,null,null,null,null,null,null,null,null,null,null,null,null,null,"Geo Net Exp Mea"]
[null,"Line no. ",null,null,{"$f":"'Form 1EBS'!$F$7","v":"2019-12-31"},null,{"$f":"'Form 1EBS'!$F$7+1","v":"2020-01-01"},null,{"$f":"'Form 1EBS'!$F$7+1","v":"2020-01-01"},null,{"$f":"'Form 1EBS'!$F$7+1","v":"2020-01-01"},null,{"$f":"'Form 1EBS'!$F$7+1","v":"2020-01-01"},null,{"$f":"'Form 1EBS'!F7+1","v":"2020-01-01"},null,{"$f":"'Form 1EBS'!$F$7+1","v":"2020-01-01"},null,{"$f":"'Form 1EBS'!$F$7+1","v":"2020-01-01"}]
[null,null,null,null,{"$f":"CONFIGURATION!$D$12","v":" ('000s)"},null,{"$f":"CONFIGURATION!$D$12","v":" ('000s)"},null,{"$f":"CONFIGURATION!$D$12","v":" ('000s)"},null,{"$f":"CONFIGURATION!$D$12","v":" ('000s)"},null,{"$f":"CONFIGURATION!$D$12","v":" ('000s)"},null,{"$f":"CONFIGURATION!$D$12","v":" ('000s)"},null,{"$f":"CONFIGURATION!$D$12","v":" ('000s)"},null,{"$f":"CONFIGURATION!$D$12","v":" ('000s)"}]
[null,1,"Property Catastrophe",null,{"$f":"'Schedule IVA (EBS)'!Q11","v":0},null,{"$f":"Import!I13081","v":0},null,{"$f":"IF($E$33>$G$33,E9,G9)","v":0},null,{"$f":"Import!I13106","v":0},null,{"$f":"Import!I13131","v":0},null,{"$f":"SUM(I9:M9)","v":0},null,{"$f":"Import!I13156","v":0},null,{"$f":"'Schedule IVE (EBS)'!X11","v":0},null,"brrt_LineOfBusinessAxis_brrt_PropertyCatastropheMember","brrt_TypeOfContractAxis_brrt_ProportionalMember",null,null,null,null,"bma_ScheduleOfPremiumsWrittenByLineOfBusinessPropertyCatastrophe"]
[null,2,"Property",null,{"$f":"'Schedule IVA (EBS)'!Q12","v":0},null,{"$f":"Import!I13082","v":0},null,{"$f":"IF($E$33>$G$33,E10,G10)","v":0},null,{"$f":"Import!I13107","v":0},null,{"$f":"Import!I13132","v":0},null,{"$f":"SUM(I10:M10)","v":0},null,{"$f":"Import!I13157","v":0},null,{"$f":"'Schedule IVE (EBS)'!X12","v":0},null,"brrt_LineOfBusinessAxis_brrt_PropertyMember","brrt_TypeOfContractAxis_brrt_ProportionalMember",null,null,null,null,"bma_ScheduleOfPremiumsWrittenByLineOfBusinessProperty"]
[null,3,"Property Non – Proportional",null,{"$f":"'Schedule IVA (EBS)'!Q13","v":0},null,{"$f":"Import!I13083","v":0},null,0,null,{"$f":"Import!I13108","v":0},null,{"$f":"Import!I13133","v":0},null,0,null,{"$f":"Import!I13158","v":0},null,{"$f":"'Schedule IVE (EBS)'!X13","v":0},null,"brrt_LineOfBusinessAxis_brrt_PropertyMember","brrt_TypeOfContractAxis_brrt_NonProportionalMember",null,null,null,null,"bma_ScheduleOfPremiumsWrittenByLineOfBusinessPropertyNonProportional"]
[null,4,"Personal Accident",null,{"$f":"'Schedule IVA (EBS)'!Q14","v":0},null,{"$f":"Import!I13084","v":0},null,0,null,{"$f":"Import!I13109","v":0},null,{"$f":"Import!I13134","v":0},null,0,null,{"$f":"Import!I13159","v":0},null,{"$f":"'Schedule IVE (EBS)'!X14","v":0},null,"brrt_LineOfBusinessAxis_brrt_PersonalAccidentMember","brrt_TypeOfContractAxis_brrt_ProportionalMember",null,null,null,null,"bma_ScheduleOfPremiumsWrittenByLineOfBusinessPersonalAccident"]
[null,5,"Personal Accident Non- Proportional",null,{"$f":"'Schedule IVA (EBS)'!Q15","v":0},null,{"$f":"Import!I13085","v":0},null,0,null,{"$f":"Import!I13110","v":0},null,{"$f":"Import!I13135","v":0},null,0,null,{"$f":"Import!I13160","v":0},null,{"$f":"'Schedule IVE (EBS)'!X15","v":0},null,"brrt_LineOfBusinessAxis_brrt_PersonalAccidentMember","brrt_TypeOfContractAxis_brrt_NonProportionalMember",null,null,null,null,"bma_ScheduleOfPremiumsWrittenByLineOfBusinessPersonalAccidentNonProportional"]
[null,6,"Aviation",null,{"$f":"'Schedule IVA (EBS)'!Q16","v":0},null,{"$f":"Import!I13086","v":0},null,0,null,{"$f":"Import!I13111","v":0},null,{"$f":"Import!I13136","v":0},null,0,null,{"$f":"Import!I13161","v":0},null,{"$f":"'Schedule IVE (EBS)'!X16","v":0},null,"brrt_LineOfBusinessAxis_brrt_AviationMember","brrt_TypeOfContractAxis_brrt_ProportionalMember",null,null,null,null,"bma_ScheduleOfPremiumsWrittenByLineOfBusinessAviation"]
[null,7,"Aviation Non – Proportional",null,{"$f":"'Schedule IVA (EBS)'!Q17","v":0},null,{"$f":"Import!I13087","v":0},null,0,null,{"$f":"Import!I13112","v":0},null,{"$f":"Import!I13137","v":0},null,0,null,{"$f":"Import!I13162","v":0},null,{"$f":"'Schedule IVE (EBS)'!X17","v":0},null,"brrt_LineOfBusinessAxis_brrt_AviationMember","brrt_TypeOfContractAxis_brrt_NonProportionalMember",null,null,null,null,"bma_ScheduleOfPremiumsWrittenByLineOfBusinessAviationNonProportional"]
[null,8,"Credit / Surety ",null,{"$f":"'Schedule IVA (EBS)'!Q18","v":0},null,{"$f":"Import!I13088","v":0},null,0,null,{"$f":"Import!I13113","v":0},null,{"$f":"Import!I13138","v":0},null,0,null,{"$f":"Import!I13163","v":0},null,{"$f":"'Schedule IVE (EBS)'!X18","v":0},null,"brrt_LineOfBusinessAxis_brrt_CreditSuretyMember","brrt_TypeOfContractAxis_brrt_ProportionalMember",null,null,null,null,"bma_ScheduleOfPremiumsWrittenByLineOfBusinessCreditSurety"]
[null,9,"Credit / Surety Non – Proportional",null,{"$f":"'Schedule IVA (EBS)'!Q19","v":0},null,{"$f":"Import!I13089","v":0},null,0,null,{"$f":"Import!I13114","v":0},null,{"$f":"Import!I13139","v":0},null,0,null,{"$f":"Import!I13164","v":0},null,{"$f":"'Schedule IVE (EBS)'!X19","v":0},null,"brrt_LineOfBusinessAxis_brrt_CreditSuretyMember","brrt_TypeOfContractAxis_brrt_NonProportionalMember",null,null,null,null,"bma_ScheduleOfPremiumsWrittenByLineOfBusinessCreditSuretyNonProportional"]
[null,10,"Energy Offshore / Marine",null,{"$f":"'Schedule IVA (EBS)'!Q20","v":0},null,{"$f":"Import!I13090","v":0},null,0,null,{"$f":"Import!I13115","v":0},null,{"$f":"Import!I13140","v":0},null,0,null,{"$f":"Import!I13165","v":0},null,{"$f":"'Schedule IVE (EBS)'!X20","v":0},null,"brrt_LineOfBusinessAxis_brrt_EnergyOffshoreMarineMember","brrt_TypeOfContractAxis_brrt_ProportionalMember",null,null,null,null,"bma_ScheduleOfPremiumsWrittenByLineOfBusinessEnergyOffshoreMarine"]
[null,11,"Energy Offshore / Marine Non - Proportional ","  ",{"$f":"'Schedule IVA (EBS)'!Q21","v":0},null,{"$f":"Import!I13091","v":0},null,0,null,{"$f":"Import!I13116","v":0},null,{"$f":"Import!I13141","v":0},null,0,null,{"$f":"Import!I13166","v":0},null,{"$f":"'Schedule IVE (EBS)'!X21","v":0},null,"brrt_LineOfBusinessAxis_brrt_EnergyOffshoreMarineMember","brrt_TypeOfContractAxis_brrt_NonProportionalMember",null,null,null,null,"bma_ScheduleOfPremiumsWrittenByLineOfBusinessEnergyOffshoreMarineNonProportional"]
[null,12,"US Casualty",null,{"$f":"'Schedule IVA (EBS)'!Q22","v":0},null,{"$f":"Import!I13092","v":0},null,0,null,{"$f":"Import!I13117","v":0},null,{"$f":"Import!I13142","v":0},null,0,null,{"$f":"Import!I13167","v":0},null,{"$f":"'Schedule IVE (EBS)'!X22","v":0},null,"brrt_LineOfBusinessAxis_brrt_USCasualtyMember","brrt_TypeOfContractAxis_brrt_ProportionalMember",null,null,null,null,"bma_ScheduleOfPremiumsWrittenByLineOfBusinessUsCasualty"]
[null,13,"US Casualty Non - Proportional ",null,{"$f":"'Schedule IVA (EBS)'!Q23","v":0},null,{"$f":"Import!I13093","v":0},null,0,null,{"$f":"Import!I13118","v":0},null,{"$f":"Import!I13143","v":0},null,0,null,{"$f":"Import!I13168","v":0},null,{"$f":"'Schedule IVE (EBS)'!X23","v":0},null,"brrt_LineOfBusinessAxis_brrt_USCasualtyMember","brrt_TypeOfContractAxis_brrt_NonProportionalMember",null,null,null,null,"bma_ScheduleOfPremiumsWrittenByLineOfBusinessUsCasualtyNonProportional"]
[null,14,"US Professional",null,{"$f":"'Schedule IVA (EBS)'!Q24","v":0},null,{"$f":"Import!I13094","v":0},null,0,null,{"$f":"Import!I13119","v":0},null,{"$f":"Import!I13144","v":0},null,0,null,{"$f":"Import!I13169","v":0},null,{"$f":"'Schedule IVE (EBS)'!X24","v":0},null,"brrt_LineOfBusinessAxis_brrt_USProfessionalMember","brrt_TypeOfContractAxis_brrt_ProportionalMember",null,null,null,null,"bma_ScheduleOfPremiumsWrittenByLineOfBusinessUsProfessional"]
[null,15,"US Professional Non – Proportional",null,{"$f":"'Schedule IVA (EBS)'!Q25","v":0},null,{"$f":"Import!I13095","v":0},null,0,null,{"$f":"Import!I13120","v":0},null,{"$f":"Import!I13145","v":0},null,0,null,{"$f":"Import!I13170","v":0},null,{"$f":"'Schedule IVE (EBS)'!X25","v":0},null,"brrt_LineOfBusinessAxis_brrt_USProfessionalMember","brrt_TypeOfContractAxis_brrt_NonProportionalMember",null,null,null,null,"bma_ScheduleOfPremiumsWrittenByLineOfBusinessUsProfessionalNonProportional"]
[null,16,"US Specialty ",null,{"$f":"'Schedule IVA (EBS)'!Q26","v":0},null,{"$f":"Import!I13096","v":0},null,0,null,{"$f":"Import!I13121","v":0},null,{"$f":"Import!I13146","v":0},null,0,null,{"$f":"Import!I13171","v":0},null,{"$f":"'Schedule IVE (EBS)'!X26","v":0},null,"brrt_LineOfBusinessAxis_brrt_USSpecialtyMember","brrt_TypeOfContractAxis_brrt_ProportionalMember",null,null,null,null,"bma_ScheduleOfPremiumsWrittenByLineOfBusinessUsSpecialty"]
[null,17,"US Specialty Non - Proportional",null,{"$f":"'Schedule IVA (EBS)'!Q27","v":0},null,{"$f":"Import!I13097","v":0},null,0,null,{"$f":"Import!I13122","v":0},null,{"$f":"Import!I13147","v":0},null,0,null,{"$f":"Import!I13172","v":0},null,{"$f":"'Schedule IVE (EBS)'!X27","v":0},null,"brrt_LineOfBusinessAxis_brrt_USSpecialtyMember","brrt_TypeOfContractAxis_brrt_NonProportionalMember",null,null,null,null,"bma_ScheduleOfPremiumsWrittenByLineOfBusinessUsSpecialtyNonProportional"]
[null,18,"International Motor ",null,{"$f":"'Schedule IVA (EBS)'!Q28","v":0},null,{"$f":"Import!I13098","v":0},null,0,null,{"$f":"Import!I13123","v":0},null,{"$f":"Import!I13148","v":0},null,0,null,{"$f":"Import!I13173","v":0},null,{"$f":"'Schedule IVE (EBS)'!X28","v":0},null,"brrt_LineOfBusinessAxis_brrt_InternationalMotorMember","brrt_TypeOfContractAxis_brrt_ProportionalMember",null,null,null,null,"bma_ScheduleOfPremiumsWrittenByLineOfBusinessInternationalMotor"]
[null,19,"International Motor Non – Proportional",null,{"$f":"'Schedule IVA (EBS)'!Q29","v":0},null,{"$f":"Import!I13099","v":0},null,0,null,{"$f":"Import!I13124","v":0},null,{"$f":"Import!I13149","v":0},null,0,null,{"$f":"Import!I13174","v":0},null,{"$f":"'Schedule IVE (EBS)'!X29","v":0},null,"brrt_LineOfBusinessAxis_brrt_InternationalMotorMember","brrt_TypeOfContractAxis_brrt_NonProportionalMember",null,null,null,null,"bma_ScheduleOfPremiumsWrittenByLineOfBusinessInternationalMotorNonProportional"]
[null,20,"International Casualty Non – Motor ",null,{"$f":"'Schedule IVA (EBS)'!Q30","v":0},null,{"$f":"Import!I13100","v":0},null,0,null,{"$f":"Import!I13125","v":0},null,{"$f":"Import!I13150","v":0},null,0,null,{"$f":"Import!I13175","v":0},null,{"$f":"'Schedule IVE (EBS)'!X30","v":0},null,"brrt_LineOfBusinessAxis_brrt_InternationalCasualtyNonMotorMember","brrt_TypeOfContractAxis_brrt_ProportionalMember",null,null,null,null,"bma_ScheduleOfPremiumsWrittenByLineOfBusinessInternationalCasualtyNonMotor"]
[null,21,"International Casualty Non Motor Non – Proportional ",null,{"$f":"'Schedule IVA (EBS)'!Q31","v":0},null,{"$f":"Import!I13101","v":0},null,0,null,{"$f":"Import!I13126","v":0},null,{"$f":"Import!I13151","v":0},null,0,null,{"$f":"Import!I13176","v":0},null,{"$f":"'Schedule IVE (EBS)'!X31","v":0},null,"brrt_LineOfBusinessAxis_brrt_InternationalCasualtyNonMotorMember","brrt_TypeOfContractAxis_brrt_NonProportionalMember",null,null,null,null,"bma_ScheduleOfPremiumsWrittenByLineOfBusinessInternationalCasualtyNonMotorNonProportional"]
[null,22,"Retro Property",null,{"$f":"'Schedule IVA (EBS)'!Q32","v":0},null,{"$f":"Import!I13102","v":0},null,0,null,{"$f":"Import!I13127","v":0},null,{"$f":"Import!I13152","v":0},null,0,null,{"$f":"Import!I13177","v":0},null,{"$f":"'Schedule IVE (EBS)'!X32","v":0},null,"brrt_LineOfBusinessAxis_brrt_RetroPropertyMember","brrt_TypeOfContractAxis_brrt_ProportionalMember",null,null,null,null,"bma_ScheduleOfPremiumsWrittenByLineOfBusinessRetroProperty"]
[null,23,"Structured / Finite Reinsurance",null,{"$f":"'Schedule IVA (EBS)'!Q33","v":0},null,{"$f":"Import!I13103","v":0},null,0,null,{"$f":"Import!I13128","v":0},null,{"$f":"Import!I13153","v":0},null,0,null,{"$f":"Import!I13178","v":0},null,{"$f":"'Schedule IVE (EBS)'!X33","v":0},null,"brrt_LineOfBusinessAxis_brrt_StructuredFiniteReinsuranceMember","brrt_TypeOfContractAxis_brrt_ProportionalMember",null,null,null,null,"bma_ScheduleOfPremiumsWrittenByLineOfBusinessStructuredFiniteReinsurance"]
[null,24,"Health",null,{"$f":"'Schedule IVA (EBS)'!Q34","v":0},null,{"$f":"Import!I13104","v":0},null,0,null,{"$f":"Import!I13129","v":0},null,{"$f":"Import!I13154","v":0},null,0,null,{"$f":"Import!I13179","v":0},null,{"$f":"'Schedule IVE (EBS)'!X34","v":0},null,"brrt_LineOfBusinessAxis_brrt_HealthMember","brrt_TypeOfContractAxis_brrt_ProportionalMember",null,null,null,null,"bma_ScheduleOfPremiumsWrittenByLineOfBusinessHealth"]
[null,25,"Total ",null,{"$f":"SUM(E9:E32)","v":0},null,{"$f":"SUM(G9:G32)","v":0},null,{"$f":"SUM(I9:I32)","v":0},null,{"$f":"SUM(K9:K32)","v":0},null,{"$f":"SUM(M9:M32)","v":0},null,{"$f":"SUM(O9:O32)","v":0},null,{"$f":"SUM(Q9:Q32)","v":0},null,{"$f":"SUM(S9:S32)","v":0},null,"brrt_LineOfBusinessAxis_brrt_TotalMember","brrt_TypeOfContractAxis_brrt_ProportionalMember",null,null,null,null,"bma_ScheduleOfPremiumsWrittenByLineOfBusinessTotal"]
[]
[null,null,"Details of Premiums Ceded"]
[null,26,"Gross Exposure Measure",null,{"$f":"Q33","v":0}]
[null,27,"Net Exposure Measure",null,{"$f":"O33","v":0}]
[null,28,"Ceded Exposure Measure",null,{"$f":"E36-E37","v":0}]
[]
[null,"*Exposure Measure is to include:"]
[null,"1. Base Exposure shall be the greater of:"]
[null,"(a) Estimate of the net premiums to be earned by the insurer during the next 12 months accounting period;"]
[null,"(b) Net Premiums Written for the reporting period."]
[null,"2. Include Multi-year exposure for:"]
[null,"(a) FP (Exisiting) - shall include the expected present value of premiums to be earned by the insurer after the next 12 months accounting period for existing contracts"]
[null,"(b) FP (future) - The expected present value of net premiums to be earned by the insurer after the next 12 month accounting period for contracts where the initial recognition date falls in the following 12 months."]
[]
[null,null,null,null,null,null,null,null,null,null,null,null,null,null,{"$f":"IF(O7=\"\",\"\",TEXT(DATE(YEAR(O7+1)-1,MONTH(O7+1),DAY(O7+1)),\"mm/dd/yyyy\"))","v":"01/02/2019"}]
[null,null,null,null,null,null,null,null,null,null,null,null,null,null,{"$f":"IF(O7=\"\",\"\",TEXT(O7,\"mm/dd/yyyy\"))","v":"01/01/2020"}]
[null,null,null,null,"brrt_GrossPremiumsWritten",null,null,null,null,null,null,null,null,null,"brrt_NetPremiumsWritten"]
[null,null,null,null,"brrt_TypeOfBusinessAxis_brrt_TotalMember"]
[null,null,null,null,{"$f":"XBRLMap(#REF!,E$50&\".\"&E$51&\".\"&$U9&\".\"&$V9,E$48,E$49,CONFIGURATION!$B$10,\"BMA\",CONFIGURATION!$B$1,\"bscr\",CONFIGURATION!$B$12)","v":{"$error":"#VALUE!"}},null,null,null,null,null,null,null,null,null,{"$f":"XBRLMap(O9,O$50&\".\"&$U9&\".\"&$V9,O$48,O$49,CONFIGURATION!$B$10,\"BMA\",CONFIGURATION!$B$1,\"bscr\",CONFIGURATION!$B$12)","v":"Mapped"}]
[null,null,null,null,{"$f":"XBRLMap(#REF!,E$50&\".\"&E$51&\".\"&$U10&\".\"&$V10,E$48,E$49,CONFIGURATION!$B$10,\"BMA\",CONFIGURATION!$B$1,\"bscr\",CONFIGURATION!$B$12)","v":{"$error":"#VALUE!"}},null,null,null,null,null,null,null,null,null,{"$f":"XBRLMap(O10,O$50&\".\"&$U10&\".\"&$V10,O$48,O$49,CONFIGURATION!$B$10,\"BMA\",CONFIGURATION!$B$1,\"bscr\",CONFIGURATION!$B$12)","v":"Mapped"}]
[null,null,null,null,{"$f":"XBRLMap(#REF!,E$50&\".\"&E$51&\".\"&$U11&\".\"&$V11,E$48,E$49,CONFIGURATION!$B$10,\"BMA\",CONFIGURATION!$B$1,\"bscr\",CONFIGURATION!$B$12)","v":{"$error":"#VALUE!"}},null,null,null,null,null,null,null,null,null,{"$f":"XBRLMap(O11,O$50&\".\"&$U11&\".\"&$V11,O$48,O$49,CONFIGURATION!$B$10,\"BMA\",CONFIGURATION!$B$1,\"bscr\",CONFIGURATION!$B$12)","v":"Mapped"}]
[null,null,null,null,{"$f":"XBRLMap(#REF!,E$50&\".\"&E$51&\".\"&$U12&\".\"&$V12,E$48,E$49,CONFIGURATION!$B$10,\"BMA\",CONFIGURATION!$B$1,\"bscr\",CONFIGURATION!$B$12)","v":{"$error":"#VALUE!"}},null,null,null,null,null,null,null,null,null,{"$f":"XBRLMap(O12,O$50&\".\"&$U12&\".\"&$V12,O$48,O$49,CONFIGURATION!$B$10,\"BMA\",CONFIGURATION!$B$1,\"bscr\",CONFIGURATION!$B$12)","v":"Mapped"}]
[null,null,null,null,{"$f":"XBRLMap(#REF!,E$50&\".\"&E$51&\".\"&$U13&\".\"&$V13,E$48,E$49,CONFIGURATION!$B$10,\"BMA\",CONFIGURATION!$B$1,\"bscr\",CONFIGURATION!$B$12)","v":{"$error":"#VALUE!"}},null,null,null,null,null,null,null,null,null,{"$f":"XBRLMap(O13,O$50&\".\"&$U13&\".\"&$V13,O$48,O$49,CONFIGURATION!$B$10,\"BMA\",CONFIGURATION!$B$1,\"bscr\",CONFIGURATION!$B$12)","v":"Mapped"}]
[null,null,null,null,{"$f":"XBRLMap(#REF!,E$50&\".\"&E$51&\".\"&$U14&\".\"&$V14,E$48,E$49,CONFIGURATION!$B$10,\"BMA\",CONFIGURATION!$B$1,\"bscr\",CONFIGURATION!$B$12)","v":{"$error":"#VALUE!"}},null,null,null,null,null,null,null,null,null,{"$f":"XBRLMap(O14,O$50&\".\"&$U14&\".\"&$V14,O$48,O$49,CONFIGURATION!$B$10,\"BMA\",CONFIGURATION!$B$1,\"bscr\",CONFIGURATION!$B$12)","v":"Mapped"}]
[null,null,null,null,{"$f":"XBRLMap(#REF!,E$50&\".\"&E$51&\".\"&$U15&\".\"&$V15,E$48,E$49,CONFIGURATION!$B$10,\"BMA\",CONFIGURATION!$B$1,\"bscr\",CONFIGURATION!$B$12)","v":{"$error":"#VALUE!"}},null,null,null,null,null,null,null,null,null,{"$f":"XBRLMap(O15,O$50&\".\"&$U15&\".\"&$V15,O$48,O$49,CONFIGURATION!$B$10,\"BMA\",CONFIGURATION!$B$1,\"bscr\",CONFIGURATION!$B$12)","v":"Mapped"}]
[null,null,null,null,{"$f":"XBRLMap(#REF!,E$50&\".\"&E$51&\".\"&$U16&\".\"&$V16,E$48,E$49,CONFIGURATION!$B$10,\"BMA\",CONFIGURATION!$B$1,\"bscr\",CONFIGURATION!$B$12)","v":{"$error":"#VALUE!"}},null,null,null,null,null,null,null,null,null,{"$f":"XBRLMap(O16,O$50&\".\"&$U16&\".\"&$V16,O$48,O$49,CONFIGURATION!$B$10,\"BMA\",CONFIGURATION!$B$1,\"bscr\",CONFIGURATION!$B$12)","v":"Mapped"}]
[null,null,null,null,{"$f":"XBRLMap(#REF!,E$50&\".\"&E$51&\".\"&$U17&\".\"&$V17,E$48,E$49,CONFIGURATION!$B$10,\"BMA\",CONFIGURATION!$B$1,\"bscr\",CONFIGURATION!$B$12)","v":{"$error":"#VALUE!"}},null,null,null,null,null,null,null,null,null,{"$f":"XBRLMap(O17,O$50&\".\"&$U17&\".\"&$V17,O$48,O$49,CONFIGURATION!$B$10,\"BMA\",CONFIGURATION!$B$1,\"bscr\",CONFIGURATION!$B$12)","v":"Mapped"}]
[null,null,null,null,{"$f":"XBRLMap(#REF!,E$50&\".\"&E$51&\".\"&$U18&\".\"&$V18,E$48,E$49,CONFIGURATION!$B$10,\"BMA\",CONFIGURATION!$B$1,\"bscr\",CONFIGURATION!$B$12)","v":{"$error":"#VALUE!"}},null,null,null,null,null,null,null,null,null,{"$f":"XBRLMap(O18,O$50&\".\"&$U18&\".\"&$V18,O$48,O$49,CONFIGURATION!$B$10,\"BMA\",CONFIGURATION!$B$1,\"bscr\",CONFIGURATION!$B$12)","v":"Mapped"}]
[null,null,null,null,{"$f":"XBRLMap(#REF!,E$50&\".\"&E$51&\".\"&$U19&\".\"&$V19,E$48,E$49,CONFIGURATION!$B$10,\"BMA\",CONFIGURATION!$B$1,\"bscr\",CONFIGURATION!$B$12)","v":{"$error":"#VALUE!"}},null,null,null,null,null,null,null,null,null,{"$f":"XBRLMap(O19,O$50&\".\"&$U19&\".\"&$V19,O$48,O$49,CONFIGURATION!$B$10,\"BMA\",CONFIGURATION!$B$1,\"bscr\",CONFIGURATION!$B$12)","v":"Mapped"}]
[null,null,null,null,{"$f":"XBRLMap(#REF!,E$50&\".\"&E$51&\".\"&$U20&\".\"&$V20,E$48,E$49,CONFIGURATION!$B$10,\"BMA\",CONFIGURATION!$B$1,\"bscr\",CONFIGURATION!$B$12)","v":{"$error":"#VALUE!"}},null,null,null,null,null,null,null,null,null,{"$f":"XBRLMap(O20,O$50&\".\"&$U20&\".\"&$V20,O$48,O$49,CONFIGURATION!$B$10,\"BMA\",CONFIGURATION!$B$1,\"bscr\",CONFIGURATION!$B$12)","v":"Mapped"}]
[null,null,null,null,{"$f":"XBRLMap(#REF!,E$50&\".\"&E$51&\".\"&$U21&\".\"&$V21,E$48,E$49,CONFIGURATION!$B$10,\"BMA\",CONFIGURATION!$B$1,\"bscr\",CONFIGURATION!$B$12)","v":{"$error":"#VALUE!"}},null,null,null,null,null,null,null,null,null,{"$f":"XBRLMap(O21,O$50&\".\"&$U21&\".\"&$V21,O$48,O$49,CONFIGURATION!$B$10,\"BMA\",CONFIGURATION!$B$1,\"bscr\",CONFIGURATION!$B$12)","v":"Mapped"}]
[null,null,null,null,{"$f":"XBRLMap(#REF!,E$50&\".\"&E$51&\".\"&$U22&\".\"&$V22,E$48,E$49,CONFIGURATION!$B$10,\"BMA\",CONFIGURATION!$B$1,\"bscr\",CONFIGURATION!$B$12)","v":{"$error":"#VALUE!"}},null,null,null,null,null,null,null,null,null,{"$f":"XBRLMap(O22,O$50&\".\"&$U22&\".\"&$V22,O$48,O$49,CONFIGURATION!$B$10,\"BMA\",CONFIGURATION!$B$1,\"bscr\",CONFIGURATION!$B$12)","v":"Mapped"}]
[null,null,null,null,{"$f":"XBRLMap(#REF!,E$50&\".\"&E$51&\".\"&$U23&\".\"&$V23,E$48,E$49,CONFIGURATION!$B$10,\"BMA\",CONFIGURATION!$B$1,\"bscr\",CONFIGURATION!$B$12)","v":{"$error":"#VALUE!"}},null,null,null,null,null,null,null,null,null,{"$f":"XBRLMap(O23,O$50&\".\"&$U23&\".\"&$V23,O$48,O$49,CONFIGURATION!$B$10,\"BMA\",CONFIGURATION!$B$1,\"bscr\",CONFIGURATION!$B$12)","v":"Mapped"}]
[null,null,null,null,{"$f":"XBRLMap(#REF!,E$50&\".\"&E$51&\".\"&$U24&\".\"&$V24,E$48,E$49,CONFIGURATION!$B$10,\"BMA\",CONFIGURATION!$B$1,\"bscr\",CONFIGURATION!$B$12)","v":{"$error":"#VALUE!"}},null,null,null,null,null,null,null,null,null,{"$f":"XBRLMap(O24,O$50&\".\"&$U24&\".\"&$V24,O$48,O$49,CONFIGURATION!$B$10,\"BMA\",CONFIGURATION!$B$1,\"bscr\",CONFIGURATION!$B$12)","v":"Mapped"}]
[null,null,null,null,{"$f":"XBRLMap(#REF!,E$50&\".\"&E$51&\".\"&$U25&\".\"&$V25,E$48,E$49,CONFIGURATION!$B$10,\"BMA\",CONFIGURATION!$B$1,\"bscr\",CONFIGURATION!$B$12)","v":{"$error":"#VALUE!"}},null,null,null,null,null,null,null,null,null,{"$f":"XBRLMap(O25,O$50&\".\"&$U25&\".\"&$V25,O$48,O$49,CONFIGURATION!$B$10,\"BMA\",CONFIGURATION!$B$1,\"bscr\",CONFIGURATION!$B$12)","v":"Mapped"}]
[null,null,null,null,{"$f":"XBRLMap(#REF!,E$50&\".\"&E$51&\".\"&$U26&\".\"&$V26,E$48,E$49,CONFIGURATION!$B$10,\"BMA\",CONFIGURATION!$B$1,\"bscr\",CONFIGURATION!$B$12)","v":{"$error":"#VALUE!"}},null,null,null,null,null,null,null,null,null,{"$f":"XBRLMap(O26,O$50&\".\"&$U26&\".\"&$V26,O$48,O$49,CONFIGURATION!$B$10,\"BMA\",CONFIGURATION!$B$1,\"bscr\",CONFIGURATION!$B$12)","v":"Mapped"}]
[null,null,null,null,{"$f":"XBRLMap(#REF!,E$50&\".\"&E$51&\".\"&$U27&\".\"&$V27,E$48,E$49,CONFIGURATION!$B$10,\"BMA\",CONFIGURATION!$B$1,\"bscr\",CONFIGURATION!$B$12)","v":{"$error":"#VALUE!"}},null,null,null,null,null,null,null,null,null,{"$f":"XBRLMap(O27,O$50&\".\"&$U27&\".\"&$V27,O$48,O$49,CONFIGURATION!$B$10,\"BMA\",CONFIGURATION!$B$1,\"bscr\",CONFIGURATION!$B$12)","v":"Mapped"}]
[null,null,null,null,{"$f":"XBRLMap(#REF!,E$50&\".\"&E$51&\".\"&$U28&\".\"&$V28,E$48,E$49,CONFIGURATION!$B$10,\"BMA\",CONFIGURATION!$B$1,\"bscr\",CONFIGURATION!$B$12)","v":{"$error":"#VALUE!"}},null,null,null,null,null,null,null,null,null,{"$f":"XBRLMap(O28,O$50&\".\"&$U28&\".\"&$V28,O$48,O$49,CONFIGURATION!$B$10,\"BMA\",CONFIGURATION!$B$1,\"bscr\",CONFIGURATION!$B$12)","v":"Mapped"}]
[null,null,null,null,{"$f":"XBRLMap(#REF!,E$50&\".\"&E$51&\".\"&$U29&\".\"&$V29,E$48,E$49,CONFIGURATION!$B$10,\"BMA\",CONFIGURATION!$B$1,\"bscr\",CONFIGURATION!$B$12)","v":{"$error":"#VALUE!"}},null,null,null,null,null,null,null,null,null,{"$f":"XBRLMap(O29,O$50&\".\"&$U29&\".\"&$V29,O$48,O$49,CONFIGURATION!$B$10,\"BMA\",CONFIGURATION!$B$1,\"bscr\",CONFIGURATION!$B$12)","v":"Mapped"}]
[null,null,null,null,{"$f":"XBRLMap(#REF!,E$50&\".\"&E$51&\".\"&$U30&\".\"&$V30,E$48,E$49,CONFIGURATION!$B$10,\"BMA\",CONFIGURATION!$B$1,\"bscr\",CONFIGURATION!$B$12)","v":{"$error":"#VALUE!"}},null,null,null,null,null,null,null,null,null,{"$f":"XBRLMap(O30,O$50&\".\"&$U30&\".\"&$V30,O$48,O$49,CONFIGURATION!$B$10,\"BMA\",CONFIGURATION!$B$1,\"bscr\",CONFIGURATION!$B$12)","v":"Mapped"}]
[null,null,null,null,{"$f":"XBRLMap(#REF!,E$50&\".\"&E$51&\".\"&$U31&\".\"&$V31,E$48,E$49,CONFIGURATION!$B$10,\"BMA\",CONFIGURATION!$B$1,\"bscr\",CONFIGURATION!$B$12)","v":{"$error":"#VALUE!"}},null,null,null,null,null,null,null,null,null,{"$f":"XBRLMap(O31,O$50&\".\"&$U31&\".\"&$V31,O$48,O$49,CONFIGURATION!$B$10,\"BMA\",CONFIGURATION!$B$1,\"bscr\",CONFIGURATION!$B$12)","v":"Mapped"}]
[null,null,null,null,{"$f":"XBRLMap(#REF!,E$50&\".\"&E$51&\".\"&$U32&\".\"&$V32,E$48,E$49,CONFIGURATION!$B$10,\"BMA\",CONFIGURATION!$B$1,\"bscr\",CONFIGURATION!$B$12)","v":{"$error":"#VALUE!"}},null,null,null,null,null,null,null,null,null,{"$f":"XBRLMap(O32,O$50&\".\"&$U32&\".\"&$V32,O$48,O$49,CONFIGURATION!$B$10,\"BMA\",CONFIGURATION!$B$1,\"bscr\",CONFIGURATION!$B$12)","v":"Mapped"}]
[null,null,null,null,{"$f":"XBRLMap(#REF!,E$50&\".\"&E$51&\".\"&$U33&\".\"&$V33,E$48,E$49,CONFIGURATION!$B$10,\"BMA\",CONFIGURATION!$B$1,\"bscr\",CONFIGURATION!$B$12)","v":{"$error":"#VALUE!"}},null,null,null,null,null,null,null,null,null,{"$f":"XBRLMap(O33,O$50&\".\"&$U33&\".\"&$V33,O$48,O$49,CONFIGURATION!$B$10,\"BMA\",CONFIGURATION!$B$1,\"bscr\",CONFIGURATION!$B$12)","v":"Mapped"}]
[]
[]
[]
[]
[null,null,null,null,"bma_StatementComponentAxis_bma_GrossWrittenMember",null,null,null,null,null,null,null,null,null,"bma_StatementComponentAxis_bma_NetWrittenMember"]
[null,null,null,null,"bma_StatementComponentAxis_bma_TotalWrittenMember"]

{"sheet":"Schedule IVE (EBS)","index":38,"n_rows":75,"n_cols":35,"rows_kept":75,"cut":false,"hidden":false,"merged":[[2,1,2,2]]}
[null,"SCHEDULE OF GEOGRAPHIC DIVERSIFICATION OF NET EXPOSURE MEASURE",null,null,null,null,null,null,null,null,null,null,null,null,null,null,null,null,null,null,null,null,null,null,null,{"$f":"HYPERLINK(\"#'Index'!A1\",\"Return to Index\")","v":"Return to Index"}]
[]
[null,{"$f":"'Company Information'!C7","v":"Enter Company Name"}]
[null,{"$f":"\"For the year ending \"&TEXT('Company Information'!C3,\"MMMM DD, YYYY\")","v":"For the year ending December 31, 2019"},null,null,null,null,null,null,null,null,null,null,null,null,null,null,null,null,null,null,null,null,null,null,null,"SCHEDULE IV(E) (EBS)"]
[null,{"$f":"\"expressed in\"& IF(CONFIGURATION!$B$12>1,\" ['\"&MID(CONFIGURATION!$B$12,2,LEN(CONFIGURATION!$B$12))&\"s]\",\"\")&\" \"&'Form 1EBS'!C4","v":"expressed in ['000s] United States Dollars"},null,null,null,null,null,null,null,null,null,null,null,null,null,null,null,null,null,null,null,null,null,{"$f":"\"Confirmation that \"&B3& \" Is Taking Advantage of Geographic Diversification of Premiums\"","v":"Confirmation that Enter Company Name Is Taking Advantage of Geographic Diversification of Premiums"},null,"Yes"]
[]
[null,null,null,null,{"$f":"HYPERLINK(\"#'Zones'!c4\",\"Zone 1\")","v":"Zone 1"},{"$f":"HYPERLINK(\"#'Zones'!c13\",\"Zone 2\")","v":"Zone 2"},{"$f":"HYPERLINK(\"#'Zones'!c18\",\"Zone 3\")","v":"Zone 3"},{"$f":"HYPERLINK(\"#'Zones'!c26\",\"Zone 4\")","v":"Zone 4"},{"$f":"HYPERLINK(\"#'Zones'!c36\",\"Zone 5\")","v":"Zone 5"},{"$f":"HYPERLINK(\"#'Zones'!c46\",\"Zone 6\")","v":"Zone 6"},{"$f":"HYPERLINK(\"#'Zones'!c57\",\"Zone 7\")","v":"Zone 7"},{"$f":"HYPERLINK(\"#'Zones'!c68\",\"Zone 8\")","v":"Zone 8"},{"$f":"HYPERLINK(\"#'Zones'!c76\",\"Zone 9\")","v":"Zone 9"},{"$f":"HYPERLINK(\"#'Zones'!c84\",\"Zone 10\")","v":"Zone 10"},{"$f":"HYPERLINK(\"#'Zones'!c90\",\"Zone 11\")","v":"Zone 11"},{"$f":"HYPERLINK(\"#'Zones'!c94\",\"Zone 12\")","v":"Zone 12"},{"$f":"HYPERLINK(\"#'Zones'!c107\",\"Zone 13\")","v":"Zone 13"},{"$f":"HYPERLINK(\"#'Zones'!c112\",\"Zone 14\")","v":"Zone 14"},{"$f":"HYPERLINK(\"#'Zones'!c116\",\"Zone 15\")","v":"Zone 15"},{"$f":"HYPERLINK(\"#'Zones'!c121\",\"Zone 16\")","v":"Zone 16"},{"$f":"HYPERLINK(\"#'Zones'!c127\",\"Zone 17\")","v":"Zone 17"},{"$f":"HYPERLINK(\"#'Zones'!c133\",\"Zone 18\")","v":"Zone 18"},null,"Geo Net Exp Mea",null,"Total Net Exp"]
[null,"Schedule "]
[]
[null,"Line no. ",null,null,{"$f":"CONFIGURATION!$D$12","v":" ('000s)"},{"$f":"CONFIGURATION!$D$12","v":" ('000s)"},{"$f":"CONFIGURATION!$D$12","v":" ('000s)"},{"$f":"CONFIGURATION!$D$12","v":" ('000s)"},{"$f":"CONFIGURATION!$D$12","v":" ('000s)"},{"$f":"CONFIGURATION!$D$12","v":" ('000s)"},{"$f":"CONFIGURATION!$D$12","v":" ('000s)"},{"$f":"CONFIGURATION!$D$12","v":" ('000s)"},{"$f":"CONFIGURATION!$D$12","v":" ('000s)"},{"$f":"CONFIGURATION!$D$12","v":" ('000s)"},{"$f":"CONFIGURATION!$D$12","v":" ('000s)"},{"$f":"CONFIGURATION!$D$12","v":" ('000s)"},{"$f":"CONFIGURATION!$D$12","v":" ('000s)"},{"$f":"CONFIGURATION!$D$12","v":" ('000s)"},{"$f":"CONFIGURATION!$D$12","v":" ('000s)"},{"$f":"CONFIGURATION!$D$12","v":" ('000s)"},{"$f":"CONFIGURATION!$D$12","v":" ('000s)"},{"$f":"CONFIGURATION!$D$12","v":" ('000s)"},null,{"$f":"CONFIGURATION!$D$12","v":" ('000s)"},null,{"$f":"CONFIGURATION!$D$12","v":" ('000s)"}]
[null,1,"Property Catastrophe",null,{"$f":"Import!I13182","v":0},{"$f":"Import!I13207","v":0},{"$f":"Import!I13232","v":0},{"$f":"Import!I13257","v":0},{"$f":"Import!I13282","v":0},{"$f":"Import!I13307","v":0},{"$f":"Import!I13332","v":0},{"$f":"Import!I13357","v":0},{"$f":"Import!I13382","v":0},{"$f":"Import!I13407","v":0},{"$f":"Import!I13432","v":0},{"$f":"Import!I13457","v":0},{"$f":"Import!I13482","v":0},{"$f":"Import!I13507","v":0},{"$f":"Import!I13532","v":0},{"$f":"Import!I13557","v":0},{"$f":"Import!I13582","v":0},{"$f":"Import!I13607","v":0},null,{"$f":"SUM(E11:V11)","v":0},null,{"$f":"'Schedule IVD (EBS)'!O9","v":0},null,{"$f":"IF($Z$5=\"Yes\",IF(X11=0,\" - \",IF(ROUND(SUM(X11-Z11),0)=0,\"TRUE\",\"FALSE\")),\"N/A\")","v":" - "},"brrt_LineOfBusinessAxis_brrt_PropertyCatastropheMember","brrt_TypeOfContractAxis_brrt_ProportionalMember",null,null,null,null,"bma_ScheduleOfPremiumsWrittenByLineOfBusinessPropertyCatastrophe"]
[null,2,"Property",null,{"$f":"Import!I13183","v":0},{"$f":"Import!I13208","v":0},{"$f":"Import!I13233","v":0},{"$f":"Import!I13258","v":0},{"$f":"Import!I13283","v":0},{"$f":"Import!I13308","v":0},{"$f":"Import!I13333","v":0},{"$f":"Import!I13358","v":0},{"$f":"Import!I13383","v":0},{"$f":"Import!I13408","v":0},{"$f":"Import!I13433","v":0},{"$f":"Import!I13458","v":0},{"$f":"Import!I13483","v":0},{"$f":"Import!I13508","v":0},{"$f":"Import!I13533","v":0},{"$f":"Import!I13558","v":0},{"$f":"Import!I13583","v":0},{"$f":"Import!I13608","v":0},null,{"$f":"SUM(E12:V12)","v":0},null,{"$f":"'Schedule IVD (EBS)'!O10","v":0},null,{"$f":"IF($Z$5=\"Yes\",IF(X12=0,\" - \",IF(ROUND(SUM(X12-Z12),0)=0,\"TRUE\",\"FALSE\")),\"N/A\")","v":" - "},"brrt_LineOfBusinessAxis_brrt_PropertyMember","brrt_TypeOfContractAxis_brrt_ProportionalMember",null,null,null,null,"bma_ScheduleOfPremiumsWrittenByLineOfBusinessProperty"]
[null,3,"Property Non – Proportional",null,{"$f":"Import!I13184","v":0},{"$f":"Import!I13209","v":0},{"$f":"Import!I13234","v":0},{"$f":"Import!I13259","v":0},{"$f":"Import!I13284","v":0},{"$f":"Import!I13309","v":0},{"$f":"Import!I13334","v":0},{"$f":"Import!I13359","v":0},{"$f":"Import!I13384","v":0},{"$f":"Import!I13409","v":0},{"$f":"Import!I13434","v":0},{"$f":"Import!I13459","v":0},{"$f":"Import!I13484","v":0},{"$f":"Import!I13509","v":0},{"$f":"Import!I13534","v":0},{"$f":"Import!I13559","v":0},{"$f":"Import!I13584","v":0},{"$f":"Import!I13609","v":0},null,0,null,{"$f":"'Schedule IVD (EBS)'!O11","v":0},null," - ","brrt_LineOfBusinessAxis_brrt_PropertyMember","brrt_TypeOfContractAxis_brrt_NonProportionalMember",null,null,null,null,"bma_ScheduleOfPremiumsWrittenByLineOfBusinessPropertyNonProportional"]
[null,4,"Personal Accident",null,{"$f":"Import!I13185","v":0},{"$f":"Import!I13210","v":0},{"$f":"Import!I13235","v":0},{"$f":"Import!I13260","v":0},{"$f":"Import!I13285","v":0},{"$f":"Import!I13310","v":0},{"$f":"Import!I13335","v":0},{"$f":"Import!I13360","v":0},{"$f":"Import!I13385","v":0},{"$f":"Import!I13410","v":0},{"$f":"Import!I13435","v":0},{"$f":"Import!I13460","v":0},{"$f":"Import!I13485","v":0},{"$f":"Import!I13510","v":0},{"$f":"Import!I13535","v":0},{"$f":"Import!I13560","v":0},{"$f":"Import!I13585","v":0},{"$f":"Import!I13610","v":0},null,0,null,{"$f":"'Schedule IVD (EBS)'!O12","v":0},null," - ","brrt_LineOfBusinessAxis_brrt_PersonalAccidentMember","brrt_TypeOfContractAxis_brrt_ProportionalMember",null,null,null,null,"bma_ScheduleOfPremiumsWrittenByLineOfBusinessPersonalAccident"]
[null,5,"Personal Accident Non- Proportional",null,{"$f":"Import!I13186","v":0},{"$f":"Import!I13211","v":0},{"$f":"Import!I13236","v":0},{"$f":"Import!I13261","v":0},{"$f":"Import!I13286","v":0},{"$f":"Import!I13311","v":0},{"$f":"Import!I13336","v":0},{"$f":"Import!I13361","v":0},{"$f":"Import!I13386","v":0},{"$f":"Import!I13411","v":0},{"$f":"Import!I13436","v":0},{"$f":"Import!I13461","v":0},{"$f":"Import!I13486","v":0},{"$f":"Import!I13511","v":0},{"$f":"Import!I13536","v":0},{"$f":"Import!I13561","v":0},{"$f":"Import!I13586","v":0},{"$f":"Import!I13611","v":0},null,0,null,{"$f":"'Schedule IVD (EBS)'!O13","v":0},null," - ","brrt_LineOfBusinessAxis_brrt_PersonalAccidentMember","brrt_TypeOfContractAxis_brrt_NonProportionalMember",null,null,null,null,"bma_ScheduleOfPremiumsWrittenByLineOfBusinessPersonalAccidentNonProportional"]
[null,6,"Aviation",null,{"$f":"Import!I13187","v":0},{"$f":"Import!I13212","v":0},{"$f":"Import!I13237","v":0},{"$f":"Import!I13262","v":0},{"$f":"Import!I13287","v":0},{"$f":"Import!I13312","v":0},{"$f":"Import!I13337","v":0},{"$f":"Import!I13362","v":0},{"$f":"Import!I13387","v":0},{"$f":"Import!I13412","v":0},{"$f":"Import!I13437","v":0},{"$f":"Import!I13462","v":0},{"$f":"Import!I13487","v":0},{"$f":"Import!I13512","v":0},{"$f":"Import!I13537","v":0},{"$f":"Import!I13562","v":0},{"$f":"Import!I13587","v":0},{"$f":"Import!I13612","v":0},null,0,null,{"$f":"'Schedule IVD (EBS)'!O14","v":0},null," - ","brrt_LineOfBusinessAxis_brrt_AviationMember","brrt_TypeOfContractAxis_brrt_ProportionalMember",null,null,null,null,"bma_ScheduleOfPremiumsWrittenByLineOfBusinessAviation"]
[null,7,"Aviation Non – Proportional",null,{"$f":"Import!I13188","v":0},{"$f":"Import!I13213","v":0},{"$f":"Import!I13238","v":0},{"$f":"Import!I13263","v":0},{"$f":"Import!I13288","v":0},{"$f":"Import!I13313","v":0},{"$f":"Import!I13338","v":0},{"$f":"Import!I13363","v":0},{"$f":"Import!I13388","v":0},{"$f":"Import!I13413","v":0},{"$f":"Import!I13438","v":0},{"$f":"Import!I13463","v":0},{"$f":"Import!I13488","v":0},{"$f":"Import!I13513","v":0},{"$f":"Import!I13538","v":0},{"$f":"Import!I13563","v":0},{"$f":"Import!I13588","v":0},{"$f":"Import!I13613","v":0},null,0,null,{"$f":"'Schedule IVD (EBS)'!O15","v":0},null," - ","brrt_LineOfBusinessAxis_brrt_AviationMember","brrt_TypeOfContractAxis_brrt_NonProportionalMember",null,null,null,null,"bma_ScheduleOfPremiumsWrittenByLineOfBusinessAviationNonProportional"]
[null,8,"Credit / Surety ",null,{"$f":"Import!I13189","v":0},{"$f":"Import!I13214","v":0},{"$f":"Import!I13239","v":0},{"$f":"Import!I13264","v":0},{"$f":"Import!I13289","v":0},{"$f":"Import!I13314","v":0},{"$f":"Import!I13339","v":0},{"$f":"Import!I13364","v":0},{"$f":"Import!I13389","v":0},{"$f":"Import!I13414","v":0},{"$f":"Import!I13439","v":0},{"$f":"Import!I13464","v":0},{"$f":"Import!I13489","v":0},{"$f":"Import!I13514","v":0},{"$f":"Import!I13539","v":0},{"$f":"Import!I13564","v":0},{"$f":"Import!I13589","v":0},{"$f":"Import!I13614","v":0},null,0,null,{"$f":"'Schedule IVD (EBS)'!O16","v":0},null," - ","brrt_LineOfBusinessAxis_brrt_CreditSuretyMember","brrt_TypeOfContractAxis_brrt_ProportionalMember",null,null,null,null,"bma_ScheduleOfPremiumsWrittenByLineOfBusinessCreditSurety"]
[null,9,"Credit / Surety Non – Proportional",null,{"$f":"Import!I13190","v":0},{"$f":"Import!I13215","v":0},{"$f":"Import!I13240","v":0},{"$f":"Import!I13265","v":0},{"$f":"Import!I13290","v":0},{"$f":"Import!I13315","v":0},{"$f":"Import!I13340","v":0},{"$f":"Import!I13365","v":0},{"$f":"Import!I13390","v":0},{"$f":"Import!I13415","v":0},{"$f":"Import!I13440","v":0},{"$f":"Import!I13465","v":0},{"$f":"Import!I13490","v":0},{"$f":"Import!I13515","v":0},{"$f":"Import!I13540","v":0},{"$f":"Import!I13565","v":0},{"$f":"Import!I13590","v":0},{"$f":"Import!I13615","v":0},null,0,null,{"$f":"'Schedule IVD (EBS)'!O17","v":0},null," - ","brrt_LineOfBusinessAxis_brrt_CreditSuretyMember","brrt_TypeOfContractAxis_brrt_NonProportionalMember",null,null,null,null,"bma_ScheduleOfPremiumsWrittenByLineOfBusinessCreditSuretyNonProportional"]
[null,10,"Energy Offshore / Marine",null,{"$f":"Import!I13191","v":0},{"$f":"Import!I13216","v":0},{"$f":"Import!I13241","v":0},{"$f":"Import!I13266","v":0},{"$f":"Import!I13291","v":0},{"$f":"Import!I13316","v":0},{"$f":"Import!I13341","v":0},{"$f":"Import!I13366","v":0},{"$f":"Import!I13391","v":0},{"$f":"Import!I13416","v":0},{"$f":"Import!I13441","v":0},{"$f":"Import!I13466","v":0},{"$f":"Import!I13491","v":0},{"$f":"Import!I13516","v":0},{"$f":"Import!I13541","v":0},{"$f":"Import!I13566","v":0},{"$f":"Import!I13591","v":0},{"$f":"Import!I13616","v":0},null,0,null,{"$f":"'Schedule IVD (EBS)'!O18","v":0},null," - ","brrt_LineOfBusinessAxis_brrt_EnergyOffshoreMarineMember","brrt_TypeOfContractAxis_brrt_ProportionalMember",null,null,null,null,"bma_ScheduleOfPremiumsWrittenByLineOfBusinessEnergyOffshoreMarine"]
[null,11,"Energy Offshore / Marine Non - Proportional ","  ",{"$f":"Import!I13192","v":0},{"$f":"Import!I13217","v":0},{"$f":"Import!I13242","v":0},{"$f":"Import!I13267","v":0},{"$f":"Import!I13292","v":0},{"$f":"Import!I13317","v":0},{"$f":"Import!I13342","v":0},{"$f":"Import!I13367","v":0},{"$f":"Import!I13392","v":0},{"$f":"Import!I13417","v":0},{"$f":"Import!I13442","v":0},{"$f":"Import!I13467","v":0},{"$f":"Import!I13492","v":0},{"$f":"Import!I13517","v":0},{"$f":"Import!I13542","v":0},{"$f":"Import!I13567","v":0},{"$f":"Import!I13592","v":0},{"$f":"Import!I13617","v":0},null,0,null,{"$f":"'Schedule IVD (EBS)'!O19","v":0},null," - ","brrt_LineOfBusinessAxis_brrt_EnergyOffshoreMarineMember","brrt_TypeOfContractAxis_brrt_NonProportionalMember",null,null,null,null,"bma_ScheduleOfPremiumsWrittenByLineOfBusinessEnergyOffshoreMarineNonProportional"]
[null,12,"US Casualty",null,{"$f":"Import!I13193","v":0},{"$f":"Import!I13218","v":0},{"$f":"Import!I13243","v":0},{"$f":"Import!I13268","v":0},{"$f":"Import!I13293","v":0},{"$f":"Import!I13318","v":0},{"$f":"Import!I13343","v":0},{"$f":"Import!I13368","v":0},{"$f":"Import!I13393","v":0},{"$f":"Import!I13418","v":0},{"$f":"Import!I13443","v":0},{"$f":"Import!I13468","v":0},{"$f":"Import!I13493","v":0},{"$f":"Import!I13518","v":0},{"$f":"Import!I13543","v":0},{"$f":"Import!I13568","v":0},{"$f":"Import!I13593","v":0},{"$f":"Import!I13618","v":0},null,0,null,{"$f":"'Schedule IVD (EBS)'!O20","v":0},null," - ","brrt_LineOfBusinessAxis_brrt_USCasualtyMember","brrt_TypeOfContractAxis_brrt_ProportionalMember",null,null,null,null,"bma_ScheduleOfPremiumsWrittenByLineOfBusinessUsCasualty"]
[null,13,"US Casualty Non - Proportional ",null,{"$f":"Import!I13194","v":0},{"$f":"Import!I13219","v":0},{"$f":"Import!I13244","v":0},{"$f":"Import!I13269","v":0},{"$f":"Import!I13294","v":0},{"$f":"Import!I13319","v":0},{"$f":"Import!I13344","v":0},{"$f":"Import!I13369","v":0},{"$f":"Import!I13394","v":0},{"$f":"Import!I13419","v":0},{"$f":"Import!I13444","v":0},{"$f":"Import!I13469","v":0},{"$f":"Import!I13494","v":0},{"$f":"Import!I13519","v":0},{"$f":"Import!I13544","v":0},{"$f":"Import!I13569","v":0},{"$f":"Import!I13594","v":0},{"$f":"Import!I13619","v":0},null,0,null,{"$f":"'Schedule IVD (EBS)'!O21","v":0},null," - ","brrt_LineOfBusinessAxis_brrt_USCasualtyMember","brrt_TypeOfContractAxis_brrt_NonProportionalMember",null,null,null,null,"bma_ScheduleOfPremiumsWrittenByLineOfBusinessUsCasualtyNonProportional"]
[null,14,"US Professional",null,{"$f":"Import!I13195","v":0},{"$f":"Import!I13220","v":0},{"$f":"Import!I13245","v":0},{"$f":"Import!I13270","v":0},{"$f":"Import!I13295","v":0},{"$f":"Import!I13320","v":0},{"$f":"Import!I13345","v":0},{"$f":"Import!I13370","v":0},{"$f":"Import!I13395","v":0},{"$f":"Import!I13420","v":0},{"$f":"Import!I13445","v":0},{"$f":"Import!I13470","v":0},{"$f":"Import!I13495","v":0},{"$f":"Import!I13520","v":0},{"$f":"Import!I13545","v":0},{"$f":"Import!I13570","v":0},{"$f":"Import!I13595","v":0},{"$f":"Import!I13620","v":0},null,0,null,{"$f":"'Schedule IVD (EBS)'!O22","v":0},null," - ","brrt_LineOfBusinessAxis_brrt_USProfessionalMember","brrt_TypeOfContractAxis_brrt_ProportionalMember",null,null,null,null,"bma_ScheduleOfPremiumsWrittenByLineOfBusinessUsProfessional"]
[null,15,"US Professional Non – Proportional",null,{"$f":"Import!I13196","v":0},{"$f":"Import!I13221","v":0},{"$f":"Import!I13246","v":0},{"$f":"Import!I13271","v":0},{"$f":"Import!I13296","v":0},{"$f":"Import!I13321","v":0},{"$f":"Import!I13346","v":0},{"$f":"Import!I13371","v":0},{"$f":"Import!I13396","v":0},{"$f":"Import!I13421","v":0},{"$f":"Import!I13446","v":0},{"$f":"Import!I13471","v":0},{"$f":"Import!I13496","v":0},{"$f":"Import!I13521","v":0},{"$f":"Import!I13546","v":0},{"$f":"Import!I13571","v":0},{"$f":"Import!I13596","v":0},{"$f":"Import!I13621","v":0},null,0,null,{"$f":"'Schedule IVD (EBS)'!O23","v":0},null," - ","brrt_LineOfBusinessAxis_brrt_USProfessionalMember","brrt_TypeOfContractAxis_brrt_NonProportionalMember",null,null,null,null,"bma_ScheduleOfPremiumsWrittenByLineOfBusinessUsProfessionalNonProportional"]
[null,16,"US Specialty ",null,{"$f":"Import!I13197","v":0},{"$f":"Import!I13222","v":0},{"$f":"Import!I13247","v":0},{"$f":"Import!I13272","v":0},{"$f":"Import!I13297","v":0},{"$f":"Import!I13322","v":0},{"$f":"Import!I13347","v":0},{"$f":"Import!I13372","v":0},{"$f":"Import!I13397","v":0},{"$f":"Import!I13422","v":0},{"$f":"Import!I13447","v":0},{"$f":"Import!I13472","v":0},{"$f":"Import!I13497","v":0},{"$f":"Import!I13522","v":0},{"$f":"Import!I13547","v":0},{"$f":"Import!I13572","v":0},{"$f":"Import!I13597","v":0},{"$f":"Import!I13622","v":0},null,0,null,{"$f":"'Schedule IVD (EBS)'!O24","v":0},null," - ","brrt_LineOfBusinessAxis_brrt_USSpecialtyMember","brrt_TypeOfContractAxis_brrt_ProportionalMember",null,null,null,null,"bma_ScheduleOfPremiumsWrittenByLineOfBusinessUsSpecialty"]
[null,17,"US Specialty Non - Proportional",null,{"$f":"Import!I13198","v":0},{"$f":"Import!I13223","v":0},{"$f":"Import!I13248","v":0},{"$f":"Import!I13273","v":0},{"$f":"Import!I13298","v":0},{"$f":"Import!I13323","v":0},{"$f":"Import!I13348","v":0},{"$f":"Import!I13373","v":0},{"$f":"Import!I13398","v":0},{"$f":"Import!I13423","v":0},{"$f":"Import!I13448","v":0},{"$f":"Import!I13473","v":0},{"$f":"Import!I13498","v":0},{"$f":"Import!I13523","v":0},{"$f":"Import!I13548","v":0},{"$f":"Import!I13573","v":0},{"$f":"Import!I13598","v":0},{"$f":"Import!I13623","v":0},null,0,null,{"$f":"'Schedule IVD (EBS)'!O25","v":0},null," - ","brrt_LineOfBusinessAxis_brrt_USSpecialtyMember","brrt_TypeOfContractAxis_brrt_NonProportionalMember",null,null,null,null,"bma_ScheduleOfPremiumsWrittenByLineOfBusinessUsSpecialtyNonProportional"]
[null,18,"International Motor ",null,{"$f":"Import!I13199","v":0},{"$f":"Import!I13224","v":0},{"$f":"Import!I13249","v":0},{"$f":"Import!I13274","v":0},{"$f":"Import!I13299","v":0},{"$f":"Import!I13324","v":0},{"$f":"Import!I13349","v":0},{"$f":"Import!I13374","v":0},{"$f":"Import!I13399","v":0},{"$f":"Import!I13424","v":0},{"$f":"Import!I13449","v":0},{"$f":"Import!I13474","v":0},{"$f":"Import!I13499","v":0},{"$f":"Import!I13524","v":0},{"$f":"Import!I13549","v":0},{"$f":"Import!I13574","v":0},{"$f":"Import!I13599","v":0},{"$f":"Import!I13624","v":0},null,0,null,{"$f":"'Schedule IVD (EBS)'!O26","v":0},null," - ","brrt_LineOfBusinessAxis_brrt_InternationalMotorMember","brrt_TypeOfContractAxis_brrt_ProportionalMember",null,null,null,null,"bma_ScheduleOfPremiumsWrittenByLineOfBusinessInternationalMotor"]
[null,19,"International Motor Non – Proportional",null,{"$f":"Import!I13200","v":0},{"$f":"Import!I13225","v":0},{"$f":"Import!I13250","v":0},{"$f":"Import!I13275","v":0},{"$f":"Import!I13300","v":0},{"$f":"Import!I13325","v":0},{"$f":"Import!I13350","v":0},{"$f":"Import!I13375","v":0},{"$f":"Import!I13400","v":0},{"$f":"Import!I13425","v":0},{"$f":"Import!I13450","v":0},{"$f":"Import!I13475","v":0},{"$f":"Import!I13500","v":0},{"$f":"Import!I13525","v":0},{"$f":"Import!I13550","v":0},{"$f":"Import!I13575","v":0},{"$f":"Import!I13600","v":0},{"$f":"Import!I13625","v":0},null,0,null,{"$f":"'Schedule IVD (EBS)'!O27","v":0},null," - ","brrt_LineOfBusinessAxis_brrt_InternationalMotorMember","brrt_TypeOfContractAxis_brrt_NonProportionalMember",null,null,null,null,"bma_ScheduleOfPremiumsWrittenByLineOfBusinessInternationalMotorNonProportional"]
[null,20,"International Casualty Non – Motor ",null,{"$f":"Import!I13201","v":0},{"$f":"Import!I13226","v":0},{"$f":"Import!I13251","v":0},{"$f":"Import!I13276","v":0},{"$f":"Import!I13301","v":0},{"$f":"Import!I13326","v":0},{"$f":"Import!I13351","v":0},{"$f":"Import!I13376","v":0},{"$f":"Import!I13401","v":0},{"$f":"Import!I13426","v":0},{"$f":"Import!I13451","v":0},{"$f":"Import!I13476","v":0},{"$f":"Import!I13501","v":0},{"$f":"Import!I13526","v":0},{"$f":"Import!I13551","v":0},{"$f":"Import!I13576","v":0},{"$f":"Import!I13601","v":0},{"$f":"Import!I13626","v":0},null,0,null,{"$f":"'Schedule IVD (EBS)'!O28","v":0},null," - ","brrt_LineOfBusinessAxis_brrt_InternationalCasualtyNonMotorMember","brrt_TypeOfContractAxis_brrt_ProportionalMember",null,null,null,null,"bma_ScheduleOfPremiumsWrittenByLineOfBusinessInternationalCasualtyNonMotor"]
[null,21,"International Casualty Non Motor Non – Proportional ",null,{"$f":"Import!I13202","v":0},{"$f":"Import!I13227","v":0},{"$f":"Import!I13252","v":0},{"$f":"Import!I13277","v":0},{"$f":"Import!I13302","v":0},{"$f":"Import!I13327","v":0},{"$f":"Import!I13352","v":0},{"$f":"Import!I13377","v":0},{"$f":"Import!I13402","v":0},{"$f":"Import!I13427","v":0},{"$f":"Import!I13452","v":0},{"$f":"Import!I13477","v":0},{"$f":"Import!I13502","v":0},{"$f":"Import!I13527","v":0},{"$f":"Import!I13552","v":0},{"$f":"Import!I13577","v":0},{"$f":"Import!I13602","v":0},{"$f":"Import!I13627","v":0},null,0,null,{"$f":"'Schedule IVD (EBS)'!O29","v":0},null," - ","brrt_LineOfBusinessAxis_brrt_InternationalCasualtyNonMotorMember","brrt_TypeOfContractAxis_brrt_NonProportionalMember",null,null,null,null,"bma_ScheduleOfPremiumsWrittenByLineOfBusinessInternationalCasualtyNonMotorNonProportional"]
[null,22,"Retro Property",null,{"$f":"Import!I13203","v":0},{"$f":"Import!I13228","v":0},{"$f":"Import!I13253","v":0},{"$f":"Import!I13278","v":0},{"$f":"Import!I13303","v":0},{"$f":"Import!I13328","v":0},{"$f":"Import!I13353","v":0},{"$f":"Import!I13378","v":0},{"$f":"Import!I13403","v":0},{"$f":"Import!I13428","v":0},{"$f":"Import!I13453","v":0},{"$f":"Import!I13478","v":0},{"$f":"Import!I13503","v":0},{"$f":"Import!I13528","v":0},{"$f":"Import!I13553","v":0},{"$f":"Import!I13578","v":0},{"$f":"Import!I13603","v":0},{"$f":"Import!I13628","v":0},null,0,null,{"$f":"'Schedule IVD (EBS)'!O30","v":0},null," - ","brrt_LineOfBusinessAxis_brrt_RetroPropertyMember","brrt_TypeOfContractAxis_brrt_ProportionalMember",null,null,null,null,"bma_ScheduleOfPremiumsWrittenByLineOfBusinessRetroProperty"]
[null,23,"Structured / Finite Reinsurance",null,{"$f":"Import!I13204","v":0},{"$f":"Import!I13229","v":0},{"$f":"Import!I13254","v":0},{"$f":"Import!I13279","v":0},{"$f":"Import!I13304","v":0},{"$f":"Import!I13329","v":0},{"$f":"Import!I13354","v":0},{"$f":"Import!I13379","v":0},{"$f":"Import!I13404","v":0},{"$f":"Import!I13429","v":0},{"$f":"Import!I13454","v":0},{"$f":"Import!I13479","v":0},{"$f":"Import!I13504","v":0},{"$f":"Import!I13529","v":0},{"$f":"Import!I13554","v":0},{"$f":"Import!I13579","v":0},{"$f":"Import!I13604","v":0},{"$f":"Import!I13629","v":0},null,0,null,{"$f":"'Schedule IVD (EBS)'!O31","v":0},null," - ","brrt_LineOfBusinessAxis_brrt_StructuredFiniteReinsuranceMember","brrt_TypeOfContractAxis_brrt_ProportionalMember",null,null,null,null,"bma_ScheduleOfPremiumsWrittenByLineOfBusinessStructuredFiniteReinsurance"]
[null,24,"Health",null,{"$f":"Import!I13205","v":0},{"$f":"Import!I13230","v":0},{"$f":"Import!I13255","v":0},{"$f":"Import!I13280","v":0},{"$f":"Import!I13305","v":0},{"$f":"Import!I13330","v":0},{"$f":"Import!I13355","v":0},{"$f":"Import!I13380","v":0},{"$f":"Import!I13405","v":0},{"$f":"Import!I13430","v":0},{"$f":"Import!I13455","v":0},{"$f":"Import!I13480","v":0},{"$f":"Import!I13505","v":0},{"$f":"Import!I13530","v":0},{"$f":"Import!I13555","v":0},{"$f":"Import!I13580","v":0},{"$f":"Import!I13605","v":0},{"$f":"Import!I13630","v":0},null,{"$f":"SUM(E34:V34)","v":0},null,{"$f":"'Schedule IVD (EBS)'!O32","v":0},null," - ","brrt_LineOfBusinessAxis_brrt_HealthMember","brrt_TypeOfContractAxis_brrt_ProportionalMember",null,null,null,null,"bma_ScheduleOfPremiumsWrittenByLineOfBusinessHealth"]
[null,25,"Total ",null,{"$f":"SUM(E11:E34)","v":0},{"$f":"SUM(F11:F34)","v":0},0,0,0,0,0,0,0,0,0,0,0,0,0,0,0,0,null,0,null,{"$f":"SUM(Z11:Z34)","v":0},null,null,"brrt_LineOfBusinessAxis_brrt_TotalMember","brrt_TypeOfContractAxis_brrt_ProportionalMember",null,null,null,null,"bma_ScheduleOfPremiumsWrittenByLineOfBusinessTotal"]
[]
[]
[]
[]
[]
[null,null,null,null,{"$f":"IF(E8=\"\",\"\",TEXT(DATE(YEAR(E8+1)-1,MONTH(E8+1),DAY(E8+1)),\"mm/dd/yyyy\"))","v":""},null,null,null,null,null,null,null,null,null,null,null,null,null,null,null,null,null,null,null,null,{"$f":"IF(Z9=\"\",\"\",TEXT(DATE(YEAR(Z9+1)-1,MONTH(Z9+1),DAY(Z9+1)),\"mm/dd/yyyy\"))","v":""}]
[null,null,null,null,{"$f":"IF(E8=\"\",\"\",TEXT(E8,\"mm/dd/yyyy\"))","v":""},null,null,null,null,null,null,null,null,null,null,null,null,null,null,null,null,null,null,null,null,{"$f":"IF(Z9=\"\",\"\",TEXT(Z9,\"mm/dd/yyyy\"))","v":""}]
[null,null,null,null,"brrt_GrossPremiumsWritten",null,null,null,null,null,null,null,null,null,null,null,null,null,null,null,null,null,null,null,null,"brrt_NetPremiumsWritten"]
[null,null,null,null,"brrt_TypeOfBusinessAxis_brrt_UnrelatedMember"]
[null,null,null,null,{"$f":"XBRLMap(E11,E$43&\".\"&E$44&\".\"&$AC11&\".\"&$AD11,E$41,E$42,CONFIGURATION!$B$10,\"BMA\",CONFIGURATION!$B$1,\"bscr\",CONFIGURATION!$B$12)","v":{"$error":"#VALUE!"}},null,null,null,null,null,null,null,null,null,null,null,null,null,null,null,null,null,null,null,null,{"$f":"XBRLMap(Z11,Z$43&\".\"&$AC11&\".\"&$AD11,Z$41,Z$42,CONFIGURATION!$B$10,\"BMA\",CONFIGURATION!$B$1,\"bscr\",CONFIGURATION!$B$12)","v":{"$error":"#VALUE!"}}]
[null,null,null,null,{"$f":"XBRLMap(E12,E$43&\".\"&E$44&\".\"&$AC12&\".\"&$AD12,E$41,E$42,CONFIGURATION!$B$10,\"BMA\",CONFIGURATION!$B$1,\"bscr\",CONFIGURATION!$B$12)","v":{"$error":"#VALUE!"}},null,null,null,null,null,null,null,null,null,null,null,null,null,null,null,null,null,null,null,null,{"$f":"XBRLMap(Z12,Z$43&\".\"&$AC12&\".\"&$AD12,Z$41,Z$42,CONFIGURATION!$B$10,\"BMA\",CONFIGURATION!$B$1,\"bscr\",CONFIGURATION!$B$12)","v":{"$error":"#VALUE!"}}]
[null,null,null,null,{"$f":"XBRLMap(E13,E$43&\".\"&E$44&\".\"&$AC13&\".\"&$AD13,E$41,E$42,CONFIGURATION!$B$10,\"BMA\",CONFIGURATION!$B$1,\"bscr\",CONFIGURATION!$B$12)","v":{"$error":"#VALUE!"}},null,null,null,null,null,null,null,null,null,null,null,null,null,null,null,null,null,null,null,null,{"$f":"XBRLMap(Z13,Z$43&\".\"&$AC13&\".\"&$AD13,Z$41,Z$42,CONFIGURATION!$B$10,\"BMA\",CONFIGURATION!$B$1,\"bscr\",CONFIGURATION!$B$12)","v":{"$error":"#VALUE!"}}]
[null,null,null,null,{"$f":"XBRLMap(E14,E$43&\".\"&E$44&\".\"&$AC14&\".\"&$AD14,E$41,E$42,CONFIGURATION!$B$10,\"BMA\",CONFIGURATION!$B$1,\"bscr\",CONFIGURATION!$B$12)","v":{"$error":"#VALUE!"}},null,null,null,null,null,null,null,null,null,null,null,null,null,null,null,null,null,null,null,null,{"$f":"XBRLMap(Z14,Z$43&\".\"&$AC14&\".\"&$AD14,Z$41,Z$42,CONFIGURATION!$B$10,\"BMA\",CONFIGURATION!$B$1,\"bscr\",CONFIGURATION!$B$12)","v":{"$error":"#VALUE!"}}]
[null,null,null,null,{"$f":"XBRLMap(E15,E$43&\".\"&E$44&\".\"&$AC15&\".\"&$AD15,E$41,E$42,CONFIGURATION!$B$10,\"BMA\",CONFIGURATION!$B$1,\"bscr\",CONFIGURATION!$B$12)","v":{"$error":"#VALUE!"}},null,null,null,null,null,null,null,null,null,null,null,null,null,null,null,null,null,null,null,null,{"$f":"XBRLMap(Z15,Z$43&\".\"&$AC15&\".\"&$AD15,Z$41,Z$42,CONFIGURATION!$B$10,\"BMA\",CONFIGURATION!$B$1,\"bscr\",CONFIGURATION!$B$12)","v":{"$error":"#VALUE!"}}]
[null,null,null,null,{"$f":"XBRLMap(E16,E$43&\".\"&E$44&\".\"&$AC16&\".\"&$AD16,E$41,E$42,CONFIGURATION!$B$10,\"BMA\",CONFIGURATION!$B$1,\"bscr\",CONFIGURATION!$B$12)","v":{"$error":"#VALUE!"}},null,null,null,null,null,null,null,null,null,null,null,null,null,null,null,null,null,null,null,null,{"$f":"XBRLMap(Z16,Z$43&\".\"&$AC16&\".\"&$AD16,Z$41,Z$42,CONFIGURATION!$B$10,\"BMA\",CONFIGURATION!$B$1,\"bscr\",CONFIGURATION!$B$12)","v":{"$error":"#VALUE!"}}]
[null,null,null,null,{"$f":"XBRLMap(E17,E$43&\".\"&E$44&\".\"&$AC17&\".\"&$AD17,E$41,E$42,CONFIGURATION!$B$10,\"BMA\",CONFIGURATION!$B$1,\"bscr\",CONFIGURATION!$B$12)","v":{"$error":"#VALUE!"}},null,null,null,null,null,null,null,null,null,null,null,null,null,null,null,null,null,null,null,null,{"$f":"XBRLMap(Z17,Z$43&\".\"&$AC17&\".\"&$AD17,Z$41,Z$42,CONFIGURATION!$B$10,\"BMA\",CONFIGURATION!$B$1,\"bscr\",CONFIGURATION!$B$12)","v":{"$error":"#VALUE!"}}]
[null,null,null,null,{"$f":"XBRLMap(E18,E$43&\".\"&E$44&\".\"&$AC18&\".\"&$AD18,E$41,E$42,CONFIGURATION!$B$10,\"BMA\",CONFIGURATION!$B$1,\"bscr\",CONFIGURATION!$B$12)","v":{"$error":"#VALUE!"}},null,null,null,null,null,null,null,null,null,null,null,null,null,null,null,null,null,null,null,null,{"$f":"XBRLMap(Z18,Z$43&\".\"&$AC18&\".\"&$AD18,Z$41,Z$42,CONFIGURATION!$B$10,\"BMA\",CONFIGURATION!$B$1,\"bscr\",CONFIGURATION!$B$12)","v":{"$error":"#VALUE!"}}]
[null,null,null,null,{"$f":"XBRLMap(E19,E$43&\".\"&E$44&\".\"&$AC19&\".\"&$AD19,E$41,E$42,CONFIGURATION!$B$10,\"BMA\",CONFIGURATION!$B$1,\"bscr\",CONFIGURATION!$B$12)","v":{"$error":"#VALUE!"}},null,null,null,null,null,null,null,null,null,null,null,null,null,null,null,null,null,null,null,null,{"$f":"XBRLMap(Z19,Z$43&\".\"&$AC19&\".\"&$AD19,Z$41,Z$42,CONFIGURATION!$B$10,\"BMA\",CONFIGURATION!$B$1,\"bscr\",CONFIGURATION!$B$12)","v":{"$error":"#VALUE!"}}]
[null,null,null,null,{"$f":"XBRLMap(E20,E$43&\".\"&E$44&\".\"&$AC20&\".\"&$AD20,E$41,E$42,CONFIGURATION!$B$10,\"BMA\",CONFIGURATION!$B$1,\"bscr\",CONFIGURATION!$B$12)","v":{"$error":"#VALUE!"}},null,null,null,null,null,null,null,null,null,null,null,null,null,null,null,null,null,null,null,null,{"$f":"XBRLMap(Z20,Z$43&\".\"&$AC20&\".\"&$AD20,Z$41,Z$42,CONFIGURATION!$B$10,\"BMA\",CONFIGURATION!$B$1,\"bscr\",CONFIGURATION!$B$12)","v":{"$error":"#VALUE!"}}]
[null,null,null,null,{"$f":"XBRLMap(E21,E$43&\".\"&E$44&\".\"&$AC21&\".\"&$AD21,E$41,E$42,CONFIGURATION!$B$10,\"BMA\",CONFIGURATION!$B$1,\"bscr\",CONFIGURATION!$B$12)","v":{"$error":"#VALUE!"}},null,null,null,null,null,null,null,null,null,null,null,null,null,null,null,null,null,null,null,null,{"$f":"XBRLMap(Z21,Z$43&\".\"&$AC21&\".\"&$AD21,Z$41,Z$42,CONFIGURATION!$B$10,\"BMA\",CONFIGURATION!$B$1,\"bscr\",CONFIGURATION!$B$12)","v":{"$error":"#VALUE!"}}]
[null,null,null,null,{"$f":"XBRLMap(E22,E$43&\".\"&E$44&\".\"&$AC22&\".\"&$AD22,E$41,E$42,CONFIGURATION!$B$10,\"BMA\",CONFIGURATION!$B$1,\"bscr\",CONFIGURATION!$B$12)","v":{"$error":"#VALUE!"}},null,null,null,null,null,null,null,null,null,null,null,null,null,null,null,null,null,null,null,null,{"$f":"XBRLMap(Z22,Z$43&\".\"&$AC22&\".\"&$AD22,Z$41,Z$42,CONFIGURATION!$B$10,\"BMA\",CONFIGURATION!$B$1,\"bscr\",CONFIGURATION!$B$12)","v":{"$error":"#VALUE!"}}]
[null,null,null,null,{"$f":"XBRLMap(E23,E$43&\".\"&E$44&\".\"&$AC23&\".\"&$AD23,E$41,E$42,CONFIGURATION!$B$10,\"BMA\",CONFIGURATION!$B$1,\"bscr\",CONFIGURATION!$B$12)","v":{"$error":"#VALUE!"}},null,null,null,null,null,null,null,null,null,null,null,null,null,null,null,null,null,null,null,null,{"$f":"XBRLMap(Z23,Z$43&\".\"&$AC23&\".\"&$AD23,Z$41,Z$42,CONFIGURATION!$B$10,\"BMA\",CONFIGURATION!$B$1,\"bscr\",CONFIGURATION!$B$12)","v":{"$error":"#VALUE!"}}]
[null,null,null,null,{"$f":"XBRLMap(E24,E$43&\".\"&E$44&\".\"&$AC24&\".\"&$AD24,E$41,E$42,CONFIGURATION!$B$10,\"BMA\",CONFIGURATION!$B$1,\"bscr\",CONFIGURATION!$B$12)","v":{"$error":"#VALUE!"}},null,null,null,null,null,null,null,null,null,null,null,null,null,null,null,null,null,null,null,null,{"$f":"XBRLMap(Z24,Z$43&\".\"&$AC24&\".\"&$AD24,Z$41,Z$42,CONFIGURATION!$B$10,\"BMA\",CONFIGURATION!$B$1,\"bscr\",CONFIGURATION!$B$12)","v":{"$error":"#VALUE!"}}]
[null,null,null,null,{"$f":"XBRLMap(E25,E$43&\".\"&E$44&\".\"&$AC25&\".\"&$AD25,E$41,E$42,CONFIGURATION!$B$10,\"BMA\",CONFIGURATION!$B$1,\"bscr\",CONFIGURATION!$B$12)","v":{"$error":"#VALUE!"}},null,null,null,null,null,null,null,null,null,null,null,null,null,null,null,null,null,null,null,null,{"$f":"XBRLMap(Z25,Z$43&\".\"&$AC25&\".\"&$AD25,Z$41,Z$42,CONFIGURATION!$B$10,\"BMA\",CONFIGURATION!$B$1,\"bscr\",CONFIGURATION!$B$12)","v":{"$error":"#VALUE!"}}]
[null,null,null,null,{"$f":"XBRLMap(E26,E$43&\".\"&E$44&\".\"&$AC26&\".\"&$AD26,E$41,E$42,CONFIGURATION!$B$10,\"BMA\",CONFIGURATION!$B$1,\"bscr\",CONFIGURATION!$B$12)","v":{"$error":"#VALUE!"}},null,null,null,null,null,null,null,null,null,null,null,null,null,null,null,null,null,null,null,null,{"$f":"XBRLMap(Z26,Z$43&\".\"&$AC26&\".\"&$AD26,Z$41,Z$42,CONFIGURATION!$B$10,\"BMA\",CONFIGURATION!$B$1,\"bscr\",CONFIGURATION!$B$12)","v":{"$error":"#VALUE!"}}]
[null,null,null,null,{"$f":"XBRLMap(E27,E$43&\".\"&E$44&\".\"&$AC27&\".\"&$AD27,E$41,E$42,CONFIGURATION!$B$10,\"BMA\",CONFIGURATION!$B$1,\"bscr\",CONFIGURATION!$B$12)","v":{"$error":"#VALUE!"}},null,null,null,null,null,null,null,null,null,null,null,null,null,null,null,null,null,null,null,null,{"$f":"XBRLMap(Z27,Z$43&\".\"&$AC27&\".\"&$AD27,Z$41,Z$42,CONFIGURATION!$B$10,\"BMA\",CONFIGURATION!$B$1,\"bscr\",CONFIGURATION!$B$12)","v":{"$error":"#VALUE!"}}]
[null,null,null,null,{"$f":"XBRLMap(E28,E$43&\".\"&E$44&\".\"&$AC28&\".\"&$AD28,E$41,E$42,CONFIGURATION!$B$10,\"BMA\",CONFIGURATION!$B$1,\"bscr\",CONFIGURATION!$B$12)","v":{"$error":"#VALUE!"}},null,null,null,null,null,null,null,null,null,null,null,null,null,null,null,null,null,null,null,null,{"$f":"XBRLMap(Z28,Z$43&\".\"&$AC28&\".\"&$AD28,Z$41,Z$42,CONFIGURATION!$B$10,\"BMA\",CONFIGURATION!$B$1,\"bscr\",CONFIGURATION!$B$12)","v":{"$error":"#VALUE!"}}]
[null,null,null,null,{"$f":"XBRLMap(E29,E$43&\".\"&E$44&\".\"&$AC29&\".\"&$AD29,E$41,E$42,CONFIGURATION!$B$10,\"BMA\",CONFIGURATION!$B$1,\"bscr\",CONFIGURATION!$B$12)","v":{"$error":"#VALUE!"}},null,null,null,null,null,null,null,null,null,null,null,null,null,null,null,null,null,null,null,null,{"$f":"XBRLMap(Z29,Z$43&\".\"&$AC29&\".\"&$AD29,Z$41,Z$42,CONFIGURATION!$B$10,\"BMA\",CONFIGURATION!$B$1,\"bscr\",CONFIGURATION!$B$12)","v":{"$error":"#VALUE!"}}]
[null,null,null,null,{"$f":"XBRLMap(E30,E$43&\".\"&E$44&\".\"&$AC30&\".\"&$AD30,E$41,E$42,CONFIGURATION!$B$10,\"BMA\",CONFIGURATION!$B$1,\"bscr\",CONFIGURATION!$B$12)","v":{"$error":"#VALUE!"}},null,null,null,null,null,null,null,null,null,null,null,null,null,null,null,null,null,null,null,null,{"$f":"XBRLMap(Z30,Z$43&\".\"&$AC30&\".\"&$AD30,Z$41,Z$42,CONFIGURATION!$B$10,\"BMA\",CONFIGURATION!$B$1,\"bscr\",CONFIGURATION!$B$12)","v":{"$error":"#VALUE!"}}]
[null,null,null,null,{"$f":"XBRLMap(E31,E$43&\".\"&E$44&\".\"&$AC31&\".\"&$AD31,E$41,E$42,CONFIGURATION!$B$10,\"BMA\",CONFIGURATION!$B$1,\"bscr\",CONFIGURATION!$B$12)","v":{"$error":"#VALUE!"}},null,null,null,null,null,null,null,null,null,null,null,null,null,null,null,null,null,null,null,null,{"$f":"XBRLMap(Z31,Z$43&\".\"&$AC31&\".\"&$AD31,Z$41,Z$42,CONFIGURATION!$B$10,\"BMA\",CONFIGURATION!$B$1,\"bscr\",CONFIGURATION!$B$12)","v":{"$error":"#VALUE!"}}]
[null,null,null,null,{"$f":"XBRLMap(E32,E$43&\".\"&E$44&\".\"&$AC32&\".\"&$AD32,E$41,E$42,CONFIGURATION!$B$10,\"BMA\",CONFIGURATION!$B$1,\"bscr\",CONFIGURATION!$B$12)","v":{"$error":"#VALUE!"}},null,null,null,null,null,null,null,null,null,null,null,null,null,null,null,null,null,null,null,null,{"$f":"XBRLMap(Z32,Z$43&\".\"&$AC32&\".\"&$AD32,Z$41,Z$42,CONFIGURATION!$B$10,\"BMA\",CONFIGURATION!$B$1,\"bscr\",CONFIGURATION!$B$12)","v":{"$error":"#VALUE!"}}]
[null,null,null,null,{"$f":"XBRLMap(E33,E$43&\".\"&E$44&\".\"&$AC33&\".\"&$AD33,E$41,E$42,CONFIGURATION!$B$10,\"BMA\",CONFIGURATION!$B$1,\"bscr\",CONFIGURATION!$B$12)","v":{"$error":"#VALUE!"}},null,null,null,null,null,null,null,null,null,null,null,null,null,null,null,null,null,null,null,null,{"$f":"XBRLMap(Z33,Z$43&\".\"&$AC33&\".\"&$AD33,Z$41,Z$42,CONFIGURATION!$B$10,\"BMA\",CONFIGURATION!$B$1,\"bscr\",CONFIGURATION!$B$12)","v":{"$error":"#VALUE!"}}]
[null,null,null,null,{"$f":"XBRLMap(E34,E$43&\".\"&E$44&\".\"&$AC34&\".\"&$AD34,E$41,E$42,CONFIGURATION!$B$10,\"BMA\",CONFIGURATION!$B$1,\"bscr\",CONFIGURATION!$B$12)","v":{"$error":"#VALUE!"}},null,null,null,null,null,null,null,null,null,null,null,null,null,null,null,null,null,null,null,null,{"$f":"XBRLMap(Z34,Z$43&\".\"&$AC34&\".\"&$AD34,Z$41,Z$42,CONFIGURATION!$B$10,\"BMA\",CONFIGURATION!$B$1,\"bscr\",CONFIGURATION!$B$12)","v":{"$error":"#VALUE!"}}]
[null,null,null,null,{"$f":"XBRLMap(E35,E$43&\".\"&E$44&\".\"&$AC35&\".\"&$AD35,E$41,E$42,CONFIGURATION!$B$10,\"BMA\",CONFIGURATION!$B$1,\"bscr\",CONFIGURATION!$B$12)","v":{"$error":"#VALUE!"}},null,null,null,null,null,null,null,null,null,null,null,null,null,null,null,null,null,null,null,null,{"$f":"XBRLMap(Z35,Z$43&\".\"&$AC35&\".\"&$AD35,Z$41,Z$42,CONFIGURATION!$B$10,\"BMA\",CONFIGURATION!$B$1,\"bscr\",CONFIGURATION!$B$12)","v":{"$error":"#VALUE!"}}]
[]
[]
[null,null,null,null,null,null,null,null,null,null,null,null,null,null,null,null,null,null,null,null,null,null,null,null,null,"Yes"]
[null,null,null,null,null,null,null,null,null,null,null,null,null,null,null,null,null,null,null,null,null,null,null,null,null,"No"]
[null,null,null,null,"bma_StatementComponentAxis_bma_GrossWrittenMember",null,null,null,null,null,null,null,null,null,null,null,null,null,null,null,null,null,null,null,null,"bma_NetWrittenMember"]
[null,null,null,null,"bma_StatementComponentAxis_bma_UnrelatedWrittenMember"]

{"sheet":"Schedule V","index":39,"n_rows":55,"n_cols":14,"rows_kept":55,"cut":false,"hidden":false,"merged":[[35,7,36,7],[2,3,3,6],[7,2,7,4],[9,2,9,4],[11,2,11,4],[15,2,15,4],[17,2,17,4],[19,2,19,4],[35,2,36,3],[52,2,52,4],[54,2,54,4],[21,2,21,4],[30,2,30,4],[42,2,42,4],[44,2,44,4],[46,2,46,4],[50,2,50,4],[37,2,38,3]]}
[null,"SCHEDULE OF RISK MANAGEMENT",null,null,null,null,null,{"$f":"HYPERLINK(\"#'Index'!A1\",\"Return to Index\")","v":"Return to Index"}]
[null,{"$f":"'Company Information'!C7","v":"Enter Company Name"}]
[null,"For the year ending",{"$f":"'Company Information'!C3","v":"2019-12-31"},"Note if an insurer does not have any entities to consolidate, enter EBS Valuation information only \n(This cell is editable for deletion)",null,null,null,"SCHEDULE V"]
[null,{"$f":"\"expressed in\"& IF(CONFIGURATION!$B$12>1,\" ['\"&MID(CONFIGURATION!$B$12,2,LEN(CONFIGURATION!$B$12))&\"s]\",\"\")","v":"expressed in ['000s]"},{"$f":"'Form 1EBS'!C4","v":"United States Dollars"}]
[null,null,null,null,null,"Unconsolidated SFS",null,"EBS Valuation",null,null,{"$f":"IF(C3=\"\",\"\",TEXT(DATE(YEAR(C3+1)-1,MONTH(C3+1),DAY(C3+1)),\"mm/dd/yyyy\"))","v":"01/01/2019"}]
[null,"(a)","Governance and group structure",null,null,null,null,{"$f":"HYPERLINK(\"#'Schedule V(a)'!c6\",\"Refer to Schedule V(a)\")","v":"Refer to Schedule V(a)"},null,null,{"$f":"IF(C3=\"\",\"\",TEXT(C3,\"mm/dd/yyyy\"))","v":"12/31/2019"},null,null,"bma_GovernanceStructure"]
[]
[null,"(b)","Intra-group transactions that the insurer is a party to and the insurer's risk concentrations",null,null,null,null,{"$f":"HYPERLINK(\"#'Schedule V(c)'!c6\",\"Refer to Schedule V(c)\")","v":"Refer to Schedule V(c)"},null,null,null,null,null,"bma_IntraGroupExposures"]
[]
[null,"(d)","Effective duration of assets",null,null,null,null,{"$f":"Import!M1786","v":0},null,"brrt_EffectiveDurationOfAssets",{"$f":"XBRLMap(H10,$J10,$K$5,#REF!,CONFIGURATION!$B$10,\"BMA\",CONFIGURATION!$B$1,\"bscr\")","v":{"$error":"#VALUE!"}},null,null,"bma_EffectiveAssetDuration"]
[null,null,null,null,null,null,null,null,null,""]
[null,"(e)","Effective duration of liabilities",null,null,null,null,{"$f":"Import!M1787","v":0},null,"brrt_EffectiveDurationOfLiabilities",{"$f":"XBRLMap(H12,$J12,$K$5,#REF!,CONFIGURATION!$B$10,\"BMA\",CONFIGURATION!$B$1,\"bscr\")","v":{"$error":"#VALUE!"}},null,null,"bma_EffectiveLiabilityDuration"]
[null,null,null,null,null,null,null,"Document Name & Page Number",null,""]
[null,{"$f":"IF('Company Information'!$F$11=\"Class 3A\",\"(f)\",\"(f)\")","v":"(f)"},"Description of the effective duration of assets and liabilities calculations and key assumptions",null,null,{"$f":"HYPERLINK(\"#'Attachments'!G35\",\"Attach file\")","v":"Attach file"},null,null,null,"",null,null,null,"bma_DescriptionOfTheEffectiveDurationOfAssetsAndLiabilitiesCalculationsAndKeyAssumptions"]
[null,null,null,null,null,null,null,null,null,""]
[null,{"$f":"IF('Company Information'!$F$11=\"Class 3A\",\"(f)\",\"(g)\")","v":"(g)"},"Gross probable maximum loss",null,null,{"$f":"Import!E1788","v":0},null,{"$f":"Import!I1788","v":0},null,"brrt_GrossProbableMaximumLossIfPropertyCatastropheWriter",{"$f":"XBRLMap(H16,$J16,$K$5,#REF!,CONFIGURATION!$B$10,\"BMA\",CONFIGURATION!$B$1,\"bscr\",CONFIGURATION!$B$12)","v":{"$error":"#VALUE!"}},null,null,"bma_TheGrossProbableMaximumLoss"]
[null,null,null,null,null,null,null,null,null,""]
[null,{"$f":"IF('Company Information'!$F$11=\"Class 3A\",\"(g)\",\"(h)\")","v":"(h)"},"Net probable maximum loss",null,null,{"$f":"Import!E1789","v":0},null,{"$f":"Import!I1789","v":0},null,"brrt_NetProbableMaximumLossIfPropertyCatastropheWriter",{"$f":"XBRLMap(H18,$J18,$K$5,#REF!,CONFIGURATION!$B$10,\"BMA\",CONFIGURATION!$B$1,\"bscr\",CONFIGURATION!$B$12)","v":{"$error":"#VALUE!"}},null,null,"bma_TheNetProbableMaximumLoss"]
[null,null,null,null,null,null,null,null,null,""]
[null,{"$f":"IF('Company Information'!$F$11=\"Class 3A\",\"(h)\",\"(i)\")","v":"(i)"},"Average annual loss (excluding property catastrophe)",null,null,null,null,{"$f":"Import!I1790","v":0},null,"brrt_AverageAnnualLossIfPropertyCatastropheWriter",{"$f":"XBRLMap(H20,$J20,$K$5,#REF!,CONFIGURATION!$B$10,\"BMA\",CONFIGURATION!$B$1,\"bscr\",CONFIGURATION!$B$12)","v":{"$error":"#VALUE!"}},null,null,"bma_TheAverageAnnualLossExcludingPropertyCatastrophe"]
[null,null,null,null,null,null,null,null,null,""]
[null,{"$f":"IF('Company Information'!$F$11=\"Class 3A\",\"(i)\",\"(j)\")","v":"(j)"},"Actual attritional losses and large claims losses - relevant year",null,null,null,null,{"$f":"Import!I1791","v":0},null,"brrt_ActualAttritionalLossesAndLargeClaimsLossesRevelant",{"$f":"XBRLMap(H22,$J22,$K$5,#REF!,CONFIGURATION!$B$10,\"BMA\",CONFIGURATION!$B$1,\"bscr\",CONFIGURATION!$B$12)","v":{"$error":"#VALUE!"}},null,null,"bma_ActualAttritionalLossesPlusLargeClaimsLossesRelevantYear"]
[null,null,null,null,null,null,null,null,null,""]
[null,{"$f":"IF('Company Information'!$F$11=\"Class 3A\",\"(j)\",\"(k)\")","v":"(k)"},"Arrangements with respect to property catastrophe recoverables"]
[null,null,"(i) Collateral",null,null,null,null,{"$f":"Import!I1792","v":0},null,"brrt_ArrangementsWithRespectToPropertyCatastropheRecoverablesCollateral",{"$f":"XBRLMap(H25,$J25,$K$5,#REF!,CONFIGURATION!$B$10,\"BMA\",CONFIGURATION!$B$1,\"bscr\",CONFIGURATION!$B$12)","v":{"$error":"#VALUE!"}}]
[null,null,"(ii) Catastrophe bonds",null,null,null,null,{"$f":"Import!I1793","v":0},null,"brrt_ArrangementsWithRespectToPropertyCatastropheRecoverablesCatastropheBonds",{"$f":"XBRLMap(H26,$J26,$K$5,#REF!,CONFIGURATION!$B$10,\"BMA\",CONFIGURATION!$B$1,\"bscr\",CONFIGURATION!$B$12)","v":{"$error":"#VALUE!"}}]
[null,null,"(iii) Special purpose insurer (indemnity basis)",null,null,null,null,{"$f":"Import!I1794","v":0},null,"brrt_ArrangementsWithRespectToPropertyCatastropheRecoverablesSpecialPurposeInsurerIndemnityBasis",{"$f":"XBRLMap(H27,$J27,$K$5,#REF!,CONFIGURATION!$B$10,\"BMA\",CONFIGURATION!$B$1,\"bscr\",CONFIGURATION!$B$12)","v":{"$error":"#VALUE!"}}]
[null,null,"(iv) Special purpose insurer (other basis)",null,null,null,null,{"$f":"Import!I1795","v":0},null,"brrt_ArrangementsWithRespectToPropertyCatastropheRecoverablesSpecialPurposeInsurerOtherBasis",{"$f":"XBRLMap(H28,$J28,$K$5,#REF!,CONFIGURATION!$B$10,\"BMA\",CONFIGURATION!$B$1,\"bscr\",CONFIGURATION!$B$12)","v":{"$error":"#VALUE!"}}]
[null,null,"(v) Total",null,null,null,null,{"$f":"SUM(H25:H28)","v":0},null,"brrt_ArrangementsWithRespectToPropertyCatastropheRecoverables",{"$f":"XBRLMap(H29,$J29,$K$5,#REF!,CONFIGURATION!$B$10,\"BMA\",CONFIGURATION!$B$1,\"bscr\",CONFIGURATION!$B$12)","v":{"$error":"#VALUE!"}}]
[null,null,null,null,null,null,null,"Document Name & Page Number"]
[null,{"$f":"IF('Company Information'!$F$11=\"Class 3A\",\"(k)\",\"(l)\")","v":"(l)"},"Mutual fund disclosures",null,null,{"$f":"HYPERLINK(\"#'Attachments'!G125\",\"Attach file\")","v":"Attach file"}]
[]
[null,{"$f":"IF('Company Information'!$F$11=\"Class 3A\",\"(l)\",\"(m)\")","v":"(m)"},"Summary of projected performance - "]
[null,null,"(i) The insurer's latest estimate of annual net premiums written",null,null,null,null,{"$f":"Import!I1797","v":0},null,"brrt_ProjectedNetPremiumsWritten",{"$f":"XBRLMap(H34,$J34,$K$5,#REF!,CONFIGURATION!$B$10,\"BMA\",CONFIGURATION!$B$1,\"bscr\",CONFIGURATION!$B$12)","v":{"$error":"#VALUE!"}},null,null,"bma_ProjectedNetPremiumsWritten"]
[null,null,"(ii) The estimated underwriting profit or loss",null,null,null,null,{"$f":"Import!I1798","v":0},null,"brrt_ProjectedUnderwritingProfitOrLoss",{"$f":"XBRLMap(H35,$J35,$K$5,#REF!,CONFIGURATION!$B$10,\"BMA\",CONFIGURATION!$B$1,\"bscr\",CONFIGURATION!$B$12)","v":{"$error":"#VALUE!"}},null,null,"bma_ProjectedUnderwritingProfitLoss"]
[null,null,"(iii) The estimated net income or loss for the insurer or on a group basis with disclosure of the estimated percentage of the insurer's contribution relative to the group",null,null,null,null,{"$f":"Import!I1799","v":0},null,"brrt_ProjectedNetIncomeOrLoss",{"$f":"XBRLMap(H36,$J36,$K$5,#REF!,CONFIGURATION!$B$10,\"BMA\",CONFIGURATION!$B$1,\"bscr\",CONFIGURATION!$B$12)","v":{"$error":"#VALUE!"}}]
[null,null,null,null,null,null,null,null,null,"brrt_EstimatedPercentageOfContributionByInsurerRelativeToTheGroup",{"$f":"XBRLMap(H37,$J37,$K$5,#REF!,CONFIGURATION!$B$10,\"BMA\",CONFIGURATION!$B$1,\"bscr\",CONFIGURATION!$B$12)","v":{"$error":"#VALUE!"}},null,null,"bma_ProjectedNetIncomeLoss"]
[null,null,"(iv) A qualitative description of the insurer's business and underwriting strategy to achieve the above estimates",null,null,null,null,"Document Name & Page Number"]
[null,null,null,null,null,{"$f":"HYPERLINK(\"#'Attachments'!G135\",\"Attach file\")","v":"Attach file"},null,null,null,"",null,null,null,"bma_DescriptionOfUnderwritingStrategy"]
[]
[null,{"$f":"IF('Company Information'!$F$11=\"Class 3A\",\"(m)\",\"(n)\")","v":"(n)"},"Financial impact and description of stress & scenario tests",null,null,null,null,{"$f":"HYPERLINK(\"#'Schedule V(e)'!b1\",\"Refer to Schedule V(e)\")","v":"Refer to Schedule V(e)"},null,"",null,null,null,"bma_FinancialImpactAndDescriptionOfStressAndScenarios"]
[null,null,null,null,null,null,null,"Document Name & Page Number"]
[null,"(o)","Investments and derivatives strategies and policy",null,null,{"$f":"HYPERLINK(\"#'Attachments'!G105\",\"Attach file\")","v":"Attach file"},null,null,null,null,null,null,null,"bma_InvestmentPolicy"]
[null,null,null,null,null,null,null,"Document Name & Page Number"]
[null,"(p)","Description of the insurer's risk management program",null,null,{"$f":"HYPERLINK(\"#'Attachments'!G155\",\"Attach file\")","v":"Attach file"},null,null,null,null,null,null,null,"bma_DescriptionOfTheInsurerSRiskManagementProgram"]
[null,null,null,null,null,null,null,"Document Name & Page Number",null,""]
[null,"(q)","Risk register",null,null,{"$f":"HYPERLINK(\"#'Attachments'!G165\",\"Attach file\")","v":"Attach file"},null,null,null,null,null,null,null,"bma_RiskRegister"]
[]
[null,{"$f":"IF('Company Information'!$F$11=\"Class 3A\",\"(n)\",\"(r)\")","v":"(r)"},"List of statutory lines and statutory territories that have catastrophe exposures",null,null,null,null,{"$f":"HYPERLINK(\"#'Schedule X(d)'!a7\",\"Refer to Schedule X(d)\")","v":"Refer to Schedule X(d)"},null,"",null,null,null,"bma_TheCatastropheExposureLimitsGrossProbableMaximumLossAndNetProbableMaximumLossByTerritoriesAndByStatutoryLinesOfBusinessSeparatedByInsuranceAndReinsurance"]
[]
[null,{"$f":"IF('Company Information'!$F$11=\"Class 3A\",\"(o)\",\"(s)\")","v":"(s)"},"Reconciliation from Form 1SFS to Form 1EBS",null,null,null,null,{"$f":"HYPERLINK(\"#'Schedule V(g)'!a7\",\"Refer to Schedule V(g)\")","v":"Refer to Schedule V(g)"}]
[]
[null,{"$f":"IF('Company Information'!$F$11=\"Class 3A\",\"(s)\",\"(w)\")","v":"(w)"},"Details of deposit assets and liabilities",null,null,null,null,{"$f":"HYPERLINK(\"#'Schedule V(k)'!a7\",\"Refer to Schedule V(k)\")","v":"Refer to Schedule V(k)"}]
[]
[null,{"$f":"IF('Company Information'!$F$11=\"Class 3A\",\"(t)\",\"(x)\")","v":"(x)"},"Details of segregated accounts",null,null,null,null,{"$f":"HYPERLINK(\"#'Schedule V(l)'!a7\",\"Refer to Schedule V(l)\")","v":"Refer to Schedule V(l)"}]

{"sheet":"Schedule V(a)","index":40,"n_rows":386,"n_cols":21,"rows_kept":386,"cut":false,"hidden":false,"merged":[[95,3,95,7],[75,5,75,6],[74,5,74,6],[73,5,73,6],[72,5,72,6],[44,5,44,6],[49,5,49,6],[50,5,50,6],[51,5,51,6],[52,5,52,6],[45,5,45,6],[46,5,46,6],[47,5,47,6],[48,5,48,6],[39,5,39,6],[40,5,40,6],[41,5,41,6],[42,5,42,6],[43,5,43,6],[30,5,30,6],[35,5,35,6],[36,5,36,6],[37,5,37,6],[38,5,38,6],[25,5,25,6],[26,5,26,6],[27,5,27,6],[28,5,28,6],[29,5,29,6],[20,5,20,6],[21,5,21,6],[22,5,22,6],[23,5,23,6],[24,5,24,6],[141,2,142,9],[0,2,0,5],[10,5,10,6],[11,5,11,6],[12,5,12,6],[13,5,13,6],[109,2,109,5],[110,2,110,5],[111,2,111,5],[112,2,112,5],[14,5,14,6],[15,5,15,6],[16,5,16,6],[17,5,17,6],[18,5,18,6],[19,5,19,6],[113,2,113,5],[53,5,53,6],[54,5,54,6],[55,5,55,6],[62,4,62,6],[63,5,63,6],[64,5,64,6],[65,5,65,6],[67,5,67,6],[69,4,69,6],[70,5,70,6],[71,5,71,6],[62,2,63,3],[69,2,70,3],[66,2,66,3],[76,5,76,6],[69,7,69,9],[66,5,66,6],[35,8,35,9],[36,8,36,9],[37,8,37,9],[51,8,51,9],[52,8,52,9],[41,8,41,9],[42,8,42,9],[43,8,43,9],[44,8,44,9],[45,8,45,9],[38,8,38,9],[39,8,39,9],[40,8,40,9],[47,8,47,9],[55,8,55,9],[49,8,49,9],[48,8,48,9],[50,8,50,9],[46,8,46,9],[53,8,53,9],[54,8,54,9]]}
[null,null,"SCHEDULE OF RISK MANAGEMENT - GOVERNANCE AND GROUP STRUCTURE",null,null,null,null,null,null,{"$f":"HYPERLINK(\"#'Index'!A1\",\"Return to Index\")","v":"Return to Index"}]
[]
[null,null,{"$f":"'Company Information'!C7","v":"Enter Company Name"}]
[null,null,"For the year ending",{"$f":"'Company Information'!C3","v":"2019-12-31"},null,null,null,null,null,"SCHEDULE V(a)"]
[null,null,{"$f":"\"expressed in\"& IF(CONFIGURATION!$B$12>1,\" ['\"&MID(CONFIGURATION!$B$12,2,LEN(CONFIGURATION!$B$12))&\"s]\",\"\")","v":"expressed in ['000s]"},{"$f":"'Form 1EBS'!C4","v":"United States Dollars"}]
[null,null,null,null,null,null,null,null,null,null,null,null,{"$f":"IF(D4=\"\",\"\",TEXT(DATE(YEAR(D4+1)-1,MONTH(D4+1),DAY(D4+1)),\"mm/dd/yyyy\"))","v":"01/01/2019"}]
[null,1,"Structure of the board of directors, including names, role, country of residence and work experience - ",null,null,null,null,null,null,null,null,null,{"$f":"IF(D4=\"\",\"\",TEXT(D4,\"mm/dd/yyyy\"))","v":"12/31/2019"}]
[null,null," Enter number of Directors",{"$f":"Import!E1801","v":0}]
[]
[null,null,null,null,null,null,null,null,null,null,null,null,null,null,null,"brrt_OfficersDetails",null,"Director","Chief And Senior Executive"]
[null,null,"Name","Board Position","Country of Residence","Work Experience",null,"Status on the Board\n(Select from Drop Down)",null,null,null,null,null,null,null,"brrt_OfficerName","brrt_OfficerLevel","brrt_OfficerPosition","brrt_OfficerWorkExperience"]
[null,1,{"$f":"Import!E1802","v":0},{"$f":"Import!E1822","v":0},{"$f":"Import!E1842","v":0},{"$f":"Import!E1862","v":0},null,{"$f":"Import!E1882","v":"Select"},null,null,null,null,null,null,null,null,null,null,null,null,{"$f":"IF(OR(C12<>\"\",D12<>\"\",F12<>\"\"),XBRLMapTuple($P$10,M$6,M$7,\"BMA\",CONFIGURATION!$B$1,\"bscr\",\"\",CONFIGURATION!$B$12,$P$11,C12,$Q$11,$R$10,$R$11,D12,$S$11,F12),\"emptyTuple\")","v":"Mapped"}]
[null,2,{"$f":"Import!E1803","v":0},{"$f":"Import!E1823","v":0},{"$f":"Import!E1843","v":0},{"$f":"Import!E1863","v":0},null,{"$f":"Import!E1883","v":"Select"},null,null,null,null,null,null,null,null,null,null,null,null,{"$f":"IF(OR(C13<>\"\",D13<>\"\",F13<>\"\"),XBRLMapTuple($P$10,M$6,M$7,\"BMA\",CONFIGURATION!$B$1,\"bscr\",\"\",CONFIGURATION!$B$12,$P$11,C13,$Q$11,$R$10,$R$11,D13,$S$11,F13),\"emptyTuple\")","v":"Mapped"}]
[null,3,{"$f":"Import!E1804","v":0},{"$f":"Import!E1824","v":0},{"$f":"Import!E1844","v":0},{"$f":"Import!E1864","v":0},null,{"$f":"Import!E1884","v":"Select"},null,null,null,null,null,null,null,null,null,null,null,null,{"$f":"IF(OR(C14<>\"\",D14<>\"\",F14<>\"\"),XBRLMapTuple($P$10,M$6,M$7,\"BMA\",CONFIGURATION!$B$1,\"bscr\",\"\",CONFIGURATION!$B$12,$P$11,C14,$Q$11,$R$10,$R$11,D14,$S$11,F14),\"emptyTuple\")","v":"Mapped"}]
[null,4,{"$f":"Import!E1805","v":0},{"$f":"Import!E1825","v":0},{"$f":"Import!E1845","v":0},{"$f":"Import!E1865","v":0},null,{"$f":"Import!E1885","v":"Select"},null,null,null,null,null,null,null,null,null,null,null,null,{"$f":"IF(OR(C15<>\"\",D15<>\"\",F15<>\"\"),XBRLMapTuple($P$10,M$6,M$7,\"BMA\",CONFIGURATION!$B$1,\"bscr\",\"\",CONFIGURATION!$B$12,$P$11,C15,$Q$11,$R$10,$R$11,D15,$S$11,F15),\"emptyTuple\")","v":"Mapped"}]
[null,5,{"$f":"Import!E1806","v":0},{"$f":"Import!E1826","v":0},{"$f":"Import!E1846","v":0},{"$f":"Import!E1866","v":0},null,{"$f":"Import!E1886","v":"Select"},null,null,null,null,null,null,null,null,null,null,null,null,{"$f":"IF(OR(C16<>\"\",D16<>\"\",F16<>\"\"),XBRLMapTuple($P$10,M$6,M$7,\"BMA\",CONFIGURATION!$B$1,\"bscr\",\"\",CONFIGURATION!$B$12,$P$11,C16,$Q$11,$R$10,$R$11,D16,$S$11,F16),\"emptyTuple\")","v":"Mapped"}]
[null,6,{"$f":"Import!E1807","v":0},{"$f":"Import!E1827","v":0},{"$f":"Import!E1847","v":0},{"$f":"Import!E1867","v":0},null,{"$f":"Import!E1887","v":"Select"},null,null,null,null,null,null,null,null,null,null,null,null,{"$f":"IF(OR(C17<>\"\",D17<>\"\",F17<>\"\"),XBRLMapTuple($P$10,M$6,M$7,\"BMA\",CONFIGURATION!$B$1,\"bscr\",\"\",CONFIGURATION!$B$12,$P$11,C17,$Q$11,$R$10,$R$11,D17,$S$11,F17),\"emptyTuple\")","v":"Mapped"}]
[null,7,{"$f":"Import!E1808","v":0},{"$f":"Import!E1828","v":0},{"$f":"Import!E1848","v":0},{"$f":"Import!E1868","v":0},null,{"$f":"Import!E1888","v":"Select"},null,null,null,null,null,null,null,null,null,null,null,null,{"$f":"IF(OR(C18<>\"\",D18<>\"\",F18<>\"\"),XBRLMapTuple($P$10,M$6,M$7,\"BMA\",CONFIGURATION!$B$1,\"bscr\",\"\",CONFIGURATION!$B$12,$P$11,C18,$Q$11,$R$10,$R$11,D18,$S$11,F18),\"emptyTuple\")","v":"Mapped"}]
[null,8,{"$f":"Import!E1809","v":0},{"$f":"Import!E1829","v":0},{"$f":"Import!E1849","v":0},{"$f":"Import!E1869","v":0},null,{"$f":"Import!E1889","v":"Select"},null,null,null,null,null,null,null,null,null,null,null,null,{"$f":"IF(OR(C19<>\"\",D19<>\"\",F19<>\"\"),XBRLMapTuple($P$10,M$6,M$7,\"BMA\",CONFIGURATION!$B$1,\"bscr\",\"\",CONFIGURATION!$B$12,$P$11,C19,$Q$11,$R$10,$R$11,D19,$S$11,F19),\"emptyTuple\")","v":"Mapped"}]
[null,9,{"$f":"Import!E1810","v":0},{"$f":"Import!E1830","v":0},{"$f":"Import!E1850","v":0},{"$f":"Import!E1870","v":0},null,{"$f":"Import!E1890","v":"Select"},null,null,null,null,null,null,null,null,null,null,null,null,{"$f":"IF(OR(C20<>\"\",D20<>\"\",F20<>\"\"),XBRLMapTuple($P$10,M$6,M$7,\"BMA\",CONFIGURATION!$B$1,\"bscr\",\"\",CONFIGURATION!$B$12,$P$11,C20,$Q$11,$R$10,$R$11,D20,$S$11,F20),\"emptyTuple\")","v":"Mapped"}]
[null,10,{"$f":"Import!E1811","v":0},{"$f":"Import!E1831","v":0},{"$f":"Import!E1851","v":0},{"$f":"Import!E1871","v":0},null,{"$f":"Import!E1891","v":"Select"},null,null,null,null,null,null,null,null,null,null,null,null,{"$f":"IF(OR(C21<>\"\",D21<>\"\",F21<>\"\"),XBRLMapTuple($P$10,M$6,M$7,\"BMA\",CONFIGURATION!$B$1,\"bscr\",\"\",CONFIGURATION!$B$12,$P$11,C21,$Q$11,$R$10,$R$11,D21,$S$11,F21),\"emptyTuple\")","v":"Mapped"}]
[null,11,{"$f":"Import!E1812","v":0},{"$f":"Import!E1832","v":0},{"$f":"Import!E1852","v":0},{"$f":"Import!E1872","v":0},null,{"$f":"Import!E1892","v":"Select"},null,null,null,null,null,null,null,null,null,null,null,null,{"$f":"IF(OR(C22<>\"\",D22<>\"\",F22<>\"\"),XBRLMapTuple($P$10,M$6,M$7,\"BMA\",CONFIGURATION!$B$1,\"bscr\",\"\",CONFIGURATION!$B$12,$P$11,C22,$Q$11,$R$10,$R$11,D22,$S$11,F22),\"emptyTuple\")","v":"Mapped"}]
[null,12,{"$f":"Import!E1813","v":0},{"$f":"Import!E1833","v":0},{"$f":"Import!E1853","v":0},{"$f":"Import!E1873","v":0},null,{"$f":"Import!E1893","v":"Select"},null,null,null,null,null,null,null,null,null,null,null,null,{"$f":"IF(OR(C23<>\"\",D23<>\"\",F23<>\"\"),XBRLMapTuple($P$10,M$6,M$7,\"BMA\",CONFIGURATION!$B$1,\"bscr\",\"\",CONFIGURATION!$B$12,$P$11,C23,$Q$11,$R$10,$R$11,D23,$S$11,F23),\"emptyTuple\")","v":"Mapped"}]
[null,13,{"$f":"Import!E1814","v":0},{"$f":"Import!E1834","v":0},{"$f":"Import!E1854","v":0},{"$f":"Import!E1874","v":0},null,{"$f":"Import!E1894","v":"Select"},null,null,null,null,null,null,null,null,null,null,null,null,{"$f":"IF(OR(C24<>\"\",D24<>\"\",F24<>\"\"),XBRLMapTuple($P$10,M$6,M$7,\"BMA\",CONFIGURATION!$B$1,\"bscr\",\"\",CONFIGURATION!$B$12,$P$11,C24,$Q$11,$R$10,$R$11,D24,$S$11,F24),\"emptyTuple\")","v":"Mapped"}]
[null,14,{"$f":"Import!E1815","v":0},{"$f":"Import!E1835","v":0},{"$f":"Import!E1855","v":0},{"$f":"Import!E1875","v":0},null,{"$f":"Import!E1895","v":"Select"},null,null,null,null,null,null,null,null,null,null,null,null,{"$f":"IF(OR(C25<>\"\",D25<>\"\",F25<>\"\"),XBRLMapTuple($P$10,M$6,M$7,\"BMA\",CONFIGURATION!$B$1,\"bscr\",\"\",CONFIGURATION!$B$12,$P$11,C25,$Q$11,$R$10,$R$11,D25,$S$11,F25),\"emptyTuple\")","v":"Mapped"}]
[null,15,{"$f":"Import!E1816","v":0},{"$f":"Import!E1836","v":0},{"$f":"Import!E1856","v":0},{"$f":"Import!E1876","v":0},null,{"$f":"Import!E1896","v":"Select"},null,null,null,null,null,null,null,null,null,null,null,null,{"$f":"IF(OR(C26<>\"\",D26<>\"\",F26<>\"\"),XBRLMapTuple($P$10,M$6,M$7,\"BMA\",CONFIGURATION!$B$1,\"bscr\",\"\",CONFIGURATION!$B$12,$P$11,C26,$Q$11,$R$10,$R$11,D26,$S$11,F26),\"emptyTuple\")","v":"Mapped"}]
[null,16,{"$f":"Import!E1817","v":0},{"$f":"Import!E1837","v":0},{"$f":"Import!E1857","v":0},{"$f":"Import!E1877","v":0},null,{"$f":"Import!E1897","v":"Select"},null,null,null,null,null,null,null,null,null,null,null,null,{"$f":"IF(OR(C27<>\"\",D27<>\"\",F27<>\"\"),XBRLMapTuple($P$10,M$6,M$7,\"BMA\",CONFIGURATION!$B$1,\"bscr\",\"\",CONFIGURATION!$B$12,$P$11,C27,$Q$11,$R$10,$R$11,D27,$S$11,F27),\"emptyTuple\")","v":"Mapped"}]
[null,17,{"$f":"Import!E1818","v":0},{"$f":"Import!E1838","v":0},{"$f":"Import!E1858","v":0},{"$f":"Import!E1878","v":0},null,{"$f":"Import!E1898","v":"Select"},null,null,null,null,null,null,null,null,null,null,null,null,{"$f":"IF(OR(C28<>\"\",D28<>\"\",F28<>\"\"),XBRLMapTuple($P$10,M$6,M$7,\"BMA\",CONFIGURATION!$B$1,\"bscr\",\"\",CONFIGURATION!$B$12,$P$11,C28,$Q$11,$R$10,$R$11,D28,$S$11,F28),\"emptyTuple\")","v":"Mapped"}]
[null,18,{"$f":"Import!E1819","v":0},{"$f":"Import!E1839","v":0},{"$f":"Import!E1859","v":0},{"$f":"Import!E1879","v":0},null,{"$f":"Import!E1899","v":"Select"},null,null,null,null,null,null,null,null,null,null,null,null,{"$f":"IF(OR(C29<>\"\",D29<>\"\",F29<>\"\"),XBRLMapTuple($P$10,M$6,M$7,\"BMA\",CONFIGURATION!$B$1,\"bscr\",\"\",CONFIGURATION!$B$12,$P$11,C29,$Q$11,$R$10,$R$11,D29,$S$11,F29),\"emptyTuple\")","v":"Mapped"}]
[null,19,{"$f":"Import!E1820","v":0},{"$f":"Import!E1840","v":0},{"$f":"Import!E1860","v":0},{"$f":"Import!E1880","v":0},null,{"$f":"Import!E1900","v":"Select"},null,null,null,null,null,null,null,null,null,null,null,null,{"$f":"IF(OR(C30<>\"\",D30<>\"\",F30<>\"\"),XBRLMapTuple($P$10,M$6,M$7,\"BMA\",CONFIGURATION!$B$1,\"bscr\",\"\",CONFIGURATION!$B$12,$P$11,C30,$Q$11,$R$10,$R$11,D30,$S$11,F30),\"emptyTuple\")","v":"Mapped"}]
[null,20,{"$f":"Import!E1821","v":0},{"$f":"Import!E1841","v":0},{"$f":"Import!E1861","v":0},{"$f":"Import!E1881","v":0},null,{"$f":"Import!E1901","v":"Select"},null,null,null,null,null,null,null,null,null,null,null,null,{"$f":"IF(OR(C31<>\"\",D31<>\"\",F31<>\"\"),XBRLMapTuple($P$10,M$6,M$7,\"BMA\",CONFIGURATION!$B$1,\"bscr\",\"\",CONFIGURATION!$B$12,$P$11,C31,$Q$11,$R$10,$R$11,D31,$S$11,F31),\"emptyTuple\")","v":"Mapped"}]
[]
[null,2,"Enter number of Officers",{"$f":"Import!E1902","v":0}]
[null,null,"Structure of the chief and senior executive management, including names, roles, country of residence work experience, employee arrangement and description of responsibilities"]
[null,null,null,null,null,null,null,null,null,null,null,null,null,null,null,"brrt_OfficersDetails"]
[null,null,"Name","Chief and Senior Executive Position","Country of Residence","Work Experience",null,"Employee Arrangement (Select from Drop Down)","Description of Responsibilities\n(Select from Drop Down)",null,null,null,null,null,null,"brrt_OfficerName","brrt_OfficerLevel","brrt_OfficerPosition","brrt_OfficerWorkExperience"]
[null,1,{"$f":"Import!E1903","v":0},{"$f":"Import!E1923","v":0},{"$f":"Import!E1943","v":0},{"$f":"Import!E1963","v":0},null,{"$f":"Import!E1983","v":"Select"},{"$f":"Import!E2003","v":"Select"},null,null,null,null,null,null,null,null,null,null,null,{"$f":"IF(OR(C37<>\"\",D37<>\"\",F37<>\"\"),XBRLMapTuple($P$35,M$6,M$7,\"BMA\",CONFIGURATION!$B$1,\"bscr\",\"\",CONFIGURATION!$B$12,$P$36,C37,$Q$36,$S$10,$R$36,D37,$S$36,F37),\"emptyTuple\")","v":"Mapped"}]
[null,2,{"$f":"Import!E1904","v":0},{"$f":"Import!E1924","v":0},{"$f":"Import!E1944","v":0},{"$f":"Import!E1964","v":0},null,{"$f":"Import!E1984","v":"Select"},{"$f":"Import!E2004","v":"Select"},null,null,null,null,null,null,null,null,null,null,null,{"$f":"IF(OR(C38<>\"\",D38<>\"\",F38<>\"\"),XBRLMapTuple($P$35,M$6,M$7,\"BMA\",CONFIGURATION!$B$1,\"bscr\",\"\",CONFIGURATION!$B$12,$P$36,C38,$Q$36,$S$10,$R$36,D38,$S$36,F38),\"emptyTuple\")","v":"Mapped"}]
[null,3,{"$f":"Import!E1905","v":0},{"$f":"Import!E1925","v":0},{"$f":"Import!E1945","v":0},{"$f":"Import!E1965","v":0},null,{"$f":"Import!E1985","v":"Select"},{"$f":"Import!E2005","v":"Select"},null,null,null,null,null,null,null,null,null,null,null,{"$f":"IF(OR(C39<>\"\",D39<>\"\",F39<>\"\"),XBRLMapTuple($P$35,M$6,M$7,\"BMA\",CONFIGURATION!$B$1,\"bscr\",\"\",CONFIGURATION!$B$12,$P$36,C39,$Q$36,$S$10,$R$36,D39,$S$36,F39),\"emptyTuple\")","v":"Mapped"}]
[null,4,{"$f":"Import!E1906","v":0},{"$f":"Import!E1926","v":0},{"$f":"Import!E1946","v":0},{"$f":"Import!E1966","v":0},null,{"$f":"Import!E1986","v":"Select"},{"$f":"Import!E2006","v":"Select"},null,null,null,null,null,null,null,null,null,null,null,{"$f":"IF(OR(C40<>\"\",D40<>\"\",F40<>\"\"),XBRLMapTuple($P$35,M$6,M$7,\"BMA\",CONFIGURATION!$B$1,\"bscr\",\"\",CONFIGURATION!$B$12,$P$36,C40,$Q$36,$S$10,$R$36,D40,$S$36,F40),\"emptyTuple\")","v":"Mapped"}]
[null,5,{"$f":"Import!E1907","v":0},{"$f":"Import!E1927","v":0},{"$f":"Import!E1947","v":0},{"$f":"Import!E1967","v":0},null,{"$f":"Import!E1987","v":"Select"},{"$f":"Import!E2007","v":"Select"},null,null,null,null,null,null,null,null,null,null,null,{"$f":"IF(OR(C41<>\"\",D41<>\"\",F41<>\"\"),XBRLMapTuple($P$35,M$6,M$7,\"BMA\",CONFIGURATION!$B$1,\"bscr\",\"\",CONFIGURATION!$B$12,$P$36,C41,$Q$36,$S$10,$R$36,D41,$S$36,F41),\"emptyTuple\")","v":"Mapped"}]
[null,6,{"$f":"Import!E1908","v":0},{"$f":"Import!E1928","v":0},{"$f":"Import!E1948","v":0},{"$f":"Import!E1968","v":0},null,{"$f":"Import!E1988","v":"Select"},{"$f":"Import!E2008","v":"Select"},null,null,null,null,null,null,null,null,null,null,null,{"$f":"IF(OR(C42<>\"\",D42<>\"\",F42<>\"\"),XBRLMapTuple($P$35,M$6,M$7,\"BMA\",CONFIGURATION!$B$1,\"bscr\",\"\",CONFIGURATION!$B$12,$P$36,C42,$Q$36,$S$10,$R$36,D42,$S$36,F42),\"emptyTuple\")","v":"Mapped"}]
[null,7,{"$f":"Import!E1909","v":0},{"$f":"Import!E1929","v":0},{"$f":"Import!E1949","v":0},{"$f":"Import!E1969","v":0},null,{"$f":"Import!E1989","v":"Select"},{"$f":"Import!E2009","v":"Select"},null,null,null,null,null,null,null,null,null,null,null,{"$f":"IF(OR(C43<>\"\",D43<>\"\",F43<>\"\"),XBRLMapTuple($P$35,M$6,M$7,\"BMA\",CONFIGURATION!$B$1,\"bscr\",\"\",CONFIGURATION!$B$12,$P$36,C43,$Q$36,$S$10,$R$36,D43,$S$36,F43),\"emptyTuple\")","v":"Mapped"}]
[null,8,{"$f":"Import!E1910","v":0},{"$f":"Import!E1930","v":0},{"$f":"Import!E1950","v":0},{"$f":"Import!E1970","v":0},null,{"$f":"Import!E1990","v":"Select"},{"$f":"Import!E2010","v":"Select"},null,null,null,null,null,null,null,null,null,null,null,{"$f":"IF(OR(C44<>\"\",D44<>\"\",F44<>\"\"),XBRLMapTuple($P$35,M$6,M$7,\"BMA\",CONFIGURATION!$B$1,\"bscr\",\"\",CONFIGURATION!$B$12,$P$36,C44,$Q$36,$S$10,$R$36,D44,$S$36,F44),\"emptyTuple\")","v":"Mapped"}]
[null,9,{"$f":"Import!E1911","v":0},{"$f":"Import!E1931","v":0},{"$f":"Import!E1951","v":0},{"$f":"Import!E1971","v":0},null,{"$f":"Import!E1991","v":"Select"},{"$f":"Import!E2011","v":"Select"},null,null,null,null,null,null,null,null,null,null,null,{"$f":"IF(OR(C45<>\"\",D45<>\"\",F45<>\"\"),XBRLMapTuple($P$35,M$6,M$7,\"BMA\",CONFIGURATION!$B$1,\"bscr\",\"\",CONFIGURATION!$B$12,$P$36,C45,$Q$36,$S$10,$R$36,D45,$S$36,F45),\"emptyTuple\")","v":"Mapped"}]
[null,10,{"$f":"Import!E1912","v":0},{"$f":"Import!E1932","v":0},{"$f":"Import!E1952","v":0},{"$f":"Import!E1972","v":0},null,{"$f":"Import!E1992","v":"Select"},{"$f":"Import!E2012","v":"Select"},null,null,null,null,null,null,null,null,null,null,null,{"$f":"IF(OR(C46<>\"\",D46<>\"\",F46<>\"\"),XBRLMapTuple($P$35,M$6,M$7,\"BMA\",CONFIGURATION!$B$1,\"bscr\",\"\",CONFIGURATION!$B$12,$P$36,C46,$Q$36,$S$10,$R$36,D46,$S$36,F46),\"emptyTuple\")","v":"Mapped"}]
[null,11,{"$f":"Import!E1913","v":0},{"$f":"Import!E1933","v":0},{"$f":"Import!E1953","v":0},{"$f":"Import!E1973","v":0},null,{"$f":"Import!E1993","v":"Select"},{"$f":"Import!E2013","v":"Select"},null,null,null,null,null,null,null,null,null,null,null,{"$f":"IF(OR(C47<>\"\",D47<>\"\",F47<>\"\"),XBRLMapTuple($P$35,M$6,M$7,\"BMA\",CONFIGURATION!$B$1,\"bscr\",\"\",CONFIGURATION!$B$12,$P$36,C47,$Q$36,$S$10,$R$36,D47,$S$36,F47),\"emptyTuple\")","v":"Mapped"}]
[null,12,{"$f":"Import!E1914","v":0},{"$f":"Import!E1934","v":0},{"$f":"Import!E1954","v":0},{"$f":"Import!E1974","v":0},null,{"$f":"Import!E1994","v":"Select"},{"$f":"Import!E2014","v":"Select"},null,null,null,null,null,null,null,null,null,null,null,{"$f":"IF(OR(C48<>\"\",D48<>\"\",F48<>\"\"),XBRLMapTuple($P$35,M$6,M$7,\"BMA\",CONFIGURATION!$B$1,\"bscr\",\"\",CONFIGURATION!$B$12,$P$36,C48,$Q$36,$S$10,$R$36,D48,$S$36,F48),\"emptyTuple\")","v":"Mapped"}]
[null,13,{"$f":"Import!E1915","v":0},{"$f":"Import!E1935","v":0},{"$f":"Import!E1955","v":0},{"$f":"Import!E1975","v":0},null,{"$f":"Import!E1995","v":"Select"},{"$f":"Import!E2015","v":"Select"},null,null,null,null,null,null,null,null,null,null,null,{"$f":"IF(OR(C49<>\"\",D49<>\"\",F49<>\"\"),XBRLMapTuple($P$35,M$6,M$7,\"BMA\",CONFIGURATION!$B$1,\"bscr\",\"\",CONFIGURATION!$B$12,$P$36,C49,$Q$36,$S$10,$R$36,D49,$S$36,F49),\"emptyTuple\")","v":"Mapped"}]
[null,14,{"$f":"Import!E1916","v":0},{"$f":"Import!E1936","v":0},{"$f":"Import!E1956","v":0},{"$f":"Import!E1976","v":0},null,{"$f":"Import!E1996","v":"Select"},{"$f":"Import!E2016","v":"Select"},null,null,null,null,null,null,null,null,null,null,null,{"$f":"IF(OR(C50<>\"\",D50<>\"\",F50<>\"\"),XBRLMapTuple($P$35,M$6,M$7,\"BMA\",CONFIGURATION!$B$1,\"bscr\",\"\",CONFIGURATION!$B$12,$P$36,C50,$Q$36,$S$10,$R$36,D50,$S$36,F50),\"emptyTuple\")","v":"Mapped"}]
[null,15,{"$f":"Import!E1917","v":0},{"$f":"Import!E1937","v":0},{"$f":"Import!E1957","v":0},{"$f":"Import!E1977","v":0},null,{"$f":"Import!E1997","v":"Select"},{"$f":"Import!E2017","v":"Select"},null,null,null,null,null,null,null,null,null,null,null,{"$f":"IF(OR(C51<>\"\",D51<>\"\",F51<>\"\"),XBRLMapTuple($P$35,M$6,M$7,\"BMA\",CONFIGURATION!$B$1,\"bscr\",\"\",CONFIGURATION!$B$12,$P$36,C51,$Q$36,$S$10,$R$36,D51,$S$36,F51),\"emptyTuple\")","v":"Mapped"}]
[null,16,{"$f":"Import!E1918","v":0},{"$f":"Import!E1938","v":0},{"$f":"Import!E1958","v":0},{"$f":"Import!E1978","v":0},null,{"$f":"Import!E1998","v":"Select"},{"$f":"Import!E2018","v":"Select"},null,null,null,null,null,null,null,null,null,null,null,{"$f":"IF(OR(C52<>\"\",D52<>\"\",F52<>\"\"),XBRLMapTuple($P$35,M$6,M$7,\"BMA\",CONFIGURATION!$B$1,\"bscr\",\"\",CONFIGURATION!$B$12,$P$36,C52,$Q$36,$S$10,$R$36,D52,$S$36,F52),\"emptyTuple\")","v":"Mapped"}]
[null,17,{"$f":"Import!E1919","v":0},{"$f":"Import!E1939","v":0},{"$f":"Import!E1959","v":0},{"$f":"Import!E1979","v":0},null,{"$f":"Import!E1999","v":"Select"},{"$f":"Import!E2019","v":"Select"},null,null,null,null,null,null,null,null,null,null,null,{"$f":"IF(OR(C53<>\"\",D53<>\"\",F53<>\"\"),XBRLMapTuple($P$35,M$6,M$7,\"BMA\",CONFIGURATION!$B$1,\"bscr\",\"\",CONFIGURATION!$B$12,$P$36,C53,$Q$36,$S$10,$R$36,D53,$S$36,F53),\"emptyTuple\")","v":"Mapped"}]
[null,18,{"$f":"Import!E1920","v":0},{"$f":"Import!E1940","v":0},{"$f":"Import!E1960","v":0},{"$f":"Import!E1980","v":0},null,{"$f":"Import!E2000","v":"Select"},{"$f":"Import!E2020","v":"Select"},null,null,null,null,null,null,null,null,null,null,null,{"$f":"IF(OR(C54<>\"\",D54<>\"\",F54<>\"\"),XBRLMapTuple($P$35,M$6,M$7,\"BMA\",CONFIGURATION!$B$1,\"bscr\",\"\",CONFIGURATION!$B$12,$P$36,C54,$Q$36,$S$10,$R$36,D54,$S$36,F54),\"emptyTuple\")","v":"Mapped"}]
[null,19,{"$f":"Import!E1921","v":0},{"$f":"Import!E1941","v":0},{"$f":"Import!E1961","v":0},{"$f":"Import!E1981","v":0},null,{"$f":"Import!E2001","v":"Select"},{"$f":"Import!E2021","v":"Select"},null,null,null,null,null,null,null,null,null,null,null,{"$f":"IF(OR(C55<>\"\",D55<>\"\",F55<>\"\"),XBRLMapTuple($P$35,M$6,M$7,\"BMA\",CONFIGURATION!$B$1,\"bscr\",\"\",CONFIGURATION!$B$12,$P$36,C55,$Q$36,$S$10,$R$36,D55,$S$36,F55),\"emptyTuple\")","v":"Mapped"}]
[null,20,{"$f":"Import!E1922","v":0},{"$f":"Import!E1942","v":0},{"$f":"Import!E1962","v":0},{"$f":"Import!E2051","v":"Select"},null,{"$f":"Import!E2002","v":"Select"},{"$f":"Import!E2022","v":"Select"},null,null,null,null,null,null,null,null,null,null,null,{"$f":"IF(OR(C56<>\"\",D56<>\"\",F56<>\"\"),XBRLMapTuple($P$35,M$6,M$7,\"BMA\",CONFIGURATION!$B$1,\"bscr\",\"\",CONFIGURATION!$B$12,$P$36,C56,$Q$36,$S$10,$R$36,D56,$S$36,F56),\"emptyTuple\")","v":"Mapped"}]
[null,null,null,null,null,null,null,"Doc Name","Page Number"]
[null,3,"Terms of reference of the board of directors and its sub-committees —",null,null,{"$f":"HYPERLINK(\"#'Attachments'!G65\",\"Attach file\")","v":"Attach file"}]
[]
[null,null,null,null,null,null,null,"Confirmation","Country of Tax Residency"]
[null,"3a","Does your company have tax residency outside of Bermuda, e.g. has made a 953d election",null,null,null,null,{"$f":"Import!E2023","v":"Select Yes/No"},{"$f":"Import!E2024","v":"Select"}]
[]
[null,4,"Jurisdiction(s) where the board of directors of the insurer meet on activities ",null,"Activities Performed in Bermuda?"]
[null,null,null,null,"Yes/No","If no, provide the name of the jurisdiction"]
[null,null,"(a) Setting strategic direction",null,{"$f":"Import!E2025","v":"Select Yes/No"},{"$f":"Import!E2029","v":0}]
[null,null,"(b) Determining the (re)insurers risk appetite",null,{"$f":"Import!E2026","v":"Select Yes/No"},{"$f":"Import!E2030","v":0}]
[null,null,"(c) Makes strategic decisions about new and/or changes to products, lines of business or markets",null,{"$f":"Import!E2027","v":"Select Yes/No"},{"$f":"Import!E2031","v":0}]
[null,null,"(d) Assess or manage solvency requirements",null,{"$f":"Import!E2028","v":"Select Yes/No"},{"$f":"Import!E2032","v":0}]
[]
[null,5,"Details of an insurer's operations that include the jurisdiction(s), service type and name ",null,"Operations Performed in Bermuda?",null,null,"Are Services Outsourced?"]
[null,null,null,null,"Yes/No","If no, provide the name of the jurisdiction",null,"Yes/No","Type of Provider","Name of Provider"]
[null,null,"(a) Underwriting (re)insurance policies",null,{"$f":"Import!E2033","v":"Select Yes/No"},{"$f":"Import!E2039","v":0},null,{"$f":"Import!E2045","v":"Select Yes/No"},{"$f":"Import!E2051","v":"Select"},{"$f":"Import!E2057","v":0}]
[null,null,"(b) Risk management decisions/activities",null,{"$f":"Import!E2034","v":"Select Yes/No"},{"$f":"Import!E2040","v":0},null,{"$f":"Import!E2046","v":"Select Yes/No"},{"$f":"Import!E2052","v":"Select"},{"$f":"Import!E2058","v":0}]
[null,null,"(c) Investment strategy",null,{"$f":"Import!E2035","v":"Select Yes/No"},{"$f":"Import!E2041","v":0},null,{"$f":"Import!E2047","v":"Select Yes/No"},{"$f":"Import!E2053","v":"Select"},{"$f":"Import!E2059","v":0}]
[null,null,"(d) Actuarial ",null,{"$f":"Import!E2036","v":"Select Yes/No"},{"$f":"Import!E2042","v":0},null,{"$f":"Import!E2048","v":"Select Yes/No"},{"$f":"Import!E2054","v":"Select"},{"$f":"Import!E2060","v":0}]
[null,null,"(e) Compliance ",null,{"$f":"Import!E2037","v":"Select Yes/No"},{"$f":"Import!E2043","v":0},null,{"$f":"Import!E2049","v":"Select Yes/No"},{"$f":"Import!E2055","v":"Select"},{"$f":"Import!E2061","v":0}]
[null,null,"(f) Internal Audit",null,{"$f":"Import!E2038","v":"Select Yes/No"},{"$f":"Import!E2044","v":0},null,{"$f":"Import!E2050","v":"Select Yes/No"},{"$f":"Import!E2056","v":"Select"},{"$f":"Import!E2062","v":0}]
[]
[null,"5a","Details of the services outsourced and if yes, if the services performed in Bermua (confirm with the yes/no drop-down box)"]
[null,null,null,null,null,"Services Outsourced","Outsourced Services Performed in Bermuda"]
[null,"(i)","\tPrincipal Representative\r\n",null,null,{"$f":"Import!E2063","v":"Select Yes/No"},{"$f":"Import!E2079","v":"Select Yes/No"}]
[null,"(ii)","Directorships/Board Member",null,null,{"$f":"Import!E2064","v":"Select Yes/No"},{"$f":"Import!E2080","v":"Select Yes/No"}]
[null,"(iii)","Senior Officer",null,null,{"$f":"Import!E2065","v":"Select Yes/No"},{"$f":"Import!E2081","v":"Select Yes/No"}]
[null,"(iv)","Accounting",null,null,{"$f":"Import!E2066","v":"Select Yes/No"},{"$f":"Import!E2082","v":"Select Yes/No"}]
[null,"(v)","Preparation of Prudential / Statutory Financial Return",null,null,{"$f":"Import!E2067","v":"Select Yes/No"},{"$f":"Import!E2083","v":"Select Yes/No"}]
[null,"(vi)","Underwriting",null,null,{"$f":"Import!E2068","v":"Select Yes/No"},{"$f":"Import!E2084","v":"Select Yes/No"}]
[null,"(vii)","\tClaims Handling\r\n",null,null,{"$f":"Import!E2069","v":"Select Yes/No"},{"$f":"Import!E2085","v":"Select Yes/No"}]
[null,"(viii)","Risk Management",null,null,{"$f":"Import!E2070","v":"Select Yes/No"},{"$f":"Import!E2086","v":"Select Yes/No"}]
[null,"(ix)","Investment",null,null,{"$f":"Import!E2071","v":"Select Yes/No"},{"$f":"Import!E2087","v":"Select Yes/No"}]
[null,"(x)","Treasury",null,null,{"$f":"Import!E2072","v":"Select Yes/No"},{"$f":"Import!E2088","v":"Select Yes/No"}]
[null,"(xi)","Actuarial functions",null,null,{"$f":"Import!E2073","v":"Select Yes/No"},{"$f":"Import!E2089","v":"Select Yes/No"}]
[null,"(xii)","Internal Audit",null,null,{"$f":"Import!E2074","v":"Select Yes/No"},{"$f":"Import!E2090","v":"Select Yes/No"}]
[null,"(xiii)","\tCompliance\r\n",null,null,{"$f":"Import!E2075","v":"Select Yes/No"},{"$f":"Import!E2091","v":"Select Yes/No"}]
[null,"(xiv)","AML/AFT/Sanctions Compliance",null,null,{"$f":"Import!E2076","v":"Select Yes/No"},{"$f":"Import!E2092","v":"Select Yes/No"}]
[null,"(xv)","Money Laundering Reporting Officer",null,null,{"$f":"Import!E2077","v":"Select Yes/No"},{"$f":"Import!E2093","v":"Select Yes/No"}]
[null,"(xvi)","Other (if other, disclose)",{"$f":"Import!E2078","v":0}]
[]
[null,6,"Number of employees of the insurer that are resident in Bermuda (non-outsourced positions)",null,null,null,{"$f":"Import!E2094","v":0}]
[]
[null,"6a","Number of employees in Bermuda working as:"]
[null,"(i)","Senior Executive",null,null,null,{"$f":"Import!E2095","v":0}]
[null,"(ii)","Senior Manager",null,null,null,{"$f":"Import!E2096","v":0}]
[null,"(iiii)","Technical Officer",null,null,null,{"$f":"Import!E2097","v":0}]
[null,"(iv)","Administrative",null,null,null,{"$f":"Import!E2098","v":0}]
[null,null,"Total",null,null,null,{"$f":"SUM(G101:G104)","v":0}]
[]
[null,null,"Check",null,null,null,{"$f":"IF(G98=G105,\"True\",\"False\")","v":"True"}]
[]
[null,7,"Name of the jurisdiction(s) where the group's board of directors primarily deliberates on the following matters —"]
[null,null,"(a) Setting strategic decision",null,null,null,{"$f":"Import!I2099","v":0},null,null,null,null,null,null,null,null,"brrt_SettingStrategicDecision",null,null,null,null,{"$f":"XBRLMap(G110,$P110,$M$6,$M$7,CONFIGURATION!$B$10,\"BMA\",CONFIGURATION!$B$1,\"bscr\")","v":"Mapped"}]
[null,null,"(b) Determining the group's risk appetite",null,null,null,{"$f":"Import!I2100","v":0},null,null,null,null,null,null,null,null,"brrt_DeterminingreinsurerRiskAppetite",null,null,null,null,{"$f":"XBRLMap(G111,$P111,$M$6,$M$7,CONFIGURATION!$B$10,\"BMA\",CONFIGURATION!$B$1,\"bscr\")","v":"Mapped"}]
[null,null,"(c) Choosing corporate structure, including amalgamations, acquisitions and strategic alliances",null,null,null,{"$f":"Import!I2101","v":0},null,null,null,null,null,null,null,null,"brrt_ChoiceOfCorporateStructure",null,null,null,null,{"$f":"XBRLMap(G112,$P112,$M$6,$M$7,CONFIGURATION!$B$10,\"BMA\",CONFIGURATION!$B$1,\"bscr\")","v":"Mapped"}]
[null,null,"(d) Makes strategic decisions about new and/or changes to products, lines of business or markets",null,null,null,{"$f":"Import!I2102","v":0},null,null,null,null,null,null,null,null,"brrt_ChoiceOfNewLinesOfBusinessNewProductsEtc",null,null,null,null,{"$f":"XBRLMap(G113,$P113,$M$6,$M$7,CONFIGURATION!$B$10,\"BMA\",CONFIGURATION!$B$1,\"bscr\")","v":"Mapped"}]
[null,null,"(e) Assess or manage solvency requirements",null,null,null,{"$f":"Import!I2103","v":0},null,null,null,null,null,null,null,null,"brrt_AssessingSolvencyNeeds",null,null,null,null,{"$f":"XBRLMap(G114,$P114,$M$6,$M$7,CONFIGURATION!$B$10,\"BMA\",CONFIGURATION!$B$1,\"bscr\")","v":"Mapped"}]
[]
[null,8,"Name of the jurisdiction(s) where the group's board of directors and chief and",null,null,null,null,null,null,null,null,null,null,null,null,null,null,null,null,null,{"$f":"XBRLMap(E116,$P116,$M$6,$M$7,CONFIGURATION!$B$10,\"BMA\",CONFIGURATION!$B$1,\"bscr\")","v":"-"}]
[null,null,"senior executives primarily reside —",null,null,null,{"$f":"Import!I2104","v":0},null,null,null,null,null,null,null,null,"brrt_NameOfJurisdictionsWhereGroupBoardOfDirectorsAndChiefAndSeniorExecutivesPrimarilyReside",null,null,null,null,{"$f":"XBRLMap(G117,$P117,$M$6,$M$7,CONFIGURATION!$B$10,\"BMA\",CONFIGURATION!$B$1,\"bscr\")","v":"Mapped"}]
[null,null,null,null,null,null,null,null,null,null,null,null,null,null,null,null,null,null,null,null,{"$f":"XBRLMap(E118,$P118,$M$6,$M$7,CONFIGURATION!$B$10,\"BMA\",CONFIGURATION!$B$1,\"bscr\")","v":"-"}]
[null,9,"Name of the jurisdiction(s) where the group's control functions reside ",null,null,null,null,null,null,null,null,null,null,null,null,null,null,null,null,null,{"$f":"XBRLMap(E119,$P119,$M$6,$M$7,CONFIGURATION!$B$10,\"BMA\",CONFIGURATION!$B$1,\"bscr\")","v":"-"}]
[null,null,"(i.e. group finance, actuarial, and risk management) —",null,null,null,{"$f":"Import!I2105","v":0},null,null,null,null,null,null,null,null,"brrt_NameOfJurisdictionsWhereGroupCentralControlFunctionsResideieGroupFinanceActuarialAndRiskManagement",null,null,null,null,{"$f":"XBRLMap(G120,$P120,$M$6,$M$7,CONFIGURATION!$B$10,\"BMA\",CONFIGURATION!$B$1,\"bscr\")","v":"Mapped"}]
[null,null,null,null,null,null,null,null,null,null,null,null,null,null,null,null,null,null,null,null,{"$f":"XBRLMap(E121,$P121,$M$6,$M$7,CONFIGURATION!$B$10,\"BMA\",CONFIGURATION!$B$1,\"bscr\")","v":"-"}]
[null,10,"The group's financial position based on its most recent audited general purpose financial statements —",null,null,null,null,null,null,null,null,null,null,null,null,null,null,null,null,null,{"$f":"XBRLMap(E122,$P122,$M$6,$M$7,CONFIGURATION!$B$10,\"BMA\",CONFIGURATION!$B$1,\"bscr\")","v":"-"}]
[null,null,"(a) Total assets",null,null,null,{"$f":"Import!I2106","v":0},null,null,null,null,null,null,null,null,"brrt_GroupFinancialPositionBasedOnItsMostRecentAuditedGeneralPurposeFinancialStatementsTotalAssets",null,null,null,null,{"$f":"XBRLMap(G123,$P123,$M$6,$M$7,CONFIGURATION!$B$10,\"BMA\",CONFIGURATION!$B$1,\"bscr\",CONFIGURATION!$B$12)","v":"Mapped"}]
[null,null,"(b) Total reserves",null,null,null,{"$f":"Import!I2107","v":0},null,null,null,null,null,null,null,null,"brrt_GroupFinancialPositionBasedOnItsMostRecentAuditedGeneralPurposeFinancialStatementsTotalReserves",null,null,null,null,{"$f":"XBRLMap(G124,$P124,$M$6,$M$7,CONFIGURATION!$B$10,\"BMA\",CONFIGURATION!$B$1,\"bscr\",CONFIGURATION!$B$12)","v":"Mapped"}]
[null,null,"(c) Capital and surplus",null,null,null,{"$f":"Import!I2108","v":0},null,null,null,null,null,null,null,null,"brrt_GroupFinancialPositionBasedOnItsMostRecentAuditedGeneralPurposeFinancialStatementsCapitalAndSurplus",null,null,null,null,{"$f":"XBRLMap(G125,$P125,$M$6,$M$7,CONFIGURATION!$B$10,\"BMA\",CONFIGURATION!$B$1,\"bscr\",CONFIGURATION!$B$12)","v":"Mapped"}]
[]
[null,11,"Name of insurers (and place of incorporation) within the group that have the three highest: (i) total asset value, (ii) total insurance "]
[null,null,"reserve value and (iii) capital and surplus, based on the group's most recent audited general purpose financial statements —",null,null,null,null,null,null,null,null,null,null,null,null,"brrt_NameOfInsurersWithinGroupThatHaveThreeHighestValuesBasedOnMostRecentAuditedGeneralPurposeFinancialStatements"]
[null,null,"Name of Insurer","Jurisdiction","Asset Value","Insurance Reserve Value","Capital and Surplus",null,null,null,null,null,null,null,null,"brrt_NameOfInsurer","brrt_JurisdictionOfInsurer","brrt_AssetValueOfInsurer","brrt_InsuranceReserveValueOfInsurer","brrt_CapitalAndSurplusOfInsurer"]
[null,1,{"$f":"Import!I2109","v":0},{"$f":"Import!I2118","v":0},{"$f":"Import!I2127","v":0},{"$f":"Import!I2136","v":0},{"$f":"Import!I2145","v":0},null,null,null,null,null,null,null,null,null,null,null,null,null,{"$f":"XBRLMapTuple($P$128,M$6,M$7,\"BMA\",CONFIGURATION!$B$1,\"bscr\",\"\",CONFIGURATION!$B$12,$P$129,C130,$Q$129,D130,$R$129,E130,$S$129,F130,$T$129,G130)","v":"Mapped"}]
[null,2,{"$f":"Import!I2110","v":0},{"$f":"Import!I2119","v":0},{"$f":"Import!I2128","v":0},{"$f":"Import!I2137","v":0},{"$f":"Import!I2146","v":0},null,null,null,null,null,null,null,null,null,null,null,null,null,{"$f":"XBRLMapTuple($P$128,M$6,M$7,\"BMA\",CONFIGURATION!$B$1,\"bscr\",\"\",CONFIGURATION!$B$12,$P$129,C131,$Q$129,D131,$R$129,E131,$S$129,F131,$T$129,G131)","v":"Mapped"}]
[null,3,{"$f":"Import!I2111","v":0},{"$f":"Import!I2120","v":0},{"$f":"Import!I2129","v":0},{"$f":"Import!I2138","v":0},{"$f":"Import!I2147","v":0},null,null,null,null,null,null,null,null,null,null,null,null,null,{"$f":"XBRLMapTuple($P$128,M$6,M$7,\"BMA\",CONFIGURATION!$B$1,\"bscr\",\"\",CONFIGURATION!$B$12,$P$129,C132,$Q$129,D132,$R$129,E132,$S$129,F132,$T$129,G132)","v":"Mapped"}]
[null,4,{"$f":"Import!I2112","v":0},{"$f":"Import!I2121","v":0},{"$f":"Import!I2130","v":0},{"$f":"Import!I2139","v":0},{"$f":"Import!I2148","v":0},null,null,null,null,null,null,null,null,null,null,null,null,null,{"$f":"XBRLMapTuple($P$128,M$6,M$7,\"BMA\",CONFIGURATION!$B$1,\"bscr\",\"\",CONFIGURATION!$B$12,$P$129,C133,$Q$129,D133,$R$129,E133,$S$129,F133,$T$129,G133)","v":"Mapped"}]
[null,5,{"$f":"Import!I2113","v":0},{"$f":"Import!I2122","v":0},{"$f":"Import!I2131","v":0},{"$f":"Import!I2140","v":0},{"$f":"Import!I2149","v":0},null,null,null,null,null,null,null,null,null,null,null,null,null,{"$f":"XBRLMapTuple($P$128,M$6,M$7,\"BMA\",CONFIGURATION!$B$1,\"bscr\",\"\",CONFIGURATION!$B$12,$P$129,C134,$Q$129,D134,$R$129,E134,$S$129,F134,$T$129,G134)","v":"Mapped"}]
[null,6,{"$f":"Import!I2114","v":0},{"$f":"Import!I2123","v":0},{"$f":"Import!I2132","v":0},{"$f":"Import!I2141","v":0},{"$f":"Import!I2150","v":0},null,null,null,null,null,null,null,null,null,null,null,null,null,{"$f":"XBRLMapTuple($P$128,M$6,M$7,\"BMA\",CONFIGURATION!$B$1,\"bscr\",\"\",CONFIGURATION!$B$12,$P$129,C135,$Q$129,D135,$R$129,E135,$S$129,F135,$T$129,G135)","v":"Mapped"}]
[null,7,{"$f":"Import!I2115","v":0},{"$f":"Import!I2124","v":0},{"$f":"Import!I2133","v":0},{"$f":"Import!I2142","v":0},{"$f":"Import!I2151","v":0},null,null,null,null,null,null,null,null,null,null,null,null,null,{"$f":"XBRLMapTuple($P$128,M$6,M$7,\"BMA\",CONFIGURATION!$B$1,\"bscr\",\"\",CONFIGURATION!$B$12,$P$129,C136,$Q$129,D136,$R$129,E136,$S$129,F136,$T$129,G136)","v":"Mapped"}]
[null,8,{"$f":"Import!I2116","v":0},{"$f":"Import!I2125","v":0},{"$f":"Import!I2134","v":0},{"$f":"Import!I2143","v":0},{"$f":"Import!I2152","v":0},null,null,null,null,null,null,null,null,null,null,null,null,null,{"$f":"XBRLMapTuple($P$128,M$6,M$7,\"BMA\",CONFIGURATION!$B$1,\"bscr\",\"\",CONFIGURATION!$B$12,$P$129,C137,$Q$129,D137,$R$129,E137,$S$129,F137,$T$129,G137)","v":"Mapped"}]
[null,9,{"$f":"Import!I2117","v":0},{"$f":"Import!I2126","v":0},{"$f":"Import!I2135","v":0},{"$f":"Import!I2144","v":0},{"$f":"Import!I2153","v":0},null,null,null,null,null,null,null,null,null,null,null,null,null,{"$f":"XBRLMapTuple($P$128,M$6,M$7,\"BMA\",CONFIGURATION!$B$1,\"bscr\",\"\",CONFIGURATION!$B$12,$P$129,C138,$Q$129,D138,$R$129,E138,$S$129,F138,$T$129,G138)","v":"Mapped"}]
[]
[null,12,"Describe any subsequent events or decisions that would or have materially changed the information in items (4) to (11) above "]
[null,null,"(e.g. amalgamation, acquisition, or restructuring, etc.) —"]
[null,null,{"$f":"Import!E2154","v":0},null,null,null,null,null,null,null,null,null,null,null,null,"brrt_DescribeAnySubsequentEventsOrDecisionsForAmalgamationAcquisitionOrRestructuringEtc",null,null,null,null,{"$f":"XBRLMap(C142,$P142,$M$6,$M$7,CONFIGURATION!$B$10,\"BMA\",CONFIGURATION!$B$1,\"bscr\")","v":"Mapped"}]
[]
[null,null,null,null,null,"Doc Name","Page Number"]
[null,13,"A copy of the latest group organizational chart —",null,{"$f":"HYPERLINK(\"#'Attachments'!G75\",\"Attach file\")","v":"Attach file"}]
[]
[]
[null,null,"Select","Select",null,"Select",null,"Select Yes/No"]
[null,null,"N/A","Insurance Manager","Insurance Manager","Insurer",null,"Yes",null,"Select"]
[null,null,"United Kingdom","Other Third Party","Other Third Party","Affiliate",null,"No",null,"Non-executive (Independent)"]
[null,null,"United States of America","Affiliate","Affiliate","External service provider ",null,null,null,"Non-executive (Affiliate)"]
[null,null,"Canada",null,null,null,null,null,null,"Non-executive (Service Provider)"]
[null,null,null,null,null,null,null,null,null,"Non-executive (Other)"]
[null,null,"Afghanistan",null,null,null,null,null,null,"Executive"]
[null,null,"Aland Islands",null,null,null,null,null,null,"Select"]
[null,null,"Albania",null,null,null,null,null,null,"A - Has authority to make key strategic, underwriting or investment decisions, etc."]
[null,null,"Algeria",null,null,null,null,null,null,"B - Has authority to make key strategic, underwriting or investments decision, etc., within the risk appetite explicitly set by the Board of Directors."]
[null,null,"American Samoa",null,null,null,null,null,null,"C - Must get key strategic, underwriting, or investment decisions signed-off by Board of Directors before executing."]
[null,null,"Andorra"]
[null,null,"Angola"]
[null,null,"Anguilla"]
[null,null,"Antigua & Barbuda"]
[null,null,"Argentina"]
[null,null,"Armenia"]
[null,null,"Aruba"]
[null,null,"Australia"]
[null,null,"Austria"]
[null,null,"Azerbaijan"]
[null,null,"Bahamas"]
[null,null,"Bahrain"]
[null,null,"Bangladesh"]
[null,null,"Barbados"]
[null,null,"Belarus"]
[null,null,"Belgium"]
[null,null,"Belize"]
[null,null,"Benin"]
[null,null,"Bhutan"]
[null,null,"Bolivia"]
[null,null,"Bosnia and Herzegovina"]
[null,null,"Botswana"]
[null,null,"Brazil"]
[null,null,"British Virgin Islands"]
[null,null,"Brunei Darussalam"]
[null,null,"Bulgaria"]
[null,null,"Burkina Faso"]
[null,null,"Burundi"]
[null,null,"Cambodia"]
[null,null,"Cameroon"]
[null,null,"Cape Verde"]
[null,null,"Cayman Islands"]
[null,null,"Central African Republic"]
[null,null,"Chad"]
[null,null,"Chile"]
[null,null,"China"]
[null,null,"Colombia"]
[null,null,"Comoros"]
[null,null,"Cook Islands"]
[null,null,"Costa Rica"]
[null,null,"Cote d' Ivoire"]
[null,null,"Croatia"]
[null,null,"Cuba"]
[null,null,"Cyprus"]
[null,null,"Czech Republic"]
[null,null,"Democratic Republic of Congo"]
[null,null,"Denmark"]
[null,null,"Djibouti"]
[null,null,"Dominica"]
[null,null,"Dominican Republic"]
[null,null,"Ecuador"]
[null,null,"Egypt"]
[null,null,"El Salvador"]
[null,null,"Equatorial Guinea"]
[null,null,"Eritrea"]
[null,null,"Estonia"]
[null,null,"Ethiopia"]
[null,null,"Faeroe Islands"]
[null,null,"Falkland Islands"]
[null,null,"Fiji"]
[null,null,"Finland"]
[null,null,"France"]
[null,null,"French Guiana"]
[null,null,"French Polynesia"]
[null,null,"fYR of Macedonia"]
[null,null,"Gabon"]
[null,null,"Gambia"]
[null,null,"Georgia"]
[null,null,"Germany"]
[null,null,"Ghana"]
[null,null,"Gibraltar"]
[null,null,"Greece"]
[null,null,"Greenland"]
[null,null,"Grenada"]
[null,null,"Guadeloupe"]
[null,null,"Guam"]
[null,null,"Guatemala"]
[null,null,"Guernsey"]
[null,null,"Guinea"]
[null,null,"Guinea-Bissau"]
[null,null,"Guyana"]
[null,null,"Haiti"]
[null,null,"Honduras"]
[null,null,"Hong Kong"]
[null,null,"Hungary"]
[null,null,"Iceland"]
[null,null,"India"]
[null,null,"Indonesia"]
[null,null,"Iran"]
[null,null,"Iraq"]
[null,null,"Isle of Man"]
[null,null,"Israel"]
[null,null,"Italy"]
[null,null,"Jamica"]
[null,null,"Japan"]
[null,null,"Jersey"]
[null,null,"Jordan"]
[null,null,"Kazakhstan"]
[null,null,"Kenya"]
[null,null,"Kiribati"]
[null,null,"Kuwait"]
[null,null,"Kyrgyzstan"]
[null,null,"Lao PDR"]
[null,null,"Latvia"]
[null,null,"Lebanon"]
[null,null,"Lesotho"]
[null,null,"Liberia"]
[null,null,"Libya"]
[null,null,"Liechtenstein"]
[null,null,"Lithuania"]
[null,null,"Luxembourg"]
[null,null,"Macao"]
[null,null,"Madagascar"]
[null,null,"Malawi"]
[null,null,"Malaysia"]
[null,null,"Maldives"]
[null,null,"Mali"]
[null,null,"Malta"]
[null,null,"Marshall Islands"]
[null,null,"Mauritania"]
[null,null,"Mauritius"]
[null,null,"Mayotte"]
[null,null,"Mexico"]
[null,null,"Micronesia"]
[null,null,"Moldova"]
[null,null,"Monaco"]
[null,null,"Mongolia"]
[null,null,"Montenegro"]
[null,null,"Montserrat"]
[null,null,"Morocco"]
[null,null,"Mozambique"]
[null,null,"Myanmar"]
[null,null,"N. Mariana Islands"]
[null,null,"Namibia"]
[null,null,"Nauru"]
[null,null,"Nepal"]
[null,null,"Netherlands"]
[null,null,"Netherlands Antilles (Curacao and Bonaire)"]
[null,null,"New Caledonia"]
[null,null,"New Zealand"]
[null,null,"Nicaragua"]
[null,null,"Niger"]
[null,null,"Nigeria"]
[null,null,"Niue"]
[null,null,"Norfolk Island"]
[null,null,"North Korea"]
[null,null,"Northern Africa"]
[null,null,"Norway"]
[null,null,"Oman"]
[null,null,"Pakistan"]
[null,null,"Palau"]
[null,null,"Palestinian"]
[null,null,"Panama"]
[null,null,"Papua New Guinea"]
[null,null,"Paraguay"]
[null,null,"Peru"]
[null,null,"Philippines"]
[null,null,"Pitcairn"]
[null,null,"Poland"]
[null,null,"Portugal"]
[null,null,"Puerto Rico"]
[null,null,"Qatar"]
[null,null,"Republic of Congo"]
[null,null,"Republic of Ireland"]
[null,null,"Reunion"]
[null,null,"Romania"]
[null,null,"Russian Federation"]
[null,null,"Rwanda"]
[null,null,"Saint Helena"]
[null,null,"Samoa"]
[null,null,"San Marino"]
[null,null,"Sao Tome & Principe"]
[null,null,"Saudi Arabia"]
[null,null,"Senegal"]
[null,null,"Serbia"]
[null,null,"Seychelles"]
[null,null,"Sierra Leone"]
[null,null,"Singapore"]
[null,null,"Slovakia"]
[null,null,"Slovenia"]
[null,null,"Solomon Islands"]
[null,null,"Somalia"]
[null,null,"South Africa"]
[null,null,"South Korea"]
[null,null,"Spain"]
[null,null,"Sri Lanka"]
[null,null,"St Kitts & Nevis"]
[null,null,"St Lucia"]
[null,null,"St Pierre & Miquelon"]
[null,null,"St. Maarten"]
[null,null,"St. Vincent & the Grenadines"]
[null,null,"St-Barthelemy"]
[null,null,"Sudan"]
[null,null,"Suriname"]
[null,null,"Svalbard, Jan Mayen"]
[null,null,"Swaziland"]
[null,null,"Sweden"]
[null,null,"Switzerland"]
[null,null,"Syria"]
[null,null,"Taiwan"]
[null,null,"Tajikistan"]
[null,null,"Thailand"]
[null,null,"Timor-Leste"]
[null,null,"Togo"]
[null,null,"Tokelau"]
[null,null,"Tonga"]
[null,null,"Trinidad & Tobago"]
[null,null,"Tunisia"]
[null,null,"Turkey"]
[null,null,"Turkmenistan"]
[null,null,"Turks & Caicos Islands"]
[null,null,"Tuvalu"]
[null,null,"Uganda"]
[null,null,"Ukraine"]
[null,null,"United Arab Emirates"]
[null,null,"United Republic of Tanzania"]
[null,null,"Uruguay"]
[null,null,"US Virgin Islands"]
[null,null,"Uzbekistan"]
[null,null,"Vanuatu"]
[null,null,"Vatican City"]
[null,null,"Venezuela"]
[null,null,"Vietnam"]
[null,null,"Wallis & Futuna Islands"]
[null,null,"Western Sahara"]
[null,null,"Yemen"]
[null,null,"Zambia"]
[null,null,"Zimbabwe"]

{"sheet":"Schedule V(c)","index":41,"n_rows":122,"n_cols":25,"rows_kept":122,"cut":false,"hidden":false,"merged":[[3,4,3,5],[4,4,4,5],[28,6,28,8],[29,6,29,8],[30,6,30,8],[31,6,31,8],[32,6,32,8],[2,2,2,4],[12,3,13,3],[12,5,13,5],[10,6,13,8],[14,6,14,8],[15,6,15,8],[16,6,16,8],[17,6,17,8],[18,6,18,8],[22,6,22,8],[23,6,23,8],[24,6,24,8],[25,6,25,8],[26,6,26,8],[27,6,27,8],[12,2,13,2],[12,4,13,4],[44,8,45,9],[19,6,19,8],[20,6,20,8],[21,6,21,8],[44,2,45,7],[44,10,45,11],[10,9,13,9],[33,6,33,8],[34,6,34,8],[35,6,35,8],[36,6,36,8],[37,6,37,8],[38,6,38,8],[10,2,11,5],[41,6,42,11],[82,9,82,10],[83,9,83,10],[84,9,84,10],[85,9,85,10],[86,9,86,10],[87,9,87,10],[80,2,81,5],[80,6,81,6],[82,2,82,5],[83,2,83,5],[84,2,84,5],[80,9,81,10],[80,7,80,8],[81,7,81,8],[85,2,85,5],[86,2,86,5],[87,2,87,5],[94,9,94,10],[95,9,95,10],[96,9,96,10],[97,9,97,10],[98,9,98,10],[99,9,99,10],[88,9,88,10],[89,9,89,10],[90,9,90,10],[91,9,91,10],[92,9,92,10],[93,9,93,10],[120,2,120,5],[100,9,100,10],[101,9,101,10],[102,9,102,10],[119,9,119,10],[120,9,120,10],[121,9,121,10],[112,9,112,10],[113,9,113,10],[114,9,114,10],[115,9,115,10],[116,9,116,10],[117,9,117,10],[103,9,103,10],[104,9,104,10],[105,9,105,10],[118,9,118,10],[106,9,106,10],[107,9,107,10],[108,9,108,10],[109,9,109,10],[110,9,110,10],[111,9,111,10],[121,2,121,5],[114,2,114,5],[115,2,115,5],[116,2,116,5],[117,2,117,5],[118,2,118,5],[119,2,119,5],[91,2,91,5],[92,2,92,5],[99,2,99,5],[100,2,100,5],[101,2,101,5],[102,2,102,5],[103,2,103,5],[104,2,104,5],[105,2,105,5],[108,2,108,5],[109,2,109,5],[110,2,110,5],[111,2,111,5],[106,2,106,5],[107,2,107,5],[112,2,112,5],[113,2,113,5],[88,2,88,5],[89,2,89,5],[90,2,90,5],[97,2,97,5],[98,2,98,5],[93,2,93,5],[94,2,94,5],[95,2,95,5],[96,2,96,5]]}
[null,null,"SCHEDULE OF RISK MANAGEMENT - INTRA-GROUP EXPOSURES AND RISK CONCENTRATIONS",null,null,null,null,null,null,null,null,{"$f":"HYPERLINK(\"#'Index'!A1\",\"Return to Index\")","v":"Return to Index"}]
[]
[null,null,{"$f":"'Company Information'!C7","v":"Enter Company Name"}]
[null,null,"For the year ending",null,{"$f":"'Company Information'!C3","v":"2019-12-31"},null,null,null,null,null,null,"SCHEDULE V(c)"]
[null,null,{"$f":"\"expressed in\"& IF(CONFIGURATION!$B$12>1,\" ['\"&MID(CONFIGURATION!$B$12,2,LEN(CONFIGURATION!$B$12))&\"s]\",\"\")","v":"expressed in ['000s]"},null,{"$f":"'Form 1EBS'!C4","v":"United States Dollars"}]
[null,null,null,null,null,null,null,null,null,null,null,null,null,null,null,{"$f":"IF(E4=\"\",\"\",TEXT(DATE(YEAR(E4+1)-1,MONTH(E4+1),DAY(E4+1)),\"mm/dd/yyyy\"))","v":"01/01/2019"}]
[null,1,"Details of material intra-group transactions —",null,null,null,null,null,null,null,null,null,null,null,null,{"$f":"IF(E4=\"\",\"\",TEXT(E4,\"mm/dd/yyyy\"))","v":"12/31/2019"}]
[null,null,"Enter Number of Material Intra-Group Transactions"]
[null,null,"Enter information for each transaction",null,{"$f":"Import!E2155","v":0}]
[]
[null,null,"Counterparties Involved",null,null,null,"Transaction Details \n(Purpose, terms, transaction cost, duration and performance trigger)",null,null,"Exposure Value \n(face value or market value)"]
[null,null,null,null,null,null,null,null,null,null,null,null,null,null,null,"brrt_DetailsOfMaterialIntragroupTransactions"]
[null,null,"Issuer/Borrower/Debtor","Jurisdiction","Investor/Lender/Creditor","Jurisdiction",null,null,null,null,null,null,null,null,null,"brrt_CounterpartiesInvolvedIssuerBorrowerDebtorName","brrt_CounterpartiesInvolvedIssuerBorrowerDebtorJurisdiction","brrt_CounterpartiesInvolvedInvestorLenderCreditorName","brrt_CounterpartiesInvolvedInvestorLenderCreditorJurisdiction","brrt_TransactionDetailsPurposeTermsTransactionCostDurationAndPerformanceTrigger","brrt_ExposureValueFaceValueOrMarketValue"]
[]
[null,1,{"$f":"Import!E2156","v":0},{"$f":"Import!E2181","v":0},{"$f":"Import!E2206","v":0},{"$f":"Import!E2231","v":0},{"$f":"Import!E2256","v":0},null,null,{"$f":"Import!E2281","v":0},null,null,null,null,null,null,null,null,null,null,null,{"$f":"IF(OR(C15<>\"\",D15<>\"\",E15<>\"\",F15<>\"\",G15<>\"\",J15<>\"\"),XBRLMapTuple($P$12,P$6,P$7,\"BMA\",CONFIGURATION!$B$1,\"bscr\",\"\",CONFIGURATION!$B$12,$P$13,C15,$Q$13,D15,$R$13,E15,$S$13,F15,$T$13,G15,$U$13,J15),\"emptyTuple\")","v":"Mapped"}]
[null,2,{"$f":"Import!E2157","v":0},{"$f":"Import!E2182","v":0},{"$f":"Import!E2207","v":0},{"$f":"Import!E2232","v":0},{"$f":"Import!E2257","v":0},null,null,{"$f":"Import!E2282","v":0},null,null,null,null,null,null,null,null,null,null,null,{"$f":"IF(OR(C16<>\"\",D16<>\"\",E16<>\"\",F16<>\"\",G16<>\"\",J16<>\"\"),XBRLMapTuple($P$12,P$6,P$7,\"BMA\",CONFIGURATION!$B$1,\"bscr\",\"\",CONFIGURATION!$B$12,$P$13,C16,$Q$13,D16,$R$13,E16,$S$13,F16,$T$13,G16,$U$13,J16),\"emptyTuple\")","v":"Mapped"}]
[null,3,{"$f":"Import!E2158","v":0},{"$f":"Import!E2183","v":0},{"$f":"Import!E2208","v":0},{"$f":"Import!E2233","v":0},{"$f":"Import!E2258","v":0},null,null,{"$f":"Import!E2283","v":0},null,null,null,null,null,null,null,null,null,null,null,{"$f":"IF(OR(C17<>\"\",D17<>\"\",E17<>\"\",F17<>\"\",G17<>\"\",J17<>\"\"),XBRLMapTuple($P$12,P$6,P$7,\"BMA\",CONFIGURATION!$B$1,\"bscr\",\"\",CONFIGURATION!$B$12,$P$13,C17,$Q$13,D17,$R$13,E17,$S$13,F17,$T$13,G17,$U$13,J17),\"emptyTuple\")","v":"Mapped"}]
[null,4,{"$f":"Import!E2159","v":0},{"$f":"Import!E2184","v":0},{"$f":"Import!E2209","v":0},{"$f":"Import!E2234","v":0},{"$f":"Import!E2259","v":0},null,null,{"$f":"Import!E2284","v":0},null,null,null,null,null,null,null,null,null,null,null,{"$f":"IF(OR(C18<>\"\",D18<>\"\",E18<>\"\",F18<>\"\",G18<>\"\",J18<>\"\"),XBRLMapTuple($P$12,P$6,P$7,\"BMA\",CONFIGURATION!$B$1,\"bscr\",\"\",CONFIGURATION!$B$12,$P$13,C18,$Q$13,D18,$R$13,E18,$S$13,F18,$T$13,G18,$U$13,J18),\"emptyTuple\")","v":"Mapped"}]
[null,5,{"$f":"Import!E2160","v":0},{"$f":"Import!E2185","v":0},{"$f":"Import!E2210","v":0},{"$f":"Import!E2235","v":0},{"$f":"Import!E2260","v":0},null,null,{"$f":"Import!E2285","v":0},null,null,null,null,null,null,null,null,null,null,null,{"$f":"IF(OR(C19<>\"\",D19<>\"\",E19<>\"\",F19<>\"\",G19<>\"\",J19<>\"\"),XBRLMapTuple($P$12,P$6,P$7,\"BMA\",CONFIGURATION!$B$1,\"bscr\",\"\",CONFIGURATION!$B$12,$P$13,C19,$Q$13,D19,$R$13,E19,$S$13,F19,$T$13,G19,$U$13,J19),\"emptyTuple\")","v":"Mapped"}]
[null,6,{"$f":"Import!E2161","v":0},{"$f":"Import!E2186","v":0},{"$f":"Import!E2211","v":0},{"$f":"Import!E2236","v":0},{"$f":"Import!E2261","v":0},null,null,{"$f":"Import!E2286","v":0},null,null,null,null,null,null,null,null,null,null,null,{"$f":"IF(OR(C20<>\"\",D20<>\"\",E20<>\"\",F20<>\"\",G20<>\"\",J20<>\"\"),XBRLMapTuple($P$12,P$6,P$7,\"BMA\",CONFIGURATION!$B$1,\"bscr\",\"\",CONFIGURATION!$B$12,$P$13,C20,$Q$13,D20,$R$13,E20,$S$13,F20,$T$13,G20,$U$13,J20),\"emptyTuple\")","v":"Mapped"}]
[null,7,{"$f":"Import!E2162","v":0},{"$f":"Import!E2187","v":0},{"$f":"Import!E2212","v":0},{"$f":"Import!E2237","v":0},{"$f":"Import!E2262","v":0},null,null,{"$f":"Import!E2287","v":0},null,null,null,null,null,null,null,null,null,null,null,{"$f":"IF(OR(C21<>\"\",D21<>\"\",E21<>\"\",F21<>\"\",G21<>\"\",J21<>\"\"),XBRLMapTuple($P$12,P$6,P$7,\"BMA\",CONFIGURATION!$B$1,\"bscr\",\"\",CONFIGURATION!$B$12,$P$13,C21,$Q$13,D21,$R$13,E21,$S$13,F21,$T$13,G21,$U$13,J21),\"emptyTuple\")","v":"Mapped"}]
[null,8,{"$f":"Import!E2163","v":0},{"$f":"Import!E2188","v":0},{"$f":"Import!E2213","v":0},{"$f":"Import!E2238","v":0},{"$f":"Import!E2263","v":0},null,null,{"$f":"Import!E2288","v":0},null,null,null,null,null,null,null,null,null,null,null,{"$f":"IF(OR(C22<>\"\",D22<>\"\",E22<>\"\",F22<>\"\",G22<>\"\",J22<>\"\"),XBRLMapTuple($P$12,P$6,P$7,\"BMA\",CONFIGURATION!$B$1,\"bscr\",\"\",CONFIGURATION!$B$12,$P$13,C22,$Q$13,D22,$R$13,E22,$S$13,F22,$T$13,G22,$U$13,J22),\"emptyTuple\")","v":"Mapped"}]
[null,9,{"$f":"Import!E2164","v":0},{"$f":"Import!E2189","v":0},{"$f":"Import!E2214","v":0},{"$f":"Import!E2239","v":0},{"$f":"Import!E2264","v":0},null,null,{"$f":"Import!E2289","v":0},null,null,null,null,null,null,null,null,null,null,null,{"$f":"IF(OR(C23<>\"\",D23<>\"\",E23<>\"\",F23<>\"\",G23<>\"\",J23<>\"\"),XBRLMapTuple($P$12,P$6,P$7,\"BMA\",CONFIGURATION!$B$1,\"bscr\",\"\",CONFIGURATION!$B$12,$P$13,C23,$Q$13,D23,$R$13,E23,$S$13,F23,$T$13,G23,$U$13,J23),\"emptyTuple\")","v":"Mapped"}]
[null,10,{"$f":"Import!E2165","v":0},{"$f":"Import!E2190","v":0},{"$f":"Import!E2215","v":0},{"$f":"Import!E2240","v":0},{"$f":"Import!E2265","v":0},null,null,{"$f":"Import!E2290","v":0},null,null,null,null,null,null,null,null,null,null,null,{"$f":"IF(OR(C24<>\"\",D24<>\"\",E24<>\"\",F24<>\"\",G24<>\"\",J24<>\"\"),XBRLMapTuple($P$12,P$6,P$7,\"BMA\",CONFIGURATION!$B$1,\"bscr\",\"\",CONFIGURATION!$B$12,$P$13,C24,$Q$13,D24,$R$13,E24,$S$13,F24,$T$13,G24,$U$13,J24),\"emptyTuple\")","v":"Mapped"}]
[null,11,{"$f":"Import!E2166","v":0},{"$f":"Import!E2191","v":0},{"$f":"Import!E2216","v":0},{"$f":"Import!E2241","v":0},{"$f":"Import!E2266","v":0},null,null,{"$f":"Import!E2291","v":0},null,null,null,null,null,null,null,null,null,null,null,{"$f":"IF(OR(C25<>\"\",D25<>\"\",E25<>\"\",F25<>\"\",G25<>\"\",J25<>\"\"),XBRLMapTuple($P$12,P$6,P$7,\"BMA\",CONFIGURATION!$B$1,\"bscr\",\"\",CONFIGURATION!$B$12,$P$13,C25,$Q$13,D25,$R$13,E25,$S$13,F25,$T$13,G25,$U$13,J25),\"emptyTuple\")","v":"Mapped"}]
[null,12,{"$f":"Import!E2167","v":0},{"$f":"Import!E2192","v":0},{"$f":"Import!E2217","v":0},{"$f":"Import!E2242","v":0},{"$f":"Import!E2267","v":0},null,null,{"$f":"Import!E2292","v":0},null,null,null,null,null,null,null,null,null,null,null,{"$f":"IF(OR(C26<>\"\",D26<>\"\",E26<>\"\",F26<>\"\",G26<>\"\",J26<>\"\"),XBRLMapTuple($P$12,P$6,P$7,\"BMA\",CONFIGURATION!$B$1,\"bscr\",\"\",CONFIGURATION!$B$12,$P$13,C26,$Q$13,D26,$R$13,E26,$S$13,F26,$T$13,G26,$U$13,J26),\"emptyTuple\")","v":"Mapped"}]
[null,13,{"$f":"Import!E2168","v":0},{"$f":"Import!E2193","v":0},{"$f":"Import!E2218","v":0},{"$f":"Import!E2243","v":0},{"$f":"Import!E2268","v":0},null,null,{"$f":"Import!E2293","v":0},null,null,null,null,null,null,null,null,null,null,null,{"$f":"IF(OR(C27<>\"\",D27<>\"\",E27<>\"\",F27<>\"\",G27<>\"\",J27<>\"\"),XBRLMapTuple($P$12,P$6,P$7,\"BMA\",CONFIGURATION!$B$1,\"bscr\",\"\",CONFIGURATION!$B$12,$P$13,C27,$Q$13,D27,$R$13,E27,$S$13,F27,$T$13,G27,$U$13,J27),\"emptyTuple\")","v":"Mapped"}]
[null,14,{"$f":"Import!E2169","v":0},{"$f":"Import!E2194","v":0},{"$f":"Import!E2219","v":0},{"$f":"Import!E2244","v":0},{"$f":"Import!E2269","v":0},null,null,{"$f":"Import!E2294","v":0},null,null,null,null,null,null,null,null,null,null,null,{"$f":"IF(OR(C28<>\"\",D28<>\"\",E28<>\"\",F28<>\"\",G28<>\"\",J28<>\"\"),XBRLMapTuple($P$12,P$6,P$7,\"BMA\",CONFIGURATION!$B$1,\"bscr\",\"\",CONFIGURATION!$B$12,$P$13,C28,$Q$13,D28,$R$13,E28,$S$13,F28,$T$13,G28,$U$13,J28),\"emptyTuple\")","v":"Mapped"}]
[null,15,{"$f":"Import!E2170","v":0},{"$f":"Import!E2195","v":0},{"$f":"Import!E2220","v":0},{"$f":"Import!E2245","v":0},{"$f":"Import!E2270","v":0},null,null,{"$f":"Import!E2295","v":0},null,null,null,null,null,null,null,null,null,null,null,{"$f":"IF(OR(C29<>\"\",D29<>\"\",E29<>\"\",F29<>\"\",G29<>\"\",J29<>\"\"),XBRLMapTuple($P$12,P$6,P$7,\"BMA\",CONFIGURATION!$B$1,\"bscr\",\"\",CONFIGURATION!$B$12,$P$13,C29,$Q$13,D29,$R$13,E29,$S$13,F29,$T$13,G29,$U$13,J29),\"emptyTuple\")","v":"Mapped"}]
[null,16,{"$f":"Import!E2171","v":0},{"$f":"Import!E2196","v":0},{"$f":"Import!E2221","v":0},{"$f":"Import!E2246","v":0},{"$f":"Import!E2271","v":0},null,null,{"$f":"Import!E2296","v":0},null,null,null,null,null,null,null,null,null,null,null,{"$f":"IF(OR(C30<>\"\",D30<>\"\",E30<>\"\",F30<>\"\",G30<>\"\",J30<>\"\"),XBRLMapTuple($P$12,P$6,P$7,\"BMA\",CONFIGURATION!$B$1,\"bscr\",\"\",CONFIGURATION!$B$12,$P$13,C30,$Q$13,D30,$R$13,E30,$S$13,F30,$T$13,G30,$U$13,J30),\"emptyTuple\")","v":"Mapped"}]
[null,17,{"$f":"Import!E2172","v":0},{"$f":"Import!E2197","v":0},{"$f":"Import!E2222","v":0},{"$f":"Import!E2247","v":0},{"$f":"Import!E2272","v":0},null,null,{"$f":"Import!E2297","v":0},null,null,null,null,null,null,null,null,null,null,null,{"$f":"IF(OR(C31<>\"\",D31<>\"\",E31<>\"\",F31<>\"\",G31<>\"\",J31<>\"\"),XBRLMapTuple($P$12,P$6,P$7,\"BMA\",CONFIGURATION!$B$1,\"bscr\",\"\",CONFIGURATION!$B$12,$P$13,C31,$Q$13,D31,$R$13,E31,$S$13,F31,$T$13,G31,$U$13,J31),\"emptyTuple\")","v":"Mapped"}]
[null,18,{"$f":"Import!E2173","v":0},{"$f":"Import!E2198","v":0},{"$f":"Import!E2223","v":0},{"$f":"Import!E2248","v":0},{"$f":"Import!E2273","v":0},null,null,{"$f":"Import!E2298","v":0},null,null,null,null,null,null,null,null,null,null,null,{"$f":"IF(OR(C32<>\"\",D32<>\"\",E32<>\"\",F32<>\"\",G32<>\"\",J32<>\"\"),XBRLMapTuple($P$12,P$6,P$7,\"BMA\",CONFIGURATION!$B$1,\"bscr\",\"\",CONFIGURATION!$B$12,$P$13,C32,$Q$13,D32,$R$13,E32,$S$13,F32,$T$13,G32,$U$13,J32),\"emptyTuple\")","v":"Mapped"}]
[null,19,{"$f":"Import!E2174","v":0},{"$f":"Import!E2199","v":0},{"$f":"Import!E2224","v":0},{"$f":"Import!E2249","v":0},{"$f":"Import!E2274","v":0},null,null,{"$f":"Import!E2299","v":0},null,null,null,null,null,null,null,null,null,null,null,{"$f":"IF(OR(C33<>\"\",D33<>\"\",E33<>\"\",F33<>\"\",G33<>\"\",J33<>\"\"),XBRLMapTuple($P$12,P$6,P$7,\"BMA\",CONFIGURATION!$B$1,\"bscr\",\"\",CONFIGURATION!$B$12,$P$13,C33,$Q$13,D33,$R$13,E33,$S$13,F33,$T$13,G33,$U$13,J33),\"emptyTuple\")","v":"Mapped"}]
[null,20,{"$f":"Import!E2175","v":0},{"$f":"Import!E2200","v":0},{"$f":"Import!E2225","v":0},{"$f":"Import!E2250","v":0},{"$f":"Import!E2275","v":0},null,null,{"$f":"Import!E2300","v":0},null,null,null,null,null,null,null,null,null,null,null,{"$f":"IF(OR(C34<>\"\",D34<>\"\",E34<>\"\",F34<>\"\",G34<>\"\",J34<>\"\"),XBRLMapTuple($P$12,P$6,P$7,\"BMA\",CONFIGURATION!$B$1,\"bscr\",\"\",CONFIGURATION!$B$12,$P$13,C34,$Q$13,D34,$R$13,E34,$S$13,F34,$T$13,G34,$U$13,J34),\"emptyTuple\")","v":"Mapped"}]
[null,21,{"$f":"Import!E2176","v":0},{"$f":"Import!E2201","v":0},{"$f":"Import!E2226","v":0},{"$f":"Import!E2251","v":0},{"$f":"Import!E2276","v":0},null,null,{"$f":"Import!E2301","v":0},null,null,null,null,null,null,null,null,null,null,null,{"$f":"IF(OR(C35<>\"\",D35<>\"\",E35<>\"\",F35<>\"\",G35<>\"\",J35<>\"\"),XBRLMapTuple($P$12,P$6,P$7,\"BMA\",CONFIGURATION!$B$1,\"bscr\",\"\",CONFIGURATION!$B$12,$P$13,C35,$Q$13,D35,$R$13,E35,$S$13,F35,$T$13,G35,$U$13,J35),\"emptyTuple\")","v":"Mapped"}]
[null,22,{"$f":"Import!E2177","v":0},{"$f":"Import!E2202","v":0},{"$f":"Import!E2227","v":0},{"$f":"Import!E2252","v":0},{"$f":"Import!E2277","v":0},null,null,{"$f":"Import!E2302","v":0},null,null,null,null,null,null,null,null,null,null,null,{"$f":"IF(OR(C36<>\"\",D36<>\"\",E36<>\"\",F36<>\"\",G36<>\"\",J36<>\"\"),XBRLMapTuple($P$12,P$6,P$7,\"BMA\",CONFIGURATION!$B$1,\"bscr\",\"\",CONFIGURATION!$B$12,$P$13,C36,$Q$13,D36,$R$13,E36,$S$13,F36,$T$13,G36,$U$13,J36),\"emptyTuple\")","v":"Mapped"}]
[null,23,{"$f":"Import!E2178","v":0},{"$f":"Import!E2203","v":0},{"$f":"Import!E2228","v":0},{"$f":"Import!E2253","v":0},{"$f":"Import!E2278","v":0},null,null,{"$f":"Import!E2303","v":0},null,null,null,null,null,null,null,null,null,null,null,{"$f":"IF(OR(C37<>\"\",D37<>\"\",E37<>\"\",F37<>\"\",G37<>\"\",J37<>\"\"),XBRLMapTuple($P$12,P$6,P$7,\"BMA\",CONFIGURATION!$B$1,\"bscr\",\"\",CONFIGURATION!$B$12,$P$13,C37,$Q$13,D37,$R$13,E37,$S$13,F37,$T$13,G37,$U$13,J37),\"emptyTuple\")","v":"Mapped"}]
[null,24,{"$f":"Import!E2179","v":0},{"$f":"Import!E2204","v":0},{"$f":"Import!E2229","v":0},{"$f":"Import!E2254","v":0},{"$f":"Import!E2279","v":0},null,null,{"$f":"Import!E2304","v":0},null,null,null,null,null,null,null,null,null,null,null,{"$f":"IF(OR(C38<>\"\",D38<>\"\",E38<>\"\",F38<>\"\",G38<>\"\",J38<>\"\"),XBRLMapTuple($P$12,P$6,P$7,\"BMA\",CONFIGURATION!$B$1,\"bscr\",\"\",CONFIGURATION!$B$12,$P$13,C38,$Q$13,D38,$R$13,E38,$S$13,F38,$T$13,G38,$U$13,J38),\"emptyTuple\")","v":"Mapped"}]
[null,25,{"$f":"Import!E2180","v":0},{"$f":"Import!E2205","v":0},{"$f":"Import!E2230","v":0},{"$f":"Import!E2255","v":0},{"$f":"Import!E2280","v":0},null,null,{"$f":"Import!E2305","v":0},null,null,null,null,null,null,null,null,null,null,null,{"$f":"IF(OR(C39<>\"\",D39<>\"\",E39<>\"\",F39<>\"\",G39<>\"\",J39<>\"\"),XBRLMapTuple($P$12,P$6,P$7,\"BMA\",CONFIGURATION!$B$1,\"bscr\",\"\",CONFIGURATION!$B$12,$P$13,C39,$Q$13,D39,$R$13,E39,$S$13,F39,$T$13,G39,$U$13,J39),\"emptyTuple\")","v":"Mapped"}]
[]
[null,2,"Details of all intra-group reinsurance and retrocession arrangements —"]
[null,null,"Enter Number of Intra-Group (Re)insurance Arrangements",null,null,null,{"$f":"IF(E43>25,\"Please group arrangements with the same cedent and assuming parties together. Only 25 arrangements can be populated below. Additional arrangements must be provided as an attachment.\",\"\")","v":""}]
[null,null,"Enter information for each arrangement",null,{"$f":"Import!E2306","v":0}]
[]
[null,null,"Counterparties Involved",null,null,null,null,null,"Aggregated values of the exposure limits",null,"Aggregated premium flows",null,null,null,null,null,null,"brrt_DetailsOfAllIntragroupReinsuranceAndRetrocessionArrangements"]
[null,null,null,null,null,null,null,null,null,null,null,null,null,null,null,null,null,"brrt_CounterpartiesInvolvedAssumingPartyName","brrt_CounterpartiesInvolvedAssumingPartyJurisdiction","brrt_CounterpartiesInvolvedCedingPartyName","brrt_CounterpartiesInvolvedCedingPartyJurisdiction","brrt_AggregatedGrossValuesOfExposureLimits","brrt_AggregatedNetValuesOfExposureLimits","brrt_AggregatedGrossPremiumFlows","brrt_AggregatedNetPremiumFlows"]
[null,null,"Assuming party ","Jurisdiction","Rating","Ceding party","Jurisdiction","Rating","Gross","Net","Gross","Net"]
[null,1,{"$f":"Import!E2307","v":0},{"$f":"Import!E2332","v":0},{"$f":"Import!E2357","v":0},{"$f":"Import!E2382","v":0},{"$f":"Import!E2407","v":0},{"$f":"Import!E2432","v":0},{"$f":"Import!E2457","v":0},{"$f":"Import!E2482","v":0},{"$f":"Import!E2507","v":0},{"$f":"Import!E2532","v":0},null,null,null,null,null,null,null,null,null,null,null,{"$f":"IF(OR(C48<>\"\",E48<>\"\",F48<>\"\",H48<>\"\",I48<>\"\",J48<>\"\",K48<>\"\",L48<>\"\"),XBRLMapTuple($R$45,P$6,P$7,\"BMA\",CONFIGURATION!$B$1,\"bscr\",\"\",CONFIGURATION!$B$12,$R$46,C48,$S$46,E48,$T$46,F48,$U$46,H48,$V$46,I48,$W$46,I91,$X$46,K48,$Y$46,K91),\"emptyTuple\")","v":"Mapped"}]
[null,2,{"$f":"Import!E2308","v":0},{"$f":"Import!E2333","v":0},{"$f":"Import!E2358","v":0},{"$f":"Import!E2383","v":0},{"$f":"Import!E2408","v":0},{"$f":"Import!E2433","v":0},{"$f":"Import!E2458","v":0},{"$f":"Import!E2483","v":0},{"$f":"Import!E2508","v":0},{"$f":"Import!E2533","v":0},null,null,null,null,null,null,null,null,null,null,null,{"$f":"IF(OR(C49<>\"\",E49<>\"\",F49<>\"\",H49<>\"\",I49<>\"\",J49<>\"\",K49<>\"\",L49<>\"\"),XBRLMapTuple($R$45,P$6,P$7,\"BMA\",CONFIGURATION!$B$1,\"bscr\",\"\",CONFIGURATION!$B$12,$R$46,C49,$S$46,E49,$T$46,F49,$U$46,H49,$V$46,I49,$W$46,I92,$X$46,K49,$Y$46,K92),\"emptyTuple\")","v":"Mapped"}]
[null,3,{"$f":"Import!E2309","v":0},{"$f":"Import!E2334","v":0},{"$f":"Import!E2359","v":0},{"$f":"Import!E2384","v":0},{"$f":"Import!E2409","v":0},{"$f":"Import!E2434","v":0},{"$f":"Import!E2459","v":0},{"$f":"Import!E2484","v":0},{"$f":"Import!E2509","v":0},{"$f":"Import!E2534","v":0},null,null,null,null,null,null,null,null,null,null,null,{"$f":"IF(OR(C50<>\"\",E50<>\"\",F50<>\"\",H50<>\"\",I50<>\"\",J50<>\"\",K50<>\"\",L50<>\"\"),XBRLMapTuple($R$45,P$6,P$7,\"BMA\",CONFIGURATION!$B$1,\"bscr\",\"\",CONFIGURATION!$B$12,$R$46,C50,$S$46,E50,$T$46,F50,$U$46,H50,$V$46,I50,$W$46,I93,$X$46,K50,$Y$46,K93),\"emptyTuple\")","v":"Mapped"}]
[null,4,{"$f":"Import!E2310","v":0},{"$f":"Import!E2335","v":0},{"$f":"Import!E2360","v":0},{"$f":"Import!E2385","v":0},{"$f":"Import!E2410","v":0},{"$f":"Import!E2435","v":0},{"$f":"Import!E2460","v":0},{"$f":"Import!E2485","v":0},{"$f":"Import!E2510","v":0},{"$f":"Import!E2535","v":0},null,null,null,null,null,null,null,null,null,null,null,{"$f":"IF(OR(C51<>\"\",E51<>\"\",F51<>\"\",H51<>\"\",I51<>\"\",J51<>\"\",K51<>\"\",L51<>\"\"),XBRLMapTuple($R$45,P$6,P$7,\"BMA\",CONFIGURATION!$B$1,\"bscr\",\"\",CONFIGURATION!$B$12,$R$46,C51,$S$46,E51,$T$46,F51,$U$46,H51,$V$46,I51,$W$46,I94,$X$46,K51,$Y$46,K94),\"emptyTuple\")","v":"Mapped"}]
[null,5,{"$f":"Import!E2311","v":0},{"$f":"Import!E2336","v":0},{"$f":"Import!E2361","v":0},{"$f":"Import!E2386","v":0},{"$f":"Import!E2411","v":0},{"$f":"Import!E2436","v":0},{"$f":"Import!E2461","v":0},{"$f":"Import!E2486","v":0},{"$f":"Import!E2511","v":0},{"$f":"Import!E2536","v":0},null,null,null,null,null,null,null,null,null,null,null,{"$f":"IF(OR(C52<>\"\",E52<>\"\",F52<>\"\",H52<>\"\",I52<>\"\",J52<>\"\",K52<>\"\",L52<>\"\"),XBRLMapTuple($R$45,P$6,P$7,\"BMA\",CONFIGURATION!$B$1,\"bscr\",\"\",CONFIGURATION!$B$12,$R$46,C52,$S$46,E52,$T$46,F52,$U$46,H52,$V$46,I52,$W$46,I95,$X$46,K52,$Y$46,K95),\"emptyTuple\")","v":"Mapped"}]
[null,6,{"$f":"Import!E2312","v":0},{"$f":"Import!E2337","v":0},{"$f":"Import!E2362","v":0},{"$f":"Import!E2387","v":0},{"$f":"Import!E2412","v":0},{"$f":"Import!E2437","v":0},{"$f":"Import!E2462","v":0},{"$f":"Import!E2487","v":0},{"$f":"Import!E2512","v":0},{"$f":"Import!E2537","v":0},null,null,null,null,null,null,null,null,null,null,null,{"$f":"IF(OR(C53<>\"\",E53<>\"\",F53<>\"\",H53<>\"\",I53<>\"\",J53<>\"\",K53<>\"\",L53<>\"\"),XBRLMapTuple($R$45,P$6,P$7,\"BMA\",CONFIGURATION!$B$1,\"bscr\",\"\",CONFIGURATION!$B$12,$R$46,C53,$S$46,E53,$T$46,F53,$U$46,H53,$V$46,I53,$W$46,I96,$X$46,K53,$Y$46,K96),\"emptyTuple\")","v":"Mapped"}]
[null,7,{"$f":"Import!E2313","v":0},{"$f":"Import!E2338","v":0},{"$f":"Import!E2363","v":0},{"$f":"Import!E2388","v":0},{"$f":"Import!E2413","v":0},{"$f":"Import!E2438","v":0},{"$f":"Import!E2463","v":0},{"$f":"Import!E2488","v":0},{"$f":"Import!E2513","v":0},{"$f":"Import!E2538","v":0},null,null,null,null,null,null,null,null,null,null,null,{"$f":"IF(OR(C54<>\"\",E54<>\"\",F54<>\"\",H54<>\"\",I54<>\"\",J54<>\"\",K54<>\"\",L54<>\"\"),XBRLMapTuple($R$45,P$6,P$7,\"BMA\",CONFIGURATION!$B$1,\"bscr\",\"\",CONFIGURATION!$B$12,$R$46,C54,$S$46,E54,$T$46,F54,$U$46,H54,$V$46,I54,$W$46,I97,$X$46,K54,$Y$46,K97),\"emptyTuple\")","v":"Mapped"}]
[null,8,{"$f":"Import!E2314","v":0},{"$f":"Import!E2339","v":0},{"$f":"Import!E2364","v":0},{"$f":"Import!E2389","v":0},{"$f":"Import!E2414","v":0},{"$f":"Import!E2439","v":0},{"$f":"Import!E2464","v":0},{"$f":"Import!E2489","v":0},{"$f":"Import!E2514","v":0},{"$f":"Import!E2539","v":0},null,null,null,null,null,null,null,null,null,null,null,{"$f":"IF(OR(C55<>\"\",E55<>\"\",F55<>\"\",H55<>\"\",I55<>\"\",J55<>\"\",K55<>\"\",L55<>\"\"),XBRLMapTuple($R$45,P$6,P$7,\"BMA\",CONFIGURATION!$B$1,\"bscr\",\"\",CONFIGURATION!$B$12,$R$46,C55,$S$46,E55,$T$46,F55,$U$46,H55,$V$46,I55,$W$46,I98,$X$46,K55,$Y$46,K98),\"emptyTuple\")","v":"Mapped"}]
[null,9,{"$f":"Import!E2315","v":0},{"$f":"Import!E2340","v":0},{"$f":"Import!E2365","v":0},{"$f":"Import!E2390","v":0},{"$f":"Import!E2415","v":0},{"$f":"Import!E2440","v":0},{"$f":"Import!E2465","v":0},{"$f":"Import!E2490","v":0},{"$f":"Import!E2515","v":0},{"$f":"Import!E2540","v":0},null,null,null,null,null,null,null,null,null,null,null,{"$f":"IF(OR(C56<>\"\",E56<>\"\",F56<>\"\",H56<>\"\",I56<>\"\",J56<>\"\",K56<>\"\",L56<>\"\"),XBRLMapTuple($R$45,P$6,P$7,\"BMA\",CONFIGURATION!$B$1,\"bscr\",\"\",CONFIGURATION!$B$12,$R$46,C56,$S$46,E56,$T$46,F56,$U$46,H56,$V$46,I56,$W$46,I99,$X$46,K56,$Y$46,K99),\"emptyTuple\")","v":"Mapped"}]
[null,10,{"$f":"Import!E2316","v":0},{"$f":"Import!E2341","v":0},{"$f":"Import!E2366","v":0},{"$f":"Import!E2391","v":0},{"$f":"Import!E2416","v":0},{"$f":"Import!E2441","v":0},{"$f":"Import!E2466","v":0},{"$f":"Import!E2491","v":0},{"$f":"Import!E2516","v":0},{"$f":"Import!E2541","v":0},null,null,null,null,null,null,null,null,null,null,null,{"$f":"IF(OR(C57<>\"\",E57<>\"\",F57<>\"\",H57<>\"\",I57<>\"\",J57<>\"\",K57<>\"\",L57<>\"\"),XBRLMapTuple($R$45,P$6,P$7,\"BMA\",CONFIGURATION!$B$1,\"bscr\",\"\",CONFIGURATION!$B$12,$R$46,C57,$S$46,E57,$T$46,F57,$U$46,H57,$V$46,I57,$W$46,I100,$X$46,K57,$Y$46,K100),\"emptyTuple\")","v":"Mapped"}]
[null,11,{"$f":"Import!E2317","v":0},{"$f":"Import!E2342","v":0},{"$f":"Import!E2367","v":0},{"$f":"Import!E2392","v":0},{"$f":"Import!E2417","v":0},{"$f":"Import!E2442","v":0},{"$f":"Import!E2467","v":0},{"$f":"Import!E2492","v":0},{"$f":"Import!E2517","v":0},{"$f":"Import!E2542","v":0},null,null,null,null,null,null,null,null,null,null,null,{"$f":"IF(OR(C58<>\"\",E58<>\"\",F58<>\"\",H58<>\"\",I58<>\"\",J58<>\"\",K58<>\"\",L58<>\"\"),XBRLMapTuple($R$45,P$6,P$7,\"BMA\",CONFIGURATION!$B$1,\"bscr\",\"\",CONFIGURATION!$B$12,$R$46,C58,$S$46,E58,$T$46,F58,$U$46,H58,$V$46,I58,$W$46,I101,$X$46,K58,$Y$46,K101),\"emptyTuple\")","v":"Mapped"}]
[null,12,{"$f":"Import!E2318","v":0},{"$f":"Import!E2343","v":0},{"$f":"Import!E2368","v":0},{"$f":"Import!E2393","v":0},{"$f":"Import!E2418","v":0},{"$f":"Import!E2443","v":0},{"$f":"Import!E2468","v":0},{"$f":"Import!E2493","v":0},{"$f":"Import!E2518","v":0},{"$f":"Import!E2543","v":0},null,null,null,null,null,null,null,null,null,null,null,{"$f":"IF(OR(C59<>\"\",E59<>\"\",F59<>\"\",H59<>\"\",I59<>\"\",J59<>\"\",K59<>\"\",L59<>\"\"),XBRLMapTuple($R$45,P$6,P$7,\"BMA\",CONFIGURATION!$B$1,\"bscr\",\"\",CONFIGURATION!$B$12,$R$46,C59,$S$46,E59,$T$46,F59,$U$46,H59,$V$46,I59,$W$46,I102,$X$46,K59,$Y$46,K102),\"emptyTuple\")","v":"Mapped"}]
[null,13,{"$f":"Import!E2319","v":0},{"$f":"Import!E2344","v":0},{"$f":"Import!E2369","v":0},{"$f":"Import!E2394","v":0},{"$f":"Import!E2419","v":0},{"$f":"Import!E2444","v":0},{"$f":"Import!E2469","v":0},{"$f":"Import!E2494","v":0},{"$f":"Import!E2519","v":0},{"$f":"Import!E2544","v":0},null,null,null,null,null,null,null,null,null,null,null,{"$f":"IF(OR(C60<>\"\",E60<>\"\",F60<>\"\",H60<>\"\",I60<>\"\",J60<>\"\",K60<>\"\",L60<>\"\"),XBRLMapTuple($R$45,P$6,P$7,\"BMA\",CONFIGURATION!$B$1,\"bscr\",\"\",CONFIGURATION!$B$12,$R$46,C60,$S$46,E60,$T$46,F60,$U$46,H60,$V$46,I60,$W$46,I103,$X$46,K60,$Y$46,K103),\"emptyTuple\")","v":"Mapped"}]
[null,14,{"$f":"Import!E2320","v":0},{"$f":"Import!E2345","v":0},{"$f":"Import!E2370","v":0},{"$f":"Import!E2395","v":0},{"$f":"Import!E2420","v":0},{"$f":"Import!E2445","v":0},{"$f":"Import!E2470","v":0},{"$f":"Import!E2495","v":0},{"$f":"Import!E2520","v":0},{"$f":"Import!E2545","v":0},null,null,null,null,null,null,null,null,null,null,null,{"$f":"IF(OR(C61<>\"\",E61<>\"\",F61<>\"\",H61<>\"\",I61<>\"\",J61<>\"\",K61<>\"\",L61<>\"\"),XBRLMapTuple($R$45,P$6,P$7,\"BMA\",CONFIGURATION!$B$1,\"bscr\",\"\",CONFIGURATION!$B$12,$R$46,C61,$S$46,E61,$T$46,F61,$U$46,H61,$V$46,I61,$W$46,I104,$X$46,K61,$Y$46,K104),\"emptyTuple\")","v":"Mapped"}]
[null,15,{"$f":"Import!E2321","v":0},{"$f":"Import!E2346","v":0},{"$f":"Import!E2371","v":0},{"$f":"Import!E2396","v":0},{"$f":"Import!E2421","v":0},{"$f":"Import!E2446","v":0},{"$f":"Import!E2471","v":0},{"$f":"Import!E2496","v":0},{"$f":"Import!E2521","v":0},{"$f":"Import!E2546","v":0},null,null,null,null,null,null,null,null,null,null,null,{"$f":"IF(OR(C62<>\"\",E62<>\"\",F62<>\"\",H62<>\"\",I62<>\"\",J62<>\"\",K62<>\"\",L62<>\"\"),XBRLMapTuple($R$45,P$6,P$7,\"BMA\",CONFIGURATION!$B$1,\"bscr\",\"\",CONFIGURATION!$B$12,$R$46,C62,$S$46,E62,$T$46,F62,$U$46,H62,$V$46,I62,$W$46,I105,$X$46,K62,$Y$46,K105),\"emptyTuple\")","v":"Mapped"}]
[null,16,{"$f":"Import!E2322","v":0},{"$f":"Import!E2347","v":0},{"$f":"Import!E2372","v":0},{"$f":"Import!E2397","v":0},{"$f":"Import!E2422","v":0},{"$f":"Import!E2447","v":0},{"$f":"Import!E2472","v":0},{"$f":"Import!E2497","v":0},{"$f":"Import!E2522","v":0},{"$f":"Import!E2547","v":0},null,null,null,null,null,null,null,null,null,null,null,{"$f":"IF(OR(C63<>\"\",E63<>\"\",F63<>\"\",H63<>\"\",I63<>\"\",J63<>\"\",K63<>\"\",L63<>\"\"),XBRLMapTuple($R$45,P$6,P$7,\"BMA\",CONFIGURATION!$B$1,\"bscr\",\"\",CONFIGURATION!$B$12,$R$46,C63,$S$46,E63,$T$46,F63,$U$46,H63,$V$46,I63,$W$46,I106,$X$46,K63,$Y$46,K106),\"emptyTuple\")","v":"Mapped"}]
[null,17,{"$f":"Import!E2323","v":0},{"$f":"Import!E2348","v":0},{"$f":"Import!E2373","v":0},{"$f":"Import!E2398","v":0},{"$f":"Import!E2423","v":0},{"$f":"Import!E2448","v":0},{"$f":"Import!E2473","v":0},{"$f":"Import!E2498","v":0},{"$f":"Import!E2523","v":0},{"$f":"Import!E2548","v":0},null,null,null,null,null,null,null,null,null,null,null,{"$f":"IF(OR(C64<>\"\",E64<>\"\",F64<>\"\",H64<>\"\",I64<>\"\",J64<>\"\",K64<>\"\",L64<>\"\"),XBRLMapTuple($R$45,P$6,P$7,\"BMA\",CONFIGURATION!$B$1,\"bscr\",\"\",CONFIGURATION!$B$12,$R$46,C64,$S$46,E64,$T$46,F64,$U$46,H64,$V$46,I64,$W$46,I107,$X$46,K64,$Y$46,K107),\"emptyTuple\")","v":"Mapped"}]
[null,18,{"$f":"Import!E2324","v":0},{"$f":"Import!E2349","v":0},{"$f":"Import!E2374","v":0},{"$f":"Import!E2399","v":0},{"$f":"Import!E2424","v":0},{"$f":"Import!E2449","v":0},{"$f":"Import!E2474","v":0},{"$f":"Import!E2499","v":0},{"$f":"Import!E2524","v":0},{"$f":"Import!E2549","v":0},null,null,null,null,null,null,null,null,null,null,null,{"$f":"IF(OR(C65<>\"\",E65<>\"\",F65<>\"\",H65<>\"\",I65<>\"\",J65<>\"\",K65<>\"\",L65<>\"\"),XBRLMapTuple($R$45,P$6,P$7,\"BMA\",CONFIGURATION!$B$1,\"bscr\",\"\",CONFIGURATION!$B$12,$R$46,C65,$S$46,E65,$T$46,F65,$U$46,H65,$V$46,I65,$W$46,I108,$X$46,K65,$Y$46,K108),\"emptyTuple\")","v":"Mapped"}]
[null,19,{"$f":"Import!E2325","v":0},{"$f":"Import!E2350","v":0},{"$f":"Import!E2375","v":0},{"$f":"Import!E2400","v":0},{"$f":"Import!E2425","v":0},{"$f":"Import!E2450","v":0},{"$f":"Import!E2475","v":0},{"$f":"Import!E2500","v":0},{"$f":"Import!E2525","v":0},{"$f":"Import!E2550","v":0},null,null,null,null,null,null,null,null,null,null,null,{"$f":"IF(OR(C66<>\"\",E66<>\"\",F66<>\"\",H66<>\"\",I66<>\"\",J66<>\"\",K66<>\"\",L66<>\"\"),XBRLMapTuple($R$45,P$6,P$7,\"BMA\",CONFIGURATION!$B$1,\"bscr\",\"\",CONFIGURATION!$B$12,$R$46,C66,$S$46,E66,$T$46,F66,$U$46,H66,$V$46,I66,$W$46,I109,$X$46,K66,$Y$46,K109),\"emptyTuple\")","v":"Mapped"}]
[null,20,{"$f":"Import!E2326","v":0},{"$f":"Import!E2351","v":0},{"$f":"Import!E2376","v":0},{"$f":"Import!E2401","v":0},{"$f":"Import!E2426","v":0},{"$f":"Import!E2451","v":0},{"$f":"Import!E2476","v":0},{"$f":"Import!E2501","v":0},{"$f":"Import!E2526","v":0},{"$f":"Import!E2551","v":0},null,null,null,null,null,null,null,null,null,null,null,{"$f":"IF(OR(C67<>\"\",E67<>\"\",F67<>\"\",H67<>\"\",I67<>\"\",J67<>\"\",K67<>\"\",L67<>\"\"),XBRLMapTuple($R$45,P$6,P$7,\"BMA\",CONFIGURATION!$B$1,\"bscr\",\"\",CONFIGURATION!$B$12,$R$46,C67,$S$46,E67,$T$46,F67,$U$46,H67,$V$46,I67,$W$46,I110,$X$46,K67,$Y$46,K110),\"emptyTuple\")","v":"Mapped"}]
[null,21,{"$f":"Import!E2327","v":0},{"$f":"Import!E2352","v":0},{"$f":"Import!E2377","v":0},{"$f":"Import!E2402","v":0},{"$f":"Import!E2427","v":0},{"$f":"Import!E2452","v":0},{"$f":"Import!E2477","v":0},{"$f":"Import!E2502","v":0},{"$f":"Import!E2527","v":0},{"$f":"Import!E2552","v":0},null,null,null,null,null,null,null,null,null,null,null,{"$f":"IF(OR(C68<>\"\",E68<>\"\",F68<>\"\",H68<>\"\",I68<>\"\",J68<>\"\",K68<>\"\",L68<>\"\"),XBRLMapTuple($R$45,P$6,P$7,\"BMA\",CONFIGURATION!$B$1,\"bscr\",\"\",CONFIGURATION!$B$12,$R$46,C68,$S$46,E68,$T$46,F68,$U$46,H68,$V$46,I68,$W$46,I111,$X$46,K68,$Y$46,K111),\"emptyTuple\")","v":"Mapped"}]
[null,22,{"$f":"Import!E2328","v":0},{"$f":"Import!E2353","v":0},{"$f":"Import!E2378","v":0},{"$f":"Import!E2403","v":0},{"$f":"Import!E2428","v":0},{"$f":"Import!E2453","v":0},{"$f":"Import!E2478","v":0},{"$f":"Import!E2503","v":0},{"$f":"Import!E2528","v":0},{"$f":"Import!E2553","v":0},null,null,null,null,null,null,null,null,null,null,null,{"$f":"IF(OR(C69<>\"\",E69<>\"\",F69<>\"\",H69<>\"\",I69<>\"\",J69<>\"\",K69<>\"\",L69<>\"\"),XBRLMapTuple($R$45,P$6,P$7,\"BMA\",CONFIGURATION!$B$1,\"bscr\",\"\",CONFIGURATION!$B$12,$R$46,C69,$S$46,E69,$T$46,F69,$U$46,H69,$V$46,I69,$W$46,I112,$X$46,K69,$Y$46,K112),\"emptyTuple\")","v":"Mapped"}]
[null,23,{"$f":"Import!E2329","v":0},{"$f":"Import!E2354","v":0},{"$f":"Import!E2379","v":0},{"$f":"Import!E2404","v":0},{"$f":"Import!E2429","v":0},{"$f":"Import!E2454","v":0},{"$f":"Import!E2479","v":0},{"$f":"Import!E2504","v":0},{"$f":"Import!E2529","v":0},{"$f":"Import!E2554","v":0},null,null,null,null,null,null,null,null,null,null,null,{"$f":"IF(OR(C70<>\"\",E70<>\"\",F70<>\"\",H70<>\"\",I70<>\"\",J70<>\"\",K70<>\"\",L70<>\"\"),XBRLMapTuple($R$45,P$6,P$7,\"BMA\",CONFIGURATION!$B$1,\"bscr\",\"\",CONFIGURATION!$B$12,$R$46,C70,$S$46,E70,$T$46,F70,$U$46,H70,$V$46,I70,$W$46,I113,$X$46,K70,$Y$46,K113),\"emptyTuple\")","v":"Mapped"}]
[null,24,{"$f":"Import!E2330","v":0},{"$f":"Import!E2355","v":0},{"$f":"Import!E2380","v":0},{"$f":"Import!E2405","v":0},{"$f":"Import!E2430","v":0},{"$f":"Import!E2455","v":0},{"$f":"Import!E2480","v":0},{"$f":"Import!E2505","v":0},{"$f":"Import!E2530","v":0},{"$f":"Import!E2555","v":0},null,null,null,null,null,null,null,null,null,null,null,{"$f":"IF(OR(C71<>\"\",E71<>\"\",F71<>\"\",H71<>\"\",I71<>\"\",J71<>\"\",K71<>\"\",L71<>\"\"),XBRLMapTuple($R$45,P$6,P$7,\"BMA\",CONFIGURATION!$B$1,\"bscr\",\"\",CONFIGURATION!$B$12,$R$46,C71,$S$46,E71,$T$46,F71,$U$46,H71,$V$46,I71,$W$46,I114,$X$46,K71,$Y$46,K114),\"emptyTuple\")","v":"Mapped"}]
[null,25,{"$f":"Import!E2331","v":0},{"$f":"Import!E2356","v":0},{"$f":"Import!E2381","v":0},{"$f":"Import!E2406","v":0},{"$f":"Import!E2431","v":0},{"$f":"Import!E2456","v":0},{"$f":"Import!E2481","v":0},{"$f":"Import!E2506","v":0},{"$f":"Import!E2531","v":0},{"$f":"Import!E2556","v":0},null,null,null,null,null,null,null,null,null,null,null,{"$f":"IF(OR(C72<>\"\",E72<>\"\",F72<>\"\",H72<>\"\",I72<>\"\",J72<>\"\",K72<>\"\",L72<>\"\"),XBRLMapTuple($R$45,P$6,P$7,\"BMA\",CONFIGURATION!$B$1,\"bscr\",\"\",CONFIGURATION!$B$12,$R$46,C72,$S$46,E72,$T$46,F72,$U$46,H72,$V$46,I72,$W$46,I115,$X$46,K72,$Y$46,K115),\"emptyTuple\")","v":"Mapped"}]
[]
[null,3,"The proportion of the insurer's insurance business covered by internal reinsurance, retrocession and other risk transfer arrangements-(in percentage)",null,null,null,null,null,null,null,null,{"$f":"Import!E2557","v":0},null,null,null,null,null,"brrt_ProportionOfInsurerInsuranceBusinessCoveredByInternalReinsuranceRetrocessionAndOtherRiskTransferArrangementsInPercentage",null,null,null,null,null,{"$f":"XBRLMap(L74,$R74,$P$6,$P$7,CONFIGURATION!$B$10,\"BMA\",CONFIGURATION!$B$1,\"bscr\",CONFIGURATION!$B$12)","v":"Mapped"}]
[]
[null,{"$f":"IF('Company Information'!$F$11=\"Class 3A\",1,4)","v":4},"Ten largest exposures to unaffiliated counterparties and any other unaffiliated counterparty exposures or series of linked unaffiliated"]
[null,null," counterparty  exposures exceeding 10% of the insurer's  statutory capital and surplus —"]
[null,null,"Enter Number of Material Counterparty Exposures"]
[null,null,"Enter information for each exposure",null,{"$f":"Import!E2558","v":0}]
[]
[null,null,"Name of Counterparty",null,null,null,"Jurisdiction","Exposure Values ",null,"Transaction Type",null,null,null,null,null,null,"brrt_DetailsOfMaterialCounterpartyExposures"]
[null,null,null,null,null,null,null,"(Face Value or Market Value)",null,null,null,null,null,null,null,null,"brrt_NameOfCounterparty","brrt_JurisdictionOfCounterparty","brrt_ExposureValuesFaceValue","brrt_ExposureValuesMarketValue","brrt_TransactionType"]
[null,1,{"$f":"Import!E2559","v":0},null,null,null,{"$f":"Import!E2599","v":0},{"$f":"Import!E2639","v":0},{"$f":"Import!E2679","v":0},{"$f":"Import!E2719","v":0},null,null,null,null,null,null,null,null,null,null,null,null,{"$f":"IF(OR(C83<>\"\",G83<>\"\",H83<>\"\",I83<>\"\",J83<>\"\"),XBRLMapTuple($Q$81,P$6,P$7,\"BMA\",CONFIGURATION!$B$1,\"bscr\",\"\",CONFIGURATION!$B$12,$Q$82,C83,$R$82,G83,$S$82,H83,$T$82,I83,$U$82,J83),\"emptyTuple\")","v":"Mapped"}]
[null,2,{"$f":"Import!E2560","v":0},null,null,null,{"$f":"Import!E2600","v":0},{"$f":"Import!E2640","v":0},{"$f":"Import!E2680","v":0},{"$f":"Import!E2720","v":0},null,null,null,null,null,null,null,null,null,null,null,null,{"$f":"IF(OR(C84<>\"\",G84<>\"\",H84<>\"\",I84<>\"\",J84<>\"\"),XBRLMapTuple($Q$81,P$6,P$7,\"BMA\",CONFIGURATION!$B$1,\"bscr\",\"\",CONFIGURATION!$B$12,$Q$82,C84,$R$82,G84,$S$82,H84,$T$82,I84,$U$82,J84),\"emptyTuple\")","v":"Mapped"}]
[null,3,{"$f":"Import!E2561","v":0},null,null,null,{"$f":"Import!E2601","v":0},{"$f":"Import!E2641","v":0},{"$f":"Import!E2681","v":0},{"$f":"Import!E2721","v":0},null,null,null,null,null,null,null,null,null,null,null,null,{"$f":"IF(OR(C85<>\"\",G85<>\"\",H85<>\"\",I85<>\"\",J85<>\"\"),XBRLMapTuple($Q$81,P$6,P$7,\"BMA\",CONFIGURATION!$B$1,\"bscr\",\"\",CONFIGURATION!$B$12,$Q$82,C85,$R$82,G85,$S$82,H85,$T$82,I85,$U$82,J85),\"emptyTuple\")","v":"Mapped"}]
[null,4,{"$f":"Import!E2562","v":0},null,null,null,{"$f":"Import!E2602","v":0},{"$f":"Import!E2642","v":0},{"$f":"Import!E2682","v":0},{"$f":"Import!E2722","v":0},null,null,null,null,null,null,null,null,null,null,null,null,{"$f":"IF(OR(C86<>\"\",G86<>\"\",H86<>\"\",I86<>\"\",J86<>\"\"),XBRLMapTuple($Q$81,P$6,P$7,\"BMA\",CONFIGURATION!$B$1,\"bscr\",\"\",CONFIGURATION!$B$12,$Q$82,C86,$R$82,G86,$S$82,H86,$T$82,I86,$U$82,J86),\"emptyTuple\")","v":"Mapped"}]
[null,5,{"$f":"Import!E2563","v":0},null,null,null,{"$f":"Import!E2603","v":0},{"$f":"Import!E2643","v":0},{"$f":"Import!E2683","v":0},{"$f":"Import!E2723","v":0},null,null,null,null,null,null,null,null,null,null,null,null,{"$f":"IF(OR(C87<>\"\",G87<>\"\",H87<>\"\",I87<>\"\",J87<>\"\"),XBRLMapTuple($Q$81,P$6,P$7,\"BMA\",CONFIGURATION!$B$1,\"bscr\",\"\",CONFIGURATION!$B$12,$Q$82,C87,$R$82,G87,$S$82,H87,$T$82,I87,$U$82,J87),\"emptyTuple\")","v":"Mapped"}]
[null,6,{"$f":"Import!E2564","v":0},null,null,null,{"$f":"Import!E2604","v":0},{"$f":"Import!E2644","v":0},{"$f":"Import!E2684","v":0},{"$f":"Import!E2724","v":0},null,null,null,null,null,null,null,null,null,null,null,null,{"$f":"IF(OR(C88<>\"\",G88<>\"\",H88<>\"\",I88<>\"\",J88<>\"\"),XBRLMapTuple($Q$81,P$6,P$7,\"BMA\",CONFIGURATION!$B$1,\"bscr\",\"\",CONFIGURATION!$B$12,$Q$82,C88,$R$82,G88,$S$82,H88,$T$82,I88,$U$82,J88),\"emptyTuple\")","v":"Mapped"}]
[null,7,{"$f":"Import!E2565","v":0},null,null,null,{"$f":"Import!E2605","v":0},{"$f":"Import!E2645","v":0},{"$f":"Import!E2685","v":0},{"$f":"Import!E2725","v":0},null,null,null,null,null,null,null,null,null,null,null,null,{"$f":"IF(OR(C89<>\"\",G89<>\"\",H89<>\"\",I89<>\"\",J89<>\"\"),XBRLMapTuple($Q$81,P$6,P$7,\"BMA\",CONFIGURATION!$B$1,\"bscr\",\"\",CONFIGURATION!$B$12,$Q$82,C89,$R$82,G89,$S$82,H89,$T$82,I89,$U$82,J89),\"emptyTuple\")","v":"Mapped"}]
[null,8,{"$f":"Import!E2566","v":0},null,null,null,{"$f":"Import!E2606","v":0},{"$f":"Import!E2646","v":0},{"$f":"Import!E2686","v":0},{"$f":"Import!E2726","v":0},null,null,null,null,null,null,null,null,null,null,null,null,{"$f":"IF(OR(C90<>\"\",G90<>\"\",H90<>\"\",I90<>\"\",J90<>\"\"),XBRLMapTuple($Q$81,P$6,P$7,\"BMA\",CONFIGURATION!$B$1,\"bscr\",\"\",CONFIGURATION!$B$12,$Q$82,C90,$R$82,G90,$S$82,H90,$T$82,I90,$U$82,J90),\"emptyTuple\")","v":"Mapped"}]
[null,9,{"$f":"Import!E2567","v":0},null,null,null,{"$f":"Import!E2607","v":0},{"$f":"Import!E2647","v":0},{"$f":"Import!E2687","v":0},{"$f":"Import!E2727","v":0},null,null,null,null,null,null,null,null,null,null,null,null,{"$f":"IF(OR(C91<>\"\",G91<>\"\",H91<>\"\",I91<>\"\",J91<>\"\"),XBRLMapTuple($Q$81,P$6,P$7,\"BMA\",CONFIGURATION!$B$1,\"bscr\",\"\",CONFIGURATION!$B$12,$Q$82,C91,$R$82,G91,$S$82,H91,$T$82,I91,$U$82,J91),\"emptyTuple\")","v":"Mapped"}]
[null,10,{"$f":"Import!E2568","v":0},null,null,null,{"$f":"Import!E2608","v":0},{"$f":"Import!E2648","v":0},{"$f":"Import!E2688","v":0},{"$f":"Import!E2728","v":0},null,null,null,null,null,null,null,null,null,null,null,null,{"$f":"IF(OR(C92<>\"\",G92<>\"\",H92<>\"\",I92<>\"\",J92<>\"\"),XBRLMapTuple($Q$81,P$6,P$7,\"BMA\",CONFIGURATION!$B$1,\"bscr\",\"\",CONFIGURATION!$B$12,$Q$82,C92,$R$82,G92,$S$82,H92,$T$82,I92,$U$82,J92),\"emptyTuple\")","v":"Mapped"}]
[null,11,{"$f":"Import!E2569","v":0},null,null,null,{"$f":"Import!E2609","v":0},{"$f":"Import!E2649","v":0},{"$f":"Import!E2689","v":0},{"$f":"Import!E2729","v":0},null,null,null,null,null,null,null,null,null,null,null,null,{"$f":"IF(OR(C93<>\"\",G93<>\"\",H93<>\"\",I93<>\"\",J93<>\"\"),XBRLMapTuple($Q$81,P$6,P$7,\"BMA\",CONFIGURATION!$B$1,\"bscr\",\"\",CONFIGURATION!$B$12,$Q$82,C93,$R$82,G93,$S$82,H93,$T$82,I93,$U$82,J93),\"emptyTuple\")","v":"Mapped"}]
[null,12,{"$f":"Import!E2570","v":0},null,null,null,{"$f":"Import!E2610","v":0},{"$f":"Import!E2650","v":0},{"$f":"Import!E2690","v":0},{"$f":"Import!E2730","v":0},null,null,null,null,null,null,null,null,null,null,null,null,{"$f":"IF(OR(C94<>\"\",G94<>\"\",H94<>\"\",I94<>\"\",J94<>\"\"),XBRLMapTuple($Q$81,P$6,P$7,\"BMA\",CONFIGURATION!$B$1,\"bscr\",\"\",CONFIGURATION!$B$12,$Q$82,C94,$R$82,G94,$S$82,H94,$T$82,I94,$U$82,J94),\"emptyTuple\")","v":"Mapped"}]
[null,13,{"$f":"Import!E2571","v":0},null,null,null,{"$f":"Import!E2611","v":0},{"$f":"Import!E2651","v":0},{"$f":"Import!E2691","v":0},{"$f":"Import!E2731","v":0},null,null,null,null,null,null,null,null,null,null,null,null,{"$f":"IF(OR(C95<>\"\",G95<>\"\",H95<>\"\",I95<>\"\",J95<>\"\"),XBRLMapTuple($Q$81,P$6,P$7,\"BMA\",CONFIGURATION!$B$1,\"bscr\",\"\",CONFIGURATION!$B$12,$Q$82,C95,$R$82,G95,$S$82,H95,$T$82,I95,$U$82,J95),\"emptyTuple\")","v":"Mapped"}]
[null,14,{"$f":"Import!E2572","v":0},null,null,null,{"$f":"Import!E2612","v":0},{"$f":"Import!E2652","v":0},{"$f":"Import!E2692","v":0},{"$f":"Import!E2732","v":0},null,null,null,null,null,null,null,null,null,null,null,null,{"$f":"IF(OR(C96<>\"\",G96<>\"\",H96<>\"\",I96<>\"\",J96<>\"\"),XBRLMapTuple($Q$81,P$6,P$7,\"BMA\",CONFIGURATION!$B$1,\"bscr\",\"\",CONFIGURATION!$B$12,$Q$82,C96,$R$82,G96,$S$82,H96,$T$82,I96,$U$82,J96),\"emptyTuple\")","v":"Mapped"}]
[null,15,{"$f":"Import!E2573","v":0},null,null,null,{"$f":"Import!E2613","v":0},{"$f":"Import!E2653","v":0},{"$f":"Import!E2693","v":0},{"$f":"Import!E2733","v":0},null,null,null,null,null,null,null,null,null,null,null,null,{"$f":"IF(OR(C97<>\"\",G97<>\"\",H97<>\"\",I97<>\"\",J97<>\"\"),XBRLMapTuple($Q$81,P$6,P$7,\"BMA\",CONFIGURATION!$B$1,\"bscr\",\"\",CONFIGURATION!$B$12,$Q$82,C97,$R$82,G97,$S$82,H97,$T$82,I97,$U$82,J97),\"emptyTuple\")","v":"Mapped"}]
[null,16,{"$f":"Import!E2574","v":0},null,null,null,{"$f":"Import!E2614","v":0},{"$f":"Import!E2654","v":0},{"$f":"Import!E2694","v":0},{"$f":"Import!E2734","v":0},null,null,null,null,null,null,null,null,null,null,null,null,{"$f":"IF(OR(C98<>\"\",G98<>\"\",H98<>\"\",I98<>\"\",J98<>\"\"),XBRLMapTuple($Q$81,P$6,P$7,\"BMA\",CONFIGURATION!$B$1,\"bscr\",\"\",CONFIGURATION!$B$12,$Q$82,C98,$R$82,G98,$S$82,H98,$T$82,I98,$U$82,J98),\"emptyTuple\")","v":"Mapped"}]
[null,17,{"$f":"Import!E2575","v":0},null,null,null,{"$f":"Import!E2615","v":0},{"$f":"Import!E2655","v":0},{"$f":"Import!E2695","v":0},{"$f":"Import!E2735","v":0},null,null,null,null,null,null,null,null,null,null,null,null,{"$f":"IF(OR(C99<>\"\",G99<>\"\",H99<>\"\",I99<>\"\",J99<>\"\"),XBRLMapTuple($Q$81,P$6,P$7,\"BMA\",CONFIGURATION!$B$1,\"bscr\",\"\",CONFIGURATION!$B$12,$Q$82,C99,$R$82,G99,$S$82,H99,$T$82,I99,$U$82,J99),\"emptyTuple\")","v":"Mapped"}]
[null,18,{"$f":"Import!E2576","v":0},null,null,null,{"$f":"Import!E2616","v":0},{"$f":"Import!E2656","v":0},{"$f":"Import!E2696","v":0},{"$f":"Import!E2736","v":0},null,null,null,null,null,null,null,null,null,null,null,null,{"$f":"IF(OR(C100<>\"\",G100<>\"\",H100<>\"\",I100<>\"\",J100<>\"\"),XBRLMapTuple($Q$81,P$6,P$7,\"BMA\",CONFIGURATION!$B$1,\"bscr\",\"\",CONFIGURATION!$B$12,$Q$82,C100,$R$82,G100,$S$82,H100,$T$82,I100,$U$82,J100),\"emptyTuple\")","v":"Mapped"}]
[null,19,{"$f":"Import!E2577","v":0},null,null,null,{"$f":"Import!E2617","v":0},{"$f":"Import!E2657","v":0},{"$f":"Import!E2697","v":0},{"$f":"Import!E2737","v":0},null,null,null,null,null,null,null,null,null,null,null,null,{"$f":"IF(OR(C101<>\"\",G101<>\"\",H101<>\"\",I101<>\"\",J101<>\"\"),XBRLMapTuple($Q$81,P$6,P$7,\"BMA\",CONFIGURATION!$B$1,\"bscr\",\"\",CONFIGURATION!$B$12,$Q$82,C101,$R$82,G101,$S$82,H101,$T$82,I101,$U$82,J101),\"emptyTuple\")","v":"Mapped"}]
[null,20,{"$f":"Import!E2578","v":0},null,null,null,{"$f":"Import!E2618","v":0},{"$f":"Import!E2658","v":0},{"$f":"Import!E2698","v":0},{"$f":"Import!E2738","v":0},null,null,null,null,null,null,null,null,null,null,null,null,{"$f":"IF(OR(C102<>\"\",G102<>\"\",H102<>\"\",I102<>\"\",J102<>\"\"),XBRLMapTuple($Q$81,P$6,P$7,\"BMA\",CONFIGURATION!$B$1,\"bscr\",\"\",CONFIGURATION!$B$12,$Q$82,C102,$R$82,G102,$S$82,H102,$T$82,I102,$U$82,J102),\"emptyTuple\")","v":"Mapped"}]
[null,21,{"$f":"Import!E2579","v":0},null,null,null,{"$f":"Import!E2619","v":0},{"$f":"Import!E2659","v":0},{"$f":"Import!E2699","v":0},{"$f":"Import!E2739","v":0},null,null,null,null,null,null,null,null,null,null,null,null,{"$f":"IF(OR(C103<>\"\",G103<>\"\",H103<>\"\",I103<>\"\",J103<>\"\"),XBRLMapTuple($Q$81,P$6,P$7,\"BMA\",CONFIGURATION!$B$1,\"bscr\",\"\",CONFIGURATION!$B$12,$Q$82,C103,$R$82,G103,$S$82,H103,$T$82,I103,$U$82,J103),\"emptyTuple\")","v":"Mapped"}]
[null,22,{"$f":"Import!E2580","v":0},null,null,null,{"$f":"Import!E2620","v":0},{"$f":"Import!E2660","v":0},{"$f":"Import!E2700","v":0},{"$f":"Import!E2740","v":0},null,null,null,null,null,null,null,null,null,null,null,null,{"$f":"IF(OR(C104<>\"\",G104<>\"\",H104<>\"\",I104<>\"\",J104<>\"\"),XBRLMapTuple($Q$81,P$6,P$7,\"BMA\",CONFIGURATION!$B$1,\"bscr\",\"\",CONFIGURATION!$B$12,$Q$82,C104,$R$82,G104,$S$82,H104,$T$82,I104,$U$82,J104),\"emptyTuple\")","v":"Mapped"}]
[null,23,{"$f":"Import!E2581","v":0},null,null,null,{"$f":"Import!E2621","v":0},{"$f":"Import!E2661","v":0},{"$f":"Import!E2701","v":0},{"$f":"Import!E2741","v":0},null,null,null,null,null,null,null,null,null,null,null,null,{"$f":"IF(OR(C105<>\"\",G105<>\"\",H105<>\"\",I105<>\"\",J105<>\"\"),XBRLMapTuple($Q$81,P$6,P$7,\"BMA\",CONFIGURATION!$B$1,\"bscr\",\"\",CONFIGURATION!$B$12,$Q$82,C105,$R$82,G105,$S$82,H105,$T$82,I105,$U$82,J105),\"emptyTuple\")","v":"Mapped"}]
[null,24,{"$f":"Import!E2582","v":0},null,null,null,{"$f":"Import!E2622","v":0},{"$f":"Import!E2662","v":0},{"$f":"Import!E2702","v":0},{"$f":"Import!E2742","v":0},null,null,null,null,null,null,null,null,null,null,null,null,{"$f":"IF(OR(C106<>\"\",G106<>\"\",H106<>\"\",I106<>\"\",J106<>\"\"),XBRLMapTuple($Q$81,P$6,P$7,\"BMA\",CONFIGURATION!$B$1,\"bscr\",\"\",CONFIGURATION!$B$12,$Q$82,C106,$R$82,G106,$S$82,H106,$T$82,I106,$U$82,J106),\"emptyTuple\")","v":"Mapped"}]
[null,25,{"$f":"Import!E2583","v":0},null,null,null,{"$f":"Import!E2623","v":0},{"$f":"Import!E2663","v":0},{"$f":"Import!E2703","v":0},{"$f":"Import!E2743","v":0},null,null,null,null,null,null,null,null,null,null,null,null,{"$f":"IF(OR(C107<>\"\",G107<>\"\",H107<>\"\",I107<>\"\",J107<>\"\"),XBRLMapTuple($Q$81,P$6,P$7,\"BMA\",CONFIGURATION!$B$1,\"bscr\",\"\",CONFIGURATION!$B$12,$Q$82,C107,$R$82,G107,$S$82,H107,$T$82,I107,$U$82,J107),\"emptyTuple\")","v":"Mapped"}]
[null,26,{"$f":"Import!E2584","v":0},null,null,null,{"$f":"Import!E2624","v":0},{"$f":"Import!E2664","v":0},{"$f":"Import!E2704","v":0},{"$f":"Import!E2744","v":0},null,null,null,null,null,null,null,null,null,null,null,null,{"$f":"IF(OR(C108<>\"\",G108<>\"\",H108<>\"\",I108<>\"\",J108<>\"\"),XBRLMapTuple($Q$81,P$6,P$7,\"BMA\",CONFIGURATION!$B$1,\"bscr\",\"\",CONFIGURATION!$B$12,$Q$82,C108,$R$82,G108,$S$82,H108,$T$82,I108,$U$82,J108),\"emptyTuple\")","v":"Mapped"}]
[null,27,{"$f":"Import!E2585","v":0},null,null,null,{"$f":"Import!E2625","v":0},{"$f":"Import!E2665","v":0},{"$f":"Import!E2705","v":0},{"$f":"Import!E2745","v":0},null,null,null,null,null,null,null,null,null,null,null,null,{"$f":"IF(OR(C109<>\"\",G109<>\"\",H109<>\"\",I109<>\"\",J109<>\"\"),XBRLMapTuple($Q$81,P$6,P$7,\"BMA\",CONFIGURATION!$B$1,\"bscr\",\"\",CONFIGURATION!$B$12,$Q$82,C109,$R$82,G109,$S$82,H109,$T$82,I109,$U$82,J109),\"emptyTuple\")","v":"Mapped"}]
[null,28,{"$f":"Import!E2586","v":0},null,null,null,{"$f":"Import!E2626","v":0},{"$f":"Import!E2666","v":0},{"$f":"Import!E2706","v":0},{"$f":"Import!E2746","v":0},null,null,null,null,null,null,null,null,null,null,null,null,{"$f":"IF(OR(C110<>\"\",G110<>\"\",H110<>\"\",I110<>\"\",J110<>\"\"),XBRLMapTuple($Q$81,P$6,P$7,\"BMA\",CONFIGURATION!$B$1,\"bscr\",\"\",CONFIGURATION!$B$12,$Q$82,C110,$R$82,G110,$S$82,H110,$T$82,I110,$U$82,J110),\"emptyTuple\")","v":"Mapped"}]
[null,29,{"$f":"Import!E2587","v":0},null,null,null,{"$f":"Import!E2627","v":0},{"$f":"Import!E2667","v":0},{"$f":"Import!E2707","v":0},{"$f":"Import!E2747","v":0},null,null,null,null,null,null,null,null,null,null,null,null,{"$f":"IF(OR(C111<>\"\",G111<>\"\",H111<>\"\",I111<>\"\",J111<>\"\"),XBRLMapTuple($Q$81,P$6,P$7,\"BMA\",CONFIGURATION!$B$1,\"bscr\",\"\",CONFIGURATION!$B$12,$Q$82,C111,$R$82,G111,$S$82,H111,$T$82,I111,$U$82,J111),\"emptyTuple\")","v":"Mapped"}]
[null,30,{"$f":"Import!E2588","v":0},null,null,null,{"$f":"Import!E2628","v":0},{"$f":"Import!E2668","v":0},{"$f":"Import!E2708","v":0},{"$f":"Import!E2748","v":0},null,null,null,null,null,null,null,null,null,null,null,null,{"$f":"IF(OR(C112<>\"\",G112<>\"\",H112<>\"\",I112<>\"\",J112<>\"\"),XBRLMapTuple($Q$81,P$6,P$7,\"BMA\",CONFIGURATION!$B$1,\"bscr\",\"\",CONFIGURATION!$B$12,$Q$82,C112,$R$82,G112,$S$82,H112,$T$82,I112,$U$82,J112),\"emptyTuple\")","v":"Mapped"}]
[null,31,{"$f":"Import!E2589","v":0},null,null,null,{"$f":"Import!E2629","v":0},{"$f":"Import!E2669","v":0},{"$f":"Import!E2709","v":0},{"$f":"Import!E2749","v":0},null,null,null,null,null,null,null,null,null,null,null,null,{"$f":"IF(OR(C113<>\"\",G113<>\"\",H113<>\"\",I113<>\"\",J113<>\"\"),XBRLMapTuple($Q$81,P$6,P$7,\"BMA\",CONFIGURATION!$B$1,\"bscr\",\"\",CONFIGURATION!$B$12,$Q$82,C113,$R$82,G113,$S$82,H113,$T$82,I113,$U$82,J113),\"emptyTuple\")","v":"Mapped"}]
[null,32,{"$f":"Import!E2590","v":0},null,null,null,{"$f":"Import!E2630","v":0},{"$f":"Import!E2670","v":0},{"$f":"Import!E2710","v":0},{"$f":"Import!E2750","v":0},null,null,null,null,null,null,null,null,null,null,null,null,{"$f":"IF(OR(C114<>\"\",G114<>\"\",H114<>\"\",I114<>\"\",J114<>\"\"),XBRLMapTuple($Q$81,P$6,P$7,\"BMA\",CONFIGURATION!$B$1,\"bscr\",\"\",CONFIGURATION!$B$12,$Q$82,C114,$R$82,G114,$S$82,H114,$T$82,I114,$U$82,J114),\"emptyTuple\")","v":"Mapped"}]
[null,33,{"$f":"Import!E2591","v":0},null,null,null,{"$f":"Import!E2631","v":0},{"$f":"Import!E2671","v":0},{"$f":"Import!E2711","v":0},{"$f":"Import!E2751","v":0},null,null,null,null,null,null,null,null,null,null,null,null,{"$f":"IF(OR(C115<>\"\",G115<>\"\",H115<>\"\",I115<>\"\",J115<>\"\"),XBRLMapTuple($Q$81,P$6,P$7,\"BMA\",CONFIGURATION!$B$1,\"bscr\",\"\",CONFIGURATION!$B$12,$Q$82,C115,$R$82,G115,$S$82,H115,$T$82,I115,$U$82,J115),\"emptyTuple\")","v":"Mapped"}]
[null,34,{"$f":"Import!E2592","v":0},null,null,null,{"$f":"Import!E2632","v":0},{"$f":"Import!E2672","v":0},{"$f":"Import!E2712","v":0},{"$f":"Import!E2752","v":0},null,null,null,null,null,null,null,null,null,null,null,null,{"$f":"IF(OR(C116<>\"\",G116<>\"\",H116<>\"\",I116<>\"\",J116<>\"\"),XBRLMapTuple($Q$81,P$6,P$7,\"BMA\",CONFIGURATION!$B$1,\"bscr\",\"\",CONFIGURATION!$B$12,$Q$82,C116,$R$82,G116,$S$82,H116,$T$82,I116,$U$82,J116),\"emptyTuple\")","v":"Mapped"}]
[null,35,{"$f":"Import!E2593","v":0},null,null,null,{"$f":"Import!E2633","v":0},{"$f":"Import!E2673","v":0},{"$f":"Import!E2713","v":0},{"$f":"Import!E2753","v":0},null,null,null,null,null,null,null,null,null,null,null,null,{"$f":"IF(OR(C117<>\"\",G117<>\"\",H117<>\"\",I117<>\"\",J117<>\"\"),XBRLMapTuple($Q$81,P$6,P$7,\"BMA\",CONFIGURATION!$B$1,\"bscr\",\"\",CONFIGURATION!$B$12,$Q$82,C117,$R$82,G117,$S$82,H117,$T$82,I117,$U$82,J117),\"emptyTuple\")","v":"Mapped"}]
[null,36,{"$f":"Import!E2594","v":0},null,null,null,{"$f":"Import!E2634","v":0},{"$f":"Import!E2674","v":0},{"$f":"Import!E2714","v":0},{"$f":"Import!E2754","v":0},null,null,null,null,null,null,null,null,null,null,null,null,{"$f":"IF(OR(C118<>\"\",G118<>\"\",H118<>\"\",I118<>\"\",J118<>\"\"),XBRLMapTuple($Q$81,P$6,P$7,\"BMA\",CONFIGURATION!$B$1,\"bscr\",\"\",CONFIGURATION!$B$12,$Q$82,C118,$R$82,G118,$S$82,H118,$T$82,I118,$U$82,J118),\"emptyTuple\")","v":"Mapped"}]
[null,37,{"$f":"Import!E2595","v":0},null,null,null,{"$f":"Import!E2635","v":0},{"$f":"Import!E2675","v":0},{"$f":"Import!E2715","v":0},{"$f":"Import!E2755","v":0},null,null,null,null,null,null,null,null,null,null,null,null,{"$f":"IF(OR(C119<>\"\",G119<>\"\",H119<>\"\",I119<>\"\",J119<>\"\"),XBRLMapTuple($Q$81,P$6,P$7,\"BMA\",CONFIGURATION!$B$1,\"bscr\",\"\",CONFIGURATION!$B$12,$Q$82,C119,$R$82,G119,$S$82,H119,$T$82,I119,$U$82,J119),\"emptyTuple\")","v":"Mapped"}]
[null,38,{"$f":"Import!E2596","v":0},null,null,null,{"$f":"Import!E2636","v":0},{"$f":"Import!E2676","v":0},{"$f":"Import!E2716","v":0},{"$f":"Import!E2756","v":0},null,null,null,null,null,null,null,null,null,null,null,null,{"$f":"IF(OR(C120<>\"\",G120<>\"\",H120<>\"\",I120<>\"\",J120<>\"\"),XBRLMapTuple($Q$81,P$6,P$7,\"BMA\",CONFIGURATION!$B$1,\"bscr\",\"\",CONFIGURATION!$B$12,$Q$82,C120,$R$82,G120,$S$82,H120,$T$82,I120,$U$82,J120),\"emptyTuple\")","v":"Mapped"}]
[null,39,{"$f":"Import!E2597","v":0},null,null,null,{"$f":"Import!E2637","v":0},{"$f":"Import!E2677","v":0},{"$f":"Import!E2717","v":0},{"$f":"Import!E2757","v":0},null,null,null,null,null,null,null,null,null,null,null,null,{"$f":"IF(OR(C121<>\"\",G121<>\"\",H121<>\"\",I121<>\"\",J121<>\"\"),XBRLMapTuple($Q$81,P$6,P$7,\"BMA\",CONFIGURATION!$B$1,\"bscr\",\"\",CONFIGURATION!$B$12,$Q$82,C121,$R$82,G121,$S$82,H121,$T$82,I121,$U$82,J121),\"emptyTuple\")","v":"Mapped"}]
[null,40,{"$f":"Import!E2598","v":0},null,null,null,{"$f":"Import!E2638","v":0},{"$f":"Import!E2678","v":0},{"$f":"Import!E2718","v":0},{"$f":"Import!E2758","v":0},null,null,null,null,null,null,null,null,null,null,null,null,{"$f":"IF(OR(C122<>\"\",G122<>\"\",H122<>\"\",I122<>\"\",J122<>\"\"),XBRLMapTuple($Q$81,P$6,P$7,\"BMA\",CONFIGURATION!$B$1,\"bscr\",\"\",CONFIGURATION!$B$12,$Q$82,C122,$R$82,G122,$S$82,H122,$T$82,I122,$U$82,J122),\"emptyTuple\")","v":"Mapped"}]

{"sheet":"Schedule V(e)","index":42,"n_rows":543,"n_cols":46,"rows_kept":543,"cut":false,"hidden":false,"merged":[[366,2,366,8],[155,1,157,1],[155,2,155,3],[156,2,156,3],[157,2,157,3],[158,1,160,1],[158,2,158,3],[159,2,159,3],[160,2,160,3],[292,1,292,2],[293,1,293,2],[294,1,294,2],[295,1,295,2],[296,1,296,2],[297,1,297,2],[298,1,298,2],[287,8,287,12],[273,8,273,12],[255,12,255,13],[260,5,261,5],[260,8,261,8],[260,11,261,11],[262,5,263,5],[262,8,263,8],[143,1,145,1],[147,4,147,6],[149,1,151,1],[149,2,149,3],[150,5,150,6],[151,5,151,6],[153,1,154,1],[153,5,153,6],[154,5,154,6],[89,3,89,4],[89,5,89,6],[133,1,137,1],[138,1,139,1],[138,5,138,6],[139,5,139,6],[140,1,142,1],[290,1,290,2],[291,1,291,2],[287,1,287,2],[287,3,287,7],[289,1,289,2],[276,1,276,2],[277,1,277,2],[278,1,278,2],[279,1,279,2],[280,1,280,2],[281,1,281,2],[282,1,282,2],[283,1,283,2],[284,1,284,2],[273,1,273,2],[273,3,273,7],[275,1,275,2],[287,13,287,17],[288,3,289,3],[288,4,288,5],[288,6,288,7],[288,8,289,8],[288,9,288,10],[288,11,288,12],[288,13,289,13],[288,14,288,15],[288,16,288,17],[273,13,273,17],[274,3,275,3],[274,4,274,5],[274,6,274,7],[274,8,275,8],[274,9,274,10],[274,11,274,12],[274,13,275,13],[274,14,274,15],[274,16,274,17],[255,15,255,16],[258,14,259,14],[260,14,261,14],[262,14,263,14],[269,12,269,13],[258,17,259,17],[260,17,261,17],[262,17,263,17],[269,15,269,16],[262,11,263,11],[263,1,263,2],[269,3,269,4],[269,6,269,7],[269,9,269,10],[255,3,255,4],[255,6,255,7],[255,9,255,10],[258,1,258,2],[258,5,259,5],[258,8,259,8],[258,11,259,11],[259,1,259,2],[257,1,257,2],[513,3,513,4],[489,3,489,4],[511,3,511,4],[514,3,514,4],[515,3,515,4],[482,3,482,4],[504,3,504,4],[506,3,506,4],[507,3,507,4],[496,3,496,4],[505,3,505,4],[508,3,508,4],[500,3,500,4],[497,3,497,4],[495,3,495,4],[488,3,488,4],[487,3,487,4],[491,3,491,4],[484,3,484,4],[485,3,485,4],[483,3,483,4],[486,3,486,4],[3,11,3,14],[191,1,191,2],[518,3,518,4],[510,3,510,4],[509,3,509,4],[503,3,503,4],[80,1,80,2],[198,1,198,2],[492,3,492,4],[501,3,501,4],[502,3,502,4],[175,1,175,2],[175,3,175,4],[493,3,493,4],[494,3,494,4],[481,3,481,4],[164,1,168,11],[174,3,174,4],[199,1,199,2],[201,1,201,2],[478,3,478,4],[490,3,490,4],[516,3,516,4],[512,3,512,4],[541,3,541,4],[535,3,535,4],[536,3,536,4],[537,3,537,4],[538,3,538,4],[517,3,517,4],[527,3,527,4],[520,3,520,4],[519,3,519,4],[539,3,539,4],[540,3,540,4],[533,3,533,4],[534,3,534,4],[522,3,522,4],[523,3,523,4],[526,3,526,4],[532,3,532,4],[531,3,531,4],[525,3,525,4],[530,3,530,4],[524,3,524,4],[529,3,529,4],[528,3,528,4],[480,3,480,4],[210,1,210,2],[210,3,210,4],[211,1,211,2],[211,3,211,4],[343,1,343,2],[303,8,308,9],[309,8,309,9],[477,2,477,4],[218,1,218,2],[224,3,224,4],[221,1,221,2],[222,1,222,2],[212,1,212,2],[217,1,217,2],[238,1,239,2],[238,3,238,4],[238,6,238,7],[238,9,238,10],[241,1,241,2],[241,5,242,5],[241,8,242,8],[252,3,252,4],[252,6,252,7],[479,3,479,4],[341,3,341,4],[338,1,338,2],[339,1,339,2],[338,3,338,4],[339,3,339,4],[349,1,350,16],[352,1,353,16],[303,10,308,10],[336,1,337,2],[336,3,337,8],[326,8,326,9],[327,8,327,9],[303,6,306,7],[398,13,398,15],[395,13,395,15],[405,13,405,15],[417,13,417,15],[416,13,416,15],[377,13,377,15],[394,13,394,15],[385,13,385,15],[374,13,374,15],[375,13,375,15],[36,9,37,9],[36,10,37,10],[173,30,173,31],[174,30,174,31],[175,30,175,31],[176,1,176,2],[185,1,185,2],[202,3,202,4],[200,1,200,2],[176,30,176,31],[177,1,177,2],[179,3,179,4],[178,30,178,31],[198,3,198,4],[189,1,189,2],[189,3,189,4],[178,3,178,4],[185,3,185,4],[186,3,186,4],[192,1,192,2],[179,30,179,31],[178,1,178,2],[188,3,188,4],[190,3,190,4],[1,1,1,3],[20,1,21,3],[46,1,46,3],[13,2,13,3],[2,1,2,4],[11,2,11,3],[12,2,12,3],[77,1,77,2],[18,2,18,3],[15,2,15,3],[16,2,16,3],[17,2,17,3],[14,2,14,3],[26,1,26,2],[25,1,25,2],[28,3,28,4],[227,1,227,4],[201,3,201,4],[220,1,220,2],[103,2,104,2],[105,9,105,10],[106,9,106,10],[107,9,107,10],[36,11,37,11],[28,9,28,10],[30,1,30,2],[31,1,31,2],[32,1,32,2],[33,1,33,2],[34,1,34,2],[36,3,37,3],[36,4,37,4],[36,5,36,6],[36,7,37,7],[103,9,104,10],[79,1,79,2],[78,1,78,2],[82,1,82,4],[28,5,28,6],[28,7,28,8],[86,1,86,2],[87,1,87,2],[91,1,91,2],[94,2,95,2],[108,9,108,10],[109,9,109,10],[187,1,187,2],[223,1,223,2],[225,1,225,2],[225,3,225,4],[224,1,224,2],[196,3,197,9],[196,1,197,2],[219,1,219,2],[191,3,191,4],[200,3,200,4],[199,3,199,4],[192,3,192,4],[204,1,204,4],[209,1,209,2],[209,3,209,4],[202,1,202,2],[206,1,207,2],[208,1,208,2],[234,1,234,2],[235,1,235,2],[36,12,37,12],[36,13,37,13],[40,1,40,7],[41,1,41,7],[42,1,42,7],[43,1,43,7],[36,8,37,8],[75,12,76,14],[190,1,190,2],[188,1,188,2],[177,3,177,4],[179,1,179,2],[176,3,176,4],[173,3,173,4],[174,1,174,2],[162,1,162,2],[170,1,170,4],[183,1,183,2],[187,3,187,4],[186,1,186,2],[85,1,85,2],[214,1,214,2],[194,0,194,3],[208,3,208,4],[206,3,207,9],[212,3,212,4],[343,3,343,4],[344,1,344,2],[344,3,344,4],[332,1,332,4],[342,1,342,2],[342,3,342,4],[319,8,319,9],[320,8,320,9],[321,8,321,9],[322,8,322,9],[323,8,323,9],[324,8,324,9],[325,8,325,9],[340,1,340,2],[340,3,340,4],[341,1,341,2],[328,8,328,9],[329,8,329,9],[330,8,330,9],[331,8,331,9],[110,9,110,10],[112,2,113,2],[121,2,122,2],[131,4,131,6],[131,7,131,9],[145,2,145,3],[133,2,133,3],[134,2,134,3],[135,2,135,3],[136,2,136,3],[137,2,137,3],[140,2,140,3],[141,2,141,3],[142,2,142,3],[144,2,144,3],[240,1,240,2],[376,13,376,15],[378,13,378,15],[379,13,379,15],[310,8,310,9],[311,8,311,9],[312,8,312,9],[313,8,313,9],[314,8,314,9],[315,8,315,9],[316,8,316,9],[317,8,317,9],[318,8,318,9],[241,11,242,11],[242,1,242,2],[243,5,244,5],[243,8,244,8],[243,11,244,11],[245,5,246,5],[245,8,246,8],[245,11,246,11],[246,1,246,2],[252,9,252,10],[255,1,256,2]]}
[null,"SCHEDULE OF RISK MANAGEMENT - STRESS/SCENARIO TESTS",null,null,null,null,null,null,null,null,null,null,null,null,null,null,{"$f":"HYPERLINK(\"#'Index'!A1\",\"Return to Index\")","v":"Return to Index"}]
[null,{"$f":"'Company Information'!C7","v":"Enter Company Name"}]
[null,{"$f":"\"For the year ending \"&TEXT('Company Information'!C3,\"MMMM DD, YYYY\")","v":"For the year ending December 31, 2019"},null,null,null,null,null,null,null,null,null,null,null,null,null,null,"SCHEDULE V(e)"]
[null,{"$f":"\"expressed in\"& IF(CONFIGURATION!$B$12>1,\" ['\"&MID(CONFIGURATION!$B$12,2,LEN(CONFIGURATION!$B$12))&\"s]\",\"\")&\" \"&'Form 1EBS'!C4","v":"expressed in ['000s] United States Dollars"}]
[null,null,null,null,null,"Statutory Assets","Statutory Liabilities","Statutory Capital & Surplus",null,null,null,null,null,null,null,null,null,null,null,null,null,null,null,null,null,null,null,null,null,null,"bma_BmaStressscenarioTestsPrestressscenarioCapitalAndSurplusPosition"]
[null,null,null,null,"Pre-stress/scenario position",{"$f":"IF('Form 1SFS'!M100=0,('Form 1SFS'!E100+'Form 1SFS'!I100),'Form 1SFS'!M100)","v":0},{"$f":"IF('Form 1SFS'!M194=0,('Form 1SFS'!E194+'Form 1SFS'!I194),'Form 1SFS'!M194)","v":0},{"$f":"IF('Form 1SFS'!M198=0,('Form 1SFS'!E198+'Form 1SFS'!I198),'Form 1SFS'!M198)","v":0},null,null,null,null,null,null,null,null,null,null,null,null,null,null,null,null,null,null,null,null,null,null,""]
[]
[null,"Insurer Confirms that Loss Scenarios left blank/omitted, result in no loss exposure"]
[null,null,null,null,null,null,null,null,"Confirm with \"X\""]
[null,"A. FINANCIAL MARKET SCENARIOS",null,null,null,null,null,null,null,null,null,null,null,null,null,null,null,null,null,null,"",null,null,null,null,null,null,null,null,null,"bma_BmaStressscenarioTestsAEconomicScenariosAbstract"]
[null,null,null,null,"Loss","Statutory Assets","Statutory Liabilities","Statutory Capital & Surplus"]
[null,"R1.","40% decline in equity prices",null,{"$f":"IF(SUM(F12:G12)=0,0,($F$6-F12)+(G12-$G$6))","v":0},{"$f":"Import!I2760","v":0},{"$f":"+Import!I2768","v":0},{"$f":"H$6-E12","v":0},null,null,null,null,null,null,null,null,null,null,null,null,"brrt_StressScenarioTestsEconomicAxis_brrt_R1Member",null,null,null,null,null,null,null,null,null,null,"bma_BmaStressscenarioTestsR140PercentDeclineInEquityPrices"]
[null,"R2.","Alternative Investments and Real Estate",null,0,{"$f":"Import!I2761","v":0},{"$f":"+Import!I2769","v":0},0,null,null,null,null,null,null,null,null,null,null,null,null,"brrt_StressScenarioTestsEconomicAxis_brrt_R2Member",null,null,null,null,null,null,null,null,null,null,"bma_BmaStressscenarioTestsR140PercentDeclineInEquityPrices"]
[null,"R3.","Extreme US Yield Curve Widening",null,0,{"$f":"Import!I2762","v":0},{"$f":"+Import!I2770","v":0},0,null,null,null,null,null,null,null,null,null,null,null,null,"brrt_StressScenarioTestsEconomicAxis_brrt_R3Member",null,null,null,null,null,null,null,null,null,null,"bma_BmaStressscenarioTestsCombinedR1AndR2"]
[null,"R4.","Widening of credit spreads ",null,{"$f":"IF(SUM(F15:G15)=0,0,($F$6-F15)+(G15-$G$6))","v":0},{"$f":"Import!I2763","v":0},{"$f":"+Import!I2771","v":0},{"$f":"H$6-E15","v":0},null,null,null,null,null,null,null,null,null,null,null,null,"brrt_StressScenarioTestsEconomicAxis_brrt_R4Member"]
[null,"R5.","Combined R1, R2, R3 and R4.",null,0,{"$f":"Import!I2764","v":0},{"$f":"+Import!I2772","v":0},0,null,null,null,null,null,null,null,null,null,null,null,null,"brrt_StressScenarioTestsEconomicAxis_brrt_CombinedP99Member"]
[null,"R6.","Foreign currency shocks",null,0,{"$f":"Import!I2765","v":0},{"$f":"+Import!I2773","v":0},0,null,null,null,null,null,null,null,null,null,null,null,null,"brrt_StressScenarioTestsEconomicAxis_brrt_ForeignCurrencyShocksMember",null,null,null,null,null,null,null,null,null,null,"bma_BmaStressscenarioTestsBUnderwritingLossScenariosAbstract"]
[null,"R7.","Escalation of sovereign risk ",null,0,{"$f":"Import!I2766","v":0},{"$f":"+Import!I2774","v":0},0,null,null,null,null,null,null,null,null,null,null,null,null,"brrt_StressScenarioTestsEconomicAxis_brrt_EscalationOfEuropeanSovereignRiskMember"]
[null,"R8.","Inflation and Monetary Policy risk",null,{"$f":"IF(SUM(F19:G19)=0,0,($F$6-F19)+(G19-$G$6))","v":0},{"$f":"Import!I2767","v":0},{"$f":"+Import!I2775","v":0},{"$f":"H$6-E19","v":0}]
[]
[null,"Valuation losses on debt securities and loans issued by debtors in each European state —",null,null,"Greece","Italy","Portugal","Ukraine","Argentina","Turkey",null,null,null,null,null,null,null,null,null,null,"brrt_ValuationLossesOnDebtSecuritiesAndLoansIssuedByDebtorsInEachEuropeanState",null,null,null,null,null,null,null,null,"bma_BmaStressscenarioTestsUw2CarolinasHurricane"]
[null,null,null,null,{"$f":"Import!I2776","v":0},{"$f":"Import!I2777","v":0},{"$f":"Import!I2778","v":0},{"$f":"Import!I2779","v":0},{"$f":"Import!I2780","v":0},{"$f":"Import!I2781","v":0},null,null,null,null,null,null,null,null,"brrt_ValuationLossesOnDebtSecuritiesAndLoansIssuedByDebtorsInEachEuropeanStateBelgium","brrt_ValuationLossesOnDebtSecuritiesAndLoansIssuedByDebtorsInEachEuropeanStateFrance","brrt_ValuationLossesOnDebtSecuritiesAndLoansIssuedByDebtorsInEachEuropeanStateGreece","brrt_ValuationLossesOnDebtSecuritiesAndLoansIssuedByDebtorsInEachEuropeanStateIreland","brrt_ValuationLossesOnDebtSecuritiesAndLoansIssuedByDebtorsInEachEuropeanStateItaly","brrt_ValuationLossesOnDebtSecuritiesAndLoansIssuedByDebtorsInEachEuropeanStatePortugal","brrt_ValuationLossesOnDebtSecuritiesAndLoansIssuedByDebtorsInEachEuropeanStateSpain","brrt_ValuationLossesOnDebtSecuritiesAndLoansIssuedByDebtorsInEachEuropeanStateUkraine",null,{"$f":"XBRLMapTuple($U$21,K$427,K$428,\"BMA\",CONFIGURATION!$B$1,\"bscr\",\"\",CONFIGURATION!$B$12,$U$22,E22,$V$22,F22,$W$22,G22,$X$22,H22,$Y$22,I22,$Z$22,J22)","v":"Mapped"},null,"bma_BmaStressscenarioTestsUw3MiamidadeHurricane"]
[]
[null,"B. MORTGAGE INSURANCE"]
[]
[null,"Mortgage Loan Shock 1",null,{"$f":"Import!I2782","v":"Select"},{"$f":"IF(SUM(F26:G26)=0,0,($F$6-F26)+(G26-$G$6))","v":0},{"$f":"Import!I2784","v":0},{"$f":"Import!I2786","v":0},{"$f":"H$6-E26","v":0}]
[null,"Mortgage Loan Shock 2",null,{"$f":"Import!I2783","v":"Select"},{"$f":"IF(SUM(F27:G27)=0,0,($F$6-F27)+(G27-$G$6))","v":0},{"$f":"Import!I2785","v":0},{"$f":"Import!I2787","v":0},{"$f":"H$6-E27","v":0}]
[]
[null,null,null,"Gross Premium",null,"Net Premium",null,"Claims Paid",null,"Loss Reserves"]
[null,null,null,"Related","Unrelated","Related","Unrelated","Related","Unrelated","Gross ","Net "]
[null,"Mortgage Insurance - US",null,{"$f":"Import!I2788","v":0},{"$f":"Import!I2793","v":0},{"$f":"Import!I2798","v":0},{"$f":"Import!I2803","v":0},{"$f":"Import!I2808","v":0},{"$f":"Import!I2813","v":0},{"$f":"Import!I2818","v":0},{"$f":"Import!I2823","v":0}]
[null,"Mortgage Reinsurance - US",null,{"$f":"Import!I2789","v":0},{"$f":"Import!I2794","v":0},{"$f":"Import!I2799","v":0},{"$f":"Import!I2804","v":0},{"$f":"Import!I2809","v":0},{"$f":"Import!I2814","v":0},{"$f":"Import!I2819","v":0},{"$f":"Import!I2824","v":0}]
[null,"Mortgage Insurance - Non-US",null,{"$f":"Import!I2790","v":0},{"$f":"Import!I2795","v":0},{"$f":"Import!I2800","v":0},{"$f":"Import!I2805","v":0},{"$f":"Import!I2810","v":0},{"$f":"Import!I2815","v":0},{"$f":"Import!I2820","v":0},{"$f":"Import!I2825","v":0}]
[null,"Mortgage Reinsurance - Non-US",null,{"$f":"Import!I2791","v":0},{"$f":"Import!I2796","v":0},{"$f":"Import!I2801","v":0},{"$f":"Import!I2806","v":0},{"$f":"Import!I2811","v":0},{"$f":"Import!I2816","v":0},{"$f":"Import!I2821","v":0},{"$f":"Import!I2826","v":0}]
[null,"Total",null,{"$f":"SUM(D31:D34)","v":0},{"$f":"SUM(E31:E34)","v":0},0,0,0,0,0,0]
[]
[null,null,null,"Insurance in Force (IIF)","Risk in Force (RIF)","Capital Held",null,"Risk to MI Capital Ratio","Collateral Posted","# of Policies in Force","Loss Ratio (UW)","Combined Ratio (UW)","Weighted Ave. LTV","Weighted Ave. FICO Score"]
[null,null,null,null,null,"Internal ","Regulatory "]
[null,"Supplemental Disclosures",null,{"$f":"Import!I2828","v":0},{"$f":"Import!I2829","v":0},{"$f":"Import!I2830","v":0},{"$f":"((F35+G35)*0.454)+(K35*0.435)","v":0},{"$f":"IF(G39=0,0,E39/G39)","v":0},{"$f":"Import!I2832","v":0},{"$f":"Import!I2833","v":0},{"$f":"Import!I2834","v":0},{"$f":"Import!I2835","v":0},{"$f":"Import!I2836","v":0},{"$f":"Import!I2837","v":0}]
[]
[null,"1. How do you define your risk appetite for this type of business, in terms metrics, tolerance levels and limits?",null,null,null,null,null,null,{"$f":"HYPERLINK(\"#'Attachments'!G85\",\"Attach file\")","v":"Attach file"}]
[null,"2. What key drivers do your monitor in the risk management and business performance assessment of this LoB?",null,null,null,null,null,null,"Attach file"]
[null,"3. How do you allocate capital to this LoB in terms of methodology and metrics used?",null,null,null,null,null,null,"Attach file"]
[null,"4. How do you calculate the CISSA standalone capital requirement, what methodology and risk factors do you model?",null,null,null,null,null,null,"Attach file"]
[null,null,null,null,null,null,null,null,null,null,null,null,null,null,null,null,null,null,null,null,null,null,null,null,null,null,null,null,null,null,"bma_BmaStressscenarioTestsUe1LosAngelesEarthquake"]
[null,"C. UNDERWRITING LOSS SCENARIOS",null,null,null,"Doc Name","Page Number",null,null,null,null,null,null,null,null,null,null,null,null,null,null,null,null,null,null,null,null,null,null,null,"bma_BmaStressscenarioTestsUe2SanFranciscoEarthquake"]
[null,"Internal model key assumptions and parameters",null,null,{"$f":"HYPERLINK(\"#'Attachments'!G145\",\"Attach file\")","v":"Attach file"}]
[]
[null,null,null,null,null,null,null,null,null,null,null,null,null,null,null,null,null,null,null,null,null,null,null,null,null,null,null,null,null,null,"bma_BmaStressscenarioTestsUe3NewMadridnmRds"]
[null,null,null,"Gross Loss Impact","Statutory Capital & Surplus After Gross Loss","Net Loss After Reinsurance","Catastrophe Mitigation Techniques","Net Loss Impact","Statutory Capital & Surplus","Occurrence Return Period ","Relative Return Period 2","Proprietary/ Vendor Model & Version",null,null,null,null,null,null,"Gross Loss Check","Net Loss Check","Gross Loss and Net Loss Check",null,null,null,null,null,null,null,null,null,null,"bma_BmaStressscenarioTestsUe4NmExtremeStressScenario"]
[null,"UW1. ","Northeast Hurricane",{"$f":"Import!I2838","v":0},{"$f":"$H$6-D51","v":0},{"$f":"Import!I2857","v":0},{"$f":"Import!I2876","v":0},{"$f":"F51-G51","v":0},{"$f":"$H$6-H51","v":0},{"$f":"Import!I2895","v":0},{"$f":"Import!I2913","v":0},{"$f":"Import!I2931","v":0},null,null,null,null,null,null,{"$f":"IF(E51<0,\"Gross Impact - C&S Negative\",\"Gross Impact - Check Ok\")","v":"Gross Impact - Check Ok"},{"$f":"IF(I51<0,\"Net Impact - C&S Negative\",\"Net Impact - Check Ok\")","v":"Net Impact - Check Ok"},{"$f":"IF(H51>D51,\"Net Impact Greater than Gross Impact\",\"Gross to Net Impact - Check Ok\")","v":"Gross to Net Impact - Check Ok"},null,null,null,null,null,null,null,null,null,"bma_BmaStressscenarioTestsIw1EuropeanWindstorm"]
[null,"UW2.","Carolinas Hurricane",{"$f":"Import!I2839","v":0},{"$f":"$H$6-D52","v":0},{"$f":"Import!I2858","v":0},{"$f":"Import!I2877","v":0},{"$f":"F52-G52","v":0},{"$f":"$H$6-H52","v":0},{"$f":"Import!I2896","v":0},{"$f":"Import!I2914","v":0},{"$f":"Import!I2932","v":0},null,null,null,null,null,null,{"$f":"IF(E52<0,\"Gross Impact - C&S Negative\",\"Gross Impact - Check Ok\")","v":"Gross Impact - Check Ok"},"Net Impact - Check Ok","Gross to Net Impact - Check Ok",null,null,null,null,null,null,null,null,null,"bma_BmaStressscenarioTestsIw2JapaneseTyphoon"]
[null,"UW3.","Miami-Dade Hurricane",{"$f":"Import!I2840","v":0},0,{"$f":"Import!I2859","v":0},{"$f":"Import!I2878","v":0},0,0,{"$f":"Import!I2897","v":0},{"$f":"Import!I2915","v":0},{"$f":"Import!I2933","v":0},null,null,null,null,null,null,"Gross Impact - Check Ok","Net Impact - Check Ok","Gross to Net Impact - Check Ok",null,null,null,null,null,null,null,null,null,"bma_BmaStressscenarioTestsIe1JapaneseEarthquake"]
[null,"UW4.","Pinellas Hurricane",{"$f":"Import!I2841","v":0},0,{"$f":"Import!I2860","v":0},{"$f":"Import!I2879","v":0},0,0,{"$f":"Import!I2898","v":0},{"$f":"Import!I2916","v":0},{"$f":"Import!I2934","v":0},null,null,null,null,null,null,"Gross Impact - Check Ok","Net Impact - Check Ok","Gross to Net Impact - Check Ok",null,null,null,null,null,null,null,null,null,"bma_BmaStressscenarioTestsA1AerospaceAviationEvent"]
[null,"UW5.","Gulf Windstorm (onshore)",{"$f":"Import!I2842","v":0},0,{"$f":"Import!I2861","v":0},{"$f":"Import!I2880","v":0},0,0,{"$f":"Import!I2899","v":0},{"$f":"Import!I2917","v":0},{"$f":"Import!I2935","v":0},null,null,null,null,null,null,"Gross Impact - Check Ok","Net Impact - Check Ok","Gross to Net Impact - Check Ok",null,null,null,null,null,null,null,null,null,"bma_BmaStressscenarioTestsM1MarineCollisionInPrinceWilliamSound"]
[null,"UE1.","Los Angeles Earthquake",{"$f":"Import!I2843","v":0},0,{"$f":"Import!I2862","v":0},{"$f":"Import!I2881","v":0},0,0,{"$f":"Import!I2900","v":0},{"$f":"Import!I2918","v":0},{"$f":"Import!I2936","v":0},null,null,null,null,null,null,"Gross Impact - Check Ok","Net Impact - Check Ok","Gross to Net Impact - Check Ok"]
[null,"UE2.","San Francisco Earthquake",{"$f":"Import!I2844","v":0},0,{"$f":"Import!I2863","v":0},{"$f":"Import!I2882","v":0},0,0,{"$f":"Import!I2901","v":0},{"$f":"Import!I2919","v":0},{"$f":"Import!I2937","v":0},null,null,null,null,null,null,"Gross Impact - Check Ok","Net Impact - Check Ok","Gross to Net Impact - Check Ok"]
[null,"UE3.","New Madrid (NM) RDS",{"$f":"Import!I2845","v":0},0,{"$f":"Import!I2864","v":0},{"$f":"Import!I2883","v":0},0,0,{"$f":"Import!I2902","v":0},{"$f":"Import!I2920","v":0},{"$f":"Import!I2938","v":0},null,null,null,null,null,null,"Gross Impact - Check Ok","Net Impact - Check Ok","Gross to Net Impact - Check Ok"]
[null,"IW1. ","European Windstorm",{"$f":"Import!I2846","v":0},0,{"$f":"Import!I2865","v":0},{"$f":"Import!I2884","v":0},0,0,{"$f":"Import!I2903","v":0},{"$f":"Import!I2921","v":0},{"$f":"Import!I2939","v":0},null,null,null,null,null,null,"Gross Impact - Check Ok","Net Impact - Check Ok","Gross to Net Impact - Check Ok"]
[null,"IW2.","Japanese Typhoon",{"$f":"Import!I2847","v":0},0,{"$f":"Import!I2866","v":0},{"$f":"Import!I2885","v":0},0,0,{"$f":"Import!I2904","v":0},{"$f":"Import!I2922","v":0},{"$f":"Import!I2940","v":0},null,null,null,null,null,null,"Gross Impact - Check Ok","Net Impact - Check Ok","Gross to Net Impact - Check Ok"]
[null,"IE1.","Japanese Earthquake",{"$f":"Import!I2848","v":0},0,{"$f":"Import!I2867","v":0},{"$f":"Import!I2886","v":0},0,0,{"$f":"Import!I2905","v":0},{"$f":"Import!I2923","v":0},{"$f":"Import!I2941","v":0},null,null,null,null,null,null,"Gross Impact - Check Ok","Net Impact - Check Ok","Gross to Net Impact - Check Ok"]
[null,"A1.","Aviation Collision",{"$f":"Import!I2849","v":0},0,{"$f":"Import!I2868","v":0},{"$f":"Import!I2887","v":0},0,0,{"$f":"Import!I2906","v":0},{"$f":"Import!I2924","v":0},{"$f":"Import!I2942","v":0},null,null,null,null,null,null,"Gross Impact - Check Ok","Net Impact - Check Ok","Gross to Net Impact - Check Ok"]
[null,"M1.","Marine Collision in Prince William",{"$f":"Import!I2850","v":0},0,{"$f":"Import!I2869","v":0},{"$f":"Import!I2888","v":0},0,0,{"$f":"Import!I2907","v":0},{"$f":"Import!I2925","v":0},{"$f":"Import!I2943","v":0},null,null,null,null,null,null,"Gross Impact - Check Ok","Net Impact - Check Ok","Gross to Net Impact - Check Ok"]
[null,"M2.","Major Cruise Vessel Incident",{"$f":"Import!I2851","v":0},0,{"$f":"Import!I2870","v":0},{"$f":"Import!I2889","v":0},0,0,{"$f":"Import!I2908","v":0},{"$f":"Import!I2926","v":0},{"$f":"Import!I2944","v":0},null,null,null,null,null,null,"Gross Impact - Check Ok","Net Impact - Check Ok","Gross to Net Impact - Check Ok",null,null,null,null,null,null,null,null,null,"bma_BmaStressscenarioTestsDWorstcaseAnnualAggregateLossScenarioAbstract"]
[null,"N1.","US Oil Spill",{"$f":"Import!I2852","v":0},0,{"$f":"Import!I2871","v":0},{"$f":"Import!I2890","v":0},0,0,{"$f":"Import!I2909","v":0},{"$f":"Import!I2927","v":0},{"$f":"Import!I2945","v":0},null,null,null,null,null,null,"Gross Impact - Check Ok","Net Impact - Check Ok","Gross to Net Impact - Check Ok"]
[null,"N2.","US Tornadoes",{"$f":"Import!I2853","v":0},0,{"$f":"Import!I2872","v":0},{"$f":"Import!I2891","v":0},0,0,{"$f":"Import!I2910","v":0},{"$f":"Import!I2928","v":0},{"$f":"Import!I2946","v":0},null,null,null,null,null,null,"Gross Impact - Check Ok","Net Impact - Check Ok","Gross to Net Impact - Check Ok"]
[null,"N3.","Australian Flooding",{"$f":"Import!I2854","v":0},0,{"$f":"Import!I2873","v":0},{"$f":"Import!I2892","v":0},0,0,{"$f":"Import!I2911","v":0},{"$f":"Import!I2929","v":0},{"$f":"Import!I2947","v":0},null,null,null,null,null,null,"Gross Impact - Check Ok","Net Impact - Check Ok","Gross to Net Impact - Check Ok"]
[null,"N4.","Australian Wildfires",{"$f":"Import!I2855","v":0},0,{"$f":"Import!I2874","v":0},{"$f":"Import!I2893","v":0},0,0,{"$f":"Import!I2912","v":0},{"$f":"Import!I2930","v":0},{"$f":"Import!I2948","v":0},null,null,null,null,null,null,"Gross Impact - Check Ok","Net Impact - Check Ok","Gross to Net Impact - Check Ok"]
[null,"P1.","Contamination Food Exposure (Domestic Health Writers Only)",{"$f":"Import!I2856","v":0},0,{"$f":"Import!I2875","v":0},{"$f":"Import!I2894","v":0},0,0,null,null,{"$f":"Import!I2949","v":0},null,null,null,null,null,null,"Gross Impact - Check Ok","Net Impact - Check Ok","Gross to Net Impact - Check Ok"]
[null,null,null,null,null,null,null,null,null,null,null,null,null,null,null,null,null,null,{"$f":"IF(COUNTIF(S51:S69,\"Gross Impact - Check Ok\")=19,\"True\",\"False\")","v":"True"},{"$f":"IF(COUNTIF(T51:T69,\"Net Impact - Check Ok\")=19,\"True\",\"False\")","v":"True"},{"$f":"IF(COUNTIF(U51:U69,\"Gross to Net Impact - Check Ok\")=19,\"True\",\"False\")","v":"True"}]
[null,1,"Post-stress/scenario net loss is Post-stress/scenario gross loss, net of reinsurance and/or other loss mitigation instruments"]
[null,2,"The relative return period should be calculated using the underlying loss distribution for its Net Probable Maximum Loss, as submitted in the BSCR"]
[]
[null,{"$f":"IF('Company Information'!$F$11=\"Class 3A\",\"C. UNDERWRITING LOSS SCENARIOS\",\"D. OTHER UNDERWRITING SCENARIOS\")","v":"D. OTHER UNDERWRITING SCENARIOS"}]
[null,{"$f":"IF('Company Information'!$F$11=\"Class 3A\",\"The (re)insurer is to submit the description of three of its own underwriting scenarios and related key assumptions with the impact on the statutory balance sheet\",\"Where B above is either not applicable or only partially apply, the (re)insurer is to submit the description of three of its own underwriting scenarios and related key assumptions with the impact on the statutory balance sheet.\")","v":"Where B above is either not applicable or only partially apply, the (re)insurer is to submit the description of three of its own underwriting scenarios and related key assumptions with the impact on the statutory balance sheet."}]
[null,null,null,null,null,null,null,null,null,null,null,null,{"$f":"IF('Company Information'!$F$11=\"Class 3A\",\"Only Class 3A Insurers that write Property Catastrophe Business are to provide return periods\",\"\")","v":""}]
[null,null,null,null,null,null,null,null,null,null,null,null,null,null,null,null,null,null,null,null,"brrt_UnderwritingLossScenariosNotApplicableOrPartiallyApplyDescriptionOfThreeOfInsurerUnderwritingScenariosAndRelatedKeyAssumptions"]
[null,"Description",null,"Assumptions","Doc Name","Page Number","Gross Loss Impact","Statutory Capital & Surplus","Net Loss After Reinsurance","Catastrophe Mitigation Techniques","Net Loss Impact","Statutory Capital & Surplus","Occurrence Return Period ","Relative Return Period","Proprietary/ Vendor Model & Version",null,null,null,null,null,"brrt_UnderwritingLossScenariosNotApplicableOrPartiallyApplyDescriptionOfThreeOfInsurerUnderwritingScenariosAndRelatedKeyAssumptionsDescription","brrt_UnderwritingLossScenariosNotApplicableOrPartiallyApplyDescriptionOfThreeOfInsurerUnderwritingScenariosAndRelatedKeyAssumptionsGrossLossImpactPostStressScenarioGrossLoss","brrt_UnderwritingLossScenariosNotApplicableOrPartiallyApplyDescriptionOfThreeOfInsurerUnderwritingScenariosAndRelatedKeyAssumptionsAggregateStatutoryAdmittedAssetsPostStressScenarioGrossLoss","brrt_UnderwritingLossScenariosNotApplicableOrPartiallyApplyDescriptionOfThreeOfInsurerUnderwritingScenariosAndRelatedKeyAssumptionsAdmittedLiabilitiesPostStressScenarioGrossLoss","brrt_UnderwritingLossScenariosNotApplicableOrPartiallyApplyDescriptionOfThreeOfInsurerUnderwritingScenariosAndRelatedKeyAssumptionsStatutoryCapitalAndSurplusPostStressScenarioGrossLoss","brrt_UnderwritingLossScenariosNotApplicableOrPartiallyApplyDescriptionOfThreeOfInsurerUnderwritingScenariosAndRelatedKeyAssumptionsNetLossImpactPostStressScenarioNetLoss","brrt_UnderwritingLossScenariosNotApplicableOrPartiallyApplyDescriptionOfThreeOfInsurerUnderwritingScenariosAndRelatedKeyAssumptionsAggregateStatutoryAdmittedAssetsPostStressScenarioNetLoss","brrt_UnderwritingLossScenariosNotApplicableOrPartiallyApplyDescriptionOfThreeOfInsurerUnderwritingScenariosAndRelatedKeyAssumptionsAdmittedLiabilitiesPostStressScenarioNetLoss","brrt_UnderwritingLossScenariosNotApplicableOrPartiallyApplyDescriptionOfThreeOfInsurerUnderwritingScenariosAndRelatedKeyAssumptionsStatutoryCapitalAndSurplusPostStressScenarioNetLoss"]
[null,{"$f":"Import!I2950","v":0},null,{"$f":"HYPERLINK(\"#'Attachments'!G145\",\"Attach file\")","v":"Attach file"},null,null,{"$f":"Import!I2953","v":0},{"$f":"$H$6-G79","v":0},{"$f":"Import!I2956","v":0},{"$f":"Import!I2959","v":0},{"$f":"I79-J79","v":0},{"$f":"$H$6-K79","v":0},{"$f":"Import!I2962","v":0},{"$f":"Import!I2965","v":0},{"$f":"Import!I2968","v":0},null,null,null,null,null,null,{"$f":"XBRLMapTuple($U$77,E$427,E$428,\"BMA\",CONFIGURATION!$B$1,\"bscr\",\"\",CONFIGURATION!$B$12,$U$78,B79,$V$78,G79,$W$78,#REF!,$X$78,#REF!,$Y$78,H79,$Z$78,I79,$AA$78,#REF!,$AB$78,#REF!,$AC$78,K79)","v":{"$error":"#VALUE!"}}]
[null,{"$f":"Import!I2951","v":0},null,"Attach file",null,null,{"$f":"Import!I2954","v":0},{"$f":"$H$6-G80","v":0},{"$f":"Import!I2957","v":0},{"$f":"Import!I2960","v":0},{"$f":"I80-J80","v":0},{"$f":"$H$6-K80","v":0},{"$f":"Import!I2963","v":0},{"$f":"Import!I2966","v":0},{"$f":"Import!I2969","v":0},null,null,null,null,null,null,{"$f":"XBRLMapTuple($U$77,E$427,E$428,\"BMA\",CONFIGURATION!$B$1,\"bscr\",\"\",CONFIGURATION!$B$12,$U$78,B80,$V$78,G80,$W$78,#REF!,$X$78,#REF!,$Y$78,H80,$Z$78,I80,$AA$78,#REF!,$AB$78,#REF!,$AC$78,K80)","v":{"$error":"#VALUE!"}}]
[null,{"$f":"Import!I2952","v":0},null,"Attach file",null,null,{"$f":"Import!I2955","v":0},0,{"$f":"Import!I2958","v":0},{"$f":"Import!I2961","v":0},0,0,{"$f":"Import!I2964","v":0},{"$f":"Import!I2967","v":0},{"$f":"Import!I2970","v":0},null,null,null,null,null,null,{"$f":"XBRLMapTuple($U$77,E$427,E$428,\"BMA\",CONFIGURATION!$B$1,\"bscr\",\"\",CONFIGURATION!$B$12,$U$78,B81,$V$78,G81,$W$78,#REF!,$X$78,#REF!,$Y$78,H81,$Z$78,I81,$AA$78,#REF!,$AB$78,#REF!,$AC$78,K81)","v":{"$error":"#VALUE!"}}]
[]
[null,{"$f":"IF('Company Information'!$F$11=\"Class 3A\",\"D. LIABILITY LOSS ACCUMULATION SCENARIOS\",\"E. LIABILITY LOSS ACCUMULATION SCENARIOS\")","v":"E. LIABILITY LOSS ACCUMULATION SCENARIOS"}]
[]
[null,"0. Results"]
[]
[null,"Description",null,"Net Loss Impact","Statutory Capital & Surplus"]
[null,"1. New latent liability",null,{"$f":"SUM(D124:I129)","v":0},{"$f":"$H$6-D88","v":0}]
[]
[null,null,null,"One Year View",null,"Ultimate View"]
[null,null,null,"Net Loss Impact","Statutory Capital & Surplus","Net Loss Impact","Statutory Capital & Surplus"]
[null,"2. Deterioration in existing US A&E reserves",null,{"$f":"+E146-E134+H146-H134","v":0},{"$f":"$H$6-D92","v":0},{"$f":"+E144-E134+H144-H134+E159-E150","v":0},{"$f":"$H$6-F92","v":0}]
[]
[null,"a) Scenario 1 - New latent liability"]
[null,null,{"$f":"\"NWP for the most recent year\"&\" (\"&TEXT('Company Information'!C3,\"YYYY\")&\")\"","v":"NWP for the most recent year (2019)"},"product liability","product liability","gen comm liability","gen comm liability","empl liab/ workers comp","empl liab/ workers comp"]
[null,null,null,"P","NP","P","NP","P","NP"]
[null,null,"EEA and Switzerland",{"$f":"Import!I2971","v":0},{"$f":"Import!I2977","v":0},{"$f":"Import!I2983","v":0},{"$f":"Import!I2989","v":0},{"$f":"Import!I2995","v":0},{"$f":"Import!I3001","v":0}]
[null,null,"US/Canada",{"$f":"Import!I2972","v":0},{"$f":"Import!I2978","v":0},{"$f":"Import!I2984","v":0},{"$f":"Import!I2990","v":0},{"$f":"Import!I2996","v":0},{"$f":"Import!I3002","v":0}]
[null,null,"Japan",{"$f":"Import!I2973","v":0},{"$f":"Import!I2979","v":0},{"$f":"Import!I2985","v":0},{"$f":"Import!I2991","v":0},{"$f":"Import!I2997","v":0},{"$f":"Import!I3003","v":0}]
[null,null,"China",{"$f":"Import!I2974","v":0},{"$f":"Import!I2980","v":0},{"$f":"Import!I2986","v":0},{"$f":"Import!I2992","v":0},{"$f":"Import!I2998","v":0},{"$f":"Import!I3004","v":0}]
[null,null,"Other developed markets",{"$f":"Import!I2975","v":0},{"$f":"Import!I2981","v":0},{"$f":"Import!I2987","v":0},{"$f":"Import!I2993","v":0},{"$f":"Import!I2999","v":0},{"$f":"Import!I3005","v":0}]
[null,null,"Emerging markets",{"$f":"Import!I2976","v":0},{"$f":"Import!I2982","v":0},{"$f":"Import!I2988","v":0},{"$f":"Import!I2994","v":0},{"$f":"Import!I3000","v":0},{"$f":"Import!I3006","v":0}]
[]
[null,null,"Average Annual Premium Growth over the last 8 years (3 years for US Workers Comp)","product liability","product liability","gen comm liability","gen comm liability","empl liab/ workers comp","empl liab/ workers comp","Number of Years over which the annual growth is calculated (subject to the max of 8 or 3 years for US/CA WC) ",null,"product liability","product liability","gen comm liability","gen comm liability","empl liab/ workers comp","empl liab/ workers comp"]
[null,null,null,"P","NP","P","NP","P","NP",null,null,"P","NP","P","NP","P","NP"]
[null,null,"EEA and Switzerland",{"$f":"Import!I3007","v":0},{"$f":"Import!I3013","v":0},{"$f":"Import!I3019","v":0},{"$f":"Import!I3025","v":0},{"$f":"Import!I3031","v":0},{"$f":"Import!I3037","v":0},"EEA and Switzerland",null,{"$f":"Import!I3043","v":0},{"$f":"Import!I3049","v":0},{"$f":"Import!I3055","v":0},{"$f":"Import!I3061","v":0},{"$f":"Import!I3067","v":0},{"$f":"Import!I3073","v":0}]
[null,null,"US/Canada",{"$f":"Import!I3008","v":0},{"$f":"Import!I3014","v":0},{"$f":"Import!I3020","v":0},{"$f":"Import!I3026","v":0},{"$f":"Import!I3032","v":0},{"$f":"Import!I3038","v":0},"US/Canada",null,{"$f":"Import!I3044","v":0},{"$f":"Import!I3050","v":0},{"$f":"Import!I3056","v":0},{"$f":"Import!I3062","v":0},{"$f":"Import!I3068","v":0},{"$f":"Import!I3074","v":0}]
[null,null,"Japan",{"$f":"Import!I3009","v":0},{"$f":"Import!I3015","v":0},{"$f":"Import!I3021","v":0},{"$f":"Import!I3027","v":0},{"$f":"Import!I3033","v":0},{"$f":"Import!I3039","v":0},"Japan",null,{"$f":"Import!I3045","v":0},{"$f":"Import!I3051","v":0},{"$f":"Import!I3057","v":0},{"$f":"Import!I3063","v":0},{"$f":"Import!I3069","v":0},{"$f":"Import!I3075","v":0}]
[null,null,"China",{"$f":"Import!I3010","v":0},{"$f":"Import!I3016","v":0},{"$f":"Import!I3022","v":0},{"$f":"Import!I3028","v":0},{"$f":"Import!I3034","v":0},{"$f":"Import!I3040","v":0},"China",null,{"$f":"Import!I3046","v":0},{"$f":"Import!I3052","v":0},{"$f":"Import!I3058","v":0},{"$f":"Import!I3064","v":0},{"$f":"Import!I3070","v":0},{"$f":"Import!I3076","v":0}]
[null,null,"Other developed markets",{"$f":"Import!I3011","v":0},{"$f":"Import!I3017","v":0},{"$f":"Import!I3023","v":0},{"$f":"Import!I3029","v":0},{"$f":"Import!I3035","v":0},{"$f":"Import!I3041","v":0},"Other developed markets",null,{"$f":"Import!I3047","v":0},{"$f":"Import!I3053","v":0},{"$f":"Import!I3059","v":0},{"$f":"Import!I3065","v":0},{"$f":"Import!I3071","v":0},{"$f":"Import!I3077","v":0}]
[null,null,"Emerging markets",{"$f":"Import!I3012","v":0},{"$f":"Import!I3018","v":0},{"$f":"Import!I3024","v":0},{"$f":"Import!I3030","v":0},{"$f":"Import!I3036","v":0},{"$f":"Import!I3042","v":0},"Emerging markets",null,{"$f":"Import!I3048","v":0},{"$f":"Import!I3054","v":0},{"$f":"Import!I3060","v":0},{"$f":"Import!I3066","v":0},{"$f":"Import!I3072","v":0},{"$f":"Import!I3078","v":0}]
[]
[null,null,"Risk factors by segment","product liability","product liability","gen comm liability","gen comm liability","empl liab/ workers comp","empl liab/ workers comp"]
[null,null,null,"P","NP","P","NP","P","NP"]
[null,null,"EEA and Switzerland",0.45,0.9,0.25,0.5,0.25,0.5]
[null,null,"US/Canada",0.65,1.3,0.35,0.75,0.15,0.3]
[null,null,"Japan",0.35,0.65,0.2,0.35,0.2,0.35]
[null,null,"China",0.25,0.5,0.15,0.3,0.15,0.3]
[null,null,"Other developed markets",0.3,0.6,0.15,0.35,0.15,0.35]
[null,null,"Emerging markets",0.25,0.5,0.15,0.3,0.15,0.3]
[]
[null,null,"Estimated Reserve Deterioration","product liability","product liability","gen comm liability","gen comm liability","empl liab/ workers comp","empl liab/ workers comp"]
[null,null,null,"P","NP","P","NP","P","NP"]
[null,null,"EEA and Switzerland",{"$f":"MAX(MAX(IFERROR((((1-(1+D106)^(L106))/(1-(1+D106)))/L106)/((1+D106)^(L106-1)),1),0)*D115*D97*MIN(IF(L106>=1,L106/8,1),1),0)","v":0},{"$f":"MAX(MAX(IFERROR((((1-(1+E106)^(M106))/(1-(1+E106)))/M106)/((1+E106)^(M106-1)),1),0)*E115*E97*MIN(IF(M106>=1,M106/8,1),1),0)","v":0},{"$f":"MAX(MAX(IFERROR((((1-(1+F106)^(N106))/(1-(1+F106)))/N106)/((1+F106)^(N106-1)),1),0)*F115*F97*MIN(IF(N106>=1,N106/8,1),1),0)","v":0},0,0,0]
[null,null,"US/Canada",{"$f":"MAX(MAX(IFERROR((((1-(1+D107)^(L107))/(1-(1+D107)))/L107)/((1+D107)^(L107-1)),1),0)*D116*D98*MIN(IF(L107>=1,L107/8,1),1),0)","v":0},0,0,0,{"$f":"MAX(MAX(IFERROR((((1-(1+H107)^(P107))/(1-(1+H107)))/P107)/((1+H107)^(P107-1)),1),0)*H116*H98*MIN(IF(P107>=1,P107/3,1),1),0)","v":0},{"$f":"MAX(MAX(IFERROR((((1-(1+I107)^(Q107))/(1-(1+I107)))/Q107)/((1+I107)^(Q107-1)),1),0)*I116*I98*MIN(IF(Q107>=1,Q107/3,1),1),0)","v":0}]
[null,null,"Japan",0,0,0,0,0,0]
[null,null,"China",0,0,0,0,0,0]
[null,null,"Other developed markets",0,0,0,0,0,0]
[null,null,"Emerging markets",0,0,0,0,0,0]
[]
[null,"b) Scenario 2 - Deterioration in existing US A&E reserves"]
[null,null,null,null,"US Asbestos",null,null,"US Environmental"]
[null,null,null,null,{"$f":"+TEXT('Company Information'!$C$3,\"YYYY\")","v":"2019"},{"$f":"+E133-1","v":2018},{"$f":"+F133-1","v":2017},{"$f":"+TEXT('Company Information'!$C$3,\"YYYY\")","v":"2019"},{"$f":"+H133-1","v":2018},{"$f":"+I133-1","v":2017}]
[null,"1. Survival Ratio stress","Yearend Net GAAP Reserves ",null,{"$f":"Import!I3079","v":0},{"$f":"Import!I3086","v":0},{"$f":"Import!I3088","v":0},{"$f":"Import!I3090","v":0},{"$f":"Import!I3096","v":0},{"$f":"Import!I3098","v":0}]
[null,null,"Net Paid on Yearend GAAP Reserves",null,{"$f":"Import!I3080","v":0},{"$f":"Import!I3087","v":0},{"$f":"Import!I3089","v":0},{"$f":"Import!I3091","v":0},{"$f":"Import!I3097","v":0},{"$f":"Import!I3099","v":0}]
[null,null,"Survival Ratio of US Reserves",null,{"$f":"Import!I3081","v":0},"Est Surv Ratio",{"$f":"IFERROR(E134/AVERAGE(IF(E135:G135>0,E135:G135,\"\")),0)","v":0},{"$f":"Import!I3092","v":0},"Est Surv Ratio",{"$f":"IFERROR(H134/AVERAGE(IF(H135:J135>0,H135:J135,\"\")),0)","v":0}]
[null,null,"Target Survival Ratio",null,15,null,null,12]
[null,null,"GAAP Reserves at target Survival Ratio",null,{"$f":"IF(E136=0,0,MAX((E137/E136)*E134,E134))","v":0},null,null,{"$f":"IF(H136=0,0,MAX((H137/H136)*H134,H134))","v":0}]
[null,"2. Med Adv Stress","Insurer's loading for future medical advances",null,{"$f":"Import!I3082","v":0},"Uplift for medical developments"]
[null,null,"Stress loading for future medical developments",null,{"$f":"IFERROR(MIN(MAX((1+F140)/(1+E139)-1,0),F140),0)","v":0.1},0.1,null,"N/A"]
[null,"3. Claims Inflation Stress","Effective Duration of Liabilities",null,{"$f":"Import!I3083","v":0},null,null,{"$f":"Import!I3093","v":0}]
[null,null,"Increase in Claims Inflation",null,0.04,"Approximated",null,0.04,"Approximated"]
[null,null,"GAAP Reserves after 4% Inflation stress",null,{"$f":"Import!I3084","v":0},{"$f":"E134*(1+E142)^E141","v":0},null,{"$f":"Import!I3094","v":0},{"$f":"H134*(1+H142)^H141","v":0}]
[null,"Stress Results","GAAP Reserves Ultimate Stress",null,{"$f":"IF(E134=0,0,E138*MAX((E143/E134),1)*(1+E140))","v":0},"Uplift",{"$f":"IF(E134=0,0,E144/E134-1)","v":0},{"$f":"IF(H134=0,0,H138*MAX((H143/H134),1))","v":0},"Uplift",{"$f":"IF(H134=0,0,H144/H134-1)","v":0}]
[null,null,"1 year emergence factor",null,{"$f":"Import!I3085","v":0},null,null,{"$f":"Import!I3095","v":0}]
[null,null,"GAAP Reserves 1-year Stress",null,{"$f":"IF(E134=0,0,E138*(1+E140)*(1+MAX(E143/E134-1,0)*E145))","v":0},"Uplift",{"$f":"IF(E134=0,0,E146/E134-1)","v":0},{"$f":"IF(H134=0,0,H138*(1+MAX(H143/H134-1,0)*H145))","v":0},"Uplift",{"$f":"IF(H134=0,0,H146/H134-1)","v":0}]
[]
[null,null,null,null,"UK Asbestos"]
[null,null,null,null,{"$f":"+TEXT('Company Information'!$C$3,\"YYYY\")","v":"2019"}]
[null,"1. New claims beyond 2050 stress","Yearend Net GAAP Reserves ",null,{"$f":"Import!I3100","v":0}]
[null,null,"Insurer's reserve proportion for post 2050 claims",null,{"$f":"Import!I3101","v":0},"Uplift for new claims past 2050"]
[null,null,"Stress for new claims arising beyond 2050",null,{"$f":"IFERROR(MIN(MAX((1+F152)/(1+E151/(1-E151))-1,0),F152),0)","v":0.14999999999999991},0.15]
[null,"2. Claim count stress","Stress on projected claims count up to 2050",null,0.15]
[null,"3. Med Adv Stress","Insurer's loading for future medical advances",null,{"$f":"Import!I3102","v":0},"Uplift for medical developments"]
[null,null,"Stress for future medical developments",null,{"$f":"IFERROR(MIN(MAX((1+F155)/(1+E154)-1,0),F155),0)","v":0.1},0.1]
[null,"4. Claims Inflation Stress","Effective Duration of Liabilities",null,{"$f":"Import!I3103","v":0}]
[null,null,"Increase in Claims Inflation",null,0.03,"Approximated"]
[null,null,"GAAP Reserves after 3% Inflation stress",null,{"$f":"Import!I3104","v":0},{"$f":"E150*(1+E157)^E156","v":0}]
[null,"Stress Results","GAAP Reserves Ultimate Stress",null,{"$f":"IF(E150=0,0,E150*(1+E152)*(1+E155)*(1+E153)*E158/E150)","v":0},"Uplift",{"$f":"IF(E150=0,0,E159/E150-1)","v":0}]
[null,null,"1 year emergence factor",null,{"$f":"Import!I3105","v":0}]
[null,null,"GAAP Reserves 1-year Stress",null,{"$f":"IF(E150=0,0,E150*(1+E152)*(1+E155)*(1+E153*E160)*((E158/E150-1)*E160+1))","v":0},"Uplift",{"$f":"IF(E150=0,0,E161/E150-1)","v":0}]
[]
[null,{"$f":"IF('Company Information'!$F$11=\"Class 3A\",\"E. RATING DOWNGRADE\",\"F. RATING DOWNGRADE\")","v":"F. RATING DOWNGRADE"},null,null,null,null,null,null,null,null,null,null,null,null,null,null,null,null,null,null,null,null,null,null,null,null,null,null,null,null,"bma_BmaStressscenarioTestsR3Worstcase"]
[null,"The (re)insurer is to submit a detailed disclosure on the impact of a ratings downgrade of its Bermuda legal entity or group by TWO NOTCHES OR BELOW A-, WHICHEVER IS LOWER.",null,null,null,null,null,null,null,null,null,null,null,null,null,null,null,null,null,null,null,null,null,null,null,null,null,null,null,null,"bma_BmaStressscenarioTestsAggregateOf3LargestUnderwritingLossesWorstcase"]
[null,{"$f":"Import!I3106","v":0},null,null,null,null,null,null,null,null,null,null,null,null,null,null,null,null,null,null,"brrt_ReinsurerSpecificPostStressScenario",{"$f":"XBRLMap(B165,U165,E$427,E$428,CONFIGURATION!$B$10,\"BMA\",CONFIGURATION!$B$1,\"bscr\")","v":"Mapped"},null,null,null,null,null,null,null,null,"bma_BmaStressscenarioTestsTotalLossWorstcase"]
[]
[]
[]
[]
[]
[null,{"$f":"IF('Company Information'!$F$11=\"Class 3A\",\"F. WORST-CASE ANNUAL AGGREGATE LOSS SCENARIO\",\"G. WORST-CASE ANNUAL AGGREGATE LOSS SCENARIO\")","v":"G. WORST-CASE ANNUAL AGGREGATE LOSS SCENARIO"}]
[null,"The (re)insurer is to submit the following: (1) and either (2a) or (2b) below"]
[null,"(1) R4 above and the three largest underwriting scenarios"]
[null,null,null,"Worst-case ",null,null,null,null,null,null,null,null,null,null,null,null,null,null,null,null,null,null,null,null,null,null,null,null,null,null,"bma_BmaStressscenarioTestsTotalStatutoryPropertyCatastrophePremium"]
[null,"R5",null,{"$f":"E16","v":0},null,null,null,null,null,null,null,null,null,null,null,null,null,null,null,null,"brrt_WorstCasePostStressScenarioR3",{"$f":"XBRLMap(D175,U175,E$427,E$428,CONFIGURATION!$B$10,\"BMA\",CONFIGURATION!$B$1,\"bscr\",CONFIGURATION!$B$12)","v":"Mapped"},null,null,null,null,null,null,null,null,"bma_BmaStressscenarioTestsTotalOfAllOtherPremiumExposedToAtlanticBasinHurricane"]
[null,"Aggregate of 3 largest net underwriting loss",null,{"$f":"IF(SUM(K79:K81,H51:H69)=0,0,IF(COUNT(K79:K81,H51:H69)=1,LARGE((H51:H69,K79:K81),1),IF(COUNT(K79:K81,H51:H69)=2,LARGE((H51:H69,K79:K81),1)+LARGE((H51:H69,K79:K81),2),LARGE((H51:H69,K79:K81),1)+LARGE((H51:H69,K79:K81),2)+LARGE((H51:H69,K79:K81),3))))","v":0},null,null,null,null,null,null,null,null,null,null,null,null,null,null,null,null,"brrt_WorstCasePostStressScenarioAggregateOfThreeLargestUnderwritingScenarioLosses",{"$f":"XBRLMap(D176,U176,E$427,E$428,CONFIGURATION!$B$10,\"BMA\",CONFIGURATION!$B$1,\"bscr\",CONFIGURATION!$B$12)","v":"Mapped"},null,null,null,null,null,null,null,null,"bma_BmaStressscenarioTestsInitialEstimateOfUltimateLoss"]
[null,"Total loss",null,{"$f":"SUM(D175:E176)","v":0},null,null,null,null,null,null,null,null,null,null,null,null,null,null,null,null,"brrt_WorstCasePostStressScenarioTotalLoss",{"$f":"XBRLMap(D177,U177,E$427,E$428,CONFIGURATION!$B$10,\"BMA\",CONFIGURATION!$B$1,\"bscr\",CONFIGURATION!$B$12)","v":"Mapped"},null,null,null,null,null,null,null,null,"bma_BmaStressscenarioTestsLatestEstimateOfUltimateLoss"]
[null,"Occurrence Return period",null,{"$f":"Import!I3107","v":0}]
[null,"Relative Return period",null,{"$f":"Import!I3108","v":0},null,"Doc Name","Page Number",null,null,null,null,null,null,null,null,null,null,null,null,null,"brrt_WorstCasePostStressScenarioReturnPeriod",{"$f":"XBRLMap(D179,U179,E$427,E$428,CONFIGURATION!$B$10,\"BMA\",CONFIGURATION!$B$1,\"bscr\",CONFIGURATION!$B$12)","v":"Mapped"},null,null,null,null,null,null,null,null,"bma_BmaStressscenarioTestsEstimateFromTheInsurerCatastropheModelOfLoss"]
[null,"Assumptions ",null,{"$f":"HYPERLINK(\"#'Attachments'!G145\",\"Attach file\")","v":"Attach file"},null,null,null,null,null,null,null,null,null,null,null,null,null,null,null,null,null,null,null,null,null,null,null,null,null,null,"bma_BmaStressscenarioTestsEstimateFromTheInsurerCatastropheModelOfIndustryLoss"]
[]
[null,"(2) Either (2a) or (2b):"]
[]
[null,"(2a) Series of loss simulations "]
[null,{"$f":"\"The (re)insurer is to run a series of loss simulations or other analysis performed related to extreme tail events that include all in-force policies for \"&TEXT('Company Information'!C3+1,\"mmmm d yyyy\")","v":"The (re)insurer is to run a series of loss simulations or other analysis performed related to extreme tail events that include all in-force policies for January 1 2020"}]
[null,"Gross loss",null,{"$f":"Import!I3109","v":0},null,null,null,null,null,null,null,null,null,null,null,null,null,null,null,null,"brrt_SeriesOfLossSimulationsGrossLoss",{"$f":"XBRLMap(D186,U186,E$427,E$428,CONFIGURATION!$B$10,\"BMA\",CONFIGURATION!$B$1,\"bscr\")","v":"Mapped"},null,null,null,null,null,null,null,null,null,null,null,null,null,"bma_Terrorismloss1LongitudeOfAccumulationCentroid","bma_Terrorismloss2LongitudeOfAccumulationCentroid","bma_Terrorismloss3LongitudeOfAccumulationCentroid",null,"bma_Terrorismloss4LongitudeOfAccumulationCentroid","bma_Terrorismloss5LongitudeOfAccumulationCentroid","bma_Terrorismloss6LongitudeOfAccumulationCentroid","bma_Terrorismloss7LongitudeOfAccumulationCentroid","bma_Terrorismloss8LongitudeOfAccumulationCentroid","bma_Terrorismloss9LongitudeOfAccumulationCentroid","bma_Terrorismloss10LongitudeOfAccumulationCentroid"]
[null,"Net loss",null,{"$f":"Import!I3110","v":0},null,null,null,null,null,null,null,null,null,null,null,null,null,null,null,null,"brrt_SeriesOfLossSimulationsNetLoss",{"$f":"XBRLMap(D187,U187,E$427,E$428,CONFIGURATION!$B$10,\"BMA\",CONFIGURATION!$B$1,\"bscr\")","v":"Mapped"},null,null,null,null,null,null,null,null,null,null,null,null,null,"bma_Terrorismloss1ZipCodePostCode","bma_Terrorismloss2ZipCodePostCode","bma_Terrorismloss3ZipCodePostCode",null,"bma_Terrorismloss4ZipCodePostCode","bma_Terrorismloss5ZipCodePostCode","bma_Terrorismloss6ZipCodePostCode","bma_Terrorismloss7ZipCodePostCode","bma_Terrorismloss8ZipCodePostCode","bma_Terrorismloss9ZipCodePostCode","bma_Terrorismloss10ZipCodePostCode"]
[null,"Risk measure",null,{"$f":"Import!I3111","v":0},null,null,null,null,null,null,null,null,null,null,null,null,null,null,null,null,"brrt_SeriesOfLossSimulationsRiskMeasure",{"$f":"XBRLMap(D188,U188,E$427,E$428,CONFIGURATION!$B$10,\"BMA\",CONFIGURATION!$B$1,\"bscr\")","v":"Mapped"}]
[null,"Time horizon",null,{"$f":"Import!I3112","v":0},null,null,null,null,null,null,null,null,null,null,null,null,null,null,null,null,"brrt_SeriesOfLossSimulationsTimeHorizon",{"$f":"XBRLMap(D189,U189,E$427,E$428,CONFIGURATION!$B$10,\"BMA\",CONFIGURATION!$B$1,\"bscr\")","v":"Mapped"},null,null,null,null,null,null,null,null,null,null,null,null,null,"bma_Terrorismloss1LatitudeOfAccumulationCentroid","bma_Terrorismloss2LatitudeOfAccumulationCentroid","bma_Terrorismloss3LatitudeOfAccumulationCentroid",null,"bma_Terrorismloss4LatitudeOfAccumulationCentroid","bma_Terrorismloss5LatitudeOfAccumulationCentroid","bma_Terrorismloss6LatitudeOfAccumulationCentroid","bma_Terrorismloss7LatitudeOfAccumulationCentroid","bma_Terrorismloss8LatitudeOfAccumulationCentroid","bma_Terrorismloss9LatitudeOfAccumulationCentroid","bma_Terrorismloss10LatitudeOfAccumulationCentroid"]
[null,"Occurrence Return period",null,{"$f":"Import!I3113","v":0},null,null,null,null,null,null,null,null,null,null,null,null,null,null,null,null,"brrt_SeriesOfLossSimulationsReturnPeriod",{"$f":"XBRLMap(D190,U190,E$427,E$428,CONFIGURATION!$B$10,\"BMA\",CONFIGURATION!$B$1,\"bscr\")","v":"Mapped"},null,null,null,null,null,{"$f":"XBRLMapTuple(#REF!,K$427,K$428,\"BMA\",CONFIGURATION!$B$1,\"bscr\",\"\",CONFIGURATION!$B$12,$U$215,#REF!,$U$216,#REF!,#REF!,I218,#REF!,I219,$U$223,I220,$U$224,I221,$U$227,I222,$U$74,I223,$U$75,I224,#REF!,I225)","v":{"$error":"#VALUE!"}},{"$f":"XBRLMapTuple(#REF!,L$427,L$428,\"BMA\",CONFIGURATION!$B$1,\"bscr\",\"\",CONFIGURATION!$B$12,$U$215,#REF!,$U$216,#REF!,#REF!,J218,#REF!,J219,$U$223,J220,$U$224,J221,$U$227,J222,$U$74,J223,$U$75,J224,#REF!,J225)","v":{"$error":"#VALUE!"}},{"$f":"XBRLMapTuple(#REF!,L$427,L$428,\"BMA\",CONFIGURATION!$B$1,\"bscr\",\"\",CONFIGURATION!$B$12,$U$215,#REF!,$U$216,#REF!,#REF!,K218,#REF!,K219,$U$223,K220,$U$224,K221,$U$227,K222,$U$74,K223,$U$75,K224,#REF!,K225)","v":{"$error":"#VALUE!"}},{"$f":"XBRLMapTuple(#REF!,L$427,L$428,\"BMA\",CONFIGURATION!$B$1,\"bscr\",\"\",CONFIGURATION!$B$12,$U$215,#REF!,$U$216,#REF!,#REF!,L218,#REF!,L219,$U$223,L220,$U$224,L221,$U$227,L222,$U$74,L223,$U$75,L224,#REF!,L225)","v":{"$error":"#VALUE!"}},{"$f":"XBRLMapTuple(#REF!,L$427,L$428,\"BMA\",CONFIGURATION!$B$1,\"bscr\",\"\",CONFIGURATION!$B$12,$U$215,#REF!,$U$216,#REF!,#REF!,M218,#REF!,M219,$U$223,M220,$U$224,M221,$U$227,M222,$U$74,M223,$U$75,M224,#REF!,N225)","v":{"$error":"#VALUE!"}}]
[null,"Relative Return period",null,{"$f":"Import!I3114","v":0},null,null,null,null,null,null,null,null,null,null,null,null,null,null,null,null,"brrt_SeriesOfLossSimulationsReturnPeriod",{"$f":"XBRLMap(D191,U191,E$427,E$428,CONFIGURATION!$B$10,\"BMA\",CONFIGURATION!$B$1,\"bscr\")","v":"Mapped"},null,null,null,null,null,{"$f":"XBRLMapTuple(#REF!,K$427,K$428,\"BMA\",CONFIGURATION!$B$1,\"bscr\",\"\",CONFIGURATION!$B$12,$U$215,#REF!,$U$216,#REF!,#REF!,#REF!,#REF!,I218,$U$223,I219,$U$224,I220,$U$227,I221,$U$74,I222,$U$75,I223,#REF!,I224)","v":{"$error":"#VALUE!"}},{"$f":"XBRLMapTuple(#REF!,L$427,L$428,\"BMA\",CONFIGURATION!$B$1,\"bscr\",\"\",CONFIGURATION!$B$12,$U$215,#REF!,$U$216,#REF!,#REF!,#REF!,#REF!,J218,$U$223,J219,$U$224,J220,$U$227,J221,$U$74,J222,$U$75,J223,#REF!,J224)","v":{"$error":"#VALUE!"}},{"$f":"XBRLMapTuple(#REF!,L$427,L$428,\"BMA\",CONFIGURATION!$B$1,\"bscr\",\"\",CONFIGURATION!$B$12,$U$215,#REF!,$U$216,#REF!,#REF!,#REF!,#REF!,K218,$U$223,K219,$U$224,K220,$U$227,K221,$U$74,K222,$U$75,K223,#REF!,K224)","v":{"$error":"#VALUE!"}},{"$f":"XBRLMapTuple(#REF!,L$427,L$428,\"BMA\",CONFIGURATION!$B$1,\"bscr\",\"\",CONFIGURATION!$B$12,$U$215,#REF!,$U$216,#REF!,#REF!,#REF!,#REF!,L218,$U$223,L219,$U$224,L220,$U$227,L221,$U$74,L222,$U$75,L223,#REF!,L224)","v":{"$error":"#VALUE!"}},{"$f":"XBRLMapTuple(#REF!,L$427,L$428,\"BMA\",CONFIGURATION!$B$1,\"bscr\",\"\",CONFIGURATION!$B$12,$U$215,#REF!,$U$216,#REF!,#REF!,#REF!,#REF!,M218,$U$223,M219,$U$224,M220,$U$227,M221,$U$74,M222,$U$75,M223,#REF!,M224)","v":{"$error":"#VALUE!"}}]
[null,"Proprietary / vendor model and version",null,{"$f":"Import!I3115","v":0},null,"Doc Name","Page Number",null,null,null,null,null,null,null,null,null,null,null,null,null,"brrt_SeriesOfLossSimulationsProprietaryVendorModelAndVersion",{"$f":"XBRLMap(D192,U192,E$427,E$428,CONFIGURATION!$B$10,\"BMA\",CONFIGURATION!$B$1,\"bscr\")","v":"Mapped"}]
[null,"Assumptions",null,{"$f":"HYPERLINK(\"#'Attachments'!G145\",\"Attach file\")","v":"Attach file"},null,null,null,null,null,null,null,null,null,null,null,null,null,null,null,null,null,null,null,null,null,null,null,null,null,null,null,null,null,null,null,"bma_Terrorismloss1StateProvince","bma_Terrorismloss2StateProvince","bma_Terrorismloss3StateProvince",null,"bma_Terrorismloss4StateProvince","bma_Terrorismloss5StateProvince","bma_Terrorismloss6StateProvince","bma_Terrorismloss7StateProvince","bma_Terrorismloss8StateProvince","bma_Terrorismloss9StateProvince","bma_Terrorismloss10StateProvince"]
[null,null,null,null,null,null,null,null,null,null,null,null,null,null,null,null,null,null,null,null,null,null,null,null,null,null,null,null,null,null,null,null,null,null,null,"bma_Terrorismloss1Country","bma_Terrorismloss2Country","bma_Terrorismloss3Country",null,"bma_Terrorismloss4Country","bma_Terrorismloss5Country","bma_Terrorismloss6Country","bma_Terrorismloss7Country","bma_Terrorismloss8Country","bma_Terrorismloss9Country","bma_Terrorismloss10Country"]
[{"$f":"IF('Company Information'!$F$11=\"Class 3A\",\"(2) (Re)insurer specific worst-case scenario\",\"(2b) (Re)insurer specific worst-case scenario\")","v":"(2b) (Re)insurer specific worst-case scenario"},null,null,null,null,null,null,null,null,null,null,null,null,null,null,null,null,null,null,null,null,null,null,null,null,null,null,null,null,null,null,null,null,null,null,"bma_Terrorismloss1TotalGrossLossEstimate","bma_Terrorismloss2TotalGrossLossEstimate","bma_Terrorismloss3TotalGrossLossEstimate",null,"bma_Terrorismloss4TotalGrossLossEstimate","bma_Terrorismloss5TotalGrossLossEstimate","bma_Terrorismloss6TotalGrossLossEstimate","bma_Terrorismloss7TotalGrossLossEstimate","bma_Terrorismloss8TotalGrossLossEstimate","bma_Terrorismloss9TotalGrossLossEstimate","bma_Terrorismloss10TotalGrossLossEstimate"]
[null,"The (re)insurer is to submit a description of its own worst-case annual aggregate loss scenario and the underlying assumptions. ",null,null,null,null,null,null,null,null,null,null,null,null,null,null,null,null,null,null,null,null,null,null,null,null,null,null,null,null,null,null,null,null,null,"bma_Terrorismloss1TripOrOtherRecoverableIfAny","bma_Terrorismloss2TripOrOtherRecoverableIfAny","bma_Terrorismloss3TripOrOtherRecoverableIfAny",null,"bma_Terrorismloss4TripOrOtherRecoverableIfAny","bma_Terrorismloss5TripOrOtherRecoverableIfAny","bma_Terrorismloss6TripOrOtherRecoverableIfAny","bma_Terrorismloss7TripOrOtherRecoverableIfAny","bma_Terrorismloss8TripOrOtherRecoverableIfAny","bma_Terrorismloss9TripOrOtherRecoverableIfAny","bma_Terrorismloss10TripOrOtherRecoverableIfAny"]
[null,"Worst-case annual aggregate loss \nscenario description",null,{"$f":"Import!I3116","v":0},null,null,null,null,null,null,null,null,null,null,null,null,null,null,null,null,"brrt_ReinsurerSpecificWorstcaseScenarioWorstcaseAnnualAggregateLossScenarioDescription",{"$f":"XBRLMap(D197,U197,E$427,E$428,CONFIGURATION!$B$10,\"BMA\",CONFIGURATION!$B$1,\"bscr\")","v":"Mapped"},null,null,null,null,null,null,null,null,null,null,null,null,null,"bma_Terrorismloss1ReinsuranceRecoveriesIfAny","bma_Terrorismloss2ReinsuranceRecoveriesIfAny","bma_Terrorismloss3ReinsuranceRecoveriesIfAny",null,"bma_Terrorismloss4ReinsuranceRecoveriesIfAny","bma_Terrorismloss5ReinsuranceRecoveriesIfAny","bma_Terrorismloss6ReinsuranceRecoveriesIfAny","bma_Terrorismloss7ReinsuranceRecoveriesIfAny","bma_Terrorismloss8ReinsuranceRecoveriesIfAny","bma_Terrorismloss9ReinsuranceRecoveriesIfAny","bma_Terrorismloss10ReinsuranceRecoveriesIfAny"]
[null,null,null,null,null,null,null,null,null,null,null,null,null,null,null,null,null,null,null,null,null,{"$f":"XBRLMap(D198,U198,E$427,E$428,CONFIGURATION!$B$10,\"BMA\",CONFIGURATION!$B$1,\"bscr\")","v":"-"},null,null,null,null,null,null,null,null,null,null,null,null,null,"bma_Terrorismloss1TotalNetLossEstimate","bma_Terrorismloss2TotalNetLossEstimate","bma_Terrorismloss3TotalNetLossEstimate",null,"bma_Terrorismloss4TotalNetLossEstimate","bma_Terrorismloss5TotalNetLossEstimate","bma_Terrorismloss6TotalNetLossEstimate","bma_Terrorismloss7TotalNetLossEstimate","bma_Terrorismloss8TotalNetLossEstimate","bma_Terrorismloss9TotalNetLossEstimate","bma_Terrorismloss10TotalNetLossEstimate"]
[null,"Gross loss",null,{"$f":"Import!I3117","v":0},null,null,null,null,null,null,null,null,null,null,null,null,null,null,null,null,"brrt_ReinsurerSpecificWorstcaseScenarioGrossLoss",{"$f":"XBRLMap(D199,U199,E$427,E$428,CONFIGURATION!$B$10,\"BMA\",CONFIGURATION!$B$1,\"bscr\")","v":"Mapped"},null,null,{"$f":"XBRLMapTuple(#REF!,H$427,H$428,\"BMA\",CONFIGURATION!$B$1,\"bscr\",\"\",CONFIGURATION!$B$12,$U$215,#REF!,$U$216,#REF!,#REF!,#REF!,#REF!,#REF!,$U$223,#REF!,$U$224,#REF!,$U$227,#REF!,$U$74,#REF!,$U$75,#REF!,#REF!,#REF!)","v":{"$error":"#VALUE!"}},{"$f":"XBRLMapTuple(#REF!,I$427,I$428,\"BMA\",CONFIGURATION!$B$1,\"bscr\",\"\",CONFIGURATION!$B$12,$U$215,#REF!,$U$216,#REF!,#REF!,#REF!,#REF!,G218,$U$223,G219,$U$224,G220,$U$227,G221,$U$74,G222,$U$75,G223,#REF!,G224)","v":{"$error":"#VALUE!"}},{"$f":"XBRLMapTuple(#REF!,J$427,J$428,\"BMA\",CONFIGURATION!$B$1,\"bscr\",\"\",CONFIGURATION!$B$12,$U$215,#REF!,$U$216,#REF!,#REF!,#REF!,#REF!,H218,$U$223,H219,$U$224,H220,$U$227,H221,$U$74,H222,$U$75,H223,#REF!,H224)","v":{"$error":"#VALUE!"}},null,null,null,null,null,null,null,null,"bma_Terrorismloss1TargetLocation","bma_Terrorismloss2TargetLocation","bma_Terrorismloss3TargetLocation",null,"bma_Terrorismloss4TargetLocation","bma_Terrorismloss5TargetLocation","bma_Terrorismloss6TargetLocation","bma_Terrorismloss7TargetLocation","bma_Terrorismloss8TargetLocation","bma_Terrorismloss9TargetLocation","bma_Terrorismloss10TargetLocation"]
[null,"Net loss",null,{"$f":"Import!I3118","v":0},null,null,null,null,null,null,null,null,null,null,null,null,null,null,null,null,"brrt_ReinsurerSpecificWorstcaseScenarioNetLoss",{"$f":"XBRLMap(D200,U200,E$427,E$428,CONFIGURATION!$B$10,\"BMA\",CONFIGURATION!$B$1,\"bscr\")","v":"Mapped"}]
[null,"Occurrence Return period",null,{"$f":"Import!I3119","v":0},null,null,null,null,null,null,null,null,null,null,null,null,null,null,null,null,"brrt_SeriesOfLossSimulationsReturnPeriod",{"$f":"XBRLMap(D201,U201,E$427,E$428,CONFIGURATION!$B$10,\"BMA\",CONFIGURATION!$B$1,\"bscr\")","v":"Mapped"},null,null,null,null,null,{"$f":"XBRLMapTuple(#REF!,K$427,K$428,\"BMA\",CONFIGURATION!$B$1,\"bscr\",\"\",CONFIGURATION!$B$12,$U$215,I227,$U$216,I74,#REF!,I75,#REF!,I76,$U$223,I77,$U$224,I78,$U$227,I79,$U$74,I80,$U$75,I81,#REF!,I422)","v":{"$error":"#VALUE!"}},{"$f":"XBRLMapTuple(#REF!,L$427,L$428,\"BMA\",CONFIGURATION!$B$1,\"bscr\",\"\",CONFIGURATION!$B$12,$U$215,J227,$U$216,J74,#REF!,J75,#REF!,J76,$U$223,J77,$U$224,#REF!,$U$227,#REF!,$U$74,#REF!,$U$75,#REF!,#REF!,J422)","v":{"$error":"#VALUE!"}},{"$f":"XBRLMapTuple(#REF!,L$427,L$428,\"BMA\",CONFIGURATION!$B$1,\"bscr\",\"\",CONFIGURATION!$B$12,$U$215,K227,$U$216,K74,#REF!,K75,#REF!,K76,$U$223,K77,$U$224,#REF!,$U$227,#REF!,$U$74,#REF!,$U$75,#REF!,#REF!,K422)","v":{"$error":"#VALUE!"}},{"$f":"XBRLMapTuple(#REF!,L$427,L$428,\"BMA\",CONFIGURATION!$B$1,\"bscr\",\"\",CONFIGURATION!$B$12,$U$215,L227,$U$216,L74,#REF!,L75,#REF!,L76,$U$223,L77,$U$224,K78,$U$227,K79,$U$74,K80,$U$75,K81,#REF!,L422)","v":{"$error":"#VALUE!"}},{"$f":"XBRLMapTuple(#REF!,L$427,L$428,\"BMA\",CONFIGURATION!$B$1,\"bscr\",\"\",CONFIGURATION!$B$12,$U$215,N227,$U$216,N74,#REF!,N75,#REF!,N76,$U$223,N77,$U$224,N78,$U$227,N79,$U$74,N80,$U$75,N81,#REF!,N422)","v":{"$error":"#VALUE!"}}]
[null,"Relative Return period",null,{"$f":"Import!I3120","v":0},null,"Doc Name","Page Number",null,null,null,null,null,null,null,null,null,null,null,null,null,"brrt_ReinsurerSpecificWorstcaseScenarioReturnPeriod",{"$f":"XBRLMap(D202,U202,E$427,E$428,CONFIGURATION!$B$10,\"BMA\",CONFIGURATION!$B$1,\"bscr\")","v":"Mapped"}]
[null,"Underlying assumptions",null,{"$f":"HYPERLINK(\"#'Attachments'!G145\",\"Attach file\")","v":"Attach file"}]
[]
[null,{"$f":"IF('Company Information'!$F$11=\"Class 3A\",\"G. REVERSE STRESS TEST SCENARIO\",\"H. REVERSE STRESS TEST SCENARIO\")","v":"H. REVERSE STRESS TEST SCENARIO"}]
[null,"The (re)insurer is to submit key assumptions and scenarios that would cause business failure as determined by a reverse stress test scenario."]
[null,"Reverse stress test scenario description",null,{"$f":"Import!I3121","v":0},null,null,null,null,null,null,null,null,null,null,null,null,null,null,null,null,"brrt_ReinsurerSpecificWorstcaseScenarioWorstcaseAnnualAggregateLossScenarioDescription",{"$f":"XBRLMap(D207,U207,E$427,E$428,CONFIGURATION!$B$10,\"BMA\",CONFIGURATION!$B$1,\"bscr\")","v":"Mapped"},null,null,null,null,null,null,null,null,null,null,null,null,null,"bma_Terrorismloss1ReinsuranceRecoveriesIfAny","bma_Terrorismloss2ReinsuranceRecoveriesIfAny","bma_Terrorismloss3ReinsuranceRecoveriesIfAny",null,"bma_Terrorismloss4ReinsuranceRecoveriesIfAny","bma_Terrorismloss5ReinsuranceRecoveriesIfAny","bma_Terrorismloss6ReinsuranceRecoveriesIfAny","bma_Terrorismloss7ReinsuranceRecoveriesIfAny","bma_Terrorismloss8ReinsuranceRecoveriesIfAny","bma_Terrorismloss9ReinsuranceRecoveriesIfAny","bma_Terrorismloss10ReinsuranceRecoveriesIfAny"]
[null,null,null,null,null,null,null,null,null,null,null,null,null,null,null,null,null,null,null,null,null,{"$f":"XBRLMap(D208,U208,E$427,E$428,CONFIGURATION!$B$10,\"BMA\",CONFIGURATION!$B$1,\"bscr\")","v":"-"},null,null,null,null,null,null,null,null,null,null,null,null,null,"bma_Terrorismloss1TotalNetLossEstimate","bma_Terrorismloss2TotalNetLossEstimate","bma_Terrorismloss3TotalNetLossEstimate",null,"bma_Terrorismloss4TotalNetLossEstimate","bma_Terrorismloss5TotalNetLossEstimate","bma_Terrorismloss6TotalNetLossEstimate","bma_Terrorismloss7TotalNetLossEstimate","bma_Terrorismloss8TotalNetLossEstimate","bma_Terrorismloss9TotalNetLossEstimate","bma_Terrorismloss10TotalNetLossEstimate"]
[null,"Gross loss",null,{"$f":"Import!I3122","v":0},null,null,null,null,null,null,null,null,null,null,null,null,null,null,null,null,"brrt_ReinsurerSpecificWorstcaseScenarioGrossLoss",{"$f":"XBRLMap(D209,U209,E$427,E$428,CONFIGURATION!$B$10,\"BMA\",CONFIGURATION!$B$1,\"bscr\")","v":"Mapped"},null,null,{"$f":"XBRLMapTuple(#REF!,H$427,H$428,\"BMA\",CONFIGURATION!$B$1,\"bscr\",\"\",CONFIGURATION!$B$12,$U$215,#REF!,$U$216,#REF!,#REF!,#REF!,#REF!,#REF!,$U$223,#REF!,$U$224,#REF!,$U$227,#REF!,$U$74,#REF!,$U$75,#REF!,#REF!,#REF!)","v":{"$error":"#VALUE!"}},{"$f":"XBRLMapTuple(#REF!,I$427,I$428,\"BMA\",CONFIGURATION!$B$1,\"bscr\",\"\",CONFIGURATION!$B$12,$U$215,G444,$U$216,G445,#REF!,G446,#REF!,G447,$U$223,G448,$U$224,G449,$U$227,G450,$U$74,G451,$U$75,G452,#REF!,G453)","v":{"$error":"#VALUE!"}},{"$f":"XBRLMapTuple(#REF!,J$427,J$428,\"BMA\",CONFIGURATION!$B$1,\"bscr\",\"\",CONFIGURATION!$B$12,$U$215,H444,$U$216,H445,#REF!,H446,#REF!,H447,$U$223,H448,$U$224,H449,$U$227,H450,$U$74,H451,$U$75,H452,#REF!,H453)","v":{"$error":"#VALUE!"}},null,null,null,null,null,null,null,null,"bma_Terrorismloss1TargetLocation","bma_Terrorismloss2TargetLocation","bma_Terrorismloss3TargetLocation",null,"bma_Terrorismloss4TargetLocation","bma_Terrorismloss5TargetLocation","bma_Terrorismloss6TargetLocation","bma_Terrorismloss7TargetLocation","bma_Terrorismloss8TargetLocation","bma_Terrorismloss9TargetLocation","bma_Terrorismloss10TargetLocation"]
[null,"Net loss",null,{"$f":"Import!I3123","v":0},null,null,null,null,null,null,null,null,null,null,null,null,null,null,null,null,"brrt_ReinsurerSpecificWorstcaseScenarioNetLoss",{"$f":"XBRLMap(D210,U210,E$427,E$428,CONFIGURATION!$B$10,\"BMA\",CONFIGURATION!$B$1,\"bscr\")","v":"Mapped"}]
[null,"Occurrence Return period",null,{"$f":"Import!I3124","v":0},null,null,null,null,null,null,null,null,null,null,null,null,null,null,null,null,"brrt_SeriesOfLossSimulationsReturnPeriod",{"$f":"XBRLMap(D211,U211,E$427,E$428,CONFIGURATION!$B$10,\"BMA\",CONFIGURATION!$B$1,\"bscr\")","v":"Mapped"},null,null,null,null,null,{"$f":"XBRLMapTuple(#REF!,K$427,K$428,\"BMA\",CONFIGURATION!$B$1,\"bscr\",\"\",CONFIGURATION!$B$12,$U$215,I456,$U$216,I189,#REF!,I190,#REF!,I191,$U$223,I192,$U$224,I193,$U$227,I194,$U$74,I195,$U$75,I196,#REF!,I457)","v":{"$error":"#VALUE!"}},{"$f":"XBRLMapTuple(#REF!,L$427,L$428,\"BMA\",CONFIGURATION!$B$1,\"bscr\",\"\",CONFIGURATION!$B$12,$U$215,J456,$U$216,J189,#REF!,J190,#REF!,J191,$U$223,J192,$U$224,J193,$U$227,J194,$U$74,J195,$U$75,J196,#REF!,J457)","v":{"$error":"#VALUE!"}},{"$f":"XBRLMapTuple(#REF!,L$427,L$428,\"BMA\",CONFIGURATION!$B$1,\"bscr\",\"\",CONFIGURATION!$B$12,$U$215,K456,$U$216,K189,#REF!,K190,#REF!,K191,$U$223,K192,$U$224,K193,$U$227,K194,$U$74,K195,$U$75,K196,#REF!,K457)","v":{"$error":"#VALUE!"}},{"$f":"XBRLMapTuple(#REF!,L$427,L$428,\"BMA\",CONFIGURATION!$B$1,\"bscr\",\"\",CONFIGURATION!$B$12,$U$215,L456,$U$216,L189,#REF!,L190,#REF!,L191,$U$223,L192,$U$224,L193,$U$227,L194,$U$74,L195,$U$75,L196,#REF!,L457)","v":{"$error":"#VALUE!"}},{"$f":"XBRLMapTuple(#REF!,L$427,L$428,\"BMA\",CONFIGURATION!$B$1,\"bscr\",\"\",CONFIGURATION!$B$12,$U$215,N456,$U$216,N189,#REF!,N190,#REF!,N191,$U$223,N192,$U$224,N193,$U$227,N194,$U$74,N195,$U$75,N196,#REF!,N457)","v":{"$error":"#VALUE!"}}]
[null,"Relative Return period",null,{"$f":"Import!I3125","v":0},null,"Doc Name","Page Number",null,null,null,null,null,null,null,null,null,null,null,null,null,"brrt_ReinsurerSpecificWorstcaseScenarioReturnPeriod",{"$f":"XBRLMap(D212,U212,E$427,E$428,CONFIGURATION!$B$10,\"BMA\",CONFIGURATION!$B$1,\"bscr\")","v":"Mapped"}]
[null,"Underlying assumptions",null,{"$f":"HYPERLINK(\"#'Attachments'!G145\",\"Attach file\")","v":"Attach file"}]
[]
[null,"I. TERRORISM",null,null,null,null,null,null,null,null,null,null,null,null,null,null,null,null,null,null,"brrt_CatastropheLossEvent",{"$f":"XBRLMapTuple(U215,E$427,E$428,\"BMA\",CONFIGURATION!$B$1,\"bscr\",\"tuple_hurricane_gustav\",CONFIGURATION!$B$12,#REF!,#REF!,#REF!,#REF!,#REF!,#REF!,#REF!,#REF!,#REF!,#REF!,#REF!,#REF!)","v":{"$error":"#VALUE!"}},{"$f":"XBRLMapTuple(U215,F$427,F$428,\"BMA\",CONFIGURATION!$B$1,\"bscr\",\"tuple_hurricane_gustav\",CONFIGURATION!$B$12,#REF!,#REF!,#REF!,#REF!,#REF!,#REF!,#REF!,#REF!,#REF!,#REF!,#REF!,#REF!,#REF!,#REF!)","v":{"$error":"#VALUE!"}}]
[null,{"$f":"\"The (re)insurer is to submit the estimated top ten largest losses (in descending order) arising from explosion of a two-tonne bomb based upon policies in force at \"&TEXT('Company Information'!C3+1,\"mmmm d yyyy\")","v":"The (re)insurer is to submit the estimated top ten largest losses (in descending order) arising from explosion of a two-tonne bomb based upon policies in force at January 1 2020"},null,null,null,null,null,null,null,null,null,null,null,null,null,null,null,null,null,null,"brrt_CatastropheLossEvent",{"$f":"XBRLMapTuple(U216,E$427,E$428,\"BMA\",CONFIGURATION!$B$1,\"bscr\",\"tuple_hurricane_ike\",CONFIGURATION!$B$12,#REF!,#REF!,#REF!,#REF!,#REF!,#REF!,#REF!,#REF!,#REF!,#REF!,#REF!,#REF!)","v":{"$error":"#VALUE!"}},{"$f":"XBRLMapTuple(U216,F$427,F$428,\"BMA\",CONFIGURATION!$B$1,\"bscr\",\"tuple_hurricane_ike\",CONFIGURATION!$B$12,#REF!,#REF!,#REF!,#REF!,#REF!,#REF!,#REF!,#REF!,#REF!,#REF!,#REF!,#REF!,#REF!,#REF!)","v":{"$error":"#VALUE!"}}]
[null,null,null,"Loss 1","Loss 2","Loss 3","Loss 4","Loss 5","Loss 6","Loss 7","Loss 8","Loss 9","Loss 10",null,null,null,null,null,null,null,"brrt_TopTenLargestLossesFromExplosionOfATwoTonneBombBasedOnPoliciesInForceAtBegginingOfNextReportingPeriod",{"$f":"XBRLMapTuple($U$217,E$427,E$428,\"BMA\",CONFIGURATION!$B$1,\"bscr\",\"\",CONFIGURATION!$B$12,$U$218,D218,$U$219,D219,$U$220,D220,$U$221,D221,$U$222,D222,$U$223,D223,$U$224,D224)","v":"Mapped"},{"$f":"XBRLMapTuple($U$217,F$427,F$428,\"BMA\",CONFIGURATION!$B$1,\"bscr\",\"\",CONFIGURATION!$B$12,$U$218,E218,$U$219,E219,$U$220,E220,$U$221,E221,$U$222,E222,$U$223,E223,$U$224,E224)","v":"Mapped"},{"$f":"XBRLMapTuple($U$217,G$427,G$428,\"BMA\",CONFIGURATION!$B$1,\"bscr\",\"\",CONFIGURATION!$B$12,$U$218,F218,$U$219,F219,$U$220,F220,$U$221,F221,$U$222,F222,$U$223,F223,$U$224,F224)","v":"Mapped"},{"$f":"XBRLMapTuple($U$217,H$427,H$428,\"BMA\",CONFIGURATION!$B$1,\"bscr\",\"\",CONFIGURATION!$B$12,$U$218,G218,$U$219,G219,$U$220,G220,$U$221,G221,$U$222,G222,$U$223,G223,$U$224,G224)","v":"Mapped"},{"$f":"XBRLMapTuple($U$217,I$427,I$428,\"BMA\",CONFIGURATION!$B$1,\"bscr\",\"\",CONFIGURATION!$B$12,$U$218,H218,$U$219,H219,$U$220,H220,$U$221,H221,$U$222,H222,$U$223,H223,$U$224,H224)","v":"Mapped"},{"$f":"XBRLMapTuple($U$217,J$427,J$428,\"BMA\",CONFIGURATION!$B$1,\"bscr\",\"\",CONFIGURATION!$B$12,$U$218,I218,$U$219,I219,$U$220,I220,$U$221,I221,$U$222,I222,$U$223,I223,$U$224,I224)","v":"Mapped"},{"$f":"XBRLMapTuple($U$217,K$427,K$428,\"BMA\",CONFIGURATION!$B$1,\"bscr\",\"\",CONFIGURATION!$B$12,$U$218,J218,$U$219,J219,$U$220,J220,$U$221,J221,$U$222,J222,$U$223,J223,$U$224,J224)","v":"Mapped"},{"$f":"XBRLMapTuple($U$217,L$427,L$428,\"BMA\",CONFIGURATION!$B$1,\"bscr\",\"\",CONFIGURATION!$B$12,$U$218,K218,$U$219,K219,$U$220,K220,$U$221,K221,$U$222,K222,$U$223,K223,$U$224,K224)","v":"Mapped"},{"$f":"XBRLMapTuple($U$217,O$427,O$428,\"BMA\",CONFIGURATION!$B$1,\"bscr\",\"\",CONFIGURATION!$B$12,$U$218,L218,$U$219,L219,$U$220,L220,$U$221,L221,$U$222,L222,$U$223,L223,$U$224,L224)","v":"Mapped"},{"$f":"XBRLMapTuple($U$217,R$427,R$428,\"BMA\",CONFIGURATION!$B$1,\"bscr\",\"\",CONFIGURATION!$B$12,$U$218,M218,$U$219,M219,$U$220,M220,$U$221,M221,$U$222,M222,$U$223,M223,$U$224,M224)","v":"Mapped"}]
[null,"State / province",null,{"$f":"Import!I3127","v":0},{"$f":"Import!I3134","v":0},{"$f":"Import!I3141","v":0},{"$f":"Import!I3148","v":0},{"$f":"Import!I3155","v":0},{"$f":"Import!I3162","v":0},{"$f":"Import!I3169","v":0},{"$f":"Import!I3176","v":0},{"$f":"Import!I3183","v":0},{"$f":"Import!I3190","v":0},null,null,null,null,null,null,null,"brrt_TopTenLargestLossesFromExplosionOfATwoTonneBombBasedOnPoliciesInForceAtBegginingOfNextReportingPeriodStateOrProvince"]
[null,"Country",null,{"$f":"Import!I3128","v":0},{"$f":"Import!I3135","v":0},{"$f":"Import!I3142","v":0},{"$f":"Import!I3149","v":0},{"$f":"Import!I3156","v":0},{"$f":"Import!I3163","v":0},{"$f":"Import!I3170","v":0},{"$f":"Import!I3177","v":0},{"$f":"Import!I3184","v":0},{"$f":"Import!I3191","v":0},null,null,null,null,null,null,null,"brrt_TopTenLargestLossesFromExplosionOfATwoTonneBombBasedOnPoliciesInForceAtBegginingOfNextReportingPeriodCountry"]
[null,"Total gross loss estimate",null,{"$f":"Import!I3129","v":0},{"$f":"Import!I3136","v":0},{"$f":"Import!I3143","v":0},{"$f":"Import!I3150","v":0},{"$f":"Import!I3157","v":0},{"$f":"Import!I3164","v":0},{"$f":"Import!I3171","v":0},{"$f":"Import!I3178","v":0},{"$f":"Import!I3185","v":0},{"$f":"Import!I3192","v":0},null,null,null,null,null,null,null,"brrt_TopTenLargestLossesFromExplosionOfATwoTonneBombBasedOnPoliciesInForceAtBegginingOfNextReportingPeriodTotalGrossLossEstimate"]
[null,"TRIP or other recoverable, if any",null,{"$f":"Import!I3130","v":0},{"$f":"Import!I3137","v":0},{"$f":"Import!I3144","v":0},{"$f":"Import!I3151","v":0},{"$f":"Import!I3158","v":0},{"$f":"Import!I3165","v":0},{"$f":"Import!I3172","v":0},{"$f":"Import!I3179","v":0},{"$f":"Import!I3186","v":0},{"$f":"Import!I3193","v":0},null,null,null,null,null,null,null,"brrt_TopTenLargestLossesFromExplosionOfATwoTonneBombBasedOnPoliciesInForceAtBegginingOfNextReportingPeriodTRIPOrOtherTerrorPoolRecoverables"]
[null,"Reinsurance recoveries, if any",null,{"$f":"Import!I3131","v":0},{"$f":"Import!I3138","v":0},{"$f":"Import!I3145","v":0},{"$f":"Import!I3152","v":0},{"$f":"Import!I3159","v":0},{"$f":"Import!I3166","v":0},{"$f":"Import!I3173","v":0},{"$f":"Import!I3180","v":0},{"$f":"Import!I3187","v":0},{"$f":"Import!I3194","v":0},null,null,null,null,null,null,null,"brrt_TopTenLargestLossesFromExplosionOfATwoTonneBombBasedOnPoliciesInForceAtBegginingOfNextReportingPeriodReinsuranceRecoveries"]
[null,"Total net loss estimate",null,{"$f":"Import!I3132","v":0},{"$f":"Import!I3139","v":0},{"$f":"Import!I3146","v":0},{"$f":"Import!I3153","v":0},{"$f":"Import!I3160","v":0},{"$f":"Import!I3167","v":0},{"$f":"Import!I3174","v":0},{"$f":"Import!I3181","v":0},{"$f":"Import!I3188","v":0},{"$f":"Import!I3195","v":0},null,null,null,null,null,null,null,"brrt_TopTenLargestLossesFromExplosionOfATwoTonneBombBasedOnPoliciesInForceAtBegginingOfNextReportingPeriodTotalNetLossEstimate",null,"brrt_UnderwritingLossScenariosNotApplicableOrPartiallyApplyDescriptionOfThreeOfInsurerUnderwritingScenariosAndRelatedKeyAssumptionsStatutoryCapitalAndSurplusPostStressScenarioGrossLoss","brrt_UnderwritingLossScenariosNotApplicableOrPartiallyApplyDescriptionOfThreeOfInsurerUnderwritingScenariosAndRelatedKeyAssumptionsAggregateStatutoryAdmittedAssetsPostStressScenarioNetLoss","brrt_UnderwritingLossScenariosNotApplicableOrPartiallyApplyDescriptionOfThreeOfInsurerUnderwritingScenariosAndRelatedKeyAssumptionsAdmittedLiabilitiesPostStressScenarioNetLoss","brrt_UnderwritingLossScenariosNotApplicableOrPartiallyApplyDescriptionOfThreeOfInsurerUnderwritingScenariosAndRelatedKeyAssumptionsStatutoryCapitalAndSurplusPostStressScenarioNetLoss"]
[null,"Target location",null,{"$f":"Import!I3133","v":0},{"$f":"Import!I3140","v":0},{"$f":"Import!I3147","v":0},{"$f":"Import!I3154","v":0},{"$f":"Import!I3161","v":0},{"$f":"Import!I3168","v":0},{"$f":"Import!I3175","v":0},{"$f":"Import!I3182","v":0},{"$f":"Import!I3189","v":0},{"$f":"Import!I3196","v":0},null,null,null,null,null,null,null,"brrt_TopTenLargestLossesFromExplosionOfATwoTonneBombBasedOnPoliciesInForceAtBegginingOfNextReportingPeriodTargetLocation","brrt_UnderwritingLossScenariosNotApplicableOrPartiallyApplyDescriptionOfThreeOfInsurerUnderwritingScenariosAndRelatedKeyAssumptionsAdmittedLiabilitiesPostStressScenarioGrossLoss"]
[null,"Proprietary / vendor model and version",null,{"$f":"Import!I3126","v":0},null,"Doc Name","Page Number",null,null,null,null,null,null,null,null,null,null,null,null,null,"brrt_TopTenLargestLossesFromExplosionOfATwoTonneBombBasedOnPoliciesInForceAtBegginingOfNextReportingPeriodProprietaryVendorModelAndVersion",{"$f":"XBRLMap(D225,U225,E$427,E$428,CONFIGURATION!$B$10,\"BMA\",CONFIGURATION!$B$1,\"bscr\")","v":"Mapped"}]
[null,"All assumptions and calculations",null,{"$f":"HYPERLINK(\"#'Attachments'!G145\",\"Attach file\")","v":"Attach file"}]
[]
[null,{"$f":"IF('Company Information'!$F$11=\"Class 3A\",\"H. TECHNOLOGY RISK\",\"J. TECHNOLOGY RISK\")","v":"J. TECHNOLOGY RISK"}]
[null,"a) CYBER RISK - UNDERWRITING "]
[null,"If the Re(insurer) writes cyber risk business, provide details of that business as detailed below for the policies written in 2019:"]
[null,"a) (Re)Insurer writes cyber risk business, provide details for the policies written below. "]
[null,"b) (Re)Insurer does not write cyber risk business, provide details on item 2 (non-affirmative cyber) only for the policies written."]
[null,"c) For a (re)insurer, unconsolidated results relate to the Bermuda standalone operations (Excluding subsidiaries) and consolidated results relates to Bermuda entity level results (Including Subsidiaries). "]
[null,"d) For a (re)insurer, answering YES/NO below, please specify if you are consolidated by a another Bermuda (re)insurer:"]
[null,"Results consolidated by a Bermuda (re)insurer",null,{"$f":"Import!I3197","v":"Select"}]
[null,"Name of the Parent Bermuda (re)insurer",null,{"$f":"Import!I3198","v":0}]
[]
[null,"CONSOLIDATED RESULTS (Bermuda + Subsidiaries)"]
[null,"Policy Type",null,"Direct & Facultative",null,null,"Reinsurance",null,null,"Package "]
[null,null,null,2019,2018,null,2019,2018,null,2019,2018]
["(i)","Total number of cyber policies in force (units) ",null,{"$f":"Import!I3199","v":0},{"$f":"Import!K3199","v":0},null,{"$f":"Import!I3212","v":0},{"$f":"Import!K3212","v":0},null,{"$f":"Import!I3225","v":0},{"$f":"Import!K3225","v":0}]
["(ii)","Gross Exposure for Policies in force ('$000)",null,{"$f":"Import!I3200","v":0},{"$f":"Import!K3200","v":0},{"$f":"IF(D242>D243,\"TRUE\",\"FALSE\")","v":"FALSE"},{"$f":"Import!I3213","v":0},{"$f":"Import!K3213","v":0},{"$f":"IF(G242>G243,\"TRUE\",\"FALSE\")","v":"FALSE"},{"$f":"Import!I3226","v":0},{"$f":"Import!K3226","v":0},{"$f":"IF(J242>J243,\"TRUE\",\"FALSE\")","v":"FALSE"}]
["(iii)","Net Exposure for Policies in force ($'000)",null,{"$f":"Import!I3201","v":0},{"$f":"Import!K3201","v":0},null,{"$f":"Import!I3214","v":0},{"$f":"Import!K3214","v":0},null,{"$f":"Import!I3227","v":0},{"$f":"Import!K3227","v":0}]
["(iv)","Gross Premium Written ('$000)",null,{"$f":"Import!I3202","v":0},{"$f":"Import!K3202","v":0},{"$f":"IF(D244>D245,\"TRUE\",\"FALSE\")","v":"FALSE"},{"$f":"Import!I3215","v":0},{"$f":"Import!K3215","v":0},{"$f":"IF(G244>G245,\"TRUE\",\"FALSE\")","v":"FALSE"},{"$f":"Import!I3228","v":0},{"$f":"Import!K3228","v":0},{"$f":"IF(J244>J245,\"TRUE\",\"FALSE\")","v":"FALSE"}]
["(v)","Net Premium Written ($'000)",null,{"$f":"Import!I3203","v":0},{"$f":"Import!K3203","v":0},null,{"$f":"Import!I3216","v":0},{"$f":"Import!K3216","v":0},null,{"$f":"Import!I3229","v":0},{"$f":"Import!K3229","v":0}]
["(vi)","Gross Loss Reserves ('$000)",null,{"$f":"Import!I3204","v":0},{"$f":"Import!K3204","v":0},{"$f":"IF(D246>D247,\"TRUE\",\"FALSE\")","v":"FALSE"},{"$f":"Import!I3217","v":0},{"$f":"Import!K3217","v":0},{"$f":"IF(G246>G247,\"TRUE\",\"FALSE\")","v":"FALSE"},{"$f":"Import!I3230","v":0},{"$f":"Import!K3230","v":0},{"$f":"IF(J246>J247,\"TRUE\",\"FALSE\")","v":"FALSE"}]
["(vii)","Net Loss Reserves ($'000)",null,{"$f":"Import!I3205","v":0},{"$f":"Import!K3205","v":0},null,{"$f":"Import!I3218","v":0},{"$f":"Import!K3218","v":0},null,{"$f":"Import!I3231","v":0},{"$f":"Import!K3231","v":0}]
["(viii)","Number of reported claims (units) ",null,{"$f":"Import!I3206","v":0},{"$f":"Import!K3206","v":0},null,{"$f":"Import!I3219","v":0},{"$f":"Import!K3219","v":0},null,{"$f":"Import!I3232","v":0},{"$f":"Import!K3232","v":0}]
["(ix)","Paid claims ($'000)",null,{"$f":"Import!I3207","v":0},{"$f":"Import!K3207","v":0},null,{"$f":"Import!I3220","v":0},{"$f":"Import!K3220","v":0},null,{"$f":"Import!I3233","v":0},{"$f":"Import!K3233","v":0}]
["(x)","Incurred losses ($'000)",null,{"$f":"Import!I3208","v":0},{"$f":"Import!K3208","v":0},null,{"$f":"Import!I3221","v":0},{"$f":"Import!K3221","v":0},null,{"$f":"Import!I3234","v":0},{"$f":"Import!K3234","v":0}]
["(xi)","Approximate average size of claims ($'000)",null,{"$f":"Import!I3209","v":0},{"$f":"Import!K3209","v":0},null,{"$f":"Import!I3222","v":0},{"$f":"Import!K3222","v":0},null,{"$f":"Import!I3235","v":0},{"$f":"Import!K3235","v":0}]
["(xii)","Largest Cyber Claim ($'000)",null,{"$f":"Import!I3210","v":0},{"$f":"Import!K3210","v":0},null,{"$f":"Import!I3223","v":0},{"$f":"Import!K3223","v":0},null,{"$f":"Import!I3236","v":0},{"$f":"Import!K3236","v":0}]
["(xiii)","Brief Description of largest claim (text)",null,{"$f":"Import!I3211","v":0},null,null,{"$f":"Import!I3224","v":0},null,null,{"$f":"Import!I3237","v":0}]
[]
[null,"UNCONSOLIDATED RESULTS (Bermuda Only)"]
[null,"Policy Type",null,"Direct & Facultative",null,null,"Reinsurance",null,null,"Package ",null,null,"Related Party Business",null,null,"Unrelated Business (third party)"]
[null,null,null,2019,2018,null,2019,2018,null,2019,2018,null,2019,2018,null,2019,2018]
["(i)","Total number of cyber policies in force (units) ",null,{"$f":"Import!E3199","v":0},{"$f":"Import!G3199","v":0},null,{"$f":"Import!E3212","v":0},{"$f":"Import!G3212","v":0},null,{"$f":"Import!E3225","v":0},{"$f":"Import!G3225","v":0},null,{"$f":"Import!E3238","v":0},{"$f":"Import!G3238","v":0},null,{"$f":"Import!E3251","v":0},{"$f":"Import!G3251","v":0}]
["(ii)","Gross Exposure for Policies in force ('$000)",null,{"$f":"Import!E3200","v":0},{"$f":"Import!G3200","v":0},{"$f":"IF(D259>D260,\"TRUE\",\"FALSE\")","v":"FALSE"},{"$f":"Import!E3213","v":0},{"$f":"Import!G3213","v":0},{"$f":"IF(G259>G260,\"TRUE\",\"FALSE\")","v":"FALSE"},{"$f":"Import!E3226","v":0},{"$f":"Import!G3226","v":0},{"$f":"IF(J259>J260,\"TRUE\",\"FALSE\")","v":"FALSE"},{"$f":"Import!E3239","v":0},{"$f":"Import!G3239","v":0},{"$f":"IF(M259>M260,\"TRUE\",\"FALSE\")","v":"FALSE"},{"$f":"Import!E3252","v":0},{"$f":"Import!G3252","v":0},{"$f":"IF(P259>P260,\"TRUE\",\"FALSE\")","v":"FALSE"}]
["(iii)","Net Exposure for Policies in force ($'000)",null,{"$f":"Import!E3201","v":0},{"$f":"Import!G3201","v":0},null,{"$f":"Import!E3214","v":0},{"$f":"Import!G3214","v":0},null,{"$f":"Import!E3227","v":0},{"$f":"Import!G3227","v":0},null,{"$f":"Import!E3240","v":0},{"$f":"Import!G3240","v":0},null,{"$f":"Import!E3253","v":0},{"$f":"Import!G3253","v":0}]
["(iv)","Gross Premium Written ('$000)",null,{"$f":"Import!E3202","v":0},{"$f":"Import!G3202","v":0},{"$f":"IF(D261>D262,\"TRUE\",\"FALSE\")","v":"FALSE"},{"$f":"Import!E3215","v":0},{"$f":"Import!G3215","v":0},{"$f":"IF(G261>G262,\"TRUE\",\"FALSE\")","v":"FALSE"},{"$f":"Import!E3228","v":0},{"$f":"Import!G3228","v":0},{"$f":"IF(J261>J262,\"TRUE\",\"FALSE\")","v":"FALSE"},{"$f":"Import!E3241","v":0},{"$f":"Import!G3241","v":0},{"$f":"IF(M261>M262,\"TRUE\",\"FALSE\")","v":"FALSE"},{"$f":"Import!E3254","v":0},{"$f":"Import!G3254","v":0},{"$f":"IF(P261>P262,\"TRUE\",\"FALSE\")","v":"FALSE"}]
["(v)","Net Premium Written ($'000)",null,{"$f":"Import!E3203","v":0},{"$f":"Import!G3203","v":0},null,{"$f":"Import!E3216","v":0},{"$f":"Import!G3216","v":0},null,{"$f":"Import!E3229","v":0},{"$f":"Import!G3229","v":0},null,{"$f":"Import!E3242","v":0},{"$f":"Import!G3242","v":0},null,{"$f":"Import!E3255","v":0},{"$f":"Import!G3255","v":0}]
["(vi)","Gross Loss Reserves ('$000)",null,{"$f":"Import!E3204","v":0},{"$f":"Import!G3204","v":0},{"$f":"IF(D263>D264,\"TRUE\",\"FALSE\")","v":"FALSE"},{"$f":"Import!E3217","v":0},{"$f":"Import!G3217","v":0},{"$f":"IF(G263>G264,\"TRUE\",\"FALSE\")","v":"FALSE"},{"$f":"Import!E3230","v":0},{"$f":"Import!G3230","v":0},{"$f":"IF(J263>J264,\"TRUE\",\"FALSE\")","v":"FALSE"},{"$f":"Import!E3243","v":0},{"$f":"Import!G3243","v":0},{"$f":"IF(M263>M264,\"TRUE\",\"FALSE\")","v":"FALSE"},{"$f":"Import!E3256","v":0},{"$f":"Import!G3256","v":0},{"$f":"IF(P263>P264,\"TRUE\",\"FALSE\")","v":"FALSE"}]
["(vii)","Net Loss Reserves ($'000)",null,{"$f":"Import!E3205","v":0},{"$f":"Import!G3205","v":0},null,{"$f":"Import!E3218","v":0},{"$f":"Import!G3218","v":0},null,{"$f":"Import!E3231","v":0},{"$f":"Import!G3231","v":0},null,{"$f":"Import!E3244","v":0},{"$f":"Import!G3244","v":0},null,{"$f":"Import!E3257","v":0},{"$f":"Import!G3257","v":0}]
["(viii)","Number of reported claims (units) ",null,{"$f":"Import!E3206","v":0},{"$f":"Import!G3206","v":0},null,{"$f":"Import!E3219","v":0},{"$f":"Import!G3219","v":0},null,{"$f":"Import!E3232","v":0},{"$f":"Import!G3232","v":0},null,{"$f":"Import!E3245","v":0},{"$f":"Import!G3245","v":0},null,{"$f":"Import!E3258","v":0},{"$f":"Import!G3258","v":0}]
["(ix)","Paid claims ($'000)",null,{"$f":"Import!E3207","v":0},{"$f":"Import!G3207","v":0},null,{"$f":"Import!E3220","v":0},{"$f":"Import!G3220","v":0},null,{"$f":"Import!E3233","v":0},{"$f":"Import!G3233","v":0},null,{"$f":"Import!E3246","v":0},{"$f":"Import!G3246","v":0},null,{"$f":"Import!E3259","v":0},{"$f":"Import!G3259","v":0}]
["(x)","Incurred losses ($'000)",null,{"$f":"Import!E3208","v":0},{"$f":"Import!G3208","v":0},null,{"$f":"Import!E3221","v":0},{"$f":"Import!G3221","v":0},null,{"$f":"Import!E3234","v":0},{"$f":"Import!G3234","v":0},null,{"$f":"Import!E3247","v":0},{"$f":"Import!G3247","v":0},null,{"$f":"Import!E3260","v":0},{"$f":"Import!G3260","v":0}]
["(xi)","Approximate average size of claims ($'000)",null,{"$f":"Import!E3209","v":0},{"$f":"Import!G3209","v":0},null,{"$f":"Import!E3222","v":0},{"$f":"Import!G3222","v":0},null,{"$f":"Import!E3235","v":0},{"$f":"Import!G3235","v":0},null,{"$f":"Import!E3248","v":0},{"$f":"Import!G3248","v":0},null,{"$f":"Import!E3261","v":0},{"$f":"Import!G3261","v":0}]
["(xii)","Largest Cyber Claim ($'000)",null,{"$f":"Import!E3210","v":0},{"$f":"Import!G3210","v":0},null,{"$f":"Import!E3223","v":0},{"$f":"Import!G3223","v":0},null,{"$f":"Import!E3236","v":0},{"$f":"Import!G3236","v":0},null,{"$f":"Import!E3249","v":0},{"$f":"Import!G3249","v":0},null,{"$f":"Import!E3262","v":0},{"$f":"Import!G3262","v":0}]
["(xiii)","Brief Description of largest claim (text)",null,{"$f":"Import!E3211","v":0},null,null,{"$f":"Import!E3224","v":0},null,null,{"$f":"Import!E3237","v":0},null,null,{"$f":"Import!E3250","v":0},null,null,{"$f":"Import!E3263","v":0}]
[]
[null,"GEOGRAPHIC SPECIFIC INFORMATION"]
[null,"CONSOLIDATED RESULTS (Bermuda + Subsidiaries)"]
[null,"Policy Type",null,"Direct & Facultative ",null,null,null,null,"Reinsurance ",null,null,null,null,"Package "]
[null,null,null,"# of Policies","2019 Cyber Premiums Written",null,"2019 Exposure ",null,"# of Policies","2019 Cyber Premiums Written",null,"2019 Exposure ",null,"# of Policies","2019 Cyber Premiums Written",null,"2019 Exposure "]
[null,"Location",null,null,"Gross ('$000)","Net ('$000)","Gross ('$000)","Net ('$000)",null,"Gross ('$000)","Net ('$000)","Gross ('$000)","Net ('$000)",null,"Gross ('$000)","Net ('$000)","Gross ('$000)","Net ('$000)"]
[null,"United States (all states)",null,{"$f":"Import!I3264","v":0},{"$f":"Import!I3271","v":0},{"$f":"Import!I3278","v":0},{"$f":"Import!I3285","v":0},{"$f":"Import!I3292","v":0},{"$f":"Import!I3299","v":0},{"$f":"Import!I3306","v":0},{"$f":"Import!I3313","v":0},{"$f":"Import!I3320","v":0},{"$f":"Import!I3327","v":0},{"$f":"Import!I3334","v":0},{"$f":"Import!I3341","v":0},{"$f":"Import!I3348","v":0},{"$f":"Import!I3355","v":0},{"$f":"Import!I3362","v":0}]
[null,"Canada",null,{"$f":"Import!I3265","v":0},{"$f":"Import!I3272","v":0},{"$f":"Import!I3279","v":0},{"$f":"Import!I3286","v":0},{"$f":"Import!I3293","v":0},{"$f":"Import!I3300","v":0},{"$f":"Import!I3307","v":0},{"$f":"Import!I3314","v":0},{"$f":"Import!I3321","v":0},{"$f":"Import!I3328","v":0},{"$f":"Import!I3335","v":0},{"$f":"Import!I3342","v":0},{"$f":"Import!I3349","v":0},{"$f":"Import!I3356","v":0},{"$f":"Import!I3363","v":0}]
[null,"UK, Continental Europe",null,{"$f":"Import!I3266","v":0},{"$f":"Import!I3273","v":0},{"$f":"Import!I3280","v":0},{"$f":"Import!I3287","v":0},{"$f":"Import!I3294","v":0},{"$f":"Import!I3301","v":0},{"$f":"Import!I3308","v":0},{"$f":"Import!I3315","v":0},{"$f":"Import!I3322","v":0},{"$f":"Import!I3329","v":0},{"$f":"Import!I3336","v":0},{"$f":"Import!I3343","v":0},{"$f":"Import!I3350","v":0},{"$f":"Import!I3357","v":0},{"$f":"Import!I3364","v":0}]
[null,"Australia, New Zealand",null,{"$f":"Import!I3267","v":0},{"$f":"Import!I3274","v":0},{"$f":"Import!I3281","v":0},{"$f":"Import!I3288","v":0},{"$f":"Import!I3295","v":0},{"$f":"Import!I3302","v":0},{"$f":"Import!I3309","v":0},{"$f":"Import!I3316","v":0},{"$f":"Import!I3323","v":0},{"$f":"Import!I3330","v":0},{"$f":"Import!I3337","v":0},{"$f":"Import!I3344","v":0},{"$f":"Import!I3351","v":0},{"$f":"Import!I3358","v":0},{"$f":"Import!I3365","v":0}]
[null,"Japan",null,{"$f":"Import!I3268","v":0},{"$f":"Import!I3275","v":0},{"$f":"Import!I3282","v":0},{"$f":"Import!I3289","v":0},{"$f":"Import!I3296","v":0},{"$f":"Import!I3303","v":0},{"$f":"Import!I3310","v":0},{"$f":"Import!I3317","v":0},{"$f":"Import!I3324","v":0},{"$f":"Import!I3331","v":0},{"$f":"Import!I3338","v":0},{"$f":"Import!I3345","v":0},{"$f":"Import!I3352","v":0},{"$f":"Import!I3359","v":0},{"$f":"Import!I3366","v":0}]
[null,"Worldwide covers",null,{"$f":"Import!I3269","v":0},{"$f":"Import!I3276","v":0},{"$f":"Import!I3283","v":0},{"$f":"Import!I3290","v":0},{"$f":"Import!I3297","v":0},{"$f":"Import!I3304","v":0},{"$f":"Import!I3311","v":0},{"$f":"Import!I3318","v":0},{"$f":"Import!I3325","v":0},{"$f":"Import!I3332","v":0},{"$f":"Import!I3339","v":0},{"$f":"Import!I3346","v":0},{"$f":"Import!I3353","v":0},{"$f":"Import!I3360","v":0},{"$f":"Import!I3367","v":0}]
[null,"Other",null,{"$f":"Import!I3270","v":0},{"$f":"Import!I3277","v":0},{"$f":"Import!I3284","v":0},{"$f":"Import!I3291","v":0},{"$f":"Import!I3298","v":0},{"$f":"Import!I3305","v":0},{"$f":"Import!I3312","v":0},{"$f":"Import!I3319","v":0},{"$f":"Import!I3326","v":0},{"$f":"Import!I3333","v":0},{"$f":"Import!I3340","v":0},{"$f":"Import!I3347","v":0},{"$f":"Import!I3354","v":0},{"$f":"Import!I3361","v":0},{"$f":"Import!I3368","v":0}]
[null,"TOTAL",null,{"$f":"SUM(D277:D283)=D241","v":true},{"$f":"SUM(E277:E283)=D244","v":true},{"$f":"SUM(F277:F283)=D245","v":true},{"$f":"SUM(G277:G283)=D242","v":true},{"$f":"SUM(H277:H283)=D243","v":true},{"$f":"SUM(I277:I283)=G241","v":true},{"$f":"SUM(J277:J283)=G244","v":true},{"$f":"SUM(K277:K283)=G245","v":true},{"$f":"SUM(L277:L283)=G242","v":true},{"$f":"SUM(M277:M283)=G243","v":true},{"$f":"SUM(N277:N283)=J241","v":true},{"$f":"SUM(O277:O283)=J244","v":true},{"$f":"SUM(P277:P283)=J245","v":true},{"$f":"SUM(Q277:Q283)=J242","v":true},{"$f":"SUM(R277:R283)=J243","v":true}]
[null,"Cyber Underwriting risk appetite and limits",null,{"$f":"HYPERLINK(\"#'Attachments'!G85\",\"Attach file\")","v":"Attach file"}]
[]
[null,"UNCONSOLIDATED RESULTS (Bermuda Only)"]
[null,"Policy Type",null,"Direct & Facultative ",null,null,null,null,"Reinsurance ",null,null,null,null,"Package "]
[null,null,null,"# of Policies","2019 Cyber Premiums Written",null,"2019 Exposure ",null,"# of Policies","2019 Cyber Premiums Written",null,"2019 Exposure ",null,"# of Policies","2019 Cyber Premiums Written",null,"2019 Exposure "]
[null,"Location",null,null,"Gross ('$000)","Net ('$000)","Gross ('$000)","Net ('$000)",null,"Gross ('$000)","Net ('$000)","Gross ('$000)","Net ('$000)",null,"Gross ('$000)","Net ('$000)","Gross ('$000)","Net ('$000)"]
[null,"United States (all states)",null,{"$f":"Import!E3264","v":0},{"$f":"Import!E3271","v":0},{"$f":"Import!E3278","v":0},{"$f":"Import!E3285","v":0},{"$f":"Import!E3292","v":0},{"$f":"Import!E3299","v":0},{"$f":"Import!E3306","v":0},{"$f":"Import!E3313","v":0},{"$f":"Import!E3320","v":0},{"$f":"Import!E3327","v":0},{"$f":"Import!E3334","v":0},{"$f":"Import!E3341","v":0},{"$f":"Import!E3348","v":0},{"$f":"Import!E3355","v":0},{"$f":"Import!E3362","v":0}]
[null,"Canada",null,{"$f":"Import!E3265","v":0},{"$f":"Import!E3272","v":0},{"$f":"Import!E3279","v":0},{"$f":"Import!E3286","v":0},{"$f":"Import!E3293","v":0},{"$f":"Import!E3300","v":0},{"$f":"Import!E3307","v":0},{"$f":"Import!E3314","v":0},{"$f":"Import!E3321","v":0},{"$f":"Import!E3328","v":0},{"$f":"Import!E3335","v":0},{"$f":"Import!E3342","v":0},{"$f":"Import!E3349","v":0},{"$f":"Import!E3356","v":0},{"$f":"Import!E3363","v":0}]
[null,"UK, Continental Europe",null,{"$f":"Import!E3266","v":0},{"$f":"Import!E3273","v":0},{"$f":"Import!E3280","v":0},{"$f":"Import!E3287","v":0},{"$f":"Import!E3294","v":0},{"$f":"Import!E3301","v":0},{"$f":"Import!E3308","v":0},{"$f":"Import!E3315","v":0},{"$f":"Import!E3322","v":0},{"$f":"Import!E3329","v":0},{"$f":"Import!E3336","v":0},{"$f":"Import!E3343","v":0},{"$f":"Import!E3350","v":0},{"$f":"Import!E3357","v":0},{"$f":"Import!E3364","v":0}]
[null,"Australia, New Zealand",null,{"$f":"Import!E3267","v":0},{"$f":"Import!E3274","v":0},{"$f":"Import!E3281","v":0},{"$f":"Import!E3288","v":0},{"$f":"Import!E3295","v":0},{"$f":"Import!E3302","v":0},{"$f":"Import!E3309","v":0},{"$f":"Import!E3316","v":0},{"$f":"Import!E3323","v":0},{"$f":"Import!E3330","v":0},{"$f":"Import!E3337","v":0},{"$f":"Import!E3344","v":0},{"$f":"Import!E3351","v":0},{"$f":"Import!E3358","v":0},{"$f":"Import!E3365","v":0}]
[null,"Japan",null,{"$f":"Import!E3268","v":0},{"$f":"Import!E3275","v":0},{"$f":"Import!E3282","v":0},{"$f":"Import!E3289","v":0},{"$f":"Import!E3296","v":0},{"$f":"Import!E3303","v":0},{"$f":"Import!E3310","v":0},{"$f":"Import!E3317","v":0},{"$f":"Import!E3324","v":0},{"$f":"Import!E3331","v":0},{"$f":"Import!E3338","v":0},{"$f":"Import!E3345","v":0},{"$f":"Import!E3352","v":0},{"$f":"Import!E3359","v":0},{"$f":"Import!E3366","v":0}]
[null,"Worldwide covers",null,{"$f":"Import!E3269","v":0},{"$f":"Import!E3276","v":0},{"$f":"Import!E3283","v":0},{"$f":"Import!E3290","v":0},{"$f":"Import!E3297","v":0},{"$f":"Import!E3304","v":0},{"$f":"Import!E3311","v":0},{"$f":"Import!E3318","v":0},{"$f":"Import!E3325","v":0},{"$f":"Import!E3332","v":0},{"$f":"Import!E3339","v":0},{"$f":"Import!E3346","v":0},{"$f":"Import!E3353","v":0},{"$f":"Import!E3360","v":0},{"$f":"Import!E3367","v":0}]
[null,"Other",null,{"$f":"Import!E3270","v":0},{"$f":"Import!E3277","v":0},{"$f":"Import!E3284","v":0},{"$f":"Import!E3291","v":0},{"$f":"Import!E3298","v":0},{"$f":"Import!E3305","v":0},{"$f":"Import!E3312","v":0},{"$f":"Import!E3319","v":0},{"$f":"Import!E3326","v":0},{"$f":"Import!E3333","v":0},{"$f":"Import!E3340","v":0},{"$f":"Import!E3347","v":0},{"$f":"Import!E3354","v":0},{"$f":"Import!E3361","v":0},{"$f":"Import!E3368","v":0}]
[null,"TOTAL",null,{"$f":"SUM(D291:D297)=D258","v":true},{"$f":"SUM(E291:E297)=D261","v":true},{"$f":"SUM(F291:F297)=D262","v":true},{"$f":"SUM(G291:G297)=D259","v":true},{"$f":"SUM(H291:H297)=D260","v":true},{"$f":"SUM(I291:I297)=G258","v":true},{"$f":"SUM(J291:J297)=G261","v":true},{"$f":"SUM(K291:K297)=G262","v":true},{"$f":"SUM(L291:L297)=G259","v":true},{"$f":"SUM(M291:M297)=G260","v":true},{"$f":"SUM(N291:N297)=J258","v":true},{"$f":"SUM(O291:O297)=J261","v":true},{"$f":"SUM(P291:P297)=J262","v":true},{"$f":"SUM(Q291:Q297)=J259","v":true},{"$f":"SUM(R291:R297)=J260","v":true}]
[null,"Cyber Underwriting risk appetite and limits",null,{"$f":"HYPERLINK(\"#'Attachments'!G85\",\"Attach file\")","v":"Attach file"}]
[]
[2,"For all other non-cyber specific insurance policies issued, provide the following on a consolidated basis:"]
[null,"Answering YES or NO, in which of the following lines of business has a cyber exclusion clause been included based on the policies enforced during the reporting period"]
[]
[null,null,null,null,null,null,"If NO, provide ESTIMATED Potential Gross Exposure for portfolio where no cyber exclusion clause has been included in the policy:",null,"Indicate if portfolio has predominantly claims-made (CM) or occurrence (OCC) claims trigger",null,"Were any cyber losses incurred on policies with no cyber exclusion clause?"]
[]
[]
[]
[null,null,null,null,null,"Yes/"]
[null,"Line of Business",null,null,null,"No",2019,2018]
[null,"Property",null,null,null,{"$f":"Import!I3369","v":"Select Yes/No"},{"$f":"Import!I3392","v":0},{"$f":"Import!I3415","v":0},{"$f":"Import!I3438","v":"Select from Drop-down"},{"$f":"Import!J3438","v":0},{"$f":"Import!I3461","v":"Select Yes/No"}]
[null,"Property Non-Proportional",null,null,null,{"$f":"Import!I3370","v":"Select Yes/No"},{"$f":"Import!I3393","v":0},{"$f":"Import!I3416","v":0},{"$f":"Import!I3439","v":"Select from Drop-down"},{"$f":"Import!J3439","v":0},{"$f":"Import!I3462","v":"Select Yes/No"}]
[null,"Personal Accident",null,null,null,{"$f":"Import!I3371","v":"Select Yes/No"},{"$f":"Import!I3394","v":0},{"$f":"Import!I3417","v":0},{"$f":"Import!I3440","v":"Select from Drop-down"},{"$f":"Import!J3440","v":0},{"$f":"Import!I3463","v":"Select Yes/No"}]
[null,"Personal Accident Non-Proportional",null,null,null,{"$f":"Import!I3372","v":"Select Yes/No"},{"$f":"Import!I3395","v":0},{"$f":"Import!I3418","v":0},{"$f":"Import!I3441","v":"Select from Drop-down"},{"$f":"Import!J3441","v":0},{"$f":"Import!I3464","v":"Select Yes/No"}]
[null,"Aviation",null,null,null,{"$f":"Import!I3373","v":"Select Yes/No"},{"$f":"Import!I3396","v":0},{"$f":"Import!I3419","v":0},{"$f":"Import!I3442","v":"Select from Drop-down"},{"$f":"Import!J3442","v":0},{"$f":"Import!I3465","v":"Select Yes/No"}]
[null,"Aviation Non-Proportional",null,null,null,{"$f":"Import!I3374","v":"Select Yes/No"},{"$f":"Import!I3397","v":0},{"$f":"Import!I3420","v":0},{"$f":"Import!I3443","v":"Select from Drop-down"},{"$f":"Import!J3443","v":0},{"$f":"Import!I3466","v":"Select Yes/No"}]
[null,"Credit/Surety",null,null,null,{"$f":"Import!I3375","v":"Select Yes/No"},{"$f":"Import!I3398","v":0},{"$f":"Import!I3421","v":0},{"$f":"Import!I3444","v":"Select from Drop-down"},{"$f":"Import!J3444","v":0},{"$f":"Import!I3467","v":"Select Yes/No"}]
[null,"Credit/Surety - Non-Proportional",null,null,null,{"$f":"Import!I3376","v":"Select Yes/No"},{"$f":"Import!I3399","v":0},{"$f":"Import!I3422","v":0},{"$f":"Import!I3445","v":"Select from Drop-down"},{"$f":"Import!J3445","v":0},{"$f":"Import!I3468","v":"Select Yes/No"}]
[null,"Energy Offshore/Marine",null,null,null,{"$f":"Import!I3377","v":"Select Yes/No"},{"$f":"Import!I3400","v":0},{"$f":"Import!I3423","v":0},{"$f":"Import!I3446","v":"Select from Drop-down"},{"$f":"Import!J3446","v":0},{"$f":"Import!I3469","v":"Select Yes/No"}]
[null,"Energy offshore/Marine Non-Proportional",null,null,null,{"$f":"Import!I3378","v":"Select Yes/No"},{"$f":"Import!I3401","v":0},{"$f":"Import!I3424","v":0},{"$f":"Import!I3447","v":"Select from Drop-down"},{"$f":"Import!J3447","v":0},{"$f":"Import!I3470","v":"Select Yes/No"}]
[null,"US Casualty",null,null,null,{"$f":"Import!I3379","v":"Select Yes/No"},{"$f":"Import!I3402","v":0},{"$f":"Import!I3425","v":0},{"$f":"Import!I3448","v":"Select from Drop-down"},{"$f":"Import!J3448","v":0},{"$f":"Import!I3471","v":"Select Yes/No"}]
[null,"US Casualty Non-Proportional",null,null,null,{"$f":"Import!I3380","v":"Select Yes/No"},{"$f":"Import!I3403","v":0},{"$f":"Import!I3426","v":0},{"$f":"Import!I3449","v":"Select from Drop-down"},{"$f":"Import!J3449","v":0},{"$f":"Import!I3472","v":"Select Yes/No"}]
[null,"US Professional",null,null,null,{"$f":"Import!I3381","v":"Select Yes/No"},{"$f":"Import!I3404","v":0},{"$f":"Import!I3427","v":0},{"$f":"Import!I3450","v":"Select from Drop-down"},{"$f":"Import!J3450","v":0},{"$f":"Import!I3473","v":"Select Yes/No"}]
[null,"US Professional Non-Proportional",null,null,null,{"$f":"Import!I3382","v":"Select Yes/No"},{"$f":"Import!I3405","v":0},{"$f":"Import!I3428","v":0},{"$f":"Import!I3451","v":"Select from Drop-down"},{"$f":"Import!J3451","v":0},{"$f":"Import!I3474","v":"Select Yes/No"}]
[null,"US Specialty",null,null,null,{"$f":"Import!I3383","v":"Select Yes/No"},{"$f":"Import!I3406","v":0},{"$f":"Import!I3429","v":0},{"$f":"Import!I3452","v":"Select from Drop-down"},{"$f":"Import!J3452","v":0},{"$f":"Import!I3475","v":"Select Yes/No"}]
[null,"US Specialty Non-Proportional",null,null,null,{"$f":"Import!I3384","v":"Select Yes/No"},{"$f":"Import!I3407","v":0},{"$f":"Import!I3430","v":0},{"$f":"Import!I3453","v":"Select from Drop-down"},{"$f":"Import!J3453","v":0},{"$f":"Import!I3476","v":"Select Yes/No"}]
[null,"International Motor",null,null,null,{"$f":"Import!I3385","v":"Select Yes/No"},{"$f":"Import!I3408","v":0},{"$f":"Import!I3431","v":0},{"$f":"Import!I3454","v":"Select from Drop-down"},{"$f":"Import!J3454","v":0},{"$f":"Import!I3477","v":"Select Yes/No"}]
[null,"International Motor Non-Proportional",null,null,null,{"$f":"Import!I3386","v":"Select Yes/No"},{"$f":"Import!I3409","v":0},{"$f":"Import!I3432","v":0},{"$f":"Import!I3455","v":"Select from Drop-down"},{"$f":"Import!J3455","v":0},{"$f":"Import!I3478","v":"Select Yes/No"}]
[null,"International Casualty Non-Motor",null,null,null,{"$f":"Import!I3387","v":"Select Yes/No"},{"$f":"Import!I3410","v":0},{"$f":"Import!I3433","v":0},{"$f":"Import!I3456","v":"Select from Drop-down"},{"$f":"Import!J3456","v":0},{"$f":"Import!I3479","v":"Select Yes/No"}]
[null,"International Casualty Non-Motor Non-Proportional",null,null,null,{"$f":"Import!I3388","v":"Select Yes/No"},{"$f":"Import!I3411","v":0},{"$f":"Import!I3434","v":0},{"$f":"Import!I3457","v":"Select from Drop-down"},{"$f":"Import!J3457","v":0},{"$f":"Import!I3480","v":"Select Yes/No"}]
[null,"Retro Property",null,null,null,{"$f":"Import!I3389","v":"Select Yes/No"},{"$f":"Import!I3412","v":0},{"$f":"Import!I3435","v":0},{"$f":"Import!I3458","v":"Select from Drop-down"},{"$f":"Import!J3458","v":0},{"$f":"Import!I3481","v":"Select Yes/No"}]
[null,"Structured/Finite reinsurance",null,null,null,{"$f":"Import!I3390","v":"Select Yes/No"},{"$f":"Import!I3413","v":0},{"$f":"Import!I3436","v":0},{"$f":"Import!I3459","v":"Select from Drop-down"},{"$f":"Import!J3459","v":0},{"$f":"Import!I3482","v":"Select Yes/No"}]
[null,"Health",null,null,null,{"$f":"Import!I3391","v":"Select Yes/No"},{"$f":"Import!I3414","v":0},{"$f":"Import!I3437","v":0},{"$f":"Import!I3460","v":"Select from Drop-down"},{"$f":"Import!J3460","v":0},{"$f":"Import!I3483","v":"Select Yes/No"}]
[null,"TOTAL",null,null,null,null,{"$f":"SUM(G310:G332)","v":0},{"$f":"SUM(H310:H332)","v":0}]
[]
[3,"(Re)insurer specific cyber stress scenario (affirmative cyber coverage) on a consolidated basis: "]
[null,"The (re)insurer is to submit a description of its own cyber risk worst-case annual aggregate loss scenario and the underlying assumptions. "]
[null,"Worst-case annual aggregate loss \nscenario description",null,{"$f":"Import!I3484","v":0}]
[]
[null,"Gross policy limits",null,{"$f":"Import!I3485","v":0}]
[null,"Net Policy limits",null,{"$f":"Import!I3486","v":0}]
[null,"Gross loss",null,{"$f":"Import!I3487","v":0}]
[null,"Net loss",null,{"$f":"Import!I3488","v":0}]
[null,"Occurrence Return period",null,{"$f":"Import!I3489","v":0}]
[null,"Relative Return period",null,{"$f":"Import!I3490","v":0}]
[null,"Underlying assumptions:",null,{"$f":"HYPERLINK(\"#'Attachments'!G145\",\"Attach file\")","v":"Attach file"}]
[]
[null,"b) TECHNOLOGY RISK - (RE)INSURER OWN CYBERSECURITY AND RESILIENCE CAPABILITIES  "]
[null,"Technology Risk Guidance"]
[]
[null,"Technology Risk is a key enterprise risk that entities in the financial sectors regulated by the Authority must manage. The questionnaire below is designed to assess Technology Risk, including Information Security, Data Protection and IT or Cyber Security. The Authority expects that the board of directors of all licensed entities will have evaluated the aforementioned risks. These risks should be managed as part of an overall Enterprise Risk Management Process. This assessment is designed to assess Technology Risk controls. The IT or Cyber Security controls are grounded in the \"National Institute of Standards and Technology Cybersecurity Framework\" (NIST). The assessment focuses on several areas, to include: governance, policies and procedures, ongoing training, critical/sensitive asset identification, protective measures, detection of anomalous activity, documented incident response plans, and effective business recovery processes. "]
[]
[]
[null,"The Authority recognizes that there is no “one size fits all” approach to addressing these risks, as specific business circumstances may vary greatly from entity to entity. Each entity must assess their risks, create prudent policies and procedures to mitigate known risks, and ensure that the organization is properly trained and equipped.\n"]
[]
[]
[null,"Select one response from the drop-down list. Where required/applicable, attach the relevant document indicating the document name and identifying the applicable page numbers"]
[]
[null,"SECTION A - BUSINESS SUMMARY QUESTIONS"]
[null,"Geographical details",null,null,null,null,null,null,null,null,null,"Responses",null,"Complete where prompted"]
[null,1,"Is the company headquartered in Bermuda",null,null,null,null,null,null,null,null,{"$f":"Import!E3491","v":"Select Yes/No"}]
[null,{"$f":"B360+1","v":2},"Number of users located in Bermuda",null,null,null,null,null,null,null,null,{"$f":"Import!E3492","v":"Select Amount"}]
[null,{"$f":"B361+1","v":3},"Number of users Globally ",null,null,null,null,null,null,null,null,{"$f":"Import!E3493","v":"Select Amount"}]
[null,4,"Do you have a data centre in Bermuda to host your servers",null,null,null,null,null,null,null,null,{"$f":"Import!E3494","v":"Select Yes/No"}]
[null,5,"Do you utilize a cloud hosting company to host your servers",null,null,null,null,null,null,null,null,{"$f":"Import!E3495","v":"Select Yes/No"}]
[null,6,"Does the organization have cybersecurity insurance coverage (i.e. to cover internal risk from security incidents)",null,null,null,null,null,null,null,null,{"$f":"Import!E3496","v":"Select Yes/No"}]
[null,"Is the following data type stored/processed"]
[null,{"$f":"B365+1","v":7},"Do you collect/store/process personally identifiable information (PII) of your customers? examples include but are not limited to: customer name, email address, social security number",null,null,null,null,null,null,null,null,{"$f":"Import!E3497","v":"Select Yes/No"}]
[null,{"$f":"B367+1","v":8},"Payment card data (i.e. credit/debit card)",null,null,null,null,null,null,null,null,{"$f":"Import!E3498","v":"Select Yes/No"}]
[null,{"$f":"B368+1","v":9},"Is customer PII collected/stored/processed by this entity on behalf of other entities ",null,null,null,null,null,null,null,null,{"$f":"Import!E3499","v":"Select Yes/No"}]
[null,"Are the following internet facing services in place "]
[null,{"$f":"B369+1","v":10},"Brochureware (static content only)",null,null,null,null,null,null,null,null,{"$f":"Import!E3500","v":"Select Yes/No"}]
[null,{"$f":"B371+1","v":11},"Web applications",null,null,null,null,null,null,null,null,{"$f":"Import!E3501","v":"Select Yes/No"}]
[null,12,"Web applications that process (query, reference, capture, store, transmit) personal data or payment card data ",null,null,null,null,null,null,null,null,{"$f":"Import!E3502","v":"Select Yes/No"}]
[null,"Roles & Responsibilities",null,null,null,null,null,null,null,null,null,null,null,{"$f":"Import!E3508","v":"Confirm role holder's name"}]
[null,{"$f":"B373+1","v":13},"Is there a dedicated IT Risk Manager, if not which job title holds this responsibility",null,null,null,null,null,null,null,null,{"$f":"Import!E3503","v":"Select Yes/No"},null,{"$f":"Import!E3504","v":"Confirm role holder's name"}]
[null,{"$f":"B375+1","v":14},"Is there a dedicated IT Security Manager, if not which job title holds this responsibility",null,null,null,null,null,null,null,null,{"$f":"Import!E3505","v":"Select Yes/No"},null,{"$f":"Import!E3506","v":"Confirm role holder's name"}]
[null,{"$f":"B376+1","v":15},"Is there a dedicated IT Disaster Recovery Manager, if not which job title holds this responsibility",null,null,null,null,null,null,null,null,{"$f":"Import!E3507","v":"Select Yes/No"},null,{"$f":"Import!E3508","v":"Confirm role holder's name"}]
[null,{"$f":"B377+1","v":16},"Is there a dedicated Business Continuity Manager (BCP) in place, if not which job title holds this responsibility",null,null,null,null,null,null,null,null,{"$f":"Import!E3509","v":"Select Yes/No"},null,{"$f":"Import!E3510","v":"Confirm role holder's name"}]
[null,{"$f":"B378+1","v":17},"Does the organization have a designated Data Privacy Officer",null,null,null,null,null,null,null,null,{"$f":"Import!E3511","v":"Select Yes/No"},null,{"$f":"Import!E3512","v":"Confirm role holder's name"}]
[null,{"$f":"B379+1","v":18},"Is there an annual IT audit plan in place i.e. detailing any IT audit activity for the year ",null,null,null,null,null,null,null,null,{"$f":"Import!E3513","v":"Select Yes/No"},null,{"$f":"Import!E3514","v":"Date of last internal/external IT audit"}]
[]
[null,"SECTION B - NIST CONTROL SUMMARY - Answer YES/NO"]
[null,"Identify",null,null,null,null,null,null,null,null,null,"Responses"]
[null,1,"Is there a Cyber Risk Management Programme in place (i.e. assessing all IT risk to include IT Security Risk)",null,null,null,null,null,null,null,null,{"$f":"Import!E3515","v":"Select Yes/No"}]
[null,{"$f":"B384+1","v":2},"Is the status of the Cyber Risk Management Programme communicated to the Senior Mgt. team & the Board of Directors on a regular basis",null,null,null,null,null,null,null,null,{"$f":"Import!E3516","v":"Select Yes/No"}]
[null,3,"Has a Cyber Risk Policy (or Cyber Security Policy) been approved by the Board and is annually updated",null,null,null,null,null,null,null,null,{"$f":"Import!E3517","v":"Select Yes/No"},null,"Specify name of relevant document"]
[null,4,"Are the roles and responsibilities of each of the three lines of defence clearly defined",null,null,null,null,null,null,null,null,{"$f":"Import!E3518","v":"Select Yes/No"}]
[null,5,"Has the organization performed an assessment of compliance against Data Protection regulatory requirements ",null,null,null,null,null,null,null,null,{"$f":"Import!E3519","v":"Select Yes/No"}]
[null,6,"Asset Management - are physical devices, information systems, and data within the organization inventoried",null,null,null,null,null,null,null,null,{"$f":"Import!E3520","v":"Select Yes/No"}]
[null,7,"Has the organization classified all data ",null,null,null,null,null,null,null,null,{"$f":"Import!E3521","v":"Select Yes/No"}]
[null,8,"Has a third party security risk assessment been completed during the past year? i.e. to assess IT risks arising from third parties",null,null,null,null,null,null,null,null,{"$f":"Import!E3522","v":"Select Yes/No"}]
[null,"Protect"]
[null,9,"Is data that is classified as critical, encrypted in transit and at rest  ",null,null,null,null,null,null,null,null,{"$f":"Import!E3523","v":"Select Yes/No"}]
[null,{"$f":"B393+1","v":10},"Is there a formal process to ensure maintenance of software and hardware i.e. patching & managing end of life technologies ",null,null,null,null,null,null,null,null,{"$f":"Import!E3524","v":"Select Yes/No"}]
[null,11,"Is there a Logical Access Management Standard defining how systems access is verified, managed, revoked, and audited ",null,null,null,null,null,null,null,null,{"$f":"Import!E3525","v":"Select Yes/No"},null,"Specify name of relevant document"]
[null,12,"Do all staff complete cybersecurity training annually",null,null,null,null,null,null,null,null,{"$f":"Import!E3526","v":"Select Yes/No"},null,"Specify name of relevant document"]
[null,13,"Has a penetration test been completed in the last year",null,null,null,null,null,null,null,null,{"$f":"Import!E3527","v":"Select Yes/No"}]
[null,14,"Has the company segregated the enterprise network into multiple, separate trust zones",null,null,null,null,null,null,null,null,{"$f":"Import!E3528","v":"Select Yes/No"}]
[null,15,"Is there a process detailing IT service management controls i.e. change, release & configuration management",null,null,null,null,null,null,null,null,{"$f":"Import!E3529","v":"Select Yes/No"},null,"Specify name of relevant document"]
[null,16,"Does the company document and enforce security configuration standards of all network devices",null,null,null,null,null,null,null,null,{"$f":"Import!E3530","v":"Select Yes/No"}]
[null,"Detect"]
[null,{"$f":"B400+1","v":17},"Is there a process enabling the review of threat intelligence & vulnerability alerting data",null,null,null,null,null,null,null,null,{"$f":"Import!E3531","v":"Select Yes/No"}]
[null,{"$f":"B402+1","v":18},"Is there a process in place to monitor information systems and assets to identify cybersecurity events ",null,null,null,null,null,null,null,null,{"$f":"Import!E3532","v":"Select Yes/No"}]
[null,19,"The company centrally stores & archives security event logs",null,null,null,null,null,null,null,null,{"$f":"Import!E3533","v":"Select Yes/No"}]
[null,"Respond"]
[null,{"$f":"B404+1","v":20},"Is there a documented security incident response plan in place, including internal & external communications & crisis management ",null,null,null,null,null,null,null,null,{"$f":"Import!E3534","v":"Select Yes/No"},null,"Specify name of relevant document"]
[null,{"$f":"B406+1","v":21},"In the event of a major incident, is the company contracted to a \"4th line\" IT security expert service (for example a Managed Security Services Provider - MSSP)  ",null,null,null,null,null,null,null,null,{"$f":"Import!E3535","v":"Select Yes/No"}]
[null,"Recover"]
[null,{"$f":"B407+1","v":22},"Has a test of the Business Continuity and IT Disaster Recovery plans been performed during the past 12 months ",null,null,null,null,null,null,null,null,{"$f":"Import!E3536","v":"Select Yes/No"}]
[null,{"$f":"B409+1","v":23},"Has the organization been subject to a significant cyber incident during the past 12 months",null,null,null,null,null,null,null,null,{"$f":"Import!E3537","v":"Select Yes/No"}]
[]
[null,"SECTION C - Technical Security Controls - Answer YES/NO"]
[null,"Technical controls summary"]
[null,1,"Antivirus software is installed on all Microsoft Operating System endpoints",null,null,null,null,null,null,null,null,{"$f":"Import!E3538","v":"Select Yes/No"}]
[null,{"$f":"B414+1","v":2},"Is there an endpoint Advanced Persistent Threat (APT) control in place ",null,null,null,null,null,null,null,null,{"$f":"Import!E3539","v":"Select Yes/No"}]
[null,3,"Are Data Loss Prevention (DLP) controls in place i.e.: to prevent unauthorized data leaving the enterprise\n\n",null,null,null,null,null,null,null,null,{"$f":"Import!E3540","v":"Select Yes/No"}]
[null,4,"Is INTERNAL vulnerability scanning conducted (& what is the frequency)",null,null,null,null,null,null,null,null,{"$f":"Import!E3541","v":"Select Yes/No"},null,{"$f":"Import!E3542","v":"Select Frequency"}]
[null,{"$f":"B417+1","v":5},"Is EXTERNAL vulnerability scanning conducted (& what is the frequency)",null,null,null,null,null,null,null,null,{"$f":"Import!E3543","v":"Select Yes/No"},null,{"$f":"Import!E3544","v":"Select Frequency"}]
[null,{"$f":"B418+1","v":6},"Are there regular (6 monthly minimum) firewall ruleset reviews",null,null,null,null,null,null,null,null,{"$f":"Import!E3545","v":"Select Yes/No"}]
[null,7,"Is there a network perimeter Intrusion Detection or Prevention (IDS/IPS) control",null,null,null,null,null,null,null,null,{"$f":"Import!E3546","v":"Select Yes/No"}]
[null,8,"Is there DDOS defence in place for internet gateways",null,null,null,null,null,null,null,null,{"$f":"Import!E3547","v":"Select Yes/No"}]
[]
[null,null,null,null,null,null,null,null,null,null,null,null,null,null,null,null,"Select all from drop down list"]
[null,null,null,null,null,null,null,null,null,null,null,null,null,null,null,null,"PCI - payment Card Industry Standard"]
[null,null,null,null,null,null,null,null,null,null,null,null,null,null,null,null,"GDPR - General Data Protection Regulation "]
[null,null,null,null,{"$f":"'Company Information'!C3","v":43830},null,null,null,null,null,null,null,null,null,null,null,"EU U.S. - Privacy Shield Framework "]
[null,null,null,null,{"$f":"IF($E$426=\"\",\"\",TEXT(DATE(YEAR($E$426+1)-1,MONTH($E$426+1),DAY($E$426+1)),\"mm/dd/yyyy\"))","v":"01/01/2019"},{"$f":"$E$427","v":"01/01/2019"},{"$f":"$E$427","v":"01/01/2019"},"01/01/2019","01/01/2019","01/01/2019","01/01/2019","01/01/2019",null,"Yes",{"$f":"$E$427","v":"01/01/2019"},null,"PIPA - Personal Information Privacy Act",{"$f":"$E$427","v":"01/01/2019"}]
[null,null,null,null,{"$f":"IF($E$426=\"\",\"\",TEXT($E$426,\"mm/dd/yyyy\"))","v":"12/31/2019"},{"$f":"$E$428","v":"12/31/2019"},{"$f":"$E$428","v":"12/31/2019"},"12/31/2019","12/31/2019","12/31/2019","12/31/2019","12/31/2019",null,"No",{"$f":"$E$428","v":"12/31/2019"},null,"HIPAA - Health Insurance Portability and Accountability Act",{"$f":"$E$428","v":"12/31/2019"}]
[null,null,null,null,"brrt_GrossLossImpactPostStressScenarioGrossLoss","brrt_AggregateStatutoryAdmittedAssetsPostStressScenarioGrossLoss","brrt_AdmittedLiabilitiesPostStressScenarioGrossLoss","brrt_StatutoryCapitalAndSurplusPostStressScenarioGrossLoss","brrt_NetLossImpactPostStressScenarioNetLoss","brrt_AggregateStatutoryAdmittedAssetsPostStressScenarioNetLoss","brrt_AdmittedLiabilitiesPostStressScenarioNetLoss","brrt_StatutoryCapitalAndSurplusPostStressScenarioNetLoss",null,null,"brrt_ReturnPeriodPostStressScenarioNetLoss",null,"PIPEDA - Federal Personal Information Protection and Electronic Documents Act","brrt_ProprietaryVendorModelVersion"]
[null,null,null,null,{"$f":"XBRLMap(E12,E$429&\".\"&$U12,E$427,E$428,CONFIGURATION!$B$10,\"BMA\",CONFIGURATION!$B$1,\"bscr\",CONFIGURATION!$B$12)","v":"Mapped"},{"$f":"XBRLMap(F12,F$429&\".\"&$U12,F$427,F$428,CONFIGURATION!$B$10,\"BMA\",CONFIGURATION!$B$1,\"bscr\",CONFIGURATION!$B$12)","v":"Mapped"},{"$f":"XBRLMap(G12,G$429&\".\"&$U12,G$427,G$428,CONFIGURATION!$B$10,\"BMA\",CONFIGURATION!$B$1,\"bscr\",CONFIGURATION!$B$12)","v":"Mapped"},{"$f":"XBRLMap(H12,H$429&\".\"&$U12,H$427,H$428,CONFIGURATION!$B$10,\"BMA\",CONFIGURATION!$B$1,\"bscr\",CONFIGURATION!$B$12)","v":"Mapped"},null,null,null,null,null,null,null,null,"SOLVENCY II"]
[null,null,null,null,{"$f":"XBRLMap(E13,E$429&\".\"&$U13,E$427,E$428,CONFIGURATION!$B$10,\"BMA\",CONFIGURATION!$B$1,\"bscr\",CONFIGURATION!$B$12)","v":"Mapped"},{"$f":"XBRLMap(F13,F$429&\".\"&$U13,F$427,F$428,CONFIGURATION!$B$10,\"BMA\",CONFIGURATION!$B$1,\"bscr\",CONFIGURATION!$B$12)","v":"Mapped"},{"$f":"XBRLMap(G13,G$429&\".\"&$U13,G$427,G$428,CONFIGURATION!$B$10,\"BMA\",CONFIGURATION!$B$1,\"bscr\",CONFIGURATION!$B$12)","v":"Mapped"},{"$f":"XBRLMap(H13,H$429&\".\"&$U13,H$427,H$428,CONFIGURATION!$B$10,\"BMA\",CONFIGURATION!$B$1,\"bscr\",CONFIGURATION!$B$12)","v":"Mapped"},null,null,null,null,null,null,null,null,"SEC - U.S. Securities and Exchange Commission"]
[null,null,null,null,{"$f":"XBRLMap(E14,E$429&\".\"&$U14,E$427,E$428,CONFIGURATION!$B$10,\"BMA\",CONFIGURATION!$B$1,\"bscr\",CONFIGURATION!$B$12)","v":"Mapped"},{"$f":"XBRLMap(F14,F$429&\".\"&$U14,F$427,F$428,CONFIGURATION!$B$10,\"BMA\",CONFIGURATION!$B$1,\"bscr\",CONFIGURATION!$B$12)","v":"Mapped"},{"$f":"XBRLMap(G14,G$429&\".\"&$U14,G$427,G$428,CONFIGURATION!$B$10,\"BMA\",CONFIGURATION!$B$1,\"bscr\",CONFIGURATION!$B$12)","v":"Mapped"},{"$f":"XBRLMap(H14,H$429&\".\"&$U14,H$427,H$428,CONFIGURATION!$B$10,\"BMA\",CONFIGURATION!$B$1,\"bscr\",CONFIGURATION!$B$12)","v":"Mapped"},null,null,null,null,null,null,null,null,"SOX - Sarbanes Oxley Act"]
[null,null,null,null,{"$f":"XBRLMap(E15,E$429&\".\"&$U15,E$427,E$428,CONFIGURATION!$B$10,\"BMA\",CONFIGURATION!$B$1,\"bscr\",CONFIGURATION!$B$12)","v":"Mapped"},{"$f":"XBRLMap(F15,F$429&\".\"&$U15,F$427,F$428,CONFIGURATION!$B$10,\"BMA\",CONFIGURATION!$B$1,\"bscr\",CONFIGURATION!$B$12)","v":"Mapped"},{"$f":"XBRLMap(G15,G$429&\".\"&$U15,G$427,G$428,CONFIGURATION!$B$10,\"BMA\",CONFIGURATION!$B$1,\"bscr\",CONFIGURATION!$B$12)","v":"Mapped"},{"$f":"XBRLMap(H15,H$429&\".\"&$U15,H$427,H$428,CONFIGURATION!$B$10,\"BMA\",CONFIGURATION!$B$1,\"bscr\",CONFIGURATION!$B$12)","v":"Mapped"},null,null,null,null,null,null,null,null,"(FISMA) Federal Information Security Management Act of 2002 "]
[null,null,null,null,{"$f":"XBRLMap(E16,E$429&\".\"&$U16,E$427,E$428,CONFIGURATION!$B$10,\"BMA\",CONFIGURATION!$B$1,\"bscr\",CONFIGURATION!$B$12)","v":"Mapped"},{"$f":"XBRLMap(F16,F$429&\".\"&$U16,F$427,F$428,CONFIGURATION!$B$10,\"BMA\",CONFIGURATION!$B$1,\"bscr\",CONFIGURATION!$B$12)","v":"Mapped"},{"$f":"XBRLMap(G16,G$429&\".\"&$U16,G$427,G$428,CONFIGURATION!$B$10,\"BMA\",CONFIGURATION!$B$1,\"bscr\",CONFIGURATION!$B$12)","v":"Mapped"},{"$f":"XBRLMap(H16,H$429&\".\"&$U16,H$427,H$428,CONFIGURATION!$B$10,\"BMA\",CONFIGURATION!$B$1,\"bscr\",CONFIGURATION!$B$12)","v":"Mapped"},null,null,null,null,null,null,null,null,"(GLBA) Gramm Leach Bliley Act"]
[null,null,null,null,{"$f":"XBRLMap(E17,E$429&\".\"&$U17,E$427,E$428,CONFIGURATION!$B$10,\"BMA\",CONFIGURATION!$B$1,\"bscr\",CONFIGURATION!$B$12)","v":"Mapped"},{"$f":"XBRLMap(F17,F$429&\".\"&$U17,F$427,F$428,CONFIGURATION!$B$10,\"BMA\",CONFIGURATION!$B$1,\"bscr\",CONFIGURATION!$B$12)","v":"Mapped"},{"$f":"XBRLMap(G17,G$429&\".\"&$U17,G$427,G$428,CONFIGURATION!$B$10,\"BMA\",CONFIGURATION!$B$1,\"bscr\",CONFIGURATION!$B$12)","v":"Mapped"},{"$f":"XBRLMap(H17,H$429&\".\"&$U17,H$427,H$428,CONFIGURATION!$B$10,\"BMA\",CONFIGURATION!$B$1,\"bscr\",CONFIGURATION!$B$12)","v":"Mapped"},null,null,null,null,null,null,null,null,"other"]
[null,null,null,null,{"$f":"XBRLMap(E18,E$429&\".\"&$U18,E$427,E$428,CONFIGURATION!$B$10,\"BMA\",CONFIGURATION!$B$1,\"bscr\",CONFIGURATION!$B$12)","v":"Mapped"},{"$f":"XBRLMap(F18,F$429&\".\"&$U18,F$427,F$428,CONFIGURATION!$B$10,\"BMA\",CONFIGURATION!$B$1,\"bscr\",CONFIGURATION!$B$12)","v":"Mapped"},{"$f":"XBRLMap(G18,G$429&\".\"&$U18,G$427,G$428,CONFIGURATION!$B$10,\"BMA\",CONFIGURATION!$B$1,\"bscr\",CONFIGURATION!$B$12)","v":"Mapped"},{"$f":"XBRLMap(H18,H$429&\".\"&$U18,H$427,H$428,CONFIGURATION!$B$10,\"BMA\",CONFIGURATION!$B$1,\"bscr\",CONFIGURATION!$B$12)","v":"Mapped"}]
[null,null,null,{"$f":"XBRLMap(D51,E$429&\".\"&$U51,E$427,E$428,CONFIGURATION!$B$10,\"BMA\",CONFIGURATION!$B$1,\"bscr\",CONFIGURATION!$B$12)","v":"Mapped"},{"$f":"XBRLMap(#REF!,F$429&\".\"&$U51,F$427,F$428,CONFIGURATION!$B$10,\"BMA\",CONFIGURATION!$B$1,\"bscr\",CONFIGURATION!$B$12)","v":{"$error":"#VALUE!"}},{"$f":"XBRLMap(#REF!,G$429&\".\"&$U51,G$427,G$428,CONFIGURATION!$B$10,\"BMA\",CONFIGURATION!$B$1,\"bscr\",CONFIGURATION!$B$12)","v":{"$error":"#VALUE!"}},{"$f":"XBRLMap(E51,H$429&\".\"&$U51,H$427,H$428,CONFIGURATION!$B$10,\"BMA\",CONFIGURATION!$B$1,\"bscr\",CONFIGURATION!$B$12)","v":"Mapped"},{"$f":"XBRLMap(F51,I$429&\".\"&$U51,I$427,I$428,CONFIGURATION!$B$10,\"BMA\",CONFIGURATION!$B$1,\"bscr\",CONFIGURATION!$B$12)","v":"Mapped"},{"$f":"XBRLMap(G51,J$429&\".\"&$U51,J$427,J$428,CONFIGURATION!$B$10,\"BMA\",CONFIGURATION!$B$1,\"bscr\",CONFIGURATION!$B$12)","v":"Mapped"},{"$f":"XBRLMap(#REF!,K$429&\".\"&$U51,K$427,K$428,CONFIGURATION!$B$10,\"BMA\",CONFIGURATION!$B$1,\"bscr\",CONFIGURATION!$B$12)","v":{"$error":"#VALUE!"}},{"$f":"XBRLMap(I51,L$429&\".\"&$U51,L$427,L$428,CONFIGURATION!$B$10,\"BMA\",CONFIGURATION!$B$1,\"bscr\",CONFIGURATION!$B$12)","v":"Mapped"},{"$f":"XBRLMap(K51,O$429&\".\"&$U51,O$427,O$428,CONFIGURATION!$B$10,\"BMA\",CONFIGURATION!$B$1,\"bscr\")","v":"Mapped"},null,null,{"$f":"XBRLMap(L51,R$429&\".\"&$U51,R$427,R$428,CONFIGURATION!$B$10,\"BMA\",CONFIGURATION!$B$1,\"bscr\")","v":"Mapped"},null,"Select all from drop down list"]
[null,null,null,{"$f":"XBRLMap(D52,E$429&\".\"&$U52,E$427,E$428,CONFIGURATION!$B$10,\"BMA\",CONFIGURATION!$B$1,\"bscr\",CONFIGURATION!$B$12)","v":"Mapped"},{"$f":"XBRLMap(#REF!,F$429&\".\"&$U52,F$427,F$428,CONFIGURATION!$B$10,\"BMA\",CONFIGURATION!$B$1,\"bscr\",CONFIGURATION!$B$12)","v":{"$error":"#VALUE!"}},{"$f":"XBRLMap(#REF!,G$429&\".\"&$U52,G$427,G$428,CONFIGURATION!$B$10,\"BMA\",CONFIGURATION!$B$1,\"bscr\",CONFIGURATION!$B$12)","v":{"$error":"#VALUE!"}},{"$f":"XBRLMap(E52,H$429&\".\"&$U52,H$427,H$428,CONFIGURATION!$B$10,\"BMA\",CONFIGURATION!$B$1,\"bscr\",CONFIGURATION!$B$12)","v":"Mapped"},{"$f":"XBRLMap(F52,I$429&\".\"&$U52,I$427,I$428,CONFIGURATION!$B$10,\"BMA\",CONFIGURATION!$B$1,\"bscr\",CONFIGURATION!$B$12)","v":"Mapped"},{"$f":"XBRLMap(G52,J$429&\".\"&$U52,J$427,J$428,CONFIGURATION!$B$10,\"BMA\",CONFIGURATION!$B$1,\"bscr\",CONFIGURATION!$B$12)","v":"Mapped"},{"$f":"XBRLMap(#REF!,K$429&\".\"&$U52,K$427,K$428,CONFIGURATION!$B$10,\"BMA\",CONFIGURATION!$B$1,\"bscr\",CONFIGURATION!$B$12)","v":{"$error":"#VALUE!"}},{"$f":"XBRLMap(I52,L$429&\".\"&$U52,L$427,L$428,CONFIGURATION!$B$10,\"BMA\",CONFIGURATION!$B$1,\"bscr\",CONFIGURATION!$B$12)","v":"Mapped"},{"$f":"XBRLMap(K52,O$429&\".\"&$U52,O$427,O$428,CONFIGURATION!$B$10,\"BMA\",CONFIGURATION!$B$1,\"bscr\")","v":"Mapped"},null,null,{"$f":"XBRLMap(L52,R$429&\".\"&$U52,R$427,R$428,CONFIGURATION!$B$10,\"BMA\",CONFIGURATION!$B$1,\"bscr\")","v":"Mapped"},null,"COBIT - Control Objectives for Information and Related Technologies"]
[null,null,null,{"$f":"XBRLMap(D53,E$429&\".\"&$U53,E$427,E$428,CONFIGURATION!$B$10,\"BMA\",CONFIGURATION!$B$1,\"bscr\",CONFIGURATION!$B$12)","v":"Mapped"},{"$f":"XBRLMap(#REF!,F$429&\".\"&$U53,F$427,F$428,CONFIGURATION!$B$10,\"BMA\",CONFIGURATION!$B$1,\"bscr\",CONFIGURATION!$B$12)","v":{"$error":"#VALUE!"}},{"$f":"XBRLMap(#REF!,G$429&\".\"&$U53,G$427,G$428,CONFIGURATION!$B$10,\"BMA\",CONFIGURATION!$B$1,\"bscr\",CONFIGURATION!$B$12)","v":{"$error":"#VALUE!"}},{"$f":"XBRLMap(E53,H$429&\".\"&$U53,H$427,H$428,CONFIGURATION!$B$10,\"BMA\",CONFIGURATION!$B$1,\"bscr\",CONFIGURATION!$B$12)","v":"Mapped"},{"$f":"XBRLMap(F53,I$429&\".\"&$U53,I$427,I$428,CONFIGURATION!$B$10,\"BMA\",CONFIGURATION!$B$1,\"bscr\",CONFIGURATION!$B$12)","v":"Mapped"},{"$f":"XBRLMap(G53,J$429&\".\"&$U53,J$427,J$428,CONFIGURATION!$B$10,\"BMA\",CONFIGURATION!$B$1,\"bscr\",CONFIGURATION!$B$12)","v":"Mapped"},{"$f":"XBRLMap(#REF!,K$429&\".\"&$U53,K$427,K$428,CONFIGURATION!$B$10,\"BMA\",CONFIGURATION!$B$1,\"bscr\",CONFIGURATION!$B$12)","v":{"$error":"#VALUE!"}},{"$f":"XBRLMap(I53,L$429&\".\"&$U53,L$427,L$428,CONFIGURATION!$B$10,\"BMA\",CONFIGURATION!$B$1,\"bscr\",CONFIGURATION!$B$12)","v":"Mapped"},{"$f":"XBRLMap(K53,O$429&\".\"&$U53,O$427,O$428,CONFIGURATION!$B$10,\"BMA\",CONFIGURATION!$B$1,\"bscr\")","v":"Mapped"},null,null,{"$f":"XBRLMap(L53,R$429&\".\"&$U53,R$427,R$428,CONFIGURATION!$B$10,\"BMA\",CONFIGURATION!$B$1,\"bscr\")","v":"Mapped"},null,"NIST - National Institute of Standards and Technology"]
[null,null,null,{"$f":"XBRLMap(D54,E$429&\".\"&$U54,E$427,E$428,CONFIGURATION!$B$10,\"BMA\",CONFIGURATION!$B$1,\"bscr\",CONFIGURATION!$B$12)","v":"Mapped"},{"$f":"XBRLMap(#REF!,F$429&\".\"&$U54,F$427,F$428,CONFIGURATION!$B$10,\"BMA\",CONFIGURATION!$B$1,\"bscr\",CONFIGURATION!$B$12)","v":{"$error":"#VALUE!"}},{"$f":"XBRLMap(#REF!,G$429&\".\"&$U54,G$427,G$428,CONFIGURATION!$B$10,\"BMA\",CONFIGURATION!$B$1,\"bscr\",CONFIGURATION!$B$12)","v":{"$error":"#VALUE!"}},{"$f":"XBRLMap(E54,H$429&\".\"&$U54,H$427,H$428,CONFIGURATION!$B$10,\"BMA\",CONFIGURATION!$B$1,\"bscr\",CONFIGURATION!$B$12)","v":"Mapped"},{"$f":"XBRLMap(F54,I$429&\".\"&$U54,I$427,I$428,CONFIGURATION!$B$10,\"BMA\",CONFIGURATION!$B$1,\"bscr\",CONFIGURATION!$B$12)","v":"Mapped"},{"$f":"XBRLMap(G54,J$429&\".\"&$U54,J$427,J$428,CONFIGURATION!$B$10,\"BMA\",CONFIGURATION!$B$1,\"bscr\",CONFIGURATION!$B$12)","v":"Mapped"},{"$f":"XBRLMap(#REF!,K$429&\".\"&$U54,K$427,K$428,CONFIGURATION!$B$10,\"BMA\",CONFIGURATION!$B$1,\"bscr\",CONFIGURATION!$B$12)","v":{"$error":"#VALUE!"}},{"$f":"XBRLMap(I54,L$429&\".\"&$U54,L$427,L$428,CONFIGURATION!$B$10,\"BMA\",CONFIGURATION!$B$1,\"bscr\",CONFIGURATION!$B$12)","v":"Mapped"},{"$f":"XBRLMap(K54,O$429&\".\"&$U54,O$427,O$428,CONFIGURATION!$B$10,\"BMA\",CONFIGURATION!$B$1,\"bscr\")","v":"Mapped"},null,null,{"$f":"XBRLMap(L54,R$429&\".\"&$U54,R$427,R$428,CONFIGURATION!$B$10,\"BMA\",CONFIGURATION!$B$1,\"bscr\")","v":"Mapped"},null,"ISO27001 - Information Security Management System "]
[null,null,null,{"$f":"XBRLMap(D55,E$429&\".\"&$U55,E$427,E$428,CONFIGURATION!$B$10,\"BMA\",CONFIGURATION!$B$1,\"bscr\",CONFIGURATION!$B$12)","v":"Mapped"},{"$f":"XBRLMap(#REF!,F$429&\".\"&$U55,F$427,F$428,CONFIGURATION!$B$10,\"BMA\",CONFIGURATION!$B$1,\"bscr\",CONFIGURATION!$B$12)","v":{"$error":"#VALUE!"}},{"$f":"XBRLMap(#REF!,G$429&\".\"&$U55,G$427,G$428,CONFIGURATION!$B$10,\"BMA\",CONFIGURATION!$B$1,\"bscr\",CONFIGURATION!$B$12)","v":{"$error":"#VALUE!"}},{"$f":"XBRLMap(E55,H$429&\".\"&$U55,H$427,H$428,CONFIGURATION!$B$10,\"BMA\",CONFIGURATION!$B$1,\"bscr\",CONFIGURATION!$B$12)","v":"Mapped"},{"$f":"XBRLMap(F55,I$429&\".\"&$U55,I$427,I$428,CONFIGURATION!$B$10,\"BMA\",CONFIGURATION!$B$1,\"bscr\",CONFIGURATION!$B$12)","v":"Mapped"},{"$f":"XBRLMap(G55,J$429&\".\"&$U55,J$427,J$428,CONFIGURATION!$B$10,\"BMA\",CONFIGURATION!$B$1,\"bscr\",CONFIGURATION!$B$12)","v":"Mapped"},{"$f":"XBRLMap(#REF!,K$429&\".\"&$U55,K$427,K$428,CONFIGURATION!$B$10,\"BMA\",CONFIGURATION!$B$1,\"bscr\",CONFIGURATION!$B$12)","v":{"$error":"#VALUE!"}},{"$f":"XBRLMap(I55,L$429&\".\"&$U55,L$427,L$428,CONFIGURATION!$B$10,\"BMA\",CONFIGURATION!$B$1,\"bscr\",CONFIGURATION!$B$12)","v":"Mapped"},{"$f":"XBRLMap(K55,O$429&\".\"&$U55,O$427,O$428,CONFIGURATION!$B$10,\"BMA\",CONFIGURATION!$B$1,\"bscr\")","v":"Mapped"},null,null,{"$f":"XBRLMap(L55,R$429&\".\"&$U55,R$427,R$428,CONFIGURATION!$B$10,\"BMA\",CONFIGURATION!$B$1,\"bscr\")","v":"Mapped"},null,"ISO27002 - Information Security Standard  "]
[null,null,null,{"$f":"XBRLMap(#REF!,E$429&\".\"&#REF!,E$427,E$428,CONFIGURATION!$B$10,\"BMA\",CONFIGURATION!$B$1,\"bscr\",CONFIGURATION!$B$12)","v":{"$error":"#VALUE!"}},{"$f":"XBRLMap(#REF!,F$429&\".\"&#REF!,F$427,F$428,CONFIGURATION!$B$10,\"BMA\",CONFIGURATION!$B$1,\"bscr\",CONFIGURATION!$B$12)","v":{"$error":"#VALUE!"}},{"$f":"XBRLMap(#REF!,G$429&\".\"&#REF!,G$427,G$428,CONFIGURATION!$B$10,\"BMA\",CONFIGURATION!$B$1,\"bscr\",CONFIGURATION!$B$12)","v":{"$error":"#VALUE!"}},{"$f":"XBRLMap(#REF!,H$429&\".\"&#REF!,H$427,H$428,CONFIGURATION!$B$10,\"BMA\",CONFIGURATION!$B$1,\"bscr\",CONFIGURATION!$B$12)","v":{"$error":"#VALUE!"}},{"$f":"XBRLMap(#REF!,I$429&\".\"&#REF!,I$427,I$428,CONFIGURATION!$B$10,\"BMA\",CONFIGURATION!$B$1,\"bscr\",CONFIGURATION!$B$12)","v":{"$error":"#VALUE!"}},{"$f":"XBRLMap(#REF!,J$429&\".\"&#REF!,J$427,J$428,CONFIGURATION!$B$10,\"BMA\",CONFIGURATION!$B$1,\"bscr\",CONFIGURATION!$B$12)","v":{"$error":"#VALUE!"}},{"$f":"XBRLMap(#REF!,K$429&\".\"&#REF!,K$427,K$428,CONFIGURATION!$B$10,\"BMA\",CONFIGURATION!$B$1,\"bscr\",CONFIGURATION!$B$12)","v":{"$error":"#VALUE!"}},{"$f":"XBRLMap(#REF!,L$429&\".\"&#REF!,L$427,L$428,CONFIGURATION!$B$10,\"BMA\",CONFIGURATION!$B$1,\"bscr\",CONFIGURATION!$B$12)","v":{"$error":"#VALUE!"}},{"$f":"XBRLMap(#REF!,O$429&\".\"&#REF!,O$427,O$428,CONFIGURATION!$B$10,\"BMA\",CONFIGURATION!$B$1,\"bscr\")","v":{"$error":"#VALUE!"}},null,null,{"$f":"XBRLMap(#REF!,R$429&\".\"&#REF!,R$427,R$428,CONFIGURATION!$B$10,\"BMA\",CONFIGURATION!$B$1,\"bscr\")","v":{"$error":"#VALUE!"}},null,"ITIL - Information Technology Infrastructure Library"]
[null,null,null,{"$f":"XBRLMap(D56,E$429&\".\"&$U56,E$427,E$428,CONFIGURATION!$B$10,\"BMA\",CONFIGURATION!$B$1,\"bscr\",CONFIGURATION!$B$12)","v":"Mapped"},{"$f":"XBRLMap(#REF!,F$429&\".\"&$U56,F$427,F$428,CONFIGURATION!$B$10,\"BMA\",CONFIGURATION!$B$1,\"bscr\",CONFIGURATION!$B$12)","v":{"$error":"#VALUE!"}},{"$f":"XBRLMap(#REF!,G$429&\".\"&$U56,G$427,G$428,CONFIGURATION!$B$10,\"BMA\",CONFIGURATION!$B$1,\"bscr\",CONFIGURATION!$B$12)","v":{"$error":"#VALUE!"}},{"$f":"XBRLMap(E56,H$429&\".\"&$U56,H$427,H$428,CONFIGURATION!$B$10,\"BMA\",CONFIGURATION!$B$1,\"bscr\",CONFIGURATION!$B$12)","v":"Mapped"},{"$f":"XBRLMap(F56,I$429&\".\"&$U56,I$427,I$428,CONFIGURATION!$B$10,\"BMA\",CONFIGURATION!$B$1,\"bscr\",CONFIGURATION!$B$12)","v":"Mapped"},{"$f":"XBRLMap(G56,J$429&\".\"&$U56,J$427,J$428,CONFIGURATION!$B$10,\"BMA\",CONFIGURATION!$B$1,\"bscr\",CONFIGURATION!$B$12)","v":"Mapped"},{"$f":"XBRLMap(#REF!,K$429&\".\"&$U56,K$427,K$428,CONFIGURATION!$B$10,\"BMA\",CONFIGURATION!$B$1,\"bscr\",CONFIGURATION!$B$12)","v":{"$error":"#VALUE!"}},{"$f":"XBRLMap(I56,L$429&\".\"&$U56,L$427,L$428,CONFIGURATION!$B$10,\"BMA\",CONFIGURATION!$B$1,\"bscr\",CONFIGURATION!$B$12)","v":"Mapped"},{"$f":"XBRLMap(K56,O$429&\".\"&$U56,O$427,O$428,CONFIGURATION!$B$10,\"BMA\",CONFIGURATION!$B$1,\"bscr\")","v":"Mapped"},null,null,{"$f":"XBRLMap(L56,R$429&\".\"&$U56,R$427,R$428,CONFIGURATION!$B$10,\"BMA\",CONFIGURATION!$B$1,\"bscr\")","v":"Mapped"}]
[null,null,null,{"$f":"XBRLMap(D57,E$429&\".\"&$U57,E$427,E$428,CONFIGURATION!$B$10,\"BMA\",CONFIGURATION!$B$1,\"bscr\",CONFIGURATION!$B$12)","v":"Mapped"},{"$f":"XBRLMap(#REF!,F$429&\".\"&$U57,F$427,F$428,CONFIGURATION!$B$10,\"BMA\",CONFIGURATION!$B$1,\"bscr\",CONFIGURATION!$B$12)","v":{"$error":"#VALUE!"}},{"$f":"XBRLMap(#REF!,G$429&\".\"&$U57,G$427,G$428,CONFIGURATION!$B$10,\"BMA\",CONFIGURATION!$B$1,\"bscr\",CONFIGURATION!$B$12)","v":{"$error":"#VALUE!"}},{"$f":"XBRLMap(E57,H$429&\".\"&$U57,H$427,H$428,CONFIGURATION!$B$10,\"BMA\",CONFIGURATION!$B$1,\"bscr\",CONFIGURATION!$B$12)","v":"Mapped"},{"$f":"XBRLMap(F57,I$429&\".\"&$U57,I$427,I$428,CONFIGURATION!$B$10,\"BMA\",CONFIGURATION!$B$1,\"bscr\",CONFIGURATION!$B$12)","v":"Mapped"},{"$f":"XBRLMap(G57,J$429&\".\"&$U57,J$427,J$428,CONFIGURATION!$B$10,\"BMA\",CONFIGURATION!$B$1,\"bscr\",CONFIGURATION!$B$12)","v":"Mapped"},{"$f":"XBRLMap(#REF!,K$429&\".\"&$U57,K$427,K$428,CONFIGURATION!$B$10,\"BMA\",CONFIGURATION!$B$1,\"bscr\",CONFIGURATION!$B$12)","v":{"$error":"#VALUE!"}},{"$f":"XBRLMap(I57,L$429&\".\"&$U57,L$427,L$428,CONFIGURATION!$B$10,\"BMA\",CONFIGURATION!$B$1,\"bscr\",CONFIGURATION!$B$12)","v":"Mapped"},{"$f":"XBRLMap(K57,O$429&\".\"&$U57,O$427,O$428,CONFIGURATION!$B$10,\"BMA\",CONFIGURATION!$B$1,\"bscr\")","v":"Mapped"},null,null,{"$f":"XBRLMap(L57,R$429&\".\"&$U57,R$427,R$428,CONFIGURATION!$B$10,\"BMA\",CONFIGURATION!$B$1,\"bscr\")","v":"Mapped"}]
[null,null,null,{"$f":"XBRLMap(D58,E$429&\".\"&$U58,E$427,E$428,CONFIGURATION!$B$10,\"BMA\",CONFIGURATION!$B$1,\"bscr\",CONFIGURATION!$B$12)","v":"Mapped"},{"$f":"XBRLMap(#REF!,F$429&\".\"&$U58,F$427,F$428,CONFIGURATION!$B$10,\"BMA\",CONFIGURATION!$B$1,\"bscr\",CONFIGURATION!$B$12)","v":{"$error":"#VALUE!"}},{"$f":"XBRLMap(#REF!,G$429&\".\"&$U58,G$427,G$428,CONFIGURATION!$B$10,\"BMA\",CONFIGURATION!$B$1,\"bscr\",CONFIGURATION!$B$12)","v":{"$error":"#VALUE!"}},{"$f":"XBRLMap(E58,H$429&\".\"&$U58,H$427,H$428,CONFIGURATION!$B$10,\"BMA\",CONFIGURATION!$B$1,\"bscr\",CONFIGURATION!$B$12)","v":"Mapped"},{"$f":"XBRLMap(F58,I$429&\".\"&$U58,I$427,I$428,CONFIGURATION!$B$10,\"BMA\",CONFIGURATION!$B$1,\"bscr\",CONFIGURATION!$B$12)","v":"Mapped"},{"$f":"XBRLMap(G58,J$429&\".\"&$U58,J$427,J$428,CONFIGURATION!$B$10,\"BMA\",CONFIGURATION!$B$1,\"bscr\",CONFIGURATION!$B$12)","v":"Mapped"},{"$f":"XBRLMap(#REF!,K$429&\".\"&$U58,K$427,K$428,CONFIGURATION!$B$10,\"BMA\",CONFIGURATION!$B$1,\"bscr\",CONFIGURATION!$B$12)","v":{"$error":"#VALUE!"}},{"$f":"XBRLMap(I58,L$429&\".\"&$U58,L$427,L$428,CONFIGURATION!$B$10,\"BMA\",CONFIGURATION!$B$1,\"bscr\",CONFIGURATION!$B$12)","v":"Mapped"},{"$f":"XBRLMap(K58,O$429&\".\"&$U58,O$427,O$428,CONFIGURATION!$B$10,\"BMA\",CONFIGURATION!$B$1,\"bscr\")","v":"Mapped"},null,null,{"$f":"XBRLMap(L58,R$429&\".\"&$U58,R$427,R$428,CONFIGURATION!$B$10,\"BMA\",CONFIGURATION!$B$1,\"bscr\")","v":"Mapped"}]
[null,null,null,{"$f":"XBRLMap(#REF!,E$429&\".\"&#REF!,E$427,E$428,CONFIGURATION!$B$10,\"BMA\",CONFIGURATION!$B$1,\"bscr\",CONFIGURATION!$B$12)","v":{"$error":"#VALUE!"}},{"$f":"XBRLMap(#REF!,F$429&\".\"&#REF!,F$427,F$428,CONFIGURATION!$B$10,\"BMA\",CONFIGURATION!$B$1,\"bscr\",CONFIGURATION!$B$12)","v":{"$error":"#VALUE!"}},{"$f":"XBRLMap(#REF!,G$429&\".\"&#REF!,G$427,G$428,CONFIGURATION!$B$10,\"BMA\",CONFIGURATION!$B$1,\"bscr\",CONFIGURATION!$B$12)","v":{"$error":"#VALUE!"}},{"$f":"XBRLMap(#REF!,H$429&\".\"&#REF!,H$427,H$428,CONFIGURATION!$B$10,\"BMA\",CONFIGURATION!$B$1,\"bscr\",CONFIGURATION!$B$12)","v":{"$error":"#VALUE!"}},{"$f":"XBRLMap(#REF!,I$429&\".\"&#REF!,I$427,I$428,CONFIGURATION!$B$10,\"BMA\",CONFIGURATION!$B$1,\"bscr\",CONFIGURATION!$B$12)","v":{"$error":"#VALUE!"}},{"$f":"XBRLMap(#REF!,J$429&\".\"&#REF!,J$427,J$428,CONFIGURATION!$B$10,\"BMA\",CONFIGURATION!$B$1,\"bscr\",CONFIGURATION!$B$12)","v":{"$error":"#VALUE!"}},{"$f":"XBRLMap(#REF!,K$429&\".\"&#REF!,K$427,K$428,CONFIGURATION!$B$10,\"BMA\",CONFIGURATION!$B$1,\"bscr\",CONFIGURATION!$B$12)","v":{"$error":"#VALUE!"}},{"$f":"XBRLMap(#REF!,L$429&\".\"&#REF!,L$427,L$428,CONFIGURATION!$B$10,\"BMA\",CONFIGURATION!$B$1,\"bscr\",CONFIGURATION!$B$12)","v":{"$error":"#VALUE!"}},{"$f":"XBRLMap(#REF!,O$429&\".\"&#REF!,O$427,O$428,CONFIGURATION!$B$10,\"BMA\",CONFIGURATION!$B$1,\"bscr\")","v":{"$error":"#VALUE!"}},null,null,{"$f":"XBRLMap(#REF!,R$429&\".\"&#REF!,R$427,R$428,CONFIGURATION!$B$10,\"BMA\",CONFIGURATION!$B$1,\"bscr\")","v":{"$error":"#VALUE!"}}]
[null,null,null,{"$f":"XBRLMap(D59,E$429&\".\"&$U59,E$427,E$428,CONFIGURATION!$B$10,\"BMA\",CONFIGURATION!$B$1,\"bscr\",CONFIGURATION!$B$12)","v":"Mapped"},{"$f":"XBRLMap(#REF!,F$429&\".\"&$U59,F$427,F$428,CONFIGURATION!$B$10,\"BMA\",CONFIGURATION!$B$1,\"bscr\",CONFIGURATION!$B$12)","v":{"$error":"#VALUE!"}},{"$f":"XBRLMap(#REF!,G$429&\".\"&$U59,G$427,G$428,CONFIGURATION!$B$10,\"BMA\",CONFIGURATION!$B$1,\"bscr\",CONFIGURATION!$B$12)","v":{"$error":"#VALUE!"}},{"$f":"XBRLMap(E59,H$429&\".\"&$U59,H$427,H$428,CONFIGURATION!$B$10,\"BMA\",CONFIGURATION!$B$1,\"bscr\",CONFIGURATION!$B$12)","v":"Mapped"},{"$f":"XBRLMap(F59,I$429&\".\"&$U59,I$427,I$428,CONFIGURATION!$B$10,\"BMA\",CONFIGURATION!$B$1,\"bscr\",CONFIGURATION!$B$12)","v":"Mapped"},{"$f":"XBRLMap(G59,J$429&\".\"&$U59,J$427,J$428,CONFIGURATION!$B$10,\"BMA\",CONFIGURATION!$B$1,\"bscr\",CONFIGURATION!$B$12)","v":"Mapped"},{"$f":"XBRLMap(#REF!,K$429&\".\"&$U59,K$427,K$428,CONFIGURATION!$B$10,\"BMA\",CONFIGURATION!$B$1,\"bscr\",CONFIGURATION!$B$12)","v":{"$error":"#VALUE!"}},{"$f":"XBRLMap(I59,L$429&\".\"&$U59,L$427,L$428,CONFIGURATION!$B$10,\"BMA\",CONFIGURATION!$B$1,\"bscr\",CONFIGURATION!$B$12)","v":"Mapped"},{"$f":"XBRLMap(K59,O$429&\".\"&$U59,O$427,O$428,CONFIGURATION!$B$10,\"BMA\",CONFIGURATION!$B$1,\"bscr\")","v":"Mapped"},null,null,{"$f":"XBRLMap(L59,R$429&\".\"&$U59,R$427,R$428,CONFIGURATION!$B$10,\"BMA\",CONFIGURATION!$B$1,\"bscr\")","v":"Mapped"}]
[null,null,null,{"$f":"XBRLMap(D60,E$429&\".\"&$U60,E$427,E$428,CONFIGURATION!$B$10,\"BMA\",CONFIGURATION!$B$1,\"bscr\",CONFIGURATION!$B$12)","v":"Mapped"},{"$f":"XBRLMap(#REF!,F$429&\".\"&$U60,F$427,F$428,CONFIGURATION!$B$10,\"BMA\",CONFIGURATION!$B$1,\"bscr\",CONFIGURATION!$B$12)","v":{"$error":"#VALUE!"}},{"$f":"XBRLMap(#REF!,G$429&\".\"&$U60,G$427,G$428,CONFIGURATION!$B$10,\"BMA\",CONFIGURATION!$B$1,\"bscr\",CONFIGURATION!$B$12)","v":{"$error":"#VALUE!"}},{"$f":"XBRLMap(E60,H$429&\".\"&$U60,H$427,H$428,CONFIGURATION!$B$10,\"BMA\",CONFIGURATION!$B$1,\"bscr\",CONFIGURATION!$B$12)","v":"Mapped"},{"$f":"XBRLMap(F60,I$429&\".\"&$U60,I$427,I$428,CONFIGURATION!$B$10,\"BMA\",CONFIGURATION!$B$1,\"bscr\",CONFIGURATION!$B$12)","v":"Mapped"},{"$f":"XBRLMap(G60,J$429&\".\"&$U60,J$427,J$428,CONFIGURATION!$B$10,\"BMA\",CONFIGURATION!$B$1,\"bscr\",CONFIGURATION!$B$12)","v":"Mapped"},{"$f":"XBRLMap(#REF!,K$429&\".\"&$U60,K$427,K$428,CONFIGURATION!$B$10,\"BMA\",CONFIGURATION!$B$1,\"bscr\",CONFIGURATION!$B$12)","v":{"$error":"#VALUE!"}},{"$f":"XBRLMap(I60,L$429&\".\"&$U60,L$427,L$428,CONFIGURATION!$B$10,\"BMA\",CONFIGURATION!$B$1,\"bscr\",CONFIGURATION!$B$12)","v":"Mapped"},{"$f":"XBRLMap(K60,O$429&\".\"&$U60,O$427,O$428,CONFIGURATION!$B$10,\"BMA\",CONFIGURATION!$B$1,\"bscr\")","v":"Mapped"},null,null,{"$f":"XBRLMap(L60,R$429&\".\"&$U60,R$427,R$428,CONFIGURATION!$B$10,\"BMA\",CONFIGURATION!$B$1,\"bscr\")","v":"Mapped"}]
[null,null,null,{"$f":"XBRLMap(D61,E$429&\".\"&$U61,E$427,E$428,CONFIGURATION!$B$10,\"BMA\",CONFIGURATION!$B$1,\"bscr\",CONFIGURATION!$B$12)","v":"Mapped"},{"$f":"XBRLMap(#REF!,F$429&\".\"&$U61,F$427,F$428,CONFIGURATION!$B$10,\"BMA\",CONFIGURATION!$B$1,\"bscr\",CONFIGURATION!$B$12)","v":{"$error":"#VALUE!"}},{"$f":"XBRLMap(#REF!,G$429&\".\"&$U61,G$427,G$428,CONFIGURATION!$B$10,\"BMA\",CONFIGURATION!$B$1,\"bscr\",CONFIGURATION!$B$12)","v":{"$error":"#VALUE!"}},{"$f":"XBRLMap(E61,H$429&\".\"&$U61,H$427,H$428,CONFIGURATION!$B$10,\"BMA\",CONFIGURATION!$B$1,\"bscr\",CONFIGURATION!$B$12)","v":"Mapped"},{"$f":"XBRLMap(F61,I$429&\".\"&$U61,I$427,I$428,CONFIGURATION!$B$10,\"BMA\",CONFIGURATION!$B$1,\"bscr\",CONFIGURATION!$B$12)","v":"Mapped"},{"$f":"XBRLMap(G61,J$429&\".\"&$U61,J$427,J$428,CONFIGURATION!$B$10,\"BMA\",CONFIGURATION!$B$1,\"bscr\",CONFIGURATION!$B$12)","v":"Mapped"},{"$f":"XBRLMap(#REF!,K$429&\".\"&$U61,K$427,K$428,CONFIGURATION!$B$10,\"BMA\",CONFIGURATION!$B$1,\"bscr\",CONFIGURATION!$B$12)","v":{"$error":"#VALUE!"}},{"$f":"XBRLMap(I61,L$429&\".\"&$U61,L$427,L$428,CONFIGURATION!$B$10,\"BMA\",CONFIGURATION!$B$1,\"bscr\",CONFIGURATION!$B$12)","v":"Mapped"},{"$f":"XBRLMap(K61,O$429&\".\"&$U61,O$427,O$428,CONFIGURATION!$B$10,\"BMA\",CONFIGURATION!$B$1,\"bscr\")","v":"Mapped"},null,null,{"$f":"XBRLMap(L61,R$429&\".\"&$U61,R$427,R$428,CONFIGURATION!$B$10,\"BMA\",CONFIGURATION!$B$1,\"bscr\")","v":"Mapped"}]
[null,null,null,{"$f":"XBRLMap(D62,E$429&\".\"&$U62,E$427,E$428,CONFIGURATION!$B$10,\"BMA\",CONFIGURATION!$B$1,\"bscr\",CONFIGURATION!$B$12)","v":"Mapped"},{"$f":"XBRLMap(#REF!,F$429&\".\"&$U62,F$427,F$428,CONFIGURATION!$B$10,\"BMA\",CONFIGURATION!$B$1,\"bscr\",CONFIGURATION!$B$12)","v":{"$error":"#VALUE!"}},{"$f":"XBRLMap(#REF!,G$429&\".\"&$U62,G$427,G$428,CONFIGURATION!$B$10,\"BMA\",CONFIGURATION!$B$1,\"bscr\",CONFIGURATION!$B$12)","v":{"$error":"#VALUE!"}},{"$f":"XBRLMap(E62,H$429&\".\"&$U62,H$427,H$428,CONFIGURATION!$B$10,\"BMA\",CONFIGURATION!$B$1,\"bscr\",CONFIGURATION!$B$12)","v":"Mapped"},{"$f":"XBRLMap(F62,I$429&\".\"&$U62,I$427,I$428,CONFIGURATION!$B$10,\"BMA\",CONFIGURATION!$B$1,\"bscr\",CONFIGURATION!$B$12)","v":"Mapped"},{"$f":"XBRLMap(G62,J$429&\".\"&$U62,J$427,J$428,CONFIGURATION!$B$10,\"BMA\",CONFIGURATION!$B$1,\"bscr\",CONFIGURATION!$B$12)","v":"Mapped"},{"$f":"XBRLMap(#REF!,K$429&\".\"&$U62,K$427,K$428,CONFIGURATION!$B$10,\"BMA\",CONFIGURATION!$B$1,\"bscr\",CONFIGURATION!$B$12)","v":{"$error":"#VALUE!"}},{"$f":"XBRLMap(I62,L$429&\".\"&$U62,L$427,L$428,CONFIGURATION!$B$10,\"BMA\",CONFIGURATION!$B$1,\"bscr\",CONFIGURATION!$B$12)","v":"Mapped"},{"$f":"XBRLMap(K62,O$429&\".\"&$U62,O$427,O$428,CONFIGURATION!$B$10,\"BMA\",CONFIGURATION!$B$1,\"bscr\")","v":"Mapped"},null,null,{"$f":"XBRLMap(L62,R$429&\".\"&$U62,R$427,R$428,CONFIGURATION!$B$10,\"BMA\",CONFIGURATION!$B$1,\"bscr\")","v":"Mapped"}]
[null,null,null,{"$f":"XBRLMap(D63,E$429&\".\"&$U63,E$427,E$428,CONFIGURATION!$B$10,\"BMA\",CONFIGURATION!$B$1,\"bscr\",CONFIGURATION!$B$12)","v":"Mapped"},{"$f":"XBRLMap(#REF!,F$429&\".\"&$U63,F$427,F$428,CONFIGURATION!$B$10,\"BMA\",CONFIGURATION!$B$1,\"bscr\",CONFIGURATION!$B$12)","v":{"$error":"#VALUE!"}},{"$f":"XBRLMap(#REF!,G$429&\".\"&$U63,G$427,G$428,CONFIGURATION!$B$10,\"BMA\",CONFIGURATION!$B$1,\"bscr\",CONFIGURATION!$B$12)","v":{"$error":"#VALUE!"}},{"$f":"XBRLMap(E63,H$429&\".\"&$U63,H$427,H$428,CONFIGURATION!$B$10,\"BMA\",CONFIGURATION!$B$1,\"bscr\",CONFIGURATION!$B$12)","v":"Mapped"},{"$f":"XBRLMap(F63,I$429&\".\"&$U63,I$427,I$428,CONFIGURATION!$B$10,\"BMA\",CONFIGURATION!$B$1,\"bscr\",CONFIGURATION!$B$12)","v":"Mapped"},{"$f":"XBRLMap(G63,J$429&\".\"&$U63,J$427,J$428,CONFIGURATION!$B$10,\"BMA\",CONFIGURATION!$B$1,\"bscr\",CONFIGURATION!$B$12)","v":"Mapped"},{"$f":"XBRLMap(#REF!,K$429&\".\"&$U63,K$427,K$428,CONFIGURATION!$B$10,\"BMA\",CONFIGURATION!$B$1,\"bscr\",CONFIGURATION!$B$12)","v":{"$error":"#VALUE!"}},{"$f":"XBRLMap(I63,L$429&\".\"&$U63,L$427,L$428,CONFIGURATION!$B$10,\"BMA\",CONFIGURATION!$B$1,\"bscr\",CONFIGURATION!$B$12)","v":"Mapped"},{"$f":"XBRLMap(K63,O$429&\".\"&$U63,O$427,O$428,CONFIGURATION!$B$10,\"BMA\",CONFIGURATION!$B$1,\"bscr\")","v":"Mapped"},null,null,{"$f":"XBRLMap(L63,R$429&\".\"&$U63,R$427,R$428,CONFIGURATION!$B$10,\"BMA\",CONFIGURATION!$B$1,\"bscr\")","v":"Mapped"}]
[null,null,null,{"$f":"XBRLMap(D64,E$429&\".\"&$U64,E$427,E$428,CONFIGURATION!$B$10,\"BMA\",CONFIGURATION!$B$1,\"bscr\",CONFIGURATION!$B$12)","v":"Mapped"},{"$f":"XBRLMap(#REF!,F$429&\".\"&$U64,F$427,F$428,CONFIGURATION!$B$10,\"BMA\",CONFIGURATION!$B$1,\"bscr\",CONFIGURATION!$B$12)","v":{"$error":"#VALUE!"}},{"$f":"XBRLMap(#REF!,G$429&\".\"&$U64,G$427,G$428,CONFIGURATION!$B$10,\"BMA\",CONFIGURATION!$B$1,\"bscr\",CONFIGURATION!$B$12)","v":{"$error":"#VALUE!"}},{"$f":"XBRLMap(E64,H$429&\".\"&$U64,H$427,H$428,CONFIGURATION!$B$10,\"BMA\",CONFIGURATION!$B$1,\"bscr\",CONFIGURATION!$B$12)","v":"Mapped"},{"$f":"XBRLMap(F64,I$429&\".\"&$U64,I$427,I$428,CONFIGURATION!$B$10,\"BMA\",CONFIGURATION!$B$1,\"bscr\",CONFIGURATION!$B$12)","v":"Mapped"},{"$f":"XBRLMap(G64,J$429&\".\"&$U64,J$427,J$428,CONFIGURATION!$B$10,\"BMA\",CONFIGURATION!$B$1,\"bscr\",CONFIGURATION!$B$12)","v":"Mapped"},{"$f":"XBRLMap(#REF!,K$429&\".\"&$U64,K$427,K$428,CONFIGURATION!$B$10,\"BMA\",CONFIGURATION!$B$1,\"bscr\",CONFIGURATION!$B$12)","v":{"$error":"#VALUE!"}},{"$f":"XBRLMap(I64,L$429&\".\"&$U64,L$427,L$428,CONFIGURATION!$B$10,\"BMA\",CONFIGURATION!$B$1,\"bscr\",CONFIGURATION!$B$12)","v":"Mapped"},{"$f":"XBRLMap(K64,O$429&\".\"&$U64,O$427,O$428,CONFIGURATION!$B$10,\"BMA\",CONFIGURATION!$B$1,\"bscr\")","v":"Mapped"},null,null,{"$f":"XBRLMap(L64,R$429&\".\"&$U64,R$427,R$428,CONFIGURATION!$B$10,\"BMA\",CONFIGURATION!$B$1,\"bscr\")","v":"Mapped"}]
[null,null,null,{"$f":"XBRLMap(D65,E$429&\".\"&$U65,E$427,E$428,CONFIGURATION!$B$10,\"BMA\",CONFIGURATION!$B$1,\"bscr\",CONFIGURATION!$B$12)","v":"Mapped"},{"$f":"XBRLMap(#REF!,F$429&\".\"&$U65,F$427,F$428,CONFIGURATION!$B$10,\"BMA\",CONFIGURATION!$B$1,\"bscr\",CONFIGURATION!$B$12)","v":{"$error":"#VALUE!"}},{"$f":"XBRLMap(#REF!,G$429&\".\"&$U65,G$427,G$428,CONFIGURATION!$B$10,\"BMA\",CONFIGURATION!$B$1,\"bscr\",CONFIGURATION!$B$12)","v":{"$error":"#VALUE!"}},{"$f":"XBRLMap(E65,H$429&\".\"&$U65,H$427,H$428,CONFIGURATION!$B$10,\"BMA\",CONFIGURATION!$B$1,\"bscr\",CONFIGURATION!$B$12)","v":"Mapped"},{"$f":"XBRLMap(F65,I$429&\".\"&$U65,I$427,I$428,CONFIGURATION!$B$10,\"BMA\",CONFIGURATION!$B$1,\"bscr\",CONFIGURATION!$B$12)","v":"Mapped"},{"$f":"XBRLMap(G65,J$429&\".\"&$U65,J$427,J$428,CONFIGURATION!$B$10,\"BMA\",CONFIGURATION!$B$1,\"bscr\",CONFIGURATION!$B$12)","v":"Mapped"},{"$f":"XBRLMap(#REF!,K$429&\".\"&$U65,K$427,K$428,CONFIGURATION!$B$10,\"BMA\",CONFIGURATION!$B$1,\"bscr\",CONFIGURATION!$B$12)","v":{"$error":"#VALUE!"}},{"$f":"XBRLMap(I65,L$429&\".\"&$U65,L$427,L$428,CONFIGURATION!$B$10,\"BMA\",CONFIGURATION!$B$1,\"bscr\",CONFIGURATION!$B$12)","v":"Mapped"},null,null,null,{"$f":"XBRLMap(L65,R$429&\".\"&$U65,R$427,R$428,CONFIGURATION!$B$10,\"BMA\",CONFIGURATION!$B$1,\"bscr\")","v":"Mapped"}]
[null,null,null,{"$f":"XBRLMap(D66,E$429&\".\"&$U66,E$427,E$428,CONFIGURATION!$B$10,\"BMA\",CONFIGURATION!$B$1,\"bscr\",CONFIGURATION!$B$12)","v":"Mapped"},{"$f":"XBRLMap(#REF!,F$429&\".\"&$U66,F$427,F$428,CONFIGURATION!$B$10,\"BMA\",CONFIGURATION!$B$1,\"bscr\",CONFIGURATION!$B$12)","v":{"$error":"#VALUE!"}},{"$f":"XBRLMap(#REF!,G$429&\".\"&$U66,G$427,G$428,CONFIGURATION!$B$10,\"BMA\",CONFIGURATION!$B$1,\"bscr\",CONFIGURATION!$B$12)","v":{"$error":"#VALUE!"}},{"$f":"XBRLMap(E66,H$429&\".\"&$U66,H$427,H$428,CONFIGURATION!$B$10,\"BMA\",CONFIGURATION!$B$1,\"bscr\",CONFIGURATION!$B$12)","v":"Mapped"},{"$f":"XBRLMap(F66,I$429&\".\"&$U66,I$427,I$428,CONFIGURATION!$B$10,\"BMA\",CONFIGURATION!$B$1,\"bscr\",CONFIGURATION!$B$12)","v":"Mapped"},{"$f":"XBRLMap(G66,J$429&\".\"&$U66,J$427,J$428,CONFIGURATION!$B$10,\"BMA\",CONFIGURATION!$B$1,\"bscr\",CONFIGURATION!$B$12)","v":"Mapped"},{"$f":"XBRLMap(#REF!,K$429&\".\"&$U66,K$427,K$428,CONFIGURATION!$B$10,\"BMA\",CONFIGURATION!$B$1,\"bscr\",CONFIGURATION!$B$12)","v":{"$error":"#VALUE!"}},{"$f":"XBRLMap(I66,L$429&\".\"&$U66,L$427,L$428,CONFIGURATION!$B$10,\"BMA\",CONFIGURATION!$B$1,\"bscr\",CONFIGURATION!$B$12)","v":"Mapped"},null,null,null,{"$f":"XBRLMap(L66,R$429&\".\"&$U66,R$427,R$428,CONFIGURATION!$B$10,\"BMA\",CONFIGURATION!$B$1,\"bscr\")","v":"Mapped"}]
[null,null,null,{"$f":"XBRLMap(D67,E$429&\".\"&$U67,E$427,E$428,CONFIGURATION!$B$10,\"BMA\",CONFIGURATION!$B$1,\"bscr\",CONFIGURATION!$B$12)","v":"Mapped"},{"$f":"XBRLMap(#REF!,F$429&\".\"&$U67,F$427,F$428,CONFIGURATION!$B$10,\"BMA\",CONFIGURATION!$B$1,\"bscr\",CONFIGURATION!$B$12)","v":{"$error":"#VALUE!"}},{"$f":"XBRLMap(#REF!,G$429&\".\"&$U67,G$427,G$428,CONFIGURATION!$B$10,\"BMA\",CONFIGURATION!$B$1,\"bscr\",CONFIGURATION!$B$12)","v":{"$error":"#VALUE!"}},{"$f":"XBRLMap(E67,H$429&\".\"&$U67,H$427,H$428,CONFIGURATION!$B$10,\"BMA\",CONFIGURATION!$B$1,\"bscr\",CONFIGURATION!$B$12)","v":"Mapped"},{"$f":"XBRLMap(F67,I$429&\".\"&$U67,I$427,I$428,CONFIGURATION!$B$10,\"BMA\",CONFIGURATION!$B$1,\"bscr\",CONFIGURATION!$B$12)","v":"Mapped"},{"$f":"XBRLMap(G67,J$429&\".\"&$U67,J$427,J$428,CONFIGURATION!$B$10,\"BMA\",CONFIGURATION!$B$1,\"bscr\",CONFIGURATION!$B$12)","v":"Mapped"},{"$f":"XBRLMap(#REF!,K$429&\".\"&$U67,K$427,K$428,CONFIGURATION!$B$10,\"BMA\",CONFIGURATION!$B$1,\"bscr\",CONFIGURATION!$B$12)","v":{"$error":"#VALUE!"}},{"$f":"XBRLMap(I67,L$429&\".\"&$U67,L$427,L$428,CONFIGURATION!$B$10,\"BMA\",CONFIGURATION!$B$1,\"bscr\",CONFIGURATION!$B$12)","v":"Mapped"},null,null,null,{"$f":"XBRLMap(L67,R$429&\".\"&$U67,R$427,R$428,CONFIGURATION!$B$10,\"BMA\",CONFIGURATION!$B$1,\"bscr\")","v":"Mapped"}]
[null,null,null,{"$f":"XBRLMap(D68,E$429&\".\"&$U68,E$427,E$428,CONFIGURATION!$B$10,\"BMA\",CONFIGURATION!$B$1,\"bscr\",CONFIGURATION!$B$12)","v":"Mapped"},{"$f":"XBRLMap(#REF!,F$429&\".\"&$U68,F$427,F$428,CONFIGURATION!$B$10,\"BMA\",CONFIGURATION!$B$1,\"bscr\",CONFIGURATION!$B$12)","v":{"$error":"#VALUE!"}},{"$f":"XBRLMap(#REF!,G$429&\".\"&$U68,G$427,G$428,CONFIGURATION!$B$10,\"BMA\",CONFIGURATION!$B$1,\"bscr\",CONFIGURATION!$B$12)","v":{"$error":"#VALUE!"}},{"$f":"XBRLMap(E68,H$429&\".\"&$U68,H$427,H$428,CONFIGURATION!$B$10,\"BMA\",CONFIGURATION!$B$1,\"bscr\",CONFIGURATION!$B$12)","v":"Mapped"},{"$f":"XBRLMap(F68,I$429&\".\"&$U68,I$427,I$428,CONFIGURATION!$B$10,\"BMA\",CONFIGURATION!$B$1,\"bscr\",CONFIGURATION!$B$12)","v":"Mapped"},{"$f":"XBRLMap(G68,J$429&\".\"&$U68,J$427,J$428,CONFIGURATION!$B$10,\"BMA\",CONFIGURATION!$B$1,\"bscr\",CONFIGURATION!$B$12)","v":"Mapped"},{"$f":"XBRLMap(#REF!,K$429&\".\"&$U68,K$427,K$428,CONFIGURATION!$B$10,\"BMA\",CONFIGURATION!$B$1,\"bscr\",CONFIGURATION!$B$12)","v":{"$error":"#VALUE!"}},{"$f":"XBRLMap(I68,L$429&\".\"&$U68,L$427,L$428,CONFIGURATION!$B$10,\"BMA\",CONFIGURATION!$B$1,\"bscr\",CONFIGURATION!$B$12)","v":"Mapped"},null,null,null,{"$f":"XBRLMap(L68,R$429&\".\"&$U68,R$427,R$428,CONFIGURATION!$B$10,\"BMA\",CONFIGURATION!$B$1,\"bscr\")","v":"Mapped"}]
[]
[]
[]
[]
[]
[]
[]
[]
[]
[]
[]
[]
[]
[]
[]
[]
[]
[]
[]
[]
[]
[null,null,"Largest Loss"]
[null,null,"UW1. ","Northeast Hurricane"]
[null,null,"UW2.","Carolinas Hurricane"]
[null,null,"UW3.","Miami-Dade Hurricane"]
[null,null,"UW4.","Pinellas Hurricane"]
[null,null,"UW5.","Gulf Windstorm (onshore)"]
[null,null,"UW6.","Gulf Windstorm (offshore)"]
[null,null,"UE1.","Los Angeles Earthquake"]
[null,null,"UE2.","San Francisco Earthquake"]
[null,null,"UE3.","New Madrid (NM) RDS"]
[null,null,"UE4.","NM Extreme Stress Scenario"]
[null,null,"IW1. ","European Windstorm"]
[null,null,"IW2.","Japanese Typhoon"]
[null,null,"IE1.","Japanese Earthquake"]
[null,null,"A1.","Aerospace/ Aviation Event"]
[null,null,"M1.","Marine Collision in Prince William"]
[null,null,"M2.","Major Cruise Vessel Incident"]
[null,null,"N1.","US Oil Spill"]
[null,null,"N2.","US Tornadoes"]
[null,null,"N3.","Australian Flooding"]
[null,null,"N4.","Australian Wildfires"]
[null,null,null,"Largest Loss",null,null,null,null,{"$f":"MAX(F51:F68)","v":0}]
[]
[null,null,"UW1. ","Northeast Hurricane",null,null,null,null,{"$f":"IF($I$499=F51,0,F51)","v":0}]
[null,null,"UW2.","Carolinas Hurricane",null,null,null,null,{"$f":"IF($I$499=F52,0,F52)","v":0}]
[null,null,"UW3.","Miami-Dade Hurricane",null,null,null,null,{"$f":"IF($I$499=F53,0,F53)","v":0}]
[null,null,"UW4.","Pinellas Hurricane",null,null,null,null,{"$f":"IF($I$499=F54,0,F54)","v":0}]
[null,null,"UW5.","Gulf Windstorm (onshore)",null,null,null,null,{"$f":"IF($I$499=F55,0,F55)","v":0}]
[null,null,"UW6.","Gulf Windstorm (offshore)"]
[null,null,"UE1.","Los Angeles Earthquake",null,null,null,null,{"$f":"IF($I$499=F56,0,F56)","v":0},null,null,null,null,null,"bma_class3A_StatementComponentAxis2_bma_BmaStressscenarioTestsPoststressscenarioNetLoss1StatutoryCapitalAndSurplus",null,null,"bma_class3A_StatementComponentAxis2_bma_BmaStressscenarioTestsPoststressscenarioNetLoss1ReturnPeriod2"]
[null,null,"UE2.","San Francisco Earthquake",null,null,null,null,{"$f":"IF($I$499=F57,0,F57)","v":0}]
[null,null,"UE3.","New Madrid (NM) RDS",null,null,null,null,{"$f":"IF($I$499=F58,0,F58)","v":0}]
[null,null,"UE4.","NM Extreme Stress Scenario"]
[null,null,"IW1. ","European Windstorm",null,null,null,null,{"$f":"IF($I$499=F59,0,F59)","v":0}]
[null,null,"IW2.","Japanese Typhoon",null,null,null,null,0]
[null,null,"IE1.","Japanese Earthquake",null,null,null,null,0]
[null,null,"A1.","Aerospace/ Aviation Event",null,null,null,null,0]
[null,null,"M1.","Marine Collision in Prince William",null,null,null,null,0]
[null,null,"M2.","Major Cruise Vessel Incident",null,null,null,null,0]
[null,null,"N1.","US Oil Spill",null,null,null,null,0]
[null,null,"N2.","US Tornadoes",null,null,null,null,0]
[null,null,"N3.","Australian Flooding",null,null,null,null,0]
[null,null,"N4.","Australian Wildfires",null,null,null,null,0]
[null,null,null,"2nd Largest Loss",null,null,null,null,{"$f":"MAX(I501:I520)","v":0}]
[]
[null,null,"UW1. ","Northeast Hurricane",null,null,null,null,{"$f":"IF($I$521=I501,0,I501)","v":0}]
[null,null,"UW2.","Carolinas Hurricane",null,null,null,null,{"$f":"IF($I$521=I502,0,I502)","v":0}]
[null,null,"UW3.","Miami-Dade Hurricane",null,null,null,null,0]
[null,null,"UW4.","Pinellas Hurricane",null,null,null,null,0]
[null,null,"UW5.","Gulf Windstorm (onshore)",null,null,null,null,0]
[null,null,"UW6.","Gulf Windstorm (offshore)",null,null,null,null,0]
[null,null,"UE1.","Los Angeles Earthquake",null,null,null,null,0]
[null,null,"UE2.","San Francisco Earthquake",null,null,null,null,0]
[null,null,"UE3.","New Madrid (NM) RDS",null,null,null,null,0]
[null,null,"UE4.","NM Extreme Stress Scenario",null,null,null,null,0]
[null,null,"IW1. ","European Windstorm",null,null,null,null,0]
[null,null,"IW2.","Japanese Typhoon",null,null,null,null,0]
[null,null,"IE1.","Japanese Earthquake",null,null,null,null,0]
[null,null,"A1.","Aerospace/ Aviation Event",null,null,null,null,0]
[null,null,"M1.","Marine Collision in Prince William",null,null,null,null,0]
[null,null,"M2.","Major Cruise Vessel Incident",null,null,null,null,0]
[null,null,"N1.","US Oil Spill",null,null,null,null,0]
[null,null,"N2.","US Tornadoes",null,null,null,null,0]
[null,null,"N3.","Australian Flooding",null,null,null,null,0]
[null,null,"N4.","Australian Wildfires",null,null,null,null,0]
[null,null,null,"3rd Largest Loss",null,null,null,null,{"$f":"MAX(I523:I542)","v":0}]

{"sheet":"Schedule V(g)","index":43,"n_rows":64,"n_cols":26,"rows_kept":64,"cut":false,"hidden":false,"merged":[[0,2,0,5],[1,2,1,4],[2,2,2,5],[5,2,6,6]]}
[null,null,"SCHEDULE OF RISK MANAGEMENT - FINANCIAL STATEMENT RECONCILIATION",null,null,null,{"$f":"HYPERLINK(\"#'Index'!A1\",\"Return to Index\")","v":"Return to Index"},null,null,null,null,null,null,null,null,null,null,null,null,null,null,null,null,null,{"$f":"'Company Information'!C3","v":43830},{"$f":"'Company Information'!L1","v":"01/01/2019"}]
[null,null,{"$f":"'Company Information'!C7","v":"Enter Company Name"},null,null,null,null,null,null,null,null,null,null,null,null,null,null,null,null,null,null,null,null,null,null,{"$f":"'Company Information'!L2","v":"12/31/2019"}]
[null,null,{"$f":"\"For the year ending \"&TEXT('Company Information'!C3,\"MMMM DD, YYYY\")","v":"For the year ending December 31, 2019"}]
[null,null,{"$f":"\"expressed in\"& IF(CONFIGURATION!$B$12>1,\" ['\"&MID(CONFIGURATION!$B$12,2,LEN(CONFIGURATION!$B$12))&\"s]\",\"\")&\" \"&'Form 1EBS'!C4","v":"expressed in ['000s] United States Dollars"},null,null,null,"SCHEDULE V(g)"]
[]
[null,null,"A reconciliation of amounts reported in total assets, total liabilities, net income, and capital and surplus comprising of any adjustments applied to the General Accepted Accounting Principles/International Financial Reporting Standards to Form 1SFS and from Form 1SFS to Form 1EBS"]
[]
[]
[null,null,"Adjustment Description","Assets","Liabilities","Net Income","Capital and Surplus"]
[null,null,"GAAP/IFRS Financial Statements ",{"$f":"Import!E3549","v":0},{"$f":"Import!E3560","v":0},{"$f":"Import!E3571","v":0},{"$f":"Import!E3582","v":0},null,null,null,null,null,null,null,null,null,null,null,null,null,null,null,null,null,null,{"$f":"IF(OR(D10<>\"\",E10<>\"\",F10<>\"\",G10<>\"\"),XBRLMapTuple($C$63,$Z$1,Z$2,\"BMA\",CONFIGURATION!$B$1,\"bscr\",\"\",CONFIGURATION!$B$12,$C$64,C10,$D$64,D10,$E$64,E10,$F$64,F10,$G$64,G10),\"emptyTuple\")","v":"Mapped"}]
[null,1,"Prepaid Expenses",{"$f":"Import!E3550","v":0},{"$f":"Import!E3561","v":0},{"$f":"Import!E3572","v":0},{"$f":"D11-E11","v":0},null,null,null,null,null,null,null,null,null,null,null,null,null,null,null,null,null,null,{"$f":"IF(OR(D11<>\"\",E11<>\"\",F11<>\"\",G11<>\"\"),XBRLMapTuple($C$63,$Z$1,Z$2,\"BMA\",CONFIGURATION!$B$1,\"bscr\",\"\",CONFIGURATION!$B$12,$C$64,C11,$D$64,D11,$E$64,E11,$F$64,F11,$G$64,G11),\"emptyTuple\")","v":"Mapped"}]
[null,{"$f":"B11+1","v":2},"Goodwill",{"$f":"Import!E3551","v":0},{"$f":"Import!E3562","v":0},{"$f":"Import!E3573","v":0},0,null,null,null,null,null,null,null,null,null,null,null,null,null,null,null,null,null,null,{"$f":"IF(OR(D12<>\"\",E12<>\"\",F12<>\"\",G12<>\"\"),XBRLMapTuple($C$63,$Z$1,Z$2,\"BMA\",CONFIGURATION!$B$1,\"bscr\",\"\",CONFIGURATION!$B$12,$C$64,C12,$D$64,D12,$E$64,E12,$F$64,F12,$G$64,G12),\"emptyTuple\")","v":"Mapped"}]
[null,3,"Intangible Assets",{"$f":"Import!E3552","v":0},{"$f":"Import!E3563","v":0},{"$f":"Import!E3574","v":0},0,null,null,null,null,null,null,null,null,null,null,null,null,null,null,null,null,null,null,{"$f":"IF(OR(D13<>\"\",E13<>\"\",F13<>\"\",G13<>\"\"),XBRLMapTuple($C$63,$Z$1,Z$2,\"BMA\",CONFIGURATION!$B$1,\"bscr\",\"\",CONFIGURATION!$B$12,$C$64,C13,$D$64,D13,$E$64,E13,$F$64,F13,$G$64,G13),\"emptyTuple\")","v":"Mapped"}]
[null,4,"(Enter other adjustments from Financials Statements to Form 1SFS)",{"$f":"Import!E3553","v":0},{"$f":"Import!E3564","v":0},{"$f":"Import!E3575","v":0},0,null,null,null,null,null,null,null,null,null,null,null,null,null,null,null,null,null,null,{"$f":"IF(OR(D14<>\"\",E14<>\"\",F14<>\"\",G14<>\"\"),XBRLMapTuple($C$63,$Z$1,Z$2,\"BMA\",CONFIGURATION!$B$1,\"bscr\",\"\",CONFIGURATION!$B$12,$C$64,C14,$D$64,D14,$E$64,E14,$F$64,F14,$G$64,G14),\"emptyTuple\")","v":"Mapped"}]
[null,5,"(Enter other adjustments from Financials Statements to Form 1SFS)",{"$f":"Import!E3554","v":0},{"$f":"Import!E3565","v":0},{"$f":"Import!E3576","v":0},0,null,null,null,null,null,null,null,null,null,null,null,null,null,null,null,null,null,null,{"$f":"IF(OR(D15<>\"\",E15<>\"\",F15<>\"\",G15<>\"\"),XBRLMapTuple($C$63,$Z$1,Z$2,\"BMA\",CONFIGURATION!$B$1,\"bscr\",\"\",CONFIGURATION!$B$12,$C$64,C15,$D$64,D15,$E$64,E15,$F$64,F15,$G$64,G15),\"emptyTuple\")","v":"Mapped"}]
[null,6,"(Enter other adjustments from Financials Statements to Form 1SFS)",{"$f":"Import!E3555","v":0},{"$f":"Import!E3566","v":0},{"$f":"Import!E3577","v":0},0,null,null,null,null,null,null,null,null,null,null,null,null,null,null,null,null,null,null,{"$f":"IF(OR(D16<>\"\",E16<>\"\",F16<>\"\",G16<>\"\"),XBRLMapTuple($C$63,$Z$1,Z$2,\"BMA\",CONFIGURATION!$B$1,\"bscr\",\"\",CONFIGURATION!$B$12,$C$64,C16,$D$64,D16,$E$64,E16,$F$64,F16,$G$64,G16),\"emptyTuple\")","v":"Mapped"}]
[null,7,"(Enter other adjustments from Financials Statements to Form 1SFS)",{"$f":"Import!E3556","v":0},{"$f":"Import!E3567","v":0},{"$f":"Import!E3578","v":0},0,null,null,null,null,null,null,null,null,null,null,null,null,null,null,null,null,null,null,{"$f":"IF(OR(D17<>\"\",E17<>\"\",F17<>\"\",G17<>\"\"),XBRLMapTuple($C$63,$Z$1,Z$2,\"BMA\",CONFIGURATION!$B$1,\"bscr\",\"\",CONFIGURATION!$B$12,$C$64,C17,$D$64,D17,$E$64,E17,$F$64,F17,$G$64,G17),\"emptyTuple\")","v":"Mapped"}]
[null,8,"(Enter other adjustments from Financials Statements to Form 1SFS)",{"$f":"Import!E3557","v":0},{"$f":"Import!E3568","v":0},{"$f":"Import!E3579","v":0},0,null,null,null,null,null,null,null,null,null,null,null,null,null,null,null,null,null,null,{"$f":"IF(OR(D18<>\"\",E18<>\"\",F18<>\"\",G18<>\"\"),XBRLMapTuple($C$63,$Z$1,Z$2,\"BMA\",CONFIGURATION!$B$1,\"bscr\",\"\",CONFIGURATION!$B$12,$C$64,C18,$D$64,D18,$E$64,E18,$F$64,F18,$G$64,G18),\"emptyTuple\")","v":"Mapped"}]
[null,9,"(Enter other adjustments from Financials Statements to Form 1SFS)",{"$f":"Import!E3558","v":0},{"$f":"Import!E3569","v":0},{"$f":"Import!E3580","v":0},0,null,null,null,null,null,null,null,null,null,null,null,null,null,null,null,null,null,null,{"$f":"IF(OR(D19<>\"\",E19<>\"\",F19<>\"\",G19<>\"\"),XBRLMapTuple($C$63,$Z$1,Z$2,\"BMA\",CONFIGURATION!$B$1,\"bscr\",\"\",CONFIGURATION!$B$12,$C$64,C19,$D$64,D19,$E$64,E19,$F$64,F19,$G$64,G19),\"emptyTuple\")","v":"Mapped"}]
[null,10,"(Enter other adjustments from Financials Statements to Form 1SFS)",{"$f":"Import!E3559","v":0},{"$f":"Import!E3570","v":0},{"$f":"Import!E3581","v":0},0,null,null,null,null,null,null,null,null,null,null,null,null,null,null,null,null,null,null,{"$f":"IF(OR(D20<>\"\",E20<>\"\",F20<>\"\",G20<>\"\"),XBRLMapTuple($C$63,$Z$1,Z$2,\"BMA\",CONFIGURATION!$B$1,\"bscr\",\"\",CONFIGURATION!$B$12,$C$64,C20,$D$64,D20,$E$64,E20,$F$64,F20,$G$64,G20),\"emptyTuple\")","v":"Mapped"}]
[null,null,"Form 1SFS",{"$f":"SUM(D10:D20)","v":0},{"$f":"SUM(E10:E20)","v":0},{"$f":"SUM(F10:F20)","v":0},{"$f":"SUM(G10:G20)","v":0},null,null,null,null,null,null,null,null,null,null,null,null,null,null,null,null,null,null,{"$f":"IF(OR(D21<>\"\",E21<>\"\",F21<>\"\",G21<>\"\"),XBRLMapTuple($C$63,$Z$1,Z$2,\"BMA\",CONFIGURATION!$B$1,\"bscr\",\"\",CONFIGURATION!$B$12,$C$64,C21,$D$64,D21,$E$64,E21,$F$64,F21,$G$64,G21),\"emptyTuple\")","v":"Mapped"}]
[]
[null,null,null,{"$f":"IF(D24=\"TRUE\",HYPERLINK(\"#'Form 1SFS'!M100\",\"TRUE\"),HYPERLINK(\"#'Form 1SFS'!M100\",\"FALSE\"))","v":"TRUE"},{"$f":"IF(E24=\"TRUE\",HYPERLINK(\"#'Form 1SFS'!M194\",\"TRUE\"),HYPERLINK(\"#'Form 1SFS'!M194\",\"FALSE\"))","v":"TRUE"},null,{"$f":"IF(G24=\"TRUE\",HYPERLINK(\"#'Form 1SFS'!M198\",\"TRUE\"),HYPERLINK(\"#'Form 1SFS'!M198\",\"FALSE\"))","v":"TRUE"}]
[null,null,null,{"$f":"IF(ROUND((IF('Form 1SFS'!M100=0,('Form 1SFS'!E100+'Form 1SFS'!I100),'Form 1SFS'!M100)-D21),0)=0,\"TRUE\",\"FALSE\")","v":"TRUE"},{"$f":"IF(ROUND((IF('Form 1SFS'!M194=0,('Form 1SFS'!E194+'Form 1SFS'!I194),'Form 1SFS'!M194)-E21),0)=0,\"TRUE\",\"FALSE\")","v":"TRUE"},null,{"$f":"IF(ROUND((IF('Form 1SFS'!M198=0,('Form 1SFS'!E198+'Form 1SFS'!I198),'Form 1SFS'!M198)-G21),0)=0,\"TRUE\",\"FALSE\")","v":"TRUE"}]
[null,null,null,{"$f":"ROUND(IF('Form 1SFS'!M100=0,('Form 1SFS'!E100+'Form 1SFS'!I100),'Form 1SFS'!M100)-D21,0)","v":0},{"$f":"ROUND(IF('Form 1SFS'!M194=0,('Form 1SFS'!E194+'Form 1SFS'!I194),'Form 1SFS'!M194)-E21,0)","v":0},null,{"$f":"ROUND(IF('Form 1SFS'!M198=0,('Form 1SFS'!E198+'Form 1SFS'!I198),'Form 1SFS'!M198)-G21,0)","v":0}]
[]
[null,null,null,{"$f":"IF(D23=\"False\",\"Does not equal Form 1SFS Line 15\",\"\")","v":""},{"$f":"IF(E23=\"False\",\"Does not equal Form 1SFS Line 39\",\"\")","v":""},null,{"$f":"IF(G23=\"False\",\"Does not equal Form 1SFS Line 40\",\"\")","v":""}]
[]
[null,null,"Adjustment Description","Assets","Liabilities","Net Income","Capital and Surplus"]
[null,null,"Form 1SFS",{"$f":"IF('Form 1SFS'!M100=0,('Form 1SFS'!E100+'Form 1SFS'!I100),'Form 1SFS'!M100)","v":0},{"$f":"IF('Form 1SFS'!M194=0,('Form 1SFS'!E194+'Form 1SFS'!I194),'Form 1SFS'!M194)","v":0},{"$f":"IF('Form 2SFS'!M115=0,('Form 2SFS'!E115+'Form 2SFS'!I115),'Form 2SFS'!M115)","v":0},{"$f":"IF('Form 1SFS'!M198=0,('Form 1SFS'!E198+'Form 1SFS'!I198),'Form 1SFS'!M198)","v":0},null,null,null,null,null,null,null,null,null,null,null,null,null,null,null,null,null,null,{"$f":"IF(OR(D30<>\"\",E30<>\"\",F30<>\"\",G30<>\"\"),XBRLMapTuple($C$63,$Z$1,$Z$2,\"BMA\",CONFIGURATION!$B$1,\"bscr\",\"\",CONFIGURATION!$B$12,$C$64,C30,$D$64,D30,$E$64,E30,$F$64,F30,$G$64,G30),\"emptyTuple\")","v":"Mapped"}]
[null,1,"Gross Loss and Loss Expense Provision",{"$f":"Import!E3584","v":0},{"$f":"Import!E3603","v":0},{"$f":"Import!E3622","v":0},{"$f":"D31-E31","v":0},null,null,null,null,null,null,null,null,null,null,null,null,null,null,null,null,null,null,{"$f":"IF(OR(D31<>\"\",E31<>\"\",F31<>\"\",G31<>\"\"),XBRLMapTuple($C$63,$Z$1,$Z$2,\"BMA\",CONFIGURATION!$B$1,\"bscr\",\"\",CONFIGURATION!$B$12,$C$64,C31,$D$64,D31,$E$64,E31,$F$64,F31,$G$64,G31),\"emptyTuple\")","v":"Mapped"}]
[null,{"$f":"B31+1","v":2},"Gross Premium Provisions",{"$f":"Import!E3585","v":0},{"$f":"Import!E3604","v":0},{"$f":"Import!E3623","v":0},0,null,null,null,null,null,null,null,null,null,null,null,null,null,null,null,null,null,null,{"$f":"IF(OR(D32<>\"\",E32<>\"\",F32<>\"\",G32<>\"\"),XBRLMapTuple($C$63,$Z$1,$Z$2,\"BMA\",CONFIGURATION!$B$1,\"bscr\",\"\",CONFIGURATION!$B$12,$C$64,C32,$D$64,D32,$E$64,E32,$F$64,F32,$G$64,G32),\"emptyTuple\")","v":"Mapped"}]
[null,3,"Reinsurance Recoverable",{"$f":"Import!E3586","v":0},{"$f":"Import!E3605","v":0},{"$f":"Import!E3624","v":0},0,null,null,null,null,null,null,null,null,null,null,null,null,null,null,null,null,null,null,{"$f":"IF(OR(D33<>\"\",E33<>\"\",F33<>\"\",G33<>\"\"),XBRLMapTuple($C$63,$Z$1,$Z$2,\"BMA\",CONFIGURATION!$B$1,\"bscr\",\"\",CONFIGURATION!$B$12,$C$64,C33,$D$64,D33,$E$64,E33,$F$64,F33,$G$64,G33),\"emptyTuple\")","v":"Mapped"}]
[null,4,"Risk Margin",{"$f":"Import!E3587","v":0},{"$f":"Import!E3606","v":0},{"$f":"Import!E3625","v":0},0,null,null,null,null,null,null,null,null,null,null,null,null,null,null,null,null,null,null,{"$f":"IF(OR(D34<>\"\",E34<>\"\",F34<>\"\",G34<>\"\"),XBRLMapTuple($C$63,$Z$1,$Z$2,\"BMA\",CONFIGURATION!$B$1,\"bscr\",\"\",CONFIGURATION!$B$12,$C$64,C34,$D$64,D34,$E$64,E34,$F$64,F34,$G$64,G34),\"emptyTuple\")","v":"Mapped"}]
[null,5,"Contingent Liabilities",{"$f":"Import!E3588","v":0},{"$f":"Import!E3607","v":0},{"$f":"Import!E3626","v":0},0,null,null,null,null,null,null,null,null,null,null,null,null,null,null,null,null,null,null,{"$f":"IF(OR(D35<>\"\",E35<>\"\",F35<>\"\",G35<>\"\"),XBRLMapTuple($C$63,$Z$1,$Z$2,\"BMA\",CONFIGURATION!$B$1,\"bscr\",\"\",CONFIGURATION!$B$12,$C$64,C35,$D$64,D35,$E$64,E35,$F$64,F35,$G$64,G35),\"emptyTuple\")","v":"Mapped"}]
[null,6,"Goodwill",{"$f":"Import!E3589","v":0},{"$f":"Import!E3608","v":0},{"$f":"Import!E3627","v":0},0,null,null,null,null,null,null,null,null,null,null,null,null,null,null,null,null,null,null,{"$f":"IF(OR(D36<>\"\",E36<>\"\",F36<>\"\",G36<>\"\"),XBRLMapTuple($C$63,$Z$1,$Z$2,\"BMA\",CONFIGURATION!$B$1,\"bscr\",\"\",CONFIGURATION!$B$12,$C$64,C36,$D$64,D36,$E$64,E36,$F$64,F36,$G$64,G36),\"emptyTuple\")","v":"Mapped"}]
[null,7,"Deferred Taxes Valuation",{"$f":"Import!E3590","v":0},{"$f":"Import!E3609","v":0},{"$f":"Import!E3628","v":0},0,null,null,null,null,null,null,null,null,null,null,null,null,null,null,null,null,null,null,{"$f":"IF(OR(D37<>\"\",E37<>\"\",F37<>\"\",G37<>\"\"),XBRLMapTuple($C$63,$Z$1,$Z$2,\"BMA\",CONFIGURATION!$B$1,\"bscr\",\"\",CONFIGURATION!$B$12,$C$64,C37,$D$64,D37,$E$64,E37,$F$64,F37,$G$64,G37),\"emptyTuple\")","v":"Mapped"}]
[null,8,"Quoted Investments",{"$f":"Import!E3591","v":0},{"$f":"Import!E3610","v":0},{"$f":"Import!E3629","v":0},0,null,null,null,null,null,null,null,null,null,null,null,null,null,null,null,null,null,null,{"$f":"IF(OR(D38<>\"\",E38<>\"\",F38<>\"\",G38<>\"\"),XBRLMapTuple($C$63,$Z$1,$Z$2,\"BMA\",CONFIGURATION!$B$1,\"bscr\",\"\",CONFIGURATION!$B$12,$C$64,C38,$D$64,D38,$E$64,E38,$F$64,F38,$G$64,G38),\"emptyTuple\")","v":"Mapped"}]
[null,9,"Unquoted Investments",{"$f":"Import!E3592","v":0},{"$f":"Import!E3611","v":0},{"$f":"Import!E3630","v":0},0,null,null,null,null,null,null,null,null,null,null,null,null,null,null,null,null,null,null,{"$f":"IF(OR(D39<>\"\",E39<>\"\",F39<>\"\",G39<>\"\"),XBRLMapTuple($C$63,$Z$1,$Z$2,\"BMA\",CONFIGURATION!$B$1,\"bscr\",\"\",CONFIGURATION!$B$12,$C$64,C39,$D$64,D39,$E$64,E39,$F$64,F39,$G$64,G39),\"emptyTuple\")","v":"Mapped"}]
[null,10,"Investments in affiliates",{"$f":"Import!E3593","v":0},{"$f":"Import!E3612","v":0},{"$f":"Import!E3631","v":0},0,null,null,null,null,null,null,null,null,null,null,null,null,null,null,null,null,null,null,{"$f":"IF(OR(D40<>\"\",E40<>\"\",F40<>\"\",G40<>\"\"),XBRLMapTuple($C$63,$Z$1,$Z$2,\"BMA\",CONFIGURATION!$B$1,\"bscr\",\"\",CONFIGURATION!$B$12,$C$64,C40,$D$64,D40,$E$64,E40,$F$64,F40,$G$64,G40),\"emptyTuple\")","v":"Mapped"}]
[null,11,"Real Estate ",{"$f":"Import!E3594","v":0},{"$f":"Import!E3613","v":0},{"$f":"Import!E3632","v":0},0,null,null,null,null,null,null,null,null,null,null,null,null,null,null,null,null,null,null,{"$f":"IF(OR(D41<>\"\",E41<>\"\",F41<>\"\",G41<>\"\"),XBRLMapTuple($C$63,$Z$1,$Z$2,\"BMA\",CONFIGURATION!$B$1,\"bscr\",\"\",CONFIGURATION!$B$12,$C$64,C41,$D$64,D41,$E$64,E41,$F$64,F41,$G$64,G41),\"emptyTuple\")","v":"Mapped"}]
[null,12,"Off Balance Sheet Instruments approved as statutory capital",{"$f":"Import!E3595","v":0},{"$f":"Import!E3614","v":0},{"$f":"Import!E3633","v":0},0,null,null,null,null,null,null,null,null,null,null,null,null,null,null,null,null,null,null,{"$f":"IF(OR(D42<>\"\",E42<>\"\",F42<>\"\",G42<>\"\"),XBRLMapTuple($C$63,$Z$1,$Z$2,\"BMA\",CONFIGURATION!$B$1,\"bscr\",\"\",CONFIGURATION!$B$12,$C$64,C42,$D$64,D42,$E$64,E42,$F$64,F42,$G$64,G42),\"emptyTuple\")","v":"Mapped"}]
[null,13,"Debt Instruments approved as statutory Capital ",{"$f":"Import!E3596","v":0},{"$f":"Import!E3615","v":0},{"$f":"Import!E3634","v":0},0,null,null,null,null,null,null,null,null,null,null,null,null,null,null,null,null,null,null,{"$f":"IF(OR(D43<>\"\",E43<>\"\",F43<>\"\",G43<>\"\"),XBRLMapTuple($C$63,$Z$1,$Z$2,\"BMA\",CONFIGURATION!$B$1,\"bscr\",\"\",CONFIGURATION!$B$12,$C$64,C43,$D$64,D43,$E$64,E43,$F$64,F43,$G$64,G43),\"emptyTuple\")","v":"Mapped"}]
[null,14,"Other Intangible Assets (Specify)",{"$f":"Import!E3597","v":0},{"$f":"Import!E3616","v":0},{"$f":"Import!E3635","v":0},0,null,null,null,null,null,null,null,null,null,null,null,null,null,null,null,null,null,null,{"$f":"IF(OR(D44<>\"\",E44<>\"\",F44<>\"\",G44<>\"\"),XBRLMapTuple($C$63,$Z$1,$Z$2,\"BMA\",CONFIGURATION!$B$1,\"bscr\",\"\",CONFIGURATION!$B$12,$C$64,C44,$D$64,D44,$E$64,E44,$F$64,F44,$G$64,G44),\"emptyTuple\")","v":"Mapped"}]
[null,15,"(Enter other adjustments from Form 1SFS to Form 1EBS)",{"$f":"Import!E3598","v":0},{"$f":"Import!E3617","v":0},{"$f":"Import!E3636","v":0},0,null,null,null,null,null,null,null,null,null,null,null,null,null,null,null,null,null,null,{"$f":"IF(OR(D45<>\"\",E45<>\"\",F45<>\"\",G45<>\"\"),XBRLMapTuple($C$63,$Z$1,$Z$2,\"BMA\",CONFIGURATION!$B$1,\"bscr\",\"\",CONFIGURATION!$B$12,$C$64,C45,$D$64,D45,$E$64,E45,$F$64,F45,$G$64,G45),\"emptyTuple\")","v":"Mapped"}]
[null,16,"(Enter other adjustments from Form 1SFS to Form 1EBS)",{"$f":"Import!E3599","v":0},{"$f":"Import!E3618","v":0},{"$f":"Import!E3637","v":0},0,null,null,null,null,null,null,null,null,null,null,null,null,null,null,null,null,null,null,{"$f":"IF(OR(D46<>\"\",E46<>\"\",F46<>\"\",G46<>\"\"),XBRLMapTuple($C$63,$Z$1,$Z$2,\"BMA\",CONFIGURATION!$B$1,\"bscr\",\"\",CONFIGURATION!$B$12,$C$64,C46,$D$64,D46,$E$64,E46,$F$64,F46,$G$64,G46),\"emptyTuple\")","v":"Mapped"}]
[null,17,"(Enter other adjustments from Form 1SFS to Form 1EBS)",{"$f":"Import!E3600","v":0},{"$f":"Import!E3619","v":0},{"$f":"Import!E3638","v":0},0,null,null,null,null,null,null,null,null,null,null,null,null,null,null,null,null,null,null,{"$f":"IF(OR(D47<>\"\",E47<>\"\",F47<>\"\",G47<>\"\"),XBRLMapTuple($C$63,$Z$1,$Z$2,\"BMA\",CONFIGURATION!$B$1,\"bscr\",\"\",CONFIGURATION!$B$12,$C$64,C47,$D$64,D47,$E$64,E47,$F$64,F47,$G$64,G47),\"emptyTuple\")","v":"Mapped"}]
[null,18,"(Enter other adjustments from Form 1SFS to Form 1EBS)",null,null,null,0,null,null,null,null,null,null,null,null,null,null,null,null,null,null,null,null,null,null,{"$f":"IF(OR(D48<>\"\",E48<>\"\",F48<>\"\",G48<>\"\"),XBRLMapTuple($C$63,$Z$1,$Z$2,\"BMA\",CONFIGURATION!$B$1,\"bscr\",\"\",CONFIGURATION!$B$12,$C$64,C48,$D$64,D48,$E$64,E48,$F$64,F48,$G$64,G48),\"emptyTuple\")","v":"Mapped"}]
[null,19,"(Enter other adjustments from Form 1SFS to Form 1EBS)",null,null,null,0,null,null,null,null,null,null,null,null,null,null,null,null,null,null,null,null,null,null,{"$f":"IF(OR(D49<>\"\",E49<>\"\",F49<>\"\",G49<>\"\"),XBRLMapTuple($C$63,$Z$1,$Z$2,\"BMA\",CONFIGURATION!$B$1,\"bscr\",\"\",CONFIGURATION!$B$12,$C$64,C49,$D$64,D49,$E$64,E49,$F$64,F49,$G$64,G49),\"emptyTuple\")","v":"Mapped"}]
[null,20,"(Enter other adjustments from Form 1SFS to Form 1EBS)",null,null,null,0,null,null,null,null,null,null,null,null,null,null,null,null,null,null,null,null,null,null,{"$f":"IF(OR(D50<>\"\",E50<>\"\",F50<>\"\",G50<>\"\"),XBRLMapTuple($C$63,$Z$1,$Z$2,\"BMA\",CONFIGURATION!$B$1,\"bscr\",\"\",CONFIGURATION!$B$12,$C$64,C50,$D$64,D50,$E$64,E50,$F$64,F50,$G$64,G50),\"emptyTuple\")","v":"Mapped"}]
[null,null,"Form 1 EBS",{"$f":"SUM(D30:D50)","v":0},{"$f":"SUM(E30:E50)","v":0},{"$f":"SUM(F30:F50)","v":0},{"$f":"SUM(G30:G50)","v":0},null,null,null,null,null,null,null,null,null,null,null,null,null,null,null,null,null,null,{"$f":"IF(OR(D51<>\"\",E51<>\"\",F51<>\"\",G51<>\"\"),XBRLMapTuple($C$63,$Z$1,$Z$2,\"BMA\",CONFIGURATION!$B$1,\"bscr\",\"\",CONFIGURATION!$B$12,$C$64,C51,$D$64,D51,$E$64,E51,$F$64,F51,$G$64,G51),\"emptyTuple\")","v":"Mapped"}]
[]
[null,null,null,{"$f":"IF(D54=\"TRUE\",HYPERLINK(\"#'Form 1EBS'!F90\",\"TRUE\"),HYPERLINK(\"#'Form 1EBS'!F90\",\"FALSE\"))","v":"TRUE"},{"$f":"IF(E54=\"TRUE\",HYPERLINK(\"#'Form 1EBS'!F163\",\"TRUE\"),HYPERLINK(\"#'Form 1EBS'!F163\",\"FALSE\"))","v":"TRUE"},null,{"$f":"IF(G54=\"TRUE\",HYPERLINK(\"#'Form 1EBS'!F167\",\"TRUE\"),HYPERLINK(\"#'Form 1EBS'!F167\",\"FALSE\"))","v":"TRUE"}]
[null,null,null,{"$f":"IF(ROUND(('Form 1EBS'!F90-D51),0)=0,\"TRUE\",\"FALSE\")","v":"TRUE"},{"$f":"IF(ROUND(('Form 1EBS'!F163-E51),0)=0,\"TRUE\",\"FALSE\")","v":"TRUE"},null,{"$f":"IF(ROUND(('Form 1EBS'!F167-G51),0)=0,\"TRUE\",\"FALSE\")","v":"TRUE"}]
[null,null,null,{"$f":"ROUND('Form 1EBS'!F90-D51,0)","v":0},{"$f":"ROUND('Form 1EBS'!F163-E51,0)","v":0},null,{"$f":"ROUND('Form 1EBS'!F167-G51,0)","v":0}]
[]
[null,null,null,{"$f":"IF(D53=\"False\",\"Does not equal Form 1EBS Line 15\",\"\")","v":""},{"$f":"IF(E53=\"False\",\"Does not equal Form 1EBS Line 39\",\"\")","v":""},null,{"$f":"IF(G53=\"False\",\"Does not equal Form 1EBS Line 40\",\"\")","v":""}]
[]
[]
[]
[]
[]
[null,null,"brrt_ReconciliationOfGroupFinancialStatement"]
[null,null,"brrt_ReconciliationOfGroupFinancialStatementDescription","brrt_ReconciliationOfGroupFinancialStatementAssets","brrt_ReconciliationOfGroupFinancialStatementLiabilities","brrt_ReconciliationOfGroupFinancialStatementNetIncome","brrt_ReconciliationOfGroupFinancialStatementCapitalAndSurplus"]

{"sheet":"Schedule V(k)","index":44,"n_rows":58,"n_cols":44,"rows_kept":58,"cut":false,"hidden":false,"merged":[]}
[null,null,"Details of Deposit Asset and Liabilities",null,null,null,null,null,null,null,null,{"$f":"HYPERLINK(\"#'Index'!A1\",\"Return to Index\")","v":"Return to Index"}]
[null,null,{"$f":"'Company Information'!C7","v":"Enter Company Name"}]
[null,null,{"$f":"'Form 1EBS'!C3","v":"2019-12-31"},null,{"$f":"Import!E3660","v":0},null,"Enter Number of Rows Required",null,null,null,null,"SCHEDULE V(k)"]
[null,null,{"$f":"IF(CONFIGURATION!$B$12>1,\" ['\"&MID(CONFIGURATION!$B$12,2,LEN(CONFIGURATION!$B$12))&\"s]\",\"\")&'Form 1EBS'!C4","v":" ['000s]United States Dollars"}]
[null,null,null,null,"(A)","(A)","(B)","(C)","(D)","(E)","(F)","(G)"]
[null,null,"Name of Exposure",null,"Lines of Business Written","Assets in Trust","Other Collaterial","GPW for the Period","NPW for the Period","Limits/Maximum Exposure","Limits at \n99.0 TvaR","Unlimited Exposure Details"]
[]
[null,1,{"$f":"Import!E3661","v":0},null,{"$f":"Import!E3686","v":0},{"$f":"Import!E3711","v":0},{"$f":"Import!E3737","v":0},{"$f":"Import!E3763","v":0},{"$f":"Import!E3789","v":0},{"$f":"Import!E3815","v":0},{"$f":"Import!E3841","v":0},{"$f":"Import!E3867","v":0},null,null,null,null,null,null,null,null,null,null,null,null,null,null,null,null,null,"",null,"bma_SecurityUSGovernmentAmountPerForm1ALines2bAnd3b",null,"bma_SecurityUSGovernmentFaceValue",null,"bma_SecurityUSGovernmentFairValue",null,"bma_SecurityUSGovernmentAverageYTM",null,"bma_SecurityUSGovernmentAverageRating",null,"bma_SecurityUSGovernmentEffectiveDuration",null,"bma_SecurityUSGovernmentEffectiveConvexity"]
[null,{"$f":"B8+1","v":2},{"$f":"Import!E3662","v":0},null,{"$f":"Import!E3687","v":0},{"$f":"Import!E3712","v":0},{"$f":"Import!E3738","v":0},{"$f":"Import!E3764","v":0},{"$f":"Import!E3790","v":0},{"$f":"Import!E3816","v":0},{"$f":"Import!E3842","v":0},{"$f":"Import!E3868","v":0},null,null,null,null,null,null,null,null,null,null,null,null,null,null,null,null,null,"",null,"bma_SecurityNonUSGovernmentAmountPerForm1ALines2bAnd3b",null,"bma_SecurityNonUSGovernmentFaceValue",null,"bma_SecurityNonUSGovernmentFairValue",null,"bma_SecurityNonUSGovernmentAverageYTM",null,"bma_SecurityNonUSGovernmentAverageRating",null,"bma_SecurityNonUSGovernmentEffectiveDuration",null,"bma_SecurityNonUSGovernmentEffectiveConvexity"]
[null,{"$f":"B9+1","v":3},{"$f":"Import!E3663","v":0},null,{"$f":"Import!E3688","v":0},{"$f":"Import!E3713","v":0},{"$f":"Import!E3739","v":0},{"$f":"Import!E3765","v":0},{"$f":"Import!E3791","v":0},{"$f":"Import!E3817","v":0},{"$f":"Import!E3843","v":0},{"$f":"Import!E3869","v":0},null,null,null,null,null,null,null,null,null,null,null,null,null,null,null,null,null,"",null,"bma_SecurityUSGovernmentAgencyMortgageBackedSecuritiesAmountPerForm1ALines2bAnd3b",null,"bma_SecurityUSGovernmentAgencyMortgageBackedSecuritiesFaceValue",null,"bma_SecurityUSGovernmentAgencyMortgageBackedSecuritiesFairValue",null,"bma_SecurityUSGovernmentAgencyMortgageBackedSecuritiesAverageYTM",null,"bma_SecurityUSGovernmentAgencyMortgageBackedSecuritiesAverageRating",null,"bma_SecurityUSGovernmentAgencyMortgageBackedSecuritiesEffectiveDuration",null,"bma_SecurityUSGovernmentAgencyMortgageBackedSecuritiesEffectiveConvexity"]
[null,4,{"$f":"Import!E3664","v":0},null,{"$f":"Import!E3689","v":0},{"$f":"Import!E3714","v":0},{"$f":"Import!E3740","v":0},{"$f":"Import!E3766","v":0},{"$f":"Import!E3792","v":0},{"$f":"Import!E3818","v":0},{"$f":"Import!E3844","v":0},{"$f":"Import!E3870","v":0},null,null,null,null,null,null,null,null,null,null,null,null,null,null,null,null,null,"",null,"bma_SecurityUSGovernmentAgencyOtherAmountPerForm1ALines2bAnd3b",null,"bma_SecurityUSGovernmentAgencyOtherFaceValue",null,"bma_SecurityUSGovernmentAgencyOtherFairValue",null,"bma_SecurityUSGovernmentAgencyOtherAverageYTM",null,"bma_SecurityUSGovernmentAgencyOtherAverageRating",null,"bma_SecurityUSGovernmentAgencyOtherEffectiveDuration",null,"bma_SecurityUSGovernmentAgencyOtherEffectiveConvexity"]
[null,5,{"$f":"Import!E3665","v":0},null,{"$f":"Import!E3690","v":0},{"$f":"Import!E3715","v":0},{"$f":"Import!E3741","v":0},{"$f":"Import!E3767","v":0},{"$f":"Import!E3793","v":0},{"$f":"Import!E3819","v":0},{"$f":"Import!E3845","v":0},{"$f":"Import!E3871","v":0},null,null,null,null,null,null,null,null,null,null,null,null,null,null,null,null,null,"",null,"bma_SecurityCorporateSecuritiesAmountPerForm1ALines2bAnd3b",null,"bma_SecurityCorporateSecuritiesFaceValue",null,"bma_SecurityCorporateSecuritiesFairValue",null,"bma_SecurityCorporateSecuritiesAverageYTM",null,"bma_SecurityCorporateSecuritiesAverageRating",null,"bma_SecurityCorporateSecuritiesEffectiveDuration",null,"bma_SecurityCorporateSecuritiesEffectiveConvexity"]
[null,6,{"$f":"Import!E3666","v":0},null,{"$f":"Import!E3691","v":0},{"$f":"Import!E3716","v":0},{"$f":"Import!E3742","v":0},{"$f":"Import!E3768","v":0},{"$f":"Import!E3794","v":0},{"$f":"Import!E3820","v":0},{"$f":"Import!E3846","v":0},{"$f":"Import!E3872","v":0},null,null,null,null,null,null,null,null,null,null,null,null,null,null,null,null,null,"",null,"bma_SecurityAssetBackedSecuritiesAmountPerForm1ALines2bAnd3b",null,"bma_SecurityAssetBackedSecuritiesFaceValue",null,"bma_SecurityAssetBackedSecuritiesFairValue",null,"bma_SecurityAssetBackedSecuritiesAverageYTM",null,"bma_SecurityAssetBackedSecuritiesAverageRating",null,"bma_SecurityAssetBackedSecuritiesEffectiveDuration",null,"bma_SecurityAssetBackedSecuritiesEffectiveConvexity"]
[null,7,{"$f":"Import!E3667","v":0},null,{"$f":"Import!E3692","v":0},{"$f":"Import!E3717","v":0},{"$f":"Import!E3743","v":0},{"$f":"Import!E3769","v":0},{"$f":"Import!E3795","v":0},{"$f":"Import!E3821","v":0},{"$f":"Import!E3847","v":0},{"$f":"Import!E3873","v":0},null,null,null,null,null,null,null,null,null,null,null,null,null,null,null,null,null,"",null,"bma_SecurityMortgageBackedSecuritiesAmountPerForm1ALines2bAnd3b",null,"bma_SecurityMortgageBackedSecuritiesFaceValue",null,"bma_SecurityMortgageBackedSecuritiesFairValue",null,"bma_SecurityMortgageBackedSecuritiesAverageYTM",null,"bma_SecurityMortgageBackedSecuritiesAverageRating",null,"bma_SecurityMortgageBackedSecuritiesEffectiveDuration",null,"bma_SecurityMortgageBackedSecuritiesEffectiveConvexity"]
[null,8,{"$f":"Import!E3668","v":0},null,{"$f":"Import!E3693","v":0},{"$f":"Import!E3718","v":0},{"$f":"Import!E3744","v":0},{"$f":"Import!E3770","v":0},{"$f":"Import!E3796","v":0},{"$f":"Import!E3822","v":0},{"$f":"Import!E3848","v":0},{"$f":"Import!E3874","v":0},null,null,null,null,null,null,null,null,null,null,null,null,null,null,null,null,null,"",null,"bma_SecurityMutualFundsAmountPerForm1ALines2bAnd3b",null,"bma_SecurityMutualFundsFaceValue",null,"bma_SecurityMutualFundsFairValue",null,"bma_SecurityMutualFundsAverageYTM",null,"bma_SecurityMutualFundsAverageRating",null,"bma_SecurityMutualFundsEffectiveDuration",null,"bma_SecurityMutualFundsEffectiveConvexity"]
[null,9,{"$f":"Import!E3669","v":0},null,{"$f":"Import!E3694","v":0},{"$f":"Import!E3719","v":0},{"$f":"Import!E3745","v":0},{"$f":"Import!E3771","v":0},{"$f":"Import!E3797","v":0},{"$f":"Import!E3823","v":0},{"$f":"Import!E3849","v":0},{"$f":"Import!E3875","v":0}]
[null,10,{"$f":"Import!E3670","v":0},null,{"$f":"Import!E3695","v":0},{"$f":"Import!E3720","v":0},{"$f":"Import!E3746","v":0},{"$f":"Import!E3772","v":0},{"$f":"Import!E3798","v":0},{"$f":"Import!E3824","v":0},{"$f":"Import!E3850","v":0},{"$f":"Import!E3876","v":0}]
[null,11,{"$f":"Import!E3671","v":0},null,{"$f":"Import!E3696","v":0},{"$f":"Import!E3721","v":0},{"$f":"Import!E3747","v":0},{"$f":"Import!E3773","v":0},{"$f":"Import!E3799","v":0},{"$f":"Import!E3825","v":0},{"$f":"Import!E3851","v":0},{"$f":"Import!E3877","v":0}]
[null,12,{"$f":"Import!E3672","v":0},null,{"$f":"Import!E3697","v":0},{"$f":"Import!E3722","v":0},{"$f":"Import!E3748","v":0},{"$f":"Import!E3774","v":0},{"$f":"Import!E3800","v":0},{"$f":"Import!E3826","v":0},{"$f":"Import!E3852","v":0},{"$f":"Import!E3878","v":0}]
[null,13,{"$f":"Import!E3673","v":0},null,{"$f":"Import!E3698","v":0},{"$f":"Import!E3723","v":0},{"$f":"Import!E3749","v":0},{"$f":"Import!E3775","v":0},{"$f":"Import!E3801","v":0},{"$f":"Import!E3827","v":0},{"$f":"Import!E3853","v":0},{"$f":"Import!E3879","v":0}]
[null,14,{"$f":"Import!E3674","v":0},null,{"$f":"Import!E3699","v":0},{"$f":"Import!E3724","v":0},{"$f":"Import!E3750","v":0},{"$f":"Import!E3776","v":0},{"$f":"Import!E3802","v":0},{"$f":"Import!E3828","v":0},{"$f":"Import!E3854","v":0},{"$f":"Import!E3880","v":0}]
[null,15,{"$f":"Import!E3675","v":0},null,{"$f":"Import!E3700","v":0},{"$f":"Import!E3725","v":0},{"$f":"Import!E3751","v":0},{"$f":"Import!E3777","v":0},{"$f":"Import!E3803","v":0},{"$f":"Import!E3829","v":0},{"$f":"Import!E3855","v":0},{"$f":"Import!E3881","v":0}]
[null,16,{"$f":"Import!E3676","v":0},null,{"$f":"Import!E3701","v":0},{"$f":"Import!E3726","v":0},{"$f":"Import!E3752","v":0},{"$f":"Import!E3778","v":0},{"$f":"Import!E3804","v":0},{"$f":"Import!E3830","v":0},{"$f":"Import!E3856","v":0},{"$f":"Import!E3882","v":0}]
[null,17,{"$f":"Import!E3677","v":0},null,{"$f":"Import!E3702","v":0},{"$f":"Import!E3727","v":0},{"$f":"Import!E3753","v":0},{"$f":"Import!E3779","v":0},{"$f":"Import!E3805","v":0},{"$f":"Import!E3831","v":0},{"$f":"Import!E3857","v":0},{"$f":"Import!E3883","v":0}]
[null,18,{"$f":"Import!E3678","v":0},null,{"$f":"Import!E3703","v":0},{"$f":"Import!E3728","v":0},{"$f":"Import!E3754","v":0},{"$f":"Import!E3780","v":0},{"$f":"Import!E3806","v":0},{"$f":"Import!E3832","v":0},{"$f":"Import!E3858","v":0},{"$f":"Import!E3884","v":0}]
[null,19,{"$f":"Import!E3679","v":0},null,{"$f":"Import!E3704","v":0},{"$f":"Import!E3729","v":0},{"$f":"Import!E3755","v":0},{"$f":"Import!E3781","v":0},{"$f":"Import!E3807","v":0},{"$f":"Import!E3833","v":0},{"$f":"Import!E3859","v":0},{"$f":"Import!E3885","v":0}]
[null,20,{"$f":"Import!E3680","v":0},null,{"$f":"Import!E3705","v":0},{"$f":"Import!E3730","v":0},{"$f":"Import!E3756","v":0},{"$f":"Import!E3782","v":0},{"$f":"Import!E3808","v":0},{"$f":"Import!E3834","v":0},{"$f":"Import!E3860","v":0},{"$f":"Import!E3886","v":0}]
[null,21,{"$f":"Import!E3681","v":0},null,{"$f":"Import!E3706","v":0},{"$f":"Import!E3731","v":0},{"$f":"Import!E3757","v":0},{"$f":"Import!E3783","v":0},{"$f":"Import!E3809","v":0},{"$f":"Import!E3835","v":0},{"$f":"Import!E3861","v":0},{"$f":"Import!E3887","v":0}]
[null,22,{"$f":"Import!E3682","v":0},null,{"$f":"Import!E3707","v":0},{"$f":"Import!E3732","v":0},{"$f":"Import!E3758","v":0},{"$f":"Import!E3784","v":0},{"$f":"Import!E3810","v":0},{"$f":"Import!E3836","v":0},{"$f":"Import!E3862","v":0},{"$f":"Import!E3888","v":0}]
[null,23,{"$f":"Import!E3683","v":0},null,{"$f":"Import!E3708","v":0},{"$f":"Import!E3733","v":0},{"$f":"Import!E3759","v":0},{"$f":"Import!E3785","v":0},{"$f":"Import!E3811","v":0},{"$f":"Import!E3837","v":0},{"$f":"Import!E3863","v":0},{"$f":"Import!E3889","v":0}]
[null,24,{"$f":"Import!E3684","v":0},null,{"$f":"Import!E3709","v":0},{"$f":"Import!E3734","v":0},{"$f":"Import!E3760","v":0},{"$f":"Import!E3786","v":0},{"$f":"Import!E3812","v":0},{"$f":"Import!E3838","v":0},{"$f":"Import!E3864","v":0},{"$f":"Import!E3890","v":0}]
[null,25,{"$f":"Import!E3685","v":0},null,{"$f":"Import!E3710","v":0},{"$f":"Import!E3735","v":0},{"$f":"Import!E3761","v":0},{"$f":"Import!E3787","v":0},{"$f":"Import!E3813","v":0},{"$f":"Import!E3839","v":0},{"$f":"Import!E3865","v":0},{"$f":"Import!E3891","v":0}]
[null,26]
[null,27]
[null,28]
[null,29]
[null,30]
[null,31]
[null,32]
[null,33]
[null,34]
[null,35]
[null,36]
[null,37]
[null,38]
[null,39]
[null,40]
[null,41]
[null,42]
[null,43]
[null,44]
[null,45]
[null,46]
[null,47]
[null,48]
[null,49]
[null,50,null,null,null,null,null,null,null,null,null,null,null,null,null,null,null,null,null,null,null,null,null,null,null,null,null,null,null,"bma_SecurityOther2Type",null,"bma_SecurityOther2AmountPerForm1ALines2bAnd3b",null,"bma_SecurityOther2FaceValue",null,"bma_SecurityOther2FairValue",null,"bma_SecurityOther2AverageYTM",null,"bma_SecurityOther2AverageRating",null,"bma_SecurityOther2EffectiveDuration",null,"bma_SecurityOther2EffectiveConvexity"]
[null,null,"TOTAL ",null,null,{"$f":"SUM(F8:F57)","v":0},0,0,0,0,0,null,null,null,null,null,null,null,null,null,null,null,null,null,null,null,null,null,null,"",null,"bma_SecurityTotalPortfolioAmountPerForm1ALines2bAnd3b",null,"bma_SecurityTotalPortfolioFaceValue",null,"bma_SecurityTotalPortfolioFairValue",null,"",null,"",null,"",null,""]

{"sheet":"Schedule V(l)","index":45,"n_rows":217,"n_cols":65,"rows_kept":217,"cut":false,"hidden":false,"merged":[[2,58,5,58],[1,3,1,56]]}
[null,null,"SCHEDULE OF SEGREGATED ACCOUNTS - CELL BY CELL DISCLOSURE (UNCONSOLIDATED BASIS)",null,null,null,null,null,null,null,null,null,null,null,null,null,null,null,null,null,null,null,null,null,null,null,null,null,null,null,null,null,null,null,null,null,null,null,null,null,null,null,null,null,null,null,null,null,null,null,null,null,null,null,null,null,null,null,null,null,null,null,null,null,{"$f":"HYPERLINK(\"#'Index'!A1\",\"Return to Index\")","v":"Return to Index"}]
[null,null,{"$f":"'Company Information'!C7","v":"Enter Company Name"},"Ensure that all figures are included  on a statutory basis.  Items that require a balance sheet check should be consistent with the respective Line on Form 1SFS.  Input the value from the financial statements and where  a discrepancy is noted, include a comment explaining the difference.",null,null,null,null,null,null,null,null,null,null,null,null,null,null,null,null,null,null,null,null,null,null,null,null,null,null,null,null,null,null,null,null,null,null,null,null,null,null,null,null,null,null,null,null,null,null,null,null,null,null,null,null,null,null,"SCHEDULE V(l) "]
[null,null,{"$f":"'Company Information'!C3","v":"2019-12-31"},null,{"$f":"Import!E3893","v":0},null,"Enter Number of Columns Required (Note only a maximum of 50 cells)",null,null,null,null,null,null,null,null,null,null,null,null,null,null,null,null,null,null,null,null,null,null,null,null,null,null,null,null,null,null,null,null,null,null,null,null,null,null,null,null,null,null,null,null,null,null,null,null,null,null,null,"Grand Total General Account and Total Cells"]
[null,null,{"$f":"IF(CONFIGURATION!$B$12>1,\" ['\"&MID(CONFIGURATION!$B$12,2,LEN(CONFIGURATION!$B$12))&\"s]\",\"\")&'Form 1EBS'!C4","v":" ['000s]United States Dollars"},null,null,null,null,null,null,null,null,null,null,null,null,null,null,null,null,null,null,null,null,null,null,null,null,null,null,null,null,null,null,null,null,null,null,null,null,null,null,null,null,null,null,null,null,null,null,null,null,null,null,null,null,null,"General",null,null,null,"Balance Sheet"]
[null,null,null,"Cell 1","Cell 2","Cell 3","Cell 4","Cell 5","Cell 6","Cell 7","Cell 8","Cell 9","Cell 10","Cell 11","Cell 12","Cell 13","Cell 14","Cell 15","Cell 16","Cell 17","Cell 18","Cell 19","Cell 20","Cell 21","Cell 22","Cell 23","Cell 24","Cell 25","Cell 26","Cell 27","Cell 28","Cell 29","Cell 30","Cell 31","Cell 32","Cell 33","Cell 34","Cell 35","Cell 36","Cell 37","Cell 38","Cell 39","Cell 40","Cell 41","Cell 42","Cell 43","Cell 44","Cell 45","Cell 46","Cell 47","Cell 48","Cell 49","Cell 50",null,"Total of Cells",null,"Account",null,null,null,"Check",null,"Difference",null,"Comment for Discrepancies Noted"]
[null,"(A)","Cell reference number",{"$f":"Import!E3894","v":0},{"$f":"Import!E3957","v":0},{"$f":"Import!E4020","v":0},{"$f":"Import!E4083","v":0},{"$f":"Import!E4146","v":0},{"$f":"Import!E4209","v":0},{"$f":"Import!E4272","v":0},{"$f":"Import!E4335","v":0},{"$f":"Import!E4398","v":0},{"$f":"Import!E4461","v":0},{"$f":"Import!E4524","v":0},{"$f":"Import!E4587","v":0},{"$f":"Import!E4650","v":0},{"$f":"Import!E4713","v":0},{"$f":"Import!E4776","v":0},{"$f":"Import!E4839","v":0},{"$f":"Import!E4902","v":0},{"$f":"Import!E4965","v":0},{"$f":"Import!E5028","v":0},{"$f":"Import!E5091","v":0},{"$f":"Import!E5154","v":0},{"$f":"Import!E5217","v":0},{"$f":"Import!E5280","v":0},{"$f":"Import!E5343","v":0},{"$f":"Import!E5406","v":0}]
[null,"(B)","Cell name",{"$f":"Import!E3895","v":0},{"$f":"Import!E3958","v":0},{"$f":"Import!E4021","v":0},{"$f":"Import!E4084","v":0},{"$f":"Import!E4147","v":0},{"$f":"Import!E4210","v":0},{"$f":"Import!E4273","v":0},{"$f":"Import!E4336","v":0},{"$f":"Import!E4399","v":0},{"$f":"Import!E4462","v":0},{"$f":"Import!E4525","v":0},{"$f":"Import!E4588","v":0},{"$f":"Import!E4651","v":0},{"$f":"Import!E4714","v":0},{"$f":"Import!E4777","v":0},{"$f":"Import!E4840","v":0},{"$f":"Import!E4903","v":0},{"$f":"Import!E4966","v":0},{"$f":"Import!E5029","v":0},{"$f":"Import!E5092","v":0},{"$f":"Import!E5155","v":0},{"$f":"Import!E5218","v":0},{"$f":"Import!E5281","v":0},{"$f":"Import!E5344","v":0},{"$f":"Import!E5407","v":0}]
[null,"(C)","Direct Insurer, Reinsurer or Both",{"$f":"Import!E3896","v":"Select Premiums Written"},{"$f":"Import!E3959","v":"Select Premiums Written"},{"$f":"Import!E4022","v":"Select Premiums Written"},{"$f":"Import!E4085","v":"Select Premiums Written"},{"$f":"Import!E4148","v":"Select Premiums Written"},{"$f":"Import!E4211","v":"Select Premiums Written"},{"$f":"Import!E4274","v":"Select Premiums Written"},{"$f":"Import!E4337","v":"Select Premiums Written"},{"$f":"Import!E4400","v":"Select Premiums Written"},{"$f":"Import!E4463","v":"Select Premiums Written"},{"$f":"Import!E4526","v":"Select Premiums Written"},{"$f":"Import!E4589","v":"Select Premiums Written"},{"$f":"Import!E4652","v":"Select Premiums Written"},{"$f":"Import!E4715","v":"Select Premiums Written"},{"$f":"Import!E4778","v":"Select Premiums Written"},{"$f":"Import!E4841","v":"Select Premiums Written"},{"$f":"Import!E4904","v":"Select Premiums Written"},{"$f":"Import!E4967","v":"Select Premiums Written"},{"$f":"Import!E5030","v":"Select Premiums Written"},{"$f":"Import!E5093","v":"Select Premiums Written"},{"$f":"Import!E5156","v":"Select Premiums Written"},{"$f":"Import!E5219","v":"Select Premiums Written"},{"$f":"Import!E5282","v":"Select Premiums Written"},{"$f":"Import!E5345","v":"Select Premiums Written"},{"$f":"Import!E5408","v":"Select Premiums Written"},"Select Premiums Written","Select Premiums Written","Select Premiums Written","Select Premiums Written","Select Premiums Written","Select Premiums Written","Select Premiums Written","Select Premiums Written","Select Premiums Written","Select Premiums Written","Select Premiums Written","Select Premiums Written","Select Premiums Written","Select Premiums Written","Select Premiums Written","Select Premiums Written","Select Premiums Written","Select Premiums Written","Select Premiums Written","Select Premiums Written","Select Premiums Written","Select Premiums Written","Select Premiums Written","Select Premiums Written","Select Premiums Written"]
[null,"(D)","Total Statutory Assets",{"$f":"Import!E3897","v":0},{"$f":"Import!E3960","v":0},{"$f":"Import!E4023","v":0},{"$f":"Import!E4086","v":0},{"$f":"Import!E4149","v":0},{"$f":"Import!E4212","v":0},{"$f":"Import!E4275","v":0},{"$f":"Import!E4338","v":0},{"$f":"Import!E4401","v":0},{"$f":"Import!E4464","v":0},{"$f":"Import!E4527","v":0},{"$f":"Import!E4590","v":0},{"$f":"Import!E4653","v":0},{"$f":"Import!E4716","v":0},{"$f":"Import!E4779","v":0},{"$f":"Import!E4842","v":0},{"$f":"Import!E4905","v":0},{"$f":"Import!E4968","v":0},{"$f":"Import!E5031","v":0},{"$f":"Import!E5094","v":0},{"$f":"Import!E5157","v":0},{"$f":"Import!E5220","v":0},{"$f":"Import!E5283","v":0},{"$f":"Import!E5346","v":0},{"$f":"Import!E5409","v":0},null,null,null,null,null,null,null,null,null,null,null,null,null,null,null,null,null,null,null,null,null,null,null,null,null,null,{"$f":"SUM(D9:BA9)","v":0},null,{"$f":"Import!E5469","v":0},null,{"$f":"BC9+BE9","v":0},null,{"$f":"IF(('Form 1SFS'!E100+'Form 1SFS'!I100)=0,'Form 1SFS'!M100,'Form 1SFS'!E100+'Form 1SFS'!I100)","v":0},null,{"$f":"ROUND(BG9-BI9,0)","v":0},null,{"$f":"Import!E5506","v":0}]
[null,"(E)","Total Statutory Liabilities",{"$f":"Import!E3898","v":0},{"$f":"Import!E3961","v":0},{"$f":"Import!E4024","v":0},{"$f":"Import!E4087","v":0},{"$f":"Import!E4150","v":0},{"$f":"Import!E4213","v":0},{"$f":"Import!E4276","v":0},{"$f":"Import!E4339","v":0},{"$f":"Import!E4402","v":0},{"$f":"Import!E4465","v":0},{"$f":"Import!E4528","v":0},{"$f":"Import!E4591","v":0},{"$f":"Import!E4654","v":0},{"$f":"Import!E4717","v":0},{"$f":"Import!E4780","v":0},{"$f":"Import!E4843","v":0},{"$f":"Import!E4906","v":0},{"$f":"Import!E4969","v":0},{"$f":"Import!E5032","v":0},{"$f":"Import!E5095","v":0},{"$f":"Import!E5158","v":0},{"$f":"Import!E5221","v":0},{"$f":"Import!E5284","v":0},{"$f":"Import!E5347","v":0},{"$f":"Import!E5410","v":0},null,null,null,null,null,null,null,null,null,null,null,null,null,null,null,null,null,null,null,null,null,null,null,null,null,null,{"$f":"SUM(D10:BA10)","v":0},null,{"$f":"Import!E5470","v":0},null,{"$f":"BC10+BE10","v":0},null,{"$f":"IF(('Form 1SFS'!E194+'Form 1SFS'!I194)=0,'Form 1SFS'!M194,'Form 1SFS'!E194+'Form 1SFS'!I194)","v":0},null,{"$f":"ROUND(BG10-BI10,0)","v":0},null,{"$f":"Import!E5507","v":0}]
[null,"(F)","Statutory Surplus",{"$f":"Import!E3899","v":0},{"$f":"Import!E3962","v":0},{"$f":"Import!E4025","v":0},{"$f":"Import!E4088","v":0},{"$f":"Import!E4151","v":0},{"$f":"Import!E4214","v":0},{"$f":"Import!E4277","v":0},{"$f":"Import!E4340","v":0},{"$f":"Import!E4403","v":0},{"$f":"Import!E4466","v":0},{"$f":"Import!E4529","v":0},{"$f":"Import!E4592","v":0},{"$f":"Import!E4655","v":0},{"$f":"Import!E4718","v":0},{"$f":"Import!E4781","v":0},{"$f":"Import!E4844","v":0},{"$f":"Import!E4907","v":0},{"$f":"Import!E4970","v":0},{"$f":"Import!E5033","v":0},{"$f":"Import!E5096","v":0},{"$f":"Import!E5159","v":0},{"$f":"Import!E5222","v":0},{"$f":"Import!E5285","v":0},{"$f":"Import!E5348","v":0},{"$f":"Import!E5411","v":0},null,null,null,null,null,null,null,null,null,null,null,null,null,null,null,null,null,null,null,null,null,null,null,null,null,null,0,null,{"$f":"Import!E5471","v":0},null,{"$f":"BC11+BE11","v":0}]
[null,"(G)","Statutory Capital",{"$f":"Import!E3900","v":0},{"$f":"Import!E3963","v":0},{"$f":"Import!E4026","v":0},{"$f":"Import!E4089","v":0},{"$f":"Import!E4152","v":0},{"$f":"Import!E4215","v":0},{"$f":"Import!E4278","v":0},{"$f":"Import!E4341","v":0},{"$f":"Import!E4404","v":0},{"$f":"Import!E4467","v":0},{"$f":"Import!E4530","v":0},{"$f":"Import!E4593","v":0},{"$f":"Import!E4656","v":0},{"$f":"Import!E4719","v":0},{"$f":"Import!E4782","v":0},{"$f":"Import!E4845","v":0},{"$f":"Import!E4908","v":0},{"$f":"Import!E4971","v":0},{"$f":"Import!E5034","v":0},{"$f":"Import!E5097","v":0},{"$f":"Import!E5160","v":0},{"$f":"Import!E5223","v":0},{"$f":"Import!E5286","v":0},{"$f":"Import!E5349","v":0},{"$f":"Import!E5412","v":0},null,null,null,null,null,null,null,null,null,null,null,null,null,null,null,null,null,null,null,null,null,null,null,null,null,null,0,null,{"$f":"Import!E5472","v":0},null,{"$f":"BC12+BE12","v":0}]
[null,null,"Total Statutory Capital and Surplus",{"$f":"D11+D12","v":0},{"$f":"E11+E12","v":0},0,0,0,0,0,0,0,0,0,0,0,0,0,0,0,0,0,0,0,0,0,0,0,0,0,0,0,0,0,0,0,0,0,0,0,0,0,0,0,0,0,0,0,0,0,0,0,0,null,0,null,{"$f":"BE11+BE12","v":0},null,{"$f":"SUM(H13:BE13)","v":0},null,{"$f":"IF(('Form 1SFS'!E198+'Form 1SFS'!I198)=0,'Form 1SFS'!M198,'Form 1SFS'!E198+'Form 1SFS'!I198)","v":0},null,{"$f":"ROUND(BG13-BI13,0)","v":0},null,{"$f":"Import!E5508","v":0}]
[null,"(H)","Net Income",{"$f":"Import!E3901","v":0},{"$f":"Import!E3964","v":0},{"$f":"Import!E4027","v":0},{"$f":"Import!E4090","v":0},{"$f":"Import!E4153","v":0},{"$f":"Import!E4216","v":0},{"$f":"Import!E4279","v":0},{"$f":"Import!E4342","v":0},{"$f":"Import!E4405","v":0},{"$f":"Import!E4468","v":0},{"$f":"Import!E4531","v":0},{"$f":"Import!E4594","v":0},{"$f":"Import!E4657","v":0},{"$f":"Import!E4720","v":0},{"$f":"Import!E4783","v":0},{"$f":"Import!E4846","v":0},{"$f":"Import!E4909","v":0},{"$f":"Import!E4972","v":0},{"$f":"Import!E5035","v":0},{"$f":"Import!E5098","v":0},{"$f":"Import!E5161","v":0},{"$f":"Import!E5224","v":0},{"$f":"Import!E5287","v":0},{"$f":"Import!E5350","v":0},{"$f":"Import!E5413","v":0},null,null,null,null,null,null,null,null,null,null,null,null,null,null,null,null,null,null,null,null,null,null,null,null,null,null,0,null,{"$f":"Import!E5473","v":0},null,{"$f":"BC14+BE14","v":0}]
[null,"(I)","Cash ",{"$f":"Import!E3902","v":0},{"$f":"Import!E3965","v":0},{"$f":"Import!E4028","v":0},{"$f":"Import!E4091","v":0},{"$f":"Import!E4154","v":0},{"$f":"Import!E4217","v":0},{"$f":"Import!E4280","v":0},{"$f":"Import!E4343","v":0},{"$f":"Import!E4406","v":0},{"$f":"Import!E4469","v":0},{"$f":"Import!E4532","v":0},{"$f":"Import!E4595","v":0},{"$f":"Import!E4658","v":0},{"$f":"Import!E4721","v":0},{"$f":"Import!E4784","v":0},{"$f":"Import!E4847","v":0},{"$f":"Import!E4910","v":0},{"$f":"Import!E4973","v":0},{"$f":"Import!E5036","v":0},{"$f":"Import!E5099","v":0},{"$f":"Import!E5162","v":0},{"$f":"Import!E5225","v":0},{"$f":"Import!E5288","v":0},{"$f":"Import!E5351","v":0},{"$f":"Import!E5414","v":0},null,null,null,null,null,null,null,null,null,null,null,null,null,null,null,null,null,null,null,null,null,null,null,null,null,null,0,null,{"$f":"Import!E5474","v":0},null,0]
[null,"(J)","Quoted: Bonds and Debentures",{"$f":"Import!E3903","v":0},{"$f":"Import!E3966","v":0},{"$f":"Import!E4029","v":0},{"$f":"Import!E4092","v":0},{"$f":"Import!E4155","v":0},{"$f":"Import!E4218","v":0},{"$f":"Import!E4281","v":0},{"$f":"Import!E4344","v":0},{"$f":"Import!E4407","v":0},{"$f":"Import!E4470","v":0},{"$f":"Import!E4533","v":0},{"$f":"Import!E4596","v":0},{"$f":"Import!E4659","v":0},{"$f":"Import!E4722","v":0},{"$f":"Import!E4785","v":0},{"$f":"Import!E4848","v":0},{"$f":"Import!E4911","v":0},{"$f":"Import!E4974","v":0},{"$f":"Import!E5037","v":0},{"$f":"Import!E5100","v":0},{"$f":"Import!E5163","v":0},{"$f":"Import!E5226","v":0},{"$f":"Import!E5289","v":0},{"$f":"Import!E5352","v":0},{"$f":"Import!E5415","v":0},null,null,null,null,null,null,null,null,null,null,null,null,null,null,null,null,null,null,null,null,null,null,null,null,null,null,0,null,{"$f":"Import!E5475","v":0},null,0]
[null,"(K)","Quoted: Equites",{"$f":"Import!E3904","v":0},{"$f":"Import!E3967","v":0},{"$f":"Import!E4030","v":0},{"$f":"Import!E4093","v":0},{"$f":"Import!E4156","v":0},{"$f":"Import!E4219","v":0},{"$f":"Import!E4282","v":0},{"$f":"Import!E4345","v":0},{"$f":"Import!E4408","v":0},{"$f":"Import!E4471","v":0},{"$f":"Import!E4534","v":0},{"$f":"Import!E4597","v":0},{"$f":"Import!E4660","v":0},{"$f":"Import!E4723","v":0},{"$f":"Import!E4786","v":0},{"$f":"Import!E4849","v":0},{"$f":"Import!E4912","v":0},{"$f":"Import!E4975","v":0},{"$f":"Import!E5038","v":0},{"$f":"Import!E5101","v":0},{"$f":"Import!E5164","v":0},{"$f":"Import!E5227","v":0},{"$f":"Import!E5290","v":0},{"$f":"Import!E5353","v":0},{"$f":"Import!E5416","v":0},null,null,null,null,null,null,null,null,null,null,null,null,null,null,null,null,null,null,null,null,null,null,null,null,null,null,0,null,{"$f":"Import!E5476","v":0},null,0]
[null,"(L)","Quoted: Other ",{"$f":"Import!E3905","v":0},{"$f":"Import!E3968","v":0},{"$f":"Import!E4031","v":0},{"$f":"Import!E4094","v":0},{"$f":"Import!E4157","v":0},{"$f":"Import!E4220","v":0},{"$f":"Import!E4283","v":0},{"$f":"Import!E4346","v":0},{"$f":"Import!E4409","v":0},{"$f":"Import!E4472","v":0},{"$f":"Import!E4535","v":0},{"$f":"Import!E4598","v":0},{"$f":"Import!E4661","v":0},{"$f":"Import!E4724","v":0},{"$f":"Import!E4787","v":0},{"$f":"Import!E4850","v":0},{"$f":"Import!E4913","v":0},{"$f":"Import!E4976","v":0},{"$f":"Import!E5039","v":0},{"$f":"Import!E5102","v":0},{"$f":"Import!E5165","v":0},{"$f":"Import!E5228","v":0},{"$f":"Import!E5291","v":0},{"$f":"Import!E5354","v":0},{"$f":"Import!E5417","v":0},null,null,null,null,null,null,null,null,null,null,null,null,null,null,null,null,null,null,null,null,null,null,null,null,null,null,0,null,{"$f":"Import!E5477","v":0},null,0]
[null,"(M)","Unquoted: Bonds and Debentures",{"$f":"Import!E3906","v":0},{"$f":"Import!E3969","v":0},{"$f":"Import!E4032","v":0},{"$f":"Import!E4095","v":0},{"$f":"Import!E4158","v":0},{"$f":"Import!E4221","v":0},{"$f":"Import!E4284","v":0},{"$f":"Import!E4347","v":0},{"$f":"Import!E4410","v":0},{"$f":"Import!E4473","v":0},{"$f":"Import!E4536","v":0},{"$f":"Import!E4599","v":0},{"$f":"Import!E4662","v":0},{"$f":"Import!E4725","v":0},{"$f":"Import!E4788","v":0},{"$f":"Import!E4851","v":0},{"$f":"Import!E4914","v":0},{"$f":"Import!E4977","v":0},{"$f":"Import!E5040","v":0},{"$f":"Import!E5103","v":0},{"$f":"Import!E5166","v":0},{"$f":"Import!E5229","v":0},{"$f":"Import!E5292","v":0},{"$f":"Import!E5355","v":0},{"$f":"Import!E5418","v":0},null,null,null,null,null,null,null,null,null,null,null,null,null,null,null,null,null,null,null,null,null,null,null,null,null,null,0,null,{"$f":"Import!E5478","v":0},null,0]
[null,"(N)","Unquoted: Equities",{"$f":"Import!E3907","v":0},{"$f":"Import!E3970","v":0},{"$f":"Import!E4033","v":0},{"$f":"Import!E4096","v":0},{"$f":"Import!E4159","v":0},{"$f":"Import!E4222","v":0},{"$f":"Import!E4285","v":0},{"$f":"Import!E4348","v":0},{"$f":"Import!E4411","v":0},{"$f":"Import!E4474","v":0},{"$f":"Import!E4537","v":0},{"$f":"Import!E4600","v":0},{"$f":"Import!E4663","v":0},{"$f":"Import!E4726","v":0},{"$f":"Import!E4789","v":0},{"$f":"Import!E4852","v":0},{"$f":"Import!E4915","v":0},{"$f":"Import!E4978","v":0},{"$f":"Import!E5041","v":0},{"$f":"Import!E5104","v":0},{"$f":"Import!E5167","v":0},{"$f":"Import!E5230","v":0},{"$f":"Import!E5293","v":0},{"$f":"Import!E5356","v":0},{"$f":"Import!E5419","v":0},null,null,null,null,null,null,null,null,null,null,null,null,null,null,null,null,null,null,null,null,null,null,null,null,null,null,0,null,{"$f":"Import!E5479","v":0},null,0]
[null,"(O)","Unquoted: Other",{"$f":"Import!E3908","v":0},{"$f":"Import!E3971","v":0},{"$f":"Import!E4034","v":0},{"$f":"Import!E4097","v":0},{"$f":"Import!E4160","v":0},{"$f":"Import!E4223","v":0},{"$f":"Import!E4286","v":0},{"$f":"Import!E4349","v":0},{"$f":"Import!E4412","v":0},{"$f":"Import!E4475","v":0},{"$f":"Import!E4538","v":0},{"$f":"Import!E4601","v":0},{"$f":"Import!E4664","v":0},{"$f":"Import!E4727","v":0},{"$f":"Import!E4790","v":0},{"$f":"Import!E4853","v":0},{"$f":"Import!E4916","v":0},{"$f":"Import!E4979","v":0},{"$f":"Import!E5042","v":0},{"$f":"Import!E5105","v":0},{"$f":"Import!E5168","v":0},{"$f":"Import!E5231","v":0},{"$f":"Import!E5294","v":0},{"$f":"Import!E5357","v":0},{"$f":"Import!E5420","v":0},null,null,null,null,null,null,null,null,null,null,null,null,null,null,null,null,null,null,null,null,null,null,null,null,null,null,0,null,{"$f":"Import!E5480","v":0},null,0]
[null,"(P)","Due from Affiliates",{"$f":"Import!E3909","v":0},{"$f":"Import!E3972","v":0},{"$f":"Import!E4035","v":0},{"$f":"Import!E4098","v":0},{"$f":"Import!E4161","v":0},{"$f":"Import!E4224","v":0},{"$f":"Import!E4287","v":0},{"$f":"Import!E4350","v":0},{"$f":"Import!E4413","v":0},{"$f":"Import!E4476","v":0},{"$f":"Import!E4539","v":0},{"$f":"Import!E4602","v":0},{"$f":"Import!E4665","v":0},{"$f":"Import!E4728","v":0},{"$f":"Import!E4791","v":0},{"$f":"Import!E4854","v":0},{"$f":"Import!E4917","v":0},{"$f":"Import!E4980","v":0},{"$f":"Import!E5043","v":0},{"$f":"Import!E5106","v":0},{"$f":"Import!E5169","v":0},{"$f":"Import!E5232","v":0},{"$f":"Import!E5295","v":0},{"$f":"Import!E5358","v":0},{"$f":"Import!E5421","v":0},null,null,null,null,null,null,null,null,null,null,null,null,null,null,null,null,null,null,null,null,null,null,null,null,null,null,0,null,{"$f":"Import!E5481","v":0},null,0]
[null,"(Q)","Due to Affiliates",{"$f":"Import!E3910","v":0},{"$f":"Import!E3973","v":0},{"$f":"Import!E4036","v":0},{"$f":"Import!E4099","v":0},{"$f":"Import!E4162","v":0},{"$f":"Import!E4225","v":0},{"$f":"Import!E4288","v":0},{"$f":"Import!E4351","v":0},{"$f":"Import!E4414","v":0},{"$f":"Import!E4477","v":0},{"$f":"Import!E4540","v":0},{"$f":"Import!E4603","v":0},{"$f":"Import!E4666","v":0},{"$f":"Import!E4729","v":0},{"$f":"Import!E4792","v":0},{"$f":"Import!E4855","v":0},{"$f":"Import!E4918","v":0},{"$f":"Import!E4981","v":0},{"$f":"Import!E5044","v":0},{"$f":"Import!E5107","v":0},{"$f":"Import!E5170","v":0},{"$f":"Import!E5233","v":0},{"$f":"Import!E5296","v":0},{"$f":"Import!E5359","v":0},{"$f":"Import!E5422","v":0},null,null,null,null,null,null,null,null,null,null,null,null,null,null,null,null,null,null,null,null,null,null,null,null,null,null,0,null,{"$f":"Import!E5482","v":0},null,0]
[null,"(R) ","Net Loss & Loss Expense Provisions",{"$f":"Import!E3911","v":0},{"$f":"Import!E3974","v":0},{"$f":"Import!E4037","v":0},{"$f":"Import!E4100","v":0},{"$f":"Import!E4163","v":0},{"$f":"Import!E4226","v":0},{"$f":"Import!E4289","v":0},{"$f":"Import!E4352","v":0},{"$f":"Import!E4415","v":0},{"$f":"Import!E4478","v":0},{"$f":"Import!E4541","v":0},{"$f":"Import!E4604","v":0},{"$f":"Import!E4667","v":0},{"$f":"Import!E4730","v":0},{"$f":"Import!E4793","v":0},{"$f":"Import!E4856","v":0},{"$f":"Import!E4919","v":0},{"$f":"Import!E4982","v":0},{"$f":"Import!E5045","v":0},{"$f":"Import!E5108","v":0},{"$f":"Import!E5171","v":0},{"$f":"Import!E5234","v":0},{"$f":"Import!E5297","v":0},{"$f":"Import!E5360","v":0},{"$f":"Import!E5423","v":0},null,null,null,null,null,null,null,null,null,null,null,null,null,null,null,null,null,null,null,null,null,null,null,null,null,null,0,null,{"$f":"Import!E5483","v":0},null,0]
[null,"(S) ","Prior Year loss reserve development",{"$f":"Import!E3912","v":0},{"$f":"Import!E3975","v":0},{"$f":"Import!E4038","v":0},{"$f":"Import!E4101","v":0},{"$f":"Import!E4164","v":0},{"$f":"Import!E4227","v":0},{"$f":"Import!E4290","v":0},{"$f":"Import!E4353","v":0},{"$f":"Import!E4416","v":0},{"$f":"Import!E4479","v":0},{"$f":"Import!E4542","v":0},{"$f":"Import!E4605","v":0},{"$f":"Import!E4668","v":0},{"$f":"Import!E4731","v":0},{"$f":"Import!E4794","v":0},{"$f":"Import!E4857","v":0},{"$f":"Import!E4920","v":0},{"$f":"Import!E4983","v":0},{"$f":"Import!E5046","v":0},{"$f":"Import!E5109","v":0},{"$f":"Import!E5172","v":0},{"$f":"Import!E5235","v":0},{"$f":"Import!E5298","v":0},{"$f":"Import!E5361","v":0},{"$f":"Import!E5424","v":0},null,null,null,null,null,null,null,null,null,null,null,null,null,null,null,null,null,null,null,null,null,null,null,null,null,null,0,null,{"$f":"Import!E5484","v":0},null,0]
[null,"(T) ","Reinsurance Recoverable Balance",{"$f":"Import!E3913","v":0},{"$f":"Import!E3976","v":0},{"$f":"Import!E4039","v":0},{"$f":"Import!E4102","v":0},{"$f":"Import!E4165","v":0},{"$f":"Import!E4228","v":0},{"$f":"Import!E4291","v":0},{"$f":"Import!E4354","v":0},{"$f":"Import!E4417","v":0},{"$f":"Import!E4480","v":0},{"$f":"Import!E4543","v":0},{"$f":"Import!E4606","v":0},{"$f":"Import!E4669","v":0},{"$f":"Import!E4732","v":0},{"$f":"Import!E4795","v":0},{"$f":"Import!E4858","v":0},{"$f":"Import!E4921","v":0},{"$f":"Import!E4984","v":0},{"$f":"Import!E5047","v":0},{"$f":"Import!E5110","v":0},{"$f":"Import!E5173","v":0},{"$f":"Import!E5236","v":0},{"$f":"Import!E5299","v":0},{"$f":"Import!E5362","v":0},{"$f":"Import!E5425","v":0},null,null,null,null,null,null,null,null,null,null,null,null,null,null,null,null,null,null,null,null,null,null,null,null,null,null,0,null,{"$f":"Import!E5485","v":0},null,0]
[null,"(U) ","Cell is in Run-Off",{"$f":"Import!E3914","v":"Select Yes/No"},{"$f":"Import!E3977","v":"Select Yes/No"},{"$f":"Import!E4040","v":"Select Yes/No"},{"$f":"Import!E4103","v":"Select Yes/No"},{"$f":"Import!E4166","v":"Select Yes/No"},{"$f":"Import!E4229","v":"Select Yes/No"},{"$f":"Import!E4292","v":"Select Yes/No"},{"$f":"Import!E4355","v":"Select Yes/No"},{"$f":"Import!E4418","v":"Select Yes/No"},{"$f":"Import!E4481","v":"Select Yes/No"},{"$f":"Import!E4544","v":"Select Yes/No"},{"$f":"Import!E4607","v":"Select Yes/No"},{"$f":"Import!E4670","v":"Select Yes/No"},{"$f":"Import!E4733","v":"Select Yes/No"},{"$f":"Import!E4796","v":"Select Yes/No"},{"$f":"Import!E4859","v":"Select Yes/No"},{"$f":"Import!E4922","v":"Select Yes/No"},{"$f":"Import!E4985","v":"Select Yes/No"},{"$f":"Import!E5048","v":"Select Yes/No"},{"$f":"Import!E5111","v":"Select Yes/No"},{"$f":"Import!E5174","v":"Select Yes/No"},{"$f":"Import!E5237","v":"Select Yes/No"},{"$f":"Import!E5300","v":"Select Yes/No"},{"$f":"Import!E5363","v":"Select Yes/No"},{"$f":"Import!E5426","v":"Select Yes/No"},"Select Yes/No","Select Yes/No","Select Yes/No","Select Yes/No","Select Yes/No","Select Yes/No","Select Yes/No","Select Yes/No","Select Yes/No","Select Yes/No","Select Yes/No","Select Yes/No","Select Yes/No","Select Yes/No","Select Yes/No","Select Yes/No","Select Yes/No","Select Yes/No","Select Yes/No","Select Yes/No","Select Yes/No","Select Yes/No","Select Yes/No","Select Yes/No","Select Yes/No"]
[null,"(V) ","Currency Used",{"$f":"Import!E3915","v":"Select Currency"},{"$f":"Import!E3978","v":"Select Currency"},{"$f":"Import!E4041","v":"Select Currency"},{"$f":"Import!E4104","v":"Select Currency"},{"$f":"Import!E4167","v":"Select Currency"},{"$f":"Import!E4230","v":"Select Currency"},{"$f":"Import!E4293","v":"Select Currency"},{"$f":"Import!E4356","v":"Select Currency"},{"$f":"Import!E4419","v":"Select Currency"},{"$f":"Import!E4482","v":"Select Currency"},{"$f":"Import!E4545","v":"Select Currency"},{"$f":"Import!E4608","v":"Select Currency"},{"$f":"Import!E4671","v":"Select Currency"},{"$f":"Import!E4734","v":"Select Currency"},{"$f":"Import!E4797","v":"Select Currency"},{"$f":"Import!E4860","v":"Select Currency"},{"$f":"Import!E4923","v":"Select Currency"},{"$f":"Import!E4986","v":"Select Currency"},{"$f":"Import!E5049","v":"Select Currency"},{"$f":"Import!E5112","v":"Select Currency"},{"$f":"Import!E5175","v":"Select Currency"},{"$f":"Import!E5238","v":"Select Currency"},{"$f":"Import!E5301","v":"Select Currency"},{"$f":"Import!E5364","v":"Select Currency"},{"$f":"Import!E5427","v":"Select Currency"},"Select Currency","Select Currency","Select Currency","Select Currency","Select Currency","Select Currency","Select Currency","Select Currency","Select Currency","Select Currency","Select Currency","Select Currency","Select Currency","Select Currency","Select Currency","Select Currency","Select Currency","Select Currency","Select Currency","Select Currency","Select Currency","Select Currency","Select Currency","Select Currency","Select Currency"]
[null,"(W) ","Cell to Cell Activity ",{"$f":"Import!E3916","v":"Confirm Activity"},{"$f":"Import!E3979","v":"Confirm Activity"},{"$f":"Import!E4042","v":"Confirm Activity"},{"$f":"Import!E4105","v":"Confirm Activity"},{"$f":"Import!E4168","v":"Confirm Activity"},{"$f":"Import!E4231","v":"Confirm Activity"},{"$f":"Import!E4294","v":"Confirm Activity"},{"$f":"Import!E4357","v":"Confirm Activity"},{"$f":"Import!E4420","v":"Confirm Activity"},{"$f":"Import!E4483","v":"Confirm Activity"},{"$f":"Import!E4546","v":"Confirm Activity"},{"$f":"Import!E4609","v":"Confirm Activity"},{"$f":"Import!E4672","v":"Confirm Activity"},{"$f":"Import!E4735","v":"Confirm Activity"},{"$f":"Import!E4798","v":"Confirm Activity"},{"$f":"Import!E4861","v":"Confirm Activity"},{"$f":"Import!E4924","v":"Confirm Activity"},{"$f":"Import!E4987","v":"Confirm Activity"},{"$f":"Import!E5050","v":"Confirm Activity"},{"$f":"Import!E5113","v":"Confirm Activity"},{"$f":"Import!E5176","v":"Confirm Activity"},{"$f":"Import!E5239","v":"Confirm Activity"},{"$f":"Import!E5302","v":"Confirm Activity"},{"$f":"Import!E5365","v":"Confirm Activity"},{"$f":"Import!E5428","v":"Confirm Activity"},"Confirm Activity","Confirm Activity","Confirm Activity","Confirm Activity","Confirm Activity","Confirm Activity","Confirm Activity","Confirm Activity","Confirm Activity","Confirm Activity","Confirm Activity","Confirm Activity","Confirm Activity","Confirm Activity","Confirm Activity","Confirm Activity","Confirm Activity","Confirm Activity","Confirm Activity","Confirm Activity","Confirm Activity","Confirm Activity","Confirm Activity","Confirm Activity","Confirm Activity"]
[null,"(W.1) ","Cell to Cell Activity Details",{"$f":"Import!E3917","v":0},{"$f":"Import!E3980","v":0},{"$f":"Import!E4043","v":0},{"$f":"Import!E4106","v":0},{"$f":"Import!E4169","v":0},{"$f":"Import!E4232","v":0},{"$f":"Import!E4295","v":0},{"$f":"Import!E4358","v":0},{"$f":"Import!E4421","v":0},{"$f":"Import!E4484","v":0},{"$f":"Import!E4547","v":0},{"$f":"Import!E4610","v":0},{"$f":"Import!E4673","v":0},{"$f":"Import!E4736","v":0},{"$f":"Import!E4799","v":0},{"$f":"Import!E4862","v":0},{"$f":"Import!E4925","v":0},{"$f":"Import!E4988","v":0},{"$f":"Import!E5051","v":0},{"$f":"Import!E5114","v":0},{"$f":"Import!E5177","v":0},{"$f":"Import!E5240","v":0},{"$f":"Import!E5303","v":0},{"$f":"Import!E5366","v":0},{"$f":"Import!E5429","v":0},{"$f":"Import!AD3917","v":0},{"$f":"Import!AE3917","v":0},{"$f":"Import!AF3917","v":0},{"$f":"Import!AG3917","v":0},{"$f":"Import!AH3917","v":0},{"$f":"Import!AI3917","v":0},{"$f":"Import!AJ3917","v":0},{"$f":"Import!AK3917","v":0},{"$f":"Import!AL3917","v":0},{"$f":"Import!AM3917","v":0},{"$f":"Import!AN3917","v":0},{"$f":"Import!AO3917","v":0},{"$f":"Import!AP3917","v":0},{"$f":"Import!AQ3917","v":0},{"$f":"Import!AR3917","v":0},{"$f":"Import!AS3917","v":0},{"$f":"Import!AT3917","v":0},{"$f":"Import!AU3917","v":0},{"$f":"Import!AV3917","v":0},{"$f":"Import!AW3917","v":0},{"$f":"Import!AX3917","v":0},{"$f":"Import!AY3917","v":0},{"$f":"Import!AZ3917","v":0},{"$f":"Import!BA3917","v":0},{"$f":"Import!BB3917","v":0}]
[null,"(X) ","General Cell to Cell Activity",{"$f":"Import!E3918","v":"Confirm Activity"},{"$f":"Import!E3981","v":"Confirm Activity"},{"$f":"Import!E4044","v":"Confirm Activity"},{"$f":"Import!E4107","v":"Confirm Activity"},{"$f":"Import!E4170","v":"Confirm Activity"},{"$f":"Import!E4233","v":"Confirm Activity"},{"$f":"Import!E4296","v":"Confirm Activity"},{"$f":"Import!E4359","v":"Confirm Activity"},{"$f":"Import!E4422","v":"Confirm Activity"},{"$f":"Import!E4485","v":"Confirm Activity"},{"$f":"Import!E4548","v":"Confirm Activity"},{"$f":"Import!E4611","v":"Confirm Activity"},{"$f":"Import!E4674","v":"Confirm Activity"},{"$f":"Import!E4737","v":"Confirm Activity"},{"$f":"Import!E4800","v":"Confirm Activity"},{"$f":"Import!E4863","v":"Confirm Activity"},{"$f":"Import!E4926","v":"Confirm Activity"},{"$f":"Import!E4989","v":"Confirm Activity"},{"$f":"Import!E5052","v":"Confirm Activity"},{"$f":"Import!E5115","v":"Confirm Activity"},{"$f":"Import!E5178","v":"Confirm Activity"},{"$f":"Import!E5241","v":"Confirm Activity"},{"$f":"Import!E5304","v":"Confirm Activity"},{"$f":"Import!E5367","v":"Confirm Activity"},{"$f":"Import!E5430","v":"Confirm Activity"},"Confirm Activity","Confirm Activity","Confirm Activity","Confirm Activity","Confirm Activity","Confirm Activity","Confirm Activity","Confirm Activity","Confirm Activity","Confirm Activity","Confirm Activity","Confirm Activity","Confirm Activity","Confirm Activity","Confirm Activity","Confirm Activity","Confirm Activity","Confirm Activity","Confirm Activity","Confirm Activity","Confirm Activity","Confirm Activity","Confirm Activity","Confirm Activity","Confirm Activity"]
[null,"(X.1) ","General Cell to Cell Activity Details",{"$f":"Import!E3919","v":0},{"$f":"Import!E3982","v":0},{"$f":"Import!E4045","v":0},{"$f":"Import!E4108","v":0},{"$f":"Import!E4171","v":0},{"$f":"Import!E4234","v":0},{"$f":"Import!E4297","v":0},{"$f":"Import!E4360","v":0},{"$f":"Import!E4423","v":0},{"$f":"Import!E4486","v":0},{"$f":"Import!E4549","v":0},{"$f":"Import!E4612","v":0},{"$f":"Import!E4675","v":0},{"$f":"Import!E4738","v":0},{"$f":"Import!E4801","v":0},{"$f":"Import!E4864","v":0},{"$f":"Import!E4927","v":0},{"$f":"Import!E4990","v":0},{"$f":"Import!E5053","v":0},{"$f":"Import!E5116","v":0},{"$f":"Import!E5179","v":0},{"$f":"Import!E5242","v":0},{"$f":"Import!E5305","v":0},{"$f":"Import!E5368","v":0},{"$f":"Import!E5431","v":0},{"$f":"Import!AD3919","v":0},{"$f":"Import!AE3919","v":0},{"$f":"Import!AF3919","v":0},{"$f":"Import!AG3919","v":0},{"$f":"Import!AH3919","v":0},{"$f":"Import!AI3919","v":0},{"$f":"Import!AJ3919","v":0},{"$f":"Import!AK3919","v":0},{"$f":"Import!AL3919","v":0},{"$f":"Import!AM3919","v":0},{"$f":"Import!AN3919","v":0},{"$f":"Import!AO3919","v":0},{"$f":"Import!AP3919","v":0},{"$f":"Import!AQ3919","v":0},{"$f":"Import!AR3919","v":0},{"$f":"Import!AS3919","v":0},{"$f":"Import!AT3919","v":0},{"$f":"Import!AU3919","v":0},{"$f":"Import!AV3919","v":0},{"$f":"Import!AW3919","v":0},{"$f":"Import!AX3919","v":0},{"$f":"Import!AY3919","v":0},{"$f":"Import!AZ3919","v":0},{"$f":"Import!BA3919","v":0},{"$f":"Import!BB3919","v":0}]
[null,"(Y) ","Where a cell is in deficit, insolvent or subject to litigation, provide or attach details of remediation actions or update on proceedings",{"$f":"Import!E3920","v":0},{"$f":"Import!E3983","v":0},{"$f":"Import!E4046","v":0},{"$f":"Import!E4109","v":0},{"$f":"Import!E4172","v":0},{"$f":"Import!E4235","v":0},{"$f":"Import!E4298","v":0},{"$f":"Import!E4361","v":0},{"$f":"Import!E4424","v":0},{"$f":"Import!E4487","v":0},{"$f":"Import!E4550","v":0},{"$f":"Import!E4613","v":0},{"$f":"Import!E4676","v":0},{"$f":"Import!E4739","v":0},{"$f":"Import!E4802","v":0},{"$f":"Import!E4865","v":0},{"$f":"Import!E4928","v":0},{"$f":"Import!E4991","v":0},{"$f":"Import!E5054","v":0},{"$f":"Import!E5117","v":0},{"$f":"Import!E5180","v":0},{"$f":"Import!E5243","v":0},{"$f":"Import!E5306","v":0},{"$f":"Import!E5369","v":0},{"$f":"Import!E5432","v":0}]
[null,"(Z) ","Additional Capital Support",{"$f":"Import!E3921","v":"Confirm"},{"$f":"Import!E3984","v":"Confirm"},{"$f":"Import!E4047","v":"Confirm"},{"$f":"Import!E4110","v":"Confirm"},{"$f":"Import!E4173","v":"Confirm"},{"$f":"Import!E4236","v":"Confirm"},{"$f":"Import!E4299","v":"Confirm"},{"$f":"Import!E4362","v":"Confirm"},{"$f":"Import!E4425","v":"Confirm"},{"$f":"Import!E4488","v":"Confirm"},{"$f":"Import!E4551","v":"Confirm"},{"$f":"Import!E4614","v":"Confirm"},{"$f":"Import!E4677","v":"Confirm"},{"$f":"Import!E4740","v":"Confirm"},{"$f":"Import!E4803","v":"Confirm"},{"$f":"Import!E4866","v":"Confirm"},{"$f":"Import!E4929","v":"Confirm"},{"$f":"Import!E4992","v":"Confirm"},{"$f":"Import!E5055","v":"Confirm"},{"$f":"Import!E5118","v":"Confirm"},{"$f":"Import!E5181","v":"Confirm"},{"$f":"Import!E5244","v":"Confirm"},{"$f":"Import!E5307","v":"Confirm"},{"$f":"Import!E5370","v":"Confirm"},{"$f":"Import!E5433","v":"Confirm"},"Confirm","Confirm","Confirm","Confirm","Confirm","Confirm","Confirm","Confirm","Confirm","Confirm","Confirm","Confirm","Confirm","Confirm","Confirm","Confirm","Confirm","Confirm","Confirm","Confirm","Confirm","Confirm","Confirm","Confirm","Confirm"]
[null,"(Z.1) ","Additional Capital Support Details",{"$f":"Import!E3922","v":0},{"$f":"Import!E3985","v":0},{"$f":"Import!E4048","v":0},{"$f":"Import!E4111","v":0},{"$f":"Import!E4174","v":0},{"$f":"Import!E4237","v":0},{"$f":"Import!E4300","v":0},{"$f":"Import!E4363","v":0},{"$f":"Import!E4426","v":0},{"$f":"Import!E4489","v":0},{"$f":"Import!E4552","v":0},{"$f":"Import!E4615","v":0},{"$f":"Import!E4678","v":0},{"$f":"Import!E4741","v":0},{"$f":"Import!E4804","v":0},{"$f":"Import!E4867","v":0},{"$f":"Import!E4930","v":0},{"$f":"Import!E4993","v":0},{"$f":"Import!E5056","v":0},{"$f":"Import!E5119","v":0},{"$f":"Import!E5182","v":0},{"$f":"Import!E5245","v":0},{"$f":"Import!E5308","v":0},{"$f":"Import!E5371","v":0},{"$f":"Import!E5434","v":0}]
[null,"(AA) ","Details of Beneficial Owners and their relationship to the underlying risk",{"$f":"Import!E3923","v":"Confirm"},{"$f":"Import!E3986","v":"Confirm"},{"$f":"Import!E4049","v":"Confirm"},{"$f":"Import!E4112","v":"Confirm"},{"$f":"Import!E4175","v":"Confirm"},{"$f":"Import!E4238","v":"Confirm"},{"$f":"Import!E4301","v":"Confirm"},{"$f":"Import!E4364","v":"Confirm"},{"$f":"Import!E4427","v":"Confirm"},{"$f":"Import!E4490","v":"Confirm"},{"$f":"Import!E4553","v":"Confirm"},{"$f":"Import!E4616","v":"Confirm"},{"$f":"Import!E4679","v":"Confirm"},{"$f":"Import!E4742","v":"Confirm"},{"$f":"Import!E4805","v":"Confirm"},{"$f":"Import!E4868","v":"Confirm"},{"$f":"Import!E4931","v":"Confirm"},{"$f":"Import!E4994","v":"Confirm"},{"$f":"Import!E5057","v":"Confirm"},{"$f":"Import!E5120","v":"Confirm"},{"$f":"Import!E5183","v":"Confirm"},{"$f":"Import!E5246","v":"Confirm"},{"$f":"Import!E5309","v":"Confirm"},{"$f":"Import!E5372","v":"Confirm"},{"$f":"Import!E5435","v":"Confirm"},"Confirm","Confirm","Confirm","Confirm","Confirm","Confirm","Confirm","Confirm","Confirm","Confirm","Confirm","Confirm","Confirm","Confirm","Confirm","Confirm","Confirm","Confirm","Confirm","Confirm","Confirm","Confirm","Confirm","Confirm","Confirm"]
[null,"(AB) ","Beneficial Owner(s) Relationship to the Segregated Account Company Ownership",{"$f":"Import!E3924","v":"Confirm"},{"$f":"Import!E3987","v":"Confirm"},{"$f":"Import!E4050","v":"Confirm"},{"$f":"Import!E4113","v":"Confirm"},{"$f":"Import!E4176","v":"Confirm"},{"$f":"Import!E4239","v":"Confirm"},{"$f":"Import!E4302","v":"Confirm"},{"$f":"Import!E4365","v":"Confirm"},{"$f":"Import!E4428","v":"Confirm"},{"$f":"Import!E4491","v":"Confirm"},{"$f":"Import!E4554","v":"Confirm"},{"$f":"Import!E4617","v":"Confirm"},{"$f":"Import!E4680","v":"Confirm"},{"$f":"Import!E4743","v":"Confirm"},{"$f":"Import!E4806","v":"Confirm"},{"$f":"Import!E4869","v":"Confirm"},{"$f":"Import!E4932","v":"Confirm"},{"$f":"Import!E4995","v":"Confirm"},{"$f":"Import!E5058","v":"Confirm"},{"$f":"Import!E5121","v":"Confirm"},{"$f":"Import!E5184","v":"Confirm"},{"$f":"Import!E5247","v":"Confirm"},{"$f":"Import!E5310","v":"Confirm"},{"$f":"Import!E5373","v":"Confirm"},{"$f":"Import!E5436","v":"Confirm"},"Confirm","Confirm","Confirm","Confirm","Confirm","Confirm","Confirm","Confirm","Confirm","Confirm","Confirm","Confirm","Confirm","Confirm","Confirm","Confirm","Confirm","Confirm","Confirm","Confirm","Confirm","Confirm","Confirm","Confirm","Confirm"]
[null,"(AC) ","Beneficial Owner(s)","Confirm Beneficial Owner",{"$f":"Import!E3988","v":"Confirm"},{"$f":"Import!E4051","v":"Confirm"},{"$f":"Import!E4114","v":"Confirm"},{"$f":"Import!E4177","v":"Confirm"},{"$f":"Import!E4240","v":"Confirm"},{"$f":"Import!E4303","v":"Confirm"},{"$f":"Import!E4366","v":"Confirm"},{"$f":"Import!E4429","v":"Confirm"},{"$f":"Import!E4492","v":"Confirm"},{"$f":"Import!E4555","v":"Confirm"},{"$f":"Import!E4618","v":"Confirm"},{"$f":"Import!E4681","v":"Confirm"},{"$f":"Import!E4744","v":"Confirm"},{"$f":"Import!E4807","v":"Confirm"},{"$f":"Import!E4870","v":"Confirm"},{"$f":"Import!E4933","v":"Confirm"},{"$f":"Import!E4996","v":"Confirm"},{"$f":"Import!E5059","v":"Confirm"},{"$f":"Import!E5122","v":"Confirm"},{"$f":"Import!E5185","v":"Confirm"},{"$f":"Import!E5248","v":"Confirm"},{"$f":"Import!E5311","v":"Confirm"},{"$f":"Import!E5374","v":"Confirm"},{"$f":"Import!E5437","v":"Confirm"},"Confirm Beneficial Owner","Confirm Beneficial Owner","Confirm Beneficial Owner","Confirm Beneficial Owner","Confirm Beneficial Owner","Confirm Beneficial Owner","Confirm Beneficial Owner","Confirm Beneficial Owner","Confirm Beneficial Owner","Confirm Beneficial Owner","Confirm Beneficial Owner","Confirm Beneficial Owner","Confirm Beneficial Owner","Confirm Beneficial Owner","Confirm Beneficial Owner","Confirm Beneficial Owner","Confirm Beneficial Owner","Confirm Beneficial Owner","Confirm Beneficial Owner","Confirm Beneficial Owner","Confirm Beneficial Owner","Confirm Beneficial Owner","Confirm Beneficial Owner","Confirm Beneficial Owner","Confirm Beneficial Owner"]
[null,"(AD) ","Beneficial Ownership",{"$f":"Import!E3926","v":"Confirm"},{"$f":"Import!E3989","v":"Confirm"},{"$f":"Import!E4052","v":"Confirm"},{"$f":"Import!E4115","v":"Confirm"},{"$f":"Import!E4178","v":"Confirm"},{"$f":"Import!E4241","v":"Confirm"},{"$f":"Import!E4304","v":"Confirm"},{"$f":"Import!E4367","v":"Confirm"},{"$f":"Import!E4430","v":"Confirm"},{"$f":"Import!E4493","v":"Confirm"},{"$f":"Import!E4556","v":"Confirm"},{"$f":"Import!E4619","v":"Confirm"},{"$f":"Import!E4682","v":"Confirm"},{"$f":"Import!E4745","v":"Confirm"},{"$f":"Import!E4808","v":"Confirm"},{"$f":"Import!E4871","v":"Confirm"},{"$f":"Import!E4934","v":"Confirm"},{"$f":"Import!E4997","v":"Confirm"},{"$f":"Import!E5060","v":"Confirm"},{"$f":"Import!E5123","v":"Confirm"},{"$f":"Import!E5186","v":"Confirm"},{"$f":"Import!E5249","v":"Confirm"},{"$f":"Import!E5312","v":"Confirm"},{"$f":"Import!E5375","v":"Confirm"},{"$f":"Import!E5438","v":"Confirm"},"Confirm","Confirm","Confirm","Confirm","Confirm","Confirm","Confirm","Confirm","Confirm","Confirm","Confirm","Confirm","Confirm","Confirm","Confirm","Confirm","Confirm","Confirm","Confirm","Confirm","Confirm","Confirm","Confirm","Confirm","Confirm"]
[null,"(AD.1) ","Beneficial Ownership Details (if other is chosen)",{"$f":"Import!E3927","v":0},{"$f":"Import!E3990","v":0},{"$f":"Import!E4053","v":0},{"$f":"Import!E4116","v":0},{"$f":"Import!E4179","v":0},{"$f":"Import!E4242","v":0},{"$f":"Import!E4305","v":0},{"$f":"Import!E4368","v":0},{"$f":"Import!E4431","v":0},{"$f":"Import!E4494","v":0},{"$f":"Import!E4557","v":0},{"$f":"Import!E4620","v":0},{"$f":"Import!E4683","v":0},{"$f":"Import!E4746","v":0},{"$f":"Import!E4809","v":0},{"$f":"Import!E4872","v":0},{"$f":"Import!E4935","v":0},{"$f":"Import!E4998","v":0},{"$f":"Import!E5061","v":0},{"$f":"Import!E5124","v":0},{"$f":"Import!E5187","v":0},{"$f":"Import!E5250","v":0},{"$f":"Import!E5313","v":0},{"$f":"Import!E5376","v":0},{"$f":"Import!E5439","v":0}]
[null,"(AE) ","Details of the principal jurisdiction of the underlying risk","Confirm Jurisdiction",{"$f":"Import!E3991","v":"Confirm Jurisdiction"},{"$f":"Import!E4054","v":"Confirm Jurisdiction"},{"$f":"Import!E4117","v":"Confirm Jurisdiction"},{"$f":"Import!E4180","v":"Confirm Jurisdiction"},{"$f":"Import!E4243","v":"Confirm Jurisdiction"},{"$f":"Import!E4306","v":"Confirm Jurisdiction"},{"$f":"Import!E4369","v":"Confirm Jurisdiction"},{"$f":"Import!E4432","v":"Confirm Jurisdiction"},{"$f":"Import!E4495","v":"Confirm Jurisdiction"},{"$f":"Import!E4558","v":"Confirm Jurisdiction"},{"$f":"Import!E4621","v":"Confirm Jurisdiction"},{"$f":"Import!E4684","v":"Confirm Jurisdiction"},{"$f":"Import!E4747","v":"Confirm Jurisdiction"},{"$f":"Import!E4810","v":"Confirm Jurisdiction"},{"$f":"Import!E4873","v":"Confirm Jurisdiction"},{"$f":"Import!E4936","v":"Confirm Jurisdiction"},{"$f":"Import!E4999","v":"Confirm Jurisdiction"},{"$f":"Import!E5062","v":"Confirm Jurisdiction"},{"$f":"Import!E5125","v":"Confirm Jurisdiction"},{"$f":"Import!E5188","v":"Confirm Jurisdiction"},{"$f":"Import!E5251","v":"Confirm Jurisdiction"},{"$f":"Import!E5314","v":"Confirm Jurisdiction"},{"$f":"Import!E5377","v":"Confirm Jurisdiction"},{"$f":"Import!E5440","v":"Confirm Jurisdiction"},"Confirm Jurisdiction","Confirm Jurisdiction","Confirm Jurisdiction","Confirm Jurisdiction","Confirm Jurisdiction","Confirm Jurisdiction","Confirm Jurisdiction","Confirm Jurisdiction","Confirm Jurisdiction","Confirm Jurisdiction","Confirm Jurisdiction","Confirm Jurisdiction","Confirm Jurisdiction","Confirm Jurisdiction","Confirm Jurisdiction","Confirm Jurisdiction","Confirm Jurisdiction","Confirm Jurisdiction","Confirm Jurisdiction","Confirm Jurisdiction","Confirm Jurisdiction","Confirm Jurisdiction","Confirm Jurisdiction","Confirm Jurisdiction","Confirm Jurisdiction"]
[null,"(AF) ","Beneficial Owner Governing Instrument",{"$f":"Import!E3929","v":"Confirm Instrument"},{"$f":"Import!E3992","v":"Confirm Instrument"},{"$f":"Import!E4055","v":"Confirm Instrument"},{"$f":"Import!E4118","v":"Confirm Instrument"},{"$f":"Import!E4181","v":"Confirm Instrument"},{"$f":"Import!E4244","v":"Confirm Instrument"},{"$f":"Import!E4307","v":"Confirm Instrument"},{"$f":"Import!E4370","v":"Confirm Instrument"},{"$f":"Import!E4433","v":"Confirm Instrument"},{"$f":"Import!E4496","v":"Confirm Instrument"},{"$f":"Import!E4559","v":"Confirm Instrument"},{"$f":"Import!E4622","v":"Confirm Instrument"},{"$f":"Import!E4685","v":"Confirm Instrument"},{"$f":"Import!E4748","v":"Confirm Instrument"},{"$f":"Import!E4811","v":"Confirm Instrument"},{"$f":"Import!E4874","v":"Confirm Instrument"},{"$f":"Import!E4937","v":"Confirm Instrument"},{"$f":"Import!E5000","v":"Confirm Instrument"},{"$f":"Import!E5063","v":"Confirm Instrument"},{"$f":"Import!E5126","v":"Confirm Instrument"},{"$f":"Import!E5189","v":"Confirm Instrument"},{"$f":"Import!E5252","v":"Confirm Instrument"},{"$f":"Import!E5315","v":"Confirm Instrument"},{"$f":"Import!E5378","v":"Confirm Instrument"},{"$f":"Import!E5441","v":"Confirm Instrument"},"Confirm Instrument","Confirm Instrument","Confirm Instrument","Confirm Instrument","Confirm Instrument","Confirm Instrument","Confirm Instrument","Confirm Instrument","Confirm Instrument","Confirm Instrument","Confirm Instrument","Confirm Instrument","Confirm Instrument","Confirm Instrument","Confirm Instrument","Confirm Instrument","Confirm Instrument","Confirm Instrument","Confirm Instrument","Confirm Instrument","Confirm Instrument","Confirm Instrument","Confirm Instrument","Confirm Instrument","Confirm Instrument"]
[null,"(AF.1) ","Beneficial Owner Governing Instrument (if other is chosen)",{"$f":"Import!E3930","v":0},{"$f":"Import!E3993","v":0},{"$f":"Import!E4056","v":0},{"$f":"Import!E4119","v":0},{"$f":"Import!E4182","v":0},{"$f":"Import!E4245","v":0},{"$f":"Import!E4308","v":0},{"$f":"Import!E4371","v":0},{"$f":"Import!E4434","v":0},{"$f":"Import!E4497","v":0},{"$f":"Import!E4560","v":0},{"$f":"Import!E4623","v":0},{"$f":"Import!E4686","v":0},{"$f":"Import!E4749","v":0},{"$f":"Import!E4812","v":0},{"$f":"Import!E4875","v":0},{"$f":"Import!E4938","v":0},{"$f":"Import!E5001","v":0},{"$f":"Import!E5064","v":0},{"$f":"Import!E5127","v":0},{"$f":"Import!E5190","v":0},{"$f":"Import!E5253","v":0},{"$f":"Import!E5316","v":0},{"$f":"Import!E5379","v":0},{"$f":"Import!E5442","v":0}]
[null,"(AG) ","Does Beneficial Owner Governing Instrument Contain Indemnity Provisions",{"$f":"Import!E3931","v":"Select Yes/No"},{"$f":"Import!E3994","v":"Select Yes/No"},{"$f":"Import!E4057","v":"Select Yes/No"},{"$f":"Import!E4120","v":"Select Yes/No"},{"$f":"Import!E4183","v":"Select Yes/No"},{"$f":"Import!E4246","v":"Select Yes/No"},{"$f":"Import!E4309","v":"Select Yes/No"},{"$f":"Import!E4372","v":"Select Yes/No"},{"$f":"Import!E4435","v":"Select Yes/No"},{"$f":"Import!E4498","v":"Select Yes/No"},{"$f":"Import!E4561","v":"Select Yes/No"},{"$f":"Import!E4624","v":"Select Yes/No"},{"$f":"Import!E4687","v":"Select Yes/No"},{"$f":"Import!E4750","v":"Select Yes/No"},{"$f":"Import!E4813","v":"Select Yes/No"},{"$f":"Import!E4876","v":"Select Yes/No"},{"$f":"Import!E4939","v":"Select Yes/No"},{"$f":"Import!E5002","v":"Select Yes/No"},{"$f":"Import!E5065","v":"Select Yes/No"},{"$f":"Import!E5128","v":"Select Yes/No"},{"$f":"Import!E5191","v":"Select Yes/No"},{"$f":"Import!E5254","v":"Select Yes/No"},{"$f":"Import!E5317","v":"Select Yes/No"},{"$f":"Import!E5380","v":"Select Yes/No"},{"$f":"Import!E5443","v":"Select Yes/No"},"Select Yes/No","Select Yes/No","Select Yes/No","Select Yes/No","Select Yes/No","Select Yes/No","Select Yes/No","Select Yes/No","Select Yes/No","Select Yes/No","Select Yes/No","Select Yes/No","Select Yes/No","Select Yes/No","Select Yes/No","Select Yes/No","Select Yes/No","Select Yes/No","Select Yes/No","Select Yes/No","Select Yes/No","Select Yes/No","Select Yes/No","Select Yes/No","Select Yes/No"]
[null,"(AH) ","Does Insurance/Reinsurance Agreement Contain Limited Recourse Language",{"$f":"Import!E3932","v":"Select Yes/No"},{"$f":"Import!E3995","v":"Select Yes/No"},{"$f":"Import!E4058","v":"Select Yes/No"},{"$f":"Import!E4121","v":"Select Yes/No"},{"$f":"Import!E4184","v":"Select Yes/No"},{"$f":"Import!E4247","v":"Select Yes/No"},{"$f":"Import!E4310","v":"Select Yes/No"},{"$f":"Import!E4373","v":"Select Yes/No"},{"$f":"Import!E4436","v":"Select Yes/No"},{"$f":"Import!E4499","v":"Select Yes/No"},{"$f":"Import!E4562","v":"Select Yes/No"},{"$f":"Import!E4625","v":"Select Yes/No"},{"$f":"Import!E4688","v":"Select Yes/No"},{"$f":"Import!E4751","v":"Select Yes/No"},{"$f":"Import!E4814","v":"Select Yes/No"},{"$f":"Import!E4877","v":"Select Yes/No"},{"$f":"Import!E4940","v":"Select Yes/No"},{"$f":"Import!E5003","v":"Select Yes/No"},{"$f":"Import!E5066","v":"Select Yes/No"},{"$f":"Import!E5129","v":"Select Yes/No"},{"$f":"Import!E5192","v":"Select Yes/No"},{"$f":"Import!E5255","v":"Select Yes/No"},{"$f":"Import!E5318","v":"Select Yes/No"},{"$f":"Import!E5381","v":"Select Yes/No"},{"$f":"Import!E5444","v":"Select Yes/No"},"Select Yes/No","Select Yes/No","Select Yes/No","Select Yes/No","Select Yes/No","Select Yes/No","Select Yes/No","Select Yes/No","Select Yes/No","Select Yes/No","Select Yes/No","Select Yes/No","Select Yes/No","Select Yes/No","Select Yes/No","Select Yes/No","Select Yes/No","Select Yes/No","Select Yes/No","Select Yes/No","Select Yes/No","Select Yes/No","Select Yes/No","Select Yes/No","Select Yes/No"]
[null,"(AI) ","Primary Cell Funding",{"$f":"Import!E3933","v":"Select Funding"},{"$f":"Import!E3996","v":"Select Funding"},{"$f":"Import!E4059","v":"Select Funding"},{"$f":"Import!E4122","v":"Select Funding"},{"$f":"Import!E4185","v":"Select Funding"},{"$f":"Import!E4248","v":"Select Funding"},{"$f":"Import!E4311","v":"Select Funding"},{"$f":"Import!E4374","v":"Select Funding"},{"$f":"Import!E4437","v":"Select Funding"},{"$f":"Import!E4500","v":"Select Funding"},{"$f":"Import!E4563","v":"Select Funding"},{"$f":"Import!E4626","v":"Select Funding"},{"$f":"Import!E4689","v":"Select Funding"},{"$f":"Import!E4752","v":"Select Funding"},{"$f":"Import!E4815","v":"Select Funding"},{"$f":"Import!E4878","v":"Select Funding"},{"$f":"Import!E4941","v":"Select Funding"},{"$f":"Import!E5004","v":"Select Funding"},{"$f":"Import!E5067","v":"Select Funding"},{"$f":"Import!E5130","v":"Select Funding"},{"$f":"Import!E5193","v":"Select Funding"},{"$f":"Import!E5256","v":"Select Funding"},{"$f":"Import!E5319","v":"Select Funding"},{"$f":"Import!E5382","v":"Select Funding"},{"$f":"Import!E5445","v":"Select Funding"},"Select Funding","Select Funding","Select Funding","Select Funding","Select Funding","Select Funding","Select Funding","Select Funding","Select Funding","Select Funding","Select Funding","Select Funding","Select Funding","Select Funding","Select Funding","Select Funding","Select Funding","Select Funding","Select Funding","Select Funding","Select Funding","Select Funding","Select Funding","Select Funding","Select Funding"]
[null,"(AJ) ","Limit of Cell  Funding/ Collateral",{"$f":"Import!E3934","v":"Confirm Funding / Collateral"},{"$f":"Import!E3997","v":"Confirm Funding / Collateral"},{"$f":"Import!E4060","v":"Confirm Funding / Collateral"},{"$f":"Import!E4123","v":"Confirm Funding / Collateral"},{"$f":"Import!E4186","v":"Confirm Funding / Collateral"},{"$f":"Import!E4249","v":"Confirm Funding / Collateral"},{"$f":"Import!E4312","v":"Confirm Funding / Collateral"},{"$f":"Import!E4375","v":"Confirm Funding / Collateral"},{"$f":"Import!E4438","v":"Confirm Funding / Collateral"},{"$f":"Import!E4501","v":"Confirm Funding / Collateral"},{"$f":"Import!E4564","v":"Confirm Funding / Collateral"},{"$f":"Import!E4627","v":"Confirm Funding / Collateral"},{"$f":"Import!E4690","v":"Confirm Funding / Collateral"},{"$f":"Import!E4753","v":"Confirm Funding / Collateral"},{"$f":"Import!E4816","v":"Confirm Funding / Collateral"},{"$f":"Import!E4879","v":"Confirm Funding / Collateral"},{"$f":"Import!E4942","v":"Confirm Funding / Collateral"},{"$f":"Import!E5005","v":"Confirm Funding / Collateral"},{"$f":"Import!E5068","v":"Confirm Funding / Collateral"},{"$f":"Import!E5131","v":"Confirm Funding / Collateral"},{"$f":"Import!E5194","v":"Confirm Funding / Collateral"},{"$f":"Import!E5257","v":"Confirm Funding / Collateral"},{"$f":"Import!E5320","v":"Confirm Funding / Collateral"},{"$f":"Import!E5383","v":"Confirm Funding / Collateral"},{"$f":"Import!E5446","v":"Confirm Funding / Collateral"},"Confirm Funding / Collateral","Confirm Funding / Collateral","Confirm Funding / Collateral","Confirm Funding / Collateral","Confirm Funding / Collateral","Confirm Funding / Collateral","Confirm Funding / Collateral","Confirm Funding / Collateral","Confirm Funding / Collateral","Confirm Funding / Collateral","Confirm Funding / Collateral","Confirm Funding / Collateral","Confirm Funding / Collateral","Confirm Funding / Collateral","Confirm Funding / Collateral","Confirm Funding / Collateral","Confirm Funding / Collateral","Confirm Funding / Collateral","Confirm Funding / Collateral","Confirm Funding / Collateral","Confirm Funding / Collateral","Confirm Funding / Collateral","Confirm Funding / Collateral","Confirm Funding / Collateral","Confirm Funding / Collateral"]
[null,"(AJ.1) ","Limit of Cell  Funding/ Collateral Details",{"$f":"Import!E3935","v":0},{"$f":"Import!E3998","v":0},{"$f":"Import!E4061","v":0},{"$f":"Import!E4124","v":0},{"$f":"Import!E4187","v":0},{"$f":"Import!E4250","v":0},{"$f":"Import!E4313","v":0},{"$f":"Import!E4376","v":0},{"$f":"Import!E4439","v":0},{"$f":"Import!E4502","v":0},{"$f":"Import!E4565","v":0},{"$f":"Import!E4628","v":0},{"$f":"Import!E4691","v":0},{"$f":"Import!E4754","v":0},{"$f":"Import!E4817","v":0},{"$f":"Import!E4880","v":0},{"$f":"Import!E4943","v":0},{"$f":"Import!E5006","v":0},{"$f":"Import!E5069","v":0},{"$f":"Import!E5132","v":0},{"$f":"Import!E5195","v":0},{"$f":"Import!E5258","v":0},{"$f":"Import!E5321","v":0},{"$f":"Import!E5384","v":0},{"$f":"Import!E5447","v":0},{"$f":"Import!AD3935","v":0},{"$f":"Import!AE3935","v":0},{"$f":"Import!AF3935","v":0},{"$f":"Import!AG3935","v":0},{"$f":"Import!AH3935","v":0},{"$f":"Import!AI3935","v":0},{"$f":"Import!AJ3935","v":0},{"$f":"Import!AK3935","v":0},{"$f":"Import!AL3935","v":0},{"$f":"Import!AM3935","v":0},{"$f":"Import!AN3935","v":0},{"$f":"Import!AO3935","v":0},{"$f":"Import!AP3935","v":0},{"$f":"Import!AQ3935","v":0},{"$f":"Import!AR3935","v":0},{"$f":"Import!AS3935","v":0},{"$f":"Import!AT3935","v":0},{"$f":"Import!AU3935","v":0},{"$f":"Import!AV3935","v":0},{"$f":"Import!AW3935","v":0},{"$f":"Import!AX3935","v":0},{"$f":"Import!AY3935","v":0},{"$f":"Import!AZ3935","v":0},{"$f":"Import!BA3935","v":0},{"$f":"Import!BB3935","v":0}]
[null,"(AK) ","What mitigants are in place with respect to Operational Risk",{"$f":"Import!E3936","v":"Confirm Mitigants & Attach Support"},{"$f":"Import!E3999","v":"Confirm Mitigants & Attach Support"},{"$f":"Import!E4062","v":"Confirm Mitigants & Attach Support"},{"$f":"Import!E4125","v":"Confirm Mitigants & Attach Support"},{"$f":"Import!E4188","v":"Confirm Mitigants & Attach Support"},{"$f":"Import!E4251","v":"Confirm Mitigants & Attach Support"},{"$f":"Import!E4314","v":"Confirm Mitigants & Attach Support"},{"$f":"Import!E4377","v":"Confirm Mitigants & Attach Support"},{"$f":"Import!E4440","v":"Confirm Mitigants & Attach Support"},{"$f":"Import!E4503","v":"Confirm Mitigants & Attach Support"},{"$f":"Import!E4566","v":"Confirm Mitigants & Attach Support"},{"$f":"Import!E4629","v":"Confirm Mitigants & Attach Support"},{"$f":"Import!E4692","v":"Confirm Mitigants & Attach Support"},{"$f":"Import!E4755","v":"Confirm Mitigants & Attach Support"},{"$f":"Import!E4818","v":"Confirm Mitigants & Attach Support"},{"$f":"Import!E4881","v":"Confirm Mitigants & Attach Support"},{"$f":"Import!E4944","v":"Confirm Mitigants & Attach Support"},{"$f":"Import!E5007","v":"Confirm Mitigants & Attach Support"},{"$f":"Import!E5070","v":"Confirm Mitigants & Attach Support"},{"$f":"Import!E5133","v":"Confirm Mitigants & Attach Support"},{"$f":"Import!E5196","v":"Confirm Mitigants & Attach Support"},{"$f":"Import!E5259","v":"Confirm Mitigants & Attach Support"},{"$f":"Import!E5322","v":"Confirm Mitigants & Attach Support"},{"$f":"Import!E5385","v":"Confirm Mitigants & Attach Support"},{"$f":"Import!E5448","v":"Confirm Mitigants & Attach Support"},"Confirm Mitigants & Attach Support","Confirm Mitigants & Attach Support","Confirm Mitigants & Attach Support","Confirm Mitigants & Attach Support","Confirm Mitigants & Attach Support","Confirm Mitigants & Attach Support","Confirm Mitigants & Attach Support","Confirm Mitigants & Attach Support","Confirm Mitigants & Attach Support","Confirm Mitigants & Attach Support","Confirm Mitigants & Attach Support","Confirm Mitigants & Attach Support","Confirm Mitigants & Attach Support","Confirm Mitigants & Attach Support","Confirm Mitigants & Attach Support","Confirm Mitigants & Attach Support","Confirm Mitigants & Attach Support","Confirm Mitigants & Attach Support","Confirm Mitigants & Attach Support","Confirm Mitigants & Attach Support","Confirm Mitigants & Attach Support","Confirm Mitigants & Attach Support","Confirm Mitigants & Attach Support","Confirm Mitigants & Attach Support","Confirm Mitigants & Attach Support"]
[]
[null,null,"Balance Sheet Check",{"$f":"IF((ROUND(D9-D10-D11-D12,2))=0,\"Yes\",\"No\")","v":"Yes"},"Yes","Yes","Yes","Yes","Yes","Yes","Yes","Yes","Yes","Yes","Yes","Yes","Yes","Yes","Yes","Yes","Yes","Yes","Yes","Yes","Yes","Yes","Yes","Yes","Yes","Yes","Yes","Yes","Yes","Yes","Yes",{"$f":"IF((ROUND(AJ9-AJ10-AJ11-AJ12,2))=0,\"Yes\",\"No\")","v":"Yes"},"Yes","Yes","Yes","Yes","Yes","Yes","Yes","Yes","Yes","Yes","Yes","Yes","Yes","Yes","Yes","Yes","Yes"]
[null,null,"Difference",{"$f":"ROUND(D9-D10-D11-D12,2)","v":0},{"$f":"ROUND(E9-E10-E11-E12,2)","v":0},0,0,0,0,0,0,0,0,0,0,0,0,0,0,0,0,0,0,0,0,0,0,0,0,0,0,0,0,0,0,{"$f":"ROUND(AJ9-AJ10-AJ11-AJ12,2)","v":0},0,0,0,0,0,0,0,0,0,0,0,0,0,0,0,0,0]
[]
[null,"(AL) ","Lines of Business Written by Premium Written"]
[null,"(i)","Statutory Lines of Business Written ",{"$f":"Import!E3937","v":"Select Line of Business"},{"$f":"Import!E4000","v":"Select Line of Business"},{"$f":"Import!E4063","v":"Select Line of Business"},{"$f":"Import!E4126","v":"Select Line of Business"},{"$f":"Import!E4189","v":"Select Line of Business"},{"$f":"Import!E4252","v":"Select Line of Business"},{"$f":"Import!E4315","v":"Select Line of Business"},{"$f":"Import!E4378","v":"Select Line of Business"},{"$f":"Import!E4441","v":"Select Line of Business"},{"$f":"Import!E4504","v":"Select Line of Business"},{"$f":"Import!E4567","v":"Select Line of Business"},{"$f":"Import!E4630","v":"Select Line of Business"},{"$f":"Import!E4693","v":"Select Line of Business"},{"$f":"Import!E4756","v":"Select Line of Business"},{"$f":"Import!E4819","v":"Select Line of Business"},{"$f":"Import!E4882","v":"Select Line of Business"},{"$f":"Import!E4945","v":"Select Line of Business"},{"$f":"Import!E5008","v":"Select Line of Business"},{"$f":"Import!E5071","v":"Select Line of Business"},{"$f":"Import!E5134","v":"Select Line of Business"},{"$f":"Import!E5197","v":"Select Line of Business"},{"$f":"Import!E5260","v":"Select Line of Business"},{"$f":"Import!E5323","v":"Select Line of Business"},{"$f":"Import!E5386","v":"Select Line of Business"},{"$f":"Import!E5449","v":"Select Line of Business"},"Select Line of Business","Select Line of Business","Select Line of Business","Select Line of Business","Select Line of Business","Select Line of Business","Select Line of Business","Select Line of Business","Select Line of Business","Select Line of Business","Select Line of Business","Select Line of Business","Select Line of Business","Select Line of Business","Select Line of Business","Select Line of Business","Select Line of Business","Select Line of Business","Select Line of Business","Select Line of Business","Select Line of Business","Select Line of Business","Select Line of Business","Select Line of Business","Select Line of Business",null,null,null,{"$f":"Import!E5486","v":"Select Line of Business"}]
[null,null,"Gross Premiums Written",{"$f":"Import!E3938","v":0},{"$f":"Import!E4001","v":0},{"$f":"Import!E4064","v":0},{"$f":"Import!E4127","v":0},{"$f":"Import!E4190","v":0},{"$f":"Import!E4253","v":0},{"$f":"Import!E4316","v":0},{"$f":"Import!E4379","v":0},{"$f":"Import!E4442","v":0},{"$f":"Import!E4505","v":0},{"$f":"Import!E4568","v":0},{"$f":"Import!E4631","v":0},{"$f":"Import!E4694","v":0},{"$f":"Import!E4757","v":0},{"$f":"Import!E4820","v":0},{"$f":"Import!E4883","v":0},{"$f":"Import!E4946","v":0},{"$f":"Import!E5009","v":0},{"$f":"Import!E5072","v":0},{"$f":"Import!E5135","v":0},{"$f":"Import!E5198","v":0},{"$f":"Import!E5261","v":0},{"$f":"Import!E5324","v":0},{"$f":"Import!E5387","v":0},{"$f":"Import!E5450","v":0},null,null,null,null,null,null,null,null,null,null,null,null,null,null,null,null,null,null,null,null,null,null,null,null,null,null,null,null,{"$f":"Import!E5487","v":0}]
[null,null,"Reinsurance Ceded",{"$f":"Import!E3939","v":0},{"$f":"Import!E4002","v":0},{"$f":"Import!E4065","v":0},{"$f":"Import!E4128","v":0},{"$f":"Import!E4191","v":0},{"$f":"Import!E4254","v":0},{"$f":"Import!E4317","v":0},{"$f":"Import!E4380","v":0},{"$f":"Import!E4443","v":0},{"$f":"Import!E4506","v":0},{"$f":"Import!E4569","v":0},{"$f":"Import!E4632","v":0},{"$f":"Import!E4695","v":0},{"$f":"Import!E4758","v":0},{"$f":"Import!E4821","v":0},{"$f":"Import!E4884","v":0},{"$f":"Import!E4947","v":0},{"$f":"Import!E5010","v":0},{"$f":"Import!E5073","v":0},{"$f":"Import!E5136","v":0},{"$f":"Import!E5199","v":0},{"$f":"Import!E5262","v":0},{"$f":"Import!E5325","v":0},{"$f":"Import!E5388","v":0},{"$f":"Import!E5451","v":0},null,null,null,null,null,null,null,null,null,null,null,null,null,null,null,null,null,null,null,null,null,null,null,null,null,null,null,null,{"$f":"Import!E5488","v":0}]
[null,null,"Net Premiums Written",{"$f":"D56-D57","v":0},{"$f":"E56-E57","v":0},0,0,0,0,0,0,0,0,0,0,0,0,0,0,0,0,0,0,0,0,0,0,0,0,0,0,0,0,0,0,0,0,0,0,0,0,0,0,0,0,0,0,0,0,0,0,0,0,null,null,null,{"$f":"BE56-BE57","v":0}]
[null,"(ii)","Statutory Lines of Business Written ",{"$f":"Import!E3941","v":"Select Line of Business"},{"$f":"Import!E4004","v":"Select Line of Business"},{"$f":"Import!E4067","v":"Select Line of Business"},{"$f":"Import!E4130","v":"Select Line of Business"},{"$f":"Import!E4193","v":"Select Line of Business"},{"$f":"Import!E4256","v":"Select Line of Business"},{"$f":"Import!E4319","v":"Select Line of Business"},{"$f":"Import!E4382","v":"Select Line of Business"},{"$f":"Import!E4445","v":"Select Line of Business"},{"$f":"Import!E4508","v":"Select Line of Business"},{"$f":"Import!E4571","v":"Select Line of Business"},{"$f":"Import!E4634","v":"Select Line of Business"},{"$f":"Import!E4697","v":"Select Line of Business"},{"$f":"Import!E4760","v":"Select Line of Business"},{"$f":"Import!E4823","v":"Select Line of Business"},{"$f":"Import!E4886","v":"Select Line of Business"},{"$f":"Import!E4949","v":"Select Line of Business"},{"$f":"Import!E5012","v":"Select Line of Business"},{"$f":"Import!E5075","v":"Select Line of Business"},{"$f":"Import!E5138","v":"Select Line of Business"},{"$f":"Import!E5201","v":"Select Line of Business"},{"$f":"Import!E5264","v":"Select Line of Business"},{"$f":"Import!E5327","v":"Select Line of Business"},{"$f":"Import!E5390","v":"Select Line of Business"},{"$f":"Import!E5453","v":"Select Line of Business"},"Select Line of Business","Select Line of Business","Select Line of Business","Select Line of Business","Select Line of Business","Select Line of Business","Select Line of Business","Select Line of Business","Select Line of Business","Select Line of Business","Select Line of Business","Select Line of Business","Select Line of Business","Select Line of Business","Select Line of Business","Select Line of Business","Select Line of Business","Select Line of Business","Select Line of Business","Select Line of Business","Select Line of Business","Select Line of Business","Select Line of Business","Select Line of Business","Select Line of Business",null,null,null,{"$f":"Import!E5490","v":"Select Line of Business"}]
[null,null,"Gross Premiums Written",{"$f":"Import!E3942","v":0},{"$f":"Import!E4005","v":0},{"$f":"Import!E4068","v":0},{"$f":"Import!E4131","v":0},{"$f":"Import!E4194","v":0},{"$f":"Import!E4257","v":0},{"$f":"Import!E4320","v":0},{"$f":"Import!E4383","v":0},{"$f":"Import!E4446","v":0},{"$f":"Import!E4509","v":0},{"$f":"Import!E4572","v":0},{"$f":"Import!E4635","v":0},{"$f":"Import!E4698","v":0},{"$f":"Import!E4761","v":0},{"$f":"Import!E4824","v":0},{"$f":"Import!E4887","v":0},{"$f":"Import!E4950","v":0},{"$f":"Import!E5013","v":0},{"$f":"Import!E5076","v":0},{"$f":"Import!E5139","v":0},{"$f":"Import!E5202","v":0},{"$f":"Import!E5265","v":0},{"$f":"Import!E5328","v":0},{"$f":"Import!E5391","v":0},{"$f":"Import!E5454","v":0},null,null,null,null,null,null,null,null,null,null,null,null,null,null,null,null,null,null,null,null,null,null,null,null,null,null,null,null,{"$f":"Import!E5491","v":0}]
[null,null,"Reinsurance Ceded",{"$f":"Import!E3943","v":0},{"$f":"Import!E4006","v":0},{"$f":"Import!E4069","v":0},{"$f":"Import!E4132","v":0},{"$f":"Import!E4195","v":0},{"$f":"Import!E4258","v":0},{"$f":"Import!E4321","v":0},{"$f":"Import!E4384","v":0},{"$f":"Import!E4447","v":0},{"$f":"Import!E4510","v":0},{"$f":"Import!E4573","v":0},{"$f":"Import!E4636","v":0},{"$f":"Import!E4699","v":0},{"$f":"Import!E4762","v":0},{"$f":"Import!E4825","v":0},{"$f":"Import!E4888","v":0},{"$f":"Import!E4951","v":0},{"$f":"Import!E5014","v":0},{"$f":"Import!E5077","v":0},{"$f":"Import!E5140","v":0},{"$f":"Import!E5203","v":0},{"$f":"Import!E5266","v":0},{"$f":"Import!E5329","v":0},{"$f":"Import!E5392","v":0},{"$f":"Import!E5455","v":0},null,null,null,null,null,null,null,null,null,null,null,null,null,null,null,null,null,null,null,null,null,null,null,null,null,null,null,null,{"$f":"Import!E5492","v":0}]
[null,null,"Net Premiums Written",{"$f":"D60-D61","v":0},{"$f":"E60-E61","v":0},{"$f":"F60-F61","v":0},{"$f":"G60-G61","v":0},{"$f":"H60-H61","v":0},{"$f":"I60-I61","v":0},{"$f":"J60-J61","v":0},{"$f":"K60-K61","v":0},{"$f":"L60-L61","v":0},{"$f":"M60-M61","v":0},{"$f":"N60-N61","v":0},{"$f":"O60-O61","v":0},{"$f":"P60-P61","v":0},{"$f":"Q60-Q61","v":0},{"$f":"R60-R61","v":0},{"$f":"S60-S61","v":0},{"$f":"T60-T61","v":0},{"$f":"U60-U61","v":0},{"$f":"V60-V61","v":0},{"$f":"W60-W61","v":0},{"$f":"X60-X61","v":0},{"$f":"Y60-Y61","v":0},{"$f":"Z60-Z61","v":0},{"$f":"AA60-AA61","v":0},{"$f":"AB60-AB61","v":0},{"$f":"AC60-AC61","v":0},{"$f":"AD60-AD61","v":0},{"$f":"AE60-AE61","v":0},{"$f":"AF60-AF61","v":0},{"$f":"AG60-AG61","v":0},{"$f":"AH60-AH61","v":0},{"$f":"AI60-AI61","v":0},{"$f":"AJ60-AJ61","v":0},{"$f":"AK60-AK61","v":0},{"$f":"AL60-AL61","v":0},{"$f":"AM60-AM61","v":0},{"$f":"AN60-AN61","v":0},{"$f":"AO60-AO61","v":0},{"$f":"AP60-AP61","v":0},{"$f":"AQ60-AQ61","v":0},{"$f":"AR60-AR61","v":0},{"$f":"AS60-AS61","v":0},{"$f":"AT60-AT61","v":0},{"$f":"AU60-AU61","v":0},{"$f":"AV60-AV61","v":0},{"$f":"AW60-AW61","v":0},{"$f":"AX60-AX61","v":0},{"$f":"AY60-AY61","v":0},{"$f":"AZ60-AZ61","v":0},{"$f":"BA60-BA61","v":0},null,null,null,{"$f":"BE60-BE61","v":0}]
[null,"(iii)","Statutory Lines of Business Written ",{"$f":"Import!E3945","v":"Select Line of Business"},{"$f":"Import!E4008","v":"Select Line of Business"},{"$f":"Import!E4071","v":"Select Line of Business"},{"$f":"Import!E4134","v":"Select Line of Business"},{"$f":"Import!E4197","v":"Select Line of Business"},{"$f":"Import!E4260","v":"Select Line of Business"},{"$f":"Import!E4323","v":"Select Line of Business"},{"$f":"Import!E4386","v":"Select Line of Business"},{"$f":"Import!E4449","v":"Select Line of Business"},{"$f":"Import!E4512","v":"Select Line of Business"},{"$f":"Import!E4575","v":"Select Line of Business"},{"$f":"Import!E4638","v":"Select Line of Business"},{"$f":"Import!E4701","v":"Select Line of Business"},{"$f":"Import!E4764","v":"Select Line of Business"},{"$f":"Import!E4827","v":"Select Line of Business"},{"$f":"Import!E4890","v":"Select Line of Business"},{"$f":"Import!E4953","v":"Select Line of Business"},{"$f":"Import!E5016","v":"Select Line of Business"},{"$f":"Import!E5079","v":"Select Line of Business"},{"$f":"Import!E5142","v":"Select Line of Business"},{"$f":"Import!E5205","v":"Select Line of Business"},{"$f":"Import!E5268","v":"Select Line of Business"},{"$f":"Import!E5331","v":"Select Line of Business"},{"$f":"Import!E5394","v":"Select Line of Business"},{"$f":"Import!E5457","v":"Select Line of Business"},"Select Line of Business","Select Line of Business","Select Line of Business","Select Line of Business","Select Line of Business","Select Line of Business","Select Line of Business","Select Line of Business","Select Line of Business","Select Line of Business","Select Line of Business","Select Line of Business","Select Line of Business","Select Line of Business","Select Line of Business","Select Line of Business","Select Line of Business","Select Line of Business","Select Line of Business","Select Line of Business","Select Line of Business","Select Line of Business","Select Line of Business","Select Line of Business","Select Line of Business",null,null,null,{"$f":"Import!E5494","v":"Select Line of Business"}]
[null,null,"Gross Premiums Written",{"$f":"Import!E3946","v":0},{"$f":"Import!E4009","v":0},{"$f":"Import!E4072","v":0},{"$f":"Import!E4135","v":0},{"$f":"Import!E4198","v":0},{"$f":"Import!E4261","v":0},{"$f":"Import!E4324","v":0},{"$f":"Import!E4387","v":0},{"$f":"Import!E4450","v":0},{"$f":"Import!E4513","v":0},{"$f":"Import!E4576","v":0},{"$f":"Import!E4639","v":0},{"$f":"Import!E4702","v":0},{"$f":"Import!E4765","v":0},{"$f":"Import!E4828","v":0},{"$f":"Import!E4891","v":0},{"$f":"Import!E4954","v":0},{"$f":"Import!E5017","v":0},{"$f":"Import!E5080","v":0},{"$f":"Import!E5143","v":0},{"$f":"Import!E5206","v":0},{"$f":"Import!E5269","v":0},{"$f":"Import!E5332","v":0},{"$f":"Import!E5395","v":0},{"$f":"Import!E5458","v":0},null,null,null,null,null,null,null,null,null,null,null,null,null,null,null,null,null,null,null,null,null,null,null,null,null,null,null,null,{"$f":"Import!E5495","v":0}]
[null,null,"Reinsurance Ceded",{"$f":"Import!E3947","v":0},{"$f":"Import!E4010","v":0},{"$f":"Import!E4073","v":0},{"$f":"Import!E4136","v":0},{"$f":"Import!E4199","v":0},{"$f":"Import!E4262","v":0},{"$f":"Import!E4325","v":0},{"$f":"Import!E4388","v":0},{"$f":"Import!E4451","v":0},{"$f":"Import!E4514","v":0},{"$f":"Import!E4577","v":0},{"$f":"Import!E4640","v":0},{"$f":"Import!E4703","v":0},{"$f":"Import!E4766","v":0},{"$f":"Import!E4829","v":0},{"$f":"Import!E4892","v":0},{"$f":"Import!E4955","v":0},{"$f":"Import!E5018","v":0},{"$f":"Import!E5081","v":0},{"$f":"Import!E5144","v":0},{"$f":"Import!E5207","v":0},{"$f":"Import!E5270","v":0},{"$f":"Import!E5333","v":0},{"$f":"Import!E5396","v":0},{"$f":"Import!E5459","v":0},null,null,null,null,null,null,null,null,null,null,null,null,null,null,null,null,null,null,null,null,null,null,null,null,null,null,null,null,{"$f":"Import!E5496","v":0}]
[null,null,"Net Premiums Written",{"$f":"D64-D65","v":0},{"$f":"E64-E65","v":0},{"$f":"F64-F65","v":0},{"$f":"G64-G65","v":0},{"$f":"H64-H65","v":0},{"$f":"I64-I65","v":0},{"$f":"J64-J65","v":0},{"$f":"K64-K65","v":0},{"$f":"L64-L65","v":0},{"$f":"M64-M65","v":0},{"$f":"N64-N65","v":0},{"$f":"O64-O65","v":0},{"$f":"P64-P65","v":0},{"$f":"Q64-Q65","v":0},{"$f":"R64-R65","v":0},{"$f":"S64-S65","v":0},{"$f":"T64-T65","v":0},{"$f":"U64-U65","v":0},{"$f":"V64-V65","v":0},{"$f":"W64-W65","v":0},{"$f":"X64-X65","v":0},{"$f":"Y64-Y65","v":0},{"$f":"Z64-Z65","v":0},{"$f":"AA64-AA65","v":0},{"$f":"AB64-AB65","v":0},{"$f":"AC64-AC65","v":0},{"$f":"AD64-AD65","v":0},{"$f":"AE64-AE65","v":0},{"$f":"AF64-AF65","v":0},{"$f":"AG64-AG65","v":0},{"$f":"AH64-AH65","v":0},{"$f":"AI64-AI65","v":0},{"$f":"AJ64-AJ65","v":0},{"$f":"AK64-AK65","v":0},{"$f":"AL64-AL65","v":0},{"$f":"AM64-AM65","v":0},{"$f":"AN64-AN65","v":0},{"$f":"AO64-AO65","v":0},{"$f":"AP64-AP65","v":0},{"$f":"AQ64-AQ65","v":0},{"$f":"AR64-AR65","v":0},{"$f":"AS64-AS65","v":0},{"$f":"AT64-AT65","v":0},{"$f":"AU64-AU65","v":0},{"$f":"AV64-AV65","v":0},{"$f":"AW64-AW65","v":0},{"$f":"AX64-AX65","v":0},{"$f":"AY64-AY65","v":0},{"$f":"AZ64-AZ65","v":0},{"$f":"BA64-BA65","v":0},null,null,null,{"$f":"BE64-BE65","v":0}]
[null,"(iv)","Statutory Lines of Business Written ",{"$f":"Import!E3949","v":"Select Line of Business"},{"$f":"Import!E4012","v":"Select Line of Business"},{"$f":"Import!E4075","v":"Select Line of Business"},{"$f":"Import!E4138","v":"Select Line of Business"},{"$f":"Import!E4201","v":"Select Line of Business"},{"$f":"Import!E4264","v":"Select Line of Business"},{"$f":"Import!E4327","v":"Select Line of Business"},{"$f":"Import!E4390","v":"Select Line of Business"},{"$f":"Import!E4453","v":"Select Line of Business"},{"$f":"Import!E4516","v":"Select Line of Business"},{"$f":"Import!E4579","v":"Select Line of Business"},{"$f":"Import!E4642","v":"Select Line of Business"},{"$f":"Import!E4705","v":"Select Line of Business"},{"$f":"Import!E4768","v":"Select Line of Business"},{"$f":"Import!E4831","v":"Select Line of Business"},{"$f":"Import!E4894","v":"Select Line of Business"},{"$f":"Import!E4957","v":"Select Line of Business"},{"$f":"Import!E5020","v":"Select Line of Business"},{"$f":"Import!E5083","v":"Select Line of Business"},{"$f":"Import!E5146","v":"Select Line of Business"},{"$f":"Import!E5209","v":"Select Line of Business"},{"$f":"Import!E5272","v":"Select Line of Business"},{"$f":"Import!E5335","v":"Select Line of Business"},{"$f":"Import!E5398","v":"Select Line of Business"},{"$f":"Import!E5461","v":"Select Line of Business"},"Select Line of Business","Select Line of Business","Select Line of Business","Select Line of Business","Select Line of Business","Select Line of Business","Select Line of Business","Select Line of Business","Select Line of Business","Select Line of Business","Select Line of Business","Select Line of Business","Select Line of Business","Select Line of Business","Select Line of Business","Select Line of Business","Select Line of Business","Select Line of Business","Select Line of Business","Select Line of Business","Select Line of Business","Select Line of Business","Select Line of Business","Select Line of Business","Select Line of Business",null,null,null,{"$f":"Import!E5498","v":"Select Line of Business"}]
[null,null,"Gross Premiums Written",{"$f":"Import!E3950","v":0},{"$f":"Import!E4013","v":0},{"$f":"Import!E4076","v":0},{"$f":"Import!E4139","v":0},{"$f":"Import!E4202","v":0},{"$f":"Import!E4265","v":0},{"$f":"Import!E4328","v":0},{"$f":"Import!E4391","v":0},{"$f":"Import!E4454","v":0},{"$f":"Import!E4517","v":0},{"$f":"Import!E4580","v":0},{"$f":"Import!E4643","v":0},{"$f":"Import!E4706","v":0},{"$f":"Import!E4769","v":0},{"$f":"Import!E4832","v":0},{"$f":"Import!E4895","v":0},{"$f":"Import!E4958","v":0},{"$f":"Import!E5021","v":0},{"$f":"Import!E5084","v":0},{"$f":"Import!E5147","v":0},{"$f":"Import!E5210","v":0},{"$f":"Import!E5273","v":0},{"$f":"Import!E5336","v":0},{"$f":"Import!E5399","v":0},{"$f":"Import!E5462","v":0},null,null,null,null,null,null,null,null,null,null,null,null,null,null,null,null,null,null,null,null,null,null,null,null,null,null,null,null,{"$f":"Import!E5499","v":0}]
[null,null,"Reinsurance Ceded",{"$f":"Import!E3951","v":0},{"$f":"Import!E4014","v":0},{"$f":"Import!E4077","v":0},{"$f":"Import!E4140","v":0},{"$f":"Import!E4203","v":0},{"$f":"Import!E4266","v":0},{"$f":"Import!E4329","v":0},{"$f":"Import!E4392","v":0},{"$f":"Import!E4455","v":0},{"$f":"Import!E4518","v":0},{"$f":"Import!E4581","v":0},{"$f":"Import!E4644","v":0},{"$f":"Import!E4707","v":0},{"$f":"Import!E4770","v":0},{"$f":"Import!E4833","v":0},{"$f":"Import!E4896","v":0},{"$f":"Import!E4959","v":0},{"$f":"Import!E5022","v":0},{"$f":"Import!E5085","v":0},{"$f":"Import!E5148","v":0},{"$f":"Import!E5211","v":0},{"$f":"Import!E5274","v":0},{"$f":"Import!E5337","v":0},{"$f":"Import!E5400","v":0},{"$f":"Import!E5463","v":0},null,null,null,null,null,null,null,null,null,null,null,null,null,null,null,null,null,null,null,null,null,null,null,null,null,null,null,null,{"$f":"Import!E5500","v":0}]
[null,null,"Net Premiums Written",{"$f":"D68-D69","v":0},{"$f":"E68-E69","v":0},{"$f":"F68-F69","v":0},{"$f":"G68-G69","v":0},{"$f":"H68-H69","v":0},{"$f":"I68-I69","v":0},{"$f":"J68-J69","v":0},{"$f":"K68-K69","v":0},{"$f":"L68-L69","v":0},{"$f":"M68-M69","v":0},{"$f":"N68-N69","v":0},{"$f":"O68-O69","v":0},{"$f":"P68-P69","v":0},{"$f":"Q68-Q69","v":0},{"$f":"R68-R69","v":0},{"$f":"S68-S69","v":0},{"$f":"T68-T69","v":0},{"$f":"U68-U69","v":0},{"$f":"V68-V69","v":0},{"$f":"W68-W69","v":0},{"$f":"X68-X69","v":0},{"$f":"Y68-Y69","v":0},{"$f":"Z68-Z69","v":0},{"$f":"AA68-AA69","v":0},{"$f":"AB68-AB69","v":0},{"$f":"AC68-AC69","v":0},{"$f":"AD68-AD69","v":0},{"$f":"AE68-AE69","v":0},{"$f":"AF68-AF69","v":0},{"$f":"AG68-AG69","v":0},{"$f":"AH68-AH69","v":0},{"$f":"AI68-AI69","v":0},{"$f":"AJ68-AJ69","v":0},{"$f":"AK68-AK69","v":0},{"$f":"AL68-AL69","v":0},{"$f":"AM68-AM69","v":0},{"$f":"AN68-AN69","v":0},{"$f":"AO68-AO69","v":0},{"$f":"AP68-AP69","v":0},{"$f":"AQ68-AQ69","v":0},{"$f":"AR68-AR69","v":0},{"$f":"AS68-AS69","v":0},{"$f":"AT68-AT69","v":0},{"$f":"AU68-AU69","v":0},{"$f":"AV68-AV69","v":0},{"$f":"AW68-AW69","v":0},{"$f":"AX68-AX69","v":0},{"$f":"AY68-AY69","v":0},{"$f":"AZ68-AZ69","v":0},{"$f":"BA68-BA69","v":0},null,null,null,{"$f":"BE68-BE69","v":0}]
[null,"(v)","Statutory Lines of Business Written ",{"$f":"Import!E3953","v":"Select Line of Business"},{"$f":"Import!E4016","v":"Select Line of Business"},{"$f":"Import!E4079","v":"Select Line of Business"},{"$f":"Import!E4142","v":"Select Line of Business"},{"$f":"Import!E4205","v":"Select Line of Business"},{"$f":"Import!E4268","v":"Select Line of Business"},{"$f":"Import!E4331","v":"Select Line of Business"},{"$f":"Import!E4394","v":"Select Line of Business"},{"$f":"Import!E4457","v":"Select Line of Business"},{"$f":"Import!E4520","v":"Select Line of Business"},{"$f":"Import!E4583","v":"Select Line of Business"},{"$f":"Import!E4646","v":"Select Line of Business"},{"$f":"Import!E4709","v":"Select Line of Business"},{"$f":"Import!E4772","v":"Select Line of Business"},{"$f":"Import!E4835","v":"Select Line of Business"},{"$f":"Import!E4898","v":"Select Line of Business"},{"$f":"Import!E4961","v":"Select Line of Business"},{"$f":"Import!E5024","v":"Select Line of Business"},{"$f":"Import!E5087","v":"Select Line of Business"},{"$f":"Import!E5150","v":"Select Line of Business"},{"$f":"Import!E5213","v":"Select Line of Business"},{"$f":"Import!E5276","v":"Select Line of Business"},{"$f":"Import!E5339","v":"Select Line of Business"},{"$f":"Import!E5402","v":"Select Line of Business"},{"$f":"Import!E5465","v":"Select Line of Business"},"Select Line of Business","Select Line of Business","Select Line of Business","Select Line of Business","Select Line of Business","Select Line of Business","Select Line of Business","Select Line of Business","Select Line of Business","Select Line of Business","Select Line of Business","Select Line of Business","Select Line of Business","Select Line of Business","Select Line of Business","Select Line of Business","Select Line of Business","Select Line of Business","Select Line of Business","Select Line of Business","Select Line of Business","Select Line of Business","Select Line of Business","Select Line of Business","Select Line of Business",null,null,null,{"$f":"Import!E5502","v":"Select Line of Business"}]
[null,null,"Gross Premiums Written",{"$f":"Import!E3954","v":0},{"$f":"Import!E4017","v":0},{"$f":"Import!E4080","v":0},{"$f":"Import!E4143","v":0},{"$f":"Import!E4206","v":0},{"$f":"Import!E4269","v":0},{"$f":"Import!E4332","v":0},{"$f":"Import!E4395","v":0},{"$f":"Import!E4458","v":0},{"$f":"Import!E4521","v":0},{"$f":"Import!E4584","v":0},{"$f":"Import!E4647","v":0},{"$f":"Import!E4710","v":0},{"$f":"Import!E4773","v":0},{"$f":"Import!E4836","v":0},{"$f":"Import!E4899","v":0},{"$f":"Import!E4962","v":0},{"$f":"Import!E5025","v":0},{"$f":"Import!E5088","v":0},{"$f":"Import!E5151","v":0},{"$f":"Import!E5214","v":0},{"$f":"Import!E5277","v":0},{"$f":"Import!E5340","v":0},{"$f":"Import!E5403","v":0},{"$f":"Import!E5466","v":0},null,null,null,null,null,null,null,null,null,null,null,null,null,null,null,null,null,null,null,null,null,null,null,null,null,null,null,null,{"$f":"Import!E5503","v":0}]
[null,null,"Reinsurance Ceded",{"$f":"Import!E3955","v":0},{"$f":"Import!E4018","v":0},{"$f":"Import!E4081","v":0},{"$f":"Import!E4144","v":0},{"$f":"Import!E4207","v":0},{"$f":"Import!E4270","v":0},{"$f":"Import!E4333","v":0},{"$f":"Import!E4396","v":0},{"$f":"Import!E4459","v":0},{"$f":"Import!E4522","v":0},{"$f":"Import!E4585","v":0},{"$f":"Import!E4648","v":0},{"$f":"Import!E4711","v":0},{"$f":"Import!E4774","v":0},{"$f":"Import!E4837","v":0},{"$f":"Import!E4900","v":0},{"$f":"Import!E4963","v":0},{"$f":"Import!E5026","v":0},{"$f":"Import!E5089","v":0},{"$f":"Import!E5152","v":0},{"$f":"Import!E5215","v":0},{"$f":"Import!E5278","v":0},{"$f":"Import!E5341","v":0},{"$f":"Import!E5404","v":0},{"$f":"Import!E5467","v":0},null,null,null,null,null,null,null,null,null,null,null,null,null,null,null,null,null,null,null,null,null,null,null,null,null,null,null,null,{"$f":"Import!E5504","v":0}]
[null,null,"Net Premiums Written",{"$f":"D72-D73","v":0},{"$f":"E72-E73","v":0},{"$f":"F72-F73","v":0},{"$f":"G72-G73","v":0},{"$f":"H72-H73","v":0},{"$f":"I72-I73","v":0},{"$f":"J72-J73","v":0},{"$f":"K72-K73","v":0},{"$f":"L72-L73","v":0},{"$f":"M72-M73","v":0},{"$f":"N72-N73","v":0},{"$f":"O72-O73","v":0},{"$f":"P72-P73","v":0},{"$f":"Q72-Q73","v":0},{"$f":"R72-R73","v":0},{"$f":"S72-S73","v":0},{"$f":"T72-T73","v":0},{"$f":"U72-U73","v":0},{"$f":"V72-V73","v":0},{"$f":"W72-W73","v":0},{"$f":"X72-X73","v":0},{"$f":"Y72-Y73","v":0},{"$f":"Z72-Z73","v":0},{"$f":"AA72-AA73","v":0},{"$f":"AB72-AB73","v":0},{"$f":"AC72-AC73","v":0},{"$f":"AD72-AD73","v":0},{"$f":"AE72-AE73","v":0},{"$f":"AF72-AF73","v":0},{"$f":"AG72-AG73","v":0},{"$f":"AH72-AH73","v":0},{"$f":"AI72-AI73","v":0},{"$f":"AJ72-AJ73","v":0},{"$f":"AK72-AK73","v":0},{"$f":"AL72-AL73","v":0},{"$f":"AM72-AM73","v":0},{"$f":"AN72-AN73","v":0},{"$f":"AO72-AO73","v":0},{"$f":"AP72-AP73","v":0},{"$f":"AQ72-AQ73","v":0},{"$f":"AR72-AR73","v":0},{"$f":"AS72-AS73","v":0},{"$f":"AT72-AT73","v":0},{"$f":"AU72-AU73","v":0},{"$f":"AV72-AV73","v":0},{"$f":"AW72-AW73","v":0},{"$f":"AX72-AX73","v":0},{"$f":"AY72-AY73","v":0},{"$f":"AZ72-AZ73","v":0},{"$f":"BA72-BA73","v":0},null,null,null,{"$f":"BE72-BE73","v":0}]
[null,null,"Total Gross Premiums Written",{"$f":"D56+D60+D64+D68+D72","v":0},{"$f":"E56+E60+E64+E68+E72","v":0},0,0,0,0,0,0,0,0,0,0,0,0,0,0,0,0,0,0,0,0,0,0,0,0,0,0,0,0,0,0,0,0,0,0,0,0,0,0,0,0,0,0,0,0,0,0,0,0,null,{"$f":"SUM(D75:BA75)","v":0},null,{"$f":"BE56+BE60+BE64+BE68+BE72","v":0}]
[null,null,"Total Net Premiums Written",{"$f":"D58+D62+D66+D70+D74","v":0},{"$f":"E58+E62+E66+E70+E74","v":0},0,0,0,0,0,0,0,0,0,0,0,0,0,0,0,0,0,0,0,0,0,0,0,0,0,0,0,0,0,0,0,0,0,0,0,0,0,0,0,0,0,0,0,0,0,0,0,0,null,0,null,{"$f":"BE57+BE61+BE65+BE69+BE73","v":0}]
[]
[null,null,"Notional Minimum Margin of Solvency Test"]
[null,null,"Test A $120,000 (General Account Only)",null,null,null,null,null,null,null,null,null,null,null,null,null,null,null,null,null,null,null,null,null,null,null,null,null,null,null,null,null,null,null,null,null,null,null,null,null,null,null,null,null,null,null,null,null,null,null,null,null,null,null,null,null,120000]
[null,null,"Test B 10% of Net Premiums Written",{"$f":"IF(D9>0,D76*10%,\"\")","v":""},"","","","","","","","","","","","","","","","","","","","","","","","","","","","","","","",{"$f":"IF(AJ9>0,AJ76*10%,\"\")","v":""},"","","","","","","","","","","","","","","","","",null,null,null,{"$f":"IF(BE9>0,BE76*10%,\"\")","v":""}]
[null,null,"Test C 10% of Net Loss Provisions",{"$f":"IF(D9>0,D24*10%,\"\")","v":""},"","","","","","","","","","","","","","","","","","","","","","","","","","","","","","","",{"$f":"IF(AJ9>0,AJ24*10%,\"\")","v":""},"","","","","","","","","","","","","","","","","",null,null,null,{"$f":"IF(BE9>0,BE24*10%,\"\")","v":""}]
[]
[null,null,"Notional Minimum Margin of Solvency ",{"$f":"IF(D9=\"\",\"\",MAX(D80,D81))","v":0},0,0,0,0,0,0,0,0,0,0,0,0,0,0,0,0,0,0,0,0,0,0,0,0,"","","","","","","",{"$f":"IF(AJ9=\"\",\"\",MAX(AJ80,AJ81))","v":""},"","","","","","","","","","","","","","","","","",null,null,null,{"$f":"IF(BE9=\"\",\"\",MAX(BE79,BE80,BE81))","v":120000}]
[]
[null,null,"Notional Enhanced Capital Requirement"]
[null,null,"Summary - ECR",{"$f":"IF(D9=\"\",\"\",Summary!$G$109)","v":1000},{"$f":"IF(E9=\"\",\"\",Summary!$G$109)","v":1000},{"$f":"IF(F9=\"\",\"\",Summary!$G$109)","v":1000},{"$f":"IF(G9=\"\",\"\",Summary!$G$109)","v":1000},{"$f":"IF(H9=\"\",\"\",Summary!$G$109)","v":1000},{"$f":"IF(I9=\"\",\"\",Summary!$G$109)","v":1000},{"$f":"IF(J9=\"\",\"\",Summary!$G$109)","v":1000},{"$f":"IF(K9=\"\",\"\",Summary!$G$109)","v":1000},{"$f":"IF(L9=\"\",\"\",Summary!$G$109)","v":1000},{"$f":"IF(M9=\"\",\"\",Summary!$G$109)","v":1000},{"$f":"IF(N9=\"\",\"\",Summary!$G$109)","v":1000},{"$f":"IF(O9=\"\",\"\",Summary!$G$109)","v":1000},{"$f":"IF(P9=\"\",\"\",Summary!$G$109)","v":1000},{"$f":"IF(Q9=\"\",\"\",Summary!$G$109)","v":1000},{"$f":"IF(R9=\"\",\"\",Summary!$G$109)","v":1000},{"$f":"IF(S9=\"\",\"\",Summary!$G$109)","v":1000},{"$f":"IF(T9=\"\",\"\",Summary!$G$109)","v":1000},{"$f":"IF(U9=\"\",\"\",Summary!$G$109)","v":1000},{"$f":"IF(V9=\"\",\"\",Summary!$G$109)","v":1000},{"$f":"IF(W9=\"\",\"\",Summary!$G$109)","v":1000},{"$f":"IF(X9=\"\",\"\",Summary!$G$109)","v":1000},{"$f":"IF(Y9=\"\",\"\",Summary!$G$109)","v":1000},{"$f":"IF(Z9=\"\",\"\",Summary!$G$109)","v":1000},{"$f":"IF(AA9=\"\",\"\",Summary!$G$109)","v":1000},{"$f":"IF(AB9=\"\",\"\",Summary!$G$109)","v":1000},{"$f":"IF(AC9=\"\",\"\",Summary!$G$109)","v":""},{"$f":"IF(AD9=\"\",\"\",Summary!$G$109)","v":""},{"$f":"IF(AE9=\"\",\"\",Summary!$G$109)","v":""},{"$f":"IF(AF9=\"\",\"\",Summary!$G$109)","v":""},{"$f":"IF(AG9=\"\",\"\",Summary!$G$109)","v":""},{"$f":"IF(AH9=\"\",\"\",Summary!$G$109)","v":""},{"$f":"IF(AI9=\"\",\"\",Summary!$G$109)","v":""},{"$f":"IF(AJ9=\"\",\"\",Summary!$G$109)","v":""},{"$f":"IF(AK9=\"\",\"\",Summary!$G$109)","v":""},{"$f":"IF(AL9=\"\",\"\",Summary!$G$109)","v":""},{"$f":"IF(AM9=\"\",\"\",Summary!$G$109)","v":""},{"$f":"IF(AN9=\"\",\"\",Summary!$G$109)","v":""},{"$f":"IF(AO9=\"\",\"\",Summary!$G$109)","v":""},{"$f":"IF(AP9=\"\",\"\",Summary!$G$109)","v":""},{"$f":"IF(AQ9=\"\",\"\",Summary!$G$109)","v":""},{"$f":"IF(AR9=\"\",\"\",Summary!$G$109)","v":""},{"$f":"IF(AS9=\"\",\"\",Summary!$G$109)","v":""},{"$f":"IF(AT9=\"\",\"\",Summary!$G$109)","v":""},{"$f":"IF(AU9=\"\",\"\",Summary!$G$109)","v":""},{"$f":"IF(AV9=\"\",\"\",Summary!$G$109)","v":""},{"$f":"IF(AW9=\"\",\"\",Summary!$G$109)","v":""},{"$f":"IF(AX9=\"\",\"\",Summary!$G$109)","v":""},{"$f":"IF(AY9=\"\",\"\",Summary!$G$109)","v":""},{"$f":"IF(AZ9=\"\",\"\",Summary!$G$109)","v":""},{"$f":"IF(BA9=\"\",\"\",Summary!$G$109)","v":""},null,null,null,{"$f":"IF(BE9=\"\",\"\",Summary!$G$109)","v":1000}]
[null,null,"Summary - Minimum Margin of Solvency",{"$f":"IF(D9=\"\",\"\",Summary!$G$103)","v":1000},{"$f":"IF(E9=\"\",\"\",Summary!$G$103)","v":1000},{"$f":"IF(F9=\"\",\"\",Summary!$G$103)","v":1000},{"$f":"IF(G9=\"\",\"\",Summary!$G$103)","v":1000},{"$f":"IF(H9=\"\",\"\",Summary!$G$103)","v":1000},{"$f":"IF(I9=\"\",\"\",Summary!$G$103)","v":1000},{"$f":"IF(J9=\"\",\"\",Summary!$G$103)","v":1000},{"$f":"IF(K9=\"\",\"\",Summary!$G$103)","v":1000},{"$f":"IF(L9=\"\",\"\",Summary!$G$103)","v":1000},{"$f":"IF(M9=\"\",\"\",Summary!$G$103)","v":1000},{"$f":"IF(N9=\"\",\"\",Summary!$G$103)","v":1000},{"$f":"IF(O9=\"\",\"\",Summary!$G$103)","v":1000},{"$f":"IF(P9=\"\",\"\",Summary!$G$103)","v":1000},{"$f":"IF(Q9=\"\",\"\",Summary!$G$103)","v":1000},{"$f":"IF(R9=\"\",\"\",Summary!$G$103)","v":1000},{"$f":"IF(S9=\"\",\"\",Summary!$G$103)","v":1000},{"$f":"IF(T9=\"\",\"\",Summary!$G$103)","v":1000},{"$f":"IF(U9=\"\",\"\",Summary!$G$103)","v":1000},{"$f":"IF(V9=\"\",\"\",Summary!$G$103)","v":1000},{"$f":"IF(W9=\"\",\"\",Summary!$G$103)","v":1000},{"$f":"IF(X9=\"\",\"\",Summary!$G$103)","v":1000},{"$f":"IF(Y9=\"\",\"\",Summary!$G$103)","v":1000},{"$f":"IF(Z9=\"\",\"\",Summary!$G$103)","v":1000},{"$f":"IF(AA9=\"\",\"\",Summary!$G$103)","v":1000},{"$f":"IF(AB9=\"\",\"\",Summary!$G$103)","v":1000},{"$f":"IF(AC9=\"\",\"\",Summary!$G$103)","v":""},{"$f":"IF(AD9=\"\",\"\",Summary!$G$103)","v":""},{"$f":"IF(AE9=\"\",\"\",Summary!$G$103)","v":""},{"$f":"IF(AF9=\"\",\"\",Summary!$G$103)","v":""},{"$f":"IF(AG9=\"\",\"\",Summary!$G$103)","v":""},{"$f":"IF(AH9=\"\",\"\",Summary!$G$103)","v":""},{"$f":"IF(AI9=\"\",\"\",Summary!$G$103)","v":""},{"$f":"IF(AJ9=\"\",\"\",Summary!$G$103)","v":""},{"$f":"IF(AK9=\"\",\"\",Summary!$G$103)","v":""},{"$f":"IF(AL9=\"\",\"\",Summary!$G$103)","v":""},{"$f":"IF(AM9=\"\",\"\",Summary!$G$103)","v":""},{"$f":"IF(AN9=\"\",\"\",Summary!$G$103)","v":""},{"$f":"IF(AO9=\"\",\"\",Summary!$G$103)","v":""},{"$f":"IF(AP9=\"\",\"\",Summary!$G$103)","v":""},{"$f":"IF(AQ9=\"\",\"\",Summary!$G$103)","v":""},{"$f":"IF(AR9=\"\",\"\",Summary!$G$103)","v":""},{"$f":"IF(AS9=\"\",\"\",Summary!$G$103)","v":""},{"$f":"IF(AT9=\"\",\"\",Summary!$G$103)","v":""},{"$f":"IF(AU9=\"\",\"\",Summary!$G$103)","v":""},{"$f":"IF(AV9=\"\",\"\",Summary!$G$103)","v":""},{"$f":"IF(AW9=\"\",\"\",Summary!$G$103)","v":""},{"$f":"IF(AX9=\"\",\"\",Summary!$G$103)","v":""},{"$f":"IF(AY9=\"\",\"\",Summary!$G$103)","v":""},{"$f":"IF(AZ9=\"\",\"\",Summary!$G$103)","v":""},{"$f":"IF(BA9=\"\",\"\",Summary!$G$103)","v":""},null,null,null,{"$f":"IF(BE9=\"\",\"\",Summary!$G$103)","v":1000}]
[null,null,"ECR to Minimum Margin of Solvency",{"$f":"IF(D9=\"\",\"\",IF(D87=0,0,D86/D87))","v":1},1,1,1,1,1,1,1,1,1,1,1,1,1,1,1,1,1,1,1,1,1,1,1,1,"","","","","","","",{"$f":"IF(AJ9=\"\",\"\",IF(AJ87=0,0,AJ86/AJ87))","v":""},"","","","","","","","","","","","","","","","","",null,null,null,{"$f":"IF(BE9=\"\",\"\",IF(BE87=0,0,BE86/BE87))","v":1}]
[]
[null,null,"Cell Notional ECR Requirement",{"$f":"IF(D9=0,\"\",D83*D88)","v":""},"","","","","","","","","","","","","","","","","","","","","","","","","","","","","","","",{"$f":"IF(AJ9=0,\"\",AJ83*AJ88)","v":""},"","","","","","","","","","","","","","","","","",null,null,null,{"$f":"IF(BE9=0,\"\",BE83*BE88)","v":""}]
[]
[null,null,"Cell Notional ECR Ratio",{"$f":"IF(D9=0,\"\",IF((D11+D12)=0,0,(D11+D12)/D90))","v":""},"","","","","","","","","","","","","","","","","","","","","","","","","","","","","","","",{"$f":"IF(AJ9=0,\"\",IF((AJ11+AJ12)=0,0,(AJ11+AJ12)/AJ90))","v":""},"","","","","","","","","","","","","","","","","",null,null,null,{"$f":"IF(BE9=0,\"\",IF((BE11+BE12)=0,0,(BE11+BE12)/BE90))","v":""}]
[]
[]
[null,null,null,null,"brrt_BondsAndDebentures",null,"brrt_BondsAndDebenturesFaceValue","brrt_BondsAndDebenturesAverageRating",null,"Select Line of Business",null,"Confirm Jurisdiction","Select Funding","Select Currency","Confirm Mitigants & Attach Support"]
[null,null,"01/01/2016",null,"01/01/2016",null,"01/01/2016","01/01/2016",null,"General Business",null,"Zone 1 - Central & Western Asia","Cash","Bermudian Dollar","None",null,"Yes"]
[null,null,"12/31/2016",null,"12/31/2016",null,"12/31/2016","12/31/2016",null,"Accident and Health, Travel, Personal Accident",null,"Zone 2 - Eastern Asia","Lines of Credit","US Dollar","Provide Support in Attachments tab",null,"No"]
[null,null,null,"Select Yes/No",null,null,null,null,null,"Agriculture",null,"Zone 3 - South and South-Eastern Asia","Guarantees","Canadian Dollar"]
[null,null,"Select Premiums Written","Yes","Confirm",null,"Confirm Activity","Confirm Funding / Collateral",null,"Asbestos",null,"Zone 4 - Oceania",null,"Euro"]
[null,null,"Direct Insurer","No","LOC ",null,"None","Up to Probable Maximum Loss",null,"Aviation - Hull, Liability and War",null,"Zone 5 - Northern Africa",null,"Japanese Yen"]
[null,null,"Reinsurer",null,"Gurantees",null,"Reinsurance","Up to Aggregate Limit",null,"Construction",null,"Zone 6 - Southern Africa",null,"Pound Sterling"]
[null,null,"Both",null,"Capital Calls",null,"Other (Define) ","Reserves",null,"Credit / Surety",null,"Zone 7 - Eastern Europe",null,"Swiss Franc"]
[null,null,null,null,"Other (Define) ",null,null,"Total Reserves and expenses",null,"Crime and Fidelity",null,"Zone 8 - Northern Europe"]
[null,null,null,null,null,null,null,"Other (define)",null,"Crime and Fraud",null,"Zone 9 - Southern Europe",null,"Afghanistan Afghani"]
[null,null,null,null,"Confirm",null,null,null,null,"Cyber Risk",null,"Zone 10 - Western Europe",null,"Albanian Lek"]
[null,null,null,null,"Related",null,null,null,null,"Energy - Onshore and offshore",null,"Zone 11 - Northern America (Excluding USA)",null,"Algerian Dinar"]
[null,null,null,null,"Unrelated",null,null,null,null,"Environmental Risk",null,"Zone 12 - Caribbean & Centeral America",null,"Angolan Kwanza"]
[null,null,null,null,null,null,null,null,null,"General liability - Public, Products, Umbrella, Product recall",null,"Zone 13 - Eastern South America",null,"Arab Emirates Dirham"]
[null,null,null,null,"Confirm Beneficial Owner",null,null,null,null,"Life and Accident and Health (General Business approval)",null,"Zone 14 - Northern, Southern and Western South America",null,"Argentine Peso"]
[null,null,null,null,"Single",null,null,null,null,"Marine - P&I, Cargo, Hull and Liability, War",null,"Zone 15 - North-East United States",null,"Armenian Dram"]
[null,null,null,null,"Multiple",null,null,null,null,"Medical Malpractice",null,"Zone 16 - South-East United States",null,"Aruban Guilder"]
[null,null,null,null,null,null,null,null,null,"Mortgage",null,"Zone 17 - Mid-West United States",null,"Australian Dollar"]
[null,null,null,null,"Confirm Ownership",null,null,null,null,"Motor - APD and Liability",null,"Zone 18 - Western United States",null,"Azerbaijan New Manat"]
[null,null,null,null,"Management General Agents & Brokers",null,null,null,null,"Political Risks",null,null,null,"Bahamian Dollar"]
[null,null,null,null,"Insurance Company",null,null,null,null,"Professional Liability - Professional Indemnity, D&O, Bankers Blanket, E&O",null,null,null,"Bahraini Dinar"]
[null,null,null,null,"Reinsurance Company",null,null,null,null,"Property Catastrophe",null,null,null,"Bangladeshi Taka"]
[null,null,null,null,"Non-Insurance Company",null,null,null,null,"Property Damage and Business Interruption",null,null,null,"Barbados Dollar"]
[null,null,null,null,"Non-Related Investors",null,null,null,null,"Property Retro",null,null,null,"Belarussian Ruble"]
[null,null,null,null,"Other",null,"A or better",null,null,"Structured/Finite Reinsurance",null,null,null,"Belize Dollar"]
[null,null,null,null,null,null,"BBB or equivalent",null,null,"Terrorism",null,null,null,"Bhutan Ngultrum"]
[null,null,null,null,"Confirm Instrument",null,"B or better",null,null,"Warranty, Residual Value",null,null,null,"Boliviano"]
[null,null,null,null,"Non-Voting Preferred Shareholder Agreement",null,"unrated/other",null,null,"Workers Compensation/Employers Liability",null,null,null,"Botswana Pula"]
[null,null,null,null,"Participation Agreement",null,null,null,null,null,null,null,null,"Brazilian Real"]
[null,null,null,null,"Noteholder Agreement",null,null,null,null,"Long Term Business",null,null,null,"Brunei Dollar"]
[null,null,null,null,"Contingent Commission Agreement",null,null,null,null,"Mortality",null,null,null,"Burundi Franc"]
[null,null,null,null,"Other Agreement",null,null,null,null,"Critical Illness",null,null,null,"Cape Verde Escudo"]
[null,null,null,null,null,null,null,null,null,"Longevity",null,null,null,"Cayman Islands Dollar"]
[null,null,null,null,null,null,null,null,null,"Deferred Annuities",null,null,null,"CFA Franc BCEAO"]
[null,null,null,null,null,null,null,null,null,"Disability Income: Active lives with premium guarantee of -",null,null,null,"CFA Franc BEAC"]
[null,null,null,null,null,null,null,null,null,"Less than or equal to 1 year",null,null,null,"CFP Franc"]
[null,null,null,null,null,null,null,null,null,"More than 1 year but less than 5 years",null,null,null,"Chilean Peso"]
[null,null,null,null,null,null,null,null,null,"Greater than 5 years",null,null,null,"Colombian Peso"]
[null,null,null,null,null,null,null,null,null,"Disability Income: Actives lives for other",null,null,null,"Comoros Franc"]
[null,null,null,null,null,null,null,null,null,"accident and sickness",null,null,null,"Costa Rican Colon"]
[null,null,null,null,null,null,null,null,null,"Disability Income: Claims in payment",null,null,null,"Croatian Kuna"]
[null,null,null,null,null,null,null,null,null,"Disability Income: Claims in payment for other",null,null,null,"Cuban Peso"]
[null,null,null,null,null,null,null,null,null,"accident and sickness",null,null,null,"Czech Koruna"]
[null,null,null,null,null,null,null,null,null,"Group Life",null,null,null,"Danish Krone"]
[null,null,null,null,null,null,null,null,null,"Group Disability",null,null,null,"Denar"]
[null,null,null,null,null,null,null,null,null,"Group Health",null,null,null,"Djibouti Franc"]
[null,null,null,null,null,null,null,null,null,"Stop Loss",null,null,null,"Dominican Peso"]
[null,null,null,null,null,null,null,null,null,"Rider",null,null,null,"East Caribbean Dollar"]
[null,null,null,null,null,null,null,null,null,"Variable Annuities",null,null,null,"Ecuador Sucre"]
[null,null,null,null,null,null,null,null,null,null,null,null,null,"Egyptian Pound"]
[null,null,null,null,null,null,null,null,null,null,null,null,null,"El Salvador Colon"]
[null,null,null,null,null,null,null,null,null,null,null,null,null,"Eritrean Nakfa"]
[null,null,null,null,null,null,null,null,null,null,null,null,null,"Falkland Islands Pound"]
[null,null,null,null,null,null,null,null,null,null,null,null,null,"Fiji Dollar"]
[null,null,null,null,null,null,null,null,null,null,null,null,null,"Francs"]
[null,null,null,null,null,null,null,null,null,null,null,null,null,"Gambian Dalasi"]
[null,null,null,null,null,null,null,null,null,null,null,null,null,"Georgian Lari"]
[null,null,null,null,null,null,null,null,null,null,null,null,null,"Ghanaian Cedi"]
[null,null,null,null,null,null,null,null,null,null,null,null,null,"Gibraltar Pound"]
[null,null,null,null,null,null,null,null,null,null,null,null,null,"Guatemalan Quetzal"]
[null,null,null,null,null,null,null,null,null,null,null,null,null,"Guinea Franc"]
[null,null,null,null,null,null,null,null,null,null,null,null,null,"Guinea-Bissau Peso"]
[null,null,null,null,null,null,null,null,null,null,null,null,null,"Guyana Dollar"]
[null,null,null,null,null,null,null,null,null,null,null,null,null,"Haitian Gourde"]
[null,null,null,null,null,null,null,null,null,null,null,null,null,"Honduran Lempira"]
[null,null,null,null,null,null,null,null,null,null,null,null,null,"Hong Kong Dollar"]
[null,null,null,null,null,null,null,null,null,null,null,null,null,"Hungarian Forint"]
[null,null,null,null,null,null,null,null,null,null,null,null,null,"Iceland Krona"]
[null,null,null,null,null,null,null,null,null,null,null,null,null,"Indian Rupee"]
[null,null,null,null,null,null,null,null,null,null,null,null,null,"Indonesian Rupiah"]
[null,null,null,null,null,null,null,null,null,null,null,null,null,"Iraqi Dinar"]
[null,null,null,null,null,null,null,null,null,null,null,null,null,"Israeli New Shekel"]
[null,null,null,null,null,null,null,null,null,null,null,null,null,"Jamaican Dollar"]
[null,null,null,null,null,null,null,null,null,null,null,null,null,"Jordanian Dinar"]
[null,null,null,null,null,null,null,null,null,null,null,null,null,"Kampuchean Riel"]
[null,null,null,null,null,null,null,null,null,null,null,null,null,"Kazakhstan Tenge"]
[null,null,null,null,null,null,null,null,null,null,null,null,null,"Kenyan Shilling"]
[null,null,null,null,null,null,null,null,null,null,null,null,null,"Korean Won"]
[null,null,null,null,null,null,null,null,null,null,null,null,null,"Kuwaiti Dinar"]
[null,null,null,null,null,null,null,null,null,null,null,null,null,"Lao Kip"]
[null,null,null,null,null,null,null,null,null,null,null,null,null,"Latvian Lats"]
[null,null,null,null,null,null,null,null,null,null,null,null,null,"Lebanese Pound"]
[null,null,null,null,null,null,null,null,null,null,null,null,null,"Lesotho Loti"]
[null,null,null,null,null,null,null,null,null,null,null,null,null,"Liberian Dollar"]
[null,null,null,null,null,null,null,null,null,null,null,null,null,"Libyan Dinar"]
[null,null,null,null,null,null,null,null,null,null,null,null,null,"Lithuanian Litas"]
[null,null,null,null,null,null,null,null,null,null,null,null,null,"Macau Pataca"]
[null,null,null,null,null,null,null,null,null,null,null,null,null,"Malagasy Franc"]
[null,null,null,null,null,null,null,null,null,null,null,null,null,"Malawi Kwacha"]
[null,null,null,null,null,null,null,null,null,null,null,null,null,"Malaysian Ringgit"]
[null,null,null,null,null,null,null,null,null,null,null,null,null,"Maldive Rufiyaa"]
[null,null,null,null,null,null,null,null,null,null,null,null,null,"Manat"]
[null,null,null,null,null,null,null,null,null,null,null,null,null,"Marka"]
[null,null,null,null,null,null,null,null,null,null,null,null,null,"Moroccan Dirham"]
[null,null,null,null,null,null,null,null,null,null,null,null,null,"New Zealand Dollar"]
[null,null,null,null,null,null,null,null,null,null,null,null,null,"North Korean Won"]
[null,null,null,null,null,null,null,null,null,null,null,null,null,"Norwegian Krone"]
[null,null,null,null,null,null,null,null,null,null,null,null,null,"Norwegian Krone"]
[null,null,null,null,null,null,null,null,null,null,null,null,null,"Som"]
[null,null,null,null,null,null,null,null,null,null,null,null,null,"Sri Lanka Rupee"]
[null,null,null,null,null,null,null,null,null,null,null,null,null,"Sudanese Pound"]
[null,null,null,null,null,null,null,null,null,null,null,null,null,"Surinam Dollar"]
[null,null,null,null,null,null,null,null,null,null,null,null,null,"Swaziland Lilangeni"]
[null,null,null,null,null,null,null,null,null,null,null,null,null,"Swedish Krona"]
[null,null,null,null,null,null,null,null,null,null,null,null,null,"Syrian Pound"]
[null,null,null,null,null,null,null,null,null,null,null,null,null,"Taiwan Dollar"]
[null,null,null,null,null,null,null,null,null,null,null,null,null,"Tajik Somoni"]
[null,null,null,null,null,null,null,null,null,null,null,null,null,"Tanzanian Shilling"]
[null,null,null,null,null,null,null,null,null,null,null,null,null,"Thai Baht"]
[null,null,null,null,null,null,null,null,null,null,null,null,null,"Tongan Pa'anga"]
[null,null,null,null,null,null,null,null,null,null,null,null,null,"Trinidad and Tobago Dollar"]
[null,null,null,null,null,null,null,null,null,null,null,null,null,"Tunisian Dollar"]
[null,null,null,null,null,null,null,null,null,null,null,null,null,"Turkish Lira"]
[null,null,null,null,null,null,null,null,null,null,null,null,null,"Uganda Shilling"]
[null,null,null,null,null,null,null,null,null,null,null,null,null,"Ukraine Hryvnia"]
[null,null,null,null,null,null,null,null,null,null,null,null,null,"Uruguayan Peso"]
[null,null,null,null,null,null,null,null,null,null,null,null,null,"Uzbekistan Sum"]
[null,null,null,null,null,null,null,null,null,null,null,null,"Vanuatu Vatu","Vanuatu Vatu"]
[null,null,null,null,null,null,null,null,null,null,null,null,"Venezuelan Bolivar","Venezuelan Bolivar"]
[null,null,null,null,null,null,null,null,null,null,null,null,"Yemeni Rial","Yemeni Rial"]
[null,null,null,null,null,null,null,null,null,null,null,null,"Yuan Renminbi","Yuan Renminbi"]
[null,null,null,null,null,null,null,null,null,null,null,null,"Zambian Kwacha","Zambian Kwacha"]
[null,null,null,null,null,null,null,null,null,null,null,null,"Zimbabwe Dollar","Zimbabwe Dollar"]

{"sheet":"Schedule V(m)","index":46,"n_rows":1565,"n_cols":23,"rows_kept":1565,"cut":false,"hidden":false,"merged":[[1,2,1,3],[2,2,2,3],[3,2,3,3],[8,1,8,4],[1514,1,1520,10]]}
[null,"Alternative Capital Analysis ",null,null,null,null,null,null,null,null,null,null,null,null,null,null,null,null,null,null,null,null,{"$f":"HYPERLINK(\"#'Index'!A1\",\"Return to Index\")","v":"Return to Index"}]
[null,"Name of Insurer:",{"$f":"'Company Information'!C7","v":"Enter Company Name"}]
[null,"Structure of the Insurer:"]
[null,"For the Year-Ending:",{"$f":"'Company Information'!C3","v":"2019-12-31"}]
[]
[null,"Enter Number of Rows required",{"$f":"Import!E5511","v":0}]
[null,"(Maximum of 1,500 Rows available)"]
[null,"A)  Transaction Details"]
[null,"All monetary figures must be reported in Units and in United States Dollars"]
[null,"Name of Cedant","Contract Reference (e.g. Cell Name/Account No.)","Type of coverage","Statutory Line of Business Written","Location of Exposure Covered","Aggregate Maximum Limit as at Inception Date","Net Aggregate Maximum Limit at the end of Financial Year","Inception Date of Cover Period (DD/MM/YYYY)","Effective Date of Contract\n(DD/MM/YYYY)","Expiry Date of Cover Period (DD/MM/YYYY)","Gross Premium Written for the Cover Period","Net Premium Written for the Cover Period","Attachment Point","Aggregate Losses Outstanding at the Beginning of the Financial Year","Aggregate Losses Incurred During the Financial Year","Aggregate Losses Outstanding at the End of the Financial Year","Reserved Buffer Collateral","Currency of Exposure","Nature of Collateral ","Average Collateral Rating ","Amount of Collateral","Additional Comments (Optional/If Necessary)"]
[1,{"$f":"Import!E5512","v":0},{"$f":"Import!E5537","v":0},{"$f":"Import!E5562","v":"Select from Drop Down"},{"$f":"Import!E5587","v":"Select from Drop Down"},{"$f":"Import!E5612","v":"Select from Drop Down"},{"$f":"Import!E5637","v":0},{"$f":"Import!E5663","v":0},{"$f":"IF(Import!E5689=0,\"\",Import!E5689)","v":""},{"$f":"IF(Import!E5714=0,\"\",Import!E5714)","v":""},{"$f":"IF(Import!E5739=0,\"\",Import!E5739)","v":""},{"$f":"Import!E5764","v":0},{"$f":"Import!E5790","v":0},{"$f":"Import!E5816","v":0},{"$f":"Import!E5842","v":0},{"$f":"Import!E5868","v":0},{"$f":"Import!E5894","v":0},{"$f":"Import!E5920","v":0},{"$f":"Import!E5946","v":"Select from Drop Down"},{"$f":"Import!E5971","v":"Select from Drop Down"},{"$f":"Import!E5996","v":"Select from Drop Down"},{"$f":"Import!E6021","v":0},{"$f":"Import!E6047","v":0}]
[{"$f":"A11+1","v":2},{"$f":"Import!E5513","v":0},{"$f":"Import!E5538","v":0},{"$f":"Import!E5563","v":"Select from Drop Down"},{"$f":"Import!E5588","v":"Select from Drop Down"},{"$f":"Import!E5613","v":"Select from Drop Down"},{"$f":"Import!E5638","v":0},{"$f":"Import!E5664","v":0},{"$f":"IF(Import!E5690=0,\"\",Import!E5690)","v":""},{"$f":"IF(Import!E5715=0,\"\",Import!E5715)","v":""},{"$f":"IF(Import!E5740=0,\"\",Import!E5740)","v":""},{"$f":"Import!E5765","v":0},{"$f":"Import!E5791","v":0},{"$f":"Import!E5817","v":0},{"$f":"Import!E5843","v":0},{"$f":"Import!E5869","v":0},{"$f":"Import!E5895","v":0},{"$f":"Import!E5921","v":0},{"$f":"Import!E5947","v":"Select from Drop Down"},{"$f":"Import!E5972","v":"Select from Drop Down"},{"$f":"Import!E5997","v":"Select from Drop Down"},{"$f":"Import!E6022","v":0},{"$f":"Import!E6048","v":0}]
[{"$f":"A12+1","v":3},{"$f":"Import!E5514","v":0},{"$f":"Import!E5539","v":0},{"$f":"Import!E5564","v":"Select from Drop Down"},{"$f":"Import!E5589","v":"Select from Drop Down"},{"$f":"Import!E5614","v":"Select from Drop Down"},{"$f":"Import!E5639","v":0},{"$f":"Import!E5665","v":0},{"$f":"IF(Import!E5691=0,\"\",Import!E5691)","v":""},{"$f":"IF(Import!E5716=0,\"\",Import!E5716)","v":""},{"$f":"IF(Import!E5741=0,\"\",Import!E5741)","v":""},{"$f":"Import!E5766","v":0},{"$f":"Import!E5792","v":0},{"$f":"Import!E5818","v":0},{"$f":"Import!E5844","v":0},{"$f":"Import!E5870","v":0},{"$f":"Import!E5896","v":0},{"$f":"Import!E5922","v":0},{"$f":"Import!E5948","v":"Select from Drop Down"},{"$f":"Import!E5973","v":"Select from Drop Down"},{"$f":"Import!E5998","v":"Select from Drop Down"},{"$f":"Import!E6023","v":0},{"$f":"Import!E6049","v":0}]
[4,{"$f":"Import!E5515","v":0},{"$f":"Import!E5540","v":0},{"$f":"Import!E5565","v":"Select from Drop Down"},{"$f":"Import!E5590","v":"Select from Drop Down"},{"$f":"Import!E5615","v":"Select from Drop Down"},{"$f":"Import!E5640","v":0},{"$f":"Import!E5666","v":0},{"$f":"IF(Import!E5692=0,\"\",Import!E5692)","v":""},{"$f":"IF(Import!E5717=0,\"\",Import!E5717)","v":""},{"$f":"IF(Import!E5742=0,\"\",Import!E5742)","v":""},{"$f":"Import!E5767","v":0},{"$f":"Import!E5793","v":0},{"$f":"Import!E5819","v":0},{"$f":"Import!E5845","v":0},{"$f":"Import!E5871","v":0},{"$f":"Import!E5897","v":0},{"$f":"Import!E5923","v":0},{"$f":"Import!E5949","v":"Select from Drop Down"},{"$f":"Import!E5974","v":"Select from Drop Down"},{"$f":"Import!E5999","v":"Select from Drop Down"},{"$f":"Import!E6024","v":0},{"$f":"Import!E6050","v":0}]
[5,{"$f":"Import!E5516","v":0},{"$f":"Import!E5541","v":0},{"$f":"Import!E5566","v":"Select from Drop Down"},{"$f":"Import!E5591","v":"Select from Drop Down"},{"$f":"Import!E5616","v":"Select from Drop Down"},{"$f":"Import!E5641","v":0},{"$f":"Import!E5667","v":0},{"$f":"IF(Import!E5693=0,\"\",Import!E5693)","v":""},{"$f":"IF(Import!E5718=0,\"\",Import!E5718)","v":""},{"$f":"IF(Import!E5743=0,\"\",Import!E5743)","v":""},{"$f":"Import!E5768","v":0},{"$f":"Import!E5794","v":0},{"$f":"Import!E5820","v":0},{"$f":"Import!E5846","v":0},{"$f":"Import!E5872","v":0},{"$f":"Import!E5898","v":0},{"$f":"Import!E5924","v":0},{"$f":"Import!E5950","v":"Select from Drop Down"},{"$f":"Import!E5975","v":"Select from Drop Down"},{"$f":"Import!E6000","v":"Select from Drop Down"},{"$f":"Import!E6025","v":0},{"$f":"Import!E6051","v":0}]
[6,{"$f":"Import!E5517","v":0},{"$f":"Import!E5542","v":0},{"$f":"Import!E5567","v":"Select from Drop Down"},{"$f":"Import!E5592","v":"Select from Drop Down"},{"$f":"Import!E5617","v":"Select from Drop Down"},{"$f":"Import!E5642","v":0},{"$f":"Import!E5668","v":0},{"$f":"IF(Import!E5694=0,\"\",Import!E5694)","v":""},{"$f":"IF(Import!E5719=0,\"\",Import!E5719)","v":""},{"$f":"IF(Import!E5744=0,\"\",Import!E5744)","v":""},{"$f":"Import!E5769","v":0},{"$f":"Import!E5795","v":0},{"$f":"Import!E5821","v":0},{"$f":"Import!E5847","v":0},{"$f":"Import!E5873","v":0},{"$f":"Import!E5899","v":0},{"$f":"Import!E5925","v":0},{"$f":"Import!E5951","v":"Select from Drop Down"},{"$f":"Import!E5976","v":"Select from Drop Down"},{"$f":"Import!E6001","v":"Select from Drop Down"},{"$f":"Import!E6026","v":0},{"$f":"Import!E6052","v":0}]
[7,{"$f":"Import!E5518","v":0},{"$f":"Import!E5543","v":0},{"$f":"Import!E5568","v":"Select from Drop Down"},{"$f":"Import!E5593","v":"Select from Drop Down"},{"$f":"Import!E5618","v":"Select from Drop Down"},{"$f":"Import!E5643","v":0},{"$f":"Import!E5669","v":0},{"$f":"IF(Import!E5695=0,\"\",Import!E5695)","v":""},{"$f":"IF(Import!E5720=0,\"\",Import!E5720)","v":""},{"$f":"IF(Import!E5745=0,\"\",Import!E5745)","v":""},{"$f":"Import!E5770","v":0},{"$f":"Import!E5796","v":0},{"$f":"Import!E5822","v":0},{"$f":"Import!E5848","v":0},{"$f":"Import!E5874","v":0},{"$f":"Import!E5900","v":0},{"$f":"Import!E5926","v":0},{"$f":"Import!E5952","v":"Select from Drop Down"},{"$f":"Import!E5977","v":"Select from Drop Down"},{"$f":"Import!E6002","v":"Select from Drop Down"},{"$f":"Import!E6027","v":0},{"$f":"Import!E6053","v":0}]
[8,{"$f":"Import!E5519","v":0},{"$f":"Import!E5544","v":0},{"$f":"Import!E5569","v":"Select from Drop Down"},{"$f":"Import!E5594","v":"Select from Drop Down"},{"$f":"Import!E5619","v":"Select from Drop Down"},{"$f":"Import!E5644","v":0},{"$f":"Import!E5670","v":0},{"$f":"IF(Import!E5696=0,\"\",Import!E5696)","v":""},{"$f":"IF(Import!E5721=0,\"\",Import!E5721)","v":""},{"$f":"IF(Import!E5746=0,\"\",Import!E5746)","v":""},{"$f":"Import!E5771","v":0},{"$f":"Import!E5797","v":0},{"$f":"Import!E5823","v":0},{"$f":"Import!E5849","v":0},{"$f":"Import!E5875","v":0},{"$f":"Import!E5901","v":0},{"$f":"Import!E5927","v":0},{"$f":"Import!E5953","v":"Select from Drop Down"},{"$f":"Import!E5978","v":"Select from Drop Down"},{"$f":"Import!E6003","v":"Select from Drop Down"},{"$f":"Import!E6028","v":0},{"$f":"Import!E6054","v":0}]
[9,{"$f":"Import!E5520","v":0},{"$f":"Import!E5545","v":0},{"$f":"Import!E5570","v":"Select from Drop Down"},{"$f":"Import!E5595","v":"Select from Drop Down"},{"$f":"Import!E5620","v":"Select from Drop Down"},{"$f":"Import!E5645","v":0},{"$f":"Import!E5671","v":0},{"$f":"IF(Import!E5697=0,\"\",Import!E5697)","v":""},{"$f":"IF(Import!E5722=0,\"\",Import!E5722)","v":""},{"$f":"IF(Import!E5747=0,\"\",Import!E5747)","v":""},{"$f":"Import!E5772","v":0},{"$f":"Import!E5798","v":0},{"$f":"Import!E5824","v":0},{"$f":"Import!E5850","v":0},{"$f":"Import!E5876","v":0},{"$f":"Import!E5902","v":0},{"$f":"Import!E5928","v":0},{"$f":"Import!E5954","v":"Select from Drop Down"},{"$f":"Import!E5979","v":"Select from Drop Down"},{"$f":"Import!E6004","v":"Select from Drop Down"},{"$f":"Import!E6029","v":0},{"$f":"Import!E6055","v":0}]
[10,{"$f":"Import!E5521","v":0},{"$f":"Import!E5546","v":0},{"$f":"Import!E5571","v":"Select from Drop Down"},{"$f":"Import!E5596","v":"Select from Drop Down"},{"$f":"Import!E5621","v":"Select from Drop Down"},{"$f":"Import!E5646","v":0},{"$f":"Import!E5672","v":0},{"$f":"IF(Import!E5698=0,\"\",Import!E5698)","v":""},{"$f":"IF(Import!E5723=0,\"\",Import!E5723)","v":""},{"$f":"IF(Import!E5748=0,\"\",Import!E5748)","v":""},{"$f":"Import!E5773","v":0},{"$f":"Import!E5799","v":0},{"$f":"Import!E5825","v":0},{"$f":"Import!E5851","v":0},{"$f":"Import!E5877","v":0},{"$f":"Import!E5903","v":0},{"$f":"Import!E5929","v":0},{"$f":"Import!E5955","v":"Select from Drop Down"},{"$f":"Import!E5980","v":"Select from Drop Down"},{"$f":"Import!E6005","v":"Select from Drop Down"},{"$f":"Import!E6030","v":0},{"$f":"Import!E6056","v":0}]
[11,{"$f":"Import!E5522","v":0},{"$f":"Import!E5547","v":0},{"$f":"Import!E5572","v":"Select from Drop Down"},{"$f":"Import!E5597","v":"Select from Drop Down"},{"$f":"Import!E5622","v":"Select from Drop Down"},{"$f":"Import!E5647","v":0},{"$f":"Import!E5673","v":0},{"$f":"IF(Import!E5699=0,\"\",Import!E5699)","v":""},{"$f":"IF(Import!E5724=0,\"\",Import!E5724)","v":""},{"$f":"IF(Import!E5749=0,\"\",Import!E5749)","v":""},{"$f":"Import!E5774","v":0},{"$f":"Import!E5800","v":0},{"$f":"Import!E5826","v":0},{"$f":"Import!E5852","v":0},{"$f":"Import!E5878","v":0},{"$f":"Import!E5904","v":0},{"$f":"Import!E5930","v":0},{"$f":"Import!E5956","v":"Select from Drop Down"},{"$f":"Import!E5981","v":"Select from Drop Down"},{"$f":"Import!E6006","v":"Select from Drop Down"},{"$f":"Import!E6031","v":0},{"$f":"Import!E6057","v":0}]
[12,{"$f":"Import!E5523","v":0},{"$f":"Import!E5548","v":0},{"$f":"Import!E5573","v":"Select from Drop Down"},{"$f":"Import!E5598","v":"Select from Drop Down"},{"$f":"Import!E5623","v":"Select from Drop Down"},{"$f":"Import!E5648","v":0},{"$f":"Import!E5674","v":0},{"$f":"IF(Import!E5700=0,\"\",Import!E5700)","v":""},{"$f":"IF(Import!E5725=0,\"\",Import!E5725)","v":""},{"$f":"IF(Import!E5750=0,\"\",Import!E5750)","v":""},{"$f":"Import!E5775","v":0},{"$f":"Import!E5801","v":0},{"$f":"Import!E5827","v":0},{"$f":"Import!E5853","v":0},{"$f":"Import!E5879","v":0},{"$f":"Import!E5905","v":0},{"$f":"Import!E5931","v":0},{"$f":"Import!E5957","v":"Select from Drop Down"},{"$f":"Import!E5982","v":"Select from Drop Down"},{"$f":"Import!E6007","v":"Select from Drop Down"},{"$f":"Import!E6032","v":0},{"$f":"Import!E6058","v":0}]
[13,{"$f":"Import!E5524","v":0},{"$f":"Import!E5549","v":0},{"$f":"Import!E5574","v":"Select from Drop Down"},{"$f":"Import!E5599","v":"Select from Drop Down"},{"$f":"Import!E5624","v":"Select from Drop Down"},{"$f":"Import!E5649","v":0},{"$f":"Import!E5675","v":0},{"$f":"IF(Import!E5701=0,\"\",Import!E5701)","v":""},{"$f":"IF(Import!E5726=0,\"\",Import!E5726)","v":""},{"$f":"IF(Import!E5751=0,\"\",Import!E5751)","v":""},{"$f":"Import!E5776","v":0},{"$f":"Import!E5802","v":0},{"$f":"Import!E5828","v":0},{"$f":"Import!E5854","v":0},{"$f":"Import!E5880","v":0},{"$f":"Import!E5906","v":0},{"$f":"Import!E5932","v":0},{"$f":"Import!E5958","v":"Select from Drop Down"},{"$f":"Import!E5983","v":"Select from Drop Down"},{"$f":"Import!E6008","v":"Select from Drop Down"},{"$f":"Import!E6033","v":0},{"$f":"Import!E6059","v":0}]
[14,{"$f":"Import!E5525","v":0},{"$f":"Import!E5550","v":0},{"$f":"Import!E5575","v":"Select from Drop Down"},{"$f":"Import!E5600","v":"Select from Drop Down"},{"$f":"Import!E5625","v":"Select from Drop Down"},{"$f":"Import!E5650","v":0},{"$f":"Import!E5676","v":0},{"$f":"IF(Import!E5702=0,\"\",Import!E5702)","v":""},{"$f":"IF(Import!E5727=0,\"\",Import!E5727)","v":""},{"$f":"IF(Import!E5752=0,\"\",Import!E5752)","v":""},{"$f":"Import!E5777","v":0},{"$f":"Import!E5803","v":0},{"$f":"Import!E5829","v":0},{"$f":"Import!E5855","v":0},{"$f":"Import!E5881","v":0},{"$f":"Import!E5907","v":0},{"$f":"Import!E5933","v":0},{"$f":"Import!E5959","v":"Select from Drop Down"},{"$f":"Import!E5984","v":"Select from Drop Down"},{"$f":"Import!E6009","v":"Select from Drop Down"},{"$f":"Import!E6034","v":0},{"$f":"Import!E6060","v":0}]
[15,{"$f":"Import!E5526","v":0},{"$f":"Import!E5551","v":0},{"$f":"Import!E5576","v":"Select from Drop Down"},{"$f":"Import!E5601","v":"Select from Drop Down"},{"$f":"Import!E5626","v":"Select from Drop Down"},{"$f":"Import!E5651","v":0},{"$f":"Import!E5677","v":0},{"$f":"IF(Import!E5703=0,\"\",Import!E5703)","v":""},{"$f":"IF(Import!E5728=0,\"\",Import!E5728)","v":""},{"$f":"IF(Import!E5753=0,\"\",Import!E5753)","v":""},{"$f":"Import!E5778","v":0},{"$f":"Import!E5804","v":0},{"$f":"Import!E5830","v":0},{"$f":"Import!E5856","v":0},{"$f":"Import!E5882","v":0},{"$f":"Import!E5908","v":0},{"$f":"Import!E5934","v":0},{"$f":"Import!E5960","v":"Select from Drop Down"},{"$f":"Import!E5985","v":"Select from Drop Down"},{"$f":"Import!E6010","v":"Select from Drop Down"},{"$f":"Import!E6035","v":0},{"$f":"Import!E6061","v":0}]
[16,{"$f":"Import!E5527","v":0},{"$f":"Import!E5552","v":0},{"$f":"Import!E5577","v":"Select from Drop Down"},{"$f":"Import!E5602","v":"Select from Drop Down"},{"$f":"Import!E5627","v":"Select from Drop Down"},{"$f":"Import!E5652","v":0},{"$f":"Import!E5678","v":0},{"$f":"IF(Import!E5704=0,\"\",Import!E5704)","v":""},{"$f":"IF(Import!E5729=0,\"\",Import!E5729)","v":""},{"$f":"IF(Import!E5754=0,\"\",Import!E5754)","v":""},{"$f":"Import!E5779","v":0},{"$f":"Import!E5805","v":0},{"$f":"Import!E5831","v":0},{"$f":"Import!E5857","v":0},{"$f":"Import!E5883","v":0},{"$f":"Import!E5909","v":0},{"$f":"Import!E5935","v":0},{"$f":"Import!E5961","v":"Select from Drop Down"},{"$f":"Import!E5986","v":"Select from Drop Down"},{"$f":"Import!E6011","v":"Select from Drop Down"},{"$f":"Import!E6036","v":0},{"$f":"Import!E6062","v":0}]
[17,{"$f":"Import!E5528","v":0},{"$f":"Import!E5553","v":0},{"$f":"Import!E5578","v":"Select from Drop Down"},{"$f":"Import!E5603","v":"Select from Drop Down"},{"$f":"Import!E5628","v":"Select from Drop Down"},{"$f":"Import!E5653","v":0},{"$f":"Import!E5679","v":0},{"$f":"IF(Import!E5705=0,\"\",Import!E5705)","v":""},{"$f":"IF(Import!E5730=0,\"\",Import!E5730)","v":""},{"$f":"IF(Import!E5755=0,\"\",Import!E5755)","v":""},{"$f":"Import!E5780","v":0},{"$f":"Import!E5806","v":0},{"$f":"Import!E5832","v":0},{"$f":"Import!E5858","v":0},{"$f":"Import!E5884","v":0},{"$f":"Import!E5910","v":0},{"$f":"Import!E5936","v":0},{"$f":"Import!E5962","v":"Select from Drop Down"},{"$f":"Import!E5987","v":"Select from Drop Down"},{"$f":"Import!E6012","v":"Select from Drop Down"},{"$f":"Import!E6037","v":0},{"$f":"Import!E6063","v":0}]
[18,{"$f":"Import!E5529","v":0},{"$f":"Import!E5554","v":0},{"$f":"Import!E5579","v":"Select from Drop Down"},{"$f":"Import!E5604","v":"Select from Drop Down"},{"$f":"Import!E5629","v":"Select from Drop Down"},{"$f":"Import!E5654","v":0},{"$f":"Import!E5680","v":0},{"$f":"IF(Import!E5706=0,\"\",Import!E5706)","v":""},{"$f":"IF(Import!E5731=0,\"\",Import!E5731)","v":""},{"$f":"IF(Import!E5756=0,\"\",Import!E5756)","v":""},{"$f":"Import!E5781","v":0},{"$f":"Import!E5807","v":0},{"$f":"Import!E5833","v":0},{"$f":"Import!E5859","v":0},{"$f":"Import!E5885","v":0},{"$f":"Import!E5911","v":0},{"$f":"Import!E5937","v":0},{"$f":"Import!E5963","v":"Select from Drop Down"},{"$f":"Import!E5988","v":"Select from Drop Down"},{"$f":"Import!E6013","v":"Select from Drop Down"},{"$f":"Import!E6038","v":0},{"$f":"Import!E6064","v":0}]
[19,{"$f":"Import!E5530","v":0},{"$f":"Import!E5555","v":0},{"$f":"Import!E5580","v":"Select from Drop Down"},{"$f":"Import!E5605","v":"Select from Drop Down"},{"$f":"Import!E5630","v":"Select from Drop Down"},{"$f":"Import!E5655","v":0},{"$f":"Import!E5681","v":0},{"$f":"IF(Import!E5707=0,\"\",Import!E5707)","v":""},{"$f":"IF(Import!E5732=0,\"\",Import!E5732)","v":""},{"$f":"IF(Import!E5757=0,\"\",Import!E5757)","v":""},{"$f":"Import!E5782","v":0},{"$f":"Import!E5808","v":0},{"$f":"Import!E5834","v":0},{"$f":"Import!E5860","v":0},{"$f":"Import!E5886","v":0},{"$f":"Import!E5912","v":0},{"$f":"Import!E5938","v":0},{"$f":"Import!E5964","v":"Select from Drop Down"},{"$f":"Import!E5989","v":"Select from Drop Down"},{"$f":"Import!E6014","v":"Select from Drop Down"},{"$f":"Import!E6039","v":0},{"$f":"Import!E6065","v":0}]
[20,{"$f":"Import!E5531","v":0},{"$f":"Import!E5556","v":0},{"$f":"Import!E5581","v":"Select from Drop Down"},{"$f":"Import!E5606","v":"Select from Drop Down"},{"$f":"Import!E5631","v":"Select from Drop Down"},{"$f":"Import!E5656","v":0},{"$f":"Import!E5682","v":0},{"$f":"IF(Import!E5708=0,\"\",Import!E5708)","v":""},{"$f":"IF(Import!E5733=0,\"\",Import!E5733)","v":""},{"$f":"IF(Import!E5758=0,\"\",Import!E5758)","v":""},{"$f":"Import!E5783","v":0},{"$f":"Import!E5809","v":0},{"$f":"Import!E5835","v":0},{"$f":"Import!E5861","v":0},{"$f":"Import!E5887","v":0},{"$f":"Import!E5913","v":0},{"$f":"Import!E5939","v":0},{"$f":"Import!E5965","v":"Select from Drop Down"},{"$f":"Import!E5990","v":"Select from Drop Down"},{"$f":"Import!E6015","v":"Select from Drop Down"},{"$f":"Import!E6040","v":0},{"$f":"Import!E6066","v":0}]
[21,{"$f":"Import!E5532","v":0},{"$f":"Import!E5557","v":0},{"$f":"Import!E5582","v":"Select from Drop Down"},{"$f":"Import!E5607","v":"Select from Drop Down"},{"$f":"Import!E5632","v":"Select from Drop Down"},{"$f":"Import!E5657","v":0},{"$f":"Import!E5683","v":0},{"$f":"IF(Import!E5709=0,\"\",Import!E5709)","v":""},{"$f":"IF(Import!E5734=0,\"\",Import!E5734)","v":""},{"$f":"IF(Import!E5759=0,\"\",Import!E5759)","v":""},{"$f":"Import!E5784","v":0},{"$f":"Import!E5810","v":0},{"$f":"Import!E5836","v":0},{"$f":"Import!E5862","v":0},{"$f":"Import!E5888","v":0},{"$f":"Import!E5914","v":0},{"$f":"Import!E5940","v":0},{"$f":"Import!E5966","v":"Select from Drop Down"},{"$f":"Import!E5991","v":"Select from Drop Down"},{"$f":"Import!E6016","v":"Select from Drop Down"},{"$f":"Import!E6041","v":0},{"$f":"Import!E6067","v":0}]
[22,{"$f":"Import!E5533","v":0},{"$f":"Import!E5558","v":0},{"$f":"Import!E5583","v":"Select from Drop Down"},{"$f":"Import!E5608","v":"Select from Drop Down"},{"$f":"Import!E5633","v":"Select from Drop Down"},{"$f":"Import!E5658","v":0},{"$f":"Import!E5684","v":0},{"$f":"IF(Import!E5710=0,\"\",Import!E5710)","v":""},{"$f":"IF(Import!E5735=0,\"\",Import!E5735)","v":""},{"$f":"IF(Import!E5760=0,\"\",Import!E5760)","v":""},{"$f":"Import!E5785","v":0},{"$f":"Import!E5811","v":0},{"$f":"Import!E5837","v":0},{"$f":"Import!E5863","v":0},{"$f":"Import!E5889","v":0},{"$f":"Import!E5915","v":0},{"$f":"Import!E5941","v":0},{"$f":"Import!E5967","v":"Select from Drop Down"},{"$f":"Import!E5992","v":"Select from Drop Down"},{"$f":"Import!E6017","v":"Select from Drop Down"},{"$f":"Import!E6042","v":0},{"$f":"Import!E6068","v":0}]
[23,{"$f":"Import!E5534","v":0},{"$f":"Import!E5559","v":0},{"$f":"Import!E5584","v":"Select from Drop Down"},{"$f":"Import!E5609","v":"Select from Drop Down"},{"$f":"Import!E5634","v":"Select from Drop Down"},{"$f":"Import!E5659","v":0},{"$f":"Import!E5685","v":0},{"$f":"IF(Import!E5711=0,\"\",Import!E5711)","v":""},{"$f":"IF(Import!E5736=0,\"\",Import!E5736)","v":""},{"$f":"IF(Import!E5761=0,\"\",Import!E5761)","v":""},{"$f":"Import!E5786","v":0},{"$f":"Import!E5812","v":0},{"$f":"Import!E5838","v":0},{"$f":"Import!E5864","v":0},{"$f":"Import!E5890","v":0},{"$f":"Import!E5916","v":0},{"$f":"Import!E5942","v":0},{"$f":"Import!E5968","v":"Select from Drop Down"},{"$f":"Import!E5993","v":"Select from Drop Down"},{"$f":"Import!E6018","v":"Select from Drop Down"},{"$f":"Import!E6043","v":0},{"$f":"Import!E6069","v":0}]
[24,{"$f":"Import!E5535","v":0},{"$f":"Import!E5560","v":0},{"$f":"Import!E5585","v":"Select from Drop Down"},{"$f":"Import!E5610","v":"Select from Drop Down"},{"$f":"Import!E5635","v":"Select from Drop Down"},{"$f":"Import!E5660","v":0},{"$f":"Import!E5686","v":0},{"$f":"IF(Import!E5712=0,\"\",Import!E5712)","v":""},{"$f":"IF(Import!E5737=0,\"\",Import!E5737)","v":""},{"$f":"IF(Import!E5762=0,\"\",Import!E5762)","v":""},{"$f":"Import!E5787","v":0},{"$f":"Import!E5813","v":0},{"$f":"Import!E5839","v":0},{"$f":"Import!E5865","v":0},{"$f":"Import!E5891","v":0},{"$f":"Import!E5917","v":0},{"$f":"Import!E5943","v":0},{"$f":"Import!E5969","v":"Select from Drop Down"},{"$f":"Import!E5994","v":"Select from Drop Down"},{"$f":"Import!E6019","v":"Select from Drop Down"},{"$f":"Import!E6044","v":0},{"$f":"Import!E6070","v":0}]
[25,{"$f":"Import!E5536","v":0},{"$f":"Import!E5561","v":0},{"$f":"Import!E5586","v":"Select from Drop Down"},{"$f":"Import!E5611","v":"Select from Drop Down"},{"$f":"Import!E5636","v":"Select from Drop Down"},{"$f":"Import!E5661","v":0},{"$f":"Import!E5687","v":0},{"$f":"IF(Import!E5713=0,\"\",Import!E5713)","v":""},{"$f":"IF(Import!E5738=0,\"\",Import!E5738)","v":""},{"$f":"IF(Import!E5763=0,\"\",Import!E5763)","v":""},{"$f":"Import!E5788","v":0},{"$f":"Import!E5814","v":0},{"$f":"Import!E5840","v":0},{"$f":"Import!E5866","v":0},{"$f":"Import!E5892","v":0},{"$f":"Import!E5918","v":0},{"$f":"Import!E5944","v":0},{"$f":"Import!E5970","v":"Select from Drop Down"},{"$f":"Import!E5995","v":"Select from Drop Down"},{"$f":"Import!E6020","v":"Select from Drop Down"},{"$f":"Import!E6045","v":0},{"$f":"Import!E6071","v":0}]
[26,null,null,"Select from Drop Down","Select from Drop Down","Select from Drop Down",null,null,null,null,null,null,null,null,null,null,null,null,"Select from Drop Down","Select from Drop Down","Select from Drop Down"]
[27,null,null,"Select from Drop Down","Select from Drop Down","Select from Drop Down",null,null,null,null,null,null,null,null,null,null,null,null,"Select from Drop Down","Select from Drop Down","Select from Drop Down"]
[28,null,null,"Select from Drop Down","Select from Drop Down","Select from Drop Down",null,null,null,null,null,null,null,null,null,null,null,null,"Select from Drop Down","Select from Drop Down","Select from Drop Down"]
[29,null,null,"Select from Drop Down","Select from Drop Down","Select from Drop Down",null,null,null,null,null,null,null,null,null,null,null,null,"Select from Drop Down","Select from Drop Down","Select from Drop Down"]
[30,null,null,"Select from Drop Down","Select from Drop Down","Select from Drop Down",null,null,null,null,null,null,null,null,null,null,null,null,"Select from Drop Down","Select from Drop Down","Select from Drop Down"]
[31,null,null,"Select from Drop Down","Select from Drop Down","Select from Drop Down",null,null,null,null,null,null,null,null,null,null,null,null,"Select from Drop Down","Select from Drop Down","Select from Drop Down"]
[32,null,null,"Select from Drop Down","Select from Drop Down","Select from Drop Down",null,null,null,null,null,null,null,null,null,null,null,null,"Select from Drop Down","Select from Drop Down","Select from Drop Down"]
[33,null,null,"Select from Drop Down","Select from Drop Down","Select from Drop Down",null,null,null,null,null,null,null,null,null,null,null,null,"Select from Drop Down","Select from Drop Down","Select from Drop Down"]
[34,null,null,"Select from Drop Down","Select from Drop Down","Select from Drop Down",null,null,null,null,null,null,null,null,null,null,null,null,"Select from Drop Down","Select from Drop Down","Select from Drop Down"]
[35,null,null,"Select from Drop Down","Select from Drop Down","Select from Drop Down",null,null,null,null,null,null,null,null,null,null,null,null,"Select from Drop Down","Select from Drop Down","Select from Drop Down"]
[36,null,null,"Select from Drop Down","Select from Drop Down","Select from Drop Down",null,null,null,null,null,null,null,null,null,null,null,null,"Select from Drop Down","Select from Drop Down","Select from Drop Down"]
[37,null,null,"Select from Drop Down","Select from Drop Down","Select from Drop Down",null,null,null,null,null,null,null,null,null,null,null,null,"Select from Drop Down","Select from Drop Down","Select from Drop Down"]
[38,null,null,"Select from Drop Down","Select from Drop Down","Select from Drop Down",null,null,null,null,null,null,null,null,null,null,null,null,"Select from Drop Down","Select from Drop Down","Select from Drop Down"]
[39,null,null,"Select from Drop Down","Select from Drop Down","Select from Drop Down",null,null,null,null,null,null,null,null,null,null,null,null,"Select from Drop Down","Select from Drop Down","Select from Drop Down"]
[40,null,null,"Select from Drop Down","Select from Drop Down","Select from Drop Down",null,null,null,null,null,null,null,null,null,null,null,null,"Select from Drop Down","Select from Drop Down","Select from Drop Down"]
[41,null,null,"Select from Drop Down","Select from Drop Down","Select from Drop Down",null,null,null,null,null,null,null,null,null,null,null,null,"Select from Drop Down","Select from Drop Down","Select from Drop Down"]
[42,null,null,"Select from Drop Down","Select from Drop Down","Select from Drop Down",null,null,null,null,null,null,null,null,null,null,null,null,"Select from Drop Down","Select from Drop Down","Select from Drop Down"]
[43,null,null,"Select from Drop Down","Select from Drop Down","Select from Drop Down",null,null,null,null,null,null,null,null,null,null,null,null,"Select from Drop Down","Select from Drop Down","Select from Drop Down"]
[44,null,null,"Select from Drop Down","Select from Drop Down","Select from Drop Down",null,null,null,null,null,null,null,null,null,null,null,null,"Select from Drop Down","Select from Drop Down","Select from Drop Down"]
[45,null,null,"Select from Drop Down","Select from Drop Down","Select from Drop Down",null,null,null,null,null,null,null,null,null,null,null,null,"Select from Drop Down","Select from Drop Down","Select from Drop Down"]
[46,null,null,"Select from Drop Down","Select from Drop Down","Select from Drop Down",null,null,null,null,null,null,null,null,null,null,null,null,"Select from Drop Down","Select from Drop Down","Select from Drop Down"]
[47,null,null,"Select from Drop Down","Select from Drop Down","Select from Drop Down",null,null,null,null,null,null,null,null,null,null,null,null,"Select from Drop Down","Select from Drop Down","Select from Drop Down"]
[48,null,null,"Select from Drop Down","Select from Drop Down","Select from Drop Down",null,null,null,null,null,null,null,null,null,null,null,null,"Select from Drop Down","Select from Drop Down","Select from Drop Down"]
[49,null,null,"Select from Drop Down","Select from Drop Down","Select from Drop Down",null,null,null,null,null,null,null,null,null,null,null,null,"Select from Drop Down","Select from Drop Down","Select from Drop Down"]
[50,null,null,"Select from Drop Down","Select from Drop Down","Select from Drop Down",null,null,null,null,null,null,null,null,null,null,null,null,"Select from Drop Down","Select from Drop Down","Select from Drop Down"]
[51,null,null,"Select from Drop Down","Select from Drop Down","Select from Drop Down",null,null,null,null,null,null,null,null,null,null,null,null,"Select from Drop Down","Select from Drop Down","Select from Drop Down"]
[52,null,null,"Select from Drop Down","Select from Drop Down","Select from Drop Down",null,null,null,null,null,null,null,null,null,null,null,null,"Select from Drop Down","Select from Drop Down","Select from Drop Down"]
[53,null,null,"Select from Drop Down","Select from Drop Down","Select from Drop Down",null,null,null,null,null,null,null,null,null,null,null,null,"Select from Drop Down","Select from Drop Down","Select from Drop Down"]
[54,null,null,"Select from Drop Down","Select from Drop Down","Select from Drop Down",null,null,null,null,null,null,null,null,null,null,null,null,"Select from Drop Down","Select from Drop Down","Select from Drop Down"]
[55,null,null,"Select from Drop Down","Select from Drop Down","Select from Drop Down",null,null,null,null,null,null,null,null,null,null,null,null,"Select from Drop Down","Select from Drop Down","Select from Drop Down"]
[56,null,null,"Select from Drop Down","Select from Drop Down","Select from Drop Down",null,null,null,null,null,null,null,null,null,null,null,null,"Select from Drop Down","Select from Drop Down","Select from Drop Down"]
[57,null,null,"Select from Drop Down","Select from Drop Down","Select from Drop Down",null,null,null,null,null,null,null,null,null,null,null,null,"Select from Drop Down","Select from Drop Down","Select from Drop Down"]
[58,null,null,"Select from Drop Down","Select from Drop Down","Select from Drop Down",null,null,null,null,null,null,null,null,null,null,null,null,"Select from Drop Down","Select from Drop Down","Select from Drop Down"]
[59,null,null,"Select from Drop Down","Select from Drop Down","Select from Drop Down",null,null,null,null,null,null,null,null,null,null,null,null,"Select from Drop Down","Select from Drop Down","Select from Drop Down"]
[60,null,null,"Select from Drop Down","Select from Drop Down","Select from Drop Down",null,null,null,null,null,null,null,null,null,null,null,null,"Select from Drop Down","Select from Drop Down","Select from Drop Down"]
[61,null,null,"Select from Drop Down","Select from Drop Down","Select from Drop Down",null,null,null,null,null,null,null,null,null,null,null,null,"Select from Drop Down","Select from Drop Down","Select from Drop Down"]
[62,null,null,"Select from Drop Down","Select from Drop Down","Select from Drop Down",null,null,null,null,null,null,null,null,null,null,null,null,"Select from Drop Down","Select from Drop Down","Select from Drop Down"]
[63,null,null,"Select from Drop Down","Select from Drop Down","Select from Drop Down",null,null,null,null,null,null,null,null,null,null,null,null,"Select from Drop Down","Select from Drop Down","Select from Drop Down"]
[64,null,null,"Select from Drop Down","Select from Drop Down","Select from Drop Down",null,null,null,null,null,null,null,null,null,null,null,null,"Select from Drop Down","Select from Drop Down","Select from Drop Down"]
[65,null,null,"Select from Drop Down","Select from Drop Down","Select from Drop Down",null,null,null,null,null,null,null,null,null,null,null,null,"Select from Drop Down","Select from Drop Down","Select from Drop Down"]
[66,null,null,"Select from Drop Down","Select from Drop Down","Select from Drop Down",null,null,null,null,null,null,null,null,null,null,null,null,"Select from Drop Down","Select from Drop Down","Select from Drop Down"]
[{"$f":"A76+1","v":67},null,null,"Select from Drop Down","Select from Drop Down","Select from Drop Down",null,null,null,null,null,null,null,null,null,null,null,null,"Select from Drop Down","Select from Drop Down","Select from Drop Down"]
[68,null,null,"Select from Drop Down","Select from Drop Down","Select from Drop Down",null,null,null,null,null,null,null,null,null,null,null,null,"Select from Drop Down","Select from Drop Down","Select from Drop Down"]
[69,null,null,"Select from Drop Down","Select from Drop Down","Select from Drop Down",null,null,null,null,null,null,null,null,null,null,null,null,"Select from Drop Down","Select from Drop Down","Select from Drop Down"]
[70,null,null,"Select from Drop Down","Select from Drop Down","Select from Drop Down",null,null,null,null,null,null,null,null,null,null,null,null,"Select from Drop Down","Select from Drop Down","Select from Drop Down"]
[71,null,null,"Select from Drop Down","Select from Drop Down","Select from Drop Down",null,null,null,null,null,null,null,null,null,null,null,null,"Select from Drop Down","Select from Drop Down","Select from Drop Down"]
[72,null,null,"Select from Drop Down","Select from Drop Down","Select from Drop Down",null,null,null,null,null,null,null,null,null,null,null,null,"Select from Drop Down","Select from Drop Down","Select from Drop Down"]
[73,null,null,"Select from Drop Down","Select from Drop Down","Select from Drop Down",null,null,null,null,null,null,null,null,null,null,null,null,"Select from Drop Down","Select from Drop Down","Select from Drop Down"]
[74,null,null,"Select from Drop Down","Select from Drop Down","Select from Drop Down",null,null,null,null,null,null,null,null,null,null,null,null,"Select from Drop Down","Select from Drop Down","Select from Drop Down"]
[75,null,null,"Select from Drop Down","Select from Drop Down","Select from Drop Down",null,null,null,null,null,null,null,null,null,null,null,null,"Select from Drop Down","Select from Drop Down","Select from Drop Down"]
[76,null,null,"Select from Drop Down","Select from Drop Down","Select from Drop Down",null,null,null,null,null,null,null,null,null,null,null,null,"Select from Drop Down","Select from Drop Down","Select from Drop Down"]
[77,null,null,"Select from Drop Down","Select from Drop Down","Select from Drop Down",null,null,null,null,null,null,null,null,null,null,null,null,"Select from Drop Down","Select from Drop Down","Select from Drop Down"]
[78,null,null,"Select from Drop Down","Select from Drop Down","Select from Drop Down",null,null,null,null,null,null,null,null,null,null,null,null,"Select from Drop Down","Select from Drop Down","Select from Drop Down"]
[79,null,null,"Select from Drop Down","Select from Drop Down","Select from Drop Down",null,null,null,null,null,null,null,null,null,null,null,null,"Select from Drop Down","Select from Drop Down","Select from Drop Down"]
[80,null,null,"Select from Drop Down","Select from Drop Down","Select from Drop Down",null,null,null,null,null,null,null,null,null,null,null,null,"Select from Drop Down","Select from Drop Down","Select from Drop Down"]
[81,null,null,"Select from Drop Down","Select from Drop Down","Select from Drop Down",null,null,null,null,null,null,null,null,null,null,null,null,"Select from Drop Down","Select from Drop Down","Select from Drop Down"]
[82,null,null,"Select from Drop Down","Select from Drop Down","Select from Drop Down",null,null,null,null,null,null,null,null,null,null,null,null,"Select from Drop Down","Select from Drop Down","Select from Drop Down"]
[83,null,null,"Select from Drop Down","Select from Drop Down","Select from Drop Down",null,null,null,null,null,null,null,null,null,null,null,null,"Select from Drop Down","Select from Drop Down","Select from Drop Down"]
[84,null,null,"Select from Drop Down","Select from Drop Down","Select from Drop Down",null,null,null,null,null,null,null,null,null,null,null,null,"Select from Drop Down","Select from Drop Down","Select from Drop Down"]
[85,null,null,"Select from Drop Down","Select from Drop Down","Select from Drop Down",null,null,null,null,null,null,null,null,null,null,null,null,"Select from Drop Down","Select from Drop Down","Select from Drop Down"]
[86,null,null,"Select from Drop Down","Select from Drop Down","Select from Drop Down",null,null,null,null,null,null,null,null,null,null,null,null,"Select from Drop Down","Select from Drop Down","Select from Drop Down"]
[87,null,null,"Select from Drop Down","Select from Drop Down","Select from Drop Down",null,null,null,null,null,null,null,null,null,null,null,null,"Select from Drop Down","Select from Drop Down","Select from Drop Down"]
[88,null,null,"Select from Drop Down","Select from Drop Down","Select from Drop Down",null,null,null,null,null,null,null,null,null,null,null,null,"Select from Drop Down","Select from Drop Down","Select from Drop Down"]
[89,null,null,"Select from Drop Down","Select from Drop Down","Select from Drop Down",null,null,null,null,null,null,null,null,null,null,null,null,"Select from Drop Down","Select from Drop Down","Select from Drop Down"]
[90,null,null,"Select from Drop Down","Select from Drop Down","Select from Drop Down",null,null,null,null,null,null,null,null,null,null,null,null,"Select from Drop Down","Select from Drop Down","Select from Drop Down"]
[91,null,null,"Select from Drop Down","Select from Drop Down","Select from Drop Down",null,null,null,null,null,null,null,null,null,null,null,null,"Select from Drop Down","Select from Drop Down","Select from Drop Down"]
[92,null,null,"Select from Drop Down","Select from Drop Down","Select from Drop Down",null,null,null,null,null,null,null,null,null,null,null,null,"Select from Drop Down","Select from Drop Down","Select from Drop Down"]
[93,null,null,"Select from Drop Down","Select from Drop Down","Select from Drop Down",null,null,null,null,null,null,null,null,null,null,null,null,"Select from Drop Down","Select from Drop Down","Select from Drop Down"]
[94,null,null,"Select from Drop Down","Select from Drop Down","Select from Drop Down",null,null,null,null,null,null,null,null,null,null,null,null,"Select from Drop Down","Select from Drop Down","Select from Drop Down"]
[95,null,null,"Select from Drop Down","Select from Drop Down","Select from Drop Down",null,null,null,null,null,null,null,null,null,null,null,null,"Select from Drop Down","Select from Drop Down","Select from Drop Down"]
[96,null,null,"Select from Drop Down","Select from Drop Down","Select from Drop Down",null,null,null,null,null,null,null,null,null,null,null,null,"Select from Drop Down","Select from Drop Down","Select from Drop Down"]
[97,null,null,"Select from Drop Down","Select from Drop Down","Select from Drop Down",null,null,null,null,null,null,null,null,null,null,null,null,"Select from Drop Down","Select from Drop Down","Select from Drop Down"]
[98,null,null,"Select from Drop Down","Select from Drop Down","Select from Drop Down",null,null,null,null,null,null,null,null,null,null,null,null,"Select from Drop Down","Select from Drop Down","Select from Drop Down"]
[99,null,null,"Select from Drop Down","Select from Drop Down","Select from Drop Down",null,null,null,null,null,null,null,null,null,null,null,null,"Select from Drop Down","Select from Drop Down","Select from Drop Down"]
[100,null,null,"Select from Drop Down","Select from Drop Down","Select from Drop Down",null,null,null,null,null,null,null,null,null,null,null,null,"Select from Drop Down","Select from Drop Down","Select from Drop Down"]
[101,null,null,"Select from Drop Down","Select from Drop Down","Select from Drop Down",null,null,null,null,null,null,null,null,null,null,null,null,"Select from Drop Down","Select from Drop Down","Select from Drop Down"]
[102,null,null,"Select from Drop Down","Select from Drop Down","Select from Drop Down",null,null,null,null,null,null,null,null,null,null,null,null,"Select from Drop Down","Select from Drop Down","Select from Drop Down"]
[103,null,null,"Select from Drop Down","Select from Drop Down","Select from Drop Down",null,null,null,null,null,null,null,null,null,null,null,null,"Select from Drop Down","Select from Drop Down","Select from Drop Down"]
[104,null,null,"Select from Drop Down","Select from Drop Down","Select from Drop Down",null,null,null,null,null,null,null,null,null,null,null,null,"Select from Drop Down","Select from Drop Down","Select from Drop Down"]
[105,null,null,"Select from Drop Down","Select from Drop Down","Select from Drop Down",null,null,null,null,null,null,null,null,null,null,null,null,"Select from Drop Down","Select from Drop Down","Select from Drop Down"]
[106,null,null,"Select from Drop Down","Select from Drop Down","Select from Drop Down",null,null,null,null,null,null,null,null,null,null,null,null,"Select from Drop Down","Select from Drop Down","Select from Drop Down"]
[107,null,null,"Select from Drop Down","Select from Drop Down","Select from Drop Down",null,null,null,null,null,null,null,null,null,null,null,null,"Select from Drop Down","Select from Drop Down","Select from Drop Down"]
[108,null,null,"Select from Drop Down","Select from Drop Down","Select from Drop Down",null,null,null,null,null,null,null,null,null,null,null,null,"Select from Drop Down","Select from Drop Down","Select from Drop Down"]
[109,null,null,"Select from Drop Down","Select from Drop Down","Select from Drop Down",null,null,null,null,null,null,null,null,null,null,null,null,"Select from Drop Down","Select from Drop Down","Select from Drop Down"]
[110,null,null,"Select from Drop Down","Select from Drop Down","Select from Drop Down",null,null,null,null,null,null,null,null,null,null,null,null,"Select from Drop Down","Select from Drop Down","Select from Drop Down"]
[111,null,null,"Select from Drop Down","Select from Drop Down","Select from Drop Down",null,null,null,null,null,null,null,null,null,null,null,null,"Select from Drop Down","Select from Drop Down","Select from Drop Down"]
[112,null,null,"Select from Drop Down","Select from Drop Down","Select from Drop Down",null,null,null,null,null,null,null,null,null,null,null,null,"Select from Drop Down","Select from Drop Down","Select from Drop Down"]
[113,null,null,"Select from Drop Down","Select from Drop Down","Select from Drop Down",null,null,null,null,null,null,null,null,null,null,null,null,"Select from Drop Down","Select from Drop Down","Select from Drop Down"]
[114,null,null,"Select from Drop Down","Select from Drop Down","Select from Drop Down",null,null,null,null,null,null,null,null,null,null,null,null,"Select from Drop Down","Select from Drop Down","Select from Drop Down"]
[115,null,null,"Select from Drop Down","Select from Drop Down","Select from Drop Down",null,null,null,null,null,null,null,null,null,null,null,null,"Select from Drop Down","Select from Drop Down","Select from Drop Down"]
[116,null,null,"Select from Drop Down","Select from Drop Down","Select from Drop Down",null,null,null,null,null,null,null,null,null,null,null,null,"Select from Drop Down","Select from Drop Down","Select from Drop Down"]
[117,null,null,"Select from Drop Down","Select from Drop Down","Select from Drop Down",null,null,null,null,null,null,null,null,null,null,null,null,"Select from Drop Down","Select from Drop Down","Select from Drop Down"]
[118,null,null,"Select from Drop Down","Select from Drop Down","Select from Drop Down",null,null,null,null,null,null,null,null,null,null,null,null,"Select from Drop Down","Select from Drop Down","Select from Drop Down"]
[119,null,null,"Select from Drop Down","Select from Drop Down","Select from Drop Down",null,null,null,null,null,null,null,null,null,null,null,null,"Select from Drop Down","Select from Drop Down","Select from Drop Down"]
[120,null,null,"Select from Drop Down","Select from Drop Down","Select from Drop Down",null,null,null,null,null,null,null,null,null,null,null,null,"Select from Drop Down","Select from Drop Down","Select from Drop Down"]
[121,null,null,"Select from Drop Down","Select from Drop Down","Select from Drop Down",null,null,null,null,null,null,null,null,null,null,null,null,"Select from Drop Down","Select from Drop Down","Select from Drop Down"]
[122,null,null,"Select from Drop Down","Select from Drop Down","Select from Drop Down",null,null,null,null,null,null,null,null,null,null,null,null,"Select from Drop Down","Select from Drop Down","Select from Drop Down"]
[123,null,null,"Select from Drop Down","Select from Drop Down","Select from Drop Down",null,null,null,null,null,null,null,null,null,null,null,null,"Select from Drop Down","Select from Drop Down","Select from Drop Down"]
[124,null,null,"Select from Drop Down","Select from Drop Down","Select from Drop Down",null,null,null,null,null,null,null,null,null,null,null,null,"Select from Drop Down","Select from Drop Down","Select from Drop Down"]
[125,null,null,"Select from Drop Down","Select from Drop Down","Select from Drop Down",null,null,null,null,null,null,null,null,null,null,null,null,"Select from Drop Down","Select from Drop Down","Select from Drop Down"]
[126,null,null,"Select from Drop Down","Select from Drop Down","Select from Drop Down",null,null,null,null,null,null,null,null,null,null,null,null,"Select from Drop Down","Select from Drop Down","Select from Drop Down"]
[127,null,null,"Select from Drop Down","Select from Drop Down","Select from Drop Down",null,null,null,null,null,null,null,null,null,null,null,null,"Select from Drop Down","Select from Drop Down","Select from Drop Down"]
[128,null,null,"Select from Drop Down","Select from Drop Down","Select from Drop Down",null,null,null,null,null,null,null,null,null,null,null,null,"Select from Drop Down","Select from Drop Down","Select from Drop Down"]
[129,null,null,"Select from Drop Down","Select from Drop Down","Select from Drop Down",null,null,null,null,null,null,null,null,null,null,null,null,"Select from Drop Down","Select from Drop Down","Select from Drop Down"]
[130,null,null,"Select from Drop Down","Select from Drop Down","Select from Drop Down",null,null,null,null,null,null,null,null,null,null,null,null,"Select from Drop Down","Select from Drop Down","Select from Drop Down"]
[{"$f":"A140+1","v":131},null,null,"Select from Drop Down","Select from Drop Down","Select from Drop Down",null,null,null,null,null,null,null,null,null,null,null,null,"Select from Drop Down","Select from Drop Down","Select from Drop Down"]
[132,null,null,"Select from Drop Down","Select from Drop Down","Select from Drop Down",null,null,null,null,null,null,null,null,null,null,null,null,"Select from Drop Down","Select from Drop Down","Select from Drop Down"]
[133,null,null,"Select from Drop Down","Select from Drop Down","Select from Drop Down",null,null,null,null,null,null,null,null,null,null,null,null,"Select from Drop Down","Select from Drop Down","Select from Drop Down"]
[134,null,null,"Select from Drop Down","Select from Drop Down","Select from Drop Down",null,null,null,null,null,null,null,null,null,null,null,null,"Select from Drop Down","Select from Drop Down","Select from Drop Down"]
[135,null,null,"Select from Drop Down","Select from Drop Down","Select from Drop Down",null,null,null,null,null,null,null,null,null,null,null,null,"Select from Drop Down","Select from Drop Down","Select from Drop Down"]
[136,null,null,"Select from Drop Down","Select from Drop Down","Select from Drop Down",null,null,null,null,null,null,null,null,null,null,null,null,"Select from Drop Down","Select from Drop Down","Select from Drop Down"]
[137,null,null,"Select from Drop Down","Select from Drop Down","Select from Drop Down",null,null,null,null,null,null,null,null,null,null,null,null,"Select from Drop Down","Select from Drop Down","Select from Drop Down"]
[138,null,null,"Select from Drop Down","Select from Drop Down","Select from Drop Down",null,null,null,null,null,null,null,null,null,null,null,null,"Select from Drop Down","Select from Drop Down","Select from Drop Down"]
[139,null,null,"Select from Drop Down","Select from Drop Down","Select from Drop Down",null,null,null,null,null,null,null,null,null,null,null,null,"Select from Drop Down","Select from Drop Down","Select from Drop Down"]
[140,null,null,"Select from Drop Down","Select from Drop Down","Select from Drop Down",null,null,null,null,null,null,null,null,null,null,null,null,"Select from Drop Down","Select from Drop Down","Select from Drop Down"]
[141,null,null,"Select from Drop Down","Select from Drop Down","Select from Drop Down",null,null,null,null,null,null,null,null,null,null,null,null,"Select from Drop Down","Select from Drop Down","Select from Drop Down"]
[142,null,null,"Select from Drop Down","Select from Drop Down","Select from Drop Down",null,null,null,null,null,null,null,null,null,null,null,null,"Select from Drop Down","Select from Drop Down","Select from Drop Down"]
[143,null,null,"Select from Drop Down","Select from Drop Down","Select from Drop Down",null,null,null,null,null,null,null,null,null,null,null,null,"Select from Drop Down","Select from Drop Down","Select from Drop Down"]
[144,null,null,"Select from Drop Down","Select from Drop Down","Select from Drop Down",null,null,null,null,null,null,null,null,null,null,null,null,"Select from Drop Down","Select from Drop Down","Select from Drop Down"]
[145,null,null,"Select from Drop Down","Select from Drop Down","Select from Drop Down",null,null,null,null,null,null,null,null,null,null,null,null,"Select from Drop Down","Select from Drop Down","Select from Drop Down"]
[146,null,null,"Select from Drop Down","Select from Drop Down","Select from Drop Down",null,null,null,null,null,null,null,null,null,null,null,null,"Select from Drop Down","Select from Drop Down","Select from Drop Down"]
[147,null,null,"Select from Drop Down","Select from Drop Down","Select from Drop Down",null,null,null,null,null,null,null,null,null,null,null,null,"Select from Drop Down","Select from Drop Down","Select from Drop Down"]
[148,null,null,"Select from Drop Down","Select from Drop Down","Select from Drop Down",null,null,null,null,null,null,null,null,null,null,null,null,"Select from Drop Down","Select from Drop Down","Select from Drop Down"]
[149,null,null,"Select from Drop Down","Select from Drop Down","Select from Drop Down",null,null,null,null,null,null,null,null,null,null,null,null,"Select from Drop Down","Select from Drop Down","Select from Drop Down"]
[150,null,null,"Select from Drop Down","Select from Drop Down","Select from Drop Down",null,null,null,null,null,null,null,null,null,null,null,null,"Select from Drop Down","Select from Drop Down","Select from Drop Down"]
[151,null,null,"Select from Drop Down","Select from Drop Down","Select from Drop Down",null,null,null,null,null,null,null,null,null,null,null,null,"Select from Drop Down","Select from Drop Down","Select from Drop Down"]
[152,null,null,"Select from Drop Down","Select from Drop Down","Select from Drop Down",null,null,null,null,null,null,null,null,null,null,null,null,"Select from Drop Down","Select from Drop Down","Select from Drop Down"]
[153,null,null,"Select from Drop Down","Select from Drop Down","Select from Drop Down",null,null,null,null,null,null,null,null,null,null,null,null,"Select from Drop Down","Select from Drop Down","Select from Drop Down"]
[154,null,null,"Select from Drop Down","Select from Drop Down","Select from Drop Down",null,null,null,null,null,null,null,null,null,null,null,null,"Select from Drop Down","Select from Drop Down","Select from Drop Down"]
[155,null,null,"Select from Drop Down","Select from Drop Down","Select from Drop Down",null,null,null,null,null,null,null,null,null,null,null,null,"Select from Drop Down","Select from Drop Down","Select from Drop Down"]
[156,null,null,"Select from Drop Down","Select from Drop Down","Select from Drop Down",null,null,null,null,null,null,null,null,null,null,null,null,"Select from Drop Down","Select from Drop Down","Select from Drop Down"]
[157,null,null,"Select from Drop Down","Select from Drop Down","Select from Drop Down",null,null,null,null,null,null,null,null,null,null,null,null,"Select from Drop Down","Select from Drop Down","Select from Drop Down"]
[158,null,null,"Select from Drop Down","Select from Drop Down","Select from Drop Down",null,null,null,null,null,null,null,null,null,null,null,null,"Select from Drop Down","Select from Drop Down","Select from Drop Down"]
[159,null,null,"Select from Drop Down","Select from Drop Down","Select from Drop Down",null,null,null,null,null,null,null,null,null,null,null,null,"Select from Drop Down","Select from Drop Down","Select from Drop Down"]
[160,null,null,"Select from Drop Down","Select from Drop Down","Select from Drop Down",null,null,null,null,null,null,null,null,null,null,null,null,"Select from Drop Down","Select from Drop Down","Select from Drop Down"]
[161,null,null,"Select from Drop Down","Select from Drop Down","Select from Drop Down",null,null,null,null,null,null,null,null,null,null,null,null,"Select from Drop Down","Select from Drop Down","Select from Drop Down"]
[162,null,null,"Select from Drop Down","Select from Drop Down","Select from Drop Down",null,null,null,null,null,null,null,null,null,null,null,null,"Select from Drop Down","Select from Drop Down","Select from Drop Down"]
[163,null,null,"Select from Drop Down","Select from Drop Down","Select from Drop Down",null,null,null,null,null,null,null,null,null,null,null,null,"Select from Drop Down","Select from Drop Down","Select from Drop Down"]
[164,null,null,"Select from Drop Down","Select from Drop Down","Select from Drop Down",null,null,null,null,null,null,null,null,null,null,null,null,"Select from Drop Down","Select from Drop Down","Select from Drop Down"]
[165,null,null,"Select from Drop Down","Select from Drop Down","Select from Drop Down",null,null,null,null,null,null,null,null,null,null,null,null,"Select from Drop Down","Select from Drop Down","Select from Drop Down"]
[166,null,null,"Select from Drop Down","Select from Drop Down","Select from Drop Down",null,null,null,null,null,null,null,null,null,null,null,null,"Select from Drop Down","Select from Drop Down","Select from Drop Down"]
[167,null,null,"Select from Drop Down","Select from Drop Down","Select from Drop Down",null,null,null,null,null,null,null,null,null,null,null,null,"Select from Drop Down","Select from Drop Down","Select from Drop Down"]
[168,null,null,"Select from Drop Down","Select from Drop Down","Select from Drop Down",null,null,null,null,null,null,null,null,null,null,null,null,"Select from Drop Down","Select from Drop Down","Select from Drop Down"]
[169,null,null,"Select from Drop Down","Select from Drop Down","Select from Drop Down",null,null,null,null,null,null,null,null,null,null,null,null,"Select from Drop Down","Select from Drop Down","Select from Drop Down"]
[170,null,null,"Select from Drop Down","Select from Drop Down","Select from Drop Down",null,null,null,null,null,null,null,null,null,null,null,null,"Select from Drop Down","Select from Drop Down","Select from Drop Down"]
[171,null,null,"Select from Drop Down","Select from Drop Down","Select from Drop Down",null,null,null,null,null,null,null,null,null,null,null,null,"Select from Drop Down","Select from Drop Down","Select from Drop Down"]
[172,null,null,"Select from Drop Down","Select from Drop Down","Select from Drop Down",null,null,null,null,null,null,null,null,null,null,null,null,"Select from Drop Down","Select from Drop Down","Select from Drop Down"]
[173,null,null,"Select from Drop Down","Select from Drop Down","Select from Drop Down",null,null,null,null,null,null,null,null,null,null,null,null,"Select from Drop Down","Select from Drop Down","Select from Drop Down"]
[174,null,null,"Select from Drop Down","Select from Drop Down","Select from Drop Down",null,null,null,null,null,null,null,null,null,null,null,null,"Select from Drop Down","Select from Drop Down","Select from Drop Down"]
[175,null,null,"Select from Drop Down","Select from Drop Down","Select from Drop Down",null,null,null,null,null,null,null,null,null,null,null,null,"Select from Drop Down","Select from Drop Down","Select from Drop Down"]
[176,null,null,"Select from Drop Down","Select from Drop Down","Select from Drop Down",null,null,null,null,null,null,null,null,null,null,null,null,"Select from Drop Down","Select from Drop Down","Select from Drop Down"]
[177,null,null,"Select from Drop Down","Select from Drop Down","Select from Drop Down",null,null,null,null,null,null,null,null,null,null,null,null,"Select from Drop Down","Select from Drop Down","Select from Drop Down"]
[178,null,null,"Select from Drop Down","Select from Drop Down","Select from Drop Down",null,null,null,null,null,null,null,null,null,null,null,null,"Select from Drop Down","Select from Drop Down","Select from Drop Down"]
[179,null,null,"Select from Drop Down","Select from Drop Down","Select from Drop Down",null,null,null,null,null,null,null,null,null,null,null,null,"Select from Drop Down","Select from Drop Down","Select from Drop Down"]
[180,null,null,"Select from Drop Down","Select from Drop Down","Select from Drop Down",null,null,null,null,null,null,null,null,null,null,null,null,"Select from Drop Down","Select from Drop Down","Select from Drop Down"]
[181,null,null,"Select from Drop Down","Select from Drop Down","Select from Drop Down",null,null,null,null,null,null,null,null,null,null,null,null,"Select from Drop Down","Select from Drop Down","Select from Drop Down"]
[182,null,null,"Select from Drop Down","Select from Drop Down","Select from Drop Down",null,null,null,null,null,null,null,null,null,null,null,null,"Select from Drop Down","Select from Drop Down","Select from Drop Down"]
[183,null,null,"Select from Drop Down","Select from Drop Down","Select from Drop Down",null,null,null,null,null,null,null,null,null,null,null,null,"Select from Drop Down","Select from Drop Down","Select from Drop Down"]
[184,null,null,"Select from Drop Down","Select from Drop Down","Select from Drop Down",null,null,null,null,null,null,null,null,null,null,null,null,"Select from Drop Down","Select from Drop Down","Select from Drop Down"]
[185,null,null,"Select from Drop Down","Select from Drop Down","Select from Drop Down",null,null,null,null,null,null,null,null,null,null,null,null,"Select from Drop Down","Select from Drop Down","Select from Drop Down"]
[186,null,null,"Select from Drop Down","Select from Drop Down","Select from Drop Down",null,null,null,null,null,null,null,null,null,null,null,null,"Select from Drop Down","Select from Drop Down","Select from Drop Down"]
[187,null,null,"Select from Drop Down","Select from Drop Down","Select from Drop Down",null,null,null,null,null,null,null,null,null,null,null,null,"Select from Drop Down","Select from Drop Down","Select from Drop Down"]
[188,null,null,"Select from Drop Down","Select from Drop Down","Select from Drop Down",null,null,null,null,null,null,null,null,null,null,null,null,"Select from Drop Down","Select from Drop Down","Select from Drop Down"]
[189,null,null,"Select from Drop Down","Select from Drop Down","Select from Drop Down",null,null,null,null,null,null,null,null,null,null,null,null,"Select from Drop Down","Select from Drop Down","Select from Drop Down"]
[190,null,null,"Select from Drop Down","Select from Drop Down","Select from Drop Down",null,null,null,null,null,null,null,null,null,null,null,null,"Select from Drop Down","Select from Drop Down","Select from Drop Down"]
[191,null,null,"Select from Drop Down","Select from Drop Down","Select from Drop Down",null,null,null,null,null,null,null,null,null,null,null,null,"Select from Drop Down","Select from Drop Down","Select from Drop Down"]
[192,null,null,"Select from Drop Down","Select from Drop Down","Select from Drop Down",null,null,null,null,null,null,null,null,null,null,null,null,"Select from Drop Down","Select from Drop Down","Select from Drop Down"]
[193,null,null,"Select from Drop Down","Select from Drop Down","Select from Drop Down",null,null,null,null,null,null,null,null,null,null,null,null,"Select from Drop Down","Select from Drop Down","Select from Drop Down"]
[194,null,null,"Select from Drop Down","Select from Drop Down","Select from Drop Down",null,null,null,null,null,null,null,null,null,null,null,null,"Select from Drop Down","Select from Drop Down","Select from Drop Down"]
[{"$f":"A204+1","v":195},null,null,"Select from Drop Down","Select from Drop Down","Select from Drop Down",null,null,null,null,null,null,null,null,null,null,null,null,"Select from Drop Down","Select from Drop Down","Select from Drop Down"]
[196,null,null,"Select from Drop Down","Select from Drop Down","Select from Drop Down",null,null,null,null,null,null,null,null,null,null,null,null,"Select from Drop Down","Select from Drop Down","Select from Drop Down"]
[197,null,null,"Select from Drop Down","Select from Drop Down","Select from Drop Down",null,null,null,null,null,null,null,null,null,null,null,null,"Select from Drop Down","Select from Drop Down","Select from Drop Down"]
[198,null,null,"Select from Drop Down","Select from Drop Down","Select from Drop Down",null,null,null,null,null,null,null,null,null,null,null,null,"Select from Drop Down","Select from Drop Down","Select from Drop Down"]
[199,null,null,"Select from Drop Down","Select from Drop Down","Select from Drop Down",null,null,null,null,null,null,null,null,null,null,null,null,"Select from Drop Down","Select from Drop Down","Select from Drop Down"]
[200,null,null,"Select from Drop Down","Select from Drop Down","Select from Drop Down",null,null,null,null,null,null,null,null,null,null,null,null,"Select from Drop Down","Select from Drop Down","Select from Drop Down"]
[201,null,null,"Select from Drop Down","Select from Drop Down","Select from Drop Down",null,null,null,null,null,null,null,null,null,null,null,null,"Select from Drop Down","Select from Drop Down","Select from Drop Down"]
[202,null,null,"Select from Drop Down","Select from Drop Down","Select from Drop Down",null,null,null,null,null,null,null,null,null,null,null,null,"Select from Drop Down","Select from Drop Down","Select from Drop Down"]
[203,null,null,"Select from Drop Down","Select from Drop Down","Select from Drop Down",null,null,null,null,null,null,null,null,null,null,null,null,"Select from Drop Down","Select from Drop Down","Select from Drop Down"]
[204,null,null,"Select from Drop Down","Select from Drop Down","Select from Drop Down",null,null,null,null,null,null,null,null,null,null,null,null,"Select from Drop Down","Select from Drop Down","Select from Drop Down"]
[205,null,null,"Select from Drop Down","Select from Drop Down","Select from Drop Down",null,null,null,null,null,null,null,null,null,null,null,null,"Select from Drop Down","Select from Drop Down","Select from Drop Down"]
[206,null,null,"Select from Drop Down","Select from Drop Down","Select from Drop Down",null,null,null,null,null,null,null,null,null,null,null,null,"Select from Drop Down","Select from Drop Down","Select from Drop Down"]
[207,null,null,"Select from Drop Down","Select from Drop Down","Select from Drop Down",null,null,null,null,null,null,null,null,null,null,null,null,"Select from Drop Down","Select from Drop Down","Select from Drop Down"]
[208,null,null,"Select from Drop Down","Select from Drop Down","Select from Drop Down",null,null,null,null,null,null,null,null,null,null,null,null,"Select from Drop Down","Select from Drop Down","Select from Drop Down"]
[209,null,null,"Select from Drop Down","Select from Drop Down","Select from Drop Down",null,null,null,null,null,null,null,null,null,null,null,null,"Select from Drop Down","Select from Drop Down","Select from Drop Down"]
[210,null,null,"Select from Drop Down","Select from Drop Down","Select from Drop Down",null,null,null,null,null,null,null,null,null,null,null,null,"Select from Drop Down","Select from Drop Down","Select from Drop Down"]
[211,null,null,"Select from Drop Down","Select from Drop Down","Select from Drop Down",null,null,null,null,null,null,null,null,null,null,null,null,"Select from Drop Down","Select from Drop Down","Select from Drop Down"]
[212,null,null,"Select from Drop Down","Select from Drop Down","Select from Drop Down",null,null,null,null,null,null,null,null,null,null,null,null,"Select from Drop Down","Select from Drop Down","Select from Drop Down"]
[213,null,null,"Select from Drop Down","Select from Drop Down","Select from Drop Down",null,null,null,null,null,null,null,null,null,null,null,null,"Select from Drop Down","Select from Drop Down","Select from Drop Down"]
[214,null,null,"Select from Drop Down","Select from Drop Down","Select from Drop Down",null,null,null,null,null,null,null,null,null,null,null,null,"Select from Drop Down","Select from Drop Down","Select from Drop Down"]
[215,null,null,"Select from Drop Down","Select from Drop Down","Select from Drop Down",null,null,null,null,null,null,null,null,null,null,null,null,"Select from Drop Down","Select from Drop Down","Select from Drop Down"]
[216,null,null,"Select from Drop Down","Select from Drop Down","Select from Drop Down",null,null,null,null,null,null,null,null,null,null,null,null,"Select from Drop Down","Select from Drop Down","Select from Drop Down"]
[217,null,null,"Select from Drop Down","Select from Drop Down","Select from Drop Down",null,null,null,null,null,null,null,null,null,null,null,null,"Select from Drop Down","Select from Drop Down","Select from Drop Down"]
[218,null,null,"Select from Drop Down","Select from Drop Down","Select from Drop Down",null,null,null,null,null,null,null,null,null,null,null,null,"Select from Drop Down","Select from Drop Down","Select from Drop Down"]
[219,null,null,"Select from Drop Down","Select from Drop Down","Select from Drop Down",null,null,null,null,null,null,null,null,null,null,null,null,"Select from Drop Down","Select from Drop Down","Select from Drop Down"]
[220,null,null,"Select from Drop Down","Select from Drop Down","Select from Drop Down",null,null,null,null,null,null,null,null,null,null,null,null,"Select from Drop Down","Select from Drop Down","Select from Drop Down"]
[221,null,null,"Select from Drop Down","Select from Drop Down","Select from Drop Down",null,null,null,null,null,null,null,null,null,null,null,null,"Select from Drop Down","Select from Drop Down","Select from Drop Down"]
[222,null,null,"Select from Drop Down","Select from Drop Down","Select from Drop Down",null,null,null,null,null,null,null,null,null,null,null,null,"Select from Drop Down","Select from Drop Down","Select from Drop Down"]
[223,null,null,"Select from Drop Down","Select from Drop Down","Select from Drop Down",null,null,null,null,null,null,null,null,null,null,null,null,"Select from Drop Down","Select from Drop Down","Select from Drop Down"]
[224,null,null,"Select from Drop Down","Select from Drop Down","Select from Drop Down",null,null,null,null,null,null,null,null,null,null,null,null,"Select from Drop Down","Select from Drop Down","Select from Drop Down"]
[225,null,null,"Select from Drop Down","Select from Drop Down","Select from Drop Down",null,null,null,null,null,null,null,null,null,null,null,null,"Select from Drop Down","Select from Drop Down","Select from Drop Down"]
[226,null,null,"Select from Drop Down","Select from Drop Down","Select from Drop Down",null,null,null,null,null,null,null,null,null,null,null,null,"Select from Drop Down","Select from Drop Down","Select from Drop Down"]
[227,null,null,"Select from Drop Down","Select from Drop Down","Select from Drop Down",null,null,null,null,null,null,null,null,null,null,null,null,"Select from Drop Down","Select from Drop Down","Select from Drop Down"]
[228,null,null,"Select from Drop Down","Select from Drop Down","Select from Drop Down",null,null,null,null,null,null,null,null,null,null,null,null,"Select from Drop Down","Select from Drop Down","Select from Drop Down"]
[229,null,null,"Select from Drop Down","Select from Drop Down","Select from Drop Down",null,null,null,null,null,null,null,null,null,null,null,null,"Select from Drop Down","Select from Drop Down","Select from Drop Down"]
[230,null,null,"Select from Drop Down","Select from Drop Down","Select from Drop Down",null,null,null,null,null,null,null,null,null,null,null,null,"Select from Drop Down","Select from Drop Down","Select from Drop Down"]
[231,null,null,"Select from Drop Down","Select from Drop Down","Select from Drop Down",null,null,null,null,null,null,null,null,null,null,null,null,"Select from Drop Down","Select from Drop Down","Select from Drop Down"]
[232,null,null,"Select from Drop Down","Select from Drop Down","Select from Drop Down",null,null,null,null,null,null,null,null,null,null,null,null,"Select from Drop Down","Select from Drop Down","Select from Drop Down"]
[233,null,null,"Select from Drop Down","Select from Drop Down","Select from Drop Down",null,null,null,null,null,null,null,null,null,null,null,null,"Select from Drop Down","Select from Drop Down","Select from Drop Down"]
[234,null,null,"Select from Drop Down","Select from Drop Down","Select from Drop Down",null,null,null,null,null,null,null,null,null,null,null,null,"Select from Drop Down","Select from Drop Down","Select from Drop Down"]
[235,null,null,"Select from Drop Down","Select from Drop Down","Select from Drop Down",null,null,null,null,null,null,null,null,null,null,null,null,"Select from Drop Down","Select from Drop Down","Select from Drop Down"]
[236,null,null,"Select from Drop Down","Select from Drop Down","Select from Drop Down",null,null,null,null,null,null,null,null,null,null,null,null,"Select from Drop Down","Select from Drop Down","Select from Drop Down"]
[237,null,null,"Select from Drop Down","Select from Drop Down","Select from Drop Down",null,null,null,null,null,null,null,null,null,null,null,null,"Select from Drop Down","Select from Drop Down","Select from Drop Down"]
[238,null,null,"Select from Drop Down","Select from Drop Down","Select from Drop Down",null,null,null,null,null,null,null,null,null,null,null,null,"Select from Drop Down","Select from Drop Down","Select from Drop Down"]
[239,null,null,"Select from Drop Down","Select from Drop Down","Select from Drop Down",null,null,null,null,null,null,null,null,null,null,null,null,"Select from Drop Down","Select from Drop Down","Select from Drop Down"]
[240,null,null,"Select from Drop Down","Select from Drop Down","Select from Drop Down",null,null,null,null,null,null,null,null,null,null,null,null,"Select from Drop Down","Select from Drop Down","Select from Drop Down"]
[241,null,null,"Select from Drop Down","Select from Drop Down","Select from Drop Down",null,null,null,null,null,null,null,null,null,null,null,null,"Select from Drop Down","Select from Drop Down","Select from Drop Down"]
[242,null,null,"Select from Drop Down","Select from Drop Down","Select from Drop Down",null,null,null,null,null,null,null,null,null,null,null,null,"Select from Drop Down","Select from Drop Down","Select from Drop Down"]
[243,null,null,"Select from Drop Down","Select from Drop Down","Select from Drop Down",null,null,null,null,null,null,null,null,null,null,null,null,"Select from Drop Down","Select from Drop Down","Select from Drop Down"]
[244,null,null,"Select from Drop Down","Select from Drop Down","Select from Drop Down",null,null,null,null,null,null,null,null,null,null,null,null,"Select from Drop Down","Select from Drop Down","Select from Drop Down"]
[245,null,null,"Select from Drop Down","Select from Drop Down","Select from Drop Down",null,null,null,null,null,null,null,null,null,null,null,null,"Select from Drop Down","Select from Drop Down","Select from Drop Down"]
[246,null,null,"Select from Drop Down","Select from Drop Down","Select from Drop Down",null,null,null,null,null,null,null,null,null,null,null,null,"Select from Drop Down","Select from Drop Down","Select from Drop Down"]
[247,null,null,"Select from Drop Down","Select from Drop Down","Select from Drop Down",null,null,null,null,null,null,null,null,null,null,null,null,"Select from Drop Down","Select from Drop Down","Select from Drop Down"]
[248,null,null,"Select from Drop Down","Select from Drop Down","Select from Drop Down",null,null,null,null,null,null,null,null,null,null,null,null,"Select from Drop Down","Select from Drop Down","Select from Drop Down"]
[249,null,null,"Select from Drop Down","Select from Drop Down","Select from Drop Down",null,null,null,null,null,null,null,null,null,null,null,null,"Select from Drop Down","Select from Drop Down","Select from Drop Down"]
[250,null,null,"Select from Drop Down","Select from Drop Down","Select from Drop Down",null,null,null,null,null,null,null,null,null,null,null,null,"Select from Drop Down","Select from Drop Down","Select from Drop Down"]
[251,null,null,"Select from Drop Down","Select from Drop Down","Select from Drop Down",null,null,null,null,null,null,null,null,null,null,null,null,"Select from Drop Down","Select from Drop Down","Select from Drop Down"]
[252,null,null,"Select from Drop Down","Select from Drop Down","Select from Drop Down",null,null,null,null,null,null,null,null,null,null,null,null,"Select from Drop Down","Select from Drop Down","Select from Drop Down"]
[253,null,null,"Select from Drop Down","Select from Drop Down","Select from Drop Down",null,null,null,null,null,null,null,null,null,null,null,null,"Select from Drop Down","Select from Drop Down","Select from Drop Down"]
[254,null,null,"Select from Drop Down","Select from Drop Down","Select from Drop Down",null,null,null,null,null,null,null,null,null,null,null,null,"Select from Drop Down","Select from Drop Down","Select from Drop Down"]
[255,null,null,"Select from Drop Down","Select from Drop Down","Select from Drop Down",null,null,null,null,null,null,null,null,null,null,null,null,"Select from Drop Down","Select from Drop Down","Select from Drop Down"]
[256,null,null,"Select from Drop Down","Select from Drop Down","Select from Drop Down",null,null,null,null,null,null,null,null,null,null,null,null,"Select from Drop Down","Select from Drop Down","Select from Drop Down"]
[257,null,null,"Select from Drop Down","Select from Drop Down","Select from Drop Down",null,null,null,null,null,null,null,null,null,null,null,null,"Select from Drop Down","Select from Drop Down","Select from Drop Down"]
[258,null,null,"Select from Drop Down","Select from Drop Down","Select from Drop Down",null,null,null,null,null,null,null,null,null,null,null,null,"Select from Drop Down","Select from Drop Down","Select from Drop Down"]
[{"$f":"A268+1","v":259},null,null,"Select from Drop Down","Select from Drop Down","Select from Drop Down",null,null,null,null,null,null,null,null,null,null,null,null,"Select from Drop Down","Select from Drop Down","Select from Drop Down"]
[260,null,null,"Select from Drop Down","Select from Drop Down","Select from Drop Down",null,null,null,null,null,null,null,null,null,null,null,null,"Select from Drop Down","Select from Drop Down","Select from Drop Down"]
[261,null,null,"Select from Drop Down","Select from Drop Down","Select from Drop Down",null,null,null,null,null,null,null,null,null,null,null,null,"Select from Drop Down","Select from Drop Down","Select from Drop Down"]
[262,null,null,"Select from Drop Down","Select from Drop Down","Select from Drop Down",null,null,null,null,null,null,null,null,null,null,null,null,"Select from Drop Down","Select from Drop Down","Select from Drop Down"]
[263,null,null,"Select from Drop Down","Select from Drop Down","Select from Drop Down",null,null,null,null,null,null,null,null,null,null,null,null,"Select from Drop Down","Select from Drop Down","Select from Drop Down"]
[264,null,null,"Select from Drop Down","Select from Drop Down","Select from Drop Down",null,null,null,null,null,null,null,null,null,null,null,null,"Select from Drop Down","Select from Drop Down","Select from Drop Down"]
[265,null,null,"Select from Drop Down","Select from Drop Down","Select from Drop Down",null,null,null,null,null,null,null,null,null,null,null,null,"Select from Drop Down","Select from Drop Down","Select from Drop Down"]
[266,null,null,"Select from Drop Down","Select from Drop Down","Select from Drop Down",null,null,null,null,null,null,null,null,null,null,null,null,"Select from Drop Down","Select from Drop Down","Select from Drop Down"]
[267,null,null,"Select from Drop Down","Select from Drop Down","Select from Drop Down",null,null,null,null,null,null,null,null,null,null,null,null,"Select from Drop Down","Select from Drop Down","Select from Drop Down"]
[268,null,null,"Select from Drop Down","Select from Drop Down","Select from Drop Down",null,null,null,null,null,null,null,null,null,null,null,null,"Select from Drop Down","Select from Drop Down","Select from Drop Down"]
[269,null,null,"Select from Drop Down","Select from Drop Down","Select from Drop Down",null,null,null,null,null,null,null,null,null,null,null,null,"Select from Drop Down","Select from Drop Down","Select from Drop Down"]
[270,null,null,"Select from Drop Down","Select from Drop Down","Select from Drop Down",null,null,null,null,null,null,null,null,null,null,null,null,"Select from Drop Down","Select from Drop Down","Select from Drop Down"]
[271,null,null,"Select from Drop Down","Select from Drop Down","Select from Drop Down",null,null,null,null,null,null,null,null,null,null,null,null,"Select from Drop Down","Select from Drop Down","Select from Drop Down"]
[272,null,null,"Select from Drop Down","Select from Drop Down","Select from Drop Down",null,null,null,null,null,null,null,null,null,null,null,null,"Select from Drop Down","Select from Drop Down","Select from Drop Down"]
[273,null,null,"Select from Drop Down","Select from Drop Down","Select from Drop Down",null,null,null,null,null,null,null,null,null,null,null,null,"Select from Drop Down","Select from Drop Down","Select from Drop Down"]
[274,null,null,"Select from Drop Down","Select from Drop Down","Select from Drop Down",null,null,null,null,null,null,null,null,null,null,null,null,"Select from Drop Down","Select from Drop Down","Select from Drop Down"]
[275,null,null,"Select from Drop Down","Select from Drop Down","Select from Drop Down",null,null,null,null,null,null,null,null,null,null,null,null,"Select from Drop Down","Select from Drop Down","Select from Drop Down"]
[276,null,null,"Select from Drop Down","Select from Drop Down","Select from Drop Down",null,null,null,null,null,null,null,null,null,null,null,null,"Select from Drop Down","Select from Drop Down","Select from Drop Down"]
[277,null,null,"Select from Drop Down","Select from Drop Down","Select from Drop Down",null,null,null,null,null,null,null,null,null,null,null,null,"Select from Drop Down","Select from Drop Down","Select from Drop Down"]
[278,null,null,"Select from Drop Down","Select from Drop Down","Select from Drop Down",null,null,null,null,null,null,null,null,null,null,null,null,"Select from Drop Down","Select from Drop Down","Select from Drop Down"]
[279,null,null,"Select from Drop Down","Select from Drop Down","Select from Drop Down",null,null,null,null,null,null,null,null,null,null,null,null,"Select from Drop Down","Select from Drop Down","Select from Drop Down"]
[280,null,null,"Select from Drop Down","Select from Drop Down","Select from Drop Down",null,null,null,null,null,null,null,null,null,null,null,null,"Select from Drop Down","Select from Drop Down","Select from Drop Down"]
[281,null,null,"Select from Drop Down","Select from Drop Down","Select from Drop Down",null,null,null,null,null,null,null,null,null,null,null,null,"Select from Drop Down","Select from Drop Down","Select from Drop Down"]
[282,null,null,"Select from Drop Down","Select from Drop Down","Select from Drop Down",null,null,null,null,null,null,null,null,null,null,null,null,"Select from Drop Down","Select from Drop Down","Select from Drop Down"]
[283,null,null,"Select from Drop Down","Select from Drop Down","Select from Drop Down",null,null,null,null,null,null,null,null,null,null,null,null,"Select from Drop Down","Select from Drop Down","Select from Drop Down"]
[284,null,null,"Select from Drop Down","Select from Drop Down","Select from Drop Down",null,null,null,null,null,null,null,null,null,null,null,null,"Select from Drop Down","Select from Drop Down","Select from Drop Down"]
[285,null,null,"Select from Drop Down","Select from Drop Down","Select from Drop Down",null,null,null,null,null,null,null,null,null,null,null,null,"Select from Drop Down","Select from Drop Down","Select from Drop Down"]
[286,null,null,"Select from Drop Down","Select from Drop Down","Select from Drop Down",null,null,null,null,null,null,null,null,null,null,null,null,"Select from Drop Down","Select from Drop Down","Select from Drop Down"]
[287,null,null,"Select from Drop Down","Select from Drop Down","Select from Drop Down",null,null,null,null,null,null,null,null,null,null,null,null,"Select from Drop Down","Select from Drop Down","Select from Drop Down"]
[288,null,null,"Select from Drop Down","Select from Drop Down","Select from Drop Down",null,null,null,null,null,null,null,null,null,null,null,null,"Select from Drop Down","Select from Drop Down","Select from Drop Down"]
[289,null,null,"Select from Drop Down","Select from Drop Down","Select from Drop Down",null,null,null,null,null,null,null,null,null,null,null,null,"Select from Drop Down","Select from Drop Down","Select from Drop Down"]
[290,null,null,"Select from Drop Down","Select from Drop Down","Select from Drop Down",null,null,null,null,null,null,null,null,null,null,null,null,"Select from Drop Down","Select from Drop Down","Select from Drop Down"]
[291,null,null,"Select from Drop Down","Select from Drop Down","Select from Drop Down",null,null,null,null,null,null,null,null,null,null,null,null,"Select from Drop Down","Select from Drop Down","Select from Drop Down"]
[292,null,null,"Select from Drop Down","Select from Drop Down","Select from Drop Down",null,null,null,null,null,null,null,null,null,null,null,null,"Select from Drop Down","Select from Drop Down","Select from Drop Down"]
[293,null,null,"Select from Drop Down","Select from Drop Down","Select from Drop Down",null,null,null,null,null,null,null,null,null,null,null,null,"Select from Drop Down","Select from Drop Down","Select from Drop Down"]
[294,null,null,"Select from Drop Down","Select from Drop Down","Select from Drop Down",null,null,null,null,null,null,null,null,null,null,null,null,"Select from Drop Down","Select from Drop Down","Select from Drop Down"]
[295,null,null,"Select from Drop Down","Select from Drop Down","Select from Drop Down",null,null,null,null,null,null,null,null,null,null,null,null,"Select from Drop Down","Select from Drop Down","Select from Drop Down"]
[296,null,null,"Select from Drop Down","Select from Drop Down","Select from Drop Down",null,null,null,null,null,null,null,null,null,null,null,null,"Select from Drop Down","Select from Drop Down","Select from Drop Down"]
[297,null,null,"Select from Drop Down","Select from Drop Down","Select from Drop Down",null,null,null,null,null,null,null,null,null,null,null,null,"Select from Drop Down","Select from Drop Down","Select from Drop Down"]
[298,null,null,"Select from Drop Down","Select from Drop Down","Select from Drop Down",null,null,null,null,null,null,null,null,null,null,null,null,"Select from Drop Down","Select from Drop Down","Select from Drop Down"]
[299,null,null,"Select from Drop Down","Select from Drop Down","Select from Drop Down",null,null,null,null,null,null,null,null,null,null,null,null,"Select from Drop Down","Select from Drop Down","Select from Drop Down"]
[300,null,null,"Select from Drop Down","Select from Drop Down","Select from Drop Down",null,null,null,null,null,null,null,null,null,null,null,null,"Select from Drop Down","Select from Drop Down","Select from Drop Down"]
[301,null,null,"Select from Drop Down","Select from Drop Down","Select from Drop Down",null,null,null,null,null,null,null,null,null,null,null,null,"Select from Drop Down","Select from Drop Down","Select from Drop Down"]
[302,null,null,"Select from Drop Down","Select from Drop Down","Select from Drop Down",null,null,null,null,null,null,null,null,null,null,null,null,"Select from Drop Down","Select from Drop Down","Select from Drop Down"]
[303,null,null,"Select from Drop Down","Select from Drop Down","Select from Drop Down",null,null,null,null,null,null,null,null,null,null,null,null,"Select from Drop Down","Select from Drop Down","Select from Drop Down"]
[304,null,null,"Select from Drop Down","Select from Drop Down","Select from Drop Down",null,null,null,null,null,null,null,null,null,null,null,null,"Select from Drop Down","Select from Drop Down","Select from Drop Down"]
[305,null,null,"Select from Drop Down","Select from Drop Down","Select from Drop Down",null,null,null,null,null,null,null,null,null,null,null,null,"Select from Drop Down","Select from Drop Down","Select from Drop Down"]
[306,null,null,"Select from Drop Down","Select from Drop Down","Select from Drop Down",null,null,null,null,null,null,null,null,null,null,null,null,"Select from Drop Down","Select from Drop Down","Select from Drop Down"]
[307,null,null,"Select from Drop Down","Select from Drop Down","Select from Drop Down",null,null,null,null,null,null,null,null,null,null,null,null,"Select from Drop Down","Select from Drop Down","Select from Drop Down"]
[308,null,null,"Select from Drop Down","Select from Drop Down","Select from Drop Down",null,null,null,null,null,null,null,null,null,null,null,null,"Select from Drop Down","Select from Drop Down","Select from Drop Down"]
[309,null,null,"Select from Drop Down","Select from Drop Down","Select from Drop Down",null,null,null,null,null,null,null,null,null,null,null,null,"Select from Drop Down","Select from Drop Down","Select from Drop Down"]
[310,null,null,"Select from Drop Down","Select from Drop Down","Select from Drop Down",null,null,null,null,null,null,null,null,null,null,null,null,"Select from Drop Down","Select from Drop Down","Select from Drop Down"]
[311,null,null,"Select from Drop Down","Select from Drop Down","Select from Drop Down",null,null,null,null,null,null,null,null,null,null,null,null,"Select from Drop Down","Select from Drop Down","Select from Drop Down"]
[312,null,null,"Select from Drop Down","Select from Drop Down","Select from Drop Down",null,null,null,null,null,null,null,null,null,null,null,null,"Select from Drop Down","Select from Drop Down","Select from Drop Down"]
[313,null,null,"Select from Drop Down","Select from Drop Down","Select from Drop Down",null,null,null,null,null,null,null,null,null,null,null,null,"Select from Drop Down","Select from Drop Down","Select from Drop Down"]
[314,null,null,"Select from Drop Down","Select from Drop Down","Select from Drop Down",null,null,null,null,null,null,null,null,null,null,null,null,"Select from Drop Down","Select from Drop Down","Select from Drop Down"]
[315,null,null,"Select from Drop Down","Select from Drop Down","Select from Drop Down",null,null,null,null,null,null,null,null,null,null,null,null,"Select from Drop Down","Select from Drop Down","Select from Drop Down"]
[316,null,null,"Select from Drop Down","Select from Drop Down","Select from Drop Down",null,null,null,null,null,null,null,null,null,null,null,null,"Select from Drop Down","Select from Drop Down","Select from Drop Down"]
[317,null,null,"Select from Drop Down","Select from Drop Down","Select from Drop Down",null,null,null,null,null,null,null,null,null,null,null,null,"Select from Drop Down","Select from Drop Down","Select from Drop Down"]
[318,null,null,"Select from Drop Down","Select from Drop Down","Select from Drop Down",null,null,null,null,null,null,null,null,null,null,null,null,"Select from Drop Down","Select from Drop Down","Select from Drop Down"]
[319,null,null,"Select from Drop Down","Select from Drop Down","Select from Drop Down",null,null,null,null,null,null,null,null,null,null,null,null,"Select from Drop Down","Select from Drop Down","Select from Drop Down"]
[320,null,null,"Select from Drop Down","Select from Drop Down","Select from Drop Down",null,null,null,null,null,null,null,null,null,null,null,null,"Select from Drop Down","Select from Drop Down","Select from Drop Down"]
[321,null,null,"Select from Drop Down","Select from Drop Down","Select from Drop Down",null,null,null,null,null,null,null,null,null,null,null,null,"Select from Drop Down","Select from Drop Down","Select from Drop Down"]
[322,null,null,"Select from Drop Down","Select from Drop Down","Select from Drop Down",null,null,null,null,null,null,null,null,null,null,null,null,"Select from Drop Down","Select from Drop Down","Select from Drop Down"]
[{"$f":"A332+1","v":323},null,null,"Select from Drop Down","Select from Drop Down","Select from Drop Down",null,null,null,null,null,null,null,null,null,null,null,null,"Select from Drop Down","Select from Drop Down","Select from Drop Down"]
[324,null,null,"Select from Drop Down","Select from Drop Down","Select from Drop Down",null,null,null,null,null,null,null,null,null,null,null,null,"Select from Drop Down","Select from Drop Down","Select from Drop Down"]
[325,null,null,"Select from Drop Down","Select from Drop Down","Select from Drop Down",null,null,null,null,null,null,null,null,null,null,null,null,"Select from Drop Down","Select from Drop Down","Select from Drop Down"]
[326,null,null,"Select from Drop Down","Select from Drop Down","Select from Drop Down",null,null,null,null,null,null,null,null,null,null,null,null,"Select from Drop Down","Select from Drop Down","Select from Drop Down"]
[327,null,null,"Select from Drop Down","Select from Drop Down","Select from Drop Down",null,null,null,null,null,null,null,null,null,null,null,null,"Select from Drop Down","Select from Drop Down","Select from Drop Down"]
[328,null,null,"Select from Drop Down","Select from Drop Down","Select from Drop Down",null,null,null,null,null,null,null,null,null,null,null,null,"Select from Drop Down","Select from Drop Down","Select from Drop Down"]
[329,null,null,"Select from Drop Down","Select from Drop Down","Select from Drop Down",null,null,null,null,null,null,null,null,null,null,null,null,"Select from Drop Down","Select from Drop Down","Select from Drop Down"]
[330,null,null,"Select from Drop Down","Select from Drop Down","Select from Drop Down",null,null,null,null,null,null,null,null,null,null,null,null,"Select from Drop Down","Select from Drop Down","Select from Drop Down"]
[331,null,null,"Select from Drop Down","Select from Drop Down","Select from Drop Down",null,null,null,null,null,null,null,null,null,null,null,null,"Select from Drop Down","Select from Drop Down","Select from Drop Down"]
[332,null,null,"Select from Drop Down","Select from Drop Down","Select from Drop Down",null,null,null,null,null,null,null,null,null,null,null,null,"Select from Drop Down","Select from Drop Down","Select from Drop Down"]
[333,null,null,"Select from Drop Down","Select from Drop Down","Select from Drop Down",null,null,null,null,null,null,null,null,null,null,null,null,"Select from Drop Down","Select from Drop Down","Select from Drop Down"]
[334,null,null,"Select from Drop Down","Select from Drop Down","Select from Drop Down",null,null,null,null,null,null,null,null,null,null,null,null,"Select from Drop Down","Select from Drop Down","Select from Drop Down"]
[335,null,null,"Select from Drop Down","Select from Drop Down","Select from Drop Down",null,null,null,null,null,null,null,null,null,null,null,null,"Select from Drop Down","Select from Drop Down","Select from Drop Down"]
[336,null,null,"Select from Drop Down","Select from Drop Down","Select from Drop Down",null,null,null,null,null,null,null,null,null,null,null,null,"Select from Drop Down","Select from Drop Down","Select from Drop Down"]
[337,null,null,"Select from Drop Down","Select from Drop Down","Select from Drop Down",null,null,null,null,null,null,null,null,null,null,null,null,"Select from Drop Down","Select from Drop Down","Select from Drop Down"]
[338,null,null,"Select from Drop Down","Select from Drop Down","Select from Drop Down",null,null,null,null,null,null,null,null,null,null,null,null,"Select from Drop Down","Select from Drop Down","Select from Drop Down"]
[339,null,null,"Select from Drop Down","Select from Drop Down","Select from Drop Down",null,null,null,null,null,null,null,null,null,null,null,null,"Select from Drop Down","Select from Drop Down","Select from Drop Down"]
[340,null,null,"Select from Drop Down","Select from Drop Down","Select from Drop Down",null,null,null,null,null,null,null,null,null,null,null,null,"Select from Drop Down","Select from Drop Down","Select from Drop Down"]
[341,null,null,"Select from Drop Down","Select from Drop Down","Select from Drop Down",null,null,null,null,null,null,null,null,null,null,null,null,"Select from Drop Down","Select from Drop Down","Select from Drop Down"]
[342,null,null,"Select from Drop Down","Select from Drop Down","Select from Drop Down",null,null,null,null,null,null,null,null,null,null,null,null,"Select from Drop Down","Select from Drop Down","Select from Drop Down"]
[343,null,null,"Select from Drop Down","Select from Drop Down","Select from Drop Down",null,null,null,null,null,null,null,null,null,null,null,null,"Select from Drop Down","Select from Drop Down","Select from Drop Down"]
[344,null,null,"Select from Drop Down","Select from Drop Down","Select from Drop Down",null,null,null,null,null,null,null,null,null,null,null,null,"Select from Drop Down","Select from Drop Down","Select from Drop Down"]
[345,null,null,"Select from Drop Down","Select from Drop Down","Select from Drop Down",null,null,null,null,null,null,null,null,null,null,null,null,"Select from Drop Down","Select from Drop Down","Select from Drop Down"]
[346,null,null,"Select from Drop Down","Select from Drop Down","Select from Drop Down",null,null,null,null,null,null,null,null,null,null,null,null,"Select from Drop Down","Select from Drop Down","Select from Drop Down"]
[347,null,null,"Select from Drop Down","Select from Drop Down","Select from Drop Down",null,null,null,null,null,null,null,null,null,null,null,null,"Select from Drop Down","Select from Drop Down","Select from Drop Down"]
[348,null,null,"Select from Drop Down","Select from Drop Down","Select from Drop Down",null,null,null,null,null,null,null,null,null,null,null,null,"Select from Drop Down","Select from Drop Down","Select from Drop Down"]
[349,null,null,"Select from Drop Down","Select from Drop Down","Select from Drop Down",null,null,null,null,null,null,null,null,null,null,null,null,"Select from Drop Down","Select from Drop Down","Select from Drop Down"]
[350,null,null,"Select from Drop Down","Select from Drop Down","Select from Drop Down",null,null,null,null,null,null,null,null,null,null,null,null,"Select from Drop Down","Select from Drop Down","Select from Drop Down"]
[351,null,null,"Select from Drop Down","Select from Drop Down","Select from Drop Down",null,null,null,null,null,null,null,null,null,null,null,null,"Select from Drop Down","Select from Drop Down","Select from Drop Down"]
[352,null,null,"Select from Drop Down","Select from Drop Down","Select from Drop Down",null,null,null,null,null,null,null,null,null,null,null,null,"Select from Drop Down","Select from Drop Down","Select from Drop Down"]
[353,null,null,"Select from Drop Down","Select from Drop Down","Select from Drop Down",null,null,null,null,null,null,null,null,null,null,null,null,"Select from Drop Down","Select from Drop Down","Select from Drop Down"]
[354,null,null,"Select from Drop Down","Select from Drop Down","Select from Drop Down",null,null,null,null,null,null,null,null,null,null,null,null,"Select from Drop Down","Select from Drop Down","Select from Drop Down"]
[355,null,null,"Select from Drop Down","Select from Drop Down","Select from Drop Down",null,null,null,null,null,null,null,null,null,null,null,null,"Select from Drop Down","Select from Drop Down","Select from Drop Down"]
[356,null,null,"Select from Drop Down","Select from Drop Down","Select from Drop Down",null,null,null,null,null,null,null,null,null,null,null,null,"Select from Drop Down","Select from Drop Down","Select from Drop Down"]
[357,null,null,"Select from Drop Down","Select from Drop Down","Select from Drop Down",null,null,null,null,null,null,null,null,null,null,null,null,"Select from Drop Down","Select from Drop Down","Select from Drop Down"]
[358,null,null,"Select from Drop Down","Select from Drop Down","Select from Drop Down",null,null,null,null,null,null,null,null,null,null,null,null,"Select from Drop Down","Select from Drop Down","Select from Drop Down"]
[359,null,null,"Select from Drop Down","Select from Drop Down","Select from Drop Down",null,null,null,null,null,null,null,null,null,null,null,null,"Select from Drop Down","Select from Drop Down","Select from Drop Down"]
[360,null,null,"Select from Drop Down","Select from Drop Down","Select from Drop Down",null,null,null,null,null,null,null,null,null,null,null,null,"Select from Drop Down","Select from Drop Down","Select from Drop Down"]
[361,null,null,"Select from Drop Down","Select from Drop Down","Select from Drop Down",null,null,null,null,null,null,null,null,null,null,null,null,"Select from Drop Down","Select from Drop Down","Select from Drop Down"]
[362,null,null,"Select from Drop Down","Select from Drop Down","Select from Drop Down",null,null,null,null,null,null,null,null,null,null,null,null,"Select from Drop Down","Select from Drop Down","Select from Drop Down"]
[363,null,null,"Select from Drop Down","Select from Drop Down","Select from Drop Down",null,null,null,null,null,null,null,null,null,null,null,null,"Select from Drop Down","Select from Drop Down","Select from Drop Down"]
[364,null,null,"Select from Drop Down","Select from Drop Down","Select from Drop Down",null,null,null,null,null,null,null,null,null,null,null,null,"Select from Drop Down","Select from Drop Down","Select from Drop Down"]
[365,null,null,"Select from Drop Down","Select from Drop Down","Select from Drop Down",null,null,null,null,null,null,null,null,null,null,null,null,"Select from Drop Down","Select from Drop Down","Select from Drop Down"]
[366,null,null,"Select from Drop Down","Select from Drop Down","Select from Drop Down",null,null,null,null,null,null,null,null,null,null,null,null,"Select from Drop Down","Select from Drop Down","Select from Drop Down"]
[367,null,null,"Select from Drop Down","Select from Drop Down","Select from Drop Down",null,null,null,null,null,null,null,null,null,null,null,null,"Select from Drop Down","Select from Drop Down","Select from Drop Down"]
[368,null,null,"Select from Drop Down","Select from Drop Down","Select from Drop Down",null,null,null,null,null,null,null,null,null,null,null,null,"Select from Drop Down","Select from Drop Down","Select from Drop Down"]
[369,null,null,"Select from Drop Down","Select from Drop Down","Select from Drop Down",null,null,null,null,null,null,null,null,null,null,null,null,"Select from Drop Down","Select from Drop Down","Select from Drop Down"]
[370,null,null,"Select from Drop Down","Select from Drop Down","Select from Drop Down",null,null,null,null,null,null,null,null,null,null,null,null,"Select from Drop Down","Select from Drop Down","Select from Drop Down"]
[371,null,null,"Select from Drop Down","Select from Drop Down","Select from Drop Down",null,null,null,null,null,null,null,null,null,null,null,null,"Select from Drop Down","Select from Drop Down","Select from Drop Down"]
[372,null,null,"Select from Drop Down","Select from Drop Down","Select from Drop Down",null,null,null,null,null,null,null,null,null,null,null,null,"Select from Drop Down","Select from Drop Down","Select from Drop Down"]
[373,null,null,"Select from Drop Down","Select from Drop Down","Select from Drop Down",null,null,null,null,null,null,null,null,null,null,null,null,"Select from Drop Down","Select from Drop Down","Select from Drop Down"]
[374,null,null,"Select from Drop Down","Select from Drop Down","Select from Drop Down",null,null,null,null,null,null,null,null,null,null,null,null,"Select from Drop Down","Select from Drop Down","Select from Drop Down"]
[375,null,null,"Select from Drop Down","Select from Drop Down","Select from Drop Down",null,null,null,null,null,null,null,null,null,null,null,null,"Select from Drop Down","Select from Drop Down","Select from Drop Down"]
[376,null,null,"Select from Drop Down","Select from Drop Down","Select from Drop Down",null,null,null,null,null,null,null,null,null,null,null,null,"Select from Drop Down","Select from Drop Down","Select from Drop Down"]
[377,null,null,"Select from Drop Down","Select from Drop Down","Select from Drop Down",null,null,null,null,null,null,null,null,null,null,null,null,"Select from Drop Down","Select from Drop Down","Select from Drop Down"]
[378,null,null,"Select from Drop Down","Select from Drop Down","Select from Drop Down",null,null,null,null,null,null,null,null,null,null,null,null,"Select from Drop Down","Select from Drop Down","Select from Drop Down"]
[379,null,null,"Select from Drop Down","Select from Drop Down","Select from Drop Down",null,null,null,null,null,null,null,null,null,null,null,null,"Select from Drop Down","Select from Drop Down","Select from Drop Down"]
[380,null,null,"Select from Drop Down","Select from Drop Down","Select from Drop Down",null,null,null,null,null,null,null,null,null,null,null,null,"Select from Drop Down","Select from Drop Down","Select from Drop Down"]
[381,null,null,"Select from Drop Down","Select from Drop Down","Select from Drop Down",null,null,null,null,null,null,null,null,null,null,null,null,"Select from Drop Down","Select from Drop Down","Select from Drop Down"]
[382,null,null,"Select from Drop Down","Select from Drop Down","Select from Drop Down",null,null,null,null,null,null,null,null,null,null,null,null,"Select from Drop Down","Select from Drop Down","Select from Drop Down"]
[383,null,null,"Select from Drop Down","Select from Drop Down","Select from Drop Down",null,null,null,null,null,null,null,null,null,null,null,null,"Select from Drop Down","Select from Drop Down","Select from Drop Down"]
[384,null,null,"Select from Drop Down","Select from Drop Down","Select from Drop Down",null,null,null,null,null,null,null,null,null,null,null,null,"Select from Drop Down","Select from Drop Down","Select from Drop Down"]
[385,null,null,"Select from Drop Down","Select from Drop Down","Select from Drop Down",null,null,null,null,null,null,null,null,null,null,null,null,"Select from Drop Down","Select from Drop Down","Select from Drop Down"]
[386,null,null,"Select from Drop Down","Select from Drop Down","Select from Drop Down",null,null,null,null,null,null,null,null,null,null,null,null,"Select from Drop Down","Select from Drop Down","Select from Drop Down"]
[{"$f":"A396+1","v":387},null,null,"Select from Drop Down","Select from Drop Down","Select from Drop Down",null,null,null,null,null,null,null,null,null,null,null,null,"Select from Drop Down","Select from Drop Down","Select from Drop Down"]
[388,null,null,"Select from Drop Down","Select from Drop Down","Select from Drop Down",null,null,null,null,null,null,null,null,null,null,null,null,"Select from Drop Down","Select from Drop Down","Select from Drop Down"]
[389,null,null,"Select from Drop Down","Select from Drop Down","Select from Drop Down",null,null,null,null,null,null,null,null,null,null,null,null,"Select from Drop Down","Select from Drop Down","Select from Drop Down"]
[390,null,null,"Select from Drop Down","Select from Drop Down","Select from Drop Down",null,null,null,null,null,null,null,null,null,null,null,null,"Select from Drop Down","Select from Drop Down","Select from Drop Down"]
[391,null,null,"Select from Drop Down","Select from Drop Down","Select from Drop Down",null,null,null,null,null,null,null,null,null,null,null,null,"Select from Drop Down","Select from Drop Down","Select from Drop Down"]
[392,null,null,"Select from Drop Down","Select from Drop Down","Select from Drop Down",null,null,null,null,null,null,null,null,null,null,null,null,"Select from Drop Down","Select from Drop Down","Select from Drop Down"]
[393,null,null,"Select from Drop Down","Select from Drop Down","Select from Drop Down",null,null,null,null,null,null,null,null,null,null,null,null,"Select from Drop Down","Select from Drop Down","Select from Drop Down"]
[394,null,null,"Select from Drop Down","Select from Drop Down","Select from Drop Down",null,null,null,null,null,null,null,null,null,null,null,null,"Select from Drop Down","Select from Drop Down","Select from Drop Down"]
[395,null,null,"Select from Drop Down","Select from Drop Down","Select from Drop Down",null,null,null,null,null,null,null,null,null,null,null,null,"Select from Drop Down","Select from Drop Down","Select from Drop Down"]
[396,null,null,"Select from Drop Down","Select from Drop Down","Select from Drop Down",null,null,null,null,null,null,null,null,null,null,null,null,"Select from Drop Down","Select from Drop Down","Select from Drop Down"]
[397,null,null,"Select from Drop Down","Select from Drop Down","Select from Drop Down",null,null,null,null,null,null,null,null,null,null,null,null,"Select from Drop Down","Select from Drop Down","Select from Drop Down"]
[398,null,null,"Select from Drop Down","Select from Drop Down","Select from Drop Down",null,null,null,null,null,null,null,null,null,null,null,null,"Select from Drop Down","Select from Drop Down","Select from Drop Down"]
[399,null,null,"Select from Drop Down","Select from Drop Down","Select from Drop Down",null,null,null,null,null,null,null,null,null,null,null,null,"Select from Drop Down","Select from Drop Down","Select from Drop Down"]
[400,null,null,"Select from Drop Down","Select from Drop Down","Select from Drop Down",null,null,null,null,null,null,null,null,null,null,null,null,"Select from Drop Down","Select from Drop Down","Select from Drop Down"]
[401,null,null,"Select from Drop Down","Select from Drop Down","Select from Drop Down",null,null,null,null,null,null,null,null,null,null,null,null,"Select from Drop Down","Select from Drop Down","Select from Drop Down"]
[402,null,null,"Select from Drop Down","Select from Drop Down","Select from Drop Down",null,null,null,null,null,null,null,null,null,null,null,null,"Select from Drop Down","Select from Drop Down","Select from Drop Down"]
[403,null,null,"Select from Drop Down","Select from Drop Down","Select from Drop Down",null,null,null,null,null,null,null,null,null,null,null,null,"Select from Drop Down","Select from Drop Down","Select from Drop Down"]
[404,null,null,"Select from Drop Down","Select from Drop Down","Select from Drop Down",null,null,null,null,null,null,null,null,null,null,null,null,"Select from Drop Down","Select from Drop Down","Select from Drop Down"]
[405,null,null,"Select from Drop Down","Select from Drop Down","Select from Drop Down",null,null,null,null,null,null,null,null,null,null,null,null,"Select from Drop Down","Select from Drop Down","Select from Drop Down"]
[406,null,null,"Select from Drop Down","Select from Drop Down","Select from Drop Down",null,null,null,null,null,null,null,null,null,null,null,null,"Select from Drop Down","Select from Drop Down","Select from Drop Down"]
[407,null,null,"Select from Drop Down","Select from Drop Down","Select from Drop Down",null,null,null,null,null,null,null,null,null,null,null,null,"Select from Drop Down","Select from Drop Down","Select from Drop Down"]
[408,null,null,"Select from Drop Down","Select from Drop Down","Select from Drop Down",null,null,null,null,null,null,null,null,null,null,null,null,"Select from Drop Down","Select from Drop Down","Select from Drop Down"]
[409,null,null,"Select from Drop Down","Select from Drop Down","Select from Drop Down",null,null,null,null,null,null,null,null,null,null,null,null,"Select from Drop Down","Select from Drop Down","Select from Drop Down"]
[410,null,null,"Select from Drop Down","Select from Drop Down","Select from Drop Down",null,null,null,null,null,null,null,null,null,null,null,null,"Select from Drop Down","Select from Drop Down","Select from Drop Down"]
[411,null,null,"Select from Drop Down","Select from Drop Down","Select from Drop Down",null,null,null,null,null,null,null,null,null,null,null,null,"Select from Drop Down","Select from Drop Down","Select from Drop Down"]
[412,null,null,"Select from Drop Down","Select from Drop Down","Select from Drop Down",null,null,null,null,null,null,null,null,null,null,null,null,"Select from Drop Down","Select from Drop Down","Select from Drop Down"]
[413,null,null,"Select from Drop Down","Select from Drop Down","Select from Drop Down",null,null,null,null,null,null,null,null,null,null,null,null,"Select from Drop Down","Select from Drop Down","Select from Drop Down"]
[414,null,null,"Select from Drop Down","Select from Drop Down","Select from Drop Down",null,null,null,null,null,null,null,null,null,null,null,null,"Select from Drop Down","Select from Drop Down","Select from Drop Down"]
[415,null,null,"Select from Drop Down","Select from Drop Down","Select from Drop Down",null,null,null,null,null,null,null,null,null,null,null,null,"Select from Drop Down","Select from Drop Down","Select from Drop Down"]
[416,null,null,"Select from Drop Down","Select from Drop Down","Select from Drop Down",null,null,null,null,null,null,null,null,null,null,null,null,"Select from Drop Down","Select from Drop Down","Select from Drop Down"]
[417,null,null,"Select from Drop Down","Select from Drop Down","Select from Drop Down",null,null,null,null,null,null,null,null,null,null,null,null,"Select from Drop Down","Select from Drop Down","Select from Drop Down"]
[418,null,null,"Select from Drop Down","Select from Drop Down","Select from Drop Down",null,null,null,null,null,null,null,null,null,null,null,null,"Select from Drop Down","Select from Drop Down","Select from Drop Down"]
[419,null,null,"Select from Drop Down","Select from Drop Down","Select from Drop Down",null,null,null,null,null,null,null,null,null,null,null,null,"Select from Drop Down","Select from Drop Down","Select from Drop Down"]
[420,null,null,"Select from Drop Down","Select from Drop Down","Select from Drop Down",null,null,null,null,null,null,null,null,null,null,null,null,"Select from Drop Down","Select from Drop Down","Select from Drop Down"]
[421,null,null,"Select from Drop Down","Select from Drop Down","Select from Drop Down",null,null,null,null,null,null,null,null,null,null,null,null,"Select from Drop Down","Select from Drop Down","Select from Drop Down"]
[422,null,null,"Select from Drop Down","Select from Drop Down","Select from Drop Down",null,null,null,null,null,null,null,null,null,null,null,null,"Select from Drop Down","Select from Drop Down","Select from Drop Down"]
[423,null,null,"Select from Drop Down","Select from Drop Down","Select from Drop Down",null,null,null,null,null,null,null,null,null,null,null,null,"Select from Drop Down","Select from Drop Down","Select from Drop Down"]
[424,null,null,"Select from Drop Down","Select from Drop Down","Select from Drop Down",null,null,null,null,null,null,null,null,null,null,null,null,"Select from Drop Down","Select from Drop Down","Select from Drop Down"]
[425,null,null,"Select from Drop Down","Select from Drop Down","Select from Drop Down",null,null,null,null,null,null,null,null,null,null,null,null,"Select from Drop Down","Select from Drop Down","Select from Drop Down"]
[426,null,null,"Select from Drop Down","Select from Drop Down","Select from Drop Down",null,null,null,null,null,null,null,null,null,null,null,null,"Select from Drop Down","Select from Drop Down","Select from Drop Down"]
[427,null,null,"Select from Drop Down","Select from Drop Down","Select from Drop Down",null,null,null,null,null,null,null,null,null,null,null,null,"Select from Drop Down","Select from Drop Down","Select from Drop Down"]
[428,null,null,"Select from Drop Down","Select from Drop Down","Select from Drop Down",null,null,null,null,null,null,null,null,null,null,null,null,"Select from Drop Down","Select from Drop Down","Select from Drop Down"]
[429,null,null,"Select from Drop Down","Select from Drop Down","Select from Drop Down",null,null,null,null,null,null,null,null,null,null,null,null,"Select from Drop Down","Select from Drop Down","Select from Drop Down"]
[430,null,null,"Select from Drop Down","Select from Drop Down","Select from Drop Down",null,null,null,null,null,null,null,null,null,null,null,null,"Select from Drop Down","Select from Drop Down","Select from Drop Down"]
[431,null,null,"Select from Drop Down","Select from Drop Down","Select from Drop Down",null,null,null,null,null,null,null,null,null,null,null,null,"Select from Drop Down","Select from Drop Down","Select from Drop Down"]
[432,null,null,"Select from Drop Down","Select from Drop Down","Select from Drop Down",null,null,null,null,null,null,null,null,null,null,null,null,"Select from Drop Down","Select from Drop Down","Select from Drop Down"]
[433,null,null,"Select from Drop Down","Select from Drop Down","Select from Drop Down",null,null,null,null,null,null,null,null,null,null,null,null,"Select from Drop Down","Select from Drop Down","Select from Drop Down"]
[434,null,null,"Select from Drop Down","Select from Drop Down","Select from Drop Down",null,null,null,null,null,null,null,null,null,null,null,null,"Select from Drop Down","Select from Drop Down","Select from Drop Down"]
[435,null,null,"Select from Drop Down","Select from Drop Down","Select from Drop Down",null,null,null,null,null,null,null,null,null,null,null,null,"Select from Drop Down","Select from Drop Down","Select from Drop Down"]
[436,null,null,"Select from Drop Down","Select from Drop Down","Select from Drop Down",null,null,null,null,null,null,null,null,null,null,null,null,"Select from Drop Down","Select from Drop Down","Select from Drop Down"]
[437,null,null,"Select from Drop Down","Select from Drop Down","Select from Drop Down",null,null,null,null,null,null,null,null,null,null,null,null,"Select from Drop Down","Select from Drop Down","Select from Drop Down"]
[438,null,null,"Select from Drop Down","Select from Drop Down","Select from Drop Down",null,null,null,null,null,null,null,null,null,null,null,null,"Select from Drop Down","Select from Drop Down","Select from Drop Down"]
[439,null,null,"Select from Drop Down","Select from Drop Down","Select from Drop Down",null,null,null,null,null,null,null,null,null,null,null,null,"Select from Drop Down","Select from Drop Down","Select from Drop Down"]
[440,null,null,"Select from Drop Down","Select from Drop Down","Select from Drop Down",null,null,null,null,null,null,null,null,null,null,null,null,"Select from Drop Down","Select from Drop Down","Select from Drop Down"]
[441,null,null,"Select from Drop Down","Select from Drop Down","Select from Drop Down",null,null,null,null,null,null,null,null,null,null,null,null,"Select from Drop Down","Select from Drop Down","Select from Drop Down"]
[442,null,null,"Select from Drop Down","Select from Drop Down","Select from Drop Down",null,null,null,null,null,null,null,null,null,null,null,null,"Select from Drop Down","Select from Drop Down","Select from Drop Down"]
[443,null,null,"Select from Drop Down","Select from Drop Down","Select from Drop Down",null,null,null,null,null,null,null,null,null,null,null,null,"Select from Drop Down","Select from Drop Down","Select from Drop Down"]
[444,null,null,"Select from Drop Down","Select from Drop Down","Select from Drop Down",null,null,null,null,null,null,null,null,null,null,null,null,"Select from Drop Down","Select from Drop Down","Select from Drop Down"]
[445,null,null,"Select from Drop Down","Select from Drop Down","Select from Drop Down",null,null,null,null,null,null,null,null,null,null,null,null,"Select from Drop Down","Select from Drop Down","Select from Drop Down"]
[446,null,null,"Select from Drop Down","Select from Drop Down","Select from Drop Down",null,null,null,null,null,null,null,null,null,null,null,null,"Select from Drop Down","Select from Drop Down","Select from Drop Down"]
[447,null,null,"Select from Drop Down","Select from Drop Down","Select from Drop Down",null,null,null,null,null,null,null,null,null,null,null,null,"Select from Drop Down","Select from Drop Down","Select from Drop Down"]
[448,null,null,"Select from Drop Down","Select from Drop Down","Select from Drop Down",null,null,null,null,null,null,null,null,null,null,null,null,"Select from Drop Down","Select from Drop Down","Select from Drop Down"]
[449,null,null,"Select from Drop Down","Select from Drop Down","Select from Drop Down",null,null,null,null,null,null,null,null,null,null,null,null,"Select from Drop Down","Select from Drop Down","Select from Drop Down"]
[450,null,null,"Select from Drop Down","Select from Drop Down","Select from Drop Down",null,null,null,null,null,null,null,null,null,null,null,null,"Select from Drop Down","Select from Drop Down","Select from Drop Down"]
[{"$f":"A460+1","v":451},null,null,"Select from Drop Down","Select from Drop Down","Select from Drop Down",null,null,null,null,null,null,null,null,null,null,null,null,"Select from Drop Down","Select from Drop Down","Select from Drop Down"]
[452,null,null,"Select from Drop Down","Select from Drop Down","Select from Drop Down",null,null,null,null,null,null,null,null,null,null,null,null,"Select from Drop Down","Select from Drop Down","Select from Drop Down"]
[453,null,null,"Select from Drop Down","Select from Drop Down","Select from Drop Down",null,null,null,null,null,null,null,null,null,null,null,null,"Select from Drop Down","Select from Drop Down","Select from Drop Down"]
[454,null,null,"Select from Drop Down","Select from Drop Down","Select from Drop Down",null,null,null,null,null,null,null,null,null,null,null,null,"Select from Drop Down","Select from Drop Down","Select from Drop Down"]
[455,null,null,"Select from Drop Down","Select from Drop Down","Select from Drop Down",null,null,null,null,null,null,null,null,null,null,null,null,"Select from Drop Down","Select from Drop Down","Select from Drop Down"]
[456,null,null,"Select from Drop Down","Select from Drop Down","Select from Drop Down",null,null,null,null,null,null,null,null,null,null,null,null,"Select from Drop Down","Select from Drop Down","Select from Drop Down"]
[457,null,null,"Select from Drop Down","Select from Drop Down","Select from Drop Down",null,null,null,null,null,null,null,null,null,null,null,null,"Select from Drop Down","Select from Drop Down","Select from Drop Down"]
[458,null,null,"Select from Drop Down","Select from Drop Down","Select from Drop Down",null,null,null,null,null,null,null,null,null,null,null,null,"Select from Drop Down","Select from Drop Down","Select from Drop Down"]
[459,null,null,"Select from Drop Down","Select from Drop Down","Select from Drop Down",null,null,null,null,null,null,null,null,null,null,null,null,"Select from Drop Down","Select from Drop Down","Select from Drop Down"]
[460,null,null,"Select from Drop Down","Select from Drop Down","Select from Drop Down",null,null,null,null,null,null,null,null,null,null,null,null,"Select from Drop Down","Select from Drop Down","Select from Drop Down"]
[461,null,null,"Select from Drop Down","Select from Drop Down","Select from Drop Down",null,null,null,null,null,null,null,null,null,null,null,null,"Select from Drop Down","Select from Drop Down","Select from Drop Down"]
[462,null,null,"Select from Drop Down","Select from Drop Down","Select from Drop Down",null,null,null,null,null,null,null,null,null,null,null,null,"Select from Drop Down","Select from Drop Down","Select from Drop Down"]
[463,null,null,"Select from Drop Down","Select from Drop Down","Select from Drop Down",null,null,null,null,null,null,null,null,null,null,null,null,"Select from Drop Down","Select from Drop Down","Select from Drop Down"]
[464,null,null,"Select from Drop Down","Select from Drop Down","Select from Drop Down",null,null,null,null,null,null,null,null,null,null,null,null,"Select from Drop Down","Select from Drop Down","Select from Drop Down"]
[465,null,null,"Select from Drop Down","Select from Drop Down","Select from Drop Down",null,null,null,null,null,null,null,null,null,null,null,null,"Select from Drop Down","Select from Drop Down","Select from Drop Down"]
[466,null,null,"Select from Drop Down","Select from Drop Down","Select from Drop Down",null,null,null,null,null,null,null,null,null,null,null,null,"Select from Drop Down","Select from Drop Down","Select from Drop Down"]
[467,null,null,"Select from Drop Down","Select from Drop Down","Select from Drop Down",null,null,null,null,null,null,null,null,null,null,null,null,"Select from Drop Down","Select from Drop Down","Select from Drop Down"]
[468,null,null,"Select from Drop Down","Select from Drop Down","Select from Drop Down",null,null,null,null,null,null,null,null,null,null,null,null,"Select from Drop Down","Select from Drop Down","Select from Drop Down"]
[469,null,null,"Select from Drop Down","Select from Drop Down","Select from Drop Down",null,null,null,null,null,null,null,null,null,null,null,null,"Select from Drop Down","Select from Drop Down","Select from Drop Down"]
[470,null,null,"Select from Drop Down","Select from Drop Down","Select from Drop Down",null,null,null,null,null,null,null,null,null,null,null,null,"Select from Drop Down","Select from Drop Down","Select from Drop Down"]
[471,null,null,"Select from Drop Down","Select from Drop Down","Select from Drop Down",null,null,null,null,null,null,null,null,null,null,null,null,"Select from Drop Down","Select from Drop Down","Select from Drop Down"]
[472,null,null,"Select from Drop Down","Select from Drop Down","Select from Drop Down",null,null,null,null,null,null,null,null,null,null,null,null,"Select from Drop Down","Select from Drop Down","Select from Drop Down"]
[473,null,null,"Select from Drop Down","Select from Drop Down","Select from Drop Down",null,null,null,null,null,null,null,null,null,null,null,null,"Select from Drop Down","Select from Drop Down","Select from Drop Down"]
[474,null,null,"Select from Drop Down","Select from Drop Down","Select from Drop Down",null,null,null,null,null,null,null,null,null,null,null,null,"Select from Drop Down","Select from Drop Down","Select from Drop Down"]
[475,null,null,"Select from Drop Down","Select from Drop Down","Select from Drop Down",null,null,null,null,null,null,null,null,null,null,null,null,"Select from Drop Down","Select from Drop Down","Select from Drop Down"]
[476,null,null,"Select from Drop Down","Select from Drop Down","Select from Drop Down",null,null,null,null,null,null,null,null,null,null,null,null,"Select from Drop Down","Select from Drop Down","Select from Drop Down"]
[477,null,null,"Select from Drop Down","Select from Drop Down","Select from Drop Down",null,null,null,null,null,null,null,null,null,null,null,null,"Select from Drop Down","Select from Drop Down","Select from Drop Down"]
[478,null,null,"Select from Drop Down","Select from Drop Down","Select from Drop Down",null,null,null,null,null,null,null,null,null,null,null,null,"Select from Drop Down","Select from Drop Down","Select from Drop Down"]
[479,null,null,"Select from Drop Down","Select from Drop Down","Select from Drop Down",null,null,null,null,null,null,null,null,null,null,null,null,"Select from Drop Down","Select from Drop Down","Select from Drop Down"]
[480,null,null,"Select from Drop Down","Select from Drop Down","Select from Drop Down",null,null,null,null,null,null,null,null,null,null,null,null,"Select from Drop Down","Select from Drop Down","Select from Drop Down"]
[481,null,null,"Select from Drop Down","Select from Drop Down","Select from Drop Down",null,null,null,null,null,null,null,null,null,null,null,null,"Select from Drop Down","Select from Drop Down","Select from Drop Down"]
[482,null,null,"Select from Drop Down","Select from Drop Down","Select from Drop Down",null,null,null,null,null,null,null,null,null,null,null,null,"Select from Drop Down","Select from Drop Down","Select from Drop Down"]
[483,null,null,"Select from Drop Down","Select from Drop Down","Select from Drop Down",null,null,null,null,null,null,null,null,null,null,null,null,"Select from Drop Down","Select from Drop Down","Select from Drop Down"]
[484,null,null,"Select from Drop Down","Select from Drop Down","Select from Drop Down",null,null,null,null,null,null,null,null,null,null,null,null,"Select from Drop Down","Select from Drop Down","Select from Drop Down"]
[485,null,null,"Select from Drop Down","Select from Drop Down","Select from Drop Down",null,null,null,null,null,null,null,null,null,null,null,null,"Select from Drop Down","Select from Drop Down","Select from Drop Down"]
[486,null,null,"Select from Drop Down","Select from Drop Down","Select from Drop Down",null,null,null,null,null,null,null,null,null,null,null,null,"Select from Drop Down","Select from Drop Down","Select from Drop Down"]
[487,null,null,"Select from Drop Down","Select from Drop Down","Select from Drop Down",null,null,null,null,null,null,null,null,null,null,null,null,"Select from Drop Down","Select from Drop Down","Select from Drop Down"]
[488,null,null,"Select from Drop Down","Select from Drop Down","Select from Drop Down",null,null,null,null,null,null,null,null,null,null,null,null,"Select from Drop Down","Select from Drop Down","Select from Drop Down"]
[489,null,null,"Select from Drop Down","Select from Drop Down","Select from Drop Down",null,null,null,null,null,null,null,null,null,null,null,null,"Select from Drop Down","Select from Drop Down","Select from Drop Down"]
[490,null,null,"Select from Drop Down","Select from Drop Down","Select from Drop Down",null,null,null,null,null,null,null,null,null,null,null,null,"Select from Drop Down","Select from Drop Down","Select from Drop Down"]
[491,null,null,"Select from Drop Down","Select from Drop Down","Select from Drop Down",null,null,null,null,null,null,null,null,null,null,null,null,"Select from Drop Down","Select from Drop Down","Select from Drop Down"]
[492,null,null,"Select from Drop Down","Select from Drop Down","Select from Drop Down",null,null,null,null,null,null,null,null,null,null,null,null,"Select from Drop Down","Select from Drop Down","Select from Drop Down"]
[493,null,null,"Select from Drop Down","Select from Drop Down","Select from Drop Down",null,null,null,null,null,null,null,null,null,null,null,null,"Select from Drop Down","Select from Drop Down","Select from Drop Down"]
[494,null,null,"Select from Drop Down","Select from Drop Down","Select from Drop Down",null,null,null,null,null,null,null,null,null,null,null,null,"Select from Drop Down","Select from Drop Down","Select from Drop Down"]
[495,null,null,"Select from Drop Down","Select from Drop Down","Select from Drop Down",null,null,null,null,null,null,null,null,null,null,null,null,"Select from Drop Down","Select from Drop Down","Select from Drop Down"]
[496,null,null,"Select from Drop Down","Select from Drop Down","Select from Drop Down",null,null,null,null,null,null,null,null,null,null,null,null,"Select from Drop Down","Select from Drop Down","Select from Drop Down"]
[497,null,null,"Select from Drop Down","Select from Drop Down","Select from Drop Down",null,null,null,null,null,null,null,null,null,null,null,null,"Select from Drop Down","Select from Drop Down","Select from Drop Down"]
[498,null,null,"Select from Drop Down","Select from Drop Down","Select from Drop Down",null,null,null,null,null,null,null,null,null,null,null,null,"Select from Drop Down","Select from Drop Down","Select from Drop Down"]
[499,null,null,"Select from Drop Down","Select from Drop Down","Select from Drop Down",null,null,null,null,null,null,null,null,null,null,null,null,"Select from Drop Down","Select from Drop Down","Select from Drop Down"]
[500,null,null,"Select from Drop Down","Select from Drop Down","Select from Drop Down",null,null,null,null,null,null,null,null,null,null,null,null,"Select from Drop Down","Select from Drop Down","Select from Drop Down"]
[501,null,null,"Select from Drop Down","Select from Drop Down","Select from Drop Down",null,null,null,null,null,null,null,null,null,null,null,null,"Select from Drop Down","Select from Drop Down","Select from Drop Down"]
[502,null,null,"Select from Drop Down","Select from Drop Down","Select from Drop Down",null,null,null,null,null,null,null,null,null,null,null,null,"Select from Drop Down","Select from Drop Down","Select from Drop Down"]
[503,null,null,"Select from Drop Down","Select from Drop Down","Select from Drop Down",null,null,null,null,null,null,null,null,null,null,null,null,"Select from Drop Down","Select from Drop Down","Select from Drop Down"]
[504,null,null,"Select from Drop Down","Select from Drop Down","Select from Drop Down",null,null,null,null,null,null,null,null,null,null,null,null,"Select from Drop Down","Select from Drop Down","Select from Drop Down"]
[505,null,null,"Select from Drop Down","Select from Drop Down","Select from Drop Down",null,null,null,null,null,null,null,null,null,null,null,null,"Select from Drop Down","Select from Drop Down","Select from Drop Down"]
[506,null,null,"Select from Drop Down","Select from Drop Down","Select from Drop Down",null,null,null,null,null,null,null,null,null,null,null,null,"Select from Drop Down","Select from Drop Down","Select from Drop Down"]
[507,null,null,"Select from Drop Down","Select from Drop Down","Select from Drop Down",null,null,null,null,null,null,null,null,null,null,null,null,"Select from Drop Down","Select from Drop Down","Select from Drop Down"]
[508,null,null,"Select from Drop Down","Select from Drop Down","Select from Drop Down",null,null,null,null,null,null,null,null,null,null,null,null,"Select from Drop Down","Select from Drop Down","Select from Drop Down"]
[509,null,null,"Select from Drop Down","Select from Drop Down","Select from Drop Down",null,null,null,null,null,null,null,null,null,null,null,null,"Select from Drop Down","Select from Drop Down","Select from Drop Down"]
[510,null,null,"Select from Drop Down","Select from Drop Down","Select from Drop Down",null,null,null,null,null,null,null,null,null,null,null,null,"Select from Drop Down","Select from Drop Down","Select from Drop Down"]
[511,null,null,"Select from Drop Down","Select from Drop Down","Select from Drop Down",null,null,null,null,null,null,null,null,null,null,null,null,"Select from Drop Down","Select from Drop Down","Select from Drop Down"]
[512,null,null,"Select from Drop Down","Select from Drop Down","Select from Drop Down",null,null,null,null,null,null,null,null,null,null,null,null,"Select from Drop Down","Select from Drop Down","Select from Drop Down"]
[513,null,null,"Select from Drop Down","Select from Drop Down","Select from Drop Down",null,null,null,null,null,null,null,null,null,null,null,null,"Select from Drop Down","Select from Drop Down","Select from Drop Down"]
[514,null,null,"Select from Drop Down","Select from Drop Down","Select from Drop Down",null,null,null,null,null,null,null,null,null,null,null,null,"Select from Drop Down","Select from Drop Down","Select from Drop Down"]
[{"$f":"A524+1","v":515},null,null,"Select from Drop Down","Select from Drop Down","Select from Drop Down",null,null,null,null,null,null,null,null,null,null,null,null,"Select from Drop Down","Select from Drop Down","Select from Drop Down"]
[516,null,null,"Select from Drop Down","Select from Drop Down","Select from Drop Down",null,null,null,null,null,null,null,null,null,null,null,null,"Select from Drop Down","Select from Drop Down","Select from Drop Down"]
[517,null,null,"Select from Drop Down","Select from Drop Down","Select from Drop Down",null,null,null,null,null,null,null,null,null,null,null,null,"Select from Drop Down","Select from Drop Down","Select from Drop Down"]
[518,null,null,"Select from Drop Down","Select from Drop Down","Select from Drop Down",null,null,null,null,null,null,null,null,null,null,null,null,"Select from Drop Down","Select from Drop Down","Select from Drop Down"]
[519,null,null,"Select from Drop Down","Select from Drop Down","Select from Drop Down",null,null,null,null,null,null,null,null,null,null,null,null,"Select from Drop Down","Select from Drop Down","Select from Drop Down"]
[520,null,null,"Select from Drop Down","Select from Drop Down","Select from Drop Down",null,null,null,null,null,null,null,null,null,null,null,null,"Select from Drop Down","Select from Drop Down","Select from Drop Down"]
[521,null,null,"Select from Drop Down","Select from Drop Down","Select from Drop Down",null,null,null,null,null,null,null,null,null,null,null,null,"Select from Drop Down","Select from Drop Down","Select from Drop Down"]
[522,null,null,"Select from Drop Down","Select from Drop Down","Select from Drop Down",null,null,null,null,null,null,null,null,null,null,null,null,"Select from Drop Down","Select from Drop Down","Select from Drop Down"]
[523,null,null,"Select from Drop Down","Select from Drop Down","Select from Drop Down",null,null,null,null,null,null,null,null,null,null,null,null,"Select from Drop Down","Select from Drop Down","Select from Drop Down"]
[524,null,null,"Select from Drop Down","Select from Drop Down","Select from Drop Down",null,null,null,null,null,null,null,null,null,null,null,null,"Select from Drop Down","Select from Drop Down","Select from Drop Down"]
[525,null,null,"Select from Drop Down","Select from Drop Down","Select from Drop Down",null,null,null,null,null,null,null,null,null,null,null,null,"Select from Drop Down","Select from Drop Down","Select from Drop Down"]
[526,null,null,"Select from Drop Down","Select from Drop Down","Select from Drop Down",null,null,null,null,null,null,null,null,null,null,null,null,"Select from Drop Down","Select from Drop Down","Select from Drop Down"]
[527,null,null,"Select from Drop Down","Select from Drop Down","Select from Drop Down",null,null,null,null,null,null,null,null,null,null,null,null,"Select from Drop Down","Select from Drop Down","Select from Drop Down"]
[528,null,null,"Select from Drop Down","Select from Drop Down","Select from Drop Down",null,null,null,null,null,null,null,null,null,null,null,null,"Select from Drop Down","Select from Drop Down","Select from Drop Down"]
[529,null,null,"Select from Drop Down","Select from Drop Down","Select from Drop Down",null,null,null,null,null,null,null,null,null,null,null,null,"Select from Drop Down","Select from Drop Down","Select from Drop Down"]
[530,null,null,"Select from Drop Down","Select from Drop Down","Select from Drop Down",null,null,null,null,null,null,null,null,null,null,null,null,"Select from Drop Down","Select from Drop Down","Select from Drop Down"]
[531,null,null,"Select from Drop Down","Select from Drop Down","Select from Drop Down",null,null,null,null,null,null,null,null,null,null,null,null,"Select from Drop Down","Select from Drop Down","Select from Drop Down"]
[532,null,null,"Select from Drop Down","Select from Drop Down","Select from Drop Down",null,null,null,null,null,null,null,null,null,null,null,null,"Select from Drop Down","Select from Drop Down","Select from Drop Down"]
[533,null,null,"Select from Drop Down","Select from Drop Down","Select from Drop Down",null,null,null,null,null,null,null,null,null,null,null,null,"Select from Drop Down","Select from Drop Down","Select from Drop Down"]
[534,null,null,"Select from Drop Down","Select from Drop Down","Select from Drop Down",null,null,null,null,null,null,null,null,null,null,null,null,"Select from Drop Down","Select from Drop Down","Select from Drop Down"]
[535,null,null,"Select from Drop Down","Select from Drop Down","Select from Drop Down",null,null,null,null,null,null,null,null,null,null,null,null,"Select from Drop Down","Select from Drop Down","Select from Drop Down"]
[536,null,null,"Select from Drop Down","Select from Drop Down","Select from Drop Down",null,null,null,null,null,null,null,null,null,null,null,null,"Select from Drop Down","Select from Drop Down","Select from Drop Down"]
[537,null,null,"Select from Drop Down","Select from Drop Down","Select from Drop Down",null,null,null,null,null,null,null,null,null,null,null,null,"Select from Drop Down","Select from Drop Down","Select from Drop Down"]
[538,null,null,"Select from Drop Down","Select from Drop Down","Select from Drop Down",null,null,null,null,null,null,null,null,null,null,null,null,"Select from Drop Down","Select from Drop Down","Select from Drop Down"]
[539,null,null,"Select from Drop Down","Select from Drop Down","Select from Drop Down",null,null,null,null,null,null,null,null,null,null,null,null,"Select from Drop Down","Select from Drop Down","Select from Drop Down"]
[540,null,null,"Select from Drop Down","Select from Drop Down","Select from Drop Down",null,null,null,null,null,null,null,null,null,null,null,null,"Select from Drop Down","Select from Drop Down","Select from Drop Down"]
[541,null,null,"Select from Drop Down","Select from Drop Down","Select from Drop Down",null,null,null,null,null,null,null,null,null,null,null,null,"Select from Drop Down","Select from Drop Down","Select from Drop Down"]
[542,null,null,"Select from Drop Down","Select from Drop Down","Select from Drop Down",null,null,null,null,null,null,null,null,null,null,null,null,"Select from Drop Down","Select from Drop Down","Select from Drop Down"]
[543,null,null,"Select from Drop Down","Select from Drop Down","Select from Drop Down",null,null,null,null,null,null,null,null,null,null,null,null,"Select from Drop Down","Select from Drop Down","Select from Drop Down"]
[544,null,null,"Select from Drop Down","Select from Drop Down","Select from Drop Down",null,null,null,null,null,null,null,null,null,null,null,null,"Select from Drop Down","Select from Drop Down","Select from Drop Down"]
[545,null,null,"Select from Drop Down","Select from Drop Down","Select from Drop Down",null,null,null,null,null,null,null,null,null,null,null,null,"Select from Drop Down","Select from Drop Down","Select from Drop Down"]
[546,null,null,"Select from Drop Down","Select from Drop Down","Select from Drop Down",null,null,null,null,null,null,null,null,null,null,null,null,"Select from Drop Down","Select from Drop Down","Select from Drop Down"]
[547,null,null,"Select from Drop Down","Select from Drop Down","Select from Drop Down",null,null,null,null,null,null,null,null,null,null,null,null,"Select from Drop Down","Select from Drop Down","Select from Drop Down"]
[548,null,null,"Select from Drop Down","Select from Drop Down","Select from Drop Down",null,null,null,null,null,null,null,null,null,null,null,null,"Select from Drop Down","Select from Drop Down","Select from Drop Down"]
[549,null,null,"Select from Drop Down","Select from Drop Down","Select from Drop Down",null,null,null,null,null,null,null,null,null,null,null,null,"Select from Drop Down","Select from Drop Down","Select from Drop Down"]
[550,null,null,"Select from Drop Down","Select from Drop Down","Select from Drop Down",null,null,null,null,null,null,null,null,null,null,null,null,"Select from Drop Down","Select from Drop Down","Select from Drop Down"]
[551,null,null,"Select from Drop Down","Select from Drop Down","Select from Drop Down",null,null,null,null,null,null,null,null,null,null,null,null,"Select from Drop Down","Select from Drop Down","Select from Drop Down"]
[552,null,null,"Select from Drop Down","Select from Drop Down","Select from Drop Down",null,null,null,null,null,null,null,null,null,null,null,null,"Select from Drop Down","Select from Drop Down","Select from Drop Down"]
[553,null,null,"Select from Drop Down","Select from Drop Down","Select from Drop Down",null,null,null,null,null,null,null,null,null,null,null,null,"Select from Drop Down","Select from Drop Down","Select from Drop Down"]
[554,null,null,"Select from Drop Down","Select from Drop Down","Select from Drop Down",null,null,null,null,null,null,null,null,null,null,null,null,"Select from Drop Down","Select from Drop Down","Select from Drop Down"]
[555,null,null,"Select from Drop Down","Select from Drop Down","Select from Drop Down",null,null,null,null,null,null,null,null,null,null,null,null,"Select from Drop Down","Select from Drop Down","Select from Drop Down"]
[556,null,null,"Select from Drop Down","Select from Drop Down","Select from Drop Down",null,null,null,null,null,null,null,null,null,null,null,null,"Select from Drop Down","Select from Drop Down","Select from Drop Down"]
[557,null,null,"Select from Drop Down","Select from Drop Down","Select from Drop Down",null,null,null,null,null,null,null,null,null,null,null,null,"Select from Drop Down","Select from Drop Down","Select from Drop Down"]
[558,null,null,"Select from Drop Down","Select from Drop Down","Select from Drop Down",null,null,null,null,null,null,null,null,null,null,null,null,"Select from Drop Down","Select from Drop Down","Select from Drop Down"]
[559,null,null,"Select from Drop Down","Select from Drop Down","Select from Drop Down",null,null,null,null,null,null,null,null,null,null,null,null,"Select from Drop Down","Select from Drop Down","Select from Drop Down"]
[560,null,null,"Select from Drop Down","Select from Drop Down","Select from Drop Down",null,null,null,null,null,null,null,null,null,null,null,null,"Select from Drop Down","Select from Drop Down","Select from Drop Down"]
[561,null,null,"Select from Drop Down","Select from Drop Down","Select from Drop Down",null,null,null,null,null,null,null,null,null,null,null,null,"Select from Drop Down","Select from Drop Down","Select from Drop Down"]
[562,null,null,"Select from Drop Down","Select from Drop Down","Select from Drop Down",null,null,null,null,null,null,null,null,null,null,null,null,"Select from Drop Down","Select from Drop Down","Select from Drop Down"]
[563,null,null,"Select from Drop Down","Select from Drop Down","Select from Drop Down",null,null,null,null,null,null,null,null,null,null,null,null,"Select from Drop Down","Select from Drop Down","Select from Drop Down"]
[564,null,null,"Select from Drop Down","Select from Drop Down","Select from Drop Down",null,null,null,null,null,null,null,null,null,null,null,null,"Select from Drop Down","Select from Drop Down","Select from Drop Down"]
[565,null,null,"Select from Drop Down","Select from Drop Down","Select from Drop Down",null,null,null,null,null,null,null,null,null,null,null,null,"Select from Drop Down","Select from Drop Down","Select from Drop Down"]
[566,null,null,"Select from Drop Down","Select from Drop Down","Select from Drop Down",null,null,null,null,null,null,null,null,null,null,null,null,"Select from Drop Down","Select from Drop Down","Select from Drop Down"]
[567,null,null,"Select from Drop Down","Select from Drop Down","Select from Drop Down",null,null,null,null,null,null,null,null,null,null,null,null,"Select from Drop Down","Select from Drop Down","Select from Drop Down"]
[568,null,null,"Select from Drop Down","Select from Drop Down","Select from Drop Down",null,null,null,null,null,null,null,null,null,null,null,null,"Select from Drop Down","Select from Drop Down","Select from Drop Down"]
[569,null,null,"Select from Drop Down","Select from Drop Down","Select from Drop Down",null,null,null,null,null,null,null,null,null,null,null,null,"Select from Drop Down","Select from Drop Down","Select from Drop Down"]
[570,null,null,"Select from Drop Down","Select from Drop Down","Select from Drop Down",null,null,null,null,null,null,null,null,null,null,null,null,"Select from Drop Down","Select from Drop Down","Select from Drop Down"]
[571,null,null,"Select from Drop Down","Select from Drop Down","Select from Drop Down",null,null,null,null,null,null,null,null,null,null,null,null,"Select from Drop Down","Select from Drop Down","Select from Drop Down"]
[572,null,null,"Select from Drop Down","Select from Drop Down","Select from Drop Down",null,null,null,null,null,null,null,null,null,null,null,null,"Select from Drop Down","Select from Drop Down","Select from Drop Down"]
[573,null,null,"Select from Drop Down","Select from Drop Down","Select from Drop Down",null,null,null,null,null,null,null,null,null,null,null,null,"Select from Drop Down","Select from Drop Down","Select from Drop Down"]
[574,null,null,"Select from Drop Down","Select from Drop Down","Select from Drop Down",null,null,null,null,null,null,null,null,null,null,null,null,"Select from Drop Down","Select from Drop Down","Select from Drop Down"]
[575,null,null,"Select from Drop Down","Select from Drop Down","Select from Drop Down",null,null,null,null,null,null,null,null,null,null,null,null,"Select from Drop Down","Select from Drop Down","Select from Drop Down"]
[576,null,null,"Select from Drop Down","Select from Drop Down","Select from Drop Down",null,null,null,null,null,null,null,null,null,null,null,null,"Select from Drop Down","Select from Drop Down","Select from Drop Down"]
[577,null,null,"Select from Drop Down","Select from Drop Down","Select from Drop Down",null,null,null,null,null,null,null,null,null,null,null,null,"Select from Drop Down","Select from Drop Down","Select from Drop Down"]
[578,null,null,"Select from Drop Down","Select from Drop Down","Select from Drop Down",null,null,null,null,null,null,null,null,null,null,null,null,"Select from Drop Down","Select from Drop Down","Select from Drop Down"]
[{"$f":"A588+1","v":579},null,null,"Select from Drop Down","Select from Drop Down","Select from Drop Down",null,null,null,null,null,null,null,null,null,null,null,null,"Select from Drop Down","Select from Drop Down","Select from Drop Down"]
[580,null,null,"Select from Drop Down","Select from Drop Down","Select from Drop Down",null,null,null,null,null,null,null,null,null,null,null,null,"Select from Drop Down","Select from Drop Down","Select from Drop Down"]
[581,null,null,"Select from Drop Down","Select from Drop Down","Select from Drop Down",null,null,null,null,null,null,null,null,null,null,null,null,"Select from Drop Down","Select from Drop Down","Select from Drop Down"]
[582,null,null,"Select from Drop Down","Select from Drop Down","Select from Drop Down",null,null,null,null,null,null,null,null,null,null,null,null,"Select from Drop Down","Select from Drop Down","Select from Drop Down"]
[583,null,null,"Select from Drop Down","Select from Drop Down","Select from Drop Down",null,null,null,null,null,null,null,null,null,null,null,null,"Select from Drop Down","Select from Drop Down","Select from Drop Down"]
[584,null,null,"Select from Drop Down","Select from Drop Down","Select from Drop Down",null,null,null,null,null,null,null,null,null,null,null,null,"Select from Drop Down","Select from Drop Down","Select from Drop Down"]
[585,null,null,"Select from Drop Down","Select from Drop Down","Select from Drop Down",null,null,null,null,null,null,null,null,null,null,null,null,"Select from Drop Down","Select from Drop Down","Select from Drop Down"]
[586,null,null,"Select from Drop Down","Select from Drop Down","Select from Drop Down",null,null,null,null,null,null,null,null,null,null,null,null,"Select from Drop Down","Select from Drop Down","Select from Drop Down"]
[587,null,null,"Select from Drop Down","Select from Drop Down","Select from Drop Down",null,null,null,null,null,null,null,null,null,null,null,null,"Select from Drop Down","Select from Drop Down","Select from Drop Down"]
[588,null,null,"Select from Drop Down","Select from Drop Down","Select from Drop Down",null,null,null,null,null,null,null,null,null,null,null,null,"Select from Drop Down","Select from Drop Down","Select from Drop Down"]
[589,null,null,"Select from Drop Down","Select from Drop Down","Select from Drop Down",null,null,null,null,null,null,null,null,null,null,null,null,"Select from Drop Down","Select from Drop Down","Select from Drop Down"]
[590,null,null,"Select from Drop Down","Select from Drop Down","Select from Drop Down",null,null,null,null,null,null,null,null,null,null,null,null,"Select from Drop Down","Select from Drop Down","Select from Drop Down"]
[591,null,null,"Select from Drop Down","Select from Drop Down","Select from Drop Down",null,null,null,null,null,null,null,null,null,null,null,null,"Select from Drop Down","Select from Drop Down","Select from Drop Down"]
[592,null,null,"Select from Drop Down","Select from Drop Down","Select from Drop Down",null,null,null,null,null,null,null,null,null,null,null,null,"Select from Drop Down","Select from Drop Down","Select from Drop Down"]
[593,null,null,"Select from Drop Down","Select from Drop Down","Select from Drop Down",null,null,null,null,null,null,null,null,null,null,null,null,"Select from Drop Down","Select from Drop Down","Select from Drop Down"]
[594,null,null,"Select from Drop Down","Select from Drop Down","Select from Drop Down",null,null,null,null,null,null,null,null,null,null,null,null,"Select from Drop Down","Select from Drop Down","Select from Drop Down"]
[595,null,null,"Select from Drop Down","Select from Drop Down","Select from Drop Down",null,null,null,null,null,null,null,null,null,null,null,null,"Select from Drop Down","Select from Drop Down","Select from Drop Down"]
[596,null,null,"Select from Drop Down","Select from Drop Down","Select from Drop Down",null,null,null,null,null,null,null,null,null,null,null,null,"Select from Drop Down","Select from Drop Down","Select from Drop Down"]
[597,null,null,"Select from Drop Down","Select from Drop Down","Select from Drop Down",null,null,null,null,null,null,null,null,null,null,null,null,"Select from Drop Down","Select from Drop Down","Select from Drop Down"]
[598,null,null,"Select from Drop Down","Select from Drop Down","Select from Drop Down",null,null,null,null,null,null,null,null,null,null,null,null,"Select from Drop Down","Select from Drop Down","Select from Drop Down"]
[599,null,null,"Select from Drop Down","Select from Drop Down","Select from Drop Down",null,null,null,null,null,null,null,null,null,null,null,null,"Select from Drop Down","Select from Drop Down","Select from Drop Down"]
[600,null,null,"Select from Drop Down","Select from Drop Down","Select from Drop Down",null,null,null,null,null,null,null,null,null,null,null,null,"Select from Drop Down","Select from Drop Down","Select from Drop Down"]
[601,null,null,"Select from Drop Down","Select from Drop Down","Select from Drop Down",null,null,null,null,null,null,null,null,null,null,null,null,"Select from Drop Down","Select from Drop Down","Select from Drop Down"]
[602,null,null,"Select from Drop Down","Select from Drop Down","Select from Drop Down",null,null,null,null,null,null,null,null,null,null,null,null,"Select from Drop Down","Select from Drop Down","Select from Drop Down"]
[603,null,null,"Select from Drop Down","Select from Drop Down","Select from Drop Down",null,null,null,null,null,null,null,null,null,null,null,null,"Select from Drop Down","Select from Drop Down","Select from Drop Down"]
[604,null,null,"Select from Drop Down","Select from Drop Down","Select from Drop Down",null,null,null,null,null,null,null,null,null,null,null,null,"Select from Drop Down","Select from Drop Down","Select from Drop Down"]
[605,null,null,"Select from Drop Down","Select from Drop Down","Select from Drop Down",null,null,null,null,null,null,null,null,null,null,null,null,"Select from Drop Down","Select from Drop Down","Select from Drop Down"]
[606,null,null,"Select from Drop Down","Select from Drop Down","Select from Drop Down",null,null,null,null,null,null,null,null,null,null,null,null,"Select from Drop Down","Select from Drop Down","Select from Drop Down"]
[607,null,null,"Select from Drop Down","Select from Drop Down","Select from Drop Down",null,null,null,null,null,null,null,null,null,null,null,null,"Select from Drop Down","Select from Drop Down","Select from Drop Down"]
[608,null,null,"Select from Drop Down","Select from Drop Down","Select from Drop Down",null,null,null,null,null,null,null,null,null,null,null,null,"Select from Drop Down","Select from Drop Down","Select from Drop Down"]
[609,null,null,"Select from Drop Down","Select from Drop Down","Select from Drop Down",null,null,null,null,null,null,null,null,null,null,null,null,"Select from Drop Down","Select from Drop Down","Select from Drop Down"]
[610,null,null,"Select from Drop Down","Select from Drop Down","Select from Drop Down",null,null,null,null,null,null,null,null,null,null,null,null,"Select from Drop Down","Select from Drop Down","Select from Drop Down"]
[611,null,null,"Select from Drop Down","Select from Drop Down","Select from Drop Down",null,null,null,null,null,null,null,null,null,null,null,null,"Select from Drop Down","Select from Drop Down","Select from Drop Down"]
[612,null,null,"Select from Drop Down","Select from Drop Down","Select from Drop Down",null,null,null,null,null,null,null,null,null,null,null,null,"Select from Drop Down","Select from Drop Down","Select from Drop Down"]
[613,null,null,"Select from Drop Down","Select from Drop Down","Select from Drop Down",null,null,null,null,null,null,null,null,null,null,null,null,"Select from Drop Down","Select from Drop Down","Select from Drop Down"]
[614,null,null,"Select from Drop Down","Select from Drop Down","Select from Drop Down",null,null,null,null,null,null,null,null,null,null,null,null,"Select from Drop Down","Select from Drop Down","Select from Drop Down"]
[615,null,null,"Select from Drop Down","Select from Drop Down","Select from Drop Down",null,null,null,null,null,null,null,null,null,null,null,null,"Select from Drop Down","Select from Drop Down","Select from Drop Down"]
[616,null,null,"Select from Drop Down","Select from Drop Down","Select from Drop Down",null,null,null,null,null,null,null,null,null,null,null,null,"Select from Drop Down","Select from Drop Down","Select from Drop Down"]
[617,null,null,"Select from Drop Down","Select from Drop Down","Select from Drop Down",null,null,null,null,null,null,null,null,null,null,null,null,"Select from Drop Down","Select from Drop Down","Select from Drop Down"]
[618,null,null,"Select from Drop Down","Select from Drop Down","Select from Drop Down",null,null,null,null,null,null,null,null,null,null,null,null,"Select from Drop Down","Select from Drop Down","Select from Drop Down"]
[619,null,null,"Select from Drop Down","Select from Drop Down","Select from Drop Down",null,null,null,null,null,null,null,null,null,null,null,null,"Select from Drop Down","Select from Drop Down","Select from Drop Down"]
[620,null,null,"Select from Drop Down","Select from Drop Down","Select from Drop Down",null,null,null,null,null,null,null,null,null,null,null,null,"Select from Drop Down","Select from Drop Down","Select from Drop Down"]
[621,null,null,"Select from Drop Down","Select from Drop Down","Select from Drop Down",null,null,null,null,null,null,null,null,null,null,null,null,"Select from Drop Down","Select from Drop Down","Select from Drop Down"]
[622,null,null,"Select from Drop Down","Select from Drop Down","Select from Drop Down",null,null,null,null,null,null,null,null,null,null,null,null,"Select from Drop Down","Select from Drop Down","Select from Drop Down"]
[623,null,null,"Select from Drop Down","Select from Drop Down","Select from Drop Down",null,null,null,null,null,null,null,null,null,null,null,null,"Select from Drop Down","Select from Drop Down","Select from Drop Down"]
[624,null,null,"Select from Drop Down","Select from Drop Down","Select from Drop Down",null,null,null,null,null,null,null,null,null,null,null,null,"Select from Drop Down","Select from Drop Down","Select from Drop Down"]
[625,null,null,"Select from Drop Down","Select from Drop Down","Select from Drop Down",null,null,null,null,null,null,null,null,null,null,null,null,"Select from Drop Down","Select from Drop Down","Select from Drop Down"]
[626,null,null,"Select from Drop Down","Select from Drop Down","Select from Drop Down",null,null,null,null,null,null,null,null,null,null,null,null,"Select from Drop Down","Select from Drop Down","Select from Drop Down"]
[627,null,null,"Select from Drop Down","Select from Drop Down","Select from Drop Down",null,null,null,null,null,null,null,null,null,null,null,null,"Select from Drop Down","Select from Drop Down","Select from Drop Down"]
[628,null,null,"Select from Drop Down","Select from Drop Down","Select from Drop Down",null,null,null,null,null,null,null,null,null,null,null,null,"Select from Drop Down","Select from Drop Down","Select from Drop Down"]
[629,null,null,"Select from Drop Down","Select from Drop Down","Select from Drop Down",null,null,null,null,null,null,null,null,null,null,null,null,"Select from Drop Down","Select from Drop Down","Select from Drop Down"]
[630,null,null,"Select from Drop Down","Select from Drop Down","Select from Drop Down",null,null,null,null,null,null,null,null,null,null,null,null,"Select from Drop Down","Select from Drop Down","Select from Drop Down"]
[631,null,null,"Select from Drop Down","Select from Drop Down","Select from Drop Down",null,null,null,null,null,null,null,null,null,null,null,null,"Select from Drop Down","Select from Drop Down","Select from Drop Down"]
[632,null,null,"Select from Drop Down","Select from Drop Down","Select from Drop Down",null,null,null,null,null,null,null,null,null,null,null,null,"Select from Drop Down","Select from Drop Down","Select from Drop Down"]
[633,null,null,"Select from Drop Down","Select from Drop Down","Select from Drop Down",null,null,null,null,null,null,null,null,null,null,null,null,"Select from Drop Down","Select from Drop Down","Select from Drop Down"]
[634,null,null,"Select from Drop Down","Select from Drop Down","Select from Drop Down",null,null,null,null,null,null,null,null,null,null,null,null,"Select from Drop Down","Select from Drop Down","Select from Drop Down"]
[635,null,null,"Select from Drop Down","Select from Drop Down","Select from Drop Down",null,null,null,null,null,null,null,null,null,null,null,null,"Select from Drop Down","Select from Drop Down","Select from Drop Down"]
[636,null,null,"Select from Drop Down","Select from Drop Down","Select from Drop Down",null,null,null,null,null,null,null,null,null,null,null,null,"Select from Drop Down","Select from Drop Down","Select from Drop Down"]
[637,null,null,"Select from Drop Down","Select from Drop Down","Select from Drop Down",null,null,null,null,null,null,null,null,null,null,null,null,"Select from Drop Down","Select from Drop Down","Select from Drop Down"]
[638,null,null,"Select from Drop Down","Select from Drop Down","Select from Drop Down",null,null,null,null,null,null,null,null,null,null,null,null,"Select from Drop Down","Select from Drop Down","Select from Drop Down"]
[639,null,null,"Select from Drop Down","Select from Drop Down","Select from Drop Down",null,null,null,null,null,null,null,null,null,null,null,null,"Select from Drop Down","Select from Drop Down","Select from Drop Down"]
[640,null,null,"Select from Drop Down","Select from Drop Down","Select from Drop Down",null,null,null,null,null,null,null,null,null,null,null,null,"Select from Drop Down","Select from Drop Down","Select from Drop Down"]
[641,null,null,"Select from Drop Down","Select from Drop Down","Select from Drop Down",null,null,null,null,null,null,null,null,null,null,null,null,"Select from Drop Down","Select from Drop Down","Select from Drop Down"]
[642,null,null,"Select from Drop Down","Select from Drop Down","Select from Drop Down",null,null,null,null,null,null,null,null,null,null,null,null,"Select from Drop Down","Select from Drop Down","Select from Drop Down"]
[{"$f":"A652+1","v":643},null,null,"Select from Drop Down","Select from Drop Down","Select from Drop Down",null,null,null,null,null,null,null,null,null,null,null,null,"Select from Drop Down","Select from Drop Down","Select from Drop Down"]
[644,null,null,"Select from Drop Down","Select from Drop Down","Select from Drop Down",null,null,null,null,null,null,null,null,null,null,null,null,"Select from Drop Down","Select from Drop Down","Select from Drop Down"]
[645,null,null,"Select from Drop Down","Select from Drop Down","Select from Drop Down",null,null,null,null,null,null,null,null,null,null,null,null,"Select from Drop Down","Select from Drop Down","Select from Drop Down"]
[646,null,null,"Select from Drop Down","Select from Drop Down","Select from Drop Down",null,null,null,null,null,null,null,null,null,null,null,null,"Select from Drop Down","Select from Drop Down","Select from Drop Down"]
[647,null,null,"Select from Drop Down","Select from Drop Down","Select from Drop Down",null,null,null,null,null,null,null,null,null,null,null,null,"Select from Drop Down","Select from Drop Down","Select from Drop Down"]
[648,null,null,"Select from Drop Down","Select from Drop Down","Select from Drop Down",null,null,null,null,null,null,null,null,null,null,null,null,"Select from Drop Down","Select from Drop Down","Select from Drop Down"]
[649,null,null,"Select from Drop Down","Select from Drop Down","Select from Drop Down",null,null,null,null,null,null,null,null,null,null,null,null,"Select from Drop Down","Select from Drop Down","Select from Drop Down"]
[650,null,null,"Select from Drop Down","Select from Drop Down","Select from Drop Down",null,null,null,null,null,null,null,null,null,null,null,null,"Select from Drop Down","Select from Drop Down","Select from Drop Down"]
[651,null,null,"Select from Drop Down","Select from Drop Down","Select from Drop Down",null,null,null,null,null,null,null,null,null,null,null,null,"Select from Drop Down","Select from Drop Down","Select from Drop Down"]
[652,null,null,"Select from Drop Down","Select from Drop Down","Select from Drop Down",null,null,null,null,null,null,null,null,null,null,null,null,"Select from Drop Down","Select from Drop Down","Select from Drop Down"]
[653,null,null,"Select from Drop Down","Select from Drop Down","Select from Drop Down",null,null,null,null,null,null,null,null,null,null,null,null,"Select from Drop Down","Select from Drop Down","Select from Drop Down"]
[654,null,null,"Select from Drop Down","Select from Drop Down","Select from Drop Down",null,null,null,null,null,null,null,null,null,null,null,null,"Select from Drop Down","Select from Drop Down","Select from Drop Down"]
[655,null,null,"Select from Drop Down","Select from Drop Down","Select from Drop Down",null,null,null,null,null,null,null,null,null,null,null,null,"Select from Drop Down","Select from Drop Down","Select from Drop Down"]
[656,null,null,"Select from Drop Down","Select from Drop Down","Select from Drop Down",null,null,null,null,null,null,null,null,null,null,null,null,"Select from Drop Down","Select from Drop Down","Select from Drop Down"]
[657,null,null,"Select from Drop Down","Select from Drop Down","Select from Drop Down",null,null,null,null,null,null,null,null,null,null,null,null,"Select from Drop Down","Select from Drop Down","Select from Drop Down"]
[658,null,null,"Select from Drop Down","Select from Drop Down","Select from Drop Down",null,null,null,null,null,null,null,null,null,null,null,null,"Select from Drop Down","Select from Drop Down","Select from Drop Down"]
[659,null,null,"Select from Drop Down","Select from Drop Down","Select from Drop Down",null,null,null,null,null,null,null,null,null,null,null,null,"Select from Drop Down","Select from Drop Down","Select from Drop Down"]
[660,null,null,"Select from Drop Down","Select from Drop Down","Select from Drop Down",null,null,null,null,null,null,null,null,null,null,null,null,"Select from Drop Down","Select from Drop Down","Select from Drop Down"]
[661,null,null,"Select from Drop Down","Select from Drop Down","Select from Drop Down",null,null,null,null,null,null,null,null,null,null,null,null,"Select from Drop Down","Select from Drop Down","Select from Drop Down"]
[662,null,null,"Select from Drop Down","Select from Drop Down","Select from Drop Down",null,null,null,null,null,null,null,null,null,null,null,null,"Select from Drop Down","Select from Drop Down","Select from Drop Down"]
[663,null,null,"Select from Drop Down","Select from Drop Down","Select from Drop Down",null,null,null,null,null,null,null,null,null,null,null,null,"Select from Drop Down","Select from Drop Down","Select from Drop Down"]
[664,null,null,"Select from Drop Down","Select from Drop Down","Select from Drop Down",null,null,null,null,null,null,null,null,null,null,null,null,"Select from Drop Down","Select from Drop Down","Select from Drop Down"]
[665,null,null,"Select from Drop Down","Select from Drop Down","Select from Drop Down",null,null,null,null,null,null,null,null,null,null,null,null,"Select from Drop Down","Select from Drop Down","Select from Drop Down"]
[666,null,null,"Select from Drop Down","Select from Drop Down","Select from Drop Down",null,null,null,null,null,null,null,null,null,null,null,null,"Select from Drop Down","Select from Drop Down","Select from Drop Down"]
[667,null,null,"Select from Drop Down","Select from Drop Down","Select from Drop Down",null,null,null,null,null,null,null,null,null,null,null,null,"Select from Drop Down","Select from Drop Down","Select from Drop Down"]
[668,null,null,"Select from Drop Down","Select from Drop Down","Select from Drop Down",null,null,null,null,null,null,null,null,null,null,null,null,"Select from Drop Down","Select from Drop Down","Select from Drop Down"]
[669,null,null,"Select from Drop Down","Select from Drop Down","Select from Drop Down",null,null,null,null,null,null,null,null,null,null,null,null,"Select from Drop Down","Select from Drop Down","Select from Drop Down"]
[670,null,null,"Select from Drop Down","Select from Drop Down","Select from Drop Down",null,null,null,null,null,null,null,null,null,null,null,null,"Select from Drop Down","Select from Drop Down","Select from Drop Down"]
[671,null,null,"Select from Drop Down","Select from Drop Down","Select from Drop Down",null,null,null,null,null,null,null,null,null,null,null,null,"Select from Drop Down","Select from Drop Down","Select from Drop Down"]
[672,null,null,"Select from Drop Down","Select from Drop Down","Select from Drop Down",null,null,null,null,null,null,null,null,null,null,null,null,"Select from Drop Down","Select from Drop Down","Select from Drop Down"]
[673,null,null,"Select from Drop Down","Select from Drop Down","Select from Drop Down",null,null,null,null,null,null,null,null,null,null,null,null,"Select from Drop Down","Select from Drop Down","Select from Drop Down"]
[674,null,null,"Select from Drop Down","Select from Drop Down","Select from Drop Down",null,null,null,null,null,null,null,null,null,null,null,null,"Select from Drop Down","Select from Drop Down","Select from Drop Down"]
[675,null,null,"Select from Drop Down","Select from Drop Down","Select from Drop Down",null,null,null,null,null,null,null,null,null,null,null,null,"Select from Drop Down","Select from Drop Down","Select from Drop Down"]
[676,null,null,"Select from Drop Down","Select from Drop Down","Select from Drop Down",null,null,null,null,null,null,null,null,null,null,null,null,"Select from Drop Down","Select from Drop Down","Select from Drop Down"]
[677,null,null,"Select from Drop Down","Select from Drop Down","Select from Drop Down",null,null,null,null,null,null,null,null,null,null,null,null,"Select from Drop Down","Select from Drop Down","Select from Drop Down"]
[678,null,null,"Select from Drop Down","Select from Drop Down","Select from Drop Down",null,null,null,null,null,null,null,null,null,null,null,null,"Select from Drop Down","Select from Drop Down","Select from Drop Down"]
[679,null,null,"Select from Drop Down","Select from Drop Down","Select from Drop Down",null,null,null,null,null,null,null,null,null,null,null,null,"Select from Drop Down","Select from Drop Down","Select from Drop Down"]
[680,null,null,"Select from Drop Down","Select from Drop Down","Select from Drop Down",null,null,null,null,null,null,null,null,null,null,null,null,"Select from Drop Down","Select from Drop Down","Select from Drop Down"]
[681,null,null,"Select from Drop Down","Select from Drop Down","Select from Drop Down",null,null,null,null,null,null,null,null,null,null,null,null,"Select from Drop Down","Select from Drop Down","Select from Drop Down"]
[682,null,null,"Select from Drop Down","Select from Drop Down","Select from Drop Down",null,null,null,null,null,null,null,null,null,null,null,null,"Select from Drop Down","Select from Drop Down","Select from Drop Down"]
[683,null,null,"Select from Drop Down","Select from Drop Down","Select from Drop Down",null,null,null,null,null,null,null,null,null,null,null,null,"Select from Drop Down","Select from Drop Down","Select from Drop Down"]
[684,null,null,"Select from Drop Down","Select from Drop Down","Select from Drop Down",null,null,null,null,null,null,null,null,null,null,null,null,"Select from Drop Down","Select from Drop Down","Select from Drop Down"]
[685,null,null,"Select from Drop Down","Select from Drop Down","Select from Drop Down",null,null,null,null,null,null,null,null,null,null,null,null,"Select from Drop Down","Select from Drop Down","Select from Drop Down"]
[686,null,null,"Select from Drop Down","Select from Drop Down","Select from Drop Down",null,null,null,null,null,null,null,null,null,null,null,null,"Select from Drop Down","Select from Drop Down","Select from Drop Down"]
[687,null,null,"Select from Drop Down","Select from Drop Down","Select from Drop Down",null,null,null,null,null,null,null,null,null,null,null,null,"Select from Drop Down","Select from Drop Down","Select from Drop Down"]
[688,null,null,"Select from Drop Down","Select from Drop Down","Select from Drop Down",null,null,null,null,null,null,null,null,null,null,null,null,"Select from Drop Down","Select from Drop Down","Select from Drop Down"]
[689,null,null,"Select from Drop Down","Select from Drop Down","Select from Drop Down",null,null,null,null,null,null,null,null,null,null,null,null,"Select from Drop Down","Select from Drop Down","Select from Drop Down"]
[690,null,null,"Select from Drop Down","Select from Drop Down","Select from Drop Down",null,null,null,null,null,null,null,null,null,null,null,null,"Select from Drop Down","Select from Drop Down","Select from Drop Down"]
[691,null,null,"Select from Drop Down","Select from Drop Down","Select from Drop Down",null,null,null,null,null,null,null,null,null,null,null,null,"Select from Drop Down","Select from Drop Down","Select from Drop Down"]
[692,null,null,"Select from Drop Down","Select from Drop Down","Select from Drop Down",null,null,null,null,null,null,null,null,null,null,null,null,"Select from Drop Down","Select from Drop Down","Select from Drop Down"]
[693,null,null,"Select from Drop Down","Select from Drop Down","Select from Drop Down",null,null,null,null,null,null,null,null,null,null,null,null,"Select from Drop Down","Select from Drop Down","Select from Drop Down"]
[694,null,null,"Select from Drop Down","Select from Drop Down","Select from Drop Down",null,null,null,null,null,null,null,null,null,null,null,null,"Select from Drop Down","Select from Drop Down","Select from Drop Down"]
[695,null,null,"Select from Drop Down","Select from Drop Down","Select from Drop Down",null,null,null,null,null,null,null,null,null,null,null,null,"Select from Drop Down","Select from Drop Down","Select from Drop Down"]
[696,null,null,"Select from Drop Down","Select from Drop Down","Select from Drop Down",null,null,null,null,null,null,null,null,null,null,null,null,"Select from Drop Down","Select from Drop Down","Select from Drop Down"]
[697,null,null,"Select from Drop Down","Select from Drop Down","Select from Drop Down",null,null,null,null,null,null,null,null,null,null,null,null,"Select from Drop Down","Select from Drop Down","Select from Drop Down"]
[698,null,null,"Select from Drop Down","Select from Drop Down","Select from Drop Down",null,null,null,null,null,null,null,null,null,null,null,null,"Select from Drop Down","Select from Drop Down","Select from Drop Down"]
[699,null,null,"Select from Drop Down","Select from Drop Down","Select from Drop Down",null,null,null,null,null,null,null,null,null,null,null,null,"Select from Drop Down","Select from Drop Down","Select from Drop Down"]
[700,null,null,"Select from Drop Down","Select from Drop Down","Select from Drop Down",null,null,null,null,null,null,null,null,null,null,null,null,"Select from Drop Down","Select from Drop Down","Select from Drop Down"]
[701,null,null,"Select from Drop Down","Select from Drop Down","Select from Drop Down",null,null,null,null,null,null,null,null,null,null,null,null,"Select from Drop Down","Select from Drop Down","Select from Drop Down"]
[702,null,null,"Select from Drop Down","Select from Drop Down","Select from Drop Down",null,null,null,null,null,null,null,null,null,null,null,null,"Select from Drop Down","Select from Drop Down","Select from Drop Down"]
[703,null,null,"Select from Drop Down","Select from Drop Down","Select from Drop Down",null,null,null,null,null,null,null,null,null,null,null,null,"Select from Drop Down","Select from Drop Down","Select from Drop Down"]
[704,null,null,"Select from Drop Down","Select from Drop Down","Select from Drop Down",null,null,null,null,null,null,null,null,null,null,null,null,"Select from Drop Down","Select from Drop Down","Select from Drop Down"]
[705,null,null,"Select from Drop Down","Select from Drop Down","Select from Drop Down",null,null,null,null,null,null,null,null,null,null,null,null,"Select from Drop Down","Select from Drop Down","Select from Drop Down"]
[706,null,null,"Select from Drop Down","Select from Drop Down","Select from Drop Down",null,null,null,null,null,null,null,null,null,null,null,null,"Select from Drop Down","Select from Drop Down","Select from Drop Down"]
[{"$f":"A716+1","v":707},null,null,"Select from Drop Down","Select from Drop Down","Select from Drop Down",null,null,null,null,null,null,null,null,null,null,null,null,"Select from Drop Down","Select from Drop Down","Select from Drop Down"]
[708,null,null,"Select from Drop Down","Select from Drop Down","Select from Drop Down",null,null,null,null,null,null,null,null,null,null,null,null,"Select from Drop Down","Select from Drop Down","Select from Drop Down"]
[709,null,null,"Select from Drop Down","Select from Drop Down","Select from Drop Down",null,null,null,null,null,null,null,null,null,null,null,null,"Select from Drop Down","Select from Drop Down","Select from Drop Down"]
[710,null,null,"Select from Drop Down","Select from Drop Down","Select from Drop Down",null,null,null,null,null,null,null,null,null,null,null,null,"Select from Drop Down","Select from Drop Down","Select from Drop Down"]
[711,null,null,"Select from Drop Down","Select from Drop Down","Select from Drop Down",null,null,null,null,null,null,null,null,null,null,null,null,"Select from Drop Down","Select from Drop Down","Select from Drop Down"]
[712,null,null,"Select from Drop Down","Select from Drop Down","Select from Drop Down",null,null,null,null,null,null,null,null,null,null,null,null,"Select from Drop Down","Select from Drop Down","Select from Drop Down"]
[713,null,null,"Select from Drop Down","Select from Drop Down","Select from Drop Down",null,null,null,null,null,null,null,null,null,null,null,null,"Select from Drop Down","Select from Drop Down","Select from Drop Down"]
[714,null,null,"Select from Drop Down","Select from Drop Down","Select from Drop Down",null,null,null,null,null,null,null,null,null,null,null,null,"Select from Drop Down","Select from Drop Down","Select from Drop Down"]
[715,null,null,"Select from Drop Down","Select from Drop Down","Select from Drop Down",null,null,null,null,null,null,null,null,null,null,null,null,"Select from Drop Down","Select from Drop Down","Select from Drop Down"]
[716,null,null,"Select from Drop Down","Select from Drop Down","Select from Drop Down",null,null,null,null,null,null,null,null,null,null,null,null,"Select from Drop Down","Select from Drop Down","Select from Drop Down"]
[717,null,null,"Select from Drop Down","Select from Drop Down","Select from Drop Down",null,null,null,null,null,null,null,null,null,null,null,null,"Select from Drop Down","Select from Drop Down","Select from Drop Down"]
[718,null,null,"Select from Drop Down","Select from Drop Down","Select from Drop Down",null,null,null,null,null,null,null,null,null,null,null,null,"Select from Drop Down","Select from Drop Down","Select from Drop Down"]
[719,null,null,"Select from Drop Down","Select from Drop Down","Select from Drop Down",null,null,null,null,null,null,null,null,null,null,null,null,"Select from Drop Down","Select from Drop Down","Select from Drop Down"]
[720,null,null,"Select from Drop Down","Select from Drop Down","Select from Drop Down",null,null,null,null,null,null,null,null,null,null,null,null,"Select from Drop Down","Select from Drop Down","Select from Drop Down"]
[721,null,null,"Select from Drop Down","Select from Drop Down","Select from Drop Down",null,null,null,null,null,null,null,null,null,null,null,null,"Select from Drop Down","Select from Drop Down","Select from Drop Down"]
[722,null,null,"Select from Drop Down","Select from Drop Down","Select from Drop Down",null,null,null,null,null,null,null,null,null,null,null,null,"Select from Drop Down","Select from Drop Down","Select from Drop Down"]
[723,null,null,"Select from Drop Down","Select from Drop Down","Select from Drop Down",null,null,null,null,null,null,null,null,null,null,null,null,"Select from Drop Down","Select from Drop Down","Select from Drop Down"]
[724,null,null,"Select from Drop Down","Select from Drop Down","Select from Drop Down",null,null,null,null,null,null,null,null,null,null,null,null,"Select from Drop Down","Select from Drop Down","Select from Drop Down"]
[725,null,null,"Select from Drop Down","Select from Drop Down","Select from Drop Down",null,null,null,null,null,null,null,null,null,null,null,null,"Select from Drop Down","Select from Drop Down","Select from Drop Down"]
[726,null,null,"Select from Drop Down","Select from Drop Down","Select from Drop Down",null,null,null,null,null,null,null,null,null,null,null,null,"Select from Drop Down","Select from Drop Down","Select from Drop Down"]
[727,null,null,"Select from Drop Down","Select from Drop Down","Select from Drop Down",null,null,null,null,null,null,null,null,null,null,null,null,"Select from Drop Down","Select from Drop Down","Select from Drop Down"]
[728,null,null,"Select from Drop Down","Select from Drop Down","Select from Drop Down",null,null,null,null,null,null,null,null,null,null,null,null,"Select from Drop Down","Select from Drop Down","Select from Drop Down"]
[729,null,null,"Select from Drop Down","Select from Drop Down","Select from Drop Down",null,null,null,null,null,null,null,null,null,null,null,null,"Select from Drop Down","Select from Drop Down","Select from Drop Down"]
[730,null,null,"Select from Drop Down","Select from Drop Down","Select from Drop Down",null,null,null,null,null,null,null,null,null,null,null,null,"Select from Drop Down","Select from Drop Down","Select from Drop Down"]
[731,null,null,"Select from Drop Down","Select from Drop Down","Select from Drop Down",null,null,null,null,null,null,null,null,null,null,null,null,"Select from Drop Down","Select from Drop Down","Select from Drop Down"]
[732,null,null,"Select from Drop Down","Select from Drop Down","Select from Drop Down",null,null,null,null,null,null,null,null,null,null,null,null,"Select from Drop Down","Select from Drop Down","Select from Drop Down"]
[733,null,null,"Select from Drop Down","Select from Drop Down","Select from Drop Down",null,null,null,null,null,null,null,null,null,null,null,null,"Select from Drop Down","Select from Drop Down","Select from Drop Down"]
[734,null,null,"Select from Drop Down","Select from Drop Down","Select from Drop Down",null,null,null,null,null,null,null,null,null,null,null,null,"Select from Drop Down","Select from Drop Down","Select from Drop Down"]
[735,null,null,"Select from Drop Down","Select from Drop Down","Select from Drop Down",null,null,null,null,null,null,null,null,null,null,null,null,"Select from Drop Down","Select from Drop Down","Select from Drop Down"]
[736,null,null,"Select from Drop Down","Select from Drop Down","Select from Drop Down",null,null,null,null,null,null,null,null,null,null,null,null,"Select from Drop Down","Select from Drop Down","Select from Drop Down"]
[737,null,null,"Select from Drop Down","Select from Drop Down","Select from Drop Down",null,null,null,null,null,null,null,null,null,null,null,null,"Select from Drop Down","Select from Drop Down","Select from Drop Down"]
[738,null,null,"Select from Drop Down","Select from Drop Down","Select from Drop Down",null,null,null,null,null,null,null,null,null,null,null,null,"Select from Drop Down","Select from Drop Down","Select from Drop Down"]
[739,null,null,"Select from Drop Down","Select from Drop Down","Select from Drop Down",null,null,null,null,null,null,null,null,null,null,null,null,"Select from Drop Down","Select from Drop Down","Select from Drop Down"]
[740,null,null,"Select from Drop Down","Select from Drop Down","Select from Drop Down",null,null,null,null,null,null,null,null,null,null,null,null,"Select from Drop Down","Select from Drop Down","Select from Drop Down"]
[741,null,null,"Select from Drop Down","Select from Drop Down","Select from Drop Down",null,null,null,null,null,null,null,null,null,null,null,null,"Select from Drop Down","Select from Drop Down","Select from Drop Down"]
[742,null,null,"Select from Drop Down","Select from Drop Down","Select from Drop Down",null,null,null,null,null,null,null,null,null,null,null,null,"Select from Drop Down","Select from Drop Down","Select from Drop Down"]
[743,null,null,"Select from Drop Down","Select from Drop Down","Select from Drop Down",null,null,null,null,null,null,null,null,null,null,null,null,"Select from Drop Down","Select from Drop Down","Select from Drop Down"]
[744,null,null,"Select from Drop Down","Select from Drop Down","Select from Drop Down",null,null,null,null,null,null,null,null,null,null,null,null,"Select from Drop Down","Select from Drop Down","Select from Drop Down"]
[745,null,null,"Select from Drop Down","Select from Drop Down","Select from Drop Down",null,null,null,null,null,null,null,null,null,null,null,null,"Select from Drop Down","Select from Drop Down","Select from Drop Down"]
[746,null,null,"Select from Drop Down","Select from Drop Down","Select from Drop Down",null,null,null,null,null,null,null,null,null,null,null,null,"Select from Drop Down","Select from Drop Down","Select from Drop Down"]
[747,null,null,"Select from Drop Down","Select from Drop Down","Select from Drop Down",null,null,null,null,null,null,null,null,null,null,null,null,"Select from Drop Down","Select from Drop Down","Select from Drop Down"]
[748,null,null,"Select from Drop Down","Select from Drop Down","Select from Drop Down",null,null,null,null,null,null,null,null,null,null,null,null,"Select from Drop Down","Select from Drop Down","Select from Drop Down"]
[749,null,null,"Select from Drop Down","Select from Drop Down","Select from Drop Down",null,null,null,null,null,null,null,null,null,null,null,null,"Select from Drop Down","Select from Drop Down","Select from Drop Down"]
[750,null,null,"Select from Drop Down","Select from Drop Down","Select from Drop Down",null,null,null,null,null,null,null,null,null,null,null,null,"Select from Drop Down","Select from Drop Down","Select from Drop Down"]
[751,null,null,"Select from Drop Down","Select from Drop Down","Select from Drop Down",null,null,null,null,null,null,null,null,null,null,null,null,"Select from Drop Down","Select from Drop Down","Select from Drop Down"]
[752,null,null,"Select from Drop Down","Select from Drop Down","Select from Drop Down",null,null,null,null,null,null,null,null,null,null,null,null,"Select from Drop Down","Select from Drop Down","Select from Drop Down"]
[753,null,null,"Select from Drop Down","Select from Drop Down","Select from Drop Down",null,null,null,null,null,null,null,null,null,null,null,null,"Select from Drop Down","Select from Drop Down","Select from Drop Down"]
[754,null,null,"Select from Drop Down","Select from Drop Down","Select from Drop Down",null,null,null,null,null,null,null,null,null,null,null,null,"Select from Drop Down","Select from Drop Down","Select from Drop Down"]
[755,null,null,"Select from Drop Down","Select from Drop Down","Select from Drop Down",null,null,null,null,null,null,null,null,null,null,null,null,"Select from Drop Down","Select from Drop Down","Select from Drop Down"]
[756,null,null,"Select from Drop Down","Select from Drop Down","Select from Drop Down",null,null,null,null,null,null,null,null,null,null,null,null,"Select from Drop Down","Select from Drop Down","Select from Drop Down"]
[757,null,null,"Select from Drop Down","Select from Drop Down","Select from Drop Down",null,null,null,null,null,null,null,null,null,null,null,null,"Select from Drop Down","Select from Drop Down","Select from Drop Down"]
[758,null,null,"Select from Drop Down","Select from Drop Down","Select from Drop Down",null,null,null,null,null,null,null,null,null,null,null,null,"Select from Drop Down","Select from Drop Down","Select from Drop Down"]
[759,null,null,"Select from Drop Down","Select from Drop Down","Select from Drop Down",null,null,null,null,null,null,null,null,null,null,null,null,"Select from Drop Down","Select from Drop Down","Select from Drop Down"]
[760,null,null,"Select from Drop Down","Select from Drop Down","Select from Drop Down",null,null,null,null,null,null,null,null,null,null,null,null,"Select from Drop Down","Select from Drop Down","Select from Drop Down"]
[761,null,null,"Select from Drop Down","Select from Drop Down","Select from Drop Down",null,null,null,null,null,null,null,null,null,null,null,null,"Select from Drop Down","Select from Drop Down","Select from Drop Down"]
[762,null,null,"Select from Drop Down","Select from Drop Down","Select from Drop Down",null,null,null,null,null,null,null,null,null,null,null,null,"Select from Drop Down","Select from Drop Down","Select from Drop Down"]
[763,null,null,"Select from Drop Down","Select from Drop Down","Select from Drop Down",null,null,null,null,null,null,null,null,null,null,null,null,"Select from Drop Down","Select from Drop Down","Select from Drop Down"]
[764,null,null,"Select from Drop Down","Select from Drop Down","Select from Drop Down",null,null,null,null,null,null,null,null,null,null,null,null,"Select from Drop Down","Select from Drop Down","Select from Drop Down"]
[765,null,null,"Select from Drop Down","Select from Drop Down","Select from Drop Down",null,null,null,null,null,null,null,null,null,null,null,null,"Select from Drop Down","Select from Drop Down","Select from Drop Down"]
[766,null,null,"Select from Drop Down","Select from Drop Down","Select from Drop Down",null,null,null,null,null,null,null,null,null,null,null,null,"Select from Drop Down","Select from Drop Down","Select from Drop Down"]
[767,null,null,"Select from Drop Down","Select from Drop Down","Select from Drop Down",null,null,null,null,null,null,null,null,null,null,null,null,"Select from Drop Down","Select from Drop Down","Select from Drop Down"]
[768,null,null,"Select from Drop Down","Select from Drop Down","Select from Drop Down",null,null,null,null,null,null,null,null,null,null,null,null,"Select from Drop Down","Select from Drop Down","Select from Drop Down"]
[769,null,null,"Select from Drop Down","Select from Drop Down","Select from Drop Down",null,null,null,null,null,null,null,null,null,null,null,null,"Select from Drop Down","Select from Drop Down","Select from Drop Down"]
[770,null,null,"Select from Drop Down","Select from Drop Down","Select from Drop Down",null,null,null,null,null,null,null,null,null,null,null,null,"Select from Drop Down","Select from Drop Down","Select from Drop Down"]
[{"$f":"A780+1","v":771},null,null,"Select from Drop Down","Select from Drop Down","Select from Drop Down",null,null,null,null,null,null,null,null,null,null,null,null,"Select from Drop Down","Select from Drop Down","Select from Drop Down"]
[772,null,null,"Select from Drop Down","Select from Drop Down","Select from Drop Down",null,null,null,null,null,null,null,null,null,null,null,null,"Select from Drop Down","Select from Drop Down","Select from Drop Down"]
[773,null,null,"Select from Drop Down","Select from Drop Down","Select from Drop Down",null,null,null,null,null,null,null,null,null,null,null,null,"Select from Drop Down","Select from Drop Down","Select from Drop Down"]
[774,null,null,"Select from Drop Down","Select from Drop Down","Select from Drop Down",null,null,null,null,null,null,null,null,null,null,null,null,"Select from Drop Down","Select from Drop Down","Select from Drop Down"]
[775,null,null,"Select from Drop Down","Select from Drop Down","Select from Drop Down",null,null,null,null,null,null,null,null,null,null,null,null,"Select from Drop Down","Select from Drop Down","Select from Drop Down"]
[776,null,null,"Select from Drop Down","Select from Drop Down","Select from Drop Down",null,null,null,null,null,null,null,null,null,null,null,null,"Select from Drop Down","Select from Drop Down","Select from Drop Down"]
[777,null,null,"Select from Drop Down","Select from Drop Down","Select from Drop Down",null,null,null,null,null,null,null,null,null,null,null,null,"Select from Drop Down","Select from Drop Down","Select from Drop Down"]
[778,null,null,"Select from Drop Down","Select from Drop Down","Select from Drop Down",null,null,null,null,null,null,null,null,null,null,null,null,"Select from Drop Down","Select from Drop Down","Select from Drop Down"]
[779,null,null,"Select from Drop Down","Select from Drop Down","Select from Drop Down",null,null,null,null,null,null,null,null,null,null,null,null,"Select from Drop Down","Select from Drop Down","Select from Drop Down"]
[780,null,null,"Select from Drop Down","Select from Drop Down","Select from Drop Down",null,null,null,null,null,null,null,null,null,null,null,null,"Select from Drop Down","Select from Drop Down","Select from Drop Down"]
[781,null,null,"Select from Drop Down","Select from Drop Down","Select from Drop Down",null,null,null,null,null,null,null,null,null,null,null,null,"Select from Drop Down","Select from Drop Down","Select from Drop Down"]
[782,null,null,"Select from Drop Down","Select from Drop Down","Select from Drop Down",null,null,null,null,null,null,null,null,null,null,null,null,"Select from Drop Down","Select from Drop Down","Select from Drop Down"]
[783,null,null,"Select from Drop Down","Select from Drop Down","Select from Drop Down",null,null,null,null,null,null,null,null,null,null,null,null,"Select from Drop Down","Select from Drop Down","Select from Drop Down"]
[784,null,null,"Select from Drop Down","Select from Drop Down","Select from Drop Down",null,null,null,null,null,null,null,null,null,null,null,null,"Select from Drop Down","Select from Drop Down","Select from Drop Down"]
[785,null,null,"Select from Drop Down","Select from Drop Down","Select from Drop Down",null,null,null,null,null,null,null,null,null,null,null,null,"Select from Drop Down","Select from Drop Down","Select from Drop Down"]
[786,null,null,"Select from Drop Down","Select from Drop Down","Select from Drop Down",null,null,null,null,null,null,null,null,null,null,null,null,"Select from Drop Down","Select from Drop Down","Select from Drop Down"]
[787,null,null,"Select from Drop Down","Select from Drop Down","Select from Drop Down",null,null,null,null,null,null,null,null,null,null,null,null,"Select from Drop Down","Select from Drop Down","Select from Drop Down"]
[788,null,null,"Select from Drop Down","Select from Drop Down","Select from Drop Down",null,null,null,null,null,null,null,null,null,null,null,null,"Select from Drop Down","Select from Drop Down","Select from Drop Down"]
[789,null,null,"Select from Drop Down","Select from Drop Down","Select from Drop Down",null,null,null,null,null,null,null,null,null,null,null,null,"Select from Drop Down","Select from Drop Down","Select from Drop Down"]
[790,null,null,"Select from Drop Down","Select from Drop Down","Select from Drop Down",null,null,null,null,null,null,null,null,null,null,null,null,"Select from Drop Down","Select from Drop Down","Select from Drop Down"]
[791,null,null,"Select from Drop Down","Select from Drop Down","Select from Drop Down",null,null,null,null,null,null,null,null,null,null,null,null,"Select from Drop Down","Select from Drop Down","Select from Drop Down"]
[792,null,null,"Select from Drop Down","Select from Drop Down","Select from Drop Down",null,null,null,null,null,null,null,null,null,null,null,null,"Select from Drop Down","Select from Drop Down","Select from Drop Down"]
[793,null,null,"Select from Drop Down","Select from Drop Down","Select from Drop Down",null,null,null,null,null,null,null,null,null,null,null,null,"Select from Drop Down","Select from Drop Down","Select from Drop Down"]
[794,null,null,"Select from Drop Down","Select from Drop Down","Select from Drop Down",null,null,null,null,null,null,null,null,null,null,null,null,"Select from Drop Down","Select from Drop Down","Select from Drop Down"]
[795,null,null,"Select from Drop Down","Select from Drop Down","Select from Drop Down",null,null,null,null,null,null,null,null,null,null,null,null,"Select from Drop Down","Select from Drop Down","Select from Drop Down"]
[796,null,null,"Select from Drop Down","Select from Drop Down","Select from Drop Down",null,null,null,null,null,null,null,null,null,null,null,null,"Select from Drop Down","Select from Drop Down","Select from Drop Down"]
[797,null,null,"Select from Drop Down","Select from Drop Down","Select from Drop Down",null,null,null,null,null,null,null,null,null,null,null,null,"Select from Drop Down","Select from Drop Down","Select from Drop Down"]
[798,null,null,"Select from Drop Down","Select from Drop Down","Select from Drop Down",null,null,null,null,null,null,null,null,null,null,null,null,"Select from Drop Down","Select from Drop Down","Select from Drop Down"]
[799,null,null,"Select from Drop Down","Select from Drop Down","Select from Drop Down",null,null,null,null,null,null,null,null,null,null,null,null,"Select from Drop Down","Select from Drop Down","Select from Drop Down"]
[800,null,null,"Select from Drop Down","Select from Drop Down","Select from Drop Down",null,null,null,null,null,null,null,null,null,null,null,null,"Select from Drop Down","Select from Drop Down","Select from Drop Down"]
[801,null,null,"Select from Drop Down","Select from Drop Down","Select from Drop Down",null,null,null,null,null,null,null,null,null,null,null,null,"Select from Drop Down","Select from Drop Down","Select from Drop Down"]
[802,null,null,"Select from Drop Down","Select from Drop Down","Select from Drop Down",null,null,null,null,null,null,null,null,null,null,null,null,"Select from Drop Down","Select from Drop Down","Select from Drop Down"]
[803,null,null,"Select from Drop Down","Select from Drop Down","Select from Drop Down",null,null,null,null,null,null,null,null,null,null,null,null,"Select from Drop Down","Select from Drop Down","Select from Drop Down"]
[804,null,null,"Select from Drop Down","Select from Drop Down","Select from Drop Down",null,null,null,null,null,null,null,null,null,null,null,null,"Select from Drop Down","Select from Drop Down","Select from Drop Down"]
[805,null,null,"Select from Drop Down","Select from Drop Down","Select from Drop Down",null,null,null,null,null,null,null,null,null,null,null,null,"Select from Drop Down","Select from Drop Down","Select from Drop Down"]
[806,null,null,"Select from Drop Down","Select from Drop Down","Select from Drop Down",null,null,null,null,null,null,null,null,null,null,null,null,"Select from Drop Down","Select from Drop Down","Select from Drop Down"]
[807,null,null,"Select from Drop Down","Select from Drop Down","Select from Drop Down",null,null,null,null,null,null,null,null,null,null,null,null,"Select from Drop Down","Select from Drop Down","Select from Drop Down"]
[808,null,null,"Select from Drop Down","Select from Drop Down","Select from Drop Down",null,null,null,null,null,null,null,null,null,null,null,null,"Select from Drop Down","Select from Drop Down","Select from Drop Down"]
[809,null,null,"Select from Drop Down","Select from Drop Down","Select from Drop Down",null,null,null,null,null,null,null,null,null,null,null,null,"Select from Drop Down","Select from Drop Down","Select from Drop Down"]
[810,null,null,"Select from Drop Down","Select from Drop Down","Select from Drop Down",null,null,null,null,null,null,null,null,null,null,null,null,"Select from Drop Down","Select from Drop Down","Select from Drop Down"]
[811,null,null,"Select from Drop Down","Select from Drop Down","Select from Drop Down",null,null,null,null,null,null,null,null,null,null,null,null,"Select from Drop Down","Select from Drop Down","Select from Drop Down"]
[812,null,null,"Select from Drop Down","Select from Drop Down","Select from Drop Down",null,null,null,null,null,null,null,null,null,null,null,null,"Select from Drop Down","Select from Drop Down","Select from Drop Down"]
[813,null,null,"Select from Drop Down","Select from Drop Down","Select from Drop Down",null,null,null,null,null,null,null,null,null,null,null,null,"Select from Drop Down","Select from Drop Down","Select from Drop Down"]
[814,null,null,"Select from Drop Down","Select from Drop Down","Select from Drop Down",null,null,null,null,null,null,null,null,null,null,null,null,"Select from Drop Down","Select from Drop Down","Select from Drop Down"]
[815,null,null,"Select from Drop Down","Select from Drop Down","Select from Drop Down",null,null,null,null,null,null,null,null,null,null,null,null,"Select from Drop Down","Select from Drop Down","Select from Drop Down"]
[816,null,null,"Select from Drop Down","Select from Drop Down","Select from Drop Down",null,null,null,null,null,null,null,null,null,null,null,null,"Select from Drop Down","Select from Drop Down","Select from Drop Down"]
[817,null,null,"Select from Drop Down","Select from Drop Down","Select from Drop Down",null,null,null,null,null,null,null,null,null,null,null,null,"Select from Drop Down","Select from Drop Down","Select from Drop Down"]
[818,null,null,"Select from Drop Down","Select from Drop Down","Select from Drop Down",null,null,null,null,null,null,null,null,null,null,null,null,"Select from Drop Down","Select from Drop Down","Select from Drop Down"]
[819,null,null,"Select from Drop Down","Select from Drop Down","Select from Drop Down",null,null,null,null,null,null,null,null,null,null,null,null,"Select from Drop Down","Select from Drop Down","Select from Drop Down"]
[820,null,null,"Select from Drop Down","Select from Drop Down","Select from Drop Down",null,null,null,null,null,null,null,null,null,null,null,null,"Select from Drop Down","Select from Drop Down","Select from Drop Down"]
[821,null,null,"Select from Drop Down","Select from Drop Down","Select from Drop Down",null,null,null,null,null,null,null,null,null,null,null,null,"Select from Drop Down","Select from Drop Down","Select from Drop Down"]
[822,null,null,"Select from Drop Down","Select from Drop Down","Select from Drop Down",null,null,null,null,null,null,null,null,null,null,null,null,"Select from Drop Down","Select from Drop Down","Select from Drop Down"]
[823,null,null,"Select from Drop Down","Select from Drop Down","Select from Drop Down",null,null,null,null,null,null,null,null,null,null,null,null,"Select from Drop Down","Select from Drop Down","Select from Drop Down"]
[824,null,null,"Select from Drop Down","Select from Drop Down","Select from Drop Down",null,null,null,null,null,null,null,null,null,null,null,null,"Select from Drop Down","Select from Drop Down","Select from Drop Down"]
[825,null,null,"Select from Drop Down","Select from Drop Down","Select from Drop Down",null,null,null,null,null,null,null,null,null,null,null,null,"Select from Drop Down","Select from Drop Down","Select from Drop Down"]
[826,null,null,"Select from Drop Down","Select from Drop Down","Select from Drop Down",null,null,null,null,null,null,null,null,null,null,null,null,"Select from Drop Down","Select from Drop Down","Select from Drop Down"]
[827,null,null,"Select from Drop Down","Select from Drop Down","Select from Drop Down",null,null,null,null,null,null,null,null,null,null,null,null,"Select from Drop Down","Select from Drop Down","Select from Drop Down"]
[828,null,null,"Select from Drop Down","Select from Drop Down","Select from Drop Down",null,null,null,null,null,null,null,null,null,null,null,null,"Select from Drop Down","Select from Drop Down","Select from Drop Down"]
[829,null,null,"Select from Drop Down","Select from Drop Down","Select from Drop Down",null,null,null,null,null,null,null,null,null,null,null,null,"Select from Drop Down","Select from Drop Down","Select from Drop Down"]
[830,null,null,"Select from Drop Down","Select from Drop Down","Select from Drop Down",null,null,null,null,null,null,null,null,null,null,null,null,"Select from Drop Down","Select from Drop Down","Select from Drop Down"]
[831,null,null,"Select from Drop Down","Select from Drop Down","Select from Drop Down",null,null,null,null,null,null,null,null,null,null,null,null,"Select from Drop Down","Select from Drop Down","Select from Drop Down"]
[832,null,null,"Select from Drop Down","Select from Drop Down","Select from Drop Down",null,null,null,null,null,null,null,null,null,null,null,null,"Select from Drop Down","Select from Drop Down","Select from Drop Down"]
[833,null,null,"Select from Drop Down","Select from Drop Down","Select from Drop Down",null,null,null,null,null,null,null,null,null,null,null,null,"Select from Drop Down","Select from Drop Down","Select from Drop Down"]
[834,null,null,"Select from Drop Down","Select from Drop Down","Select from Drop Down",null,null,null,null,null,null,null,null,null,null,null,null,"Select from Drop Down","Select from Drop Down","Select from Drop Down"]
[{"$f":"A844+1","v":835},null,null,"Select from Drop Down","Select from Drop Down","Select from Drop Down",null,null,null,null,null,null,null,null,null,null,null,null,"Select from Drop Down","Select from Drop Down","Select from Drop Down"]
[836,null,null,"Select from Drop Down","Select from Drop Down","Select from Drop Down",null,null,null,null,null,null,null,null,null,null,null,null,"Select from Drop Down","Select from Drop Down","Select from Drop Down"]
[837,null,null,"Select from Drop Down","Select from Drop Down","Select from Drop Down",null,null,null,null,null,null,null,null,null,null,null,null,"Select from Drop Down","Select from Drop Down","Select from Drop Down"]
[838,null,null,"Select from Drop Down","Select from Drop Down","Select from Drop Down",null,null,null,null,null,null,null,null,null,null,null,null,"Select from Drop Down","Select from Drop Down","Select from Drop Down"]
[839,null,null,"Select from Drop Down","Select from Drop Down","Select from Drop Down",null,null,null,null,null,null,null,null,null,null,null,null,"Select from Drop Down","Select from Drop Down","Select from Drop Down"]
[840,null,null,"Select from Drop Down","Select from Drop Down","Select from Drop Down",null,null,null,null,null,null,null,null,null,null,null,null,"Select from Drop Down","Select from Drop Down","Select from Drop Down"]
[841,null,null,"Select from Drop Down","Select from Drop Down","Select from Drop Down",null,null,null,null,null,null,null,null,null,null,null,null,"Select from Drop Down","Select from Drop Down","Select from Drop Down"]
[842,null,null,"Select from Drop Down","Select from Drop Down","Select from Drop Down",null,null,null,null,null,null,null,null,null,null,null,null,"Select from Drop Down","Select from Drop Down","Select from Drop Down"]
[843,null,null,"Select from Drop Down","Select from Drop Down","Select from Drop Down",null,null,null,null,null,null,null,null,null,null,null,null,"Select from Drop Down","Select from Drop Down","Select from Drop Down"]
[844,null,null,"Select from Drop Down","Select from Drop Down","Select from Drop Down",null,null,null,null,null,null,null,null,null,null,null,null,"Select from Drop Down","Select from Drop Down","Select from Drop Down"]
[845,null,null,"Select from Drop Down","Select from Drop Down","Select from Drop Down",null,null,null,null,null,null,null,null,null,null,null,null,"Select from Drop Down","Select from Drop Down","Select from Drop Down"]
[846,null,null,"Select from Drop Down","Select from Drop Down","Select from Drop Down",null,null,null,null,null,null,null,null,null,null,null,null,"Select from Drop Down","Select from Drop Down","Select from Drop Down"]
[847,null,null,"Select from Drop Down","Select from Drop Down","Select from Drop Down",null,null,null,null,null,null,null,null,null,null,null,null,"Select from Drop Down","Select from Drop Down","Select from Drop Down"]
[848,null,null,"Select from Drop Down","Select from Drop Down","Select from Drop Down",null,null,null,null,null,null,null,null,null,null,null,null,"Select from Drop Down","Select from Drop Down","Select from Drop Down"]
[849,null,null,"Select from Drop Down","Select from Drop Down","Select from Drop Down",null,null,null,null,null,null,null,null,null,null,null,null,"Select from Drop Down","Select from Drop Down","Select from Drop Down"]
[850,null,null,"Select from Drop Down","Select from Drop Down","Select from Drop Down",null,null,null,null,null,null,null,null,null,null,null,null,"Select from Drop Down","Select from Drop Down","Select from Drop Down"]
[851,null,null,"Select from Drop Down","Select from Drop Down","Select from Drop Down",null,null,null,null,null,null,null,null,null,null,null,null,"Select from Drop Down","Select from Drop Down","Select from Drop Down"]
[852,null,null,"Select from Drop Down","Select from Drop Down","Select from Drop Down",null,null,null,null,null,null,null,null,null,null,null,null,"Select from Drop Down","Select from Drop Down","Select from Drop Down"]
[853,null,null,"Select from Drop Down","Select from Drop Down","Select from Drop Down",null,null,null,null,null,null,null,null,null,null,null,null,"Select from Drop Down","Select from Drop Down","Select from Drop Down"]
[854,null,null,"Select from Drop Down","Select from Drop Down","Select from Drop Down",null,null,null,null,null,null,null,null,null,null,null,null,"Select from Drop Down","Select from Drop Down","Select from Drop Down"]
[855,null,null,"Select from Drop Down","Select from Drop Down","Select from Drop Down",null,null,null,null,null,null,null,null,null,null,null,null,"Select from Drop Down","Select from Drop Down","Select from Drop Down"]
[856,null,null,"Select from Drop Down","Select from Drop Down","Select from Drop Down",null,null,null,null,null,null,null,null,null,null,null,null,"Select from Drop Down","Select from Drop Down","Select from Drop Down"]
[857,null,null,"Select from Drop Down","Select from Drop Down","Select from Drop Down",null,null,null,null,null,null,null,null,null,null,null,null,"Select from Drop Down","Select from Drop Down","Select from Drop Down"]
[858,null,null,"Select from Drop Down","Select from Drop Down","Select from Drop Down",null,null,null,null,null,null,null,null,null,null,null,null,"Select from Drop Down","Select from Drop Down","Select from Drop Down"]
[859,null,null,"Select from Drop Down","Select from Drop Down","Select from Drop Down",null,null,null,null,null,null,null,null,null,null,null,null,"Select from Drop Down","Select from Drop Down","Select from Drop Down"]
[860,null,null,"Select from Drop Down","Select from Drop Down","Select from Drop Down",null,null,null,null,null,null,null,null,null,null,null,null,"Select from Drop Down","Select from Drop Down","Select from Drop Down"]
[861,null,null,"Select from Drop Down","Select from Drop Down","Select from Drop Down",null,null,null,null,null,null,null,null,null,null,null,null,"Select from Drop Down","Select from Drop Down","Select from Drop Down"]
[862,null,null,"Select from Drop Down","Select from Drop Down","Select from Drop Down",null,null,null,null,null,null,null,null,null,null,null,null,"Select from Drop Down","Select from Drop Down","Select from Drop Down"]
[863,null,null,"Select from Drop Down","Select from Drop Down","Select from Drop Down",null,null,null,null,null,null,null,null,null,null,null,null,"Select from Drop Down","Select from Drop Down","Select from Drop Down"]
[864,null,null,"Select from Drop Down","Select from Drop Down","Select from Drop Down",null,null,null,null,null,null,null,null,null,null,null,null,"Select from Drop Down","Select from Drop Down","Select from Drop Down"]
[865,null,null,"Select from Drop Down","Select from Drop Down","Select from Drop Down",null,null,null,null,null,null,null,null,null,null,null,null,"Select from Drop Down","Select from Drop Down","Select from Drop Down"]
[866,null,null,"Select from Drop Down","Select from Drop Down","Select from Drop Down",null,null,null,null,null,null,null,null,null,null,null,null,"Select from Drop Down","Select from Drop Down","Select from Drop Down"]
[867,null,null,"Select from Drop Down","Select from Drop Down","Select from Drop Down",null,null,null,null,null,null,null,null,null,null,null,null,"Select from Drop Down","Select from Drop Down","Select from Drop Down"]
[868,null,null,"Select from Drop Down","Select from Drop Down","Select from Drop Down",null,null,null,null,null,null,null,null,null,null,null,null,"Select from Drop Down","Select from Drop Down","Select from Drop Down"]
[869,null,null,"Select from Drop Down","Select from Drop Down","Select from Drop Down",null,null,null,null,null,null,null,null,null,null,null,null,"Select from Drop Down","Select from Drop Down","Select from Drop Down"]
[870,null,null,"Select from Drop Down","Select from Drop Down","Select from Drop Down",null,null,null,null,null,null,null,null,null,null,null,null,"Select from Drop Down","Select from Drop Down","Select from Drop Down"]
[871,null,null,"Select from Drop Down","Select from Drop Down","Select from Drop Down",null,null,null,null,null,null,null,null,null,null,null,null,"Select from Drop Down","Select from Drop Down","Select from Drop Down"]
[872,null,null,"Select from Drop Down","Select from Drop Down","Select from Drop Down",null,null,null,null,null,null,null,null,null,null,null,null,"Select from Drop Down","Select from Drop Down","Select from Drop Down"]
[873,null,null,"Select from Drop Down","Select from Drop Down","Select from Drop Down",null,null,null,null,null,null,null,null,null,null,null,null,"Select from Drop Down","Select from Drop Down","Select from Drop Down"]
[874,null,null,"Select from Drop Down","Select from Drop Down","Select from Drop Down",null,null,null,null,null,null,null,null,null,null,null,null,"Select from Drop Down","Select from Drop Down","Select from Drop Down"]
[875,null,null,"Select from Drop Down","Select from Drop Down","Select from Drop Down",null,null,null,null,null,null,null,null,null,null,null,null,"Select from Drop Down","Select from Drop Down","Select from Drop Down"]
[876,null,null,"Select from Drop Down","Select from Drop Down","Select from Drop Down",null,null,null,null,null,null,null,null,null,null,null,null,"Select from Drop Down","Select from Drop Down","Select from Drop Down"]
[877,null,null,"Select from Drop Down","Select from Drop Down","Select from Drop Down",null,null,null,null,null,null,null,null,null,null,null,null,"Select from Drop Down","Select from Drop Down","Select from Drop Down"]
[878,null,null,"Select from Drop Down","Select from Drop Down","Select from Drop Down",null,null,null,null,null,null,null,null,null,null,null,null,"Select from Drop Down","Select from Drop Down","Select from Drop Down"]
[879,null,null,"Select from Drop Down","Select from Drop Down","Select from Drop Down",null,null,null,null,null,null,null,null,null,null,null,null,"Select from Drop Down","Select from Drop Down","Select from Drop Down"]
[880,null,null,"Select from Drop Down","Select from Drop Down","Select from Drop Down",null,null,null,null,null,null,null,null,null,null,null,null,"Select from Drop Down","Select from Drop Down","Select from Drop Down"]
[881,null,null,"Select from Drop Down","Select from Drop Down","Select from Drop Down",null,null,null,null,null,null,null,null,null,null,null,null,"Select from Drop Down","Select from Drop Down","Select from Drop Down"]
[882,null,null,"Select from Drop Down","Select from Drop Down","Select from Drop Down",null,null,null,null,null,null,null,null,null,null,null,null,"Select from Drop Down","Select from Drop Down","Select from Drop Down"]
[883,null,null,"Select from Drop Down","Select from Drop Down","Select from Drop Down",null,null,null,null,null,null,null,null,null,null,null,null,"Select from Drop Down","Select from Drop Down","Select from Drop Down"]
[884,null,null,"Select from Drop Down","Select from Drop Down","Select from Drop Down",null,null,null,null,null,null,null,null,null,null,null,null,"Select from Drop Down","Select from Drop Down","Select from Drop Down"]
[885,null,null,"Select from Drop Down","Select from Drop Down","Select from Drop Down",null,null,null,null,null,null,null,null,null,null,null,null,"Select from Drop Down","Select from Drop Down","Select from Drop Down"]
[886,null,null,"Select from Drop Down","Select from Drop Down","Select from Drop Down",null,null,null,null,null,null,null,null,null,null,null,null,"Select from Drop Down","Select from Drop Down","Select from Drop Down"]
[887,null,null,"Select from Drop Down","Select from Drop Down","Select from Drop Down",null,null,null,null,null,null,null,null,null,null,null,null,"Select from Drop Down","Select from Drop Down","Select from Drop Down"]
[888,null,null,"Select from Drop Down","Select from Drop Down","Select from Drop Down",null,null,null,null,null,null,null,null,null,null,null,null,"Select from Drop Down","Select from Drop Down","Select from Drop Down"]
[889,null,null,"Select from Drop Down","Select from Drop Down","Select from Drop Down",null,null,null,null,null,null,null,null,null,null,null,null,"Select from Drop Down","Select from Drop Down","Select from Drop Down"]
[890,null,null,"Select from Drop Down","Select from Drop Down","Select from Drop Down",null,null,null,null,null,null,null,null,null,null,null,null,"Select from Drop Down","Select from Drop Down","Select from Drop Down"]
[891,null,null,"Select from Drop Down","Select from Drop Down","Select from Drop Down",null,null,null,null,null,null,null,null,null,null,null,null,"Select from Drop Down","Select from Drop Down","Select from Drop Down"]
[892,null,null,"Select from Drop Down","Select from Drop Down","Select from Drop Down",null,null,null,null,null,null,null,null,null,null,null,null,"Select from Drop Down","Select from Drop Down","Select from Drop Down"]
[893,null,null,"Select from Drop Down","Select from Drop Down","Select from Drop Down",null,null,null,null,null,null,null,null,null,null,null,null,"Select from Drop Down","Select from Drop Down","Select from Drop Down"]
[894,null,null,"Select from Drop Down","Select from Drop Down","Select from Drop Down",null,null,null,null,null,null,null,null,null,null,null,null,"Select from Drop Down","Select from Drop Down","Select from Drop Down"]
[895,null,null,"Select from Drop Down","Select from Drop Down","Select from Drop Down",null,null,null,null,null,null,null,null,null,null,null,null,"Select from Drop Down","Select from Drop Down","Select from Drop Down"]
[896,null,null,"Select from Drop Down","Select from Drop Down","Select from Drop Down",null,null,null,null,null,null,null,null,null,null,null,null,"Select from Drop Down","Select from Drop Down","Select from Drop Down"]
[897,null,null,"Select from Drop Down","Select from Drop Down","Select from Drop Down",null,null,null,null,null,null,null,null,null,null,null,null,"Select from Drop Down","Select from Drop Down","Select from Drop Down"]
[898,null,null,"Select from Drop Down","Select from Drop Down","Select from Drop Down",null,null,null,null,null,null,null,null,null,null,null,null,"Select from Drop Down","Select from Drop Down","Select from Drop Down"]
[{"$f":"A908+1","v":899},null,null,"Select from Drop Down","Select from Drop Down","Select from Drop Down",null,null,null,null,null,null,null,null,null,null,null,null,"Select from Drop Down","Select from Drop Down","Select from Drop Down"]
[900,null,null,"Select from Drop Down","Select from Drop Down","Select from Drop Down",null,null,null,null,null,null,null,null,null,null,null,null,"Select from Drop Down","Select from Drop Down","Select from Drop Down"]
[901,null,null,"Select from Drop Down","Select from Drop Down","Select from Drop Down",null,null,null,null,null,null,null,null,null,null,null,null,"Select from Drop Down","Select from Drop Down","Select from Drop Down"]
[902,null,null,"Select from Drop Down","Select from Drop Down","Select from Drop Down",null,null,null,null,null,null,null,null,null,null,null,null,"Select from Drop Down","Select from Drop Down","Select from Drop Down"]
[903,null,null,"Select from Drop Down","Select from Drop Down","Select from Drop Down",null,null,null,null,null,null,null,null,null,null,null,null,"Select from Drop Down","Select from Drop Down","Select from Drop Down"]
[904,null,null,"Select from Drop Down","Select from Drop Down","Select from Drop Down",null,null,null,null,null,null,null,null,null,null,null,null,"Select from Drop Down","Select from Drop Down","Select from Drop Down"]
[905,null,null,"Select from Drop Down","Select from Drop Down","Select from Drop Down",null,null,null,null,null,null,null,null,null,null,null,null,"Select from Drop Down","Select from Drop Down","Select from Drop Down"]
[906,null,null,"Select from Drop Down","Select from Drop Down","Select from Drop Down",null,null,null,null,null,null,null,null,null,null,null,null,"Select from Drop Down","Select from Drop Down","Select from Drop Down"]
[907,null,null,"Select from Drop Down","Select from Drop Down","Select from Drop Down",null,null,null,null,null,null,null,null,null,null,null,null,"Select from Drop Down","Select from Drop Down","Select from Drop Down"]
[908,null,null,"Select from Drop Down","Select from Drop Down","Select from Drop Down",null,null,null,null,null,null,null,null,null,null,null,null,"Select from Drop Down","Select from Drop Down","Select from Drop Down"]
[909,null,null,"Select from Drop Down","Select from Drop Down","Select from Drop Down",null,null,null,null,null,null,null,null,null,null,null,null,"Select from Drop Down","Select from Drop Down","Select from Drop Down"]
[910,null,null,"Select from Drop Down","Select from Drop Down","Select from Drop Down",null,null,null,null,null,null,null,null,null,null,null,null,"Select from Drop Down","Select from Drop Down","Select from Drop Down"]
[911,null,null,"Select from Drop Down","Select from Drop Down","Select from Drop Down",null,null,null,null,null,null,null,null,null,null,null,null,"Select from Drop Down","Select from Drop Down","Select from Drop Down"]
[912,null,null,"Select from Drop Down","Select from Drop Down","Select from Drop Down",null,null,null,null,null,null,null,null,null,null,null,null,"Select from Drop Down","Select from Drop Down","Select from Drop Down"]
[913,null,null,"Select from Drop Down","Select from Drop Down","Select from Drop Down",null,null,null,null,null,null,null,null,null,null,null,null,"Select from Drop Down","Select from Drop Down","Select from Drop Down"]
[914,null,null,"Select from Drop Down","Select from Drop Down","Select from Drop Down",null,null,null,null,null,null,null,null,null,null,null,null,"Select from Drop Down","Select from Drop Down","Select from Drop Down"]
[915,null,null,"Select from Drop Down","Select from Drop Down","Select from Drop Down",null,null,null,null,null,null,null,null,null,null,null,null,"Select from Drop Down","Select from Drop Down","Select from Drop Down"]
[916,null,null,"Select from Drop Down","Select from Drop Down","Select from Drop Down",null,null,null,null,null,null,null,null,null,null,null,null,"Select from Drop Down","Select from Drop Down","Select from Drop Down"]
[917,null,null,"Select from Drop Down","Select from Drop Down","Select from Drop Down",null,null,null,null,null,null,null,null,null,null,null,null,"Select from Drop Down","Select from Drop Down","Select from Drop Down"]
[918,null,null,"Select from Drop Down","Select from Drop Down","Select from Drop Down",null,null,null,null,null,null,null,null,null,null,null,null,"Select from Drop Down","Select from Drop Down","Select from Drop Down"]
[919,null,null,"Select from Drop Down","Select from Drop Down","Select from Drop Down",null,null,null,null,null,null,null,null,null,null,null,null,"Select from Drop Down","Select from Drop Down","Select from Drop Down"]
[920,null,null,"Select from Drop Down","Select from Drop Down","Select from Drop Down",null,null,null,null,null,null,null,null,null,null,null,null,"Select from Drop Down","Select from Drop Down","Select from Drop Down"]
[921,null,null,"Select from Drop Down","Select from Drop Down","Select from Drop Down",null,null,null,null,null,null,null,null,null,null,null,null,"Select from Drop Down","Select from Drop Down","Select from Drop Down"]
[922,null,null,"Select from Drop Down","Select from Drop Down","Select from Drop Down",null,null,null,null,null,null,null,null,null,null,null,null,"Select from Drop Down","Select from Drop Down","Select from Drop Down"]
[923,null,null,"Select from Drop Down","Select from Drop Down","Select from Drop Down",null,null,null,null,null,null,null,null,null,null,null,null,"Select from Drop Down","Select from Drop Down","Select from Drop Down"]
[924,null,null,"Select from Drop Down","Select from Drop Down","Select from Drop Down",null,null,null,null,null,null,null,null,null,null,null,null,"Select from Drop Down","Select from Drop Down","Select from Drop Down"]
[925,null,null,"Select from Drop Down","Select from Drop Down","Select from Drop Down",null,null,null,null,null,null,null,null,null,null,null,null,"Select from Drop Down","Select from Drop Down","Select from Drop Down"]
[926,null,null,"Select from Drop Down","Select from Drop Down","Select from Drop Down",null,null,null,null,null,null,null,null,null,null,null,null,"Select from Drop Down","Select from Drop Down","Select from Drop Down"]
[927,null,null,"Select from Drop Down","Select from Drop Down","Select from Drop Down",null,null,null,null,null,null,null,null,null,null,null,null,"Select from Drop Down","Select from Drop Down","Select from Drop Down"]
[928,null,null,"Select from Drop Down","Select from Drop Down","Select from Drop Down",null,null,null,null,null,null,null,null,null,null,null,null,"Select from Drop Down","Select from Drop Down","Select from Drop Down"]
[929,null,null,"Select from Drop Down","Select from Drop Down","Select from Drop Down",null,null,null,null,null,null,null,null,null,null,null,null,"Select from Drop Down","Select from Drop Down","Select from Drop Down"]
[930,null,null,"Select from Drop Down","Select from Drop Down","Select from Drop Down",null,null,null,null,null,null,null,null,null,null,null,null,"Select from Drop Down","Select from Drop Down","Select from Drop Down"]
[931,null,null,"Select from Drop Down","Select from Drop Down","Select from Drop Down",null,null,null,null,null,null,null,null,null,null,null,null,"Select from Drop Down","Select from Drop Down","Select from Drop Down"]
[932,null,null,"Select from Drop Down","Select from Drop Down","Select from Drop Down",null,null,null,null,null,null,null,null,null,null,null,null,"Select from Drop Down","Select from Drop Down","Select from Drop Down"]
[933,null,null,"Select from Drop Down","Select from Drop Down","Select from Drop Down",null,null,null,null,null,null,null,null,null,null,null,null,"Select from Drop Down","Select from Drop Down","Select from Drop Down"]
[934,null,null,"Select from Drop Down","Select from Drop Down","Select from Drop Down",null,null,null,null,null,null,null,null,null,null,null,null,"Select from Drop Down","Select from Drop Down","Select from Drop Down"]
[935,null,null,"Select from Drop Down","Select from Drop Down","Select from Drop Down",null,null,null,null,null,null,null,null,null,null,null,null,"Select from Drop Down","Select from Drop Down","Select from Drop Down"]
[936,null,null,"Select from Drop Down","Select from Drop Down","Select from Drop Down",null,null,null,null,null,null,null,null,null,null,null,null,"Select from Drop Down","Select from Drop Down","Select from Drop Down"]
[937,null,null,"Select from Drop Down","Select from Drop Down","Select from Drop Down",null,null,null,null,null,null,null,null,null,null,null,null,"Select from Drop Down","Select from Drop Down","Select from Drop Down"]
[938,null,null,"Select from Drop Down","Select from Drop Down","Select from Drop Down",null,null,null,null,null,null,null,null,null,null,null,null,"Select from Drop Down","Select from Drop Down","Select from Drop Down"]
[939,null,null,"Select from Drop Down","Select from Drop Down","Select from Drop Down",null,null,null,null,null,null,null,null,null,null,null,null,"Select from Drop Down","Select from Drop Down","Select from Drop Down"]
[940,null,null,"Select from Drop Down","Select from Drop Down","Select from Drop Down",null,null,null,null,null,null,null,null,null,null,null,null,"Select from Drop Down","Select from Drop Down","Select from Drop Down"]
[941,null,null,"Select from Drop Down","Select from Drop Down","Select from Drop Down",null,null,null,null,null,null,null,null,null,null,null,null,"Select from Drop Down","Select from Drop Down","Select from Drop Down"]
[942,null,null,"Select from Drop Down","Select from Drop Down","Select from Drop Down",null,null,null,null,null,null,null,null,null,null,null,null,"Select from Drop Down","Select from Drop Down","Select from Drop Down"]
[943,null,null,"Select from Drop Down","Select from Drop Down","Select from Drop Down",null,null,null,null,null,null,null,null,null,null,null,null,"Select from Drop Down","Select from Drop Down","Select from Drop Down"]
[944,null,null,"Select from Drop Down","Select from Drop Down","Select from Drop Down",null,null,null,null,null,null,null,null,null,null,null,null,"Select from Drop Down","Select from Drop Down","Select from Drop Down"]
[945,null,null,"Select from Drop Down","Select from Drop Down","Select from Drop Down",null,null,null,null,null,null,null,null,null,null,null,null,"Select from Drop Down","Select from Drop Down","Select from Drop Down"]
[946,null,null,"Select from Drop Down","Select from Drop Down","Select from Drop Down",null,null,null,null,null,null,null,null,null,null,null,null,"Select from Drop Down","Select from Drop Down","Select from Drop Down"]
[947,null,null,"Select from Drop Down","Select from Drop Down","Select from Drop Down",null,null,null,null,null,null,null,null,null,null,null,null,"Select from Drop Down","Select from Drop Down","Select from Drop Down"]
[948,null,null,"Select from Drop Down","Select from Drop Down","Select from Drop Down",null,null,null,null,null,null,null,null,null,null,null,null,"Select from Drop Down","Select from Drop Down","Select from Drop Down"]
[949,null,null,"Select from Drop Down","Select from Drop Down","Select from Drop Down",null,null,null,null,null,null,null,null,null,null,null,null,"Select from Drop Down","Select from Drop Down","Select from Drop Down"]
[950,null,null,"Select from Drop Down","Select from Drop Down","Select from Drop Down",null,null,null,null,null,null,null,null,null,null,null,null,"Select from Drop Down","Select from Drop Down","Select from Drop Down"]
[951,null,null,"Select from Drop Down","Select from Drop Down","Select from Drop Down",null,null,null,null,null,null,null,null,null,null,null,null,"Select from Drop Down","Select from Drop Down","Select from Drop Down"]
[952,null,null,"Select from Drop Down","Select from Drop Down","Select from Drop Down",null,null,null,null,null,null,null,null,null,null,null,null,"Select from Drop Down","Select from Drop Down","Select from Drop Down"]
[953,null,null,"Select from Drop Down","Select from Drop Down","Select from Drop Down",null,null,null,null,null,null,null,null,null,null,null,null,"Select from Drop Down","Select from Drop Down","Select from Drop Down"]
[954,null,null,"Select from Drop Down","Select from Drop Down","Select from Drop Down",null,null,null,null,null,null,null,null,null,null,null,null,"Select from Drop Down","Select from Drop Down","Select from Drop Down"]
[955,null,null,"Select from Drop Down","Select from Drop Down","Select from Drop Down",null,null,null,null,null,null,null,null,null,null,null,null,"Select from Drop Down","Select from Drop Down","Select from Drop Down"]
[956,null,null,"Select from Drop Down","Select from Drop Down","Select from Drop Down",null,null,null,null,null,null,null,null,null,null,null,null,"Select from Drop Down","Select from Drop Down","Select from Drop Down"]
[957,null,null,"Select from Drop Down","Select from Drop Down","Select from Drop Down",null,null,null,null,null,null,null,null,null,null,null,null,"Select from Drop Down","Select from Drop Down","Select from Drop Down"]
[958,null,null,"Select from Drop Down","Select from Drop Down","Select from Drop Down",null,null,null,null,null,null,null,null,null,null,null,null,"Select from Drop Down","Select from Drop Down","Select from Drop Down"]
[959,null,null,"Select from Drop Down","Select from Drop Down","Select from Drop Down",null,null,null,null,null,null,null,null,null,null,null,null,"Select from Drop Down","Select from Drop Down","Select from Drop Down"]
[960,null,null,"Select from Drop Down","Select from Drop Down","Select from Drop Down",null,null,null,null,null,null,null,null,null,null,null,null,"Select from Drop Down","Select from Drop Down","Select from Drop Down"]
[961,null,null,"Select from Drop Down","Select from Drop Down","Select from Drop Down",null,null,null,null,null,null,null,null,null,null,null,null,"Select from Drop Down","Select from Drop Down","Select from Drop Down"]
[962,null,null,"Select from Drop Down","Select from Drop Down","Select from Drop Down",null,null,null,null,null,null,null,null,null,null,null,null,"Select from Drop Down","Select from Drop Down","Select from Drop Down"]
[{"$f":"A972+1","v":963},null,null,"Select from Drop Down","Select from Drop Down","Select from Drop Down",null,null,null,null,null,null,null,null,null,null,null,null,"Select from Drop Down","Select from Drop Down","Select from Drop Down"]
[964,null,null,"Select from Drop Down","Select from Drop Down","Select from Drop Down",null,null,null,null,null,null,null,null,null,null,null,null,"Select from Drop Down","Select from Drop Down","Select from Drop Down"]
[965,null,null,"Select from Drop Down","Select from Drop Down","Select from Drop Down",null,null,null,null,null,null,null,null,null,null,null,null,"Select from Drop Down","Select from Drop Down","Select from Drop Down"]
[966,null,null,"Select from Drop Down","Select from Drop Down","Select from Drop Down",null,null,null,null,null,null,null,null,null,null,null,null,"Select from Drop Down","Select from Drop Down","Select from Drop Down"]
[967,null,null,"Select from Drop Down","Select from Drop Down","Select from Drop Down",null,null,null,null,null,null,null,null,null,null,null,null,"Select from Drop Down","Select from Drop Down","Select from Drop Down"]
[968,null,null,"Select from Drop Down","Select from Drop Down","Select from Drop Down",null,null,null,null,null,null,null,null,null,null,null,null,"Select from Drop Down","Select from Drop Down","Select from Drop Down"]
[969,null,null,"Select from Drop Down","Select from Drop Down","Select from Drop Down",null,null,null,null,null,null,null,null,null,null,null,null,"Select from Drop Down","Select from Drop Down","Select from Drop Down"]
[970,null,null,"Select from Drop Down","Select from Drop Down","Select from Drop Down",null,null,null,null,null,null,null,null,null,null,null,null,"Select from Drop Down","Select from Drop Down","Select from Drop Down"]
[971,null,null,"Select from Drop Down","Select from Drop Down","Select from Drop Down",null,null,null,null,null,null,null,null,null,null,null,null,"Select from Drop Down","Select from Drop Down","Select from Drop Down"]
[972,null,null,"Select from Drop Down","Select from Drop Down","Select from Drop Down",null,null,null,null,null,null,null,null,null,null,null,null,"Select from Drop Down","Select from Drop Down","Select from Drop Down"]
[973,null,null,"Select from Drop Down","Select from Drop Down","Select from Drop Down",null,null,null,null,null,null,null,null,null,null,null,null,"Select from Drop Down","Select from Drop Down","Select from Drop Down"]
[974,null,null,"Select from Drop Down","Select from Drop Down","Select from Drop Down",null,null,null,null,null,null,null,null,null,null,null,null,"Select from Drop Down","Select from Drop Down","Select from Drop Down"]
[975,null,null,"Select from Drop Down","Select from Drop Down","Select from Drop Down",null,null,null,null,null,null,null,null,null,null,null,null,"Select from Drop Down","Select from Drop Down","Select from Drop Down"]
[976,null,null,"Select from Drop Down","Select from Drop Down","Select from Drop Down",null,null,null,null,null,null,null,null,null,null,null,null,"Select from Drop Down","Select from Drop Down","Select from Drop Down"]
[977,null,null,"Select from Drop Down","Select from Drop Down","Select from Drop Down",null,null,null,null,null,null,null,null,null,null,null,null,"Select from Drop Down","Select from Drop Down","Select from Drop Down"]
[978,null,null,"Select from Drop Down","Select from Drop Down","Select from Drop Down",null,null,null,null,null,null,null,null,null,null,null,null,"Select from Drop Down","Select from Drop Down","Select from Drop Down"]
[979,null,null,"Select from Drop Down","Select from Drop Down","Select from Drop Down",null,null,null,null,null,null,null,null,null,null,null,null,"Select from Drop Down","Select from Drop Down","Select from Drop Down"]
[980,null,null,"Select from Drop Down","Select from Drop Down","Select from Drop Down",null,null,null,null,null,null,null,null,null,null,null,null,"Select from Drop Down","Select from Drop Down","Select from Drop Down"]
[981,null,null,"Select from Drop Down","Select from Drop Down","Select from Drop Down",null,null,null,null,null,null,null,null,null,null,null,null,"Select from Drop Down","Select from Drop Down","Select from Drop Down"]
[982,null,null,"Select from Drop Down","Select from Drop Down","Select from Drop Down",null,null,null,null,null,null,null,null,null,null,null,null,"Select from Drop Down","Select from Drop Down","Select from Drop Down"]
[983,null,null,"Select from Drop Down","Select from Drop Down","Select from Drop Down",null,null,null,null,null,null,null,null,null,null,null,null,"Select from Drop Down","Select from Drop Down","Select from Drop Down"]
[984,null,null,"Select from Drop Down","Select from Drop Down","Select from Drop Down",null,null,null,null,null,null,null,null,null,null,null,null,"Select from Drop Down","Select from Drop Down","Select from Drop Down"]
[985,null,null,"Select from Drop Down","Select from Drop Down","Select from Drop Down",null,null,null,null,null,null,null,null,null,null,null,null,"Select from Drop Down","Select from Drop Down","Select from Drop Down"]
[986,null,null,"Select from Drop Down","Select from Drop Down","Select from Drop Down",null,null,null,null,null,null,null,null,null,null,null,null,"Select from Drop Down","Select from Drop Down","Select from Drop Down"]
[987,null,null,"Select from Drop Down","Select from Drop Down","Select from Drop Down",null,null,null,null,null,null,null,null,null,null,null,null,"Select from Drop Down","Select from Drop Down","Select from Drop Down"]
[988,null,null,"Select from Drop Down","Select from Drop Down","Select from Drop Down",null,null,null,null,null,null,null,null,null,null,null,null,"Select from Drop Down","Select from Drop Down","Select from Drop Down"]
[989,null,null,"Select from Drop Down","Select from Drop Down","Select from Drop Down",null,null,null,null,null,null,null,null,null,null,null,null,"Select from Drop Down","Select from Drop Down","Select from Drop Down"]
[990,null,null,"Select from Drop Down","Select from Drop Down","Select from Drop Down",null,null,null,null,null,null,null,null,null,null,null,null,"Select from Drop Down","Select from Drop Down","Select from Drop Down"]
[991,null,null,"Select from Drop Down","Select from Drop Down","Select from Drop Down",null,null,null,null,null,null,null,null,null,null,null,null,"Select from Drop Down","Select from Drop Down","Select from Drop Down"]
[992,null,null,"Select from Drop Down","Select from Drop Down","Select from Drop Down",null,null,null,null,null,null,null,null,null,null,null,null,"Select from Drop Down","Select from Drop Down","Select from Drop Down"]
[993,null,null,"Select from Drop Down","Select from Drop Down","Select from Drop Down",null,null,null,null,null,null,null,null,null,null,null,null,"Select from Drop Down","Select from Drop Down","Select from Drop Down"]
[994,null,null,"Select from Drop Down","Select from Drop Down","Select from Drop Down",null,null,null,null,null,null,null,null,null,null,null,null,"Select from Drop Down","Select from Drop Down","Select from Drop Down"]
[995,null,null,"Select from Drop Down","Select from Drop Down","Select from Drop Down",null,null,null,null,null,null,null,null,null,null,null,null,"Select from Drop Down","Select from Drop Down","Select from Drop Down"]
[996,null,null,"Select from Drop Down","Select from Drop Down","Select from Drop Down",null,null,null,null,null,null,null,null,null,null,null,null,"Select from Drop Down","Select from Drop Down","Select from Drop Down"]
[997,null,null,"Select from Drop Down","Select from Drop Down","Select from Drop Down",null,null,null,null,null,null,null,null,null,null,null,null,"Select from Drop Down","Select from Drop Down","Select from Drop Down"]
[998,null,null,"Select from Drop Down","Select from Drop Down","Select from Drop Down",null,null,null,null,null,null,null,null,null,null,null,null,"Select from Drop Down","Select from Drop Down","Select from Drop Down"]
[999,null,null,"Select from Drop Down","Select from Drop Down","Select from Drop Down",null,null,null,null,null,null,null,null,null,null,null,null,"Select from Drop Down","Select from Drop Down","Select from Drop Down"]
[1000,null,null,"Select from Drop Down","Select from Drop Down","Select from Drop Down",null,null,null,null,null,null,null,null,null,null,null,null,"Select from Drop Down","Select from Drop Down","Select from Drop Down"]
[1001,null,null,"Select from Drop Down","Select from Drop Down","Select from Drop Down",null,null,null,null,null,null,null,null,null,null,null,null,"Select from Drop Down","Select from Drop Down","Select from Drop Down"]
[1002,null,null,"Select from Drop Down","Select from Drop Down","Select from Drop Down",null,null,null,null,null,null,null,null,null,null,null,null,"Select from Drop Down","Select from Drop Down","Select from Drop Down"]
[1003,null,null,"Select from Drop Down","Select from Drop Down","Select from Drop Down",null,null,null,null,null,null,null,null,null,null,null,null,"Select from Drop Down","Select from Drop Down","Select from Drop Down"]
[1004,null,null,"Select from Drop Down","Select from Drop Down","Select from Drop Down",null,null,null,null,null,null,null,null,null,null,null,null,"Select from Drop Down","Select from Drop Down","Select from Drop Down"]
[1005,null,null,"Select from Drop Down","Select from Drop Down","Select from Drop Down",null,null,null,null,null,null,null,null,null,null,null,null,"Select from Drop Down","Select from Drop Down","Select from Drop Down"]
[1006,null,null,"Select from Drop Down","Select from Drop Down","Select from Drop Down",null,null,null,null,null,null,null,null,null,null,null,null,"Select from Drop Down","Select from Drop Down","Select from Drop Down"]
[1007,null,null,"Select from Drop Down","Select from Drop Down","Select from Drop Down",null,null,null,null,null,null,null,null,null,null,null,null,"Select from Drop Down","Select from Drop Down","Select from Drop Down"]
[1008,null,null,"Select from Drop Down","Select from Drop Down","Select from Drop Down",null,null,null,null,null,null,null,null,null,null,null,null,"Select from Drop Down","Select from Drop Down","Select from Drop Down"]
[1009,null,null,"Select from Drop Down","Select from Drop Down","Select from Drop Down",null,null,null,null,null,null,null,null,null,null,null,null,"Select from Drop Down","Select from Drop Down","Select from Drop Down"]
[1010,null,null,"Select from Drop Down","Select from Drop Down","Select from Drop Down",null,null,null,null,null,null,null,null,null,null,null,null,"Select from Drop Down","Select from Drop Down","Select from Drop Down"]
[1011,null,null,"Select from Drop Down","Select from Drop Down","Select from Drop Down",null,null,null,null,null,null,null,null,null,null,null,null,"Select from Drop Down","Select from Drop Down","Select from Drop Down"]
[1012,null,null,"Select from Drop Down","Select from Drop Down","Select from Drop Down",null,null,null,null,null,null,null,null,null,null,null,null,"Select from Drop Down","Select from Drop Down","Select from Drop Down"]
[1013,null,null,"Select from Drop Down","Select from Drop Down","Select from Drop Down",null,null,null,null,null,null,null,null,null,null,null,null,"Select from Drop Down","Select from Drop Down","Select from Drop Down"]
[1014,null,null,"Select from Drop Down","Select from Drop Down","Select from Drop Down",null,null,null,null,null,null,null,null,null,null,null,null,"Select from Drop Down","Select from Drop Down","Select from Drop Down"]
[1015,null,null,"Select from Drop Down","Select from Drop Down","Select from Drop Down",null,null,null,null,null,null,null,null,null,null,null,null,"Select from Drop Down","Select from Drop Down","Select from Drop Down"]
[1016,null,null,"Select from Drop Down","Select from Drop Down","Select from Drop Down",null,null,null,null,null,null,null,null,null,null,null,null,"Select from Drop Down","Select from Drop Down","Select from Drop Down"]
[1017,null,null,"Select from Drop Down","Select from Drop Down","Select from Drop Down",null,null,null,null,null,null,null,null,null,null,null,null,"Select from Drop Down","Select from Drop Down","Select from Drop Down"]
[1018,null,null,"Select from Drop Down","Select from Drop Down","Select from Drop Down",null,null,null,null,null,null,null,null,null,null,null,null,"Select from Drop Down","Select from Drop Down","Select from Drop Down"]
[1019,null,null,"Select from Drop Down","Select from Drop Down","Select from Drop Down",null,null,null,null,null,null,null,null,null,null,null,null,"Select from Drop Down","Select from Drop Down","Select from Drop Down"]
[1020,null,null,"Select from Drop Down","Select from Drop Down","Select from Drop Down",null,null,null,null,null,null,null,null,null,null,null,null,"Select from Drop Down","Select from Drop Down","Select from Drop Down"]
[1021,null,null,"Select from Drop Down","Select from Drop Down","Select from Drop Down",null,null,null,null,null,null,null,null,null,null,null,null,"Select from Drop Down","Select from Drop Down","Select from Drop Down"]
[1022,null,null,"Select from Drop Down","Select from Drop Down","Select from Drop Down",null,null,null,null,null,null,null,null,null,null,null,null,"Select from Drop Down","Select from Drop Down","Select from Drop Down"]
[1023,null,null,"Select from Drop Down","Select from Drop Down","Select from Drop Down",null,null,null,null,null,null,null,null,null,null,null,null,"Select from Drop Down","Select from Drop Down","Select from Drop Down"]
[1024,null,null,"Select from Drop Down","Select from Drop Down","Select from Drop Down",null,null,null,null,null,null,null,null,null,null,null,null,"Select from Drop Down","Select from Drop Down","Select from Drop Down"]
[1025,null,null,"Select from Drop Down","Select from Drop Down","Select from Drop Down",null,null,null,null,null,null,null,null,null,null,null,null,"Select from Drop Down","Select from Drop Down","Select from Drop Down"]
[1026,null,null,"Select from Drop Down","Select from Drop Down","Select from Drop Down",null,null,null,null,null,null,null,null,null,null,null,null,"Select from Drop Down","Select from Drop Down","Select from Drop Down"]
[{"$f":"A1036+1","v":1027},null,null,"Select from Drop Down","Select from Drop Down","Select from Drop Down",null,null,null,null,null,null,null,null,null,null,null,null,"Select from Drop Down","Select from Drop Down","Select from Drop Down"]
[1028,null,null,"Select from Drop Down","Select from Drop Down","Select from Drop Down",null,null,null,null,null,null,null,null,null,null,null,null,"Select from Drop Down","Select from Drop Down","Select from Drop Down"]
[1029,null,null,"Select from Drop Down","Select from Drop Down","Select from Drop Down",null,null,null,null,null,null,null,null,null,null,null,null,"Select from Drop Down","Select from Drop Down","Select from Drop Down"]
[1030,null,null,"Select from Drop Down","Select from Drop Down","Select from Drop Down",null,null,null,null,null,null,null,null,null,null,null,null,"Select from Drop Down","Select from Drop Down","Select from Drop Down"]
[1031,null,null,"Select from Drop Down","Select from Drop Down","Select from Drop Down",null,null,null,null,null,null,null,null,null,null,null,null,"Select from Drop Down","Select from Drop Down","Select from Drop Down"]
[1032,null,null,"Select from Drop Down","Select from Drop Down","Select from Drop Down",null,null,null,null,null,null,null,null,null,null,null,null,"Select from Drop Down","Select from Drop Down","Select from Drop Down"]
[1033,null,null,"Select from Drop Down","Select from Drop Down","Select from Drop Down",null,null,null,null,null,null,null,null,null,null,null,null,"Select from Drop Down","Select from Drop Down","Select from Drop Down"]
[1034,null,null,"Select from Drop Down","Select from Drop Down","Select from Drop Down",null,null,null,null,null,null,null,null,null,null,null,null,"Select from Drop Down","Select from Drop Down","Select from Drop Down"]
[1035,null,null,"Select from Drop Down","Select from Drop Down","Select from Drop Down",null,null,null,null,null,null,null,null,null,null,null,null,"Select from Drop Down","Select from Drop Down","Select from Drop Down"]
[1036,null,null,"Select from Drop Down","Select from Drop Down","Select from Drop Down",null,null,null,null,null,null,null,null,null,null,null,null,"Select from Drop Down","Select from Drop Down","Select from Drop Down"]
[1037,null,null,"Select from Drop Down","Select from Drop Down","Select from Drop Down",null,null,null,null,null,null,null,null,null,null,null,null,"Select from Drop Down","Select from Drop Down","Select from Drop Down"]
[1038,null,null,"Select from Drop Down","Select from Drop Down","Select from Drop Down",null,null,null,null,null,null,null,null,null,null,null,null,"Select from Drop Down","Select from Drop Down","Select from Drop Down"]
[1039,null,null,"Select from Drop Down","Select from Drop Down","Select from Drop Down",null,null,null,null,null,null,null,null,null,null,null,null,"Select from Drop Down","Select from Drop Down","Select from Drop Down"]
[1040,null,null,"Select from Drop Down","Select from Drop Down","Select from Drop Down",null,null,null,null,null,null,null,null,null,null,null,null,"Select from Drop Down","Select from Drop Down","Select from Drop Down"]
[1041,null,null,"Select from Drop Down","Select from Drop Down","Select from Drop Down",null,null,null,null,null,null,null,null,null,null,null,null,"Select from Drop Down","Select from Drop Down","Select from Drop Down"]
[1042,null,null,"Select from Drop Down","Select from Drop Down","Select from Drop Down",null,null,null,null,null,null,null,null,null,null,null,null,"Select from Drop Down","Select from Drop Down","Select from Drop Down"]
[1043,null,null,"Select from Drop Down","Select from Drop Down","Select from Drop Down",null,null,null,null,null,null,null,null,null,null,null,null,"Select from Drop Down","Select from Drop Down","Select from Drop Down"]
[1044,null,null,"Select from Drop Down","Select from Drop Down","Select from Drop Down",null,null,null,null,null,null,null,null,null,null,null,null,"Select from Drop Down","Select from Drop Down","Select from Drop Down"]
[1045,null,null,"Select from Drop Down","Select from Drop Down","Select from Drop Down",null,null,null,null,null,null,null,null,null,null,null,null,"Select from Drop Down","Select from Drop Down","Select from Drop Down"]
[1046,null,null,"Select from Drop Down","Select from Drop Down","Select from Drop Down",null,null,null,null,null,null,null,null,null,null,null,null,"Select from Drop Down","Select from Drop Down","Select from Drop Down"]
[1047,null,null,"Select from Drop Down","Select from Drop Down","Select from Drop Down",null,null,null,null,null,null,null,null,null,null,null,null,"Select from Drop Down","Select from Drop Down","Select from Drop Down"]
[1048,null,null,"Select from Drop Down","Select from Drop Down","Select from Drop Down",null,null,null,null,null,null,null,null,null,null,null,null,"Select from Drop Down","Select from Drop Down","Select from Drop Down"]
[1049,null,null,"Select from Drop Down","Select from Drop Down","Select from Drop Down",null,null,null,null,null,null,null,null,null,null,null,null,"Select from Drop Down","Select from Drop Down","Select from Drop Down"]
[1050,null,null,"Select from Drop Down","Select from Drop Down","Select from Drop Down",null,null,null,null,null,null,null,null,null,null,null,null,"Select from Drop Down","Select from Drop Down","Select from Drop Down"]
[1051,null,null,"Select from Drop Down","Select from Drop Down","Select from Drop Down",null,null,null,null,null,null,null,null,null,null,null,null,"Select from Drop Down","Select from Drop Down","Select from Drop Down"]
[1052,null,null,"Select from Drop Down","Select from Drop Down","Select from Drop Down",null,null,null,null,null,null,null,null,null,null,null,null,"Select from Drop Down","Select from Drop Down","Select from Drop Down"]
[1053,null,null,"Select from Drop Down","Select from Drop Down","Select from Drop Down",null,null,null,null,null,null,null,null,null,null,null,null,"Select from Drop Down","Select from Drop Down","Select from Drop Down"]
[1054,null,null,"Select from Drop Down","Select from Drop Down","Select from Drop Down",null,null,null,null,null,null,null,null,null,null,null,null,"Select from Drop Down","Select from Drop Down","Select from Drop Down"]
[1055,null,null,"Select from Drop Down","Select from Drop Down","Select from Drop Down",null,null,null,null,null,null,null,null,null,null,null,null,"Select from Drop Down","Select from Drop Down","Select from Drop Down"]
[1056,null,null,"Select from Drop Down","Select from Drop Down","Select from Drop Down",null,null,null,null,null,null,null,null,null,null,null,null,"Select from Drop Down","Select from Drop Down","Select from Drop Down"]
[1057,null,null,"Select from Drop Down","Select from Drop Down","Select from Drop Down",null,null,null,null,null,null,null,null,null,null,null,null,"Select from Drop Down","Select from Drop Down","Select from Drop Down"]
[1058,null,null,"Select from Drop Down","Select from Drop Down","Select from Drop Down",null,null,null,null,null,null,null,null,null,null,null,null,"Select from Drop Down","Select from Drop Down","Select from Drop Down"]
[1059,null,null,"Select from Drop Down","Select from Drop Down","Select from Drop Down",null,null,null,null,null,null,null,null,null,null,null,null,"Select from Drop Down","Select from Drop Down","Select from Drop Down"]
[1060,null,null,"Select from Drop Down","Select from Drop Down","Select from Drop Down",null,null,null,null,null,null,null,null,null,null,null,null,"Select from Drop Down","Select from Drop Down","Select from Drop Down"]
[1061,null,null,"Select from Drop Down","Select from Drop Down","Select from Drop Down",null,null,null,null,null,null,null,null,null,null,null,null,"Select from Drop Down","Select from Drop Down","Select from Drop Down"]
[1062,null,null,"Select from Drop Down","Select from Drop Down","Select from Drop Down",null,null,null,null,null,null,null,null,null,null,null,null,"Select from Drop Down","Select from Drop Down","Select from Drop Down"]
[1063,null,null,"Select from Drop Down","Select from Drop Down","Select from Drop Down",null,null,null,null,null,null,null,null,null,null,null,null,"Select from Drop Down","Select from Drop Down","Select from Drop Down"]
[1064,null,null,"Select from Drop Down","Select from Drop Down","Select from Drop Down",null,null,null,null,null,null,null,null,null,null,null,null,"Select from Drop Down","Select from Drop Down","Select from Drop Down"]
[1065,null,null,"Select from Drop Down","Select from Drop Down","Select from Drop Down",null,null,null,null,null,null,null,null,null,null,null,null,"Select from Drop Down","Select from Drop Down","Select from Drop Down"]
[1066,null,null,"Select from Drop Down","Select from Drop Down","Select from Drop Down",null,null,null,null,null,null,null,null,null,null,null,null,"Select from Drop Down","Select from Drop Down","Select from Drop Down"]
[1067,null,null,"Select from Drop Down","Select from Drop Down","Select from Drop Down",null,null,null,null,null,null,null,null,null,null,null,null,"Select from Drop Down","Select from Drop Down","Select from Drop Down"]
[1068,null,null,"Select from Drop Down","Select from Drop Down","Select from Drop Down",null,null,null,null,null,null,null,null,null,null,null,null,"Select from Drop Down","Select from Drop Down","Select from Drop Down"]
[1069,null,null,"Select from Drop Down","Select from Drop Down","Select from Drop Down",null,null,null,null,null,null,null,null,null,null,null,null,"Select from Drop Down","Select from Drop Down","Select from Drop Down"]
[1070,null,null,"Select from Drop Down","Select from Drop Down","Select from Drop Down",null,null,null,null,null,null,null,null,null,null,null,null,"Select from Drop Down","Select from Drop Down","Select from Drop Down"]
[1071,null,null,"Select from Drop Down","Select from Drop Down","Select from Drop Down",null,null,null,null,null,null,null,null,null,null,null,null,"Select from Drop Down","Select from Drop Down","Select from Drop Down"]
[1072,null,null,"Select from Drop Down","Select from Drop Down","Select from Drop Down",null,null,null,null,null,null,null,null,null,null,null,null,"Select from Drop Down","Select from Drop Down","Select from Drop Down"]
[1073,null,null,"Select from Drop Down","Select from Drop Down","Select from Drop Down",null,null,null,null,null,null,null,null,null,null,null,null,"Select from Drop Down","Select from Drop Down","Select from Drop Down"]
[1074,null,null,"Select from Drop Down","Select from Drop Down","Select from Drop Down",null,null,null,null,null,null,null,null,null,null,null,null,"Select from Drop Down","Select from Drop Down","Select from Drop Down"]
[1075,null,null,"Select from Drop Down","Select from Drop Down","Select from Drop Down",null,null,null,null,null,null,null,null,null,null,null,null,"Select from Drop Down","Select from Drop Down","Select from Drop Down"]
[1076,null,null,"Select from Drop Down","Select from Drop Down","Select from Drop Down",null,null,null,null,null,null,null,null,null,null,null,null,"Select from Drop Down","Select from Drop Down","Select from Drop Down"]
[1077,null,null,"Select from Drop Down","Select from Drop Down","Select from Drop Down",null,null,null,null,null,null,null,null,null,null,null,null,"Select from Drop Down","Select from Drop Down","Select from Drop Down"]
[1078,null,null,"Select from Drop Down","Select from Drop Down","Select from Drop Down",null,null,null,null,null,null,null,null,null,null,null,null,"Select from Drop Down","Select from Drop Down","Select from Drop Down"]
[1079,null,null,"Select from Drop Down","Select from Drop Down","Select from Drop Down",null,null,null,null,null,null,null,null,null,null,null,null,"Select from Drop Down","Select from Drop Down","Select from Drop Down"]
[1080,null,null,"Select from Drop Down","Select from Drop Down","Select from Drop Down",null,null,null,null,null,null,null,null,null,null,null,null,"Select from Drop Down","Select from Drop Down","Select from Drop Down"]
[1081,null,null,"Select from Drop Down","Select from Drop Down","Select from Drop Down",null,null,null,null,null,null,null,null,null,null,null,null,"Select from Drop Down","Select from Drop Down","Select from Drop Down"]
[1082,null,null,"Select from Drop Down","Select from Drop Down","Select from Drop Down",null,null,null,null,null,null,null,null,null,null,null,null,"Select from Drop Down","Select from Drop Down","Select from Drop Down"]
[1083,null,null,"Select from Drop Down","Select from Drop Down","Select from Drop Down",null,null,null,null,null,null,null,null,null,null,null,null,"Select from Drop Down","Select from Drop Down","Select from Drop Down"]
[1084,null,null,"Select from Drop Down","Select from Drop Down","Select from Drop Down",null,null,null,null,null,null,null,null,null,null,null,null,"Select from Drop Down","Select from Drop Down","Select from Drop Down"]
[1085,null,null,"Select from Drop Down","Select from Drop Down","Select from Drop Down",null,null,null,null,null,null,null,null,null,null,null,null,"Select from Drop Down","Select from Drop Down","Select from Drop Down"]
[1086,null,null,"Select from Drop Down","Select from Drop Down","Select from Drop Down",null,null,null,null,null,null,null,null,null,null,null,null,"Select from Drop Down","Select from Drop Down","Select from Drop Down"]
[1087,null,null,"Select from Drop Down","Select from Drop Down","Select from Drop Down",null,null,null,null,null,null,null,null,null,null,null,null,"Select from Drop Down","Select from Drop Down","Select from Drop Down"]
[1088,null,null,"Select from Drop Down","Select from Drop Down","Select from Drop Down",null,null,null,null,null,null,null,null,null,null,null,null,"Select from Drop Down","Select from Drop Down","Select from Drop Down"]
[1089,null,null,"Select from Drop Down","Select from Drop Down","Select from Drop Down",null,null,null,null,null,null,null,null,null,null,null,null,"Select from Drop Down","Select from Drop Down","Select from Drop Down"]
[1090,null,null,"Select from Drop Down","Select from Drop Down","Select from Drop Down",null,null,null,null,null,null,null,null,null,null,null,null,"Select from Drop Down","Select from Drop Down","Select from Drop Down"]
[{"$f":"A1100+1","v":1091},null,null,"Select from Drop Down","Select from Drop Down","Select from Drop Down",null,null,null,null,null,null,null,null,null,null,null,null,"Select from Drop Down","Select from Drop Down","Select from Drop Down"]
[1092,null,null,"Select from Drop Down","Select from Drop Down","Select from Drop Down",null,null,null,null,null,null,null,null,null,null,null,null,"Select from Drop Down","Select from Drop Down","Select from Drop Down"]
[1093,null,null,"Select from Drop Down","Select from Drop Down","Select from Drop Down",null,null,null,null,null,null,null,null,null,null,null,null,"Select from Drop Down","Select from Drop Down","Select from Drop Down"]
[1094,null,null,"Select from Drop Down","Select from Drop Down","Select from Drop Down",null,null,null,null,null,null,null,null,null,null,null,null,"Select from Drop Down","Select from Drop Down","Select from Drop Down"]
[1095,null,null,"Select from Drop Down","Select from Drop Down","Select from Drop Down",null,null,null,null,null,null,null,null,null,null,null,null,"Select from Drop Down","Select from Drop Down","Select from Drop Down"]
[1096,null,null,"Select from Drop Down","Select from Drop Down","Select from Drop Down",null,null,null,null,null,null,null,null,null,null,null,null,"Select from Drop Down","Select from Drop Down","Select from Drop Down"]
[1097,null,null,"Select from Drop Down","Select from Drop Down","Select from Drop Down",null,null,null,null,null,null,null,null,null,null,null,null,"Select from Drop Down","Select from Drop Down","Select from Drop Down"]
[1098,null,null,"Select from Drop Down","Select from Drop Down","Select from Drop Down",null,null,null,null,null,null,null,null,null,null,null,null,"Select from Drop Down","Select from Drop Down","Select from Drop Down"]
[1099,null,null,"Select from Drop Down","Select from Drop Down","Select from Drop Down",null,null,null,null,null,null,null,null,null,null,null,null,"Select from Drop Down","Select from Drop Down","Select from Drop Down"]
[1100,null,null,"Select from Drop Down","Select from Drop Down","Select from Drop Down",null,null,null,null,null,null,null,null,null,null,null,null,"Select from Drop Down","Select from Drop Down","Select from Drop Down"]
[1101,null,null,"Select from Drop Down","Select from Drop Down","Select from Drop Down",null,null,null,null,null,null,null,null,null,null,null,null,"Select from Drop Down","Select from Drop Down","Select from Drop Down"]
[1102,null,null,"Select from Drop Down","Select from Drop Down","Select from Drop Down",null,null,null,null,null,null,null,null,null,null,null,null,"Select from Drop Down","Select from Drop Down","Select from Drop Down"]
[1103,null,null,"Select from Drop Down","Select from Drop Down","Select from Drop Down",null,null,null,null,null,null,null,null,null,null,null,null,"Select from Drop Down","Select from Drop Down","Select from Drop Down"]
[1104,null,null,"Select from Drop Down","Select from Drop Down","Select from Drop Down",null,null,null,null,null,null,null,null,null,null,null,null,"Select from Drop Down","Select from Drop Down","Select from Drop Down"]
[1105,null,null,"Select from Drop Down","Select from Drop Down","Select from Drop Down",null,null,null,null,null,null,null,null,null,null,null,null,"Select from Drop Down","Select from Drop Down","Select from Drop Down"]
[1106,null,null,"Select from Drop Down","Select from Drop Down","Select from Drop Down",null,null,null,null,null,null,null,null,null,null,null,null,"Select from Drop Down","Select from Drop Down","Select from Drop Down"]
[1107,null,null,"Select from Drop Down","Select from Drop Down","Select from Drop Down",null,null,null,null,null,null,null,null,null,null,null,null,"Select from Drop Down","Select from Drop Down","Select from Drop Down"]
[1108,null,null,"Select from Drop Down","Select from Drop Down","Select from Drop Down",null,null,null,null,null,null,null,null,null,null,null,null,"Select from Drop Down","Select from Drop Down","Select from Drop Down"]
[1109,null,null,"Select from Drop Down","Select from Drop Down","Select from Drop Down",null,null,null,null,null,null,null,null,null,null,null,null,"Select from Drop Down","Select from Drop Down","Select from Drop Down"]
[1110,null,null,"Select from Drop Down","Select from Drop Down","Select from Drop Down",null,null,null,null,null,null,null,null,null,null,null,null,"Select from Drop Down","Select from Drop Down","Select from Drop Down"]
[1111,null,null,"Select from Drop Down","Select from Drop Down","Select from Drop Down",null,null,null,null,null,null,null,null,null,null,null,null,"Select from Drop Down","Select from Drop Down","Select from Drop Down"]
[1112,null,null,"Select from Drop Down","Select from Drop Down","Select from Drop Down",null,null,null,null,null,null,null,null,null,null,null,null,"Select from Drop Down","Select from Drop Down","Select from Drop Down"]
[1113,null,null,"Select from Drop Down","Select from Drop Down","Select from Drop Down",null,null,null,null,null,null,null,null,null,null,null,null,"Select from Drop Down","Select from Drop Down","Select from Drop Down"]
[1114,null,null,"Select from Drop Down","Select from Drop Down","Select from Drop Down",null,null,null,null,null,null,null,null,null,null,null,null,"Select from Drop Down","Select from Drop Down","Select from Drop Down"]
[1115,null,null,"Select from Drop Down","Select from Drop Down","Select from Drop Down",null,null,null,null,null,null,null,null,null,null,null,null,"Select from Drop Down","Select from Drop Down","Select from Drop Down"]
[1116,null,null,"Select from Drop Down","Select from Drop Down","Select from Drop Down",null,null,null,null,null,null,null,null,null,null,null,null,"Select from Drop Down","Select from Drop Down","Select from Drop Down"]
[1117,null,null,"Select from Drop Down","Select from Drop Down","Select from Drop Down",null,null,null,null,null,null,null,null,null,null,null,null,"Select from Drop Down","Select from Drop Down","Select from Drop Down"]
[1118,null,null,"Select from Drop Down","Select from Drop Down","Select from Drop Down",null,null,null,null,null,null,null,null,null,null,null,null,"Select from Drop Down","Select from Drop Down","Select from Drop Down"]
[1119,null,null,"Select from Drop Down","Select from Drop Down","Select from Drop Down",null,null,null,null,null,null,null,null,null,null,null,null,"Select from Drop Down","Select from Drop Down","Select from Drop Down"]
[1120,null,null,"Select from Drop Down","Select from Drop Down","Select from Drop Down",null,null,null,null,null,null,null,null,null,null,null,null,"Select from Drop Down","Select from Drop Down","Select from Drop Down"]
[1121,null,null,"Select from Drop Down","Select from Drop Down","Select from Drop Down",null,null,null,null,null,null,null,null,null,null,null,null,"Select from Drop Down","Select from Drop Down","Select from Drop Down"]
[1122,null,null,"Select from Drop Down","Select from Drop Down","Select from Drop Down",null,null,null,null,null,null,null,null,null,null,null,null,"Select from Drop Down","Select from Drop Down","Select from Drop Down"]
[1123,null,null,"Select from Drop Down","Select from Drop Down","Select from Drop Down",null,null,null,null,null,null,null,null,null,null,null,null,"Select from Drop Down","Select from Drop Down","Select from Drop Down"]
[1124,null,null,"Select from Drop Down","Select from Drop Down","Select from Drop Down",null,null,null,null,null,null,null,null,null,null,null,null,"Select from Drop Down","Select from Drop Down","Select from Drop Down"]
[1125,null,null,"Select from Drop Down","Select from Drop Down","Select from Drop Down",null,null,null,null,null,null,null,null,null,null,null,null,"Select from Drop Down","Select from Drop Down","Select from Drop Down"]
[1126,null,null,"Select from Drop Down","Select from Drop Down","Select from Drop Down",null,null,null,null,null,null,null,null,null,null,null,null,"Select from Drop Down","Select from Drop Down","Select from Drop Down"]
[1127,null,null,"Select from Drop Down","Select from Drop Down","Select from Drop Down",null,null,null,null,null,null,null,null,null,null,null,null,"Select from Drop Down","Select from Drop Down","Select from Drop Down"]
[1128,null,null,"Select from Drop Down","Select from Drop Down","Select from Drop Down",null,null,null,null,null,null,null,null,null,null,null,null,"Select from Drop Down","Select from Drop Down","Select from Drop Down"]
[1129,null,null,"Select from Drop Down","Select from Drop Down","Select from Drop Down",null,null,null,null,null,null,null,null,null,null,null,null,"Select from Drop Down","Select from Drop Down","Select from Drop Down"]
[1130,null,null,"Select from Drop Down","Select from Drop Down","Select from Drop Down",null,null,null,null,null,null,null,null,null,null,null,null,"Select from Drop Down","Select from Drop Down","Select from Drop Down"]
[1131,null,null,"Select from Drop Down","Select from Drop Down","Select from Drop Down",null,null,null,null,null,null,null,null,null,null,null,null,"Select from Drop Down","Select from Drop Down","Select from Drop Down"]
[1132,null,null,"Select from Drop Down","Select from Drop Down","Select from Drop Down",null,null,null,null,null,null,null,null,null,null,null,null,"Select from Drop Down","Select from Drop Down","Select from Drop Down"]
[1133,null,null,"Select from Drop Down","Select from Drop Down","Select from Drop Down",null,null,null,null,null,null,null,null,null,null,null,null,"Select from Drop Down","Select from Drop Down","Select from Drop Down"]
[1134,null,null,"Select from Drop Down","Select from Drop Down","Select from Drop Down",null,null,null,null,null,null,null,null,null,null,null,null,"Select from Drop Down","Select from Drop Down","Select from Drop Down"]
[1135,null,null,"Select from Drop Down","Select from Drop Down","Select from Drop Down",null,null,null,null,null,null,null,null,null,null,null,null,"Select from Drop Down","Select from Drop Down","Select from Drop Down"]
[1136,null,null,"Select from Drop Down","Select from Drop Down","Select from Drop Down",null,null,null,null,null,null,null,null,null,null,null,null,"Select from Drop Down","Select from Drop Down","Select from Drop Down"]
[1137,null,null,"Select from Drop Down","Select from Drop Down","Select from Drop Down",null,null,null,null,null,null,null,null,null,null,null,null,"Select from Drop Down","Select from Drop Down","Select from Drop Down"]
[1138,null,null,"Select from Drop Down","Select from Drop Down","Select from Drop Down",null,null,null,null,null,null,null,null,null,null,null,null,"Select from Drop Down","Select from Drop Down","Select from Drop Down"]
[1139,null,null,"Select from Drop Down","Select from Drop Down","Select from Drop Down",null,null,null,null,null,null,null,null,null,null,null,null,"Select from Drop Down","Select from Drop Down","Select from Drop Down"]
[1140,null,null,"Select from Drop Down","Select from Drop Down","Select from Drop Down",null,null,null,null,null,null,null,null,null,null,null,null,"Select from Drop Down","Select from Drop Down","Select from Drop Down"]
[1141,null,null,"Select from Drop Down","Select from Drop Down","Select from Drop Down",null,null,null,null,null,null,null,null,null,null,null,null,"Select from Drop Down","Select from Drop Down","Select from Drop Down"]
[1142,null,null,"Select from Drop Down","Select from Drop Down","Select from Drop Down",null,null,null,null,null,null,null,null,null,null,null,null,"Select from Drop Down","Select from Drop Down","Select from Drop Down"]
[1143,null,null,"Select from Drop Down","Select from Drop Down","Select from Drop Down",null,null,null,null,null,null,null,null,null,null,null,null,"Select from Drop Down","Select from Drop Down","Select from Drop Down"]
[1144,null,null,"Select from Drop Down","Select from Drop Down","Select from Drop Down",null,null,null,null,null,null,null,null,null,null,null,null,"Select from Drop Down","Select from Drop Down","Select from Drop Down"]
[1145,null,null,"Select from Drop Down","Select from Drop Down","Select from Drop Down",null,null,null,null,null,null,null,null,null,null,null,null,"Select from Drop Down","Select from Drop Down","Select from Drop Down"]
[1146,null,null,"Select from Drop Down","Select from Drop Down","Select from Drop Down",null,null,null,null,null,null,null,null,null,null,null,null,"Select from Drop Down","Select from Drop Down","Select from Drop Down"]
[1147,null,null,"Select from Drop Down","Select from Drop Down","Select from Drop Down",null,null,null,null,null,null,null,null,null,null,null,null,"Select from Drop Down","Select from Drop Down","Select from Drop Down"]
[1148,null,null,"Select from Drop Down","Select from Drop Down","Select from Drop Down",null,null,null,null,null,null,null,null,null,null,null,null,"Select from Drop Down","Select from Drop Down","Select from Drop Down"]
[1149,null,null,"Select from Drop Down","Select from Drop Down","Select from Drop Down",null,null,null,null,null,null,null,null,null,null,null,null,"Select from Drop Down","Select from Drop Down","Select from Drop Down"]
[1150,null,null,"Select from Drop Down","Select from Drop Down","Select from Drop Down",null,null,null,null,null,null,null,null,null,null,null,null,"Select from Drop Down","Select from Drop Down","Select from Drop Down"]
[1151,null,null,"Select from Drop Down","Select from Drop Down","Select from Drop Down",null,null,null,null,null,null,null,null,null,null,null,null,"Select from Drop Down","Select from Drop Down","Select from Drop Down"]
[1152,null,null,"Select from Drop Down","Select from Drop Down","Select from Drop Down",null,null,null,null,null,null,null,null,null,null,null,null,"Select from Drop Down","Select from Drop Down","Select from Drop Down"]
[1153,null,null,"Select from Drop Down","Select from Drop Down","Select from Drop Down",null,null,null,null,null,null,null,null,null,null,null,null,"Select from Drop Down","Select from Drop Down","Select from Drop Down"]
[1154,null,null,"Select from Drop Down","Select from Drop Down","Select from Drop Down",null,null,null,null,null,null,null,null,null,null,null,null,"Select from Drop Down","Select from Drop Down","Select from Drop Down"]
[{"$f":"A1164+1","v":1155},null,null,"Select from Drop Down","Select from Drop Down","Select from Drop Down",null,null,null,null,null,null,null,null,null,null,null,null,"Select from Drop Down","Select from Drop Down","Select from Drop Down"]
[1156,null,null,"Select from Drop Down","Select from Drop Down","Select from Drop Down",null,null,null,null,null,null,null,null,null,null,null,null,"Select from Drop Down","Select from Drop Down","Select from Drop Down"]
[1157,null,null,"Select from Drop Down","Select from Drop Down","Select from Drop Down",null,null,null,null,null,null,null,null,null,null,null,null,"Select from Drop Down","Select from Drop Down","Select from Drop Down"]
[1158,null,null,"Select from Drop Down","Select from Drop Down","Select from Drop Down",null,null,null,null,null,null,null,null,null,null,null,null,"Select from Drop Down","Select from Drop Down","Select from Drop Down"]
[1159,null,null,"Select from Drop Down","Select from Drop Down","Select from Drop Down",null,null,null,null,null,null,null,null,null,null,null,null,"Select from Drop Down","Select from Drop Down","Select from Drop Down"]
[1160,null,null,"Select from Drop Down","Select from Drop Down","Select from Drop Down",null,null,null,null,null,null,null,null,null,null,null,null,"Select from Drop Down","Select from Drop Down","Select from Drop Down"]
[1161,null,null,"Select from Drop Down","Select from Drop Down","Select from Drop Down",null,null,null,null,null,null,null,null,null,null,null,null,"Select from Drop Down","Select from Drop Down","Select from Drop Down"]
[1162,null,null,"Select from Drop Down","Select from Drop Down","Select from Drop Down",null,null,null,null,null,null,null,null,null,null,null,null,"Select from Drop Down","Select from Drop Down","Select from Drop Down"]
[1163,null,null,"Select from Drop Down","Select from Drop Down","Select from Drop Down",null,null,null,null,null,null,null,null,null,null,null,null,"Select from Drop Down","Select from Drop Down","Select from Drop Down"]
[1164,null,null,"Select from Drop Down","Select from Drop Down","Select from Drop Down",null,null,null,null,null,null,null,null,null,null,null,null,"Select from Drop Down","Select from Drop Down","Select from Drop Down"]
[1165,null,null,"Select from Drop Down","Select from Drop Down","Select from Drop Down",null,null,null,null,null,null,null,null,null,null,null,null,"Select from Drop Down","Select from Drop Down","Select from Drop Down"]
[1166,null,null,"Select from Drop Down","Select from Drop Down","Select from Drop Down",null,null,null,null,null,null,null,null,null,null,null,null,"Select from Drop Down","Select from Drop Down","Select from Drop Down"]
[1167,null,null,"Select from Drop Down","Select from Drop Down","Select from Drop Down",null,null,null,null,null,null,null,null,null,null,null,null,"Select from Drop Down","Select from Drop Down","Select from Drop Down"]
[1168,null,null,"Select from Drop Down","Select from Drop Down","Select from Drop Down",null,null,null,null,null,null,null,null,null,null,null,null,"Select from Drop Down","Select from Drop Down","Select from Drop Down"]
[1169,null,null,"Select from Drop Down","Select from Drop Down","Select from Drop Down",null,null,null,null,null,null,null,null,null,null,null,null,"Select from Drop Down","Select from Drop Down","Select from Drop Down"]
[1170,null,null,"Select from Drop Down","Select from Drop Down","Select from Drop Down",null,null,null,null,null,null,null,null,null,null,null,null,"Select from Drop Down","Select from Drop Down","Select from Drop Down"]
[1171,null,null,"Select from Drop Down","Select from Drop Down","Select from Drop Down",null,null,null,null,null,null,null,null,null,null,null,null,"Select from Drop Down","Select from Drop Down","Select from Drop Down"]
[1172,null,null,"Select from Drop Down","Select from Drop Down","Select from Drop Down",null,null,null,null,null,null,null,null,null,null,null,null,"Select from Drop Down","Select from Drop Down","Select from Drop Down"]
[1173,null,null,"Select from Drop Down","Select from Drop Down","Select from Drop Down",null,null,null,null,null,null,null,null,null,null,null,null,"Select from Drop Down","Select from Drop Down","Select from Drop Down"]
[1174,null,null,"Select from Drop Down","Select from Drop Down","Select from Drop Down",null,null,null,null,null,null,null,null,null,null,null,null,"Select from Drop Down","Select from Drop Down","Select from Drop Down"]
[1175,null,null,"Select from Drop Down","Select from Drop Down","Select from Drop Down",null,null,null,null,null,null,null,null,null,null,null,null,"Select from Drop Down","Select from Drop Down","Select from Drop Down"]
[1176,null,null,"Select from Drop Down","Select from Drop Down","Select from Drop Down",null,null,null,null,null,null,null,null,null,null,null,null,"Select from Drop Down","Select from Drop Down","Select from Drop Down"]
[1177,null,null,"Select from Drop Down","Select from Drop Down","Select from Drop Down",null,null,null,null,null,null,null,null,null,null,null,null,"Select from Drop Down","Select from Drop Down","Select from Drop Down"]
[1178,null,null,"Select from Drop Down","Select from Drop Down","Select from Drop Down",null,null,null,null,null,null,null,null,null,null,null,null,"Select from Drop Down","Select from Drop Down","Select from Drop Down"]
[1179,null,null,"Select from Drop Down","Select from Drop Down","Select from Drop Down",null,null,null,null,null,null,null,null,null,null,null,null,"Select from Drop Down","Select from Drop Down","Select from Drop Down"]
[1180,null,null,"Select from Drop Down","Select from Drop Down","Select from Drop Down",null,null,null,null,null,null,null,null,null,null,null,null,"Select from Drop Down","Select from Drop Down","Select from Drop Down"]
[1181,null,null,"Select from Drop Down","Select from Drop Down","Select from Drop Down",null,null,null,null,null,null,null,null,null,null,null,null,"Select from Drop Down","Select from Drop Down","Select from Drop Down"]
[1182,null,null,"Select from Drop Down","Select from Drop Down","Select from Drop Down",null,null,null,null,null,null,null,null,null,null,null,null,"Select from Drop Down","Select from Drop Down","Select from Drop Down"]
[1183,null,null,"Select from Drop Down","Select from Drop Down","Select from Drop Down",null,null,null,null,null,null,null,null,null,null,null,null,"Select from Drop Down","Select from Drop Down","Select from Drop Down"]
[1184,null,null,"Select from Drop Down","Select from Drop Down","Select from Drop Down",null,null,null,null,null,null,null,null,null,null,null,null,"Select from Drop Down","Select from Drop Down","Select from Drop Down"]
[1185,null,null,"Select from Drop Down","Select from Drop Down","Select from Drop Down",null,null,null,null,null,null,null,null,null,null,null,null,"Select from Drop Down","Select from Drop Down","Select from Drop Down"]
[1186,null,null,"Select from Drop Down","Select from Drop Down","Select from Drop Down",null,null,null,null,null,null,null,null,null,null,null,null,"Select from Drop Down","Select from Drop Down","Select from Drop Down"]
[1187,null,null,"Select from Drop Down","Select from Drop Down","Select from Drop Down",null,null,null,null,null,null,null,null,null,null,null,null,"Select from Drop Down","Select from Drop Down","Select from Drop Down"]
[1188,null,null,"Select from Drop Down","Select from Drop Down","Select from Drop Down",null,null,null,null,null,null,null,null,null,null,null,null,"Select from Drop Down","Select from Drop Down","Select from Drop Down"]
[1189,null,null,"Select from Drop Down","Select from Drop Down","Select from Drop Down",null,null,null,null,null,null,null,null,null,null,null,null,"Select from Drop Down","Select from Drop Down","Select from Drop Down"]
[1190,null,null,"Select from Drop Down","Select from Drop Down","Select from Drop Down",null,null,null,null,null,null,null,null,null,null,null,null,"Select from Drop Down","Select from Drop Down","Select from Drop Down"]
[1191,null,null,"Select from Drop Down","Select from Drop Down","Select from Drop Down",null,null,null,null,null,null,null,null,null,null,null,null,"Select from Drop Down","Select from Drop Down","Select from Drop Down"]
[1192,null,null,"Select from Drop Down","Select from Drop Down","Select from Drop Down",null,null,null,null,null,null,null,null,null,null,null,null,"Select from Drop Down","Select from Drop Down","Select from Drop Down"]
[1193,null,null,"Select from Drop Down","Select from Drop Down","Select from Drop Down",null,null,null,null,null,null,null,null,null,null,null,null,"Select from Drop Down","Select from Drop Down","Select from Drop Down"]
[1194,null,null,"Select from Drop Down","Select from Drop Down","Select from Drop Down",null,null,null,null,null,null,null,null,null,null,null,null,"Select from Drop Down","Select from Drop Down","Select from Drop Down"]
[1195,null,null,"Select from Drop Down","Select from Drop Down","Select from Drop Down",null,null,null,null,null,null,null,null,null,null,null,null,"Select from Drop Down","Select from Drop Down","Select from Drop Down"]
[1196,null,null,"Select from Drop Down","Select from Drop Down","Select from Drop Down",null,null,null,null,null,null,null,null,null,null,null,null,"Select from Drop Down","Select from Drop Down","Select from Drop Down"]
[1197,null,null,"Select from Drop Down","Select from Drop Down","Select from Drop Down",null,null,null,null,null,null,null,null,null,null,null,null,"Select from Drop Down","Select from Drop Down","Select from Drop Down"]
[1198,null,null,"Select from Drop Down","Select from Drop Down","Select from Drop Down",null,null,null,null,null,null,null,null,null,null,null,null,"Select from Drop Down","Select from Drop Down","Select from Drop Down"]
[1199,null,null,"Select from Drop Down","Select from Drop Down","Select from Drop Down",null,null,null,null,null,null,null,null,null,null,null,null,"Select from Drop Down","Select from Drop Down","Select from Drop Down"]
[1200,null,null,"Select from Drop Down","Select from Drop Down","Select from Drop Down",null,null,null,null,null,null,null,null,null,null,null,null,"Select from Drop Down","Select from Drop Down","Select from Drop Down"]
[1201,null,null,"Select from Drop Down","Select from Drop Down","Select from Drop Down",null,null,null,null,null,null,null,null,null,null,null,null,"Select from Drop Down","Select from Drop Down","Select from Drop Down"]
[1202,null,null,"Select from Drop Down","Select from Drop Down","Select from Drop Down",null,null,null,null,null,null,null,null,null,null,null,null,"Select from Drop Down","Select from Drop Down","Select from Drop Down"]
[1203,null,null,"Select from Drop Down","Select from Drop Down","Select from Drop Down",null,null,null,null,null,null,null,null,null,null,null,null,"Select from Drop Down","Select from Drop Down","Select from Drop Down"]
[1204,null,null,"Select from Drop Down","Select from Drop Down","Select from Drop Down",null,null,null,null,null,null,null,null,null,null,null,null,"Select from Drop Down","Select from Drop Down","Select from Drop Down"]
[1205,null,null,"Select from Drop Down","Select from Drop Down","Select from Drop Down",null,null,null,null,null,null,null,null,null,null,null,null,"Select from Drop Down","Select from Drop Down","Select from Drop Down"]
[1206,null,null,"Select from Drop Down","Select from Drop Down","Select from Drop Down",null,null,null,null,null,null,null,null,null,null,null,null,"Select from Drop Down","Select from Drop Down","Select from Drop Down"]
[1207,null,null,"Select from Drop Down","Select from Drop Down","Select from Drop Down",null,null,null,null,null,null,null,null,null,null,null,null,"Select from Drop Down","Select from Drop Down","Select from Drop Down"]
[1208,null,null,"Select from Drop Down","Select from Drop Down","Select from Drop Down",null,null,null,null,null,null,null,null,null,null,null,null,"Select from Drop Down","Select from Drop Down","Select from Drop Down"]
[1209,null,null,"Select from Drop Down","Select from Drop Down","Select from Drop Down",null,null,null,null,null,null,null,null,null,null,null,null,"Select from Drop Down","Select from Drop Down","Select from Drop Down"]
[1210,null,null,"Select from Drop Down","Select from Drop Down","Select from Drop Down",null,null,null,null,null,null,null,null,null,null,null,null,"Select from Drop Down","Select from Drop Down","Select from Drop Down"]
[1211,null,null,"Select from Drop Down","Select from Drop Down","Select from Drop Down",null,null,null,null,null,null,null,null,null,null,null,null,"Select from Drop Down","Select from Drop Down","Select from Drop Down"]
[1212,null,null,"Select from Drop Down","Select from Drop Down","Select from Drop Down",null,null,null,null,null,null,null,null,null,null,null,null,"Select from Drop Down","Select from Drop Down","Select from Drop Down"]
[1213,null,null,"Select from Drop Down","Select from Drop Down","Select from Drop Down",null,null,null,null,null,null,null,null,null,null,null,null,"Select from Drop Down","Select from Drop Down","Select from Drop Down"]
[1214,null,null,"Select from Drop Down","Select from Drop Down","Select from Drop Down",null,null,null,null,null,null,null,null,null,null,null,null,"Select from Drop Down","Select from Drop Down","Select from Drop Down"]
[1215,null,null,"Select from Drop Down","Select from Drop Down","Select from Drop Down",null,null,null,null,null,null,null,null,null,null,null,null,"Select from Drop Down","Select from Drop Down","Select from Drop Down"]
[1216,null,null,"Select from Drop Down","Select from Drop Down","Select from Drop Down",null,null,null,null,null,null,null,null,null,null,null,null,"Select from Drop Down","Select from Drop Down","Select from Drop Down"]
[1217,null,null,"Select from Drop Down","Select from Drop Down","Select from Drop Down",null,null,null,null,null,null,null,null,null,null,null,null,"Select from Drop Down","Select from Drop Down","Select from Drop Down"]
[1218,null,null,"Select from Drop Down","Select from Drop Down","Select from Drop Down",null,null,null,null,null,null,null,null,null,null,null,null,"Select from Drop Down","Select from Drop Down","Select from Drop Down"]
[{"$f":"A1228+1","v":1219},null,null,"Select from Drop Down","Select from Drop Down","Select from Drop Down",null,null,null,null,null,null,null,null,null,null,null,null,"Select from Drop Down","Select from Drop Down","Select from Drop Down"]
[1220,null,null,"Select from Drop Down","Select from Drop Down","Select from Drop Down",null,null,null,null,null,null,null,null,null,null,null,null,"Select from Drop Down","Select from Drop Down","Select from Drop Down"]
[1221,null,null,"Select from Drop Down","Select from Drop Down","Select from Drop Down",null,null,null,null,null,null,null,null,null,null,null,null,"Select from Drop Down","Select from Drop Down","Select from Drop Down"]
[1222,null,null,"Select from Drop Down","Select from Drop Down","Select from Drop Down",null,null,null,null,null,null,null,null,null,null,null,null,"Select from Drop Down","Select from Drop Down","Select from Drop Down"]
[1223,null,null,"Select from Drop Down","Select from Drop Down","Select from Drop Down",null,null,null,null,null,null,null,null,null,null,null,null,"Select from Drop Down","Select from Drop Down","Select from Drop Down"]
[1224,null,null,"Select from Drop Down","Select from Drop Down","Select from Drop Down",null,null,null,null,null,null,null,null,null,null,null,null,"Select from Drop Down","Select from Drop Down","Select from Drop Down"]
[1225,null,null,"Select from Drop Down","Select from Drop Down","Select from Drop Down",null,null,null,null,null,null,null,null,null,null,null,null,"Select from Drop Down","Select from Drop Down","Select from Drop Down"]
[1226,null,null,"Select from Drop Down","Select from Drop Down","Select from Drop Down",null,null,null,null,null,null,null,null,null,null,null,null,"Select from Drop Down","Select from Drop Down","Select from Drop Down"]
[1227,null,null,"Select from Drop Down","Select from Drop Down","Select from Drop Down",null,null,null,null,null,null,null,null,null,null,null,null,"Select from Drop Down","Select from Drop Down","Select from Drop Down"]
[1228,null,null,"Select from Drop Down","Select from Drop Down","Select from Drop Down",null,null,null,null,null,null,null,null,null,null,null,null,"Select from Drop Down","Select from Drop Down","Select from Drop Down"]
[1229,null,null,"Select from Drop Down","Select from Drop Down","Select from Drop Down",null,null,null,null,null,null,null,null,null,null,null,null,"Select from Drop Down","Select from Drop Down","Select from Drop Down"]
[1230,null,null,"Select from Drop Down","Select from Drop Down","Select from Drop Down",null,null,null,null,null,null,null,null,null,null,null,null,"Select from Drop Down","Select from Drop Down","Select from Drop Down"]
[1231,null,null,"Select from Drop Down","Select from Drop Down","Select from Drop Down",null,null,null,null,null,null,null,null,null,null,null,null,"Select from Drop Down","Select from Drop Down","Select from Drop Down"]
[1232,null,null,"Select from Drop Down","Select from Drop Down","Select from Drop Down",null,null,null,null,null,null,null,null,null,null,null,null,"Select from Drop Down","Select from Drop Down","Select from Drop Down"]
[1233,null,null,"Select from Drop Down","Select from Drop Down","Select from Drop Down",null,null,null,null,null,null,null,null,null,null,null,null,"Select from Drop Down","Select from Drop Down","Select from Drop Down"]
[1234,null,null,"Select from Drop Down","Select from Drop Down","Select from Drop Down",null,null,null,null,null,null,null,null,null,null,null,null,"Select from Drop Down","Select from Drop Down","Select from Drop Down"]
[1235,null,null,"Select from Drop Down","Select from Drop Down","Select from Drop Down",null,null,null,null,null,null,null,null,null,null,null,null,"Select from Drop Down","Select from Drop Down","Select from Drop Down"]
[1236,null,null,"Select from Drop Down","Select from Drop Down","Select from Drop Down",null,null,null,null,null,null,null,null,null,null,null,null,"Select from Drop Down","Select from Drop Down","Select from Drop Down"]
[1237,null,null,"Select from Drop Down","Select from Drop Down","Select from Drop Down",null,null,null,null,null,null,null,null,null,null,null,null,"Select from Drop Down","Select from Drop Down","Select from Drop Down"]
[1238,null,null,"Select from Drop Down","Select from Drop Down","Select from Drop Down",null,null,null,null,null,null,null,null,null,null,null,null,"Select from Drop Down","Select from Drop Down","Select from Drop Down"]
[1239,null,null,"Select from Drop Down","Select from Drop Down","Select from Drop Down",null,null,null,null,null,null,null,null,null,null,null,null,"Select from Drop Down","Select from Drop Down","Select from Drop Down"]
[1240,null,null,"Select from Drop Down","Select from Drop Down","Select from Drop Down",null,null,null,null,null,null,null,null,null,null,null,null,"Select from Drop Down","Select from Drop Down","Select from Drop Down"]
[1241,null,null,"Select from Drop Down","Select from Drop Down","Select from Drop Down",null,null,null,null,null,null,null,null,null,null,null,null,"Select from Drop Down","Select from Drop Down","Select from Drop Down"]
[1242,null,null,"Select from Drop Down","Select from Drop Down","Select from Drop Down",null,null,null,null,null,null,null,null,null,null,null,null,"Select from Drop Down","Select from Drop Down","Select from Drop Down"]
[1243,null,null,"Select from Drop Down","Select from Drop Down","Select from Drop Down",null,null,null,null,null,null,null,null,null,null,null,null,"Select from Drop Down","Select from Drop Down","Select from Drop Down"]
[1244,null,null,"Select from Drop Down","Select from Drop Down","Select from Drop Down",null,null,null,null,null,null,null,null,null,null,null,null,"Select from Drop Down","Select from Drop Down","Select from Drop Down"]
[1245,null,null,"Select from Drop Down","Select from Drop Down","Select from Drop Down",null,null,null,null,null,null,null,null,null,null,null,null,"Select from Drop Down","Select from Drop Down","Select from Drop Down"]
[1246,null,null,"Select from Drop Down","Select from Drop Down","Select from Drop Down",null,null,null,null,null,null,null,null,null,null,null,null,"Select from Drop Down","Select from Drop Down","Select from Drop Down"]
[1247,null,null,"Select from Drop Down","Select from Drop Down","Select from Drop Down",null,null,null,null,null,null,null,null,null,null,null,null,"Select from Drop Down","Select from Drop Down","Select from Drop Down"]
[1248,null,null,"Select from Drop Down","Select from Drop Down","Select from Drop Down",null,null,null,null,null,null,null,null,null,null,null,null,"Select from Drop Down","Select from Drop Down","Select from Drop Down"]
[1249,null,null,"Select from Drop Down","Select from Drop Down","Select from Drop Down",null,null,null,null,null,null,null,null,null,null,null,null,"Select from Drop Down","Select from Drop Down","Select from Drop Down"]
[1250,null,null,"Select from Drop Down","Select from Drop Down","Select from Drop Down",null,null,null,null,null,null,null,null,null,null,null,null,"Select from Drop Down","Select from Drop Down","Select from Drop Down"]
[1251,null,null,"Select from Drop Down","Select from Drop Down","Select from Drop Down",null,null,null,null,null,null,null,null,null,null,null,null,"Select from Drop Down","Select from Drop Down","Select from Drop Down"]
[1252,null,null,"Select from Drop Down","Select from Drop Down","Select from Drop Down",null,null,null,null,null,null,null,null,null,null,null,null,"Select from Drop Down","Select from Drop Down","Select from Drop Down"]
[1253,null,null,"Select from Drop Down","Select from Drop Down","Select from Drop Down",null,null,null,null,null,null,null,null,null,null,null,null,"Select from Drop Down","Select from Drop Down","Select from Drop Down"]
[1254,null,null,"Select from Drop Down","Select from Drop Down","Select from Drop Down",null,null,null,null,null,null,null,null,null,null,null,null,"Select from Drop Down","Select from Drop Down","Select from Drop Down"]
[1255,null,null,"Select from Drop Down","Select from Drop Down","Select from Drop Down",null,null,null,null,null,null,null,null,null,null,null,null,"Select from Drop Down","Select from Drop Down","Select from Drop Down"]
[1256,null,null,"Select from Drop Down","Select from Drop Down","Select from Drop Down",null,null,null,null,null,null,null,null,null,null,null,null,"Select from Drop Down","Select from Drop Down","Select from Drop Down"]
[1257,null,null,"Select from Drop Down","Select from Drop Down","Select from Drop Down",null,null,null,null,null,null,null,null,null,null,null,null,"Select from Drop Down","Select from Drop Down","Select from Drop Down"]
[1258,null,null,"Select from Drop Down","Select from Drop Down","Select from Drop Down",null,null,null,null,null,null,null,null,null,null,null,null,"Select from Drop Down","Select from Drop Down","Select from Drop Down"]
[1259,null,null,"Select from Drop Down","Select from Drop Down","Select from Drop Down",null,null,null,null,null,null,null,null,null,null,null,null,"Select from Drop Down","Select from Drop Down","Select from Drop Down"]
[1260,null,null,"Select from Drop Down","Select from Drop Down","Select from Drop Down",null,null,null,null,null,null,null,null,null,null,null,null,"Select from Drop Down","Select from Drop Down","Select from Drop Down"]
[1261,null,null,"Select from Drop Down","Select from Drop Down","Select from Drop Down",null,null,null,null,null,null,null,null,null,null,null,null,"Select from Drop Down","Select from Drop Down","Select from Drop Down"]
[1262,null,null,"Select from Drop Down","Select from Drop Down","Select from Drop Down",null,null,null,null,null,null,null,null,null,null,null,null,"Select from Drop Down","Select from Drop Down","Select from Drop Down"]
[1263,null,null,"Select from Drop Down","Select from Drop Down","Select from Drop Down",null,null,null,null,null,null,null,null,null,null,null,null,"Select from Drop Down","Select from Drop Down","Select from Drop Down"]
[1264,null,null,"Select from Drop Down","Select from Drop Down","Select from Drop Down",null,null,null,null,null,null,null,null,null,null,null,null,"Select from Drop Down","Select from Drop Down","Select from Drop Down"]
[1265,null,null,"Select from Drop Down","Select from Drop Down","Select from Drop Down",null,null,null,null,null,null,null,null,null,null,null,null,"Select from Drop Down","Select from Drop Down","Select from Drop Down"]
[1266,null,null,"Select from Drop Down","Select from Drop Down","Select from Drop Down",null,null,null,null,null,null,null,null,null,null,null,null,"Select from Drop Down","Select from Drop Down","Select from Drop Down"]
[1267,null,null,"Select from Drop Down","Select from Drop Down","Select from Drop Down",null,null,null,null,null,null,null,null,null,null,null,null,"Select from Drop Down","Select from Drop Down","Select from Drop Down"]
[1268,null,null,"Select from Drop Down","Select from Drop Down","Select from Drop Down",null,null,null,null,null,null,null,null,null,null,null,null,"Select from Drop Down","Select from Drop Down","Select from Drop Down"]
[1269,null,null,"Select from Drop Down","Select from Drop Down","Select from Drop Down",null,null,null,null,null,null,null,null,null,null,null,null,"Select from Drop Down","Select from Drop Down","Select from Drop Down"]
[1270,null,null,"Select from Drop Down","Select from Drop Down","Select from Drop Down",null,null,null,null,null,null,null,null,null,null,null,null,"Select from Drop Down","Select from Drop Down","Select from Drop Down"]
[1271,null,null,"Select from Drop Down","Select from Drop Down","Select from Drop Down",null,null,null,null,null,null,null,null,null,null,null,null,"Select from Drop Down","Select from Drop Down","Select from Drop Down"]
[1272,null,null,"Select from Drop Down","Select from Drop Down","Select from Drop Down",null,null,null,null,null,null,null,null,null,null,null,null,"Select from Drop Down","Select from Drop Down","Select from Drop Down"]
[1273,null,null,"Select from Drop Down","Select from Drop Down","Select from Drop Down",null,null,null,null,null,null,null,null,null,null,null,null,"Select from Drop Down","Select from Drop Down","Select from Drop Down"]
[1274,null,null,"Select from Drop Down","Select from Drop Down","Select from Drop Down",null,null,null,null,null,null,null,null,null,null,null,null,"Select from Drop Down","Select from Drop Down","Select from Drop Down"]
[1275,null,null,"Select from Drop Down","Select from Drop Down","Select from Drop Down",null,null,null,null,null,null,null,null,null,null,null,null,"Select from Drop Down","Select from Drop Down","Select from Drop Down"]
[1276,null,null,"Select from Drop Down","Select from Drop Down","Select from Drop Down",null,null,null,null,null,null,null,null,null,null,null,null,"Select from Drop Down","Select from Drop Down","Select from Drop Down"]
[1277,null,null,"Select from Drop Down","Select from Drop Down","Select from Drop Down",null,null,null,null,null,null,null,null,null,null,null,null,"Select from Drop Down","Select from Drop Down","Select from Drop Down"]
[1278,null,null,"Select from Drop Down","Select from Drop Down","Select from Drop Down",null,null,null,null,null,null,null,null,null,null,null,null,"Select from Drop Down","Select from Drop Down","Select from Drop Down"]
[1279,null,null,"Select from Drop Down","Select from Drop Down","Select from Drop Down",null,null,null,null,null,null,null,null,null,null,null,null,"Select from Drop Down","Select from Drop Down","Select from Drop Down"]
[1280,null,null,"Select from Drop Down","Select from Drop Down","Select from Drop Down",null,null,null,null,null,null,null,null,null,null,null,null,"Select from Drop Down","Select from Drop Down","Select from Drop Down"]
[1281,null,null,"Select from Drop Down","Select from Drop Down","Select from Drop Down",null,null,null,null,null,null,null,null,null,null,null,null,"Select from Drop Down","Select from Drop Down","Select from Drop Down"]
[1282,null,null,"Select from Drop Down","Select from Drop Down","Select from Drop Down",null,null,null,null,null,null,null,null,null,null,null,null,"Select from Drop Down","Select from Drop Down","Select from Drop Down"]
[{"$f":"A1292+1","v":1283},null,null,"Select from Drop Down","Select from Drop Down","Select from Drop Down",null,null,null,null,null,null,null,null,null,null,null,null,"Select from Drop Down","Select from Drop Down","Select from Drop Down"]
[1284,null,null,"Select from Drop Down","Select from Drop Down","Select from Drop Down",null,null,null,null,null,null,null,null,null,null,null,null,"Select from Drop Down","Select from Drop Down","Select from Drop Down"]
[1285,null,null,"Select from Drop Down","Select from Drop Down","Select from Drop Down",null,null,null,null,null,null,null,null,null,null,null,null,"Select from Drop Down","Select from Drop Down","Select from Drop Down"]
[1286,null,null,"Select from Drop Down","Select from Drop Down","Select from Drop Down",null,null,null,null,null,null,null,null,null,null,null,null,"Select from Drop Down","Select from Drop Down","Select from Drop Down"]
[1287,null,null,"Select from Drop Down","Select from Drop Down","Select from Drop Down",null,null,null,null,null,null,null,null,null,null,null,null,"Select from Drop Down","Select from Drop Down","Select from Drop Down"]
[1288,null,null,"Select from Drop Down","Select from Drop Down","Select from Drop Down",null,null,null,null,null,null,null,null,null,null,null,null,"Select from Drop Down","Select from Drop Down","Select from Drop Down"]
[1289,null,null,"Select from Drop Down","Select from Drop Down","Select from Drop Down",null,null,null,null,null,null,null,null,null,null,null,null,"Select from Drop Down","Select from Drop Down","Select from Drop Down"]
[1290,null,null,"Select from Drop Down","Select from Drop Down","Select from Drop Down",null,null,null,null,null,null,null,null,null,null,null,null,"Select from Drop Down","Select from Drop Down","Select from Drop Down"]
[1291,null,null,"Select from Drop Down","Select from Drop Down","Select from Drop Down",null,null,null,null,null,null,null,null,null,null,null,null,"Select from Drop Down","Select from Drop Down","Select from Drop Down"]
[1292,null,null,"Select from Drop Down","Select from Drop Down","Select from Drop Down",null,null,null,null,null,null,null,null,null,null,null,null,"Select from Drop Down","Select from Drop Down","Select from Drop Down"]
[1293,null,null,"Select from Drop Down","Select from Drop Down","Select from Drop Down",null,null,null,null,null,null,null,null,null,null,null,null,"Select from Drop Down","Select from Drop Down","Select from Drop Down"]
[1294,null,null,"Select from Drop Down","Select from Drop Down","Select from Drop Down",null,null,null,null,null,null,null,null,null,null,null,null,"Select from Drop Down","Select from Drop Down","Select from Drop Down"]
[1295,null,null,"Select from Drop Down","Select from Drop Down","Select from Drop Down",null,null,null,null,null,null,null,null,null,null,null,null,"Select from Drop Down","Select from Drop Down","Select from Drop Down"]
[1296,null,null,"Select from Drop Down","Select from Drop Down","Select from Drop Down",null,null,null,null,null,null,null,null,null,null,null,null,"Select from Drop Down","Select from Drop Down","Select from Drop Down"]
[1297,null,null,"Select from Drop Down","Select from Drop Down","Select from Drop Down",null,null,null,null,null,null,null,null,null,null,null,null,"Select from Drop Down","Select from Drop Down","Select from Drop Down"]
[1298,null,null,"Select from Drop Down","Select from Drop Down","Select from Drop Down",null,null,null,null,null,null,null,null,null,null,null,null,"Select from Drop Down","Select from Drop Down","Select from Drop Down"]
[1299,null,null,"Select from Drop Down","Select from Drop Down","Select from Drop Down",null,null,null,null,null,null,null,null,null,null,null,null,"Select from Drop Down","Select from Drop Down","Select from Drop Down"]
[1300,null,null,"Select from Drop Down","Select from Drop Down","Select from Drop Down",null,null,null,null,null,null,null,null,null,null,null,null,"Select from Drop Down","Select from Drop Down","Select from Drop Down"]
[1301,null,null,"Select from Drop Down","Select from Drop Down","Select from Drop Down",null,null,null,null,null,null,null,null,null,null,null,null,"Select from Drop Down","Select from Drop Down","Select from Drop Down"]
[1302,null,null,"Select from Drop Down","Select from Drop Down","Select from Drop Down",null,null,null,null,null,null,null,null,null,null,null,null,"Select from Drop Down","Select from Drop Down","Select from Drop Down"]
[1303,null,null,"Select from Drop Down","Select from Drop Down","Select from Drop Down",null,null,null,null,null,null,null,null,null,null,null,null,"Select from Drop Down","Select from Drop Down","Select from Drop Down"]
[1304,null,null,"Select from Drop Down","Select from Drop Down","Select from Drop Down",null,null,null,null,null,null,null,null,null,null,null,null,"Select from Drop Down","Select from Drop Down","Select from Drop Down"]
[1305,null,null,"Select from Drop Down","Select from Drop Down","Select from Drop Down",null,null,null,null,null,null,null,null,null,null,null,null,"Select from Drop Down","Select from Drop Down","Select from Drop Down"]
[1306,null,null,"Select from Drop Down","Select from Drop Down","Select from Drop Down",null,null,null,null,null,null,null,null,null,null,null,null,"Select from Drop Down","Select from Drop Down","Select from Drop Down"]
[1307,null,null,"Select from Drop Down","Select from Drop Down","Select from Drop Down",null,null,null,null,null,null,null,null,null,null,null,null,"Select from Drop Down","Select from Drop Down","Select from Drop Down"]
[1308,null,null,"Select from Drop Down","Select from Drop Down","Select from Drop Down",null,null,null,null,null,null,null,null,null,null,null,null,"Select from Drop Down","Select from Drop Down","Select from Drop Down"]
[1309,null,null,"Select from Drop Down","Select from Drop Down","Select from Drop Down",null,null,null,null,null,null,null,null,null,null,null,null,"Select from Drop Down","Select from Drop Down","Select from Drop Down"]
[1310,null,null,"Select from Drop Down","Select from Drop Down","Select from Drop Down",null,null,null,null,null,null,null,null,null,null,null,null,"Select from Drop Down","Select from Drop Down","Select from Drop Down"]
[1311,null,null,"Select from Drop Down","Select from Drop Down","Select from Drop Down",null,null,null,null,null,null,null,null,null,null,null,null,"Select from Drop Down","Select from Drop Down","Select from Drop Down"]
[1312,null,null,"Select from Drop Down","Select from Drop Down","Select from Drop Down",null,null,null,null,null,null,null,null,null,null,null,null,"Select from Drop Down","Select from Drop Down","Select from Drop Down"]
[1313,null,null,"Select from Drop Down","Select from Drop Down","Select from Drop Down",null,null,null,null,null,null,null,null,null,null,null,null,"Select from Drop Down","Select from Drop Down","Select from Drop Down"]
[1314,null,null,"Select from Drop Down","Select from Drop Down","Select from Drop Down",null,null,null,null,null,null,null,null,null,null,null,null,"Select from Drop Down","Select from Drop Down","Select from Drop Down"]
[1315,null,null,"Select from Drop Down","Select from Drop Down","Select from Drop Down",null,null,null,null,null,null,null,null,null,null,null,null,"Select from Drop Down","Select from Drop Down","Select from Drop Down"]
[1316,null,null,"Select from Drop Down","Select from Drop Down","Select from Drop Down",null,null,null,null,null,null,null,null,null,null,null,null,"Select from Drop Down","Select from Drop Down","Select from Drop Down"]
[1317,null,null,"Select from Drop Down","Select from Drop Down","Select from Drop Down",null,null,null,null,null,null,null,null,null,null,null,null,"Select from Drop Down","Select from Drop Down","Select from Drop Down"]
[1318,null,null,"Select from Drop Down","Select from Drop Down","Select from Drop Down",null,null,null,null,null,null,null,null,null,null,null,null,"Select from Drop Down","Select from Drop Down","Select from Drop Down"]
[1319,null,null,"Select from Drop Down","Select from Drop Down","Select from Drop Down",null,null,null,null,null,null,null,null,null,null,null,null,"Select from Drop Down","Select from Drop Down","Select from Drop Down"]
[1320,null,null,"Select from Drop Down","Select from Drop Down","Select from Drop Down",null,null,null,null,null,null,null,null,null,null,null,null,"Select from Drop Down","Select from Drop Down","Select from Drop Down"]
[1321,null,null,"Select from Drop Down","Select from Drop Down","Select from Drop Down",null,null,null,null,null,null,null,null,null,null,null,null,"Select from Drop Down","Select from Drop Down","Select from Drop Down"]
[1322,null,null,"Select from Drop Down","Select from Drop Down","Select from Drop Down",null,null,null,null,null,null,null,null,null,null,null,null,"Select from Drop Down","Select from Drop Down","Select from Drop Down"]
[1323,null,null,"Select from Drop Down","Select from Drop Down","Select from Drop Down",null,null,null,null,null,null,null,null,null,null,null,null,"Select from Drop Down","Select from Drop Down","Select from Drop Down"]
[1324,null,null,"Select from Drop Down","Select from Drop Down","Select from Drop Down",null,null,null,null,null,null,null,null,null,null,null,null,"Select from Drop Down","Select from Drop Down","Select from Drop Down"]
[1325,null,null,"Select from Drop Down","Select from Drop Down","Select from Drop Down",null,null,null,null,null,null,null,null,null,null,null,null,"Select from Drop Down","Select from Drop Down","Select from Drop Down"]
[1326,null,null,"Select from Drop Down","Select from Drop Down","Select from Drop Down",null,null,null,null,null,null,null,null,null,null,null,null,"Select from Drop Down","Select from Drop Down","Select from Drop Down"]
[1327,null,null,"Select from Drop Down","Select from Drop Down","Select from Drop Down",null,null,null,null,null,null,null,null,null,null,null,null,"Select from Drop Down","Select from Drop Down","Select from Drop Down"]
[1328,null,null,"Select from Drop Down","Select from Drop Down","Select from Drop Down",null,null,null,null,null,null,null,null,null,null,null,null,"Select from Drop Down","Select from Drop Down","Select from Drop Down"]
[1329,null,null,"Select from Drop Down","Select from Drop Down","Select from Drop Down",null,null,null,null,null,null,null,null,null,null,null,null,"Select from Drop Down","Select from Drop Down","Select from Drop Down"]
[1330,null,null,"Select from Drop Down","Select from Drop Down","Select from Drop Down",null,null,null,null,null,null,null,null,null,null,null,null,"Select from Drop Down","Select from Drop Down","Select from Drop Down"]
[1331,null,null,"Select from Drop Down","Select from Drop Down","Select from Drop Down",null,null,null,null,null,null,null,null,null,null,null,null,"Select from Drop Down","Select from Drop Down","Select from Drop Down"]
[1332,null,null,"Select from Drop Down","Select from Drop Down","Select from Drop Down",null,null,null,null,null,null,null,null,null,null,null,null,"Select from Drop Down","Select from Drop Down","Select from Drop Down"]
[1333,null,null,"Select from Drop Down","Select from Drop Down","Select from Drop Down",null,null,null,null,null,null,null,null,null,null,null,null,"Select from Drop Down","Select from Drop Down","Select from Drop Down"]
[1334,null,null,"Select from Drop Down","Select from Drop Down","Select from Drop Down",null,null,null,null,null,null,null,null,null,null,null,null,"Select from Drop Down","Select from Drop Down","Select from Drop Down"]
[1335,null,null,"Select from Drop Down","Select from Drop Down","Select from Drop Down",null,null,null,null,null,null,null,null,null,null,null,null,"Select from Drop Down","Select from Drop Down","Select from Drop Down"]
[1336,null,null,"Select from Drop Down","Select from Drop Down","Select from Drop Down",null,null,null,null,null,null,null,null,null,null,null,null,"Select from Drop Down","Select from Drop Down","Select from Drop Down"]
[1337,null,null,"Select from Drop Down","Select from Drop Down","Select from Drop Down",null,null,null,null,null,null,null,null,null,null,null,null,"Select from Drop Down","Select from Drop Down","Select from Drop Down"]
[1338,null,null,"Select from Drop Down","Select from Drop Down","Select from Drop Down",null,null,null,null,null,null,null,null,null,null,null,null,"Select from Drop Down","Select from Drop Down","Select from Drop Down"]
[1339,null,null,"Select from Drop Down","Select from Drop Down","Select from Drop Down",null,null,null,null,null,null,null,null,null,null,null,null,"Select from Drop Down","Select from Drop Down","Select from Drop Down"]
[1340,null,null,"Select from Drop Down","Select from Drop Down","Select from Drop Down",null,null,null,null,null,null,null,null,null,null,null,null,"Select from Drop Down","Select from Drop Down","Select from Drop Down"]
[1341,null,null,"Select from Drop Down","Select from Drop Down","Select from Drop Down",null,null,null,null,null,null,null,null,null,null,null,null,"Select from Drop Down","Select from Drop Down","Select from Drop Down"]
[1342,null,null,"Select from Drop Down","Select from Drop Down","Select from Drop Down",null,null,null,null,null,null,null,null,null,null,null,null,"Select from Drop Down","Select from Drop Down","Select from Drop Down"]
[1343,null,null,"Select from Drop Down","Select from Drop Down","Select from Drop Down",null,null,null,null,null,null,null,null,null,null,null,null,"Select from Drop Down","Select from Drop Down","Select from Drop Down"]
[1344,null,null,"Select from Drop Down","Select from Drop Down","Select from Drop Down",null,null,null,null,null,null,null,null,null,null,null,null,"Select from Drop Down","Select from Drop Down","Select from Drop Down"]
[1345,null,null,"Select from Drop Down","Select from Drop Down","Select from Drop Down",null,null,null,null,null,null,null,null,null,null,null,null,"Select from Drop Down","Select from Drop Down","Select from Drop Down"]
[1346,null,null,"Select from Drop Down","Select from Drop Down","Select from Drop Down",null,null,null,null,null,null,null,null,null,null,null,null,"Select from Drop Down","Select from Drop Down","Select from Drop Down"]
[{"$f":"A1356+1","v":1347},null,null,"Select from Drop Down","Select from Drop Down","Select from Drop Down",null,null,null,null,null,null,null,null,null,null,null,null,"Select from Drop Down","Select from Drop Down","Select from Drop Down"]
[1348,null,null,"Select from Drop Down","Select from Drop Down","Select from Drop Down",null,null,null,null,null,null,null,null,null,null,null,null,"Select from Drop Down","Select from Drop Down","Select from Drop Down"]
[1349,null,null,"Select from Drop Down","Select from Drop Down","Select from Drop Down",null,null,null,null,null,null,null,null,null,null,null,null,"Select from Drop Down","Select from Drop Down","Select from Drop Down"]
[1350,null,null,"Select from Drop Down","Select from Drop Down","Select from Drop Down",null,null,null,null,null,null,null,null,null,null,null,null,"Select from Drop Down","Select from Drop Down","Select from Drop Down"]
[1351,null,null,"Select from Drop Down","Select from Drop Down","Select from Drop Down",null,null,null,null,null,null,null,null,null,null,null,null,"Select from Drop Down","Select from Drop Down","Select from Drop Down"]
[1352,null,null,"Select from Drop Down","Select from Drop Down","Select from Drop Down",null,null,null,null,null,null,null,null,null,null,null,null,"Select from Drop Down","Select from Drop Down","Select from Drop Down"]
[1353,null,null,"Select from Drop Down","Select from Drop Down","Select from Drop Down",null,null,null,null,null,null,null,null,null,null,null,null,"Select from Drop Down","Select from Drop Down","Select from Drop Down"]
[1354,null,null,"Select from Drop Down","Select from Drop Down","Select from Drop Down",null,null,null,null,null,null,null,null,null,null,null,null,"Select from Drop Down","Select from Drop Down","Select from Drop Down"]
[1355,null,null,"Select from Drop Down","Select from Drop Down","Select from Drop Down",null,null,null,null,null,null,null,null,null,null,null,null,"Select from Drop Down","Select from Drop Down","Select from Drop Down"]
[1356,null,null,"Select from Drop Down","Select from Drop Down","Select from Drop Down",null,null,null,null,null,null,null,null,null,null,null,null,"Select from Drop Down","Select from Drop Down","Select from Drop Down"]
[1357,null,null,"Select from Drop Down","Select from Drop Down","Select from Drop Down",null,null,null,null,null,null,null,null,null,null,null,null,"Select from Drop Down","Select from Drop Down","Select from Drop Down"]
[1358,null,null,"Select from Drop Down","Select from Drop Down","Select from Drop Down",null,null,null,null,null,null,null,null,null,null,null,null,"Select from Drop Down","Select from Drop Down","Select from Drop Down"]
[1359,null,null,"Select from Drop Down","Select from Drop Down","Select from Drop Down",null,null,null,null,null,null,null,null,null,null,null,null,"Select from Drop Down","Select from Drop Down","Select from Drop Down"]
[1360,null,null,"Select from Drop Down","Select from Drop Down","Select from Drop Down",null,null,null,null,null,null,null,null,null,null,null,null,"Select from Drop Down","Select from Drop Down","Select from Drop Down"]
[1361,null,null,"Select from Drop Down","Select from Drop Down","Select from Drop Down",null,null,null,null,null,null,null,null,null,null,null,null,"Select from Drop Down","Select from Drop Down","Select from Drop Down"]
[1362,null,null,"Select from Drop Down","Select from Drop Down","Select from Drop Down",null,null,null,null,null,null,null,null,null,null,null,null,"Select from Drop Down","Select from Drop Down","Select from Drop Down"]
[1363,null,null,"Select from Drop Down","Select from Drop Down","Select from Drop Down",null,null,null,null,null,null,null,null,null,null,null,null,"Select from Drop Down","Select from Drop Down","Select from Drop Down"]
[1364,null,null,"Select from Drop Down","Select from Drop Down","Select from Drop Down",null,null,null,null,null,null,null,null,null,null,null,null,"Select from Drop Down","Select from Drop Down","Select from Drop Down"]
[1365,null,null,"Select from Drop Down","Select from Drop Down","Select from Drop Down",null,null,null,null,null,null,null,null,null,null,null,null,"Select from Drop Down","Select from Drop Down","Select from Drop Down"]
[1366,null,null,"Select from Drop Down","Select from Drop Down","Select from Drop Down",null,null,null,null,null,null,null,null,null,null,null,null,"Select from Drop Down","Select from Drop Down","Select from Drop Down"]
[1367,null,null,"Select from Drop Down","Select from Drop Down","Select from Drop Down",null,null,null,null,null,null,null,null,null,null,null,null,"Select from Drop Down","Select from Drop Down","Select from Drop Down"]
[1368,null,null,"Select from Drop Down","Select from Drop Down","Select from Drop Down",null,null,null,null,null,null,null,null,null,null,null,null,"Select from Drop Down","Select from Drop Down","Select from Drop Down"]
[1369,null,null,"Select from Drop Down","Select from Drop Down","Select from Drop Down",null,null,null,null,null,null,null,null,null,null,null,null,"Select from Drop Down","Select from Drop Down","Select from Drop Down"]
[1370,null,null,"Select from Drop Down","Select from Drop Down","Select from Drop Down",null,null,null,null,null,null,null,null,null,null,null,null,"Select from Drop Down","Select from Drop Down","Select from Drop Down"]
[1371,null,null,"Select from Drop Down","Select from Drop Down","Select from Drop Down",null,null,null,null,null,null,null,null,null,null,null,null,"Select from Drop Down","Select from Drop Down","Select from Drop Down"]
[1372,null,null,"Select from Drop Down","Select from Drop Down","Select from Drop Down",null,null,null,null,null,null,null,null,null,null,null,null,"Select from Drop Down","Select from Drop Down","Select from Drop Down"]
[1373,null,null,"Select from Drop Down","Select from Drop Down","Select from Drop Down",null,null,null,null,null,null,null,null,null,null,null,null,"Select from Drop Down","Select from Drop Down","Select from Drop Down"]
[1374,null,null,"Select from Drop Down","Select from Drop Down","Select from Drop Down",null,null,null,null,null,null,null,null,null,null,null,null,"Select from Drop Down","Select from Drop Down","Select from Drop Down"]
[1375,null,null,"Select from Drop Down","Select from Drop Down","Select from Drop Down",null,null,null,null,null,null,null,null,null,null,null,null,"Select from Drop Down","Select from Drop Down","Select from Drop Down"]
[1376,null,null,"Select from Drop Down","Select from Drop Down","Select from Drop Down",null,null,null,null,null,null,null,null,null,null,null,null,"Select from Drop Down","Select from Drop Down","Select from Drop Down"]
[1377,null,null,"Select from Drop Down","Select from Drop Down","Select from Drop Down",null,null,null,null,null,null,null,null,null,null,null,null,"Select from Drop Down","Select from Drop Down","Select from Drop Down"]
[1378,null,null,"Select from Drop Down","Select from Drop Down","Select from Drop Down",null,null,null,null,null,null,null,null,null,null,null,null,"Select from Drop Down","Select from Drop Down","Select from Drop Down"]
[1379,null,null,"Select from Drop Down","Select from Drop Down","Select from Drop Down",null,null,null,null,null,null,null,null,null,null,null,null,"Select from Drop Down","Select from Drop Down","Select from Drop Down"]
[1380,null,null,"Select from Drop Down","Select from Drop Down","Select from Drop Down",null,null,null,null,null,null,null,null,null,null,null,null,"Select from Drop Down","Select from Drop Down","Select from Drop Down"]
[1381,null,null,"Select from Drop Down","Select from Drop Down","Select from Drop Down",null,null,null,null,null,null,null,null,null,null,null,null,"Select from Drop Down","Select from Drop Down","Select from Drop Down"]
[1382,null,null,"Select from Drop Down","Select from Drop Down","Select from Drop Down",null,null,null,null,null,null,null,null,null,null,null,null,"Select from Drop Down","Select from Drop Down","Select from Drop Down"]
[1383,null,null,"Select from Drop Down","Select from Drop Down","Select from Drop Down",null,null,null,null,null,null,null,null,null,null,null,null,"Select from Drop Down","Select from Drop Down","Select from Drop Down"]
[1384,null,null,"Select from Drop Down","Select from Drop Down","Select from Drop Down",null,null,null,null,null,null,null,null,null,null,null,null,"Select from Drop Down","Select from Drop Down","Select from Drop Down"]
[1385,null,null,"Select from Drop Down","Select from Drop Down","Select from Drop Down",null,null,null,null,null,null,null,null,null,null,null,null,"Select from Drop Down","Select from Drop Down","Select from Drop Down"]
[1386,null,null,"Select from Drop Down","Select from Drop Down","Select from Drop Down",null,null,null,null,null,null,null,null,null,null,null,null,"Select from Drop Down","Select from Drop Down","Select from Drop Down"]
[1387,null,null,"Select from Drop Down","Select from Drop Down","Select from Drop Down",null,null,null,null,null,null,null,null,null,null,null,null,"Select from Drop Down","Select from Drop Down","Select from Drop Down"]
[1388,null,null,"Select from Drop Down","Select from Drop Down","Select from Drop Down",null,null,null,null,null,null,null,null,null,null,null,null,"Select from Drop Down","Select from Drop Down","Select from Drop Down"]
[1389,null,null,"Select from Drop Down","Select from Drop Down","Select from Drop Down",null,null,null,null,null,null,null,null,null,null,null,null,"Select from Drop Down","Select from Drop Down","Select from Drop Down"]
[1390,null,null,"Select from Drop Down","Select from Drop Down","Select from Drop Down",null,null,null,null,null,null,null,null,null,null,null,null,"Select from Drop Down","Select from Drop Down","Select from Drop Down"]
[1391,null,null,"Select from Drop Down","Select from Drop Down","Select from Drop Down",null,null,null,null,null,null,null,null,null,null,null,null,"Select from Drop Down","Select from Drop Down","Select from Drop Down"]
[1392,null,null,"Select from Drop Down","Select from Drop Down","Select from Drop Down",null,null,null,null,null,null,null,null,null,null,null,null,"Select from Drop Down","Select from Drop Down","Select from Drop Down"]
[1393,null,null,"Select from Drop Down","Select from Drop Down","Select from Drop Down",null,null,null,null,null,null,null,null,null,null,null,null,"Select from Drop Down","Select from Drop Down","Select from Drop Down"]
[1394,null,null,"Select from Drop Down","Select from Drop Down","Select from Drop Down",null,null,null,null,null,null,null,null,null,null,null,null,"Select from Drop Down","Select from Drop Down","Select from Drop Down"]
[1395,null,null,"Select from Drop Down","Select from Drop Down","Select from Drop Down",null,null,null,null,null,null,null,null,null,null,null,null,"Select from Drop Down","Select from Drop Down","Select from Drop Down"]
[1396,null,null,"Select from Drop Down","Select from Drop Down","Select from Drop Down",null,null,null,null,null,null,null,null,null,null,null,null,"Select from Drop Down","Select from Drop Down","Select from Drop Down"]
[1397,null,null,"Select from Drop Down","Select from Drop Down","Select from Drop Down",null,null,null,null,null,null,null,null,null,null,null,null,"Select from Drop Down","Select from Drop Down","Select from Drop Down"]
[1398,null,null,"Select from Drop Down","Select from Drop Down","Select from Drop Down",null,null,null,null,null,null,null,null,null,null,null,null,"Select from Drop Down","Select from Drop Down","Select from Drop Down"]
[1399,null,null,"Select from Drop Down","Select from Drop Down","Select from Drop Down",null,null,null,null,null,null,null,null,null,null,null,null,"Select from Drop Down","Select from Drop Down","Select from Drop Down"]
[1400,null,null,"Select from Drop Down","Select from Drop Down","Select from Drop Down",null,null,null,null,null,null,null,null,null,null,null,null,"Select from Drop Down","Select from Drop Down","Select from Drop Down"]
[1401,null,null,"Select from Drop Down","Select from Drop Down","Select from Drop Down",null,null,null,null,null,null,null,null,null,null,null,null,"Select from Drop Down","Select from Drop Down","Select from Drop Down"]
[1402,null,null,"Select from Drop Down","Select from Drop Down","Select from Drop Down",null,null,null,null,null,null,null,null,null,null,null,null,"Select from Drop Down","Select from Drop Down","Select from Drop Down"]
[1403,null,null,"Select from Drop Down","Select from Drop Down","Select from Drop Down",null,null,null,null,null,null,null,null,null,null,null,null,"Select from Drop Down","Select from Drop Down","Select from Drop Down"]
[1404,null,null,"Select from Drop Down","Select from Drop Down","Select from Drop Down",null,null,null,null,null,null,null,null,null,null,null,null,"Select from Drop Down","Select from Drop Down","Select from Drop Down"]
[1405,null,null,"Select from Drop Down","Select from Drop Down","Select from Drop Down",null,null,null,null,null,null,null,null,null,null,null,null,"Select from Drop Down","Select from Drop Down","Select from Drop Down"]
[1406,null,null,"Select from Drop Down","Select from Drop Down","Select from Drop Down",null,null,null,null,null,null,null,null,null,null,null,null,"Select from Drop Down","Select from Drop Down","Select from Drop Down"]
[1407,null,null,"Select from Drop Down","Select from Drop Down","Select from Drop Down",null,null,null,null,null,null,null,null,null,null,null,null,"Select from Drop Down","Select from Drop Down","Select from Drop Down"]
[1408,null,null,"Select from Drop Down","Select from Drop Down","Select from Drop Down",null,null,null,null,null,null,null,null,null,null,null,null,"Select from Drop Down","Select from Drop Down","Select from Drop Down"]
[1409,null,null,"Select from Drop Down","Select from Drop Down","Select from Drop Down",null,null,null,null,null,null,null,null,null,null,null,null,"Select from Drop Down","Select from Drop Down","Select from Drop Down"]
[1410,null,null,"Select from Drop Down","Select from Drop Down","Select from Drop Down",null,null,null,null,null,null,null,null,null,null,null,null,"Select from Drop Down","Select from Drop Down","Select from Drop Down"]
[{"$f":"A1420+1","v":1411},null,null,"Select from Drop Down","Select from Drop Down","Select from Drop Down",null,null,null,null,null,null,null,null,null,null,null,null,"Select from Drop Down","Select from Drop Down","Select from Drop Down"]
[1412,null,null,"Select from Drop Down","Select from Drop Down","Select from Drop Down",null,null,null,null,null,null,null,null,null,null,null,null,"Select from Drop Down","Select from Drop Down","Select from Drop Down"]
[1413,null,null,"Select from Drop Down","Select from Drop Down","Select from Drop Down",null,null,null,null,null,null,null,null,null,null,null,null,"Select from Drop Down","Select from Drop Down","Select from Drop Down"]
[1414,null,null,"Select from Drop Down","Select from Drop Down","Select from Drop Down",null,null,null,null,null,null,null,null,null,null,null,null,"Select from Drop Down","Select from Drop Down","Select from Drop Down"]
[1415,null,null,"Select from Drop Down","Select from Drop Down","Select from Drop Down",null,null,null,null,null,null,null,null,null,null,null,null,"Select from Drop Down","Select from Drop Down","Select from Drop Down"]
[1416,null,null,"Select from Drop Down","Select from Drop Down","Select from Drop Down",null,null,null,null,null,null,null,null,null,null,null,null,"Select from Drop Down","Select from Drop Down","Select from Drop Down"]
[1417,null,null,"Select from Drop Down","Select from Drop Down","Select from Drop Down",null,null,null,null,null,null,null,null,null,null,null,null,"Select from Drop Down","Select from Drop Down","Select from Drop Down"]
[1418,null,null,"Select from Drop Down","Select from Drop Down","Select from Drop Down",null,null,null,null,null,null,null,null,null,null,null,null,"Select from Drop Down","Select from Drop Down","Select from Drop Down"]
[1419,null,null,"Select from Drop Down","Select from Drop Down","Select from Drop Down",null,null,null,null,null,null,null,null,null,null,null,null,"Select from Drop Down","Select from Drop Down","Select from Drop Down"]
[1420,null,null,"Select from Drop Down","Select from Drop Down","Select from Drop Down",null,null,null,null,null,null,null,null,null,null,null,null,"Select from Drop Down","Select from Drop Down","Select from Drop Down"]
[1421,null,null,"Select from Drop Down","Select from Drop Down","Select from Drop Down",null,null,null,null,null,null,null,null,null,null,null,null,"Select from Drop Down","Select from Drop Down","Select from Drop Down"]
[1422,null,null,"Select from Drop Down","Select from Drop Down","Select from Drop Down",null,null,null,null,null,null,null,null,null,null,null,null,"Select from Drop Down","Select from Drop Down","Select from Drop Down"]
[1423,null,null,"Select from Drop Down","Select from Drop Down","Select from Drop Down",null,null,null,null,null,null,null,null,null,null,null,null,"Select from Drop Down","Select from Drop Down","Select from Drop Down"]
[1424,null,null,"Select from Drop Down","Select from Drop Down","Select from Drop Down",null,null,null,null,null,null,null,null,null,null,null,null,"Select from Drop Down","Select from Drop Down","Select from Drop Down"]
[1425,null,null,"Select from Drop Down","Select from Drop Down","Select from Drop Down",null,null,null,null,null,null,null,null,null,null,null,null,"Select from Drop Down","Select from Drop Down","Select from Drop Down"]
[1426,null,null,"Select from Drop Down","Select from Drop Down","Select from Drop Down",null,null,null,null,null,null,null,null,null,null,null,null,"Select from Drop Down","Select from Drop Down","Select from Drop Down"]
[1427,null,null,"Select from Drop Down","Select from Drop Down","Select from Drop Down",null,null,null,null,null,null,null,null,null,null,null,null,"Select from Drop Down","Select from Drop Down","Select from Drop Down"]
[1428,null,null,"Select from Drop Down","Select from Drop Down","Select from Drop Down",null,null,null,null,null,null,null,null,null,null,null,null,"Select from Drop Down","Select from Drop Down","Select from Drop Down"]
[1429,null,null,"Select from Drop Down","Select from Drop Down","Select from Drop Down",null,null,null,null,null,null,null,null,null,null,null,null,"Select from Drop Down","Select from Drop Down","Select from Drop Down"]
[1430,null,null,"Select from Drop Down","Select from Drop Down","Select from Drop Down",null,null,null,null,null,null,null,null,null,null,null,null,"Select from Drop Down","Select from Drop Down","Select from Drop Down"]
[1431,null,null,"Select from Drop Down","Select from Drop Down","Select from Drop Down",null,null,null,null,null,null,null,null,null,null,null,null,"Select from Drop Down","Select from Drop Down","Select from Drop Down"]
[1432,null,null,"Select from Drop Down","Select from Drop Down","Select from Drop Down",null,null,null,null,null,null,null,null,null,null,null,null,"Select from Drop Down","Select from Drop Down","Select from Drop Down"]
[1433,null,null,"Select from Drop Down","Select from Drop Down","Select from Drop Down",null,null,null,null,null,null,null,null,null,null,null,null,"Select from Drop Down","Select from Drop Down","Select from Drop Down"]
[1434,null,null,"Select from Drop Down","Select from Drop Down","Select from Drop Down",null,null,null,null,null,null,null,null,null,null,null,null,"Select from Drop Down","Select from Drop Down","Select from Drop Down"]
[1435,null,null,"Select from Drop Down","Select from Drop Down","Select from Drop Down",null,null,null,null,null,null,null,null,null,null,null,null,"Select from Drop Down","Select from Drop Down","Select from Drop Down"]
[1436,null,null,"Select from Drop Down","Select from Drop Down","Select from Drop Down",null,null,null,null,null,null,null,null,null,null,null,null,"Select from Drop Down","Select from Drop Down","Select from Drop Down"]
[1437,null,null,"Select from Drop Down","Select from Drop Down","Select from Drop Down",null,null,null,null,null,null,null,null,null,null,null,null,"Select from Drop Down","Select from Drop Down","Select from Drop Down"]
[1438,null,null,"Select from Drop Down","Select from Drop Down","Select from Drop Down",null,null,null,null,null,null,null,null,null,null,null,null,"Select from Drop Down","Select from Drop Down","Select from Drop Down"]
[1439,null,null,"Select from Drop Down","Select from Drop Down","Select from Drop Down",null,null,null,null,null,null,null,null,null,null,null,null,"Select from Drop Down","Select from Drop Down","Select from Drop Down"]
[1440,null,null,"Select from Drop Down","Select from Drop Down","Select from Drop Down",null,null,null,null,null,null,null,null,null,null,null,null,"Select from Drop Down","Select from Drop Down","Select from Drop Down"]
[1441,null,null,"Select from Drop Down","Select from Drop Down","Select from Drop Down",null,null,null,null,null,null,null,null,null,null,null,null,"Select from Drop Down","Select from Drop Down","Select from Drop Down"]
[1442,null,null,"Select from Drop Down","Select from Drop Down","Select from Drop Down",null,null,null,null,null,null,null,null,null,null,null,null,"Select from Drop Down","Select from Drop Down","Select from Drop Down"]
[1443,null,null,"Select from Drop Down","Select from Drop Down","Select from Drop Down",null,null,null,null,null,null,null,null,null,null,null,null,"Select from Drop Down","Select from Drop Down","Select from Drop Down"]
[1444,null,null,"Select from Drop Down","Select from Drop Down","Select from Drop Down",null,null,null,null,null,null,null,null,null,null,null,null,"Select from Drop Down","Select from Drop Down","Select from Drop Down"]
[1445,null,null,"Select from Drop Down","Select from Drop Down","Select from Drop Down",null,null,null,null,null,null,null,null,null,null,null,null,"Select from Drop Down","Select from Drop Down","Select from Drop Down"]
[1446,null,null,"Select from Drop Down","Select from Drop Down","Select from Drop Down",null,null,null,null,null,null,null,null,null,null,null,null,"Select from Drop Down","Select from Drop Down","Select from Drop Down"]
[1447,null,null,"Select from Drop Down","Select from Drop Down","Select from Drop Down",null,null,null,null,null,null,null,null,null,null,null,null,"Select from Drop Down","Select from Drop Down","Select from Drop Down"]
[1448,null,null,"Select from Drop Down","Select from Drop Down","Select from Drop Down",null,null,null,null,null,null,null,null,null,null,null,null,"Select from Drop Down","Select from Drop Down","Select from Drop Down"]
[1449,null,null,"Select from Drop Down","Select from Drop Down","Select from Drop Down",null,null,null,null,null,null,null,null,null,null,null,null,"Select from Drop Down","Select from Drop Down","Select from Drop Down"]
[1450,null,null,"Select from Drop Down","Select from Drop Down","Select from Drop Down",null,null,null,null,null,null,null,null,null,null,null,null,"Select from Drop Down","Select from Drop Down","Select from Drop Down"]
[1451,null,null,"Select from Drop Down","Select from Drop Down","Select from Drop Down",null,null,null,null,null,null,null,null,null,null,null,null,"Select from Drop Down","Select from Drop Down","Select from Drop Down"]
[1452,null,null,"Select from Drop Down","Select from Drop Down","Select from Drop Down",null,null,null,null,null,null,null,null,null,null,null,null,"Select from Drop Down","Select from Drop Down","Select from Drop Down"]
[1453,null,null,"Select from Drop Down","Select from Drop Down","Select from Drop Down",null,null,null,null,null,null,null,null,null,null,null,null,"Select from Drop Down","Select from Drop Down","Select from Drop Down"]
[1454,null,null,"Select from Drop Down","Select from Drop Down","Select from Drop Down",null,null,null,null,null,null,null,null,null,null,null,null,"Select from Drop Down","Select from Drop Down","Select from Drop Down"]
[1455,null,null,"Select from Drop Down","Select from Drop Down","Select from Drop Down",null,null,null,null,null,null,null,null,null,null,null,null,"Select from Drop Down","Select from Drop Down","Select from Drop Down"]
[1456,null,null,"Select from Drop Down","Select from Drop Down","Select from Drop Down",null,null,null,null,null,null,null,null,null,null,null,null,"Select from Drop Down","Select from Drop Down","Select from Drop Down"]
[1457,null,null,"Select from Drop Down","Select from Drop Down","Select from Drop Down",null,null,null,null,null,null,null,null,null,null,null,null,"Select from Drop Down","Select from Drop Down","Select from Drop Down"]
[1458,null,null,"Select from Drop Down","Select from Drop Down","Select from Drop Down",null,null,null,null,null,null,null,null,null,null,null,null,"Select from Drop Down","Select from Drop Down","Select from Drop Down"]
[1459,null,null,"Select from Drop Down","Select from Drop Down","Select from Drop Down",null,null,null,null,null,null,null,null,null,null,null,null,"Select from Drop Down","Select from Drop Down","Select from Drop Down"]
[1460,null,null,"Select from Drop Down","Select from Drop Down","Select from Drop Down",null,null,null,null,null,null,null,null,null,null,null,null,"Select from Drop Down","Select from Drop Down","Select from Drop Down"]
[1461,null,null,"Select from Drop Down","Select from Drop Down","Select from Drop Down",null,null,null,null,null,null,null,null,null,null,null,null,"Select from Drop Down","Select from Drop Down","Select from Drop Down"]
[1462,null,null,"Select from Drop Down","Select from Drop Down","Select from Drop Down",null,null,null,null,null,null,null,null,null,null,null,null,"Select from Drop Down","Select from Drop Down","Select from Drop Down"]
[1463,null,null,"Select from Drop Down","Select from Drop Down","Select from Drop Down",null,null,null,null,null,null,null,null,null,null,null,null,"Select from Drop Down","Select from Drop Down","Select from Drop Down"]
[1464,null,null,"Select from Drop Down","Select from Drop Down","Select from Drop Down",null,null,null,null,null,null,null,null,null,null,null,null,"Select from Drop Down","Select from Drop Down","Select from Drop Down"]
[1465,null,null,"Select from Drop Down","Select from Drop Down","Select from Drop Down",null,null,null,null,null,null,null,null,null,null,null,null,"Select from Drop Down","Select from Drop Down","Select from Drop Down"]
[1466,null,null,"Select from Drop Down","Select from Drop Down","Select from Drop Down",null,null,null,null,null,null,null,null,null,null,null,null,"Select from Drop Down","Select from Drop Down","Select from Drop Down"]
[1467,null,null,"Select from Drop Down","Select from Drop Down","Select from Drop Down",null,null,null,null,null,null,null,null,null,null,null,null,"Select from Drop Down","Select from Drop Down","Select from Drop Down"]
[1468,null,null,"Select from Drop Down","Select from Drop Down","Select from Drop Down",null,null,null,null,null,null,null,null,null,null,null,null,"Select from Drop Down","Select from Drop Down","Select from Drop Down"]
[1469,null,null,"Select from Drop Down","Select from Drop Down","Select from Drop Down",null,null,null,null,null,null,null,null,null,null,null,null,"Select from Drop Down","Select from Drop Down","Select from Drop Down"]
[1470,null,null,"Select from Drop Down","Select from Drop Down","Select from Drop Down",null,null,null,null,null,null,null,null,null,null,null,null,"Select from Drop Down","Select from Drop Down","Select from Drop Down"]
[1471,null,null,"Select from Drop Down","Select from Drop Down","Select from Drop Down",null,null,null,null,null,null,null,null,null,null,null,null,"Select from Drop Down","Select from Drop Down","Select from Drop Down"]
[1472,null,null,"Select from Drop Down","Select from Drop Down","Select from Drop Down",null,null,null,null,null,null,null,null,null,null,null,null,"Select from Drop Down","Select from Drop Down","Select from Drop Down"]
[1473,null,null,"Select from Drop Down","Select from Drop Down","Select from Drop Down",null,null,null,null,null,null,null,null,null,null,null,null,"Select from Drop Down","Select from Drop Down","Select from Drop Down"]
[1474,null,null,"Select from Drop Down","Select from Drop Down","Select from Drop Down",null,null,null,null,null,null,null,null,null,null,null,null,"Select from Drop Down","Select from Drop Down","Select from Drop Down"]
[{"$f":"A1484+1","v":1475},null,null,"Select from Drop Down","Select from Drop Down","Select from Drop Down",null,null,null,null,null,null,null,null,null,null,null,null,"Select from Drop Down","Select from Drop Down","Select from Drop Down"]
[1476,null,null,"Select from Drop Down","Select from Drop Down","Select from Drop Down",null,null,null,null,null,null,null,null,null,null,null,null,"Select from Drop Down","Select from Drop Down","Select from Drop Down"]
[1477,null,null,"Select from Drop Down","Select from Drop Down","Select from Drop Down",null,null,null,null,null,null,null,null,null,null,null,null,"Select from Drop Down","Select from Drop Down","Select from Drop Down"]
[1478,null,null,"Select from Drop Down","Select from Drop Down","Select from Drop Down",null,null,null,null,null,null,null,null,null,null,null,null,"Select from Drop Down","Select from Drop Down","Select from Drop Down"]
[1479,null,null,"Select from Drop Down","Select from Drop Down","Select from Drop Down",null,null,null,null,null,null,null,null,null,null,null,null,"Select from Drop Down","Select from Drop Down","Select from Drop Down"]
[1480,null,null,"Select from Drop Down","Select from Drop Down","Select from Drop Down",null,null,null,null,null,null,null,null,null,null,null,null,"Select from Drop Down","Select from Drop Down","Select from Drop Down"]
[1481,null,null,"Select from Drop Down","Select from Drop Down","Select from Drop Down",null,null,null,null,null,null,null,null,null,null,null,null,"Select from Drop Down","Select from Drop Down","Select from Drop Down"]
[1482,null,null,"Select from Drop Down","Select from Drop Down","Select from Drop Down",null,null,null,null,null,null,null,null,null,null,null,null,"Select from Drop Down","Select from Drop Down","Select from Drop Down"]
[1483,null,null,"Select from Drop Down","Select from Drop Down","Select from Drop Down",null,null,null,null,null,null,null,null,null,null,null,null,"Select from Drop Down","Select from Drop Down","Select from Drop Down"]
[1484,null,null,"Select from Drop Down","Select from Drop Down","Select from Drop Down",null,null,null,null,null,null,null,null,null,null,null,null,"Select from Drop Down","Select from Drop Down","Select from Drop Down"]
[1485,null,null,"Select from Drop Down","Select from Drop Down","Select from Drop Down",null,null,null,null,null,null,null,null,null,null,null,null,"Select from Drop Down","Select from Drop Down","Select from Drop Down"]
[1486,null,null,"Select from Drop Down","Select from Drop Down","Select from Drop Down",null,null,null,null,null,null,null,null,null,null,null,null,"Select from Drop Down","Select from Drop Down","Select from Drop Down"]
[1487,null,null,"Select from Drop Down","Select from Drop Down","Select from Drop Down",null,null,null,null,null,null,null,null,null,null,null,null,"Select from Drop Down","Select from Drop Down","Select from Drop Down"]
[1488,null,null,"Select from Drop Down","Select from Drop Down","Select from Drop Down",null,null,null,null,null,null,null,null,null,null,null,null,"Select from Drop Down","Select from Drop Down","Select from Drop Down"]
[1489,null,null,"Select from Drop Down","Select from Drop Down","Select from Drop Down",null,null,null,null,null,null,null,null,null,null,null,null,"Select from Drop Down","Select from Drop Down","Select from Drop Down"]
[1490,null,null,"Select from Drop Down","Select from Drop Down","Select from Drop Down",null,null,null,null,null,null,null,null,null,null,null,null,"Select from Drop Down","Select from Drop Down","Select from Drop Down"]
[1491,null,null,"Select from Drop Down","Select from Drop Down","Select from Drop Down",null,null,null,null,null,null,null,null,null,null,null,null,"Select from Drop Down","Select from Drop Down","Select from Drop Down"]
[1492,null,null,"Select from Drop Down","Select from Drop Down","Select from Drop Down",null,null,null,null,null,null,null,null,null,null,null,null,"Select from Drop Down","Select from Drop Down","Select from Drop Down"]
[1493,null,null,"Select from Drop Down","Select from Drop Down","Select from Drop Down",null,null,null,null,null,null,null,null,null,null,null,null,"Select from Drop Down","Select from Drop Down","Select from Drop Down"]
[1494,null,null,"Select from Drop Down","Select from Drop Down","Select from Drop Down",null,null,null,null,null,null,null,null,null,null,null,null,"Select from Drop Down","Select from Drop Down","Select from Drop Down"]
[1495,null,null,"Select from Drop Down","Select from Drop Down","Select from Drop Down",null,null,null,null,null,null,null,null,null,null,null,null,"Select from Drop Down","Select from Drop Down","Select from Drop Down"]
[1496,null,null,"Select from Drop Down","Select from Drop Down","Select from Drop Down",null,null,null,null,null,null,null,null,null,null,null,null,"Select from Drop Down","Select from Drop Down","Select from Drop Down"]
[1497,null,null,"Select from Drop Down","Select from Drop Down","Select from Drop Down",null,null,null,null,null,null,null,null,null,null,null,null,"Select from Drop Down","Select from Drop Down","Select from Drop Down"]
[1498,null,null,"Select from Drop Down","Select from Drop Down","Select from Drop Down",null,null,null,null,null,null,null,null,null,null,null,null,"Select from Drop Down","Select from Drop Down","Select from Drop Down"]
[1499,null,null,"Select from Drop Down","Select from Drop Down","Select from Drop Down",null,null,null,null,null,null,null,null,null,null,null,null,"Select from Drop Down","Select from Drop Down","Select from Drop Down"]
[1500,null,null,"Select from Drop Down","Select from Drop Down","Select from Drop Down",null,null,null,null,null,null,null,null,null,null,null,null,"Select from Drop Down","Select from Drop Down","Select from Drop Down"]
[]
[null,"TOTAL",null,null,null,null,{"$f":"SUM(G11:G1510)","v":0},{"$f":"SUM(H11:H1510)","v":0},null,null,null,{"$f":"SUM(L11:L1510)","v":0},0,0,0,0,0,0,null,null,null,{"$f":"SUM(V11:V1510)","v":0}]
[]
[null,"General Comments"]
[null,{"$f":"Import!E6072","v":0}]
[]
[]
[]
[]
[]
[]
[]
[]
[]
[null,null,null,null,null,null,null,null,"Select Yes/No",null,null,null,"Lines of Business",null,null,"Zones",null,null,"Currency",null,"Select from Drop Down","Nature of Collateral"]
[null,null,null,null,null,null,null,null,"Yes",null,null,null,"Select from Drop Down",null,null,"Select from Drop Down",null,null,"Select from Drop Down",null,"AAA","Select from Drop Down"]
[null,null,null,null,null,null,"Select from Drop Down","Select from Drop Down","No",null,null,null,"Property Catastrophe",null,null,"US,",null,null,"USD",null,"AA","Money Market Fund"]
[null,null,null,null,null,null,"Indemnity ","Parametric/Industry Loss Warranty",null,"Select from Drop Down",null,null,"Property",null,null,"Europe",null,null,"BP",null,"A","Letter of Credit "]
[null,null,null,null,null,null,"Excess-of-Loss","Excess-of-Loss",null,"Catastrophe Bond",null,null,"Property Non – Proportional",null,null,"UK",null,null,"Euro",null,"BBB","Funds Withheld"]
[null,null,null,null,null,null,"Industry Loss Warranty","Quota Share",null,"Sidecar",null,null,"Personal Accident",null,null,"Latin America",null,null,"AUD",null,"BB","Cash"]
[null,null,null,null,null,null,"Quota Share","Stop Loss",null,"Collateralised Reinsurance",null,null,"Personal Accident Non- Proportional",null,null,"Asia",null,null,"CAD",null,"B","Sovereign Bonds"]
[null,null,null,null,null,null,"Stop Loss","Other",null,"Other",null,null,"Aviation",null,null,"Africa",null,null,"Yen",null,"CCC","Corporate Bonds"]
[null,null,null,null,null,null,"Other",null,null,null,null,null,"Aviation Non – Proportional",null,null,"Worldwide",null,null,"Multi Currency",null,"CCC or Below","Other"]
[null,null,null,null,null,null,null,null,null,null,null,null,"Credit / Surety ",null,null,"Other",null,null,"Other"]
[null,null,null,null,null,null,null,null,null,null,null,null,"Credit / Surety Non – Proportional"]
[null,null,null,null,null,null,null,null,null,null,null,null,"Energy Offshore / Marine"]
[null,null,null,null,null,null,null,null,null,null,null,null,"Energy Offshore / Marine Non - Proportional "]
[null,null,null,null,null,null,null,null,null,null,null,null,"US Casualty"]
[null,null,null,null,null,null,null,null,null,null,null,null,"US Casualty Non - Proportional "]
[null,null,null,null,null,null,null,null,null,null,null,null,"US Professional"]
[null,null,null,null,null,null,null,null,null,null,null,null,"US Professional Non – Proportional"]
[null,null,null,null,null,null,null,null,null,null,null,null,"US Specialty "]
[null,null,null,null,null,null,null,null,null,null,null,null,"US Specialty Non - Proportional"]
[null,null,null,null,null,null,null,null,null,null,null,null,"International Motor "]
[null,null,null,null,null,null,null,null,null,null,null,null,"International Motor Non – Proportional"]
[null,null,null,null,null,null,null,null,null,null,null,null,"International Casualty Non – Motor "]
[null,null,null,null,null,null,null,null,null,null,null,null,"International Casualty Non Motor Non – Proportional "]
[null,null,null,null,null,null,null,null,null,null,null,null,"Retro Property"]
[null,null,null,null,null,null,null,null,null,null,null,null,"Structured / Finite Reinsurance"]
[null,null,null,null,null,null,null,null,null,null,null,null,"Health"]
[]
[null,null,null,null,null,null,null,null,null,null,null,null,"Mortality "]
[null,null,null,null,null,null,null,null,null,null,null,null,"Critical Illness"]
[null,null,null,null,null,null,null,null,null,null,null,null,"Longevity"]
[null,null,null,null,null,null,null,null,null,null,null,null,"Deferred Annuities"]
[null,null,null,null,null,null,null,null,null,null,null,null,"Disability Income: Active lives with premium guarantee"]
[null,null,null,null,null,null,null,null,null,null,null,null,"Disability Income: Actives lives for other accident and sickenss"]
[null,null,null,null,null,null,null,null,null,null,null,null,"Disability Income: Claims in payment "]
[null,null,null,null,null,null,null,null,null,null,null,null,"Disability Income: Claims in payment for other accident and sickness"]
[null,null,null,null,null,null,null,null,null,null,null,null,"Group Life"]
[null,null,null,null,null,null,null,null,null,null,null,null,"Group Disability"]
[null,null,null,null,null,null,null,null,null,null,null,null,"Group Health"]
[null,null,null,null,null,null,null,null,null,null,null,null,"Stop Loss"]
[null,null,null,null,null,null,null,null,null,null,null,null,"Rider"]
[null,null,null,null,null,null,null,null,null,null,null,null,"Variable Annuities"]

{"sheet":"Schedule VI","index":47,"n_rows":70,"n_cols":50,"rows_kept":70,"cut":false,"hidden":false,"merged":[]}
[null,null,"SCHEDULE OF FIXED INCOME SECURITIES",null,null,null,null,null,null,null,null,null,null,null,null,null,null,{"$f":"HYPERLINK(\"#'Index'!A1\",\"Return to Index\")","v":"Return to Index"}]
[null,null,{"$f":"'Company Information'!C7","v":"Enter Company Name"}]
[null,null,{"$f":"'Form 1EBS'!C3","v":"2019-12-31"},null,null,null,null,null,null,null,null,null,null,null,null,null,"SCHEDULE VI"]
[null,null,{"$f":"IF(CONFIGURATION!$B$12>1,\" ['\"&MID(CONFIGURATION!$B$12,2,LEN(CONFIGURATION!$B$12))&\"s]\",\"\")&'Form 1EBS'!C4","v":" ['000s]United States Dollars"}]
[]
[null,null,"Security Type",null,"Amount per Form 1SFS, Lines 2(b) and 3(b)",null,"Face Value",null,"Fair Value",null,"Average YTM",null,"Average Rating",null,"Effective Duration",null,"Effective convexity"]
[]
[null,1,"U.S. Government ",null,null,null,null,null,null,null,null,null,null,null,null,null,null,null,null,null,null,null,null,null,null,null,null,null,null,null,null,null,null,null,null,"",null,"bma_SecurityUSGovernmentAmountPerForm1ALines2bAnd3b",null,"bma_SecurityUSGovernmentFaceValue",null,"bma_SecurityUSGovernmentFairValue",null,"bma_SecurityUSGovernmentAverageYTM",null,"bma_SecurityUSGovernmentAverageRating",null,"bma_SecurityUSGovernmentEffectiveDuration",null,"bma_SecurityUSGovernmentEffectiveConvexity"]
[null,null,"(a) U.S. Government Federal",null,{"$f":"Import!E6074","v":0},null,{"$f":"Import!E6092","v":0},null,{"$f":"Import!E6110","v":0},null,{"$f":"Import!E6128","v":0},null,{"$f":"Import!E6145","v":0},null,{"$f":"Import!E6162","v":0},null,{"$f":"Import!E6179","v":0},null,null,"brrt_SecurityTypeAxis_brrt_USGovernmentMember",null,null,null,null,null,null,null,null,null,null,null,null,null,null,null,"",null,"bma_SecurityNonUSGovernmentAmountPerForm1ALines2bAnd3b",null,"bma_SecurityNonUSGovernmentFaceValue",null,"bma_SecurityNonUSGovernmentFairValue",null,"bma_SecurityNonUSGovernmentAverageYTM",null,"bma_SecurityNonUSGovernmentAverageRating",null,"bma_SecurityNonUSGovernmentEffectiveDuration",null,"bma_SecurityNonUSGovernmentEffectiveConvexity"]
[null,null,"(b) U.S. Government Agency - mortgage-backed securities",null,{"$f":"Import!E6075","v":0},null,{"$f":"Import!E6093","v":0},null,{"$f":"Import!E6111","v":0},null,{"$f":"Import!E6129","v":0},null,{"$f":"Import!E6146","v":0},null,{"$f":"Import!E6163","v":0},null,{"$f":"Import!E6180","v":0},null,null,"brrt_SecurityTypeAxis_brrt_USGovernmentAgencyMortgageBackedSecuritiesMember",null,null,null,null,null,null,null,null,null,null,null,null,null,null,null,"",null,"bma_SecurityUSGovernmentAgencyMortgageBackedSecuritiesAmountPerForm1ALines2bAnd3b",null,"bma_SecurityUSGovernmentAgencyMortgageBackedSecuritiesFaceValue",null,"bma_SecurityUSGovernmentAgencyMortgageBackedSecuritiesFairValue",null,"bma_SecurityUSGovernmentAgencyMortgageBackedSecuritiesAverageYTM",null,"bma_SecurityUSGovernmentAgencyMortgageBackedSecuritiesAverageRating",null,"bma_SecurityUSGovernmentAgencyMortgageBackedSecuritiesEffectiveDuration",null,"bma_SecurityUSGovernmentAgencyMortgageBackedSecuritiesEffectiveConvexity"]
[null,null,"(c) U.S. Government Agency - other",null,{"$f":"Import!E6076","v":0},null,{"$f":"Import!E6094","v":0},null,{"$f":"Import!E6112","v":0},null,{"$f":"Import!E6130","v":0},null,{"$f":"Import!E6147","v":0},null,{"$f":"Import!E6164","v":0},null,{"$f":"Import!E6181","v":0},null,null,"brrt_SecurityTypeAxis_brrt_USGovernmentAgencyOtherMember",null,null,null,null,null,null,null,null,null,null,null,null,null,null,null,"",null,"bma_SecurityUSGovernmentAgencyOtherAmountPerForm1ALines2bAnd3b",null,"bma_SecurityUSGovernmentAgencyOtherFaceValue",null,"bma_SecurityUSGovernmentAgencyOtherFairValue",null,"bma_SecurityUSGovernmentAgencyOtherAverageYTM",null,"bma_SecurityUSGovernmentAgencyOtherAverageRating",null,"bma_SecurityUSGovernmentAgencyOtherEffectiveDuration",null,"bma_SecurityUSGovernmentAgencyOtherEffectiveConvexity"]
[null,2,"Non-U.S. Government",null,{"$f":"Import!E6077","v":0},null,{"$f":"Import!E6095","v":0},null,{"$f":"Import!E6113","v":0},null,{"$f":"Import!E6131","v":0},null,{"$f":"Import!E6148","v":0},null,{"$f":"Import!E6165","v":0},null,{"$f":"Import!E6182","v":0},null,null,"brrt_SecurityTypeAxis_brrt_NonUSGovernmentMember",null,null,null,null,null,null,null,null,null,null,null,null,null,null,null,"",null,"bma_SecurityCorporateSecuritiesAmountPerForm1ALines2bAnd3b",null,"bma_SecurityCorporateSecuritiesFaceValue",null,"bma_SecurityCorporateSecuritiesFairValue",null,"bma_SecurityCorporateSecuritiesAverageYTM",null,"bma_SecurityCorporateSecuritiesAverageRating",null,"bma_SecurityCorporateSecuritiesEffectiveDuration",null,"bma_SecurityCorporateSecuritiesEffectiveConvexity"]
[null,3,"States, Municipalities, and Political Subdivision",null,{"$f":"Import!E6078","v":0},null,{"$f":"Import!E6096","v":0},null,{"$f":"Import!E6114","v":0},null,{"$f":"Import!E6132","v":0},null,{"$f":"Import!E6149","v":0},null,{"$f":"Import!E6166","v":0},null,{"$f":"Import!E6183","v":0},null,null,"brrt_SecurityTypeAxis_brrt_StatesMunicipalitiesAndPoliticalSubdivisionMember",null,null,null,null,null,null,null,null,null,null,null,null,null,null,null,"",null,"bma_SecurityAssetBackedSecuritiesAmountPerForm1ALines2bAnd3b",null,"bma_SecurityAssetBackedSecuritiesFaceValue",null,"bma_SecurityAssetBackedSecuritiesFairValue",null,"bma_SecurityAssetBackedSecuritiesAverageYTM",null,"bma_SecurityAssetBackedSecuritiesAverageRating",null,"bma_SecurityAssetBackedSecuritiesEffectiveDuration",null,"bma_SecurityAssetBackedSecuritiesEffectiveConvexity"]
[null,4,"Corporate Securities",null,null,null,null,null,null,null,null,null,null,null,null,null,null,null,null,null,null,null,null,null,null,null,null,null,null,null,null,null,null,null,null,"",null,"bma_SecurityMortgageBackedSecuritiesAmountPerForm1ALines2bAnd3b",null,"bma_SecurityMortgageBackedSecuritiesFaceValue",null,"bma_SecurityMortgageBackedSecuritiesFairValue",null,"bma_SecurityMortgageBackedSecuritiesAverageYTM",null,"bma_SecurityMortgageBackedSecuritiesAverageRating",null,"bma_SecurityMortgageBackedSecuritiesEffectiveDuration",null,"bma_SecurityMortgageBackedSecuritiesEffectiveConvexity"]
[null,null,"(a) U.S. Government-backed Corporate",null,{"$f":"Import!E6079","v":0},null,{"$f":"Import!E6097","v":0},null,{"$f":"Import!E6115","v":0},null,{"$f":"Import!E6133","v":0},null,{"$f":"Import!E6150","v":0},null,{"$f":"Import!E6167","v":0},null,{"$f":"Import!E6184","v":0},null,null,"brrt_SecurityTypeAxis_brrt_USGovernmentBackedCorporateSecuritiesMember",null,null,null,null,null,null,null,null,null,null,null,null,null,null,null,"",null,"bma_SecurityMutualFundsAmountPerForm1ALines2bAnd3b",null,"bma_SecurityMutualFundsFaceValue",null,"bma_SecurityMutualFundsFairValue",null,"bma_SecurityMutualFundsAverageYTM",null,"bma_SecurityMutualFundsAverageRating",null,"bma_SecurityMutualFundsEffectiveDuration",null,"bma_SecurityMutualFundsEffectiveConvexity"]
[null,null,"(b) Non-U.S. Government-backed Corporate",null,{"$f":"Import!E6080","v":0},null,{"$f":"Import!E6098","v":0},null,{"$f":"Import!E6116","v":0},null,{"$f":"Import!E6134","v":0},null,{"$f":"Import!E6151","v":0},null,{"$f":"Import!E6168","v":0},null,{"$f":"Import!E6185","v":0},null,null,"brrt_SecurityTypeAxis_brrt_NonUSGovernmentBackedCorporateSecuritiesMember",null,null,null,null,null,null,null,null,null,null,null,null,null,null,null,"bma_SecurityOther1Type",null,"bma_SecurityOther1AmountPerForm1ALines2bAnd3b",null,"bma_SecurityOther1FaceValue",null,"bma_SecurityOther1FairValue",null,"bma_SecurityOther1AverageYTM",null,"bma_SecurityOther1AverageRating",null,"bma_SecurityOther1EffectiveDuration",null,"bma_SecurityOther1EffectiveConvexity"]
[null,null,"(c) FDIC Guaranteed Corporate",null,{"$f":"Import!E6081","v":0},null,{"$f":"Import!E6099","v":0},null,{"$f":"Import!E6117","v":0},null,{"$f":"Import!E6135","v":0},null,{"$f":"Import!E6152","v":0},null,{"$f":"Import!E6169","v":0},null,{"$f":"Import!E6186","v":0},null,null,"brrt_SecurityTypeAxis_brrt_FDICGuaranteedCorporateSecuritiesMember",null,null,null,null,null,null,null,null,null,null,null,null,null,null,null,"bma_SecurityOther2Type",null,"bma_SecurityOther2AmountPerForm1ALines2bAnd3b",null,"bma_SecurityOther2FaceValue",null,"bma_SecurityOther2FairValue",null,"bma_SecurityOther2AverageYTM",null,"bma_SecurityOther2AverageRating",null,"bma_SecurityOther2EffectiveDuration",null,"bma_SecurityOther2EffectiveConvexity"]
[null,null,"(d) Other Corporate",null,{"$f":"Import!E6082","v":0},null,{"$f":"Import!E6100","v":0},null,{"$f":"Import!E6118","v":0},null,{"$f":"Import!E6136","v":0},null,{"$f":"Import!E6153","v":0},null,{"$f":"Import!E6170","v":0},null,{"$f":"Import!E6187","v":0},null,null,"brrt_SecurityTypeAxis_brrt_OtherCorporateSecuritiesMember",null,null,null,null,null,null,null,null,null,null,null,null,null,null,null,"bma_SecurityOther3Type",null,"bma_SecurityOther3AmountPerForm1ALines2bAnd3b",null,"bma_SecurityOther3FaceValue",null,"bma_SecurityOther3FairValue",null,"bma_SecurityOther3AverageYTM",null,"bma_SecurityOther3AverageRating",null,"bma_SecurityOther3EffectiveDuration",null,"bma_SecurityOther3EffectiveConvexity"]
[null,5,"Asset-backed Securities",null,{"$f":"Import!E6083","v":0},null,{"$f":"Import!E6101","v":0},null,{"$f":"Import!E6119","v":0},null,{"$f":"Import!E6137","v":0},null,{"$f":"Import!E6154","v":0},null,{"$f":"Import!E6171","v":0},null,{"$f":"Import!E6188","v":0},null,null,"brrt_SecurityTypeAxis_brrt_AssetBackedSecuritiesMember",null,null,null,null,null,null,null,null,null,null,null,null,null,null,null,"bma_SecurityOther4Type",null,"bma_SecurityOther4AmountPerForm1ALines2bAnd3b",null,"bma_SecurityOther4FaceValue",null,"bma_SecurityOther4FairValue",null,"bma_SecurityOther4AverageYTM",null,"bma_SecurityOther4AverageRating",null,"bma_SecurityOther4EffectiveDuration",null,"bma_SecurityOther4EffectiveConvexity"]
[null,6,"Mortgage-backed Securities",null,null,null,null,null,null,null,null,null,null,null,null,null,null,null,null,null,null,null,null,null,null,null,null,null,null,null,null,null,null,null,null,"bma_SecurityOther5Type",null,"bma_SecurityOther5AmountPerForm1ALines2bAnd3b",null,"bma_SecurityOther5FaceValue",null,"bma_SecurityOther5FairValue",null,"bma_SecurityOther5AverageYTM",null,"bma_SecurityOther5AverageRating",null,"bma_SecurityOther5EffectiveDuration",null,"bma_SecurityOther5EffectiveConvexity"]
[null,null,"(a) Residential Subprime",null,{"$f":"Import!E6084","v":0},null,{"$f":"Import!E6102","v":0},null,{"$f":"Import!E6120","v":0},null,{"$f":"Import!E6138","v":0},null,{"$f":"Import!E6155","v":0},null,{"$f":"Import!E6172","v":0},null,{"$f":"Import!E6189","v":0},null,null,"brrt_SecurityTypeAxis_brrt_MortgageBackedSecuritiesSubprimeMember",null,null,null,null,null,null,null,null,null,null,null,null,null,null,null,"bma_SecurityOther6Type",null,"bma_SecurityOther6AmountPerForm1ALines2bAnd3b",null,"bma_SecurityOther6FaceValue",null,"bma_SecurityOther6FairValue",null,"bma_SecurityOther6AverageYTM",null,"bma_SecurityOther6AverageRating",null,"bma_SecurityOther6EffectiveDuration",null,"bma_SecurityOther6EffectiveConvexity"]
[null,null,"(b) Residential Non-subprime",null,{"$f":"Import!E6085","v":0},null,{"$f":"Import!E6103","v":0},null,{"$f":"Import!E6121","v":0},null,{"$f":"Import!E6139","v":0},null,{"$f":"Import!E6156","v":0},null,{"$f":"Import!E6173","v":0},null,{"$f":"Import!E6190","v":0},null,null,"brrt_SecurityTypeAxis_brrt_MortgageBackedSecuritiesNonSubprimeMember",null,null,null,null,null,null,null,null,null,null,null,null,null,null,null,"bma_SecurityOther7Type",null,"bma_SecurityOther7AmountPerForm1ALines2bAnd3b",null,"bma_SecurityOther7FaceValue",null,"bma_SecurityOther7FairValue",null,"bma_SecurityOther7AverageYTM",null,"bma_SecurityOther7AverageRating",null,"bma_SecurityOther7EffectiveDuration",null,"bma_SecurityOther7EffectiveConvexity"]
[null,null,"(c) Commercial",null,{"$f":"Import!E6086","v":0},null,{"$f":"Import!E6104","v":0},null,{"$f":"Import!E6122","v":0},null,{"$f":"Import!E6140","v":0},null,{"$f":"Import!E6157","v":0},null,{"$f":"Import!E6174","v":0},null,{"$f":"Import!E6191","v":0},null,null,"brrt_SecurityTypeAxis_brrt_MortgageBackedSecuritiesCommercialMember",null,null,null,null,null,null,null,null,null,null,null,null,null,null,null,"bma_SecurityOther8Type",null,"bma_SecurityOther8AmountPerForm1ALines2bAnd3b",null,"bma_SecurityOther8FaceValue",null,"bma_SecurityOther8FairValue",null,"bma_SecurityOther8AverageYTM",null,"bma_SecurityOther8AverageRating",null,"bma_SecurityOther8EffectiveDuration",null,"bma_SecurityOther8EffectiveConvexity"]
[null,7,"Mutual Funds",null,{"$f":"Import!E6087","v":0},null,{"$f":"Import!E6105","v":0},null,{"$f":"Import!E6123","v":0},null,{"$f":"Import!E6141","v":0},null,{"$f":"Import!E6158","v":0},null,{"$f":"Import!E6175","v":0},null,{"$f":"Import!E6192","v":0},null,null,"brrt_SecurityTypeAxis_brrt_MutualFundsMember",null,null,null,null,null,null,null,null,null,null,null,null,null,null,null,"bma_SecurityOther9Type",null,"bma_SecurityOther9AmountPerForm1ALines2bAnd3b",null,"bma_SecurityOther9FaceValue",null,"bma_SecurityOther9FairValue",null,"bma_SecurityOther9AverageYTM",null,"bma_SecurityOther9AverageRating",null,"bma_SecurityOther9EffectiveDuration",null,"bma_SecurityOther9EffectiveConvexity"]
[null,8,"Bank Loans",null,{"$f":"Import!E6088","v":0},null,{"$f":"Import!E6106","v":0},null,{"$f":"Import!E6124","v":0},null,{"$f":"Import!E6142","v":0},null,{"$f":"Import!E6159","v":0},null,{"$f":"Import!E6176","v":0},null,{"$f":"Import!E6193","v":0},null,null,"brrt_SecurityTypeAxis_brrt_BankLoansMember",null,null,null,null,null,null,null,null,null,null,null,null,null,null,null,"bma_SecurityOther10Type",null,"bma_SecurityOther10AmountPerForm1ALines2bAnd3b",null,"bma_SecurityOther10FaceValue",null,"bma_SecurityOther10FairValue",null,"bma_SecurityOther10AverageYTM",null,"bma_SecurityOther10AverageRating",null,"bma_SecurityOther10EffectiveDuration",null,"bma_SecurityOther10EffectiveConvexity"]
[null,9,"Catastrophe Bonds and Insurance-Linked Securities",null,{"$f":"Import!E6089","v":0},null,{"$f":"Import!E6107","v":0},null,{"$f":"Import!E6125","v":0},null,{"$f":"Import!E6143","v":0},null,{"$f":"Import!E6160","v":0},null,{"$f":"Import!E6177","v":0},null,{"$f":"Import!E6194","v":0},null,null,"brrt_SecurityTypeAxis_brrt_CatastropheBondsAndInsuranceLinkedSecuritiesMember",null,null,null,null,null,null,null,null,null,null,null,null,null,null,null,"bma_SecurityOther11Type",null,"bma_SecurityOther11AmountPerForm1ALines2bAnd3b",null,"bma_SecurityOther11FaceValue",null,"bma_SecurityOther11FairValue",null,"bma_SecurityOther11AverageYTM",null,"bma_SecurityOther11AverageRating",null,"bma_SecurityOther11EffectiveDuration",null,"bma_SecurityOther11EffectiveConvexity"]
[null,10,"Others (Briefly describe)",null,{"$f":"Import!E6090","v":0},null,{"$f":"Import!E6108","v":0},null,{"$f":"Import!E6126","v":0},null,{"$f":"Import!E6144","v":0},null,{"$f":"Import!E6161","v":0},null,{"$f":"Import!E6178","v":0},null,{"$f":"Import!E6195","v":0},null,null,"brrt_SecurityTypeAxis_brrt_OtherMember",null,null,null,null,null,null,null,null,null,null,null,null,null,null,null,"bma_SecurityOther12Type",null,"bma_SecurityOther12AmountPerForm1ALines2bAnd3b",null,"bma_SecurityOther12FaceValue",null,"bma_SecurityOther12FairValue",null,"bma_SecurityOther12AverageYTM",null,"bma_SecurityOther12AverageRating",null,"bma_SecurityOther12EffectiveDuration",null,"bma_SecurityOther12EffectiveConvexity"]
[null,null,"TOTAL PORTFOLIO",null,{"$f":"SUM(E8:E27)","v":0},null,{"$f":"SUM(G8:G27)","v":0},null,{"$f":"SUM(I8:I27)","v":0},null,null,null,null,null,null,null,null,null,null,"brrt_SecurityTypeAxis_brrt_TotalMember",null,null,null,null,null,null,null,null,null,null,null,null,null,null,null,"",null,"bma_SecurityTotalPortfolioAmountPerForm1ALines2bAnd3b",null,"bma_SecurityTotalPortfolioFaceValue",null,"bma_SecurityTotalPortfolioFairValue",null,"",null,"",null,"",null,""]
[null,null,null,null,null,null,null,null,null,null,null,null,null,null,null,null,null,null,null,"brrt_SecurityTypeOtherDescription",{"$f":"XBRLMap(C27,T29,E$42,E$43,CONFIGURATION!$B$10,\"BMA\",CONFIGURATION!$B$1,\"bscr\")","v":"Mapped"},null,null,"",null,"",null,"",null,"",null,"",null,"",null,"",null,"",null,"",null,"",null,"",null,"",null,"",null,""]
[null,null,null,null,{"$f":"IF(E31=\"TRUE\",HYPERLINK(\"#'Form 1SFS'!E16:M30\",\"TRUE\"),HYPERLINK(\"#'Form 1SFS'!E16:M30\",\"FALSE\"))","v":"TRUE"},null,null,null,null,null,null,null,null,null,null,null,null,null,null,"",null,"",null,"",null,"",null,"",null,"",null,"",null,"",null,"",null,"",null,"",null,"",null,"",null,"",null,"",null,""]
[null,null,null,null,{"$f":"IF((ROUND(E28-(IF(('Form 1SFS'!$E$100+'Form 1SFS'!$MI100)=0,'Form 1SFS'!M18+'Form 1SFS'!M31,'Form 1SFS'!E18+'Form 1SFS'!I18+'Form 1SFS'!E31+'Form 1SFS'!I31)),0))=0,\"TRUE\",\"FALSE\")","v":"TRUE"}]
[null,null,null,null,{"$f":"ROUND(E28-(IF(('Form 1SFS'!$E$100+'Form 1SFS'!$MI100)=0,'Form 1SFS'!M18+'Form 1SFS'!M31,'Form 1SFS'!E18+'Form 1SFS'!I18+'Form 1SFS'!E31+'Form 1SFS'!I31)),0)","v":0}]
[]
[null,null,null,null,{"$f":"IF(E30=\"False\",\"Does not equal Form 1SFS Lines 2(b) & 3(b)\",\"\")","v":""}]
[null,null,null,null,null,null,null,null,null,null,null,null,null,null,null,null,null,null,null,"",null,"",null,"",null,"",null,"",null,"",null,"",null,"",null,"",null,"",null,"",null,"",null,"",null,"",null,"",null,""]
[null,null,"Effective duration of the portfolio",null,{"$f":"Import!E6196","v":0},null,null,null,null,null,null,null,null,null,null,null,null,null,null,"brrt_PortfolioEffectiveDuration",null,"",null,"",null,"",null,"",null,"",null,"",null,"",null,"bma_EffectiveDurationOfThePortfolio",null,"",null,"",null,"",null,"",null,"",null,"",null,""]
[null,null,null,null,null,null,null,null,null,null,null,null,null,null,null,null,null,null,null,"",null,"",null,"",null,"",null,"",null,"",null,"",null,"",null,"",null,"",null,"",null,"",null,"",null,"",null,"",null,""]
[null,null,"Effective convexity of the portfolio",null,{"$f":"Import!E6197","v":0},null,null,null,null,null,null,null,null,null,null,null,null,null,null,"brrt_PortfolioEffectiveConvexity",null,"",null,"",null,"",null,"",null,"",null,"",null,"",null,"bma_EffectiveConvexityOfThePortfolio",null,"",null,"",null,"",null,"",null,"",null,"",null,""]
[]
[]
[null,null,null,null,"brrt_BondsAndDebentures",null,"brrt_BondsAndDebenturesFaceValue",null,"brrt_BondsAndDebenturesFairValue",null,"brrt_BondsAndDebenturesAverageYieldToMaturity",null,"brrt_BondsAndDebenturesAverageRating",null,"brrt_BondsAndDebenturesEffectiveDuration",null,"brrt_BondsAndDebenturesEffectiveConvexity"]
[null,null,{"$f":"IF($C$3=\"\",\"\",TEXT(DATE(YEAR($C$3+1)-1,MONTH($C$3+1),DAY($C$3+1)),\"mm/dd/yyyy\"))","v":"01/01/2019"},null,{"$f":"IF($C$3=\"\",\"\",TEXT(DATE(YEAR($C$3+1)-1,MONTH($C$3+1),DAY($C$3+1)),\"mm/dd/yyyy\"))","v":"01/01/2019"},null,"01/01/2019",null,"01/01/2019",null,"01/01/2019",null,"01/01/2019",null,"01/01/2019",null,"01/01/2019"]
[null,null,{"$f":"IF($C$3=\"\",\"\",TEXT($C$3,\"mm/dd/yyyy\"))","v":"12/31/2019"},null,{"$f":"IF($C$3=\"\",\"\",TEXT($C$3,\"mm/dd/yyyy\"))","v":"12/31/2019"},null,"12/31/2019",null,"12/31/2019",null,"12/31/2019",null,"12/31/2019",null,"12/31/2019",null,"12/31/2019"]
[]
[null,null,null,null,{"$f":"XBRLMap(E9,E$41&\".\"&$T9,E$42,E$43,CONFIGURATION!$B$10,\"BMA\",CONFIGURATION!$B$1,\"bscr\",CONFIGURATION!$B$12)","v":"Mapped"},null,{"$f":"XBRLMap(G9,G$41&\".\"&$T9,G$42,G$43,CONFIGURATION!$B$10,\"BMA\",CONFIGURATION!$B$1,\"bscr\",CONFIGURATION!$B$12)","v":"Mapped"},null,{"$f":"XBRLMap(I9,I$41&\".\"&$T9,I$42,I$43,CONFIGURATION!$B$10,\"BMA\",CONFIGURATION!$B$1,\"bscr\",CONFIGURATION!$B$12)","v":"Mapped"},null,{"$f":"XBRLMap(K9,K$41&\".\"&$T9,K$42,K$43,CONFIGURATION!$B$10,\"BMA\",CONFIGURATION!$B$1,\"bscr\",CONFIGURATION!$B$12)","v":"Mapped"},null,{"$f":"XBRLMap(M9,M$41&\".\"&$T9,M$42,M$43,CONFIGURATION!$B$10,\"BMA\",CONFIGURATION!$B$1,\"bscr\")","v":"Mapped"},null,{"$f":"XBRLMap(O9,O$41&\".\"&$T9,O$42,O$43,CONFIGURATION!$B$10,\"BMA\",CONFIGURATION!$B$1,\"bscr\")","v":"Mapped"},null,{"$f":"XBRLMap(Q9,Q$41&\".\"&$T9,Q$42,Q$43,CONFIGURATION!$B$10,\"BMA\",CONFIGURATION!$B$1,\"bscr\")","v":"Mapped"}]
[null,null,null,null,{"$f":"XBRLMap(E10,E$41&\".\"&$T10,E$42,E$43,CONFIGURATION!$B$10,\"BMA\",CONFIGURATION!$B$1,\"bscr\",CONFIGURATION!$B$12)","v":"Mapped"},null,{"$f":"XBRLMap(G10,G$41&\".\"&$T10,G$42,G$43,CONFIGURATION!$B$10,\"BMA\",CONFIGURATION!$B$1,\"bscr\",CONFIGURATION!$B$12)","v":"Mapped"},null,{"$f":"XBRLMap(I10,I$41&\".\"&$T10,I$42,I$43,CONFIGURATION!$B$10,\"BMA\",CONFIGURATION!$B$1,\"bscr\",CONFIGURATION!$B$12)","v":"Mapped"},null,{"$f":"XBRLMap(K10,K$41&\".\"&$T10,K$42,K$43,CONFIGURATION!$B$10,\"BMA\",CONFIGURATION!$B$1,\"bscr\",CONFIGURATION!$B$12)","v":"Mapped"},null,{"$f":"XBRLMap(M10,M$41&\".\"&$T10,M$42,M$43,CONFIGURATION!$B$10,\"BMA\",CONFIGURATION!$B$1,\"bscr\")","v":"Mapped"},null,{"$f":"XBRLMap(O10,O$41&\".\"&$T10,O$42,O$43,CONFIGURATION!$B$10,\"BMA\",CONFIGURATION!$B$1,\"bscr\")","v":"Mapped"},null,{"$f":"XBRLMap(Q10,Q$41&\".\"&$T10,Q$42,Q$43,CONFIGURATION!$B$10,\"BMA\",CONFIGURATION!$B$1,\"bscr\")","v":"Mapped"}]
[null,null,null,null,{"$f":"XBRLMap(E11,E$41&\".\"&$T11,E$42,E$43,CONFIGURATION!$B$10,\"BMA\",CONFIGURATION!$B$1,\"bscr\",CONFIGURATION!$B$12)","v":"Mapped"},null,{"$f":"XBRLMap(G11,G$41&\".\"&$T11,G$42,G$43,CONFIGURATION!$B$10,\"BMA\",CONFIGURATION!$B$1,\"bscr\",CONFIGURATION!$B$12)","v":"Mapped"},null,{"$f":"XBRLMap(I11,I$41&\".\"&$T11,I$42,I$43,CONFIGURATION!$B$10,\"BMA\",CONFIGURATION!$B$1,\"bscr\",CONFIGURATION!$B$12)","v":"Mapped"},null,{"$f":"XBRLMap(K11,K$41&\".\"&$T11,K$42,K$43,CONFIGURATION!$B$10,\"BMA\",CONFIGURATION!$B$1,\"bscr\",CONFIGURATION!$B$12)","v":"Mapped"},null,{"$f":"XBRLMap(M11,M$41&\".\"&$T11,M$42,M$43,CONFIGURATION!$B$10,\"BMA\",CONFIGURATION!$B$1,\"bscr\")","v":"Mapped"},null,{"$f":"XBRLMap(O11,O$41&\".\"&$T11,O$42,O$43,CONFIGURATION!$B$10,\"BMA\",CONFIGURATION!$B$1,\"bscr\")","v":"Mapped"},null,{"$f":"XBRLMap(Q11,Q$41&\".\"&$T11,Q$42,Q$43,CONFIGURATION!$B$10,\"BMA\",CONFIGURATION!$B$1,\"bscr\")","v":"Mapped"}]
[null,null,null,null,{"$f":"XBRLMap(E12,E$41&\".\"&$T12,E$42,E$43,CONFIGURATION!$B$10,\"BMA\",CONFIGURATION!$B$1,\"bscr\",CONFIGURATION!$B$12)","v":"Mapped"},null,{"$f":"XBRLMap(G12,G$41&\".\"&$T12,G$42,G$43,CONFIGURATION!$B$10,\"BMA\",CONFIGURATION!$B$1,\"bscr\",CONFIGURATION!$B$12)","v":"Mapped"},null,{"$f":"XBRLMap(I12,I$41&\".\"&$T12,I$42,I$43,CONFIGURATION!$B$10,\"BMA\",CONFIGURATION!$B$1,\"bscr\",CONFIGURATION!$B$12)","v":"Mapped"},null,{"$f":"XBRLMap(K12,K$41&\".\"&$T12,K$42,K$43,CONFIGURATION!$B$10,\"BMA\",CONFIGURATION!$B$1,\"bscr\",CONFIGURATION!$B$12)","v":"Mapped"},null,{"$f":"XBRLMap(M12,M$41&\".\"&$T12,M$42,M$43,CONFIGURATION!$B$10,\"BMA\",CONFIGURATION!$B$1,\"bscr\")","v":"Mapped"},null,{"$f":"XBRLMap(O12,O$41&\".\"&$T12,O$42,O$43,CONFIGURATION!$B$10,\"BMA\",CONFIGURATION!$B$1,\"bscr\")","v":"Mapped"},null,{"$f":"XBRLMap(Q12,Q$41&\".\"&$T12,Q$42,Q$43,CONFIGURATION!$B$10,\"BMA\",CONFIGURATION!$B$1,\"bscr\")","v":"Mapped"}]
[null,null,null,null,{"$f":"XBRLMap(E13,E$41&\".\"&$T13,E$42,E$43,CONFIGURATION!$B$10,\"BMA\",CONFIGURATION!$B$1,\"bscr\",CONFIGURATION!$B$12)","v":"Mapped"},null,{"$f":"XBRLMap(G13,G$41&\".\"&$T13,G$42,G$43,CONFIGURATION!$B$10,\"BMA\",CONFIGURATION!$B$1,\"bscr\",CONFIGURATION!$B$12)","v":"Mapped"},null,{"$f":"XBRLMap(I13,I$41&\".\"&$T13,I$42,I$43,CONFIGURATION!$B$10,\"BMA\",CONFIGURATION!$B$1,\"bscr\",CONFIGURATION!$B$12)","v":"Mapped"},null,{"$f":"XBRLMap(K13,K$41&\".\"&$T13,K$42,K$43,CONFIGURATION!$B$10,\"BMA\",CONFIGURATION!$B$1,\"bscr\",CONFIGURATION!$B$12)","v":"Mapped"},null,{"$f":"XBRLMap(M13,M$41&\".\"&$T13,M$42,M$43,CONFIGURATION!$B$10,\"BMA\",CONFIGURATION!$B$1,\"bscr\")","v":"Mapped"},null,{"$f":"XBRLMap(O13,O$41&\".\"&$T13,O$42,O$43,CONFIGURATION!$B$10,\"BMA\",CONFIGURATION!$B$1,\"bscr\")","v":"Mapped"},null,{"$f":"XBRLMap(Q13,Q$41&\".\"&$T13,Q$42,Q$43,CONFIGURATION!$B$10,\"BMA\",CONFIGURATION!$B$1,\"bscr\")","v":"Mapped"}]
[]
[null,null,null,null,{"$f":"XBRLMap(E15,E$41&\".\"&$T15,E$42,E$43,CONFIGURATION!$B$10,\"BMA\",CONFIGURATION!$B$1,\"bscr\",CONFIGURATION!$B$12)","v":"Mapped"},null,{"$f":"XBRLMap(G15,G$41&\".\"&$T15,G$42,G$43,CONFIGURATION!$B$10,\"BMA\",CONFIGURATION!$B$1,\"bscr\",CONFIGURATION!$B$12)","v":"Mapped"},null,{"$f":"XBRLMap(I15,I$41&\".\"&$T15,I$42,I$43,CONFIGURATION!$B$10,\"BMA\",CONFIGURATION!$B$1,\"bscr\",CONFIGURATION!$B$12)","v":"Mapped"},null,{"$f":"XBRLMap(K15,K$41&\".\"&$T15,K$42,K$43,CONFIGURATION!$B$10,\"BMA\",CONFIGURATION!$B$1,\"bscr\",CONFIGURATION!$B$12)","v":"Mapped"},null,{"$f":"XBRLMap(M15,M$41&\".\"&$T15,M$42,M$43,CONFIGURATION!$B$10,\"BMA\",CONFIGURATION!$B$1,\"bscr\")","v":"Mapped"},null,{"$f":"XBRLMap(O15,O$41&\".\"&$T15,O$42,O$43,CONFIGURATION!$B$10,\"BMA\",CONFIGURATION!$B$1,\"bscr\")","v":"Mapped"},null,{"$f":"XBRLMap(Q15,Q$41&\".\"&$T15,Q$42,Q$43,CONFIGURATION!$B$10,\"BMA\",CONFIGURATION!$B$1,\"bscr\")","v":"Mapped"}]
[null,null,null,null,{"$f":"XBRLMap(E16,E$41&\".\"&$T16,E$42,E$43,CONFIGURATION!$B$10,\"BMA\",CONFIGURATION!$B$1,\"bscr\",CONFIGURATION!$B$12)","v":"Mapped"},null,{"$f":"XBRLMap(G16,G$41&\".\"&$T16,G$42,G$43,CONFIGURATION!$B$10,\"BMA\",CONFIGURATION!$B$1,\"bscr\",CONFIGURATION!$B$12)","v":"Mapped"},null,{"$f":"XBRLMap(I16,I$41&\".\"&$T16,I$42,I$43,CONFIGURATION!$B$10,\"BMA\",CONFIGURATION!$B$1,\"bscr\",CONFIGURATION!$B$12)","v":"Mapped"},null,{"$f":"XBRLMap(K16,K$41&\".\"&$T16,K$42,K$43,CONFIGURATION!$B$10,\"BMA\",CONFIGURATION!$B$1,\"bscr\",CONFIGURATION!$B$12)","v":"Mapped"},null,{"$f":"XBRLMap(M16,M$41&\".\"&$T16,M$42,M$43,CONFIGURATION!$B$10,\"BMA\",CONFIGURATION!$B$1,\"bscr\")","v":"Mapped"},null,{"$f":"XBRLMap(O16,O$41&\".\"&$T16,O$42,O$43,CONFIGURATION!$B$10,\"BMA\",CONFIGURATION!$B$1,\"bscr\")","v":"Mapped"},null,{"$f":"XBRLMap(Q16,Q$41&\".\"&$T16,Q$42,Q$43,CONFIGURATION!$B$10,\"BMA\",CONFIGURATION!$B$1,\"bscr\")","v":"Mapped"}]
[null,null,null,null,{"$f":"XBRLMap(E17,E$41&\".\"&$T17,E$42,E$43,CONFIGURATION!$B$10,\"BMA\",CONFIGURATION!$B$1,\"bscr\",CONFIGURATION!$B$12)","v":"Mapped"},null,{"$f":"XBRLMap(G17,G$41&\".\"&$T17,G$42,G$43,CONFIGURATION!$B$10,\"BMA\",CONFIGURATION!$B$1,\"bscr\",CONFIGURATION!$B$12)","v":"Mapped"},null,{"$f":"XBRLMap(I17,I$41&\".\"&$T17,I$42,I$43,CONFIGURATION!$B$10,\"BMA\",CONFIGURATION!$B$1,\"bscr\",CONFIGURATION!$B$12)","v":"Mapped"},null,{"$f":"XBRLMap(K17,K$41&\".\"&$T17,K$42,K$43,CONFIGURATION!$B$10,\"BMA\",CONFIGURATION!$B$1,\"bscr\",CONFIGURATION!$B$12)","v":"Mapped"},null,{"$f":"XBRLMap(M17,M$41&\".\"&$T17,M$42,M$43,CONFIGURATION!$B$10,\"BMA\",CONFIGURATION!$B$1,\"bscr\")","v":"Mapped"},null,{"$f":"XBRLMap(O17,O$41&\".\"&$T17,O$42,O$43,CONFIGURATION!$B$10,\"BMA\",CONFIGURATION!$B$1,\"bscr\")","v":"Mapped"},null,{"$f":"XBRLMap(Q17,Q$41&\".\"&$T17,Q$42,Q$43,CONFIGURATION!$B$10,\"BMA\",CONFIGURATION!$B$1,\"bscr\")","v":"Mapped"}]
[null,null,null,null,{"$f":"XBRLMap(E18,E$41&\".\"&$T18,E$42,E$43,CONFIGURATION!$B$10,\"BMA\",CONFIGURATION!$B$1,\"bscr\",CONFIGURATION!$B$12)","v":"Mapped"},null,{"$f":"XBRLMap(G18,G$41&\".\"&$T18,G$42,G$43,CONFIGURATION!$B$10,\"BMA\",CONFIGURATION!$B$1,\"bscr\",CONFIGURATION!$B$12)","v":"Mapped"},null,{"$f":"XBRLMap(I18,I$41&\".\"&$T18,I$42,I$43,CONFIGURATION!$B$10,\"BMA\",CONFIGURATION!$B$1,\"bscr\",CONFIGURATION!$B$12)","v":"Mapped"},null,{"$f":"XBRLMap(K18,K$41&\".\"&$T18,K$42,K$43,CONFIGURATION!$B$10,\"BMA\",CONFIGURATION!$B$1,\"bscr\",CONFIGURATION!$B$12)","v":"Mapped"},null,{"$f":"XBRLMap(M18,M$41&\".\"&$T18,M$42,M$43,CONFIGURATION!$B$10,\"BMA\",CONFIGURATION!$B$1,\"bscr\")","v":"Mapped"},null,{"$f":"XBRLMap(O18,O$41&\".\"&$T18,O$42,O$43,CONFIGURATION!$B$10,\"BMA\",CONFIGURATION!$B$1,\"bscr\")","v":"Mapped"},null,{"$f":"XBRLMap(Q18,Q$41&\".\"&$T18,Q$42,Q$43,CONFIGURATION!$B$10,\"BMA\",CONFIGURATION!$B$1,\"bscr\")","v":"Mapped"}]
[null,null,null,null,{"$f":"XBRLMap(E19,E$41&\".\"&$T19,E$42,E$43,CONFIGURATION!$B$10,\"BMA\",CONFIGURATION!$B$1,\"bscr\",CONFIGURATION!$B$12)","v":"Mapped"},null,{"$f":"XBRLMap(G19,G$41&\".\"&$T19,G$42,G$43,CONFIGURATION!$B$10,\"BMA\",CONFIGURATION!$B$1,\"bscr\",CONFIGURATION!$B$12)","v":"Mapped"},null,{"$f":"XBRLMap(I19,I$41&\".\"&$T19,I$42,I$43,CONFIGURATION!$B$10,\"BMA\",CONFIGURATION!$B$1,\"bscr\",CONFIGURATION!$B$12)","v":"Mapped"},null,{"$f":"XBRLMap(K19,K$41&\".\"&$T19,K$42,K$43,CONFIGURATION!$B$10,\"BMA\",CONFIGURATION!$B$1,\"bscr\",CONFIGURATION!$B$12)","v":"Mapped"},null,{"$f":"XBRLMap(M19,M$41&\".\"&$T19,M$42,M$43,CONFIGURATION!$B$10,\"BMA\",CONFIGURATION!$B$1,\"bscr\")","v":"Mapped"},null,{"$f":"XBRLMap(O19,O$41&\".\"&$T19,O$42,O$43,CONFIGURATION!$B$10,\"BMA\",CONFIGURATION!$B$1,\"bscr\")","v":"Mapped"},null,{"$f":"XBRLMap(Q19,Q$41&\".\"&$T19,Q$42,Q$43,CONFIGURATION!$B$10,\"BMA\",CONFIGURATION!$B$1,\"bscr\")","v":"Mapped"}]
[]
[null,null,null,null,{"$f":"XBRLMap(E21,E$41&\".\"&$T21,E$42,E$43,CONFIGURATION!$B$10,\"BMA\",CONFIGURATION!$B$1,\"bscr\",CONFIGURATION!$B$12)","v":"Mapped"},null,{"$f":"XBRLMap(G21,G$41&\".\"&$T21,G$42,G$43,CONFIGURATION!$B$10,\"BMA\",CONFIGURATION!$B$1,\"bscr\",CONFIGURATION!$B$12)","v":"Mapped"},null,{"$f":"XBRLMap(I21,I$41&\".\"&$T21,I$42,I$43,CONFIGURATION!$B$10,\"BMA\",CONFIGURATION!$B$1,\"bscr\",CONFIGURATION!$B$12)","v":"Mapped"},null,{"$f":"XBRLMap(K21,K$41&\".\"&$T21,K$42,K$43,CONFIGURATION!$B$10,\"BMA\",CONFIGURATION!$B$1,\"bscr\",CONFIGURATION!$B$12)","v":"Mapped"},null,{"$f":"XBRLMap(M21,M$41&\".\"&$T21,M$42,M$43,CONFIGURATION!$B$10,\"BMA\",CONFIGURATION!$B$1,\"bscr\")","v":"Mapped"},null,{"$f":"XBRLMap(O21,O$41&\".\"&$T21,O$42,O$43,CONFIGURATION!$B$10,\"BMA\",CONFIGURATION!$B$1,\"bscr\")","v":"Mapped"},null,{"$f":"XBRLMap(Q21,Q$41&\".\"&$T21,Q$42,Q$43,CONFIGURATION!$B$10,\"BMA\",CONFIGURATION!$B$1,\"bscr\")","v":"Mapped"}]
[null,null,null,null,{"$f":"XBRLMap(E22,E$41&\".\"&$T22,E$42,E$43,CONFIGURATION!$B$10,\"BMA\",CONFIGURATION!$B$1,\"bscr\",CONFIGURATION!$B$12)","v":"Mapped"},null,{"$f":"XBRLMap(G22,G$41&\".\"&$T22,G$42,G$43,CONFIGURATION!$B$10,\"BMA\",CONFIGURATION!$B$1,\"bscr\",CONFIGURATION!$B$12)","v":"Mapped"},null,{"$f":"XBRLMap(I22,I$41&\".\"&$T22,I$42,I$43,CONFIGURATION!$B$10,\"BMA\",CONFIGURATION!$B$1,\"bscr\",CONFIGURATION!$B$12)","v":"Mapped"},null,{"$f":"XBRLMap(K22,K$41&\".\"&$T22,K$42,K$43,CONFIGURATION!$B$10,\"BMA\",CONFIGURATION!$B$1,\"bscr\",CONFIGURATION!$B$12)","v":"Mapped"},null,{"$f":"XBRLMap(M22,M$41&\".\"&$T22,M$42,M$43,CONFIGURATION!$B$10,\"BMA\",CONFIGURATION!$B$1,\"bscr\")","v":"Mapped"},null,{"$f":"XBRLMap(O22,O$41&\".\"&$T22,O$42,O$43,CONFIGURATION!$B$10,\"BMA\",CONFIGURATION!$B$1,\"bscr\")","v":"Mapped"},null,{"$f":"XBRLMap(Q22,Q$41&\".\"&$T22,Q$42,Q$43,CONFIGURATION!$B$10,\"BMA\",CONFIGURATION!$B$1,\"bscr\")","v":"Mapped"}]
[null,null,null,null,{"$f":"XBRLMap(E23,E$41&\".\"&$T23,E$42,E$43,CONFIGURATION!$B$10,\"BMA\",CONFIGURATION!$B$1,\"bscr\",CONFIGURATION!$B$12)","v":"Mapped"},null,{"$f":"XBRLMap(G23,G$41&\".\"&$T23,G$42,G$43,CONFIGURATION!$B$10,\"BMA\",CONFIGURATION!$B$1,\"bscr\",CONFIGURATION!$B$12)","v":"Mapped"},null,{"$f":"XBRLMap(I23,I$41&\".\"&$T23,I$42,I$43,CONFIGURATION!$B$10,\"BMA\",CONFIGURATION!$B$1,\"bscr\",CONFIGURATION!$B$12)","v":"Mapped"},null,{"$f":"XBRLMap(K23,K$41&\".\"&$T23,K$42,K$43,CONFIGURATION!$B$10,\"BMA\",CONFIGURATION!$B$1,\"bscr\",CONFIGURATION!$B$12)","v":"Mapped"},null,{"$f":"XBRLMap(M23,M$41&\".\"&$T23,M$42,M$43,CONFIGURATION!$B$10,\"BMA\",CONFIGURATION!$B$1,\"bscr\")","v":"Mapped"},null,{"$f":"XBRLMap(O23,O$41&\".\"&$T23,O$42,O$43,CONFIGURATION!$B$10,\"BMA\",CONFIGURATION!$B$1,\"bscr\")","v":"Mapped"},null,{"$f":"XBRLMap(Q23,Q$41&\".\"&$T23,Q$42,Q$43,CONFIGURATION!$B$10,\"BMA\",CONFIGURATION!$B$1,\"bscr\")","v":"Mapped"}]
[null,null,null,null,{"$f":"XBRLMap(E24,E$41&\".\"&$T24,E$42,E$43,CONFIGURATION!$B$10,\"BMA\",CONFIGURATION!$B$1,\"bscr\",CONFIGURATION!$B$12)","v":"Mapped"},null,{"$f":"XBRLMap(G24,G$41&\".\"&$T24,G$42,G$43,CONFIGURATION!$B$10,\"BMA\",CONFIGURATION!$B$1,\"bscr\",CONFIGURATION!$B$12)","v":"Mapped"},null,{"$f":"XBRLMap(I24,I$41&\".\"&$T24,I$42,I$43,CONFIGURATION!$B$10,\"BMA\",CONFIGURATION!$B$1,\"bscr\",CONFIGURATION!$B$12)","v":"Mapped"},null,{"$f":"XBRLMap(K24,K$41&\".\"&$T24,K$42,K$43,CONFIGURATION!$B$10,\"BMA\",CONFIGURATION!$B$1,\"bscr\",CONFIGURATION!$B$12)","v":"Mapped"},null,{"$f":"XBRLMap(M24,M$41&\".\"&$T24,M$42,M$43,CONFIGURATION!$B$10,\"BMA\",CONFIGURATION!$B$1,\"bscr\")","v":"Mapped"},null,{"$f":"XBRLMap(O24,O$41&\".\"&$T24,O$42,O$43,CONFIGURATION!$B$10,\"BMA\",CONFIGURATION!$B$1,\"bscr\")","v":"Mapped"},null,{"$f":"XBRLMap(Q24,Q$41&\".\"&$T24,Q$42,Q$43,CONFIGURATION!$B$10,\"BMA\",CONFIGURATION!$B$1,\"bscr\")","v":"Mapped"}]
[null,null,null,null,{"$f":"XBRLMap(E25,E$41&\".\"&$T25,E$42,E$43,CONFIGURATION!$B$10,\"BMA\",CONFIGURATION!$B$1,\"bscr\",CONFIGURATION!$B$12)","v":"Mapped"},null,{"$f":"XBRLMap(G25,G$41&\".\"&$T25,G$42,G$43,CONFIGURATION!$B$10,\"BMA\",CONFIGURATION!$B$1,\"bscr\",CONFIGURATION!$B$12)","v":"Mapped"},null,{"$f":"XBRLMap(I25,I$41&\".\"&$T25,I$42,I$43,CONFIGURATION!$B$10,\"BMA\",CONFIGURATION!$B$1,\"bscr\",CONFIGURATION!$B$12)","v":"Mapped"},null,{"$f":"XBRLMap(K25,K$41&\".\"&$T25,K$42,K$43,CONFIGURATION!$B$10,\"BMA\",CONFIGURATION!$B$1,\"bscr\",CONFIGURATION!$B$12)","v":"Mapped"},null,{"$f":"XBRLMap(M25,M$41&\".\"&$T25,M$42,M$43,CONFIGURATION!$B$10,\"BMA\",CONFIGURATION!$B$1,\"bscr\")","v":"Mapped"},null,{"$f":"XBRLMap(O25,O$41&\".\"&$T25,O$42,O$43,CONFIGURATION!$B$10,\"BMA\",CONFIGURATION!$B$1,\"bscr\")","v":"Mapped"},null,{"$f":"XBRLMap(Q25,Q$41&\".\"&$T25,Q$42,Q$43,CONFIGURATION!$B$10,\"BMA\",CONFIGURATION!$B$1,\"bscr\")","v":"Mapped"}]
[null,null,null,null,{"$f":"XBRLMap(E26,E$41&\".\"&$T26,E$42,E$43,CONFIGURATION!$B$10,\"BMA\",CONFIGURATION!$B$1,\"bscr\",CONFIGURATION!$B$12)","v":"Mapped"},null,{"$f":"XBRLMap(G26,G$41&\".\"&$T26,G$42,G$43,CONFIGURATION!$B$10,\"BMA\",CONFIGURATION!$B$1,\"bscr\",CONFIGURATION!$B$12)","v":"Mapped"},null,{"$f":"XBRLMap(I26,I$41&\".\"&$T26,I$42,I$43,CONFIGURATION!$B$10,\"BMA\",CONFIGURATION!$B$1,\"bscr\",CONFIGURATION!$B$12)","v":"Mapped"},null,{"$f":"XBRLMap(K26,K$41&\".\"&$T26,K$42,K$43,CONFIGURATION!$B$10,\"BMA\",CONFIGURATION!$B$1,\"bscr\",CONFIGURATION!$B$12)","v":"Mapped"},null,{"$f":"XBRLMap(M26,M$41&\".\"&$T26,M$42,M$43,CONFIGURATION!$B$10,\"BMA\",CONFIGURATION!$B$1,\"bscr\")","v":"Mapped"},null,{"$f":"XBRLMap(O26,O$41&\".\"&$T26,O$42,O$43,CONFIGURATION!$B$10,\"BMA\",CONFIGURATION!$B$1,\"bscr\")","v":"Mapped"},null,{"$f":"XBRLMap(Q26,Q$41&\".\"&$T26,Q$42,Q$43,CONFIGURATION!$B$10,\"BMA\",CONFIGURATION!$B$1,\"bscr\")","v":"Mapped"}]
[null,null,null,null,{"$f":"XBRLMap(E27,E$41&\".\"&$T27,E$42,E$43,CONFIGURATION!$B$10,\"BMA\",CONFIGURATION!$B$1,\"bscr\",CONFIGURATION!$B$12)","v":"Mapped"},null,{"$f":"XBRLMap(G27,G$41&\".\"&$T27,G$42,G$43,CONFIGURATION!$B$10,\"BMA\",CONFIGURATION!$B$1,\"bscr\",CONFIGURATION!$B$12)","v":"Mapped"},null,{"$f":"XBRLMap(I27,I$41&\".\"&$T27,I$42,I$43,CONFIGURATION!$B$10,\"BMA\",CONFIGURATION!$B$1,\"bscr\",CONFIGURATION!$B$12)","v":"Mapped"},null,{"$f":"XBRLMap(K27,K$41&\".\"&$T27,K$42,K$43,CONFIGURATION!$B$10,\"BMA\",CONFIGURATION!$B$1,\"bscr\",CONFIGURATION!$B$12)","v":"Mapped"},null,{"$f":"XBRLMap(M27,M$41&\".\"&$T27,M$42,M$43,CONFIGURATION!$B$10,\"BMA\",CONFIGURATION!$B$1,\"bscr\")","v":"Mapped"},null,{"$f":"XBRLMap(O27,O$41&\".\"&$T27,O$42,O$43,CONFIGURATION!$B$10,\"BMA\",CONFIGURATION!$B$1,\"bscr\")","v":"Mapped"},null,{"$f":"XBRLMap(Q27,Q$41&\".\"&$T27,Q$42,Q$43,CONFIGURATION!$B$10,\"BMA\",CONFIGURATION!$B$1,\"bscr\")","v":"Mapped"}]
[null,null,null,null,{"$f":"XBRLMap(E28,E$41&\".\"&$T28,E$42,E$43,CONFIGURATION!$B$10,\"BMA\",CONFIGURATION!$B$1,\"bscr\",CONFIGURATION!$B$12)","v":"Mapped"},null,{"$f":"XBRLMap(G28,G$41&\".\"&$T28,G$42,G$43,CONFIGURATION!$B$10,\"BMA\",CONFIGURATION!$B$1,\"bscr\",CONFIGURATION!$B$12)","v":"Mapped"},null,{"$f":"XBRLMap(I28,I$41&\".\"&$T28,I$42,I$43,CONFIGURATION!$B$10,\"BMA\",CONFIGURATION!$B$1,\"bscr\",CONFIGURATION!$B$12)","v":"Mapped"}]
[]
[]
[]
[null,null,{"$f":"XBRLMap(E36,T36,C$42,C$43,CONFIGURATION!$B$10,\"BMA\",CONFIGURATION!$B$1,\"bscr\")","v":"Mapped"}]
[]
[null,null,{"$f":"XBRLMap(E38,T38,C$42,C$43,CONFIGURATION!$B$10,\"BMA\",CONFIGURATION!$B$1,\"bscr\")","v":"Mapped"}]

{"sheet":"Schedule VI (EBS)","index":48,"n_rows":70,"n_cols":50,"rows_kept":70,"cut":false,"hidden":false,"merged":[]}
[null,null,"CONSOLIDATED SCHEDULE OF FIXED INCOME SECURITIES",null,null,null,null,null,null,null,null,null,null,null,null,null,null,{"$f":"HYPERLINK(\"#'Index'!A1\",\"Return to Index\")","v":"Return to Index"}]
[null,null,{"$f":"'Company Information'!C7","v":"Enter Company Name"}]
[null,null,{"$f":"'Form 1EBS'!C3","v":"2019-12-31"},null,null,null,null,null,null,null,null,null,null,null,null,null,"SCHEDULE VI (EBS)"]
[null,null,{"$f":"IF(CONFIGURATION!$B$12>1,\" ['\"&MID(CONFIGURATION!$B$12,2,LEN(CONFIGURATION!$B$12))&\"s]\",\"\")&'Form 1EBS'!C4","v":" ['000s]United States Dollars"}]
[]
[null,null,"Security Type",null,"Amount per Form 1EBS, Lines 2(b) and 3(b)",null,"Face Value",null,"Fair Value",null,"Average YTM",null,"Average Rating",null,"Effective Duration",null,"Effective convexity"]
[]
[null,1,"U.S. Government ",null,null,null,null,null,null,null,null,null,null,null,null,null,null,null,null,null,null,null,null,null,null,null,null,null,null,null,null,null,null,null,null,"",null,"bma_SecurityUSGovernmentAmountPerForm1ALines2bAnd3b",null,"bma_SecurityUSGovernmentFaceValue",null,"bma_SecurityUSGovernmentFairValue",null,"bma_SecurityUSGovernmentAverageYTM",null,"bma_SecurityUSGovernmentAverageRating",null,"bma_SecurityUSGovernmentEffectiveDuration",null,"bma_SecurityUSGovernmentEffectiveConvexity"]
[null,null,"(a) U.S. Government Federal",null,{"$f":"Import!M6074","v":0},null,{"$f":"Import!M6092","v":0},null,{"$f":"Import!M6110","v":0},null,{"$f":"Import!M6128","v":0},null,{"$f":"Import!M6145","v":0},null,{"$f":"Import!M6162","v":0},null,{"$f":"Import!M6179","v":0},null,null,"brrt_SecurityTypeAxis_brrt_USGovernmentMember",null,null,null,null,null,null,null,null,null,null,null,null,null,null,null,"",null,"bma_SecurityNonUSGovernmentAmountPerForm1ALines2bAnd3b",null,"bma_SecurityNonUSGovernmentFaceValue",null,"bma_SecurityNonUSGovernmentFairValue",null,"bma_SecurityNonUSGovernmentAverageYTM",null,"bma_SecurityNonUSGovernmentAverageRating",null,"bma_SecurityNonUSGovernmentEffectiveDuration",null,"bma_SecurityNonUSGovernmentEffectiveConvexity"]
[null,null,"(b) U.S. Government Agency - mortgage-backed securities",null,{"$f":"Import!M6075","v":0},null,{"$f":"Import!M6093","v":0},null,{"$f":"Import!M6111","v":0},null,{"$f":"Import!M6129","v":0},null,{"$f":"Import!M6146","v":0},null,{"$f":"Import!M6163","v":0},null,{"$f":"Import!M6180","v":0},null,null,"brrt_SecurityTypeAxis_brrt_USGovernmentAgencyMortgageBackedSecuritiesMember",null,null,null,null,null,null,null,null,null,null,null,null,null,null,null,"",null,"bma_SecurityUSGovernmentAgencyMortgageBackedSecuritiesAmountPerForm1ALines2bAnd3b",null,"bma_SecurityUSGovernmentAgencyMortgageBackedSecuritiesFaceValue",null,"bma_SecurityUSGovernmentAgencyMortgageBackedSecuritiesFairValue",null,"bma_SecurityUSGovernmentAgencyMortgageBackedSecuritiesAverageYTM",null,"bma_SecurityUSGovernmentAgencyMortgageBackedSecuritiesAverageRating",null,"bma_SecurityUSGovernmentAgencyMortgageBackedSecuritiesEffectiveDuration",null,"bma_SecurityUSGovernmentAgencyMortgageBackedSecuritiesEffectiveConvexity"]
[null,null,"(c) U.S. Government Agency - other",null,{"$f":"Import!M6076","v":0},null,{"$f":"Import!M6094","v":0},null,{"$f":"Import!M6112","v":0},null,{"$f":"Import!M6130","v":0},null,{"$f":"Import!M6147","v":0},null,{"$f":"Import!M6164","v":0},null,{"$f":"Import!M6181","v":0},null,null,"brrt_SecurityTypeAxis_brrt_USGovernmentAgencyOtherMember",null,null,null,null,null,null,null,null,null,null,null,null,null,null,null,"",null,"bma_SecurityUSGovernmentAgencyOtherAmountPerForm1ALines2bAnd3b",null,"bma_SecurityUSGovernmentAgencyOtherFaceValue",null,"bma_SecurityUSGovernmentAgencyOtherFairValue",null,"bma_SecurityUSGovernmentAgencyOtherAverageYTM",null,"bma_SecurityUSGovernmentAgencyOtherAverageRating",null,"bma_SecurityUSGovernmentAgencyOtherEffectiveDuration",null,"bma_SecurityUSGovernmentAgencyOtherEffectiveConvexity"]
[null,2,"Non-U.S. Government",null,{"$f":"Import!M6077","v":0},null,{"$f":"Import!M6095","v":0},null,{"$f":"Import!M6113","v":0},null,{"$f":"Import!M6131","v":0},null,{"$f":"Import!M6148","v":0},null,{"$f":"Import!M6165","v":0},null,{"$f":"Import!M6182","v":0},null,null,"brrt_SecurityTypeAxis_brrt_NonUSGovernmentMember",null,null,null,null,null,null,null,null,null,null,null,null,null,null,null,"",null,"bma_SecurityCorporateSecuritiesAmountPerForm1ALines2bAnd3b",null,"bma_SecurityCorporateSecuritiesFaceValue",null,"bma_SecurityCorporateSecuritiesFairValue",null,"bma_SecurityCorporateSecuritiesAverageYTM",null,"bma_SecurityCorporateSecuritiesAverageRating",null,"bma_SecurityCorporateSecuritiesEffectiveDuration",null,"bma_SecurityCorporateSecuritiesEffectiveConvexity"]
[null,3,"States, Municipalities, and Political Subdivision",null,{"$f":"Import!M6078","v":0},null,{"$f":"Import!M6096","v":0},null,{"$f":"Import!M6114","v":0},null,{"$f":"Import!M6132","v":0},null,{"$f":"Import!M6149","v":0},null,{"$f":"Import!M6166","v":0},null,{"$f":"Import!M6183","v":0},null,null,"brrt_SecurityTypeAxis_brrt_StatesMunicipalitiesAndPoliticalSubdivisionMember",null,null,null,null,null,null,null,null,null,null,null,null,null,null,null,"",null,"bma_SecurityAssetBackedSecuritiesAmountPerForm1ALines2bAnd3b",null,"bma_SecurityAssetBackedSecuritiesFaceValue",null,"bma_SecurityAssetBackedSecuritiesFairValue",null,"bma_SecurityAssetBackedSecuritiesAverageYTM",null,"bma_SecurityAssetBackedSecuritiesAverageRating",null,"bma_SecurityAssetBackedSecuritiesEffectiveDuration",null,"bma_SecurityAssetBackedSecuritiesEffectiveConvexity"]
[null,4,"Corporate Securities",null,null,null,null,null,null,null,null,null,null,null,null,null,null,null,null,null,null,null,null,null,null,null,null,null,null,null,null,null,null,null,null,"",null,"bma_SecurityMortgageBackedSecuritiesAmountPerForm1ALines2bAnd3b",null,"bma_SecurityMortgageBackedSecuritiesFaceValue",null,"bma_SecurityMortgageBackedSecuritiesFairValue",null,"bma_SecurityMortgageBackedSecuritiesAverageYTM",null,"bma_SecurityMortgageBackedSecuritiesAverageRating",null,"bma_SecurityMortgageBackedSecuritiesEffectiveDuration",null,"bma_SecurityMortgageBackedSecuritiesEffectiveConvexity"]
[null,null,"(a) U.S. Government-backed Corporate",null,{"$f":"Import!M6079","v":0},null,{"$f":"Import!M6097","v":0},null,{"$f":"Import!M6115","v":0},null,{"$f":"Import!M6133","v":0},null,{"$f":"Import!M6150","v":0},null,{"$f":"Import!M6167","v":0},null,{"$f":"Import!M6184","v":0},null,null,"brrt_SecurityTypeAxis_brrt_USGovernmentBackedCorporateSecuritiesMember",null,null,null,null,null,null,null,null,null,null,null,null,null,null,null,"",null,"bma_SecurityMutualFundsAmountPerForm1ALines2bAnd3b",null,"bma_SecurityMutualFundsFaceValue",null,"bma_SecurityMutualFundsFairValue",null,"bma_SecurityMutualFundsAverageYTM",null,"bma_SecurityMutualFundsAverageRating",null,"bma_SecurityMutualFundsEffectiveDuration",null,"bma_SecurityMutualFundsEffectiveConvexity"]
[null,null,"(b) Non-U.S. Government-backed Corporate",null,{"$f":"Import!M6080","v":0},null,{"$f":"Import!M6098","v":0},null,{"$f":"Import!M6116","v":0},null,{"$f":"Import!M6134","v":0},null,{"$f":"Import!M6151","v":0},null,{"$f":"Import!M6168","v":0},null,{"$f":"Import!M6185","v":0},null,null,"brrt_SecurityTypeAxis_brrt_NonUSGovernmentBackedCorporateSecuritiesMember",null,null,null,null,null,null,null,null,null,null,null,null,null,null,null,"bma_SecurityOther1Type",null,"bma_SecurityOther1AmountPerForm1ALines2bAnd3b",null,"bma_SecurityOther1FaceValue",null,"bma_SecurityOther1FairValue",null,"bma_SecurityOther1AverageYTM",null,"bma_SecurityOther1AverageRating",null,"bma_SecurityOther1EffectiveDuration",null,"bma_SecurityOther1EffectiveConvexity"]
[null,null,"(c) FDIC Guaranteed Corporate",null,{"$f":"Import!M6081","v":0},null,{"$f":"Import!M6099","v":0},null,{"$f":"Import!M6117","v":0},null,{"$f":"Import!M6135","v":0},null,{"$f":"Import!M6152","v":0},null,{"$f":"Import!M6169","v":0},null,{"$f":"Import!M6186","v":0},null,null,"brrt_SecurityTypeAxis_brrt_FDICGuaranteedCorporateSecuritiesMember",null,null,null,null,null,null,null,null,null,null,null,null,null,null,null,"bma_SecurityOther2Type",null,"bma_SecurityOther2AmountPerForm1ALines2bAnd3b",null,"bma_SecurityOther2FaceValue",null,"bma_SecurityOther2FairValue",null,"bma_SecurityOther2AverageYTM",null,"bma_SecurityOther2AverageRating",null,"bma_SecurityOther2EffectiveDuration",null,"bma_SecurityOther2EffectiveConvexity"]
[null,null,"(d) Other Corporate",null,{"$f":"Import!M6082","v":0},null,{"$f":"Import!M6100","v":0},null,{"$f":"Import!M6118","v":0},null,{"$f":"Import!M6136","v":0},null,{"$f":"Import!M6153","v":0},null,{"$f":"Import!M6170","v":0},null,{"$f":"Import!M6187","v":0},null,null,"brrt_SecurityTypeAxis_brrt_OtherCorporateSecuritiesMember",null,null,null,null,null,null,null,null,null,null,null,null,null,null,null,"bma_SecurityOther3Type",null,"bma_SecurityOther3AmountPerForm1ALines2bAnd3b",null,"bma_SecurityOther3FaceValue",null,"bma_SecurityOther3FairValue",null,"bma_SecurityOther3AverageYTM",null,"bma_SecurityOther3AverageRating",null,"bma_SecurityOther3EffectiveDuration",null,"bma_SecurityOther3EffectiveConvexity"]
[null,5,"Asset-backed Securities",null,{"$f":"Import!M6083","v":0},null,{"$f":"Import!M6101","v":0},null,{"$f":"Import!M6119","v":0},null,{"$f":"Import!M6137","v":0},null,{"$f":"Import!M6154","v":0},null,{"$f":"Import!M6171","v":0},null,{"$f":"Import!M6188","v":0},null,null,"brrt_SecurityTypeAxis_brrt_AssetBackedSecuritiesMember",null,null,null,null,null,null,null,null,null,null,null,null,null,null,null,"bma_SecurityOther4Type",null,"bma_SecurityOther4AmountPerForm1ALines2bAnd3b",null,"bma_SecurityOther4FaceValue",null,"bma_SecurityOther4FairValue",null,"bma_SecurityOther4AverageYTM",null,"bma_SecurityOther4AverageRating",null,"bma_SecurityOther4EffectiveDuration",null,"bma_SecurityOther4EffectiveConvexity"]
[null,6,"Mortgage-backed Securities",null,null,null,null,null,null,null,null,null,null,null,null,null,null,null,null,null,null,null,null,null,null,null,null,null,null,null,null,null,null,null,null,"bma_SecurityOther5Type",null,"bma_SecurityOther5AmountPerForm1ALines2bAnd3b",null,"bma_SecurityOther5FaceValue",null,"bma_SecurityOther5FairValue",null,"bma_SecurityOther5AverageYTM",null,"bma_SecurityOther5AverageRating",null,"bma_SecurityOther5EffectiveDuration",null,"bma_SecurityOther5EffectiveConvexity"]
[null,null,"(a) Residential Subprime",null,{"$f":"Import!M6084","v":0},null,{"$f":"Import!M6102","v":0},null,{"$f":"Import!M6120","v":0},null,{"$f":"Import!M6138","v":0},null,{"$f":"Import!M6155","v":0},null,{"$f":"Import!M6172","v":0},null,{"$f":"Import!M6189","v":0},null,null,"brrt_SecurityTypeAxis_brrt_MortgageBackedSecuritiesSubprimeMember",null,null,null,null,null,null,null,null,null,null,null,null,null,null,null,"bma_SecurityOther6Type",null,"bma_SecurityOther6AmountPerForm1ALines2bAnd3b",null,"bma_SecurityOther6FaceValue",null,"bma_SecurityOther6FairValue",null,"bma_SecurityOther6AverageYTM",null,"bma_SecurityOther6AverageRating",null,"bma_SecurityOther6EffectiveDuration",null,"bma_SecurityOther6EffectiveConvexity"]
[null,null,"(b) Residential Non-subprime",null,{"$f":"Import!M6085","v":0},null,{"$f":"Import!M6103","v":0},null,{"$f":"Import!M6121","v":0},null,{"$f":"Import!M6139","v":0},null,{"$f":"Import!M6156","v":0},null,{"$f":"Import!M6173","v":0},null,{"$f":"Import!M6190","v":0},null,null,"brrt_SecurityTypeAxis_brrt_MortgageBackedSecuritiesNonSubprimeMember",null,null,null,null,null,null,null,null,null,null,null,null,null,null,null,"bma_SecurityOther7Type",null,"bma_SecurityOther7AmountPerForm1ALines2bAnd3b",null,"bma_SecurityOther7FaceValue",null,"bma_SecurityOther7FairValue",null,"bma_SecurityOther7AverageYTM",null,"bma_SecurityOther7AverageRating",null,"bma_SecurityOther7EffectiveDuration",null,"bma_SecurityOther7EffectiveConvexity"]
[null,null,"(c) Commercial",null,{"$f":"Import!M6086","v":0},null,{"$f":"Import!M6104","v":0},null,{"$f":"Import!M6122","v":0},null,{"$f":"Import!M6140","v":0},null,{"$f":"Import!M6157","v":0},null,{"$f":"Import!M6174","v":0},null,{"$f":"Import!M6191","v":0},null,null,"brrt_SecurityTypeAxis_brrt_MortgageBackedSecuritiesCommercialMember",null,null,null,null,null,null,null,null,null,null,null,null,null,null,null,"bma_SecurityOther8Type",null,"bma_SecurityOther8AmountPerForm1ALines2bAnd3b",null,"bma_SecurityOther8FaceValue",null,"bma_SecurityOther8FairValue",null,"bma_SecurityOther8AverageYTM",null,"bma_SecurityOther8AverageRating",null,"bma_SecurityOther8EffectiveDuration",null,"bma_SecurityOther8EffectiveConvexity"]
[null,7,"Mutual Funds",null,{"$f":"Import!M6087","v":0},null,{"$f":"Import!M6105","v":0},null,{"$f":"Import!M6123","v":0},null,{"$f":"Import!M6141","v":0},null,{"$f":"Import!M6158","v":0},null,{"$f":"Import!M6175","v":0},null,{"$f":"Import!M6192","v":0},null,null,"brrt_SecurityTypeAxis_brrt_MutualFundsMember",null,null,null,null,null,null,null,null,null,null,null,null,null,null,null,"bma_SecurityOther9Type",null,"bma_SecurityOther9AmountPerForm1ALines2bAnd3b",null,"bma_SecurityOther9FaceValue",null,"bma_SecurityOther9FairValue",null,"bma_SecurityOther9AverageYTM",null,"bma_SecurityOther9AverageRating",null,"bma_SecurityOther9EffectiveDuration",null,"bma_SecurityOther9EffectiveConvexity"]
[null,8,"Bank Loans",null,{"$f":"Import!M6088","v":0},null,{"$f":"Import!M6106","v":0},null,{"$f":"Import!M6124","v":0},null,{"$f":"Import!M6142","v":0},null,{"$f":"Import!M6159","v":0},null,{"$f":"Import!M6176","v":0},null,{"$f":"Import!M6193","v":0},null,null,"brrt_SecurityTypeAxis_brrt_BankLoansMember",null,null,null,null,null,null,null,null,null,null,null,null,null,null,null,"bma_SecurityOther10Type",null,"bma_SecurityOther10AmountPerForm1ALines2bAnd3b",null,"bma_SecurityOther10FaceValue",null,"bma_SecurityOther10FairValue",null,"bma_SecurityOther10AverageYTM",null,"bma_SecurityOther10AverageRating",null,"bma_SecurityOther10EffectiveDuration",null,"bma_SecurityOther10EffectiveConvexity"]
[null,9,"Catastrophe Bonds and Insurance-Linked Securities",null,{"$f":"Import!M6089","v":0},null,{"$f":"Import!M6107","v":0},null,{"$f":"Import!M6125","v":0},null,{"$f":"Import!M6143","v":0},null,{"$f":"Import!M6160","v":0},null,{"$f":"Import!M6177","v":0},null,{"$f":"Import!M6194","v":0},null,null,"brrt_SecurityTypeAxis_brrt_CatastropheBondsAndInsuranceLinkedSecuritiesMember",null,null,null,null,null,null,null,null,null,null,null,null,null,null,null,"bma_SecurityOther11Type",null,"bma_SecurityOther11AmountPerForm1ALines2bAnd3b",null,"bma_SecurityOther11FaceValue",null,"bma_SecurityOther11FairValue",null,"bma_SecurityOther11AverageYTM",null,"bma_SecurityOther11AverageRating",null,"bma_SecurityOther11EffectiveDuration",null,"bma_SecurityOther11EffectiveConvexity"]
[null,10,"Others (Briefly describe)",null,{"$f":"Import!M6090","v":0},null,{"$f":"Import!M6108","v":0},null,{"$f":"Import!M6126","v":0},null,{"$f":"Import!M6144","v":0},null,{"$f":"Import!M6161","v":0},null,{"$f":"Import!M6178","v":0},null,{"$f":"Import!M6195","v":0},null,null,"brrt_SecurityTypeAxis_brrt_OtherMember",null,null,null,null,null,null,null,null,null,null,null,null,null,null,null,"bma_SecurityOther12Type",null,"bma_SecurityOther12AmountPerForm1ALines2bAnd3b",null,"bma_SecurityOther12FaceValue",null,"bma_SecurityOther12FairValue",null,"bma_SecurityOther12AverageYTM",null,"bma_SecurityOther12AverageRating",null,"bma_SecurityOther12EffectiveDuration",null,"bma_SecurityOther12EffectiveConvexity"]
[null,null,"TOTAL PORTFOLIO",null,{"$f":"SUM(E8:E27)","v":0},null,{"$f":"SUM(G8:G27)","v":0},null,{"$f":"SUM(I8:I27)","v":0},null,null,null,null,null,null,null,null,null,null,"brrt_SecurityTypeAxis_brrt_TotalMember",null,null,null,null,null,null,null,null,null,null,null,null,null,null,null,"",null,"bma_SecurityTotalPortfolioAmountPerForm1ALines2bAnd3b",null,"bma_SecurityTotalPortfolioFaceValue",null,"bma_SecurityTotalPortfolioFairValue",null,"",null,"",null,"",null,""]
[null,null,null,null,null,null,null,null,null,null,null,null,null,null,null,null,null,null,null,"brrt_SecurityTypeOtherDescription",{"$f":"XBRLMap(C27,T29,E$42,E$43,CONFIGURATION!$B$10,\"BMA\",CONFIGURATION!$B$1,\"bscr\")","v":"Mapped"},null,null,"",null,"",null,"",null,"",null,"",null,"",null,"",null,"",null,"",null,"",null,"",null,"",null,"",null,""]
[null,null,null,null,{"$f":"IF(E31=\"TRUE\",HYPERLINK(\"#'Form 1EBS'!F13:F23\",\"TRUE\"),HYPERLINK(\"#'Form 1EBS'!F13:F23\",\"FALSE\"))","v":"TRUE"},null,null,null,null,null,null,null,null,null,null,null,null,null,null,"",null,"",null,"",null,"",null,"",null,"",null,"",null,"",null,"",null,"",null,"",null,"",null,"",null,"",null,"",null,""]
[null,null,null,null,{"$f":"IF((ROUND(E28-('Form 1EBS'!F13+'Form 1EBS'!F23),0))=0,\"TRUE\",\"FALSE\")","v":"TRUE"}]
[null,null,null,null,{"$f":"ROUND(E28-('Form 1EBS'!F13+'Form 1EBS'!F23),0)","v":0}]
[]
[null,null,null,null,{"$f":"IF(E30=\"False\",\"Does not equal Form 1EBS Lines 2(b) & 3(b)\",\"\")","v":""}]
[null,null,null,null,null,null,null,null,null,null,null,null,null,null,null,null,null,null,null,"",null,"",null,"",null,"",null,"",null,"",null,"",null,"",null,"",null,"",null,"",null,"",null,"",null,"",null,"",null,""]
[null,null,"Effective duration of the portfolio",null,{"$f":"Import!M6196","v":0},null,null,null,null,null,null,null,null,null,null,null,null,null,null,"brrt_PortfolioEffectiveDuration",null,"",null,"",null,"",null,"",null,"",null,"",null,"",null,"bma_EffectiveDurationOfThePortfolio",null,"",null,"",null,"",null,"",null,"",null,"",null,""]
[null,null,null,null,null,null,null,null,null,null,null,null,null,null,null,null,null,null,null,"",null,"",null,"",null,"",null,"",null,"",null,"",null,"",null,"",null,"",null,"",null,"",null,"",null,"",null,"",null,""]
[null,null,"Effective convexity of the portfolio",null,{"$f":"Import!M6197","v":0},null,null,null,null,null,null,null,null,null,null,null,null,null,null,"brrt_PortfolioEffectiveConvexity",null,"",null,"",null,"",null,"",null,"",null,"",null,"",null,"bma_EffectiveConvexityOfThePortfolio",null,"",null,"",null,"",null,"",null,"",null,"",null,""]
[]
[]
[null,null,null,null,"brrt_BondsAndDebentures",null,"brrt_BondsAndDebenturesFaceValue",null,"brrt_BondsAndDebenturesFairValue",null,"brrt_BondsAndDebenturesAverageYieldToMaturity",null,"brrt_BondsAndDebenturesAverageRating",null,"brrt_BondsAndDebenturesEffectiveDuration",null,"brrt_BondsAndDebenturesEffectiveConvexity"]
[null,null,{"$f":"IF($C$3=\"\",\"\",TEXT(DATE(YEAR($C$3+1)-1,MONTH($C$3+1),DAY($C$3+1)),\"mm/dd/yyyy\"))","v":"01/01/2019"},null,{"$f":"IF($C$3=\"\",\"\",TEXT(DATE(YEAR($C$3+1)-1,MONTH($C$3+1),DAY($C$3+1)),\"mm/dd/yyyy\"))","v":"01/01/2019"},null,"01/01/2019",null,"01/01/2019",null,"01/01/2019",null,"01/01/2019",null,"01/01/2019",null,"01/01/2019"]
[null,null,{"$f":"IF($C$3=\"\",\"\",TEXT($C$3,\"mm/dd/yyyy\"))","v":"12/31/2019"},null,{"$f":"IF($C$3=\"\",\"\",TEXT($C$3,\"mm/dd/yyyy\"))","v":"12/31/2019"},null,"12/31/2019",null,"12/31/2019",null,"12/31/2019",null,"12/31/2019",null,"12/31/2019",null,"12/31/2019"]
[]
[null,null,null,null,{"$f":"XBRLMap(E9,E$41&\".\"&$T9,E$42,E$43,CONFIGURATION!$B$10,\"BMA\",CONFIGURATION!$B$1,\"bscr\",CONFIGURATION!$B$12)","v":"Mapped"},null,{"$f":"XBRLMap(G9,G$41&\".\"&$T9,G$42,G$43,CONFIGURATION!$B$10,\"BMA\",CONFIGURATION!$B$1,\"bscr\",CONFIGURATION!$B$12)","v":"Mapped"},null,{"$f":"XBRLMap(I9,I$41&\".\"&$T9,I$42,I$43,CONFIGURATION!$B$10,\"BMA\",CONFIGURATION!$B$1,\"bscr\",CONFIGURATION!$B$12)","v":"Mapped"},null,{"$f":"XBRLMap(K9,K$41&\".\"&$T9,K$42,K$43,CONFIGURATION!$B$10,\"BMA\",CONFIGURATION!$B$1,\"bscr\",CONFIGURATION!$B$12)","v":"Mapped"},null,{"$f":"XBRLMap(M9,M$41&\".\"&$T9,M$42,M$43,CONFIGURATION!$B$10,\"BMA\",CONFIGURATION!$B$1,\"bscr\")","v":"Mapped"},null,{"$f":"XBRLMap(O9,O$41&\".\"&$T9,O$42,O$43,CONFIGURATION!$B$10,\"BMA\",CONFIGURATION!$B$1,\"bscr\")","v":"Mapped"},null,{"$f":"XBRLMap(Q9,Q$41&\".\"&$T9,Q$42,Q$43,CONFIGURATION!$B$10,\"BMA\",CONFIGURATION!$B$1,\"bscr\")","v":"Mapped"}]
[null,null,null,null,{"$f":"XBRLMap(E10,E$41&\".\"&$T10,E$42,E$43,CONFIGURATION!$B$10,\"BMA\",CONFIGURATION!$B$1,\"bscr\",CONFIGURATION!$B$12)","v":"Mapped"},null,{"$f":"XBRLMap(G10,G$41&\".\"&$T10,G$42,G$43,CONFIGURATION!$B$10,\"BMA\",CONFIGURATION!$B$1,\"bscr\",CONFIGURATION!$B$12)","v":"Mapped"},null,{"$f":"XBRLMap(I10,I$41&\".\"&$T10,I$42,I$43,CONFIGURATION!$B$10,\"BMA\",CONFIGURATION!$B$1,\"bscr\",CONFIGURATION!$B$12)","v":"Mapped"},null,{"$f":"XBRLMap(K10,K$41&\".\"&$T10,K$42,K$43,CONFIGURATION!$B$10,\"BMA\",CONFIGURATION!$B$1,\"bscr\",CONFIGURATION!$B$12)","v":"Mapped"},null,{"$f":"XBRLMap(M10,M$41&\".\"&$T10,M$42,M$43,CONFIGURATION!$B$10,\"BMA\",CONFIGURATION!$B$1,\"bscr\")","v":"Mapped"},null,{"$f":"XBRLMap(O10,O$41&\".\"&$T10,O$42,O$43,CONFIGURATION!$B$10,\"BMA\",CONFIGURATION!$B$1,\"bscr\")","v":"Mapped"},null,{"$f":"XBRLMap(Q10,Q$41&\".\"&$T10,Q$42,Q$43,CONFIGURATION!$B$10,\"BMA\",CONFIGURATION!$B$1,\"bscr\")","v":"Mapped"}]
[null,null,null,null,{"$f":"XBRLMap(E11,E$41&\".\"&$T11,E$42,E$43,CONFIGURATION!$B$10,\"BMA\",CONFIGURATION!$B$1,\"bscr\",CONFIGURATION!$B$12)","v":"Mapped"},null,{"$f":"XBRLMap(G11,G$41&\".\"&$T11,G$42,G$43,CONFIGURATION!$B$10,\"BMA\",CONFIGURATION!$B$1,\"bscr\",CONFIGURATION!$B$12)","v":"Mapped"},null,{"$f":"XBRLMap(I11,I$41&\".\"&$T11,I$42,I$43,CONFIGURATION!$B$10,\"BMA\",CONFIGURATION!$B$1,\"bscr\",CONFIGURATION!$B$12)","v":"Mapped"},null,{"$f":"XBRLMap(K11,K$41&\".\"&$T11,K$42,K$43,CONFIGURATION!$B$10,\"BMA\",CONFIGURATION!$B$1,\"bscr\",CONFIGURATION!$B$12)","v":"Mapped"},null,{"$f":"XBRLMap(M11,M$41&\".\"&$T11,M$42,M$43,CONFIGURATION!$B$10,\"BMA\",CONFIGURATION!$B$1,\"bscr\")","v":"Mapped"},null,{"$f":"XBRLMap(O11,O$41&\".\"&$T11,O$42,O$43,CONFIGURATION!$B$10,\"BMA\",CONFIGURATION!$B$1,\"bscr\")","v":"Mapped"},null,{"$f":"XBRLMap(Q11,Q$41&\".\"&$T11,Q$42,Q$43,CONFIGURATION!$B$10,\"BMA\",CONFIGURATION!$B$1,\"bscr\")","v":"Mapped"}]
[null,null,null,null,{"$f":"XBRLMap(E12,E$41&\".\"&$T12,E$42,E$43,CONFIGURATION!$B$10,\"BMA\",CONFIGURATION!$B$1,\"bscr\",CONFIGURATION!$B$12)","v":"Mapped"},null,{"$f":"XBRLMap(G12,G$41&\".\"&$T12,G$42,G$43,CONFIGURATION!$B$10,\"BMA\",CONFIGURATION!$B$1,\"bscr\",CONFIGURATION!$B$12)","v":"Mapped"},null,{"$f":"XBRLMap(I12,I$41&\".\"&$T12,I$42,I$43,CONFIGURATION!$B$10,\"BMA\",CONFIGURATION!$B$1,\"bscr\",CONFIGURATION!$B$12)","v":"Mapped"},null,{"$f":"XBRLMap(K12,K$41&\".\"&$T12,K$42,K$43,CONFIGURATION!$B$10,\"BMA\",CONFIGURATION!$B$1,\"bscr\",CONFIGURATION!$B$12)","v":"Mapped"},null,{"$f":"XBRLMap(M12,M$41&\".\"&$T12,M$42,M$43,CONFIGURATION!$B$10,\"BMA\",CONFIGURATION!$B$1,\"bscr\")","v":"Mapped"},null,{"$f":"XBRLMap(O12,O$41&\".\"&$T12,O$42,O$43,CONFIGURATION!$B$10,\"BMA\",CONFIGURATION!$B$1,\"bscr\")","v":"Mapped"},null,{"$f":"XBRLMap(Q12,Q$41&\".\"&$T12,Q$42,Q$43,CONFIGURATION!$B$10,\"BMA\",CONFIGURATION!$B$1,\"bscr\")","v":"Mapped"}]
[null,null,null,null,{"$f":"XBRLMap(E13,E$41&\".\"&$T13,E$42,E$43,CONFIGURATION!$B$10,\"BMA\",CONFIGURATION!$B$1,\"bscr\",CONFIGURATION!$B$12)","v":"Mapped"},null,{"$f":"XBRLMap(G13,G$41&\".\"&$T13,G$42,G$43,CONFIGURATION!$B$10,\"BMA\",CONFIGURATION!$B$1,\"bscr\",CONFIGURATION!$B$12)","v":"Mapped"},null,{"$f":"XBRLMap(I13,I$41&\".\"&$T13,I$42,I$43,CONFIGURATION!$B$10,\"BMA\",CONFIGURATION!$B$1,\"bscr\",CONFIGURATION!$B$12)","v":"Mapped"},null,{"$f":"XBRLMap(K13,K$41&\".\"&$T13,K$42,K$43,CONFIGURATION!$B$10,\"BMA\",CONFIGURATION!$B$1,\"bscr\",CONFIGURATION!$B$12)","v":"Mapped"},null,{"$f":"XBRLMap(M13,M$41&\".\"&$T13,M$42,M$43,CONFIGURATION!$B$10,\"BMA\",CONFIGURATION!$B$1,\"bscr\")","v":"Mapped"},null,{"$f":"XBRLMap(O13,O$41&\".\"&$T13,O$42,O$43,CONFIGURATION!$B$10,\"BMA\",CONFIGURATION!$B$1,\"bscr\")","v":"Mapped"},null,{"$f":"XBRLMap(Q13,Q$41&\".\"&$T13,Q$42,Q$43,CONFIGURATION!$B$10,\"BMA\",CONFIGURATION!$B$1,\"bscr\")","v":"Mapped"}]
[]
[null,null,null,null,{"$f":"XBRLMap(E15,E$41&\".\"&$T15,E$42,E$43,CONFIGURATION!$B$10,\"BMA\",CONFIGURATION!$B$1,\"bscr\",CONFIGURATION!$B$12)","v":"Mapped"},null,{"$f":"XBRLMap(G15,G$41&\".\"&$T15,G$42,G$43,CONFIGURATION!$B$10,\"BMA\",CONFIGURATION!$B$1,\"bscr\",CONFIGURATION!$B$12)","v":"Mapped"},null,{"$f":"XBRLMap(I15,I$41&\".\"&$T15,I$42,I$43,CONFIGURATION!$B$10,\"BMA\",CONFIGURATION!$B$1,\"bscr\",CONFIGURATION!$B$12)","v":"Mapped"},null,{"$f":"XBRLMap(K15,K$41&\".\"&$T15,K$42,K$43,CONFIGURATION!$B$10,\"BMA\",CONFIGURATION!$B$1,\"bscr\",CONFIGURATION!$B$12)","v":"Mapped"},null,{"$f":"XBRLMap(M15,M$41&\".\"&$T15,M$42,M$43,CONFIGURATION!$B$10,\"BMA\",CONFIGURATION!$B$1,\"bscr\")","v":"Mapped"},null,{"$f":"XBRLMap(O15,O$41&\".\"&$T15,O$42,O$43,CONFIGURATION!$B$10,\"BMA\",CONFIGURATION!$B$1,\"bscr\")","v":"Mapped"},null,{"$f":"XBRLMap(Q15,Q$41&\".\"&$T15,Q$42,Q$43,CONFIGURATION!$B$10,\"BMA\",CONFIGURATION!$B$1,\"bscr\")","v":"Mapped"}]
[null,null,null,null,{"$f":"XBRLMap(E16,E$41&\".\"&$T16,E$42,E$43,CONFIGURATION!$B$10,\"BMA\",CONFIGURATION!$B$1,\"bscr\",CONFIGURATION!$B$12)","v":"Mapped"},null,{"$f":"XBRLMap(G16,G$41&\".\"&$T16,G$42,G$43,CONFIGURATION!$B$10,\"BMA\",CONFIGURATION!$B$1,\"bscr\",CONFIGURATION!$B$12)","v":"Mapped"},null,{"$f":"XBRLMap(I16,I$41&\".\"&$T16,I$42,I$43,CONFIGURATION!$B$10,\"BMA\",CONFIGURATION!$B$1,\"bscr\",CONFIGURATION!$B$12)","v":"Mapped"},null,{"$f":"XBRLMap(K16,K$41&\".\"&$T16,K$42,K$43,CONFIGURATION!$B$10,\"BMA\",CONFIGURATION!$B$1,\"bscr\",CONFIGURATION!$B$12)","v":"Mapped"},null,{"$f":"XBRLMap(M16,M$41&\".\"&$T16,M$42,M$43,CONFIGURATION!$B$10,\"BMA\",CONFIGURATION!$B$1,\"bscr\")","v":"Mapped"},null,{"$f":"XBRLMap(O16,O$41&\".\"&$T16,O$42,O$43,CONFIGURATION!$B$10,\"BMA\",CONFIGURATION!$B$1,\"bscr\")","v":"Mapped"},null,{"$f":"XBRLMap(Q16,Q$41&\".\"&$T16,Q$42,Q$43,CONFIGURATION!$B$10,\"BMA\",CONFIGURATION!$B$1,\"bscr\")","v":"Mapped"}]
[null,null,null,null,{"$f":"XBRLMap(E17,E$41&\".\"&$T17,E$42,E$43,CONFIGURATION!$B$10,\"BMA\",CONFIGURATION!$B$1,\"bscr\",CONFIGURATION!$B$12)","v":"Mapped"},null,{"$f":"XBRLMap(G17,G$41&\".\"&$T17,G$42,G$43,CONFIGURATION!$B$10,\"BMA\",CONFIGURATION!$B$1,\"bscr\",CONFIGURATION!$B$12)","v":"Mapped"},null,{"$f":"XBRLMap(I17,I$41&\".\"&$T17,I$42,I$43,CONFIGURATION!$B$10,\"BMA\",CONFIGURATION!$B$1,\"bscr\",CONFIGURATION!$B$12)","v":"Mapped"},null,{"$f":"XBRLMap(K17,K$41&\".\"&$T17,K$42,K$43,CONFIGURATION!$B$10,\"BMA\",CONFIGURATION!$B$1,\"bscr\",CONFIGURATION!$B$12)","v":"Mapped"},null,{"$f":"XBRLMap(M17,M$41&\".\"&$T17,M$42,M$43,CONFIGURATION!$B$10,\"BMA\",CONFIGURATION!$B$1,\"bscr\")","v":"Mapped"},null,{"$f":"XBRLMap(O17,O$41&\".\"&$T17,O$42,O$43,CONFIGURATION!$B$10,\"BMA\",CONFIGURATION!$B$1,\"bscr\")","v":"Mapped"},null,{"$f":"XBRLMap(Q17,Q$41&\".\"&$T17,Q$42,Q$43,CONFIGURATION!$B$10,\"BMA\",CONFIGURATION!$B$1,\"bscr\")","v":"Mapped"}]
[null,null,null,null,{"$f":"XBRLMap(E18,E$41&\".\"&$T18,E$42,E$43,CONFIGURATION!$B$10,\"BMA\",CONFIGURATION!$B$1,\"bscr\",CONFIGURATION!$B$12)","v":"Mapped"},null,{"$f":"XBRLMap(G18,G$41&\".\"&$T18,G$42,G$43,CONFIGURATION!$B$10,\"BMA\",CONFIGURATION!$B$1,\"bscr\",CONFIGURATION!$B$12)","v":"Mapped"},null,{"$f":"XBRLMap(I18,I$41&\".\"&$T18,I$42,I$43,CONFIGURATION!$B$10,\"BMA\",CONFIGURATION!$B$1,\"bscr\",CONFIGURATION!$B$12)","v":"Mapped"},null,{"$f":"XBRLMap(K18,K$41&\".\"&$T18,K$42,K$43,CONFIGURATION!$B$10,\"BMA\",CONFIGURATION!$B$1,\"bscr\",CONFIGURATION!$B$12)","v":"Mapped"},null,{"$f":"XBRLMap(M18,M$41&\".\"&$T18,M$42,M$43,CONFIGURATION!$B$10,\"BMA\",CONFIGURATION!$B$1,\"bscr\")","v":"Mapped"},null,{"$f":"XBRLMap(O18,O$41&\".\"&$T18,O$42,O$43,CONFIGURATION!$B$10,\"BMA\",CONFIGURATION!$B$1,\"bscr\")","v":"Mapped"},null,{"$f":"XBRLMap(Q18,Q$41&\".\"&$T18,Q$42,Q$43,CONFIGURATION!$B$10,\"BMA\",CONFIGURATION!$B$1,\"bscr\")","v":"Mapped"}]
[null,null,null,null,{"$f":"XBRLMap(E19,E$41&\".\"&$T19,E$42,E$43,CONFIGURATION!$B$10,\"BMA\",CONFIGURATION!$B$1,\"bscr\",CONFIGURATION!$B$12)","v":"Mapped"},null,{"$f":"XBRLMap(G19,G$41&\".\"&$T19,G$42,G$43,CONFIGURATION!$B$10,\"BMA\",CONFIGURATION!$B$1,\"bscr\",CONFIGURATION!$B$12)","v":"Mapped"},null,{"$f":"XBRLMap(I19,I$41&\".\"&$T19,I$42,I$43,CONFIGURATION!$B$10,\"BMA\",CONFIGURATION!$B$1,\"bscr\",CONFIGURATION!$B$12)","v":"Mapped"},null,{"$f":"XBRLMap(K19,K$41&\".\"&$T19,K$42,K$43,CONFIGURATION!$B$10,\"BMA\",CONFIGURATION!$B$1,\"bscr\",CONFIGURATION!$B$12)","v":"Mapped"},null,{"$f":"XBRLMap(M19,M$41&\".\"&$T19,M$42,M$43,CONFIGURATION!$B$10,\"BMA\",CONFIGURATION!$B$1,\"bscr\")","v":"Mapped"},null,{"$f":"XBRLMap(O19,O$41&\".\"&$T19,O$42,O$43,CONFIGURATION!$B$10,\"BMA\",CONFIGURATION!$B$1,\"bscr\")","v":"Mapped"},null,{"$f":"XBRLMap(Q19,Q$41&\".\"&$T19,Q$42,Q$43,CONFIGURATION!$B$10,\"BMA\",CONFIGURATION!$B$1,\"bscr\")","v":"Mapped"}]
[]
[null,null,null,null,{"$f":"XBRLMap(E21,E$41&\".\"&$T21,E$42,E$43,CONFIGURATION!$B$10,\"BMA\",CONFIGURATION!$B$1,\"bscr\",CONFIGURATION!$B$12)","v":"Mapped"},null,{"$f":"XBRLMap(G21,G$41&\".\"&$T21,G$42,G$43,CONFIGURATION!$B$10,\"BMA\",CONFIGURATION!$B$1,\"bscr\",CONFIGURATION!$B$12)","v":"Mapped"},null,{"$f":"XBRLMap(I21,I$41&\".\"&$T21,I$42,I$43,CONFIGURATION!$B$10,\"BMA\",CONFIGURATION!$B$1,\"bscr\",CONFIGURATION!$B$12)","v":"Mapped"},null,{"$f":"XBRLMap(K21,K$41&\".\"&$T21,K$42,K$43,CONFIGURATION!$B$10,\"BMA\",CONFIGURATION!$B$1,\"bscr\",CONFIGURATION!$B$12)","v":"Mapped"},null,{"$f":"XBRLMap(M21,M$41&\".\"&$T21,M$42,M$43,CONFIGURATION!$B$10,\"BMA\",CONFIGURATION!$B$1,\"bscr\")","v":"Mapped"},null,{"$f":"XBRLMap(O21,O$41&\".\"&$T21,O$42,O$43,CONFIGURATION!$B$10,\"BMA\",CONFIGURATION!$B$1,\"bscr\")","v":"Mapped"},null,{"$f":"XBRLMap(Q21,Q$41&\".\"&$T21,Q$42,Q$43,CONFIGURATION!$B$10,\"BMA\",CONFIGURATION!$B$1,\"bscr\")","v":"Mapped"}]
[null,null,null,null,{"$f":"XBRLMap(E22,E$41&\".\"&$T22,E$42,E$43,CONFIGURATION!$B$10,\"BMA\",CONFIGURATION!$B$1,\"bscr\",CONFIGURATION!$B$12)","v":"Mapped"},null,{"$f":"XBRLMap(G22,G$41&\".\"&$T22,G$42,G$43,CONFIGURATION!$B$10,\"BMA\",CONFIGURATION!$B$1,\"bscr\",CONFIGURATION!$B$12)","v":"Mapped"},null,{"$f":"XBRLMap(I22,I$41&\".\"&$T22,I$42,I$43,CONFIGURATION!$B$10,\"BMA\",CONFIGURATION!$B$1,\"bscr\",CONFIGURATION!$B$12)","v":"Mapped"},null,{"$f":"XBRLMap(K22,K$41&\".\"&$T22,K$42,K$43,CONFIGURATION!$B$10,\"BMA\",CONFIGURATION!$B$1,\"bscr\",CONFIGURATION!$B$12)","v":"Mapped"},null,{"$f":"XBRLMap(M22,M$41&\".\"&$T22,M$42,M$43,CONFIGURATION!$B$10,\"BMA\",CONFIGURATION!$B$1,\"bscr\")","v":"Mapped"},null,{"$f":"XBRLMap(O22,O$41&\".\"&$T22,O$42,O$43,CONFIGURATION!$B$10,\"BMA\",CONFIGURATION!$B$1,\"bscr\")","v":"Mapped"},null,{"$f":"XBRLMap(Q22,Q$41&\".\"&$T22,Q$42,Q$43,CONFIGURATION!$B$10,\"BMA\",CONFIGURATION!$B$1,\"bscr\")","v":"Mapped"}]
[null,null,null,null,{"$f":"XBRLMap(E23,E$41&\".\"&$T23,E$42,E$43,CONFIGURATION!$B$10,\"BMA\",CONFIGURATION!$B$1,\"bscr\",CONFIGURATION!$B$12)","v":"Mapped"},null,{"$f":"XBRLMap(G23,G$41&\".\"&$T23,G$42,G$43,CONFIGURATION!$B$10,\"BMA\",CONFIGURATION!$B$1,\"bscr\",CONFIGURATION!$B$12)","v":"Mapped"},null,{"$f":"XBRLMap(I23,I$41&\".\"&$T23,I$42,I$43,CONFIGURATION!$B$10,\"BMA\",CONFIGURATION!$B$1,\"bscr\",CONFIGURATION!$B$12)","v":"Mapped"},null,{"$f":"XBRLMap(K23,K$41&\".\"&$T23,K$42,K$43,CONFIGURATION!$B$10,\"BMA\",CONFIGURATION!$B$1,\"bscr\",CONFIGURATION!$B$12)","v":"Mapped"},null,{"$f":"XBRLMap(M23,M$41&\".\"&$T23,M$42,M$43,CONFIGURATION!$B$10,\"BMA\",CONFIGURATION!$B$1,\"bscr\")","v":"Mapped"},null,{"$f":"XBRLMap(O23,O$41&\".\"&$T23,O$42,O$43,CONFIGURATION!$B$10,\"BMA\",CONFIGURATION!$B$1,\"bscr\")","v":"Mapped"},null,{"$f":"XBRLMap(Q23,Q$41&\".\"&$T23,Q$42,Q$43,CONFIGURATION!$B$10,\"BMA\",CONFIGURATION!$B$1,\"bscr\")","v":"Mapped"}]
[null,null,null,null,{"$f":"XBRLMap(E24,E$41&\".\"&$T24,E$42,E$43,CONFIGURATION!$B$10,\"BMA\",CONFIGURATION!$B$1,\"bscr\",CONFIGURATION!$B$12)","v":"Mapped"},null,{"$f":"XBRLMap(G24,G$41&\".\"&$T24,G$42,G$43,CONFIGURATION!$B$10,\"BMA\",CONFIGURATION!$B$1,\"bscr\",CONFIGURATION!$B$12)","v":"Mapped"},null,{"$f":"XBRLMap(I24,I$41&\".\"&$T24,I$42,I$43,CONFIGURATION!$B$10,\"BMA\",CONFIGURATION!$B$1,\"bscr\",CONFIGURATION!$B$12)","v":"Mapped"},null,{"$f":"XBRLMap(K24,K$41&\".\"&$T24,K$42,K$43,CONFIGURATION!$B$10,\"BMA\",CONFIGURATION!$B$1,\"bscr\",CONFIGURATION!$B$12)","v":"Mapped"},null,{"$f":"XBRLMap(M24,M$41&\".\"&$T24,M$42,M$43,CONFIGURATION!$B$10,\"BMA\",CONFIGURATION!$B$1,\"bscr\")","v":"Mapped"},null,{"$f":"XBRLMap(O24,O$41&\".\"&$T24,O$42,O$43,CONFIGURATION!$B$10,\"BMA\",CONFIGURATION!$B$1,\"bscr\")","v":"Mapped"},null,{"$f":"XBRLMap(Q24,Q$41&\".\"&$T24,Q$42,Q$43,CONFIGURATION!$B$10,\"BMA\",CONFIGURATION!$B$1,\"bscr\")","v":"Mapped"}]
[null,null,null,null,{"$f":"XBRLMap(E25,E$41&\".\"&$T25,E$42,E$43,CONFIGURATION!$B$10,\"BMA\",CONFIGURATION!$B$1,\"bscr\",CONFIGURATION!$B$12)","v":"Mapped"},null,{"$f":"XBRLMap(G25,G$41&\".\"&$T25,G$42,G$43,CONFIGURATION!$B$10,\"BMA\",CONFIGURATION!$B$1,\"bscr\",CONFIGURATION!$B$12)","v":"Mapped"},null,{"$f":"XBRLMap(I25,I$41&\".\"&$T25,I$42,I$43,CONFIGURATION!$B$10,\"BMA\",CONFIGURATION!$B$1,\"bscr\",CONFIGURATION!$B$12)","v":"Mapped"},null,{"$f":"XBRLMap(K25,K$41&\".\"&$T25,K$42,K$43,CONFIGURATION!$B$10,\"BMA\",CONFIGURATION!$B$1,\"bscr\",CONFIGURATION!$B$12)","v":"Mapped"},null,{"$f":"XBRLMap(M25,M$41&\".\"&$T25,M$42,M$43,CONFIGURATION!$B$10,\"BMA\",CONFIGURATION!$B$1,\"bscr\")","v":"Mapped"},null,{"$f":"XBRLMap(O25,O$41&\".\"&$T25,O$42,O$43,CONFIGURATION!$B$10,\"BMA\",CONFIGURATION!$B$1,\"bscr\")","v":"Mapped"},null,{"$f":"XBRLMap(Q25,Q$41&\".\"&$T25,Q$42,Q$43,CONFIGURATION!$B$10,\"BMA\",CONFIGURATION!$B$1,\"bscr\")","v":"Mapped"}]
[null,null,null,null,{"$f":"XBRLMap(E26,E$41&\".\"&$T26,E$42,E$43,CONFIGURATION!$B$10,\"BMA\",CONFIGURATION!$B$1,\"bscr\",CONFIGURATION!$B$12)","v":"Mapped"},null,{"$f":"XBRLMap(G26,G$41&\".\"&$T26,G$42,G$43,CONFIGURATION!$B$10,\"BMA\",CONFIGURATION!$B$1,\"bscr\",CONFIGURATION!$B$12)","v":"Mapped"},null,{"$f":"XBRLMap(I26,I$41&\".\"&$T26,I$42,I$43,CONFIGURATION!$B$10,\"BMA\",CONFIGURATION!$B$1,\"bscr\",CONFIGURATION!$B$12)","v":"Mapped"},null,{"$f":"XBRLMap(K26,K$41&\".\"&$T26,K$42,K$43,CONFIGURATION!$B$10,\"BMA\",CONFIGURATION!$B$1,\"bscr\",CONFIGURATION!$B$12)","v":"Mapped"},null,{"$f":"XBRLMap(M26,M$41&\".\"&$T26,M$42,M$43,CONFIGURATION!$B$10,\"BMA\",CONFIGURATION!$B$1,\"bscr\")","v":"Mapped"},null,{"$f":"XBRLMap(O26,O$41&\".\"&$T26,O$42,O$43,CONFIGURATION!$B$10,\"BMA\",CONFIGURATION!$B$1,\"bscr\")","v":"Mapped"},null,{"$f":"XBRLMap(Q26,Q$41&\".\"&$T26,Q$42,Q$43,CONFIGURATION!$B$10,\"BMA\",CONFIGURATION!$B$1,\"bscr\")","v":"Mapped"}]
[null,null,null,null,{"$f":"XBRLMap(E27,E$41&\".\"&$T27,E$42,E$43,CONFIGURATION!$B$10,\"BMA\",CONFIGURATION!$B$1,\"bscr\",CONFIGURATION!$B$12)","v":"Mapped"},null,{"$f":"XBRLMap(G27,G$41&\".\"&$T27,G$42,G$43,CONFIGURATION!$B$10,\"BMA\",CONFIGURATION!$B$1,\"bscr\",CONFIGURATION!$B$12)","v":"Mapped"},null,{"$f":"XBRLMap(I27,I$41&\".\"&$T27,I$42,I$43,CONFIGURATION!$B$10,\"BMA\",CONFIGURATION!$B$1,\"bscr\",CONFIGURATION!$B$12)","v":"Mapped"},null,{"$f":"XBRLMap(K27,K$41&\".\"&$T27,K$42,K$43,CONFIGURATION!$B$10,\"BMA\",CONFIGURATION!$B$1,\"bscr\",CONFIGURATION!$B$12)","v":"Mapped"},null,{"$f":"XBRLMap(M27,M$41&\".\"&$T27,M$42,M$43,CONFIGURATION!$B$10,\"BMA\",CONFIGURATION!$B$1,\"bscr\")","v":"Mapped"},null,{"$f":"XBRLMap(O27,O$41&\".\"&$T27,O$42,O$43,CONFIGURATION!$B$10,\"BMA\",CONFIGURATION!$B$1,\"bscr\")","v":"Mapped"},null,{"$f":"XBRLMap(Q27,Q$41&\".\"&$T27,Q$42,Q$43,CONFIGURATION!$B$10,\"BMA\",CONFIGURATION!$B$1,\"bscr\")","v":"Mapped"}]
[null,null,null,null,{"$f":"XBRLMap(E28,E$41&\".\"&$T28,E$42,E$43,CONFIGURATION!$B$10,\"BMA\",CONFIGURATION!$B$1,\"bscr\",CONFIGURATION!$B$12)","v":"Mapped"},null,{"$f":"XBRLMap(G28,G$41&\".\"&$T28,G$42,G$43,CONFIGURATION!$B$10,\"BMA\",CONFIGURATION!$B$1,\"bscr\",CONFIGURATION!$B$12)","v":"Mapped"},null,{"$f":"XBRLMap(I28,I$41&\".\"&$T28,I$42,I$43,CONFIGURATION!$B$10,\"BMA\",CONFIGURATION!$B$1,\"bscr\",CONFIGURATION!$B$12)","v":"Mapped"}]
[]
[]
[]
[null,null,{"$f":"XBRLMap(E36,T36,C$42,C$43,CONFIGURATION!$B$10,\"BMA\",CONFIGURATION!$B$1,\"bscr\")","v":"Mapped"}]
[]
[null,null,{"$f":"XBRLMap(E38,T38,C$42,C$43,CONFIGURATION!$B$10,\"BMA\",CONFIGURATION!$B$1,\"bscr\")","v":"Mapped"}]

{"sheet":"Schedule IX(a)","index":49,"n_rows":121,"n_cols":27,"rows_kept":121,"cut":false,"hidden":false,"merged":[[104,1,104,3],[2,1,2,3],[3,1,3,2],[29,1,29,6],[70,1,70,4],[31,1,31,6],[35,1,35,6],[16,1,16,2],[84,1,84,3],[0,1,0,5],[69,1,69,5],[80,1,80,6],[72,1,72,6],[76,1,76,6]]}
[null,"SCHEDULE OF COMMERCIAL INSURER'S SOLVENCY SELF ASSESSMENT (CISSA) CAPITAL SUMMARY (TABLE 8)",null,null,null,null,{"$f":"HYPERLINK(\"#'Index'!A1\",\"Return to Index\")","v":"Return to Index"},null,null,null,null,null,null,null,{"$f":"IF($B$3=\"\",\"\",TEXT(DATE(YEAR($B$3+1)-1,MONTH($B$3+1),DAY($B$3+1)),\"mm/dd/yyyy\"))","v":"01/01/2019"}]
[null,{"$f":"'Company Information'!C7","v":"Enter Company Name"},null,null,null,null,null,null,null,null,null,null,null,null,{"$f":"IF(B3=\"\",\"\",TEXT(B3,\"mm/dd/yyyy\"))","v":"12/31/2019"}]
[null,{"$f":"'Form 1EBS'!C3","v":"2019-12-31"},null,null,null,null,"SCHEDULE IX(a)"]
[null,{"$f":"\"expressed in\"& IF(CONFIGURATION!$B$12>1,\" ['\"&MID(CONFIGURATION!$B$12,2,LEN(CONFIGURATION!$B$12))&\"s]\",\"\")","v":"expressed in ['000s]"},null,{"$f":"'Form 1EBS'!C4","v":"United States Dollars"},null,null,null,null,null,null,""]
[null,null,null,null,null,null,null,null,null,null,""]
[null,"Note: Documents supporting the CISSA filling should be retained for such period as specified in the [Rules]",null,null,null,null,null,null,null,null,""]
[null,null,null,null,null,null,null,null,null,null,""]
[null,"Risk Categories",null,null,"a) CISSA capital",null,"b) Regulatory capital "]
[null,null,null,null,null,null,null,null,null,null,""]
[null,{"$f":"IF('Company Information'!$F$11=\"Class 3A\",\"Underwriting Risk\",\"Premium risk\")","v":"Premium risk"},null,null,{"$f":"Import!M6199","v":0},null,{"$f":"IF('Company Information'!$F$11=\"Class 3A\",SUM('CSP (Revised)'!L672:L674),'CSP (Revised)'!L672)","v":0},null,null,null,"brrt_RiskCategoryAxis_brrt_PremiumRiskMember",{"$f":"XBRLMap(E10,E$90&\".\"&K10,$O$1,#REF!,CONFIGURATION!$B$10,\"BMA\",CONFIGURATION!$B$1,\"bscr\",CONFIGURATION!$B$12)","v":{"$error":"#VALUE!"}},{"$f":"XBRLMap(G10,G$90&\".\"&K10,$O$1,#REF!,CONFIGURATION!$B$10,\"BMA\",CONFIGURATION!$B$1,\"bscr\",CONFIGURATION!$B$12)","v":{"$error":"#VALUE!"}},null,null,null,null,null,null,null,null,null,null,null,null,"SSA_PremiumRiskssaCapital","SSA_PremiumRiskbscrOrCapitalFromApprovedInternalModelAt990PercentTvar"]
[null,"Reserve risk",null,null,{"$f":"Import!M6200","v":0},null,{"$f":"IF('Company Information'!$F$11=\"Class 3A\",0,'CSP (Revised)'!L673)","v":0},null,null,null,"brrt_RiskCategoryAxis_brrt_ReserveRiskMember",{"$f":"XBRLMap(E11,E$90&\".\"&K11,$O$1,#REF!,CONFIGURATION!$B$10,\"BMA\",CONFIGURATION!$B$1,\"bscr\",CONFIGURATION!$B$12)","v":{"$error":"#VALUE!"}},{"$f":"XBRLMap(G11,G$90&\".\"&K11,$O$1,#REF!,CONFIGURATION!$B$10,\"BMA\",CONFIGURATION!$B$1,\"bscr\",CONFIGURATION!$B$12)","v":{"$error":"#VALUE!"}},null,null,null,null,null,null,null,null,null,null,null,null,"SSA_ReserveRiskssaCapital","SSA_ReserveRiskbscrOrCapitalFromApprovedInternalModelAt990PercentTvar"]
[null,"Catastrophe risk",null,null,{"$f":"Import!M6201","v":0},null,{"$f":"IF('Company Information'!$F$11=\"Class 3A\",0,'CSP (Revised)'!L674)","v":0},null,null,null,"brrt_RiskCategoryAxis_brrt_CatastropheRiskMember",{"$f":"XBRLMap(E12,E$90&\".\"&K12,$O$1,#REF!,CONFIGURATION!$B$10,\"BMA\",CONFIGURATION!$B$1,\"bscr\",CONFIGURATION!$B$12)","v":{"$error":"#VALUE!"}},{"$f":"XBRLMap(G12,G$90&\".\"&K12,$O$1,#REF!,CONFIGURATION!$B$10,\"BMA\",CONFIGURATION!$B$1,\"bscr\",CONFIGURATION!$B$12)","v":{"$error":"#VALUE!"}},null,null,null,null,null,null,null,null,null,null,null,null,"SSA_CatastropheRiskssaCapital","SSA_CatastropheRiskbscrOrCapitalFromApprovedInternalModelAt990PercentTvar"]
[null,"Market risk",null,null,{"$f":"Import!M6202","v":0},null,{"$f":"'CSP (Revised)'!K666+'CSP (Revised)'!K667+'CSP (Revised)'!K669","v":0},null,null,null,"brrt_RiskCategoryAxis_brrt_MarketRiskMember",{"$f":"XBRLMap(E13,E$90&\".\"&K13,$O$1,#REF!,CONFIGURATION!$B$10,\"BMA\",CONFIGURATION!$B$1,\"bscr\",CONFIGURATION!$B$12)","v":{"$error":"#VALUE!"}},{"$f":"XBRLMap(G13,G$90&\".\"&K13,$O$1,#REF!,CONFIGURATION!$B$10,\"BMA\",CONFIGURATION!$B$1,\"bscr\",CONFIGURATION!$B$12)","v":{"$error":"#VALUE!"}},null,null,null,null,null,null,null,null,null,null,null,null,"SSA_MarketRiskssaCapital","SSA_MarketRiskbscrOrCapitalFromApprovedInternalModelAt990PercentTvar"]
[null,"Credit risk",null,null,{"$f":"Import!M6203","v":0},null,{"$f":"'CSP (Revised)'!L671","v":0},null,null,null,"brrt_RiskCategoryAxis_brrt_CreditRiskMember",{"$f":"XBRLMap(E14,E$90&\".\"&K14,$O$1,#REF!,CONFIGURATION!$B$10,\"BMA\",CONFIGURATION!$B$1,\"bscr\",CONFIGURATION!$B$12)","v":{"$error":"#VALUE!"}},{"$f":"XBRLMap(G14,G$90&\".\"&K14,$O$1,#REF!,CONFIGURATION!$B$10,\"BMA\",CONFIGURATION!$B$1,\"bscr\",CONFIGURATION!$B$12)","v":{"$error":"#VALUE!"}},null,null,null,null,null,null,null,null,null,null,null,null,"SSA_CreditRiskssaCapital","SSA_CreditRiskbscrOrCapitalFromApprovedInternalModelAt990PercentTvar"]
[null,"Liquidity risk",null,null,{"$f":"Import!M6204","v":0},null,{"$f":"'CSP (Revised)'!K668","v":0},null,null,null,"brrt_RiskCategoryAxis_brrt_LiquidityRiskMember",{"$f":"XBRLMap(E15,E$90&\".\"&K15,$O$1,#REF!,CONFIGURATION!$B$10,\"BMA\",CONFIGURATION!$B$1,\"bscr\",CONFIGURATION!$B$12)","v":{"$error":"#VALUE!"}},{"$f":"XBRLMap(G15,G$90&\".\"&K15,$O$1,#REF!,CONFIGURATION!$B$10,\"BMA\",CONFIGURATION!$B$1,\"bscr\",CONFIGURATION!$B$12)","v":{"$error":"#VALUE!"}},null,null,null,null,null,null,null,null,null,null,null,null,"SSA_LiquidityRiskssaCapital","SSA_LiquidityRiskbscrOrCapitalFromApprovedInternalModelAt990PercentTvar"]
[null,"Group, Concentration, Reputational and Strategic risk",null,null,{"$f":"Import!M6205","v":0},null,{"$f":"'CSP (Revised)'!K670","v":0},null,null,null,"brrt_RiskCategoryAxis_brrt_GroupConcentrationReputationAndStrategicRiskMember",{"$f":"XBRLMap(E16,E$90&\".\"&K16,$O$1,#REF!,CONFIGURATION!$B$10,\"BMA\",CONFIGURATION!$B$1,\"bscr\",CONFIGURATION!$B$12)","v":{"$error":"#VALUE!"}},{"$f":"XBRLMap(G16,G$90&\".\"&K16,$O$1,#REF!,CONFIGURATION!$B$10,\"BMA\",CONFIGURATION!$B$1,\"bscr\",CONFIGURATION!$B$12)","v":{"$error":"#VALUE!"}},null,null,null,null,null,null,null,null,null,null,null,null,"SSA_GroupReputationalAndStrategicRiskssaCapital","SSA_GroupReputationalAndStrategicRiskbscrOrCapitalFromApprovedInternalModelAt990PercentTvar"]
[null,"Other (specify)",null,null,{"$f":"Import!M6206","v":0},null,0,null,null,null,"brrt_RiskCategoryAxis_brrt_OtherMember",{"$f":"XBRLMap(E17,E$90&\".\"&K17,$O$1,#REF!,CONFIGURATION!$B$10,\"BMA\",CONFIGURATION!$B$1,\"bscr\",CONFIGURATION!$B$12)","v":{"$error":"#VALUE!"}},{"$f":"XBRLMap(G17,G$90&\".\"&K17,$O$1,#REF!,CONFIGURATION!$B$10,\"BMA\",CONFIGURATION!$B$1,\"bscr\",CONFIGURATION!$B$12)","v":{"$error":"#VALUE!"}},null,null,null,null,null,null,null,null,null,null,null,null,"SSA_OtherValuessaCapital","SSA_OtherValuebscrOrCapitalFromApprovedInternalModelAt990PercentTvar"]
[null,null,null,null,null,null,null,null,null,null,"brrt_RiskCategoryOtherDescription",{"$f":"XBRLMap(B17,K18,$O$1,#REF!,CONFIGURATION!$B$10,\"BMA\",CONFIGURATION!$B$1,\"bscr\")","v":{"$error":"#VALUE!"}},null,null,null,null,null,null,null,null,null,null,null,null,null,"SSA_OtherLabel"]
[null,"Total capital pre-diversification between risk categories",null,null,{"$f":"SUM(E10:E17)","v":0},null,{"$f":"SUM(G10:G17)","v":0},null,null,null,"brrt_RiskCategoryAxis_brrt_TotalCapitalPrediversificationBetweenRiskCategoriesMember",{"$f":"XBRLMap(E19,E$90&\".\"&K19,$O$1,#REF!,CONFIGURATION!$B$10,\"BMA\",CONFIGURATION!$B$1,\"bscr\",CONFIGURATION!$B$12)","v":{"$error":"#VALUE!"}},{"$f":"XBRLMap(G19,G$90&\".\"&K19,$O$1,#REF!,CONFIGURATION!$B$10,\"BMA\",CONFIGURATION!$B$1,\"bscr\",CONFIGURATION!$B$12)","v":{"$error":"#VALUE!"}},null,null,null,null,null,null,null,null,null,null,null,null,"SSA_TotalCapitalPrediversificationBetweenRiskCategoriesssaCapital","SSA_TotalCapitalPrediversificationBetweenRiskCategoriesbscrOrCapitalFromApprovedInternalModelAt990PercentTvar"]
[null,null,null,null,null,null,null,null,null,null,"",null,null,null,null,null,null,null,null,null,null,null,null,null,null,""]
[null,"Diversification credit between risk categories",null,null,{"$f":"Import!M6208","v":0},null,{"$f":"G19-G23","v":0},null,null,null,"brrt_RiskCategoryAxis_brrt_DiversificationCreditBetweenRiskCategoriesMember",{"$f":"XBRLMap(E21,E$90&\".\"&K21,$O$1,#REF!,CONFIGURATION!$B$10,\"BMA\",CONFIGURATION!$B$1,\"bscr\",CONFIGURATION!$B$12)","v":{"$error":"#VALUE!"}},{"$f":"XBRLMap(G21,G$90&\".\"&K21,$O$1,#REF!,CONFIGURATION!$B$10,\"BMA\",CONFIGURATION!$B$1,\"bscr\",CONFIGURATION!$B$12)","v":{"$error":"#VALUE!"}},null,null,null,null,null,null,null,null,null,null,null,null,"SSA_DiversificationCreditBetweenRiskCategoriesssaCapital","SSA_DiversificationCreditBetweenRiskCategoriesbscrOrCapitalFromApprovedInternalModelAt990PercentTvar"]
[null,null,null,null,null,null,null,null,null,null,"",null,null,null,null,null,null,null,null,null,null,null,null,null,null,""]
[null,"Total capital after diversification between risk catagories before operational risk",null,null,{"$f":"E19-E21","v":0},null,{"$f":"Summary!N85-Summary!N75","v":0},null,null,null,"brrt_RiskCategoryAxis_brrt_TotalCapitalAfterDiversificationBeforeOperationalRiskMember",{"$f":"XBRLMap(E23,E$90&\".\"&K23,$O$1,#REF!,CONFIGURATION!$B$10,\"BMA\",CONFIGURATION!$B$1,\"bscr\",CONFIGURATION!$B$12)","v":{"$error":"#VALUE!"}},{"$f":"XBRLMap(G23,G$90&\".\"&K23,$O$1,#REF!,CONFIGURATION!$B$10,\"BMA\",CONFIGURATION!$B$1,\"bscr\",CONFIGURATION!$B$12)","v":{"$error":"#VALUE!"}}]
[null,null,null,null,null,null,null,null,null,null,""]
[null,"Operational risk",null,null,{"$f":"Import!M6210","v":0},null,{"$f":"Summary!N75","v":0},null,null,null,"brrt_RiskCategoryAxis_brrt_OperationalRiskMember",{"$f":"XBRLMap(E25,E$90&\".\"&K25,$O$1,#REF!,CONFIGURATION!$B$10,\"BMA\",CONFIGURATION!$B$1,\"bscr\",CONFIGURATION!$B$12)","v":{"$error":"#VALUE!"}},{"$f":"XBRLMap(G25,G$90&\".\"&K25,$O$1,#REF!,CONFIGURATION!$B$10,\"BMA\",CONFIGURATION!$B$1,\"bscr\",CONFIGURATION!$B$12)","v":{"$error":"#VALUE!"}}]
[null,null,null,null,null,null,null,null,null,null,""]
[null,"Total capital after diversification and operational risk",null,null,{"$f":"E23+E25","v":0},null,{"$f":"G23+G25","v":0},null,null,null,"brrt_RiskCategoryAxis_brrt_TotalMember",{"$f":"XBRLMap(E27,E$90&\".\"&K27,$O$1,#REF!,CONFIGURATION!$B$10,\"BMA\",CONFIGURATION!$B$1,\"bscr\",CONFIGURATION!$B$12)","v":{"$error":"#VALUE!"}},{"$f":"XBRLMap(G27,G$90&\".\"&K27,$O$1,#REF!,CONFIGURATION!$B$10,\"BMA\",CONFIGURATION!$B$1,\"bscr\",CONFIGURATION!$B$12)","v":{"$error":"#VALUE!"}}]
[null,null,null,null,null,null,null,null,null,null,"",null,null,null,null,null,null,null,null,null,null,null,null,null,null,""]
[null,"Where:",null,null,null,null,null,null,null,null,"",null,null,null,null,null,null,null,null,null,null,null,null,null,null,""]
["a)","CISSA capital is the amount of capital the insurer has determined that it requires to achieve its strategic goals upon undertaking an assessment of all material (reasonably foreseeable) risks arising from its operations or operating environment; and",null,null,null,null,null,null,null,null,"",null,null,null,null,null,null,null,null,null,null,null,null,null,null,""]
[null,null,null,null,null,null,null,null,null,null,"",null,null,null,null,null,null,null,null,null,null,null,null,null,null,""]
["b)","Regulatory capital is determined by the BSCR or an approved internal capital model at 99.0% Tail Value-at-Risk (TVaR) over a one year time horizon. ",null,null,null,null,null,null,null,null,"",null,null,null,null,null,null,null,null,null,null,null,null,null,null,""]
[null,null,null,null,null,null,null,null,null,null,"",null,null,null,null,null,null,null,null,null,null,null,null,null,null,""]
[null,"ADDITIONAL INFORMATION"]
[]
[null,"The insurer should review the following statements and select from the drop-down list as applicable and/or provide a brief description or an attachment.  Where an attachment is provided, include references (e.g. page number, paragraph number) of where the information is located in the comments box in the attachments tab."]
[]
[1,"What is the primary reason(s) (select multiple responses where applicable) for aiming at the disclosed  CISSA Capital amount? (select all that apply by choosing Yes/No )"]
[]
[null,{"$f":"Import!E6212","v":"Select Yes/No"}," Target agency rating (e.g. \"A-\", \"AA\", etc) ",null,null,null,null,null,null,null,"brrt_PrimaryReasonForAimingAtTheDisclosedCISSACapitalAmountIsTargetAgencyRatingAMinusAA",{"$f":"XBRLMapBoolean(B40,K40,$O$1,#REF!,CONFIGURATION!$B$10,\"BMA\",CONFIGURATION!$B$1,\"bscr\",IF(B40=\"Yes\",\"1\",\"0\"))","v":{"$error":"#VALUE!"}},null,null,null,null,null,null,null,null,null,null,null,null,null,"SSA_PrimaryReasonForAimingAtDisclosedSsaCapitalAmountIsTargetAgencyRatingegaaaEtc"]
[null,{"$f":"Import!E6213","v":"Select Yes/No"}," Market share ",null,null,null,null,null,null,null,"brrt_PrimaryReasonForAimingAtTheDisclosedCISSACapitalAmountIsMarketShare",{"$f":"XBRLMapBoolean(B41,K41,$O$1,#REF!,CONFIGURATION!$B$10,\"BMA\",CONFIGURATION!$B$1,\"bscr\",IF(B41=\"Yes\",\"1\",\"0\"))","v":{"$error":"#VALUE!"}},null,null,null,null,null,null,null,null,null,null,null,null,null,"SSA_PrimaryReasonForAimingAtDisclosedSsaCapitalAmountIsMarketShare"]
[null,{"$f":"Import!E6214","v":"Select Yes/No"}," Business expansion ",null,null,null,null,null,null,null,"brrt_PrimaryReasonForAimingAtTheDisclosedCISSACapitalAmountIsBusinessExpansion",{"$f":"XBRLMapBoolean(B42,K42,$O$1,#REF!,CONFIGURATION!$B$10,\"BMA\",CONFIGURATION!$B$1,\"bscr\",IF(B42=\"Yes\",\"1\",\"0\"))","v":{"$error":"#VALUE!"}},null,null,null,null,null,null,null,null,null,null,null,null,null,"SSA_PrimaryReasonForAimingAtDisclosedSsaCapitalAmountIsBusinessExpansion"]
[null,{"$f":"Import!E6215","v":"Select Yes/No"}," Nature of product(s) (e.g. risk characteristics) ",null,null,null,null,null,null,null,"brrt_PrimaryReasonForAimingAtTheDisclosedCISSACapitalAmountIsNatureOfProductsRiskCharacteristics",{"$f":"XBRLMapBoolean(B43,K43,$O$1,#REF!,CONFIGURATION!$B$10,\"BMA\",CONFIGURATION!$B$1,\"bscr\",IF(B43=\"Yes\",\"1\",\"0\"))","v":{"$error":"#VALUE!"}},null,null,null,null,null,null,null,null,null,null,null,null,null,"SSA_PrimaryReasonForAimingAtDisclosedSsaCapitalAmountIsNatureOfProductsegRiskCharacteristics"]
[null,{"$f":"Import!E6216","v":"Select Yes/No"}," Manage downgrade risk",null,null,null,null,null,null,null,"brrt_PrimaryReasonForAimingAtTheDisclosedCISSACapitalAmountIsManageDowngradeRisk",{"$f":"XBRLMapBoolean(B44,K44,$O$1,#REF!,CONFIGURATION!$B$10,\"BMA\",CONFIGURATION!$B$1,\"bscr\",IF(B44=\"Yes\",\"1\",\"0\"))","v":{"$error":"#VALUE!"}},null,null,null,null,null,null,null,null,null,null,null,null,null,"SSA_PrimaryReasonForAimingAtDisclosedSsaCapitalAmountIsManageDowngradeRisk"]
[null,{"$f":"Import!E6217","v":"Select Yes/No"}," Regulatory capital requirements",null,null,null,null,null,null,null,"brrt_PrimaryReasonForAimingAtTheDisclosedCISSACapitalAmountIsRegulatoryCapitalRequirements",{"$f":"XBRLMapBoolean(B45,K45,$O$1,#REF!,CONFIGURATION!$B$10,\"BMA\",CONFIGURATION!$B$1,\"bscr\",IF(B45=\"Yes\",\"1\",\"0\"))","v":{"$error":"#VALUE!"}}]
[null,{"$f":"Import!E6218","v":"Select Yes/No"}," Others ",{"$f":"Import!E6219","v":0},null,null,null,null,null,null,"brrt_PrimaryReasonForAimingAtTheDisclosedCISSACapitalAmountIsOther",{"$f":"XBRLMapBoolean(B46,K46,$O$1,#REF!,CONFIGURATION!$B$10,\"BMA\",CONFIGURATION!$B$1,\"bscr\",IF(B46=\"Yes\",\"1\",\"0\"))","v":{"$error":"#VALUE!"}},null,null,null,null,null,null,null,null,null,null,null,null,null,"SSA_OtherReasonForAimingAtDisclosedProjectedTargetEconomicCapitalAmount"]
[null,null,null,null,null,null,null,null,null,null,"brrt_PrimaryReasonForAimingAtTheDisclosedCISSACapitalAmountIsOtherDescription",{"$f":"XBRLMap(D46,K47,$O$1,#REF!,CONFIGURATION!$B$10,\"BMA\",CONFIGURATION!$B$1,\"bscr\")","v":{"$error":"#VALUE!"}},null,null,null,null,null,null,null,null,null,null,null,null,null,""]
[2,"What methodology is used to aggregate the risk categories in deriving the CISSA capital? (select all that apply by choosing Yes/No)"]
[null,null,null,null,null,null,null,null,null,null,""]
[null,{"$f":"Import!E6220","v":"Select Yes/No"}," Correlation matrix",null,null,null,null,null,null,null,"brrt_MethodologyUsedToAggregateTheRiskCategoriesInDerivingTheCISSACapitalIsCorrelationMatrix",{"$f":"XBRLMapBoolean(B50,K50,$O$1,#REF!,CONFIGURATION!$B$10,\"BMA\",CONFIGURATION!$B$1,\"bscr\",IF(B50=\"Yes\",\"1\",\"0\"))","v":{"$error":"#VALUE!"}}]
[null,{"$f":"Import!E6221","v":"Select Yes/No"}," Linear correlations",null,null,null,null,null,null,null,"brrt_MethodologyUsedToAggregateTheRiskCategoriesInDerivingTheCISSACapitalIsLinearCorrelations",{"$f":"XBRLMapBoolean(B51,K51,$O$1,#REF!,CONFIGURATION!$B$10,\"BMA\",CONFIGURATION!$B$1,\"bscr\",IF(B51=\"Yes\",\"1\",\"0\"))","v":{"$error":"#VALUE!"}}]
[null,{"$f":"Import!E6222","v":"Select Yes/No"}," T copulas",null,null,null,null,null,null,null,"brrt_MethodologyUsedToAggregateTheRiskCategoriesInDerivingTheCISSACapitalIsTCopulas",{"$f":"XBRLMapBoolean(B52,K52,$O$1,#REF!,CONFIGURATION!$B$10,\"BMA\",CONFIGURATION!$B$1,\"bscr\",IF(B52=\"Yes\",\"1\",\"0\"))","v":{"$error":"#VALUE!"}}]
[null,{"$f":"Import!E6223","v":"Select Yes/No"}," Gumbel copulas",null,null,null,null,null,null,null,"brrt_MethodologyUsedToAggregateTheRiskCategoriesInDerivingTheCISSACapitalIsGumbelCopulas",{"$f":"XBRLMapBoolean(B53,K53,$O$1,#REF!,CONFIGURATION!$B$10,\"BMA\",CONFIGURATION!$B$1,\"bscr\",IF(B53=\"Yes\",\"1\",\"0\"))","v":{"$error":"#VALUE!"}}]
[null,{"$f":"Import!E6224","v":"Select Yes/No"}," Clayton copulas",null,null,null,null,null,null,null,"brrt_MethodologyUsedToAggregateTheRiskCategoriesInDerivingTheCISSACapitalIsClaytonCopulas",{"$f":"XBRLMapBoolean(B54,K54,$O$1,#REF!,CONFIGURATION!$B$10,\"BMA\",CONFIGURATION!$B$1,\"bscr\",IF(B54=\"Yes\",\"1\",\"0\"))","v":{"$error":"#VALUE!"}}]
[null,{"$f":"Import!E6225","v":"Select Yes/No"}," Causal drivers approach e.g. inflation, cycles",null,null,null,null,null,null,null,"brrt_MethodologyUsedToAggregateTheRiskCategoriesInDerivingTheCISSACapitalIsCausalDriversApproachInflationCycles",{"$f":"XBRLMapBoolean(B55,K55,$O$1,#REF!,CONFIGURATION!$B$10,\"BMA\",CONFIGURATION!$B$1,\"bscr\",IF(B55=\"Yes\",\"1\",\"0\"))","v":{"$error":"#VALUE!"}}]
[null,{"$f":"Import!E6226","v":"Select Yes/No"}," Others",{"$f":"Import!E6227","v":0},null,null,null,null,null,null,"brrt_MethodologyUsedToAggregateTheRiskCategoriesInDerivingTheCISSACapitalIsOthers",{"$f":"XBRLMapBoolean(B56,K56,$O$1,#REF!,CONFIGURATION!$B$10,\"BMA\",CONFIGURATION!$B$1,\"bscr\",IF(B56=\"Yes\",\"1\",\"0\"))","v":{"$error":"#VALUE!"}}]
[null,null,null,null,null,null,null,null,null,null,"brrt_MethodologyUsedToAggregateTheRiskCategoriesInDerivingTheCISSACapitalIsOthersDescription",{"$f":"XBRLMap(D56,K57,$O$1,#REF!,CONFIGURATION!$B$10,\"BMA\",CONFIGURATION!$B$1,\"bscr\")","v":{"$error":"#VALUE!"}},null,null,null,null,null,null,null,null,null,null,null,null,null,""]
[3,"What contingency plans are in place for raising additional capital under stress situations? (select all that apply by choosing Yes/No)",null,null,null,null,null,null,null,null,"",null,null,null,null,null,null,null,null,null,null,null,null,null,null,""]
[null,null,null,null,null,null,null,null,null,null,"",null,null,null,null,null,null,null,null,null,null,null,null,null,null,""]
[null,{"$f":"Import!E6228","v":"Select Yes/No"}," Parental guarantees",null,null,null,null,null,null,null,"brrt_ContingencyPlansInPlaceForRaisingAdditionalCapitalUnderStressSituationsIsParentalGuarantees",{"$f":"XBRLMapBoolean(B60,K60,$O$1,#REF!,CONFIGURATION!$B$10,\"BMA\",CONFIGURATION!$B$1,\"bscr\",IF(B60=\"Yes\",\"1\",\"0\"))","v":{"$error":"#VALUE!"}},null,null,null,null,null,null,null,null,null,null,null,null,null,"SSA_ParentalGuaranteesAreInPlaceForRaisingAdditionalCapitalUnderStressSituations"]
[null,{"$f":"Import!E6229","v":"Select Yes/No"}," Revolving letters of credit",null,null,null,null,null,null,null,"brrt_ContingencyPlansInPlaceForRaisingAdditionalCapitalUnderStressSituationsIsRevolvingLettersOfCredit",{"$f":"XBRLMapBoolean(B61,K61,$O$1,#REF!,CONFIGURATION!$B$10,\"BMA\",CONFIGURATION!$B$1,\"bscr\",IF(B61=\"Yes\",\"1\",\"0\"))","v":{"$error":"#VALUE!"}},null,null,null,null,null,null,null,null,null,null,null,null,null,"SSA_RevolvingLettersOfCreditAreInPlaceForRaisingAdditionalCapitalUnderStressSituations"]
[null,{"$f":"Import!E6230","v":"Select Yes/No"}," Issue subordinated debt",null,null,null,null,null,null,null,"brrt_ContingencyPlansInPlaceForRaisingAdditionalCapitalUnderStressSituationsIsIssueSubordinatedDebt",{"$f":"XBRLMapBoolean(B62,K62,$O$1,#REF!,CONFIGURATION!$B$10,\"BMA\",CONFIGURATION!$B$1,\"bscr\",IF(B62=\"Yes\",\"1\",\"0\"))","v":{"$error":"#VALUE!"}},null,null,null,null,null,null,null,null,null,null,null,null,null,"SSA_IssueSubordinatedDebtAreInPlaceForRaisingAdditionalCapitalUnderStressSituations"]
[null,{"$f":"Import!E6231","v":"Select Yes/No"}," Issue preference shares",null,null,null,null,null,null,null,"brrt_ContingencyPlansInPlaceForRaisingAdditionalCapitalUnderStressSituationsIsIssuePreferenceShares",{"$f":"XBRLMapBoolean(B63,K63,$O$1,#REF!,CONFIGURATION!$B$10,\"BMA\",CONFIGURATION!$B$1,\"bscr\",IF(B63=\"Yes\",\"1\",\"0\"))","v":{"$error":"#VALUE!"}},null,null,null,null,null,null,null,null,null,null,null,null,null,"SSA_IssuePreferenceSharesAreInPlaceForRaisingAdditionalCapitalUnderStressSituations"]
[null,{"$f":"Import!E6232","v":"Select Yes/No"}," Float additional shares",null,null,null,null,null,null,null,"brrt_ContingencyPlansInPlaceForRaisingAdditionalCapitalUnderStressSituationsIsFloatAdditionalShares",{"$f":"XBRLMapBoolean(B64,K64,$O$1,#REF!,CONFIGURATION!$B$10,\"BMA\",CONFIGURATION!$B$1,\"bscr\",IF(B64=\"Yes\",\"1\",\"0\"))","v":{"$error":"#VALUE!"}},null,null,null,null,null,null,null,null,null,null,null,null,null,"SSA_FloatAdditionalSharesAreInPlaceForRaisingAdditionalCapitalUnderStressSituations"]
[null,{"$f":"Import!E6233","v":"Select Yes/No"}," Capital injections from parent",null,null,null,null,null,null,null,"brrt_ContingencyPlansInPlaceForRaisingAdditionalCapitalUnderStressSituationsIsCapitalInjectionsFromParent",{"$f":"XBRLMapBoolean(B65,K65,$O$1,#REF!,CONFIGURATION!$B$10,\"BMA\",CONFIGURATION!$B$1,\"bscr\",IF(B65=\"Yes\",\"1\",\"0\"))","v":{"$error":"#VALUE!"}},null,null,null,null,null,null,null,null,null,null,null,null,null,"SSA_CapitalInjectionsFromParentAreInPlaceForRaisingAdditionalCapitalUnderStressSituations"]
[null,{"$f":"Import!E6234","v":"Select Yes/No"}," Contingent surplus notes",null,null,null,null,null,null,null,"brrt_ContingencyPlansInPlaceForRaisingAdditionalCapitalUnderStressSituationsIsContingentSurplusNotes",{"$f":"XBRLMapBoolean(B66,K66,$O$1,#REF!,CONFIGURATION!$B$10,\"BMA\",CONFIGURATION!$B$1,\"bscr\",IF(B66=\"Yes\",\"1\",\"0\"))","v":{"$error":"#VALUE!"}},null,null,null,null,null,null,null,null,null,null,null,null,null,"SSA_ContingentSurplusNotesAreInPlaceForRaisingAdditionalCapitalUnderStressSituations"]
[null,{"$f":"Import!E6235","v":"Select Yes/No"}," Catastrophe derivatives (e.g. bonds, swaps and options)",null,null,null,null,null,null,null,"brrt_ContingencyPlansInPlaceForRaisingAdditionalCapitalUnderStressSituationsIsCatastropheDerivativesBondsSwapsAndOptions",{"$f":"XBRLMapBoolean(B67,K67,$O$1,#REF!,CONFIGURATION!$B$10,\"BMA\",CONFIGURATION!$B$1,\"bscr\",IF(B67=\"Yes\",\"1\",\"0\"))","v":{"$error":"#VALUE!"}},null,null,null,null,null,null,null,null,null,null,null,null,null,"SSA_CatastropheDerivativesegBondsSwapsAndOptionsAreInPlaceForRaisingAdditionalCapitalUnderStressSituations"]
[null,{"$f":"Import!E6236","v":"Select Yes/No"}," Others ",{"$f":"Import!E6237","v":0},null,null,null,null,null,null,"brrt_ContingencyPlansInPlaceForRaisingAdditionalCapitalUnderStressSituationsIsOther",{"$f":"XBRLMapBoolean(B68,K68,$O$1,#REF!,CONFIGURATION!$B$10,\"BMA\",CONFIGURATION!$B$1,\"bscr\",IF(B68=\"Yes\",\"1\",\"0\"))","v":{"$error":"#VALUE!"}},null,null,null,null,null,null,null,null,null,null,null,null,null,"SSA_OthersAreInPlaceForRaisingAdditionalCapitalUnderStressSituations"]
[null,null,null,null,null,null,null,null,null,null,"brrt_ContingencyPlansInPlaceForRaisingAdditionalCapitalUnderStressSituationsIsOtherDescription",{"$f":"XBRLMap(D68,K69,$O$1,#REF!,CONFIGURATION!$B$10,\"BMA\",CONFIGURATION!$B$1,\"bscr\")","v":{"$error":"#VALUE!"}},null,null,null,null,null,null,null,null,null,null,null,null,null,""]
[4,"Does the insurer have arrangements/ contractual commitments to provide support including forward purchase, arrangements or guarantees to affiliates/other ",null,null,null,null,{"$f":"Import!E6238","v":"Select Yes/No"},null,null,null,"brrt_InsureHasArrangementsContractualCommitmentsToProvideSupportToAffiliatesOtherCompaniesInStressedSituations",{"$f":"XBRLMapBoolean(G70,K70,$O$1,#REF!,CONFIGURATION!$B$10,\"BMA\",CONFIGURATION!$B$1,\"bscr\",IF(G70=\"Yes\",\"1\",\"0\"))","v":{"$error":"#VALUE!"}},null,null,null,null,null,null,null,null,null,null,null,null,null,"SSA_CompanyHasArrangementsContractualCommitmentsToProvideSupportToAffiliatesotherCompaniesInStressedSituations"]
[null,"companies in stressed situations? (Yes or No)"]
[null,"If yes, briefly describe the arrangement(s) and the aggregate exposure.",null,null,null,null,null,null,null,null,""]
[null,{"$f":"Import!E6239","v":0},null,null,null,null,null,null,null,null,"brrt_ArrangementsContractualCommitmentsToProvideSupportToAffiliatesOtherCompaniesInStressedSituationsDescription",{"$f":"XBRLMap(B73,K73,$O$1,#REF!,CONFIGURATION!$B$10,\"BMA\",CONFIGURATION!$B$1,\"bscr\")","v":{"$error":"#VALUE!"}},null,null,null,null,null,null,null,null,null,null,null,null,null,"SSA_DescriptionOfArrangementsAndAggregateExposure"]
[null,null,null,null,null,null,null,null,null,null,""]
[5,"Has the insurer down streamed debt to establish equity positions (participations), or engaged in double or multiple gearing? (Yes or No)",null,null,null,null,{"$f":"Import!E6240","v":"Select Yes/No"},null,null,null,"brrt_InsurerDownstreamedDebtToEstablishEquityPositionsParticipationsOrEngagedInDoubleOrMultipleGearing",{"$f":"XBRLMapBoolean(G75,K75,$O$1,#REF!,CONFIGURATION!$B$10,\"BMA\",CONFIGURATION!$B$1,\"bscr\",IF(G75=\"Yes\",\"1\",\"0\"))","v":{"$error":"#VALUE!"}},null,null,null,null,null,null,null,null,null,null,null,null,null,"SSA_CompanyHasEngagedInDoubleOrMultipleGearing"]
[null,"If yes, provide details and amount of capital .",null,null,null,null,null,null,null,null,"",null,null,null,null,null,null,null,null,null,null,null,null,null,null,""]
[null,{"$f":"Import!E6241","v":0},null,null,null,null,null,null,null,null,"brrt_InsurerDownstreamedDebtToEstablishEquityPositionsParticipationsOrEngagedInDoubleOrMultipleGearingDescriptionAndAmount",{"$f":"XBRLMap(B77,K77,$O$1,#REF!,CONFIGURATION!$B$10,\"BMA\",CONFIGURATION!$B$1,\"bscr\")","v":{"$error":"#VALUE!"}},null,null,null,null,null,null,null,null,null,null,null,null,null,"SSA_DetailsAndAmountOfCapitalOfDoubleOrMultipleGearing"]
[]
[6,"Has debt been down streamed to establish equity positions in the insurer, or is the insurer using capital that is double or multiple geared? (Yes or No)",null,null,null,null,{"$f":"Import!E6242","v":"Select Yes/No"},null,null,"","brrt_DebtBeenDownstreamedToEstablishEquityPositionsInsurerOrIsInsurerUsingCapitalThatisDoubleOrMultipleGeared",{"$f":"XBRLMapBoolean(G79,K79,$O$1,#REF!,CONFIGURATION!$B$10,\"BMA\",CONFIGURATION!$B$1,\"bscr\",IF(G79=\"Yes\",\"1\",\"0\"))","v":{"$error":"#VALUE!"}}]
[null,"If yes, provide details and amount of capital."]
[null,{"$f":"Import!E6243","v":0},null,null,null,null,null,null,null,null,"brrt_DebtBeenDownstreamedToEstablishEquityPositionsInsurerOrIsInsurerUsingCapitalThatisDoubleOrMultipleGearedDescriptionAndAmount",{"$f":"XBRLMap(B81,K81,$O$1,#REF!,CONFIGURATION!$B$10,\"BMA\",CONFIGURATION!$B$1,\"bscr\")","v":{"$error":"#VALUE!"}}]
[]
[7,"Are there any assets of a subsidiary of the insurer that are restricted for use that cannot be transferred to another subsidiary or the insurer, that were not included in ",null,null,null,null,{"$f":"Import!E6244","v":"Select Yes/No"},null,null,null,"brrt_AssetsOfSubsidiaryOfInsurerRestrictedForUseReportedInScheduleOfEligibleCapital",{"$f":"XBRLMapBoolean(G83,K83,$O$1,#REF!,CONFIGURATION!$B$10,\"BMA\",CONFIGURATION!$B$1,\"bscr\",IF(G83=\"Yes\",\"1\",\"0\"))","v":{"$error":"#VALUE!"}}]
[null,"the encumbered assets (both for policyholder obligations and not for policyholder obligations) reported in the Schedule of Eligible Capital? (Yes or No)"]
[null,{"$f":"HYPERLINK(\"#'Attachments'!G115\",\"Provide details in the CISSA Attachments section if there are any restrictions of movement of assets/payment of dividends:\")","v":"Provide details in the CISSA Attachments section if there are any restrictions of movement of assets/payment of dividends:"}]
[null,null,null,null,null,"Total restricted assets",{"$f":"Import!E6245","v":0},null,null,null,"brrt_AssetsOfSubsidiaryOfInsurerRestrictedForUseReportedInScheduleOfEligibleCapitalTotalRestrictedAssets",{"$f":"XBRLMap(G86,K86,$O$1,#REF!,CONFIGURATION!$B$10,\"BMA\",CONFIGURATION!$B$1,\"bscr\",CONFIGURATION!$B$12)","v":{"$error":"#VALUE!"}}]
[null,null,null,null,null,"Less: Regulatory capital requirements for members for which the assets pertain",{"$f":"Import!E6246","v":0},null,null,null,"brrt_AssetsOfSubsidiaryOfInsurerRestrictedForUseReportedInScheduleOfEligibleCapitalLessRegulatoryCapitalRequirements",{"$f":"XBRLMap(G87,K87,$O$1,#REF!,CONFIGURATION!$B$10,\"BMA\",CONFIGURATION!$B$1,\"bscr\",CONFIGURATION!$B$12)","v":{"$error":"#VALUE!"}}]
[null,null,null,null,null,"Restricted assets in excess of capital requirements to the extent that these amounts are not included in "]
[null,null,null,null,null,"the encumbered assets reported in the Eligible Capital Schedule",{"$f":"G86-G87","v":0},null,null,null,"brrt_AssetsOfSubsidiaryOfInsurerRestrictedForUseReportedInScheduleOfEligibleCapitalRestrictedAssetsInExcessOfCapitalRequirements",{"$f":"XBRLMap(G89,K89,$O$1,#REF!,CONFIGURATION!$B$10,\"BMA\",CONFIGURATION!$B$1,\"bscr\",CONFIGURATION!$B$12)","v":{"$error":"#VALUE!"}}]
[null,null,null,null,"brrt_CommercialInsurersSolvencySelfAssessmentCapital",null,"brrt_RegulatoryCapital"]
[null,null,null,"Yes"]
[null,null,null,"No","Contingency plans for additional capital",null,null,null,null,null,""]
[]
[null,null,null,null,"Parental guarantees"]
[null,null,null,null,"revolving letters of credit"]
[null,null,null,null,"Contingent capital arrangements"]
[null,null,null,null,"Issue subordinated debt"]
[null,null,null,null,"Issue preference shares"]
[null,null,null,null,"Float additional shares"]
[null,null,null,null,"Capital injections from parent"]
[]
[]
[null,null,null,null,"Correlation matrix "]
[null,null,null,null,"Linear correlations"]
[null,null,null,null,"T copulas"]
[null,null,null,null,"Gumbel copulas"]
[null,null,null,null,"Clayton copulas"]
[null,null,null,null,"Causal drivers approach e.g. inflation, cycles"]
[null,null,null,null,"Other"]
[]
[]
[null,null,null,null,"Not applicable"]
[]
[]
[]
[]
[]
[]
[]
[null,null,null,null,"Yes"]
[null,null,null,null,"No"]

{"sheet":"Schedule IX(b)","index":50,"n_rows":100,"n_cols":19,"rows_kept":100,"cut":false,"hidden":false,"merged":[[68,1,68,5],[10,1,10,4],[11,1,11,4],[12,1,12,4],[13,1,13,4],[25,1,25,4],[26,2,26,4],[19,1,19,4],[20,1,20,4],[21,1,21,4],[22,1,22,4],[23,1,23,4],[24,1,24,4],[31,1,31,3],[32,1,32,3],[33,2,33,3],[0,1,0,3],[2,1,2,2],[58,1,58,4],[6,1,6,3],[42,1,42,3],[43,1,43,3],[44,1,44,3],[53,1,53,3],[57,1,57,5],[54,1,54,3],[45,1,45,3],[46,1,46,3],[47,1,47,3],[48,1,48,3],[49,1,49,3],[60,1,60,4],[62,1,62,3],[64,1,64,4],[18,1,18,4],[4,1,4,5],[14,1,14,4],[15,1,15,4],[16,1,16,4],[17,1,17,4]]}
[null,"SCHEDULE OF COMMERCIAL INSURER'S SOLVENCY SELF ASSESSMENT (CISSA) GENERAL QUESTIONS (TABLE 8A)",null,null,null,null,null,{"$f":"HYPERLINK(\"#'Index'!A1\",\"Return to Index\")","v":"Return to Index"},null,null,null,null,null,null,null,null,{"$f":"IF($B$3=\"\",\"\",TEXT(DATE(YEAR($B$3+1)-1,MONTH($B$3+1),DAY($B$3+1)),\"mm/dd/yyyy\"))","v":"01/01/2019"}]
[null,{"$f":"'Company Information'!C7","v":"Enter Company Name"},null,null,null,null,null,null,null,null,"",null,null,null,null,null,{"$f":"IF(B3=\"\",\"\",TEXT(B3,\"mm/dd/yyyy\"))","v":"12/31/2019"}]
[null,{"$f":"'Form 1EBS'!C3","v":"2019-12-31"},null,null,null,null,null,"SCHEDULE IX(b)",null,null,""]
[null,null,null,null,null,null,null,null,null,null,""]
[null,"The insurer should review the following statements and select from the drop-down list as applicable and/or provide a brief description or an attachment. Where an attachment is provided, include references (e.g. page number, paragraph number) of where the information is located within the attachment.",null,null,null,null,null,null,null,null,""]
[]
[1,"Is the CISSA and its underlying information integrated (i.e. considered when making key strategic decisions) into  the insurer's strategic and risk management decision-making processes? (Yes or No)",null,null,null,{"$f":"Import!E6249","v":"Select Yes/No"},null,null,null,null,"brrt_CISSAAndItsUnderlyingInformationIsIntegratedConsideredWhenMakingKeyStrategicDecisionsIntoTheInsurersStrategicAndRiskManagementDecisionMakingProcess",{"$f":"XBRLMapBoolean(F7,K7,$Q$1,#REF!,CONFIGURATION!$B$10,\"BMA\",CONFIGURATION!$B$1,\"bscr\",IF(F7=\"Yes\",\"1\",\"0\"))","v":{"$error":"#VALUE!"}},null,null,null,null,null,null,"SSA_SsaAndItsUnderlyingInformationIsIntegratedIntoCompanyStrategicAndRiskManagementDecisionmakingProcesses"]
[null,null,null,null,null,null,null,null,null,null,"",null,null,null,null,null,null,null,""]
[null,"If Yes, how is CISSA and its underlying information used? (select all that apply by choosing Yes/No )",null,null,null,null,null,null,null,null,"",null,null,null,null,null,null,null,""]
[null,null,null,null,null,null,null,null,null,null,""]
[null,"Strategic planning",null,null,null,{"$f":"Import!E6250","v":"Select Yes/No"},null,null,null,null,"brrt_CISSAAndItsUnderlyingInformationIsUsedForStrategicPlanning",{"$f":"XBRLMapBoolean(F11,K11,$Q$1,#REF!,CONFIGURATION!$B$10,\"BMA\",CONFIGURATION!$B$1,\"bscr\",IF(F11=\"Yes\",\"1\",\"0\"))","v":{"$error":"#VALUE!"}},null,null,null,null,null,null,"SSA_SsaAndItsUnderlyingInformationIsUsedForStrategicPlanning"]
[null,"Annual business planning",null,null,null,{"$f":"Import!E6251","v":"Select Yes/No"},null,null,null,null,"brrt_CISSAAndItsUnderlyingInformationIsUsedForAnnualBusinessPlanning",{"$f":"XBRLMapBoolean(F12,K12,$Q$1,#REF!,CONFIGURATION!$B$10,\"BMA\",CONFIGURATION!$B$1,\"bscr\",IF(F12=\"Yes\",\"1\",\"0\"))","v":{"$error":"#VALUE!"}},null,null,null,null,null,null,"SSA_SsaAndItsUnderlyingInformationIsUsedForAnnualBusinessPlanning"]
[null,"Setting risk limits",null,null,null,{"$f":"Import!E6252","v":"Select Yes/No"},null,null,null,null,"brrt_CISSAAndItsUnderlyingInformationIsUsedForSettingRiskLimits",{"$f":"XBRLMapBoolean(F13,K13,$Q$1,#REF!,CONFIGURATION!$B$10,\"BMA\",CONFIGURATION!$B$1,\"bscr\",IF(F13=\"Yes\",\"1\",\"0\"))","v":{"$error":"#VALUE!"}},null,null,null,null,null,null,"SSA_SsaAndItsUnderlyingInformationIsUsedForSettingRiskLimits"]
[null,"Defining risk appetite",null,null,null,{"$f":"Import!E6253","v":"Select Yes/No"},null,null,null,null,"brrt_CISSAAndItsUnderlyingInformationIsUsedForDefiningRiskAppetite",{"$f":"XBRLMapBoolean(F14,K14,$Q$1,#REF!,CONFIGURATION!$B$10,\"BMA\",CONFIGURATION!$B$1,\"bscr\",IF(F14=\"Yes\",\"1\",\"0\"))","v":{"$error":"#VALUE!"}},null,null,null,null,null,null,"SSA_SsaAndItsUnderlyingInformationIsUsedForDefiningRiskAppetite"]
[null,"Evaluation of capital adequacy",null,null,null,{"$f":"Import!E6254","v":"Select Yes/No"},null,null,null,null,"brrt_CISSAAndItsUnderlyingInformationIsUsedForEvaluationOfCapitalAdequacy",{"$f":"XBRLMapBoolean(F15,K15,$Q$1,#REF!,CONFIGURATION!$B$10,\"BMA\",CONFIGURATION!$B$1,\"bscr\",IF(F15=\"Yes\",\"1\",\"0\"))","v":{"$error":"#VALUE!"}},null,null,null,null,null,null,"SSA_SsaAndItsUnderlyingInformationIsUsedForEvaluationOfCapitalAdequacy"]
[null,"Allocation of capital to business segments and lines of business",null,null,null,{"$f":"Import!E6255","v":"Select Yes/No"},null,null,null,null,"brrt_CISSAAndItsUnderlyingInformationIsUsedForAllocationOfCapitalToBusinessSegmentsAndLinesOfBusiness",{"$f":"XBRLMapBoolean(F16,K16,$Q$1,#REF!,CONFIGURATION!$B$10,\"BMA\",CONFIGURATION!$B$1,\"bscr\",IF(F16=\"Yes\",\"1\",\"0\"))","v":{"$error":"#VALUE!"}},null,null,null,null,null,null,"SSA_SsaAndItsUnderlyingInformationIsUsedForAllocationOfCapitalToBusinessSegmentsAndLinesOfBusiness"]
[null,"Capital management",null,null,null,{"$f":"Import!E6256","v":"Select Yes/No"},null,null,null,null,"brrt_CISSAAndItsUnderlyingInformationIsUsedForCapitalManagement",{"$f":"XBRLMapBoolean(F17,K17,$Q$1,#REF!,CONFIGURATION!$B$10,\"BMA\",CONFIGURATION!$B$1,\"bscr\",IF(F17=\"Yes\",\"1\",\"0\"))","v":{"$error":"#VALUE!"}},null,null,null,null,null,null,"SSA_SsaAndItsUnderlyingInformationIsUsedForCapitalManagement"]
[null,"Determination of rates of return for pricing and underwriting guidelines",null,null,null,{"$f":"Import!E6257","v":"Select Yes/No"},null,null,null,null,"brrt_CISSAAndItsUnderlyingInformationIsUsedForDeterminationOfRatesOfReturnForPricingAndUnderwritingGuidelines",{"$f":"XBRLMapBoolean(F18,K18,$Q$1,#REF!,CONFIGURATION!$B$10,\"BMA\",CONFIGURATION!$B$1,\"bscr\",IF(F18=\"Yes\",\"1\",\"0\"))","v":{"$error":"#VALUE!"}},null,null,null,null,null,null,"SSA_SsaAndItsUnderlyingInformationIsUsedForDeterminationOfRatesOfReturnForPricingAndUnderwritingGuidelines"]
[null,"Reinsurance purchase",null,null,null,{"$f":"Import!E6258","v":"Select Yes/No"},null,null,null,null,"brrt_CISSAAndItsUnderlyingInformationIsUsedForReinsurancePurchase",{"$f":"XBRLMapBoolean(F19,K19,$Q$1,#REF!,CONFIGURATION!$B$10,\"BMA\",CONFIGURATION!$B$1,\"bscr\",IF(F19=\"Yes\",\"1\",\"0\"))","v":{"$error":"#VALUE!"}},null,null,null,null,null,null,"SSA_SsaAndItsUnderlyingInformationIsUsedForReinsurancePurchase"]
[null,"Determination of investment policies and strategies",null,null,null,{"$f":"Import!E6259","v":"Select Yes/No"},null,null,null,null,"brrt_CISSAAndItsUnderlyingInformationIsUsedForDeterminationOfInvestmentPoliciesAndStrategies",{"$f":"XBRLMapBoolean(F20,K20,$Q$1,#REF!,CONFIGURATION!$B$10,\"BMA\",CONFIGURATION!$B$1,\"bscr\",IF(F20=\"Yes\",\"1\",\"0\"))","v":{"$error":"#VALUE!"}},null,null,null,null,null,null,"SSA_SsaAndItsUnderlyingInformationIsUsedForDeterminationOfInvestmentPoliciesAndStrategies"]
[null,"Meeting regulatory requirements",null,null,null,{"$f":"Import!E6260","v":"Select Yes/No"},null,null,null,null,"brrt_CISSAAndItsUnderlyingInformationIsUsedForMeetingRegulatoryRequirements",{"$f":"XBRLMapBoolean(F21,K21,$Q$1,#REF!,CONFIGURATION!$B$10,\"BMA\",CONFIGURATION!$B$1,\"bscr\",IF(F21=\"Yes\",\"1\",\"0\"))","v":{"$error":"#VALUE!"}},null,null,null,null,null,null,"SSA_SsaAndItsUnderlyingInformationIsUsedForMeetingRegulatoryRequirements"]
[null,"Improving credit rating",null,null,null,{"$f":"Import!E6261","v":"Select Yes/No"},null,null,null,null,"brrt_CISSAAndItsUnderlyingInformationIsUsedForImprovingCreditRating",{"$f":"XBRLMapBoolean(F22,K22,$Q$1,#REF!,CONFIGURATION!$B$10,\"BMA\",CONFIGURATION!$B$1,\"bscr\",IF(F22=\"Yes\",\"1\",\"0\"))","v":{"$error":"#VALUE!"}},null,null,null,null,null,null,"SSA_SsaAndItsUnderlyingInformationIsUsedForImprovingCreditRating"]
[null,"Improving investor relations",null,null,null,{"$f":"Import!E6262","v":"Select Yes/No"},null,null,null,null,"brrt_CISSAAndItsUnderlyingInformationIsUsedForImprovingInvestorRelations",{"$f":"XBRLMapBoolean(F23,K23,$Q$1,#REF!,CONFIGURATION!$B$10,\"BMA\",CONFIGURATION!$B$1,\"bscr\",IF(F23=\"Yes\",\"1\",\"0\"))","v":{"$error":"#VALUE!"}},null,null,null,null,null,null,"SSA_SsaAndItsUnderlyingInformationIsUsedForImprovingInvestorRelations"]
[null,"Assessing risk adjusted product profitability",null,null,null,{"$f":"Import!E6263","v":"Select Yes/No"},null,null,null,null,"brrt_CISSAAndItsUnderlyingInformationIsUsedForAssessingRiskAdjustedProductProfitability",{"$f":"XBRLMapBoolean(F24,K24,$Q$1,#REF!,CONFIGURATION!$B$10,\"BMA\",CONFIGURATION!$B$1,\"bscr\",IF(F24=\"Yes\",\"1\",\"0\"))","v":{"$error":"#VALUE!"}},null,null,null,null,null,null,"SSA_SsaAndItsUnderlyingInformationIsUsedForAssessingRiskAdjustedProductProfitability"]
[null,"Performance measurement and assessment",null,null,null,{"$f":"Import!E6264","v":"Select Yes/No"},null,null,null,null,"brrt_CISSAAndItsUnderlyingInformationIsUsedForPerformanceMeasurementAndAssessment",{"$f":"XBRLMapBoolean(F25,K25,$Q$1,#REF!,CONFIGURATION!$B$10,\"BMA\",CONFIGURATION!$B$1,\"bscr\",IF(F25=\"Yes\",\"1\",\"0\"))","v":{"$error":"#VALUE!"}},null,null,null,null,null,null,"SSA_SsaAndItsUnderlyingInformationIsUsedForPerformanceMeasurementAndAssessment"]
[null,"Improving mergers and acquisition decisions",null,null,null,{"$f":"Import!E6265","v":"Select Yes/No"},null,null,null,null,"brrt_CISSAAndItsUnderlyingInformationIsUsedForImprovingMergersAndAcquisitionDecisions",{"$f":"XBRLMapBoolean(F26,K26,$Q$1,#REF!,CONFIGURATION!$B$10,\"BMA\",CONFIGURATION!$B$1,\"bscr\",IF(F26=\"Yes\",\"1\",\"0\"))","v":{"$error":"#VALUE!"}},null,null,null,null,null,null,"SSA_SsaAndItsUnderlyingInformationIsUsedForImprovingMergersAndAcquisitionDecisions"]
[null,"Others",{"$f":"Import!E6267","v":0},null,null,{"$f":"Import!E6266","v":"Select Yes/No"},null,null,null,null,"brrt_CISSAAndItsUnderlyingInformationIsUsedForOthers",{"$f":"XBRLMapBoolean(F27,K27,$Q$1,#REF!,CONFIGURATION!$B$10,\"BMA\",CONFIGURATION!$B$1,\"bscr\",IF(F27=\"Yes\",\"1\",\"0\"))","v":{"$error":"#VALUE!"}},null,null,null,null,null,null,"SSA_SsaAndItsUnderlyingInformationIsUsedForOthers"]
[null,null,null,null,null,null,null,null,null,null,"brrt_CISSAAndItsUnderlyingInformationIsUsedForOthersDescription",{"$f":"XBRLMap(C27,K28,$Q$1,#REF!,CONFIGURATION!$B$10,\"BMA\",CONFIGURATION!$B$1,\"bscr\")","v":{"$error":"#VALUE!"}}]
[2,"CISSA Mitigation Risk:"]
[null,"The section will automatically score and aggregate the results."]
[]
[null,"Questions",null,null,"Yes/No",null,null,"Score"]
[null,"Is there a potential for the insurer to have an accumulation of losses to material lines of business outside of the property catastrophe line that will threaten the solvency of the insurer? ",null,null,null,null,null,{"$f":"IF(E33=\"No\", (900/9),0)","v":0},null,null,"brrt_ThereIsAPotentialForTheCompanyToHaveAnAccumulationOfLossesToMaterialLinesOfBusinessOutsideOfThePropertyCatastropheLineThatWillThreatenTheSolvencyOfTheCompany",{"$f":"XBRLMapBoolean(E33,K33,$Q$1,#REF!,CONFIGURATION!$B$10,\"BMA\",CONFIGURATION!$B$1,\"bscr\",IF(E33=\"Yes\",\"1\",\"0\"))","v":{"$error":"#VALUE!"}}]
[null,null,"If yes, what are the potential cause(s) of the accumulation of losses?",null,null,null,null,null,null,null,""]
[null,null,null,"(a) A severe event",null,null,null,null,null,null,"brrt_ThePotentialCauseOfTheAccumulationOfLossesIsASevereEvent",{"$f":"XBRLMapBoolean(E35,K35,$Q$1,#REF!,CONFIGURATION!$B$10,\"BMA\",CONFIGURATION!$B$1,\"bscr\",IF(E35=\"Yes\",\"1\",\"0\"))","v":{"$error":"#VALUE!"}}]
[null,null,null,"(b) Series of many small events or individual claims",null,null,null,null,null,null,"brrt_ThePotentialCauseOfTheAccumulationOfLossesIsASeriesOfManySmallEventsOfIndividualClaims",{"$f":"XBRLMapBoolean(E36,K36,$Q$1,#REF!,CONFIGURATION!$B$10,\"BMA\",CONFIGURATION!$B$1,\"bscr\",IF(E36=\"Yes\",\"1\",\"0\"))","v":{"$error":"#VALUE!"}}]
[null,null,null,"(c) Over concentration of exposure to one product",null,null,null,null,null,null,"brrt_ThePotentialCauseOfTheAccumulationOfLossesIsOverConcentrationOfExposureToOneProduct",{"$f":"XBRLMapBoolean(E37,K37,$Q$1,#REF!,CONFIGURATION!$B$10,\"BMA\",CONFIGURATION!$B$1,\"bscr\",IF(E37=\"Yes\",\"1\",\"0\"))","v":{"$error":"#VALUE!"}}]
[null,null,null,"(d) Over concentration to one source of business",null,null,null,null,null,null,"brrt_ThePotentialCauseOfTheAccumulationOfLossesIsOverConcentrationToOneSourceOfBusiness",{"$f":"XBRLMapBoolean(E38,K38,$Q$1,#REF!,CONFIGURATION!$B$10,\"BMA\",CONFIGURATION!$B$1,\"bscr\",IF(E38=\"Yes\",\"1\",\"0\"))","v":{"$error":"#VALUE!"}}]
[null,null,null,"(e) Over concentration to one line of business",null,null,null,null,null,null,"brrt_ThePotentialCauseOfTheAccumulationOfLossesIsOverConcentrationToOneLineOfBusiness",{"$f":"XBRLMapBoolean(E39,K39,$Q$1,#REF!,CONFIGURATION!$B$10,\"BMA\",CONFIGURATION!$B$1,\"bscr\",IF(E39=\"Yes\",\"1\",\"0\"))","v":{"$error":"#VALUE!"}}]
[null,null,null,"(f) A common cause across many underwriting years (e.g., asbestos, pollution, silicon, etc.)",null,null,null,null,null,null,"brrt_ThePotentialCauseOfTheAccumulationOfLossesIsACommonCauseAcrossManyUnderwritingYears",{"$f":"XBRLMapBoolean(E40,K40,$Q$1,#REF!,CONFIGURATION!$B$10,\"BMA\",CONFIGURATION!$B$1,\"bscr\",IF(E40=\"Yes\",\"1\",\"0\"))","v":{"$error":"#VALUE!"}}]
[null,null,null,"(g) Others (list)",null,null,null,null,null,null,"brrt_ThePotentialCauseOfTheAccumulationOfLossesIsOtherPotentialCauses",{"$f":"XBRLMapBoolean(E41,K41,$Q$1,#REF!,CONFIGURATION!$B$10,\"BMA\",CONFIGURATION!$B$1,\"bscr\",IF(E41=\"Yes\",\"1\",\"0\"))","v":{"$error":"#VALUE!"}}]
[null,null,null,null,null,null,null,null,null,null,"brrt_ThePotentialCauseOfTheAccumulationOfLossesIsOtherPotentialCausesDescription",{"$f":"XBRLMap(D42,K42,$Q$1,#REF!,CONFIGURATION!$B$10,\"BMA\",CONFIGURATION!$B$1,\"bscr\")","v":{"$error":"#VALUE!"}}]
[null,"Does the insurer have absolute limitations set on individual policies or groups of policies to avoid threatening its solvency (such as limitations on a geographical basis, product basis, line of business basis, source of business basis, etc.)?",null,null,null,null,null,{"$f":"IF(E43=\"Yes\", (900/9), 0)","v":0},null,null,"brrt_TheCompanyHasAbsoluteLimitationsSetOnIndividualPoliciesOrGroupsOfPoliciesToAvoidThreateningItsSolvency",{"$f":"XBRLMapBoolean(E43,K43,$Q$1,#REF!,CONFIGURATION!$B$10,\"BMA\",CONFIGURATION!$B$1,\"bscr\",IF(E43=\"Yes\",\"1\",\"0\"))","v":{"$error":"#VALUE!"}}]
[null,"If yes to the above, are the limitations assessed for reasonableness and effectiveness in reducing the threat to solvency?",null,null,null,null,null,{"$f":"IF(E44=\"Yes\", (900/9), 0)","v":0},null,null,"brrt_TheLimitationsOnIndividualPoliciesOrGroupsOfPoliciesToAvoidThreateningItsSolvencyAreAssessedForReasonablenessAndEffectivenessInReducingTheThreatToSolvency",{"$f":"XBRLMapBoolean(E44,K44,$Q$1,#REF!,CONFIGURATION!$B$10,\"BMA\",CONFIGURATION!$B$1,\"bscr\",IF(E44=\"Yes\",\"1\",\"0\"))","v":{"$error":"#VALUE!"}}]
[null,"Does the insurer have procedures in place to assess the adequacy of the reinsurance purchased both from a severity and frequency perspective for solvency purposes, and ensure that there are no significant mismatches between the policies issued by the insurer and the reinsurance programme (e.g. that basis risk does not exist, etc.)?",null,null,null,null,null,0,null,null,"brrt_TheCompanyHasProceduresInPlaceToAssessTheAdequacyOfTheReinsurancePurchasedBothFromASeverityAndFrequencyPerspectiveForSolvencyPurposesAndEnsureThatThereAreNoSignificantMismatchesBetweenThePoliciesIssuedByTheCompanyAndTheReinsuranceProgramme",{"$f":"XBRLMapBoolean(E45,K45,$Q$1,#REF!,CONFIGURATION!$B$10,\"BMA\",CONFIGURATION!$B$1,\"bscr\",IF(E45=\"Yes\",\"1\",\"0\"))","v":{"$error":"#VALUE!"}}]
[null,"Does the insurer have access to additional capital and surplus to cover loss and loss adjustment expenses (eg. letters of credit, parental guarantees, other contingent capital sources, etc.)?",null,null,null,null,null,0,null,null,"brrt_TheCompanyHasAccessToAdditionalCapitalAndSurplusToCoverLossAndLossAdjustmentExpenses",{"$f":"XBRLMapBoolean(E46,K46,$Q$1,#REF!,CONFIGURATION!$B$10,\"BMA\",CONFIGURATION!$B$1,\"bscr\",IF(E46=\"Yes\",\"1\",\"0\"))","v":{"$error":"#VALUE!"}}]
[null,"Are policies, processes and procedures in place that employ benchmarking and stress and scenario testing to assess, review, and approve underwriting strategies and tolerance limits? ",null,null,null,null,null,0,null,null,"brrt_PoliciesProcessesAndProceduresAreInPlaceThatEmployBenchmarkingAndStressAndScenarioTestingToAssessReviewAndApproveUnderwritingStrategiesAndToleranceLimits",{"$f":"XBRLMapBoolean(E47,K47,$Q$1,#REF!,CONFIGURATION!$B$10,\"BMA\",CONFIGURATION!$B$1,\"bscr\",IF(E47=\"Yes\",\"1\",\"0\"))","v":{"$error":"#VALUE!"}}]
[null,"Are policies, processes and procedures in place to ensure that underwriting strategies are effectively aligned with risk tolerance levels? ",null,null,null,null,null,0,null,null,"brrt_PoliciesProcessesAndProceduresAreInPlaceToEnsureThatUnderwritingStrategiesAreEffectivelyAlignedWithRiskToleranceLevels",{"$f":"XBRLMapBoolean(E48,K48,$Q$1,#REF!,CONFIGURATION!$B$10,\"BMA\",CONFIGURATION!$B$1,\"bscr\",IF(E48=\"Yes\",\"1\",\"0\"))","v":{"$error":"#VALUE!"}}]
[null,"Are policies, processes and procedures in place to identify, evaluate, and monitor risks arising from insurance policies, and ensure compliance with risk tolerance levels?",null,null,null,null,null,0,null,null,"brrt_PoliciesProcessesAndProceduresAreInPlaceToIdentifyEvaluateAndMonitorRisksArisingFromInsurancePoliciesAndEnsureComplianceWithRiskToleranceLevels",{"$f":"XBRLMapBoolean(E49,K49,$Q$1,#REF!,CONFIGURATION!$B$10,\"BMA\",CONFIGURATION!$B$1,\"bscr\",IF(E49=\"Yes\",\"1\",\"0\"))","v":{"$error":"#VALUE!"}}]
[null,"Are systems in place to capture, maintain, and analyse underwriting data; and ensure that relevant and accurate data is used to price underwriting contracts, establish adequate reserves, and appropriately settle claims? ",null,null,null,null,null,{"$f":"IF(E50=\"Yes\", (900/9), 0)","v":0},null,null,"brrt_SystemsAreInPlaceToCaptureMaintainAndAnalyseUnderwritingDataAndEnsureThatRelevantAndAccurateDataIsUsedToPriceUnderwritingContractsEstablishAdequateReservesAndAppropriatelySettleClaims",{"$f":"XBRLMapBoolean(E50,K50,$Q$1,#REF!,CONFIGURATION!$B$10,\"BMA\",CONFIGURATION!$B$1,\"bscr\",IF(E50=\"Yes\",\"1\",\"0\"))","v":{"$error":"#VALUE!"}}]
[null,null,null,null,null,null,null,{"$f":"SUM(H33:H50)","v":0}]
[3,"Related Business:"]
[]
[null,"Questions",null,null,"%",null,null,"Charge"]
[null,"What percentage of the gross premiums written cover an ultimate related policyholder?",null,null,null,null,null,{"$f":"E55","v":0},null,null,"brrt_PercentageOfTheGrossPremiumsWrittenThatCoverAnUltimateRelatedPolicyholder",{"$f":"XBRLMap(E55,K55,$Q$1,#REF!,CONFIGURATION!$B$10,\"BMA\",CONFIGURATION!$B$1,\"bscr\")","v":{"$error":"#VALUE!"}}]
[]
[null,"Comments (optionally, the insurer may provide comments in the box below to support its responses above):"]
[null,null,null,null,null,null,null,null,null,null,"brrt_PercentageOfTheGrossPremiumsWrittenThatCoverAnUltimateRelatedPolicyholderDescription",{"$f":"XBRLMap(B58,K58,$Q$1,#REF!,CONFIGURATION!$B$10,\"BMA\",CONFIGURATION!$B$1,\"bscr\")","v":{"$error":"#VALUE!"}}]
[{"$f":"IF('Company Information'!$F$11=\"Class 3A\",4,2)","v":2},"Has the insurer applied reverse stress testing to both identify the scenarios that could cause business failure and the required actions to manage such situations? (Yes or No)",null,null,null,{"$f":"Import!E6268","v":"Select Yes/No"},null,null,null,null,"brrt_TheInsurerHasAppliedReverseStressTestingToBothIdentifyTheScenariosThatCouldCauseBusinessFailureAndTheRequiredActionsToManageSuchSituations",{"$f":"XBRLMapBoolean(F59,K59,$Q$1,#REF!,CONFIGURATION!$B$10,\"BMA\",CONFIGURATION!$B$1,\"bscr\",IF(F59=\"Yes\",\"1\",\"0\"))","v":{"$error":"#VALUE!"}},null,null,null,null,null,null,"SSA_HasReverseStressTestingBeenAppliedToBothIdentifyScenariosThatCouldCauseBusinessFailureAndRequiredActionsToManageSuchSituations"]
[null,null,null,null,null,null,null,null,null,"","",null,null,null,null,null,null,null,""]
[{"$f":"IF('Company Information'!$F$11=\"Class 3A\",5,3)","v":3},"Is the CISSA process clearly documented and regularly amended for changes in strategic direction, risk management framework, and market developments? (Yes or No)",null,null,null,{"$f":"Import!E6269","v":"Select Yes/No"},null,null,null,null,"brrt_TheCISSAProcessIsClearlyDocumentedAndRegularlyAmendedForChangesInStrategicDirectionRiskManagementFrameworkAndMarketDevelopments",{"$f":"XBRLMapBoolean(F61,K61,$Q$1,#REF!,CONFIGURATION!$B$10,\"BMA\",CONFIGURATION!$B$1,\"bscr\",IF(F61=\"Yes\",\"1\",\"0\"))","v":{"$error":"#VALUE!"}},null,null,null,null,null,null,"SSA_SsaProcessIsClearlyDocumentedAndRegularlyAmendedForChangesInStrategicDirectionRiskManagementFrameworkAndMarketDevelopments"]
[null,null,null,null,null,null,null,null,null,"","",null,null,null,null,null,null,null,""]
[{"$f":"IF('Company Information'!$F$11=\"Class 3A\",6,4)","v":4},"How often is the information underlying CISSA discussed and reviewed by the board and chief and senior executives?",null,null,null,{"$f":"Import!E6270","v":"Select"},null,null,null,null,"brrt_FrequencyOfDiscussionAndRevisionOfTheInformationUnderlyingCISSAByTheBoardAndChiefAndSeniorExecutives",{"$f":"XBRLMap(F63,K63,$Q$1,#REF!,CONFIGURATION!$B$10,\"BMA\",CONFIGURATION!$B$1,\"bscr\")","v":{"$error":"#VALUE!"}},null,null,null,null,null,null,"SSA_HowOftenInformationUnderlyingSsaIsDiscussedevaluatedAndReviewedByBoardOrBoardCommitteesAndChiefAndSeniorExecutives"]
[null,null,null,null,null,null,null,null,null,"","",null,null,null,null,null,null,null,""]
[{"$f":"IF('Company Information'!$F$11=\"Class 3A\",7,5)","v":5},"Have the board and chief and senior executives ensured that an appropriate oversight process is in place, including an appropriate level of independent verification, whereby material deficiencies are reported on a timely basis and suitable actions taken? (Yes or No)",null,null,null,{"$f":"Import!E6271","v":"Select Yes/No"},null,null,null,"","brrt_TheBoardOfDirectorsAndChiefAndSeniorExecutivesHaveEnsuredThatAnAppropriateOversightProcessIsInPlaceIncludingAnAppropriateLevelOfIndependentVerificationWherebyMaterialDeficienciesAreReportedOnATimelyBasisAndSuitableActionsTaken",{"$f":"XBRLMapBoolean(F65,K65,$Q$1,#REF!,CONFIGURATION!$B$10,\"BMA\",CONFIGURATION!$B$1,\"bscr\",IF(F65=\"Yes\",\"1\",\"0\"))","v":{"$error":"#VALUE!"}},null,null,null,null,null,null,"SSA_BoardOfDirectorsAndChiefAndSeniorExecutivesHasEnsuredThatAnAppropriateOversightProcessIsInPlaceIncludingAnAppropriateLevelOfIndependentVerificationWherebyMaterialDeficienciesAreReportedOnTimelyBasisAndSuitableActionsTaken"]
[null,null,null,null,null,null,null,null,null,null,"",null,null,null,null,null,null,null,""]
[null,"Optionally, the insurer may provide brief comments.",null,null,null,null,null,null,null,null,""]
[]
[null,{"$f":"Import!E6272","v":0},null,null,null,null,null,null,null,null,"brrt_TheBoardOfDirectorsAndChiefAndSeniorExecutivesHaveEnsuredThatAnAppropriateOversightProcessIsInPlaceIncludingAnAppropriateLevelOfIndependentVerificationWherebyMaterialDeficienciesAreReportedOnATimelyBasisAndSuitableActionsTakenDescription",{"$f":"XBRLMap(B69,K69,$Q$1,#REF!,CONFIGURATION!$B$10,\"BMA\",CONFIGURATION!$B$1,\"bscr\")","v":{"$error":"#VALUE!"}},null,null,null,null,null,null,"SSA_BoardOfDirectorsAndChiefAndSeniorExecutivesHasEnsuredThatAnAppropriateOversightProcessIsInPlaceIncludingAnAppropriateLevelOfIndependentVerificationWherebyMaterialDeficienciesAreReportedOnTimelyBasisAndSuitableActionsTakenComment"]
[]
[]
[]
[]
[]
[]
[]
[]
[]
[]
[]
[null,null,null,"Select Yes/No"]
[null,null,null,"Yes"]
[null,null,null,"No"]
[null,null,null,"Select"]
[null,null,null,"Annually"]
[null,null,null,"Semi-annually"]
[null,null,null,"Quarterly"]
[null,null,null,"Monthly"]
[null,null,null,"Bi-monthly"]
[null,null,null,"Ad-hoc"]
[null,null,null,"Other"]
[null,null,null,"Select"]
[null,null,null,"Strong"]
[null,null,null,"Moderate"]
[null,null,null,"Weak"]
[]
[null,null,null,"Select"]
[null,null,null,"Fully documented"]
[null,null,null,"Partially documented"]
[null,null,null,"Other"]

{"sheet":"Schedule IX(c)","index":51,"n_rows":111,"n_cols":24,"rows_kept":111,"cut":false,"hidden":false,"merged":[[19,1,19,5],[21,1,21,5],[23,1,23,5],[25,1,25,5],[64,12,64,14],[65,1,65,3],[65,12,65,14],[59,2,59,5],[61,1,61,5],[63,1,63,5],[2,1,2,3],[11,1,11,5],[81,4,81,5],[81,1,81,3],[66,1,66,3],[68,1,68,3],[67,1,67,3],[72,1,72,3],[13,1,13,5],[4,1,5,5],[7,2,8,5],[9,2,9,5],[33,1,33,5],[57,2,57,5],[27,1,27,5],[29,1,29,5],[11,6,13,6],[11,7,13,7],[0,1,0,4],[80,1,80,3],[80,4,80,5],[78,1,78,3],[79,1,79,3],[76,1,76,3],[77,1,77,3],[74,1,74,3],[75,1,75,3],[73,1,73,3],[69,1,69,3],[70,1,70,3],[71,1,71,3],[1,1,1,3]]}
[null,"SCHEDULE OF COMMERCIAL INSURER'S SOLVENCY SELF ASSESSMENT (CISSA) ASSESSMENT OF MATERIAL RISKS OF THE INSURER (TABLE 8B)",null,null,null,null,null,{"$f":"HYPERLINK(\"#'Index'!A1\",\"Return to Index\")","v":"Return to Index"},null,null,null,null,null,null,null,null,null,null,null,null,{"$f":"IF($B$3=\"\",\"\",TEXT(DATE(YEAR($B$3+1)-1,MONTH($B$3+1),DAY($B$3+1)),\"mm/dd/yyyy\"))","v":"01/01/2019"}]
[null,{"$f":"'Company Information'!C7","v":"Enter Company Name"},null,null,null,null,null,null,null,null,null,null,null,null,null,null,null,null,null,null,{"$f":"IF(B3=\"\",\"\",TEXT(B3,\"mm/dd/yyyy\"))","v":"12/31/2019"}]
[null,{"$f":"'Form 1EBS'!C3","v":"2019-12-31"},null,null,null,null,null,"SCHEDULE IX(c)"]
[]
[null,"The board must review policies, processes, and procedures to assess its material risks and self-determine the capital requirement it would need to support its insurance undertaking, at least annually. Minimally, the assessment should:"]
[]
[null,"•","Be an integral part of the insurer's risk management framework"]
[null,"•","Be clearly documented, reviewed, and evaluated regularly by the board and the chief and senior executives to ensure continual advancement in light of changes in the strategic direction, risk management framework, and market developments; and"]
[]
[null,"•","Ensure an appropriate oversight process whereby material deficiencies are reported on a timely basis and suitable actions taken."]
[]
[null,"The insurer shall undertake and file with the Authority the insurer's most recent report (\"insurer-specific report\") comprising of a solvency self-assessment of its material risks and the determination of both the quality (types of capital) and quantity of CISSA capital required to cover these risks, while remaining solvent and achieving the insurer's business goals.",null,null,null,null,"Doc. No","Page. No"]
[]
[null,"The insurer-specific report should minimally include:"]
[]
[1,"Date the assessment was completed and the insurer-specific report last updated."]
[]
[2,"A description of the insurer's business and strategy."]
[]
[3,"The identification and assessment of all reasonably foreseeable material risks, including those specified in the Insurance Code of Conduct (i.e. insurance underwriting risk; investment, liquidity and concentration risk; market risk; credit risk; operational risk; group risk; strategic risk; reputational risk; and legal risk)."]
[]
[4,"The identification of the relationships of the material risks with one another, and the quantity and type of capital required to cover the risks."]
[]
[5,"A description of the insurer's risk appetite, including limits imposed and how they are enforced, and their key performance indicators."]
[]
[6,"Assumptions and methodology used to assess and aggregate risks."]
[]
[7,"A forward looking analysis of the risks faced by the insurer over its planning horizon and an analysis demonstrating the ability to manage its business and capital needs in adverse circumstances and still meet regulatory capital requirements."]
[]
[8,"An evaluation of whether the insurer has sufficient capital and liquidity available, including an assessment of whether capital is fungible and assets are transferable, to achieve its strategic goals over its planning horizon and any potential adverse consequences if insufficient."]
[]
[9,"A description of business continuity and disaster plans."]
[]
[10,"A description of how the results of the self-assessment are integrated into the management and strategic decision making process."]
[]
[11,"Approval and signed declaration of the CISSA assessment by two members of the Board of Directors."]
[]
[11,{"$f":"IF('Company Information'!$F$11=\"Class 3A\",\"The risk measure, time horizon, and confidence level (if any) used to determine the CISSA capital.\",\"For each material risk identified under 3 above, the submission should minimally include:\")","v":"For each material risk identified under 3 above, the submission should minimally include:"}]
[]
[null,"a)","Identification of the risk owner, qualifications and responsibilities."]
[]
[null,"b) ","The key performance indicators used to monitor compliance with the risk appetite."]
[]
[null,"c)","The risk drivers (e.g. for catastrophe risk the drivers could be US earthquake, European windstorm, terrorism etc)?"]
[]
[null,"d) ","The primary model(s)/tool(s) used to calculate the CISSA capital for the risk, where applicable."]
[]
[null,"e)","The primary sources of data used as inputs to the model(s)/tool(s)."]
[]
[null,"f)","The key assumptions used in the assessment of the risk."]
[]
[null,"g)","A description and quantitative impact of stress and scenarios test on capital (if any) including key assumptions."]
[]
[null,"h)","A description of measures taken to transfer or otherwise mitigate the risk."]
[]
[null,"i)","Quantification of the risk if the insurer is holding capital against it both pre and post diversification."]
[]
[{"$f":"IF('Company Information'!$F$11=\"Class 3A\",12,\"\")","v":""},{"$f":"IF('Company Information'!$F$11=\"Class 3A\",\"\",\"j)\")","v":"j)"},"An explanation of the primary reasons for any material deviations between the CISSA capital as it pertains to the risk (if holding capital against the risk) and the regulatory capital charge for the risk, if the deviation is greater than 15%."]
[]
[null,"(*)","Where attachments are submitted, include references (e.g. page number, paragraph number) of where the information is located in the comments box in the attachments tab."]
[]
[null,"The insurer shall select the appropriate response. Where an optional attachment is provided to disclose additional information,  the insurer shall include references (e.g. page number, paragraph number) of where the information is located in the comments box in the attachments tab."]
[]
[12,"Model(s)/tool(s) used to calculate the CISSA capital "]
[null,null,null,null,null,null,null,null,null,null,""]
[null,"Governance",null,null,"Select","Comments",null,null,null,null,""]
["a)","Does the board of directors, chief and senior executives approve the design, maintenance and use of the model(s)/tool(s)?",null,null,{"$f":"Import!E6274","v":"Select Yes/No"},{"$f":"Import!E6285","v":0},null,null,null,null,"brrt_TheBoardOfDirectorsChiefAndSeniorExecutivesApproveTheDesignMaintenanceAndUseOfTheModelsTools",null,{"$f":"XBRLMapBoolean(E67,K67,$U$1,#REF!,CONFIGURATION!$B$10,\"BMA\",CONFIGURATION!$B$1,\"bscr\",IF(E67=\"Yes\",\"1\",\"0\"))","v":{"$error":"#VALUE!"}},null,null,null,null,null,"brrt_TheBoardOfDirectorsChiefAndSeniorExecutivesApproveTheDesignMaintenanceAndUseOfTheModelsToolsDescription",{"$f":"XBRLMap(F67,S67,$U$1,#REF!,CONFIGURATION!$B$10,\"BMA\",CONFIGURATION!$B$1,\"bscr\")","v":{"$error":"#VALUE!"}},null,null,"SSA_ModelstoolsUsedToCalculateCissaCapitalAbstract","SSA_BoardOfDirectorsAndSeniorManagementApproveDesignMaintenanceAndUseOfModelstoolsComments"]
["b)","How often does the board or relevant board committees review outputs, changes and issues arising from the model(s)/tool(s) (review should be documented  e.g.  minutes, presentations etc)?",null,null,{"$f":"Import!E6275","v":"Select"},{"$f":"Import!E6286","v":0},null,null,null,null,"brrt_FrequencyOfReviewFromTheBoardOrRelevantBoardCommitteesOfOutputsChangesAndIssuesArisingFromTheModelsTools",null,{"$f":"XBRLMap(E68,K68,$U$1,#REF!,CONFIGURATION!$B$10,\"BMA\",CONFIGURATION!$B$1,\"bscr\")","v":{"$error":"#VALUE!"}},null,null,null,null,null,"brrt_FrequencyOfReviewFromTheBoardOrRelevantBoardCommitteesOfOutputsChangesAndIssuesArisingFromTheModelsToolsDescription",{"$f":"XBRLMap(F68,S68,$U$1,#REF!,CONFIGURATION!$B$10,\"BMA\",CONFIGURATION!$B$1,\"bscr\")","v":{"$error":"#VALUE!"}},null,null,"","SSA_BoardOrRelevantBoardCommitteesReviewFrequencyOfOutputsChangesAndIssuesArisingFromModelstoolsComments"]
["c)","Does the board and chief and senior executives have a  general understanding of the key assumptions/elements and the implications of the outputs (including limitations) of the model(s)/tool(s)?",null,null,{"$f":"Import!E6276","v":"Select Yes/No"},{"$f":"Import!E6287","v":0},null,null,null,null,"brrt_TheBoardAndChiefAndSeniorExecutivesHaveAGeneralUnderstandingOfTheKeyAssumptionsElementsAndTheImplicationsOfTheOutputsIncludingLimitationsOfTheModelsTools",null,{"$f":"XBRLMapBoolean(E69,K69,$U$1,#REF!,CONFIGURATION!$B$10,\"BMA\",CONFIGURATION!$B$1,\"bscr\",IF(E69=\"Yes\",\"1\",\"0\"))","v":{"$error":"#VALUE!"}},null,null,null,null,null,"brrt_TheBoardAndChiefAndSeniorExecutivesHaveAGeneralUnderstandingOfTheKeyAssumptionsElementsAndTheImplicationsOfTheOutputsIncludingLimitationsOfTheModelsToolsDescription",{"$f":"XBRLMap(F69,S69,$U$1,#REF!,CONFIGURATION!$B$10,\"BMA\",CONFIGURATION!$B$1,\"bscr\")","v":{"$error":"#VALUE!"}},null,null,"","SSA_BoardAndSeniorManagementHaveThoroughUnderstandingOfKeyAssumptionselementsAndImplicationsOfOutputsincludingLimitationsOfModelstoolsComments"]
[null,"Validation",null,null,"Select","Comments",null,null,null,null,"",null,null,null,null,null,null,null,"",null,null,null,"SSA_BoardOfDirectorsAndSeniorManagementApproveDesignMaintenanceAndUseOfModelstools"]
["d)","Is the model(s)/tool(s) subject to a regular cycle of validation, which includes the monitoring of performance, review appropriateness of model specifications and testing of forecast results against actual results?",null,null,{"$f":"Import!E6277","v":"Select Yes/No"},{"$f":"Import!E6288","v":0},null,null,null,null,"brrt_TheModelsToolsAreSubjectToARegularCycleOfValidationWhichIncludesTheMonitoringOfPerformanceReviewOfAppropriatenessOfModelSpecificationsAndTestingOfForecastResultsAgainstActualResults",null,{"$f":"XBRLMapBoolean(E71,K71,$U$1,#REF!,CONFIGURATION!$B$10,\"BMA\",CONFIGURATION!$B$1,\"bscr\",IF(E71=\"Yes\",\"1\",\"0\"))","v":{"$error":"#VALUE!"}},null,null,null,null,null,"brrt_TheModelsToolsAreSubjectToARegularCycleOfValidationWhichIncludesTheMonitoringOfPerformanceReviewOfAppropriatenessOfModelSpecificationsAndTestingOfForecastResultsAgainstActualResultsDescription",{"$f":"XBRLMap(F71,S71,$U$1,#REF!,CONFIGURATION!$B$10,\"BMA\",CONFIGURATION!$B$1,\"bscr\")","v":{"$error":"#VALUE!"}},null,null,"SSA_BoardOrRelevantBoardCommitteesReviewFrequencyOfOutputsChangesAndIssuesArisingFromModelstools","SSA_ModelstoolsSubjectToRegularCycleOfValidationWhichIncludesMonitoringOfPerformanceReviewAppropriatenessOfModelSpecificationsAndTestingOfForecastResultsAgainstActualResultsComments"]
["e)","How often is the validation of the model(s)/tool(s) performed?",null,null,{"$f":"Import!E6278","v":"Select"},{"$f":"Import!E6289","v":0},null,null,null,null,"brrt_FrequencyOfValidationOfModelsTools",null,{"$f":"XBRLMap(E72,K72,$U$1,#REF!,CONFIGURATION!$B$10,\"BMA\",CONFIGURATION!$B$1,\"bscr\")","v":{"$error":"#VALUE!"}},null,null,null,null,null,"brrt_FrequencyOfValidationOfModelsToolsDescription",{"$f":"XBRLMap(F72,S72,$U$1,#REF!,CONFIGURATION!$B$10,\"BMA\",CONFIGURATION!$B$1,\"bscr\")","v":{"$error":"#VALUE!"}},null,null,"SSA_BoardAndSeniorManagementHaveThoroughUnderstandingOfKeyAssumptionselementsAndImplicationsOfOutputsincludingLimitationsOfModelstools","SSA_ValidationOfModelstoolsPerformedComments"]
["f)","Does the validation process demonstrate that the model(s)/tool(s) remains suitable during changing conditions (e.g. changes in inflation, interest rate, etc)? If no, provide comments.",null,null,{"$f":"Import!E6279","v":"Select Yes/No"},{"$f":"Import!E6290","v":0},null,null,null,null,"brrt_ValidationProcessDemonstratesThatModelsToolsRemainSuitableDuringChangingConditions",null,{"$f":"XBRLMapBoolean(E73,K73,$U$1,#REF!,CONFIGURATION!$B$10,\"BMA\",CONFIGURATION!$B$1,\"bscr\",IF(E73=\"Yes\",\"1\",\"0\"))","v":{"$error":"#VALUE!"}},null,null,null,null,null,"brrt_ValidationProcessDemonstratesThatModelsToolsRemainSuitableDuringChangingConditionsDescription",{"$f":"XBRLMap(F73,S73,$U$1,#REF!,CONFIGURATION!$B$10,\"BMA\",CONFIGURATION!$B$1,\"bscr\")","v":{"$error":"#VALUE!"}},null,null,"","SSA_ValidationProcessDemonstrateThatModelstoolsRemainsSuitableDuringChangingConditionsComments"]
[null,"Documentation",null,null,"Select","Comments",null,null,null,null,"",null,null,null,null,null,null,null,"",{"$f":"XBRLMap(F74,S74,$U$1,#REF!,CONFIGURATION!$B$10,\"BMA\",CONFIGURATION!$B$1,\"bscr\")","v":{"$error":"#VALUE!"}},null,null,"SSA_ModelstoolsSubjectToRegularCycleOfValidationWhichIncludesMonitoringOfPerformanceReviewAppropriatenessOfModelSpecificationsAndTestingOfForecastResultsAgainstActualResults",""]
["g)","Does the insurer have formal documentation of the structure, design, operational details, input assumptions, parameters, governance process and controls of the model(s)/tool(s)?",null,null,{"$f":"Import!E6280","v":"Select Yes/No"},{"$f":"Import!E6291","v":0},null,null,null,null,"brrt_InsurerHasFormalDocumentationsOfStructureDesignOperationalDetailsInputAssumptionsParametersGovernanceProcessAndControlsOfTheModelsTools",null,{"$f":"XBRLMapBoolean(E75,K75,$U$1,#REF!,CONFIGURATION!$B$10,\"BMA\",CONFIGURATION!$B$1,\"bscr\",IF(E75=\"Yes\",\"1\",\"0\"))","v":{"$error":"#VALUE!"}},null,null,null,null,null,"brrt_InsurerHasFormalDocumentationsOfStructureDesignOperationalDetailsInputAssumptionsParametersGovernanceProcessAndControlsOfTheModelsToolsDescription",{"$f":"XBRLMap(F75,S75,$U$1,#REF!,CONFIGURATION!$B$10,\"BMA\",CONFIGURATION!$B$1,\"bscr\")","v":{"$error":"#VALUE!"}},null,null,"SSA_ValidationOfModelstoolsPerformed","SSA_CompanyHasFormalDocumentationOfStructureDesignOperationalDetailsInputAssumptionsParametersGovernanceProcessAndControlsOfModelstoolsComments"]
["h)","If yes, to what extent is the model(s)/tool(s) documented such that it can be used by new personnel with limited user experience? (include comments for partial or no documentations)",null,null,{"$f":"Import!E6281","v":"Select"},{"$f":"Import!E6292","v":0},null,null,null,null,"brrt_ExtentToWhichTheModelsToolsAreDocumentedSuchThatItCanBeUsedByNewPersonnelWithLimitedUserExperience",null,{"$f":"XBRLMap(E76,K76,$U$1,#REF!,CONFIGURATION!$B$10,\"BMA\",CONFIGURATION!$B$1,\"bscr\")","v":{"$error":"#VALUE!"}},null,null,null,null,null,"brrt_ExtentToWhichTheModelsToolsAreDocumentedSuchThatItCanBeUsedByNewPersonnelWithLimitedUserExperienceDescription",{"$f":"XBRLMap(F76,S76,$U$1,#REF!,CONFIGURATION!$B$10,\"BMA\",CONFIGURATION!$B$1,\"bscr\")","v":{"$error":"#VALUE!"}},null,null,"SSA_ValidationProcessDemonstrateThatModelstoolsRemainsSuitableDuringChangingConditions","SSA_ToWhatExtentIsModelstoolsDocumentedSuchThatItCanBeUsedByNewPersonnelWithLimitedUserExperienceComments"]
["i)","How often does the board of directors or chief and senior executives review and approve the model/input documentation?",null,null,{"$f":"Import!E6282","v":"Select"},{"$f":"Import!E6293","v":0},null,null,null,null,"brrt_FrequencyOfReviewAndApprovalOfTheBoardOfDirectorsOrChiefAndSeniorExecutivesOfTheModelInputDocumentation",null,{"$f":"XBRLMap(E77,K77,$U$1,#REF!,CONFIGURATION!$B$10,\"BMA\",CONFIGURATION!$B$1,\"bscr\")","v":{"$error":"#VALUE!"}},null,null,null,null,null,"brrt_FrequencyOfReviewAndApprovalOfTheBoardOfDirectorsOrChiefAndSeniorExecutivesOfTheModelInputDocumentationDescription",{"$f":"XBRLMap(F77,S77,$U$1,#REF!,CONFIGURATION!$B$10,\"BMA\",CONFIGURATION!$B$1,\"bscr\")","v":{"$error":"#VALUE!"}},null,null,"","SSA_FrequencyOfBoardOfDirectorsOrSeniorManagementReviewAndApprovalOfModelinputDocumentationComments"]
[null,"Internal controls",null,null,"Select","Comments",null,null,null,null,"",null,null,null,null,null,null,null,"",{"$f":"XBRLMap(F78,S78,$U$1,#REF!,CONFIGURATION!$B$10,\"BMA\",CONFIGURATION!$B$1,\"bscr\")","v":{"$error":"#VALUE!"}},null,null,"SSA_CompanyHasFormalDocumentationOfStructureDesignOperationalDetailsInputAssumptionsParametersGovernanceProcessAndControlsOfModelstools",""]
["j)","How does the insurer rate the effectiveness of the controls in place to monitor and evaluate the operation and maintenance of the model(s)/tool(s)?",null,null,{"$f":"Import!E6283","v":"Select"},{"$f":"Import!E6294","v":0},null,null,null,null,"brrt_InsurerRatingOfTheEffectivenessOfTheControlsInPlaceToMonitorAndEvaluateTheOperationAndMaintenanceOfTheModelsTools",null,{"$f":"XBRLMap(E79,K79,$U$1,#REF!,CONFIGURATION!$B$10,\"BMA\",CONFIGURATION!$B$1,\"bscr\")","v":{"$error":"#VALUE!"}},null,null,null,null,null,"brrt_InsurerRatingOfTheEffectivenessOfTheControlsInPlaceToMonitorAndEvaluateTheOperationAndMaintenanceOfTheModelsToolsDescription",{"$f":"XBRLMap(F79,S79,$U$1,#REF!,CONFIGURATION!$B$10,\"BMA\",CONFIGURATION!$B$1,\"bscr\")","v":{"$error":"#VALUE!"}},null,null,"SSA_ToWhatExtentIsModelstoolsDocumentedSuchThatItCanBeUsedByNewPersonnelWithLimitedUserExperience","SSA_HowCompanyRatesEffectivenessOfControlsInPlaceToMonitorAndEvaluateOperationAndMaintenanceOfModelstoolsComments"]
["k)","Are there strict protocols in place restricting access to the model(s)/tool(s) and ability to make adjustments thereto?",null,null,{"$f":"Import!E6284","v":"Select Yes/No"},{"$f":"Import!E6295","v":0},null,null,null,null,"brrt_StrictProtocolsAreInPlaceRestrictingAccessToTheModelsToolsAndTheAbilityToMakeAdjustmentsThereto",null,{"$f":"XBRLMapBoolean(E80,K80,$U$1,#REF!,CONFIGURATION!$B$10,\"BMA\",CONFIGURATION!$B$1,\"bscr\",IF(E80=\"Yes\",\"1\",\"0\"))","v":{"$error":"#VALUE!"}},null,null,null,null,null,"brrt_StrictProtocolsAreInPlaceRestrictingAccessToTheModelsToolsAndTheAbilityToMakeAdjustmentsTheretoDescription",{"$f":"XBRLMap(F80,S80,$U$1,#REF!,CONFIGURATION!$B$10,\"BMA\",CONFIGURATION!$B$1,\"bscr\")","v":{"$error":"#VALUE!"}},null,null,"SSA_FrequencyOfBoardOfDirectorsOrSeniorManagementReviewAndApprovalOfModelinputDocumentation","SSA_reAreStrictProtocolsInPlaceRestrictingAccessToModelstoolsAndAbilityToMakeAdjustmentsretoComments"]
[null,"Others",null,null,"List",null,null,null,null,null,"",null,{"$f":"XBRLMap(E81,K81,$U$1,#REF!,CONFIGURATION!$B$10,\"BMA\",CONFIGURATION!$B$1,\"bscr\")","v":{"$error":"#VALUE!"}},null,null,null,null,null,null,null,null,null,""]
["l)","What is the risk measure (VaR,TVaR etc), confidence interval (95%, 99.95% etc)  and time horizon (1 year, 3 years etc) used to derive CISSA capital?",null,null,{"$f":"Import!E6296","v":0},null,null,null,null,null,"brrt_RiskmeasureconfidenceintervalandtimehorizonusedtoderivetheCISSAcapital",null,{"$f":"XBRLMap(E82,K82,$U$1,#REF!,CONFIGURATION!$B$10,\"BMA\",CONFIGURATION!$B$1,\"bscr\")","v":{"$error":"#VALUE!"}},null,null,null,null,null,null,null,null,null,"SSA_HowCompanyRatesEffectivenessOfControlsInPlaceToMonitorAndEvaluateOperationAndMaintenanceOfModelstools"]
[null,null,null,null,null,null,null,null,null,null,null,null,null,null,null,null,null,null,null,null,null,null,"SSA_reAreStrictProtocolsInPlaceRestrictingAccessToModelstoolsAndAbilityToMakeAdjustmentsreto"]
[null,null,null,null,null,null,null,null,null,null,null,null,null,null,null,null,null,null,null,null,null,null,""]
[null,null,null,null,null,null,null,null,null,null,null,null,null,null,null,null,null,null,null,null,null,null,"SSA_RiskMeasurevartvarEtcConfidenceInterval95Percent9995PercentEtcAndTimeHorizon1Year3YearsEtc"]
[]
[]
[]
[]
[]
[]
[null,null,null,null,null,"Select Yes/No"]
[null,null,null,null,null,"Yes"]
[null,null,null,null,null,"No"]
[null,null,null,null,null,"Select"]
[null,null,null,null,null,"Annually"]
[null,null,null,null,null,"Semi-annually"]
[null,null,null,null,null,"Quarterly"]
[null,null,null,null,null,"Monthly"]
[null,null,null,null,null,"Bi-monthly"]
[null,null,null,null,null,"Ad-hoc"]
[null,null,null,null,null,"Other"]
[null,null,null,null,null,"Select"]
[null,null,null,null,null,"Strong"]
[null,null,null,null,null,"Moderate"]
[null,null,null,null,null,"Weak",null,null,null,"Others"]
[]
[null,null,null,null,null,"Select"]
[null,null,null,null,null,"Fully documented"]
[null,null,null,null,null,"Partially documented"]
[null,null,null,null,null,"Other"]

{"sheet":"Schedule X(a)","index":52,"n_rows":190,"n_cols":21,"rows_kept":190,"cut":false,"hidden":false,"merged":[[35,4,35,6],[35,8,35,10],[32,8,32,10],[38,4,38,6],[38,8,38,10],[33,8,33,10],[34,4,34,6],[34,8,34,10],[36,4,36,6],[36,8,36,10],[37,4,37,6],[37,8,37,10],[2,1,2,2],[5,4,5,5],[5,6,5,7],[30,8,30,10],[31,8,31,10],[39,4,39,6],[39,8,39,10],[40,4,40,6],[40,8,40,10],[42,4,42,6],[42,8,42,10],[41,4,41,6],[41,8,41,10],[52,4,52,6],[52,8,52,10],[43,4,43,6],[43,8,43,10],[44,4,44,6],[44,8,44,10],[45,4,45,6],[45,8,45,10],[50,4,50,6],[50,8,50,10],[51,4,51,6],[51,8,51,10],[48,4,48,6],[48,8,48,10],[49,4,49,6],[49,8,49,10],[55,4,55,6],[55,8,55,10],[56,4,56,6],[56,8,56,10],[63,8,63,10],[59,4,59,6],[59,8,59,10],[60,4,60,6],[60,8,60,10],[61,4,61,6],[61,8,61,10],[62,4,62,6],[62,8,62,10],[63,4,63,6],[64,8,64,10],[67,8,67,10],[70,8,70,10],[71,4,71,5],[71,8,71,10],[68,8,68,10],[69,8,69,10],[80,6,81,7],[72,4,72,5],[72,8,72,10],[73,8,73,10],[74,8,74,10]]}
[null,"CATASTROPHE RISK RETURN: EP CURVE TOTAL (TABLE 9)",null,null,null,null,null,null,null,{"$f":"HYPERLINK(\"#'Index'!A1\",\"Return to Index\")","v":"Return to Index"},null,null,null,null,null,{"$f":"'Company Information'!L1","v":"01/01/2019"}]
[null,{"$f":"'Company Information'!C7","v":"Enter Company Name"},null,null,null,null,null,null,null,null,null,null,null,null,null,{"$f":"'Company Information'!L2","v":"12/31/2019"}]
[null,{"$f":"'Company Information'!C3+1","v":"2020-01-01"},null,null,null,null,null,null,null,"SCHEDULE X(a)"]
[]
[null,"1. Exceedance probability information:"]
[null,null,null,null," Gross loss",null,"Net loss"]
[null,null,null,"Loss return period (years)","Gross per occurrence loss TVaR","Gross aggregate TVaR","Net per occurrence loss TVaR","Net aggregate TVaR ",null,null,null,null,"brrt_EPCurveAxis_brrt_TotalMember"]
[null,null,null,null," (US$M)"," (US$M)"," (US$M)"," (US$M)",null,null,null,null,""]
[null,null,null,50,{"$f":"Import!I6298","v":0},{"$f":"Import!I6303","v":0},{"$f":"Import!I6308","v":0},{"$f":"Import!I6313","v":0},null,null,null,null,"brrt_LossReturnPeriodAxis_brrt_FiftyYearsMember",null,null,null,null,null,null,"bma_LossReturnPeriodyears50"]
[null,null,null,100,{"$f":"Import!I6299","v":0},{"$f":"Import!I6304","v":0},{"$f":"Import!I6309","v":0},{"$f":"Import!I6314","v":0},null,null,null,null,"brrt_LossReturnPeriodAxis_brrt_OneHundredYearsMember",null,null,null,null,null,null,"bma_LossReturnPeriodyears100"]
[null,null,null,250,{"$f":"Import!I6300","v":0},{"$f":"Import!I6305","v":0},{"$f":"Import!I6310","v":0},{"$f":"Import!I6315","v":0},null,null,null,null,"brrt_LossReturnPeriodAxis_brrt_TwoHundredFiftyYearsMember",null,null,null,null,null,null,"bma_LossReturnPeriodyears250"]
[null,null,null,500,{"$f":"Import!I6301","v":0},{"$f":"Import!I6306","v":0},{"$f":"Import!I6311","v":0},{"$f":"Import!I6316","v":0},null,null,null,null,"brrt_LossReturnPeriodAxis_brrt_FiveHundredYearsMember",null,null,null,null,null,null,"bma_LossReturnPeriodyears500"]
[null,null,null,1000,{"$f":"Import!I6302","v":0},{"$f":"Import!I6307","v":0},{"$f":"Import!I6312","v":0},{"$f":"Import!I6317","v":0},null,null,null,null,"brrt_LossReturnPeriodAxis_brrt_OneThousandYearsMember",null,null,null,null,null,null,"bma_LossReturnPeriodyears1000"]
[]
[null,null,null,null," Gross Loss (US$M)",null,null,null,null," Net Loss (US$M)"]
[null,null,null,"Annual average aggregate gross loss",{"$f":"Import!I6318","v":0},null,null,null,"Annual average aggregate net loss (net of reinstatements terms)",{"$f":"Import!I6328","v":0},null,null,"brrt_AnnualAverageAggregateGrossLoss",{"$f":"XBRLMap(E16,M16&\".\"&$M$7,P$1,P$2,CONFIGURATION!$B$10,\"BMA\",CONFIGURATION!$B$1,\"bscr\",1000000 )","v":"Mapped"},null,"brrt_AnnualAverageAggregateNetLossNetOfReinstatementsTerms",{"$f":"XBRLMap(J16,P16&\".\"&$M$7,P$1,P$2,CONFIGURATION!$B$10,\"BMA\",CONFIGURATION!$B$1,\"bscr\",1000000)","v":"Mapped"},null,null,"bma_AnnualAverageAggregateGrossLossDollarM","bma_AnnualAverageAggregateNetLossDollarM"]
[null,null,null,null,null,null,null,null,"Reinstatement terms included in Annual average aggregated net loss",{"$f":"Import!I6329","v":0}]
[null,null,null,"Standard deviation of annual aggregate gross loss",{"$f":"Import!I6319","v":0},null,null,null,"Standard deviation of annual aggregate net loss (net of reinstatements terms)",{"$f":"Import!I6330","v":0},null,null,"brrt_StandardDeviationOfAnnualAggregateGrossLoss",{"$f":"XBRLMap(E18,M18&\".\"&$M$7,P$1,P$2,CONFIGURATION!$B$10,\"BMA\",CONFIGURATION!$B$1,\"bscr\",1000000 )","v":"Mapped"},null,"brrt_StandardDeviationOfAnnualAggregateNetLossNetOfReinstatementsTerms",{"$f":"XBRLMap(J18,P18&\".\"&$M$7,P$1,P$2,CONFIGURATION!$B$10,\"BMA\",CONFIGURATION!$B$1,\"bscr\",1000000)","v":"Mapped"},null,null,"bma_StandardDeviationOfAnnualAggregateGrossLossDollarM","bma_StandardDeviationOfAnnualAggregateNetLossDollarM"]
[null,null,null,null,null,null,null,null,null,null,null,null,"",null,null,""]
[null,null,null,"Total gross statutory property catastrophe premium modeled ",{"$f":"Import!I6320","v":0},null,null,null,"Total net statutory property catastrophe premium modeled",{"$f":"Import!I6331","v":0},null,null,"brrt_TotalGrossStatutoryPropertyCatastrophePremiumModeled",{"$f":"XBRLMap(E20,M20&\".\"&$M$7,P$1,P$2,CONFIGURATION!$B$10,\"BMA\",CONFIGURATION!$B$1,\"bscr\",1000000 )","v":"Mapped"},null,"brrt_TotalNetStatutoryPropertyCatastrophePremiumModeledNetOfUpfrontReinsurancePremiumsPaid",{"$f":"XBRLMap(J20,P20&\".\"&$M$7,P$1,P$2,CONFIGURATION!$B$10,\"BMA\",CONFIGURATION!$B$1,\"bscr\",1000000)","v":"Mapped"},null,null,"bma_TotalGrossStatutoryPropertyCatastrophePremiumModelledDollarM","bma_TotalStatutoryNetPropertyCatastrophePremiumModelledDollarM"]
[null,null,null,"Total gross all other catastrophe premium modeled",{"$f":"Import!I6321","v":0},null,null,null,"Total net all other catastrophe premium modeled",{"$f":"Import!I6332","v":0},null,null,"brrt_TotalGrossAllOtherPremiumModeled",{"$f":"XBRLMap(E21,M21&\".\"&$M$7,P$1,P$2,CONFIGURATION!$B$10,\"BMA\",CONFIGURATION!$B$1,\"bscr\",1000000 )","v":"Mapped"},null,"brrt_TotalNetAllOtherPremiumModeledNetOfProportionalReinsuranceOnly",{"$f":"XBRLMap(J21,P21&\".\"&$M$7,P$1,P$2,CONFIGURATION!$B$10,\"BMA\",CONFIGURATION!$B$1,\"bscr\",1000000)","v":"Mapped"},null,null,"bma_TotalGrossAllOtherPremiumModelledDollarM","bma_TotalNetAllOtherPremiumModelledDollarM"]
[null,null,null,null,null,null,null,null,null,null,null,null,"",null,null,""]
[null,null,null,"Total gross statutory property catastrophe limits exposed - modeled",{"$f":"Import!I6322","v":0},null,null,null,"Total net statutory property catastrophe limits exposed – modeled",{"$f":"Import!I6333","v":0},null,null,"brrt_TotalGrossStatutoryPropertyCatastropheLimitsExposedModeled",{"$f":"XBRLMap(E23,M23&\".\"&$M$7,P$1,P$2,CONFIGURATION!$B$10,\"BMA\",CONFIGURATION!$B$1,\"bscr\",1000000 )","v":"Mapped"},null,"brrt_TotalNetStatutoryPropertyCatastropheLimitsExposedModeledNetOfProportionalReinsuranceOnly",{"$f":"XBRLMap(J23,P23&\".\"&$M$7,P$1,P$2,CONFIGURATION!$B$10,\"BMA\",CONFIGURATION!$B$1,\"bscr\",1000000)","v":"Mapped"},null,null,"bma_TotalGrossStatutoryPropertyCatastropheLimitsExposedDollarMModelled","bma_TotalNetStatutoryPropertyCatastropheLimitsExposedDollarMModelled"]
[null,null,null,"Total gross statutory property catastrophe limits exposed - not modeled",{"$f":"Import!I6323","v":0},null,null,null,"Total net statutory property catastrophe limits exposed– not modeled",{"$f":"Import!I6334","v":0},null,null,"brrt_TotalGrossStatutoryPropertyCatastropheLimitsExposedNotModeled",{"$f":"XBRLMap(E24,M24&\".\"&$M$7,P$1,P$2,CONFIGURATION!$B$10,\"BMA\",CONFIGURATION!$B$1,\"bscr\",1000000 )","v":"Mapped"},null,"brrt_TotalNetStatutoryPropertyCatastropheLimitsExposedNotModeledNetOfProportionalReinsuranceOnly",{"$f":"XBRLMap(J24,P24&\".\"&$M$7,P$1,P$2,CONFIGURATION!$B$10,\"BMA\",CONFIGURATION!$B$1,\"bscr\",1000000)","v":"Mapped"},null,null,"bma_TotalGrossStatutoryPropertyCatastropheLimitsExposedDollarMNotModelled","bma_TotalNetStatutoryPropertyCatastropheLimitsExposedDollarMNotModelled"]
[null,null,null,"Total gross all other lines limits exposed - modeled",{"$f":"Import!I6324","v":0},null,null,null,"Total net all other lines limits exposed – modeled",{"$f":"Import!I6335","v":0},null,null,"brrt_TotalGrossAllOtherLinesLimitsExposedModeled",{"$f":"XBRLMap(E25,M25&\".\"&$M$7,P$1,P$2,CONFIGURATION!$B$10,\"BMA\",CONFIGURATION!$B$1,\"bscr\",1000000 )","v":"Mapped"},null,"brrt_TotalNetAllOtherLinesLimitsExposedModeledNetOfProportionalReinsuranceOnly",{"$f":"XBRLMap(J25,P25&\".\"&$M$7,P$1,P$2,CONFIGURATION!$B$10,\"BMA\",CONFIGURATION!$B$1,\"bscr\",1000000)","v":"Mapped"},null,null,"bma_TotalGrossAllOtherLinesLimitsExposedDollarMModelled","bma_TotalNetAllOtherLinesLimitsExposedDollarMModelled"]
[null,null,null,"Total gross all other lines limits exposed  - not modeled",{"$f":"Import!I6325","v":0},null,null,null,"Total net all other lines limits exposed - not modeled",{"$f":"Import!I6336","v":0},null,null,"brrt_TotalGrossAllOtherLinesLimitsExposedNotModeled",{"$f":"XBRLMap(E26,M26&\".\"&$M$7,P$1,P$2,CONFIGURATION!$B$10,\"BMA\",CONFIGURATION!$B$1,\"bscr\",1000000 )","v":"Mapped"},null,"brrt_TotalNetAllOtherLinesLimitsExposedNotModeledNetOfProportionalReinsuranceOnly",{"$f":"XBRLMap(J26,P26&\".\"&$M$7,P$1,P$2,CONFIGURATION!$B$10,\"BMA\",CONFIGURATION!$B$1,\"bscr\",1000000)","v":"Mapped"},null,null,"bma_TotalGrossAllOtherLinesLimitsExposedDollarMNotModelled","bma_TotalNetAllOtherLinesLimitsExposedDollarMNotModelled"]
[null,null,null,"Total gross premium without an occurrence or aggregate limit:",{"$f":"Import!I6326","v":0},null,null,null,"Total net premium without an occurrence or aggregate limit",{"$f":"Import!I6337","v":0},null,null,"brrt_TotalGrossPremiumWithoutAnOccurrenceOrAggregateLimit",{"$f":"XBRLMap(E27,M27&\".\"&$M$7,P$1,P$2,CONFIGURATION!$B$10,\"BMA\",CONFIGURATION!$B$1,\"bscr\",1000000 )","v":"Mapped"},null,"brrt_TotalNetPremiumWithoutAnOccurrenceOrAggregateLimit",{"$f":"XBRLMap(J27,P27&\".\"&$M$7,P$1,P$2,CONFIGURATION!$B$10,\"BMA\",CONFIGURATION!$B$1,\"bscr\",1000000)","v":"Mapped"},null,null,"bma_TotalGrossPremiumWithoutAnOccurrenceOrAggregateLimit","bma_TotalNetPremiumWithoutAnOccurrenceOrAggregateLimit"]
[null,null,null,"Total gross premium with non determinable Total Insured Value (“TIV”):",{"$f":"Import!I6327","v":0},null,null,null,"Total net premium with non-determinable TIV:",{"$f":"Import!I6338","v":0},null,null,"brrt_TotalGrossPremiumWithNonDeterminableTotalInsuredValueTIV",{"$f":"XBRLMap(E28,M28&\".\"&$M$7,P$1,P$2,CONFIGURATION!$B$10,\"BMA\",CONFIGURATION!$B$1,\"bscr\",1000000 )","v":"Mapped"},null,"brrt_TotalNetPremiumWithNonDeterminableTIV",{"$f":"XBRLMap(J28,P28&\".\"&$M$7,P$1,P$2,CONFIGURATION!$B$10,\"BMA\",CONFIGURATION!$B$1,\"bscr\",1000000)","v":"Mapped"},null,null,"bma_TotalGrossPremiumWithNondeterminableTiv","bma_TotalNetPremiumWithNondeterminableTiv"]
[null,null,null,null,null,null,null,null,null,null,null,null,""]
[null,"2. Significant sources of catastrophe risk and associated loss included in the EP Curves",null,null,null,null,null,null,null,null,null,null,""]
[null,null,null,"Allocated loss adjustment expense",{"$f":"Import!I6339","v":"Select Yes/No"},null,null,{"$f":"IF(E31=\"No\",\"If no, why not:\",\"\")","v":""},null,null,null,null,"brrt_AllocatedLossAdjustmentExpenseIsSignificantSourceOfCatastropheRiskAndAssociatedLossIncludedInEPCurves",{"$f":"XBRLMapBoolean(E31,M31&\".\"&$M$7,P$1,P$2,CONFIGURATION!$B$10,\"BMA\",CONFIGURATION!$B$1,\"bscr\",IF(E31=\"Yes\",\"1\",\"0\"))","v":"Mapped"},null,null,null,null,null,"bma_AllocatedLossAdjustmentExpense"]
[null,null,null,"Property - buildings",{"$f":"Import!I6340","v":"Select Yes/No"},null,null,"",null,null,null,null,"brrt_PropertyBuildingsIsSignificantSourceOfCatastropheRiskAndAssociatedLossIncludedInEPCurves",{"$f":"XBRLMapBoolean(E32,M32&\".\"&$M$7,P$1,P$2,CONFIGURATION!$B$10,\"BMA\",CONFIGURATION!$B$1,\"bscr\",IF(E32=\"Yes\",\"1\",\"0\"))","v":"Mapped"},null,null,null,null,null,"bma_PropertyBuildings"]
[null,null,null,"Property - contents",{"$f":"Import!I6341","v":"Select Yes/No"},null,null,"",null,null,null,null,"brrt_PropertyContentsIsSignificantSourceOfCatastropheRiskAndAssociatedLossIncludedInEPCurves",{"$f":"XBRLMapBoolean(E33,M33&\".\"&$M$7,P$1,P$2,CONFIGURATION!$B$10,\"BMA\",CONFIGURATION!$B$1,\"bscr\",IF(E33=\"Yes\",\"1\",\"0\"))","v":"Mapped"},null,null,null,null,null,"bma_PropertyContents"]
[null,null,null,"Additional living expenses",{"$f":"Import!I6342","v":"Select Yes/No"},null,null,"",null,null,null,null,"brrt_AdditionalLivingExpensesIsSignificantSourceOfCatastropheRiskAndAssociatedLossIncludedInEPCurves",{"$f":"XBRLMapBoolean(E34,M34&\".\"&$M$7,P$1,P$2,CONFIGURATION!$B$10,\"BMA\",CONFIGURATION!$B$1,\"bscr\",IF(E34=\"Yes\",\"1\",\"0\"))","v":"Mapped"},null,null,null,null,null,"bma_AdditionalLivingExpenses"]
[null,null,null,"Business interruption",{"$f":"Import!I6343","v":"Select"},null,null,"",null,null,null,null,"brrt_BusinessInterruptionIsSignificantSourceOfCatastropheRiskAndAssociatedLossIncludedInEPCurves",{"$f":"XBRLMap(E35,M35&\".\"&$M$7,P$1,P$2,CONFIGURATION!$B$10,\"BMA\",CONFIGURATION!$B$1,\"bscr\")","v":"Mapped"},null,null,null,null,null,"bma_BusinessInterruption"]
[null,null,null,"Auto physical damage",{"$f":"Import!I6344","v":"Select"},null,null,"",null,null,null,null,"brrt_AutoPhysicalDamageIsSignificantSourceOfCatastropheRiskAndAssociatedLossIncludedInEPCurves",{"$f":"XBRLMap(E36,M36&\".\"&$M$7,P$1,P$2,CONFIGURATION!$B$10,\"BMA\",CONFIGURATION!$B$1,\"bscr\")","v":"Mapped"},null,null,null,null,null,"bma_AutoPhysicalDamage"]
[null,null,null,"Worker's compensation",{"$f":"Import!I6345","v":"Select"},null,null,"",null,null,null,null,"brrt_WorkersCompensationIsSignificantSourceOfCatastropheRiskAndAssociatedLossIncludedInEPCurves",{"$f":"XBRLMap(E37,M37&\".\"&$M$7,P$1,P$2,CONFIGURATION!$B$10,\"BMA\",CONFIGURATION!$B$1,\"bscr\")","v":"Mapped"},null,null,null,null,null,"bma_WorkerCompensation"]
[null,null,null,"Personal accident",{"$f":"Import!I6346","v":"Select"},null,null,"",null,null,null,null,"brrt_PersonalAccidentIsSignificantSourceOfCatastropheRiskAndAssociatedLossIncludedInEPCurves",{"$f":"XBRLMap(E38,M38&\".\"&$M$7,P$1,P$2,CONFIGURATION!$B$10,\"BMA\",CONFIGURATION!$B$1,\"bscr\")","v":"Mapped"},null,null,null,null,null,"bma_PersonalAccident"]
[null,null,null,"Life insurance",{"$f":"Import!I6347","v":"Select"},null,null,"",null,null,null,null,"brrt_LifeInsuranceIsSignificantSourceOfCatastropheRiskAndAssociatedLossIncludedInEPCurves",{"$f":"XBRLMap(E39,M39&\".\"&$M$7,P$1,P$2,CONFIGURATION!$B$10,\"BMA\",CONFIGURATION!$B$1,\"bscr\")","v":"Mapped"},null,null,null,null,null,"bma_LifeInsurance"]
[null,null,null,"Onshore energy",{"$f":"Import!I6348","v":"Select"},null,null,"",null,null,null,null,"brrt_OnshoreEnergyIsSignificantSourceOfCatastropheRiskAndAssociatedLossIncludedInEPCurves",{"$f":"XBRLMap(E40,M40&\".\"&$M$7,P$1,P$2,CONFIGURATION!$B$10,\"BMA\",CONFIGURATION!$B$1,\"bscr\")","v":"Mapped"},null,null,null,null,null,"bma_OnshoreEnergy"]
[null,null,null,"Offshore energy",{"$f":"Import!I6349","v":"Select"},null,null,"",null,null,null,null,"brrt_OffshoreEnergyIsSignificantSourceOfCatastropheRiskAndAssociatedLossIncludedInEPCurves",{"$f":"XBRLMap(E41,M41&\".\"&$M$7,P$1,P$2,CONFIGURATION!$B$10,\"BMA\",CONFIGURATION!$B$1,\"bscr\")","v":"Mapped"},null,null,null,null,null,"bma_OffshoreEnergy"]
[null,null,null,"Ocean marine",{"$f":"Import!I6350","v":"Select"},null,null,"",null,null,null,null,"brrt_OceanMarineIsSignificantSourceOfCatastropheRiskAndAssociatedLossIncludedInEPCurves",{"$f":"XBRLMap(E42,M42&\".\"&$M$7,P$1,P$2,CONFIGURATION!$B$10,\"BMA\",CONFIGURATION!$B$1,\"bscr\")","v":"Mapped"},null,null,null,null,null,"bma_OceanMarine"]
[null,null,null,"Inland marine",{"$f":"Import!I6351","v":"Select"},null,null,"",null,null,null,null,"brrt_InlandMarineIsSignificantSourceOfCatastropheRiskAndAssociatedLossIncludedInEPCurves",{"$f":"XBRLMap(E43,M43&\".\"&$M$7,P$1,P$2,CONFIGURATION!$B$10,\"BMA\",CONFIGURATION!$B$1,\"bscr\")","v":"Mapped"},null,null,null,null,null,"bma_InlandMarine"]
[null,null,null,"Flood",{"$f":"Import!I6352","v":"Select"},null,null,"",null,null,null,null,"brrt_FloodIsSignificantSourceOfCatastropheRiskAndAssociatedLossIncludedInEPCurves",{"$f":"XBRLMap(E44,M44&\".\"&$M$7,P$1,P$2,CONFIGURATION!$B$10,\"BMA\",CONFIGURATION!$B$1,\"bscr\")","v":"Mapped"},null,null,null,null,null,"bma_Flood"]
[null,null,null,"Crop",{"$f":"Import!I6353","v":"Select"},null,null,"",null,null,null,null,"brrt_CropIsSignificantSourceOfCatastropheRiskAndAssociatedLossIncludedInEPCurves",{"$f":"XBRLMap(E45,M45&\".\"&$M$7,P$1,P$2,CONFIGURATION!$B$10,\"BMA\",CONFIGURATION!$B$1,\"bscr\")","v":"Mapped"},null,null,null,null,null,"bma_Crop"]
[null,null,null,"Other primary insurance",{"$f":"Import!I6354","v":"Select"},null,null,"",null,null,null,null,"brrt_OtherPrimaryInsuranceIsSignificantSourceOfCatastropheRiskAndAssociatedLossIncludedInEPCurves",{"$f":"XBRLMap(E46,M46&\".\"&$M$7,P$1,P$2,CONFIGURATION!$B$10,\"BMA\",CONFIGURATION!$B$1,\"bscr\")","v":"Mapped"},null,null,null,null,null,"bma_OtherPrimaryInsurance"]
[null,null,null,null,null,null,null,null,null,null,null,null,""]
[null,"3. Assumed reinsurance information:",null,null,null,null,null,null,null,null,null,null,""]
[null,null,null,"Proportional - quota share",{"$f":"Import!I6355","v":"Select"},null,null,{"$f":"IF(E49=\"No\",\"If no, why not:\",\"\")","v":""},null,null,null,null,"brrt_ProportionalQuotaShareIsAssumedReinsuranceInformation",{"$f":"XBRLMap(E49,M49&\".\"&$M$7,P$1,P$2,CONFIGURATION!$B$10,\"BMA\",CONFIGURATION!$B$1,\"bscr\")","v":"Mapped"},null,null,null,null,null,"bma_ProportionalQuotaShare"]
[null,null,null,"Proportional - surplus share",{"$f":"Import!I6356","v":"Select"},null,null,{"$f":"IF(E50=\"No\",\"If no, why not:\",\"\")","v":""},null,null,null,null,"brrt_ProportionalSurplusShareIsAssumedReinsuranceInformation",{"$f":"XBRLMap(E50,M50&\".\"&$M$7,P$1,P$2,CONFIGURATION!$B$10,\"BMA\",CONFIGURATION!$B$1,\"bscr\")","v":"Mapped"},null,null,null,null,null,"bma_ProportionalSurplusShare"]
[null,null,null,"Non-proportional - catastrophe",{"$f":"Import!I6357","v":"Select"},null,null,{"$f":"IF(E51=\"No\",\"If no, why not:\",\"\")","v":""},null,null,null,null,"brrt_NonProportionalCatastropheIsAssumedReinsuranceInformation",{"$f":"XBRLMap(E51,M51&\".\"&$M$7,P$1,P$2,CONFIGURATION!$B$10,\"BMA\",CONFIGURATION!$B$1,\"bscr\")","v":"Mapped"},null,null,null,null,null,"bma_NonproportionalCatastrophe"]
[null,null,null,"Non-proportional - per risk",{"$f":"Import!I6358","v":"Select"},null,null,{"$f":"IF(E52=\"No\",\"If no, why not:\",\"\")","v":""},null,null,null,null,"brrt_NonProportionalPerRiskIsAssumedReinsuranceInformation",{"$f":"XBRLMap(E52,M52&\".\"&$M$7,P$1,P$2,CONFIGURATION!$B$10,\"BMA\",CONFIGURATION!$B$1,\"bscr\")","v":"Mapped"},null,null,null,null,null,"bma_NonproportionalPerRisk"]
[null,null,null,"Other reinsurance assumed",{"$f":"Import!I6359","v":"Select"},null,null,{"$f":"IF(E53=\"No\",\"If no, why not:\",\"\")","v":""},null,null,null,null,"brrt_OtherReinsuranceAssumedIsAssumedReinsuranceInformation",{"$f":"XBRLMap(E53,M53&\".\"&$M$7,P$1,P$2,CONFIGURATION!$B$10,\"BMA\",CONFIGURATION!$B$1,\"bscr\")","v":"Mapped"},null,null,null,null,null,"bma_OtherReinsuranceAssumed"]
[null,null,null,null,null,null,null,null,null,null,null,null,""]
[null,"4. Pools and assessments information:",null,null,null,null,null,null,null,null,null,null,""]
[null,null,null,"Voluntary pools and/or assessments",{"$f":"Import!I6360","v":"Select"},null,null,{"$f":"IF(E56=\"No\",\"If no, why not:\",\"\")","v":""},null,null,null,null,"brrt_VoluntaryPoolsAndOrAssessmentsIsPoolsAndAssessmentsInformation",{"$f":"XBRLMap(E56,M56&\".\"&$M$7,P$1,P$2,CONFIGURATION!$B$10,\"BMA\",CONFIGURATION!$B$1,\"bscr\")","v":"Mapped"},null,null,null,null,null,"bma_VoluntaryPoolsAndorAssessments"]
[null,null,null,"Involuntary pools and/or assessments",{"$f":"Import!I6361","v":"Select"},null,null,{"$f":"IF(E57=\"No\",\"If no, why not:\",\"\")","v":""},null,null,null,null,"brrt_InvoluntaryPoolsAndOrAssessmentsIsPoolsAndAssessmentsInformation",{"$f":"XBRLMap(E57,M57&\".\"&$M$7,P$1,P$2,CONFIGURATION!$B$10,\"BMA\",CONFIGURATION!$B$1,\"bscr\")","v":"Mapped"},null,null,null,null,null,"bma_InvoluntaryPoolsAndorAssessments"]
[null,null,null,null,null,null,null,null,null,null,null,null,""]
[null,"5. Supplemental perils and model options:",null,null,null,null,null,null,null,null,null,null,""]
[null,null,null,"Fire following",{"$f":"Import!I6362","v":"Select"},null,null,{"$f":"IF(E60=\"No\",\"If no, why not:\",\"\")","v":""},null,null,null,null,"brrt_FireFollowingIsSupplementalPerilsAndModelOption",{"$f":"XBRLMap(E60,M60&\".\"&$M$7,P$1,P$2,CONFIGURATION!$B$10,\"BMA\",CONFIGURATION!$B$1,\"bscr\")","v":"Mapped"},null,null,null,null,null,"bma_FireFollowing"]
[null,null,null,"Sprinkler leakage",{"$f":"Import!I6363","v":"Select"},null,null,{"$f":"IF(E61=\"No\",\"If no, why not:\",\"\")","v":""},null,null,null,null,"brrt_SprinklerLeakageIsSupplementalPerilsAndModelOption",{"$f":"XBRLMap(E61,M61&\".\"&$M$7,P$1,P$2,CONFIGURATION!$B$10,\"BMA\",CONFIGURATION!$B$1,\"bscr\")","v":"Mapped"},null,null,null,null,null,"bma_SprinklerLeakage"]
[null,null,null,"Storm surge",{"$f":"Import!I6364","v":"Select"},null,null,{"$f":"IF(E62=\"No\",\"If no, why not:\",\"\")","v":""},null,null,null,null,"brrt_StormSurgeIsSupplementalPerilsAndModelOption",{"$f":"XBRLMap(E62,M62&\".\"&$M$7,P$1,P$2,CONFIGURATION!$B$10,\"BMA\",CONFIGURATION!$B$1,\"bscr\")","v":"Mapped"},null,null,null,null,null,"bma_StormSurge"]
[null,null,null,"Demand surge",{"$f":"Import!I6365","v":"Select"},null,null,{"$f":"IF(E63=\"No\",\"If no, why not:\",\"\")","v":""},null,null,null,null,"brrt_DemandSurgeIsSupplementalPerilsAndModelOption",{"$f":"XBRLMap(E63,M63&\".\"&$M$7,P$1,P$2,CONFIGURATION!$B$10,\"BMA\",CONFIGURATION!$B$1,\"bscr\")","v":"Mapped"},null,null,null,null,null,"bma_DemandSurge"]
[null,null,null,"Secondary uncertainty",{"$f":"Import!I6366","v":"Select"},null,null,{"$f":"IF(E64=\"No\",\"If no, why not:\",\"\")","v":""},null,null,null,null,"brrt_SecondaryUncertaintyIsSupplementalPerilsAndModelOption",{"$f":"XBRLMap(E64,M64&\".\"&$M$7,P$1,P$2,CONFIGURATION!$B$10,\"BMA\",CONFIGURATION!$B$1,\"bscr\")","v":"Mapped"},null,null,null,null,null,"bma_SecondaryUncertainty"]
[null,null,null,"Atlantic multi-decadal oscillation selection",{"$f":"Import!I6367","v":"Select"},null,null,{"$f":"IF(E65=\"Long-term frequency\",\"If long-term frequency, why:\",\"\")","v":""},null,null,null,null,"brrt_AtlanticMultiDecadalOscillationSelectionIsSupplementalPerilsAndModelOption",{"$f":"XBRLMap(E65,M65&\".\"&$M$7,P$1,P$2,CONFIGURATION!$B$10,\"BMA\",CONFIGURATION!$B$1,\"bscr\")","v":"Mapped"},null,null,null,null,null,"bma_AtlanticMultidecadalOscillationSelection"]
[null,null,null,null,null,null,null,null,null,null,null,null,""]
[null,"6. Other adjustments information:",null,null,null,null,null,null,null,null,null,null,""]
[null,null,null,"Adjustments for exposure data quality",{"$f":"Import!I6368","v":"Select Yes/No"},null,null,{"$f":"IF(E68=\"No\",\"If no, why not:\",\"\")","v":""},null,null,null,null,"brrt_AdjustmentsForExposureDataQualityIsOtherAdjustmentsInformation",{"$f":"XBRLMapBoolean(E68,M68&\".\"&$M$7,P$1,P$2,CONFIGURATION!$B$10,\"BMA\",CONFIGURATION!$B$1,\"bscr\",IF(E68=\"Yes\",\"1\",\"0\"))","v":"Mapped"},null,null,null,null,null,"bma_AdjustmentsForExposureDataQuality"]
[null,null,null,"Adjustments for insurance to value",{"$f":"Import!I6369","v":"Select Yes/No"},null,null,"",null,null,null,null,"brrt_AdjustmentsForInsuranceToValueIsOtherAdjustmentsInformation",{"$f":"XBRLMapBoolean(E69,M69&\".\"&$M$7,P$1,P$2,CONFIGURATION!$B$10,\"BMA\",CONFIGURATION!$B$1,\"bscr\",IF(E69=\"Yes\",\"1\",\"0\"))","v":"Mapped"},null,null,null,null,null,"bma_AdjustmentsForInsuranceToValue"]
[null,null,null,"Adjustments for exposure growth",{"$f":"Import!I6370","v":"Select Yes/No"},null,null,"",null,null,null,null,"brrt_AdjustmentsForExposureGrowthIsOtherAdjustmentsInformation",{"$f":"XBRLMapBoolean(E70,M70&\".\"&$M$7,P$1,P$2,CONFIGURATION!$B$10,\"BMA\",CONFIGURATION!$B$1,\"bscr\",IF(E70=\"Yes\",\"1\",\"0\"))","v":"Mapped"},null,null,null,null,null,"bma_AdjustmentsForExposureGrowth"]
[null,null,null,"Supplemental losses for non-modeled line of business",{"$f":"Import!I6371","v":"Select Yes/No"},null,null,"",null,null,null,null,"brrt_SupplementalLossesForNonModeledLineOfBusinessIsOtherAdjustmentsInformation",{"$f":"XBRLMapBoolean(E71,M71&\".\"&$M$7,P$1,P$2,CONFIGURATION!$B$10,\"BMA\",CONFIGURATION!$B$1,\"bscr\",IF(E71=\"Yes\",\"1\",\"0\"))","v":"Mapped"},null,null,null,null,null,"bma_SupplementalLossesForNonmodelledLineOfBusiness"]
[null,null,null,"Adjustments for model deficiencies – severity",{"$f":"Import!I6372","v":"Select"},null,null,"",null,null,null,null,"brrt_AdjustmentsForModelDeficienciesSeverityIsOtherAdjustmentsInformation",{"$f":"XBRLMap(E72,M72&\".\"&$M$7,P$1,P$2,CONFIGURATION!$B$10,\"BMA\",CONFIGURATION!$B$1,\"bscr\")","v":"Mapped"},null,null,null,null,null,"bma_AdjustmentsForModelDeficienciesSeverity"]
[null,null,null,"Adjustments for model deficiencies - frequency",{"$f":"Import!I6373","v":"Select"},null,null,"",null,null,null,null,"brrt_AdjustmentsForModelDeficienciesFrequencyIsOtherAdjustmentsInformation",{"$f":"XBRLMap(E73,M73&\".\"&$M$7,P$1,P$2,CONFIGURATION!$B$10,\"BMA\",CONFIGURATION!$B$1,\"bscr\")","v":"Mapped"},null,null,null,null,null,"bma_AdjustmentsForModelDeficienciesFrequency"]
[null,null,null,"Additional demand surge loadings",{"$f":"Import!I6374","v":"Select Yes/No"},null,null,"",null,null,null,null,"brrt_AdditionalDemandSurgeLoadingsIsOtherAdjustmentsInformation",{"$f":"XBRLMapBoolean(E74,M74&\".\"&$M$7,P$1,P$2,CONFIGURATION!$B$10,\"BMA\",CONFIGURATION!$B$1,\"bscr\",IF(E74=\"Yes\",\"1\",\"0\"))","v":"Mapped"},null,null,null,null,null,"bma_AdditionalDemandSurgeLoadings"]
[null,null,null,"Other factors for prudence",{"$f":"Import!I6375","v":"Select Yes/No"},null,null,"",null,null,null,null,"brrt_OtherFactorsForPrudenceIsOtherAdjustmentsInformation",{"$f":"XBRLMapBoolean(E75,M75&\".\"&$M$7,P$1,P$2,CONFIGURATION!$B$10,\"BMA\",CONFIGURATION!$B$1,\"bscr\",IF(E75=\"Yes\",\"1\",\"0\"))","v":"Mapped"},null,null,null,null,null,"bma_OtherFactorsForPrudence"]
[null,null,null,null,null,null,null,null,null,null,null,null,""]
[null,null,null,null,null,"Average loading factor applied to ground up loss for all adjustments applied:",{"$f":"Import!I6376","v":0},null,null,null,null,null,"brrt_AverageLoadingFactorAppliedToGroundUpLossForAllAdjustmentsApplied",{"$f":"XBRLMap(G77,M77&\".\"&$M$7,P$1,P$2,CONFIGURATION!$B$10,\"BMA\",CONFIGURATION!$B$1,\"bscr\")","v":"Mapped"},null,null,null,null,null,"bma_AverageLoadingFactorAppliedToGroundUpLossForAllAdjustmentsApplied"]
[null,null,null,null,null,"Is this average loading factor determined analytically or estimated?",{"$f":"Import!I6377","v":"Select"},null,null,null,null,null,"brrt_Averageloadingfactorisdeterminedanalyticallyorestimated",{"$f":"XBRLMap(G78,M78&\".\"&$M$7,P$1,P$2,CONFIGURATION!$B$10,\"BMA\",CONFIGURATION!$B$1,\"bscr\")","v":"Mapped"},null,null,null,null,null,"bma_IsThisAverageLoadingFactorDeterminedAnalyticallyOrEstimated"]
[null,null,null,null,null,null,null,null,null,null,null,null,""]
[null,null,null,null,null,"Which vendor catastrophe models (\"cat model\") do you include in this modeling?",{"$f":"Import!I6378","v":"Select Cat Model(s)"},null,null,null,null,null,"brrt_VendorCatastropheModels",{"$f":"XBRLMap(G80,M80&\".\"&$M$7,P$1,P$2,CONFIGURATION!$B$10,\"BMA\",CONFIGURATION!$B$1,\"bscr\")","v":"Mapped"},null,null,null,null,null,"bma_WhichVendorCatModelsDoYouIncludeInThisModeling"]
[null,null,null,null,null,"Which version of the model or version of the region-peril models are used for each vendor catastrophe model as appropriate?",{"$f":"Import!I6379","v":0},null,null,null,null,null,"brrt_VersionOfTheModelOrVersionOfTheRegionPerilModelsUsedForEachVendorCatastropheModel",{"$f":"XBRLMap(G81,M81&\".\"&$M$7,P$1,P$2,CONFIGURATION!$B$10,\"BMA\",CONFIGURATION!$B$1,\"bscr\")","v":"Mapped"},null,null,null,null,null,"bma_WhichVersionOfModelOrVersionOfRegionperilModelsAreUsedForEachVendorCatModelAsAppropriate"]
[]
[]
[]
[]
[null,null,null,null,"brrt_GrossPerOccurrenceLoss","brrt_GrossAggregateTVaR","brrt_NetPerOccurrenceLoss","brrt_NetAggregateTVaR"]
[null,null,null,null,{"$f":"XBRLMap(E9,E$86&\".\"&$M9&\".\"&$M$7,$P$1,$P$2,CONFIGURATION!$B$10,\"BMA\",CONFIGURATION!$B$1,\"bscr\",1000000)","v":"Mapped"},{"$f":"XBRLMap(F9,F$86&\".\"&$M9&\".\"&$M$7,$P$1,$P$2,CONFIGURATION!$B$10,\"BMA\",CONFIGURATION!$B$1,\"bscr\",1000000)","v":"Mapped"},{"$f":"XBRLMap(G9,G$86&\".\"&$M9&\".\"&$M$7,$P$1,$P$2,CONFIGURATION!$B$10,\"BMA\",CONFIGURATION!$B$1,\"bscr\",1000000)","v":"Mapped"},{"$f":"XBRLMap(H9,H$86&\".\"&$M9&\".\"&$M$7,$P$1,$P$2,CONFIGURATION!$B$10,\"BMA\",CONFIGURATION!$B$1,\"bscr\",1000000)","v":"Mapped"}]
[null,null,null,null,{"$f":"XBRLMap(E10,E$86&\".\"&$M10&\".\"&$M$7,$P$1,$P$2,CONFIGURATION!$B$10,\"BMA\",CONFIGURATION!$B$1,\"bscr\",1000000)","v":"Mapped"},{"$f":"XBRLMap(F10,F$86&\".\"&$M10&\".\"&$M$7,$P$1,$P$2,CONFIGURATION!$B$10,\"BMA\",CONFIGURATION!$B$1,\"bscr\",1000000)","v":"Mapped"},{"$f":"XBRLMap(G10,G$86&\".\"&$M10&\".\"&$M$7,$P$1,$P$2,CONFIGURATION!$B$10,\"BMA\",CONFIGURATION!$B$1,\"bscr\",1000000)","v":"Mapped"},{"$f":"XBRLMap(H10,H$86&\".\"&$M10&\".\"&$M$7,$P$1,$P$2,CONFIGURATION!$B$10,\"BMA\",CONFIGURATION!$B$1,\"bscr\",1000000)","v":"Mapped"}]
[null,null,null,null,{"$f":"XBRLMap(E11,E$86&\".\"&$M11&\".\"&$M$7,$P$1,$P$2,CONFIGURATION!$B$10,\"BMA\",CONFIGURATION!$B$1,\"bscr\",1000000)","v":"Mapped"},{"$f":"XBRLMap(F11,F$86&\".\"&$M11&\".\"&$M$7,$P$1,$P$2,CONFIGURATION!$B$10,\"BMA\",CONFIGURATION!$B$1,\"bscr\",1000000)","v":"Mapped"},{"$f":"XBRLMap(G11,G$86&\".\"&$M11&\".\"&$M$7,$P$1,$P$2,CONFIGURATION!$B$10,\"BMA\",CONFIGURATION!$B$1,\"bscr\",1000000)","v":"Mapped"},{"$f":"XBRLMap(H11,H$86&\".\"&$M11&\".\"&$M$7,$P$1,$P$2,CONFIGURATION!$B$10,\"BMA\",CONFIGURATION!$B$1,\"bscr\",1000000)","v":"Mapped"}]
[null,null,null,null,{"$f":"XBRLMap(E12,E$86&\".\"&$M12&\".\"&$M$7,$P$1,$P$2,CONFIGURATION!$B$10,\"BMA\",CONFIGURATION!$B$1,\"bscr\",1000000)","v":"Mapped"},{"$f":"XBRLMap(F12,F$86&\".\"&$M12&\".\"&$M$7,$P$1,$P$2,CONFIGURATION!$B$10,\"BMA\",CONFIGURATION!$B$1,\"bscr\",1000000)","v":"Mapped"},{"$f":"XBRLMap(G12,G$86&\".\"&$M12&\".\"&$M$7,$P$1,$P$2,CONFIGURATION!$B$10,\"BMA\",CONFIGURATION!$B$1,\"bscr\",1000000)","v":"Mapped"},{"$f":"XBRLMap(H12,H$86&\".\"&$M12&\".\"&$M$7,$P$1,$P$2,CONFIGURATION!$B$10,\"BMA\",CONFIGURATION!$B$1,\"bscr\",1000000)","v":"Mapped"}]
[null,null,null,null,{"$f":"XBRLMap(E13,E$86&\".\"&$M13&\".\"&$M$7,$P$1,$P$2,CONFIGURATION!$B$10,\"BMA\",CONFIGURATION!$B$1,\"bscr\",1000000)","v":"Mapped"},{"$f":"XBRLMap(F13,F$86&\".\"&$M13&\".\"&$M$7,$P$1,$P$2,CONFIGURATION!$B$10,\"BMA\",CONFIGURATION!$B$1,\"bscr\",1000000)","v":"Mapped"},{"$f":"XBRLMap(G13,G$86&\".\"&$M13&\".\"&$M$7,$P$1,$P$2,CONFIGURATION!$B$10,\"BMA\",CONFIGURATION!$B$1,\"bscr\",1000000)","v":"Mapped"},{"$f":"XBRLMap(H13,H$86&\".\"&$M13&\".\"&$M$7,$P$1,$P$2,CONFIGURATION!$B$10,\"BMA\",CONFIGURATION!$B$1,\"bscr\",1000000)","v":"Mapped"}]
[]
[]
[]
[null,null,null,null,"bma_class3A_StatementComponentAxis3_bma_GrossPerOccurrenceLossDollarM","bma_class3A_StatementComponentAxis3_bma_GrossAggregateTvarDollarM","bma_class3A_StatementComponentAxis3_bma_NetPerOccurrenceLossDollarM","bma_class3A_StatementComponentAxis3_bma_NetAggregateTvarDollarM"]
[]
[]
[]
[]
[]
[]
[]
[]
[]
[]
[]
[]
[]
[]
[]
[]
[]
[]
[]
[]
[]
[]
[]
[]
[]
[]
[]
[]
[]
[]
[]
[]
[]
[]
[]
[]
[]
[]
[]
[]
[]
[]
[]
[]
[]
[]
[]
[]
[]
[]
[]
[]
[]
[]
[]
[]
[]
[]
[]
[]
[]
[]
[]
[]
[]
[]
[]
[]
[]
[]
[]
[]
[]
[]
[]
[]
[]
[]
[]
[]
[]
[]
[]
[]
[]
[]
[]
[null,null,null,null,"Select Cat Model(s)"]
[null,null,null,null,"AIR only"]
[null,null,null,null,"EQECAT only"]
[null,null,null,null,"RMS only"]
[null,null,null,null,"AIR and RMS"]
[null,null,null,null,"AIR and EQECAT"]
[null,null,null,null,"EQECAT and RMS"]
[null,null,null,null,"AIR, EQECAT and RMS"]

{"sheet":"Schedule X(b)","index":53,"n_rows":191,"n_cols":23,"rows_kept":191,"cut":false,"hidden":false,"merged":[[62,8,62,10],[64,4,64,6],[64,8,64,10],[65,4,65,6],[65,8,65,10],[63,8,63,10],[73,4,73,5],[73,8,73,10],[71,8,71,10],[72,8,72,10],[70,8,70,10],[52,4,52,6],[52,8,52,10],[53,4,53,6],[53,8,53,10],[69,8,69,10],[54,4,54,6],[54,8,54,10],[57,4,57,6],[57,8,57,10],[63,4,63,6],[58,4,58,6],[58,8,58,10],[61,4,61,6],[61,8,61,10],[66,8,66,10],[62,4,62,6],[82,6,83,7],[74,4,74,5],[74,8,74,10],[75,8,75,10],[76,8,76,10],[50,4,50,6],[50,8,50,10],[51,4,51,6],[39,8,39,10],[40,4,40,6],[40,8,40,10],[47,4,47,6],[47,8,47,10],[42,4,42,6],[42,8,42,10],[45,4,45,6],[45,8,45,10],[46,4,46,6],[46,8,46,10],[51,8,51,10],[43,4,43,6],[44,4,44,6],[41,4,41,6],[41,8,41,10],[44,8,44,10],[43,8,43,10],[38,4,38,6],[38,8,38,10],[39,4,39,6],[35,8,35,10],[36,4,36,6],[36,8,36,10],[37,4,37,6],[37,8,37,10],[33,8,33,10],[34,8,34,10],[7,4,7,5],[7,6,7,7],[32,8,32,10]]}
[null,"CATASTROPHE RISK RETURN: EP CURVE INSURANCE (TABLE 9A)",null,null,null,null,null,null,null,{"$f":"HYPERLINK(\"#'Index'!A1\",\"Return to Index\")","v":"Return to Index"},null,null,null,null,null,{"$f":"'Company Information'!L1","v":"01/01/2019"}]
[null,{"$f":"'Company Information'!C7","v":"Enter Company Name"},null,null,null,null,null,null,null,null,null,null,null,null,null,{"$f":"'Company Information'!L2","v":"12/31/2019"}]
[null,{"$f":"'Company Information'!C3+1","v":"2020-01-01"},null,null,null,null,null,null,null,"SCHEDULE X(b) ",null,null,""]
[]
[null,"Note:The EP curve for insurance will be required only when the percentage of net insurance premiums written is greater than 10% of total net premiums written."]
[]
[null,null,"1. Exceedance probability information:",null,null,null,null,null,null,null,null,null,"brrt_EPCurveAxis_brrt_InsuranceMember"]
[null,null,null,null," Gross loss",null,"Net loss"]
[null,null,null,"Loss Return period (years)","Gross per occurrence loss TVaR","Gross aggregate TVaR","Net per occurrence loss TVaR","Net aggregate TVaR "]
[null,null,null,null," (US$M)"," (US$M)"," (US$M)"," (US$M)",null,null,null,null,""]
[null,null,null,50,{"$f":"Import!I6381","v":0},{"$f":"Import!I6386","v":0},{"$f":"Import!I6391","v":0},{"$f":"Import!I6396","v":0},null,null,null,null,"brrt_LossReturnPeriodAxis_brrt_FiftyYearsMember",null,null,null,null,null,null,null,null,"bma_EPCurveInsurance_LossReturnPeriodyears50"]
[null,null,null,100,{"$f":"Import!I6382","v":0},{"$f":"Import!I6387","v":0},{"$f":"Import!I6392","v":0},{"$f":"Import!I6397","v":0},null,null,null,null,"brrt_LossReturnPeriodAxis_brrt_OneHundredYearsMember",null,null,null,null,null,null,null,null,"bma_EPCurveInsurance_LossReturnPeriodyears100"]
[null,null,null,250,{"$f":"Import!I6383","v":0},{"$f":"Import!I6388","v":0},{"$f":"Import!I6393","v":0},{"$f":"Import!I6398","v":0},null,null,null,null,"brrt_LossReturnPeriodAxis_brrt_TwoHundredFiftyYearsMember",null,null,null,null,null,null,null,null,"bma_EPCurveInsurance_LossReturnPeriodyears250"]
[null,null,null,500,{"$f":"Import!I6384","v":0},{"$f":"Import!I6389","v":0},{"$f":"Import!I6394","v":0},{"$f":"Import!I6399","v":0},null,null,null,null,"brrt_LossReturnPeriodAxis_brrt_FiveHundredYearsMember",null,null,null,null,null,null,null,null,"bma_EPCurveInsurance_LossReturnPeriodyears500"]
[null,null,null,1000,{"$f":"Import!I6385","v":0},{"$f":"Import!I6390","v":0},{"$f":"Import!I6395","v":0},{"$f":"Import!I6400","v":0},null,null,null,null,"brrt_LossReturnPeriodAxis_brrt_OneThousandYearsMember",null,null,null,null,null,null,null,null,"bma_EPCurveInsurance_LossReturnPeriodyears1000"]
[]
[null,null,null,null," Gross Loss (US$M)",null,null,null,null," Net Loss (US$M)",null,null,"",null,null,null,null,null,null,null,null,""]
[null,null,null,"Annual average aggregate gross loss ",{"$f":"Import!I6401","v":0},null,null,null,"Annual average aggregate net loss (net of reinstatements terms)",{"$f":"Import!I6411","v":0},null,null,"brrt_AnnualAverageAggregateGrossLoss",{"$f":"XBRLMap(E18,M18&\".\"&$M$7,P$1,P$2,CONFIGURATION!$B$10,\"BMA\",CONFIGURATION!$B$1,\"bscr\",1000000)","v":"Mapped"},null,"brrt_AnnualAverageAggregateNetLossNetOfReinstatementsTerms",{"$f":"XBRLMap(J18,P18&\".\"&$M$7,P$1,P$2,CONFIGURATION!$B$10,\"BMA\",CONFIGURATION!$B$1,\"bscr\",1000000)","v":"Mapped"},null,null,null,null,"bma_EPCurveInsurance_AnnualAverageAggregateGrossLossDollarM","bma_EPCurveInsurance_AnnualAverageAggregateNetLossDollarM"]
[null,null,null,null,null,null,null,null,"Reinstatement terms included in Annual average aggregated net loss",{"$f":"Import!I6412","v":0}]
[null,null,null,"Standard deviation of annual aggregate gross loss ",{"$f":"Import!I6402","v":0},null,null,null,"Standard deviation of annual aggregate net loss (net of reinstatements terms)",{"$f":"Import!I6413","v":0},null,null,"brrt_StandardDeviationOfAnnualAggregateGrossLoss",{"$f":"XBRLMap(E20,M20&\".\"&$M$7,P$1,P$2,CONFIGURATION!$B$10,\"BMA\",CONFIGURATION!$B$1,\"bscr\",1000000)","v":"Mapped"},null,"brrt_StandardDeviationOfAnnualAggregateNetLossNetOfReinstatementsTerms",{"$f":"XBRLMap(J20,P20&\".\"&$M$7,P$1,P$2,CONFIGURATION!$B$10,\"BMA\",CONFIGURATION!$B$1,\"bscr\",1000000)","v":"Mapped"},null,null,null,null,"bma_EPCurveInsurance_StandardDeviationOfAnnualAggregateGrossLossDollarM","bma_EPCurveInsurance_StandardDeviationOfAnnualAggregateNetLossDollarM"]
[null,null,null,null,null,null,null,null,null,null,null,null,"",null,null,"",null,null,null,null,null,"",""]
[null,null,null,"Total gross statutory property catastrophe premium modeled ",{"$f":"Import!I6403","v":0},null,null,null,"Total net statutory property catastrophe premium modeled",{"$f":"Import!I6414","v":0},null,null,"brrt_TotalGrossStatutoryPropertyCatastrophePremiumModeled",{"$f":"XBRLMap(E22,M22&\".\"&$M$7,P$1,P$2,CONFIGURATION!$B$10,\"BMA\",CONFIGURATION!$B$1,\"bscr\",1000000)","v":"Mapped"},null,"brrt_TotalNetStatutoryPropertyCatastrophePremiumModeledNetOfUpfrontReinsurancePremiumsPaid",{"$f":"XBRLMap(J22,P22&\".\"&$M$7,P$1,P$2,CONFIGURATION!$B$10,\"BMA\",CONFIGURATION!$B$1,\"bscr\",1000000)","v":"Mapped"},null,null,null,null,"bma_EPCurveInsurance_TotalGrossStatutoryPropertyCatastrophePremiumModelledDollarM","bma_EPCurveInsurance_TotalStatutoryNetPropertyCatastrophePremiumModelledDollarM"]
[null,null,null,"Total gross all other catastrophe premium modeled ",{"$f":"Import!I6404","v":0},null,null,null,"Total net all other catastrophe premium modeled",{"$f":"Import!I6415","v":0},null,null,"brrt_TotalGrossAllOtherPremiumModeled",{"$f":"XBRLMap(E23,M23&\".\"&$M$7,P$1,P$2,CONFIGURATION!$B$10,\"BMA\",CONFIGURATION!$B$1,\"bscr\",1000000)","v":"Mapped"},null,"brrt_TotalNetAllOtherPremiumModeledNetOfProportionalReinsuranceOnly",{"$f":"XBRLMap(J23,P23&\".\"&$M$7,P$1,P$2,CONFIGURATION!$B$10,\"BMA\",CONFIGURATION!$B$1,\"bscr\",1000000)","v":"Mapped"},null,null,null,null,"bma_EPCurveInsurance_TotalGrossAllOtherPremiumModelledDollarM","bma_EPCurveInsurance_TotalNetAllOtherPremiumModelledDollarM"]
[null,null,null,null,null,null,null,null,null,null,null,null,"",null,null,"",null,null,null,null,null,"",""]
[null,null,null,"Total gross statutory property catastrophe limits exposed - modeled",{"$f":"Import!I6405","v":0},null,null,null,"Total net statutory property catastrophe limits exposed – modeled",{"$f":"Import!I6416","v":0},null,null,"brrt_TotalGrossStatutoryPropertyCatastropheLimitsExposedModeled",{"$f":"XBRLMap(E25,M25&\".\"&$M$7,P$1,P$2,CONFIGURATION!$B$10,\"BMA\",CONFIGURATION!$B$1,\"bscr\",1000000)","v":"Mapped"},null,"brrt_TotalNetStatutoryPropertyCatastropheLimitsExposedModeledNetOfProportionalReinsuranceOnly",{"$f":"XBRLMap(J25,P25&\".\"&$M$7,P$1,P$2,CONFIGURATION!$B$10,\"BMA\",CONFIGURATION!$B$1,\"bscr\",1000000)","v":"Mapped"},null,null,null,null,"bma_EPCurveInsurance_TotalGrossStatutoryPropertyCatastropheLimitsExposedDollarMModelled","bma_EPCurveInsurance_TotalNetStatutoryPropertyCatastropheLimitsExposedDollarMModelled"]
[null,null,null,"Total gross statutory property catastrophe limits exposed - not modeled",{"$f":"Import!I6406","v":0},null,null,null,"Total net statutory property catastrophe limits exposed– not modeled",{"$f":"Import!I6417","v":0},null,null,"brrt_TotalGrossStatutoryPropertyCatastropheLimitsExposedNotModeled",{"$f":"XBRLMap(E26,M26&\".\"&$M$7,P$1,P$2,CONFIGURATION!$B$10,\"BMA\",CONFIGURATION!$B$1,\"bscr\",1000000)","v":"Mapped"},null,"brrt_TotalNetStatutoryPropertyCatastropheLimitsExposedNotModeledNetOfProportionalReinsuranceOnly",{"$f":"XBRLMap(J26,P26&\".\"&$M$7,P$1,P$2,CONFIGURATION!$B$10,\"BMA\",CONFIGURATION!$B$1,\"bscr\",1000000)","v":"Mapped"},null,null,null,null,"bma_EPCurveInsurance_TotalGrossStatutoryPropertyCatastropheLimitsExposedDollarMNotModelled","bma_EPCurveInsurance_TotalNetStatutoryPropertyCatastropheLimitsExposedDollarMNotModelled"]
[null,null,null,"Total gross all other lines limits exposed- modeled",{"$f":"Import!I6407","v":0},null,null,null,"Total net all other lines limits exposed – modeled",{"$f":"Import!I6418","v":0},null,null,"brrt_TotalGrossAllOtherLinesLimitsExposedModeled",{"$f":"XBRLMap(E27,M27&\".\"&$M$7,P$1,P$2,CONFIGURATION!$B$10,\"BMA\",CONFIGURATION!$B$1,\"bscr\",1000000)","v":"Mapped"},null,"brrt_TotalNetAllOtherLinesLimitsExposedModeledNetOfProportionalReinsuranceOnly",{"$f":"XBRLMap(J27,P27&\".\"&$M$7,P$1,P$2,CONFIGURATION!$B$10,\"BMA\",CONFIGURATION!$B$1,\"bscr\",1000000)","v":"Mapped"},null,null,null,null,"bma_EPCurveInsurance_TotalGrossAllOtherLinesLimitsExposedDollarMModelled","bma_EPCurveInsurance_TotalNetAllOtherLinesLimitsExposedDollarMModelled"]
[null,null,null,"Total gross all other lines limits exposed - not modeled",{"$f":"Import!I6408","v":0},null,null,null,"Total net all other lines limits exposed - not modeled",{"$f":"Import!I6419","v":0},null,null,"brrt_TotalGrossAllOtherLinesLimitsExposedNotModeled",{"$f":"XBRLMap(E28,M28&\".\"&$M$7,P$1,P$2,CONFIGURATION!$B$10,\"BMA\",CONFIGURATION!$B$1,\"bscr\",1000000)","v":"Mapped"},null,"brrt_TotalNetAllOtherLinesLimitsExposedNotModeledNetOfProportionalReinsuranceOnly",{"$f":"XBRLMap(J28,P28&\".\"&$M$7,P$1,P$2,CONFIGURATION!$B$10,\"BMA\",CONFIGURATION!$B$1,\"bscr\",1000000)","v":"Mapped"},null,null,null,null,"bma_EPCurveInsurance_TotalGrossAllOtherLinesLimitsExposedDollarMNotModelled","bma_EPCurveInsurance_TotalNetAllOtherLinesLimitsExposedDollarMNotModelled"]
[null,null,null,"Total gross premium without an occurrence or aggregate limit",{"$f":"Import!I6409","v":0},null,null,null,"Total net premium without an occurrence or aggregate limit",{"$f":"Import!I6420","v":0},null,null,"brrt_TotalGrossPremiumWithoutAnOccurrenceOrAggregateLimit",{"$f":"XBRLMap(E29,M29&\".\"&$M$7,P$1,P$2,CONFIGURATION!$B$10,\"BMA\",CONFIGURATION!$B$1,\"bscr\",1000000)","v":"Mapped"},null,"brrt_TotalNetPremiumWithoutAnOccurrenceOrAggregateLimit",{"$f":"XBRLMap(J29,P29&\".\"&$M$7,P$1,P$2,CONFIGURATION!$B$10,\"BMA\",CONFIGURATION!$B$1,\"bscr\",1000000)","v":"Mapped"},null,null,null,null,"bma_EPCurveInsurance_TotalGrossPremiumWithoutAnOccurrenceOrAggregateLimit","bma_EPCurveInsurance_TotalNetPremiumWithoutAnOccurrenceOrAggregateLimit"]
[null,null,null,"Total gross premium with non determinable Total Insured Value (“TIV”)",{"$f":"Import!I6410","v":0},null,null,null,"Total net premium with non-determinable TIV:",{"$f":"Import!I6421","v":0},null,null,"brrt_TotalGrossPremiumWithNonDeterminableTotalInsuredValueTIV",{"$f":"XBRLMap(E30,M30&\".\"&$M$7,P$1,P$2,CONFIGURATION!$B$10,\"BMA\",CONFIGURATION!$B$1,\"bscr\",1000000)","v":"Mapped"},null,"brrt_TotalNetPremiumWithNonDeterminableTIV",{"$f":"XBRLMap(J30,P30&\".\"&$M$7,P$1,P$2,CONFIGURATION!$B$10,\"BMA\",CONFIGURATION!$B$1,\"bscr\",1000000)","v":"Mapped"},null,null,null,null,"bma_EPCurveInsurance_TotalGrossPremiumWithNondeterminableTiv","bma_EPCurveInsurance_TotalNetPremiumWithNondeterminableTiv"]
[null,null,null,null,null,null,null,null,null,null,null,null,"",null,null,null,null,null,null,null,null,""]
[null,null,"2. Significant sources of catastrophe risk and associated loss included in the EP Curves:",null,null,null,null,null,null,null,null,null,""]
[null,null,null,"Allocated loss adjustment expense",{"$f":"IF(+'Schedule X(a)'!E31=\"\",\"\",+'Schedule X(a)'!E31)","v":"Select Yes/No"},null,null,{"$f":"IF(E33=\"No\",\"If no, why not:\",\"\")","v":""},{"$f":"IF(+'Schedule X(a)'!I31=\"\",\"\",+'Schedule X(a)'!I31)","v":""},null,null,null,"brrt_AllocatedLossAdjustmentExpenseIsSignificantSourceOfCatastropheRiskAndAssociatedLossIncludedInEPCurves",{"$f":"XBRLMapBoolean(E33,M33&\".\"&$M$7,P$1,P$2,CONFIGURATION!$B$10,\"BMA\",CONFIGURATION!$B$1,\"bscr\",IF(E33=\"Yes\",\"1\",\"0\"))","v":"Mapped"},null,null,null,null,null,null,null,"bma_EPCurveInsurance_AllocatedLossAdjustmentExpense"]
[null,null,null,"Property - buildings",{"$f":"IF(+'Schedule X(a)'!E32=\"\",\"\",+'Schedule X(a)'!E32)","v":"Select Yes/No"},null,null,"",{"$f":"IF(+'Schedule X(a)'!I32=\"\",\"\",+'Schedule X(a)'!I32)","v":""},null,null,null,"brrt_PropertyBuildingsIsSignificantSourceOfCatastropheRiskAndAssociatedLossIncludedInEPCurves",{"$f":"XBRLMapBoolean(E34,M34&\".\"&$M$7,P$1,P$2,CONFIGURATION!$B$10,\"BMA\",CONFIGURATION!$B$1,\"bscr\",IF(E34=\"Yes\",\"1\",\"0\"))","v":"Mapped"},null,null,null,null,null,null,null,"bma_EPCurveInsurance_PropertyBuildings"]
[null,null,null,"Property - contents",{"$f":"IF(+'Schedule X(a)'!E33=\"\",\"\",+'Schedule X(a)'!E33)","v":"Select Yes/No"},null,null,"",{"$f":"IF(+'Schedule X(a)'!I33=\"\",\"\",+'Schedule X(a)'!I33)","v":""},null,null,null,"brrt_PropertyContentsIsSignificantSourceOfCatastropheRiskAndAssociatedLossIncludedInEPCurves",{"$f":"XBRLMapBoolean(E35,M35&\".\"&$M$7,P$1,P$2,CONFIGURATION!$B$10,\"BMA\",CONFIGURATION!$B$1,\"bscr\",IF(E35=\"Yes\",\"1\",\"0\"))","v":"Mapped"},null,null,null,null,null,null,null,"bma_EPCurveInsurance_PropertyContents"]
[null,null,null,"Additional living expenses",{"$f":"IF(+'Schedule X(a)'!E34=\"\",\"\",+'Schedule X(a)'!E34)","v":"Select Yes/No"},null,null,"",{"$f":"IF(+'Schedule X(a)'!I34=\"\",\"\",+'Schedule X(a)'!I34)","v":""},null,null,null,"brrt_AdditionalLivingExpensesIsSignificantSourceOfCatastropheRiskAndAssociatedLossIncludedInEPCurves",{"$f":"XBRLMapBoolean(E36,M36&\".\"&$M$7,P$1,P$2,CONFIGURATION!$B$10,\"BMA\",CONFIGURATION!$B$1,\"bscr\",IF(E36=\"Yes\",\"1\",\"0\"))","v":"Mapped"},null,null,null,null,null,null,null,"bma_EPCurveInsurance_AdditionalLivingExpenses"]
[null,null,null,"Business interruption",null,null,null,"",{"$f":"IF(+'Schedule X(a)'!I35=\"\",\"\",+'Schedule X(a)'!I35)","v":""},null,null,null,"brrt_BusinessInterruptionIsSignificantSourceOfCatastropheRiskAndAssociatedLossIncludedInEPCurves",{"$f":"XBRLMap(E37,M37&\".\"&$M$7,P$1,P$2,CONFIGURATION!$B$10,\"BMA\",CONFIGURATION!$B$1,\"bscr\")","v":"Mapped"},null,null,null,null,null,null,null,"bma_EPCurveInsurance_BusinessInterruption"]
[null,null,null,"Auto physical damage",{"$f":"IF(+'Schedule X(a)'!E36=\"\",\"\",+'Schedule X(a)'!E36)","v":"Select"},null,null,"",{"$f":"IF(+'Schedule X(a)'!I36=\"\",\"\",+'Schedule X(a)'!I36)","v":""},null,null,null,"brrt_AutoPhysicalDamageIsSignificantSourceOfCatastropheRiskAndAssociatedLossIncludedInEPCurves",{"$f":"XBRLMap(E38,M38&\".\"&$M$7,P$1,P$2,CONFIGURATION!$B$10,\"BMA\",CONFIGURATION!$B$1,\"bscr\")","v":"Mapped"},null,null,null,null,null,null,null,"bma_EPCurveInsurance_AutoPhysicalDamage"]
[null,null,null,"Worker's compensation",{"$f":"IF(+'Schedule X(a)'!E37=\"\",\"\",+'Schedule X(a)'!E37)","v":"Select"},null,null,"",{"$f":"IF(+'Schedule X(a)'!I37=\"\",\"\",+'Schedule X(a)'!I37)","v":""},null,null,null,"brrt_WorkersCompensationIsSignificantSourceOfCatastropheRiskAndAssociatedLossIncludedInEPCurves",{"$f":"XBRLMap(E39,M39&\".\"&$M$7,P$1,P$2,CONFIGURATION!$B$10,\"BMA\",CONFIGURATION!$B$1,\"bscr\")","v":"Mapped"},null,null,null,null,null,null,null,"bma_EPCurveInsurance_WorkerCompensation"]
[null,null,null,"Personal accident",{"$f":"IF(+'Schedule X(a)'!E38=\"\",\"\",+'Schedule X(a)'!E38)","v":"Select"},null,null,"",{"$f":"IF(+'Schedule X(a)'!I38=\"\",\"\",+'Schedule X(a)'!I38)","v":""},null,null,null,"brrt_PersonalAccidentIsSignificantSourceOfCatastropheRiskAndAssociatedLossIncludedInEPCurves",{"$f":"XBRLMap(E40,M40&\".\"&$M$7,P$1,P$2,CONFIGURATION!$B$10,\"BMA\",CONFIGURATION!$B$1,\"bscr\")","v":"Mapped"},null,null,null,null,null,null,null,"bma_EPCurveInsurance_PersonalAccident"]
[null,null,null,"Life insurance",{"$f":"IF(+'Schedule X(a)'!E39=\"\",\"\",+'Schedule X(a)'!E39)","v":"Select"},null,null,"",{"$f":"IF(+'Schedule X(a)'!I39=\"\",\"\",+'Schedule X(a)'!I39)","v":""},null,null,null,"brrt_LifeInsuranceIsSignificantSourceOfCatastropheRiskAndAssociatedLossIncludedInEPCurves",{"$f":"XBRLMap(E41,M41&\".\"&$M$7,P$1,P$2,CONFIGURATION!$B$10,\"BMA\",CONFIGURATION!$B$1,\"bscr\")","v":"Mapped"},null,null,null,null,null,null,null,"bma_EPCurveInsurance_LifeInsurance"]
[null,null,null,"Onshore Energy",{"$f":"IF(+'Schedule X(a)'!E40=\"\",\"\",+'Schedule X(a)'!E40)","v":"Select"},null,null,"",{"$f":"IF(+'Schedule X(a)'!I40=\"\",\"\",+'Schedule X(a)'!I40)","v":""},null,null,null,"brrt_OnshoreEnergyIsSignificantSourceOfCatastropheRiskAndAssociatedLossIncludedInEPCurves",{"$f":"XBRLMap(E42,M42&\".\"&$M$7,P$1,P$2,CONFIGURATION!$B$10,\"BMA\",CONFIGURATION!$B$1,\"bscr\")","v":"Mapped"},null,null,null,null,null,null,null,"bma_EPCurveInsurance_OnshoreEnergy"]
[null,null,null,"Offshore Energy",{"$f":"IF(+'Schedule X(a)'!E41=\"\",\"\",+'Schedule X(a)'!E41)","v":"Select"},null,null,"",{"$f":"IF(+'Schedule X(a)'!I41=\"\",\"\",+'Schedule X(a)'!I41)","v":""},null,null,null,"brrt_OffshoreEnergyIsSignificantSourceOfCatastropheRiskAndAssociatedLossIncludedInEPCurves",{"$f":"XBRLMap(E43,M43&\".\"&$M$7,P$1,P$2,CONFIGURATION!$B$10,\"BMA\",CONFIGURATION!$B$1,\"bscr\")","v":"Mapped"},null,null,null,null,null,null,null,"bma_EPCurveInsurance_OffshoreEnergy"]
[null,null,null,"Ocean marine",{"$f":"IF(+'Schedule X(a)'!E42=\"\",\"\",+'Schedule X(a)'!E42)","v":"Select"},null,null,"",{"$f":"IF(+'Schedule X(a)'!I42=\"\",\"\",+'Schedule X(a)'!I42)","v":""},null,null,null,"brrt_OceanMarineIsSignificantSourceOfCatastropheRiskAndAssociatedLossIncludedInEPCurves",{"$f":"XBRLMap(E44,M44&\".\"&$M$7,P$1,P$2,CONFIGURATION!$B$10,\"BMA\",CONFIGURATION!$B$1,\"bscr\")","v":"Mapped"},null,null,null,null,null,null,null,"bma_EPCurveInsurance_OceanMarine"]
[null,null,null,"Inland marine",{"$f":"IF(+'Schedule X(a)'!E43=\"\",\"\",+'Schedule X(a)'!E43)","v":"Select"},null,null,"",{"$f":"IF(+'Schedule X(a)'!I43=\"\",\"\",+'Schedule X(a)'!I43)","v":""},null,null,null,"brrt_InlandMarineIsSignificantSourceOfCatastropheRiskAndAssociatedLossIncludedInEPCurves",{"$f":"XBRLMap(E45,M45&\".\"&$M$7,P$1,P$2,CONFIGURATION!$B$10,\"BMA\",CONFIGURATION!$B$1,\"bscr\")","v":"Mapped"},null,null,null,null,null,null,null,"bma_EPCurveInsurance_InlandMarine"]
[null,null,null,"Flood",{"$f":"IF(+'Schedule X(a)'!E44=\"\",\"\",+'Schedule X(a)'!E44)","v":"Select"},null,null,"",{"$f":"IF(+'Schedule X(a)'!I44=\"\",\"\",+'Schedule X(a)'!I44)","v":""},null,null,null,"brrt_FloodIsSignificantSourceOfCatastropheRiskAndAssociatedLossIncludedInEPCurves",{"$f":"XBRLMap(E46,M46&\".\"&$M$7,P$1,P$2,CONFIGURATION!$B$10,\"BMA\",CONFIGURATION!$B$1,\"bscr\")","v":"Mapped"},null,null,null,null,null,null,null,"bma_EPCurveInsurance_Flood"]
[null,null,null,"Crop",{"$f":"IF(+'Schedule X(a)'!E45=\"\",\"\",+'Schedule X(a)'!E45)","v":"Select"},null,null,"",{"$f":"IF(+'Schedule X(a)'!I45=\"\",\"\",+'Schedule X(a)'!I45)","v":""},null,null,null,"brrt_CropIsSignificantSourceOfCatastropheRiskAndAssociatedLossIncludedInEPCurves",{"$f":"XBRLMap(E47,M47&\".\"&$M$7,P$1,P$2,CONFIGURATION!$B$10,\"BMA\",CONFIGURATION!$B$1,\"bscr\")","v":"Mapped"},null,null,null,null,null,null,null,"bma_EPCurveInsurance_Crop"]
[null,null,null,"Other primary insurance",{"$f":"IF(+'Schedule X(a)'!E46=\"\",\"\",+'Schedule X(a)'!E46)","v":"Select"},null,null,"",{"$f":"IF(+'Schedule X(a)'!I46=\"\",\"\",+'Schedule X(a)'!I46)","v":""},null,null,null,"brrt_OtherPrimaryInsuranceIsSignificantSourceOfCatastropheRiskAndAssociatedLossIncludedInEPCurves",{"$f":"XBRLMap(E48,M48&\".\"&$M$7,P$1,P$2,CONFIGURATION!$B$10,\"BMA\",CONFIGURATION!$B$1,\"bscr\")","v":"Mapped"},null,null,null,null,null,null,null,"bma_EPCurveInsurance_OtherPrimaryInsurance"]
[null,null,null,null,null,null,null,null,null,null,null,null,"",null,null,null,null,null,null,null,null,""]
[null,null,"3. Assumed reinsurance information:",null,null,null,null,null,null,null,null,null,""]
[null,null,null,"Proportional - quota share",{"$f":"IF(+'Schedule X(a)'!E49=\"\",\"\",+'Schedule X(a)'!E49)","v":"Select"},null,null,{"$f":"IF(E51=\"No\",\"If no, why not:\",\"\")","v":""},{"$f":"IF(+'Schedule X(a)'!I49=\"\",\"\",+'Schedule X(a)'!I49)","v":""},null,null,null,"brrt_ProportionalQuotaShareIsAssumedReinsuranceInformation",{"$f":"XBRLMap(E51,M51&\".\"&$M$7,P$1,P$2,CONFIGURATION!$B$10,\"BMA\",CONFIGURATION!$B$1,\"bscr\")","v":"Mapped"},null,null,null,null,null,null,null,"bma_EPCurveInsurance_ProportionalQuotaShare"]
[null,null,null,"Proportional - surplus share",{"$f":"IF(+'Schedule X(a)'!E50=\"\",\"\",+'Schedule X(a)'!E50)","v":"Select"},null,null,{"$f":"IF(E52=\"No\",\"If no, why not:\",\"\")","v":""},{"$f":"IF(+'Schedule X(a)'!I50=\"\",\"\",+'Schedule X(a)'!I50)","v":""},null,null,null,"brrt_ProportionalSurplusShareIsAssumedReinsuranceInformation",{"$f":"XBRLMap(E52,M52&\".\"&$M$7,P$1,P$2,CONFIGURATION!$B$10,\"BMA\",CONFIGURATION!$B$1,\"bscr\")","v":"Mapped"},null,null,null,null,null,null,null,"bma_EPCurveInsurance_ProportionalSurplusShare"]
[null,null,null,"Non-proportional - catastrophe",{"$f":"IF(+'Schedule X(a)'!E51=\"\",\"\",+'Schedule X(a)'!E51)","v":"Select"},null,null,{"$f":"IF(E53=\"No\",\"If no, why not:\",\"\")","v":""},{"$f":"IF(+'Schedule X(a)'!I51=\"\",\"\",+'Schedule X(a)'!I51)","v":""},null,null,null,"brrt_NonProportionalCatastropheIsAssumedReinsuranceInformation",{"$f":"XBRLMap(E53,M53&\".\"&$M$7,P$1,P$2,CONFIGURATION!$B$10,\"BMA\",CONFIGURATION!$B$1,\"bscr\")","v":"Mapped"},null,null,null,null,null,null,null,"bma_EPCurveInsurance_NonproportionalCatastrophe"]
[null,null,null,"Non-proportional - per risk",null,null,null,{"$f":"IF(E54=\"No\",\"If no, why not:\",\"\")","v":""},{"$f":"IF(+'Schedule X(a)'!I52=\"\",\"\",+'Schedule X(a)'!I52)","v":""},null,null,null,"brrt_NonProportionalPerRiskIsAssumedReinsuranceInformation",{"$f":"XBRLMap(E54,M54&\".\"&$M$7,P$1,P$2,CONFIGURATION!$B$10,\"BMA\",CONFIGURATION!$B$1,\"bscr\")","v":"Mapped"},null,null,null,null,null,null,null,"bma_EPCurveInsurance_NonproportionalPerRisk"]
[null,null,null,"Other reinsurance assumed",{"$f":"IF(+'Schedule X(a)'!E53=\"\",\"\",+'Schedule X(a)'!E53)","v":"Select"},null,null,{"$f":"IF(E55=\"No\",\"If no, why not:\",\"\")","v":""},{"$f":"IF(+'Schedule X(a)'!I53=\"\",\"\",+'Schedule X(a)'!I53)","v":""},null,null,null,"brrt_OtherReinsuranceAssumedIsAssumedReinsuranceInformation",{"$f":"XBRLMap(E55,M55&\".\"&$M$7,P$1,P$2,CONFIGURATION!$B$10,\"BMA\",CONFIGURATION!$B$1,\"bscr\")","v":"Mapped"},null,null,null,null,null,null,null,"bma_EPCurveInsurance_OtherReinsuranceAssumed"]
[null,null,null,null,null,null,null,null,null,null,null,null,"",null,null,null,null,null,null,null,null,""]
[null,null,"4. Pools and assessments information:",null,null,null,null,null,null,null,null,null,""]
[null,null,null,"Voluntary pools and/or assessments",{"$f":"IF(+'Schedule X(a)'!E56=\"\",\"\",+'Schedule X(a)'!E56)","v":"Select"},null,null,{"$f":"IF(E58=\"No\",\"If no, why not:\",\"\")","v":""},{"$f":"IF(+'Schedule X(a)'!I56=\"\",\"\",+'Schedule X(a)'!I56)","v":""},null,null,null,"brrt_VoluntaryPoolsAndOrAssessmentsIsPoolsAndAssessmentsInformation",{"$f":"XBRLMap(E58,M58&\".\"&$M$7,P$1,P$2,CONFIGURATION!$B$10,\"BMA\",CONFIGURATION!$B$1,\"bscr\")","v":"Mapped"},null,null,null,null,null,null,null,"bma_EPCurveInsurance_VoluntaryPoolsAndorAssessments"]
[null,null,null,"Involuntary pools and/or assessments",{"$f":"IF(+'Schedule X(a)'!E57=\"\",\"\",+'Schedule X(a)'!E57)","v":"Select"},null,null,{"$f":"IF(E59=\"No\",\"If no, why not:\",\"\")","v":""},{"$f":"IF(+'Schedule X(a)'!I57=\"\",\"\",+'Schedule X(a)'!I57)","v":""},null,null,null,"brrt_InvoluntaryPoolsAndOrAssessmentsIsPoolsAndAssessmentsInformation",{"$f":"XBRLMap(E59,M59&\".\"&$M$7,P$1,P$2,CONFIGURATION!$B$10,\"BMA\",CONFIGURATION!$B$1,\"bscr\")","v":"Mapped"},null,null,null,null,null,null,null,"bma_EPCurveInsurance_InvoluntaryPoolsAndorAssessments"]
[null,null,null,null,null,null,null,null,null,null,null,null,"",null,null,null,null,null,null,null,null,""]
[null,null,"5. Supplemental perils and model options:",null,null,null,null,null,null,null,null,null,""]
[null,null,null,"Fire following",{"$f":"IF(+'Schedule X(a)'!E60=\"\",\"\",+'Schedule X(a)'!E60)","v":"Select"},null,null,{"$f":"IF(E62=\"No\",\"If no, why not:\",\"\")","v":""},{"$f":"IF(+'Schedule X(a)'!I60=\"\",\"\",+'Schedule X(a)'!I60)","v":""},null,null,null,"brrt_FireFollowingIsSupplementalPerilsAndModelOption",{"$f":"XBRLMap(E62,M62&\".\"&$M$7,P$1,P$2,CONFIGURATION!$B$10,\"BMA\",CONFIGURATION!$B$1,\"bscr\")","v":"Mapped"},null,null,null,null,null,null,null,"bma_EPCurveInsurance_FireFollowing"]
[null,null,null,"Sprinkler leakage",{"$f":"IF(+'Schedule X(a)'!E61=\"\",\"\",+'Schedule X(a)'!E61)","v":"Select"},null,null,{"$f":"IF(E63=\"No\",\"If no, why not:\",\"\")","v":""},{"$f":"IF(+'Schedule X(a)'!I61=\"\",\"\",+'Schedule X(a)'!I61)","v":""},null,null,null,"brrt_SprinklerLeakageIsSupplementalPerilsAndModelOption",{"$f":"XBRLMap(E63,M63&\".\"&$M$7,P$1,P$2,CONFIGURATION!$B$10,\"BMA\",CONFIGURATION!$B$1,\"bscr\")","v":"Mapped"},null,null,null,null,null,null,null,"bma_EPCurveInsurance_SprinklerLeakage"]
[null,null,null,"Storm surge",{"$f":"IF(+'Schedule X(a)'!E62=\"\",\"\",+'Schedule X(a)'!E62)","v":"Select"},null,null,{"$f":"IF(E64=\"No\",\"If no, why not:\",\"\")","v":""},{"$f":"IF(+'Schedule X(a)'!I62=\"\",\"\",+'Schedule X(a)'!I62)","v":""},null,null,null,"brrt_StormSurgeIsSupplementalPerilsAndModelOption",{"$f":"XBRLMap(E64,M64&\".\"&$M$7,P$1,P$2,CONFIGURATION!$B$10,\"BMA\",CONFIGURATION!$B$1,\"bscr\")","v":"Mapped"},null,null,null,null,null,null,null,"bma_EPCurveInsurance_StormSurge"]
[null,null,null,"Demand surge",{"$f":"IF(+'Schedule X(a)'!E63=\"\",\"\",+'Schedule X(a)'!E63)","v":"Select"},null,null,{"$f":"IF(E65=\"No\",\"If no, why not:\",\"\")","v":""},{"$f":"IF(+'Schedule X(a)'!I63=\"\",\"\",+'Schedule X(a)'!I63)","v":""},null,null,null,"brrt_DemandSurgeIsSupplementalPerilsAndModelOption",{"$f":"XBRLMap(E65,M65&\".\"&$M$7,P$1,P$2,CONFIGURATION!$B$10,\"BMA\",CONFIGURATION!$B$1,\"bscr\")","v":"Mapped"},null,null,null,null,null,null,null,"bma_EPCurveInsurance_DemandSurge"]
[null,null,null,"Secondary uncertainty",{"$f":"IF(+'Schedule X(a)'!E64=\"\",\"\",+'Schedule X(a)'!E64)","v":"Select"},null,null,{"$f":"IF(E66=\"No\",\"If no, why not:\",\"\")","v":""},{"$f":"IF(+'Schedule X(a)'!I64=\"\",\"\",+'Schedule X(a)'!I64)","v":""},null,null,null,"brrt_SecondaryUncertaintyIsSupplementalPerilsAndModelOption",{"$f":"XBRLMap(E66,M66&\".\"&$M$7,P$1,P$2,CONFIGURATION!$B$10,\"BMA\",CONFIGURATION!$B$1,\"bscr\")","v":"Mapped"},null,null,null,null,null,null,null,"bma_EPCurveInsurance_SecondaryUncertainty"]
[null,null,null,"Atlantic multi-decadal oscillation selection",{"$f":"IF(+'Schedule X(a)'!E65=\"\",\"\",+'Schedule X(a)'!E65)","v":"Select"},{"$f":"IF(+'Schedule X(a)'!F65=\"\",\"\",+'Schedule X(a)'!F65)","v":""},{"$f":"IF(+'Schedule X(a)'!G65=\"\",\"\",+'Schedule X(a)'!G65)","v":""},{"$f":"IF(E67=\"Long-term frequency\",\"If long-term frequency, why:\",\"\")","v":""},{"$f":"IF(+'Schedule X(a)'!I65=\"\",\"\",+'Schedule X(a)'!I65)","v":""},null,null,null,"brrt_AtlanticMultiDecadalOscillationSelectionIsSupplementalPerilsAndModelOption",{"$f":"XBRLMap(E67,M67&\".\"&$M$7,P$1,P$2,CONFIGURATION!$B$10,\"BMA\",CONFIGURATION!$B$1,\"bscr\")","v":"Mapped"},null,null,null,null,null,null,null,"bma_EPCurveInsurance_AtlanticMultidecadalOscillationSelection"]
[null,null,null,null,null,null,null,null,null,null,null,null,"",null,null,null,null,null,null,null,null,""]
[null,null,"6. Other adjustments information:",null,null,null,null,null,null,null,null,null,""]
[null,null,null,"Adjustments for exposure data quality",{"$f":"IF(+'Schedule X(a)'!E68=\"\",\"\",+'Schedule X(a)'!E68)","v":"Select Yes/No"},null,null,{"$f":"IF(E70=\"No\",\"If no, why not:\",\"\")","v":""},{"$f":"IF(+'Schedule X(a)'!I68=\"\",\"\",+'Schedule X(a)'!I68)","v":""},null,null,null,"brrt_AdjustmentsForExposureDataQualityIsOtherAdjustmentsInformation",{"$f":"XBRLMapBoolean(E70,M70&\".\"&$M$7,P$1,P$2,CONFIGURATION!$B$10,\"BMA\",CONFIGURATION!$B$1,\"bscr\",IF(E70=\"Yes\",\"1\",\"0\"))","v":"Mapped"},null,null,null,null,null,null,null,"bma_EPCurveInsurance_AdjustmentsForExposureDataQuality"]
[null,null,null,"Adjustments for insurance to value",{"$f":"IF(+'Schedule X(a)'!E69=\"\",\"\",+'Schedule X(a)'!E69)","v":"Select Yes/No"},null,null,"",{"$f":"IF(+'Schedule X(a)'!I69=\"\",\"\",+'Schedule X(a)'!I69)","v":""},null,null,null,"brrt_AdjustmentsForInsuranceToValueIsOtherAdjustmentsInformation",{"$f":"XBRLMapBoolean(E71,M71&\".\"&$M$7,P$1,P$2,CONFIGURATION!$B$10,\"BMA\",CONFIGURATION!$B$1,\"bscr\",IF(E71=\"Yes\",\"1\",\"0\"))","v":"Mapped"},null,null,null,null,null,null,null,"bma_EPCurveInsurance_AdjustmentsForInsuranceToValue"]
[null,null,null,"Adjustments for exposure growth",{"$f":"IF(+'Schedule X(a)'!E70=\"\",\"\",+'Schedule X(a)'!E70)","v":"Select Yes/No"},null,null,"",{"$f":"IF(+'Schedule X(a)'!I70=\"\",\"\",+'Schedule X(a)'!I70)","v":""},null,null,null,"brrt_AdjustmentsForExposureGrowthIsOtherAdjustmentsInformation",{"$f":"XBRLMapBoolean(E72,M72&\".\"&$M$7,P$1,P$2,CONFIGURATION!$B$10,\"BMA\",CONFIGURATION!$B$1,\"bscr\",IF(E72=\"Yes\",\"1\",\"0\"))","v":"Mapped"},null,null,null,null,null,null,null,"bma_EPCurveInsurance_AdjustmentsForExposureGrowth"]
[null,null,null,"Supplemental losses for non-modeled line of business",{"$f":"IF(+'Schedule X(a)'!E71=\"\",\"\",+'Schedule X(a)'!E71)","v":"Select Yes/No"},null,null,"",{"$f":"IF(+'Schedule X(a)'!I71=\"\",\"\",+'Schedule X(a)'!I71)","v":""},null,null,null,"brrt_SupplementalLossesForNonModeledLineOfBusinessIsOtherAdjustmentsInformation",{"$f":"XBRLMapBoolean(E73,M73&\".\"&$M$7,P$1,P$2,CONFIGURATION!$B$10,\"BMA\",CONFIGURATION!$B$1,\"bscr\",IF(E73=\"Yes\",\"1\",\"0\"))","v":"Mapped"},null,null,null,null,null,null,null,"bma_EPCurveInsurance_SupplementalLossesForNonmodelledLineOfBusiness"]
[null,null,null,"Adjustments for model deficiencies – severity",{"$f":"IF(+'Schedule X(a)'!E72=\"\",\"\",+'Schedule X(a)'!E72)","v":"Select"},null,null,"",{"$f":"IF(+'Schedule X(a)'!I72=\"\",\"\",+'Schedule X(a)'!I72)","v":""},null,null,null,"brrt_AdjustmentsForModelDeficienciesSeverityIsOtherAdjustmentsInformation",{"$f":"XBRLMap(E74,M74&\".\"&$M$7,P$1,P$2,CONFIGURATION!$B$10,\"BMA\",CONFIGURATION!$B$1,\"bscr\")","v":"Mapped"},null,null,null,null,null,null,null,"bma_EPCurveInsurance_AdjustmentsForModelDeficienciesSeverity"]
[null,null,null,"Adjustments for model deficiencies - frequency",{"$f":"IF(+'Schedule X(a)'!E73=\"\",\"\",+'Schedule X(a)'!E73)","v":"Select"},null,null,"",{"$f":"IF(+'Schedule X(a)'!I73=\"\",\"\",+'Schedule X(a)'!I73)","v":""},null,null,null,"brrt_AdjustmentsForModelDeficienciesFrequencyIsOtherAdjustmentsInformation",{"$f":"XBRLMap(E75,M75&\".\"&$M$7,P$1,P$2,CONFIGURATION!$B$10,\"BMA\",CONFIGURATION!$B$1,\"bscr\")","v":"Mapped"},null,null,null,null,null,null,null,"bma_EPCurveInsurance_AdjustmentsForModelDeficienciesFrequency"]
[null,null,null,"Additional demand surge loadings",{"$f":"IF(+'Schedule X(a)'!E74=\"\",\"\",+'Schedule X(a)'!E74)","v":"Select Yes/No"},{"$f":"IF(+'Schedule X(a)'!F74=\"\",\"\",+'Schedule X(a)'!F74)","v":""},null,"",{"$f":"IF(+'Schedule X(a)'!I74=\"\",\"\",+'Schedule X(a)'!I74)","v":""},null,null,null,"brrt_AdditionalDemandSurgeLoadingsIsOtherAdjustmentsInformation",{"$f":"XBRLMapBoolean(E76,M76&\".\"&$M$7,P$1,P$2,CONFIGURATION!$B$10,\"BMA\",CONFIGURATION!$B$1,\"bscr\",IF(E76=\"Yes\",\"1\",\"0\"))","v":"Mapped"},null,null,null,null,null,null,null,"bma_EPCurveInsurance_AdditionalDemandSurgeLoadings"]
[null,null,null,"Other factors for prudence",{"$f":"IF(+'Schedule X(a)'!E75=\"\",\"\",+'Schedule X(a)'!E75)","v":"Select Yes/No"},null,null,"",{"$f":"IF(+'Schedule X(a)'!I75=\"\",\"\",+'Schedule X(a)'!I75)","v":""},null,null,null,"brrt_OtherFactorsForPrudenceIsOtherAdjustmentsInformation",{"$f":"XBRLMapBoolean(E77,M77&\".\"&$M$7,P$1,P$2,CONFIGURATION!$B$10,\"BMA\",CONFIGURATION!$B$1,\"bscr\",IF(E77=\"Yes\",\"1\",\"0\"))","v":"Mapped"},null,null,null,null,null,null,null,"bma_EPCurveInsurance_OtherFactorsForPrudence"]
[null,null,null,null,null,null,null,null,null,null,null,null,"",null,null,null,null,null,null,null,null,""]
[null,null,null,null,null,"Average loading factor applied to ground up loss for all adjustments applied",{"$f":"IF(+'Schedule X(a)'!G77=\"\",\"\",+'Schedule X(a)'!G77)","v":0},null,null,null,null,null,"brrt_AverageLoadingFactorAppliedToGroundUpLossForAllAdjustmentsApplied",{"$f":"XBRLMap(G79,M79&\".\"&$M$7,P$1,P$2,CONFIGURATION!$B$10,\"BMA\",CONFIGURATION!$B$1,\"bscr\")","v":"Mapped"},null,null,null,null,null,null,null,"bma_EPCurveInsurance_AverageLoadingFactorAppliedToGroundUpLossForAllAdjustmentsApplied"]
[null,null,null,null,null,"Is this average loading factor determined analytically or estimated?",{"$f":"IF(+'Schedule X(a)'!G78=\"\",\"\",+'Schedule X(a)'!G78)","v":"Select"},null,null,null,null,null,"brrt_Averageloadingfactorisdeterminedanalyticallyorestimated",{"$f":"XBRLMap(G80,M80&\".\"&$M$7,P$1,P$2,CONFIGURATION!$B$10,\"BMA\",CONFIGURATION!$B$1,\"bscr\")","v":"Mapped"},null,null,null,null,null,null,null,"bma_EPCurveInsurance_IsThisAverageLoadingFactorDeterminedAnalyticallyOrEstimated"]
[null,null,null,null,null,null,null,null,null,null,null,null,"",null,null,null,null,null,null,null,null,""]
[null,null,null,null,null,"Which cat model do you include in this modeling?",{"$f":"IF(+'Schedule X(a)'!G80=\"\",\"\",+'Schedule X(a)'!G80)","v":"Select Cat Model(s)"},null,null,null,null,null,"brrt_VendorCatastropheModels",{"$f":"XBRLMap(G82,M82&\".\"&$M$7,P$1,P$2,CONFIGURATION!$B$10,\"BMA\",CONFIGURATION!$B$1,\"bscr\")","v":"Mapped"},null,null,null,null,null,null,null,"bma_EPCurveInsurance_WhichVendorCatModelsDoYouIncludeInThisModeling"]
[null,null,null,null,null,"Which version of the model or version of the region-peril models are used for each cat model as appropriate?",{"$f":"IF(+'Schedule X(a)'!G81=\"\",\"\",+'Schedule X(a)'!G81)","v":0},null,null,null,null,null,"brrt_VersionOfTheModelOrVersionOfTheRegionPerilModelsUsedForEachVendorCatastropheModel",{"$f":"XBRLMap(G83,M83&\".\"&$M$7,P$1,P$2,CONFIGURATION!$B$10,\"BMA\",CONFIGURATION!$B$1,\"bscr\")","v":"Mapped"},null,null,null,null,null,null,null,"bma_EPCurveInsurance_WhichVersionOfModelOrVersionOfRegionperilModelsAreUsedForEachVendorCatModelAsAppropriate"]
[]
[]
[]
[]
[]
[]
[]
[null,null,null,null,"brrt_GrossPerOccurrenceLoss","brrt_GrossAggregateTVaR","brrt_NetPerOccurrenceLoss","brrt_NetAggregateTVaR"]
[null,null,null,null,{"$f":"XBRLMap(E11,E$91&\".\"&$M11&\".\"&$M$7,$P$1,$P$2,CONFIGURATION!$B$10,\"BMA\",CONFIGURATION!$B$1,\"bscr\",1000000)","v":"Mapped"},{"$f":"XBRLMap(F11,F$91&\".\"&$M11&\".\"&$M$7,$P$1,$P$2,CONFIGURATION!$B$10,\"BMA\",CONFIGURATION!$B$1,\"bscr\",1000000)","v":"Mapped"},{"$f":"XBRLMap(G11,G$91&\".\"&$M11&\".\"&$M$7,$P$1,$P$2,CONFIGURATION!$B$10,\"BMA\",CONFIGURATION!$B$1,\"bscr\",1000000)","v":"Mapped"},{"$f":"XBRLMap(H11,H$91&\".\"&$M11&\".\"&$M$7,$P$1,$P$2,CONFIGURATION!$B$10,\"BMA\",CONFIGURATION!$B$1,\"bscr\",1000000)","v":"Mapped"}]
[null,null,null,null,{"$f":"XBRLMap(E12,E$91&\".\"&$M12&\".\"&$M$7,$P$1,$P$2,CONFIGURATION!$B$10,\"BMA\",CONFIGURATION!$B$1,\"bscr\",1000000)","v":"Mapped"},{"$f":"XBRLMap(F12,F$91&\".\"&$M12&\".\"&$M$7,$P$1,$P$2,CONFIGURATION!$B$10,\"BMA\",CONFIGURATION!$B$1,\"bscr\",1000000)","v":"Mapped"},{"$f":"XBRLMap(G12,G$91&\".\"&$M12&\".\"&$M$7,$P$1,$P$2,CONFIGURATION!$B$10,\"BMA\",CONFIGURATION!$B$1,\"bscr\",1000000)","v":"Mapped"},{"$f":"XBRLMap(H12,H$91&\".\"&$M12&\".\"&$M$7,$P$1,$P$2,CONFIGURATION!$B$10,\"BMA\",CONFIGURATION!$B$1,\"bscr\",1000000)","v":"Mapped"}]
[null,null,null,null,{"$f":"XBRLMap(E13,E$91&\".\"&$M13&\".\"&$M$7,$P$1,$P$2,CONFIGURATION!$B$10,\"BMA\",CONFIGURATION!$B$1,\"bscr\",1000000)","v":"Mapped"},{"$f":"XBRLMap(F13,F$91&\".\"&$M13&\".\"&$M$7,$P$1,$P$2,CONFIGURATION!$B$10,\"BMA\",CONFIGURATION!$B$1,\"bscr\",1000000)","v":"Mapped"},{"$f":"XBRLMap(G13,G$91&\".\"&$M13&\".\"&$M$7,$P$1,$P$2,CONFIGURATION!$B$10,\"BMA\",CONFIGURATION!$B$1,\"bscr\",1000000)","v":"Mapped"},{"$f":"XBRLMap(H13,H$91&\".\"&$M13&\".\"&$M$7,$P$1,$P$2,CONFIGURATION!$B$10,\"BMA\",CONFIGURATION!$B$1,\"bscr\",1000000)","v":"Mapped"}]
[null,null,null,null,{"$f":"XBRLMap(E14,E$91&\".\"&$M14&\".\"&$M$7,$P$1,$P$2,CONFIGURATION!$B$10,\"BMA\",CONFIGURATION!$B$1,\"bscr\",1000000)","v":"Mapped"},{"$f":"XBRLMap(F14,F$91&\".\"&$M14&\".\"&$M$7,$P$1,$P$2,CONFIGURATION!$B$10,\"BMA\",CONFIGURATION!$B$1,\"bscr\",1000000)","v":"Mapped"},{"$f":"XBRLMap(G14,G$91&\".\"&$M14&\".\"&$M$7,$P$1,$P$2,CONFIGURATION!$B$10,\"BMA\",CONFIGURATION!$B$1,\"bscr\",1000000)","v":"Mapped"},{"$f":"XBRLMap(H14,H$91&\".\"&$M14&\".\"&$M$7,$P$1,$P$2,CONFIGURATION!$B$10,\"BMA\",CONFIGURATION!$B$1,\"bscr\",1000000)","v":"Mapped"}]
[null,null,null,null,{"$f":"XBRLMap(E15,E$91&\".\"&$M15&\".\"&$M$7,$P$1,$P$2,CONFIGURATION!$B$10,\"BMA\",CONFIGURATION!$B$1,\"bscr\",1000000)","v":"Mapped"},{"$f":"XBRLMap(F15,F$91&\".\"&$M15&\".\"&$M$7,$P$1,$P$2,CONFIGURATION!$B$10,\"BMA\",CONFIGURATION!$B$1,\"bscr\",1000000)","v":"Mapped"},{"$f":"XBRLMap(G15,G$91&\".\"&$M15&\".\"&$M$7,$P$1,$P$2,CONFIGURATION!$B$10,\"BMA\",CONFIGURATION!$B$1,\"bscr\",1000000)","v":"Mapped"},{"$f":"XBRLMap(H15,H$91&\".\"&$M15&\".\"&$M$7,$P$1,$P$2,CONFIGURATION!$B$10,\"BMA\",CONFIGURATION!$B$1,\"bscr\",1000000)","v":"Mapped"}]
[]
[]
[]
[]
[]
[]
[]
[]
[null,null,null,null,"bma_class3A_StatementComponentAxis3_bma_EPCurveInsurance_GrossPerOccurrenceLossDollarM","bma_class3A_StatementComponentAxis3_bma_EPCurveInsurance_GrossAggregateTvarDollarM","bma_class3A_StatementComponentAxis3_bma_EPCurveInsurance_NetPerOccurrenceLossDollarM","bma_class3A_StatementComponentAxis3_bma_EPCurveInsurance_NetAggregateTvarDollarM"]
[]
[]
[]
[]
[]
[]
[]
[]
[]
[]
[]
[]
[]
[]
[]
[]
[]
[]
[]
[]
[]
[]
[]
[]
[]
[]
[]
[]
[]
[]
[]
[]
[]
[]
[]
[]
[]
[]
[]
[]
[]
[]
[]
[]
[]
[]
[]
[]
[]
[]
[]
[]
[]
[]
[]
[]
[]
[]
[]
[]
[]
[]
[]
[]
[]
[]
[]
[]
[]
[]
[]
[]
[]
[]
[]
[]
[]
[]
[null,null,null,null,"Which vendor catastrophe models do you include in this modeling:"]
[null,null,null,null,"AIR only"]
[null,null,null,null,"EQECAT only"]
[null,null,null,null,"RMS only"]
[null,null,null,null,"AIR and RMS"]
[null,null,null,null,"AIR and EQECAT"]
[null,null,null,null,"EQECAT and RMS"]
[null,null,null,null,"AIR, EQECAT and RMS"]

{"sheet":"Schedule X(c)","index":54,"n_rows":248,"n_cols":22,"rows_kept":248,"cut":false,"hidden":false,"merged":[[110,2,110,3],[111,2,111,3],[112,2,112,3],[113,2,113,3],[114,2,114,3],[109,2,109,3],[46,2,46,3],[47,2,47,3],[48,2,48,3],[65,2,65,3],[66,2,66,3],[67,2,67,3],[100,3,100,4],[88,2,88,3],[89,2,89,3],[90,2,90,3],[91,2,91,3],[43,2,43,3],[44,2,44,3],[45,2,45,3],[34,3,34,4],[92,2,92,3],[100,5,100,6],[56,3,56,4],[56,5,56,6],[78,3,78,4],[78,5,78,6],[68,2,68,3],[69,2,69,3],[70,2,70,3],[87,2,87,3],[34,5,34,6],[0,1,0,5],[12,3,12,4],[12,5,12,6],[4,2,4,6],[21,2,21,3],[22,2,22,3],[23,2,23,3],[24,2,24,3],[25,2,25,3],[26,2,26,3],[2,1,2,3]]}
[null,"CATASTROPHE RISK RETURN: EXCEEDANCE PROBABILITY  (EP) CURVE  FOR REGIONS-PERILS (TABLE 9B)",null,null,null,null,{"$f":"HYPERLINK(\"#'Index'!A1\",\"Return to Index\")","v":"Return to Index"},null,null,null,null,null,null,null,null,null,null,null,null,{"$f":"'Company Information'!L1","v":"01/01/2019"}]
[null,{"$f":"'Company Information'!C7","v":"Enter Company Name"},null,null,null,null,null,null,null,null,null,null,null,null,null,null,null,null,null,{"$f":"'Company Information'!L2","v":"12/31/2019"}]
[null,{"$f":"'Company Information'!C3+1","v":"2020-01-01"},null,null,null,null,"SCHEDULE X(c)",null,""]
[]
[null,null,"Provide Exceedance Probability information on the following perils in the templates provided below."]
[]
[null,"a)","EP CURVE ATLANTIC BASIN HURRICANE",null,null,null,null,null,"brrt_EPCurveRegionPerilsAxis_brrt_AtlanticBasinHurricaneMember"]
[]
[null,null,"Which model(s) is used for  EP Curve Atlantic basin hurricane",null,null,{"$f":"Import!I6423","v":"Select Cat Model(s)"},null,null,"brrt_ModelsUsedForEPCurve",{"$f":"XBRLMap(F9,I9&\".\"&$L$9&\".\"&I7,$T$1,$T$2,CONFIGURATION!$B$10,\"BMA\",CONFIGURATION!$B$1,\"bscr\")","v":"Mapped"},null,"brrt_LossReturnPeriodAxis_brrt_TotalMember",null,null,null,null,null,null,null,null,null,"bma_EPCurveRegionPerils_WhichModelsIsUsedForEpCurveAtlanticHurricane"]
[null,null,"Indicate the model version",null,null,{"$f":"Import!I6424","v":0},null,null,"brrt_ModelVersionUsedForEPCurve",{"$f":"XBRLMap(F10,I10&\".\"&$L$9&\".\"&I7,$T$1,$T$2,CONFIGURATION!$B$10,\"BMA\",CONFIGURATION!$B$1,\"bscr\")","v":"Mapped"}]
[]
[null,null,"Exceedance probability information:"]
[null,null,null," Gross loss",null," Net loss"]
[null,null,"Loss Return period (years)","Gross per occurrence loss TVaR","Gross aggregate \nTVaR ","Net per occurrence loss TVaR","Net aggregate\nTVaR"]
[null,null,null," (US$M)"," (US$M)"," (US$M)"," (US$M)"]
[null,null,50,{"$f":"Import!I6425","v":0},{"$f":"Import!I6430","v":0},{"$f":"Import!I6435","v":0},{"$f":"Import!I6440","v":0},null,"brrt_LossReturnPeriodAxis_brrt_FiftyYearsMember",null,null,null,null,null,null,null,null,null,null,null,null,"bma_EPCurveRegionPerils_AtlanticHurricane_LossReturnPeriodyears50"]
[null,null,100,{"$f":"Import!I6426","v":0},{"$f":"Import!I6431","v":0},{"$f":"Import!I6436","v":0},{"$f":"Import!I6441","v":0},null,"brrt_LossReturnPeriodAxis_brrt_OneHundredYearsMember",null,null,null,null,null,null,null,null,null,null,null,null,"bma_EPCurveRegionPerils_AtlanticHurricane_LossReturnPeriodyears100"]
[null,null,250,{"$f":"Import!I6427","v":0},{"$f":"Import!I6432","v":0},{"$f":"Import!I6437","v":0},{"$f":"Import!I6442","v":0},null,"brrt_LossReturnPeriodAxis_brrt_TwoHundredFiftyYearsMember",null,null,null,null,null,null,null,null,null,null,null,null,"bma_EPCurveRegionPerils_AtlanticHurricane_LossReturnPeriodyears250"]
[null,null,500,{"$f":"Import!I6428","v":0},{"$f":"Import!I6433","v":0},{"$f":"Import!I6438","v":0},{"$f":"Import!I6443","v":0},null,"brrt_LossReturnPeriodAxis_brrt_FiveHundredYearsMember",null,null,null,null,null,null,null,null,null,null,null,null,"bma_EPCurveRegionPerils_AtlanticHurricane_LossReturnPeriodyears500"]
[null,null,1000,{"$f":"Import!I6429","v":0},{"$f":"Import!I6434","v":0},{"$f":"Import!I6439","v":0},{"$f":"Import!I6444","v":0},null,"brrt_LossReturnPeriodAxis_brrt_OneThousandYearsMember",null,null,null,null,null,null,null,null,null,null,null,null,"bma_EPCurveRegionPerils_AtlanticHurricane_LossReturnPeriodyears1000"]
[]
[null,null,"Exposure to Atlantic Basin Hurricane",null,"Gross","Net"]
[null,null,null,null," (US$M)"," (US$M)"]
[null,null,"Total statutory property catastrophe premium",null,{"$f":"Import!I6445","v":0},{"$f":"Import!I6449","v":0},null,null,"brrt_EPCurveExposureAxis_brrt_TotalStatutoryPropertyCatastrophePremiumMember"]
[null,null,"Total all other statutory premium",null,{"$f":"Import!I6446","v":0},{"$f":"Import!I6450","v":0},null,null,"brrt_EPCurveExposureAxis_brrt_TotalAllOtherStatutoryPremiumMember"]
[null,null,"Total statutory property catastrophe limits",null,{"$f":"Import!I6447","v":0},{"$f":"Import!I6451","v":0},null,null,"brrt_EPCurveExposureAxis_brrt_TotalStatutoryPropertyCatastropheLimitsMember"]
[null,null,"Total all other statutory limits",null,{"$f":"Import!I6448","v":0},{"$f":"Import!I6452","v":0},null,null,"brrt_EPCurveExposureAxis_brrt_TotalAllOtherStatutoryLimitsMember"]
[]
[null,"b)","EP CURVE NORTH AMERICAN EARTHQUAKE",null,null,null,null,null,"brrt_EPCurveRegionPerilsAxis_brrt_NorthAmericanEarthquakeMember"]
[]
[null,null,"Which model(s) is used for  EP Curve North American earthquake",null,null,{"$f":"Import!I6453","v":"Select Cat Model(s)"},null,null,"brrt_ModelsUsedForEPCurve",{"$f":"XBRLMap(F31,I31&\".\"&$L$9&\".\"&I29,$T$1,$T$2,CONFIGURATION!$B$10,\"BMA\",CONFIGURATION!$B$1,\"bscr\")","v":"Mapped"},null,null,null,null,null,null,null,null,null,null,null,"bma_EPCurveRegionPerils_WhichModelsIsUsedForEpCurveNorthAmericanHurricane"]
[null,null,"Indicate the model version",null,null,{"$f":"Import!I6454","v":0},null,null,"brrt_ModelVersionUsedForEPCurve",{"$f":"XBRLMap(F32,I32&\".\"&$L$9&\".\"&I29,$T$1,$T$2,CONFIGURATION!$B$10,\"BMA\",CONFIGURATION!$B$1,\"bscr\")","v":"Mapped"}]
[]
[null,null,"Exceedance probability information:"]
[null,null,null," Gross loss",null," Net loss"]
[null,null,"Loss Return period (years)","Gross per occurrence loss TVaR","Gross aggregate \nTVaR ","Net per occurrence loss TVaR","Net aggregate\nTVaR"]
[null,null,null," (US$M)"," (US$M)"," (US$M)"," (US$M)"]
[null,null,50,{"$f":"Import!I6455","v":0},{"$f":"Import!I6460","v":0},{"$f":"Import!I6465","v":0},{"$f":"Import!I6470","v":0},null,"brrt_LossReturnPeriodAxis_brrt_FiftyYearsMember",null,null,null,null,null,null,null,null,null,null,null,null,"bma_EPCurveRegionPerils_NorthAmericanEarthquake_LossReturnPeriodyears50"]
[null,null,100,{"$f":"Import!I6456","v":0},{"$f":"Import!I6461","v":0},{"$f":"Import!I6466","v":0},{"$f":"Import!I6471","v":0},null,"brrt_LossReturnPeriodAxis_brrt_OneHundredYearsMember",null,null,null,null,null,null,null,null,null,null,null,null,"bma_EPCurveRegionPerils_NorthAmericanEarthquake_LossReturnPeriodyears100"]
[null,null,250,{"$f":"Import!I6457","v":0},{"$f":"Import!I6462","v":0},{"$f":"Import!I6467","v":0},{"$f":"Import!I6472","v":0},null,"brrt_LossReturnPeriodAxis_brrt_TwoHundredFiftyYearsMember",null,null,null,null,null,null,null,null,null,null,null,null,"bma_EPCurveRegionPerils_NorthAmericanEarthquake_LossReturnPeriodyears250"]
[null,null,500,{"$f":"Import!I6458","v":0},{"$f":"Import!I6463","v":0},{"$f":"Import!I6468","v":0},{"$f":"Import!I6473","v":0},null,"brrt_LossReturnPeriodAxis_brrt_FiveHundredYearsMember",null,null,null,null,null,null,null,null,null,null,null,null,"bma_EPCurveRegionPerils_NorthAmericanEarthquake_LossReturnPeriodyears500"]
[null,null,1000,{"$f":"Import!I6459","v":0},{"$f":"Import!I6464","v":0},{"$f":"Import!I6469","v":0},{"$f":"Import!I6474","v":0},null,"brrt_LossReturnPeriodAxis_brrt_OneThousandYearsMember",null,null,null,null,null,null,null,null,null,null,null,null,"bma_EPCurveRegionPerils_NorthAmericanEarthquake_LossReturnPeriodyears1000"]
[]
[null,null,"Exposure to North American Earthquake",null,"Gross","Net"]
[null,null,null,null," (US$M)"," (US$M)"]
[null,null,"Total statutory property catastrophe premium",null,{"$f":"Import!I6475","v":0},{"$f":"Import!I6479","v":0},null,null,"brrt_EPCurveExposureAxis_brrt_TotalStatutoryPropertyCatastrophePremiumMember"]
[null,null,"Total all other statutory premium",null,{"$f":"Import!I6476","v":0},{"$f":"Import!I6480","v":0},null,null,"brrt_EPCurveExposureAxis_brrt_TotalAllOtherStatutoryPremiumMember"]
[null,null,"Total statutory property catastrophe limits",null,{"$f":"Import!I6477","v":0},{"$f":"Import!I6481","v":0},null,null,"brrt_EPCurveExposureAxis_brrt_TotalStatutoryPropertyCatastropheLimitsMember"]
[null,null,"Total all other statutory limits",null,{"$f":"Import!I6478","v":0},{"$f":"Import!I6482","v":0},null,null,"brrt_EPCurveExposureAxis_brrt_TotalAllOtherStatutoryLimitsMember"]
[]
[null,"c)","EP CURVE EUROPEAN WINDSTORM",null,null,null,null,null,"brrt_EPCurveRegionPerilsAxis_brrt_EuropeanWindstormMember"]
[]
[null,null,"Which model(s) is used for  EP Curve European windstorm",null,null,{"$f":"Import!I6483","v":"Select Cat Model(s)"},null,null,"brrt_ModelsUsedForEPCurve",{"$f":"XBRLMap(F53,I53&\".\"&$L$9&\".\"&I51,$T$1,$T$2,CONFIGURATION!$B$10,\"BMA\",CONFIGURATION!$B$1,\"bscr\")","v":"Mapped"},null,null,null,null,null,null,null,null,null,null,null,"bma_EPCurveRegionPerils_WhichModelsIsUsedForEpCurveEuropeanWindstorm"]
[null,null,"Indicate the model version",null,null,{"$f":"Import!I6484","v":0},null,null,"brrt_ModelVersionUsedForEPCurve",{"$f":"XBRLMap(F54,I54&\".\"&$L$9&\".\"&I51,$T$1,$T$2,CONFIGURATION!$B$10,\"BMA\",CONFIGURATION!$B$1,\"bscr\")","v":"Mapped"}]
[]
[null,null,"Exceedance probability information:"]
[null,null,null," Gross loss",null," Net loss"]
[null,null,"Loss Return period (years)","Gross per occurrence loss TVaR","Gross aggregate \nTVaR ","Net per occurrence loss TVaR","Net aggregate\nTVaR"]
[null,null,null," (US$M)"," (US$M)"," (US$M)"," (US$M)"]
[null,null,50,{"$f":"Import!I6485","v":0},{"$f":"Import!I6490","v":0},{"$f":"Import!I6495","v":0},{"$f":"Import!I6500","v":0},null,"brrt_LossReturnPeriodAxis_brrt_FiftyYearsMember",null,null,null,null,null,null,null,null,null,null,null,null,"bma_EPCurveRegionPerils_EuropeanWindstorm_LossReturnPeriodyears50"]
[null,null,100,{"$f":"Import!I6486","v":0},{"$f":"Import!I6491","v":0},{"$f":"Import!I6496","v":0},{"$f":"Import!I6501","v":0},null,"brrt_LossReturnPeriodAxis_brrt_OneHundredYearsMember",null,null,null,null,null,null,null,null,null,null,null,null,"bma_EPCurveRegionPerils_EuropeanWindstorm_LossReturnPeriodyears100"]
[null,null,250,{"$f":"Import!I6487","v":0},{"$f":"Import!I6492","v":0},{"$f":"Import!I6497","v":0},{"$f":"Import!I6502","v":0},null,"brrt_LossReturnPeriodAxis_brrt_TwoHundredFiftyYearsMember",null,null,null,null,null,null,null,null,null,null,null,null,"bma_EPCurveRegionPerils_EuropeanWindstorm_LossReturnPeriodyears250"]
[null,null,500,{"$f":"Import!I6488","v":0},{"$f":"Import!I6493","v":0},{"$f":"Import!I6498","v":0},{"$f":"Import!I6503","v":0},null,"brrt_LossReturnPeriodAxis_brrt_FiveHundredYearsMember",null,null,null,null,null,null,null,null,null,null,null,null,"bma_EPCurveRegionPerils_EuropeanWindstorm_LossReturnPeriodyears500"]
[null,null,1000,{"$f":"Import!I6489","v":0},{"$f":"Import!I6494","v":0},{"$f":"Import!I6499","v":0},{"$f":"Import!I6504","v":0},null,"brrt_LossReturnPeriodAxis_brrt_OneThousandYearsMember",null,null,null,null,null,null,null,null,null,null,null,null,"bma_EPCurveRegionPerils_EuropeanWindstorm_LossReturnPeriodyears1000"]
[]
[null,null,"Exposure to European Windstorm",null,"Gross","Net"]
[null,null,null,null," (US$M)"," (US$M)"]
[null,null,"Total statutory property catastrophe premium",null,{"$f":"Import!I6505","v":0},{"$f":"Import!I6509","v":0},null,null,"brrt_EPCurveExposureAxis_brrt_TotalStatutoryPropertyCatastrophePremiumMember"]
[null,null,"Total all other statutory premium",null,{"$f":"Import!I6506","v":0},{"$f":"Import!I6510","v":0},null,null,"brrt_EPCurveExposureAxis_brrt_TotalAllOtherStatutoryPremiumMember"]
[null,null,"Total statutory property catastrophe limits",null,{"$f":"Import!I6507","v":0},{"$f":"Import!I6511","v":0},null,null,"brrt_EPCurveExposureAxis_brrt_TotalStatutoryPropertyCatastropheLimitsMember"]
[null,null,"Total all other statutory limits",null,{"$f":"Import!I6508","v":0},{"$f":"Import!I6512","v":0},null,null,"brrt_EPCurveExposureAxis_brrt_TotalAllOtherStatutoryLimitsMember"]
[]
[null,"d)","EP CURVE JAPANESE EARTH QUAKE",null,null,null,null,null,"brrt_EPCurveRegionPerilsAxis_brrt_JapaneseEarthquakeMember"]
[]
[null,null,"Which model(s) is used for  EP Curve Japanese earthquake",null,null,{"$f":"Import!I6513","v":"Select Cat Model(s)"},null,null,"brrt_ModelsUsedForEPCurve",{"$f":"XBRLMap(F75,I75&\".\"&$L$9&\".\"&I73,$T$1,$T$2,CONFIGURATION!$B$10,\"BMA\",CONFIGURATION!$B$1,\"bscr\")","v":"Mapped"},null,null,null,null,null,null,null,null,null,null,null,"bma_EPCurveRegionPerils_WhichModelsIsUsedForEpCurveJapaneseEarthquake"]
[null,null,"Indicate the model version",null,null,{"$f":"Import!I6514","v":0},null,null,"brrt_ModelVersionUsedForEPCurve",{"$f":"XBRLMap(F76,I76&\".\"&$L$9&\".\"&I73,$T$1,$T$2,CONFIGURATION!$B$10,\"BMA\",CONFIGURATION!$B$1,\"bscr\")","v":"Mapped"}]
[]
[null,null,"Exceedance probability information:"]
[null,null,null," Gross loss",null," Net loss"]
[null,null,"Loss Return period (years)","Gross per occurrence loss TVaR","Gross aggregate \nTVaR ","Net per occurrence loss TVaR","Net aggregate\nTVaR"]
[null,null,null," (US$M)"," (US$M)"," (US$M)"," (US$M)"]
[null,null,50,{"$f":"Import!I6515","v":0},{"$f":"Import!I6520","v":0},{"$f":"Import!I6525","v":0},{"$f":"Import!I6530","v":0},null,"brrt_LossReturnPeriodAxis_brrt_FiftyYearsMember",null,null,null,null,null,null,null,null,null,null,null,null,"bma_EPCurveRegionPerils_JapaneseEarthquake_LossReturnPeriodyears50"]
[null,null,100,{"$f":"Import!I6516","v":0},{"$f":"Import!I6521","v":0},{"$f":"Import!I6526","v":0},{"$f":"Import!I6531","v":0},null,"brrt_LossReturnPeriodAxis_brrt_OneHundredYearsMember",null,null,null,null,null,null,null,null,null,null,null,null,"bma_EPCurveRegionPerils_JapaneseEarthquake_LossReturnPeriodyears100"]
[null,null,250,{"$f":"Import!I6517","v":0},{"$f":"Import!I6522","v":0},{"$f":"Import!I6527","v":0},{"$f":"Import!I6532","v":0},null,"brrt_LossReturnPeriodAxis_brrt_TwoHundredFiftyYearsMember",null,null,null,null,null,null,null,null,null,null,null,null,"bma_EPCurveRegionPerils_JapaneseEarthquake_LossReturnPeriodyears250"]
[null,null,500,{"$f":"Import!I6518","v":0},{"$f":"Import!I6523","v":0},{"$f":"Import!I6528","v":0},{"$f":"Import!I6533","v":0},null,"brrt_LossReturnPeriodAxis_brrt_FiveHundredYearsMember",null,null,null,null,null,null,null,null,null,null,null,null,"bma_EPCurveRegionPerils_JapaneseEarthquake_LossReturnPeriodyears500"]
[null,null,1000,{"$f":"Import!I6519","v":0},{"$f":"Import!I6524","v":0},{"$f":"Import!I6529","v":0},{"$f":"Import!I6534","v":0},null,"brrt_LossReturnPeriodAxis_brrt_OneThousandYearsMember",null,null,null,null,null,null,null,null,null,null,null,null,"bma_EPCurveRegionPerils_JapaneseEarthquake_LossReturnPeriodyears1000"]
[]
[null,null,"Exposure to Japanese Earthquake",null,"Gross","Net"]
[null,null,null,null," (US$M)"," (US$M)"]
[null,null,"Total statutory property catastrophe premium",null,{"$f":"Import!I6535","v":0},{"$f":"Import!I6539","v":0},null,null,"brrt_EPCurveExposureAxis_brrt_TotalStatutoryPropertyCatastrophePremiumMember"]
[null,null,"Total all other statutory premium",null,{"$f":"Import!I6536","v":0},{"$f":"Import!I6540","v":0},null,null,"brrt_EPCurveExposureAxis_brrt_TotalAllOtherStatutoryPremiumMember"]
[null,null,"Total statutory property catastrophe limits",null,{"$f":"Import!I6537","v":0},{"$f":"Import!I6541","v":0},null,null,"brrt_EPCurveExposureAxis_brrt_TotalStatutoryPropertyCatastropheLimitsMember"]
[null,null,"Total all other statutory limits",null,{"$f":"Import!I6538","v":0},{"$f":"Import!I6542","v":0},null,null,"brrt_EPCurveExposureAxis_brrt_TotalAllOtherStatutoryLimitsMember"]
[]
[null,"e)","EP CURVE JAPANESE TYPHOON",null,null,null,null,null,"brrt_EPCurveRegionPerilsAxis_brrt_JapaneseTyphoonMember"]
[]
[null,null,"Which model(s) is used for  EP Curve Japanese typhoon ",null,null,{"$f":"Import!I6543","v":"Select Cat Model(s)"},null,null,"brrt_ModelsUsedForEPCurve",{"$f":"XBRLMap(F97,I97&\".\"&$L$9&\".\"&I95,$T$1,$T$2,CONFIGURATION!$B$10,\"BMA\",CONFIGURATION!$B$1,\"bscr\")","v":"Mapped"},null,null,null,null,null,null,null,null,null,null,null,"bma_EPCurveRegionPerils_WhichModelsIsUsedForEpCurveJapaneseTyphoon"]
[null,null,"Indicate the model version",null,null,{"$f":"Import!I6544","v":0},null,null,"brrt_ModelVersionUsedForEPCurve",{"$f":"XBRLMap(F98,I98&\".\"&$L$9&\".\"&I95,$T$1,$T$2,CONFIGURATION!$B$10,\"BMA\",CONFIGURATION!$B$1,\"bscr\")","v":"Mapped"}]
[]
[null,null,"Exceedance probability information:"]
[null,null,null," Gross loss",null," Net loss"]
[null,null,"Loss Return period (years)","Gross per occurrence loss TVaR","Gross aggregate \nTVaR ","Net per occurrence loss TVaR","Net aggregate\nTVaR"]
[null,null,null," (US$M)"," (US$M)"," (US$M)"," (US$M)"]
[null,null,50,{"$f":"Import!I6545","v":0},{"$f":"Import!I6550","v":0},{"$f":"Import!I6555","v":0},{"$f":"Import!I6560","v":0},null,"brrt_LossReturnPeriodAxis_brrt_FiftyYearsMember",null,null,null,null,null,null,null,null,null,null,null,null,"bma_EPCurveRegionPerils_JapaneseTyphoon_LossReturnPeriodyears50"]
[null,null,100,{"$f":"Import!I6546","v":0},{"$f":"Import!I6551","v":0},{"$f":"Import!I6556","v":0},{"$f":"Import!I6561","v":0},null,"brrt_LossReturnPeriodAxis_brrt_OneHundredYearsMember",null,null,null,null,null,null,null,null,null,null,null,null,"bma_EPCurveRegionPerils_JapaneseTyphoon_LossReturnPeriodyears100"]
[null,null,250,{"$f":"Import!I6547","v":0},{"$f":"Import!I6552","v":0},{"$f":"Import!I6557","v":0},{"$f":"Import!I6562","v":0},null,"brrt_LossReturnPeriodAxis_brrt_TwoHundredFiftyYearsMember",null,null,null,null,null,null,null,null,null,null,null,null,"bma_EPCurveRegionPerils_JapaneseTyphoon_LossReturnPeriodyears250"]
[null,null,500,{"$f":"Import!I6548","v":0},{"$f":"Import!I6553","v":0},{"$f":"Import!I6558","v":0},{"$f":"Import!I6563","v":0},null,"brrt_LossReturnPeriodAxis_brrt_FiveHundredYearsMember",null,null,null,null,null,null,null,null,null,null,null,null,"bma_EPCurveRegionPerils_JapaneseTyphoon_LossReturnPeriodyears500"]
[null,null,1000,{"$f":"Import!I6549","v":0},{"$f":"Import!I6554","v":0},{"$f":"Import!I6559","v":0},{"$f":"Import!I6564","v":0},null,"brrt_LossReturnPeriodAxis_brrt_OneThousandYearsMember",null,null,null,null,null,null,null,null,null,null,null,null,"bma_EPCurveRegionPerils_JapaneseTyphoon_LossReturnPeriodyears1000"]
[]
[null,null,"Exposure to Japanese Typhoon",null,"Gross","Net"]
[null,null,null,null," (US$M)"," (US$M)"]
[null,null,"Total statutory property catastrophe premium",null,{"$f":"Import!I6565","v":0},{"$f":"Import!I6569","v":0},null,null,"brrt_EPCurveExposureAxis_brrt_TotalStatutoryPropertyCatastrophePremiumMember"]
[null,null,"Total all other statutory premium",null,{"$f":"Import!I6566","v":0},{"$f":"Import!I6570","v":0},null,null,"brrt_EPCurveExposureAxis_brrt_TotalAllOtherStatutoryPremiumMember"]
[null,null,"Total statutory property catastrophe limits",null,{"$f":"Import!I6567","v":0},{"$f":"Import!I6571","v":0},null,null,"brrt_EPCurveExposureAxis_brrt_TotalStatutoryPropertyCatastropheLimitsMember"]
[null,null,"Total all other statutory limits",null,{"$f":"Import!I6568","v":0},{"$f":"Import!I6572","v":0},null,null,"brrt_EPCurveExposureAxis_brrt_TotalAllOtherStatutoryLimitsMember"]
[null,null,null,null,null,null,null,null,"",null,null,null,null,null,null,null,null,null,null,null,null,""]
[null,null,null,null,null,null,null,null,""]
[null,null,null,null,null,null,null,null,""]
[]
[]
[]
[null,null,null,"Select Cat Model(s)"]
[null,null,null,"AIR only"]
[null,null,null,"EQECAT only"]
[null,null,null,"RMS only"]
[null,null,null,"AIR and RMS"]
[null,null,null,"AIR and EQECAT"]
[null,null,null,"EQECAT and RMS"]
[null,null,null,"AIR, EQECAT and RMS"]
[null,null,null,"Other"]
[]
[]
[]
[]
[]
[]
[]
[]
[]
[]
[]
[]
[]
[]
[]
[]
[]
[]
[]
[]
[]
[]
[]
[]
[]
[]
[]
[]
[]
[null,null,null,"Which vendor catastrophe models do you include in this modeling:"]
[null,null,null,"AIR only"]
[null,null,null,"EQECAT only"]
[null,null,null,"RMS only"]
[null,null,null,"AIR and RMS"]
[null,null,null,"AIR and EQECAT"]
[null,null,null,"EQECAT and RMS"]
[null,null,null,"AIR, EQECAT and RMS"]
[]
[]
[]
[]
[]
[null,null,null,"brrt_GrossPerOccurrenceLoss","brrt_GrossAggregateTVaR","brrt_NetPerOccurrenceLoss","brrt_NetAggregateTVaR"]
[null,null,null,{"$f":"XBRLMap(D16,D$173&\".\"&$I16&\".\"&$I$7,$T$1,$T$2,CONFIGURATION!$B$10,\"BMA\",CONFIGURATION!$B$1,\"bscr\",1000000)","v":"Mapped"},{"$f":"XBRLMap(E16,E$173&\".\"&$I16&\".\"&$I$7,$T$1,$T$2,CONFIGURATION!$B$10,\"BMA\",CONFIGURATION!$B$1,\"bscr\",1000000)","v":"Mapped"},{"$f":"XBRLMap(F16,F$173&\".\"&$I16&\".\"&$I$7,$T$1,$T$2,CONFIGURATION!$B$10,\"BMA\",CONFIGURATION!$B$1,\"bscr\",1000000)","v":"Mapped"},{"$f":"XBRLMap(G16,G$173&\".\"&$I16&\".\"&$I$7,$T$1,$T$2,CONFIGURATION!$B$10,\"BMA\",CONFIGURATION!$B$1,\"bscr\",1000000)","v":"Mapped"}]
[null,null,null,{"$f":"XBRLMap(D17,D$173&\".\"&$I17&\".\"&$I$7,$T$1,$T$2,CONFIGURATION!$B$10,\"BMA\",CONFIGURATION!$B$1,\"bscr\",1000000)","v":"Mapped"},{"$f":"XBRLMap(E17,E$173&\".\"&$I17&\".\"&$I$7,$T$1,$T$2,CONFIGURATION!$B$10,\"BMA\",CONFIGURATION!$B$1,\"bscr\",1000000)","v":"Mapped"},{"$f":"XBRLMap(F17,F$173&\".\"&$I17&\".\"&$I$7,$T$1,$T$2,CONFIGURATION!$B$10,\"BMA\",CONFIGURATION!$B$1,\"bscr\",1000000)","v":"Mapped"},{"$f":"XBRLMap(G17,G$173&\".\"&$I17&\".\"&$I$7,$T$1,$T$2,CONFIGURATION!$B$10,\"BMA\",CONFIGURATION!$B$1,\"bscr\",1000000)","v":"Mapped"}]
[null,null,null,{"$f":"XBRLMap(D18,D$173&\".\"&$I18&\".\"&$I$7,$T$1,$T$2,CONFIGURATION!$B$10,\"BMA\",CONFIGURATION!$B$1,\"bscr\",1000000)","v":"Mapped"},{"$f":"XBRLMap(E18,E$173&\".\"&$I18&\".\"&$I$7,$T$1,$T$2,CONFIGURATION!$B$10,\"BMA\",CONFIGURATION!$B$1,\"bscr\",1000000)","v":"Mapped"},{"$f":"XBRLMap(F18,F$173&\".\"&$I18&\".\"&$I$7,$T$1,$T$2,CONFIGURATION!$B$10,\"BMA\",CONFIGURATION!$B$1,\"bscr\",1000000)","v":"Mapped"},{"$f":"XBRLMap(G18,G$173&\".\"&$I18&\".\"&$I$7,$T$1,$T$2,CONFIGURATION!$B$10,\"BMA\",CONFIGURATION!$B$1,\"bscr\",1000000)","v":"Mapped"}]
[null,null,null,{"$f":"XBRLMap(D19,D$173&\".\"&$I19&\".\"&$I$7,$T$1,$T$2,CONFIGURATION!$B$10,\"BMA\",CONFIGURATION!$B$1,\"bscr\",1000000)","v":"Mapped"},{"$f":"XBRLMap(E19,E$173&\".\"&$I19&\".\"&$I$7,$T$1,$T$2,CONFIGURATION!$B$10,\"BMA\",CONFIGURATION!$B$1,\"bscr\",1000000)","v":"Mapped"},{"$f":"XBRLMap(F19,F$173&\".\"&$I19&\".\"&$I$7,$T$1,$T$2,CONFIGURATION!$B$10,\"BMA\",CONFIGURATION!$B$1,\"bscr\",1000000)","v":"Mapped"},{"$f":"XBRLMap(G19,G$173&\".\"&$I19&\".\"&$I$7,$T$1,$T$2,CONFIGURATION!$B$10,\"BMA\",CONFIGURATION!$B$1,\"bscr\",1000000)","v":"Mapped"}]
[null,null,null,{"$f":"XBRLMap(D20,D$173&\".\"&$I20&\".\"&$I$7,$T$1,$T$2,CONFIGURATION!$B$10,\"BMA\",CONFIGURATION!$B$1,\"bscr\",1000000)","v":"Mapped"},{"$f":"XBRLMap(E20,E$173&\".\"&$I20&\".\"&$I$7,$T$1,$T$2,CONFIGURATION!$B$10,\"BMA\",CONFIGURATION!$B$1,\"bscr\",1000000)","v":"Mapped"},{"$f":"XBRLMap(F20,F$173&\".\"&$I20&\".\"&$I$7,$T$1,$T$2,CONFIGURATION!$B$10,\"BMA\",CONFIGURATION!$B$1,\"bscr\",1000000)","v":"Mapped"},{"$f":"XBRLMap(G20,G$173&\".\"&$I20&\".\"&$I$7,$T$1,$T$2,CONFIGURATION!$B$10,\"BMA\",CONFIGURATION!$B$1,\"bscr\",1000000)","v":"Mapped"}]
[null,null,null,null,"brrt_EPCurveNetValue","brrt_EPCurveGrossValue"]
[null,null,null,null,{"$f":"XBRLMap(E24,E$179&\".\"&$I24&\".\"&$I$7,$T$1,$T$2,CONFIGURATION!$B$10,\"BMA\",CONFIGURATION!$B$1,\"bscr\",1000000)","v":"Mapped"},{"$f":"XBRLMap(F24,F$179&\".\"&$I24&\".\"&$I$7,$T$1,$T$2,CONFIGURATION!$B$10,\"BMA\",CONFIGURATION!$B$1,\"bscr\",1000000)","v":"Mapped"}]
[null,null,null,null,{"$f":"XBRLMap(E25,E$179&\".\"&$I25&\".\"&$I$7,$T$1,$T$2,CONFIGURATION!$B$10,\"BMA\",CONFIGURATION!$B$1,\"bscr\",1000000)","v":"Mapped"},{"$f":"XBRLMap(F25,F$179&\".\"&$I25&\".\"&$I$7,$T$1,$T$2,CONFIGURATION!$B$10,\"BMA\",CONFIGURATION!$B$1,\"bscr\",1000000)","v":"Mapped"}]
[null,null,null,null,{"$f":"XBRLMap(E26,E$179&\".\"&$I26&\".\"&$I$7,$T$1,$T$2,CONFIGURATION!$B$10,\"BMA\",CONFIGURATION!$B$1,\"bscr\",1000000)","v":"Mapped"},{"$f":"XBRLMap(F26,F$179&\".\"&$I26&\".\"&$I$7,$T$1,$T$2,CONFIGURATION!$B$10,\"BMA\",CONFIGURATION!$B$1,\"bscr\",1000000)","v":"Mapped"}]
[null,null,null,null,{"$f":"XBRLMap(E27,E$179&\".\"&$I27&\".\"&$I$7,$T$1,$T$2,CONFIGURATION!$B$10,\"BMA\",CONFIGURATION!$B$1,\"bscr\",1000000)","v":"Mapped"},{"$f":"XBRLMap(F27,F$179&\".\"&$I27&\".\"&$I$7,$T$1,$T$2,CONFIGURATION!$B$10,\"BMA\",CONFIGURATION!$B$1,\"bscr\",1000000)","v":"Mapped"}]
[]
[]
[]
[]
[null,null,null,{"$f":"XBRLMap(D38,D$173&\".\"&$I38&\".\"&$I$29,$T$1,$T$2,CONFIGURATION!$B$10,\"BMA\",CONFIGURATION!$B$1,\"bscr\",1000000)","v":"Mapped"},{"$f":"XBRLMap(E38,E$173&\".\"&$I38&\".\"&$I$29,$T$1,$T$2,CONFIGURATION!$B$10,\"BMA\",CONFIGURATION!$B$1,\"bscr\",1000000)","v":"Mapped"},{"$f":"XBRLMap(F38,F$173&\".\"&$I38&\".\"&$I$29,$T$1,$T$2,CONFIGURATION!$B$10,\"BMA\",CONFIGURATION!$B$1,\"bscr\",1000000)","v":"Mapped"},{"$f":"XBRLMap(G38,G$173&\".\"&$I38&\".\"&$I$29,$T$1,$T$2,CONFIGURATION!$B$10,\"BMA\",CONFIGURATION!$B$1,\"bscr\",1000000)","v":"Mapped"}]
[null,null,null,{"$f":"XBRLMap(D39,D$173&\".\"&$I39&\".\"&$I$29,$T$1,$T$2,CONFIGURATION!$B$10,\"BMA\",CONFIGURATION!$B$1,\"bscr\",1000000)","v":"Mapped"},{"$f":"XBRLMap(E39,E$173&\".\"&$I39&\".\"&$I$29,$T$1,$T$2,CONFIGURATION!$B$10,\"BMA\",CONFIGURATION!$B$1,\"bscr\",1000000)","v":"Mapped"},{"$f":"XBRLMap(F39,F$173&\".\"&$I39&\".\"&$I$29,$T$1,$T$2,CONFIGURATION!$B$10,\"BMA\",CONFIGURATION!$B$1,\"bscr\",1000000)","v":"Mapped"},{"$f":"XBRLMap(G39,G$173&\".\"&$I39&\".\"&$I$29,$T$1,$T$2,CONFIGURATION!$B$10,\"BMA\",CONFIGURATION!$B$1,\"bscr\",1000000)","v":"Mapped"}]
[null,null,null,{"$f":"XBRLMap(D40,D$173&\".\"&$I40&\".\"&$I$29,$T$1,$T$2,CONFIGURATION!$B$10,\"BMA\",CONFIGURATION!$B$1,\"bscr\",1000000)","v":"Mapped"},{"$f":"XBRLMap(E40,E$173&\".\"&$I40&\".\"&$I$29,$T$1,$T$2,CONFIGURATION!$B$10,\"BMA\",CONFIGURATION!$B$1,\"bscr\",1000000)","v":"Mapped"},{"$f":"XBRLMap(F40,F$173&\".\"&$I40&\".\"&$I$29,$T$1,$T$2,CONFIGURATION!$B$10,\"BMA\",CONFIGURATION!$B$1,\"bscr\",1000000)","v":"Mapped"},{"$f":"XBRLMap(G40,G$173&\".\"&$I40&\".\"&$I$29,$T$1,$T$2,CONFIGURATION!$B$10,\"BMA\",CONFIGURATION!$B$1,\"bscr\",1000000)","v":"Mapped"}]
[null,null,null,{"$f":"XBRLMap(D41,D$173&\".\"&$I41&\".\"&$I$29,$T$1,$T$2,CONFIGURATION!$B$10,\"BMA\",CONFIGURATION!$B$1,\"bscr\",1000000)","v":"Mapped"},{"$f":"XBRLMap(E41,E$173&\".\"&$I41&\".\"&$I$29,$T$1,$T$2,CONFIGURATION!$B$10,\"BMA\",CONFIGURATION!$B$1,\"bscr\",1000000)","v":"Mapped"},{"$f":"XBRLMap(F41,F$173&\".\"&$I41&\".\"&$I$29,$T$1,$T$2,CONFIGURATION!$B$10,\"BMA\",CONFIGURATION!$B$1,\"bscr\",1000000)","v":"Mapped"},{"$f":"XBRLMap(G41,G$173&\".\"&$I41&\".\"&$I$29,$T$1,$T$2,CONFIGURATION!$B$10,\"BMA\",CONFIGURATION!$B$1,\"bscr\",1000000)","v":"Mapped"}]
[null,null,null,{"$f":"XBRLMap(D42,D$173&\".\"&$I42&\".\"&$I$29,$T$1,$T$2,CONFIGURATION!$B$10,\"BMA\",CONFIGURATION!$B$1,\"bscr\",1000000)","v":"Mapped"},{"$f":"XBRLMap(E42,E$173&\".\"&$I42&\".\"&$I$29,$T$1,$T$2,CONFIGURATION!$B$10,\"BMA\",CONFIGURATION!$B$1,\"bscr\",1000000)","v":"Mapped"},{"$f":"XBRLMap(F42,F$173&\".\"&$I42&\".\"&$I$29,$T$1,$T$2,CONFIGURATION!$B$10,\"BMA\",CONFIGURATION!$B$1,\"bscr\",1000000)","v":"Mapped"},{"$f":"XBRLMap(G42,G$173&\".\"&$I42&\".\"&$I$29,$T$1,$T$2,CONFIGURATION!$B$10,\"BMA\",CONFIGURATION!$B$1,\"bscr\",1000000)","v":"Mapped"}]
[]
[null,null,null,null,{"$f":"XBRLMap(E46,E$179&\".\"&$I46&\".\"&$I$29,$T$1,$T$2,CONFIGURATION!$B$10,\"BMA\",CONFIGURATION!$B$1,\"bscr\",1000000)","v":"Mapped"},{"$f":"XBRLMap(F46,F$179&\".\"&$I46&\".\"&$I$29,$T$1,$T$2,CONFIGURATION!$B$10,\"BMA\",CONFIGURATION!$B$1,\"bscr\",1000000)","v":"Mapped"}]
[null,null,null,null,{"$f":"XBRLMap(E47,E$179&\".\"&$I47&\".\"&$I$29,$T$1,$T$2,CONFIGURATION!$B$10,\"BMA\",CONFIGURATION!$B$1,\"bscr\",1000000)","v":"Mapped"},{"$f":"XBRLMap(F47,F$179&\".\"&$I47&\".\"&$I$29,$T$1,$T$2,CONFIGURATION!$B$10,\"BMA\",CONFIGURATION!$B$1,\"bscr\",1000000)","v":"Mapped"}]
[null,null,null,null,{"$f":"XBRLMap(E48,E$179&\".\"&$I48&\".\"&$I$29,$T$1,$T$2,CONFIGURATION!$B$10,\"BMA\",CONFIGURATION!$B$1,\"bscr\",1000000)","v":"Mapped"},{"$f":"XBRLMap(F48,F$179&\".\"&$I48&\".\"&$I$29,$T$1,$T$2,CONFIGURATION!$B$10,\"BMA\",CONFIGURATION!$B$1,\"bscr\",1000000)","v":"Mapped"}]
[null,null,null,null,{"$f":"XBRLMap(E49,E$179&\".\"&$I49&\".\"&$I$29,$T$1,$T$2,CONFIGURATION!$B$10,\"BMA\",CONFIGURATION!$B$1,\"bscr\",1000000)","v":"Mapped"},{"$f":"XBRLMap(F49,F$179&\".\"&$I49&\".\"&$I$29,$T$1,$T$2,CONFIGURATION!$B$10,\"BMA\",CONFIGURATION!$B$1,\"bscr\",1000000)","v":"Mapped"}]
[]
[]
[]
[]
[]
[null,null,null,{"$f":"XBRLMap(D60,D$173&\".\"&$I60&\".\"&$I$51,$T$1,$T$2,CONFIGURATION!$B$10,\"BMA\",CONFIGURATION!$B$1,\"bscr\",1000000)","v":"Mapped"},{"$f":"XBRLMap(E60,E$173&\".\"&$I60&\".\"&$I$51,$T$1,$T$2,CONFIGURATION!$B$10,\"BMA\",CONFIGURATION!$B$1,\"bscr\",1000000)","v":"Mapped"},{"$f":"XBRLMap(F60,F$173&\".\"&$I60&\".\"&$I$51,$T$1,$T$2,CONFIGURATION!$B$10,\"BMA\",CONFIGURATION!$B$1,\"bscr\",1000000)","v":"Mapped"},{"$f":"XBRLMap(G60,G$173&\".\"&$I60&\".\"&$I$51,$T$1,$T$2,CONFIGURATION!$B$10,\"BMA\",CONFIGURATION!$B$1,\"bscr\",1000000)","v":"Mapped"}]
[null,null,null,{"$f":"XBRLMap(D61,D$173&\".\"&$I61&\".\"&$I$51,$T$1,$T$2,CONFIGURATION!$B$10,\"BMA\",CONFIGURATION!$B$1,\"bscr\",1000000)","v":"Mapped"},{"$f":"XBRLMap(E61,E$173&\".\"&$I61&\".\"&$I$51,$T$1,$T$2,CONFIGURATION!$B$10,\"BMA\",CONFIGURATION!$B$1,\"bscr\",1000000)","v":"Mapped"},{"$f":"XBRLMap(F61,F$173&\".\"&$I61&\".\"&$I$51,$T$1,$T$2,CONFIGURATION!$B$10,\"BMA\",CONFIGURATION!$B$1,\"bscr\",1000000)","v":"Mapped"},{"$f":"XBRLMap(G61,G$173&\".\"&$I61&\".\"&$I$51,$T$1,$T$2,CONFIGURATION!$B$10,\"BMA\",CONFIGURATION!$B$1,\"bscr\",1000000)","v":"Mapped"}]
[null,null,null,{"$f":"XBRLMap(D62,D$173&\".\"&$I62&\".\"&$I$51,$T$1,$T$2,CONFIGURATION!$B$10,\"BMA\",CONFIGURATION!$B$1,\"bscr\",1000000)","v":"Mapped"},{"$f":"XBRLMap(E62,E$173&\".\"&$I62&\".\"&$I$51,$T$1,$T$2,CONFIGURATION!$B$10,\"BMA\",CONFIGURATION!$B$1,\"bscr\",1000000)","v":"Mapped"},{"$f":"XBRLMap(F62,F$173&\".\"&$I62&\".\"&$I$51,$T$1,$T$2,CONFIGURATION!$B$10,\"BMA\",CONFIGURATION!$B$1,\"bscr\",1000000)","v":"Mapped"},{"$f":"XBRLMap(G62,G$173&\".\"&$I62&\".\"&$I$51,$T$1,$T$2,CONFIGURATION!$B$10,\"BMA\",CONFIGURATION!$B$1,\"bscr\",1000000)","v":"Mapped"}]
[null,null,null,{"$f":"XBRLMap(D63,D$173&\".\"&$I63&\".\"&$I$51,$T$1,$T$2,CONFIGURATION!$B$10,\"BMA\",CONFIGURATION!$B$1,\"bscr\",1000000)","v":"Mapped"},{"$f":"XBRLMap(E63,E$173&\".\"&$I63&\".\"&$I$51,$T$1,$T$2,CONFIGURATION!$B$10,\"BMA\",CONFIGURATION!$B$1,\"bscr\",1000000)","v":"Mapped"},{"$f":"XBRLMap(F63,F$173&\".\"&$I63&\".\"&$I$51,$T$1,$T$2,CONFIGURATION!$B$10,\"BMA\",CONFIGURATION!$B$1,\"bscr\",1000000)","v":"Mapped"},{"$f":"XBRLMap(G63,G$173&\".\"&$I63&\".\"&$I$51,$T$1,$T$2,CONFIGURATION!$B$10,\"BMA\",CONFIGURATION!$B$1,\"bscr\",1000000)","v":"Mapped"}]
[null,null,null,{"$f":"XBRLMap(D64,D$173&\".\"&$I64&\".\"&$I$51,$T$1,$T$2,CONFIGURATION!$B$10,\"BMA\",CONFIGURATION!$B$1,\"bscr\",1000000)","v":"Mapped"},{"$f":"XBRLMap(E64,E$173&\".\"&$I64&\".\"&$I$51,$T$1,$T$2,CONFIGURATION!$B$10,\"BMA\",CONFIGURATION!$B$1,\"bscr\",1000000)","v":"Mapped"},{"$f":"XBRLMap(F64,F$173&\".\"&$I64&\".\"&$I$51,$T$1,$T$2,CONFIGURATION!$B$10,\"BMA\",CONFIGURATION!$B$1,\"bscr\",1000000)","v":"Mapped"},{"$f":"XBRLMap(G64,G$173&\".\"&$I64&\".\"&$I$51,$T$1,$T$2,CONFIGURATION!$B$10,\"BMA\",CONFIGURATION!$B$1,\"bscr\",1000000)","v":"Mapped"}]
[]
[null,null,null,null,{"$f":"XBRLMap(E68,E$179&\".\"&$I68&\".\"&$I$51,$T$1,$T$2,CONFIGURATION!$B$10,\"BMA\",CONFIGURATION!$B$1,\"bscr\",1000000)","v":"Mapped"},{"$f":"XBRLMap(F68,F$179&\".\"&$I68&\".\"&$I$51,$T$1,$T$2,CONFIGURATION!$B$10,\"BMA\",CONFIGURATION!$B$1,\"bscr\",1000000)","v":"Mapped"}]
[null,null,null,null,{"$f":"XBRLMap(E69,E$179&\".\"&$I69&\".\"&$I$51,$T$1,$T$2,CONFIGURATION!$B$10,\"BMA\",CONFIGURATION!$B$1,\"bscr\",1000000)","v":"Mapped"},{"$f":"XBRLMap(F69,F$179&\".\"&$I69&\".\"&$I$51,$T$1,$T$2,CONFIGURATION!$B$10,\"BMA\",CONFIGURATION!$B$1,\"bscr\",1000000)","v":"Mapped"}]
[null,null,null,null,{"$f":"XBRLMap(E70,E$179&\".\"&$I70&\".\"&$I$51,$T$1,$T$2,CONFIGURATION!$B$10,\"BMA\",CONFIGURATION!$B$1,\"bscr\",1000000)","v":"Mapped"},{"$f":"XBRLMap(F70,F$179&\".\"&$I70&\".\"&$I$51,$T$1,$T$2,CONFIGURATION!$B$10,\"BMA\",CONFIGURATION!$B$1,\"bscr\",1000000)","v":"Mapped"}]
[null,null,null,null,{"$f":"XBRLMap(E71,E$179&\".\"&$I71&\".\"&$I$51,$T$1,$T$2,CONFIGURATION!$B$10,\"BMA\",CONFIGURATION!$B$1,\"bscr\",1000000)","v":"Mapped"},{"$f":"XBRLMap(F71,F$179&\".\"&$I71&\".\"&$I$51,$T$1,$T$2,CONFIGURATION!$B$10,\"BMA\",CONFIGURATION!$B$1,\"bscr\",1000000)","v":"Mapped"}]
[]
[]
[]
[]
[]
[null,null,null,{"$f":"XBRLMap(D82,D$173&\".\"&$I82&\".\"&$I$73,$T$1,$T$2,CONFIGURATION!$B$10,\"BMA\",CONFIGURATION!$B$1,\"bscr\",1000000)","v":"Mapped"},{"$f":"XBRLMap(E82,E$173&\".\"&$I82&\".\"&$I$73,$T$1,$T$2,CONFIGURATION!$B$10,\"BMA\",CONFIGURATION!$B$1,\"bscr\",1000000)","v":"Mapped"},{"$f":"XBRLMap(F82,F$173&\".\"&$I82&\".\"&$I$73,$T$1,$T$2,CONFIGURATION!$B$10,\"BMA\",CONFIGURATION!$B$1,\"bscr\",1000000)","v":"Mapped"},{"$f":"XBRLMap(G82,G$173&\".\"&$I82&\".\"&$I$73,$T$1,$T$2,CONFIGURATION!$B$10,\"BMA\",CONFIGURATION!$B$1,\"bscr\",1000000)","v":"Mapped"}]
[null,null,null,{"$f":"XBRLMap(D83,D$173&\".\"&$I83&\".\"&$I$73,$T$1,$T$2,CONFIGURATION!$B$10,\"BMA\",CONFIGURATION!$B$1,\"bscr\",1000000)","v":"Mapped"},{"$f":"XBRLMap(E83,E$173&\".\"&$I83&\".\"&$I$73,$T$1,$T$2,CONFIGURATION!$B$10,\"BMA\",CONFIGURATION!$B$1,\"bscr\",1000000)","v":"Mapped"},{"$f":"XBRLMap(F83,F$173&\".\"&$I83&\".\"&$I$73,$T$1,$T$2,CONFIGURATION!$B$10,\"BMA\",CONFIGURATION!$B$1,\"bscr\",1000000)","v":"Mapped"},{"$f":"XBRLMap(G83,G$173&\".\"&$I83&\".\"&$I$73,$T$1,$T$2,CONFIGURATION!$B$10,\"BMA\",CONFIGURATION!$B$1,\"bscr\",1000000)","v":"Mapped"}]
[null,null,null,{"$f":"XBRLMap(D84,D$173&\".\"&$I84&\".\"&$I$73,$T$1,$T$2,CONFIGURATION!$B$10,\"BMA\",CONFIGURATION!$B$1,\"bscr\",1000000)","v":"Mapped"},{"$f":"XBRLMap(E84,E$173&\".\"&$I84&\".\"&$I$73,$T$1,$T$2,CONFIGURATION!$B$10,\"BMA\",CONFIGURATION!$B$1,\"bscr\",1000000)","v":"Mapped"},{"$f":"XBRLMap(F84,F$173&\".\"&$I84&\".\"&$I$73,$T$1,$T$2,CONFIGURATION!$B$10,\"BMA\",CONFIGURATION!$B$1,\"bscr\",1000000)","v":"Mapped"},{"$f":"XBRLMap(G84,G$173&\".\"&$I84&\".\"&$I$73,$T$1,$T$2,CONFIGURATION!$B$10,\"BMA\",CONFIGURATION!$B$1,\"bscr\",1000000)","v":"Mapped"}]
[null,null,null,{"$f":"XBRLMap(D85,D$173&\".\"&$I85&\".\"&$I$73,$T$1,$T$2,CONFIGURATION!$B$10,\"BMA\",CONFIGURATION!$B$1,\"bscr\",1000000)","v":"Mapped"},{"$f":"XBRLMap(E85,E$173&\".\"&$I85&\".\"&$I$73,$T$1,$T$2,CONFIGURATION!$B$10,\"BMA\",CONFIGURATION!$B$1,\"bscr\",1000000)","v":"Mapped"},{"$f":"XBRLMap(F85,F$173&\".\"&$I85&\".\"&$I$73,$T$1,$T$2,CONFIGURATION!$B$10,\"BMA\",CONFIGURATION!$B$1,\"bscr\",1000000)","v":"Mapped"},{"$f":"XBRLMap(G85,G$173&\".\"&$I85&\".\"&$I$73,$T$1,$T$2,CONFIGURATION!$B$10,\"BMA\",CONFIGURATION!$B$1,\"bscr\",1000000)","v":"Mapped"}]
[null,null,null,{"$f":"XBRLMap(D86,D$173&\".\"&$I86&\".\"&$I$73,$T$1,$T$2,CONFIGURATION!$B$10,\"BMA\",CONFIGURATION!$B$1,\"bscr\",1000000)","v":"Mapped"},{"$f":"XBRLMap(E86,E$173&\".\"&$I86&\".\"&$I$73,$T$1,$T$2,CONFIGURATION!$B$10,\"BMA\",CONFIGURATION!$B$1,\"bscr\",1000000)","v":"Mapped"},{"$f":"XBRLMap(F86,F$173&\".\"&$I86&\".\"&$I$73,$T$1,$T$2,CONFIGURATION!$B$10,\"BMA\",CONFIGURATION!$B$1,\"bscr\",1000000)","v":"Mapped"},{"$f":"XBRLMap(G86,G$173&\".\"&$I86&\".\"&$I$73,$T$1,$T$2,CONFIGURATION!$B$10,\"BMA\",CONFIGURATION!$B$1,\"bscr\",1000000)","v":"Mapped"}]
[]
[null,null,null,null,{"$f":"XBRLMap(E90,E$179&\".\"&$I90&\".\"&$I$73,$T$1,$T$2,CONFIGURATION!$B$10,\"BMA\",CONFIGURATION!$B$1,\"bscr\",1000000)","v":"Mapped"},{"$f":"XBRLMap(F90,F$179&\".\"&$I90&\".\"&$I$73,$T$1,$T$2,CONFIGURATION!$B$10,\"BMA\",CONFIGURATION!$B$1,\"bscr\",1000000)","v":"Mapped"}]
[null,null,null,null,{"$f":"XBRLMap(E91,E$179&\".\"&$I91&\".\"&$I$73,$T$1,$T$2,CONFIGURATION!$B$10,\"BMA\",CONFIGURATION!$B$1,\"bscr\",1000000)","v":"Mapped"},{"$f":"XBRLMap(F91,F$179&\".\"&$I91&\".\"&$I$73,$T$1,$T$2,CONFIGURATION!$B$10,\"BMA\",CONFIGURATION!$B$1,\"bscr\",1000000)","v":"Mapped"}]
[null,null,null,null,{"$f":"XBRLMap(E92,E$179&\".\"&$I92&\".\"&$I$73,$T$1,$T$2,CONFIGURATION!$B$10,\"BMA\",CONFIGURATION!$B$1,\"bscr\",1000000)","v":"Mapped"},{"$f":"XBRLMap(F92,F$179&\".\"&$I92&\".\"&$I$73,$T$1,$T$2,CONFIGURATION!$B$10,\"BMA\",CONFIGURATION!$B$1,\"bscr\",1000000)","v":"Mapped"}]
[null,null,null,null,{"$f":"XBRLMap(E93,E$179&\".\"&$I93&\".\"&$I$73,$T$1,$T$2,CONFIGURATION!$B$10,\"BMA\",CONFIGURATION!$B$1,\"bscr\",1000000)","v":"Mapped"},{"$f":"XBRLMap(F93,F$179&\".\"&$I93&\".\"&$I$73,$T$1,$T$2,CONFIGURATION!$B$10,\"BMA\",CONFIGURATION!$B$1,\"bscr\",1000000)","v":"Mapped"}]
[]
[]
[]
[]
[]
[null,null,null,{"$f":"XBRLMap(D104,D$173&\".\"&$I104&\".\"&$I$95,$T$1,$T$2,CONFIGURATION!$B$10,\"BMA\",CONFIGURATION!$B$1,\"bscr\",1000000)","v":"Mapped"},{"$f":"XBRLMap(E104,E$173&\".\"&$I104&\".\"&$I$95,$T$1,$T$2,CONFIGURATION!$B$10,\"BMA\",CONFIGURATION!$B$1,\"bscr\",1000000)","v":"Mapped"},{"$f":"XBRLMap(F104,F$173&\".\"&$I104&\".\"&$I$95,$T$1,$T$2,CONFIGURATION!$B$10,\"BMA\",CONFIGURATION!$B$1,\"bscr\",1000000)","v":"Mapped"},{"$f":"XBRLMap(G104,G$173&\".\"&$I104&\".\"&$I$95,$T$1,$T$2,CONFIGURATION!$B$10,\"BMA\",CONFIGURATION!$B$1,\"bscr\",1000000)","v":"Mapped"}]
[null,null,null,{"$f":"XBRLMap(D105,D$173&\".\"&$I105&\".\"&$I$95,$T$1,$T$2,CONFIGURATION!$B$10,\"BMA\",CONFIGURATION!$B$1,\"bscr\",1000000)","v":"Mapped"},{"$f":"XBRLMap(E105,E$173&\".\"&$I105&\".\"&$I$95,$T$1,$T$2,CONFIGURATION!$B$10,\"BMA\",CONFIGURATION!$B$1,\"bscr\",1000000)","v":"Mapped"},{"$f":"XBRLMap(F105,F$173&\".\"&$I105&\".\"&$I$95,$T$1,$T$2,CONFIGURATION!$B$10,\"BMA\",CONFIGURATION!$B$1,\"bscr\",1000000)","v":"Mapped"},{"$f":"XBRLMap(G105,G$173&\".\"&$I105&\".\"&$I$95,$T$1,$T$2,CONFIGURATION!$B$10,\"BMA\",CONFIGURATION!$B$1,\"bscr\",1000000)","v":"Mapped"}]
[null,null,null,{"$f":"XBRLMap(D106,D$173&\".\"&$I106&\".\"&$I$95,$T$1,$T$2,CONFIGURATION!$B$10,\"BMA\",CONFIGURATION!$B$1,\"bscr\",1000000)","v":"Mapped"},{"$f":"XBRLMap(E106,E$173&\".\"&$I106&\".\"&$I$95,$T$1,$T$2,CONFIGURATION!$B$10,\"BMA\",CONFIGURATION!$B$1,\"bscr\",1000000)","v":"Mapped"},{"$f":"XBRLMap(F106,F$173&\".\"&$I106&\".\"&$I$95,$T$1,$T$2,CONFIGURATION!$B$10,\"BMA\",CONFIGURATION!$B$1,\"bscr\",1000000)","v":"Mapped"},{"$f":"XBRLMap(G106,G$173&\".\"&$I106&\".\"&$I$95,$T$1,$T$2,CONFIGURATION!$B$10,\"BMA\",CONFIGURATION!$B$1,\"bscr\",1000000)","v":"Mapped"}]
[null,null,null,{"$f":"XBRLMap(D107,D$173&\".\"&$I107&\".\"&$I$95,$T$1,$T$2,CONFIGURATION!$B$10,\"BMA\",CONFIGURATION!$B$1,\"bscr\",1000000)","v":"Mapped"},{"$f":"XBRLMap(E107,E$173&\".\"&$I107&\".\"&$I$95,$T$1,$T$2,CONFIGURATION!$B$10,\"BMA\",CONFIGURATION!$B$1,\"bscr\",1000000)","v":"Mapped"},{"$f":"XBRLMap(F107,F$173&\".\"&$I107&\".\"&$I$95,$T$1,$T$2,CONFIGURATION!$B$10,\"BMA\",CONFIGURATION!$B$1,\"bscr\",1000000)","v":"Mapped"},{"$f":"XBRLMap(G107,G$173&\".\"&$I107&\".\"&$I$95,$T$1,$T$2,CONFIGURATION!$B$10,\"BMA\",CONFIGURATION!$B$1,\"bscr\",1000000)","v":"Mapped"}]
[null,null,null,{"$f":"XBRLMap(D108,D$173&\".\"&$I108&\".\"&$I$95,$T$1,$T$2,CONFIGURATION!$B$10,\"BMA\",CONFIGURATION!$B$1,\"bscr\",1000000)","v":"Mapped"},{"$f":"XBRLMap(E108,E$173&\".\"&$I108&\".\"&$I$95,$T$1,$T$2,CONFIGURATION!$B$10,\"BMA\",CONFIGURATION!$B$1,\"bscr\",1000000)","v":"Mapped"},{"$f":"XBRLMap(F108,F$173&\".\"&$I108&\".\"&$I$95,$T$1,$T$2,CONFIGURATION!$B$10,\"BMA\",CONFIGURATION!$B$1,\"bscr\",1000000)","v":"Mapped"},{"$f":"XBRLMap(G108,G$173&\".\"&$I108&\".\"&$I$95,$T$1,$T$2,CONFIGURATION!$B$10,\"BMA\",CONFIGURATION!$B$1,\"bscr\",1000000)","v":"Mapped"}]
[]
[null,null,null,null,{"$f":"XBRLMap(E112,E$179&\".\"&$I112&\".\"&$I$95,$T$1,$T$2,CONFIGURATION!$B$10,\"BMA\",CONFIGURATION!$B$1,\"bscr\",1000000)","v":"Mapped"},{"$f":"XBRLMap(F112,F$179&\".\"&$I112&\".\"&$I$95,$T$1,$T$2,CONFIGURATION!$B$10,\"BMA\",CONFIGURATION!$B$1,\"bscr\",1000000)","v":"Mapped"}]
[null,null,null,null,{"$f":"XBRLMap(E113,E$179&\".\"&$I113&\".\"&$I$95,$T$1,$T$2,CONFIGURATION!$B$10,\"BMA\",CONFIGURATION!$B$1,\"bscr\",1000000)","v":"Mapped"},{"$f":"XBRLMap(F113,F$179&\".\"&$I113&\".\"&$I$95,$T$1,$T$2,CONFIGURATION!$B$10,\"BMA\",CONFIGURATION!$B$1,\"bscr\",1000000)","v":"Mapped"}]
[null,null,null,null,{"$f":"XBRLMap(E114,E$179&\".\"&$I114&\".\"&$I$95,$T$1,$T$2,CONFIGURATION!$B$10,\"BMA\",CONFIGURATION!$B$1,\"bscr\",1000000)","v":"Mapped"},{"$f":"XBRLMap(F114,F$179&\".\"&$I114&\".\"&$I$95,$T$1,$T$2,CONFIGURATION!$B$10,\"BMA\",CONFIGURATION!$B$1,\"bscr\",1000000)","v":"Mapped"}]
[null,null,null,null,{"$f":"XBRLMap(E115,E$179&\".\"&$I115&\".\"&$I$95,$T$1,$T$2,CONFIGURATION!$B$10,\"BMA\",CONFIGURATION!$B$1,\"bscr\",1000000)","v":"Mapped"},{"$f":"XBRLMap(F115,F$179&\".\"&$I115&\".\"&$I$95,$T$1,$T$2,CONFIGURATION!$B$10,\"BMA\",CONFIGURATION!$B$1,\"bscr\",1000000)","v":"Mapped"}]
[]
[]
[]
[]
[]
[null,null,null,"bma_class3A_StatementComponentAxis3_bma_EPCurveRegionPerils_GrossPerOccurrenceLossDollarM","bma_class3A_StatementComponentAxis3_bma_EPCurveRegionPerils_GrossAggregateTvarDollarM","bma_class3A_StatementComponentAxis3_bma_EPCurveRegionPerils_NetPerOccurrenceLossDollarM","bma_class3A_StatementComponentAxis3_bma_EPCurveRegionPerils_NetAggregateTvarDollarM"]

{"sheet":"Schedule X(d)","index":55,"n_rows":99,"n_cols":22,"rows_kept":99,"cut":false,"hidden":false,"merged":[[2,0,2,2],[0,0,0,6],[4,1,4,7]]}
["CATASTROPHE RISK RETURN: REGION-PERIL EXPOSURE TO ZONES AND STATUTORY LINES OF BUSINESS (TABLE 9C)",null,null,null,null,null,null,{"$f":"HYPERLINK(\"#'Index'!A1\",\"Return to Index\")","v":"Return to Index"},null,null,null,null,null,null,null,null,null,null,null,{"$f":"'Company Information'!L1","v":"01/01/2019"}]
[{"$f":"'Company Information'!C7","v":"Enter Company Name"},null,null,null,null,null,null,null,null,null,"",null,null,null,null,null,null,null,null,{"$f":"'Company Information'!L2","v":"12/31/2019"}]
[{"$f":"'Company Information'!C3+1","v":"2020-01-01"},null,null,null,null,null,null,"SCHEDULE X(d)",null,null,""]
[]
[null,{"$f":"IF('Company Information'!F11=\"Class 3A\",\"Which statutory zones (paragraph V(n) of the Prudential Standard Rules) and statutory lines of business (Schedule IV) is the insurer exposed to with regards to the region-perils? \n(select all that apply)\",\"Which statutory zones (paragraph V(r) of the Prudential Standard Rules) and statutory lines of business (Schedule IV) is the insurer exposed to with regards to the region-perils? \n(select all that apply)\")","v":"Which statutory zones (paragraph V(r) of the Prudential Standard Rules) and statutory lines of business (Schedule IV) is the insurer exposed to with regards to the region-perils? \n(select all that apply)"}]
[]
[{"$f":"IF('Company Information'!F11=\"Class 3A\",\"a)  Exposure to statutory zones (requirement of paragraph V(n) of the Prudential Standard Rules)\",\"a)  Exposure to statutory zones (requirement of paragraph V(r) of the Prudential Standards Rules)\")","v":"a)  Exposure to statutory zones (requirement of paragraph V(r) of the Prudential Standards Rules)"}]
[null,null,"EP Curve Atlantic Basin Hurricane","EP Curve North American Earthquake","EP Curve European Windstorm","EP Curve Japanese Earthquake","EP Curve Japanese Typhoon","EP Curve All Other Perils",null,null,""]
[null,"Zone 1",{"$f":"Import!I6574","v":"Select Yes/No"},{"$f":"Import!I6587","v":"Select Yes/No"},{"$f":"Import!I6600","v":"Select Yes/No"},{"$f":"Import!I6613","v":"Select Yes/No"},{"$f":"Import!I6626","v":"Select Yes/No"},{"$f":"Import!I6639","v":"Select Yes/No"},null,null,"brrt_StatutoryZonesAxis_brrt_Zone1Member",null,null,null,null,null,null,null,null,null,null,"bma_StatutoryZones_Zone1"]
[null,"Zone 2",{"$f":"Import!I6575","v":"Select Yes/No"},{"$f":"Import!I6588","v":"Select Yes/No"},{"$f":"Import!I6601","v":"Select Yes/No"},{"$f":"Import!I6614","v":"Select Yes/No"},{"$f":"Import!I6627","v":"Select Yes/No"},{"$f":"Import!I6640","v":"Select Yes/No"},null,null,"brrt_StatutoryZonesAxis_brrt_Zone2Member",null,null,null,null,null,null,null,null,null,null,"bma_StatutoryZones_Zone2"]
[null,"Zone 3",{"$f":"Import!I6576","v":"Select Yes/No"},{"$f":"Import!I6589","v":"Select Yes/No"},{"$f":"Import!I6602","v":"Select Yes/No"},{"$f":"Import!I6615","v":"Select Yes/No"},{"$f":"Import!I6628","v":"Select Yes/No"},{"$f":"Import!I6641","v":"Select Yes/No"},null,null,"brrt_StatutoryZonesAxis_brrt_Zone3Member",null,null,null,null,null,null,null,null,null,null,"bma_StatutoryZones_Zone3"]
[null,"Zone 4",{"$f":"Import!I6577","v":"Select Yes/No"},{"$f":"Import!I6590","v":"Select Yes/No"},{"$f":"Import!I6603","v":"Select Yes/No"},{"$f":"Import!I6616","v":"Select Yes/No"},{"$f":"Import!I6629","v":"Select Yes/No"},{"$f":"Import!I6642","v":"Select Yes/No"},null,null,"brrt_StatutoryZonesAxis_brrt_Zone4Member",null,null,null,null,null,null,null,null,null,null,"bma_StatutoryZones_Zone4"]
[null,"Zone 5",{"$f":"Import!I6578","v":"Select Yes/No"},{"$f":"Import!I6591","v":"Select Yes/No"},{"$f":"Import!I6604","v":"Select Yes/No"},{"$f":"Import!I6617","v":"Select Yes/No"},{"$f":"Import!I6630","v":"Select Yes/No"},{"$f":"Import!I6643","v":"Select Yes/No"},null,null,"brrt_StatutoryZonesAxis_brrt_Zone5Member",null,null,null,null,null,null,null,null,null,null,"bma_StatutoryZones_Zone5"]
[null,"Zone 6",{"$f":"Import!I6579","v":"Select Yes/No"},{"$f":"Import!I6592","v":"Select Yes/No"},{"$f":"Import!I6605","v":"Select Yes/No"},{"$f":"Import!I6618","v":"Select Yes/No"},{"$f":"Import!I6631","v":"Select Yes/No"},{"$f":"Import!I6644","v":"Select Yes/No"},null,null,"brrt_StatutoryZonesAxis_brrt_Zone6Member",null,null,null,null,null,null,null,null,null,null,"bma_StatutoryZones_Zone6"]
[null,"Zone 7",{"$f":"Import!I6580","v":"Select Yes/No"},{"$f":"Import!I6593","v":"Select Yes/No"},{"$f":"Import!I6606","v":"Select Yes/No"},{"$f":"Import!I6619","v":"Select Yes/No"},{"$f":"Import!I6632","v":"Select Yes/No"},{"$f":"Import!I6645","v":"Select Yes/No"},null,null,"brrt_StatutoryZonesAxis_brrt_Zone7Member",null,null,null,null,null,null,null,null,null,null,"bma_StatutoryZones_Zone7"]
[null,"Zone 8",{"$f":"Import!I6581","v":"Select Yes/No"},{"$f":"Import!I6594","v":"Select Yes/No"},{"$f":"Import!I6607","v":"Select Yes/No"},{"$f":"Import!I6620","v":"Select Yes/No"},{"$f":"Import!I6633","v":"Select Yes/No"},{"$f":"Import!I6646","v":"Select Yes/No"},null,null,"brrt_StatutoryZonesAxis_brrt_Zone8Member",null,null,null,null,null,null,null,null,null,null,"bma_StatutoryZones_Zone8"]
[null,"Zone 9",{"$f":"Import!I6582","v":"Select Yes/No"},{"$f":"Import!I6595","v":"Select Yes/No"},{"$f":"Import!I6608","v":"Select Yes/No"},{"$f":"Import!I6621","v":"Select Yes/No"},{"$f":"Import!I6634","v":"Select Yes/No"},{"$f":"Import!I6647","v":"Select Yes/No"},null,null,"brrt_StatutoryZonesAxis_brrt_Zone9Member",null,null,null,null,null,null,null,null,null,null,"bma_StatutoryZones_Zone9"]
[null,"Zone 10",{"$f":"Import!I6583","v":"Select Yes/No"},{"$f":"Import!I6596","v":"Select Yes/No"},{"$f":"Import!I6609","v":"Select Yes/No"},{"$f":"Import!I6622","v":"Select Yes/No"},{"$f":"Import!I6635","v":"Select Yes/No"},{"$f":"Import!I6648","v":"Select Yes/No"},null,null,"brrt_StatutoryZonesAxis_brrt_Zone10Member",null,null,null,null,null,null,null,null,null,null,"bma_StatutoryZones_Zone10"]
[null,"Zone 11",{"$f":"Import!I6584","v":"Select Yes/No"},{"$f":"Import!I6597","v":"Select Yes/No"},{"$f":"Import!I6610","v":"Select Yes/No"},{"$f":"Import!I6623","v":"Select Yes/No"},{"$f":"Import!I6636","v":"Select Yes/No"},{"$f":"Import!I6649","v":"Select Yes/No"},null,null,"brrt_StatutoryZonesAxis_brrt_Zone11Member",null,null,null,null,null,null,null,null,null,null,"bma_StatutoryZones_Zone11"]
[null,"Zone 12",{"$f":"Import!I6585","v":"Select Yes/No"},{"$f":"Import!I6598","v":"Select Yes/No"},{"$f":"Import!I6611","v":"Select Yes/No"},{"$f":"Import!I6624","v":"Select Yes/No"},{"$f":"Import!I6637","v":"Select Yes/No"},{"$f":"Import!I6650","v":"Select Yes/No"},null,null,"brrt_StatutoryZonesAxis_brrt_Zone12Member",null,null,null,null,null,null,null,null,null,null,"bma_StatutoryZones_Zone12"]
[null,"Zone 13",{"$f":"Import!I6586","v":"Select Yes/No"},{"$f":"Import!I6599","v":"Select Yes/No"},{"$f":"Import!I6612","v":"Select Yes/No"},{"$f":"Import!I6625","v":"Select Yes/No"},{"$f":"Import!I6638","v":"Select Yes/No"},{"$f":"Import!I6651","v":"Select Yes/No"},null,null,"brrt_StatutoryZonesAxis_brrt_Zone13Member",null,null,null,null,null,null,null,null,null,null,"bma_StatutoryZones_Zone13"]
[null,null,null,null,null,null,null,null,null,null,"",null,null,null,null,null,null,null,null,null,null,""]
["b) Exposure to statutory lines of business (Schedule IV)"]
[null,null,"EP Curve Atlantic Basin Hurricane","EP Curve North American Earthquake","EP Curve European Windstorm","EP Curve Japanese Earthquake","EP Curve Japanese Typhoon","EP Curve - All Other Perils",null,null,"",null,null,null,null,null,null,null,null,null,null,""]
[null,"Line 1",{"$f":"Import!I6652","v":"Select Yes/No"},{"$f":"Import!I6676","v":"Select Yes/No"},{"$f":"Import!I6700","v":"Select Yes/No"},{"$f":"Import!I6724","v":"Select Yes/No"},{"$f":"Import!I6748","v":"Select Yes/No"},{"$f":"Import!I6772","v":"Select Yes/No"},null,null,"brrt_LineOfBusinessAxis_brrt_PropertyCatastropheMember","brrt_TypeOfContractAxis_brrt_ProportionalMember",null,null,null,null,null,null,null,null,null,"bma_ExposureToLinesOfBusiness_Line1"]
[null,"Line 2",{"$f":"Import!I6653","v":"Select Yes/No"},{"$f":"Import!I6677","v":"Select Yes/No"},{"$f":"Import!I6701","v":"Select Yes/No"},{"$f":"Import!I6725","v":"Select Yes/No"},{"$f":"Import!I6749","v":"Select Yes/No"},{"$f":"Import!I6773","v":"Select Yes/No"},null,null,"brrt_LineOfBusinessAxis_brrt_PropertyMember","brrt_TypeOfContractAxis_brrt_ProportionalMember",null,null,null,null,null,null,null,null,null,"bma_ExposureToLinesOfBusiness_Line2"]
[null,"Line 3",{"$f":"Import!I6654","v":"Select Yes/No"},{"$f":"Import!I6678","v":"Select Yes/No"},{"$f":"Import!I6702","v":"Select Yes/No"},{"$f":"Import!I6726","v":"Select Yes/No"},{"$f":"Import!I6750","v":"Select Yes/No"},{"$f":"Import!I6774","v":"Select Yes/No"},null,null,"brrt_LineOfBusinessAxis_brrt_PropertyMember","brrt_TypeOfContractAxis_brrt_NonProportionalMember",null,null,null,null,null,null,null,null,null,"bma_ExposureToLinesOfBusiness_Line3"]
[null,"Line 4",{"$f":"Import!I6655","v":"Select Yes/No"},{"$f":"Import!I6679","v":"Select Yes/No"},{"$f":"Import!I6703","v":"Select Yes/No"},{"$f":"Import!I6727","v":"Select Yes/No"},{"$f":"Import!I6751","v":"Select Yes/No"},{"$f":"Import!I6775","v":"Select Yes/No"},null,null,"brrt_LineOfBusinessAxis_brrt_PersonalAccidentMember","brrt_TypeOfContractAxis_brrt_ProportionalMember",null,null,null,null,null,null,null,null,null,"bma_ExposureToLinesOfBusiness_Line4"]
[null,"Line 5",{"$f":"Import!I6656","v":"Select Yes/No"},{"$f":"Import!I6680","v":"Select Yes/No"},{"$f":"Import!I6704","v":"Select Yes/No"},{"$f":"Import!I6728","v":"Select Yes/No"},{"$f":"Import!I6752","v":"Select Yes/No"},{"$f":"Import!I6776","v":"Select Yes/No"},null,null,"brrt_LineOfBusinessAxis_brrt_PersonalAccidentMember","brrt_TypeOfContractAxis_brrt_NonProportionalMember",null,null,null,null,null,null,null,null,null,"bma_ExposureToLinesOfBusiness_Line5"]
[null,"Line 6",{"$f":"Import!I6657","v":"Select Yes/No"},{"$f":"Import!I6681","v":"Select Yes/No"},{"$f":"Import!I6705","v":"Select Yes/No"},{"$f":"Import!I6729","v":"Select Yes/No"},{"$f":"Import!I6753","v":"Select Yes/No"},{"$f":"Import!I6777","v":"Select Yes/No"},null,null,"brrt_LineOfBusinessAxis_brrt_HealthMember","brrt_TypeOfContractAxis_brrt_ProportionalMember",null,null,null,null,null,null,null,null,null,"bma_ExposureToLinesOfBusiness_Line6"]
[null,"Line 7",{"$f":"Import!I6658","v":"Select Yes/No"},{"$f":"Import!I6682","v":"Select Yes/No"},{"$f":"Import!I6706","v":"Select Yes/No"},{"$f":"Import!I6730","v":"Select Yes/No"},{"$f":"Import!I6754","v":"Select Yes/No"},{"$f":"Import!I6778","v":"Select Yes/No"},null,null,"brrt_LineOfBusinessAxis_brrt_AviationMember","brrt_TypeOfContractAxis_brrt_NonProportionalMember",null,null,null,null,null,null,null,null,null,"bma_ExposureToLinesOfBusiness_Line7"]
[null,"Line 8",{"$f":"Import!I6659","v":"Select Yes/No"},{"$f":"Import!I6683","v":"Select Yes/No"},{"$f":"Import!I6707","v":"Select Yes/No"},{"$f":"Import!I6731","v":"Select Yes/No"},{"$f":"Import!I6755","v":"Select Yes/No"},{"$f":"Import!I6779","v":"Select Yes/No"},null,null,"brrt_LineOfBusinessAxis_brrt_AviationMember","brrt_TypeOfContractAxis_brrt_ProportionalMember",null,null,null,null,null,null,null,null,null,"bma_ExposureToLinesOfBusiness_Line8"]
[null,"Line 9",{"$f":"Import!I6660","v":"Select Yes/No"},{"$f":"Import!I6684","v":"Select Yes/No"},{"$f":"Import!I6708","v":"Select Yes/No"},{"$f":"Import!I6732","v":"Select Yes/No"},{"$f":"Import!I6756","v":"Select Yes/No"},{"$f":"Import!I6780","v":"Select Yes/No"},null,null,"brrt_LineOfBusinessAxis_brrt_CreditSuretyMember","brrt_TypeOfContractAxis_brrt_NonProportionalMember",null,null,null,null,null,null,null,null,null,"bma_ExposureToLinesOfBusiness_Line9"]
[null,"Line 10",{"$f":"Import!I6661","v":"Select Yes/No"},{"$f":"Import!I6685","v":"Select Yes/No"},{"$f":"Import!I6709","v":"Select Yes/No"},{"$f":"Import!I6733","v":"Select Yes/No"},{"$f":"Import!I6757","v":"Select Yes/No"},{"$f":"Import!I6781","v":"Select Yes/No"},null,null,"brrt_LineOfBusinessAxis_brrt_CreditSuretyMember","brrt_TypeOfContractAxis_brrt_ProportionalMember",null,null,null,null,null,null,null,null,null,"bma_ExposureToLinesOfBusiness_Line10"]
[null,"Line 11",{"$f":"Import!I6662","v":"Select Yes/No"},{"$f":"Import!I6686","v":"Select Yes/No"},{"$f":"Import!I6710","v":"Select Yes/No"},{"$f":"Import!I6734","v":"Select Yes/No"},{"$f":"Import!I6758","v":"Select Yes/No"},{"$f":"Import!I6782","v":"Select Yes/No"},null,null,"brrt_LineOfBusinessAxis_brrt_EnergyOffshoreMarineMember","brrt_TypeOfContractAxis_brrt_NonProportionalMember",null,null,null,null,null,null,null,null,null,"bma_ExposureToLinesOfBusiness_Line11"]
[null,"Line 12",{"$f":"Import!I6663","v":"Select Yes/No"},{"$f":"Import!I6687","v":"Select Yes/No"},{"$f":"Import!I6711","v":"Select Yes/No"},{"$f":"Import!I6735","v":"Select Yes/No"},{"$f":"Import!I6759","v":"Select Yes/No"},{"$f":"Import!I6783","v":"Select Yes/No"},null,null,"brrt_LineOfBusinessAxis_brrt_EnergyOffshoreMarineMember","brrt_TypeOfContractAxis_brrt_ProportionalMember",null,null,null,null,null,null,null,null,null,"bma_ExposureToLinesOfBusiness_Line12"]
[null,"Line 13",{"$f":"Import!I6664","v":"Select Yes/No"},{"$f":"Import!I6688","v":"Select Yes/No"},{"$f":"Import!I6712","v":"Select Yes/No"},{"$f":"Import!I6736","v":"Select Yes/No"},{"$f":"Import!I6760","v":"Select Yes/No"},{"$f":"Import!I6784","v":"Select Yes/No"},null,null,"brrt_LineOfBusinessAxis_brrt_USCasualtyMember","brrt_TypeOfContractAxis_brrt_NonProportionalMember",null,null,null,null,null,null,null,null,null,"bma_ExposureToLinesOfBusiness_Line13"]
[null,"Line 14",{"$f":"Import!I6665","v":"Select Yes/No"},{"$f":"Import!I6689","v":"Select Yes/No"},{"$f":"Import!I6713","v":"Select Yes/No"},{"$f":"Import!I6737","v":"Select Yes/No"},{"$f":"Import!I6761","v":"Select Yes/No"},{"$f":"Import!I6785","v":"Select Yes/No"},null,null,"brrt_LineOfBusinessAxis_brrt_USCasualtyMember","brrt_TypeOfContractAxis_brrt_ProportionalMember",null,null,null,null,null,null,null,null,null,"bma_ExposureToLinesOfBusiness_Line14"]
[null,"Line 15",{"$f":"Import!I6666","v":"Select Yes/No"},{"$f":"Import!I6690","v":"Select Yes/No"},{"$f":"Import!I6714","v":"Select Yes/No"},{"$f":"Import!I6738","v":"Select Yes/No"},{"$f":"Import!I6762","v":"Select Yes/No"},{"$f":"Import!I6786","v":"Select Yes/No"},null,null,"brrt_LineOfBusinessAxis_brrt_USProfessionalMember","brrt_TypeOfContractAxis_brrt_NonProportionalMember",null,null,null,null,null,null,null,null,null,"bma_ExposureToLinesOfBusiness_Line15"]
[null,"Line 16",{"$f":"Import!I6667","v":"Select Yes/No"},{"$f":"Import!I6691","v":"Select Yes/No"},{"$f":"Import!I6715","v":"Select Yes/No"},{"$f":"Import!I6739","v":"Select Yes/No"},{"$f":"Import!I6763","v":"Select Yes/No"},{"$f":"Import!I6787","v":"Select Yes/No"},null,null,"brrt_LineOfBusinessAxis_brrt_USProfessionalMember","brrt_TypeOfContractAxis_brrt_ProportionalMember",null,null,null,null,null,null,null,null,null,"bma_ExposureToLinesOfBusiness_Line16"]
[null,"Line 17",{"$f":"Import!I6668","v":"Select Yes/No"},{"$f":"Import!I6692","v":"Select Yes/No"},{"$f":"Import!I6716","v":"Select Yes/No"},{"$f":"Import!I6740","v":"Select Yes/No"},{"$f":"Import!I6764","v":"Select Yes/No"},{"$f":"Import!I6788","v":"Select Yes/No"},null,null,"brrt_LineOfBusinessAxis_brrt_USSpecialtyMember","brrt_TypeOfContractAxis_brrt_NonProportionalMember",null,null,null,null,null,null,null,null,null,"bma_ExposureToLinesOfBusiness_Line17"]
[null,"Line 18",{"$f":"Import!I6669","v":"Select Yes/No"},{"$f":"Import!I6693","v":"Select Yes/No"},{"$f":"Import!I6717","v":"Select Yes/No"},{"$f":"Import!I6741","v":"Select Yes/No"},{"$f":"Import!I6765","v":"Select Yes/No"},{"$f":"Import!I6789","v":"Select Yes/No"},null,null,"brrt_LineOfBusinessAxis_brrt_USSpecialtyMember","brrt_TypeOfContractAxis_brrt_ProportionalMember",null,null,null,null,null,null,null,null,null,"bma_ExposureToLinesOfBusiness_Line18"]
[null,"Line 19",{"$f":"Import!I6670","v":"Select Yes/No"},{"$f":"Import!I6694","v":"Select Yes/No"},{"$f":"Import!I6718","v":"Select Yes/No"},{"$f":"Import!I6742","v":"Select Yes/No"},{"$f":"Import!I6766","v":"Select Yes/No"},{"$f":"Import!I6790","v":"Select Yes/No"},null,null,"brrt_LineOfBusinessAxis_brrt_InternationalMotorMember","brrt_TypeOfContractAxis_brrt_NonProportionalMember",null,null,null,null,null,null,null,null,null,"bma_ExposureToLinesOfBusiness_Line19"]
[null,"Line 20",{"$f":"Import!I6671","v":"Select Yes/No"},{"$f":"Import!I6695","v":"Select Yes/No"},{"$f":"Import!I6719","v":"Select Yes/No"},{"$f":"Import!I6743","v":"Select Yes/No"},{"$f":"Import!I6767","v":"Select Yes/No"},{"$f":"Import!I6791","v":"Select Yes/No"},null,null,"brrt_LineOfBusinessAxis_brrt_InternationalMotorMember","brrt_TypeOfContractAxis_brrt_ProportionalMember",null,null,null,null,null,null,null,null,null,"bma_ExposureToLinesOfBusiness_Line20"]
[null,"Line 21",{"$f":"Import!I6672","v":"Select Yes/No"},{"$f":"Import!I6696","v":"Select Yes/No"},{"$f":"Import!I6720","v":"Select Yes/No"},{"$f":"Import!I6744","v":"Select Yes/No"},{"$f":"Import!I6768","v":"Select Yes/No"},{"$f":"Import!I6792","v":"Select Yes/No"},null,null,"brrt_LineOfBusinessAxis_brrt_InternationalCasualtyNonMotorMember","brrt_TypeOfContractAxis_brrt_NonProportionalMember",null,null,null,null,null,null,null,null,null,"bma_ExposureToLinesOfBusiness_Line21"]
[null,"Line 22",{"$f":"Import!I6673","v":"Select Yes/No"},{"$f":"Import!I6697","v":"Select Yes/No"},{"$f":"Import!I6721","v":"Select Yes/No"},{"$f":"Import!I6745","v":"Select Yes/No"},{"$f":"Import!I6769","v":"Select Yes/No"},{"$f":"Import!I6793","v":"Select Yes/No"},null,null,"brrt_LineOfBusinessAxis_brrt_InternationalCasualtyNonMotorMember","brrt_TypeOfContractAxis_brrt_ProportionalMember",null,null,null,null,null,null,null,null,null,"bma_ExposureToLinesOfBusiness_Line22"]
[null,"Line 23",{"$f":"Import!I6674","v":"Select Yes/No"},{"$f":"Import!I6698","v":"Select Yes/No"},{"$f":"Import!I6722","v":"Select Yes/No"},{"$f":"Import!I6746","v":"Select Yes/No"},{"$f":"Import!I6770","v":"Select Yes/No"},{"$f":"Import!I6794","v":"Select Yes/No"},null,null,"brrt_LineOfBusinessAxis_brrt_RetroPropertyMember","brrt_TypeOfContractAxis_brrt_ProportionalMember",null,null,null,null,null,null,null,null,null,"bma_ExposureToLinesOfBusiness_Line23"]
[null,"Line 24",{"$f":"Import!I6675","v":"Select Yes/No"},{"$f":"Import!I6699","v":"Select Yes/No"},{"$f":"Import!I6723","v":"Select Yes/No"},{"$f":"Import!I6747","v":"Select Yes/No"},{"$f":"Import!I6771","v":"Select Yes/No"},{"$f":"Import!I6795","v":"Select Yes/No"},null,null,"brrt_LineOfBusinessAxis_brrt_StructuredFiniteReinsuranceMember","brrt_TypeOfContractAxis_brrt_ProportionalMember",null,null,null,null,null,null,null,null,null,"bma_ExposureToLinesOfBusiness_Line24"]
[]
[]
[null,null,"brrt_EPCurveRegionPerilsAxis_brrt_AtlanticBasinHurricaneMember","brrt_EPCurveRegionPerilsAxis_brrt_NorthAmericanEarthquakeMember","brrt_EPCurveRegionPerilsAxis_brrt_EuropeanWindstormMember","brrt_EPCurveRegionPerilsAxis_brrt_JapaneseEarthquakeMember","brrt_EPCurveRegionPerilsAxis_brrt_JapaneseTyphoonMember","brrt_EPCurveRegionPerilsAxis_brrt_AllOtherPerilsMember"]
[null,null,"brrt_StatutoryZonesInsurerIsExposedToWithRegardsToRegionPerils","brrt_StatutoryZonesInsurerIsExposedToWithRegardsToRegionPerils","brrt_StatutoryZonesInsurerIsExposedToWithRegardsToRegionPerils","brrt_StatutoryZonesInsurerIsExposedToWithRegardsToRegionPerils","brrt_StatutoryZonesInsurerIsExposedToWithRegardsToRegionPerils","brrt_StatutoryZonesInsurerIsExposedToWithRegardsToRegionPerils"]
[null,null,{"$f":"XBRLMapBoolean(C9,C$52&\".\"&C$51&\".\"&$K9,$T$1,$T$2,CONFIGURATION!$B$10,\"BMA\",CONFIGURATION!$B$1,\"bscr\",IF(C9=\"Yes\",\"1\",\"0\"))","v":"Mapped"},{"$f":"XBRLMapBoolean(D9,D$52&\".\"&D$51&\".\"&$K9,$T$1,$T$2,CONFIGURATION!$B$10,\"BMA\",CONFIGURATION!$B$1,\"bscr\",IF(D9=\"Yes\",\"1\",\"0\"))","v":"Mapped"},{"$f":"XBRLMapBoolean(E9,E$52&\".\"&E$51&\".\"&$K9,$T$1,$T$2,CONFIGURATION!$B$10,\"BMA\",CONFIGURATION!$B$1,\"bscr\",IF(E9=\"Yes\",\"1\",\"0\"))","v":"Mapped"},{"$f":"XBRLMapBoolean(F9,F$52&\".\"&F$51&\".\"&$K9,$T$1,$T$2,CONFIGURATION!$B$10,\"BMA\",CONFIGURATION!$B$1,\"bscr\",IF(F9=\"Yes\",\"1\",\"0\"))","v":"Mapped"},{"$f":"XBRLMapBoolean(G9,G$52&\".\"&G$51&\".\"&$K9,$T$1,$T$2,CONFIGURATION!$B$10,\"BMA\",CONFIGURATION!$B$1,\"bscr\",IF(G9=\"Yes\",\"1\",\"0\"))","v":"Mapped"},{"$f":"XBRLMapBoolean(H9,H$52&\".\"&H$51&\".\"&$K9,$T$1,$T$2,CONFIGURATION!$B$10,\"BMA\",CONFIGURATION!$B$1,\"bscr\",IF(H9=\"Yes\",\"1\",\"0\"))","v":"Mapped"}]
[null,null,{"$f":"XBRLMapBoolean(C10,C$52&\".\"&C$51&\".\"&$K10,$T$1,$T$2,CONFIGURATION!$B$10,\"BMA\",CONFIGURATION!$B$1,\"bscr\",IF(C10=\"Yes\",\"1\",\"0\"))","v":"Mapped"},{"$f":"XBRLMapBoolean(D10,D$52&\".\"&D$51&\".\"&$K10,$T$1,$T$2,CONFIGURATION!$B$10,\"BMA\",CONFIGURATION!$B$1,\"bscr\",IF(D10=\"Yes\",\"1\",\"0\"))","v":"Mapped"},{"$f":"XBRLMapBoolean(E10,E$52&\".\"&E$51&\".\"&$K10,$T$1,$T$2,CONFIGURATION!$B$10,\"BMA\",CONFIGURATION!$B$1,\"bscr\",IF(E10=\"Yes\",\"1\",\"0\"))","v":"Mapped"},{"$f":"XBRLMapBoolean(F10,F$52&\".\"&F$51&\".\"&$K10,$T$1,$T$2,CONFIGURATION!$B$10,\"BMA\",CONFIGURATION!$B$1,\"bscr\",IF(F10=\"Yes\",\"1\",\"0\"))","v":"Mapped"},{"$f":"XBRLMapBoolean(G10,G$52&\".\"&G$51&\".\"&$K10,$T$1,$T$2,CONFIGURATION!$B$10,\"BMA\",CONFIGURATION!$B$1,\"bscr\",IF(G10=\"Yes\",\"1\",\"0\"))","v":"Mapped"},{"$f":"XBRLMapBoolean(H10,H$52&\".\"&H$51&\".\"&$K10,$T$1,$T$2,CONFIGURATION!$B$10,\"BMA\",CONFIGURATION!$B$1,\"bscr\",IF(H10=\"Yes\",\"1\",\"0\"))","v":"Mapped"}]
[null,null,{"$f":"XBRLMapBoolean(C11,C$52&\".\"&C$51&\".\"&$K11,$T$1,$T$2,CONFIGURATION!$B$10,\"BMA\",CONFIGURATION!$B$1,\"bscr\",IF(C11=\"Yes\",\"1\",\"0\"))","v":"Mapped"},{"$f":"XBRLMapBoolean(D11,D$52&\".\"&D$51&\".\"&$K11,$T$1,$T$2,CONFIGURATION!$B$10,\"BMA\",CONFIGURATION!$B$1,\"bscr\",IF(D11=\"Yes\",\"1\",\"0\"))","v":"Mapped"},{"$f":"XBRLMapBoolean(E11,E$52&\".\"&E$51&\".\"&$K11,$T$1,$T$2,CONFIGURATION!$B$10,\"BMA\",CONFIGURATION!$B$1,\"bscr\",IF(E11=\"Yes\",\"1\",\"0\"))","v":"Mapped"},{"$f":"XBRLMapBoolean(F11,F$52&\".\"&F$51&\".\"&$K11,$T$1,$T$2,CONFIGURATION!$B$10,\"BMA\",CONFIGURATION!$B$1,\"bscr\",IF(F11=\"Yes\",\"1\",\"0\"))","v":"Mapped"},{"$f":"XBRLMapBoolean(G11,G$52&\".\"&G$51&\".\"&$K11,$T$1,$T$2,CONFIGURATION!$B$10,\"BMA\",CONFIGURATION!$B$1,\"bscr\",IF(G11=\"Yes\",\"1\",\"0\"))","v":"Mapped"},{"$f":"XBRLMapBoolean(H11,H$52&\".\"&H$51&\".\"&$K11,$T$1,$T$2,CONFIGURATION!$B$10,\"BMA\",CONFIGURATION!$B$1,\"bscr\",IF(H11=\"Yes\",\"1\",\"0\"))","v":"Mapped"}]
[null,null,{"$f":"XBRLMapBoolean(C12,C$52&\".\"&C$51&\".\"&$K12,$T$1,$T$2,CONFIGURATION!$B$10,\"BMA\",CONFIGURATION!$B$1,\"bscr\",IF(C12=\"Yes\",\"1\",\"0\"))","v":"Mapped"},{"$f":"XBRLMapBoolean(D12,D$52&\".\"&D$51&\".\"&$K12,$T$1,$T$2,CONFIGURATION!$B$10,\"BMA\",CONFIGURATION!$B$1,\"bscr\",IF(D12=\"Yes\",\"1\",\"0\"))","v":"Mapped"},{"$f":"XBRLMapBoolean(E12,E$52&\".\"&E$51&\".\"&$K12,$T$1,$T$2,CONFIGURATION!$B$10,\"BMA\",CONFIGURATION!$B$1,\"bscr\",IF(E12=\"Yes\",\"1\",\"0\"))","v":"Mapped"},{"$f":"XBRLMapBoolean(F12,F$52&\".\"&F$51&\".\"&$K12,$T$1,$T$2,CONFIGURATION!$B$10,\"BMA\",CONFIGURATION!$B$1,\"bscr\",IF(F12=\"Yes\",\"1\",\"0\"))","v":"Mapped"},{"$f":"XBRLMapBoolean(G12,G$52&\".\"&G$51&\".\"&$K12,$T$1,$T$2,CONFIGURATION!$B$10,\"BMA\",CONFIGURATION!$B$1,\"bscr\",IF(G12=\"Yes\",\"1\",\"0\"))","v":"Mapped"},{"$f":"XBRLMapBoolean(H12,H$52&\".\"&H$51&\".\"&$K12,$T$1,$T$2,CONFIGURATION!$B$10,\"BMA\",CONFIGURATION!$B$1,\"bscr\",IF(H12=\"Yes\",\"1\",\"0\"))","v":"Mapped"}]
[null,null,{"$f":"XBRLMapBoolean(C13,C$52&\".\"&C$51&\".\"&$K13,$T$1,$T$2,CONFIGURATION!$B$10,\"BMA\",CONFIGURATION!$B$1,\"bscr\",IF(C13=\"Yes\",\"1\",\"0\"))","v":"Mapped"},{"$f":"XBRLMapBoolean(D13,D$52&\".\"&D$51&\".\"&$K13,$T$1,$T$2,CONFIGURATION!$B$10,\"BMA\",CONFIGURATION!$B$1,\"bscr\",IF(D13=\"Yes\",\"1\",\"0\"))","v":"Mapped"},{"$f":"XBRLMapBoolean(E13,E$52&\".\"&E$51&\".\"&$K13,$T$1,$T$2,CONFIGURATION!$B$10,\"BMA\",CONFIGURATION!$B$1,\"bscr\",IF(E13=\"Yes\",\"1\",\"0\"))","v":"Mapped"},{"$f":"XBRLMapBoolean(F13,F$52&\".\"&F$51&\".\"&$K13,$T$1,$T$2,CONFIGURATION!$B$10,\"BMA\",CONFIGURATION!$B$1,\"bscr\",IF(F13=\"Yes\",\"1\",\"0\"))","v":"Mapped"},{"$f":"XBRLMapBoolean(G13,G$52&\".\"&G$51&\".\"&$K13,$T$1,$T$2,CONFIGURATION!$B$10,\"BMA\",CONFIGURATION!$B$1,\"bscr\",IF(G13=\"Yes\",\"1\",\"0\"))","v":"Mapped"},{"$f":"XBRLMapBoolean(H13,H$52&\".\"&H$51&\".\"&$K13,$T$1,$T$2,CONFIGURATION!$B$10,\"BMA\",CONFIGURATION!$B$1,\"bscr\",IF(H13=\"Yes\",\"1\",\"0\"))","v":"Mapped"}]
[null,null,{"$f":"XBRLMapBoolean(C14,C$52&\".\"&C$51&\".\"&$K14,$T$1,$T$2,CONFIGURATION!$B$10,\"BMA\",CONFIGURATION!$B$1,\"bscr\",IF(C14=\"Yes\",\"1\",\"0\"))","v":"Mapped"},{"$f":"XBRLMapBoolean(D14,D$52&\".\"&D$51&\".\"&$K14,$T$1,$T$2,CONFIGURATION!$B$10,\"BMA\",CONFIGURATION!$B$1,\"bscr\",IF(D14=\"Yes\",\"1\",\"0\"))","v":"Mapped"},{"$f":"XBRLMapBoolean(E14,E$52&\".\"&E$51&\".\"&$K14,$T$1,$T$2,CONFIGURATION!$B$10,\"BMA\",CONFIGURATION!$B$1,\"bscr\",IF(E14=\"Yes\",\"1\",\"0\"))","v":"Mapped"},{"$f":"XBRLMapBoolean(F14,F$52&\".\"&F$51&\".\"&$K14,$T$1,$T$2,CONFIGURATION!$B$10,\"BMA\",CONFIGURATION!$B$1,\"bscr\",IF(F14=\"Yes\",\"1\",\"0\"))","v":"Mapped"},{"$f":"XBRLMapBoolean(G14,G$52&\".\"&G$51&\".\"&$K14,$T$1,$T$2,CONFIGURATION!$B$10,\"BMA\",CONFIGURATION!$B$1,\"bscr\",IF(G14=\"Yes\",\"1\",\"0\"))","v":"Mapped"},{"$f":"XBRLMapBoolean(H14,H$52&\".\"&H$51&\".\"&$K14,$T$1,$T$2,CONFIGURATION!$B$10,\"BMA\",CONFIGURATION!$B$1,\"bscr\",IF(H14=\"Yes\",\"1\",\"0\"))","v":"Mapped"}]
[null,null,{"$f":"XBRLMapBoolean(C15,C$52&\".\"&C$51&\".\"&$K15,$T$1,$T$2,CONFIGURATION!$B$10,\"BMA\",CONFIGURATION!$B$1,\"bscr\",IF(C15=\"Yes\",\"1\",\"0\"))","v":"Mapped"},{"$f":"XBRLMapBoolean(D15,D$52&\".\"&D$51&\".\"&$K15,$T$1,$T$2,CONFIGURATION!$B$10,\"BMA\",CONFIGURATION!$B$1,\"bscr\",IF(D15=\"Yes\",\"1\",\"0\"))","v":"Mapped"},{"$f":"XBRLMapBoolean(E15,E$52&\".\"&E$51&\".\"&$K15,$T$1,$T$2,CONFIGURATION!$B$10,\"BMA\",CONFIGURATION!$B$1,\"bscr\",IF(E15=\"Yes\",\"1\",\"0\"))","v":"Mapped"},{"$f":"XBRLMapBoolean(F15,F$52&\".\"&F$51&\".\"&$K15,$T$1,$T$2,CONFIGURATION!$B$10,\"BMA\",CONFIGURATION!$B$1,\"bscr\",IF(F15=\"Yes\",\"1\",\"0\"))","v":"Mapped"},{"$f":"XBRLMapBoolean(G15,G$52&\".\"&G$51&\".\"&$K15,$T$1,$T$2,CONFIGURATION!$B$10,\"BMA\",CONFIGURATION!$B$1,\"bscr\",IF(G15=\"Yes\",\"1\",\"0\"))","v":"Mapped"},{"$f":"XBRLMapBoolean(H15,H$52&\".\"&H$51&\".\"&$K15,$T$1,$T$2,CONFIGURATION!$B$10,\"BMA\",CONFIGURATION!$B$1,\"bscr\",IF(H15=\"Yes\",\"1\",\"0\"))","v":"Mapped"}]
[null,null,{"$f":"XBRLMapBoolean(C16,C$52&\".\"&C$51&\".\"&$K16,$T$1,$T$2,CONFIGURATION!$B$10,\"BMA\",CONFIGURATION!$B$1,\"bscr\",IF(C16=\"Yes\",\"1\",\"0\"))","v":"Mapped"},{"$f":"XBRLMapBoolean(D16,D$52&\".\"&D$51&\".\"&$K16,$T$1,$T$2,CONFIGURATION!$B$10,\"BMA\",CONFIGURATION!$B$1,\"bscr\",IF(D16=\"Yes\",\"1\",\"0\"))","v":"Mapped"},{"$f":"XBRLMapBoolean(E16,E$52&\".\"&E$51&\".\"&$K16,$T$1,$T$2,CONFIGURATION!$B$10,\"BMA\",CONFIGURATION!$B$1,\"bscr\",IF(E16=\"Yes\",\"1\",\"0\"))","v":"Mapped"},{"$f":"XBRLMapBoolean(F16,F$52&\".\"&F$51&\".\"&$K16,$T$1,$T$2,CONFIGURATION!$B$10,\"BMA\",CONFIGURATION!$B$1,\"bscr\",IF(F16=\"Yes\",\"1\",\"0\"))","v":"Mapped"},{"$f":"XBRLMapBoolean(G16,G$52&\".\"&G$51&\".\"&$K16,$T$1,$T$2,CONFIGURATION!$B$10,\"BMA\",CONFIGURATION!$B$1,\"bscr\",IF(G16=\"Yes\",\"1\",\"0\"))","v":"Mapped"},{"$f":"XBRLMapBoolean(H16,H$52&\".\"&H$51&\".\"&$K16,$T$1,$T$2,CONFIGURATION!$B$10,\"BMA\",CONFIGURATION!$B$1,\"bscr\",IF(H16=\"Yes\",\"1\",\"0\"))","v":"Mapped"}]
[null,null,{"$f":"XBRLMapBoolean(C17,C$52&\".\"&C$51&\".\"&$K17,$T$1,$T$2,CONFIGURATION!$B$10,\"BMA\",CONFIGURATION!$B$1,\"bscr\",IF(C17=\"Yes\",\"1\",\"0\"))","v":"Mapped"},{"$f":"XBRLMapBoolean(D17,D$52&\".\"&D$51&\".\"&$K17,$T$1,$T$2,CONFIGURATION!$B$10,\"BMA\",CONFIGURATION!$B$1,\"bscr\",IF(D17=\"Yes\",\"1\",\"0\"))","v":"Mapped"},{"$f":"XBRLMapBoolean(E17,E$52&\".\"&E$51&\".\"&$K17,$T$1,$T$2,CONFIGURATION!$B$10,\"BMA\",CONFIGURATION!$B$1,\"bscr\",IF(E17=\"Yes\",\"1\",\"0\"))","v":"Mapped"},{"$f":"XBRLMapBoolean(F17,F$52&\".\"&F$51&\".\"&$K17,$T$1,$T$2,CONFIGURATION!$B$10,\"BMA\",CONFIGURATION!$B$1,\"bscr\",IF(F17=\"Yes\",\"1\",\"0\"))","v":"Mapped"},{"$f":"XBRLMapBoolean(G17,G$52&\".\"&G$51&\".\"&$K17,$T$1,$T$2,CONFIGURATION!$B$10,\"BMA\",CONFIGURATION!$B$1,\"bscr\",IF(G17=\"Yes\",\"1\",\"0\"))","v":"Mapped"},{"$f":"XBRLMapBoolean(H17,H$52&\".\"&H$51&\".\"&$K17,$T$1,$T$2,CONFIGURATION!$B$10,\"BMA\",CONFIGURATION!$B$1,\"bscr\",IF(H17=\"Yes\",\"1\",\"0\"))","v":"Mapped"}]
[null,null,{"$f":"XBRLMapBoolean(C18,C$52&\".\"&C$51&\".\"&$K18,$T$1,$T$2,CONFIGURATION!$B$10,\"BMA\",CONFIGURATION!$B$1,\"bscr\",IF(C18=\"Yes\",\"1\",\"0\"))","v":"Mapped"},{"$f":"XBRLMapBoolean(D18,D$52&\".\"&D$51&\".\"&$K18,$T$1,$T$2,CONFIGURATION!$B$10,\"BMA\",CONFIGURATION!$B$1,\"bscr\",IF(D18=\"Yes\",\"1\",\"0\"))","v":"Mapped"},{"$f":"XBRLMapBoolean(E18,E$52&\".\"&E$51&\".\"&$K18,$T$1,$T$2,CONFIGURATION!$B$10,\"BMA\",CONFIGURATION!$B$1,\"bscr\",IF(E18=\"Yes\",\"1\",\"0\"))","v":"Mapped"},{"$f":"XBRLMapBoolean(F18,F$52&\".\"&F$51&\".\"&$K18,$T$1,$T$2,CONFIGURATION!$B$10,\"BMA\",CONFIGURATION!$B$1,\"bscr\",IF(F18=\"Yes\",\"1\",\"0\"))","v":"Mapped"},{"$f":"XBRLMapBoolean(G18,G$52&\".\"&G$51&\".\"&$K18,$T$1,$T$2,CONFIGURATION!$B$10,\"BMA\",CONFIGURATION!$B$1,\"bscr\",IF(G18=\"Yes\",\"1\",\"0\"))","v":"Mapped"},{"$f":"XBRLMapBoolean(H18,H$52&\".\"&H$51&\".\"&$K18,$T$1,$T$2,CONFIGURATION!$B$10,\"BMA\",CONFIGURATION!$B$1,\"bscr\",IF(H18=\"Yes\",\"1\",\"0\"))","v":"Mapped"}]
[null,null,{"$f":"XBRLMapBoolean(C19,C$52&\".\"&C$51&\".\"&$K19,$T$1,$T$2,CONFIGURATION!$B$10,\"BMA\",CONFIGURATION!$B$1,\"bscr\",IF(C19=\"Yes\",\"1\",\"0\"))","v":"Mapped"},{"$f":"XBRLMapBoolean(D19,D$52&\".\"&D$51&\".\"&$K19,$T$1,$T$2,CONFIGURATION!$B$10,\"BMA\",CONFIGURATION!$B$1,\"bscr\",IF(D19=\"Yes\",\"1\",\"0\"))","v":"Mapped"},{"$f":"XBRLMapBoolean(E19,E$52&\".\"&E$51&\".\"&$K19,$T$1,$T$2,CONFIGURATION!$B$10,\"BMA\",CONFIGURATION!$B$1,\"bscr\",IF(E19=\"Yes\",\"1\",\"0\"))","v":"Mapped"},{"$f":"XBRLMapBoolean(F19,F$52&\".\"&F$51&\".\"&$K19,$T$1,$T$2,CONFIGURATION!$B$10,\"BMA\",CONFIGURATION!$B$1,\"bscr\",IF(F19=\"Yes\",\"1\",\"0\"))","v":"Mapped"},{"$f":"XBRLMapBoolean(G19,G$52&\".\"&G$51&\".\"&$K19,$T$1,$T$2,CONFIGURATION!$B$10,\"BMA\",CONFIGURATION!$B$1,\"bscr\",IF(G19=\"Yes\",\"1\",\"0\"))","v":"Mapped"},{"$f":"XBRLMapBoolean(H19,H$52&\".\"&H$51&\".\"&$K19,$T$1,$T$2,CONFIGURATION!$B$10,\"BMA\",CONFIGURATION!$B$1,\"bscr\",IF(H19=\"Yes\",\"1\",\"0\"))","v":"Mapped"}]
[null,null,{"$f":"XBRLMapBoolean(C20,C$52&\".\"&C$51&\".\"&$K20,$T$1,$T$2,CONFIGURATION!$B$10,\"BMA\",CONFIGURATION!$B$1,\"bscr\",IF(C20=\"Yes\",\"1\",\"0\"))","v":"Mapped"},{"$f":"XBRLMapBoolean(D20,D$52&\".\"&D$51&\".\"&$K20,$T$1,$T$2,CONFIGURATION!$B$10,\"BMA\",CONFIGURATION!$B$1,\"bscr\",IF(D20=\"Yes\",\"1\",\"0\"))","v":"Mapped"},{"$f":"XBRLMapBoolean(E20,E$52&\".\"&E$51&\".\"&$K20,$T$1,$T$2,CONFIGURATION!$B$10,\"BMA\",CONFIGURATION!$B$1,\"bscr\",IF(E20=\"Yes\",\"1\",\"0\"))","v":"Mapped"},{"$f":"XBRLMapBoolean(F20,F$52&\".\"&F$51&\".\"&$K20,$T$1,$T$2,CONFIGURATION!$B$10,\"BMA\",CONFIGURATION!$B$1,\"bscr\",IF(F20=\"Yes\",\"1\",\"0\"))","v":"Mapped"},{"$f":"XBRLMapBoolean(G20,G$52&\".\"&G$51&\".\"&$K20,$T$1,$T$2,CONFIGURATION!$B$10,\"BMA\",CONFIGURATION!$B$1,\"bscr\",IF(G20=\"Yes\",\"1\",\"0\"))","v":"Mapped"},{"$f":"XBRLMapBoolean(H20,H$52&\".\"&H$51&\".\"&$K20,$T$1,$T$2,CONFIGURATION!$B$10,\"BMA\",CONFIGURATION!$B$1,\"bscr\",IF(H20=\"Yes\",\"1\",\"0\"))","v":"Mapped"}]
[null,null,{"$f":"XBRLMapBoolean(C21,C$52&\".\"&C$51&\".\"&$K21,$T$1,$T$2,CONFIGURATION!$B$10,\"BMA\",CONFIGURATION!$B$1,\"bscr\",IF(C21=\"Yes\",\"1\",\"0\"))","v":"Mapped"},{"$f":"XBRLMapBoolean(D21,D$52&\".\"&D$51&\".\"&$K21,$T$1,$T$2,CONFIGURATION!$B$10,\"BMA\",CONFIGURATION!$B$1,\"bscr\",IF(D21=\"Yes\",\"1\",\"0\"))","v":"Mapped"},{"$f":"XBRLMapBoolean(E21,E$52&\".\"&E$51&\".\"&$K21,$T$1,$T$2,CONFIGURATION!$B$10,\"BMA\",CONFIGURATION!$B$1,\"bscr\",IF(E21=\"Yes\",\"1\",\"0\"))","v":"Mapped"},{"$f":"XBRLMapBoolean(F21,F$52&\".\"&F$51&\".\"&$K21,$T$1,$T$2,CONFIGURATION!$B$10,\"BMA\",CONFIGURATION!$B$1,\"bscr\",IF(F21=\"Yes\",\"1\",\"0\"))","v":"Mapped"},{"$f":"XBRLMapBoolean(G21,G$52&\".\"&G$51&\".\"&$K21,$T$1,$T$2,CONFIGURATION!$B$10,\"BMA\",CONFIGURATION!$B$1,\"bscr\",IF(G21=\"Yes\",\"1\",\"0\"))","v":"Mapped"},{"$f":"XBRLMapBoolean(H21,H$52&\".\"&H$51&\".\"&$K21,$T$1,$T$2,CONFIGURATION!$B$10,\"BMA\",CONFIGURATION!$B$1,\"bscr\",IF(H21=\"Yes\",\"1\",\"0\"))","v":"Mapped"}]
[]
[]
[null,null,"brrt_StatutoryLinesOfBusinessInsurerIsExposedToWithRegardsToRegionPerils","brrt_StatutoryLinesOfBusinessInsurerIsExposedToWithRegardsToRegionPerils","brrt_StatutoryLinesOfBusinessInsurerIsExposedToWithRegardsToRegionPerils","brrt_StatutoryLinesOfBusinessInsurerIsExposedToWithRegardsToRegionPerils","brrt_StatutoryLinesOfBusinessInsurerIsExposedToWithRegardsToRegionPerils","brrt_StatutoryLinesOfBusinessInsurerIsExposedToWithRegardsToRegionPerils"]
[null,null,{"$f":"XBRLMapBoolean(C25,C$68&\".\"&C$51&\".\"&$K25&\".\"&$L25,$T$1,$T$2,CONFIGURATION!$B$10,\"BMA\",CONFIGURATION!$B$1,\"bscr\",IF(C25=\"Yes\",\"1\",\"0\"))","v":"Mapped"},{"$f":"XBRLMapBoolean(D25,D$68&\".\"&D$51&\".\"&$K25&\".\"&$L25,$T$1,$T$2,CONFIGURATION!$B$10,\"BMA\",CONFIGURATION!$B$1,\"bscr\",IF(D25=\"Yes\",\"1\",\"0\"))","v":"Mapped"},{"$f":"XBRLMapBoolean(E25,E$68&\".\"&E$51&\".\"&$K25&\".\"&$L25,$T$1,$T$2,CONFIGURATION!$B$10,\"BMA\",CONFIGURATION!$B$1,\"bscr\",IF(E25=\"Yes\",\"1\",\"0\"))","v":"Mapped"},{"$f":"XBRLMapBoolean(F25,F$68&\".\"&F$51&\".\"&$K25&\".\"&$L25,$T$1,$T$2,CONFIGURATION!$B$10,\"BMA\",CONFIGURATION!$B$1,\"bscr\",IF(F25=\"Yes\",\"1\",\"0\"))","v":"Mapped"},{"$f":"XBRLMapBoolean(G25,G$68&\".\"&G$51&\".\"&$K25&\".\"&$L25,$T$1,$T$2,CONFIGURATION!$B$10,\"BMA\",CONFIGURATION!$B$1,\"bscr\",IF(G25=\"Yes\",\"1\",\"0\"))","v":"Mapped"},{"$f":"XBRLMapBoolean(H25,H$68&\".\"&H$51&\".\"&$K25&\".\"&$L25,$T$1,$T$2,CONFIGURATION!$B$10,\"BMA\",CONFIGURATION!$B$1,\"bscr\",IF(H25=\"Yes\",\"1\",\"0\"))","v":"Mapped"}]
[null,null,{"$f":"XBRLMapBoolean(C26,C$68&\".\"&C$51&\".\"&$K26&\".\"&$L26,$T$1,$T$2,CONFIGURATION!$B$10,\"BMA\",CONFIGURATION!$B$1,\"bscr\",IF(C26=\"Yes\",\"1\",\"0\"))","v":"Mapped"},{"$f":"XBRLMapBoolean(D26,D$68&\".\"&D$51&\".\"&$K26&\".\"&$L26,$T$1,$T$2,CONFIGURATION!$B$10,\"BMA\",CONFIGURATION!$B$1,\"bscr\",IF(D26=\"Yes\",\"1\",\"0\"))","v":"Mapped"},{"$f":"XBRLMapBoolean(E26,E$68&\".\"&E$51&\".\"&$K26&\".\"&$L26,$T$1,$T$2,CONFIGURATION!$B$10,\"BMA\",CONFIGURATION!$B$1,\"bscr\",IF(E26=\"Yes\",\"1\",\"0\"))","v":"Mapped"},{"$f":"XBRLMapBoolean(F26,F$68&\".\"&F$51&\".\"&$K26&\".\"&$L26,$T$1,$T$2,CONFIGURATION!$B$10,\"BMA\",CONFIGURATION!$B$1,\"bscr\",IF(F26=\"Yes\",\"1\",\"0\"))","v":"Mapped"},{"$f":"XBRLMapBoolean(G26,G$68&\".\"&G$51&\".\"&$K26&\".\"&$L26,$T$1,$T$2,CONFIGURATION!$B$10,\"BMA\",CONFIGURATION!$B$1,\"bscr\",IF(G26=\"Yes\",\"1\",\"0\"))","v":"Mapped"},{"$f":"XBRLMapBoolean(H26,H$68&\".\"&H$51&\".\"&$K26&\".\"&$L26,$T$1,$T$2,CONFIGURATION!$B$10,\"BMA\",CONFIGURATION!$B$1,\"bscr\",IF(H26=\"Yes\",\"1\",\"0\"))","v":"Mapped"}]
[null,null,{"$f":"XBRLMapBoolean(C27,C$68&\".\"&C$51&\".\"&$K27&\".\"&$L27,$T$1,$T$2,CONFIGURATION!$B$10,\"BMA\",CONFIGURATION!$B$1,\"bscr\",IF(C27=\"Yes\",\"1\",\"0\"))","v":"Mapped"},{"$f":"XBRLMapBoolean(D27,D$68&\".\"&D$51&\".\"&$K27&\".\"&$L27,$T$1,$T$2,CONFIGURATION!$B$10,\"BMA\",CONFIGURATION!$B$1,\"bscr\",IF(D27=\"Yes\",\"1\",\"0\"))","v":"Mapped"},{"$f":"XBRLMapBoolean(E27,E$68&\".\"&E$51&\".\"&$K27&\".\"&$L27,$T$1,$T$2,CONFIGURATION!$B$10,\"BMA\",CONFIGURATION!$B$1,\"bscr\",IF(E27=\"Yes\",\"1\",\"0\"))","v":"Mapped"},{"$f":"XBRLMapBoolean(F27,F$68&\".\"&F$51&\".\"&$K27&\".\"&$L27,$T$1,$T$2,CONFIGURATION!$B$10,\"BMA\",CONFIGURATION!$B$1,\"bscr\",IF(F27=\"Yes\",\"1\",\"0\"))","v":"Mapped"},{"$f":"XBRLMapBoolean(G27,G$68&\".\"&G$51&\".\"&$K27&\".\"&$L27,$T$1,$T$2,CONFIGURATION!$B$10,\"BMA\",CONFIGURATION!$B$1,\"bscr\",IF(G27=\"Yes\",\"1\",\"0\"))","v":"Mapped"},{"$f":"XBRLMapBoolean(H27,H$68&\".\"&H$51&\".\"&$K27&\".\"&$L27,$T$1,$T$2,CONFIGURATION!$B$10,\"BMA\",CONFIGURATION!$B$1,\"bscr\",IF(H27=\"Yes\",\"1\",\"0\"))","v":"Mapped"}]
[null,null,{"$f":"XBRLMapBoolean(C28,C$68&\".\"&C$51&\".\"&$K28&\".\"&$L28,$T$1,$T$2,CONFIGURATION!$B$10,\"BMA\",CONFIGURATION!$B$1,\"bscr\",IF(C28=\"Yes\",\"1\",\"0\"))","v":"Mapped"},{"$f":"XBRLMapBoolean(D28,D$68&\".\"&D$51&\".\"&$K28&\".\"&$L28,$T$1,$T$2,CONFIGURATION!$B$10,\"BMA\",CONFIGURATION!$B$1,\"bscr\",IF(D28=\"Yes\",\"1\",\"0\"))","v":"Mapped"},{"$f":"XBRLMapBoolean(E28,E$68&\".\"&E$51&\".\"&$K28&\".\"&$L28,$T$1,$T$2,CONFIGURATION!$B$10,\"BMA\",CONFIGURATION!$B$1,\"bscr\",IF(E28=\"Yes\",\"1\",\"0\"))","v":"Mapped"},{"$f":"XBRLMapBoolean(F28,F$68&\".\"&F$51&\".\"&$K28&\".\"&$L28,$T$1,$T$2,CONFIGURATION!$B$10,\"BMA\",CONFIGURATION!$B$1,\"bscr\",IF(F28=\"Yes\",\"1\",\"0\"))","v":"Mapped"},{"$f":"XBRLMapBoolean(G28,G$68&\".\"&G$51&\".\"&$K28&\".\"&$L28,$T$1,$T$2,CONFIGURATION!$B$10,\"BMA\",CONFIGURATION!$B$1,\"bscr\",IF(G28=\"Yes\",\"1\",\"0\"))","v":"Mapped"},{"$f":"XBRLMapBoolean(H28,H$68&\".\"&H$51&\".\"&$K28&\".\"&$L28,$T$1,$T$2,CONFIGURATION!$B$10,\"BMA\",CONFIGURATION!$B$1,\"bscr\",IF(H28=\"Yes\",\"1\",\"0\"))","v":"Mapped"}]
[null,null,{"$f":"XBRLMapBoolean(C29,C$68&\".\"&C$51&\".\"&$K29&\".\"&$L29,$T$1,$T$2,CONFIGURATION!$B$10,\"BMA\",CONFIGURATION!$B$1,\"bscr\",IF(C29=\"Yes\",\"1\",\"0\"))","v":"Mapped"},{"$f":"XBRLMapBoolean(D29,D$68&\".\"&D$51&\".\"&$K29&\".\"&$L29,$T$1,$T$2,CONFIGURATION!$B$10,\"BMA\",CONFIGURATION!$B$1,\"bscr\",IF(D29=\"Yes\",\"1\",\"0\"))","v":"Mapped"},{"$f":"XBRLMapBoolean(E29,E$68&\".\"&E$51&\".\"&$K29&\".\"&$L29,$T$1,$T$2,CONFIGURATION!$B$10,\"BMA\",CONFIGURATION!$B$1,\"bscr\",IF(E29=\"Yes\",\"1\",\"0\"))","v":"Mapped"},{"$f":"XBRLMapBoolean(F29,F$68&\".\"&F$51&\".\"&$K29&\".\"&$L29,$T$1,$T$2,CONFIGURATION!$B$10,\"BMA\",CONFIGURATION!$B$1,\"bscr\",IF(F29=\"Yes\",\"1\",\"0\"))","v":"Mapped"},{"$f":"XBRLMapBoolean(G29,G$68&\".\"&G$51&\".\"&$K29&\".\"&$L29,$T$1,$T$2,CONFIGURATION!$B$10,\"BMA\",CONFIGURATION!$B$1,\"bscr\",IF(G29=\"Yes\",\"1\",\"0\"))","v":"Mapped"},{"$f":"XBRLMapBoolean(H29,H$68&\".\"&H$51&\".\"&$K29&\".\"&$L29,$T$1,$T$2,CONFIGURATION!$B$10,\"BMA\",CONFIGURATION!$B$1,\"bscr\",IF(H29=\"Yes\",\"1\",\"0\"))","v":"Mapped"}]
[null,null,{"$f":"XBRLMapBoolean(C30,C$68&\".\"&C$51&\".\"&$K30&\".\"&$L30,$T$1,$T$2,CONFIGURATION!$B$10,\"BMA\",CONFIGURATION!$B$1,\"bscr\",IF(C30=\"Yes\",\"1\",\"0\"))","v":"Mapped"},{"$f":"XBRLMapBoolean(D30,D$68&\".\"&D$51&\".\"&$K30&\".\"&$L30,$T$1,$T$2,CONFIGURATION!$B$10,\"BMA\",CONFIGURATION!$B$1,\"bscr\",IF(D30=\"Yes\",\"1\",\"0\"))","v":"Mapped"},{"$f":"XBRLMapBoolean(E30,E$68&\".\"&E$51&\".\"&$K30&\".\"&$L30,$T$1,$T$2,CONFIGURATION!$B$10,\"BMA\",CONFIGURATION!$B$1,\"bscr\",IF(E30=\"Yes\",\"1\",\"0\"))","v":"Mapped"},{"$f":"XBRLMapBoolean(F30,F$68&\".\"&F$51&\".\"&$K30&\".\"&$L30,$T$1,$T$2,CONFIGURATION!$B$10,\"BMA\",CONFIGURATION!$B$1,\"bscr\",IF(F30=\"Yes\",\"1\",\"0\"))","v":"Mapped"},{"$f":"XBRLMapBoolean(G30,G$68&\".\"&G$51&\".\"&$K30&\".\"&$L30,$T$1,$T$2,CONFIGURATION!$B$10,\"BMA\",CONFIGURATION!$B$1,\"bscr\",IF(G30=\"Yes\",\"1\",\"0\"))","v":"Mapped"},{"$f":"XBRLMapBoolean(H30,H$68&\".\"&H$51&\".\"&$K30&\".\"&$L30,$T$1,$T$2,CONFIGURATION!$B$10,\"BMA\",CONFIGURATION!$B$1,\"bscr\",IF(H30=\"Yes\",\"1\",\"0\"))","v":"Mapped"}]
[null,null,{"$f":"XBRLMapBoolean(C31,C$68&\".\"&C$51&\".\"&$K31&\".\"&$L31,$T$1,$T$2,CONFIGURATION!$B$10,\"BMA\",CONFIGURATION!$B$1,\"bscr\",IF(C31=\"Yes\",\"1\",\"0\"))","v":"Mapped"},{"$f":"XBRLMapBoolean(D31,D$68&\".\"&D$51&\".\"&$K31&\".\"&$L31,$T$1,$T$2,CONFIGURATION!$B$10,\"BMA\",CONFIGURATION!$B$1,\"bscr\",IF(D31=\"Yes\",\"1\",\"0\"))","v":"Mapped"},{"$f":"XBRLMapBoolean(E31,E$68&\".\"&E$51&\".\"&$K31&\".\"&$L31,$T$1,$T$2,CONFIGURATION!$B$10,\"BMA\",CONFIGURATION!$B$1,\"bscr\",IF(E31=\"Yes\",\"1\",\"0\"))","v":"Mapped"},{"$f":"XBRLMapBoolean(F31,F$68&\".\"&F$51&\".\"&$K31&\".\"&$L31,$T$1,$T$2,CONFIGURATION!$B$10,\"BMA\",CONFIGURATION!$B$1,\"bscr\",IF(F31=\"Yes\",\"1\",\"0\"))","v":"Mapped"},{"$f":"XBRLMapBoolean(G31,G$68&\".\"&G$51&\".\"&$K31&\".\"&$L31,$T$1,$T$2,CONFIGURATION!$B$10,\"BMA\",CONFIGURATION!$B$1,\"bscr\",IF(G31=\"Yes\",\"1\",\"0\"))","v":"Mapped"},{"$f":"XBRLMapBoolean(H31,H$68&\".\"&H$51&\".\"&$K31&\".\"&$L31,$T$1,$T$2,CONFIGURATION!$B$10,\"BMA\",CONFIGURATION!$B$1,\"bscr\",IF(H31=\"Yes\",\"1\",\"0\"))","v":"Mapped"}]
[null,null,{"$f":"XBRLMapBoolean(C32,C$68&\".\"&C$51&\".\"&$K32&\".\"&$L32,$T$1,$T$2,CONFIGURATION!$B$10,\"BMA\",CONFIGURATION!$B$1,\"bscr\",IF(C32=\"Yes\",\"1\",\"0\"))","v":"Mapped"},{"$f":"XBRLMapBoolean(D32,D$68&\".\"&D$51&\".\"&$K32&\".\"&$L32,$T$1,$T$2,CONFIGURATION!$B$10,\"BMA\",CONFIGURATION!$B$1,\"bscr\",IF(D32=\"Yes\",\"1\",\"0\"))","v":"Mapped"},{"$f":"XBRLMapBoolean(E32,E$68&\".\"&E$51&\".\"&$K32&\".\"&$L32,$T$1,$T$2,CONFIGURATION!$B$10,\"BMA\",CONFIGURATION!$B$1,\"bscr\",IF(E32=\"Yes\",\"1\",\"0\"))","v":"Mapped"},{"$f":"XBRLMapBoolean(F32,F$68&\".\"&F$51&\".\"&$K32&\".\"&$L32,$T$1,$T$2,CONFIGURATION!$B$10,\"BMA\",CONFIGURATION!$B$1,\"bscr\",IF(F32=\"Yes\",\"1\",\"0\"))","v":"Mapped"},{"$f":"XBRLMapBoolean(G32,G$68&\".\"&G$51&\".\"&$K32&\".\"&$L32,$T$1,$T$2,CONFIGURATION!$B$10,\"BMA\",CONFIGURATION!$B$1,\"bscr\",IF(G32=\"Yes\",\"1\",\"0\"))","v":"Mapped"},{"$f":"XBRLMapBoolean(H32,H$68&\".\"&H$51&\".\"&$K32&\".\"&$L32,$T$1,$T$2,CONFIGURATION!$B$10,\"BMA\",CONFIGURATION!$B$1,\"bscr\",IF(H32=\"Yes\",\"1\",\"0\"))","v":"Mapped"}]
[null,null,{"$f":"XBRLMapBoolean(C33,C$68&\".\"&C$51&\".\"&$K33&\".\"&$L33,$T$1,$T$2,CONFIGURATION!$B$10,\"BMA\",CONFIGURATION!$B$1,\"bscr\",IF(C33=\"Yes\",\"1\",\"0\"))","v":"Mapped"},{"$f":"XBRLMapBoolean(D33,D$68&\".\"&D$51&\".\"&$K33&\".\"&$L33,$T$1,$T$2,CONFIGURATION!$B$10,\"BMA\",CONFIGURATION!$B$1,\"bscr\",IF(D33=\"Yes\",\"1\",\"0\"))","v":"Mapped"},{"$f":"XBRLMapBoolean(E33,E$68&\".\"&E$51&\".\"&$K33&\".\"&$L33,$T$1,$T$2,CONFIGURATION!$B$10,\"BMA\",CONFIGURATION!$B$1,\"bscr\",IF(E33=\"Yes\",\"1\",\"0\"))","v":"Mapped"},{"$f":"XBRLMapBoolean(F33,F$68&\".\"&F$51&\".\"&$K33&\".\"&$L33,$T$1,$T$2,CONFIGURATION!$B$10,\"BMA\",CONFIGURATION!$B$1,\"bscr\",IF(F33=\"Yes\",\"1\",\"0\"))","v":"Mapped"},{"$f":"XBRLMapBoolean(G33,G$68&\".\"&G$51&\".\"&$K33&\".\"&$L33,$T$1,$T$2,CONFIGURATION!$B$10,\"BMA\",CONFIGURATION!$B$1,\"bscr\",IF(G33=\"Yes\",\"1\",\"0\"))","v":"Mapped"},{"$f":"XBRLMapBoolean(H33,H$68&\".\"&H$51&\".\"&$K33&\".\"&$L33,$T$1,$T$2,CONFIGURATION!$B$10,\"BMA\",CONFIGURATION!$B$1,\"bscr\",IF(H33=\"Yes\",\"1\",\"0\"))","v":"Mapped"}]
[null,null,{"$f":"XBRLMapBoolean(C34,C$68&\".\"&C$51&\".\"&$K34&\".\"&$L34,$T$1,$T$2,CONFIGURATION!$B$10,\"BMA\",CONFIGURATION!$B$1,\"bscr\",IF(C34=\"Yes\",\"1\",\"0\"))","v":"Mapped"},{"$f":"XBRLMapBoolean(D34,D$68&\".\"&D$51&\".\"&$K34&\".\"&$L34,$T$1,$T$2,CONFIGURATION!$B$10,\"BMA\",CONFIGURATION!$B$1,\"bscr\",IF(D34=\"Yes\",\"1\",\"0\"))","v":"Mapped"},{"$f":"XBRLMapBoolean(E34,E$68&\".\"&E$51&\".\"&$K34&\".\"&$L34,$T$1,$T$2,CONFIGURATION!$B$10,\"BMA\",CONFIGURATION!$B$1,\"bscr\",IF(E34=\"Yes\",\"1\",\"0\"))","v":"Mapped"},{"$f":"XBRLMapBoolean(F34,F$68&\".\"&F$51&\".\"&$K34&\".\"&$L34,$T$1,$T$2,CONFIGURATION!$B$10,\"BMA\",CONFIGURATION!$B$1,\"bscr\",IF(F34=\"Yes\",\"1\",\"0\"))","v":"Mapped"},{"$f":"XBRLMapBoolean(G34,G$68&\".\"&G$51&\".\"&$K34&\".\"&$L34,$T$1,$T$2,CONFIGURATION!$B$10,\"BMA\",CONFIGURATION!$B$1,\"bscr\",IF(G34=\"Yes\",\"1\",\"0\"))","v":"Mapped"},{"$f":"XBRLMapBoolean(H34,H$68&\".\"&H$51&\".\"&$K34&\".\"&$L34,$T$1,$T$2,CONFIGURATION!$B$10,\"BMA\",CONFIGURATION!$B$1,\"bscr\",IF(H34=\"Yes\",\"1\",\"0\"))","v":"Mapped"}]
[null,null,{"$f":"XBRLMapBoolean(C35,C$68&\".\"&C$51&\".\"&$K35&\".\"&$L35,$T$1,$T$2,CONFIGURATION!$B$10,\"BMA\",CONFIGURATION!$B$1,\"bscr\",IF(C35=\"Yes\",\"1\",\"0\"))","v":"Mapped"},{"$f":"XBRLMapBoolean(D35,D$68&\".\"&D$51&\".\"&$K35&\".\"&$L35,$T$1,$T$2,CONFIGURATION!$B$10,\"BMA\",CONFIGURATION!$B$1,\"bscr\",IF(D35=\"Yes\",\"1\",\"0\"))","v":"Mapped"},{"$f":"XBRLMapBoolean(E35,E$68&\".\"&E$51&\".\"&$K35&\".\"&$L35,$T$1,$T$2,CONFIGURATION!$B$10,\"BMA\",CONFIGURATION!$B$1,\"bscr\",IF(E35=\"Yes\",\"1\",\"0\"))","v":"Mapped"},{"$f":"XBRLMapBoolean(F35,F$68&\".\"&F$51&\".\"&$K35&\".\"&$L35,$T$1,$T$2,CONFIGURATION!$B$10,\"BMA\",CONFIGURATION!$B$1,\"bscr\",IF(F35=\"Yes\",\"1\",\"0\"))","v":"Mapped"},{"$f":"XBRLMapBoolean(G35,G$68&\".\"&G$51&\".\"&$K35&\".\"&$L35,$T$1,$T$2,CONFIGURATION!$B$10,\"BMA\",CONFIGURATION!$B$1,\"bscr\",IF(G35=\"Yes\",\"1\",\"0\"))","v":"Mapped"},{"$f":"XBRLMapBoolean(H35,H$68&\".\"&H$51&\".\"&$K35&\".\"&$L35,$T$1,$T$2,CONFIGURATION!$B$10,\"BMA\",CONFIGURATION!$B$1,\"bscr\",IF(H35=\"Yes\",\"1\",\"0\"))","v":"Mapped"}]
[null,null,{"$f":"XBRLMapBoolean(C36,C$68&\".\"&C$51&\".\"&$K36&\".\"&$L36,$T$1,$T$2,CONFIGURATION!$B$10,\"BMA\",CONFIGURATION!$B$1,\"bscr\",IF(C36=\"Yes\",\"1\",\"0\"))","v":"Mapped"},{"$f":"XBRLMapBoolean(D36,D$68&\".\"&D$51&\".\"&$K36&\".\"&$L36,$T$1,$T$2,CONFIGURATION!$B$10,\"BMA\",CONFIGURATION!$B$1,\"bscr\",IF(D36=\"Yes\",\"1\",\"0\"))","v":"Mapped"},{"$f":"XBRLMapBoolean(E36,E$68&\".\"&E$51&\".\"&$K36&\".\"&$L36,$T$1,$T$2,CONFIGURATION!$B$10,\"BMA\",CONFIGURATION!$B$1,\"bscr\",IF(E36=\"Yes\",\"1\",\"0\"))","v":"Mapped"},{"$f":"XBRLMapBoolean(F36,F$68&\".\"&F$51&\".\"&$K36&\".\"&$L36,$T$1,$T$2,CONFIGURATION!$B$10,\"BMA\",CONFIGURATION!$B$1,\"bscr\",IF(F36=\"Yes\",\"1\",\"0\"))","v":"Mapped"},{"$f":"XBRLMapBoolean(G36,G$68&\".\"&G$51&\".\"&$K36&\".\"&$L36,$T$1,$T$2,CONFIGURATION!$B$10,\"BMA\",CONFIGURATION!$B$1,\"bscr\",IF(G36=\"Yes\",\"1\",\"0\"))","v":"Mapped"},{"$f":"XBRLMapBoolean(H36,H$68&\".\"&H$51&\".\"&$K36&\".\"&$L36,$T$1,$T$2,CONFIGURATION!$B$10,\"BMA\",CONFIGURATION!$B$1,\"bscr\",IF(H36=\"Yes\",\"1\",\"0\"))","v":"Mapped"}]
[null,null,{"$f":"XBRLMapBoolean(C37,C$68&\".\"&C$51&\".\"&$K37&\".\"&$L37,$T$1,$T$2,CONFIGURATION!$B$10,\"BMA\",CONFIGURATION!$B$1,\"bscr\",IF(C37=\"Yes\",\"1\",\"0\"))","v":"Mapped"},{"$f":"XBRLMapBoolean(D37,D$68&\".\"&D$51&\".\"&$K37&\".\"&$L37,$T$1,$T$2,CONFIGURATION!$B$10,\"BMA\",CONFIGURATION!$B$1,\"bscr\",IF(D37=\"Yes\",\"1\",\"0\"))","v":"Mapped"},{"$f":"XBRLMapBoolean(E37,E$68&\".\"&E$51&\".\"&$K37&\".\"&$L37,$T$1,$T$2,CONFIGURATION!$B$10,\"BMA\",CONFIGURATION!$B$1,\"bscr\",IF(E37=\"Yes\",\"1\",\"0\"))","v":"Mapped"},{"$f":"XBRLMapBoolean(F37,F$68&\".\"&F$51&\".\"&$K37&\".\"&$L37,$T$1,$T$2,CONFIGURATION!$B$10,\"BMA\",CONFIGURATION!$B$1,\"bscr\",IF(F37=\"Yes\",\"1\",\"0\"))","v":"Mapped"},{"$f":"XBRLMapBoolean(G37,G$68&\".\"&G$51&\".\"&$K37&\".\"&$L37,$T$1,$T$2,CONFIGURATION!$B$10,\"BMA\",CONFIGURATION!$B$1,\"bscr\",IF(G37=\"Yes\",\"1\",\"0\"))","v":"Mapped"},{"$f":"XBRLMapBoolean(H37,H$68&\".\"&H$51&\".\"&$K37&\".\"&$L37,$T$1,$T$2,CONFIGURATION!$B$10,\"BMA\",CONFIGURATION!$B$1,\"bscr\",IF(H37=\"Yes\",\"1\",\"0\"))","v":"Mapped"}]
[null,null,{"$f":"XBRLMapBoolean(C38,C$68&\".\"&C$51&\".\"&$K38&\".\"&$L38,$T$1,$T$2,CONFIGURATION!$B$10,\"BMA\",CONFIGURATION!$B$1,\"bscr\",IF(C38=\"Yes\",\"1\",\"0\"))","v":"Mapped"},{"$f":"XBRLMapBoolean(D38,D$68&\".\"&D$51&\".\"&$K38&\".\"&$L38,$T$1,$T$2,CONFIGURATION!$B$10,\"BMA\",CONFIGURATION!$B$1,\"bscr\",IF(D38=\"Yes\",\"1\",\"0\"))","v":"Mapped"},{"$f":"XBRLMapBoolean(E38,E$68&\".\"&E$51&\".\"&$K38&\".\"&$L38,$T$1,$T$2,CONFIGURATION!$B$10,\"BMA\",CONFIGURATION!$B$1,\"bscr\",IF(E38=\"Yes\",\"1\",\"0\"))","v":"Mapped"},{"$f":"XBRLMapBoolean(F38,F$68&\".\"&F$51&\".\"&$K38&\".\"&$L38,$T$1,$T$2,CONFIGURATION!$B$10,\"BMA\",CONFIGURATION!$B$1,\"bscr\",IF(F38=\"Yes\",\"1\",\"0\"))","v":"Mapped"},{"$f":"XBRLMapBoolean(G38,G$68&\".\"&G$51&\".\"&$K38&\".\"&$L38,$T$1,$T$2,CONFIGURATION!$B$10,\"BMA\",CONFIGURATION!$B$1,\"bscr\",IF(G38=\"Yes\",\"1\",\"0\"))","v":"Mapped"},{"$f":"XBRLMapBoolean(H38,H$68&\".\"&H$51&\".\"&$K38&\".\"&$L38,$T$1,$T$2,CONFIGURATION!$B$10,\"BMA\",CONFIGURATION!$B$1,\"bscr\",IF(H38=\"Yes\",\"1\",\"0\"))","v":"Mapped"}]
[null,null,{"$f":"XBRLMapBoolean(C39,C$68&\".\"&C$51&\".\"&$K39&\".\"&$L39,$T$1,$T$2,CONFIGURATION!$B$10,\"BMA\",CONFIGURATION!$B$1,\"bscr\",IF(C39=\"Yes\",\"1\",\"0\"))","v":"Mapped"},{"$f":"XBRLMapBoolean(D39,D$68&\".\"&D$51&\".\"&$K39&\".\"&$L39,$T$1,$T$2,CONFIGURATION!$B$10,\"BMA\",CONFIGURATION!$B$1,\"bscr\",IF(D39=\"Yes\",\"1\",\"0\"))","v":"Mapped"},{"$f":"XBRLMapBoolean(E39,E$68&\".\"&E$51&\".\"&$K39&\".\"&$L39,$T$1,$T$2,CONFIGURATION!$B$10,\"BMA\",CONFIGURATION!$B$1,\"bscr\",IF(E39=\"Yes\",\"1\",\"0\"))","v":"Mapped"},{"$f":"XBRLMapBoolean(F39,F$68&\".\"&F$51&\".\"&$K39&\".\"&$L39,$T$1,$T$2,CONFIGURATION!$B$10,\"BMA\",CONFIGURATION!$B$1,\"bscr\",IF(F39=\"Yes\",\"1\",\"0\"))","v":"Mapped"},{"$f":"XBRLMapBoolean(G39,G$68&\".\"&G$51&\".\"&$K39&\".\"&$L39,$T$1,$T$2,CONFIGURATION!$B$10,\"BMA\",CONFIGURATION!$B$1,\"bscr\",IF(G39=\"Yes\",\"1\",\"0\"))","v":"Mapped"},{"$f":"XBRLMapBoolean(H39,H$68&\".\"&H$51&\".\"&$K39&\".\"&$L39,$T$1,$T$2,CONFIGURATION!$B$10,\"BMA\",CONFIGURATION!$B$1,\"bscr\",IF(H39=\"Yes\",\"1\",\"0\"))","v":"Mapped"}]
[null,null,{"$f":"XBRLMapBoolean(C40,C$68&\".\"&C$51&\".\"&$K40&\".\"&$L40,$T$1,$T$2,CONFIGURATION!$B$10,\"BMA\",CONFIGURATION!$B$1,\"bscr\",IF(C40=\"Yes\",\"1\",\"0\"))","v":"Mapped"},{"$f":"XBRLMapBoolean(D40,D$68&\".\"&D$51&\".\"&$K40&\".\"&$L40,$T$1,$T$2,CONFIGURATION!$B$10,\"BMA\",CONFIGURATION!$B$1,\"bscr\",IF(D40=\"Yes\",\"1\",\"0\"))","v":"Mapped"},{"$f":"XBRLMapBoolean(E40,E$68&\".\"&E$51&\".\"&$K40&\".\"&$L40,$T$1,$T$2,CONFIGURATION!$B$10,\"BMA\",CONFIGURATION!$B$1,\"bscr\",IF(E40=\"Yes\",\"1\",\"0\"))","v":"Mapped"},{"$f":"XBRLMapBoolean(F40,F$68&\".\"&F$51&\".\"&$K40&\".\"&$L40,$T$1,$T$2,CONFIGURATION!$B$10,\"BMA\",CONFIGURATION!$B$1,\"bscr\",IF(F40=\"Yes\",\"1\",\"0\"))","v":"Mapped"},{"$f":"XBRLMapBoolean(G40,G$68&\".\"&G$51&\".\"&$K40&\".\"&$L40,$T$1,$T$2,CONFIGURATION!$B$10,\"BMA\",CONFIGURATION!$B$1,\"bscr\",IF(G40=\"Yes\",\"1\",\"0\"))","v":"Mapped"},{"$f":"XBRLMapBoolean(H40,H$68&\".\"&H$51&\".\"&$K40&\".\"&$L40,$T$1,$T$2,CONFIGURATION!$B$10,\"BMA\",CONFIGURATION!$B$1,\"bscr\",IF(H40=\"Yes\",\"1\",\"0\"))","v":"Mapped"}]
[null,null,{"$f":"XBRLMapBoolean(C41,C$68&\".\"&C$51&\".\"&$K41&\".\"&$L41,$T$1,$T$2,CONFIGURATION!$B$10,\"BMA\",CONFIGURATION!$B$1,\"bscr\",IF(C41=\"Yes\",\"1\",\"0\"))","v":"Mapped"},{"$f":"XBRLMapBoolean(D41,D$68&\".\"&D$51&\".\"&$K41&\".\"&$L41,$T$1,$T$2,CONFIGURATION!$B$10,\"BMA\",CONFIGURATION!$B$1,\"bscr\",IF(D41=\"Yes\",\"1\",\"0\"))","v":"Mapped"},{"$f":"XBRLMapBoolean(E41,E$68&\".\"&E$51&\".\"&$K41&\".\"&$L41,$T$1,$T$2,CONFIGURATION!$B$10,\"BMA\",CONFIGURATION!$B$1,\"bscr\",IF(E41=\"Yes\",\"1\",\"0\"))","v":"Mapped"},{"$f":"XBRLMapBoolean(F41,F$68&\".\"&F$51&\".\"&$K41&\".\"&$L41,$T$1,$T$2,CONFIGURATION!$B$10,\"BMA\",CONFIGURATION!$B$1,\"bscr\",IF(F41=\"Yes\",\"1\",\"0\"))","v":"Mapped"},{"$f":"XBRLMapBoolean(G41,G$68&\".\"&G$51&\".\"&$K41&\".\"&$L41,$T$1,$T$2,CONFIGURATION!$B$10,\"BMA\",CONFIGURATION!$B$1,\"bscr\",IF(G41=\"Yes\",\"1\",\"0\"))","v":"Mapped"},{"$f":"XBRLMapBoolean(H41,H$68&\".\"&H$51&\".\"&$K41&\".\"&$L41,$T$1,$T$2,CONFIGURATION!$B$10,\"BMA\",CONFIGURATION!$B$1,\"bscr\",IF(H41=\"Yes\",\"1\",\"0\"))","v":"Mapped"}]
[null,null,{"$f":"XBRLMapBoolean(C42,C$68&\".\"&C$51&\".\"&$K42&\".\"&$L42,$T$1,$T$2,CONFIGURATION!$B$10,\"BMA\",CONFIGURATION!$B$1,\"bscr\",IF(C42=\"Yes\",\"1\",\"0\"))","v":"Mapped"},{"$f":"XBRLMapBoolean(D42,D$68&\".\"&D$51&\".\"&$K42&\".\"&$L42,$T$1,$T$2,CONFIGURATION!$B$10,\"BMA\",CONFIGURATION!$B$1,\"bscr\",IF(D42=\"Yes\",\"1\",\"0\"))","v":"Mapped"},{"$f":"XBRLMapBoolean(E42,E$68&\".\"&E$51&\".\"&$K42&\".\"&$L42,$T$1,$T$2,CONFIGURATION!$B$10,\"BMA\",CONFIGURATION!$B$1,\"bscr\",IF(E42=\"Yes\",\"1\",\"0\"))","v":"Mapped"},{"$f":"XBRLMapBoolean(F42,F$68&\".\"&F$51&\".\"&$K42&\".\"&$L42,$T$1,$T$2,CONFIGURATION!$B$10,\"BMA\",CONFIGURATION!$B$1,\"bscr\",IF(F42=\"Yes\",\"1\",\"0\"))","v":"Mapped"},{"$f":"XBRLMapBoolean(G42,G$68&\".\"&G$51&\".\"&$K42&\".\"&$L42,$T$1,$T$2,CONFIGURATION!$B$10,\"BMA\",CONFIGURATION!$B$1,\"bscr\",IF(G42=\"Yes\",\"1\",\"0\"))","v":"Mapped"},{"$f":"XBRLMapBoolean(H42,H$68&\".\"&H$51&\".\"&$K42&\".\"&$L42,$T$1,$T$2,CONFIGURATION!$B$10,\"BMA\",CONFIGURATION!$B$1,\"bscr\",IF(H42=\"Yes\",\"1\",\"0\"))","v":"Mapped"}]
[null,null,{"$f":"XBRLMapBoolean(C43,C$68&\".\"&C$51&\".\"&$K43&\".\"&$L43,$T$1,$T$2,CONFIGURATION!$B$10,\"BMA\",CONFIGURATION!$B$1,\"bscr\",IF(C43=\"Yes\",\"1\",\"0\"))","v":"Mapped"},{"$f":"XBRLMapBoolean(D43,D$68&\".\"&D$51&\".\"&$K43&\".\"&$L43,$T$1,$T$2,CONFIGURATION!$B$10,\"BMA\",CONFIGURATION!$B$1,\"bscr\",IF(D43=\"Yes\",\"1\",\"0\"))","v":"Mapped"},{"$f":"XBRLMapBoolean(E43,E$68&\".\"&E$51&\".\"&$K43&\".\"&$L43,$T$1,$T$2,CONFIGURATION!$B$10,\"BMA\",CONFIGURATION!$B$1,\"bscr\",IF(E43=\"Yes\",\"1\",\"0\"))","v":"Mapped"},{"$f":"XBRLMapBoolean(F43,F$68&\".\"&F$51&\".\"&$K43&\".\"&$L43,$T$1,$T$2,CONFIGURATION!$B$10,\"BMA\",CONFIGURATION!$B$1,\"bscr\",IF(F43=\"Yes\",\"1\",\"0\"))","v":"Mapped"},{"$f":"XBRLMapBoolean(G43,G$68&\".\"&G$51&\".\"&$K43&\".\"&$L43,$T$1,$T$2,CONFIGURATION!$B$10,\"BMA\",CONFIGURATION!$B$1,\"bscr\",IF(G43=\"Yes\",\"1\",\"0\"))","v":"Mapped"},{"$f":"XBRLMapBoolean(H43,H$68&\".\"&H$51&\".\"&$K43&\".\"&$L43,$T$1,$T$2,CONFIGURATION!$B$10,\"BMA\",CONFIGURATION!$B$1,\"bscr\",IF(H43=\"Yes\",\"1\",\"0\"))","v":"Mapped"}]
[null,null,{"$f":"XBRLMapBoolean(C44,C$68&\".\"&C$51&\".\"&$K44&\".\"&$L44,$T$1,$T$2,CONFIGURATION!$B$10,\"BMA\",CONFIGURATION!$B$1,\"bscr\",IF(C44=\"Yes\",\"1\",\"0\"))","v":"Mapped"},{"$f":"XBRLMapBoolean(D44,D$68&\".\"&D$51&\".\"&$K44&\".\"&$L44,$T$1,$T$2,CONFIGURATION!$B$10,\"BMA\",CONFIGURATION!$B$1,\"bscr\",IF(D44=\"Yes\",\"1\",\"0\"))","v":"Mapped"},{"$f":"XBRLMapBoolean(E44,E$68&\".\"&E$51&\".\"&$K44&\".\"&$L44,$T$1,$T$2,CONFIGURATION!$B$10,\"BMA\",CONFIGURATION!$B$1,\"bscr\",IF(E44=\"Yes\",\"1\",\"0\"))","v":"Mapped"},{"$f":"XBRLMapBoolean(F44,F$68&\".\"&F$51&\".\"&$K44&\".\"&$L44,$T$1,$T$2,CONFIGURATION!$B$10,\"BMA\",CONFIGURATION!$B$1,\"bscr\",IF(F44=\"Yes\",\"1\",\"0\"))","v":"Mapped"},{"$f":"XBRLMapBoolean(G44,G$68&\".\"&G$51&\".\"&$K44&\".\"&$L44,$T$1,$T$2,CONFIGURATION!$B$10,\"BMA\",CONFIGURATION!$B$1,\"bscr\",IF(G44=\"Yes\",\"1\",\"0\"))","v":"Mapped"},{"$f":"XBRLMapBoolean(H44,H$68&\".\"&H$51&\".\"&$K44&\".\"&$L44,$T$1,$T$2,CONFIGURATION!$B$10,\"BMA\",CONFIGURATION!$B$1,\"bscr\",IF(H44=\"Yes\",\"1\",\"0\"))","v":"Mapped"}]
[null,null,{"$f":"XBRLMapBoolean(C45,C$68&\".\"&C$51&\".\"&$K45&\".\"&$L45,$T$1,$T$2,CONFIGURATION!$B$10,\"BMA\",CONFIGURATION!$B$1,\"bscr\",IF(C45=\"Yes\",\"1\",\"0\"))","v":"Mapped"},{"$f":"XBRLMapBoolean(D45,D$68&\".\"&D$51&\".\"&$K45&\".\"&$L45,$T$1,$T$2,CONFIGURATION!$B$10,\"BMA\",CONFIGURATION!$B$1,\"bscr\",IF(D45=\"Yes\",\"1\",\"0\"))","v":"Mapped"},{"$f":"XBRLMapBoolean(E45,E$68&\".\"&E$51&\".\"&$K45&\".\"&$L45,$T$1,$T$2,CONFIGURATION!$B$10,\"BMA\",CONFIGURATION!$B$1,\"bscr\",IF(E45=\"Yes\",\"1\",\"0\"))","v":"Mapped"},{"$f":"XBRLMapBoolean(F45,F$68&\".\"&F$51&\".\"&$K45&\".\"&$L45,$T$1,$T$2,CONFIGURATION!$B$10,\"BMA\",CONFIGURATION!$B$1,\"bscr\",IF(F45=\"Yes\",\"1\",\"0\"))","v":"Mapped"},{"$f":"XBRLMapBoolean(G45,G$68&\".\"&G$51&\".\"&$K45&\".\"&$L45,$T$1,$T$2,CONFIGURATION!$B$10,\"BMA\",CONFIGURATION!$B$1,\"bscr\",IF(G45=\"Yes\",\"1\",\"0\"))","v":"Mapped"},{"$f":"XBRLMapBoolean(H45,H$68&\".\"&H$51&\".\"&$K45&\".\"&$L45,$T$1,$T$2,CONFIGURATION!$B$10,\"BMA\",CONFIGURATION!$B$1,\"bscr\",IF(H45=\"Yes\",\"1\",\"0\"))","v":"Mapped"}]
[null,null,{"$f":"XBRLMapBoolean(C46,C$68&\".\"&C$51&\".\"&$K46&\".\"&$L46,$T$1,$T$2,CONFIGURATION!$B$10,\"BMA\",CONFIGURATION!$B$1,\"bscr\",IF(C46=\"Yes\",\"1\",\"0\"))","v":"Mapped"},{"$f":"XBRLMapBoolean(D46,D$68&\".\"&D$51&\".\"&$K46&\".\"&$L46,$T$1,$T$2,CONFIGURATION!$B$10,\"BMA\",CONFIGURATION!$B$1,\"bscr\",IF(D46=\"Yes\",\"1\",\"0\"))","v":"Mapped"},{"$f":"XBRLMapBoolean(E46,E$68&\".\"&E$51&\".\"&$K46&\".\"&$L46,$T$1,$T$2,CONFIGURATION!$B$10,\"BMA\",CONFIGURATION!$B$1,\"bscr\",IF(E46=\"Yes\",\"1\",\"0\"))","v":"Mapped"},{"$f":"XBRLMapBoolean(F46,F$68&\".\"&F$51&\".\"&$K46&\".\"&$L46,$T$1,$T$2,CONFIGURATION!$B$10,\"BMA\",CONFIGURATION!$B$1,\"bscr\",IF(F46=\"Yes\",\"1\",\"0\"))","v":"Mapped"},{"$f":"XBRLMapBoolean(G46,G$68&\".\"&G$51&\".\"&$K46&\".\"&$L46,$T$1,$T$2,CONFIGURATION!$B$10,\"BMA\",CONFIGURATION!$B$1,\"bscr\",IF(G46=\"Yes\",\"1\",\"0\"))","v":"Mapped"},{"$f":"XBRLMapBoolean(H46,H$68&\".\"&H$51&\".\"&$K46&\".\"&$L46,$T$1,$T$2,CONFIGURATION!$B$10,\"BMA\",CONFIGURATION!$B$1,\"bscr\",IF(H46=\"Yes\",\"1\",\"0\"))","v":"Mapped"}]
[null,null,{"$f":"XBRLMapBoolean(C47,C$68&\".\"&C$51&\".\"&$K47&\".\"&$L47,$T$1,$T$2,CONFIGURATION!$B$10,\"BMA\",CONFIGURATION!$B$1,\"bscr\",IF(C47=\"Yes\",\"1\",\"0\"))","v":"Mapped"},{"$f":"XBRLMapBoolean(D47,D$68&\".\"&D$51&\".\"&$K47&\".\"&$L47,$T$1,$T$2,CONFIGURATION!$B$10,\"BMA\",CONFIGURATION!$B$1,\"bscr\",IF(D47=\"Yes\",\"1\",\"0\"))","v":"Mapped"},{"$f":"XBRLMapBoolean(E47,E$68&\".\"&E$51&\".\"&$K47&\".\"&$L47,$T$1,$T$2,CONFIGURATION!$B$10,\"BMA\",CONFIGURATION!$B$1,\"bscr\",IF(E47=\"Yes\",\"1\",\"0\"))","v":"Mapped"},{"$f":"XBRLMapBoolean(F47,F$68&\".\"&F$51&\".\"&$K47&\".\"&$L47,$T$1,$T$2,CONFIGURATION!$B$10,\"BMA\",CONFIGURATION!$B$1,\"bscr\",IF(F47=\"Yes\",\"1\",\"0\"))","v":"Mapped"},{"$f":"XBRLMapBoolean(G47,G$68&\".\"&G$51&\".\"&$K47&\".\"&$L47,$T$1,$T$2,CONFIGURATION!$B$10,\"BMA\",CONFIGURATION!$B$1,\"bscr\",IF(G47=\"Yes\",\"1\",\"0\"))","v":"Mapped"},{"$f":"XBRLMapBoolean(H47,H$68&\".\"&H$51&\".\"&$K47&\".\"&$L47,$T$1,$T$2,CONFIGURATION!$B$10,\"BMA\",CONFIGURATION!$B$1,\"bscr\",IF(H47=\"Yes\",\"1\",\"0\"))","v":"Mapped"}]
[null,null,{"$f":"XBRLMapBoolean(C48,C$68&\".\"&C$51&\".\"&$K48&\".\"&$L48,$T$1,$T$2,CONFIGURATION!$B$10,\"BMA\",CONFIGURATION!$B$1,\"bscr\",IF(C48=\"Yes\",\"1\",\"0\"))","v":"Mapped"},{"$f":"XBRLMapBoolean(D48,D$68&\".\"&D$51&\".\"&$K48&\".\"&$L48,$T$1,$T$2,CONFIGURATION!$B$10,\"BMA\",CONFIGURATION!$B$1,\"bscr\",IF(D48=\"Yes\",\"1\",\"0\"))","v":"Mapped"},{"$f":"XBRLMapBoolean(E48,E$68&\".\"&E$51&\".\"&$K48&\".\"&$L48,$T$1,$T$2,CONFIGURATION!$B$10,\"BMA\",CONFIGURATION!$B$1,\"bscr\",IF(E48=\"Yes\",\"1\",\"0\"))","v":"Mapped"},{"$f":"XBRLMapBoolean(F48,F$68&\".\"&F$51&\".\"&$K48&\".\"&$L48,$T$1,$T$2,CONFIGURATION!$B$10,\"BMA\",CONFIGURATION!$B$1,\"bscr\",IF(F48=\"Yes\",\"1\",\"0\"))","v":"Mapped"},{"$f":"XBRLMapBoolean(G48,G$68&\".\"&G$51&\".\"&$K48&\".\"&$L48,$T$1,$T$2,CONFIGURATION!$B$10,\"BMA\",CONFIGURATION!$B$1,\"bscr\",IF(G48=\"Yes\",\"1\",\"0\"))","v":"Mapped"},{"$f":"XBRLMapBoolean(H48,H$68&\".\"&H$51&\".\"&$K48&\".\"&$L48,$T$1,$T$2,CONFIGURATION!$B$10,\"BMA\",CONFIGURATION!$B$1,\"bscr\",IF(H48=\"Yes\",\"1\",\"0\"))","v":"Mapped"}]
[]
[]
[]
[]
[]
[]
[null,null,"bma_class3A_StatementComponentAxis3_bma_ExposureToStatutoryZonesAndLinesOfBusiness_EpCurveAtlanticHurricane","bma_class3A_StatementComponentAxis3_bma_ExposureToStatutoryZonesAndLinesOfBusiness_EpCurveNorthAmericanEarthquake","bma_class3A_StatementComponentAxis3_bma_ExposureToStatutoryZonesAndLinesOfBusiness_EpCurveEuropeanWindstorm","bma_class3A_StatementComponentAxis3_bma_ExposureToStatutoryZonesAndLinesOfBusiness_EpCurveJapaneseEarthquake","bma_class3A_StatementComponentAxis3_bma_ExposureToStatutoryZonesAndLinesOfBusiness_EpCurveJapaneseTyphoon","bma_class3A_StatementComponentAxis3_bma_ExposureToStatutoryZonesAndLinesOfBusiness_EPCurveAllOtherPerils"]

{"sheet":"Schedule X(e)","index":56,"n_rows":160,"n_cols":27,"rows_kept":160,"cut":false,"hidden":false,"merged":[[0,17,0,18],[38,2,39,18],[2,2,2,3],[42,2,42,18],[21,2,21,18],[24,2,25,18],[28,2,28,10],[31,2,31,6],[18,2,18,7],[34,2,34,6],[5,2,5,4],[8,2,9,18],[12,2,12,4],[2,17,2,18]]}
[null,null,"CATASTROPHE RISK RETURN: ACCUMULATIONS OVERVIEW (TABLE 9D)",null,null,null,null,null,null,null,null,null,null,null,null,null,null,{"$f":"HYPERLINK(\"#'Index'!A1\",\"Return to Index\")","v":"Return to Index"},null,null,null,{"$f":"'Company Information'!L1","v":"01/01/2019"}]
[null,null,{"$f":"'Company Information'!C7","v":"Enter Company Name"},null,null,null,null,null,null,null,null,null,null,null,null,null,null,null,null,null,null,{"$f":"'Company Information'!L2","v":"12/31/2019"}]
[null,null,{"$f":"'Company Information'!C3+1","v":"2020-01-01"},null,null,null,null,null,null,null,null,null,null,null,null,null,null,"SCHEDULE X(e) "]
[]
[null,1,{"$f":"+G87","v":"What frequency best describes the update process of accumulations?"},null,null,null,null,null,null,null,null,null,null,null,null,null,null,null,null,null,null,""]
[null,null,{"$f":"Import!I6797","v":"Select"},null,null,null,null,null,null,null,null,null,null,null,null,null,null,null,null,null,null,"brrt_UpdateFrequencyofprocessofaccumulations",{"$f":"XBRLMap(C6,V6,$V$1,$V$2,CONFIGURATION!$B$10,\"BMA\",CONFIGURATION!$B$1,\"bscr\")","v":"Mapped"},null,null,null,"bma_WhatFrequencyBestDescribesUpdateProcessOfAccumulations"]
[null,null,null,null,null,null,null,null,null,null,null,null,null,null,null,null,null,null,null,null,null,null,null,null,null,null,""]
[null,2,"Are there any differences in the frequency of accumulations for various business units? ",null,null,null,null,null,null,null,null,{"$f":"Import!I6798","v":"Select Yes/No"}," If yes, briefly describe.",null,null,null,null,null,null,null,null,"brrt_Therearedifferencesinfrequencyofaccumulationsforvariousbusinessunits",{"$f":"XBRLMapBoolean(L8,V8,$V$1,$V$2,CONFIGURATION!$B$10,\"BMA\",CONFIGURATION!$B$1,\"bscr\",IF(L8=\"Yes\",\"1\",\"0\"))","v":"Mapped"},null,null,null,"bma_AreThereAnyDifferencesInFrequencyOfAccumulationsForVariousBusinessUnits"]
[null,null,{"$f":"Import!I6799","v":0},null,null,null,null,null,null,null,null,null,null,null,null,null,null,null,null,null,null,"brrt_DifferencesinfrequencyofaccumulationsforvariousbusinessunitsDescription",{"$f":"XBRLMap(C9,V9,$V$1,$V$2,CONFIGURATION!$B$10,\"BMA\",CONFIGURATION!$B$1,\"bscr\")","v":"Mapped"},null,null,null,"bma_IfreAreDifferencesInFrequencyOfAccumulationsForVariousBusinessUnitsPleaseDescribese"]
[null,null,null,null,null,null,null,null,null,null,null,null,null,null,null,null,null,null,null,null,null,null,null,null,null,null,""]
[null,null,null,null,null,null,null,null,null,null,null,null,null,null,null,null,null,null,null,null,null,null,null,null,null,null,""]
[null,3,"Which vendor catastrophe models does the insurer license?",null,null,null,null,null,null,null,null,null,null,null,null,null,null,null,null,null,null,null,null,null,null,null,""]
[null,null,{"$f":"Import!I6800","v":"Select"},null,null,null,null,null,null,null,null,null,null,null,null,null,null,null,null,null,null,"brrt_VendorCatastropheModels",{"$f":"XBRLMap(C13,V13,$V$1,$V$2,CONFIGURATION!$B$10,\"BMA\",CONFIGURATION!$B$1,\"bscr\")","v":"Mapped"},null,null,null,"bma_WhichVendorCatModelsDoYouLicense"]
[null,null,null,null,null,null,null,null,null,null,null,null,null,null,null,null,null,null,null,null,null,null,null,null,null,null,""]
[null,4,"Does the insurer incorporate internally developed stochastic catastrophe models within the accumulations that capture correlation across contracts or lines of business?",null,null,null,null,null,null,null,null,null,null,null,null,null,null,null,null,null,null,null,null,null,null,null,""]
[null,null,{"$f":"Import!I6801","v":"Select Yes/No"},null,null,null,null,null,null,null,null,null,null,null,null,null,null,null,null,null,null,"brrt_InsurerIncorporatesInternallyDevelopedStochasticCatastropheModelsWithinTheAccumulationsThatCaptureCorrelationAcrossContractsOrLinesOfBusiness",{"$f":"XBRLMapBoolean(C16,V16,$V$1,$V$2,CONFIGURATION!$B$10,\"BMA\",CONFIGURATION!$B$1,\"bscr\",IF(C16=\"Yes\",\"1\",\"0\"))","v":"Mapped"},null,null,null,"bma_DoesCompanyIncorporateInternallyDevelopedStochasticCatastropheModelsWithinAccumulationsThatCaptureCorrelationAcrossContractsOrLinesOfBusiness"]
[null,null,null,null,null,null,null,null,null,null,null,null,null,null,null,null,null,null,null,null,null,null,null,null,null,null,""]
[null,5,"Which methodology best describes the insurer's accumulation methodology?",null,null,null,null,null,null,null,null,null,null,null,null,null,null,null,null,null,null,null,null,null,null,null,""]
[null,null,{"$f":"Import!I6802","v":"Select"},null,null,null,null,null,null,null,null,null,null,null,null,null,null,null,null,null,null,"brrt_BestDescriptionOfInsurerAccumulationMethodology",{"$f":"XBRLMap(C19,V19,$V$1,$V$2,CONFIGURATION!$B$10,\"BMA\",CONFIGURATION!$B$1,\"bscr\")","v":"Mapped"},null,null,null,"bma_WhichMethodologyBestDescribesAnInsurerAccumulationMethodology"]
[null,null,null,null,null,null,null,null,null,null,null,null,null,null,null,null,null,null,null,null,null,null,null,null,null,null,""]
[null,6,{"$f":"+G118","v":"Where more than one catastrophe model is used in the accumulations, which methodology best describes how multiple models are considered?"},null,null,null,null,null,null,null,null,null,null,null,null,null,null,null,null,null,null,null,null,null,null,null,""]
[null,null,{"$f":"Import!I6803","v":"Select"},null,null,null,null,null,null,null,null,null,null,null,null,null,null,null,null,null,null,"brrt_MethodologyThatBestDescribesHowMultipleModelsAreConsideredWhereMoreThanOneCatastropheModelIsUsedInTheAccumulations",{"$f":"XBRLMap(C22,V22,$V$1,$V$2,CONFIGURATION!$B$10,\"BMA\",CONFIGURATION!$B$1,\"bscr\")","v":"Mapped"},null,null,null,"bma_WhereMoreThanOneCatModelIsUsedInAccumulationsWhichMethodologyBestDescribesHowAreMultipleModelsConsidered"]
[null,null,null,null,null,null,null,null,null,null,null,null,null,null,null,null,null,null,null,null,null,null,null,null,null,null,""]
[null,null,"If other selected, provide details:",null,null,null,null,null,null,null,null,null,null,null,null,null,null,null,null,null,null,null,null,null,null,null,""]
[null,null,{"$f":"Import!I6804","v":0},null,null,null,null,null,null,null,null,null,null,null,null,null,null,null,null,null,null,"brrt_OtherMethodologyThatBestDescribesHowMultipleModelsAreConsideredWhereMoreThanOneCatastropheModelIsUsedInTheAccumulations",{"$f":"XBRLMap(C25,V25,$V$1,$V$2,CONFIGURATION!$B$10,\"BMA\",CONFIGURATION!$B$1,\"bscr\")","v":"Mapped"},null,null,null,"bma_IfOtherPleaseExplain"]
[null,null,null,null,null,null,null,null,null,null,null,null,null,null,null,null,null,null,null,null,null,null,null,null,null,null,""]
[null,null,null,null,null,null,null,null,null,null,null,null,null,null,null,null,null,null,null,null,null,null,null,null,null,null,""]
[null,7,"Is the insurer's pricing and accumulations fully consistent?",null,null,null,null,null,null,null,null,null,null,null,null,null,null,null,null,null,null,null,null,null,null,null,""]
[null,null,{"$f":"Import!I6805","v":"Select"},null,null,null,null,null,null,null,null,null,null,null,null,null,null,null,null,null,null,"brrt_TheInsurerPricingAndAccumulationsIsFullyConsistent",{"$f":"XBRLMap(C29,V29,$V$1,$V$2,CONFIGURATION!$B$10,\"BMA\",CONFIGURATION!$B$1,\"bscr\")","v":"Mapped"},null,null,null,"bma_AreInsurerPricingAndAccumulationsFullyConsistent"]
[null,null,null,null,null,null,null,null,null,null,null,null,null,null,null,null,null,null,null,null,null,null,null,null,null,null,""]
[null,8,{"$f":"+G137","v":"What percentage of the total premium (other than insurance business) is written without occurrence limits?"},null,null,null,null,null,null,null,null,null,null,null,null,null,null,null,null,null,null,null,null,null,null,null,""]
[null,null,{"$f":"Import!I6806","v":"Select"},null,null,null,null,null,null,null,null,null,null,null,null,null,null,null,null,null,null,"brrt_PercentageOfTheTotalPremiumOtherThanInsuranceBusinessWrittenWithoutOccurrenceLimits",{"$f":"XBRLMap(C32,V32,$V$1,$V$2,CONFIGURATION!$B$10,\"BMA\",CONFIGURATION!$B$1,\"bscr\")","v":"Mapped"},null,null,null,"bma_HowMuchBusinessotherThanInsuranceBusinessMeasuredAsPercentageOfPremiumIsWrittenWithoutOccurrenceLimits"]
[null,null,null,null,null,null,null,null,null,null,null,null,null,null,null,null,null,null,null,null,null,null,null,null,null,null,""]
[null,9,"Does the insurer provide reinsurance to both affiliated companies and unaffiliated companies?",null,null,null,null,null,null,null,null,null,null,null,null,null,null,null,null,null,null,null,null,null,null,null,""]
[null,null,{"$f":"Import!I6807","v":"Select"},null,null,null,null,null,null,null,null,null,null,null,null,null,null,null,null,null,null,"brrt_InsurerProvidesReinsuranceToBothAffiliatedCompaniesAndUnaffiliatedCompanies",{"$f":"XBRLMap(C35,V35,$V$1,$V$2,CONFIGURATION!$B$10,\"BMA\",CONFIGURATION!$B$1,\"bscr\")","v":"Mapped"},null,null,null,"bma_DoesCompanyProvideReinsuranceToBothAffiliatedCompaniesAndUnaffiliatedCompanies"]
[null,null,null,null,null,null,null,null,null,null,null,null,null,null,null,null,null,null,null,null,null,null,null,null,null,null,""]
[null,10,"If there is more than 2.5% of premiums written without occurrence limits (other than insurance business) briefly describe this business, including information on ",null,null,null,null,null,null,null,null,null,null,null,null,null,null,null,null,null,null,null,null,null,null,null,""]
[null,null,"territorial exposure, potential for correlation of losses across contracts/policies and the assessment of maximum loss potential for these exposures."]
[null,null,{"$f":"Import!I6808","v":0},null,null,null,null,null,null,null,null,null,null,null,null,null,null,null,null,null,null,"brrt_IfThereIsMoreThanTwoPointFivePercentOfPremiumsWrittenWithoutOccurrenceLimitsOtherThanInsuranceBusinessBrieflyDescribeThisBusiness",{"$f":"XBRLMap(C39,V39,$V$1,$V$2,CONFIGURATION!$B$10,\"BMA\",CONFIGURATION!$B$1,\"bscr\")","v":"Mapped"},null,null,null,"bma_IfreIsMoreThan25PercentOfPremiumWrittenWithoutOccurrenceLimitsotherThanInsuranceBusinessBusinessDescription"]
[null,null,null,null,null,null,null,null,null,null,null,null,null,null,null,null,null,null,null,null,null,null,null,null,null,null,""]
[null,null,null,null,null,null,null,null,null,null,null,null,null,null,null,null,null,null,null,null,null,null,null,null,null,null,""]
[null,11,{"$f":"+G148","v":"How are outwards reinsurance protections considered in accumulation calculations?"},null,null,null,null,null,null,null,null,null,null,null,null,null,null,null,null,null,null,null,null,null,null,null,""]
[null,null,{"$f":"Import!I6809","v":"Select"},null,null,null,null,null,null,null,null,null,null,null,null,null,null,null,null,null,null,"brrt_ConsiderationOfOutwardsReinsuranceProtectionsInAccumulationCalculations",{"$f":"XBRLMap(C43,V43,$V$1,$V$2,CONFIGURATION!$B$10,\"BMA\",CONFIGURATION!$B$1,\"bscr\")","v":"Mapped"},null,null,null,"bma_HowAreOutwardsReinsuranceProtectionsConsideredInAccumulationCalculations"]
[]
[]
[]
[]
[]
[]
[]
[]
[]
[]
[]
[]
[]
[]
[]
[]
[]
[]
[]
[]
[]
[]
[]
[]
[]
[]
[]
[]
[]
[]
[]
[]
[]
[]
[]
[]
[]
[]
[]
[]
[]
[]
[]
[null,null,null,null,null,null,"What frequency best describes the update process of accumulations?",null,null,null,null,null,null,null,"Notes"]
[null,null,null,null,null,null,"Select",null,null,null,null,null,null,null,"Guidance if there is a different frequency of updates for insurance and reinsurance or other"]
[null,null,null,null,null,null,"Ad-hoc"]
[null,null,null,null,null,null,"Annual"]
[null,null,null,null,null,null,"Semi-annual"]
[null,null,null,null,null,null,"Quarterly"]
[null,null,null,null,null,null,"Monthly"]
[null,null,null,null,null,null,"Weekly"]
[null,null,null,null,null,null,"Daily"]
[null,null,null,null,null,null,"Real time"]
[]
[null,null,null,null,null,null,"Which vendor catastrophe models do the members of the insurance group license?"]
[null,null,null,null,null,null,"Select"]
[null,null,null,null,null,null,"AIR only"]
[null,null,null,null,null,null,"EQECAT only"]
[null,null,null,null,null,null,"RMS only"]
[null,null,null,null,null,null,"AIR and RMS"]
[null,null,null,null,null,null,"AIR and EQECAT"]
[null,null,null,null,null,null,"EQECAT and RMS"]
[null,null,null,null,null,null,"AIR, EQECAT and RMS"]
[]
[null,null,null,null,null,null,"Does the insurance group incorporate internally developed stochastic catastrophe models within the accumulations that capture correlation across contracts or lines of business?"]
[]
[]
[null,null,null,null,null,null,"Which methodology best describes the insurance group's accumulation methodology?",null,null,null,null,null,null,null,"Notes"]
[null,null,null,null,null,null,"Select",null,null,null,null,null,null,null,"Define catastrophe model as AIR, RMS, EQEcatastrophe and other, not the region-peril models"]
[null,null,null,null,null,null,"One catastrophe model is used in the accumulations"]
[null,null,null,null,null,null,"Two catastrophe models are used in the accumulations"]
[null,null,null,null,null,null,"Three catastrophe models are used in the accumulations"]
[null,null,null,null,null,null,"More than three catastrophe models are used in the accumulations"]
[]
[null,null,null,null,null,null,"Where more than one catastrophe model is used in the accumulations, which methodology best describes how multiple models are considered?"]
[null,null,null,null,null,null,"Select"]
[null,null,null,null,null,null,"A full portfolio is kept in all models"]
[null,null,null,null,null,null,"A full portfolio is kept in all models and a blended portfolio is kept where underwriters determine on a deal by deal basis the proportions of each model included in the blend."]
[null,null,null,null,null,null,"A full portfolio is kept in all models and a blended portfolio is kept where management determine the proportion of each model included in the blend."]
[null,null,null,null,null,null,"A full portfolio is kept in all models and a blended portfolio is kept where management determine the proportion of each model included in the blend specific by region-peril."]
[null,null,null,null,null,null,"Only a blended portfolio is kept where underwriters determine the proportion of each model included in the blend on a deal by deal basis."]
[null,null,null,null,null,null,"Only a blended portfolio is kept where management determine the proportion of each model included in the blend."]
[null,null,null,null,null,null,"Only a blended portfolio is kept where management determine the proportion of each model included in the blend specific by region-peril."]
[null,null,null,null,null,null,"Other"]
[null,null,null,null,null,null,"Not applicable"]
[]
[null,null,null,null,null,null,"Are the insurance group's pricing and accumulations fully consistent?"]
[null,null,null,null,null,null,"Select"]
[null,null,null,null,null,null,"Yes - for all forms of exposure where there is the potential for catastrophe loss"]
[null,null,null,null,null,null,"Yes - though only where data and/or vendor catastrophe models are available to run a catastrophe model"]
[null,null,null,null,null,null,"No - not all catastrophe exposure that is modeled for pricing purposes are included in accumulations"]
[null,null,null,null,null,null,"No - there is a difference in the pricing and accumulation methodology"]
[]
[null,null,null,null,null,null,"What percentage of the total premium (other than insurance business) is written without occurrence limits?"]
[null,null,null,null,null,null,"Select"]
[null,null,null,null,null,null,"None"]
[null,null,null,null,null,null,"Not applicable (only write insurance business)"]
[null,null,null,null,null,null,"0% to 2.49%"]
[null,null,null,null,null,null,"2.5% to 4.9%"]
[null,null,null,null,null,null,"5.0% to 9.9%"]
[null,null,null,null,null,null,"10.0% to 14.9%"]
[null,null,null,null,null,null,"15.0% to 19.9%"]
[null,null,null,null,null,null,"Greater than or equal to 20.0%"]
[]
[null,null,null,null,null,null,"How are outwards reinsurance protections considered in accumulation calculations?"]
[null,null,null,null,null,null,"Select"]
[null,null,null,null,null,null,"The company has minimal catastrophe exposure protection and as such gross is effectively net."]
[null,null,null,null,null,null,"They are not, the accumulations are calculated on a gross basis with reinsurance protections calculated approximately outside the system."]
[null,null,null,null,null,null,"They are not, the accumulations are calculated on a gross basis with reinsurance protections calculated explicitly outside the system."]
[null,null,null,null,null,null,"The accumulations are calculated on a gross basis with the effect of reinsurance protections calculated explicitly for some types of protection within the system."]
[null,null,null,null,null,null,"The accumulations are calculated on a gross basis with the effect of reinsurance protections calculated explicitly for each type of protection within the system."]
[]
[null,null,null,null,null,null,"Does the company provide reinsurance to both affiliated companies and unaffiliated companies?"]
[null,null,null,null,null,null,"Select"]
[null,null,null,null,null,null,"Affiliated companies only"]
[null,null,null,null,null,null,"Unaffiliated companies only"]
[null,null,null,null,null,null,"Both affiliated and unaffiliated companies"]

{"sheet":"Schedule X(f)","index":57,"n_rows":144,"n_cols":29,"rows_kept":144,"cut":false,"hidden":false,"merged":[[2,1,2,4],[24,4,24,6],[24,7,24,9],[39,4,39,6],[30,2,30,3],[39,7,39,9],[35,2,35,12],[29,2,29,3],[6,10,6,12],[15,10,15,12],[6,4,6,6],[6,7,6,9],[15,4,15,6],[15,7,15,9],[39,10,39,12],[27,2,27,3],[28,2,28,3],[73,2,73,12],[24,10,24,12],[77,2,77,12],[48,2,48,12],[52,2,52,12],[56,10,56,12],[66,2,67,12],[75,2,75,12],[56,4,56,6],[56,7,56,9]]}
[null,"CATASTROPHE RISK RETURN: DATA  ANALYSIS (TABLE 9E)",null,null,null,null,null,null,null,null,null,null,{"$f":"HYPERLINK(\"#'Index'!A1\",\"Return to Index\")","v":"Return to Index"},null,null,null,null,null,null,null,null,null,null,null,null,{"$f":"'Company Information'!L1","v":"01/01/2019"}]
[null,{"$f":"'Company Information'!C7","v":"Enter Company Name"},null,null,null,null,null,null,null,null,null,null,null,null,null,null,null,null,null,null,null,null,null,null,null,{"$f":"'Company Information'!L2","v":"12/31/2019"}]
[null,{"$f":"'Company Information'!C3+1","v":"2020-01-01"},null,null,null,null,null,null,null,null,null,null,"SCHEDULE X(f)"]
[]
[null,1,"For all contracts written by the insurer, provide splits of those that are:"]
[]
[null,null,null,null,"U.S. specific contracts - all exposures",null,null,"All other contracts - all exposures",null,null,"Total"]
[null,null,null,null,"Contract count","Gross Limit provided ","Net limit provided ","Contract count","Gross Limit provided ","Net limit provided ","Contract count","Gross Limit provided ","Net limit provided "]
[null,null,null,null,null,"US$M","US$M",null,"US$M","US$M",null,"US$M","US$M"]
[null,null,null,"Modelable",{"$f":"Import!I6811","v":0},{"$f":"Import!I6814","v":0},{"$f":"Import!I6817","v":0},{"$f":"Import!I6820","v":0},{"$f":"Import!I6823","v":0},{"$f":"Import!I6826","v":0},{"$f":"H10+E10","v":0},0,0,null,null,"brrt_ModelableNotModelableAxis_brrt_ModelableMember",null,null,null,null,null,null,null,null,null,null,null,"bma_SplitsForAllContractsWrittenByTheCompany_ModelableContractCount","bma_SplitsForAllContractsWrittenByTheCompany_ModelableLimitProvidedDollarM"]
[null,null,null,"Not modelable",{"$f":"Import!I6812","v":0},{"$f":"Import!I6815","v":0},{"$f":"Import!I6818","v":0},{"$f":"Import!I6821","v":0},{"$f":"Import!I6824","v":0},{"$f":"Import!I6827","v":0},0,0,0,null,null,"brrt_ModelableNotModelableAxis_brrt_NotModelableMember",null,null,null,null,null,null,null,null,null,null,null,"bma_SplitsForAllContractsWrittenByTheCompany_NotModelableContractCount","bma_SplitsForAllContractsWrittenByTheCompany_NotModelableLimitProvidedDollarM"]
[null,null,null,"Total",{"$f":"SUM(E10:E11)","v":0},0,0,0,0,0,0,{"$f":"I12+F12","v":0},0,null,null,"brrt_ModelableNotModelableAxis_brrt_TotalMember",null,null,null,null,null,null,null,null,null,null,null,"bma_SplitsForAllContractsWrittenByTheCompany_TotalContractCount","bma_SplitsForAllContractsWrittenByTheCompany_TotalLimitProvidedDollarM"]
[]
[null,2,"For those contracts that are written by the insurer that may be modeled, provide splits of those that are:"]
[]
[null,null,null,null,{"$f":"+E7","v":"U.S. specific contracts - all exposures"},null,null,{"$f":"+H7","v":"All other contracts - all exposures"},null,null,"Total"]
[null,null,null,null,"Contract count","Gross Limit provided ","Net limit provided ","Contract count","Gross Limit provided ","Net limit provided ","Contract count","Gross Limit provided ","Net limit provided "]
[null,null,null,null,null,"US$M","US$M",null,"US$M","US$M",null,"US$M","US$M"]
[null,null,null,"Modeled",{"$f":"Import!I6829","v":0},{"$f":"Import!I6832","v":0},{"$f":"Import!I6835","v":0},{"$f":"Import!I6838","v":0},{"$f":"Import!I6841","v":0},{"$f":"Import!I6844","v":0},{"$f":"H19+E19","v":0},0,{"$f":"J19+G19","v":0},null,null,"brrt_ModelableNotModelableAxis_brrt_ModelableMember","brrt_ModeledNotModeledAxis_brrt_ModeledMember",null,null,null,null,null,null,null,null,null,null,"bma_SplitsForAllModelableContractsWrittenByTheCompany_ModelledContractCount","bma_SplitsForAllModelableContractsWrittenByTheCompany_ModelledLimitProvidedDollarM"]
[null,null,null,"Not modeled",{"$f":"Import!I6830","v":0},{"$f":"Import!I6833","v":0},{"$f":"Import!I6836","v":0},{"$f":"Import!I6839","v":0},{"$f":"Import!I6842","v":0},{"$f":"Import!I6845","v":0},0,0,{"$f":"J20+G20","v":0},null,null,"brrt_ModelableNotModelableAxis_brrt_NotModelableMember","brrt_ModeledNotModeledAxis_brrt_NotModeledMember",null,null,null,null,null,null,null,null,null,null,"bma_SplitsForAllModelableContractsWrittenByTheCompany_NotModelledContractCount","bma_SplitsForAllModelableContractsWrittenByTheCompany_NotModelledLimitProvidedDollarM"]
[null,null,null,"Total",{"$f":"SUM(E19:E20)","v":0},0,0,0,0,0,0,0,0,null,null,"brrt_ModelableNotModelableAxis_brrt_TotalMember","brrt_ModeledNotModeledAxis_brrt_TotalMember",null,null,null,null,null,null,null,null,null,null,"bma_SplitsForAllModelableContractsWrittenByTheCompany_TotalContractCount","bma_SplitsForAllModelableContractsWrittenByTheCompany_TotalLimitProvidedDollarM"]
[]
[null,3,"For those contracts that are written by the insurer that are modeled, provide splits of those that are:"]
[]
[null,null,null,null,{"$f":"+E7","v":"U.S. specific contracts - all exposures"},null,null,{"$f":"+H7","v":"All other contracts - all exposures"},null,null,"Total"]
[null,null,null,null,"Contract count","Gross Limit provided ","Net limit provided ","Contract count","Gross Limit provided ","Net limit provided ","Contract count","Gross Limit provided ","Net limit provided "]
[null,null,null,null,null,"US$M","US$M",null,"US$M","US$M",null,"US$M","US$M"]
[null,null,"Detailed exposure data",null,{"$f":"Import!I6847","v":0},{"$f":"Import!I6853","v":0},{"$f":"Import!I6859","v":0},{"$f":"Import!I6865","v":0},{"$f":"Import!I6871","v":0},{"$f":"Import!I6877","v":0},{"$f":"H28+E28","v":0},0,{"$f":"J28+G28","v":0},null,null,"brrt_ModeledNotModeledAxis_brrt_ModeledMember","brrt_ExposureDataSourceAxis_brrt_DetailedExposureDataMember",null,null,null,null,null,null,null,null,null,null,"bma_SplitsForAllModelledContractsWrittenByTheCompany_DetailedExposureDataContractCount","bma_SplitsForAllModelledContractsWrittenByTheCompany_DetailedExposureDataLimitProvidedDollarM"]
[null,null,"Aggregate exposure data",null,{"$f":"Import!I6848","v":0},{"$f":"Import!I6854","v":0},{"$f":"Import!I6860","v":0},{"$f":"Import!I6866","v":0},{"$f":"Import!I6872","v":0},{"$f":"Import!I6878","v":0},0,0,{"$f":"J29+G29","v":0},null,null,"brrt_ModeledNotModeledAxis_brrt_ModeledMember","brrt_ExposureDataSourceAxis_brrt_AggregateExposureDataMember",null,null,null,null,null,null,null,null,null,null,"bma_SplitsForAllModelledContractsWrittenByTheCompany_AggregateExposureDataContractCount","bma_SplitsForAllModelledContractsWrittenByTheCompany_AggregateExposureDataLimitProvidedDollarM"]
[null,null,"A proxy peer insurer is selected and losses are derived from this insurer",null,{"$f":"Import!I6849","v":0},{"$f":"Import!I6855","v":0},{"$f":"Import!I6861","v":0},{"$f":"Import!I6867","v":0},{"$f":"Import!I6873","v":0},{"$f":"Import!I6879","v":0},0,0,{"$f":"J30+G30","v":0},null,null,"brrt_ModeledNotModeledAxis_brrt_ModeledMember","brrt_ExposureDataSourceAxis_brrt_AProxyPeerInsurerIsSelectedAndLossesAreDerivedFromThisInsurerMember",null,null,null,null,null,null,null,null,null,null,"bma_SplitsForAllModelledContractsWrittenByTheCompany_ProxyPeerCompanyIsSelectedAndLossesAreDerivedFromThisCompanyContractCount","bma_SplitsForAllModelledContractsWrittenByTheCompany_ProxyPeerCompanyIsSelectedAndLossesAreDerivedFromThisCompanyLimitProvidedDollarM"]
[null,null,"Derived from an industry loss curve utilizing market share",null,{"$f":"Import!I6850","v":0},{"$f":"Import!I6856","v":0},{"$f":"Import!I6862","v":0},{"$f":"Import!I6868","v":0},{"$f":"Import!I6874","v":0},{"$f":"Import!I6880","v":0},0,0,{"$f":"J31+G31","v":0},null,null,"brrt_ModeledNotModeledAxis_brrt_ModeledMember","brrt_ExposureDataSourceAxis_brrt_DerivedFromAnIndustryLossCurveUtilizingMarketShareMember",null,null,null,null,null,null,null,null,null,null,"bma_SplitsForAllModelledContractsWrittenByTheCompany_DerivedFromAnIndustryLossCurveUtilizingMarketShareContractCount","bma_SplitsForAllModelledContractsWrittenByTheCompany_DerivedFromAnIndustryLossCurveUtilizingMarketShareLimitProvidedDollarM"]
[null,null,null,"Other",{"$f":"Import!I6851","v":0},{"$f":"Import!I6857","v":0},{"$f":"Import!I6863","v":0},{"$f":"Import!I6869","v":0},{"$f":"Import!I6875","v":0},{"$f":"Import!I6881","v":0},0,0,{"$f":"J32+G32","v":0},null,null,"brrt_ModeledNotModeledAxis_brrt_ModeledMember","brrt_ExposureDataSourceAxis_brrt_OtherMember",null,null,null,null,null,null,null,null,null,null,"bma_SplitsForAllModelledContractsWrittenByTheCompany_OtherContractCount","bma_SplitsForAllModelledContractsWrittenByTheCompany_OtherLimitProvidedDollarM"]
[null,null,null,"Total",{"$f":"SUM(E28:E32)","v":0},0,0,0,0,0,0,{"$f":"I33+F33","v":0},0,null,null,"brrt_ModeledNotModeledAxis_brrt_ModeledMember","brrt_ExposureDataSourceAxis_brrt_TotalMember",null,null,null,null,null,null,null,null,null,null,"bma_SplitsForAllModelledContractsWrittenByTheCompany_TotalContractCount","bma_SplitsForAllModelledContractsWrittenByTheCompany_TotalLimitProvidedDollarM"]
[]
[null,null,"If other is selected, describe the methodology as appropriate:"]
[null,null,{"$f":"Import!I6883","v":0},null,null,null,null,null,null,null,null,null,null,null,null,"brrt_ModeledNotModeledAxis_brrt_ModeledMember","brrt_ExposureDataSourceAxis_brrt_OtherMember",null,null,null,null,null,null,null,null,null,null,"bma_SplitsForAllModelledContractsWrittenByTheCompany_IfOtherIsSelectedPleaseDescribeMethodologyAsAppropriate"]
[]
[null,4,"For those contracts that are written by the insurer that may be modeled (but are not modeled), provide splits of those that are: "]
[]
[null,null,null,null,{"$f":"+E7","v":"U.S. specific contracts - all exposures"},null,null,{"$f":"+H7","v":"All other contracts - all exposures"},null,null,"Total"]
[null,null,null,null,"Contract count","Gross Limit provided ","Net limit provided ","Contract count","Gross Limit provided ","Net limit provided ","Contract count","Gross Limit provided ","Net limit provided "]
[null,null,null,null,null,"US$M","US$M",null,"US$M","US$M",null,"US$M","US$M"]
[null,null,null,"Data deficient",{"$f":"Import!I6884","v":0},{"$f":"Import!I6888","v":0},{"$f":"Import!I6892","v":0},{"$f":"Import!I6896","v":0},{"$f":"Import!I6900","v":0},{"$f":"Import!I6904","v":0},{"$f":"H43+E43","v":0},0,{"$f":"J43+G43","v":0},null,null,"brrt_ModelableNotModelableAxis_brrt_ModelableMember","brrt_ModeledNotModeledAxis_brrt_NotModeledMember","brrt_ReasonForNotModelingAxis_brrt_DataDeficientMember",null,null,null,null,null,null,null,null,null,"bma_SplitsForAllModelableContractsThatAreNotModelledWrittenByTheCompany_DataDeficientContractCount","bma_SplitsForAllModelableContractsThatAreNotModelledWrittenByTheCompany_DataDeficientLimitProvidedDollarM"]
[null,null,null,"Model deficient",{"$f":"Import!I6885","v":0},{"$f":"Import!I6889","v":0},{"$f":"Import!I6893","v":0},{"$f":"Import!I6897","v":0},{"$f":"Import!I6901","v":0},{"$f":"Import!I6905","v":0},0,0,{"$f":"J44+G44","v":0},null,null,"brrt_ModelableNotModelableAxis_brrt_ModelableMember","brrt_ModeledNotModeledAxis_brrt_NotModeledMember","brrt_ReasonForNotModelingAxis_brrt_ModelDeficientMember",null,null,null,null,null,null,null,null,null,"bma_SplitsForAllModelableContractsThatAreNotModelledWrittenByTheCompany_ModelDeficientContractCount","bma_SplitsForAllModelableContractsThatAreNotModelledWrittenByTheCompany_ModelDeficientLimitProvidedDollarM"]
[null,null,null,"Other",{"$f":"Import!I6886","v":0},{"$f":"Import!I6890","v":0},{"$f":"Import!I6894","v":0},{"$f":"Import!I6898","v":0},{"$f":"Import!I6902","v":0},{"$f":"Import!I6906","v":0},0,0,{"$f":"J45+G45","v":0},null,null,"brrt_ModelableNotModelableAxis_brrt_ModelableMember","brrt_ModeledNotModeledAxis_brrt_NotModeledMember","brrt_ReasonForNotModelingAxis_brrt_OtherMember",null,null,null,null,null,null,null,null,null,"bma_SplitsForAllModelableContractsThatAreNotModelledWrittenByTheCompany_OtherContractCount","bma_SplitsForAllModelableContractsThatAreNotModelledWrittenByTheCompany_OtherLimitProvidedDollarM"]
[null,null,null,"Total",{"$f":"SUM(E43:E45)","v":0},0,0,0,0,0,0,{"$f":"I46+F46","v":0},0,null,null,"brrt_ModelableNotModelableAxis_brrt_ModelableMember","brrt_ModeledNotModeledAxis_brrt_NotModeledMember","brrt_ReasonForNotModelingAxis_brrt_TotalMember",null,null,null,null,null,null,null,null,null,"bma_SplitsForAllModelableContractsThatAreNotModelledWrittenByTheCompany_TotalContractCount","bma_SplitsForAllModelableContractsThatAreNotModelledWrittenByTheCompany_TotalLimitProvidedDollarM"]
[]
[null,null,"If other is selected, describe the reasons for not modeling the contract(s):",null,null,null,null,null,null,null,null,null,null,null,null,"",null,null,null,"",null,null,null,null,null,null,null,"",""]
[null,null,{"$f":"Import!I6908","v":0},null,null,null,null,null,null,null,null,null,null,null,null,"brrt_ModelableNotModelableAxis_brrt_ModelableMember","brrt_ModeledNotModeledAxis_brrt_NotModeledMember","brrt_ReasonForNotModelingAxis_brrt_OtherMember",null,null,null,null,null,null,null,null,null,"bma_SplitsForAllModelableContractsThatAreNotModelledWrittenByTheCompany_IfOtherIsSelectedPleaseDescribeReasonsForNotModelingContracts"]
[]
[null,5,"For contracts that are written by the insurer that may be modeled but are not modeled, describe what the insurer does from an accumulation perspective.",null,null,null,null,null,null,null,null,null,null,null,null,"",null,null,null,null,null,null,null,null,null,null,null,""]
[null,null,null,null,null,null,null,null,null,null,null,null,null,null,null,"",null,null,null,null,null,null,null,null,null,null,null,""]
[null,null,{"$f":"Import!I6909","v":0},null,null,null,null,null,null,null,null,null,null,null,null,"brrt_ModelableNotModelableAxis_brrt_ModelableMember","brrt_ModeledNotModeledAxis_brrt_NotModeledMember","brrt_ReasonForNotModelingAxis_brrt_OtherMember",null,null,null,null,null,null,null,null,null,"bma_ForseContractsThatAreWrittenByCompanyThatAreModelableButNotModelledPleaseDescribeWhatCompanyDoesFromAnAccumulationPerspective"]
[]
[null,6,"For contracts that are written by the insurer that are unable to be modeled, provide splits of those that are:"]
[]
[null,null,null,null,{"$f":"+E7","v":"U.S. specific contracts - all exposures"},null,null,{"$f":"+H7","v":"All other contracts - all exposures"},null,null,"Total"]
[null,null,null,null,"Contract count","Gross Limit provided ","Net limit provided ","Contract count","Gross Limit provided ","Net limit provided ","Contract count","Gross Limit provided ","Net limit provided "]
[null,null,null,null,null,"US$M","US$M",null,"US$M","US$M",null,"US$M","US$M"]
[null,null,null,"Data deficient",{"$f":"Import!I6910","v":0},{"$f":"Import!I6915","v":0},{"$f":"Import!I6920","v":0},{"$f":"Import!I6925","v":0},{"$f":"Import!I6930","v":0},{"$f":"Import!I6935","v":0},{"$f":"H60+E60","v":0},0,{"$f":"J60+G60","v":0},null,null,"brrt_ModelableNotModelableAxis_brrt_NotModelableMember","brrt_ReasonForNotBeingModelableAxis_brrt_DataDeficientMember",null,null,null,null,null,null,null,null,null,null,"bma_SplitsForAllNotModelableContractsThatAreWrittenByTheCompany_DataDeficientContractCount","bma_SplitsForAllNotModelableContractsThatAreWrittenByTheCompany_DataDeficientLimitProvidedDollarM"]
[null,null,null,"No catastrophe model exists",{"$f":"Import!I6911","v":0},{"$f":"Import!I6916","v":0},{"$f":"Import!I6921","v":0},{"$f":"Import!I6926","v":0},{"$f":"Import!I6931","v":0},{"$f":"Import!I6936","v":0},0,0,{"$f":"J61+G61","v":0},null,null,"brrt_ModelableNotModelableAxis_brrt_NotModelableMember","brrt_ReasonForNotBeingModelableAxis_brrt_NoCatastropheModelExistsMember",null,null,null,null,null,null,null,null,null,null,"bma_SplitsForAllNotModelableContractsThatAreWrittenByTheCompany_NoCatModelExistsContractCount","bma_SplitsForAllNotModelableContractsThatAreWrittenByTheCompany_NoCatModelExistsLimitProvidedDollarM"]
[null,null,null,"Model deficient",{"$f":"Import!I6912","v":0},{"$f":"Import!I6917","v":0},{"$f":"Import!I6922","v":0},{"$f":"Import!I6927","v":0},{"$f":"Import!I6932","v":0},{"$f":"Import!I6937","v":0},0,0,{"$f":"+J62+G62","v":0},null,null,"brrt_ModelableNotModelableAxis_brrt_NotModelableMember","brrt_ReasonForNotBeingModelableAxis_brrt_ModelDeficientMember",null,null,null,null,null,null,null,null,null,null,"bma_SplitsForAllNotModelableContractsThatAreWrittenByTheCompany_ModelDeficientContractCount","bma_SplitsForAllNotModelableContractsThatAreWrittenByTheCompany_ModelDeficientLimitProvidedDollarM"]
[null,null,null,"Other",{"$f":"Import!I6913","v":0},{"$f":"Import!I6918","v":0},{"$f":"Import!I6923","v":0},{"$f":"Import!I6928","v":0},{"$f":"Import!I6933","v":0},{"$f":"Import!I6938","v":0},0,0,{"$f":"+J63+G63","v":0},null,null,"brrt_ModelableNotModelableAxis_brrt_NotModelableMember","brrt_ReasonForNotBeingModelableAxis_brrt_OtherMember",null,null,null,null,null,null,null,null,null,null,"bma_SplitsForAllNotModelableContractsThatAreWrittenByTheCompany_OtherContractCount","bma_SplitsForAllNotModelableContractsThatAreWrittenByTheCompany_OtherLimitProvidedDollarM"]
[null,null,null,"Total",{"$f":"SUM(E60:E63)","v":0},0,0,0,0,0,0,{"$f":"I64+F64","v":0},0,null,null,"brrt_ModelableNotModelableAxis_brrt_NotModelableMember","brrt_ReasonForNotBeingModelableAxis_brrt_TotalMember",null,null,null,null,null,null,null,null,null,null,"bma_SplitsForAllNotModelableContractsThatAreWrittenByTheCompany_TotalContractCount","bma_SplitsForAllNotModelableContractsThatAreWrittenByTheCompany_TotalLimitProvidedDollarM"]
[]
[null,null,"If other is selected, describe the reasons for not modeling the contract(s):"]
[null,null,{"$f":"Import!I6940","v":0},null,null,null,null,null,null,null,null,null,null,null,null,"brrt_ModelableNotModelableAxis_brrt_NotModelableMember","brrt_ReasonForNotBeingModelableAxis_brrt_OtherMember",null,null,null,null,null,null,null,null,null,null,"bma_SplitsForAllNotModelableContractsThatAreWrittenByTheCompany_IfOtherIsSelectedPleaseDescribeReasonsForNotModelingContracts"]
[null,null,null,null,null,null,null,null,null,null,null,null,null,null,null,"",null,null,null,null,null,null,null,null,null,null,null,""]
[null,null,null,null,null,null,null,null,null,null,null,null,null,null,null,"",null,null,null,null,null,null,null,null,null,null,null,""]
[null,7,"What percentage of total net premiums written represents contracts with no limits?",null,null,null,null,null,{"$f":"Import!I6941","v":0},null,null,null,null,null,null,"brrt_PercentageOfContractsWithNoLimitsOnTotalNetPremiumsWritten",{"$f":"XBRLMap(I70,P70,$Z$1,$Z$2,CONFIGURATION!$B$10,\"BMA\",CONFIGURATION!$B$1,\"bscr\")","v":"Mapped"},null,null,null,null,null,null,null,null,null,null,"bma_PercentageOfTotalNetPremiumsWrittenRepresentsContractsWithNoLimits"]
[null,null,null,null,null,null,null,null,null,null,null,null,null,null,null,"",null,null,null,null,null,null,null,null,null,null,null,""]
[null,8,"For contracts that are written by the insurer that are not modelable, describe what the insurer does from an accumulation perspective.",null,null,null,null,null,null,null,null,null,null,null,null,"",null,null,null,null,null,null,null,null,null,null,null,""]
[null,null,null,null,null,null,null,null,null,null,null,null,null,null,null,"",null,null,null,null,null,null,null,null,null,null,null,""]
[null,null,{"$f":"Import!I6942","v":0},null,null,null,null,null,null,null,null,null,null,null,null,"brrt_ModelableNotModelableAxis_brrt_NotModelableMember",null,null,null,null,null,null,null,null,null,null,null,"bma_ForContractsThatAreWrittenByCompanyThatAreNotModelablePleaseDescribeWhatCompanyDoesFromAnAccumulationPerspective"]
[null,null,null,null,null,null,null,null,null,null,null,null,null,null,null,"",null,null,null,null,null,null,null,null,null,null,null,""]
[null,9,"If there are contracts that are written by the insurer that have no occurrence limits or where TIV has not been included in the exposure in the above exhibits, describe how this exposure is included in the above data.",null,null,null,null,null,null,null,null,null,null,null,null,"",null,null,null,null,null,null,null,null,null,null,null,""]
[null,null,null,null,null,null,null,null,null,null,null,null,null,null,null,"",null,null,null,null,null,null,null,null,null,null,null,""]
[null,null,{"$f":"Import!I6943","v":0},null,null,null,null,null,null,null,null,null,null,null,null,"brrt_ForContractsWrittenWithNoOccurrenceLimitsOrWhereTIVHasNotBeenIncludedInTheExposureDescribeHowThisExposureIsIncludedInTheAboveData",{"$f":"XBRLMap(C78,P78,$Z$1,$Z$2,CONFIGURATION!$B$10,\"BMA\",CONFIGURATION!$B$1,\"bscr\")","v":"Mapped"},null,null,null,null,null,null,null,null,null,null,"bma_IfreAreContractsThatAreWrittenByCompanyThatHaveNoOccurrenceLimitsOrWhereTivHasNotBeenIncludedAsExposureInAboveExhibitsPleaseDescribeHowThisExposureIsIncludedInAboveData"]
[]
[]
[null,null,null,null,"brrt_ContractsWrittenCount","brrt_ContractsWrittenLimitProvided","brrt_ContractsWrittenNetLimitProvided","brrt_ContractsWrittenCount","brrt_ContractsWrittenLimitProvided","brrt_ContractsWrittenNetLimitProvided","brrt_ContractsWrittenCount","brrt_ContractsWrittenLimitProvided","brrt_ContractsWrittenNetLimitProvided"]
[null,null,null,null,"brrt_USSpecificAllOthersAxis_brrt_USSpecificMember","brrt_USSpecificAllOthersAxis_brrt_USSpecificMember","brrt_USSpecificAllOthersAxis_brrt_USSpecificMember","brrt_USSpecificAllOthersAxis_brrt_AllOthersMember","brrt_USSpecificAllOthersAxis_brrt_AllOthersMember","brrt_USSpecificAllOthersAxis_brrt_AllOthersMember","brrt_USSpecificAllOthersAxis_brrt_TotalMember","brrt_USSpecificAllOthersAxis_brrt_TotalMember","brrt_USSpecificAllOthersAxis_brrt_TotalMember"]
[null,null,null,null,{"$f":"XBRLMap(E10,E$81&\".\"&E$82&\".\"&$P10,$Z$1,$Z$2,CONFIGURATION!$B$10,\"BMA\",CONFIGURATION!$B$1,\"bscr\")","v":"Mapped"},{"$f":"XBRLMap(F10,F$81&\".\"&F$82&\".\"&$P10,$Z$1,$Z$2,CONFIGURATION!$B$10,\"BMA\",CONFIGURATION!$B$1,\"bscr\",1000000)","v":"Mapped"},{"$f":"XBRLMap(G10,G$81&\".\"&G$82&\".\"&$P10,$Z$1,$Z$2,CONFIGURATION!$B$10,\"BMA\",CONFIGURATION!$B$1,\"bscr\",1000000)","v":"Mapped"},{"$f":"XBRLMap(H10,H$81&\".\"&H$82&\".\"&$P10,$Z$1,$Z$2,CONFIGURATION!$B$10,\"BMA\",CONFIGURATION!$B$1,\"bscr\")","v":"Mapped"},{"$f":"XBRLMap(I10,I$81&\".\"&I$82&\".\"&$P10,$Z$1,$Z$2,CONFIGURATION!$B$10,\"BMA\",CONFIGURATION!$B$1,\"bscr\",1000000)","v":"Mapped"},{"$f":"XBRLMap(J10,J$81&\".\"&J$82&\".\"&$P10,$Z$1,$Z$2,CONFIGURATION!$B$10,\"BMA\",CONFIGURATION!$B$1,\"bscr\",1000000)","v":"Mapped"},{"$f":"XBRLMap(K10,K$81&\".\"&K$82&\".\"&$P10,$Z$1,$Z$2,CONFIGURATION!$B$10,\"BMA\",CONFIGURATION!$B$1,\"bscr\")","v":"Mapped"},{"$f":"XBRLMap(L10,L$81&\".\"&L$82&\".\"&$P10,$Z$1,$Z$2,CONFIGURATION!$B$10,\"BMA\",CONFIGURATION!$B$1,\"bscr\",1000000)","v":"Mapped"},{"$f":"XBRLMap(M10,M$81&\".\"&M$82&\".\"&$P10,$Z$1,$Z$2,CONFIGURATION!$B$10,\"BMA\",CONFIGURATION!$B$1,\"bscr\",1000000)","v":"Mapped"}]
[null,null,null,null,{"$f":"XBRLMap(E11,E$81&\".\"&E$82&\".\"&$P11,$Z$1,$Z$2,CONFIGURATION!$B$10,\"BMA\",CONFIGURATION!$B$1,\"bscr\")","v":"Mapped"},{"$f":"XBRLMap(F11,F$81&\".\"&F$82&\".\"&$P11,$Z$1,$Z$2,CONFIGURATION!$B$10,\"BMA\",CONFIGURATION!$B$1,\"bscr\",1000000)","v":"Mapped"},{"$f":"XBRLMap(G11,G$81&\".\"&G$82&\".\"&$P11,$Z$1,$Z$2,CONFIGURATION!$B$10,\"BMA\",CONFIGURATION!$B$1,\"bscr\",1000000)","v":"Mapped"},{"$f":"XBRLMap(H11,H$81&\".\"&H$82&\".\"&$P11,$Z$1,$Z$2,CONFIGURATION!$B$10,\"BMA\",CONFIGURATION!$B$1,\"bscr\")","v":"Mapped"},{"$f":"XBRLMap(I11,I$81&\".\"&I$82&\".\"&$P11,$Z$1,$Z$2,CONFIGURATION!$B$10,\"BMA\",CONFIGURATION!$B$1,\"bscr\",1000000)","v":"Mapped"},{"$f":"XBRLMap(J11,J$81&\".\"&J$82&\".\"&$P11,$Z$1,$Z$2,CONFIGURATION!$B$10,\"BMA\",CONFIGURATION!$B$1,\"bscr\",1000000)","v":"Mapped"},{"$f":"XBRLMap(K11,K$81&\".\"&K$82&\".\"&$P11,$Z$1,$Z$2,CONFIGURATION!$B$10,\"BMA\",CONFIGURATION!$B$1,\"bscr\")","v":"Mapped"},{"$f":"XBRLMap(L11,L$81&\".\"&L$82&\".\"&$P11,$Z$1,$Z$2,CONFIGURATION!$B$10,\"BMA\",CONFIGURATION!$B$1,\"bscr\",1000000)","v":"Mapped"},{"$f":"XBRLMap(M11,M$81&\".\"&M$82&\".\"&$P11,$Z$1,$Z$2,CONFIGURATION!$B$10,\"BMA\",CONFIGURATION!$B$1,\"bscr\",1000000)","v":"Mapped"}]
[null,null,null,null,{"$f":"XBRLMap(E12,E$81&\".\"&E$82&\".\"&$P12,$Z$1,$Z$2,CONFIGURATION!$B$10,\"BMA\",CONFIGURATION!$B$1,\"bscr\")","v":"Mapped"},{"$f":"XBRLMap(F12,F$81&\".\"&F$82&\".\"&$P12,$Z$1,$Z$2,CONFIGURATION!$B$10,\"BMA\",CONFIGURATION!$B$1,\"bscr\",1000000)","v":"Mapped"},{"$f":"XBRLMap(G12,G$81&\".\"&G$82&\".\"&$P12,$Z$1,$Z$2,CONFIGURATION!$B$10,\"BMA\",CONFIGURATION!$B$1,\"bscr\",1000000)","v":"Mapped"},{"$f":"XBRLMap(H12,H$81&\".\"&H$82&\".\"&$P12,$Z$1,$Z$2,CONFIGURATION!$B$10,\"BMA\",CONFIGURATION!$B$1,\"bscr\")","v":"Mapped"},{"$f":"XBRLMap(I12,I$81&\".\"&I$82&\".\"&$P12,$Z$1,$Z$2,CONFIGURATION!$B$10,\"BMA\",CONFIGURATION!$B$1,\"bscr\",1000000)","v":"Mapped"},{"$f":"XBRLMap(J12,J$81&\".\"&J$82&\".\"&$P12,$Z$1,$Z$2,CONFIGURATION!$B$10,\"BMA\",CONFIGURATION!$B$1,\"bscr\",1000000)","v":"Mapped"},{"$f":"XBRLMap(K12,K$81&\".\"&K$82&\".\"&$P12,$Z$1,$Z$2,CONFIGURATION!$B$10,\"BMA\",CONFIGURATION!$B$1,\"bscr\")","v":"Mapped"},{"$f":"XBRLMap(L12,L$81&\".\"&L$82&\".\"&$P12,$Z$1,$Z$2,CONFIGURATION!$B$10,\"BMA\",CONFIGURATION!$B$1,\"bscr\",1000000)","v":"Mapped"},{"$f":"XBRLMap(M12,M$81&\".\"&M$82&\".\"&$P12,$Z$1,$Z$2,CONFIGURATION!$B$10,\"BMA\",CONFIGURATION!$B$1,\"bscr\",1000000)","v":"Mapped"}]
[]
[]
[]
[]
[]
[null,null,null,null,{"$f":"XBRLMap(E19,E$81&\".\"&E$82&\".\"&$P19&\".\"&$Q19,$Z$1,$Z$2,CONFIGURATION!$B$10,\"BMA\",CONFIGURATION!$B$1,\"bscr\")","v":"Mapped"},{"$f":"XBRLMap(F19,F$81&\".\"&F$82&\".\"&$P19&\".\"&$Q19,$Z$1,$Z$2,CONFIGURATION!$B$10,\"BMA\",CONFIGURATION!$B$1,\"bscr\")","v":"Mapped"},{"$f":"XBRLMap(G19,G$81&\".\"&G$82&\".\"&$P19&\".\"&$Q19,$Z$1,$Z$2,CONFIGURATION!$B$10,\"BMA\",CONFIGURATION!$B$1,\"bscr\")","v":"Mapped"},{"$f":"XBRLMap(H19,H$81&\".\"&H$82&\".\"&$P19&\".\"&$Q19,$Z$1,$Z$2,CONFIGURATION!$B$10,\"BMA\",CONFIGURATION!$B$1,\"bscr\")","v":"Mapped"},{"$f":"XBRLMap(I19,I$81&\".\"&I$82&\".\"&$P19&\".\"&$Q19,$Z$1,$Z$2,CONFIGURATION!$B$10,\"BMA\",CONFIGURATION!$B$1,\"bscr\")","v":"Mapped"},{"$f":"XBRLMap(J19,J$81&\".\"&J$82&\".\"&$P19&\".\"&$Q19,$Z$1,$Z$2,CONFIGURATION!$B$10,\"BMA\",CONFIGURATION!$B$1,\"bscr\")","v":"Mapped"},{"$f":"XBRLMap(K19,K$81&\".\"&K$82&\".\"&$P19&\".\"&$Q19,$Z$1,$Z$2,CONFIGURATION!$B$10,\"BMA\",CONFIGURATION!$B$1,\"bscr\")","v":"Mapped"},{"$f":"XBRLMap(L19,L$81&\".\"&L$82&\".\"&$P19&\".\"&$Q19,$Z$1,$Z$2,CONFIGURATION!$B$10,\"BMA\",CONFIGURATION!$B$1,\"bscr\")","v":"Mapped"},{"$f":"XBRLMap(M19,M$81&\".\"&M$82&\".\"&$P19&\".\"&$Q19,$Z$1,$Z$2,CONFIGURATION!$B$10,\"BMA\",CONFIGURATION!$B$1,\"bscr\")","v":"Mapped"}]
[null,null,null,null,{"$f":"XBRLMap(E20,E$81&\".\"&E$82&\".\"&$P20&\".\"&$Q20,$Z$1,$Z$2,CONFIGURATION!$B$10,\"BMA\",CONFIGURATION!$B$1,\"bscr\")","v":"Mapped"},{"$f":"XBRLMap(F20,F$81&\".\"&F$82&\".\"&$P20&\".\"&$Q20,$Z$1,$Z$2,CONFIGURATION!$B$10,\"BMA\",CONFIGURATION!$B$1,\"bscr\")","v":"Mapped"},{"$f":"XBRLMap(G20,G$81&\".\"&G$82&\".\"&$P20&\".\"&$Q20,$Z$1,$Z$2,CONFIGURATION!$B$10,\"BMA\",CONFIGURATION!$B$1,\"bscr\")","v":"Mapped"},{"$f":"XBRLMap(H20,H$81&\".\"&H$82&\".\"&$P20&\".\"&$Q20,$Z$1,$Z$2,CONFIGURATION!$B$10,\"BMA\",CONFIGURATION!$B$1,\"bscr\")","v":"Mapped"},{"$f":"XBRLMap(I20,I$81&\".\"&I$82&\".\"&$P20&\".\"&$Q20,$Z$1,$Z$2,CONFIGURATION!$B$10,\"BMA\",CONFIGURATION!$B$1,\"bscr\")","v":"Mapped"},{"$f":"XBRLMap(J20,J$81&\".\"&J$82&\".\"&$P20&\".\"&$Q20,$Z$1,$Z$2,CONFIGURATION!$B$10,\"BMA\",CONFIGURATION!$B$1,\"bscr\")","v":"Mapped"},{"$f":"XBRLMap(K20,K$81&\".\"&K$82&\".\"&$P20&\".\"&$Q20,$Z$1,$Z$2,CONFIGURATION!$B$10,\"BMA\",CONFIGURATION!$B$1,\"bscr\")","v":"Mapped"},{"$f":"XBRLMap(L20,L$81&\".\"&L$82&\".\"&$P20&\".\"&$Q20,$Z$1,$Z$2,CONFIGURATION!$B$10,\"BMA\",CONFIGURATION!$B$1,\"bscr\")","v":"Mapped"},{"$f":"XBRLMap(M20,M$81&\".\"&M$82&\".\"&$P20&\".\"&$Q20,$Z$1,$Z$2,CONFIGURATION!$B$10,\"BMA\",CONFIGURATION!$B$1,\"bscr\")","v":"Mapped"}]
[null,null,null,null,{"$f":"XBRLMap(E21,E$81&\".\"&E$82&\".\"&$P21&\".\"&$Q21,$Z$1,$Z$2,CONFIGURATION!$B$10,\"BMA\",CONFIGURATION!$B$1,\"bscr\")","v":"Mapped"},{"$f":"XBRLMap(F21,F$81&\".\"&F$82&\".\"&$P21&\".\"&$Q21,$Z$1,$Z$2,CONFIGURATION!$B$10,\"BMA\",CONFIGURATION!$B$1,\"bscr\")","v":"Mapped"},{"$f":"XBRLMap(G21,G$81&\".\"&G$82&\".\"&$P21&\".\"&$Q21,$Z$1,$Z$2,CONFIGURATION!$B$10,\"BMA\",CONFIGURATION!$B$1,\"bscr\")","v":"Mapped"},{"$f":"XBRLMap(H21,H$81&\".\"&H$82&\".\"&$P21&\".\"&$Q21,$Z$1,$Z$2,CONFIGURATION!$B$10,\"BMA\",CONFIGURATION!$B$1,\"bscr\")","v":"Mapped"},{"$f":"XBRLMap(I21,I$81&\".\"&I$82&\".\"&$P21&\".\"&$Q21,$Z$1,$Z$2,CONFIGURATION!$B$10,\"BMA\",CONFIGURATION!$B$1,\"bscr\")","v":"Mapped"},{"$f":"XBRLMap(J21,J$81&\".\"&J$82&\".\"&$P21&\".\"&$Q21,$Z$1,$Z$2,CONFIGURATION!$B$10,\"BMA\",CONFIGURATION!$B$1,\"bscr\")","v":"Mapped"},{"$f":"XBRLMap(K21,K$81&\".\"&K$82&\".\"&$P21&\".\"&$Q21,$Z$1,$Z$2,CONFIGURATION!$B$10,\"BMA\",CONFIGURATION!$B$1,\"bscr\")","v":"Mapped"},{"$f":"XBRLMap(L21,L$81&\".\"&L$82&\".\"&$P21&\".\"&$Q21,$Z$1,$Z$2,CONFIGURATION!$B$10,\"BMA\",CONFIGURATION!$B$1,\"bscr\")","v":"Mapped"},{"$f":"XBRLMap(M21,M$81&\".\"&M$82&\".\"&$P21&\".\"&$Q21,$Z$1,$Z$2,CONFIGURATION!$B$10,\"BMA\",CONFIGURATION!$B$1,\"bscr\")","v":"Mapped"}]
[]
[]
[]
[]
[]
[null,null,null,null,{"$f":"XBRLMap(E28,E$81&\".\"&E$82&\".\"&$P28&\".\"&$Q28,$Z$1,$Z$2,CONFIGURATION!$B$10,\"BMA\",CONFIGURATION!$B$1,\"bscr\")","v":"Mapped"},{"$f":"XBRLMap(F28,F$81&\".\"&F$82&\".\"&$P28&\".\"&$Q28,$Z$1,$Z$2,CONFIGURATION!$B$10,\"BMA\",CONFIGURATION!$B$1,\"bscr\",1000000)","v":"Mapped"},{"$f":"XBRLMap(G28,G$81&\".\"&G$82&\".\"&$P28&\".\"&$Q28,$Z$1,$Z$2,CONFIGURATION!$B$10,\"BMA\",CONFIGURATION!$B$1,\"bscr\",1000000)","v":"Mapped"},{"$f":"XBRLMap(H28,H$81&\".\"&H$82&\".\"&$P28&\".\"&$Q28,$Z$1,$Z$2,CONFIGURATION!$B$10,\"BMA\",CONFIGURATION!$B$1,\"bscr\")","v":"Mapped"},{"$f":"XBRLMap(I28,I$81&\".\"&I$82&\".\"&$P28&\".\"&$Q28,$Z$1,$Z$2,CONFIGURATION!$B$10,\"BMA\",CONFIGURATION!$B$1,\"bscr\",1000000)","v":"Mapped"},{"$f":"XBRLMap(J28,J$81&\".\"&J$82&\".\"&$P28&\".\"&$Q28,$Z$1,$Z$2,CONFIGURATION!$B$10,\"BMA\",CONFIGURATION!$B$1,\"bscr\",1000000)","v":"Mapped"},{"$f":"XBRLMap(K28,K$81&\".\"&K$82&\".\"&$P28&\".\"&$Q28,$Z$1,$Z$2,CONFIGURATION!$B$10,\"BMA\",CONFIGURATION!$B$1,\"bscr\")","v":"Mapped"},{"$f":"XBRLMap(L28,L$81&\".\"&L$82&\".\"&$P28&\".\"&$Q28,$Z$1,$Z$2,CONFIGURATION!$B$10,\"BMA\",CONFIGURATION!$B$1,\"bscr\",1000000)","v":"Mapped"},{"$f":"XBRLMap(M28,M$81&\".\"&M$82&\".\"&$P28&\".\"&$Q28,$Z$1,$Z$2,CONFIGURATION!$B$10,\"BMA\",CONFIGURATION!$B$1,\"bscr\",1000000)","v":"Mapped"}]
[null,null,null,null,{"$f":"XBRLMap(E29,E$81&\".\"&E$82&\".\"&$P29&\".\"&$Q29,$Z$1,$Z$2,CONFIGURATION!$B$10,\"BMA\",CONFIGURATION!$B$1,\"bscr\")","v":"Mapped"},{"$f":"XBRLMap(F29,F$81&\".\"&F$82&\".\"&$P29&\".\"&$Q29,$Z$1,$Z$2,CONFIGURATION!$B$10,\"BMA\",CONFIGURATION!$B$1,\"bscr\",1000000)","v":"Mapped"},{"$f":"XBRLMap(G29,G$81&\".\"&G$82&\".\"&$P29&\".\"&$Q29,$Z$1,$Z$2,CONFIGURATION!$B$10,\"BMA\",CONFIGURATION!$B$1,\"bscr\",1000000)","v":"Mapped"},{"$f":"XBRLMap(H29,H$81&\".\"&H$82&\".\"&$P29&\".\"&$Q29,$Z$1,$Z$2,CONFIGURATION!$B$10,\"BMA\",CONFIGURATION!$B$1,\"bscr\")","v":"Mapped"},{"$f":"XBRLMap(I29,I$81&\".\"&I$82&\".\"&$P29&\".\"&$Q29,$Z$1,$Z$2,CONFIGURATION!$B$10,\"BMA\",CONFIGURATION!$B$1,\"bscr\",1000000)","v":"Mapped"},{"$f":"XBRLMap(J29,J$81&\".\"&J$82&\".\"&$P29&\".\"&$Q29,$Z$1,$Z$2,CONFIGURATION!$B$10,\"BMA\",CONFIGURATION!$B$1,\"bscr\",1000000)","v":"Mapped"},{"$f":"XBRLMap(K29,K$81&\".\"&K$82&\".\"&$P29&\".\"&$Q29,$Z$1,$Z$2,CONFIGURATION!$B$10,\"BMA\",CONFIGURATION!$B$1,\"bscr\")","v":"Mapped"},{"$f":"XBRLMap(L29,L$81&\".\"&L$82&\".\"&$P29&\".\"&$Q29,$Z$1,$Z$2,CONFIGURATION!$B$10,\"BMA\",CONFIGURATION!$B$1,\"bscr\",1000000)","v":"Mapped"},{"$f":"XBRLMap(M29,M$81&\".\"&M$82&\".\"&$P29&\".\"&$Q29,$Z$1,$Z$2,CONFIGURATION!$B$10,\"BMA\",CONFIGURATION!$B$1,\"bscr\",1000000)","v":"Mapped"}]
[null,null,null,null,{"$f":"XBRLMap(E30,E$81&\".\"&E$82&\".\"&$P30&\".\"&$Q30,$Z$1,$Z$2,CONFIGURATION!$B$10,\"BMA\",CONFIGURATION!$B$1,\"bscr\")","v":"Mapped"},{"$f":"XBRLMap(F30,F$81&\".\"&F$82&\".\"&$P30&\".\"&$Q30,$Z$1,$Z$2,CONFIGURATION!$B$10,\"BMA\",CONFIGURATION!$B$1,\"bscr\",1000000)","v":"Mapped"},{"$f":"XBRLMap(G30,G$81&\".\"&G$82&\".\"&$P30&\".\"&$Q30,$Z$1,$Z$2,CONFIGURATION!$B$10,\"BMA\",CONFIGURATION!$B$1,\"bscr\",1000000)","v":"Mapped"},{"$f":"XBRLMap(H30,H$81&\".\"&H$82&\".\"&$P30&\".\"&$Q30,$Z$1,$Z$2,CONFIGURATION!$B$10,\"BMA\",CONFIGURATION!$B$1,\"bscr\")","v":"Mapped"},{"$f":"XBRLMap(I30,I$81&\".\"&I$82&\".\"&$P30&\".\"&$Q30,$Z$1,$Z$2,CONFIGURATION!$B$10,\"BMA\",CONFIGURATION!$B$1,\"bscr\",1000000)","v":"Mapped"},{"$f":"XBRLMap(J30,J$81&\".\"&J$82&\".\"&$P30&\".\"&$Q30,$Z$1,$Z$2,CONFIGURATION!$B$10,\"BMA\",CONFIGURATION!$B$1,\"bscr\",1000000)","v":"Mapped"},{"$f":"XBRLMap(K30,K$81&\".\"&K$82&\".\"&$P30&\".\"&$Q30,$Z$1,$Z$2,CONFIGURATION!$B$10,\"BMA\",CONFIGURATION!$B$1,\"bscr\")","v":"Mapped"},{"$f":"XBRLMap(L30,L$81&\".\"&L$82&\".\"&$P30&\".\"&$Q30,$Z$1,$Z$2,CONFIGURATION!$B$10,\"BMA\",CONFIGURATION!$B$1,\"bscr\",1000000)","v":"Mapped"},{"$f":"XBRLMap(M30,M$81&\".\"&M$82&\".\"&$P30&\".\"&$Q30,$Z$1,$Z$2,CONFIGURATION!$B$10,\"BMA\",CONFIGURATION!$B$1,\"bscr\",1000000)","v":"Mapped"}]
[null,null,null,null,{"$f":"XBRLMap(E31,E$81&\".\"&E$82&\".\"&$P31&\".\"&$Q31,$Z$1,$Z$2,CONFIGURATION!$B$10,\"BMA\",CONFIGURATION!$B$1,\"bscr\")","v":"Mapped"},{"$f":"XBRLMap(F31,F$81&\".\"&F$82&\".\"&$P31&\".\"&$Q31,$Z$1,$Z$2,CONFIGURATION!$B$10,\"BMA\",CONFIGURATION!$B$1,\"bscr\",1000000)","v":"Mapped"},{"$f":"XBRLMap(G31,G$81&\".\"&G$82&\".\"&$P31&\".\"&$Q31,$Z$1,$Z$2,CONFIGURATION!$B$10,\"BMA\",CONFIGURATION!$B$1,\"bscr\",1000000)","v":"Mapped"},{"$f":"XBRLMap(H31,H$81&\".\"&H$82&\".\"&$P31&\".\"&$Q31,$Z$1,$Z$2,CONFIGURATION!$B$10,\"BMA\",CONFIGURATION!$B$1,\"bscr\")","v":"Mapped"},{"$f":"XBRLMap(I31,I$81&\".\"&I$82&\".\"&$P31&\".\"&$Q31,$Z$1,$Z$2,CONFIGURATION!$B$10,\"BMA\",CONFIGURATION!$B$1,\"bscr\",1000000)","v":"Mapped"},{"$f":"XBRLMap(J31,J$81&\".\"&J$82&\".\"&$P31&\".\"&$Q31,$Z$1,$Z$2,CONFIGURATION!$B$10,\"BMA\",CONFIGURATION!$B$1,\"bscr\",1000000)","v":"Mapped"},{"$f":"XBRLMap(K31,K$81&\".\"&K$82&\".\"&$P31&\".\"&$Q31,$Z$1,$Z$2,CONFIGURATION!$B$10,\"BMA\",CONFIGURATION!$B$1,\"bscr\")","v":"Mapped"},{"$f":"XBRLMap(L31,L$81&\".\"&L$82&\".\"&$P31&\".\"&$Q31,$Z$1,$Z$2,CONFIGURATION!$B$10,\"BMA\",CONFIGURATION!$B$1,\"bscr\",1000000)","v":"Mapped"},{"$f":"XBRLMap(M31,M$81&\".\"&M$82&\".\"&$P31&\".\"&$Q31,$Z$1,$Z$2,CONFIGURATION!$B$10,\"BMA\",CONFIGURATION!$B$1,\"bscr\",1000000)","v":"Mapped"}]
[null,null,null,null,{"$f":"XBRLMap(E32,E$81&\".\"&E$82&\".\"&$P32&\".\"&$Q32,$Z$1,$Z$2,CONFIGURATION!$B$10,\"BMA\",CONFIGURATION!$B$1,\"bscr\")","v":"Mapped"},{"$f":"XBRLMap(F32,F$81&\".\"&F$82&\".\"&$P32&\".\"&$Q32,$Z$1,$Z$2,CONFIGURATION!$B$10,\"BMA\",CONFIGURATION!$B$1,\"bscr\",1000000)","v":"Mapped"},{"$f":"XBRLMap(G32,G$81&\".\"&G$82&\".\"&$P32&\".\"&$Q32,$Z$1,$Z$2,CONFIGURATION!$B$10,\"BMA\",CONFIGURATION!$B$1,\"bscr\",1000000)","v":"Mapped"},{"$f":"XBRLMap(H32,H$81&\".\"&H$82&\".\"&$P32&\".\"&$Q32,$Z$1,$Z$2,CONFIGURATION!$B$10,\"BMA\",CONFIGURATION!$B$1,\"bscr\")","v":"Mapped"},{"$f":"XBRLMap(I32,I$81&\".\"&I$82&\".\"&$P32&\".\"&$Q32,$Z$1,$Z$2,CONFIGURATION!$B$10,\"BMA\",CONFIGURATION!$B$1,\"bscr\",1000000)","v":"Mapped"},{"$f":"XBRLMap(J32,J$81&\".\"&J$82&\".\"&$P32&\".\"&$Q32,$Z$1,$Z$2,CONFIGURATION!$B$10,\"BMA\",CONFIGURATION!$B$1,\"bscr\",1000000)","v":"Mapped"},{"$f":"XBRLMap(K32,K$81&\".\"&K$82&\".\"&$P32&\".\"&$Q32,$Z$1,$Z$2,CONFIGURATION!$B$10,\"BMA\",CONFIGURATION!$B$1,\"bscr\")","v":"Mapped"},{"$f":"XBRLMap(L32,L$81&\".\"&L$82&\".\"&$P32&\".\"&$Q32,$Z$1,$Z$2,CONFIGURATION!$B$10,\"BMA\",CONFIGURATION!$B$1,\"bscr\",1000000)","v":"Mapped"},{"$f":"XBRLMap(M32,M$81&\".\"&M$82&\".\"&$P32&\".\"&$Q32,$Z$1,$Z$2,CONFIGURATION!$B$10,\"BMA\",CONFIGURATION!$B$1,\"bscr\",1000000)","v":"Mapped"}]
[null,null,null,null,{"$f":"XBRLMap(E33,E$81&\".\"&E$82&\".\"&$P33&\".\"&$Q33,$Z$1,$Z$2,CONFIGURATION!$B$10,\"BMA\",CONFIGURATION!$B$1,\"bscr\")","v":"Mapped"},{"$f":"XBRLMap(F33,F$81&\".\"&F$82&\".\"&$P33&\".\"&$Q33,$Z$1,$Z$2,CONFIGURATION!$B$10,\"BMA\",CONFIGURATION!$B$1,\"bscr\",1000000)","v":"Mapped"},{"$f":"XBRLMap(G33,G$81&\".\"&G$82&\".\"&$P33&\".\"&$Q33,$Z$1,$Z$2,CONFIGURATION!$B$10,\"BMA\",CONFIGURATION!$B$1,\"bscr\",1000000)","v":"Mapped"},{"$f":"XBRLMap(H33,H$81&\".\"&H$82&\".\"&$P33&\".\"&$Q33,$Z$1,$Z$2,CONFIGURATION!$B$10,\"BMA\",CONFIGURATION!$B$1,\"bscr\")","v":"Mapped"},{"$f":"XBRLMap(I33,I$81&\".\"&I$82&\".\"&$P33&\".\"&$Q33,$Z$1,$Z$2,CONFIGURATION!$B$10,\"BMA\",CONFIGURATION!$B$1,\"bscr\",1000000)","v":"Mapped"},{"$f":"XBRLMap(J33,J$81&\".\"&J$82&\".\"&$P33&\".\"&$Q33,$Z$1,$Z$2,CONFIGURATION!$B$10,\"BMA\",CONFIGURATION!$B$1,\"bscr\",1000000)","v":"Mapped"},{"$f":"XBRLMap(K33,K$81&\".\"&K$82&\".\"&$P33&\".\"&$Q33,$Z$1,$Z$2,CONFIGURATION!$B$10,\"BMA\",CONFIGURATION!$B$1,\"bscr\")","v":"Mapped"},{"$f":"XBRLMap(L33,L$81&\".\"&L$82&\".\"&$P33&\".\"&$Q33,$Z$1,$Z$2,CONFIGURATION!$B$10,\"BMA\",CONFIGURATION!$B$1,\"bscr\",1000000)","v":"Mapped"},{"$f":"XBRLMap(M33,M$81&\".\"&M$82&\".\"&$P33&\".\"&$Q33,$Z$1,$Z$2,CONFIGURATION!$B$10,\"BMA\",CONFIGURATION!$B$1,\"bscr\",1000000)","v":"Mapped"}]
[]
[]
[null,null,null,null,null,null,null,null,null,null,"brrt_Methodology"]
[null,null,null,null,null,null,null,null,null,null,{"$f":"XBRLMap(C36,K$107&\".\"&K$82&\".\"&$P36&\".\"&$Q36,$Z$1,$Z$2,CONFIGURATION!$B$10,\"BMA\",CONFIGURATION!$B$1,\"bscr\")","v":"Mapped"}]
[]
[]
[]
[]
[]
[null,null,null,null,{"$f":"XBRLMap(E43,E$81&\".\"&E$82&\".\"&$P43&\".\"&$Q43&\".\"&$R43,$Z$1,$Z$2,CONFIGURATION!$B$10,\"BMA\",CONFIGURATION!$B$1,\"bscr\")","v":"Mapped"},{"$f":"XBRLMap(F43,F$81&\".\"&F$82&\".\"&$P43&\".\"&$Q43&\".\"&$R43,$Z$1,$Z$2,CONFIGURATION!$B$10,\"BMA\",CONFIGURATION!$B$1,\"bscr\",1000000)","v":"Mapped"},{"$f":"XBRLMap(G43,G$81&\".\"&G$82&\".\"&$P43&\".\"&$Q43&\".\"&$R43,$Z$1,$Z$2,CONFIGURATION!$B$10,\"BMA\",CONFIGURATION!$B$1,\"bscr\",1000000)","v":"Mapped"},{"$f":"XBRLMap(H43,H$81&\".\"&H$82&\".\"&$P43&\".\"&$Q43&\".\"&$R43,$Z$1,$Z$2,CONFIGURATION!$B$10,\"BMA\",CONFIGURATION!$B$1,\"bscr\")","v":"Mapped"},{"$f":"XBRLMap(I43,I$81&\".\"&I$82&\".\"&$P43&\".\"&$Q43&\".\"&$R43,$Z$1,$Z$2,CONFIGURATION!$B$10,\"BMA\",CONFIGURATION!$B$1,\"bscr\",1000000)","v":"Mapped"},{"$f":"XBRLMap(J43,J$81&\".\"&J$82&\".\"&$P43&\".\"&$Q43&\".\"&$R43,$Z$1,$Z$2,CONFIGURATION!$B$10,\"BMA\",CONFIGURATION!$B$1,\"bscr\",1000000)","v":"Mapped"},{"$f":"XBRLMap(K43,K$81&\".\"&K$82&\".\"&$P43&\".\"&$Q43&\".\"&$R43,$Z$1,$Z$2,CONFIGURATION!$B$10,\"BMA\",CONFIGURATION!$B$1,\"bscr\")","v":"Mapped"},{"$f":"XBRLMap(L43,L$81&\".\"&L$82&\".\"&$P43&\".\"&$Q43&\".\"&$R43,$Z$1,$Z$2,CONFIGURATION!$B$10,\"BMA\",CONFIGURATION!$B$1,\"bscr\",1000000)","v":"Mapped"},{"$f":"XBRLMap(M43,M$81&\".\"&M$82&\".\"&$P43&\".\"&$Q43&\".\"&$R43,$Z$1,$Z$2,CONFIGURATION!$B$10,\"BMA\",CONFIGURATION!$B$1,\"bscr\",1000000)","v":"Mapped"}]
[null,null,null,null,{"$f":"XBRLMap(E44,E$81&\".\"&E$82&\".\"&$P44&\".\"&$Q44&\".\"&$R44,$Z$1,$Z$2,CONFIGURATION!$B$10,\"BMA\",CONFIGURATION!$B$1,\"bscr\")","v":"Mapped"},{"$f":"XBRLMap(F44,F$81&\".\"&F$82&\".\"&$P44&\".\"&$Q44&\".\"&$R44,$Z$1,$Z$2,CONFIGURATION!$B$10,\"BMA\",CONFIGURATION!$B$1,\"bscr\",1000000)","v":"Mapped"},{"$f":"XBRLMap(G44,G$81&\".\"&G$82&\".\"&$P44&\".\"&$Q44&\".\"&$R44,$Z$1,$Z$2,CONFIGURATION!$B$10,\"BMA\",CONFIGURATION!$B$1,\"bscr\",1000000)","v":"Mapped"},{"$f":"XBRLMap(H44,H$81&\".\"&H$82&\".\"&$P44&\".\"&$Q44&\".\"&$R44,$Z$1,$Z$2,CONFIGURATION!$B$10,\"BMA\",CONFIGURATION!$B$1,\"bscr\")","v":"Mapped"},{"$f":"XBRLMap(I44,I$81&\".\"&I$82&\".\"&$P44&\".\"&$Q44&\".\"&$R44,$Z$1,$Z$2,CONFIGURATION!$B$10,\"BMA\",CONFIGURATION!$B$1,\"bscr\",1000000)","v":"Mapped"},{"$f":"XBRLMap(J44,J$81&\".\"&J$82&\".\"&$P44&\".\"&$Q44&\".\"&$R44,$Z$1,$Z$2,CONFIGURATION!$B$10,\"BMA\",CONFIGURATION!$B$1,\"bscr\",1000000)","v":"Mapped"},{"$f":"XBRLMap(K44,K$81&\".\"&K$82&\".\"&$P44&\".\"&$Q44&\".\"&$R44,$Z$1,$Z$2,CONFIGURATION!$B$10,\"BMA\",CONFIGURATION!$B$1,\"bscr\")","v":"Mapped"},{"$f":"XBRLMap(L44,L$81&\".\"&L$82&\".\"&$P44&\".\"&$Q44&\".\"&$R44,$Z$1,$Z$2,CONFIGURATION!$B$10,\"BMA\",CONFIGURATION!$B$1,\"bscr\",1000000)","v":"Mapped"},{"$f":"XBRLMap(M44,M$81&\".\"&M$82&\".\"&$P44&\".\"&$Q44&\".\"&$R44,$Z$1,$Z$2,CONFIGURATION!$B$10,\"BMA\",CONFIGURATION!$B$1,\"bscr\",1000000)","v":"Mapped"}]
[null,null,null,null,{"$f":"XBRLMap(E45,E$81&\".\"&E$82&\".\"&$P45&\".\"&$Q45&\".\"&$R45,$Z$1,$Z$2,CONFIGURATION!$B$10,\"BMA\",CONFIGURATION!$B$1,\"bscr\")","v":"Mapped"},{"$f":"XBRLMap(F45,F$81&\".\"&F$82&\".\"&$P45&\".\"&$Q45&\".\"&$R45,$Z$1,$Z$2,CONFIGURATION!$B$10,\"BMA\",CONFIGURATION!$B$1,\"bscr\",1000000)","v":"Mapped"},{"$f":"XBRLMap(G45,G$81&\".\"&G$82&\".\"&$P45&\".\"&$Q45&\".\"&$R45,$Z$1,$Z$2,CONFIGURATION!$B$10,\"BMA\",CONFIGURATION!$B$1,\"bscr\",1000000)","v":"Mapped"},{"$f":"XBRLMap(H45,H$81&\".\"&H$82&\".\"&$P45&\".\"&$Q45&\".\"&$R45,$Z$1,$Z$2,CONFIGURATION!$B$10,\"BMA\",CONFIGURATION!$B$1,\"bscr\")","v":"Mapped"},{"$f":"XBRLMap(I45,I$81&\".\"&I$82&\".\"&$P45&\".\"&$Q45&\".\"&$R45,$Z$1,$Z$2,CONFIGURATION!$B$10,\"BMA\",CONFIGURATION!$B$1,\"bscr\",1000000)","v":"Mapped"},{"$f":"XBRLMap(J45,J$81&\".\"&J$82&\".\"&$P45&\".\"&$Q45&\".\"&$R45,$Z$1,$Z$2,CONFIGURATION!$B$10,\"BMA\",CONFIGURATION!$B$1,\"bscr\",1000000)","v":"Mapped"},{"$f":"XBRLMap(K45,K$81&\".\"&K$82&\".\"&$P45&\".\"&$Q45&\".\"&$R45,$Z$1,$Z$2,CONFIGURATION!$B$10,\"BMA\",CONFIGURATION!$B$1,\"bscr\")","v":"Mapped"},{"$f":"XBRLMap(L45,L$81&\".\"&L$82&\".\"&$P45&\".\"&$Q45&\".\"&$R45,$Z$1,$Z$2,CONFIGURATION!$B$10,\"BMA\",CONFIGURATION!$B$1,\"bscr\",1000000)","v":"Mapped"},{"$f":"XBRLMap(M45,M$81&\".\"&M$82&\".\"&$P45&\".\"&$Q45&\".\"&$R45,$Z$1,$Z$2,CONFIGURATION!$B$10,\"BMA\",CONFIGURATION!$B$1,\"bscr\",1000000)","v":"Mapped"}]
[null,null,null,null,{"$f":"XBRLMap(E46,E$81&\".\"&E$82&\".\"&$P46&\".\"&$Q46&\".\"&$R46,$Z$1,$Z$2,CONFIGURATION!$B$10,\"BMA\",CONFIGURATION!$B$1,\"bscr\")","v":"Mapped"},{"$f":"XBRLMap(F46,F$81&\".\"&F$82&\".\"&$P46&\".\"&$Q46&\".\"&$R46,$Z$1,$Z$2,CONFIGURATION!$B$10,\"BMA\",CONFIGURATION!$B$1,\"bscr\",1000000)","v":"Mapped"},{"$f":"XBRLMap(G46,G$81&\".\"&G$82&\".\"&$P46&\".\"&$Q46&\".\"&$R46,$Z$1,$Z$2,CONFIGURATION!$B$10,\"BMA\",CONFIGURATION!$B$1,\"bscr\",1000000)","v":"Mapped"},{"$f":"XBRLMap(H46,H$81&\".\"&H$82&\".\"&$P46&\".\"&$Q46&\".\"&$R46,$Z$1,$Z$2,CONFIGURATION!$B$10,\"BMA\",CONFIGURATION!$B$1,\"bscr\")","v":"Mapped"},{"$f":"XBRLMap(I46,I$81&\".\"&I$82&\".\"&$P46&\".\"&$Q46&\".\"&$R46,$Z$1,$Z$2,CONFIGURATION!$B$10,\"BMA\",CONFIGURATION!$B$1,\"bscr\",1000000)","v":"Mapped"},{"$f":"XBRLMap(J46,J$81&\".\"&J$82&\".\"&$P46&\".\"&$Q46&\".\"&$R46,$Z$1,$Z$2,CONFIGURATION!$B$10,\"BMA\",CONFIGURATION!$B$1,\"bscr\",1000000)","v":"Mapped"},{"$f":"XBRLMap(K46,K$81&\".\"&K$82&\".\"&$P46&\".\"&$Q46&\".\"&$R46,$Z$1,$Z$2,CONFIGURATION!$B$10,\"BMA\",CONFIGURATION!$B$1,\"bscr\")","v":"Mapped"},{"$f":"XBRLMap(L46,L$81&\".\"&L$82&\".\"&$P46&\".\"&$Q46&\".\"&$R46,$Z$1,$Z$2,CONFIGURATION!$B$10,\"BMA\",CONFIGURATION!$B$1,\"bscr\",1000000)","v":"Mapped"},{"$f":"XBRLMap(M46,M$81&\".\"&M$82&\".\"&$P46&\".\"&$Q46&\".\"&$R46,$Z$1,$Z$2,CONFIGURATION!$B$10,\"BMA\",CONFIGURATION!$B$1,\"bscr\",1000000)","v":"Mapped"}]
[]
[]
[null,null,null,null,null,null,null,null,null,null,"brrt_ReasonsForNotModelingContracts"]
[null,null,null,null,null,null,null,null,null,null,{"$f":"XBRLMap(C49,K$120&\".\"&K$82&\".\"&$P49&\".\"&$Q49&\".\"&$R49,$Z$1,$Z$2,CONFIGURATION!$B$10,\"BMA\",CONFIGURATION!$B$1,\"bscr\")","v":"Mapped"}]
[null,null,null,null,null,null,null,null,null,null,"brrt_ContractsWrittenDescriptionOfInsurerPracticesFromAccumulationPerspective"]
[null,null,null,null,null,null,null,null,null,null,{"$f":"XBRLMap(C53,K$122&\".\"&K$82&\".\"&$P53&\".\"&$Q53&\".\"&$R53,$Z$1,$Z$2,CONFIGURATION!$B$10,\"BMA\",CONFIGURATION!$B$1,\"bscr\")","v":"Mapped"}]
[]
[]
[]
[]
[]
[]
[]
[null,null,null,null,{"$f":"XBRLMap(E60,E$81&\".\"&E$82&\".\"&$P60&\".\"&$Q60,$Z$1,$Z$2,CONFIGURATION!$B$10,\"BMA\",CONFIGURATION!$B$1,\"bscr\")","v":"Mapped"},{"$f":"XBRLMap(F60,F$81&\".\"&F$82&\".\"&$P60&\".\"&$Q60,$Z$1,$Z$2,CONFIGURATION!$B$10,\"BMA\",CONFIGURATION!$B$1,\"bscr\",1000000)","v":"Mapped"},{"$f":"XBRLMap(G60,G$81&\".\"&G$82&\".\"&$P60&\".\"&$Q60,$Z$1,$Z$2,CONFIGURATION!$B$10,\"BMA\",CONFIGURATION!$B$1,\"bscr\",1000000)","v":"Mapped"},{"$f":"XBRLMap(H60,H$81&\".\"&H$82&\".\"&$P60&\".\"&$Q60,$Z$1,$Z$2,CONFIGURATION!$B$10,\"BMA\",CONFIGURATION!$B$1,\"bscr\")","v":"Mapped"},{"$f":"XBRLMap(I60,I$81&\".\"&I$82&\".\"&$P60&\".\"&$Q60,$Z$1,$Z$2,CONFIGURATION!$B$10,\"BMA\",CONFIGURATION!$B$1,\"bscr\",1000000)","v":"Mapped"},{"$f":"XBRLMap(J60,J$81&\".\"&J$82&\".\"&$P60&\".\"&$Q60,$Z$1,$Z$2,CONFIGURATION!$B$10,\"BMA\",CONFIGURATION!$B$1,\"bscr\",1000000)","v":"Mapped"},{"$f":"XBRLMap(K60,K$81&\".\"&K$82&\".\"&$P60&\".\"&$Q60,$Z$1,$Z$2,CONFIGURATION!$B$10,\"BMA\",CONFIGURATION!$B$1,\"bscr\")","v":"Mapped"},{"$f":"XBRLMap(L60,L$81&\".\"&L$82&\".\"&$P60&\".\"&$Q60,$Z$1,$Z$2,CONFIGURATION!$B$10,\"BMA\",CONFIGURATION!$B$1,\"bscr\",1000000)","v":"Mapped"},{"$f":"XBRLMap(M60,M$81&\".\"&M$82&\".\"&$P60&\".\"&$Q60,$Z$1,$Z$2,CONFIGURATION!$B$10,\"BMA\",CONFIGURATION!$B$1,\"bscr\",1000000)","v":"Mapped"}]
[null,null,null,null,{"$f":"XBRLMap(E61,E$81&\".\"&E$82&\".\"&$P61&\".\"&$Q61,$Z$1,$Z$2,CONFIGURATION!$B$10,\"BMA\",CONFIGURATION!$B$1,\"bscr\")","v":"Mapped"},{"$f":"XBRLMap(F61,F$81&\".\"&F$82&\".\"&$P61&\".\"&$Q61,$Z$1,$Z$2,CONFIGURATION!$B$10,\"BMA\",CONFIGURATION!$B$1,\"bscr\",1000000)","v":"Mapped"},{"$f":"XBRLMap(G61,G$81&\".\"&G$82&\".\"&$P61&\".\"&$Q61,$Z$1,$Z$2,CONFIGURATION!$B$10,\"BMA\",CONFIGURATION!$B$1,\"bscr\",1000000)","v":"Mapped"},{"$f":"XBRLMap(H61,H$81&\".\"&H$82&\".\"&$P61&\".\"&$Q61,$Z$1,$Z$2,CONFIGURATION!$B$10,\"BMA\",CONFIGURATION!$B$1,\"bscr\")","v":"Mapped"},{"$f":"XBRLMap(I61,I$81&\".\"&I$82&\".\"&$P61&\".\"&$Q61,$Z$1,$Z$2,CONFIGURATION!$B$10,\"BMA\",CONFIGURATION!$B$1,\"bscr\",1000000)","v":"Mapped"},{"$f":"XBRLMap(J61,J$81&\".\"&J$82&\".\"&$P61&\".\"&$Q61,$Z$1,$Z$2,CONFIGURATION!$B$10,\"BMA\",CONFIGURATION!$B$1,\"bscr\",1000000)","v":"Mapped"},{"$f":"XBRLMap(K61,K$81&\".\"&K$82&\".\"&$P61&\".\"&$Q61,$Z$1,$Z$2,CONFIGURATION!$B$10,\"BMA\",CONFIGURATION!$B$1,\"bscr\")","v":"Mapped"},{"$f":"XBRLMap(L61,L$81&\".\"&L$82&\".\"&$P61&\".\"&$Q61,$Z$1,$Z$2,CONFIGURATION!$B$10,\"BMA\",CONFIGURATION!$B$1,\"bscr\",1000000)","v":"Mapped"},{"$f":"XBRLMap(M61,M$81&\".\"&M$82&\".\"&$P61&\".\"&$Q61,$Z$1,$Z$2,CONFIGURATION!$B$10,\"BMA\",CONFIGURATION!$B$1,\"bscr\",1000000)","v":"Mapped"}]
[null,null,null,null,{"$f":"XBRLMap(E62,E$81&\".\"&E$82&\".\"&$P62&\".\"&$Q62,$Z$1,$Z$2,CONFIGURATION!$B$10,\"BMA\",CONFIGURATION!$B$1,\"bscr\")","v":"Mapped"},{"$f":"XBRLMap(F62,F$81&\".\"&F$82&\".\"&$P62&\".\"&$Q62,$Z$1,$Z$2,CONFIGURATION!$B$10,\"BMA\",CONFIGURATION!$B$1,\"bscr\",1000000)","v":"Mapped"},{"$f":"XBRLMap(G62,G$81&\".\"&G$82&\".\"&$P62&\".\"&$Q62,$Z$1,$Z$2,CONFIGURATION!$B$10,\"BMA\",CONFIGURATION!$B$1,\"bscr\",1000000)","v":"Mapped"},{"$f":"XBRLMap(H62,H$81&\".\"&H$82&\".\"&$P62&\".\"&$Q62,$Z$1,$Z$2,CONFIGURATION!$B$10,\"BMA\",CONFIGURATION!$B$1,\"bscr\")","v":"Mapped"},{"$f":"XBRLMap(I62,I$81&\".\"&I$82&\".\"&$P62&\".\"&$Q62,$Z$1,$Z$2,CONFIGURATION!$B$10,\"BMA\",CONFIGURATION!$B$1,\"bscr\",1000000)","v":"Mapped"},{"$f":"XBRLMap(J62,J$81&\".\"&J$82&\".\"&$P62&\".\"&$Q62,$Z$1,$Z$2,CONFIGURATION!$B$10,\"BMA\",CONFIGURATION!$B$1,\"bscr\",1000000)","v":"Mapped"},{"$f":"XBRLMap(K62,K$81&\".\"&K$82&\".\"&$P62&\".\"&$Q62,$Z$1,$Z$2,CONFIGURATION!$B$10,\"BMA\",CONFIGURATION!$B$1,\"bscr\")","v":"Mapped"},{"$f":"XBRLMap(L62,L$81&\".\"&L$82&\".\"&$P62&\".\"&$Q62,$Z$1,$Z$2,CONFIGURATION!$B$10,\"BMA\",CONFIGURATION!$B$1,\"bscr\",1000000)","v":"Mapped"},{"$f":"XBRLMap(M62,M$81&\".\"&M$82&\".\"&$P62&\".\"&$Q62,$Z$1,$Z$2,CONFIGURATION!$B$10,\"BMA\",CONFIGURATION!$B$1,\"bscr\",1000000)","v":"Mapped"}]
[null,null,null,null,{"$f":"XBRLMap(E63,E$81&\".\"&E$82&\".\"&$P63&\".\"&$Q63,$Z$1,$Z$2,CONFIGURATION!$B$10,\"BMA\",CONFIGURATION!$B$1,\"bscr\")","v":"Mapped"},{"$f":"XBRLMap(F63,F$81&\".\"&F$82&\".\"&$P63&\".\"&$Q63,$Z$1,$Z$2,CONFIGURATION!$B$10,\"BMA\",CONFIGURATION!$B$1,\"bscr\",1000000)","v":"Mapped"},{"$f":"XBRLMap(G63,G$81&\".\"&G$82&\".\"&$P63&\".\"&$Q63,$Z$1,$Z$2,CONFIGURATION!$B$10,\"BMA\",CONFIGURATION!$B$1,\"bscr\",1000000)","v":"Mapped"},{"$f":"XBRLMap(H63,H$81&\".\"&H$82&\".\"&$P63&\".\"&$Q63,$Z$1,$Z$2,CONFIGURATION!$B$10,\"BMA\",CONFIGURATION!$B$1,\"bscr\")","v":"Mapped"},{"$f":"XBRLMap(I63,I$81&\".\"&I$82&\".\"&$P63&\".\"&$Q63,$Z$1,$Z$2,CONFIGURATION!$B$10,\"BMA\",CONFIGURATION!$B$1,\"bscr\",1000000)","v":"Mapped"},{"$f":"XBRLMap(J63,J$81&\".\"&J$82&\".\"&$P63&\".\"&$Q63,$Z$1,$Z$2,CONFIGURATION!$B$10,\"BMA\",CONFIGURATION!$B$1,\"bscr\",1000000)","v":"Mapped"},{"$f":"XBRLMap(K63,K$81&\".\"&K$82&\".\"&$P63&\".\"&$Q63,$Z$1,$Z$2,CONFIGURATION!$B$10,\"BMA\",CONFIGURATION!$B$1,\"bscr\")","v":"Mapped"},{"$f":"XBRLMap(L63,L$81&\".\"&L$82&\".\"&$P63&\".\"&$Q63,$Z$1,$Z$2,CONFIGURATION!$B$10,\"BMA\",CONFIGURATION!$B$1,\"bscr\",1000000)","v":"Mapped"},{"$f":"XBRLMap(M63,M$81&\".\"&M$82&\".\"&$P63&\".\"&$Q63,$Z$1,$Z$2,CONFIGURATION!$B$10,\"BMA\",CONFIGURATION!$B$1,\"bscr\",1000000)","v":"Mapped"}]
[null,null,null,null,{"$f":"XBRLMap(E64,E$81&\".\"&E$82&\".\"&$P64&\".\"&$Q64,$Z$1,$Z$2,CONFIGURATION!$B$10,\"BMA\",CONFIGURATION!$B$1,\"bscr\")","v":"Mapped"},{"$f":"XBRLMap(F64,F$81&\".\"&F$82&\".\"&$P64&\".\"&$Q64,$Z$1,$Z$2,CONFIGURATION!$B$10,\"BMA\",CONFIGURATION!$B$1,\"bscr\",1000000)","v":"Mapped"},{"$f":"XBRLMap(G64,G$81&\".\"&G$82&\".\"&$P64&\".\"&$Q64,$Z$1,$Z$2,CONFIGURATION!$B$10,\"BMA\",CONFIGURATION!$B$1,\"bscr\",1000000)","v":"Mapped"},{"$f":"XBRLMap(H64,H$81&\".\"&H$82&\".\"&$P64&\".\"&$Q64,$Z$1,$Z$2,CONFIGURATION!$B$10,\"BMA\",CONFIGURATION!$B$1,\"bscr\")","v":"Mapped"},{"$f":"XBRLMap(I64,I$81&\".\"&I$82&\".\"&$P64&\".\"&$Q64,$Z$1,$Z$2,CONFIGURATION!$B$10,\"BMA\",CONFIGURATION!$B$1,\"bscr\",1000000)","v":"Mapped"},{"$f":"XBRLMap(J64,J$81&\".\"&J$82&\".\"&$P64&\".\"&$Q64,$Z$1,$Z$2,CONFIGURATION!$B$10,\"BMA\",CONFIGURATION!$B$1,\"bscr\",1000000)","v":"Mapped"},{"$f":"XBRLMap(K64,K$81&\".\"&K$82&\".\"&$P64&\".\"&$Q64,$Z$1,$Z$2,CONFIGURATION!$B$10,\"BMA\",CONFIGURATION!$B$1,\"bscr\")","v":"Mapped"},{"$f":"XBRLMap(L64,L$81&\".\"&L$82&\".\"&$P64&\".\"&$Q64,$Z$1,$Z$2,CONFIGURATION!$B$10,\"BMA\",CONFIGURATION!$B$1,\"bscr\",1000000)","v":"Mapped"},{"$f":"XBRLMap(M64,M$81&\".\"&M$82&\".\"&$P64&\".\"&$Q64,$Z$1,$Z$2,CONFIGURATION!$B$10,\"BMA\",CONFIGURATION!$B$1,\"bscr\",1000000)","v":"Mapped"}]
[]
[null,null,null,null,null,null,null,null,null,null,"brrt_ReasonsForContractsNotModelable"]
[null,null,null,null,null,null,null,null,null,null,{"$f":"XBRLMap(C67,$K137&\".\"&K$82&\".\"&P67&\".\"&Q67,$Z$1,$Z$2,CONFIGURATION!$B$10,\"BMA\",CONFIGURATION!$B$1,\"bscr\",1000000)","v":"Mapped"}]
[null,null,null,null,null,null,null,null,null,null,"brrt_ContractsWrittenDescriptionOfInsurerPracticesFromAccumulationPerspective"]
[null,null,null,null,null,null,null,null,null,null,{"$f":"XBRLMap(C74,$K139&\".\"&K$82&\".\"&P74,$Z$1,$Z$2,CONFIGURATION!$B$10,\"BMA\",CONFIGURATION!$B$1,\"bscr\",1000000)","v":"Mapped"}]
[]
[]
[]
[null,null,null,null,"bma_class3A_StatementComponentAxis3_bma_DataAnalysis_UsSpecificContractsAllExposures","bma_class3A_StatementComponentAxis3_bma_DataAnalysis_UsSpecificContractsAllExposures",null,"bma_class3A_StatementComponentAxis3_bma_DataAnalysis_AllOtherContractsAllExposures","bma_class3A_StatementComponentAxis3_bma_DataAnalysis_AllOtherContractsAllExposures",null,"bma_class3A_StatementComponentAxis3_bma_DataAnalysis_Total",null,"bma_class3A_StatementComponentAxis3_bma_DataAnalysis_Total"]

{"sheet":"Schedule X(g)","index":58,"n_rows":100,"n_cols":27,"rows_kept":100,"cut":false,"hidden":false,"merged":[[0,1,0,4],[0,7,0,8],[20,1,22,8],[24,2,24,8],[2,1,2,2],[6,3,6,4],[6,5,6,6],[6,7,6,8]]}
[null,"CATASTROPHE RISK RETURN: REINSURANCE DISCLOSURES (TABLE 9F)",null,null,null,null,null,{"$f":"HYPERLINK(\"#'Index'!A1\",\"Return to Index\")","v":"Return to Index"}]
[null,{"$f":"'Company Information'!C7","v":"Enter Company Name"},null,null,null,null,null,null,null,null,null,null,null,null,null,null,null,null,null,null,null,null,null,null,{"$f":"'Company Information'!L1","v":"01/01/2019"}]
[null,{"$f":"'Company Information'!C3+1","v":"2020-01-01"},null,null,null,null,null,null,"SCHEDULE X(g)",null,null,null,null,null,null,null,null,null,null,null,null,null,null,null,{"$f":"'Company Information'!L2","v":"12/31/2019"}]
[]
[null,null,"Reinsurance or Retro information:"]
[]
[null,null,null,"U.S. specific contracts",null,"Worldwide contracts",null,"All other contracts"]
[null,null,null,"Premium ","Occurrence Limit Provided ","Premium ","Occurrence Limit provided ","Premium ","Occurrence Limit provided "]
[null,null,null,"US$M","US$M","US$M","US$M","US$M","US$M"]
[null,null,{"$f":"+C92","v":"Insurance linked securities protection"},{"$f":"Import!I6945","v":0},{"$f":"Import!I6955","v":0},{"$f":"Import!I6965","v":0},{"$f":"Import!I6975","v":0},{"$f":"Import!I6985","v":0},{"$f":"Import!I6995","v":0},null,null,null,"brrt_ReinsuranceRetroContractTypeAxis_brrt_InsuranceLinkedSecuritiesProtectionMember",null,null,null,null,null,null,null,null,null,null,null,null,null,"bma_ReinsuranceDisclosures_IlsProtection"]
[null,null,{"$f":"+C93","v":"Industry loss warranty contracts"},{"$f":"Import!I6946","v":0},{"$f":"Import!I6956","v":0},{"$f":"Import!I6966","v":0},{"$f":"Import!I6976","v":0},{"$f":"Import!I6986","v":0},{"$f":"Import!I6996","v":0},null,null,null,"brrt_ReinsuranceRetroContractTypeAxis_brrt_IndustryLossWarrantyContractsMember",null,null,null,null,null,null,null,null,null,null,null,null,null,"bma_ReinsuranceDisclosures_IlwContracts"]
[null,null,{"$f":"+C94","v":"Other contracts and non-traditional methods of risk mitigation/assumption"},{"$f":"Import!I6947","v":0},{"$f":"Import!I6957","v":0},{"$f":"Import!I6967","v":0},{"$f":"Import!I6977","v":0},{"$f":"Import!I6987","v":0},{"$f":"Import!I6997","v":0},null,null,null,"brrt_ReinsuranceRetroContractTypeAxis_brrt_OtherContractsAndNonTraditionalMethodsOfRiskMitigationOrAssumptionMember",null,null,null,null,null,null,null,null,null,null,null,null,null,"bma_ReinsuranceDisclosures_OtherContractsAndNontraditionalMethodsOfRiskMitigationassumption"]
[null,null,{"$f":"+C95","v":"Property catastrophe contracts"},{"$f":"Import!I6948","v":0},{"$f":"Import!I6958","v":0},{"$f":"Import!I6968","v":0},{"$f":"Import!I6978","v":0},{"$f":"Import!I6988","v":0},{"$f":"Import!I6998","v":0},null,null,null,"brrt_ReinsuranceRetroContractTypeAxis_brrt_PropertyCatastropheContractsMember",null,null,null,null,null,null,null,null,null,null,null,null,null,"bma_ReinsuranceDisclosures_PropertyCatastropheContracts"]
[null,null,"Catastrophe swaps",{"$f":"Import!I6949","v":0},{"$f":"Import!I6959","v":0},{"$f":"Import!I6969","v":0},{"$f":"Import!I6979","v":0},{"$f":"Import!I6989","v":0},{"$f":"Import!I6999","v":0},null,null,null,"brrt_ReinsuranceRetroContractTypeAxis_brrt_CatastropheSwapsMember",null,null,null,null,null,null,null,null,null,null,null,null,null,"bma_ReinsuranceDisclosures_CatastropheSwaps"]
[null,null,{"$f":"+C97","v":"Property per risk contracts"},{"$f":"Import!I6950","v":0},{"$f":"Import!I6960","v":0},{"$f":"Import!I6970","v":0},{"$f":"Import!I6980","v":0},{"$f":"Import!I6990","v":0},{"$f":"Import!I7000","v":0},null,null,null,"brrt_ReinsuranceRetroContractTypeAxis_brrt_PropertyPerRiskContractsMember",null,null,null,null,null,null,null,null,null,null,null,null,null,"bma_ReinsuranceDisclosures_PropertyPerRiskContracts"]
[null,null,{"$f":"+C98","v":"Property retro contracts"},{"$f":"Import!I6951","v":0},{"$f":"Import!I6961","v":0},{"$f":"Import!I6971","v":0},{"$f":"Import!I6981","v":0},{"$f":"Import!I6991","v":0},{"$f":"Import!I7001","v":0},null,null,null,"brrt_ReinsuranceRetroContractTypeAxis_brrt_PropertyRetroContractsMember",null,null,null,null,null,null,null,null,null,null,null,null,null,"bma_ReinsuranceDisclosures_PropertyRetroContracts"]
[null,null,{"$f":"+C99","v":"Quota share contracts"},{"$f":"Import!I6952","v":0},{"$f":"Import!I6962","v":0},{"$f":"Import!I6972","v":0},{"$f":"Import!I6982","v":0},{"$f":"Import!I6992","v":0},{"$f":"Import!I7002","v":0},null,null,null,"brrt_ReinsuranceRetroContractTypeAxis_brrt_QuotaShareContractsMember",null,null,null,null,null,null,null,null,null,null,null,null,null,"bma_ReinsuranceDisclosures_QuotaShareContracts"]
[null,null,{"$f":"+C100","v":"Surplus share contracts"},{"$f":"Import!I6953","v":0},{"$f":"Import!I6963","v":0},{"$f":"Import!I6973","v":0},{"$f":"Import!I6983","v":0},{"$f":"Import!I6993","v":0},{"$f":"Import!I7003","v":0},null,null,null,"brrt_ReinsuranceRetroContractTypeAxis_brrt_SurplusShareContractsMember",null,null,null,null,null,null,null,null,null,null,null,null,null,"bma_ReinsuranceDisclosures_SurplusShareContracts"]
[null,null,"Total",{"$f":"SUM(D10:D18)","v":0},0,0,0,0,0,null,null,null,"brrt_ReinsuranceRetroContractTypeAxis_brrt_TotalMember",null,null,null,null,null,null,null,null,null,null,null,null,null,"bma_ReinsuranceDisclosures_Total"]
[]
[null,"If there are reinsurance or retro contracts that are purchased by the insurer that have no occurrence or aggregate limits, provide details below for the total premiums ceded, description of the underlying lines of business covered, territorial coverage limitations and details of the natural, man-made and pandemic perils covered on aggregate basis."]
[]
[]
[]
[null,null,{"$f":"Import!I7005","v":0},null,null,null,null,null,null,null,null,null,"brrt_ReinsuranceOrRetroContractsPurchasedWithNoOccurrenceOrAggregateLimitsDescriptionOfTheUnderlyingLinesOfBusinessCoveredTerritorialCoverageLimitationsAndDetailsOfTheNaturalManMadeAndPandemicPerilsCoveredOnAggregateBasis",{"$f":"XBRLMap(C25,M25,$Y$2,$Y$3,CONFIGURATION!$B$10,\"BMA\",CONFIGURATION!$B$1,\"bscr\")","v":"Mapped"}]
[]
[]
[null,null,null,"brrt_ReinsuranceRetroInformationPremium","brrt_ReinsuranceRetroInformationOccurrenceLimitProvided","brrt_ReinsuranceRetroInformationPremium","brrt_ReinsuranceRetroInformationOccurrenceLimitProvided","brrt_ReinsuranceRetroInformationPremium","brrt_ReinsuranceRetroInformationOccurrenceLimitProvided"]
[null,null,null,"brrt_USSpecificAllOthersAxis_brrt_USSpecificMember","brrt_USSpecificAllOthersAxis_brrt_USSpecificMember","brrt_USSpecificAllOthersAxis_brrt_WorldwideMember","brrt_USSpecificAllOthersAxis_brrt_WorldwideMember","brrt_USSpecificAllOthersAxis_brrt_AllOthersMember","brrt_USSpecificAllOthersAxis_brrt_AllOthersMember"]
[null,null,null,{"$f":"XBRLMap(D10,D$28&\".\"&D$29&\".\"&$M10,$Y$2,$Y$3,CONFIGURATION!$B$10,\"BMA\",CONFIGURATION!$B$1,\"bscr\",1000000)","v":"Mapped"},{"$f":"XBRLMap(E10,E$28&\".\"&E$29&\".\"&$M10,$Y$2,$Y$3,CONFIGURATION!$B$10,\"BMA\",CONFIGURATION!$B$1,\"bscr\",1000000)","v":"Mapped"},{"$f":"XBRLMap(F10,F$28&\".\"&F$29&\".\"&$M10,$Y$2,$Y$3,CONFIGURATION!$B$10,\"BMA\",CONFIGURATION!$B$1,\"bscr\",1000000)","v":"Mapped"},{"$f":"XBRLMap(G10,G$28&\".\"&G$29&\".\"&$M10,$Y$2,$Y$3,CONFIGURATION!$B$10,\"BMA\",CONFIGURATION!$B$1,\"bscr\",1000000)","v":"Mapped"},{"$f":"XBRLMap(H10,H$28&\".\"&H$29&\".\"&$M10,$Y$2,$Y$3,CONFIGURATION!$B$10,\"BMA\",CONFIGURATION!$B$1,\"bscr\",1000000)","v":"Mapped"},{"$f":"XBRLMap(I10,I$28&\".\"&I$29&\".\"&$M10,$Y$2,$Y$3,CONFIGURATION!$B$10,\"BMA\",CONFIGURATION!$B$1,\"bscr\",1000000)","v":"Mapped"}]
[null,null,null,{"$f":"XBRLMap(D11,D$28&\".\"&D$29&\".\"&$M11,$Y$2,$Y$3,CONFIGURATION!$B$10,\"BMA\",CONFIGURATION!$B$1,\"bscr\",1000000)","v":"Mapped"},{"$f":"XBRLMap(E11,E$28&\".\"&E$29&\".\"&$M11,$Y$2,$Y$3,CONFIGURATION!$B$10,\"BMA\",CONFIGURATION!$B$1,\"bscr\",1000000)","v":"Mapped"},{"$f":"XBRLMap(F11,F$28&\".\"&F$29&\".\"&$M11,$Y$2,$Y$3,CONFIGURATION!$B$10,\"BMA\",CONFIGURATION!$B$1,\"bscr\",1000000)","v":"Mapped"},{"$f":"XBRLMap(G11,G$28&\".\"&G$29&\".\"&$M11,$Y$2,$Y$3,CONFIGURATION!$B$10,\"BMA\",CONFIGURATION!$B$1,\"bscr\",1000000)","v":"Mapped"},{"$f":"XBRLMap(H11,H$28&\".\"&H$29&\".\"&$M11,$Y$2,$Y$3,CONFIGURATION!$B$10,\"BMA\",CONFIGURATION!$B$1,\"bscr\",1000000)","v":"Mapped"},{"$f":"XBRLMap(I11,I$28&\".\"&I$29&\".\"&$M11,$Y$2,$Y$3,CONFIGURATION!$B$10,\"BMA\",CONFIGURATION!$B$1,\"bscr\",1000000)","v":"Mapped"}]
[null,null,null,{"$f":"XBRLMap(D12,D$28&\".\"&D$29&\".\"&$M12,$Y$2,$Y$3,CONFIGURATION!$B$10,\"BMA\",CONFIGURATION!$B$1,\"bscr\",1000000)","v":"Mapped"},{"$f":"XBRLMap(E12,E$28&\".\"&E$29&\".\"&$M12,$Y$2,$Y$3,CONFIGURATION!$B$10,\"BMA\",CONFIGURATION!$B$1,\"bscr\",1000000)","v":"Mapped"},{"$f":"XBRLMap(F12,F$28&\".\"&F$29&\".\"&$M12,$Y$2,$Y$3,CONFIGURATION!$B$10,\"BMA\",CONFIGURATION!$B$1,\"bscr\",1000000)","v":"Mapped"},{"$f":"XBRLMap(G12,G$28&\".\"&G$29&\".\"&$M12,$Y$2,$Y$3,CONFIGURATION!$B$10,\"BMA\",CONFIGURATION!$B$1,\"bscr\",1000000)","v":"Mapped"},{"$f":"XBRLMap(H12,H$28&\".\"&H$29&\".\"&$M12,$Y$2,$Y$3,CONFIGURATION!$B$10,\"BMA\",CONFIGURATION!$B$1,\"bscr\",1000000)","v":"Mapped"},{"$f":"XBRLMap(I12,I$28&\".\"&I$29&\".\"&$M12,$Y$2,$Y$3,CONFIGURATION!$B$10,\"BMA\",CONFIGURATION!$B$1,\"bscr\",1000000)","v":"Mapped"}]
[null,null,null,{"$f":"XBRLMap(D13,D$28&\".\"&D$29&\".\"&$M13,$Y$2,$Y$3,CONFIGURATION!$B$10,\"BMA\",CONFIGURATION!$B$1,\"bscr\",1000000)","v":"Mapped"},{"$f":"XBRLMap(E13,E$28&\".\"&E$29&\".\"&$M13,$Y$2,$Y$3,CONFIGURATION!$B$10,\"BMA\",CONFIGURATION!$B$1,\"bscr\",1000000)","v":"Mapped"},{"$f":"XBRLMap(F13,F$28&\".\"&F$29&\".\"&$M13,$Y$2,$Y$3,CONFIGURATION!$B$10,\"BMA\",CONFIGURATION!$B$1,\"bscr\",1000000)","v":"Mapped"},{"$f":"XBRLMap(G13,G$28&\".\"&G$29&\".\"&$M13,$Y$2,$Y$3,CONFIGURATION!$B$10,\"BMA\",CONFIGURATION!$B$1,\"bscr\",1000000)","v":"Mapped"},{"$f":"XBRLMap(H13,H$28&\".\"&H$29&\".\"&$M13,$Y$2,$Y$3,CONFIGURATION!$B$10,\"BMA\",CONFIGURATION!$B$1,\"bscr\",1000000)","v":"Mapped"},{"$f":"XBRLMap(I13,I$28&\".\"&I$29&\".\"&$M13,$Y$2,$Y$3,CONFIGURATION!$B$10,\"BMA\",CONFIGURATION!$B$1,\"bscr\",1000000)","v":"Mapped"}]
[null,null,null,{"$f":"XBRLMap(D14,D$28&\".\"&D$29&\".\"&$M14,$Y$2,$Y$3,CONFIGURATION!$B$10,\"BMA\",CONFIGURATION!$B$1,\"bscr\",1000000)","v":"Mapped"},{"$f":"XBRLMap(E14,E$28&\".\"&E$29&\".\"&$M14,$Y$2,$Y$3,CONFIGURATION!$B$10,\"BMA\",CONFIGURATION!$B$1,\"bscr\",1000000)","v":"Mapped"},{"$f":"XBRLMap(F14,F$28&\".\"&F$29&\".\"&$M14,$Y$2,$Y$3,CONFIGURATION!$B$10,\"BMA\",CONFIGURATION!$B$1,\"bscr\",1000000)","v":"Mapped"},{"$f":"XBRLMap(G14,G$28&\".\"&G$29&\".\"&$M14,$Y$2,$Y$3,CONFIGURATION!$B$10,\"BMA\",CONFIGURATION!$B$1,\"bscr\",1000000)","v":"Mapped"},{"$f":"XBRLMap(H14,H$28&\".\"&H$29&\".\"&$M14,$Y$2,$Y$3,CONFIGURATION!$B$10,\"BMA\",CONFIGURATION!$B$1,\"bscr\",1000000)","v":"Mapped"},{"$f":"XBRLMap(I14,I$28&\".\"&I$29&\".\"&$M14,$Y$2,$Y$3,CONFIGURATION!$B$10,\"BMA\",CONFIGURATION!$B$1,\"bscr\",1000000)","v":"Mapped"}]
[null,null,null,{"$f":"XBRLMap(D15,D$28&\".\"&D$29&\".\"&$M15,$Y$2,$Y$3,CONFIGURATION!$B$10,\"BMA\",CONFIGURATION!$B$1,\"bscr\",1000000)","v":"Mapped"},{"$f":"XBRLMap(E15,E$28&\".\"&E$29&\".\"&$M15,$Y$2,$Y$3,CONFIGURATION!$B$10,\"BMA\",CONFIGURATION!$B$1,\"bscr\",1000000)","v":"Mapped"},{"$f":"XBRLMap(F15,F$28&\".\"&F$29&\".\"&$M15,$Y$2,$Y$3,CONFIGURATION!$B$10,\"BMA\",CONFIGURATION!$B$1,\"bscr\",1000000)","v":"Mapped"},{"$f":"XBRLMap(G15,G$28&\".\"&G$29&\".\"&$M15,$Y$2,$Y$3,CONFIGURATION!$B$10,\"BMA\",CONFIGURATION!$B$1,\"bscr\",1000000)","v":"Mapped"},{"$f":"XBRLMap(H15,H$28&\".\"&H$29&\".\"&$M15,$Y$2,$Y$3,CONFIGURATION!$B$10,\"BMA\",CONFIGURATION!$B$1,\"bscr\",1000000)","v":"Mapped"},{"$f":"XBRLMap(I15,I$28&\".\"&I$29&\".\"&$M15,$Y$2,$Y$3,CONFIGURATION!$B$10,\"BMA\",CONFIGURATION!$B$1,\"bscr\",1000000)","v":"Mapped"}]
[null,null,null,{"$f":"XBRLMap(D16,D$28&\".\"&D$29&\".\"&$M16,$Y$2,$Y$3,CONFIGURATION!$B$10,\"BMA\",CONFIGURATION!$B$1,\"bscr\",1000000)","v":"Mapped"},{"$f":"XBRLMap(E16,E$28&\".\"&E$29&\".\"&$M16,$Y$2,$Y$3,CONFIGURATION!$B$10,\"BMA\",CONFIGURATION!$B$1,\"bscr\",1000000)","v":"Mapped"},{"$f":"XBRLMap(F16,F$28&\".\"&F$29&\".\"&$M16,$Y$2,$Y$3,CONFIGURATION!$B$10,\"BMA\",CONFIGURATION!$B$1,\"bscr\",1000000)","v":"Mapped"},{"$f":"XBRLMap(G16,G$28&\".\"&G$29&\".\"&$M16,$Y$2,$Y$3,CONFIGURATION!$B$10,\"BMA\",CONFIGURATION!$B$1,\"bscr\",1000000)","v":"Mapped"},{"$f":"XBRLMap(H16,H$28&\".\"&H$29&\".\"&$M16,$Y$2,$Y$3,CONFIGURATION!$B$10,\"BMA\",CONFIGURATION!$B$1,\"bscr\",1000000)","v":"Mapped"},{"$f":"XBRLMap(I16,I$28&\".\"&I$29&\".\"&$M16,$Y$2,$Y$3,CONFIGURATION!$B$10,\"BMA\",CONFIGURATION!$B$1,\"bscr\",1000000)","v":"Mapped"}]
[null,null,null,{"$f":"XBRLMap(D17,D$28&\".\"&D$29&\".\"&$M17,$Y$2,$Y$3,CONFIGURATION!$B$10,\"BMA\",CONFIGURATION!$B$1,\"bscr\",1000000)","v":"Mapped"},{"$f":"XBRLMap(E17,E$28&\".\"&E$29&\".\"&$M17,$Y$2,$Y$3,CONFIGURATION!$B$10,\"BMA\",CONFIGURATION!$B$1,\"bscr\",1000000)","v":"Mapped"},{"$f":"XBRLMap(F17,F$28&\".\"&F$29&\".\"&$M17,$Y$2,$Y$3,CONFIGURATION!$B$10,\"BMA\",CONFIGURATION!$B$1,\"bscr\",1000000)","v":"Mapped"},{"$f":"XBRLMap(G17,G$28&\".\"&G$29&\".\"&$M17,$Y$2,$Y$3,CONFIGURATION!$B$10,\"BMA\",CONFIGURATION!$B$1,\"bscr\",1000000)","v":"Mapped"},{"$f":"XBRLMap(H17,H$28&\".\"&H$29&\".\"&$M17,$Y$2,$Y$3,CONFIGURATION!$B$10,\"BMA\",CONFIGURATION!$B$1,\"bscr\",1000000)","v":"Mapped"},{"$f":"XBRLMap(I17,I$28&\".\"&I$29&\".\"&$M17,$Y$2,$Y$3,CONFIGURATION!$B$10,\"BMA\",CONFIGURATION!$B$1,\"bscr\",1000000)","v":"Mapped"}]
[null,null,null,{"$f":"XBRLMap(D18,D$28&\".\"&D$29&\".\"&$M18,$Y$2,$Y$3,CONFIGURATION!$B$10,\"BMA\",CONFIGURATION!$B$1,\"bscr\",1000000)","v":"Mapped"},{"$f":"XBRLMap(E18,E$28&\".\"&E$29&\".\"&$M18,$Y$2,$Y$3,CONFIGURATION!$B$10,\"BMA\",CONFIGURATION!$B$1,\"bscr\",1000000)","v":"Mapped"},{"$f":"XBRLMap(F18,F$28&\".\"&F$29&\".\"&$M18,$Y$2,$Y$3,CONFIGURATION!$B$10,\"BMA\",CONFIGURATION!$B$1,\"bscr\",1000000)","v":"Mapped"},{"$f":"XBRLMap(G18,G$28&\".\"&G$29&\".\"&$M18,$Y$2,$Y$3,CONFIGURATION!$B$10,\"BMA\",CONFIGURATION!$B$1,\"bscr\",1000000)","v":"Mapped"},{"$f":"XBRLMap(H18,H$28&\".\"&H$29&\".\"&$M18,$Y$2,$Y$3,CONFIGURATION!$B$10,\"BMA\",CONFIGURATION!$B$1,\"bscr\",1000000)","v":"Mapped"},{"$f":"XBRLMap(I18,I$28&\".\"&I$29&\".\"&$M18,$Y$2,$Y$3,CONFIGURATION!$B$10,\"BMA\",CONFIGURATION!$B$1,\"bscr\",1000000)","v":"Mapped"}]
[null,null,null,{"$f":"XBRLMap(D19,D$28&\".\"&D$29&\".\"&$M19,$Y$2,$Y$3,CONFIGURATION!$B$10,\"BMA\",CONFIGURATION!$B$1,\"bscr\",1000000)","v":"Mapped"},{"$f":"XBRLMap(E19,E$28&\".\"&E$29&\".\"&$M19,$Y$2,$Y$3,CONFIGURATION!$B$10,\"BMA\",CONFIGURATION!$B$1,\"bscr\",1000000)","v":"Mapped"},{"$f":"XBRLMap(F19,F$28&\".\"&F$29&\".\"&$M19,$Y$2,$Y$3,CONFIGURATION!$B$10,\"BMA\",CONFIGURATION!$B$1,\"bscr\",1000000)","v":"Mapped"},{"$f":"XBRLMap(G19,G$28&\".\"&G$29&\".\"&$M19,$Y$2,$Y$3,CONFIGURATION!$B$10,\"BMA\",CONFIGURATION!$B$1,\"bscr\",1000000)","v":"Mapped"},{"$f":"XBRLMap(H19,H$28&\".\"&H$29&\".\"&$M19,$Y$2,$Y$3,CONFIGURATION!$B$10,\"BMA\",CONFIGURATION!$B$1,\"bscr\",1000000)","v":"Mapped"},{"$f":"XBRLMap(I19,I$28&\".\"&I$29&\".\"&$M19,$Y$2,$Y$3,CONFIGURATION!$B$10,\"BMA\",CONFIGURATION!$B$1,\"bscr\",1000000)","v":"Mapped"}]
[]
[]
[]
[]
[]
[null,null,null,"bma_class3A_StatementComponentAxis3_bma_ReinsuranceDisclosures_UsSpecificContracts","bma_class3A_StatementComponentAxis3_bma_ReinsuranceDisclosures_WorldwideContracts","bma_class3A_StatementComponentAxis3_bma_ReinsuranceDisclosures_AllOtherContracts","bma_class3A_StatementComponentAxis3_bma_ReinsuranceDisclosures_UsSpecificContracts","bma_class3A_StatementComponentAxis3_bma_ReinsuranceDisclosures_WorldwideContracts","bma_class3A_StatementComponentAxis3_bma_ReinsuranceDisclosures_AllOtherContracts"]
[null,null,null,"bma_class3A_StatementComponentAxis3_bma_ReinsuranceDisclosures_PremiumDollarM","bma_class3A_StatementComponentAxis3_bma_ReinsuranceDisclosures_OccurrenceLimitProvidedDollarM","bma_class3A_StatementComponentAxis3_bma_ReinsuranceDisclosures_PremiumDollarM","bma_class3A_StatementComponentAxis3_bma_ReinsuranceDisclosures_OccurrenceLimitProvidedDollarM","bma_class3A_StatementComponentAxis3_bma_ReinsuranceDisclosures_PremiumDollarM","bma_class3A_StatementComponentAxis3_bma_ReinsuranceDisclosures_OccurrenceLimitProvidedDollarM"]
[]
[]
[]
[]
[]
[]
[]
[]
[]
[]
[]
[]
[]
[]
[]
[]
[]
[]
[]
[]
[]
[]
[]
[]
[]
[]
[]
[]
[]
[null,null,"What proportion of contracts that you participate on include special termination clauses?"]
[null,null,null,"None",null,null,"Count"]
[null,null,null,"0% to 4.9%",null,null,"Guestimate"]
[null,null,null,"5.0% to 9.9%",null,null,"Estimate"]
[null,null,null,"10.0% to 19.9%",null,null,"Exposure"]
[null,null,null,"20.0% to 29.9%",null,null,"Premium"]
[null,null,null,"30.0% to 39.9%"]
[null,null,null,"40.0% to 49.9%"]
[null,null,null,"50.0% to 59.9%"]
[null,null,null,"60.0% to 69.9%"]
[null,null,null,"70.0% to 79.9%"]
[null,null,null,"80.0% to 89.9%"]
[null,null,null,"90.0% to 99.9%"]
[null,null,null,1]
[]
[null,null,"For reinsurance or retro purchased to protect against natural catastrophe exposures please provide approximate premium and occurrence limit protection by type of protection"]
[null,null,"Insurance linked securities protection"]
[null,null,"Industry loss warranty contracts"]
[null,null,"Other contracts and non-traditional methods of risk mitigation/assumption"]
[null,null,"Property catastrophe contracts"]
[null,null,"Catastrophe swaps"]
[null,null,"Property per risk contracts"]
[null,null,"Property retro contracts"]
[null,null,"Quota share contracts"]
[null,null,"Surplus share contracts"]

{"sheet":"Schedule X(h)","index":59,"n_rows":63,"n_cols":22,"rows_kept":63,"cut":false,"hidden":false,"merged":[[8,1,17,1],[2,1,2,2],[23,1,32,1],[2,9,2,10]]}
[null,"CATASTROPHE RISK RETURN: INSURANCE TERROR EXPOSURE (TABLE 9G)",null,null,null,null,null,null,null,null,{"$f":"HYPERLINK(\"#'Index'!A1\",\"Return to Index\")","v":"Return to Index"},null,null,null,null,null,null,null,null,null,null,{"$f":"'Company Information'!L1","v":"01/01/2019"}]
[null,{"$f":"'Company Information'!C7","v":"Enter Company Name"},null,null,null,null,null,null,null,null,null,null,null,null,null,null,null,null,null,null,null,{"$f":"'Company Information'!L2","v":"12/31/2019"}]
[null,{"$f":"'Company Information'!C3+1","v":"2020-01-01"},null,null,null,null,null,null,null,"SCHEDULE X(h) "]
[]
[null,"CONVENTIONAL INSURANCE TERRORISM EXPOSURE - 150M DEFINED GEOGRAPHICAL RADIUS "]
[]
[null,null,null,"U.S. State / Province                  (if applicable)","Country","Direct terrorism property exposure","Total gross exposure ","TRIP or other terror pool recoverables if any ","Reinsurance recoveries if any","Total net exposure ","Target location (if known)"]
[null,null,null,null,null,"US$M","US$M","US$M","US$M","US$M"]
[null,"Conventional terrorism exposure",1,{"$f":"Import!I7007","v":0},{"$f":"Import!I7017","v":0},{"$f":"Import!I7027","v":0},{"$f":"Import!I7037","v":0},{"$f":"Import!I7047","v":0},{"$f":"Import!I7057","v":0},{"$f":"G9-H9-I9","v":0},{"$f":"Import!I7077","v":0}]
[null,null,{"$f":"C9+1","v":2},{"$f":"Import!I7008","v":0},{"$f":"Import!I7018","v":0},{"$f":"Import!I7028","v":0},{"$f":"Import!I7038","v":0},{"$f":"Import!I7048","v":0},{"$f":"Import!I7058","v":0},0,{"$f":"Import!I7078","v":0}]
[null,null,3,{"$f":"Import!I7009","v":0},{"$f":"Import!I7019","v":0},{"$f":"Import!I7029","v":0},{"$f":"Import!I7039","v":0},{"$f":"Import!I7049","v":0},{"$f":"Import!I7059","v":0},0,{"$f":"Import!I7079","v":0}]
[null,null,4,{"$f":"Import!I7010","v":0},{"$f":"Import!I7020","v":0},{"$f":"Import!I7030","v":0},{"$f":"Import!I7040","v":0},{"$f":"Import!I7050","v":0},{"$f":"Import!I7060","v":0},0,{"$f":"Import!I7080","v":0}]
[null,null,5,{"$f":"Import!I7011","v":0},{"$f":"Import!I7021","v":0},{"$f":"Import!I7031","v":0},{"$f":"Import!I7041","v":0},{"$f":"Import!I7051","v":0},{"$f":"Import!I7061","v":0},0,{"$f":"Import!I7081","v":0}]
[null,null,6,{"$f":"Import!I7012","v":0},{"$f":"Import!I7022","v":0},{"$f":"Import!I7032","v":0},{"$f":"Import!I7042","v":0},{"$f":"Import!I7052","v":0},{"$f":"Import!I7062","v":0},0,{"$f":"Import!I7082","v":0}]
[null,null,7,{"$f":"Import!I7013","v":0},{"$f":"Import!I7023","v":0},{"$f":"Import!I7033","v":0},{"$f":"Import!I7043","v":0},{"$f":"Import!I7053","v":0},{"$f":"Import!I7063","v":0},0,{"$f":"Import!I7083","v":0}]
[null,null,8,{"$f":"Import!I7014","v":0},{"$f":"Import!I7024","v":0},{"$f":"Import!I7034","v":0},{"$f":"Import!I7044","v":0},{"$f":"Import!I7054","v":0},{"$f":"Import!I7064","v":0},0,{"$f":"Import!I7084","v":0}]
[null,null,9,{"$f":"Import!I7015","v":0},{"$f":"Import!I7025","v":0},{"$f":"Import!I7035","v":0},{"$f":"Import!I7045","v":0},{"$f":"Import!I7055","v":0},{"$f":"Import!I7065","v":0},0,{"$f":"Import!I7085","v":0}]
[null,null,10,{"$f":"Import!I7016","v":0},{"$f":"Import!I7026","v":0},{"$f":"Import!I7036","v":0},{"$f":"Import!I7046","v":0},{"$f":"Import!I7056","v":0},{"$f":"Import!I7066","v":0},0,{"$f":"Import!I7086","v":0}]
[]
[null,"NBCR INSURANCE TERRORISM EXPOSURE - STATE/COUNTRY"]
[]
[null,null,null,"U.S. State / Province                  (if applicable)","Country","Direct terrorism property exposure","Total gross exposure ","TRIP or other sovereign terror pool recoverables if any","Reinsurance recoverable limits if any","Total net exposure "]
[null,null,null,null,null,"US$M","US$M","US$M","US$M","US$M"]
[null,"NBCR terrorism exposure",1,{"$f":"Import!I7087","v":0},{"$f":"Import!I7097","v":0},{"$f":"Import!I7107","v":0},{"$f":"Import!I7117","v":0},{"$f":"Import!I7127","v":0},{"$f":"Import!I7137","v":0},{"$f":"G24-H24-I24","v":0}]
[null,null,{"$f":"C24+1","v":2},{"$f":"Import!I7088","v":0},{"$f":"Import!I7098","v":0},{"$f":"Import!I7108","v":0},{"$f":"Import!I7118","v":0},{"$f":"Import!I7128","v":0},{"$f":"Import!I7138","v":0},{"$f":"G25-H25-I25","v":0}]
[null,null,3,{"$f":"Import!I7089","v":0},{"$f":"Import!I7099","v":0},{"$f":"Import!I7109","v":0},{"$f":"Import!I7119","v":0},{"$f":"Import!I7129","v":0},{"$f":"Import!I7139","v":0},0]
[null,null,4,{"$f":"Import!I7090","v":0},{"$f":"Import!I7100","v":0},{"$f":"Import!I7110","v":0},{"$f":"Import!I7120","v":0},{"$f":"Import!I7130","v":0},{"$f":"Import!I7140","v":0},0]
[null,null,5,{"$f":"Import!I7091","v":0},{"$f":"Import!I7101","v":0},{"$f":"Import!I7111","v":0},{"$f":"Import!I7121","v":0},{"$f":"Import!I7131","v":0},{"$f":"Import!I7141","v":0},0]
[null,null,6,{"$f":"Import!I7092","v":0},{"$f":"Import!I7102","v":0},{"$f":"Import!I7112","v":0},{"$f":"Import!I7122","v":0},{"$f":"Import!I7132","v":0},{"$f":"Import!I7142","v":0},0]
[null,null,7,{"$f":"Import!I7093","v":0},{"$f":"Import!I7103","v":0},{"$f":"Import!I7113","v":0},{"$f":"Import!I7123","v":0},{"$f":"Import!I7133","v":0},{"$f":"Import!I7143","v":0},0]
[null,null,8,{"$f":"Import!I7094","v":0},{"$f":"Import!I7104","v":0},{"$f":"Import!I7114","v":0},{"$f":"Import!I7124","v":0},{"$f":"Import!I7134","v":0},{"$f":"Import!I7144","v":0},0]
[null,null,9,{"$f":"Import!I7095","v":0},{"$f":"Import!I7105","v":0},{"$f":"Import!I7115","v":0},{"$f":"Import!I7125","v":0},{"$f":"Import!I7135","v":0},{"$f":"Import!I7145","v":0},0]
[null,null,10,{"$f":"Import!I7096","v":0},{"$f":"Import!I7106","v":0},{"$f":"Import!I7116","v":0},{"$f":"Import!I7126","v":0},{"$f":"Import!I7136","v":0},{"$f":"Import!I7146","v":0},0]
[]
[]
[]
[null,null,null,"brrt_ConventionalTerrorismExposureGeographicalRadius"]
[null,null,null,"brrt_ConventionalTerrorismExposureGeographicalRadiusStateorProvince","brrt_ConventionalTerrorismExposureGeographicalRadiusCountry","brrt_ConventionalTerrorismExposureGeographicalRadiusDirectTerrorismPropertyExposure","brrt_ConventionalTerrorismExposureGeographicalRadiusTotalGrossExposure","brrt_ConventionalTerrorismExposureGeographicalRadiusTRIPOrOtherTerrorPoolRecoverables","brrt_ConventionalTerrorismExposureGeographicalRadiusReinsuranceRecoveries","brrt_ConventionalTerrorismExposureGeographicalRadiusTotalNetExposure","brrt_ConventionalTerrorismExposureGeographicalRadiusTargetLocation"]
[null,null,null,{"$f":"XBRLMapTuple($D$37,$V$1,$V$2,\"BMA\",CONFIGURATION!$B$1,\"bscr\",\"\",1000000,$D$38,D9,$E$38,E9,$F$38,F9,$G$38,G9,$H$38,H9,$I$38,I9,$J$38,J9,$K$38,K9)","v":"Mapped"}]
[null,null,null,{"$f":"XBRLMapTuple($D$37,$V$1,$V$2,\"BMA\",CONFIGURATION!$B$1,\"bscr\",\"\",1000000,$D$38,D10,$E$38,E10,$F$38,F10,$G$38,G10,$H$38,H10,$I$38,I10,$J$38,J10,$K$38,K10)","v":"Mapped"}]
[null,null,null,{"$f":"XBRLMapTuple($D$37,$V$1,$V$2,\"BMA\",CONFIGURATION!$B$1,\"bscr\",\"\",1000000,$D$38,D11,$E$38,E11,$F$38,F11,$G$38,G11,$H$38,H11,$I$38,I11,$J$38,J11,$K$38,K11)","v":"Mapped"}]
[null,null,null,{"$f":"XBRLMapTuple($D$37,$V$1,$V$2,\"BMA\",CONFIGURATION!$B$1,\"bscr\",\"\",1000000,$D$38,D12,$E$38,E12,$F$38,F12,$G$38,G12,$H$38,H12,$I$38,I12,$J$38,J12,$K$38,K12)","v":"Mapped"}]
[null,null,null,{"$f":"XBRLMapTuple($D$37,$V$1,$V$2,\"BMA\",CONFIGURATION!$B$1,\"bscr\",\"\",1000000,$D$38,D13,$E$38,E13,$F$38,F13,$G$38,G13,$H$38,H13,$I$38,I13,$J$38,J13,$K$38,K13)","v":"Mapped"}]
[null,null,null,{"$f":"XBRLMapTuple($D$37,$V$1,$V$2,\"BMA\",CONFIGURATION!$B$1,\"bscr\",\"\",1000000,$D$38,D14,$E$38,E14,$F$38,F14,$G$38,G14,$H$38,H14,$I$38,I14,$J$38,J14,$K$38,K14)","v":"Mapped"}]
[null,null,null,{"$f":"XBRLMapTuple($D$37,$V$1,$V$2,\"BMA\",CONFIGURATION!$B$1,\"bscr\",\"\",1000000,$D$38,D15,$E$38,E15,$F$38,F15,$G$38,G15,$H$38,H15,$I$38,I15,$J$38,J15,$K$38,K15)","v":"Mapped"}]
[null,null,null,{"$f":"XBRLMapTuple($D$37,$V$1,$V$2,\"BMA\",CONFIGURATION!$B$1,\"bscr\",\"\",1000000,$D$38,D16,$E$38,E16,$F$38,F16,$G$38,G16,$H$38,H16,$I$38,I16,$J$38,J16,$K$38,K16)","v":"Mapped"}]
[null,null,null,{"$f":"XBRLMapTuple($D$37,$V$1,$V$2,\"BMA\",CONFIGURATION!$B$1,\"bscr\",\"\",1000000,$D$38,D17,$E$38,E17,$F$38,F17,$G$38,G17,$H$38,H17,$I$38,I17,$J$38,J17,$K$38,K17)","v":"Mapped"}]
[null,null,null,{"$f":"XBRLMapTuple($D$37,$V$1,$V$2,\"BMA\",CONFIGURATION!$B$1,\"bscr\",\"\",1000000,$D$38,D18,$E$38,E18,$F$38,F18,$G$38,G18,$H$38,H18,$I$38,I18,$J$38,J18,$K$38,K18)","v":"Mapped"}]
[]
[]
[]
[null,null,null,null,"brrt_NBCRInsuranceTerrorismExposureUSStateOrCountry"]
[null,null,null,"brrt_NBCRInsuranceTerrorismExposureUSStateOrCountryUSStateOrCountry","brrt_NBCRInsuranceTerrorismExposureUSStateOrCountryCountry","brrt_NBCRInsuranceTerrorismExposureUSStateOrCountryDirectTerrorismPropertyExposure","brrt_NBCRInsuranceTerrorismExposureUSStateOrCountryTotalGrossExposure","brrt_NBCRInsuranceTerrorismExposureUSStateOrCountryTRIPOrOtherTerrorPoolRecoverables","brrt_NBCRInsuranceTerrorismExposureUSStateOrCountryReinsuranceRecoveries","brrt_NBCRInsuranceTerrorismExposureUSStateOrCountryTotalNetExposure"]
[null,null,null,null,{"$f":"XBRLMapTuple($E$52,$V$1,$V$2,\"BMA\",CONFIGURATION!$B$1,\"bscr\",\"\",1000000,$D$53,D24,$E$53,E24,$F$53,F24,$G$53,G24,$H$53,H24,$I$53,I24,$J$53,J24)","v":"Mapped"}]
[null,null,null,null,{"$f":"XBRLMapTuple($E$52,$V$1,$V$2,\"BMA\",CONFIGURATION!$B$1,\"bscr\",\"\",1000000,$D$53,D25,$E$53,E25,$F$53,F25,$G$53,G25,$H$53,H25,$I$53,I25,$J$53,J25)","v":"Mapped"}]
[null,null,null,null,{"$f":"XBRLMapTuple($E$52,$V$1,$V$2,\"BMA\",CONFIGURATION!$B$1,\"bscr\",\"\",1000000,$D$53,D26,$E$53,E26,$F$53,F26,$G$53,G26,$H$53,H26,$I$53,I26,$J$53,J26)","v":"Mapped"}]
[null,null,null,null,{"$f":"XBRLMapTuple($E$52,$V$1,$V$2,\"BMA\",CONFIGURATION!$B$1,\"bscr\",\"\",1000000,$D$53,D27,$E$53,E27,$F$53,F27,$G$53,G27,$H$53,H27,$I$53,I27,$J$53,J27)","v":"Mapped"}]
[null,null,null,null,{"$f":"XBRLMapTuple($E$52,$V$1,$V$2,\"BMA\",CONFIGURATION!$B$1,\"bscr\",\"\",1000000,$D$53,D28,$E$53,E28,$F$53,F28,$G$53,G28,$H$53,H28,$I$53,I28,$J$53,J28)","v":"Mapped"}]
[null,null,null,null,{"$f":"XBRLMapTuple($E$52,$V$1,$V$2,\"BMA\",CONFIGURATION!$B$1,\"bscr\",\"\",1000000,$D$53,D29,$E$53,E29,$F$53,F29,$G$53,G29,$H$53,H29,$I$53,I29,$J$53,J29)","v":"Mapped"}]
[null,null,null,null,{"$f":"XBRLMapTuple($E$52,$V$1,$V$2,\"BMA\",CONFIGURATION!$B$1,\"bscr\",\"\",1000000,$D$53,D30,$E$53,E30,$F$53,F30,$G$53,G30,$H$53,H30,$I$53,I30,$J$53,J30)","v":"Mapped"}]
[null,null,null,null,{"$f":"XBRLMapTuple($E$52,$V$1,$V$2,\"BMA\",CONFIGURATION!$B$1,\"bscr\",\"\",1000000,$D$53,D31,$E$53,E31,$F$53,F31,$G$53,G31,$H$53,H31,$I$53,I31,$J$53,J31)","v":"Mapped"}]
[null,null,null,null,{"$f":"XBRLMapTuple($E$52,$V$1,$V$2,\"BMA\",CONFIGURATION!$B$1,\"bscr\",\"\",1000000,$D$53,D32,$E$53,E32,$F$53,F32,$G$53,G32,$H$53,H32,$I$53,I32,$J$53,J32)","v":"Mapped"}]
[null,null,null,null,{"$f":"XBRLMapTuple($E$52,$V$1,$V$2,\"BMA\",CONFIGURATION!$B$1,\"bscr\",\"\",1000000,$D$53,D33,$E$53,E33,$F$53,F33,$G$53,G33,$H$53,H33,$I$53,I33,$J$53,J33)","v":"Mapped"}]

{"sheet":"Schedule X(i)","index":60,"n_rows":65,"n_cols":21,"rows_kept":65,"cut":false,"hidden":false,"merged":[[8,2,17,2],[23,2,32,2],[2,1,2,4]]}
[null,"CATASTROPHE RISK RETURN: REINSURANCE TERRORISM LIMITS (TABLE 9H) ",null,null,null,null,null,null,null,null,{"$f":"HYPERLINK(\"#'Index'!A1\",\"Return to Index\")","v":"Return to Index"},null,null,null,null,null,null,null,null,null,{"$f":"'Company Information'!L1","v":"01/01/2019"}]
[null,{"$f":"'Company Information'!C7","v":"Enter Company Name"},null,null,null,null,null,null,null,null,null,null,null,null,null,null,null,null,null,null,{"$f":"'Company Information'!L2","v":"12/31/2019"}]
[null,{"$f":"'Company Information'!C3+1","v":"2020-01-01"},null,null,null,null,null,null,null,null,"SCHEDULE X(i) "]
[]
[null,"CONVENTIONAL REINSURANCE TERRORISM EXPOSURE - 150M DEFINED GEOGRAPHICAL RADIUS "]
[]
[null,null,null,null,"U.S. State / Province                  (if applicable)","Country","Direct reinsurance limits exposed to terrorism","Total gross reinsurance limits exposed to terrorism ","TRIP or other terror pool recoverables if any ","Reinsurance or retro recoveries if any","Total net reinsurance limits exposed to terrorism "]
[null,null,null,null,null,null,"US$M","US$M","US$M","US$M","US$M"]
[null,null,"Conventional terrorism exposure",1,{"$f":"Import!I7158","v":0},{"$f":"Import!I7168","v":0},{"$f":"Import!I7178","v":0},{"$f":"Import!I7188","v":0},{"$f":"Import!I7198","v":0},{"$f":"Import!I7208","v":0},{"$f":"H9-I9-J9","v":0}]
[null,null,null,{"$f":"D9+1","v":2},{"$f":"Import!I7159","v":0},{"$f":"Import!I7169","v":0},{"$f":"Import!I7179","v":0},{"$f":"Import!I7189","v":0},{"$f":"Import!I7199","v":0},{"$f":"Import!I7209","v":0},0]
[null,null,null,3,{"$f":"Import!I7160","v":0},{"$f":"Import!I7170","v":0},{"$f":"Import!I7180","v":0},{"$f":"Import!I7190","v":0},{"$f":"Import!I7200","v":0},{"$f":"Import!I7210","v":0},0]
[null,null,null,4,{"$f":"Import!I7161","v":0},{"$f":"Import!I7171","v":0},{"$f":"Import!I7181","v":0},{"$f":"Import!I7191","v":0},{"$f":"Import!I7201","v":0},{"$f":"Import!I7211","v":0},0]
[null,null,null,5,{"$f":"Import!I7162","v":0},{"$f":"Import!I7172","v":0},{"$f":"Import!I7182","v":0},{"$f":"Import!I7192","v":0},{"$f":"Import!I7202","v":0},{"$f":"Import!I7212","v":0},0]
[null,null,null,6,{"$f":"Import!I7163","v":0},{"$f":"Import!I7173","v":0},{"$f":"Import!I7183","v":0},{"$f":"Import!I7193","v":0},{"$f":"Import!I7203","v":0},{"$f":"Import!I7213","v":0},0]
[null,null,null,7,{"$f":"Import!I7164","v":0},{"$f":"Import!I7174","v":0},{"$f":"Import!I7184","v":0},{"$f":"Import!I7194","v":0},{"$f":"Import!I7204","v":0},{"$f":"Import!I7214","v":0},0]
[null,null,null,8,{"$f":"Import!I7165","v":0},{"$f":"Import!I7175","v":0},{"$f":"Import!I7185","v":0},{"$f":"Import!I7195","v":0},{"$f":"Import!I7205","v":0},{"$f":"Import!I7215","v":0},0]
[null,null,null,9,{"$f":"Import!I7166","v":0},{"$f":"Import!I7176","v":0},{"$f":"Import!I7186","v":0},{"$f":"Import!I7196","v":0},{"$f":"Import!I7206","v":0},{"$f":"Import!I7216","v":0},0]
[null,null,null,10,{"$f":"Import!I7167","v":0},{"$f":"Import!I7177","v":0},{"$f":"Import!I7187","v":0},{"$f":"Import!I7197","v":0},{"$f":"Import!I7207","v":0},{"$f":"Import!I7217","v":0},0]
[]
[null,"NBCR REINSURANCE TERRORISM EXPOSURE - STATE/COUNTRY"]
[]
[null,null,null,null,"U.S. State / Province                  (if applicable)","Country","Direct reinsurance limits exposed to terrorism","Total gross reinsurance limits exposed to terrorism","TRIP or other terror pool recoverables if any ","Reinsurance or retro recoveries if any ","Total net reinsurance limits exposed to terrorism "]
[null,null,null,null,null,null,"US$M","US$M","US$M","US$M","US$M"]
[null,null,"NBCR terrorism exposure",1,{"$f":"Import!I7228","v":0},{"$f":"Import!I7238","v":0},{"$f":"Import!I7248","v":0},{"$f":"Import!I7258","v":0},{"$f":"Import!I7268","v":0},{"$f":"Import!I7278","v":0},{"$f":"H24-I24-J24","v":0}]
[null,null,null,{"$f":"D24+1","v":2},{"$f":"Import!I7229","v":0},{"$f":"Import!I7239","v":0},{"$f":"Import!I7249","v":0},{"$f":"Import!I7259","v":0},{"$f":"Import!I7269","v":0},{"$f":"Import!I7279","v":0},0]
[null,null,null,3,{"$f":"Import!I7230","v":0},{"$f":"Import!I7240","v":0},{"$f":"Import!I7250","v":0},{"$f":"Import!I7260","v":0},{"$f":"Import!I7270","v":0},{"$f":"Import!I7280","v":0},0]
[null,null,null,4,{"$f":"Import!I7231","v":0},{"$f":"Import!I7241","v":0},{"$f":"Import!I7251","v":0},{"$f":"Import!I7261","v":0},{"$f":"Import!I7271","v":0},{"$f":"Import!I7281","v":0},0]
[null,null,null,5,{"$f":"Import!I7232","v":0},{"$f":"Import!I7242","v":0},{"$f":"Import!I7252","v":0},{"$f":"Import!I7262","v":0},{"$f":"Import!I7272","v":0},{"$f":"Import!I7282","v":0},0]
[null,null,null,6,{"$f":"Import!I7233","v":0},{"$f":"Import!I7243","v":0},{"$f":"Import!I7253","v":0},{"$f":"Import!I7263","v":0},{"$f":"Import!I7273","v":0},{"$f":"Import!I7283","v":0},0]
[null,null,null,7,{"$f":"Import!I7234","v":0},{"$f":"Import!I7244","v":0},{"$f":"Import!I7254","v":0},{"$f":"Import!I7264","v":0},{"$f":"Import!I7274","v":0},{"$f":"Import!I7284","v":0},0]
[null,null,null,8,{"$f":"Import!I7235","v":0},{"$f":"Import!I7245","v":0},{"$f":"Import!I7255","v":0},{"$f":"Import!I7265","v":0},{"$f":"Import!I7275","v":0},{"$f":"Import!I7285","v":0},0]
[null,null,null,9,{"$f":"Import!I7236","v":0},{"$f":"Import!I7246","v":0},{"$f":"Import!I7256","v":0},{"$f":"Import!I7266","v":0},{"$f":"Import!I7276","v":0},{"$f":"Import!I7286","v":0},0]
[null,null,null,10,{"$f":"Import!I7237","v":0},{"$f":"Import!I7247","v":0},{"$f":"Import!I7257","v":0},{"$f":"Import!I7267","v":0},{"$f":"Import!I7277","v":0},{"$f":"Import!I7287","v":0},0]
[]
[]
[]
[null,null,null,null,"brrt_ConventionalTerrorismExposureUSStateOrCountry"]
[null,null,null,null,"brrt_ConventionalTerrorismExposureUSStateOrCountryUSStateOrCountry","brrt_ConventionalTerrorismExposureUSStateOrCountryCountry","brrt_ConventionalTerrorismExposureUSStateOrCountryDirectReinsuranceLimitsExposedToTerrorism","brrt_ConventionalTerrorismExposureUSStateOrCountryTotalGrossReinsuranceLimitsExposedToTerrorism","brrt_ConventionalTerrorismExposureUSStateOrCountryTRIPOrOtherTerrorPoolRecoverablesForReinsuranceLimitsExposedToTerrorism","brrt_ConventionalTerrorismExposureUSStateOrCountryReinsuranceRecoveriesForReinsuranceLimitsExposedToTerrorism","brrt_ConventionalTerrorismExposureUSStateOrCountryTotalNetReinsuranceLimitsExposedToTerrorism"]
[null,null,null,null,{"$f":"XBRLMapTuple($E$37,$U$1,$U$2,\"BMA\",CONFIGURATION!$B$1,\"bscr\",\"\",1000000,$E$38,E9,$F$38,F9,$G$38,G9,$H$38,H9,$I$38,I9,$J$38,J9,$K$38,K9)","v":"Mapped"}]
[null,null,null,null,{"$f":"XBRLMapTuple($E$37,$U$1,$U$2,\"BMA\",CONFIGURATION!$B$1,\"bscr\",\"\",1000000,$E$38,E10,$F$38,F10,$G$38,G10,$H$38,H10,$I$38,I10,$J$38,J10,$K$38,K10)","v":"Mapped"}]
[null,null,null,null,{"$f":"XBRLMapTuple($E$37,$U$1,$U$2,\"BMA\",CONFIGURATION!$B$1,\"bscr\",\"\",1000000,$E$38,E11,$F$38,F11,$G$38,G11,$H$38,H11,$I$38,I11,$J$38,J11,$K$38,K11)","v":"Mapped"}]
[null,null,null,null,{"$f":"XBRLMapTuple($E$37,$U$1,$U$2,\"BMA\",CONFIGURATION!$B$1,\"bscr\",\"\",1000000,$E$38,E12,$F$38,F12,$G$38,G12,$H$38,H12,$I$38,I12,$J$38,J12,$K$38,K12)","v":"Mapped"}]
[null,null,null,null,{"$f":"XBRLMapTuple($E$37,$U$1,$U$2,\"BMA\",CONFIGURATION!$B$1,\"bscr\",\"\",1000000,$E$38,E13,$F$38,F13,$G$38,G13,$H$38,H13,$I$38,I13,$J$38,J13,$K$38,K13)","v":"Mapped"}]
[null,null,null,null,{"$f":"XBRLMapTuple($E$37,$U$1,$U$2,\"BMA\",CONFIGURATION!$B$1,\"bscr\",\"\",1000000,$E$38,E14,$F$38,F14,$G$38,G14,$H$38,H14,$I$38,I14,$J$38,J14,$K$38,K14)","v":"Mapped"}]
[null,null,null,null,{"$f":"XBRLMapTuple($E$37,$U$1,$U$2,\"BMA\",CONFIGURATION!$B$1,\"bscr\",\"\",1000000,$E$38,E15,$F$38,F15,$G$38,G15,$H$38,H15,$I$38,I15,$J$38,J15,$K$38,K15)","v":"Mapped"}]
[null,null,null,null,{"$f":"XBRLMapTuple($E$37,$U$1,$U$2,\"BMA\",CONFIGURATION!$B$1,\"bscr\",\"\",1000000,$E$38,E16,$F$38,F16,$G$38,G16,$H$38,H16,$I$38,I16,$J$38,J16,$K$38,K16)","v":"Mapped"}]
[null,null,null,null,{"$f":"XBRLMapTuple($E$37,$U$1,$U$2,\"BMA\",CONFIGURATION!$B$1,\"bscr\",\"\",1000000,$E$38,E17,$F$38,F17,$G$38,G17,$H$38,H17,$I$38,I17,$J$38,J17,$K$38,K17)","v":"Mapped"}]
[null,null,null,null,{"$f":"XBRLMapTuple($E$37,$U$1,$U$2,\"BMA\",CONFIGURATION!$B$1,\"bscr\",\"\",1000000,$E$38,E18,$F$38,F18,$G$38,G18,$H$38,H18,$I$38,I18,$J$38,J18,$K$38,K18)","v":"Mapped"}]
[]
[]
[]
[]
[]
[null,null,null,null,"brrt_NBCRReinsuranceTerrorismExposureUSStateOrCountry"]
[null,null,null,null,"brrt_NBCRReinsuranceTerrorismExposureUSStateOrCountryUSStateOrCountry","brrt_NBCRReinsuranceTerrorismExposureUSStateOrCountryCountry","brrt_NBCRReinsuranceTerrorismExposureUSStateOrCountryDirectReinsuranceLimitsExposedToTerrorism","brrt_NBCRReinsuranceTerrorismExposureUSStateOrCountryTotalGrossReinsuranceLimitsExposedToTerrorism","brrt_NBCRReinsuranceTerrorismExposureUSStateOrCountryTRIPOrOtherTerrorPoolRecoverablesForReinsuranceLimitsExposedToTerrorism","brrt_NBCRReinsuranceTerrorismExposureUSStateOrCountryReinsuranceRecoveriesForReinsuranceLimitsExposedToTerrorism","brrt_NBCRReinsuranceTerrorismExposureUSStateOrCountryTotalNetReinsuranceLimitsExposedToTerrorism"]
[null,null,null,null,{"$f":"XBRLMapTuple($E$54,$U$1,$U$2,\"BMA\",CONFIGURATION!$B$1,\"bscr\",\"con_reins_terrorism_1\",1000000,$E$55,E24,$F$55,F24,$G$55,G24,$H$55,H24,$I$55,I24,$J$55,J24,$K$55,K24)","v":"Mapped"}]
[null,null,null,null,{"$f":"XBRLMapTuple($E$54,$U$1,$U$2,\"BMA\",CONFIGURATION!$B$1,\"bscr\",\"con_reins_terrorism_1\",1000000,$E$55,E25,$F$55,F25,$G$55,G25,$H$55,H25,$I$55,I25,$J$55,J25,$K$55,K25)","v":"Mapped"}]
[null,null,null,null,{"$f":"XBRLMapTuple($E$54,$U$1,$U$2,\"BMA\",CONFIGURATION!$B$1,\"bscr\",\"con_reins_terrorism_1\",1000000,$E$55,E26,$F$55,F26,$G$55,G26,$H$55,H26,$I$55,I26,$J$55,J26,$K$55,K26)","v":"Mapped"}]
[null,null,null,null,{"$f":"XBRLMapTuple($E$54,$U$1,$U$2,\"BMA\",CONFIGURATION!$B$1,\"bscr\",\"con_reins_terrorism_1\",1000000,$E$55,E27,$F$55,F27,$G$55,G27,$H$55,H27,$I$55,I27,$J$55,J27,$K$55,K27)","v":"Mapped"}]
[null,null,null,null,{"$f":"XBRLMapTuple($E$54,$U$1,$U$2,\"BMA\",CONFIGURATION!$B$1,\"bscr\",\"con_reins_terrorism_1\",1000000,$E$55,E28,$F$55,F28,$G$55,G28,$H$55,H28,$I$55,I28,$J$55,J28,$K$55,K28)","v":"Mapped"}]
[null,null,null,null,{"$f":"XBRLMapTuple($E$54,$U$1,$U$2,\"BMA\",CONFIGURATION!$B$1,\"bscr\",\"con_reins_terrorism_1\",1000000,$E$55,E29,$F$55,F29,$G$55,G29,$H$55,H29,$I$55,I29,$J$55,J29,$K$55,K29)","v":"Mapped"}]
[null,null,null,null,{"$f":"XBRLMapTuple($E$54,$U$1,$U$2,\"BMA\",CONFIGURATION!$B$1,\"bscr\",\"con_reins_terrorism_1\",1000000,$E$55,E30,$F$55,F30,$G$55,G30,$H$55,H30,$I$55,I30,$J$55,J30,$K$55,K30)","v":"Mapped"}]
[null,null,null,null,{"$f":"XBRLMapTuple($E$54,$U$1,$U$2,\"BMA\",CONFIGURATION!$B$1,\"bscr\",\"con_reins_terrorism_1\",1000000,$E$55,E31,$F$55,F31,$G$55,G31,$H$55,H31,$I$55,I31,$J$55,J31,$K$55,K31)","v":"Mapped"}]
[null,null,null,null,{"$f":"XBRLMapTuple($E$54,$U$1,$U$2,\"BMA\",CONFIGURATION!$B$1,\"bscr\",\"con_reins_terrorism_1\",1000000,$E$55,E32,$F$55,F32,$G$55,G32,$H$55,H32,$I$55,I32,$J$55,J32,$K$55,K32)","v":"Mapped"}]
[null,null,null,null,{"$f":"XBRLMapTuple($E$54,$U$1,$U$2,\"BMA\",CONFIGURATION!$B$1,\"bscr\",\"con_reins_terrorism_1\",1000000,$E$55,E33,$F$55,F33,$G$55,G33,$H$55,H33,$I$55,I33,$J$55,J33,$K$55,K33)","v":"Mapped"}]

{"sheet":"Schedule X(j)","index":61,"n_rows":26,"n_cols":17,"rows_kept":26,"cut":false,"hidden":false,"merged":[[2,1,2,2],[0,1,0,3],[4,1,4,4]]}
[null,"CATASTROPHE RISK RETURN: ASSUMED EXCHANGE RATES  (TABLE 9I) ",null,null,{"$f":"HYPERLINK(\"#'Index'!A1\",\"Return to Index\")","v":"Return to Index"},null,null,null,null,null,{"$f":"'Company Information'!L1","v":"01/01/2019"}]
[null,{"$f":"'Company Information'!C7","v":"Enter Company Name"},null,null,null,null,null,null,null,null,{"$f":"'Company Information'!L2","v":"12/31/2019"}]
[null,{"$f":"'Company Information'!C3+1","v":"2020-01-01"},null,null,"SCHEDULE X(j) "]
[]
[null,"Insurer shall input the exchange rate(s) used to translate the \"EP Curves Total\" (all region-perils combined) to US$."]
[]
[null,null,"Currency","EP Curve - Total all region-perils combined"]
[null,null,"USD",1,null,null,null,null,null,null,null,null,null,null,null,"bma_AssumedExchangeRates_CurrencyDollar"]
[null,null,"USD:EUR",{"$f":"Import!I7311","v":0},null,null,"brrt_CurrenciesAxis_brrt_EURMember",{"$f":"XBRLMap(D9,$D$26&\".\"&G9,$K$1,$K$2,CONFIGURATION!$B$10,\"BMA\",CONFIGURATION!$B$1,\"bscr\")","v":"Mapped"},{"$f":"XBRLMap(C9,$C$26&\".\"&G9,$K$1,$K$2,CONFIGURATION!$B$10,\"BMA\",CONFIGURATION!$B$1,\"bscr\")","v":"Mapped"},null,null,null,null,null,null,"bma_AssumedExchangeRates_CurrencyDollareur"]
[null,null,"USD:GBP",{"$f":"Import!I7312","v":0},null,null,"brrt_CurrenciesAxis_brrt_GBPMember",{"$f":"XBRLMap(D10,$D$26&\".\"&G10,$K$1,$K$2,CONFIGURATION!$B$10,\"BMA\",CONFIGURATION!$B$1,\"bscr\")","v":"Mapped"},{"$f":"XBRLMap(C10,$C$26&\".\"&G10,$K$1,$K$2,CONFIGURATION!$B$10,\"BMA\",CONFIGURATION!$B$1,\"bscr\")","v":"Mapped"},null,null,null,null,null,null,"bma_AssumedExchangeRates_CurrencyDollargbp"]
[null,null,"USD:Yen",{"$f":"Import!I7313","v":0},null,null,"brrt_CurrenciesAxis_brrt_JPYMember",{"$f":"XBRLMap(D11,$D$26&\".\"&G11,$K$1,$K$2,CONFIGURATION!$B$10,\"BMA\",CONFIGURATION!$B$1,\"bscr\")","v":"Mapped"},{"$f":"XBRLMap(C11,$C$26&\".\"&G11,$K$1,$K$2,CONFIGURATION!$B$10,\"BMA\",CONFIGURATION!$B$1,\"bscr\")","v":"Mapped"},null,null,null,null,null,null,"bma_AssumedExchangeRates_CurrencyDollaryen"]
[null,null,"USD:CHF",{"$f":"Import!I7314","v":0},null,null,"brrt_CurrenciesAxis_brrt_CHFMember",{"$f":"XBRLMap(D12,$D$26&\".\"&G12,$K$1,$K$2,CONFIGURATION!$B$10,\"BMA\",CONFIGURATION!$B$1,\"bscr\")","v":"Mapped"},{"$f":"XBRLMap(C12,$C$26&\".\"&G12,$K$1,$K$2,CONFIGURATION!$B$10,\"BMA\",CONFIGURATION!$B$1,\"bscr\")","v":"Mapped"},null,null,null,null,null,null,"bma_AssumedExchangeRates_CurrencyDollarchf"]
[null,null,{"$f":"Import!I7304","v":"USD:"},{"$f":"Import!I7315","v":0},null,null,"brrt_CurrenciesAxis_brrt_CUR1Member",{"$f":"XBRLMap(D13,$D$26&\".\"&G13,$K$1,$K$2,CONFIGURATION!$B$10,\"BMA\",CONFIGURATION!$B$1,\"bscr\")","v":"Mapped"},{"$f":"XBRLMap(C13,$C$26&\".\"&G13,$K$1,$K$2,CONFIGURATION!$B$10,\"BMA\",CONFIGURATION!$B$1,\"bscr\")","v":"Mapped"},null,null,null,null,null,null,"bma_AssumedExchangeRates_CurrencyDollarother_1","bma_AssumedExchangeRates_CurrencyOtherLabel1"]
[null,null,{"$f":"Import!I7305","v":"USD:"},{"$f":"Import!I7316","v":0},null,null,"brrt_CurrenciesAxis_brrt_CUR2Member",{"$f":"XBRLMap(D14,$D$26&\".\"&G14,$K$1,$K$2,CONFIGURATION!$B$10,\"BMA\",CONFIGURATION!$B$1,\"bscr\")","v":"Mapped"},{"$f":"XBRLMap(C14,$C$26&\".\"&G14,$K$1,$K$2,CONFIGURATION!$B$10,\"BMA\",CONFIGURATION!$B$1,\"bscr\")","v":"Mapped"},null,null,null,null,null,null,"bma_AssumedExchangeRates_CurrencyDollarother_2","bma_AssumedExchangeRates_CurrencyOtherLabel2"]
[null,null,{"$f":"Import!I7306","v":"USD:"},{"$f":"Import!I7317","v":0},null,null,"brrt_CurrenciesAxis_brrt_CUR3Member",{"$f":"XBRLMap(D15,$D$26&\".\"&G15,$K$1,$K$2,CONFIGURATION!$B$10,\"BMA\",CONFIGURATION!$B$1,\"bscr\")","v":"Mapped"},{"$f":"XBRLMap(C15,$C$26&\".\"&G15,$K$1,$K$2,CONFIGURATION!$B$10,\"BMA\",CONFIGURATION!$B$1,\"bscr\")","v":"Mapped"},null,null,null,null,null,null,"bma_AssumedExchangeRates_CurrencyDollarother_3","bma_AssumedExchangeRates_CurrencyOtherLabel3"]
[null,null,{"$f":"Import!I7307","v":"USD:"},{"$f":"Import!I7318","v":0},null,null,"brrt_CurrenciesAxis_brrt_CUR4Member",{"$f":"XBRLMap(D16,$D$26&\".\"&G16,$K$1,$K$2,CONFIGURATION!$B$10,\"BMA\",CONFIGURATION!$B$1,\"bscr\")","v":"Mapped"},{"$f":"XBRLMap(C16,$C$26&\".\"&G16,$K$1,$K$2,CONFIGURATION!$B$10,\"BMA\",CONFIGURATION!$B$1,\"bscr\")","v":"Mapped"},null,null,null,null,null,null,"bma_AssumedExchangeRates_CurrencyDollarother_4","bma_AssumedExchangeRates_CurrencyOtherLabel4"]
[null,null,{"$f":"Import!I7308","v":"USD:"},{"$f":"Import!I7319","v":0},null,null,"brrt_CurrenciesAxis_brrt_CUR5Member",{"$f":"XBRLMap(D17,$D$26&\".\"&G17,$K$1,$K$2,CONFIGURATION!$B$10,\"BMA\",CONFIGURATION!$B$1,\"bscr\")","v":"Mapped"},{"$f":"XBRLMap(C17,$C$26&\".\"&G17,$K$1,$K$2,CONFIGURATION!$B$10,\"BMA\",CONFIGURATION!$B$1,\"bscr\")","v":"Mapped"},null,null,null,null,null,null,"bma_AssumedExchangeRates_CurrencyDollarother_5","bma_AssumedExchangeRates_CurrencyOtherLabel5"]
[null,null,{"$f":"Import!I7309","v":"USD:"},{"$f":"Import!I7320","v":0},null,null,"brrt_CurrenciesAxis_brrt_CUR6Member",{"$f":"XBRLMap(D18,$D$26&\".\"&G18,$K$1,$K$2,CONFIGURATION!$B$10,\"BMA\",CONFIGURATION!$B$1,\"bscr\")","v":"Mapped"},{"$f":"XBRLMap(C18,$C$26&\".\"&G18,$K$1,$K$2,CONFIGURATION!$B$10,\"BMA\",CONFIGURATION!$B$1,\"bscr\")","v":"Mapped"},null,null,null,null,null,null,"bma_AssumedExchangeRates_CurrencyDollarother_6","bma_AssumedExchangeRates_CurrencyOtherLabel6"]
[null,null,"USD:",null,null,null,"brrt_CurrenciesAxis_brrt_CUR7Member",{"$f":"XBRLMap(D19,$D$26&\".\"&G19,$K$1,$K$2,CONFIGURATION!$B$10,\"BMA\",CONFIGURATION!$B$1,\"bscr\")","v":"Mapped"},{"$f":"XBRLMap(C19,$C$26&\".\"&G19,$K$1,$K$2,CONFIGURATION!$B$10,\"BMA\",CONFIGURATION!$B$1,\"bscr\")","v":"Mapped"},null,null,null,null,null,null,"bma_AssumedExchangeRates_CurrencyDollarother_7","bma_AssumedExchangeRates_CurrencyOtherLabel7"]
[]
[]
[]
[]
[]
[]
[null,null,"brrt_ExchangeRateCurrencyDescription","brrt_ExchangeRate"]

{"sheet":"Schedule XI","index":62,"n_rows":30,"n_cols":6,"rows_kept":30,"cut":false,"hidden":false,"merged":[[1,1,1,5]]}
[null,"SCHEDULE OF LOSS TRIANGLES OR RECONCILIATION OF NET LOSS RESERVES ",null,null,null,{"$f":"HYPERLINK(\"#'Index'!A1\",\"Return to Index\")","v":"Return to Index"}]
[null,"The insurer shall provide either loss triangles - Schedule XI(a) - or a reconciliation of its beginning and ending net loss reserve balances - Schedule XI(b) -  for the following 8 statutory lines of business:"]
[]
[null,"Lines of business mapped into statutory lines of business"]
[]
[null,"Number","Loss triangle lines of business","Number","Statutory line of business"]
[null,1,"Property Catastrophe",1,"Property Catastrophe"]
[null,2,"Property  ",2,"Property  "]
[null,null,null,6,"Aviation"]
[null,null,null,10,"Energy Offshore / Marine"]
[null,null,null,18,"International Motor"]
[null,null,null,22,"Retro Property"]
[null,3,"Property Non-Proportional",3,"Property Non-Proportional"]
[null,null,null,7,"Aviation Non-Proportional"]
[null,null,null,11,"Energy Offshore / Marine Non-Proportional"]
[null,null,null,19,"International Motor Non-Proportional"]
[null,4,"Casualty",4,"Personal Accident"]
[null,null,null,12,"US Casualty   "]
[null,null,null,14,"US Professional"]
[null,null,null,20,"International Casualty Non-Motor"]
[null,null,null,24,"Health"]
[null,5,"Casualty Non-Proportional",5,"Personal Accident Non-Proportional"]
[null,null,null,13,"US Casualty Non-Proportional"]
[null,null,null,15,"US Professional Non-Proportional"]
[null,null,null,21,"International Casualty Non-Motor Non-Proportional"]
[null,6,"Financial Lines",8,"Credit / Surety"]
[null,null,null,9,"Credit / Surety Non-Proporational"]
[null,7,"Other Specialty Lines",16,"US Specialty"]
[null,null,null,17,"US Specialty Non-Proportional"]
[null,8,"Structured/Finite Lines",23,"Structured / Finite Reinsurance"]

{"sheet":"Schedule XI(a)","index":63,"n_rows":172,"n_cols":50,"rows_kept":172,"cut":false,"hidden":false,"merged":[[6,12,8,12],[0,13,0,14],[1,13,1,14],[2,13,2,14],[2,1,2,2],[60,6,60,7],[23,2,23,11],[5,2,5,11],[41,2,41,11],[60,9,65,9],[60,10,65,10],[61,11,65,11],[59,6,59,7]]}
[null,"SCHEDULE OF LOSS TRIANGLES (COMBINED FOR ALL LINES)",null,null,null,null,null,null,null,null,null,null,null,{"$f":"HYPERLINK(\"#'Index'!A1\",\"Return to Index\")","v":"Return to Index"}]
[null,{"$f":"'Company Information'!C7","v":"Enter Company Name"},null,null,null,null,null,null,null,null,null,null,null,null,null,null,null,null,null,null,null,null,null,null,null,null,null,null,null,null,null,null,null,null,null,null,null,"bma_CombinedForAllLinesMember"]
[null,{"$f":"'Company Information'!C3","v":"2019-12-31"},null,null,null,null,null,null,null,null,null,null,null,"SCHEDULE XI(a)"]
[null,{"$f":"\"expressed in\"& IF(1000>1,\" ['\"&MID(1000,2,LEN(1000))&\"s]\",\"\")&\" \"&'Form 1EBS'!$C$4","v":"expressed in ['000s] United States Dollars"},null,null,null,null,null,null,null,null,null,null,null,null,null,null,null,null,"brrt_LineOfBusinessAxis_brrt_CombinedMember"]
[]
[null,null,"INCURRED (ESTIMATED ULTIMATE) NET LOSSES AND ALLOCATED LOSS ADJUSTMENT EXPENSES REPORTED AT YEAR END ($000)",null,null,null,null,null,null,null,null,null,11,12,13]
[null,null,null,null,null,null,null,null,null,null,null,null,"Estimated Ultimate Catastrophe Losses","Development","Development",null,null,null,"brrt_TypeOfContractAxis_brrt_CombinedMember"]
[null,"Years in Which",1,2,3,4,5,6,7,8,9,10]
[null,"Losses Were",null,null,null,null,null,null,null,null,null,null,null,"One Year","Two Year"]
[null,"Incurred",{"$f":"D10-1","v":2010},2011,2012,2013,2014,2015,2016,2017,{"$f":"L10-1","v":2018},{"$f":"YEAR('Company Information'!C3)","v":2019},{"$f":"L10","v":2019},"Development","Development"]
["L1","Prior",{"$f":"'Sch XI(a)(i)'!C11+'Sch XI(a)(ii)'!C11+'Sch XI(a)(iii)'!C11+'Sch XI(a)(iv)'!C11+'Sch XI(a)(v)'!C11+'Sch XI(a)(vi)'!C11+'Sch XI(a)(vii)'!C11+'Sch XI(a)(viii)'!C11","v":0},{"$f":"'Sch XI(a)(i)'!D11+'Sch XI(a)(ii)'!D11+'Sch XI(a)(iii)'!D11+'Sch XI(a)(iv)'!D11+'Sch XI(a)(v)'!D11+'Sch XI(a)(vi)'!D11+'Sch XI(a)(vii)'!D11+'Sch XI(a)(viii)'!D11","v":0},{"$f":"'Sch XI(a)(i)'!E11+'Sch XI(a)(ii)'!E11+'Sch XI(a)(iii)'!E11+'Sch XI(a)(iv)'!E11+'Sch XI(a)(v)'!E11+'Sch XI(a)(vi)'!E11+'Sch XI(a)(vii)'!E11+'Sch XI(a)(viii)'!E11","v":0},{"$f":"'Sch XI(a)(i)'!F11+'Sch XI(a)(ii)'!F11+'Sch XI(a)(iii)'!F11+'Sch XI(a)(iv)'!F11+'Sch XI(a)(v)'!F11+'Sch XI(a)(vi)'!F11+'Sch XI(a)(vii)'!F11+'Sch XI(a)(viii)'!F11","v":0},{"$f":"'Sch XI(a)(i)'!G11+'Sch XI(a)(ii)'!G11+'Sch XI(a)(iii)'!G11+'Sch XI(a)(iv)'!G11+'Sch XI(a)(v)'!G11+'Sch XI(a)(vi)'!G11+'Sch XI(a)(vii)'!G11+'Sch XI(a)(viii)'!G11","v":0},{"$f":"'Sch XI(a)(i)'!H11+'Sch XI(a)(ii)'!H11+'Sch XI(a)(iii)'!H11+'Sch XI(a)(iv)'!H11+'Sch XI(a)(v)'!H11+'Sch XI(a)(vi)'!H11+'Sch XI(a)(vii)'!H11+'Sch XI(a)(viii)'!H11","v":0},{"$f":"'Sch XI(a)(i)'!I11+'Sch XI(a)(ii)'!I11+'Sch XI(a)(iii)'!I11+'Sch XI(a)(iv)'!I11+'Sch XI(a)(v)'!I11+'Sch XI(a)(vi)'!I11+'Sch XI(a)(vii)'!I11+'Sch XI(a)(viii)'!I11","v":0},{"$f":"'Sch XI(a)(i)'!J11+'Sch XI(a)(ii)'!J11+'Sch XI(a)(iii)'!J11+'Sch XI(a)(iv)'!J11+'Sch XI(a)(v)'!J11+'Sch XI(a)(vi)'!J11+'Sch XI(a)(vii)'!J11+'Sch XI(a)(viii)'!J11","v":0},{"$f":"'Sch XI(a)(i)'!K11+'Sch XI(a)(ii)'!K11+'Sch XI(a)(iii)'!K11+'Sch XI(a)(iv)'!K11+'Sch XI(a)(v)'!K11+'Sch XI(a)(vi)'!K11+'Sch XI(a)(vii)'!K11+'Sch XI(a)(viii)'!K11","v":0},{"$f":"'Sch XI(a)(i)'!L11+'Sch XI(a)(ii)'!L11+'Sch XI(a)(iii)'!L11+'Sch XI(a)(iv)'!L11+'Sch XI(a)(v)'!L11+'Sch XI(a)(vi)'!L11+'Sch XI(a)(vii)'!L11+'Sch XI(a)(viii)'!L11","v":0},{"$f":"'Sch XI(a)(i)'!M11+'Sch XI(a)(ii)'!M11+'Sch XI(a)(iii)'!M11+'Sch XI(a)(iv)'!M11+'Sch XI(a)(v)'!M11+'Sch XI(a)(vi)'!M11+'Sch XI(a)(vii)'!M11+'Sch XI(a)(viii)'!M11","v":0},{"$f":"K11-L11","v":0},{"$f":"J11-L11","v":0},null,null,null,"brrt_LossIncurredYearAxis_brrt_PriorMember",null,null,null,null,null,null,null,null,null,null,null,null,null,null,null,null,null,null,{"$f":"\"bma_\"&\"UltCY\"&R$10&\"AY\"&$B11","v":"bma_UltCYAYPrior"},"bma_UltCYAYPrior","bma_UltCYAYPrior",{"$f":"\"bma_\"&\"UltCY\"&U$10&\"AY\"&$B11","v":"bma_UltCYAYPrior"},{"$f":"\"bma_\"&\"UltCY\"&V$10&\"AY\"&$B11","v":"bma_UltCYAYPrior"},{"$f":"\"bma_\"&\"UltCY\"&W$10&\"AY\"&$B11","v":"bma_UltCYAYPrior"},{"$f":"\"bma_\"&\"UltCY\"&X$10&\"AY\"&$B11","v":"bma_UltCYAYPrior"},{"$f":"\"bma_\"&\"UltCY\"&Y$10&\"AY\"&$B11","v":"bma_UltCYAYPrior"},{"$f":"\"bma_\"&\"UltCY\"&Z$10&\"AY\"&$B11","v":"bma_UltCYAYPrior"},{"$f":"\"bma_\"&\"UltCY\"&AA$10&\"AY\"&$B11","v":"bma_UltCYAYPrior"},{"$f":"\"bma_\"&\"CATUltCY\"&AA$10&\"AY\"&$B11","v":"bma_CATUltCYAYPrior"},{"$f":"\"bma_\"&\"UltCY\"&\"OneYearDevelopment\"&\"AY\"&$B11","v":"bma_UltCYOneYearDevelopmentAYPrior"},{"$f":"\"bma_\"&\"UltCY\"&\"TwoYearDevelopment\"&\"AY\"&$B11","v":"bma_UltCYTwoYearDevelopmentAYPrior"}]
["L2",{"$f":"B13-1","v":2010},{"$f":"'Sch XI(a)(i)'!C12+'Sch XI(a)(ii)'!C12+'Sch XI(a)(iii)'!C12+'Sch XI(a)(iv)'!C12+'Sch XI(a)(v)'!C12+'Sch XI(a)(vi)'!C12+'Sch XI(a)(vii)'!C12+'Sch XI(a)(viii)'!C12","v":0},{"$f":"'Sch XI(a)(i)'!D12+'Sch XI(a)(ii)'!D12+'Sch XI(a)(iii)'!D12+'Sch XI(a)(iv)'!D12+'Sch XI(a)(v)'!D12+'Sch XI(a)(vi)'!D12+'Sch XI(a)(vii)'!D12+'Sch XI(a)(viii)'!D12","v":0},{"$f":"'Sch XI(a)(i)'!E12+'Sch XI(a)(ii)'!E12+'Sch XI(a)(iii)'!E12+'Sch XI(a)(iv)'!E12+'Sch XI(a)(v)'!E12+'Sch XI(a)(vi)'!E12+'Sch XI(a)(vii)'!E12+'Sch XI(a)(viii)'!E12","v":0},{"$f":"'Sch XI(a)(i)'!F12+'Sch XI(a)(ii)'!F12+'Sch XI(a)(iii)'!F12+'Sch XI(a)(iv)'!F12+'Sch XI(a)(v)'!F12+'Sch XI(a)(vi)'!F12+'Sch XI(a)(vii)'!F12+'Sch XI(a)(viii)'!F12","v":0},{"$f":"'Sch XI(a)(i)'!G12+'Sch XI(a)(ii)'!G12+'Sch XI(a)(iii)'!G12+'Sch XI(a)(iv)'!G12+'Sch XI(a)(v)'!G12+'Sch XI(a)(vi)'!G12+'Sch XI(a)(vii)'!G12+'Sch XI(a)(viii)'!G12","v":0},{"$f":"'Sch XI(a)(i)'!H12+'Sch XI(a)(ii)'!H12+'Sch XI(a)(iii)'!H12+'Sch XI(a)(iv)'!H12+'Sch XI(a)(v)'!H12+'Sch XI(a)(vi)'!H12+'Sch XI(a)(vii)'!H12+'Sch XI(a)(viii)'!H12","v":0},{"$f":"'Sch XI(a)(i)'!I12+'Sch XI(a)(ii)'!I12+'Sch XI(a)(iii)'!I12+'Sch XI(a)(iv)'!I12+'Sch XI(a)(v)'!I12+'Sch XI(a)(vi)'!I12+'Sch XI(a)(vii)'!I12+'Sch XI(a)(viii)'!I12","v":0},{"$f":"'Sch XI(a)(i)'!J12+'Sch XI(a)(ii)'!J12+'Sch XI(a)(iii)'!J12+'Sch XI(a)(iv)'!J12+'Sch XI(a)(v)'!J12+'Sch XI(a)(vi)'!J12+'Sch XI(a)(vii)'!J12+'Sch XI(a)(viii)'!J12","v":0},{"$f":"'Sch XI(a)(i)'!K12+'Sch XI(a)(ii)'!K12+'Sch XI(a)(iii)'!K12+'Sch XI(a)(iv)'!K12+'Sch XI(a)(v)'!K12+'Sch XI(a)(vi)'!K12+'Sch XI(a)(vii)'!K12+'Sch XI(a)(viii)'!K12","v":0},{"$f":"'Sch XI(a)(i)'!L12+'Sch XI(a)(ii)'!L12+'Sch XI(a)(iii)'!L12+'Sch XI(a)(iv)'!L12+'Sch XI(a)(v)'!L12+'Sch XI(a)(vi)'!L12+'Sch XI(a)(vii)'!L12+'Sch XI(a)(viii)'!L12","v":0},{"$f":"'Sch XI(a)(i)'!M12+'Sch XI(a)(ii)'!M12+'Sch XI(a)(iii)'!M12+'Sch XI(a)(iv)'!M12+'Sch XI(a)(v)'!M12+'Sch XI(a)(vi)'!M12+'Sch XI(a)(vii)'!M12+'Sch XI(a)(viii)'!M12","v":0},0,0,null,null,null,"brrt_LossIncurredYearAxis_brrt_XNMinus9Member",null,null,null,null,null,null,null,null,null,null,null,null,null,null,null,null,null,null,"bma_UltCYAY2010","bma_UltCYAY2010","bma_UltCYAY2010",{"$f":"\"bma_\"&\"UltCY\"&U$10&\"AY\"&$B12","v":"bma_UltCYAY2010"},"bma_UltCYAY2010","bma_UltCYAY2010","bma_UltCYAY2010","bma_UltCYAY2010","bma_UltCYAY2010","bma_UltCYAY2010",{"$f":"\"bma_\"&\"CATUltCY\"&AA$10&\"AY\"&$B12","v":"bma_CATUltCYAY2010"},{"$f":"\"bma_\"&\"UltCY\"&\"OneYearDevelopment\"&\"AY\"&$B12","v":"bma_UltCYOneYearDevelopmentAY2010"},{"$f":"\"bma_\"&\"UltCY\"&\"TwoYearDevelopment\"&\"AY\"&$B12","v":"bma_UltCYTwoYearDevelopmentAY2010"}]
["L3",2011,"XXX",{"$f":"'Sch XI(a)(i)'!D13+'Sch XI(a)(ii)'!D13+'Sch XI(a)(iii)'!D13+'Sch XI(a)(iv)'!D13+'Sch XI(a)(v)'!D13+'Sch XI(a)(vi)'!D13+'Sch XI(a)(vii)'!D13+'Sch XI(a)(viii)'!D13","v":0},{"$f":"'Sch XI(a)(i)'!E13+'Sch XI(a)(ii)'!E13+'Sch XI(a)(iii)'!E13+'Sch XI(a)(iv)'!E13+'Sch XI(a)(v)'!E13+'Sch XI(a)(vi)'!E13+'Sch XI(a)(vii)'!E13+'Sch XI(a)(viii)'!E13","v":0},{"$f":"'Sch XI(a)(i)'!F13+'Sch XI(a)(ii)'!F13+'Sch XI(a)(iii)'!F13+'Sch XI(a)(iv)'!F13+'Sch XI(a)(v)'!F13+'Sch XI(a)(vi)'!F13+'Sch XI(a)(vii)'!F13+'Sch XI(a)(viii)'!F13","v":0},{"$f":"'Sch XI(a)(i)'!G13+'Sch XI(a)(ii)'!G13+'Sch XI(a)(iii)'!G13+'Sch XI(a)(iv)'!G13+'Sch XI(a)(v)'!G13+'Sch XI(a)(vi)'!G13+'Sch XI(a)(vii)'!G13+'Sch XI(a)(viii)'!G13","v":0},{"$f":"'Sch XI(a)(i)'!H13+'Sch XI(a)(ii)'!H13+'Sch XI(a)(iii)'!H13+'Sch XI(a)(iv)'!H13+'Sch XI(a)(v)'!H13+'Sch XI(a)(vi)'!H13+'Sch XI(a)(vii)'!H13+'Sch XI(a)(viii)'!H13","v":0},{"$f":"'Sch XI(a)(i)'!I13+'Sch XI(a)(ii)'!I13+'Sch XI(a)(iii)'!I13+'Sch XI(a)(iv)'!I13+'Sch XI(a)(v)'!I13+'Sch XI(a)(vi)'!I13+'Sch XI(a)(vii)'!I13+'Sch XI(a)(viii)'!I13","v":0},{"$f":"'Sch XI(a)(i)'!J13+'Sch XI(a)(ii)'!J13+'Sch XI(a)(iii)'!J13+'Sch XI(a)(iv)'!J13+'Sch XI(a)(v)'!J13+'Sch XI(a)(vi)'!J13+'Sch XI(a)(vii)'!J13+'Sch XI(a)(viii)'!J13","v":0},{"$f":"'Sch XI(a)(i)'!K13+'Sch XI(a)(ii)'!K13+'Sch XI(a)(iii)'!K13+'Sch XI(a)(iv)'!K13+'Sch XI(a)(v)'!K13+'Sch XI(a)(vi)'!K13+'Sch XI(a)(vii)'!K13+'Sch XI(a)(viii)'!K13","v":0},{"$f":"'Sch XI(a)(i)'!L13+'Sch XI(a)(ii)'!L13+'Sch XI(a)(iii)'!L13+'Sch XI(a)(iv)'!L13+'Sch XI(a)(v)'!L13+'Sch XI(a)(vi)'!L13+'Sch XI(a)(vii)'!L13+'Sch XI(a)(viii)'!L13","v":0},{"$f":"'Sch XI(a)(i)'!M13+'Sch XI(a)(ii)'!M13+'Sch XI(a)(iii)'!M13+'Sch XI(a)(iv)'!M13+'Sch XI(a)(v)'!M13+'Sch XI(a)(vi)'!M13+'Sch XI(a)(vii)'!M13+'Sch XI(a)(viii)'!M13","v":0},0,0,null,null,null,"brrt_LossIncurredYearAxis_brrt_XNMinus8Member",null,null,null,null,null,null,null,null,null,null,null,null,null,null,null,null,null,null,null,{"$f":"\"bma_\"&\"UltCY\"&S$10&\"AY\"&$B13","v":"bma_UltCYAY2011"},{"$f":"\"bma_\"&\"UltCY\"&T$10&\"AY\"&$B13","v":"bma_UltCYAY2011"},{"$f":"\"bma_\"&\"UltCY\"&U$10&\"AY\"&$B13","v":"bma_UltCYAY2011"},"bma_UltCYAY2011","bma_UltCYAY2011","bma_UltCYAY2011","bma_UltCYAY2011","bma_UltCYAY2011","bma_UltCYAY2011","bma_CATUltCYAY2011","bma_UltCYOneYearDevelopmentAY2011","bma_UltCYTwoYearDevelopmentAY2011"]
["L4",2012,"XXX","XXX",{"$f":"'Sch XI(a)(i)'!E14+'Sch XI(a)(ii)'!E14+'Sch XI(a)(iii)'!E14+'Sch XI(a)(iv)'!E14+'Sch XI(a)(v)'!E14+'Sch XI(a)(vi)'!E14+'Sch XI(a)(vii)'!E14+'Sch XI(a)(viii)'!E14","v":0},{"$f":"'Sch XI(a)(i)'!F14+'Sch XI(a)(ii)'!F14+'Sch XI(a)(iii)'!F14+'Sch XI(a)(iv)'!F14+'Sch XI(a)(v)'!F14+'Sch XI(a)(vi)'!F14+'Sch XI(a)(vii)'!F14+'Sch XI(a)(viii)'!F14","v":0},{"$f":"'Sch XI(a)(i)'!G14+'Sch XI(a)(ii)'!G14+'Sch XI(a)(iii)'!G14+'Sch XI(a)(iv)'!G14+'Sch XI(a)(v)'!G14+'Sch XI(a)(vi)'!G14+'Sch XI(a)(vii)'!G14+'Sch XI(a)(viii)'!G14","v":0},{"$f":"'Sch XI(a)(i)'!H14+'Sch XI(a)(ii)'!H14+'Sch XI(a)(iii)'!H14+'Sch XI(a)(iv)'!H14+'Sch XI(a)(v)'!H14+'Sch XI(a)(vi)'!H14+'Sch XI(a)(vii)'!H14+'Sch XI(a)(viii)'!H14","v":0},{"$f":"'Sch XI(a)(i)'!I14+'Sch XI(a)(ii)'!I14+'Sch XI(a)(iii)'!I14+'Sch XI(a)(iv)'!I14+'Sch XI(a)(v)'!I14+'Sch XI(a)(vi)'!I14+'Sch XI(a)(vii)'!I14+'Sch XI(a)(viii)'!I14","v":0},{"$f":"'Sch XI(a)(i)'!J14+'Sch XI(a)(ii)'!J14+'Sch XI(a)(iii)'!J14+'Sch XI(a)(iv)'!J14+'Sch XI(a)(v)'!J14+'Sch XI(a)(vi)'!J14+'Sch XI(a)(vii)'!J14+'Sch XI(a)(viii)'!J14","v":0},{"$f":"'Sch XI(a)(i)'!K14+'Sch XI(a)(ii)'!K14+'Sch XI(a)(iii)'!K14+'Sch XI(a)(iv)'!K14+'Sch XI(a)(v)'!K14+'Sch XI(a)(vi)'!K14+'Sch XI(a)(vii)'!K14+'Sch XI(a)(viii)'!K14","v":0},{"$f":"'Sch XI(a)(i)'!L14+'Sch XI(a)(ii)'!L14+'Sch XI(a)(iii)'!L14+'Sch XI(a)(iv)'!L14+'Sch XI(a)(v)'!L14+'Sch XI(a)(vi)'!L14+'Sch XI(a)(vii)'!L14+'Sch XI(a)(viii)'!L14","v":0},{"$f":"'Sch XI(a)(i)'!M14+'Sch XI(a)(ii)'!M14+'Sch XI(a)(iii)'!M14+'Sch XI(a)(iv)'!M14+'Sch XI(a)(v)'!M14+'Sch XI(a)(vi)'!M14+'Sch XI(a)(vii)'!M14+'Sch XI(a)(viii)'!M14","v":0},0,0,null,null,null,"brrt_LossIncurredYearAxis_brrt_XNMinus7Member",null,null,null,null,null,null,null,null,null,null,null,null,null,null,null,null,null,null,null,null,{"$f":"\"bma_\"&\"UltCY\"&T$10&\"AY\"&$B14","v":"bma_UltCYAY2012"},{"$f":"\"bma_\"&\"UltCY\"&U$10&\"AY\"&$B14","v":"bma_UltCYAY2012"},"bma_UltCYAY2012","bma_UltCYAY2012","bma_UltCYAY2012","bma_UltCYAY2012","bma_UltCYAY2012","bma_UltCYAY2012","bma_CATUltCYAY2012","bma_UltCYOneYearDevelopmentAY2012","bma_UltCYTwoYearDevelopmentAY2012"]
["L5",2013,"XXX","XXX","XXX",{"$f":"'Sch XI(a)(i)'!F15+'Sch XI(a)(ii)'!F15+'Sch XI(a)(iii)'!F15+'Sch XI(a)(iv)'!F15+'Sch XI(a)(v)'!F15+'Sch XI(a)(vi)'!F15+'Sch XI(a)(vii)'!F15+'Sch XI(a)(viii)'!F15","v":0},{"$f":"'Sch XI(a)(i)'!G15+'Sch XI(a)(ii)'!G15+'Sch XI(a)(iii)'!G15+'Sch XI(a)(iv)'!G15+'Sch XI(a)(v)'!G15+'Sch XI(a)(vi)'!G15+'Sch XI(a)(vii)'!G15+'Sch XI(a)(viii)'!G15","v":0},{"$f":"'Sch XI(a)(i)'!H15+'Sch XI(a)(ii)'!H15+'Sch XI(a)(iii)'!H15+'Sch XI(a)(iv)'!H15+'Sch XI(a)(v)'!H15+'Sch XI(a)(vi)'!H15+'Sch XI(a)(vii)'!H15+'Sch XI(a)(viii)'!H15","v":0},{"$f":"'Sch XI(a)(i)'!I15+'Sch XI(a)(ii)'!I15+'Sch XI(a)(iii)'!I15+'Sch XI(a)(iv)'!I15+'Sch XI(a)(v)'!I15+'Sch XI(a)(vi)'!I15+'Sch XI(a)(vii)'!I15+'Sch XI(a)(viii)'!I15","v":0},{"$f":"'Sch XI(a)(i)'!J15+'Sch XI(a)(ii)'!J15+'Sch XI(a)(iii)'!J15+'Sch XI(a)(iv)'!J15+'Sch XI(a)(v)'!J15+'Sch XI(a)(vi)'!J15+'Sch XI(a)(vii)'!J15+'Sch XI(a)(viii)'!J15","v":0},{"$f":"'Sch XI(a)(i)'!K15+'Sch XI(a)(ii)'!K15+'Sch XI(a)(iii)'!K15+'Sch XI(a)(iv)'!K15+'Sch XI(a)(v)'!K15+'Sch XI(a)(vi)'!K15+'Sch XI(a)(vii)'!K15+'Sch XI(a)(viii)'!K15","v":0},{"$f":"'Sch XI(a)(i)'!L15+'Sch XI(a)(ii)'!L15+'Sch XI(a)(iii)'!L15+'Sch XI(a)(iv)'!L15+'Sch XI(a)(v)'!L15+'Sch XI(a)(vi)'!L15+'Sch XI(a)(vii)'!L15+'Sch XI(a)(viii)'!L15","v":0},{"$f":"'Sch XI(a)(i)'!M15+'Sch XI(a)(ii)'!M15+'Sch XI(a)(iii)'!M15+'Sch XI(a)(iv)'!M15+'Sch XI(a)(v)'!M15+'Sch XI(a)(vi)'!M15+'Sch XI(a)(vii)'!M15+'Sch XI(a)(viii)'!M15","v":0},0,0,null,null,null,"brrt_LossIncurredYearAxis_brrt_XNMinus6Member",null,null,null,null,null,null,null,null,null,null,null,null,null,null,null,null,null,null,null,null,null,{"$f":"\"bma_\"&\"UltCY\"&U$10&\"AY\"&$B15","v":"bma_UltCYAY2013"},"bma_UltCYAY2013","bma_UltCYAY2013","bma_UltCYAY2013","bma_UltCYAY2013","bma_UltCYAY2013","bma_UltCYAY2013","bma_CATUltCYAY2013","bma_UltCYOneYearDevelopmentAY2013","bma_UltCYTwoYearDevelopmentAY2013"]
["L6",2014,"XXX","XXX","XXX","XXX",{"$f":"'Sch XI(a)(i)'!G16+'Sch XI(a)(ii)'!G16+'Sch XI(a)(iii)'!G16+'Sch XI(a)(iv)'!G16+'Sch XI(a)(v)'!G16+'Sch XI(a)(vi)'!G16+'Sch XI(a)(vii)'!G16+'Sch XI(a)(viii)'!G16","v":0},{"$f":"'Sch XI(a)(i)'!H16+'Sch XI(a)(ii)'!H16+'Sch XI(a)(iii)'!H16+'Sch XI(a)(iv)'!H16+'Sch XI(a)(v)'!H16+'Sch XI(a)(vi)'!H16+'Sch XI(a)(vii)'!H16+'Sch XI(a)(viii)'!H16","v":0},{"$f":"'Sch XI(a)(i)'!I16+'Sch XI(a)(ii)'!I16+'Sch XI(a)(iii)'!I16+'Sch XI(a)(iv)'!I16+'Sch XI(a)(v)'!I16+'Sch XI(a)(vi)'!I16+'Sch XI(a)(vii)'!I16+'Sch XI(a)(viii)'!I16","v":0},{"$f":"'Sch XI(a)(i)'!J16+'Sch XI(a)(ii)'!J16+'Sch XI(a)(iii)'!J16+'Sch XI(a)(iv)'!J16+'Sch XI(a)(v)'!J16+'Sch XI(a)(vi)'!J16+'Sch XI(a)(vii)'!J16+'Sch XI(a)(viii)'!J16","v":0},{"$f":"'Sch XI(a)(i)'!K16+'Sch XI(a)(ii)'!K16+'Sch XI(a)(iii)'!K16+'Sch XI(a)(iv)'!K16+'Sch XI(a)(v)'!K16+'Sch XI(a)(vi)'!K16+'Sch XI(a)(vii)'!K16+'Sch XI(a)(viii)'!K16","v":0},{"$f":"'Sch XI(a)(i)'!L16+'Sch XI(a)(ii)'!L16+'Sch XI(a)(iii)'!L16+'Sch XI(a)(iv)'!L16+'Sch XI(a)(v)'!L16+'Sch XI(a)(vi)'!L16+'Sch XI(a)(vii)'!L16+'Sch XI(a)(viii)'!L16","v":0},{"$f":"'Sch XI(a)(i)'!M16+'Sch XI(a)(ii)'!M16+'Sch XI(a)(iii)'!M16+'Sch XI(a)(iv)'!M16+'Sch XI(a)(v)'!M16+'Sch XI(a)(vi)'!M16+'Sch XI(a)(vii)'!M16+'Sch XI(a)(viii)'!M16","v":0},0,0,null,null,null,"brrt_LossIncurredYearAxis_brrt_XNMinus5Member",null,null,null,null,null,null,null,null,null,null,null,null,null,null,null,null,null,null,null,null,null,null,"bma_UltCYAY2014","bma_UltCYAY2014","bma_UltCYAY2014","bma_UltCYAY2014","bma_UltCYAY2014","bma_UltCYAY2014","bma_CATUltCYAY2014","bma_UltCYOneYearDevelopmentAY2014","bma_UltCYTwoYearDevelopmentAY2014"]
["L7",2015,"XXX","XXX","XXX","XXX","XXX",{"$f":"'Sch XI(a)(i)'!H17+'Sch XI(a)(ii)'!H17+'Sch XI(a)(iii)'!H17+'Sch XI(a)(iv)'!H17+'Sch XI(a)(v)'!H17+'Sch XI(a)(vi)'!H17+'Sch XI(a)(vii)'!H17+'Sch XI(a)(viii)'!H17","v":0},{"$f":"'Sch XI(a)(i)'!I17+'Sch XI(a)(ii)'!I17+'Sch XI(a)(iii)'!I17+'Sch XI(a)(iv)'!I17+'Sch XI(a)(v)'!I17+'Sch XI(a)(vi)'!I17+'Sch XI(a)(vii)'!I17+'Sch XI(a)(viii)'!I17","v":0},{"$f":"'Sch XI(a)(i)'!J17+'Sch XI(a)(ii)'!J17+'Sch XI(a)(iii)'!J17+'Sch XI(a)(iv)'!J17+'Sch XI(a)(v)'!J17+'Sch XI(a)(vi)'!J17+'Sch XI(a)(vii)'!J17+'Sch XI(a)(viii)'!J17","v":0},{"$f":"'Sch XI(a)(i)'!K17+'Sch XI(a)(ii)'!K17+'Sch XI(a)(iii)'!K17+'Sch XI(a)(iv)'!K17+'Sch XI(a)(v)'!K17+'Sch XI(a)(vi)'!K17+'Sch XI(a)(vii)'!K17+'Sch XI(a)(viii)'!K17","v":0},{"$f":"'Sch XI(a)(i)'!L17+'Sch XI(a)(ii)'!L17+'Sch XI(a)(iii)'!L17+'Sch XI(a)(iv)'!L17+'Sch XI(a)(v)'!L17+'Sch XI(a)(vi)'!L17+'Sch XI(a)(vii)'!L17+'Sch XI(a)(viii)'!L17","v":0},{"$f":"'Sch XI(a)(i)'!M17+'Sch XI(a)(ii)'!M17+'Sch XI(a)(iii)'!M17+'Sch XI(a)(iv)'!M17+'Sch XI(a)(v)'!M17+'Sch XI(a)(vi)'!M17+'Sch XI(a)(vii)'!M17+'Sch XI(a)(viii)'!M17","v":0},0,0,null,null,null,"brrt_LossIncurredYearAxis_brrt_XNMinus4Member",null,null,null,null,null,null,null,null,null,null,null,null,null,null,null,null,null,null,null,null,null,null,null,"bma_UltCYAY2015","bma_UltCYAY2015","bma_UltCYAY2015","bma_UltCYAY2015","bma_UltCYAY2015","bma_CATUltCYAY2015","bma_UltCYOneYearDevelopmentAY2015","bma_UltCYTwoYearDevelopmentAY2015"]
["L8",2016,"XXX","XXX","XXX","XXX","XXX","XXX",{"$f":"'Sch XI(a)(i)'!I18+'Sch XI(a)(ii)'!I18+'Sch XI(a)(iii)'!I18+'Sch XI(a)(iv)'!I18+'Sch XI(a)(v)'!I18+'Sch XI(a)(vi)'!I18+'Sch XI(a)(vii)'!I18+'Sch XI(a)(viii)'!I18","v":0},{"$f":"'Sch XI(a)(i)'!J18+'Sch XI(a)(ii)'!J18+'Sch XI(a)(iii)'!J18+'Sch XI(a)(iv)'!J18+'Sch XI(a)(v)'!J18+'Sch XI(a)(vi)'!J18+'Sch XI(a)(vii)'!J18+'Sch XI(a)(viii)'!J18","v":0},{"$f":"'Sch XI(a)(i)'!K18+'Sch XI(a)(ii)'!K18+'Sch XI(a)(iii)'!K18+'Sch XI(a)(iv)'!K18+'Sch XI(a)(v)'!K18+'Sch XI(a)(vi)'!K18+'Sch XI(a)(vii)'!K18+'Sch XI(a)(viii)'!K18","v":0},{"$f":"'Sch XI(a)(i)'!L18+'Sch XI(a)(ii)'!L18+'Sch XI(a)(iii)'!L18+'Sch XI(a)(iv)'!L18+'Sch XI(a)(v)'!L18+'Sch XI(a)(vi)'!L18+'Sch XI(a)(vii)'!L18+'Sch XI(a)(viii)'!L18","v":0},{"$f":"'Sch XI(a)(i)'!M18+'Sch XI(a)(ii)'!M18+'Sch XI(a)(iii)'!M18+'Sch XI(a)(iv)'!M18+'Sch XI(a)(v)'!M18+'Sch XI(a)(vi)'!M18+'Sch XI(a)(vii)'!M18+'Sch XI(a)(viii)'!M18","v":0},0,0,null,null,null,"brrt_LossIncurredYearAxis_brrt_XNMinus3Member",null,null,null,null,null,null,null,null,null,null,null,null,null,null,null,null,null,null,null,null,null,null,null,null,"bma_UltCYAY2016","bma_UltCYAY2016","bma_UltCYAY2016","bma_UltCYAY2016","bma_CATUltCYAY2016","bma_UltCYOneYearDevelopmentAY2016","bma_UltCYTwoYearDevelopmentAY2016"]
["L9",2017,"XXX","XXX","XXX","XXX","XXX","XXX","XXX",{"$f":"'Sch XI(a)(i)'!J19+'Sch XI(a)(ii)'!J19+'Sch XI(a)(iii)'!J19+'Sch XI(a)(iv)'!J19+'Sch XI(a)(v)'!J19+'Sch XI(a)(vi)'!J19+'Sch XI(a)(vii)'!J19+'Sch XI(a)(viii)'!J19","v":0},{"$f":"'Sch XI(a)(i)'!K19+'Sch XI(a)(ii)'!K19+'Sch XI(a)(iii)'!K19+'Sch XI(a)(iv)'!K19+'Sch XI(a)(v)'!K19+'Sch XI(a)(vi)'!K19+'Sch XI(a)(vii)'!K19+'Sch XI(a)(viii)'!K19","v":0},{"$f":"'Sch XI(a)(i)'!L19+'Sch XI(a)(ii)'!L19+'Sch XI(a)(iii)'!L19+'Sch XI(a)(iv)'!L19+'Sch XI(a)(v)'!L19+'Sch XI(a)(vi)'!L19+'Sch XI(a)(vii)'!L19+'Sch XI(a)(viii)'!L19","v":0},{"$f":"'Sch XI(a)(i)'!M19+'Sch XI(a)(ii)'!M19+'Sch XI(a)(iii)'!M19+'Sch XI(a)(iv)'!M19+'Sch XI(a)(v)'!M19+'Sch XI(a)(vi)'!M19+'Sch XI(a)(vii)'!M19+'Sch XI(a)(viii)'!M19","v":0},0,0,null,null,null,"brrt_LossIncurredYearAxis_brrt_XNMinus2Member",null,null,null,null,null,null,null,null,null,null,null,null,null,null,null,null,null,null,null,null,null,null,null,null,null,"bma_UltCYAY2017","bma_UltCYAY2017","bma_UltCYAY2017","bma_CATUltCYAY2017","bma_UltCYOneYearDevelopmentAY2017","bma_UltCYTwoYearDevelopmentAY2017"]
["L10",2018,"XXX","XXX","XXX","XXX","XXX","XXX","XXX","XXX",{"$f":"'Sch XI(a)(i)'!K20+'Sch XI(a)(ii)'!K20+'Sch XI(a)(iii)'!K20+'Sch XI(a)(iv)'!K20+'Sch XI(a)(v)'!K20+'Sch XI(a)(vi)'!K20+'Sch XI(a)(vii)'!K20+'Sch XI(a)(viii)'!K20","v":0},{"$f":"'Sch XI(a)(i)'!L20+'Sch XI(a)(ii)'!L20+'Sch XI(a)(iii)'!L20+'Sch XI(a)(iv)'!L20+'Sch XI(a)(v)'!L20+'Sch XI(a)(vi)'!L20+'Sch XI(a)(vii)'!L20+'Sch XI(a)(viii)'!L20","v":0},{"$f":"'Sch XI(a)(i)'!M20+'Sch XI(a)(ii)'!M20+'Sch XI(a)(iii)'!M20+'Sch XI(a)(iv)'!M20+'Sch XI(a)(v)'!M20+'Sch XI(a)(vi)'!M20+'Sch XI(a)(vii)'!M20+'Sch XI(a)(viii)'!M20","v":0},0,"XXX",null,null,null,"brrt_LossIncurredYearAxis_brrt_XNMinus1Member",null,null,null,null,null,null,null,null,null,null,null,null,null,null,null,null,null,null,null,null,null,null,null,null,null,null,"bma_UltCYAY2018","bma_UltCYAY2018","bma_CATUltCYAY2018","bma_UltCYOneYearDevelopmentAY2018"]
["L11",{"$f":"L10","v":2019},"XXX","XXX","XXX","XXX","XXX","XXX","XXX","XXX","XXX",{"$f":"'Sch XI(a)(i)'!L21+'Sch XI(a)(ii)'!L21+'Sch XI(a)(iii)'!L21+'Sch XI(a)(iv)'!L21+'Sch XI(a)(v)'!L21+'Sch XI(a)(vi)'!L21+'Sch XI(a)(vii)'!L21+'Sch XI(a)(viii)'!L21","v":0},{"$f":"'Sch XI(a)(i)'!M21+'Sch XI(a)(ii)'!M21+'Sch XI(a)(iii)'!M21+'Sch XI(a)(iv)'!M21+'Sch XI(a)(v)'!M21+'Sch XI(a)(vi)'!M21+'Sch XI(a)(vii)'!M21+'Sch XI(a)(viii)'!M21","v":0},"XXX","XXX",null,null,null,"brrt_LossIncurredYearAxis_brrt_XNMember",null,null,null,null,null,null,null,null,null,null,null,null,null,null,null,null,null,null,null,null,null,null,null,null,null,null,null,"bma_UltCYAY2019","bma_CATUltCYAY2019"]
["L12","Totals",null,null,null,null,null,null,null,null,null,null,{"$f":"SUM(M11:M21)","v":0},{"$f":"SUM(N11:N21)","v":0},{"$f":"SUM(O11:O21)","v":0},null,null,null,null,null,null,null,null,null,null,null,null,null,null,null,null,null,null,null,null,null,null,null,null,null,null,null,null,null,null,null,null,"bma_CATUltCYAYTotals","bma_UltCYOneYearDevelopmentAYTotals",{"$f":"\"bma_\"&\"UltCY\"&\"TwoYearDevelopment\"&\"AY\"&$B22","v":"bma_UltCYTwoYearDevelopmentAYTotals"}]
[]
[null,null,"CUMULATIVE PAID NET LOSSES AND ALLOCATED LOSS ADJUSTMENT EXPENSES REPORTED AT YEAR END ($000)",null,null,null,null,null,null,null,null,null,24]
[null,null,null,null,null,null,null,null,null,null,null,null,"Paid"]
[null,"Years in Which",14,15,16,17,18,19,20,21,22,23,"Catastrophe"]
[null,"Policies Were",null,null,null,null,null,null,null,null,null,null,"Losses"]
[null,"Written",{"$f":"D28-1","v":2010},2011,2012,2013,2014,2015,2016,2017,2018,{"$f":"L10","v":2019},{"$f":"L28","v":2019}]
["L13","Prior",{"$f":"'Sch XI(a)(i)'!C29+'Sch XI(a)(ii)'!C29+'Sch XI(a)(iii)'!C29+'Sch XI(a)(iv)'!C29+'Sch XI(a)(v)'!C29+'Sch XI(a)(vi)'!C29+'Sch XI(a)(vii)'!C29+'Sch XI(a)(viii)'!C29","v":0},{"$f":"'Sch XI(a)(i)'!D29+'Sch XI(a)(ii)'!D29+'Sch XI(a)(iii)'!D29+'Sch XI(a)(iv)'!D29+'Sch XI(a)(v)'!D29+'Sch XI(a)(vi)'!D29+'Sch XI(a)(vii)'!D29+'Sch XI(a)(viii)'!D29","v":0},{"$f":"'Sch XI(a)(i)'!E29+'Sch XI(a)(ii)'!E29+'Sch XI(a)(iii)'!E29+'Sch XI(a)(iv)'!E29+'Sch XI(a)(v)'!E29+'Sch XI(a)(vi)'!E29+'Sch XI(a)(vii)'!E29+'Sch XI(a)(viii)'!E29","v":0},{"$f":"'Sch XI(a)(i)'!F29+'Sch XI(a)(ii)'!F29+'Sch XI(a)(iii)'!F29+'Sch XI(a)(iv)'!F29+'Sch XI(a)(v)'!F29+'Sch XI(a)(vi)'!F29+'Sch XI(a)(vii)'!F29+'Sch XI(a)(viii)'!F29","v":0},{"$f":"'Sch XI(a)(i)'!G29+'Sch XI(a)(ii)'!G29+'Sch XI(a)(iii)'!G29+'Sch XI(a)(iv)'!G29+'Sch XI(a)(v)'!G29+'Sch XI(a)(vi)'!G29+'Sch XI(a)(vii)'!G29+'Sch XI(a)(viii)'!G29","v":0},{"$f":"'Sch XI(a)(i)'!H29+'Sch XI(a)(ii)'!H29+'Sch XI(a)(iii)'!H29+'Sch XI(a)(iv)'!H29+'Sch XI(a)(v)'!H29+'Sch XI(a)(vi)'!H29+'Sch XI(a)(vii)'!H29+'Sch XI(a)(viii)'!H29","v":0},{"$f":"'Sch XI(a)(i)'!I29+'Sch XI(a)(ii)'!I29+'Sch XI(a)(iii)'!I29+'Sch XI(a)(iv)'!I29+'Sch XI(a)(v)'!I29+'Sch XI(a)(vi)'!I29+'Sch XI(a)(vii)'!I29+'Sch XI(a)(viii)'!I29","v":0},{"$f":"'Sch XI(a)(i)'!J29+'Sch XI(a)(ii)'!J29+'Sch XI(a)(iii)'!J29+'Sch XI(a)(iv)'!J29+'Sch XI(a)(v)'!J29+'Sch XI(a)(vi)'!J29+'Sch XI(a)(vii)'!J29+'Sch XI(a)(viii)'!J29","v":0},{"$f":"'Sch XI(a)(i)'!K29+'Sch XI(a)(ii)'!K29+'Sch XI(a)(iii)'!K29+'Sch XI(a)(iv)'!K29+'Sch XI(a)(v)'!K29+'Sch XI(a)(vi)'!K29+'Sch XI(a)(vii)'!K29+'Sch XI(a)(viii)'!K29","v":0},{"$f":"'Sch XI(a)(i)'!L29+'Sch XI(a)(ii)'!L29+'Sch XI(a)(iii)'!L29+'Sch XI(a)(iv)'!L29+'Sch XI(a)(v)'!L29+'Sch XI(a)(vi)'!L29+'Sch XI(a)(vii)'!L29+'Sch XI(a)(viii)'!L29","v":0},{"$f":"'Sch XI(a)(i)'!M29+'Sch XI(a)(ii)'!M29+'Sch XI(a)(iii)'!M29+'Sch XI(a)(iv)'!M29+'Sch XI(a)(v)'!M29+'Sch XI(a)(vi)'!M29+'Sch XI(a)(vii)'!M29+'Sch XI(a)(viii)'!M29","v":0},null,null,null,null,null,"brrt_PoliciesWrittenYearAxis_brrt_PriorMember",null,null,null,null,null,null,null,null,null,null,null,null,null,null,null,null,null,null,{"$f":"\"bma_\"&\"PaidCY\"&R$10&\"AY\"&$B29","v":"bma_PaidCYAYPrior"},"bma_PaidCYAYPrior","bma_PaidCYAYPrior","bma_PaidCYAYPrior",{"$f":"\"bma_\"&\"PaidCY\"&V$10&\"AY\"&$B29","v":"bma_PaidCYAYPrior"},{"$f":"\"bma_\"&\"PaidCY\"&W$10&\"AY\"&$B29","v":"bma_PaidCYAYPrior"},{"$f":"\"bma_\"&\"PaidCY\"&X$10&\"AY\"&$B29","v":"bma_PaidCYAYPrior"},{"$f":"\"bma_\"&\"PaidCY\"&Y$10&\"AY\"&$B29","v":"bma_PaidCYAYPrior"},{"$f":"\"bma_\"&\"PaidCY\"&Z$10&\"AY\"&$B29","v":"bma_PaidCYAYPrior"},{"$f":"\"bma_\"&\"PaidCY\"&AA$10&\"AY\"&$B29","v":"bma_PaidCYAYPrior"},{"$f":"\"bma_\"&\"CATPaidCY\"&AA$10&\"AY\"&$B29","v":"bma_CATPaidCYAYPrior"}]
["L14",{"$f":"B31-1","v":2010},{"$f":"'Sch XI(a)(i)'!C30+'Sch XI(a)(ii)'!C30+'Sch XI(a)(iii)'!C30+'Sch XI(a)(iv)'!C30+'Sch XI(a)(v)'!C30+'Sch XI(a)(vi)'!C30+'Sch XI(a)(vii)'!C30+'Sch XI(a)(viii)'!C30","v":0},{"$f":"'Sch XI(a)(i)'!D30+'Sch XI(a)(ii)'!D30+'Sch XI(a)(iii)'!D30+'Sch XI(a)(iv)'!D30+'Sch XI(a)(v)'!D30+'Sch XI(a)(vi)'!D30+'Sch XI(a)(vii)'!D30+'Sch XI(a)(viii)'!D30","v":0},{"$f":"'Sch XI(a)(i)'!E30+'Sch XI(a)(ii)'!E30+'Sch XI(a)(iii)'!E30+'Sch XI(a)(iv)'!E30+'Sch XI(a)(v)'!E30+'Sch XI(a)(vi)'!E30+'Sch XI(a)(vii)'!E30+'Sch XI(a)(viii)'!E30","v":0},{"$f":"'Sch XI(a)(i)'!F30+'Sch XI(a)(ii)'!F30+'Sch XI(a)(iii)'!F30+'Sch XI(a)(iv)'!F30+'Sch XI(a)(v)'!F30+'Sch XI(a)(vi)'!F30+'Sch XI(a)(vii)'!F30+'Sch XI(a)(viii)'!F30","v":0},{"$f":"'Sch XI(a)(i)'!G30+'Sch XI(a)(ii)'!G30+'Sch XI(a)(iii)'!G30+'Sch XI(a)(iv)'!G30+'Sch XI(a)(v)'!G30+'Sch XI(a)(vi)'!G30+'Sch XI(a)(vii)'!G30+'Sch XI(a)(viii)'!G30","v":0},{"$f":"'Sch XI(a)(i)'!H30+'Sch XI(a)(ii)'!H30+'Sch XI(a)(iii)'!H30+'Sch XI(a)(iv)'!H30+'Sch XI(a)(v)'!H30+'Sch XI(a)(vi)'!H30+'Sch XI(a)(vii)'!H30+'Sch XI(a)(viii)'!H30","v":0},{"$f":"'Sch XI(a)(i)'!I30+'Sch XI(a)(ii)'!I30+'Sch XI(a)(iii)'!I30+'Sch XI(a)(iv)'!I30+'Sch XI(a)(v)'!I30+'Sch XI(a)(vi)'!I30+'Sch XI(a)(vii)'!I30+'Sch XI(a)(viii)'!I30","v":0},{"$f":"'Sch XI(a)(i)'!J30+'Sch XI(a)(ii)'!J30+'Sch XI(a)(iii)'!J30+'Sch XI(a)(iv)'!J30+'Sch XI(a)(v)'!J30+'Sch XI(a)(vi)'!J30+'Sch XI(a)(vii)'!J30+'Sch XI(a)(viii)'!J30","v":0},{"$f":"'Sch XI(a)(i)'!K30+'Sch XI(a)(ii)'!K30+'Sch XI(a)(iii)'!K30+'Sch XI(a)(iv)'!K30+'Sch XI(a)(v)'!K30+'Sch XI(a)(vi)'!K30+'Sch XI(a)(vii)'!K30+'Sch XI(a)(viii)'!K30","v":0},{"$f":"'Sch XI(a)(i)'!L30+'Sch XI(a)(ii)'!L30+'Sch XI(a)(iii)'!L30+'Sch XI(a)(iv)'!L30+'Sch XI(a)(v)'!L30+'Sch XI(a)(vi)'!L30+'Sch XI(a)(vii)'!L30+'Sch XI(a)(viii)'!L30","v":0},{"$f":"'Sch XI(a)(i)'!M30+'Sch XI(a)(ii)'!M30+'Sch XI(a)(iii)'!M30+'Sch XI(a)(iv)'!M30+'Sch XI(a)(v)'!M30+'Sch XI(a)(vi)'!M30+'Sch XI(a)(vii)'!M30+'Sch XI(a)(viii)'!M30","v":0},null,null,null,null,null,"brrt_PoliciesWrittenYearAxis_brrt_XNMinus9Member",null,null,null,null,null,null,null,null,null,null,null,null,null,null,null,null,null,null,"bma_PaidCYAY2010","bma_PaidCYAY2010","bma_PaidCYAY2010","bma_PaidCYAY2010","bma_PaidCYAY2010","bma_PaidCYAY2010","bma_PaidCYAY2010","bma_PaidCYAY2010","bma_PaidCYAY2010","bma_PaidCYAY2010","bma_CATPaidCYAY2010"]
["L15",2011,"XXX",{"$f":"'Sch XI(a)(i)'!D31+'Sch XI(a)(ii)'!D31+'Sch XI(a)(iii)'!D31+'Sch XI(a)(iv)'!D31+'Sch XI(a)(v)'!D31+'Sch XI(a)(vi)'!D31+'Sch XI(a)(vii)'!D31+'Sch XI(a)(viii)'!D31","v":0},{"$f":"'Sch XI(a)(i)'!E31+'Sch XI(a)(ii)'!E31+'Sch XI(a)(iii)'!E31+'Sch XI(a)(iv)'!E31+'Sch XI(a)(v)'!E31+'Sch XI(a)(vi)'!E31+'Sch XI(a)(vii)'!E31+'Sch XI(a)(viii)'!E31","v":0},{"$f":"'Sch XI(a)(i)'!F31+'Sch XI(a)(ii)'!F31+'Sch XI(a)(iii)'!F31+'Sch XI(a)(iv)'!F31+'Sch XI(a)(v)'!F31+'Sch XI(a)(vi)'!F31+'Sch XI(a)(vii)'!F31+'Sch XI(a)(viii)'!F31","v":0},{"$f":"'Sch XI(a)(i)'!G31+'Sch XI(a)(ii)'!G31+'Sch XI(a)(iii)'!G31+'Sch XI(a)(iv)'!G31+'Sch XI(a)(v)'!G31+'Sch XI(a)(vi)'!G31+'Sch XI(a)(vii)'!G31+'Sch XI(a)(viii)'!G31","v":0},{"$f":"'Sch XI(a)(i)'!H31+'Sch XI(a)(ii)'!H31+'Sch XI(a)(iii)'!H31+'Sch XI(a)(iv)'!H31+'Sch XI(a)(v)'!H31+'Sch XI(a)(vi)'!H31+'Sch XI(a)(vii)'!H31+'Sch XI(a)(viii)'!H31","v":0},{"$f":"'Sch XI(a)(i)'!I31+'Sch XI(a)(ii)'!I31+'Sch XI(a)(iii)'!I31+'Sch XI(a)(iv)'!I31+'Sch XI(a)(v)'!I31+'Sch XI(a)(vi)'!I31+'Sch XI(a)(vii)'!I31+'Sch XI(a)(viii)'!I31","v":0},{"$f":"'Sch XI(a)(i)'!J31+'Sch XI(a)(ii)'!J31+'Sch XI(a)(iii)'!J31+'Sch XI(a)(iv)'!J31+'Sch XI(a)(v)'!J31+'Sch XI(a)(vi)'!J31+'Sch XI(a)(vii)'!J31+'Sch XI(a)(viii)'!J31","v":0},{"$f":"'Sch XI(a)(i)'!K31+'Sch XI(a)(ii)'!K31+'Sch XI(a)(iii)'!K31+'Sch XI(a)(iv)'!K31+'Sch XI(a)(v)'!K31+'Sch XI(a)(vi)'!K31+'Sch XI(a)(vii)'!K31+'Sch XI(a)(viii)'!K31","v":0},{"$f":"'Sch XI(a)(i)'!L31+'Sch XI(a)(ii)'!L31+'Sch XI(a)(iii)'!L31+'Sch XI(a)(iv)'!L31+'Sch XI(a)(v)'!L31+'Sch XI(a)(vi)'!L31+'Sch XI(a)(vii)'!L31+'Sch XI(a)(viii)'!L31","v":0},{"$f":"'Sch XI(a)(i)'!M31+'Sch XI(a)(ii)'!M31+'Sch XI(a)(iii)'!M31+'Sch XI(a)(iv)'!M31+'Sch XI(a)(v)'!M31+'Sch XI(a)(vi)'!M31+'Sch XI(a)(vii)'!M31+'Sch XI(a)(viii)'!M31","v":0},null,null,null,null,null,"brrt_PoliciesWrittenYearAxis_brrt_XNMinus8Member",null,null,null,null,null,null,null,null,null,null,null,null,null,null,null,null,null,null,null,{"$f":"\"bma_\"&\"PaidCY\"&S$10&\"AY\"&$B31","v":"bma_PaidCYAY2011"},{"$f":"\"bma_\"&\"PaidCY\"&T$10&\"AY\"&$B31","v":"bma_PaidCYAY2011"},{"$f":"\"bma_\"&\"PaidCY\"&U$10&\"AY\"&$B31","v":"bma_PaidCYAY2011"},"bma_PaidCYAY2011","bma_PaidCYAY2011","bma_PaidCYAY2011","bma_PaidCYAY2011","bma_PaidCYAY2011","bma_PaidCYAY2011","bma_CATPaidCYAY2011"]
["L16",2012,"XXX","XXX",{"$f":"'Sch XI(a)(i)'!E32+'Sch XI(a)(ii)'!E32+'Sch XI(a)(iii)'!E32+'Sch XI(a)(iv)'!E32+'Sch XI(a)(v)'!E32+'Sch XI(a)(vi)'!E32+'Sch XI(a)(vii)'!E32+'Sch XI(a)(viii)'!E32","v":0},{"$f":"'Sch XI(a)(i)'!F32+'Sch XI(a)(ii)'!F32+'Sch XI(a)(iii)'!F32+'Sch XI(a)(iv)'!F32+'Sch XI(a)(v)'!F32+'Sch XI(a)(vi)'!F32+'Sch XI(a)(vii)'!F32+'Sch XI(a)(viii)'!F32","v":0},{"$f":"'Sch XI(a)(i)'!G32+'Sch XI(a)(ii)'!G32+'Sch XI(a)(iii)'!G32+'Sch XI(a)(iv)'!G32+'Sch XI(a)(v)'!G32+'Sch XI(a)(vi)'!G32+'Sch XI(a)(vii)'!G32+'Sch XI(a)(viii)'!G32","v":0},{"$f":"'Sch XI(a)(i)'!H32+'Sch XI(a)(ii)'!H32+'Sch XI(a)(iii)'!H32+'Sch XI(a)(iv)'!H32+'Sch XI(a)(v)'!H32+'Sch XI(a)(vi)'!H32+'Sch XI(a)(vii)'!H32+'Sch XI(a)(viii)'!H32","v":0},{"$f":"'Sch XI(a)(i)'!I32+'Sch XI(a)(ii)'!I32+'Sch XI(a)(iii)'!I32+'Sch XI(a)(iv)'!I32+'Sch XI(a)(v)'!I32+'Sch XI(a)(vi)'!I32+'Sch XI(a)(vii)'!I32+'Sch XI(a)(viii)'!I32","v":0},{"$f":"'Sch XI(a)(i)'!J32+'Sch XI(a)(ii)'!J32+'Sch XI(a)(iii)'!J32+'Sch XI(a)(iv)'!J32+'Sch XI(a)(v)'!J32+'Sch XI(a)(vi)'!J32+'Sch XI(a)(vii)'!J32+'Sch XI(a)(viii)'!J32","v":0},{"$f":"'Sch XI(a)(i)'!K32+'Sch XI(a)(ii)'!K32+'Sch XI(a)(iii)'!K32+'Sch XI(a)(iv)'!K32+'Sch XI(a)(v)'!K32+'Sch XI(a)(vi)'!K32+'Sch XI(a)(vii)'!K32+'Sch XI(a)(viii)'!K32","v":0},{"$f":"'Sch XI(a)(i)'!L32+'Sch XI(a)(ii)'!L32+'Sch XI(a)(iii)'!L32+'Sch XI(a)(iv)'!L32+'Sch XI(a)(v)'!L32+'Sch XI(a)(vi)'!L32+'Sch XI(a)(vii)'!L32+'Sch XI(a)(viii)'!L32","v":0},{"$f":"'Sch XI(a)(i)'!M32+'Sch XI(a)(ii)'!M32+'Sch XI(a)(iii)'!M32+'Sch XI(a)(iv)'!M32+'Sch XI(a)(v)'!M32+'Sch XI(a)(vi)'!M32+'Sch XI(a)(vii)'!M32+'Sch XI(a)(viii)'!M32","v":0},null,null,null,null,null,"brrt_PoliciesWrittenYearAxis_brrt_XNMinus7Member",null,null,null,null,null,null,null,null,null,null,null,null,null,null,null,null,null,null,null,null,{"$f":"\"bma_\"&\"PaidCY\"&T$10&\"AY\"&$B32","v":"bma_PaidCYAY2012"},{"$f":"\"bma_\"&\"PaidCY\"&U$10&\"AY\"&$B32","v":"bma_PaidCYAY2012"},"bma_PaidCYAY2012","bma_PaidCYAY2012","bma_PaidCYAY2012","bma_PaidCYAY2012","bma_PaidCYAY2012","bma_PaidCYAY2012","bma_CATPaidCYAY2012"]
["L17",2013,"XXX","XXX","XXX",{"$f":"'Sch XI(a)(i)'!F33+'Sch XI(a)(ii)'!F33+'Sch XI(a)(iii)'!F33+'Sch XI(a)(iv)'!F33+'Sch XI(a)(v)'!F33+'Sch XI(a)(vi)'!F33+'Sch XI(a)(vii)'!F33+'Sch XI(a)(viii)'!F33","v":0},{"$f":"'Sch XI(a)(i)'!G33+'Sch XI(a)(ii)'!G33+'Sch XI(a)(iii)'!G33+'Sch XI(a)(iv)'!G33+'Sch XI(a)(v)'!G33+'Sch XI(a)(vi)'!G33+'Sch XI(a)(vii)'!G33+'Sch XI(a)(viii)'!G33","v":0},{"$f":"'Sch XI(a)(i)'!H33+'Sch XI(a)(ii)'!H33+'Sch XI(a)(iii)'!H33+'Sch XI(a)(iv)'!H33+'Sch XI(a)(v)'!H33+'Sch XI(a)(vi)'!H33+'Sch XI(a)(vii)'!H33+'Sch XI(a)(viii)'!H33","v":0},{"$f":"'Sch XI(a)(i)'!I33+'Sch XI(a)(ii)'!I33+'Sch XI(a)(iii)'!I33+'Sch XI(a)(iv)'!I33+'Sch XI(a)(v)'!I33+'Sch XI(a)(vi)'!I33+'Sch XI(a)(vii)'!I33+'Sch XI(a)(viii)'!I33","v":0},{"$f":"'Sch XI(a)(i)'!J33+'Sch XI(a)(ii)'!J33+'Sch XI(a)(iii)'!J33+'Sch XI(a)(iv)'!J33+'Sch XI(a)(v)'!J33+'Sch XI(a)(vi)'!J33+'Sch XI(a)(vii)'!J33+'Sch XI(a)(viii)'!J33","v":0},{"$f":"'Sch XI(a)(i)'!K33+'Sch XI(a)(ii)'!K33+'Sch XI(a)(iii)'!K33+'Sch XI(a)(iv)'!K33+'Sch XI(a)(v)'!K33+'Sch XI(a)(vi)'!K33+'Sch XI(a)(vii)'!K33+'Sch XI(a)(viii)'!K33","v":0},{"$f":"'Sch XI(a)(i)'!L33+'Sch XI(a)(ii)'!L33+'Sch XI(a)(iii)'!L33+'Sch XI(a)(iv)'!L33+'Sch XI(a)(v)'!L33+'Sch XI(a)(vi)'!L33+'Sch XI(a)(vii)'!L33+'Sch XI(a)(viii)'!L33","v":0},{"$f":"'Sch XI(a)(i)'!M33+'Sch XI(a)(ii)'!M33+'Sch XI(a)(iii)'!M33+'Sch XI(a)(iv)'!M33+'Sch XI(a)(v)'!M33+'Sch XI(a)(vi)'!M33+'Sch XI(a)(vii)'!M33+'Sch XI(a)(viii)'!M33","v":0},null,null,null,null,null,"brrt_PoliciesWrittenYearAxis_brrt_XNMinus6Member",null,null,null,null,null,null,null,null,null,null,null,null,null,null,null,null,null,null,null,null,null,{"$f":"\"bma_\"&\"PaidCY\"&U$10&\"AY\"&$B33","v":"bma_PaidCYAY2013"},"bma_PaidCYAY2013","bma_PaidCYAY2013","bma_PaidCYAY2013","bma_PaidCYAY2013","bma_PaidCYAY2013","bma_PaidCYAY2013","bma_CATPaidCYAY2013"]
["L18",2014,"XXX","XXX","XXX","XXX",{"$f":"'Sch XI(a)(i)'!G34+'Sch XI(a)(ii)'!G34+'Sch XI(a)(iii)'!G34+'Sch XI(a)(iv)'!G34+'Sch XI(a)(v)'!G34+'Sch XI(a)(vi)'!G34+'Sch XI(a)(vii)'!G34+'Sch XI(a)(viii)'!G34","v":0},{"$f":"'Sch XI(a)(i)'!H34+'Sch XI(a)(ii)'!H34+'Sch XI(a)(iii)'!H34+'Sch XI(a)(iv)'!H34+'Sch XI(a)(v)'!H34+'Sch XI(a)(vi)'!H34+'Sch XI(a)(vii)'!H34+'Sch XI(a)(viii)'!H34","v":0},{"$f":"'Sch XI(a)(i)'!I34+'Sch XI(a)(ii)'!I34+'Sch XI(a)(iii)'!I34+'Sch XI(a)(iv)'!I34+'Sch XI(a)(v)'!I34+'Sch XI(a)(vi)'!I34+'Sch XI(a)(vii)'!I34+'Sch XI(a)(viii)'!I34","v":0},{"$f":"'Sch XI(a)(i)'!J34+'Sch XI(a)(ii)'!J34+'Sch XI(a)(iii)'!J34+'Sch XI(a)(iv)'!J34+'Sch XI(a)(v)'!J34+'Sch XI(a)(vi)'!J34+'Sch XI(a)(vii)'!J34+'Sch XI(a)(viii)'!J34","v":0},{"$f":"'Sch XI(a)(i)'!K34+'Sch XI(a)(ii)'!K34+'Sch XI(a)(iii)'!K34+'Sch XI(a)(iv)'!K34+'Sch XI(a)(v)'!K34+'Sch XI(a)(vi)'!K34+'Sch XI(a)(vii)'!K34+'Sch XI(a)(viii)'!K34","v":0},{"$f":"'Sch XI(a)(i)'!L34+'Sch XI(a)(ii)'!L34+'Sch XI(a)(iii)'!L34+'Sch XI(a)(iv)'!L34+'Sch XI(a)(v)'!L34+'Sch XI(a)(vi)'!L34+'Sch XI(a)(vii)'!L34+'Sch XI(a)(viii)'!L34","v":0},{"$f":"'Sch XI(a)(i)'!M34+'Sch XI(a)(ii)'!M34+'Sch XI(a)(iii)'!M34+'Sch XI(a)(iv)'!M34+'Sch XI(a)(v)'!M34+'Sch XI(a)(vi)'!M34+'Sch XI(a)(vii)'!M34+'Sch XI(a)(viii)'!M34","v":0},null,null,null,null,null,"brrt_PoliciesWrittenYearAxis_brrt_XNMinus5Member",null,null,null,null,null,null,null,null,null,null,null,null,null,null,null,null,null,null,null,null,null,null,"bma_PaidCYAY2014","bma_PaidCYAY2014","bma_PaidCYAY2014","bma_PaidCYAY2014","bma_PaidCYAY2014","bma_PaidCYAY2014","bma_CATPaidCYAY2014"]
["L19",2015,"XXX","XXX","XXX","XXX","XXX",{"$f":"'Sch XI(a)(i)'!H35+'Sch XI(a)(ii)'!H35+'Sch XI(a)(iii)'!H35+'Sch XI(a)(iv)'!H35+'Sch XI(a)(v)'!H35+'Sch XI(a)(vi)'!H35+'Sch XI(a)(vii)'!H35+'Sch XI(a)(viii)'!H35","v":0},{"$f":"'Sch XI(a)(i)'!I35+'Sch XI(a)(ii)'!I35+'Sch XI(a)(iii)'!I35+'Sch XI(a)(iv)'!I35+'Sch XI(a)(v)'!I35+'Sch XI(a)(vi)'!I35+'Sch XI(a)(vii)'!I35+'Sch XI(a)(viii)'!I35","v":0},{"$f":"'Sch XI(a)(i)'!J35+'Sch XI(a)(ii)'!J35+'Sch XI(a)(iii)'!J35+'Sch XI(a)(iv)'!J35+'Sch XI(a)(v)'!J35+'Sch XI(a)(vi)'!J35+'Sch XI(a)(vii)'!J35+'Sch XI(a)(viii)'!J35","v":0},{"$f":"'Sch XI(a)(i)'!K35+'Sch XI(a)(ii)'!K35+'Sch XI(a)(iii)'!K35+'Sch XI(a)(iv)'!K35+'Sch XI(a)(v)'!K35+'Sch XI(a)(vi)'!K35+'Sch XI(a)(vii)'!K35+'Sch XI(a)(viii)'!K35","v":0},{"$f":"'Sch XI(a)(i)'!L35+'Sch XI(a)(ii)'!L35+'Sch XI(a)(iii)'!L35+'Sch XI(a)(iv)'!L35+'Sch XI(a)(v)'!L35+'Sch XI(a)(vi)'!L35+'Sch XI(a)(vii)'!L35+'Sch XI(a)(viii)'!L35","v":0},{"$f":"'Sch XI(a)(i)'!M35+'Sch XI(a)(ii)'!M35+'Sch XI(a)(iii)'!M35+'Sch XI(a)(iv)'!M35+'Sch XI(a)(v)'!M35+'Sch XI(a)(vi)'!M35+'Sch XI(a)(vii)'!M35+'Sch XI(a)(viii)'!M35","v":0},null,null,null,null,null,"brrt_PoliciesWrittenYearAxis_brrt_XNMinus4Member",null,null,null,null,null,null,null,null,null,null,null,null,null,null,null,null,null,null,null,null,null,null,null,{"$f":"\"bma_\"&\"PaidCY\"&W$10&\"AY\"&$B35","v":"bma_PaidCYAY2015"},{"$f":"\"bma_\"&\"PaidCY\"&X$10&\"AY\"&$B35","v":"bma_PaidCYAY2015"},{"$f":"\"bma_\"&\"PaidCY\"&Y$10&\"AY\"&$B35","v":"bma_PaidCYAY2015"},{"$f":"\"bma_\"&\"PaidCY\"&Z$10&\"AY\"&$B35","v":"bma_PaidCYAY2015"},{"$f":"\"bma_\"&\"PaidCY\"&AA$10&\"AY\"&$B35","v":"bma_PaidCYAY2015"},"bma_CATPaidCYAY2015"]
["L20",2016,"XXX","XXX","XXX","XXX","XXX","XXX",{"$f":"'Sch XI(a)(i)'!I36+'Sch XI(a)(ii)'!I36+'Sch XI(a)(iii)'!I36+'Sch XI(a)(iv)'!I36+'Sch XI(a)(v)'!I36+'Sch XI(a)(vi)'!I36+'Sch XI(a)(vii)'!I36+'Sch XI(a)(viii)'!I36","v":0},{"$f":"'Sch XI(a)(i)'!J36+'Sch XI(a)(ii)'!J36+'Sch XI(a)(iii)'!J36+'Sch XI(a)(iv)'!J36+'Sch XI(a)(v)'!J36+'Sch XI(a)(vi)'!J36+'Sch XI(a)(vii)'!J36+'Sch XI(a)(viii)'!J36","v":0},{"$f":"'Sch XI(a)(i)'!K36+'Sch XI(a)(ii)'!K36+'Sch XI(a)(iii)'!K36+'Sch XI(a)(iv)'!K36+'Sch XI(a)(v)'!K36+'Sch XI(a)(vi)'!K36+'Sch XI(a)(vii)'!K36+'Sch XI(a)(viii)'!K36","v":0},{"$f":"'Sch XI(a)(i)'!L36+'Sch XI(a)(ii)'!L36+'Sch XI(a)(iii)'!L36+'Sch XI(a)(iv)'!L36+'Sch XI(a)(v)'!L36+'Sch XI(a)(vi)'!L36+'Sch XI(a)(vii)'!L36+'Sch XI(a)(viii)'!L36","v":0},{"$f":"'Sch XI(a)(i)'!M36+'Sch XI(a)(ii)'!M36+'Sch XI(a)(iii)'!M36+'Sch XI(a)(iv)'!M36+'Sch XI(a)(v)'!M36+'Sch XI(a)(vi)'!M36+'Sch XI(a)(vii)'!M36+'Sch XI(a)(viii)'!M36","v":0},null,null,null,null,null,"brrt_PoliciesWrittenYearAxis_brrt_XNMinus3Member",null,null,null,null,null,null,null,null,null,null,null,null,null,null,null,null,null,null,null,null,null,null,null,null,{"$f":"\"bma_\"&\"PaidCY\"&X$10&\"AY\"&$B36","v":"bma_PaidCYAY2016"},{"$f":"\"bma_\"&\"PaidCY\"&Y$10&\"AY\"&$B36","v":"bma_PaidCYAY2016"},{"$f":"\"bma_\"&\"PaidCY\"&Z$10&\"AY\"&$B36","v":"bma_PaidCYAY2016"},{"$f":"\"bma_\"&\"PaidCY\"&AA$10&\"AY\"&$B36","v":"bma_PaidCYAY2016"},"bma_CATPaidCYAY2016"]
["L21",2017,"XXX","XXX","XXX","XXX","XXX","XXX","XXX",{"$f":"'Sch XI(a)(i)'!J37+'Sch XI(a)(ii)'!J37+'Sch XI(a)(iii)'!J37+'Sch XI(a)(iv)'!J37+'Sch XI(a)(v)'!J37+'Sch XI(a)(vi)'!J37+'Sch XI(a)(vii)'!J37+'Sch XI(a)(viii)'!J37","v":0},{"$f":"'Sch XI(a)(i)'!K37+'Sch XI(a)(ii)'!K37+'Sch XI(a)(iii)'!K37+'Sch XI(a)(iv)'!K37+'Sch XI(a)(v)'!K37+'Sch XI(a)(vi)'!K37+'Sch XI(a)(vii)'!K37+'Sch XI(a)(viii)'!K37","v":0},{"$f":"'Sch XI(a)(i)'!L37+'Sch XI(a)(ii)'!L37+'Sch XI(a)(iii)'!L37+'Sch XI(a)(iv)'!L37+'Sch XI(a)(v)'!L37+'Sch XI(a)(vi)'!L37+'Sch XI(a)(vii)'!L37+'Sch XI(a)(viii)'!L37","v":0},{"$f":"'Sch XI(a)(i)'!M37+'Sch XI(a)(ii)'!M37+'Sch XI(a)(iii)'!M37+'Sch XI(a)(iv)'!M37+'Sch XI(a)(v)'!M37+'Sch XI(a)(vi)'!M37+'Sch XI(a)(vii)'!M37+'Sch XI(a)(viii)'!M37","v":0},null,null,null,null,null,"brrt_PoliciesWrittenYearAxis_brrt_XNMinus2Member",null,null,null,null,null,null,null,null,null,null,null,null,null,null,null,null,null,null,null,null,null,null,null,null,null,{"$f":"\"bma_\"&\"PaidCY\"&Y$10&\"AY\"&$B37","v":"bma_PaidCYAY2017"},{"$f":"\"bma_\"&\"PaidCY\"&Z$10&\"AY\"&$B37","v":"bma_PaidCYAY2017"},{"$f":"\"bma_\"&\"PaidCY\"&AA$10&\"AY\"&$B37","v":"bma_PaidCYAY2017"},"bma_CATPaidCYAY2017"]
["L22",{"$f":"B39-1","v":2018},"XXX","XXX","XXX","XXX","XXX","XXX","XXX","XXX",{"$f":"'Sch XI(a)(i)'!K38+'Sch XI(a)(ii)'!K38+'Sch XI(a)(iii)'!K38+'Sch XI(a)(iv)'!K38+'Sch XI(a)(v)'!K38+'Sch XI(a)(vi)'!K38+'Sch XI(a)(vii)'!K38+'Sch XI(a)(viii)'!K38","v":0},{"$f":"'Sch XI(a)(i)'!L38+'Sch XI(a)(ii)'!L38+'Sch XI(a)(iii)'!L38+'Sch XI(a)(iv)'!L38+'Sch XI(a)(v)'!L38+'Sch XI(a)(vi)'!L38+'Sch XI(a)(vii)'!L38+'Sch XI(a)(viii)'!L38","v":0},{"$f":"'Sch XI(a)(i)'!M38+'Sch XI(a)(ii)'!M38+'Sch XI(a)(iii)'!M38+'Sch XI(a)(iv)'!M38+'Sch XI(a)(v)'!M38+'Sch XI(a)(vi)'!M38+'Sch XI(a)(vii)'!M38+'Sch XI(a)(viii)'!M38","v":0},null,null,null,null,null,"brrt_PoliciesWrittenYearAxis_brrt_XNMinus1Member",null,null,null,null,null,null,null,null,null,null,null,null,null,null,null,null,null,null,null,null,null,null,null,null,null,null,{"$f":"\"bma_\"&\"PaidCY\"&Z$10&\"AY\"&$B38","v":"bma_PaidCYAY2018"},{"$f":"\"bma_\"&\"PaidCY\"&AA$10&\"AY\"&$B38","v":"bma_PaidCYAY2018"},"bma_CATPaidCYAY2018"]
["L23",{"$f":"L28","v":2019},"XXX","XXX","XXX","XXX","XXX","XXX","XXX","XXX","XXX",{"$f":"'Sch XI(a)(i)'!L39+'Sch XI(a)(ii)'!L39+'Sch XI(a)(iii)'!L39+'Sch XI(a)(iv)'!L39+'Sch XI(a)(v)'!L39+'Sch XI(a)(vi)'!L39+'Sch XI(a)(vii)'!L39+'Sch XI(a)(viii)'!L39","v":0},{"$f":"'Sch XI(a)(i)'!M39+'Sch XI(a)(ii)'!M39+'Sch XI(a)(iii)'!M39+'Sch XI(a)(iv)'!M39+'Sch XI(a)(v)'!M39+'Sch XI(a)(vi)'!M39+'Sch XI(a)(vii)'!M39+'Sch XI(a)(viii)'!M39","v":0},null,null,null,null,null,"brrt_PoliciesWrittenYearAxis_brrt_XNMember",null,null,null,null,null,null,null,null,null,null,null,null,null,null,null,null,null,null,null,null,null,null,null,null,null,null,null,{"$f":"\"bma_\"&\"PaidCY\"&AA$10&\"AY\"&$B39","v":"bma_PaidCYAY2019"},"bma_CATPaidCYAY2019"]
["L24","Totals",null,null,null,null,null,null,null,null,null,null,{"$f":"SUM(M29:M39)","v":0},null,null,null,null,null,null,null,null,null,null,null,null,null,null,null,null,null,null,null,null,null,null,null,null,null,null,null,null,null,null,null,null,null,null,"bma_CATPaidCYAYTotals"]
[]
[null,null,"BULK & IBNR RESERVES ON NET LOSSES AND ALLOCATED LOSS ADJUSTMENT EXPENSES REPORTED AT YEAR END ($000)",null,null,null,null,null,null,null,null,null,35]
[null,null,null,null,null,null,null,null,null,null,null,null,"Losses"]
[null,"Years in Which",25,26,27,28,29,30,31,32,33,34,"Bulk & IBNR"]
[null,"Policies Were",null,null,null,null,null,null,null,null,null,null,"Reserves"]
[null,"Written",{"$f":"D46-1","v":2010},2011,2012,2013,2014,2015,2016,2017,2018,{"$f":"L28","v":2019},{"$f":"L28","v":2019}]
["L25","Prior",{"$f":"'Sch XI(a)(i)'!C47+'Sch XI(a)(ii)'!C47+'Sch XI(a)(iii)'!C47+'Sch XI(a)(iv)'!C47+'Sch XI(a)(v)'!C47+'Sch XI(a)(vi)'!C47+'Sch XI(a)(vii)'!C47+'Sch XI(a)(viii)'!C47","v":0},{"$f":"'Sch XI(a)(i)'!D47+'Sch XI(a)(ii)'!D47+'Sch XI(a)(iii)'!D47+'Sch XI(a)(iv)'!D47+'Sch XI(a)(v)'!D47+'Sch XI(a)(vi)'!D47+'Sch XI(a)(vii)'!D47+'Sch XI(a)(viii)'!D47","v":0},{"$f":"'Sch XI(a)(i)'!E47+'Sch XI(a)(ii)'!E47+'Sch XI(a)(iii)'!E47+'Sch XI(a)(iv)'!E47+'Sch XI(a)(v)'!E47+'Sch XI(a)(vi)'!E47+'Sch XI(a)(vii)'!E47+'Sch XI(a)(viii)'!E47","v":0},{"$f":"'Sch XI(a)(i)'!F47+'Sch XI(a)(ii)'!F47+'Sch XI(a)(iii)'!F47+'Sch XI(a)(iv)'!F47+'Sch XI(a)(v)'!F47+'Sch XI(a)(vi)'!F47+'Sch XI(a)(vii)'!F47+'Sch XI(a)(viii)'!F47","v":0},{"$f":"'Sch XI(a)(i)'!G47+'Sch XI(a)(ii)'!G47+'Sch XI(a)(iii)'!G47+'Sch XI(a)(iv)'!G47+'Sch XI(a)(v)'!G47+'Sch XI(a)(vi)'!G47+'Sch XI(a)(vii)'!G47+'Sch XI(a)(viii)'!G47","v":0},{"$f":"'Sch XI(a)(i)'!H47+'Sch XI(a)(ii)'!H47+'Sch XI(a)(iii)'!H47+'Sch XI(a)(iv)'!H47+'Sch XI(a)(v)'!H47+'Sch XI(a)(vi)'!H47+'Sch XI(a)(vii)'!H47+'Sch XI(a)(viii)'!H47","v":0},{"$f":"'Sch XI(a)(i)'!I47+'Sch XI(a)(ii)'!I47+'Sch XI(a)(iii)'!I47+'Sch XI(a)(iv)'!I47+'Sch XI(a)(v)'!I47+'Sch XI(a)(vi)'!I47+'Sch XI(a)(vii)'!I47+'Sch XI(a)(viii)'!I47","v":0},{"$f":"'Sch XI(a)(i)'!J47+'Sch XI(a)(ii)'!J47+'Sch XI(a)(iii)'!J47+'Sch XI(a)(iv)'!J47+'Sch XI(a)(v)'!J47+'Sch XI(a)(vi)'!J47+'Sch XI(a)(vii)'!J47+'Sch XI(a)(viii)'!J47","v":0},{"$f":"'Sch XI(a)(i)'!K47+'Sch XI(a)(ii)'!K47+'Sch XI(a)(iii)'!K47+'Sch XI(a)(iv)'!K47+'Sch XI(a)(v)'!K47+'Sch XI(a)(vi)'!K47+'Sch XI(a)(vii)'!K47+'Sch XI(a)(viii)'!K47","v":0},{"$f":"'Sch XI(a)(i)'!L47+'Sch XI(a)(ii)'!L47+'Sch XI(a)(iii)'!L47+'Sch XI(a)(iv)'!L47+'Sch XI(a)(v)'!L47+'Sch XI(a)(vi)'!L47+'Sch XI(a)(vii)'!L47+'Sch XI(a)(viii)'!L47","v":0},{"$f":"'Sch XI(a)(i)'!M47+'Sch XI(a)(ii)'!M47+'Sch XI(a)(iii)'!M47+'Sch XI(a)(iv)'!M47+'Sch XI(a)(v)'!M47+'Sch XI(a)(vi)'!M47+'Sch XI(a)(vii)'!M47+'Sch XI(a)(viii)'!M47","v":0},null,null,null,null,null,"brrt_PoliciesWrittenYearAxis_brrt_PriorMember",null,null,null,null,null,null,null,null,null,null,null,null,null,null,null,null,null,null,{"$f":"\"bma_\"&\"IBNRCY\"&R$10&\"AY\"&$B47","v":"bma_IBNRCYAYPrior"},"bma_IBNRCYAYPrior","bma_IBNRCYAYPrior","bma_IBNRCYAYPrior",{"$f":"\"bma_\"&\"IBNRCY\"&V$10&\"AY\"&$B47","v":"bma_IBNRCYAYPrior"},{"$f":"\"bma_\"&\"IBNRCY\"&W$10&\"AY\"&$B47","v":"bma_IBNRCYAYPrior"},{"$f":"\"bma_\"&\"IBNRCY\"&X$10&\"AY\"&$B47","v":"bma_IBNRCYAYPrior"},{"$f":"\"bma_\"&\"IBNRCY\"&Y$10&\"AY\"&$B47","v":"bma_IBNRCYAYPrior"},{"$f":"\"bma_\"&\"IBNRCY\"&Z$10&\"AY\"&$B47","v":"bma_IBNRCYAYPrior"},{"$f":"\"bma_\"&\"IBNRCY\"&AA$10&\"AY\"&$B47","v":"bma_IBNRCYAYPrior"},{"$f":"\"bma_\"&\"CATIBNRCY\"&AA$10&\"AY\"&$B47","v":"bma_CATIBNRCYAYPrior"}]
["L26",{"$f":"B49-1","v":2010},{"$f":"'Sch XI(a)(i)'!C48+'Sch XI(a)(ii)'!C48+'Sch XI(a)(iii)'!C48+'Sch XI(a)(iv)'!C48+'Sch XI(a)(v)'!C48+'Sch XI(a)(vi)'!C48+'Sch XI(a)(vii)'!C48+'Sch XI(a)(viii)'!C48","v":0},{"$f":"'Sch XI(a)(i)'!D48+'Sch XI(a)(ii)'!D48+'Sch XI(a)(iii)'!D48+'Sch XI(a)(iv)'!D48+'Sch XI(a)(v)'!D48+'Sch XI(a)(vi)'!D48+'Sch XI(a)(vii)'!D48+'Sch XI(a)(viii)'!D48","v":0},{"$f":"'Sch XI(a)(i)'!E48+'Sch XI(a)(ii)'!E48+'Sch XI(a)(iii)'!E48+'Sch XI(a)(iv)'!E48+'Sch XI(a)(v)'!E48+'Sch XI(a)(vi)'!E48+'Sch XI(a)(vii)'!E48+'Sch XI(a)(viii)'!E48","v":0},{"$f":"'Sch XI(a)(i)'!F48+'Sch XI(a)(ii)'!F48+'Sch XI(a)(iii)'!F48+'Sch XI(a)(iv)'!F48+'Sch XI(a)(v)'!F48+'Sch XI(a)(vi)'!F48+'Sch XI(a)(vii)'!F48+'Sch XI(a)(viii)'!F48","v":0},{"$f":"'Sch XI(a)(i)'!G48+'Sch XI(a)(ii)'!G48+'Sch XI(a)(iii)'!G48+'Sch XI(a)(iv)'!G48+'Sch XI(a)(v)'!G48+'Sch XI(a)(vi)'!G48+'Sch XI(a)(vii)'!G48+'Sch XI(a)(viii)'!G48","v":0},{"$f":"'Sch XI(a)(i)'!H48+'Sch XI(a)(ii)'!H48+'Sch XI(a)(iii)'!H48+'Sch XI(a)(iv)'!H48+'Sch XI(a)(v)'!H48+'Sch XI(a)(vi)'!H48+'Sch XI(a)(vii)'!H48+'Sch XI(a)(viii)'!H48","v":0},{"$f":"'Sch XI(a)(i)'!I48+'Sch XI(a)(ii)'!I48+'Sch XI(a)(iii)'!I48+'Sch XI(a)(iv)'!I48+'Sch XI(a)(v)'!I48+'Sch XI(a)(vi)'!I48+'Sch XI(a)(vii)'!I48+'Sch XI(a)(viii)'!I48","v":0},{"$f":"'Sch XI(a)(i)'!J48+'Sch XI(a)(ii)'!J48+'Sch XI(a)(iii)'!J48+'Sch XI(a)(iv)'!J48+'Sch XI(a)(v)'!J48+'Sch XI(a)(vi)'!J48+'Sch XI(a)(vii)'!J48+'Sch XI(a)(viii)'!J48","v":0},{"$f":"'Sch XI(a)(i)'!K48+'Sch XI(a)(ii)'!K48+'Sch XI(a)(iii)'!K48+'Sch XI(a)(iv)'!K48+'Sch XI(a)(v)'!K48+'Sch XI(a)(vi)'!K48+'Sch XI(a)(vii)'!K48+'Sch XI(a)(viii)'!K48","v":0},{"$f":"'Sch XI(a)(i)'!L48+'Sch XI(a)(ii)'!L48+'Sch XI(a)(iii)'!L48+'Sch XI(a)(iv)'!L48+'Sch XI(a)(v)'!L48+'Sch XI(a)(vi)'!L48+'Sch XI(a)(vii)'!L48+'Sch XI(a)(viii)'!L48","v":0},{"$f":"'Sch XI(a)(i)'!M48+'Sch XI(a)(ii)'!M48+'Sch XI(a)(iii)'!M48+'Sch XI(a)(iv)'!M48+'Sch XI(a)(v)'!M48+'Sch XI(a)(vi)'!M48+'Sch XI(a)(vii)'!M48+'Sch XI(a)(viii)'!M48","v":0},null,null,null,null,null,"brrt_PoliciesWrittenYearAxis_brrt_XNMinus9Member",null,null,null,null,null,null,null,null,null,null,null,null,null,null,null,null,null,null,"bma_IBNRCYAY2010","bma_IBNRCYAY2010","bma_IBNRCYAY2010","bma_IBNRCYAY2010","bma_IBNRCYAY2010","bma_IBNRCYAY2010","bma_IBNRCYAY2010","bma_IBNRCYAY2010","bma_IBNRCYAY2010","bma_IBNRCYAY2010","bma_CATIBNRCYAY2010"]
["L27",2011,"XXX",{"$f":"'Sch XI(a)(i)'!D49+'Sch XI(a)(ii)'!D49+'Sch XI(a)(iii)'!D49+'Sch XI(a)(iv)'!D49+'Sch XI(a)(v)'!D49+'Sch XI(a)(vi)'!D49+'Sch XI(a)(vii)'!D49+'Sch XI(a)(viii)'!D49","v":0},{"$f":"'Sch XI(a)(i)'!E49+'Sch XI(a)(ii)'!E49+'Sch XI(a)(iii)'!E49+'Sch XI(a)(iv)'!E49+'Sch XI(a)(v)'!E49+'Sch XI(a)(vi)'!E49+'Sch XI(a)(vii)'!E49+'Sch XI(a)(viii)'!E49","v":0},{"$f":"'Sch XI(a)(i)'!F49+'Sch XI(a)(ii)'!F49+'Sch XI(a)(iii)'!F49+'Sch XI(a)(iv)'!F49+'Sch XI(a)(v)'!F49+'Sch XI(a)(vi)'!F49+'Sch XI(a)(vii)'!F49+'Sch XI(a)(viii)'!F49","v":0},{"$f":"'Sch XI(a)(i)'!G49+'Sch XI(a)(ii)'!G49+'Sch XI(a)(iii)'!G49+'Sch XI(a)(iv)'!G49+'Sch XI(a)(v)'!G49+'Sch XI(a)(vi)'!G49+'Sch XI(a)(vii)'!G49+'Sch XI(a)(viii)'!G49","v":0},{"$f":"'Sch XI(a)(i)'!H49+'Sch XI(a)(ii)'!H49+'Sch XI(a)(iii)'!H49+'Sch XI(a)(iv)'!H49+'Sch XI(a)(v)'!H49+'Sch XI(a)(vi)'!H49+'Sch XI(a)(vii)'!H49+'Sch XI(a)(viii)'!H49","v":0},{"$f":"'Sch XI(a)(i)'!I49+'Sch XI(a)(ii)'!I49+'Sch XI(a)(iii)'!I49+'Sch XI(a)(iv)'!I49+'Sch XI(a)(v)'!I49+'Sch XI(a)(vi)'!I49+'Sch XI(a)(vii)'!I49+'Sch XI(a)(viii)'!I49","v":0},{"$f":"'Sch XI(a)(i)'!J49+'Sch XI(a)(ii)'!J49+'Sch XI(a)(iii)'!J49+'Sch XI(a)(iv)'!J49+'Sch XI(a)(v)'!J49+'Sch XI(a)(vi)'!J49+'Sch XI(a)(vii)'!J49+'Sch XI(a)(viii)'!J49","v":0},{"$f":"'Sch XI(a)(i)'!K49+'Sch XI(a)(ii)'!K49+'Sch XI(a)(iii)'!K49+'Sch XI(a)(iv)'!K49+'Sch XI(a)(v)'!K49+'Sch XI(a)(vi)'!K49+'Sch XI(a)(vii)'!K49+'Sch XI(a)(viii)'!K49","v":0},{"$f":"'Sch XI(a)(i)'!L49+'Sch XI(a)(ii)'!L49+'Sch XI(a)(iii)'!L49+'Sch XI(a)(iv)'!L49+'Sch XI(a)(v)'!L49+'Sch XI(a)(vi)'!L49+'Sch XI(a)(vii)'!L49+'Sch XI(a)(viii)'!L49","v":0},{"$f":"'Sch XI(a)(i)'!M49+'Sch XI(a)(ii)'!M49+'Sch XI(a)(iii)'!M49+'Sch XI(a)(iv)'!M49+'Sch XI(a)(v)'!M49+'Sch XI(a)(vi)'!M49+'Sch XI(a)(vii)'!M49+'Sch XI(a)(viii)'!M49","v":0},null,null,null,null,null,"brrt_PoliciesWrittenYearAxis_brrt_XNMinus8Member",null,null,null,null,null,null,null,null,null,null,null,null,null,null,null,null,null,null,null,{"$f":"\"bma_\"&\"IBNRCY\"&S$10&\"AY\"&$B49","v":"bma_IBNRCYAY2011"},{"$f":"\"bma_\"&\"IBNRCY\"&T$10&\"AY\"&$B49","v":"bma_IBNRCYAY2011"},{"$f":"\"bma_\"&\"IBNRCY\"&U$10&\"AY\"&$B49","v":"bma_IBNRCYAY2011"},"bma_IBNRCYAY2011","bma_IBNRCYAY2011","bma_IBNRCYAY2011","bma_IBNRCYAY2011","bma_IBNRCYAY2011","bma_IBNRCYAY2011","bma_CATIBNRCYAY2011"]
["L28",2012,"XXX","XXX",{"$f":"'Sch XI(a)(i)'!E50+'Sch XI(a)(ii)'!E50+'Sch XI(a)(iii)'!E50+'Sch XI(a)(iv)'!E50+'Sch XI(a)(v)'!E50+'Sch XI(a)(vi)'!E50+'Sch XI(a)(vii)'!E50+'Sch XI(a)(viii)'!E50","v":0},{"$f":"'Sch XI(a)(i)'!F50+'Sch XI(a)(ii)'!F50+'Sch XI(a)(iii)'!F50+'Sch XI(a)(iv)'!F50+'Sch XI(a)(v)'!F50+'Sch XI(a)(vi)'!F50+'Sch XI(a)(vii)'!F50+'Sch XI(a)(viii)'!F50","v":0},{"$f":"'Sch XI(a)(i)'!G50+'Sch XI(a)(ii)'!G50+'Sch XI(a)(iii)'!G50+'Sch XI(a)(iv)'!G50+'Sch XI(a)(v)'!G50+'Sch XI(a)(vi)'!G50+'Sch XI(a)(vii)'!G50+'Sch XI(a)(viii)'!G50","v":0},{"$f":"'Sch XI(a)(i)'!H50+'Sch XI(a)(ii)'!H50+'Sch XI(a)(iii)'!H50+'Sch XI(a)(iv)'!H50+'Sch XI(a)(v)'!H50+'Sch XI(a)(vi)'!H50+'Sch XI(a)(vii)'!H50+'Sch XI(a)(viii)'!H50","v":0},{"$f":"'Sch XI(a)(i)'!I50+'Sch XI(a)(ii)'!I50+'Sch XI(a)(iii)'!I50+'Sch XI(a)(iv)'!I50+'Sch XI(a)(v)'!I50+'Sch XI(a)(vi)'!I50+'Sch XI(a)(vii)'!I50+'Sch XI(a)(viii)'!I50","v":0},{"$f":"'Sch XI(a)(i)'!J50+'Sch XI(a)(ii)'!J50+'Sch XI(a)(iii)'!J50+'Sch XI(a)(iv)'!J50+'Sch XI(a)(v)'!J50+'Sch XI(a)(vi)'!J50+'Sch XI(a)(vii)'!J50+'Sch XI(a)(viii)'!J50","v":0},{"$f":"'Sch XI(a)(i)'!K50+'Sch XI(a)(ii)'!K50+'Sch XI(a)(iii)'!K50+'Sch XI(a)(iv)'!K50+'Sch XI(a)(v)'!K50+'Sch XI(a)(vi)'!K50+'Sch XI(a)(vii)'!K50+'Sch XI(a)(viii)'!K50","v":0},{"$f":"'Sch XI(a)(i)'!L50+'Sch XI(a)(ii)'!L50+'Sch XI(a)(iii)'!L50+'Sch XI(a)(iv)'!L50+'Sch XI(a)(v)'!L50+'Sch XI(a)(vi)'!L50+'Sch XI(a)(vii)'!L50+'Sch XI(a)(viii)'!L50","v":0},{"$f":"'Sch XI(a)(i)'!M50+'Sch XI(a)(ii)'!M50+'Sch XI(a)(iii)'!M50+'Sch XI(a)(iv)'!M50+'Sch XI(a)(v)'!M50+'Sch XI(a)(vi)'!M50+'Sch XI(a)(vii)'!M50+'Sch XI(a)(viii)'!M50","v":0},null,null,null,null,null,"brrt_PoliciesWrittenYearAxis_brrt_XNMinus7Member",null,null,null,null,null,null,null,null,null,null,null,null,null,null,null,null,null,null,null,null,{"$f":"\"bma_\"&\"IBNRCY\"&T$10&\"AY\"&$B50","v":"bma_IBNRCYAY2012"},{"$f":"\"bma_\"&\"IBNRCY\"&U$10&\"AY\"&$B50","v":"bma_IBNRCYAY2012"},"bma_IBNRCYAY2012","bma_IBNRCYAY2012","bma_IBNRCYAY2012","bma_IBNRCYAY2012","bma_IBNRCYAY2012","bma_IBNRCYAY2012","bma_CATIBNRCYAY2012"]
["L29",2013,"XXX","XXX","XXX",{"$f":"'Sch XI(a)(i)'!F51+'Sch XI(a)(ii)'!F51+'Sch XI(a)(iii)'!F51+'Sch XI(a)(iv)'!F51+'Sch XI(a)(v)'!F51+'Sch XI(a)(vi)'!F51+'Sch XI(a)(vii)'!F51+'Sch XI(a)(viii)'!F51","v":0},{"$f":"'Sch XI(a)(i)'!G51+'Sch XI(a)(ii)'!G51+'Sch XI(a)(iii)'!G51+'Sch XI(a)(iv)'!G51+'Sch XI(a)(v)'!G51+'Sch XI(a)(vi)'!G51+'Sch XI(a)(vii)'!G51+'Sch XI(a)(viii)'!G51","v":0},{"$f":"'Sch XI(a)(i)'!H51+'Sch XI(a)(ii)'!H51+'Sch XI(a)(iii)'!H51+'Sch XI(a)(iv)'!H51+'Sch XI(a)(v)'!H51+'Sch XI(a)(vi)'!H51+'Sch XI(a)(vii)'!H51+'Sch XI(a)(viii)'!H51","v":0},{"$f":"'Sch XI(a)(i)'!I51+'Sch XI(a)(ii)'!I51+'Sch XI(a)(iii)'!I51+'Sch XI(a)(iv)'!I51+'Sch XI(a)(v)'!I51+'Sch XI(a)(vi)'!I51+'Sch XI(a)(vii)'!I51+'Sch XI(a)(viii)'!I51","v":0},{"$f":"'Sch XI(a)(i)'!J51+'Sch XI(a)(ii)'!J51+'Sch XI(a)(iii)'!J51+'Sch XI(a)(iv)'!J51+'Sch XI(a)(v)'!J51+'Sch XI(a)(vi)'!J51+'Sch XI(a)(vii)'!J51+'Sch XI(a)(viii)'!J51","v":0},{"$f":"'Sch XI(a)(i)'!K51+'Sch XI(a)(ii)'!K51+'Sch XI(a)(iii)'!K51+'Sch XI(a)(iv)'!K51+'Sch XI(a)(v)'!K51+'Sch XI(a)(vi)'!K51+'Sch XI(a)(vii)'!K51+'Sch XI(a)(viii)'!K51","v":0},{"$f":"'Sch XI(a)(i)'!L51+'Sch XI(a)(ii)'!L51+'Sch XI(a)(iii)'!L51+'Sch XI(a)(iv)'!L51+'Sch XI(a)(v)'!L51+'Sch XI(a)(vi)'!L51+'Sch XI(a)(vii)'!L51+'Sch XI(a)(viii)'!L51","v":0},{"$f":"'Sch XI(a)(i)'!M51+'Sch XI(a)(ii)'!M51+'Sch XI(a)(iii)'!M51+'Sch XI(a)(iv)'!M51+'Sch XI(a)(v)'!M51+'Sch XI(a)(vi)'!M51+'Sch XI(a)(vii)'!M51+'Sch XI(a)(viii)'!M51","v":0},null,null,null,null,null,"brrt_PoliciesWrittenYearAxis_brrt_XNMinus6Member",null,null,null,null,null,null,null,null,null,null,null,null,null,null,null,null,null,null,null,null,null,{"$f":"\"bma_\"&\"IBNRCY\"&U$10&\"AY\"&$B51","v":"bma_IBNRCYAY2013"},"bma_IBNRCYAY2013","bma_IBNRCYAY2013","bma_IBNRCYAY2013","bma_IBNRCYAY2013","bma_IBNRCYAY2013","bma_IBNRCYAY2013","bma_CATIBNRCYAY2013"]
["L30",2014,"XXX","XXX","XXX","XXX",{"$f":"'Sch XI(a)(i)'!G52+'Sch XI(a)(ii)'!G52+'Sch XI(a)(iii)'!G52+'Sch XI(a)(iv)'!G52+'Sch XI(a)(v)'!G52+'Sch XI(a)(vi)'!G52+'Sch XI(a)(vii)'!G52+'Sch XI(a)(viii)'!G52","v":0},{"$f":"'Sch XI(a)(i)'!H52+'Sch XI(a)(ii)'!H52+'Sch XI(a)(iii)'!H52+'Sch XI(a)(iv)'!H52+'Sch XI(a)(v)'!H52+'Sch XI(a)(vi)'!H52+'Sch XI(a)(vii)'!H52+'Sch XI(a)(viii)'!H52","v":0},{"$f":"'Sch XI(a)(i)'!I52+'Sch XI(a)(ii)'!I52+'Sch XI(a)(iii)'!I52+'Sch XI(a)(iv)'!I52+'Sch XI(a)(v)'!I52+'Sch XI(a)(vi)'!I52+'Sch XI(a)(vii)'!I52+'Sch XI(a)(viii)'!I52","v":0},{"$f":"'Sch XI(a)(i)'!J52+'Sch XI(a)(ii)'!J52+'Sch XI(a)(iii)'!J52+'Sch XI(a)(iv)'!J52+'Sch XI(a)(v)'!J52+'Sch XI(a)(vi)'!J52+'Sch XI(a)(vii)'!J52+'Sch XI(a)(viii)'!J52","v":0},{"$f":"'Sch XI(a)(i)'!K52+'Sch XI(a)(ii)'!K52+'Sch XI(a)(iii)'!K52+'Sch XI(a)(iv)'!K52+'Sch XI(a)(v)'!K52+'Sch XI(a)(vi)'!K52+'Sch XI(a)(vii)'!K52+'Sch XI(a)(viii)'!K52","v":0},{"$f":"'Sch XI(a)(i)'!L52+'Sch XI(a)(ii)'!L52+'Sch XI(a)(iii)'!L52+'Sch XI(a)(iv)'!L52+'Sch XI(a)(v)'!L52+'Sch XI(a)(vi)'!L52+'Sch XI(a)(vii)'!L52+'Sch XI(a)(viii)'!L52","v":0},{"$f":"'Sch XI(a)(i)'!M52+'Sch XI(a)(ii)'!M52+'Sch XI(a)(iii)'!M52+'Sch XI(a)(iv)'!M52+'Sch XI(a)(v)'!M52+'Sch XI(a)(vi)'!M52+'Sch XI(a)(vii)'!M52+'Sch XI(a)(viii)'!M52","v":0},null,null,null,null,null,"brrt_PoliciesWrittenYearAxis_brrt_XNMinus5Member",null,null,null,null,null,null,null,null,null,null,null,null,null,null,null,null,null,null,null,null,null,null,"bma_IBNRCYAY2014","bma_IBNRCYAY2014","bma_IBNRCYAY2014","bma_IBNRCYAY2014","bma_IBNRCYAY2014","bma_IBNRCYAY2014","bma_CATIBNRCYAY2014"]
["L31",2015,"XXX","XXX","XXX","XXX","XXX",{"$f":"'Sch XI(a)(i)'!H53+'Sch XI(a)(ii)'!H53+'Sch XI(a)(iii)'!H53+'Sch XI(a)(iv)'!H53+'Sch XI(a)(v)'!H53+'Sch XI(a)(vi)'!H53+'Sch XI(a)(vii)'!H53+'Sch XI(a)(viii)'!H53","v":0},{"$f":"'Sch XI(a)(i)'!I53+'Sch XI(a)(ii)'!I53+'Sch XI(a)(iii)'!I53+'Sch XI(a)(iv)'!I53+'Sch XI(a)(v)'!I53+'Sch XI(a)(vi)'!I53+'Sch XI(a)(vii)'!I53+'Sch XI(a)(viii)'!I53","v":0},{"$f":"'Sch XI(a)(i)'!J53+'Sch XI(a)(ii)'!J53+'Sch XI(a)(iii)'!J53+'Sch XI(a)(iv)'!J53+'Sch XI(a)(v)'!J53+'Sch XI(a)(vi)'!J53+'Sch XI(a)(vii)'!J53+'Sch XI(a)(viii)'!J53","v":0},{"$f":"'Sch XI(a)(i)'!K53+'Sch XI(a)(ii)'!K53+'Sch XI(a)(iii)'!K53+'Sch XI(a)(iv)'!K53+'Sch XI(a)(v)'!K53+'Sch XI(a)(vi)'!K53+'Sch XI(a)(vii)'!K53+'Sch XI(a)(viii)'!K53","v":0},{"$f":"'Sch XI(a)(i)'!L53+'Sch XI(a)(ii)'!L53+'Sch XI(a)(iii)'!L53+'Sch XI(a)(iv)'!L53+'Sch XI(a)(v)'!L53+'Sch XI(a)(vi)'!L53+'Sch XI(a)(vii)'!L53+'Sch XI(a)(viii)'!L53","v":0},{"$f":"'Sch XI(a)(i)'!M53+'Sch XI(a)(ii)'!M53+'Sch XI(a)(iii)'!M53+'Sch XI(a)(iv)'!M53+'Sch XI(a)(v)'!M53+'Sch XI(a)(vi)'!M53+'Sch XI(a)(vii)'!M53+'Sch XI(a)(viii)'!M53","v":0},null,null,null,null,null,"brrt_PoliciesWrittenYearAxis_brrt_XNMinus4Member",null,null,null,null,null,null,null,null,null,null,null,null,null,null,null,null,null,null,null,null,null,null,null,{"$f":"\"bma_\"&\"IBNRCY\"&W$10&\"AY\"&$B53","v":"bma_IBNRCYAY2015"},{"$f":"\"bma_\"&\"IBNRCY\"&X$10&\"AY\"&$B53","v":"bma_IBNRCYAY2015"},{"$f":"\"bma_\"&\"IBNRCY\"&Y$10&\"AY\"&$B53","v":"bma_IBNRCYAY2015"},{"$f":"\"bma_\"&\"IBNRCY\"&Z$10&\"AY\"&$B53","v":"bma_IBNRCYAY2015"},{"$f":"\"bma_\"&\"IBNRCY\"&AA$10&\"AY\"&$B53","v":"bma_IBNRCYAY2015"},"bma_CATIBNRCYAY2015"]
["L32",2016,"XXX","XXX","XXX","XXX","XXX","XXX",{"$f":"'Sch XI(a)(i)'!I54+'Sch XI(a)(ii)'!I54+'Sch XI(a)(iii)'!I54+'Sch XI(a)(iv)'!I54+'Sch XI(a)(v)'!I54+'Sch XI(a)(vi)'!I54+'Sch XI(a)(vii)'!I54+'Sch XI(a)(viii)'!I54","v":0},{"$f":"'Sch XI(a)(i)'!J54+'Sch XI(a)(ii)'!J54+'Sch XI(a)(iii)'!J54+'Sch XI(a)(iv)'!J54+'Sch XI(a)(v)'!J54+'Sch XI(a)(vi)'!J54+'Sch XI(a)(vii)'!J54+'Sch XI(a)(viii)'!J54","v":0},{"$f":"'Sch XI(a)(i)'!K54+'Sch XI(a)(ii)'!K54+'Sch XI(a)(iii)'!K54+'Sch XI(a)(iv)'!K54+'Sch XI(a)(v)'!K54+'Sch XI(a)(vi)'!K54+'Sch XI(a)(vii)'!K54+'Sch XI(a)(viii)'!K54","v":0},{"$f":"'Sch XI(a)(i)'!L54+'Sch XI(a)(ii)'!L54+'Sch XI(a)(iii)'!L54+'Sch XI(a)(iv)'!L54+'Sch XI(a)(v)'!L54+'Sch XI(a)(vi)'!L54+'Sch XI(a)(vii)'!L54+'Sch XI(a)(viii)'!L54","v":0},{"$f":"'Sch XI(a)(i)'!M54+'Sch XI(a)(ii)'!M54+'Sch XI(a)(iii)'!M54+'Sch XI(a)(iv)'!M54+'Sch XI(a)(v)'!M54+'Sch XI(a)(vi)'!M54+'Sch XI(a)(vii)'!M54+'Sch XI(a)(viii)'!M54","v":0},null,null,null,null,null,"brrt_PoliciesWrittenYearAxis_brrt_XNMinus3Member",null,null,null,null,null,null,null,null,null,null,null,null,null,null,null,null,null,null,null,null,null,null,null,null,{"$f":"\"bma_\"&\"IBNRCY\"&X$10&\"AY\"&$B54","v":"bma_IBNRCYAY2016"},{"$f":"\"bma_\"&\"IBNRCY\"&Y$10&\"AY\"&$B54","v":"bma_IBNRCYAY2016"},{"$f":"\"bma_\"&\"IBNRCY\"&Z$10&\"AY\"&$B54","v":"bma_IBNRCYAY2016"},{"$f":"\"bma_\"&\"IBNRCY\"&AA$10&\"AY\"&$B54","v":"bma_IBNRCYAY2016"},"bma_CATIBNRCYAY2016"]
["L33",2017,"XXX","XXX","XXX","XXX","XXX","XXX","XXX",{"$f":"'Sch XI(a)(i)'!J55+'Sch XI(a)(ii)'!J55+'Sch XI(a)(iii)'!J55+'Sch XI(a)(iv)'!J55+'Sch XI(a)(v)'!J55+'Sch XI(a)(vi)'!J55+'Sch XI(a)(vii)'!J55+'Sch XI(a)(viii)'!J55","v":0},{"$f":"'Sch XI(a)(i)'!K55+'Sch XI(a)(ii)'!K55+'Sch XI(a)(iii)'!K55+'Sch XI(a)(iv)'!K55+'Sch XI(a)(v)'!K55+'Sch XI(a)(vi)'!K55+'Sch XI(a)(vii)'!K55+'Sch XI(a)(viii)'!K55","v":0},{"$f":"'Sch XI(a)(i)'!L55+'Sch XI(a)(ii)'!L55+'Sch XI(a)(iii)'!L55+'Sch XI(a)(iv)'!L55+'Sch XI(a)(v)'!L55+'Sch XI(a)(vi)'!L55+'Sch XI(a)(vii)'!L55+'Sch XI(a)(viii)'!L55","v":0},{"$f":"'Sch XI(a)(i)'!M55+'Sch XI(a)(ii)'!M55+'Sch XI(a)(iii)'!M55+'Sch XI(a)(iv)'!M55+'Sch XI(a)(v)'!M55+'Sch XI(a)(vi)'!M55+'Sch XI(a)(vii)'!M55+'Sch XI(a)(viii)'!M55","v":0},null,null,null,null,null,"brrt_PoliciesWrittenYearAxis_brrt_XNMinus2Member",null,null,null,null,null,null,null,null,null,null,null,null,null,null,null,null,null,null,null,null,null,null,null,null,null,{"$f":"\"bma_\"&\"IBNRCY\"&Y$10&\"AY\"&$B55","v":"bma_IBNRCYAY2017"},{"$f":"\"bma_\"&\"IBNRCY\"&Z$10&\"AY\"&$B55","v":"bma_IBNRCYAY2017"},{"$f":"\"bma_\"&\"IBNRCY\"&AA$10&\"AY\"&$B55","v":"bma_IBNRCYAY2017"},"bma_CATIBNRCYAY2017"]
["L34",2018,"XXX","XXX","XXX","XXX","XXX","XXX","XXX","XXX",{"$f":"'Sch XI(a)(i)'!K56+'Sch XI(a)(ii)'!K56+'Sch XI(a)(iii)'!K56+'Sch XI(a)(iv)'!K56+'Sch XI(a)(v)'!K56+'Sch XI(a)(vi)'!K56+'Sch XI(a)(vii)'!K56+'Sch XI(a)(viii)'!K56","v":0},{"$f":"'Sch XI(a)(i)'!L56+'Sch XI(a)(ii)'!L56+'Sch XI(a)(iii)'!L56+'Sch XI(a)(iv)'!L56+'Sch XI(a)(v)'!L56+'Sch XI(a)(vi)'!L56+'Sch XI(a)(vii)'!L56+'Sch XI(a)(viii)'!L56","v":0},{"$f":"'Sch XI(a)(i)'!M56+'Sch XI(a)(ii)'!M56+'Sch XI(a)(iii)'!M56+'Sch XI(a)(iv)'!M56+'Sch XI(a)(v)'!M56+'Sch XI(a)(vi)'!M56+'Sch XI(a)(vii)'!M56+'Sch XI(a)(viii)'!M56","v":0},null,null,null,null,null,"brrt_PoliciesWrittenYearAxis_brrt_XNMinus1Member",null,null,null,null,null,null,null,null,null,null,null,null,null,null,null,null,null,null,null,null,null,null,null,null,null,null,{"$f":"\"bma_\"&\"IBNRCY\"&Z$10&\"AY\"&$B56","v":"bma_IBNRCYAY2018"},{"$f":"\"bma_\"&\"IBNRCY\"&AA$10&\"AY\"&$B56","v":"bma_IBNRCYAY2018"},"bma_CATIBNRCYAY2018"]
["L35",{"$f":"L46","v":2019},"XXX","XXX","XXX","XXX","XXX","XXX","XXX","XXX","XXX",{"$f":"'Sch XI(a)(i)'!L57+'Sch XI(a)(ii)'!L57+'Sch XI(a)(iii)'!L57+'Sch XI(a)(iv)'!L57+'Sch XI(a)(v)'!L57+'Sch XI(a)(vi)'!L57+'Sch XI(a)(vii)'!L57+'Sch XI(a)(viii)'!L57","v":0},{"$f":"'Sch XI(a)(i)'!M57+'Sch XI(a)(ii)'!M57+'Sch XI(a)(iii)'!M57+'Sch XI(a)(iv)'!M57+'Sch XI(a)(v)'!M57+'Sch XI(a)(vi)'!M57+'Sch XI(a)(vii)'!M57+'Sch XI(a)(viii)'!M57","v":0},null,null,null,null,null,"brrt_PoliciesWrittenYearAxis_brrt_XNMember",null,null,null,null,null,null,null,null,null,null,null,null,null,null,null,null,null,null,null,null,null,null,null,null,null,null,null,{"$f":"\"bma_\"&\"IBNRCY\"&AA$10&\"AY\"&$B57","v":"bma_IBNRCYAY2019"},"bma_CATIBNRCYAY2019"]
["L36","Totals",null,null,null,null,null,null,null,null,null,null,{"$f":"SUM(M47:M57)","v":0},null,null,null,null,null,null,null,null,null,null,null,null,null,null,null,null,null,null,null,null,null,null,null,null,null,null,null,null,null,null,null,null,null,null,"bma_CATIBNRCYAYTotals"]
[]
[null,null,36,37,38,39,"Unallocated Loss",null,null,42,43,44,45]
[null,"Years in Which",null,null,null,null,"Adjustment Expenses",null,null,"Commission and Brokerage Expense (Form 2A, Line 9)","General and Administrative Expense (Form 2A, Line 10)"]
[null,"Premiums",null,null,null,null,40,41,null,null,null,"Personnel Costs (Form 2A, Line 11)"]
[null,"Were"]
[null,"Earned and","Gross","Gross","Net","Net",null,null,null,null,null,null,"Other"]
[null,"Losses Were","Premiums","Premiums","Premiums","Premiums",null,null,"Calendar",null,null,null,"Expense"]
[null,"Incurred","Written","Earned","Written","Earned","Paid","Incurred","Year",null,null,null,"(Form 2A, Line 12)"]
["L37","Prior","XXX",{"$f":"C67","v":"XXX"},"XXX",{"$f":"E67","v":"XXX"},{"$f":"'Sch XI(a)(i)'!G67+'Sch XI(a)(ii)'!G67+'Sch XI(a)(iii)'!G67+'Sch XI(a)(iv)'!G67+'Sch XI(a)(v)'!G67+'Sch XI(a)(vi)'!G67+'Sch XI(a)(vii)'!G67+'Sch XI(a)(viii)'!G67","v":0},{"$f":"'Sch XI(a)(i)'!H67+'Sch XI(a)(ii)'!H67+'Sch XI(a)(iii)'!H67+'Sch XI(a)(iv)'!H67+'Sch XI(a)(v)'!H67+'Sch XI(a)(vi)'!H67+'Sch XI(a)(vii)'!H67+'Sch XI(a)(viii)'!H67","v":0},"Prior",{"$f":"'Sch XI(a)(i)'!J67+'Sch XI(a)(ii)'!J67+'Sch XI(a)(iii)'!J67+'Sch XI(a)(iv)'!J67+'Sch XI(a)(v)'!J67+'Sch XI(a)(vi)'!J67+'Sch XI(a)(vii)'!J67+'Sch XI(a)(viii)'!J67","v":0},{"$f":"'Sch XI(a)(i)'!K67+'Sch XI(a)(ii)'!K67+'Sch XI(a)(iii)'!K67+'Sch XI(a)(iv)'!K67+'Sch XI(a)(v)'!K67+'Sch XI(a)(vi)'!K67+'Sch XI(a)(vii)'!K67+'Sch XI(a)(viii)'!K67","v":0},{"$f":"'Sch XI(a)(i)'!L67+'Sch XI(a)(ii)'!L67+'Sch XI(a)(iii)'!L67+'Sch XI(a)(iv)'!L67+'Sch XI(a)(v)'!L67+'Sch XI(a)(vi)'!L67+'Sch XI(a)(vii)'!L67+'Sch XI(a)(viii)'!L67","v":0},{"$f":"'Sch XI(a)(i)'!M67+'Sch XI(a)(ii)'!M67+'Sch XI(a)(iii)'!M67+'Sch XI(a)(iv)'!M67+'Sch XI(a)(v)'!M67+'Sch XI(a)(vi)'!M67+'Sch XI(a)(vii)'!M67+'Sch XI(a)(viii)'!M67","v":0},null,null,null,null,null,"brrt_PremiumsEarnedLossesIncurredYearAxis_brrt_PriorMember","brrt_CalendarYearAxis_brrt_PriorMember",null,null,null,null,null,null,null,null,null,null,null,null,null,null,null,null,null,null,null,null,null,{"$f":"\"bma_\"&\"NetAOEPaid\"&$B67","v":"bma_NetAOEPaidPrior"},{"$f":"\"bma_\"&\"NetAOEIncurred\"&$B67","v":"bma_NetAOEIncurredPrior"},null,{"$f":"\"bma_\"&\"CommissionsAndBrokerage\"&$B67","v":"bma_CommissionsAndBrokeragePrior"},{"$f":"\"bma_\"&\"GeneralAndAdministrative\"&$B67","v":"bma_GeneralAndAdministrativePrior"},{"$f":"\"bma_\"&\"PersonnelCosts\"&$B67","v":"bma_PersonnelCostsPrior"},{"$f":"\"bma_\"&\"UnderwritingExpensesOther\"&$B67","v":"bma_UnderwritingExpensesOtherPrior"}]
["L38",{"$f":"B69-1","v":2010},{"$f":"'Sch XI(a)(i)'!C68+'Sch XI(a)(ii)'!C68+'Sch XI(a)(iii)'!C68+'Sch XI(a)(iv)'!C68+'Sch XI(a)(v)'!C68+'Sch XI(a)(vi)'!C68+'Sch XI(a)(vii)'!C68+'Sch XI(a)(viii)'!C68","v":0},{"$f":"'Sch XI(a)(i)'!D68+'Sch XI(a)(ii)'!D68+'Sch XI(a)(iii)'!D68+'Sch XI(a)(iv)'!D68+'Sch XI(a)(v)'!D68+'Sch XI(a)(vi)'!D68+'Sch XI(a)(vii)'!D68+'Sch XI(a)(viii)'!D68","v":0},{"$f":"'Sch XI(a)(i)'!E68+'Sch XI(a)(ii)'!E68+'Sch XI(a)(iii)'!E68+'Sch XI(a)(iv)'!E68+'Sch XI(a)(v)'!E68+'Sch XI(a)(vi)'!E68+'Sch XI(a)(vii)'!E68+'Sch XI(a)(viii)'!E68","v":0},{"$f":"'Sch XI(a)(i)'!F68+'Sch XI(a)(ii)'!F68+'Sch XI(a)(iii)'!F68+'Sch XI(a)(iv)'!F68+'Sch XI(a)(v)'!F68+'Sch XI(a)(vi)'!F68+'Sch XI(a)(vii)'!F68+'Sch XI(a)(viii)'!F68","v":0},{"$f":"'Sch XI(a)(i)'!G68+'Sch XI(a)(ii)'!G68+'Sch XI(a)(iii)'!G68+'Sch XI(a)(iv)'!G68+'Sch XI(a)(v)'!G68+'Sch XI(a)(vi)'!G68+'Sch XI(a)(vii)'!G68+'Sch XI(a)(viii)'!G68","v":0},{"$f":"'Sch XI(a)(i)'!H68+'Sch XI(a)(ii)'!H68+'Sch XI(a)(iii)'!H68+'Sch XI(a)(iv)'!H68+'Sch XI(a)(v)'!H68+'Sch XI(a)(vi)'!H68+'Sch XI(a)(vii)'!H68+'Sch XI(a)(viii)'!H68","v":0},{"$f":"B68","v":2010},{"$f":"'Sch XI(a)(i)'!J68+'Sch XI(a)(ii)'!J68+'Sch XI(a)(iii)'!J68+'Sch XI(a)(iv)'!J68+'Sch XI(a)(v)'!J68+'Sch XI(a)(vi)'!J68+'Sch XI(a)(vii)'!J68+'Sch XI(a)(viii)'!J68","v":0},{"$f":"'Sch XI(a)(i)'!K68+'Sch XI(a)(ii)'!K68+'Sch XI(a)(iii)'!K68+'Sch XI(a)(iv)'!K68+'Sch XI(a)(v)'!K68+'Sch XI(a)(vi)'!K68+'Sch XI(a)(vii)'!K68+'Sch XI(a)(viii)'!K68","v":0},{"$f":"'Sch XI(a)(i)'!L68+'Sch XI(a)(ii)'!L68+'Sch XI(a)(iii)'!L68+'Sch XI(a)(iv)'!L68+'Sch XI(a)(v)'!L68+'Sch XI(a)(vi)'!L68+'Sch XI(a)(vii)'!L68+'Sch XI(a)(viii)'!L68","v":0},{"$f":"'Sch XI(a)(i)'!M68+'Sch XI(a)(ii)'!M68+'Sch XI(a)(iii)'!M68+'Sch XI(a)(iv)'!M68+'Sch XI(a)(v)'!M68+'Sch XI(a)(vi)'!M68+'Sch XI(a)(vii)'!M68+'Sch XI(a)(viii)'!M68","v":0},null,null,null,null,null,"brrt_PremiumsEarnedLossesIncurredYearAxis_brrt_XNMinus9Member","brrt_CalendarYearAxis_brrt_XNMinus9Member",null,null,null,null,null,null,null,null,null,null,null,null,null,null,null,null,null,{"$f":"\"bma_\"&\"GrossWP\"&$B68","v":"bma_GrossWP2010"},{"$f":"\"bma_\"&\"GrossEP\"&$B68","v":"bma_GrossEP2010"},{"$f":"\"bma_\"&\"NetWP\"&$B68","v":"bma_NetWP2010"},{"$f":"\"bma_\"&\"NetEP\"&$B68","v":"bma_NetEP2010"},{"$f":"\"bma_\"&\"NetAOEPaid\"&$B68","v":"bma_NetAOEPaid2010"},{"$f":"\"bma_\"&\"NetAOEIncurred\"&$B68","v":"bma_NetAOEIncurred2010"},null,{"$f":"\"bma_\"&\"CommissionsAndBrokerage\"&$B68","v":"bma_CommissionsAndBrokerage2010"},{"$f":"\"bma_\"&\"GeneralAndAdministrative\"&$B68","v":"bma_GeneralAndAdministrative2010"},{"$f":"\"bma_\"&\"PersonnelCosts\"&$B68","v":"bma_PersonnelCosts2010"},{"$f":"\"bma_\"&\"UnderwritingExpensesOther\"&$B68","v":"bma_UnderwritingExpensesOther2010"}]
["L39",2011,{"$f":"'Sch XI(a)(i)'!C69+'Sch XI(a)(ii)'!C69+'Sch XI(a)(iii)'!C69+'Sch XI(a)(iv)'!C69+'Sch XI(a)(v)'!C69+'Sch XI(a)(vi)'!C69+'Sch XI(a)(vii)'!C69+'Sch XI(a)(viii)'!C69","v":0},{"$f":"'Sch XI(a)(i)'!D69+'Sch XI(a)(ii)'!D69+'Sch XI(a)(iii)'!D69+'Sch XI(a)(iv)'!D69+'Sch XI(a)(v)'!D69+'Sch XI(a)(vi)'!D69+'Sch XI(a)(vii)'!D69+'Sch XI(a)(viii)'!D69","v":0},{"$f":"'Sch XI(a)(i)'!E69+'Sch XI(a)(ii)'!E69+'Sch XI(a)(iii)'!E69+'Sch XI(a)(iv)'!E69+'Sch XI(a)(v)'!E69+'Sch XI(a)(vi)'!E69+'Sch XI(a)(vii)'!E69+'Sch XI(a)(viii)'!E69","v":0},{"$f":"'Sch XI(a)(i)'!F69+'Sch XI(a)(ii)'!F69+'Sch XI(a)(iii)'!F69+'Sch XI(a)(iv)'!F69+'Sch XI(a)(v)'!F69+'Sch XI(a)(vi)'!F69+'Sch XI(a)(vii)'!F69+'Sch XI(a)(viii)'!F69","v":0},{"$f":"'Sch XI(a)(i)'!G69+'Sch XI(a)(ii)'!G69+'Sch XI(a)(iii)'!G69+'Sch XI(a)(iv)'!G69+'Sch XI(a)(v)'!G69+'Sch XI(a)(vi)'!G69+'Sch XI(a)(vii)'!G69+'Sch XI(a)(viii)'!G69","v":0},{"$f":"'Sch XI(a)(i)'!H69+'Sch XI(a)(ii)'!H69+'Sch XI(a)(iii)'!H69+'Sch XI(a)(iv)'!H69+'Sch XI(a)(v)'!H69+'Sch XI(a)(vi)'!H69+'Sch XI(a)(vii)'!H69+'Sch XI(a)(viii)'!H69","v":0},2011,{"$f":"'Sch XI(a)(i)'!J69+'Sch XI(a)(ii)'!J69+'Sch XI(a)(iii)'!J69+'Sch XI(a)(iv)'!J69+'Sch XI(a)(v)'!J69+'Sch XI(a)(vi)'!J69+'Sch XI(a)(vii)'!J69+'Sch XI(a)(viii)'!J69","v":0},{"$f":"'Sch XI(a)(i)'!K69+'Sch XI(a)(ii)'!K69+'Sch XI(a)(iii)'!K69+'Sch XI(a)(iv)'!K69+'Sch XI(a)(v)'!K69+'Sch XI(a)(vi)'!K69+'Sch XI(a)(vii)'!K69+'Sch XI(a)(viii)'!K69","v":0},{"$f":"'Sch XI(a)(i)'!L69+'Sch XI(a)(ii)'!L69+'Sch XI(a)(iii)'!L69+'Sch XI(a)(iv)'!L69+'Sch XI(a)(v)'!L69+'Sch XI(a)(vi)'!L69+'Sch XI(a)(vii)'!L69+'Sch XI(a)(viii)'!L69","v":0},{"$f":"'Sch XI(a)(i)'!M69+'Sch XI(a)(ii)'!M69+'Sch XI(a)(iii)'!M69+'Sch XI(a)(iv)'!M69+'Sch XI(a)(v)'!M69+'Sch XI(a)(vi)'!M69+'Sch XI(a)(vii)'!M69+'Sch XI(a)(viii)'!M69","v":0},null,null,null,null,null,"brrt_PremiumsEarnedLossesIncurredYearAxis_brrt_XNMinus8Member","brrt_CalendarYearAxis_brrt_XNMinus8Member",null,null,null,null,null,null,null,null,null,null,null,null,null,null,null,null,null,{"$f":"\"bma_\"&\"GrossWP\"&$B69","v":"bma_GrossWP2011"},{"$f":"\"bma_\"&\"GrossEP\"&$B69","v":"bma_GrossEP2011"},{"$f":"\"bma_\"&\"NetWP\"&$B69","v":"bma_NetWP2011"},{"$f":"\"bma_\"&\"NetEP\"&$B69","v":"bma_NetEP2011"},"bma_NetAOEPaid2011","bma_NetAOEIncurred2011",null,"bma_CommissionsAndBrokerage2011","bma_GeneralAndAdministrative2011","bma_PersonnelCosts2011","bma_UnderwritingExpensesOther2011"]
["L40",2012,{"$f":"'Sch XI(a)(i)'!C70+'Sch XI(a)(ii)'!C70+'Sch XI(a)(iii)'!C70+'Sch XI(a)(iv)'!C70+'Sch XI(a)(v)'!C70+'Sch XI(a)(vi)'!C70+'Sch XI(a)(vii)'!C70+'Sch XI(a)(viii)'!C70","v":0},{"$f":"'Sch XI(a)(i)'!D70+'Sch XI(a)(ii)'!D70+'Sch XI(a)(iii)'!D70+'Sch XI(a)(iv)'!D70+'Sch XI(a)(v)'!D70+'Sch XI(a)(vi)'!D70+'Sch XI(a)(vii)'!D70+'Sch XI(a)(viii)'!D70","v":0},{"$f":"'Sch XI(a)(i)'!E70+'Sch XI(a)(ii)'!E70+'Sch XI(a)(iii)'!E70+'Sch XI(a)(iv)'!E70+'Sch XI(a)(v)'!E70+'Sch XI(a)(vi)'!E70+'Sch XI(a)(vii)'!E70+'Sch XI(a)(viii)'!E70","v":0},{"$f":"'Sch XI(a)(i)'!F70+'Sch XI(a)(ii)'!F70+'Sch XI(a)(iii)'!F70+'Sch XI(a)(iv)'!F70+'Sch XI(a)(v)'!F70+'Sch XI(a)(vi)'!F70+'Sch XI(a)(vii)'!F70+'Sch XI(a)(viii)'!F70","v":0},{"$f":"'Sch XI(a)(i)'!G70+'Sch XI(a)(ii)'!G70+'Sch XI(a)(iii)'!G70+'Sch XI(a)(iv)'!G70+'Sch XI(a)(v)'!G70+'Sch XI(a)(vi)'!G70+'Sch XI(a)(vii)'!G70+'Sch XI(a)(viii)'!G70","v":0},{"$f":"'Sch XI(a)(i)'!H70+'Sch XI(a)(ii)'!H70+'Sch XI(a)(iii)'!H70+'Sch XI(a)(iv)'!H70+'Sch XI(a)(v)'!H70+'Sch XI(a)(vi)'!H70+'Sch XI(a)(vii)'!H70+'Sch XI(a)(viii)'!H70","v":0},2012,{"$f":"'Sch XI(a)(i)'!J70+'Sch XI(a)(ii)'!J70+'Sch XI(a)(iii)'!J70+'Sch XI(a)(iv)'!J70+'Sch XI(a)(v)'!J70+'Sch XI(a)(vi)'!J70+'Sch XI(a)(vii)'!J70+'Sch XI(a)(viii)'!J70","v":0},{"$f":"'Sch XI(a)(i)'!K70+'Sch XI(a)(ii)'!K70+'Sch XI(a)(iii)'!K70+'Sch XI(a)(iv)'!K70+'Sch XI(a)(v)'!K70+'Sch XI(a)(vi)'!K70+'Sch XI(a)(vii)'!K70+'Sch XI(a)(viii)'!K70","v":0},{"$f":"'Sch XI(a)(i)'!L70+'Sch XI(a)(ii)'!L70+'Sch XI(a)(iii)'!L70+'Sch XI(a)(iv)'!L70+'Sch XI(a)(v)'!L70+'Sch XI(a)(vi)'!L70+'Sch XI(a)(vii)'!L70+'Sch XI(a)(viii)'!L70","v":0},{"$f":"'Sch XI(a)(i)'!M70+'Sch XI(a)(ii)'!M70+'Sch XI(a)(iii)'!M70+'Sch XI(a)(iv)'!M70+'Sch XI(a)(v)'!M70+'Sch XI(a)(vi)'!M70+'Sch XI(a)(vii)'!M70+'Sch XI(a)(viii)'!M70","v":0},null,null,null,null,null,"brrt_PremiumsEarnedLossesIncurredYearAxis_brrt_XNMinus7Member","brrt_CalendarYearAxis_brrt_XNMinus7Member",null,null,null,null,null,null,null,null,null,null,null,null,null,null,null,null,null,"bma_GrossWP2012","bma_GrossEP2012","bma_NetWP2012","bma_NetEP2012","bma_NetAOEPaid2012","bma_NetAOEIncurred2012",null,"bma_CommissionsAndBrokerage2012","bma_GeneralAndAdministrative2012","bma_PersonnelCosts2012","bma_UnderwritingExpensesOther2012"]
["L41",2013,{"$f":"'Sch XI(a)(i)'!C71+'Sch XI(a)(ii)'!C71+'Sch XI(a)(iii)'!C71+'Sch XI(a)(iv)'!C71+'Sch XI(a)(v)'!C71+'Sch XI(a)(vi)'!C71+'Sch XI(a)(vii)'!C71+'Sch XI(a)(viii)'!C71","v":0},{"$f":"'Sch XI(a)(i)'!D71+'Sch XI(a)(ii)'!D71+'Sch XI(a)(iii)'!D71+'Sch XI(a)(iv)'!D71+'Sch XI(a)(v)'!D71+'Sch XI(a)(vi)'!D71+'Sch XI(a)(vii)'!D71+'Sch XI(a)(viii)'!D71","v":0},{"$f":"'Sch XI(a)(i)'!E71+'Sch XI(a)(ii)'!E71+'Sch XI(a)(iii)'!E71+'Sch XI(a)(iv)'!E71+'Sch XI(a)(v)'!E71+'Sch XI(a)(vi)'!E71+'Sch XI(a)(vii)'!E71+'Sch XI(a)(viii)'!E71","v":0},{"$f":"'Sch XI(a)(i)'!F71+'Sch XI(a)(ii)'!F71+'Sch XI(a)(iii)'!F71+'Sch XI(a)(iv)'!F71+'Sch XI(a)(v)'!F71+'Sch XI(a)(vi)'!F71+'Sch XI(a)(vii)'!F71+'Sch XI(a)(viii)'!F71","v":0},{"$f":"'Sch XI(a)(i)'!G71+'Sch XI(a)(ii)'!G71+'Sch XI(a)(iii)'!G71+'Sch XI(a)(iv)'!G71+'Sch XI(a)(v)'!G71+'Sch XI(a)(vi)'!G71+'Sch XI(a)(vii)'!G71+'Sch XI(a)(viii)'!G71","v":0},{"$f":"'Sch XI(a)(i)'!H71+'Sch XI(a)(ii)'!H71+'Sch XI(a)(iii)'!H71+'Sch XI(a)(iv)'!H71+'Sch XI(a)(v)'!H71+'Sch XI(a)(vi)'!H71+'Sch XI(a)(vii)'!H71+'Sch XI(a)(viii)'!H71","v":0},2013,{"$f":"'Sch XI(a)(i)'!J71+'Sch XI(a)(ii)'!J71+'Sch XI(a)(iii)'!J71+'Sch XI(a)(iv)'!J71+'Sch XI(a)(v)'!J71+'Sch XI(a)(vi)'!J71+'Sch XI(a)(vii)'!J71+'Sch XI(a)(viii)'!J71","v":0},{"$f":"'Sch XI(a)(i)'!K71+'Sch XI(a)(ii)'!K71+'Sch XI(a)(iii)'!K71+'Sch XI(a)(iv)'!K71+'Sch XI(a)(v)'!K71+'Sch XI(a)(vi)'!K71+'Sch XI(a)(vii)'!K71+'Sch XI(a)(viii)'!K71","v":0},{"$f":"'Sch XI(a)(i)'!L71+'Sch XI(a)(ii)'!L71+'Sch XI(a)(iii)'!L71+'Sch XI(a)(iv)'!L71+'Sch XI(a)(v)'!L71+'Sch XI(a)(vi)'!L71+'Sch XI(a)(vii)'!L71+'Sch XI(a)(viii)'!L71","v":0},{"$f":"'Sch XI(a)(i)'!M71+'Sch XI(a)(ii)'!M71+'Sch XI(a)(iii)'!M71+'Sch XI(a)(iv)'!M71+'Sch XI(a)(v)'!M71+'Sch XI(a)(vi)'!M71+'Sch XI(a)(vii)'!M71+'Sch XI(a)(viii)'!M71","v":0},null,null,null,null,null,"brrt_PremiumsEarnedLossesIncurredYearAxis_brrt_XNMinus6Member","brrt_CalendarYearAxis_brrt_XNMinus6Member",null,null,null,null,null,null,null,null,null,null,null,null,null,null,null,null,null,"bma_GrossWP2013","bma_GrossEP2013","bma_NetWP2013","bma_NetEP2013","bma_NetAOEPaid2013","bma_NetAOEIncurred2013",null,"bma_CommissionsAndBrokerage2013","bma_GeneralAndAdministrative2013","bma_PersonnelCosts2013","bma_UnderwritingExpensesOther2013"]
["L42",2014,{"$f":"'Sch XI(a)(i)'!C72+'Sch XI(a)(ii)'!C72+'Sch XI(a)(iii)'!C72+'Sch XI(a)(iv)'!C72+'Sch XI(a)(v)'!C72+'Sch XI(a)(vi)'!C72+'Sch XI(a)(vii)'!C72+'Sch XI(a)(viii)'!C72","v":0},{"$f":"'Sch XI(a)(i)'!D72+'Sch XI(a)(ii)'!D72+'Sch XI(a)(iii)'!D72+'Sch XI(a)(iv)'!D72+'Sch XI(a)(v)'!D72+'Sch XI(a)(vi)'!D72+'Sch XI(a)(vii)'!D72+'Sch XI(a)(viii)'!D72","v":0},{"$f":"'Sch XI(a)(i)'!E72+'Sch XI(a)(ii)'!E72+'Sch XI(a)(iii)'!E72+'Sch XI(a)(iv)'!E72+'Sch XI(a)(v)'!E72+'Sch XI(a)(vi)'!E72+'Sch XI(a)(vii)'!E72+'Sch XI(a)(viii)'!E72","v":0},{"$f":"'Sch XI(a)(i)'!F72+'Sch XI(a)(ii)'!F72+'Sch XI(a)(iii)'!F72+'Sch XI(a)(iv)'!F72+'Sch XI(a)(v)'!F72+'Sch XI(a)(vi)'!F72+'Sch XI(a)(vii)'!F72+'Sch XI(a)(viii)'!F72","v":0},{"$f":"'Sch XI(a)(i)'!G72+'Sch XI(a)(ii)'!G72+'Sch XI(a)(iii)'!G72+'Sch XI(a)(iv)'!G72+'Sch XI(a)(v)'!G72+'Sch XI(a)(vi)'!G72+'Sch XI(a)(vii)'!G72+'Sch XI(a)(viii)'!G72","v":0},{"$f":"'Sch XI(a)(i)'!H72+'Sch XI(a)(ii)'!H72+'Sch XI(a)(iii)'!H72+'Sch XI(a)(iv)'!H72+'Sch XI(a)(v)'!H72+'Sch XI(a)(vi)'!H72+'Sch XI(a)(vii)'!H72+'Sch XI(a)(viii)'!H72","v":0},2014,{"$f":"'Sch XI(a)(i)'!J72+'Sch XI(a)(ii)'!J72+'Sch XI(a)(iii)'!J72+'Sch XI(a)(iv)'!J72+'Sch XI(a)(v)'!J72+'Sch XI(a)(vi)'!J72+'Sch XI(a)(vii)'!J72+'Sch XI(a)(viii)'!J72","v":0},{"$f":"'Sch XI(a)(i)'!K72+'Sch XI(a)(ii)'!K72+'Sch XI(a)(iii)'!K72+'Sch XI(a)(iv)'!K72+'Sch XI(a)(v)'!K72+'Sch XI(a)(vi)'!K72+'Sch XI(a)(vii)'!K72+'Sch XI(a)(viii)'!K72","v":0},{"$f":"'Sch XI(a)(i)'!L72+'Sch XI(a)(ii)'!L72+'Sch XI(a)(iii)'!L72+'Sch XI(a)(iv)'!L72+'Sch XI(a)(v)'!L72+'Sch XI(a)(vi)'!L72+'Sch XI(a)(vii)'!L72+'Sch XI(a)(viii)'!L72","v":0},{"$f":"'Sch XI(a)(i)'!M72+'Sch XI(a)(ii)'!M72+'Sch XI(a)(iii)'!M72+'Sch XI(a)(iv)'!M72+'Sch XI(a)(v)'!M72+'Sch XI(a)(vi)'!M72+'Sch XI(a)(vii)'!M72+'Sch XI(a)(viii)'!M72","v":0},null,null,null,null,null,"brrt_PremiumsEarnedLossesIncurredYearAxis_brrt_XNMinus5Member","brrt_CalendarYearAxis_brrt_XNMinus5Member",null,null,null,null,null,null,null,null,null,null,null,null,null,null,null,null,null,"bma_GrossWP2014","bma_GrossEP2014","bma_NetWP2014","bma_NetEP2014","bma_NetAOEPaid2014","bma_NetAOEIncurred2014",null,"bma_CommissionsAndBrokerage2014","bma_GeneralAndAdministrative2014","bma_PersonnelCosts2014","bma_UnderwritingExpensesOther2014"]
["L43",2015,{"$f":"'Sch XI(a)(i)'!C73+'Sch XI(a)(ii)'!C73+'Sch XI(a)(iii)'!C73+'Sch XI(a)(iv)'!C73+'Sch XI(a)(v)'!C73+'Sch XI(a)(vi)'!C73+'Sch XI(a)(vii)'!C73+'Sch XI(a)(viii)'!C73","v":0},{"$f":"'Sch XI(a)(i)'!D73+'Sch XI(a)(ii)'!D73+'Sch XI(a)(iii)'!D73+'Sch XI(a)(iv)'!D73+'Sch XI(a)(v)'!D73+'Sch XI(a)(vi)'!D73+'Sch XI(a)(vii)'!D73+'Sch XI(a)(viii)'!D73","v":0},{"$f":"'Sch XI(a)(i)'!E73+'Sch XI(a)(ii)'!E73+'Sch XI(a)(iii)'!E73+'Sch XI(a)(iv)'!E73+'Sch XI(a)(v)'!E73+'Sch XI(a)(vi)'!E73+'Sch XI(a)(vii)'!E73+'Sch XI(a)(viii)'!E73","v":0},{"$f":"'Sch XI(a)(i)'!F73+'Sch XI(a)(ii)'!F73+'Sch XI(a)(iii)'!F73+'Sch XI(a)(iv)'!F73+'Sch XI(a)(v)'!F73+'Sch XI(a)(vi)'!F73+'Sch XI(a)(vii)'!F73+'Sch XI(a)(viii)'!F73","v":0},{"$f":"'Sch XI(a)(i)'!G73+'Sch XI(a)(ii)'!G73+'Sch XI(a)(iii)'!G73+'Sch XI(a)(iv)'!G73+'Sch XI(a)(v)'!G73+'Sch XI(a)(vi)'!G73+'Sch XI(a)(vii)'!G73+'Sch XI(a)(viii)'!G73","v":0},{"$f":"'Sch XI(a)(i)'!H73+'Sch XI(a)(ii)'!H73+'Sch XI(a)(iii)'!H73+'Sch XI(a)(iv)'!H73+'Sch XI(a)(v)'!H73+'Sch XI(a)(vi)'!H73+'Sch XI(a)(vii)'!H73+'Sch XI(a)(viii)'!H73","v":0},2015,{"$f":"'Sch XI(a)(i)'!J73+'Sch XI(a)(ii)'!J73+'Sch XI(a)(iii)'!J73+'Sch XI(a)(iv)'!J73+'Sch XI(a)(v)'!J73+'Sch XI(a)(vi)'!J73+'Sch XI(a)(vii)'!J73+'Sch XI(a)(viii)'!J73","v":0},{"$f":"'Sch XI(a)(i)'!K73+'Sch XI(a)(ii)'!K73+'Sch XI(a)(iii)'!K73+'Sch XI(a)(iv)'!K73+'Sch XI(a)(v)'!K73+'Sch XI(a)(vi)'!K73+'Sch XI(a)(vii)'!K73+'Sch XI(a)(viii)'!K73","v":0},{"$f":"'Sch XI(a)(i)'!L73+'Sch XI(a)(ii)'!L73+'Sch XI(a)(iii)'!L73+'Sch XI(a)(iv)'!L73+'Sch XI(a)(v)'!L73+'Sch XI(a)(vi)'!L73+'Sch XI(a)(vii)'!L73+'Sch XI(a)(viii)'!L73","v":0},{"$f":"'Sch XI(a)(i)'!M73+'Sch XI(a)(ii)'!M73+'Sch XI(a)(iii)'!M73+'Sch XI(a)(iv)'!M73+'Sch XI(a)(v)'!M73+'Sch XI(a)(vi)'!M73+'Sch XI(a)(vii)'!M73+'Sch XI(a)(viii)'!M73","v":0},null,null,null,null,null,"brrt_PremiumsEarnedLossesIncurredYearAxis_brrt_XNMinus4Member","brrt_CalendarYearAxis_brrt_XNMinus4Member",null,null,null,null,null,null,null,null,null,null,null,null,null,null,null,null,null,"bma_GrossWP2015","bma_GrossEP2015","bma_NetWP2015","bma_NetEP2015","bma_NetAOEPaid2015","bma_NetAOEIncurred2015",null,"bma_CommissionsAndBrokerage2015","bma_GeneralAndAdministrative2015","bma_PersonnelCosts2015","bma_UnderwritingExpensesOther2015"]
["L44",2016,{"$f":"'Sch XI(a)(i)'!C74+'Sch XI(a)(ii)'!C74+'Sch XI(a)(iii)'!C74+'Sch XI(a)(iv)'!C74+'Sch XI(a)(v)'!C74+'Sch XI(a)(vi)'!C74+'Sch XI(a)(vii)'!C74+'Sch XI(a)(viii)'!C74","v":0},{"$f":"'Sch XI(a)(i)'!D74+'Sch XI(a)(ii)'!D74+'Sch XI(a)(iii)'!D74+'Sch XI(a)(iv)'!D74+'Sch XI(a)(v)'!D74+'Sch XI(a)(vi)'!D74+'Sch XI(a)(vii)'!D74+'Sch XI(a)(viii)'!D74","v":0},{"$f":"'Sch XI(a)(i)'!E74+'Sch XI(a)(ii)'!E74+'Sch XI(a)(iii)'!E74+'Sch XI(a)(iv)'!E74+'Sch XI(a)(v)'!E74+'Sch XI(a)(vi)'!E74+'Sch XI(a)(vii)'!E74+'Sch XI(a)(viii)'!E74","v":0},{"$f":"'Sch XI(a)(i)'!F74+'Sch XI(a)(ii)'!F74+'Sch XI(a)(iii)'!F74+'Sch XI(a)(iv)'!F74+'Sch XI(a)(v)'!F74+'Sch XI(a)(vi)'!F74+'Sch XI(a)(vii)'!F74+'Sch XI(a)(viii)'!F74","v":0},{"$f":"'Sch XI(a)(i)'!G74+'Sch XI(a)(ii)'!G74+'Sch XI(a)(iii)'!G74+'Sch XI(a)(iv)'!G74+'Sch XI(a)(v)'!G74+'Sch XI(a)(vi)'!G74+'Sch XI(a)(vii)'!G74+'Sch XI(a)(viii)'!G74","v":0},{"$f":"'Sch XI(a)(i)'!H74+'Sch XI(a)(ii)'!H74+'Sch XI(a)(iii)'!H74+'Sch XI(a)(iv)'!H74+'Sch XI(a)(v)'!H74+'Sch XI(a)(vi)'!H74+'Sch XI(a)(vii)'!H74+'Sch XI(a)(viii)'!H74","v":0},2016,{"$f":"'Sch XI(a)(i)'!J74+'Sch XI(a)(ii)'!J74+'Sch XI(a)(iii)'!J74+'Sch XI(a)(iv)'!J74+'Sch XI(a)(v)'!J74+'Sch XI(a)(vi)'!J74+'Sch XI(a)(vii)'!J74+'Sch XI(a)(viii)'!J74","v":0},{"$f":"'Sch XI(a)(i)'!K74+'Sch XI(a)(ii)'!K74+'Sch XI(a)(iii)'!K74+'Sch XI(a)(iv)'!K74+'Sch XI(a)(v)'!K74+'Sch XI(a)(vi)'!K74+'Sch XI(a)(vii)'!K74+'Sch XI(a)(viii)'!K74","v":0},{"$f":"'Sch XI(a)(i)'!L74+'Sch XI(a)(ii)'!L74+'Sch XI(a)(iii)'!L74+'Sch XI(a)(iv)'!L74+'Sch XI(a)(v)'!L74+'Sch XI(a)(vi)'!L74+'Sch XI(a)(vii)'!L74+'Sch XI(a)(viii)'!L74","v":0},{"$f":"'Sch XI(a)(i)'!M74+'Sch XI(a)(ii)'!M74+'Sch XI(a)(iii)'!M74+'Sch XI(a)(iv)'!M74+'Sch XI(a)(v)'!M74+'Sch XI(a)(vi)'!M74+'Sch XI(a)(vii)'!M74+'Sch XI(a)(viii)'!M74","v":0},null,null,null,null,null,"brrt_PremiumsEarnedLossesIncurredYearAxis_brrt_XNMinus3Member","brrt_CalendarYearAxis_brrt_XNMinus3Member",null,null,null,null,null,null,null,null,null,null,null,null,null,null,null,null,null,"bma_GrossWP2016","bma_GrossEP2016","bma_NetWP2016","bma_NetEP2016","bma_NetAOEPaid2016","bma_NetAOEIncurred2016",null,"bma_CommissionsAndBrokerage2016","bma_GeneralAndAdministrative2016","bma_PersonnelCosts2016","bma_UnderwritingExpensesOther2016"]
["L45",2017,{"$f":"'Sch XI(a)(i)'!C75+'Sch XI(a)(ii)'!C75+'Sch XI(a)(iii)'!C75+'Sch XI(a)(iv)'!C75+'Sch XI(a)(v)'!C75+'Sch XI(a)(vi)'!C75+'Sch XI(a)(vii)'!C75+'Sch XI(a)(viii)'!C75","v":0},{"$f":"'Sch XI(a)(i)'!D75+'Sch XI(a)(ii)'!D75+'Sch XI(a)(iii)'!D75+'Sch XI(a)(iv)'!D75+'Sch XI(a)(v)'!D75+'Sch XI(a)(vi)'!D75+'Sch XI(a)(vii)'!D75+'Sch XI(a)(viii)'!D75","v":0},{"$f":"'Sch XI(a)(i)'!E75+'Sch XI(a)(ii)'!E75+'Sch XI(a)(iii)'!E75+'Sch XI(a)(iv)'!E75+'Sch XI(a)(v)'!E75+'Sch XI(a)(vi)'!E75+'Sch XI(a)(vii)'!E75+'Sch XI(a)(viii)'!E75","v":0},{"$f":"'Sch XI(a)(i)'!F75+'Sch XI(a)(ii)'!F75+'Sch XI(a)(iii)'!F75+'Sch XI(a)(iv)'!F75+'Sch XI(a)(v)'!F75+'Sch XI(a)(vi)'!F75+'Sch XI(a)(vii)'!F75+'Sch XI(a)(viii)'!F75","v":0},{"$f":"'Sch XI(a)(i)'!G75+'Sch XI(a)(ii)'!G75+'Sch XI(a)(iii)'!G75+'Sch XI(a)(iv)'!G75+'Sch XI(a)(v)'!G75+'Sch XI(a)(vi)'!G75+'Sch XI(a)(vii)'!G75+'Sch XI(a)(viii)'!G75","v":0},{"$f":"'Sch XI(a)(i)'!H75+'Sch XI(a)(ii)'!H75+'Sch XI(a)(iii)'!H75+'Sch XI(a)(iv)'!H75+'Sch XI(a)(v)'!H75+'Sch XI(a)(vi)'!H75+'Sch XI(a)(vii)'!H75+'Sch XI(a)(viii)'!H75","v":0},2017,{"$f":"'Sch XI(a)(i)'!J75+'Sch XI(a)(ii)'!J75+'Sch XI(a)(iii)'!J75+'Sch XI(a)(iv)'!J75+'Sch XI(a)(v)'!J75+'Sch XI(a)(vi)'!J75+'Sch XI(a)(vii)'!J75+'Sch XI(a)(viii)'!J75","v":0},{"$f":"'Sch XI(a)(i)'!K75+'Sch XI(a)(ii)'!K75+'Sch XI(a)(iii)'!K75+'Sch XI(a)(iv)'!K75+'Sch XI(a)(v)'!K75+'Sch XI(a)(vi)'!K75+'Sch XI(a)(vii)'!K75+'Sch XI(a)(viii)'!K75","v":0},{"$f":"'Sch XI(a)(i)'!L75+'Sch XI(a)(ii)'!L75+'Sch XI(a)(iii)'!L75+'Sch XI(a)(iv)'!L75+'Sch XI(a)(v)'!L75+'Sch XI(a)(vi)'!L75+'Sch XI(a)(vii)'!L75+'Sch XI(a)(viii)'!L75","v":0},{"$f":"'Sch XI(a)(i)'!M75+'Sch XI(a)(ii)'!M75+'Sch XI(a)(iii)'!M75+'Sch XI(a)(iv)'!M75+'Sch XI(a)(v)'!M75+'Sch XI(a)(vi)'!M75+'Sch XI(a)(vii)'!M75+'Sch XI(a)(viii)'!M75","v":0},null,null,null,null,null,"brrt_PremiumsEarnedLossesIncurredYearAxis_brrt_XNMinus2Member","brrt_CalendarYearAxis_brrt_XNMinus2Member",null,null,null,null,null,null,null,null,null,null,null,null,null,null,null,null,null,"bma_GrossWP2017","bma_GrossEP2017","bma_NetWP2017","bma_NetEP2017","bma_NetAOEPaid2017","bma_NetAOEIncurred2017",null,"bma_CommissionsAndBrokerage2017","bma_GeneralAndAdministrative2017","bma_PersonnelCosts2017","bma_UnderwritingExpensesOther2017"]
["L46",2018,{"$f":"'Sch XI(a)(i)'!C76+'Sch XI(a)(ii)'!C76+'Sch XI(a)(iii)'!C76+'Sch XI(a)(iv)'!C76+'Sch XI(a)(v)'!C76+'Sch XI(a)(vi)'!C76+'Sch XI(a)(vii)'!C76+'Sch XI(a)(viii)'!C76","v":0},{"$f":"'Sch XI(a)(i)'!D76+'Sch XI(a)(ii)'!D76+'Sch XI(a)(iii)'!D76+'Sch XI(a)(iv)'!D76+'Sch XI(a)(v)'!D76+'Sch XI(a)(vi)'!D76+'Sch XI(a)(vii)'!D76+'Sch XI(a)(viii)'!D76","v":0},{"$f":"'Sch XI(a)(i)'!E76+'Sch XI(a)(ii)'!E76+'Sch XI(a)(iii)'!E76+'Sch XI(a)(iv)'!E76+'Sch XI(a)(v)'!E76+'Sch XI(a)(vi)'!E76+'Sch XI(a)(vii)'!E76+'Sch XI(a)(viii)'!E76","v":0},{"$f":"'Sch XI(a)(i)'!F76+'Sch XI(a)(ii)'!F76+'Sch XI(a)(iii)'!F76+'Sch XI(a)(iv)'!F76+'Sch XI(a)(v)'!F76+'Sch XI(a)(vi)'!F76+'Sch XI(a)(vii)'!F76+'Sch XI(a)(viii)'!F76","v":0},{"$f":"'Sch XI(a)(i)'!G76+'Sch XI(a)(ii)'!G76+'Sch XI(a)(iii)'!G76+'Sch XI(a)(iv)'!G76+'Sch XI(a)(v)'!G76+'Sch XI(a)(vi)'!G76+'Sch XI(a)(vii)'!G76+'Sch XI(a)(viii)'!G76","v":0},{"$f":"'Sch XI(a)(i)'!H76+'Sch XI(a)(ii)'!H76+'Sch XI(a)(iii)'!H76+'Sch XI(a)(iv)'!H76+'Sch XI(a)(v)'!H76+'Sch XI(a)(vi)'!H76+'Sch XI(a)(vii)'!H76+'Sch XI(a)(viii)'!H76","v":0},2018,{"$f":"'Sch XI(a)(i)'!J76+'Sch XI(a)(ii)'!J76+'Sch XI(a)(iii)'!J76+'Sch XI(a)(iv)'!J76+'Sch XI(a)(v)'!J76+'Sch XI(a)(vi)'!J76+'Sch XI(a)(vii)'!J76+'Sch XI(a)(viii)'!J76","v":0},{"$f":"'Sch XI(a)(i)'!K76+'Sch XI(a)(ii)'!K76+'Sch XI(a)(iii)'!K76+'Sch XI(a)(iv)'!K76+'Sch XI(a)(v)'!K76+'Sch XI(a)(vi)'!K76+'Sch XI(a)(vii)'!K76+'Sch XI(a)(viii)'!K76","v":0},{"$f":"'Sch XI(a)(i)'!L76+'Sch XI(a)(ii)'!L76+'Sch XI(a)(iii)'!L76+'Sch XI(a)(iv)'!L76+'Sch XI(a)(v)'!L76+'Sch XI(a)(vi)'!L76+'Sch XI(a)(vii)'!L76+'Sch XI(a)(viii)'!L76","v":0},{"$f":"'Sch XI(a)(i)'!M76+'Sch XI(a)(ii)'!M76+'Sch XI(a)(iii)'!M76+'Sch XI(a)(iv)'!M76+'Sch XI(a)(v)'!M76+'Sch XI(a)(vi)'!M76+'Sch XI(a)(vii)'!M76+'Sch XI(a)(viii)'!M76","v":0},null,null,null,null,null,"brrt_PremiumsEarnedLossesIncurredYearAxis_brrt_XNMinus1Member","brrt_CalendarYearAxis_brrt_XNMinus1Member",null,null,null,null,null,null,null,null,null,null,null,null,null,null,null,null,null,"bma_GrossWP2018","bma_GrossEP2018","bma_NetWP2018","bma_NetEP2018","bma_NetAOEPaid2018","bma_NetAOEIncurred2018",null,"bma_CommissionsAndBrokerage2018","bma_GeneralAndAdministrative2018","bma_PersonnelCosts2018","bma_UnderwritingExpensesOther2018"]
["L47",{"$f":"B39","v":2019},{"$f":"'Sch XI(a)(i)'!C77+'Sch XI(a)(ii)'!C77+'Sch XI(a)(iii)'!C77+'Sch XI(a)(iv)'!C77+'Sch XI(a)(v)'!C77+'Sch XI(a)(vi)'!C77+'Sch XI(a)(vii)'!C77+'Sch XI(a)(viii)'!C77","v":0},{"$f":"'Sch XI(a)(i)'!D77+'Sch XI(a)(ii)'!D77+'Sch XI(a)(iii)'!D77+'Sch XI(a)(iv)'!D77+'Sch XI(a)(v)'!D77+'Sch XI(a)(vi)'!D77+'Sch XI(a)(vii)'!D77+'Sch XI(a)(viii)'!D77","v":0},{"$f":"'Sch XI(a)(i)'!E77+'Sch XI(a)(ii)'!E77+'Sch XI(a)(iii)'!E77+'Sch XI(a)(iv)'!E77+'Sch XI(a)(v)'!E77+'Sch XI(a)(vi)'!E77+'Sch XI(a)(vii)'!E77+'Sch XI(a)(viii)'!E77","v":0},{"$f":"'Sch XI(a)(i)'!F77+'Sch XI(a)(ii)'!F77+'Sch XI(a)(iii)'!F77+'Sch XI(a)(iv)'!F77+'Sch XI(a)(v)'!F77+'Sch XI(a)(vi)'!F77+'Sch XI(a)(vii)'!F77+'Sch XI(a)(viii)'!F77","v":0},{"$f":"'Sch XI(a)(i)'!G77+'Sch XI(a)(ii)'!G77+'Sch XI(a)(iii)'!G77+'Sch XI(a)(iv)'!G77+'Sch XI(a)(v)'!G77+'Sch XI(a)(vi)'!G77+'Sch XI(a)(vii)'!G77+'Sch XI(a)(viii)'!G77","v":0},{"$f":"'Sch XI(a)(i)'!H77+'Sch XI(a)(ii)'!H77+'Sch XI(a)(iii)'!H77+'Sch XI(a)(iv)'!H77+'Sch XI(a)(v)'!H77+'Sch XI(a)(vi)'!H77+'Sch XI(a)(vii)'!H77+'Sch XI(a)(viii)'!H77","v":0},2019,{"$f":"'Sch XI(a)(i)'!J77+'Sch XI(a)(ii)'!J77+'Sch XI(a)(iii)'!J77+'Sch XI(a)(iv)'!J77+'Sch XI(a)(v)'!J77+'Sch XI(a)(vi)'!J77+'Sch XI(a)(vii)'!J77+'Sch XI(a)(viii)'!J77","v":0},{"$f":"'Sch XI(a)(i)'!K77+'Sch XI(a)(ii)'!K77+'Sch XI(a)(iii)'!K77+'Sch XI(a)(iv)'!K77+'Sch XI(a)(v)'!K77+'Sch XI(a)(vi)'!K77+'Sch XI(a)(vii)'!K77+'Sch XI(a)(viii)'!K77","v":0},{"$f":"'Sch XI(a)(i)'!L77+'Sch XI(a)(ii)'!L77+'Sch XI(a)(iii)'!L77+'Sch XI(a)(iv)'!L77+'Sch XI(a)(v)'!L77+'Sch XI(a)(vi)'!L77+'Sch XI(a)(vii)'!L77+'Sch XI(a)(viii)'!L77","v":0},{"$f":"'Sch XI(a)(i)'!M77+'Sch XI(a)(ii)'!M77+'Sch XI(a)(iii)'!M77+'Sch XI(a)(iv)'!M77+'Sch XI(a)(v)'!M77+'Sch XI(a)(vi)'!M77+'Sch XI(a)(vii)'!M77+'Sch XI(a)(viii)'!M77","v":0},null,null,null,null,null,"brrt_PremiumsEarnedLossesIncurredYearAxis_brrt_XNMember","brrt_CalendarYearAxis_brrt_XNMember",null,null,null,null,null,null,null,null,null,null,null,null,null,null,null,null,null,"bma_GrossWP2019","bma_GrossEP2019","bma_NetWP2019","bma_NetEP2019","bma_NetAOEPaid2019","bma_NetAOEIncurred2019",null,"bma_CommissionsAndBrokerage2019","bma_GeneralAndAdministrative2019","bma_PersonnelCosts2019","bma_UnderwritingExpensesOther2019"]
["L48","Totals","XXX",{"$f":"C78","v":"XXX"},"XXX",{"$f":"E78","v":"XXX"},{"$f":"SUM(G67:G77)","v":0},{"$f":"SUM(H67:H77)","v":0},"Totals",{"$f":"SUM(J67:J77)","v":0},{"$f":"SUM(K67:K77)","v":0},{"$f":"SUM(L67:L77)","v":0},{"$f":"SUM(M67:M77)","v":0},null,null,null,null,null,null,null,null,null,null,null,null,null,null,null,null,null,null,null,null,null,null,null,null,null,null,null,null,"bma_NetAOEPaidTotals","bma_NetAOEIncurredTotals",null,"bma_CommissionsAndBrokerageTotals","bma_GeneralAndAdministrativeTotals","bma_PersonnelCostsTotals","bma_UnderwritingExpensesOtherTotals"]
[]
[]
[]
[]
[]
[]
[]
[null,null,null,null,null,null,null,null,null,null,null,null,null,null,null,null,"brrt_OtherUnderwritingExpenses","brrt_LossTriangleCombinedComments"]
[]
[null,null,"brrt_IncurredEstimatedUltimateNetLossesAndAllocatedLossAdjustmentExpenses","brrt_IncurredEstimatedUltimateNetLossesAndAllocatedLossAdjustmentExpenses","brrt_IncurredEstimatedUltimateNetLossesAndAllocatedLossAdjustmentExpenses","brrt_IncurredEstimatedUltimateNetLossesAndAllocatedLossAdjustmentExpenses","brrt_IncurredEstimatedUltimateNetLossesAndAllocatedLossAdjustmentExpenses","brrt_IncurredEstimatedUltimateNetLossesAndAllocatedLossAdjustmentExpenses","brrt_IncurredEstimatedUltimateNetLossesAndAllocatedLossAdjustmentExpenses","brrt_IncurredEstimatedUltimateNetLossesAndAllocatedLossAdjustmentExpenses","brrt_IncurredEstimatedUltimateNetLossesAndAllocatedLossAdjustmentExpenses","brrt_IncurredEstimatedUltimateNetLossesAndAllocatedLossAdjustmentExpenses","brrt_UltimateCatastropheLosses"]
[null,null,"brrt_CumulativePaidNetLossesAndAllocatedLossAdjustmentExpenses","brrt_CumulativePaidNetLossesAndAllocatedLossAdjustmentExpenses","brrt_CumulativePaidNetLossesAndAllocatedLossAdjustmentExpenses","brrt_CumulativePaidNetLossesAndAllocatedLossAdjustmentExpenses","brrt_CumulativePaidNetLossesAndAllocatedLossAdjustmentExpenses","brrt_CumulativePaidNetLossesAndAllocatedLossAdjustmentExpenses","brrt_CumulativePaidNetLossesAndAllocatedLossAdjustmentExpenses","brrt_CumulativePaidNetLossesAndAllocatedLossAdjustmentExpenses","brrt_CumulativePaidNetLossesAndAllocatedLossAdjustmentExpenses","brrt_CumulativePaidNetLossesAndAllocatedLossAdjustmentExpenses","brrt_PaidCatastropheLosses"]
[null,null,"brrt_BulkAndIBNRReservesOnNetLossesAndAllocatedLossAdjustmentExpenses","brrt_BulkAndIBNRReservesOnNetLossesAndAllocatedLossAdjustmentExpenses","brrt_BulkAndIBNRReservesOnNetLossesAndAllocatedLossAdjustmentExpenses","brrt_BulkAndIBNRReservesOnNetLossesAndAllocatedLossAdjustmentExpenses","brrt_BulkAndIBNRReservesOnNetLossesAndAllocatedLossAdjustmentExpenses","brrt_BulkAndIBNRReservesOnNetLossesAndAllocatedLossAdjustmentExpenses","brrt_BulkAndIBNRReservesOnNetLossesAndAllocatedLossAdjustmentExpenses","brrt_BulkAndIBNRReservesOnNetLossesAndAllocatedLossAdjustmentExpenses","brrt_BulkAndIBNRReservesOnNetLossesAndAllocatedLossAdjustmentExpenses","brrt_BulkAndIBNRReservesOnNetLossesAndAllocatedLossAdjustmentExpenses","brrt_LossesBulkAndBNRReserves"]
[null,null,"brrt_GrossPremiumsWritten","brrt_GrossPremiumsEarned","brrt_NetPremiumsWritten","brrt_NetPremiumsEarned","brrt_UnallocatedLossAdjustmentExpensesPaid","brrt_UnallocatedLossAdjustmentExpensesIncurred",null,"brrt_CommissionsAndBrokerage","brrt_GeneralAndAdministrative","brrt_PersonnelCosts","brrt_OtherUnderwritingExpenses"]
[null,null,"brrt_ReportingYearAxis_brrt_YNMinus9Member","brrt_ReportingYearAxis_brrt_YNMinus8Member","brrt_ReportingYearAxis_brrt_YNMinus7Member","brrt_ReportingYearAxis_brrt_YNMinus6Member","brrt_ReportingYearAxis_brrt_YNMinus5Member","brrt_ReportingYearAxis_brrt_YNMinus4Member","brrt_ReportingYearAxis_brrt_YNMinus3Member","brrt_ReportingYearAxis_brrt_YNMinus2Member","brrt_ReportingYearAxis_brrt_YNMinus1Member","brrt_ReportingYearAxis_brrt_YNMember","brrt_ReportingYearAxis_brrt_YNMember"]
[]
[]
[]
[null,{"$f":"IF(B3=\"\",\"\",TEXT(DATE(YEAR(B3+1)-1,MONTH(B3+1),DAY(B3+1)),\"mm/dd/yyyy\"))","v":"01/01/2019"}]
[null,{"$f":"IF(B3=\"\",\"\",TEXT(B3,\"mm/dd/yyyy\"))","v":"12/31/2019"}]
[]
[]
[]
[]
[null,null,{"$f":"XBRLMap(C11,C$88&\".\"&$S$4&\".\"&$S11&\".\"&C$92&\".\"&$S$7,$B$96,$B$97,CONFIGURATION!$B$10,\"BMA\",CONFIGURATION!$B$1,\"bscr\",1000)","v":"Mapped"},{"$f":"XBRLMap(D11,D$88&\".\"&$S$4&\".\"&$S11&\".\"&D$92&\".\"&$S$7,$B$96,$B$97,CONFIGURATION!$B$10,\"BMA\",CONFIGURATION!$B$1,\"bscr\",1000)","v":"Mapped"},{"$f":"XBRLMap(E11,E$88&\".\"&$S$4&\".\"&$S11&\".\"&E$92&\".\"&$S$7,$B$96,$B$97,CONFIGURATION!$B$10,\"BMA\",CONFIGURATION!$B$1,\"bscr\",1000)","v":"Mapped"},{"$f":"XBRLMap(F11,F$88&\".\"&$S$4&\".\"&$S11&\".\"&F$92&\".\"&$S$7,$B$96,$B$97,CONFIGURATION!$B$10,\"BMA\",CONFIGURATION!$B$1,\"bscr\",1000)","v":"Mapped"},{"$f":"XBRLMap(G11,G$88&\".\"&$S$4&\".\"&$S11&\".\"&G$92&\".\"&$S$7,$B$96,$B$97,CONFIGURATION!$B$10,\"BMA\",CONFIGURATION!$B$1,\"bscr\",1000)","v":"Mapped"},{"$f":"XBRLMap(H11,H$88&\".\"&$S$4&\".\"&$S11&\".\"&H$92&\".\"&$S$7,$B$96,$B$97,CONFIGURATION!$B$10,\"BMA\",CONFIGURATION!$B$1,\"bscr\",1000)","v":"Mapped"},{"$f":"XBRLMap(I11,I$88&\".\"&$S$4&\".\"&$S11&\".\"&I$92&\".\"&$S$7,$B$96,$B$97,CONFIGURATION!$B$10,\"BMA\",CONFIGURATION!$B$1,\"bscr\",1000)","v":"Mapped"},{"$f":"XBRLMap(J11,J$88&\".\"&$S$4&\".\"&$S11&\".\"&J$92&\".\"&$S$7,$B$96,$B$97,CONFIGURATION!$B$10,\"BMA\",CONFIGURATION!$B$1,\"bscr\",1000)","v":"Mapped"},{"$f":"XBRLMap(K11,K$88&\".\"&$S$4&\".\"&$S11&\".\"&K$92&\".\"&$S$7,$B$96,$B$97,CONFIGURATION!$B$10,\"BMA\",CONFIGURATION!$B$1,\"bscr\",1000)","v":"Mapped"},{"$f":"XBRLMap(L11,L$88&\".\"&$S$4&\".\"&$S11&\".\"&L$92&\".\"&$S$7,$B$96,$B$97,CONFIGURATION!$B$10,\"BMA\",CONFIGURATION!$B$1,\"bscr\",1000)","v":"Mapped"},{"$f":"XBRLMap(M11,M$88&\".\"&$S$4&\".\"&$S11&\".\"&M$92&\".\"&$S$7,$B$96,$B$97,CONFIGURATION!$B$10,\"BMA\",CONFIGURATION!$B$1,\"bscr\",1000)","v":"Mapped"}]
[null,null,{"$f":"XBRLMap(C12,C$88&\".\"&$S$4&\".\"&$S12&\".\"&C$92&\".\"&$S$7,$B$96,$B$97,CONFIGURATION!$B$10,\"BMA\",CONFIGURATION!$B$1,\"bscr\",1000)","v":"Mapped"},{"$f":"XBRLMap(D12,D$88&\".\"&$S$4&\".\"&$S12&\".\"&D$92&\".\"&$S$7,$B$96,$B$97,CONFIGURATION!$B$10,\"BMA\",CONFIGURATION!$B$1,\"bscr\",1000)","v":"Mapped"},{"$f":"XBRLMap(E12,E$88&\".\"&$S$4&\".\"&$S12&\".\"&E$92&\".\"&$S$7,$B$96,$B$97,CONFIGURATION!$B$10,\"BMA\",CONFIGURATION!$B$1,\"bscr\",1000)","v":"Mapped"},{"$f":"XBRLMap(F12,F$88&\".\"&$S$4&\".\"&$S12&\".\"&F$92&\".\"&$S$7,$B$96,$B$97,CONFIGURATION!$B$10,\"BMA\",CONFIGURATION!$B$1,\"bscr\",1000)","v":"Mapped"},{"$f":"XBRLMap(G12,G$88&\".\"&$S$4&\".\"&$S12&\".\"&G$92&\".\"&$S$7,$B$96,$B$97,CONFIGURATION!$B$10,\"BMA\",CONFIGURATION!$B$1,\"bscr\",1000)","v":"Mapped"},{"$f":"XBRLMap(H12,H$88&\".\"&$S$4&\".\"&$S12&\".\"&H$92&\".\"&$S$7,$B$96,$B$97,CONFIGURATION!$B$10,\"BMA\",CONFIGURATION!$B$1,\"bscr\",1000)","v":"Mapped"},{"$f":"XBRLMap(I12,I$88&\".\"&$S$4&\".\"&$S12&\".\"&I$92&\".\"&$S$7,$B$96,$B$97,CONFIGURATION!$B$10,\"BMA\",CONFIGURATION!$B$1,\"bscr\",1000)","v":"Mapped"},{"$f":"XBRLMap(J12,J$88&\".\"&$S$4&\".\"&$S12&\".\"&J$92&\".\"&$S$7,$B$96,$B$97,CONFIGURATION!$B$10,\"BMA\",CONFIGURATION!$B$1,\"bscr\",1000)","v":"Mapped"},{"$f":"XBRLMap(K12,K$88&\".\"&$S$4&\".\"&$S12&\".\"&K$92&\".\"&$S$7,$B$96,$B$97,CONFIGURATION!$B$10,\"BMA\",CONFIGURATION!$B$1,\"bscr\",1000)","v":"Mapped"},{"$f":"XBRLMap(L12,L$88&\".\"&$S$4&\".\"&$S12&\".\"&L$92&\".\"&$S$7,$B$96,$B$97,CONFIGURATION!$B$10,\"BMA\",CONFIGURATION!$B$1,\"bscr\",1000)","v":"Mapped"},{"$f":"XBRLMap(M12,M$88&\".\"&$S$4&\".\"&$S12&\".\"&M$92&\".\"&$S$7,$B$96,$B$97,CONFIGURATION!$B$10,\"BMA\",CONFIGURATION!$B$1,\"bscr\",1000)","v":"Mapped"}]
[null,null,null,{"$f":"XBRLMap(D13,D$88&\".\"&$S$4&\".\"&$S13&\".\"&D$92&\".\"&$S$7,$B$96,$B$97,CONFIGURATION!$B$10,\"BMA\",CONFIGURATION!$B$1,\"bscr\",1000)","v":"Mapped"},{"$f":"XBRLMap(E13,E$88&\".\"&$S$4&\".\"&$S13&\".\"&E$92&\".\"&$S$7,$B$96,$B$97,CONFIGURATION!$B$10,\"BMA\",CONFIGURATION!$B$1,\"bscr\",1000)","v":"Mapped"},{"$f":"XBRLMap(F13,F$88&\".\"&$S$4&\".\"&$S13&\".\"&F$92&\".\"&$S$7,$B$96,$B$97,CONFIGURATION!$B$10,\"BMA\",CONFIGURATION!$B$1,\"bscr\",1000)","v":"Mapped"},{"$f":"XBRLMap(G13,G$88&\".\"&$S$4&\".\"&$S13&\".\"&G$92&\".\"&$S$7,$B$96,$B$97,CONFIGURATION!$B$10,\"BMA\",CONFIGURATION!$B$1,\"bscr\",1000)","v":"Mapped"},{"$f":"XBRLMap(H13,H$88&\".\"&$S$4&\".\"&$S13&\".\"&H$92&\".\"&$S$7,$B$96,$B$97,CONFIGURATION!$B$10,\"BMA\",CONFIGURATION!$B$1,\"bscr\",1000)","v":"Mapped"},{"$f":"XBRLMap(I13,I$88&\".\"&$S$4&\".\"&$S13&\".\"&I$92&\".\"&$S$7,$B$96,$B$97,CONFIGURATION!$B$10,\"BMA\",CONFIGURATION!$B$1,\"bscr\",1000)","v":"Mapped"},{"$f":"XBRLMap(J13,J$88&\".\"&$S$4&\".\"&$S13&\".\"&J$92&\".\"&$S$7,$B$96,$B$97,CONFIGURATION!$B$10,\"BMA\",CONFIGURATION!$B$1,\"bscr\",1000)","v":"Mapped"},{"$f":"XBRLMap(K13,K$88&\".\"&$S$4&\".\"&$S13&\".\"&K$92&\".\"&$S$7,$B$96,$B$97,CONFIGURATION!$B$10,\"BMA\",CONFIGURATION!$B$1,\"bscr\",1000)","v":"Mapped"},{"$f":"XBRLMap(L13,L$88&\".\"&$S$4&\".\"&$S13&\".\"&L$92&\".\"&$S$7,$B$96,$B$97,CONFIGURATION!$B$10,\"BMA\",CONFIGURATION!$B$1,\"bscr\",1000)","v":"Mapped"},{"$f":"XBRLMap(M13,M$88&\".\"&$S$4&\".\"&$S13&\".\"&M$92&\".\"&$S$7,$B$96,$B$97,CONFIGURATION!$B$10,\"BMA\",CONFIGURATION!$B$1,\"bscr\",1000)","v":"Mapped"}]
[null,null,null,null,{"$f":"XBRLMap(E14,E$88&\".\"&$S$4&\".\"&$S14&\".\"&E$92&\".\"&$S$7,$B$96,$B$97,CONFIGURATION!$B$10,\"BMA\",CONFIGURATION!$B$1,\"bscr\",1000)","v":"Mapped"},{"$f":"XBRLMap(F14,F$88&\".\"&$S$4&\".\"&$S14&\".\"&F$92&\".\"&$S$7,$B$96,$B$97,CONFIGURATION!$B$10,\"BMA\",CONFIGURATION!$B$1,\"bscr\",1000)","v":"Mapped"},{"$f":"XBRLMap(G14,G$88&\".\"&$S$4&\".\"&$S14&\".\"&G$92&\".\"&$S$7,$B$96,$B$97,CONFIGURATION!$B$10,\"BMA\",CONFIGURATION!$B$1,\"bscr\",1000)","v":"Mapped"},{"$f":"XBRLMap(H14,H$88&\".\"&$S$4&\".\"&$S14&\".\"&H$92&\".\"&$S$7,$B$96,$B$97,CONFIGURATION!$B$10,\"BMA\",CONFIGURATION!$B$1,\"bscr\",1000)","v":"Mapped"},{"$f":"XBRLMap(I14,I$88&\".\"&$S$4&\".\"&$S14&\".\"&I$92&\".\"&$S$7,$B$96,$B$97,CONFIGURATION!$B$10,\"BMA\",CONFIGURATION!$B$1,\"bscr\",1000)","v":"Mapped"},{"$f":"XBRLMap(J14,J$88&\".\"&$S$4&\".\"&$S14&\".\"&J$92&\".\"&$S$7,$B$96,$B$97,CONFIGURATION!$B$10,\"BMA\",CONFIGURATION!$B$1,\"bscr\",1000)","v":"Mapped"},{"$f":"XBRLMap(K14,K$88&\".\"&$S$4&\".\"&$S14&\".\"&K$92&\".\"&$S$7,$B$96,$B$97,CONFIGURATION!$B$10,\"BMA\",CONFIGURATION!$B$1,\"bscr\",1000)","v":"Mapped"},{"$f":"XBRLMap(L14,L$88&\".\"&$S$4&\".\"&$S14&\".\"&L$92&\".\"&$S$7,$B$96,$B$97,CONFIGURATION!$B$10,\"BMA\",CONFIGURATION!$B$1,\"bscr\",1000)","v":"Mapped"},{"$f":"XBRLMap(M14,M$88&\".\"&$S$4&\".\"&$S14&\".\"&M$92&\".\"&$S$7,$B$96,$B$97,CONFIGURATION!$B$10,\"BMA\",CONFIGURATION!$B$1,\"bscr\",1000)","v":"Mapped"}]
[null,null,null,null,null,{"$f":"XBRLMap(F15,F$88&\".\"&$S$4&\".\"&$S15&\".\"&F$92&\".\"&$S$7,$B$96,$B$97,CONFIGURATION!$B$10,\"BMA\",CONFIGURATION!$B$1,\"bscr\",1000)","v":"Mapped"},{"$f":"XBRLMap(G15,G$88&\".\"&$S$4&\".\"&$S15&\".\"&G$92&\".\"&$S$7,$B$96,$B$97,CONFIGURATION!$B$10,\"BMA\",CONFIGURATION!$B$1,\"bscr\",1000)","v":"Mapped"},{"$f":"XBRLMap(H15,H$88&\".\"&$S$4&\".\"&$S15&\".\"&H$92&\".\"&$S$7,$B$96,$B$97,CONFIGURATION!$B$10,\"BMA\",CONFIGURATION!$B$1,\"bscr\",1000)","v":"Mapped"},{"$f":"XBRLMap(I15,I$88&\".\"&$S$4&\".\"&$S15&\".\"&I$92&\".\"&$S$7,$B$96,$B$97,CONFIGURATION!$B$10,\"BMA\",CONFIGURATION!$B$1,\"bscr\",1000)","v":"Mapped"},{"$f":"XBRLMap(J15,J$88&\".\"&$S$4&\".\"&$S15&\".\"&J$92&\".\"&$S$7,$B$96,$B$97,CONFIGURATION!$B$10,\"BMA\",CONFIGURATION!$B$1,\"bscr\",1000)","v":"Mapped"},{"$f":"XBRLMap(K15,K$88&\".\"&$S$4&\".\"&$S15&\".\"&K$92&\".\"&$S$7,$B$96,$B$97,CONFIGURATION!$B$10,\"BMA\",CONFIGURATION!$B$1,\"bscr\",1000)","v":"Mapped"},{"$f":"XBRLMap(L15,L$88&\".\"&$S$4&\".\"&$S15&\".\"&L$92&\".\"&$S$7,$B$96,$B$97,CONFIGURATION!$B$10,\"BMA\",CONFIGURATION!$B$1,\"bscr\",1000)","v":"Mapped"},{"$f":"XBRLMap(M15,M$88&\".\"&$S$4&\".\"&$S15&\".\"&M$92&\".\"&$S$7,$B$96,$B$97,CONFIGURATION!$B$10,\"BMA\",CONFIGURATION!$B$1,\"bscr\",1000)","v":"Mapped"}]
[null,null,null,null,null,null,{"$f":"XBRLMap(G16,G$88&\".\"&$S$4&\".\"&$S16&\".\"&G$92&\".\"&$S$7,$B$96,$B$97,CONFIGURATION!$B$10,\"BMA\",CONFIGURATION!$B$1,\"bscr\",1000)","v":"Mapped"},{"$f":"XBRLMap(H16,H$88&\".\"&$S$4&\".\"&$S16&\".\"&H$92&\".\"&$S$7,$B$96,$B$97,CONFIGURATION!$B$10,\"BMA\",CONFIGURATION!$B$1,\"bscr\",1000)","v":"Mapped"},{"$f":"XBRLMap(I16,I$88&\".\"&$S$4&\".\"&$S16&\".\"&I$92&\".\"&$S$7,$B$96,$B$97,CONFIGURATION!$B$10,\"BMA\",CONFIGURATION!$B$1,\"bscr\",1000)","v":"Mapped"},{"$f":"XBRLMap(J16,J$88&\".\"&$S$4&\".\"&$S16&\".\"&J$92&\".\"&$S$7,$B$96,$B$97,CONFIGURATION!$B$10,\"BMA\",CONFIGURATION!$B$1,\"bscr\",1000)","v":"Mapped"},{"$f":"XBRLMap(K16,K$88&\".\"&$S$4&\".\"&$S16&\".\"&K$92&\".\"&$S$7,$B$96,$B$97,CONFIGURATION!$B$10,\"BMA\",CONFIGURATION!$B$1,\"bscr\",1000)","v":"Mapped"},{"$f":"XBRLMap(L16,L$88&\".\"&$S$4&\".\"&$S16&\".\"&L$92&\".\"&$S$7,$B$96,$B$97,CONFIGURATION!$B$10,\"BMA\",CONFIGURATION!$B$1,\"bscr\",1000)","v":"Mapped"},{"$f":"XBRLMap(M16,M$88&\".\"&$S$4&\".\"&$S16&\".\"&M$92&\".\"&$S$7,$B$96,$B$97,CONFIGURATION!$B$10,\"BMA\",CONFIGURATION!$B$1,\"bscr\",1000)","v":"Mapped"}]
[null,null,null,null,null,null,null,{"$f":"XBRLMap(H17,H$88&\".\"&$S$4&\".\"&$S17&\".\"&H$92&\".\"&$S$7,$B$96,$B$97,CONFIGURATION!$B$10,\"BMA\",CONFIGURATION!$B$1,\"bscr\",1000)","v":"Mapped"},{"$f":"XBRLMap(I17,I$88&\".\"&$S$4&\".\"&$S17&\".\"&I$92&\".\"&$S$7,$B$96,$B$97,CONFIGURATION!$B$10,\"BMA\",CONFIGURATION!$B$1,\"bscr\",1000)","v":"Mapped"},{"$f":"XBRLMap(J17,J$88&\".\"&$S$4&\".\"&$S17&\".\"&J$92&\".\"&$S$7,$B$96,$B$97,CONFIGURATION!$B$10,\"BMA\",CONFIGURATION!$B$1,\"bscr\",1000)","v":"Mapped"},{"$f":"XBRLMap(K17,K$88&\".\"&$S$4&\".\"&$S17&\".\"&K$92&\".\"&$S$7,$B$96,$B$97,CONFIGURATION!$B$10,\"BMA\",CONFIGURATION!$B$1,\"bscr\",1000)","v":"Mapped"},{"$f":"XBRLMap(L17,L$88&\".\"&$S$4&\".\"&$S17&\".\"&L$92&\".\"&$S$7,$B$96,$B$97,CONFIGURATION!$B$10,\"BMA\",CONFIGURATION!$B$1,\"bscr\",1000)","v":"Mapped"},{"$f":"XBRLMap(M17,M$88&\".\"&$S$4&\".\"&$S17&\".\"&M$92&\".\"&$S$7,$B$96,$B$97,CONFIGURATION!$B$10,\"BMA\",CONFIGURATION!$B$1,\"bscr\",1000)","v":"Mapped"}]
[null,null,null,null,null,null,null,null,{"$f":"XBRLMap(I18,I$88&\".\"&$S$4&\".\"&$S18&\".\"&I$92&\".\"&$S$7,$B$96,$B$97,CONFIGURATION!$B$10,\"BMA\",CONFIGURATION!$B$1,\"bscr\",1000)","v":"Mapped"},{"$f":"XBRLMap(J18,J$88&\".\"&$S$4&\".\"&$S18&\".\"&J$92&\".\"&$S$7,$B$96,$B$97,CONFIGURATION!$B$10,\"BMA\",CONFIGURATION!$B$1,\"bscr\",1000)","v":"Mapped"},{"$f":"XBRLMap(K18,K$88&\".\"&$S$4&\".\"&$S18&\".\"&K$92&\".\"&$S$7,$B$96,$B$97,CONFIGURATION!$B$10,\"BMA\",CONFIGURATION!$B$1,\"bscr\",1000)","v":"Mapped"},{"$f":"XBRLMap(L18,L$88&\".\"&$S$4&\".\"&$S18&\".\"&L$92&\".\"&$S$7,$B$96,$B$97,CONFIGURATION!$B$10,\"BMA\",CONFIGURATION!$B$1,\"bscr\",1000)","v":"Mapped"},{"$f":"XBRLMap(M18,M$88&\".\"&$S$4&\".\"&$S18&\".\"&M$92&\".\"&$S$7,$B$96,$B$97,CONFIGURATION!$B$10,\"BMA\",CONFIGURATION!$B$1,\"bscr\",1000)","v":"Mapped"}]
[null,null,null,null,null,null,null,null,null,{"$f":"XBRLMap(J19,J$88&\".\"&$S$4&\".\"&$S19&\".\"&J$92&\".\"&$S$7,$B$96,$B$97,CONFIGURATION!$B$10,\"BMA\",CONFIGURATION!$B$1,\"bscr\",1000)","v":"Mapped"},{"$f":"XBRLMap(K19,K$88&\".\"&$S$4&\".\"&$S19&\".\"&K$92&\".\"&$S$7,$B$96,$B$97,CONFIGURATION!$B$10,\"BMA\",CONFIGURATION!$B$1,\"bscr\",1000)","v":"Mapped"},{"$f":"XBRLMap(L19,L$88&\".\"&$S$4&\".\"&$S19&\".\"&L$92&\".\"&$S$7,$B$96,$B$97,CONFIGURATION!$B$10,\"BMA\",CONFIGURATION!$B$1,\"bscr\",1000)","v":"Mapped"},{"$f":"XBRLMap(M19,M$88&\".\"&$S$4&\".\"&$S19&\".\"&M$92&\".\"&$S$7,$B$96,$B$97,CONFIGURATION!$B$10,\"BMA\",CONFIGURATION!$B$1,\"bscr\",1000)","v":"Mapped"}]
[null,null,null,null,null,null,null,null,null,null,{"$f":"XBRLMap(K20,K$88&\".\"&$S$4&\".\"&$S20&\".\"&K$92&\".\"&$S$7,$B$96,$B$97,CONFIGURATION!$B$10,\"BMA\",CONFIGURATION!$B$1,\"bscr\",1000)","v":"Mapped"},{"$f":"XBRLMap(L20,L$88&\".\"&$S$4&\".\"&$S20&\".\"&L$92&\".\"&$S$7,$B$96,$B$97,CONFIGURATION!$B$10,\"BMA\",CONFIGURATION!$B$1,\"bscr\",1000)","v":"Mapped"},{"$f":"XBRLMap(M20,M$88&\".\"&$S$4&\".\"&$S20&\".\"&M$92&\".\"&$S$7,$B$96,$B$97,CONFIGURATION!$B$10,\"BMA\",CONFIGURATION!$B$1,\"bscr\",1000)","v":"Mapped"}]
[null,null,null,null,null,null,null,null,null,null,null,{"$f":"XBRLMap(L21,L$88&\".\"&$S$4&\".\"&$S21&\".\"&L$92&\".\"&$S$7,$B$96,$B$97,CONFIGURATION!$B$10,\"BMA\",CONFIGURATION!$B$1,\"bscr\",1000)","v":"Mapped"},{"$f":"XBRLMap(M21,M$88&\".\"&$S$4&\".\"&$S21&\".\"&M$92&\".\"&$S$7,$B$96,$B$97,CONFIGURATION!$B$10,\"BMA\",CONFIGURATION!$B$1,\"bscr\",1000)","v":"Mapped"}]
[]
[]
[]
[]
[]
[]
[]
[]
[null,null,{"$f":"XBRLMap(C29,C$89&\".\"&$S$4&\".\"&$S29&\".\"&C$92&\".\"&$S$7,$B$96,$B$97,CONFIGURATION!$B$10,\"BMA\",CONFIGURATION!$B$1,\"bscr\",1000)","v":"Mapped"},{"$f":"XBRLMap(D29,D$89&\".\"&$S$4&\".\"&$S29&\".\"&D$92&\".\"&$S$7,$B$96,$B$97,CONFIGURATION!$B$10,\"BMA\",CONFIGURATION!$B$1,\"bscr\",1000)","v":"Mapped"},{"$f":"XBRLMap(E29,E$89&\".\"&$S$4&\".\"&$S29&\".\"&E$92&\".\"&$S$7,$B$96,$B$97,CONFIGURATION!$B$10,\"BMA\",CONFIGURATION!$B$1,\"bscr\",1000)","v":"Mapped"},{"$f":"XBRLMap(F29,F$89&\".\"&$S$4&\".\"&$S29&\".\"&F$92&\".\"&$S$7,$B$96,$B$97,CONFIGURATION!$B$10,\"BMA\",CONFIGURATION!$B$1,\"bscr\",1000)","v":"Mapped"},{"$f":"XBRLMap(G29,G$89&\".\"&$S$4&\".\"&$S29&\".\"&G$92&\".\"&$S$7,$B$96,$B$97,CONFIGURATION!$B$10,\"BMA\",CONFIGURATION!$B$1,\"bscr\",1000)","v":"Mapped"},{"$f":"XBRLMap(H29,H$89&\".\"&$S$4&\".\"&$S29&\".\"&H$92&\".\"&$S$7,$B$96,$B$97,CONFIGURATION!$B$10,\"BMA\",CONFIGURATION!$B$1,\"bscr\",1000)","v":"Mapped"},{"$f":"XBRLMap(I29,I$89&\".\"&$S$4&\".\"&$S29&\".\"&I$92&\".\"&$S$7,$B$96,$B$97,CONFIGURATION!$B$10,\"BMA\",CONFIGURATION!$B$1,\"bscr\",1000)","v":"Mapped"},{"$f":"XBRLMap(J29,J$89&\".\"&$S$4&\".\"&$S29&\".\"&J$92&\".\"&$S$7,$B$96,$B$97,CONFIGURATION!$B$10,\"BMA\",CONFIGURATION!$B$1,\"bscr\",1000)","v":"Mapped"},{"$f":"XBRLMap(K29,K$89&\".\"&$S$4&\".\"&$S29&\".\"&K$92&\".\"&$S$7,$B$96,$B$97,CONFIGURATION!$B$10,\"BMA\",CONFIGURATION!$B$1,\"bscr\",1000)","v":"Mapped"},{"$f":"XBRLMap(L29,L$89&\".\"&$S$4&\".\"&$S29&\".\"&L$92&\".\"&$S$7,$B$96,$B$97,CONFIGURATION!$B$10,\"BMA\",CONFIGURATION!$B$1,\"bscr\",1000)","v":"Mapped"},{"$f":"XBRLMap(M29,M$89&\".\"&$S$4&\".\"&$S29&\".\"&M$92&\".\"&$S$7,$B$96,$B$97,CONFIGURATION!$B$10,\"BMA\",CONFIGURATION!$B$1,\"bscr\",1000)","v":"Mapped"}]
[null,null,{"$f":"XBRLMap(C30,C$89&\".\"&$S$4&\".\"&$S30&\".\"&C$92&\".\"&$S$7,$B$96,$B$97,CONFIGURATION!$B$10,\"BMA\",CONFIGURATION!$B$1,\"bscr\",1000)","v":"Mapped"},{"$f":"XBRLMap(D30,D$89&\".\"&$S$4&\".\"&$S30&\".\"&D$92&\".\"&$S$7,$B$96,$B$97,CONFIGURATION!$B$10,\"BMA\",CONFIGURATION!$B$1,\"bscr\",1000)","v":"Mapped"},{"$f":"XBRLMap(E30,E$89&\".\"&$S$4&\".\"&$S30&\".\"&E$92&\".\"&$S$7,$B$96,$B$97,CONFIGURATION!$B$10,\"BMA\",CONFIGURATION!$B$1,\"bscr\",1000)","v":"Mapped"},{"$f":"XBRLMap(F30,F$89&\".\"&$S$4&\".\"&$S30&\".\"&F$92&\".\"&$S$7,$B$96,$B$97,CONFIGURATION!$B$10,\"BMA\",CONFIGURATION!$B$1,\"bscr\",1000)","v":"Mapped"},{"$f":"XBRLMap(G30,G$89&\".\"&$S$4&\".\"&$S30&\".\"&G$92&\".\"&$S$7,$B$96,$B$97,CONFIGURATION!$B$10,\"BMA\",CONFIGURATION!$B$1,\"bscr\",1000)","v":"Mapped"},{"$f":"XBRLMap(H30,H$89&\".\"&$S$4&\".\"&$S30&\".\"&H$92&\".\"&$S$7,$B$96,$B$97,CONFIGURATION!$B$10,\"BMA\",CONFIGURATION!$B$1,\"bscr\",1000)","v":"Mapped"},{"$f":"XBRLMap(I30,I$89&\".\"&$S$4&\".\"&$S30&\".\"&I$92&\".\"&$S$7,$B$96,$B$97,CONFIGURATION!$B$10,\"BMA\",CONFIGURATION!$B$1,\"bscr\",1000)","v":"Mapped"},{"$f":"XBRLMap(J30,J$89&\".\"&$S$4&\".\"&$S30&\".\"&J$92&\".\"&$S$7,$B$96,$B$97,CONFIGURATION!$B$10,\"BMA\",CONFIGURATION!$B$1,\"bscr\",1000)","v":"Mapped"},{"$f":"XBRLMap(K30,K$89&\".\"&$S$4&\".\"&$S30&\".\"&K$92&\".\"&$S$7,$B$96,$B$97,CONFIGURATION!$B$10,\"BMA\",CONFIGURATION!$B$1,\"bscr\",1000)","v":"Mapped"},{"$f":"XBRLMap(L30,L$89&\".\"&$S$4&\".\"&$S30&\".\"&L$92&\".\"&$S$7,$B$96,$B$97,CONFIGURATION!$B$10,\"BMA\",CONFIGURATION!$B$1,\"bscr\",1000)","v":"Mapped"},{"$f":"XBRLMap(M30,M$89&\".\"&$S$4&\".\"&$S30&\".\"&M$92&\".\"&$S$7,$B$96,$B$97,CONFIGURATION!$B$10,\"BMA\",CONFIGURATION!$B$1,\"bscr\",1000)","v":"Mapped"}]
[null,null,null,{"$f":"XBRLMap(D31,D$89&\".\"&$S$4&\".\"&$S31&\".\"&D$92&\".\"&$S$7,$B$96,$B$97,CONFIGURATION!$B$10,\"BMA\",CONFIGURATION!$B$1,\"bscr\",1000)","v":"Mapped"},{"$f":"XBRLMap(E31,E$89&\".\"&$S$4&\".\"&$S31&\".\"&E$92&\".\"&$S$7,$B$96,$B$97,CONFIGURATION!$B$10,\"BMA\",CONFIGURATION!$B$1,\"bscr\",1000)","v":"Mapped"},{"$f":"XBRLMap(F31,F$89&\".\"&$S$4&\".\"&$S31&\".\"&F$92&\".\"&$S$7,$B$96,$B$97,CONFIGURATION!$B$10,\"BMA\",CONFIGURATION!$B$1,\"bscr\",1000)","v":"Mapped"},{"$f":"XBRLMap(G31,G$89&\".\"&$S$4&\".\"&$S31&\".\"&G$92&\".\"&$S$7,$B$96,$B$97,CONFIGURATION!$B$10,\"BMA\",CONFIGURATION!$B$1,\"bscr\",1000)","v":"Mapped"},{"$f":"XBRLMap(H31,H$89&\".\"&$S$4&\".\"&$S31&\".\"&H$92&\".\"&$S$7,$B$96,$B$97,CONFIGURATION!$B$10,\"BMA\",CONFIGURATION!$B$1,\"bscr\",1000)","v":"Mapped"},{"$f":"XBRLMap(I31,I$89&\".\"&$S$4&\".\"&$S31&\".\"&I$92&\".\"&$S$7,$B$96,$B$97,CONFIGURATION!$B$10,\"BMA\",CONFIGURATION!$B$1,\"bscr\",1000)","v":"Mapped"},{"$f":"XBRLMap(J31,J$89&\".\"&$S$4&\".\"&$S31&\".\"&J$92&\".\"&$S$7,$B$96,$B$97,CONFIGURATION!$B$10,\"BMA\",CONFIGURATION!$B$1,\"bscr\",1000)","v":"Mapped"},{"$f":"XBRLMap(K31,K$89&\".\"&$S$4&\".\"&$S31&\".\"&K$92&\".\"&$S$7,$B$96,$B$97,CONFIGURATION!$B$10,\"BMA\",CONFIGURATION!$B$1,\"bscr\",1000)","v":"Mapped"},{"$f":"XBRLMap(L31,L$89&\".\"&$S$4&\".\"&$S31&\".\"&L$92&\".\"&$S$7,$B$96,$B$97,CONFIGURATION!$B$10,\"BMA\",CONFIGURATION!$B$1,\"bscr\",1000)","v":"Mapped"},{"$f":"XBRLMap(M31,M$89&\".\"&$S$4&\".\"&$S31&\".\"&M$92&\".\"&$S$7,$B$96,$B$97,CONFIGURATION!$B$10,\"BMA\",CONFIGURATION!$B$1,\"bscr\",1000)","v":"Mapped"}]
[null,null,null,null,{"$f":"XBRLMap(E32,E$89&\".\"&$S$4&\".\"&$S32&\".\"&E$92&\".\"&$S$7,$B$96,$B$97,CONFIGURATION!$B$10,\"BMA\",CONFIGURATION!$B$1,\"bscr\",1000)","v":"Mapped"},{"$f":"XBRLMap(F32,F$89&\".\"&$S$4&\".\"&$S32&\".\"&F$92&\".\"&$S$7,$B$96,$B$97,CONFIGURATION!$B$10,\"BMA\",CONFIGURATION!$B$1,\"bscr\",1000)","v":"Mapped"},{"$f":"XBRLMap(G32,G$89&\".\"&$S$4&\".\"&$S32&\".\"&G$92&\".\"&$S$7,$B$96,$B$97,CONFIGURATION!$B$10,\"BMA\",CONFIGURATION!$B$1,\"bscr\",1000)","v":"Mapped"},{"$f":"XBRLMap(H32,H$89&\".\"&$S$4&\".\"&$S32&\".\"&H$92&\".\"&$S$7,$B$96,$B$97,CONFIGURATION!$B$10,\"BMA\",CONFIGURATION!$B$1,\"bscr\",1000)","v":"Mapped"},{"$f":"XBRLMap(I32,I$89&\".\"&$S$4&\".\"&$S32&\".\"&I$92&\".\"&$S$7,$B$96,$B$97,CONFIGURATION!$B$10,\"BMA\",CONFIGURATION!$B$1,\"bscr\",1000)","v":"Mapped"},{"$f":"XBRLMap(J32,J$89&\".\"&$S$4&\".\"&$S32&\".\"&J$92&\".\"&$S$7,$B$96,$B$97,CONFIGURATION!$B$10,\"BMA\",CONFIGURATION!$B$1,\"bscr\",1000)","v":"Mapped"},{"$f":"XBRLMap(K32,K$89&\".\"&$S$4&\".\"&$S32&\".\"&K$92&\".\"&$S$7,$B$96,$B$97,CONFIGURATION!$B$10,\"BMA\",CONFIGURATION!$B$1,\"bscr\",1000)","v":"Mapped"},{"$f":"XBRLMap(L32,L$89&\".\"&$S$4&\".\"&$S32&\".\"&L$92&\".\"&$S$7,$B$96,$B$97,CONFIGURATION!$B$10,\"BMA\",CONFIGURATION!$B$1,\"bscr\",1000)","v":"Mapped"},{"$f":"XBRLMap(M32,M$89&\".\"&$S$4&\".\"&$S32&\".\"&M$92&\".\"&$S$7,$B$96,$B$97,CONFIGURATION!$B$10,\"BMA\",CONFIGURATION!$B$1,\"bscr\",1000)","v":"Mapped"}]
[null,null,null,null,null,{"$f":"XBRLMap(F33,F$89&\".\"&$S$4&\".\"&$S33&\".\"&F$92&\".\"&$S$7,$B$96,$B$97,CONFIGURATION!$B$10,\"BMA\",CONFIGURATION!$B$1,\"bscr\",1000)","v":"Mapped"},{"$f":"XBRLMap(G33,G$89&\".\"&$S$4&\".\"&$S33&\".\"&G$92&\".\"&$S$7,$B$96,$B$97,CONFIGURATION!$B$10,\"BMA\",CONFIGURATION!$B$1,\"bscr\",1000)","v":"Mapped"},{"$f":"XBRLMap(H33,H$89&\".\"&$S$4&\".\"&$S33&\".\"&H$92&\".\"&$S$7,$B$96,$B$97,CONFIGURATION!$B$10,\"BMA\",CONFIGURATION!$B$1,\"bscr\",1000)","v":"Mapped"},{"$f":"XBRLMap(I33,I$89&\".\"&$S$4&\".\"&$S33&\".\"&I$92&\".\"&$S$7,$B$96,$B$97,CONFIGURATION!$B$10,\"BMA\",CONFIGURATION!$B$1,\"bscr\",1000)","v":"Mapped"},{"$f":"XBRLMap(J33,J$89&\".\"&$S$4&\".\"&$S33&\".\"&J$92&\".\"&$S$7,$B$96,$B$97,CONFIGURATION!$B$10,\"BMA\",CONFIGURATION!$B$1,\"bscr\",1000)","v":"Mapped"},{"$f":"XBRLMap(K33,K$89&\".\"&$S$4&\".\"&$S33&\".\"&K$92&\".\"&$S$7,$B$96,$B$97,CONFIGURATION!$B$10,\"BMA\",CONFIGURATION!$B$1,\"bscr\",1000)","v":"Mapped"},{"$f":"XBRLMap(L33,L$89&\".\"&$S$4&\".\"&$S33&\".\"&L$92&\".\"&$S$7,$B$96,$B$97,CONFIGURATION!$B$10,\"BMA\",CONFIGURATION!$B$1,\"bscr\",1000)","v":"Mapped"},{"$f":"XBRLMap(M33,M$89&\".\"&$S$4&\".\"&$S33&\".\"&M$92&\".\"&$S$7,$B$96,$B$97,CONFIGURATION!$B$10,\"BMA\",CONFIGURATION!$B$1,\"bscr\",1000)","v":"Mapped"}]
[null,null,null,null,null,null,{"$f":"XBRLMap(G34,G$89&\".\"&$S$4&\".\"&$S34&\".\"&G$92&\".\"&$S$7,$B$96,$B$97,CONFIGURATION!$B$10,\"BMA\",CONFIGURATION!$B$1,\"bscr\",1000)","v":"Mapped"},{"$f":"XBRLMap(H34,H$89&\".\"&$S$4&\".\"&$S34&\".\"&H$92&\".\"&$S$7,$B$96,$B$97,CONFIGURATION!$B$10,\"BMA\",CONFIGURATION!$B$1,\"bscr\",1000)","v":"Mapped"},{"$f":"XBRLMap(I34,I$89&\".\"&$S$4&\".\"&$S34&\".\"&I$92&\".\"&$S$7,$B$96,$B$97,CONFIGURATION!$B$10,\"BMA\",CONFIGURATION!$B$1,\"bscr\",1000)","v":"Mapped"},{"$f":"XBRLMap(J34,J$89&\".\"&$S$4&\".\"&$S34&\".\"&J$92&\".\"&$S$7,$B$96,$B$97,CONFIGURATION!$B$10,\"BMA\",CONFIGURATION!$B$1,\"bscr\",1000)","v":"Mapped"},{"$f":"XBRLMap(K34,K$89&\".\"&$S$4&\".\"&$S34&\".\"&K$92&\".\"&$S$7,$B$96,$B$97,CONFIGURATION!$B$10,\"BMA\",CONFIGURATION!$B$1,\"bscr\",1000)","v":"Mapped"},{"$f":"XBRLMap(L34,L$89&\".\"&$S$4&\".\"&$S34&\".\"&L$92&\".\"&$S$7,$B$96,$B$97,CONFIGURATION!$B$10,\"BMA\",CONFIGURATION!$B$1,\"bscr\",1000)","v":"Mapped"},{"$f":"XBRLMap(M34,M$89&\".\"&$S$4&\".\"&$S34&\".\"&M$92&\".\"&$S$7,$B$96,$B$97,CONFIGURATION!$B$10,\"BMA\",CONFIGURATION!$B$1,\"bscr\",1000)","v":"Mapped"}]
[null,null,null,null,null,null,null,{"$f":"XBRLMap(H35,H$89&\".\"&$S$4&\".\"&$S35&\".\"&H$92&\".\"&$S$7,$B$96,$B$97,CONFIGURATION!$B$10,\"BMA\",CONFIGURATION!$B$1,\"bscr\",1000)","v":"Mapped"},{"$f":"XBRLMap(I35,I$89&\".\"&$S$4&\".\"&$S35&\".\"&I$92&\".\"&$S$7,$B$96,$B$97,CONFIGURATION!$B$10,\"BMA\",CONFIGURATION!$B$1,\"bscr\",1000)","v":"Mapped"},{"$f":"XBRLMap(J35,J$89&\".\"&$S$4&\".\"&$S35&\".\"&J$92&\".\"&$S$7,$B$96,$B$97,CONFIGURATION!$B$10,\"BMA\",CONFIGURATION!$B$1,\"bscr\",1000)","v":"Mapped"},{"$f":"XBRLMap(K35,K$89&\".\"&$S$4&\".\"&$S35&\".\"&K$92&\".\"&$S$7,$B$96,$B$97,CONFIGURATION!$B$10,\"BMA\",CONFIGURATION!$B$1,\"bscr\",1000)","v":"Mapped"},{"$f":"XBRLMap(L35,L$89&\".\"&$S$4&\".\"&$S35&\".\"&L$92&\".\"&$S$7,$B$96,$B$97,CONFIGURATION!$B$10,\"BMA\",CONFIGURATION!$B$1,\"bscr\",1000)","v":"Mapped"},{"$f":"XBRLMap(M35,M$89&\".\"&$S$4&\".\"&$S35&\".\"&M$92&\".\"&$S$7,$B$96,$B$97,CONFIGURATION!$B$10,\"BMA\",CONFIGURATION!$B$1,\"bscr\",1000)","v":"Mapped"}]
[null,null,null,null,null,null,null,null,{"$f":"XBRLMap(I36,I$89&\".\"&$S$4&\".\"&$S36&\".\"&I$92&\".\"&$S$7,$B$96,$B$97,CONFIGURATION!$B$10,\"BMA\",CONFIGURATION!$B$1,\"bscr\",1000)","v":"Mapped"},{"$f":"XBRLMap(J36,J$89&\".\"&$S$4&\".\"&$S36&\".\"&J$92&\".\"&$S$7,$B$96,$B$97,CONFIGURATION!$B$10,\"BMA\",CONFIGURATION!$B$1,\"bscr\",1000)","v":"Mapped"},{"$f":"XBRLMap(K36,K$89&\".\"&$S$4&\".\"&$S36&\".\"&K$92&\".\"&$S$7,$B$96,$B$97,CONFIGURATION!$B$10,\"BMA\",CONFIGURATION!$B$1,\"bscr\",1000)","v":"Mapped"},{"$f":"XBRLMap(L36,L$89&\".\"&$S$4&\".\"&$S36&\".\"&L$92&\".\"&$S$7,$B$96,$B$97,CONFIGURATION!$B$10,\"BMA\",CONFIGURATION!$B$1,\"bscr\",1000)","v":"Mapped"},{"$f":"XBRLMap(M36,M$89&\".\"&$S$4&\".\"&$S36&\".\"&M$92&\".\"&$S$7,$B$96,$B$97,CONFIGURATION!$B$10,\"BMA\",CONFIGURATION!$B$1,\"bscr\",1000)","v":"Mapped"}]
[null,null,null,null,null,null,null,null,null,{"$f":"XBRLMap(J37,J$89&\".\"&$S$4&\".\"&$S37&\".\"&J$92&\".\"&$S$7,$B$96,$B$97,CONFIGURATION!$B$10,\"BMA\",CONFIGURATION!$B$1,\"bscr\",1000)","v":"Mapped"},{"$f":"XBRLMap(K37,K$89&\".\"&$S$4&\".\"&$S37&\".\"&K$92&\".\"&$S$7,$B$96,$B$97,CONFIGURATION!$B$10,\"BMA\",CONFIGURATION!$B$1,\"bscr\",1000)","v":"Mapped"},{"$f":"XBRLMap(L37,L$89&\".\"&$S$4&\".\"&$S37&\".\"&L$92&\".\"&$S$7,$B$96,$B$97,CONFIGURATION!$B$10,\"BMA\",CONFIGURATION!$B$1,\"bscr\",1000)","v":"Mapped"},{"$f":"XBRLMap(M37,M$89&\".\"&$S$4&\".\"&$S37&\".\"&M$92&\".\"&$S$7,$B$96,$B$97,CONFIGURATION!$B$10,\"BMA\",CONFIGURATION!$B$1,\"bscr\",1000)","v":"Mapped"}]
[null,null,null,null,null,null,null,null,null,null,{"$f":"XBRLMap(K38,K$89&\".\"&$S$4&\".\"&$S38&\".\"&K$92&\".\"&$S$7,$B$96,$B$97,CONFIGURATION!$B$10,\"BMA\",CONFIGURATION!$B$1,\"bscr\",1000)","v":"Mapped"},{"$f":"XBRLMap(L38,L$89&\".\"&$S$4&\".\"&$S38&\".\"&L$92&\".\"&$S$7,$B$96,$B$97,CONFIGURATION!$B$10,\"BMA\",CONFIGURATION!$B$1,\"bscr\",1000)","v":"Mapped"},{"$f":"XBRLMap(M38,M$89&\".\"&$S$4&\".\"&$S38&\".\"&M$92&\".\"&$S$7,$B$96,$B$97,CONFIGURATION!$B$10,\"BMA\",CONFIGURATION!$B$1,\"bscr\",1000)","v":"Mapped"}]
[null,null,null,null,null,null,null,null,null,null,null,{"$f":"XBRLMap(L39,L$89&\".\"&$S$4&\".\"&$S39&\".\"&L$92&\".\"&$S$7,$B$96,$B$97,CONFIGURATION!$B$10,\"BMA\",CONFIGURATION!$B$1,\"bscr\",1000)","v":"Mapped"},{"$f":"XBRLMap(M39,M$89&\".\"&$S$4&\".\"&$S39&\".\"&M$92&\".\"&$S$7,$B$96,$B$97,CONFIGURATION!$B$10,\"BMA\",CONFIGURATION!$B$1,\"bscr\",1000)","v":"Mapped"}]
[]
[]
[]
[]
[]
[]
[]
[]
[null,null,{"$f":"XBRLMap(C47,C$90&\".\"&$S$4&\".\"&$S47&\".\"&C$92&\".\"&$S$7,$B$96,$B$97,CONFIGURATION!$B$10,\"BMA\",CONFIGURATION!$B$1,\"bscr\",1000)","v":"Mapped"},{"$f":"XBRLMap(D47,D$90&\".\"&$S$4&\".\"&$S47&\".\"&D$92&\".\"&$S$7,$B$96,$B$97,CONFIGURATION!$B$10,\"BMA\",CONFIGURATION!$B$1,\"bscr\",1000)","v":"Mapped"},{"$f":"XBRLMap(E47,E$90&\".\"&$S$4&\".\"&$S47&\".\"&E$92&\".\"&$S$7,$B$96,$B$97,CONFIGURATION!$B$10,\"BMA\",CONFIGURATION!$B$1,\"bscr\",1000)","v":"Mapped"},{"$f":"XBRLMap(F47,F$90&\".\"&$S$4&\".\"&$S47&\".\"&F$92&\".\"&$S$7,$B$96,$B$97,CONFIGURATION!$B$10,\"BMA\",CONFIGURATION!$B$1,\"bscr\",1000)","v":"Mapped"},{"$f":"XBRLMap(G47,G$90&\".\"&$S$4&\".\"&$S47&\".\"&G$92&\".\"&$S$7,$B$96,$B$97,CONFIGURATION!$B$10,\"BMA\",CONFIGURATION!$B$1,\"bscr\",1000)","v":"Mapped"},{"$f":"XBRLMap(H47,H$90&\".\"&$S$4&\".\"&$S47&\".\"&H$92&\".\"&$S$7,$B$96,$B$97,CONFIGURATION!$B$10,\"BMA\",CONFIGURATION!$B$1,\"bscr\",1000)","v":"Mapped"},{"$f":"XBRLMap(I47,I$90&\".\"&$S$4&\".\"&$S47&\".\"&I$92&\".\"&$S$7,$B$96,$B$97,CONFIGURATION!$B$10,\"BMA\",CONFIGURATION!$B$1,\"bscr\",1000)","v":"Mapped"},{"$f":"XBRLMap(J47,J$90&\".\"&$S$4&\".\"&$S47&\".\"&J$92&\".\"&$S$7,$B$96,$B$97,CONFIGURATION!$B$10,\"BMA\",CONFIGURATION!$B$1,\"bscr\",1000)","v":"Mapped"},{"$f":"XBRLMap(K47,K$90&\".\"&$S$4&\".\"&$S47&\".\"&K$92&\".\"&$S$7,$B$96,$B$97,CONFIGURATION!$B$10,\"BMA\",CONFIGURATION!$B$1,\"bscr\",1000)","v":"Mapped"},{"$f":"XBRLMap(L47,L$90&\".\"&$S$4&\".\"&$S47&\".\"&L$92&\".\"&$S$7,$B$96,$B$97,CONFIGURATION!$B$10,\"BMA\",CONFIGURATION!$B$1,\"bscr\",1000)","v":"Mapped"},{"$f":"XBRLMap(M47,M$90&\".\"&$S$4&\".\"&$S47&\".\"&M$92&\".\"&$S$7,$B$96,$B$97,CONFIGURATION!$B$10,\"BMA\",CONFIGURATION!$B$1,\"bscr\",1000)","v":"Mapped"}]
[null,null,{"$f":"XBRLMap(C48,C$90&\".\"&$S$4&\".\"&$S48&\".\"&C$92&\".\"&$S$7,$B$96,$B$97,CONFIGURATION!$B$10,\"BMA\",CONFIGURATION!$B$1,\"bscr\",1000)","v":"Mapped"},{"$f":"XBRLMap(D48,D$90&\".\"&$S$4&\".\"&$S48&\".\"&D$92&\".\"&$S$7,$B$96,$B$97,CONFIGURATION!$B$10,\"BMA\",CONFIGURATION!$B$1,\"bscr\",1000)","v":"Mapped"},{"$f":"XBRLMap(E48,E$90&\".\"&$S$4&\".\"&$S48&\".\"&E$92&\".\"&$S$7,$B$96,$B$97,CONFIGURATION!$B$10,\"BMA\",CONFIGURATION!$B$1,\"bscr\",1000)","v":"Mapped"},{"$f":"XBRLMap(F48,F$90&\".\"&$S$4&\".\"&$S48&\".\"&F$92&\".\"&$S$7,$B$96,$B$97,CONFIGURATION!$B$10,\"BMA\",CONFIGURATION!$B$1,\"bscr\",1000)","v":"Mapped"},{"$f":"XBRLMap(G48,G$90&\".\"&$S$4&\".\"&$S48&\".\"&G$92&\".\"&$S$7,$B$96,$B$97,CONFIGURATION!$B$10,\"BMA\",CONFIGURATION!$B$1,\"bscr\",1000)","v":"Mapped"},{"$f":"XBRLMap(H48,H$90&\".\"&$S$4&\".\"&$S48&\".\"&H$92&\".\"&$S$7,$B$96,$B$97,CONFIGURATION!$B$10,\"BMA\",CONFIGURATION!$B$1,\"bscr\",1000)","v":"Mapped"},{"$f":"XBRLMap(I48,I$90&\".\"&$S$4&\".\"&$S48&\".\"&I$92&\".\"&$S$7,$B$96,$B$97,CONFIGURATION!$B$10,\"BMA\",CONFIGURATION!$B$1,\"bscr\",1000)","v":"Mapped"},{"$f":"XBRLMap(J48,J$90&\".\"&$S$4&\".\"&$S48&\".\"&J$92&\".\"&$S$7,$B$96,$B$97,CONFIGURATION!$B$10,\"BMA\",CONFIGURATION!$B$1,\"bscr\",1000)","v":"Mapped"},{"$f":"XBRLMap(K48,K$90&\".\"&$S$4&\".\"&$S48&\".\"&K$92&\".\"&$S$7,$B$96,$B$97,CONFIGURATION!$B$10,\"BMA\",CONFIGURATION!$B$1,\"bscr\",1000)","v":"Mapped"},{"$f":"XBRLMap(L48,L$90&\".\"&$S$4&\".\"&$S48&\".\"&L$92&\".\"&$S$7,$B$96,$B$97,CONFIGURATION!$B$10,\"BMA\",CONFIGURATION!$B$1,\"bscr\",1000)","v":"Mapped"},{"$f":"XBRLMap(M48,M$90&\".\"&$S$4&\".\"&$S48&\".\"&M$92&\".\"&$S$7,$B$96,$B$97,CONFIGURATION!$B$10,\"BMA\",CONFIGURATION!$B$1,\"bscr\",1000)","v":"Mapped"}]
[null,null,null,{"$f":"XBRLMap(D49,D$90&\".\"&$S$4&\".\"&$S49&\".\"&D$92&\".\"&$S$7,$B$96,$B$97,CONFIGURATION!$B$10,\"BMA\",CONFIGURATION!$B$1,\"bscr\",1000)","v":"Mapped"},{"$f":"XBRLMap(E49,E$90&\".\"&$S$4&\".\"&$S49&\".\"&E$92&\".\"&$S$7,$B$96,$B$97,CONFIGURATION!$B$10,\"BMA\",CONFIGURATION!$B$1,\"bscr\",1000)","v":"Mapped"},{"$f":"XBRLMap(F49,F$90&\".\"&$S$4&\".\"&$S49&\".\"&F$92&\".\"&$S$7,$B$96,$B$97,CONFIGURATION!$B$10,\"BMA\",CONFIGURATION!$B$1,\"bscr\",1000)","v":"Mapped"},{"$f":"XBRLMap(G49,G$90&\".\"&$S$4&\".\"&$S49&\".\"&G$92&\".\"&$S$7,$B$96,$B$97,CONFIGURATION!$B$10,\"BMA\",CONFIGURATION!$B$1,\"bscr\",1000)","v":"Mapped"},{"$f":"XBRLMap(H49,H$90&\".\"&$S$4&\".\"&$S49&\".\"&H$92&\".\"&$S$7,$B$96,$B$97,CONFIGURATION!$B$10,\"BMA\",CONFIGURATION!$B$1,\"bscr\",1000)","v":"Mapped"},{"$f":"XBRLMap(I49,I$90&\".\"&$S$4&\".\"&$S49&\".\"&I$92&\".\"&$S$7,$B$96,$B$97,CONFIGURATION!$B$10,\"BMA\",CONFIGURATION!$B$1,\"bscr\",1000)","v":"Mapped"},{"$f":"XBRLMap(J49,J$90&\".\"&$S$4&\".\"&$S49&\".\"&J$92&\".\"&$S$7,$B$96,$B$97,CONFIGURATION!$B$10,\"BMA\",CONFIGURATION!$B$1,\"bscr\",1000)","v":"Mapped"},{"$f":"XBRLMap(K49,K$90&\".\"&$S$4&\".\"&$S49&\".\"&K$92&\".\"&$S$7,$B$96,$B$97,CONFIGURATION!$B$10,\"BMA\",CONFIGURATION!$B$1,\"bscr\",1000)","v":"Mapped"},{"$f":"XBRLMap(L49,L$90&\".\"&$S$4&\".\"&$S49&\".\"&L$92&\".\"&$S$7,$B$96,$B$97,CONFIGURATION!$B$10,\"BMA\",CONFIGURATION!$B$1,\"bscr\",1000)","v":"Mapped"},{"$f":"XBRLMap(M49,M$90&\".\"&$S$4&\".\"&$S49&\".\"&M$92&\".\"&$S$7,$B$96,$B$97,CONFIGURATION!$B$10,\"BMA\",CONFIGURATION!$B$1,\"bscr\",1000)","v":"Mapped"}]
[null,null,null,null,{"$f":"XBRLMap(E50,E$90&\".\"&$S$4&\".\"&$S50&\".\"&E$92&\".\"&$S$7,$B$96,$B$97,CONFIGURATION!$B$10,\"BMA\",CONFIGURATION!$B$1,\"bscr\",1000)","v":"Mapped"},{"$f":"XBRLMap(F50,F$90&\".\"&$S$4&\".\"&$S50&\".\"&F$92&\".\"&$S$7,$B$96,$B$97,CONFIGURATION!$B$10,\"BMA\",CONFIGURATION!$B$1,\"bscr\",1000)","v":"Mapped"},{"$f":"XBRLMap(G50,G$90&\".\"&$S$4&\".\"&$S50&\".\"&G$92&\".\"&$S$7,$B$96,$B$97,CONFIGURATION!$B$10,\"BMA\",CONFIGURATION!$B$1,\"bscr\",1000)","v":"Mapped"},{"$f":"XBRLMap(H50,H$90&\".\"&$S$4&\".\"&$S50&\".\"&H$92&\".\"&$S$7,$B$96,$B$97,CONFIGURATION!$B$10,\"BMA\",CONFIGURATION!$B$1,\"bscr\",1000)","v":"Mapped"},{"$f":"XBRLMap(I50,I$90&\".\"&$S$4&\".\"&$S50&\".\"&I$92&\".\"&$S$7,$B$96,$B$97,CONFIGURATION!$B$10,\"BMA\",CONFIGURATION!$B$1,\"bscr\",1000)","v":"Mapped"},{"$f":"XBRLMap(J50,J$90&\".\"&$S$4&\".\"&$S50&\".\"&J$92&\".\"&$S$7,$B$96,$B$97,CONFIGURATION!$B$10,\"BMA\",CONFIGURATION!$B$1,\"bscr\",1000)","v":"Mapped"},{"$f":"XBRLMap(K50,K$90&\".\"&$S$4&\".\"&$S50&\".\"&K$92&\".\"&$S$7,$B$96,$B$97,CONFIGURATION!$B$10,\"BMA\",CONFIGURATION!$B$1,\"bscr\",1000)","v":"Mapped"},{"$f":"XBRLMap(L50,L$90&\".\"&$S$4&\".\"&$S50&\".\"&L$92&\".\"&$S$7,$B$96,$B$97,CONFIGURATION!$B$10,\"BMA\",CONFIGURATION!$B$1,\"bscr\",1000)","v":"Mapped"},{"$f":"XBRLMap(M50,M$90&\".\"&$S$4&\".\"&$S50&\".\"&M$92&\".\"&$S$7,$B$96,$B$97,CONFIGURATION!$B$10,\"BMA\",CONFIGURATION!$B$1,\"bscr\",1000)","v":"Mapped"}]
[null,null,null,null,null,{"$f":"XBRLMap(F51,F$90&\".\"&$S$4&\".\"&$S51&\".\"&F$92&\".\"&$S$7,$B$96,$B$97,CONFIGURATION!$B$10,\"BMA\",CONFIGURATION!$B$1,\"bscr\",1000)","v":"Mapped"},{"$f":"XBRLMap(G51,G$90&\".\"&$S$4&\".\"&$S51&\".\"&G$92&\".\"&$S$7,$B$96,$B$97,CONFIGURATION!$B$10,\"BMA\",CONFIGURATION!$B$1,\"bscr\",1000)","v":"Mapped"},{"$f":"XBRLMap(H51,H$90&\".\"&$S$4&\".\"&$S51&\".\"&H$92&\".\"&$S$7,$B$96,$B$97,CONFIGURATION!$B$10,\"BMA\",CONFIGURATION!$B$1,\"bscr\",1000)","v":"Mapped"},{"$f":"XBRLMap(I51,I$90&\".\"&$S$4&\".\"&$S51&\".\"&I$92&\".\"&$S$7,$B$96,$B$97,CONFIGURATION!$B$10,\"BMA\",CONFIGURATION!$B$1,\"bscr\",1000)","v":"Mapped"},{"$f":"XBRLMap(J51,J$90&\".\"&$S$4&\".\"&$S51&\".\"&J$92&\".\"&$S$7,$B$96,$B$97,CONFIGURATION!$B$10,\"BMA\",CONFIGURATION!$B$1,\"bscr\",1000)","v":"Mapped"},{"$f":"XBRLMap(K51,K$90&\".\"&$S$4&\".\"&$S51&\".\"&K$92&\".\"&$S$7,$B$96,$B$97,CONFIGURATION!$B$10,\"BMA\",CONFIGURATION!$B$1,\"bscr\",1000)","v":"Mapped"},{"$f":"XBRLMap(L51,L$90&\".\"&$S$4&\".\"&$S51&\".\"&L$92&\".\"&$S$7,$B$96,$B$97,CONFIGURATION!$B$10,\"BMA\",CONFIGURATION!$B$1,\"bscr\",1000)","v":"Mapped"},{"$f":"XBRLMap(M51,M$90&\".\"&$S$4&\".\"&$S51&\".\"&M$92&\".\"&$S$7,$B$96,$B$97,CONFIGURATION!$B$10,\"BMA\",CONFIGURATION!$B$1,\"bscr\",1000)","v":"Mapped"}]
[null,null,null,null,null,null,{"$f":"XBRLMap(G52,G$90&\".\"&$S$4&\".\"&$S52&\".\"&G$92&\".\"&$S$7,$B$96,$B$97,CONFIGURATION!$B$10,\"BMA\",CONFIGURATION!$B$1,\"bscr\",1000)","v":"Mapped"},{"$f":"XBRLMap(H52,H$90&\".\"&$S$4&\".\"&$S52&\".\"&H$92&\".\"&$S$7,$B$96,$B$97,CONFIGURATION!$B$10,\"BMA\",CONFIGURATION!$B$1,\"bscr\",1000)","v":"Mapped"},{"$f":"XBRLMap(I52,I$90&\".\"&$S$4&\".\"&$S52&\".\"&I$92&\".\"&$S$7,$B$96,$B$97,CONFIGURATION!$B$10,\"BMA\",CONFIGURATION!$B$1,\"bscr\",1000)","v":"Mapped"},{"$f":"XBRLMap(J52,J$90&\".\"&$S$4&\".\"&$S52&\".\"&J$92&\".\"&$S$7,$B$96,$B$97,CONFIGURATION!$B$10,\"BMA\",CONFIGURATION!$B$1,\"bscr\",1000)","v":"Mapped"},{"$f":"XBRLMap(K52,K$90&\".\"&$S$4&\".\"&$S52&\".\"&K$92&\".\"&$S$7,$B$96,$B$97,CONFIGURATION!$B$10,\"BMA\",CONFIGURATION!$B$1,\"bscr\",1000)","v":"Mapped"},{"$f":"XBRLMap(L52,L$90&\".\"&$S$4&\".\"&$S52&\".\"&L$92&\".\"&$S$7,$B$96,$B$97,CONFIGURATION!$B$10,\"BMA\",CONFIGURATION!$B$1,\"bscr\",1000)","v":"Mapped"},{"$f":"XBRLMap(M52,M$90&\".\"&$S$4&\".\"&$S52&\".\"&M$92&\".\"&$S$7,$B$96,$B$97,CONFIGURATION!$B$10,\"BMA\",CONFIGURATION!$B$1,\"bscr\",1000)","v":"Mapped"}]
[null,null,null,null,null,null,null,{"$f":"XBRLMap(H53,H$90&\".\"&$S$4&\".\"&$S53&\".\"&H$92&\".\"&$S$7,$B$96,$B$97,CONFIGURATION!$B$10,\"BMA\",CONFIGURATION!$B$1,\"bscr\",1000)","v":"Mapped"},{"$f":"XBRLMap(I53,I$90&\".\"&$S$4&\".\"&$S53&\".\"&I$92&\".\"&$S$7,$B$96,$B$97,CONFIGURATION!$B$10,\"BMA\",CONFIGURATION!$B$1,\"bscr\",1000)","v":"Mapped"},{"$f":"XBRLMap(J53,J$90&\".\"&$S$4&\".\"&$S53&\".\"&J$92&\".\"&$S$7,$B$96,$B$97,CONFIGURATION!$B$10,\"BMA\",CONFIGURATION!$B$1,\"bscr\",1000)","v":"Mapped"},{"$f":"XBRLMap(K53,K$90&\".\"&$S$4&\".\"&$S53&\".\"&K$92&\".\"&$S$7,$B$96,$B$97,CONFIGURATION!$B$10,\"BMA\",CONFIGURATION!$B$1,\"bscr\",1000)","v":"Mapped"},{"$f":"XBRLMap(L53,L$90&\".\"&$S$4&\".\"&$S53&\".\"&L$92&\".\"&$S$7,$B$96,$B$97,CONFIGURATION!$B$10,\"BMA\",CONFIGURATION!$B$1,\"bscr\",1000)","v":"Mapped"},{"$f":"XBRLMap(M53,M$90&\".\"&$S$4&\".\"&$S53&\".\"&M$92&\".\"&$S$7,$B$96,$B$97,CONFIGURATION!$B$10,\"BMA\",CONFIGURATION!$B$1,\"bscr\",1000)","v":"Mapped"}]
[null,null,null,null,null,null,null,null,{"$f":"XBRLMap(I54,I$90&\".\"&$S$4&\".\"&$S54&\".\"&I$92&\".\"&$S$7,$B$96,$B$97,CONFIGURATION!$B$10,\"BMA\",CONFIGURATION!$B$1,\"bscr\",1000)","v":"Mapped"},{"$f":"XBRLMap(J54,J$90&\".\"&$S$4&\".\"&$S54&\".\"&J$92&\".\"&$S$7,$B$96,$B$97,CONFIGURATION!$B$10,\"BMA\",CONFIGURATION!$B$1,\"bscr\",1000)","v":"Mapped"},{"$f":"XBRLMap(K54,K$90&\".\"&$S$4&\".\"&$S54&\".\"&K$92&\".\"&$S$7,$B$96,$B$97,CONFIGURATION!$B$10,\"BMA\",CONFIGURATION!$B$1,\"bscr\",1000)","v":"Mapped"},{"$f":"XBRLMap(L54,L$90&\".\"&$S$4&\".\"&$S54&\".\"&L$92&\".\"&$S$7,$B$96,$B$97,CONFIGURATION!$B$10,\"BMA\",CONFIGURATION!$B$1,\"bscr\",1000)","v":"Mapped"},{"$f":"XBRLMap(M54,M$90&\".\"&$S$4&\".\"&$S54&\".\"&M$92&\".\"&$S$7,$B$96,$B$97,CONFIGURATION!$B$10,\"BMA\",CONFIGURATION!$B$1,\"bscr\",1000)","v":"Mapped"}]
[null,null,null,null,null,null,null,null,null,{"$f":"XBRLMap(J55,J$90&\".\"&$S$4&\".\"&$S55&\".\"&J$92&\".\"&$S$7,$B$96,$B$97,CONFIGURATION!$B$10,\"BMA\",CONFIGURATION!$B$1,\"bscr\",1000)","v":"Mapped"},{"$f":"XBRLMap(K55,K$90&\".\"&$S$4&\".\"&$S55&\".\"&K$92&\".\"&$S$7,$B$96,$B$97,CONFIGURATION!$B$10,\"BMA\",CONFIGURATION!$B$1,\"bscr\",1000)","v":"Mapped"},{"$f":"XBRLMap(L55,L$90&\".\"&$S$4&\".\"&$S55&\".\"&L$92&\".\"&$S$7,$B$96,$B$97,CONFIGURATION!$B$10,\"BMA\",CONFIGURATION!$B$1,\"bscr\",1000)","v":"Mapped"},{"$f":"XBRLMap(M55,M$90&\".\"&$S$4&\".\"&$S55&\".\"&M$92&\".\"&$S$7,$B$96,$B$97,CONFIGURATION!$B$10,\"BMA\",CONFIGURATION!$B$1,\"bscr\",1000)","v":"Mapped"}]
[null,null,null,null,null,null,null,null,null,null,{"$f":"XBRLMap(K56,K$90&\".\"&$S$4&\".\"&$S56&\".\"&K$92&\".\"&$S$7,$B$96,$B$97,CONFIGURATION!$B$10,\"BMA\",CONFIGURATION!$B$1,\"bscr\",1000)","v":"Mapped"},{"$f":"XBRLMap(L56,L$90&\".\"&$S$4&\".\"&$S56&\".\"&L$92&\".\"&$S$7,$B$96,$B$97,CONFIGURATION!$B$10,\"BMA\",CONFIGURATION!$B$1,\"bscr\",1000)","v":"Mapped"},{"$f":"XBRLMap(M56,M$90&\".\"&$S$4&\".\"&$S56&\".\"&M$92&\".\"&$S$7,$B$96,$B$97,CONFIGURATION!$B$10,\"BMA\",CONFIGURATION!$B$1,\"bscr\",1000)","v":"Mapped"}]
[null,null,null,null,null,null,null,null,null,null,null,{"$f":"XBRLMap(L57,L$90&\".\"&$S$4&\".\"&$S57&\".\"&L$92&\".\"&$S$7,$B$96,$B$97,CONFIGURATION!$B$10,\"BMA\",CONFIGURATION!$B$1,\"bscr\",1000)","v":"Mapped"},{"$f":"XBRLMap(M57,M$90&\".\"&$S$4&\".\"&$S57&\".\"&M$92&\".\"&$S$7,$B$96,$B$97,CONFIGURATION!$B$10,\"BMA\",CONFIGURATION!$B$1,\"bscr\",1000)","v":"Mapped"}]
[]
[]
[]
[]
[]
[]
[]
[]
[]
[]
[null,null,null,null,null,null,{"$f":"XBRLMap(G67,G$91&\".\"&$S$4&\".\"&$S67&\".\"&$S$7,$B$96,$B$97,CONFIGURATION!$B$10,\"BMA\",CONFIGURATION!$B$1,\"bscr\",1000)","v":"Mapped"},{"$f":"XBRLMap(H67,H$91&\".\"&$S$4&\".\"&$S67&\".\"&$S$7,$B$96,$B$97,CONFIGURATION!$B$10,\"BMA\",CONFIGURATION!$B$1,\"bscr\",1000)","v":"Mapped"},null,{"$f":"XBRLMap(J67,J$91&\".\"&$S$4&\".\"&$T67&\".\"&$S$7,$B$96,$B$97,CONFIGURATION!$B$10,\"BMA\",CONFIGURATION!$B$1,\"bscr\",1000)","v":"Mapped"},{"$f":"XBRLMap(K67,K$91&\".\"&$S$4&\".\"&$T67&\".\"&$S$7,$B$96,$B$97,CONFIGURATION!$B$10,\"BMA\",CONFIGURATION!$B$1,\"bscr\",1000)","v":"Mapped"},{"$f":"XBRLMap(L67,L$91&\".\"&$S$4&\".\"&$T67&\".\"&$S$7,$B$96,$B$97,CONFIGURATION!$B$10,\"BMA\",CONFIGURATION!$B$1,\"bscr\",1000)","v":"Mapped"},{"$f":"XBRLMap(M67,M$91&\".\"&$S$4&\".\"&$T67&\".\"&$S$7,$B$96,$B$97,CONFIGURATION!$B$10,\"BMA\",CONFIGURATION!$B$1,\"bscr\",1000)","v":"Mapped"}]
[null,null,{"$f":"XBRLMap(C68,C$91&\".\"&$S$4&\".\"&$S68&\".\"&$S$7,$B$96,$B$97,CONFIGURATION!$B$10,\"BMA\",CONFIGURATION!$B$1,\"bscr\",1000)","v":"Mapped"},{"$f":"XBRLMap(D68,D$91&\".\"&$S$4&\".\"&$S68&\".\"&$S$7,$B$96,$B$97,CONFIGURATION!$B$10,\"BMA\",CONFIGURATION!$B$1,\"bscr\",1000)","v":"Mapped"},{"$f":"XBRLMap(E68,E$91&\".\"&$S$4&\".\"&$S68&\".\"&$S$7,$B$96,$B$97,CONFIGURATION!$B$10,\"BMA\",CONFIGURATION!$B$1,\"bscr\",1000)","v":"Mapped"},{"$f":"XBRLMap(F68,F$91&\".\"&$S$4&\".\"&$S68&\".\"&$S$7,$B$96,$B$97,CONFIGURATION!$B$10,\"BMA\",CONFIGURATION!$B$1,\"bscr\",1000)","v":"Mapped"},{"$f":"XBRLMap(G68,G$91&\".\"&$S$4&\".\"&$S68&\".\"&$S$7,$B$96,$B$97,CONFIGURATION!$B$10,\"BMA\",CONFIGURATION!$B$1,\"bscr\",1000)","v":"Mapped"},{"$f":"XBRLMap(H68,H$91&\".\"&$S$4&\".\"&$S68&\".\"&$S$7,$B$96,$B$97,CONFIGURATION!$B$10,\"BMA\",CONFIGURATION!$B$1,\"bscr\",1000)","v":"Mapped"},null,{"$f":"XBRLMap(J68,J$91&\".\"&$S$4&\".\"&$T68&\".\"&$S$7,$B$96,$B$97,CONFIGURATION!$B$10,\"BMA\",CONFIGURATION!$B$1,\"bscr\",1000)","v":"Mapped"},{"$f":"XBRLMap(K68,K$91&\".\"&$S$4&\".\"&$T68&\".\"&$S$7,$B$96,$B$97,CONFIGURATION!$B$10,\"BMA\",CONFIGURATION!$B$1,\"bscr\",1000)","v":"Mapped"},{"$f":"XBRLMap(L68,L$91&\".\"&$S$4&\".\"&$T68&\".\"&$S$7,$B$96,$B$97,CONFIGURATION!$B$10,\"BMA\",CONFIGURATION!$B$1,\"bscr\",1000)","v":"Mapped"},{"$f":"XBRLMap(M68,M$91&\".\"&$S$4&\".\"&$T68&\".\"&$S$7,$B$96,$B$97,CONFIGURATION!$B$10,\"BMA\",CONFIGURATION!$B$1,\"bscr\",1000)","v":"Mapped"}]
[null,null,{"$f":"XBRLMap(C69,C$91&\".\"&$S$4&\".\"&$S69&\".\"&$S$7,$B$96,$B$97,CONFIGURATION!$B$10,\"BMA\",CONFIGURATION!$B$1,\"bscr\",1000)","v":"Mapped"},{"$f":"XBRLMap(D69,D$91&\".\"&$S$4&\".\"&$S69&\".\"&$S$7,$B$96,$B$97,CONFIGURATION!$B$10,\"BMA\",CONFIGURATION!$B$1,\"bscr\",1000)","v":"Mapped"},{"$f":"XBRLMap(E69,E$91&\".\"&$S$4&\".\"&$S69&\".\"&$S$7,$B$96,$B$97,CONFIGURATION!$B$10,\"BMA\",CONFIGURATION!$B$1,\"bscr\",1000)","v":"Mapped"},{"$f":"XBRLMap(F69,F$91&\".\"&$S$4&\".\"&$S69&\".\"&$S$7,$B$96,$B$97,CONFIGURATION!$B$10,\"BMA\",CONFIGURATION!$B$1,\"bscr\",1000)","v":"Mapped"},{"$f":"XBRLMap(G69,G$91&\".\"&$S$4&\".\"&$S69&\".\"&$S$7,$B$96,$B$97,CONFIGURATION!$B$10,\"BMA\",CONFIGURATION!$B$1,\"bscr\",1000)","v":"Mapped"},{"$f":"XBRLMap(H69,H$91&\".\"&$S$4&\".\"&$S69&\".\"&$S$7,$B$96,$B$97,CONFIGURATION!$B$10,\"BMA\",CONFIGURATION!$B$1,\"bscr\",1000)","v":"Mapped"},null,{"$f":"XBRLMap(J69,J$91&\".\"&$S$4&\".\"&$T69&\".\"&$S$7,$B$96,$B$97,CONFIGURATION!$B$10,\"BMA\",CONFIGURATION!$B$1,\"bscr\",1000)","v":"Mapped"},{"$f":"XBRLMap(K69,K$91&\".\"&$S$4&\".\"&$T69&\".\"&$S$7,$B$96,$B$97,CONFIGURATION!$B$10,\"BMA\",CONFIGURATION!$B$1,\"bscr\",1000)","v":"Mapped"},{"$f":"XBRLMap(L69,L$91&\".\"&$S$4&\".\"&$T69&\".\"&$S$7,$B$96,$B$97,CONFIGURATION!$B$10,\"BMA\",CONFIGURATION!$B$1,\"bscr\",1000)","v":"Mapped"},{"$f":"XBRLMap(M69,M$91&\".\"&$S$4&\".\"&$T69&\".\"&$S$7,$B$96,$B$97,CONFIGURATION!$B$10,\"BMA\",CONFIGURATION!$B$1,\"bscr\",1000)","v":"Mapped"}]
[null,null,{"$f":"XBRLMap(C70,C$91&\".\"&$S$4&\".\"&$S70&\".\"&$S$7,$B$96,$B$97,CONFIGURATION!$B$10,\"BMA\",CONFIGURATION!$B$1,\"bscr\",1000)","v":"Mapped"},{"$f":"XBRLMap(D70,D$91&\".\"&$S$4&\".\"&$S70&\".\"&$S$7,$B$96,$B$97,CONFIGURATION!$B$10,\"BMA\",CONFIGURATION!$B$1,\"bscr\",1000)","v":"Mapped"},{"$f":"XBRLMap(E70,E$91&\".\"&$S$4&\".\"&$S70&\".\"&$S$7,$B$96,$B$97,CONFIGURATION!$B$10,\"BMA\",CONFIGURATION!$B$1,\"bscr\",1000)","v":"Mapped"},{"$f":"XBRLMap(F70,F$91&\".\"&$S$4&\".\"&$S70&\".\"&$S$7,$B$96,$B$97,CONFIGURATION!$B$10,\"BMA\",CONFIGURATION!$B$1,\"bscr\",1000)","v":"Mapped"},{"$f":"XBRLMap(G70,G$91&\".\"&$S$4&\".\"&$S70&\".\"&$S$7,$B$96,$B$97,CONFIGURATION!$B$10,\"BMA\",CONFIGURATION!$B$1,\"bscr\",1000)","v":"Mapped"},{"$f":"XBRLMap(H70,H$91&\".\"&$S$4&\".\"&$S70&\".\"&$S$7,$B$96,$B$97,CONFIGURATION!$B$10,\"BMA\",CONFIGURATION!$B$1,\"bscr\",1000)","v":"Mapped"},null,{"$f":"XBRLMap(J70,J$91&\".\"&$S$4&\".\"&$T70&\".\"&$S$7,$B$96,$B$97,CONFIGURATION!$B$10,\"BMA\",CONFIGURATION!$B$1,\"bscr\",1000)","v":"Mapped"},{"$f":"XBRLMap(K70,K$91&\".\"&$S$4&\".\"&$T70&\".\"&$S$7,$B$96,$B$97,CONFIGURATION!$B$10,\"BMA\",CONFIGURATION!$B$1,\"bscr\",1000)","v":"Mapped"},{"$f":"XBRLMap(L70,L$91&\".\"&$S$4&\".\"&$T70&\".\"&$S$7,$B$96,$B$97,CONFIGURATION!$B$10,\"BMA\",CONFIGURATION!$B$1,\"bscr\",1000)","v":"Mapped"},{"$f":"XBRLMap(M70,M$91&\".\"&$S$4&\".\"&$T70&\".\"&$S$7,$B$96,$B$97,CONFIGURATION!$B$10,\"BMA\",CONFIGURATION!$B$1,\"bscr\",1000)","v":"Mapped"}]
[null,null,{"$f":"XBRLMap(C71,C$91&\".\"&$S$4&\".\"&$S71&\".\"&$S$7,$B$96,$B$97,CONFIGURATION!$B$10,\"BMA\",CONFIGURATION!$B$1,\"bscr\",1000)","v":"Mapped"},{"$f":"XBRLMap(D71,D$91&\".\"&$S$4&\".\"&$S71&\".\"&$S$7,$B$96,$B$97,CONFIGURATION!$B$10,\"BMA\",CONFIGURATION!$B$1,\"bscr\",1000)","v":"Mapped"},{"$f":"XBRLMap(E71,E$91&\".\"&$S$4&\".\"&$S71&\".\"&$S$7,$B$96,$B$97,CONFIGURATION!$B$10,\"BMA\",CONFIGURATION!$B$1,\"bscr\",1000)","v":"Mapped"},{"$f":"XBRLMap(F71,F$91&\".\"&$S$4&\".\"&$S71&\".\"&$S$7,$B$96,$B$97,CONFIGURATION!$B$10,\"BMA\",CONFIGURATION!$B$1,\"bscr\",1000)","v":"Mapped"},{"$f":"XBRLMap(G71,G$91&\".\"&$S$4&\".\"&$S71&\".\"&$S$7,$B$96,$B$97,CONFIGURATION!$B$10,\"BMA\",CONFIGURATION!$B$1,\"bscr\",1000)","v":"Mapped"},{"$f":"XBRLMap(H71,H$91&\".\"&$S$4&\".\"&$S71&\".\"&$S$7,$B$96,$B$97,CONFIGURATION!$B$10,\"BMA\",CONFIGURATION!$B$1,\"bscr\",1000)","v":"Mapped"},null,{"$f":"XBRLMap(J71,J$91&\".\"&$S$4&\".\"&$T71&\".\"&$S$7,$B$96,$B$97,CONFIGURATION!$B$10,\"BMA\",CONFIGURATION!$B$1,\"bscr\",1000)","v":"Mapped"},{"$f":"XBRLMap(K71,K$91&\".\"&$S$4&\".\"&$T71&\".\"&$S$7,$B$96,$B$97,CONFIGURATION!$B$10,\"BMA\",CONFIGURATION!$B$1,\"bscr\",1000)","v":"Mapped"},{"$f":"XBRLMap(L71,L$91&\".\"&$S$4&\".\"&$T71&\".\"&$S$7,$B$96,$B$97,CONFIGURATION!$B$10,\"BMA\",CONFIGURATION!$B$1,\"bscr\",1000)","v":"Mapped"},{"$f":"XBRLMap(M71,M$91&\".\"&$S$4&\".\"&$T71&\".\"&$S$7,$B$96,$B$97,CONFIGURATION!$B$10,\"BMA\",CONFIGURATION!$B$1,\"bscr\",1000)","v":"Mapped"}]
[null,null,{"$f":"XBRLMap(C72,C$91&\".\"&$S$4&\".\"&$S72&\".\"&$S$7,$B$96,$B$97,CONFIGURATION!$B$10,\"BMA\",CONFIGURATION!$B$1,\"bscr\",1000)","v":"Mapped"},{"$f":"XBRLMap(D72,D$91&\".\"&$S$4&\".\"&$S72&\".\"&$S$7,$B$96,$B$97,CONFIGURATION!$B$10,\"BMA\",CONFIGURATION!$B$1,\"bscr\",1000)","v":"Mapped"},{"$f":"XBRLMap(E72,E$91&\".\"&$S$4&\".\"&$S72&\".\"&$S$7,$B$96,$B$97,CONFIGURATION!$B$10,\"BMA\",CONFIGURATION!$B$1,\"bscr\",1000)","v":"Mapped"},{"$f":"XBRLMap(F72,F$91&\".\"&$S$4&\".\"&$S72&\".\"&$S$7,$B$96,$B$97,CONFIGURATION!$B$10,\"BMA\",CONFIGURATION!$B$1,\"bscr\",1000)","v":"Mapped"},{"$f":"XBRLMap(G72,G$91&\".\"&$S$4&\".\"&$S72&\".\"&$S$7,$B$96,$B$97,CONFIGURATION!$B$10,\"BMA\",CONFIGURATION!$B$1,\"bscr\",1000)","v":"Mapped"},{"$f":"XBRLMap(H72,H$91&\".\"&$S$4&\".\"&$S72&\".\"&$S$7,$B$96,$B$97,CONFIGURATION!$B$10,\"BMA\",CONFIGURATION!$B$1,\"bscr\",1000)","v":"Mapped"},null,{"$f":"XBRLMap(J72,J$91&\".\"&$S$4&\".\"&$T72&\".\"&$S$7,$B$96,$B$97,CONFIGURATION!$B$10,\"BMA\",CONFIGURATION!$B$1,\"bscr\",1000)","v":"Mapped"},{"$f":"XBRLMap(K72,K$91&\".\"&$S$4&\".\"&$T72&\".\"&$S$7,$B$96,$B$97,CONFIGURATION!$B$10,\"BMA\",CONFIGURATION!$B$1,\"bscr\",1000)","v":"Mapped"},{"$f":"XBRLMap(L72,L$91&\".\"&$S$4&\".\"&$T72&\".\"&$S$7,$B$96,$B$97,CONFIGURATION!$B$10,\"BMA\",CONFIGURATION!$B$1,\"bscr\",1000)","v":"Mapped"},{"$f":"XBRLMap(M72,M$91&\".\"&$S$4&\".\"&$T72&\".\"&$S$7,$B$96,$B$97,CONFIGURATION!$B$10,\"BMA\",CONFIGURATION!$B$1,\"bscr\",1000)","v":"Mapped"}]
[null,null,{"$f":"XBRLMap(C73,C$91&\".\"&$S$4&\".\"&$S73&\".\"&$S$7,$B$96,$B$97,CONFIGURATION!$B$10,\"BMA\",CONFIGURATION!$B$1,\"bscr\",1000)","v":"Mapped"},{"$f":"XBRLMap(D73,D$91&\".\"&$S$4&\".\"&$S73&\".\"&$S$7,$B$96,$B$97,CONFIGURATION!$B$10,\"BMA\",CONFIGURATION!$B$1,\"bscr\",1000)","v":"Mapped"},{"$f":"XBRLMap(E73,E$91&\".\"&$S$4&\".\"&$S73&\".\"&$S$7,$B$96,$B$97,CONFIGURATION!$B$10,\"BMA\",CONFIGURATION!$B$1,\"bscr\",1000)","v":"Mapped"},{"$f":"XBRLMap(F73,F$91&\".\"&$S$4&\".\"&$S73&\".\"&$S$7,$B$96,$B$97,CONFIGURATION!$B$10,\"BMA\",CONFIGURATION!$B$1,\"bscr\",1000)","v":"Mapped"},{"$f":"XBRLMap(G73,G$91&\".\"&$S$4&\".\"&$S73&\".\"&$S$7,$B$96,$B$97,CONFIGURATION!$B$10,\"BMA\",CONFIGURATION!$B$1,\"bscr\",1000)","v":"Mapped"},{"$f":"XBRLMap(H73,H$91&\".\"&$S$4&\".\"&$S73&\".\"&$S$7,$B$96,$B$97,CONFIGURATION!$B$10,\"BMA\",CONFIGURATION!$B$1,\"bscr\",1000)","v":"Mapped"},null,{"$f":"XBRLMap(J73,J$91&\".\"&$S$4&\".\"&$T73&\".\"&$S$7,$B$96,$B$97,CONFIGURATION!$B$10,\"BMA\",CONFIGURATION!$B$1,\"bscr\",1000)","v":"Mapped"},{"$f":"XBRLMap(K73,K$91&\".\"&$S$4&\".\"&$T73&\".\"&$S$7,$B$96,$B$97,CONFIGURATION!$B$10,\"BMA\",CONFIGURATION!$B$1,\"bscr\",1000)","v":"Mapped"},{"$f":"XBRLMap(L73,L$91&\".\"&$S$4&\".\"&$T73&\".\"&$S$7,$B$96,$B$97,CONFIGURATION!$B$10,\"BMA\",CONFIGURATION!$B$1,\"bscr\",1000)","v":"Mapped"},{"$f":"XBRLMap(M73,M$91&\".\"&$S$4&\".\"&$T73&\".\"&$S$7,$B$96,$B$97,CONFIGURATION!$B$10,\"BMA\",CONFIGURATION!$B$1,\"bscr\",1000)","v":"Mapped"}]
[null,null,{"$f":"XBRLMap(C74,C$91&\".\"&$S$4&\".\"&$S74&\".\"&$S$7,$B$96,$B$97,CONFIGURATION!$B$10,\"BMA\",CONFIGURATION!$B$1,\"bscr\",1000)","v":"Mapped"},{"$f":"XBRLMap(D74,D$91&\".\"&$S$4&\".\"&$S74&\".\"&$S$7,$B$96,$B$97,CONFIGURATION!$B$10,\"BMA\",CONFIGURATION!$B$1,\"bscr\",1000)","v":"Mapped"},{"$f":"XBRLMap(E74,E$91&\".\"&$S$4&\".\"&$S74&\".\"&$S$7,$B$96,$B$97,CONFIGURATION!$B$10,\"BMA\",CONFIGURATION!$B$1,\"bscr\",1000)","v":"Mapped"},{"$f":"XBRLMap(F74,F$91&\".\"&$S$4&\".\"&$S74&\".\"&$S$7,$B$96,$B$97,CONFIGURATION!$B$10,\"BMA\",CONFIGURATION!$B$1,\"bscr\",1000)","v":"Mapped"},{"$f":"XBRLMap(G74,G$91&\".\"&$S$4&\".\"&$S74&\".\"&$S$7,$B$96,$B$97,CONFIGURATION!$B$10,\"BMA\",CONFIGURATION!$B$1,\"bscr\",1000)","v":"Mapped"},{"$f":"XBRLMap(H74,H$91&\".\"&$S$4&\".\"&$S74&\".\"&$S$7,$B$96,$B$97,CONFIGURATION!$B$10,\"BMA\",CONFIGURATION!$B$1,\"bscr\",1000)","v":"Mapped"},null,{"$f":"XBRLMap(J74,J$91&\".\"&$S$4&\".\"&$T74&\".\"&$S$7,$B$96,$B$97,CONFIGURATION!$B$10,\"BMA\",CONFIGURATION!$B$1,\"bscr\",1000)","v":"Mapped"},{"$f":"XBRLMap(K74,K$91&\".\"&$S$4&\".\"&$T74&\".\"&$S$7,$B$96,$B$97,CONFIGURATION!$B$10,\"BMA\",CONFIGURATION!$B$1,\"bscr\",1000)","v":"Mapped"},{"$f":"XBRLMap(L74,L$91&\".\"&$S$4&\".\"&$T74&\".\"&$S$7,$B$96,$B$97,CONFIGURATION!$B$10,\"BMA\",CONFIGURATION!$B$1,\"bscr\",1000)","v":"Mapped"},{"$f":"XBRLMap(M74,M$91&\".\"&$S$4&\".\"&$T74&\".\"&$S$7,$B$96,$B$97,CONFIGURATION!$B$10,\"BMA\",CONFIGURATION!$B$1,\"bscr\",1000)","v":"Mapped"}]
[null,null,{"$f":"XBRLMap(C75,C$91&\".\"&$S$4&\".\"&$S75&\".\"&$S$7,$B$96,$B$97,CONFIGURATION!$B$10,\"BMA\",CONFIGURATION!$B$1,\"bscr\",1000)","v":"Mapped"},{"$f":"XBRLMap(D75,D$91&\".\"&$S$4&\".\"&$S75&\".\"&$S$7,$B$96,$B$97,CONFIGURATION!$B$10,\"BMA\",CONFIGURATION!$B$1,\"bscr\",1000)","v":"Mapped"},{"$f":"XBRLMap(E75,E$91&\".\"&$S$4&\".\"&$S75&\".\"&$S$7,$B$96,$B$97,CONFIGURATION!$B$10,\"BMA\",CONFIGURATION!$B$1,\"bscr\",1000)","v":"Mapped"},{"$f":"XBRLMap(F75,F$91&\".\"&$S$4&\".\"&$S75&\".\"&$S$7,$B$96,$B$97,CONFIGURATION!$B$10,\"BMA\",CONFIGURATION!$B$1,\"bscr\",1000)","v":"Mapped"},{"$f":"XBRLMap(G75,G$91&\".\"&$S$4&\".\"&$S75&\".\"&$S$7,$B$96,$B$97,CONFIGURATION!$B$10,\"BMA\",CONFIGURATION!$B$1,\"bscr\",1000)","v":"Mapped"},{"$f":"XBRLMap(H75,H$91&\".\"&$S$4&\".\"&$S75&\".\"&$S$7,$B$96,$B$97,CONFIGURATION!$B$10,\"BMA\",CONFIGURATION!$B$1,\"bscr\",1000)","v":"Mapped"},null,{"$f":"XBRLMap(J75,J$91&\".\"&$S$4&\".\"&$T75&\".\"&$S$7,$B$96,$B$97,CONFIGURATION!$B$10,\"BMA\",CONFIGURATION!$B$1,\"bscr\",1000)","v":"Mapped"},{"$f":"XBRLMap(K75,K$91&\".\"&$S$4&\".\"&$T75&\".\"&$S$7,$B$96,$B$97,CONFIGURATION!$B$10,\"BMA\",CONFIGURATION!$B$1,\"bscr\",1000)","v":"Mapped"},{"$f":"XBRLMap(L75,L$91&\".\"&$S$4&\".\"&$T75&\".\"&$S$7,$B$96,$B$97,CONFIGURATION!$B$10,\"BMA\",CONFIGURATION!$B$1,\"bscr\",1000)","v":"Mapped"},{"$f":"XBRLMap(M75,M$91&\".\"&$S$4&\".\"&$T75&\".\"&$S$7,$B$96,$B$97,CONFIGURATION!$B$10,\"BMA\",CONFIGURATION!$B$1,\"bscr\",1000)","v":"Mapped"}]
[null,null,{"$f":"XBRLMap(C76,C$91&\".\"&$S$4&\".\"&$S76&\".\"&$S$7,$B$96,$B$97,CONFIGURATION!$B$10,\"BMA\",CONFIGURATION!$B$1,\"bscr\",1000)","v":"Mapped"},{"$f":"XBRLMap(D76,D$91&\".\"&$S$4&\".\"&$S76&\".\"&$S$7,$B$96,$B$97,CONFIGURATION!$B$10,\"BMA\",CONFIGURATION!$B$1,\"bscr\",1000)","v":"Mapped"},{"$f":"XBRLMap(E76,E$91&\".\"&$S$4&\".\"&$S76&\".\"&$S$7,$B$96,$B$97,CONFIGURATION!$B$10,\"BMA\",CONFIGURATION!$B$1,\"bscr\",1000)","v":"Mapped"},{"$f":"XBRLMap(F76,F$91&\".\"&$S$4&\".\"&$S76&\".\"&$S$7,$B$96,$B$97,CONFIGURATION!$B$10,\"BMA\",CONFIGURATION!$B$1,\"bscr\",1000)","v":"Mapped"},{"$f":"XBRLMap(G76,G$91&\".\"&$S$4&\".\"&$S76&\".\"&$S$7,$B$96,$B$97,CONFIGURATION!$B$10,\"BMA\",CONFIGURATION!$B$1,\"bscr\",1000)","v":"Mapped"},{"$f":"XBRLMap(H76,H$91&\".\"&$S$4&\".\"&$S76&\".\"&$S$7,$B$96,$B$97,CONFIGURATION!$B$10,\"BMA\",CONFIGURATION!$B$1,\"bscr\",1000)","v":"Mapped"},null,{"$f":"XBRLMap(J76,J$91&\".\"&$S$4&\".\"&$T76&\".\"&$S$7,$B$96,$B$97,CONFIGURATION!$B$10,\"BMA\",CONFIGURATION!$B$1,\"bscr\",1000)","v":"Mapped"},{"$f":"XBRLMap(K76,K$91&\".\"&$S$4&\".\"&$T76&\".\"&$S$7,$B$96,$B$97,CONFIGURATION!$B$10,\"BMA\",CONFIGURATION!$B$1,\"bscr\",1000)","v":"Mapped"},{"$f":"XBRLMap(L76,L$91&\".\"&$S$4&\".\"&$T76&\".\"&$S$7,$B$96,$B$97,CONFIGURATION!$B$10,\"BMA\",CONFIGURATION!$B$1,\"bscr\",1000)","v":"Mapped"},{"$f":"XBRLMap(M76,M$91&\".\"&$S$4&\".\"&$T76&\".\"&$S$7,$B$96,$B$97,CONFIGURATION!$B$10,\"BMA\",CONFIGURATION!$B$1,\"bscr\",1000)","v":"Mapped"}]
[null,null,{"$f":"XBRLMap(C77,C$91&\".\"&$S$4&\".\"&$S77&\".\"&$S$7,$B$96,$B$97,CONFIGURATION!$B$10,\"BMA\",CONFIGURATION!$B$1,\"bscr\",1000)","v":"Mapped"},{"$f":"XBRLMap(D77,D$91&\".\"&$S$4&\".\"&$S77&\".\"&$S$7,$B$96,$B$97,CONFIGURATION!$B$10,\"BMA\",CONFIGURATION!$B$1,\"bscr\",1000)","v":"Mapped"},{"$f":"XBRLMap(E77,E$91&\".\"&$S$4&\".\"&$S77&\".\"&$S$7,$B$96,$B$97,CONFIGURATION!$B$10,\"BMA\",CONFIGURATION!$B$1,\"bscr\",1000)","v":"Mapped"},{"$f":"XBRLMap(F77,F$91&\".\"&$S$4&\".\"&$S77&\".\"&$S$7,$B$96,$B$97,CONFIGURATION!$B$10,\"BMA\",CONFIGURATION!$B$1,\"bscr\",1000)","v":"Mapped"},{"$f":"XBRLMap(G77,G$91&\".\"&$S$4&\".\"&$S77&\".\"&$S$7,$B$96,$B$97,CONFIGURATION!$B$10,\"BMA\",CONFIGURATION!$B$1,\"bscr\",1000)","v":"Mapped"},{"$f":"XBRLMap(H77,H$91&\".\"&$S$4&\".\"&$S77&\".\"&$S$7,$B$96,$B$97,CONFIGURATION!$B$10,\"BMA\",CONFIGURATION!$B$1,\"bscr\",1000)","v":"Mapped"},null,{"$f":"XBRLMap(J77,J$91&\".\"&$S$4&\".\"&$T77&\".\"&$S$7,$B$96,$B$97,CONFIGURATION!$B$10,\"BMA\",CONFIGURATION!$B$1,\"bscr\",1000)","v":"Mapped"},{"$f":"XBRLMap(K77,K$91&\".\"&$S$4&\".\"&$T77&\".\"&$S$7,$B$96,$B$97,CONFIGURATION!$B$10,\"BMA\",CONFIGURATION!$B$1,\"bscr\",1000)","v":"Mapped"},{"$f":"XBRLMap(L77,L$91&\".\"&$S$4&\".\"&$T77&\".\"&$S$7,$B$96,$B$97,CONFIGURATION!$B$10,\"BMA\",CONFIGURATION!$B$1,\"bscr\",1000)","v":"Mapped"},{"$f":"XBRLMap(M77,M$91&\".\"&$S$4&\".\"&$T77&\".\"&$S$7,$B$96,$B$97,CONFIGURATION!$B$10,\"BMA\",CONFIGURATION!$B$1,\"bscr\",1000)","v":"Mapped"}]
[null,null,null,null,null,null,{"$f":"XBRLMap(G78,G$91&\".\"&$S$4&\".\"&$S78&\".\"&$S$7,$B$96,$B$97,CONFIGURATION!$B$10,\"BMA\",CONFIGURATION!$B$1,\"bscr\",1000)","v":"Mapped"},{"$f":"XBRLMap(H78,H$91&\".\"&$S$4&\".\"&$S78&\".\"&$S$7,$B$96,$B$97,CONFIGURATION!$B$10,\"BMA\",CONFIGURATION!$B$1,\"bscr\",1000)","v":"Mapped"},null,{"$f":"XBRLMap(J78,J$91&\".\"&$S$4&\".\"&$T78&\".\"&$S$7,$B$96,$B$97,CONFIGURATION!$B$10,\"BMA\",CONFIGURATION!$B$1,\"bscr\",1000)","v":"Mapped"},{"$f":"XBRLMap(K78,K$91&\".\"&$S$4&\".\"&$T78&\".\"&$S$7,$B$96,$B$97,CONFIGURATION!$B$10,\"BMA\",CONFIGURATION!$B$1,\"bscr\",1000)","v":"Mapped"},{"$f":"XBRLMap(L78,L$91&\".\"&$S$4&\".\"&$T78&\".\"&$S$7,$B$96,$B$97,CONFIGURATION!$B$10,\"BMA\",CONFIGURATION!$B$1,\"bscr\",1000)","v":"Mapped"},{"$f":"XBRLMap(M78,M$91&\".\"&$S$4&\".\"&$T78&\".\"&$S$7,$B$96,$B$97,CONFIGURATION!$B$10,\"BMA\",CONFIGURATION!$B$1,\"bscr\",1000)","v":"Mapped"}]

{"sheet":"Sch XI(a)(i)","index":64,"n_rows":300,"n_cols":49,"rows_kept":300,"cut":false,"hidden":false,"merged":[[80,1,82,12],[5,2,5,11],[23,2,23,11],[41,2,41,11],[0,13,0,14],[2,13,2,14],[2,1,2,2],[59,6,59,7],[60,6,60,7]]}
[null,"SCHEDULE OF LOSS TRIANGLES (LINE 1 - PROPERTY CATASTROPHE)",null,null,null,null,null,null,null,null,null,null,null,{"$f":"HYPERLINK(\"#'Index'!A1\",\"Return to Index\")","v":"Return to Index"}]
[null,{"$f":"'Company Information'!C7","v":"Enter Company Name"},null,null,null,null,null,null,null,null,null,null,null,null,null,null,null,null,null,null,null,null,null,null,null,null,null,null,null,null,null,null,null,null,null,null,"bma_Line1PropertyCatastropheMember"]
[null,{"$f":"'Company Information'!C3","v":"2019-12-31"},null,null,null,null,null,null,null,null,null,null,null,"SCHEDULE XI(a)(i)"]
[null,{"$f":"\"expressed in\"& IF(1000>1,\" ['\"&MID(1000,2,LEN(1000))&\"s]\",\"\")&\" \"&'Form 1EBS'!$C$4","v":"expressed in ['000s] United States Dollars"},null,null,null,null,null,null,null,null,null,null,null,null,null,null,null,null,null,null,"brrt_LineOfBusinessAxis_brrt_PropertyCatastropheMember"]
[null,null,null,null,null,null,null,null,null,null,null,null,null,null,null,null,null,null,null,null,{"$f":"IF(B7=\"Accident Year\",\"brrt_AccountingBasisAxis_brrt_AccidentYearMember\",\"brrt_AccountingBasisAxis_brrt_AccountingYearMember\")","v":"brrt_AccountingBasisAxis_brrt_AccidentYearMember"}]
[null,"Accounting Basis: ","INCURRED (ESTIMATED ULTIMATE) NET LOSSES AND ALLOCATED LOSS ADJUSTMENT EXPENSES REPORTED AT YEAR END ($000)",null,null,null,null,null,null,null,null,null,11,12,13,null,"AcctBasis",{"$f":"B7","v":"Accident Year"}]
[null,"Accident Year",null,null,null,null,null,null,null,null,null,null,"Ultimate","Development","Development",null,{"$f":"\"UltCY\"&C$10&\"AY\"&B11","v":"UltCY2010AYPrior"},{"$f":"C11","v":0},{"$f":"\"CATUltCY\"&L$10&\"AY\"&B11","v":"CATUltCY2019AYPrior"},{"$f":"M11","v":0},"brrt_TypeOfContractAxis_brrt_ProportionalMember",null,null,null,null,null,null,null,null,null,null,null,null,null,null,null,"bma_AcctBasis"]
[null,"Years in Which",1,2,3,4,5,6,7,8,9,10,"Catastrophe",null,null,null,{"$f":"\"UltCY\"&C$10&\"AY\"&B12","v":"UltCY2010AY2010"},{"$f":"C12","v":0},"CATUltCY2019AY2010",0]
[null,"Losses Were",null,null,null,null,null,null,null,null,null,null,"Losses","One Year","Two Year",null,{"$f":"\"UltCY\"&D$10&\"AY\"&B11","v":"UltCY2011AYPrior"},{"$f":"D11","v":0},"CATUltCY2019AY2011",0]
[null,"Incurred",{"$f":"D10-1","v":2010},2011,2012,2013,2014,2015,2016,2017,2018,{"$f":"YEAR('Company Information'!C3)","v":2019},{"$f":"L10","v":2019},"Development","Development",null,{"$f":"\"UltCY\"&D$10&\"AY\"&B12","v":"UltCY2011AY2010"},{"$f":"D12","v":0},"CATUltCY2019AY2012",0]
["L1","Prior",{"$f":"Import!I7322","v":0},{"$f":"Import!I7324","v":0},{"$f":"Import!I7327","v":0},{"$f":"Import!I7331","v":0},{"$f":"Import!I7336","v":0},{"$f":"Import!I7342","v":0},{"$f":"Import!I7349","v":0},{"$f":"Import!I7357","v":0},{"$f":"Import!I7366","v":0},{"$f":"Import!I7376","v":0},{"$f":"Import!I7387","v":0},{"$f":"K11-L11","v":0},{"$f":"J11-L11","v":0},null,{"$f":"\"UltCY\"&D$10&\"AY\"&B13","v":"UltCY2011AY2011"},{"$f":"D13","v":0},"CATUltCY2019AY2013",0,"brrt_LossIncurredYearAxis_brrt_PriorMember",null,null,null,null,null,null,null,null,null,null,null,null,null,null,null,{"$f":"\"bma_\"&\"UltCY\"&Q$10&\"AY\"&$B11","v":"bma_UltCYUltCY2011AY2010AYPrior"},"bma_UltCY0AYPrior","bma_UltCYCATUltCY2019AY2012AYPrior",{"$f":"\"bma_\"&\"UltCY\"&T$10&\"AY\"&$B11","v":"bma_UltCY0AYPrior"},{"$f":"\"bma_\"&\"UltCY\"&U$10&\"AY\"&$B11","v":"bma_UltCYAYPrior"},{"$f":"\"bma_\"&\"UltCY\"&V$10&\"AY\"&$B11","v":"bma_UltCYAYPrior"},{"$f":"\"bma_\"&\"UltCY\"&W$10&\"AY\"&$B11","v":"bma_UltCYAYPrior"},{"$f":"\"bma_\"&\"UltCY\"&X$10&\"AY\"&$B11","v":"bma_UltCYAYPrior"},{"$f":"\"bma_\"&\"UltCY\"&Y$10&\"AY\"&$B11","v":"bma_UltCYAYPrior"},{"$f":"\"bma_\"&\"UltCY\"&Z$10&\"AY\"&$B11","v":"bma_UltCYAYPrior"},{"$f":"\"bma_\"&\"CATUltCY\"&Z$10&\"AY\"&$B11","v":"bma_CATUltCYAYPrior"},{"$f":"\"bma_\"&\"UltCY\"&\"OneYearDevelopment\"&\"AY\"&$B11","v":"bma_UltCYOneYearDevelopmentAYPrior"},{"$f":"\"bma_\"&\"UltCY\"&\"TwoYearDevelopment\"&\"AY\"&$B11","v":"bma_UltCYTwoYearDevelopmentAYPrior"}]
["L2",{"$f":"B13-1","v":2010},{"$f":"Import!I7323","v":0},{"$f":"Import!I7325","v":0},{"$f":"Import!I7328","v":0},{"$f":"Import!I7332","v":0},{"$f":"Import!I7337","v":0},{"$f":"Import!I7343","v":0},{"$f":"Import!I7350","v":0},{"$f":"Import!I7358","v":0},{"$f":"Import!I7367","v":0},{"$f":"Import!I7377","v":0},{"$f":"Import!I7388","v":0},0,0,null,{"$f":"\"UltCY\"&E$10&\"AY\"&B11","v":"UltCY2012AYPrior"},{"$f":"E11","v":0},"CATUltCY2019AY2014",0,"brrt_LossIncurredYearAxis_brrt_XNMinus9Member",null,null,null,null,null,null,null,null,null,null,null,null,null,null,null,"bma_UltCYUltCY2011AY2010AY2010","bma_UltCY0AY2010","bma_UltCYCATUltCY2019AY2012AY2010",{"$f":"\"bma_\"&\"UltCY\"&T$10&\"AY\"&$B12","v":"bma_UltCY0AY2010"},"bma_UltCYAY2010","bma_UltCYAY2010","bma_UltCYAY2010","bma_UltCYAY2010","bma_UltCYAY2010","bma_UltCYAY2010",{"$f":"\"bma_\"&\"CATUltCY\"&Z$10&\"AY\"&$B12","v":"bma_CATUltCYAY2010"},{"$f":"\"bma_\"&\"UltCY\"&\"OneYearDevelopment\"&\"AY\"&$B12","v":"bma_UltCYOneYearDevelopmentAY2010"},{"$f":"\"bma_\"&\"UltCY\"&\"TwoYearDevelopment\"&\"AY\"&$B12","v":"bma_UltCYTwoYearDevelopmentAY2010"}]
["L3",2011,"XXX",{"$f":"Import!I7326","v":0},{"$f":"Import!I7329","v":0},{"$f":"Import!I7333","v":0},{"$f":"Import!I7338","v":0},{"$f":"Import!I7344","v":0},{"$f":"Import!I7351","v":0},{"$f":"Import!I7359","v":0},{"$f":"Import!I7368","v":0},{"$f":"Import!I7378","v":0},{"$f":"Import!I7389","v":0},0,0,null,{"$f":"\"UltCY\"&E$10&\"AY\"&B12","v":"UltCY2012AY2010"},{"$f":"E12","v":0},"CATUltCY2019AY2015",0,"brrt_LossIncurredYearAxis_brrt_XNMinus8Member",null,null,null,null,null,null,null,null,null,null,null,null,null,null,null,null,{"$f":"\"bma_\"&\"UltCY\"&R$10&\"AY\"&$B13","v":"bma_UltCY0AY2011"},{"$f":"\"bma_\"&\"UltCY\"&S$10&\"AY\"&$B13","v":"bma_UltCYCATUltCY2019AY2012AY2011"},{"$f":"\"bma_\"&\"UltCY\"&T$10&\"AY\"&$B13","v":"bma_UltCY0AY2011"},"bma_UltCYAY2011","bma_UltCYAY2011","bma_UltCYAY2011","bma_UltCYAY2011","bma_UltCYAY2011","bma_UltCYAY2011","bma_CATUltCYAY2011","bma_UltCYOneYearDevelopmentAY2011","bma_UltCYTwoYearDevelopmentAY2011"]
["L4",2012,"XXX","XXX",{"$f":"Import!I7330","v":0},{"$f":"Import!I7334","v":0},{"$f":"Import!I7339","v":0},{"$f":"Import!I7345","v":0},{"$f":"Import!I7352","v":0},{"$f":"Import!I7360","v":0},{"$f":"Import!I7369","v":0},{"$f":"Import!I7379","v":0},{"$f":"Import!I7390","v":0},0,0,null,{"$f":"\"UltCY\"&E$10&\"AY\"&B13","v":"UltCY2012AY2011"},{"$f":"E13","v":0},"CATUltCY2019AY2016",0,"brrt_LossIncurredYearAxis_brrt_XNMinus7Member",null,null,null,null,null,null,null,null,null,null,null,null,null,null,null,null,null,{"$f":"\"bma_\"&\"UltCY\"&S$10&\"AY\"&$B14","v":"bma_UltCYCATUltCY2019AY2012AY2012"},{"$f":"\"bma_\"&\"UltCY\"&T$10&\"AY\"&$B14","v":"bma_UltCY0AY2012"},"bma_UltCYAY2012","bma_UltCYAY2012","bma_UltCYAY2012","bma_UltCYAY2012","bma_UltCYAY2012","bma_UltCYAY2012","bma_CATUltCYAY2012","bma_UltCYOneYearDevelopmentAY2012","bma_UltCYTwoYearDevelopmentAY2012"]
["L5",2013,"XXX","XXX","XXX",{"$f":"Import!I7335","v":0},{"$f":"Import!I7340","v":0},{"$f":"Import!I7346","v":0},{"$f":"Import!I7353","v":0},{"$f":"Import!I7361","v":0},{"$f":"Import!I7370","v":0},{"$f":"Import!I7380","v":0},{"$f":"Import!I7391","v":0},0,0,null,{"$f":"\"UltCY\"&E$10&\"AY\"&B14","v":"UltCY2012AY2012"},{"$f":"E14","v":0},"CATUltCY2019AY2017",0,"brrt_LossIncurredYearAxis_brrt_XNMinus6Member",null,null,null,null,null,null,null,null,null,null,null,null,null,null,null,null,null,null,{"$f":"\"bma_\"&\"UltCY\"&T$10&\"AY\"&$B15","v":"bma_UltCY0AY2013"},"bma_UltCYAY2013","bma_UltCYAY2013","bma_UltCYAY2013","bma_UltCYAY2013","bma_UltCYAY2013","bma_UltCYAY2013","bma_CATUltCYAY2013","bma_UltCYOneYearDevelopmentAY2013","bma_UltCYTwoYearDevelopmentAY2013"]
["L6",2014,"XXX","XXX","XXX","XXX",{"$f":"Import!I7341","v":0},{"$f":"Import!I7347","v":0},{"$f":"Import!I7354","v":0},{"$f":"Import!I7362","v":0},{"$f":"Import!I7371","v":0},{"$f":"Import!I7381","v":0},{"$f":"Import!I7392","v":0},0,0,null,{"$f":"\"UltCY\"&F$10&\"AY\"&B11","v":"UltCY2013AYPrior"},{"$f":"F11","v":0},"CATUltCY2019AY2018",0,"brrt_LossIncurredYearAxis_brrt_XNMinus5Member",null,null,null,null,null,null,null,null,null,null,null,null,null,null,null,null,null,null,null,"bma_UltCYAY2014","bma_UltCYAY2014","bma_UltCYAY2014","bma_UltCYAY2014","bma_UltCYAY2014","bma_UltCYAY2014","bma_CATUltCYAY2014","bma_UltCYOneYearDevelopmentAY2014","bma_UltCYTwoYearDevelopmentAY2014"]
["L7",2015,"XXX","XXX","XXX","XXX","XXX",{"$f":"Import!I7348","v":0},{"$f":"Import!I7355","v":0},{"$f":"Import!I7363","v":0},{"$f":"Import!I7372","v":0},{"$f":"Import!I7382","v":0},{"$f":"Import!I7393","v":0},0,0,null,{"$f":"\"UltCY\"&F$10&\"AY\"&B12","v":"UltCY2013AY2010"},{"$f":"F12","v":0},{"$f":"\"CATUltCY\"&L$10&\"AY\"&B21","v":"CATUltCY2019AY2019"},{"$f":"M21","v":0},"brrt_LossIncurredYearAxis_brrt_XNMinus4Member",null,null,null,null,null,null,null,null,null,null,null,null,null,null,null,null,null,null,null,null,"bma_UltCYAY2015","bma_UltCYAY2015","bma_UltCYAY2015","bma_UltCYAY2015","bma_UltCYAY2015","bma_CATUltCYAY2015","bma_UltCYOneYearDevelopmentAY2015","bma_UltCYTwoYearDevelopmentAY2015"]
["L8",2016,"XXX","XXX","XXX","XXX","XXX","XXX",{"$f":"Import!I7356","v":0},{"$f":"Import!I7364","v":0},{"$f":"Import!I7373","v":0},{"$f":"Import!I7383","v":0},{"$f":"Import!I7394","v":0},0,0,null,{"$f":"\"UltCY\"&F$10&\"AY\"&B13","v":"UltCY2013AY2011"},{"$f":"F13","v":0},{"$f":"\"CATPaidCY\"&L$10&\"AY\"&B29","v":"CATPaidCY2019AYPrior"},{"$f":"M29","v":0},"brrt_LossIncurredYearAxis_brrt_XNMinus3Member",null,null,null,null,null,null,null,null,null,null,null,null,null,null,null,null,null,null,null,null,null,"bma_UltCYAY2016","bma_UltCYAY2016","bma_UltCYAY2016","bma_UltCYAY2016","bma_CATUltCYAY2016","bma_UltCYOneYearDevelopmentAY2016","bma_UltCYTwoYearDevelopmentAY2016"]
["L9",2017,"XXX","XXX","XXX","XXX","XXX","XXX","XXX",{"$f":"Import!I7365","v":0},{"$f":"Import!I7374","v":0},{"$f":"Import!I7384","v":0},{"$f":"Import!I7395","v":0},0,0,null,{"$f":"\"UltCY\"&F$10&\"AY\"&B14","v":"UltCY2013AY2012"},{"$f":"F14","v":0},"CATPaidCY2019AY2010",0,"brrt_LossIncurredYearAxis_brrt_XNMinus2Member",null,null,null,null,null,null,null,null,null,null,null,null,null,null,null,null,null,null,null,null,null,null,"bma_UltCYAY2017","bma_UltCYAY2017","bma_UltCYAY2017","bma_CATUltCYAY2017","bma_UltCYOneYearDevelopmentAY2017","bma_UltCYTwoYearDevelopmentAY2017"]
["L10",{"$f":"B21-1","v":2018},"XXX","XXX","XXX","XXX","XXX","XXX","XXX","XXX",{"$f":"Import!I7375","v":0},{"$f":"Import!I7385","v":0},{"$f":"Import!I7396","v":0},0,"XXX",null,{"$f":"\"UltCY\"&F$10&\"AY\"&B15","v":"UltCY2013AY2013"},{"$f":"F15","v":0},"CATPaidCY2019AY2011",0,"brrt_LossIncurredYearAxis_brrt_XNMinus1Member",null,null,null,null,null,null,null,null,null,null,null,null,null,null,null,null,null,null,null,null,null,null,null,"bma_UltCYAY2018","bma_UltCYAY2018","bma_CATUltCYAY2018","bma_UltCYOneYearDevelopmentAY2018"]
["L11",{"$f":"L10","v":2019},"XXX","XXX","XXX","XXX","XXX","XXX","XXX","XXX","XXX",{"$f":"Import!I7386","v":0},{"$f":"Import!I7397","v":0},"XXX","XXX",null,{"$f":"\"UltCY\"&G$10&\"AY\"&B11","v":"UltCY2014AYPrior"},{"$f":"G11","v":0},"CATPaidCY2019AY2012",0,"brrt_LossIncurredYearAxis_brrt_XNMember",null,null,null,null,null,null,null,null,null,null,null,null,null,null,null,null,null,null,null,null,null,null,null,null,"bma_UltCYAY2019","bma_CATUltCYAY2019"]
["L12","Totals",null,null,null,null,null,null,null,null,null,null,{"$f":"SUM(M11:M21)","v":0},{"$f":"SUM(N11:N21)","v":0},{"$f":"SUM(O11:O21)","v":0},null,{"$f":"\"UltCY\"&G$10&\"AY\"&B12","v":"UltCY2014AY2010"},{"$f":"G12","v":0},"CATPaidCY2019AY2013",0,null,null,null,null,null,null,null,null,null,null,null,null,null,null,null,null,null,null,null,null,null,null,null,null,null,null,"bma_CATUltCYAYTotals","bma_UltCYOneYearDevelopmentAYTotals",{"$f":"\"bma_\"&\"UltCY\"&\"TwoYearDevelopment\"&\"AY\"&$B22","v":"bma_UltCYTwoYearDevelopmentAYTotals"}]
[null,null,null,null,null,null,null,null,null,null,null,null,null,null,null,null,{"$f":"\"UltCY\"&G$10&\"AY\"&B13","v":"UltCY2014AY2011"},{"$f":"G13","v":0},"CATPaidCY2019AY2014",0]
[null,null,"CUMULATIVE PAID NET LOSSES AND ALLOCATED LOSS ADJUSTMENT EXPENSES REPORTED AT YEAR END ($000)",null,null,null,null,null,null,null,null,null,24,null,null,null,{"$f":"\"UltCY\"&G$10&\"AY\"&B15","v":"UltCY2014AY2013"},{"$f":"G15","v":0},{"$f":"\"CATPaidCY\"&L$10&\"AY\"&B36","v":"CATPaidCY2019AY2016"},{"$f":"M36","v":0}]
[null,null,null,null,null,null,null,null,null,null,null,null,"Paid",null,null,null,{"$f":"\"UltCY\"&G$10&\"AY\"&B16","v":"UltCY2014AY2014"},{"$f":"G16","v":0},{"$f":"\"CATPaidCY\"&L$10&\"AY\"&B37","v":"CATPaidCY2019AY2017"},{"$f":"M37","v":0}]
[null,"Years in Which",14,15,16,17,18,19,20,21,22,23,"Catastrophe",null,null,null,{"$f":"\"UltCY\"&H$10&\"AY\"&B11","v":"UltCY2015AYPrior"},{"$f":"H11","v":0},{"$f":"\"CATPaidCY\"&L$10&\"AY\"&B38","v":"CATPaidCY2019AY2018"},{"$f":"M38","v":0}]
[null,"Policies Were",null,null,null,null,null,null,null,null,null,null,"Losses",null,null,null,"UltCY2015AY2010",0,{"$f":"\"CATPaidCY\"&L$10&\"AY\"&B39","v":"CATPaidCY2019AY2019"},{"$f":"M39","v":0}]
[null,"Written",{"$f":"D28-1","v":2010},2011,2012,2013,2014,2015,2016,2017,2018,{"$f":"L10","v":2019},{"$f":"L28","v":2019},null,null,null,"UltCY2015AY2011",0,{"$f":"\"CATIBNRCY\"&L$10&\"AY\"&B47","v":"CATIBNRCY2019AYPrior"},{"$f":"M47","v":0}]
["L13","Prior",{"$f":"Import!I7398","v":0},{"$f":"Import!I7400","v":0},{"$f":"Import!I7403","v":0},{"$f":"Import!I7407","v":0},{"$f":"Import!I7412","v":0},{"$f":"Import!I7418","v":0},{"$f":"Import!I7425","v":0},{"$f":"Import!I7433","v":0},{"$f":"Import!I7442","v":0},{"$f":"Import!I7452","v":0},{"$f":"Import!I7463","v":0},null,null,null,"UltCY2015AY2012",0,"CATIBNRCY2019AY2010",0,"brrt_PoliciesWrittenYearAxis_brrt_PriorMember",null,null,null,null,null,null,null,null,null,null,null,null,null,null,null,{"$f":"\"bma_\"&\"PaidCY\"&Q$10&\"AY\"&$B29","v":"bma_PaidCYUltCY2011AY2010AYPrior"},"bma_PaidCY0AYPrior","bma_PaidCYCATUltCY2019AY2012AYPrior","bma_PaidCY0AYPrior",{"$f":"\"bma_\"&\"PaidCY\"&U$10&\"AY\"&$B29","v":"bma_PaidCYAYPrior"},{"$f":"\"bma_\"&\"PaidCY\"&V$10&\"AY\"&$B29","v":"bma_PaidCYAYPrior"},{"$f":"\"bma_\"&\"PaidCY\"&W$10&\"AY\"&$B29","v":"bma_PaidCYAYPrior"},{"$f":"\"bma_\"&\"PaidCY\"&X$10&\"AY\"&$B29","v":"bma_PaidCYAYPrior"},{"$f":"\"bma_\"&\"PaidCY\"&Y$10&\"AY\"&$B29","v":"bma_PaidCYAYPrior"},{"$f":"\"bma_\"&\"PaidCY\"&Z$10&\"AY\"&$B29","v":"bma_PaidCYAYPrior"},{"$f":"\"bma_\"&\"CATPaidCY\"&Z$10&\"AY\"&$B29","v":"bma_CATPaidCYAYPrior"}]
["L14",{"$f":"B31-1","v":2010},{"$f":"Import!I7399","v":0},{"$f":"Import!I7401","v":0},{"$f":"Import!I7404","v":0},{"$f":"Import!I7408","v":0},{"$f":"Import!I7413","v":0},{"$f":"Import!I7419","v":0},{"$f":"Import!I7426","v":0},{"$f":"Import!I7434","v":0},{"$f":"Import!I7443","v":0},{"$f":"Import!I7453","v":0},{"$f":"Import!I7464","v":0},null,null,null,"UltCY2015AY2013",0,"CATIBNRCY2019AY2011",0,"brrt_PoliciesWrittenYearAxis_brrt_XNMinus9Member",null,null,null,null,null,null,null,null,null,null,null,null,null,null,null,"bma_PaidCYUltCY2011AY2010AY2010","bma_PaidCY0AY2010","bma_PaidCYCATUltCY2019AY2012AY2010","bma_PaidCY0AY2010","bma_PaidCYAY2010","bma_PaidCYAY2010","bma_PaidCYAY2010","bma_PaidCYAY2010","bma_PaidCYAY2010","bma_PaidCYAY2010","bma_CATPaidCYAY2010"]
["L15",2011,"XXX",{"$f":"Import!I7402","v":0},{"$f":"Import!I7405","v":0},{"$f":"Import!I7409","v":0},{"$f":"Import!I7414","v":0},{"$f":"Import!I7420","v":0},{"$f":"Import!I7427","v":0},{"$f":"Import!I7435","v":0},{"$f":"Import!I7444","v":0},{"$f":"Import!I7454","v":0},{"$f":"Import!I7465","v":0},null,null,null,"UltCY2015AY2014",0,"CATIBNRCY2019AY2012",0,"brrt_PoliciesWrittenYearAxis_brrt_XNMinus8Member",null,null,null,null,null,null,null,null,null,null,null,null,null,null,null,null,{"$f":"\"bma_\"&\"PaidCY\"&R$10&\"AY\"&$B31","v":"bma_PaidCY0AY2011"},{"$f":"\"bma_\"&\"PaidCY\"&S$10&\"AY\"&$B31","v":"bma_PaidCYCATUltCY2019AY2012AY2011"},{"$f":"\"bma_\"&\"PaidCY\"&T$10&\"AY\"&$B31","v":"bma_PaidCY0AY2011"},"bma_PaidCYAY2011","bma_PaidCYAY2011","bma_PaidCYAY2011","bma_PaidCYAY2011","bma_PaidCYAY2011","bma_PaidCYAY2011","bma_CATPaidCYAY2011"]
["L16",2012,"XXX","XXX",{"$f":"Import!I7406","v":0},{"$f":"Import!I7410","v":0},{"$f":"Import!I7415","v":0},{"$f":"Import!I7421","v":0},{"$f":"Import!I7428","v":0},{"$f":"Import!I7436","v":0},{"$f":"Import!I7445","v":0},{"$f":"Import!I7455","v":0},{"$f":"Import!I7466","v":0},null,null,null,"UltCY2015AY2015",0,"CATIBNRCY2019AY2013",0,"brrt_PoliciesWrittenYearAxis_brrt_XNMinus7Member",null,null,null,null,null,null,null,null,null,null,null,null,null,null,null,null,null,{"$f":"\"bma_\"&\"PaidCY\"&S$10&\"AY\"&$B32","v":"bma_PaidCYCATUltCY2019AY2012AY2012"},{"$f":"\"bma_\"&\"PaidCY\"&T$10&\"AY\"&$B32","v":"bma_PaidCY0AY2012"},"bma_PaidCYAY2012","bma_PaidCYAY2012","bma_PaidCYAY2012","bma_PaidCYAY2012","bma_PaidCYAY2012","bma_PaidCYAY2012","bma_CATPaidCYAY2012"]
["L17",2013,"XXX","XXX","XXX",{"$f":"Import!I7411","v":0},{"$f":"Import!I7416","v":0},{"$f":"Import!I7422","v":0},{"$f":"Import!I7429","v":0},{"$f":"Import!I7437","v":0},{"$f":"Import!I7446","v":0},{"$f":"Import!I7456","v":0},{"$f":"Import!I7467","v":0},null,null,null,{"$f":"\"UltCY\"&I$10&\"AY\"&B11","v":"UltCY2016AYPrior"},{"$f":"I11","v":0},"CATIBNRCY2019AY2014",0,"brrt_PoliciesWrittenYearAxis_brrt_XNMinus6Member",null,null,null,null,null,null,null,null,null,null,null,null,null,null,null,null,null,null,{"$f":"\"bma_\"&\"PaidCY\"&T$10&\"AY\"&$B33","v":"bma_PaidCY0AY2013"},"bma_PaidCYAY2013","bma_PaidCYAY2013","bma_PaidCYAY2013","bma_PaidCYAY2013","bma_PaidCYAY2013","bma_PaidCYAY2013","bma_CATPaidCYAY2013"]
["L18",2014,"XXX","XXX","XXX","XXX",{"$f":"Import!I7417","v":0},{"$f":"Import!I7423","v":0},{"$f":"Import!I7430","v":0},{"$f":"Import!I7438","v":0},{"$f":"Import!I7447","v":0},{"$f":"Import!I7457","v":0},{"$f":"Import!I7468","v":0},null,null,null,"UltCY2016AY2010",0,"CATIBNRCY2019AY2015",0,"brrt_PoliciesWrittenYearAxis_brrt_XNMinus5Member",null,null,null,null,null,null,null,null,null,null,null,null,null,null,null,null,null,null,null,"bma_PaidCYAY2014","bma_PaidCYAY2014","bma_PaidCYAY2014","bma_PaidCYAY2014","bma_PaidCYAY2014","bma_PaidCYAY2014","bma_CATPaidCYAY2014"]
["L19",2015,"XXX","XXX","XXX","XXX","XXX",{"$f":"Import!I7424","v":0},{"$f":"Import!I7431","v":0},{"$f":"Import!I7439","v":0},{"$f":"Import!I7448","v":0},{"$f":"Import!I7458","v":0},{"$f":"Import!I7469","v":0},null,null,null,"UltCY2016AY2011",0,"CATIBNRCY2019AY2016",0,"brrt_PoliciesWrittenYearAxis_brrt_XNMinus4Member",null,null,null,null,null,null,null,null,null,null,null,null,null,null,null,null,null,null,null,null,{"$f":"\"bma_\"&\"PaidCY\"&V$10&\"AY\"&$B35","v":"bma_PaidCYAY2015"},{"$f":"\"bma_\"&\"PaidCY\"&W$10&\"AY\"&$B35","v":"bma_PaidCYAY2015"},{"$f":"\"bma_\"&\"PaidCY\"&X$10&\"AY\"&$B35","v":"bma_PaidCYAY2015"},{"$f":"\"bma_\"&\"PaidCY\"&Y$10&\"AY\"&$B35","v":"bma_PaidCYAY2015"},{"$f":"\"bma_\"&\"PaidCY\"&Z$10&\"AY\"&$B35","v":"bma_PaidCYAY2015"},"bma_CATPaidCYAY2015"]
["L20",2016,"XXX","XXX","XXX","XXX","XXX","XXX",{"$f":"Import!I7432","v":0},{"$f":"Import!I7440","v":0},{"$f":"Import!I7449","v":0},{"$f":"Import!I7459","v":0},{"$f":"Import!I7470","v":0},null,null,null,"UltCY2016AY2012",0,"CATIBNRCY2019AY2017",0,"brrt_PoliciesWrittenYearAxis_brrt_XNMinus3Member",null,null,null,null,null,null,null,null,null,null,null,null,null,null,null,null,null,null,null,null,null,{"$f":"\"bma_\"&\"PaidCY\"&W$10&\"AY\"&$B36","v":"bma_PaidCYAY2016"},{"$f":"\"bma_\"&\"PaidCY\"&X$10&\"AY\"&$B36","v":"bma_PaidCYAY2016"},{"$f":"\"bma_\"&\"PaidCY\"&Y$10&\"AY\"&$B36","v":"bma_PaidCYAY2016"},{"$f":"\"bma_\"&\"PaidCY\"&Z$10&\"AY\"&$B36","v":"bma_PaidCYAY2016"},"bma_CATPaidCYAY2016"]
["L21",2017,"XXX","XXX","XXX","XXX","XXX","XXX","XXX",{"$f":"Import!I7441","v":0},{"$f":"Import!I7450","v":0},{"$f":"Import!I7460","v":0},{"$f":"Import!I7471","v":0},null,null,null,"UltCY2016AY2013",0,"CATIBNRCY2019AY2018",0,"brrt_PoliciesWrittenYearAxis_brrt_XNMinus2Member",null,null,null,null,null,null,null,null,null,null,null,null,null,null,null,null,null,null,null,null,null,null,{"$f":"\"bma_\"&\"PaidCY\"&X$10&\"AY\"&$B37","v":"bma_PaidCYAY2017"},{"$f":"\"bma_\"&\"PaidCY\"&Y$10&\"AY\"&$B37","v":"bma_PaidCYAY2017"},{"$f":"\"bma_\"&\"PaidCY\"&Z$10&\"AY\"&$B37","v":"bma_PaidCYAY2017"},"bma_CATPaidCYAY2017"]
["L22",2018,"XXX","XXX","XXX","XXX","XXX","XXX","XXX","XXX",{"$f":"Import!I7451","v":0},{"$f":"Import!I7461","v":0},{"$f":"Import!I7472","v":0},null,null,null,"UltCY2016AY2014",0,"CATIBNRCY2019AY2019",0,"brrt_PoliciesWrittenYearAxis_brrt_XNMinus1Member",null,null,null,null,null,null,null,null,null,null,null,null,null,null,null,null,null,null,null,null,null,null,null,{"$f":"\"bma_\"&\"PaidCY\"&Y$10&\"AY\"&$B38","v":"bma_PaidCYAY2018"},{"$f":"\"bma_\"&\"PaidCY\"&Z$10&\"AY\"&$B38","v":"bma_PaidCYAY2018"},"bma_CATPaidCYAY2018"]
["L23",{"$f":"L28","v":2019},"XXX","XXX","XXX","XXX","XXX","XXX","XXX","XXX","XXX",{"$f":"Import!I7462","v":0},{"$f":"Import!I7473","v":0},null,null,null,"UltCY2016AY2015",0,null,null,"brrt_PoliciesWrittenYearAxis_brrt_XNMember",null,null,null,null,null,null,null,null,null,null,null,null,null,null,null,null,null,null,null,null,null,null,null,null,{"$f":"\"bma_\"&\"PaidCY\"&Z$10&\"AY\"&$B39","v":"bma_PaidCYAY2019"},"bma_CATPaidCYAY2019"]
["L24","Totals",null,null,null,null,null,null,null,null,null,null,{"$f":"SUM(M29:M39)","v":0},null,null,null,"UltCY2016AY2016",0,null,null,null,null,null,null,null,null,null,null,null,null,null,null,null,null,null,null,null,null,null,null,null,null,null,null,null,null,"bma_CATPaidCYAYTotals"]
[null,null,null,null,null,null,null,null,null,null,null,null,null,null,null,null,{"$f":"\"UltCY\"&J$10&\"AY\"&B11","v":"UltCY2017AYPrior"},{"$f":"J11","v":0}]
[null,null,"BULK & IBNR RESERVES ON NET LOSSES AND ALLOCATED LOSS ADJUSTMENT EXPENSES REPORTED AT YEAR END ($000)",null,null,null,null,null,null,null,null,null,35,null,null,null,{"$f":"\"UltCY\"&J$10&\"AY\"&B13","v":"UltCY2017AY2011"},{"$f":"J13","v":0}]
[null,null,null,null,null,null,null,null,null,null,null,null,"Losses",null,null,null,"UltCY2017AY2012",0]
[null,"Years in Which",25,26,27,28,29,30,31,32,33,34,"Bulk & IBNR",null,null,null,"UltCY2017AY2013",0]
[null,"Policies Were",null,null,null,null,null,null,null,null,null,null,"Reserves",null,null,null,"UltCY2017AY2014",0]
[null,"Written",{"$f":"D46-1","v":2010},2011,2012,2013,2014,2015,2016,2017,2018,{"$f":"L28","v":2019},{"$f":"L46","v":2019},null,null,null,"UltCY2017AY2015",0]
["L25","Prior",{"$f":"Import!I7474","v":0},{"$f":"Import!I7476","v":0},{"$f":"Import!I7479","v":0},{"$f":"Import!I7483","v":0},{"$f":"Import!I7488","v":0},{"$f":"Import!I7494","v":0},{"$f":"Import!I7501","v":0},{"$f":"Import!I7509","v":0},{"$f":"Import!I7518","v":0},{"$f":"Import!I7528","v":0},{"$f":"Import!I7539","v":0},null,null,null,"UltCY2017AY2016",0,null,null,"brrt_PoliciesWrittenYearAxis_brrt_PriorMember",null,null,null,null,null,null,null,null,null,null,null,null,null,null,null,{"$f":"\"bma_\"&\"IBNRCY\"&Q$10&\"AY\"&$B47","v":"bma_IBNRCYUltCY2011AY2010AYPrior"},"bma_IBNRCY0AYPrior","bma_IBNRCYCATUltCY2019AY2012AYPrior","bma_IBNRCY0AYPrior",{"$f":"\"bma_\"&\"IBNRCY\"&U$10&\"AY\"&$B47","v":"bma_IBNRCYAYPrior"},{"$f":"\"bma_\"&\"IBNRCY\"&V$10&\"AY\"&$B47","v":"bma_IBNRCYAYPrior"},{"$f":"\"bma_\"&\"IBNRCY\"&W$10&\"AY\"&$B47","v":"bma_IBNRCYAYPrior"},{"$f":"\"bma_\"&\"IBNRCY\"&X$10&\"AY\"&$B47","v":"bma_IBNRCYAYPrior"},{"$f":"\"bma_\"&\"IBNRCY\"&Y$10&\"AY\"&$B47","v":"bma_IBNRCYAYPrior"},{"$f":"\"bma_\"&\"IBNRCY\"&Z$10&\"AY\"&$B47","v":"bma_IBNRCYAYPrior"},{"$f":"\"bma_\"&\"CATIBNRCY\"&Z$10&\"AY\"&$B47","v":"bma_CATIBNRCYAYPrior"}]
["L26",{"$f":"B49-1","v":2010},{"$f":"Import!I7475","v":0},{"$f":"Import!I7477","v":0},{"$f":"Import!I7480","v":0},{"$f":"Import!I7484","v":0},{"$f":"Import!I7489","v":0},{"$f":"Import!I7495","v":0},{"$f":"Import!I7502","v":0},{"$f":"Import!I7510","v":0},{"$f":"Import!I7519","v":0},{"$f":"Import!I7529","v":0},{"$f":"Import!I7540","v":0},null,null,null,"UltCY2017AY2017",0,null,null,"brrt_PoliciesWrittenYearAxis_brrt_XNMinus9Member",null,null,null,null,null,null,null,null,null,null,null,null,null,null,null,"bma_IBNRCYUltCY2011AY2010AY2010","bma_IBNRCY0AY2010","bma_IBNRCYCATUltCY2019AY2012AY2010","bma_IBNRCY0AY2010","bma_IBNRCYAY2010","bma_IBNRCYAY2010","bma_IBNRCYAY2010","bma_IBNRCYAY2010","bma_IBNRCYAY2010","bma_IBNRCYAY2010","bma_CATIBNRCYAY2010"]
["L27",2011,"XXX",{"$f":"Import!I7478","v":0},{"$f":"Import!I7481","v":0},{"$f":"Import!I7485","v":0},{"$f":"Import!I7490","v":0},{"$f":"Import!I7496","v":0},{"$f":"Import!I7503","v":0},{"$f":"Import!I7511","v":0},{"$f":"Import!I7520","v":0},{"$f":"Import!I7530","v":0},{"$f":"Import!I7541","v":0},null,null,null,{"$f":"\"UltCY\"&K$10&\"AY\"&B11","v":"UltCY2018AYPrior"},{"$f":"K11","v":0},null,null,"brrt_PoliciesWrittenYearAxis_brrt_XNMinus8Member",null,null,null,null,null,null,null,null,null,null,null,null,null,null,null,null,{"$f":"\"bma_\"&\"IBNRCY\"&R$10&\"AY\"&$B49","v":"bma_IBNRCY0AY2011"},{"$f":"\"bma_\"&\"IBNRCY\"&S$10&\"AY\"&$B49","v":"bma_IBNRCYCATUltCY2019AY2012AY2011"},{"$f":"\"bma_\"&\"IBNRCY\"&T$10&\"AY\"&$B49","v":"bma_IBNRCY0AY2011"},"bma_IBNRCYAY2011","bma_IBNRCYAY2011","bma_IBNRCYAY2011","bma_IBNRCYAY2011","bma_IBNRCYAY2011","bma_IBNRCYAY2011","bma_CATIBNRCYAY2011"]
["L28",2012,"XXX","XXX",{"$f":"Import!I7482","v":0},{"$f":"Import!I7486","v":0},{"$f":"Import!I7491","v":0},{"$f":"Import!I7497","v":0},{"$f":"Import!I7504","v":0},{"$f":"Import!I7512","v":0},{"$f":"Import!I7521","v":0},{"$f":"Import!I7531","v":0},{"$f":"Import!I7542","v":0},null,null,null,"UltCY2018AY2010",0,null,null,"brrt_PoliciesWrittenYearAxis_brrt_XNMinus7Member",null,null,null,null,null,null,null,null,null,null,null,null,null,null,null,null,null,{"$f":"\"bma_\"&\"IBNRCY\"&S$10&\"AY\"&$B50","v":"bma_IBNRCYCATUltCY2019AY2012AY2012"},{"$f":"\"bma_\"&\"IBNRCY\"&T$10&\"AY\"&$B50","v":"bma_IBNRCY0AY2012"},"bma_IBNRCYAY2012","bma_IBNRCYAY2012","bma_IBNRCYAY2012","bma_IBNRCYAY2012","bma_IBNRCYAY2012","bma_IBNRCYAY2012","bma_CATIBNRCYAY2012"]
["L29",2013,"XXX","XXX","XXX",{"$f":"Import!I7487","v":0},{"$f":"Import!I7492","v":0},{"$f":"Import!I7498","v":0},{"$f":"Import!I7505","v":0},{"$f":"Import!I7513","v":0},{"$f":"Import!I7522","v":0},{"$f":"Import!I7532","v":0},{"$f":"Import!I7543","v":0},null,null,null,"UltCY2018AY2011",0,null,null,"brrt_PoliciesWrittenYearAxis_brrt_XNMinus6Member",null,null,null,null,null,null,null,null,null,null,null,null,null,null,null,null,null,null,{"$f":"\"bma_\"&\"IBNRCY\"&T$10&\"AY\"&$B51","v":"bma_IBNRCY0AY2013"},"bma_IBNRCYAY2013","bma_IBNRCYAY2013","bma_IBNRCYAY2013","bma_IBNRCYAY2013","bma_IBNRCYAY2013","bma_IBNRCYAY2013","bma_CATIBNRCYAY2013"]
["L30",2014,"XXX","XXX","XXX","XXX",{"$f":"Import!I7493","v":0},{"$f":"Import!I7499","v":0},{"$f":"Import!I7506","v":0},{"$f":"Import!I7514","v":0},{"$f":"Import!I7523","v":0},{"$f":"Import!I7533","v":0},{"$f":"Import!I7544","v":0},null,null,null,"UltCY2018AY2012",0,null,null,"brrt_PoliciesWrittenYearAxis_brrt_XNMinus5Member",null,null,null,null,null,null,null,null,null,null,null,null,null,null,null,null,null,null,null,"bma_IBNRCYAY2014","bma_IBNRCYAY2014","bma_IBNRCYAY2014","bma_IBNRCYAY2014","bma_IBNRCYAY2014","bma_IBNRCYAY2014","bma_CATIBNRCYAY2014"]
["L31",2015,"XXX","XXX","XXX","XXX","XXX",{"$f":"Import!I7500","v":0},{"$f":"Import!I7507","v":0},{"$f":"Import!I7515","v":0},{"$f":"Import!I7524","v":0},{"$f":"Import!I7534","v":0},{"$f":"Import!I7545","v":0},null,null,null,"UltCY2018AY2013",0,null,null,"brrt_PoliciesWrittenYearAxis_brrt_XNMinus4Member",null,null,null,null,null,null,null,null,null,null,null,null,null,null,null,null,null,null,null,null,{"$f":"\"bma_\"&\"IBNRCY\"&V$10&\"AY\"&$B53","v":"bma_IBNRCYAY2015"},{"$f":"\"bma_\"&\"IBNRCY\"&W$10&\"AY\"&$B53","v":"bma_IBNRCYAY2015"},{"$f":"\"bma_\"&\"IBNRCY\"&X$10&\"AY\"&$B53","v":"bma_IBNRCYAY2015"},{"$f":"\"bma_\"&\"IBNRCY\"&Y$10&\"AY\"&$B53","v":"bma_IBNRCYAY2015"},{"$f":"\"bma_\"&\"IBNRCY\"&Z$10&\"AY\"&$B53","v":"bma_IBNRCYAY2015"},"bma_CATIBNRCYAY2015"]
["L32",2016,"XXX","XXX","XXX","XXX","XXX","XXX",{"$f":"Import!I7508","v":0},{"$f":"Import!I7516","v":0},{"$f":"Import!I7525","v":0},{"$f":"Import!I7535","v":0},{"$f":"Import!I7546","v":0},null,null,null,"UltCY2018AY2014",0,null,null,"brrt_PoliciesWrittenYearAxis_brrt_XNMinus3Member",null,null,null,null,null,null,null,null,null,null,null,null,null,null,null,null,null,null,null,null,null,{"$f":"\"bma_\"&\"IBNRCY\"&W$10&\"AY\"&$B54","v":"bma_IBNRCYAY2016"},{"$f":"\"bma_\"&\"IBNRCY\"&X$10&\"AY\"&$B54","v":"bma_IBNRCYAY2016"},{"$f":"\"bma_\"&\"IBNRCY\"&Y$10&\"AY\"&$B54","v":"bma_IBNRCYAY2016"},{"$f":"\"bma_\"&\"IBNRCY\"&Z$10&\"AY\"&$B54","v":"bma_IBNRCYAY2016"},"bma_CATIBNRCYAY2016"]
["L33",2017,"XXX","XXX","XXX","XXX","XXX","XXX","XXX",{"$f":"Import!I7517","v":0},{"$f":"Import!I7526","v":0},{"$f":"Import!I7536","v":0},{"$f":"Import!I7547","v":0},null,null,null,"UltCY2018AY2015",0,null,null,"brrt_PoliciesWrittenYearAxis_brrt_XNMinus2Member",null,null,null,null,null,null,null,null,null,null,null,null,null,null,null,null,null,null,null,null,null,null,{"$f":"\"bma_\"&\"IBNRCY\"&X$10&\"AY\"&$B55","v":"bma_IBNRCYAY2017"},{"$f":"\"bma_\"&\"IBNRCY\"&Y$10&\"AY\"&$B55","v":"bma_IBNRCYAY2017"},{"$f":"\"bma_\"&\"IBNRCY\"&Z$10&\"AY\"&$B55","v":"bma_IBNRCYAY2017"},"bma_CATIBNRCYAY2017"]
["L34",2018,"XXX","XXX","XXX","XXX","XXX","XXX","XXX","XXX",{"$f":"Import!I7527","v":0},{"$f":"Import!I7537","v":0},{"$f":"Import!I7548","v":0},null,null,null,"UltCY2018AY2016",0,null,null,"brrt_PoliciesWrittenYearAxis_brrt_XNMinus1Member",null,null,null,null,null,null,null,null,null,null,null,null,null,null,null,null,null,null,null,null,null,null,null,{"$f":"\"bma_\"&\"IBNRCY\"&Y$10&\"AY\"&$B56","v":"bma_IBNRCYAY2018"},{"$f":"\"bma_\"&\"IBNRCY\"&Z$10&\"AY\"&$B56","v":"bma_IBNRCYAY2018"},"bma_CATIBNRCYAY2018"]
["L35",{"$f":"L46","v":2019},"XXX","XXX","XXX","XXX","XXX","XXX","XXX","XXX","XXX",{"$f":"Import!I7538","v":0},{"$f":"Import!I7549","v":0},null,null,null,"UltCY2018AY2017",0,null,null,"brrt_PoliciesWrittenYearAxis_brrt_XNMember",null,null,null,null,null,null,null,null,null,null,null,null,null,null,null,null,null,null,null,null,null,null,null,null,{"$f":"\"bma_\"&\"IBNRCY\"&Z$10&\"AY\"&$B57","v":"bma_IBNRCYAY2019"},"bma_CATIBNRCYAY2019"]
["L36","Totals",null,null,null,null,null,null,null,null,null,null,{"$f":"SUM(M47:M57)","v":0},null,null,null,"UltCY2018AY2018",0,null,null,null,null,null,null,null,null,null,null,null,null,null,null,null,null,null,null,null,null,null,null,null,null,null,null,null,null,"bma_CATIBNRCYAYTotals"]
[null,null,null,null,null,null,null,null,null,null,null,null,null,null,null,null,{"$f":"\"UltCY\"&L$10&\"AY\"&B11","v":"UltCY2019AYPrior"},{"$f":"L11","v":0}]
[null,null,36,37,38,39,"Unallocated Loss",null,null,42,43,44,45,null,null,null,{"$f":"\"UltCY\"&L$10&\"AY\"&B13","v":"UltCY2019AY2011"},{"$f":"L13","v":0}]
[null,"Years in Which",null,null,null,null,"Adjustment Expenses",null,null,null,null,null,null,null,null,null,"UltCY2019AY2012",0]
[null,"Premiums",null,null,null,null,40,41,null,null,null,null,null,null,null,null,"UltCY2019AY2013",0]
[null,"Were",null,null,null,null,null,null,null,"Commission and","General and",null,null,null,null,null,"UltCY2019AY2014",0]
[null,"Earned and","Gross","Gross","Net","Net",null,null,null,"Brokerage","Administrative","Personnel","Other",null,null,null,"UltCY2019AY2015",0]
[null,"Losses Were","Premiums","Premiums","Premiums","Premiums",null,null,"Calendar","Expense","Expense","Costs","Expense",null,null,null,"UltCY2019AY2016",0]
[null,"Incurred","Written","Earned","Written","Earned","Paid","Incurred","Year","(Form 2A, Line 9)","(Form 2A, Line 10)","(Form 2A, Line 11)","(Form 2A, Line 12)",null,null,null,"UltCY2019AY2017",0]
["L37","Prior","XXX",{"$f":"C67","v":"XXX"},"XXX",{"$f":"E67","v":"XXX"},{"$f":"Import!I7594","v":0},{"$f":"Import!I7605","v":0},"Prior",{"$f":"Import!I7616","v":0},{"$f":"Import!I7627","v":0},{"$f":"Import!I7638","v":0},{"$f":"Import!I7649","v":0},null,null,null,"UltCY2019AY2018",0,null,null,"brrt_PremiumsEarnedLossesIncurredYearAxis_brrt_PriorMember","brrt_CalendarYearAxis_brrt_PriorMember",null,null,null,null,null,null,null,null,null,null,null,null,null,null,null,null,null,null,{"$f":"\"bma_\"&\"NetAOEPaid\"&$B67","v":"bma_NetAOEPaidPrior"},{"$f":"\"bma_\"&\"NetAOEIncurred\"&$B67","v":"bma_NetAOEIncurredPrior"},null,{"$f":"\"bma_\"&\"CommissionsAndBrokerage\"&$B67","v":"bma_CommissionsAndBrokeragePrior"},{"$f":"\"bma_\"&\"GeneralAndAdministrative\"&$B67","v":"bma_GeneralAndAdministrativePrior"},{"$f":"\"bma_\"&\"PersonnelCosts\"&$B67","v":"bma_PersonnelCostsPrior"},{"$f":"\"bma_\"&\"UnderwritingExpensesOther\"&$B67","v":"bma_UnderwritingExpensesOtherPrior"}]
["L38",{"$f":"B69-1","v":2010},{"$f":"Import!I7551","v":0},{"$f":"Import!I7562","v":0},{"$f":"Import!I7573","v":0},{"$f":"Import!I7584","v":0},{"$f":"Import!I7595","v":0},{"$f":"Import!I7606","v":0},{"$f":"B68","v":2010},{"$f":"Import!I7617","v":0},{"$f":"Import!I7628","v":0},{"$f":"Import!I7639","v":0},{"$f":"Import!I7650","v":0},null,null,null,"UltCY2019AY2019",0,null,null,"brrt_PremiumsEarnedLossesIncurredYearAxis_brrt_XNMinus9Member","brrt_CalendarYearAxis_brrt_XNMinus9Member",null,null,null,null,null,null,null,null,null,null,null,null,null,null,{"$f":"\"bma_\"&\"GrossWP\"&$B68","v":"bma_GrossWP2010"},{"$f":"\"bma_\"&\"GrossEP\"&$B68","v":"bma_GrossEP2010"},{"$f":"\"bma_\"&\"NetWP\"&$B68","v":"bma_NetWP2010"},{"$f":"\"bma_\"&\"NetEP\"&$B68","v":"bma_NetEP2010"},{"$f":"\"bma_\"&\"NetAOEPaid\"&$B68","v":"bma_NetAOEPaid2010"},{"$f":"\"bma_\"&\"NetAOEIncurred\"&$B68","v":"bma_NetAOEIncurred2010"},null,{"$f":"\"bma_\"&\"CommissionsAndBrokerage\"&$B68","v":"bma_CommissionsAndBrokerage2010"},{"$f":"\"bma_\"&\"GeneralAndAdministrative\"&$B68","v":"bma_GeneralAndAdministrative2010"},{"$f":"\"bma_\"&\"PersonnelCosts\"&$B68","v":"bma_PersonnelCosts2010"},{"$f":"\"bma_\"&\"UnderwritingExpensesOther\"&$B68","v":"bma_UnderwritingExpensesOther2010"}]
["L39",2011,{"$f":"Import!I7552","v":0},{"$f":"Import!I7563","v":0},{"$f":"Import!I7574","v":0},{"$f":"Import!I7585","v":0},{"$f":"Import!I7596","v":0},{"$f":"Import!I7607","v":0},2011,{"$f":"Import!I7618","v":0},{"$f":"Import!I7629","v":0},{"$f":"Import!I7640","v":0},{"$f":"Import!I7651","v":0},null,null,null,{"$f":"\"PaidCY\"&C$10&\"AY\"&B29","v":"PaidCY2010AYPrior"},{"$f":"C29","v":0},null,null,"brrt_PremiumsEarnedLossesIncurredYearAxis_brrt_XNMinus8Member","brrt_CalendarYearAxis_brrt_XNMinus8Member",null,null,null,null,null,null,null,null,null,null,null,null,null,null,{"$f":"\"bma_\"&\"GrossWP\"&$B69","v":"bma_GrossWP2011"},{"$f":"\"bma_\"&\"GrossEP\"&$B69","v":"bma_GrossEP2011"},{"$f":"\"bma_\"&\"NetWP\"&$B69","v":"bma_NetWP2011"},{"$f":"\"bma_\"&\"NetEP\"&$B69","v":"bma_NetEP2011"},"bma_NetAOEPaid2011","bma_NetAOEIncurred2011",null,"bma_CommissionsAndBrokerage2011","bma_GeneralAndAdministrative2011","bma_PersonnelCosts2011","bma_UnderwritingExpensesOther2011"]
["L40",2012,{"$f":"Import!I7553","v":0},{"$f":"Import!I7564","v":0},{"$f":"Import!I7575","v":0},{"$f":"Import!I7586","v":0},{"$f":"Import!I7597","v":0},{"$f":"Import!I7608","v":0},2012,{"$f":"Import!I7619","v":0},{"$f":"Import!I7630","v":0},{"$f":"Import!I7641","v":0},{"$f":"Import!I7652","v":0},null,null,null,{"$f":"\"PaidCY\"&C$10&\"AY\"&B30","v":"PaidCY2010AY2010"},{"$f":"C30","v":0},null,null,"brrt_PremiumsEarnedLossesIncurredYearAxis_brrt_XNMinus7Member","brrt_CalendarYearAxis_brrt_XNMinus7Member",null,null,null,null,null,null,null,null,null,null,null,null,null,null,"bma_GrossWP2012","bma_GrossEP2012","bma_NetWP2012","bma_NetEP2012","bma_NetAOEPaid2012","bma_NetAOEIncurred2012",null,"bma_CommissionsAndBrokerage2012","bma_GeneralAndAdministrative2012","bma_PersonnelCosts2012","bma_UnderwritingExpensesOther2012"]
["L41",2013,{"$f":"Import!I7554","v":0},{"$f":"Import!I7565","v":0},{"$f":"Import!I7576","v":0},{"$f":"Import!I7587","v":0},{"$f":"Import!I7598","v":0},{"$f":"Import!I7609","v":0},2013,{"$f":"Import!I7620","v":0},{"$f":"Import!I7631","v":0},{"$f":"Import!I7642","v":0},{"$f":"Import!I7653","v":0},null,null,null,{"$f":"\"PaidCY\"&D$10&\"AY\"&B29","v":"PaidCY2011AYPrior"},{"$f":"D29","v":0},null,null,"brrt_PremiumsEarnedLossesIncurredYearAxis_brrt_XNMinus6Member","brrt_CalendarYearAxis_brrt_XNMinus6Member",null,null,null,null,null,null,null,null,null,null,null,null,null,null,"bma_GrossWP2013","bma_GrossEP2013","bma_NetWP2013","bma_NetEP2013","bma_NetAOEPaid2013","bma_NetAOEIncurred2013",null,"bma_CommissionsAndBrokerage2013","bma_GeneralAndAdministrative2013","bma_PersonnelCosts2013","bma_UnderwritingExpensesOther2013"]
["L42",2014,{"$f":"Import!I7555","v":0},{"$f":"Import!I7566","v":0},{"$f":"Import!I7577","v":0},{"$f":"Import!I7588","v":0},{"$f":"Import!I7599","v":0},{"$f":"Import!I7610","v":0},2014,{"$f":"Import!I7621","v":0},{"$f":"Import!I7632","v":0},{"$f":"Import!I7643","v":0},{"$f":"Import!I7654","v":0},null,null,null,{"$f":"\"PaidCY\"&D$10&\"AY\"&B30","v":"PaidCY2011AY2010"},{"$f":"D30","v":0},null,null,"brrt_PremiumsEarnedLossesIncurredYearAxis_brrt_XNMinus5Member","brrt_CalendarYearAxis_brrt_XNMinus5Member",null,null,null,null,null,null,null,null,null,null,null,null,null,null,"bma_GrossWP2014","bma_GrossEP2014","bma_NetWP2014","bma_NetEP2014","bma_NetAOEPaid2014","bma_NetAOEIncurred2014",null,"bma_CommissionsAndBrokerage2014","bma_GeneralAndAdministrative2014","bma_PersonnelCosts2014","bma_UnderwritingExpensesOther2014"]
["L43",2015,{"$f":"Import!I7556","v":0},{"$f":"Import!I7567","v":0},{"$f":"Import!I7578","v":0},{"$f":"Import!I7589","v":0},{"$f":"Import!I7600","v":0},{"$f":"Import!I7611","v":0},2015,{"$f":"Import!I7622","v":0},{"$f":"Import!I7633","v":0},{"$f":"Import!I7644","v":0},{"$f":"Import!I7655","v":0},null,null,null,{"$f":"\"PaidCY\"&D$10&\"AY\"&B31","v":"PaidCY2011AY2011"},{"$f":"D31","v":0},null,null,"brrt_PremiumsEarnedLossesIncurredYearAxis_brrt_XNMinus4Member","brrt_CalendarYearAxis_brrt_XNMinus4Member",null,null,null,null,null,null,null,null,null,null,null,null,null,null,"bma_GrossWP2015","bma_GrossEP2015","bma_NetWP2015","bma_NetEP2015","bma_NetAOEPaid2015","bma_NetAOEIncurred2015",null,"bma_CommissionsAndBrokerage2015","bma_GeneralAndAdministrative2015","bma_PersonnelCosts2015","bma_UnderwritingExpensesOther2015"]
["L44",2016,{"$f":"Import!I7557","v":0},{"$f":"Import!I7568","v":0},{"$f":"Import!I7579","v":0},{"$f":"Import!I7590","v":0},{"$f":"Import!I7601","v":0},{"$f":"Import!I7612","v":0},2016,{"$f":"Import!I7623","v":0},{"$f":"Import!I7634","v":0},{"$f":"Import!I7645","v":0},{"$f":"Import!I7656","v":0},null,null,null,{"$f":"\"PaidCY\"&E$10&\"AY\"&B29","v":"PaidCY2012AYPrior"},{"$f":"E29","v":0},null,null,"brrt_PremiumsEarnedLossesIncurredYearAxis_brrt_XNMinus3Member","brrt_CalendarYearAxis_brrt_XNMinus3Member",null,null,null,null,null,null,null,null,null,null,null,null,null,null,"bma_GrossWP2016","bma_GrossEP2016","bma_NetWP2016","bma_NetEP2016","bma_NetAOEPaid2016","bma_NetAOEIncurred2016",null,"bma_CommissionsAndBrokerage2016","bma_GeneralAndAdministrative2016","bma_PersonnelCosts2016","bma_UnderwritingExpensesOther2016"]
["L45",2017,{"$f":"Import!I7558","v":0},{"$f":"Import!I7569","v":0},{"$f":"Import!I7580","v":0},{"$f":"Import!I7591","v":0},{"$f":"Import!I7602","v":0},{"$f":"Import!I7613","v":0},2017,{"$f":"Import!I7624","v":0},{"$f":"Import!I7635","v":0},{"$f":"Import!I7646","v":0},{"$f":"Import!I7657","v":0},null,null,null,{"$f":"\"PaidCY\"&E$10&\"AY\"&B30","v":"PaidCY2012AY2010"},{"$f":"E30","v":0},null,null,"brrt_PremiumsEarnedLossesIncurredYearAxis_brrt_XNMinus2Member","brrt_CalendarYearAxis_brrt_XNMinus2Member",null,null,null,null,null,null,null,null,null,null,null,null,null,null,"bma_GrossWP2017","bma_GrossEP2017","bma_NetWP2017","bma_NetEP2017","bma_NetAOEPaid2017","bma_NetAOEIncurred2017",null,"bma_CommissionsAndBrokerage2017","bma_GeneralAndAdministrative2017","bma_PersonnelCosts2017","bma_UnderwritingExpensesOther2017"]
["L46",2018,{"$f":"Import!I7559","v":0},{"$f":"Import!I7570","v":0},{"$f":"Import!I7581","v":0},{"$f":"Import!I7592","v":0},{"$f":"Import!I7603","v":0},{"$f":"Import!I7614","v":0},2018,{"$f":"Import!I7625","v":0},{"$f":"Import!I7636","v":0},{"$f":"Import!I7647","v":0},{"$f":"Import!I7658","v":0},null,null,null,{"$f":"\"PaidCY\"&E$10&\"AY\"&B31","v":"PaidCY2012AY2011"},{"$f":"E31","v":0},null,null,"brrt_PremiumsEarnedLossesIncurredYearAxis_brrt_XNMinus1Member","brrt_CalendarYearAxis_brrt_XNMinus1Member",null,null,null,null,null,null,null,null,null,null,null,null,null,null,"bma_GrossWP2018","bma_GrossEP2018","bma_NetWP2018","bma_NetEP2018","bma_NetAOEPaid2018","bma_NetAOEIncurred2018",null,"bma_CommissionsAndBrokerage2018","bma_GeneralAndAdministrative2018","bma_PersonnelCosts2018","bma_UnderwritingExpensesOther2018"]
["L47",{"$f":"B39","v":2019},{"$f":"Import!I7560","v":0},{"$f":"Import!I7571","v":0},{"$f":"Import!I7582","v":0},{"$f":"Import!I7593","v":0},{"$f":"Import!I7604","v":0},{"$f":"Import!I7615","v":0},2019,{"$f":"Import!I7626","v":0},{"$f":"Import!I7637","v":0},{"$f":"Import!I7648","v":0},{"$f":"Import!I7659","v":0},null,null,null,{"$f":"\"PaidCY\"&E$10&\"AY\"&B32","v":"PaidCY2012AY2012"},{"$f":"E32","v":0},null,null,"brrt_PremiumsEarnedLossesIncurredYearAxis_brrt_XNMember","brrt_CalendarYearAxis_brrt_XNMember",null,null,null,null,null,null,null,null,null,null,null,null,null,null,"bma_GrossWP2019","bma_GrossEP2019","bma_NetWP2019","bma_NetEP2019","bma_NetAOEPaid2019","bma_NetAOEIncurred2019",null,"bma_CommissionsAndBrokerage2019","bma_GeneralAndAdministrative2019","bma_PersonnelCosts2019","bma_UnderwritingExpensesOther2019"]
["L48","Totals","XXX",{"$f":"C78","v":"XXX"},"XXX",{"$f":"E78","v":"XXX"},{"$f":"SUM(G67:G77)","v":0},{"$f":"SUM(H67:H77)","v":0},"Totals",{"$f":"SUM(J67:J77)","v":0},{"$f":"SUM(K67:K77)","v":0},{"$f":"SUM(L67:L77)","v":0},{"$f":"SUM(M67:M77)","v":0},null,null,null,{"$f":"\"PaidCY\"&F$10&\"AY\"&B29","v":"PaidCY2013AYPrior"},{"$f":"F29","v":0},null,null,null,null,null,null,null,null,null,null,null,null,null,null,null,null,null,null,null,null,null,null,"bma_NetAOEPaidTotals","bma_NetAOEIncurredTotals",null,"bma_CommissionsAndBrokerageTotals","bma_GeneralAndAdministrativeTotals","bma_PersonnelCostsTotals","bma_UnderwritingExpensesOtherTotals"]
[null,null,null,null,null,null,null,null,null,null,null,null,null,null,null,null,{"$f":"\"PaidCY\"&F$10&\"AY\"&B30","v":"PaidCY2013AY2010"},{"$f":"F30","v":0}]
[null,"COMMENTS",null,null,null,null,null,null,null,null,null,null,null,null,null,null,{"$f":"\"PaidCY\"&F$10&\"AY\"&B31","v":"PaidCY2013AY2011"},{"$f":"F31","v":0}]
[null,{"$f":"Import!I7660","v":0},null,null,null,null,null,null,null,null,null,null,null,null,null,null,{"$f":"\"PaidCY\"&G$10&\"AY\"&B30","v":"PaidCY2014AY2010"},{"$f":"G30","v":0},null,null,"brrt_LossTrianglesComments",{"$f":"XBRLMap(B81,U81&\".\"&U4&\".\"&U7,$B$95,$B$96,CONFIGURATION!$B$10,\"BMA\",CONFIGURATION!$B$1,\"bscr\")","v":"Mapped"},null,null,null,null,null,null,null,null,null,null,null,null,null,null,"bma_ScheduleOfLossTrianglesComments"]
[null,null,null,null,null,null,null,null,null,null,null,null,null,null,null,null,{"$f":"\"PaidCY\"&G$10&\"AY\"&B31","v":"PaidCY2014AY2011"},{"$f":"G31","v":0}]
[null,null,null,null,null,null,null,null,null,null,null,null,null,null,null,null,{"$f":"\"PaidCY\"&G$10&\"AY\"&B32","v":"PaidCY2014AY2012"},{"$f":"G32","v":0}]
[null,null,null,null,null,null,null,null,null,null,null,null,null,null,null,null,{"$f":"\"PaidCY\"&G$10&\"AY\"&B34","v":"PaidCY2014AY2014"},{"$f":"G34","v":0}]
[null,null,"brrt_IncurredEstimatedUltimateNetLossesAndAllocatedLossAdjustmentExpenses","brrt_IncurredEstimatedUltimateNetLossesAndAllocatedLossAdjustmentExpenses","brrt_IncurredEstimatedUltimateNetLossesAndAllocatedLossAdjustmentExpenses","brrt_IncurredEstimatedUltimateNetLossesAndAllocatedLossAdjustmentExpenses","brrt_IncurredEstimatedUltimateNetLossesAndAllocatedLossAdjustmentExpenses","brrt_IncurredEstimatedUltimateNetLossesAndAllocatedLossAdjustmentExpenses","brrt_IncurredEstimatedUltimateNetLossesAndAllocatedLossAdjustmentExpenses","brrt_IncurredEstimatedUltimateNetLossesAndAllocatedLossAdjustmentExpenses","brrt_IncurredEstimatedUltimateNetLossesAndAllocatedLossAdjustmentExpenses","brrt_IncurredEstimatedUltimateNetLossesAndAllocatedLossAdjustmentExpenses","brrt_UltimateCatastropheLosses",null,null,null,{"$f":"\"PaidCY\"&H$10&\"AY\"&B29","v":"PaidCY2015AYPrior"},{"$f":"H29","v":0}]
[null,null,"brrt_CumulativePaidNetLossesAndAllocatedLossAdjustmentExpenses","brrt_CumulativePaidNetLossesAndAllocatedLossAdjustmentExpenses","brrt_CumulativePaidNetLossesAndAllocatedLossAdjustmentExpenses","brrt_CumulativePaidNetLossesAndAllocatedLossAdjustmentExpenses","brrt_CumulativePaidNetLossesAndAllocatedLossAdjustmentExpenses","brrt_CumulativePaidNetLossesAndAllocatedLossAdjustmentExpenses","brrt_CumulativePaidNetLossesAndAllocatedLossAdjustmentExpenses","brrt_CumulativePaidNetLossesAndAllocatedLossAdjustmentExpenses","brrt_CumulativePaidNetLossesAndAllocatedLossAdjustmentExpenses","brrt_CumulativePaidNetLossesAndAllocatedLossAdjustmentExpenses","brrt_PaidCatastropheLosses",null,null,null,"PaidCY2015AY2010",0]
[null,null,"brrt_BulkAndIBNRReservesOnNetLossesAndAllocatedLossAdjustmentExpenses","brrt_BulkAndIBNRReservesOnNetLossesAndAllocatedLossAdjustmentExpenses","brrt_BulkAndIBNRReservesOnNetLossesAndAllocatedLossAdjustmentExpenses","brrt_BulkAndIBNRReservesOnNetLossesAndAllocatedLossAdjustmentExpenses","brrt_BulkAndIBNRReservesOnNetLossesAndAllocatedLossAdjustmentExpenses","brrt_BulkAndIBNRReservesOnNetLossesAndAllocatedLossAdjustmentExpenses","brrt_BulkAndIBNRReservesOnNetLossesAndAllocatedLossAdjustmentExpenses","brrt_BulkAndIBNRReservesOnNetLossesAndAllocatedLossAdjustmentExpenses","brrt_BulkAndIBNRReservesOnNetLossesAndAllocatedLossAdjustmentExpenses","brrt_BulkAndIBNRReservesOnNetLossesAndAllocatedLossAdjustmentExpenses","brrt_LossesBulkAndBNRReserves",null,null,null,"PaidCY2015AY2011",0]
[null,null,"brrt_GrossPremiumsWritten","brrt_GrossPremiumsEarned","brrt_NetPremiumsWritten","brrt_NetPremiumsEarned","brrt_UnallocatedLossAdjustmentExpensesPaid","brrt_UnallocatedLossAdjustmentExpensesIncurred",null,"brrt_CommissionsAndBrokerage","brrt_GeneralAndAdministrative","brrt_PersonnelCosts","brrt_OtherUnderwritingExpenses",null,null,null,"PaidCY2015AY2012",0]
[null,null,"brrt_ReportingYearAxis_brrt_YNMinus9Member","brrt_ReportingYearAxis_brrt_YNMinus8Member","brrt_ReportingYearAxis_brrt_YNMinus7Member","brrt_ReportingYearAxis_brrt_YNMinus6Member","brrt_ReportingYearAxis_brrt_YNMinus5Member","brrt_ReportingYearAxis_brrt_YNMinus4Member","brrt_ReportingYearAxis_brrt_YNMinus3Member","brrt_ReportingYearAxis_brrt_YNMinus2Member","brrt_ReportingYearAxis_brrt_YNMinus1Member","brrt_ReportingYearAxis_brrt_YNMember","brrt_ReportingYearAxis_brrt_YNMember",null,null,null,"PaidCY2015AY2013",0]
[null,null,null,"Accident Year",null,null,null,null,null,null,null,null,null,null,null,null,"PaidCY2015AY2014",0]
[null,null,null,"Underwriting Year",null,null,null,null,null,null,null,null,null,null,null,null,"PaidCY2015AY2015",0]
[null,null,null,null,null,null,null,null,null,null,null,null,null,null,null,null,{"$f":"\"PaidCY\"&I$10&\"AY\"&B29","v":"PaidCY2016AYPrior"},{"$f":"I29","v":0}]
[null,null,null,null,null,null,null,null,null,null,null,null,null,null,null,null,"PaidCY2016AY2010",0]
[null,null,null,null,null,null,null,null,null,null,null,null,null,null,null,null,"PaidCY2016AY2011",0]
[null,{"$f":"IF(B3=\"\",\"\",TEXT(DATE(YEAR(B3+1)-1,MONTH(B3+1),DAY(B3+1)),\"mm/dd/yyyy\"))","v":"01/01/2019"},null,null,null,null,null,null,null,null,null,null,null,null,null,null,"PaidCY2016AY2012",0]
[null,{"$f":"IF(B3=\"\",\"\",TEXT(B3,\"mm/dd/yyyy\"))","v":"12/31/2019"},null,null,null,null,null,null,null,null,null,null,null,null,null,null,"PaidCY2016AY2013",0]
[null,null,null,null,null,null,null,null,null,null,null,null,null,null,null,null,"PaidCY2016AY2014",0]
[null,null,null,null,null,null,null,null,null,null,null,null,null,null,null,null,"PaidCY2016AY2015",0]
[null,null,null,null,null,null,null,null,null,null,null,null,null,null,null,null,"PaidCY2016AY2016",0]
[null,null,null,null,null,null,null,null,null,null,null,null,null,null,null,null,{"$f":"\"PaidCY\"&J$10&\"AY\"&B29","v":"PaidCY2017AYPrior"},{"$f":"J29","v":0}]
[null,null,{"$f":"XBRLMap(C11,C$85&\".\"&$U$4&\".\"&$U$5&\".\"&$U11&\".\"&C$89&\".\"&$U$7,$B$95,$B$96,CONFIGURATION!$B$10,\"BMA\",CONFIGURATION!$B$1,\"bscr\",1000)","v":"Mapped"},{"$f":"XBRLMap(D11,D$85&\".\"&$U$4&\".\"&$U$5&\".\"&$U11&\".\"&D$89&\".\"&$U$7,$B$95,$B$96,CONFIGURATION!$B$10,\"BMA\",CONFIGURATION!$B$1,\"bscr\",1000)","v":"Mapped"},{"$f":"XBRLMap(E11,E$85&\".\"&$U$4&\".\"&$U$5&\".\"&$U11&\".\"&E$89&\".\"&$U$7,$B$95,$B$96,CONFIGURATION!$B$10,\"BMA\",CONFIGURATION!$B$1,\"bscr\",1000)","v":"Mapped"},{"$f":"XBRLMap(F11,F$85&\".\"&$U$4&\".\"&$U$5&\".\"&$U11&\".\"&F$89&\".\"&$U$7,$B$95,$B$96,CONFIGURATION!$B$10,\"BMA\",CONFIGURATION!$B$1,\"bscr\",1000)","v":"Mapped"},{"$f":"XBRLMap(G11,G$85&\".\"&$U$4&\".\"&$U$5&\".\"&$U11&\".\"&G$89&\".\"&$U$7,$B$95,$B$96,CONFIGURATION!$B$10,\"BMA\",CONFIGURATION!$B$1,\"bscr\",1000)","v":"Mapped"},{"$f":"XBRLMap(H11,H$85&\".\"&$U$4&\".\"&$U$5&\".\"&$U11&\".\"&H$89&\".\"&$U$7,$B$95,$B$96,CONFIGURATION!$B$10,\"BMA\",CONFIGURATION!$B$1,\"bscr\",1000)","v":"Mapped"},{"$f":"XBRLMap(I11,I$85&\".\"&$U$4&\".\"&$U$5&\".\"&$U11&\".\"&I$89&\".\"&$U$7,$B$95,$B$96,CONFIGURATION!$B$10,\"BMA\",CONFIGURATION!$B$1,\"bscr\",1000)","v":"Mapped"},{"$f":"XBRLMap(J11,J$85&\".\"&$U$4&\".\"&$U$5&\".\"&$U11&\".\"&J$89&\".\"&$U$7,$B$95,$B$96,CONFIGURATION!$B$10,\"BMA\",CONFIGURATION!$B$1,\"bscr\",1000)","v":"Mapped"},{"$f":"XBRLMap(K11,K$85&\".\"&$U$4&\".\"&$U$5&\".\"&$U11&\".\"&K$89&\".\"&$U$7,$B$95,$B$96,CONFIGURATION!$B$10,\"BMA\",CONFIGURATION!$B$1,\"bscr\",1000)","v":"Mapped"},{"$f":"XBRLMap(L11,L$85&\".\"&$U$4&\".\"&$U$5&\".\"&$U11&\".\"&L$89&\".\"&$U$7,$B$95,$B$96,CONFIGURATION!$B$10,\"BMA\",CONFIGURATION!$B$1,\"bscr\",1000)","v":"Mapped"},{"$f":"XBRLMap(M11,M$85&\".\"&$U$4&\".\"&$U$5&\".\"&$U11&\".\"&M$89&\".\"&$U$7,$B$95,$B$96,CONFIGURATION!$B$10,\"BMA\",CONFIGURATION!$B$1,\"bscr\",1000)","v":"Mapped"},null,null,null,"PaidCY2017AY2010",0]
[null,null,{"$f":"XBRLMap(C12,C$85&\".\"&$U$4&\".\"&$U$5&\".\"&$U12&\".\"&C$89&\".\"&$U$7,$B$95,$B$96,CONFIGURATION!$B$10,\"BMA\",CONFIGURATION!$B$1,\"bscr\",1000)","v":"Mapped"},{"$f":"XBRLMap(D12,D$85&\".\"&$U$4&\".\"&$U$5&\".\"&$U12&\".\"&D$89&\".\"&$U$7,$B$95,$B$96,CONFIGURATION!$B$10,\"BMA\",CONFIGURATION!$B$1,\"bscr\",1000)","v":"Mapped"},{"$f":"XBRLMap(E12,E$85&\".\"&$U$4&\".\"&$U$5&\".\"&$U12&\".\"&E$89&\".\"&$U$7,$B$95,$B$96,CONFIGURATION!$B$10,\"BMA\",CONFIGURATION!$B$1,\"bscr\",1000)","v":"Mapped"},{"$f":"XBRLMap(F12,F$85&\".\"&$U$4&\".\"&$U$5&\".\"&$U12&\".\"&F$89&\".\"&$U$7,$B$95,$B$96,CONFIGURATION!$B$10,\"BMA\",CONFIGURATION!$B$1,\"bscr\",1000)","v":"Mapped"},{"$f":"XBRLMap(G12,G$85&\".\"&$U$4&\".\"&$U$5&\".\"&$U12&\".\"&G$89&\".\"&$U$7,$B$95,$B$96,CONFIGURATION!$B$10,\"BMA\",CONFIGURATION!$B$1,\"bscr\",1000)","v":"Mapped"},{"$f":"XBRLMap(H12,H$85&\".\"&$U$4&\".\"&$U$5&\".\"&$U12&\".\"&H$89&\".\"&$U$7,$B$95,$B$96,CONFIGURATION!$B$10,\"BMA\",CONFIGURATION!$B$1,\"bscr\",1000)","v":"Mapped"},{"$f":"XBRLMap(I12,I$85&\".\"&$U$4&\".\"&$U$5&\".\"&$U12&\".\"&I$89&\".\"&$U$7,$B$95,$B$96,CONFIGURATION!$B$10,\"BMA\",CONFIGURATION!$B$1,\"bscr\",1000)","v":"Mapped"},{"$f":"XBRLMap(J12,J$85&\".\"&$U$4&\".\"&$U$5&\".\"&$U12&\".\"&J$89&\".\"&$U$7,$B$95,$B$96,CONFIGURATION!$B$10,\"BMA\",CONFIGURATION!$B$1,\"bscr\",1000)","v":"Mapped"},{"$f":"XBRLMap(K12,K$85&\".\"&$U$4&\".\"&$U$5&\".\"&$U12&\".\"&K$89&\".\"&$U$7,$B$95,$B$96,CONFIGURATION!$B$10,\"BMA\",CONFIGURATION!$B$1,\"bscr\",1000)","v":"Mapped"},{"$f":"XBRLMap(L12,L$85&\".\"&$U$4&\".\"&$U$5&\".\"&$U12&\".\"&L$89&\".\"&$U$7,$B$95,$B$96,CONFIGURATION!$B$10,\"BMA\",CONFIGURATION!$B$1,\"bscr\",1000)","v":"Mapped"},{"$f":"XBRLMap(M12,M$85&\".\"&$U$4&\".\"&$U$5&\".\"&$U12&\".\"&M$89&\".\"&$U$7,$B$95,$B$96,CONFIGURATION!$B$10,\"BMA\",CONFIGURATION!$B$1,\"bscr\",1000)","v":"Mapped"},null,null,null,"PaidCY2017AY2011",0]
[null,null,null,{"$f":"XBRLMap(D13,D$85&\".\"&$U$4&\".\"&$U$5&\".\"&$U13&\".\"&D$89&\".\"&$U$7,$B$95,$B$96,CONFIGURATION!$B$10,\"BMA\",CONFIGURATION!$B$1,\"bscr\",1000)","v":"Mapped"},{"$f":"XBRLMap(E13,E$85&\".\"&$U$4&\".\"&$U$5&\".\"&$U13&\".\"&E$89&\".\"&$U$7,$B$95,$B$96,CONFIGURATION!$B$10,\"BMA\",CONFIGURATION!$B$1,\"bscr\",1000)","v":"Mapped"},{"$f":"XBRLMap(F13,F$85&\".\"&$U$4&\".\"&$U$5&\".\"&$U13&\".\"&F$89&\".\"&$U$7,$B$95,$B$96,CONFIGURATION!$B$10,\"BMA\",CONFIGURATION!$B$1,\"bscr\",1000)","v":"Mapped"},{"$f":"XBRLMap(G13,G$85&\".\"&$U$4&\".\"&$U$5&\".\"&$U13&\".\"&G$89&\".\"&$U$7,$B$95,$B$96,CONFIGURATION!$B$10,\"BMA\",CONFIGURATION!$B$1,\"bscr\",1000)","v":"Mapped"},{"$f":"XBRLMap(H13,H$85&\".\"&$U$4&\".\"&$U$5&\".\"&$U13&\".\"&H$89&\".\"&$U$7,$B$95,$B$96,CONFIGURATION!$B$10,\"BMA\",CONFIGURATION!$B$1,\"bscr\",1000)","v":"Mapped"},{"$f":"XBRLMap(I13,I$85&\".\"&$U$4&\".\"&$U$5&\".\"&$U13&\".\"&I$89&\".\"&$U$7,$B$95,$B$96,CONFIGURATION!$B$10,\"BMA\",CONFIGURATION!$B$1,\"bscr\",1000)","v":"Mapped"},{"$f":"XBRLMap(J13,J$85&\".\"&$U$4&\".\"&$U$5&\".\"&$U13&\".\"&J$89&\".\"&$U$7,$B$95,$B$96,CONFIGURATION!$B$10,\"BMA\",CONFIGURATION!$B$1,\"bscr\",1000)","v":"Mapped"},{"$f":"XBRLMap(K13,K$85&\".\"&$U$4&\".\"&$U$5&\".\"&$U13&\".\"&K$89&\".\"&$U$7,$B$95,$B$96,CONFIGURATION!$B$10,\"BMA\",CONFIGURATION!$B$1,\"bscr\",1000)","v":"Mapped"},{"$f":"XBRLMap(L13,L$85&\".\"&$U$4&\".\"&$U$5&\".\"&$U13&\".\"&L$89&\".\"&$U$7,$B$95,$B$96,CONFIGURATION!$B$10,\"BMA\",CONFIGURATION!$B$1,\"bscr\",1000)","v":"Mapped"},{"$f":"XBRLMap(M13,M$85&\".\"&$U$4&\".\"&$U$5&\".\"&$U13&\".\"&M$89&\".\"&$U$7,$B$95,$B$96,CONFIGURATION!$B$10,\"BMA\",CONFIGURATION!$B$1,\"bscr\",1000)","v":"Mapped"},null,null,null,"PaidCY2017AY2012",0]
[null,null,null,null,{"$f":"XBRLMap(E14,E$85&\".\"&$U$4&\".\"&$U$5&\".\"&$U14&\".\"&E$89&\".\"&$U$7,$B$95,$B$96,CONFIGURATION!$B$10,\"BMA\",CONFIGURATION!$B$1,\"bscr\",1000)","v":"Mapped"},{"$f":"XBRLMap(F14,F$85&\".\"&$U$4&\".\"&$U$5&\".\"&$U14&\".\"&F$89&\".\"&$U$7,$B$95,$B$96,CONFIGURATION!$B$10,\"BMA\",CONFIGURATION!$B$1,\"bscr\",1000)","v":"Mapped"},{"$f":"XBRLMap(G14,G$85&\".\"&$U$4&\".\"&$U$5&\".\"&$U14&\".\"&G$89&\".\"&$U$7,$B$95,$B$96,CONFIGURATION!$B$10,\"BMA\",CONFIGURATION!$B$1,\"bscr\",1000)","v":"Mapped"},{"$f":"XBRLMap(H14,H$85&\".\"&$U$4&\".\"&$U$5&\".\"&$U14&\".\"&H$89&\".\"&$U$7,$B$95,$B$96,CONFIGURATION!$B$10,\"BMA\",CONFIGURATION!$B$1,\"bscr\",1000)","v":"Mapped"},{"$f":"XBRLMap(I14,I$85&\".\"&$U$4&\".\"&$U$5&\".\"&$U14&\".\"&I$89&\".\"&$U$7,$B$95,$B$96,CONFIGURATION!$B$10,\"BMA\",CONFIGURATION!$B$1,\"bscr\",1000)","v":"Mapped"},{"$f":"XBRLMap(J14,J$85&\".\"&$U$4&\".\"&$U$5&\".\"&$U14&\".\"&J$89&\".\"&$U$7,$B$95,$B$96,CONFIGURATION!$B$10,\"BMA\",CONFIGURATION!$B$1,\"bscr\",1000)","v":"Mapped"},{"$f":"XBRLMap(K14,K$85&\".\"&$U$4&\".\"&$U$5&\".\"&$U14&\".\"&K$89&\".\"&$U$7,$B$95,$B$96,CONFIGURATION!$B$10,\"BMA\",CONFIGURATION!$B$1,\"bscr\",1000)","v":"Mapped"},{"$f":"XBRLMap(L14,L$85&\".\"&$U$4&\".\"&$U$5&\".\"&$U14&\".\"&L$89&\".\"&$U$7,$B$95,$B$96,CONFIGURATION!$B$10,\"BMA\",CONFIGURATION!$B$1,\"bscr\",1000)","v":"Mapped"},{"$f":"XBRLMap(M14,M$85&\".\"&$U$4&\".\"&$U$5&\".\"&$U14&\".\"&M$89&\".\"&$U$7,$B$95,$B$96,CONFIGURATION!$B$10,\"BMA\",CONFIGURATION!$B$1,\"bscr\",1000)","v":"Mapped"},null,null,null,"PaidCY2017AY2013",0]
[null,null,null,null,null,{"$f":"XBRLMap(F15,F$85&\".\"&$U$4&\".\"&$U$5&\".\"&$U15&\".\"&F$89&\".\"&$U$7,$B$95,$B$96,CONFIGURATION!$B$10,\"BMA\",CONFIGURATION!$B$1,\"bscr\",1000)","v":"Mapped"},{"$f":"XBRLMap(G15,G$85&\".\"&$U$4&\".\"&$U$5&\".\"&$U15&\".\"&G$89&\".\"&$U$7,$B$95,$B$96,CONFIGURATION!$B$10,\"BMA\",CONFIGURATION!$B$1,\"bscr\",1000)","v":"Mapped"},{"$f":"XBRLMap(H15,H$85&\".\"&$U$4&\".\"&$U$5&\".\"&$U15&\".\"&H$89&\".\"&$U$7,$B$95,$B$96,CONFIGURATION!$B$10,\"BMA\",CONFIGURATION!$B$1,\"bscr\",1000)","v":"Mapped"},{"$f":"XBRLMap(I15,I$85&\".\"&$U$4&\".\"&$U$5&\".\"&$U15&\".\"&I$89&\".\"&$U$7,$B$95,$B$96,CONFIGURATION!$B$10,\"BMA\",CONFIGURATION!$B$1,\"bscr\",1000)","v":"Mapped"},{"$f":"XBRLMap(J15,J$85&\".\"&$U$4&\".\"&$U$5&\".\"&$U15&\".\"&J$89&\".\"&$U$7,$B$95,$B$96,CONFIGURATION!$B$10,\"BMA\",CONFIGURATION!$B$1,\"bscr\",1000)","v":"Mapped"},{"$f":"XBRLMap(K15,K$85&\".\"&$U$4&\".\"&$U$5&\".\"&$U15&\".\"&K$89&\".\"&$U$7,$B$95,$B$96,CONFIGURATION!$B$10,\"BMA\",CONFIGURATION!$B$1,\"bscr\",1000)","v":"Mapped"},{"$f":"XBRLMap(L15,L$85&\".\"&$U$4&\".\"&$U$5&\".\"&$U15&\".\"&L$89&\".\"&$U$7,$B$95,$B$96,CONFIGURATION!$B$10,\"BMA\",CONFIGURATION!$B$1,\"bscr\",1000)","v":"Mapped"},{"$f":"XBRLMap(M15,M$85&\".\"&$U$4&\".\"&$U$5&\".\"&$U15&\".\"&M$89&\".\"&$U$7,$B$95,$B$96,CONFIGURATION!$B$10,\"BMA\",CONFIGURATION!$B$1,\"bscr\",1000)","v":"Mapped"},null,null,null,"PaidCY2017AY2014",0]
[null,null,null,null,null,null,{"$f":"XBRLMap(G16,G$85&\".\"&$U$4&\".\"&$U$5&\".\"&$U16&\".\"&G$89&\".\"&$U$7,$B$95,$B$96,CONFIGURATION!$B$10,\"BMA\",CONFIGURATION!$B$1,\"bscr\",1000)","v":"Mapped"},{"$f":"XBRLMap(H16,H$85&\".\"&$U$4&\".\"&$U$5&\".\"&$U16&\".\"&H$89&\".\"&$U$7,$B$95,$B$96,CONFIGURATION!$B$10,\"BMA\",CONFIGURATION!$B$1,\"bscr\",1000)","v":"Mapped"},{"$f":"XBRLMap(I16,I$85&\".\"&$U$4&\".\"&$U$5&\".\"&$U16&\".\"&I$89&\".\"&$U$7,$B$95,$B$96,CONFIGURATION!$B$10,\"BMA\",CONFIGURATION!$B$1,\"bscr\",1000)","v":"Mapped"},{"$f":"XBRLMap(J16,J$85&\".\"&$U$4&\".\"&$U$5&\".\"&$U16&\".\"&J$89&\".\"&$U$7,$B$95,$B$96,CONFIGURATION!$B$10,\"BMA\",CONFIGURATION!$B$1,\"bscr\",1000)","v":"Mapped"},{"$f":"XBRLMap(K16,K$85&\".\"&$U$4&\".\"&$U$5&\".\"&$U16&\".\"&K$89&\".\"&$U$7,$B$95,$B$96,CONFIGURATION!$B$10,\"BMA\",CONFIGURATION!$B$1,\"bscr\",1000)","v":"Mapped"},{"$f":"XBRLMap(L16,L$85&\".\"&$U$4&\".\"&$U$5&\".\"&$U16&\".\"&L$89&\".\"&$U$7,$B$95,$B$96,CONFIGURATION!$B$10,\"BMA\",CONFIGURATION!$B$1,\"bscr\",1000)","v":"Mapped"},{"$f":"XBRLMap(M16,M$85&\".\"&$U$4&\".\"&$U$5&\".\"&$U16&\".\"&M$89&\".\"&$U$7,$B$95,$B$96,CONFIGURATION!$B$10,\"BMA\",CONFIGURATION!$B$1,\"bscr\",1000)","v":"Mapped"},null,null,null,"PaidCY2017AY2015",0]
[null,null,null,null,null,null,null,{"$f":"XBRLMap(H17,H$85&\".\"&$U$4&\".\"&$U$5&\".\"&$U17&\".\"&H$89&\".\"&$U$7,$B$95,$B$96,CONFIGURATION!$B$10,\"BMA\",CONFIGURATION!$B$1,\"bscr\",1000)","v":"Mapped"},{"$f":"XBRLMap(I17,I$85&\".\"&$U$4&\".\"&$U$5&\".\"&$U17&\".\"&I$89&\".\"&$U$7,$B$95,$B$96,CONFIGURATION!$B$10,\"BMA\",CONFIGURATION!$B$1,\"bscr\",1000)","v":"Mapped"},{"$f":"XBRLMap(J17,J$85&\".\"&$U$4&\".\"&$U$5&\".\"&$U17&\".\"&J$89&\".\"&$U$7,$B$95,$B$96,CONFIGURATION!$B$10,\"BMA\",CONFIGURATION!$B$1,\"bscr\",1000)","v":"Mapped"},{"$f":"XBRLMap(K17,K$85&\".\"&$U$4&\".\"&$U$5&\".\"&$U17&\".\"&K$89&\".\"&$U$7,$B$95,$B$96,CONFIGURATION!$B$10,\"BMA\",CONFIGURATION!$B$1,\"bscr\",1000)","v":"Mapped"},{"$f":"XBRLMap(L17,L$85&\".\"&$U$4&\".\"&$U$5&\".\"&$U17&\".\"&L$89&\".\"&$U$7,$B$95,$B$96,CONFIGURATION!$B$10,\"BMA\",CONFIGURATION!$B$1,\"bscr\",1000)","v":"Mapped"},{"$f":"XBRLMap(M17,M$85&\".\"&$U$4&\".\"&$U$5&\".\"&$U17&\".\"&M$89&\".\"&$U$7,$B$95,$B$96,CONFIGURATION!$B$10,\"BMA\",CONFIGURATION!$B$1,\"bscr\",1000)","v":"Mapped"},null,null,null,"PaidCY2017AY2016",0]
[null,null,null,null,null,null,null,null,{"$f":"XBRLMap(I18,I$85&\".\"&$U$4&\".\"&$U$5&\".\"&$U18&\".\"&I$89&\".\"&$U$7,$B$95,$B$96,CONFIGURATION!$B$10,\"BMA\",CONFIGURATION!$B$1,\"bscr\",1000)","v":"Mapped"},{"$f":"XBRLMap(J18,J$85&\".\"&$U$4&\".\"&$U$5&\".\"&$U18&\".\"&J$89&\".\"&$U$7,$B$95,$B$96,CONFIGURATION!$B$10,\"BMA\",CONFIGURATION!$B$1,\"bscr\",1000)","v":"Mapped"},{"$f":"XBRLMap(K18,K$85&\".\"&$U$4&\".\"&$U$5&\".\"&$U18&\".\"&K$89&\".\"&$U$7,$B$95,$B$96,CONFIGURATION!$B$10,\"BMA\",CONFIGURATION!$B$1,\"bscr\",1000)","v":"Mapped"},{"$f":"XBRLMap(L18,L$85&\".\"&$U$4&\".\"&$U$5&\".\"&$U18&\".\"&L$89&\".\"&$U$7,$B$95,$B$96,CONFIGURATION!$B$10,\"BMA\",CONFIGURATION!$B$1,\"bscr\",1000)","v":"Mapped"},{"$f":"XBRLMap(M18,M$85&\".\"&$U$4&\".\"&$U$5&\".\"&$U18&\".\"&M$89&\".\"&$U$7,$B$95,$B$96,CONFIGURATION!$B$10,\"BMA\",CONFIGURATION!$B$1,\"bscr\",1000)","v":"Mapped"},null,null,null,"PaidCY2017AY2017",0]
[null,null,null,null,null,null,null,null,null,{"$f":"XBRLMap(J19,J$85&\".\"&$U$4&\".\"&$U$5&\".\"&$U19&\".\"&J$89&\".\"&$U$7,$B$95,$B$96,CONFIGURATION!$B$10,\"BMA\",CONFIGURATION!$B$1,\"bscr\",1000)","v":"Mapped"},{"$f":"XBRLMap(K19,K$85&\".\"&$U$4&\".\"&$U$5&\".\"&$U19&\".\"&K$89&\".\"&$U$7,$B$95,$B$96,CONFIGURATION!$B$10,\"BMA\",CONFIGURATION!$B$1,\"bscr\",1000)","v":"Mapped"},{"$f":"XBRLMap(L19,L$85&\".\"&$U$4&\".\"&$U$5&\".\"&$U19&\".\"&L$89&\".\"&$U$7,$B$95,$B$96,CONFIGURATION!$B$10,\"BMA\",CONFIGURATION!$B$1,\"bscr\",1000)","v":"Mapped"},{"$f":"XBRLMap(M19,M$85&\".\"&$U$4&\".\"&$U$5&\".\"&$U19&\".\"&M$89&\".\"&$U$7,$B$95,$B$96,CONFIGURATION!$B$10,\"BMA\",CONFIGURATION!$B$1,\"bscr\",1000)","v":"Mapped"},null,null,null,{"$f":"\"PaidCY\"&K$10&\"AY\"&B29","v":"PaidCY2018AYPrior"},{"$f":"K29","v":0}]
[null,null,null,null,null,null,null,null,null,null,{"$f":"XBRLMap(K20,K$85&\".\"&$U$4&\".\"&$U$5&\".\"&$U20&\".\"&K$89&\".\"&$U$7,$B$95,$B$96,CONFIGURATION!$B$10,\"BMA\",CONFIGURATION!$B$1,\"bscr\",1000)","v":"Mapped"},{"$f":"XBRLMap(L20,L$85&\".\"&$U$4&\".\"&$U$5&\".\"&$U20&\".\"&L$89&\".\"&$U$7,$B$95,$B$96,CONFIGURATION!$B$10,\"BMA\",CONFIGURATION!$B$1,\"bscr\",1000)","v":"Mapped"},{"$f":"XBRLMap(M20,M$85&\".\"&$U$4&\".\"&$U$5&\".\"&$U20&\".\"&M$89&\".\"&$U$7,$B$95,$B$96,CONFIGURATION!$B$10,\"BMA\",CONFIGURATION!$B$1,\"bscr\",1000)","v":"Mapped"},null,null,null,"PaidCY2018AY2010",0]
[null,null,null,null,null,null,null,null,null,null,null,{"$f":"XBRLMap(L21,L$85&\".\"&$U$4&\".\"&$U$5&\".\"&$U21&\".\"&L$89&\".\"&$U$7,$B$95,$B$96,CONFIGURATION!$B$10,\"BMA\",CONFIGURATION!$B$1,\"bscr\",1000)","v":"Mapped"},{"$f":"XBRLMap(M21,M$85&\".\"&$U$4&\".\"&$U$5&\".\"&$U21&\".\"&M$89&\".\"&$U$7,$B$95,$B$96,CONFIGURATION!$B$10,\"BMA\",CONFIGURATION!$B$1,\"bscr\",1000)","v":"Mapped"},null,null,null,"PaidCY2018AY2011",0]
[null,null,null,null,null,null,null,null,null,null,null,null,null,null,null,null,"PaidCY2018AY2012",0]
[null,null,null,null,null,null,null,null,null,null,null,null,null,null,null,null,"PaidCY2018AY2013",0]
[null,null,null,null,null,null,null,null,null,null,null,null,null,null,null,null,"PaidCY2018AY2014",0]
[null,null,null,null,null,null,null,null,null,null,null,null,null,null,null,null,"PaidCY2018AY2015",0]
[null,null,null,null,null,null,null,null,null,null,null,null,null,null,null,null,"PaidCY2018AY2016",0]
[null,null,null,null,null,null,null,null,null,null,null,null,null,null,null,null,"PaidCY2018AY2017",0]
[null,null,null,null,null,null,null,null,null,null,null,null,null,null,null,null,"PaidCY2018AY2018",0]
[null,null,null,null,null,null,null,null,null,null,null,null,null,null,null,null,{"$f":"\"PaidCY\"&L$10&\"AY\"&B29","v":"PaidCY2019AYPrior"},{"$f":"L29","v":0}]
[null,null,{"$f":"XBRLMap(C29,C$86&\".\"&$U$4&\".\"&$U29&\".\"&C$89&\".\"&$U$7,$B$95,$B$96,CONFIGURATION!$B$10,\"BMA\",CONFIGURATION!$B$1,\"bscr\",1000)","v":"Mapped"},{"$f":"XBRLMap(D29,D$86&\".\"&$U$4&\".\"&$U29&\".\"&D$89&\".\"&$U$7,$B$95,$B$96,CONFIGURATION!$B$10,\"BMA\",CONFIGURATION!$B$1,\"bscr\",1000)","v":"Mapped"},{"$f":"XBRLMap(E29,E$86&\".\"&$U$4&\".\"&$U29&\".\"&E$89&\".\"&$U$7,$B$95,$B$96,CONFIGURATION!$B$10,\"BMA\",CONFIGURATION!$B$1,\"bscr\",1000)","v":"Mapped"},{"$f":"XBRLMap(F29,F$86&\".\"&$U$4&\".\"&$U29&\".\"&F$89&\".\"&$U$7,$B$95,$B$96,CONFIGURATION!$B$10,\"BMA\",CONFIGURATION!$B$1,\"bscr\",1000)","v":"Mapped"},{"$f":"XBRLMap(G29,G$86&\".\"&$U$4&\".\"&$U29&\".\"&G$89&\".\"&$U$7,$B$95,$B$96,CONFIGURATION!$B$10,\"BMA\",CONFIGURATION!$B$1,\"bscr\",1000)","v":"Mapped"},{"$f":"XBRLMap(H29,H$86&\".\"&$U$4&\".\"&$U29&\".\"&H$89&\".\"&$U$7,$B$95,$B$96,CONFIGURATION!$B$10,\"BMA\",CONFIGURATION!$B$1,\"bscr\",1000)","v":"Mapped"},{"$f":"XBRLMap(I29,I$86&\".\"&$U$4&\".\"&$U29&\".\"&I$89&\".\"&$U$7,$B$95,$B$96,CONFIGURATION!$B$10,\"BMA\",CONFIGURATION!$B$1,\"bscr\",1000)","v":"Mapped"},{"$f":"XBRLMap(J29,J$86&\".\"&$U$4&\".\"&$U29&\".\"&J$89&\".\"&$U$7,$B$95,$B$96,CONFIGURATION!$B$10,\"BMA\",CONFIGURATION!$B$1,\"bscr\",1000)","v":"Mapped"},{"$f":"XBRLMap(K29,K$86&\".\"&$U$4&\".\"&$U29&\".\"&K$89&\".\"&$U$7,$B$95,$B$96,CONFIGURATION!$B$10,\"BMA\",CONFIGURATION!$B$1,\"bscr\",1000)","v":"Mapped"},{"$f":"XBRLMap(L29,L$86&\".\"&$U$4&\".\"&$U29&\".\"&L$89&\".\"&$U$7,$B$95,$B$96,CONFIGURATION!$B$10,\"BMA\",CONFIGURATION!$B$1,\"bscr\",1000)","v":"Mapped"},{"$f":"XBRLMap(M29,M$86&\".\"&$U$4&\".\"&$U29&\".\"&M$89&\".\"&$U$7,$B$95,$B$96,CONFIGURATION!$B$10,\"BMA\",CONFIGURATION!$B$1,\"bscr\",1000)","v":"Mapped"},null,null,null,"PaidCY2019AY2010",0]
[null,null,{"$f":"XBRLMap(C30,C$86&\".\"&$U$4&\".\"&$U30&\".\"&C$89&\".\"&$U$7,$B$95,$B$96,CONFIGURATION!$B$10,\"BMA\",CONFIGURATION!$B$1,\"bscr\",1000)","v":"Mapped"},{"$f":"XBRLMap(D30,D$86&\".\"&$U$4&\".\"&$U30&\".\"&D$89&\".\"&$U$7,$B$95,$B$96,CONFIGURATION!$B$10,\"BMA\",CONFIGURATION!$B$1,\"bscr\",1000)","v":"Mapped"},{"$f":"XBRLMap(E30,E$86&\".\"&$U$4&\".\"&$U30&\".\"&E$89&\".\"&$U$7,$B$95,$B$96,CONFIGURATION!$B$10,\"BMA\",CONFIGURATION!$B$1,\"bscr\",1000)","v":"Mapped"},{"$f":"XBRLMap(F30,F$86&\".\"&$U$4&\".\"&$U30&\".\"&F$89&\".\"&$U$7,$B$95,$B$96,CONFIGURATION!$B$10,\"BMA\",CONFIGURATION!$B$1,\"bscr\",1000)","v":"Mapped"},{"$f":"XBRLMap(G30,G$86&\".\"&$U$4&\".\"&$U30&\".\"&G$89&\".\"&$U$7,$B$95,$B$96,CONFIGURATION!$B$10,\"BMA\",CONFIGURATION!$B$1,\"bscr\",1000)","v":"Mapped"},{"$f":"XBRLMap(H30,H$86&\".\"&$U$4&\".\"&$U30&\".\"&H$89&\".\"&$U$7,$B$95,$B$96,CONFIGURATION!$B$10,\"BMA\",CONFIGURATION!$B$1,\"bscr\",1000)","v":"Mapped"},{"$f":"XBRLMap(I30,I$86&\".\"&$U$4&\".\"&$U30&\".\"&I$89&\".\"&$U$7,$B$95,$B$96,CONFIGURATION!$B$10,\"BMA\",CONFIGURATION!$B$1,\"bscr\",1000)","v":"Mapped"},{"$f":"XBRLMap(J30,J$86&\".\"&$U$4&\".\"&$U30&\".\"&J$89&\".\"&$U$7,$B$95,$B$96,CONFIGURATION!$B$10,\"BMA\",CONFIGURATION!$B$1,\"bscr\",1000)","v":"Mapped"},{"$f":"XBRLMap(K30,K$86&\".\"&$U$4&\".\"&$U30&\".\"&K$89&\".\"&$U$7,$B$95,$B$96,CONFIGURATION!$B$10,\"BMA\",CONFIGURATION!$B$1,\"bscr\",1000)","v":"Mapped"},{"$f":"XBRLMap(L30,L$86&\".\"&$U$4&\".\"&$U30&\".\"&L$89&\".\"&$U$7,$B$95,$B$96,CONFIGURATION!$B$10,\"BMA\",CONFIGURATION!$B$1,\"bscr\",1000)","v":"Mapped"},{"$f":"XBRLMap(M30,M$86&\".\"&$U$4&\".\"&$U30&\".\"&M$89&\".\"&$U$7,$B$95,$B$96,CONFIGURATION!$B$10,\"BMA\",CONFIGURATION!$B$1,\"bscr\",1000)","v":"Mapped"},null,null,null,"PaidCY2019AY2011",0]
[null,null,null,{"$f":"XBRLMap(D31,D$86&\".\"&$U$4&\".\"&$U31&\".\"&D$89&\".\"&$U$7,$B$95,$B$96,CONFIGURATION!$B$10,\"BMA\",CONFIGURATION!$B$1,\"bscr\",1000)","v":"Mapped"},{"$f":"XBRLMap(E31,E$86&\".\"&$U$4&\".\"&$U31&\".\"&E$89&\".\"&$U$7,$B$95,$B$96,CONFIGURATION!$B$10,\"BMA\",CONFIGURATION!$B$1,\"bscr\",1000)","v":"Mapped"},{"$f":"XBRLMap(F31,F$86&\".\"&$U$4&\".\"&$U31&\".\"&F$89&\".\"&$U$7,$B$95,$B$96,CONFIGURATION!$B$10,\"BMA\",CONFIGURATION!$B$1,\"bscr\",1000)","v":"Mapped"},{"$f":"XBRLMap(G31,G$86&\".\"&$U$4&\".\"&$U31&\".\"&G$89&\".\"&$U$7,$B$95,$B$96,CONFIGURATION!$B$10,\"BMA\",CONFIGURATION!$B$1,\"bscr\",1000)","v":"Mapped"},{"$f":"XBRLMap(H31,H$86&\".\"&$U$4&\".\"&$U31&\".\"&H$89&\".\"&$U$7,$B$95,$B$96,CONFIGURATION!$B$10,\"BMA\",CONFIGURATION!$B$1,\"bscr\",1000)","v":"Mapped"},{"$f":"XBRLMap(I31,I$86&\".\"&$U$4&\".\"&$U31&\".\"&I$89&\".\"&$U$7,$B$95,$B$96,CONFIGURATION!$B$10,\"BMA\",CONFIGURATION!$B$1,\"bscr\",1000)","v":"Mapped"},{"$f":"XBRLMap(J31,J$86&\".\"&$U$4&\".\"&$U31&\".\"&J$89&\".\"&$U$7,$B$95,$B$96,CONFIGURATION!$B$10,\"BMA\",CONFIGURATION!$B$1,\"bscr\",1000)","v":"Mapped"},{"$f":"XBRLMap(K31,K$86&\".\"&$U$4&\".\"&$U31&\".\"&K$89&\".\"&$U$7,$B$95,$B$96,CONFIGURATION!$B$10,\"BMA\",CONFIGURATION!$B$1,\"bscr\",1000)","v":"Mapped"},{"$f":"XBRLMap(L31,L$86&\".\"&$U$4&\".\"&$U31&\".\"&L$89&\".\"&$U$7,$B$95,$B$96,CONFIGURATION!$B$10,\"BMA\",CONFIGURATION!$B$1,\"bscr\",1000)","v":"Mapped"},{"$f":"XBRLMap(M31,M$86&\".\"&$U$4&\".\"&$U31&\".\"&M$89&\".\"&$U$7,$B$95,$B$96,CONFIGURATION!$B$10,\"BMA\",CONFIGURATION!$B$1,\"bscr\",1000)","v":"Mapped"},null,null,null,"PaidCY2019AY2012",0]
[null,null,null,null,{"$f":"XBRLMap(E32,E$86&\".\"&$U$4&\".\"&$U32&\".\"&E$89&\".\"&$U$7,$B$95,$B$96,CONFIGURATION!$B$10,\"BMA\",CONFIGURATION!$B$1,\"bscr\",1000)","v":"Mapped"},{"$f":"XBRLMap(F32,F$86&\".\"&$U$4&\".\"&$U32&\".\"&F$89&\".\"&$U$7,$B$95,$B$96,CONFIGURATION!$B$10,\"BMA\",CONFIGURATION!$B$1,\"bscr\",1000)","v":"Mapped"},{"$f":"XBRLMap(G32,G$86&\".\"&$U$4&\".\"&$U32&\".\"&G$89&\".\"&$U$7,$B$95,$B$96,CONFIGURATION!$B$10,\"BMA\",CONFIGURATION!$B$1,\"bscr\",1000)","v":"Mapped"},{"$f":"XBRLMap(H32,H$86&\".\"&$U$4&\".\"&$U32&\".\"&H$89&\".\"&$U$7,$B$95,$B$96,CONFIGURATION!$B$10,\"BMA\",CONFIGURATION!$B$1,\"bscr\",1000)","v":"Mapped"},{"$f":"XBRLMap(I32,I$86&\".\"&$U$4&\".\"&$U32&\".\"&I$89&\".\"&$U$7,$B$95,$B$96,CONFIGURATION!$B$10,\"BMA\",CONFIGURATION!$B$1,\"bscr\",1000)","v":"Mapped"},{"$f":"XBRLMap(J32,J$86&\".\"&$U$4&\".\"&$U32&\".\"&J$89&\".\"&$U$7,$B$95,$B$96,CONFIGURATION!$B$10,\"BMA\",CONFIGURATION!$B$1,\"bscr\",1000)","v":"Mapped"},{"$f":"XBRLMap(K32,K$86&\".\"&$U$4&\".\"&$U32&\".\"&K$89&\".\"&$U$7,$B$95,$B$96,CONFIGURATION!$B$10,\"BMA\",CONFIGURATION!$B$1,\"bscr\",1000)","v":"Mapped"},{"$f":"XBRLMap(L32,L$86&\".\"&$U$4&\".\"&$U32&\".\"&L$89&\".\"&$U$7,$B$95,$B$96,CONFIGURATION!$B$10,\"BMA\",CONFIGURATION!$B$1,\"bscr\",1000)","v":"Mapped"},{"$f":"XBRLMap(M32,M$86&\".\"&$U$4&\".\"&$U32&\".\"&M$89&\".\"&$U$7,$B$95,$B$96,CONFIGURATION!$B$10,\"BMA\",CONFIGURATION!$B$1,\"bscr\",1000)","v":"Mapped"},null,null,null,"PaidCY2019AY2013",0]
[null,null,null,null,null,{"$f":"XBRLMap(F33,F$86&\".\"&$U$4&\".\"&$U33&\".\"&F$89&\".\"&$U$7,$B$95,$B$96,CONFIGURATION!$B$10,\"BMA\",CONFIGURATION!$B$1,\"bscr\",1000)","v":"Mapped"},{"$f":"XBRLMap(G33,G$86&\".\"&$U$4&\".\"&$U33&\".\"&G$89&\".\"&$U$7,$B$95,$B$96,CONFIGURATION!$B$10,\"BMA\",CONFIGURATION!$B$1,\"bscr\",1000)","v":"Mapped"},{"$f":"XBRLMap(H33,H$86&\".\"&$U$4&\".\"&$U33&\".\"&H$89&\".\"&$U$7,$B$95,$B$96,CONFIGURATION!$B$10,\"BMA\",CONFIGURATION!$B$1,\"bscr\",1000)","v":"Mapped"},{"$f":"XBRLMap(I33,I$86&\".\"&$U$4&\".\"&$U33&\".\"&I$89&\".\"&$U$7,$B$95,$B$96,CONFIGURATION!$B$10,\"BMA\",CONFIGURATION!$B$1,\"bscr\",1000)","v":"Mapped"},{"$f":"XBRLMap(J33,J$86&\".\"&$U$4&\".\"&$U33&\".\"&J$89&\".\"&$U$7,$B$95,$B$96,CONFIGURATION!$B$10,\"BMA\",CONFIGURATION!$B$1,\"bscr\",1000)","v":"Mapped"},{"$f":"XBRLMap(K33,K$86&\".\"&$U$4&\".\"&$U33&\".\"&K$89&\".\"&$U$7,$B$95,$B$96,CONFIGURATION!$B$10,\"BMA\",CONFIGURATION!$B$1,\"bscr\",1000)","v":"Mapped"},{"$f":"XBRLMap(L33,L$86&\".\"&$U$4&\".\"&$U33&\".\"&L$89&\".\"&$U$7,$B$95,$B$96,CONFIGURATION!$B$10,\"BMA\",CONFIGURATION!$B$1,\"bscr\",1000)","v":"Mapped"},{"$f":"XBRLMap(M33,M$86&\".\"&$U$4&\".\"&$U33&\".\"&M$89&\".\"&$U$7,$B$95,$B$96,CONFIGURATION!$B$10,\"BMA\",CONFIGURATION!$B$1,\"bscr\",1000)","v":"Mapped"},null,null,null,"PaidCY2019AY2014",0]
[null,null,null,null,null,null,{"$f":"XBRLMap(G34,G$86&\".\"&$U$4&\".\"&$U34&\".\"&G$89&\".\"&$U$7,$B$95,$B$96,CONFIGURATION!$B$10,\"BMA\",CONFIGURATION!$B$1,\"bscr\",1000)","v":"Mapped"},{"$f":"XBRLMap(H34,H$86&\".\"&$U$4&\".\"&$U34&\".\"&H$89&\".\"&$U$7,$B$95,$B$96,CONFIGURATION!$B$10,\"BMA\",CONFIGURATION!$B$1,\"bscr\",1000)","v":"Mapped"},{"$f":"XBRLMap(I34,I$86&\".\"&$U$4&\".\"&$U34&\".\"&I$89&\".\"&$U$7,$B$95,$B$96,CONFIGURATION!$B$10,\"BMA\",CONFIGURATION!$B$1,\"bscr\",1000)","v":"Mapped"},{"$f":"XBRLMap(J34,J$86&\".\"&$U$4&\".\"&$U34&\".\"&J$89&\".\"&$U$7,$B$95,$B$96,CONFIGURATION!$B$10,\"BMA\",CONFIGURATION!$B$1,\"bscr\",1000)","v":"Mapped"},{"$f":"XBRLMap(K34,K$86&\".\"&$U$4&\".\"&$U34&\".\"&K$89&\".\"&$U$7,$B$95,$B$96,CONFIGURATION!$B$10,\"BMA\",CONFIGURATION!$B$1,\"bscr\",1000)","v":"Mapped"},{"$f":"XBRLMap(L34,L$86&\".\"&$U$4&\".\"&$U34&\".\"&L$89&\".\"&$U$7,$B$95,$B$96,CONFIGURATION!$B$10,\"BMA\",CONFIGURATION!$B$1,\"bscr\",1000)","v":"Mapped"},{"$f":"XBRLMap(M34,M$86&\".\"&$U$4&\".\"&$U34&\".\"&M$89&\".\"&$U$7,$B$95,$B$96,CONFIGURATION!$B$10,\"BMA\",CONFIGURATION!$B$1,\"bscr\",1000)","v":"Mapped"},null,null,null,"PaidCY2019AY2015",0]
[null,null,null,null,null,null,null,{"$f":"XBRLMap(H35,H$86&\".\"&$U$4&\".\"&$U35&\".\"&H$89&\".\"&$U$7,$B$95,$B$96,CONFIGURATION!$B$10,\"BMA\",CONFIGURATION!$B$1,\"bscr\",1000)","v":"Mapped"},{"$f":"XBRLMap(I35,I$86&\".\"&$U$4&\".\"&$U35&\".\"&I$89&\".\"&$U$7,$B$95,$B$96,CONFIGURATION!$B$10,\"BMA\",CONFIGURATION!$B$1,\"bscr\",1000)","v":"Mapped"},{"$f":"XBRLMap(J35,J$86&\".\"&$U$4&\".\"&$U35&\".\"&J$89&\".\"&$U$7,$B$95,$B$96,CONFIGURATION!$B$10,\"BMA\",CONFIGURATION!$B$1,\"bscr\",1000)","v":"Mapped"},{"$f":"XBRLMap(K35,K$86&\".\"&$U$4&\".\"&$U35&\".\"&K$89&\".\"&$U$7,$B$95,$B$96,CONFIGURATION!$B$10,\"BMA\",CONFIGURATION!$B$1,\"bscr\",1000)","v":"Mapped"},{"$f":"XBRLMap(L35,L$86&\".\"&$U$4&\".\"&$U35&\".\"&L$89&\".\"&$U$7,$B$95,$B$96,CONFIGURATION!$B$10,\"BMA\",CONFIGURATION!$B$1,\"bscr\",1000)","v":"Mapped"},{"$f":"XBRLMap(M35,M$86&\".\"&$U$4&\".\"&$U35&\".\"&M$89&\".\"&$U$7,$B$95,$B$96,CONFIGURATION!$B$10,\"BMA\",CONFIGURATION!$B$1,\"bscr\",1000)","v":"Mapped"},null,null,null,"PaidCY2019AY2016",0]
[null,null,null,null,null,null,null,null,{"$f":"XBRLMap(I36,I$86&\".\"&$U$4&\".\"&$U36&\".\"&I$89&\".\"&$U$7,$B$95,$B$96,CONFIGURATION!$B$10,\"BMA\",CONFIGURATION!$B$1,\"bscr\",1000)","v":"Mapped"},{"$f":"XBRLMap(J36,J$86&\".\"&$U$4&\".\"&$U36&\".\"&J$89&\".\"&$U$7,$B$95,$B$96,CONFIGURATION!$B$10,\"BMA\",CONFIGURATION!$B$1,\"bscr\",1000)","v":"Mapped"},{"$f":"XBRLMap(K36,K$86&\".\"&$U$4&\".\"&$U36&\".\"&K$89&\".\"&$U$7,$B$95,$B$96,CONFIGURATION!$B$10,\"BMA\",CONFIGURATION!$B$1,\"bscr\",1000)","v":"Mapped"},{"$f":"XBRLMap(L36,L$86&\".\"&$U$4&\".\"&$U36&\".\"&L$89&\".\"&$U$7,$B$95,$B$96,CONFIGURATION!$B$10,\"BMA\",CONFIGURATION!$B$1,\"bscr\",1000)","v":"Mapped"},{"$f":"XBRLMap(M36,M$86&\".\"&$U$4&\".\"&$U36&\".\"&M$89&\".\"&$U$7,$B$95,$B$96,CONFIGURATION!$B$10,\"BMA\",CONFIGURATION!$B$1,\"bscr\",1000)","v":"Mapped"},null,null,null,"PaidCY2019AY2017",0]
[null,null,null,null,null,null,null,null,null,{"$f":"XBRLMap(J37,J$86&\".\"&$U$4&\".\"&$U37&\".\"&J$89&\".\"&$U$7,$B$95,$B$96,CONFIGURATION!$B$10,\"BMA\",CONFIGURATION!$B$1,\"bscr\",1000)","v":"Mapped"},{"$f":"XBRLMap(K37,K$86&\".\"&$U$4&\".\"&$U37&\".\"&K$89&\".\"&$U$7,$B$95,$B$96,CONFIGURATION!$B$10,\"BMA\",CONFIGURATION!$B$1,\"bscr\",1000)","v":"Mapped"},{"$f":"XBRLMap(L37,L$86&\".\"&$U$4&\".\"&$U37&\".\"&L$89&\".\"&$U$7,$B$95,$B$96,CONFIGURATION!$B$10,\"BMA\",CONFIGURATION!$B$1,\"bscr\",1000)","v":"Mapped"},{"$f":"XBRLMap(M37,M$86&\".\"&$U$4&\".\"&$U37&\".\"&M$89&\".\"&$U$7,$B$95,$B$96,CONFIGURATION!$B$10,\"BMA\",CONFIGURATION!$B$1,\"bscr\",1000)","v":"Mapped"},null,null,null,"PaidCY2019AY2018",0]
[null,null,null,null,null,null,null,null,null,null,{"$f":"XBRLMap(K38,K$86&\".\"&$U$4&\".\"&$U38&\".\"&K$89&\".\"&$U$7,$B$95,$B$96,CONFIGURATION!$B$10,\"BMA\",CONFIGURATION!$B$1,\"bscr\",1000)","v":"Mapped"},{"$f":"XBRLMap(L38,L$86&\".\"&$U$4&\".\"&$U38&\".\"&L$89&\".\"&$U$7,$B$95,$B$96,CONFIGURATION!$B$10,\"BMA\",CONFIGURATION!$B$1,\"bscr\",1000)","v":"Mapped"},{"$f":"XBRLMap(M38,M$86&\".\"&$U$4&\".\"&$U38&\".\"&M$89&\".\"&$U$7,$B$95,$B$96,CONFIGURATION!$B$10,\"BMA\",CONFIGURATION!$B$1,\"bscr\",1000)","v":"Mapped"},null,null,null,"PaidCY2019AY2019",0]
[null,null,null,null,null,null,null,null,null,null,null,{"$f":"XBRLMap(L39,L$86&\".\"&$U$4&\".\"&$U39&\".\"&L$89&\".\"&$U$7,$B$95,$B$96,CONFIGURATION!$B$10,\"BMA\",CONFIGURATION!$B$1,\"bscr\",1000)","v":"Mapped"},{"$f":"XBRLMap(M39,M$86&\".\"&$U$4&\".\"&$U39&\".\"&M$89&\".\"&$U$7,$B$95,$B$96,CONFIGURATION!$B$10,\"BMA\",CONFIGURATION!$B$1,\"bscr\",1000)","v":"Mapped"},null,null,null,{"$f":"\"IBNRCY\"&C$10&\"AY\"&B47","v":"IBNRCY2010AYPrior"},{"$f":"C47","v":0}]
[null,null,null,null,null,null,null,null,null,null,null,null,null,null,null,null,{"$f":"\"IBNRCY\"&C$10&\"AY\"&B48","v":"IBNRCY2010AY2010"},{"$f":"C48","v":0}]
[null,null,null,null,null,null,null,null,null,null,null,null,null,null,null,null,{"$f":"\"IBNRCY\"&D$10&\"AY\"&B47","v":"IBNRCY2011AYPrior"},{"$f":"D47","v":0}]
[null,null,null,null,null,null,null,null,null,null,null,null,null,null,null,null,{"$f":"\"IBNRCY\"&D$10&\"AY\"&B48","v":"IBNRCY2011AY2010"},{"$f":"D48","v":0}]
[null,null,null,null,null,null,null,null,null,null,null,null,null,null,null,null,{"$f":"\"IBNRCY\"&D$10&\"AY\"&B49","v":"IBNRCY2011AY2011"},{"$f":"D49","v":0}]
[null,null,null,null,null,null,null,null,null,null,null,null,null,null,null,null,{"$f":"\"IBNRCY\"&E$10&\"AY\"&B47","v":"IBNRCY2012AYPrior"},{"$f":"E47","v":0}]
[null,null,null,null,null,null,null,null,null,null,null,null,null,null,null,null,{"$f":"\"IBNRCY\"&E$10&\"AY\"&B48","v":"IBNRCY2012AY2010"},{"$f":"E48","v":0}]
[null,null,null,null,null,null,null,null,null,null,null,null,null,null,null,null,{"$f":"\"IBNRCY\"&E$10&\"AY\"&B49","v":"IBNRCY2012AY2011"},{"$f":"E49","v":0}]
[null,null,null,null,null,null,null,null,null,null,null,null,null,null,null,null,{"$f":"\"IBNRCY\"&E$10&\"AY\"&B50","v":"IBNRCY2012AY2012"},{"$f":"E50","v":0}]
[null,null,{"$f":"XBRLMap(C47,C$87&\".\"&$U$4&\".\"&$U47&\".\"&C$89&\".\"&$U$7,$B$95,$B$96,CONFIGURATION!$B$10,\"BMA\",CONFIGURATION!$B$1,\"bscr\",1000)","v":"Mapped"},{"$f":"XBRLMap(D47,D$87&\".\"&$U$4&\".\"&$U47&\".\"&D$89&\".\"&$U$7,$B$95,$B$96,CONFIGURATION!$B$10,\"BMA\",CONFIGURATION!$B$1,\"bscr\",1000)","v":"Mapped"},{"$f":"XBRLMap(E47,E$87&\".\"&$U$4&\".\"&$U47&\".\"&E$89&\".\"&$U$7,$B$95,$B$96,CONFIGURATION!$B$10,\"BMA\",CONFIGURATION!$B$1,\"bscr\",1000)","v":"Mapped"},{"$f":"XBRLMap(F47,F$87&\".\"&$U$4&\".\"&$U47&\".\"&F$89&\".\"&$U$7,$B$95,$B$96,CONFIGURATION!$B$10,\"BMA\",CONFIGURATION!$B$1,\"bscr\",1000)","v":"Mapped"},{"$f":"XBRLMap(G47,G$87&\".\"&$U$4&\".\"&$U47&\".\"&G$89&\".\"&$U$7,$B$95,$B$96,CONFIGURATION!$B$10,\"BMA\",CONFIGURATION!$B$1,\"bscr\",1000)","v":"Mapped"},{"$f":"XBRLMap(H47,H$87&\".\"&$U$4&\".\"&$U47&\".\"&H$89&\".\"&$U$7,$B$95,$B$96,CONFIGURATION!$B$10,\"BMA\",CONFIGURATION!$B$1,\"bscr\",1000)","v":"Mapped"},{"$f":"XBRLMap(I47,I$87&\".\"&$U$4&\".\"&$U47&\".\"&I$89&\".\"&$U$7,$B$95,$B$96,CONFIGURATION!$B$10,\"BMA\",CONFIGURATION!$B$1,\"bscr\",1000)","v":"Mapped"},{"$f":"XBRLMap(J47,J$87&\".\"&$U$4&\".\"&$U47&\".\"&J$89&\".\"&$U$7,$B$95,$B$96,CONFIGURATION!$B$10,\"BMA\",CONFIGURATION!$B$1,\"bscr\",1000)","v":"Mapped"},{"$f":"XBRLMap(K47,K$87&\".\"&$U$4&\".\"&$U47&\".\"&K$89&\".\"&$U$7,$B$95,$B$96,CONFIGURATION!$B$10,\"BMA\",CONFIGURATION!$B$1,\"bscr\",1000)","v":"Mapped"},{"$f":"XBRLMap(L47,L$87&\".\"&$U$4&\".\"&$U47&\".\"&L$89&\".\"&$U$7,$B$95,$B$96,CONFIGURATION!$B$10,\"BMA\",CONFIGURATION!$B$1,\"bscr\",1000)","v":"Mapped"},{"$f":"XBRLMap(M47,M$87&\".\"&$U$4&\".\"&$U47&\".\"&M$89&\".\"&$U$7,$B$95,$B$96,CONFIGURATION!$B$10,\"BMA\",CONFIGURATION!$B$1,\"bscr\",1000)","v":"Mapped"},null,null,null,{"$f":"\"IBNRCY\"&F$10&\"AY\"&B47","v":"IBNRCY2013AYPrior"},{"$f":"F47","v":0}]
[null,null,{"$f":"XBRLMap(C48,C$87&\".\"&$U$4&\".\"&$U48&\".\"&C$89&\".\"&$U$7,$B$95,$B$96,CONFIGURATION!$B$10,\"BMA\",CONFIGURATION!$B$1,\"bscr\",1000)","v":"Mapped"},{"$f":"XBRLMap(D48,D$87&\".\"&$U$4&\".\"&$U48&\".\"&D$89&\".\"&$U$7,$B$95,$B$96,CONFIGURATION!$B$10,\"BMA\",CONFIGURATION!$B$1,\"bscr\",1000)","v":"Mapped"},{"$f":"XBRLMap(E48,E$87&\".\"&$U$4&\".\"&$U48&\".\"&E$89&\".\"&$U$7,$B$95,$B$96,CONFIGURATION!$B$10,\"BMA\",CONFIGURATION!$B$1,\"bscr\",1000)","v":"Mapped"},{"$f":"XBRLMap(F48,F$87&\".\"&$U$4&\".\"&$U48&\".\"&F$89&\".\"&$U$7,$B$95,$B$96,CONFIGURATION!$B$10,\"BMA\",CONFIGURATION!$B$1,\"bscr\",1000)","v":"Mapped"},{"$f":"XBRLMap(G48,G$87&\".\"&$U$4&\".\"&$U48&\".\"&G$89&\".\"&$U$7,$B$95,$B$96,CONFIGURATION!$B$10,\"BMA\",CONFIGURATION!$B$1,\"bscr\",1000)","v":"Mapped"},{"$f":"XBRLMap(H48,H$87&\".\"&$U$4&\".\"&$U48&\".\"&H$89&\".\"&$U$7,$B$95,$B$96,CONFIGURATION!$B$10,\"BMA\",CONFIGURATION!$B$1,\"bscr\",1000)","v":"Mapped"},{"$f":"XBRLMap(I48,I$87&\".\"&$U$4&\".\"&$U48&\".\"&I$89&\".\"&$U$7,$B$95,$B$96,CONFIGURATION!$B$10,\"BMA\",CONFIGURATION!$B$1,\"bscr\",1000)","v":"Mapped"},{"$f":"XBRLMap(J48,J$87&\".\"&$U$4&\".\"&$U48&\".\"&J$89&\".\"&$U$7,$B$95,$B$96,CONFIGURATION!$B$10,\"BMA\",CONFIGURATION!$B$1,\"bscr\",1000)","v":"Mapped"},{"$f":"XBRLMap(K48,K$87&\".\"&$U$4&\".\"&$U48&\".\"&K$89&\".\"&$U$7,$B$95,$B$96,CONFIGURATION!$B$10,\"BMA\",CONFIGURATION!$B$1,\"bscr\",1000)","v":"Mapped"},{"$f":"XBRLMap(L48,L$87&\".\"&$U$4&\".\"&$U48&\".\"&L$89&\".\"&$U$7,$B$95,$B$96,CONFIGURATION!$B$10,\"BMA\",CONFIGURATION!$B$1,\"bscr\",1000)","v":"Mapped"},{"$f":"XBRLMap(M48,M$87&\".\"&$U$4&\".\"&$U48&\".\"&M$89&\".\"&$U$7,$B$95,$B$96,CONFIGURATION!$B$10,\"BMA\",CONFIGURATION!$B$1,\"bscr\",1000)","v":"Mapped"},null,null,null,{"$f":"\"IBNRCY\"&F$10&\"AY\"&B48","v":"IBNRCY2013AY2010"},{"$f":"F48","v":0}]
[null,null,null,{"$f":"XBRLMap(D49,D$87&\".\"&$U$4&\".\"&$U49&\".\"&D$89&\".\"&$U$7,$B$95,$B$96,CONFIGURATION!$B$10,\"BMA\",CONFIGURATION!$B$1,\"bscr\",1000)","v":"Mapped"},{"$f":"XBRLMap(E49,E$87&\".\"&$U$4&\".\"&$U49&\".\"&E$89&\".\"&$U$7,$B$95,$B$96,CONFIGURATION!$B$10,\"BMA\",CONFIGURATION!$B$1,\"bscr\",1000)","v":"Mapped"},{"$f":"XBRLMap(F49,F$87&\".\"&$U$4&\".\"&$U49&\".\"&F$89&\".\"&$U$7,$B$95,$B$96,CONFIGURATION!$B$10,\"BMA\",CONFIGURATION!$B$1,\"bscr\",1000)","v":"Mapped"},{"$f":"XBRLMap(G49,G$87&\".\"&$U$4&\".\"&$U49&\".\"&G$89&\".\"&$U$7,$B$95,$B$96,CONFIGURATION!$B$10,\"BMA\",CONFIGURATION!$B$1,\"bscr\",1000)","v":"Mapped"},{"$f":"XBRLMap(H49,H$87&\".\"&$U$4&\".\"&$U49&\".\"&H$89&\".\"&$U$7,$B$95,$B$96,CONFIGURATION!$B$10,\"BMA\",CONFIGURATION!$B$1,\"bscr\",1000)","v":"Mapped"},{"$f":"XBRLMap(I49,I$87&\".\"&$U$4&\".\"&$U49&\".\"&I$89&\".\"&$U$7,$B$95,$B$96,CONFIGURATION!$B$10,\"BMA\",CONFIGURATION!$B$1,\"bscr\",1000)","v":"Mapped"},{"$f":"XBRLMap(J49,J$87&\".\"&$U$4&\".\"&$U49&\".\"&J$89&\".\"&$U$7,$B$95,$B$96,CONFIGURATION!$B$10,\"BMA\",CONFIGURATION!$B$1,\"bscr\",1000)","v":"Mapped"},{"$f":"XBRLMap(K49,K$87&\".\"&$U$4&\".\"&$U49&\".\"&K$89&\".\"&$U$7,$B$95,$B$96,CONFIGURATION!$B$10,\"BMA\",CONFIGURATION!$B$1,\"bscr\",1000)","v":"Mapped"},{"$f":"XBRLMap(L49,L$87&\".\"&$U$4&\".\"&$U49&\".\"&L$89&\".\"&$U$7,$B$95,$B$96,CONFIGURATION!$B$10,\"BMA\",CONFIGURATION!$B$1,\"bscr\",1000)","v":"Mapped"},{"$f":"XBRLMap(M49,M$87&\".\"&$U$4&\".\"&$U49&\".\"&M$89&\".\"&$U$7,$B$95,$B$96,CONFIGURATION!$B$10,\"BMA\",CONFIGURATION!$B$1,\"bscr\",1000)","v":"Mapped"},null,null,null,{"$f":"\"IBNRCY\"&F$10&\"AY\"&B49","v":"IBNRCY2013AY2011"},{"$f":"F49","v":0}]
[null,null,null,null,{"$f":"XBRLMap(E50,E$87&\".\"&$U$4&\".\"&$U50&\".\"&E$89&\".\"&$U$7,$B$95,$B$96,CONFIGURATION!$B$10,\"BMA\",CONFIGURATION!$B$1,\"bscr\",1000)","v":"Mapped"},{"$f":"XBRLMap(F50,F$87&\".\"&$U$4&\".\"&$U50&\".\"&F$89&\".\"&$U$7,$B$95,$B$96,CONFIGURATION!$B$10,\"BMA\",CONFIGURATION!$B$1,\"bscr\",1000)","v":"Mapped"},{"$f":"XBRLMap(G50,G$87&\".\"&$U$4&\".\"&$U50&\".\"&G$89&\".\"&$U$7,$B$95,$B$96,CONFIGURATION!$B$10,\"BMA\",CONFIGURATION!$B$1,\"bscr\",1000)","v":"Mapped"},{"$f":"XBRLMap(H50,H$87&\".\"&$U$4&\".\"&$U50&\".\"&H$89&\".\"&$U$7,$B$95,$B$96,CONFIGURATION!$B$10,\"BMA\",CONFIGURATION!$B$1,\"bscr\",1000)","v":"Mapped"},{"$f":"XBRLMap(I50,I$87&\".\"&$U$4&\".\"&$U50&\".\"&I$89&\".\"&$U$7,$B$95,$B$96,CONFIGURATION!$B$10,\"BMA\",CONFIGURATION!$B$1,\"bscr\",1000)","v":"Mapped"},{"$f":"XBRLMap(J50,J$87&\".\"&$U$4&\".\"&$U50&\".\"&J$89&\".\"&$U$7,$B$95,$B$96,CONFIGURATION!$B$10,\"BMA\",CONFIGURATION!$B$1,\"bscr\",1000)","v":"Mapped"},{"$f":"XBRLMap(K50,K$87&\".\"&$U$4&\".\"&$U50&\".\"&K$89&\".\"&$U$7,$B$95,$B$96,CONFIGURATION!$B$10,\"BMA\",CONFIGURATION!$B$1,\"bscr\",1000)","v":"Mapped"},{"$f":"XBRLMap(L50,L$87&\".\"&$U$4&\".\"&$U50&\".\"&L$89&\".\"&$U$7,$B$95,$B$96,CONFIGURATION!$B$10,\"BMA\",CONFIGURATION!$B$1,\"bscr\",1000)","v":"Mapped"},{"$f":"XBRLMap(M50,M$87&\".\"&$U$4&\".\"&$U50&\".\"&M$89&\".\"&$U$7,$B$95,$B$96,CONFIGURATION!$B$10,\"BMA\",CONFIGURATION!$B$1,\"bscr\",1000)","v":"Mapped"},null,null,null,{"$f":"\"IBNRCY\"&F$10&\"AY\"&B50","v":"IBNRCY2013AY2012"},{"$f":"F50","v":0}]
[null,null,null,null,null,{"$f":"XBRLMap(F51,F$87&\".\"&$U$4&\".\"&$U51&\".\"&F$89&\".\"&$U$7,$B$95,$B$96,CONFIGURATION!$B$10,\"BMA\",CONFIGURATION!$B$1,\"bscr\",1000)","v":"Mapped"},{"$f":"XBRLMap(G51,G$87&\".\"&$U$4&\".\"&$U51&\".\"&G$89&\".\"&$U$7,$B$95,$B$96,CONFIGURATION!$B$10,\"BMA\",CONFIGURATION!$B$1,\"bscr\",1000)","v":"Mapped"},{"$f":"XBRLMap(H51,H$87&\".\"&$U$4&\".\"&$U51&\".\"&H$89&\".\"&$U$7,$B$95,$B$96,CONFIGURATION!$B$10,\"BMA\",CONFIGURATION!$B$1,\"bscr\",1000)","v":"Mapped"},{"$f":"XBRLMap(I51,I$87&\".\"&$U$4&\".\"&$U51&\".\"&I$89&\".\"&$U$7,$B$95,$B$96,CONFIGURATION!$B$10,\"BMA\",CONFIGURATION!$B$1,\"bscr\",1000)","v":"Mapped"},{"$f":"XBRLMap(J51,J$87&\".\"&$U$4&\".\"&$U51&\".\"&J$89&\".\"&$U$7,$B$95,$B$96,CONFIGURATION!$B$10,\"BMA\",CONFIGURATION!$B$1,\"bscr\",1000)","v":"Mapped"},{"$f":"XBRLMap(K51,K$87&\".\"&$U$4&\".\"&$U51&\".\"&K$89&\".\"&$U$7,$B$95,$B$96,CONFIGURATION!$B$10,\"BMA\",CONFIGURATION!$B$1,\"bscr\",1000)","v":"Mapped"},{"$f":"XBRLMap(L51,L$87&\".\"&$U$4&\".\"&$U51&\".\"&L$89&\".\"&$U$7,$B$95,$B$96,CONFIGURATION!$B$10,\"BMA\",CONFIGURATION!$B$1,\"bscr\",1000)","v":"Mapped"},{"$f":"XBRLMap(M51,M$87&\".\"&$U$4&\".\"&$U51&\".\"&M$89&\".\"&$U$7,$B$95,$B$96,CONFIGURATION!$B$10,\"BMA\",CONFIGURATION!$B$1,\"bscr\",1000)","v":"Mapped"},null,null,null,{"$f":"\"IBNRCY\"&F$10&\"AY\"&B51","v":"IBNRCY2013AY2013"},{"$f":"F51","v":0}]
[null,null,null,null,null,null,{"$f":"XBRLMap(G52,G$87&\".\"&$U$4&\".\"&$U52&\".\"&G$89&\".\"&$U$7,$B$95,$B$96,CONFIGURATION!$B$10,\"BMA\",CONFIGURATION!$B$1,\"bscr\",1000)","v":"Mapped"},{"$f":"XBRLMap(H52,H$87&\".\"&$U$4&\".\"&$U52&\".\"&H$89&\".\"&$U$7,$B$95,$B$96,CONFIGURATION!$B$10,\"BMA\",CONFIGURATION!$B$1,\"bscr\",1000)","v":"Mapped"},{"$f":"XBRLMap(I52,I$87&\".\"&$U$4&\".\"&$U52&\".\"&I$89&\".\"&$U$7,$B$95,$B$96,CONFIGURATION!$B$10,\"BMA\",CONFIGURATION!$B$1,\"bscr\",1000)","v":"Mapped"},{"$f":"XBRLMap(J52,J$87&\".\"&$U$4&\".\"&$U52&\".\"&J$89&\".\"&$U$7,$B$95,$B$96,CONFIGURATION!$B$10,\"BMA\",CONFIGURATION!$B$1,\"bscr\",1000)","v":"Mapped"},{"$f":"XBRLMap(K52,K$87&\".\"&$U$4&\".\"&$U52&\".\"&K$89&\".\"&$U$7,$B$95,$B$96,CONFIGURATION!$B$10,\"BMA\",CONFIGURATION!$B$1,\"bscr\",1000)","v":"Mapped"},{"$f":"XBRLMap(L52,L$87&\".\"&$U$4&\".\"&$U52&\".\"&L$89&\".\"&$U$7,$B$95,$B$96,CONFIGURATION!$B$10,\"BMA\",CONFIGURATION!$B$1,\"bscr\",1000)","v":"Mapped"},{"$f":"XBRLMap(M52,M$87&\".\"&$U$4&\".\"&$U52&\".\"&M$89&\".\"&$U$7,$B$95,$B$96,CONFIGURATION!$B$10,\"BMA\",CONFIGURATION!$B$1,\"bscr\",1000)","v":"Mapped"},null,null,null,{"$f":"\"IBNRCY\"&G$10&\"AY\"&B47","v":"IBNRCY2014AYPrior"},{"$f":"G47","v":0}]
[null,null,null,null,null,null,null,{"$f":"XBRLMap(H53,H$87&\".\"&$U$4&\".\"&$U53&\".\"&H$89&\".\"&$U$7,$B$95,$B$96,CONFIGURATION!$B$10,\"BMA\",CONFIGURATION!$B$1,\"bscr\",1000)","v":"Mapped"},{"$f":"XBRLMap(I53,I$87&\".\"&$U$4&\".\"&$U53&\".\"&I$89&\".\"&$U$7,$B$95,$B$96,CONFIGURATION!$B$10,\"BMA\",CONFIGURATION!$B$1,\"bscr\",1000)","v":"Mapped"},{"$f":"XBRLMap(J53,J$87&\".\"&$U$4&\".\"&$U53&\".\"&J$89&\".\"&$U$7,$B$95,$B$96,CONFIGURATION!$B$10,\"BMA\",CONFIGURATION!$B$1,\"bscr\",1000)","v":"Mapped"},{"$f":"XBRLMap(K53,K$87&\".\"&$U$4&\".\"&$U53&\".\"&K$89&\".\"&$U$7,$B$95,$B$96,CONFIGURATION!$B$10,\"BMA\",CONFIGURATION!$B$1,\"bscr\",1000)","v":"Mapped"},{"$f":"XBRLMap(L53,L$87&\".\"&$U$4&\".\"&$U53&\".\"&L$89&\".\"&$U$7,$B$95,$B$96,CONFIGURATION!$B$10,\"BMA\",CONFIGURATION!$B$1,\"bscr\",1000)","v":"Mapped"},{"$f":"XBRLMap(M53,M$87&\".\"&$U$4&\".\"&$U53&\".\"&M$89&\".\"&$U$7,$B$95,$B$96,CONFIGURATION!$B$10,\"BMA\",CONFIGURATION!$B$1,\"bscr\",1000)","v":"Mapped"},null,null,null,"IBNRCY2014AY2010",0]
[null,null,null,null,null,null,null,null,{"$f":"XBRLMap(I54,I$87&\".\"&$U$4&\".\"&$U54&\".\"&I$89&\".\"&$U$7,$B$95,$B$96,CONFIGURATION!$B$10,\"BMA\",CONFIGURATION!$B$1,\"bscr\",1000)","v":"Mapped"},{"$f":"XBRLMap(J54,J$87&\".\"&$U$4&\".\"&$U54&\".\"&J$89&\".\"&$U$7,$B$95,$B$96,CONFIGURATION!$B$10,\"BMA\",CONFIGURATION!$B$1,\"bscr\",1000)","v":"Mapped"},{"$f":"XBRLMap(K54,K$87&\".\"&$U$4&\".\"&$U54&\".\"&K$89&\".\"&$U$7,$B$95,$B$96,CONFIGURATION!$B$10,\"BMA\",CONFIGURATION!$B$1,\"bscr\",1000)","v":"Mapped"},{"$f":"XBRLMap(L54,L$87&\".\"&$U$4&\".\"&$U54&\".\"&L$89&\".\"&$U$7,$B$95,$B$96,CONFIGURATION!$B$10,\"BMA\",CONFIGURATION!$B$1,\"bscr\",1000)","v":"Mapped"},{"$f":"XBRLMap(M54,M$87&\".\"&$U$4&\".\"&$U54&\".\"&M$89&\".\"&$U$7,$B$95,$B$96,CONFIGURATION!$B$10,\"BMA\",CONFIGURATION!$B$1,\"bscr\",1000)","v":"Mapped"},null,null,null,"IBNRCY2014AY2011",0]
[null,null,null,null,null,null,null,null,null,{"$f":"XBRLMap(J55,J$87&\".\"&$U$4&\".\"&$U55&\".\"&J$89&\".\"&$U$7,$B$95,$B$96,CONFIGURATION!$B$10,\"BMA\",CONFIGURATION!$B$1,\"bscr\",1000)","v":"Mapped"},{"$f":"XBRLMap(K55,K$87&\".\"&$U$4&\".\"&$U55&\".\"&K$89&\".\"&$U$7,$B$95,$B$96,CONFIGURATION!$B$10,\"BMA\",CONFIGURATION!$B$1,\"bscr\",1000)","v":"Mapped"},{"$f":"XBRLMap(L55,L$87&\".\"&$U$4&\".\"&$U55&\".\"&L$89&\".\"&$U$7,$B$95,$B$96,CONFIGURATION!$B$10,\"BMA\",CONFIGURATION!$B$1,\"bscr\",1000)","v":"Mapped"},{"$f":"XBRLMap(M55,M$87&\".\"&$U$4&\".\"&$U55&\".\"&M$89&\".\"&$U$7,$B$95,$B$96,CONFIGURATION!$B$10,\"BMA\",CONFIGURATION!$B$1,\"bscr\",1000)","v":"Mapped"},null,null,null,"IBNRCY2014AY2012",0]
[null,null,null,null,null,null,null,null,null,null,{"$f":"XBRLMap(K56,K$87&\".\"&$U$4&\".\"&$U56&\".\"&K$89&\".\"&$U$7,$B$95,$B$96,CONFIGURATION!$B$10,\"BMA\",CONFIGURATION!$B$1,\"bscr\",1000)","v":"Mapped"},{"$f":"XBRLMap(L56,L$87&\".\"&$U$4&\".\"&$U56&\".\"&L$89&\".\"&$U$7,$B$95,$B$96,CONFIGURATION!$B$10,\"BMA\",CONFIGURATION!$B$1,\"bscr\",1000)","v":"Mapped"},{"$f":"XBRLMap(M56,M$87&\".\"&$U$4&\".\"&$U56&\".\"&M$89&\".\"&$U$7,$B$95,$B$96,CONFIGURATION!$B$10,\"BMA\",CONFIGURATION!$B$1,\"bscr\",1000)","v":"Mapped"},null,null,null,"IBNRCY2014AY2013",0]
[null,null,null,null,null,null,null,null,null,null,null,{"$f":"XBRLMap(L57,L$87&\".\"&$U$4&\".\"&$U57&\".\"&L$89&\".\"&$U$7,$B$95,$B$96,CONFIGURATION!$B$10,\"BMA\",CONFIGURATION!$B$1,\"bscr\",1000)","v":"Mapped"},{"$f":"XBRLMap(M57,M$87&\".\"&$U$4&\".\"&$U57&\".\"&M$89&\".\"&$U$7,$B$95,$B$96,CONFIGURATION!$B$10,\"BMA\",CONFIGURATION!$B$1,\"bscr\",1000)","v":"Mapped"},null,null,null,"IBNRCY2014AY2014",0]
[null,null,null,null,null,null,null,null,null,null,null,null,null,null,null,null,{"$f":"\"IBNRCY\"&H$10&\"AY\"&B47","v":"IBNRCY2015AYPrior"},{"$f":"H47","v":0}]
[null,null,null,null,null,null,null,null,null,null,null,null,null,null,null,null,"IBNRCY2015AY2010",0]
[null,null,null,null,null,null,null,null,null,null,null,null,null,null,null,null,"IBNRCY2015AY2011",0]
[null,null,null,null,null,null,null,null,null,null,null,null,null,null,null,null,"IBNRCY2015AY2012",0]
[null,null,null,null,null,null,null,null,null,null,null,null,null,null,null,null,"IBNRCY2015AY2013",0]
[null,null,null,null,null,null,null,null,null,null,null,null,null,null,null,null,"IBNRCY2015AY2014",0]
[null,null,null,null,null,null,null,null,null,null,null,null,null,null,null,null,"IBNRCY2015AY2015",0]
[null,null,null,null,null,null,null,null,null,null,null,null,null,null,null,null,{"$f":"\"IBNRCY\"&I$10&\"AY\"&B47","v":"IBNRCY2016AYPrior"},{"$f":"I47","v":0}]
[null,null,null,null,null,null,null,null,null,null,null,null,null,null,null,null,"IBNRCY2016AY2010",0]
[null,null,null,null,null,null,null,null,null,null,null,null,null,null,null,null,"IBNRCY2016AY2011",0]
[null,null,null,null,null,null,{"$f":"XBRLMap(G67,G$88&\".\"&$U$4&\".\"&$U67&\".\"&$U$7,$B$95,$B$96,CONFIGURATION!$B$10,\"BMA\",CONFIGURATION!$B$1,\"bscr\",1000)","v":"Mapped"},{"$f":"XBRLMap(H67,H$88&\".\"&$U$4&\".\"&$U67&\".\"&$U$7,$B$95,$B$96,CONFIGURATION!$B$10,\"BMA\",CONFIGURATION!$B$1,\"bscr\",1000)","v":"Mapped"},null,{"$f":"XBRLMap(J67,J$88&\".\"&$U$4&\".\"&$V67&\".\"&$U$7,$B$95,$B$96,CONFIGURATION!$B$10,\"BMA\",CONFIGURATION!$B$1,\"bscr\",1000)","v":"Mapped"},{"$f":"XBRLMap(K67,K$88&\".\"&$U$4&\".\"&$V67&\".\"&$U$7,$B$95,$B$96,CONFIGURATION!$B$10,\"BMA\",CONFIGURATION!$B$1,\"bscr\",1000)","v":"Mapped"},{"$f":"XBRLMap(L67,L$88&\".\"&$U$4&\".\"&$V67&\".\"&$U$7,$B$95,$B$96,CONFIGURATION!$B$10,\"BMA\",CONFIGURATION!$B$1,\"bscr\",1000)","v":"Mapped"},{"$f":"XBRLMap(M67,M$88&\".\"&$U$4&\".\"&$V67&\".\"&$U$7,$B$95,$B$96,CONFIGURATION!$B$10,\"BMA\",CONFIGURATION!$B$1,\"bscr\",1000)","v":"Mapped"},null,null,null,"IBNRCY2016AY2012",0]
[null,null,{"$f":"XBRLMap(C68,C$88&\".\"&$U$4&\".\"&$U68&\".\"&$U$7,$B$95,$B$96,CONFIGURATION!$B$10,\"BMA\",CONFIGURATION!$B$1,\"bscr\",1000)","v":"Mapped"},{"$f":"XBRLMap(D68,D$88&\".\"&$U$4&\".\"&$U68&\".\"&$U$7,$B$95,$B$96,CONFIGURATION!$B$10,\"BMA\",CONFIGURATION!$B$1,\"bscr\",1000)","v":"Mapped"},{"$f":"XBRLMap(E68,E$88&\".\"&$U$4&\".\"&$U68&\".\"&$U$7,$B$95,$B$96,CONFIGURATION!$B$10,\"BMA\",CONFIGURATION!$B$1,\"bscr\",1000)","v":"Mapped"},{"$f":"XBRLMap(F68,F$88&\".\"&$U$4&\".\"&$U68&\".\"&$U$7,$B$95,$B$96,CONFIGURATION!$B$10,\"BMA\",CONFIGURATION!$B$1,\"bscr\",1000)","v":"Mapped"},{"$f":"XBRLMap(G68,G$88&\".\"&$U$4&\".\"&$U68&\".\"&$U$7,$B$95,$B$96,CONFIGURATION!$B$10,\"BMA\",CONFIGURATION!$B$1,\"bscr\",1000)","v":"Mapped"},{"$f":"XBRLMap(H68,H$88&\".\"&$U$4&\".\"&$U68&\".\"&$U$7,$B$95,$B$96,CONFIGURATION!$B$10,\"BMA\",CONFIGURATION!$B$1,\"bscr\",1000)","v":"Mapped"},null,{"$f":"XBRLMap(J68,J$88&\".\"&$U$4&\".\"&$V68&\".\"&$U$7,$B$95,$B$96,CONFIGURATION!$B$10,\"BMA\",CONFIGURATION!$B$1,\"bscr\",1000)","v":"Mapped"},{"$f":"XBRLMap(K68,K$88&\".\"&$U$4&\".\"&$V68&\".\"&$U$7,$B$95,$B$96,CONFIGURATION!$B$10,\"BMA\",CONFIGURATION!$B$1,\"bscr\",1000)","v":"Mapped"},{"$f":"XBRLMap(L68,L$88&\".\"&$U$4&\".\"&$V68&\".\"&$U$7,$B$95,$B$96,CONFIGURATION!$B$10,\"BMA\",CONFIGURATION!$B$1,\"bscr\",1000)","v":"Mapped"},{"$f":"XBRLMap(M68,M$88&\".\"&$U$4&\".\"&$V68&\".\"&$U$7,$B$95,$B$96,CONFIGURATION!$B$10,\"BMA\",CONFIGURATION!$B$1,\"bscr\",1000)","v":"Mapped"},null,null,null,"IBNRCY2016AY2013",0]
[null,null,{"$f":"XBRLMap(C69,C$88&\".\"&$U$4&\".\"&$U69&\".\"&$U$7,$B$95,$B$96,CONFIGURATION!$B$10,\"BMA\",CONFIGURATION!$B$1,\"bscr\",1000)","v":"Mapped"},{"$f":"XBRLMap(D69,D$88&\".\"&$U$4&\".\"&$U69&\".\"&$U$7,$B$95,$B$96,CONFIGURATION!$B$10,\"BMA\",CONFIGURATION!$B$1,\"bscr\",1000)","v":"Mapped"},{"$f":"XBRLMap(E69,E$88&\".\"&$U$4&\".\"&$U69&\".\"&$U$7,$B$95,$B$96,CONFIGURATION!$B$10,\"BMA\",CONFIGURATION!$B$1,\"bscr\",1000)","v":"Mapped"},{"$f":"XBRLMap(F69,F$88&\".\"&$U$4&\".\"&$U69&\".\"&$U$7,$B$95,$B$96,CONFIGURATION!$B$10,\"BMA\",CONFIGURATION!$B$1,\"bscr\",1000)","v":"Mapped"},{"$f":"XBRLMap(G69,G$88&\".\"&$U$4&\".\"&$U69&\".\"&$U$7,$B$95,$B$96,CONFIGURATION!$B$10,\"BMA\",CONFIGURATION!$B$1,\"bscr\",1000)","v":"Mapped"},{"$f":"XBRLMap(H69,H$88&\".\"&$U$4&\".\"&$U69&\".\"&$U$7,$B$95,$B$96,CONFIGURATION!$B$10,\"BMA\",CONFIGURATION!$B$1,\"bscr\",1000)","v":"Mapped"},null,{"$f":"XBRLMap(J69,J$88&\".\"&$U$4&\".\"&$V69&\".\"&$U$7,$B$95,$B$96,CONFIGURATION!$B$10,\"BMA\",CONFIGURATION!$B$1,\"bscr\",1000)","v":"Mapped"},{"$f":"XBRLMap(K69,K$88&\".\"&$U$4&\".\"&$V69&\".\"&$U$7,$B$95,$B$96,CONFIGURATION!$B$10,\"BMA\",CONFIGURATION!$B$1,\"bscr\",1000)","v":"Mapped"},{"$f":"XBRLMap(L69,L$88&\".\"&$U$4&\".\"&$V69&\".\"&$U$7,$B$95,$B$96,CONFIGURATION!$B$10,\"BMA\",CONFIGURATION!$B$1,\"bscr\",1000)","v":"Mapped"},{"$f":"XBRLMap(M69,M$88&\".\"&$U$4&\".\"&$V69&\".\"&$U$7,$B$95,$B$96,CONFIGURATION!$B$10,\"BMA\",CONFIGURATION!$B$1,\"bscr\",1000)","v":"Mapped"},null,null,null,"IBNRCY2016AY2014",0]
[null,null,{"$f":"XBRLMap(C70,C$88&\".\"&$U$4&\".\"&$U70&\".\"&$U$7,$B$95,$B$96,CONFIGURATION!$B$10,\"BMA\",CONFIGURATION!$B$1,\"bscr\",1000)","v":"Mapped"},{"$f":"XBRLMap(D70,D$88&\".\"&$U$4&\".\"&$U70&\".\"&$U$7,$B$95,$B$96,CONFIGURATION!$B$10,\"BMA\",CONFIGURATION!$B$1,\"bscr\",1000)","v":"Mapped"},{"$f":"XBRLMap(E70,E$88&\".\"&$U$4&\".\"&$U70&\".\"&$U$7,$B$95,$B$96,CONFIGURATION!$B$10,\"BMA\",CONFIGURATION!$B$1,\"bscr\",1000)","v":"Mapped"},{"$f":"XBRLMap(F70,F$88&\".\"&$U$4&\".\"&$U70&\".\"&$U$7,$B$95,$B$96,CONFIGURATION!$B$10,\"BMA\",CONFIGURATION!$B$1,\"bscr\",1000)","v":"Mapped"},{"$f":"XBRLMap(G70,G$88&\".\"&$U$4&\".\"&$U70&\".\"&$U$7,$B$95,$B$96,CONFIGURATION!$B$10,\"BMA\",CONFIGURATION!$B$1,\"bscr\",1000)","v":"Mapped"},{"$f":"XBRLMap(H70,H$88&\".\"&$U$4&\".\"&$U70&\".\"&$U$7,$B$95,$B$96,CONFIGURATION!$B$10,\"BMA\",CONFIGURATION!$B$1,\"bscr\",1000)","v":"Mapped"},null,{"$f":"XBRLMap(J70,J$88&\".\"&$U$4&\".\"&$V70&\".\"&$U$7,$B$95,$B$96,CONFIGURATION!$B$10,\"BMA\",CONFIGURATION!$B$1,\"bscr\",1000)","v":"Mapped"},{"$f":"XBRLMap(K70,K$88&\".\"&$U$4&\".\"&$V70&\".\"&$U$7,$B$95,$B$96,CONFIGURATION!$B$10,\"BMA\",CONFIGURATION!$B$1,\"bscr\",1000)","v":"Mapped"},{"$f":"XBRLMap(L70,L$88&\".\"&$U$4&\".\"&$V70&\".\"&$U$7,$B$95,$B$96,CONFIGURATION!$B$10,\"BMA\",CONFIGURATION!$B$1,\"bscr\",1000)","v":"Mapped"},{"$f":"XBRLMap(M70,M$88&\".\"&$U$4&\".\"&$V70&\".\"&$U$7,$B$95,$B$96,CONFIGURATION!$B$10,\"BMA\",CONFIGURATION!$B$1,\"bscr\",1000)","v":"Mapped"},null,null,null,"IBNRCY2016AY2015",0]
[null,null,{"$f":"XBRLMap(C71,C$88&\".\"&$U$4&\".\"&$U71&\".\"&$U$7,$B$95,$B$96,CONFIGURATION!$B$10,\"BMA\",CONFIGURATION!$B$1,\"bscr\",1000)","v":"Mapped"},{"$f":"XBRLMap(D71,D$88&\".\"&$U$4&\".\"&$U71&\".\"&$U$7,$B$95,$B$96,CONFIGURATION!$B$10,\"BMA\",CONFIGURATION!$B$1,\"bscr\",1000)","v":"Mapped"},{"$f":"XBRLMap(E71,E$88&\".\"&$U$4&\".\"&$U71&\".\"&$U$7,$B$95,$B$96,CONFIGURATION!$B$10,\"BMA\",CONFIGURATION!$B$1,\"bscr\",1000)","v":"Mapped"},{"$f":"XBRLMap(F71,F$88&\".\"&$U$4&\".\"&$U71&\".\"&$U$7,$B$95,$B$96,CONFIGURATION!$B$10,\"BMA\",CONFIGURATION!$B$1,\"bscr\",1000)","v":"Mapped"},{"$f":"XBRLMap(G71,G$88&\".\"&$U$4&\".\"&$U71&\".\"&$U$7,$B$95,$B$96,CONFIGURATION!$B$10,\"BMA\",CONFIGURATION!$B$1,\"bscr\",1000)","v":"Mapped"},{"$f":"XBRLMap(H71,H$88&\".\"&$U$4&\".\"&$U71&\".\"&$U$7,$B$95,$B$96,CONFIGURATION!$B$10,\"BMA\",CONFIGURATION!$B$1,\"bscr\",1000)","v":"Mapped"},null,{"$f":"XBRLMap(J71,J$88&\".\"&$U$4&\".\"&$V71&\".\"&$U$7,$B$95,$B$96,CONFIGURATION!$B$10,\"BMA\",CONFIGURATION!$B$1,\"bscr\",1000)","v":"Mapped"},{"$f":"XBRLMap(K71,K$88&\".\"&$U$4&\".\"&$V71&\".\"&$U$7,$B$95,$B$96,CONFIGURATION!$B$10,\"BMA\",CONFIGURATION!$B$1,\"bscr\",1000)","v":"Mapped"},{"$f":"XBRLMap(L71,L$88&\".\"&$U$4&\".\"&$V71&\".\"&$U$7,$B$95,$B$96,CONFIGURATION!$B$10,\"BMA\",CONFIGURATION!$B$1,\"bscr\",1000)","v":"Mapped"},{"$f":"XBRLMap(M71,M$88&\".\"&$U$4&\".\"&$V71&\".\"&$U$7,$B$95,$B$96,CONFIGURATION!$B$10,\"BMA\",CONFIGURATION!$B$1,\"bscr\",1000)","v":"Mapped"},null,null,null,"IBNRCY2016AY2016",0]
[null,null,{"$f":"XBRLMap(C72,C$88&\".\"&$U$4&\".\"&$U72&\".\"&$U$7,$B$95,$B$96,CONFIGURATION!$B$10,\"BMA\",CONFIGURATION!$B$1,\"bscr\",1000)","v":"Mapped"},{"$f":"XBRLMap(D72,D$88&\".\"&$U$4&\".\"&$U72&\".\"&$U$7,$B$95,$B$96,CONFIGURATION!$B$10,\"BMA\",CONFIGURATION!$B$1,\"bscr\",1000)","v":"Mapped"},{"$f":"XBRLMap(E72,E$88&\".\"&$U$4&\".\"&$U72&\".\"&$U$7,$B$95,$B$96,CONFIGURATION!$B$10,\"BMA\",CONFIGURATION!$B$1,\"bscr\",1000)","v":"Mapped"},{"$f":"XBRLMap(F72,F$88&\".\"&$U$4&\".\"&$U72&\".\"&$U$7,$B$95,$B$96,CONFIGURATION!$B$10,\"BMA\",CONFIGURATION!$B$1,\"bscr\",1000)","v":"Mapped"},{"$f":"XBRLMap(G72,G$88&\".\"&$U$4&\".\"&$U72&\".\"&$U$7,$B$95,$B$96,CONFIGURATION!$B$10,\"BMA\",CONFIGURATION!$B$1,\"bscr\",1000)","v":"Mapped"},{"$f":"XBRLMap(H72,H$88&\".\"&$U$4&\".\"&$U72&\".\"&$U$7,$B$95,$B$96,CONFIGURATION!$B$10,\"BMA\",CONFIGURATION!$B$1,\"bscr\",1000)","v":"Mapped"},null,{"$f":"XBRLMap(J72,J$88&\".\"&$U$4&\".\"&$V72&\".\"&$U$7,$B$95,$B$96,CONFIGURATION!$B$10,\"BMA\",CONFIGURATION!$B$1,\"bscr\",1000)","v":"Mapped"},{"$f":"XBRLMap(K72,K$88&\".\"&$U$4&\".\"&$V72&\".\"&$U$7,$B$95,$B$96,CONFIGURATION!$B$10,\"BMA\",CONFIGURATION!$B$1,\"bscr\",1000)","v":"Mapped"},{"$f":"XBRLMap(L72,L$88&\".\"&$U$4&\".\"&$V72&\".\"&$U$7,$B$95,$B$96,CONFIGURATION!$B$10,\"BMA\",CONFIGURATION!$B$1,\"bscr\",1000)","v":"Mapped"},{"$f":"XBRLMap(M72,M$88&\".\"&$U$4&\".\"&$V72&\".\"&$U$7,$B$95,$B$96,CONFIGURATION!$B$10,\"BMA\",CONFIGURATION!$B$1,\"bscr\",1000)","v":"Mapped"},null,null,null,{"$f":"\"IBNRCY\"&J$10&\"AY\"&B47","v":"IBNRCY2017AYPrior"},{"$f":"J47","v":0}]
[null,null,{"$f":"XBRLMap(C73,C$88&\".\"&$U$4&\".\"&$U73&\".\"&$U$7,$B$95,$B$96,CONFIGURATION!$B$10,\"BMA\",CONFIGURATION!$B$1,\"bscr\",1000)","v":"Mapped"},{"$f":"XBRLMap(D73,D$88&\".\"&$U$4&\".\"&$U73&\".\"&$U$7,$B$95,$B$96,CONFIGURATION!$B$10,\"BMA\",CONFIGURATION!$B$1,\"bscr\",1000)","v":"Mapped"},{"$f":"XBRLMap(E73,E$88&\".\"&$U$4&\".\"&$U73&\".\"&$U$7,$B$95,$B$96,CONFIGURATION!$B$10,\"BMA\",CONFIGURATION!$B$1,\"bscr\",1000)","v":"Mapped"},{"$f":"XBRLMap(F73,F$88&\".\"&$U$4&\".\"&$U73&\".\"&$U$7,$B$95,$B$96,CONFIGURATION!$B$10,\"BMA\",CONFIGURATION!$B$1,\"bscr\",1000)","v":"Mapped"},{"$f":"XBRLMap(G73,G$88&\".\"&$U$4&\".\"&$U73&\".\"&$U$7,$B$95,$B$96,CONFIGURATION!$B$10,\"BMA\",CONFIGURATION!$B$1,\"bscr\",1000)","v":"Mapped"},{"$f":"XBRLMap(H73,H$88&\".\"&$U$4&\".\"&$U73&\".\"&$U$7,$B$95,$B$96,CONFIGURATION!$B$10,\"BMA\",CONFIGURATION!$B$1,\"bscr\",1000)","v":"Mapped"},null,{"$f":"XBRLMap(J73,J$88&\".\"&$U$4&\".\"&$V73&\".\"&$U$7,$B$95,$B$96,CONFIGURATION!$B$10,\"BMA\",CONFIGURATION!$B$1,\"bscr\",1000)","v":"Mapped"},{"$f":"XBRLMap(K73,K$88&\".\"&$U$4&\".\"&$V73&\".\"&$U$7,$B$95,$B$96,CONFIGURATION!$B$10,\"BMA\",CONFIGURATION!$B$1,\"bscr\",1000)","v":"Mapped"},{"$f":"XBRLMap(L73,L$88&\".\"&$U$4&\".\"&$V73&\".\"&$U$7,$B$95,$B$96,CONFIGURATION!$B$10,\"BMA\",CONFIGURATION!$B$1,\"bscr\",1000)","v":"Mapped"},{"$f":"XBRLMap(M73,M$88&\".\"&$U$4&\".\"&$V73&\".\"&$U$7,$B$95,$B$96,CONFIGURATION!$B$10,\"BMA\",CONFIGURATION!$B$1,\"bscr\",1000)","v":"Mapped"},null,null,null,"IBNRCY2017AY2010",0]
[null,null,{"$f":"XBRLMap(C74,C$88&\".\"&$U$4&\".\"&$U74&\".\"&$U$7,$B$95,$B$96,CONFIGURATION!$B$10,\"BMA\",CONFIGURATION!$B$1,\"bscr\",1000)","v":"Mapped"},{"$f":"XBRLMap(D74,D$88&\".\"&$U$4&\".\"&$U74&\".\"&$U$7,$B$95,$B$96,CONFIGURATION!$B$10,\"BMA\",CONFIGURATION!$B$1,\"bscr\",1000)","v":"Mapped"},{"$f":"XBRLMap(E74,E$88&\".\"&$U$4&\".\"&$U74&\".\"&$U$7,$B$95,$B$96,CONFIGURATION!$B$10,\"BMA\",CONFIGURATION!$B$1,\"bscr\",1000)","v":"Mapped"},{"$f":"XBRLMap(F74,F$88&\".\"&$U$4&\".\"&$U74&\".\"&$U$7,$B$95,$B$96,CONFIGURATION!$B$10,\"BMA\",CONFIGURATION!$B$1,\"bscr\",1000)","v":"Mapped"},{"$f":"XBRLMap(G74,G$88&\".\"&$U$4&\".\"&$U74&\".\"&$U$7,$B$95,$B$96,CONFIGURATION!$B$10,\"BMA\",CONFIGURATION!$B$1,\"bscr\",1000)","v":"Mapped"},{"$f":"XBRLMap(H74,H$88&\".\"&$U$4&\".\"&$U74&\".\"&$U$7,$B$95,$B$96,CONFIGURATION!$B$10,\"BMA\",CONFIGURATION!$B$1,\"bscr\",1000)","v":"Mapped"},null,{"$f":"XBRLMap(J74,J$88&\".\"&$U$4&\".\"&$V74&\".\"&$U$7,$B$95,$B$96,CONFIGURATION!$B$10,\"BMA\",CONFIGURATION!$B$1,\"bscr\",1000)","v":"Mapped"},{"$f":"XBRLMap(K74,K$88&\".\"&$U$4&\".\"&$V74&\".\"&$U$7,$B$95,$B$96,CONFIGURATION!$B$10,\"BMA\",CONFIGURATION!$B$1,\"bscr\",1000)","v":"Mapped"},{"$f":"XBRLMap(L74,L$88&\".\"&$U$4&\".\"&$V74&\".\"&$U$7,$B$95,$B$96,CONFIGURATION!$B$10,\"BMA\",CONFIGURATION!$B$1,\"bscr\",1000)","v":"Mapped"},{"$f":"XBRLMap(M74,M$88&\".\"&$U$4&\".\"&$V74&\".\"&$U$7,$B$95,$B$96,CONFIGURATION!$B$10,\"BMA\",CONFIGURATION!$B$1,\"bscr\",1000)","v":"Mapped"},null,null,null,"IBNRCY2017AY2011",0]
[null,null,{"$f":"XBRLMap(C75,C$88&\".\"&$U$4&\".\"&$U75&\".\"&$U$7,$B$95,$B$96,CONFIGURATION!$B$10,\"BMA\",CONFIGURATION!$B$1,\"bscr\",1000)","v":"Mapped"},{"$f":"XBRLMap(D75,D$88&\".\"&$U$4&\".\"&$U75&\".\"&$U$7,$B$95,$B$96,CONFIGURATION!$B$10,\"BMA\",CONFIGURATION!$B$1,\"bscr\",1000)","v":"Mapped"},{"$f":"XBRLMap(E75,E$88&\".\"&$U$4&\".\"&$U75&\".\"&$U$7,$B$95,$B$96,CONFIGURATION!$B$10,\"BMA\",CONFIGURATION!$B$1,\"bscr\",1000)","v":"Mapped"},{"$f":"XBRLMap(F75,F$88&\".\"&$U$4&\".\"&$U75&\".\"&$U$7,$B$95,$B$96,CONFIGURATION!$B$10,\"BMA\",CONFIGURATION!$B$1,\"bscr\",1000)","v":"Mapped"},{"$f":"XBRLMap(G75,G$88&\".\"&$U$4&\".\"&$U75&\".\"&$U$7,$B$95,$B$96,CONFIGURATION!$B$10,\"BMA\",CONFIGURATION!$B$1,\"bscr\",1000)","v":"Mapped"},{"$f":"XBRLMap(H75,H$88&\".\"&$U$4&\".\"&$U75&\".\"&$U$7,$B$95,$B$96,CONFIGURATION!$B$10,\"BMA\",CONFIGURATION!$B$1,\"bscr\",1000)","v":"Mapped"},null,{"$f":"XBRLMap(J75,J$88&\".\"&$U$4&\".\"&$V75&\".\"&$U$7,$B$95,$B$96,CONFIGURATION!$B$10,\"BMA\",CONFIGURATION!$B$1,\"bscr\",1000)","v":"Mapped"},{"$f":"XBRLMap(K75,K$88&\".\"&$U$4&\".\"&$V75&\".\"&$U$7,$B$95,$B$96,CONFIGURATION!$B$10,\"BMA\",CONFIGURATION!$B$1,\"bscr\",1000)","v":"Mapped"},{"$f":"XBRLMap(L75,L$88&\".\"&$U$4&\".\"&$V75&\".\"&$U$7,$B$95,$B$96,CONFIGURATION!$B$10,\"BMA\",CONFIGURATION!$B$1,\"bscr\",1000)","v":"Mapped"},{"$f":"XBRLMap(M75,M$88&\".\"&$U$4&\".\"&$V75&\".\"&$U$7,$B$95,$B$96,CONFIGURATION!$B$10,\"BMA\",CONFIGURATION!$B$1,\"bscr\",1000)","v":"Mapped"},null,null,null,"IBNRCY2017AY2012",0]
[null,null,{"$f":"XBRLMap(C76,C$88&\".\"&$U$4&\".\"&$U76&\".\"&$U$7,$B$95,$B$96,CONFIGURATION!$B$10,\"BMA\",CONFIGURATION!$B$1,\"bscr\",1000)","v":"Mapped"},{"$f":"XBRLMap(D76,D$88&\".\"&$U$4&\".\"&$U76&\".\"&$U$7,$B$95,$B$96,CONFIGURATION!$B$10,\"BMA\",CONFIGURATION!$B$1,\"bscr\",1000)","v":"Mapped"},{"$f":"XBRLMap(E76,E$88&\".\"&$U$4&\".\"&$U76&\".\"&$U$7,$B$95,$B$96,CONFIGURATION!$B$10,\"BMA\",CONFIGURATION!$B$1,\"bscr\",1000)","v":"Mapped"},{"$f":"XBRLMap(F76,F$88&\".\"&$U$4&\".\"&$U76&\".\"&$U$7,$B$95,$B$96,CONFIGURATION!$B$10,\"BMA\",CONFIGURATION!$B$1,\"bscr\",1000)","v":"Mapped"},{"$f":"XBRLMap(G76,G$88&\".\"&$U$4&\".\"&$U76&\".\"&$U$7,$B$95,$B$96,CONFIGURATION!$B$10,\"BMA\",CONFIGURATION!$B$1,\"bscr\",1000)","v":"Mapped"},{"$f":"XBRLMap(H76,H$88&\".\"&$U$4&\".\"&$U76&\".\"&$U$7,$B$95,$B$96,CONFIGURATION!$B$10,\"BMA\",CONFIGURATION!$B$1,\"bscr\",1000)","v":"Mapped"},null,{"$f":"XBRLMap(J76,J$88&\".\"&$U$4&\".\"&$V76&\".\"&$U$7,$B$95,$B$96,CONFIGURATION!$B$10,\"BMA\",CONFIGURATION!$B$1,\"bscr\",1000)","v":"Mapped"},{"$f":"XBRLMap(K76,K$88&\".\"&$U$4&\".\"&$V76&\".\"&$U$7,$B$95,$B$96,CONFIGURATION!$B$10,\"BMA\",CONFIGURATION!$B$1,\"bscr\",1000)","v":"Mapped"},{"$f":"XBRLMap(L76,L$88&\".\"&$U$4&\".\"&$V76&\".\"&$U$7,$B$95,$B$96,CONFIGURATION!$B$10,\"BMA\",CONFIGURATION!$B$1,\"bscr\",1000)","v":"Mapped"},{"$f":"XBRLMap(M76,M$88&\".\"&$U$4&\".\"&$V76&\".\"&$U$7,$B$95,$B$96,CONFIGURATION!$B$10,\"BMA\",CONFIGURATION!$B$1,\"bscr\",1000)","v":"Mapped"},null,null,null,"IBNRCY2017AY2013",0]
[null,null,{"$f":"XBRLMap(C77,C$88&\".\"&$U$4&\".\"&$U77&\".\"&$U$7,$B$95,$B$96,CONFIGURATION!$B$10,\"BMA\",CONFIGURATION!$B$1,\"bscr\",1000)","v":"Mapped"},{"$f":"XBRLMap(D77,D$88&\".\"&$U$4&\".\"&$U77&\".\"&$U$7,$B$95,$B$96,CONFIGURATION!$B$10,\"BMA\",CONFIGURATION!$B$1,\"bscr\",1000)","v":"Mapped"},{"$f":"XBRLMap(E77,E$88&\".\"&$U$4&\".\"&$U77&\".\"&$U$7,$B$95,$B$96,CONFIGURATION!$B$10,\"BMA\",CONFIGURATION!$B$1,\"bscr\",1000)","v":"Mapped"},{"$f":"XBRLMap(F77,F$88&\".\"&$U$4&\".\"&$U77&\".\"&$U$7,$B$95,$B$96,CONFIGURATION!$B$10,\"BMA\",CONFIGURATION!$B$1,\"bscr\",1000)","v":"Mapped"},{"$f":"XBRLMap(G77,G$88&\".\"&$U$4&\".\"&$U77&\".\"&$U$7,$B$95,$B$96,CONFIGURATION!$B$10,\"BMA\",CONFIGURATION!$B$1,\"bscr\",1000)","v":"Mapped"},{"$f":"XBRLMap(H77,H$88&\".\"&$U$4&\".\"&$U77&\".\"&$U$7,$B$95,$B$96,CONFIGURATION!$B$10,\"BMA\",CONFIGURATION!$B$1,\"bscr\",1000)","v":"Mapped"},null,{"$f":"XBRLMap(J77,J$88&\".\"&$U$4&\".\"&$V77&\".\"&$U$7,$B$95,$B$96,CONFIGURATION!$B$10,\"BMA\",CONFIGURATION!$B$1,\"bscr\",1000)","v":"Mapped"},{"$f":"XBRLMap(K77,K$88&\".\"&$U$4&\".\"&$V77&\".\"&$U$7,$B$95,$B$96,CONFIGURATION!$B$10,\"BMA\",CONFIGURATION!$B$1,\"bscr\",1000)","v":"Mapped"},{"$f":"XBRLMap(L77,L$88&\".\"&$U$4&\".\"&$V77&\".\"&$U$7,$B$95,$B$96,CONFIGURATION!$B$10,\"BMA\",CONFIGURATION!$B$1,\"bscr\",1000)","v":"Mapped"},{"$f":"XBRLMap(M77,M$88&\".\"&$U$4&\".\"&$V77&\".\"&$U$7,$B$95,$B$96,CONFIGURATION!$B$10,\"BMA\",CONFIGURATION!$B$1,\"bscr\",1000)","v":"Mapped"},null,null,null,"IBNRCY2017AY2014",0]
[null,null,null,null,null,null,null,null,null,null,null,null,null,null,null,null,"IBNRCY2017AY2015",0]
[null,null,null,null,null,null,null,null,null,null,null,null,null,null,null,null,"IBNRCY2017AY2016",0]
[null,null,null,null,null,null,null,null,null,null,null,null,null,null,null,null,"IBNRCY2017AY2017",0]
[null,null,null,null,null,null,null,null,null,null,null,null,null,null,null,null,{"$f":"\"IBNRCY\"&K$10&\"AY\"&B47","v":"IBNRCY2018AYPrior"},{"$f":"K47","v":0}]
[null,null,null,null,null,null,null,null,null,null,null,null,null,null,null,null,"IBNRCY2018AY2010",0]
[null,null,null,null,null,null,null,null,null,null,null,null,null,null,null,null,"IBNRCY2018AY2011",0]
[null,null,null,null,null,null,null,null,null,null,null,null,null,null,null,null,"IBNRCY2018AY2012",0]
[null,null,null,null,null,null,null,null,null,null,null,null,null,null,null,null,"IBNRCY2018AY2013",0]
[null,null,null,null,null,null,null,null,null,null,null,null,null,null,null,null,"IBNRCY2018AY2014",0]
[null,null,null,null,null,null,null,null,null,null,null,null,null,null,null,null,"IBNRCY2018AY2015",0]
[null,null,null,null,null,null,null,null,null,null,null,null,null,null,null,null,"IBNRCY2018AY2016",0]
[null,null,null,null,null,null,null,null,null,null,null,null,null,null,null,null,"IBNRCY2018AY2017",0]
[null,null,null,null,null,null,null,null,null,null,null,null,null,null,null,null,"IBNRCY2018AY2018",0]
[null,null,null,null,null,null,null,null,null,null,null,null,null,null,null,null,{"$f":"\"IBNRCY\"&L$10&\"AY\"&B47","v":"IBNRCY2019AYPrior"},{"$f":"L47","v":0}]
[null,null,null,null,null,null,null,null,null,null,null,null,null,null,null,null,"IBNRCY2019AY2010",0]
[null,null,null,null,null,null,null,null,null,null,null,null,null,null,null,null,"IBNRCY2019AY2011",0]
[null,null,null,null,null,null,null,null,null,null,null,null,null,null,null,null,"IBNRCY2019AY2012",0]
[null,null,null,null,null,null,null,null,null,null,null,null,null,null,null,null,"IBNRCY2019AY2013",0]
[null,null,null,null,null,null,null,null,null,null,null,null,null,null,null,null,"IBNRCY2019AY2014",0]
[null,null,null,null,null,null,null,null,null,null,null,null,null,null,null,null,"IBNRCY2019AY2015",0]
[null,null,null,null,null,null,null,null,null,null,null,null,null,null,null,null,"IBNRCY2019AY2016",0]
[null,null,null,null,null,null,null,null,null,null,null,null,null,null,null,null,"IBNRCY2019AY2017",0]
[null,null,null,null,null,null,null,null,null,null,null,null,null,null,null,null,"IBNRCY2019AY2018",0]
[null,null,null,null,null,null,null,null,null,null,null,null,null,null,null,null,"IBNRCY2019AY2019",0]
[null,null,null,null,null,null,null,null,null,null,null,null,null,null,null,null,{"$f":"\"GrossWP\"&$B68","v":"GrossWP2010"},{"$f":"C68","v":0}]
[null,null,null,null,null,null,null,null,null,null,null,null,null,null,null,null,"GrossWP2011",0]
[null,null,null,null,null,null,null,null,null,null,null,null,null,null,null,null,"GrossWP2012",0]
[null,null,null,null,null,null,null,null,null,null,null,null,null,null,null,null,"GrossWP2013",0]
[null,null,null,null,null,null,null,null,null,null,null,null,null,null,null,null,"GrossWP2014",0]
[null,null,null,null,null,null,null,null,null,null,null,null,null,null,null,null,"GrossWP2015",0]
[null,null,null,null,null,null,null,null,null,null,null,null,null,null,null,null,"GrossWP2016",0]
[null,null,null,null,null,null,null,null,null,null,null,null,null,null,null,null,"GrossWP2017",0]
[null,null,null,null,null,null,null,null,null,null,null,null,null,null,null,null,"GrossWP2018",0]
[null,null,null,null,null,null,null,null,null,null,null,null,null,null,null,null,"GrossWP2019",0]
[null,null,null,null,null,null,null,null,null,null,null,null,null,null,null,null,{"$f":"\"GrossEP\"&$B68","v":"GrossEP2010"},{"$f":"D68","v":0}]
[null,null,null,null,null,null,null,null,null,null,null,null,null,null,null,null,"GrossEP2011",0]
[null,null,null,null,null,null,null,null,null,null,null,null,null,null,null,null,"GrossEP2012",0]
[null,null,null,null,null,null,null,null,null,null,null,null,null,null,null,null,"GrossEP2013",0]
[null,null,null,null,null,null,null,null,null,null,null,null,null,null,null,null,"GrossEP2014",0]
[null,null,null,null,null,null,null,null,null,null,null,null,null,null,null,null,"GrossEP2015",0]
[null,null,null,null,null,null,null,null,null,null,null,null,null,null,null,null,"GrossEP2016",0]
[null,null,null,null,null,null,null,null,null,null,null,null,null,null,null,null,"GrossEP2017",0]
[null,null,null,null,null,null,null,null,null,null,null,null,null,null,null,null,"GrossEP2018",0]
[null,null,null,null,null,null,null,null,null,null,null,null,null,null,null,null,"GrossEP2019",0]
[null,null,null,null,null,null,null,null,null,null,null,null,null,null,null,null,{"$f":"\"NetWP\"&$B68","v":"NetWP2010"},{"$f":"E68","v":0}]
[null,null,null,null,null,null,null,null,null,null,null,null,null,null,null,null,"NetWP2011",0]
[null,null,null,null,null,null,null,null,null,null,null,null,null,null,null,null,"NetWP2012",0]
[null,null,null,null,null,null,null,null,null,null,null,null,null,null,null,null,"NetWP2013",0]
[null,null,null,null,null,null,null,null,null,null,null,null,null,null,null,null,"NetWP2014",0]
[null,null,null,null,null,null,null,null,null,null,null,null,null,null,null,null,"NetWP2015",0]
[null,null,null,null,null,null,null,null,null,null,null,null,null,null,null,null,"NetWP2016",0]
[null,null,null,null,null,null,null,null,null,null,null,null,null,null,null,null,"NetWP2017",0]
[null,null,null,null,null,null,null,null,null,null,null,null,null,null,null,null,"NetWP2018",0]
[null,null,null,null,null,null,null,null,null,null,null,null,null,null,null,null,"NetWP2019",0]
[null,null,null,null,null,null,null,null,null,null,null,null,null,null,null,null,{"$f":"\"NetEP\"&$B68","v":"NetEP2010"},{"$f":"F68","v":0}]
[null,null,null,null,null,null,null,null,null,null,null,null,null,null,null,null,"NetEP2011",0]
[null,null,null,null,null,null,null,null,null,null,null,null,null,null,null,null,"NetEP2012",0]
[null,null,null,null,null,null,null,null,null,null,null,null,null,null,null,null,"NetEP2013",0]
[null,null,null,null,null,null,null,null,null,null,null,null,null,null,null,null,"NetEP2014",0]
[null,null,null,null,null,null,null,null,null,null,null,null,null,null,null,null,"NetEP2015",0]
[null,null,null,null,null,null,null,null,null,null,null,null,null,null,null,null,"NetEP2016",0]
[null,null,null,null,null,null,null,null,null,null,null,null,null,null,null,null,"NetEP2017",0]
[null,null,null,null,null,null,null,null,null,null,null,null,null,null,null,null,"NetEP2018",0]
[null,null,null,null,null,null,null,null,null,null,null,null,null,null,null,null,"NetEP2019",0]
[null,null,null,null,null,null,null,null,null,null,null,null,null,null,null,null,{"$f":"\"NetAOEPaid\"&$B67","v":"NetAOEPaidPrior"},{"$f":"G67","v":0}]
[null,null,null,null,null,null,null,null,null,null,null,null,null,null,null,null,"NetAOEPaid2010",0]
[null,null,null,null,null,null,null,null,null,null,null,null,null,null,null,null,"NetAOEPaid2011",0]
[null,null,null,null,null,null,null,null,null,null,null,null,null,null,null,null,"NetAOEPaid2012",0]
[null,null,null,null,null,null,null,null,null,null,null,null,null,null,null,null,"NetAOEPaid2013",0]
[null,null,null,null,null,null,null,null,null,null,null,null,null,null,null,null,"NetAOEPaid2014",0]
[null,null,null,null,null,null,null,null,null,null,null,null,null,null,null,null,"NetAOEPaid2015",0]
[null,null,null,null,null,null,null,null,null,null,null,null,null,null,null,null,"NetAOEPaid2016",0]
[null,null,null,null,null,null,null,null,null,null,null,null,null,null,null,null,"NetAOEPaid2017",0]
[null,null,null,null,null,null,null,null,null,null,null,null,null,null,null,null,"NetAOEPaid2018",0]
[null,null,null,null,null,null,null,null,null,null,null,null,null,null,null,null,"NetAOEPaid2019",0]
[null,null,null,null,null,null,null,null,null,null,null,null,null,null,null,null,{"$f":"\"NetAOEIncurred\"&$B67","v":"NetAOEIncurredPrior"},{"$f":"H67","v":0}]
[null,null,null,null,null,null,null,null,null,null,null,null,null,null,null,null,"NetAOEIncurred2010",0]
[null,null,null,null,null,null,null,null,null,null,null,null,null,null,null,null,"NetAOEIncurred2011",0]
[null,null,null,null,null,null,null,null,null,null,null,null,null,null,null,null,"NetAOEIncurred2012",0]
[null,null,null,null,null,null,null,null,null,null,null,null,null,null,null,null,"NetAOEIncurred2013",0]
[null,null,null,null,null,null,null,null,null,null,null,null,null,null,null,null,"NetAOEIncurred2014",0]
[null,null,null,null,null,null,null,null,null,null,null,null,null,null,null,null,"NetAOEIncurred2015",0]
[null,null,null,null,null,null,null,null,null,null,null,null,null,null,null,null,"NetAOEIncurred2016",0]
[null,null,null,null,null,null,null,null,null,null,null,null,null,null,null,null,"NetAOEIncurred2017",0]
[null,null,null,null,null,null,null,null,null,null,null,null,null,null,null,null,"NetAOEIncurred2018",0]
[null,null,null,null,null,null,null,null,null,null,null,null,null,null,null,null,"NetAOEIncurred2019",0]
[null,null,null,null,null,null,null,null,null,null,null,null,null,null,null,null,{"$f":"\"Commission\"&$B67","v":"CommissionPrior"},{"$f":"J67","v":0}]
[null,null,null,null,null,null,null,null,null,null,null,null,null,null,null,null,"Commission2010",0]
[null,null,null,null,null,null,null,null,null,null,null,null,null,null,null,null,"Commission2011",0]
[null,null,null,null,null,null,null,null,null,null,null,null,null,null,null,null,"Commission2012",0]
[null,null,null,null,null,null,null,null,null,null,null,null,null,null,null,null,"Commission2013",0]
[null,null,null,null,null,null,null,null,null,null,null,null,null,null,null,null,"Commission2014",0]
[null,null,null,null,null,null,null,null,null,null,null,null,null,null,null,null,"Commission2015",0]
[null,null,null,null,null,null,null,null,null,null,null,null,null,null,null,null,"Commission2016",0]
[null,null,null,null,null,null,null,null,null,null,null,null,null,null,null,null,"Commission2017",0]
[null,null,null,null,null,null,null,null,null,null,null,null,null,null,null,null,"Commission2018",0]
[null,null,null,null,null,null,null,null,null,null,null,null,null,null,null,null,"Commission2019",0]
[null,null,null,null,null,null,null,null,null,null,null,null,null,null,null,null,{"$f":"\"AcqExp\"&$B67","v":"AcqExpPrior"},{"$f":"K67","v":0}]
[null,null,null,null,null,null,null,null,null,null,null,null,null,null,null,null,"AcqExp2010",0]
[null,null,null,null,null,null,null,null,null,null,null,null,null,null,null,null,"AcqExp2011",0]
[null,null,null,null,null,null,null,null,null,null,null,null,null,null,null,null,"AcqExp2012",0]
[null,null,null,null,null,null,null,null,null,null,null,null,null,null,null,null,"AcqExp2013",0]
[null,null,null,null,null,null,null,null,null,null,null,null,null,null,null,null,"AcqExp2014",0]
[null,null,null,null,null,null,null,null,null,null,null,null,null,null,null,null,"AcqExp2015",0]
[null,null,null,null,null,null,null,null,null,null,null,null,null,null,null,null,"AcqExp2016",0]
[null,null,null,null,null,null,null,null,null,null,null,null,null,null,null,null,"AcqExp2017",0]
[null,null,null,null,null,null,null,null,null,null,null,null,null,null,null,null,"AcqExp2018",0]
[null,null,null,null,null,null,null,null,null,null,null,null,null,null,null,null,"AcqExp2019",0]
[null,null,null,null,null,null,null,null,null,null,null,null,null,null,null,null,{"$f":"\"Taxes\"&$B67","v":"TaxesPrior"},{"$f":"L67","v":0}]
[null,null,null,null,null,null,null,null,null,null,null,null,null,null,null,null,"Taxes2010",0]
[null,null,null,null,null,null,null,null,null,null,null,null,null,null,null,null,"Taxes2011",0]
[null,null,null,null,null,null,null,null,null,null,null,null,null,null,null,null,"Taxes2012",0]
[null,null,null,null,null,null,null,null,null,null,null,null,null,null,null,null,"Taxes2013",0]
[null,null,null,null,null,null,null,null,null,null,null,null,null,null,null,null,"Taxes2014",0]
[null,null,null,null,null,null,null,null,null,null,null,null,null,null,null,null,"Taxes2015",0]
[null,null,null,null,null,null,null,null,null,null,null,null,null,null,null,null,"Taxes2016",0]
[null,null,null,null,null,null,null,null,null,null,null,null,null,null,null,null,"Taxes2017",0]
[null,null,null,null,null,null,null,null,null,null,null,null,null,null,null,null,"Taxes2018",0]
[null,null,null,null,null,null,null,null,null,null,null,null,null,null,null,null,"Taxes2019",0]
[null,null,null,null,null,null,null,null,null,null,null,null,null,null,null,null,{"$f":"\"GeneralOver\"&$B67","v":"GeneralOverPrior"},{"$f":"M67","v":0}]
[null,null,null,null,null,null,null,null,null,null,null,null,null,null,null,null,"GeneralOver2010",0]
[null,null,null,null,null,null,null,null,null,null,null,null,null,null,null,null,"GeneralOver2011",0]
[null,null,null,null,null,null,null,null,null,null,null,null,null,null,null,null,"GeneralOver2012",0]
[null,null,null,null,null,null,null,null,null,null,null,null,null,null,null,null,"GeneralOver2013",0]
[null,null,null,null,null,null,null,null,null,null,null,null,null,null,null,null,"GeneralOver2014",0]
[null,null,null,null,null,null,null,null,null,null,null,null,null,null,null,null,"GeneralOver2015",0]
[null,null,null,null,null,null,null,null,null,null,null,null,null,null,null,null,"GeneralOver2016",0]
[null,null,null,null,null,null,null,null,null,null,null,null,null,null,null,null,"GeneralOver2017",0]
[null,null,null,null,null,null,null,null,null,null,null,null,null,null,null,null,"GeneralOver2018",0]
[null,null,null,null,null,null,null,null,null,null,null,null,null,null,null,null,"GeneralOver2019",0]

{"sheet":"Sch XI(a)(ii)","index":65,"n_rows":300,"n_cols":48,"rows_kept":300,"cut":false,"hidden":false,"merged":[[80,1,82,12],[5,2,5,11],[59,6,59,7],[41,2,41,11],[0,13,0,14],[2,13,2,14],[2,1,2,2],[60,6,60,7],[23,2,23,11]]}
[null,"SCHEDULE OF LOSS TRIANGLES (LINE 2 - PROPERTY)",null,null,null,null,null,null,null,null,null,null,null,{"$f":"HYPERLINK(\"#'Index'!A1\",\"Return to Index\")","v":"Return to Index"}]
[null,{"$f":"'Company Information'!C7","v":"Enter Company Name"},null,null,null,null,null,null,null,null,null,null,null,null,null,null,null,null,null,null,null,null,null,null,null,null,null,null,null,null,null,null,null,null,null,"bma_Line2PropertyMember"]
[null,{"$f":"'Company Information'!C3","v":"2019-12-31"},null,null,null,null,null,null,null,null,null,null,null,"SCHEDULE XI(a)(ii)"]
[null,{"$f":"\"expressed in\"& IF(1000>1,\" ['\"&MID(1000,2,LEN(1000))&\"s]\",\"\")&\" \"&'Form 1EBS'!$C$4","v":"expressed in ['000s] United States Dollars"},null,null,null,null,null,null,null,null,null,null,null,null,null,null,null,null,null,null,"brrt_LineOfBusinessAxis_brrt_PropertyMember"]
[]
[null,"Accounting Basis: ","INCURRED (ESTIMATED ULTIMATE) NET LOSSES AND ALLOCATED LOSS ADJUSTMENT EXPENSES REPORTED AT YEAR END ($000)",null,null,null,null,null,null,null,null,null,11,12,13,null,"AcctBasis",{"$f":"B7","v":"Accident Year"},null,null,{"$f":"IF(B7=\"Accident Year\",\"brrt_AccountingBasisAxis_brrt_AccidentYearMember\",\"brrt_AccountingBasisAxis_brrt_AccountingYearMember\")","v":"brrt_AccountingBasisAxis_brrt_AccidentYearMember"}]
[null,"Accident Year",null,null,null,null,null,null,null,null,null,null,"Ultimate","Development","Development",null,{"$f":"\"UltCY\"&C$10&\"AY\"&B11","v":"UltCY2010AYPrior"},{"$f":"C11","v":0},{"$f":"\"CATUltCY\"&L$10&\"AY\"&B11","v":"CATUltCY2019AYPrior"},{"$f":"M11","v":0},"brrt_TypeOfContractAxis_brrt_ProportionalMember",null,null,null,null,null,null,null,null,null,null,null,null,null,null,"bma_AcctBasis"]
[null,"Years in Which",1,2,3,4,5,6,7,8,9,10,"Catastrophe",null,null,null,{"$f":"\"UltCY\"&C$10&\"AY\"&B12","v":"UltCY2010AY2010"},{"$f":"C12","v":0},"CATUltCY2019AY2010",0]
[null,"Losses Were",null,null,null,null,null,null,null,null,null,null,"Losses","One Year","Two Year",null,{"$f":"\"UltCY\"&D$10&\"AY\"&B11","v":"UltCY2011AYPrior"},{"$f":"D11","v":0},"CATUltCY2019AY2011",0]
[null,"Incurred",{"$f":"D10-1","v":2010},2011,2012,2013,2014,2015,2016,2017,2018,{"$f":"YEAR('Company Information'!C3)","v":2019},{"$f":"L10","v":2019},"Development","Development",null,{"$f":"\"UltCY\"&D$10&\"AY\"&B12","v":"UltCY2011AY2010"},{"$f":"D12","v":0},"CATUltCY2019AY2012",0]
["L1","Prior",{"$f":"Import!I7661","v":0},{"$f":"Import!I7663","v":0},{"$f":"Import!I7666","v":0},{"$f":"Import!I7670","v":0},{"$f":"Import!I7675","v":0},{"$f":"Import!I7681","v":0},{"$f":"Import!I7688","v":0},{"$f":"Import!I7696","v":0},{"$f":"Import!I7705","v":0},{"$f":"Import!I7715","v":0},{"$f":"Import!I7726","v":0},{"$f":"K11-L11","v":0},{"$f":"J11-L11","v":0},null,{"$f":"\"UltCY\"&D$10&\"AY\"&B13","v":"UltCY2011AY2011"},{"$f":"D13","v":0},"CATUltCY2019AY2013",0,"brrt_LossIncurredYearAxis_brrt_PriorMember",null,null,null,null,null,null,null,null,null,null,null,null,null,null,{"$f":"\"bma_\"&\"UltCY\"&P$10&\"AY\"&$B11","v":"bma_UltCYAYPrior"},"bma_UltCYUltCY2011AY2010AYPrior","bma_UltCY0AYPrior",{"$f":"\"bma_\"&\"UltCY\"&S$10&\"AY\"&$B11","v":"bma_UltCYCATUltCY2019AY2012AYPrior"},{"$f":"\"bma_\"&\"UltCY\"&T$10&\"AY\"&$B11","v":"bma_UltCY0AYPrior"},{"$f":"\"bma_\"&\"UltCY\"&U$10&\"AY\"&$B11","v":"bma_UltCYAYPrior"},{"$f":"\"bma_\"&\"UltCY\"&V$10&\"AY\"&$B11","v":"bma_UltCYAYPrior"},{"$f":"\"bma_\"&\"UltCY\"&W$10&\"AY\"&$B11","v":"bma_UltCYAYPrior"},{"$f":"\"bma_\"&\"UltCY\"&X$10&\"AY\"&$B11","v":"bma_UltCYAYPrior"},{"$f":"\"bma_\"&\"UltCY\"&Y$10&\"AY\"&$B11","v":"bma_UltCYAYPrior"},{"$f":"\"bma_\"&\"CATUltCY\"&Y$10&\"AY\"&$B11","v":"bma_CATUltCYAYPrior"},{"$f":"\"bma_\"&\"UltCY\"&\"OneYearDevelopment\"&\"AY\"&$B11","v":"bma_UltCYOneYearDevelopmentAYPrior"},{"$f":"\"bma_\"&\"UltCY\"&\"TwoYearDevelopment\"&\"AY\"&$B11","v":"bma_UltCYTwoYearDevelopmentAYPrior"}]
["L2",{"$f":"B13-1","v":2010},{"$f":"Import!I7662","v":0},{"$f":"Import!I7664","v":0},{"$f":"Import!I7667","v":0},{"$f":"Import!I7671","v":0},{"$f":"Import!I7676","v":0},{"$f":"Import!I7682","v":0},{"$f":"Import!I7689","v":0},{"$f":"Import!I7697","v":0},{"$f":"Import!I7706","v":0},{"$f":"Import!I7716","v":0},{"$f":"Import!I7727","v":0},0,0,null,{"$f":"\"UltCY\"&E$10&\"AY\"&B11","v":"UltCY2012AYPrior"},{"$f":"E11","v":0},"CATUltCY2019AY2014",0,"brrt_LossIncurredYearAxis_brrt_XNMinus9Member",null,null,null,null,null,null,null,null,null,null,null,null,null,null,"bma_UltCYAY2010","bma_UltCYUltCY2011AY2010AY2010","bma_UltCY0AY2010",{"$f":"\"bma_\"&\"UltCY\"&S$10&\"AY\"&$B12","v":"bma_UltCYCATUltCY2019AY2012AY2010"},"bma_UltCY0AY2010","bma_UltCYAY2010","bma_UltCYAY2010","bma_UltCYAY2010","bma_UltCYAY2010","bma_UltCYAY2010",{"$f":"\"bma_\"&\"CATUltCY\"&Y$10&\"AY\"&$B12","v":"bma_CATUltCYAY2010"},{"$f":"\"bma_\"&\"UltCY\"&\"OneYearDevelopment\"&\"AY\"&$B12","v":"bma_UltCYOneYearDevelopmentAY2010"},{"$f":"\"bma_\"&\"UltCY\"&\"TwoYearDevelopment\"&\"AY\"&$B12","v":"bma_UltCYTwoYearDevelopmentAY2010"}]
["L3",2011,"XXX",{"$f":"Import!I7665","v":0},{"$f":"Import!I7668","v":0},{"$f":"Import!I7672","v":0},{"$f":"Import!I7677","v":0},{"$f":"Import!I7683","v":0},{"$f":"Import!I7690","v":0},{"$f":"Import!I7698","v":0},{"$f":"Import!I7707","v":0},{"$f":"Import!I7717","v":0},{"$f":"Import!I7728","v":0},0,0,null,{"$f":"\"UltCY\"&E$10&\"AY\"&B12","v":"UltCY2012AY2010"},{"$f":"E12","v":0},"CATUltCY2019AY2015",0,"brrt_LossIncurredYearAxis_brrt_XNMinus8Member",null,null,null,null,null,null,null,null,null,null,null,null,null,null,null,{"$f":"\"bma_\"&\"UltCY\"&Q$10&\"AY\"&$B13","v":"bma_UltCYUltCY2011AY2010AY2011"},{"$f":"\"bma_\"&\"UltCY\"&R$10&\"AY\"&$B13","v":"bma_UltCY0AY2011"},{"$f":"\"bma_\"&\"UltCY\"&S$10&\"AY\"&$B13","v":"bma_UltCYCATUltCY2019AY2012AY2011"},"bma_UltCY0AY2011","bma_UltCYAY2011","bma_UltCYAY2011","bma_UltCYAY2011","bma_UltCYAY2011","bma_UltCYAY2011","bma_CATUltCYAY2011","bma_UltCYOneYearDevelopmentAY2011","bma_UltCYTwoYearDevelopmentAY2011"]
["L4",2012,"XXX","XXX",{"$f":"Import!I7669","v":0},{"$f":"Import!I7673","v":0},{"$f":"Import!I7678","v":0},{"$f":"Import!I7684","v":0},{"$f":"Import!I7691","v":0},{"$f":"Import!I7699","v":0},{"$f":"Import!I7708","v":0},{"$f":"Import!I7718","v":0},{"$f":"Import!I7729","v":0},0,0,null,{"$f":"\"UltCY\"&E$10&\"AY\"&B13","v":"UltCY2012AY2011"},{"$f":"E13","v":0},"CATUltCY2019AY2016",0,"brrt_LossIncurredYearAxis_brrt_XNMinus7Member",null,null,null,null,null,null,null,null,null,null,null,null,null,null,null,null,{"$f":"\"bma_\"&\"UltCY\"&R$10&\"AY\"&$B14","v":"bma_UltCY0AY2012"},{"$f":"\"bma_\"&\"UltCY\"&S$10&\"AY\"&$B14","v":"bma_UltCYCATUltCY2019AY2012AY2012"},"bma_UltCY0AY2012","bma_UltCYAY2012","bma_UltCYAY2012","bma_UltCYAY2012","bma_UltCYAY2012","bma_UltCYAY2012","bma_CATUltCYAY2012","bma_UltCYOneYearDevelopmentAY2012","bma_UltCYTwoYearDevelopmentAY2012"]
["L5",2013,"XXX","XXX","XXX",{"$f":"Import!I7674","v":0},{"$f":"Import!I7679","v":0},{"$f":"Import!I7685","v":0},{"$f":"Import!I7692","v":0},{"$f":"Import!I7700","v":0},{"$f":"Import!I7709","v":0},{"$f":"Import!I7719","v":0},{"$f":"Import!I7730","v":0},0,0,null,{"$f":"\"UltCY\"&E$10&\"AY\"&B14","v":"UltCY2012AY2012"},{"$f":"E14","v":0},"CATUltCY2019AY2017",0,"brrt_LossIncurredYearAxis_brrt_XNMinus6Member",null,null,null,null,null,null,null,null,null,null,null,null,null,null,null,null,null,{"$f":"\"bma_\"&\"UltCY\"&S$10&\"AY\"&$B15","v":"bma_UltCYCATUltCY2019AY2012AY2013"},"bma_UltCY0AY2013","bma_UltCYAY2013","bma_UltCYAY2013","bma_UltCYAY2013","bma_UltCYAY2013","bma_UltCYAY2013","bma_CATUltCYAY2013","bma_UltCYOneYearDevelopmentAY2013","bma_UltCYTwoYearDevelopmentAY2013"]
["L6",2014,"XXX","XXX","XXX","XXX",{"$f":"Import!I7680","v":0},{"$f":"Import!I7686","v":0},{"$f":"Import!I7693","v":0},{"$f":"Import!I7701","v":0},{"$f":"Import!I7710","v":0},{"$f":"Import!I7720","v":0},{"$f":"Import!I7731","v":0},0,0,null,{"$f":"\"UltCY\"&F$10&\"AY\"&B11","v":"UltCY2013AYPrior"},{"$f":"F11","v":0},"CATUltCY2019AY2018",0,"brrt_LossIncurredYearAxis_brrt_XNMinus5Member",null,null,null,null,null,null,null,null,null,null,null,null,null,null,null,null,null,null,"bma_UltCY0AY2014","bma_UltCYAY2014","bma_UltCYAY2014","bma_UltCYAY2014","bma_UltCYAY2014","bma_UltCYAY2014","bma_CATUltCYAY2014","bma_UltCYOneYearDevelopmentAY2014","bma_UltCYTwoYearDevelopmentAY2014"]
["L7",2015,"XXX","XXX","XXX","XXX","XXX",{"$f":"Import!I7687","v":0},{"$f":"Import!I7694","v":0},{"$f":"Import!I7702","v":0},{"$f":"Import!I7711","v":0},{"$f":"Import!I7721","v":0},{"$f":"Import!I7732","v":0},0,0,null,{"$f":"\"UltCY\"&F$10&\"AY\"&B12","v":"UltCY2013AY2010"},{"$f":"F12","v":0},"CATUltCY2019AY2019",0,"brrt_LossIncurredYearAxis_brrt_XNMinus4Member",null,null,null,null,null,null,null,null,null,null,null,null,null,null,null,null,null,null,null,"bma_UltCYAY2015","bma_UltCYAY2015","bma_UltCYAY2015","bma_UltCYAY2015","bma_UltCYAY2015","bma_CATUltCYAY2015","bma_UltCYOneYearDevelopmentAY2015","bma_UltCYTwoYearDevelopmentAY2015"]
["L8",2016,"XXX","XXX","XXX","XXX","XXX","XXX",{"$f":"Import!I7695","v":0},{"$f":"Import!I7703","v":0},{"$f":"Import!I7712","v":0},{"$f":"Import!I7722","v":0},{"$f":"Import!I7733","v":0},0,0,null,{"$f":"\"UltCY\"&F$10&\"AY\"&B13","v":"UltCY2013AY2011"},{"$f":"F13","v":0},{"$f":"\"CATPaidCY\"&L$10&\"AY\"&B29","v":"CATPaidCY2019AYPrior"},{"$f":"M29","v":0},"brrt_LossIncurredYearAxis_brrt_XNMinus3Member",null,null,null,null,null,null,null,null,null,null,null,null,null,null,null,null,null,null,null,null,"bma_UltCYAY2016","bma_UltCYAY2016","bma_UltCYAY2016","bma_UltCYAY2016","bma_CATUltCYAY2016","bma_UltCYOneYearDevelopmentAY2016","bma_UltCYTwoYearDevelopmentAY2016"]
["L9",2017,"XXX","XXX","XXX","XXX","XXX","XXX","XXX",{"$f":"Import!I7704","v":0},{"$f":"Import!I7713","v":0},{"$f":"Import!I7723","v":0},{"$f":"Import!I7734","v":0},0,0,null,{"$f":"\"UltCY\"&F$10&\"AY\"&B14","v":"UltCY2013AY2012"},{"$f":"F14","v":0},"CATPaidCY2019AY2010",0,"brrt_LossIncurredYearAxis_brrt_XNMinus2Member",null,null,null,null,null,null,null,null,null,null,null,null,null,null,null,null,null,null,null,null,null,"bma_UltCYAY2017","bma_UltCYAY2017","bma_UltCYAY2017","bma_CATUltCYAY2017","bma_UltCYOneYearDevelopmentAY2017","bma_UltCYTwoYearDevelopmentAY2017"]
["L10",{"$f":"B21-1","v":2018},"XXX","XXX","XXX","XXX","XXX","XXX","XXX","XXX",{"$f":"Import!I7714","v":0},{"$f":"Import!I7724","v":0},{"$f":"Import!I7735","v":0},0,"XXX",null,{"$f":"\"UltCY\"&F$10&\"AY\"&B15","v":"UltCY2013AY2013"},{"$f":"F15","v":0},"CATPaidCY2019AY2011",0,"brrt_LossIncurredYearAxis_brrt_XNMinus1Member",null,null,null,null,null,null,null,null,null,null,null,null,null,null,null,null,null,null,null,null,null,null,"bma_UltCYAY2018","bma_UltCYAY2018","bma_CATUltCYAY2018","bma_UltCYOneYearDevelopmentAY2018"]
["L11",{"$f":"L10","v":2019},"XXX","XXX","XXX","XXX","XXX","XXX","XXX","XXX","XXX",{"$f":"Import!I7725","v":0},{"$f":"Import!I7736","v":0},"XXX","XXX",null,{"$f":"\"UltCY\"&G$10&\"AY\"&B11","v":"UltCY2014AYPrior"},{"$f":"G11","v":0},"CATPaidCY2019AY2012",0,"brrt_LossIncurredYearAxis_brrt_XNMember",null,null,null,null,null,null,null,null,null,null,null,null,null,null,null,null,null,null,null,null,null,null,null,"bma_UltCYAY2019","bma_CATUltCYAY2019"]
["L13","Totals",null,null,null,null,null,null,null,null,null,null,{"$f":"SUM(M11:M21)","v":0},{"$f":"SUM(N11:N21)","v":0},{"$f":"SUM(O11:O21)","v":0},null,{"$f":"\"UltCY\"&G$10&\"AY\"&B12","v":"UltCY2014AY2010"},{"$f":"G12","v":0},"CATPaidCY2019AY2013",0,null,null,null,null,null,null,null,null,null,null,null,null,null,null,null,null,null,null,null,null,null,null,null,null,null,"bma_CATUltCYAYTotals","bma_UltCYOneYearDevelopmentAYTotals",{"$f":"\"bma_\"&\"UltCY\"&\"TwoYearDevelopment\"&\"AY\"&$B22","v":"bma_UltCYTwoYearDevelopmentAYTotals"}]
[null,null,null,null,null,null,null,null,null,null,null,null,null,null,null,null,{"$f":"\"UltCY\"&G$10&\"AY\"&B13","v":"UltCY2014AY2011"},{"$f":"G13","v":0},"CATPaidCY2019AY2014",0]
[null,null,"CUMULATIVE PAID NET LOSSES AND ALLOCATED LOSS ADJUSTMENT EXPENSES REPORTED AT YEAR END ($000)",null,null,null,null,null,null,null,null,null,24,null,null,null,{"$f":"\"UltCY\"&G$10&\"AY\"&B15","v":"UltCY2014AY2013"},{"$f":"G15","v":0},{"$f":"\"CATPaidCY\"&L$10&\"AY\"&B36","v":"CATPaidCY2019AY2016"},{"$f":"M36","v":0}]
[null,null,null,null,null,null,null,null,null,null,null,null,"Paid",null,null,null,{"$f":"\"UltCY\"&G$10&\"AY\"&B16","v":"UltCY2014AY2014"},{"$f":"G16","v":0},{"$f":"\"CATPaidCY\"&L$10&\"AY\"&B37","v":"CATPaidCY2019AY2017"},{"$f":"M37","v":0}]
[null,"Years in Which",14,15,16,17,18,19,20,21,22,23,"Catastrophe",null,null,null,{"$f":"\"UltCY\"&H$10&\"AY\"&B11","v":"UltCY2015AYPrior"},{"$f":"H11","v":0},{"$f":"\"CATPaidCY\"&L$10&\"AY\"&B38","v":"CATPaidCY2019AY2018"},{"$f":"M38","v":0}]
[null,"Policies Were",null,null,null,null,null,null,null,null,null,null,"Losses",null,null,null,"UltCY2015AY2010",0,{"$f":"\"CATPaidCY\"&L$10&\"AY\"&B39","v":"CATPaidCY2019AY2019"},{"$f":"M39","v":0}]
[null,"Written",{"$f":"D28-1","v":2010},2011,2012,2013,2014,2015,2016,2017,2018,{"$f":"L10","v":2019},{"$f":"L28","v":2019},null,null,null,"UltCY2015AY2011",0,{"$f":"\"CATIBNRCY\"&L$10&\"AY\"&B47","v":"CATIBNRCY2019AYPrior"},{"$f":"M47","v":0}]
["L14","Prior",{"$f":"Import!I7737","v":0},{"$f":"Import!I7739","v":0},{"$f":"Import!I7742","v":0},{"$f":"Import!I7746","v":0},{"$f":"Import!I7751","v":0},{"$f":"Import!I7757","v":0},{"$f":"Import!I7764","v":0},{"$f":"Import!I7772","v":0},{"$f":"Import!I7781","v":0},{"$f":"Import!I7791","v":0},{"$f":"Import!I7802","v":0},null,null,null,"UltCY2015AY2012",0,"CATIBNRCY2019AY2010",0,"brrt_PoliciesWrittenYearAxis_brrt_PriorMember",null,null,null,null,null,null,null,null,null,null,null,null,null,null,{"$f":"\"bma_\"&\"PaidCY\"&P$10&\"AY\"&$B29","v":"bma_PaidCYAYPrior"},"bma_PaidCYUltCY2011AY2010AYPrior","bma_PaidCY0AYPrior","bma_PaidCYCATUltCY2019AY2012AYPrior",{"$f":"\"bma_\"&\"PaidCY\"&T$10&\"AY\"&$B29","v":"bma_PaidCY0AYPrior"},{"$f":"\"bma_\"&\"PaidCY\"&U$10&\"AY\"&$B29","v":"bma_PaidCYAYPrior"},{"$f":"\"bma_\"&\"PaidCY\"&V$10&\"AY\"&$B29","v":"bma_PaidCYAYPrior"},{"$f":"\"bma_\"&\"PaidCY\"&W$10&\"AY\"&$B29","v":"bma_PaidCYAYPrior"},{"$f":"\"bma_\"&\"PaidCY\"&X$10&\"AY\"&$B29","v":"bma_PaidCYAYPrior"},{"$f":"\"bma_\"&\"PaidCY\"&Y$10&\"AY\"&$B29","v":"bma_PaidCYAYPrior"},{"$f":"\"bma_\"&\"CATPaidCY\"&Y$10&\"AY\"&$B29","v":"bma_CATPaidCYAYPrior"}]
["L15",{"$f":"B31-1","v":2010},{"$f":"Import!I7738","v":0},{"$f":"Import!I7740","v":0},{"$f":"Import!I7743","v":0},{"$f":"Import!I7747","v":0},{"$f":"Import!I7752","v":0},{"$f":"Import!I7758","v":0},{"$f":"Import!I7765","v":0},{"$f":"Import!I7773","v":0},{"$f":"Import!I7782","v":0},{"$f":"Import!I7792","v":0},{"$f":"Import!I7803","v":0},null,null,null,"UltCY2015AY2013",0,"CATIBNRCY2019AY2011",0,"brrt_PoliciesWrittenYearAxis_brrt_XNMinus9Member",null,null,null,null,null,null,null,null,null,null,null,null,null,null,"bma_PaidCYAY2010","bma_PaidCYUltCY2011AY2010AY2010","bma_PaidCY0AY2010","bma_PaidCYCATUltCY2019AY2012AY2010","bma_PaidCY0AY2010","bma_PaidCYAY2010","bma_PaidCYAY2010","bma_PaidCYAY2010","bma_PaidCYAY2010","bma_PaidCYAY2010","bma_CATPaidCYAY2010"]
["L16",2011,"XXX",{"$f":"Import!I7741","v":0},{"$f":"Import!I7744","v":0},{"$f":"Import!I7748","v":0},{"$f":"Import!I7753","v":0},{"$f":"Import!I7759","v":0},{"$f":"Import!I7766","v":0},{"$f":"Import!I7774","v":0},{"$f":"Import!I7783","v":0},{"$f":"Import!I7793","v":0},{"$f":"Import!I7804","v":0},null,null,null,"UltCY2015AY2014",0,"CATIBNRCY2019AY2012",0,"brrt_PoliciesWrittenYearAxis_brrt_XNMinus8Member",null,null,null,null,null,null,null,null,null,null,null,null,null,null,null,{"$f":"\"bma_\"&\"PaidCY\"&Q$10&\"AY\"&$B31","v":"bma_PaidCYUltCY2011AY2010AY2011"},{"$f":"\"bma_\"&\"PaidCY\"&R$10&\"AY\"&$B31","v":"bma_PaidCY0AY2011"},{"$f":"\"bma_\"&\"PaidCY\"&S$10&\"AY\"&$B31","v":"bma_PaidCYCATUltCY2019AY2012AY2011"},"bma_PaidCY0AY2011","bma_PaidCYAY2011","bma_PaidCYAY2011","bma_PaidCYAY2011","bma_PaidCYAY2011","bma_PaidCYAY2011","bma_CATPaidCYAY2011"]
["L17",2012,"XXX","XXX",{"$f":"Import!I7745","v":0},{"$f":"Import!I7749","v":0},{"$f":"Import!I7754","v":0},{"$f":"Import!I7760","v":0},{"$f":"Import!I7767","v":0},{"$f":"Import!I7775","v":0},{"$f":"Import!I7784","v":0},{"$f":"Import!I7794","v":0},{"$f":"Import!I7805","v":0},null,null,null,"UltCY2015AY2015",0,"CATIBNRCY2019AY2013",0,"brrt_PoliciesWrittenYearAxis_brrt_XNMinus7Member",null,null,null,null,null,null,null,null,null,null,null,null,null,null,null,null,{"$f":"\"bma_\"&\"PaidCY\"&R$10&\"AY\"&$B32","v":"bma_PaidCY0AY2012"},{"$f":"\"bma_\"&\"PaidCY\"&S$10&\"AY\"&$B32","v":"bma_PaidCYCATUltCY2019AY2012AY2012"},"bma_PaidCY0AY2012","bma_PaidCYAY2012","bma_PaidCYAY2012","bma_PaidCYAY2012","bma_PaidCYAY2012","bma_PaidCYAY2012","bma_CATPaidCYAY2012"]
["L18",2013,"XXX","XXX","XXX",{"$f":"Import!I7750","v":0},{"$f":"Import!I7755","v":0},{"$f":"Import!I7761","v":0},{"$f":"Import!I7768","v":0},{"$f":"Import!I7776","v":0},{"$f":"Import!I7785","v":0},{"$f":"Import!I7795","v":0},{"$f":"Import!I7806","v":0},null,null,null,{"$f":"\"UltCY\"&I$10&\"AY\"&B11","v":"UltCY2016AYPrior"},{"$f":"I11","v":0},"CATIBNRCY2019AY2014",0,"brrt_PoliciesWrittenYearAxis_brrt_XNMinus6Member",null,null,null,null,null,null,null,null,null,null,null,null,null,null,null,null,null,{"$f":"\"bma_\"&\"PaidCY\"&S$10&\"AY\"&$B33","v":"bma_PaidCYCATUltCY2019AY2012AY2013"},"bma_PaidCY0AY2013","bma_PaidCYAY2013","bma_PaidCYAY2013","bma_PaidCYAY2013","bma_PaidCYAY2013","bma_PaidCYAY2013","bma_CATPaidCYAY2013"]
["L19",2014,"XXX","XXX","XXX","XXX",{"$f":"Import!I7756","v":0},{"$f":"Import!I7762","v":0},{"$f":"Import!I7769","v":0},{"$f":"Import!I7777","v":0},{"$f":"Import!I7786","v":0},{"$f":"Import!I7796","v":0},{"$f":"Import!I7807","v":0},null,null,null,"UltCY2016AY2010",0,"CATIBNRCY2019AY2015",0,"brrt_PoliciesWrittenYearAxis_brrt_XNMinus5Member",null,null,null,null,null,null,null,null,null,null,null,null,null,null,null,null,null,null,"bma_PaidCY0AY2014","bma_PaidCYAY2014","bma_PaidCYAY2014","bma_PaidCYAY2014","bma_PaidCYAY2014","bma_PaidCYAY2014","bma_CATPaidCYAY2014"]
["L20",2015,"XXX","XXX","XXX","XXX","XXX",{"$f":"Import!I7763","v":0},{"$f":"Import!I7770","v":0},{"$f":"Import!I7778","v":0},{"$f":"Import!I7787","v":0},{"$f":"Import!I7797","v":0},{"$f":"Import!I7808","v":0},null,null,null,"UltCY2016AY2011",0,"CATIBNRCY2019AY2016",0,"brrt_PoliciesWrittenYearAxis_brrt_XNMinus4Member",null,null,null,null,null,null,null,null,null,null,null,null,null,null,null,null,null,null,null,{"$f":"\"bma_\"&\"PaidCY\"&U$10&\"AY\"&$B35","v":"bma_PaidCYAY2015"},{"$f":"\"bma_\"&\"PaidCY\"&V$10&\"AY\"&$B35","v":"bma_PaidCYAY2015"},{"$f":"\"bma_\"&\"PaidCY\"&W$10&\"AY\"&$B35","v":"bma_PaidCYAY2015"},{"$f":"\"bma_\"&\"PaidCY\"&X$10&\"AY\"&$B35","v":"bma_PaidCYAY2015"},{"$f":"\"bma_\"&\"PaidCY\"&Y$10&\"AY\"&$B35","v":"bma_PaidCYAY2015"},"bma_CATPaidCYAY2015"]
["L21",2016,"XXX","XXX","XXX","XXX","XXX","XXX",{"$f":"Import!I7771","v":0},{"$f":"Import!I7779","v":0},{"$f":"Import!I7788","v":0},{"$f":"Import!I7798","v":0},{"$f":"Import!I7809","v":0},null,null,null,"UltCY2016AY2012",0,"CATIBNRCY2019AY2017",0,"brrt_PoliciesWrittenYearAxis_brrt_XNMinus3Member",null,null,null,null,null,null,null,null,null,null,null,null,null,null,null,null,null,null,null,null,{"$f":"\"bma_\"&\"PaidCY\"&V$10&\"AY\"&$B36","v":"bma_PaidCYAY2016"},{"$f":"\"bma_\"&\"PaidCY\"&W$10&\"AY\"&$B36","v":"bma_PaidCYAY2016"},{"$f":"\"bma_\"&\"PaidCY\"&X$10&\"AY\"&$B36","v":"bma_PaidCYAY2016"},{"$f":"\"bma_\"&\"PaidCY\"&Y$10&\"AY\"&$B36","v":"bma_PaidCYAY2016"},"bma_CATPaidCYAY2016"]
["L22",2017,"XXX","XXX","XXX","XXX","XXX","XXX","XXX",{"$f":"Import!I7780","v":0},{"$f":"Import!I7789","v":0},{"$f":"Import!I7799","v":0},{"$f":"Import!I7810","v":0},null,null,null,"UltCY2016AY2013",0,"CATIBNRCY2019AY2018",0,"brrt_PoliciesWrittenYearAxis_brrt_XNMinus2Member",null,null,null,null,null,null,null,null,null,null,null,null,null,null,null,null,null,null,null,null,null,{"$f":"\"bma_\"&\"PaidCY\"&W$10&\"AY\"&$B37","v":"bma_PaidCYAY2017"},{"$f":"\"bma_\"&\"PaidCY\"&X$10&\"AY\"&$B37","v":"bma_PaidCYAY2017"},{"$f":"\"bma_\"&\"PaidCY\"&Y$10&\"AY\"&$B37","v":"bma_PaidCYAY2017"},"bma_CATPaidCYAY2017"]
["L23",2018,"XXX","XXX","XXX","XXX","XXX","XXX","XXX","XXX",{"$f":"Import!I7790","v":0},{"$f":"Import!I7800","v":0},{"$f":"Import!I7811","v":0},null,null,null,"UltCY2016AY2014",0,"CATIBNRCY2019AY2019",0,"brrt_PoliciesWrittenYearAxis_brrt_XNMinus1Member",null,null,null,null,null,null,null,null,null,null,null,null,null,null,null,null,null,null,null,null,null,null,{"$f":"\"bma_\"&\"PaidCY\"&X$10&\"AY\"&$B38","v":"bma_PaidCYAY2018"},{"$f":"\"bma_\"&\"PaidCY\"&Y$10&\"AY\"&$B38","v":"bma_PaidCYAY2018"},"bma_CATPaidCYAY2018"]
["L24",{"$f":"L28","v":2019},"XXX","XXX","XXX","XXX","XXX","XXX","XXX","XXX","XXX",{"$f":"Import!I7801","v":0},{"$f":"Import!I7812","v":0},null,null,null,"UltCY2016AY2015",0,null,null,"brrt_PoliciesWrittenYearAxis_brrt_XNMember",null,null,null,null,null,null,null,null,null,null,null,null,null,null,null,null,null,null,null,null,null,null,null,{"$f":"\"bma_\"&\"PaidCY\"&Y$10&\"AY\"&$B39","v":"bma_PaidCYAY2019"},"bma_CATPaidCYAY2019"]
["L25","Totals",null,null,null,null,null,null,null,null,null,null,{"$f":"SUM(M29:M39)","v":0},null,null,null,"UltCY2016AY2016",0,null,null,null,null,null,null,null,null,null,null,null,null,null,null,null,null,null,null,null,null,null,null,null,null,null,null,null,"bma_CATPaidCYAYTotals"]
[null,null,null,null,null,null,null,null,null,null,null,null,null,null,null,null,{"$f":"\"UltCY\"&J$10&\"AY\"&B11","v":"UltCY2017AYPrior"},{"$f":"J11","v":0}]
[null,null,"BULK & IBNR RESERVES ON NET LOSSES AND ALLOCATED LOSS ADJUSTMENT EXPENSES REPORTED AT YEAR END ($000)",null,null,null,null,null,null,null,null,null,35,null,null,null,{"$f":"\"UltCY\"&J$10&\"AY\"&B13","v":"UltCY2017AY2011"},{"$f":"J13","v":0}]
[null,null,null,null,null,null,null,null,null,null,null,null,"Losses",null,null,null,"UltCY2017AY2012",0]
[null,"Years in Which",25,26,27,28,29,30,31,32,33,34,"Bulk & IBNR",null,null,null,"UltCY2017AY2013",0]
[null,"Policies Were",null,null,null,null,null,null,null,null,null,null,"Reserves",null,null,null,"UltCY2017AY2014",0]
[null,"Written",{"$f":"D46-1","v":2010},2011,2012,2013,2014,2015,2016,2017,2018,{"$f":"L28","v":2019},{"$f":"L46","v":2019},null,null,null,"UltCY2017AY2015",0]
["L26","Prior",{"$f":"Import!I7813","v":0},{"$f":"Import!I7815","v":0},{"$f":"Import!I7818","v":0},{"$f":"Import!I7822","v":0},{"$f":"Import!I7827","v":0},{"$f":"Import!I7833","v":0},{"$f":"Import!I7840","v":0},{"$f":"Import!I7848","v":0},{"$f":"Import!I7857","v":0},{"$f":"Import!I7867","v":0},{"$f":"Import!I7878","v":0},null,null,null,"UltCY2017AY2016",0,null,null,"brrt_PoliciesWrittenYearAxis_brrt_PriorMember",null,null,null,null,null,null,null,null,null,null,null,null,null,null,{"$f":"\"bma_\"&\"IBNRCY\"&P$10&\"AY\"&$B47","v":"bma_IBNRCYAYPrior"},"bma_IBNRCYUltCY2011AY2010AYPrior","bma_IBNRCY0AYPrior","bma_IBNRCYCATUltCY2019AY2012AYPrior",{"$f":"\"bma_\"&\"IBNRCY\"&T$10&\"AY\"&$B47","v":"bma_IBNRCY0AYPrior"},{"$f":"\"bma_\"&\"IBNRCY\"&U$10&\"AY\"&$B47","v":"bma_IBNRCYAYPrior"},{"$f":"\"bma_\"&\"IBNRCY\"&V$10&\"AY\"&$B47","v":"bma_IBNRCYAYPrior"},{"$f":"\"bma_\"&\"IBNRCY\"&W$10&\"AY\"&$B47","v":"bma_IBNRCYAYPrior"},{"$f":"\"bma_\"&\"IBNRCY\"&X$10&\"AY\"&$B47","v":"bma_IBNRCYAYPrior"},{"$f":"\"bma_\"&\"IBNRCY\"&Y$10&\"AY\"&$B47","v":"bma_IBNRCYAYPrior"},{"$f":"\"bma_\"&\"CATIBNRCY\"&Y$10&\"AY\"&$B47","v":"bma_CATIBNRCYAYPrior"}]
["L27",{"$f":"B49-1","v":2010},{"$f":"Import!I7814","v":0},{"$f":"Import!I7816","v":0},{"$f":"Import!I7819","v":0},{"$f":"Import!I7823","v":0},{"$f":"Import!I7828","v":0},{"$f":"Import!I7834","v":0},{"$f":"Import!I7841","v":0},{"$f":"Import!I7849","v":0},{"$f":"Import!I7858","v":0},{"$f":"Import!I7868","v":0},{"$f":"Import!I7879","v":0},null,null,null,"UltCY2017AY2017",0,null,null,"brrt_PoliciesWrittenYearAxis_brrt_XNMinus9Member",null,null,null,null,null,null,null,null,null,null,null,null,null,null,"bma_IBNRCYAY2010","bma_IBNRCYUltCY2011AY2010AY2010","bma_IBNRCY0AY2010","bma_IBNRCYCATUltCY2019AY2012AY2010","bma_IBNRCY0AY2010","bma_IBNRCYAY2010","bma_IBNRCYAY2010","bma_IBNRCYAY2010","bma_IBNRCYAY2010","bma_IBNRCYAY2010","bma_CATIBNRCYAY2010"]
["L28",2011,"XXX",{"$f":"Import!I7817","v":0},{"$f":"Import!I7820","v":0},{"$f":"Import!I7824","v":0},{"$f":"Import!I7829","v":0},{"$f":"Import!I7835","v":0},{"$f":"Import!I7842","v":0},{"$f":"Import!I7850","v":0},{"$f":"Import!I7859","v":0},{"$f":"Import!I7869","v":0},{"$f":"Import!I7880","v":0},null,null,null,{"$f":"\"UltCY\"&K$10&\"AY\"&B11","v":"UltCY2018AYPrior"},{"$f":"K11","v":0},null,null,"brrt_PoliciesWrittenYearAxis_brrt_XNMinus8Member",null,null,null,null,null,null,null,null,null,null,null,null,null,null,null,{"$f":"\"bma_\"&\"IBNRCY\"&Q$10&\"AY\"&$B49","v":"bma_IBNRCYUltCY2011AY2010AY2011"},{"$f":"\"bma_\"&\"IBNRCY\"&R$10&\"AY\"&$B49","v":"bma_IBNRCY0AY2011"},{"$f":"\"bma_\"&\"IBNRCY\"&S$10&\"AY\"&$B49","v":"bma_IBNRCYCATUltCY2019AY2012AY2011"},"bma_IBNRCY0AY2011","bma_IBNRCYAY2011","bma_IBNRCYAY2011","bma_IBNRCYAY2011","bma_IBNRCYAY2011","bma_IBNRCYAY2011","bma_CATIBNRCYAY2011"]
["L29",2012,"XXX","XXX",{"$f":"Import!I7821","v":0},{"$f":"Import!I7825","v":0},{"$f":"Import!I7830","v":0},{"$f":"Import!I7836","v":0},{"$f":"Import!I7843","v":0},{"$f":"Import!I7851","v":0},{"$f":"Import!I7860","v":0},{"$f":"Import!I7870","v":0},{"$f":"Import!I7881","v":0},null,null,null,"UltCY2018AY2010",0,null,null,"brrt_PoliciesWrittenYearAxis_brrt_XNMinus7Member",null,null,null,null,null,null,null,null,null,null,null,null,null,null,null,null,{"$f":"\"bma_\"&\"IBNRCY\"&R$10&\"AY\"&$B50","v":"bma_IBNRCY0AY2012"},{"$f":"\"bma_\"&\"IBNRCY\"&S$10&\"AY\"&$B50","v":"bma_IBNRCYCATUltCY2019AY2012AY2012"},"bma_IBNRCY0AY2012","bma_IBNRCYAY2012","bma_IBNRCYAY2012","bma_IBNRCYAY2012","bma_IBNRCYAY2012","bma_IBNRCYAY2012","bma_CATIBNRCYAY2012"]
["L30",2013,"XXX","XXX","XXX",{"$f":"Import!I7826","v":0},{"$f":"Import!I7831","v":0},{"$f":"Import!I7837","v":0},{"$f":"Import!I7844","v":0},{"$f":"Import!I7852","v":0},{"$f":"Import!I7861","v":0},{"$f":"Import!I7871","v":0},{"$f":"Import!I7882","v":0},null,null,null,"UltCY2018AY2011",0,null,null,"brrt_PoliciesWrittenYearAxis_brrt_XNMinus6Member",null,null,null,null,null,null,null,null,null,null,null,null,null,null,null,null,null,{"$f":"\"bma_\"&\"IBNRCY\"&S$10&\"AY\"&$B51","v":"bma_IBNRCYCATUltCY2019AY2012AY2013"},"bma_IBNRCY0AY2013","bma_IBNRCYAY2013","bma_IBNRCYAY2013","bma_IBNRCYAY2013","bma_IBNRCYAY2013","bma_IBNRCYAY2013","bma_CATIBNRCYAY2013"]
["L31",2014,"XXX","XXX","XXX","XXX",{"$f":"Import!I7832","v":0},{"$f":"Import!I7838","v":0},{"$f":"Import!I7845","v":0},{"$f":"Import!I7853","v":0},{"$f":"Import!I7862","v":0},{"$f":"Import!I7872","v":0},{"$f":"Import!I7883","v":0},null,null,null,"UltCY2018AY2012",0,null,null,"brrt_PoliciesWrittenYearAxis_brrt_XNMinus5Member",null,null,null,null,null,null,null,null,null,null,null,null,null,null,null,null,null,null,"bma_IBNRCY0AY2014","bma_IBNRCYAY2014","bma_IBNRCYAY2014","bma_IBNRCYAY2014","bma_IBNRCYAY2014","bma_IBNRCYAY2014","bma_CATIBNRCYAY2014"]
["L32",2015,"XXX","XXX","XXX","XXX","XXX",{"$f":"Import!I7839","v":0},{"$f":"Import!I7846","v":0},{"$f":"Import!I7854","v":0},{"$f":"Import!I7863","v":0},{"$f":"Import!I7873","v":0},{"$f":"Import!I7884","v":0},null,null,null,"UltCY2018AY2013",0,null,null,"brrt_PoliciesWrittenYearAxis_brrt_XNMinus4Member",null,null,null,null,null,null,null,null,null,null,null,null,null,null,null,null,null,null,null,{"$f":"\"bma_\"&\"IBNRCY\"&U$10&\"AY\"&$B53","v":"bma_IBNRCYAY2015"},{"$f":"\"bma_\"&\"IBNRCY\"&V$10&\"AY\"&$B53","v":"bma_IBNRCYAY2015"},{"$f":"\"bma_\"&\"IBNRCY\"&W$10&\"AY\"&$B53","v":"bma_IBNRCYAY2015"},{"$f":"\"bma_\"&\"IBNRCY\"&X$10&\"AY\"&$B53","v":"bma_IBNRCYAY2015"},{"$f":"\"bma_\"&\"IBNRCY\"&Y$10&\"AY\"&$B53","v":"bma_IBNRCYAY2015"},"bma_CATIBNRCYAY2015"]
["L33",2016,"XXX","XXX","XXX","XXX","XXX","XXX",{"$f":"Import!I7847","v":0},{"$f":"Import!I7855","v":0},{"$f":"Import!I7864","v":0},{"$f":"Import!I7874","v":0},{"$f":"Import!I7885","v":0},null,null,null,"UltCY2018AY2014",0,null,null,"brrt_PoliciesWrittenYearAxis_brrt_XNMinus3Member",null,null,null,null,null,null,null,null,null,null,null,null,null,null,null,null,null,null,null,null,{"$f":"\"bma_\"&\"IBNRCY\"&V$10&\"AY\"&$B54","v":"bma_IBNRCYAY2016"},{"$f":"\"bma_\"&\"IBNRCY\"&W$10&\"AY\"&$B54","v":"bma_IBNRCYAY2016"},{"$f":"\"bma_\"&\"IBNRCY\"&X$10&\"AY\"&$B54","v":"bma_IBNRCYAY2016"},{"$f":"\"bma_\"&\"IBNRCY\"&Y$10&\"AY\"&$B54","v":"bma_IBNRCYAY2016"},"bma_CATIBNRCYAY2016"]
["L34",2017,"XXX","XXX","XXX","XXX","XXX","XXX","XXX",{"$f":"Import!I7856","v":0},{"$f":"Import!I7865","v":0},{"$f":"Import!I7875","v":0},{"$f":"Import!I7886","v":0},null,null,null,"UltCY2018AY2015",0,null,null,"brrt_PoliciesWrittenYearAxis_brrt_XNMinus2Member",null,null,null,null,null,null,null,null,null,null,null,null,null,null,null,null,null,null,null,null,null,{"$f":"\"bma_\"&\"IBNRCY\"&W$10&\"AY\"&$B55","v":"bma_IBNRCYAY2017"},{"$f":"\"bma_\"&\"IBNRCY\"&X$10&\"AY\"&$B55","v":"bma_IBNRCYAY2017"},{"$f":"\"bma_\"&\"IBNRCY\"&Y$10&\"AY\"&$B55","v":"bma_IBNRCYAY2017"},"bma_CATIBNRCYAY2017"]
["L35",2018,"XXX","XXX","XXX","XXX","XXX","XXX","XXX","XXX",{"$f":"Import!I7866","v":0},{"$f":"Import!I7876","v":0},{"$f":"Import!I7887","v":0},null,null,null,"UltCY2018AY2016",0,null,null,"brrt_PoliciesWrittenYearAxis_brrt_XNMinus1Member",null,null,null,null,null,null,null,null,null,null,null,null,null,null,null,null,null,null,null,null,null,null,{"$f":"\"bma_\"&\"IBNRCY\"&X$10&\"AY\"&$B56","v":"bma_IBNRCYAY2018"},{"$f":"\"bma_\"&\"IBNRCY\"&Y$10&\"AY\"&$B56","v":"bma_IBNRCYAY2018"},"bma_CATIBNRCYAY2018"]
["L36",{"$f":"L46","v":2019},"XXX","XXX","XXX","XXX","XXX","XXX","XXX","XXX","XXX",{"$f":"Import!I7877","v":0},{"$f":"Import!I7888","v":0},null,null,null,"UltCY2018AY2017",0,null,null,"brrt_PoliciesWrittenYearAxis_brrt_XNMember",null,null,null,null,null,null,null,null,null,null,null,null,null,null,null,null,null,null,null,null,null,null,null,{"$f":"\"bma_\"&\"IBNRCY\"&Y$10&\"AY\"&$B57","v":"bma_IBNRCYAY2019"},"bma_CATIBNRCYAY2019"]
["L38","Totals",null,null,null,null,null,null,null,null,null,null,{"$f":"SUM(M47:M57)","v":0},null,null,null,"UltCY2018AY2018",0,null,null,null,null,null,null,null,null,null,null,null,null,null,null,null,null,null,null,null,null,null,null,null,null,null,null,null,"bma_CATIBNRCYAYTotals"]
[null,null,null,null,null,null,null,null,null,null,null,null,null,null,null,null,{"$f":"\"UltCY\"&L$10&\"AY\"&B11","v":"UltCY2019AYPrior"},{"$f":"L11","v":0}]
[null,null,36,37,38,39,"Unallocated Loss",null,null,42,43,44,45,null,null,null,{"$f":"\"UltCY\"&L$10&\"AY\"&B13","v":"UltCY2019AY2011"},{"$f":"L13","v":0}]
[null,"Years in Which",null,null,null,null,"Adjustment Expenses",null,null,null,null,null,null,null,null,null,"UltCY2019AY2012",0]
[null,"Premiums",null,null,null,null,40,41,null,null,null,null,null,null,null,null,"UltCY2019AY2013",0]
[null,"Were",null,null,null,null,null,null,null,"Commission and","General and",null,null,null,null,null,"UltCY2019AY2014",0]
[null,"Earned and","Gross","Gross","Net","Net",null,null,null,"Brokerage","Administrative","Personnel","Other",null,null,null,"UltCY2019AY2015",0]
[null,"Losses Were","Premiums","Premiums","Premiums","Premiums",null,null,"Calendar","Expense","Expense","Costs","Expense",null,null,null,"UltCY2019AY2016",0]
[null,"Incurred","Written","Earned","Written","Earned","Paid","Incurred","Year","(Form 2A, Line 9)","(Form 2A, Line 10)","(Form 2A, Line 11)","(Form 2A, Line 12)",null,null,null,"UltCY2019AY2017",0]
["L39","Prior","XXX",{"$f":"C67","v":"XXX"},"XXX",{"$f":"E67","v":"XXX"},{"$f":"Import!I7933","v":0},{"$f":"Import!I7944","v":0},"Prior",{"$f":"Import!I7955","v":0},{"$f":"Import!I7966","v":0},{"$f":"Import!I7977","v":0},{"$f":"Import!I7988","v":0},null,null,null,"UltCY2019AY2018",0,null,null,"brrt_PremiumsEarnedLossesIncurredYearAxis_brrt_PriorMember","brrt_CalendarYearAxis_brrt_PriorMember",null,null,null,null,null,null,null,null,null,null,null,null,null,null,null,null,null,{"$f":"\"bma_\"&\"NetAOEPaid\"&$B67","v":"bma_NetAOEPaidPrior"},{"$f":"\"bma_\"&\"NetAOEIncurred\"&$B67","v":"bma_NetAOEIncurredPrior"},null,{"$f":"\"bma_\"&\"CommissionsAndBrokerage\"&$B67","v":"bma_CommissionsAndBrokeragePrior"},{"$f":"\"bma_\"&\"GeneralAndAdministrative\"&$B67","v":"bma_GeneralAndAdministrativePrior"},{"$f":"\"bma_\"&\"PersonnelCosts\"&$B67","v":"bma_PersonnelCostsPrior"},{"$f":"\"bma_\"&\"UnderwritingExpensesOther\"&$B67","v":"bma_UnderwritingExpensesOtherPrior"}]
["L40",{"$f":"B69-1","v":2010},{"$f":"Import!I7890","v":0},{"$f":"Import!I7901","v":0},{"$f":"Import!I7912","v":0},{"$f":"Import!I7923","v":0},{"$f":"Import!I7934","v":0},{"$f":"Import!I7945","v":0},{"$f":"B68","v":2010},{"$f":"Import!I7956","v":0},{"$f":"Import!I7967","v":0},{"$f":"Import!I7978","v":0},{"$f":"Import!I7989","v":0},null,null,null,"UltCY2019AY2019",0,null,null,"brrt_PremiumsEarnedLossesIncurredYearAxis_brrt_XNMinus9Member","brrt_CalendarYearAxis_brrt_XNMinus9Member",null,null,null,null,null,null,null,null,null,null,null,null,null,{"$f":"\"bma_\"&\"GrossWP\"&$B68","v":"bma_GrossWP2010"},{"$f":"\"bma_\"&\"GrossEP\"&$B68","v":"bma_GrossEP2010"},{"$f":"\"bma_\"&\"NetWP\"&$B68","v":"bma_NetWP2010"},{"$f":"\"bma_\"&\"NetEP\"&$B68","v":"bma_NetEP2010"},{"$f":"\"bma_\"&\"NetAOEPaid\"&$B68","v":"bma_NetAOEPaid2010"},{"$f":"\"bma_\"&\"NetAOEIncurred\"&$B68","v":"bma_NetAOEIncurred2010"},null,{"$f":"\"bma_\"&\"CommissionsAndBrokerage\"&$B68","v":"bma_CommissionsAndBrokerage2010"},{"$f":"\"bma_\"&\"GeneralAndAdministrative\"&$B68","v":"bma_GeneralAndAdministrative2010"},{"$f":"\"bma_\"&\"PersonnelCosts\"&$B68","v":"bma_PersonnelCosts2010"},{"$f":"\"bma_\"&\"UnderwritingExpensesOther\"&$B68","v":"bma_UnderwritingExpensesOther2010"}]
["L41",2011,{"$f":"Import!I7891","v":0},{"$f":"Import!I7902","v":0},{"$f":"Import!I7913","v":0},{"$f":"Import!I7924","v":0},{"$f":"Import!I7935","v":0},{"$f":"Import!I7946","v":0},2011,{"$f":"Import!I7957","v":0},{"$f":"Import!I7968","v":0},{"$f":"Import!I7979","v":0},{"$f":"Import!I7990","v":0},null,null,null,{"$f":"\"PaidCY\"&C$10&\"AY\"&B29","v":"PaidCY2010AYPrior"},{"$f":"C29","v":0},null,null,"brrt_PremiumsEarnedLossesIncurredYearAxis_brrt_XNMinus8Member","brrt_CalendarYearAxis_brrt_XNMinus8Member",null,null,null,null,null,null,null,null,null,null,null,null,null,{"$f":"\"bma_\"&\"GrossWP\"&$B69","v":"bma_GrossWP2011"},{"$f":"\"bma_\"&\"GrossEP\"&$B69","v":"bma_GrossEP2011"},{"$f":"\"bma_\"&\"NetWP\"&$B69","v":"bma_NetWP2011"},{"$f":"\"bma_\"&\"NetEP\"&$B69","v":"bma_NetEP2011"},"bma_NetAOEPaid2011","bma_NetAOEIncurred2011",null,"bma_CommissionsAndBrokerage2011","bma_GeneralAndAdministrative2011","bma_PersonnelCosts2011","bma_UnderwritingExpensesOther2011"]
["L42",2012,{"$f":"Import!I7892","v":0},{"$f":"Import!I7903","v":0},{"$f":"Import!I7914","v":0},{"$f":"Import!I7925","v":0},{"$f":"Import!I7936","v":0},{"$f":"Import!I7947","v":0},2012,{"$f":"Import!I7958","v":0},{"$f":"Import!I7969","v":0},{"$f":"Import!I7980","v":0},{"$f":"Import!I7991","v":0},null,null,null,{"$f":"\"PaidCY\"&C$10&\"AY\"&B30","v":"PaidCY2010AY2010"},{"$f":"C30","v":0},null,null,"brrt_PremiumsEarnedLossesIncurredYearAxis_brrt_XNMinus7Member","brrt_CalendarYearAxis_brrt_XNMinus7Member",null,null,null,null,null,null,null,null,null,null,null,null,null,"bma_GrossWP2012","bma_GrossEP2012","bma_NetWP2012","bma_NetEP2012","bma_NetAOEPaid2012","bma_NetAOEIncurred2012",null,"bma_CommissionsAndBrokerage2012","bma_GeneralAndAdministrative2012","bma_PersonnelCosts2012","bma_UnderwritingExpensesOther2012"]
["L43",2013,{"$f":"Import!I7893","v":0},{"$f":"Import!I7904","v":0},{"$f":"Import!I7915","v":0},{"$f":"Import!I7926","v":0},{"$f":"Import!I7937","v":0},{"$f":"Import!I7948","v":0},2013,{"$f":"Import!I7959","v":0},{"$f":"Import!I7970","v":0},{"$f":"Import!I7981","v":0},{"$f":"Import!I7992","v":0},null,null,null,{"$f":"\"PaidCY\"&D$10&\"AY\"&B29","v":"PaidCY2011AYPrior"},{"$f":"D29","v":0},null,null,"brrt_PremiumsEarnedLossesIncurredYearAxis_brrt_XNMinus6Member","brrt_CalendarYearAxis_brrt_XNMinus6Member",null,null,null,null,null,null,null,null,null,null,null,null,null,"bma_GrossWP2013","bma_GrossEP2013","bma_NetWP2013","bma_NetEP2013","bma_NetAOEPaid2013","bma_NetAOEIncurred2013",null,"bma_CommissionsAndBrokerage2013","bma_GeneralAndAdministrative2013","bma_PersonnelCosts2013","bma_UnderwritingExpensesOther2013"]
["L44",2014,{"$f":"Import!I7894","v":0},{"$f":"Import!I7905","v":0},{"$f":"Import!I7916","v":0},{"$f":"Import!I7927","v":0},{"$f":"Import!I7938","v":0},{"$f":"Import!I7949","v":0},2014,{"$f":"Import!I7960","v":0},{"$f":"Import!I7971","v":0},{"$f":"Import!I7982","v":0},{"$f":"Import!I7993","v":0},null,null,null,{"$f":"\"PaidCY\"&D$10&\"AY\"&B30","v":"PaidCY2011AY2010"},{"$f":"D30","v":0},null,null,"brrt_PremiumsEarnedLossesIncurredYearAxis_brrt_XNMinus5Member","brrt_CalendarYearAxis_brrt_XNMinus5Member",null,null,null,null,null,null,null,null,null,null,null,null,null,"bma_GrossWP2014","bma_GrossEP2014","bma_NetWP2014","bma_NetEP2014","bma_NetAOEPaid2014","bma_NetAOEIncurred2014",null,"bma_CommissionsAndBrokerage2014","bma_GeneralAndAdministrative2014","bma_PersonnelCosts2014","bma_UnderwritingExpensesOther2014"]
["L45",2015,{"$f":"Import!I7895","v":0},{"$f":"Import!I7906","v":0},{"$f":"Import!I7917","v":0},{"$f":"Import!I7928","v":0},{"$f":"Import!I7939","v":0},{"$f":"Import!I7950","v":0},2015,{"$f":"Import!I7961","v":0},{"$f":"Import!I7972","v":0},{"$f":"Import!I7983","v":0},{"$f":"Import!I7994","v":0},null,null,null,{"$f":"\"PaidCY\"&D$10&\"AY\"&B31","v":"PaidCY2011AY2011"},{"$f":"D31","v":0},null,null,"brrt_PremiumsEarnedLossesIncurredYearAxis_brrt_XNMinus4Member","brrt_CalendarYearAxis_brrt_XNMinus4Member",null,null,null,null,null,null,null,null,null,null,null,null,null,"bma_GrossWP2015","bma_GrossEP2015","bma_NetWP2015","bma_NetEP2015","bma_NetAOEPaid2015","bma_NetAOEIncurred2015",null,"bma_CommissionsAndBrokerage2015","bma_GeneralAndAdministrative2015","bma_PersonnelCosts2015","bma_UnderwritingExpensesOther2015"]
["L46",2016,{"$f":"Import!I7896","v":0},{"$f":"Import!I7907","v":0},{"$f":"Import!I7918","v":0},{"$f":"Import!I7929","v":0},{"$f":"Import!I7940","v":0},{"$f":"Import!I7951","v":0},2016,{"$f":"Import!I7962","v":0},{"$f":"Import!I7973","v":0},{"$f":"Import!I7984","v":0},{"$f":"Import!I7995","v":0},null,null,null,{"$f":"\"PaidCY\"&E$10&\"AY\"&B29","v":"PaidCY2012AYPrior"},{"$f":"E29","v":0},null,null,"brrt_PremiumsEarnedLossesIncurredYearAxis_brrt_XNMinus3Member","brrt_CalendarYearAxis_brrt_XNMinus3Member",null,null,null,null,null,null,null,null,null,null,null,null,null,"bma_GrossWP2016","bma_GrossEP2016","bma_NetWP2016","bma_NetEP2016","bma_NetAOEPaid2016","bma_NetAOEIncurred2016",null,"bma_CommissionsAndBrokerage2016","bma_GeneralAndAdministrative2016","bma_PersonnelCosts2016","bma_UnderwritingExpensesOther2016"]
["L47",2017,{"$f":"Import!I7897","v":0},{"$f":"Import!I7908","v":0},{"$f":"Import!I7919","v":0},{"$f":"Import!I7930","v":0},{"$f":"Import!I7941","v":0},{"$f":"Import!I7952","v":0},2017,{"$f":"Import!I7963","v":0},{"$f":"Import!I7974","v":0},{"$f":"Import!I7985","v":0},{"$f":"Import!I7996","v":0},null,null,null,{"$f":"\"PaidCY\"&E$10&\"AY\"&B30","v":"PaidCY2012AY2010"},{"$f":"E30","v":0},null,null,"brrt_PremiumsEarnedLossesIncurredYearAxis_brrt_XNMinus2Member","brrt_CalendarYearAxis_brrt_XNMinus2Member",null,null,null,null,null,null,null,null,null,null,null,null,null,"bma_GrossWP2017","bma_GrossEP2017","bma_NetWP2017","bma_NetEP2017","bma_NetAOEPaid2017","bma_NetAOEIncurred2017",null,"bma_CommissionsAndBrokerage2017","bma_GeneralAndAdministrative2017","bma_PersonnelCosts2017","bma_UnderwritingExpensesOther2017"]
["L48",2018,{"$f":"Import!I7898","v":0},{"$f":"Import!I7909","v":0},{"$f":"Import!I7920","v":0},{"$f":"Import!I7931","v":0},{"$f":"Import!I7942","v":0},{"$f":"Import!I7953","v":0},2018,{"$f":"Import!I7964","v":0},{"$f":"Import!I7975","v":0},{"$f":"Import!I7986","v":0},{"$f":"Import!I7997","v":0},null,null,null,{"$f":"\"PaidCY\"&E$10&\"AY\"&B31","v":"PaidCY2012AY2011"},{"$f":"E31","v":0},null,null,"brrt_PremiumsEarnedLossesIncurredYearAxis_brrt_XNMinus1Member","brrt_CalendarYearAxis_brrt_XNMinus1Member",null,null,null,null,null,null,null,null,null,null,null,null,null,"bma_GrossWP2018","bma_GrossEP2018","bma_NetWP2018","bma_NetEP2018","bma_NetAOEPaid2018","bma_NetAOEIncurred2018",null,"bma_CommissionsAndBrokerage2018","bma_GeneralAndAdministrative2018","bma_PersonnelCosts2018","bma_UnderwritingExpensesOther2018"]
["L49",{"$f":"B39","v":2019},{"$f":"Import!I7899","v":0},{"$f":"Import!I7910","v":0},{"$f":"Import!I7921","v":0},{"$f":"Import!I7932","v":0},{"$f":"Import!I7943","v":0},{"$f":"Import!I7954","v":0},2019,{"$f":"Import!I7965","v":0},{"$f":"Import!I7976","v":0},{"$f":"Import!I7987","v":0},{"$f":"Import!I7998","v":0},null,null,null,{"$f":"\"PaidCY\"&E$10&\"AY\"&B32","v":"PaidCY2012AY2012"},{"$f":"E32","v":0},null,null,"brrt_PremiumsEarnedLossesIncurredYearAxis_brrt_XNMember","brrt_CalendarYearAxis_brrt_XNMember",null,null,null,null,null,null,null,null,null,null,null,null,null,"bma_GrossWP2019","bma_GrossEP2019","bma_NetWP2019","bma_NetEP2019","bma_NetAOEPaid2019","bma_NetAOEIncurred2019",null,"bma_CommissionsAndBrokerage2019","bma_GeneralAndAdministrative2019","bma_PersonnelCosts2019","bma_UnderwritingExpensesOther2019"]
["L51","Totals","XXX",{"$f":"C78","v":"XXX"},"XXX",{"$f":"E78","v":"XXX"},{"$f":"SUM(G67:G77)","v":0},{"$f":"SUM(H67:H77)","v":0},"Totals",{"$f":"SUM(J67:J77)","v":0},{"$f":"SUM(K67:K77)","v":0},{"$f":"SUM(L67:L77)","v":0},{"$f":"SUM(M67:M77)","v":0},null,null,null,{"$f":"\"PaidCY\"&F$10&\"AY\"&B29","v":"PaidCY2013AYPrior"},{"$f":"F29","v":0},null,null,null,null,null,null,null,null,null,null,null,null,null,null,null,null,null,null,null,null,null,"bma_NetAOEPaidTotals","bma_NetAOEIncurredTotals",null,"bma_CommissionsAndBrokerageTotals","bma_GeneralAndAdministrativeTotals","bma_PersonnelCostsTotals","bma_UnderwritingExpensesOtherTotals"]
[null,null,null,null,null,null,null,null,null,null,null,null,null,null,null,null,{"$f":"\"PaidCY\"&F$10&\"AY\"&B30","v":"PaidCY2013AY2010"},{"$f":"F30","v":0}]
[null,"COMMENTS",null,null,null,null,null,null,null,null,null,null,null,null,null,null,{"$f":"\"PaidCY\"&F$10&\"AY\"&B31","v":"PaidCY2013AY2011"},{"$f":"F31","v":0}]
[null,{"$f":"Import!I7999","v":0},null,null,null,null,null,null,null,null,null,null,null,null,null,null,{"$f":"\"PaidCY\"&G$10&\"AY\"&B30","v":"PaidCY2014AY2010"},{"$f":"G30","v":0},null,null,"brrt_LossTrianglesComments",{"$f":"XBRLMap(B81,U81&\".\"&U4&\".\"&U7,$B$95,$B$96,CONFIGURATION!$B$10,\"BMA\",CONFIGURATION!$B$1,\"bscr\")","v":"Mapped"},null,null,null,null,null,null,null,null,null,null,null,null,null,"bma_ScheduleOfLossTrianglesComments"]
[null,null,null,null,null,null,null,null,null,null,null,null,null,null,null,null,{"$f":"\"PaidCY\"&G$10&\"AY\"&B31","v":"PaidCY2014AY2011"},{"$f":"G31","v":0}]
[null,null,null,null,null,null,null,null,null,null,null,null,null,null,null,null,{"$f":"\"PaidCY\"&G$10&\"AY\"&B32","v":"PaidCY2014AY2012"},{"$f":"G32","v":0}]
[null,null,null,null,null,null,null,null,null,null,null,null,null,null,null,null,{"$f":"\"PaidCY\"&G$10&\"AY\"&B34","v":"PaidCY2014AY2014"},{"$f":"G34","v":0}]
[null,null,"brrt_IncurredEstimatedUltimateNetLossesAndAllocatedLossAdjustmentExpenses","brrt_IncurredEstimatedUltimateNetLossesAndAllocatedLossAdjustmentExpenses","brrt_IncurredEstimatedUltimateNetLossesAndAllocatedLossAdjustmentExpenses","brrt_IncurredEstimatedUltimateNetLossesAndAllocatedLossAdjustmentExpenses","brrt_IncurredEstimatedUltimateNetLossesAndAllocatedLossAdjustmentExpenses","brrt_IncurredEstimatedUltimateNetLossesAndAllocatedLossAdjustmentExpenses","brrt_IncurredEstimatedUltimateNetLossesAndAllocatedLossAdjustmentExpenses","brrt_IncurredEstimatedUltimateNetLossesAndAllocatedLossAdjustmentExpenses","brrt_IncurredEstimatedUltimateNetLossesAndAllocatedLossAdjustmentExpenses","brrt_IncurredEstimatedUltimateNetLossesAndAllocatedLossAdjustmentExpenses","brrt_UltimateCatastropheLosses",null,null,null,{"$f":"\"PaidCY\"&H$10&\"AY\"&B29","v":"PaidCY2015AYPrior"},{"$f":"H29","v":0}]
[null,null,"brrt_CumulativePaidNetLossesAndAllocatedLossAdjustmentExpenses","brrt_CumulativePaidNetLossesAndAllocatedLossAdjustmentExpenses","brrt_CumulativePaidNetLossesAndAllocatedLossAdjustmentExpenses","brrt_CumulativePaidNetLossesAndAllocatedLossAdjustmentExpenses","brrt_CumulativePaidNetLossesAndAllocatedLossAdjustmentExpenses","brrt_CumulativePaidNetLossesAndAllocatedLossAdjustmentExpenses","brrt_CumulativePaidNetLossesAndAllocatedLossAdjustmentExpenses","brrt_CumulativePaidNetLossesAndAllocatedLossAdjustmentExpenses","brrt_CumulativePaidNetLossesAndAllocatedLossAdjustmentExpenses","brrt_CumulativePaidNetLossesAndAllocatedLossAdjustmentExpenses","brrt_PaidCatastropheLosses",null,null,null,"PaidCY2015AY2010",0]
[null,null,"brrt_BulkAndIBNRReservesOnNetLossesAndAllocatedLossAdjustmentExpenses","brrt_BulkAndIBNRReservesOnNetLossesAndAllocatedLossAdjustmentExpenses","brrt_BulkAndIBNRReservesOnNetLossesAndAllocatedLossAdjustmentExpenses","brrt_BulkAndIBNRReservesOnNetLossesAndAllocatedLossAdjustmentExpenses","brrt_BulkAndIBNRReservesOnNetLossesAndAllocatedLossAdjustmentExpenses","brrt_BulkAndIBNRReservesOnNetLossesAndAllocatedLossAdjustmentExpenses","brrt_BulkAndIBNRReservesOnNetLossesAndAllocatedLossAdjustmentExpenses","brrt_BulkAndIBNRReservesOnNetLossesAndAllocatedLossAdjustmentExpenses","brrt_BulkAndIBNRReservesOnNetLossesAndAllocatedLossAdjustmentExpenses","brrt_BulkAndIBNRReservesOnNetLossesAndAllocatedLossAdjustmentExpenses","brrt_LossesBulkAndBNRReserves",null,null,null,"PaidCY2015AY2011",0]
[null,null,"brrt_GrossPremiumsWritten","brrt_GrossPremiumsEarned","brrt_NetPremiumsWritten","brrt_NetPremiumsEarned","brrt_UnallocatedLossAdjustmentExpensesPaid","brrt_UnallocatedLossAdjustmentExpensesIncurred",null,"brrt_CommissionsAndBrokerage","brrt_GeneralAndAdministrative","brrt_PersonnelCosts","brrt_OtherUnderwritingExpenses",null,null,null,"PaidCY2015AY2012",0]
[null,null,"brrt_ReportingYearAxis_brrt_YNMinus9Member","brrt_ReportingYearAxis_brrt_YNMinus8Member","brrt_ReportingYearAxis_brrt_YNMinus7Member","brrt_ReportingYearAxis_brrt_YNMinus6Member","brrt_ReportingYearAxis_brrt_YNMinus5Member","brrt_ReportingYearAxis_brrt_YNMinus4Member","brrt_ReportingYearAxis_brrt_YNMinus3Member","brrt_ReportingYearAxis_brrt_YNMinus2Member","brrt_ReportingYearAxis_brrt_YNMinus1Member","brrt_ReportingYearAxis_brrt_YNMember","brrt_ReportingYearAxis_brrt_YNMember",null,null,null,"PaidCY2015AY2013",0]
[null,null,null,"Accident Year",null,null,null,null,null,null,null,null,null,null,null,null,"PaidCY2015AY2014",0]
[null,null,null,"Underwriting Year",null,null,null,null,null,null,null,null,null,null,null,null,"PaidCY2015AY2015",0]
[null,null,null,null,null,null,null,null,null,null,null,null,null,null,null,null,{"$f":"\"PaidCY\"&I$10&\"AY\"&B29","v":"PaidCY2016AYPrior"},{"$f":"I29","v":0}]
[null,null,null,null,null,null,null,null,null,null,null,null,null,null,null,null,"PaidCY2016AY2010",0]
[null,null,null,null,null,null,null,null,null,null,null,null,null,null,null,null,"PaidCY2016AY2011",0]
[null,{"$f":"IF(B3=\"\",\"\",TEXT(DATE(YEAR(B3+1)-1,MONTH(B3+1),DAY(B3+1)),\"mm/dd/yyyy\"))","v":"01/01/2019"},null,null,null,null,null,null,null,null,null,null,null,null,null,null,"PaidCY2016AY2012",0]
[null,{"$f":"IF(B3=\"\",\"\",TEXT(B3,\"mm/dd/yyyy\"))","v":"12/31/2019"},null,null,null,null,null,null,null,null,null,null,null,null,null,null,"PaidCY2016AY2013",0]
[null,null,null,null,null,null,null,null,null,null,null,null,null,null,null,null,"PaidCY2016AY2014",0]
[null,null,null,null,null,null,null,null,null,null,null,null,null,null,null,null,"PaidCY2016AY2015",0]
[null,null,null,null,null,null,null,null,null,null,null,null,null,null,null,null,"PaidCY2016AY2016",0]
[null,null,null,null,null,null,null,null,null,null,null,null,null,null,null,null,{"$f":"\"PaidCY\"&J$10&\"AY\"&B29","v":"PaidCY2017AYPrior"},{"$f":"J29","v":0}]
[null,null,{"$f":"XBRLMap(C11,C$85&\".\"&$U$4&\".\"&$U$6&\".\"&$U11&\".\"&C$89&\".\"&$U$7,$B$95,$B$96,CONFIGURATION!$B$10,\"BMA\",CONFIGURATION!$B$1,\"bscr\",1000)","v":"Mapped"},{"$f":"XBRLMap(D11,D$85&\".\"&$U$4&\".\"&$U$6&\".\"&$U11&\".\"&D$89&\".\"&$U$7,$B$95,$B$96,CONFIGURATION!$B$10,\"BMA\",CONFIGURATION!$B$1,\"bscr\",1000)","v":"Mapped"},{"$f":"XBRLMap(E11,E$85&\".\"&$U$4&\".\"&$U$6&\".\"&$U11&\".\"&E$89&\".\"&$U$7,$B$95,$B$96,CONFIGURATION!$B$10,\"BMA\",CONFIGURATION!$B$1,\"bscr\",1000)","v":"Mapped"},{"$f":"XBRLMap(F11,F$85&\".\"&$U$4&\".\"&$U$6&\".\"&$U11&\".\"&F$89&\".\"&$U$7,$B$95,$B$96,CONFIGURATION!$B$10,\"BMA\",CONFIGURATION!$B$1,\"bscr\",1000)","v":"Mapped"},{"$f":"XBRLMap(G11,G$85&\".\"&$U$4&\".\"&$U$6&\".\"&$U11&\".\"&G$89&\".\"&$U$7,$B$95,$B$96,CONFIGURATION!$B$10,\"BMA\",CONFIGURATION!$B$1,\"bscr\",1000)","v":"Mapped"},{"$f":"XBRLMap(H11,H$85&\".\"&$U$4&\".\"&$U$6&\".\"&$U11&\".\"&H$89&\".\"&$U$7,$B$95,$B$96,CONFIGURATION!$B$10,\"BMA\",CONFIGURATION!$B$1,\"bscr\",1000)","v":"Mapped"},{"$f":"XBRLMap(I11,I$85&\".\"&$U$4&\".\"&$U$6&\".\"&$U11&\".\"&I$89&\".\"&$U$7,$B$95,$B$96,CONFIGURATION!$B$10,\"BMA\",CONFIGURATION!$B$1,\"bscr\",1000)","v":"Mapped"},{"$f":"XBRLMap(J11,J$85&\".\"&$U$4&\".\"&$U$6&\".\"&$U11&\".\"&J$89&\".\"&$U$7,$B$95,$B$96,CONFIGURATION!$B$10,\"BMA\",CONFIGURATION!$B$1,\"bscr\",1000)","v":"Mapped"},{"$f":"XBRLMap(K11,K$85&\".\"&$U$4&\".\"&$U$6&\".\"&$U11&\".\"&K$89&\".\"&$U$7,$B$95,$B$96,CONFIGURATION!$B$10,\"BMA\",CONFIGURATION!$B$1,\"bscr\",1000)","v":"Mapped"},{"$f":"XBRLMap(L11,L$85&\".\"&$U$4&\".\"&$U$6&\".\"&$U11&\".\"&L$89&\".\"&$U$7,$B$95,$B$96,CONFIGURATION!$B$10,\"BMA\",CONFIGURATION!$B$1,\"bscr\",1000)","v":"Mapped"},{"$f":"XBRLMap(M11,M$85&\".\"&$U$4&\".\"&$U$6&\".\"&$U11&\".\"&M$89&\".\"&$U$7,$B$95,$B$96,CONFIGURATION!$B$10,\"BMA\",CONFIGURATION!$B$1,\"bscr\",1000)","v":"Mapped"},null,null,null,"PaidCY2017AY2010",0]
[null,null,{"$f":"XBRLMap(C12,C$85&\".\"&$U$4&\".\"&$U$6&\".\"&$U12&\".\"&C$89&\".\"&$U$7,$B$95,$B$96,CONFIGURATION!$B$10,\"BMA\",CONFIGURATION!$B$1,\"bscr\",1000)","v":"Mapped"},{"$f":"XBRLMap(D12,D$85&\".\"&$U$4&\".\"&$U$6&\".\"&$U12&\".\"&D$89&\".\"&$U$7,$B$95,$B$96,CONFIGURATION!$B$10,\"BMA\",CONFIGURATION!$B$1,\"bscr\",1000)","v":"Mapped"},{"$f":"XBRLMap(E12,E$85&\".\"&$U$4&\".\"&$U$6&\".\"&$U12&\".\"&E$89&\".\"&$U$7,$B$95,$B$96,CONFIGURATION!$B$10,\"BMA\",CONFIGURATION!$B$1,\"bscr\",1000)","v":"Mapped"},{"$f":"XBRLMap(F12,F$85&\".\"&$U$4&\".\"&$U$6&\".\"&$U12&\".\"&F$89&\".\"&$U$7,$B$95,$B$96,CONFIGURATION!$B$10,\"BMA\",CONFIGURATION!$B$1,\"bscr\",1000)","v":"Mapped"},{"$f":"XBRLMap(G12,G$85&\".\"&$U$4&\".\"&$U$6&\".\"&$U12&\".\"&G$89&\".\"&$U$7,$B$95,$B$96,CONFIGURATION!$B$10,\"BMA\",CONFIGURATION!$B$1,\"bscr\",1000)","v":"Mapped"},{"$f":"XBRLMap(H12,H$85&\".\"&$U$4&\".\"&$U$6&\".\"&$U12&\".\"&H$89&\".\"&$U$7,$B$95,$B$96,CONFIGURATION!$B$10,\"BMA\",CONFIGURATION!$B$1,\"bscr\",1000)","v":"Mapped"},{"$f":"XBRLMap(I12,I$85&\".\"&$U$4&\".\"&$U$6&\".\"&$U12&\".\"&I$89&\".\"&$U$7,$B$95,$B$96,CONFIGURATION!$B$10,\"BMA\",CONFIGURATION!$B$1,\"bscr\",1000)","v":"Mapped"},{"$f":"XBRLMap(J12,J$85&\".\"&$U$4&\".\"&$U$6&\".\"&$U12&\".\"&J$89&\".\"&$U$7,$B$95,$B$96,CONFIGURATION!$B$10,\"BMA\",CONFIGURATION!$B$1,\"bscr\",1000)","v":"Mapped"},{"$f":"XBRLMap(K12,K$85&\".\"&$U$4&\".\"&$U$6&\".\"&$U12&\".\"&K$89&\".\"&$U$7,$B$95,$B$96,CONFIGURATION!$B$10,\"BMA\",CONFIGURATION!$B$1,\"bscr\",1000)","v":"Mapped"},{"$f":"XBRLMap(L12,L$85&\".\"&$U$4&\".\"&$U$6&\".\"&$U12&\".\"&L$89&\".\"&$U$7,$B$95,$B$96,CONFIGURATION!$B$10,\"BMA\",CONFIGURATION!$B$1,\"bscr\",1000)","v":"Mapped"},{"$f":"XBRLMap(M12,M$85&\".\"&$U$4&\".\"&$U$6&\".\"&$U12&\".\"&M$89&\".\"&$U$7,$B$95,$B$96,CONFIGURATION!$B$10,\"BMA\",CONFIGURATION!$B$1,\"bscr\",1000)","v":"Mapped"},null,null,null,"PaidCY2017AY2011",0]
[null,null,null,{"$f":"XBRLMap(D13,D$85&\".\"&$U$4&\".\"&$U$6&\".\"&$U13&\".\"&D$89&\".\"&$U$7,$B$95,$B$96,CONFIGURATION!$B$10,\"BMA\",CONFIGURATION!$B$1,\"bscr\",1000)","v":"Mapped"},{"$f":"XBRLMap(E13,E$85&\".\"&$U$4&\".\"&$U$6&\".\"&$U13&\".\"&E$89&\".\"&$U$7,$B$95,$B$96,CONFIGURATION!$B$10,\"BMA\",CONFIGURATION!$B$1,\"bscr\",1000)","v":"Mapped"},{"$f":"XBRLMap(F13,F$85&\".\"&$U$4&\".\"&$U$6&\".\"&$U13&\".\"&F$89&\".\"&$U$7,$B$95,$B$96,CONFIGURATION!$B$10,\"BMA\",CONFIGURATION!$B$1,\"bscr\",1000)","v":"Mapped"},{"$f":"XBRLMap(G13,G$85&\".\"&$U$4&\".\"&$U$6&\".\"&$U13&\".\"&G$89&\".\"&$U$7,$B$95,$B$96,CONFIGURATION!$B$10,\"BMA\",CONFIGURATION!$B$1,\"bscr\",1000)","v":"Mapped"},{"$f":"XBRLMap(H13,H$85&\".\"&$U$4&\".\"&$U$6&\".\"&$U13&\".\"&H$89&\".\"&$U$7,$B$95,$B$96,CONFIGURATION!$B$10,\"BMA\",CONFIGURATION!$B$1,\"bscr\",1000)","v":"Mapped"},{"$f":"XBRLMap(I13,I$85&\".\"&$U$4&\".\"&$U$6&\".\"&$U13&\".\"&I$89&\".\"&$U$7,$B$95,$B$96,CONFIGURATION!$B$10,\"BMA\",CONFIGURATION!$B$1,\"bscr\",1000)","v":"Mapped"},{"$f":"XBRLMap(J13,J$85&\".\"&$U$4&\".\"&$U$6&\".\"&$U13&\".\"&J$89&\".\"&$U$7,$B$95,$B$96,CONFIGURATION!$B$10,\"BMA\",CONFIGURATION!$B$1,\"bscr\",1000)","v":"Mapped"},{"$f":"XBRLMap(K13,K$85&\".\"&$U$4&\".\"&$U$6&\".\"&$U13&\".\"&K$89&\".\"&$U$7,$B$95,$B$96,CONFIGURATION!$B$10,\"BMA\",CONFIGURATION!$B$1,\"bscr\",1000)","v":"Mapped"},{"$f":"XBRLMap(L13,L$85&\".\"&$U$4&\".\"&$U$6&\".\"&$U13&\".\"&L$89&\".\"&$U$7,$B$95,$B$96,CONFIGURATION!$B$10,\"BMA\",CONFIGURATION!$B$1,\"bscr\",1000)","v":"Mapped"},{"$f":"XBRLMap(M13,M$85&\".\"&$U$4&\".\"&$U$6&\".\"&$U13&\".\"&M$89&\".\"&$U$7,$B$95,$B$96,CONFIGURATION!$B$10,\"BMA\",CONFIGURATION!$B$1,\"bscr\",1000)","v":"Mapped"},null,null,null,"PaidCY2017AY2012",0]
[null,null,null,null,{"$f":"XBRLMap(E14,E$85&\".\"&$U$4&\".\"&$U$6&\".\"&$U14&\".\"&E$89&\".\"&$U$7,$B$95,$B$96,CONFIGURATION!$B$10,\"BMA\",CONFIGURATION!$B$1,\"bscr\",1000)","v":"Mapped"},{"$f":"XBRLMap(F14,F$85&\".\"&$U$4&\".\"&$U$6&\".\"&$U14&\".\"&F$89&\".\"&$U$7,$B$95,$B$96,CONFIGURATION!$B$10,\"BMA\",CONFIGURATION!$B$1,\"bscr\",1000)","v":"Mapped"},{"$f":"XBRLMap(G14,G$85&\".\"&$U$4&\".\"&$U$6&\".\"&$U14&\".\"&G$89&\".\"&$U$7,$B$95,$B$96,CONFIGURATION!$B$10,\"BMA\",CONFIGURATION!$B$1,\"bscr\",1000)","v":"Mapped"},{"$f":"XBRLMap(H14,H$85&\".\"&$U$4&\".\"&$U$6&\".\"&$U14&\".\"&H$89&\".\"&$U$7,$B$95,$B$96,CONFIGURATION!$B$10,\"BMA\",CONFIGURATION!$B$1,\"bscr\",1000)","v":"Mapped"},{"$f":"XBRLMap(I14,I$85&\".\"&$U$4&\".\"&$U$6&\".\"&$U14&\".\"&I$89&\".\"&$U$7,$B$95,$B$96,CONFIGURATION!$B$10,\"BMA\",CONFIGURATION!$B$1,\"bscr\",1000)","v":"Mapped"},{"$f":"XBRLMap(J14,J$85&\".\"&$U$4&\".\"&$U$6&\".\"&$U14&\".\"&J$89&\".\"&$U$7,$B$95,$B$96,CONFIGURATION!$B$10,\"BMA\",CONFIGURATION!$B$1,\"bscr\",1000)","v":"Mapped"},{"$f":"XBRLMap(K14,K$85&\".\"&$U$4&\".\"&$U$6&\".\"&$U14&\".\"&K$89&\".\"&$U$7,$B$95,$B$96,CONFIGURATION!$B$10,\"BMA\",CONFIGURATION!$B$1,\"bscr\",1000)","v":"Mapped"},{"$f":"XBRLMap(L14,L$85&\".\"&$U$4&\".\"&$U$6&\".\"&$U14&\".\"&L$89&\".\"&$U$7,$B$95,$B$96,CONFIGURATION!$B$10,\"BMA\",CONFIGURATION!$B$1,\"bscr\",1000)","v":"Mapped"},{"$f":"XBRLMap(M14,M$85&\".\"&$U$4&\".\"&$U$6&\".\"&$U14&\".\"&M$89&\".\"&$U$7,$B$95,$B$96,CONFIGURATION!$B$10,\"BMA\",CONFIGURATION!$B$1,\"bscr\",1000)","v":"Mapped"},null,null,null,"PaidCY2017AY2013",0]
[null,null,null,null,null,{"$f":"XBRLMap(F15,F$85&\".\"&$U$4&\".\"&$U$6&\".\"&$U15&\".\"&F$89&\".\"&$U$7,$B$95,$B$96,CONFIGURATION!$B$10,\"BMA\",CONFIGURATION!$B$1,\"bscr\",1000)","v":"Mapped"},{"$f":"XBRLMap(G15,G$85&\".\"&$U$4&\".\"&$U$6&\".\"&$U15&\".\"&G$89&\".\"&$U$7,$B$95,$B$96,CONFIGURATION!$B$10,\"BMA\",CONFIGURATION!$B$1,\"bscr\",1000)","v":"Mapped"},{"$f":"XBRLMap(H15,H$85&\".\"&$U$4&\".\"&$U$6&\".\"&$U15&\".\"&H$89&\".\"&$U$7,$B$95,$B$96,CONFIGURATION!$B$10,\"BMA\",CONFIGURATION!$B$1,\"bscr\",1000)","v":"Mapped"},{"$f":"XBRLMap(I15,I$85&\".\"&$U$4&\".\"&$U$6&\".\"&$U15&\".\"&I$89&\".\"&$U$7,$B$95,$B$96,CONFIGURATION!$B$10,\"BMA\",CONFIGURATION!$B$1,\"bscr\",1000)","v":"Mapped"},{"$f":"XBRLMap(J15,J$85&\".\"&$U$4&\".\"&$U$6&\".\"&$U15&\".\"&J$89&\".\"&$U$7,$B$95,$B$96,CONFIGURATION!$B$10,\"BMA\",CONFIGURATION!$B$1,\"bscr\",1000)","v":"Mapped"},{"$f":"XBRLMap(K15,K$85&\".\"&$U$4&\".\"&$U$6&\".\"&$U15&\".\"&K$89&\".\"&$U$7,$B$95,$B$96,CONFIGURATION!$B$10,\"BMA\",CONFIGURATION!$B$1,\"bscr\",1000)","v":"Mapped"},{"$f":"XBRLMap(L15,L$85&\".\"&$U$4&\".\"&$U$6&\".\"&$U15&\".\"&L$89&\".\"&$U$7,$B$95,$B$96,CONFIGURATION!$B$10,\"BMA\",CONFIGURATION!$B$1,\"bscr\",1000)","v":"Mapped"},{"$f":"XBRLMap(M15,M$85&\".\"&$U$4&\".\"&$U$6&\".\"&$U15&\".\"&M$89&\".\"&$U$7,$B$95,$B$96,CONFIGURATION!$B$10,\"BMA\",CONFIGURATION!$B$1,\"bscr\",1000)","v":"Mapped"},null,null,null,"PaidCY2017AY2014",0]
[null,null,null,null,null,null,{"$f":"XBRLMap(G16,G$85&\".\"&$U$4&\".\"&$U$6&\".\"&$U16&\".\"&G$89&\".\"&$U$7,$B$95,$B$96,CONFIGURATION!$B$10,\"BMA\",CONFIGURATION!$B$1,\"bscr\",1000)","v":"Mapped"},{"$f":"XBRLMap(H16,H$85&\".\"&$U$4&\".\"&$U$6&\".\"&$U16&\".\"&H$89&\".\"&$U$7,$B$95,$B$96,CONFIGURATION!$B$10,\"BMA\",CONFIGURATION!$B$1,\"bscr\",1000)","v":"Mapped"},{"$f":"XBRLMap(I16,I$85&\".\"&$U$4&\".\"&$U$6&\".\"&$U16&\".\"&I$89&\".\"&$U$7,$B$95,$B$96,CONFIGURATION!$B$10,\"BMA\",CONFIGURATION!$B$1,\"bscr\",1000)","v":"Mapped"},{"$f":"XBRLMap(J16,J$85&\".\"&$U$4&\".\"&$U$6&\".\"&$U16&\".\"&J$89&\".\"&$U$7,$B$95,$B$96,CONFIGURATION!$B$10,\"BMA\",CONFIGURATION!$B$1,\"bscr\",1000)","v":"Mapped"},{"$f":"XBRLMap(K16,K$85&\".\"&$U$4&\".\"&$U$6&\".\"&$U16&\".\"&K$89&\".\"&$U$7,$B$95,$B$96,CONFIGURATION!$B$10,\"BMA\",CONFIGURATION!$B$1,\"bscr\",1000)","v":"Mapped"},{"$f":"XBRLMap(L16,L$85&\".\"&$U$4&\".\"&$U$6&\".\"&$U16&\".\"&L$89&\".\"&$U$7,$B$95,$B$96,CONFIGURATION!$B$10,\"BMA\",CONFIGURATION!$B$1,\"bscr\",1000)","v":"Mapped"},{"$f":"XBRLMap(M16,M$85&\".\"&$U$4&\".\"&$U$6&\".\"&$U16&\".\"&M$89&\".\"&$U$7,$B$95,$B$96,CONFIGURATION!$B$10,\"BMA\",CONFIGURATION!$B$1,\"bscr\",1000)","v":"Mapped"},null,null,null,"PaidCY2017AY2015",0]
[null,null,null,null,null,null,null,{"$f":"XBRLMap(H17,H$85&\".\"&$U$4&\".\"&$U$6&\".\"&$U17&\".\"&H$89&\".\"&$U$7,$B$95,$B$96,CONFIGURATION!$B$10,\"BMA\",CONFIGURATION!$B$1,\"bscr\",1000)","v":"Mapped"},{"$f":"XBRLMap(I17,I$85&\".\"&$U$4&\".\"&$U$6&\".\"&$U17&\".\"&I$89&\".\"&$U$7,$B$95,$B$96,CONFIGURATION!$B$10,\"BMA\",CONFIGURATION!$B$1,\"bscr\",1000)","v":"Mapped"},{"$f":"XBRLMap(J17,J$85&\".\"&$U$4&\".\"&$U$6&\".\"&$U17&\".\"&J$89&\".\"&$U$7,$B$95,$B$96,CONFIGURATION!$B$10,\"BMA\",CONFIGURATION!$B$1,\"bscr\",1000)","v":"Mapped"},{"$f":"XBRLMap(K17,K$85&\".\"&$U$4&\".\"&$U$6&\".\"&$U17&\".\"&K$89&\".\"&$U$7,$B$95,$B$96,CONFIGURATION!$B$10,\"BMA\",CONFIGURATION!$B$1,\"bscr\",1000)","v":"Mapped"},{"$f":"XBRLMap(L17,L$85&\".\"&$U$4&\".\"&$U$6&\".\"&$U17&\".\"&L$89&\".\"&$U$7,$B$95,$B$96,CONFIGURATION!$B$10,\"BMA\",CONFIGURATION!$B$1,\"bscr\",1000)","v":"Mapped"},{"$f":"XBRLMap(M17,M$85&\".\"&$U$4&\".\"&$U$6&\".\"&$U17&\".\"&M$89&\".\"&$U$7,$B$95,$B$96,CONFIGURATION!$B$10,\"BMA\",CONFIGURATION!$B$1,\"bscr\",1000)","v":"Mapped"},null,null,null,"PaidCY2017AY2016",0]
[null,null,null,null,null,null,null,null,{"$f":"XBRLMap(I18,I$85&\".\"&$U$4&\".\"&$U$6&\".\"&$U18&\".\"&I$89&\".\"&$U$7,$B$95,$B$96,CONFIGURATION!$B$10,\"BMA\",CONFIGURATION!$B$1,\"bscr\",1000)","v":"Mapped"},{"$f":"XBRLMap(J18,J$85&\".\"&$U$4&\".\"&$U$6&\".\"&$U18&\".\"&J$89&\".\"&$U$7,$B$95,$B$96,CONFIGURATION!$B$10,\"BMA\",CONFIGURATION!$B$1,\"bscr\",1000)","v":"Mapped"},{"$f":"XBRLMap(K18,K$85&\".\"&$U$4&\".\"&$U$6&\".\"&$U18&\".\"&K$89&\".\"&$U$7,$B$95,$B$96,CONFIGURATION!$B$10,\"BMA\",CONFIGURATION!$B$1,\"bscr\",1000)","v":"Mapped"},{"$f":"XBRLMap(L18,L$85&\".\"&$U$4&\".\"&$U$6&\".\"&$U18&\".\"&L$89&\".\"&$U$7,$B$95,$B$96,CONFIGURATION!$B$10,\"BMA\",CONFIGURATION!$B$1,\"bscr\",1000)","v":"Mapped"},{"$f":"XBRLMap(M18,M$85&\".\"&$U$4&\".\"&$U$6&\".\"&$U18&\".\"&M$89&\".\"&$U$7,$B$95,$B$96,CONFIGURATION!$B$10,\"BMA\",CONFIGURATION!$B$1,\"bscr\",1000)","v":"Mapped"},null,null,null,"PaidCY2017AY2017",0]
[null,null,null,null,null,null,null,null,null,{"$f":"XBRLMap(J19,J$85&\".\"&$U$4&\".\"&$U$6&\".\"&$U19&\".\"&J$89&\".\"&$U$7,$B$95,$B$96,CONFIGURATION!$B$10,\"BMA\",CONFIGURATION!$B$1,\"bscr\",1000)","v":"Mapped"},{"$f":"XBRLMap(K19,K$85&\".\"&$U$4&\".\"&$U$6&\".\"&$U19&\".\"&K$89&\".\"&$U$7,$B$95,$B$96,CONFIGURATION!$B$10,\"BMA\",CONFIGURATION!$B$1,\"bscr\",1000)","v":"Mapped"},{"$f":"XBRLMap(L19,L$85&\".\"&$U$4&\".\"&$U$6&\".\"&$U19&\".\"&L$89&\".\"&$U$7,$B$95,$B$96,CONFIGURATION!$B$10,\"BMA\",CONFIGURATION!$B$1,\"bscr\",1000)","v":"Mapped"},{"$f":"XBRLMap(M19,M$85&\".\"&$U$4&\".\"&$U$6&\".\"&$U19&\".\"&M$89&\".\"&$U$7,$B$95,$B$96,CONFIGURATION!$B$10,\"BMA\",CONFIGURATION!$B$1,\"bscr\",1000)","v":"Mapped"},null,null,null,{"$f":"\"PaidCY\"&K$10&\"AY\"&B29","v":"PaidCY2018AYPrior"},{"$f":"K29","v":0}]
[null,null,null,null,null,null,null,null,null,null,{"$f":"XBRLMap(K20,K$85&\".\"&$U$4&\".\"&$U$6&\".\"&$U20&\".\"&K$89&\".\"&$U$7,$B$95,$B$96,CONFIGURATION!$B$10,\"BMA\",CONFIGURATION!$B$1,\"bscr\",1000)","v":"Mapped"},{"$f":"XBRLMap(L20,L$85&\".\"&$U$4&\".\"&$U$6&\".\"&$U20&\".\"&L$89&\".\"&$U$7,$B$95,$B$96,CONFIGURATION!$B$10,\"BMA\",CONFIGURATION!$B$1,\"bscr\",1000)","v":"Mapped"},{"$f":"XBRLMap(M20,M$85&\".\"&$U$4&\".\"&$U$6&\".\"&$U20&\".\"&M$89&\".\"&$U$7,$B$95,$B$96,CONFIGURATION!$B$10,\"BMA\",CONFIGURATION!$B$1,\"bscr\",1000)","v":"Mapped"},null,null,null,"PaidCY2018AY2010",0]
[null,null,null,null,null,null,null,null,null,null,null,{"$f":"XBRLMap(L21,L$85&\".\"&$U$4&\".\"&$U$6&\".\"&$U21&\".\"&L$89&\".\"&$U$7,$B$95,$B$96,CONFIGURATION!$B$10,\"BMA\",CONFIGURATION!$B$1,\"bscr\",1000)","v":"Mapped"},{"$f":"XBRLMap(M21,M$85&\".\"&$U$4&\".\"&$U$6&\".\"&$U21&\".\"&M$89&\".\"&$U$7,$B$95,$B$96,CONFIGURATION!$B$10,\"BMA\",CONFIGURATION!$B$1,\"bscr\",1000)","v":"Mapped"},null,null,null,"PaidCY2018AY2011",0]
[null,null,null,null,null,null,null,null,null,null,null,null,null,null,null,null,"PaidCY2018AY2012",0]
[null,null,null,null,null,null,null,null,null,null,null,null,null,null,null,null,"PaidCY2018AY2013",0]
[null,null,null,null,null,null,null,null,null,null,null,null,null,null,null,null,"PaidCY2018AY2014",0]
[null,null,null,null,null,null,null,null,null,null,null,null,null,null,null,null,"PaidCY2018AY2015",0]
[null,null,null,null,null,null,null,null,null,null,null,null,null,null,null,null,"PaidCY2018AY2016",0]
[null,null,null,null,null,null,null,null,null,null,null,null,null,null,null,null,"PaidCY2018AY2017",0]
[null,null,null,null,null,null,null,null,null,null,null,null,null,null,null,null,"PaidCY2018AY2018",0]
[null,null,null,null,null,null,null,null,null,null,null,null,null,null,null,null,{"$f":"\"PaidCY\"&L$10&\"AY\"&B29","v":"PaidCY2019AYPrior"},{"$f":"L29","v":0}]
[null,null,{"$f":"XBRLMap(C29,C$86&\".\"&$U$4&\".\"&$U29&\".\"&C$89&\".\"&$U$7,$B$95,$B$96,CONFIGURATION!$B$10,\"BMA\",CONFIGURATION!$B$1,\"bscr\",1000)","v":"Mapped"},{"$f":"XBRLMap(D29,D$86&\".\"&$U$4&\".\"&$U29&\".\"&D$89&\".\"&$U$7,$B$95,$B$96,CONFIGURATION!$B$10,\"BMA\",CONFIGURATION!$B$1,\"bscr\",1000)","v":"Mapped"},{"$f":"XBRLMap(E29,E$86&\".\"&$U$4&\".\"&$U29&\".\"&E$89&\".\"&$U$7,$B$95,$B$96,CONFIGURATION!$B$10,\"BMA\",CONFIGURATION!$B$1,\"bscr\",1000)","v":"Mapped"},{"$f":"XBRLMap(F29,F$86&\".\"&$U$4&\".\"&$U29&\".\"&F$89&\".\"&$U$7,$B$95,$B$96,CONFIGURATION!$B$10,\"BMA\",CONFIGURATION!$B$1,\"bscr\",1000)","v":"Mapped"},{"$f":"XBRLMap(G29,G$86&\".\"&$U$4&\".\"&$U29&\".\"&G$89&\".\"&$U$7,$B$95,$B$96,CONFIGURATION!$B$10,\"BMA\",CONFIGURATION!$B$1,\"bscr\",1000)","v":"Mapped"},{"$f":"XBRLMap(H29,H$86&\".\"&$U$4&\".\"&$U29&\".\"&H$89&\".\"&$U$7,$B$95,$B$96,CONFIGURATION!$B$10,\"BMA\",CONFIGURATION!$B$1,\"bscr\",1000)","v":"Mapped"},{"$f":"XBRLMap(I29,I$86&\".\"&$U$4&\".\"&$U29&\".\"&I$89&\".\"&$U$7,$B$95,$B$96,CONFIGURATION!$B$10,\"BMA\",CONFIGURATION!$B$1,\"bscr\",1000)","v":"Mapped"},{"$f":"XBRLMap(J29,J$86&\".\"&$U$4&\".\"&$U29&\".\"&J$89&\".\"&$U$7,$B$95,$B$96,CONFIGURATION!$B$10,\"BMA\",CONFIGURATION!$B$1,\"bscr\",1000)","v":"Mapped"},{"$f":"XBRLMap(K29,K$86&\".\"&$U$4&\".\"&$U29&\".\"&K$89&\".\"&$U$7,$B$95,$B$96,CONFIGURATION!$B$10,\"BMA\",CONFIGURATION!$B$1,\"bscr\",1000)","v":"Mapped"},{"$f":"XBRLMap(L29,L$86&\".\"&$U$4&\".\"&$U29&\".\"&L$89&\".\"&$U$7,$B$95,$B$96,CONFIGURATION!$B$10,\"BMA\",CONFIGURATION!$B$1,\"bscr\",1000)","v":"Mapped"},{"$f":"XBRLMap(M29,M$86&\".\"&$U$4&\".\"&$U29&\".\"&M$89&\".\"&$U$7,$B$95,$B$96,CONFIGURATION!$B$10,\"BMA\",CONFIGURATION!$B$1,\"bscr\",1000)","v":"Mapped"},null,null,null,"PaidCY2019AY2010",0]
[null,null,{"$f":"XBRLMap(C30,C$86&\".\"&$U$4&\".\"&$U30&\".\"&C$89&\".\"&$U$7,$B$95,$B$96,CONFIGURATION!$B$10,\"BMA\",CONFIGURATION!$B$1,\"bscr\",1000)","v":"Mapped"},{"$f":"XBRLMap(D30,D$86&\".\"&$U$4&\".\"&$U30&\".\"&D$89&\".\"&$U$7,$B$95,$B$96,CONFIGURATION!$B$10,\"BMA\",CONFIGURATION!$B$1,\"bscr\",1000)","v":"Mapped"},{"$f":"XBRLMap(E30,E$86&\".\"&$U$4&\".\"&$U30&\".\"&E$89&\".\"&$U$7,$B$95,$B$96,CONFIGURATION!$B$10,\"BMA\",CONFIGURATION!$B$1,\"bscr\",1000)","v":"Mapped"},{"$f":"XBRLMap(F30,F$86&\".\"&$U$4&\".\"&$U30&\".\"&F$89&\".\"&$U$7,$B$95,$B$96,CONFIGURATION!$B$10,\"BMA\",CONFIGURATION!$B$1,\"bscr\",1000)","v":"Mapped"},{"$f":"XBRLMap(G30,G$86&\".\"&$U$4&\".\"&$U30&\".\"&G$89&\".\"&$U$7,$B$95,$B$96,CONFIGURATION!$B$10,\"BMA\",CONFIGURATION!$B$1,\"bscr\",1000)","v":"Mapped"},{"$f":"XBRLMap(H30,H$86&\".\"&$U$4&\".\"&$U30&\".\"&H$89&\".\"&$U$7,$B$95,$B$96,CONFIGURATION!$B$10,\"BMA\",CONFIGURATION!$B$1,\"bscr\",1000)","v":"Mapped"},{"$f":"XBRLMap(I30,I$86&\".\"&$U$4&\".\"&$U30&\".\"&I$89&\".\"&$U$7,$B$95,$B$96,CONFIGURATION!$B$10,\"BMA\",CONFIGURATION!$B$1,\"bscr\",1000)","v":"Mapped"},{"$f":"XBRLMap(J30,J$86&\".\"&$U$4&\".\"&$U30&\".\"&J$89&\".\"&$U$7,$B$95,$B$96,CONFIGURATION!$B$10,\"BMA\",CONFIGURATION!$B$1,\"bscr\",1000)","v":"Mapped"},{"$f":"XBRLMap(K30,K$86&\".\"&$U$4&\".\"&$U30&\".\"&K$89&\".\"&$U$7,$B$95,$B$96,CONFIGURATION!$B$10,\"BMA\",CONFIGURATION!$B$1,\"bscr\",1000)","v":"Mapped"},{"$f":"XBRLMap(L30,L$86&\".\"&$U$4&\".\"&$U30&\".\"&L$89&\".\"&$U$7,$B$95,$B$96,CONFIGURATION!$B$10,\"BMA\",CONFIGURATION!$B$1,\"bscr\",1000)","v":"Mapped"},{"$f":"XBRLMap(M30,M$86&\".\"&$U$4&\".\"&$U30&\".\"&M$89&\".\"&$U$7,$B$95,$B$96,CONFIGURATION!$B$10,\"BMA\",CONFIGURATION!$B$1,\"bscr\",1000)","v":"Mapped"},null,null,null,"PaidCY2019AY2011",0]
[null,null,null,{"$f":"XBRLMap(D31,D$86&\".\"&$U$4&\".\"&$U31&\".\"&D$89&\".\"&$U$7,$B$95,$B$96,CONFIGURATION!$B$10,\"BMA\",CONFIGURATION!$B$1,\"bscr\",1000)","v":"Mapped"},{"$f":"XBRLMap(E31,E$86&\".\"&$U$4&\".\"&$U31&\".\"&E$89&\".\"&$U$7,$B$95,$B$96,CONFIGURATION!$B$10,\"BMA\",CONFIGURATION!$B$1,\"bscr\",1000)","v":"Mapped"},{"$f":"XBRLMap(F31,F$86&\".\"&$U$4&\".\"&$U31&\".\"&F$89&\".\"&$U$7,$B$95,$B$96,CONFIGURATION!$B$10,\"BMA\",CONFIGURATION!$B$1,\"bscr\",1000)","v":"Mapped"},{"$f":"XBRLMap(G31,G$86&\".\"&$U$4&\".\"&$U31&\".\"&G$89&\".\"&$U$7,$B$95,$B$96,CONFIGURATION!$B$10,\"BMA\",CONFIGURATION!$B$1,\"bscr\",1000)","v":"Mapped"},{"$f":"XBRLMap(H31,H$86&\".\"&$U$4&\".\"&$U31&\".\"&H$89&\".\"&$U$7,$B$95,$B$96,CONFIGURATION!$B$10,\"BMA\",CONFIGURATION!$B$1,\"bscr\",1000)","v":"Mapped"},{"$f":"XBRLMap(I31,I$86&\".\"&$U$4&\".\"&$U31&\".\"&I$89&\".\"&$U$7,$B$95,$B$96,CONFIGURATION!$B$10,\"BMA\",CONFIGURATION!$B$1,\"bscr\",1000)","v":"Mapped"},{"$f":"XBRLMap(J31,J$86&\".\"&$U$4&\".\"&$U31&\".\"&J$89&\".\"&$U$7,$B$95,$B$96,CONFIGURATION!$B$10,\"BMA\",CONFIGURATION!$B$1,\"bscr\",1000)","v":"Mapped"},{"$f":"XBRLMap(K31,K$86&\".\"&$U$4&\".\"&$U31&\".\"&K$89&\".\"&$U$7,$B$95,$B$96,CONFIGURATION!$B$10,\"BMA\",CONFIGURATION!$B$1,\"bscr\",1000)","v":"Mapped"},{"$f":"XBRLMap(L31,L$86&\".\"&$U$4&\".\"&$U31&\".\"&L$89&\".\"&$U$7,$B$95,$B$96,CONFIGURATION!$B$10,\"BMA\",CONFIGURATION!$B$1,\"bscr\",1000)","v":"Mapped"},{"$f":"XBRLMap(M31,M$86&\".\"&$U$4&\".\"&$U31&\".\"&M$89&\".\"&$U$7,$B$95,$B$96,CONFIGURATION!$B$10,\"BMA\",CONFIGURATION!$B$1,\"bscr\",1000)","v":"Mapped"},null,null,null,"PaidCY2019AY2012",0]
[null,null,null,null,{"$f":"XBRLMap(E32,E$86&\".\"&$U$4&\".\"&$U32&\".\"&E$89&\".\"&$U$7,$B$95,$B$96,CONFIGURATION!$B$10,\"BMA\",CONFIGURATION!$B$1,\"bscr\",1000)","v":"Mapped"},{"$f":"XBRLMap(F32,F$86&\".\"&$U$4&\".\"&$U32&\".\"&F$89&\".\"&$U$7,$B$95,$B$96,CONFIGURATION!$B$10,\"BMA\",CONFIGURATION!$B$1,\"bscr\",1000)","v":"Mapped"},{"$f":"XBRLMap(G32,G$86&\".\"&$U$4&\".\"&$U32&\".\"&G$89&\".\"&$U$7,$B$95,$B$96,CONFIGURATION!$B$10,\"BMA\",CONFIGURATION!$B$1,\"bscr\",1000)","v":"Mapped"},{"$f":"XBRLMap(H32,H$86&\".\"&$U$4&\".\"&$U32&\".\"&H$89&\".\"&$U$7,$B$95,$B$96,CONFIGURATION!$B$10,\"BMA\",CONFIGURATION!$B$1,\"bscr\",1000)","v":"Mapped"},{"$f":"XBRLMap(I32,I$86&\".\"&$U$4&\".\"&$U32&\".\"&I$89&\".\"&$U$7,$B$95,$B$96,CONFIGURATION!$B$10,\"BMA\",CONFIGURATION!$B$1,\"bscr\",1000)","v":"Mapped"},{"$f":"XBRLMap(J32,J$86&\".\"&$U$4&\".\"&$U32&\".\"&J$89&\".\"&$U$7,$B$95,$B$96,CONFIGURATION!$B$10,\"BMA\",CONFIGURATION!$B$1,\"bscr\",1000)","v":"Mapped"},{"$f":"XBRLMap(K32,K$86&\".\"&$U$4&\".\"&$U32&\".\"&K$89&\".\"&$U$7,$B$95,$B$96,CONFIGURATION!$B$10,\"BMA\",CONFIGURATION!$B$1,\"bscr\",1000)","v":"Mapped"},{"$f":"XBRLMap(L32,L$86&\".\"&$U$4&\".\"&$U32&\".\"&L$89&\".\"&$U$7,$B$95,$B$96,CONFIGURATION!$B$10,\"BMA\",CONFIGURATION!$B$1,\"bscr\",1000)","v":"Mapped"},{"$f":"XBRLMap(M32,M$86&\".\"&$U$4&\".\"&$U32&\".\"&M$89&\".\"&$U$7,$B$95,$B$96,CONFIGURATION!$B$10,\"BMA\",CONFIGURATION!$B$1,\"bscr\",1000)","v":"Mapped"},null,null,null,"PaidCY2019AY2013",0]
[null,null,null,null,null,{"$f":"XBRLMap(F33,F$86&\".\"&$U$4&\".\"&$U33&\".\"&F$89&\".\"&$U$7,$B$95,$B$96,CONFIGURATION!$B$10,\"BMA\",CONFIGURATION!$B$1,\"bscr\",1000)","v":"Mapped"},{"$f":"XBRLMap(G33,G$86&\".\"&$U$4&\".\"&$U33&\".\"&G$89&\".\"&$U$7,$B$95,$B$96,CONFIGURATION!$B$10,\"BMA\",CONFIGURATION!$B$1,\"bscr\",1000)","v":"Mapped"},{"$f":"XBRLMap(H33,H$86&\".\"&$U$4&\".\"&$U33&\".\"&H$89&\".\"&$U$7,$B$95,$B$96,CONFIGURATION!$B$10,\"BMA\",CONFIGURATION!$B$1,\"bscr\",1000)","v":"Mapped"},{"$f":"XBRLMap(I33,I$86&\".\"&$U$4&\".\"&$U33&\".\"&I$89&\".\"&$U$7,$B$95,$B$96,CONFIGURATION!$B$10,\"BMA\",CONFIGURATION!$B$1,\"bscr\",1000)","v":"Mapped"},{"$f":"XBRLMap(J33,J$86&\".\"&$U$4&\".\"&$U33&\".\"&J$89&\".\"&$U$7,$B$95,$B$96,CONFIGURATION!$B$10,\"BMA\",CONFIGURATION!$B$1,\"bscr\",1000)","v":"Mapped"},{"$f":"XBRLMap(K33,K$86&\".\"&$U$4&\".\"&$U33&\".\"&K$89&\".\"&$U$7,$B$95,$B$96,CONFIGURATION!$B$10,\"BMA\",CONFIGURATION!$B$1,\"bscr\",1000)","v":"Mapped"},{"$f":"XBRLMap(L33,L$86&\".\"&$U$4&\".\"&$U33&\".\"&L$89&\".\"&$U$7,$B$95,$B$96,CONFIGURATION!$B$10,\"BMA\",CONFIGURATION!$B$1,\"bscr\",1000)","v":"Mapped"},{"$f":"XBRLMap(M33,M$86&\".\"&$U$4&\".\"&$U33&\".\"&M$89&\".\"&$U$7,$B$95,$B$96,CONFIGURATION!$B$10,\"BMA\",CONFIGURATION!$B$1,\"bscr\",1000)","v":"Mapped"},null,null,null,"PaidCY2019AY2014",0]
[null,null,null,null,null,null,{"$f":"XBRLMap(G34,G$86&\".\"&$U$4&\".\"&$U34&\".\"&G$89&\".\"&$U$7,$B$95,$B$96,CONFIGURATION!$B$10,\"BMA\",CONFIGURATION!$B$1,\"bscr\",1000)","v":"Mapped"},{"$f":"XBRLMap(H34,H$86&\".\"&$U$4&\".\"&$U34&\".\"&H$89&\".\"&$U$7,$B$95,$B$96,CONFIGURATION!$B$10,\"BMA\",CONFIGURATION!$B$1,\"bscr\",1000)","v":"Mapped"},{"$f":"XBRLMap(I34,I$86&\".\"&$U$4&\".\"&$U34&\".\"&I$89&\".\"&$U$7,$B$95,$B$96,CONFIGURATION!$B$10,\"BMA\",CONFIGURATION!$B$1,\"bscr\",1000)","v":"Mapped"},{"$f":"XBRLMap(J34,J$86&\".\"&$U$4&\".\"&$U34&\".\"&J$89&\".\"&$U$7,$B$95,$B$96,CONFIGURATION!$B$10,\"BMA\",CONFIGURATION!$B$1,\"bscr\",1000)","v":"Mapped"},{"$f":"XBRLMap(K34,K$86&\".\"&$U$4&\".\"&$U34&\".\"&K$89&\".\"&$U$7,$B$95,$B$96,CONFIGURATION!$B$10,\"BMA\",CONFIGURATION!$B$1,\"bscr\",1000)","v":"Mapped"},{"$f":"XBRLMap(L34,L$86&\".\"&$U$4&\".\"&$U34&\".\"&L$89&\".\"&$U$7,$B$95,$B$96,CONFIGURATION!$B$10,\"BMA\",CONFIGURATION!$B$1,\"bscr\",1000)","v":"Mapped"},{"$f":"XBRLMap(M34,M$86&\".\"&$U$4&\".\"&$U34&\".\"&M$89&\".\"&$U$7,$B$95,$B$96,CONFIGURATION!$B$10,\"BMA\",CONFIGURATION!$B$1,\"bscr\",1000)","v":"Mapped"},null,null,null,"PaidCY2019AY2015",0]
[null,null,null,null,null,null,null,{"$f":"XBRLMap(H35,H$86&\".\"&$U$4&\".\"&$U35&\".\"&H$89&\".\"&$U$7,$B$95,$B$96,CONFIGURATION!$B$10,\"BMA\",CONFIGURATION!$B$1,\"bscr\",1000)","v":"Mapped"},{"$f":"XBRLMap(I35,I$86&\".\"&$U$4&\".\"&$U35&\".\"&I$89&\".\"&$U$7,$B$95,$B$96,CONFIGURATION!$B$10,\"BMA\",CONFIGURATION!$B$1,\"bscr\",1000)","v":"Mapped"},{"$f":"XBRLMap(J35,J$86&\".\"&$U$4&\".\"&$U35&\".\"&J$89&\".\"&$U$7,$B$95,$B$96,CONFIGURATION!$B$10,\"BMA\",CONFIGURATION!$B$1,\"bscr\",1000)","v":"Mapped"},{"$f":"XBRLMap(K35,K$86&\".\"&$U$4&\".\"&$U35&\".\"&K$89&\".\"&$U$7,$B$95,$B$96,CONFIGURATION!$B$10,\"BMA\",CONFIGURATION!$B$1,\"bscr\",1000)","v":"Mapped"},{"$f":"XBRLMap(L35,L$86&\".\"&$U$4&\".\"&$U35&\".\"&L$89&\".\"&$U$7,$B$95,$B$96,CONFIGURATION!$B$10,\"BMA\",CONFIGURATION!$B$1,\"bscr\",1000)","v":"Mapped"},{"$f":"XBRLMap(M35,M$86&\".\"&$U$4&\".\"&$U35&\".\"&M$89&\".\"&$U$7,$B$95,$B$96,CONFIGURATION!$B$10,\"BMA\",CONFIGURATION!$B$1,\"bscr\",1000)","v":"Mapped"},null,null,null,"PaidCY2019AY2016",0]
[null,null,null,null,null,null,null,null,{"$f":"XBRLMap(I36,I$86&\".\"&$U$4&\".\"&$U36&\".\"&I$89&\".\"&$U$7,$B$95,$B$96,CONFIGURATION!$B$10,\"BMA\",CONFIGURATION!$B$1,\"bscr\",1000)","v":"Mapped"},{"$f":"XBRLMap(J36,J$86&\".\"&$U$4&\".\"&$U36&\".\"&J$89&\".\"&$U$7,$B$95,$B$96,CONFIGURATION!$B$10,\"BMA\",CONFIGURATION!$B$1,\"bscr\",1000)","v":"Mapped"},{"$f":"XBRLMap(K36,K$86&\".\"&$U$4&\".\"&$U36&\".\"&K$89&\".\"&$U$7,$B$95,$B$96,CONFIGURATION!$B$10,\"BMA\",CONFIGURATION!$B$1,\"bscr\",1000)","v":"Mapped"},{"$f":"XBRLMap(L36,L$86&\".\"&$U$4&\".\"&$U36&\".\"&L$89&\".\"&$U$7,$B$95,$B$96,CONFIGURATION!$B$10,\"BMA\",CONFIGURATION!$B$1,\"bscr\",1000)","v":"Mapped"},{"$f":"XBRLMap(M36,M$86&\".\"&$U$4&\".\"&$U36&\".\"&M$89&\".\"&$U$7,$B$95,$B$96,CONFIGURATION!$B$10,\"BMA\",CONFIGURATION!$B$1,\"bscr\",1000)","v":"Mapped"},null,null,null,"PaidCY2019AY2017",0]
[null,null,null,null,null,null,null,null,null,{"$f":"XBRLMap(J37,J$86&\".\"&$U$4&\".\"&$U37&\".\"&J$89&\".\"&$U$7,$B$95,$B$96,CONFIGURATION!$B$10,\"BMA\",CONFIGURATION!$B$1,\"bscr\",1000)","v":"Mapped"},{"$f":"XBRLMap(K37,K$86&\".\"&$U$4&\".\"&$U37&\".\"&K$89&\".\"&$U$7,$B$95,$B$96,CONFIGURATION!$B$10,\"BMA\",CONFIGURATION!$B$1,\"bscr\",1000)","v":"Mapped"},{"$f":"XBRLMap(L37,L$86&\".\"&$U$4&\".\"&$U37&\".\"&L$89&\".\"&$U$7,$B$95,$B$96,CONFIGURATION!$B$10,\"BMA\",CONFIGURATION!$B$1,\"bscr\",1000)","v":"Mapped"},{"$f":"XBRLMap(M37,M$86&\".\"&$U$4&\".\"&$U37&\".\"&M$89&\".\"&$U$7,$B$95,$B$96,CONFIGURATION!$B$10,\"BMA\",CONFIGURATION!$B$1,\"bscr\",1000)","v":"Mapped"},null,null,null,"PaidCY2019AY2018",0]
[null,null,null,null,null,null,null,null,null,null,{"$f":"XBRLMap(K38,K$86&\".\"&$U$4&\".\"&$U38&\".\"&K$89&\".\"&$U$7,$B$95,$B$96,CONFIGURATION!$B$10,\"BMA\",CONFIGURATION!$B$1,\"bscr\",1000)","v":"Mapped"},{"$f":"XBRLMap(L38,L$86&\".\"&$U$4&\".\"&$U38&\".\"&L$89&\".\"&$U$7,$B$95,$B$96,CONFIGURATION!$B$10,\"BMA\",CONFIGURATION!$B$1,\"bscr\",1000)","v":"Mapped"},{"$f":"XBRLMap(M38,M$86&\".\"&$U$4&\".\"&$U38&\".\"&M$89&\".\"&$U$7,$B$95,$B$96,CONFIGURATION!$B$10,\"BMA\",CONFIGURATION!$B$1,\"bscr\",1000)","v":"Mapped"},null,null,null,"PaidCY2019AY2019",0]
[null,null,null,null,null,null,null,null,null,null,null,{"$f":"XBRLMap(L39,L$86&\".\"&$U$4&\".\"&$U39&\".\"&L$89&\".\"&$U$7,$B$95,$B$96,CONFIGURATION!$B$10,\"BMA\",CONFIGURATION!$B$1,\"bscr\",1000)","v":"Mapped"},{"$f":"XBRLMap(M39,M$86&\".\"&$U$4&\".\"&$U39&\".\"&M$89&\".\"&$U$7,$B$95,$B$96,CONFIGURATION!$B$10,\"BMA\",CONFIGURATION!$B$1,\"bscr\",1000)","v":"Mapped"},null,null,null,{"$f":"\"IBNRCY\"&C$10&\"AY\"&B47","v":"IBNRCY2010AYPrior"},{"$f":"C47","v":0}]
[null,null,null,null,null,null,null,null,null,null,null,null,null,null,null,null,{"$f":"\"IBNRCY\"&C$10&\"AY\"&B48","v":"IBNRCY2010AY2010"},{"$f":"C48","v":0}]
[null,null,null,null,null,null,null,null,null,null,null,null,null,null,null,null,{"$f":"\"IBNRCY\"&D$10&\"AY\"&B47","v":"IBNRCY2011AYPrior"},{"$f":"D47","v":0}]
[null,null,null,null,null,null,null,null,null,null,null,null,null,null,null,null,{"$f":"\"IBNRCY\"&D$10&\"AY\"&B48","v":"IBNRCY2011AY2010"},{"$f":"D48","v":0}]
[null,null,null,null,null,null,null,null,null,null,null,null,null,null,null,null,{"$f":"\"IBNRCY\"&D$10&\"AY\"&B49","v":"IBNRCY2011AY2011"},{"$f":"D49","v":0}]
[null,null,null,null,null,null,null,null,null,null,null,null,null,null,null,null,{"$f":"\"IBNRCY\"&E$10&\"AY\"&B47","v":"IBNRCY2012AYPrior"},{"$f":"E47","v":0}]
[null,null,null,null,null,null,null,null,null,null,null,null,null,null,null,null,{"$f":"\"IBNRCY\"&E$10&\"AY\"&B48","v":"IBNRCY2012AY2010"},{"$f":"E48","v":0}]
[null,null,null,null,null,null,null,null,null,null,null,null,null,null,null,null,{"$f":"\"IBNRCY\"&E$10&\"AY\"&B49","v":"IBNRCY2012AY2011"},{"$f":"E49","v":0}]
[null,null,null,null,null,null,null,null,null,null,null,null,null,null,null,null,{"$f":"\"IBNRCY\"&E$10&\"AY\"&B50","v":"IBNRCY2012AY2012"},{"$f":"E50","v":0}]
[null,null,{"$f":"XBRLMap(C47,C$87&\".\"&$U$4&\".\"&$U47&\".\"&C$89&\".\"&$U$7,$B$95,$B$96,CONFIGURATION!$B$10,\"BMA\",CONFIGURATION!$B$1,\"bscr\",1000)","v":"Mapped"},{"$f":"XBRLMap(D47,D$87&\".\"&$U$4&\".\"&$U47&\".\"&D$89&\".\"&$U$7,$B$95,$B$96,CONFIGURATION!$B$10,\"BMA\",CONFIGURATION!$B$1,\"bscr\",1000)","v":"Mapped"},{"$f":"XBRLMap(E47,E$87&\".\"&$U$4&\".\"&$U47&\".\"&E$89&\".\"&$U$7,$B$95,$B$96,CONFIGURATION!$B$10,\"BMA\",CONFIGURATION!$B$1,\"bscr\",1000)","v":"Mapped"},{"$f":"XBRLMap(F47,F$87&\".\"&$U$4&\".\"&$U47&\".\"&F$89&\".\"&$U$7,$B$95,$B$96,CONFIGURATION!$B$10,\"BMA\",CONFIGURATION!$B$1,\"bscr\",1000)","v":"Mapped"},{"$f":"XBRLMap(G47,G$87&\".\"&$U$4&\".\"&$U47&\".\"&G$89&\".\"&$U$7,$B$95,$B$96,CONFIGURATION!$B$10,\"BMA\",CONFIGURATION!$B$1,\"bscr\",1000)","v":"Mapped"},{"$f":"XBRLMap(H47,H$87&\".\"&$U$4&\".\"&$U47&\".\"&H$89&\".\"&$U$7,$B$95,$B$96,CONFIGURATION!$B$10,\"BMA\",CONFIGURATION!$B$1,\"bscr\",1000)","v":"Mapped"},{"$f":"XBRLMap(I47,I$87&\".\"&$U$4&\".\"&$U47&\".\"&I$89&\".\"&$U$7,$B$95,$B$96,CONFIGURATION!$B$10,\"BMA\",CONFIGURATION!$B$1,\"bscr\",1000)","v":"Mapped"},{"$f":"XBRLMap(J47,J$87&\".\"&$U$4&\".\"&$U47&\".\"&J$89&\".\"&$U$7,$B$95,$B$96,CONFIGURATION!$B$10,\"BMA\",CONFIGURATION!$B$1,\"bscr\",1000)","v":"Mapped"},{"$f":"XBRLMap(K47,K$87&\".\"&$U$4&\".\"&$U47&\".\"&K$89&\".\"&$U$7,$B$95,$B$96,CONFIGURATION!$B$10,\"BMA\",CONFIGURATION!$B$1,\"bscr\",1000)","v":"Mapped"},{"$f":"XBRLMap(L47,L$87&\".\"&$U$4&\".\"&$U47&\".\"&L$89&\".\"&$U$7,$B$95,$B$96,CONFIGURATION!$B$10,\"BMA\",CONFIGURATION!$B$1,\"bscr\",1000)","v":"Mapped"},{"$f":"XBRLMap(M47,M$87&\".\"&$U$4&\".\"&$U47&\".\"&M$89&\".\"&$U$7,$B$95,$B$96,CONFIGURATION!$B$10,\"BMA\",CONFIGURATION!$B$1,\"bscr\",1000)","v":"Mapped"},null,null,null,{"$f":"\"IBNRCY\"&F$10&\"AY\"&B47","v":"IBNRCY2013AYPrior"},{"$f":"F47","v":0}]
[null,null,{"$f":"XBRLMap(C48,C$87&\".\"&$U$4&\".\"&$U48&\".\"&C$89&\".\"&$U$7,$B$95,$B$96,CONFIGURATION!$B$10,\"BMA\",CONFIGURATION!$B$1,\"bscr\",1000)","v":"Mapped"},{"$f":"XBRLMap(D48,D$87&\".\"&$U$4&\".\"&$U48&\".\"&D$89&\".\"&$U$7,$B$95,$B$96,CONFIGURATION!$B$10,\"BMA\",CONFIGURATION!$B$1,\"bscr\",1000)","v":"Mapped"},{"$f":"XBRLMap(E48,E$87&\".\"&$U$4&\".\"&$U48&\".\"&E$89&\".\"&$U$7,$B$95,$B$96,CONFIGURATION!$B$10,\"BMA\",CONFIGURATION!$B$1,\"bscr\",1000)","v":"Mapped"},{"$f":"XBRLMap(F48,F$87&\".\"&$U$4&\".\"&$U48&\".\"&F$89&\".\"&$U$7,$B$95,$B$96,CONFIGURATION!$B$10,\"BMA\",CONFIGURATION!$B$1,\"bscr\",1000)","v":"Mapped"},{"$f":"XBRLMap(G48,G$87&\".\"&$U$4&\".\"&$U48&\".\"&G$89&\".\"&$U$7,$B$95,$B$96,CONFIGURATION!$B$10,\"BMA\",CONFIGURATION!$B$1,\"bscr\",1000)","v":"Mapped"},{"$f":"XBRLMap(H48,H$87&\".\"&$U$4&\".\"&$U48&\".\"&H$89&\".\"&$U$7,$B$95,$B$96,CONFIGURATION!$B$10,\"BMA\",CONFIGURATION!$B$1,\"bscr\",1000)","v":"Mapped"},{"$f":"XBRLMap(I48,I$87&\".\"&$U$4&\".\"&$U48&\".\"&I$89&\".\"&$U$7,$B$95,$B$96,CONFIGURATION!$B$10,\"BMA\",CONFIGURATION!$B$1,\"bscr\",1000)","v":"Mapped"},{"$f":"XBRLMap(J48,J$87&\".\"&$U$4&\".\"&$U48&\".\"&J$89&\".\"&$U$7,$B$95,$B$96,CONFIGURATION!$B$10,\"BMA\",CONFIGURATION!$B$1,\"bscr\",1000)","v":"Mapped"},{"$f":"XBRLMap(K48,K$87&\".\"&$U$4&\".\"&$U48&\".\"&K$89&\".\"&$U$7,$B$95,$B$96,CONFIGURATION!$B$10,\"BMA\",CONFIGURATION!$B$1,\"bscr\",1000)","v":"Mapped"},{"$f":"XBRLMap(L48,L$87&\".\"&$U$4&\".\"&$U48&\".\"&L$89&\".\"&$U$7,$B$95,$B$96,CONFIGURATION!$B$10,\"BMA\",CONFIGURATION!$B$1,\"bscr\",1000)","v":"Mapped"},{"$f":"XBRLMap(M48,M$87&\".\"&$U$4&\".\"&$U48&\".\"&M$89&\".\"&$U$7,$B$95,$B$96,CONFIGURATION!$B$10,\"BMA\",CONFIGURATION!$B$1,\"bscr\",1000)","v":"Mapped"},null,null,null,{"$f":"\"IBNRCY\"&F$10&\"AY\"&B48","v":"IBNRCY2013AY2010"},{"$f":"F48","v":0}]
[null,null,null,{"$f":"XBRLMap(D49,D$87&\".\"&$U$4&\".\"&$U49&\".\"&D$89&\".\"&$U$7,$B$95,$B$96,CONFIGURATION!$B$10,\"BMA\",CONFIGURATION!$B$1,\"bscr\",1000)","v":"Mapped"},{"$f":"XBRLMap(E49,E$87&\".\"&$U$4&\".\"&$U49&\".\"&E$89&\".\"&$U$7,$B$95,$B$96,CONFIGURATION!$B$10,\"BMA\",CONFIGURATION!$B$1,\"bscr\",1000)","v":"Mapped"},{"$f":"XBRLMap(F49,F$87&\".\"&$U$4&\".\"&$U49&\".\"&F$89&\".\"&$U$7,$B$95,$B$96,CONFIGURATION!$B$10,\"BMA\",CONFIGURATION!$B$1,\"bscr\",1000)","v":"Mapped"},{"$f":"XBRLMap(G49,G$87&\".\"&$U$4&\".\"&$U49&\".\"&G$89&\".\"&$U$7,$B$95,$B$96,CONFIGURATION!$B$10,\"BMA\",CONFIGURATION!$B$1,\"bscr\",1000)","v":"Mapped"},{"$f":"XBRLMap(H49,H$87&\".\"&$U$4&\".\"&$U49&\".\"&H$89&\".\"&$U$7,$B$95,$B$96,CONFIGURATION!$B$10,\"BMA\",CONFIGURATION!$B$1,\"bscr\",1000)","v":"Mapped"},{"$f":"XBRLMap(I49,I$87&\".\"&$U$4&\".\"&$U49&\".\"&I$89&\".\"&$U$7,$B$95,$B$96,CONFIGURATION!$B$10,\"BMA\",CONFIGURATION!$B$1,\"bscr\",1000)","v":"Mapped"},{"$f":"XBRLMap(J49,J$87&\".\"&$U$4&\".\"&$U49&\".\"&J$89&\".\"&$U$7,$B$95,$B$96,CONFIGURATION!$B$10,\"BMA\",CONFIGURATION!$B$1,\"bscr\",1000)","v":"Mapped"},{"$f":"XBRLMap(K49,K$87&\".\"&$U$4&\".\"&$U49&\".\"&K$89&\".\"&$U$7,$B$95,$B$96,CONFIGURATION!$B$10,\"BMA\",CONFIGURATION!$B$1,\"bscr\",1000)","v":"Mapped"},{"$f":"XBRLMap(L49,L$87&\".\"&$U$4&\".\"&$U49&\".\"&L$89&\".\"&$U$7,$B$95,$B$96,CONFIGURATION!$B$10,\"BMA\",CONFIGURATION!$B$1,\"bscr\",1000)","v":"Mapped"},{"$f":"XBRLMap(M49,M$87&\".\"&$U$4&\".\"&$U49&\".\"&M$89&\".\"&$U$7,$B$95,$B$96,CONFIGURATION!$B$10,\"BMA\",CONFIGURATION!$B$1,\"bscr\",1000)","v":"Mapped"},null,null,null,{"$f":"\"IBNRCY\"&F$10&\"AY\"&B49","v":"IBNRCY2013AY2011"},{"$f":"F49","v":0}]
[null,null,null,null,{"$f":"XBRLMap(E50,E$87&\".\"&$U$4&\".\"&$U50&\".\"&E$89&\".\"&$U$7,$B$95,$B$96,CONFIGURATION!$B$10,\"BMA\",CONFIGURATION!$B$1,\"bscr\",1000)","v":"Mapped"},{"$f":"XBRLMap(F50,F$87&\".\"&$U$4&\".\"&$U50&\".\"&F$89&\".\"&$U$7,$B$95,$B$96,CONFIGURATION!$B$10,\"BMA\",CONFIGURATION!$B$1,\"bscr\",1000)","v":"Mapped"},{"$f":"XBRLMap(G50,G$87&\".\"&$U$4&\".\"&$U50&\".\"&G$89&\".\"&$U$7,$B$95,$B$96,CONFIGURATION!$B$10,\"BMA\",CONFIGURATION!$B$1,\"bscr\",1000)","v":"Mapped"},{"$f":"XBRLMap(H50,H$87&\".\"&$U$4&\".\"&$U50&\".\"&H$89&\".\"&$U$7,$B$95,$B$96,CONFIGURATION!$B$10,\"BMA\",CONFIGURATION!$B$1,\"bscr\",1000)","v":"Mapped"},{"$f":"XBRLMap(I50,I$87&\".\"&$U$4&\".\"&$U50&\".\"&I$89&\".\"&$U$7,$B$95,$B$96,CONFIGURATION!$B$10,\"BMA\",CONFIGURATION!$B$1,\"bscr\",1000)","v":"Mapped"},{"$f":"XBRLMap(J50,J$87&\".\"&$U$4&\".\"&$U50&\".\"&J$89&\".\"&$U$7,$B$95,$B$96,CONFIGURATION!$B$10,\"BMA\",CONFIGURATION!$B$1,\"bscr\",1000)","v":"Mapped"},{"$f":"XBRLMap(K50,K$87&\".\"&$U$4&\".\"&$U50&\".\"&K$89&\".\"&$U$7,$B$95,$B$96,CONFIGURATION!$B$10,\"BMA\",CONFIGURATION!$B$1,\"bscr\",1000)","v":"Mapped"},{"$f":"XBRLMap(L50,L$87&\".\"&$U$4&\".\"&$U50&\".\"&L$89&\".\"&$U$7,$B$95,$B$96,CONFIGURATION!$B$10,\"BMA\",CONFIGURATION!$B$1,\"bscr\",1000)","v":"Mapped"},{"$f":"XBRLMap(M50,M$87&\".\"&$U$4&\".\"&$U50&\".\"&M$89&\".\"&$U$7,$B$95,$B$96,CONFIGURATION!$B$10,\"BMA\",CONFIGURATION!$B$1,\"bscr\",1000)","v":"Mapped"},null,null,null,{"$f":"\"IBNRCY\"&F$10&\"AY\"&B50","v":"IBNRCY2013AY2012"},{"$f":"F50","v":0}]
[null,null,null,null,null,{"$f":"XBRLMap(F51,F$87&\".\"&$U$4&\".\"&$U51&\".\"&F$89&\".\"&$U$7,$B$95,$B$96,CONFIGURATION!$B$10,\"BMA\",CONFIGURATION!$B$1,\"bscr\",1000)","v":"Mapped"},{"$f":"XBRLMap(G51,G$87&\".\"&$U$4&\".\"&$U51&\".\"&G$89&\".\"&$U$7,$B$95,$B$96,CONFIGURATION!$B$10,\"BMA\",CONFIGURATION!$B$1,\"bscr\",1000)","v":"Mapped"},{"$f":"XBRLMap(H51,H$87&\".\"&$U$4&\".\"&$U51&\".\"&H$89&\".\"&$U$7,$B$95,$B$96,CONFIGURATION!$B$10,\"BMA\",CONFIGURATION!$B$1,\"bscr\",1000)","v":"Mapped"},{"$f":"XBRLMap(I51,I$87&\".\"&$U$4&\".\"&$U51&\".\"&I$89&\".\"&$U$7,$B$95,$B$96,CONFIGURATION!$B$10,\"BMA\",CONFIGURATION!$B$1,\"bscr\",1000)","v":"Mapped"},{"$f":"XBRLMap(J51,J$87&\".\"&$U$4&\".\"&$U51&\".\"&J$89&\".\"&$U$7,$B$95,$B$96,CONFIGURATION!$B$10,\"BMA\",CONFIGURATION!$B$1,\"bscr\",1000)","v":"Mapped"},{"$f":"XBRLMap(K51,K$87&\".\"&$U$4&\".\"&$U51&\".\"&K$89&\".\"&$U$7,$B$95,$B$96,CONFIGURATION!$B$10,\"BMA\",CONFIGURATION!$B$1,\"bscr\",1000)","v":"Mapped"},{"$f":"XBRLMap(L51,L$87&\".\"&$U$4&\".\"&$U51&\".\"&L$89&\".\"&$U$7,$B$95,$B$96,CONFIGURATION!$B$10,\"BMA\",CONFIGURATION!$B$1,\"bscr\",1000)","v":"Mapped"},{"$f":"XBRLMap(M51,M$87&\".\"&$U$4&\".\"&$U51&\".\"&M$89&\".\"&$U$7,$B$95,$B$96,CONFIGURATION!$B$10,\"BMA\",CONFIGURATION!$B$1,\"bscr\",1000)","v":"Mapped"},null,null,null,{"$f":"\"IBNRCY\"&F$10&\"AY\"&B51","v":"IBNRCY2013AY2013"},{"$f":"F51","v":0}]
[null,null,null,null,null,null,{"$f":"XBRLMap(G52,G$87&\".\"&$U$4&\".\"&$U52&\".\"&G$89&\".\"&$U$7,$B$95,$B$96,CONFIGURATION!$B$10,\"BMA\",CONFIGURATION!$B$1,\"bscr\",1000)","v":"Mapped"},{"$f":"XBRLMap(H52,H$87&\".\"&$U$4&\".\"&$U52&\".\"&H$89&\".\"&$U$7,$B$95,$B$96,CONFIGURATION!$B$10,\"BMA\",CONFIGURATION!$B$1,\"bscr\",1000)","v":"Mapped"},{"$f":"XBRLMap(I52,I$87&\".\"&$U$4&\".\"&$U52&\".\"&I$89&\".\"&$U$7,$B$95,$B$96,CONFIGURATION!$B$10,\"BMA\",CONFIGURATION!$B$1,\"bscr\",1000)","v":"Mapped"},{"$f":"XBRLMap(J52,J$87&\".\"&$U$4&\".\"&$U52&\".\"&J$89&\".\"&$U$7,$B$95,$B$96,CONFIGURATION!$B$10,\"BMA\",CONFIGURATION!$B$1,\"bscr\",1000)","v":"Mapped"},{"$f":"XBRLMap(K52,K$87&\".\"&$U$4&\".\"&$U52&\".\"&K$89&\".\"&$U$7,$B$95,$B$96,CONFIGURATION!$B$10,\"BMA\",CONFIGURATION!$B$1,\"bscr\",1000)","v":"Mapped"},{"$f":"XBRLMap(L52,L$87&\".\"&$U$4&\".\"&$U52&\".\"&L$89&\".\"&$U$7,$B$95,$B$96,CONFIGURATION!$B$10,\"BMA\",CONFIGURATION!$B$1,\"bscr\",1000)","v":"Mapped"},{"$f":"XBRLMap(M52,M$87&\".\"&$U$4&\".\"&$U52&\".\"&M$89&\".\"&$U$7,$B$95,$B$96,CONFIGURATION!$B$10,\"BMA\",CONFIGURATION!$B$1,\"bscr\",1000)","v":"Mapped"},null,null,null,{"$f":"\"IBNRCY\"&G$10&\"AY\"&B47","v":"IBNRCY2014AYPrior"},{"$f":"G47","v":0}]
[null,null,null,null,null,null,null,{"$f":"XBRLMap(H53,H$87&\".\"&$U$4&\".\"&$U53&\".\"&H$89&\".\"&$U$7,$B$95,$B$96,CONFIGURATION!$B$10,\"BMA\",CONFIGURATION!$B$1,\"bscr\",1000)","v":"Mapped"},{"$f":"XBRLMap(I53,I$87&\".\"&$U$4&\".\"&$U53&\".\"&I$89&\".\"&$U$7,$B$95,$B$96,CONFIGURATION!$B$10,\"BMA\",CONFIGURATION!$B$1,\"bscr\",1000)","v":"Mapped"},{"$f":"XBRLMap(J53,J$87&\".\"&$U$4&\".\"&$U53&\".\"&J$89&\".\"&$U$7,$B$95,$B$96,CONFIGURATION!$B$10,\"BMA\",CONFIGURATION!$B$1,\"bscr\",1000)","v":"Mapped"},{"$f":"XBRLMap(K53,K$87&\".\"&$U$4&\".\"&$U53&\".\"&K$89&\".\"&$U$7,$B$95,$B$96,CONFIGURATION!$B$10,\"BMA\",CONFIGURATION!$B$1,\"bscr\",1000)","v":"Mapped"},{"$f":"XBRLMap(L53,L$87&\".\"&$U$4&\".\"&$U53&\".\"&L$89&\".\"&$U$7,$B$95,$B$96,CONFIGURATION!$B$10,\"BMA\",CONFIGURATION!$B$1,\"bscr\",1000)","v":"Mapped"},{"$f":"XBRLMap(M53,M$87&\".\"&$U$4&\".\"&$U53&\".\"&M$89&\".\"&$U$7,$B$95,$B$96,CONFIGURATION!$B$10,\"BMA\",CONFIGURATION!$B$1,\"bscr\",1000)","v":"Mapped"},null,null,null,"IBNRCY2014AY2010",0]
[null,null,null,null,null,null,null,null,{"$f":"XBRLMap(I54,I$87&\".\"&$U$4&\".\"&$U54&\".\"&I$89&\".\"&$U$7,$B$95,$B$96,CONFIGURATION!$B$10,\"BMA\",CONFIGURATION!$B$1,\"bscr\",1000)","v":"Mapped"},{"$f":"XBRLMap(J54,J$87&\".\"&$U$4&\".\"&$U54&\".\"&J$89&\".\"&$U$7,$B$95,$B$96,CONFIGURATION!$B$10,\"BMA\",CONFIGURATION!$B$1,\"bscr\",1000)","v":"Mapped"},{"$f":"XBRLMap(K54,K$87&\".\"&$U$4&\".\"&$U54&\".\"&K$89&\".\"&$U$7,$B$95,$B$96,CONFIGURATION!$B$10,\"BMA\",CONFIGURATION!$B$1,\"bscr\",1000)","v":"Mapped"},{"$f":"XBRLMap(L54,L$87&\".\"&$U$4&\".\"&$U54&\".\"&L$89&\".\"&$U$7,$B$95,$B$96,CONFIGURATION!$B$10,\"BMA\",CONFIGURATION!$B$1,\"bscr\",1000)","v":"Mapped"},{"$f":"XBRLMap(M54,M$87&\".\"&$U$4&\".\"&$U54&\".\"&M$89&\".\"&$U$7,$B$95,$B$96,CONFIGURATION!$B$10,\"BMA\",CONFIGURATION!$B$1,\"bscr\",1000)","v":"Mapped"},null,null,null,"IBNRCY2014AY2011",0]
[null,null,null,null,null,null,null,null,null,{"$f":"XBRLMap(J55,J$87&\".\"&$U$4&\".\"&$U55&\".\"&J$89&\".\"&$U$7,$B$95,$B$96,CONFIGURATION!$B$10,\"BMA\",CONFIGURATION!$B$1,\"bscr\",1000)","v":"Mapped"},{"$f":"XBRLMap(K55,K$87&\".\"&$U$4&\".\"&$U55&\".\"&K$89&\".\"&$U$7,$B$95,$B$96,CONFIGURATION!$B$10,\"BMA\",CONFIGURATION!$B$1,\"bscr\",1000)","v":"Mapped"},{"$f":"XBRLMap(L55,L$87&\".\"&$U$4&\".\"&$U55&\".\"&L$89&\".\"&$U$7,$B$95,$B$96,CONFIGURATION!$B$10,\"BMA\",CONFIGURATION!$B$1,\"bscr\",1000)","v":"Mapped"},{"$f":"XBRLMap(M55,M$87&\".\"&$U$4&\".\"&$U55&\".\"&M$89&\".\"&$U$7,$B$95,$B$96,CONFIGURATION!$B$10,\"BMA\",CONFIGURATION!$B$1,\"bscr\",1000)","v":"Mapped"},null,null,null,"IBNRCY2014AY2012",0]
[null,null,null,null,null,null,null,null,null,null,{"$f":"XBRLMap(K56,K$87&\".\"&$U$4&\".\"&$U56&\".\"&K$89&\".\"&$U$7,$B$95,$B$96,CONFIGURATION!$B$10,\"BMA\",CONFIGURATION!$B$1,\"bscr\",1000)","v":"Mapped"},{"$f":"XBRLMap(L56,L$87&\".\"&$U$4&\".\"&$U56&\".\"&L$89&\".\"&$U$7,$B$95,$B$96,CONFIGURATION!$B$10,\"BMA\",CONFIGURATION!$B$1,\"bscr\",1000)","v":"Mapped"},{"$f":"XBRLMap(M56,M$87&\".\"&$U$4&\".\"&$U56&\".\"&M$89&\".\"&$U$7,$B$95,$B$96,CONFIGURATION!$B$10,\"BMA\",CONFIGURATION!$B$1,\"bscr\",1000)","v":"Mapped"},null,null,null,"IBNRCY2014AY2013",0]
[null,null,null,null,null,null,null,null,null,null,null,{"$f":"XBRLMap(L57,L$87&\".\"&$U$4&\".\"&$U57&\".\"&L$89&\".\"&$U$7,$B$95,$B$96,CONFIGURATION!$B$10,\"BMA\",CONFIGURATION!$B$1,\"bscr\",1000)","v":"Mapped"},{"$f":"XBRLMap(M57,M$87&\".\"&$U$4&\".\"&$U57&\".\"&M$89&\".\"&$U$7,$B$95,$B$96,CONFIGURATION!$B$10,\"BMA\",CONFIGURATION!$B$1,\"bscr\",1000)","v":"Mapped"},null,null,null,"IBNRCY2014AY2014",0]
[null,null,null,null,null,null,null,null,null,null,null,null,null,null,null,null,{"$f":"\"IBNRCY\"&H$10&\"AY\"&B47","v":"IBNRCY2015AYPrior"},{"$f":"H47","v":0}]
[null,null,null,null,null,null,null,null,null,null,null,null,null,null,null,null,"IBNRCY2015AY2010",0]
[null,null,null,null,null,null,null,null,null,null,null,null,null,null,null,null,"IBNRCY2015AY2011",0]
[null,null,null,null,null,null,null,null,null,null,null,null,null,null,null,null,"IBNRCY2015AY2012",0]
[null,null,null,null,null,null,null,null,null,null,null,null,null,null,null,null,"IBNRCY2015AY2013",0]
[null,null,null,null,null,null,null,null,null,null,null,null,null,null,null,null,"IBNRCY2015AY2014",0]
[null,null,null,null,null,null,null,null,null,null,null,null,null,null,null,null,"IBNRCY2015AY2015",0]
[null,null,null,null,null,null,null,null,null,null,null,null,null,null,null,null,{"$f":"\"IBNRCY\"&I$10&\"AY\"&B47","v":"IBNRCY2016AYPrior"},{"$f":"I47","v":0}]
[null,null,null,null,null,null,null,null,null,null,null,null,null,null,null,null,"IBNRCY2016AY2010",0]
[null,null,null,null,null,null,null,null,null,null,null,null,null,null,null,null,"IBNRCY2016AY2011",0]
[null,null,null,null,null,null,{"$f":"XBRLMap(G67,G$88&\".\"&$U$4&\".\"&$U67&\".\"&$U$7,$B$95,$B$96,CONFIGURATION!$B$10,\"BMA\",CONFIGURATION!$B$1,\"bscr\",1000)","v":"Mapped"},{"$f":"XBRLMap(H67,H$88&\".\"&$U$4&\".\"&$U67&\".\"&$U$7,$B$95,$B$96,CONFIGURATION!$B$10,\"BMA\",CONFIGURATION!$B$1,\"bscr\",1000)","v":"Mapped"},null,{"$f":"XBRLMap(J67,J$88&\".\"&$U$4&\".\"&$V67&\".\"&$U$7,$B$95,$B$96,CONFIGURATION!$B$10,\"BMA\",CONFIGURATION!$B$1,\"bscr\",1000)","v":"Mapped"},{"$f":"XBRLMap(K67,K$88&\".\"&$U$4&\".\"&$V67&\".\"&$U$7,$B$95,$B$96,CONFIGURATION!$B$10,\"BMA\",CONFIGURATION!$B$1,\"bscr\",1000)","v":"Mapped"},{"$f":"XBRLMap(L67,L$88&\".\"&$U$4&\".\"&$V67&\".\"&$U$7,$B$95,$B$96,CONFIGURATION!$B$10,\"BMA\",CONFIGURATION!$B$1,\"bscr\",1000)","v":"Mapped"},{"$f":"XBRLMap(M67,M$88&\".\"&$U$4&\".\"&$V67&\".\"&$U$7,$B$95,$B$96,CONFIGURATION!$B$10,\"BMA\",CONFIGURATION!$B$1,\"bscr\",1000)","v":"Mapped"},null,null,null,"IBNRCY2016AY2012",0]
[null,null,{"$f":"XBRLMap(C68,C$88&\".\"&$U$4&\".\"&$U68&\".\"&$U$7,$B$95,$B$96,CONFIGURATION!$B$10,\"BMA\",CONFIGURATION!$B$1,\"bscr\",1000)","v":"Mapped"},{"$f":"XBRLMap(D68,D$88&\".\"&$U$4&\".\"&$U68&\".\"&$U$7,$B$95,$B$96,CONFIGURATION!$B$10,\"BMA\",CONFIGURATION!$B$1,\"bscr\",1000)","v":"Mapped"},{"$f":"XBRLMap(E68,E$88&\".\"&$U$4&\".\"&$U68&\".\"&$U$7,$B$95,$B$96,CONFIGURATION!$B$10,\"BMA\",CONFIGURATION!$B$1,\"bscr\",1000)","v":"Mapped"},{"$f":"XBRLMap(F68,F$88&\".\"&$U$4&\".\"&$U68&\".\"&$U$7,$B$95,$B$96,CONFIGURATION!$B$10,\"BMA\",CONFIGURATION!$B$1,\"bscr\",1000)","v":"Mapped"},{"$f":"XBRLMap(G68,G$88&\".\"&$U$4&\".\"&$U68&\".\"&$U$7,$B$95,$B$96,CONFIGURATION!$B$10,\"BMA\",CONFIGURATION!$B$1,\"bscr\",1000)","v":"Mapped"},{"$f":"XBRLMap(H68,H$88&\".\"&$U$4&\".\"&$U68&\".\"&$U$7,$B$95,$B$96,CONFIGURATION!$B$10,\"BMA\",CONFIGURATION!$B$1,\"bscr\",1000)","v":"Mapped"},null,{"$f":"XBRLMap(J68,J$88&\".\"&$U$4&\".\"&$V68&\".\"&$U$7,$B$95,$B$96,CONFIGURATION!$B$10,\"BMA\",CONFIGURATION!$B$1,\"bscr\",1000)","v":"Mapped"},{"$f":"XBRLMap(K68,K$88&\".\"&$U$4&\".\"&$V68&\".\"&$U$7,$B$95,$B$96,CONFIGURATION!$B$10,\"BMA\",CONFIGURATION!$B$1,\"bscr\",1000)","v":"Mapped"},{"$f":"XBRLMap(L68,L$88&\".\"&$U$4&\".\"&$V68&\".\"&$U$7,$B$95,$B$96,CONFIGURATION!$B$10,\"BMA\",CONFIGURATION!$B$1,\"bscr\",1000)","v":"Mapped"},{"$f":"XBRLMap(M68,M$88&\".\"&$U$4&\".\"&$V68&\".\"&$U$7,$B$95,$B$96,CONFIGURATION!$B$10,\"BMA\",CONFIGURATION!$B$1,\"bscr\",1000)","v":"Mapped"},null,null,null,"IBNRCY2016AY2013",0]
[null,null,{"$f":"XBRLMap(C69,C$88&\".\"&$U$4&\".\"&$U69&\".\"&$U$7,$B$95,$B$96,CONFIGURATION!$B$10,\"BMA\",CONFIGURATION!$B$1,\"bscr\",1000)","v":"Mapped"},{"$f":"XBRLMap(D69,D$88&\".\"&$U$4&\".\"&$U69&\".\"&$U$7,$B$95,$B$96,CONFIGURATION!$B$10,\"BMA\",CONFIGURATION!$B$1,\"bscr\",1000)","v":"Mapped"},{"$f":"XBRLMap(E69,E$88&\".\"&$U$4&\".\"&$U69&\".\"&$U$7,$B$95,$B$96,CONFIGURATION!$B$10,\"BMA\",CONFIGURATION!$B$1,\"bscr\",1000)","v":"Mapped"},{"$f":"XBRLMap(F69,F$88&\".\"&$U$4&\".\"&$U69&\".\"&$U$7,$B$95,$B$96,CONFIGURATION!$B$10,\"BMA\",CONFIGURATION!$B$1,\"bscr\",1000)","v":"Mapped"},{"$f":"XBRLMap(G69,G$88&\".\"&$U$4&\".\"&$U69&\".\"&$U$7,$B$95,$B$96,CONFIGURATION!$B$10,\"BMA\",CONFIGURATION!$B$1,\"bscr\",1000)","v":"Mapped"},{"$f":"XBRLMap(H69,H$88&\".\"&$U$4&\".\"&$U69&\".\"&$U$7,$B$95,$B$96,CONFIGURATION!$B$10,\"BMA\",CONFIGURATION!$B$1,\"bscr\",1000)","v":"Mapped"},null,{"$f":"XBRLMap(J69,J$88&\".\"&$U$4&\".\"&$V69&\".\"&$U$7,$B$95,$B$96,CONFIGURATION!$B$10,\"BMA\",CONFIGURATION!$B$1,\"bscr\",1000)","v":"Mapped"},{"$f":"XBRLMap(K69,K$88&\".\"&$U$4&\".\"&$V69&\".\"&$U$7,$B$95,$B$96,CONFIGURATION!$B$10,\"BMA\",CONFIGURATION!$B$1,\"bscr\",1000)","v":"Mapped"},{"$f":"XBRLMap(L69,L$88&\".\"&$U$4&\".\"&$V69&\".\"&$U$7,$B$95,$B$96,CONFIGURATION!$B$10,\"BMA\",CONFIGURATION!$B$1,\"bscr\",1000)","v":"Mapped"},{"$f":"XBRLMap(M69,M$88&\".\"&$U$4&\".\"&$V69&\".\"&$U$7,$B$95,$B$96,CONFIGURATION!$B$10,\"BMA\",CONFIGURATION!$B$1,\"bscr\",1000)","v":"Mapped"},null,null,null,"IBNRCY2016AY2014",0]
[null,null,{"$f":"XBRLMap(C70,C$88&\".\"&$U$4&\".\"&$U70&\".\"&$U$7,$B$95,$B$96,CONFIGURATION!$B$10,\"BMA\",CONFIGURATION!$B$1,\"bscr\",1000)","v":"Mapped"},{"$f":"XBRLMap(D70,D$88&\".\"&$U$4&\".\"&$U70&\".\"&$U$7,$B$95,$B$96,CONFIGURATION!$B$10,\"BMA\",CONFIGURATION!$B$1,\"bscr\",1000)","v":"Mapped"},{"$f":"XBRLMap(E70,E$88&\".\"&$U$4&\".\"&$U70&\".\"&$U$7,$B$95,$B$96,CONFIGURATION!$B$10,\"BMA\",CONFIGURATION!$B$1,\"bscr\",1000)","v":"Mapped"},{"$f":"XBRLMap(F70,F$88&\".\"&$U$4&\".\"&$U70&\".\"&$U$7,$B$95,$B$96,CONFIGURATION!$B$10,\"BMA\",CONFIGURATION!$B$1,\"bscr\",1000)","v":"Mapped"},{"$f":"XBRLMap(G70,G$88&\".\"&$U$4&\".\"&$U70&\".\"&$U$7,$B$95,$B$96,CONFIGURATION!$B$10,\"BMA\",CONFIGURATION!$B$1,\"bscr\",1000)","v":"Mapped"},{"$f":"XBRLMap(H70,H$88&\".\"&$U$4&\".\"&$U70&\".\"&$U$7,$B$95,$B$96,CONFIGURATION!$B$10,\"BMA\",CONFIGURATION!$B$1,\"bscr\",1000)","v":"Mapped"},null,{"$f":"XBRLMap(J70,J$88&\".\"&$U$4&\".\"&$V70&\".\"&$U$7,$B$95,$B$96,CONFIGURATION!$B$10,\"BMA\",CONFIGURATION!$B$1,\"bscr\",1000)","v":"Mapped"},{"$f":"XBRLMap(K70,K$88&\".\"&$U$4&\".\"&$V70&\".\"&$U$7,$B$95,$B$96,CONFIGURATION!$B$10,\"BMA\",CONFIGURATION!$B$1,\"bscr\",1000)","v":"Mapped"},{"$f":"XBRLMap(L70,L$88&\".\"&$U$4&\".\"&$V70&\".\"&$U$7,$B$95,$B$96,CONFIGURATION!$B$10,\"BMA\",CONFIGURATION!$B$1,\"bscr\",1000)","v":"Mapped"},{"$f":"XBRLMap(M70,M$88&\".\"&$U$4&\".\"&$V70&\".\"&$U$7,$B$95,$B$96,CONFIGURATION!$B$10,\"BMA\",CONFIGURATION!$B$1,\"bscr\",1000)","v":"Mapped"},null,null,null,"IBNRCY2016AY2015",0]
[null,null,{"$f":"XBRLMap(C71,C$88&\".\"&$U$4&\".\"&$U71&\".\"&$U$7,$B$95,$B$96,CONFIGURATION!$B$10,\"BMA\",CONFIGURATION!$B$1,\"bscr\",1000)","v":"Mapped"},{"$f":"XBRLMap(D71,D$88&\".\"&$U$4&\".\"&$U71&\".\"&$U$7,$B$95,$B$96,CONFIGURATION!$B$10,\"BMA\",CONFIGURATION!$B$1,\"bscr\",1000)","v":"Mapped"},{"$f":"XBRLMap(E71,E$88&\".\"&$U$4&\".\"&$U71&\".\"&$U$7,$B$95,$B$96,CONFIGURATION!$B$10,\"BMA\",CONFIGURATION!$B$1,\"bscr\",1000)","v":"Mapped"},{"$f":"XBRLMap(F71,F$88&\".\"&$U$4&\".\"&$U71&\".\"&$U$7,$B$95,$B$96,CONFIGURATION!$B$10,\"BMA\",CONFIGURATION!$B$1,\"bscr\",1000)","v":"Mapped"},{"$f":"XBRLMap(G71,G$88&\".\"&$U$4&\".\"&$U71&\".\"&$U$7,$B$95,$B$96,CONFIGURATION!$B$10,\"BMA\",CONFIGURATION!$B$1,\"bscr\",1000)","v":"Mapped"},{"$f":"XBRLMap(H71,H$88&\".\"&$U$4&\".\"&$U71&\".\"&$U$7,$B$95,$B$96,CONFIGURATION!$B$10,\"BMA\",CONFIGURATION!$B$1,\"bscr\",1000)","v":"Mapped"},null,{"$f":"XBRLMap(J71,J$88&\".\"&$U$4&\".\"&$V71&\".\"&$U$7,$B$95,$B$96,CONFIGURATION!$B$10,\"BMA\",CONFIGURATION!$B$1,\"bscr\",1000)","v":"Mapped"},{"$f":"XBRLMap(K71,K$88&\".\"&$U$4&\".\"&$V71&\".\"&$U$7,$B$95,$B$96,CONFIGURATION!$B$10,\"BMA\",CONFIGURATION!$B$1,\"bscr\",1000)","v":"Mapped"},{"$f":"XBRLMap(L71,L$88&\".\"&$U$4&\".\"&$V71&\".\"&$U$7,$B$95,$B$96,CONFIGURATION!$B$10,\"BMA\",CONFIGURATION!$B$1,\"bscr\",1000)","v":"Mapped"},{"$f":"XBRLMap(M71,M$88&\".\"&$U$4&\".\"&$V71&\".\"&$U$7,$B$95,$B$96,CONFIGURATION!$B$10,\"BMA\",CONFIGURATION!$B$1,\"bscr\",1000)","v":"Mapped"},null,null,null,"IBNRCY2016AY2016",0]
[null,null,{"$f":"XBRLMap(C72,C$88&\".\"&$U$4&\".\"&$U72&\".\"&$U$7,$B$95,$B$96,CONFIGURATION!$B$10,\"BMA\",CONFIGURATION!$B$1,\"bscr\",1000)","v":"Mapped"},{"$f":"XBRLMap(D72,D$88&\".\"&$U$4&\".\"&$U72&\".\"&$U$7,$B$95,$B$96,CONFIGURATION!$B$10,\"BMA\",CONFIGURATION!$B$1,\"bscr\",1000)","v":"Mapped"},{"$f":"XBRLMap(E72,E$88&\".\"&$U$4&\".\"&$U72&\".\"&$U$7,$B$95,$B$96,CONFIGURATION!$B$10,\"BMA\",CONFIGURATION!$B$1,\"bscr\",1000)","v":"Mapped"},{"$f":"XBRLMap(F72,F$88&\".\"&$U$4&\".\"&$U72&\".\"&$U$7,$B$95,$B$96,CONFIGURATION!$B$10,\"BMA\",CONFIGURATION!$B$1,\"bscr\",1000)","v":"Mapped"},{"$f":"XBRLMap(G72,G$88&\".\"&$U$4&\".\"&$U72&\".\"&$U$7,$B$95,$B$96,CONFIGURATION!$B$10,\"BMA\",CONFIGURATION!$B$1,\"bscr\",1000)","v":"Mapped"},{"$f":"XBRLMap(H72,H$88&\".\"&$U$4&\".\"&$U72&\".\"&$U$7,$B$95,$B$96,CONFIGURATION!$B$10,\"BMA\",CONFIGURATION!$B$1,\"bscr\",1000)","v":"Mapped"},null,{"$f":"XBRLMap(J72,J$88&\".\"&$U$4&\".\"&$V72&\".\"&$U$7,$B$95,$B$96,CONFIGURATION!$B$10,\"BMA\",CONFIGURATION!$B$1,\"bscr\",1000)","v":"Mapped"},{"$f":"XBRLMap(K72,K$88&\".\"&$U$4&\".\"&$V72&\".\"&$U$7,$B$95,$B$96,CONFIGURATION!$B$10,\"BMA\",CONFIGURATION!$B$1,\"bscr\",1000)","v":"Mapped"},{"$f":"XBRLMap(L72,L$88&\".\"&$U$4&\".\"&$V72&\".\"&$U$7,$B$95,$B$96,CONFIGURATION!$B$10,\"BMA\",CONFIGURATION!$B$1,\"bscr\",1000)","v":"Mapped"},{"$f":"XBRLMap(M72,M$88&\".\"&$U$4&\".\"&$V72&\".\"&$U$7,$B$95,$B$96,CONFIGURATION!$B$10,\"BMA\",CONFIGURATION!$B$1,\"bscr\",1000)","v":"Mapped"},null,null,null,{"$f":"\"IBNRCY\"&J$10&\"AY\"&B47","v":"IBNRCY2017AYPrior"},{"$f":"J47","v":0}]
[null,null,{"$f":"XBRLMap(C73,C$88&\".\"&$U$4&\".\"&$U73&\".\"&$U$7,$B$95,$B$96,CONFIGURATION!$B$10,\"BMA\",CONFIGURATION!$B$1,\"bscr\",1000)","v":"Mapped"},{"$f":"XBRLMap(D73,D$88&\".\"&$U$4&\".\"&$U73&\".\"&$U$7,$B$95,$B$96,CONFIGURATION!$B$10,\"BMA\",CONFIGURATION!$B$1,\"bscr\",1000)","v":"Mapped"},{"$f":"XBRLMap(E73,E$88&\".\"&$U$4&\".\"&$U73&\".\"&$U$7,$B$95,$B$96,CONFIGURATION!$B$10,\"BMA\",CONFIGURATION!$B$1,\"bscr\",1000)","v":"Mapped"},{"$f":"XBRLMap(F73,F$88&\".\"&$U$4&\".\"&$U73&\".\"&$U$7,$B$95,$B$96,CONFIGURATION!$B$10,\"BMA\",CONFIGURATION!$B$1,\"bscr\",1000)","v":"Mapped"},{"$f":"XBRLMap(G73,G$88&\".\"&$U$4&\".\"&$U73&\".\"&$U$7,$B$95,$B$96,CONFIGURATION!$B$10,\"BMA\",CONFIGURATION!$B$1,\"bscr\",1000)","v":"Mapped"},{"$f":"XBRLMap(H73,H$88&\".\"&$U$4&\".\"&$U73&\".\"&$U$7,$B$95,$B$96,CONFIGURATION!$B$10,\"BMA\",CONFIGURATION!$B$1,\"bscr\",1000)","v":"Mapped"},null,{"$f":"XBRLMap(J73,J$88&\".\"&$U$4&\".\"&$V73&\".\"&$U$7,$B$95,$B$96,CONFIGURATION!$B$10,\"BMA\",CONFIGURATION!$B$1,\"bscr\",1000)","v":"Mapped"},{"$f":"XBRLMap(K73,K$88&\".\"&$U$4&\".\"&$V73&\".\"&$U$7,$B$95,$B$96,CONFIGURATION!$B$10,\"BMA\",CONFIGURATION!$B$1,\"bscr\",1000)","v":"Mapped"},{"$f":"XBRLMap(L73,L$88&\".\"&$U$4&\".\"&$V73&\".\"&$U$7,$B$95,$B$96,CONFIGURATION!$B$10,\"BMA\",CONFIGURATION!$B$1,\"bscr\",1000)","v":"Mapped"},{"$f":"XBRLMap(M73,M$88&\".\"&$U$4&\".\"&$V73&\".\"&$U$7,$B$95,$B$96,CONFIGURATION!$B$10,\"BMA\",CONFIGURATION!$B$1,\"bscr\",1000)","v":"Mapped"},null,null,null,"IBNRCY2017AY2010",0]
[null,null,{"$f":"XBRLMap(C74,C$88&\".\"&$U$4&\".\"&$U74&\".\"&$U$7,$B$95,$B$96,CONFIGURATION!$B$10,\"BMA\",CONFIGURATION!$B$1,\"bscr\",1000)","v":"Mapped"},{"$f":"XBRLMap(D74,D$88&\".\"&$U$4&\".\"&$U74&\".\"&$U$7,$B$95,$B$96,CONFIGURATION!$B$10,\"BMA\",CONFIGURATION!$B$1,\"bscr\",1000)","v":"Mapped"},{"$f":"XBRLMap(E74,E$88&\".\"&$U$4&\".\"&$U74&\".\"&$U$7,$B$95,$B$96,CONFIGURATION!$B$10,\"BMA\",CONFIGURATION!$B$1,\"bscr\",1000)","v":"Mapped"},{"$f":"XBRLMap(F74,F$88&\".\"&$U$4&\".\"&$U74&\".\"&$U$7,$B$95,$B$96,CONFIGURATION!$B$10,\"BMA\",CONFIGURATION!$B$1,\"bscr\",1000)","v":"Mapped"},{"$f":"XBRLMap(G74,G$88&\".\"&$U$4&\".\"&$U74&\".\"&$U$7,$B$95,$B$96,CONFIGURATION!$B$10,\"BMA\",CONFIGURATION!$B$1,\"bscr\",1000)","v":"Mapped"},{"$f":"XBRLMap(H74,H$88&\".\"&$U$4&\".\"&$U74&\".\"&$U$7,$B$95,$B$96,CONFIGURATION!$B$10,\"BMA\",CONFIGURATION!$B$1,\"bscr\",1000)","v":"Mapped"},null,{"$f":"XBRLMap(J74,J$88&\".\"&$U$4&\".\"&$V74&\".\"&$U$7,$B$95,$B$96,CONFIGURATION!$B$10,\"BMA\",CONFIGURATION!$B$1,\"bscr\",1000)","v":"Mapped"},{"$f":"XBRLMap(K74,K$88&\".\"&$U$4&\".\"&$V74&\".\"&$U$7,$B$95,$B$96,CONFIGURATION!$B$10,\"BMA\",CONFIGURATION!$B$1,\"bscr\",1000)","v":"Mapped"},{"$f":"XBRLMap(L74,L$88&\".\"&$U$4&\".\"&$V74&\".\"&$U$7,$B$95,$B$96,CONFIGURATION!$B$10,\"BMA\",CONFIGURATION!$B$1,\"bscr\",1000)","v":"Mapped"},{"$f":"XBRLMap(M74,M$88&\".\"&$U$4&\".\"&$V74&\".\"&$U$7,$B$95,$B$96,CONFIGURATION!$B$10,\"BMA\",CONFIGURATION!$B$1,\"bscr\",1000)","v":"Mapped"},null,null,null,"IBNRCY2017AY2011",0]
[null,null,{"$f":"XBRLMap(C75,C$88&\".\"&$U$4&\".\"&$U75&\".\"&$U$7,$B$95,$B$96,CONFIGURATION!$B$10,\"BMA\",CONFIGURATION!$B$1,\"bscr\",1000)","v":"Mapped"},{"$f":"XBRLMap(D75,D$88&\".\"&$U$4&\".\"&$U75&\".\"&$U$7,$B$95,$B$96,CONFIGURATION!$B$10,\"BMA\",CONFIGURATION!$B$1,\"bscr\",1000)","v":"Mapped"},{"$f":"XBRLMap(E75,E$88&\".\"&$U$4&\".\"&$U75&\".\"&$U$7,$B$95,$B$96,CONFIGURATION!$B$10,\"BMA\",CONFIGURATION!$B$1,\"bscr\",1000)","v":"Mapped"},{"$f":"XBRLMap(F75,F$88&\".\"&$U$4&\".\"&$U75&\".\"&$U$7,$B$95,$B$96,CONFIGURATION!$B$10,\"BMA\",CONFIGURATION!$B$1,\"bscr\",1000)","v":"Mapped"},{"$f":"XBRLMap(G75,G$88&\".\"&$U$4&\".\"&$U75&\".\"&$U$7,$B$95,$B$96,CONFIGURATION!$B$10,\"BMA\",CONFIGURATION!$B$1,\"bscr\",1000)","v":"Mapped"},{"$f":"XBRLMap(H75,H$88&\".\"&$U$4&\".\"&$U75&\".\"&$U$7,$B$95,$B$96,CONFIGURATION!$B$10,\"BMA\",CONFIGURATION!$B$1,\"bscr\",1000)","v":"Mapped"},null,{"$f":"XBRLMap(J75,J$88&\".\"&$U$4&\".\"&$V75&\".\"&$U$7,$B$95,$B$96,CONFIGURATION!$B$10,\"BMA\",CONFIGURATION!$B$1,\"bscr\",1000)","v":"Mapped"},{"$f":"XBRLMap(K75,K$88&\".\"&$U$4&\".\"&$V75&\".\"&$U$7,$B$95,$B$96,CONFIGURATION!$B$10,\"BMA\",CONFIGURATION!$B$1,\"bscr\",1000)","v":"Mapped"},{"$f":"XBRLMap(L75,L$88&\".\"&$U$4&\".\"&$V75&\".\"&$U$7,$B$95,$B$96,CONFIGURATION!$B$10,\"BMA\",CONFIGURATION!$B$1,\"bscr\",1000)","v":"Mapped"},{"$f":"XBRLMap(M75,M$88&\".\"&$U$4&\".\"&$V75&\".\"&$U$7,$B$95,$B$96,CONFIGURATION!$B$10,\"BMA\",CONFIGURATION!$B$1,\"bscr\",1000)","v":"Mapped"},null,null,null,"IBNRCY2017AY2012",0]
[null,null,{"$f":"XBRLMap(C76,C$88&\".\"&$U$4&\".\"&$U76&\".\"&$U$7,$B$95,$B$96,CONFIGURATION!$B$10,\"BMA\",CONFIGURATION!$B$1,\"bscr\",1000)","v":"Mapped"},{"$f":"XBRLMap(D76,D$88&\".\"&$U$4&\".\"&$U76&\".\"&$U$7,$B$95,$B$96,CONFIGURATION!$B$10,\"BMA\",CONFIGURATION!$B$1,\"bscr\",1000)","v":"Mapped"},{"$f":"XBRLMap(E76,E$88&\".\"&$U$4&\".\"&$U76&\".\"&$U$7,$B$95,$B$96,CONFIGURATION!$B$10,\"BMA\",CONFIGURATION!$B$1,\"bscr\",1000)","v":"Mapped"},{"$f":"XBRLMap(F76,F$88&\".\"&$U$4&\".\"&$U76&\".\"&$U$7,$B$95,$B$96,CONFIGURATION!$B$10,\"BMA\",CONFIGURATION!$B$1,\"bscr\",1000)","v":"Mapped"},{"$f":"XBRLMap(G76,G$88&\".\"&$U$4&\".\"&$U76&\".\"&$U$7,$B$95,$B$96,CONFIGURATION!$B$10,\"BMA\",CONFIGURATION!$B$1,\"bscr\",1000)","v":"Mapped"},{"$f":"XBRLMap(H76,H$88&\".\"&$U$4&\".\"&$U76&\".\"&$U$7,$B$95,$B$96,CONFIGURATION!$B$10,\"BMA\",CONFIGURATION!$B$1,\"bscr\",1000)","v":"Mapped"},null,{"$f":"XBRLMap(J76,J$88&\".\"&$U$4&\".\"&$V76&\".\"&$U$7,$B$95,$B$96,CONFIGURATION!$B$10,\"BMA\",CONFIGURATION!$B$1,\"bscr\",1000)","v":"Mapped"},{"$f":"XBRLMap(K76,K$88&\".\"&$U$4&\".\"&$V76&\".\"&$U$7,$B$95,$B$96,CONFIGURATION!$B$10,\"BMA\",CONFIGURATION!$B$1,\"bscr\",1000)","v":"Mapped"},{"$f":"XBRLMap(L76,L$88&\".\"&$U$4&\".\"&$V76&\".\"&$U$7,$B$95,$B$96,CONFIGURATION!$B$10,\"BMA\",CONFIGURATION!$B$1,\"bscr\",1000)","v":"Mapped"},{"$f":"XBRLMap(M76,M$88&\".\"&$U$4&\".\"&$V76&\".\"&$U$7,$B$95,$B$96,CONFIGURATION!$B$10,\"BMA\",CONFIGURATION!$B$1,\"bscr\",1000)","v":"Mapped"},null,null,null,"IBNRCY2017AY2013",0]
[null,null,{"$f":"XBRLMap(C77,C$88&\".\"&$U$4&\".\"&$U77&\".\"&$U$7,$B$95,$B$96,CONFIGURATION!$B$10,\"BMA\",CONFIGURATION!$B$1,\"bscr\",1000)","v":"Mapped"},{"$f":"XBRLMap(D77,D$88&\".\"&$U$4&\".\"&$U77&\".\"&$U$7,$B$95,$B$96,CONFIGURATION!$B$10,\"BMA\",CONFIGURATION!$B$1,\"bscr\",1000)","v":"Mapped"},{"$f":"XBRLMap(E77,E$88&\".\"&$U$4&\".\"&$U77&\".\"&$U$7,$B$95,$B$96,CONFIGURATION!$B$10,\"BMA\",CONFIGURATION!$B$1,\"bscr\",1000)","v":"Mapped"},{"$f":"XBRLMap(F77,F$88&\".\"&$U$4&\".\"&$U77&\".\"&$U$7,$B$95,$B$96,CONFIGURATION!$B$10,\"BMA\",CONFIGURATION!$B$1,\"bscr\",1000)","v":"Mapped"},{"$f":"XBRLMap(G77,G$88&\".\"&$U$4&\".\"&$U77&\".\"&$U$7,$B$95,$B$96,CONFIGURATION!$B$10,\"BMA\",CONFIGURATION!$B$1,\"bscr\",1000)","v":"Mapped"},{"$f":"XBRLMap(H77,H$88&\".\"&$U$4&\".\"&$U77&\".\"&$U$7,$B$95,$B$96,CONFIGURATION!$B$10,\"BMA\",CONFIGURATION!$B$1,\"bscr\",1000)","v":"Mapped"},null,{"$f":"XBRLMap(J77,J$88&\".\"&$U$4&\".\"&$V77&\".\"&$U$7,$B$95,$B$96,CONFIGURATION!$B$10,\"BMA\",CONFIGURATION!$B$1,\"bscr\",1000)","v":"Mapped"},{"$f":"XBRLMap(K77,K$88&\".\"&$U$4&\".\"&$V77&\".\"&$U$7,$B$95,$B$96,CONFIGURATION!$B$10,\"BMA\",CONFIGURATION!$B$1,\"bscr\",1000)","v":"Mapped"},{"$f":"XBRLMap(L77,L$88&\".\"&$U$4&\".\"&$V77&\".\"&$U$7,$B$95,$B$96,CONFIGURATION!$B$10,\"BMA\",CONFIGURATION!$B$1,\"bscr\",1000)","v":"Mapped"},{"$f":"XBRLMap(M77,M$88&\".\"&$U$4&\".\"&$V77&\".\"&$U$7,$B$95,$B$96,CONFIGURATION!$B$10,\"BMA\",CONFIGURATION!$B$1,\"bscr\",1000)","v":"Mapped"},null,null,null,"IBNRCY2017AY2014",0]
[null,null,null,null,null,null,null,null,null,null,null,null,null,null,null,null,"IBNRCY2017AY2015",0]
[null,null,null,null,null,null,null,null,null,null,null,null,null,null,null,null,"IBNRCY2017AY2016",0]
[null,null,null,null,null,null,null,null,null,null,null,null,null,null,null,null,"IBNRCY2017AY2017",0]
[null,null,null,null,null,null,null,null,null,null,null,null,null,null,null,null,{"$f":"\"IBNRCY\"&K$10&\"AY\"&B47","v":"IBNRCY2018AYPrior"},{"$f":"K47","v":0}]
[null,null,null,null,null,null,null,null,null,null,null,null,null,null,null,null,"IBNRCY2018AY2010",0]
[null,null,null,null,null,null,null,null,null,null,null,null,null,null,null,null,"IBNRCY2018AY2011",0]
[null,null,null,null,null,null,null,null,null,null,null,null,null,null,null,null,"IBNRCY2018AY2012",0]
[null,null,null,null,null,null,null,null,null,null,null,null,null,null,null,null,"IBNRCY2018AY2013",0]
[null,null,null,null,null,null,null,null,null,null,null,null,null,null,null,null,"IBNRCY2018AY2014",0]
[null,null,null,null,null,null,null,null,null,null,null,null,null,null,null,null,"IBNRCY2018AY2015",0]
[null,null,null,null,null,null,null,null,null,null,null,null,null,null,null,null,"IBNRCY2018AY2016",0]
[null,null,null,null,null,null,null,null,null,null,null,null,null,null,null,null,"IBNRCY2018AY2017",0]
[null,null,null,null,null,null,null,null,null,null,null,null,null,null,null,null,"IBNRCY2018AY2018",0]
[null,null,null,null,null,null,null,null,null,null,null,null,null,null,null,null,{"$f":"\"IBNRCY\"&L$10&\"AY\"&B47","v":"IBNRCY2019AYPrior"},{"$f":"L47","v":0}]
[null,null,null,null,null,null,null,null,null,null,null,null,null,null,null,null,"IBNRCY2019AY2010",0]
[null,null,null,null,null,null,null,null,null,null,null,null,null,null,null,null,"IBNRCY2019AY2011",0]
[null,null,null,null,null,null,null,null,null,null,null,null,null,null,null,null,"IBNRCY2019AY2012",0]
[null,null,null,null,null,null,null,null,null,null,null,null,null,null,null,null,"IBNRCY2019AY2013",0]
[null,null,null,null,null,null,null,null,null,null,null,null,null,null,null,null,"IBNRCY2019AY2014",0]
[null,null,null,null,null,null,null,null,null,null,null,null,null,null,null,null,"IBNRCY2019AY2015",0]
[null,null,null,null,null,null,null,null,null,null,null,null,null,null,null,null,"IBNRCY2019AY2016",0]
[null,null,null,null,null,null,null,null,null,null,null,null,null,null,null,null,"IBNRCY2019AY2017",0]
[null,null,null,null,null,null,null,null,null,null,null,null,null,null,null,null,"IBNRCY2019AY2018",0]
[null,null,null,null,null,null,null,null,null,null,null,null,null,null,null,null,"IBNRCY2019AY2019",0]
[null,null,null,null,null,null,null,null,null,null,null,null,null,null,null,null,{"$f":"\"GrossWP\"&$B68","v":"GrossWP2010"},{"$f":"C68","v":0}]
[null,null,null,null,null,null,null,null,null,null,null,null,null,null,null,null,"GrossWP2011",0]
[null,null,null,null,null,null,null,null,null,null,null,null,null,null,null,null,"GrossWP2012",0]
[null,null,null,null,null,null,null,null,null,null,null,null,null,null,null,null,"GrossWP2013",0]
[null,null,null,null,null,null,null,null,null,null,null,null,null,null,null,null,"GrossWP2014",0]
[null,null,null,null,null,null,null,null,null,null,null,null,null,null,null,null,"GrossWP2015",0]
[null,null,null,null,null,null,null,null,null,null,null,null,null,null,null,null,"GrossWP2016",0]
[null,null,null,null,null,null,null,null,null,null,null,null,null,null,null,null,"GrossWP2017",0]
[null,null,null,null,null,null,null,null,null,null,null,null,null,null,null,null,"GrossWP2018",0]
[null,null,null,null,null,null,null,null,null,null,null,null,null,null,null,null,"GrossWP2019",0]
[null,null,null,null,null,null,null,null,null,null,null,null,null,null,null,null,{"$f":"\"GrossEP\"&$B68","v":"GrossEP2010"},{"$f":"D68","v":0}]
[null,null,null,null,null,null,null,null,null,null,null,null,null,null,null,null,"GrossEP2011",0]
[null,null,null,null,null,null,null,null,null,null,null,null,null,null,null,null,"GrossEP2012",0]
[null,null,null,null,null,null,null,null,null,null,null,null,null,null,null,null,"GrossEP2013",0]
[null,null,null,null,null,null,null,null,null,null,null,null,null,null,null,null,"GrossEP2014",0]
[null,null,null,null,null,null,null,null,null,null,null,null,null,null,null,null,"GrossEP2015",0]
[null,null,null,null,null,null,null,null,null,null,null,null,null,null,null,null,"GrossEP2016",0]
[null,null,null,null,null,null,null,null,null,null,null,null,null,null,null,null,"GrossEP2017",0]
[null,null,null,null,null,null,null,null,null,null,null,null,null,null,null,null,"GrossEP2018",0]
[null,null,null,null,null,null,null,null,null,null,null,null,null,null,null,null,"GrossEP2019",0]
[null,null,null,null,null,null,null,null,null,null,null,null,null,null,null,null,{"$f":"\"NetWP\"&$B68","v":"NetWP2010"},{"$f":"E68","v":0}]
[null,null,null,null,null,null,null,null,null,null,null,null,null,null,null,null,"NetWP2011",0]
[null,null,null,null,null,null,null,null,null,null,null,null,null,null,null,null,"NetWP2012",0]
[null,null,null,null,null,null,null,null,null,null,null,null,null,null,null,null,"NetWP2013",0]
[null,null,null,null,null,null,null,null,null,null,null,null,null,null,null,null,"NetWP2014",0]
[null,null,null,null,null,null,null,null,null,null,null,null,null,null,null,null,"NetWP2015",0]
[null,null,null,null,null,null,null,null,null,null,null,null,null,null,null,null,"NetWP2016",0]
[null,null,null,null,null,null,null,null,null,null,null,null,null,null,null,null,"NetWP2017",0]
[null,null,null,null,null,null,null,null,null,null,null,null,null,null,null,null,"NetWP2018",0]
[null,null,null,null,null,null,null,null,null,null,null,null,null,null,null,null,"NetWP2019",0]
[null,null,null,null,null,null,null,null,null,null,null,null,null,null,null,null,{"$f":"\"NetEP\"&$B68","v":"NetEP2010"},{"$f":"F68","v":0}]
[null,null,null,null,null,null,null,null,null,null,null,null,null,null,null,null,"NetEP2011",0]
[null,null,null,null,null,null,null,null,null,null,null,null,null,null,null,null,"NetEP2012",0]
[null,null,null,null,null,null,null,null,null,null,null,null,null,null,null,null,"NetEP2013",0]
[null,null,null,null,null,null,null,null,null,null,null,null,null,null,null,null,"NetEP2014",0]
[null,null,null,null,null,null,null,null,null,null,null,null,null,null,null,null,"NetEP2015",0]
[null,null,null,null,null,null,null,null,null,null,null,null,null,null,null,null,"NetEP2016",0]
[null,null,null,null,null,null,null,null,null,null,null,null,null,null,null,null,"NetEP2017",0]
[null,null,null,null,null,null,null,null,null,null,null,null,null,null,null,null,"NetEP2018",0]
[null,null,null,null,null,null,null,null,null,null,null,null,null,null,null,null,"NetEP2019",0]
[null,null,null,null,null,null,null,null,null,null,null,null,null,null,null,null,{"$f":"\"NetAOEPaid\"&$B67","v":"NetAOEPaidPrior"},{"$f":"G67","v":0}]
[null,null,null,null,null,null,null,null,null,null,null,null,null,null,null,null,"NetAOEPaid2010",0]
[null,null,null,null,null,null,null,null,null,null,null,null,null,null,null,null,"NetAOEPaid2011",0]
[null,null,null,null,null,null,null,null,null,null,null,null,null,null,null,null,"NetAOEPaid2012",0]
[null,null,null,null,null,null,null,null,null,null,null,null,null,null,null,null,"NetAOEPaid2013",0]
[null,null,null,null,null,null,null,null,null,null,null,null,null,null,null,null,"NetAOEPaid2014",0]
[null,null,null,null,null,null,null,null,null,null,null,null,null,null,null,null,"NetAOEPaid2015",0]
[null,null,null,null,null,null,null,null,null,null,null,null,null,null,null,null,"NetAOEPaid2016",0]
[null,null,null,null,null,null,null,null,null,null,null,null,null,null,null,null,"NetAOEPaid2017",0]
[null,null,null,null,null,null,null,null,null,null,null,null,null,null,null,null,"NetAOEPaid2018",0]
[null,null,null,null,null,null,null,null,null,null,null,null,null,null,null,null,"NetAOEPaid2019",0]
[null,null,null,null,null,null,null,null,null,null,null,null,null,null,null,null,{"$f":"\"NetAOEIncurred\"&$B67","v":"NetAOEIncurredPrior"},{"$f":"H67","v":0}]
[null,null,null,null,null,null,null,null,null,null,null,null,null,null,null,null,"NetAOEIncurred2010",0]
[null,null,null,null,null,null,null,null,null,null,null,null,null,null,null,null,"NetAOEIncurred2011",0]
[null,null,null,null,null,null,null,null,null,null,null,null,null,null,null,null,"NetAOEIncurred2012",0]
[null,null,null,null,null,null,null,null,null,null,null,null,null,null,null,null,"NetAOEIncurred2013",0]
[null,null,null,null,null,null,null,null,null,null,null,null,null,null,null,null,"NetAOEIncurred2014",0]
[null,null,null,null,null,null,null,null,null,null,null,null,null,null,null,null,"NetAOEIncurred2015",0]
[null,null,null,null,null,null,null,null,null,null,null,null,null,null,null,null,"NetAOEIncurred2016",0]
[null,null,null,null,null,null,null,null,null,null,null,null,null,null,null,null,"NetAOEIncurred2017",0]
[null,null,null,null,null,null,null,null,null,null,null,null,null,null,null,null,"NetAOEIncurred2018",0]
[null,null,null,null,null,null,null,null,null,null,null,null,null,null,null,null,"NetAOEIncurred2019",0]
[null,null,null,null,null,null,null,null,null,null,null,null,null,null,null,null,{"$f":"\"Commission\"&$B67","v":"CommissionPrior"},{"$f":"J67","v":0}]
[null,null,null,null,null,null,null,null,null,null,null,null,null,null,null,null,"Commission2010",0]
[null,null,null,null,null,null,null,null,null,null,null,null,null,null,null,null,"Commission2011",0]
[null,null,null,null,null,null,null,null,null,null,null,null,null,null,null,null,"Commission2012",0]
[null,null,null,null,null,null,null,null,null,null,null,null,null,null,null,null,"Commission2013",0]
[null,null,null,null,null,null,null,null,null,null,null,null,null,null,null,null,"Commission2014",0]
[null,null,null,null,null,null,null,null,null,null,null,null,null,null,null,null,"Commission2015",0]
[null,null,null,null,null,null,null,null,null,null,null,null,null,null,null,null,"Commission2016",0]
[null,null,null,null,null,null,null,null,null,null,null,null,null,null,null,null,"Commission2017",0]
[null,null,null,null,null,null,null,null,null,null,null,null,null,null,null,null,"Commission2018",0]
[null,null,null,null,null,null,null,null,null,null,null,null,null,null,null,null,"Commission2019",0]
[null,null,null,null,null,null,null,null,null,null,null,null,null,null,null,null,{"$f":"\"AcqExp\"&$B67","v":"AcqExpPrior"},{"$f":"K67","v":0}]
[null,null,null,null,null,null,null,null,null,null,null,null,null,null,null,null,"AcqExp2010",0]
[null,null,null,null,null,null,null,null,null,null,null,null,null,null,null,null,"AcqExp2011",0]
[null,null,null,null,null,null,null,null,null,null,null,null,null,null,null,null,"AcqExp2012",0]
[null,null,null,null,null,null,null,null,null,null,null,null,null,null,null,null,"AcqExp2013",0]
[null,null,null,null,null,null,null,null,null,null,null,null,null,null,null,null,"AcqExp2014",0]
[null,null,null,null,null,null,null,null,null,null,null,null,null,null,null,null,"AcqExp2015",0]
[null,null,null,null,null,null,null,null,null,null,null,null,null,null,null,null,"AcqExp2016",0]
[null,null,null,null,null,null,null,null,null,null,null,null,null,null,null,null,"AcqExp2017",0]
[null,null,null,null,null,null,null,null,null,null,null,null,null,null,null,null,"AcqExp2018",0]
[null,null,null,null,null,null,null,null,null,null,null,null,null,null,null,null,"AcqExp2019",0]
[null,null,null,null,null,null,null,null,null,null,null,null,null,null,null,null,{"$f":"\"Taxes\"&$B67","v":"TaxesPrior"},{"$f":"L67","v":0}]
[null,null,null,null,null,null,null,null,null,null,null,null,null,null,null,null,"Taxes2010",0]
[null,null,null,null,null,null,null,null,null,null,null,null,null,null,null,null,"Taxes2011",0]
[null,null,null,null,null,null,null,null,null,null,null,null,null,null,null,null,"Taxes2012",0]
[null,null,null,null,null,null,null,null,null,null,null,null,null,null,null,null,"Taxes2013",0]
[null,null,null,null,null,null,null,null,null,null,null,null,null,null,null,null,"Taxes2014",0]
[null,null,null,null,null,null,null,null,null,null,null,null,null,null,null,null,"Taxes2015",0]
[null,null,null,null,null,null,null,null,null,null,null,null,null,null,null,null,"Taxes2016",0]
[null,null,null,null,null,null,null,null,null,null,null,null,null,null,null,null,"Taxes2017",0]
[null,null,null,null,null,null,null,null,null,null,null,null,null,null,null,null,"Taxes2018",0]
[null,null,null,null,null,null,null,null,null,null,null,null,null,null,null,null,"Taxes2019",0]
[null,null,null,null,null,null,null,null,null,null,null,null,null,null,null,null,{"$f":"\"GeneralOver\"&$B67","v":"GeneralOverPrior"},{"$f":"M67","v":0}]
[null,null,null,null,null,null,null,null,null,null,null,null,null,null,null,null,"GeneralOver2010",0]
[null,null,null,null,null,null,null,null,null,null,null,null,null,null,null,null,"GeneralOver2011",0]
[null,null,null,null,null,null,null,null,null,null,null,null,null,null,null,null,"GeneralOver2012",0]
[null,null,null,null,null,null,null,null,null,null,null,null,null,null,null,null,"GeneralOver2013",0]
[null,null,null,null,null,null,null,null,null,null,null,null,null,null,null,null,"GeneralOver2014",0]
[null,null,null,null,null,null,null,null,null,null,null,null,null,null,null,null,"GeneralOver2015",0]
[null,null,null,null,null,null,null,null,null,null,null,null,null,null,null,null,"GeneralOver2016",0]
[null,null,null,null,null,null,null,null,null,null,null,null,null,null,null,null,"GeneralOver2017",0]
[null,null,null,null,null,null,null,null,null,null,null,null,null,null,null,null,"GeneralOver2018",0]
[null,null,null,null,null,null,null,null,null,null,null,null,null,null,null,null,"GeneralOver2019",0]

{"sheet":"Sch XI(a)(iii)","index":66,"n_rows":300,"n_cols":48,"rows_kept":300,"cut":false,"hidden":false,"merged":[[80,1,82,12],[5,2,5,11],[59,6,59,7],[41,2,41,11],[0,13,0,14],[2,13,2,14],[2,1,2,2],[60,6,60,7],[23,2,23,11]]}
[null,"SCHEDULE OF LOSS TRIANGLES (LINE 3 - PROPERTY NON-PROPORTIONAL)",null,null,null,null,null,null,null,null,null,null,null,{"$f":"HYPERLINK(\"#'Index'!A1\",\"Return to Index\")","v":"Return to Index"}]
[null,{"$f":"'Company Information'!C7","v":"Enter Company Name"},null,null,null,null,null,null,null,null,null,null,null,null,null,null,null,null,null,null,null,null,null,null,null,null,null,null,null,null,null,null,null,null,null,"bma_Line3PropertyNonproportionalMember"]
[null,{"$f":"'Company Information'!C3","v":"2019-12-31"},null,null,null,null,null,null,null,null,null,null,null,"SCHEDULE XI(a)(iii)"]
[null,{"$f":"\"expressed in\"& IF(1000>1,\" ['\"&MID(1000,2,LEN(1000))&\"s]\",\"\")&\" \"&'Form 1EBS'!$C$4","v":"expressed in ['000s] United States Dollars"},null,null,null,null,null,null,null,null,null,null,null,null,null,null,null,null,null,null,"brrt_LineOfBusinessAxis_brrt_PropertyMember"]
[]
[null,"Accounting Basis: *","INCURRED (ESTIMATED ULTIMATE) NET LOSSES AND ALLOCATED LOSS ADJUSTMENT EXPENSES REPORTED AT YEAR END ($000)",null,null,null,null,null,null,null,null,null,11,12,13,null,"AcctBasis",{"$f":"B7","v":"Accident Year"},null,null,{"$f":"IF(B7=\"Accident Year\",\"brrt_AccountingBasisAxis_brrt_AccidentYearMember\",\"brrt_AccountingBasisAxis_brrt_AccountingYearMember\")","v":"brrt_AccountingBasisAxis_brrt_AccidentYearMember"}]
[null,"Accident Year",null,null,null,null,null,null,null,null,null,null,"Ultimate","Development","Development",null,{"$f":"\"UltCY\"&C$10&\"AY\"&B11","v":"UltCY2010AYPrior"},{"$f":"C11","v":0},{"$f":"\"CATUltCY\"&L$10&\"AY\"&B11","v":"CATUltCY2019AYPrior"},{"$f":"M11","v":0},"brrt_TypeOfContractAxis_brrt_NonProportionalMember",null,null,null,null,null,null,null,null,null,null,null,null,null,null,"bma_AcctBasis"]
[null,"Years in Which",1,2,3,4,5,6,7,8,9,10,"Catastrophe",null,null,null,{"$f":"\"UltCY\"&C$10&\"AY\"&B12","v":"UltCY2010AY2010"},{"$f":"C12","v":0},"CATUltCY2019AY2010",0]
[null,"Losses Were",null,null,null,null,null,null,null,null,null,null,"Losses","One Year","Two Year",null,{"$f":"\"UltCY\"&D$10&\"AY\"&B11","v":"UltCY2011AYPrior"},{"$f":"D11","v":0},"CATUltCY2019AY2011",0]
[null,"Incurred",{"$f":"D10-1","v":2010},2011,2012,2013,2014,2015,2016,2017,2018,{"$f":"YEAR('Company Information'!C3)","v":2019},{"$f":"L10","v":2019},"Development","Development",null,{"$f":"\"UltCY\"&D$10&\"AY\"&B12","v":"UltCY2011AY2010"},{"$f":"D12","v":0},"CATUltCY2019AY2012",0]
["L1","Prior",{"$f":"Import!I8000","v":0},{"$f":"Import!I8002","v":0},{"$f":"Import!I8005","v":0},{"$f":"Import!I8009","v":0},{"$f":"Import!I8014","v":0},{"$f":"Import!I8020","v":0},{"$f":"Import!I8027","v":0},{"$f":"Import!I8035","v":0},{"$f":"Import!I8044","v":0},{"$f":"Import!I8054","v":0},{"$f":"Import!I8065","v":0},{"$f":"K11-L11","v":0},{"$f":"J11-L11","v":0},null,{"$f":"\"UltCY\"&D$10&\"AY\"&B13","v":"UltCY2011AY2011"},{"$f":"D13","v":0},"CATUltCY2019AY2013",0,"brrt_LossIncurredYearAxis_brrt_PriorMember",null,null,null,null,null,null,null,null,null,null,null,null,null,null,{"$f":"\"bma_\"&\"UltCY\"&P$10&\"AY\"&$B11","v":"bma_UltCYAYPrior"},"bma_UltCYUltCY2011AY2010AYPrior","bma_UltCY0AYPrior",{"$f":"\"bma_\"&\"UltCY\"&S$10&\"AY\"&$B11","v":"bma_UltCYCATUltCY2019AY2012AYPrior"},{"$f":"\"bma_\"&\"UltCY\"&T$10&\"AY\"&$B11","v":"bma_UltCY0AYPrior"},{"$f":"\"bma_\"&\"UltCY\"&U$10&\"AY\"&$B11","v":"bma_UltCYAYPrior"},{"$f":"\"bma_\"&\"UltCY\"&V$10&\"AY\"&$B11","v":"bma_UltCYAYPrior"},{"$f":"\"bma_\"&\"UltCY\"&W$10&\"AY\"&$B11","v":"bma_UltCYAYPrior"},{"$f":"\"bma_\"&\"UltCY\"&X$10&\"AY\"&$B11","v":"bma_UltCYAYPrior"},{"$f":"\"bma_\"&\"UltCY\"&Y$10&\"AY\"&$B11","v":"bma_UltCYAYPrior"},{"$f":"\"bma_\"&\"CATUltCY\"&Y$10&\"AY\"&$B11","v":"bma_CATUltCYAYPrior"},{"$f":"\"bma_\"&\"UltCY\"&\"OneYearDevelopment\"&\"AY\"&$B11","v":"bma_UltCYOneYearDevelopmentAYPrior"},{"$f":"\"bma_\"&\"UltCY\"&\"TwoYearDevelopment\"&\"AY\"&$B11","v":"bma_UltCYTwoYearDevelopmentAYPrior"}]
["L2",{"$f":"B13-1","v":2010},{"$f":"Import!I8001","v":0},{"$f":"Import!I8003","v":0},{"$f":"Import!I8006","v":0},{"$f":"Import!I8010","v":0},{"$f":"Import!I8015","v":0},{"$f":"Import!I8021","v":0},{"$f":"Import!I8028","v":0},{"$f":"Import!I8036","v":0},{"$f":"Import!I8045","v":0},{"$f":"Import!I8055","v":0},{"$f":"Import!I8066","v":0},0,0,null,{"$f":"\"UltCY\"&E$10&\"AY\"&B11","v":"UltCY2012AYPrior"},{"$f":"E11","v":0},"CATUltCY2019AY2014",0,"brrt_LossIncurredYearAxis_brrt_XNMinus9Member",null,null,null,null,null,null,null,null,null,null,null,null,null,null,"bma_UltCYAY2010","bma_UltCYUltCY2011AY2010AY2010","bma_UltCY0AY2010",{"$f":"\"bma_\"&\"UltCY\"&S$10&\"AY\"&$B12","v":"bma_UltCYCATUltCY2019AY2012AY2010"},"bma_UltCY0AY2010","bma_UltCYAY2010","bma_UltCYAY2010","bma_UltCYAY2010","bma_UltCYAY2010","bma_UltCYAY2010",{"$f":"\"bma_\"&\"CATUltCY\"&Y$10&\"AY\"&$B12","v":"bma_CATUltCYAY2010"},{"$f":"\"bma_\"&\"UltCY\"&\"OneYearDevelopment\"&\"AY\"&$B12","v":"bma_UltCYOneYearDevelopmentAY2010"},{"$f":"\"bma_\"&\"UltCY\"&\"TwoYearDevelopment\"&\"AY\"&$B12","v":"bma_UltCYTwoYearDevelopmentAY2010"}]
["L3",2011,"XXX",{"$f":"Import!I8004","v":0},{"$f":"Import!I8007","v":0},{"$f":"Import!I8011","v":0},{"$f":"Import!I8016","v":0},{"$f":"Import!I8022","v":0},{"$f":"Import!I8029","v":0},{"$f":"Import!I8037","v":0},{"$f":"Import!I8046","v":0},{"$f":"Import!I8056","v":0},{"$f":"Import!I8067","v":0},0,0,null,{"$f":"\"UltCY\"&E$10&\"AY\"&B12","v":"UltCY2012AY2010"},{"$f":"E12","v":0},"CATUltCY2019AY2015",0,"brrt_LossIncurredYearAxis_brrt_XNMinus8Member",null,null,null,null,null,null,null,null,null,null,null,null,null,null,null,{"$f":"\"bma_\"&\"UltCY\"&Q$10&\"AY\"&$B13","v":"bma_UltCYUltCY2011AY2010AY2011"},{"$f":"\"bma_\"&\"UltCY\"&R$10&\"AY\"&$B13","v":"bma_UltCY0AY2011"},{"$f":"\"bma_\"&\"UltCY\"&S$10&\"AY\"&$B13","v":"bma_UltCYCATUltCY2019AY2012AY2011"},"bma_UltCY0AY2011","bma_UltCYAY2011","bma_UltCYAY2011","bma_UltCYAY2011","bma_UltCYAY2011","bma_UltCYAY2011","bma_CATUltCYAY2011","bma_UltCYOneYearDevelopmentAY2011","bma_UltCYTwoYearDevelopmentAY2011"]
["L4",2012,"XXX","XXX",{"$f":"Import!I8008","v":0},{"$f":"Import!I8012","v":0},{"$f":"Import!I8017","v":0},{"$f":"Import!I8023","v":0},{"$f":"Import!I8030","v":0},{"$f":"Import!I8038","v":0},{"$f":"Import!I8047","v":0},{"$f":"Import!I8057","v":0},{"$f":"Import!I8068","v":0},0,0,null,{"$f":"\"UltCY\"&E$10&\"AY\"&B13","v":"UltCY2012AY2011"},{"$f":"E13","v":0},"CATUltCY2019AY2016",0,"brrt_LossIncurredYearAxis_brrt_XNMinus7Member",null,null,null,null,null,null,null,null,null,null,null,null,null,null,null,null,{"$f":"\"bma_\"&\"UltCY\"&R$10&\"AY\"&$B14","v":"bma_UltCY0AY2012"},{"$f":"\"bma_\"&\"UltCY\"&S$10&\"AY\"&$B14","v":"bma_UltCYCATUltCY2019AY2012AY2012"},"bma_UltCY0AY2012","bma_UltCYAY2012","bma_UltCYAY2012","bma_UltCYAY2012","bma_UltCYAY2012","bma_UltCYAY2012","bma_CATUltCYAY2012","bma_UltCYOneYearDevelopmentAY2012","bma_UltCYTwoYearDevelopmentAY2012"]
["L5",2013,"XXX","XXX","XXX",{"$f":"Import!I8013","v":0},{"$f":"Import!I8018","v":0},{"$f":"Import!I8024","v":0},{"$f":"Import!I8031","v":0},{"$f":"Import!I8039","v":0},{"$f":"Import!I8048","v":0},{"$f":"Import!I8058","v":0},{"$f":"Import!I8069","v":0},0,0,null,{"$f":"\"UltCY\"&E$10&\"AY\"&B14","v":"UltCY2012AY2012"},{"$f":"E14","v":0},"CATUltCY2019AY2017",0,"brrt_LossIncurredYearAxis_brrt_XNMinus6Member",null,null,null,null,null,null,null,null,null,null,null,null,null,null,null,null,null,{"$f":"\"bma_\"&\"UltCY\"&S$10&\"AY\"&$B15","v":"bma_UltCYCATUltCY2019AY2012AY2013"},"bma_UltCY0AY2013","bma_UltCYAY2013","bma_UltCYAY2013","bma_UltCYAY2013","bma_UltCYAY2013","bma_UltCYAY2013","bma_CATUltCYAY2013","bma_UltCYOneYearDevelopmentAY2013","bma_UltCYTwoYearDevelopmentAY2013"]
["L6",2014,"XXX","XXX","XXX","XXX",{"$f":"Import!I8019","v":0},{"$f":"Import!I8025","v":0},{"$f":"Import!I8032","v":0},{"$f":"Import!I8040","v":0},{"$f":"Import!I8049","v":0},{"$f":"Import!I8059","v":0},{"$f":"Import!I8070","v":0},0,0,null,{"$f":"\"UltCY\"&F$10&\"AY\"&B11","v":"UltCY2013AYPrior"},{"$f":"F11","v":0},"CATUltCY2019AY2018",0,"brrt_LossIncurredYearAxis_brrt_XNMinus5Member",null,null,null,null,null,null,null,null,null,null,null,null,null,null,null,null,null,null,"bma_UltCY0AY2014","bma_UltCYAY2014","bma_UltCYAY2014","bma_UltCYAY2014","bma_UltCYAY2014","bma_UltCYAY2014","bma_CATUltCYAY2014","bma_UltCYOneYearDevelopmentAY2014","bma_UltCYTwoYearDevelopmentAY2014"]
["L7",2015,"XXX","XXX","XXX","XXX","XXX",{"$f":"Import!I8026","v":0},{"$f":"Import!I8033","v":0},{"$f":"Import!I8041","v":0},{"$f":"Import!I8050","v":0},{"$f":"Import!I8060","v":0},{"$f":"Import!I8071","v":0},0,0,null,{"$f":"\"UltCY\"&F$10&\"AY\"&B12","v":"UltCY2013AY2010"},{"$f":"F12","v":0},"CATUltCY2019AY2019",0,"brrt_LossIncurredYearAxis_brrt_XNMinus4Member",null,null,null,null,null,null,null,null,null,null,null,null,null,null,null,null,null,null,null,"bma_UltCYAY2015","bma_UltCYAY2015","bma_UltCYAY2015","bma_UltCYAY2015","bma_UltCYAY2015","bma_CATUltCYAY2015","bma_UltCYOneYearDevelopmentAY2015","bma_UltCYTwoYearDevelopmentAY2015"]
["L8",2016,"XXX","XXX","XXX","XXX","XXX","XXX",{"$f":"Import!I8034","v":0},{"$f":"Import!I8042","v":0},{"$f":"Import!I8051","v":0},{"$f":"Import!I8061","v":0},{"$f":"Import!I8072","v":0},0,0,null,{"$f":"\"UltCY\"&F$10&\"AY\"&B13","v":"UltCY2013AY2011"},{"$f":"F13","v":0},{"$f":"\"CATPaidCY\"&L$10&\"AY\"&B29","v":"CATPaidCY2019AYPrior"},{"$f":"M29","v":0},"brrt_LossIncurredYearAxis_brrt_XNMinus3Member",null,null,null,null,null,null,null,null,null,null,null,null,null,null,null,null,null,null,null,null,"bma_UltCYAY2016","bma_UltCYAY2016","bma_UltCYAY2016","bma_UltCYAY2016","bma_CATUltCYAY2016","bma_UltCYOneYearDevelopmentAY2016","bma_UltCYTwoYearDevelopmentAY2016"]
["L9",2017,"XXX","XXX","XXX","XXX","XXX","XXX","XXX",{"$f":"Import!I8043","v":0},{"$f":"Import!I8052","v":0},{"$f":"Import!I8062","v":0},{"$f":"Import!I8073","v":0},0,0,null,{"$f":"\"UltCY\"&F$10&\"AY\"&B14","v":"UltCY2013AY2012"},{"$f":"F14","v":0},"CATPaidCY2019AY2010",0,"brrt_LossIncurredYearAxis_brrt_XNMinus2Member",null,null,null,null,null,null,null,null,null,null,null,null,null,null,null,null,null,null,null,null,null,"bma_UltCYAY2017","bma_UltCYAY2017","bma_UltCYAY2017","bma_CATUltCYAY2017","bma_UltCYOneYearDevelopmentAY2017","bma_UltCYTwoYearDevelopmentAY2017"]
["L10",2018,"XXX","XXX","XXX","XXX","XXX","XXX","XXX","XXX",{"$f":"Import!I8053","v":0},{"$f":"Import!I8063","v":0},{"$f":"Import!I8074","v":0},0,"XXX",null,{"$f":"\"UltCY\"&F$10&\"AY\"&B15","v":"UltCY2013AY2013"},{"$f":"F15","v":0},"CATPaidCY2019AY2011",0,"brrt_LossIncurredYearAxis_brrt_XNMinus1Member",null,null,null,null,null,null,null,null,null,null,null,null,null,null,null,null,null,null,null,null,null,null,"bma_UltCYAY2018","bma_UltCYAY2018","bma_CATUltCYAY2018","bma_UltCYOneYearDevelopmentAY2018"]
["L11",{"$f":"L10","v":2019},"XXX","XXX","XXX","XXX","XXX","XXX","XXX","XXX","XXX",{"$f":"Import!I8064","v":0},{"$f":"Import!I8075","v":0},"XXX","XXX",null,{"$f":"\"UltCY\"&G$10&\"AY\"&B11","v":"UltCY2014AYPrior"},{"$f":"G11","v":0},"CATPaidCY2019AY2012",0,"brrt_LossIncurredYearAxis_brrt_XNMember",null,null,null,null,null,null,null,null,null,null,null,null,null,null,null,null,null,null,null,null,null,null,null,"bma_UltCYAY2019","bma_CATUltCYAY2019"]
["L12","Totals",null,null,null,null,null,null,null,null,null,null,{"$f":"SUM(M11:M21)","v":0},{"$f":"SUM(N11:N21)","v":0},{"$f":"SUM(O11:O21)","v":0},null,{"$f":"\"UltCY\"&G$10&\"AY\"&B12","v":"UltCY2014AY2010"},{"$f":"G12","v":0},"CATPaidCY2019AY2013",0,null,null,null,null,null,null,null,null,null,null,null,null,null,null,null,null,null,null,null,null,null,null,null,null,null,"bma_CATUltCYAYTotals","bma_UltCYOneYearDevelopmentAYTotals",{"$f":"\"bma_\"&\"UltCY\"&\"TwoYearDevelopment\"&\"AY\"&$B22","v":"bma_UltCYTwoYearDevelopmentAYTotals"}]
[null,null,null,null,null,null,null,null,null,null,null,null,null,null,null,null,{"$f":"\"UltCY\"&G$10&\"AY\"&B13","v":"UltCY2014AY2011"},{"$f":"G13","v":0},"CATPaidCY2019AY2014",0]
[null,null,"CUMULATIVE PAID NET LOSSES AND ALLOCATED LOSS ADJUSTMENT EXPENSES REPORTED AT YEAR END ($000)",null,null,null,null,null,null,null,null,null,24,null,null,null,{"$f":"\"UltCY\"&G$10&\"AY\"&B15","v":"UltCY2014AY2013"},{"$f":"G15","v":0},{"$f":"\"CATPaidCY\"&L$10&\"AY\"&B36","v":"CATPaidCY2019AY2016"},{"$f":"M36","v":0}]
[null,null,null,null,null,null,null,null,null,null,null,null,"Paid",null,null,null,{"$f":"\"UltCY\"&G$10&\"AY\"&B16","v":"UltCY2014AY2014"},{"$f":"G16","v":0},{"$f":"\"CATPaidCY\"&L$10&\"AY\"&B37","v":"CATPaidCY2019AY2017"},{"$f":"M37","v":0}]
[null,"Years in Which",14,15,16,17,18,19,20,21,22,23,"Catastrophe",null,null,null,{"$f":"\"UltCY\"&H$10&\"AY\"&B11","v":"UltCY2015AYPrior"},{"$f":"H11","v":0},{"$f":"\"CATPaidCY\"&L$10&\"AY\"&B38","v":"CATPaidCY2019AY2018"},{"$f":"M38","v":0}]
[null,"Policies Were",null,null,null,null,null,null,null,null,null,null,"Losses",null,null,null,"UltCY2015AY2010",0,{"$f":"\"CATPaidCY\"&L$10&\"AY\"&B39","v":"CATPaidCY2019AY2019"},{"$f":"M39","v":0}]
[null,"Written",{"$f":"D28-1","v":2010},2011,2012,2013,2014,2015,2016,2017,2018,{"$f":"L10","v":2019},{"$f":"L28","v":2019},null,null,null,"UltCY2015AY2011",0,{"$f":"\"CATIBNRCY\"&L$10&\"AY\"&B47","v":"CATIBNRCY2019AYPrior"},{"$f":"M47","v":0}]
["L13","Prior",{"$f":"Import!I8076","v":0},{"$f":"Import!I8078","v":0},{"$f":"Import!I8081","v":0},{"$f":"Import!I8085","v":0},{"$f":"Import!I8090","v":0},{"$f":"Import!I8096","v":0},{"$f":"Import!I8103","v":0},{"$f":"Import!I8111","v":0},{"$f":"Import!I8120","v":0},{"$f":"Import!I8130","v":0},{"$f":"Import!I8141","v":0},null,null,null,"UltCY2015AY2012",0,"CATIBNRCY2019AY2010",0,"brrt_PoliciesWrittenYearAxis_brrt_PriorMember",null,null,null,null,null,null,null,null,null,null,null,null,null,null,{"$f":"\"bma_\"&\"PaidCY\"&P$10&\"AY\"&$B29","v":"bma_PaidCYAYPrior"},"bma_PaidCYUltCY2011AY2010AYPrior","bma_PaidCY0AYPrior","bma_PaidCYCATUltCY2019AY2012AYPrior",{"$f":"\"bma_\"&\"PaidCY\"&T$10&\"AY\"&$B29","v":"bma_PaidCY0AYPrior"},{"$f":"\"bma_\"&\"PaidCY\"&U$10&\"AY\"&$B29","v":"bma_PaidCYAYPrior"},{"$f":"\"bma_\"&\"PaidCY\"&V$10&\"AY\"&$B29","v":"bma_PaidCYAYPrior"},{"$f":"\"bma_\"&\"PaidCY\"&W$10&\"AY\"&$B29","v":"bma_PaidCYAYPrior"},{"$f":"\"bma_\"&\"PaidCY\"&X$10&\"AY\"&$B29","v":"bma_PaidCYAYPrior"},{"$f":"\"bma_\"&\"PaidCY\"&Y$10&\"AY\"&$B29","v":"bma_PaidCYAYPrior"},{"$f":"\"bma_\"&\"CATPaidCY\"&Y$10&\"AY\"&$B29","v":"bma_CATPaidCYAYPrior"}]
["L14",{"$f":"B31-1","v":2010},{"$f":"Import!I8077","v":0},{"$f":"Import!I8079","v":0},{"$f":"Import!I8082","v":0},{"$f":"Import!I8086","v":0},{"$f":"Import!I8091","v":0},{"$f":"Import!I8097","v":0},{"$f":"Import!I8104","v":0},{"$f":"Import!I8112","v":0},{"$f":"Import!I8121","v":0},{"$f":"Import!I8131","v":0},{"$f":"Import!I8142","v":0},null,null,null,"UltCY2015AY2013",0,"CATIBNRCY2019AY2011",0,"brrt_PoliciesWrittenYearAxis_brrt_XNMinus9Member",null,null,null,null,null,null,null,null,null,null,null,null,null,null,"bma_PaidCYAY2010","bma_PaidCYUltCY2011AY2010AY2010","bma_PaidCY0AY2010","bma_PaidCYCATUltCY2019AY2012AY2010","bma_PaidCY0AY2010","bma_PaidCYAY2010","bma_PaidCYAY2010","bma_PaidCYAY2010","bma_PaidCYAY2010","bma_PaidCYAY2010","bma_CATPaidCYAY2010"]
["L15",2011,"XXX",{"$f":"Import!I8080","v":0},{"$f":"Import!I8083","v":0},{"$f":"Import!I8087","v":0},{"$f":"Import!I8092","v":0},{"$f":"Import!I8098","v":0},{"$f":"Import!I8105","v":0},{"$f":"Import!I8113","v":0},{"$f":"Import!I8122","v":0},{"$f":"Import!I8132","v":0},{"$f":"Import!I8143","v":0},null,null,null,"UltCY2015AY2014",0,"CATIBNRCY2019AY2012",0,"brrt_PoliciesWrittenYearAxis_brrt_XNMinus8Member",null,null,null,null,null,null,null,null,null,null,null,null,null,null,null,{"$f":"\"bma_\"&\"PaidCY\"&Q$10&\"AY\"&$B31","v":"bma_PaidCYUltCY2011AY2010AY2011"},{"$f":"\"bma_\"&\"PaidCY\"&R$10&\"AY\"&$B31","v":"bma_PaidCY0AY2011"},{"$f":"\"bma_\"&\"PaidCY\"&S$10&\"AY\"&$B31","v":"bma_PaidCYCATUltCY2019AY2012AY2011"},"bma_PaidCY0AY2011","bma_PaidCYAY2011","bma_PaidCYAY2011","bma_PaidCYAY2011","bma_PaidCYAY2011","bma_PaidCYAY2011","bma_CATPaidCYAY2011"]
["L16",2012,"XXX","XXX",{"$f":"Import!I8084","v":0},{"$f":"Import!I8088","v":0},{"$f":"Import!I8093","v":0},{"$f":"Import!I8099","v":0},{"$f":"Import!I8106","v":0},{"$f":"Import!I8114","v":0},{"$f":"Import!I8123","v":0},{"$f":"Import!I8133","v":0},{"$f":"Import!I8144","v":0},null,null,null,"UltCY2015AY2015",0,"CATIBNRCY2019AY2013",0,"brrt_PoliciesWrittenYearAxis_brrt_XNMinus7Member",null,null,null,null,null,null,null,null,null,null,null,null,null,null,null,null,{"$f":"\"bma_\"&\"PaidCY\"&R$10&\"AY\"&$B32","v":"bma_PaidCY0AY2012"},{"$f":"\"bma_\"&\"PaidCY\"&S$10&\"AY\"&$B32","v":"bma_PaidCYCATUltCY2019AY2012AY2012"},"bma_PaidCY0AY2012","bma_PaidCYAY2012","bma_PaidCYAY2012","bma_PaidCYAY2012","bma_PaidCYAY2012","bma_PaidCYAY2012","bma_CATPaidCYAY2012"]
["L17",2013,"XXX","XXX","XXX",{"$f":"Import!I8089","v":0},{"$f":"Import!I8094","v":0},{"$f":"Import!I8100","v":0},{"$f":"Import!I8107","v":0},{"$f":"Import!I8115","v":0},{"$f":"Import!I8124","v":0},{"$f":"Import!I8134","v":0},{"$f":"Import!I8145","v":0},null,null,null,{"$f":"\"UltCY\"&I$10&\"AY\"&B11","v":"UltCY2016AYPrior"},{"$f":"I11","v":0},"CATIBNRCY2019AY2014",0,"brrt_PoliciesWrittenYearAxis_brrt_XNMinus6Member",null,null,null,null,null,null,null,null,null,null,null,null,null,null,null,null,null,{"$f":"\"bma_\"&\"PaidCY\"&S$10&\"AY\"&$B33","v":"bma_PaidCYCATUltCY2019AY2012AY2013"},"bma_PaidCY0AY2013","bma_PaidCYAY2013","bma_PaidCYAY2013","bma_PaidCYAY2013","bma_PaidCYAY2013","bma_PaidCYAY2013","bma_CATPaidCYAY2013"]
["L18",2014,"XXX","XXX","XXX","XXX",{"$f":"Import!I8095","v":0},{"$f":"Import!I8101","v":0},{"$f":"Import!I8108","v":0},{"$f":"Import!I8116","v":0},{"$f":"Import!I8125","v":0},{"$f":"Import!I8135","v":0},{"$f":"Import!I8146","v":0},null,null,null,"UltCY2016AY2010",0,"CATIBNRCY2019AY2015",0,"brrt_PoliciesWrittenYearAxis_brrt_XNMinus5Member",null,null,null,null,null,null,null,null,null,null,null,null,null,null,null,null,null,null,"bma_PaidCY0AY2014","bma_PaidCYAY2014","bma_PaidCYAY2014","bma_PaidCYAY2014","bma_PaidCYAY2014","bma_PaidCYAY2014","bma_CATPaidCYAY2014"]
["L19",2015,"XXX","XXX","XXX","XXX","XXX",{"$f":"Import!I8102","v":0},{"$f":"Import!I8109","v":0},{"$f":"Import!I8117","v":0},{"$f":"Import!I8126","v":0},{"$f":"Import!I8136","v":0},{"$f":"Import!I8147","v":0},null,null,null,"UltCY2016AY2011",0,"CATIBNRCY2019AY2016",0,"brrt_PoliciesWrittenYearAxis_brrt_XNMinus4Member",null,null,null,null,null,null,null,null,null,null,null,null,null,null,null,null,null,null,null,{"$f":"\"bma_\"&\"PaidCY\"&U$10&\"AY\"&$B35","v":"bma_PaidCYAY2015"},{"$f":"\"bma_\"&\"PaidCY\"&V$10&\"AY\"&$B35","v":"bma_PaidCYAY2015"},{"$f":"\"bma_\"&\"PaidCY\"&W$10&\"AY\"&$B35","v":"bma_PaidCYAY2015"},{"$f":"\"bma_\"&\"PaidCY\"&X$10&\"AY\"&$B35","v":"bma_PaidCYAY2015"},{"$f":"\"bma_\"&\"PaidCY\"&Y$10&\"AY\"&$B35","v":"bma_PaidCYAY2015"},"bma_CATPaidCYAY2015"]
["L20",2016,"XXX","XXX","XXX","XXX","XXX","XXX",{"$f":"Import!I8110","v":0},{"$f":"Import!I8118","v":0},{"$f":"Import!I8127","v":0},{"$f":"Import!I8137","v":0},{"$f":"Import!I8148","v":0},null,null,null,"UltCY2016AY2012",0,"CATIBNRCY2019AY2017",0,"brrt_PoliciesWrittenYearAxis_brrt_XNMinus3Member",null,null,null,null,null,null,null,null,null,null,null,null,null,null,null,null,null,null,null,null,{"$f":"\"bma_\"&\"PaidCY\"&V$10&\"AY\"&$B36","v":"bma_PaidCYAY2016"},{"$f":"\"bma_\"&\"PaidCY\"&W$10&\"AY\"&$B36","v":"bma_PaidCYAY2016"},{"$f":"\"bma_\"&\"PaidCY\"&X$10&\"AY\"&$B36","v":"bma_PaidCYAY2016"},{"$f":"\"bma_\"&\"PaidCY\"&Y$10&\"AY\"&$B36","v":"bma_PaidCYAY2016"},"bma_CATPaidCYAY2016"]
["L21",2017,"XXX","XXX","XXX","XXX","XXX","XXX","XXX",{"$f":"Import!I8119","v":0},{"$f":"Import!I8128","v":0},{"$f":"Import!I8138","v":0},{"$f":"Import!I8149","v":0},null,null,null,"UltCY2016AY2013",0,"CATIBNRCY2019AY2018",0,"brrt_PoliciesWrittenYearAxis_brrt_XNMinus2Member",null,null,null,null,null,null,null,null,null,null,null,null,null,null,null,null,null,null,null,null,null,{"$f":"\"bma_\"&\"PaidCY\"&W$10&\"AY\"&$B37","v":"bma_PaidCYAY2017"},{"$f":"\"bma_\"&\"PaidCY\"&X$10&\"AY\"&$B37","v":"bma_PaidCYAY2017"},{"$f":"\"bma_\"&\"PaidCY\"&Y$10&\"AY\"&$B37","v":"bma_PaidCYAY2017"},"bma_CATPaidCYAY2017"]
["L22",2018,"XXX","XXX","XXX","XXX","XXX","XXX","XXX","XXX",{"$f":"Import!I8129","v":0},{"$f":"Import!I8139","v":0},{"$f":"Import!I8150","v":0},null,null,null,"UltCY2016AY2014",0,"CATIBNRCY2019AY2019",0,"brrt_PoliciesWrittenYearAxis_brrt_XNMinus1Member",null,null,null,null,null,null,null,null,null,null,null,null,null,null,null,null,null,null,null,null,null,null,{"$f":"\"bma_\"&\"PaidCY\"&X$10&\"AY\"&$B38","v":"bma_PaidCYAY2018"},{"$f":"\"bma_\"&\"PaidCY\"&Y$10&\"AY\"&$B38","v":"bma_PaidCYAY2018"},"bma_CATPaidCYAY2018"]
["L23",{"$f":"L28","v":2019},"XXX","XXX","XXX","XXX","XXX","XXX","XXX","XXX","XXX",{"$f":"Import!I8140","v":0},{"$f":"Import!I8151","v":0},null,null,null,"UltCY2016AY2015",0,null,null,"brrt_PoliciesWrittenYearAxis_brrt_XNMember",null,null,null,null,null,null,null,null,null,null,null,null,null,null,null,null,null,null,null,null,null,null,null,{"$f":"\"bma_\"&\"PaidCY\"&Y$10&\"AY\"&$B39","v":"bma_PaidCYAY2019"},"bma_CATPaidCYAY2019"]
["L24","Totals",null,null,null,null,null,null,null,null,null,null,{"$f":"SUM(M29:M39)","v":0},null,null,null,"UltCY2016AY2016",0,null,null,null,null,null,null,null,null,null,null,null,null,null,null,null,null,null,null,null,null,null,null,null,null,null,null,null,"bma_CATPaidCYAYTotals"]
[null,null,null,null,null,null,null,null,null,null,null,null,null,null,null,null,{"$f":"\"UltCY\"&J$10&\"AY\"&B11","v":"UltCY2017AYPrior"},{"$f":"J11","v":0}]
[null,null,"BULK & IBNR RESERVES ON NET LOSSES AND ALLOCATED LOSS ADJUSTMENT EXPENSES REPORTED AT YEAR END ($000)",null,null,null,null,null,null,null,null,null,35,null,null,null,{"$f":"\"UltCY\"&J$10&\"AY\"&B13","v":"UltCY2017AY2011"},{"$f":"J13","v":0}]
[null,null,null,null,null,null,null,null,null,null,null,null,"Losses",null,null,null,"UltCY2017AY2012",0]
[null,"Years in Which",25,26,27,28,29,30,31,32,33,34,"Bulk & IBNR",null,null,null,"UltCY2017AY2013",0]
[null,"Policies Were",null,null,null,null,null,null,null,null,null,null,"Reserves",null,null,null,"UltCY2017AY2014",0]
[null,"Written",{"$f":"D46-1","v":2010},2011,2012,2013,2014,2015,2016,2017,2018,{"$f":"L28","v":2019},{"$f":"L46","v":2019},null,null,null,"UltCY2017AY2015",0]
["L25","Prior",{"$f":"Import!I8152","v":0},{"$f":"Import!I8154","v":0},{"$f":"Import!I8157","v":0},{"$f":"Import!I8161","v":0},{"$f":"Import!I8166","v":0},{"$f":"Import!I8172","v":0},{"$f":"Import!I8179","v":0},{"$f":"Import!I8187","v":0},{"$f":"Import!I8196","v":0},{"$f":"Import!I8206","v":0},{"$f":"Import!I8217","v":0},null,null,null,"UltCY2017AY2016",0,null,null,"brrt_PoliciesWrittenYearAxis_brrt_PriorMember",null,null,null,null,null,null,null,null,null,null,null,null,null,null,{"$f":"\"bma_\"&\"IBNRCY\"&P$10&\"AY\"&$B47","v":"bma_IBNRCYAYPrior"},"bma_IBNRCYUltCY2011AY2010AYPrior","bma_IBNRCY0AYPrior","bma_IBNRCYCATUltCY2019AY2012AYPrior",{"$f":"\"bma_\"&\"IBNRCY\"&T$10&\"AY\"&$B47","v":"bma_IBNRCY0AYPrior"},{"$f":"\"bma_\"&\"IBNRCY\"&U$10&\"AY\"&$B47","v":"bma_IBNRCYAYPrior"},{"$f":"\"bma_\"&\"IBNRCY\"&V$10&\"AY\"&$B47","v":"bma_IBNRCYAYPrior"},{"$f":"\"bma_\"&\"IBNRCY\"&W$10&\"AY\"&$B47","v":"bma_IBNRCYAYPrior"},{"$f":"\"bma_\"&\"IBNRCY\"&X$10&\"AY\"&$B47","v":"bma_IBNRCYAYPrior"},{"$f":"\"bma_\"&\"IBNRCY\"&Y$10&\"AY\"&$B47","v":"bma_IBNRCYAYPrior"},{"$f":"\"bma_\"&\"CATIBNRCY\"&Y$10&\"AY\"&$B47","v":"bma_CATIBNRCYAYPrior"}]
["L26",{"$f":"B49-1","v":2010},{"$f":"Import!I8153","v":0},{"$f":"Import!I8155","v":0},{"$f":"Import!I8158","v":0},{"$f":"Import!I8162","v":0},{"$f":"Import!I8167","v":0},{"$f":"Import!I8173","v":0},{"$f":"Import!I8180","v":0},{"$f":"Import!I8188","v":0},{"$f":"Import!I8197","v":0},{"$f":"Import!I8207","v":0},{"$f":"Import!I8218","v":0},null,null,null,"UltCY2017AY2017",0,null,null,"brrt_PoliciesWrittenYearAxis_brrt_XNMinus9Member",null,null,null,null,null,null,null,null,null,null,null,null,null,null,"bma_IBNRCYAY2010","bma_IBNRCYUltCY2011AY2010AY2010","bma_IBNRCY0AY2010","bma_IBNRCYCATUltCY2019AY2012AY2010","bma_IBNRCY0AY2010","bma_IBNRCYAY2010","bma_IBNRCYAY2010","bma_IBNRCYAY2010","bma_IBNRCYAY2010","bma_IBNRCYAY2010","bma_CATIBNRCYAY2010"]
["L27",2011,"XXX",{"$f":"Import!I8156","v":0},{"$f":"Import!I8159","v":0},{"$f":"Import!I8163","v":0},{"$f":"Import!I8168","v":0},{"$f":"Import!I8174","v":0},{"$f":"Import!I8181","v":0},{"$f":"Import!I8189","v":0},{"$f":"Import!I8198","v":0},{"$f":"Import!I8208","v":0},{"$f":"Import!I8219","v":0},null,null,null,{"$f":"\"UltCY\"&K$10&\"AY\"&B11","v":"UltCY2018AYPrior"},{"$f":"K11","v":0},null,null,"brrt_PoliciesWrittenYearAxis_brrt_XNMinus8Member",null,null,null,null,null,null,null,null,null,null,null,null,null,null,null,{"$f":"\"bma_\"&\"IBNRCY\"&Q$10&\"AY\"&$B49","v":"bma_IBNRCYUltCY2011AY2010AY2011"},{"$f":"\"bma_\"&\"IBNRCY\"&R$10&\"AY\"&$B49","v":"bma_IBNRCY0AY2011"},{"$f":"\"bma_\"&\"IBNRCY\"&S$10&\"AY\"&$B49","v":"bma_IBNRCYCATUltCY2019AY2012AY2011"},"bma_IBNRCY0AY2011","bma_IBNRCYAY2011","bma_IBNRCYAY2011","bma_IBNRCYAY2011","bma_IBNRCYAY2011","bma_IBNRCYAY2011","bma_CATIBNRCYAY2011"]
["L28",2012,"XXX","XXX",{"$f":"Import!I8160","v":0},{"$f":"Import!I8164","v":0},{"$f":"Import!I8169","v":0},{"$f":"Import!I8175","v":0},{"$f":"Import!I8182","v":0},{"$f":"Import!I8190","v":0},{"$f":"Import!I8199","v":0},{"$f":"Import!I8209","v":0},{"$f":"Import!I8220","v":0},null,null,null,"UltCY2018AY2010",0,null,null,"brrt_PoliciesWrittenYearAxis_brrt_XNMinus7Member",null,null,null,null,null,null,null,null,null,null,null,null,null,null,null,null,{"$f":"\"bma_\"&\"IBNRCY\"&R$10&\"AY\"&$B50","v":"bma_IBNRCY0AY2012"},{"$f":"\"bma_\"&\"IBNRCY\"&S$10&\"AY\"&$B50","v":"bma_IBNRCYCATUltCY2019AY2012AY2012"},"bma_IBNRCY0AY2012","bma_IBNRCYAY2012","bma_IBNRCYAY2012","bma_IBNRCYAY2012","bma_IBNRCYAY2012","bma_IBNRCYAY2012","bma_CATIBNRCYAY2012"]
["L29",2013,"XXX","XXX","XXX",{"$f":"Import!I8165","v":0},{"$f":"Import!I8170","v":0},{"$f":"Import!I8176","v":0},{"$f":"Import!I8183","v":0},{"$f":"Import!I8191","v":0},{"$f":"Import!I8200","v":0},{"$f":"Import!I8210","v":0},{"$f":"Import!I8221","v":0},null,null,null,"UltCY2018AY2011",0,null,null,"brrt_PoliciesWrittenYearAxis_brrt_XNMinus6Member",null,null,null,null,null,null,null,null,null,null,null,null,null,null,null,null,null,{"$f":"\"bma_\"&\"IBNRCY\"&S$10&\"AY\"&$B51","v":"bma_IBNRCYCATUltCY2019AY2012AY2013"},"bma_IBNRCY0AY2013","bma_IBNRCYAY2013","bma_IBNRCYAY2013","bma_IBNRCYAY2013","bma_IBNRCYAY2013","bma_IBNRCYAY2013","bma_CATIBNRCYAY2013"]
["L30",2014,"XXX","XXX","XXX","XXX",{"$f":"Import!I8171","v":0},{"$f":"Import!I8177","v":0},{"$f":"Import!I8184","v":0},{"$f":"Import!I8192","v":0},{"$f":"Import!I8201","v":0},{"$f":"Import!I8211","v":0},{"$f":"Import!I8222","v":0},null,null,null,"UltCY2018AY2012",0,null,null,"brrt_PoliciesWrittenYearAxis_brrt_XNMinus5Member",null,null,null,null,null,null,null,null,null,null,null,null,null,null,null,null,null,null,"bma_IBNRCY0AY2014","bma_IBNRCYAY2014","bma_IBNRCYAY2014","bma_IBNRCYAY2014","bma_IBNRCYAY2014","bma_IBNRCYAY2014","bma_CATIBNRCYAY2014"]
["L31",2015,"XXX","XXX","XXX","XXX","XXX",{"$f":"Import!I8178","v":0},{"$f":"Import!I8185","v":0},{"$f":"Import!I8193","v":0},{"$f":"Import!I8202","v":0},{"$f":"Import!I8212","v":0},{"$f":"Import!I8223","v":0},null,null,null,"UltCY2018AY2013",0,null,null,"brrt_PoliciesWrittenYearAxis_brrt_XNMinus4Member",null,null,null,null,null,null,null,null,null,null,null,null,null,null,null,null,null,null,null,{"$f":"\"bma_\"&\"IBNRCY\"&U$10&\"AY\"&$B53","v":"bma_IBNRCYAY2015"},{"$f":"\"bma_\"&\"IBNRCY\"&V$10&\"AY\"&$B53","v":"bma_IBNRCYAY2015"},{"$f":"\"bma_\"&\"IBNRCY\"&W$10&\"AY\"&$B53","v":"bma_IBNRCYAY2015"},{"$f":"\"bma_\"&\"IBNRCY\"&X$10&\"AY\"&$B53","v":"bma_IBNRCYAY2015"},{"$f":"\"bma_\"&\"IBNRCY\"&Y$10&\"AY\"&$B53","v":"bma_IBNRCYAY2015"},"bma_CATIBNRCYAY2015"]
["L32",2016,"XXX","XXX","XXX","XXX","XXX","XXX",{"$f":"Import!I8186","v":0},{"$f":"Import!I8194","v":0},{"$f":"Import!I8203","v":0},{"$f":"Import!I8213","v":0},{"$f":"Import!I8224","v":0},null,null,null,"UltCY2018AY2014",0,null,null,"brrt_PoliciesWrittenYearAxis_brrt_XNMinus3Member",null,null,null,null,null,null,null,null,null,null,null,null,null,null,null,null,null,null,null,null,{"$f":"\"bma_\"&\"IBNRCY\"&V$10&\"AY\"&$B54","v":"bma_IBNRCYAY2016"},{"$f":"\"bma_\"&\"IBNRCY\"&W$10&\"AY\"&$B54","v":"bma_IBNRCYAY2016"},{"$f":"\"bma_\"&\"IBNRCY\"&X$10&\"AY\"&$B54","v":"bma_IBNRCYAY2016"},{"$f":"\"bma_\"&\"IBNRCY\"&Y$10&\"AY\"&$B54","v":"bma_IBNRCYAY2016"},"bma_CATIBNRCYAY2016"]
["L33",2017,"XXX","XXX","XXX","XXX","XXX","XXX","XXX",{"$f":"Import!I8195","v":0},{"$f":"Import!I8204","v":0},{"$f":"Import!I8214","v":0},{"$f":"Import!I8225","v":0},null,null,null,"UltCY2018AY2015",0,null,null,"brrt_PoliciesWrittenYearAxis_brrt_XNMinus2Member",null,null,null,null,null,null,null,null,null,null,null,null,null,null,null,null,null,null,null,null,null,{"$f":"\"bma_\"&\"IBNRCY\"&W$10&\"AY\"&$B55","v":"bma_IBNRCYAY2017"},{"$f":"\"bma_\"&\"IBNRCY\"&X$10&\"AY\"&$B55","v":"bma_IBNRCYAY2017"},{"$f":"\"bma_\"&\"IBNRCY\"&Y$10&\"AY\"&$B55","v":"bma_IBNRCYAY2017"},"bma_CATIBNRCYAY2017"]
["L34",2018,"XXX","XXX","XXX","XXX","XXX","XXX","XXX","XXX",{"$f":"Import!I8205","v":0},{"$f":"Import!I8215","v":0},{"$f":"Import!I8226","v":0},null,null,null,"UltCY2018AY2016",0,null,null,"brrt_PoliciesWrittenYearAxis_brrt_XNMinus1Member",null,null,null,null,null,null,null,null,null,null,null,null,null,null,null,null,null,null,null,null,null,null,{"$f":"\"bma_\"&\"IBNRCY\"&X$10&\"AY\"&$B56","v":"bma_IBNRCYAY2018"},{"$f":"\"bma_\"&\"IBNRCY\"&Y$10&\"AY\"&$B56","v":"bma_IBNRCYAY2018"},"bma_CATIBNRCYAY2018"]
["L35",{"$f":"L46","v":2019},"XXX","XXX","XXX","XXX","XXX","XXX","XXX","XXX","XXX",{"$f":"Import!I8216","v":0},{"$f":"Import!I8227","v":0},null,null,null,"UltCY2018AY2017",0,null,null,"brrt_PoliciesWrittenYearAxis_brrt_XNMember",null,null,null,null,null,null,null,null,null,null,null,null,null,null,null,null,null,null,null,null,null,null,null,{"$f":"\"bma_\"&\"IBNRCY\"&Y$10&\"AY\"&$B57","v":"bma_IBNRCYAY2019"},"bma_CATIBNRCYAY2019"]
["L36","Totals",null,null,null,null,null,null,null,null,null,null,{"$f":"SUM(M47:M57)","v":0},null,null,null,"UltCY2018AY2018",0,null,null,null,null,null,null,null,null,null,null,null,null,null,null,null,null,null,null,null,null,null,null,null,null,null,null,null,"bma_CATIBNRCYAYTotals"]
[null,null,null,null,null,null,null,null,null,null,null,null,null,null,null,null,{"$f":"\"UltCY\"&L$10&\"AY\"&B11","v":"UltCY2019AYPrior"},{"$f":"L11","v":0}]
[null,null,36,37,38,39,"Unallocated Loss",null,null,42,43,44,45,null,null,null,{"$f":"\"UltCY\"&L$10&\"AY\"&B13","v":"UltCY2019AY2011"},{"$f":"L13","v":0}]
[null,"Years in Which",null,null,null,null,"Adjustment Expenses",null,null,null,null,null,null,null,null,null,"UltCY2019AY2012",0]
[null,"Premiums",null,null,null,null,40,41,null,null,null,null,null,null,null,null,"UltCY2019AY2013",0]
[null,"Were",null,null,null,null,null,null,null,"Commission and","General and",null,null,null,null,null,"UltCY2019AY2014",0]
[null,"Earned and","Gross","Gross","Net","Net",null,null,null,"Brokerage","Administrative","Personnel","Other",null,null,null,"UltCY2019AY2015",0]
[null,"Losses Were","Premiums","Premiums","Premiums","Premiums",null,null,"Calendar","Expense","Expense","Costs","Expense",null,null,null,"UltCY2019AY2016",0]
[null,"Incurred","Written","Earned","Written","Earned","Paid","Incurred","Year","(Form 2A, Line 9)","(Form 2A, Line 10)","(Form 2A, Line 11)","(Form 2A, Line 12)",null,null,null,"UltCY2019AY2017",0]
["L37","Prior","XXX",{"$f":"C67","v":"XXX"},"XXX",{"$f":"E67","v":"XXX"},{"$f":"Import!I8272","v":0},{"$f":"Import!I8283","v":0},"Prior",{"$f":"Import!I8294","v":0},{"$f":"Import!I8305","v":0},{"$f":"Import!I8316","v":0},{"$f":"Import!I8327","v":0},null,null,null,"UltCY2019AY2018",0,null,null,"brrt_PremiumsEarnedLossesIncurredYearAxis_brrt_PriorMember","brrt_CalendarYearAxis_brrt_PriorMember",null,null,null,null,null,null,null,null,null,null,null,null,null,null,null,null,null,{"$f":"\"bma_\"&\"NetAOEPaid\"&$B67","v":"bma_NetAOEPaidPrior"},{"$f":"\"bma_\"&\"NetAOEIncurred\"&$B67","v":"bma_NetAOEIncurredPrior"},null,{"$f":"\"bma_\"&\"CommissionsAndBrokerage\"&$B67","v":"bma_CommissionsAndBrokeragePrior"},{"$f":"\"bma_\"&\"GeneralAndAdministrative\"&$B67","v":"bma_GeneralAndAdministrativePrior"},{"$f":"\"bma_\"&\"PersonnelCosts\"&$B67","v":"bma_PersonnelCostsPrior"},{"$f":"\"bma_\"&\"UnderwritingExpensesOther\"&$B67","v":"bma_UnderwritingExpensesOtherPrior"}]
["L38",{"$f":"B69-1","v":2010},{"$f":"Import!I8229","v":0},{"$f":"Import!I8240","v":0},{"$f":"Import!I8251","v":0},{"$f":"Import!I8262","v":0},{"$f":"Import!I8273","v":0},{"$f":"Import!I8284","v":0},{"$f":"B68","v":2010},{"$f":"Import!I8295","v":0},{"$f":"Import!I8306","v":0},{"$f":"Import!I8317","v":0},{"$f":"Import!I8328","v":0},null,null,null,"UltCY2019AY2019",0,null,null,"brrt_PremiumsEarnedLossesIncurredYearAxis_brrt_XNMinus9Member","brrt_CalendarYearAxis_brrt_XNMinus9Member",null,null,null,null,null,null,null,null,null,null,null,null,null,{"$f":"\"bma_\"&\"GrossWP\"&$B68","v":"bma_GrossWP2010"},{"$f":"\"bma_\"&\"GrossEP\"&$B68","v":"bma_GrossEP2010"},{"$f":"\"bma_\"&\"NetWP\"&$B68","v":"bma_NetWP2010"},{"$f":"\"bma_\"&\"NetEP\"&$B68","v":"bma_NetEP2010"},{"$f":"\"bma_\"&\"NetAOEPaid\"&$B68","v":"bma_NetAOEPaid2010"},{"$f":"\"bma_\"&\"NetAOEIncurred\"&$B68","v":"bma_NetAOEIncurred2010"},null,{"$f":"\"bma_\"&\"CommissionsAndBrokerage\"&$B68","v":"bma_CommissionsAndBrokerage2010"},{"$f":"\"bma_\"&\"GeneralAndAdministrative\"&$B68","v":"bma_GeneralAndAdministrative2010"},{"$f":"\"bma_\"&\"PersonnelCosts\"&$B68","v":"bma_PersonnelCosts2010"},{"$f":"\"bma_\"&\"UnderwritingExpensesOther\"&$B68","v":"bma_UnderwritingExpensesOther2010"}]
["L39",2011,{"$f":"Import!I8230","v":0},{"$f":"Import!I8241","v":0},{"$f":"Import!I8252","v":0},{"$f":"Import!I8263","v":0},{"$f":"Import!I8274","v":0},{"$f":"Import!I8285","v":0},2011,{"$f":"Import!I8296","v":0},{"$f":"Import!I8307","v":0},{"$f":"Import!I8318","v":0},{"$f":"Import!I8329","v":0},null,null,null,{"$f":"\"PaidCY\"&C$10&\"AY\"&B29","v":"PaidCY2010AYPrior"},{"$f":"C29","v":0},null,null,"brrt_PremiumsEarnedLossesIncurredYearAxis_brrt_XNMinus8Member","brrt_CalendarYearAxis_brrt_XNMinus8Member",null,null,null,null,null,null,null,null,null,null,null,null,null,{"$f":"\"bma_\"&\"GrossWP\"&$B69","v":"bma_GrossWP2011"},{"$f":"\"bma_\"&\"GrossEP\"&$B69","v":"bma_GrossEP2011"},{"$f":"\"bma_\"&\"NetWP\"&$B69","v":"bma_NetWP2011"},{"$f":"\"bma_\"&\"NetEP\"&$B69","v":"bma_NetEP2011"},"bma_NetAOEPaid2011","bma_NetAOEIncurred2011",null,"bma_CommissionsAndBrokerage2011","bma_GeneralAndAdministrative2011","bma_PersonnelCosts2011","bma_UnderwritingExpensesOther2011"]
["L40",2012,{"$f":"Import!I8231","v":0},{"$f":"Import!I8242","v":0},{"$f":"Import!I8253","v":0},{"$f":"Import!I8264","v":0},{"$f":"Import!I8275","v":0},{"$f":"Import!I8286","v":0},2012,{"$f":"Import!I8297","v":0},{"$f":"Import!I8308","v":0},{"$f":"Import!I8319","v":0},{"$f":"Import!I8330","v":0},null,null,null,{"$f":"\"PaidCY\"&C$10&\"AY\"&B30","v":"PaidCY2010AY2010"},{"$f":"C30","v":0},null,null,"brrt_PremiumsEarnedLossesIncurredYearAxis_brrt_XNMinus7Member","brrt_CalendarYearAxis_brrt_XNMinus7Member",null,null,null,null,null,null,null,null,null,null,null,null,null,"bma_GrossWP2012","bma_GrossEP2012","bma_NetWP2012","bma_NetEP2012","bma_NetAOEPaid2012","bma_NetAOEIncurred2012",null,"bma_CommissionsAndBrokerage2012","bma_GeneralAndAdministrative2012","bma_PersonnelCosts2012","bma_UnderwritingExpensesOther2012"]
["L41",2013,{"$f":"Import!I8232","v":0},{"$f":"Import!I8243","v":0},{"$f":"Import!I8254","v":0},{"$f":"Import!I8265","v":0},{"$f":"Import!I8276","v":0},{"$f":"Import!I8287","v":0},2013,{"$f":"Import!I8298","v":0},{"$f":"Import!I8309","v":0},{"$f":"Import!I8320","v":0},{"$f":"Import!I8331","v":0},null,null,null,{"$f":"\"PaidCY\"&D$10&\"AY\"&B29","v":"PaidCY2011AYPrior"},{"$f":"D29","v":0},null,null,"brrt_PremiumsEarnedLossesIncurredYearAxis_brrt_XNMinus6Member","brrt_CalendarYearAxis_brrt_XNMinus6Member",null,null,null,null,null,null,null,null,null,null,null,null,null,"bma_GrossWP2013","bma_GrossEP2013","bma_NetWP2013","bma_NetEP2013","bma_NetAOEPaid2013","bma_NetAOEIncurred2013",null,"bma_CommissionsAndBrokerage2013","bma_GeneralAndAdministrative2013","bma_PersonnelCosts2013","bma_UnderwritingExpensesOther2013"]
["L42",2014,{"$f":"Import!I8233","v":0},{"$f":"Import!I8244","v":0},{"$f":"Import!I8255","v":0},{"$f":"Import!I8266","v":0},{"$f":"Import!I8277","v":0},{"$f":"Import!I8288","v":0},2014,{"$f":"Import!I8299","v":0},{"$f":"Import!I8310","v":0},{"$f":"Import!I8321","v":0},{"$f":"Import!I8332","v":0},null,null,null,{"$f":"\"PaidCY\"&D$10&\"AY\"&B30","v":"PaidCY2011AY2010"},{"$f":"D30","v":0},null,null,"brrt_PremiumsEarnedLossesIncurredYearAxis_brrt_XNMinus5Member","brrt_CalendarYearAxis_brrt_XNMinus5Member",null,null,null,null,null,null,null,null,null,null,null,null,null,"bma_GrossWP2014","bma_GrossEP2014","bma_NetWP2014","bma_NetEP2014","bma_NetAOEPaid2014","bma_NetAOEIncurred2014",null,"bma_CommissionsAndBrokerage2014","bma_GeneralAndAdministrative2014","bma_PersonnelCosts2014","bma_UnderwritingExpensesOther2014"]
["L43",2015,{"$f":"Import!I8234","v":0},{"$f":"Import!I8245","v":0},{"$f":"Import!I8256","v":0},{"$f":"Import!I8267","v":0},{"$f":"Import!I8278","v":0},{"$f":"Import!I8289","v":0},2015,{"$f":"Import!I8300","v":0},{"$f":"Import!I8311","v":0},{"$f":"Import!I8322","v":0},{"$f":"Import!I8333","v":0},null,null,null,{"$f":"\"PaidCY\"&D$10&\"AY\"&B31","v":"PaidCY2011AY2011"},{"$f":"D31","v":0},null,null,"brrt_PremiumsEarnedLossesIncurredYearAxis_brrt_XNMinus4Member","brrt_CalendarYearAxis_brrt_XNMinus4Member",null,null,null,null,null,null,null,null,null,null,null,null,null,"bma_GrossWP2015","bma_GrossEP2015","bma_NetWP2015","bma_NetEP2015","bma_NetAOEPaid2015","bma_NetAOEIncurred2015",null,"bma_CommissionsAndBrokerage2015","bma_GeneralAndAdministrative2015","bma_PersonnelCosts2015","bma_UnderwritingExpensesOther2015"]
["L44",2016,{"$f":"Import!I8235","v":0},{"$f":"Import!I8246","v":0},{"$f":"Import!I8257","v":0},{"$f":"Import!I8268","v":0},{"$f":"Import!I8279","v":0},{"$f":"Import!I8290","v":0},2016,{"$f":"Import!I8301","v":0},{"$f":"Import!I8312","v":0},{"$f":"Import!I8323","v":0},{"$f":"Import!I8334","v":0},null,null,null,{"$f":"\"PaidCY\"&E$10&\"AY\"&B29","v":"PaidCY2012AYPrior"},{"$f":"E29","v":0},null,null,"brrt_PremiumsEarnedLossesIncurredYearAxis_brrt_XNMinus3Member","brrt_CalendarYearAxis_brrt_XNMinus3Member",null,null,null,null,null,null,null,null,null,null,null,null,null,"bma_GrossWP2016","bma_GrossEP2016","bma_NetWP2016","bma_NetEP2016","bma_NetAOEPaid2016","bma_NetAOEIncurred2016",null,"bma_CommissionsAndBrokerage2016","bma_GeneralAndAdministrative2016","bma_PersonnelCosts2016","bma_UnderwritingExpensesOther2016"]
["L45",2017,{"$f":"Import!I8236","v":0},{"$f":"Import!I8247","v":0},{"$f":"Import!I8258","v":0},{"$f":"Import!I8269","v":0},{"$f":"Import!I8280","v":0},{"$f":"Import!I8291","v":0},2017,{"$f":"Import!I8302","v":0},{"$f":"Import!I8313","v":0},{"$f":"Import!I8324","v":0},{"$f":"Import!I8335","v":0},null,null,null,{"$f":"\"PaidCY\"&E$10&\"AY\"&B30","v":"PaidCY2012AY2010"},{"$f":"E30","v":0},null,null,"brrt_PremiumsEarnedLossesIncurredYearAxis_brrt_XNMinus2Member","brrt_CalendarYearAxis_brrt_XNMinus2Member",null,null,null,null,null,null,null,null,null,null,null,null,null,"bma_GrossWP2017","bma_GrossEP2017","bma_NetWP2017","bma_NetEP2017","bma_NetAOEPaid2017","bma_NetAOEIncurred2017",null,"bma_CommissionsAndBrokerage2017","bma_GeneralAndAdministrative2017","bma_PersonnelCosts2017","bma_UnderwritingExpensesOther2017"]
["L46",2018,{"$f":"Import!I8237","v":0},{"$f":"Import!I8248","v":0},{"$f":"Import!I8259","v":0},{"$f":"Import!I8270","v":0},{"$f":"Import!I8281","v":0},{"$f":"Import!I8292","v":0},2018,{"$f":"Import!I8303","v":0},{"$f":"Import!I8314","v":0},{"$f":"Import!I8325","v":0},{"$f":"Import!I8336","v":0},null,null,null,{"$f":"\"PaidCY\"&E$10&\"AY\"&B31","v":"PaidCY2012AY2011"},{"$f":"E31","v":0},null,null,"brrt_PremiumsEarnedLossesIncurredYearAxis_brrt_XNMinus1Member","brrt_CalendarYearAxis_brrt_XNMinus1Member",null,null,null,null,null,null,null,null,null,null,null,null,null,"bma_GrossWP2018","bma_GrossEP2018","bma_NetWP2018","bma_NetEP2018","bma_NetAOEPaid2018","bma_NetAOEIncurred2018",null,"bma_CommissionsAndBrokerage2018","bma_GeneralAndAdministrative2018","bma_PersonnelCosts2018","bma_UnderwritingExpensesOther2018"]
["L47",{"$f":"B39","v":2019},{"$f":"Import!I8238","v":0},{"$f":"Import!I8249","v":0},{"$f":"Import!I8260","v":0},{"$f":"Import!I8271","v":0},{"$f":"Import!I8282","v":0},{"$f":"Import!I8293","v":0},2019,{"$f":"Import!I8304","v":0},{"$f":"Import!I8315","v":0},{"$f":"Import!I8326","v":0},{"$f":"Import!I8337","v":0},null,null,null,{"$f":"\"PaidCY\"&E$10&\"AY\"&B32","v":"PaidCY2012AY2012"},{"$f":"E32","v":0},null,null,"brrt_PremiumsEarnedLossesIncurredYearAxis_brrt_XNMember","brrt_CalendarYearAxis_brrt_XNMember",null,null,null,null,null,null,null,null,null,null,null,null,null,"bma_GrossWP2019","bma_GrossEP2019","bma_NetWP2019","bma_NetEP2019","bma_NetAOEPaid2019","bma_NetAOEIncurred2019",null,"bma_CommissionsAndBrokerage2019","bma_GeneralAndAdministrative2019","bma_PersonnelCosts2019","bma_UnderwritingExpensesOther2019"]
["L48","Totals","XXX",{"$f":"C78","v":"XXX"},"XXX",{"$f":"E78","v":"XXX"},{"$f":"SUM(G67:G77)","v":0},{"$f":"SUM(H67:H77)","v":0},"Totals",{"$f":"SUM(J67:J77)","v":0},{"$f":"SUM(K67:K77)","v":0},{"$f":"SUM(L67:L77)","v":0},{"$f":"SUM(M67:M77)","v":0},null,null,null,{"$f":"\"PaidCY\"&F$10&\"AY\"&B29","v":"PaidCY2013AYPrior"},{"$f":"F29","v":0},null,null,null,null,null,null,null,null,null,null,null,null,null,null,null,null,null,null,null,null,null,"bma_NetAOEPaidTotals","bma_NetAOEIncurredTotals",null,"bma_CommissionsAndBrokerageTotals","bma_GeneralAndAdministrativeTotals","bma_PersonnelCostsTotals","bma_UnderwritingExpensesOtherTotals"]
[null,null,null,null,null,null,null,null,null,null,null,null,null,null,null,null,{"$f":"\"PaidCY\"&F$10&\"AY\"&B30","v":"PaidCY2013AY2010"},{"$f":"F30","v":0}]
[null,"COMMENTS",null,null,null,null,null,null,null,null,null,null,null,null,null,null,{"$f":"\"PaidCY\"&F$10&\"AY\"&B31","v":"PaidCY2013AY2011"},{"$f":"F31","v":0}]
[null,{"$f":"Import!I8338","v":0},null,null,null,null,null,null,null,null,null,null,null,null,null,null,{"$f":"\"PaidCY\"&G$10&\"AY\"&B30","v":"PaidCY2014AY2010"},{"$f":"G30","v":0},null,null,"brrt_LossTrianglesComments",{"$f":"XBRLMap(B81,U81&\".\"&U4&\".\"&U7,$B$95,$B$96,CONFIGURATION!$B$10,\"BMA\",CONFIGURATION!$B$1,\"bscr\")","v":"Mapped"},null,null,null,null,null,null,null,null,null,null,null,null,null,"bma_ScheduleOfLossTrianglesComments"]
[null,null,null,null,null,null,null,null,null,null,null,null,null,null,null,null,{"$f":"\"PaidCY\"&G$10&\"AY\"&B31","v":"PaidCY2014AY2011"},{"$f":"G31","v":0}]
[null,null,null,null,null,null,null,null,null,null,null,null,null,null,null,null,{"$f":"\"PaidCY\"&G$10&\"AY\"&B32","v":"PaidCY2014AY2012"},{"$f":"G32","v":0}]
[null,null,null,null,null,null,null,null,null,null,null,null,null,null,null,null,{"$f":"\"PaidCY\"&G$10&\"AY\"&B34","v":"PaidCY2014AY2014"},{"$f":"G34","v":0}]
[null,null,"brrt_IncurredEstimatedUltimateNetLossesAndAllocatedLossAdjustmentExpenses","brrt_IncurredEstimatedUltimateNetLossesAndAllocatedLossAdjustmentExpenses","brrt_IncurredEstimatedUltimateNetLossesAndAllocatedLossAdjustmentExpenses","brrt_IncurredEstimatedUltimateNetLossesAndAllocatedLossAdjustmentExpenses","brrt_IncurredEstimatedUltimateNetLossesAndAllocatedLossAdjustmentExpenses","brrt_IncurredEstimatedUltimateNetLossesAndAllocatedLossAdjustmentExpenses","brrt_IncurredEstimatedUltimateNetLossesAndAllocatedLossAdjustmentExpenses","brrt_IncurredEstimatedUltimateNetLossesAndAllocatedLossAdjustmentExpenses","brrt_IncurredEstimatedUltimateNetLossesAndAllocatedLossAdjustmentExpenses","brrt_IncurredEstimatedUltimateNetLossesAndAllocatedLossAdjustmentExpenses","brrt_UltimateCatastropheLosses",null,null,null,{"$f":"\"PaidCY\"&H$10&\"AY\"&B29","v":"PaidCY2015AYPrior"},{"$f":"H29","v":0}]
[null,null,"brrt_CumulativePaidNetLossesAndAllocatedLossAdjustmentExpenses","brrt_CumulativePaidNetLossesAndAllocatedLossAdjustmentExpenses","brrt_CumulativePaidNetLossesAndAllocatedLossAdjustmentExpenses","brrt_CumulativePaidNetLossesAndAllocatedLossAdjustmentExpenses","brrt_CumulativePaidNetLossesAndAllocatedLossAdjustmentExpenses","brrt_CumulativePaidNetLossesAndAllocatedLossAdjustmentExpenses","brrt_CumulativePaidNetLossesAndAllocatedLossAdjustmentExpenses","brrt_CumulativePaidNetLossesAndAllocatedLossAdjustmentExpenses","brrt_CumulativePaidNetLossesAndAllocatedLossAdjustmentExpenses","brrt_CumulativePaidNetLossesAndAllocatedLossAdjustmentExpenses","brrt_PaidCatastropheLosses",null,null,null,"PaidCY2015AY2010",0]
[null,null,"brrt_BulkAndIBNRReservesOnNetLossesAndAllocatedLossAdjustmentExpenses","brrt_BulkAndIBNRReservesOnNetLossesAndAllocatedLossAdjustmentExpenses","brrt_BulkAndIBNRReservesOnNetLossesAndAllocatedLossAdjustmentExpenses","brrt_BulkAndIBNRReservesOnNetLossesAndAllocatedLossAdjustmentExpenses","brrt_BulkAndIBNRReservesOnNetLossesAndAllocatedLossAdjustmentExpenses","brrt_BulkAndIBNRReservesOnNetLossesAndAllocatedLossAdjustmentExpenses","brrt_BulkAndIBNRReservesOnNetLossesAndAllocatedLossAdjustmentExpenses","brrt_BulkAndIBNRReservesOnNetLossesAndAllocatedLossAdjustmentExpenses","brrt_BulkAndIBNRReservesOnNetLossesAndAllocatedLossAdjustmentExpenses","brrt_BulkAndIBNRReservesOnNetLossesAndAllocatedLossAdjustmentExpenses","brrt_LossesBulkAndBNRReserves",null,null,null,"PaidCY2015AY2011",0]
[null,null,"brrt_GrossPremiumsWritten","brrt_GrossPremiumsEarned","brrt_NetPremiumsWritten","brrt_NetPremiumsEarned","brrt_UnallocatedLossAdjustmentExpensesPaid","brrt_UnallocatedLossAdjustmentExpensesIncurred",null,"brrt_CommissionsAndBrokerage","brrt_GeneralAndAdministrative","brrt_PersonnelCosts","brrt_OtherUnderwritingExpenses",null,null,null,"PaidCY2015AY2012",0]
[null,null,"brrt_ReportingYearAxis_brrt_YNMinus9Member","brrt_ReportingYearAxis_brrt_YNMinus8Member","brrt_ReportingYearAxis_brrt_YNMinus7Member","brrt_ReportingYearAxis_brrt_YNMinus6Member","brrt_ReportingYearAxis_brrt_YNMinus5Member","brrt_ReportingYearAxis_brrt_YNMinus4Member","brrt_ReportingYearAxis_brrt_YNMinus3Member","brrt_ReportingYearAxis_brrt_YNMinus2Member","brrt_ReportingYearAxis_brrt_YNMinus1Member","brrt_ReportingYearAxis_brrt_YNMember","brrt_ReportingYearAxis_brrt_YNMember",null,null,null,"PaidCY2015AY2013",0]
[null,null,null,null,"Accident Year",null,null,null,null,null,null,null,null,null,null,null,"PaidCY2015AY2014",0]
[null,null,null,null,"Underwriting Year",null,null,null,null,null,null,null,null,null,null,null,"PaidCY2015AY2015",0]
[null,null,null,null,null,null,null,null,null,null,null,null,null,null,null,null,{"$f":"\"PaidCY\"&I$10&\"AY\"&B29","v":"PaidCY2016AYPrior"},{"$f":"I29","v":0}]
[null,null,null,null,null,null,null,null,null,null,null,null,null,null,null,null,"PaidCY2016AY2010",0]
[null,null,null,null,null,null,null,null,null,null,null,null,null,null,null,null,"PaidCY2016AY2011",0]
[null,{"$f":"IF(B3=\"\",\"\",TEXT(DATE(YEAR(B3+1)-1,MONTH(B3+1),DAY(B3+1)),\"mm/dd/yyyy\"))","v":"01/01/2019"},null,null,null,null,null,null,null,null,null,null,null,null,null,null,"PaidCY2016AY2012",0]
[null,{"$f":"IF(B3=\"\",\"\",TEXT(B3,\"mm/dd/yyyy\"))","v":"12/31/2019"},null,null,null,null,null,null,null,null,null,null,null,null,null,null,"PaidCY2016AY2013",0]
[null,null,null,null,null,null,null,null,null,null,null,null,null,null,null,null,"PaidCY2016AY2014",0]
[null,null,null,null,null,null,null,null,null,null,null,null,null,null,null,null,"PaidCY2016AY2015",0]
[null,null,null,null,null,null,null,null,null,null,null,null,null,null,null,null,"PaidCY2016AY2016",0]
[null,null,null,null,null,null,null,null,null,null,null,null,null,null,null,null,{"$f":"\"PaidCY\"&J$10&\"AY\"&B29","v":"PaidCY2017AYPrior"},{"$f":"J29","v":0}]
[null,null,{"$f":"XBRLMap(C11,C$85&\".\"&$U$4&\".\"&$U$6&\".\"&$U11&\".\"&C$89&\".\"&$U$7,$B$95,$B$96,CONFIGURATION!$B$10,\"BMA\",CONFIGURATION!$B$1,\"bscr\",1000)","v":"Mapped"},{"$f":"XBRLMap(D11,D$85&\".\"&$U$4&\".\"&$U$6&\".\"&$U11&\".\"&D$89&\".\"&$U$7,$B$95,$B$96,CONFIGURATION!$B$10,\"BMA\",CONFIGURATION!$B$1,\"bscr\",1000)","v":"Mapped"},{"$f":"XBRLMap(E11,E$85&\".\"&$U$4&\".\"&$U$6&\".\"&$U11&\".\"&E$89&\".\"&$U$7,$B$95,$B$96,CONFIGURATION!$B$10,\"BMA\",CONFIGURATION!$B$1,\"bscr\",1000)","v":"Mapped"},{"$f":"XBRLMap(F11,F$85&\".\"&$U$4&\".\"&$U$6&\".\"&$U11&\".\"&F$89&\".\"&$U$7,$B$95,$B$96,CONFIGURATION!$B$10,\"BMA\",CONFIGURATION!$B$1,\"bscr\",1000)","v":"Mapped"},{"$f":"XBRLMap(G11,G$85&\".\"&$U$4&\".\"&$U$6&\".\"&$U11&\".\"&G$89&\".\"&$U$7,$B$95,$B$96,CONFIGURATION!$B$10,\"BMA\",CONFIGURATION!$B$1,\"bscr\",1000)","v":"Mapped"},{"$f":"XBRLMap(H11,H$85&\".\"&$U$4&\".\"&$U$6&\".\"&$U11&\".\"&H$89&\".\"&$U$7,$B$95,$B$96,CONFIGURATION!$B$10,\"BMA\",CONFIGURATION!$B$1,\"bscr\",1000)","v":"Mapped"},{"$f":"XBRLMap(I11,I$85&\".\"&$U$4&\".\"&$U$6&\".\"&$U11&\".\"&I$89&\".\"&$U$7,$B$95,$B$96,CONFIGURATION!$B$10,\"BMA\",CONFIGURATION!$B$1,\"bscr\",1000)","v":"Mapped"},{"$f":"XBRLMap(J11,J$85&\".\"&$U$4&\".\"&$U$6&\".\"&$U11&\".\"&J$89&\".\"&$U$7,$B$95,$B$96,CONFIGURATION!$B$10,\"BMA\",CONFIGURATION!$B$1,\"bscr\",1000)","v":"Mapped"},{"$f":"XBRLMap(K11,K$85&\".\"&$U$4&\".\"&$U$6&\".\"&$U11&\".\"&K$89&\".\"&$U$7,$B$95,$B$96,CONFIGURATION!$B$10,\"BMA\",CONFIGURATION!$B$1,\"bscr\",1000)","v":"Mapped"},{"$f":"XBRLMap(L11,L$85&\".\"&$U$4&\".\"&$U$6&\".\"&$U11&\".\"&L$89&\".\"&$U$7,$B$95,$B$96,CONFIGURATION!$B$10,\"BMA\",CONFIGURATION!$B$1,\"bscr\",1000)","v":"Mapped"},{"$f":"XBRLMap(M11,M$85&\".\"&$U$4&\".\"&$U$6&\".\"&$U11&\".\"&M$89&\".\"&$U$7,$B$95,$B$96,CONFIGURATION!$B$10,\"BMA\",CONFIGURATION!$B$1,\"bscr\",1000)","v":"Mapped"},null,null,null,"PaidCY2017AY2010",0]
[null,null,{"$f":"XBRLMap(C12,C$85&\".\"&$U$4&\".\"&$U$6&\".\"&$U12&\".\"&C$89&\".\"&$U$7,$B$95,$B$96,CONFIGURATION!$B$10,\"BMA\",CONFIGURATION!$B$1,\"bscr\",1000)","v":"Mapped"},{"$f":"XBRLMap(D12,D$85&\".\"&$U$4&\".\"&$U$6&\".\"&$U12&\".\"&D$89&\".\"&$U$7,$B$95,$B$96,CONFIGURATION!$B$10,\"BMA\",CONFIGURATION!$B$1,\"bscr\",1000)","v":"Mapped"},{"$f":"XBRLMap(E12,E$85&\".\"&$U$4&\".\"&$U$6&\".\"&$U12&\".\"&E$89&\".\"&$U$7,$B$95,$B$96,CONFIGURATION!$B$10,\"BMA\",CONFIGURATION!$B$1,\"bscr\",1000)","v":"Mapped"},{"$f":"XBRLMap(F12,F$85&\".\"&$U$4&\".\"&$U$6&\".\"&$U12&\".\"&F$89&\".\"&$U$7,$B$95,$B$96,CONFIGURATION!$B$10,\"BMA\",CONFIGURATION!$B$1,\"bscr\",1000)","v":"Mapped"},{"$f":"XBRLMap(G12,G$85&\".\"&$U$4&\".\"&$U$6&\".\"&$U12&\".\"&G$89&\".\"&$U$7,$B$95,$B$96,CONFIGURATION!$B$10,\"BMA\",CONFIGURATION!$B$1,\"bscr\",1000)","v":"Mapped"},{"$f":"XBRLMap(H12,H$85&\".\"&$U$4&\".\"&$U$6&\".\"&$U12&\".\"&H$89&\".\"&$U$7,$B$95,$B$96,CONFIGURATION!$B$10,\"BMA\",CONFIGURATION!$B$1,\"bscr\",1000)","v":"Mapped"},{"$f":"XBRLMap(I12,I$85&\".\"&$U$4&\".\"&$U$6&\".\"&$U12&\".\"&I$89&\".\"&$U$7,$B$95,$B$96,CONFIGURATION!$B$10,\"BMA\",CONFIGURATION!$B$1,\"bscr\",1000)","v":"Mapped"},{"$f":"XBRLMap(J12,J$85&\".\"&$U$4&\".\"&$U$6&\".\"&$U12&\".\"&J$89&\".\"&$U$7,$B$95,$B$96,CONFIGURATION!$B$10,\"BMA\",CONFIGURATION!$B$1,\"bscr\",1000)","v":"Mapped"},{"$f":"XBRLMap(K12,K$85&\".\"&$U$4&\".\"&$U$6&\".\"&$U12&\".\"&K$89&\".\"&$U$7,$B$95,$B$96,CONFIGURATION!$B$10,\"BMA\",CONFIGURATION!$B$1,\"bscr\",1000)","v":"Mapped"},{"$f":"XBRLMap(L12,L$85&\".\"&$U$4&\".\"&$U$6&\".\"&$U12&\".\"&L$89&\".\"&$U$7,$B$95,$B$96,CONFIGURATION!$B$10,\"BMA\",CONFIGURATION!$B$1,\"bscr\",1000)","v":"Mapped"},{"$f":"XBRLMap(M12,M$85&\".\"&$U$4&\".\"&$U$6&\".\"&$U12&\".\"&M$89&\".\"&$U$7,$B$95,$B$96,CONFIGURATION!$B$10,\"BMA\",CONFIGURATION!$B$1,\"bscr\",1000)","v":"Mapped"},null,null,null,"PaidCY2017AY2011",0]
[null,null,null,{"$f":"XBRLMap(D13,D$85&\".\"&$U$4&\".\"&$U$6&\".\"&$U13&\".\"&D$89&\".\"&$U$7,$B$95,$B$96,CONFIGURATION!$B$10,\"BMA\",CONFIGURATION!$B$1,\"bscr\",1000)","v":"Mapped"},{"$f":"XBRLMap(E13,E$85&\".\"&$U$4&\".\"&$U$6&\".\"&$U13&\".\"&E$89&\".\"&$U$7,$B$95,$B$96,CONFIGURATION!$B$10,\"BMA\",CONFIGURATION!$B$1,\"bscr\",1000)","v":"Mapped"},{"$f":"XBRLMap(F13,F$85&\".\"&$U$4&\".\"&$U$6&\".\"&$U13&\".\"&F$89&\".\"&$U$7,$B$95,$B$96,CONFIGURATION!$B$10,\"BMA\",CONFIGURATION!$B$1,\"bscr\",1000)","v":"Mapped"},{"$f":"XBRLMap(G13,G$85&\".\"&$U$4&\".\"&$U$6&\".\"&$U13&\".\"&G$89&\".\"&$U$7,$B$95,$B$96,CONFIGURATION!$B$10,\"BMA\",CONFIGURATION!$B$1,\"bscr\",1000)","v":"Mapped"},{"$f":"XBRLMap(H13,H$85&\".\"&$U$4&\".\"&$U$6&\".\"&$U13&\".\"&H$89&\".\"&$U$7,$B$95,$B$96,CONFIGURATION!$B$10,\"BMA\",CONFIGURATION!$B$1,\"bscr\",1000)","v":"Mapped"},{"$f":"XBRLMap(I13,I$85&\".\"&$U$4&\".\"&$U$6&\".\"&$U13&\".\"&I$89&\".\"&$U$7,$B$95,$B$96,CONFIGURATION!$B$10,\"BMA\",CONFIGURATION!$B$1,\"bscr\",1000)","v":"Mapped"},{"$f":"XBRLMap(J13,J$85&\".\"&$U$4&\".\"&$U$6&\".\"&$U13&\".\"&J$89&\".\"&$U$7,$B$95,$B$96,CONFIGURATION!$B$10,\"BMA\",CONFIGURATION!$B$1,\"bscr\",1000)","v":"Mapped"},{"$f":"XBRLMap(K13,K$85&\".\"&$U$4&\".\"&$U$6&\".\"&$U13&\".\"&K$89&\".\"&$U$7,$B$95,$B$96,CONFIGURATION!$B$10,\"BMA\",CONFIGURATION!$B$1,\"bscr\",1000)","v":"Mapped"},{"$f":"XBRLMap(L13,L$85&\".\"&$U$4&\".\"&$U$6&\".\"&$U13&\".\"&L$89&\".\"&$U$7,$B$95,$B$96,CONFIGURATION!$B$10,\"BMA\",CONFIGURATION!$B$1,\"bscr\",1000)","v":"Mapped"},{"$f":"XBRLMap(M13,M$85&\".\"&$U$4&\".\"&$U$6&\".\"&$U13&\".\"&M$89&\".\"&$U$7,$B$95,$B$96,CONFIGURATION!$B$10,\"BMA\",CONFIGURATION!$B$1,\"bscr\",1000)","v":"Mapped"},null,null,null,"PaidCY2017AY2012",0]
[null,null,null,null,{"$f":"XBRLMap(E14,E$85&\".\"&$U$4&\".\"&$U$6&\".\"&$U14&\".\"&E$89&\".\"&$U$7,$B$95,$B$96,CONFIGURATION!$B$10,\"BMA\",CONFIGURATION!$B$1,\"bscr\",1000)","v":"Mapped"},{"$f":"XBRLMap(F14,F$85&\".\"&$U$4&\".\"&$U$6&\".\"&$U14&\".\"&F$89&\".\"&$U$7,$B$95,$B$96,CONFIGURATION!$B$10,\"BMA\",CONFIGURATION!$B$1,\"bscr\",1000)","v":"Mapped"},{"$f":"XBRLMap(G14,G$85&\".\"&$U$4&\".\"&$U$6&\".\"&$U14&\".\"&G$89&\".\"&$U$7,$B$95,$B$96,CONFIGURATION!$B$10,\"BMA\",CONFIGURATION!$B$1,\"bscr\",1000)","v":"Mapped"},{"$f":"XBRLMap(H14,H$85&\".\"&$U$4&\".\"&$U$6&\".\"&$U14&\".\"&H$89&\".\"&$U$7,$B$95,$B$96,CONFIGURATION!$B$10,\"BMA\",CONFIGURATION!$B$1,\"bscr\",1000)","v":"Mapped"},{"$f":"XBRLMap(I14,I$85&\".\"&$U$4&\".\"&$U$6&\".\"&$U14&\".\"&I$89&\".\"&$U$7,$B$95,$B$96,CONFIGURATION!$B$10,\"BMA\",CONFIGURATION!$B$1,\"bscr\",1000)","v":"Mapped"},{"$f":"XBRLMap(J14,J$85&\".\"&$U$4&\".\"&$U$6&\".\"&$U14&\".\"&J$89&\".\"&$U$7,$B$95,$B$96,CONFIGURATION!$B$10,\"BMA\",CONFIGURATION!$B$1,\"bscr\",1000)","v":"Mapped"},{"$f":"XBRLMap(K14,K$85&\".\"&$U$4&\".\"&$U$6&\".\"&$U14&\".\"&K$89&\".\"&$U$7,$B$95,$B$96,CONFIGURATION!$B$10,\"BMA\",CONFIGURATION!$B$1,\"bscr\",1000)","v":"Mapped"},{"$f":"XBRLMap(L14,L$85&\".\"&$U$4&\".\"&$U$6&\".\"&$U14&\".\"&L$89&\".\"&$U$7,$B$95,$B$96,CONFIGURATION!$B$10,\"BMA\",CONFIGURATION!$B$1,\"bscr\",1000)","v":"Mapped"},{"$f":"XBRLMap(M14,M$85&\".\"&$U$4&\".\"&$U$6&\".\"&$U14&\".\"&M$89&\".\"&$U$7,$B$95,$B$96,CONFIGURATION!$B$10,\"BMA\",CONFIGURATION!$B$1,\"bscr\",1000)","v":"Mapped"},null,null,null,"PaidCY2017AY2013",0]
[null,null,null,null,null,{"$f":"XBRLMap(F15,F$85&\".\"&$U$4&\".\"&$U$6&\".\"&$U15&\".\"&F$89&\".\"&$U$7,$B$95,$B$96,CONFIGURATION!$B$10,\"BMA\",CONFIGURATION!$B$1,\"bscr\",1000)","v":"Mapped"},{"$f":"XBRLMap(G15,G$85&\".\"&$U$4&\".\"&$U$6&\".\"&$U15&\".\"&G$89&\".\"&$U$7,$B$95,$B$96,CONFIGURATION!$B$10,\"BMA\",CONFIGURATION!$B$1,\"bscr\",1000)","v":"Mapped"},{"$f":"XBRLMap(H15,H$85&\".\"&$U$4&\".\"&$U$6&\".\"&$U15&\".\"&H$89&\".\"&$U$7,$B$95,$B$96,CONFIGURATION!$B$10,\"BMA\",CONFIGURATION!$B$1,\"bscr\",1000)","v":"Mapped"},{"$f":"XBRLMap(I15,I$85&\".\"&$U$4&\".\"&$U$6&\".\"&$U15&\".\"&I$89&\".\"&$U$7,$B$95,$B$96,CONFIGURATION!$B$10,\"BMA\",CONFIGURATION!$B$1,\"bscr\",1000)","v":"Mapped"},{"$f":"XBRLMap(J15,J$85&\".\"&$U$4&\".\"&$U$6&\".\"&$U15&\".\"&J$89&\".\"&$U$7,$B$95,$B$96,CONFIGURATION!$B$10,\"BMA\",CONFIGURATION!$B$1,\"bscr\",1000)","v":"Mapped"},{"$f":"XBRLMap(K15,K$85&\".\"&$U$4&\".\"&$U$6&\".\"&$U15&\".\"&K$89&\".\"&$U$7,$B$95,$B$96,CONFIGURATION!$B$10,\"BMA\",CONFIGURATION!$B$1,\"bscr\",1000)","v":"Mapped"},{"$f":"XBRLMap(L15,L$85&\".\"&$U$4&\".\"&$U$6&\".\"&$U15&\".\"&L$89&\".\"&$U$7,$B$95,$B$96,CONFIGURATION!$B$10,\"BMA\",CONFIGURATION!$B$1,\"bscr\",1000)","v":"Mapped"},{"$f":"XBRLMap(M15,M$85&\".\"&$U$4&\".\"&$U$6&\".\"&$U15&\".\"&M$89&\".\"&$U$7,$B$95,$B$96,CONFIGURATION!$B$10,\"BMA\",CONFIGURATION!$B$1,\"bscr\",1000)","v":"Mapped"},null,null,null,"PaidCY2017AY2014",0]
[null,null,null,null,null,null,{"$f":"XBRLMap(G16,G$85&\".\"&$U$4&\".\"&$U$6&\".\"&$U16&\".\"&G$89&\".\"&$U$7,$B$95,$B$96,CONFIGURATION!$B$10,\"BMA\",CONFIGURATION!$B$1,\"bscr\",1000)","v":"Mapped"},{"$f":"XBRLMap(H16,H$85&\".\"&$U$4&\".\"&$U$6&\".\"&$U16&\".\"&H$89&\".\"&$U$7,$B$95,$B$96,CONFIGURATION!$B$10,\"BMA\",CONFIGURATION!$B$1,\"bscr\",1000)","v":"Mapped"},{"$f":"XBRLMap(I16,I$85&\".\"&$U$4&\".\"&$U$6&\".\"&$U16&\".\"&I$89&\".\"&$U$7,$B$95,$B$96,CONFIGURATION!$B$10,\"BMA\",CONFIGURATION!$B$1,\"bscr\",1000)","v":"Mapped"},{"$f":"XBRLMap(J16,J$85&\".\"&$U$4&\".\"&$U$6&\".\"&$U16&\".\"&J$89&\".\"&$U$7,$B$95,$B$96,CONFIGURATION!$B$10,\"BMA\",CONFIGURATION!$B$1,\"bscr\",1000)","v":"Mapped"},{"$f":"XBRLMap(K16,K$85&\".\"&$U$4&\".\"&$U$6&\".\"&$U16&\".\"&K$89&\".\"&$U$7,$B$95,$B$96,CONFIGURATION!$B$10,\"BMA\",CONFIGURATION!$B$1,\"bscr\",1000)","v":"Mapped"},{"$f":"XBRLMap(L16,L$85&\".\"&$U$4&\".\"&$U$6&\".\"&$U16&\".\"&L$89&\".\"&$U$7,$B$95,$B$96,CONFIGURATION!$B$10,\"BMA\",CONFIGURATION!$B$1,\"bscr\",1000)","v":"Mapped"},{"$f":"XBRLMap(M16,M$85&\".\"&$U$4&\".\"&$U$6&\".\"&$U16&\".\"&M$89&\".\"&$U$7,$B$95,$B$96,CONFIGURATION!$B$10,\"BMA\",CONFIGURATION!$B$1,\"bscr\",1000)","v":"Mapped"},null,null,null,"PaidCY2017AY2015",0]
[null,null,null,null,null,null,null,{"$f":"XBRLMap(H17,H$85&\".\"&$U$4&\".\"&$U$6&\".\"&$U17&\".\"&H$89&\".\"&$U$7,$B$95,$B$96,CONFIGURATION!$B$10,\"BMA\",CONFIGURATION!$B$1,\"bscr\",1000)","v":"Mapped"},{"$f":"XBRLMap(I17,I$85&\".\"&$U$4&\".\"&$U$6&\".\"&$U17&\".\"&I$89&\".\"&$U$7,$B$95,$B$96,CONFIGURATION!$B$10,\"BMA\",CONFIGURATION!$B$1,\"bscr\",1000)","v":"Mapped"},{"$f":"XBRLMap(J17,J$85&\".\"&$U$4&\".\"&$U$6&\".\"&$U17&\".\"&J$89&\".\"&$U$7,$B$95,$B$96,CONFIGURATION!$B$10,\"BMA\",CONFIGURATION!$B$1,\"bscr\",1000)","v":"Mapped"},{"$f":"XBRLMap(K17,K$85&\".\"&$U$4&\".\"&$U$6&\".\"&$U17&\".\"&K$89&\".\"&$U$7,$B$95,$B$96,CONFIGURATION!$B$10,\"BMA\",CONFIGURATION!$B$1,\"bscr\",1000)","v":"Mapped"},{"$f":"XBRLMap(L17,L$85&\".\"&$U$4&\".\"&$U$6&\".\"&$U17&\".\"&L$89&\".\"&$U$7,$B$95,$B$96,CONFIGURATION!$B$10,\"BMA\",CONFIGURATION!$B$1,\"bscr\",1000)","v":"Mapped"},{"$f":"XBRLMap(M17,M$85&\".\"&$U$4&\".\"&$U$6&\".\"&$U17&\".\"&M$89&\".\"&$U$7,$B$95,$B$96,CONFIGURATION!$B$10,\"BMA\",CONFIGURATION!$B$1,\"bscr\",1000)","v":"Mapped"},null,null,null,"PaidCY2017AY2016",0]
[null,null,null,null,null,null,null,null,{"$f":"XBRLMap(I18,I$85&\".\"&$U$4&\".\"&$U$6&\".\"&$U18&\".\"&I$89&\".\"&$U$7,$B$95,$B$96,CONFIGURATION!$B$10,\"BMA\",CONFIGURATION!$B$1,\"bscr\",1000)","v":"Mapped"},{"$f":"XBRLMap(J18,J$85&\".\"&$U$4&\".\"&$U$6&\".\"&$U18&\".\"&J$89&\".\"&$U$7,$B$95,$B$96,CONFIGURATION!$B$10,\"BMA\",CONFIGURATION!$B$1,\"bscr\",1000)","v":"Mapped"},{"$f":"XBRLMap(K18,K$85&\".\"&$U$4&\".\"&$U$6&\".\"&$U18&\".\"&K$89&\".\"&$U$7,$B$95,$B$96,CONFIGURATION!$B$10,\"BMA\",CONFIGURATION!$B$1,\"bscr\",1000)","v":"Mapped"},{"$f":"XBRLMap(L18,L$85&\".\"&$U$4&\".\"&$U$6&\".\"&$U18&\".\"&L$89&\".\"&$U$7,$B$95,$B$96,CONFIGURATION!$B$10,\"BMA\",CONFIGURATION!$B$1,\"bscr\",1000)","v":"Mapped"},{"$f":"XBRLMap(M18,M$85&\".\"&$U$4&\".\"&$U$6&\".\"&$U18&\".\"&M$89&\".\"&$U$7,$B$95,$B$96,CONFIGURATION!$B$10,\"BMA\",CONFIGURATION!$B$1,\"bscr\",1000)","v":"Mapped"},null,null,null,"PaidCY2017AY2017",0]
[null,null,null,null,null,null,null,null,null,{"$f":"XBRLMap(J19,J$85&\".\"&$U$4&\".\"&$U$6&\".\"&$U19&\".\"&J$89&\".\"&$U$7,$B$95,$B$96,CONFIGURATION!$B$10,\"BMA\",CONFIGURATION!$B$1,\"bscr\",1000)","v":"Mapped"},{"$f":"XBRLMap(K19,K$85&\".\"&$U$4&\".\"&$U$6&\".\"&$U19&\".\"&K$89&\".\"&$U$7,$B$95,$B$96,CONFIGURATION!$B$10,\"BMA\",CONFIGURATION!$B$1,\"bscr\",1000)","v":"Mapped"},{"$f":"XBRLMap(L19,L$85&\".\"&$U$4&\".\"&$U$6&\".\"&$U19&\".\"&L$89&\".\"&$U$7,$B$95,$B$96,CONFIGURATION!$B$10,\"BMA\",CONFIGURATION!$B$1,\"bscr\",1000)","v":"Mapped"},{"$f":"XBRLMap(M19,M$85&\".\"&$U$4&\".\"&$U$6&\".\"&$U19&\".\"&M$89&\".\"&$U$7,$B$95,$B$96,CONFIGURATION!$B$10,\"BMA\",CONFIGURATION!$B$1,\"bscr\",1000)","v":"Mapped"},null,null,null,{"$f":"\"PaidCY\"&K$10&\"AY\"&B29","v":"PaidCY2018AYPrior"},{"$f":"K29","v":0}]
[null,null,null,null,null,null,null,null,null,null,{"$f":"XBRLMap(K20,K$85&\".\"&$U$4&\".\"&$U$6&\".\"&$U20&\".\"&K$89&\".\"&$U$7,$B$95,$B$96,CONFIGURATION!$B$10,\"BMA\",CONFIGURATION!$B$1,\"bscr\",1000)","v":"Mapped"},{"$f":"XBRLMap(L20,L$85&\".\"&$U$4&\".\"&$U$6&\".\"&$U20&\".\"&L$89&\".\"&$U$7,$B$95,$B$96,CONFIGURATION!$B$10,\"BMA\",CONFIGURATION!$B$1,\"bscr\",1000)","v":"Mapped"},{"$f":"XBRLMap(M20,M$85&\".\"&$U$4&\".\"&$U$6&\".\"&$U20&\".\"&M$89&\".\"&$U$7,$B$95,$B$96,CONFIGURATION!$B$10,\"BMA\",CONFIGURATION!$B$1,\"bscr\",1000)","v":"Mapped"},null,null,null,"PaidCY2018AY2010",0]
[null,null,null,null,null,null,null,null,null,null,null,{"$f":"XBRLMap(L21,L$85&\".\"&$U$4&\".\"&$U$6&\".\"&$U21&\".\"&L$89&\".\"&$U$7,$B$95,$B$96,CONFIGURATION!$B$10,\"BMA\",CONFIGURATION!$B$1,\"bscr\",1000)","v":"Mapped"},{"$f":"XBRLMap(M21,M$85&\".\"&$U$4&\".\"&$U$6&\".\"&$U21&\".\"&M$89&\".\"&$U$7,$B$95,$B$96,CONFIGURATION!$B$10,\"BMA\",CONFIGURATION!$B$1,\"bscr\",1000)","v":"Mapped"},null,null,null,"PaidCY2018AY2011",0]
[null,null,null,null,null,null,null,null,null,null,null,null,null,null,null,null,"PaidCY2018AY2012",0]
[null,null,null,null,null,null,null,null,null,null,null,null,null,null,null,null,"PaidCY2018AY2013",0]
[null,null,null,null,null,null,null,null,null,null,null,null,null,null,null,null,"PaidCY2018AY2014",0]
[null,null,null,null,null,null,null,null,null,null,null,null,null,null,null,null,"PaidCY2018AY2015",0]
[null,null,null,null,null,null,null,null,null,null,null,null,null,null,null,null,"PaidCY2018AY2016",0]
[null,null,null,null,null,null,null,null,null,null,null,null,null,null,null,null,"PaidCY2018AY2017",0]
[null,null,null,null,null,null,null,null,null,null,null,null,null,null,null,null,"PaidCY2018AY2018",0]
[null,null,null,null,null,null,null,null,null,null,null,null,null,null,null,null,{"$f":"\"PaidCY\"&L$10&\"AY\"&B29","v":"PaidCY2019AYPrior"},{"$f":"L29","v":0}]
[null,null,{"$f":"XBRLMap(C29,C$86&\".\"&$U$4&\".\"&$U29&\".\"&C$89&\".\"&$U$7,$B$95,$B$96,CONFIGURATION!$B$10,\"BMA\",CONFIGURATION!$B$1,\"bscr\",1000)","v":"Mapped"},{"$f":"XBRLMap(D29,D$86&\".\"&$U$4&\".\"&$U29&\".\"&D$89&\".\"&$U$7,$B$95,$B$96,CONFIGURATION!$B$10,\"BMA\",CONFIGURATION!$B$1,\"bscr\",1000)","v":"Mapped"},{"$f":"XBRLMap(E29,E$86&\".\"&$U$4&\".\"&$U29&\".\"&E$89&\".\"&$U$7,$B$95,$B$96,CONFIGURATION!$B$10,\"BMA\",CONFIGURATION!$B$1,\"bscr\",1000)","v":"Mapped"},{"$f":"XBRLMap(F29,F$86&\".\"&$U$4&\".\"&$U29&\".\"&F$89&\".\"&$U$7,$B$95,$B$96,CONFIGURATION!$B$10,\"BMA\",CONFIGURATION!$B$1,\"bscr\",1000)","v":"Mapped"},{"$f":"XBRLMap(G29,G$86&\".\"&$U$4&\".\"&$U29&\".\"&G$89&\".\"&$U$7,$B$95,$B$96,CONFIGURATION!$B$10,\"BMA\",CONFIGURATION!$B$1,\"bscr\",1000)","v":"Mapped"},{"$f":"XBRLMap(H29,H$86&\".\"&$U$4&\".\"&$U29&\".\"&H$89&\".\"&$U$7,$B$95,$B$96,CONFIGURATION!$B$10,\"BMA\",CONFIGURATION!$B$1,\"bscr\",1000)","v":"Mapped"},{"$f":"XBRLMap(I29,I$86&\".\"&$U$4&\".\"&$U29&\".\"&I$89&\".\"&$U$7,$B$95,$B$96,CONFIGURATION!$B$10,\"BMA\",CONFIGURATION!$B$1,\"bscr\",1000)","v":"Mapped"},{"$f":"XBRLMap(J29,J$86&\".\"&$U$4&\".\"&$U29&\".\"&J$89&\".\"&$U$7,$B$95,$B$96,CONFIGURATION!$B$10,\"BMA\",CONFIGURATION!$B$1,\"bscr\",1000)","v":"Mapped"},{"$f":"XBRLMap(K29,K$86&\".\"&$U$4&\".\"&$U29&\".\"&K$89&\".\"&$U$7,$B$95,$B$96,CONFIGURATION!$B$10,\"BMA\",CONFIGURATION!$B$1,\"bscr\",1000)","v":"Mapped"},{"$f":"XBRLMap(L29,L$86&\".\"&$U$4&\".\"&$U29&\".\"&L$89&\".\"&$U$7,$B$95,$B$96,CONFIGURATION!$B$10,\"BMA\",CONFIGURATION!$B$1,\"bscr\",1000)","v":"Mapped"},{"$f":"XBRLMap(M29,M$86&\".\"&$U$4&\".\"&$U29&\".\"&M$89&\".\"&$U$7,$B$95,$B$96,CONFIGURATION!$B$10,\"BMA\",CONFIGURATION!$B$1,\"bscr\",1000)","v":"Mapped"},null,null,null,"PaidCY2019AY2010",0]
[null,null,{"$f":"XBRLMap(C30,C$86&\".\"&$U$4&\".\"&$U30&\".\"&C$89&\".\"&$U$7,$B$95,$B$96,CONFIGURATION!$B$10,\"BMA\",CONFIGURATION!$B$1,\"bscr\",1000)","v":"Mapped"},{"$f":"XBRLMap(D30,D$86&\".\"&$U$4&\".\"&$U30&\".\"&D$89&\".\"&$U$7,$B$95,$B$96,CONFIGURATION!$B$10,\"BMA\",CONFIGURATION!$B$1,\"bscr\",1000)","v":"Mapped"},{"$f":"XBRLMap(E30,E$86&\".\"&$U$4&\".\"&$U30&\".\"&E$89&\".\"&$U$7,$B$95,$B$96,CONFIGURATION!$B$10,\"BMA\",CONFIGURATION!$B$1,\"bscr\",1000)","v":"Mapped"},{"$f":"XBRLMap(F30,F$86&\".\"&$U$4&\".\"&$U30&\".\"&F$89&\".\"&$U$7,$B$95,$B$96,CONFIGURATION!$B$10,\"BMA\",CONFIGURATION!$B$1,\"bscr\",1000)","v":"Mapped"},{"$f":"XBRLMap(G30,G$86&\".\"&$U$4&\".\"&$U30&\".\"&G$89&\".\"&$U$7,$B$95,$B$96,CONFIGURATION!$B$10,\"BMA\",CONFIGURATION!$B$1,\"bscr\",1000)","v":"Mapped"},{"$f":"XBRLMap(H30,H$86&\".\"&$U$4&\".\"&$U30&\".\"&H$89&\".\"&$U$7,$B$95,$B$96,CONFIGURATION!$B$10,\"BMA\",CONFIGURATION!$B$1,\"bscr\",1000)","v":"Mapped"},{"$f":"XBRLMap(I30,I$86&\".\"&$U$4&\".\"&$U30&\".\"&I$89&\".\"&$U$7,$B$95,$B$96,CONFIGURATION!$B$10,\"BMA\",CONFIGURATION!$B$1,\"bscr\",1000)","v":"Mapped"},{"$f":"XBRLMap(J30,J$86&\".\"&$U$4&\".\"&$U30&\".\"&J$89&\".\"&$U$7,$B$95,$B$96,CONFIGURATION!$B$10,\"BMA\",CONFIGURATION!$B$1,\"bscr\",1000)","v":"Mapped"},{"$f":"XBRLMap(K30,K$86&\".\"&$U$4&\".\"&$U30&\".\"&K$89&\".\"&$U$7,$B$95,$B$96,CONFIGURATION!$B$10,\"BMA\",CONFIGURATION!$B$1,\"bscr\",1000)","v":"Mapped"},{"$f":"XBRLMap(L30,L$86&\".\"&$U$4&\".\"&$U30&\".\"&L$89&\".\"&$U$7,$B$95,$B$96,CONFIGURATION!$B$10,\"BMA\",CONFIGURATION!$B$1,\"bscr\",1000)","v":"Mapped"},{"$f":"XBRLMap(M30,M$86&\".\"&$U$4&\".\"&$U30&\".\"&M$89&\".\"&$U$7,$B$95,$B$96,CONFIGURATION!$B$10,\"BMA\",CONFIGURATION!$B$1,\"bscr\",1000)","v":"Mapped"},null,null,null,"PaidCY2019AY2011",0]
[null,null,null,{"$f":"XBRLMap(D31,D$86&\".\"&$U$4&\".\"&$U31&\".\"&D$89&\".\"&$U$7,$B$95,$B$96,CONFIGURATION!$B$10,\"BMA\",CONFIGURATION!$B$1,\"bscr\",1000)","v":"Mapped"},{"$f":"XBRLMap(E31,E$86&\".\"&$U$4&\".\"&$U31&\".\"&E$89&\".\"&$U$7,$B$95,$B$96,CONFIGURATION!$B$10,\"BMA\",CONFIGURATION!$B$1,\"bscr\",1000)","v":"Mapped"},{"$f":"XBRLMap(F31,F$86&\".\"&$U$4&\".\"&$U31&\".\"&F$89&\".\"&$U$7,$B$95,$B$96,CONFIGURATION!$B$10,\"BMA\",CONFIGURATION!$B$1,\"bscr\",1000)","v":"Mapped"},{"$f":"XBRLMap(G31,G$86&\".\"&$U$4&\".\"&$U31&\".\"&G$89&\".\"&$U$7,$B$95,$B$96,CONFIGURATION!$B$10,\"BMA\",CONFIGURATION!$B$1,\"bscr\",1000)","v":"Mapped"},{"$f":"XBRLMap(H31,H$86&\".\"&$U$4&\".\"&$U31&\".\"&H$89&\".\"&$U$7,$B$95,$B$96,CONFIGURATION!$B$10,\"BMA\",CONFIGURATION!$B$1,\"bscr\",1000)","v":"Mapped"},{"$f":"XBRLMap(I31,I$86&\".\"&$U$4&\".\"&$U31&\".\"&I$89&\".\"&$U$7,$B$95,$B$96,CONFIGURATION!$B$10,\"BMA\",CONFIGURATION!$B$1,\"bscr\",1000)","v":"Mapped"},{"$f":"XBRLMap(J31,J$86&\".\"&$U$4&\".\"&$U31&\".\"&J$89&\".\"&$U$7,$B$95,$B$96,CONFIGURATION!$B$10,\"BMA\",CONFIGURATION!$B$1,\"bscr\",1000)","v":"Mapped"},{"$f":"XBRLMap(K31,K$86&\".\"&$U$4&\".\"&$U31&\".\"&K$89&\".\"&$U$7,$B$95,$B$96,CONFIGURATION!$B$10,\"BMA\",CONFIGURATION!$B$1,\"bscr\",1000)","v":"Mapped"},{"$f":"XBRLMap(L31,L$86&\".\"&$U$4&\".\"&$U31&\".\"&L$89&\".\"&$U$7,$B$95,$B$96,CONFIGURATION!$B$10,\"BMA\",CONFIGURATION!$B$1,\"bscr\",1000)","v":"Mapped"},{"$f":"XBRLMap(M31,M$86&\".\"&$U$4&\".\"&$U31&\".\"&M$89&\".\"&$U$7,$B$95,$B$96,CONFIGURATION!$B$10,\"BMA\",CONFIGURATION!$B$1,\"bscr\",1000)","v":"Mapped"},null,null,null,"PaidCY2019AY2012",0]
[null,null,null,null,{"$f":"XBRLMap(E32,E$86&\".\"&$U$4&\".\"&$U32&\".\"&E$89&\".\"&$U$7,$B$95,$B$96,CONFIGURATION!$B$10,\"BMA\",CONFIGURATION!$B$1,\"bscr\",1000)","v":"Mapped"},{"$f":"XBRLMap(F32,F$86&\".\"&$U$4&\".\"&$U32&\".\"&F$89&\".\"&$U$7,$B$95,$B$96,CONFIGURATION!$B$10,\"BMA\",CONFIGURATION!$B$1,\"bscr\",1000)","v":"Mapped"},{"$f":"XBRLMap(G32,G$86&\".\"&$U$4&\".\"&$U32&\".\"&G$89&\".\"&$U$7,$B$95,$B$96,CONFIGURATION!$B$10,\"BMA\",CONFIGURATION!$B$1,\"bscr\",1000)","v":"Mapped"},{"$f":"XBRLMap(H32,H$86&\".\"&$U$4&\".\"&$U32&\".\"&H$89&\".\"&$U$7,$B$95,$B$96,CONFIGURATION!$B$10,\"BMA\",CONFIGURATION!$B$1,\"bscr\",1000)","v":"Mapped"},{"$f":"XBRLMap(I32,I$86&\".\"&$U$4&\".\"&$U32&\".\"&I$89&\".\"&$U$7,$B$95,$B$96,CONFIGURATION!$B$10,\"BMA\",CONFIGURATION!$B$1,\"bscr\",1000)","v":"Mapped"},{"$f":"XBRLMap(J32,J$86&\".\"&$U$4&\".\"&$U32&\".\"&J$89&\".\"&$U$7,$B$95,$B$96,CONFIGURATION!$B$10,\"BMA\",CONFIGURATION!$B$1,\"bscr\",1000)","v":"Mapped"},{"$f":"XBRLMap(K32,K$86&\".\"&$U$4&\".\"&$U32&\".\"&K$89&\".\"&$U$7,$B$95,$B$96,CONFIGURATION!$B$10,\"BMA\",CONFIGURATION!$B$1,\"bscr\",1000)","v":"Mapped"},{"$f":"XBRLMap(L32,L$86&\".\"&$U$4&\".\"&$U32&\".\"&L$89&\".\"&$U$7,$B$95,$B$96,CONFIGURATION!$B$10,\"BMA\",CONFIGURATION!$B$1,\"bscr\",1000)","v":"Mapped"},{"$f":"XBRLMap(M32,M$86&\".\"&$U$4&\".\"&$U32&\".\"&M$89&\".\"&$U$7,$B$95,$B$96,CONFIGURATION!$B$10,\"BMA\",CONFIGURATION!$B$1,\"bscr\",1000)","v":"Mapped"},null,null,null,"PaidCY2019AY2013",0]
[null,null,null,null,null,{"$f":"XBRLMap(F33,F$86&\".\"&$U$4&\".\"&$U33&\".\"&F$89&\".\"&$U$7,$B$95,$B$96,CONFIGURATION!$B$10,\"BMA\",CONFIGURATION!$B$1,\"bscr\",1000)","v":"Mapped"},{"$f":"XBRLMap(G33,G$86&\".\"&$U$4&\".\"&$U33&\".\"&G$89&\".\"&$U$7,$B$95,$B$96,CONFIGURATION!$B$10,\"BMA\",CONFIGURATION!$B$1,\"bscr\",1000)","v":"Mapped"},{"$f":"XBRLMap(H33,H$86&\".\"&$U$4&\".\"&$U33&\".\"&H$89&\".\"&$U$7,$B$95,$B$96,CONFIGURATION!$B$10,\"BMA\",CONFIGURATION!$B$1,\"bscr\",1000)","v":"Mapped"},{"$f":"XBRLMap(I33,I$86&\".\"&$U$4&\".\"&$U33&\".\"&I$89&\".\"&$U$7,$B$95,$B$96,CONFIGURATION!$B$10,\"BMA\",CONFIGURATION!$B$1,\"bscr\",1000)","v":"Mapped"},{"$f":"XBRLMap(J33,J$86&\".\"&$U$4&\".\"&$U33&\".\"&J$89&\".\"&$U$7,$B$95,$B$96,CONFIGURATION!$B$10,\"BMA\",CONFIGURATION!$B$1,\"bscr\",1000)","v":"Mapped"},{"$f":"XBRLMap(K33,K$86&\".\"&$U$4&\".\"&$U33&\".\"&K$89&\".\"&$U$7,$B$95,$B$96,CONFIGURATION!$B$10,\"BMA\",CONFIGURATION!$B$1,\"bscr\",1000)","v":"Mapped"},{"$f":"XBRLMap(L33,L$86&\".\"&$U$4&\".\"&$U33&\".\"&L$89&\".\"&$U$7,$B$95,$B$96,CONFIGURATION!$B$10,\"BMA\",CONFIGURATION!$B$1,\"bscr\",1000)","v":"Mapped"},{"$f":"XBRLMap(M33,M$86&\".\"&$U$4&\".\"&$U33&\".\"&M$89&\".\"&$U$7,$B$95,$B$96,CONFIGURATION!$B$10,\"BMA\",CONFIGURATION!$B$1,\"bscr\",1000)","v":"Mapped"},null,null,null,"PaidCY2019AY2014",0]
[null,null,null,null,null,null,{"$f":"XBRLMap(G34,G$86&\".\"&$U$4&\".\"&$U34&\".\"&G$89&\".\"&$U$7,$B$95,$B$96,CONFIGURATION!$B$10,\"BMA\",CONFIGURATION!$B$1,\"bscr\",1000)","v":"Mapped"},{"$f":"XBRLMap(H34,H$86&\".\"&$U$4&\".\"&$U34&\".\"&H$89&\".\"&$U$7,$B$95,$B$96,CONFIGURATION!$B$10,\"BMA\",CONFIGURATION!$B$1,\"bscr\",1000)","v":"Mapped"},{"$f":"XBRLMap(I34,I$86&\".\"&$U$4&\".\"&$U34&\".\"&I$89&\".\"&$U$7,$B$95,$B$96,CONFIGURATION!$B$10,\"BMA\",CONFIGURATION!$B$1,\"bscr\",1000)","v":"Mapped"},{"$f":"XBRLMap(J34,J$86&\".\"&$U$4&\".\"&$U34&\".\"&J$89&\".\"&$U$7,$B$95,$B$96,CONFIGURATION!$B$10,\"BMA\",CONFIGURATION!$B$1,\"bscr\",1000)","v":"Mapped"},{"$f":"XBRLMap(K34,K$86&\".\"&$U$4&\".\"&$U34&\".\"&K$89&\".\"&$U$7,$B$95,$B$96,CONFIGURATION!$B$10,\"BMA\",CONFIGURATION!$B$1,\"bscr\",1000)","v":"Mapped"},{"$f":"XBRLMap(L34,L$86&\".\"&$U$4&\".\"&$U34&\".\"&L$89&\".\"&$U$7,$B$95,$B$96,CONFIGURATION!$B$10,\"BMA\",CONFIGURATION!$B$1,\"bscr\",1000)","v":"Mapped"},{"$f":"XBRLMap(M34,M$86&\".\"&$U$4&\".\"&$U34&\".\"&M$89&\".\"&$U$7,$B$95,$B$96,CONFIGURATION!$B$10,\"BMA\",CONFIGURATION!$B$1,\"bscr\",1000)","v":"Mapped"},null,null,null,"PaidCY2019AY2015",0]
[null,null,null,null,null,null,null,{"$f":"XBRLMap(H35,H$86&\".\"&$U$4&\".\"&$U35&\".\"&H$89&\".\"&$U$7,$B$95,$B$96,CONFIGURATION!$B$10,\"BMA\",CONFIGURATION!$B$1,\"bscr\",1000)","v":"Mapped"},{"$f":"XBRLMap(I35,I$86&\".\"&$U$4&\".\"&$U35&\".\"&I$89&\".\"&$U$7,$B$95,$B$96,CONFIGURATION!$B$10,\"BMA\",CONFIGURATION!$B$1,\"bscr\",1000)","v":"Mapped"},{"$f":"XBRLMap(J35,J$86&\".\"&$U$4&\".\"&$U35&\".\"&J$89&\".\"&$U$7,$B$95,$B$96,CONFIGURATION!$B$10,\"BMA\",CONFIGURATION!$B$1,\"bscr\",1000)","v":"Mapped"},{"$f":"XBRLMap(K35,K$86&\".\"&$U$4&\".\"&$U35&\".\"&K$89&\".\"&$U$7,$B$95,$B$96,CONFIGURATION!$B$10,\"BMA\",CONFIGURATION!$B$1,\"bscr\",1000)","v":"Mapped"},{"$f":"XBRLMap(L35,L$86&\".\"&$U$4&\".\"&$U35&\".\"&L$89&\".\"&$U$7,$B$95,$B$96,CONFIGURATION!$B$10,\"BMA\",CONFIGURATION!$B$1,\"bscr\",1000)","v":"Mapped"},{"$f":"XBRLMap(M35,M$86&\".\"&$U$4&\".\"&$U35&\".\"&M$89&\".\"&$U$7,$B$95,$B$96,CONFIGURATION!$B$10,\"BMA\",CONFIGURATION!$B$1,\"bscr\",1000)","v":"Mapped"},null,null,null,"PaidCY2019AY2016",0]
[null,null,null,null,null,null,null,null,{"$f":"XBRLMap(I36,I$86&\".\"&$U$4&\".\"&$U36&\".\"&I$89&\".\"&$U$7,$B$95,$B$96,CONFIGURATION!$B$10,\"BMA\",CONFIGURATION!$B$1,\"bscr\",1000)","v":"Mapped"},{"$f":"XBRLMap(J36,J$86&\".\"&$U$4&\".\"&$U36&\".\"&J$89&\".\"&$U$7,$B$95,$B$96,CONFIGURATION!$B$10,\"BMA\",CONFIGURATION!$B$1,\"bscr\",1000)","v":"Mapped"},{"$f":"XBRLMap(K36,K$86&\".\"&$U$4&\".\"&$U36&\".\"&K$89&\".\"&$U$7,$B$95,$B$96,CONFIGURATION!$B$10,\"BMA\",CONFIGURATION!$B$1,\"bscr\",1000)","v":"Mapped"},{"$f":"XBRLMap(L36,L$86&\".\"&$U$4&\".\"&$U36&\".\"&L$89&\".\"&$U$7,$B$95,$B$96,CONFIGURATION!$B$10,\"BMA\",CONFIGURATION!$B$1,\"bscr\",1000)","v":"Mapped"},{"$f":"XBRLMap(M36,M$86&\".\"&$U$4&\".\"&$U36&\".\"&M$89&\".\"&$U$7,$B$95,$B$96,CONFIGURATION!$B$10,\"BMA\",CONFIGURATION!$B$1,\"bscr\",1000)","v":"Mapped"},null,null,null,"PaidCY2019AY2017",0]
[null,null,null,null,null,null,null,null,null,{"$f":"XBRLMap(J37,J$86&\".\"&$U$4&\".\"&$U37&\".\"&J$89&\".\"&$U$7,$B$95,$B$96,CONFIGURATION!$B$10,\"BMA\",CONFIGURATION!$B$1,\"bscr\",1000)","v":"Mapped"},{"$f":"XBRLMap(K37,K$86&\".\"&$U$4&\".\"&$U37&\".\"&K$89&\".\"&$U$7,$B$95,$B$96,CONFIGURATION!$B$10,\"BMA\",CONFIGURATION!$B$1,\"bscr\",1000)","v":"Mapped"},{"$f":"XBRLMap(L37,L$86&\".\"&$U$4&\".\"&$U37&\".\"&L$89&\".\"&$U$7,$B$95,$B$96,CONFIGURATION!$B$10,\"BMA\",CONFIGURATION!$B$1,\"bscr\",1000)","v":"Mapped"},{"$f":"XBRLMap(M37,M$86&\".\"&$U$4&\".\"&$U37&\".\"&M$89&\".\"&$U$7,$B$95,$B$96,CONFIGURATION!$B$10,\"BMA\",CONFIGURATION!$B$1,\"bscr\",1000)","v":"Mapped"},null,null,null,"PaidCY2019AY2018",0]
[null,null,null,null,null,null,null,null,null,null,{"$f":"XBRLMap(K38,K$86&\".\"&$U$4&\".\"&$U38&\".\"&K$89&\".\"&$U$7,$B$95,$B$96,CONFIGURATION!$B$10,\"BMA\",CONFIGURATION!$B$1,\"bscr\",1000)","v":"Mapped"},{"$f":"XBRLMap(L38,L$86&\".\"&$U$4&\".\"&$U38&\".\"&L$89&\".\"&$U$7,$B$95,$B$96,CONFIGURATION!$B$10,\"BMA\",CONFIGURATION!$B$1,\"bscr\",1000)","v":"Mapped"},{"$f":"XBRLMap(M38,M$86&\".\"&$U$4&\".\"&$U38&\".\"&M$89&\".\"&$U$7,$B$95,$B$96,CONFIGURATION!$B$10,\"BMA\",CONFIGURATION!$B$1,\"bscr\",1000)","v":"Mapped"},null,null,null,"PaidCY2019AY2019",0]
[null,null,null,null,null,null,null,null,null,null,null,{"$f":"XBRLMap(L39,L$86&\".\"&$U$4&\".\"&$U39&\".\"&L$89&\".\"&$U$7,$B$95,$B$96,CONFIGURATION!$B$10,\"BMA\",CONFIGURATION!$B$1,\"bscr\",1000)","v":"Mapped"},{"$f":"XBRLMap(M39,M$86&\".\"&$U$4&\".\"&$U39&\".\"&M$89&\".\"&$U$7,$B$95,$B$96,CONFIGURATION!$B$10,\"BMA\",CONFIGURATION!$B$1,\"bscr\",1000)","v":"Mapped"},null,null,null,{"$f":"\"IBNRCY\"&C$10&\"AY\"&B47","v":"IBNRCY2010AYPrior"},{"$f":"C47","v":0}]
[null,null,null,null,null,null,null,null,null,null,null,null,null,null,null,null,{"$f":"\"IBNRCY\"&C$10&\"AY\"&B48","v":"IBNRCY2010AY2010"},{"$f":"C48","v":0}]
[null,null,null,null,null,null,null,null,null,null,null,null,null,null,null,null,{"$f":"\"IBNRCY\"&D$10&\"AY\"&B47","v":"IBNRCY2011AYPrior"},{"$f":"D47","v":0}]
[null,null,null,null,null,null,null,null,null,null,null,null,null,null,null,null,{"$f":"\"IBNRCY\"&D$10&\"AY\"&B48","v":"IBNRCY2011AY2010"},{"$f":"D48","v":0}]
[null,null,null,null,null,null,null,null,null,null,null,null,null,null,null,null,{"$f":"\"IBNRCY\"&D$10&\"AY\"&B49","v":"IBNRCY2011AY2011"},{"$f":"D49","v":0}]
[null,null,null,null,null,null,null,null,null,null,null,null,null,null,null,null,{"$f":"\"IBNRCY\"&E$10&\"AY\"&B47","v":"IBNRCY2012AYPrior"},{"$f":"E47","v":0}]
[null,null,null,null,null,null,null,null,null,null,null,null,null,null,null,null,{"$f":"\"IBNRCY\"&E$10&\"AY\"&B48","v":"IBNRCY2012AY2010"},{"$f":"E48","v":0}]
[null,null,null,null,null,null,null,null,null,null,null,null,null,null,null,null,{"$f":"\"IBNRCY\"&E$10&\"AY\"&B49","v":"IBNRCY2012AY2011"},{"$f":"E49","v":0}]
[null,null,null,null,null,null,null,null,null,null,null,null,null,null,null,null,{"$f":"\"IBNRCY\"&E$10&\"AY\"&B50","v":"IBNRCY2012AY2012"},{"$f":"E50","v":0}]
[null,null,{"$f":"XBRLMap(C47,C$87&\".\"&$U$4&\".\"&$U47&\".\"&C$89&\".\"&$U$7,$B$95,$B$96,CONFIGURATION!$B$10,\"BMA\",CONFIGURATION!$B$1,\"bscr\",1000)","v":"Mapped"},{"$f":"XBRLMap(D47,D$87&\".\"&$U$4&\".\"&$U47&\".\"&D$89&\".\"&$U$7,$B$95,$B$96,CONFIGURATION!$B$10,\"BMA\",CONFIGURATION!$B$1,\"bscr\",1000)","v":"Mapped"},{"$f":"XBRLMap(E47,E$87&\".\"&$U$4&\".\"&$U47&\".\"&E$89&\".\"&$U$7,$B$95,$B$96,CONFIGURATION!$B$10,\"BMA\",CONFIGURATION!$B$1,\"bscr\",1000)","v":"Mapped"},{"$f":"XBRLMap(F47,F$87&\".\"&$U$4&\".\"&$U47&\".\"&F$89&\".\"&$U$7,$B$95,$B$96,CONFIGURATION!$B$10,\"BMA\",CONFIGURATION!$B$1,\"bscr\",1000)","v":"Mapped"},{"$f":"XBRLMap(G47,G$87&\".\"&$U$4&\".\"&$U47&\".\"&G$89&\".\"&$U$7,$B$95,$B$96,CONFIGURATION!$B$10,\"BMA\",CONFIGURATION!$B$1,\"bscr\",1000)","v":"Mapped"},{"$f":"XBRLMap(H47,H$87&\".\"&$U$4&\".\"&$U47&\".\"&H$89&\".\"&$U$7,$B$95,$B$96,CONFIGURATION!$B$10,\"BMA\",CONFIGURATION!$B$1,\"bscr\",1000)","v":"Mapped"},{"$f":"XBRLMap(I47,I$87&\".\"&$U$4&\".\"&$U47&\".\"&I$89&\".\"&$U$7,$B$95,$B$96,CONFIGURATION!$B$10,\"BMA\",CONFIGURATION!$B$1,\"bscr\",1000)","v":"Mapped"},{"$f":"XBRLMap(J47,J$87&\".\"&$U$4&\".\"&$U47&\".\"&J$89&\".\"&$U$7,$B$95,$B$96,CONFIGURATION!$B$10,\"BMA\",CONFIGURATION!$B$1,\"bscr\",1000)","v":"Mapped"},{"$f":"XBRLMap(K47,K$87&\".\"&$U$4&\".\"&$U47&\".\"&K$89&\".\"&$U$7,$B$95,$B$96,CONFIGURATION!$B$10,\"BMA\",CONFIGURATION!$B$1,\"bscr\",1000)","v":"Mapped"},{"$f":"XBRLMap(L47,L$87&\".\"&$U$4&\".\"&$U47&\".\"&L$89&\".\"&$U$7,$B$95,$B$96,CONFIGURATION!$B$10,\"BMA\",CONFIGURATION!$B$1,\"bscr\",1000)","v":"Mapped"},{"$f":"XBRLMap(M47,M$87&\".\"&$U$4&\".\"&$U47&\".\"&M$89&\".\"&$U$7,$B$95,$B$96,CONFIGURATION!$B$10,\"BMA\",CONFIGURATION!$B$1,\"bscr\",1000)","v":"Mapped"},null,null,null,{"$f":"\"IBNRCY\"&F$10&\"AY\"&B47","v":"IBNRCY2013AYPrior"},{"$f":"F47","v":0}]
[null,null,{"$f":"XBRLMap(C48,C$87&\".\"&$U$4&\".\"&$U48&\".\"&C$89&\".\"&$U$7,$B$95,$B$96,CONFIGURATION!$B$10,\"BMA\",CONFIGURATION!$B$1,\"bscr\",1000)","v":"Mapped"},{"$f":"XBRLMap(D48,D$87&\".\"&$U$4&\".\"&$U48&\".\"&D$89&\".\"&$U$7,$B$95,$B$96,CONFIGURATION!$B$10,\"BMA\",CONFIGURATION!$B$1,\"bscr\",1000)","v":"Mapped"},{"$f":"XBRLMap(E48,E$87&\".\"&$U$4&\".\"&$U48&\".\"&E$89&\".\"&$U$7,$B$95,$B$96,CONFIGURATION!$B$10,\"BMA\",CONFIGURATION!$B$1,\"bscr\",1000)","v":"Mapped"},{"$f":"XBRLMap(F48,F$87&\".\"&$U$4&\".\"&$U48&\".\"&F$89&\".\"&$U$7,$B$95,$B$96,CONFIGURATION!$B$10,\"BMA\",CONFIGURATION!$B$1,\"bscr\",1000)","v":"Mapped"},{"$f":"XBRLMap(G48,G$87&\".\"&$U$4&\".\"&$U48&\".\"&G$89&\".\"&$U$7,$B$95,$B$96,CONFIGURATION!$B$10,\"BMA\",CONFIGURATION!$B$1,\"bscr\",1000)","v":"Mapped"},{"$f":"XBRLMap(H48,H$87&\".\"&$U$4&\".\"&$U48&\".\"&H$89&\".\"&$U$7,$B$95,$B$96,CONFIGURATION!$B$10,\"BMA\",CONFIGURATION!$B$1,\"bscr\",1000)","v":"Mapped"},{"$f":"XBRLMap(I48,I$87&\".\"&$U$4&\".\"&$U48&\".\"&I$89&\".\"&$U$7,$B$95,$B$96,CONFIGURATION!$B$10,\"BMA\",CONFIGURATION!$B$1,\"bscr\",1000)","v":"Mapped"},{"$f":"XBRLMap(J48,J$87&\".\"&$U$4&\".\"&$U48&\".\"&J$89&\".\"&$U$7,$B$95,$B$96,CONFIGURATION!$B$10,\"BMA\",CONFIGURATION!$B$1,\"bscr\",1000)","v":"Mapped"},{"$f":"XBRLMap(K48,K$87&\".\"&$U$4&\".\"&$U48&\".\"&K$89&\".\"&$U$7,$B$95,$B$96,CONFIGURATION!$B$10,\"BMA\",CONFIGURATION!$B$1,\"bscr\",1000)","v":"Mapped"},{"$f":"XBRLMap(L48,L$87&\".\"&$U$4&\".\"&$U48&\".\"&L$89&\".\"&$U$7,$B$95,$B$96,CONFIGURATION!$B$10,\"BMA\",CONFIGURATION!$B$1,\"bscr\",1000)","v":"Mapped"},{"$f":"XBRLMap(M48,M$87&\".\"&$U$4&\".\"&$U48&\".\"&M$89&\".\"&$U$7,$B$95,$B$96,CONFIGURATION!$B$10,\"BMA\",CONFIGURATION!$B$1,\"bscr\",1000)","v":"Mapped"},null,null,null,{"$f":"\"IBNRCY\"&F$10&\"AY\"&B48","v":"IBNRCY2013AY2010"},{"$f":"F48","v":0}]
[null,null,null,{"$f":"XBRLMap(D49,D$87&\".\"&$U$4&\".\"&$U49&\".\"&D$89&\".\"&$U$7,$B$95,$B$96,CONFIGURATION!$B$10,\"BMA\",CONFIGURATION!$B$1,\"bscr\",1000)","v":"Mapped"},{"$f":"XBRLMap(E49,E$87&\".\"&$U$4&\".\"&$U49&\".\"&E$89&\".\"&$U$7,$B$95,$B$96,CONFIGURATION!$B$10,\"BMA\",CONFIGURATION!$B$1,\"bscr\",1000)","v":"Mapped"},{"$f":"XBRLMap(F49,F$87&\".\"&$U$4&\".\"&$U49&\".\"&F$89&\".\"&$U$7,$B$95,$B$96,CONFIGURATION!$B$10,\"BMA\",CONFIGURATION!$B$1,\"bscr\",1000)","v":"Mapped"},{"$f":"XBRLMap(G49,G$87&\".\"&$U$4&\".\"&$U49&\".\"&G$89&\".\"&$U$7,$B$95,$B$96,CONFIGURATION!$B$10,\"BMA\",CONFIGURATION!$B$1,\"bscr\",1000)","v":"Mapped"},{"$f":"XBRLMap(H49,H$87&\".\"&$U$4&\".\"&$U49&\".\"&H$89&\".\"&$U$7,$B$95,$B$96,CONFIGURATION!$B$10,\"BMA\",CONFIGURATION!$B$1,\"bscr\",1000)","v":"Mapped"},{"$f":"XBRLMap(I49,I$87&\".\"&$U$4&\".\"&$U49&\".\"&I$89&\".\"&$U$7,$B$95,$B$96,CONFIGURATION!$B$10,\"BMA\",CONFIGURATION!$B$1,\"bscr\",1000)","v":"Mapped"},{"$f":"XBRLMap(J49,J$87&\".\"&$U$4&\".\"&$U49&\".\"&J$89&\".\"&$U$7,$B$95,$B$96,CONFIGURATION!$B$10,\"BMA\",CONFIGURATION!$B$1,\"bscr\",1000)","v":"Mapped"},{"$f":"XBRLMap(K49,K$87&\".\"&$U$4&\".\"&$U49&\".\"&K$89&\".\"&$U$7,$B$95,$B$96,CONFIGURATION!$B$10,\"BMA\",CONFIGURATION!$B$1,\"bscr\",1000)","v":"Mapped"},{"$f":"XBRLMap(L49,L$87&\".\"&$U$4&\".\"&$U49&\".\"&L$89&\".\"&$U$7,$B$95,$B$96,CONFIGURATION!$B$10,\"BMA\",CONFIGURATION!$B$1,\"bscr\",1000)","v":"Mapped"},{"$f":"XBRLMap(M49,M$87&\".\"&$U$4&\".\"&$U49&\".\"&M$89&\".\"&$U$7,$B$95,$B$96,CONFIGURATION!$B$10,\"BMA\",CONFIGURATION!$B$1,\"bscr\",1000)","v":"Mapped"},null,null,null,{"$f":"\"IBNRCY\"&F$10&\"AY\"&B49","v":"IBNRCY2013AY2011"},{"$f":"F49","v":0}]
[null,null,null,null,{"$f":"XBRLMap(E50,E$87&\".\"&$U$4&\".\"&$U50&\".\"&E$89&\".\"&$U$7,$B$95,$B$96,CONFIGURATION!$B$10,\"BMA\",CONFIGURATION!$B$1,\"bscr\",1000)","v":"Mapped"},{"$f":"XBRLMap(F50,F$87&\".\"&$U$4&\".\"&$U50&\".\"&F$89&\".\"&$U$7,$B$95,$B$96,CONFIGURATION!$B$10,\"BMA\",CONFIGURATION!$B$1,\"bscr\",1000)","v":"Mapped"},{"$f":"XBRLMap(G50,G$87&\".\"&$U$4&\".\"&$U50&\".\"&G$89&\".\"&$U$7,$B$95,$B$96,CONFIGURATION!$B$10,\"BMA\",CONFIGURATION!$B$1,\"bscr\",1000)","v":"Mapped"},{"$f":"XBRLMap(H50,H$87&\".\"&$U$4&\".\"&$U50&\".\"&H$89&\".\"&$U$7,$B$95,$B$96,CONFIGURATION!$B$10,\"BMA\",CONFIGURATION!$B$1,\"bscr\",1000)","v":"Mapped"},{"$f":"XBRLMap(I50,I$87&\".\"&$U$4&\".\"&$U50&\".\"&I$89&\".\"&$U$7,$B$95,$B$96,CONFIGURATION!$B$10,\"BMA\",CONFIGURATION!$B$1,\"bscr\",1000)","v":"Mapped"},{"$f":"XBRLMap(J50,J$87&\".\"&$U$4&\".\"&$U50&\".\"&J$89&\".\"&$U$7,$B$95,$B$96,CONFIGURATION!$B$10,\"BMA\",CONFIGURATION!$B$1,\"bscr\",1000)","v":"Mapped"},{"$f":"XBRLMap(K50,K$87&\".\"&$U$4&\".\"&$U50&\".\"&K$89&\".\"&$U$7,$B$95,$B$96,CONFIGURATION!$B$10,\"BMA\",CONFIGURATION!$B$1,\"bscr\",1000)","v":"Mapped"},{"$f":"XBRLMap(L50,L$87&\".\"&$U$4&\".\"&$U50&\".\"&L$89&\".\"&$U$7,$B$95,$B$96,CONFIGURATION!$B$10,\"BMA\",CONFIGURATION!$B$1,\"bscr\",1000)","v":"Mapped"},{"$f":"XBRLMap(M50,M$87&\".\"&$U$4&\".\"&$U50&\".\"&M$89&\".\"&$U$7,$B$95,$B$96,CONFIGURATION!$B$10,\"BMA\",CONFIGURATION!$B$1,\"bscr\",1000)","v":"Mapped"},null,null,null,{"$f":"\"IBNRCY\"&F$10&\"AY\"&B50","v":"IBNRCY2013AY2012"},{"$f":"F50","v":0}]
[null,null,null,null,null,{"$f":"XBRLMap(F51,F$87&\".\"&$U$4&\".\"&$U51&\".\"&F$89&\".\"&$U$7,$B$95,$B$96,CONFIGURATION!$B$10,\"BMA\",CONFIGURATION!$B$1,\"bscr\",1000)","v":"Mapped"},{"$f":"XBRLMap(G51,G$87&\".\"&$U$4&\".\"&$U51&\".\"&G$89&\".\"&$U$7,$B$95,$B$96,CONFIGURATION!$B$10,\"BMA\",CONFIGURATION!$B$1,\"bscr\",1000)","v":"Mapped"},{"$f":"XBRLMap(H51,H$87&\".\"&$U$4&\".\"&$U51&\".\"&H$89&\".\"&$U$7,$B$95,$B$96,CONFIGURATION!$B$10,\"BMA\",CONFIGURATION!$B$1,\"bscr\",1000)","v":"Mapped"},{"$f":"XBRLMap(I51,I$87&\".\"&$U$4&\".\"&$U51&\".\"&I$89&\".\"&$U$7,$B$95,$B$96,CONFIGURATION!$B$10,\"BMA\",CONFIGURATION!$B$1,\"bscr\",1000)","v":"Mapped"},{"$f":"XBRLMap(J51,J$87&\".\"&$U$4&\".\"&$U51&\".\"&J$89&\".\"&$U$7,$B$95,$B$96,CONFIGURATION!$B$10,\"BMA\",CONFIGURATION!$B$1,\"bscr\",1000)","v":"Mapped"},{"$f":"XBRLMap(K51,K$87&\".\"&$U$4&\".\"&$U51&\".\"&K$89&\".\"&$U$7,$B$95,$B$96,CONFIGURATION!$B$10,\"BMA\",CONFIGURATION!$B$1,\"bscr\",1000)","v":"Mapped"},{"$f":"XBRLMap(L51,L$87&\".\"&$U$4&\".\"&$U51&\".\"&L$89&\".\"&$U$7,$B$95,$B$96,CONFIGURATION!$B$10,\"BMA\",CONFIGURATION!$B$1,\"bscr\",1000)","v":"Mapped"},{"$f":"XBRLMap(M51,M$87&\".\"&$U$4&\".\"&$U51&\".\"&M$89&\".\"&$U$7,$B$95,$B$96,CONFIGURATION!$B$10,\"BMA\",CONFIGURATION!$B$1,\"bscr\",1000)","v":"Mapped"},null,null,null,{"$f":"\"IBNRCY\"&F$10&\"AY\"&B51","v":"IBNRCY2013AY2013"},{"$f":"F51","v":0}]
[null,null,null,null,null,null,{"$f":"XBRLMap(G52,G$87&\".\"&$U$4&\".\"&$U52&\".\"&G$89&\".\"&$U$7,$B$95,$B$96,CONFIGURATION!$B$10,\"BMA\",CONFIGURATION!$B$1,\"bscr\",1000)","v":"Mapped"},{"$f":"XBRLMap(H52,H$87&\".\"&$U$4&\".\"&$U52&\".\"&H$89&\".\"&$U$7,$B$95,$B$96,CONFIGURATION!$B$10,\"BMA\",CONFIGURATION!$B$1,\"bscr\",1000)","v":"Mapped"},{"$f":"XBRLMap(I52,I$87&\".\"&$U$4&\".\"&$U52&\".\"&I$89&\".\"&$U$7,$B$95,$B$96,CONFIGURATION!$B$10,\"BMA\",CONFIGURATION!$B$1,\"bscr\",1000)","v":"Mapped"},{"$f":"XBRLMap(J52,J$87&\".\"&$U$4&\".\"&$U52&\".\"&J$89&\".\"&$U$7,$B$95,$B$96,CONFIGURATION!$B$10,\"BMA\",CONFIGURATION!$B$1,\"bscr\",1000)","v":"Mapped"},{"$f":"XBRLMap(K52,K$87&\".\"&$U$4&\".\"&$U52&\".\"&K$89&\".\"&$U$7,$B$95,$B$96,CONFIGURATION!$B$10,\"BMA\",CONFIGURATION!$B$1,\"bscr\",1000)","v":"Mapped"},{"$f":"XBRLMap(L52,L$87&\".\"&$U$4&\".\"&$U52&\".\"&L$89&\".\"&$U$7,$B$95,$B$96,CONFIGURATION!$B$10,\"BMA\",CONFIGURATION!$B$1,\"bscr\",1000)","v":"Mapped"},{"$f":"XBRLMap(M52,M$87&\".\"&$U$4&\".\"&$U52&\".\"&M$89&\".\"&$U$7,$B$95,$B$96,CONFIGURATION!$B$10,\"BMA\",CONFIGURATION!$B$1,\"bscr\",1000)","v":"Mapped"},null,null,null,{"$f":"\"IBNRCY\"&G$10&\"AY\"&B47","v":"IBNRCY2014AYPrior"},{"$f":"G47","v":0}]
[null,null,null,null,null,null,null,{"$f":"XBRLMap(H53,H$87&\".\"&$U$4&\".\"&$U53&\".\"&H$89&\".\"&$U$7,$B$95,$B$96,CONFIGURATION!$B$10,\"BMA\",CONFIGURATION!$B$1,\"bscr\",1000)","v":"Mapped"},{"$f":"XBRLMap(I53,I$87&\".\"&$U$4&\".\"&$U53&\".\"&I$89&\".\"&$U$7,$B$95,$B$96,CONFIGURATION!$B$10,\"BMA\",CONFIGURATION!$B$1,\"bscr\",1000)","v":"Mapped"},{"$f":"XBRLMap(J53,J$87&\".\"&$U$4&\".\"&$U53&\".\"&J$89&\".\"&$U$7,$B$95,$B$96,CONFIGURATION!$B$10,\"BMA\",CONFIGURATION!$B$1,\"bscr\",1000)","v":"Mapped"},{"$f":"XBRLMap(K53,K$87&\".\"&$U$4&\".\"&$U53&\".\"&K$89&\".\"&$U$7,$B$95,$B$96,CONFIGURATION!$B$10,\"BMA\",CONFIGURATION!$B$1,\"bscr\",1000)","v":"Mapped"},{"$f":"XBRLMap(L53,L$87&\".\"&$U$4&\".\"&$U53&\".\"&L$89&\".\"&$U$7,$B$95,$B$96,CONFIGURATION!$B$10,\"BMA\",CONFIGURATION!$B$1,\"bscr\",1000)","v":"Mapped"},{"$f":"XBRLMap(M53,M$87&\".\"&$U$4&\".\"&$U53&\".\"&M$89&\".\"&$U$7,$B$95,$B$96,CONFIGURATION!$B$10,\"BMA\",CONFIGURATION!$B$1,\"bscr\",1000)","v":"Mapped"},null,null,null,"IBNRCY2014AY2010",0]
[null,null,null,null,null,null,null,null,{"$f":"XBRLMap(I54,I$87&\".\"&$U$4&\".\"&$U54&\".\"&I$89&\".\"&$U$7,$B$95,$B$96,CONFIGURATION!$B$10,\"BMA\",CONFIGURATION!$B$1,\"bscr\",1000)","v":"Mapped"},{"$f":"XBRLMap(J54,J$87&\".\"&$U$4&\".\"&$U54&\".\"&J$89&\".\"&$U$7,$B$95,$B$96,CONFIGURATION!$B$10,\"BMA\",CONFIGURATION!$B$1,\"bscr\",1000)","v":"Mapped"},{"$f":"XBRLMap(K54,K$87&\".\"&$U$4&\".\"&$U54&\".\"&K$89&\".\"&$U$7,$B$95,$B$96,CONFIGURATION!$B$10,\"BMA\",CONFIGURATION!$B$1,\"bscr\",1000)","v":"Mapped"},{"$f":"XBRLMap(L54,L$87&\".\"&$U$4&\".\"&$U54&\".\"&L$89&\".\"&$U$7,$B$95,$B$96,CONFIGURATION!$B$10,\"BMA\",CONFIGURATION!$B$1,\"bscr\",1000)","v":"Mapped"},{"$f":"XBRLMap(M54,M$87&\".\"&$U$4&\".\"&$U54&\".\"&M$89&\".\"&$U$7,$B$95,$B$96,CONFIGURATION!$B$10,\"BMA\",CONFIGURATION!$B$1,\"bscr\",1000)","v":"Mapped"},null,null,null,"IBNRCY2014AY2011",0]
[null,null,null,null,null,null,null,null,null,{"$f":"XBRLMap(J55,J$87&\".\"&$U$4&\".\"&$U55&\".\"&J$89&\".\"&$U$7,$B$95,$B$96,CONFIGURATION!$B$10,\"BMA\",CONFIGURATION!$B$1,\"bscr\",1000)","v":"Mapped"},{"$f":"XBRLMap(K55,K$87&\".\"&$U$4&\".\"&$U55&\".\"&K$89&\".\"&$U$7,$B$95,$B$96,CONFIGURATION!$B$10,\"BMA\",CONFIGURATION!$B$1,\"bscr\",1000)","v":"Mapped"},{"$f":"XBRLMap(L55,L$87&\".\"&$U$4&\".\"&$U55&\".\"&L$89&\".\"&$U$7,$B$95,$B$96,CONFIGURATION!$B$10,\"BMA\",CONFIGURATION!$B$1,\"bscr\",1000)","v":"Mapped"},{"$f":"XBRLMap(M55,M$87&\".\"&$U$4&\".\"&$U55&\".\"&M$89&\".\"&$U$7,$B$95,$B$96,CONFIGURATION!$B$10,\"BMA\",CONFIGURATION!$B$1,\"bscr\",1000)","v":"Mapped"},null,null,null,"IBNRCY2014AY2012",0]
[null,null,null,null,null,null,null,null,null,null,{"$f":"XBRLMap(K56,K$87&\".\"&$U$4&\".\"&$U56&\".\"&K$89&\".\"&$U$7,$B$95,$B$96,CONFIGURATION!$B$10,\"BMA\",CONFIGURATION!$B$1,\"bscr\",1000)","v":"Mapped"},{"$f":"XBRLMap(L56,L$87&\".\"&$U$4&\".\"&$U56&\".\"&L$89&\".\"&$U$7,$B$95,$B$96,CONFIGURATION!$B$10,\"BMA\",CONFIGURATION!$B$1,\"bscr\",1000)","v":"Mapped"},{"$f":"XBRLMap(M56,M$87&\".\"&$U$4&\".\"&$U56&\".\"&M$89&\".\"&$U$7,$B$95,$B$96,CONFIGURATION!$B$10,\"BMA\",CONFIGURATION!$B$1,\"bscr\",1000)","v":"Mapped"},null,null,null,"IBNRCY2014AY2013",0]
[null,null,null,null,null,null,null,null,null,null,null,{"$f":"XBRLMap(L57,L$87&\".\"&$U$4&\".\"&$U57&\".\"&L$89&\".\"&$U$7,$B$95,$B$96,CONFIGURATION!$B$10,\"BMA\",CONFIGURATION!$B$1,\"bscr\",1000)","v":"Mapped"},{"$f":"XBRLMap(M57,M$87&\".\"&$U$4&\".\"&$U57&\".\"&M$89&\".\"&$U$7,$B$95,$B$96,CONFIGURATION!$B$10,\"BMA\",CONFIGURATION!$B$1,\"bscr\",1000)","v":"Mapped"},null,null,null,"IBNRCY2014AY2014",0]
[null,null,null,null,null,null,null,null,null,null,null,null,null,null,null,null,{"$f":"\"IBNRCY\"&H$10&\"AY\"&B47","v":"IBNRCY2015AYPrior"},{"$f":"H47","v":0}]
[null,null,null,null,null,null,null,null,null,null,null,null,null,null,null,null,"IBNRCY2015AY2010",0]
[null,null,null,null,null,null,null,null,null,null,null,null,null,null,null,null,"IBNRCY2015AY2011",0]
[null,null,null,null,null,null,null,null,null,null,null,null,null,null,null,null,"IBNRCY2015AY2012",0]
[null,null,null,null,null,null,null,null,null,null,null,null,null,null,null,null,"IBNRCY2015AY2013",0]
[null,null,null,null,null,null,null,null,null,null,null,null,null,null,null,null,"IBNRCY2015AY2014",0]
[null,null,null,null,null,null,null,null,null,null,null,null,null,null,null,null,"IBNRCY2015AY2015",0]
[null,null,null,null,null,null,null,null,null,null,null,null,null,null,null,null,{"$f":"\"IBNRCY\"&I$10&\"AY\"&B47","v":"IBNRCY2016AYPrior"},{"$f":"I47","v":0}]
[null,null,null,null,null,null,null,null,null,null,null,null,null,null,null,null,"IBNRCY2016AY2010",0]
[null,null,null,null,null,null,null,null,null,null,null,null,null,null,null,null,"IBNRCY2016AY2011",0]
[null,null,null,null,null,null,{"$f":"XBRLMap(G67,G$88&\".\"&$U$4&\".\"&$U67&\".\"&$U$7,$B$95,$B$96,CONFIGURATION!$B$10,\"BMA\",CONFIGURATION!$B$1,\"bscr\",1000)","v":"Mapped"},{"$f":"XBRLMap(H67,H$88&\".\"&$U$4&\".\"&$U67&\".\"&$U$7,$B$95,$B$96,CONFIGURATION!$B$10,\"BMA\",CONFIGURATION!$B$1,\"bscr\",1000)","v":"Mapped"},null,{"$f":"XBRLMap(J67,J$88&\".\"&$U$4&\".\"&$V67&\".\"&$U$7,$B$95,$B$96,CONFIGURATION!$B$10,\"BMA\",CONFIGURATION!$B$1,\"bscr\",1000)","v":"Mapped"},{"$f":"XBRLMap(K67,K$88&\".\"&$U$4&\".\"&$V67&\".\"&$U$7,$B$95,$B$96,CONFIGURATION!$B$10,\"BMA\",CONFIGURATION!$B$1,\"bscr\",1000)","v":"Mapped"},{"$f":"XBRLMap(L67,L$88&\".\"&$U$4&\".\"&$V67&\".\"&$U$7,$B$95,$B$96,CONFIGURATION!$B$10,\"BMA\",CONFIGURATION!$B$1,\"bscr\",1000)","v":"Mapped"},{"$f":"XBRLMap(M67,M$88&\".\"&$U$4&\".\"&$V67&\".\"&$U$7,$B$95,$B$96,CONFIGURATION!$B$10,\"BMA\",CONFIGURATION!$B$1,\"bscr\",1000)","v":"Mapped"},null,null,null,"IBNRCY2016AY2012",0]
[null,null,{"$f":"XBRLMap(C68,C$88&\".\"&$U$4&\".\"&$U68&\".\"&$U$7,$B$95,$B$96,CONFIGURATION!$B$10,\"BMA\",CONFIGURATION!$B$1,\"bscr\",1000)","v":"Mapped"},{"$f":"XBRLMap(D68,D$88&\".\"&$U$4&\".\"&$U68&\".\"&$U$7,$B$95,$B$96,CONFIGURATION!$B$10,\"BMA\",CONFIGURATION!$B$1,\"bscr\",1000)","v":"Mapped"},{"$f":"XBRLMap(E68,E$88&\".\"&$U$4&\".\"&$U68&\".\"&$U$7,$B$95,$B$96,CONFIGURATION!$B$10,\"BMA\",CONFIGURATION!$B$1,\"bscr\",1000)","v":"Mapped"},{"$f":"XBRLMap(F68,F$88&\".\"&$U$4&\".\"&$U68&\".\"&$U$7,$B$95,$B$96,CONFIGURATION!$B$10,\"BMA\",CONFIGURATION!$B$1,\"bscr\",1000)","v":"Mapped"},{"$f":"XBRLMap(G68,G$88&\".\"&$U$4&\".\"&$U68&\".\"&$U$7,$B$95,$B$96,CONFIGURATION!$B$10,\"BMA\",CONFIGURATION!$B$1,\"bscr\",1000)","v":"Mapped"},{"$f":"XBRLMap(H68,H$88&\".\"&$U$4&\".\"&$U68&\".\"&$U$7,$B$95,$B$96,CONFIGURATION!$B$10,\"BMA\",CONFIGURATION!$B$1,\"bscr\",1000)","v":"Mapped"},null,{"$f":"XBRLMap(J68,J$88&\".\"&$U$4&\".\"&$V68&\".\"&$U$7,$B$95,$B$96,CONFIGURATION!$B$10,\"BMA\",CONFIGURATION!$B$1,\"bscr\",1000)","v":"Mapped"},{"$f":"XBRLMap(K68,K$88&\".\"&$U$4&\".\"&$V68&\".\"&$U$7,$B$95,$B$96,CONFIGURATION!$B$10,\"BMA\",CONFIGURATION!$B$1,\"bscr\",1000)","v":"Mapped"},{"$f":"XBRLMap(L68,L$88&\".\"&$U$4&\".\"&$V68&\".\"&$U$7,$B$95,$B$96,CONFIGURATION!$B$10,\"BMA\",CONFIGURATION!$B$1,\"bscr\",1000)","v":"Mapped"},{"$f":"XBRLMap(M68,M$88&\".\"&$U$4&\".\"&$V68&\".\"&$U$7,$B$95,$B$96,CONFIGURATION!$B$10,\"BMA\",CONFIGURATION!$B$1,\"bscr\",1000)","v":"Mapped"},null,null,null,"IBNRCY2016AY2013",0]
[null,null,{"$f":"XBRLMap(C69,C$88&\".\"&$U$4&\".\"&$U69&\".\"&$U$7,$B$95,$B$96,CONFIGURATION!$B$10,\"BMA\",CONFIGURATION!$B$1,\"bscr\",1000)","v":"Mapped"},{"$f":"XBRLMap(D69,D$88&\".\"&$U$4&\".\"&$U69&\".\"&$U$7,$B$95,$B$96,CONFIGURATION!$B$10,\"BMA\",CONFIGURATION!$B$1,\"bscr\",1000)","v":"Mapped"},{"$f":"XBRLMap(E69,E$88&\".\"&$U$4&\".\"&$U69&\".\"&$U$7,$B$95,$B$96,CONFIGURATION!$B$10,\"BMA\",CONFIGURATION!$B$1,\"bscr\",1000)","v":"Mapped"},{"$f":"XBRLMap(F69,F$88&\".\"&$U$4&\".\"&$U69&\".\"&$U$7,$B$95,$B$96,CONFIGURATION!$B$10,\"BMA\",CONFIGURATION!$B$1,\"bscr\",1000)","v":"Mapped"},{"$f":"XBRLMap(G69,G$88&\".\"&$U$4&\".\"&$U69&\".\"&$U$7,$B$95,$B$96,CONFIGURATION!$B$10,\"BMA\",CONFIGURATION!$B$1,\"bscr\",1000)","v":"Mapped"},{"$f":"XBRLMap(H69,H$88&\".\"&$U$4&\".\"&$U69&\".\"&$U$7,$B$95,$B$96,CONFIGURATION!$B$10,\"BMA\",CONFIGURATION!$B$1,\"bscr\",1000)","v":"Mapped"},null,{"$f":"XBRLMap(J69,J$88&\".\"&$U$4&\".\"&$V69&\".\"&$U$7,$B$95,$B$96,CONFIGURATION!$B$10,\"BMA\",CONFIGURATION!$B$1,\"bscr\",1000)","v":"Mapped"},{"$f":"XBRLMap(K69,K$88&\".\"&$U$4&\".\"&$V69&\".\"&$U$7,$B$95,$B$96,CONFIGURATION!$B$10,\"BMA\",CONFIGURATION!$B$1,\"bscr\",1000)","v":"Mapped"},{"$f":"XBRLMap(L69,L$88&\".\"&$U$4&\".\"&$V69&\".\"&$U$7,$B$95,$B$96,CONFIGURATION!$B$10,\"BMA\",CONFIGURATION!$B$1,\"bscr\",1000)","v":"Mapped"},{"$f":"XBRLMap(M69,M$88&\".\"&$U$4&\".\"&$V69&\".\"&$U$7,$B$95,$B$96,CONFIGURATION!$B$10,\"BMA\",CONFIGURATION!$B$1,\"bscr\",1000)","v":"Mapped"},null,null,null,"IBNRCY2016AY2014",0]
[null,null,{"$f":"XBRLMap(C70,C$88&\".\"&$U$4&\".\"&$U70&\".\"&$U$7,$B$95,$B$96,CONFIGURATION!$B$10,\"BMA\",CONFIGURATION!$B$1,\"bscr\",1000)","v":"Mapped"},{"$f":"XBRLMap(D70,D$88&\".\"&$U$4&\".\"&$U70&\".\"&$U$7,$B$95,$B$96,CONFIGURATION!$B$10,\"BMA\",CONFIGURATION!$B$1,\"bscr\",1000)","v":"Mapped"},{"$f":"XBRLMap(E70,E$88&\".\"&$U$4&\".\"&$U70&\".\"&$U$7,$B$95,$B$96,CONFIGURATION!$B$10,\"BMA\",CONFIGURATION!$B$1,\"bscr\",1000)","v":"Mapped"},{"$f":"XBRLMap(F70,F$88&\".\"&$U$4&\".\"&$U70&\".\"&$U$7,$B$95,$B$96,CONFIGURATION!$B$10,\"BMA\",CONFIGURATION!$B$1,\"bscr\",1000)","v":"Mapped"},{"$f":"XBRLMap(G70,G$88&\".\"&$U$4&\".\"&$U70&\".\"&$U$7,$B$95,$B$96,CONFIGURATION!$B$10,\"BMA\",CONFIGURATION!$B$1,\"bscr\",1000)","v":"Mapped"},{"$f":"XBRLMap(H70,H$88&\".\"&$U$4&\".\"&$U70&\".\"&$U$7,$B$95,$B$96,CONFIGURATION!$B$10,\"BMA\",CONFIGURATION!$B$1,\"bscr\",1000)","v":"Mapped"},null,{"$f":"XBRLMap(J70,J$88&\".\"&$U$4&\".\"&$V70&\".\"&$U$7,$B$95,$B$96,CONFIGURATION!$B$10,\"BMA\",CONFIGURATION!$B$1,\"bscr\",1000)","v":"Mapped"},{"$f":"XBRLMap(K70,K$88&\".\"&$U$4&\".\"&$V70&\".\"&$U$7,$B$95,$B$96,CONFIGURATION!$B$10,\"BMA\",CONFIGURATION!$B$1,\"bscr\",1000)","v":"Mapped"},{"$f":"XBRLMap(L70,L$88&\".\"&$U$4&\".\"&$V70&\".\"&$U$7,$B$95,$B$96,CONFIGURATION!$B$10,\"BMA\",CONFIGURATION!$B$1,\"bscr\",1000)","v":"Mapped"},{"$f":"XBRLMap(M70,M$88&\".\"&$U$4&\".\"&$V70&\".\"&$U$7,$B$95,$B$96,CONFIGURATION!$B$10,\"BMA\",CONFIGURATION!$B$1,\"bscr\",1000)","v":"Mapped"},null,null,null,"IBNRCY2016AY2015",0]
[null,null,{"$f":"XBRLMap(C71,C$88&\".\"&$U$4&\".\"&$U71&\".\"&$U$7,$B$95,$B$96,CONFIGURATION!$B$10,\"BMA\",CONFIGURATION!$B$1,\"bscr\",1000)","v":"Mapped"},{"$f":"XBRLMap(D71,D$88&\".\"&$U$4&\".\"&$U71&\".\"&$U$7,$B$95,$B$96,CONFIGURATION!$B$10,\"BMA\",CONFIGURATION!$B$1,\"bscr\",1000)","v":"Mapped"},{"$f":"XBRLMap(E71,E$88&\".\"&$U$4&\".\"&$U71&\".\"&$U$7,$B$95,$B$96,CONFIGURATION!$B$10,\"BMA\",CONFIGURATION!$B$1,\"bscr\",1000)","v":"Mapped"},{"$f":"XBRLMap(F71,F$88&\".\"&$U$4&\".\"&$U71&\".\"&$U$7,$B$95,$B$96,CONFIGURATION!$B$10,\"BMA\",CONFIGURATION!$B$1,\"bscr\",1000)","v":"Mapped"},{"$f":"XBRLMap(G71,G$88&\".\"&$U$4&\".\"&$U71&\".\"&$U$7,$B$95,$B$96,CONFIGURATION!$B$10,\"BMA\",CONFIGURATION!$B$1,\"bscr\",1000)","v":"Mapped"},{"$f":"XBRLMap(H71,H$88&\".\"&$U$4&\".\"&$U71&\".\"&$U$7,$B$95,$B$96,CONFIGURATION!$B$10,\"BMA\",CONFIGURATION!$B$1,\"bscr\",1000)","v":"Mapped"},null,{"$f":"XBRLMap(J71,J$88&\".\"&$U$4&\".\"&$V71&\".\"&$U$7,$B$95,$B$96,CONFIGURATION!$B$10,\"BMA\",CONFIGURATION!$B$1,\"bscr\",1000)","v":"Mapped"},{"$f":"XBRLMap(K71,K$88&\".\"&$U$4&\".\"&$V71&\".\"&$U$7,$B$95,$B$96,CONFIGURATION!$B$10,\"BMA\",CONFIGURATION!$B$1,\"bscr\",1000)","v":"Mapped"},{"$f":"XBRLMap(L71,L$88&\".\"&$U$4&\".\"&$V71&\".\"&$U$7,$B$95,$B$96,CONFIGURATION!$B$10,\"BMA\",CONFIGURATION!$B$1,\"bscr\",1000)","v":"Mapped"},{"$f":"XBRLMap(M71,M$88&\".\"&$U$4&\".\"&$V71&\".\"&$U$7,$B$95,$B$96,CONFIGURATION!$B$10,\"BMA\",CONFIGURATION!$B$1,\"bscr\",1000)","v":"Mapped"},null,null,null,"IBNRCY2016AY2016",0]
[null,null,{"$f":"XBRLMap(C72,C$88&\".\"&$U$4&\".\"&$U72&\".\"&$U$7,$B$95,$B$96,CONFIGURATION!$B$10,\"BMA\",CONFIGURATION!$B$1,\"bscr\",1000)","v":"Mapped"},{"$f":"XBRLMap(D72,D$88&\".\"&$U$4&\".\"&$U72&\".\"&$U$7,$B$95,$B$96,CONFIGURATION!$B$10,\"BMA\",CONFIGURATION!$B$1,\"bscr\",1000)","v":"Mapped"},{"$f":"XBRLMap(E72,E$88&\".\"&$U$4&\".\"&$U72&\".\"&$U$7,$B$95,$B$96,CONFIGURATION!$B$10,\"BMA\",CONFIGURATION!$B$1,\"bscr\",1000)","v":"Mapped"},{"$f":"XBRLMap(F72,F$88&\".\"&$U$4&\".\"&$U72&\".\"&$U$7,$B$95,$B$96,CONFIGURATION!$B$10,\"BMA\",CONFIGURATION!$B$1,\"bscr\",1000)","v":"Mapped"},{"$f":"XBRLMap(G72,G$88&\".\"&$U$4&\".\"&$U72&\".\"&$U$7,$B$95,$B$96,CONFIGURATION!$B$10,\"BMA\",CONFIGURATION!$B$1,\"bscr\",1000)","v":"Mapped"},{"$f":"XBRLMap(H72,H$88&\".\"&$U$4&\".\"&$U72&\".\"&$U$7,$B$95,$B$96,CONFIGURATION!$B$10,\"BMA\",CONFIGURATION!$B$1,\"bscr\",1000)","v":"Mapped"},null,{"$f":"XBRLMap(J72,J$88&\".\"&$U$4&\".\"&$V72&\".\"&$U$7,$B$95,$B$96,CONFIGURATION!$B$10,\"BMA\",CONFIGURATION!$B$1,\"bscr\",1000)","v":"Mapped"},{"$f":"XBRLMap(K72,K$88&\".\"&$U$4&\".\"&$V72&\".\"&$U$7,$B$95,$B$96,CONFIGURATION!$B$10,\"BMA\",CONFIGURATION!$B$1,\"bscr\",1000)","v":"Mapped"},{"$f":"XBRLMap(L72,L$88&\".\"&$U$4&\".\"&$V72&\".\"&$U$7,$B$95,$B$96,CONFIGURATION!$B$10,\"BMA\",CONFIGURATION!$B$1,\"bscr\",1000)","v":"Mapped"},{"$f":"XBRLMap(M72,M$88&\".\"&$U$4&\".\"&$V72&\".\"&$U$7,$B$95,$B$96,CONFIGURATION!$B$10,\"BMA\",CONFIGURATION!$B$1,\"bscr\",1000)","v":"Mapped"},null,null,null,{"$f":"\"IBNRCY\"&J$10&\"AY\"&B47","v":"IBNRCY2017AYPrior"},{"$f":"J47","v":0}]
[null,null,{"$f":"XBRLMap(C73,C$88&\".\"&$U$4&\".\"&$U73&\".\"&$U$7,$B$95,$B$96,CONFIGURATION!$B$10,\"BMA\",CONFIGURATION!$B$1,\"bscr\",1000)","v":"Mapped"},{"$f":"XBRLMap(D73,D$88&\".\"&$U$4&\".\"&$U73&\".\"&$U$7,$B$95,$B$96,CONFIGURATION!$B$10,\"BMA\",CONFIGURATION!$B$1,\"bscr\",1000)","v":"Mapped"},{"$f":"XBRLMap(E73,E$88&\".\"&$U$4&\".\"&$U73&\".\"&$U$7,$B$95,$B$96,CONFIGURATION!$B$10,\"BMA\",CONFIGURATION!$B$1,\"bscr\",1000)","v":"Mapped"},{"$f":"XBRLMap(F73,F$88&\".\"&$U$4&\".\"&$U73&\".\"&$U$7,$B$95,$B$96,CONFIGURATION!$B$10,\"BMA\",CONFIGURATION!$B$1,\"bscr\",1000)","v":"Mapped"},{"$f":"XBRLMap(G73,G$88&\".\"&$U$4&\".\"&$U73&\".\"&$U$7,$B$95,$B$96,CONFIGURATION!$B$10,\"BMA\",CONFIGURATION!$B$1,\"bscr\",1000)","v":"Mapped"},{"$f":"XBRLMap(H73,H$88&\".\"&$U$4&\".\"&$U73&\".\"&$U$7,$B$95,$B$96,CONFIGURATION!$B$10,\"BMA\",CONFIGURATION!$B$1,\"bscr\",1000)","v":"Mapped"},null,{"$f":"XBRLMap(J73,J$88&\".\"&$U$4&\".\"&$V73&\".\"&$U$7,$B$95,$B$96,CONFIGURATION!$B$10,\"BMA\",CONFIGURATION!$B$1,\"bscr\",1000)","v":"Mapped"},{"$f":"XBRLMap(K73,K$88&\".\"&$U$4&\".\"&$V73&\".\"&$U$7,$B$95,$B$96,CONFIGURATION!$B$10,\"BMA\",CONFIGURATION!$B$1,\"bscr\",1000)","v":"Mapped"},{"$f":"XBRLMap(L73,L$88&\".\"&$U$4&\".\"&$V73&\".\"&$U$7,$B$95,$B$96,CONFIGURATION!$B$10,\"BMA\",CONFIGURATION!$B$1,\"bscr\",1000)","v":"Mapped"},{"$f":"XBRLMap(M73,M$88&\".\"&$U$4&\".\"&$V73&\".\"&$U$7,$B$95,$B$96,CONFIGURATION!$B$10,\"BMA\",CONFIGURATION!$B$1,\"bscr\",1000)","v":"Mapped"},null,null,null,"IBNRCY2017AY2010",0]
[null,null,{"$f":"XBRLMap(C74,C$88&\".\"&$U$4&\".\"&$U74&\".\"&$U$7,$B$95,$B$96,CONFIGURATION!$B$10,\"BMA\",CONFIGURATION!$B$1,\"bscr\",1000)","v":"Mapped"},{"$f":"XBRLMap(D74,D$88&\".\"&$U$4&\".\"&$U74&\".\"&$U$7,$B$95,$B$96,CONFIGURATION!$B$10,\"BMA\",CONFIGURATION!$B$1,\"bscr\",1000)","v":"Mapped"},{"$f":"XBRLMap(E74,E$88&\".\"&$U$4&\".\"&$U74&\".\"&$U$7,$B$95,$B$96,CONFIGURATION!$B$10,\"BMA\",CONFIGURATION!$B$1,\"bscr\",1000)","v":"Mapped"},{"$f":"XBRLMap(F74,F$88&\".\"&$U$4&\".\"&$U74&\".\"&$U$7,$B$95,$B$96,CONFIGURATION!$B$10,\"BMA\",CONFIGURATION!$B$1,\"bscr\",1000)","v":"Mapped"},{"$f":"XBRLMap(G74,G$88&\".\"&$U$4&\".\"&$U74&\".\"&$U$7,$B$95,$B$96,CONFIGURATION!$B$10,\"BMA\",CONFIGURATION!$B$1,\"bscr\",1000)","v":"Mapped"},{"$f":"XBRLMap(H74,H$88&\".\"&$U$4&\".\"&$U74&\".\"&$U$7,$B$95,$B$96,CONFIGURATION!$B$10,\"BMA\",CONFIGURATION!$B$1,\"bscr\",1000)","v":"Mapped"},null,{"$f":"XBRLMap(J74,J$88&\".\"&$U$4&\".\"&$V74&\".\"&$U$7,$B$95,$B$96,CONFIGURATION!$B$10,\"BMA\",CONFIGURATION!$B$1,\"bscr\",1000)","v":"Mapped"},{"$f":"XBRLMap(K74,K$88&\".\"&$U$4&\".\"&$V74&\".\"&$U$7,$B$95,$B$96,CONFIGURATION!$B$10,\"BMA\",CONFIGURATION!$B$1,\"bscr\",1000)","v":"Mapped"},{"$f":"XBRLMap(L74,L$88&\".\"&$U$4&\".\"&$V74&\".\"&$U$7,$B$95,$B$96,CONFIGURATION!$B$10,\"BMA\",CONFIGURATION!$B$1,\"bscr\",1000)","v":"Mapped"},{"$f":"XBRLMap(M74,M$88&\".\"&$U$4&\".\"&$V74&\".\"&$U$7,$B$95,$B$96,CONFIGURATION!$B$10,\"BMA\",CONFIGURATION!$B$1,\"bscr\",1000)","v":"Mapped"},null,null,null,"IBNRCY2017AY2011",0]
[null,null,{"$f":"XBRLMap(C75,C$88&\".\"&$U$4&\".\"&$U75&\".\"&$U$7,$B$95,$B$96,CONFIGURATION!$B$10,\"BMA\",CONFIGURATION!$B$1,\"bscr\",1000)","v":"Mapped"},{"$f":"XBRLMap(D75,D$88&\".\"&$U$4&\".\"&$U75&\".\"&$U$7,$B$95,$B$96,CONFIGURATION!$B$10,\"BMA\",CONFIGURATION!$B$1,\"bscr\",1000)","v":"Mapped"},{"$f":"XBRLMap(E75,E$88&\".\"&$U$4&\".\"&$U75&\".\"&$U$7,$B$95,$B$96,CONFIGURATION!$B$10,\"BMA\",CONFIGURATION!$B$1,\"bscr\",1000)","v":"Mapped"},{"$f":"XBRLMap(F75,F$88&\".\"&$U$4&\".\"&$U75&\".\"&$U$7,$B$95,$B$96,CONFIGURATION!$B$10,\"BMA\",CONFIGURATION!$B$1,\"bscr\",1000)","v":"Mapped"},{"$f":"XBRLMap(G75,G$88&\".\"&$U$4&\".\"&$U75&\".\"&$U$7,$B$95,$B$96,CONFIGURATION!$B$10,\"BMA\",CONFIGURATION!$B$1,\"bscr\",1000)","v":"Mapped"},{"$f":"XBRLMap(H75,H$88&\".\"&$U$4&\".\"&$U75&\".\"&$U$7,$B$95,$B$96,CONFIGURATION!$B$10,\"BMA\",CONFIGURATION!$B$1,\"bscr\",1000)","v":"Mapped"},null,{"$f":"XBRLMap(J75,J$88&\".\"&$U$4&\".\"&$V75&\".\"&$U$7,$B$95,$B$96,CONFIGURATION!$B$10,\"BMA\",CONFIGURATION!$B$1,\"bscr\",1000)","v":"Mapped"},{"$f":"XBRLMap(K75,K$88&\".\"&$U$4&\".\"&$V75&\".\"&$U$7,$B$95,$B$96,CONFIGURATION!$B$10,\"BMA\",CONFIGURATION!$B$1,\"bscr\",1000)","v":"Mapped"},{"$f":"XBRLMap(L75,L$88&\".\"&$U$4&\".\"&$V75&\".\"&$U$7,$B$95,$B$96,CONFIGURATION!$B$10,\"BMA\",CONFIGURATION!$B$1,\"bscr\",1000)","v":"Mapped"},{"$f":"XBRLMap(M75,M$88&\".\"&$U$4&\".\"&$V75&\".\"&$U$7,$B$95,$B$96,CONFIGURATION!$B$10,\"BMA\",CONFIGURATION!$B$1,\"bscr\",1000)","v":"Mapped"},null,null,null,"IBNRCY2017AY2012",0]
[null,null,{"$f":"XBRLMap(C76,C$88&\".\"&$U$4&\".\"&$U76&\".\"&$U$7,$B$95,$B$96,CONFIGURATION!$B$10,\"BMA\",CONFIGURATION!$B$1,\"bscr\",1000)","v":"Mapped"},{"$f":"XBRLMap(D76,D$88&\".\"&$U$4&\".\"&$U76&\".\"&$U$7,$B$95,$B$96,CONFIGURATION!$B$10,\"BMA\",CONFIGURATION!$B$1,\"bscr\",1000)","v":"Mapped"},{"$f":"XBRLMap(E76,E$88&\".\"&$U$4&\".\"&$U76&\".\"&$U$7,$B$95,$B$96,CONFIGURATION!$B$10,\"BMA\",CONFIGURATION!$B$1,\"bscr\",1000)","v":"Mapped"},{"$f":"XBRLMap(F76,F$88&\".\"&$U$4&\".\"&$U76&\".\"&$U$7,$B$95,$B$96,CONFIGURATION!$B$10,\"BMA\",CONFIGURATION!$B$1,\"bscr\",1000)","v":"Mapped"},{"$f":"XBRLMap(G76,G$88&\".\"&$U$4&\".\"&$U76&\".\"&$U$7,$B$95,$B$96,CONFIGURATION!$B$10,\"BMA\",CONFIGURATION!$B$1,\"bscr\",1000)","v":"Mapped"},{"$f":"XBRLMap(H76,H$88&\".\"&$U$4&\".\"&$U76&\".\"&$U$7,$B$95,$B$96,CONFIGURATION!$B$10,\"BMA\",CONFIGURATION!$B$1,\"bscr\",1000)","v":"Mapped"},null,{"$f":"XBRLMap(J76,J$88&\".\"&$U$4&\".\"&$V76&\".\"&$U$7,$B$95,$B$96,CONFIGURATION!$B$10,\"BMA\",CONFIGURATION!$B$1,\"bscr\",1000)","v":"Mapped"},{"$f":"XBRLMap(K76,K$88&\".\"&$U$4&\".\"&$V76&\".\"&$U$7,$B$95,$B$96,CONFIGURATION!$B$10,\"BMA\",CONFIGURATION!$B$1,\"bscr\",1000)","v":"Mapped"},{"$f":"XBRLMap(L76,L$88&\".\"&$U$4&\".\"&$V76&\".\"&$U$7,$B$95,$B$96,CONFIGURATION!$B$10,\"BMA\",CONFIGURATION!$B$1,\"bscr\",1000)","v":"Mapped"},{"$f":"XBRLMap(M76,M$88&\".\"&$U$4&\".\"&$V76&\".\"&$U$7,$B$95,$B$96,CONFIGURATION!$B$10,\"BMA\",CONFIGURATION!$B$1,\"bscr\",1000)","v":"Mapped"},null,null,null,"IBNRCY2017AY2013",0]
[null,null,{"$f":"XBRLMap(C77,C$88&\".\"&$U$4&\".\"&$U77&\".\"&$U$7,$B$95,$B$96,CONFIGURATION!$B$10,\"BMA\",CONFIGURATION!$B$1,\"bscr\",1000)","v":"Mapped"},{"$f":"XBRLMap(D77,D$88&\".\"&$U$4&\".\"&$U77&\".\"&$U$7,$B$95,$B$96,CONFIGURATION!$B$10,\"BMA\",CONFIGURATION!$B$1,\"bscr\",1000)","v":"Mapped"},{"$f":"XBRLMap(E77,E$88&\".\"&$U$4&\".\"&$U77&\".\"&$U$7,$B$95,$B$96,CONFIGURATION!$B$10,\"BMA\",CONFIGURATION!$B$1,\"bscr\",1000)","v":"Mapped"},{"$f":"XBRLMap(F77,F$88&\".\"&$U$4&\".\"&$U77&\".\"&$U$7,$B$95,$B$96,CONFIGURATION!$B$10,\"BMA\",CONFIGURATION!$B$1,\"bscr\",1000)","v":"Mapped"},{"$f":"XBRLMap(G77,G$88&\".\"&$U$4&\".\"&$U77&\".\"&$U$7,$B$95,$B$96,CONFIGURATION!$B$10,\"BMA\",CONFIGURATION!$B$1,\"bscr\",1000)","v":"Mapped"},{"$f":"XBRLMap(H77,H$88&\".\"&$U$4&\".\"&$U77&\".\"&$U$7,$B$95,$B$96,CONFIGURATION!$B$10,\"BMA\",CONFIGURATION!$B$1,\"bscr\",1000)","v":"Mapped"},null,{"$f":"XBRLMap(J77,J$88&\".\"&$U$4&\".\"&$V77&\".\"&$U$7,$B$95,$B$96,CONFIGURATION!$B$10,\"BMA\",CONFIGURATION!$B$1,\"bscr\",1000)","v":"Mapped"},{"$f":"XBRLMap(K77,K$88&\".\"&$U$4&\".\"&$V77&\".\"&$U$7,$B$95,$B$96,CONFIGURATION!$B$10,\"BMA\",CONFIGURATION!$B$1,\"bscr\",1000)","v":"Mapped"},{"$f":"XBRLMap(L77,L$88&\".\"&$U$4&\".\"&$V77&\".\"&$U$7,$B$95,$B$96,CONFIGURATION!$B$10,\"BMA\",CONFIGURATION!$B$1,\"bscr\",1000)","v":"Mapped"},{"$f":"XBRLMap(M77,M$88&\".\"&$U$4&\".\"&$V77&\".\"&$U$7,$B$95,$B$96,CONFIGURATION!$B$10,\"BMA\",CONFIGURATION!$B$1,\"bscr\",1000)","v":"Mapped"},null,null,null,"IBNRCY2017AY2014",0]
[null,null,null,null,null,null,null,null,null,null,null,null,null,null,null,null,"IBNRCY2017AY2015",0]
[null,null,null,null,null,null,null,null,null,null,null,null,null,null,null,null,"IBNRCY2017AY2016",0]
[null,null,null,null,null,null,null,null,null,null,null,null,null,null,null,null,"IBNRCY2017AY2017",0]
[null,null,null,null,null,null,null,null,null,null,null,null,null,null,null,null,{"$f":"\"IBNRCY\"&K$10&\"AY\"&B47","v":"IBNRCY2018AYPrior"},{"$f":"K47","v":0}]
[null,null,null,null,null,null,null,null,null,null,null,null,null,null,null,null,"IBNRCY2018AY2010",0]
[null,null,null,null,null,null,null,null,null,null,null,null,null,null,null,null,"IBNRCY2018AY2011",0]
[null,null,null,null,null,null,null,null,null,null,null,null,null,null,null,null,"IBNRCY2018AY2012",0]
[null,null,null,null,null,null,null,null,null,null,null,null,null,null,null,null,"IBNRCY2018AY2013",0]
[null,null,null,null,null,null,null,null,null,null,null,null,null,null,null,null,"IBNRCY2018AY2014",0]
[null,null,null,null,null,null,null,null,null,null,null,null,null,null,null,null,"IBNRCY2018AY2015",0]
[null,null,null,null,null,null,null,null,null,null,null,null,null,null,null,null,"IBNRCY2018AY2016",0]
[null,null,null,null,null,null,null,null,null,null,null,null,null,null,null,null,"IBNRCY2018AY2017",0]
[null,null,null,null,null,null,null,null,null,null,null,null,null,null,null,null,"IBNRCY2018AY2018",0]
[null,null,null,null,null,null,null,null,null,null,null,null,null,null,null,null,{"$f":"\"IBNRCY\"&L$10&\"AY\"&B47","v":"IBNRCY2019AYPrior"},{"$f":"L47","v":0}]
[null,null,null,null,null,null,null,null,null,null,null,null,null,null,null,null,"IBNRCY2019AY2010",0]
[null,null,null,null,null,null,null,null,null,null,null,null,null,null,null,null,"IBNRCY2019AY2011",0]
[null,null,null,null,null,null,null,null,null,null,null,null,null,null,null,null,"IBNRCY2019AY2012",0]
[null,null,null,null,null,null,null,null,null,null,null,null,null,null,null,null,"IBNRCY2019AY2013",0]
[null,null,null,null,null,null,null,null,null,null,null,null,null,null,null,null,"IBNRCY2019AY2014",0]
[null,null,null,null,null,null,null,null,null,null,null,null,null,null,null,null,"IBNRCY2019AY2015",0]
[null,null,null,null,null,null,null,null,null,null,null,null,null,null,null,null,"IBNRCY2019AY2016",0]
[null,null,null,null,null,null,null,null,null,null,null,null,null,null,null,null,"IBNRCY2019AY2017",0]
[null,null,null,null,null,null,null,null,null,null,null,null,null,null,null,null,"IBNRCY2019AY2018",0]
[null,null,null,null,null,null,null,null,null,null,null,null,null,null,null,null,"IBNRCY2019AY2019",0]
[null,null,null,null,null,null,null,null,null,null,null,null,null,null,null,null,{"$f":"\"GrossWP\"&$B68","v":"GrossWP2010"},{"$f":"C68","v":0}]
[null,null,null,null,null,null,null,null,null,null,null,null,null,null,null,null,"GrossWP2011",0]
[null,null,null,null,null,null,null,null,null,null,null,null,null,null,null,null,"GrossWP2012",0]
[null,null,null,null,null,null,null,null,null,null,null,null,null,null,null,null,"GrossWP2013",0]
[null,null,null,null,null,null,null,null,null,null,null,null,null,null,null,null,"GrossWP2014",0]
[null,null,null,null,null,null,null,null,null,null,null,null,null,null,null,null,"GrossWP2015",0]
[null,null,null,null,null,null,null,null,null,null,null,null,null,null,null,null,"GrossWP2016",0]
[null,null,null,null,null,null,null,null,null,null,null,null,null,null,null,null,"GrossWP2017",0]
[null,null,null,null,null,null,null,null,null,null,null,null,null,null,null,null,"GrossWP2018",0]
[null,null,null,null,null,null,null,null,null,null,null,null,null,null,null,null,"GrossWP2019",0]
[null,null,null,null,null,null,null,null,null,null,null,null,null,null,null,null,{"$f":"\"GrossEP\"&$B68","v":"GrossEP2010"},{"$f":"D68","v":0}]
[null,null,null,null,null,null,null,null,null,null,null,null,null,null,null,null,"GrossEP2011",0]
[null,null,null,null,null,null,null,null,null,null,null,null,null,null,null,null,"GrossEP2012",0]
[null,null,null,null,null,null,null,null,null,null,null,null,null,null,null,null,"GrossEP2013",0]
[null,null,null,null,null,null,null,null,null,null,null,null,null,null,null,null,"GrossEP2014",0]
[null,null,null,null,null,null,null,null,null,null,null,null,null,null,null,null,"GrossEP2015",0]
[null,null,null,null,null,null,null,null,null,null,null,null,null,null,null,null,"GrossEP2016",0]
[null,null,null,null,null,null,null,null,null,null,null,null,null,null,null,null,"GrossEP2017",0]
[null,null,null,null,null,null,null,null,null,null,null,null,null,null,null,null,"GrossEP2018",0]
[null,null,null,null,null,null,null,null,null,null,null,null,null,null,null,null,"GrossEP2019",0]
[null,null,null,null,null,null,null,null,null,null,null,null,null,null,null,null,{"$f":"\"NetWP\"&$B68","v":"NetWP2010"},{"$f":"E68","v":0}]
[null,null,null,null,null,null,null,null,null,null,null,null,null,null,null,null,"NetWP2011",0]
[null,null,null,null,null,null,null,null,null,null,null,null,null,null,null,null,"NetWP2012",0]
[null,null,null,null,null,null,null,null,null,null,null,null,null,null,null,null,"NetWP2013",0]
[null,null,null,null,null,null,null,null,null,null,null,null,null,null,null,null,"NetWP2014",0]
[null,null,null,null,null,null,null,null,null,null,null,null,null,null,null,null,"NetWP2015",0]
[null,null,null,null,null,null,null,null,null,null,null,null,null,null,null,null,"NetWP2016",0]
[null,null,null,null,null,null,null,null,null,null,null,null,null,null,null,null,"NetWP2017",0]
[null,null,null,null,null,null,null,null,null,null,null,null,null,null,null,null,"NetWP2018",0]
[null,null,null,null,null,null,null,null,null,null,null,null,null,null,null,null,"NetWP2019",0]
[null,null,null,null,null,null,null,null,null,null,null,null,null,null,null,null,{"$f":"\"NetEP\"&$B68","v":"NetEP2010"},{"$f":"F68","v":0}]
[null,null,null,null,null,null,null,null,null,null,null,null,null,null,null,null,"NetEP2011",0]
[null,null,null,null,null,null,null,null,null,null,null,null,null,null,null,null,"NetEP2012",0]
[null,null,null,null,null,null,null,null,null,null,null,null,null,null,null,null,"NetEP2013",0]
[null,null,null,null,null,null,null,null,null,null,null,null,null,null,null,null,"NetEP2014",0]
[null,null,null,null,null,null,null,null,null,null,null,null,null,null,null,null,"NetEP2015",0]
[null,null,null,null,null,null,null,null,null,null,null,null,null,null,null,null,"NetEP2016",0]
[null,null,null,null,null,null,null,null,null,null,null,null,null,null,null,null,"NetEP2017",0]
[null,null,null,null,null,null,null,null,null,null,null,null,null,null,null,null,"NetEP2018",0]
[null,null,null,null,null,null,null,null,null,null,null,null,null,null,null,null,"NetEP2019",0]
[null,null,null,null,null,null,null,null,null,null,null,null,null,null,null,null,{"$f":"\"NetAOEPaid\"&$B67","v":"NetAOEPaidPrior"},{"$f":"G67","v":0}]
[null,null,null,null,null,null,null,null,null,null,null,null,null,null,null,null,"NetAOEPaid2010",0]
[null,null,null,null,null,null,null,null,null,null,null,null,null,null,null,null,"NetAOEPaid2011",0]
[null,null,null,null,null,null,null,null,null,null,null,null,null,null,null,null,"NetAOEPaid2012",0]
[null,null,null,null,null,null,null,null,null,null,null,null,null,null,null,null,"NetAOEPaid2013",0]
[null,null,null,null,null,null,null,null,null,null,null,null,null,null,null,null,"NetAOEPaid2014",0]
[null,null,null,null,null,null,null,null,null,null,null,null,null,null,null,null,"NetAOEPaid2015",0]
[null,null,null,null,null,null,null,null,null,null,null,null,null,null,null,null,"NetAOEPaid2016",0]
[null,null,null,null,null,null,null,null,null,null,null,null,null,null,null,null,"NetAOEPaid2017",0]
[null,null,null,null,null,null,null,null,null,null,null,null,null,null,null,null,"NetAOEPaid2018",0]
[null,null,null,null,null,null,null,null,null,null,null,null,null,null,null,null,"NetAOEPaid2019",0]
[null,null,null,null,null,null,null,null,null,null,null,null,null,null,null,null,{"$f":"\"NetAOEIncurred\"&$B67","v":"NetAOEIncurredPrior"},{"$f":"H67","v":0}]
[null,null,null,null,null,null,null,null,null,null,null,null,null,null,null,null,"NetAOEIncurred2010",0]
[null,null,null,null,null,null,null,null,null,null,null,null,null,null,null,null,"NetAOEIncurred2011",0]
[null,null,null,null,null,null,null,null,null,null,null,null,null,null,null,null,"NetAOEIncurred2012",0]
[null,null,null,null,null,null,null,null,null,null,null,null,null,null,null,null,"NetAOEIncurred2013",0]
[null,null,null,null,null,null,null,null,null,null,null,null,null,null,null,null,"NetAOEIncurred2014",0]
[null,null,null,null,null,null,null,null,null,null,null,null,null,null,null,null,"NetAOEIncurred2015",0]
[null,null,null,null,null,null,null,null,null,null,null,null,null,null,null,null,"NetAOEIncurred2016",0]
[null,null,null,null,null,null,null,null,null,null,null,null,null,null,null,null,"NetAOEIncurred2017",0]
[null,null,null,null,null,null,null,null,null,null,null,null,null,null,null,null,"NetAOEIncurred2018",0]
[null,null,null,null,null,null,null,null,null,null,null,null,null,null,null,null,"NetAOEIncurred2019",0]
[null,null,null,null,null,null,null,null,null,null,null,null,null,null,null,null,{"$f":"\"Commission\"&$B67","v":"CommissionPrior"},{"$f":"J67","v":0}]
[null,null,null,null,null,null,null,null,null,null,null,null,null,null,null,null,"Commission2010",0]
[null,null,null,null,null,null,null,null,null,null,null,null,null,null,null,null,"Commission2011",0]
[null,null,null,null,null,null,null,null,null,null,null,null,null,null,null,null,"Commission2012",0]
[null,null,null,null,null,null,null,null,null,null,null,null,null,null,null,null,"Commission2013",0]
[null,null,null,null,null,null,null,null,null,null,null,null,null,null,null,null,"Commission2014",0]
[null,null,null,null,null,null,null,null,null,null,null,null,null,null,null,null,"Commission2015",0]
[null,null,null,null,null,null,null,null,null,null,null,null,null,null,null,null,"Commission2016",0]
[null,null,null,null,null,null,null,null,null,null,null,null,null,null,null,null,"Commission2017",0]
[null,null,null,null,null,null,null,null,null,null,null,null,null,null,null,null,"Commission2018",0]
[null,null,null,null,null,null,null,null,null,null,null,null,null,null,null,null,"Commission2019",0]
[null,null,null,null,null,null,null,null,null,null,null,null,null,null,null,null,{"$f":"\"AcqExp\"&$B67","v":"AcqExpPrior"},{"$f":"K67","v":0}]
[null,null,null,null,null,null,null,null,null,null,null,null,null,null,null,null,"AcqExp2010",0]
[null,null,null,null,null,null,null,null,null,null,null,null,null,null,null,null,"AcqExp2011",0]
[null,null,null,null,null,null,null,null,null,null,null,null,null,null,null,null,"AcqExp2012",0]
[null,null,null,null,null,null,null,null,null,null,null,null,null,null,null,null,"AcqExp2013",0]
[null,null,null,null,null,null,null,null,null,null,null,null,null,null,null,null,"AcqExp2014",0]
[null,null,null,null,null,null,null,null,null,null,null,null,null,null,null,null,"AcqExp2015",0]
[null,null,null,null,null,null,null,null,null,null,null,null,null,null,null,null,"AcqExp2016",0]
[null,null,null,null,null,null,null,null,null,null,null,null,null,null,null,null,"AcqExp2017",0]
[null,null,null,null,null,null,null,null,null,null,null,null,null,null,null,null,"AcqExp2018",0]
[null,null,null,null,null,null,null,null,null,null,null,null,null,null,null,null,"AcqExp2019",0]
[null,null,null,null,null,null,null,null,null,null,null,null,null,null,null,null,{"$f":"\"Taxes\"&$B67","v":"TaxesPrior"},{"$f":"L67","v":0}]
[null,null,null,null,null,null,null,null,null,null,null,null,null,null,null,null,"Taxes2010",0]
[null,null,null,null,null,null,null,null,null,null,null,null,null,null,null,null,"Taxes2011",0]
[null,null,null,null,null,null,null,null,null,null,null,null,null,null,null,null,"Taxes2012",0]
[null,null,null,null,null,null,null,null,null,null,null,null,null,null,null,null,"Taxes2013",0]
[null,null,null,null,null,null,null,null,null,null,null,null,null,null,null,null,"Taxes2014",0]
[null,null,null,null,null,null,null,null,null,null,null,null,null,null,null,null,"Taxes2015",0]
[null,null,null,null,null,null,null,null,null,null,null,null,null,null,null,null,"Taxes2016",0]
[null,null,null,null,null,null,null,null,null,null,null,null,null,null,null,null,"Taxes2017",0]
[null,null,null,null,null,null,null,null,null,null,null,null,null,null,null,null,"Taxes2018",0]
[null,null,null,null,null,null,null,null,null,null,null,null,null,null,null,null,"Taxes2019",0]
[null,null,null,null,null,null,null,null,null,null,null,null,null,null,null,null,{"$f":"\"GeneralOver\"&$B67","v":"GeneralOverPrior"},{"$f":"M67","v":0}]
[null,null,null,null,null,null,null,null,null,null,null,null,null,null,null,null,"GeneralOver2010",0]
[null,null,null,null,null,null,null,null,null,null,null,null,null,null,null,null,"GeneralOver2011",0]
[null,null,null,null,null,null,null,null,null,null,null,null,null,null,null,null,"GeneralOver2012",0]
[null,null,null,null,null,null,null,null,null,null,null,null,null,null,null,null,"GeneralOver2013",0]
[null,null,null,null,null,null,null,null,null,null,null,null,null,null,null,null,"GeneralOver2014",0]
[null,null,null,null,null,null,null,null,null,null,null,null,null,null,null,null,"GeneralOver2015",0]
[null,null,null,null,null,null,null,null,null,null,null,null,null,null,null,null,"GeneralOver2016",0]
[null,null,null,null,null,null,null,null,null,null,null,null,null,null,null,null,"GeneralOver2017",0]
[null,null,null,null,null,null,null,null,null,null,null,null,null,null,null,null,"GeneralOver2018",0]
[null,null,null,null,null,null,null,null,null,null,null,null,null,null,null,null,"GeneralOver2019",0]

{"sheet":"Sch XI(a)(iv)","index":67,"n_rows":301,"n_cols":48,"rows_kept":301,"cut":false,"hidden":false,"merged":[[80,1,82,12],[5,2,5,11],[59,6,59,7],[41,2,41,11],[0,13,0,14],[2,13,2,14],[2,1,2,2],[60,6,60,7],[23,2,23,11]]}
[null,"SCHEDULE OF LOSS TRIANGLES (LINE 4 - CASUALTY)",null,null,null,null,null,null,null,null,null,null,null,{"$f":"HYPERLINK(\"#'Index'!A1\",\"Return to Index\")","v":"Return to Index"}]
[null,{"$f":"'Company Information'!C7","v":"Enter Company Name"},null,null,null,null,null,null,null,null,null,null,null,null,null,null,null,null,null,null,null,null,null,null,null,null,null,null,null,null,null,null,null,null,null,"bma_Line4CasualtyMember"]
[null,{"$f":"'Company Information'!C3","v":"2019-12-31"},null,null,null,null,null,null,null,null,null,null,null,"SCHEDULE XI(a)(iv)"]
[null,{"$f":"\"expressed in\"& IF(1000>1,\" ['\"&MID(1000,2,LEN(1000))&\"s]\",\"\")&\" \"&'Form 1EBS'!$C$4","v":"expressed in ['000s] United States Dollars"},null,null,null,null,null,null,null,null,null,null,null,null,null,null,null,null,null,null,"brrt_LineOfBusinessAxis_brrt_CasualtyMember"]
[]
[null,"Accounting Basis: *","INCURRED (ESTIMATED ULTIMATE) NET LOSSES AND ALLOCATED LOSS ADJUSTMENT EXPENSES REPORTED AT YEAR END ($000)",null,null,null,null,null,null,null,null,null,11,12,13,null,"AcctBasis",{"$f":"B7","v":"Accident Year"},null,null,{"$f":"IF(B7=\"Accident Year\",\"brrt_AccountingBasisAxis_brrt_AccidentYearMember\",\"brrt_AccountingBasisAxis_brrt_AccountingYearMember\")","v":"brrt_AccountingBasisAxis_brrt_AccidentYearMember"}]
[null,"Accident Year",null,null,null,null,null,null,null,null,null,null,"Ultimate","Development","Development",null,{"$f":"\"UltCY\"&C$10&\"AY\"&B11","v":"UltCY2010AYPrior"},{"$f":"C11","v":0},{"$f":"\"CATUltCY\"&L$10&\"AY\"&B11","v":"CATUltCY2019AYPrior"},{"$f":"M11","v":0},"brrt_TypeOfContractAxis_brrt_ProportionalMember",null,null,null,null,null,null,null,null,null,null,null,null,null,null,"bma_AcctBasis"]
[null,"Years in Which",1,2,3,4,5,6,7,8,9,10,"Catastrophe",null,null,null,{"$f":"\"UltCY\"&C$10&\"AY\"&B12","v":"UltCY2010AY2010"},{"$f":"C12","v":0},"CATUltCY2019AY2010",0]
[null,"Losses Were",null,null,null,null,null,null,null,null,null,null,"Losses","One Year","Two Year",null,{"$f":"\"UltCY\"&D$10&\"AY\"&B11","v":"UltCY2011AYPrior"},{"$f":"D11","v":0},"CATUltCY2019AY2011",0]
[null,"Incurred",{"$f":"D10-1","v":2010},2011,2012,2013,2014,2015,2016,2017,2018,{"$f":"YEAR('Company Information'!C3)","v":2019},{"$f":"L10","v":2019},"Development","Development",null,{"$f":"\"UltCY\"&D$10&\"AY\"&B12","v":"UltCY2011AY2010"},{"$f":"D12","v":0},"CATUltCY2019AY2012",0]
["L1","Prior",{"$f":"Import!I8339","v":0},{"$f":"Import!I8341","v":0},{"$f":"Import!I8344","v":0},{"$f":"Import!I8348","v":0},{"$f":"Import!I8353","v":0},{"$f":"Import!I8359","v":0},{"$f":"Import!I8366","v":0},{"$f":"Import!I8374","v":0},{"$f":"Import!I8383","v":0},{"$f":"Import!I8393","v":0},{"$f":"Import!I8404","v":0},{"$f":"K11-L11","v":0},{"$f":"J11-L11","v":0},null,{"$f":"\"UltCY\"&D$10&\"AY\"&B13","v":"UltCY2011AY2011"},{"$f":"D13","v":0},"CATUltCY2019AY2013",0,"brrt_LossIncurredYearAxis_brrt_PriorMember",null,null,null,null,null,null,null,null,null,null,null,null,null,null,{"$f":"\"bma_\"&\"UltCY\"&P$10&\"AY\"&$B11","v":"bma_UltCYAYPrior"},"bma_UltCYUltCY2011AY2010AYPrior","bma_UltCY0AYPrior",{"$f":"\"bma_\"&\"UltCY\"&S$10&\"AY\"&$B11","v":"bma_UltCYCATUltCY2019AY2012AYPrior"},{"$f":"\"bma_\"&\"UltCY\"&T$10&\"AY\"&$B11","v":"bma_UltCY0AYPrior"},{"$f":"\"bma_\"&\"UltCY\"&U$10&\"AY\"&$B11","v":"bma_UltCYAYPrior"},{"$f":"\"bma_\"&\"UltCY\"&V$10&\"AY\"&$B11","v":"bma_UltCYAYPrior"},{"$f":"\"bma_\"&\"UltCY\"&W$10&\"AY\"&$B11","v":"bma_UltCYAYPrior"},{"$f":"\"bma_\"&\"UltCY\"&X$10&\"AY\"&$B11","v":"bma_UltCYAYPrior"},{"$f":"\"bma_\"&\"UltCY\"&Y$10&\"AY\"&$B11","v":"bma_UltCYAYPrior"},{"$f":"\"bma_\"&\"CATUltCY\"&Y$10&\"AY\"&$B11","v":"bma_CATUltCYAYPrior"},{"$f":"\"bma_\"&\"UltCY\"&\"OneYearDevelopment\"&\"AY\"&$B11","v":"bma_UltCYOneYearDevelopmentAYPrior"},{"$f":"\"bma_\"&\"UltCY\"&\"TwoYearDevelopment\"&\"AY\"&$B11","v":"bma_UltCYTwoYearDevelopmentAYPrior"}]
["L2",{"$f":"B13-1","v":2010},{"$f":"Import!I8340","v":0},{"$f":"Import!I8342","v":0},{"$f":"Import!I8345","v":0},{"$f":"Import!I8349","v":0},{"$f":"Import!I8354","v":0},{"$f":"Import!I8360","v":0},{"$f":"Import!I8367","v":0},{"$f":"Import!I8375","v":0},{"$f":"Import!I8384","v":0},{"$f":"Import!I8394","v":0},{"$f":"Import!I8405","v":0},0,0,null,{"$f":"\"UltCY\"&E$10&\"AY\"&B11","v":"UltCY2012AYPrior"},{"$f":"E11","v":0},"CATUltCY2019AY2014",0,"brrt_LossIncurredYearAxis_brrt_XNMinus9Member",null,null,null,null,null,null,null,null,null,null,null,null,null,null,"bma_UltCYAY2010","bma_UltCYUltCY2011AY2010AY2010","bma_UltCY0AY2010",{"$f":"\"bma_\"&\"UltCY\"&S$10&\"AY\"&$B12","v":"bma_UltCYCATUltCY2019AY2012AY2010"},"bma_UltCY0AY2010","bma_UltCYAY2010","bma_UltCYAY2010","bma_UltCYAY2010","bma_UltCYAY2010","bma_UltCYAY2010",{"$f":"\"bma_\"&\"CATUltCY\"&Y$10&\"AY\"&$B12","v":"bma_CATUltCYAY2010"},{"$f":"\"bma_\"&\"UltCY\"&\"OneYearDevelopment\"&\"AY\"&$B12","v":"bma_UltCYOneYearDevelopmentAY2010"},{"$f":"\"bma_\"&\"UltCY\"&\"TwoYearDevelopment\"&\"AY\"&$B12","v":"bma_UltCYTwoYearDevelopmentAY2010"}]
["L3",2011,"XXX",{"$f":"Import!I8343","v":0},{"$f":"Import!I8346","v":0},{"$f":"Import!I8350","v":0},{"$f":"Import!I8355","v":0},{"$f":"Import!I8361","v":0},{"$f":"Import!I8368","v":0},{"$f":"Import!I8376","v":0},{"$f":"Import!I8385","v":0},{"$f":"Import!I8395","v":0},{"$f":"Import!I8406","v":0},0,0,null,{"$f":"\"UltCY\"&E$10&\"AY\"&B12","v":"UltCY2012AY2010"},{"$f":"E12","v":0},"CATUltCY2019AY2015",0,"brrt_LossIncurredYearAxis_brrt_XNMinus8Member",null,null,null,null,null,null,null,null,null,null,null,null,null,null,null,{"$f":"\"bma_\"&\"UltCY\"&Q$10&\"AY\"&$B13","v":"bma_UltCYUltCY2011AY2010AY2011"},{"$f":"\"bma_\"&\"UltCY\"&R$10&\"AY\"&$B13","v":"bma_UltCY0AY2011"},{"$f":"\"bma_\"&\"UltCY\"&S$10&\"AY\"&$B13","v":"bma_UltCYCATUltCY2019AY2012AY2011"},"bma_UltCY0AY2011","bma_UltCYAY2011","bma_UltCYAY2011","bma_UltCYAY2011","bma_UltCYAY2011","bma_UltCYAY2011","bma_CATUltCYAY2011","bma_UltCYOneYearDevelopmentAY2011","bma_UltCYTwoYearDevelopmentAY2011"]
["L4",2012,"XXX","XXX",{"$f":"Import!I8347","v":0},{"$f":"Import!I8351","v":0},{"$f":"Import!I8356","v":0},{"$f":"Import!I8362","v":0},{"$f":"Import!I8369","v":0},{"$f":"Import!I8377","v":0},{"$f":"Import!I8386","v":0},{"$f":"Import!I8396","v":0},{"$f":"Import!I8407","v":0},0,0,null,{"$f":"\"UltCY\"&E$10&\"AY\"&B13","v":"UltCY2012AY2011"},{"$f":"E13","v":0},"CATUltCY2019AY2016",0,"brrt_LossIncurredYearAxis_brrt_XNMinus7Member",null,null,null,null,null,null,null,null,null,null,null,null,null,null,null,null,{"$f":"\"bma_\"&\"UltCY\"&R$10&\"AY\"&$B14","v":"bma_UltCY0AY2012"},{"$f":"\"bma_\"&\"UltCY\"&S$10&\"AY\"&$B14","v":"bma_UltCYCATUltCY2019AY2012AY2012"},"bma_UltCY0AY2012","bma_UltCYAY2012","bma_UltCYAY2012","bma_UltCYAY2012","bma_UltCYAY2012","bma_UltCYAY2012","bma_CATUltCYAY2012","bma_UltCYOneYearDevelopmentAY2012","bma_UltCYTwoYearDevelopmentAY2012"]
["L5",2013,"XXX","XXX","XXX",{"$f":"Import!I8352","v":0},{"$f":"Import!I8357","v":0},{"$f":"Import!I8363","v":0},{"$f":"Import!I8370","v":0},{"$f":"Import!I8378","v":0},{"$f":"Import!I8387","v":0},{"$f":"Import!I8397","v":0},{"$f":"Import!I8408","v":0},0,0,null,{"$f":"\"UltCY\"&E$10&\"AY\"&B14","v":"UltCY2012AY2012"},{"$f":"E14","v":0},"CATUltCY2019AY2017",0,"brrt_LossIncurredYearAxis_brrt_XNMinus6Member",null,null,null,null,null,null,null,null,null,null,null,null,null,null,null,null,null,{"$f":"\"bma_\"&\"UltCY\"&S$10&\"AY\"&$B15","v":"bma_UltCYCATUltCY2019AY2012AY2013"},"bma_UltCY0AY2013","bma_UltCYAY2013","bma_UltCYAY2013","bma_UltCYAY2013","bma_UltCYAY2013","bma_UltCYAY2013","bma_CATUltCYAY2013","bma_UltCYOneYearDevelopmentAY2013","bma_UltCYTwoYearDevelopmentAY2013"]
["L6",2014,"XXX","XXX","XXX","XXX",{"$f":"Import!I8358","v":0},{"$f":"Import!I8364","v":0},{"$f":"Import!I8371","v":0},{"$f":"Import!I8379","v":0},{"$f":"Import!I8388","v":0},{"$f":"Import!I8398","v":0},{"$f":"Import!I8409","v":0},0,0,null,{"$f":"\"UltCY\"&F$10&\"AY\"&B11","v":"UltCY2013AYPrior"},{"$f":"F11","v":0},"CATUltCY2019AY2018",0,"brrt_LossIncurredYearAxis_brrt_XNMinus5Member",null,null,null,null,null,null,null,null,null,null,null,null,null,null,null,null,null,null,"bma_UltCY0AY2014","bma_UltCYAY2014","bma_UltCYAY2014","bma_UltCYAY2014","bma_UltCYAY2014","bma_UltCYAY2014","bma_CATUltCYAY2014","bma_UltCYOneYearDevelopmentAY2014","bma_UltCYTwoYearDevelopmentAY2014"]
["L7",2015,"XXX","XXX","XXX","XXX","XXX",{"$f":"Import!I8365","v":0},{"$f":"Import!I8372","v":0},{"$f":"Import!I8380","v":0},{"$f":"Import!I8389","v":0},{"$f":"Import!I8399","v":0},{"$f":"Import!I8410","v":0},0,0,null,{"$f":"\"UltCY\"&F$10&\"AY\"&B12","v":"UltCY2013AY2010"},{"$f":"F12","v":0},"CATUltCY2019AY2019",0,"brrt_LossIncurredYearAxis_brrt_XNMinus4Member",null,null,null,null,null,null,null,null,null,null,null,null,null,null,null,null,null,null,null,"bma_UltCYAY2015","bma_UltCYAY2015","bma_UltCYAY2015","bma_UltCYAY2015","bma_UltCYAY2015","bma_CATUltCYAY2015","bma_UltCYOneYearDevelopmentAY2015","bma_UltCYTwoYearDevelopmentAY2015"]
["L8",2016,"XXX","XXX","XXX","XXX","XXX","XXX",{"$f":"Import!I8373","v":0},{"$f":"Import!I8381","v":0},{"$f":"Import!I8390","v":0},{"$f":"Import!I8400","v":0},{"$f":"Import!I8411","v":0},0,0,null,{"$f":"\"UltCY\"&F$10&\"AY\"&B13","v":"UltCY2013AY2011"},{"$f":"F13","v":0},{"$f":"\"CATPaidCY\"&L$10&\"AY\"&B29","v":"CATPaidCY2019AYPrior"},{"$f":"M29","v":0},"brrt_LossIncurredYearAxis_brrt_XNMinus3Member",null,null,null,null,null,null,null,null,null,null,null,null,null,null,null,null,null,null,null,null,"bma_UltCYAY2016","bma_UltCYAY2016","bma_UltCYAY2016","bma_UltCYAY2016","bma_CATUltCYAY2016","bma_UltCYOneYearDevelopmentAY2016","bma_UltCYTwoYearDevelopmentAY2016"]
["L9",2017,"XXX","XXX","XXX","XXX","XXX","XXX","XXX",{"$f":"Import!I8382","v":0},{"$f":"Import!I8391","v":0},{"$f":"Import!I8401","v":0},{"$f":"Import!I8412","v":0},0,0,null,{"$f":"\"UltCY\"&F$10&\"AY\"&B14","v":"UltCY2013AY2012"},{"$f":"F14","v":0},"CATPaidCY2019AY2010",0,"brrt_LossIncurredYearAxis_brrt_XNMinus2Member",null,null,null,null,null,null,null,null,null,null,null,null,null,null,null,null,null,null,null,null,null,"bma_UltCYAY2017","bma_UltCYAY2017","bma_UltCYAY2017","bma_CATUltCYAY2017","bma_UltCYOneYearDevelopmentAY2017","bma_UltCYTwoYearDevelopmentAY2017"]
["L10",2018,"XXX","XXX","XXX","XXX","XXX","XXX","XXX","XXX",{"$f":"Import!I8392","v":0},{"$f":"Import!I8402","v":0},{"$f":"Import!I8413","v":0},0,"XXX",null,{"$f":"\"UltCY\"&F$10&\"AY\"&B15","v":"UltCY2013AY2013"},{"$f":"F15","v":0},"CATPaidCY2019AY2011",0,"brrt_LossIncurredYearAxis_brrt_XNMinus1Member",null,null,null,null,null,null,null,null,null,null,null,null,null,null,null,null,null,null,null,null,null,null,"bma_UltCYAY2018","bma_UltCYAY2018","bma_CATUltCYAY2018","bma_UltCYOneYearDevelopmentAY2018"]
["L11",{"$f":"L10","v":2019},"XXX","XXX","XXX","XXX","XXX","XXX","XXX","XXX","XXX",{"$f":"Import!I8403","v":0},{"$f":"Import!I8414","v":0},"XXX","XXX",null,{"$f":"\"UltCY\"&G$10&\"AY\"&B11","v":"UltCY2014AYPrior"},{"$f":"G11","v":0},"CATPaidCY2019AY2012",0,"brrt_LossIncurredYearAxis_brrt_XNMember",null,null,null,null,null,null,null,null,null,null,null,null,null,null,null,null,null,null,null,null,null,null,null,"bma_UltCYAY2019","bma_CATUltCYAY2019"]
["L12","Totals",null,null,null,null,null,null,null,null,null,null,{"$f":"SUM(M11:M21)","v":0},{"$f":"SUM(N11:N21)","v":0},{"$f":"SUM(O11:O21)","v":0},null,{"$f":"\"UltCY\"&G$10&\"AY\"&B12","v":"UltCY2014AY2010"},{"$f":"G12","v":0},"CATPaidCY2019AY2013",0,null,null,null,null,null,null,null,null,null,null,null,null,null,null,null,null,null,null,null,null,null,null,null,null,null,"bma_CATUltCYAYTotals","bma_UltCYOneYearDevelopmentAYTotals",{"$f":"\"bma_\"&\"UltCY\"&\"TwoYearDevelopment\"&\"AY\"&$B22","v":"bma_UltCYTwoYearDevelopmentAYTotals"}]
[null,null,null,null,null,null,null,null,null,null,null,null,null,null,null,null,{"$f":"\"UltCY\"&G$10&\"AY\"&B13","v":"UltCY2014AY2011"},{"$f":"G13","v":0},"CATPaidCY2019AY2014",0]
[null,null,"CUMULATIVE PAID NET LOSSES AND ALLOCATED LOSS ADJUSTMENT EXPENSES REPORTED AT YEAR END ($000)",null,null,null,null,null,null,null,null,null,24,null,null,null,{"$f":"\"UltCY\"&G$10&\"AY\"&B15","v":"UltCY2014AY2013"},{"$f":"G15","v":0},{"$f":"\"CATPaidCY\"&L$10&\"AY\"&B36","v":"CATPaidCY2019AY2016"},{"$f":"M36","v":0}]
[null,null,null,null,null,null,null,null,null,null,null,null,"Paid",null,null,null,{"$f":"\"UltCY\"&G$10&\"AY\"&B16","v":"UltCY2014AY2014"},{"$f":"G16","v":0},{"$f":"\"CATPaidCY\"&L$10&\"AY\"&B37","v":"CATPaidCY2019AY2017"},{"$f":"M37","v":0}]
[null,"Years in Which",14,15,16,17,18,19,20,21,22,23,"Catastrophe",null,null,null,{"$f":"\"UltCY\"&H$10&\"AY\"&B11","v":"UltCY2015AYPrior"},{"$f":"H11","v":0},{"$f":"\"CATPaidCY\"&L$10&\"AY\"&B38","v":"CATPaidCY2019AY2018"},{"$f":"M38","v":0}]
[null,"Policies Were",null,null,null,null,null,null,null,null,null,null,"Losses",null,null,null,"UltCY2015AY2010",0,{"$f":"\"CATPaidCY\"&L$10&\"AY\"&B39","v":"CATPaidCY2019AY2019"},{"$f":"M39","v":0}]
[null,"Written",{"$f":"D28-1","v":2010},2011,2012,2013,2014,2015,2016,2017,2018,{"$f":"L10","v":2019},{"$f":"L28","v":2019},null,null,null,"UltCY2015AY2011",0,{"$f":"\"CATIBNRCY\"&L$10&\"AY\"&B47","v":"CATIBNRCY2019AYPrior"},{"$f":"M47","v":0}]
["L13","Prior",{"$f":"Import!I8415","v":0},{"$f":"Import!I8417","v":0},{"$f":"Import!I8420","v":0},{"$f":"Import!I8424","v":0},{"$f":"Import!I8429","v":0},{"$f":"Import!I8435","v":0},{"$f":"Import!I8442","v":0},{"$f":"Import!I8450","v":0},{"$f":"Import!I8459","v":0},{"$f":"Import!I8469","v":0},{"$f":"Import!I8480","v":0},null,null,null,"UltCY2015AY2012",0,"CATIBNRCY2019AY2010",0,"brrt_PoliciesWrittenYearAxis_brrt_PriorMember",null,null,null,null,null,null,null,null,null,null,null,null,null,null,{"$f":"\"bma_\"&\"PaidCY\"&P$10&\"AY\"&$B29","v":"bma_PaidCYAYPrior"},"bma_PaidCYUltCY2011AY2010AYPrior","bma_PaidCY0AYPrior","bma_PaidCYCATUltCY2019AY2012AYPrior",{"$f":"\"bma_\"&\"PaidCY\"&T$10&\"AY\"&$B29","v":"bma_PaidCY0AYPrior"},{"$f":"\"bma_\"&\"PaidCY\"&U$10&\"AY\"&$B29","v":"bma_PaidCYAYPrior"},{"$f":"\"bma_\"&\"PaidCY\"&V$10&\"AY\"&$B29","v":"bma_PaidCYAYPrior"},{"$f":"\"bma_\"&\"PaidCY\"&W$10&\"AY\"&$B29","v":"bma_PaidCYAYPrior"},{"$f":"\"bma_\"&\"PaidCY\"&X$10&\"AY\"&$B29","v":"bma_PaidCYAYPrior"},{"$f":"\"bma_\"&\"PaidCY\"&Y$10&\"AY\"&$B29","v":"bma_PaidCYAYPrior"},{"$f":"\"bma_\"&\"CATPaidCY\"&Y$10&\"AY\"&$B29","v":"bma_CATPaidCYAYPrior"}]
["L14",{"$f":"B31-1","v":2010},{"$f":"Import!I8416","v":0},{"$f":"Import!I8418","v":0},{"$f":"Import!I8421","v":0},{"$f":"Import!I8425","v":0},{"$f":"Import!I8430","v":0},{"$f":"Import!I8436","v":0},{"$f":"Import!I8443","v":0},{"$f":"Import!I8451","v":0},{"$f":"Import!I8460","v":0},{"$f":"Import!I8470","v":0},{"$f":"Import!I8481","v":0},null,null,null,"UltCY2015AY2013",0,"CATIBNRCY2019AY2011",0,"brrt_PoliciesWrittenYearAxis_brrt_XNMinus9Member",null,null,null,null,null,null,null,null,null,null,null,null,null,null,"bma_PaidCYAY2010","bma_PaidCYUltCY2011AY2010AY2010","bma_PaidCY0AY2010","bma_PaidCYCATUltCY2019AY2012AY2010","bma_PaidCY0AY2010","bma_PaidCYAY2010","bma_PaidCYAY2010","bma_PaidCYAY2010","bma_PaidCYAY2010","bma_PaidCYAY2010","bma_CATPaidCYAY2010"]
["L15",2011,"XXX",{"$f":"Import!I8419","v":0},{"$f":"Import!I8422","v":0},{"$f":"Import!I8426","v":0},{"$f":"Import!I8431","v":0},{"$f":"Import!I8437","v":0},{"$f":"Import!I8444","v":0},{"$f":"Import!I8452","v":0},{"$f":"Import!I8461","v":0},{"$f":"Import!I8471","v":0},{"$f":"Import!I8482","v":0},null,null,null,"UltCY2015AY2014",0,"CATIBNRCY2019AY2012",0,"brrt_PoliciesWrittenYearAxis_brrt_XNMinus8Member",null,null,null,null,null,null,null,null,null,null,null,null,null,null,null,{"$f":"\"bma_\"&\"PaidCY\"&Q$10&\"AY\"&$B31","v":"bma_PaidCYUltCY2011AY2010AY2011"},{"$f":"\"bma_\"&\"PaidCY\"&R$10&\"AY\"&$B31","v":"bma_PaidCY0AY2011"},{"$f":"\"bma_\"&\"PaidCY\"&S$10&\"AY\"&$B31","v":"bma_PaidCYCATUltCY2019AY2012AY2011"},"bma_PaidCY0AY2011","bma_PaidCYAY2011","bma_PaidCYAY2011","bma_PaidCYAY2011","bma_PaidCYAY2011","bma_PaidCYAY2011","bma_CATPaidCYAY2011"]
["L16",2012,"XXX","XXX",{"$f":"Import!I8423","v":0},{"$f":"Import!I8427","v":0},{"$f":"Import!I8432","v":0},{"$f":"Import!I8438","v":0},{"$f":"Import!I8445","v":0},{"$f":"Import!I8453","v":0},{"$f":"Import!I8462","v":0},{"$f":"Import!I8472","v":0},{"$f":"Import!I8483","v":0},null,null,null,"UltCY2015AY2015",0,"CATIBNRCY2019AY2013",0,"brrt_PoliciesWrittenYearAxis_brrt_XNMinus7Member",null,null,null,null,null,null,null,null,null,null,null,null,null,null,null,null,{"$f":"\"bma_\"&\"PaidCY\"&R$10&\"AY\"&$B32","v":"bma_PaidCY0AY2012"},{"$f":"\"bma_\"&\"PaidCY\"&S$10&\"AY\"&$B32","v":"bma_PaidCYCATUltCY2019AY2012AY2012"},"bma_PaidCY0AY2012","bma_PaidCYAY2012","bma_PaidCYAY2012","bma_PaidCYAY2012","bma_PaidCYAY2012","bma_PaidCYAY2012","bma_CATPaidCYAY2012"]
["L17",2013,"XXX","XXX","XXX",{"$f":"Import!I8428","v":0},{"$f":"Import!I8433","v":0},{"$f":"Import!I8439","v":0},{"$f":"Import!I8446","v":0},{"$f":"Import!I8454","v":0},{"$f":"Import!I8463","v":0},{"$f":"Import!I8473","v":0},{"$f":"Import!I8484","v":0},null,null,null,{"$f":"\"UltCY\"&I$10&\"AY\"&B11","v":"UltCY2016AYPrior"},{"$f":"I11","v":0},"CATIBNRCY2019AY2014",0,"brrt_PoliciesWrittenYearAxis_brrt_XNMinus6Member",null,null,null,null,null,null,null,null,null,null,null,null,null,null,null,null,null,{"$f":"\"bma_\"&\"PaidCY\"&S$10&\"AY\"&$B33","v":"bma_PaidCYCATUltCY2019AY2012AY2013"},"bma_PaidCY0AY2013","bma_PaidCYAY2013","bma_PaidCYAY2013","bma_PaidCYAY2013","bma_PaidCYAY2013","bma_PaidCYAY2013","bma_CATPaidCYAY2013"]
["L18",2014,"XXX","XXX","XXX","XXX",{"$f":"Import!I8434","v":0},{"$f":"Import!I8440","v":0},{"$f":"Import!I8447","v":0},{"$f":"Import!I8455","v":0},{"$f":"Import!I8464","v":0},{"$f":"Import!I8474","v":0},{"$f":"Import!I8485","v":0},null,null,null,"UltCY2016AY2010",0,"CATIBNRCY2019AY2015",0,"brrt_PoliciesWrittenYearAxis_brrt_XNMinus5Member",null,null,null,null,null,null,null,null,null,null,null,null,null,null,null,null,null,null,"bma_PaidCY0AY2014","bma_PaidCYAY2014","bma_PaidCYAY2014","bma_PaidCYAY2014","bma_PaidCYAY2014","bma_PaidCYAY2014","bma_CATPaidCYAY2014"]
["L19",2015,"XXX","XXX","XXX","XXX","XXX",{"$f":"Import!I8441","v":0},{"$f":"Import!I8448","v":0},{"$f":"Import!I8456","v":0},{"$f":"Import!I8465","v":0},{"$f":"Import!I8475","v":0},{"$f":"Import!I8486","v":0},null,null,null,"UltCY2016AY2011",0,"CATIBNRCY2019AY2016",0,"brrt_PoliciesWrittenYearAxis_brrt_XNMinus4Member",null,null,null,null,null,null,null,null,null,null,null,null,null,null,null,null,null,null,null,{"$f":"\"bma_\"&\"PaidCY\"&U$10&\"AY\"&$B35","v":"bma_PaidCYAY2015"},{"$f":"\"bma_\"&\"PaidCY\"&V$10&\"AY\"&$B35","v":"bma_PaidCYAY2015"},{"$f":"\"bma_\"&\"PaidCY\"&W$10&\"AY\"&$B35","v":"bma_PaidCYAY2015"},{"$f":"\"bma_\"&\"PaidCY\"&X$10&\"AY\"&$B35","v":"bma_PaidCYAY2015"},{"$f":"\"bma_\"&\"PaidCY\"&Y$10&\"AY\"&$B35","v":"bma_PaidCYAY2015"},"bma_CATPaidCYAY2015"]
["L20",2016,"XXX","XXX","XXX","XXX","XXX","XXX",{"$f":"Import!I8449","v":0},{"$f":"Import!I8457","v":0},{"$f":"Import!I8466","v":0},{"$f":"Import!I8476","v":0},{"$f":"Import!I8487","v":0},null,null,null,"UltCY2016AY2012",0,"CATIBNRCY2019AY2017",0,"brrt_PoliciesWrittenYearAxis_brrt_XNMinus3Member",null,null,null,null,null,null,null,null,null,null,null,null,null,null,null,null,null,null,null,null,{"$f":"\"bma_\"&\"PaidCY\"&V$10&\"AY\"&$B36","v":"bma_PaidCYAY2016"},{"$f":"\"bma_\"&\"PaidCY\"&W$10&\"AY\"&$B36","v":"bma_PaidCYAY2016"},{"$f":"\"bma_\"&\"PaidCY\"&X$10&\"AY\"&$B36","v":"bma_PaidCYAY2016"},{"$f":"\"bma_\"&\"PaidCY\"&Y$10&\"AY\"&$B36","v":"bma_PaidCYAY2016"},"bma_CATPaidCYAY2016"]
["L21",2017,"XXX","XXX","XXX","XXX","XXX","XXX","XXX",{"$f":"Import!I8458","v":0},{"$f":"Import!I8467","v":0},{"$f":"Import!I8477","v":0},{"$f":"Import!I8488","v":0},null,null,null,"UltCY2016AY2013",0,"CATIBNRCY2019AY2018",0,"brrt_PoliciesWrittenYearAxis_brrt_XNMinus2Member",null,null,null,null,null,null,null,null,null,null,null,null,null,null,null,null,null,null,null,null,null,{"$f":"\"bma_\"&\"PaidCY\"&W$10&\"AY\"&$B37","v":"bma_PaidCYAY2017"},{"$f":"\"bma_\"&\"PaidCY\"&X$10&\"AY\"&$B37","v":"bma_PaidCYAY2017"},{"$f":"\"bma_\"&\"PaidCY\"&Y$10&\"AY\"&$B37","v":"bma_PaidCYAY2017"},"bma_CATPaidCYAY2017"]
["L22",2018,"XXX","XXX","XXX","XXX","XXX","XXX","XXX","XXX",{"$f":"Import!I8468","v":0},{"$f":"Import!I8478","v":0},{"$f":"Import!I8489","v":0},null,null,null,"UltCY2016AY2014",0,"CATIBNRCY2019AY2019",0,"brrt_PoliciesWrittenYearAxis_brrt_XNMinus1Member",null,null,null,null,null,null,null,null,null,null,null,null,null,null,null,null,null,null,null,null,null,null,{"$f":"\"bma_\"&\"PaidCY\"&X$10&\"AY\"&$B38","v":"bma_PaidCYAY2018"},{"$f":"\"bma_\"&\"PaidCY\"&Y$10&\"AY\"&$B38","v":"bma_PaidCYAY2018"},"bma_CATPaidCYAY2018"]
["L23",{"$f":"L28","v":2019},"XXX","XXX","XXX","XXX","XXX","XXX","XXX","XXX","XXX",{"$f":"Import!I8479","v":0},{"$f":"Import!I8490","v":0},null,null,null,"UltCY2016AY2015",0,null,null,"brrt_PoliciesWrittenYearAxis_brrt_XNMember",null,null,null,null,null,null,null,null,null,null,null,null,null,null,null,null,null,null,null,null,null,null,null,{"$f":"\"bma_\"&\"PaidCY\"&Y$10&\"AY\"&$B39","v":"bma_PaidCYAY2019"},"bma_CATPaidCYAY2019"]
["L24","Totals",null,null,null,null,null,null,null,null,null,null,{"$f":"SUM(M29:M39)","v":0},null,null,null,"UltCY2016AY2016",0,null,null,null,null,null,null,null,null,null,null,null,null,null,null,null,null,null,null,null,null,null,null,null,null,null,null,null,"bma_CATPaidCYAYTotals"]
[null,null,null,null,null,null,null,null,null,null,null,null,null,null,null,null,{"$f":"\"UltCY\"&J$10&\"AY\"&B11","v":"UltCY2017AYPrior"},{"$f":"J11","v":0}]
[null,null,"BULK & IBNR RESERVES ON NET LOSSES AND ALLOCATED LOSS ADJUSTMENT EXPENSES REPORTED AT YEAR END ($000)",null,null,null,null,null,null,null,null,null,35,null,null,null,{"$f":"\"UltCY\"&J$10&\"AY\"&B13","v":"UltCY2017AY2011"},{"$f":"J13","v":0}]
[null,null,null,null,null,null,null,null,null,null,null,null,"Losses",null,null,null,"UltCY2017AY2012",0]
[null,"Years in Which",25,26,27,28,29,30,31,32,33,34,"Bulk & IBNR",null,null,null,"UltCY2017AY2013",0]
[null,"Policies Were",null,null,null,null,null,null,null,null,null,null,"Reserves",null,null,null,"UltCY2017AY2014",0]
[null,"Written",{"$f":"D46-1","v":2010},2011,2012,2013,2014,2015,2016,2017,2018,{"$f":"L28","v":2019},{"$f":"L46","v":2019},null,null,null,"UltCY2017AY2015",0]
["L25","Prior",{"$f":"Import!I8491","v":0},{"$f":"Import!I8493","v":0},{"$f":"Import!I8496","v":0},{"$f":"Import!I8500","v":0},{"$f":"Import!I8505","v":0},{"$f":"Import!I8511","v":0},{"$f":"Import!I8518","v":0},{"$f":"Import!I8526","v":0},{"$f":"Import!I8535","v":0},{"$f":"Import!I8545","v":0},{"$f":"Import!I8556","v":0},null,null,null,"UltCY2017AY2016",0,null,null,"brrt_PoliciesWrittenYearAxis_brrt_PriorMember",null,null,null,null,null,null,null,null,null,null,null,null,null,null,{"$f":"\"bma_\"&\"IBNRCY\"&P$10&\"AY\"&$B47","v":"bma_IBNRCYAYPrior"},"bma_IBNRCYUltCY2011AY2010AYPrior","bma_IBNRCY0AYPrior","bma_IBNRCYCATUltCY2019AY2012AYPrior",{"$f":"\"bma_\"&\"IBNRCY\"&T$10&\"AY\"&$B47","v":"bma_IBNRCY0AYPrior"},{"$f":"\"bma_\"&\"IBNRCY\"&U$10&\"AY\"&$B47","v":"bma_IBNRCYAYPrior"},{"$f":"\"bma_\"&\"IBNRCY\"&V$10&\"AY\"&$B47","v":"bma_IBNRCYAYPrior"},{"$f":"\"bma_\"&\"IBNRCY\"&W$10&\"AY\"&$B47","v":"bma_IBNRCYAYPrior"},{"$f":"\"bma_\"&\"IBNRCY\"&X$10&\"AY\"&$B47","v":"bma_IBNRCYAYPrior"},{"$f":"\"bma_\"&\"IBNRCY\"&Y$10&\"AY\"&$B47","v":"bma_IBNRCYAYPrior"},{"$f":"\"bma_\"&\"CATIBNRCY\"&Y$10&\"AY\"&$B47","v":"bma_CATIBNRCYAYPrior"}]
["L26",{"$f":"B49-1","v":2010},{"$f":"Import!I8492","v":0},{"$f":"Import!I8494","v":0},{"$f":"Import!I8497","v":0},{"$f":"Import!I8501","v":0},{"$f":"Import!I8506","v":0},{"$f":"Import!I8512","v":0},{"$f":"Import!I8519","v":0},{"$f":"Import!I8527","v":0},{"$f":"Import!I8536","v":0},{"$f":"Import!I8546","v":0},{"$f":"Import!I8557","v":0},null,null,null,"UltCY2017AY2017",0,null,null,"brrt_PoliciesWrittenYearAxis_brrt_XNMinus9Member",null,null,null,null,null,null,null,null,null,null,null,null,null,null,"bma_IBNRCYAY2010","bma_IBNRCYUltCY2011AY2010AY2010","bma_IBNRCY0AY2010","bma_IBNRCYCATUltCY2019AY2012AY2010","bma_IBNRCY0AY2010","bma_IBNRCYAY2010","bma_IBNRCYAY2010","bma_IBNRCYAY2010","bma_IBNRCYAY2010","bma_IBNRCYAY2010","bma_CATIBNRCYAY2010"]
["L27",2011,"XXX",{"$f":"Import!I8495","v":0},{"$f":"Import!I8498","v":0},{"$f":"Import!I8502","v":0},{"$f":"Import!I8507","v":0},{"$f":"Import!I8513","v":0},{"$f":"Import!I8520","v":0},{"$f":"Import!I8528","v":0},{"$f":"Import!I8537","v":0},{"$f":"Import!I8547","v":0},{"$f":"Import!I8558","v":0},null,null,null,{"$f":"\"UltCY\"&K$10&\"AY\"&B11","v":"UltCY2018AYPrior"},{"$f":"K11","v":0},null,null,"brrt_PoliciesWrittenYearAxis_brrt_XNMinus8Member",null,null,null,null,null,null,null,null,null,null,null,null,null,null,null,{"$f":"\"bma_\"&\"IBNRCY\"&Q$10&\"AY\"&$B49","v":"bma_IBNRCYUltCY2011AY2010AY2011"},{"$f":"\"bma_\"&\"IBNRCY\"&R$10&\"AY\"&$B49","v":"bma_IBNRCY0AY2011"},{"$f":"\"bma_\"&\"IBNRCY\"&S$10&\"AY\"&$B49","v":"bma_IBNRCYCATUltCY2019AY2012AY2011"},"bma_IBNRCY0AY2011","bma_IBNRCYAY2011","bma_IBNRCYAY2011","bma_IBNRCYAY2011","bma_IBNRCYAY2011","bma_IBNRCYAY2011","bma_CATIBNRCYAY2011"]
["L28",2012,"XXX","XXX",{"$f":"Import!I8499","v":0},{"$f":"Import!I8503","v":0},{"$f":"Import!I8508","v":0},{"$f":"Import!I8514","v":0},{"$f":"Import!I8521","v":0},{"$f":"Import!I8529","v":0},{"$f":"Import!I8538","v":0},{"$f":"Import!I8548","v":0},{"$f":"Import!I8559","v":0},null,null,null,"UltCY2018AY2010",0,null,null,"brrt_PoliciesWrittenYearAxis_brrt_XNMinus7Member",null,null,null,null,null,null,null,null,null,null,null,null,null,null,null,null,{"$f":"\"bma_\"&\"IBNRCY\"&R$10&\"AY\"&$B50","v":"bma_IBNRCY0AY2012"},{"$f":"\"bma_\"&\"IBNRCY\"&S$10&\"AY\"&$B50","v":"bma_IBNRCYCATUltCY2019AY2012AY2012"},"bma_IBNRCY0AY2012","bma_IBNRCYAY2012","bma_IBNRCYAY2012","bma_IBNRCYAY2012","bma_IBNRCYAY2012","bma_IBNRCYAY2012","bma_CATIBNRCYAY2012"]
["L29",2013,"XXX","XXX","XXX",{"$f":"Import!I8504","v":0},{"$f":"Import!I8509","v":0},{"$f":"Import!I8515","v":0},{"$f":"Import!I8522","v":0},{"$f":"Import!I8530","v":0},{"$f":"Import!I8539","v":0},{"$f":"Import!I8549","v":0},{"$f":"Import!I8560","v":0},null,null,null,"UltCY2018AY2011",0,null,null,"brrt_PoliciesWrittenYearAxis_brrt_XNMinus6Member",null,null,null,null,null,null,null,null,null,null,null,null,null,null,null,null,null,{"$f":"\"bma_\"&\"IBNRCY\"&S$10&\"AY\"&$B51","v":"bma_IBNRCYCATUltCY2019AY2012AY2013"},"bma_IBNRCY0AY2013","bma_IBNRCYAY2013","bma_IBNRCYAY2013","bma_IBNRCYAY2013","bma_IBNRCYAY2013","bma_IBNRCYAY2013","bma_CATIBNRCYAY2013"]
["L30",2014,"XXX","XXX","XXX","XXX",{"$f":"Import!I8510","v":0},{"$f":"Import!I8516","v":0},{"$f":"Import!I8523","v":0},{"$f":"Import!I8531","v":0},{"$f":"Import!I8540","v":0},{"$f":"Import!I8550","v":0},{"$f":"Import!I8561","v":0},null,null,null,"UltCY2018AY2012",0,null,null,"brrt_PoliciesWrittenYearAxis_brrt_XNMinus5Member",null,null,null,null,null,null,null,null,null,null,null,null,null,null,null,null,null,null,"bma_IBNRCY0AY2014","bma_IBNRCYAY2014","bma_IBNRCYAY2014","bma_IBNRCYAY2014","bma_IBNRCYAY2014","bma_IBNRCYAY2014","bma_CATIBNRCYAY2014"]
["L31",2015,"XXX","XXX","XXX","XXX","XXX",{"$f":"Import!I8517","v":0},{"$f":"Import!I8524","v":0},{"$f":"Import!I8532","v":0},{"$f":"Import!I8541","v":0},{"$f":"Import!I8551","v":0},{"$f":"Import!I8562","v":0},null,null,null,"UltCY2018AY2013",0,null,null,"brrt_PoliciesWrittenYearAxis_brrt_XNMinus4Member",null,null,null,null,null,null,null,null,null,null,null,null,null,null,null,null,null,null,null,{"$f":"\"bma_\"&\"IBNRCY\"&U$10&\"AY\"&$B53","v":"bma_IBNRCYAY2015"},{"$f":"\"bma_\"&\"IBNRCY\"&V$10&\"AY\"&$B53","v":"bma_IBNRCYAY2015"},{"$f":"\"bma_\"&\"IBNRCY\"&W$10&\"AY\"&$B53","v":"bma_IBNRCYAY2015"},{"$f":"\"bma_\"&\"IBNRCY\"&X$10&\"AY\"&$B53","v":"bma_IBNRCYAY2015"},{"$f":"\"bma_\"&\"IBNRCY\"&Y$10&\"AY\"&$B53","v":"bma_IBNRCYAY2015"},"bma_CATIBNRCYAY2015"]
["L32",2016,"XXX","XXX","XXX","XXX","XXX","XXX",{"$f":"Import!I8525","v":0},{"$f":"Import!I8533","v":0},{"$f":"Import!I8542","v":0},{"$f":"Import!I8552","v":0},{"$f":"Import!I8563","v":0},null,null,null,"UltCY2018AY2014",0,null,null,"brrt_PoliciesWrittenYearAxis_brrt_XNMinus3Member",null,null,null,null,null,null,null,null,null,null,null,null,null,null,null,null,null,null,null,null,{"$f":"\"bma_\"&\"IBNRCY\"&V$10&\"AY\"&$B54","v":"bma_IBNRCYAY2016"},{"$f":"\"bma_\"&\"IBNRCY\"&W$10&\"AY\"&$B54","v":"bma_IBNRCYAY2016"},{"$f":"\"bma_\"&\"IBNRCY\"&X$10&\"AY\"&$B54","v":"bma_IBNRCYAY2016"},{"$f":"\"bma_\"&\"IBNRCY\"&Y$10&\"AY\"&$B54","v":"bma_IBNRCYAY2016"},"bma_CATIBNRCYAY2016"]
["L33",2017,"XXX","XXX","XXX","XXX","XXX","XXX","XXX",{"$f":"Import!I8534","v":0},{"$f":"Import!I8543","v":0},{"$f":"Import!I8553","v":0},{"$f":"Import!I8564","v":0},null,null,null,"UltCY2018AY2015",0,null,null,"brrt_PoliciesWrittenYearAxis_brrt_XNMinus2Member",null,null,null,null,null,null,null,null,null,null,null,null,null,null,null,null,null,null,null,null,null,{"$f":"\"bma_\"&\"IBNRCY\"&W$10&\"AY\"&$B55","v":"bma_IBNRCYAY2017"},{"$f":"\"bma_\"&\"IBNRCY\"&X$10&\"AY\"&$B55","v":"bma_IBNRCYAY2017"},{"$f":"\"bma_\"&\"IBNRCY\"&Y$10&\"AY\"&$B55","v":"bma_IBNRCYAY2017"},"bma_CATIBNRCYAY2017"]
["L34",2018,"XXX","XXX","XXX","XXX","XXX","XXX","XXX","XXX",{"$f":"Import!I8544","v":0},{"$f":"Import!I8554","v":0},{"$f":"Import!I8565","v":0},null,null,null,"UltCY2018AY2016",0,null,null,"brrt_PoliciesWrittenYearAxis_brrt_XNMinus1Member",null,null,null,null,null,null,null,null,null,null,null,null,null,null,null,null,null,null,null,null,null,null,{"$f":"\"bma_\"&\"IBNRCY\"&X$10&\"AY\"&$B56","v":"bma_IBNRCYAY2018"},{"$f":"\"bma_\"&\"IBNRCY\"&Y$10&\"AY\"&$B56","v":"bma_IBNRCYAY2018"},"bma_CATIBNRCYAY2018"]
["L35",{"$f":"L46","v":2019},"XXX","XXX","XXX","XXX","XXX","XXX","XXX","XXX","XXX",{"$f":"Import!I8555","v":0},{"$f":"Import!I8566","v":0},null,null,null,"UltCY2018AY2017",0,null,null,"brrt_PoliciesWrittenYearAxis_brrt_XNMember",null,null,null,null,null,null,null,null,null,null,null,null,null,null,null,null,null,null,null,null,null,null,null,{"$f":"\"bma_\"&\"IBNRCY\"&Y$10&\"AY\"&$B57","v":"bma_IBNRCYAY2019"},"bma_CATIBNRCYAY2019"]
["L36","Totals",null,null,null,null,null,null,null,null,null,null,{"$f":"SUM(M47:M57)","v":0},null,null,null,"UltCY2018AY2018",0,null,null,null,null,null,null,null,null,null,null,null,null,null,null,null,null,null,null,null,null,null,null,null,null,null,null,null,"bma_CATIBNRCYAYTotals"]
[null,null,null,null,null,null,null,null,null,null,null,null,null,null,null,null,{"$f":"\"UltCY\"&L$10&\"AY\"&B11","v":"UltCY2019AYPrior"},{"$f":"L11","v":0}]
[null,null,36,37,38,39,"Unallocated Loss",null,null,42,43,44,45,null,null,null,{"$f":"\"UltCY\"&L$10&\"AY\"&B13","v":"UltCY2019AY2011"},{"$f":"L13","v":0}]
[null,"Years in Which",null,null,null,null,"Adjustment Expenses",null,null,null,null,null,null,null,null,null,"UltCY2019AY2012",0]
[null,"Premiums",null,null,null,null,40,41,null,null,null,null,null,null,null,null,"UltCY2019AY2013",0]
[null,"Were",null,null,null,null,null,null,null,"Commission and","General and",null,null,null,null,null,"UltCY2019AY2014",0]
[null,"Earned and","Gross","Gross","Net","Net",null,null,null,"Brokerage","Administrative","Personnel","Other",null,null,null,"UltCY2019AY2015",0]
[null,"Losses Were","Premiums","Premiums","Premiums","Premiums",null,null,"Calendar","Expense","Expense","Costs","Expense",null,null,null,"UltCY2019AY2016",0]
[null,"Incurred","Written","Earned","Written","Earned","Paid","Incurred","Year","(Form 2A, Line 9)","(Form 2A, Line 10)","(Form 2A, Line 11)","(Form 2A, Line 12)",null,null,null,"UltCY2019AY2017",0]
["L37","Prior","XXX",{"$f":"C67","v":"XXX"},"XXX",{"$f":"E67","v":"XXX"},{"$f":"Import!I8611","v":0},{"$f":"Import!I8622","v":0},"Prior",{"$f":"Import!I8633","v":0},{"$f":"Import!I8644","v":0},{"$f":"Import!I8655","v":0},{"$f":"Import!I8666","v":0},null,null,null,"UltCY2019AY2018",0,null,null,"brrt_PremiumsEarnedLossesIncurredYearAxis_brrt_PriorMember","brrt_CalendarYearAxis_brrt_PriorMember",null,null,null,null,null,null,null,null,null,null,null,null,null,null,null,null,null,{"$f":"\"bma_\"&\"NetAOEPaid\"&$B67","v":"bma_NetAOEPaidPrior"},{"$f":"\"bma_\"&\"NetAOEIncurred\"&$B67","v":"bma_NetAOEIncurredPrior"},null,{"$f":"\"bma_\"&\"CommissionsAndBrokerage\"&$B67","v":"bma_CommissionsAndBrokeragePrior"},{"$f":"\"bma_\"&\"GeneralAndAdministrative\"&$B67","v":"bma_GeneralAndAdministrativePrior"},{"$f":"\"bma_\"&\"PersonnelCosts\"&$B67","v":"bma_PersonnelCostsPrior"},{"$f":"\"bma_\"&\"UnderwritingExpensesOther\"&$B67","v":"bma_UnderwritingExpensesOtherPrior"}]
["L38",{"$f":"B69-1","v":2010},{"$f":"Import!I8568","v":0},{"$f":"Import!I8579","v":0},{"$f":"Import!I8590","v":0},{"$f":"Import!I8601","v":0},{"$f":"Import!I8612","v":0},{"$f":"Import!I8623","v":0},{"$f":"B68","v":2010},{"$f":"Import!I8634","v":0},{"$f":"Import!I8645","v":0},{"$f":"Import!I8656","v":0},{"$f":"Import!I8667","v":0},null,null,null,"UltCY2019AY2019",0,null,null,"brrt_PremiumsEarnedLossesIncurredYearAxis_brrt_XNMinus9Member","brrt_CalendarYearAxis_brrt_XNMinus9Member",null,null,null,null,null,null,null,null,null,null,null,null,null,{"$f":"\"bma_\"&\"GrossWP\"&$B68","v":"bma_GrossWP2010"},{"$f":"\"bma_\"&\"GrossEP\"&$B68","v":"bma_GrossEP2010"},{"$f":"\"bma_\"&\"NetWP\"&$B68","v":"bma_NetWP2010"},{"$f":"\"bma_\"&\"NetEP\"&$B68","v":"bma_NetEP2010"},{"$f":"\"bma_\"&\"NetAOEPaid\"&$B68","v":"bma_NetAOEPaid2010"},{"$f":"\"bma_\"&\"NetAOEIncurred\"&$B68","v":"bma_NetAOEIncurred2010"},null,{"$f":"\"bma_\"&\"CommissionsAndBrokerage\"&$B68","v":"bma_CommissionsAndBrokerage2010"},{"$f":"\"bma_\"&\"GeneralAndAdministrative\"&$B68","v":"bma_GeneralAndAdministrative2010"},{"$f":"\"bma_\"&\"PersonnelCosts\"&$B68","v":"bma_PersonnelCosts2010"},{"$f":"\"bma_\"&\"UnderwritingExpensesOther\"&$B68","v":"bma_UnderwritingExpensesOther2010"}]
["L39",2011,{"$f":"Import!I8569","v":0},{"$f":"Import!I8580","v":0},{"$f":"Import!I8591","v":0},{"$f":"Import!I8602","v":0},{"$f":"Import!I8613","v":0},{"$f":"Import!I8624","v":0},2011,{"$f":"Import!I8635","v":0},{"$f":"Import!I8646","v":0},{"$f":"Import!I8657","v":0},{"$f":"Import!I8668","v":0},null,null,null,{"$f":"\"PaidCY\"&C$10&\"AY\"&B29","v":"PaidCY2010AYPrior"},{"$f":"C29","v":0},null,null,"brrt_PremiumsEarnedLossesIncurredYearAxis_brrt_XNMinus8Member","brrt_CalendarYearAxis_brrt_XNMinus8Member",null,null,null,null,null,null,null,null,null,null,null,null,null,{"$f":"\"bma_\"&\"GrossWP\"&$B69","v":"bma_GrossWP2011"},{"$f":"\"bma_\"&\"GrossEP\"&$B69","v":"bma_GrossEP2011"},{"$f":"\"bma_\"&\"NetWP\"&$B69","v":"bma_NetWP2011"},{"$f":"\"bma_\"&\"NetEP\"&$B69","v":"bma_NetEP2011"},"bma_NetAOEPaid2011","bma_NetAOEIncurred2011",null,"bma_CommissionsAndBrokerage2011","bma_GeneralAndAdministrative2011","bma_PersonnelCosts2011","bma_UnderwritingExpensesOther2011"]
["L40",2012,{"$f":"Import!I8570","v":0},{"$f":"Import!I8581","v":0},{"$f":"Import!I8592","v":0},{"$f":"Import!I8603","v":0},{"$f":"Import!I8614","v":0},{"$f":"Import!I8625","v":0},2012,{"$f":"Import!I8636","v":0},{"$f":"Import!I8647","v":0},{"$f":"Import!I8658","v":0},{"$f":"Import!I8669","v":0},null,null,null,{"$f":"\"PaidCY\"&C$10&\"AY\"&B30","v":"PaidCY2010AY2010"},{"$f":"C30","v":0},null,null,"brrt_PremiumsEarnedLossesIncurredYearAxis_brrt_XNMinus7Member","brrt_CalendarYearAxis_brrt_XNMinus7Member",null,null,null,null,null,null,null,null,null,null,null,null,null,"bma_GrossWP2012","bma_GrossEP2012","bma_NetWP2012","bma_NetEP2012","bma_NetAOEPaid2012","bma_NetAOEIncurred2012",null,"bma_CommissionsAndBrokerage2012","bma_GeneralAndAdministrative2012","bma_PersonnelCosts2012","bma_UnderwritingExpensesOther2012"]
["L41",2013,{"$f":"Import!I8571","v":0},{"$f":"Import!I8582","v":0},{"$f":"Import!I8593","v":0},{"$f":"Import!I8604","v":0},{"$f":"Import!I8615","v":0},{"$f":"Import!I8626","v":0},2013,{"$f":"Import!I8637","v":0},{"$f":"Import!I8648","v":0},{"$f":"Import!I8659","v":0},{"$f":"Import!I8670","v":0},null,null,null,{"$f":"\"PaidCY\"&D$10&\"AY\"&B29","v":"PaidCY2011AYPrior"},{"$f":"D29","v":0},null,null,"brrt_PremiumsEarnedLossesIncurredYearAxis_brrt_XNMinus6Member","brrt_CalendarYearAxis_brrt_XNMinus6Member",null,null,null,null,null,null,null,null,null,null,null,null,null,"bma_GrossWP2013","bma_GrossEP2013","bma_NetWP2013","bma_NetEP2013","bma_NetAOEPaid2013","bma_NetAOEIncurred2013",null,"bma_CommissionsAndBrokerage2013","bma_GeneralAndAdministrative2013","bma_PersonnelCosts2013","bma_UnderwritingExpensesOther2013"]
["L42",2014,{"$f":"Import!I8572","v":0},{"$f":"Import!I8583","v":0},{"$f":"Import!I8594","v":0},{"$f":"Import!I8605","v":0},{"$f":"Import!I8616","v":0},{"$f":"Import!I8627","v":0},2014,{"$f":"Import!I8638","v":0},{"$f":"Import!I8649","v":0},{"$f":"Import!I8660","v":0},{"$f":"Import!I8671","v":0},null,null,null,{"$f":"\"PaidCY\"&D$10&\"AY\"&B30","v":"PaidCY2011AY2010"},{"$f":"D30","v":0},null,null,"brrt_PremiumsEarnedLossesIncurredYearAxis_brrt_XNMinus5Member","brrt_CalendarYearAxis_brrt_XNMinus5Member",null,null,null,null,null,null,null,null,null,null,null,null,null,"bma_GrossWP2014","bma_GrossEP2014","bma_NetWP2014","bma_NetEP2014","bma_NetAOEPaid2014","bma_NetAOEIncurred2014",null,"bma_CommissionsAndBrokerage2014","bma_GeneralAndAdministrative2014","bma_PersonnelCosts2014","bma_UnderwritingExpensesOther2014"]
["L43",2015,{"$f":"Import!I8573","v":0},{"$f":"Import!I8584","v":0},{"$f":"Import!I8595","v":0},{"$f":"Import!I8606","v":0},{"$f":"Import!I8617","v":0},{"$f":"Import!I8628","v":0},2015,{"$f":"Import!I8639","v":0},{"$f":"Import!I8650","v":0},{"$f":"Import!I8661","v":0},{"$f":"Import!I8672","v":0},null,null,null,{"$f":"\"PaidCY\"&D$10&\"AY\"&B31","v":"PaidCY2011AY2011"},{"$f":"D31","v":0},null,null,"brrt_PremiumsEarnedLossesIncurredYearAxis_brrt_XNMinus4Member","brrt_CalendarYearAxis_brrt_XNMinus4Member",null,null,null,null,null,null,null,null,null,null,null,null,null,"bma_GrossWP2015","bma_GrossEP2015","bma_NetWP2015","bma_NetEP2015","bma_NetAOEPaid2015","bma_NetAOEIncurred2015",null,"bma_CommissionsAndBrokerage2015","bma_GeneralAndAdministrative2015","bma_PersonnelCosts2015","bma_UnderwritingExpensesOther2015"]
["L44",2016,{"$f":"Import!I8574","v":0},{"$f":"Import!I8585","v":0},{"$f":"Import!I8596","v":0},{"$f":"Import!I8607","v":0},{"$f":"Import!I8618","v":0},{"$f":"Import!I8629","v":0},2016,{"$f":"Import!I8640","v":0},{"$f":"Import!I8651","v":0},{"$f":"Import!I8662","v":0},{"$f":"Import!I8673","v":0},null,null,null,{"$f":"\"PaidCY\"&E$10&\"AY\"&B29","v":"PaidCY2012AYPrior"},{"$f":"E29","v":0},null,null,"brrt_PremiumsEarnedLossesIncurredYearAxis_brrt_XNMinus3Member","brrt_CalendarYearAxis_brrt_XNMinus3Member",null,null,null,null,null,null,null,null,null,null,null,null,null,"bma_GrossWP2016","bma_GrossEP2016","bma_NetWP2016","bma_NetEP2016","bma_NetAOEPaid2016","bma_NetAOEIncurred2016",null,"bma_CommissionsAndBrokerage2016","bma_GeneralAndAdministrative2016","bma_PersonnelCosts2016","bma_UnderwritingExpensesOther2016"]
["L45",2017,{"$f":"Import!I8575","v":0},{"$f":"Import!I8586","v":0},{"$f":"Import!I8597","v":0},{"$f":"Import!I8608","v":0},{"$f":"Import!I8619","v":0},{"$f":"Import!I8630","v":0},2017,{"$f":"Import!I8641","v":0},{"$f":"Import!I8652","v":0},{"$f":"Import!I8663","v":0},{"$f":"Import!I8674","v":0},null,null,null,{"$f":"\"PaidCY\"&E$10&\"AY\"&B30","v":"PaidCY2012AY2010"},{"$f":"E30","v":0},null,null,"brrt_PremiumsEarnedLossesIncurredYearAxis_brrt_XNMinus2Member","brrt_CalendarYearAxis_brrt_XNMinus2Member",null,null,null,null,null,null,null,null,null,null,null,null,null,"bma_GrossWP2017","bma_GrossEP2017","bma_NetWP2017","bma_NetEP2017","bma_NetAOEPaid2017","bma_NetAOEIncurred2017",null,"bma_CommissionsAndBrokerage2017","bma_GeneralAndAdministrative2017","bma_PersonnelCosts2017","bma_UnderwritingExpensesOther2017"]
["L46",2018,{"$f":"Import!I8576","v":0},{"$f":"Import!I8587","v":0},{"$f":"Import!I8598","v":0},{"$f":"Import!I8609","v":0},{"$f":"Import!I8620","v":0},{"$f":"Import!I8631","v":0},2018,{"$f":"Import!I8642","v":0},{"$f":"Import!I8653","v":0},{"$f":"Import!I8664","v":0},{"$f":"Import!I8675","v":0},null,null,null,{"$f":"\"PaidCY\"&E$10&\"AY\"&B31","v":"PaidCY2012AY2011"},{"$f":"E31","v":0},null,null,"brrt_PremiumsEarnedLossesIncurredYearAxis_brrt_XNMinus1Member","brrt_CalendarYearAxis_brrt_XNMinus1Member",null,null,null,null,null,null,null,null,null,null,null,null,null,"bma_GrossWP2018","bma_GrossEP2018","bma_NetWP2018","bma_NetEP2018","bma_NetAOEPaid2018","bma_NetAOEIncurred2018",null,"bma_CommissionsAndBrokerage2018","bma_GeneralAndAdministrative2018","bma_PersonnelCosts2018","bma_UnderwritingExpensesOther2018"]
["L47",{"$f":"B39","v":2019},{"$f":"Import!I8577","v":0},{"$f":"Import!I8588","v":0},{"$f":"Import!I8599","v":0},{"$f":"Import!I8610","v":0},{"$f":"Import!I8621","v":0},{"$f":"Import!I8632","v":0},2019,{"$f":"Import!I8643","v":0},{"$f":"Import!I8654","v":0},{"$f":"Import!I8665","v":0},{"$f":"Import!I8676","v":0},null,null,null,{"$f":"\"PaidCY\"&E$10&\"AY\"&B32","v":"PaidCY2012AY2012"},{"$f":"E32","v":0},null,null,"brrt_PremiumsEarnedLossesIncurredYearAxis_brrt_XNMember","brrt_CalendarYearAxis_brrt_XNMember",null,null,null,null,null,null,null,null,null,null,null,null,null,"bma_GrossWP2019","bma_GrossEP2019","bma_NetWP2019","bma_NetEP2019","bma_NetAOEPaid2019","bma_NetAOEIncurred2019",null,"bma_CommissionsAndBrokerage2019","bma_GeneralAndAdministrative2019","bma_PersonnelCosts2019","bma_UnderwritingExpensesOther2019"]
["L48","Totals","XXX",{"$f":"C78","v":"XXX"},"XXX",{"$f":"E78","v":"XXX"},{"$f":"SUM(G67:G77)","v":0},{"$f":"SUM(H67:H77)","v":0},"Totals",{"$f":"SUM(J67:J77)","v":0},{"$f":"SUM(K67:K77)","v":0},{"$f":"SUM(L67:L77)","v":0},{"$f":"SUM(M67:M77)","v":0},null,null,null,{"$f":"\"PaidCY\"&F$10&\"AY\"&B29","v":"PaidCY2013AYPrior"},{"$f":"F29","v":0},null,null,null,null,null,null,null,null,null,null,null,null,null,null,null,null,null,null,null,null,null,"bma_NetAOEPaidTotals","bma_NetAOEIncurredTotals",null,"bma_CommissionsAndBrokerageTotals","bma_GeneralAndAdministrativeTotals","bma_PersonnelCostsTotals","bma_UnderwritingExpensesOtherTotals"]
[null,null,null,null,null,null,null,null,null,null,null,null,null,null,null,null,{"$f":"\"PaidCY\"&F$10&\"AY\"&B30","v":"PaidCY2013AY2010"},{"$f":"F30","v":0}]
[null,"COMMENTS",null,null,null,null,null,null,null,null,null,null,null,null,null,null,{"$f":"\"PaidCY\"&F$10&\"AY\"&B31","v":"PaidCY2013AY2011"},{"$f":"F31","v":0}]
[null,{"$f":"Import!I8677","v":0},null,null,null,null,null,null,null,null,null,null,null,null,null,null,{"$f":"\"PaidCY\"&G$10&\"AY\"&B30","v":"PaidCY2014AY2010"},{"$f":"G30","v":0},null,null,"brrt_LossTrianglesComments",{"$f":"XBRLMap(B81,U81&\".\"&U4&\".\"&U7,$B$96,$B$97,CONFIGURATION!$B$10,\"BMA\",CONFIGURATION!$B$1,\"bscr\")","v":"Mapped"},null,null,null,null,null,null,null,null,null,null,null,null,null,"bma_ScheduleOfLossTrianglesComments"]
[null,null,null,null,null,null,null,null,null,null,null,null,null,null,null,null,{"$f":"\"PaidCY\"&G$10&\"AY\"&B31","v":"PaidCY2014AY2011"},{"$f":"G31","v":0}]
[null,null,null,null,null,null,null,null,null,null,null,null,null,null,null,null,{"$f":"\"PaidCY\"&G$10&\"AY\"&B32","v":"PaidCY2014AY2012"},{"$f":"G32","v":0}]
[null,null,null,null,null,null,null,null,null,null,null,null,null,null,null,null,{"$f":"\"PaidCY\"&G$10&\"AY\"&B33","v":"PaidCY2014AY2013"},{"$f":"G33","v":0}]
[null,null,"brrt_IncurredEstimatedUltimateNetLossesAndAllocatedLossAdjustmentExpenses","brrt_IncurredEstimatedUltimateNetLossesAndAllocatedLossAdjustmentExpenses","brrt_IncurredEstimatedUltimateNetLossesAndAllocatedLossAdjustmentExpenses","brrt_IncurredEstimatedUltimateNetLossesAndAllocatedLossAdjustmentExpenses","brrt_IncurredEstimatedUltimateNetLossesAndAllocatedLossAdjustmentExpenses","brrt_IncurredEstimatedUltimateNetLossesAndAllocatedLossAdjustmentExpenses","brrt_IncurredEstimatedUltimateNetLossesAndAllocatedLossAdjustmentExpenses","brrt_IncurredEstimatedUltimateNetLossesAndAllocatedLossAdjustmentExpenses","brrt_IncurredEstimatedUltimateNetLossesAndAllocatedLossAdjustmentExpenses","brrt_IncurredEstimatedUltimateNetLossesAndAllocatedLossAdjustmentExpenses","brrt_UltimateCatastropheLosses",null,null,null,{"$f":"\"PaidCY\"&G$10&\"AY\"&B34","v":"PaidCY2014AY2014"},{"$f":"G34","v":0}]
[null,null,"brrt_CumulativePaidNetLossesAndAllocatedLossAdjustmentExpenses","brrt_CumulativePaidNetLossesAndAllocatedLossAdjustmentExpenses","brrt_CumulativePaidNetLossesAndAllocatedLossAdjustmentExpenses","brrt_CumulativePaidNetLossesAndAllocatedLossAdjustmentExpenses","brrt_CumulativePaidNetLossesAndAllocatedLossAdjustmentExpenses","brrt_CumulativePaidNetLossesAndAllocatedLossAdjustmentExpenses","brrt_CumulativePaidNetLossesAndAllocatedLossAdjustmentExpenses","brrt_CumulativePaidNetLossesAndAllocatedLossAdjustmentExpenses","brrt_CumulativePaidNetLossesAndAllocatedLossAdjustmentExpenses","brrt_CumulativePaidNetLossesAndAllocatedLossAdjustmentExpenses","brrt_PaidCatastropheLosses",null,null,null,{"$f":"\"PaidCY\"&H$10&\"AY\"&B29","v":"PaidCY2015AYPrior"},{"$f":"H29","v":0}]
[null,null,"brrt_BulkAndIBNRReservesOnNetLossesAndAllocatedLossAdjustmentExpenses","brrt_BulkAndIBNRReservesOnNetLossesAndAllocatedLossAdjustmentExpenses","brrt_BulkAndIBNRReservesOnNetLossesAndAllocatedLossAdjustmentExpenses","brrt_BulkAndIBNRReservesOnNetLossesAndAllocatedLossAdjustmentExpenses","brrt_BulkAndIBNRReservesOnNetLossesAndAllocatedLossAdjustmentExpenses","brrt_BulkAndIBNRReservesOnNetLossesAndAllocatedLossAdjustmentExpenses","brrt_BulkAndIBNRReservesOnNetLossesAndAllocatedLossAdjustmentExpenses","brrt_BulkAndIBNRReservesOnNetLossesAndAllocatedLossAdjustmentExpenses","brrt_BulkAndIBNRReservesOnNetLossesAndAllocatedLossAdjustmentExpenses","brrt_BulkAndIBNRReservesOnNetLossesAndAllocatedLossAdjustmentExpenses","brrt_LossesBulkAndBNRReserves",null,null,null,"PaidCY2015AY2010",0]
[null,null,"brrt_GrossPremiumsWritten","brrt_GrossPremiumsEarned","brrt_NetPremiumsWritten","brrt_NetPremiumsEarned","brrt_UnallocatedLossAdjustmentExpensesPaid","brrt_UnallocatedLossAdjustmentExpensesIncurred",null,"brrt_CommissionsAndBrokerage","brrt_GeneralAndAdministrative","brrt_PersonnelCosts","brrt_OtherUnderwritingExpenses",null,null,null,"PaidCY2015AY2011",0]
[null,null,"brrt_ReportingYearAxis_brrt_YNMinus9Member","brrt_ReportingYearAxis_brrt_YNMinus8Member","brrt_ReportingYearAxis_brrt_YNMinus7Member","brrt_ReportingYearAxis_brrt_YNMinus6Member","brrt_ReportingYearAxis_brrt_YNMinus5Member","brrt_ReportingYearAxis_brrt_YNMinus4Member","brrt_ReportingYearAxis_brrt_YNMinus3Member","brrt_ReportingYearAxis_brrt_YNMinus2Member","brrt_ReportingYearAxis_brrt_YNMinus1Member","brrt_ReportingYearAxis_brrt_YNMember","brrt_ReportingYearAxis_brrt_YNMember",null,null,null,"PaidCY2015AY2012",0]
[null,null,null,"Accident Year",null,null,null,null,null,null,null,null,null,null,null,null,"PaidCY2015AY2013",0]
[null,null,null,"Underwriting Year",null,null,null,null,null,null,null,null,null,null,null,null,"PaidCY2015AY2014",0]
[null,null,null,null,null,null,null,null,null,null,null,null,null,null,null,null,"PaidCY2015AY2015",0]
[null,null,null,null,null,null,null,null,null,null,null,null,null,null,null,null,{"$f":"\"PaidCY\"&I$10&\"AY\"&B29","v":"PaidCY2016AYPrior"},{"$f":"I29","v":0}]
[null,null,null,null,null,null,null,null,null,null,null,null,null,null,null,null,"PaidCY2016AY2010",0]
[null,null,null,null,null,null,null,null,null,null,null,null,null,null,null,null,"PaidCY2016AY2011",0]
[null,{"$f":"IF(B3=\"\",\"\",TEXT(DATE(YEAR(B3+1)-1,MONTH(B3+1),DAY(B3+1)),\"mm/dd/yyyy\"))","v":"01/01/2019"},null,null,null,null,null,null,null,null,null,null,null,null,null,null,"PaidCY2016AY2012",0]
[null,{"$f":"IF(B3=\"\",\"\",TEXT(B3,\"mm/dd/yyyy\"))","v":"12/31/2019"},null,null,null,null,null,null,null,null,null,null,null,null,null,null,"PaidCY2016AY2013",0]
[null,null,null,null,null,null,null,null,null,null,null,null,null,null,null,null,"PaidCY2016AY2014",0]
[null,null,null,null,null,null,null,null,null,null,null,null,null,null,null,null,"PaidCY2016AY2015",0]
[null,null,null,null,null,null,null,null,null,null,null,null,null,null,null,null,"PaidCY2016AY2016",0]
[null,null,null,null,null,null,null,null,null,null,null,null,null,null,null,null,{"$f":"\"PaidCY\"&J$10&\"AY\"&B29","v":"PaidCY2017AYPrior"},{"$f":"J29","v":0}]
[null,null,{"$f":"XBRLMap(C11,C$85&\".\"&$U$4&\".\"&$U$6&\".\"&$U11&\".\"&C$89&\".\"&$U$7,$B$96,$B$97,CONFIGURATION!$B$10,\"BMA\",CONFIGURATION!$B$1,\"bscr\",1000)","v":"Mapped"},{"$f":"XBRLMap(D11,D$85&\".\"&$U$4&\".\"&$U$6&\".\"&$U11&\".\"&D$89&\".\"&$U$7,$B$96,$B$97,CONFIGURATION!$B$10,\"BMA\",CONFIGURATION!$B$1,\"bscr\",1000)","v":"Mapped"},{"$f":"XBRLMap(E11,E$85&\".\"&$U$4&\".\"&$U$6&\".\"&$U11&\".\"&E$89&\".\"&$U$7,$B$96,$B$97,CONFIGURATION!$B$10,\"BMA\",CONFIGURATION!$B$1,\"bscr\",1000)","v":"Mapped"},{"$f":"XBRLMap(F11,F$85&\".\"&$U$4&\".\"&$U$6&\".\"&$U11&\".\"&F$89&\".\"&$U$7,$B$96,$B$97,CONFIGURATION!$B$10,\"BMA\",CONFIGURATION!$B$1,\"bscr\",1000)","v":"Mapped"},{"$f":"XBRLMap(G11,G$85&\".\"&$U$4&\".\"&$U$6&\".\"&$U11&\".\"&G$89&\".\"&$U$7,$B$96,$B$97,CONFIGURATION!$B$10,\"BMA\",CONFIGURATION!$B$1,\"bscr\",1000)","v":"Mapped"},{"$f":"XBRLMap(H11,H$85&\".\"&$U$4&\".\"&$U$6&\".\"&$U11&\".\"&H$89&\".\"&$U$7,$B$96,$B$97,CONFIGURATION!$B$10,\"BMA\",CONFIGURATION!$B$1,\"bscr\",1000)","v":"Mapped"},{"$f":"XBRLMap(I11,I$85&\".\"&$U$4&\".\"&$U$6&\".\"&$U11&\".\"&I$89&\".\"&$U$7,$B$96,$B$97,CONFIGURATION!$B$10,\"BMA\",CONFIGURATION!$B$1,\"bscr\",1000)","v":"Mapped"},{"$f":"XBRLMap(J11,J$85&\".\"&$U$4&\".\"&$U$6&\".\"&$U11&\".\"&J$89&\".\"&$U$7,$B$96,$B$97,CONFIGURATION!$B$10,\"BMA\",CONFIGURATION!$B$1,\"bscr\",1000)","v":"Mapped"},{"$f":"XBRLMap(K11,K$85&\".\"&$U$4&\".\"&$U$6&\".\"&$U11&\".\"&K$89&\".\"&$U$7,$B$96,$B$97,CONFIGURATION!$B$10,\"BMA\",CONFIGURATION!$B$1,\"bscr\",1000)","v":"Mapped"},{"$f":"XBRLMap(L11,L$85&\".\"&$U$4&\".\"&$U$6&\".\"&$U11&\".\"&L$89&\".\"&$U$7,$B$96,$B$97,CONFIGURATION!$B$10,\"BMA\",CONFIGURATION!$B$1,\"bscr\",1000)","v":"Mapped"},{"$f":"XBRLMap(M11,M$85&\".\"&$U$4&\".\"&$U$6&\".\"&$U11&\".\"&M$89&\".\"&$U$7,$B$96,$B$97,CONFIGURATION!$B$10,\"BMA\",CONFIGURATION!$B$1,\"bscr\",1000)","v":"Mapped"},null,null,null,"PaidCY2017AY2010",0]
[null,null,{"$f":"XBRLMap(C12,C$85&\".\"&$U$4&\".\"&$U$6&\".\"&$U12&\".\"&C$89&\".\"&$U$7,$B$96,$B$97,CONFIGURATION!$B$10,\"BMA\",CONFIGURATION!$B$1,\"bscr\",1000)","v":"Mapped"},{"$f":"XBRLMap(D12,D$85&\".\"&$U$4&\".\"&$U$6&\".\"&$U12&\".\"&D$89&\".\"&$U$7,$B$96,$B$97,CONFIGURATION!$B$10,\"BMA\",CONFIGURATION!$B$1,\"bscr\",1000)","v":"Mapped"},{"$f":"XBRLMap(E12,E$85&\".\"&$U$4&\".\"&$U$6&\".\"&$U12&\".\"&E$89&\".\"&$U$7,$B$96,$B$97,CONFIGURATION!$B$10,\"BMA\",CONFIGURATION!$B$1,\"bscr\",1000)","v":"Mapped"},{"$f":"XBRLMap(F12,F$85&\".\"&$U$4&\".\"&$U$6&\".\"&$U12&\".\"&F$89&\".\"&$U$7,$B$96,$B$97,CONFIGURATION!$B$10,\"BMA\",CONFIGURATION!$B$1,\"bscr\",1000)","v":"Mapped"},{"$f":"XBRLMap(G12,G$85&\".\"&$U$4&\".\"&$U$6&\".\"&$U12&\".\"&G$89&\".\"&$U$7,$B$96,$B$97,CONFIGURATION!$B$10,\"BMA\",CONFIGURATION!$B$1,\"bscr\",1000)","v":"Mapped"},{"$f":"XBRLMap(H12,H$85&\".\"&$U$4&\".\"&$U$6&\".\"&$U12&\".\"&H$89&\".\"&$U$7,$B$96,$B$97,CONFIGURATION!$B$10,\"BMA\",CONFIGURATION!$B$1,\"bscr\",1000)","v":"Mapped"},{"$f":"XBRLMap(I12,I$85&\".\"&$U$4&\".\"&$U$6&\".\"&$U12&\".\"&I$89&\".\"&$U$7,$B$96,$B$97,CONFIGURATION!$B$10,\"BMA\",CONFIGURATION!$B$1,\"bscr\",1000)","v":"Mapped"},{"$f":"XBRLMap(J12,J$85&\".\"&$U$4&\".\"&$U$6&\".\"&$U12&\".\"&J$89&\".\"&$U$7,$B$96,$B$97,CONFIGURATION!$B$10,\"BMA\",CONFIGURATION!$B$1,\"bscr\",1000)","v":"Mapped"},{"$f":"XBRLMap(K12,K$85&\".\"&$U$4&\".\"&$U$6&\".\"&$U12&\".\"&K$89&\".\"&$U$7,$B$96,$B$97,CONFIGURATION!$B$10,\"BMA\",CONFIGURATION!$B$1,\"bscr\",1000)","v":"Mapped"},{"$f":"XBRLMap(L12,L$85&\".\"&$U$4&\".\"&$U$6&\".\"&$U12&\".\"&L$89&\".\"&$U$7,$B$96,$B$97,CONFIGURATION!$B$10,\"BMA\",CONFIGURATION!$B$1,\"bscr\",1000)","v":"Mapped"},{"$f":"XBRLMap(M12,M$85&\".\"&$U$4&\".\"&$U$6&\".\"&$U12&\".\"&M$89&\".\"&$U$7,$B$96,$B$97,CONFIGURATION!$B$10,\"BMA\",CONFIGURATION!$B$1,\"bscr\",1000)","v":"Mapped"},null,null,null,"PaidCY2017AY2011",0]
[null,null,null,{"$f":"XBRLMap(D13,D$85&\".\"&$U$4&\".\"&$U$6&\".\"&$U13&\".\"&D$89&\".\"&$U$7,$B$96,$B$97,CONFIGURATION!$B$10,\"BMA\",CONFIGURATION!$B$1,\"bscr\",1000)","v":"Mapped"},{"$f":"XBRLMap(E13,E$85&\".\"&$U$4&\".\"&$U$6&\".\"&$U13&\".\"&E$89&\".\"&$U$7,$B$96,$B$97,CONFIGURATION!$B$10,\"BMA\",CONFIGURATION!$B$1,\"bscr\",1000)","v":"Mapped"},{"$f":"XBRLMap(F13,F$85&\".\"&$U$4&\".\"&$U$6&\".\"&$U13&\".\"&F$89&\".\"&$U$7,$B$96,$B$97,CONFIGURATION!$B$10,\"BMA\",CONFIGURATION!$B$1,\"bscr\",1000)","v":"Mapped"},{"$f":"XBRLMap(G13,G$85&\".\"&$U$4&\".\"&$U$6&\".\"&$U13&\".\"&G$89&\".\"&$U$7,$B$96,$B$97,CONFIGURATION!$B$10,\"BMA\",CONFIGURATION!$B$1,\"bscr\",1000)","v":"Mapped"},{"$f":"XBRLMap(H13,H$85&\".\"&$U$4&\".\"&$U$6&\".\"&$U13&\".\"&H$89&\".\"&$U$7,$B$96,$B$97,CONFIGURATION!$B$10,\"BMA\",CONFIGURATION!$B$1,\"bscr\",1000)","v":"Mapped"},{"$f":"XBRLMap(I13,I$85&\".\"&$U$4&\".\"&$U$6&\".\"&$U13&\".\"&I$89&\".\"&$U$7,$B$96,$B$97,CONFIGURATION!$B$10,\"BMA\",CONFIGURATION!$B$1,\"bscr\",1000)","v":"Mapped"},{"$f":"XBRLMap(J13,J$85&\".\"&$U$4&\".\"&$U$6&\".\"&$U13&\".\"&J$89&\".\"&$U$7,$B$96,$B$97,CONFIGURATION!$B$10,\"BMA\",CONFIGURATION!$B$1,\"bscr\",1000)","v":"Mapped"},{"$f":"XBRLMap(K13,K$85&\".\"&$U$4&\".\"&$U$6&\".\"&$U13&\".\"&K$89&\".\"&$U$7,$B$96,$B$97,CONFIGURATION!$B$10,\"BMA\",CONFIGURATION!$B$1,\"bscr\",1000)","v":"Mapped"},{"$f":"XBRLMap(L13,L$85&\".\"&$U$4&\".\"&$U$6&\".\"&$U13&\".\"&L$89&\".\"&$U$7,$B$96,$B$97,CONFIGURATION!$B$10,\"BMA\",CONFIGURATION!$B$1,\"bscr\",1000)","v":"Mapped"},{"$f":"XBRLMap(M13,M$85&\".\"&$U$4&\".\"&$U$6&\".\"&$U13&\".\"&M$89&\".\"&$U$7,$B$96,$B$97,CONFIGURATION!$B$10,\"BMA\",CONFIGURATION!$B$1,\"bscr\",1000)","v":"Mapped"},null,null,null,"PaidCY2017AY2012",0]
[null,null,null,null,{"$f":"XBRLMap(E14,E$85&\".\"&$U$4&\".\"&$U$6&\".\"&$U14&\".\"&E$89&\".\"&$U$7,$B$96,$B$97,CONFIGURATION!$B$10,\"BMA\",CONFIGURATION!$B$1,\"bscr\",1000)","v":"Mapped"},{"$f":"XBRLMap(F14,F$85&\".\"&$U$4&\".\"&$U$6&\".\"&$U14&\".\"&F$89&\".\"&$U$7,$B$96,$B$97,CONFIGURATION!$B$10,\"BMA\",CONFIGURATION!$B$1,\"bscr\",1000)","v":"Mapped"},{"$f":"XBRLMap(G14,G$85&\".\"&$U$4&\".\"&$U$6&\".\"&$U14&\".\"&G$89&\".\"&$U$7,$B$96,$B$97,CONFIGURATION!$B$10,\"BMA\",CONFIGURATION!$B$1,\"bscr\",1000)","v":"Mapped"},{"$f":"XBRLMap(H14,H$85&\".\"&$U$4&\".\"&$U$6&\".\"&$U14&\".\"&H$89&\".\"&$U$7,$B$96,$B$97,CONFIGURATION!$B$10,\"BMA\",CONFIGURATION!$B$1,\"bscr\",1000)","v":"Mapped"},{"$f":"XBRLMap(I14,I$85&\".\"&$U$4&\".\"&$U$6&\".\"&$U14&\".\"&I$89&\".\"&$U$7,$B$96,$B$97,CONFIGURATION!$B$10,\"BMA\",CONFIGURATION!$B$1,\"bscr\",1000)","v":"Mapped"},{"$f":"XBRLMap(J14,J$85&\".\"&$U$4&\".\"&$U$6&\".\"&$U14&\".\"&J$89&\".\"&$U$7,$B$96,$B$97,CONFIGURATION!$B$10,\"BMA\",CONFIGURATION!$B$1,\"bscr\",1000)","v":"Mapped"},{"$f":"XBRLMap(K14,K$85&\".\"&$U$4&\".\"&$U$6&\".\"&$U14&\".\"&K$89&\".\"&$U$7,$B$96,$B$97,CONFIGURATION!$B$10,\"BMA\",CONFIGURATION!$B$1,\"bscr\",1000)","v":"Mapped"},{"$f":"XBRLMap(L14,L$85&\".\"&$U$4&\".\"&$U$6&\".\"&$U14&\".\"&L$89&\".\"&$U$7,$B$96,$B$97,CONFIGURATION!$B$10,\"BMA\",CONFIGURATION!$B$1,\"bscr\",1000)","v":"Mapped"},{"$f":"XBRLMap(M14,M$85&\".\"&$U$4&\".\"&$U$6&\".\"&$U14&\".\"&M$89&\".\"&$U$7,$B$96,$B$97,CONFIGURATION!$B$10,\"BMA\",CONFIGURATION!$B$1,\"bscr\",1000)","v":"Mapped"},null,null,null,"PaidCY2017AY2013",0]
[null,null,null,null,null,{"$f":"XBRLMap(F15,F$85&\".\"&$U$4&\".\"&$U$6&\".\"&$U15&\".\"&F$89&\".\"&$U$7,$B$96,$B$97,CONFIGURATION!$B$10,\"BMA\",CONFIGURATION!$B$1,\"bscr\",1000)","v":"Mapped"},{"$f":"XBRLMap(G15,G$85&\".\"&$U$4&\".\"&$U$6&\".\"&$U15&\".\"&G$89&\".\"&$U$7,$B$96,$B$97,CONFIGURATION!$B$10,\"BMA\",CONFIGURATION!$B$1,\"bscr\",1000)","v":"Mapped"},{"$f":"XBRLMap(H15,H$85&\".\"&$U$4&\".\"&$U$6&\".\"&$U15&\".\"&H$89&\".\"&$U$7,$B$96,$B$97,CONFIGURATION!$B$10,\"BMA\",CONFIGURATION!$B$1,\"bscr\",1000)","v":"Mapped"},{"$f":"XBRLMap(I15,I$85&\".\"&$U$4&\".\"&$U$6&\".\"&$U15&\".\"&I$89&\".\"&$U$7,$B$96,$B$97,CONFIGURATION!$B$10,\"BMA\",CONFIGURATION!$B$1,\"bscr\",1000)","v":"Mapped"},{"$f":"XBRLMap(J15,J$85&\".\"&$U$4&\".\"&$U$6&\".\"&$U15&\".\"&J$89&\".\"&$U$7,$B$96,$B$97,CONFIGURATION!$B$10,\"BMA\",CONFIGURATION!$B$1,\"bscr\",1000)","v":"Mapped"},{"$f":"XBRLMap(K15,K$85&\".\"&$U$4&\".\"&$U$6&\".\"&$U15&\".\"&K$89&\".\"&$U$7,$B$96,$B$97,CONFIGURATION!$B$10,\"BMA\",CONFIGURATION!$B$1,\"bscr\",1000)","v":"Mapped"},{"$f":"XBRLMap(L15,L$85&\".\"&$U$4&\".\"&$U$6&\".\"&$U15&\".\"&L$89&\".\"&$U$7,$B$96,$B$97,CONFIGURATION!$B$10,\"BMA\",CONFIGURATION!$B$1,\"bscr\",1000)","v":"Mapped"},{"$f":"XBRLMap(M15,M$85&\".\"&$U$4&\".\"&$U$6&\".\"&$U15&\".\"&M$89&\".\"&$U$7,$B$96,$B$97,CONFIGURATION!$B$10,\"BMA\",CONFIGURATION!$B$1,\"bscr\",1000)","v":"Mapped"},null,null,null,"PaidCY2017AY2014",0]
[null,null,null,null,null,null,{"$f":"XBRLMap(G16,G$85&\".\"&$U$4&\".\"&$U$6&\".\"&$U16&\".\"&G$89&\".\"&$U$7,$B$96,$B$97,CONFIGURATION!$B$10,\"BMA\",CONFIGURATION!$B$1,\"bscr\",1000)","v":"Mapped"},{"$f":"XBRLMap(H16,H$85&\".\"&$U$4&\".\"&$U$6&\".\"&$U16&\".\"&H$89&\".\"&$U$7,$B$96,$B$97,CONFIGURATION!$B$10,\"BMA\",CONFIGURATION!$B$1,\"bscr\",1000)","v":"Mapped"},{"$f":"XBRLMap(I16,I$85&\".\"&$U$4&\".\"&$U$6&\".\"&$U16&\".\"&I$89&\".\"&$U$7,$B$96,$B$97,CONFIGURATION!$B$10,\"BMA\",CONFIGURATION!$B$1,\"bscr\",1000)","v":"Mapped"},{"$f":"XBRLMap(J16,J$85&\".\"&$U$4&\".\"&$U$6&\".\"&$U16&\".\"&J$89&\".\"&$U$7,$B$96,$B$97,CONFIGURATION!$B$10,\"BMA\",CONFIGURATION!$B$1,\"bscr\",1000)","v":"Mapped"},{"$f":"XBRLMap(K16,K$85&\".\"&$U$4&\".\"&$U$6&\".\"&$U16&\".\"&K$89&\".\"&$U$7,$B$96,$B$97,CONFIGURATION!$B$10,\"BMA\",CONFIGURATION!$B$1,\"bscr\",1000)","v":"Mapped"},{"$f":"XBRLMap(L16,L$85&\".\"&$U$4&\".\"&$U$6&\".\"&$U16&\".\"&L$89&\".\"&$U$7,$B$96,$B$97,CONFIGURATION!$B$10,\"BMA\",CONFIGURATION!$B$1,\"bscr\",1000)","v":"Mapped"},{"$f":"XBRLMap(M16,M$85&\".\"&$U$4&\".\"&$U$6&\".\"&$U16&\".\"&M$89&\".\"&$U$7,$B$96,$B$97,CONFIGURATION!$B$10,\"BMA\",CONFIGURATION!$B$1,\"bscr\",1000)","v":"Mapped"},null,null,null,"PaidCY2017AY2015",0]
[null,null,null,null,null,null,null,{"$f":"XBRLMap(H17,H$85&\".\"&$U$4&\".\"&$U$6&\".\"&$U17&\".\"&H$89&\".\"&$U$7,$B$96,$B$97,CONFIGURATION!$B$10,\"BMA\",CONFIGURATION!$B$1,\"bscr\",1000)","v":"Mapped"},{"$f":"XBRLMap(I17,I$85&\".\"&$U$4&\".\"&$U$6&\".\"&$U17&\".\"&I$89&\".\"&$U$7,$B$96,$B$97,CONFIGURATION!$B$10,\"BMA\",CONFIGURATION!$B$1,\"bscr\",1000)","v":"Mapped"},{"$f":"XBRLMap(J17,J$85&\".\"&$U$4&\".\"&$U$6&\".\"&$U17&\".\"&J$89&\".\"&$U$7,$B$96,$B$97,CONFIGURATION!$B$10,\"BMA\",CONFIGURATION!$B$1,\"bscr\",1000)","v":"Mapped"},{"$f":"XBRLMap(K17,K$85&\".\"&$U$4&\".\"&$U$6&\".\"&$U17&\".\"&K$89&\".\"&$U$7,$B$96,$B$97,CONFIGURATION!$B$10,\"BMA\",CONFIGURATION!$B$1,\"bscr\",1000)","v":"Mapped"},{"$f":"XBRLMap(L17,L$85&\".\"&$U$4&\".\"&$U$6&\".\"&$U17&\".\"&L$89&\".\"&$U$7,$B$96,$B$97,CONFIGURATION!$B$10,\"BMA\",CONFIGURATION!$B$1,\"bscr\",1000)","v":"Mapped"},{"$f":"XBRLMap(M17,M$85&\".\"&$U$4&\".\"&$U$6&\".\"&$U17&\".\"&M$89&\".\"&$U$7,$B$96,$B$97,CONFIGURATION!$B$10,\"BMA\",CONFIGURATION!$B$1,\"bscr\",1000)","v":"Mapped"},null,null,null,"PaidCY2017AY2016",0]
[null,null,null,null,null,null,null,null,{"$f":"XBRLMap(I18,I$85&\".\"&$U$4&\".\"&$U$6&\".\"&$U18&\".\"&I$89&\".\"&$U$7,$B$96,$B$97,CONFIGURATION!$B$10,\"BMA\",CONFIGURATION!$B$1,\"bscr\",1000)","v":"Mapped"},{"$f":"XBRLMap(J18,J$85&\".\"&$U$4&\".\"&$U$6&\".\"&$U18&\".\"&J$89&\".\"&$U$7,$B$96,$B$97,CONFIGURATION!$B$10,\"BMA\",CONFIGURATION!$B$1,\"bscr\",1000)","v":"Mapped"},{"$f":"XBRLMap(K18,K$85&\".\"&$U$4&\".\"&$U$6&\".\"&$U18&\".\"&K$89&\".\"&$U$7,$B$96,$B$97,CONFIGURATION!$B$10,\"BMA\",CONFIGURATION!$B$1,\"bscr\",1000)","v":"Mapped"},{"$f":"XBRLMap(L18,L$85&\".\"&$U$4&\".\"&$U$6&\".\"&$U18&\".\"&L$89&\".\"&$U$7,$B$96,$B$97,CONFIGURATION!$B$10,\"BMA\",CONFIGURATION!$B$1,\"bscr\",1000)","v":"Mapped"},{"$f":"XBRLMap(M18,M$85&\".\"&$U$4&\".\"&$U$6&\".\"&$U18&\".\"&M$89&\".\"&$U$7,$B$96,$B$97,CONFIGURATION!$B$10,\"BMA\",CONFIGURATION!$B$1,\"bscr\",1000)","v":"Mapped"},null,null,null,"PaidCY2017AY2017",0]
[null,null,null,null,null,null,null,null,null,{"$f":"XBRLMap(J19,J$85&\".\"&$U$4&\".\"&$U$6&\".\"&$U19&\".\"&J$89&\".\"&$U$7,$B$96,$B$97,CONFIGURATION!$B$10,\"BMA\",CONFIGURATION!$B$1,\"bscr\",1000)","v":"Mapped"},{"$f":"XBRLMap(K19,K$85&\".\"&$U$4&\".\"&$U$6&\".\"&$U19&\".\"&K$89&\".\"&$U$7,$B$96,$B$97,CONFIGURATION!$B$10,\"BMA\",CONFIGURATION!$B$1,\"bscr\",1000)","v":"Mapped"},{"$f":"XBRLMap(L19,L$85&\".\"&$U$4&\".\"&$U$6&\".\"&$U19&\".\"&L$89&\".\"&$U$7,$B$96,$B$97,CONFIGURATION!$B$10,\"BMA\",CONFIGURATION!$B$1,\"bscr\",1000)","v":"Mapped"},{"$f":"XBRLMap(M19,M$85&\".\"&$U$4&\".\"&$U$6&\".\"&$U19&\".\"&M$89&\".\"&$U$7,$B$96,$B$97,CONFIGURATION!$B$10,\"BMA\",CONFIGURATION!$B$1,\"bscr\",1000)","v":"Mapped"},null,null,null,{"$f":"\"PaidCY\"&K$10&\"AY\"&B29","v":"PaidCY2018AYPrior"},{"$f":"K29","v":0}]
[null,null,null,null,null,null,null,null,null,null,{"$f":"XBRLMap(K20,K$85&\".\"&$U$4&\".\"&$U$6&\".\"&$U20&\".\"&K$89&\".\"&$U$7,$B$96,$B$97,CONFIGURATION!$B$10,\"BMA\",CONFIGURATION!$B$1,\"bscr\",1000)","v":"Mapped"},{"$f":"XBRLMap(L20,L$85&\".\"&$U$4&\".\"&$U$6&\".\"&$U20&\".\"&L$89&\".\"&$U$7,$B$96,$B$97,CONFIGURATION!$B$10,\"BMA\",CONFIGURATION!$B$1,\"bscr\",1000)","v":"Mapped"},{"$f":"XBRLMap(M20,M$85&\".\"&$U$4&\".\"&$U$6&\".\"&$U20&\".\"&M$89&\".\"&$U$7,$B$96,$B$97,CONFIGURATION!$B$10,\"BMA\",CONFIGURATION!$B$1,\"bscr\",1000)","v":"Mapped"},null,null,null,"PaidCY2018AY2010",0]
[null,null,null,null,null,null,null,null,null,null,null,{"$f":"XBRLMap(L21,L$85&\".\"&$U$4&\".\"&$U$6&\".\"&$U21&\".\"&L$89&\".\"&$U$7,$B$96,$B$97,CONFIGURATION!$B$10,\"BMA\",CONFIGURATION!$B$1,\"bscr\",1000)","v":"Mapped"},{"$f":"XBRLMap(M21,M$85&\".\"&$U$4&\".\"&$U$6&\".\"&$U21&\".\"&M$89&\".\"&$U$7,$B$96,$B$97,CONFIGURATION!$B$10,\"BMA\",CONFIGURATION!$B$1,\"bscr\",1000)","v":"Mapped"},null,null,null,"PaidCY2018AY2011",0]
[null,null,null,null,null,null,null,null,null,null,null,null,null,null,null,null,"PaidCY2018AY2012",0]
[null,null,null,null,null,null,null,null,null,null,null,null,null,null,null,null,"PaidCY2018AY2013",0]
[null,null,null,null,null,null,null,null,null,null,null,null,null,null,null,null,"PaidCY2018AY2014",0]
[null,null,null,null,null,null,null,null,null,null,null,null,null,null,null,null,"PaidCY2018AY2015",0]
[null,null,null,null,null,null,null,null,null,null,null,null,null,null,null,null,"PaidCY2018AY2016",0]
[null,null,null,null,null,null,null,null,null,null,null,null,null,null,null,null,"PaidCY2018AY2017",0]
[null,null,null,null,null,null,null,null,null,null,null,null,null,null,null,null,"PaidCY2018AY2018",0]
[null,null,null,null,null,null,null,null,null,null,null,null,null,null,null,null,{"$f":"\"PaidCY\"&L$10&\"AY\"&B29","v":"PaidCY2019AYPrior"},{"$f":"L29","v":0}]
[null,null,{"$f":"XBRLMap(C29,C$86&\".\"&$U$4&\".\"&$U29&\".\"&C$89&\".\"&$U$7,$B$96,$B$97,CONFIGURATION!$B$10,\"BMA\",CONFIGURATION!$B$1,\"bscr\",1000)","v":"Mapped"},{"$f":"XBRLMap(D29,D$86&\".\"&$U$4&\".\"&$U29&\".\"&D$89&\".\"&$U$7,$B$96,$B$97,CONFIGURATION!$B$10,\"BMA\",CONFIGURATION!$B$1,\"bscr\",1000)","v":"Mapped"},{"$f":"XBRLMap(E29,E$86&\".\"&$U$4&\".\"&$U29&\".\"&E$89&\".\"&$U$7,$B$96,$B$97,CONFIGURATION!$B$10,\"BMA\",CONFIGURATION!$B$1,\"bscr\",1000)","v":"Mapped"},{"$f":"XBRLMap(F29,F$86&\".\"&$U$4&\".\"&$U29&\".\"&F$89&\".\"&$U$7,$B$96,$B$97,CONFIGURATION!$B$10,\"BMA\",CONFIGURATION!$B$1,\"bscr\",1000)","v":"Mapped"},{"$f":"XBRLMap(G29,G$86&\".\"&$U$4&\".\"&$U29&\".\"&G$89&\".\"&$U$7,$B$96,$B$97,CONFIGURATION!$B$10,\"BMA\",CONFIGURATION!$B$1,\"bscr\",1000)","v":"Mapped"},{"$f":"XBRLMap(H29,H$86&\".\"&$U$4&\".\"&$U29&\".\"&H$89&\".\"&$U$7,$B$96,$B$97,CONFIGURATION!$B$10,\"BMA\",CONFIGURATION!$B$1,\"bscr\",1000)","v":"Mapped"},{"$f":"XBRLMap(I29,I$86&\".\"&$U$4&\".\"&$U29&\".\"&I$89&\".\"&$U$7,$B$96,$B$97,CONFIGURATION!$B$10,\"BMA\",CONFIGURATION!$B$1,\"bscr\",1000)","v":"Mapped"},{"$f":"XBRLMap(J29,J$86&\".\"&$U$4&\".\"&$U29&\".\"&J$89&\".\"&$U$7,$B$96,$B$97,CONFIGURATION!$B$10,\"BMA\",CONFIGURATION!$B$1,\"bscr\",1000)","v":"Mapped"},{"$f":"XBRLMap(K29,K$86&\".\"&$U$4&\".\"&$U29&\".\"&K$89&\".\"&$U$7,$B$96,$B$97,CONFIGURATION!$B$10,\"BMA\",CONFIGURATION!$B$1,\"bscr\",1000)","v":"Mapped"},{"$f":"XBRLMap(L29,L$86&\".\"&$U$4&\".\"&$U29&\".\"&L$89&\".\"&$U$7,$B$96,$B$97,CONFIGURATION!$B$10,\"BMA\",CONFIGURATION!$B$1,\"bscr\",1000)","v":"Mapped"},{"$f":"XBRLMap(M29,M$86&\".\"&$U$4&\".\"&$U29&\".\"&M$89&\".\"&$U$7,$B$96,$B$97,CONFIGURATION!$B$10,\"BMA\",CONFIGURATION!$B$1,\"bscr\",1000)","v":"Mapped"},null,null,null,"PaidCY2019AY2010",0]
[null,null,{"$f":"XBRLMap(C30,C$86&\".\"&$U$4&\".\"&$U30&\".\"&C$89&\".\"&$U$7,$B$96,$B$97,CONFIGURATION!$B$10,\"BMA\",CONFIGURATION!$B$1,\"bscr\",1000)","v":"Mapped"},{"$f":"XBRLMap(D30,D$86&\".\"&$U$4&\".\"&$U30&\".\"&D$89&\".\"&$U$7,$B$96,$B$97,CONFIGURATION!$B$10,\"BMA\",CONFIGURATION!$B$1,\"bscr\",1000)","v":"Mapped"},{"$f":"XBRLMap(E30,E$86&\".\"&$U$4&\".\"&$U30&\".\"&E$89&\".\"&$U$7,$B$96,$B$97,CONFIGURATION!$B$10,\"BMA\",CONFIGURATION!$B$1,\"bscr\",1000)","v":"Mapped"},{"$f":"XBRLMap(F30,F$86&\".\"&$U$4&\".\"&$U30&\".\"&F$89&\".\"&$U$7,$B$96,$B$97,CONFIGURATION!$B$10,\"BMA\",CONFIGURATION!$B$1,\"bscr\",1000)","v":"Mapped"},{"$f":"XBRLMap(G30,G$86&\".\"&$U$4&\".\"&$U30&\".\"&G$89&\".\"&$U$7,$B$96,$B$97,CONFIGURATION!$B$10,\"BMA\",CONFIGURATION!$B$1,\"bscr\",1000)","v":"Mapped"},{"$f":"XBRLMap(H30,H$86&\".\"&$U$4&\".\"&$U30&\".\"&H$89&\".\"&$U$7,$B$96,$B$97,CONFIGURATION!$B$10,\"BMA\",CONFIGURATION!$B$1,\"bscr\",1000)","v":"Mapped"},{"$f":"XBRLMap(I30,I$86&\".\"&$U$4&\".\"&$U30&\".\"&I$89&\".\"&$U$7,$B$96,$B$97,CONFIGURATION!$B$10,\"BMA\",CONFIGURATION!$B$1,\"bscr\",1000)","v":"Mapped"},{"$f":"XBRLMap(J30,J$86&\".\"&$U$4&\".\"&$U30&\".\"&J$89&\".\"&$U$7,$B$96,$B$97,CONFIGURATION!$B$10,\"BMA\",CONFIGURATION!$B$1,\"bscr\",1000)","v":"Mapped"},{"$f":"XBRLMap(K30,K$86&\".\"&$U$4&\".\"&$U30&\".\"&K$89&\".\"&$U$7,$B$96,$B$97,CONFIGURATION!$B$10,\"BMA\",CONFIGURATION!$B$1,\"bscr\",1000)","v":"Mapped"},{"$f":"XBRLMap(L30,L$86&\".\"&$U$4&\".\"&$U30&\".\"&L$89&\".\"&$U$7,$B$96,$B$97,CONFIGURATION!$B$10,\"BMA\",CONFIGURATION!$B$1,\"bscr\",1000)","v":"Mapped"},{"$f":"XBRLMap(M30,M$86&\".\"&$U$4&\".\"&$U30&\".\"&M$89&\".\"&$U$7,$B$96,$B$97,CONFIGURATION!$B$10,\"BMA\",CONFIGURATION!$B$1,\"bscr\",1000)","v":"Mapped"},null,null,null,"PaidCY2019AY2011",0]
[null,null,null,{"$f":"XBRLMap(D31,D$86&\".\"&$U$4&\".\"&$U31&\".\"&D$89&\".\"&$U$7,$B$96,$B$97,CONFIGURATION!$B$10,\"BMA\",CONFIGURATION!$B$1,\"bscr\",1000)","v":"Mapped"},{"$f":"XBRLMap(E31,E$86&\".\"&$U$4&\".\"&$U31&\".\"&E$89&\".\"&$U$7,$B$96,$B$97,CONFIGURATION!$B$10,\"BMA\",CONFIGURATION!$B$1,\"bscr\",1000)","v":"Mapped"},{"$f":"XBRLMap(F31,F$86&\".\"&$U$4&\".\"&$U31&\".\"&F$89&\".\"&$U$7,$B$96,$B$97,CONFIGURATION!$B$10,\"BMA\",CONFIGURATION!$B$1,\"bscr\",1000)","v":"Mapped"},{"$f":"XBRLMap(G31,G$86&\".\"&$U$4&\".\"&$U31&\".\"&G$89&\".\"&$U$7,$B$96,$B$97,CONFIGURATION!$B$10,\"BMA\",CONFIGURATION!$B$1,\"bscr\",1000)","v":"Mapped"},{"$f":"XBRLMap(H31,H$86&\".\"&$U$4&\".\"&$U31&\".\"&H$89&\".\"&$U$7,$B$96,$B$97,CONFIGURATION!$B$10,\"BMA\",CONFIGURATION!$B$1,\"bscr\",1000)","v":"Mapped"},{"$f":"XBRLMap(I31,I$86&\".\"&$U$4&\".\"&$U31&\".\"&I$89&\".\"&$U$7,$B$96,$B$97,CONFIGURATION!$B$10,\"BMA\",CONFIGURATION!$B$1,\"bscr\",1000)","v":"Mapped"},{"$f":"XBRLMap(J31,J$86&\".\"&$U$4&\".\"&$U31&\".\"&J$89&\".\"&$U$7,$B$96,$B$97,CONFIGURATION!$B$10,\"BMA\",CONFIGURATION!$B$1,\"bscr\",1000)","v":"Mapped"},{"$f":"XBRLMap(K31,K$86&\".\"&$U$4&\".\"&$U31&\".\"&K$89&\".\"&$U$7,$B$96,$B$97,CONFIGURATION!$B$10,\"BMA\",CONFIGURATION!$B$1,\"bscr\",1000)","v":"Mapped"},{"$f":"XBRLMap(L31,L$86&\".\"&$U$4&\".\"&$U31&\".\"&L$89&\".\"&$U$7,$B$96,$B$97,CONFIGURATION!$B$10,\"BMA\",CONFIGURATION!$B$1,\"bscr\",1000)","v":"Mapped"},{"$f":"XBRLMap(M31,M$86&\".\"&$U$4&\".\"&$U31&\".\"&M$89&\".\"&$U$7,$B$96,$B$97,CONFIGURATION!$B$10,\"BMA\",CONFIGURATION!$B$1,\"bscr\",1000)","v":"Mapped"},null,null,null,"PaidCY2019AY2012",0]
[null,null,null,null,{"$f":"XBRLMap(E32,E$86&\".\"&$U$4&\".\"&$U32&\".\"&E$89&\".\"&$U$7,$B$96,$B$97,CONFIGURATION!$B$10,\"BMA\",CONFIGURATION!$B$1,\"bscr\",1000)","v":"Mapped"},{"$f":"XBRLMap(F32,F$86&\".\"&$U$4&\".\"&$U32&\".\"&F$89&\".\"&$U$7,$B$96,$B$97,CONFIGURATION!$B$10,\"BMA\",CONFIGURATION!$B$1,\"bscr\",1000)","v":"Mapped"},{"$f":"XBRLMap(G32,G$86&\".\"&$U$4&\".\"&$U32&\".\"&G$89&\".\"&$U$7,$B$96,$B$97,CONFIGURATION!$B$10,\"BMA\",CONFIGURATION!$B$1,\"bscr\",1000)","v":"Mapped"},{"$f":"XBRLMap(H32,H$86&\".\"&$U$4&\".\"&$U32&\".\"&H$89&\".\"&$U$7,$B$96,$B$97,CONFIGURATION!$B$10,\"BMA\",CONFIGURATION!$B$1,\"bscr\",1000)","v":"Mapped"},{"$f":"XBRLMap(I32,I$86&\".\"&$U$4&\".\"&$U32&\".\"&I$89&\".\"&$U$7,$B$96,$B$97,CONFIGURATION!$B$10,\"BMA\",CONFIGURATION!$B$1,\"bscr\",1000)","v":"Mapped"},{"$f":"XBRLMap(J32,J$86&\".\"&$U$4&\".\"&$U32&\".\"&J$89&\".\"&$U$7,$B$96,$B$97,CONFIGURATION!$B$10,\"BMA\",CONFIGURATION!$B$1,\"bscr\",1000)","v":"Mapped"},{"$f":"XBRLMap(K32,K$86&\".\"&$U$4&\".\"&$U32&\".\"&K$89&\".\"&$U$7,$B$96,$B$97,CONFIGURATION!$B$10,\"BMA\",CONFIGURATION!$B$1,\"bscr\",1000)","v":"Mapped"},{"$f":"XBRLMap(L32,L$86&\".\"&$U$4&\".\"&$U32&\".\"&L$89&\".\"&$U$7,$B$96,$B$97,CONFIGURATION!$B$10,\"BMA\",CONFIGURATION!$B$1,\"bscr\",1000)","v":"Mapped"},{"$f":"XBRLMap(M32,M$86&\".\"&$U$4&\".\"&$U32&\".\"&M$89&\".\"&$U$7,$B$96,$B$97,CONFIGURATION!$B$10,\"BMA\",CONFIGURATION!$B$1,\"bscr\",1000)","v":"Mapped"},null,null,null,"PaidCY2019AY2013",0]
[null,null,null,null,null,{"$f":"XBRLMap(F33,F$86&\".\"&$U$4&\".\"&$U33&\".\"&F$89&\".\"&$U$7,$B$96,$B$97,CONFIGURATION!$B$10,\"BMA\",CONFIGURATION!$B$1,\"bscr\",1000)","v":"Mapped"},{"$f":"XBRLMap(G33,G$86&\".\"&$U$4&\".\"&$U33&\".\"&G$89&\".\"&$U$7,$B$96,$B$97,CONFIGURATION!$B$10,\"BMA\",CONFIGURATION!$B$1,\"bscr\",1000)","v":"Mapped"},{"$f":"XBRLMap(H33,H$86&\".\"&$U$4&\".\"&$U33&\".\"&H$89&\".\"&$U$7,$B$96,$B$97,CONFIGURATION!$B$10,\"BMA\",CONFIGURATION!$B$1,\"bscr\",1000)","v":"Mapped"},{"$f":"XBRLMap(I33,I$86&\".\"&$U$4&\".\"&$U33&\".\"&I$89&\".\"&$U$7,$B$96,$B$97,CONFIGURATION!$B$10,\"BMA\",CONFIGURATION!$B$1,\"bscr\",1000)","v":"Mapped"},{"$f":"XBRLMap(J33,J$86&\".\"&$U$4&\".\"&$U33&\".\"&J$89&\".\"&$U$7,$B$96,$B$97,CONFIGURATION!$B$10,\"BMA\",CONFIGURATION!$B$1,\"bscr\",1000)","v":"Mapped"},{"$f":"XBRLMap(K33,K$86&\".\"&$U$4&\".\"&$U33&\".\"&K$89&\".\"&$U$7,$B$96,$B$97,CONFIGURATION!$B$10,\"BMA\",CONFIGURATION!$B$1,\"bscr\",1000)","v":"Mapped"},{"$f":"XBRLMap(L33,L$86&\".\"&$U$4&\".\"&$U33&\".\"&L$89&\".\"&$U$7,$B$96,$B$97,CONFIGURATION!$B$10,\"BMA\",CONFIGURATION!$B$1,\"bscr\",1000)","v":"Mapped"},{"$f":"XBRLMap(M33,M$86&\".\"&$U$4&\".\"&$U33&\".\"&M$89&\".\"&$U$7,$B$96,$B$97,CONFIGURATION!$B$10,\"BMA\",CONFIGURATION!$B$1,\"bscr\",1000)","v":"Mapped"},null,null,null,"PaidCY2019AY2014",0]
[null,null,null,null,null,null,{"$f":"XBRLMap(G34,G$86&\".\"&$U$4&\".\"&$U34&\".\"&G$89&\".\"&$U$7,$B$96,$B$97,CONFIGURATION!$B$10,\"BMA\",CONFIGURATION!$B$1,\"bscr\",1000)","v":"Mapped"},{"$f":"XBRLMap(H34,H$86&\".\"&$U$4&\".\"&$U34&\".\"&H$89&\".\"&$U$7,$B$96,$B$97,CONFIGURATION!$B$10,\"BMA\",CONFIGURATION!$B$1,\"bscr\",1000)","v":"Mapped"},{"$f":"XBRLMap(I34,I$86&\".\"&$U$4&\".\"&$U34&\".\"&I$89&\".\"&$U$7,$B$96,$B$97,CONFIGURATION!$B$10,\"BMA\",CONFIGURATION!$B$1,\"bscr\",1000)","v":"Mapped"},{"$f":"XBRLMap(J34,J$86&\".\"&$U$4&\".\"&$U34&\".\"&J$89&\".\"&$U$7,$B$96,$B$97,CONFIGURATION!$B$10,\"BMA\",CONFIGURATION!$B$1,\"bscr\",1000)","v":"Mapped"},{"$f":"XBRLMap(K34,K$86&\".\"&$U$4&\".\"&$U34&\".\"&K$89&\".\"&$U$7,$B$96,$B$97,CONFIGURATION!$B$10,\"BMA\",CONFIGURATION!$B$1,\"bscr\",1000)","v":"Mapped"},{"$f":"XBRLMap(L34,L$86&\".\"&$U$4&\".\"&$U34&\".\"&L$89&\".\"&$U$7,$B$96,$B$97,CONFIGURATION!$B$10,\"BMA\",CONFIGURATION!$B$1,\"bscr\",1000)","v":"Mapped"},{"$f":"XBRLMap(M34,M$86&\".\"&$U$4&\".\"&$U34&\".\"&M$89&\".\"&$U$7,$B$96,$B$97,CONFIGURATION!$B$10,\"BMA\",CONFIGURATION!$B$1,\"bscr\",1000)","v":"Mapped"},null,null,null,"PaidCY2019AY2015",0]
[null,null,null,null,null,null,null,{"$f":"XBRLMap(H35,H$86&\".\"&$U$4&\".\"&$U35&\".\"&H$89&\".\"&$U$7,$B$96,$B$97,CONFIGURATION!$B$10,\"BMA\",CONFIGURATION!$B$1,\"bscr\",1000)","v":"Mapped"},{"$f":"XBRLMap(I35,I$86&\".\"&$U$4&\".\"&$U35&\".\"&I$89&\".\"&$U$7,$B$96,$B$97,CONFIGURATION!$B$10,\"BMA\",CONFIGURATION!$B$1,\"bscr\",1000)","v":"Mapped"},{"$f":"XBRLMap(J35,J$86&\".\"&$U$4&\".\"&$U35&\".\"&J$89&\".\"&$U$7,$B$96,$B$97,CONFIGURATION!$B$10,\"BMA\",CONFIGURATION!$B$1,\"bscr\",1000)","v":"Mapped"},{"$f":"XBRLMap(K35,K$86&\".\"&$U$4&\".\"&$U35&\".\"&K$89&\".\"&$U$7,$B$96,$B$97,CONFIGURATION!$B$10,\"BMA\",CONFIGURATION!$B$1,\"bscr\",1000)","v":"Mapped"},{"$f":"XBRLMap(L35,L$86&\".\"&$U$4&\".\"&$U35&\".\"&L$89&\".\"&$U$7,$B$96,$B$97,CONFIGURATION!$B$10,\"BMA\",CONFIGURATION!$B$1,\"bscr\",1000)","v":"Mapped"},{"$f":"XBRLMap(M35,M$86&\".\"&$U$4&\".\"&$U35&\".\"&M$89&\".\"&$U$7,$B$96,$B$97,CONFIGURATION!$B$10,\"BMA\",CONFIGURATION!$B$1,\"bscr\",1000)","v":"Mapped"},null,null,null,"PaidCY2019AY2016",0]
[null,null,null,null,null,null,null,null,{"$f":"XBRLMap(I36,I$86&\".\"&$U$4&\".\"&$U36&\".\"&I$89&\".\"&$U$7,$B$96,$B$97,CONFIGURATION!$B$10,\"BMA\",CONFIGURATION!$B$1,\"bscr\",1000)","v":"Mapped"},{"$f":"XBRLMap(J36,J$86&\".\"&$U$4&\".\"&$U36&\".\"&J$89&\".\"&$U$7,$B$96,$B$97,CONFIGURATION!$B$10,\"BMA\",CONFIGURATION!$B$1,\"bscr\",1000)","v":"Mapped"},{"$f":"XBRLMap(K36,K$86&\".\"&$U$4&\".\"&$U36&\".\"&K$89&\".\"&$U$7,$B$96,$B$97,CONFIGURATION!$B$10,\"BMA\",CONFIGURATION!$B$1,\"bscr\",1000)","v":"Mapped"},{"$f":"XBRLMap(L36,L$86&\".\"&$U$4&\".\"&$U36&\".\"&L$89&\".\"&$U$7,$B$96,$B$97,CONFIGURATION!$B$10,\"BMA\",CONFIGURATION!$B$1,\"bscr\",1000)","v":"Mapped"},{"$f":"XBRLMap(M36,M$86&\".\"&$U$4&\".\"&$U36&\".\"&M$89&\".\"&$U$7,$B$96,$B$97,CONFIGURATION!$B$10,\"BMA\",CONFIGURATION!$B$1,\"bscr\",1000)","v":"Mapped"},null,null,null,"PaidCY2019AY2017",0]
[null,null,null,null,null,null,null,null,null,{"$f":"XBRLMap(J37,J$86&\".\"&$U$4&\".\"&$U37&\".\"&J$89&\".\"&$U$7,$B$96,$B$97,CONFIGURATION!$B$10,\"BMA\",CONFIGURATION!$B$1,\"bscr\",1000)","v":"Mapped"},{"$f":"XBRLMap(K37,K$86&\".\"&$U$4&\".\"&$U37&\".\"&K$89&\".\"&$U$7,$B$96,$B$97,CONFIGURATION!$B$10,\"BMA\",CONFIGURATION!$B$1,\"bscr\",1000)","v":"Mapped"},{"$f":"XBRLMap(L37,L$86&\".\"&$U$4&\".\"&$U37&\".\"&L$89&\".\"&$U$7,$B$96,$B$97,CONFIGURATION!$B$10,\"BMA\",CONFIGURATION!$B$1,\"bscr\",1000)","v":"Mapped"},{"$f":"XBRLMap(M37,M$86&\".\"&$U$4&\".\"&$U37&\".\"&M$89&\".\"&$U$7,$B$96,$B$97,CONFIGURATION!$B$10,\"BMA\",CONFIGURATION!$B$1,\"bscr\",1000)","v":"Mapped"},null,null,null,"PaidCY2019AY2018",0]
[null,null,null,null,null,null,null,null,null,null,{"$f":"XBRLMap(K38,K$86&\".\"&$U$4&\".\"&$U38&\".\"&K$89&\".\"&$U$7,$B$96,$B$97,CONFIGURATION!$B$10,\"BMA\",CONFIGURATION!$B$1,\"bscr\",1000)","v":"Mapped"},{"$f":"XBRLMap(L38,L$86&\".\"&$U$4&\".\"&$U38&\".\"&L$89&\".\"&$U$7,$B$96,$B$97,CONFIGURATION!$B$10,\"BMA\",CONFIGURATION!$B$1,\"bscr\",1000)","v":"Mapped"},{"$f":"XBRLMap(M38,M$86&\".\"&$U$4&\".\"&$U38&\".\"&M$89&\".\"&$U$7,$B$96,$B$97,CONFIGURATION!$B$10,\"BMA\",CONFIGURATION!$B$1,\"bscr\",1000)","v":"Mapped"},null,null,null,"PaidCY2019AY2019",0]
[null,null,null,null,null,null,null,null,null,null,null,{"$f":"XBRLMap(L39,L$86&\".\"&$U$4&\".\"&$U39&\".\"&L$89&\".\"&$U$7,$B$96,$B$97,CONFIGURATION!$B$10,\"BMA\",CONFIGURATION!$B$1,\"bscr\",1000)","v":"Mapped"},{"$f":"XBRLMap(M39,M$86&\".\"&$U$4&\".\"&$U39&\".\"&M$89&\".\"&$U$7,$B$96,$B$97,CONFIGURATION!$B$10,\"BMA\",CONFIGURATION!$B$1,\"bscr\",1000)","v":"Mapped"},null,null,null,{"$f":"\"IBNRCY\"&C$10&\"AY\"&B47","v":"IBNRCY2010AYPrior"},{"$f":"C47","v":0}]
[null,null,null,null,null,null,null,null,null,null,null,null,null,null,null,null,{"$f":"\"IBNRCY\"&C$10&\"AY\"&B48","v":"IBNRCY2010AY2010"},{"$f":"C48","v":0}]
[null,null,null,null,null,null,null,null,null,null,null,null,null,null,null,null,{"$f":"\"IBNRCY\"&D$10&\"AY\"&B47","v":"IBNRCY2011AYPrior"},{"$f":"D47","v":0}]
[null,null,null,null,null,null,null,null,null,null,null,null,null,null,null,null,{"$f":"\"IBNRCY\"&D$10&\"AY\"&B48","v":"IBNRCY2011AY2010"},{"$f":"D48","v":0}]
[null,null,null,null,null,null,null,null,null,null,null,null,null,null,null,null,{"$f":"\"IBNRCY\"&D$10&\"AY\"&B49","v":"IBNRCY2011AY2011"},{"$f":"D49","v":0}]
[null,null,null,null,null,null,null,null,null,null,null,null,null,null,null,null,{"$f":"\"IBNRCY\"&E$10&\"AY\"&B47","v":"IBNRCY2012AYPrior"},{"$f":"E47","v":0}]
[null,null,null,null,null,null,null,null,null,null,null,null,null,null,null,null,{"$f":"\"IBNRCY\"&E$10&\"AY\"&B48","v":"IBNRCY2012AY2010"},{"$f":"E48","v":0}]
[null,null,null,null,null,null,null,null,null,null,null,null,null,null,null,null,{"$f":"\"IBNRCY\"&E$10&\"AY\"&B49","v":"IBNRCY2012AY2011"},{"$f":"E49","v":0}]
[null,null,null,null,null,null,null,null,null,null,null,null,null,null,null,null,{"$f":"\"IBNRCY\"&E$10&\"AY\"&B50","v":"IBNRCY2012AY2012"},{"$f":"E50","v":0}]
[null,null,{"$f":"XBRLMap(C47,C$87&\".\"&$U$4&\".\"&$U47&\".\"&C$89&\".\"&$U$7,$B$96,$B$97,CONFIGURATION!$B$10,\"BMA\",CONFIGURATION!$B$1,\"bscr\",1000)","v":"Mapped"},{"$f":"XBRLMap(D47,D$87&\".\"&$U$4&\".\"&$U47&\".\"&D$89&\".\"&$U$7,$B$96,$B$97,CONFIGURATION!$B$10,\"BMA\",CONFIGURATION!$B$1,\"bscr\",1000)","v":"Mapped"},{"$f":"XBRLMap(E47,E$87&\".\"&$U$4&\".\"&$U47&\".\"&E$89&\".\"&$U$7,$B$96,$B$97,CONFIGURATION!$B$10,\"BMA\",CONFIGURATION!$B$1,\"bscr\",1000)","v":"Mapped"},{"$f":"XBRLMap(F47,F$87&\".\"&$U$4&\".\"&$U47&\".\"&F$89&\".\"&$U$7,$B$96,$B$97,CONFIGURATION!$B$10,\"BMA\",CONFIGURATION!$B$1,\"bscr\",1000)","v":"Mapped"},{"$f":"XBRLMap(G47,G$87&\".\"&$U$4&\".\"&$U47&\".\"&G$89&\".\"&$U$7,$B$96,$B$97,CONFIGURATION!$B$10,\"BMA\",CONFIGURATION!$B$1,\"bscr\",1000)","v":"Mapped"},{"$f":"XBRLMap(H47,H$87&\".\"&$U$4&\".\"&$U47&\".\"&H$89&\".\"&$U$7,$B$96,$B$97,CONFIGURATION!$B$10,\"BMA\",CONFIGURATION!$B$1,\"bscr\",1000)","v":"Mapped"},{"$f":"XBRLMap(I47,I$87&\".\"&$U$4&\".\"&$U47&\".\"&I$89&\".\"&$U$7,$B$96,$B$97,CONFIGURATION!$B$10,\"BMA\",CONFIGURATION!$B$1,\"bscr\",1000)","v":"Mapped"},{"$f":"XBRLMap(J47,J$87&\".\"&$U$4&\".\"&$U47&\".\"&J$89&\".\"&$U$7,$B$96,$B$97,CONFIGURATION!$B$10,\"BMA\",CONFIGURATION!$B$1,\"bscr\",1000)","v":"Mapped"},{"$f":"XBRLMap(K47,K$87&\".\"&$U$4&\".\"&$U47&\".\"&K$89&\".\"&$U$7,$B$96,$B$97,CONFIGURATION!$B$10,\"BMA\",CONFIGURATION!$B$1,\"bscr\",1000)","v":"Mapped"},{"$f":"XBRLMap(L47,L$87&\".\"&$U$4&\".\"&$U47&\".\"&L$89&\".\"&$U$7,$B$96,$B$97,CONFIGURATION!$B$10,\"BMA\",CONFIGURATION!$B$1,\"bscr\",1000)","v":"Mapped"},{"$f":"XBRLMap(M47,M$87&\".\"&$U$4&\".\"&$U47&\".\"&M$89&\".\"&$U$7,$B$96,$B$97,CONFIGURATION!$B$10,\"BMA\",CONFIGURATION!$B$1,\"bscr\",1000)","v":"Mapped"},null,null,null,{"$f":"\"IBNRCY\"&F$10&\"AY\"&B47","v":"IBNRCY2013AYPrior"},{"$f":"F47","v":0}]
[null,null,{"$f":"XBRLMap(C48,C$87&\".\"&$U$4&\".\"&$U48&\".\"&C$89&\".\"&$U$7,$B$96,$B$97,CONFIGURATION!$B$10,\"BMA\",CONFIGURATION!$B$1,\"bscr\",1000)","v":"Mapped"},{"$f":"XBRLMap(D48,D$87&\".\"&$U$4&\".\"&$U48&\".\"&D$89&\".\"&$U$7,$B$96,$B$97,CONFIGURATION!$B$10,\"BMA\",CONFIGURATION!$B$1,\"bscr\",1000)","v":"Mapped"},{"$f":"XBRLMap(E48,E$87&\".\"&$U$4&\".\"&$U48&\".\"&E$89&\".\"&$U$7,$B$96,$B$97,CONFIGURATION!$B$10,\"BMA\",CONFIGURATION!$B$1,\"bscr\",1000)","v":"Mapped"},{"$f":"XBRLMap(F48,F$87&\".\"&$U$4&\".\"&$U48&\".\"&F$89&\".\"&$U$7,$B$96,$B$97,CONFIGURATION!$B$10,\"BMA\",CONFIGURATION!$B$1,\"bscr\",1000)","v":"Mapped"},{"$f":"XBRLMap(G48,G$87&\".\"&$U$4&\".\"&$U48&\".\"&G$89&\".\"&$U$7,$B$96,$B$97,CONFIGURATION!$B$10,\"BMA\",CONFIGURATION!$B$1,\"bscr\",1000)","v":"Mapped"},{"$f":"XBRLMap(H48,H$87&\".\"&$U$4&\".\"&$U48&\".\"&H$89&\".\"&$U$7,$B$96,$B$97,CONFIGURATION!$B$10,\"BMA\",CONFIGURATION!$B$1,\"bscr\",1000)","v":"Mapped"},{"$f":"XBRLMap(I48,I$87&\".\"&$U$4&\".\"&$U48&\".\"&I$89&\".\"&$U$7,$B$96,$B$97,CONFIGURATION!$B$10,\"BMA\",CONFIGURATION!$B$1,\"bscr\",1000)","v":"Mapped"},{"$f":"XBRLMap(J48,J$87&\".\"&$U$4&\".\"&$U48&\".\"&J$89&\".\"&$U$7,$B$96,$B$97,CONFIGURATION!$B$10,\"BMA\",CONFIGURATION!$B$1,\"bscr\",1000)","v":"Mapped"},{"$f":"XBRLMap(K48,K$87&\".\"&$U$4&\".\"&$U48&\".\"&K$89&\".\"&$U$7,$B$96,$B$97,CONFIGURATION!$B$10,\"BMA\",CONFIGURATION!$B$1,\"bscr\",1000)","v":"Mapped"},{"$f":"XBRLMap(L48,L$87&\".\"&$U$4&\".\"&$U48&\".\"&L$89&\".\"&$U$7,$B$96,$B$97,CONFIGURATION!$B$10,\"BMA\",CONFIGURATION!$B$1,\"bscr\",1000)","v":"Mapped"},{"$f":"XBRLMap(M48,M$87&\".\"&$U$4&\".\"&$U48&\".\"&M$89&\".\"&$U$7,$B$96,$B$97,CONFIGURATION!$B$10,\"BMA\",CONFIGURATION!$B$1,\"bscr\",1000)","v":"Mapped"},null,null,null,{"$f":"\"IBNRCY\"&F$10&\"AY\"&B48","v":"IBNRCY2013AY2010"},{"$f":"F48","v":0}]
[null,null,null,{"$f":"XBRLMap(D49,D$87&\".\"&$U$4&\".\"&$U49&\".\"&D$89&\".\"&$U$7,$B$96,$B$97,CONFIGURATION!$B$10,\"BMA\",CONFIGURATION!$B$1,\"bscr\",1000)","v":"Mapped"},{"$f":"XBRLMap(E49,E$87&\".\"&$U$4&\".\"&$U49&\".\"&E$89&\".\"&$U$7,$B$96,$B$97,CONFIGURATION!$B$10,\"BMA\",CONFIGURATION!$B$1,\"bscr\",1000)","v":"Mapped"},{"$f":"XBRLMap(F49,F$87&\".\"&$U$4&\".\"&$U49&\".\"&F$89&\".\"&$U$7,$B$96,$B$97,CONFIGURATION!$B$10,\"BMA\",CONFIGURATION!$B$1,\"bscr\",1000)","v":"Mapped"},{"$f":"XBRLMap(G49,G$87&\".\"&$U$4&\".\"&$U49&\".\"&G$89&\".\"&$U$7,$B$96,$B$97,CONFIGURATION!$B$10,\"BMA\",CONFIGURATION!$B$1,\"bscr\",1000)","v":"Mapped"},{"$f":"XBRLMap(H49,H$87&\".\"&$U$4&\".\"&$U49&\".\"&H$89&\".\"&$U$7,$B$96,$B$97,CONFIGURATION!$B$10,\"BMA\",CONFIGURATION!$B$1,\"bscr\",1000)","v":"Mapped"},{"$f":"XBRLMap(I49,I$87&\".\"&$U$4&\".\"&$U49&\".\"&I$89&\".\"&$U$7,$B$96,$B$97,CONFIGURATION!$B$10,\"BMA\",CONFIGURATION!$B$1,\"bscr\",1000)","v":"Mapped"},{"$f":"XBRLMap(J49,J$87&\".\"&$U$4&\".\"&$U49&\".\"&J$89&\".\"&$U$7,$B$96,$B$97,CONFIGURATION!$B$10,\"BMA\",CONFIGURATION!$B$1,\"bscr\",1000)","v":"Mapped"},{"$f":"XBRLMap(K49,K$87&\".\"&$U$4&\".\"&$U49&\".\"&K$89&\".\"&$U$7,$B$96,$B$97,CONFIGURATION!$B$10,\"BMA\",CONFIGURATION!$B$1,\"bscr\",1000)","v":"Mapped"},{"$f":"XBRLMap(L49,L$87&\".\"&$U$4&\".\"&$U49&\".\"&L$89&\".\"&$U$7,$B$96,$B$97,CONFIGURATION!$B$10,\"BMA\",CONFIGURATION!$B$1,\"bscr\",1000)","v":"Mapped"},{"$f":"XBRLMap(M49,M$87&\".\"&$U$4&\".\"&$U49&\".\"&M$89&\".\"&$U$7,$B$96,$B$97,CONFIGURATION!$B$10,\"BMA\",CONFIGURATION!$B$1,\"bscr\",1000)","v":"Mapped"},null,null,null,{"$f":"\"IBNRCY\"&F$10&\"AY\"&B49","v":"IBNRCY2013AY2011"},{"$f":"F49","v":0}]
[null,null,null,null,{"$f":"XBRLMap(E50,E$87&\".\"&$U$4&\".\"&$U50&\".\"&E$89&\".\"&$U$7,$B$96,$B$97,CONFIGURATION!$B$10,\"BMA\",CONFIGURATION!$B$1,\"bscr\",1000)","v":"Mapped"},{"$f":"XBRLMap(F50,F$87&\".\"&$U$4&\".\"&$U50&\".\"&F$89&\".\"&$U$7,$B$96,$B$97,CONFIGURATION!$B$10,\"BMA\",CONFIGURATION!$B$1,\"bscr\",1000)","v":"Mapped"},{"$f":"XBRLMap(G50,G$87&\".\"&$U$4&\".\"&$U50&\".\"&G$89&\".\"&$U$7,$B$96,$B$97,CONFIGURATION!$B$10,\"BMA\",CONFIGURATION!$B$1,\"bscr\",1000)","v":"Mapped"},{"$f":"XBRLMap(H50,H$87&\".\"&$U$4&\".\"&$U50&\".\"&H$89&\".\"&$U$7,$B$96,$B$97,CONFIGURATION!$B$10,\"BMA\",CONFIGURATION!$B$1,\"bscr\",1000)","v":"Mapped"},{"$f":"XBRLMap(I50,I$87&\".\"&$U$4&\".\"&$U50&\".\"&I$89&\".\"&$U$7,$B$96,$B$97,CONFIGURATION!$B$10,\"BMA\",CONFIGURATION!$B$1,\"bscr\",1000)","v":"Mapped"},{"$f":"XBRLMap(J50,J$87&\".\"&$U$4&\".\"&$U50&\".\"&J$89&\".\"&$U$7,$B$96,$B$97,CONFIGURATION!$B$10,\"BMA\",CONFIGURATION!$B$1,\"bscr\",1000)","v":"Mapped"},{"$f":"XBRLMap(K50,K$87&\".\"&$U$4&\".\"&$U50&\".\"&K$89&\".\"&$U$7,$B$96,$B$97,CONFIGURATION!$B$10,\"BMA\",CONFIGURATION!$B$1,\"bscr\",1000)","v":"Mapped"},{"$f":"XBRLMap(L50,L$87&\".\"&$U$4&\".\"&$U50&\".\"&L$89&\".\"&$U$7,$B$96,$B$97,CONFIGURATION!$B$10,\"BMA\",CONFIGURATION!$B$1,\"bscr\",1000)","v":"Mapped"},{"$f":"XBRLMap(M50,M$87&\".\"&$U$4&\".\"&$U50&\".\"&M$89&\".\"&$U$7,$B$96,$B$97,CONFIGURATION!$B$10,\"BMA\",CONFIGURATION!$B$1,\"bscr\",1000)","v":"Mapped"},null,null,null,{"$f":"\"IBNRCY\"&F$10&\"AY\"&B50","v":"IBNRCY2013AY2012"},{"$f":"F50","v":0}]
[null,null,null,null,null,{"$f":"XBRLMap(F51,F$87&\".\"&$U$4&\".\"&$U51&\".\"&F$89&\".\"&$U$7,$B$96,$B$97,CONFIGURATION!$B$10,\"BMA\",CONFIGURATION!$B$1,\"bscr\",1000)","v":"Mapped"},{"$f":"XBRLMap(G51,G$87&\".\"&$U$4&\".\"&$U51&\".\"&G$89&\".\"&$U$7,$B$96,$B$97,CONFIGURATION!$B$10,\"BMA\",CONFIGURATION!$B$1,\"bscr\",1000)","v":"Mapped"},{"$f":"XBRLMap(H51,H$87&\".\"&$U$4&\".\"&$U51&\".\"&H$89&\".\"&$U$7,$B$96,$B$97,CONFIGURATION!$B$10,\"BMA\",CONFIGURATION!$B$1,\"bscr\",1000)","v":"Mapped"},{"$f":"XBRLMap(I51,I$87&\".\"&$U$4&\".\"&$U51&\".\"&I$89&\".\"&$U$7,$B$96,$B$97,CONFIGURATION!$B$10,\"BMA\",CONFIGURATION!$B$1,\"bscr\",1000)","v":"Mapped"},{"$f":"XBRLMap(J51,J$87&\".\"&$U$4&\".\"&$U51&\".\"&J$89&\".\"&$U$7,$B$96,$B$97,CONFIGURATION!$B$10,\"BMA\",CONFIGURATION!$B$1,\"bscr\",1000)","v":"Mapped"},{"$f":"XBRLMap(K51,K$87&\".\"&$U$4&\".\"&$U51&\".\"&K$89&\".\"&$U$7,$B$96,$B$97,CONFIGURATION!$B$10,\"BMA\",CONFIGURATION!$B$1,\"bscr\",1000)","v":"Mapped"},{"$f":"XBRLMap(L51,L$87&\".\"&$U$4&\".\"&$U51&\".\"&L$89&\".\"&$U$7,$B$96,$B$97,CONFIGURATION!$B$10,\"BMA\",CONFIGURATION!$B$1,\"bscr\",1000)","v":"Mapped"},{"$f":"XBRLMap(M51,M$87&\".\"&$U$4&\".\"&$U51&\".\"&M$89&\".\"&$U$7,$B$96,$B$97,CONFIGURATION!$B$10,\"BMA\",CONFIGURATION!$B$1,\"bscr\",1000)","v":"Mapped"},null,null,null,{"$f":"\"IBNRCY\"&F$10&\"AY\"&B51","v":"IBNRCY2013AY2013"},{"$f":"F51","v":0}]
[null,null,null,null,null,null,{"$f":"XBRLMap(G52,G$87&\".\"&$U$4&\".\"&$U52&\".\"&G$89&\".\"&$U$7,$B$96,$B$97,CONFIGURATION!$B$10,\"BMA\",CONFIGURATION!$B$1,\"bscr\",1000)","v":"Mapped"},{"$f":"XBRLMap(H52,H$87&\".\"&$U$4&\".\"&$U52&\".\"&H$89&\".\"&$U$7,$B$96,$B$97,CONFIGURATION!$B$10,\"BMA\",CONFIGURATION!$B$1,\"bscr\",1000)","v":"Mapped"},{"$f":"XBRLMap(I52,I$87&\".\"&$U$4&\".\"&$U52&\".\"&I$89&\".\"&$U$7,$B$96,$B$97,CONFIGURATION!$B$10,\"BMA\",CONFIGURATION!$B$1,\"bscr\",1000)","v":"Mapped"},{"$f":"XBRLMap(J52,J$87&\".\"&$U$4&\".\"&$U52&\".\"&J$89&\".\"&$U$7,$B$96,$B$97,CONFIGURATION!$B$10,\"BMA\",CONFIGURATION!$B$1,\"bscr\",1000)","v":"Mapped"},{"$f":"XBRLMap(K52,K$87&\".\"&$U$4&\".\"&$U52&\".\"&K$89&\".\"&$U$7,$B$96,$B$97,CONFIGURATION!$B$10,\"BMA\",CONFIGURATION!$B$1,\"bscr\",1000)","v":"Mapped"},{"$f":"XBRLMap(L52,L$87&\".\"&$U$4&\".\"&$U52&\".\"&L$89&\".\"&$U$7,$B$96,$B$97,CONFIGURATION!$B$10,\"BMA\",CONFIGURATION!$B$1,\"bscr\",1000)","v":"Mapped"},{"$f":"XBRLMap(M52,M$87&\".\"&$U$4&\".\"&$U52&\".\"&M$89&\".\"&$U$7,$B$96,$B$97,CONFIGURATION!$B$10,\"BMA\",CONFIGURATION!$B$1,\"bscr\",1000)","v":"Mapped"},null,null,null,{"$f":"\"IBNRCY\"&G$10&\"AY\"&B47","v":"IBNRCY2014AYPrior"},{"$f":"G47","v":0}]
[null,null,null,null,null,null,null,{"$f":"XBRLMap(H53,H$87&\".\"&$U$4&\".\"&$U53&\".\"&H$89&\".\"&$U$7,$B$96,$B$97,CONFIGURATION!$B$10,\"BMA\",CONFIGURATION!$B$1,\"bscr\",1000)","v":"Mapped"},{"$f":"XBRLMap(I53,I$87&\".\"&$U$4&\".\"&$U53&\".\"&I$89&\".\"&$U$7,$B$96,$B$97,CONFIGURATION!$B$10,\"BMA\",CONFIGURATION!$B$1,\"bscr\",1000)","v":"Mapped"},{"$f":"XBRLMap(J53,J$87&\".\"&$U$4&\".\"&$U53&\".\"&J$89&\".\"&$U$7,$B$96,$B$97,CONFIGURATION!$B$10,\"BMA\",CONFIGURATION!$B$1,\"bscr\",1000)","v":"Mapped"},{"$f":"XBRLMap(K53,K$87&\".\"&$U$4&\".\"&$U53&\".\"&K$89&\".\"&$U$7,$B$96,$B$97,CONFIGURATION!$B$10,\"BMA\",CONFIGURATION!$B$1,\"bscr\",1000)","v":"Mapped"},{"$f":"XBRLMap(L53,L$87&\".\"&$U$4&\".\"&$U53&\".\"&L$89&\".\"&$U$7,$B$96,$B$97,CONFIGURATION!$B$10,\"BMA\",CONFIGURATION!$B$1,\"bscr\",1000)","v":"Mapped"},{"$f":"XBRLMap(M53,M$87&\".\"&$U$4&\".\"&$U53&\".\"&M$89&\".\"&$U$7,$B$96,$B$97,CONFIGURATION!$B$10,\"BMA\",CONFIGURATION!$B$1,\"bscr\",1000)","v":"Mapped"},null,null,null,"IBNRCY2014AY2010",0]
[null,null,null,null,null,null,null,null,{"$f":"XBRLMap(I54,I$87&\".\"&$U$4&\".\"&$U54&\".\"&I$89&\".\"&$U$7,$B$96,$B$97,CONFIGURATION!$B$10,\"BMA\",CONFIGURATION!$B$1,\"bscr\",1000)","v":"Mapped"},{"$f":"XBRLMap(J54,J$87&\".\"&$U$4&\".\"&$U54&\".\"&J$89&\".\"&$U$7,$B$96,$B$97,CONFIGURATION!$B$10,\"BMA\",CONFIGURATION!$B$1,\"bscr\",1000)","v":"Mapped"},{"$f":"XBRLMap(K54,K$87&\".\"&$U$4&\".\"&$U54&\".\"&K$89&\".\"&$U$7,$B$96,$B$97,CONFIGURATION!$B$10,\"BMA\",CONFIGURATION!$B$1,\"bscr\",1000)","v":"Mapped"},{"$f":"XBRLMap(L54,L$87&\".\"&$U$4&\".\"&$U54&\".\"&L$89&\".\"&$U$7,$B$96,$B$97,CONFIGURATION!$B$10,\"BMA\",CONFIGURATION!$B$1,\"bscr\",1000)","v":"Mapped"},{"$f":"XBRLMap(M54,M$87&\".\"&$U$4&\".\"&$U54&\".\"&M$89&\".\"&$U$7,$B$96,$B$97,CONFIGURATION!$B$10,\"BMA\",CONFIGURATION!$B$1,\"bscr\",1000)","v":"Mapped"},null,null,null,"IBNRCY2014AY2011",0]
[null,null,null,null,null,null,null,null,null,{"$f":"XBRLMap(J55,J$87&\".\"&$U$4&\".\"&$U55&\".\"&J$89&\".\"&$U$7,$B$96,$B$97,CONFIGURATION!$B$10,\"BMA\",CONFIGURATION!$B$1,\"bscr\",1000)","v":"Mapped"},{"$f":"XBRLMap(K55,K$87&\".\"&$U$4&\".\"&$U55&\".\"&K$89&\".\"&$U$7,$B$96,$B$97,CONFIGURATION!$B$10,\"BMA\",CONFIGURATION!$B$1,\"bscr\",1000)","v":"Mapped"},{"$f":"XBRLMap(L55,L$87&\".\"&$U$4&\".\"&$U55&\".\"&L$89&\".\"&$U$7,$B$96,$B$97,CONFIGURATION!$B$10,\"BMA\",CONFIGURATION!$B$1,\"bscr\",1000)","v":"Mapped"},{"$f":"XBRLMap(M55,M$87&\".\"&$U$4&\".\"&$U55&\".\"&M$89&\".\"&$U$7,$B$96,$B$97,CONFIGURATION!$B$10,\"BMA\",CONFIGURATION!$B$1,\"bscr\",1000)","v":"Mapped"},null,null,null,"IBNRCY2014AY2012",0]
[null,null,null,null,null,null,null,null,null,null,{"$f":"XBRLMap(K56,K$87&\".\"&$U$4&\".\"&$U56&\".\"&K$89&\".\"&$U$7,$B$96,$B$97,CONFIGURATION!$B$10,\"BMA\",CONFIGURATION!$B$1,\"bscr\",1000)","v":"Mapped"},{"$f":"XBRLMap(L56,L$87&\".\"&$U$4&\".\"&$U56&\".\"&L$89&\".\"&$U$7,$B$96,$B$97,CONFIGURATION!$B$10,\"BMA\",CONFIGURATION!$B$1,\"bscr\",1000)","v":"Mapped"},{"$f":"XBRLMap(M56,M$87&\".\"&$U$4&\".\"&$U56&\".\"&M$89&\".\"&$U$7,$B$96,$B$97,CONFIGURATION!$B$10,\"BMA\",CONFIGURATION!$B$1,\"bscr\",1000)","v":"Mapped"},null,null,null,"IBNRCY2014AY2013",0]
[null,null,null,null,null,null,null,null,null,null,null,{"$f":"XBRLMap(L57,L$87&\".\"&$U$4&\".\"&$U57&\".\"&L$89&\".\"&$U$7,$B$96,$B$97,CONFIGURATION!$B$10,\"BMA\",CONFIGURATION!$B$1,\"bscr\",1000)","v":"Mapped"},{"$f":"XBRLMap(M57,M$87&\".\"&$U$4&\".\"&$U57&\".\"&M$89&\".\"&$U$7,$B$96,$B$97,CONFIGURATION!$B$10,\"BMA\",CONFIGURATION!$B$1,\"bscr\",1000)","v":"Mapped"},null,null,null,"IBNRCY2014AY2014",0]
[null,null,null,null,null,null,null,null,null,null,null,null,null,null,null,null,{"$f":"\"IBNRCY\"&H$10&\"AY\"&B47","v":"IBNRCY2015AYPrior"},{"$f":"H47","v":0}]
[null,null,null,null,null,null,null,null,null,null,null,null,null,null,null,null,"IBNRCY2015AY2010",0]
[null,null,null,null,null,null,null,null,null,null,null,null,null,null,null,null,"IBNRCY2015AY2011",0]
[null,null,null,null,null,null,null,null,null,null,null,null,null,null,null,null,"IBNRCY2015AY2012",0]
[null,null,null,null,null,null,null,null,null,null,null,null,null,null,null,null,"IBNRCY2015AY2013",0]
[null,null,null,null,null,null,null,null,null,null,null,null,null,null,null,null,"IBNRCY2015AY2014",0]
[null,null,null,null,null,null,null,null,null,null,null,null,null,null,null,null,"IBNRCY2015AY2015",0]
[null,null,null,null,null,null,null,null,null,null,null,null,null,null,null,null,{"$f":"\"IBNRCY\"&I$10&\"AY\"&B47","v":"IBNRCY2016AYPrior"},{"$f":"I47","v":0}]
[null,null,null,null,null,null,null,null,null,null,null,null,null,null,null,null,"IBNRCY2016AY2010",0]
[null,null,null,null,null,null,null,null,null,null,null,null,null,null,null,null,"IBNRCY2016AY2011",0]
[null,null,null,null,null,null,{"$f":"XBRLMap(G67,G$88&\".\"&$U$4&\".\"&$U67&\".\"&$U$7,$B$96,$B$97,CONFIGURATION!$B$10,\"BMA\",CONFIGURATION!$B$1,\"bscr\",1000)","v":"Mapped"},{"$f":"XBRLMap(H67,H$88&\".\"&$U$4&\".\"&$U67&\".\"&$U$7,$B$96,$B$97,CONFIGURATION!$B$10,\"BMA\",CONFIGURATION!$B$1,\"bscr\",1000)","v":"Mapped"},null,{"$f":"XBRLMap(J67,J$88&\".\"&$U$4&\".\"&$V67&\".\"&$U$7,$B$96,$B$97,CONFIGURATION!$B$10,\"BMA\",CONFIGURATION!$B$1,\"bscr\",1000)","v":"Mapped"},{"$f":"XBRLMap(K67,K$88&\".\"&$U$4&\".\"&$V67&\".\"&$U$7,$B$96,$B$97,CONFIGURATION!$B$10,\"BMA\",CONFIGURATION!$B$1,\"bscr\",1000)","v":"Mapped"},{"$f":"XBRLMap(L67,L$88&\".\"&$U$4&\".\"&$V67&\".\"&$U$7,$B$96,$B$97,CONFIGURATION!$B$10,\"BMA\",CONFIGURATION!$B$1,\"bscr\",1000)","v":"Mapped"},{"$f":"XBRLMap(M67,M$88&\".\"&$U$4&\".\"&$V67&\".\"&$U$7,$B$96,$B$97,CONFIGURATION!$B$10,\"BMA\",CONFIGURATION!$B$1,\"bscr\",1000)","v":"Mapped"},null,null,null,"IBNRCY2016AY2012",0]
[null,null,{"$f":"XBRLMap(C68,C$88&\".\"&$U$4&\".\"&$U68&\".\"&$U$7,$B$96,$B$97,CONFIGURATION!$B$10,\"BMA\",CONFIGURATION!$B$1,\"bscr\",1000)","v":"Mapped"},{"$f":"XBRLMap(D68,D$88&\".\"&$U$4&\".\"&$U68&\".\"&$U$7,$B$96,$B$97,CONFIGURATION!$B$10,\"BMA\",CONFIGURATION!$B$1,\"bscr\",1000)","v":"Mapped"},{"$f":"XBRLMap(E68,E$88&\".\"&$U$4&\".\"&$U68&\".\"&$U$7,$B$96,$B$97,CONFIGURATION!$B$10,\"BMA\",CONFIGURATION!$B$1,\"bscr\",1000)","v":"Mapped"},{"$f":"XBRLMap(F68,F$88&\".\"&$U$4&\".\"&$U68&\".\"&$U$7,$B$96,$B$97,CONFIGURATION!$B$10,\"BMA\",CONFIGURATION!$B$1,\"bscr\",1000)","v":"Mapped"},{"$f":"XBRLMap(G68,G$88&\".\"&$U$4&\".\"&$U68&\".\"&$U$7,$B$96,$B$97,CONFIGURATION!$B$10,\"BMA\",CONFIGURATION!$B$1,\"bscr\",1000)","v":"Mapped"},{"$f":"XBRLMap(H68,H$88&\".\"&$U$4&\".\"&$U68&\".\"&$U$7,$B$96,$B$97,CONFIGURATION!$B$10,\"BMA\",CONFIGURATION!$B$1,\"bscr\",1000)","v":"Mapped"},null,{"$f":"XBRLMap(J68,J$88&\".\"&$U$4&\".\"&$V68&\".\"&$U$7,$B$96,$B$97,CONFIGURATION!$B$10,\"BMA\",CONFIGURATION!$B$1,\"bscr\",1000)","v":"Mapped"},{"$f":"XBRLMap(K68,K$88&\".\"&$U$4&\".\"&$V68&\".\"&$U$7,$B$96,$B$97,CONFIGURATION!$B$10,\"BMA\",CONFIGURATION!$B$1,\"bscr\",1000)","v":"Mapped"},{"$f":"XBRLMap(L68,L$88&\".\"&$U$4&\".\"&$V68&\".\"&$U$7,$B$96,$B$97,CONFIGURATION!$B$10,\"BMA\",CONFIGURATION!$B$1,\"bscr\",1000)","v":"Mapped"},{"$f":"XBRLMap(M68,M$88&\".\"&$U$4&\".\"&$V68&\".\"&$U$7,$B$96,$B$97,CONFIGURATION!$B$10,\"BMA\",CONFIGURATION!$B$1,\"bscr\",1000)","v":"Mapped"},null,null,null,"IBNRCY2016AY2013",0]
[null,null,{"$f":"XBRLMap(C69,C$88&\".\"&$U$4&\".\"&$U69&\".\"&$U$7,$B$96,$B$97,CONFIGURATION!$B$10,\"BMA\",CONFIGURATION!$B$1,\"bscr\",1000)","v":"Mapped"},{"$f":"XBRLMap(D69,D$88&\".\"&$U$4&\".\"&$U69&\".\"&$U$7,$B$96,$B$97,CONFIGURATION!$B$10,\"BMA\",CONFIGURATION!$B$1,\"bscr\",1000)","v":"Mapped"},{"$f":"XBRLMap(E69,E$88&\".\"&$U$4&\".\"&$U69&\".\"&$U$7,$B$96,$B$97,CONFIGURATION!$B$10,\"BMA\",CONFIGURATION!$B$1,\"bscr\",1000)","v":"Mapped"},{"$f":"XBRLMap(F69,F$88&\".\"&$U$4&\".\"&$U69&\".\"&$U$7,$B$96,$B$97,CONFIGURATION!$B$10,\"BMA\",CONFIGURATION!$B$1,\"bscr\",1000)","v":"Mapped"},{"$f":"XBRLMap(G69,G$88&\".\"&$U$4&\".\"&$U69&\".\"&$U$7,$B$96,$B$97,CONFIGURATION!$B$10,\"BMA\",CONFIGURATION!$B$1,\"bscr\",1000)","v":"Mapped"},{"$f":"XBRLMap(H69,H$88&\".\"&$U$4&\".\"&$U69&\".\"&$U$7,$B$96,$B$97,CONFIGURATION!$B$10,\"BMA\",CONFIGURATION!$B$1,\"bscr\",1000)","v":"Mapped"},null,{"$f":"XBRLMap(J69,J$88&\".\"&$U$4&\".\"&$V69&\".\"&$U$7,$B$96,$B$97,CONFIGURATION!$B$10,\"BMA\",CONFIGURATION!$B$1,\"bscr\",1000)","v":"Mapped"},{"$f":"XBRLMap(K69,K$88&\".\"&$U$4&\".\"&$V69&\".\"&$U$7,$B$96,$B$97,CONFIGURATION!$B$10,\"BMA\",CONFIGURATION!$B$1,\"bscr\",1000)","v":"Mapped"},{"$f":"XBRLMap(L69,L$88&\".\"&$U$4&\".\"&$V69&\".\"&$U$7,$B$96,$B$97,CONFIGURATION!$B$10,\"BMA\",CONFIGURATION!$B$1,\"bscr\",1000)","v":"Mapped"},{"$f":"XBRLMap(M69,M$88&\".\"&$U$4&\".\"&$V69&\".\"&$U$7,$B$96,$B$97,CONFIGURATION!$B$10,\"BMA\",CONFIGURATION!$B$1,\"bscr\",1000)","v":"Mapped"},null,null,null,"IBNRCY2016AY2014",0]
[null,null,{"$f":"XBRLMap(C70,C$88&\".\"&$U$4&\".\"&$U70&\".\"&$U$7,$B$96,$B$97,CONFIGURATION!$B$10,\"BMA\",CONFIGURATION!$B$1,\"bscr\",1000)","v":"Mapped"},{"$f":"XBRLMap(D70,D$88&\".\"&$U$4&\".\"&$U70&\".\"&$U$7,$B$96,$B$97,CONFIGURATION!$B$10,\"BMA\",CONFIGURATION!$B$1,\"bscr\",1000)","v":"Mapped"},{"$f":"XBRLMap(E70,E$88&\".\"&$U$4&\".\"&$U70&\".\"&$U$7,$B$96,$B$97,CONFIGURATION!$B$10,\"BMA\",CONFIGURATION!$B$1,\"bscr\",1000)","v":"Mapped"},{"$f":"XBRLMap(F70,F$88&\".\"&$U$4&\".\"&$U70&\".\"&$U$7,$B$96,$B$97,CONFIGURATION!$B$10,\"BMA\",CONFIGURATION!$B$1,\"bscr\",1000)","v":"Mapped"},{"$f":"XBRLMap(G70,G$88&\".\"&$U$4&\".\"&$U70&\".\"&$U$7,$B$96,$B$97,CONFIGURATION!$B$10,\"BMA\",CONFIGURATION!$B$1,\"bscr\",1000)","v":"Mapped"},{"$f":"XBRLMap(H70,H$88&\".\"&$U$4&\".\"&$U70&\".\"&$U$7,$B$96,$B$97,CONFIGURATION!$B$10,\"BMA\",CONFIGURATION!$B$1,\"bscr\",1000)","v":"Mapped"},null,{"$f":"XBRLMap(J70,J$88&\".\"&$U$4&\".\"&$V70&\".\"&$U$7,$B$96,$B$97,CONFIGURATION!$B$10,\"BMA\",CONFIGURATION!$B$1,\"bscr\",1000)","v":"Mapped"},{"$f":"XBRLMap(K70,K$88&\".\"&$U$4&\".\"&$V70&\".\"&$U$7,$B$96,$B$97,CONFIGURATION!$B$10,\"BMA\",CONFIGURATION!$B$1,\"bscr\",1000)","v":"Mapped"},{"$f":"XBRLMap(L70,L$88&\".\"&$U$4&\".\"&$V70&\".\"&$U$7,$B$96,$B$97,CONFIGURATION!$B$10,\"BMA\",CONFIGURATION!$B$1,\"bscr\",1000)","v":"Mapped"},{"$f":"XBRLMap(M70,M$88&\".\"&$U$4&\".\"&$V70&\".\"&$U$7,$B$96,$B$97,CONFIGURATION!$B$10,\"BMA\",CONFIGURATION!$B$1,\"bscr\",1000)","v":"Mapped"},null,null,null,"IBNRCY2016AY2015",0]
[null,null,{"$f":"XBRLMap(C71,C$88&\".\"&$U$4&\".\"&$U71&\".\"&$U$7,$B$96,$B$97,CONFIGURATION!$B$10,\"BMA\",CONFIGURATION!$B$1,\"bscr\",1000)","v":"Mapped"},{"$f":"XBRLMap(D71,D$88&\".\"&$U$4&\".\"&$U71&\".\"&$U$7,$B$96,$B$97,CONFIGURATION!$B$10,\"BMA\",CONFIGURATION!$B$1,\"bscr\",1000)","v":"Mapped"},{"$f":"XBRLMap(E71,E$88&\".\"&$U$4&\".\"&$U71&\".\"&$U$7,$B$96,$B$97,CONFIGURATION!$B$10,\"BMA\",CONFIGURATION!$B$1,\"bscr\",1000)","v":"Mapped"},{"$f":"XBRLMap(F71,F$88&\".\"&$U$4&\".\"&$U71&\".\"&$U$7,$B$96,$B$97,CONFIGURATION!$B$10,\"BMA\",CONFIGURATION!$B$1,\"bscr\",1000)","v":"Mapped"},{"$f":"XBRLMap(G71,G$88&\".\"&$U$4&\".\"&$U71&\".\"&$U$7,$B$96,$B$97,CONFIGURATION!$B$10,\"BMA\",CONFIGURATION!$B$1,\"bscr\",1000)","v":"Mapped"},{"$f":"XBRLMap(H71,H$88&\".\"&$U$4&\".\"&$U71&\".\"&$U$7,$B$96,$B$97,CONFIGURATION!$B$10,\"BMA\",CONFIGURATION!$B$1,\"bscr\",1000)","v":"Mapped"},null,{"$f":"XBRLMap(J71,J$88&\".\"&$U$4&\".\"&$V71&\".\"&$U$7,$B$96,$B$97,CONFIGURATION!$B$10,\"BMA\",CONFIGURATION!$B$1,\"bscr\",1000)","v":"Mapped"},{"$f":"XBRLMap(K71,K$88&\".\"&$U$4&\".\"&$V71&\".\"&$U$7,$B$96,$B$97,CONFIGURATION!$B$10,\"BMA\",CONFIGURATION!$B$1,\"bscr\",1000)","v":"Mapped"},{"$f":"XBRLMap(L71,L$88&\".\"&$U$4&\".\"&$V71&\".\"&$U$7,$B$96,$B$97,CONFIGURATION!$B$10,\"BMA\",CONFIGURATION!$B$1,\"bscr\",1000)","v":"Mapped"},{"$f":"XBRLMap(M71,M$88&\".\"&$U$4&\".\"&$V71&\".\"&$U$7,$B$96,$B$97,CONFIGURATION!$B$10,\"BMA\",CONFIGURATION!$B$1,\"bscr\",1000)","v":"Mapped"},null,null,null,"IBNRCY2016AY2016",0]
[null,null,{"$f":"XBRLMap(C72,C$88&\".\"&$U$4&\".\"&$U72&\".\"&$U$7,$B$96,$B$97,CONFIGURATION!$B$10,\"BMA\",CONFIGURATION!$B$1,\"bscr\",1000)","v":"Mapped"},{"$f":"XBRLMap(D72,D$88&\".\"&$U$4&\".\"&$U72&\".\"&$U$7,$B$96,$B$97,CONFIGURATION!$B$10,\"BMA\",CONFIGURATION!$B$1,\"bscr\",1000)","v":"Mapped"},{"$f":"XBRLMap(E72,E$88&\".\"&$U$4&\".\"&$U72&\".\"&$U$7,$B$96,$B$97,CONFIGURATION!$B$10,\"BMA\",CONFIGURATION!$B$1,\"bscr\",1000)","v":"Mapped"},{"$f":"XBRLMap(F72,F$88&\".\"&$U$4&\".\"&$U72&\".\"&$U$7,$B$96,$B$97,CONFIGURATION!$B$10,\"BMA\",CONFIGURATION!$B$1,\"bscr\",1000)","v":"Mapped"},{"$f":"XBRLMap(G72,G$88&\".\"&$U$4&\".\"&$U72&\".\"&$U$7,$B$96,$B$97,CONFIGURATION!$B$10,\"BMA\",CONFIGURATION!$B$1,\"bscr\",1000)","v":"Mapped"},{"$f":"XBRLMap(H72,H$88&\".\"&$U$4&\".\"&$U72&\".\"&$U$7,$B$96,$B$97,CONFIGURATION!$B$10,\"BMA\",CONFIGURATION!$B$1,\"bscr\",1000)","v":"Mapped"},null,{"$f":"XBRLMap(J72,J$88&\".\"&$U$4&\".\"&$V72&\".\"&$U$7,$B$96,$B$97,CONFIGURATION!$B$10,\"BMA\",CONFIGURATION!$B$1,\"bscr\",1000)","v":"Mapped"},{"$f":"XBRLMap(K72,K$88&\".\"&$U$4&\".\"&$V72&\".\"&$U$7,$B$96,$B$97,CONFIGURATION!$B$10,\"BMA\",CONFIGURATION!$B$1,\"bscr\",1000)","v":"Mapped"},{"$f":"XBRLMap(L72,L$88&\".\"&$U$4&\".\"&$V72&\".\"&$U$7,$B$96,$B$97,CONFIGURATION!$B$10,\"BMA\",CONFIGURATION!$B$1,\"bscr\",1000)","v":"Mapped"},{"$f":"XBRLMap(M72,M$88&\".\"&$U$4&\".\"&$V72&\".\"&$U$7,$B$96,$B$97,CONFIGURATION!$B$10,\"BMA\",CONFIGURATION!$B$1,\"bscr\",1000)","v":"Mapped"},null,null,null,{"$f":"\"IBNRCY\"&J$10&\"AY\"&B47","v":"IBNRCY2017AYPrior"},{"$f":"J47","v":0}]
[null,null,{"$f":"XBRLMap(C73,C$88&\".\"&$U$4&\".\"&$U73&\".\"&$U$7,$B$96,$B$97,CONFIGURATION!$B$10,\"BMA\",CONFIGURATION!$B$1,\"bscr\",1000)","v":"Mapped"},{"$f":"XBRLMap(D73,D$88&\".\"&$U$4&\".\"&$U73&\".\"&$U$7,$B$96,$B$97,CONFIGURATION!$B$10,\"BMA\",CONFIGURATION!$B$1,\"bscr\",1000)","v":"Mapped"},{"$f":"XBRLMap(E73,E$88&\".\"&$U$4&\".\"&$U73&\".\"&$U$7,$B$96,$B$97,CONFIGURATION!$B$10,\"BMA\",CONFIGURATION!$B$1,\"bscr\",1000)","v":"Mapped"},{"$f":"XBRLMap(F73,F$88&\".\"&$U$4&\".\"&$U73&\".\"&$U$7,$B$96,$B$97,CONFIGURATION!$B$10,\"BMA\",CONFIGURATION!$B$1,\"bscr\",1000)","v":"Mapped"},{"$f":"XBRLMap(G73,G$88&\".\"&$U$4&\".\"&$U73&\".\"&$U$7,$B$96,$B$97,CONFIGURATION!$B$10,\"BMA\",CONFIGURATION!$B$1,\"bscr\",1000)","v":"Mapped"},{"$f":"XBRLMap(H73,H$88&\".\"&$U$4&\".\"&$U73&\".\"&$U$7,$B$96,$B$97,CONFIGURATION!$B$10,\"BMA\",CONFIGURATION!$B$1,\"bscr\",1000)","v":"Mapped"},null,{"$f":"XBRLMap(J73,J$88&\".\"&$U$4&\".\"&$V73&\".\"&$U$7,$B$96,$B$97,CONFIGURATION!$B$10,\"BMA\",CONFIGURATION!$B$1,\"bscr\",1000)","v":"Mapped"},{"$f":"XBRLMap(K73,K$88&\".\"&$U$4&\".\"&$V73&\".\"&$U$7,$B$96,$B$97,CONFIGURATION!$B$10,\"BMA\",CONFIGURATION!$B$1,\"bscr\",1000)","v":"Mapped"},{"$f":"XBRLMap(L73,L$88&\".\"&$U$4&\".\"&$V73&\".\"&$U$7,$B$96,$B$97,CONFIGURATION!$B$10,\"BMA\",CONFIGURATION!$B$1,\"bscr\",1000)","v":"Mapped"},{"$f":"XBRLMap(M73,M$88&\".\"&$U$4&\".\"&$V73&\".\"&$U$7,$B$96,$B$97,CONFIGURATION!$B$10,\"BMA\",CONFIGURATION!$B$1,\"bscr\",1000)","v":"Mapped"},null,null,null,"IBNRCY2017AY2010",0]
[null,null,{"$f":"XBRLMap(C74,C$88&\".\"&$U$4&\".\"&$U74&\".\"&$U$7,$B$96,$B$97,CONFIGURATION!$B$10,\"BMA\",CONFIGURATION!$B$1,\"bscr\",1000)","v":"Mapped"},{"$f":"XBRLMap(D74,D$88&\".\"&$U$4&\".\"&$U74&\".\"&$U$7,$B$96,$B$97,CONFIGURATION!$B$10,\"BMA\",CONFIGURATION!$B$1,\"bscr\",1000)","v":"Mapped"},{"$f":"XBRLMap(E74,E$88&\".\"&$U$4&\".\"&$U74&\".\"&$U$7,$B$96,$B$97,CONFIGURATION!$B$10,\"BMA\",CONFIGURATION!$B$1,\"bscr\",1000)","v":"Mapped"},{"$f":"XBRLMap(F74,F$88&\".\"&$U$4&\".\"&$U74&\".\"&$U$7,$B$96,$B$97,CONFIGURATION!$B$10,\"BMA\",CONFIGURATION!$B$1,\"bscr\",1000)","v":"Mapped"},{"$f":"XBRLMap(G74,G$88&\".\"&$U$4&\".\"&$U74&\".\"&$U$7,$B$96,$B$97,CONFIGURATION!$B$10,\"BMA\",CONFIGURATION!$B$1,\"bscr\",1000)","v":"Mapped"},{"$f":"XBRLMap(H74,H$88&\".\"&$U$4&\".\"&$U74&\".\"&$U$7,$B$96,$B$97,CONFIGURATION!$B$10,\"BMA\",CONFIGURATION!$B$1,\"bscr\",1000)","v":"Mapped"},null,{"$f":"XBRLMap(J74,J$88&\".\"&$U$4&\".\"&$V74&\".\"&$U$7,$B$96,$B$97,CONFIGURATION!$B$10,\"BMA\",CONFIGURATION!$B$1,\"bscr\",1000)","v":"Mapped"},{"$f":"XBRLMap(K74,K$88&\".\"&$U$4&\".\"&$V74&\".\"&$U$7,$B$96,$B$97,CONFIGURATION!$B$10,\"BMA\",CONFIGURATION!$B$1,\"bscr\",1000)","v":"Mapped"},{"$f":"XBRLMap(L74,L$88&\".\"&$U$4&\".\"&$V74&\".\"&$U$7,$B$96,$B$97,CONFIGURATION!$B$10,\"BMA\",CONFIGURATION!$B$1,\"bscr\",1000)","v":"Mapped"},{"$f":"XBRLMap(M74,M$88&\".\"&$U$4&\".\"&$V74&\".\"&$U$7,$B$96,$B$97,CONFIGURATION!$B$10,\"BMA\",CONFIGURATION!$B$1,\"bscr\",1000)","v":"Mapped"},null,null,null,"IBNRCY2017AY2011",0]
[null,null,{"$f":"XBRLMap(C75,C$88&\".\"&$U$4&\".\"&$U75&\".\"&$U$7,$B$96,$B$97,CONFIGURATION!$B$10,\"BMA\",CONFIGURATION!$B$1,\"bscr\",1000)","v":"Mapped"},{"$f":"XBRLMap(D75,D$88&\".\"&$U$4&\".\"&$U75&\".\"&$U$7,$B$96,$B$97,CONFIGURATION!$B$10,\"BMA\",CONFIGURATION!$B$1,\"bscr\",1000)","v":"Mapped"},{"$f":"XBRLMap(E75,E$88&\".\"&$U$4&\".\"&$U75&\".\"&$U$7,$B$96,$B$97,CONFIGURATION!$B$10,\"BMA\",CONFIGURATION!$B$1,\"bscr\",1000)","v":"Mapped"},{"$f":"XBRLMap(F75,F$88&\".\"&$U$4&\".\"&$U75&\".\"&$U$7,$B$96,$B$97,CONFIGURATION!$B$10,\"BMA\",CONFIGURATION!$B$1,\"bscr\",1000)","v":"Mapped"},{"$f":"XBRLMap(G75,G$88&\".\"&$U$4&\".\"&$U75&\".\"&$U$7,$B$96,$B$97,CONFIGURATION!$B$10,\"BMA\",CONFIGURATION!$B$1,\"bscr\",1000)","v":"Mapped"},{"$f":"XBRLMap(H75,H$88&\".\"&$U$4&\".\"&$U75&\".\"&$U$7,$B$96,$B$97,CONFIGURATION!$B$10,\"BMA\",CONFIGURATION!$B$1,\"bscr\",1000)","v":"Mapped"},null,{"$f":"XBRLMap(J75,J$88&\".\"&$U$4&\".\"&$V75&\".\"&$U$7,$B$96,$B$97,CONFIGURATION!$B$10,\"BMA\",CONFIGURATION!$B$1,\"bscr\",1000)","v":"Mapped"},{"$f":"XBRLMap(K75,K$88&\".\"&$U$4&\".\"&$V75&\".\"&$U$7,$B$96,$B$97,CONFIGURATION!$B$10,\"BMA\",CONFIGURATION!$B$1,\"bscr\",1000)","v":"Mapped"},{"$f":"XBRLMap(L75,L$88&\".\"&$U$4&\".\"&$V75&\".\"&$U$7,$B$96,$B$97,CONFIGURATION!$B$10,\"BMA\",CONFIGURATION!$B$1,\"bscr\",1000)","v":"Mapped"},{"$f":"XBRLMap(M75,M$88&\".\"&$U$4&\".\"&$V75&\".\"&$U$7,$B$96,$B$97,CONFIGURATION!$B$10,\"BMA\",CONFIGURATION!$B$1,\"bscr\",1000)","v":"Mapped"},null,null,null,"IBNRCY2017AY2012",0]
[null,null,{"$f":"XBRLMap(C76,C$88&\".\"&$U$4&\".\"&$U76&\".\"&$U$7,$B$96,$B$97,CONFIGURATION!$B$10,\"BMA\",CONFIGURATION!$B$1,\"bscr\",1000)","v":"Mapped"},{"$f":"XBRLMap(D76,D$88&\".\"&$U$4&\".\"&$U76&\".\"&$U$7,$B$96,$B$97,CONFIGURATION!$B$10,\"BMA\",CONFIGURATION!$B$1,\"bscr\",1000)","v":"Mapped"},{"$f":"XBRLMap(E76,E$88&\".\"&$U$4&\".\"&$U76&\".\"&$U$7,$B$96,$B$97,CONFIGURATION!$B$10,\"BMA\",CONFIGURATION!$B$1,\"bscr\",1000)","v":"Mapped"},{"$f":"XBRLMap(F76,F$88&\".\"&$U$4&\".\"&$U76&\".\"&$U$7,$B$96,$B$97,CONFIGURATION!$B$10,\"BMA\",CONFIGURATION!$B$1,\"bscr\",1000)","v":"Mapped"},{"$f":"XBRLMap(G76,G$88&\".\"&$U$4&\".\"&$U76&\".\"&$U$7,$B$96,$B$97,CONFIGURATION!$B$10,\"BMA\",CONFIGURATION!$B$1,\"bscr\",1000)","v":"Mapped"},{"$f":"XBRLMap(H76,H$88&\".\"&$U$4&\".\"&$U76&\".\"&$U$7,$B$96,$B$97,CONFIGURATION!$B$10,\"BMA\",CONFIGURATION!$B$1,\"bscr\",1000)","v":"Mapped"},null,{"$f":"XBRLMap(J76,J$88&\".\"&$U$4&\".\"&$V76&\".\"&$U$7,$B$96,$B$97,CONFIGURATION!$B$10,\"BMA\",CONFIGURATION!$B$1,\"bscr\",1000)","v":"Mapped"},{"$f":"XBRLMap(K76,K$88&\".\"&$U$4&\".\"&$V76&\".\"&$U$7,$B$96,$B$97,CONFIGURATION!$B$10,\"BMA\",CONFIGURATION!$B$1,\"bscr\",1000)","v":"Mapped"},{"$f":"XBRLMap(L76,L$88&\".\"&$U$4&\".\"&$V76&\".\"&$U$7,$B$96,$B$97,CONFIGURATION!$B$10,\"BMA\",CONFIGURATION!$B$1,\"bscr\",1000)","v":"Mapped"},{"$f":"XBRLMap(M76,M$88&\".\"&$U$4&\".\"&$V76&\".\"&$U$7,$B$96,$B$97,CONFIGURATION!$B$10,\"BMA\",CONFIGURATION!$B$1,\"bscr\",1000)","v":"Mapped"},null,null,null,"IBNRCY2017AY2013",0]
[null,null,{"$f":"XBRLMap(C77,C$88&\".\"&$U$4&\".\"&$U77&\".\"&$U$7,$B$96,$B$97,CONFIGURATION!$B$10,\"BMA\",CONFIGURATION!$B$1,\"bscr\",1000)","v":"Mapped"},{"$f":"XBRLMap(D77,D$88&\".\"&$U$4&\".\"&$U77&\".\"&$U$7,$B$96,$B$97,CONFIGURATION!$B$10,\"BMA\",CONFIGURATION!$B$1,\"bscr\",1000)","v":"Mapped"},{"$f":"XBRLMap(E77,E$88&\".\"&$U$4&\".\"&$U77&\".\"&$U$7,$B$96,$B$97,CONFIGURATION!$B$10,\"BMA\",CONFIGURATION!$B$1,\"bscr\",1000)","v":"Mapped"},{"$f":"XBRLMap(F77,F$88&\".\"&$U$4&\".\"&$U77&\".\"&$U$7,$B$96,$B$97,CONFIGURATION!$B$10,\"BMA\",CONFIGURATION!$B$1,\"bscr\",1000)","v":"Mapped"},{"$f":"XBRLMap(G77,G$88&\".\"&$U$4&\".\"&$U77&\".\"&$U$7,$B$96,$B$97,CONFIGURATION!$B$10,\"BMA\",CONFIGURATION!$B$1,\"bscr\",1000)","v":"Mapped"},{"$f":"XBRLMap(H77,H$88&\".\"&$U$4&\".\"&$U77&\".\"&$U$7,$B$96,$B$97,CONFIGURATION!$B$10,\"BMA\",CONFIGURATION!$B$1,\"bscr\",1000)","v":"Mapped"},null,{"$f":"XBRLMap(J77,J$88&\".\"&$U$4&\".\"&$V77&\".\"&$U$7,$B$96,$B$97,CONFIGURATION!$B$10,\"BMA\",CONFIGURATION!$B$1,\"bscr\",1000)","v":"Mapped"},{"$f":"XBRLMap(K77,K$88&\".\"&$U$4&\".\"&$V77&\".\"&$U$7,$B$96,$B$97,CONFIGURATION!$B$10,\"BMA\",CONFIGURATION!$B$1,\"bscr\",1000)","v":"Mapped"},{"$f":"XBRLMap(L77,L$88&\".\"&$U$4&\".\"&$V77&\".\"&$U$7,$B$96,$B$97,CONFIGURATION!$B$10,\"BMA\",CONFIGURATION!$B$1,\"bscr\",1000)","v":"Mapped"},{"$f":"XBRLMap(M77,M$88&\".\"&$U$4&\".\"&$V77&\".\"&$U$7,$B$96,$B$97,CONFIGURATION!$B$10,\"BMA\",CONFIGURATION!$B$1,\"bscr\",1000)","v":"Mapped"},null,null,null,"IBNRCY2017AY2014",0]
[null,null,null,null,null,null,null,null,null,null,null,null,null,null,null,null,"IBNRCY2017AY2015",0]
[null,null,null,null,null,null,null,null,null,null,null,null,null,null,null,null,"IBNRCY2017AY2016",0]
[null,null,null,null,null,null,null,null,null,null,null,null,null,null,null,null,"IBNRCY2017AY2017",0]
[null,null,null,null,null,null,null,null,null,null,null,null,null,null,null,null,{"$f":"\"IBNRCY\"&K$10&\"AY\"&B47","v":"IBNRCY2018AYPrior"},{"$f":"K47","v":0}]
[null,null,null,null,null,null,null,null,null,null,null,null,null,null,null,null,"IBNRCY2018AY2010",0]
[null,null,null,null,null,null,null,null,null,null,null,null,null,null,null,null,"IBNRCY2018AY2011",0]
[null,null,null,null,null,null,null,null,null,null,null,null,null,null,null,null,"IBNRCY2018AY2012",0]
[null,null,null,null,null,null,null,null,null,null,null,null,null,null,null,null,"IBNRCY2018AY2013",0]
[null,null,null,null,null,null,null,null,null,null,null,null,null,null,null,null,"IBNRCY2018AY2014",0]
[null,null,null,null,null,null,null,null,null,null,null,null,null,null,null,null,"IBNRCY2018AY2015",0]
[null,null,null,null,null,null,null,null,null,null,null,null,null,null,null,null,"IBNRCY2018AY2016",0]
[null,null,null,null,null,null,null,null,null,null,null,null,null,null,null,null,"IBNRCY2018AY2017",0]
[null,null,null,null,null,null,null,null,null,null,null,null,null,null,null,null,"IBNRCY2018AY2018",0]
[null,null,null,null,null,null,null,null,null,null,null,null,null,null,null,null,{"$f":"\"IBNRCY\"&L$10&\"AY\"&B47","v":"IBNRCY2019AYPrior"},{"$f":"L47","v":0}]
[null,null,null,null,null,null,null,null,null,null,null,null,null,null,null,null,"IBNRCY2019AY2010",0]
[null,null,null,null,null,null,null,null,null,null,null,null,null,null,null,null,"IBNRCY2019AY2011",0]
[null,null,null,null,null,null,null,null,null,null,null,null,null,null,null,null,"IBNRCY2019AY2012",0]
[null,null,null,null,null,null,null,null,null,null,null,null,null,null,null,null,"IBNRCY2019AY2013",0]
[null,null,null,null,null,null,null,null,null,null,null,null,null,null,null,null,"IBNRCY2019AY2014",0]
[null,null,null,null,null,null,null,null,null,null,null,null,null,null,null,null,"IBNRCY2019AY2015",0]
[null,null,null,null,null,null,null,null,null,null,null,null,null,null,null,null,"IBNRCY2019AY2016",0]
[null,null,null,null,null,null,null,null,null,null,null,null,null,null,null,null,"IBNRCY2019AY2017",0]
[null,null,null,null,null,null,null,null,null,null,null,null,null,null,null,null,"IBNRCY2019AY2018",0]
[null,null,null,null,null,null,null,null,null,null,null,null,null,null,null,null,"IBNRCY2019AY2019",0]
[null,null,null,null,null,null,null,null,null,null,null,null,null,null,null,null,{"$f":"\"GrossWP\"&$B68","v":"GrossWP2010"},{"$f":"C68","v":0}]
[null,null,null,null,null,null,null,null,null,null,null,null,null,null,null,null,"GrossWP2011",0]
[null,null,null,null,null,null,null,null,null,null,null,null,null,null,null,null,"GrossWP2012",0]
[null,null,null,null,null,null,null,null,null,null,null,null,null,null,null,null,"GrossWP2013",0]
[null,null,null,null,null,null,null,null,null,null,null,null,null,null,null,null,"GrossWP2014",0]
[null,null,null,null,null,null,null,null,null,null,null,null,null,null,null,null,"GrossWP2015",0]
[null,null,null,null,null,null,null,null,null,null,null,null,null,null,null,null,"GrossWP2016",0]
[null,null,null,null,null,null,null,null,null,null,null,null,null,null,null,null,"GrossWP2017",0]
[null,null,null,null,null,null,null,null,null,null,null,null,null,null,null,null,"GrossWP2018",0]
[null,null,null,null,null,null,null,null,null,null,null,null,null,null,null,null,"GrossWP2019",0]
[null,null,null,null,null,null,null,null,null,null,null,null,null,null,null,null,{"$f":"\"GrossEP\"&$B68","v":"GrossEP2010"},{"$f":"D68","v":0}]
[null,null,null,null,null,null,null,null,null,null,null,null,null,null,null,null,"GrossEP2011",0]
[null,null,null,null,null,null,null,null,null,null,null,null,null,null,null,null,"GrossEP2012",0]
[null,null,null,null,null,null,null,null,null,null,null,null,null,null,null,null,"GrossEP2013",0]
[null,null,null,null,null,null,null,null,null,null,null,null,null,null,null,null,"GrossEP2014",0]
[null,null,null,null,null,null,null,null,null,null,null,null,null,null,null,null,"GrossEP2015",0]
[null,null,null,null,null,null,null,null,null,null,null,null,null,null,null,null,"GrossEP2016",0]
[null,null,null,null,null,null,null,null,null,null,null,null,null,null,null,null,"GrossEP2017",0]
[null,null,null,null,null,null,null,null,null,null,null,null,null,null,null,null,"GrossEP2018",0]
[null,null,null,null,null,null,null,null,null,null,null,null,null,null,null,null,"GrossEP2019",0]
[null,null,null,null,null,null,null,null,null,null,null,null,null,null,null,null,{"$f":"\"NetWP\"&$B68","v":"NetWP2010"},{"$f":"E68","v":0}]
[null,null,null,null,null,null,null,null,null,null,null,null,null,null,null,null,"NetWP2011",0]
[null,null,null,null,null,null,null,null,null,null,null,null,null,null,null,null,"NetWP2012",0]
[null,null,null,null,null,null,null,null,null,null,null,null,null,null,null,null,"NetWP2013",0]
[null,null,null,null,null,null,null,null,null,null,null,null,null,null,null,null,"NetWP2014",0]
[null,null,null,null,null,null,null,null,null,null,null,null,null,null,null,null,"NetWP2015",0]
[null,null,null,null,null,null,null,null,null,null,null,null,null,null,null,null,"NetWP2016",0]
[null,null,null,null,null,null,null,null,null,null,null,null,null,null,null,null,"NetWP2017",0]
[null,null,null,null,null,null,null,null,null,null,null,null,null,null,null,null,"NetWP2018",0]
[null,null,null,null,null,null,null,null,null,null,null,null,null,null,null,null,"NetWP2019",0]
[null,null,null,null,null,null,null,null,null,null,null,null,null,null,null,null,{"$f":"\"NetEP\"&$B68","v":"NetEP2010"},{"$f":"F68","v":0}]
[null,null,null,null,null,null,null,null,null,null,null,null,null,null,null,null,"NetEP2011",0]
[null,null,null,null,null,null,null,null,null,null,null,null,null,null,null,null,"NetEP2012",0]
[null,null,null,null,null,null,null,null,null,null,null,null,null,null,null,null,"NetEP2013",0]
[null,null,null,null,null,null,null,null,null,null,null,null,null,null,null,null,"NetEP2014",0]
[null,null,null,null,null,null,null,null,null,null,null,null,null,null,null,null,"NetEP2015",0]
[null,null,null,null,null,null,null,null,null,null,null,null,null,null,null,null,"NetEP2016",0]
[null,null,null,null,null,null,null,null,null,null,null,null,null,null,null,null,"NetEP2017",0]
[null,null,null,null,null,null,null,null,null,null,null,null,null,null,null,null,"NetEP2018",0]
[null,null,null,null,null,null,null,null,null,null,null,null,null,null,null,null,"NetEP2019",0]
[null,null,null,null,null,null,null,null,null,null,null,null,null,null,null,null,{"$f":"\"NetAOEPaid\"&$B67","v":"NetAOEPaidPrior"},{"$f":"G67","v":0}]
[null,null,null,null,null,null,null,null,null,null,null,null,null,null,null,null,"NetAOEPaid2010",0]
[null,null,null,null,null,null,null,null,null,null,null,null,null,null,null,null,"NetAOEPaid2011",0]
[null,null,null,null,null,null,null,null,null,null,null,null,null,null,null,null,"NetAOEPaid2012",0]
[null,null,null,null,null,null,null,null,null,null,null,null,null,null,null,null,"NetAOEPaid2013",0]
[null,null,null,null,null,null,null,null,null,null,null,null,null,null,null,null,"NetAOEPaid2014",0]
[null,null,null,null,null,null,null,null,null,null,null,null,null,null,null,null,"NetAOEPaid2015",0]
[null,null,null,null,null,null,null,null,null,null,null,null,null,null,null,null,"NetAOEPaid2016",0]
[null,null,null,null,null,null,null,null,null,null,null,null,null,null,null,null,"NetAOEPaid2017",0]
[null,null,null,null,null,null,null,null,null,null,null,null,null,null,null,null,"NetAOEPaid2018",0]
[null,null,null,null,null,null,null,null,null,null,null,null,null,null,null,null,"NetAOEPaid2019",0]
[null,null,null,null,null,null,null,null,null,null,null,null,null,null,null,null,{"$f":"\"NetAOEIncurred\"&$B67","v":"NetAOEIncurredPrior"},{"$f":"H67","v":0}]
[null,null,null,null,null,null,null,null,null,null,null,null,null,null,null,null,"NetAOEIncurred2010",0]
[null,null,null,null,null,null,null,null,null,null,null,null,null,null,null,null,"NetAOEIncurred2011",0]
[null,null,null,null,null,null,null,null,null,null,null,null,null,null,null,null,"NetAOEIncurred2012",0]
[null,null,null,null,null,null,null,null,null,null,null,null,null,null,null,null,"NetAOEIncurred2013",0]
[null,null,null,null,null,null,null,null,null,null,null,null,null,null,null,null,"NetAOEIncurred2014",0]
[null,null,null,null,null,null,null,null,null,null,null,null,null,null,null,null,"NetAOEIncurred2015",0]
[null,null,null,null,null,null,null,null,null,null,null,null,null,null,null,null,"NetAOEIncurred2016",0]
[null,null,null,null,null,null,null,null,null,null,null,null,null,null,null,null,"NetAOEIncurred2017",0]
[null,null,null,null,null,null,null,null,null,null,null,null,null,null,null,null,"NetAOEIncurred2018",0]
[null,null,null,null,null,null,null,null,null,null,null,null,null,null,null,null,"NetAOEIncurred2019",0]
[null,null,null,null,null,null,null,null,null,null,null,null,null,null,null,null,{"$f":"\"Commission\"&$B67","v":"CommissionPrior"},{"$f":"J67","v":0}]
[null,null,null,null,null,null,null,null,null,null,null,null,null,null,null,null,"Commission2010",0]
[null,null,null,null,null,null,null,null,null,null,null,null,null,null,null,null,"Commission2011",0]
[null,null,null,null,null,null,null,null,null,null,null,null,null,null,null,null,"Commission2012",0]
[null,null,null,null,null,null,null,null,null,null,null,null,null,null,null,null,"Commission2013",0]
[null,null,null,null,null,null,null,null,null,null,null,null,null,null,null,null,"Commission2014",0]
[null,null,null,null,null,null,null,null,null,null,null,null,null,null,null,null,"Commission2015",0]
[null,null,null,null,null,null,null,null,null,null,null,null,null,null,null,null,"Commission2016",0]
[null,null,null,null,null,null,null,null,null,null,null,null,null,null,null,null,"Commission2017",0]
[null,null,null,null,null,null,null,null,null,null,null,null,null,null,null,null,"Commission2018",0]
[null,null,null,null,null,null,null,null,null,null,null,null,null,null,null,null,"Commission2019",0]
[null,null,null,null,null,null,null,null,null,null,null,null,null,null,null,null,{"$f":"\"AcqExp\"&$B67","v":"AcqExpPrior"},{"$f":"K67","v":0}]
[null,null,null,null,null,null,null,null,null,null,null,null,null,null,null,null,"AcqExp2010",0]
[null,null,null,null,null,null,null,null,null,null,null,null,null,null,null,null,"AcqExp2011",0]
[null,null,null,null,null,null,null,null,null,null,null,null,null,null,null,null,"AcqExp2012",0]
[null,null,null,null,null,null,null,null,null,null,null,null,null,null,null,null,"AcqExp2013",0]
[null,null,null,null,null,null,null,null,null,null,null,null,null,null,null,null,"AcqExp2014",0]
[null,null,null,null,null,null,null,null,null,null,null,null,null,null,null,null,"AcqExp2015",0]
[null,null,null,null,null,null,null,null,null,null,null,null,null,null,null,null,"AcqExp2016",0]
[null,null,null,null,null,null,null,null,null,null,null,null,null,null,null,null,"AcqExp2017",0]
[null,null,null,null,null,null,null,null,null,null,null,null,null,null,null,null,"AcqExp2018",0]
[null,null,null,null,null,null,null,null,null,null,null,null,null,null,null,null,"AcqExp2019",0]
[null,null,null,null,null,null,null,null,null,null,null,null,null,null,null,null,{"$f":"\"Taxes\"&$B67","v":"TaxesPrior"},{"$f":"L67","v":0}]
[null,null,null,null,null,null,null,null,null,null,null,null,null,null,null,null,"Taxes2010",0]
[null,null,null,null,null,null,null,null,null,null,null,null,null,null,null,null,"Taxes2011",0]
[null,null,null,null,null,null,null,null,null,null,null,null,null,null,null,null,"Taxes2012",0]
[null,null,null,null,null,null,null,null,null,null,null,null,null,null,null,null,"Taxes2013",0]
[null,null,null,null,null,null,null,null,null,null,null,null,null,null,null,null,"Taxes2014",0]
[null,null,null,null,null,null,null,null,null,null,null,null,null,null,null,null,"Taxes2015",0]
[null,null,null,null,null,null,null,null,null,null,null,null,null,null,null,null,"Taxes2016",0]
[null,null,null,null,null,null,null,null,null,null,null,null,null,null,null,null,"Taxes2017",0]
[null,null,null,null,null,null,null,null,null,null,null,null,null,null,null,null,"Taxes2018",0]
[null,null,null,null,null,null,null,null,null,null,null,null,null,null,null,null,"Taxes2019",0]
[null,null,null,null,null,null,null,null,null,null,null,null,null,null,null,null,{"$f":"\"GeneralOver\"&$B67","v":"GeneralOverPrior"},{"$f":"M67","v":0}]
[null,null,null,null,null,null,null,null,null,null,null,null,null,null,null,null,"GeneralOver2010",0]
[null,null,null,null,null,null,null,null,null,null,null,null,null,null,null,null,"GeneralOver2011",0]
[null,null,null,null,null,null,null,null,null,null,null,null,null,null,null,null,"GeneralOver2012",0]
[null,null,null,null,null,null,null,null,null,null,null,null,null,null,null,null,"GeneralOver2013",0]
[null,null,null,null,null,null,null,null,null,null,null,null,null,null,null,null,"GeneralOver2014",0]
[null,null,null,null,null,null,null,null,null,null,null,null,null,null,null,null,"GeneralOver2015",0]
[null,null,null,null,null,null,null,null,null,null,null,null,null,null,null,null,"GeneralOver2016",0]
[null,null,null,null,null,null,null,null,null,null,null,null,null,null,null,null,"GeneralOver2017",0]
[null,null,null,null,null,null,null,null,null,null,null,null,null,null,null,null,"GeneralOver2018",0]
[null,null,null,null,null,null,null,null,null,null,null,null,null,null,null,null,"GeneralOver2019",0]

{"sheet":"Sch XI(a)(v)","index":68,"n_rows":301,"n_cols":48,"rows_kept":301,"cut":false,"hidden":false,"merged":[[80,1,82,12],[5,2,5,11],[23,2,23,11],[41,2,41,11],[0,13,0,14],[2,13,2,14],[2,1,2,2],[59,6,59,7],[60,6,60,7]]}
[null,"SCHEDULE OF LOSS TRIANGLES (LINE 5 - CASUALTY NON-PROPORTIONAL)",null,null,null,null,null,null,null,null,null,null,null,{"$f":"HYPERLINK(\"#'Index'!A1\",\"Return to Index\")","v":"Return to Index"}]
[null,{"$f":"'Company Information'!C7","v":"Enter Company Name"},null,null,null,null,null,null,null,null,null,null,null,null,null,null,null,null,null,null,null,null,null,null,null,null,null,null,null,null,null,null,null,null,null,"bma_Line5CasualtyNonproportionalMember"]
[null,{"$f":"'Company Information'!C3","v":"2019-12-31"},null,null,null,null,null,null,null,null,null,null,null,"SCHEDULE XI(a)(v)"]
[null,{"$f":"\"expressed in\"& IF(1000>1,\" ['\"&MID(1000,2,LEN(1000))&\"s]\",\"\")&\" \"&'Form 1EBS'!$C$4","v":"expressed in ['000s] United States Dollars"},null,null,null,null,null,null,null,null,null,null,null,null,null,null,null,null,null,null,"brrt_LineOfBusinessAxis_brrt_CasualtyMember"]
[]
[null,"Accounting Basis: ","INCURRED (ESTIMATED ULTIMATE) NET LOSSES AND ALLOCATED LOSS ADJUSTMENT EXPENSES REPORTED AT YEAR END ($000)",null,null,null,null,null,null,null,null,null,11,12,13,null,"AcctBasis",{"$f":"B7","v":"Accident Year"},null,null,{"$f":"IF(B7=\"Accident Year\",\"brrt_AccountingBasisAxis_brrt_AccidentYearMember\",\"brrt_AccountingBasisAxis_brrt_AccountingYearMember\")","v":"brrt_AccountingBasisAxis_brrt_AccidentYearMember"}]
[null,"Accident Year",null,null,null,null,null,null,null,null,null,null,"Ultimate","Development","Development",null,{"$f":"\"UltCY\"&C$10&\"AY\"&B11","v":"UltCY2010AYPrior"},{"$f":"C11","v":0},{"$f":"\"CATUltCY\"&L$10&\"AY\"&B11","v":"CATUltCY2019AYPrior"},{"$f":"M11","v":0},"brrt_TypeOfContractAxis_brrt_NonProportionalMember",null,null,null,null,null,null,null,null,null,null,null,null,null,null,"bma_AcctBasis"]
[null,"Years in Which",1,2,3,4,5,6,7,8,9,10,"Catastrophe",null,null,null,{"$f":"\"UltCY\"&C$10&\"AY\"&B12","v":"UltCY2010AY2010"},{"$f":"C12","v":0},"CATUltCY2019AY2010",0]
[null,"Losses Were",null,null,null,null,null,null,null,null,null,null,"Losses","One Year","Two Year",null,{"$f":"\"UltCY\"&D$10&\"AY\"&B11","v":"UltCY2011AYPrior"},{"$f":"D11","v":0},"CATUltCY2019AY2011",0]
[null,"Incurred",{"$f":"D10-1","v":2010},2011,2012,2013,2014,2015,2016,2017,2018,{"$f":"YEAR('Company Information'!C3)","v":2019},{"$f":"L10","v":2019},"Development","Development",null,{"$f":"\"UltCY\"&D$10&\"AY\"&B12","v":"UltCY2011AY2010"},{"$f":"D12","v":0},"CATUltCY2019AY2012",0]
["L1","Prior",{"$f":"Import!I8678","v":0},{"$f":"Import!I8680","v":0},{"$f":"Import!I8683","v":0},{"$f":"Import!I8687","v":0},{"$f":"Import!I8692","v":0},{"$f":"Import!I8698","v":0},{"$f":"Import!I8705","v":0},{"$f":"Import!I8713","v":0},{"$f":"Import!I8722","v":0},{"$f":"Import!I8732","v":0},{"$f":"Import!I8743","v":0},{"$f":"K11-L11","v":0},{"$f":"J11-L11","v":0},null,{"$f":"\"UltCY\"&D$10&\"AY\"&B13","v":"UltCY2011AY2011"},{"$f":"D13","v":0},"CATUltCY2019AY2013",0,"brrt_LossIncurredYearAxis_brrt_PriorMember",null,null,null,null,null,null,null,null,null,null,null,null,null,null,{"$f":"\"bma_\"&\"UltCY\"&P$10&\"AY\"&$B11","v":"bma_UltCYAYPrior"},"bma_UltCYUltCY2011AY2010AYPrior","bma_UltCY0AYPrior",{"$f":"\"bma_\"&\"UltCY\"&S$10&\"AY\"&$B11","v":"bma_UltCYCATUltCY2019AY2012AYPrior"},{"$f":"\"bma_\"&\"UltCY\"&T$10&\"AY\"&$B11","v":"bma_UltCY0AYPrior"},{"$f":"\"bma_\"&\"UltCY\"&U$10&\"AY\"&$B11","v":"bma_UltCYAYPrior"},{"$f":"\"bma_\"&\"UltCY\"&V$10&\"AY\"&$B11","v":"bma_UltCYAYPrior"},{"$f":"\"bma_\"&\"UltCY\"&W$10&\"AY\"&$B11","v":"bma_UltCYAYPrior"},{"$f":"\"bma_\"&\"UltCY\"&X$10&\"AY\"&$B11","v":"bma_UltCYAYPrior"},{"$f":"\"bma_\"&\"UltCY\"&Y$10&\"AY\"&$B11","v":"bma_UltCYAYPrior"},{"$f":"\"bma_\"&\"CATUltCY\"&Y$10&\"AY\"&$B11","v":"bma_CATUltCYAYPrior"},{"$f":"\"bma_\"&\"UltCY\"&\"OneYearDevelopment\"&\"AY\"&$B11","v":"bma_UltCYOneYearDevelopmentAYPrior"},{"$f":"\"bma_\"&\"UltCY\"&\"TwoYearDevelopment\"&\"AY\"&$B11","v":"bma_UltCYTwoYearDevelopmentAYPrior"}]
["L2",{"$f":"B13-1","v":2010},{"$f":"Import!I8679","v":0},{"$f":"Import!I8681","v":0},{"$f":"Import!I8684","v":0},{"$f":"Import!I8688","v":0},{"$f":"Import!I8693","v":0},{"$f":"Import!I8699","v":0},{"$f":"Import!I8706","v":0},{"$f":"Import!I8714","v":0},{"$f":"Import!I8723","v":0},{"$f":"Import!I8733","v":0},{"$f":"Import!I8744","v":0},0,0,null,{"$f":"\"UltCY\"&E$10&\"AY\"&B11","v":"UltCY2012AYPrior"},{"$f":"E11","v":0},"CATUltCY2019AY2014",0,"brrt_LossIncurredYearAxis_brrt_XNMinus9Member",null,null,null,null,null,null,null,null,null,null,null,null,null,null,"bma_UltCYAY2010","bma_UltCYUltCY2011AY2010AY2010","bma_UltCY0AY2010",{"$f":"\"bma_\"&\"UltCY\"&S$10&\"AY\"&$B12","v":"bma_UltCYCATUltCY2019AY2012AY2010"},"bma_UltCY0AY2010","bma_UltCYAY2010","bma_UltCYAY2010","bma_UltCYAY2010","bma_UltCYAY2010","bma_UltCYAY2010",{"$f":"\"bma_\"&\"CATUltCY\"&Y$10&\"AY\"&$B12","v":"bma_CATUltCYAY2010"},{"$f":"\"bma_\"&\"UltCY\"&\"OneYearDevelopment\"&\"AY\"&$B12","v":"bma_UltCYOneYearDevelopmentAY2010"},{"$f":"\"bma_\"&\"UltCY\"&\"TwoYearDevelopment\"&\"AY\"&$B12","v":"bma_UltCYTwoYearDevelopmentAY2010"}]
["L3",2011,"XXX",{"$f":"Import!I8682","v":0},{"$f":"Import!I8685","v":0},{"$f":"Import!I8689","v":0},{"$f":"Import!I8694","v":0},{"$f":"Import!I8700","v":0},{"$f":"Import!I8707","v":0},{"$f":"Import!I8715","v":0},{"$f":"Import!I8724","v":0},{"$f":"Import!I8734","v":0},{"$f":"Import!I8745","v":0},0,0,null,{"$f":"\"UltCY\"&E$10&\"AY\"&B12","v":"UltCY2012AY2010"},{"$f":"E12","v":0},"CATUltCY2019AY2015",0,"brrt_LossIncurredYearAxis_brrt_XNMinus8Member",null,null,null,null,null,null,null,null,null,null,null,null,null,null,null,{"$f":"\"bma_\"&\"UltCY\"&Q$10&\"AY\"&$B13","v":"bma_UltCYUltCY2011AY2010AY2011"},{"$f":"\"bma_\"&\"UltCY\"&R$10&\"AY\"&$B13","v":"bma_UltCY0AY2011"},{"$f":"\"bma_\"&\"UltCY\"&S$10&\"AY\"&$B13","v":"bma_UltCYCATUltCY2019AY2012AY2011"},"bma_UltCY0AY2011","bma_UltCYAY2011","bma_UltCYAY2011","bma_UltCYAY2011","bma_UltCYAY2011","bma_UltCYAY2011","bma_CATUltCYAY2011","bma_UltCYOneYearDevelopmentAY2011","bma_UltCYTwoYearDevelopmentAY2011"]
["L4",2012,"XXX","XXX",{"$f":"Import!I8686","v":0},{"$f":"Import!I8690","v":0},{"$f":"Import!I8695","v":0},{"$f":"Import!I8701","v":0},{"$f":"Import!I8708","v":0},{"$f":"Import!I8716","v":0},{"$f":"Import!I8725","v":0},{"$f":"Import!I8735","v":0},{"$f":"Import!I8746","v":0},0,0,null,{"$f":"\"UltCY\"&E$10&\"AY\"&B13","v":"UltCY2012AY2011"},{"$f":"E13","v":0},"CATUltCY2019AY2016",0,"brrt_LossIncurredYearAxis_brrt_XNMinus7Member",null,null,null,null,null,null,null,null,null,null,null,null,null,null,null,null,{"$f":"\"bma_\"&\"UltCY\"&R$10&\"AY\"&$B14","v":"bma_UltCY0AY2012"},{"$f":"\"bma_\"&\"UltCY\"&S$10&\"AY\"&$B14","v":"bma_UltCYCATUltCY2019AY2012AY2012"},"bma_UltCY0AY2012","bma_UltCYAY2012","bma_UltCYAY2012","bma_UltCYAY2012","bma_UltCYAY2012","bma_UltCYAY2012","bma_CATUltCYAY2012","bma_UltCYOneYearDevelopmentAY2012","bma_UltCYTwoYearDevelopmentAY2012"]
["L5",2013,"XXX","XXX","XXX",{"$f":"Import!I8691","v":0},{"$f":"Import!I8696","v":0},{"$f":"Import!I8702","v":0},{"$f":"Import!I8709","v":0},{"$f":"Import!I8717","v":0},{"$f":"Import!I8726","v":0},{"$f":"Import!I8736","v":0},{"$f":"Import!I8747","v":0},0,0,null,{"$f":"\"UltCY\"&E$10&\"AY\"&B14","v":"UltCY2012AY2012"},{"$f":"E14","v":0},"CATUltCY2019AY2017",0,"brrt_LossIncurredYearAxis_brrt_XNMinus6Member",null,null,null,null,null,null,null,null,null,null,null,null,null,null,null,null,null,{"$f":"\"bma_\"&\"UltCY\"&S$10&\"AY\"&$B15","v":"bma_UltCYCATUltCY2019AY2012AY2013"},"bma_UltCY0AY2013","bma_UltCYAY2013","bma_UltCYAY2013","bma_UltCYAY2013","bma_UltCYAY2013","bma_UltCYAY2013","bma_CATUltCYAY2013","bma_UltCYOneYearDevelopmentAY2013","bma_UltCYTwoYearDevelopmentAY2013"]
["L6",2014,"XXX","XXX","XXX","XXX",{"$f":"Import!I8697","v":0},{"$f":"Import!I8703","v":0},{"$f":"Import!I8710","v":0},{"$f":"Import!I8718","v":0},{"$f":"Import!I8727","v":0},{"$f":"Import!I8737","v":0},{"$f":"Import!I8748","v":0},0,0,null,{"$f":"\"UltCY\"&F$10&\"AY\"&B11","v":"UltCY2013AYPrior"},{"$f":"F11","v":0},"CATUltCY2019AY2018",0,"brrt_LossIncurredYearAxis_brrt_XNMinus5Member",null,null,null,null,null,null,null,null,null,null,null,null,null,null,null,null,null,null,"bma_UltCY0AY2014","bma_UltCYAY2014","bma_UltCYAY2014","bma_UltCYAY2014","bma_UltCYAY2014","bma_UltCYAY2014","bma_CATUltCYAY2014","bma_UltCYOneYearDevelopmentAY2014","bma_UltCYTwoYearDevelopmentAY2014"]
["L7",2015,"XXX","XXX","XXX","XXX","XXX",{"$f":"Import!I8704","v":0},{"$f":"Import!I8711","v":0},{"$f":"Import!I8719","v":0},{"$f":"Import!I8728","v":0},{"$f":"Import!I8738","v":0},{"$f":"Import!I8749","v":0},0,0,null,{"$f":"\"UltCY\"&F$10&\"AY\"&B12","v":"UltCY2013AY2010"},{"$f":"F12","v":0},"CATUltCY2019AY2019",0,"brrt_LossIncurredYearAxis_brrt_XNMinus4Member",null,null,null,null,null,null,null,null,null,null,null,null,null,null,null,null,null,null,null,"bma_UltCYAY2015","bma_UltCYAY2015","bma_UltCYAY2015","bma_UltCYAY2015","bma_UltCYAY2015","bma_CATUltCYAY2015","bma_UltCYOneYearDevelopmentAY2015","bma_UltCYTwoYearDevelopmentAY2015"]
["L8",2016,"XXX","XXX","XXX","XXX","XXX","XXX",{"$f":"Import!I8712","v":0},{"$f":"Import!I8720","v":0},{"$f":"Import!I8729","v":0},{"$f":"Import!I8739","v":0},{"$f":"Import!I8750","v":0},0,0,null,{"$f":"\"UltCY\"&F$10&\"AY\"&B13","v":"UltCY2013AY2011"},{"$f":"F13","v":0},{"$f":"\"CATPaidCY\"&L$10&\"AY\"&B29","v":"CATPaidCY2019AYPrior"},{"$f":"M29","v":0},"brrt_LossIncurredYearAxis_brrt_XNMinus3Member",null,null,null,null,null,null,null,null,null,null,null,null,null,null,null,null,null,null,null,null,"bma_UltCYAY2016","bma_UltCYAY2016","bma_UltCYAY2016","bma_UltCYAY2016","bma_CATUltCYAY2016","bma_UltCYOneYearDevelopmentAY2016","bma_UltCYTwoYearDevelopmentAY2016"]
["L9",2017,"XXX","XXX","XXX","XXX","XXX","XXX","XXX",{"$f":"Import!I8721","v":0},{"$f":"Import!I8730","v":0},{"$f":"Import!I8740","v":0},{"$f":"Import!I8751","v":0},0,0,null,{"$f":"\"UltCY\"&F$10&\"AY\"&B14","v":"UltCY2013AY2012"},{"$f":"F14","v":0},"CATPaidCY2019AY2010",0,"brrt_LossIncurredYearAxis_brrt_XNMinus2Member",null,null,null,null,null,null,null,null,null,null,null,null,null,null,null,null,null,null,null,null,null,"bma_UltCYAY2017","bma_UltCYAY2017","bma_UltCYAY2017","bma_CATUltCYAY2017","bma_UltCYOneYearDevelopmentAY2017","bma_UltCYTwoYearDevelopmentAY2017"]
["L10",2018,"XXX","XXX","XXX","XXX","XXX","XXX","XXX","XXX",{"$f":"Import!I8731","v":0},{"$f":"Import!I8741","v":0},{"$f":"Import!I8752","v":0},0,"XXX",null,{"$f":"\"UltCY\"&F$10&\"AY\"&B15","v":"UltCY2013AY2013"},{"$f":"F15","v":0},"CATPaidCY2019AY2011",0,"brrt_LossIncurredYearAxis_brrt_XNMinus1Member",null,null,null,null,null,null,null,null,null,null,null,null,null,null,null,null,null,null,null,null,null,null,"bma_UltCYAY2018","bma_UltCYAY2018","bma_CATUltCYAY2018","bma_UltCYOneYearDevelopmentAY2018"]
["L11",{"$f":"L10","v":2019},"XXX","XXX","XXX","XXX","XXX","XXX","XXX","XXX","XXX",{"$f":"Import!I8742","v":0},{"$f":"Import!I8753","v":0},"XXX","XXX",null,{"$f":"\"UltCY\"&G$10&\"AY\"&B11","v":"UltCY2014AYPrior"},{"$f":"G11","v":0},"CATPaidCY2019AY2012",0,"brrt_LossIncurredYearAxis_brrt_XNMember",null,null,null,null,null,null,null,null,null,null,null,null,null,null,null,null,null,null,null,null,null,null,null,"bma_UltCYAY2019","bma_CATUltCYAY2019"]
["L12","Totals",null,null,null,null,null,null,null,null,null,null,{"$f":"SUM(M11:M21)","v":0},{"$f":"SUM(N11:N21)","v":0},{"$f":"SUM(O11:O21)","v":0},null,{"$f":"\"UltCY\"&G$10&\"AY\"&B12","v":"UltCY2014AY2010"},{"$f":"G12","v":0},"CATPaidCY2019AY2013",0,null,null,null,null,null,null,null,null,null,null,null,null,null,null,null,null,null,null,null,null,null,null,null,null,null,"bma_CATUltCYAYTotals","bma_UltCYOneYearDevelopmentAYTotals",{"$f":"\"bma_\"&\"UltCY\"&\"TwoYearDevelopment\"&\"AY\"&$B22","v":"bma_UltCYTwoYearDevelopmentAYTotals"}]
[null,null,null,null,null,null,null,null,null,null,null,null,null,null,null,null,{"$f":"\"UltCY\"&G$10&\"AY\"&B13","v":"UltCY2014AY2011"},{"$f":"G13","v":0},"CATPaidCY2019AY2014",0]
[null,null,"CUMULATIVE PAID NET LOSSES AND ALLOCATED LOSS ADJUSTMENT EXPENSES REPORTED AT YEAR END ($000)",null,null,null,null,null,null,null,null,null,24,null,null,null,{"$f":"\"UltCY\"&G$10&\"AY\"&B15","v":"UltCY2014AY2013"},{"$f":"G15","v":0},{"$f":"\"CATPaidCY\"&L$10&\"AY\"&B36","v":"CATPaidCY2019AY2016"},{"$f":"M36","v":0}]
[null,null,null,null,null,null,null,null,null,null,null,null,"Paid",null,null,null,{"$f":"\"UltCY\"&G$10&\"AY\"&B16","v":"UltCY2014AY2014"},{"$f":"G16","v":0},{"$f":"\"CATPaidCY\"&L$10&\"AY\"&B37","v":"CATPaidCY2019AY2017"},{"$f":"M37","v":0}]
[null,"Years in Which",14,15,16,17,18,19,20,21,22,23,"Catastrophe",null,null,null,{"$f":"\"UltCY\"&H$10&\"AY\"&B11","v":"UltCY2015AYPrior"},{"$f":"H11","v":0},{"$f":"\"CATPaidCY\"&L$10&\"AY\"&B38","v":"CATPaidCY2019AY2018"},{"$f":"M38","v":0}]
[null,"Policies Were",null,null,null,null,null,null,null,null,null,null,"Losses",null,null,null,"UltCY2015AY2010",0,{"$f":"\"CATPaidCY\"&L$10&\"AY\"&B39","v":"CATPaidCY2019AY2019"},{"$f":"M39","v":0}]
[null,"Written",{"$f":"D28-1","v":2010},2011,2012,2013,2014,2015,2016,2017,2018,{"$f":"L10","v":2019},{"$f":"L28","v":2019},null,null,null,"UltCY2015AY2011",0,{"$f":"\"CATIBNRCY\"&L$10&\"AY\"&B47","v":"CATIBNRCY2019AYPrior"},{"$f":"M47","v":0}]
["L13","Prior",{"$f":"Import!I8754","v":0},{"$f":"Import!I8756","v":0},{"$f":"Import!I8759","v":0},{"$f":"Import!I8763","v":0},{"$f":"Import!I8768","v":0},{"$f":"Import!I8774","v":0},{"$f":"Import!I8781","v":0},{"$f":"Import!I8789","v":0},{"$f":"Import!I8798","v":0},{"$f":"Import!I8808","v":0},{"$f":"Import!I8819","v":0},null,null,null,"UltCY2015AY2012",0,"CATIBNRCY2019AY2010",0,"brrt_PoliciesWrittenYearAxis_brrt_PriorMember",null,null,null,null,null,null,null,null,null,null,null,null,null,null,{"$f":"\"bma_\"&\"PaidCY\"&P$10&\"AY\"&$B29","v":"bma_PaidCYAYPrior"},"bma_PaidCYUltCY2011AY2010AYPrior","bma_PaidCY0AYPrior","bma_PaidCYCATUltCY2019AY2012AYPrior",{"$f":"\"bma_\"&\"PaidCY\"&T$10&\"AY\"&$B29","v":"bma_PaidCY0AYPrior"},{"$f":"\"bma_\"&\"PaidCY\"&U$10&\"AY\"&$B29","v":"bma_PaidCYAYPrior"},{"$f":"\"bma_\"&\"PaidCY\"&V$10&\"AY\"&$B29","v":"bma_PaidCYAYPrior"},{"$f":"\"bma_\"&\"PaidCY\"&W$10&\"AY\"&$B29","v":"bma_PaidCYAYPrior"},{"$f":"\"bma_\"&\"PaidCY\"&X$10&\"AY\"&$B29","v":"bma_PaidCYAYPrior"},{"$f":"\"bma_\"&\"PaidCY\"&Y$10&\"AY\"&$B29","v":"bma_PaidCYAYPrior"},{"$f":"\"bma_\"&\"CATPaidCY\"&Y$10&\"AY\"&$B29","v":"bma_CATPaidCYAYPrior"}]
["L14",{"$f":"B31-1","v":2010},{"$f":"Import!I8755","v":0},{"$f":"Import!I8757","v":0},{"$f":"Import!I8760","v":0},{"$f":"Import!I8764","v":0},{"$f":"Import!I8769","v":0},{"$f":"Import!I8775","v":0},{"$f":"Import!I8782","v":0},{"$f":"Import!I8790","v":0},{"$f":"Import!I8799","v":0},{"$f":"Import!I8809","v":0},{"$f":"Import!I8820","v":0},null,null,null,"UltCY2015AY2013",0,"CATIBNRCY2019AY2011",0,"brrt_PoliciesWrittenYearAxis_brrt_XNMinus9Member",null,null,null,null,null,null,null,null,null,null,null,null,null,null,"bma_PaidCYAY2010","bma_PaidCYUltCY2011AY2010AY2010","bma_PaidCY0AY2010","bma_PaidCYCATUltCY2019AY2012AY2010","bma_PaidCY0AY2010","bma_PaidCYAY2010","bma_PaidCYAY2010","bma_PaidCYAY2010","bma_PaidCYAY2010","bma_PaidCYAY2010","bma_CATPaidCYAY2010"]
["L15",2011,"XXX",{"$f":"Import!I8758","v":0},{"$f":"Import!I8761","v":0},{"$f":"Import!I8765","v":0},{"$f":"Import!I8770","v":0},{"$f":"Import!I8776","v":0},{"$f":"Import!I8783","v":0},{"$f":"Import!I8791","v":0},{"$f":"Import!I8800","v":0},{"$f":"Import!I8810","v":0},{"$f":"Import!I8821","v":0},null,null,null,"UltCY2015AY2014",0,"CATIBNRCY2019AY2012",0,"brrt_PoliciesWrittenYearAxis_brrt_XNMinus8Member",null,null,null,null,null,null,null,null,null,null,null,null,null,null,null,{"$f":"\"bma_\"&\"PaidCY\"&Q$10&\"AY\"&$B31","v":"bma_PaidCYUltCY2011AY2010AY2011"},{"$f":"\"bma_\"&\"PaidCY\"&R$10&\"AY\"&$B31","v":"bma_PaidCY0AY2011"},{"$f":"\"bma_\"&\"PaidCY\"&S$10&\"AY\"&$B31","v":"bma_PaidCYCATUltCY2019AY2012AY2011"},"bma_PaidCY0AY2011","bma_PaidCYAY2011","bma_PaidCYAY2011","bma_PaidCYAY2011","bma_PaidCYAY2011","bma_PaidCYAY2011","bma_CATPaidCYAY2011"]
["L16",2012,"XXX","XXX",{"$f":"Import!I8762","v":0},{"$f":"Import!I8766","v":0},{"$f":"Import!I8771","v":0},{"$f":"Import!I8777","v":0},{"$f":"Import!I8784","v":0},{"$f":"Import!I8792","v":0},{"$f":"Import!I8801","v":0},{"$f":"Import!I8811","v":0},{"$f":"Import!I8822","v":0},null,null,null,"UltCY2015AY2015",0,"CATIBNRCY2019AY2013",0,"brrt_PoliciesWrittenYearAxis_brrt_XNMinus7Member",null,null,null,null,null,null,null,null,null,null,null,null,null,null,null,null,{"$f":"\"bma_\"&\"PaidCY\"&R$10&\"AY\"&$B32","v":"bma_PaidCY0AY2012"},{"$f":"\"bma_\"&\"PaidCY\"&S$10&\"AY\"&$B32","v":"bma_PaidCYCATUltCY2019AY2012AY2012"},"bma_PaidCY0AY2012","bma_PaidCYAY2012","bma_PaidCYAY2012","bma_PaidCYAY2012","bma_PaidCYAY2012","bma_PaidCYAY2012","bma_CATPaidCYAY2012"]
["L17",2013,"XXX","XXX","XXX",{"$f":"Import!I8767","v":0},{"$f":"Import!I8772","v":0},{"$f":"Import!I8778","v":0},{"$f":"Import!I8785","v":0},{"$f":"Import!I8793","v":0},{"$f":"Import!I8802","v":0},{"$f":"Import!I8812","v":0},{"$f":"Import!I8823","v":0},null,null,null,{"$f":"\"UltCY\"&I$10&\"AY\"&B11","v":"UltCY2016AYPrior"},{"$f":"I11","v":0},"CATIBNRCY2019AY2014",0,"brrt_PoliciesWrittenYearAxis_brrt_XNMinus6Member",null,null,null,null,null,null,null,null,null,null,null,null,null,null,null,null,null,{"$f":"\"bma_\"&\"PaidCY\"&S$10&\"AY\"&$B33","v":"bma_PaidCYCATUltCY2019AY2012AY2013"},"bma_PaidCY0AY2013","bma_PaidCYAY2013","bma_PaidCYAY2013","bma_PaidCYAY2013","bma_PaidCYAY2013","bma_PaidCYAY2013","bma_CATPaidCYAY2013"]
["L18",2014,"XXX","XXX","XXX","XXX",{"$f":"Import!I8773","v":0},{"$f":"Import!I8779","v":0},{"$f":"Import!I8786","v":0},{"$f":"Import!I8794","v":0},{"$f":"Import!I8803","v":0},{"$f":"Import!I8813","v":0},{"$f":"Import!I8824","v":0},null,null,null,"UltCY2016AY2010",0,"CATIBNRCY2019AY2015",0,"brrt_PoliciesWrittenYearAxis_brrt_XNMinus5Member",null,null,null,null,null,null,null,null,null,null,null,null,null,null,null,null,null,null,"bma_PaidCY0AY2014","bma_PaidCYAY2014","bma_PaidCYAY2014","bma_PaidCYAY2014","bma_PaidCYAY2014","bma_PaidCYAY2014","bma_CATPaidCYAY2014"]
["L19",2015,"XXX","XXX","XXX","XXX","XXX",{"$f":"Import!I8780","v":0},{"$f":"Import!I8787","v":0},{"$f":"Import!I8795","v":0},{"$f":"Import!I8804","v":0},{"$f":"Import!I8814","v":0},{"$f":"Import!I8825","v":0},null,null,null,"UltCY2016AY2011",0,"CATIBNRCY2019AY2016",0,"brrt_PoliciesWrittenYearAxis_brrt_XNMinus4Member",null,null,null,null,null,null,null,null,null,null,null,null,null,null,null,null,null,null,null,{"$f":"\"bma_\"&\"PaidCY\"&U$10&\"AY\"&$B35","v":"bma_PaidCYAY2015"},{"$f":"\"bma_\"&\"PaidCY\"&V$10&\"AY\"&$B35","v":"bma_PaidCYAY2015"},{"$f":"\"bma_\"&\"PaidCY\"&W$10&\"AY\"&$B35","v":"bma_PaidCYAY2015"},{"$f":"\"bma_\"&\"PaidCY\"&X$10&\"AY\"&$B35","v":"bma_PaidCYAY2015"},{"$f":"\"bma_\"&\"PaidCY\"&Y$10&\"AY\"&$B35","v":"bma_PaidCYAY2015"},"bma_CATPaidCYAY2015"]
["L20",2016,"XXX","XXX","XXX","XXX","XXX","XXX",{"$f":"Import!I8788","v":0},{"$f":"Import!I8796","v":0},{"$f":"Import!I8805","v":0},{"$f":"Import!I8815","v":0},{"$f":"Import!I8826","v":0},null,null,null,"UltCY2016AY2012",0,"CATIBNRCY2019AY2017",0,"brrt_PoliciesWrittenYearAxis_brrt_XNMinus3Member",null,null,null,null,null,null,null,null,null,null,null,null,null,null,null,null,null,null,null,null,{"$f":"\"bma_\"&\"PaidCY\"&V$10&\"AY\"&$B36","v":"bma_PaidCYAY2016"},{"$f":"\"bma_\"&\"PaidCY\"&W$10&\"AY\"&$B36","v":"bma_PaidCYAY2016"},{"$f":"\"bma_\"&\"PaidCY\"&X$10&\"AY\"&$B36","v":"bma_PaidCYAY2016"},{"$f":"\"bma_\"&\"PaidCY\"&Y$10&\"AY\"&$B36","v":"bma_PaidCYAY2016"},"bma_CATPaidCYAY2016"]
["L21",2017,"XXX","XXX","XXX","XXX","XXX","XXX","XXX",{"$f":"Import!I8797","v":0},{"$f":"Import!I8806","v":0},{"$f":"Import!I8816","v":0},{"$f":"Import!I8827","v":0},null,null,null,"UltCY2016AY2013",0,"CATIBNRCY2019AY2018",0,"brrt_PoliciesWrittenYearAxis_brrt_XNMinus2Member",null,null,null,null,null,null,null,null,null,null,null,null,null,null,null,null,null,null,null,null,null,{"$f":"\"bma_\"&\"PaidCY\"&W$10&\"AY\"&$B37","v":"bma_PaidCYAY2017"},{"$f":"\"bma_\"&\"PaidCY\"&X$10&\"AY\"&$B37","v":"bma_PaidCYAY2017"},{"$f":"\"bma_\"&\"PaidCY\"&Y$10&\"AY\"&$B37","v":"bma_PaidCYAY2017"},"bma_CATPaidCYAY2017"]
["L22",2018,"XXX","XXX","XXX","XXX","XXX","XXX","XXX","XXX",{"$f":"Import!I8807","v":0},{"$f":"Import!I8817","v":0},{"$f":"Import!I8828","v":0},null,null,null,"UltCY2016AY2014",0,"CATIBNRCY2019AY2019",0,"brrt_PoliciesWrittenYearAxis_brrt_XNMinus1Member",null,null,null,null,null,null,null,null,null,null,null,null,null,null,null,null,null,null,null,null,null,null,{"$f":"\"bma_\"&\"PaidCY\"&X$10&\"AY\"&$B38","v":"bma_PaidCYAY2018"},{"$f":"\"bma_\"&\"PaidCY\"&Y$10&\"AY\"&$B38","v":"bma_PaidCYAY2018"},"bma_CATPaidCYAY2018"]
["L23",{"$f":"L28","v":2019},"XXX","XXX","XXX","XXX","XXX","XXX","XXX","XXX","XXX",{"$f":"Import!I8818","v":0},{"$f":"Import!I8829","v":0},null,null,null,"UltCY2016AY2015",0,null,null,"brrt_PoliciesWrittenYearAxis_brrt_XNMember",null,null,null,null,null,null,null,null,null,null,null,null,null,null,null,null,null,null,null,null,null,null,null,{"$f":"\"bma_\"&\"PaidCY\"&Y$10&\"AY\"&$B39","v":"bma_PaidCYAY2019"},"bma_CATPaidCYAY2019"]
["L24","Totals",null,null,null,null,null,null,null,null,null,null,{"$f":"SUM(M29:M39)","v":0},null,null,null,"UltCY2016AY2016",0,null,null,null,null,null,null,null,null,null,null,null,null,null,null,null,null,null,null,null,null,null,null,null,null,null,null,null,"bma_CATPaidCYAYTotals"]
[null,null,null,null,null,null,null,null,null,null,null,null,null,null,null,null,{"$f":"\"UltCY\"&J$10&\"AY\"&B11","v":"UltCY2017AYPrior"},{"$f":"J11","v":0}]
[null,null,"BULK & IBNR RESERVES ON NET LOSSES AND ALLOCATED LOSS ADJUSTMENT EXPENSES REPORTED AT YEAR END ($000)",null,null,null,null,null,null,null,null,null,35,null,null,null,{"$f":"\"UltCY\"&J$10&\"AY\"&B13","v":"UltCY2017AY2011"},{"$f":"J13","v":0}]
[null,null,null,null,null,null,null,null,null,null,null,null,"Losses",null,null,null,"UltCY2017AY2012",0]
[null,"Years in Which",25,26,27,28,29,30,31,32,33,34,"Bulk & IBNR",null,null,null,"UltCY2017AY2013",0]
[null,"Policies Were",null,null,null,null,null,null,null,null,null,null,"Reserves",null,null,null,"UltCY2017AY2014",0]
[null,"Written",{"$f":"D46-1","v":2010},2011,2012,2013,2014,2015,2016,2017,2018,{"$f":"L28","v":2019},{"$f":"L46","v":2019},null,null,null,"UltCY2017AY2015",0]
["L25","Prior",{"$f":"Import!I8830","v":0},{"$f":"Import!I8832","v":0},{"$f":"Import!I8835","v":0},{"$f":"Import!I8839","v":0},{"$f":"Import!I8844","v":0},{"$f":"Import!I8850","v":0},{"$f":"Import!I8857","v":0},{"$f":"Import!I8865","v":0},{"$f":"Import!I8874","v":0},{"$f":"Import!I8884","v":0},{"$f":"Import!I8895","v":0},null,null,null,"UltCY2017AY2016",0,null,null,"brrt_PoliciesWrittenYearAxis_brrt_PriorMember",null,null,null,null,null,null,null,null,null,null,null,null,null,null,{"$f":"\"bma_\"&\"IBNRCY\"&P$10&\"AY\"&$B47","v":"bma_IBNRCYAYPrior"},"bma_IBNRCYUltCY2011AY2010AYPrior","bma_IBNRCY0AYPrior","bma_IBNRCYCATUltCY2019AY2012AYPrior",{"$f":"\"bma_\"&\"IBNRCY\"&T$10&\"AY\"&$B47","v":"bma_IBNRCY0AYPrior"},{"$f":"\"bma_\"&\"IBNRCY\"&U$10&\"AY\"&$B47","v":"bma_IBNRCYAYPrior"},{"$f":"\"bma_\"&\"IBNRCY\"&V$10&\"AY\"&$B47","v":"bma_IBNRCYAYPrior"},{"$f":"\"bma_\"&\"IBNRCY\"&W$10&\"AY\"&$B47","v":"bma_IBNRCYAYPrior"},{"$f":"\"bma_\"&\"IBNRCY\"&X$10&\"AY\"&$B47","v":"bma_IBNRCYAYPrior"},{"$f":"\"bma_\"&\"IBNRCY\"&Y$10&\"AY\"&$B47","v":"bma_IBNRCYAYPrior"},{"$f":"\"bma_\"&\"CATIBNRCY\"&Y$10&\"AY\"&$B47","v":"bma_CATIBNRCYAYPrior"}]
["L26",{"$f":"B49-1","v":2010},{"$f":"Import!I8831","v":0},{"$f":"Import!I8833","v":0},{"$f":"Import!I8836","v":0},{"$f":"Import!I8840","v":0},{"$f":"Import!I8845","v":0},{"$f":"Import!I8851","v":0},{"$f":"Import!I8858","v":0},{"$f":"Import!I8866","v":0},{"$f":"Import!I8875","v":0},{"$f":"Import!I8885","v":0},{"$f":"Import!I8896","v":0},null,null,null,"UltCY2017AY2017",0,null,null,"brrt_PoliciesWrittenYearAxis_brrt_XNMinus9Member",null,null,null,null,null,null,null,null,null,null,null,null,null,null,"bma_IBNRCYAY2010","bma_IBNRCYUltCY2011AY2010AY2010","bma_IBNRCY0AY2010","bma_IBNRCYCATUltCY2019AY2012AY2010","bma_IBNRCY0AY2010","bma_IBNRCYAY2010","bma_IBNRCYAY2010","bma_IBNRCYAY2010","bma_IBNRCYAY2010","bma_IBNRCYAY2010","bma_CATIBNRCYAY2010"]
["L27",2011,"XXX",{"$f":"Import!I8834","v":0},{"$f":"Import!I8837","v":0},{"$f":"Import!I8841","v":0},{"$f":"Import!I8846","v":0},{"$f":"Import!I8852","v":0},{"$f":"Import!I8859","v":0},{"$f":"Import!I8867","v":0},{"$f":"Import!I8876","v":0},{"$f":"Import!I8886","v":0},{"$f":"Import!I8897","v":0},null,null,null,{"$f":"\"UltCY\"&K$10&\"AY\"&B11","v":"UltCY2018AYPrior"},{"$f":"K11","v":0},null,null,"brrt_PoliciesWrittenYearAxis_brrt_XNMinus8Member",null,null,null,null,null,null,null,null,null,null,null,null,null,null,null,{"$f":"\"bma_\"&\"IBNRCY\"&Q$10&\"AY\"&$B49","v":"bma_IBNRCYUltCY2011AY2010AY2011"},{"$f":"\"bma_\"&\"IBNRCY\"&R$10&\"AY\"&$B49","v":"bma_IBNRCY0AY2011"},{"$f":"\"bma_\"&\"IBNRCY\"&S$10&\"AY\"&$B49","v":"bma_IBNRCYCATUltCY2019AY2012AY2011"},"bma_IBNRCY0AY2011","bma_IBNRCYAY2011","bma_IBNRCYAY2011","bma_IBNRCYAY2011","bma_IBNRCYAY2011","bma_IBNRCYAY2011","bma_CATIBNRCYAY2011"]
["L28",2012,"XXX","XXX",{"$f":"Import!I8838","v":0},{"$f":"Import!I8842","v":0},{"$f":"Import!I8847","v":0},{"$f":"Import!I8853","v":0},{"$f":"Import!I8860","v":0},{"$f":"Import!I8868","v":0},{"$f":"Import!I8877","v":0},{"$f":"Import!I8887","v":0},{"$f":"Import!I8898","v":0},null,null,null,"UltCY2018AY2010",0,null,null,"brrt_PoliciesWrittenYearAxis_brrt_XNMinus7Member",null,null,null,null,null,null,null,null,null,null,null,null,null,null,null,null,{"$f":"\"bma_\"&\"IBNRCY\"&R$10&\"AY\"&$B50","v":"bma_IBNRCY0AY2012"},{"$f":"\"bma_\"&\"IBNRCY\"&S$10&\"AY\"&$B50","v":"bma_IBNRCYCATUltCY2019AY2012AY2012"},"bma_IBNRCY0AY2012","bma_IBNRCYAY2012","bma_IBNRCYAY2012","bma_IBNRCYAY2012","bma_IBNRCYAY2012","bma_IBNRCYAY2012","bma_CATIBNRCYAY2012"]
["L29",2013,"XXX","XXX","XXX",{"$f":"Import!I8843","v":0},{"$f":"Import!I8848","v":0},{"$f":"Import!I8854","v":0},{"$f":"Import!I8861","v":0},{"$f":"Import!I8869","v":0},{"$f":"Import!I8878","v":0},{"$f":"Import!I8888","v":0},{"$f":"Import!I8899","v":0},null,null,null,"UltCY2018AY2011",0,null,null,"brrt_PoliciesWrittenYearAxis_brrt_XNMinus6Member",null,null,null,null,null,null,null,null,null,null,null,null,null,null,null,null,null,{"$f":"\"bma_\"&\"IBNRCY\"&S$10&\"AY\"&$B51","v":"bma_IBNRCYCATUltCY2019AY2012AY2013"},"bma_IBNRCY0AY2013","bma_IBNRCYAY2013","bma_IBNRCYAY2013","bma_IBNRCYAY2013","bma_IBNRCYAY2013","bma_IBNRCYAY2013","bma_CATIBNRCYAY2013"]
["L30",2014,"XXX","XXX","XXX","XXX",{"$f":"Import!I8849","v":0},{"$f":"Import!I8855","v":0},{"$f":"Import!I8862","v":0},{"$f":"Import!I8870","v":0},{"$f":"Import!I8879","v":0},{"$f":"Import!I8889","v":0},{"$f":"Import!I8900","v":0},null,null,null,"UltCY2018AY2012",0,null,null,"brrt_PoliciesWrittenYearAxis_brrt_XNMinus5Member",null,null,null,null,null,null,null,null,null,null,null,null,null,null,null,null,null,null,"bma_IBNRCY0AY2014","bma_IBNRCYAY2014","bma_IBNRCYAY2014","bma_IBNRCYAY2014","bma_IBNRCYAY2014","bma_IBNRCYAY2014","bma_CATIBNRCYAY2014"]
["L31",2015,"XXX","XXX","XXX","XXX","XXX",{"$f":"Import!I8856","v":0},{"$f":"Import!I8863","v":0},{"$f":"Import!I8871","v":0},{"$f":"Import!I8880","v":0},{"$f":"Import!I8890","v":0},{"$f":"Import!I8901","v":0},null,null,null,"UltCY2018AY2013",0,null,null,"brrt_PoliciesWrittenYearAxis_brrt_XNMinus4Member",null,null,null,null,null,null,null,null,null,null,null,null,null,null,null,null,null,null,null,{"$f":"\"bma_\"&\"IBNRCY\"&U$10&\"AY\"&$B53","v":"bma_IBNRCYAY2015"},{"$f":"\"bma_\"&\"IBNRCY\"&V$10&\"AY\"&$B53","v":"bma_IBNRCYAY2015"},{"$f":"\"bma_\"&\"IBNRCY\"&W$10&\"AY\"&$B53","v":"bma_IBNRCYAY2015"},{"$f":"\"bma_\"&\"IBNRCY\"&X$10&\"AY\"&$B53","v":"bma_IBNRCYAY2015"},{"$f":"\"bma_\"&\"IBNRCY\"&Y$10&\"AY\"&$B53","v":"bma_IBNRCYAY2015"},"bma_CATIBNRCYAY2015"]
["L32",2016,"XXX","XXX","XXX","XXX","XXX","XXX",{"$f":"Import!I8864","v":0},{"$f":"Import!I8872","v":0},{"$f":"Import!I8881","v":0},{"$f":"Import!I8891","v":0},{"$f":"Import!I8902","v":0},null,null,null,"UltCY2018AY2014",0,null,null,"brrt_PoliciesWrittenYearAxis_brrt_XNMinus3Member",null,null,null,null,null,null,null,null,null,null,null,null,null,null,null,null,null,null,null,null,{"$f":"\"bma_\"&\"IBNRCY\"&V$10&\"AY\"&$B54","v":"bma_IBNRCYAY2016"},{"$f":"\"bma_\"&\"IBNRCY\"&W$10&\"AY\"&$B54","v":"bma_IBNRCYAY2016"},{"$f":"\"bma_\"&\"IBNRCY\"&X$10&\"AY\"&$B54","v":"bma_IBNRCYAY2016"},{"$f":"\"bma_\"&\"IBNRCY\"&Y$10&\"AY\"&$B54","v":"bma_IBNRCYAY2016"},"bma_CATIBNRCYAY2016"]
["L33",2017,"XXX","XXX","XXX","XXX","XXX","XXX","XXX",{"$f":"Import!I8873","v":0},{"$f":"Import!I8882","v":0},{"$f":"Import!I8892","v":0},{"$f":"Import!I8903","v":0},null,null,null,"UltCY2018AY2015",0,null,null,"brrt_PoliciesWrittenYearAxis_brrt_XNMinus2Member",null,null,null,null,null,null,null,null,null,null,null,null,null,null,null,null,null,null,null,null,null,{"$f":"\"bma_\"&\"IBNRCY\"&W$10&\"AY\"&$B55","v":"bma_IBNRCYAY2017"},{"$f":"\"bma_\"&\"IBNRCY\"&X$10&\"AY\"&$B55","v":"bma_IBNRCYAY2017"},{"$f":"\"bma_\"&\"IBNRCY\"&Y$10&\"AY\"&$B55","v":"bma_IBNRCYAY2017"},"bma_CATIBNRCYAY2017"]
["L34",2018,"XXX","XXX","XXX","XXX","XXX","XXX","XXX","XXX",{"$f":"Import!I8883","v":0},{"$f":"Import!I8893","v":0},{"$f":"Import!I8904","v":0},null,null,null,"UltCY2018AY2016",0,null,null,"brrt_PoliciesWrittenYearAxis_brrt_XNMinus1Member",null,null,null,null,null,null,null,null,null,null,null,null,null,null,null,null,null,null,null,null,null,null,{"$f":"\"bma_\"&\"IBNRCY\"&X$10&\"AY\"&$B56","v":"bma_IBNRCYAY2018"},{"$f":"\"bma_\"&\"IBNRCY\"&Y$10&\"AY\"&$B56","v":"bma_IBNRCYAY2018"},"bma_CATIBNRCYAY2018"]
["L35",{"$f":"L46","v":2019},"XXX","XXX","XXX","XXX","XXX","XXX","XXX","XXX","XXX",{"$f":"Import!I8894","v":0},{"$f":"Import!I8905","v":0},null,null,null,"UltCY2018AY2017",0,null,null,"brrt_PoliciesWrittenYearAxis_brrt_XNMember",null,null,null,null,null,null,null,null,null,null,null,null,null,null,null,null,null,null,null,null,null,null,null,{"$f":"\"bma_\"&\"IBNRCY\"&Y$10&\"AY\"&$B57","v":"bma_IBNRCYAY2019"},"bma_CATIBNRCYAY2019"]
["L36","Totals",null,null,null,null,null,null,null,null,null,null,{"$f":"SUM(M47:M57)","v":0},null,null,null,"UltCY2018AY2018",0,null,null,null,null,null,null,null,null,null,null,null,null,null,null,null,null,null,null,null,null,null,null,null,null,null,null,null,"bma_CATIBNRCYAYTotals"]
[null,null,null,null,null,null,null,null,null,null,null,null,null,null,null,null,{"$f":"\"UltCY\"&L$10&\"AY\"&B11","v":"UltCY2019AYPrior"},{"$f":"L11","v":0}]
[null,null,36,37,38,39,"Unallocated Loss",null,null,42,43,44,45,null,null,null,{"$f":"\"UltCY\"&L$10&\"AY\"&B13","v":"UltCY2019AY2011"},{"$f":"L13","v":0}]
[null,"Years in Which",null,null,null,null,"Adjustment Expenses",null,null,null,null,null,null,null,null,null,"UltCY2019AY2012",0]
[null,"Premiums",null,null,null,null,40,41,null,null,null,null,null,null,null,null,"UltCY2019AY2013",0]
[null,"Were",null,null,null,null,null,null,null,"Commission and","General and",null,null,null,null,null,"UltCY2019AY2014",0]
[null,"Earned and","Gross","Gross","Net","Net",null,null,null,"Brokerage","Administrative","Personnel","Other",null,null,null,"UltCY2019AY2015",0]
[null,"Losses Were","Premiums","Premiums","Premiums","Premiums",null,null,"Calendar","Expense","Expense","Costs","Expense",null,null,null,"UltCY2019AY2016",0]
[null,"Incurred","Written","Earned","Written","Earned","Paid","Incurred","Year","(Form 2A, Line 9)","(Form 2A, Line 10)","(Form 2A, Line 11)","(Form 2A, Line 12)",null,null,null,"UltCY2019AY2017",0]
["L37","Prior","XXX",{"$f":"C67","v":"XXX"},"XXX",{"$f":"E67","v":"XXX"},{"$f":"Import!I8950","v":0},{"$f":"Import!I8961","v":0},"Prior",{"$f":"Import!I8972","v":0},{"$f":"Import!I8983","v":0},{"$f":"Import!I8994","v":0},{"$f":"Import!I9005","v":0},null,null,null,"UltCY2019AY2018",0,null,null,"brrt_PremiumsEarnedLossesIncurredYearAxis_brrt_PriorMember","brrt_CalendarYearAxis_brrt_PriorMember",null,null,null,null,null,null,null,null,null,null,null,null,null,null,null,null,null,{"$f":"\"bma_\"&\"NetAOEPaid\"&$B67","v":"bma_NetAOEPaidPrior"},{"$f":"\"bma_\"&\"NetAOEIncurred\"&$B67","v":"bma_NetAOEIncurredPrior"},null,{"$f":"\"bma_\"&\"CommissionsAndBrokerage\"&$B67","v":"bma_CommissionsAndBrokeragePrior"},{"$f":"\"bma_\"&\"GeneralAndAdministrative\"&$B67","v":"bma_GeneralAndAdministrativePrior"},{"$f":"\"bma_\"&\"PersonnelCosts\"&$B67","v":"bma_PersonnelCostsPrior"},{"$f":"\"bma_\"&\"UnderwritingExpensesOther\"&$B67","v":"bma_UnderwritingExpensesOtherPrior"}]
["L38",{"$f":"B69-1","v":2010},{"$f":"Import!I8907","v":0},{"$f":"Import!I8918","v":0},{"$f":"Import!I8929","v":0},{"$f":"Import!I8940","v":0},{"$f":"Import!I8951","v":0},{"$f":"Import!I8962","v":0},{"$f":"B68","v":2010},{"$f":"Import!I8973","v":0},{"$f":"Import!I8984","v":0},{"$f":"Import!I8995","v":0},{"$f":"Import!I9006","v":0},null,null,null,"UltCY2019AY2019",0,null,null,"brrt_PremiumsEarnedLossesIncurredYearAxis_brrt_XNMinus9Member","brrt_CalendarYearAxis_brrt_XNMinus9Member",null,null,null,null,null,null,null,null,null,null,null,null,null,{"$f":"\"bma_\"&\"GrossWP\"&$B68","v":"bma_GrossWP2010"},{"$f":"\"bma_\"&\"GrossEP\"&$B68","v":"bma_GrossEP2010"},{"$f":"\"bma_\"&\"NetWP\"&$B68","v":"bma_NetWP2010"},{"$f":"\"bma_\"&\"NetEP\"&$B68","v":"bma_NetEP2010"},{"$f":"\"bma_\"&\"NetAOEPaid\"&$B68","v":"bma_NetAOEPaid2010"},{"$f":"\"bma_\"&\"NetAOEIncurred\"&$B68","v":"bma_NetAOEIncurred2010"},null,{"$f":"\"bma_\"&\"CommissionsAndBrokerage\"&$B68","v":"bma_CommissionsAndBrokerage2010"},{"$f":"\"bma_\"&\"GeneralAndAdministrative\"&$B68","v":"bma_GeneralAndAdministrative2010"},{"$f":"\"bma_\"&\"PersonnelCosts\"&$B68","v":"bma_PersonnelCosts2010"},{"$f":"\"bma_\"&\"UnderwritingExpensesOther\"&$B68","v":"bma_UnderwritingExpensesOther2010"}]
["L39",2011,{"$f":"Import!I8908","v":0},{"$f":"Import!I8919","v":0},{"$f":"Import!I8930","v":0},{"$f":"Import!I8941","v":0},{"$f":"Import!I8952","v":0},{"$f":"Import!I8963","v":0},2011,{"$f":"Import!I8974","v":0},{"$f":"Import!I8985","v":0},{"$f":"Import!I8996","v":0},{"$f":"Import!I9007","v":0},null,null,null,{"$f":"\"PaidCY\"&C$10&\"AY\"&B29","v":"PaidCY2010AYPrior"},{"$f":"C29","v":0},null,null,"brrt_PremiumsEarnedLossesIncurredYearAxis_brrt_XNMinus8Member","brrt_CalendarYearAxis_brrt_XNMinus8Member",null,null,null,null,null,null,null,null,null,null,null,null,null,{"$f":"\"bma_\"&\"GrossWP\"&$B69","v":"bma_GrossWP2011"},{"$f":"\"bma_\"&\"GrossEP\"&$B69","v":"bma_GrossEP2011"},{"$f":"\"bma_\"&\"NetWP\"&$B69","v":"bma_NetWP2011"},{"$f":"\"bma_\"&\"NetEP\"&$B69","v":"bma_NetEP2011"},"bma_NetAOEPaid2011","bma_NetAOEIncurred2011",null,"bma_CommissionsAndBrokerage2011","bma_GeneralAndAdministrative2011","bma_PersonnelCosts2011","bma_UnderwritingExpensesOther2011"]
["L40",2012,{"$f":"Import!I8909","v":0},{"$f":"Import!I8920","v":0},{"$f":"Import!I8931","v":0},{"$f":"Import!I8942","v":0},{"$f":"Import!I8953","v":0},{"$f":"Import!I8964","v":0},2012,{"$f":"Import!I8975","v":0},{"$f":"Import!I8986","v":0},{"$f":"Import!I8997","v":0},{"$f":"Import!I9008","v":0},null,null,null,{"$f":"\"PaidCY\"&C$10&\"AY\"&B30","v":"PaidCY2010AY2010"},{"$f":"C30","v":0},null,null,"brrt_PremiumsEarnedLossesIncurredYearAxis_brrt_XNMinus7Member","brrt_CalendarYearAxis_brrt_XNMinus7Member",null,null,null,null,null,null,null,null,null,null,null,null,null,"bma_GrossWP2012","bma_GrossEP2012","bma_NetWP2012","bma_NetEP2012","bma_NetAOEPaid2012","bma_NetAOEIncurred2012",null,"bma_CommissionsAndBrokerage2012","bma_GeneralAndAdministrative2012","bma_PersonnelCosts2012","bma_UnderwritingExpensesOther2012"]
["L41",2013,{"$f":"Import!I8910","v":0},{"$f":"Import!I8921","v":0},{"$f":"Import!I8932","v":0},{"$f":"Import!I8943","v":0},{"$f":"Import!I8954","v":0},{"$f":"Import!I8965","v":0},2013,{"$f":"Import!I8976","v":0},{"$f":"Import!I8987","v":0},{"$f":"Import!I8998","v":0},{"$f":"Import!I9009","v":0},null,null,null,{"$f":"\"PaidCY\"&D$10&\"AY\"&B29","v":"PaidCY2011AYPrior"},{"$f":"D29","v":0},null,null,"brrt_PremiumsEarnedLossesIncurredYearAxis_brrt_XNMinus6Member","brrt_CalendarYearAxis_brrt_XNMinus6Member",null,null,null,null,null,null,null,null,null,null,null,null,null,"bma_GrossWP2013","bma_GrossEP2013","bma_NetWP2013","bma_NetEP2013","bma_NetAOEPaid2013","bma_NetAOEIncurred2013",null,"bma_CommissionsAndBrokerage2013","bma_GeneralAndAdministrative2013","bma_PersonnelCosts2013","bma_UnderwritingExpensesOther2013"]
["L42",2014,{"$f":"Import!I8911","v":0},{"$f":"Import!I8922","v":0},{"$f":"Import!I8933","v":0},{"$f":"Import!I8944","v":0},{"$f":"Import!I8955","v":0},{"$f":"Import!I8966","v":0},2014,{"$f":"Import!I8977","v":0},{"$f":"Import!I8988","v":0},{"$f":"Import!I8999","v":0},{"$f":"Import!I9010","v":0},null,null,null,{"$f":"\"PaidCY\"&D$10&\"AY\"&B30","v":"PaidCY2011AY2010"},{"$f":"D30","v":0},null,null,"brrt_PremiumsEarnedLossesIncurredYearAxis_brrt_XNMinus5Member","brrt_CalendarYearAxis_brrt_XNMinus5Member",null,null,null,null,null,null,null,null,null,null,null,null,null,"bma_GrossWP2014","bma_GrossEP2014","bma_NetWP2014","bma_NetEP2014","bma_NetAOEPaid2014","bma_NetAOEIncurred2014",null,"bma_CommissionsAndBrokerage2014","bma_GeneralAndAdministrative2014","bma_PersonnelCosts2014","bma_UnderwritingExpensesOther2014"]
["L43",2015,{"$f":"Import!I8912","v":0},{"$f":"Import!I8923","v":0},{"$f":"Import!I8934","v":0},{"$f":"Import!I8945","v":0},{"$f":"Import!I8956","v":0},{"$f":"Import!I8967","v":0},2015,{"$f":"Import!I8978","v":0},{"$f":"Import!I8989","v":0},{"$f":"Import!I9000","v":0},{"$f":"Import!I9011","v":0},null,null,null,{"$f":"\"PaidCY\"&D$10&\"AY\"&B31","v":"PaidCY2011AY2011"},{"$f":"D31","v":0},null,null,"brrt_PremiumsEarnedLossesIncurredYearAxis_brrt_XNMinus4Member","brrt_CalendarYearAxis_brrt_XNMinus4Member",null,null,null,null,null,null,null,null,null,null,null,null,null,"bma_GrossWP2015","bma_GrossEP2015","bma_NetWP2015","bma_NetEP2015","bma_NetAOEPaid2015","bma_NetAOEIncurred2015",null,"bma_CommissionsAndBrokerage2015","bma_GeneralAndAdministrative2015","bma_PersonnelCosts2015","bma_UnderwritingExpensesOther2015"]
["L44",2016,{"$f":"Import!I8913","v":0},{"$f":"Import!I8924","v":0},{"$f":"Import!I8935","v":0},{"$f":"Import!I8946","v":0},{"$f":"Import!I8957","v":0},{"$f":"Import!I8968","v":0},2016,{"$f":"Import!I8979","v":0},{"$f":"Import!I8990","v":0},{"$f":"Import!I9001","v":0},{"$f":"Import!I9012","v":0},null,null,null,{"$f":"\"PaidCY\"&E$10&\"AY\"&B29","v":"PaidCY2012AYPrior"},{"$f":"E29","v":0},null,null,"brrt_PremiumsEarnedLossesIncurredYearAxis_brrt_XNMinus3Member","brrt_CalendarYearAxis_brrt_XNMinus3Member",null,null,null,null,null,null,null,null,null,null,null,null,null,"bma_GrossWP2016","bma_GrossEP2016","bma_NetWP2016","bma_NetEP2016","bma_NetAOEPaid2016","bma_NetAOEIncurred2016",null,"bma_CommissionsAndBrokerage2016","bma_GeneralAndAdministrative2016","bma_PersonnelCosts2016","bma_UnderwritingExpensesOther2016"]
["L45",2017,{"$f":"Import!I8914","v":0},{"$f":"Import!I8925","v":0},{"$f":"Import!I8936","v":0},{"$f":"Import!I8947","v":0},{"$f":"Import!I8958","v":0},{"$f":"Import!I8969","v":0},2017,{"$f":"Import!I8980","v":0},{"$f":"Import!I8991","v":0},{"$f":"Import!I9002","v":0},{"$f":"Import!I9013","v":0},null,null,null,{"$f":"\"PaidCY\"&E$10&\"AY\"&B30","v":"PaidCY2012AY2010"},{"$f":"E30","v":0},null,null,"brrt_PremiumsEarnedLossesIncurredYearAxis_brrt_XNMinus2Member","brrt_CalendarYearAxis_brrt_XNMinus2Member",null,null,null,null,null,null,null,null,null,null,null,null,null,"bma_GrossWP2017","bma_GrossEP2017","bma_NetWP2017","bma_NetEP2017","bma_NetAOEPaid2017","bma_NetAOEIncurred2017",null,"bma_CommissionsAndBrokerage2017","bma_GeneralAndAdministrative2017","bma_PersonnelCosts2017","bma_UnderwritingExpensesOther2017"]
["L46",2018,{"$f":"Import!I8915","v":0},{"$f":"Import!I8926","v":0},{"$f":"Import!I8937","v":0},{"$f":"Import!I8948","v":0},{"$f":"Import!I8959","v":0},{"$f":"Import!I8970","v":0},2018,{"$f":"Import!I8981","v":0},{"$f":"Import!I8992","v":0},{"$f":"Import!I9003","v":0},{"$f":"Import!I9014","v":0},null,null,null,{"$f":"\"PaidCY\"&E$10&\"AY\"&B31","v":"PaidCY2012AY2011"},{"$f":"E31","v":0},null,null,"brrt_PremiumsEarnedLossesIncurredYearAxis_brrt_XNMinus1Member","brrt_CalendarYearAxis_brrt_XNMinus1Member",null,null,null,null,null,null,null,null,null,null,null,null,null,"bma_GrossWP2018","bma_GrossEP2018","bma_NetWP2018","bma_NetEP2018","bma_NetAOEPaid2018","bma_NetAOEIncurred2018",null,"bma_CommissionsAndBrokerage2018","bma_GeneralAndAdministrative2018","bma_PersonnelCosts2018","bma_UnderwritingExpensesOther2018"]
["L47",{"$f":"B39","v":2019},{"$f":"Import!I8916","v":0},{"$f":"Import!I8927","v":0},{"$f":"Import!I8938","v":0},{"$f":"Import!I8949","v":0},{"$f":"Import!I8960","v":0},{"$f":"Import!I8971","v":0},2019,{"$f":"Import!I8982","v":0},{"$f":"Import!I8993","v":0},{"$f":"Import!I9004","v":0},{"$f":"Import!I9015","v":0},null,null,null,{"$f":"\"PaidCY\"&E$10&\"AY\"&B32","v":"PaidCY2012AY2012"},{"$f":"E32","v":0},null,null,"brrt_PremiumsEarnedLossesIncurredYearAxis_brrt_XNMember","brrt_CalendarYearAxis_brrt_XNMember",null,null,null,null,null,null,null,null,null,null,null,null,null,"bma_GrossWP2019","bma_GrossEP2019","bma_NetWP2019","bma_NetEP2019","bma_NetAOEPaid2019","bma_NetAOEIncurred2019",null,"bma_CommissionsAndBrokerage2019","bma_GeneralAndAdministrative2019","bma_PersonnelCosts2019","bma_UnderwritingExpensesOther2019"]
["L48","Totals","XXX",{"$f":"C78","v":"XXX"},"XXX",{"$f":"E78","v":"XXX"},{"$f":"SUM(G67:G77)","v":0},{"$f":"SUM(H67:H77)","v":0},"Totals",{"$f":"SUM(J67:J77)","v":0},{"$f":"SUM(K67:K77)","v":0},{"$f":"SUM(L67:L77)","v":0},{"$f":"SUM(M67:M77)","v":0},null,null,null,{"$f":"\"PaidCY\"&F$10&\"AY\"&B29","v":"PaidCY2013AYPrior"},{"$f":"F29","v":0},null,null,null,null,null,null,null,null,null,null,null,null,null,null,null,null,null,null,null,null,null,"bma_NetAOEPaidTotals","bma_NetAOEIncurredTotals",null,"bma_CommissionsAndBrokerageTotals","bma_GeneralAndAdministrativeTotals","bma_PersonnelCostsTotals","bma_UnderwritingExpensesOtherTotals"]
[null,null,null,null,null,null,null,null,null,null,null,null,null,null,null,null,{"$f":"\"PaidCY\"&F$10&\"AY\"&B30","v":"PaidCY2013AY2010"},{"$f":"F30","v":0}]
[null,"COMMENTS",null,null,null,null,null,null,null,null,null,null,null,null,null,null,{"$f":"\"PaidCY\"&F$10&\"AY\"&B31","v":"PaidCY2013AY2011"},{"$f":"F31","v":0}]
[null,{"$f":"Import!I9016","v":0},null,null,null,null,null,null,null,null,null,null,null,null,null,null,{"$f":"\"PaidCY\"&G$10&\"AY\"&B30","v":"PaidCY2014AY2010"},{"$f":"G30","v":0},null,null,"brrt_LossTrianglesComments",{"$f":"XBRLMap(B81,U81&\".\"&U4&\".\"&U7,$B$95,$B$96,CONFIGURATION!$B$10,\"BMA\",CONFIGURATION!$B$1,\"bscr\")","v":"Mapped"},null,null,null,null,null,null,null,null,null,null,null,null,null,"bma_ScheduleOfLossTrianglesComments"]
[null,null,null,null,null,null,null,null,null,null,null,null,null,null,null,null,{"$f":"\"PaidCY\"&G$10&\"AY\"&B31","v":"PaidCY2014AY2011"},{"$f":"G31","v":0}]
[null,null,null,null,null,null,null,null,null,null,null,null,null,null,null,null,{"$f":"\"PaidCY\"&G$10&\"AY\"&B32","v":"PaidCY2014AY2012"},{"$f":"G32","v":0}]
[null,null,null,null,null,null,null,null,null,null,null,null,null,null,null,null,{"$f":"\"PaidCY\"&G$10&\"AY\"&B34","v":"PaidCY2014AY2014"},{"$f":"G34","v":0}]
[null,null,null,null,null,null,null,null,null,null,null,null,null,null,null,null,{"$f":"\"PaidCY\"&H$10&\"AY\"&B29","v":"PaidCY2015AYPrior"},{"$f":"H29","v":0}]
[null,null,"Accident Year",null,null,null,null,null,null,null,null,null,null,null,null,null,{"$f":"\"PaidCY\"&H$10&\"AY\"&B30","v":"PaidCY2015AY2010"},{"$f":"H30","v":0}]
[null,null,"Underwriting Year",null,null,null,null,null,null,null,null,null,null,null,null,null,{"$f":"\"PaidCY\"&H$10&\"AY\"&B31","v":"PaidCY2015AY2011"},{"$f":"H31","v":0}]
[]
[null,null,"brrt_IncurredEstimatedUltimateNetLossesAndAllocatedLossAdjustmentExpenses","brrt_IncurredEstimatedUltimateNetLossesAndAllocatedLossAdjustmentExpenses","brrt_IncurredEstimatedUltimateNetLossesAndAllocatedLossAdjustmentExpenses","brrt_IncurredEstimatedUltimateNetLossesAndAllocatedLossAdjustmentExpenses","brrt_IncurredEstimatedUltimateNetLossesAndAllocatedLossAdjustmentExpenses","brrt_IncurredEstimatedUltimateNetLossesAndAllocatedLossAdjustmentExpenses","brrt_IncurredEstimatedUltimateNetLossesAndAllocatedLossAdjustmentExpenses","brrt_IncurredEstimatedUltimateNetLossesAndAllocatedLossAdjustmentExpenses","brrt_IncurredEstimatedUltimateNetLossesAndAllocatedLossAdjustmentExpenses","brrt_IncurredEstimatedUltimateNetLossesAndAllocatedLossAdjustmentExpenses","brrt_UltimateCatastropheLosses",null,null,null,{"$f":"\"PaidCY\"&H$10&\"AY\"&B32","v":"PaidCY2015AY2012"},{"$f":"H32","v":0}]
[null,null,"brrt_CumulativePaidNetLossesAndAllocatedLossAdjustmentExpenses","brrt_CumulativePaidNetLossesAndAllocatedLossAdjustmentExpenses","brrt_CumulativePaidNetLossesAndAllocatedLossAdjustmentExpenses","brrt_CumulativePaidNetLossesAndAllocatedLossAdjustmentExpenses","brrt_CumulativePaidNetLossesAndAllocatedLossAdjustmentExpenses","brrt_CumulativePaidNetLossesAndAllocatedLossAdjustmentExpenses","brrt_CumulativePaidNetLossesAndAllocatedLossAdjustmentExpenses","brrt_CumulativePaidNetLossesAndAllocatedLossAdjustmentExpenses","brrt_CumulativePaidNetLossesAndAllocatedLossAdjustmentExpenses","brrt_CumulativePaidNetLossesAndAllocatedLossAdjustmentExpenses","brrt_PaidCatastropheLosses",null,null,null,{"$f":"\"PaidCY\"&H$10&\"AY\"&B33","v":"PaidCY2015AY2013"},{"$f":"H33","v":0}]
[null,null,"brrt_BulkAndIBNRReservesOnNetLossesAndAllocatedLossAdjustmentExpenses","brrt_BulkAndIBNRReservesOnNetLossesAndAllocatedLossAdjustmentExpenses","brrt_BulkAndIBNRReservesOnNetLossesAndAllocatedLossAdjustmentExpenses","brrt_BulkAndIBNRReservesOnNetLossesAndAllocatedLossAdjustmentExpenses","brrt_BulkAndIBNRReservesOnNetLossesAndAllocatedLossAdjustmentExpenses","brrt_BulkAndIBNRReservesOnNetLossesAndAllocatedLossAdjustmentExpenses","brrt_BulkAndIBNRReservesOnNetLossesAndAllocatedLossAdjustmentExpenses","brrt_BulkAndIBNRReservesOnNetLossesAndAllocatedLossAdjustmentExpenses","brrt_BulkAndIBNRReservesOnNetLossesAndAllocatedLossAdjustmentExpenses","brrt_BulkAndIBNRReservesOnNetLossesAndAllocatedLossAdjustmentExpenses","brrt_LossesBulkAndBNRReserves",null,null,null,{"$f":"\"PaidCY\"&H$10&\"AY\"&B34","v":"PaidCY2015AY2014"},{"$f":"H34","v":0}]
[null,null,"brrt_GrossPremiumsWritten","brrt_GrossPremiumsEarned","brrt_NetPremiumsWritten","brrt_NetPremiumsEarned","brrt_UnallocatedLossAdjustmentExpensesPaid","brrt_UnallocatedLossAdjustmentExpensesIncurred",null,"brrt_CommissionsAndBrokerage","brrt_GeneralAndAdministrative","brrt_PersonnelCosts","brrt_OtherUnderwritingExpenses",null,null,null,{"$f":"\"PaidCY\"&H$10&\"AY\"&B35","v":"PaidCY2015AY2015"},{"$f":"H35","v":0}]
[null,null,"brrt_ReportingYearAxis_brrt_YNMinus9Member","brrt_ReportingYearAxis_brrt_YNMinus8Member","brrt_ReportingYearAxis_brrt_YNMinus7Member","brrt_ReportingYearAxis_brrt_YNMinus6Member","brrt_ReportingYearAxis_brrt_YNMinus5Member","brrt_ReportingYearAxis_brrt_YNMinus4Member","brrt_ReportingYearAxis_brrt_YNMinus3Member","brrt_ReportingYearAxis_brrt_YNMinus2Member","brrt_ReportingYearAxis_brrt_YNMinus1Member","brrt_ReportingYearAxis_brrt_YNMember","brrt_ReportingYearAxis_brrt_YNMember",null,null,null,{"$f":"\"PaidCY\"&I$10&\"AY\"&B29","v":"PaidCY2016AYPrior"},{"$f":"I29","v":0}]
[null,null,null,null,null,null,null,null,null,null,null,null,null,null,null,null,"PaidCY2016AY2010",0]
[null,{"$f":"IF(B3=\"\",\"\",TEXT(DATE(YEAR(B3+1)-1,MONTH(B3+1),DAY(B3+1)),\"mm/dd/yyyy\"))","v":"01/01/2019"},null,null,null,null,null,null,null,null,null,null,null,null,null,null,"PaidCY2016AY2011",0]
[null,{"$f":"IF(B3=\"\",\"\",TEXT(B3,\"mm/dd/yyyy\"))","v":"12/31/2019"},null,null,null,null,null,null,null,null,null,null,null,null,null,null,"PaidCY2016AY2012",0]
[null,null,null,null,null,null,null,null,null,null,null,null,null,null,null,null,"PaidCY2016AY2013",0]
[null,null,null,null,null,null,null,null,null,null,null,null,null,null,null,null,"PaidCY2016AY2014",0]
[null,null,null,null,null,null,null,null,null,null,null,null,null,null,null,null,"PaidCY2016AY2015",0]
[null,null,null,null,null,null,null,null,null,null,null,null,null,null,null,null,"PaidCY2016AY2016",0]
[null,null,{"$f":"XBRLMap(C11,C$89&\".\"&$U$4&\".\"&$U$6&\".\"&$U11&\".\"&C$93&\".\"&$U$7,$B$95,$B$96,CONFIGURATION!$B$10,\"BMA\",CONFIGURATION!$B$1,\"bscr\",1000)","v":"Mapped"},{"$f":"XBRLMap(D11,D$89&\".\"&$U$4&\".\"&$U$6&\".\"&$U11&\".\"&D$93&\".\"&$U$7,$B$95,$B$96,CONFIGURATION!$B$10,\"BMA\",CONFIGURATION!$B$1,\"bscr\",1000)","v":"Mapped"},{"$f":"XBRLMap(E11,E$89&\".\"&$U$4&\".\"&$U$6&\".\"&$U11&\".\"&E$93&\".\"&$U$7,$B$95,$B$96,CONFIGURATION!$B$10,\"BMA\",CONFIGURATION!$B$1,\"bscr\",1000)","v":"Mapped"},{"$f":"XBRLMap(F11,F$89&\".\"&$U$4&\".\"&$U$6&\".\"&$U11&\".\"&F$93&\".\"&$U$7,$B$95,$B$96,CONFIGURATION!$B$10,\"BMA\",CONFIGURATION!$B$1,\"bscr\",1000)","v":"Mapped"},{"$f":"XBRLMap(G11,G$89&\".\"&$U$4&\".\"&$U$6&\".\"&$U11&\".\"&G$93&\".\"&$U$7,$B$95,$B$96,CONFIGURATION!$B$10,\"BMA\",CONFIGURATION!$B$1,\"bscr\",1000)","v":"Mapped"},{"$f":"XBRLMap(H11,H$89&\".\"&$U$4&\".\"&$U$6&\".\"&$U11&\".\"&H$93&\".\"&$U$7,$B$95,$B$96,CONFIGURATION!$B$10,\"BMA\",CONFIGURATION!$B$1,\"bscr\",1000)","v":"Mapped"},{"$f":"XBRLMap(I11,I$89&\".\"&$U$4&\".\"&$U$6&\".\"&$U11&\".\"&I$93&\".\"&$U$7,$B$95,$B$96,CONFIGURATION!$B$10,\"BMA\",CONFIGURATION!$B$1,\"bscr\",1000)","v":"Mapped"},{"$f":"XBRLMap(J11,J$89&\".\"&$U$4&\".\"&$U$6&\".\"&$U11&\".\"&J$93&\".\"&$U$7,$B$95,$B$96,CONFIGURATION!$B$10,\"BMA\",CONFIGURATION!$B$1,\"bscr\",1000)","v":"Mapped"},{"$f":"XBRLMap(K11,K$89&\".\"&$U$4&\".\"&$U$6&\".\"&$U11&\".\"&K$93&\".\"&$U$7,$B$95,$B$96,CONFIGURATION!$B$10,\"BMA\",CONFIGURATION!$B$1,\"bscr\",1000)","v":"Mapped"},{"$f":"XBRLMap(L11,L$89&\".\"&$U$4&\".\"&$U$6&\".\"&$U11&\".\"&L$93&\".\"&$U$7,$B$95,$B$96,CONFIGURATION!$B$10,\"BMA\",CONFIGURATION!$B$1,\"bscr\",1000)","v":"Mapped"},{"$f":"XBRLMap(M11,M$89&\".\"&$U$4&\".\"&$U$6&\".\"&$U11&\".\"&M$93&\".\"&$U$7,$B$95,$B$96,CONFIGURATION!$B$10,\"BMA\",CONFIGURATION!$B$1,\"bscr\",1000)","v":"Mapped"},null,null,null,{"$f":"\"PaidCY\"&J$10&\"AY\"&B29","v":"PaidCY2017AYPrior"},{"$f":"J29","v":0}]
[null,null,{"$f":"XBRLMap(C12,C$89&\".\"&$U$4&\".\"&$U$6&\".\"&$U12&\".\"&C$93&\".\"&$U$7,$B$95,$B$96,CONFIGURATION!$B$10,\"BMA\",CONFIGURATION!$B$1,\"bscr\",1000)","v":"Mapped"},{"$f":"XBRLMap(D12,D$89&\".\"&$U$4&\".\"&$U$6&\".\"&$U12&\".\"&D$93&\".\"&$U$7,$B$95,$B$96,CONFIGURATION!$B$10,\"BMA\",CONFIGURATION!$B$1,\"bscr\",1000)","v":"Mapped"},{"$f":"XBRLMap(E12,E$89&\".\"&$U$4&\".\"&$U$6&\".\"&$U12&\".\"&E$93&\".\"&$U$7,$B$95,$B$96,CONFIGURATION!$B$10,\"BMA\",CONFIGURATION!$B$1,\"bscr\",1000)","v":"Mapped"},{"$f":"XBRLMap(F12,F$89&\".\"&$U$4&\".\"&$U$6&\".\"&$U12&\".\"&F$93&\".\"&$U$7,$B$95,$B$96,CONFIGURATION!$B$10,\"BMA\",CONFIGURATION!$B$1,\"bscr\",1000)","v":"Mapped"},{"$f":"XBRLMap(G12,G$89&\".\"&$U$4&\".\"&$U$6&\".\"&$U12&\".\"&G$93&\".\"&$U$7,$B$95,$B$96,CONFIGURATION!$B$10,\"BMA\",CONFIGURATION!$B$1,\"bscr\",1000)","v":"Mapped"},{"$f":"XBRLMap(H12,H$89&\".\"&$U$4&\".\"&$U$6&\".\"&$U12&\".\"&H$93&\".\"&$U$7,$B$95,$B$96,CONFIGURATION!$B$10,\"BMA\",CONFIGURATION!$B$1,\"bscr\",1000)","v":"Mapped"},{"$f":"XBRLMap(I12,I$89&\".\"&$U$4&\".\"&$U$6&\".\"&$U12&\".\"&I$93&\".\"&$U$7,$B$95,$B$96,CONFIGURATION!$B$10,\"BMA\",CONFIGURATION!$B$1,\"bscr\",1000)","v":"Mapped"},{"$f":"XBRLMap(J12,J$89&\".\"&$U$4&\".\"&$U$6&\".\"&$U12&\".\"&J$93&\".\"&$U$7,$B$95,$B$96,CONFIGURATION!$B$10,\"BMA\",CONFIGURATION!$B$1,\"bscr\",1000)","v":"Mapped"},{"$f":"XBRLMap(K12,K$89&\".\"&$U$4&\".\"&$U$6&\".\"&$U12&\".\"&K$93&\".\"&$U$7,$B$95,$B$96,CONFIGURATION!$B$10,\"BMA\",CONFIGURATION!$B$1,\"bscr\",1000)","v":"Mapped"},{"$f":"XBRLMap(L12,L$89&\".\"&$U$4&\".\"&$U$6&\".\"&$U12&\".\"&L$93&\".\"&$U$7,$B$95,$B$96,CONFIGURATION!$B$10,\"BMA\",CONFIGURATION!$B$1,\"bscr\",1000)","v":"Mapped"},{"$f":"XBRLMap(M12,M$89&\".\"&$U$4&\".\"&$U$6&\".\"&$U12&\".\"&M$93&\".\"&$U$7,$B$95,$B$96,CONFIGURATION!$B$10,\"BMA\",CONFIGURATION!$B$1,\"bscr\",1000)","v":"Mapped"},null,null,null,"PaidCY2017AY2010",0]
[null,null,null,{"$f":"XBRLMap(D13,D$89&\".\"&$U$4&\".\"&$U$6&\".\"&$U13&\".\"&D$93&\".\"&$U$7,$B$95,$B$96,CONFIGURATION!$B$10,\"BMA\",CONFIGURATION!$B$1,\"bscr\",1000)","v":"Mapped"},{"$f":"XBRLMap(E13,E$89&\".\"&$U$4&\".\"&$U$6&\".\"&$U13&\".\"&E$93&\".\"&$U$7,$B$95,$B$96,CONFIGURATION!$B$10,\"BMA\",CONFIGURATION!$B$1,\"bscr\",1000)","v":"Mapped"},{"$f":"XBRLMap(F13,F$89&\".\"&$U$4&\".\"&$U$6&\".\"&$U13&\".\"&F$93&\".\"&$U$7,$B$95,$B$96,CONFIGURATION!$B$10,\"BMA\",CONFIGURATION!$B$1,\"bscr\",1000)","v":"Mapped"},{"$f":"XBRLMap(G13,G$89&\".\"&$U$4&\".\"&$U$6&\".\"&$U13&\".\"&G$93&\".\"&$U$7,$B$95,$B$96,CONFIGURATION!$B$10,\"BMA\",CONFIGURATION!$B$1,\"bscr\",1000)","v":"Mapped"},{"$f":"XBRLMap(H13,H$89&\".\"&$U$4&\".\"&$U$6&\".\"&$U13&\".\"&H$93&\".\"&$U$7,$B$95,$B$96,CONFIGURATION!$B$10,\"BMA\",CONFIGURATION!$B$1,\"bscr\",1000)","v":"Mapped"},{"$f":"XBRLMap(I13,I$89&\".\"&$U$4&\".\"&$U$6&\".\"&$U13&\".\"&I$93&\".\"&$U$7,$B$95,$B$96,CONFIGURATION!$B$10,\"BMA\",CONFIGURATION!$B$1,\"bscr\",1000)","v":"Mapped"},{"$f":"XBRLMap(J13,J$89&\".\"&$U$4&\".\"&$U$6&\".\"&$U13&\".\"&J$93&\".\"&$U$7,$B$95,$B$96,CONFIGURATION!$B$10,\"BMA\",CONFIGURATION!$B$1,\"bscr\",1000)","v":"Mapped"},{"$f":"XBRLMap(K13,K$89&\".\"&$U$4&\".\"&$U$6&\".\"&$U13&\".\"&K$93&\".\"&$U$7,$B$95,$B$96,CONFIGURATION!$B$10,\"BMA\",CONFIGURATION!$B$1,\"bscr\",1000)","v":"Mapped"},{"$f":"XBRLMap(L13,L$89&\".\"&$U$4&\".\"&$U$6&\".\"&$U13&\".\"&L$93&\".\"&$U$7,$B$95,$B$96,CONFIGURATION!$B$10,\"BMA\",CONFIGURATION!$B$1,\"bscr\",1000)","v":"Mapped"},{"$f":"XBRLMap(M13,M$89&\".\"&$U$4&\".\"&$U$6&\".\"&$U13&\".\"&M$93&\".\"&$U$7,$B$95,$B$96,CONFIGURATION!$B$10,\"BMA\",CONFIGURATION!$B$1,\"bscr\",1000)","v":"Mapped"},null,null,null,"PaidCY2017AY2011",0]
[null,null,null,null,{"$f":"XBRLMap(E14,E$89&\".\"&$U$4&\".\"&$U$6&\".\"&$U14&\".\"&E$93&\".\"&$U$7,$B$95,$B$96,CONFIGURATION!$B$10,\"BMA\",CONFIGURATION!$B$1,\"bscr\",1000)","v":"Mapped"},{"$f":"XBRLMap(F14,F$89&\".\"&$U$4&\".\"&$U$6&\".\"&$U14&\".\"&F$93&\".\"&$U$7,$B$95,$B$96,CONFIGURATION!$B$10,\"BMA\",CONFIGURATION!$B$1,\"bscr\",1000)","v":"Mapped"},{"$f":"XBRLMap(G14,G$89&\".\"&$U$4&\".\"&$U$6&\".\"&$U14&\".\"&G$93&\".\"&$U$7,$B$95,$B$96,CONFIGURATION!$B$10,\"BMA\",CONFIGURATION!$B$1,\"bscr\",1000)","v":"Mapped"},{"$f":"XBRLMap(H14,H$89&\".\"&$U$4&\".\"&$U$6&\".\"&$U14&\".\"&H$93&\".\"&$U$7,$B$95,$B$96,CONFIGURATION!$B$10,\"BMA\",CONFIGURATION!$B$1,\"bscr\",1000)","v":"Mapped"},{"$f":"XBRLMap(I14,I$89&\".\"&$U$4&\".\"&$U$6&\".\"&$U14&\".\"&I$93&\".\"&$U$7,$B$95,$B$96,CONFIGURATION!$B$10,\"BMA\",CONFIGURATION!$B$1,\"bscr\",1000)","v":"Mapped"},{"$f":"XBRLMap(J14,J$89&\".\"&$U$4&\".\"&$U$6&\".\"&$U14&\".\"&J$93&\".\"&$U$7,$B$95,$B$96,CONFIGURATION!$B$10,\"BMA\",CONFIGURATION!$B$1,\"bscr\",1000)","v":"Mapped"},{"$f":"XBRLMap(K14,K$89&\".\"&$U$4&\".\"&$U$6&\".\"&$U14&\".\"&K$93&\".\"&$U$7,$B$95,$B$96,CONFIGURATION!$B$10,\"BMA\",CONFIGURATION!$B$1,\"bscr\",1000)","v":"Mapped"},{"$f":"XBRLMap(L14,L$89&\".\"&$U$4&\".\"&$U$6&\".\"&$U14&\".\"&L$93&\".\"&$U$7,$B$95,$B$96,CONFIGURATION!$B$10,\"BMA\",CONFIGURATION!$B$1,\"bscr\",1000)","v":"Mapped"},{"$f":"XBRLMap(M14,M$89&\".\"&$U$4&\".\"&$U$6&\".\"&$U14&\".\"&M$93&\".\"&$U$7,$B$95,$B$96,CONFIGURATION!$B$10,\"BMA\",CONFIGURATION!$B$1,\"bscr\",1000)","v":"Mapped"},null,null,null,"PaidCY2017AY2012",0]
[null,null,null,null,null,{"$f":"XBRLMap(F15,F$89&\".\"&$U$4&\".\"&$U$6&\".\"&$U15&\".\"&F$93&\".\"&$U$7,$B$95,$B$96,CONFIGURATION!$B$10,\"BMA\",CONFIGURATION!$B$1,\"bscr\",1000)","v":"Mapped"},{"$f":"XBRLMap(G15,G$89&\".\"&$U$4&\".\"&$U$6&\".\"&$U15&\".\"&G$93&\".\"&$U$7,$B$95,$B$96,CONFIGURATION!$B$10,\"BMA\",CONFIGURATION!$B$1,\"bscr\",1000)","v":"Mapped"},{"$f":"XBRLMap(H15,H$89&\".\"&$U$4&\".\"&$U$6&\".\"&$U15&\".\"&H$93&\".\"&$U$7,$B$95,$B$96,CONFIGURATION!$B$10,\"BMA\",CONFIGURATION!$B$1,\"bscr\",1000)","v":"Mapped"},{"$f":"XBRLMap(I15,I$89&\".\"&$U$4&\".\"&$U$6&\".\"&$U15&\".\"&I$93&\".\"&$U$7,$B$95,$B$96,CONFIGURATION!$B$10,\"BMA\",CONFIGURATION!$B$1,\"bscr\",1000)","v":"Mapped"},{"$f":"XBRLMap(J15,J$89&\".\"&$U$4&\".\"&$U$6&\".\"&$U15&\".\"&J$93&\".\"&$U$7,$B$95,$B$96,CONFIGURATION!$B$10,\"BMA\",CONFIGURATION!$B$1,\"bscr\",1000)","v":"Mapped"},{"$f":"XBRLMap(K15,K$89&\".\"&$U$4&\".\"&$U$6&\".\"&$U15&\".\"&K$93&\".\"&$U$7,$B$95,$B$96,CONFIGURATION!$B$10,\"BMA\",CONFIGURATION!$B$1,\"bscr\",1000)","v":"Mapped"},{"$f":"XBRLMap(L15,L$89&\".\"&$U$4&\".\"&$U$6&\".\"&$U15&\".\"&L$93&\".\"&$U$7,$B$95,$B$96,CONFIGURATION!$B$10,\"BMA\",CONFIGURATION!$B$1,\"bscr\",1000)","v":"Mapped"},{"$f":"XBRLMap(M15,M$89&\".\"&$U$4&\".\"&$U$6&\".\"&$U15&\".\"&M$93&\".\"&$U$7,$B$95,$B$96,CONFIGURATION!$B$10,\"BMA\",CONFIGURATION!$B$1,\"bscr\",1000)","v":"Mapped"},null,null,null,"PaidCY2017AY2013",0]
[null,null,null,null,null,null,{"$f":"XBRLMap(G16,G$89&\".\"&$U$4&\".\"&$U$6&\".\"&$U16&\".\"&G$93&\".\"&$U$7,$B$95,$B$96,CONFIGURATION!$B$10,\"BMA\",CONFIGURATION!$B$1,\"bscr\",1000)","v":"Mapped"},{"$f":"XBRLMap(H16,H$89&\".\"&$U$4&\".\"&$U$6&\".\"&$U16&\".\"&H$93&\".\"&$U$7,$B$95,$B$96,CONFIGURATION!$B$10,\"BMA\",CONFIGURATION!$B$1,\"bscr\",1000)","v":"Mapped"},{"$f":"XBRLMap(I16,I$89&\".\"&$U$4&\".\"&$U$6&\".\"&$U16&\".\"&I$93&\".\"&$U$7,$B$95,$B$96,CONFIGURATION!$B$10,\"BMA\",CONFIGURATION!$B$1,\"bscr\",1000)","v":"Mapped"},{"$f":"XBRLMap(J16,J$89&\".\"&$U$4&\".\"&$U$6&\".\"&$U16&\".\"&J$93&\".\"&$U$7,$B$95,$B$96,CONFIGURATION!$B$10,\"BMA\",CONFIGURATION!$B$1,\"bscr\",1000)","v":"Mapped"},{"$f":"XBRLMap(K16,K$89&\".\"&$U$4&\".\"&$U$6&\".\"&$U16&\".\"&K$93&\".\"&$U$7,$B$95,$B$96,CONFIGURATION!$B$10,\"BMA\",CONFIGURATION!$B$1,\"bscr\",1000)","v":"Mapped"},{"$f":"XBRLMap(L16,L$89&\".\"&$U$4&\".\"&$U$6&\".\"&$U16&\".\"&L$93&\".\"&$U$7,$B$95,$B$96,CONFIGURATION!$B$10,\"BMA\",CONFIGURATION!$B$1,\"bscr\",1000)","v":"Mapped"},{"$f":"XBRLMap(M16,M$89&\".\"&$U$4&\".\"&$U$6&\".\"&$U16&\".\"&M$93&\".\"&$U$7,$B$95,$B$96,CONFIGURATION!$B$10,\"BMA\",CONFIGURATION!$B$1,\"bscr\",1000)","v":"Mapped"},null,null,null,"PaidCY2017AY2014",0]
[null,null,null,null,null,null,null,{"$f":"XBRLMap(H17,H$89&\".\"&$U$4&\".\"&$U$6&\".\"&$U17&\".\"&H$93&\".\"&$U$7,$B$95,$B$96,CONFIGURATION!$B$10,\"BMA\",CONFIGURATION!$B$1,\"bscr\",1000)","v":"Mapped"},{"$f":"XBRLMap(I17,I$89&\".\"&$U$4&\".\"&$U$6&\".\"&$U17&\".\"&I$93&\".\"&$U$7,$B$95,$B$96,CONFIGURATION!$B$10,\"BMA\",CONFIGURATION!$B$1,\"bscr\",1000)","v":"Mapped"},{"$f":"XBRLMap(J17,J$89&\".\"&$U$4&\".\"&$U$6&\".\"&$U17&\".\"&J$93&\".\"&$U$7,$B$95,$B$96,CONFIGURATION!$B$10,\"BMA\",CONFIGURATION!$B$1,\"bscr\",1000)","v":"Mapped"},{"$f":"XBRLMap(K17,K$89&\".\"&$U$4&\".\"&$U$6&\".\"&$U17&\".\"&K$93&\".\"&$U$7,$B$95,$B$96,CONFIGURATION!$B$10,\"BMA\",CONFIGURATION!$B$1,\"bscr\",1000)","v":"Mapped"},{"$f":"XBRLMap(L17,L$89&\".\"&$U$4&\".\"&$U$6&\".\"&$U17&\".\"&L$93&\".\"&$U$7,$B$95,$B$96,CONFIGURATION!$B$10,\"BMA\",CONFIGURATION!$B$1,\"bscr\",1000)","v":"Mapped"},{"$f":"XBRLMap(M17,M$89&\".\"&$U$4&\".\"&$U$6&\".\"&$U17&\".\"&M$93&\".\"&$U$7,$B$95,$B$96,CONFIGURATION!$B$10,\"BMA\",CONFIGURATION!$B$1,\"bscr\",1000)","v":"Mapped"},null,null,null,"PaidCY2017AY2015",0]
[null,null,null,null,null,null,null,null,{"$f":"XBRLMap(I18,I$89&\".\"&$U$4&\".\"&$U$6&\".\"&$U18&\".\"&I$93&\".\"&$U$7,$B$95,$B$96,CONFIGURATION!$B$10,\"BMA\",CONFIGURATION!$B$1,\"bscr\",1000)","v":"Mapped"},{"$f":"XBRLMap(J18,J$89&\".\"&$U$4&\".\"&$U$6&\".\"&$U18&\".\"&J$93&\".\"&$U$7,$B$95,$B$96,CONFIGURATION!$B$10,\"BMA\",CONFIGURATION!$B$1,\"bscr\",1000)","v":"Mapped"},{"$f":"XBRLMap(K18,K$89&\".\"&$U$4&\".\"&$U$6&\".\"&$U18&\".\"&K$93&\".\"&$U$7,$B$95,$B$96,CONFIGURATION!$B$10,\"BMA\",CONFIGURATION!$B$1,\"bscr\",1000)","v":"Mapped"},{"$f":"XBRLMap(L18,L$89&\".\"&$U$4&\".\"&$U$6&\".\"&$U18&\".\"&L$93&\".\"&$U$7,$B$95,$B$96,CONFIGURATION!$B$10,\"BMA\",CONFIGURATION!$B$1,\"bscr\",1000)","v":"Mapped"},{"$f":"XBRLMap(M18,M$89&\".\"&$U$4&\".\"&$U$6&\".\"&$U18&\".\"&M$93&\".\"&$U$7,$B$95,$B$96,CONFIGURATION!$B$10,\"BMA\",CONFIGURATION!$B$1,\"bscr\",1000)","v":"Mapped"},null,null,null,"PaidCY2017AY2016",0]
[null,null,null,null,null,null,null,null,null,{"$f":"XBRLMap(J19,J$89&\".\"&$U$4&\".\"&$U$6&\".\"&$U19&\".\"&J$93&\".\"&$U$7,$B$95,$B$96,CONFIGURATION!$B$10,\"BMA\",CONFIGURATION!$B$1,\"bscr\",1000)","v":"Mapped"},{"$f":"XBRLMap(K19,K$89&\".\"&$U$4&\".\"&$U$6&\".\"&$U19&\".\"&K$93&\".\"&$U$7,$B$95,$B$96,CONFIGURATION!$B$10,\"BMA\",CONFIGURATION!$B$1,\"bscr\",1000)","v":"Mapped"},{"$f":"XBRLMap(L19,L$89&\".\"&$U$4&\".\"&$U$6&\".\"&$U19&\".\"&L$93&\".\"&$U$7,$B$95,$B$96,CONFIGURATION!$B$10,\"BMA\",CONFIGURATION!$B$1,\"bscr\",1000)","v":"Mapped"},{"$f":"XBRLMap(M19,M$89&\".\"&$U$4&\".\"&$U$6&\".\"&$U19&\".\"&M$93&\".\"&$U$7,$B$95,$B$96,CONFIGURATION!$B$10,\"BMA\",CONFIGURATION!$B$1,\"bscr\",1000)","v":"Mapped"},null,null,null,"PaidCY2017AY2017",0]
[null,null,null,null,null,null,null,null,null,null,{"$f":"XBRLMap(K20,K$89&\".\"&$U$4&\".\"&$U$6&\".\"&$U20&\".\"&K$93&\".\"&$U$7,$B$95,$B$96,CONFIGURATION!$B$10,\"BMA\",CONFIGURATION!$B$1,\"bscr\",1000)","v":"Mapped"},{"$f":"XBRLMap(L20,L$89&\".\"&$U$4&\".\"&$U$6&\".\"&$U20&\".\"&L$93&\".\"&$U$7,$B$95,$B$96,CONFIGURATION!$B$10,\"BMA\",CONFIGURATION!$B$1,\"bscr\",1000)","v":"Mapped"},{"$f":"XBRLMap(M20,M$89&\".\"&$U$4&\".\"&$U$6&\".\"&$U20&\".\"&M$93&\".\"&$U$7,$B$95,$B$96,CONFIGURATION!$B$10,\"BMA\",CONFIGURATION!$B$1,\"bscr\",1000)","v":"Mapped"},null,null,null,{"$f":"\"PaidCY\"&K$10&\"AY\"&B29","v":"PaidCY2018AYPrior"},{"$f":"K29","v":0}]
[null,null,null,null,null,null,null,null,null,null,null,{"$f":"XBRLMap(L21,L$89&\".\"&$U$4&\".\"&$U$6&\".\"&$U21&\".\"&L$93&\".\"&$U$7,$B$95,$B$96,CONFIGURATION!$B$10,\"BMA\",CONFIGURATION!$B$1,\"bscr\",1000)","v":"Mapped"},{"$f":"XBRLMap(M21,M$89&\".\"&$U$4&\".\"&$U$6&\".\"&$U21&\".\"&M$93&\".\"&$U$7,$B$95,$B$96,CONFIGURATION!$B$10,\"BMA\",CONFIGURATION!$B$1,\"bscr\",1000)","v":"Mapped"},null,null,null,"PaidCY2018AY2010",0]
[null,null,null,null,null,null,null,null,null,null,null,null,null,null,null,null,"PaidCY2018AY2011",0]
[null,null,null,null,null,null,null,null,null,null,null,null,null,null,null,null,"PaidCY2018AY2012",0]
[null,null,null,null,null,null,null,null,null,null,null,null,null,null,null,null,"PaidCY2018AY2013",0]
[null,null,null,null,null,null,null,null,null,null,null,null,null,null,null,null,"PaidCY2018AY2014",0]
[null,null,null,null,null,null,null,null,null,null,null,null,null,null,null,null,"PaidCY2018AY2015",0]
[null,null,null,null,null,null,null,null,null,null,null,null,null,null,null,null,"PaidCY2018AY2016",0]
[null,null,null,null,null,null,null,null,null,null,null,null,null,null,null,null,"PaidCY2018AY2017",0]
[null,null,null,null,null,null,null,null,null,null,null,null,null,null,null,null,"PaidCY2018AY2018",0]
[null,null,{"$f":"XBRLMap(C29,C$90&\".\"&$U$4&\".\"&$U29&\".\"&C$93&\".\"&$U$7,$B$95,$B$96,CONFIGURATION!$B$10,\"BMA\",CONFIGURATION!$B$1,\"bscr\",1000)","v":"Mapped"},{"$f":"XBRLMap(D29,D$90&\".\"&$U$4&\".\"&$U29&\".\"&D$93&\".\"&$U$7,$B$95,$B$96,CONFIGURATION!$B$10,\"BMA\",CONFIGURATION!$B$1,\"bscr\",1000)","v":"Mapped"},{"$f":"XBRLMap(E29,E$90&\".\"&$U$4&\".\"&$U29&\".\"&E$93&\".\"&$U$7,$B$95,$B$96,CONFIGURATION!$B$10,\"BMA\",CONFIGURATION!$B$1,\"bscr\",1000)","v":"Mapped"},{"$f":"XBRLMap(F29,F$90&\".\"&$U$4&\".\"&$U29&\".\"&F$93&\".\"&$U$7,$B$95,$B$96,CONFIGURATION!$B$10,\"BMA\",CONFIGURATION!$B$1,\"bscr\",1000)","v":"Mapped"},{"$f":"XBRLMap(G29,G$90&\".\"&$U$4&\".\"&$U29&\".\"&G$93&\".\"&$U$7,$B$95,$B$96,CONFIGURATION!$B$10,\"BMA\",CONFIGURATION!$B$1,\"bscr\",1000)","v":"Mapped"},{"$f":"XBRLMap(H29,H$90&\".\"&$U$4&\".\"&$U29&\".\"&H$93&\".\"&$U$7,$B$95,$B$96,CONFIGURATION!$B$10,\"BMA\",CONFIGURATION!$B$1,\"bscr\",1000)","v":"Mapped"},{"$f":"XBRLMap(I29,I$90&\".\"&$U$4&\".\"&$U29&\".\"&I$93&\".\"&$U$7,$B$95,$B$96,CONFIGURATION!$B$10,\"BMA\",CONFIGURATION!$B$1,\"bscr\",1000)","v":"Mapped"},{"$f":"XBRLMap(J29,J$90&\".\"&$U$4&\".\"&$U29&\".\"&J$93&\".\"&$U$7,$B$95,$B$96,CONFIGURATION!$B$10,\"BMA\",CONFIGURATION!$B$1,\"bscr\",1000)","v":"Mapped"},{"$f":"XBRLMap(K29,K$90&\".\"&$U$4&\".\"&$U29&\".\"&K$93&\".\"&$U$7,$B$95,$B$96,CONFIGURATION!$B$10,\"BMA\",CONFIGURATION!$B$1,\"bscr\",1000)","v":"Mapped"},{"$f":"XBRLMap(L29,L$90&\".\"&$U$4&\".\"&$U29&\".\"&L$93&\".\"&$U$7,$B$95,$B$96,CONFIGURATION!$B$10,\"BMA\",CONFIGURATION!$B$1,\"bscr\",1000)","v":"Mapped"},{"$f":"XBRLMap(M29,M$90&\".\"&$U$4&\".\"&$U29&\".\"&M$93&\".\"&$U$7,$B$95,$B$96,CONFIGURATION!$B$10,\"BMA\",CONFIGURATION!$B$1,\"bscr\",1000)","v":"Mapped"},null,null,null,{"$f":"\"PaidCY\"&L$10&\"AY\"&B29","v":"PaidCY2019AYPrior"},{"$f":"L29","v":0}]
[null,null,{"$f":"XBRLMap(C30,C$90&\".\"&$U$4&\".\"&$U30&\".\"&C$93&\".\"&$U$7,$B$95,$B$96,CONFIGURATION!$B$10,\"BMA\",CONFIGURATION!$B$1,\"bscr\",1000)","v":"Mapped"},{"$f":"XBRLMap(D30,D$90&\".\"&$U$4&\".\"&$U30&\".\"&D$93&\".\"&$U$7,$B$95,$B$96,CONFIGURATION!$B$10,\"BMA\",CONFIGURATION!$B$1,\"bscr\",1000)","v":"Mapped"},{"$f":"XBRLMap(E30,E$90&\".\"&$U$4&\".\"&$U30&\".\"&E$93&\".\"&$U$7,$B$95,$B$96,CONFIGURATION!$B$10,\"BMA\",CONFIGURATION!$B$1,\"bscr\",1000)","v":"Mapped"},{"$f":"XBRLMap(F30,F$90&\".\"&$U$4&\".\"&$U30&\".\"&F$93&\".\"&$U$7,$B$95,$B$96,CONFIGURATION!$B$10,\"BMA\",CONFIGURATION!$B$1,\"bscr\",1000)","v":"Mapped"},{"$f":"XBRLMap(G30,G$90&\".\"&$U$4&\".\"&$U30&\".\"&G$93&\".\"&$U$7,$B$95,$B$96,CONFIGURATION!$B$10,\"BMA\",CONFIGURATION!$B$1,\"bscr\",1000)","v":"Mapped"},{"$f":"XBRLMap(H30,H$90&\".\"&$U$4&\".\"&$U30&\".\"&H$93&\".\"&$U$7,$B$95,$B$96,CONFIGURATION!$B$10,\"BMA\",CONFIGURATION!$B$1,\"bscr\",1000)","v":"Mapped"},{"$f":"XBRLMap(I30,I$90&\".\"&$U$4&\".\"&$U30&\".\"&I$93&\".\"&$U$7,$B$95,$B$96,CONFIGURATION!$B$10,\"BMA\",CONFIGURATION!$B$1,\"bscr\",1000)","v":"Mapped"},{"$f":"XBRLMap(J30,J$90&\".\"&$U$4&\".\"&$U30&\".\"&J$93&\".\"&$U$7,$B$95,$B$96,CONFIGURATION!$B$10,\"BMA\",CONFIGURATION!$B$1,\"bscr\",1000)","v":"Mapped"},{"$f":"XBRLMap(K30,K$90&\".\"&$U$4&\".\"&$U30&\".\"&K$93&\".\"&$U$7,$B$95,$B$96,CONFIGURATION!$B$10,\"BMA\",CONFIGURATION!$B$1,\"bscr\",1000)","v":"Mapped"},{"$f":"XBRLMap(L30,L$90&\".\"&$U$4&\".\"&$U30&\".\"&L$93&\".\"&$U$7,$B$95,$B$96,CONFIGURATION!$B$10,\"BMA\",CONFIGURATION!$B$1,\"bscr\",1000)","v":"Mapped"},{"$f":"XBRLMap(M30,M$90&\".\"&$U$4&\".\"&$U30&\".\"&M$93&\".\"&$U$7,$B$95,$B$96,CONFIGURATION!$B$10,\"BMA\",CONFIGURATION!$B$1,\"bscr\",1000)","v":"Mapped"},null,null,null,"PaidCY2019AY2010",0]
[null,null,null,{"$f":"XBRLMap(D31,D$90&\".\"&$U$4&\".\"&$U31&\".\"&D$93&\".\"&$U$7,$B$95,$B$96,CONFIGURATION!$B$10,\"BMA\",CONFIGURATION!$B$1,\"bscr\",1000)","v":"Mapped"},{"$f":"XBRLMap(E31,E$90&\".\"&$U$4&\".\"&$U31&\".\"&E$93&\".\"&$U$7,$B$95,$B$96,CONFIGURATION!$B$10,\"BMA\",CONFIGURATION!$B$1,\"bscr\",1000)","v":"Mapped"},{"$f":"XBRLMap(F31,F$90&\".\"&$U$4&\".\"&$U31&\".\"&F$93&\".\"&$U$7,$B$95,$B$96,CONFIGURATION!$B$10,\"BMA\",CONFIGURATION!$B$1,\"bscr\",1000)","v":"Mapped"},{"$f":"XBRLMap(G31,G$90&\".\"&$U$4&\".\"&$U31&\".\"&G$93&\".\"&$U$7,$B$95,$B$96,CONFIGURATION!$B$10,\"BMA\",CONFIGURATION!$B$1,\"bscr\",1000)","v":"Mapped"},{"$f":"XBRLMap(H31,H$90&\".\"&$U$4&\".\"&$U31&\".\"&H$93&\".\"&$U$7,$B$95,$B$96,CONFIGURATION!$B$10,\"BMA\",CONFIGURATION!$B$1,\"bscr\",1000)","v":"Mapped"},{"$f":"XBRLMap(I31,I$90&\".\"&$U$4&\".\"&$U31&\".\"&I$93&\".\"&$U$7,$B$95,$B$96,CONFIGURATION!$B$10,\"BMA\",CONFIGURATION!$B$1,\"bscr\",1000)","v":"Mapped"},{"$f":"XBRLMap(J31,J$90&\".\"&$U$4&\".\"&$U31&\".\"&J$93&\".\"&$U$7,$B$95,$B$96,CONFIGURATION!$B$10,\"BMA\",CONFIGURATION!$B$1,\"bscr\",1000)","v":"Mapped"},{"$f":"XBRLMap(K31,K$90&\".\"&$U$4&\".\"&$U31&\".\"&K$93&\".\"&$U$7,$B$95,$B$96,CONFIGURATION!$B$10,\"BMA\",CONFIGURATION!$B$1,\"bscr\",1000)","v":"Mapped"},{"$f":"XBRLMap(L31,L$90&\".\"&$U$4&\".\"&$U31&\".\"&L$93&\".\"&$U$7,$B$95,$B$96,CONFIGURATION!$B$10,\"BMA\",CONFIGURATION!$B$1,\"bscr\",1000)","v":"Mapped"},{"$f":"XBRLMap(M31,M$90&\".\"&$U$4&\".\"&$U31&\".\"&M$93&\".\"&$U$7,$B$95,$B$96,CONFIGURATION!$B$10,\"BMA\",CONFIGURATION!$B$1,\"bscr\",1000)","v":"Mapped"},null,null,null,"PaidCY2019AY2011",0]
[null,null,null,null,{"$f":"XBRLMap(E32,E$90&\".\"&$U$4&\".\"&$U32&\".\"&E$93&\".\"&$U$7,$B$95,$B$96,CONFIGURATION!$B$10,\"BMA\",CONFIGURATION!$B$1,\"bscr\",1000)","v":"Mapped"},{"$f":"XBRLMap(F32,F$90&\".\"&$U$4&\".\"&$U32&\".\"&F$93&\".\"&$U$7,$B$95,$B$96,CONFIGURATION!$B$10,\"BMA\",CONFIGURATION!$B$1,\"bscr\",1000)","v":"Mapped"},{"$f":"XBRLMap(G32,G$90&\".\"&$U$4&\".\"&$U32&\".\"&G$93&\".\"&$U$7,$B$95,$B$96,CONFIGURATION!$B$10,\"BMA\",CONFIGURATION!$B$1,\"bscr\",1000)","v":"Mapped"},{"$f":"XBRLMap(H32,H$90&\".\"&$U$4&\".\"&$U32&\".\"&H$93&\".\"&$U$7,$B$95,$B$96,CONFIGURATION!$B$10,\"BMA\",CONFIGURATION!$B$1,\"bscr\",1000)","v":"Mapped"},{"$f":"XBRLMap(I32,I$90&\".\"&$U$4&\".\"&$U32&\".\"&I$93&\".\"&$U$7,$B$95,$B$96,CONFIGURATION!$B$10,\"BMA\",CONFIGURATION!$B$1,\"bscr\",1000)","v":"Mapped"},{"$f":"XBRLMap(J32,J$90&\".\"&$U$4&\".\"&$U32&\".\"&J$93&\".\"&$U$7,$B$95,$B$96,CONFIGURATION!$B$10,\"BMA\",CONFIGURATION!$B$1,\"bscr\",1000)","v":"Mapped"},{"$f":"XBRLMap(K32,K$90&\".\"&$U$4&\".\"&$U32&\".\"&K$93&\".\"&$U$7,$B$95,$B$96,CONFIGURATION!$B$10,\"BMA\",CONFIGURATION!$B$1,\"bscr\",1000)","v":"Mapped"},{"$f":"XBRLMap(L32,L$90&\".\"&$U$4&\".\"&$U32&\".\"&L$93&\".\"&$U$7,$B$95,$B$96,CONFIGURATION!$B$10,\"BMA\",CONFIGURATION!$B$1,\"bscr\",1000)","v":"Mapped"},{"$f":"XBRLMap(M32,M$90&\".\"&$U$4&\".\"&$U32&\".\"&M$93&\".\"&$U$7,$B$95,$B$96,CONFIGURATION!$B$10,\"BMA\",CONFIGURATION!$B$1,\"bscr\",1000)","v":"Mapped"},null,null,null,"PaidCY2019AY2012",0]
[null,null,null,null,null,{"$f":"XBRLMap(F33,F$90&\".\"&$U$4&\".\"&$U33&\".\"&F$93&\".\"&$U$7,$B$95,$B$96,CONFIGURATION!$B$10,\"BMA\",CONFIGURATION!$B$1,\"bscr\",1000)","v":"Mapped"},{"$f":"XBRLMap(G33,G$90&\".\"&$U$4&\".\"&$U33&\".\"&G$93&\".\"&$U$7,$B$95,$B$96,CONFIGURATION!$B$10,\"BMA\",CONFIGURATION!$B$1,\"bscr\",1000)","v":"Mapped"},{"$f":"XBRLMap(H33,H$90&\".\"&$U$4&\".\"&$U33&\".\"&H$93&\".\"&$U$7,$B$95,$B$96,CONFIGURATION!$B$10,\"BMA\",CONFIGURATION!$B$1,\"bscr\",1000)","v":"Mapped"},{"$f":"XBRLMap(I33,I$90&\".\"&$U$4&\".\"&$U33&\".\"&I$93&\".\"&$U$7,$B$95,$B$96,CONFIGURATION!$B$10,\"BMA\",CONFIGURATION!$B$1,\"bscr\",1000)","v":"Mapped"},{"$f":"XBRLMap(J33,J$90&\".\"&$U$4&\".\"&$U33&\".\"&J$93&\".\"&$U$7,$B$95,$B$96,CONFIGURATION!$B$10,\"BMA\",CONFIGURATION!$B$1,\"bscr\",1000)","v":"Mapped"},{"$f":"XBRLMap(K33,K$90&\".\"&$U$4&\".\"&$U33&\".\"&K$93&\".\"&$U$7,$B$95,$B$96,CONFIGURATION!$B$10,\"BMA\",CONFIGURATION!$B$1,\"bscr\",1000)","v":"Mapped"},{"$f":"XBRLMap(L33,L$90&\".\"&$U$4&\".\"&$U33&\".\"&L$93&\".\"&$U$7,$B$95,$B$96,CONFIGURATION!$B$10,\"BMA\",CONFIGURATION!$B$1,\"bscr\",1000)","v":"Mapped"},{"$f":"XBRLMap(M33,M$90&\".\"&$U$4&\".\"&$U33&\".\"&M$93&\".\"&$U$7,$B$95,$B$96,CONFIGURATION!$B$10,\"BMA\",CONFIGURATION!$B$1,\"bscr\",1000)","v":"Mapped"},null,null,null,"PaidCY2019AY2013",0]
[null,null,null,null,null,null,{"$f":"XBRLMap(G34,G$90&\".\"&$U$4&\".\"&$U34&\".\"&G$93&\".\"&$U$7,$B$95,$B$96,CONFIGURATION!$B$10,\"BMA\",CONFIGURATION!$B$1,\"bscr\",1000)","v":"Mapped"},{"$f":"XBRLMap(H34,H$90&\".\"&$U$4&\".\"&$U34&\".\"&H$93&\".\"&$U$7,$B$95,$B$96,CONFIGURATION!$B$10,\"BMA\",CONFIGURATION!$B$1,\"bscr\",1000)","v":"Mapped"},{"$f":"XBRLMap(I34,I$90&\".\"&$U$4&\".\"&$U34&\".\"&I$93&\".\"&$U$7,$B$95,$B$96,CONFIGURATION!$B$10,\"BMA\",CONFIGURATION!$B$1,\"bscr\",1000)","v":"Mapped"},{"$f":"XBRLMap(J34,J$90&\".\"&$U$4&\".\"&$U34&\".\"&J$93&\".\"&$U$7,$B$95,$B$96,CONFIGURATION!$B$10,\"BMA\",CONFIGURATION!$B$1,\"bscr\",1000)","v":"Mapped"},{"$f":"XBRLMap(K34,K$90&\".\"&$U$4&\".\"&$U34&\".\"&K$93&\".\"&$U$7,$B$95,$B$96,CONFIGURATION!$B$10,\"BMA\",CONFIGURATION!$B$1,\"bscr\",1000)","v":"Mapped"},{"$f":"XBRLMap(L34,L$90&\".\"&$U$4&\".\"&$U34&\".\"&L$93&\".\"&$U$7,$B$95,$B$96,CONFIGURATION!$B$10,\"BMA\",CONFIGURATION!$B$1,\"bscr\",1000)","v":"Mapped"},{"$f":"XBRLMap(M34,M$90&\".\"&$U$4&\".\"&$U34&\".\"&M$93&\".\"&$U$7,$B$95,$B$96,CONFIGURATION!$B$10,\"BMA\",CONFIGURATION!$B$1,\"bscr\",1000)","v":"Mapped"},null,null,null,"PaidCY2019AY2014",0]
[null,null,null,null,null,null,null,{"$f":"XBRLMap(H35,H$90&\".\"&$U$4&\".\"&$U35&\".\"&H$93&\".\"&$U$7,$B$95,$B$96,CONFIGURATION!$B$10,\"BMA\",CONFIGURATION!$B$1,\"bscr\",1000)","v":"Mapped"},{"$f":"XBRLMap(I35,I$90&\".\"&$U$4&\".\"&$U35&\".\"&I$93&\".\"&$U$7,$B$95,$B$96,CONFIGURATION!$B$10,\"BMA\",CONFIGURATION!$B$1,\"bscr\",1000)","v":"Mapped"},{"$f":"XBRLMap(J35,J$90&\".\"&$U$4&\".\"&$U35&\".\"&J$93&\".\"&$U$7,$B$95,$B$96,CONFIGURATION!$B$10,\"BMA\",CONFIGURATION!$B$1,\"bscr\",1000)","v":"Mapped"},{"$f":"XBRLMap(K35,K$90&\".\"&$U$4&\".\"&$U35&\".\"&K$93&\".\"&$U$7,$B$95,$B$96,CONFIGURATION!$B$10,\"BMA\",CONFIGURATION!$B$1,\"bscr\",1000)","v":"Mapped"},{"$f":"XBRLMap(L35,L$90&\".\"&$U$4&\".\"&$U35&\".\"&L$93&\".\"&$U$7,$B$95,$B$96,CONFIGURATION!$B$10,\"BMA\",CONFIGURATION!$B$1,\"bscr\",1000)","v":"Mapped"},{"$f":"XBRLMap(M35,M$90&\".\"&$U$4&\".\"&$U35&\".\"&M$93&\".\"&$U$7,$B$95,$B$96,CONFIGURATION!$B$10,\"BMA\",CONFIGURATION!$B$1,\"bscr\",1000)","v":"Mapped"},null,null,null,"PaidCY2019AY2015",0]
[null,null,null,null,null,null,null,null,{"$f":"XBRLMap(I36,I$90&\".\"&$U$4&\".\"&$U36&\".\"&I$93&\".\"&$U$7,$B$95,$B$96,CONFIGURATION!$B$10,\"BMA\",CONFIGURATION!$B$1,\"bscr\",1000)","v":"Mapped"},{"$f":"XBRLMap(J36,J$90&\".\"&$U$4&\".\"&$U36&\".\"&J$93&\".\"&$U$7,$B$95,$B$96,CONFIGURATION!$B$10,\"BMA\",CONFIGURATION!$B$1,\"bscr\",1000)","v":"Mapped"},{"$f":"XBRLMap(K36,K$90&\".\"&$U$4&\".\"&$U36&\".\"&K$93&\".\"&$U$7,$B$95,$B$96,CONFIGURATION!$B$10,\"BMA\",CONFIGURATION!$B$1,\"bscr\",1000)","v":"Mapped"},{"$f":"XBRLMap(L36,L$90&\".\"&$U$4&\".\"&$U36&\".\"&L$93&\".\"&$U$7,$B$95,$B$96,CONFIGURATION!$B$10,\"BMA\",CONFIGURATION!$B$1,\"bscr\",1000)","v":"Mapped"},{"$f":"XBRLMap(M36,M$90&\".\"&$U$4&\".\"&$U36&\".\"&M$93&\".\"&$U$7,$B$95,$B$96,CONFIGURATION!$B$10,\"BMA\",CONFIGURATION!$B$1,\"bscr\",1000)","v":"Mapped"},null,null,null,"PaidCY2019AY2016",0]
[null,null,null,null,null,null,null,null,null,{"$f":"XBRLMap(J37,J$90&\".\"&$U$4&\".\"&$U37&\".\"&J$93&\".\"&$U$7,$B$95,$B$96,CONFIGURATION!$B$10,\"BMA\",CONFIGURATION!$B$1,\"bscr\",1000)","v":"Mapped"},{"$f":"XBRLMap(K37,K$90&\".\"&$U$4&\".\"&$U37&\".\"&K$93&\".\"&$U$7,$B$95,$B$96,CONFIGURATION!$B$10,\"BMA\",CONFIGURATION!$B$1,\"bscr\",1000)","v":"Mapped"},{"$f":"XBRLMap(L37,L$90&\".\"&$U$4&\".\"&$U37&\".\"&L$93&\".\"&$U$7,$B$95,$B$96,CONFIGURATION!$B$10,\"BMA\",CONFIGURATION!$B$1,\"bscr\",1000)","v":"Mapped"},{"$f":"XBRLMap(M37,M$90&\".\"&$U$4&\".\"&$U37&\".\"&M$93&\".\"&$U$7,$B$95,$B$96,CONFIGURATION!$B$10,\"BMA\",CONFIGURATION!$B$1,\"bscr\",1000)","v":"Mapped"},null,null,null,"PaidCY2019AY2017",0]
[null,null,null,null,null,null,null,null,null,null,{"$f":"XBRLMap(K38,K$90&\".\"&$U$4&\".\"&$U38&\".\"&K$93&\".\"&$U$7,$B$95,$B$96,CONFIGURATION!$B$10,\"BMA\",CONFIGURATION!$B$1,\"bscr\",1000)","v":"Mapped"},{"$f":"XBRLMap(L38,L$90&\".\"&$U$4&\".\"&$U38&\".\"&L$93&\".\"&$U$7,$B$95,$B$96,CONFIGURATION!$B$10,\"BMA\",CONFIGURATION!$B$1,\"bscr\",1000)","v":"Mapped"},{"$f":"XBRLMap(M38,M$90&\".\"&$U$4&\".\"&$U38&\".\"&M$93&\".\"&$U$7,$B$95,$B$96,CONFIGURATION!$B$10,\"BMA\",CONFIGURATION!$B$1,\"bscr\",1000)","v":"Mapped"},null,null,null,"PaidCY2019AY2018",0]
[null,null,null,null,null,null,null,null,null,null,null,{"$f":"XBRLMap(L39,L$90&\".\"&$U$4&\".\"&$U39&\".\"&L$93&\".\"&$U$7,$B$95,$B$96,CONFIGURATION!$B$10,\"BMA\",CONFIGURATION!$B$1,\"bscr\",1000)","v":"Mapped"},{"$f":"XBRLMap(M39,M$90&\".\"&$U$4&\".\"&$U39&\".\"&M$93&\".\"&$U$7,$B$95,$B$96,CONFIGURATION!$B$10,\"BMA\",CONFIGURATION!$B$1,\"bscr\",1000)","v":"Mapped"},null,null,null,"PaidCY2019AY2019",0]
[null,null,null,null,null,null,null,null,null,null,null,null,null,null,null,null,{"$f":"\"IBNRCY\"&C$10&\"AY\"&B47","v":"IBNRCY2010AYPrior"},{"$f":"C47","v":0}]
[null,null,null,null,null,null,null,null,null,null,null,null,null,null,null,null,{"$f":"\"IBNRCY\"&C$10&\"AY\"&B48","v":"IBNRCY2010AY2010"},{"$f":"C48","v":0}]
[null,null,null,null,null,null,null,null,null,null,null,null,null,null,null,null,{"$f":"\"IBNRCY\"&D$10&\"AY\"&B47","v":"IBNRCY2011AYPrior"},{"$f":"D47","v":0}]
[null,null,null,null,null,null,null,null,null,null,null,null,null,null,null,null,{"$f":"\"IBNRCY\"&D$10&\"AY\"&B48","v":"IBNRCY2011AY2010"},{"$f":"D48","v":0}]
[null,null,null,null,null,null,null,null,null,null,null,null,null,null,null,null,{"$f":"\"IBNRCY\"&D$10&\"AY\"&B49","v":"IBNRCY2011AY2011"},{"$f":"D49","v":0}]
[null,null,null,null,null,null,null,null,null,null,null,null,null,null,null,null,{"$f":"\"IBNRCY\"&E$10&\"AY\"&B47","v":"IBNRCY2012AYPrior"},{"$f":"E47","v":0}]
[null,null,null,null,null,null,null,null,null,null,null,null,null,null,null,null,{"$f":"\"IBNRCY\"&E$10&\"AY\"&B48","v":"IBNRCY2012AY2010"},{"$f":"E48","v":0}]
[null,null,null,null,null,null,null,null,null,null,null,null,null,null,null,null,{"$f":"\"IBNRCY\"&E$10&\"AY\"&B49","v":"IBNRCY2012AY2011"},{"$f":"E49","v":0}]
[null,null,{"$f":"XBRLMap(C47,C$91&\".\"&$U$4&\".\"&$U47&\".\"&C$93&\".\"&$U$7,$B$95,$B$96,CONFIGURATION!$B$10,\"BMA\",CONFIGURATION!$B$1,\"bscr\",1000)","v":"Mapped"},{"$f":"XBRLMap(D47,D$91&\".\"&$U$4&\".\"&$U47&\".\"&D$93&\".\"&$U$7,$B$95,$B$96,CONFIGURATION!$B$10,\"BMA\",CONFIGURATION!$B$1,\"bscr\",1000)","v":"Mapped"},{"$f":"XBRLMap(E47,E$91&\".\"&$U$4&\".\"&$U47&\".\"&E$93&\".\"&$U$7,$B$95,$B$96,CONFIGURATION!$B$10,\"BMA\",CONFIGURATION!$B$1,\"bscr\",1000)","v":"Mapped"},{"$f":"XBRLMap(F47,F$91&\".\"&$U$4&\".\"&$U47&\".\"&F$93&\".\"&$U$7,$B$95,$B$96,CONFIGURATION!$B$10,\"BMA\",CONFIGURATION!$B$1,\"bscr\",1000)","v":"Mapped"},{"$f":"XBRLMap(G47,G$91&\".\"&$U$4&\".\"&$U47&\".\"&G$93&\".\"&$U$7,$B$95,$B$96,CONFIGURATION!$B$10,\"BMA\",CONFIGURATION!$B$1,\"bscr\",1000)","v":"Mapped"},{"$f":"XBRLMap(H47,H$91&\".\"&$U$4&\".\"&$U47&\".\"&H$93&\".\"&$U$7,$B$95,$B$96,CONFIGURATION!$B$10,\"BMA\",CONFIGURATION!$B$1,\"bscr\",1000)","v":"Mapped"},{"$f":"XBRLMap(I47,I$91&\".\"&$U$4&\".\"&$U47&\".\"&I$93&\".\"&$U$7,$B$95,$B$96,CONFIGURATION!$B$10,\"BMA\",CONFIGURATION!$B$1,\"bscr\",1000)","v":"Mapped"},{"$f":"XBRLMap(J47,J$91&\".\"&$U$4&\".\"&$U47&\".\"&J$93&\".\"&$U$7,$B$95,$B$96,CONFIGURATION!$B$10,\"BMA\",CONFIGURATION!$B$1,\"bscr\",1000)","v":"Mapped"},{"$f":"XBRLMap(K47,K$91&\".\"&$U$4&\".\"&$U47&\".\"&K$93&\".\"&$U$7,$B$95,$B$96,CONFIGURATION!$B$10,\"BMA\",CONFIGURATION!$B$1,\"bscr\",1000)","v":"Mapped"},{"$f":"XBRLMap(L47,L$91&\".\"&$U$4&\".\"&$U47&\".\"&L$93&\".\"&$U$7,$B$95,$B$96,CONFIGURATION!$B$10,\"BMA\",CONFIGURATION!$B$1,\"bscr\",1000)","v":"Mapped"},{"$f":"XBRLMap(M47,M$91&\".\"&$U$4&\".\"&$U47&\".\"&M$93&\".\"&$U$7,$B$95,$B$96,CONFIGURATION!$B$10,\"BMA\",CONFIGURATION!$B$1,\"bscr\",1000)","v":"Mapped"},null,null,null,{"$f":"\"IBNRCY\"&E$10&\"AY\"&B50","v":"IBNRCY2012AY2012"},{"$f":"E50","v":0}]
[null,null,{"$f":"XBRLMap(C48,C$91&\".\"&$U$4&\".\"&$U48&\".\"&C$93&\".\"&$U$7,$B$95,$B$96,CONFIGURATION!$B$10,\"BMA\",CONFIGURATION!$B$1,\"bscr\",1000)","v":"Mapped"},{"$f":"XBRLMap(D48,D$91&\".\"&$U$4&\".\"&$U48&\".\"&D$93&\".\"&$U$7,$B$95,$B$96,CONFIGURATION!$B$10,\"BMA\",CONFIGURATION!$B$1,\"bscr\",1000)","v":"Mapped"},{"$f":"XBRLMap(E48,E$91&\".\"&$U$4&\".\"&$U48&\".\"&E$93&\".\"&$U$7,$B$95,$B$96,CONFIGURATION!$B$10,\"BMA\",CONFIGURATION!$B$1,\"bscr\",1000)","v":"Mapped"},{"$f":"XBRLMap(F48,F$91&\".\"&$U$4&\".\"&$U48&\".\"&F$93&\".\"&$U$7,$B$95,$B$96,CONFIGURATION!$B$10,\"BMA\",CONFIGURATION!$B$1,\"bscr\",1000)","v":"Mapped"},{"$f":"XBRLMap(G48,G$91&\".\"&$U$4&\".\"&$U48&\".\"&G$93&\".\"&$U$7,$B$95,$B$96,CONFIGURATION!$B$10,\"BMA\",CONFIGURATION!$B$1,\"bscr\",1000)","v":"Mapped"},{"$f":"XBRLMap(H48,H$91&\".\"&$U$4&\".\"&$U48&\".\"&H$93&\".\"&$U$7,$B$95,$B$96,CONFIGURATION!$B$10,\"BMA\",CONFIGURATION!$B$1,\"bscr\",1000)","v":"Mapped"},{"$f":"XBRLMap(I48,I$91&\".\"&$U$4&\".\"&$U48&\".\"&I$93&\".\"&$U$7,$B$95,$B$96,CONFIGURATION!$B$10,\"BMA\",CONFIGURATION!$B$1,\"bscr\",1000)","v":"Mapped"},{"$f":"XBRLMap(J48,J$91&\".\"&$U$4&\".\"&$U48&\".\"&J$93&\".\"&$U$7,$B$95,$B$96,CONFIGURATION!$B$10,\"BMA\",CONFIGURATION!$B$1,\"bscr\",1000)","v":"Mapped"},{"$f":"XBRLMap(K48,K$91&\".\"&$U$4&\".\"&$U48&\".\"&K$93&\".\"&$U$7,$B$95,$B$96,CONFIGURATION!$B$10,\"BMA\",CONFIGURATION!$B$1,\"bscr\",1000)","v":"Mapped"},{"$f":"XBRLMap(L48,L$91&\".\"&$U$4&\".\"&$U48&\".\"&L$93&\".\"&$U$7,$B$95,$B$96,CONFIGURATION!$B$10,\"BMA\",CONFIGURATION!$B$1,\"bscr\",1000)","v":"Mapped"},{"$f":"XBRLMap(M48,M$91&\".\"&$U$4&\".\"&$U48&\".\"&M$93&\".\"&$U$7,$B$95,$B$96,CONFIGURATION!$B$10,\"BMA\",CONFIGURATION!$B$1,\"bscr\",1000)","v":"Mapped"},null,null,null,{"$f":"\"IBNRCY\"&F$10&\"AY\"&B47","v":"IBNRCY2013AYPrior"},{"$f":"F47","v":0}]
[null,null,null,{"$f":"XBRLMap(D49,D$91&\".\"&$U$4&\".\"&$U49&\".\"&D$93&\".\"&$U$7,$B$95,$B$96,CONFIGURATION!$B$10,\"BMA\",CONFIGURATION!$B$1,\"bscr\",1000)","v":"Mapped"},{"$f":"XBRLMap(E49,E$91&\".\"&$U$4&\".\"&$U49&\".\"&E$93&\".\"&$U$7,$B$95,$B$96,CONFIGURATION!$B$10,\"BMA\",CONFIGURATION!$B$1,\"bscr\",1000)","v":"Mapped"},{"$f":"XBRLMap(F49,F$91&\".\"&$U$4&\".\"&$U49&\".\"&F$93&\".\"&$U$7,$B$95,$B$96,CONFIGURATION!$B$10,\"BMA\",CONFIGURATION!$B$1,\"bscr\",1000)","v":"Mapped"},{"$f":"XBRLMap(G49,G$91&\".\"&$U$4&\".\"&$U49&\".\"&G$93&\".\"&$U$7,$B$95,$B$96,CONFIGURATION!$B$10,\"BMA\",CONFIGURATION!$B$1,\"bscr\",1000)","v":"Mapped"},{"$f":"XBRLMap(H49,H$91&\".\"&$U$4&\".\"&$U49&\".\"&H$93&\".\"&$U$7,$B$95,$B$96,CONFIGURATION!$B$10,\"BMA\",CONFIGURATION!$B$1,\"bscr\",1000)","v":"Mapped"},{"$f":"XBRLMap(I49,I$91&\".\"&$U$4&\".\"&$U49&\".\"&I$93&\".\"&$U$7,$B$95,$B$96,CONFIGURATION!$B$10,\"BMA\",CONFIGURATION!$B$1,\"bscr\",1000)","v":"Mapped"},{"$f":"XBRLMap(J49,J$91&\".\"&$U$4&\".\"&$U49&\".\"&J$93&\".\"&$U$7,$B$95,$B$96,CONFIGURATION!$B$10,\"BMA\",CONFIGURATION!$B$1,\"bscr\",1000)","v":"Mapped"},{"$f":"XBRLMap(K49,K$91&\".\"&$U$4&\".\"&$U49&\".\"&K$93&\".\"&$U$7,$B$95,$B$96,CONFIGURATION!$B$10,\"BMA\",CONFIGURATION!$B$1,\"bscr\",1000)","v":"Mapped"},{"$f":"XBRLMap(L49,L$91&\".\"&$U$4&\".\"&$U49&\".\"&L$93&\".\"&$U$7,$B$95,$B$96,CONFIGURATION!$B$10,\"BMA\",CONFIGURATION!$B$1,\"bscr\",1000)","v":"Mapped"},{"$f":"XBRLMap(M49,M$91&\".\"&$U$4&\".\"&$U49&\".\"&M$93&\".\"&$U$7,$B$95,$B$96,CONFIGURATION!$B$10,\"BMA\",CONFIGURATION!$B$1,\"bscr\",1000)","v":"Mapped"},null,null,null,{"$f":"\"IBNRCY\"&F$10&\"AY\"&B48","v":"IBNRCY2013AY2010"},{"$f":"F48","v":0}]
[null,null,null,null,{"$f":"XBRLMap(E50,E$91&\".\"&$U$4&\".\"&$U50&\".\"&E$93&\".\"&$U$7,$B$95,$B$96,CONFIGURATION!$B$10,\"BMA\",CONFIGURATION!$B$1,\"bscr\",1000)","v":"Mapped"},{"$f":"XBRLMap(F50,F$91&\".\"&$U$4&\".\"&$U50&\".\"&F$93&\".\"&$U$7,$B$95,$B$96,CONFIGURATION!$B$10,\"BMA\",CONFIGURATION!$B$1,\"bscr\",1000)","v":"Mapped"},{"$f":"XBRLMap(G50,G$91&\".\"&$U$4&\".\"&$U50&\".\"&G$93&\".\"&$U$7,$B$95,$B$96,CONFIGURATION!$B$10,\"BMA\",CONFIGURATION!$B$1,\"bscr\",1000)","v":"Mapped"},{"$f":"XBRLMap(H50,H$91&\".\"&$U$4&\".\"&$U50&\".\"&H$93&\".\"&$U$7,$B$95,$B$96,CONFIGURATION!$B$10,\"BMA\",CONFIGURATION!$B$1,\"bscr\",1000)","v":"Mapped"},{"$f":"XBRLMap(I50,I$91&\".\"&$U$4&\".\"&$U50&\".\"&I$93&\".\"&$U$7,$B$95,$B$96,CONFIGURATION!$B$10,\"BMA\",CONFIGURATION!$B$1,\"bscr\",1000)","v":"Mapped"},{"$f":"XBRLMap(J50,J$91&\".\"&$U$4&\".\"&$U50&\".\"&J$93&\".\"&$U$7,$B$95,$B$96,CONFIGURATION!$B$10,\"BMA\",CONFIGURATION!$B$1,\"bscr\",1000)","v":"Mapped"},{"$f":"XBRLMap(K50,K$91&\".\"&$U$4&\".\"&$U50&\".\"&K$93&\".\"&$U$7,$B$95,$B$96,CONFIGURATION!$B$10,\"BMA\",CONFIGURATION!$B$1,\"bscr\",1000)","v":"Mapped"},{"$f":"XBRLMap(L50,L$91&\".\"&$U$4&\".\"&$U50&\".\"&L$93&\".\"&$U$7,$B$95,$B$96,CONFIGURATION!$B$10,\"BMA\",CONFIGURATION!$B$1,\"bscr\",1000)","v":"Mapped"},{"$f":"XBRLMap(M50,M$91&\".\"&$U$4&\".\"&$U50&\".\"&M$93&\".\"&$U$7,$B$95,$B$96,CONFIGURATION!$B$10,\"BMA\",CONFIGURATION!$B$1,\"bscr\",1000)","v":"Mapped"},null,null,null,{"$f":"\"IBNRCY\"&F$10&\"AY\"&B49","v":"IBNRCY2013AY2011"},{"$f":"F49","v":0}]
[null,null,null,null,null,{"$f":"XBRLMap(F51,F$91&\".\"&$U$4&\".\"&$U51&\".\"&F$93&\".\"&$U$7,$B$95,$B$96,CONFIGURATION!$B$10,\"BMA\",CONFIGURATION!$B$1,\"bscr\",1000)","v":"Mapped"},{"$f":"XBRLMap(G51,G$91&\".\"&$U$4&\".\"&$U51&\".\"&G$93&\".\"&$U$7,$B$95,$B$96,CONFIGURATION!$B$10,\"BMA\",CONFIGURATION!$B$1,\"bscr\",1000)","v":"Mapped"},{"$f":"XBRLMap(H51,H$91&\".\"&$U$4&\".\"&$U51&\".\"&H$93&\".\"&$U$7,$B$95,$B$96,CONFIGURATION!$B$10,\"BMA\",CONFIGURATION!$B$1,\"bscr\",1000)","v":"Mapped"},{"$f":"XBRLMap(I51,I$91&\".\"&$U$4&\".\"&$U51&\".\"&I$93&\".\"&$U$7,$B$95,$B$96,CONFIGURATION!$B$10,\"BMA\",CONFIGURATION!$B$1,\"bscr\",1000)","v":"Mapped"},{"$f":"XBRLMap(J51,J$91&\".\"&$U$4&\".\"&$U51&\".\"&J$93&\".\"&$U$7,$B$95,$B$96,CONFIGURATION!$B$10,\"BMA\",CONFIGURATION!$B$1,\"bscr\",1000)","v":"Mapped"},{"$f":"XBRLMap(K51,K$91&\".\"&$U$4&\".\"&$U51&\".\"&K$93&\".\"&$U$7,$B$95,$B$96,CONFIGURATION!$B$10,\"BMA\",CONFIGURATION!$B$1,\"bscr\",1000)","v":"Mapped"},{"$f":"XBRLMap(L51,L$91&\".\"&$U$4&\".\"&$U51&\".\"&L$93&\".\"&$U$7,$B$95,$B$96,CONFIGURATION!$B$10,\"BMA\",CONFIGURATION!$B$1,\"bscr\",1000)","v":"Mapped"},{"$f":"XBRLMap(M51,M$91&\".\"&$U$4&\".\"&$U51&\".\"&M$93&\".\"&$U$7,$B$95,$B$96,CONFIGURATION!$B$10,\"BMA\",CONFIGURATION!$B$1,\"bscr\",1000)","v":"Mapped"},null,null,null,{"$f":"\"IBNRCY\"&F$10&\"AY\"&B50","v":"IBNRCY2013AY2012"},{"$f":"F50","v":0}]
[null,null,null,null,null,null,{"$f":"XBRLMap(G52,G$91&\".\"&$U$4&\".\"&$U52&\".\"&G$93&\".\"&$U$7,$B$95,$B$96,CONFIGURATION!$B$10,\"BMA\",CONFIGURATION!$B$1,\"bscr\",1000)","v":"Mapped"},{"$f":"XBRLMap(H52,H$91&\".\"&$U$4&\".\"&$U52&\".\"&H$93&\".\"&$U$7,$B$95,$B$96,CONFIGURATION!$B$10,\"BMA\",CONFIGURATION!$B$1,\"bscr\",1000)","v":"Mapped"},{"$f":"XBRLMap(I52,I$91&\".\"&$U$4&\".\"&$U52&\".\"&I$93&\".\"&$U$7,$B$95,$B$96,CONFIGURATION!$B$10,\"BMA\",CONFIGURATION!$B$1,\"bscr\",1000)","v":"Mapped"},{"$f":"XBRLMap(J52,J$91&\".\"&$U$4&\".\"&$U52&\".\"&J$93&\".\"&$U$7,$B$95,$B$96,CONFIGURATION!$B$10,\"BMA\",CONFIGURATION!$B$1,\"bscr\",1000)","v":"Mapped"},{"$f":"XBRLMap(K52,K$91&\".\"&$U$4&\".\"&$U52&\".\"&K$93&\".\"&$U$7,$B$95,$B$96,CONFIGURATION!$B$10,\"BMA\",CONFIGURATION!$B$1,\"bscr\",1000)","v":"Mapped"},{"$f":"XBRLMap(L52,L$91&\".\"&$U$4&\".\"&$U52&\".\"&L$93&\".\"&$U$7,$B$95,$B$96,CONFIGURATION!$B$10,\"BMA\",CONFIGURATION!$B$1,\"bscr\",1000)","v":"Mapped"},{"$f":"XBRLMap(M52,M$91&\".\"&$U$4&\".\"&$U52&\".\"&M$93&\".\"&$U$7,$B$95,$B$96,CONFIGURATION!$B$10,\"BMA\",CONFIGURATION!$B$1,\"bscr\",1000)","v":"Mapped"},null,null,null,{"$f":"\"IBNRCY\"&F$10&\"AY\"&B51","v":"IBNRCY2013AY2013"},{"$f":"F51","v":0}]
[null,null,null,null,null,null,null,{"$f":"XBRLMap(H53,H$91&\".\"&$U$4&\".\"&$U53&\".\"&H$93&\".\"&$U$7,$B$95,$B$96,CONFIGURATION!$B$10,\"BMA\",CONFIGURATION!$B$1,\"bscr\",1000)","v":"Mapped"},{"$f":"XBRLMap(I53,I$91&\".\"&$U$4&\".\"&$U53&\".\"&I$93&\".\"&$U$7,$B$95,$B$96,CONFIGURATION!$B$10,\"BMA\",CONFIGURATION!$B$1,\"bscr\",1000)","v":"Mapped"},{"$f":"XBRLMap(J53,J$91&\".\"&$U$4&\".\"&$U53&\".\"&J$93&\".\"&$U$7,$B$95,$B$96,CONFIGURATION!$B$10,\"BMA\",CONFIGURATION!$B$1,\"bscr\",1000)","v":"Mapped"},{"$f":"XBRLMap(K53,K$91&\".\"&$U$4&\".\"&$U53&\".\"&K$93&\".\"&$U$7,$B$95,$B$96,CONFIGURATION!$B$10,\"BMA\",CONFIGURATION!$B$1,\"bscr\",1000)","v":"Mapped"},{"$f":"XBRLMap(L53,L$91&\".\"&$U$4&\".\"&$U53&\".\"&L$93&\".\"&$U$7,$B$95,$B$96,CONFIGURATION!$B$10,\"BMA\",CONFIGURATION!$B$1,\"bscr\",1000)","v":"Mapped"},{"$f":"XBRLMap(M53,M$91&\".\"&$U$4&\".\"&$U53&\".\"&M$93&\".\"&$U$7,$B$95,$B$96,CONFIGURATION!$B$10,\"BMA\",CONFIGURATION!$B$1,\"bscr\",1000)","v":"Mapped"},null,null,null,{"$f":"\"IBNRCY\"&G$10&\"AY\"&B47","v":"IBNRCY2014AYPrior"},{"$f":"G47","v":0}]
[null,null,null,null,null,null,null,null,{"$f":"XBRLMap(I54,I$91&\".\"&$U$4&\".\"&$U54&\".\"&I$93&\".\"&$U$7,$B$95,$B$96,CONFIGURATION!$B$10,\"BMA\",CONFIGURATION!$B$1,\"bscr\",1000)","v":"Mapped"},{"$f":"XBRLMap(J54,J$91&\".\"&$U$4&\".\"&$U54&\".\"&J$93&\".\"&$U$7,$B$95,$B$96,CONFIGURATION!$B$10,\"BMA\",CONFIGURATION!$B$1,\"bscr\",1000)","v":"Mapped"},{"$f":"XBRLMap(K54,K$91&\".\"&$U$4&\".\"&$U54&\".\"&K$93&\".\"&$U$7,$B$95,$B$96,CONFIGURATION!$B$10,\"BMA\",CONFIGURATION!$B$1,\"bscr\",1000)","v":"Mapped"},{"$f":"XBRLMap(L54,L$91&\".\"&$U$4&\".\"&$U54&\".\"&L$93&\".\"&$U$7,$B$95,$B$96,CONFIGURATION!$B$10,\"BMA\",CONFIGURATION!$B$1,\"bscr\",1000)","v":"Mapped"},{"$f":"XBRLMap(M54,M$91&\".\"&$U$4&\".\"&$U54&\".\"&M$93&\".\"&$U$7,$B$95,$B$96,CONFIGURATION!$B$10,\"BMA\",CONFIGURATION!$B$1,\"bscr\",1000)","v":"Mapped"},null,null,null,"IBNRCY2014AY2010",0]
[null,null,null,null,null,null,null,null,null,{"$f":"XBRLMap(J55,J$91&\".\"&$U$4&\".\"&$U55&\".\"&J$93&\".\"&$U$7,$B$95,$B$96,CONFIGURATION!$B$10,\"BMA\",CONFIGURATION!$B$1,\"bscr\",1000)","v":"Mapped"},{"$f":"XBRLMap(K55,K$91&\".\"&$U$4&\".\"&$U55&\".\"&K$93&\".\"&$U$7,$B$95,$B$96,CONFIGURATION!$B$10,\"BMA\",CONFIGURATION!$B$1,\"bscr\",1000)","v":"Mapped"},{"$f":"XBRLMap(L55,L$91&\".\"&$U$4&\".\"&$U55&\".\"&L$93&\".\"&$U$7,$B$95,$B$96,CONFIGURATION!$B$10,\"BMA\",CONFIGURATION!$B$1,\"bscr\",1000)","v":"Mapped"},{"$f":"XBRLMap(M55,M$91&\".\"&$U$4&\".\"&$U55&\".\"&M$93&\".\"&$U$7,$B$95,$B$96,CONFIGURATION!$B$10,\"BMA\",CONFIGURATION!$B$1,\"bscr\",1000)","v":"Mapped"},null,null,null,"IBNRCY2014AY2011",0]
[null,null,null,null,null,null,null,null,null,null,{"$f":"XBRLMap(K56,K$91&\".\"&$U$4&\".\"&$U56&\".\"&K$93&\".\"&$U$7,$B$95,$B$96,CONFIGURATION!$B$10,\"BMA\",CONFIGURATION!$B$1,\"bscr\",1000)","v":"Mapped"},{"$f":"XBRLMap(L56,L$91&\".\"&$U$4&\".\"&$U56&\".\"&L$93&\".\"&$U$7,$B$95,$B$96,CONFIGURATION!$B$10,\"BMA\",CONFIGURATION!$B$1,\"bscr\",1000)","v":"Mapped"},{"$f":"XBRLMap(M56,M$91&\".\"&$U$4&\".\"&$U56&\".\"&M$93&\".\"&$U$7,$B$95,$B$96,CONFIGURATION!$B$10,\"BMA\",CONFIGURATION!$B$1,\"bscr\",1000)","v":"Mapped"},null,null,null,"IBNRCY2014AY2012",0]
[null,null,null,null,null,null,null,null,null,null,null,{"$f":"XBRLMap(L57,L$91&\".\"&$U$4&\".\"&$U57&\".\"&L$93&\".\"&$U$7,$B$95,$B$96,CONFIGURATION!$B$10,\"BMA\",CONFIGURATION!$B$1,\"bscr\",1000)","v":"Mapped"},{"$f":"XBRLMap(M57,M$91&\".\"&$U$4&\".\"&$U57&\".\"&M$93&\".\"&$U$7,$B$95,$B$96,CONFIGURATION!$B$10,\"BMA\",CONFIGURATION!$B$1,\"bscr\",1000)","v":"Mapped"},null,null,null,"IBNRCY2014AY2013",0]
[null,null,null,null,null,null,null,null,null,null,null,null,null,null,null,null,"IBNRCY2014AY2014",0]
[null,null,null,null,null,null,null,null,null,null,null,null,null,null,null,null,{"$f":"\"IBNRCY\"&H$10&\"AY\"&B47","v":"IBNRCY2015AYPrior"},{"$f":"H47","v":0}]
[null,null,null,null,null,null,null,null,null,null,null,null,null,null,null,null,"IBNRCY2015AY2010",0]
[null,null,null,null,null,null,null,null,null,null,null,null,null,null,null,null,"IBNRCY2015AY2011",0]
[null,null,null,null,null,null,null,null,null,null,null,null,null,null,null,null,"IBNRCY2015AY2012",0]
[null,null,null,null,null,null,null,null,null,null,null,null,null,null,null,null,"IBNRCY2015AY2013",0]
[null,null,null,null,null,null,null,null,null,null,null,null,null,null,null,null,"IBNRCY2015AY2014",0]
[null,null,null,null,null,null,null,null,null,null,null,null,null,null,null,null,"IBNRCY2015AY2015",0]
[null,null,null,null,null,null,null,null,null,null,null,null,null,null,null,null,{"$f":"\"IBNRCY\"&I$10&\"AY\"&B47","v":"IBNRCY2016AYPrior"},{"$f":"I47","v":0}]
[null,null,null,null,null,null,null,null,null,null,null,null,null,null,null,null,"IBNRCY2016AY2010",0]
[null,null,null,null,null,null,{"$f":"XBRLMap(G67,G$92&\".\"&$U$4&\".\"&$U67&\".\"&$U$7,$B$95,$B$96,CONFIGURATION!$B$10,\"BMA\",CONFIGURATION!$B$1,\"bscr\",1000)","v":"Mapped"},{"$f":"XBRLMap(H67,H$92&\".\"&$U$4&\".\"&$U67&\".\"&$U$7,$B$95,$B$96,CONFIGURATION!$B$10,\"BMA\",CONFIGURATION!$B$1,\"bscr\",1000)","v":"Mapped"},null,{"$f":"XBRLMap(J67,J$92&\".\"&$U$4&\".\"&$V67&\".\"&$U$7,$B$95,$B$96,CONFIGURATION!$B$10,\"BMA\",CONFIGURATION!$B$1,\"bscr\",1000)","v":"Mapped"},{"$f":"XBRLMap(K67,K$92&\".\"&$U$4&\".\"&$V67&\".\"&$U$7,$B$95,$B$96,CONFIGURATION!$B$10,\"BMA\",CONFIGURATION!$B$1,\"bscr\",1000)","v":"Mapped"},{"$f":"XBRLMap(L67,L$92&\".\"&$U$4&\".\"&$V67&\".\"&$U$7,$B$95,$B$96,CONFIGURATION!$B$10,\"BMA\",CONFIGURATION!$B$1,\"bscr\",1000)","v":"Mapped"},{"$f":"XBRLMap(M67,M$92&\".\"&$U$4&\".\"&$V67&\".\"&$U$7,$B$95,$B$96,CONFIGURATION!$B$10,\"BMA\",CONFIGURATION!$B$1,\"bscr\",1000)","v":"Mapped"},null,null,null,"IBNRCY2016AY2011",0]
[null,null,{"$f":"XBRLMap(C68,C$92&\".\"&$U$4&\".\"&$U68&\".\"&$U$7,$B$95,$B$96,CONFIGURATION!$B$10,\"BMA\",CONFIGURATION!$B$1,\"bscr\",1000)","v":"Mapped"},{"$f":"XBRLMap(D68,D$92&\".\"&$U$4&\".\"&$U68&\".\"&$U$7,$B$95,$B$96,CONFIGURATION!$B$10,\"BMA\",CONFIGURATION!$B$1,\"bscr\",1000)","v":"Mapped"},{"$f":"XBRLMap(E68,E$92&\".\"&$U$4&\".\"&$U68&\".\"&$U$7,$B$95,$B$96,CONFIGURATION!$B$10,\"BMA\",CONFIGURATION!$B$1,\"bscr\",1000)","v":"Mapped"},{"$f":"XBRLMap(F68,F$92&\".\"&$U$4&\".\"&$U68&\".\"&$U$7,$B$95,$B$96,CONFIGURATION!$B$10,\"BMA\",CONFIGURATION!$B$1,\"bscr\",1000)","v":"Mapped"},{"$f":"XBRLMap(G68,G$92&\".\"&$U$4&\".\"&$U68&\".\"&$U$7,$B$95,$B$96,CONFIGURATION!$B$10,\"BMA\",CONFIGURATION!$B$1,\"bscr\",1000)","v":"Mapped"},{"$f":"XBRLMap(H68,H$92&\".\"&$U$4&\".\"&$U68&\".\"&$U$7,$B$95,$B$96,CONFIGURATION!$B$10,\"BMA\",CONFIGURATION!$B$1,\"bscr\",1000)","v":"Mapped"},null,{"$f":"XBRLMap(J68,J$92&\".\"&$U$4&\".\"&$V68&\".\"&$U$7,$B$95,$B$96,CONFIGURATION!$B$10,\"BMA\",CONFIGURATION!$B$1,\"bscr\",1000)","v":"Mapped"},{"$f":"XBRLMap(K68,K$92&\".\"&$U$4&\".\"&$V68&\".\"&$U$7,$B$95,$B$96,CONFIGURATION!$B$10,\"BMA\",CONFIGURATION!$B$1,\"bscr\",1000)","v":"Mapped"},{"$f":"XBRLMap(L68,L$92&\".\"&$U$4&\".\"&$V68&\".\"&$U$7,$B$95,$B$96,CONFIGURATION!$B$10,\"BMA\",CONFIGURATION!$B$1,\"bscr\",1000)","v":"Mapped"},{"$f":"XBRLMap(M68,M$92&\".\"&$U$4&\".\"&$V68&\".\"&$U$7,$B$95,$B$96,CONFIGURATION!$B$10,\"BMA\",CONFIGURATION!$B$1,\"bscr\",1000)","v":"Mapped"},null,null,null,"IBNRCY2016AY2012",0]
[null,null,{"$f":"XBRLMap(C69,C$92&\".\"&$U$4&\".\"&$U69&\".\"&$U$7,$B$95,$B$96,CONFIGURATION!$B$10,\"BMA\",CONFIGURATION!$B$1,\"bscr\",1000)","v":"Mapped"},{"$f":"XBRLMap(D69,D$92&\".\"&$U$4&\".\"&$U69&\".\"&$U$7,$B$95,$B$96,CONFIGURATION!$B$10,\"BMA\",CONFIGURATION!$B$1,\"bscr\",1000)","v":"Mapped"},{"$f":"XBRLMap(E69,E$92&\".\"&$U$4&\".\"&$U69&\".\"&$U$7,$B$95,$B$96,CONFIGURATION!$B$10,\"BMA\",CONFIGURATION!$B$1,\"bscr\",1000)","v":"Mapped"},{"$f":"XBRLMap(F69,F$92&\".\"&$U$4&\".\"&$U69&\".\"&$U$7,$B$95,$B$96,CONFIGURATION!$B$10,\"BMA\",CONFIGURATION!$B$1,\"bscr\",1000)","v":"Mapped"},{"$f":"XBRLMap(G69,G$92&\".\"&$U$4&\".\"&$U69&\".\"&$U$7,$B$95,$B$96,CONFIGURATION!$B$10,\"BMA\",CONFIGURATION!$B$1,\"bscr\",1000)","v":"Mapped"},{"$f":"XBRLMap(H69,H$92&\".\"&$U$4&\".\"&$U69&\".\"&$U$7,$B$95,$B$96,CONFIGURATION!$B$10,\"BMA\",CONFIGURATION!$B$1,\"bscr\",1000)","v":"Mapped"},null,{"$f":"XBRLMap(J69,J$92&\".\"&$U$4&\".\"&$V69&\".\"&$U$7,$B$95,$B$96,CONFIGURATION!$B$10,\"BMA\",CONFIGURATION!$B$1,\"bscr\",1000)","v":"Mapped"},{"$f":"XBRLMap(K69,K$92&\".\"&$U$4&\".\"&$V69&\".\"&$U$7,$B$95,$B$96,CONFIGURATION!$B$10,\"BMA\",CONFIGURATION!$B$1,\"bscr\",1000)","v":"Mapped"},{"$f":"XBRLMap(L69,L$92&\".\"&$U$4&\".\"&$V69&\".\"&$U$7,$B$95,$B$96,CONFIGURATION!$B$10,\"BMA\",CONFIGURATION!$B$1,\"bscr\",1000)","v":"Mapped"},{"$f":"XBRLMap(M69,M$92&\".\"&$U$4&\".\"&$V69&\".\"&$U$7,$B$95,$B$96,CONFIGURATION!$B$10,\"BMA\",CONFIGURATION!$B$1,\"bscr\",1000)","v":"Mapped"},null,null,null,"IBNRCY2016AY2013",0]
[null,null,{"$f":"XBRLMap(C70,C$92&\".\"&$U$4&\".\"&$U70&\".\"&$U$7,$B$95,$B$96,CONFIGURATION!$B$10,\"BMA\",CONFIGURATION!$B$1,\"bscr\",1000)","v":"Mapped"},{"$f":"XBRLMap(D70,D$92&\".\"&$U$4&\".\"&$U70&\".\"&$U$7,$B$95,$B$96,CONFIGURATION!$B$10,\"BMA\",CONFIGURATION!$B$1,\"bscr\",1000)","v":"Mapped"},{"$f":"XBRLMap(E70,E$92&\".\"&$U$4&\".\"&$U70&\".\"&$U$7,$B$95,$B$96,CONFIGURATION!$B$10,\"BMA\",CONFIGURATION!$B$1,\"bscr\",1000)","v":"Mapped"},{"$f":"XBRLMap(F70,F$92&\".\"&$U$4&\".\"&$U70&\".\"&$U$7,$B$95,$B$96,CONFIGURATION!$B$10,\"BMA\",CONFIGURATION!$B$1,\"bscr\",1000)","v":"Mapped"},{"$f":"XBRLMap(G70,G$92&\".\"&$U$4&\".\"&$U70&\".\"&$U$7,$B$95,$B$96,CONFIGURATION!$B$10,\"BMA\",CONFIGURATION!$B$1,\"bscr\",1000)","v":"Mapped"},{"$f":"XBRLMap(H70,H$92&\".\"&$U$4&\".\"&$U70&\".\"&$U$7,$B$95,$B$96,CONFIGURATION!$B$10,\"BMA\",CONFIGURATION!$B$1,\"bscr\",1000)","v":"Mapped"},null,{"$f":"XBRLMap(J70,J$92&\".\"&$U$4&\".\"&$V70&\".\"&$U$7,$B$95,$B$96,CONFIGURATION!$B$10,\"BMA\",CONFIGURATION!$B$1,\"bscr\",1000)","v":"Mapped"},{"$f":"XBRLMap(K70,K$92&\".\"&$U$4&\".\"&$V70&\".\"&$U$7,$B$95,$B$96,CONFIGURATION!$B$10,\"BMA\",CONFIGURATION!$B$1,\"bscr\",1000)","v":"Mapped"},{"$f":"XBRLMap(L70,L$92&\".\"&$U$4&\".\"&$V70&\".\"&$U$7,$B$95,$B$96,CONFIGURATION!$B$10,\"BMA\",CONFIGURATION!$B$1,\"bscr\",1000)","v":"Mapped"},{"$f":"XBRLMap(M70,M$92&\".\"&$U$4&\".\"&$V70&\".\"&$U$7,$B$95,$B$96,CONFIGURATION!$B$10,\"BMA\",CONFIGURATION!$B$1,\"bscr\",1000)","v":"Mapped"},null,null,null,"IBNRCY2016AY2014",0]
[null,null,{"$f":"XBRLMap(C71,C$92&\".\"&$U$4&\".\"&$U71&\".\"&$U$7,$B$95,$B$96,CONFIGURATION!$B$10,\"BMA\",CONFIGURATION!$B$1,\"bscr\",1000)","v":"Mapped"},{"$f":"XBRLMap(D71,D$92&\".\"&$U$4&\".\"&$U71&\".\"&$U$7,$B$95,$B$96,CONFIGURATION!$B$10,\"BMA\",CONFIGURATION!$B$1,\"bscr\",1000)","v":"Mapped"},{"$f":"XBRLMap(E71,E$92&\".\"&$U$4&\".\"&$U71&\".\"&$U$7,$B$95,$B$96,CONFIGURATION!$B$10,\"BMA\",CONFIGURATION!$B$1,\"bscr\",1000)","v":"Mapped"},{"$f":"XBRLMap(F71,F$92&\".\"&$U$4&\".\"&$U71&\".\"&$U$7,$B$95,$B$96,CONFIGURATION!$B$10,\"BMA\",CONFIGURATION!$B$1,\"bscr\",1000)","v":"Mapped"},{"$f":"XBRLMap(G71,G$92&\".\"&$U$4&\".\"&$U71&\".\"&$U$7,$B$95,$B$96,CONFIGURATION!$B$10,\"BMA\",CONFIGURATION!$B$1,\"bscr\",1000)","v":"Mapped"},{"$f":"XBRLMap(H71,H$92&\".\"&$U$4&\".\"&$U71&\".\"&$U$7,$B$95,$B$96,CONFIGURATION!$B$10,\"BMA\",CONFIGURATION!$B$1,\"bscr\",1000)","v":"Mapped"},null,{"$f":"XBRLMap(J71,J$92&\".\"&$U$4&\".\"&$V71&\".\"&$U$7,$B$95,$B$96,CONFIGURATION!$B$10,\"BMA\",CONFIGURATION!$B$1,\"bscr\",1000)","v":"Mapped"},{"$f":"XBRLMap(K71,K$92&\".\"&$U$4&\".\"&$V71&\".\"&$U$7,$B$95,$B$96,CONFIGURATION!$B$10,\"BMA\",CONFIGURATION!$B$1,\"bscr\",1000)","v":"Mapped"},{"$f":"XBRLMap(L71,L$92&\".\"&$U$4&\".\"&$V71&\".\"&$U$7,$B$95,$B$96,CONFIGURATION!$B$10,\"BMA\",CONFIGURATION!$B$1,\"bscr\",1000)","v":"Mapped"},{"$f":"XBRLMap(M71,M$92&\".\"&$U$4&\".\"&$V71&\".\"&$U$7,$B$95,$B$96,CONFIGURATION!$B$10,\"BMA\",CONFIGURATION!$B$1,\"bscr\",1000)","v":"Mapped"},null,null,null,"IBNRCY2016AY2015",0]
[null,null,{"$f":"XBRLMap(C72,C$92&\".\"&$U$4&\".\"&$U72&\".\"&$U$7,$B$95,$B$96,CONFIGURATION!$B$10,\"BMA\",CONFIGURATION!$B$1,\"bscr\",1000)","v":"Mapped"},{"$f":"XBRLMap(D72,D$92&\".\"&$U$4&\".\"&$U72&\".\"&$U$7,$B$95,$B$96,CONFIGURATION!$B$10,\"BMA\",CONFIGURATION!$B$1,\"bscr\",1000)","v":"Mapped"},{"$f":"XBRLMap(E72,E$92&\".\"&$U$4&\".\"&$U72&\".\"&$U$7,$B$95,$B$96,CONFIGURATION!$B$10,\"BMA\",CONFIGURATION!$B$1,\"bscr\",1000)","v":"Mapped"},{"$f":"XBRLMap(F72,F$92&\".\"&$U$4&\".\"&$U72&\".\"&$U$7,$B$95,$B$96,CONFIGURATION!$B$10,\"BMA\",CONFIGURATION!$B$1,\"bscr\",1000)","v":"Mapped"},{"$f":"XBRLMap(G72,G$92&\".\"&$U$4&\".\"&$U72&\".\"&$U$7,$B$95,$B$96,CONFIGURATION!$B$10,\"BMA\",CONFIGURATION!$B$1,\"bscr\",1000)","v":"Mapped"},{"$f":"XBRLMap(H72,H$92&\".\"&$U$4&\".\"&$U72&\".\"&$U$7,$B$95,$B$96,CONFIGURATION!$B$10,\"BMA\",CONFIGURATION!$B$1,\"bscr\",1000)","v":"Mapped"},null,{"$f":"XBRLMap(J72,J$92&\".\"&$U$4&\".\"&$V72&\".\"&$U$7,$B$95,$B$96,CONFIGURATION!$B$10,\"BMA\",CONFIGURATION!$B$1,\"bscr\",1000)","v":"Mapped"},{"$f":"XBRLMap(K72,K$92&\".\"&$U$4&\".\"&$V72&\".\"&$U$7,$B$95,$B$96,CONFIGURATION!$B$10,\"BMA\",CONFIGURATION!$B$1,\"bscr\",1000)","v":"Mapped"},{"$f":"XBRLMap(L72,L$92&\".\"&$U$4&\".\"&$V72&\".\"&$U$7,$B$95,$B$96,CONFIGURATION!$B$10,\"BMA\",CONFIGURATION!$B$1,\"bscr\",1000)","v":"Mapped"},{"$f":"XBRLMap(M72,M$92&\".\"&$U$4&\".\"&$V72&\".\"&$U$7,$B$95,$B$96,CONFIGURATION!$B$10,\"BMA\",CONFIGURATION!$B$1,\"bscr\",1000)","v":"Mapped"},null,null,null,"IBNRCY2016AY2016",0]
[null,null,{"$f":"XBRLMap(C73,C$92&\".\"&$U$4&\".\"&$U73&\".\"&$U$7,$B$95,$B$96,CONFIGURATION!$B$10,\"BMA\",CONFIGURATION!$B$1,\"bscr\",1000)","v":"Mapped"},{"$f":"XBRLMap(D73,D$92&\".\"&$U$4&\".\"&$U73&\".\"&$U$7,$B$95,$B$96,CONFIGURATION!$B$10,\"BMA\",CONFIGURATION!$B$1,\"bscr\",1000)","v":"Mapped"},{"$f":"XBRLMap(E73,E$92&\".\"&$U$4&\".\"&$U73&\".\"&$U$7,$B$95,$B$96,CONFIGURATION!$B$10,\"BMA\",CONFIGURATION!$B$1,\"bscr\",1000)","v":"Mapped"},{"$f":"XBRLMap(F73,F$92&\".\"&$U$4&\".\"&$U73&\".\"&$U$7,$B$95,$B$96,CONFIGURATION!$B$10,\"BMA\",CONFIGURATION!$B$1,\"bscr\",1000)","v":"Mapped"},{"$f":"XBRLMap(G73,G$92&\".\"&$U$4&\".\"&$U73&\".\"&$U$7,$B$95,$B$96,CONFIGURATION!$B$10,\"BMA\",CONFIGURATION!$B$1,\"bscr\",1000)","v":"Mapped"},{"$f":"XBRLMap(H73,H$92&\".\"&$U$4&\".\"&$U73&\".\"&$U$7,$B$95,$B$96,CONFIGURATION!$B$10,\"BMA\",CONFIGURATION!$B$1,\"bscr\",1000)","v":"Mapped"},null,{"$f":"XBRLMap(J73,J$92&\".\"&$U$4&\".\"&$V73&\".\"&$U$7,$B$95,$B$96,CONFIGURATION!$B$10,\"BMA\",CONFIGURATION!$B$1,\"bscr\",1000)","v":"Mapped"},{"$f":"XBRLMap(K73,K$92&\".\"&$U$4&\".\"&$V73&\".\"&$U$7,$B$95,$B$96,CONFIGURATION!$B$10,\"BMA\",CONFIGURATION!$B$1,\"bscr\",1000)","v":"Mapped"},{"$f":"XBRLMap(L73,L$92&\".\"&$U$4&\".\"&$V73&\".\"&$U$7,$B$95,$B$96,CONFIGURATION!$B$10,\"BMA\",CONFIGURATION!$B$1,\"bscr\",1000)","v":"Mapped"},{"$f":"XBRLMap(M73,M$92&\".\"&$U$4&\".\"&$V73&\".\"&$U$7,$B$95,$B$96,CONFIGURATION!$B$10,\"BMA\",CONFIGURATION!$B$1,\"bscr\",1000)","v":"Mapped"},null,null,null,{"$f":"\"IBNRCY\"&J$10&\"AY\"&B47","v":"IBNRCY2017AYPrior"},{"$f":"J47","v":0}]
[null,null,{"$f":"XBRLMap(C74,C$92&\".\"&$U$4&\".\"&$U74&\".\"&$U$7,$B$95,$B$96,CONFIGURATION!$B$10,\"BMA\",CONFIGURATION!$B$1,\"bscr\",1000)","v":"Mapped"},{"$f":"XBRLMap(D74,D$92&\".\"&$U$4&\".\"&$U74&\".\"&$U$7,$B$95,$B$96,CONFIGURATION!$B$10,\"BMA\",CONFIGURATION!$B$1,\"bscr\",1000)","v":"Mapped"},{"$f":"XBRLMap(E74,E$92&\".\"&$U$4&\".\"&$U74&\".\"&$U$7,$B$95,$B$96,CONFIGURATION!$B$10,\"BMA\",CONFIGURATION!$B$1,\"bscr\",1000)","v":"Mapped"},{"$f":"XBRLMap(F74,F$92&\".\"&$U$4&\".\"&$U74&\".\"&$U$7,$B$95,$B$96,CONFIGURATION!$B$10,\"BMA\",CONFIGURATION!$B$1,\"bscr\",1000)","v":"Mapped"},{"$f":"XBRLMap(G74,G$92&\".\"&$U$4&\".\"&$U74&\".\"&$U$7,$B$95,$B$96,CONFIGURATION!$B$10,\"BMA\",CONFIGURATION!$B$1,\"bscr\",1000)","v":"Mapped"},{"$f":"XBRLMap(H74,H$92&\".\"&$U$4&\".\"&$U74&\".\"&$U$7,$B$95,$B$96,CONFIGURATION!$B$10,\"BMA\",CONFIGURATION!$B$1,\"bscr\",1000)","v":"Mapped"},null,{"$f":"XBRLMap(J74,J$92&\".\"&$U$4&\".\"&$V74&\".\"&$U$7,$B$95,$B$96,CONFIGURATION!$B$10,\"BMA\",CONFIGURATION!$B$1,\"bscr\",1000)","v":"Mapped"},{"$f":"XBRLMap(K74,K$92&\".\"&$U$4&\".\"&$V74&\".\"&$U$7,$B$95,$B$96,CONFIGURATION!$B$10,\"BMA\",CONFIGURATION!$B$1,\"bscr\",1000)","v":"Mapped"},{"$f":"XBRLMap(L74,L$92&\".\"&$U$4&\".\"&$V74&\".\"&$U$7,$B$95,$B$96,CONFIGURATION!$B$10,\"BMA\",CONFIGURATION!$B$1,\"bscr\",1000)","v":"Mapped"},{"$f":"XBRLMap(M74,M$92&\".\"&$U$4&\".\"&$V74&\".\"&$U$7,$B$95,$B$96,CONFIGURATION!$B$10,\"BMA\",CONFIGURATION!$B$1,\"bscr\",1000)","v":"Mapped"},null,null,null,"IBNRCY2017AY2010",0]
[null,null,{"$f":"XBRLMap(C75,C$92&\".\"&$U$4&\".\"&$U75&\".\"&$U$7,$B$95,$B$96,CONFIGURATION!$B$10,\"BMA\",CONFIGURATION!$B$1,\"bscr\",1000)","v":"Mapped"},{"$f":"XBRLMap(D75,D$92&\".\"&$U$4&\".\"&$U75&\".\"&$U$7,$B$95,$B$96,CONFIGURATION!$B$10,\"BMA\",CONFIGURATION!$B$1,\"bscr\",1000)","v":"Mapped"},{"$f":"XBRLMap(E75,E$92&\".\"&$U$4&\".\"&$U75&\".\"&$U$7,$B$95,$B$96,CONFIGURATION!$B$10,\"BMA\",CONFIGURATION!$B$1,\"bscr\",1000)","v":"Mapped"},{"$f":"XBRLMap(F75,F$92&\".\"&$U$4&\".\"&$U75&\".\"&$U$7,$B$95,$B$96,CONFIGURATION!$B$10,\"BMA\",CONFIGURATION!$B$1,\"bscr\",1000)","v":"Mapped"},{"$f":"XBRLMap(G75,G$92&\".\"&$U$4&\".\"&$U75&\".\"&$U$7,$B$95,$B$96,CONFIGURATION!$B$10,\"BMA\",CONFIGURATION!$B$1,\"bscr\",1000)","v":"Mapped"},{"$f":"XBRLMap(H75,H$92&\".\"&$U$4&\".\"&$U75&\".\"&$U$7,$B$95,$B$96,CONFIGURATION!$B$10,\"BMA\",CONFIGURATION!$B$1,\"bscr\",1000)","v":"Mapped"},null,{"$f":"XBRLMap(J75,J$92&\".\"&$U$4&\".\"&$V75&\".\"&$U$7,$B$95,$B$96,CONFIGURATION!$B$10,\"BMA\",CONFIGURATION!$B$1,\"bscr\",1000)","v":"Mapped"},{"$f":"XBRLMap(K75,K$92&\".\"&$U$4&\".\"&$V75&\".\"&$U$7,$B$95,$B$96,CONFIGURATION!$B$10,\"BMA\",CONFIGURATION!$B$1,\"bscr\",1000)","v":"Mapped"},{"$f":"XBRLMap(L75,L$92&\".\"&$U$4&\".\"&$V75&\".\"&$U$7,$B$95,$B$96,CONFIGURATION!$B$10,\"BMA\",CONFIGURATION!$B$1,\"bscr\",1000)","v":"Mapped"},{"$f":"XBRLMap(M75,M$92&\".\"&$U$4&\".\"&$V75&\".\"&$U$7,$B$95,$B$96,CONFIGURATION!$B$10,\"BMA\",CONFIGURATION!$B$1,\"bscr\",1000)","v":"Mapped"},null,null,null,"IBNRCY2017AY2011",0]
[null,null,{"$f":"XBRLMap(C76,C$92&\".\"&$U$4&\".\"&$U76&\".\"&$U$7,$B$95,$B$96,CONFIGURATION!$B$10,\"BMA\",CONFIGURATION!$B$1,\"bscr\",1000)","v":"Mapped"},{"$f":"XBRLMap(D76,D$92&\".\"&$U$4&\".\"&$U76&\".\"&$U$7,$B$95,$B$96,CONFIGURATION!$B$10,\"BMA\",CONFIGURATION!$B$1,\"bscr\",1000)","v":"Mapped"},{"$f":"XBRLMap(E76,E$92&\".\"&$U$4&\".\"&$U76&\".\"&$U$7,$B$95,$B$96,CONFIGURATION!$B$10,\"BMA\",CONFIGURATION!$B$1,\"bscr\",1000)","v":"Mapped"},{"$f":"XBRLMap(F76,F$92&\".\"&$U$4&\".\"&$U76&\".\"&$U$7,$B$95,$B$96,CONFIGURATION!$B$10,\"BMA\",CONFIGURATION!$B$1,\"bscr\",1000)","v":"Mapped"},{"$f":"XBRLMap(G76,G$92&\".\"&$U$4&\".\"&$U76&\".\"&$U$7,$B$95,$B$96,CONFIGURATION!$B$10,\"BMA\",CONFIGURATION!$B$1,\"bscr\",1000)","v":"Mapped"},{"$f":"XBRLMap(H76,H$92&\".\"&$U$4&\".\"&$U76&\".\"&$U$7,$B$95,$B$96,CONFIGURATION!$B$10,\"BMA\",CONFIGURATION!$B$1,\"bscr\",1000)","v":"Mapped"},null,{"$f":"XBRLMap(J76,J$92&\".\"&$U$4&\".\"&$V76&\".\"&$U$7,$B$95,$B$96,CONFIGURATION!$B$10,\"BMA\",CONFIGURATION!$B$1,\"bscr\",1000)","v":"Mapped"},{"$f":"XBRLMap(K76,K$92&\".\"&$U$4&\".\"&$V76&\".\"&$U$7,$B$95,$B$96,CONFIGURATION!$B$10,\"BMA\",CONFIGURATION!$B$1,\"bscr\",1000)","v":"Mapped"},{"$f":"XBRLMap(L76,L$92&\".\"&$U$4&\".\"&$V76&\".\"&$U$7,$B$95,$B$96,CONFIGURATION!$B$10,\"BMA\",CONFIGURATION!$B$1,\"bscr\",1000)","v":"Mapped"},{"$f":"XBRLMap(M76,M$92&\".\"&$U$4&\".\"&$V76&\".\"&$U$7,$B$95,$B$96,CONFIGURATION!$B$10,\"BMA\",CONFIGURATION!$B$1,\"bscr\",1000)","v":"Mapped"},null,null,null,"IBNRCY2017AY2012",0]
[null,null,{"$f":"XBRLMap(C77,C$92&\".\"&$U$4&\".\"&$U77&\".\"&$U$7,$B$95,$B$96,CONFIGURATION!$B$10,\"BMA\",CONFIGURATION!$B$1,\"bscr\",1000)","v":"Mapped"},{"$f":"XBRLMap(D77,D$92&\".\"&$U$4&\".\"&$U77&\".\"&$U$7,$B$95,$B$96,CONFIGURATION!$B$10,\"BMA\",CONFIGURATION!$B$1,\"bscr\",1000)","v":"Mapped"},{"$f":"XBRLMap(E77,E$92&\".\"&$U$4&\".\"&$U77&\".\"&$U$7,$B$95,$B$96,CONFIGURATION!$B$10,\"BMA\",CONFIGURATION!$B$1,\"bscr\",1000)","v":"Mapped"},{"$f":"XBRLMap(F77,F$92&\".\"&$U$4&\".\"&$U77&\".\"&$U$7,$B$95,$B$96,CONFIGURATION!$B$10,\"BMA\",CONFIGURATION!$B$1,\"bscr\",1000)","v":"Mapped"},{"$f":"XBRLMap(G77,G$92&\".\"&$U$4&\".\"&$U77&\".\"&$U$7,$B$95,$B$96,CONFIGURATION!$B$10,\"BMA\",CONFIGURATION!$B$1,\"bscr\",1000)","v":"Mapped"},{"$f":"XBRLMap(H77,H$92&\".\"&$U$4&\".\"&$U77&\".\"&$U$7,$B$95,$B$96,CONFIGURATION!$B$10,\"BMA\",CONFIGURATION!$B$1,\"bscr\",1000)","v":"Mapped"},null,{"$f":"XBRLMap(J77,J$92&\".\"&$U$4&\".\"&$V77&\".\"&$U$7,$B$95,$B$96,CONFIGURATION!$B$10,\"BMA\",CONFIGURATION!$B$1,\"bscr\",1000)","v":"Mapped"},{"$f":"XBRLMap(K77,K$92&\".\"&$U$4&\".\"&$V77&\".\"&$U$7,$B$95,$B$96,CONFIGURATION!$B$10,\"BMA\",CONFIGURATION!$B$1,\"bscr\",1000)","v":"Mapped"},{"$f":"XBRLMap(L77,L$92&\".\"&$U$4&\".\"&$V77&\".\"&$U$7,$B$95,$B$96,CONFIGURATION!$B$10,\"BMA\",CONFIGURATION!$B$1,\"bscr\",1000)","v":"Mapped"},{"$f":"XBRLMap(M77,M$92&\".\"&$U$4&\".\"&$V77&\".\"&$U$7,$B$95,$B$96,CONFIGURATION!$B$10,\"BMA\",CONFIGURATION!$B$1,\"bscr\",1000)","v":"Mapped"},null,null,null,"IBNRCY2017AY2013",0]
[null,null,null,null,null,null,null,null,null,null,null,null,null,null,null,null,"IBNRCY2017AY2014",0]
[null,null,null,null,null,null,null,null,null,null,null,null,null,null,null,null,"IBNRCY2017AY2015",0]
[null,null,null,null,null,null,null,null,null,null,null,null,null,null,null,null,"IBNRCY2017AY2016",0]
[null,null,null,null,null,null,null,null,null,null,null,null,null,null,null,null,"IBNRCY2017AY2017",0]
[null,null,null,null,null,null,null,null,null,null,null,null,null,null,null,null,{"$f":"\"IBNRCY\"&K$10&\"AY\"&B47","v":"IBNRCY2018AYPrior"},{"$f":"K47","v":0}]
[null,null,null,null,null,null,null,null,null,null,null,null,null,null,null,null,"IBNRCY2018AY2010",0]
[null,null,null,null,null,null,null,null,null,null,null,null,null,null,null,null,"IBNRCY2018AY2011",0]
[null,null,null,null,null,null,null,null,null,null,null,null,null,null,null,null,"IBNRCY2018AY2012",0]
[null,null,null,null,null,null,null,null,null,null,null,null,null,null,null,null,"IBNRCY2018AY2013",0]
[null,null,null,null,null,null,null,null,null,null,null,null,null,null,null,null,"IBNRCY2018AY2014",0]
[null,null,null,null,null,null,null,null,null,null,null,null,null,null,null,null,"IBNRCY2018AY2015",0]
[null,null,null,null,null,null,null,null,null,null,null,null,null,null,null,null,"IBNRCY2018AY2016",0]
[null,null,null,null,null,null,null,null,null,null,null,null,null,null,null,null,"IBNRCY2018AY2017",0]
[null,null,null,null,null,null,null,null,null,null,null,null,null,null,null,null,"IBNRCY2018AY2018",0]
[null,null,null,null,null,null,null,null,null,null,null,null,null,null,null,null,{"$f":"\"IBNRCY\"&L$10&\"AY\"&B47","v":"IBNRCY2019AYPrior"},{"$f":"L47","v":0}]
[null,null,null,null,null,null,null,null,null,null,null,null,null,null,null,null,"IBNRCY2019AY2010",0]
[null,null,null,null,null,null,null,null,null,null,null,null,null,null,null,null,"IBNRCY2019AY2011",0]
[null,null,null,null,null,null,null,null,null,null,null,null,null,null,null,null,"IBNRCY2019AY2012",0]
[null,null,null,null,null,null,null,null,null,null,null,null,null,null,null,null,"IBNRCY2019AY2013",0]
[null,null,null,null,null,null,null,null,null,null,null,null,null,null,null,null,"IBNRCY2019AY2014",0]
[null,null,null,null,null,null,null,null,null,null,null,null,null,null,null,null,"IBNRCY2019AY2015",0]
[null,null,null,null,null,null,null,null,null,null,null,null,null,null,null,null,"IBNRCY2019AY2016",0]
[null,null,null,null,null,null,null,null,null,null,null,null,null,null,null,null,"IBNRCY2019AY2017",0]
[null,null,null,null,null,null,null,null,null,null,null,null,null,null,null,null,"IBNRCY2019AY2018",0]
[null,null,null,null,null,null,null,null,null,null,null,null,null,null,null,null,"IBNRCY2019AY2019",0]
[null,null,null,null,null,null,null,null,null,null,null,null,null,null,null,null,{"$f":"\"GrossWP\"&$B68","v":"GrossWP2010"},{"$f":"C68","v":0}]
[null,null,null,null,null,null,null,null,null,null,null,null,null,null,null,null,"GrossWP2011",0]
[null,null,null,null,null,null,null,null,null,null,null,null,null,null,null,null,"GrossWP2012",0]
[null,null,null,null,null,null,null,null,null,null,null,null,null,null,null,null,"GrossWP2013",0]
[null,null,null,null,null,null,null,null,null,null,null,null,null,null,null,null,"GrossWP2014",0]
[null,null,null,null,null,null,null,null,null,null,null,null,null,null,null,null,"GrossWP2015",0]
[null,null,null,null,null,null,null,null,null,null,null,null,null,null,null,null,"GrossWP2016",0]
[null,null,null,null,null,null,null,null,null,null,null,null,null,null,null,null,"GrossWP2017",0]
[null,null,null,null,null,null,null,null,null,null,null,null,null,null,null,null,"GrossWP2018",0]
[null,null,null,null,null,null,null,null,null,null,null,null,null,null,null,null,"GrossWP2019",0]
[null,null,null,null,null,null,null,null,null,null,null,null,null,null,null,null,{"$f":"\"GrossEP\"&$B68","v":"GrossEP2010"},{"$f":"D68","v":0}]
[null,null,null,null,null,null,null,null,null,null,null,null,null,null,null,null,"GrossEP2011",0]
[null,null,null,null,null,null,null,null,null,null,null,null,null,null,null,null,"GrossEP2012",0]
[null,null,null,null,null,null,null,null,null,null,null,null,null,null,null,null,"GrossEP2013",0]
[null,null,null,null,null,null,null,null,null,null,null,null,null,null,null,null,"GrossEP2014",0]
[null,null,null,null,null,null,null,null,null,null,null,null,null,null,null,null,"GrossEP2015",0]
[null,null,null,null,null,null,null,null,null,null,null,null,null,null,null,null,"GrossEP2016",0]
[null,null,null,null,null,null,null,null,null,null,null,null,null,null,null,null,"GrossEP2017",0]
[null,null,null,null,null,null,null,null,null,null,null,null,null,null,null,null,"GrossEP2018",0]
[null,null,null,null,null,null,null,null,null,null,null,null,null,null,null,null,"GrossEP2019",0]
[null,null,null,null,null,null,null,null,null,null,null,null,null,null,null,null,{"$f":"\"NetWP\"&$B68","v":"NetWP2010"},{"$f":"E68","v":0}]
[null,null,null,null,null,null,null,null,null,null,null,null,null,null,null,null,"NetWP2011",0]
[null,null,null,null,null,null,null,null,null,null,null,null,null,null,null,null,"NetWP2012",0]
[null,null,null,null,null,null,null,null,null,null,null,null,null,null,null,null,"NetWP2013",0]
[null,null,null,null,null,null,null,null,null,null,null,null,null,null,null,null,"NetWP2014",0]
[null,null,null,null,null,null,null,null,null,null,null,null,null,null,null,null,"NetWP2015",0]
[null,null,null,null,null,null,null,null,null,null,null,null,null,null,null,null,"NetWP2016",0]
[null,null,null,null,null,null,null,null,null,null,null,null,null,null,null,null,"NetWP2017",0]
[null,null,null,null,null,null,null,null,null,null,null,null,null,null,null,null,"NetWP2018",0]
[null,null,null,null,null,null,null,null,null,null,null,null,null,null,null,null,"NetWP2019",0]
[null,null,null,null,null,null,null,null,null,null,null,null,null,null,null,null,{"$f":"\"NetEP\"&$B68","v":"NetEP2010"},{"$f":"F68","v":0}]
[null,null,null,null,null,null,null,null,null,null,null,null,null,null,null,null,"NetEP2011",0]
[null,null,null,null,null,null,null,null,null,null,null,null,null,null,null,null,"NetEP2012",0]
[null,null,null,null,null,null,null,null,null,null,null,null,null,null,null,null,"NetEP2013",0]
[null,null,null,null,null,null,null,null,null,null,null,null,null,null,null,null,"NetEP2014",0]
[null,null,null,null,null,null,null,null,null,null,null,null,null,null,null,null,"NetEP2015",0]
[null,null,null,null,null,null,null,null,null,null,null,null,null,null,null,null,"NetEP2016",0]
[null,null,null,null,null,null,null,null,null,null,null,null,null,null,null,null,"NetEP2017",0]
[null,null,null,null,null,null,null,null,null,null,null,null,null,null,null,null,"NetEP2018",0]
[null,null,null,null,null,null,null,null,null,null,null,null,null,null,null,null,"NetEP2019",0]
[null,null,null,null,null,null,null,null,null,null,null,null,null,null,null,null,{"$f":"\"NetAOEPaid\"&$B67","v":"NetAOEPaidPrior"},{"$f":"G67","v":0}]
[null,null,null,null,null,null,null,null,null,null,null,null,null,null,null,null,"NetAOEPaid2010",0]
[null,null,null,null,null,null,null,null,null,null,null,null,null,null,null,null,"NetAOEPaid2011",0]
[null,null,null,null,null,null,null,null,null,null,null,null,null,null,null,null,"NetAOEPaid2012",0]
[null,null,null,null,null,null,null,null,null,null,null,null,null,null,null,null,"NetAOEPaid2013",0]
[null,null,null,null,null,null,null,null,null,null,null,null,null,null,null,null,"NetAOEPaid2014",0]
[null,null,null,null,null,null,null,null,null,null,null,null,null,null,null,null,"NetAOEPaid2015",0]
[null,null,null,null,null,null,null,null,null,null,null,null,null,null,null,null,"NetAOEPaid2016",0]
[null,null,null,null,null,null,null,null,null,null,null,null,null,null,null,null,"NetAOEPaid2017",0]
[null,null,null,null,null,null,null,null,null,null,null,null,null,null,null,null,"NetAOEPaid2018",0]
[null,null,null,null,null,null,null,null,null,null,null,null,null,null,null,null,"NetAOEPaid2019",0]
[null,null,null,null,null,null,null,null,null,null,null,null,null,null,null,null,{"$f":"\"NetAOEIncurred\"&$B67","v":"NetAOEIncurredPrior"},{"$f":"H67","v":0}]
[null,null,null,null,null,null,null,null,null,null,null,null,null,null,null,null,"NetAOEIncurred2010",0]
[null,null,null,null,null,null,null,null,null,null,null,null,null,null,null,null,"NetAOEIncurred2011",0]
[null,null,null,null,null,null,null,null,null,null,null,null,null,null,null,null,"NetAOEIncurred2012",0]
[null,null,null,null,null,null,null,null,null,null,null,null,null,null,null,null,"NetAOEIncurred2013",0]
[null,null,null,null,null,null,null,null,null,null,null,null,null,null,null,null,"NetAOEIncurred2014",0]
[null,null,null,null,null,null,null,null,null,null,null,null,null,null,null,null,"NetAOEIncurred2015",0]
[null,null,null,null,null,null,null,null,null,null,null,null,null,null,null,null,"NetAOEIncurred2016",0]
[null,null,null,null,null,null,null,null,null,null,null,null,null,null,null,null,"NetAOEIncurred2017",0]
[null,null,null,null,null,null,null,null,null,null,null,null,null,null,null,null,"NetAOEIncurred2018",0]
[null,null,null,null,null,null,null,null,null,null,null,null,null,null,null,null,"NetAOEIncurred2019",0]
[null,null,null,null,null,null,null,null,null,null,null,null,null,null,null,null,{"$f":"\"Commission\"&$B67","v":"CommissionPrior"},{"$f":"J67","v":0}]
[null,null,null,null,null,null,null,null,null,null,null,null,null,null,null,null,"Commission2010",0]
[null,null,null,null,null,null,null,null,null,null,null,null,null,null,null,null,"Commission2011",0]
[null,null,null,null,null,null,null,null,null,null,null,null,null,null,null,null,"Commission2012",0]
[null,null,null,null,null,null,null,null,null,null,null,null,null,null,null,null,"Commission2013",0]
[null,null,null,null,null,null,null,null,null,null,null,null,null,null,null,null,"Commission2014",0]
[null,null,null,null,null,null,null,null,null,null,null,null,null,null,null,null,"Commission2015",0]
[null,null,null,null,null,null,null,null,null,null,null,null,null,null,null,null,"Commission2016",0]
[null,null,null,null,null,null,null,null,null,null,null,null,null,null,null,null,"Commission2017",0]
[null,null,null,null,null,null,null,null,null,null,null,null,null,null,null,null,"Commission2018",0]
[null,null,null,null,null,null,null,null,null,null,null,null,null,null,null,null,"Commission2019",0]
[null,null,null,null,null,null,null,null,null,null,null,null,null,null,null,null,{"$f":"\"AcqExp\"&$B67","v":"AcqExpPrior"},{"$f":"K67","v":0}]
[null,null,null,null,null,null,null,null,null,null,null,null,null,null,null,null,"AcqExp2010",0]
[null,null,null,null,null,null,null,null,null,null,null,null,null,null,null,null,"AcqExp2011",0]
[null,null,null,null,null,null,null,null,null,null,null,null,null,null,null,null,"AcqExp2012",0]
[null,null,null,null,null,null,null,null,null,null,null,null,null,null,null,null,"AcqExp2013",0]
[null,null,null,null,null,null,null,null,null,null,null,null,null,null,null,null,"AcqExp2014",0]
[null,null,null,null,null,null,null,null,null,null,null,null,null,null,null,null,"AcqExp2015",0]
[null,null,null,null,null,null,null,null,null,null,null,null,null,null,null,null,"AcqExp2016",0]
[null,null,null,null,null,null,null,null,null,null,null,null,null,null,null,null,"AcqExp2017",0]
[null,null,null,null,null,null,null,null,null,null,null,null,null,null,null,null,"AcqExp2018",0]
[null,null,null,null,null,null,null,null,null,null,null,null,null,null,null,null,"AcqExp2019",0]
[null,null,null,null,null,null,null,null,null,null,null,null,null,null,null,null,{"$f":"\"Taxes\"&$B67","v":"TaxesPrior"},{"$f":"L67","v":0}]
[null,null,null,null,null,null,null,null,null,null,null,null,null,null,null,null,"Taxes2010",0]
[null,null,null,null,null,null,null,null,null,null,null,null,null,null,null,null,"Taxes2011",0]
[null,null,null,null,null,null,null,null,null,null,null,null,null,null,null,null,"Taxes2012",0]
[null,null,null,null,null,null,null,null,null,null,null,null,null,null,null,null,"Taxes2013",0]
[null,null,null,null,null,null,null,null,null,null,null,null,null,null,null,null,"Taxes2014",0]
[null,null,null,null,null,null,null,null,null,null,null,null,null,null,null,null,"Taxes2015",0]
[null,null,null,null,null,null,null,null,null,null,null,null,null,null,null,null,"Taxes2016",0]
[null,null,null,null,null,null,null,null,null,null,null,null,null,null,null,null,"Taxes2017",0]
[null,null,null,null,null,null,null,null,null,null,null,null,null,null,null,null,"Taxes2018",0]
[null,null,null,null,null,null,null,null,null,null,null,null,null,null,null,null,"Taxes2019",0]
[null,null,null,null,null,null,null,null,null,null,null,null,null,null,null,null,{"$f":"\"GeneralOver\"&$B67","v":"GeneralOverPrior"},{"$f":"M67","v":0}]
[null,null,null,null,null,null,null,null,null,null,null,null,null,null,null,null,"GeneralOver2010",0]
[null,null,null,null,null,null,null,null,null,null,null,null,null,null,null,null,"GeneralOver2011",0]
[null,null,null,null,null,null,null,null,null,null,null,null,null,null,null,null,"GeneralOver2012",0]
[null,null,null,null,null,null,null,null,null,null,null,null,null,null,null,null,"GeneralOver2013",0]
[null,null,null,null,null,null,null,null,null,null,null,null,null,null,null,null,"GeneralOver2014",0]
[null,null,null,null,null,null,null,null,null,null,null,null,null,null,null,null,"GeneralOver2015",0]
[null,null,null,null,null,null,null,null,null,null,null,null,null,null,null,null,"GeneralOver2016",0]
[null,null,null,null,null,null,null,null,null,null,null,null,null,null,null,null,"GeneralOver2017",0]
[null,null,null,null,null,null,null,null,null,null,null,null,null,null,null,null,"GeneralOver2018",0]
[null,null,null,null,null,null,null,null,null,null,null,null,null,null,null,null,"GeneralOver2019",0]

{"sheet":"Sch XI(a)(vi)","index":69,"n_rows":300,"n_cols":48,"rows_kept":300,"cut":false,"hidden":false,"merged":[[80,1,82,12],[5,2,5,11],[59,6,59,7],[41,2,41,11],[0,13,0,14],[2,13,2,14],[2,1,2,2],[60,6,60,7],[23,2,23,11]]}
[null,"SCHEDULE OF LOSS TRIANGLES (LINE 6 - FINANCIAL LINES)",null,null,null,null,null,null,null,null,null,null,null,{"$f":"HYPERLINK(\"#'Index'!A1\",\"Return to Index\")","v":"Return to Index"}]
[null,{"$f":"'Company Information'!C7","v":"Enter Company Name"},null,null,null,null,null,null,null,null,null,null,null,null,null,null,null,null,null,null,null,null,null,null,null,null,null,null,null,null,null,null,null,null,null,"bma_Line6FinancialLinesMember"]
[null,{"$f":"'Company Information'!C3","v":"2019-12-31"},null,null,null,null,null,null,null,null,null,null,null,"SCHEDULE XI(a)(vi)"]
[null,{"$f":"\"expressed in\"& IF(1000>1,\" ['\"&MID(1000,2,LEN(1000))&\"s]\",\"\")&\" \"&'Form 1EBS'!$C$4","v":"expressed in ['000s] United States Dollars"},null,null,null,null,null,null,null,null,null,null,null,null,null,null,null,null,null,null,"brrt_LineOfBusinessAxis_brrt_FinancialLinesMember"]
[]
[null,"Accounting Basis: *","INCURRED (ESTIMATED ULTIMATE) NET LOSSES AND ALLOCATED LOSS ADJUSTMENT EXPENSES REPORTED AT YEAR END ($000)",null,null,null,null,null,null,null,null,null,11,12,13,null,"AcctBasis",{"$f":"B7","v":"Accident Year"},null,null,{"$f":"IF(B7=\"Accident Year\",\"brrt_AccountingBasisAxis_brrt_AccidentYearMember\",\"brrt_AccountingBasisAxis_brrt_AccountingYearMember\")","v":"brrt_AccountingBasisAxis_brrt_AccidentYearMember"}]
[null,"Accident Year",null,null,null,null,null,null,null,null,null,null,"Ultimate","Development","Development",null,{"$f":"\"UltCY\"&C$10&\"AY\"&B11","v":"UltCY2010AYPrior"},{"$f":"C11","v":0},{"$f":"\"CATUltCY\"&L$10&\"AY\"&B11","v":"CATUltCY2019AYPrior"},{"$f":"M11","v":0},"brrt_TypeOfContractAxis_brrt_ProportionalMember",null,null,null,null,null,null,null,null,null,null,null,null,null,null,"bma_AcctBasis"]
[null,"Years in Which",1,2,3,4,5,6,7,8,9,10,"Catastrophe",null,null,null,{"$f":"\"UltCY\"&C$10&\"AY\"&B12","v":"UltCY2010AY2010"},{"$f":"C12","v":0},"CATUltCY2019AY2010",0]
[null,"Losses Were",null,null,null,null,null,null,null,null,null,null,"Losses","One Year","Two Year",null,{"$f":"\"UltCY\"&D$10&\"AY\"&B11","v":"UltCY2011AYPrior"},{"$f":"D11","v":0},"CATUltCY2019AY2011",0]
[null,"Incurred",{"$f":"D10-1","v":2010},2011,2012,2013,2014,2015,2016,2017,2018,{"$f":"YEAR('Company Information'!C3)","v":2019},{"$f":"L10","v":2019},"Development","Development",null,{"$f":"\"UltCY\"&D$10&\"AY\"&B12","v":"UltCY2011AY2010"},{"$f":"D12","v":0},"CATUltCY2019AY2012",0]
["L1","Prior",{"$f":"Import!I9017","v":0},{"$f":"Import!I9019","v":0},{"$f":"Import!I9022","v":0},{"$f":"Import!I9026","v":0},{"$f":"Import!I9031","v":0},{"$f":"Import!I9037","v":0},{"$f":"Import!I9044","v":0},{"$f":"Import!I9052","v":0},{"$f":"Import!I9061","v":0},{"$f":"Import!I9071","v":0},{"$f":"Import!I9082","v":0},{"$f":"K11-L11","v":0},{"$f":"J11-L11","v":0},null,{"$f":"\"UltCY\"&D$10&\"AY\"&B13","v":"UltCY2011AY2011"},{"$f":"D13","v":0},"CATUltCY2019AY2013",0,"brrt_LossIncurredYearAxis_brrt_PriorMember",null,null,null,null,null,null,null,null,null,null,null,null,null,null,{"$f":"\"bma_\"&\"UltCY\"&P$10&\"AY\"&$B11","v":"bma_UltCYAYPrior"},"bma_UltCYUltCY2011AY2010AYPrior","bma_UltCY0AYPrior",{"$f":"\"bma_\"&\"UltCY\"&S$10&\"AY\"&$B11","v":"bma_UltCYCATUltCY2019AY2012AYPrior"},{"$f":"\"bma_\"&\"UltCY\"&T$10&\"AY\"&$B11","v":"bma_UltCY0AYPrior"},{"$f":"\"bma_\"&\"UltCY\"&U$10&\"AY\"&$B11","v":"bma_UltCYAYPrior"},{"$f":"\"bma_\"&\"UltCY\"&V$10&\"AY\"&$B11","v":"bma_UltCYAYPrior"},{"$f":"\"bma_\"&\"UltCY\"&W$10&\"AY\"&$B11","v":"bma_UltCYAYPrior"},{"$f":"\"bma_\"&\"UltCY\"&X$10&\"AY\"&$B11","v":"bma_UltCYAYPrior"},{"$f":"\"bma_\"&\"UltCY\"&Y$10&\"AY\"&$B11","v":"bma_UltCYAYPrior"},{"$f":"\"bma_\"&\"CATUltCY\"&Y$10&\"AY\"&$B11","v":"bma_CATUltCYAYPrior"},{"$f":"\"bma_\"&\"UltCY\"&\"OneYearDevelopment\"&\"AY\"&$B11","v":"bma_UltCYOneYearDevelopmentAYPrior"},{"$f":"\"bma_\"&\"UltCY\"&\"TwoYearDevelopment\"&\"AY\"&$B11","v":"bma_UltCYTwoYearDevelopmentAYPrior"}]
["L2",{"$f":"B13-1","v":2010},{"$f":"Import!I9018","v":0},{"$f":"Import!I9020","v":0},{"$f":"Import!I9023","v":0},{"$f":"Import!I9027","v":0},{"$f":"Import!I9032","v":0},{"$f":"Import!I9038","v":0},{"$f":"Import!I9045","v":0},{"$f":"Import!I9053","v":0},{"$f":"Import!I9062","v":0},{"$f":"Import!I9072","v":0},{"$f":"Import!I9083","v":0},0,0,null,{"$f":"\"UltCY\"&E$10&\"AY\"&B11","v":"UltCY2012AYPrior"},{"$f":"E11","v":0},"CATUltCY2019AY2014",0,"brrt_LossIncurredYearAxis_brrt_XNMinus9Member",null,null,null,null,null,null,null,null,null,null,null,null,null,null,"bma_UltCYAY2010","bma_UltCYUltCY2011AY2010AY2010","bma_UltCY0AY2010",{"$f":"\"bma_\"&\"UltCY\"&S$10&\"AY\"&$B12","v":"bma_UltCYCATUltCY2019AY2012AY2010"},"bma_UltCY0AY2010","bma_UltCYAY2010","bma_UltCYAY2010","bma_UltCYAY2010","bma_UltCYAY2010","bma_UltCYAY2010",{"$f":"\"bma_\"&\"CATUltCY\"&Y$10&\"AY\"&$B12","v":"bma_CATUltCYAY2010"},{"$f":"\"bma_\"&\"UltCY\"&\"OneYearDevelopment\"&\"AY\"&$B12","v":"bma_UltCYOneYearDevelopmentAY2010"},{"$f":"\"bma_\"&\"UltCY\"&\"TwoYearDevelopment\"&\"AY\"&$B12","v":"bma_UltCYTwoYearDevelopmentAY2010"}]
["L3",2011,"XXX",{"$f":"Import!I9021","v":0},{"$f":"Import!I9024","v":0},{"$f":"Import!I9028","v":0},{"$f":"Import!I9033","v":0},{"$f":"Import!I9039","v":0},{"$f":"Import!I9046","v":0},{"$f":"Import!I9054","v":0},{"$f":"Import!I9063","v":0},{"$f":"Import!I9073","v":0},{"$f":"Import!I9084","v":0},0,0,null,{"$f":"\"UltCY\"&E$10&\"AY\"&B12","v":"UltCY2012AY2010"},{"$f":"E12","v":0},"CATUltCY2019AY2015",0,"brrt_LossIncurredYearAxis_brrt_XNMinus8Member",null,null,null,null,null,null,null,null,null,null,null,null,null,null,null,{"$f":"\"bma_\"&\"UltCY\"&Q$10&\"AY\"&$B13","v":"bma_UltCYUltCY2011AY2010AY2011"},{"$f":"\"bma_\"&\"UltCY\"&R$10&\"AY\"&$B13","v":"bma_UltCY0AY2011"},{"$f":"\"bma_\"&\"UltCY\"&S$10&\"AY\"&$B13","v":"bma_UltCYCATUltCY2019AY2012AY2011"},"bma_UltCY0AY2011","bma_UltCYAY2011","bma_UltCYAY2011","bma_UltCYAY2011","bma_UltCYAY2011","bma_UltCYAY2011","bma_CATUltCYAY2011","bma_UltCYOneYearDevelopmentAY2011","bma_UltCYTwoYearDevelopmentAY2011"]
["L4",2012,"XXX","XXX",{"$f":"Import!I9025","v":0},{"$f":"Import!I9029","v":0},{"$f":"Import!I9034","v":0},{"$f":"Import!I9040","v":0},{"$f":"Import!I9047","v":0},{"$f":"Import!I9055","v":0},{"$f":"Import!I9064","v":0},{"$f":"Import!I9074","v":0},{"$f":"Import!I9085","v":0},0,0,null,{"$f":"\"UltCY\"&E$10&\"AY\"&B13","v":"UltCY2012AY2011"},{"$f":"E13","v":0},"CATUltCY2019AY2016",0,"brrt_LossIncurredYearAxis_brrt_XNMinus7Member",null,null,null,null,null,null,null,null,null,null,null,null,null,null,null,null,{"$f":"\"bma_\"&\"UltCY\"&R$10&\"AY\"&$B14","v":"bma_UltCY0AY2012"},{"$f":"\"bma_\"&\"UltCY\"&S$10&\"AY\"&$B14","v":"bma_UltCYCATUltCY2019AY2012AY2012"},"bma_UltCY0AY2012","bma_UltCYAY2012","bma_UltCYAY2012","bma_UltCYAY2012","bma_UltCYAY2012","bma_UltCYAY2012","bma_CATUltCYAY2012","bma_UltCYOneYearDevelopmentAY2012","bma_UltCYTwoYearDevelopmentAY2012"]
["L5",2013,"XXX","XXX","XXX",{"$f":"Import!I9030","v":0},{"$f":"Import!I9035","v":0},{"$f":"Import!I9041","v":0},{"$f":"Import!I9048","v":0},{"$f":"Import!I9056","v":0},{"$f":"Import!I9065","v":0},{"$f":"Import!I9075","v":0},{"$f":"Import!I9086","v":0},0,0,null,{"$f":"\"UltCY\"&E$10&\"AY\"&B14","v":"UltCY2012AY2012"},{"$f":"E14","v":0},"CATUltCY2019AY2017",0,"brrt_LossIncurredYearAxis_brrt_XNMinus6Member",null,null,null,null,null,null,null,null,null,null,null,null,null,null,null,null,null,{"$f":"\"bma_\"&\"UltCY\"&S$10&\"AY\"&$B15","v":"bma_UltCYCATUltCY2019AY2012AY2013"},"bma_UltCY0AY2013","bma_UltCYAY2013","bma_UltCYAY2013","bma_UltCYAY2013","bma_UltCYAY2013","bma_UltCYAY2013","bma_CATUltCYAY2013","bma_UltCYOneYearDevelopmentAY2013","bma_UltCYTwoYearDevelopmentAY2013"]
["L6",2014,"XXX","XXX","XXX","XXX",{"$f":"Import!I9036","v":0},{"$f":"Import!I9042","v":0},{"$f":"Import!I9049","v":0},{"$f":"Import!I9057","v":0},{"$f":"Import!I9066","v":0},{"$f":"Import!I9076","v":0},{"$f":"Import!I9087","v":0},0,0,null,{"$f":"\"UltCY\"&F$10&\"AY\"&B11","v":"UltCY2013AYPrior"},{"$f":"F11","v":0},"CATUltCY2019AY2018",0,"brrt_LossIncurredYearAxis_brrt_XNMinus5Member",null,null,null,null,null,null,null,null,null,null,null,null,null,null,null,null,null,null,"bma_UltCY0AY2014","bma_UltCYAY2014","bma_UltCYAY2014","bma_UltCYAY2014","bma_UltCYAY2014","bma_UltCYAY2014","bma_CATUltCYAY2014","bma_UltCYOneYearDevelopmentAY2014","bma_UltCYTwoYearDevelopmentAY2014"]
["L7",2015,"XXX","XXX","XXX","XXX","XXX",{"$f":"Import!I9043","v":0},{"$f":"Import!I9050","v":0},{"$f":"Import!I9058","v":0},{"$f":"Import!I9067","v":0},{"$f":"Import!I9077","v":0},{"$f":"Import!I9088","v":0},0,0,null,{"$f":"\"UltCY\"&F$10&\"AY\"&B12","v":"UltCY2013AY2010"},{"$f":"F12","v":0},"CATUltCY2019AY2019",0,"brrt_LossIncurredYearAxis_brrt_XNMinus4Member",null,null,null,null,null,null,null,null,null,null,null,null,null,null,null,null,null,null,null,"bma_UltCYAY2015","bma_UltCYAY2015","bma_UltCYAY2015","bma_UltCYAY2015","bma_UltCYAY2015","bma_CATUltCYAY2015","bma_UltCYOneYearDevelopmentAY2015","bma_UltCYTwoYearDevelopmentAY2015"]
["L8",2016,"XXX","XXX","XXX","XXX","XXX","XXX",{"$f":"Import!I9051","v":0},{"$f":"Import!I9059","v":0},{"$f":"Import!I9068","v":0},{"$f":"Import!I9078","v":0},{"$f":"Import!I9089","v":0},0,0,null,{"$f":"\"UltCY\"&F$10&\"AY\"&B13","v":"UltCY2013AY2011"},{"$f":"F13","v":0},{"$f":"\"CATPaidCY\"&L$10&\"AY\"&B29","v":"CATPaidCY2019AYPrior"},{"$f":"M29","v":0},"brrt_LossIncurredYearAxis_brrt_XNMinus3Member",null,null,null,null,null,null,null,null,null,null,null,null,null,null,null,null,null,null,null,null,"bma_UltCYAY2016","bma_UltCYAY2016","bma_UltCYAY2016","bma_UltCYAY2016","bma_CATUltCYAY2016","bma_UltCYOneYearDevelopmentAY2016","bma_UltCYTwoYearDevelopmentAY2016"]
["L9",2017,"XXX","XXX","XXX","XXX","XXX","XXX","XXX",{"$f":"Import!I9060","v":0},{"$f":"Import!I9069","v":0},{"$f":"Import!I9079","v":0},{"$f":"Import!I9090","v":0},0,0,null,{"$f":"\"UltCY\"&F$10&\"AY\"&B14","v":"UltCY2013AY2012"},{"$f":"F14","v":0},"CATPaidCY2019AY2010",0,"brrt_LossIncurredYearAxis_brrt_XNMinus2Member",null,null,null,null,null,null,null,null,null,null,null,null,null,null,null,null,null,null,null,null,null,"bma_UltCYAY2017","bma_UltCYAY2017","bma_UltCYAY2017","bma_CATUltCYAY2017","bma_UltCYOneYearDevelopmentAY2017","bma_UltCYTwoYearDevelopmentAY2017"]
["L10",2018,"XXX","XXX","XXX","XXX","XXX","XXX","XXX","XXX",{"$f":"Import!I9070","v":0},{"$f":"Import!I9080","v":0},{"$f":"Import!I9091","v":0},0,"XXX",null,{"$f":"\"UltCY\"&F$10&\"AY\"&B15","v":"UltCY2013AY2013"},{"$f":"F15","v":0},"CATPaidCY2019AY2011",0,"brrt_LossIncurredYearAxis_brrt_XNMinus1Member",null,null,null,null,null,null,null,null,null,null,null,null,null,null,null,null,null,null,null,null,null,null,"bma_UltCYAY2018","bma_UltCYAY2018","bma_CATUltCYAY2018","bma_UltCYOneYearDevelopmentAY2018"]
["L11",{"$f":"L10","v":2019},"XXX","XXX","XXX","XXX","XXX","XXX","XXX","XXX","XXX",{"$f":"Import!I9081","v":0},{"$f":"Import!I9092","v":0},"XXX","XXX",null,{"$f":"\"UltCY\"&G$10&\"AY\"&B11","v":"UltCY2014AYPrior"},{"$f":"G11","v":0},"CATPaidCY2019AY2012",0,"brrt_LossIncurredYearAxis_brrt_XNMember",null,null,null,null,null,null,null,null,null,null,null,null,null,null,null,null,null,null,null,null,null,null,null,"bma_UltCYAY2019","bma_CATUltCYAY2019"]
["L12","Totals",null,null,null,null,null,null,null,null,null,null,{"$f":"SUM(M11:M21)","v":0},{"$f":"SUM(N11:N21)","v":0},{"$f":"SUM(O11:O21)","v":0},null,{"$f":"\"UltCY\"&G$10&\"AY\"&B12","v":"UltCY2014AY2010"},{"$f":"G12","v":0},"CATPaidCY2019AY2013",0,null,null,null,null,null,null,null,null,null,null,null,null,null,null,null,null,null,null,null,null,null,null,null,null,null,"bma_CATUltCYAYTotals","bma_UltCYOneYearDevelopmentAYTotals",{"$f":"\"bma_\"&\"UltCY\"&\"TwoYearDevelopment\"&\"AY\"&$B22","v":"bma_UltCYTwoYearDevelopmentAYTotals"}]
[null,null,null,null,null,null,null,null,null,null,null,null,null,null,null,null,{"$f":"\"UltCY\"&G$10&\"AY\"&B13","v":"UltCY2014AY2011"},{"$f":"G13","v":0},"CATPaidCY2019AY2014",0]
[null,null,"CUMULATIVE PAID NET LOSSES AND ALLOCATED LOSS ADJUSTMENT EXPENSES REPORTED AT YEAR END ($000)",null,null,null,null,null,null,null,null,null,24,null,null,null,{"$f":"\"UltCY\"&G$10&\"AY\"&B15","v":"UltCY2014AY2013"},{"$f":"G15","v":0},{"$f":"\"CATPaidCY\"&L$10&\"AY\"&B36","v":"CATPaidCY2019AY2016"},{"$f":"M36","v":0}]
[null,null,null,null,null,null,null,null,null,null,null,null,"Paid",null,null,null,{"$f":"\"UltCY\"&G$10&\"AY\"&B16","v":"UltCY2014AY2014"},{"$f":"G16","v":0},{"$f":"\"CATPaidCY\"&L$10&\"AY\"&B37","v":"CATPaidCY2019AY2017"},{"$f":"M37","v":0}]
[null,"Years in Which",14,15,16,17,18,19,20,21,22,23,"Catastrophe",null,null,null,{"$f":"\"UltCY\"&H$10&\"AY\"&B11","v":"UltCY2015AYPrior"},{"$f":"H11","v":0},{"$f":"\"CATPaidCY\"&L$10&\"AY\"&B38","v":"CATPaidCY2019AY2018"},{"$f":"M38","v":0}]
[null,"Policies Were",null,null,null,null,null,null,null,null,null,null,"Losses",null,null,null,"UltCY2015AY2010",0,{"$f":"\"CATPaidCY\"&L$10&\"AY\"&B39","v":"CATPaidCY2019AY2019"},{"$f":"M39","v":0}]
[null,"Written",{"$f":"D28-1","v":2010},2011,2012,2013,2014,2015,2016,2017,2018,{"$f":"L10","v":2019},{"$f":"L28","v":2019},null,null,null,"UltCY2015AY2011",0,{"$f":"\"CATIBNRCY\"&L$10&\"AY\"&B47","v":"CATIBNRCY2019AYPrior"},{"$f":"M47","v":0}]
["L13","Prior",{"$f":"Import!I9093","v":0},{"$f":"Import!I9095","v":0},{"$f":"Import!I9098","v":0},{"$f":"Import!I9102","v":0},{"$f":"Import!I9107","v":0},{"$f":"Import!I9113","v":0},{"$f":"Import!I9120","v":0},{"$f":"Import!I9128","v":0},{"$f":"Import!I9137","v":0},{"$f":"Import!I9147","v":0},{"$f":"Import!I9158","v":0},null,null,null,"UltCY2015AY2012",0,"CATIBNRCY2019AY2010",0,"brrt_PoliciesWrittenYearAxis_brrt_PriorMember",null,null,null,null,null,null,null,null,null,null,null,null,null,null,{"$f":"\"bma_\"&\"PaidCY\"&P$10&\"AY\"&$B29","v":"bma_PaidCYAYPrior"},"bma_PaidCYUltCY2011AY2010AYPrior","bma_PaidCY0AYPrior","bma_PaidCYCATUltCY2019AY2012AYPrior",{"$f":"\"bma_\"&\"PaidCY\"&T$10&\"AY\"&$B29","v":"bma_PaidCY0AYPrior"},{"$f":"\"bma_\"&\"PaidCY\"&U$10&\"AY\"&$B29","v":"bma_PaidCYAYPrior"},{"$f":"\"bma_\"&\"PaidCY\"&V$10&\"AY\"&$B29","v":"bma_PaidCYAYPrior"},{"$f":"\"bma_\"&\"PaidCY\"&W$10&\"AY\"&$B29","v":"bma_PaidCYAYPrior"},{"$f":"\"bma_\"&\"PaidCY\"&X$10&\"AY\"&$B29","v":"bma_PaidCYAYPrior"},{"$f":"\"bma_\"&\"PaidCY\"&Y$10&\"AY\"&$B29","v":"bma_PaidCYAYPrior"},{"$f":"\"bma_\"&\"CATPaidCY\"&Y$10&\"AY\"&$B29","v":"bma_CATPaidCYAYPrior"}]
["L14",{"$f":"B31-1","v":2010},{"$f":"Import!I9094","v":0},{"$f":"Import!I9096","v":0},{"$f":"Import!I9099","v":0},{"$f":"Import!I9103","v":0},{"$f":"Import!I9108","v":0},{"$f":"Import!I9114","v":0},{"$f":"Import!I9121","v":0},{"$f":"Import!I9129","v":0},{"$f":"Import!I9138","v":0},{"$f":"Import!I9148","v":0},{"$f":"Import!I9159","v":0},null,null,null,"UltCY2015AY2013",0,"CATIBNRCY2019AY2011",0,"brrt_PoliciesWrittenYearAxis_brrt_XNMinus9Member",null,null,null,null,null,null,null,null,null,null,null,null,null,null,"bma_PaidCYAY2010","bma_PaidCYUltCY2011AY2010AY2010","bma_PaidCY0AY2010","bma_PaidCYCATUltCY2019AY2012AY2010","bma_PaidCY0AY2010","bma_PaidCYAY2010","bma_PaidCYAY2010","bma_PaidCYAY2010","bma_PaidCYAY2010","bma_PaidCYAY2010","bma_CATPaidCYAY2010"]
["L15",2011,"XXX",{"$f":"Import!I9097","v":0},{"$f":"Import!I9100","v":0},{"$f":"Import!I9104","v":0},{"$f":"Import!I9109","v":0},{"$f":"Import!I9115","v":0},{"$f":"Import!I9122","v":0},{"$f":"Import!I9130","v":0},{"$f":"Import!I9139","v":0},{"$f":"Import!I9149","v":0},{"$f":"Import!I9160","v":0},null,null,null,"UltCY2015AY2014",0,"CATIBNRCY2019AY2012",0,"brrt_PoliciesWrittenYearAxis_brrt_XNMinus8Member",null,null,null,null,null,null,null,null,null,null,null,null,null,null,null,{"$f":"\"bma_\"&\"PaidCY\"&Q$10&\"AY\"&$B31","v":"bma_PaidCYUltCY2011AY2010AY2011"},{"$f":"\"bma_\"&\"PaidCY\"&R$10&\"AY\"&$B31","v":"bma_PaidCY0AY2011"},{"$f":"\"bma_\"&\"PaidCY\"&S$10&\"AY\"&$B31","v":"bma_PaidCYCATUltCY2019AY2012AY2011"},"bma_PaidCY0AY2011","bma_PaidCYAY2011","bma_PaidCYAY2011","bma_PaidCYAY2011","bma_PaidCYAY2011","bma_PaidCYAY2011","bma_CATPaidCYAY2011"]
["L16",2012,"XXX","XXX",{"$f":"Import!I9101","v":0},{"$f":"Import!I9105","v":0},{"$f":"Import!I9110","v":0},{"$f":"Import!I9116","v":0},{"$f":"Import!I9123","v":0},{"$f":"Import!I9131","v":0},{"$f":"Import!I9140","v":0},{"$f":"Import!I9150","v":0},{"$f":"Import!I9161","v":0},null,null,null,"UltCY2015AY2015",0,"CATIBNRCY2019AY2013",0,"brrt_PoliciesWrittenYearAxis_brrt_XNMinus7Member",null,null,null,null,null,null,null,null,null,null,null,null,null,null,null,null,{"$f":"\"bma_\"&\"PaidCY\"&R$10&\"AY\"&$B32","v":"bma_PaidCY0AY2012"},{"$f":"\"bma_\"&\"PaidCY\"&S$10&\"AY\"&$B32","v":"bma_PaidCYCATUltCY2019AY2012AY2012"},"bma_PaidCY0AY2012","bma_PaidCYAY2012","bma_PaidCYAY2012","bma_PaidCYAY2012","bma_PaidCYAY2012","bma_PaidCYAY2012","bma_CATPaidCYAY2012"]
["L17",2013,"XXX","XXX","XXX",{"$f":"Import!I9106","v":0},{"$f":"Import!I9111","v":0},{"$f":"Import!I9117","v":0},{"$f":"Import!I9124","v":0},{"$f":"Import!I9132","v":0},{"$f":"Import!I9141","v":0},{"$f":"Import!I9151","v":0},{"$f":"Import!I9162","v":0},null,null,null,{"$f":"\"UltCY\"&I$10&\"AY\"&B11","v":"UltCY2016AYPrior"},{"$f":"I11","v":0},"CATIBNRCY2019AY2014",0,"brrt_PoliciesWrittenYearAxis_brrt_XNMinus6Member",null,null,null,null,null,null,null,null,null,null,null,null,null,null,null,null,null,{"$f":"\"bma_\"&\"PaidCY\"&S$10&\"AY\"&$B33","v":"bma_PaidCYCATUltCY2019AY2012AY2013"},"bma_PaidCY0AY2013","bma_PaidCYAY2013","bma_PaidCYAY2013","bma_PaidCYAY2013","bma_PaidCYAY2013","bma_PaidCYAY2013","bma_CATPaidCYAY2013"]
["L18",2014,"XXX","XXX","XXX","XXX",{"$f":"Import!I9112","v":0},{"$f":"Import!I9118","v":0},{"$f":"Import!I9125","v":0},{"$f":"Import!I9133","v":0},{"$f":"Import!I9142","v":0},{"$f":"Import!I9152","v":0},{"$f":"Import!I9163","v":0},null,null,null,"UltCY2016AY2010",0,"CATIBNRCY2019AY2015",0,"brrt_PoliciesWrittenYearAxis_brrt_XNMinus5Member",null,null,null,null,null,null,null,null,null,null,null,null,null,null,null,null,null,null,"bma_PaidCY0AY2014","bma_PaidCYAY2014","bma_PaidCYAY2014","bma_PaidCYAY2014","bma_PaidCYAY2014","bma_PaidCYAY2014","bma_CATPaidCYAY2014"]
["L19",2015,"XXX","XXX","XXX","XXX","XXX",{"$f":"Import!I9119","v":0},{"$f":"Import!I9126","v":0},{"$f":"Import!I9134","v":0},{"$f":"Import!I9143","v":0},{"$f":"Import!I9153","v":0},{"$f":"Import!I9164","v":0},null,null,null,"UltCY2016AY2011",0,"CATIBNRCY2019AY2016",0,"brrt_PoliciesWrittenYearAxis_brrt_XNMinus4Member",null,null,null,null,null,null,null,null,null,null,null,null,null,null,null,null,null,null,null,{"$f":"\"bma_\"&\"PaidCY\"&U$10&\"AY\"&$B35","v":"bma_PaidCYAY2015"},{"$f":"\"bma_\"&\"PaidCY\"&V$10&\"AY\"&$B35","v":"bma_PaidCYAY2015"},{"$f":"\"bma_\"&\"PaidCY\"&W$10&\"AY\"&$B35","v":"bma_PaidCYAY2015"},{"$f":"\"bma_\"&\"PaidCY\"&X$10&\"AY\"&$B35","v":"bma_PaidCYAY2015"},{"$f":"\"bma_\"&\"PaidCY\"&Y$10&\"AY\"&$B35","v":"bma_PaidCYAY2015"},"bma_CATPaidCYAY2015"]
["L20",2016,"XXX","XXX","XXX","XXX","XXX","XXX",{"$f":"Import!I9127","v":0},{"$f":"Import!I9135","v":0},{"$f":"Import!I9144","v":0},{"$f":"Import!I9154","v":0},{"$f":"Import!I9165","v":0},null,null,null,"UltCY2016AY2012",0,"CATIBNRCY2019AY2017",0,"brrt_PoliciesWrittenYearAxis_brrt_XNMinus3Member",null,null,null,null,null,null,null,null,null,null,null,null,null,null,null,null,null,null,null,null,{"$f":"\"bma_\"&\"PaidCY\"&V$10&\"AY\"&$B36","v":"bma_PaidCYAY2016"},{"$f":"\"bma_\"&\"PaidCY\"&W$10&\"AY\"&$B36","v":"bma_PaidCYAY2016"},{"$f":"\"bma_\"&\"PaidCY\"&X$10&\"AY\"&$B36","v":"bma_PaidCYAY2016"},{"$f":"\"bma_\"&\"PaidCY\"&Y$10&\"AY\"&$B36","v":"bma_PaidCYAY2016"},"bma_CATPaidCYAY2016"]
["L21",2017,"XXX","XXX","XXX","XXX","XXX","XXX","XXX",{"$f":"Import!I9136","v":0},{"$f":"Import!I9145","v":0},{"$f":"Import!I9155","v":0},{"$f":"Import!I9166","v":0},null,null,null,"UltCY2016AY2013",0,"CATIBNRCY2019AY2018",0,"brrt_PoliciesWrittenYearAxis_brrt_XNMinus2Member",null,null,null,null,null,null,null,null,null,null,null,null,null,null,null,null,null,null,null,null,null,{"$f":"\"bma_\"&\"PaidCY\"&W$10&\"AY\"&$B37","v":"bma_PaidCYAY2017"},{"$f":"\"bma_\"&\"PaidCY\"&X$10&\"AY\"&$B37","v":"bma_PaidCYAY2017"},{"$f":"\"bma_\"&\"PaidCY\"&Y$10&\"AY\"&$B37","v":"bma_PaidCYAY2017"},"bma_CATPaidCYAY2017"]
["L22",2018,"XXX","XXX","XXX","XXX","XXX","XXX","XXX","XXX",{"$f":"Import!I9146","v":0},{"$f":"Import!I9156","v":0},{"$f":"Import!I9167","v":0},null,null,null,"UltCY2016AY2014",0,"CATIBNRCY2019AY2019",0,"brrt_PoliciesWrittenYearAxis_brrt_XNMinus1Member",null,null,null,null,null,null,null,null,null,null,null,null,null,null,null,null,null,null,null,null,null,null,{"$f":"\"bma_\"&\"PaidCY\"&X$10&\"AY\"&$B38","v":"bma_PaidCYAY2018"},{"$f":"\"bma_\"&\"PaidCY\"&Y$10&\"AY\"&$B38","v":"bma_PaidCYAY2018"},"bma_CATPaidCYAY2018"]
["L23",{"$f":"L28","v":2019},"XXX","XXX","XXX","XXX","XXX","XXX","XXX","XXX","XXX",{"$f":"Import!I9157","v":0},{"$f":"Import!I9168","v":0},null,null,null,"UltCY2016AY2015",0,null,null,"brrt_PoliciesWrittenYearAxis_brrt_XNMember",null,null,null,null,null,null,null,null,null,null,null,null,null,null,null,null,null,null,null,null,null,null,null,{"$f":"\"bma_\"&\"PaidCY\"&Y$10&\"AY\"&$B39","v":"bma_PaidCYAY2019"},"bma_CATPaidCYAY2019"]
["L24","Totals",null,null,null,null,null,null,null,null,null,null,{"$f":"SUM(M29:M39)","v":0},null,null,null,"UltCY2016AY2016",0,null,null,null,null,null,null,null,null,null,null,null,null,null,null,null,null,null,null,null,null,null,null,null,null,null,null,null,"bma_CATPaidCYAYTotals"]
[null,null,null,null,null,null,null,null,null,null,null,null,null,null,null,null,{"$f":"\"UltCY\"&J$10&\"AY\"&B11","v":"UltCY2017AYPrior"},{"$f":"J11","v":0}]
[null,null,"BULK & IBNR RESERVES ON NET LOSSES AND ALLOCATED LOSS ADJUSTMENT EXPENSES REPORTED AT YEAR END ($000)",null,null,null,null,null,null,null,null,null,35,null,null,null,{"$f":"\"UltCY\"&J$10&\"AY\"&B13","v":"UltCY2017AY2011"},{"$f":"J13","v":0}]
[null,null,null,null,null,null,null,null,null,null,null,null,"Losses",null,null,null,"UltCY2017AY2012",0]
[null,"Years in Which",25,26,27,28,29,30,31,32,33,34,"Bulk & IBNR",null,null,null,"UltCY2017AY2013",0]
[null,"Policies Were",null,null,null,null,null,null,null,null,null,null,"Reserves",null,null,null,"UltCY2017AY2014",0]
[null,"Written",{"$f":"D46-1","v":2010},2011,2012,2013,2014,2015,2016,2017,2018,{"$f":"L28","v":2019},{"$f":"L46","v":2019},null,null,null,"UltCY2017AY2015",0]
["L25","Prior",{"$f":"Import!I9169","v":0},{"$f":"Import!I9171","v":0},{"$f":"Import!I9174","v":0},{"$f":"Import!I9178","v":0},{"$f":"Import!I9183","v":0},{"$f":"Import!I9189","v":0},{"$f":"Import!I9196","v":0},{"$f":"Import!I9204","v":0},{"$f":"Import!I9213","v":0},{"$f":"Import!I9223","v":0},{"$f":"Import!I9234","v":0},null,null,null,"UltCY2017AY2016",0,null,null,"brrt_PoliciesWrittenYearAxis_brrt_PriorMember",null,null,null,null,null,null,null,null,null,null,null,null,null,null,{"$f":"\"bma_\"&\"IBNRCY\"&P$10&\"AY\"&$B47","v":"bma_IBNRCYAYPrior"},"bma_IBNRCYUltCY2011AY2010AYPrior","bma_IBNRCY0AYPrior","bma_IBNRCYCATUltCY2019AY2012AYPrior",{"$f":"\"bma_\"&\"IBNRCY\"&T$10&\"AY\"&$B47","v":"bma_IBNRCY0AYPrior"},{"$f":"\"bma_\"&\"IBNRCY\"&U$10&\"AY\"&$B47","v":"bma_IBNRCYAYPrior"},{"$f":"\"bma_\"&\"IBNRCY\"&V$10&\"AY\"&$B47","v":"bma_IBNRCYAYPrior"},{"$f":"\"bma_\"&\"IBNRCY\"&W$10&\"AY\"&$B47","v":"bma_IBNRCYAYPrior"},{"$f":"\"bma_\"&\"IBNRCY\"&X$10&\"AY\"&$B47","v":"bma_IBNRCYAYPrior"},{"$f":"\"bma_\"&\"IBNRCY\"&Y$10&\"AY\"&$B47","v":"bma_IBNRCYAYPrior"},{"$f":"\"bma_\"&\"CATIBNRCY\"&Y$10&\"AY\"&$B47","v":"bma_CATIBNRCYAYPrior"}]
["L26",{"$f":"B49-1","v":2010},{"$f":"Import!I9170","v":0},{"$f":"Import!I9172","v":0},{"$f":"Import!I9175","v":0},{"$f":"Import!I9179","v":0},{"$f":"Import!I9184","v":0},{"$f":"Import!I9190","v":0},{"$f":"Import!I9197","v":0},{"$f":"Import!I9205","v":0},{"$f":"Import!I9214","v":0},{"$f":"Import!I9224","v":0},{"$f":"Import!I9235","v":0},null,null,null,"UltCY2017AY2017",0,null,null,"brrt_PoliciesWrittenYearAxis_brrt_XNMinus9Member",null,null,null,null,null,null,null,null,null,null,null,null,null,null,"bma_IBNRCYAY2010","bma_IBNRCYUltCY2011AY2010AY2010","bma_IBNRCY0AY2010","bma_IBNRCYCATUltCY2019AY2012AY2010","bma_IBNRCY0AY2010","bma_IBNRCYAY2010","bma_IBNRCYAY2010","bma_IBNRCYAY2010","bma_IBNRCYAY2010","bma_IBNRCYAY2010","bma_CATIBNRCYAY2010"]
["L27",2011,"XXX",{"$f":"Import!I9173","v":0},{"$f":"Import!I9176","v":0},{"$f":"Import!I9180","v":0},{"$f":"Import!I9185","v":0},{"$f":"Import!I9191","v":0},{"$f":"Import!I9198","v":0},{"$f":"Import!I9206","v":0},{"$f":"Import!I9215","v":0},{"$f":"Import!I9225","v":0},{"$f":"Import!I9236","v":0},null,null,null,{"$f":"\"UltCY\"&K$10&\"AY\"&B11","v":"UltCY2018AYPrior"},{"$f":"K11","v":0},null,null,"brrt_PoliciesWrittenYearAxis_brrt_XNMinus8Member",null,null,null,null,null,null,null,null,null,null,null,null,null,null,null,{"$f":"\"bma_\"&\"IBNRCY\"&Q$10&\"AY\"&$B49","v":"bma_IBNRCYUltCY2011AY2010AY2011"},{"$f":"\"bma_\"&\"IBNRCY\"&R$10&\"AY\"&$B49","v":"bma_IBNRCY0AY2011"},{"$f":"\"bma_\"&\"IBNRCY\"&S$10&\"AY\"&$B49","v":"bma_IBNRCYCATUltCY2019AY2012AY2011"},"bma_IBNRCY0AY2011","bma_IBNRCYAY2011","bma_IBNRCYAY2011","bma_IBNRCYAY2011","bma_IBNRCYAY2011","bma_IBNRCYAY2011","bma_CATIBNRCYAY2011"]
["L28",2012,"XXX","XXX",{"$f":"Import!I9177","v":0},{"$f":"Import!I9181","v":0},{"$f":"Import!I9186","v":0},{"$f":"Import!I9192","v":0},{"$f":"Import!I9199","v":0},{"$f":"Import!I9207","v":0},{"$f":"Import!I9216","v":0},{"$f":"Import!I9226","v":0},{"$f":"Import!I9237","v":0},null,null,null,"UltCY2018AY2010",0,null,null,"brrt_PoliciesWrittenYearAxis_brrt_XNMinus7Member",null,null,null,null,null,null,null,null,null,null,null,null,null,null,null,null,{"$f":"\"bma_\"&\"IBNRCY\"&R$10&\"AY\"&$B50","v":"bma_IBNRCY0AY2012"},{"$f":"\"bma_\"&\"IBNRCY\"&S$10&\"AY\"&$B50","v":"bma_IBNRCYCATUltCY2019AY2012AY2012"},"bma_IBNRCY0AY2012","bma_IBNRCYAY2012","bma_IBNRCYAY2012","bma_IBNRCYAY2012","bma_IBNRCYAY2012","bma_IBNRCYAY2012","bma_CATIBNRCYAY2012"]
["L29",2013,"XXX","XXX","XXX",{"$f":"Import!I9182","v":0},{"$f":"Import!I9187","v":0},{"$f":"Import!I9193","v":0},{"$f":"Import!I9200","v":0},{"$f":"Import!I9208","v":0},{"$f":"Import!I9217","v":0},{"$f":"Import!I9227","v":0},{"$f":"Import!I9238","v":0},null,null,null,"UltCY2018AY2011",0,null,null,"brrt_PoliciesWrittenYearAxis_brrt_XNMinus6Member",null,null,null,null,null,null,null,null,null,null,null,null,null,null,null,null,null,{"$f":"\"bma_\"&\"IBNRCY\"&S$10&\"AY\"&$B51","v":"bma_IBNRCYCATUltCY2019AY2012AY2013"},"bma_IBNRCY0AY2013","bma_IBNRCYAY2013","bma_IBNRCYAY2013","bma_IBNRCYAY2013","bma_IBNRCYAY2013","bma_IBNRCYAY2013","bma_CATIBNRCYAY2013"]
["L30",2014,"XXX","XXX","XXX","XXX",{"$f":"Import!I9188","v":0},{"$f":"Import!I9194","v":0},{"$f":"Import!I9201","v":0},{"$f":"Import!I9209","v":0},{"$f":"Import!I9218","v":0},{"$f":"Import!I9228","v":0},{"$f":"Import!I9239","v":0},null,null,null,"UltCY2018AY2012",0,null,null,"brrt_PoliciesWrittenYearAxis_brrt_XNMinus5Member",null,null,null,null,null,null,null,null,null,null,null,null,null,null,null,null,null,null,"bma_IBNRCY0AY2014","bma_IBNRCYAY2014","bma_IBNRCYAY2014","bma_IBNRCYAY2014","bma_IBNRCYAY2014","bma_IBNRCYAY2014","bma_CATIBNRCYAY2014"]
["L31",2015,"XXX","XXX","XXX","XXX","XXX",{"$f":"Import!I9195","v":0},{"$f":"Import!I9202","v":0},{"$f":"Import!I9210","v":0},{"$f":"Import!I9219","v":0},{"$f":"Import!I9229","v":0},{"$f":"Import!I9240","v":0},null,null,null,"UltCY2018AY2013",0,null,null,"brrt_PoliciesWrittenYearAxis_brrt_XNMinus4Member",null,null,null,null,null,null,null,null,null,null,null,null,null,null,null,null,null,null,null,{"$f":"\"bma_\"&\"IBNRCY\"&U$10&\"AY\"&$B53","v":"bma_IBNRCYAY2015"},{"$f":"\"bma_\"&\"IBNRCY\"&V$10&\"AY\"&$B53","v":"bma_IBNRCYAY2015"},{"$f":"\"bma_\"&\"IBNRCY\"&W$10&\"AY\"&$B53","v":"bma_IBNRCYAY2015"},{"$f":"\"bma_\"&\"IBNRCY\"&X$10&\"AY\"&$B53","v":"bma_IBNRCYAY2015"},{"$f":"\"bma_\"&\"IBNRCY\"&Y$10&\"AY\"&$B53","v":"bma_IBNRCYAY2015"},"bma_CATIBNRCYAY2015"]
["L32",2016,"XXX","XXX","XXX","XXX","XXX","XXX",{"$f":"Import!I9203","v":0},{"$f":"Import!I9211","v":0},{"$f":"Import!I9220","v":0},{"$f":"Import!I9230","v":0},{"$f":"Import!I9241","v":0},null,null,null,"UltCY2018AY2014",0,null,null,"brrt_PoliciesWrittenYearAxis_brrt_XNMinus3Member",null,null,null,null,null,null,null,null,null,null,null,null,null,null,null,null,null,null,null,null,{"$f":"\"bma_\"&\"IBNRCY\"&V$10&\"AY\"&$B54","v":"bma_IBNRCYAY2016"},{"$f":"\"bma_\"&\"IBNRCY\"&W$10&\"AY\"&$B54","v":"bma_IBNRCYAY2016"},{"$f":"\"bma_\"&\"IBNRCY\"&X$10&\"AY\"&$B54","v":"bma_IBNRCYAY2016"},{"$f":"\"bma_\"&\"IBNRCY\"&Y$10&\"AY\"&$B54","v":"bma_IBNRCYAY2016"},"bma_CATIBNRCYAY2016"]
["L33",2017,"XXX","XXX","XXX","XXX","XXX","XXX","XXX",{"$f":"Import!I9212","v":0},{"$f":"Import!I9221","v":0},{"$f":"Import!I9231","v":0},{"$f":"Import!I9242","v":0},null,null,null,"UltCY2018AY2015",0,null,null,"brrt_PoliciesWrittenYearAxis_brrt_XNMinus2Member",null,null,null,null,null,null,null,null,null,null,null,null,null,null,null,null,null,null,null,null,null,{"$f":"\"bma_\"&\"IBNRCY\"&W$10&\"AY\"&$B55","v":"bma_IBNRCYAY2017"},{"$f":"\"bma_\"&\"IBNRCY\"&X$10&\"AY\"&$B55","v":"bma_IBNRCYAY2017"},{"$f":"\"bma_\"&\"IBNRCY\"&Y$10&\"AY\"&$B55","v":"bma_IBNRCYAY2017"},"bma_CATIBNRCYAY2017"]
["L34",2018,"XXX","XXX","XXX","XXX","XXX","XXX","XXX","XXX",{"$f":"Import!I9222","v":0},{"$f":"Import!I9232","v":0},{"$f":"Import!I9243","v":0},null,null,null,"UltCY2018AY2016",0,null,null,"brrt_PoliciesWrittenYearAxis_brrt_XNMinus1Member",null,null,null,null,null,null,null,null,null,null,null,null,null,null,null,null,null,null,null,null,null,null,{"$f":"\"bma_\"&\"IBNRCY\"&X$10&\"AY\"&$B56","v":"bma_IBNRCYAY2018"},{"$f":"\"bma_\"&\"IBNRCY\"&Y$10&\"AY\"&$B56","v":"bma_IBNRCYAY2018"},"bma_CATIBNRCYAY2018"]
["L35",{"$f":"L46","v":2019},"XXX","XXX","XXX","XXX","XXX","XXX","XXX","XXX","XXX",{"$f":"Import!I9233","v":0},{"$f":"Import!I9244","v":0},null,null,null,"UltCY2018AY2017",0,null,null,"brrt_PoliciesWrittenYearAxis_brrt_XNMember",null,null,null,null,null,null,null,null,null,null,null,null,null,null,null,null,null,null,null,null,null,null,null,{"$f":"\"bma_\"&\"IBNRCY\"&Y$10&\"AY\"&$B57","v":"bma_IBNRCYAY2019"},"bma_CATIBNRCYAY2019"]
["L36","Totals",null,null,null,null,null,null,null,null,null,null,{"$f":"SUM(M47:M57)","v":0},null,null,null,"UltCY2018AY2018",0,null,null,null,null,null,null,null,null,null,null,null,null,null,null,null,null,null,null,null,null,null,null,null,null,null,null,null,"bma_CATIBNRCYAYTotals"]
[null,null,null,null,null,null,null,null,null,null,null,null,null,null,null,null,{"$f":"\"UltCY\"&L$10&\"AY\"&B11","v":"UltCY2019AYPrior"},{"$f":"L11","v":0}]
[null,null,36,37,38,39,"Unallocated Loss",null,null,42,43,44,45,null,null,null,{"$f":"\"UltCY\"&L$10&\"AY\"&B13","v":"UltCY2019AY2011"},{"$f":"L13","v":0}]
[null,"Years in Which",null,null,null,null,"Adjustment Expenses",null,null,null,null,null,null,null,null,null,"UltCY2019AY2012",0]
[null,"Premiums",null,null,null,null,40,41,null,null,null,null,null,null,null,null,"UltCY2019AY2013",0]
[null,"Were",null,null,null,null,null,null,null,"Commission and","General and",null,null,null,null,null,"UltCY2019AY2014",0]
[null,"Earned and","Gross","Gross","Net","Net",null,null,null,"Brokerage","Administrative","Personnel","Other",null,null,null,"UltCY2019AY2015",0]
[null,"Losses Were","Premiums","Premiums","Premiums","Premiums",null,null,"Calendar","Expense","Expense","Costs","Expense",null,null,null,"UltCY2019AY2016",0]
[null,"Incurred","Written","Earned","Written","Earned","Paid","Incurred","Year","(Form 2A, Line 9)","(Form 2A, Line 10)","(Form 2A, Line 11)","(Form 2A, Line 12)",null,null,null,"UltCY2019AY2017",0]
["L37","Prior","XXX",{"$f":"C67","v":"XXX"},"XXX",{"$f":"E67","v":"XXX"},{"$f":"Import!I9289","v":0},{"$f":"Import!I9300","v":0},"Prior",{"$f":"Import!I9311","v":0},{"$f":"Import!I9322","v":0},{"$f":"Import!I9333","v":0},{"$f":"Import!I9344","v":0},null,null,null,"UltCY2019AY2018",0,null,null,"brrt_PremiumsEarnedLossesIncurredYearAxis_brrt_PriorMember","brrt_CalendarYearAxis_brrt_PriorMember",null,null,null,null,null,null,null,null,null,null,null,null,null,null,null,null,null,{"$f":"\"bma_\"&\"NetAOEPaid\"&$B67","v":"bma_NetAOEPaidPrior"},{"$f":"\"bma_\"&\"NetAOEIncurred\"&$B67","v":"bma_NetAOEIncurredPrior"},null,{"$f":"\"bma_\"&\"CommissionsAndBrokerage\"&$B67","v":"bma_CommissionsAndBrokeragePrior"},{"$f":"\"bma_\"&\"GeneralAndAdministrative\"&$B67","v":"bma_GeneralAndAdministrativePrior"},{"$f":"\"bma_\"&\"PersonnelCosts\"&$B67","v":"bma_PersonnelCostsPrior"},{"$f":"\"bma_\"&\"UnderwritingExpensesOther\"&$B67","v":"bma_UnderwritingExpensesOtherPrior"}]
["L38",{"$f":"B69-1","v":2010},{"$f":"Import!I9246","v":0},{"$f":"Import!I9257","v":0},{"$f":"Import!I9268","v":0},{"$f":"Import!I9279","v":0},{"$f":"Import!I9290","v":0},{"$f":"Import!I9301","v":0},{"$f":"B68","v":2010},{"$f":"Import!I9312","v":0},{"$f":"Import!I9323","v":0},{"$f":"Import!I9334","v":0},{"$f":"Import!I9345","v":0},null,null,null,"UltCY2019AY2019",0,null,null,"brrt_PremiumsEarnedLossesIncurredYearAxis_brrt_XNMinus9Member","brrt_CalendarYearAxis_brrt_XNMinus9Member",null,null,null,null,null,null,null,null,null,null,null,null,null,{"$f":"\"bma_\"&\"GrossWP\"&$B68","v":"bma_GrossWP2010"},{"$f":"\"bma_\"&\"GrossEP\"&$B68","v":"bma_GrossEP2010"},{"$f":"\"bma_\"&\"NetWP\"&$B68","v":"bma_NetWP2010"},{"$f":"\"bma_\"&\"NetEP\"&$B68","v":"bma_NetEP2010"},{"$f":"\"bma_\"&\"NetAOEPaid\"&$B68","v":"bma_NetAOEPaid2010"},{"$f":"\"bma_\"&\"NetAOEIncurred\"&$B68","v":"bma_NetAOEIncurred2010"},null,{"$f":"\"bma_\"&\"CommissionsAndBrokerage\"&$B68","v":"bma_CommissionsAndBrokerage2010"},{"$f":"\"bma_\"&\"GeneralAndAdministrative\"&$B68","v":"bma_GeneralAndAdministrative2010"},{"$f":"\"bma_\"&\"PersonnelCosts\"&$B68","v":"bma_PersonnelCosts2010"},{"$f":"\"bma_\"&\"UnderwritingExpensesOther\"&$B68","v":"bma_UnderwritingExpensesOther2010"}]
["L39",2011,{"$f":"Import!I9247","v":0},{"$f":"Import!I9258","v":0},{"$f":"Import!I9269","v":0},{"$f":"Import!I9280","v":0},{"$f":"Import!I9291","v":0},{"$f":"Import!I9302","v":0},2011,{"$f":"Import!I9313","v":0},{"$f":"Import!I9324","v":0},{"$f":"Import!I9335","v":0},{"$f":"Import!I9346","v":0},null,null,null,{"$f":"\"PaidCY\"&C$10&\"AY\"&B29","v":"PaidCY2010AYPrior"},{"$f":"C29","v":0},null,null,"brrt_PremiumsEarnedLossesIncurredYearAxis_brrt_XNMinus8Member","brrt_CalendarYearAxis_brrt_XNMinus8Member",null,null,null,null,null,null,null,null,null,null,null,null,null,{"$f":"\"bma_\"&\"GrossWP\"&$B69","v":"bma_GrossWP2011"},{"$f":"\"bma_\"&\"GrossEP\"&$B69","v":"bma_GrossEP2011"},{"$f":"\"bma_\"&\"NetWP\"&$B69","v":"bma_NetWP2011"},{"$f":"\"bma_\"&\"NetEP\"&$B69","v":"bma_NetEP2011"},"bma_NetAOEPaid2011","bma_NetAOEIncurred2011",null,"bma_CommissionsAndBrokerage2011","bma_GeneralAndAdministrative2011","bma_PersonnelCosts2011","bma_UnderwritingExpensesOther2011"]
["L40",2012,{"$f":"Import!I9248","v":0},{"$f":"Import!I9259","v":0},{"$f":"Import!I9270","v":0},{"$f":"Import!I9281","v":0},{"$f":"Import!I9292","v":0},{"$f":"Import!I9303","v":0},2012,{"$f":"Import!I9314","v":0},{"$f":"Import!I9325","v":0},{"$f":"Import!I9336","v":0},{"$f":"Import!I9347","v":0},null,null,null,{"$f":"\"PaidCY\"&C$10&\"AY\"&B30","v":"PaidCY2010AY2010"},{"$f":"C30","v":0},null,null,"brrt_PremiumsEarnedLossesIncurredYearAxis_brrt_XNMinus7Member","brrt_CalendarYearAxis_brrt_XNMinus7Member",null,null,null,null,null,null,null,null,null,null,null,null,null,"bma_GrossWP2012","bma_GrossEP2012","bma_NetWP2012","bma_NetEP2012","bma_NetAOEPaid2012","bma_NetAOEIncurred2012",null,"bma_CommissionsAndBrokerage2012","bma_GeneralAndAdministrative2012","bma_PersonnelCosts2012","bma_UnderwritingExpensesOther2012"]
["L41",2013,{"$f":"Import!I9249","v":0},{"$f":"Import!I9260","v":0},{"$f":"Import!I9271","v":0},{"$f":"Import!I9282","v":0},{"$f":"Import!I9293","v":0},{"$f":"Import!I9304","v":0},2013,{"$f":"Import!I9315","v":0},{"$f":"Import!I9326","v":0},{"$f":"Import!I9337","v":0},{"$f":"Import!I9348","v":0},null,null,null,{"$f":"\"PaidCY\"&D$10&\"AY\"&B29","v":"PaidCY2011AYPrior"},{"$f":"D29","v":0},null,null,"brrt_PremiumsEarnedLossesIncurredYearAxis_brrt_XNMinus6Member","brrt_CalendarYearAxis_brrt_XNMinus6Member",null,null,null,null,null,null,null,null,null,null,null,null,null,"bma_GrossWP2013","bma_GrossEP2013","bma_NetWP2013","bma_NetEP2013","bma_NetAOEPaid2013","bma_NetAOEIncurred2013",null,"bma_CommissionsAndBrokerage2013","bma_GeneralAndAdministrative2013","bma_PersonnelCosts2013","bma_UnderwritingExpensesOther2013"]
["L42",2014,{"$f":"Import!I9250","v":0},{"$f":"Import!I9261","v":0},{"$f":"Import!I9272","v":0},{"$f":"Import!I9283","v":0},{"$f":"Import!I9294","v":0},{"$f":"Import!I9305","v":0},2014,{"$f":"Import!I9316","v":0},{"$f":"Import!I9327","v":0},{"$f":"Import!I9338","v":0},{"$f":"Import!I9349","v":0},null,null,null,{"$f":"\"PaidCY\"&D$10&\"AY\"&B30","v":"PaidCY2011AY2010"},{"$f":"D30","v":0},null,null,"brrt_PremiumsEarnedLossesIncurredYearAxis_brrt_XNMinus5Member","brrt_CalendarYearAxis_brrt_XNMinus5Member",null,null,null,null,null,null,null,null,null,null,null,null,null,"bma_GrossWP2014","bma_GrossEP2014","bma_NetWP2014","bma_NetEP2014","bma_NetAOEPaid2014","bma_NetAOEIncurred2014",null,"bma_CommissionsAndBrokerage2014","bma_GeneralAndAdministrative2014","bma_PersonnelCosts2014","bma_UnderwritingExpensesOther2014"]
["L43",2015,{"$f":"Import!I9251","v":0},{"$f":"Import!I9262","v":0},{"$f":"Import!I9273","v":0},{"$f":"Import!I9284","v":0},{"$f":"Import!I9295","v":0},{"$f":"Import!I9306","v":0},2015,{"$f":"Import!I9317","v":0},{"$f":"Import!I9328","v":0},{"$f":"Import!I9339","v":0},{"$f":"Import!I9350","v":0},null,null,null,{"$f":"\"PaidCY\"&D$10&\"AY\"&B31","v":"PaidCY2011AY2011"},{"$f":"D31","v":0},null,null,"brrt_PremiumsEarnedLossesIncurredYearAxis_brrt_XNMinus4Member","brrt_CalendarYearAxis_brrt_XNMinus4Member",null,null,null,null,null,null,null,null,null,null,null,null,null,"bma_GrossWP2015","bma_GrossEP2015","bma_NetWP2015","bma_NetEP2015","bma_NetAOEPaid2015","bma_NetAOEIncurred2015",null,"bma_CommissionsAndBrokerage2015","bma_GeneralAndAdministrative2015","bma_PersonnelCosts2015","bma_UnderwritingExpensesOther2015"]
["L44",2016,{"$f":"Import!I9252","v":0},{"$f":"Import!I9263","v":0},{"$f":"Import!I9274","v":0},{"$f":"Import!I9285","v":0},{"$f":"Import!I9296","v":0},{"$f":"Import!I9307","v":0},2016,{"$f":"Import!I9318","v":0},{"$f":"Import!I9329","v":0},{"$f":"Import!I9340","v":0},{"$f":"Import!I9351","v":0},null,null,null,{"$f":"\"PaidCY\"&E$10&\"AY\"&B29","v":"PaidCY2012AYPrior"},{"$f":"E29","v":0},null,null,"brrt_PremiumsEarnedLossesIncurredYearAxis_brrt_XNMinus3Member","brrt_CalendarYearAxis_brrt_XNMinus3Member",null,null,null,null,null,null,null,null,null,null,null,null,null,"bma_GrossWP2016","bma_GrossEP2016","bma_NetWP2016","bma_NetEP2016","bma_NetAOEPaid2016","bma_NetAOEIncurred2016",null,"bma_CommissionsAndBrokerage2016","bma_GeneralAndAdministrative2016","bma_PersonnelCosts2016","bma_UnderwritingExpensesOther2016"]
["L45",2017,{"$f":"Import!I9253","v":0},{"$f":"Import!I9264","v":0},{"$f":"Import!I9275","v":0},{"$f":"Import!I9286","v":0},{"$f":"Import!I9297","v":0},{"$f":"Import!I9308","v":0},2017,{"$f":"Import!I9319","v":0},{"$f":"Import!I9330","v":0},{"$f":"Import!I9341","v":0},{"$f":"Import!I9352","v":0},null,null,null,{"$f":"\"PaidCY\"&E$10&\"AY\"&B30","v":"PaidCY2012AY2010"},{"$f":"E30","v":0},null,null,"brrt_PremiumsEarnedLossesIncurredYearAxis_brrt_XNMinus2Member","brrt_CalendarYearAxis_brrt_XNMinus2Member",null,null,null,null,null,null,null,null,null,null,null,null,null,"bma_GrossWP2017","bma_GrossEP2017","bma_NetWP2017","bma_NetEP2017","bma_NetAOEPaid2017","bma_NetAOEIncurred2017",null,"bma_CommissionsAndBrokerage2017","bma_GeneralAndAdministrative2017","bma_PersonnelCosts2017","bma_UnderwritingExpensesOther2017"]
["L46",2018,{"$f":"Import!I9254","v":0},{"$f":"Import!I9265","v":0},{"$f":"Import!I9276","v":0},{"$f":"Import!I9287","v":0},{"$f":"Import!I9298","v":0},{"$f":"Import!I9309","v":0},2018,{"$f":"Import!I9320","v":0},{"$f":"Import!I9331","v":0},{"$f":"Import!I9342","v":0},{"$f":"Import!I9353","v":0},null,null,null,{"$f":"\"PaidCY\"&E$10&\"AY\"&B31","v":"PaidCY2012AY2011"},{"$f":"E31","v":0},null,null,"brrt_PremiumsEarnedLossesIncurredYearAxis_brrt_XNMinus1Member","brrt_CalendarYearAxis_brrt_XNMinus1Member",null,null,null,null,null,null,null,null,null,null,null,null,null,"bma_GrossWP2018","bma_GrossEP2018","bma_NetWP2018","bma_NetEP2018","bma_NetAOEPaid2018","bma_NetAOEIncurred2018",null,"bma_CommissionsAndBrokerage2018","bma_GeneralAndAdministrative2018","bma_PersonnelCosts2018","bma_UnderwritingExpensesOther2018"]
["L47",{"$f":"B39","v":2019},{"$f":"Import!I9255","v":0},{"$f":"Import!I9266","v":0},{"$f":"Import!I9277","v":0},{"$f":"Import!I9288","v":0},{"$f":"Import!I9299","v":0},{"$f":"Import!I9310","v":0},2019,{"$f":"Import!I9321","v":0},{"$f":"Import!I9332","v":0},{"$f":"Import!I9343","v":0},{"$f":"Import!I9354","v":0},null,null,null,{"$f":"\"PaidCY\"&E$10&\"AY\"&B32","v":"PaidCY2012AY2012"},{"$f":"E32","v":0},null,null,"brrt_PremiumsEarnedLossesIncurredYearAxis_brrt_XNMember","brrt_CalendarYearAxis_brrt_XNMember",null,null,null,null,null,null,null,null,null,null,null,null,null,"bma_GrossWP2019","bma_GrossEP2019","bma_NetWP2019","bma_NetEP2019","bma_NetAOEPaid2019","bma_NetAOEIncurred2019",null,"bma_CommissionsAndBrokerage2019","bma_GeneralAndAdministrative2019","bma_PersonnelCosts2019","bma_UnderwritingExpensesOther2019"]
["L48","Totals","XXX",{"$f":"C78","v":"XXX"},"XXX",{"$f":"E78","v":"XXX"},{"$f":"SUM(G67:G77)","v":0},{"$f":"SUM(H67:H77)","v":0},"Totals",{"$f":"SUM(J67:J77)","v":0},{"$f":"SUM(K67:K77)","v":0},{"$f":"SUM(L67:L77)","v":0},{"$f":"SUM(M67:M77)","v":0},null,null,null,{"$f":"\"PaidCY\"&F$10&\"AY\"&B29","v":"PaidCY2013AYPrior"},{"$f":"F29","v":0},null,null,null,null,null,null,null,null,null,null,null,null,null,null,null,null,null,null,null,null,null,"bma_NetAOEPaidTotals","bma_NetAOEIncurredTotals",null,"bma_CommissionsAndBrokerageTotals","bma_GeneralAndAdministrativeTotals","bma_PersonnelCostsTotals","bma_UnderwritingExpensesOtherTotals"]
[null,null,null,null,null,null,null,null,null,null,null,null,null,null,null,null,{"$f":"\"PaidCY\"&F$10&\"AY\"&B30","v":"PaidCY2013AY2010"},{"$f":"F30","v":0}]
[null,"COMMENTS",null,null,null,null,null,null,null,null,null,null,null,null,null,null,{"$f":"\"PaidCY\"&F$10&\"AY\"&B31","v":"PaidCY2013AY2011"},{"$f":"F31","v":0}]
[null,{"$f":"Import!I9355","v":0},null,null,null,null,null,null,null,null,null,null,null,null,null,null,{"$f":"\"PaidCY\"&G$10&\"AY\"&B30","v":"PaidCY2014AY2010"},{"$f":"G30","v":0},null,null,"brrt_LossTrianglesComments",{"$f":"XBRLMap(B81,U81&\".\"&U4&\".\"&U7,$B$95,$B$96,CONFIGURATION!$B$10,\"BMA\",CONFIGURATION!$B$1,\"bscr\")","v":"Mapped"},null,null,null,null,null,null,null,null,null,null,null,null,null,"bma_ScheduleOfLossTrianglesComments"]
[null,null,null,null,null,null,null,null,null,null,null,null,null,null,null,null,{"$f":"\"PaidCY\"&G$10&\"AY\"&B31","v":"PaidCY2014AY2011"},{"$f":"G31","v":0}]
[null,null,null,null,null,null,null,null,null,null,null,null,null,null,null,null,{"$f":"\"PaidCY\"&G$10&\"AY\"&B32","v":"PaidCY2014AY2012"},{"$f":"G32","v":0}]
[null,null,null,null,null,null,null,null,null,null,null,null,null,null,null,null,{"$f":"\"PaidCY\"&G$10&\"AY\"&B34","v":"PaidCY2014AY2014"},{"$f":"G34","v":0}]
[null,null,"brrt_IncurredEstimatedUltimateNetLossesAndAllocatedLossAdjustmentExpenses","brrt_IncurredEstimatedUltimateNetLossesAndAllocatedLossAdjustmentExpenses","brrt_IncurredEstimatedUltimateNetLossesAndAllocatedLossAdjustmentExpenses","brrt_IncurredEstimatedUltimateNetLossesAndAllocatedLossAdjustmentExpenses","brrt_IncurredEstimatedUltimateNetLossesAndAllocatedLossAdjustmentExpenses","brrt_IncurredEstimatedUltimateNetLossesAndAllocatedLossAdjustmentExpenses","brrt_IncurredEstimatedUltimateNetLossesAndAllocatedLossAdjustmentExpenses","brrt_IncurredEstimatedUltimateNetLossesAndAllocatedLossAdjustmentExpenses","brrt_IncurredEstimatedUltimateNetLossesAndAllocatedLossAdjustmentExpenses","brrt_IncurredEstimatedUltimateNetLossesAndAllocatedLossAdjustmentExpenses","brrt_UltimateCatastropheLosses",null,null,null,{"$f":"\"PaidCY\"&H$10&\"AY\"&B29","v":"PaidCY2015AYPrior"},{"$f":"H29","v":0}]
[null,null,"brrt_CumulativePaidNetLossesAndAllocatedLossAdjustmentExpenses","brrt_CumulativePaidNetLossesAndAllocatedLossAdjustmentExpenses","brrt_CumulativePaidNetLossesAndAllocatedLossAdjustmentExpenses","brrt_CumulativePaidNetLossesAndAllocatedLossAdjustmentExpenses","brrt_CumulativePaidNetLossesAndAllocatedLossAdjustmentExpenses","brrt_CumulativePaidNetLossesAndAllocatedLossAdjustmentExpenses","brrt_CumulativePaidNetLossesAndAllocatedLossAdjustmentExpenses","brrt_CumulativePaidNetLossesAndAllocatedLossAdjustmentExpenses","brrt_CumulativePaidNetLossesAndAllocatedLossAdjustmentExpenses","brrt_CumulativePaidNetLossesAndAllocatedLossAdjustmentExpenses","brrt_PaidCatastropheLosses",null,null,null,"PaidCY2015AY2010",0]
[null,null,"brrt_BulkAndIBNRReservesOnNetLossesAndAllocatedLossAdjustmentExpenses","brrt_BulkAndIBNRReservesOnNetLossesAndAllocatedLossAdjustmentExpenses","brrt_BulkAndIBNRReservesOnNetLossesAndAllocatedLossAdjustmentExpenses","brrt_BulkAndIBNRReservesOnNetLossesAndAllocatedLossAdjustmentExpenses","brrt_BulkAndIBNRReservesOnNetLossesAndAllocatedLossAdjustmentExpenses","brrt_BulkAndIBNRReservesOnNetLossesAndAllocatedLossAdjustmentExpenses","brrt_BulkAndIBNRReservesOnNetLossesAndAllocatedLossAdjustmentExpenses","brrt_BulkAndIBNRReservesOnNetLossesAndAllocatedLossAdjustmentExpenses","brrt_BulkAndIBNRReservesOnNetLossesAndAllocatedLossAdjustmentExpenses","brrt_BulkAndIBNRReservesOnNetLossesAndAllocatedLossAdjustmentExpenses","brrt_LossesBulkAndBNRReserves",null,null,null,"PaidCY2015AY2011",0]
[null,null,"brrt_GrossPremiumsWritten","brrt_GrossPremiumsEarned","brrt_NetPremiumsWritten","brrt_NetPremiumsEarned","brrt_UnallocatedLossAdjustmentExpensesPaid","brrt_UnallocatedLossAdjustmentExpensesIncurred",null,"brrt_CommissionsAndBrokerage","brrt_GeneralAndAdministrative","brrt_PersonnelCosts","brrt_OtherUnderwritingExpenses",null,null,null,"PaidCY2015AY2012",0]
[null,null,"brrt_ReportingYearAxis_brrt_YNMinus9Member","brrt_ReportingYearAxis_brrt_YNMinus8Member","brrt_ReportingYearAxis_brrt_YNMinus7Member","brrt_ReportingYearAxis_brrt_YNMinus6Member","brrt_ReportingYearAxis_brrt_YNMinus5Member","brrt_ReportingYearAxis_brrt_YNMinus4Member","brrt_ReportingYearAxis_brrt_YNMinus3Member","brrt_ReportingYearAxis_brrt_YNMinus2Member","brrt_ReportingYearAxis_brrt_YNMinus1Member","brrt_ReportingYearAxis_brrt_YNMember","brrt_ReportingYearAxis_brrt_YNMember",null,null,null,"PaidCY2015AY2013",0]
[null,null,null,null,null,null,null,null,null,null,null,null,null,null,null,null,"PaidCY2015AY2014",0]
[null,null,"Accident Year",null,null,null,null,null,null,null,null,null,null,null,null,null,"PaidCY2015AY2015",0]
[null,null,"Underwriting Year",null,null,null,null,null,null,null,null,null,null,null,null,null,{"$f":"\"PaidCY\"&I$10&\"AY\"&B29","v":"PaidCY2016AYPrior"},{"$f":"I29","v":0}]
[null,null,null,null,null,null,null,null,null,null,null,null,null,null,null,null,"PaidCY2016AY2010",0]
[null,null,null,null,null,null,null,null,null,null,null,null,null,null,null,null,"PaidCY2016AY2011",0]
[null,{"$f":"IF(B3=\"\",\"\",TEXT(DATE(YEAR(B3+1)-1,MONTH(B3+1),DAY(B3+1)),\"mm/dd/yyyy\"))","v":"01/01/2019"},null,null,null,null,null,null,null,null,null,null,null,null,null,null,"PaidCY2016AY2012",0]
[null,{"$f":"IF(B3=\"\",\"\",TEXT(B3,\"mm/dd/yyyy\"))","v":"12/31/2019"},null,null,null,null,null,null,null,null,null,null,null,null,null,null,"PaidCY2016AY2013",0]
[null,null,null,null,null,null,null,null,null,null,null,null,null,null,null,null,"PaidCY2016AY2014",0]
[null,null,null,null,null,null,null,null,null,null,null,null,null,null,null,null,"PaidCY2016AY2015",0]
[null,null,null,null,null,null,null,null,null,null,null,null,null,null,null,null,"PaidCY2016AY2016",0]
[null,null,null,null,null,null,null,null,null,null,null,null,null,null,null,null,{"$f":"\"PaidCY\"&J$10&\"AY\"&B29","v":"PaidCY2017AYPrior"},{"$f":"J29","v":0}]
[null,null,{"$f":"XBRLMap(C11,C$85&\".\"&$U$4&\".\"&$U$6&\".\"&$U11&\".\"&C$89&\".\"&$U$7,$B$95,$B$96,CONFIGURATION!$B$10,\"BMA\",CONFIGURATION!$B$1,\"bscr\",1000)","v":"Mapped"},{"$f":"XBRLMap(D11,D$85&\".\"&$U$4&\".\"&$U$6&\".\"&$U11&\".\"&D$89&\".\"&$U$7,$B$95,$B$96,CONFIGURATION!$B$10,\"BMA\",CONFIGURATION!$B$1,\"bscr\",1000)","v":"Mapped"},{"$f":"XBRLMap(E11,E$85&\".\"&$U$4&\".\"&$U$6&\".\"&$U11&\".\"&E$89&\".\"&$U$7,$B$95,$B$96,CONFIGURATION!$B$10,\"BMA\",CONFIGURATION!$B$1,\"bscr\",1000)","v":"Mapped"},{"$f":"XBRLMap(F11,F$85&\".\"&$U$4&\".\"&$U$6&\".\"&$U11&\".\"&F$89&\".\"&$U$7,$B$95,$B$96,CONFIGURATION!$B$10,\"BMA\",CONFIGURATION!$B$1,\"bscr\",1000)","v":"Mapped"},{"$f":"XBRLMap(G11,G$85&\".\"&$U$4&\".\"&$U$6&\".\"&$U11&\".\"&G$89&\".\"&$U$7,$B$95,$B$96,CONFIGURATION!$B$10,\"BMA\",CONFIGURATION!$B$1,\"bscr\",1000)","v":"Mapped"},{"$f":"XBRLMap(H11,H$85&\".\"&$U$4&\".\"&$U$6&\".\"&$U11&\".\"&H$89&\".\"&$U$7,$B$95,$B$96,CONFIGURATION!$B$10,\"BMA\",CONFIGURATION!$B$1,\"bscr\",1000)","v":"Mapped"},{"$f":"XBRLMap(I11,I$85&\".\"&$U$4&\".\"&$U$6&\".\"&$U11&\".\"&I$89&\".\"&$U$7,$B$95,$B$96,CONFIGURATION!$B$10,\"BMA\",CONFIGURATION!$B$1,\"bscr\",1000)","v":"Mapped"},{"$f":"XBRLMap(J11,J$85&\".\"&$U$4&\".\"&$U$6&\".\"&$U11&\".\"&J$89&\".\"&$U$7,$B$95,$B$96,CONFIGURATION!$B$10,\"BMA\",CONFIGURATION!$B$1,\"bscr\",1000)","v":"Mapped"},{"$f":"XBRLMap(K11,K$85&\".\"&$U$4&\".\"&$U$6&\".\"&$U11&\".\"&K$89&\".\"&$U$7,$B$95,$B$96,CONFIGURATION!$B$10,\"BMA\",CONFIGURATION!$B$1,\"bscr\",1000)","v":"Mapped"},{"$f":"XBRLMap(L11,L$85&\".\"&$U$4&\".\"&$U$6&\".\"&$U11&\".\"&L$89&\".\"&$U$7,$B$95,$B$96,CONFIGURATION!$B$10,\"BMA\",CONFIGURATION!$B$1,\"bscr\",1000)","v":"Mapped"},{"$f":"XBRLMap(M11,M$85&\".\"&$U$4&\".\"&$U$6&\".\"&$U11&\".\"&M$89&\".\"&$U$7,$B$95,$B$96,CONFIGURATION!$B$10,\"BMA\",CONFIGURATION!$B$1,\"bscr\",1000)","v":"Mapped"},null,null,null,"PaidCY2017AY2010",0]
[null,null,{"$f":"XBRLMap(C12,C$85&\".\"&$U$4&\".\"&$U$6&\".\"&$U12&\".\"&C$89&\".\"&$U$7,$B$95,$B$96,CONFIGURATION!$B$10,\"BMA\",CONFIGURATION!$B$1,\"bscr\",1000)","v":"Mapped"},{"$f":"XBRLMap(D12,D$85&\".\"&$U$4&\".\"&$U$6&\".\"&$U12&\".\"&D$89&\".\"&$U$7,$B$95,$B$96,CONFIGURATION!$B$10,\"BMA\",CONFIGURATION!$B$1,\"bscr\",1000)","v":"Mapped"},{"$f":"XBRLMap(E12,E$85&\".\"&$U$4&\".\"&$U$6&\".\"&$U12&\".\"&E$89&\".\"&$U$7,$B$95,$B$96,CONFIGURATION!$B$10,\"BMA\",CONFIGURATION!$B$1,\"bscr\",1000)","v":"Mapped"},{"$f":"XBRLMap(F12,F$85&\".\"&$U$4&\".\"&$U$6&\".\"&$U12&\".\"&F$89&\".\"&$U$7,$B$95,$B$96,CONFIGURATION!$B$10,\"BMA\",CONFIGURATION!$B$1,\"bscr\",1000)","v":"Mapped"},{"$f":"XBRLMap(G12,G$85&\".\"&$U$4&\".\"&$U$6&\".\"&$U12&\".\"&G$89&\".\"&$U$7,$B$95,$B$96,CONFIGURATION!$B$10,\"BMA\",CONFIGURATION!$B$1,\"bscr\",1000)","v":"Mapped"},{"$f":"XBRLMap(H12,H$85&\".\"&$U$4&\".\"&$U$6&\".\"&$U12&\".\"&H$89&\".\"&$U$7,$B$95,$B$96,CONFIGURATION!$B$10,\"BMA\",CONFIGURATION!$B$1,\"bscr\",1000)","v":"Mapped"},{"$f":"XBRLMap(I12,I$85&\".\"&$U$4&\".\"&$U$6&\".\"&$U12&\".\"&I$89&\".\"&$U$7,$B$95,$B$96,CONFIGURATION!$B$10,\"BMA\",CONFIGURATION!$B$1,\"bscr\",1000)","v":"Mapped"},{"$f":"XBRLMap(J12,J$85&\".\"&$U$4&\".\"&$U$6&\".\"&$U12&\".\"&J$89&\".\"&$U$7,$B$95,$B$96,CONFIGURATION!$B$10,\"BMA\",CONFIGURATION!$B$1,\"bscr\",1000)","v":"Mapped"},{"$f":"XBRLMap(K12,K$85&\".\"&$U$4&\".\"&$U$6&\".\"&$U12&\".\"&K$89&\".\"&$U$7,$B$95,$B$96,CONFIGURATION!$B$10,\"BMA\",CONFIGURATION!$B$1,\"bscr\",1000)","v":"Mapped"},{"$f":"XBRLMap(L12,L$85&\".\"&$U$4&\".\"&$U$6&\".\"&$U12&\".\"&L$89&\".\"&$U$7,$B$95,$B$96,CONFIGURATION!$B$10,\"BMA\",CONFIGURATION!$B$1,\"bscr\",1000)","v":"Mapped"},{"$f":"XBRLMap(M12,M$85&\".\"&$U$4&\".\"&$U$6&\".\"&$U12&\".\"&M$89&\".\"&$U$7,$B$95,$B$96,CONFIGURATION!$B$10,\"BMA\",CONFIGURATION!$B$1,\"bscr\",1000)","v":"Mapped"},null,null,null,"PaidCY2017AY2011",0]
[null,null,null,{"$f":"XBRLMap(D13,D$85&\".\"&$U$4&\".\"&$U$6&\".\"&$U13&\".\"&D$89&\".\"&$U$7,$B$95,$B$96,CONFIGURATION!$B$10,\"BMA\",CONFIGURATION!$B$1,\"bscr\",1000)","v":"Mapped"},{"$f":"XBRLMap(E13,E$85&\".\"&$U$4&\".\"&$U$6&\".\"&$U13&\".\"&E$89&\".\"&$U$7,$B$95,$B$96,CONFIGURATION!$B$10,\"BMA\",CONFIGURATION!$B$1,\"bscr\",1000)","v":"Mapped"},{"$f":"XBRLMap(F13,F$85&\".\"&$U$4&\".\"&$U$6&\".\"&$U13&\".\"&F$89&\".\"&$U$7,$B$95,$B$96,CONFIGURATION!$B$10,\"BMA\",CONFIGURATION!$B$1,\"bscr\",1000)","v":"Mapped"},{"$f":"XBRLMap(G13,G$85&\".\"&$U$4&\".\"&$U$6&\".\"&$U13&\".\"&G$89&\".\"&$U$7,$B$95,$B$96,CONFIGURATION!$B$10,\"BMA\",CONFIGURATION!$B$1,\"bscr\",1000)","v":"Mapped"},{"$f":"XBRLMap(H13,H$85&\".\"&$U$4&\".\"&$U$6&\".\"&$U13&\".\"&H$89&\".\"&$U$7,$B$95,$B$96,CONFIGURATION!$B$10,\"BMA\",CONFIGURATION!$B$1,\"bscr\",1000)","v":"Mapped"},{"$f":"XBRLMap(I13,I$85&\".\"&$U$4&\".\"&$U$6&\".\"&$U13&\".\"&I$89&\".\"&$U$7,$B$95,$B$96,CONFIGURATION!$B$10,\"BMA\",CONFIGURATION!$B$1,\"bscr\",1000)","v":"Mapped"},{"$f":"XBRLMap(J13,J$85&\".\"&$U$4&\".\"&$U$6&\".\"&$U13&\".\"&J$89&\".\"&$U$7,$B$95,$B$96,CONFIGURATION!$B$10,\"BMA\",CONFIGURATION!$B$1,\"bscr\",1000)","v":"Mapped"},{"$f":"XBRLMap(K13,K$85&\".\"&$U$4&\".\"&$U$6&\".\"&$U13&\".\"&K$89&\".\"&$U$7,$B$95,$B$96,CONFIGURATION!$B$10,\"BMA\",CONFIGURATION!$B$1,\"bscr\",1000)","v":"Mapped"},{"$f":"XBRLMap(L13,L$85&\".\"&$U$4&\".\"&$U$6&\".\"&$U13&\".\"&L$89&\".\"&$U$7,$B$95,$B$96,CONFIGURATION!$B$10,\"BMA\",CONFIGURATION!$B$1,\"bscr\",1000)","v":"Mapped"},{"$f":"XBRLMap(M13,M$85&\".\"&$U$4&\".\"&$U$6&\".\"&$U13&\".\"&M$89&\".\"&$U$7,$B$95,$B$96,CONFIGURATION!$B$10,\"BMA\",CONFIGURATION!$B$1,\"bscr\",1000)","v":"Mapped"},null,null,null,"PaidCY2017AY2012",0]
[null,null,null,null,{"$f":"XBRLMap(E14,E$85&\".\"&$U$4&\".\"&$U$6&\".\"&$U14&\".\"&E$89&\".\"&$U$7,$B$95,$B$96,CONFIGURATION!$B$10,\"BMA\",CONFIGURATION!$B$1,\"bscr\",1000)","v":"Mapped"},{"$f":"XBRLMap(F14,F$85&\".\"&$U$4&\".\"&$U$6&\".\"&$U14&\".\"&F$89&\".\"&$U$7,$B$95,$B$96,CONFIGURATION!$B$10,\"BMA\",CONFIGURATION!$B$1,\"bscr\",1000)","v":"Mapped"},{"$f":"XBRLMap(G14,G$85&\".\"&$U$4&\".\"&$U$6&\".\"&$U14&\".\"&G$89&\".\"&$U$7,$B$95,$B$96,CONFIGURATION!$B$10,\"BMA\",CONFIGURATION!$B$1,\"bscr\",1000)","v":"Mapped"},{"$f":"XBRLMap(H14,H$85&\".\"&$U$4&\".\"&$U$6&\".\"&$U14&\".\"&H$89&\".\"&$U$7,$B$95,$B$96,CONFIGURATION!$B$10,\"BMA\",CONFIGURATION!$B$1,\"bscr\",1000)","v":"Mapped"},{"$f":"XBRLMap(I14,I$85&\".\"&$U$4&\".\"&$U$6&\".\"&$U14&\".\"&I$89&\".\"&$U$7,$B$95,$B$96,CONFIGURATION!$B$10,\"BMA\",CONFIGURATION!$B$1,\"bscr\",1000)","v":"Mapped"},{"$f":"XBRLMap(J14,J$85&\".\"&$U$4&\".\"&$U$6&\".\"&$U14&\".\"&J$89&\".\"&$U$7,$B$95,$B$96,CONFIGURATION!$B$10,\"BMA\",CONFIGURATION!$B$1,\"bscr\",1000)","v":"Mapped"},{"$f":"XBRLMap(K14,K$85&\".\"&$U$4&\".\"&$U$6&\".\"&$U14&\".\"&K$89&\".\"&$U$7,$B$95,$B$96,CONFIGURATION!$B$10,\"BMA\",CONFIGURATION!$B$1,\"bscr\",1000)","v":"Mapped"},{"$f":"XBRLMap(L14,L$85&\".\"&$U$4&\".\"&$U$6&\".\"&$U14&\".\"&L$89&\".\"&$U$7,$B$95,$B$96,CONFIGURATION!$B$10,\"BMA\",CONFIGURATION!$B$1,\"bscr\",1000)","v":"Mapped"},{"$f":"XBRLMap(M14,M$85&\".\"&$U$4&\".\"&$U$6&\".\"&$U14&\".\"&M$89&\".\"&$U$7,$B$95,$B$96,CONFIGURATION!$B$10,\"BMA\",CONFIGURATION!$B$1,\"bscr\",1000)","v":"Mapped"},null,null,null,"PaidCY2017AY2013",0]
[null,null,null,null,null,{"$f":"XBRLMap(F15,F$85&\".\"&$U$4&\".\"&$U$6&\".\"&$U15&\".\"&F$89&\".\"&$U$7,$B$95,$B$96,CONFIGURATION!$B$10,\"BMA\",CONFIGURATION!$B$1,\"bscr\",1000)","v":"Mapped"},{"$f":"XBRLMap(G15,G$85&\".\"&$U$4&\".\"&$U$6&\".\"&$U15&\".\"&G$89&\".\"&$U$7,$B$95,$B$96,CONFIGURATION!$B$10,\"BMA\",CONFIGURATION!$B$1,\"bscr\",1000)","v":"Mapped"},{"$f":"XBRLMap(H15,H$85&\".\"&$U$4&\".\"&$U$6&\".\"&$U15&\".\"&H$89&\".\"&$U$7,$B$95,$B$96,CONFIGURATION!$B$10,\"BMA\",CONFIGURATION!$B$1,\"bscr\",1000)","v":"Mapped"},{"$f":"XBRLMap(I15,I$85&\".\"&$U$4&\".\"&$U$6&\".\"&$U15&\".\"&I$89&\".\"&$U$7,$B$95,$B$96,CONFIGURATION!$B$10,\"BMA\",CONFIGURATION!$B$1,\"bscr\",1000)","v":"Mapped"},{"$f":"XBRLMap(J15,J$85&\".\"&$U$4&\".\"&$U$6&\".\"&$U15&\".\"&J$89&\".\"&$U$7,$B$95,$B$96,CONFIGURATION!$B$10,\"BMA\",CONFIGURATION!$B$1,\"bscr\",1000)","v":"Mapped"},{"$f":"XBRLMap(K15,K$85&\".\"&$U$4&\".\"&$U$6&\".\"&$U15&\".\"&K$89&\".\"&$U$7,$B$95,$B$96,CONFIGURATION!$B$10,\"BMA\",CONFIGURATION!$B$1,\"bscr\",1000)","v":"Mapped"},{"$f":"XBRLMap(L15,L$85&\".\"&$U$4&\".\"&$U$6&\".\"&$U15&\".\"&L$89&\".\"&$U$7,$B$95,$B$96,CONFIGURATION!$B$10,\"BMA\",CONFIGURATION!$B$1,\"bscr\",1000)","v":"Mapped"},{"$f":"XBRLMap(M15,M$85&\".\"&$U$4&\".\"&$U$6&\".\"&$U15&\".\"&M$89&\".\"&$U$7,$B$95,$B$96,CONFIGURATION!$B$10,\"BMA\",CONFIGURATION!$B$1,\"bscr\",1000)","v":"Mapped"},null,null,null,"PaidCY2017AY2014",0]
[null,null,null,null,null,null,{"$f":"XBRLMap(G16,G$85&\".\"&$U$4&\".\"&$U$6&\".\"&$U16&\".\"&G$89&\".\"&$U$7,$B$95,$B$96,CONFIGURATION!$B$10,\"BMA\",CONFIGURATION!$B$1,\"bscr\",1000)","v":"Mapped"},{"$f":"XBRLMap(H16,H$85&\".\"&$U$4&\".\"&$U$6&\".\"&$U16&\".\"&H$89&\".\"&$U$7,$B$95,$B$96,CONFIGURATION!$B$10,\"BMA\",CONFIGURATION!$B$1,\"bscr\",1000)","v":"Mapped"},{"$f":"XBRLMap(I16,I$85&\".\"&$U$4&\".\"&$U$6&\".\"&$U16&\".\"&I$89&\".\"&$U$7,$B$95,$B$96,CONFIGURATION!$B$10,\"BMA\",CONFIGURATION!$B$1,\"bscr\",1000)","v":"Mapped"},{"$f":"XBRLMap(J16,J$85&\".\"&$U$4&\".\"&$U$6&\".\"&$U16&\".\"&J$89&\".\"&$U$7,$B$95,$B$96,CONFIGURATION!$B$10,\"BMA\",CONFIGURATION!$B$1,\"bscr\",1000)","v":"Mapped"},{"$f":"XBRLMap(K16,K$85&\".\"&$U$4&\".\"&$U$6&\".\"&$U16&\".\"&K$89&\".\"&$U$7,$B$95,$B$96,CONFIGURATION!$B$10,\"BMA\",CONFIGURATION!$B$1,\"bscr\",1000)","v":"Mapped"},{"$f":"XBRLMap(L16,L$85&\".\"&$U$4&\".\"&$U$6&\".\"&$U16&\".\"&L$89&\".\"&$U$7,$B$95,$B$96,CONFIGURATION!$B$10,\"BMA\",CONFIGURATION!$B$1,\"bscr\",1000)","v":"Mapped"},{"$f":"XBRLMap(M16,M$85&\".\"&$U$4&\".\"&$U$6&\".\"&$U16&\".\"&M$89&\".\"&$U$7,$B$95,$B$96,CONFIGURATION!$B$10,\"BMA\",CONFIGURATION!$B$1,\"bscr\",1000)","v":"Mapped"},null,null,null,"PaidCY2017AY2015",0]
[null,null,null,null,null,null,null,{"$f":"XBRLMap(H17,H$85&\".\"&$U$4&\".\"&$U$6&\".\"&$U17&\".\"&H$89&\".\"&$U$7,$B$95,$B$96,CONFIGURATION!$B$10,\"BMA\",CONFIGURATION!$B$1,\"bscr\",1000)","v":"Mapped"},{"$f":"XBRLMap(I17,I$85&\".\"&$U$4&\".\"&$U$6&\".\"&$U17&\".\"&I$89&\".\"&$U$7,$B$95,$B$96,CONFIGURATION!$B$10,\"BMA\",CONFIGURATION!$B$1,\"bscr\",1000)","v":"Mapped"},{"$f":"XBRLMap(J17,J$85&\".\"&$U$4&\".\"&$U$6&\".\"&$U17&\".\"&J$89&\".\"&$U$7,$B$95,$B$96,CONFIGURATION!$B$10,\"BMA\",CONFIGURATION!$B$1,\"bscr\",1000)","v":"Mapped"},{"$f":"XBRLMap(K17,K$85&\".\"&$U$4&\".\"&$U$6&\".\"&$U17&\".\"&K$89&\".\"&$U$7,$B$95,$B$96,CONFIGURATION!$B$10,\"BMA\",CONFIGURATION!$B$1,\"bscr\",1000)","v":"Mapped"},{"$f":"XBRLMap(L17,L$85&\".\"&$U$4&\".\"&$U$6&\".\"&$U17&\".\"&L$89&\".\"&$U$7,$B$95,$B$96,CONFIGURATION!$B$10,\"BMA\",CONFIGURATION!$B$1,\"bscr\",1000)","v":"Mapped"},{"$f":"XBRLMap(M17,M$85&\".\"&$U$4&\".\"&$U$6&\".\"&$U17&\".\"&M$89&\".\"&$U$7,$B$95,$B$96,CONFIGURATION!$B$10,\"BMA\",CONFIGURATION!$B$1,\"bscr\",1000)","v":"Mapped"},null,null,null,"PaidCY2017AY2016",0]
[null,null,null,null,null,null,null,null,{"$f":"XBRLMap(I18,I$85&\".\"&$U$4&\".\"&$U$6&\".\"&$U18&\".\"&I$89&\".\"&$U$7,$B$95,$B$96,CONFIGURATION!$B$10,\"BMA\",CONFIGURATION!$B$1,\"bscr\",1000)","v":"Mapped"},{"$f":"XBRLMap(J18,J$85&\".\"&$U$4&\".\"&$U$6&\".\"&$U18&\".\"&J$89&\".\"&$U$7,$B$95,$B$96,CONFIGURATION!$B$10,\"BMA\",CONFIGURATION!$B$1,\"bscr\",1000)","v":"Mapped"},{"$f":"XBRLMap(K18,K$85&\".\"&$U$4&\".\"&$U$6&\".\"&$U18&\".\"&K$89&\".\"&$U$7,$B$95,$B$96,CONFIGURATION!$B$10,\"BMA\",CONFIGURATION!$B$1,\"bscr\",1000)","v":"Mapped"},{"$f":"XBRLMap(L18,L$85&\".\"&$U$4&\".\"&$U$6&\".\"&$U18&\".\"&L$89&\".\"&$U$7,$B$95,$B$96,CONFIGURATION!$B$10,\"BMA\",CONFIGURATION!$B$1,\"bscr\",1000)","v":"Mapped"},{"$f":"XBRLMap(M18,M$85&\".\"&$U$4&\".\"&$U$6&\".\"&$U18&\".\"&M$89&\".\"&$U$7,$B$95,$B$96,CONFIGURATION!$B$10,\"BMA\",CONFIGURATION!$B$1,\"bscr\",1000)","v":"Mapped"},null,null,null,"PaidCY2017AY2017",0]
[null,null,null,null,null,null,null,null,null,{"$f":"XBRLMap(J19,J$85&\".\"&$U$4&\".\"&$U$6&\".\"&$U19&\".\"&J$89&\".\"&$U$7,$B$95,$B$96,CONFIGURATION!$B$10,\"BMA\",CONFIGURATION!$B$1,\"bscr\",1000)","v":"Mapped"},{"$f":"XBRLMap(K19,K$85&\".\"&$U$4&\".\"&$U$6&\".\"&$U19&\".\"&K$89&\".\"&$U$7,$B$95,$B$96,CONFIGURATION!$B$10,\"BMA\",CONFIGURATION!$B$1,\"bscr\",1000)","v":"Mapped"},{"$f":"XBRLMap(L19,L$85&\".\"&$U$4&\".\"&$U$6&\".\"&$U19&\".\"&L$89&\".\"&$U$7,$B$95,$B$96,CONFIGURATION!$B$10,\"BMA\",CONFIGURATION!$B$1,\"bscr\",1000)","v":"Mapped"},{"$f":"XBRLMap(M19,M$85&\".\"&$U$4&\".\"&$U$6&\".\"&$U19&\".\"&M$89&\".\"&$U$7,$B$95,$B$96,CONFIGURATION!$B$10,\"BMA\",CONFIGURATION!$B$1,\"bscr\",1000)","v":"Mapped"},null,null,null,{"$f":"\"PaidCY\"&K$10&\"AY\"&B29","v":"PaidCY2018AYPrior"},{"$f":"K29","v":0}]
[null,null,null,null,null,null,null,null,null,null,{"$f":"XBRLMap(K20,K$85&\".\"&$U$4&\".\"&$U$6&\".\"&$U20&\".\"&K$89&\".\"&$U$7,$B$95,$B$96,CONFIGURATION!$B$10,\"BMA\",CONFIGURATION!$B$1,\"bscr\",1000)","v":"Mapped"},{"$f":"XBRLMap(L20,L$85&\".\"&$U$4&\".\"&$U$6&\".\"&$U20&\".\"&L$89&\".\"&$U$7,$B$95,$B$96,CONFIGURATION!$B$10,\"BMA\",CONFIGURATION!$B$1,\"bscr\",1000)","v":"Mapped"},{"$f":"XBRLMap(M20,M$85&\".\"&$U$4&\".\"&$U$6&\".\"&$U20&\".\"&M$89&\".\"&$U$7,$B$95,$B$96,CONFIGURATION!$B$10,\"BMA\",CONFIGURATION!$B$1,\"bscr\",1000)","v":"Mapped"},null,null,null,"PaidCY2018AY2010",0]
[null,null,null,null,null,null,null,null,null,null,null,{"$f":"XBRLMap(L21,L$85&\".\"&$U$4&\".\"&$U$6&\".\"&$U21&\".\"&L$89&\".\"&$U$7,$B$95,$B$96,CONFIGURATION!$B$10,\"BMA\",CONFIGURATION!$B$1,\"bscr\",1000)","v":"Mapped"},{"$f":"XBRLMap(M21,M$85&\".\"&$U$4&\".\"&$U$6&\".\"&$U21&\".\"&M$89&\".\"&$U$7,$B$95,$B$96,CONFIGURATION!$B$10,\"BMA\",CONFIGURATION!$B$1,\"bscr\",1000)","v":"Mapped"},null,null,null,"PaidCY2018AY2011",0]
[null,null,null,null,null,null,null,null,null,null,null,null,null,null,null,null,"PaidCY2018AY2012",0]
[null,null,null,null,null,null,null,null,null,null,null,null,null,null,null,null,"PaidCY2018AY2013",0]
[null,null,null,null,null,null,null,null,null,null,null,null,null,null,null,null,"PaidCY2018AY2014",0]
[null,null,null,null,null,null,null,null,null,null,null,null,null,null,null,null,"PaidCY2018AY2015",0]
[null,null,null,null,null,null,null,null,null,null,null,null,null,null,null,null,"PaidCY2018AY2016",0]
[null,null,null,null,null,null,null,null,null,null,null,null,null,null,null,null,"PaidCY2018AY2017",0]
[null,null,null,null,null,null,null,null,null,null,null,null,null,null,null,null,"PaidCY2018AY2018",0]
[null,null,null,null,null,null,null,null,null,null,null,null,null,null,null,null,{"$f":"\"PaidCY\"&L$10&\"AY\"&B29","v":"PaidCY2019AYPrior"},{"$f":"L29","v":0}]
[null,null,{"$f":"XBRLMap(C29,C$86&\".\"&$U$4&\".\"&$U29&\".\"&C$89&\".\"&$U$7,$B$95,$B$96,CONFIGURATION!$B$10,\"BMA\",CONFIGURATION!$B$1,\"bscr\",1000)","v":"Mapped"},{"$f":"XBRLMap(D29,D$86&\".\"&$U$4&\".\"&$U29&\".\"&D$89&\".\"&$U$7,$B$95,$B$96,CONFIGURATION!$B$10,\"BMA\",CONFIGURATION!$B$1,\"bscr\",1000)","v":"Mapped"},{"$f":"XBRLMap(E29,E$86&\".\"&$U$4&\".\"&$U29&\".\"&E$89&\".\"&$U$7,$B$95,$B$96,CONFIGURATION!$B$10,\"BMA\",CONFIGURATION!$B$1,\"bscr\",1000)","v":"Mapped"},{"$f":"XBRLMap(F29,F$86&\".\"&$U$4&\".\"&$U29&\".\"&F$89&\".\"&$U$7,$B$95,$B$96,CONFIGURATION!$B$10,\"BMA\",CONFIGURATION!$B$1,\"bscr\",1000)","v":"Mapped"},{"$f":"XBRLMap(G29,G$86&\".\"&$U$4&\".\"&$U29&\".\"&G$89&\".\"&$U$7,$B$95,$B$96,CONFIGURATION!$B$10,\"BMA\",CONFIGURATION!$B$1,\"bscr\",1000)","v":"Mapped"},{"$f":"XBRLMap(H29,H$86&\".\"&$U$4&\".\"&$U29&\".\"&H$89&\".\"&$U$7,$B$95,$B$96,CONFIGURATION!$B$10,\"BMA\",CONFIGURATION!$B$1,\"bscr\",1000)","v":"Mapped"},{"$f":"XBRLMap(I29,I$86&\".\"&$U$4&\".\"&$U29&\".\"&I$89&\".\"&$U$7,$B$95,$B$96,CONFIGURATION!$B$10,\"BMA\",CONFIGURATION!$B$1,\"bscr\",1000)","v":"Mapped"},{"$f":"XBRLMap(J29,J$86&\".\"&$U$4&\".\"&$U29&\".\"&J$89&\".\"&$U$7,$B$95,$B$96,CONFIGURATION!$B$10,\"BMA\",CONFIGURATION!$B$1,\"bscr\",1000)","v":"Mapped"},{"$f":"XBRLMap(K29,K$86&\".\"&$U$4&\".\"&$U29&\".\"&K$89&\".\"&$U$7,$B$95,$B$96,CONFIGURATION!$B$10,\"BMA\",CONFIGURATION!$B$1,\"bscr\",1000)","v":"Mapped"},{"$f":"XBRLMap(L29,L$86&\".\"&$U$4&\".\"&$U29&\".\"&L$89&\".\"&$U$7,$B$95,$B$96,CONFIGURATION!$B$10,\"BMA\",CONFIGURATION!$B$1,\"bscr\",1000)","v":"Mapped"},{"$f":"XBRLMap(M29,M$86&\".\"&$U$4&\".\"&$U29&\".\"&M$89&\".\"&$U$7,$B$95,$B$96,CONFIGURATION!$B$10,\"BMA\",CONFIGURATION!$B$1,\"bscr\",1000)","v":"Mapped"},null,null,null,"PaidCY2019AY2010",0]
[null,null,{"$f":"XBRLMap(C30,C$86&\".\"&$U$4&\".\"&$U30&\".\"&C$89&\".\"&$U$7,$B$95,$B$96,CONFIGURATION!$B$10,\"BMA\",CONFIGURATION!$B$1,\"bscr\",1000)","v":"Mapped"},{"$f":"XBRLMap(D30,D$86&\".\"&$U$4&\".\"&$U30&\".\"&D$89&\".\"&$U$7,$B$95,$B$96,CONFIGURATION!$B$10,\"BMA\",CONFIGURATION!$B$1,\"bscr\",1000)","v":"Mapped"},{"$f":"XBRLMap(E30,E$86&\".\"&$U$4&\".\"&$U30&\".\"&E$89&\".\"&$U$7,$B$95,$B$96,CONFIGURATION!$B$10,\"BMA\",CONFIGURATION!$B$1,\"bscr\",1000)","v":"Mapped"},{"$f":"XBRLMap(F30,F$86&\".\"&$U$4&\".\"&$U30&\".\"&F$89&\".\"&$U$7,$B$95,$B$96,CONFIGURATION!$B$10,\"BMA\",CONFIGURATION!$B$1,\"bscr\",1000)","v":"Mapped"},{"$f":"XBRLMap(G30,G$86&\".\"&$U$4&\".\"&$U30&\".\"&G$89&\".\"&$U$7,$B$95,$B$96,CONFIGURATION!$B$10,\"BMA\",CONFIGURATION!$B$1,\"bscr\",1000)","v":"Mapped"},{"$f":"XBRLMap(H30,H$86&\".\"&$U$4&\".\"&$U30&\".\"&H$89&\".\"&$U$7,$B$95,$B$96,CONFIGURATION!$B$10,\"BMA\",CONFIGURATION!$B$1,\"bscr\",1000)","v":"Mapped"},{"$f":"XBRLMap(I30,I$86&\".\"&$U$4&\".\"&$U30&\".\"&I$89&\".\"&$U$7,$B$95,$B$96,CONFIGURATION!$B$10,\"BMA\",CONFIGURATION!$B$1,\"bscr\",1000)","v":"Mapped"},{"$f":"XBRLMap(J30,J$86&\".\"&$U$4&\".\"&$U30&\".\"&J$89&\".\"&$U$7,$B$95,$B$96,CONFIGURATION!$B$10,\"BMA\",CONFIGURATION!$B$1,\"bscr\",1000)","v":"Mapped"},{"$f":"XBRLMap(K30,K$86&\".\"&$U$4&\".\"&$U30&\".\"&K$89&\".\"&$U$7,$B$95,$B$96,CONFIGURATION!$B$10,\"BMA\",CONFIGURATION!$B$1,\"bscr\",1000)","v":"Mapped"},{"$f":"XBRLMap(L30,L$86&\".\"&$U$4&\".\"&$U30&\".\"&L$89&\".\"&$U$7,$B$95,$B$96,CONFIGURATION!$B$10,\"BMA\",CONFIGURATION!$B$1,\"bscr\",1000)","v":"Mapped"},{"$f":"XBRLMap(M30,M$86&\".\"&$U$4&\".\"&$U30&\".\"&M$89&\".\"&$U$7,$B$95,$B$96,CONFIGURATION!$B$10,\"BMA\",CONFIGURATION!$B$1,\"bscr\",1000)","v":"Mapped"},null,null,null,"PaidCY2019AY2011",0]
[null,null,null,{"$f":"XBRLMap(D31,D$86&\".\"&$U$4&\".\"&$U31&\".\"&D$89&\".\"&$U$7,$B$95,$B$96,CONFIGURATION!$B$10,\"BMA\",CONFIGURATION!$B$1,\"bscr\",1000)","v":"Mapped"},{"$f":"XBRLMap(E31,E$86&\".\"&$U$4&\".\"&$U31&\".\"&E$89&\".\"&$U$7,$B$95,$B$96,CONFIGURATION!$B$10,\"BMA\",CONFIGURATION!$B$1,\"bscr\",1000)","v":"Mapped"},{"$f":"XBRLMap(F31,F$86&\".\"&$U$4&\".\"&$U31&\".\"&F$89&\".\"&$U$7,$B$95,$B$96,CONFIGURATION!$B$10,\"BMA\",CONFIGURATION!$B$1,\"bscr\",1000)","v":"Mapped"},{"$f":"XBRLMap(G31,G$86&\".\"&$U$4&\".\"&$U31&\".\"&G$89&\".\"&$U$7,$B$95,$B$96,CONFIGURATION!$B$10,\"BMA\",CONFIGURATION!$B$1,\"bscr\",1000)","v":"Mapped"},{"$f":"XBRLMap(H31,H$86&\".\"&$U$4&\".\"&$U31&\".\"&H$89&\".\"&$U$7,$B$95,$B$96,CONFIGURATION!$B$10,\"BMA\",CONFIGURATION!$B$1,\"bscr\",1000)","v":"Mapped"},{"$f":"XBRLMap(I31,I$86&\".\"&$U$4&\".\"&$U31&\".\"&I$89&\".\"&$U$7,$B$95,$B$96,CONFIGURATION!$B$10,\"BMA\",CONFIGURATION!$B$1,\"bscr\",1000)","v":"Mapped"},{"$f":"XBRLMap(J31,J$86&\".\"&$U$4&\".\"&$U31&\".\"&J$89&\".\"&$U$7,$B$95,$B$96,CONFIGURATION!$B$10,\"BMA\",CONFIGURATION!$B$1,\"bscr\",1000)","v":"Mapped"},{"$f":"XBRLMap(K31,K$86&\".\"&$U$4&\".\"&$U31&\".\"&K$89&\".\"&$U$7,$B$95,$B$96,CONFIGURATION!$B$10,\"BMA\",CONFIGURATION!$B$1,\"bscr\",1000)","v":"Mapped"},{"$f":"XBRLMap(L31,L$86&\".\"&$U$4&\".\"&$U31&\".\"&L$89&\".\"&$U$7,$B$95,$B$96,CONFIGURATION!$B$10,\"BMA\",CONFIGURATION!$B$1,\"bscr\",1000)","v":"Mapped"},{"$f":"XBRLMap(M31,M$86&\".\"&$U$4&\".\"&$U31&\".\"&M$89&\".\"&$U$7,$B$95,$B$96,CONFIGURATION!$B$10,\"BMA\",CONFIGURATION!$B$1,\"bscr\",1000)","v":"Mapped"},null,null,null,"PaidCY2019AY2012",0]
[null,null,null,null,{"$f":"XBRLMap(E32,E$86&\".\"&$U$4&\".\"&$U32&\".\"&E$89&\".\"&$U$7,$B$95,$B$96,CONFIGURATION!$B$10,\"BMA\",CONFIGURATION!$B$1,\"bscr\",1000)","v":"Mapped"},{"$f":"XBRLMap(F32,F$86&\".\"&$U$4&\".\"&$U32&\".\"&F$89&\".\"&$U$7,$B$95,$B$96,CONFIGURATION!$B$10,\"BMA\",CONFIGURATION!$B$1,\"bscr\",1000)","v":"Mapped"},{"$f":"XBRLMap(G32,G$86&\".\"&$U$4&\".\"&$U32&\".\"&G$89&\".\"&$U$7,$B$95,$B$96,CONFIGURATION!$B$10,\"BMA\",CONFIGURATION!$B$1,\"bscr\",1000)","v":"Mapped"},{"$f":"XBRLMap(H32,H$86&\".\"&$U$4&\".\"&$U32&\".\"&H$89&\".\"&$U$7,$B$95,$B$96,CONFIGURATION!$B$10,\"BMA\",CONFIGURATION!$B$1,\"bscr\",1000)","v":"Mapped"},{"$f":"XBRLMap(I32,I$86&\".\"&$U$4&\".\"&$U32&\".\"&I$89&\".\"&$U$7,$B$95,$B$96,CONFIGURATION!$B$10,\"BMA\",CONFIGURATION!$B$1,\"bscr\",1000)","v":"Mapped"},{"$f":"XBRLMap(J32,J$86&\".\"&$U$4&\".\"&$U32&\".\"&J$89&\".\"&$U$7,$B$95,$B$96,CONFIGURATION!$B$10,\"BMA\",CONFIGURATION!$B$1,\"bscr\",1000)","v":"Mapped"},{"$f":"XBRLMap(K32,K$86&\".\"&$U$4&\".\"&$U32&\".\"&K$89&\".\"&$U$7,$B$95,$B$96,CONFIGURATION!$B$10,\"BMA\",CONFIGURATION!$B$1,\"bscr\",1000)","v":"Mapped"},{"$f":"XBRLMap(L32,L$86&\".\"&$U$4&\".\"&$U32&\".\"&L$89&\".\"&$U$7,$B$95,$B$96,CONFIGURATION!$B$10,\"BMA\",CONFIGURATION!$B$1,\"bscr\",1000)","v":"Mapped"},{"$f":"XBRLMap(M32,M$86&\".\"&$U$4&\".\"&$U32&\".\"&M$89&\".\"&$U$7,$B$95,$B$96,CONFIGURATION!$B$10,\"BMA\",CONFIGURATION!$B$1,\"bscr\",1000)","v":"Mapped"},null,null,null,"PaidCY2019AY2013",0]
[null,null,null,null,null,{"$f":"XBRLMap(F33,F$86&\".\"&$U$4&\".\"&$U33&\".\"&F$89&\".\"&$U$7,$B$95,$B$96,CONFIGURATION!$B$10,\"BMA\",CONFIGURATION!$B$1,\"bscr\",1000)","v":"Mapped"},{"$f":"XBRLMap(G33,G$86&\".\"&$U$4&\".\"&$U33&\".\"&G$89&\".\"&$U$7,$B$95,$B$96,CONFIGURATION!$B$10,\"BMA\",CONFIGURATION!$B$1,\"bscr\",1000)","v":"Mapped"},{"$f":"XBRLMap(H33,H$86&\".\"&$U$4&\".\"&$U33&\".\"&H$89&\".\"&$U$7,$B$95,$B$96,CONFIGURATION!$B$10,\"BMA\",CONFIGURATION!$B$1,\"bscr\",1000)","v":"Mapped"},{"$f":"XBRLMap(I33,I$86&\".\"&$U$4&\".\"&$U33&\".\"&I$89&\".\"&$U$7,$B$95,$B$96,CONFIGURATION!$B$10,\"BMA\",CONFIGURATION!$B$1,\"bscr\",1000)","v":"Mapped"},{"$f":"XBRLMap(J33,J$86&\".\"&$U$4&\".\"&$U33&\".\"&J$89&\".\"&$U$7,$B$95,$B$96,CONFIGURATION!$B$10,\"BMA\",CONFIGURATION!$B$1,\"bscr\",1000)","v":"Mapped"},{"$f":"XBRLMap(K33,K$86&\".\"&$U$4&\".\"&$U33&\".\"&K$89&\".\"&$U$7,$B$95,$B$96,CONFIGURATION!$B$10,\"BMA\",CONFIGURATION!$B$1,\"bscr\",1000)","v":"Mapped"},{"$f":"XBRLMap(L33,L$86&\".\"&$U$4&\".\"&$U33&\".\"&L$89&\".\"&$U$7,$B$95,$B$96,CONFIGURATION!$B$10,\"BMA\",CONFIGURATION!$B$1,\"bscr\",1000)","v":"Mapped"},{"$f":"XBRLMap(M33,M$86&\".\"&$U$4&\".\"&$U33&\".\"&M$89&\".\"&$U$7,$B$95,$B$96,CONFIGURATION!$B$10,\"BMA\",CONFIGURATION!$B$1,\"bscr\",1000)","v":"Mapped"},null,null,null,"PaidCY2019AY2014",0]
[null,null,null,null,null,null,{"$f":"XBRLMap(G34,G$86&\".\"&$U$4&\".\"&$U34&\".\"&G$89&\".\"&$U$7,$B$95,$B$96,CONFIGURATION!$B$10,\"BMA\",CONFIGURATION!$B$1,\"bscr\",1000)","v":"Mapped"},{"$f":"XBRLMap(H34,H$86&\".\"&$U$4&\".\"&$U34&\".\"&H$89&\".\"&$U$7,$B$95,$B$96,CONFIGURATION!$B$10,\"BMA\",CONFIGURATION!$B$1,\"bscr\",1000)","v":"Mapped"},{"$f":"XBRLMap(I34,I$86&\".\"&$U$4&\".\"&$U34&\".\"&I$89&\".\"&$U$7,$B$95,$B$96,CONFIGURATION!$B$10,\"BMA\",CONFIGURATION!$B$1,\"bscr\",1000)","v":"Mapped"},{"$f":"XBRLMap(J34,J$86&\".\"&$U$4&\".\"&$U34&\".\"&J$89&\".\"&$U$7,$B$95,$B$96,CONFIGURATION!$B$10,\"BMA\",CONFIGURATION!$B$1,\"bscr\",1000)","v":"Mapped"},{"$f":"XBRLMap(K34,K$86&\".\"&$U$4&\".\"&$U34&\".\"&K$89&\".\"&$U$7,$B$95,$B$96,CONFIGURATION!$B$10,\"BMA\",CONFIGURATION!$B$1,\"bscr\",1000)","v":"Mapped"},{"$f":"XBRLMap(L34,L$86&\".\"&$U$4&\".\"&$U34&\".\"&L$89&\".\"&$U$7,$B$95,$B$96,CONFIGURATION!$B$10,\"BMA\",CONFIGURATION!$B$1,\"bscr\",1000)","v":"Mapped"},{"$f":"XBRLMap(M34,M$86&\".\"&$U$4&\".\"&$U34&\".\"&M$89&\".\"&$U$7,$B$95,$B$96,CONFIGURATION!$B$10,\"BMA\",CONFIGURATION!$B$1,\"bscr\",1000)","v":"Mapped"},null,null,null,"PaidCY2019AY2015",0]
[null,null,null,null,null,null,null,{"$f":"XBRLMap(H35,H$86&\".\"&$U$4&\".\"&$U35&\".\"&H$89&\".\"&$U$7,$B$95,$B$96,CONFIGURATION!$B$10,\"BMA\",CONFIGURATION!$B$1,\"bscr\",1000)","v":"Mapped"},{"$f":"XBRLMap(I35,I$86&\".\"&$U$4&\".\"&$U35&\".\"&I$89&\".\"&$U$7,$B$95,$B$96,CONFIGURATION!$B$10,\"BMA\",CONFIGURATION!$B$1,\"bscr\",1000)","v":"Mapped"},{"$f":"XBRLMap(J35,J$86&\".\"&$U$4&\".\"&$U35&\".\"&J$89&\".\"&$U$7,$B$95,$B$96,CONFIGURATION!$B$10,\"BMA\",CONFIGURATION!$B$1,\"bscr\",1000)","v":"Mapped"},{"$f":"XBRLMap(K35,K$86&\".\"&$U$4&\".\"&$U35&\".\"&K$89&\".\"&$U$7,$B$95,$B$96,CONFIGURATION!$B$10,\"BMA\",CONFIGURATION!$B$1,\"bscr\",1000)","v":"Mapped"},{"$f":"XBRLMap(L35,L$86&\".\"&$U$4&\".\"&$U35&\".\"&L$89&\".\"&$U$7,$B$95,$B$96,CONFIGURATION!$B$10,\"BMA\",CONFIGURATION!$B$1,\"bscr\",1000)","v":"Mapped"},{"$f":"XBRLMap(M35,M$86&\".\"&$U$4&\".\"&$U35&\".\"&M$89&\".\"&$U$7,$B$95,$B$96,CONFIGURATION!$B$10,\"BMA\",CONFIGURATION!$B$1,\"bscr\",1000)","v":"Mapped"},null,null,null,"PaidCY2019AY2016",0]
[null,null,null,null,null,null,null,null,{"$f":"XBRLMap(I36,I$86&\".\"&$U$4&\".\"&$U36&\".\"&I$89&\".\"&$U$7,$B$95,$B$96,CONFIGURATION!$B$10,\"BMA\",CONFIGURATION!$B$1,\"bscr\",1000)","v":"Mapped"},{"$f":"XBRLMap(J36,J$86&\".\"&$U$4&\".\"&$U36&\".\"&J$89&\".\"&$U$7,$B$95,$B$96,CONFIGURATION!$B$10,\"BMA\",CONFIGURATION!$B$1,\"bscr\",1000)","v":"Mapped"},{"$f":"XBRLMap(K36,K$86&\".\"&$U$4&\".\"&$U36&\".\"&K$89&\".\"&$U$7,$B$95,$B$96,CONFIGURATION!$B$10,\"BMA\",CONFIGURATION!$B$1,\"bscr\",1000)","v":"Mapped"},{"$f":"XBRLMap(L36,L$86&\".\"&$U$4&\".\"&$U36&\".\"&L$89&\".\"&$U$7,$B$95,$B$96,CONFIGURATION!$B$10,\"BMA\",CONFIGURATION!$B$1,\"bscr\",1000)","v":"Mapped"},{"$f":"XBRLMap(M36,M$86&\".\"&$U$4&\".\"&$U36&\".\"&M$89&\".\"&$U$7,$B$95,$B$96,CONFIGURATION!$B$10,\"BMA\",CONFIGURATION!$B$1,\"bscr\",1000)","v":"Mapped"},null,null,null,"PaidCY2019AY2017",0]
[null,null,null,null,null,null,null,null,null,{"$f":"XBRLMap(J37,J$86&\".\"&$U$4&\".\"&$U37&\".\"&J$89&\".\"&$U$7,$B$95,$B$96,CONFIGURATION!$B$10,\"BMA\",CONFIGURATION!$B$1,\"bscr\",1000)","v":"Mapped"},{"$f":"XBRLMap(K37,K$86&\".\"&$U$4&\".\"&$U37&\".\"&K$89&\".\"&$U$7,$B$95,$B$96,CONFIGURATION!$B$10,\"BMA\",CONFIGURATION!$B$1,\"bscr\",1000)","v":"Mapped"},{"$f":"XBRLMap(L37,L$86&\".\"&$U$4&\".\"&$U37&\".\"&L$89&\".\"&$U$7,$B$95,$B$96,CONFIGURATION!$B$10,\"BMA\",CONFIGURATION!$B$1,\"bscr\",1000)","v":"Mapped"},{"$f":"XBRLMap(M37,M$86&\".\"&$U$4&\".\"&$U37&\".\"&M$89&\".\"&$U$7,$B$95,$B$96,CONFIGURATION!$B$10,\"BMA\",CONFIGURATION!$B$1,\"bscr\",1000)","v":"Mapped"},null,null,null,"PaidCY2019AY2018",0]
[null,null,null,null,null,null,null,null,null,null,{"$f":"XBRLMap(K38,K$86&\".\"&$U$4&\".\"&$U38&\".\"&K$89&\".\"&$U$7,$B$95,$B$96,CONFIGURATION!$B$10,\"BMA\",CONFIGURATION!$B$1,\"bscr\",1000)","v":"Mapped"},{"$f":"XBRLMap(L38,L$86&\".\"&$U$4&\".\"&$U38&\".\"&L$89&\".\"&$U$7,$B$95,$B$96,CONFIGURATION!$B$10,\"BMA\",CONFIGURATION!$B$1,\"bscr\",1000)","v":"Mapped"},{"$f":"XBRLMap(M38,M$86&\".\"&$U$4&\".\"&$U38&\".\"&M$89&\".\"&$U$7,$B$95,$B$96,CONFIGURATION!$B$10,\"BMA\",CONFIGURATION!$B$1,\"bscr\",1000)","v":"Mapped"},null,null,null,"PaidCY2019AY2019",0]
[null,null,null,null,null,null,null,null,null,null,null,{"$f":"XBRLMap(L39,L$86&\".\"&$U$4&\".\"&$U39&\".\"&L$89&\".\"&$U$7,$B$95,$B$96,CONFIGURATION!$B$10,\"BMA\",CONFIGURATION!$B$1,\"bscr\",1000)","v":"Mapped"},{"$f":"XBRLMap(M39,M$86&\".\"&$U$4&\".\"&$U39&\".\"&M$89&\".\"&$U$7,$B$95,$B$96,CONFIGURATION!$B$10,\"BMA\",CONFIGURATION!$B$1,\"bscr\",1000)","v":"Mapped"},null,null,null,{"$f":"\"IBNRCY\"&C$10&\"AY\"&B47","v":"IBNRCY2010AYPrior"},{"$f":"C47","v":0}]
[null,null,null,null,null,null,null,null,null,null,null,null,null,null,null,null,{"$f":"\"IBNRCY\"&C$10&\"AY\"&B48","v":"IBNRCY2010AY2010"},{"$f":"C48","v":0}]
[null,null,null,null,null,null,null,null,null,null,null,null,null,null,null,null,{"$f":"\"IBNRCY\"&D$10&\"AY\"&B47","v":"IBNRCY2011AYPrior"},{"$f":"D47","v":0}]
[null,null,null,null,null,null,null,null,null,null,null,null,null,null,null,null,{"$f":"\"IBNRCY\"&D$10&\"AY\"&B48","v":"IBNRCY2011AY2010"},{"$f":"D48","v":0}]
[null,null,null,null,null,null,null,null,null,null,null,null,null,null,null,null,{"$f":"\"IBNRCY\"&D$10&\"AY\"&B49","v":"IBNRCY2011AY2011"},{"$f":"D49","v":0}]
[null,null,null,null,null,null,null,null,null,null,null,null,null,null,null,null,{"$f":"\"IBNRCY\"&E$10&\"AY\"&B47","v":"IBNRCY2012AYPrior"},{"$f":"E47","v":0}]
[null,null,null,null,null,null,null,null,null,null,null,null,null,null,null,null,{"$f":"\"IBNRCY\"&E$10&\"AY\"&B48","v":"IBNRCY2012AY2010"},{"$f":"E48","v":0}]
[null,null,null,null,null,null,null,null,null,null,null,null,null,null,null,null,{"$f":"\"IBNRCY\"&E$10&\"AY\"&B49","v":"IBNRCY2012AY2011"},{"$f":"E49","v":0}]
[null,null,null,null,null,null,null,null,null,null,null,null,null,null,null,null,{"$f":"\"IBNRCY\"&E$10&\"AY\"&B50","v":"IBNRCY2012AY2012"},{"$f":"E50","v":0}]
[null,null,{"$f":"XBRLMap(C47,C$87&\".\"&$U$4&\".\"&$U47&\".\"&C$89&\".\"&$U$7,$B$95,$B$96,CONFIGURATION!$B$10,\"BMA\",CONFIGURATION!$B$1,\"bscr\",1000)","v":"Mapped"},{"$f":"XBRLMap(D47,D$87&\".\"&$U$4&\".\"&$U47&\".\"&D$89&\".\"&$U$7,$B$95,$B$96,CONFIGURATION!$B$10,\"BMA\",CONFIGURATION!$B$1,\"bscr\",1000)","v":"Mapped"},{"$f":"XBRLMap(E47,E$87&\".\"&$U$4&\".\"&$U47&\".\"&E$89&\".\"&$U$7,$B$95,$B$96,CONFIGURATION!$B$10,\"BMA\",CONFIGURATION!$B$1,\"bscr\",1000)","v":"Mapped"},{"$f":"XBRLMap(F47,F$87&\".\"&$U$4&\".\"&$U47&\".\"&F$89&\".\"&$U$7,$B$95,$B$96,CONFIGURATION!$B$10,\"BMA\",CONFIGURATION!$B$1,\"bscr\",1000)","v":"Mapped"},{"$f":"XBRLMap(G47,G$87&\".\"&$U$4&\".\"&$U47&\".\"&G$89&\".\"&$U$7,$B$95,$B$96,CONFIGURATION!$B$10,\"BMA\",CONFIGURATION!$B$1,\"bscr\",1000)","v":"Mapped"},{"$f":"XBRLMap(H47,H$87&\".\"&$U$4&\".\"&$U47&\".\"&H$89&\".\"&$U$7,$B$95,$B$96,CONFIGURATION!$B$10,\"BMA\",CONFIGURATION!$B$1,\"bscr\",1000)","v":"Mapped"},{"$f":"XBRLMap(I47,I$87&\".\"&$U$4&\".\"&$U47&\".\"&I$89&\".\"&$U$7,$B$95,$B$96,CONFIGURATION!$B$10,\"BMA\",CONFIGURATION!$B$1,\"bscr\",1000)","v":"Mapped"},{"$f":"XBRLMap(J47,J$87&\".\"&$U$4&\".\"&$U47&\".\"&J$89&\".\"&$U$7,$B$95,$B$96,CONFIGURATION!$B$10,\"BMA\",CONFIGURATION!$B$1,\"bscr\",1000)","v":"Mapped"},{"$f":"XBRLMap(K47,K$87&\".\"&$U$4&\".\"&$U47&\".\"&K$89&\".\"&$U$7,$B$95,$B$96,CONFIGURATION!$B$10,\"BMA\",CONFIGURATION!$B$1,\"bscr\",1000)","v":"Mapped"},{"$f":"XBRLMap(L47,L$87&\".\"&$U$4&\".\"&$U47&\".\"&L$89&\".\"&$U$7,$B$95,$B$96,CONFIGURATION!$B$10,\"BMA\",CONFIGURATION!$B$1,\"bscr\",1000)","v":"Mapped"},{"$f":"XBRLMap(M47,M$87&\".\"&$U$4&\".\"&$U47&\".\"&M$89&\".\"&$U$7,$B$95,$B$96,CONFIGURATION!$B$10,\"BMA\",CONFIGURATION!$B$1,\"bscr\",1000)","v":"Mapped"},null,null,null,{"$f":"\"IBNRCY\"&F$10&\"AY\"&B47","v":"IBNRCY2013AYPrior"},{"$f":"F47","v":0}]
[null,null,{"$f":"XBRLMap(C48,C$87&\".\"&$U$4&\".\"&$U48&\".\"&C$89&\".\"&$U$7,$B$95,$B$96,CONFIGURATION!$B$10,\"BMA\",CONFIGURATION!$B$1,\"bscr\",1000)","v":"Mapped"},{"$f":"XBRLMap(D48,D$87&\".\"&$U$4&\".\"&$U48&\".\"&D$89&\".\"&$U$7,$B$95,$B$96,CONFIGURATION!$B$10,\"BMA\",CONFIGURATION!$B$1,\"bscr\",1000)","v":"Mapped"},{"$f":"XBRLMap(E48,E$87&\".\"&$U$4&\".\"&$U48&\".\"&E$89&\".\"&$U$7,$B$95,$B$96,CONFIGURATION!$B$10,\"BMA\",CONFIGURATION!$B$1,\"bscr\",1000)","v":"Mapped"},{"$f":"XBRLMap(F48,F$87&\".\"&$U$4&\".\"&$U48&\".\"&F$89&\".\"&$U$7,$B$95,$B$96,CONFIGURATION!$B$10,\"BMA\",CONFIGURATION!$B$1,\"bscr\",1000)","v":"Mapped"},{"$f":"XBRLMap(G48,G$87&\".\"&$U$4&\".\"&$U48&\".\"&G$89&\".\"&$U$7,$B$95,$B$96,CONFIGURATION!$B$10,\"BMA\",CONFIGURATION!$B$1,\"bscr\",1000)","v":"Mapped"},{"$f":"XBRLMap(H48,H$87&\".\"&$U$4&\".\"&$U48&\".\"&H$89&\".\"&$U$7,$B$95,$B$96,CONFIGURATION!$B$10,\"BMA\",CONFIGURATION!$B$1,\"bscr\",1000)","v":"Mapped"},{"$f":"XBRLMap(I48,I$87&\".\"&$U$4&\".\"&$U48&\".\"&I$89&\".\"&$U$7,$B$95,$B$96,CONFIGURATION!$B$10,\"BMA\",CONFIGURATION!$B$1,\"bscr\",1000)","v":"Mapped"},{"$f":"XBRLMap(J48,J$87&\".\"&$U$4&\".\"&$U48&\".\"&J$89&\".\"&$U$7,$B$95,$B$96,CONFIGURATION!$B$10,\"BMA\",CONFIGURATION!$B$1,\"bscr\",1000)","v":"Mapped"},{"$f":"XBRLMap(K48,K$87&\".\"&$U$4&\".\"&$U48&\".\"&K$89&\".\"&$U$7,$B$95,$B$96,CONFIGURATION!$B$10,\"BMA\",CONFIGURATION!$B$1,\"bscr\",1000)","v":"Mapped"},{"$f":"XBRLMap(L48,L$87&\".\"&$U$4&\".\"&$U48&\".\"&L$89&\".\"&$U$7,$B$95,$B$96,CONFIGURATION!$B$10,\"BMA\",CONFIGURATION!$B$1,\"bscr\",1000)","v":"Mapped"},{"$f":"XBRLMap(M48,M$87&\".\"&$U$4&\".\"&$U48&\".\"&M$89&\".\"&$U$7,$B$95,$B$96,CONFIGURATION!$B$10,\"BMA\",CONFIGURATION!$B$1,\"bscr\",1000)","v":"Mapped"},null,null,null,{"$f":"\"IBNRCY\"&F$10&\"AY\"&B48","v":"IBNRCY2013AY2010"},{"$f":"F48","v":0}]
[null,null,null,{"$f":"XBRLMap(D49,D$87&\".\"&$U$4&\".\"&$U49&\".\"&D$89&\".\"&$U$7,$B$95,$B$96,CONFIGURATION!$B$10,\"BMA\",CONFIGURATION!$B$1,\"bscr\",1000)","v":"Mapped"},{"$f":"XBRLMap(E49,E$87&\".\"&$U$4&\".\"&$U49&\".\"&E$89&\".\"&$U$7,$B$95,$B$96,CONFIGURATION!$B$10,\"BMA\",CONFIGURATION!$B$1,\"bscr\",1000)","v":"Mapped"},{"$f":"XBRLMap(F49,F$87&\".\"&$U$4&\".\"&$U49&\".\"&F$89&\".\"&$U$7,$B$95,$B$96,CONFIGURATION!$B$10,\"BMA\",CONFIGURATION!$B$1,\"bscr\",1000)","v":"Mapped"},{"$f":"XBRLMap(G49,G$87&\".\"&$U$4&\".\"&$U49&\".\"&G$89&\".\"&$U$7,$B$95,$B$96,CONFIGURATION!$B$10,\"BMA\",CONFIGURATION!$B$1,\"bscr\",1000)","v":"Mapped"},{"$f":"XBRLMap(H49,H$87&\".\"&$U$4&\".\"&$U49&\".\"&H$89&\".\"&$U$7,$B$95,$B$96,CONFIGURATION!$B$10,\"BMA\",CONFIGURATION!$B$1,\"bscr\",1000)","v":"Mapped"},{"$f":"XBRLMap(I49,I$87&\".\"&$U$4&\".\"&$U49&\".\"&I$89&\".\"&$U$7,$B$95,$B$96,CONFIGURATION!$B$10,\"BMA\",CONFIGURATION!$B$1,\"bscr\",1000)","v":"Mapped"},{"$f":"XBRLMap(J49,J$87&\".\"&$U$4&\".\"&$U49&\".\"&J$89&\".\"&$U$7,$B$95,$B$96,CONFIGURATION!$B$10,\"BMA\",CONFIGURATION!$B$1,\"bscr\",1000)","v":"Mapped"},{"$f":"XBRLMap(K49,K$87&\".\"&$U$4&\".\"&$U49&\".\"&K$89&\".\"&$U$7,$B$95,$B$96,CONFIGURATION!$B$10,\"BMA\",CONFIGURATION!$B$1,\"bscr\",1000)","v":"Mapped"},{"$f":"XBRLMap(L49,L$87&\".\"&$U$4&\".\"&$U49&\".\"&L$89&\".\"&$U$7,$B$95,$B$96,CONFIGURATION!$B$10,\"BMA\",CONFIGURATION!$B$1,\"bscr\",1000)","v":"Mapped"},{"$f":"XBRLMap(M49,M$87&\".\"&$U$4&\".\"&$U49&\".\"&M$89&\".\"&$U$7,$B$95,$B$96,CONFIGURATION!$B$10,\"BMA\",CONFIGURATION!$B$1,\"bscr\",1000)","v":"Mapped"},null,null,null,{"$f":"\"IBNRCY\"&F$10&\"AY\"&B49","v":"IBNRCY2013AY2011"},{"$f":"F49","v":0}]
[null,null,null,null,{"$f":"XBRLMap(E50,E$87&\".\"&$U$4&\".\"&$U50&\".\"&E$89&\".\"&$U$7,$B$95,$B$96,CONFIGURATION!$B$10,\"BMA\",CONFIGURATION!$B$1,\"bscr\",1000)","v":"Mapped"},{"$f":"XBRLMap(F50,F$87&\".\"&$U$4&\".\"&$U50&\".\"&F$89&\".\"&$U$7,$B$95,$B$96,CONFIGURATION!$B$10,\"BMA\",CONFIGURATION!$B$1,\"bscr\",1000)","v":"Mapped"},{"$f":"XBRLMap(G50,G$87&\".\"&$U$4&\".\"&$U50&\".\"&G$89&\".\"&$U$7,$B$95,$B$96,CONFIGURATION!$B$10,\"BMA\",CONFIGURATION!$B$1,\"bscr\",1000)","v":"Mapped"},{"$f":"XBRLMap(H50,H$87&\".\"&$U$4&\".\"&$U50&\".\"&H$89&\".\"&$U$7,$B$95,$B$96,CONFIGURATION!$B$10,\"BMA\",CONFIGURATION!$B$1,\"bscr\",1000)","v":"Mapped"},{"$f":"XBRLMap(I50,I$87&\".\"&$U$4&\".\"&$U50&\".\"&I$89&\".\"&$U$7,$B$95,$B$96,CONFIGURATION!$B$10,\"BMA\",CONFIGURATION!$B$1,\"bscr\",1000)","v":"Mapped"},{"$f":"XBRLMap(J50,J$87&\".\"&$U$4&\".\"&$U50&\".\"&J$89&\".\"&$U$7,$B$95,$B$96,CONFIGURATION!$B$10,\"BMA\",CONFIGURATION!$B$1,\"bscr\",1000)","v":"Mapped"},{"$f":"XBRLMap(K50,K$87&\".\"&$U$4&\".\"&$U50&\".\"&K$89&\".\"&$U$7,$B$95,$B$96,CONFIGURATION!$B$10,\"BMA\",CONFIGURATION!$B$1,\"bscr\",1000)","v":"Mapped"},{"$f":"XBRLMap(L50,L$87&\".\"&$U$4&\".\"&$U50&\".\"&L$89&\".\"&$U$7,$B$95,$B$96,CONFIGURATION!$B$10,\"BMA\",CONFIGURATION!$B$1,\"bscr\",1000)","v":"Mapped"},{"$f":"XBRLMap(M50,M$87&\".\"&$U$4&\".\"&$U50&\".\"&M$89&\".\"&$U$7,$B$95,$B$96,CONFIGURATION!$B$10,\"BMA\",CONFIGURATION!$B$1,\"bscr\",1000)","v":"Mapped"},null,null,null,{"$f":"\"IBNRCY\"&F$10&\"AY\"&B50","v":"IBNRCY2013AY2012"},{"$f":"F50","v":0}]
[null,null,null,null,null,{"$f":"XBRLMap(F51,F$87&\".\"&$U$4&\".\"&$U51&\".\"&F$89&\".\"&$U$7,$B$95,$B$96,CONFIGURATION!$B$10,\"BMA\",CONFIGURATION!$B$1,\"bscr\",1000)","v":"Mapped"},{"$f":"XBRLMap(G51,G$87&\".\"&$U$4&\".\"&$U51&\".\"&G$89&\".\"&$U$7,$B$95,$B$96,CONFIGURATION!$B$10,\"BMA\",CONFIGURATION!$B$1,\"bscr\",1000)","v":"Mapped"},{"$f":"XBRLMap(H51,H$87&\".\"&$U$4&\".\"&$U51&\".\"&H$89&\".\"&$U$7,$B$95,$B$96,CONFIGURATION!$B$10,\"BMA\",CONFIGURATION!$B$1,\"bscr\",1000)","v":"Mapped"},{"$f":"XBRLMap(I51,I$87&\".\"&$U$4&\".\"&$U51&\".\"&I$89&\".\"&$U$7,$B$95,$B$96,CONFIGURATION!$B$10,\"BMA\",CONFIGURATION!$B$1,\"bscr\",1000)","v":"Mapped"},{"$f":"XBRLMap(J51,J$87&\".\"&$U$4&\".\"&$U51&\".\"&J$89&\".\"&$U$7,$B$95,$B$96,CONFIGURATION!$B$10,\"BMA\",CONFIGURATION!$B$1,\"bscr\",1000)","v":"Mapped"},{"$f":"XBRLMap(K51,K$87&\".\"&$U$4&\".\"&$U51&\".\"&K$89&\".\"&$U$7,$B$95,$B$96,CONFIGURATION!$B$10,\"BMA\",CONFIGURATION!$B$1,\"bscr\",1000)","v":"Mapped"},{"$f":"XBRLMap(L51,L$87&\".\"&$U$4&\".\"&$U51&\".\"&L$89&\".\"&$U$7,$B$95,$B$96,CONFIGURATION!$B$10,\"BMA\",CONFIGURATION!$B$1,\"bscr\",1000)","v":"Mapped"},{"$f":"XBRLMap(M51,M$87&\".\"&$U$4&\".\"&$U51&\".\"&M$89&\".\"&$U$7,$B$95,$B$96,CONFIGURATION!$B$10,\"BMA\",CONFIGURATION!$B$1,\"bscr\",1000)","v":"Mapped"},null,null,null,{"$f":"\"IBNRCY\"&F$10&\"AY\"&B51","v":"IBNRCY2013AY2013"},{"$f":"F51","v":0}]
[null,null,null,null,null,null,{"$f":"XBRLMap(G52,G$87&\".\"&$U$4&\".\"&$U52&\".\"&G$89&\".\"&$U$7,$B$95,$B$96,CONFIGURATION!$B$10,\"BMA\",CONFIGURATION!$B$1,\"bscr\",1000)","v":"Mapped"},{"$f":"XBRLMap(H52,H$87&\".\"&$U$4&\".\"&$U52&\".\"&H$89&\".\"&$U$7,$B$95,$B$96,CONFIGURATION!$B$10,\"BMA\",CONFIGURATION!$B$1,\"bscr\",1000)","v":"Mapped"},{"$f":"XBRLMap(I52,I$87&\".\"&$U$4&\".\"&$U52&\".\"&I$89&\".\"&$U$7,$B$95,$B$96,CONFIGURATION!$B$10,\"BMA\",CONFIGURATION!$B$1,\"bscr\",1000)","v":"Mapped"},{"$f":"XBRLMap(J52,J$87&\".\"&$U$4&\".\"&$U52&\".\"&J$89&\".\"&$U$7,$B$95,$B$96,CONFIGURATION!$B$10,\"BMA\",CONFIGURATION!$B$1,\"bscr\",1000)","v":"Mapped"},{"$f":"XBRLMap(K52,K$87&\".\"&$U$4&\".\"&$U52&\".\"&K$89&\".\"&$U$7,$B$95,$B$96,CONFIGURATION!$B$10,\"BMA\",CONFIGURATION!$B$1,\"bscr\",1000)","v":"Mapped"},{"$f":"XBRLMap(L52,L$87&\".\"&$U$4&\".\"&$U52&\".\"&L$89&\".\"&$U$7,$B$95,$B$96,CONFIGURATION!$B$10,\"BMA\",CONFIGURATION!$B$1,\"bscr\",1000)","v":"Mapped"},{"$f":"XBRLMap(M52,M$87&\".\"&$U$4&\".\"&$U52&\".\"&M$89&\".\"&$U$7,$B$95,$B$96,CONFIGURATION!$B$10,\"BMA\",CONFIGURATION!$B$1,\"bscr\",1000)","v":"Mapped"},null,null,null,{"$f":"\"IBNRCY\"&G$10&\"AY\"&B47","v":"IBNRCY2014AYPrior"},{"$f":"G47","v":0}]
[null,null,null,null,null,null,null,{"$f":"XBRLMap(H53,H$87&\".\"&$U$4&\".\"&$U53&\".\"&H$89&\".\"&$U$7,$B$95,$B$96,CONFIGURATION!$B$10,\"BMA\",CONFIGURATION!$B$1,\"bscr\",1000)","v":"Mapped"},{"$f":"XBRLMap(I53,I$87&\".\"&$U$4&\".\"&$U53&\".\"&I$89&\".\"&$U$7,$B$95,$B$96,CONFIGURATION!$B$10,\"BMA\",CONFIGURATION!$B$1,\"bscr\",1000)","v":"Mapped"},{"$f":"XBRLMap(J53,J$87&\".\"&$U$4&\".\"&$U53&\".\"&J$89&\".\"&$U$7,$B$95,$B$96,CONFIGURATION!$B$10,\"BMA\",CONFIGURATION!$B$1,\"bscr\",1000)","v":"Mapped"},{"$f":"XBRLMap(K53,K$87&\".\"&$U$4&\".\"&$U53&\".\"&K$89&\".\"&$U$7,$B$95,$B$96,CONFIGURATION!$B$10,\"BMA\",CONFIGURATION!$B$1,\"bscr\",1000)","v":"Mapped"},{"$f":"XBRLMap(L53,L$87&\".\"&$U$4&\".\"&$U53&\".\"&L$89&\".\"&$U$7,$B$95,$B$96,CONFIGURATION!$B$10,\"BMA\",CONFIGURATION!$B$1,\"bscr\",1000)","v":"Mapped"},{"$f":"XBRLMap(M53,M$87&\".\"&$U$4&\".\"&$U53&\".\"&M$89&\".\"&$U$7,$B$95,$B$96,CONFIGURATION!$B$10,\"BMA\",CONFIGURATION!$B$1,\"bscr\",1000)","v":"Mapped"},null,null,null,"IBNRCY2014AY2010",0]
[null,null,null,null,null,null,null,null,{"$f":"XBRLMap(I54,I$87&\".\"&$U$4&\".\"&$U54&\".\"&I$89&\".\"&$U$7,$B$95,$B$96,CONFIGURATION!$B$10,\"BMA\",CONFIGURATION!$B$1,\"bscr\",1000)","v":"Mapped"},{"$f":"XBRLMap(J54,J$87&\".\"&$U$4&\".\"&$U54&\".\"&J$89&\".\"&$U$7,$B$95,$B$96,CONFIGURATION!$B$10,\"BMA\",CONFIGURATION!$B$1,\"bscr\",1000)","v":"Mapped"},{"$f":"XBRLMap(K54,K$87&\".\"&$U$4&\".\"&$U54&\".\"&K$89&\".\"&$U$7,$B$95,$B$96,CONFIGURATION!$B$10,\"BMA\",CONFIGURATION!$B$1,\"bscr\",1000)","v":"Mapped"},{"$f":"XBRLMap(L54,L$87&\".\"&$U$4&\".\"&$U54&\".\"&L$89&\".\"&$U$7,$B$95,$B$96,CONFIGURATION!$B$10,\"BMA\",CONFIGURATION!$B$1,\"bscr\",1000)","v":"Mapped"},{"$f":"XBRLMap(M54,M$87&\".\"&$U$4&\".\"&$U54&\".\"&M$89&\".\"&$U$7,$B$95,$B$96,CONFIGURATION!$B$10,\"BMA\",CONFIGURATION!$B$1,\"bscr\",1000)","v":"Mapped"},null,null,null,"IBNRCY2014AY2011",0]
[null,null,null,null,null,null,null,null,null,{"$f":"XBRLMap(J55,J$87&\".\"&$U$4&\".\"&$U55&\".\"&J$89&\".\"&$U$7,$B$95,$B$96,CONFIGURATION!$B$10,\"BMA\",CONFIGURATION!$B$1,\"bscr\",1000)","v":"Mapped"},{"$f":"XBRLMap(K55,K$87&\".\"&$U$4&\".\"&$U55&\".\"&K$89&\".\"&$U$7,$B$95,$B$96,CONFIGURATION!$B$10,\"BMA\",CONFIGURATION!$B$1,\"bscr\",1000)","v":"Mapped"},{"$f":"XBRLMap(L55,L$87&\".\"&$U$4&\".\"&$U55&\".\"&L$89&\".\"&$U$7,$B$95,$B$96,CONFIGURATION!$B$10,\"BMA\",CONFIGURATION!$B$1,\"bscr\",1000)","v":"Mapped"},{"$f":"XBRLMap(M55,M$87&\".\"&$U$4&\".\"&$U55&\".\"&M$89&\".\"&$U$7,$B$95,$B$96,CONFIGURATION!$B$10,\"BMA\",CONFIGURATION!$B$1,\"bscr\",1000)","v":"Mapped"},null,null,null,"IBNRCY2014AY2012",0]
[null,null,null,null,null,null,null,null,null,null,{"$f":"XBRLMap(K56,K$87&\".\"&$U$4&\".\"&$U56&\".\"&K$89&\".\"&$U$7,$B$95,$B$96,CONFIGURATION!$B$10,\"BMA\",CONFIGURATION!$B$1,\"bscr\",1000)","v":"Mapped"},{"$f":"XBRLMap(L56,L$87&\".\"&$U$4&\".\"&$U56&\".\"&L$89&\".\"&$U$7,$B$95,$B$96,CONFIGURATION!$B$10,\"BMA\",CONFIGURATION!$B$1,\"bscr\",1000)","v":"Mapped"},{"$f":"XBRLMap(M56,M$87&\".\"&$U$4&\".\"&$U56&\".\"&M$89&\".\"&$U$7,$B$95,$B$96,CONFIGURATION!$B$10,\"BMA\",CONFIGURATION!$B$1,\"bscr\",1000)","v":"Mapped"},null,null,null,"IBNRCY2014AY2013",0]
[null,null,null,null,null,null,null,null,null,null,null,{"$f":"XBRLMap(L57,L$87&\".\"&$U$4&\".\"&$U57&\".\"&L$89&\".\"&$U$7,$B$95,$B$96,CONFIGURATION!$B$10,\"BMA\",CONFIGURATION!$B$1,\"bscr\",1000)","v":"Mapped"},{"$f":"XBRLMap(M57,M$87&\".\"&$U$4&\".\"&$U57&\".\"&M$89&\".\"&$U$7,$B$95,$B$96,CONFIGURATION!$B$10,\"BMA\",CONFIGURATION!$B$1,\"bscr\",1000)","v":"Mapped"},null,null,null,"IBNRCY2014AY2014",0]
[null,null,null,null,null,null,null,null,null,null,null,null,null,null,null,null,{"$f":"\"IBNRCY\"&H$10&\"AY\"&B47","v":"IBNRCY2015AYPrior"},{"$f":"H47","v":0}]
[null,null,null,null,null,null,null,null,null,null,null,null,null,null,null,null,"IBNRCY2015AY2010",0]
[null,null,null,null,null,null,null,null,null,null,null,null,null,null,null,null,"IBNRCY2015AY2011",0]
[null,null,null,null,null,null,null,null,null,null,null,null,null,null,null,null,"IBNRCY2015AY2012",0]
[null,null,null,null,null,null,null,null,null,null,null,null,null,null,null,null,"IBNRCY2015AY2013",0]
[null,null,null,null,null,null,null,null,null,null,null,null,null,null,null,null,"IBNRCY2015AY2014",0]
[null,null,null,null,null,null,null,null,null,null,null,null,null,null,null,null,"IBNRCY2015AY2015",0]
[null,null,null,null,null,null,null,null,null,null,null,null,null,null,null,null,{"$f":"\"IBNRCY\"&I$10&\"AY\"&B47","v":"IBNRCY2016AYPrior"},{"$f":"I47","v":0}]
[null,null,null,null,null,null,null,null,null,null,null,null,null,null,null,null,"IBNRCY2016AY2010",0]
[null,null,null,null,null,null,null,null,null,null,null,null,null,null,null,null,"IBNRCY2016AY2011",0]
[null,null,null,null,null,null,{"$f":"XBRLMap(G67,G$88&\".\"&$U$4&\".\"&$U67&\".\"&$U$7,$B$95,$B$96,CONFIGURATION!$B$10,\"BMA\",CONFIGURATION!$B$1,\"bscr\",1000)","v":"Mapped"},{"$f":"XBRLMap(H67,H$88&\".\"&$U$4&\".\"&$U67&\".\"&$U$7,$B$95,$B$96,CONFIGURATION!$B$10,\"BMA\",CONFIGURATION!$B$1,\"bscr\",1000)","v":"Mapped"},null,{"$f":"XBRLMap(J67,J$88&\".\"&$U$4&\".\"&$V67&\".\"&$U$7,$B$95,$B$96,CONFIGURATION!$B$10,\"BMA\",CONFIGURATION!$B$1,\"bscr\",1000)","v":"Mapped"},{"$f":"XBRLMap(K67,K$88&\".\"&$U$4&\".\"&$V67&\".\"&$U$7,$B$95,$B$96,CONFIGURATION!$B$10,\"BMA\",CONFIGURATION!$B$1,\"bscr\",1000)","v":"Mapped"},{"$f":"XBRLMap(L67,L$88&\".\"&$U$4&\".\"&$V67&\".\"&$U$7,$B$95,$B$96,CONFIGURATION!$B$10,\"BMA\",CONFIGURATION!$B$1,\"bscr\",1000)","v":"Mapped"},{"$f":"XBRLMap(M67,M$88&\".\"&$U$4&\".\"&$V67&\".\"&$U$7,$B$95,$B$96,CONFIGURATION!$B$10,\"BMA\",CONFIGURATION!$B$1,\"bscr\",1000)","v":"Mapped"},null,null,null,"IBNRCY2016AY2012",0]
[null,null,{"$f":"XBRLMap(C68,C$88&\".\"&$U$4&\".\"&$U68&\".\"&$U$7,$B$95,$B$96,CONFIGURATION!$B$10,\"BMA\",CONFIGURATION!$B$1,\"bscr\",1000)","v":"Mapped"},{"$f":"XBRLMap(D68,D$88&\".\"&$U$4&\".\"&$U68&\".\"&$U$7,$B$95,$B$96,CONFIGURATION!$B$10,\"BMA\",CONFIGURATION!$B$1,\"bscr\",1000)","v":"Mapped"},{"$f":"XBRLMap(E68,E$88&\".\"&$U$4&\".\"&$U68&\".\"&$U$7,$B$95,$B$96,CONFIGURATION!$B$10,\"BMA\",CONFIGURATION!$B$1,\"bscr\",1000)","v":"Mapped"},{"$f":"XBRLMap(F68,F$88&\".\"&$U$4&\".\"&$U68&\".\"&$U$7,$B$95,$B$96,CONFIGURATION!$B$10,\"BMA\",CONFIGURATION!$B$1,\"bscr\",1000)","v":"Mapped"},{"$f":"XBRLMap(G68,G$88&\".\"&$U$4&\".\"&$U68&\".\"&$U$7,$B$95,$B$96,CONFIGURATION!$B$10,\"BMA\",CONFIGURATION!$B$1,\"bscr\",1000)","v":"Mapped"},{"$f":"XBRLMap(H68,H$88&\".\"&$U$4&\".\"&$U68&\".\"&$U$7,$B$95,$B$96,CONFIGURATION!$B$10,\"BMA\",CONFIGURATION!$B$1,\"bscr\",1000)","v":"Mapped"},null,{"$f":"XBRLMap(J68,J$88&\".\"&$U$4&\".\"&$V68&\".\"&$U$7,$B$95,$B$96,CONFIGURATION!$B$10,\"BMA\",CONFIGURATION!$B$1,\"bscr\",1000)","v":"Mapped"},{"$f":"XBRLMap(K68,K$88&\".\"&$U$4&\".\"&$V68&\".\"&$U$7,$B$95,$B$96,CONFIGURATION!$B$10,\"BMA\",CONFIGURATION!$B$1,\"bscr\",1000)","v":"Mapped"},{"$f":"XBRLMap(L68,L$88&\".\"&$U$4&\".\"&$V68&\".\"&$U$7,$B$95,$B$96,CONFIGURATION!$B$10,\"BMA\",CONFIGURATION!$B$1,\"bscr\",1000)","v":"Mapped"},{"$f":"XBRLMap(M68,M$88&\".\"&$U$4&\".\"&$V68&\".\"&$U$7,$B$95,$B$96,CONFIGURATION!$B$10,\"BMA\",CONFIGURATION!$B$1,\"bscr\",1000)","v":"Mapped"},null,null,null,"IBNRCY2016AY2013",0]
[null,null,{"$f":"XBRLMap(C69,C$88&\".\"&$U$4&\".\"&$U69&\".\"&$U$7,$B$95,$B$96,CONFIGURATION!$B$10,\"BMA\",CONFIGURATION!$B$1,\"bscr\",1000)","v":"Mapped"},{"$f":"XBRLMap(D69,D$88&\".\"&$U$4&\".\"&$U69&\".\"&$U$7,$B$95,$B$96,CONFIGURATION!$B$10,\"BMA\",CONFIGURATION!$B$1,\"bscr\",1000)","v":"Mapped"},{"$f":"XBRLMap(E69,E$88&\".\"&$U$4&\".\"&$U69&\".\"&$U$7,$B$95,$B$96,CONFIGURATION!$B$10,\"BMA\",CONFIGURATION!$B$1,\"bscr\",1000)","v":"Mapped"},{"$f":"XBRLMap(F69,F$88&\".\"&$U$4&\".\"&$U69&\".\"&$U$7,$B$95,$B$96,CONFIGURATION!$B$10,\"BMA\",CONFIGURATION!$B$1,\"bscr\",1000)","v":"Mapped"},{"$f":"XBRLMap(G69,G$88&\".\"&$U$4&\".\"&$U69&\".\"&$U$7,$B$95,$B$96,CONFIGURATION!$B$10,\"BMA\",CONFIGURATION!$B$1,\"bscr\",1000)","v":"Mapped"},{"$f":"XBRLMap(H69,H$88&\".\"&$U$4&\".\"&$U69&\".\"&$U$7,$B$95,$B$96,CONFIGURATION!$B$10,\"BMA\",CONFIGURATION!$B$1,\"bscr\",1000)","v":"Mapped"},null,{"$f":"XBRLMap(J69,J$88&\".\"&$U$4&\".\"&$V69&\".\"&$U$7,$B$95,$B$96,CONFIGURATION!$B$10,\"BMA\",CONFIGURATION!$B$1,\"bscr\",1000)","v":"Mapped"},{"$f":"XBRLMap(K69,K$88&\".\"&$U$4&\".\"&$V69&\".\"&$U$7,$B$95,$B$96,CONFIGURATION!$B$10,\"BMA\",CONFIGURATION!$B$1,\"bscr\",1000)","v":"Mapped"},{"$f":"XBRLMap(L69,L$88&\".\"&$U$4&\".\"&$V69&\".\"&$U$7,$B$95,$B$96,CONFIGURATION!$B$10,\"BMA\",CONFIGURATION!$B$1,\"bscr\",1000)","v":"Mapped"},{"$f":"XBRLMap(M69,M$88&\".\"&$U$4&\".\"&$V69&\".\"&$U$7,$B$95,$B$96,CONFIGURATION!$B$10,\"BMA\",CONFIGURATION!$B$1,\"bscr\",1000)","v":"Mapped"},null,null,null,"IBNRCY2016AY2014",0]
[null,null,{"$f":"XBRLMap(C70,C$88&\".\"&$U$4&\".\"&$U70&\".\"&$U$7,$B$95,$B$96,CONFIGURATION!$B$10,\"BMA\",CONFIGURATION!$B$1,\"bscr\",1000)","v":"Mapped"},{"$f":"XBRLMap(D70,D$88&\".\"&$U$4&\".\"&$U70&\".\"&$U$7,$B$95,$B$96,CONFIGURATION!$B$10,\"BMA\",CONFIGURATION!$B$1,\"bscr\",1000)","v":"Mapped"},{"$f":"XBRLMap(E70,E$88&\".\"&$U$4&\".\"&$U70&\".\"&$U$7,$B$95,$B$96,CONFIGURATION!$B$10,\"BMA\",CONFIGURATION!$B$1,\"bscr\",1000)","v":"Mapped"},{"$f":"XBRLMap(F70,F$88&\".\"&$U$4&\".\"&$U70&\".\"&$U$7,$B$95,$B$96,CONFIGURATION!$B$10,\"BMA\",CONFIGURATION!$B$1,\"bscr\",1000)","v":"Mapped"},{"$f":"XBRLMap(G70,G$88&\".\"&$U$4&\".\"&$U70&\".\"&$U$7,$B$95,$B$96,CONFIGURATION!$B$10,\"BMA\",CONFIGURATION!$B$1,\"bscr\",1000)","v":"Mapped"},{"$f":"XBRLMap(H70,H$88&\".\"&$U$4&\".\"&$U70&\".\"&$U$7,$B$95,$B$96,CONFIGURATION!$B$10,\"BMA\",CONFIGURATION!$B$1,\"bscr\",1000)","v":"Mapped"},null,{"$f":"XBRLMap(J70,J$88&\".\"&$U$4&\".\"&$V70&\".\"&$U$7,$B$95,$B$96,CONFIGURATION!$B$10,\"BMA\",CONFIGURATION!$B$1,\"bscr\",1000)","v":"Mapped"},{"$f":"XBRLMap(K70,K$88&\".\"&$U$4&\".\"&$V70&\".\"&$U$7,$B$95,$B$96,CONFIGURATION!$B$10,\"BMA\",CONFIGURATION!$B$1,\"bscr\",1000)","v":"Mapped"},{"$f":"XBRLMap(L70,L$88&\".\"&$U$4&\".\"&$V70&\".\"&$U$7,$B$95,$B$96,CONFIGURATION!$B$10,\"BMA\",CONFIGURATION!$B$1,\"bscr\",1000)","v":"Mapped"},{"$f":"XBRLMap(M70,M$88&\".\"&$U$4&\".\"&$V70&\".\"&$U$7,$B$95,$B$96,CONFIGURATION!$B$10,\"BMA\",CONFIGURATION!$B$1,\"bscr\",1000)","v":"Mapped"},null,null,null,"IBNRCY2016AY2015",0]
[null,null,{"$f":"XBRLMap(C71,C$88&\".\"&$U$4&\".\"&$U71&\".\"&$U$7,$B$95,$B$96,CONFIGURATION!$B$10,\"BMA\",CONFIGURATION!$B$1,\"bscr\",1000)","v":"Mapped"},{"$f":"XBRLMap(D71,D$88&\".\"&$U$4&\".\"&$U71&\".\"&$U$7,$B$95,$B$96,CONFIGURATION!$B$10,\"BMA\",CONFIGURATION!$B$1,\"bscr\",1000)","v":"Mapped"},{"$f":"XBRLMap(E71,E$88&\".\"&$U$4&\".\"&$U71&\".\"&$U$7,$B$95,$B$96,CONFIGURATION!$B$10,\"BMA\",CONFIGURATION!$B$1,\"bscr\",1000)","v":"Mapped"},{"$f":"XBRLMap(F71,F$88&\".\"&$U$4&\".\"&$U71&\".\"&$U$7,$B$95,$B$96,CONFIGURATION!$B$10,\"BMA\",CONFIGURATION!$B$1,\"bscr\",1000)","v":"Mapped"},{"$f":"XBRLMap(G71,G$88&\".\"&$U$4&\".\"&$U71&\".\"&$U$7,$B$95,$B$96,CONFIGURATION!$B$10,\"BMA\",CONFIGURATION!$B$1,\"bscr\",1000)","v":"Mapped"},{"$f":"XBRLMap(H71,H$88&\".\"&$U$4&\".\"&$U71&\".\"&$U$7,$B$95,$B$96,CONFIGURATION!$B$10,\"BMA\",CONFIGURATION!$B$1,\"bscr\",1000)","v":"Mapped"},null,{"$f":"XBRLMap(J71,J$88&\".\"&$U$4&\".\"&$V71&\".\"&$U$7,$B$95,$B$96,CONFIGURATION!$B$10,\"BMA\",CONFIGURATION!$B$1,\"bscr\",1000)","v":"Mapped"},{"$f":"XBRLMap(K71,K$88&\".\"&$U$4&\".\"&$V71&\".\"&$U$7,$B$95,$B$96,CONFIGURATION!$B$10,\"BMA\",CONFIGURATION!$B$1,\"bscr\",1000)","v":"Mapped"},{"$f":"XBRLMap(L71,L$88&\".\"&$U$4&\".\"&$V71&\".\"&$U$7,$B$95,$B$96,CONFIGURATION!$B$10,\"BMA\",CONFIGURATION!$B$1,\"bscr\",1000)","v":"Mapped"},{"$f":"XBRLMap(M71,M$88&\".\"&$U$4&\".\"&$V71&\".\"&$U$7,$B$95,$B$96,CONFIGURATION!$B$10,\"BMA\",CONFIGURATION!$B$1,\"bscr\",1000)","v":"Mapped"},null,null,null,"IBNRCY2016AY2016",0]
[null,null,{"$f":"XBRLMap(C72,C$88&\".\"&$U$4&\".\"&$U72&\".\"&$U$7,$B$95,$B$96,CONFIGURATION!$B$10,\"BMA\",CONFIGURATION!$B$1,\"bscr\",1000)","v":"Mapped"},{"$f":"XBRLMap(D72,D$88&\".\"&$U$4&\".\"&$U72&\".\"&$U$7,$B$95,$B$96,CONFIGURATION!$B$10,\"BMA\",CONFIGURATION!$B$1,\"bscr\",1000)","v":"Mapped"},{"$f":"XBRLMap(E72,E$88&\".\"&$U$4&\".\"&$U72&\".\"&$U$7,$B$95,$B$96,CONFIGURATION!$B$10,\"BMA\",CONFIGURATION!$B$1,\"bscr\",1000)","v":"Mapped"},{"$f":"XBRLMap(F72,F$88&\".\"&$U$4&\".\"&$U72&\".\"&$U$7,$B$95,$B$96,CONFIGURATION!$B$10,\"BMA\",CONFIGURATION!$B$1,\"bscr\",1000)","v":"Mapped"},{"$f":"XBRLMap(G72,G$88&\".\"&$U$4&\".\"&$U72&\".\"&$U$7,$B$95,$B$96,CONFIGURATION!$B$10,\"BMA\",CONFIGURATION!$B$1,\"bscr\",1000)","v":"Mapped"},{"$f":"XBRLMap(H72,H$88&\".\"&$U$4&\".\"&$U72&\".\"&$U$7,$B$95,$B$96,CONFIGURATION!$B$10,\"BMA\",CONFIGURATION!$B$1,\"bscr\",1000)","v":"Mapped"},null,{"$f":"XBRLMap(J72,J$88&\".\"&$U$4&\".\"&$V72&\".\"&$U$7,$B$95,$B$96,CONFIGURATION!$B$10,\"BMA\",CONFIGURATION!$B$1,\"bscr\",1000)","v":"Mapped"},{"$f":"XBRLMap(K72,K$88&\".\"&$U$4&\".\"&$V72&\".\"&$U$7,$B$95,$B$96,CONFIGURATION!$B$10,\"BMA\",CONFIGURATION!$B$1,\"bscr\",1000)","v":"Mapped"},{"$f":"XBRLMap(L72,L$88&\".\"&$U$4&\".\"&$V72&\".\"&$U$7,$B$95,$B$96,CONFIGURATION!$B$10,\"BMA\",CONFIGURATION!$B$1,\"bscr\",1000)","v":"Mapped"},{"$f":"XBRLMap(M72,M$88&\".\"&$U$4&\".\"&$V72&\".\"&$U$7,$B$95,$B$96,CONFIGURATION!$B$10,\"BMA\",CONFIGURATION!$B$1,\"bscr\",1000)","v":"Mapped"},null,null,null,{"$f":"\"IBNRCY\"&J$10&\"AY\"&B47","v":"IBNRCY2017AYPrior"},{"$f":"J47","v":0}]
[null,null,{"$f":"XBRLMap(C73,C$88&\".\"&$U$4&\".\"&$U73&\".\"&$U$7,$B$95,$B$96,CONFIGURATION!$B$10,\"BMA\",CONFIGURATION!$B$1,\"bscr\",1000)","v":"Mapped"},{"$f":"XBRLMap(D73,D$88&\".\"&$U$4&\".\"&$U73&\".\"&$U$7,$B$95,$B$96,CONFIGURATION!$B$10,\"BMA\",CONFIGURATION!$B$1,\"bscr\",1000)","v":"Mapped"},{"$f":"XBRLMap(E73,E$88&\".\"&$U$4&\".\"&$U73&\".\"&$U$7,$B$95,$B$96,CONFIGURATION!$B$10,\"BMA\",CONFIGURATION!$B$1,\"bscr\",1000)","v":"Mapped"},{"$f":"XBRLMap(F73,F$88&\".\"&$U$4&\".\"&$U73&\".\"&$U$7,$B$95,$B$96,CONFIGURATION!$B$10,\"BMA\",CONFIGURATION!$B$1,\"bscr\",1000)","v":"Mapped"},{"$f":"XBRLMap(G73,G$88&\".\"&$U$4&\".\"&$U73&\".\"&$U$7,$B$95,$B$96,CONFIGURATION!$B$10,\"BMA\",CONFIGURATION!$B$1,\"bscr\",1000)","v":"Mapped"},{"$f":"XBRLMap(H73,H$88&\".\"&$U$4&\".\"&$U73&\".\"&$U$7,$B$95,$B$96,CONFIGURATION!$B$10,\"BMA\",CONFIGURATION!$B$1,\"bscr\",1000)","v":"Mapped"},null,{"$f":"XBRLMap(J73,J$88&\".\"&$U$4&\".\"&$V73&\".\"&$U$7,$B$95,$B$96,CONFIGURATION!$B$10,\"BMA\",CONFIGURATION!$B$1,\"bscr\",1000)","v":"Mapped"},{"$f":"XBRLMap(K73,K$88&\".\"&$U$4&\".\"&$V73&\".\"&$U$7,$B$95,$B$96,CONFIGURATION!$B$10,\"BMA\",CONFIGURATION!$B$1,\"bscr\",1000)","v":"Mapped"},{"$f":"XBRLMap(L73,L$88&\".\"&$U$4&\".\"&$V73&\".\"&$U$7,$B$95,$B$96,CONFIGURATION!$B$10,\"BMA\",CONFIGURATION!$B$1,\"bscr\",1000)","v":"Mapped"},{"$f":"XBRLMap(M73,M$88&\".\"&$U$4&\".\"&$V73&\".\"&$U$7,$B$95,$B$96,CONFIGURATION!$B$10,\"BMA\",CONFIGURATION!$B$1,\"bscr\",1000)","v":"Mapped"},null,null,null,"IBNRCY2017AY2010",0]
[null,null,{"$f":"XBRLMap(C74,C$88&\".\"&$U$4&\".\"&$U74&\".\"&$U$7,$B$95,$B$96,CONFIGURATION!$B$10,\"BMA\",CONFIGURATION!$B$1,\"bscr\",1000)","v":"Mapped"},{"$f":"XBRLMap(D74,D$88&\".\"&$U$4&\".\"&$U74&\".\"&$U$7,$B$95,$B$96,CONFIGURATION!$B$10,\"BMA\",CONFIGURATION!$B$1,\"bscr\",1000)","v":"Mapped"},{"$f":"XBRLMap(E74,E$88&\".\"&$U$4&\".\"&$U74&\".\"&$U$7,$B$95,$B$96,CONFIGURATION!$B$10,\"BMA\",CONFIGURATION!$B$1,\"bscr\",1000)","v":"Mapped"},{"$f":"XBRLMap(F74,F$88&\".\"&$U$4&\".\"&$U74&\".\"&$U$7,$B$95,$B$96,CONFIGURATION!$B$10,\"BMA\",CONFIGURATION!$B$1,\"bscr\",1000)","v":"Mapped"},{"$f":"XBRLMap(G74,G$88&\".\"&$U$4&\".\"&$U74&\".\"&$U$7,$B$95,$B$96,CONFIGURATION!$B$10,\"BMA\",CONFIGURATION!$B$1,\"bscr\",1000)","v":"Mapped"},{"$f":"XBRLMap(H74,H$88&\".\"&$U$4&\".\"&$U74&\".\"&$U$7,$B$95,$B$96,CONFIGURATION!$B$10,\"BMA\",CONFIGURATION!$B$1,\"bscr\",1000)","v":"Mapped"},null,{"$f":"XBRLMap(J74,J$88&\".\"&$U$4&\".\"&$V74&\".\"&$U$7,$B$95,$B$96,CONFIGURATION!$B$10,\"BMA\",CONFIGURATION!$B$1,\"bscr\",1000)","v":"Mapped"},{"$f":"XBRLMap(K74,K$88&\".\"&$U$4&\".\"&$V74&\".\"&$U$7,$B$95,$B$96,CONFIGURATION!$B$10,\"BMA\",CONFIGURATION!$B$1,\"bscr\",1000)","v":"Mapped"},{"$f":"XBRLMap(L74,L$88&\".\"&$U$4&\".\"&$V74&\".\"&$U$7,$B$95,$B$96,CONFIGURATION!$B$10,\"BMA\",CONFIGURATION!$B$1,\"bscr\",1000)","v":"Mapped"},{"$f":"XBRLMap(M74,M$88&\".\"&$U$4&\".\"&$V74&\".\"&$U$7,$B$95,$B$96,CONFIGURATION!$B$10,\"BMA\",CONFIGURATION!$B$1,\"bscr\",1000)","v":"Mapped"},null,null,null,"IBNRCY2017AY2011",0]
[null,null,{"$f":"XBRLMap(C75,C$88&\".\"&$U$4&\".\"&$U75&\".\"&$U$7,$B$95,$B$96,CONFIGURATION!$B$10,\"BMA\",CONFIGURATION!$B$1,\"bscr\",1000)","v":"Mapped"},{"$f":"XBRLMap(D75,D$88&\".\"&$U$4&\".\"&$U75&\".\"&$U$7,$B$95,$B$96,CONFIGURATION!$B$10,\"BMA\",CONFIGURATION!$B$1,\"bscr\",1000)","v":"Mapped"},{"$f":"XBRLMap(E75,E$88&\".\"&$U$4&\".\"&$U75&\".\"&$U$7,$B$95,$B$96,CONFIGURATION!$B$10,\"BMA\",CONFIGURATION!$B$1,\"bscr\",1000)","v":"Mapped"},{"$f":"XBRLMap(F75,F$88&\".\"&$U$4&\".\"&$U75&\".\"&$U$7,$B$95,$B$96,CONFIGURATION!$B$10,\"BMA\",CONFIGURATION!$B$1,\"bscr\",1000)","v":"Mapped"},{"$f":"XBRLMap(G75,G$88&\".\"&$U$4&\".\"&$U75&\".\"&$U$7,$B$95,$B$96,CONFIGURATION!$B$10,\"BMA\",CONFIGURATION!$B$1,\"bscr\",1000)","v":"Mapped"},{"$f":"XBRLMap(H75,H$88&\".\"&$U$4&\".\"&$U75&\".\"&$U$7,$B$95,$B$96,CONFIGURATION!$B$10,\"BMA\",CONFIGURATION!$B$1,\"bscr\",1000)","v":"Mapped"},null,{"$f":"XBRLMap(J75,J$88&\".\"&$U$4&\".\"&$V75&\".\"&$U$7,$B$95,$B$96,CONFIGURATION!$B$10,\"BMA\",CONFIGURATION!$B$1,\"bscr\",1000)","v":"Mapped"},{"$f":"XBRLMap(K75,K$88&\".\"&$U$4&\".\"&$V75&\".\"&$U$7,$B$95,$B$96,CONFIGURATION!$B$10,\"BMA\",CONFIGURATION!$B$1,\"bscr\",1000)","v":"Mapped"},{"$f":"XBRLMap(L75,L$88&\".\"&$U$4&\".\"&$V75&\".\"&$U$7,$B$95,$B$96,CONFIGURATION!$B$10,\"BMA\",CONFIGURATION!$B$1,\"bscr\",1000)","v":"Mapped"},{"$f":"XBRLMap(M75,M$88&\".\"&$U$4&\".\"&$V75&\".\"&$U$7,$B$95,$B$96,CONFIGURATION!$B$10,\"BMA\",CONFIGURATION!$B$1,\"bscr\",1000)","v":"Mapped"},null,null,null,"IBNRCY2017AY2012",0]
[null,null,{"$f":"XBRLMap(C76,C$88&\".\"&$U$4&\".\"&$U76&\".\"&$U$7,$B$95,$B$96,CONFIGURATION!$B$10,\"BMA\",CONFIGURATION!$B$1,\"bscr\",1000)","v":"Mapped"},{"$f":"XBRLMap(D76,D$88&\".\"&$U$4&\".\"&$U76&\".\"&$U$7,$B$95,$B$96,CONFIGURATION!$B$10,\"BMA\",CONFIGURATION!$B$1,\"bscr\",1000)","v":"Mapped"},{"$f":"XBRLMap(E76,E$88&\".\"&$U$4&\".\"&$U76&\".\"&$U$7,$B$95,$B$96,CONFIGURATION!$B$10,\"BMA\",CONFIGURATION!$B$1,\"bscr\",1000)","v":"Mapped"},{"$f":"XBRLMap(F76,F$88&\".\"&$U$4&\".\"&$U76&\".\"&$U$7,$B$95,$B$96,CONFIGURATION!$B$10,\"BMA\",CONFIGURATION!$B$1,\"bscr\",1000)","v":"Mapped"},{"$f":"XBRLMap(G76,G$88&\".\"&$U$4&\".\"&$U76&\".\"&$U$7,$B$95,$B$96,CONFIGURATION!$B$10,\"BMA\",CONFIGURATION!$B$1,\"bscr\",1000)","v":"Mapped"},{"$f":"XBRLMap(H76,H$88&\".\"&$U$4&\".\"&$U76&\".\"&$U$7,$B$95,$B$96,CONFIGURATION!$B$10,\"BMA\",CONFIGURATION!$B$1,\"bscr\",1000)","v":"Mapped"},null,{"$f":"XBRLMap(J76,J$88&\".\"&$U$4&\".\"&$V76&\".\"&$U$7,$B$95,$B$96,CONFIGURATION!$B$10,\"BMA\",CONFIGURATION!$B$1,\"bscr\",1000)","v":"Mapped"},{"$f":"XBRLMap(K76,K$88&\".\"&$U$4&\".\"&$V76&\".\"&$U$7,$B$95,$B$96,CONFIGURATION!$B$10,\"BMA\",CONFIGURATION!$B$1,\"bscr\",1000)","v":"Mapped"},{"$f":"XBRLMap(L76,L$88&\".\"&$U$4&\".\"&$V76&\".\"&$U$7,$B$95,$B$96,CONFIGURATION!$B$10,\"BMA\",CONFIGURATION!$B$1,\"bscr\",1000)","v":"Mapped"},{"$f":"XBRLMap(M76,M$88&\".\"&$U$4&\".\"&$V76&\".\"&$U$7,$B$95,$B$96,CONFIGURATION!$B$10,\"BMA\",CONFIGURATION!$B$1,\"bscr\",1000)","v":"Mapped"},null,null,null,"IBNRCY2017AY2013",0]
[null,null,{"$f":"XBRLMap(C77,C$88&\".\"&$U$4&\".\"&$U77&\".\"&$U$7,$B$95,$B$96,CONFIGURATION!$B$10,\"BMA\",CONFIGURATION!$B$1,\"bscr\",1000)","v":"Mapped"},{"$f":"XBRLMap(D77,D$88&\".\"&$U$4&\".\"&$U77&\".\"&$U$7,$B$95,$B$96,CONFIGURATION!$B$10,\"BMA\",CONFIGURATION!$B$1,\"bscr\",1000)","v":"Mapped"},{"$f":"XBRLMap(E77,E$88&\".\"&$U$4&\".\"&$U77&\".\"&$U$7,$B$95,$B$96,CONFIGURATION!$B$10,\"BMA\",CONFIGURATION!$B$1,\"bscr\",1000)","v":"Mapped"},{"$f":"XBRLMap(F77,F$88&\".\"&$U$4&\".\"&$U77&\".\"&$U$7,$B$95,$B$96,CONFIGURATION!$B$10,\"BMA\",CONFIGURATION!$B$1,\"bscr\",1000)","v":"Mapped"},{"$f":"XBRLMap(G77,G$88&\".\"&$U$4&\".\"&$U77&\".\"&$U$7,$B$95,$B$96,CONFIGURATION!$B$10,\"BMA\",CONFIGURATION!$B$1,\"bscr\",1000)","v":"Mapped"},{"$f":"XBRLMap(H77,H$88&\".\"&$U$4&\".\"&$U77&\".\"&$U$7,$B$95,$B$96,CONFIGURATION!$B$10,\"BMA\",CONFIGURATION!$B$1,\"bscr\",1000)","v":"Mapped"},null,{"$f":"XBRLMap(J77,J$88&\".\"&$U$4&\".\"&$V77&\".\"&$U$7,$B$95,$B$96,CONFIGURATION!$B$10,\"BMA\",CONFIGURATION!$B$1,\"bscr\",1000)","v":"Mapped"},{"$f":"XBRLMap(K77,K$88&\".\"&$U$4&\".\"&$V77&\".\"&$U$7,$B$95,$B$96,CONFIGURATION!$B$10,\"BMA\",CONFIGURATION!$B$1,\"bscr\",1000)","v":"Mapped"},{"$f":"XBRLMap(L77,L$88&\".\"&$U$4&\".\"&$V77&\".\"&$U$7,$B$95,$B$96,CONFIGURATION!$B$10,\"BMA\",CONFIGURATION!$B$1,\"bscr\",1000)","v":"Mapped"},{"$f":"XBRLMap(M77,M$88&\".\"&$U$4&\".\"&$V77&\".\"&$U$7,$B$95,$B$96,CONFIGURATION!$B$10,\"BMA\",CONFIGURATION!$B$1,\"bscr\",1000)","v":"Mapped"},null,null,null,"IBNRCY2017AY2014",0]
[null,null,null,null,null,null,null,null,null,null,null,null,null,null,null,null,"IBNRCY2017AY2015",0]
[null,null,null,null,null,null,null,null,null,null,null,null,null,null,null,null,"IBNRCY2017AY2016",0]
[null,null,null,null,null,null,null,null,null,null,null,null,null,null,null,null,"IBNRCY2017AY2017",0]
[null,null,null,null,null,null,null,null,null,null,null,null,null,null,null,null,{"$f":"\"IBNRCY\"&K$10&\"AY\"&B47","v":"IBNRCY2018AYPrior"},{"$f":"K47","v":0}]
[null,null,null,null,null,null,null,null,null,null,null,null,null,null,null,null,"IBNRCY2018AY2010",0]
[null,null,null,null,null,null,null,null,null,null,null,null,null,null,null,null,"IBNRCY2018AY2011",0]
[null,null,null,null,null,null,null,null,null,null,null,null,null,null,null,null,"IBNRCY2018AY2012",0]
[null,null,null,null,null,null,null,null,null,null,null,null,null,null,null,null,"IBNRCY2018AY2013",0]
[null,null,null,null,null,null,null,null,null,null,null,null,null,null,null,null,"IBNRCY2018AY2014",0]
[null,null,null,null,null,null,null,null,null,null,null,null,null,null,null,null,"IBNRCY2018AY2015",0]
[null,null,null,null,null,null,null,null,null,null,null,null,null,null,null,null,"IBNRCY2018AY2016",0]
[null,null,null,null,null,null,null,null,null,null,null,null,null,null,null,null,"IBNRCY2018AY2017",0]
[null,null,null,null,null,null,null,null,null,null,null,null,null,null,null,null,"IBNRCY2018AY2018",0]
[null,null,null,null,null,null,null,null,null,null,null,null,null,null,null,null,{"$f":"\"IBNRCY\"&L$10&\"AY\"&B47","v":"IBNRCY2019AYPrior"},{"$f":"L47","v":0}]
[null,null,null,null,null,null,null,null,null,null,null,null,null,null,null,null,"IBNRCY2019AY2010",0]
[null,null,null,null,null,null,null,null,null,null,null,null,null,null,null,null,"IBNRCY2019AY2011",0]
[null,null,null,null,null,null,null,null,null,null,null,null,null,null,null,null,"IBNRCY2019AY2012",0]
[null,null,null,null,null,null,null,null,null,null,null,null,null,null,null,null,"IBNRCY2019AY2013",0]
[null,null,null,null,null,null,null,null,null,null,null,null,null,null,null,null,"IBNRCY2019AY2014",0]
[null,null,null,null,null,null,null,null,null,null,null,null,null,null,null,null,"IBNRCY2019AY2015",0]
[null,null,null,null,null,null,null,null,null,null,null,null,null,null,null,null,"IBNRCY2019AY2016",0]
[null,null,null,null,null,null,null,null,null,null,null,null,null,null,null,null,"IBNRCY2019AY2017",0]
[null,null,null,null,null,null,null,null,null,null,null,null,null,null,null,null,"IBNRCY2019AY2018",0]
[null,null,null,null,null,null,null,null,null,null,null,null,null,null,null,null,"IBNRCY2019AY2019",0]
[null,null,null,null,null,null,null,null,null,null,null,null,null,null,null,null,{"$f":"\"GrossWP\"&$B68","v":"GrossWP2010"},{"$f":"C68","v":0}]
[null,null,null,null,null,null,null,null,null,null,null,null,null,null,null,null,"GrossWP2011",0]
[null,null,null,null,null,null,null,null,null,null,null,null,null,null,null,null,"GrossWP2012",0]
[null,null,null,null,null,null,null,null,null,null,null,null,null,null,null,null,"GrossWP2013",0]
[null,null,null,null,null,null,null,null,null,null,null,null,null,null,null,null,"GrossWP2014",0]
[null,null,null,null,null,null,null,null,null,null,null,null,null,null,null,null,"GrossWP2015",0]
[null,null,null,null,null,null,null,null,null,null,null,null,null,null,null,null,"GrossWP2016",0]
[null,null,null,null,null,null,null,null,null,null,null,null,null,null,null,null,"GrossWP2017",0]
[null,null,null,null,null,null,null,null,null,null,null,null,null,null,null,null,"GrossWP2018",0]
[null,null,null,null,null,null,null,null,null,null,null,null,null,null,null,null,"GrossWP2019",0]
[null,null,null,null,null,null,null,null,null,null,null,null,null,null,null,null,{"$f":"\"GrossEP\"&$B68","v":"GrossEP2010"},{"$f":"D68","v":0}]
[null,null,null,null,null,null,null,null,null,null,null,null,null,null,null,null,"GrossEP2011",0]
[null,null,null,null,null,null,null,null,null,null,null,null,null,null,null,null,"GrossEP2012",0]
[null,null,null,null,null,null,null,null,null,null,null,null,null,null,null,null,"GrossEP2013",0]
[null,null,null,null,null,null,null,null,null,null,null,null,null,null,null,null,"GrossEP2014",0]
[null,null,null,null,null,null,null,null,null,null,null,null,null,null,null,null,"GrossEP2015",0]
[null,null,null,null,null,null,null,null,null,null,null,null,null,null,null,null,"GrossEP2016",0]
[null,null,null,null,null,null,null,null,null,null,null,null,null,null,null,null,"GrossEP2017",0]
[null,null,null,null,null,null,null,null,null,null,null,null,null,null,null,null,"GrossEP2018",0]
[null,null,null,null,null,null,null,null,null,null,null,null,null,null,null,null,"GrossEP2019",0]
[null,null,null,null,null,null,null,null,null,null,null,null,null,null,null,null,{"$f":"\"NetWP\"&$B68","v":"NetWP2010"},{"$f":"E68","v":0}]
[null,null,null,null,null,null,null,null,null,null,null,null,null,null,null,null,"NetWP2011",0]
[null,null,null,null,null,null,null,null,null,null,null,null,null,null,null,null,"NetWP2012",0]
[null,null,null,null,null,null,null,null,null,null,null,null,null,null,null,null,"NetWP2013",0]
[null,null,null,null,null,null,null,null,null,null,null,null,null,null,null,null,"NetWP2014",0]
[null,null,null,null,null,null,null,null,null,null,null,null,null,null,null,null,"NetWP2015",0]
[null,null,null,null,null,null,null,null,null,null,null,null,null,null,null,null,"NetWP2016",0]
[null,null,null,null,null,null,null,null,null,null,null,null,null,null,null,null,"NetWP2017",0]
[null,null,null,null,null,null,null,null,null,null,null,null,null,null,null,null,"NetWP2018",0]
[null,null,null,null,null,null,null,null,null,null,null,null,null,null,null,null,"NetWP2019",0]
[null,null,null,null,null,null,null,null,null,null,null,null,null,null,null,null,{"$f":"\"NetEP\"&$B68","v":"NetEP2010"},{"$f":"F68","v":0}]
[null,null,null,null,null,null,null,null,null,null,null,null,null,null,null,null,"NetEP2011",0]
[null,null,null,null,null,null,null,null,null,null,null,null,null,null,null,null,"NetEP2012",0]
[null,null,null,null,null,null,null,null,null,null,null,null,null,null,null,null,"NetEP2013",0]
[null,null,null,null,null,null,null,null,null,null,null,null,null,null,null,null,"NetEP2014",0]
[null,null,null,null,null,null,null,null,null,null,null,null,null,null,null,null,"NetEP2015",0]
[null,null,null,null,null,null,null,null,null,null,null,null,null,null,null,null,"NetEP2016",0]
[null,null,null,null,null,null,null,null,null,null,null,null,null,null,null,null,"NetEP2017",0]
[null,null,null,null,null,null,null,null,null,null,null,null,null,null,null,null,"NetEP2018",0]
[null,null,null,null,null,null,null,null,null,null,null,null,null,null,null,null,"NetEP2019",0]
[null,null,null,null,null,null,null,null,null,null,null,null,null,null,null,null,{"$f":"\"NetAOEPaid\"&$B67","v":"NetAOEPaidPrior"},{"$f":"G67","v":0}]
[null,null,null,null,null,null,null,null,null,null,null,null,null,null,null,null,"NetAOEPaid2010",0]
[null,null,null,null,null,null,null,null,null,null,null,null,null,null,null,null,"NetAOEPaid2011",0]
[null,null,null,null,null,null,null,null,null,null,null,null,null,null,null,null,"NetAOEPaid2012",0]
[null,null,null,null,null,null,null,null,null,null,null,null,null,null,null,null,"NetAOEPaid2013",0]
[null,null,null,null,null,null,null,null,null,null,null,null,null,null,null,null,"NetAOEPaid2014",0]
[null,null,null,null,null,null,null,null,null,null,null,null,null,null,null,null,"NetAOEPaid2015",0]
[null,null,null,null,null,null,null,null,null,null,null,null,null,null,null,null,"NetAOEPaid2016",0]
[null,null,null,null,null,null,null,null,null,null,null,null,null,null,null,null,"NetAOEPaid2017",0]
[null,null,null,null,null,null,null,null,null,null,null,null,null,null,null,null,"NetAOEPaid2018",0]
[null,null,null,null,null,null,null,null,null,null,null,null,null,null,null,null,"NetAOEPaid2019",0]
[null,null,null,null,null,null,null,null,null,null,null,null,null,null,null,null,{"$f":"\"NetAOEIncurred\"&$B67","v":"NetAOEIncurredPrior"},{"$f":"H67","v":0}]
[null,null,null,null,null,null,null,null,null,null,null,null,null,null,null,null,"NetAOEIncurred2010",0]
[null,null,null,null,null,null,null,null,null,null,null,null,null,null,null,null,"NetAOEIncurred2011",0]
[null,null,null,null,null,null,null,null,null,null,null,null,null,null,null,null,"NetAOEIncurred2012",0]
[null,null,null,null,null,null,null,null,null,null,null,null,null,null,null,null,"NetAOEIncurred2013",0]
[null,null,null,null,null,null,null,null,null,null,null,null,null,null,null,null,"NetAOEIncurred2014",0]
[null,null,null,null,null,null,null,null,null,null,null,null,null,null,null,null,"NetAOEIncurred2015",0]
[null,null,null,null,null,null,null,null,null,null,null,null,null,null,null,null,"NetAOEIncurred2016",0]
[null,null,null,null,null,null,null,null,null,null,null,null,null,null,null,null,"NetAOEIncurred2017",0]
[null,null,null,null,null,null,null,null,null,null,null,null,null,null,null,null,"NetAOEIncurred2018",0]
[null,null,null,null,null,null,null,null,null,null,null,null,null,null,null,null,"NetAOEIncurred2019",0]
[null,null,null,null,null,null,null,null,null,null,null,null,null,null,null,null,{"$f":"\"Commission\"&$B67","v":"CommissionPrior"},{"$f":"J67","v":0}]
[null,null,null,null,null,null,null,null,null,null,null,null,null,null,null,null,"Commission2010",0]
[null,null,null,null,null,null,null,null,null,null,null,null,null,null,null,null,"Commission2011",0]
[null,null,null,null,null,null,null,null,null,null,null,null,null,null,null,null,"Commission2012",0]
[null,null,null,null,null,null,null,null,null,null,null,null,null,null,null,null,"Commission2013",0]
[null,null,null,null,null,null,null,null,null,null,null,null,null,null,null,null,"Commission2014",0]
[null,null,null,null,null,null,null,null,null,null,null,null,null,null,null,null,"Commission2015",0]
[null,null,null,null,null,null,null,null,null,null,null,null,null,null,null,null,"Commission2016",0]
[null,null,null,null,null,null,null,null,null,null,null,null,null,null,null,null,"Commission2017",0]
[null,null,null,null,null,null,null,null,null,null,null,null,null,null,null,null,"Commission2018",0]
[null,null,null,null,null,null,null,null,null,null,null,null,null,null,null,null,"Commission2019",0]
[null,null,null,null,null,null,null,null,null,null,null,null,null,null,null,null,{"$f":"\"AcqExp\"&$B67","v":"AcqExpPrior"},{"$f":"K67","v":0}]
[null,null,null,null,null,null,null,null,null,null,null,null,null,null,null,null,"AcqExp2010",0]
[null,null,null,null,null,null,null,null,null,null,null,null,null,null,null,null,"AcqExp2011",0]
[null,null,null,null,null,null,null,null,null,null,null,null,null,null,null,null,"AcqExp2012",0]
[null,null,null,null,null,null,null,null,null,null,null,null,null,null,null,null,"AcqExp2013",0]
[null,null,null,null,null,null,null,null,null,null,null,null,null,null,null,null,"AcqExp2014",0]
[null,null,null,null,null,null,null,null,null,null,null,null,null,null,null,null,"AcqExp2015",0]
[null,null,null,null,null,null,null,null,null,null,null,null,null,null,null,null,"AcqExp2016",0]
[null,null,null,null,null,null,null,null,null,null,null,null,null,null,null,null,"AcqExp2017",0]
[null,null,null,null,null,null,null,null,null,null,null,null,null,null,null,null,"AcqExp2018",0]
[null,null,null,null,null,null,null,null,null,null,null,null,null,null,null,null,"AcqExp2019",0]
[null,null,null,null,null,null,null,null,null,null,null,null,null,null,null,null,{"$f":"\"Taxes\"&$B67","v":"TaxesPrior"},{"$f":"L67","v":0}]
[null,null,null,null,null,null,null,null,null,null,null,null,null,null,null,null,"Taxes2010",0]
[null,null,null,null,null,null,null,null,null,null,null,null,null,null,null,null,"Taxes2011",0]
[null,null,null,null,null,null,null,null,null,null,null,null,null,null,null,null,"Taxes2012",0]
[null,null,null,null,null,null,null,null,null,null,null,null,null,null,null,null,"Taxes2013",0]
[null,null,null,null,null,null,null,null,null,null,null,null,null,null,null,null,"Taxes2014",0]
[null,null,null,null,null,null,null,null,null,null,null,null,null,null,null,null,"Taxes2015",0]
[null,null,null,null,null,null,null,null,null,null,null,null,null,null,null,null,"Taxes2016",0]
[null,null,null,null,null,null,null,null,null,null,null,null,null,null,null,null,"Taxes2017",0]
[null,null,null,null,null,null,null,null,null,null,null,null,null,null,null,null,"Taxes2018",0]
[null,null,null,null,null,null,null,null,null,null,null,null,null,null,null,null,"Taxes2019",0]
[null,null,null,null,null,null,null,null,null,null,null,null,null,null,null,null,{"$f":"\"GeneralOver\"&$B67","v":"GeneralOverPrior"},{"$f":"M67","v":0}]
[null,null,null,null,null,null,null,null,null,null,null,null,null,null,null,null,"GeneralOver2010",0]
[null,null,null,null,null,null,null,null,null,null,null,null,null,null,null,null,"GeneralOver2011",0]
[null,null,null,null,null,null,null,null,null,null,null,null,null,null,null,null,"GeneralOver2012",0]
[null,null,null,null,null,null,null,null,null,null,null,null,null,null,null,null,"GeneralOver2013",0]
[null,null,null,null,null,null,null,null,null,null,null,null,null,null,null,null,"GeneralOver2014",0]
[null,null,null,null,null,null,null,null,null,null,null,null,null,null,null,null,"GeneralOver2015",0]
[null,null,null,null,null,null,null,null,null,null,null,null,null,null,null,null,"GeneralOver2016",0]
[null,null,null,null,null,null,null,null,null,null,null,null,null,null,null,null,"GeneralOver2017",0]
[null,null,null,null,null,null,null,null,null,null,null,null,null,null,null,null,"GeneralOver2018",0]
[null,null,null,null,null,null,null,null,null,null,null,null,null,null,null,null,"GeneralOver2019",0]

{"sheet":"Sch XI(a)(vii)","index":70,"n_rows":300,"n_cols":48,"rows_kept":300,"cut":false,"hidden":false,"merged":[[80,1,82,12],[5,2,5,11],[59,6,59,7],[41,2,41,11],[0,13,0,14],[2,13,2,14],[2,1,2,2],[60,6,60,7],[23,2,23,11]]}
[null,"SCHEDULE OF LOSS TRIANGLES (LINE 7 - OTHER SPECIALTY LINES)",null,null,null,null,null,null,null,null,null,null,null,{"$f":"HYPERLINK(\"#'Index'!A1\",\"Return to Index\")","v":"Return to Index"}]
[null,{"$f":"'Company Information'!C7","v":"Enter Company Name"},null,null,null,null,null,null,null,null,null,null,null,null,null,null,null,null,null,null,null,null,null,null,null,null,null,null,null,null,null,null,null,null,null,"bma_Line7OtherSpecialtyLinesMember"]
[null,{"$f":"'Company Information'!C3","v":"2019-12-31"},null,null,null,null,null,null,null,null,null,null,null,"SCHEDULE XI(a)(vii)"]
[null,{"$f":"\"expressed in\"& IF(1000>1,\" ['\"&MID(1000,2,LEN(1000))&\"s]\",\"\")&\" \"&'Form 1EBS'!$C$4","v":"expressed in ['000s] United States Dollars"},null,null,null,null,null,null,null,null,null,null,null,null,null,null,null,null,null,null,"brrt_LineOfBusinessAxis_brrt_OtherSpecialtyLinesMember"]
[]
[null,"Accounting Basis: *","INCURRED (ESTIMATED ULTIMATE) NET LOSSES AND ALLOCATED LOSS ADJUSTMENT EXPENSES REPORTED AT YEAR END ($000)",null,null,null,null,null,null,null,null,null,11,12,13,null,"AcctBasis",{"$f":"B7","v":"Accident Year"},null,null,{"$f":"IF(B7=\"Accident Year\",\"brrt_AccountingBasisAxis_brrt_AccidentYearMember\",\"brrt_AccountingBasisAxis_brrt_AccountingYearMember\")","v":"brrt_AccountingBasisAxis_brrt_AccidentYearMember"}]
[null,"Accident Year",null,null,null,null,null,null,null,null,null,null,"Ultimate","Development","Development",null,{"$f":"\"UltCY\"&C$10&\"AY\"&B11","v":"UltCY2010AYPrior"},{"$f":"C11","v":0},{"$f":"\"CATUltCY\"&L$10&\"AY\"&B11","v":"CATUltCY2019AYPrior"},{"$f":"M11","v":0},"brrt_TypeOfContractAxis_brrt_ProportionalMember",null,null,null,null,null,null,null,null,null,null,null,null,null,null,"bma_AcctBasis"]
[null,"Years in Which",1,2,3,4,5,6,7,8,9,10,"Catastrophe",null,null,null,{"$f":"\"UltCY\"&C$10&\"AY\"&B12","v":"UltCY2010AY2010"},{"$f":"C12","v":0},"CATUltCY2019AY2010",0]
[null,"Losses Were",null,null,null,null,null,null,null,null,null,null,"Losses","One Year","Two Year",null,{"$f":"\"UltCY\"&D$10&\"AY\"&B11","v":"UltCY2011AYPrior"},{"$f":"D11","v":0},"CATUltCY2019AY2011",0]
[null,"Incurred",{"$f":"D10-1","v":2010},2011,2012,2013,2014,2015,2016,2017,2018,{"$f":"YEAR('Company Information'!C3)","v":2019},{"$f":"L10","v":2019},"Development","Development",null,{"$f":"\"UltCY\"&D$10&\"AY\"&B12","v":"UltCY2011AY2010"},{"$f":"D12","v":0},"CATUltCY2019AY2012",0]
["L1","Prior",{"$f":"Import!I9356","v":0},{"$f":"Import!I9358","v":0},{"$f":"Import!I9361","v":0},{"$f":"Import!I9365","v":0},{"$f":"Import!I9370","v":0},{"$f":"Import!I9376","v":0},{"$f":"Import!I9383","v":0},{"$f":"Import!I9391","v":0},{"$f":"Import!I9400","v":0},{"$f":"Import!I9410","v":0},{"$f":"Import!I9421","v":0},{"$f":"K11-L11","v":0},{"$f":"J11-L11","v":0},null,{"$f":"\"UltCY\"&D$10&\"AY\"&B13","v":"UltCY2011AY2011"},{"$f":"D13","v":0},"CATUltCY2019AY2013",0,"brrt_LossIncurredYearAxis_brrt_PriorMember",null,null,null,null,null,null,null,null,null,null,null,null,null,null,{"$f":"\"bma_\"&\"UltCY\"&P$10&\"AY\"&$B11","v":"bma_UltCYAYPrior"},"bma_UltCYUltCY2011AY2010AYPrior","bma_UltCY0AYPrior",{"$f":"\"bma_\"&\"UltCY\"&S$10&\"AY\"&$B11","v":"bma_UltCYCATUltCY2019AY2012AYPrior"},{"$f":"\"bma_\"&\"UltCY\"&T$10&\"AY\"&$B11","v":"bma_UltCY0AYPrior"},{"$f":"\"bma_\"&\"UltCY\"&U$10&\"AY\"&$B11","v":"bma_UltCYAYPrior"},{"$f":"\"bma_\"&\"UltCY\"&V$10&\"AY\"&$B11","v":"bma_UltCYAYPrior"},{"$f":"\"bma_\"&\"UltCY\"&W$10&\"AY\"&$B11","v":"bma_UltCYAYPrior"},{"$f":"\"bma_\"&\"UltCY\"&X$10&\"AY\"&$B11","v":"bma_UltCYAYPrior"},{"$f":"\"bma_\"&\"UltCY\"&Y$10&\"AY\"&$B11","v":"bma_UltCYAYPrior"},{"$f":"\"bma_\"&\"CATUltCY\"&Y$10&\"AY\"&$B11","v":"bma_CATUltCYAYPrior"},{"$f":"\"bma_\"&\"UltCY\"&\"OneYearDevelopment\"&\"AY\"&$B11","v":"bma_UltCYOneYearDevelopmentAYPrior"},{"$f":"\"bma_\"&\"UltCY\"&\"TwoYearDevelopment\"&\"AY\"&$B11","v":"bma_UltCYTwoYearDevelopmentAYPrior"}]
["L2",{"$f":"B13-1","v":2010},{"$f":"Import!I9357","v":0},{"$f":"Import!I9359","v":0},{"$f":"Import!I9362","v":0},{"$f":"Import!I9366","v":0},{"$f":"Import!I9371","v":0},{"$f":"Import!I9377","v":0},{"$f":"Import!I9384","v":0},{"$f":"Import!I9392","v":0},{"$f":"Import!I9401","v":0},{"$f":"Import!I9411","v":0},{"$f":"Import!I9422","v":0},0,0,null,{"$f":"\"UltCY\"&E$10&\"AY\"&B11","v":"UltCY2012AYPrior"},{"$f":"E11","v":0},"CATUltCY2019AY2014",0,"brrt_LossIncurredYearAxis_brrt_XNMinus9Member",null,null,null,null,null,null,null,null,null,null,null,null,null,null,"bma_UltCYAY2010","bma_UltCYUltCY2011AY2010AY2010","bma_UltCY0AY2010",{"$f":"\"bma_\"&\"UltCY\"&S$10&\"AY\"&$B12","v":"bma_UltCYCATUltCY2019AY2012AY2010"},"bma_UltCY0AY2010","bma_UltCYAY2010","bma_UltCYAY2010","bma_UltCYAY2010","bma_UltCYAY2010","bma_UltCYAY2010",{"$f":"\"bma_\"&\"CATUltCY\"&Y$10&\"AY\"&$B12","v":"bma_CATUltCYAY2010"},{"$f":"\"bma_\"&\"UltCY\"&\"OneYearDevelopment\"&\"AY\"&$B12","v":"bma_UltCYOneYearDevelopmentAY2010"},{"$f":"\"bma_\"&\"UltCY\"&\"TwoYearDevelopment\"&\"AY\"&$B12","v":"bma_UltCYTwoYearDevelopmentAY2010"}]
["L3",2011,"XXX",{"$f":"Import!I9360","v":0},{"$f":"Import!I9363","v":0},{"$f":"Import!I9367","v":0},{"$f":"Import!I9372","v":0},{"$f":"Import!I9378","v":0},{"$f":"Import!I9385","v":0},{"$f":"Import!I9393","v":0},{"$f":"Import!I9402","v":0},{"$f":"Import!I9412","v":0},{"$f":"Import!I9423","v":0},0,0,null,{"$f":"\"UltCY\"&E$10&\"AY\"&B12","v":"UltCY2012AY2010"},{"$f":"E12","v":0},"CATUltCY2019AY2015",0,"brrt_LossIncurredYearAxis_brrt_XNMinus8Member",null,null,null,null,null,null,null,null,null,null,null,null,null,null,null,{"$f":"\"bma_\"&\"UltCY\"&Q$10&\"AY\"&$B13","v":"bma_UltCYUltCY2011AY2010AY2011"},{"$f":"\"bma_\"&\"UltCY\"&R$10&\"AY\"&$B13","v":"bma_UltCY0AY2011"},{"$f":"\"bma_\"&\"UltCY\"&S$10&\"AY\"&$B13","v":"bma_UltCYCATUltCY2019AY2012AY2011"},"bma_UltCY0AY2011","bma_UltCYAY2011","bma_UltCYAY2011","bma_UltCYAY2011","bma_UltCYAY2011","bma_UltCYAY2011","bma_CATUltCYAY2011","bma_UltCYOneYearDevelopmentAY2011","bma_UltCYTwoYearDevelopmentAY2011"]
["L4",2012,"XXX","XXX",{"$f":"Import!I9364","v":0},{"$f":"Import!I9368","v":0},{"$f":"Import!I9373","v":0},{"$f":"Import!I9379","v":0},{"$f":"Import!I9386","v":0},{"$f":"Import!I9394","v":0},{"$f":"Import!I9403","v":0},{"$f":"Import!I9413","v":0},{"$f":"Import!I9424","v":0},0,0,null,{"$f":"\"UltCY\"&E$10&\"AY\"&B13","v":"UltCY2012AY2011"},{"$f":"E13","v":0},"CATUltCY2019AY2016",0,"brrt_LossIncurredYearAxis_brrt_XNMinus7Member",null,null,null,null,null,null,null,null,null,null,null,null,null,null,null,null,{"$f":"\"bma_\"&\"UltCY\"&R$10&\"AY\"&$B14","v":"bma_UltCY0AY2012"},{"$f":"\"bma_\"&\"UltCY\"&S$10&\"AY\"&$B14","v":"bma_UltCYCATUltCY2019AY2012AY2012"},"bma_UltCY0AY2012","bma_UltCYAY2012","bma_UltCYAY2012","bma_UltCYAY2012","bma_UltCYAY2012","bma_UltCYAY2012","bma_CATUltCYAY2012","bma_UltCYOneYearDevelopmentAY2012","bma_UltCYTwoYearDevelopmentAY2012"]
["L5",2013,"XXX","XXX","XXX",{"$f":"Import!I9369","v":0},{"$f":"Import!I9374","v":0},{"$f":"Import!I9380","v":0},{"$f":"Import!I9387","v":0},{"$f":"Import!I9395","v":0},{"$f":"Import!I9404","v":0},{"$f":"Import!I9414","v":0},{"$f":"Import!I9425","v":0},0,0,null,{"$f":"\"UltCY\"&E$10&\"AY\"&B14","v":"UltCY2012AY2012"},{"$f":"E14","v":0},"CATUltCY2019AY2017",0,"brrt_LossIncurredYearAxis_brrt_XNMinus6Member",null,null,null,null,null,null,null,null,null,null,null,null,null,null,null,null,null,{"$f":"\"bma_\"&\"UltCY\"&S$10&\"AY\"&$B15","v":"bma_UltCYCATUltCY2019AY2012AY2013"},"bma_UltCY0AY2013","bma_UltCYAY2013","bma_UltCYAY2013","bma_UltCYAY2013","bma_UltCYAY2013","bma_UltCYAY2013","bma_CATUltCYAY2013","bma_UltCYOneYearDevelopmentAY2013","bma_UltCYTwoYearDevelopmentAY2013"]
["L6",2014,"XXX","XXX","XXX","XXX",{"$f":"Import!I9375","v":0},{"$f":"Import!I9381","v":0},{"$f":"Import!I9388","v":0},{"$f":"Import!I9396","v":0},{"$f":"Import!I9405","v":0},{"$f":"Import!I9415","v":0},{"$f":"Import!I9426","v":0},0,0,null,{"$f":"\"UltCY\"&F$10&\"AY\"&B11","v":"UltCY2013AYPrior"},{"$f":"F11","v":0},"CATUltCY2019AY2018",0,"brrt_LossIncurredYearAxis_brrt_XNMinus5Member",null,null,null,null,null,null,null,null,null,null,null,null,null,null,null,null,null,null,"bma_UltCY0AY2014","bma_UltCYAY2014","bma_UltCYAY2014","bma_UltCYAY2014","bma_UltCYAY2014","bma_UltCYAY2014","bma_CATUltCYAY2014","bma_UltCYOneYearDevelopmentAY2014","bma_UltCYTwoYearDevelopmentAY2014"]
["L7",2015,"XXX","XXX","XXX","XXX","XXX",{"$f":"Import!I9382","v":0},{"$f":"Import!I9389","v":0},{"$f":"Import!I9397","v":0},{"$f":"Import!I9406","v":0},{"$f":"Import!I9416","v":0},{"$f":"Import!I9427","v":0},0,0,null,{"$f":"\"UltCY\"&F$10&\"AY\"&B12","v":"UltCY2013AY2010"},{"$f":"F12","v":0},"CATUltCY2019AY2019",0,"brrt_LossIncurredYearAxis_brrt_XNMinus4Member",null,null,null,null,null,null,null,null,null,null,null,null,null,null,null,null,null,null,null,"bma_UltCYAY2015","bma_UltCYAY2015","bma_UltCYAY2015","bma_UltCYAY2015","bma_UltCYAY2015","bma_CATUltCYAY2015","bma_UltCYOneYearDevelopmentAY2015","bma_UltCYTwoYearDevelopmentAY2015"]
["L8",2016,"XXX","XXX","XXX","XXX","XXX","XXX",{"$f":"Import!I9390","v":0},{"$f":"Import!I9398","v":0},{"$f":"Import!I9407","v":0},{"$f":"Import!I9417","v":0},{"$f":"Import!I9428","v":0},0,0,null,{"$f":"\"UltCY\"&F$10&\"AY\"&B13","v":"UltCY2013AY2011"},{"$f":"F13","v":0},{"$f":"\"CATPaidCY\"&L$10&\"AY\"&B29","v":"CATPaidCY2019AYPrior"},{"$f":"M29","v":0},"brrt_LossIncurredYearAxis_brrt_XNMinus3Member",null,null,null,null,null,null,null,null,null,null,null,null,null,null,null,null,null,null,null,null,"bma_UltCYAY2016","bma_UltCYAY2016","bma_UltCYAY2016","bma_UltCYAY2016","bma_CATUltCYAY2016","bma_UltCYOneYearDevelopmentAY2016","bma_UltCYTwoYearDevelopmentAY2016"]
["L9",2017,"XXX","XXX","XXX","XXX","XXX","XXX","XXX",{"$f":"Import!I9399","v":0},{"$f":"Import!I9408","v":0},{"$f":"Import!I9418","v":0},{"$f":"Import!I9429","v":0},0,0,null,{"$f":"\"UltCY\"&F$10&\"AY\"&B14","v":"UltCY2013AY2012"},{"$f":"F14","v":0},"CATPaidCY2019AY2010",0,"brrt_LossIncurredYearAxis_brrt_XNMinus2Member",null,null,null,null,null,null,null,null,null,null,null,null,null,null,null,null,null,null,null,null,null,"bma_UltCYAY2017","bma_UltCYAY2017","bma_UltCYAY2017","bma_CATUltCYAY2017","bma_UltCYOneYearDevelopmentAY2017","bma_UltCYTwoYearDevelopmentAY2017"]
["L10",2018,"XXX","XXX","XXX","XXX","XXX","XXX","XXX","XXX",{"$f":"Import!I9409","v":0},{"$f":"Import!I9419","v":0},{"$f":"Import!I9430","v":0},0,"XXX",null,{"$f":"\"UltCY\"&F$10&\"AY\"&B15","v":"UltCY2013AY2013"},{"$f":"F15","v":0},"CATPaidCY2019AY2011",0,"brrt_LossIncurredYearAxis_brrt_XNMinus1Member",null,null,null,null,null,null,null,null,null,null,null,null,null,null,null,null,null,null,null,null,null,null,"bma_UltCYAY2018","bma_UltCYAY2018","bma_CATUltCYAY2018","bma_UltCYOneYearDevelopmentAY2018"]
["L11",{"$f":"L10","v":2019},"XXX","XXX","XXX","XXX","XXX","XXX","XXX","XXX","XXX",{"$f":"Import!I9420","v":0},{"$f":"Import!I9431","v":0},"XXX","XXX",null,{"$f":"\"UltCY\"&G$10&\"AY\"&B11","v":"UltCY2014AYPrior"},{"$f":"G11","v":0},"CATPaidCY2019AY2012",0,"brrt_LossIncurredYearAxis_brrt_XNMember",null,null,null,null,null,null,null,null,null,null,null,null,null,null,null,null,null,null,null,null,null,null,null,"bma_UltCYAY2019","bma_CATUltCYAY2019"]
["L12","Totals",null,null,null,null,null,null,null,null,null,null,{"$f":"SUM(M11:M21)","v":0},{"$f":"SUM(N11:N21)","v":0},{"$f":"SUM(O11:O21)","v":0},null,{"$f":"\"UltCY\"&G$10&\"AY\"&B12","v":"UltCY2014AY2010"},{"$f":"G12","v":0},"CATPaidCY2019AY2013",0,null,null,null,null,null,null,null,null,null,null,null,null,null,null,null,null,null,null,null,null,null,null,null,null,null,"bma_CATUltCYAYTotals","bma_UltCYOneYearDevelopmentAYTotals",{"$f":"\"bma_\"&\"UltCY\"&\"TwoYearDevelopment\"&\"AY\"&$B22","v":"bma_UltCYTwoYearDevelopmentAYTotals"}]
[null,null,null,null,null,null,null,null,null,null,null,null,null,null,null,null,{"$f":"\"UltCY\"&G$10&\"AY\"&B13","v":"UltCY2014AY2011"},{"$f":"G13","v":0},"CATPaidCY2019AY2014",0]
[null,null,"CUMULATIVE PAID NET LOSSES AND ALLOCATED LOSS ADJUSTMENT EXPENSES REPORTED AT YEAR END ($000)",null,null,null,null,null,null,null,null,null,24,null,null,null,{"$f":"\"UltCY\"&G$10&\"AY\"&B15","v":"UltCY2014AY2013"},{"$f":"G15","v":0},{"$f":"\"CATPaidCY\"&L$10&\"AY\"&B36","v":"CATPaidCY2019AY2016"},{"$f":"M36","v":0}]
[null,null,null,null,null,null,null,null,null,null,null,null,"Paid",null,null,null,{"$f":"\"UltCY\"&G$10&\"AY\"&B16","v":"UltCY2014AY2014"},{"$f":"G16","v":0},{"$f":"\"CATPaidCY\"&L$10&\"AY\"&B37","v":"CATPaidCY2019AY2017"},{"$f":"M37","v":0}]
[null,"Years in Which",14,15,16,17,18,19,20,21,22,23,"Catastrophe",null,null,null,{"$f":"\"UltCY\"&H$10&\"AY\"&B11","v":"UltCY2015AYPrior"},{"$f":"H11","v":0},{"$f":"\"CATPaidCY\"&L$10&\"AY\"&B38","v":"CATPaidCY2019AY2018"},{"$f":"M38","v":0}]
[null,"Policies Were",null,null,null,null,null,null,null,null,null,null,"Losses",null,null,null,"UltCY2015AY2010",0,{"$f":"\"CATPaidCY\"&L$10&\"AY\"&B39","v":"CATPaidCY2019AY2019"},{"$f":"M39","v":0}]
[null,"Written",{"$f":"D28-1","v":2010},2011,2012,2013,2014,2015,2016,2017,2018,{"$f":"L10","v":2019},{"$f":"L28","v":2019},null,null,null,"UltCY2015AY2011",0,{"$f":"\"CATIBNRCY\"&L$10&\"AY\"&B47","v":"CATIBNRCY2019AYPrior"},{"$f":"M47","v":0}]
["L13","Prior",{"$f":"Import!I9432","v":0},{"$f":"Import!I9434","v":0},{"$f":"Import!I9437","v":0},{"$f":"Import!I9441","v":0},{"$f":"Import!I9446","v":0},{"$f":"Import!I9452","v":0},{"$f":"Import!I9459","v":0},{"$f":"Import!I9467","v":0},{"$f":"Import!I9476","v":0},{"$f":"Import!I9486","v":0},{"$f":"Import!I9497","v":0},null,null,null,"UltCY2015AY2012",0,"CATIBNRCY2019AY2010",0,"brrt_PoliciesWrittenYearAxis_brrt_PriorMember",null,null,null,null,null,null,null,null,null,null,null,null,null,null,{"$f":"\"bma_\"&\"PaidCY\"&P$10&\"AY\"&$B29","v":"bma_PaidCYAYPrior"},"bma_PaidCYUltCY2011AY2010AYPrior","bma_PaidCY0AYPrior","bma_PaidCYCATUltCY2019AY2012AYPrior",{"$f":"\"bma_\"&\"PaidCY\"&T$10&\"AY\"&$B29","v":"bma_PaidCY0AYPrior"},{"$f":"\"bma_\"&\"PaidCY\"&U$10&\"AY\"&$B29","v":"bma_PaidCYAYPrior"},{"$f":"\"bma_\"&\"PaidCY\"&V$10&\"AY\"&$B29","v":"bma_PaidCYAYPrior"},{"$f":"\"bma_\"&\"PaidCY\"&W$10&\"AY\"&$B29","v":"bma_PaidCYAYPrior"},{"$f":"\"bma_\"&\"PaidCY\"&X$10&\"AY\"&$B29","v":"bma_PaidCYAYPrior"},{"$f":"\"bma_\"&\"PaidCY\"&Y$10&\"AY\"&$B29","v":"bma_PaidCYAYPrior"},{"$f":"\"bma_\"&\"CATPaidCY\"&Y$10&\"AY\"&$B29","v":"bma_CATPaidCYAYPrior"}]
["L14",{"$f":"B31-1","v":2010},{"$f":"Import!I9433","v":0},{"$f":"Import!I9435","v":0},{"$f":"Import!I9438","v":0},{"$f":"Import!I9442","v":0},{"$f":"Import!I9447","v":0},{"$f":"Import!I9453","v":0},{"$f":"Import!I9460","v":0},{"$f":"Import!I9468","v":0},{"$f":"Import!I9477","v":0},{"$f":"Import!I9487","v":0},{"$f":"Import!I9498","v":0},null,null,null,"UltCY2015AY2013",0,"CATIBNRCY2019AY2011",0,"brrt_PoliciesWrittenYearAxis_brrt_XNMinus9Member",null,null,null,null,null,null,null,null,null,null,null,null,null,null,"bma_PaidCYAY2010","bma_PaidCYUltCY2011AY2010AY2010","bma_PaidCY0AY2010","bma_PaidCYCATUltCY2019AY2012AY2010","bma_PaidCY0AY2010","bma_PaidCYAY2010","bma_PaidCYAY2010","bma_PaidCYAY2010","bma_PaidCYAY2010","bma_PaidCYAY2010","bma_CATPaidCYAY2010"]
["L15",2011,"XXX",{"$f":"Import!I9436","v":0},{"$f":"Import!I9439","v":0},{"$f":"Import!I9443","v":0},{"$f":"Import!I9448","v":0},{"$f":"Import!I9454","v":0},{"$f":"Import!I9461","v":0},{"$f":"Import!I9469","v":0},{"$f":"Import!I9478","v":0},{"$f":"Import!I9488","v":0},{"$f":"Import!I9499","v":0},null,null,null,"UltCY2015AY2014",0,"CATIBNRCY2019AY2012",0,"brrt_PoliciesWrittenYearAxis_brrt_XNMinus8Member",null,null,null,null,null,null,null,null,null,null,null,null,null,null,null,{"$f":"\"bma_\"&\"PaidCY\"&Q$10&\"AY\"&$B31","v":"bma_PaidCYUltCY2011AY2010AY2011"},{"$f":"\"bma_\"&\"PaidCY\"&R$10&\"AY\"&$B31","v":"bma_PaidCY0AY2011"},{"$f":"\"bma_\"&\"PaidCY\"&S$10&\"AY\"&$B31","v":"bma_PaidCYCATUltCY2019AY2012AY2011"},"bma_PaidCY0AY2011","bma_PaidCYAY2011","bma_PaidCYAY2011","bma_PaidCYAY2011","bma_PaidCYAY2011","bma_PaidCYAY2011","bma_CATPaidCYAY2011"]
["L16",2012,"XXX","XXX",{"$f":"Import!I9440","v":0},{"$f":"Import!I9444","v":0},{"$f":"Import!I9449","v":0},{"$f":"Import!I9455","v":0},{"$f":"Import!I9462","v":0},{"$f":"Import!I9470","v":0},{"$f":"Import!I9479","v":0},{"$f":"Import!I9489","v":0},{"$f":"Import!I9500","v":0},null,null,null,"UltCY2015AY2015",0,"CATIBNRCY2019AY2013",0,"brrt_PoliciesWrittenYearAxis_brrt_XNMinus7Member",null,null,null,null,null,null,null,null,null,null,null,null,null,null,null,null,{"$f":"\"bma_\"&\"PaidCY\"&R$10&\"AY\"&$B32","v":"bma_PaidCY0AY2012"},{"$f":"\"bma_\"&\"PaidCY\"&S$10&\"AY\"&$B32","v":"bma_PaidCYCATUltCY2019AY2012AY2012"},"bma_PaidCY0AY2012","bma_PaidCYAY2012","bma_PaidCYAY2012","bma_PaidCYAY2012","bma_PaidCYAY2012","bma_PaidCYAY2012","bma_CATPaidCYAY2012"]
["L17",2013,"XXX","XXX","XXX",{"$f":"Import!I9445","v":0},{"$f":"Import!I9450","v":0},{"$f":"Import!I9456","v":0},{"$f":"Import!I9463","v":0},{"$f":"Import!I9471","v":0},{"$f":"Import!I9480","v":0},{"$f":"Import!I9490","v":0},{"$f":"Import!I9501","v":0},null,null,null,{"$f":"\"UltCY\"&I$10&\"AY\"&B11","v":"UltCY2016AYPrior"},{"$f":"I11","v":0},"CATIBNRCY2019AY2014",0,"brrt_PoliciesWrittenYearAxis_brrt_XNMinus6Member",null,null,null,null,null,null,null,null,null,null,null,null,null,null,null,null,null,{"$f":"\"bma_\"&\"PaidCY\"&S$10&\"AY\"&$B33","v":"bma_PaidCYCATUltCY2019AY2012AY2013"},"bma_PaidCY0AY2013","bma_PaidCYAY2013","bma_PaidCYAY2013","bma_PaidCYAY2013","bma_PaidCYAY2013","bma_PaidCYAY2013","bma_CATPaidCYAY2013"]
["L18",2014,"XXX","XXX","XXX","XXX",{"$f":"Import!I9451","v":0},{"$f":"Import!I9457","v":0},{"$f":"Import!I9464","v":0},{"$f":"Import!I9472","v":0},{"$f":"Import!I9481","v":0},{"$f":"Import!I9491","v":0},{"$f":"Import!I9502","v":0},null,null,null,"UltCY2016AY2010",0,"CATIBNRCY2019AY2015",0,"brrt_PoliciesWrittenYearAxis_brrt_XNMinus5Member",null,null,null,null,null,null,null,null,null,null,null,null,null,null,null,null,null,null,"bma_PaidCY0AY2014","bma_PaidCYAY2014","bma_PaidCYAY2014","bma_PaidCYAY2014","bma_PaidCYAY2014","bma_PaidCYAY2014","bma_CATPaidCYAY2014"]
["L19",2015,"XXX","XXX","XXX","XXX","XXX",{"$f":"Import!I9458","v":0},{"$f":"Import!I9465","v":0},{"$f":"Import!I9473","v":0},{"$f":"Import!I9482","v":0},{"$f":"Import!I9492","v":0},{"$f":"Import!I9503","v":0},null,null,null,"UltCY2016AY2011",0,"CATIBNRCY2019AY2016",0,"brrt_PoliciesWrittenYearAxis_brrt_XNMinus4Member",null,null,null,null,null,null,null,null,null,null,null,null,null,null,null,null,null,null,null,{"$f":"\"bma_\"&\"PaidCY\"&U$10&\"AY\"&$B35","v":"bma_PaidCYAY2015"},{"$f":"\"bma_\"&\"PaidCY\"&V$10&\"AY\"&$B35","v":"bma_PaidCYAY2015"},{"$f":"\"bma_\"&\"PaidCY\"&W$10&\"AY\"&$B35","v":"bma_PaidCYAY2015"},{"$f":"\"bma_\"&\"PaidCY\"&X$10&\"AY\"&$B35","v":"bma_PaidCYAY2015"},{"$f":"\"bma_\"&\"PaidCY\"&Y$10&\"AY\"&$B35","v":"bma_PaidCYAY2015"},"bma_CATPaidCYAY2015"]
["L20",2016,"XXX","XXX","XXX","XXX","XXX","XXX",{"$f":"Import!I9466","v":0},{"$f":"Import!I9474","v":0},{"$f":"Import!I9483","v":0},{"$f":"Import!I9493","v":0},{"$f":"Import!I9504","v":0},null,null,null,"UltCY2016AY2012",0,"CATIBNRCY2019AY2017",0,"brrt_PoliciesWrittenYearAxis_brrt_XNMinus3Member",null,null,null,null,null,null,null,null,null,null,null,null,null,null,null,null,null,null,null,null,{"$f":"\"bma_\"&\"PaidCY\"&V$10&\"AY\"&$B36","v":"bma_PaidCYAY2016"},{"$f":"\"bma_\"&\"PaidCY\"&W$10&\"AY\"&$B36","v":"bma_PaidCYAY2016"},{"$f":"\"bma_\"&\"PaidCY\"&X$10&\"AY\"&$B36","v":"bma_PaidCYAY2016"},{"$f":"\"bma_\"&\"PaidCY\"&Y$10&\"AY\"&$B36","v":"bma_PaidCYAY2016"},"bma_CATPaidCYAY2016"]
["L21",2017,"XXX","XXX","XXX","XXX","XXX","XXX","XXX",{"$f":"Import!I9475","v":0},{"$f":"Import!I9484","v":0},{"$f":"Import!I9494","v":0},{"$f":"Import!I9505","v":0},null,null,null,"UltCY2016AY2013",0,"CATIBNRCY2019AY2018",0,"brrt_PoliciesWrittenYearAxis_brrt_XNMinus2Member",null,null,null,null,null,null,null,null,null,null,null,null,null,null,null,null,null,null,null,null,null,{"$f":"\"bma_\"&\"PaidCY\"&W$10&\"AY\"&$B37","v":"bma_PaidCYAY2017"},{"$f":"\"bma_\"&\"PaidCY\"&X$10&\"AY\"&$B37","v":"bma_PaidCYAY2017"},{"$f":"\"bma_\"&\"PaidCY\"&Y$10&\"AY\"&$B37","v":"bma_PaidCYAY2017"},"bma_CATPaidCYAY2017"]
["L22",2018,"XXX","XXX","XXX","XXX","XXX","XXX","XXX","XXX",{"$f":"Import!I9485","v":0},{"$f":"Import!I9495","v":0},{"$f":"Import!I9506","v":0},null,null,null,"UltCY2016AY2014",0,"CATIBNRCY2019AY2019",0,"brrt_PoliciesWrittenYearAxis_brrt_XNMinus1Member",null,null,null,null,null,null,null,null,null,null,null,null,null,null,null,null,null,null,null,null,null,null,{"$f":"\"bma_\"&\"PaidCY\"&X$10&\"AY\"&$B38","v":"bma_PaidCYAY2018"},{"$f":"\"bma_\"&\"PaidCY\"&Y$10&\"AY\"&$B38","v":"bma_PaidCYAY2018"},"bma_CATPaidCYAY2018"]
["L23",{"$f":"L28","v":2019},"XXX","XXX","XXX","XXX","XXX","XXX","XXX","XXX","XXX",{"$f":"Import!I9496","v":0},{"$f":"Import!I9507","v":0},null,null,null,"UltCY2016AY2015",0,null,null,"brrt_PoliciesWrittenYearAxis_brrt_XNMember",null,null,null,null,null,null,null,null,null,null,null,null,null,null,null,null,null,null,null,null,null,null,null,{"$f":"\"bma_\"&\"PaidCY\"&Y$10&\"AY\"&$B39","v":"bma_PaidCYAY2019"},"bma_CATPaidCYAY2019"]
["L24","Totals",null,null,null,null,null,null,null,null,null,null,{"$f":"SUM(M29:M39)","v":0},null,null,null,"UltCY2016AY2016",0,null,null,null,null,null,null,null,null,null,null,null,null,null,null,null,null,null,null,null,null,null,null,null,null,null,null,null,"bma_CATPaidCYAYTotals"]
[null,null,null,null,null,null,null,null,null,null,null,null,null,null,null,null,{"$f":"\"UltCY\"&J$10&\"AY\"&B11","v":"UltCY2017AYPrior"},{"$f":"J11","v":0}]
[null,null,"BULK & IBNR RESERVES ON NET LOSSES AND ALLOCATED LOSS ADJUSTMENT EXPENSES REPORTED AT YEAR END ($000)",null,null,null,null,null,null,null,null,null,35,null,null,null,{"$f":"\"UltCY\"&J$10&\"AY\"&B13","v":"UltCY2017AY2011"},{"$f":"J13","v":0}]
[null,null,null,null,null,null,null,null,null,null,null,null,"Losses",null,null,null,"UltCY2017AY2012",0]
[null,"Years in Which",25,26,27,28,29,30,31,32,33,34,"Bulk & IBNR",null,null,null,"UltCY2017AY2013",0]
[null,"Policies Were",null,null,null,null,null,null,null,null,null,null,"Reserves",null,null,null,"UltCY2017AY2014",0]
[null,"Written",{"$f":"D46-1","v":2010},2011,2012,2013,2014,2015,2016,2017,2018,{"$f":"L28","v":2019},{"$f":"L46","v":2019},null,null,null,"UltCY2017AY2015",0]
["L25","Prior",{"$f":"Import!I9508","v":0},{"$f":"Import!I9510","v":0},{"$f":"Import!I9513","v":0},{"$f":"Import!I9517","v":0},{"$f":"Import!I9522","v":0},{"$f":"Import!I9528","v":0},{"$f":"Import!I9535","v":0},{"$f":"Import!I9543","v":0},{"$f":"Import!I9552","v":0},{"$f":"Import!I9562","v":0},{"$f":"Import!I9573","v":0},null,null,null,"UltCY2017AY2016",0,null,null,"brrt_PoliciesWrittenYearAxis_brrt_PriorMember",null,null,null,null,null,null,null,null,null,null,null,null,null,null,{"$f":"\"bma_\"&\"IBNRCY\"&P$10&\"AY\"&$B47","v":"bma_IBNRCYAYPrior"},"bma_IBNRCYUltCY2011AY2010AYPrior","bma_IBNRCY0AYPrior","bma_IBNRCYCATUltCY2019AY2012AYPrior",{"$f":"\"bma_\"&\"IBNRCY\"&T$10&\"AY\"&$B47","v":"bma_IBNRCY0AYPrior"},{"$f":"\"bma_\"&\"IBNRCY\"&U$10&\"AY\"&$B47","v":"bma_IBNRCYAYPrior"},{"$f":"\"bma_\"&\"IBNRCY\"&V$10&\"AY\"&$B47","v":"bma_IBNRCYAYPrior"},{"$f":"\"bma_\"&\"IBNRCY\"&W$10&\"AY\"&$B47","v":"bma_IBNRCYAYPrior"},{"$f":"\"bma_\"&\"IBNRCY\"&X$10&\"AY\"&$B47","v":"bma_IBNRCYAYPrior"},{"$f":"\"bma_\"&\"IBNRCY\"&Y$10&\"AY\"&$B47","v":"bma_IBNRCYAYPrior"},{"$f":"\"bma_\"&\"CATIBNRCY\"&Y$10&\"AY\"&$B47","v":"bma_CATIBNRCYAYPrior"}]
["L26",{"$f":"B49-1","v":2010},{"$f":"Import!I9509","v":0},{"$f":"Import!I9511","v":0},{"$f":"Import!I9514","v":0},{"$f":"Import!I9518","v":0},{"$f":"Import!I9523","v":0},{"$f":"Import!I9529","v":0},{"$f":"Import!I9536","v":0},{"$f":"Import!I9544","v":0},{"$f":"Import!I9553","v":0},{"$f":"Import!I9563","v":0},{"$f":"Import!I9574","v":0},null,null,null,"UltCY2017AY2017",0,null,null,"brrt_PoliciesWrittenYearAxis_brrt_XNMinus9Member",null,null,null,null,null,null,null,null,null,null,null,null,null,null,"bma_IBNRCYAY2010","bma_IBNRCYUltCY2011AY2010AY2010","bma_IBNRCY0AY2010","bma_IBNRCYCATUltCY2019AY2012AY2010","bma_IBNRCY0AY2010","bma_IBNRCYAY2010","bma_IBNRCYAY2010","bma_IBNRCYAY2010","bma_IBNRCYAY2010","bma_IBNRCYAY2010","bma_CATIBNRCYAY2010"]
["L27",2011,"XXX",{"$f":"Import!I9512","v":0},{"$f":"Import!I9515","v":0},{"$f":"Import!I9519","v":0},{"$f":"Import!I9524","v":0},{"$f":"Import!I9530","v":0},{"$f":"Import!I9537","v":0},{"$f":"Import!I9545","v":0},{"$f":"Import!I9554","v":0},{"$f":"Import!I9564","v":0},{"$f":"Import!I9575","v":0},null,null,null,{"$f":"\"UltCY\"&K$10&\"AY\"&B11","v":"UltCY2018AYPrior"},{"$f":"K11","v":0},null,null,"brrt_PoliciesWrittenYearAxis_brrt_XNMinus8Member",null,null,null,null,null,null,null,null,null,null,null,null,null,null,null,{"$f":"\"bma_\"&\"IBNRCY\"&Q$10&\"AY\"&$B49","v":"bma_IBNRCYUltCY2011AY2010AY2011"},{"$f":"\"bma_\"&\"IBNRCY\"&R$10&\"AY\"&$B49","v":"bma_IBNRCY0AY2011"},{"$f":"\"bma_\"&\"IBNRCY\"&S$10&\"AY\"&$B49","v":"bma_IBNRCYCATUltCY2019AY2012AY2011"},"bma_IBNRCY0AY2011","bma_IBNRCYAY2011","bma_IBNRCYAY2011","bma_IBNRCYAY2011","bma_IBNRCYAY2011","bma_IBNRCYAY2011","bma_CATIBNRCYAY2011"]
["L28",2012,"XXX","XXX",{"$f":"Import!I9516","v":0},{"$f":"Import!I9520","v":0},{"$f":"Import!I9525","v":0},{"$f":"Import!I9531","v":0},{"$f":"Import!I9538","v":0},{"$f":"Import!I9546","v":0},{"$f":"Import!I9555","v":0},{"$f":"Import!I9565","v":0},{"$f":"Import!I9576","v":0},null,null,null,"UltCY2018AY2010",0,null,null,"brrt_PoliciesWrittenYearAxis_brrt_XNMinus7Member",null,null,null,null,null,null,null,null,null,null,null,null,null,null,null,null,{"$f":"\"bma_\"&\"IBNRCY\"&R$10&\"AY\"&$B50","v":"bma_IBNRCY0AY2012"},{"$f":"\"bma_\"&\"IBNRCY\"&S$10&\"AY\"&$B50","v":"bma_IBNRCYCATUltCY2019AY2012AY2012"},"bma_IBNRCY0AY2012","bma_IBNRCYAY2012","bma_IBNRCYAY2012","bma_IBNRCYAY2012","bma_IBNRCYAY2012","bma_IBNRCYAY2012","bma_CATIBNRCYAY2012"]
["L29",2013,"XXX","XXX","XXX",{"$f":"Import!I9521","v":0},{"$f":"Import!I9526","v":0},{"$f":"Import!I9532","v":0},{"$f":"Import!I9539","v":0},{"$f":"Import!I9547","v":0},{"$f":"Import!I9556","v":0},{"$f":"Import!I9566","v":0},{"$f":"Import!I9577","v":0},null,null,null,"UltCY2018AY2011",0,null,null,"brrt_PoliciesWrittenYearAxis_brrt_XNMinus6Member",null,null,null,null,null,null,null,null,null,null,null,null,null,null,null,null,null,{"$f":"\"bma_\"&\"IBNRCY\"&S$10&\"AY\"&$B51","v":"bma_IBNRCYCATUltCY2019AY2012AY2013"},"bma_IBNRCY0AY2013","bma_IBNRCYAY2013","bma_IBNRCYAY2013","bma_IBNRCYAY2013","bma_IBNRCYAY2013","bma_IBNRCYAY2013","bma_CATIBNRCYAY2013"]
["L30",2014,"XXX","XXX","XXX","XXX",{"$f":"Import!I9527","v":0},{"$f":"Import!I9533","v":0},{"$f":"Import!I9540","v":0},{"$f":"Import!I9548","v":0},{"$f":"Import!I9557","v":0},{"$f":"Import!I9567","v":0},{"$f":"Import!I9578","v":0},null,null,null,"UltCY2018AY2012",0,null,null,"brrt_PoliciesWrittenYearAxis_brrt_XNMinus5Member",null,null,null,null,null,null,null,null,null,null,null,null,null,null,null,null,null,null,"bma_IBNRCY0AY2014","bma_IBNRCYAY2014","bma_IBNRCYAY2014","bma_IBNRCYAY2014","bma_IBNRCYAY2014","bma_IBNRCYAY2014","bma_CATIBNRCYAY2014"]
["L31",2015,"XXX","XXX","XXX","XXX","XXX",{"$f":"Import!I9534","v":0},{"$f":"Import!I9541","v":0},{"$f":"Import!I9549","v":0},{"$f":"Import!I9558","v":0},{"$f":"Import!I9568","v":0},{"$f":"Import!I9579","v":0},null,null,null,"UltCY2018AY2013",0,null,null,"brrt_PoliciesWrittenYearAxis_brrt_XNMinus4Member",null,null,null,null,null,null,null,null,null,null,null,null,null,null,null,null,null,null,null,{"$f":"\"bma_\"&\"IBNRCY\"&U$10&\"AY\"&$B53","v":"bma_IBNRCYAY2015"},{"$f":"\"bma_\"&\"IBNRCY\"&V$10&\"AY\"&$B53","v":"bma_IBNRCYAY2015"},{"$f":"\"bma_\"&\"IBNRCY\"&W$10&\"AY\"&$B53","v":"bma_IBNRCYAY2015"},{"$f":"\"bma_\"&\"IBNRCY\"&X$10&\"AY\"&$B53","v":"bma_IBNRCYAY2015"},{"$f":"\"bma_\"&\"IBNRCY\"&Y$10&\"AY\"&$B53","v":"bma_IBNRCYAY2015"},"bma_CATIBNRCYAY2015"]
["L32",2016,"XXX","XXX","XXX","XXX","XXX","XXX",{"$f":"Import!I9542","v":0},{"$f":"Import!I9550","v":0},{"$f":"Import!I9559","v":0},{"$f":"Import!I9569","v":0},{"$f":"Import!I9580","v":0},null,null,null,"UltCY2018AY2014",0,null,null,"brrt_PoliciesWrittenYearAxis_brrt_XNMinus3Member",null,null,null,null,null,null,null,null,null,null,null,null,null,null,null,null,null,null,null,null,{"$f":"\"bma_\"&\"IBNRCY\"&V$10&\"AY\"&$B54","v":"bma_IBNRCYAY2016"},{"$f":"\"bma_\"&\"IBNRCY\"&W$10&\"AY\"&$B54","v":"bma_IBNRCYAY2016"},{"$f":"\"bma_\"&\"IBNRCY\"&X$10&\"AY\"&$B54","v":"bma_IBNRCYAY2016"},{"$f":"\"bma_\"&\"IBNRCY\"&Y$10&\"AY\"&$B54","v":"bma_IBNRCYAY2016"},"bma_CATIBNRCYAY2016"]
["L33",2017,"XXX","XXX","XXX","XXX","XXX","XXX","XXX",{"$f":"Import!I9551","v":0},{"$f":"Import!I9560","v":0},{"$f":"Import!I9570","v":0},{"$f":"Import!I9581","v":0},null,null,null,"UltCY2018AY2015",0,null,null,"brrt_PoliciesWrittenYearAxis_brrt_XNMinus2Member",null,null,null,null,null,null,null,null,null,null,null,null,null,null,null,null,null,null,null,null,null,{"$f":"\"bma_\"&\"IBNRCY\"&W$10&\"AY\"&$B55","v":"bma_IBNRCYAY2017"},{"$f":"\"bma_\"&\"IBNRCY\"&X$10&\"AY\"&$B55","v":"bma_IBNRCYAY2017"},{"$f":"\"bma_\"&\"IBNRCY\"&Y$10&\"AY\"&$B55","v":"bma_IBNRCYAY2017"},"bma_CATIBNRCYAY2017"]
["L34",2018,"XXX","XXX","XXX","XXX","XXX","XXX","XXX","XXX",{"$f":"Import!I9561","v":0},{"$f":"Import!I9571","v":0},{"$f":"Import!I9582","v":0},null,null,null,"UltCY2018AY2016",0,null,null,"brrt_PoliciesWrittenYearAxis_brrt_XNMinus1Member",null,null,null,null,null,null,null,null,null,null,null,null,null,null,null,null,null,null,null,null,null,null,{"$f":"\"bma_\"&\"IBNRCY\"&X$10&\"AY\"&$B56","v":"bma_IBNRCYAY2018"},{"$f":"\"bma_\"&\"IBNRCY\"&Y$10&\"AY\"&$B56","v":"bma_IBNRCYAY2018"},"bma_CATIBNRCYAY2018"]
["L35",{"$f":"L46","v":2019},"XXX","XXX","XXX","XXX","XXX","XXX","XXX","XXX","XXX",{"$f":"Import!I9572","v":0},{"$f":"Import!I9583","v":0},null,null,null,"UltCY2018AY2017",0,null,null,"brrt_PoliciesWrittenYearAxis_brrt_XNMember",null,null,null,null,null,null,null,null,null,null,null,null,null,null,null,null,null,null,null,null,null,null,null,{"$f":"\"bma_\"&\"IBNRCY\"&Y$10&\"AY\"&$B57","v":"bma_IBNRCYAY2019"},"bma_CATIBNRCYAY2019"]
["L36","Totals",null,null,null,null,null,null,null,null,null,null,{"$f":"SUM(M47:M57)","v":0},null,null,null,"UltCY2018AY2018",0,null,null,null,null,null,null,null,null,null,null,null,null,null,null,null,null,null,null,null,null,null,null,null,null,null,null,null,"bma_CATIBNRCYAYTotals"]
[null,null,null,null,null,null,null,null,null,null,null,null,null,null,null,null,{"$f":"\"UltCY\"&L$10&\"AY\"&B11","v":"UltCY2019AYPrior"},{"$f":"L11","v":0}]
[null,null,36,37,38,39,"Unallocated Loss",null,null,42,43,44,45,null,null,null,{"$f":"\"UltCY\"&L$10&\"AY\"&B13","v":"UltCY2019AY2011"},{"$f":"L13","v":0}]
[null,"Years in Which",null,null,null,null,"Adjustment Expenses",null,null,null,null,null,null,null,null,null,"UltCY2019AY2012",0]
[null,"Premiums",null,null,null,null,40,41,null,null,null,null,null,null,null,null,"UltCY2019AY2013",0]
[null,"Were",null,null,null,null,null,null,null,"Commission and","General and",null,null,null,null,null,"UltCY2019AY2014",0]
[null,"Earned and","Gross","Gross","Net","Net",null,null,null,"Brokerage","Administrative","Personnel","Other",null,null,null,"UltCY2019AY2015",0]
[null,"Losses Were","Premiums","Premiums","Premiums","Premiums",null,null,"Calendar","Expense","Expense","Costs","Expense",null,null,null,"UltCY2019AY2016",0]
[null,"Incurred","Written","Earned","Written","Earned","Paid","Incurred","Year","(Form 2A, Line 9)","(Form 2A, Line 10)","(Form 2A, Line 11)","(Form 2A, Line 12)",null,null,null,"UltCY2019AY2017",0]
["L37","Prior","XXX",{"$f":"C67","v":"XXX"},"XXX",{"$f":"E67","v":"XXX"},{"$f":"Import!I9628","v":0},{"$f":"Import!I9639","v":0},"Prior",{"$f":"Import!I9650","v":0},{"$f":"Import!I9661","v":0},{"$f":"Import!I9672","v":0},{"$f":"Import!I9683","v":0},null,null,null,"UltCY2019AY2018",0,null,null,"brrt_PremiumsEarnedLossesIncurredYearAxis_brrt_PriorMember","brrt_CalendarYearAxis_brrt_PriorMember",null,null,null,null,null,null,null,null,null,null,null,null,null,null,null,null,null,{"$f":"\"bma_\"&\"NetAOEPaid\"&$B67","v":"bma_NetAOEPaidPrior"},{"$f":"\"bma_\"&\"NetAOEIncurred\"&$B67","v":"bma_NetAOEIncurredPrior"},null,{"$f":"\"bma_\"&\"CommissionsAndBrokerage\"&$B67","v":"bma_CommissionsAndBrokeragePrior"},{"$f":"\"bma_\"&\"GeneralAndAdministrative\"&$B67","v":"bma_GeneralAndAdministrativePrior"},{"$f":"\"bma_\"&\"PersonnelCosts\"&$B67","v":"bma_PersonnelCostsPrior"},{"$f":"\"bma_\"&\"UnderwritingExpensesOther\"&$B67","v":"bma_UnderwritingExpensesOtherPrior"}]
["L38",{"$f":"B69-1","v":2010},{"$f":"Import!I9585","v":0},{"$f":"Import!I9596","v":0},{"$f":"Import!I9607","v":0},{"$f":"Import!I9618","v":0},{"$f":"Import!I9629","v":0},{"$f":"Import!I9640","v":0},{"$f":"B68","v":2010},{"$f":"Import!I9651","v":0},{"$f":"Import!I9662","v":0},{"$f":"Import!I9673","v":0},{"$f":"Import!I9684","v":0},null,null,null,"UltCY2019AY2019",0,null,null,"brrt_PremiumsEarnedLossesIncurredYearAxis_brrt_XNMinus9Member","brrt_CalendarYearAxis_brrt_XNMinus9Member",null,null,null,null,null,null,null,null,null,null,null,null,null,{"$f":"\"bma_\"&\"GrossWP\"&$B68","v":"bma_GrossWP2010"},{"$f":"\"bma_\"&\"GrossEP\"&$B68","v":"bma_GrossEP2010"},{"$f":"\"bma_\"&\"NetWP\"&$B68","v":"bma_NetWP2010"},{"$f":"\"bma_\"&\"NetEP\"&$B68","v":"bma_NetEP2010"},{"$f":"\"bma_\"&\"NetAOEPaid\"&$B68","v":"bma_NetAOEPaid2010"},{"$f":"\"bma_\"&\"NetAOEIncurred\"&$B68","v":"bma_NetAOEIncurred2010"},null,{"$f":"\"bma_\"&\"CommissionsAndBrokerage\"&$B68","v":"bma_CommissionsAndBrokerage2010"},{"$f":"\"bma_\"&\"GeneralAndAdministrative\"&$B68","v":"bma_GeneralAndAdministrative2010"},{"$f":"\"bma_\"&\"PersonnelCosts\"&$B68","v":"bma_PersonnelCosts2010"},{"$f":"\"bma_\"&\"UnderwritingExpensesOther\"&$B68","v":"bma_UnderwritingExpensesOther2010"}]
["L39",2011,{"$f":"Import!I9586","v":0},{"$f":"Import!I9597","v":0},{"$f":"Import!I9608","v":0},{"$f":"Import!I9619","v":0},{"$f":"Import!I9630","v":0},{"$f":"Import!I9641","v":0},2011,{"$f":"Import!I9652","v":0},{"$f":"Import!I9663","v":0},{"$f":"Import!I9674","v":0},{"$f":"Import!I9685","v":0},null,null,null,{"$f":"\"PaidCY\"&C$10&\"AY\"&B29","v":"PaidCY2010AYPrior"},{"$f":"C29","v":0},null,null,"brrt_PremiumsEarnedLossesIncurredYearAxis_brrt_XNMinus8Member","brrt_CalendarYearAxis_brrt_XNMinus8Member",null,null,null,null,null,null,null,null,null,null,null,null,null,{"$f":"\"bma_\"&\"GrossWP\"&$B69","v":"bma_GrossWP2011"},{"$f":"\"bma_\"&\"GrossEP\"&$B69","v":"bma_GrossEP2011"},{"$f":"\"bma_\"&\"NetWP\"&$B69","v":"bma_NetWP2011"},{"$f":"\"bma_\"&\"NetEP\"&$B69","v":"bma_NetEP2011"},"bma_NetAOEPaid2011","bma_NetAOEIncurred2011",null,"bma_CommissionsAndBrokerage2011","bma_GeneralAndAdministrative2011","bma_PersonnelCosts2011","bma_UnderwritingExpensesOther2011"]
["L40",2012,{"$f":"Import!I9587","v":0},{"$f":"Import!I9598","v":0},{"$f":"Import!I9609","v":0},{"$f":"Import!I9620","v":0},{"$f":"Import!I9631","v":0},{"$f":"Import!I9642","v":0},2012,{"$f":"Import!I9653","v":0},{"$f":"Import!I9664","v":0},{"$f":"Import!I9675","v":0},{"$f":"Import!I9686","v":0},null,null,null,{"$f":"\"PaidCY\"&C$10&\"AY\"&B30","v":"PaidCY2010AY2010"},{"$f":"C30","v":0},null,null,"brrt_PremiumsEarnedLossesIncurredYearAxis_brrt_XNMinus7Member","brrt_CalendarYearAxis_brrt_XNMinus7Member",null,null,null,null,null,null,null,null,null,null,null,null,null,"bma_GrossWP2012","bma_GrossEP2012","bma_NetWP2012","bma_NetEP2012","bma_NetAOEPaid2012","bma_NetAOEIncurred2012",null,"bma_CommissionsAndBrokerage2012","bma_GeneralAndAdministrative2012","bma_PersonnelCosts2012","bma_UnderwritingExpensesOther2012"]
["L41",2013,{"$f":"Import!I9588","v":0},{"$f":"Import!I9599","v":0},{"$f":"Import!I9610","v":0},{"$f":"Import!I9621","v":0},{"$f":"Import!I9632","v":0},{"$f":"Import!I9643","v":0},2013,{"$f":"Import!I9654","v":0},{"$f":"Import!I9665","v":0},{"$f":"Import!I9676","v":0},{"$f":"Import!I9687","v":0},null,null,null,{"$f":"\"PaidCY\"&D$10&\"AY\"&B29","v":"PaidCY2011AYPrior"},{"$f":"D29","v":0},null,null,"brrt_PremiumsEarnedLossesIncurredYearAxis_brrt_XNMinus6Member","brrt_CalendarYearAxis_brrt_XNMinus6Member",null,null,null,null,null,null,null,null,null,null,null,null,null,"bma_GrossWP2013","bma_GrossEP2013","bma_NetWP2013","bma_NetEP2013","bma_NetAOEPaid2013","bma_NetAOEIncurred2013",null,"bma_CommissionsAndBrokerage2013","bma_GeneralAndAdministrative2013","bma_PersonnelCosts2013","bma_UnderwritingExpensesOther2013"]
["L42",2014,{"$f":"Import!I9589","v":0},{"$f":"Import!I9600","v":0},{"$f":"Import!I9611","v":0},{"$f":"Import!I9622","v":0},{"$f":"Import!I9633","v":0},{"$f":"Import!I9644","v":0},2014,{"$f":"Import!I9655","v":0},{"$f":"Import!I9666","v":0},{"$f":"Import!I9677","v":0},{"$f":"Import!I9688","v":0},null,null,null,{"$f":"\"PaidCY\"&D$10&\"AY\"&B30","v":"PaidCY2011AY2010"},{"$f":"D30","v":0},null,null,"brrt_PremiumsEarnedLossesIncurredYearAxis_brrt_XNMinus5Member","brrt_CalendarYearAxis_brrt_XNMinus5Member",null,null,null,null,null,null,null,null,null,null,null,null,null,"bma_GrossWP2014","bma_GrossEP2014","bma_NetWP2014","bma_NetEP2014","bma_NetAOEPaid2014","bma_NetAOEIncurred2014",null,"bma_CommissionsAndBrokerage2014","bma_GeneralAndAdministrative2014","bma_PersonnelCosts2014","bma_UnderwritingExpensesOther2014"]
["L43",2015,{"$f":"Import!I9590","v":0},{"$f":"Import!I9601","v":0},{"$f":"Import!I9612","v":0},{"$f":"Import!I9623","v":0},{"$f":"Import!I9634","v":0},{"$f":"Import!I9645","v":0},2015,{"$f":"Import!I9656","v":0},{"$f":"Import!I9667","v":0},{"$f":"Import!I9678","v":0},{"$f":"Import!I9689","v":0},null,null,null,{"$f":"\"PaidCY\"&D$10&\"AY\"&B31","v":"PaidCY2011AY2011"},{"$f":"D31","v":0},null,null,"brrt_PremiumsEarnedLossesIncurredYearAxis_brrt_XNMinus4Member","brrt_CalendarYearAxis_brrt_XNMinus4Member",null,null,null,null,null,null,null,null,null,null,null,null,null,"bma_GrossWP2015","bma_GrossEP2015","bma_NetWP2015","bma_NetEP2015","bma_NetAOEPaid2015","bma_NetAOEIncurred2015",null,"bma_CommissionsAndBrokerage2015","bma_GeneralAndAdministrative2015","bma_PersonnelCosts2015","bma_UnderwritingExpensesOther2015"]
["L44",2016,{"$f":"Import!I9591","v":0},{"$f":"Import!I9602","v":0},{"$f":"Import!I9613","v":0},{"$f":"Import!I9624","v":0},{"$f":"Import!I9635","v":0},{"$f":"Import!I9646","v":0},2016,{"$f":"Import!I9657","v":0},{"$f":"Import!I9668","v":0},{"$f":"Import!I9679","v":0},{"$f":"Import!I9690","v":0},null,null,null,{"$f":"\"PaidCY\"&E$10&\"AY\"&B29","v":"PaidCY2012AYPrior"},{"$f":"E29","v":0},null,null,"brrt_PremiumsEarnedLossesIncurredYearAxis_brrt_XNMinus3Member","brrt_CalendarYearAxis_brrt_XNMinus3Member",null,null,null,null,null,null,null,null,null,null,null,null,null,"bma_GrossWP2016","bma_GrossEP2016","bma_NetWP2016","bma_NetEP2016","bma_NetAOEPaid2016","bma_NetAOEIncurred2016",null,"bma_CommissionsAndBrokerage2016","bma_GeneralAndAdministrative2016","bma_PersonnelCosts2016","bma_UnderwritingExpensesOther2016"]
["L45",2017,{"$f":"Import!I9592","v":0},{"$f":"Import!I9603","v":0},{"$f":"Import!I9614","v":0},{"$f":"Import!I9625","v":0},{"$f":"Import!I9636","v":0},{"$f":"Import!I9647","v":0},2017,{"$f":"Import!I9658","v":0},{"$f":"Import!I9669","v":0},{"$f":"Import!I9680","v":0},{"$f":"Import!I9691","v":0},null,null,null,{"$f":"\"PaidCY\"&E$10&\"AY\"&B30","v":"PaidCY2012AY2010"},{"$f":"E30","v":0},null,null,"brrt_PremiumsEarnedLossesIncurredYearAxis_brrt_XNMinus2Member","brrt_CalendarYearAxis_brrt_XNMinus2Member",null,null,null,null,null,null,null,null,null,null,null,null,null,"bma_GrossWP2017","bma_GrossEP2017","bma_NetWP2017","bma_NetEP2017","bma_NetAOEPaid2017","bma_NetAOEIncurred2017",null,"bma_CommissionsAndBrokerage2017","bma_GeneralAndAdministrative2017","bma_PersonnelCosts2017","bma_UnderwritingExpensesOther2017"]
["L46",2018,{"$f":"Import!I9593","v":0},{"$f":"Import!I9604","v":0},{"$f":"Import!I9615","v":0},{"$f":"Import!I9626","v":0},{"$f":"Import!I9637","v":0},{"$f":"Import!I9648","v":0},2018,{"$f":"Import!I9659","v":0},{"$f":"Import!I9670","v":0},{"$f":"Import!I9681","v":0},{"$f":"Import!I9692","v":0},null,null,null,{"$f":"\"PaidCY\"&E$10&\"AY\"&B31","v":"PaidCY2012AY2011"},{"$f":"E31","v":0},null,null,"brrt_PremiumsEarnedLossesIncurredYearAxis_brrt_XNMinus1Member","brrt_CalendarYearAxis_brrt_XNMinus1Member",null,null,null,null,null,null,null,null,null,null,null,null,null,"bma_GrossWP2018","bma_GrossEP2018","bma_NetWP2018","bma_NetEP2018","bma_NetAOEPaid2018","bma_NetAOEIncurred2018",null,"bma_CommissionsAndBrokerage2018","bma_GeneralAndAdministrative2018","bma_PersonnelCosts2018","bma_UnderwritingExpensesOther2018"]
["L47",{"$f":"B39","v":2019},{"$f":"Import!I9594","v":0},{"$f":"Import!I9605","v":0},{"$f":"Import!I9616","v":0},{"$f":"Import!I9627","v":0},{"$f":"Import!I9638","v":0},{"$f":"Import!I9649","v":0},2019,{"$f":"Import!I9660","v":0},{"$f":"Import!I9671","v":0},{"$f":"Import!I9682","v":0},{"$f":"Import!I9693","v":0},null,null,null,{"$f":"\"PaidCY\"&E$10&\"AY\"&B32","v":"PaidCY2012AY2012"},{"$f":"E32","v":0},null,null,"brrt_PremiumsEarnedLossesIncurredYearAxis_brrt_XNMember","brrt_CalendarYearAxis_brrt_XNMember",null,null,null,null,null,null,null,null,null,null,null,null,null,"bma_GrossWP2019","bma_GrossEP2019","bma_NetWP2019","bma_NetEP2019","bma_NetAOEPaid2019","bma_NetAOEIncurred2019",null,"bma_CommissionsAndBrokerage2019","bma_GeneralAndAdministrative2019","bma_PersonnelCosts2019","bma_UnderwritingExpensesOther2019"]
["L48","Totals","XXX",{"$f":"C78","v":"XXX"},"XXX",{"$f":"E78","v":"XXX"},{"$f":"SUM(G67:G77)","v":0},{"$f":"SUM(H67:H77)","v":0},"Totals",{"$f":"SUM(J67:J77)","v":0},{"$f":"SUM(K67:K77)","v":0},{"$f":"SUM(L67:L77)","v":0},{"$f":"SUM(M67:M77)","v":0},null,null,null,{"$f":"\"PaidCY\"&F$10&\"AY\"&B29","v":"PaidCY2013AYPrior"},{"$f":"F29","v":0},null,null,null,null,null,null,null,null,null,null,null,null,null,null,null,null,null,null,null,null,null,"bma_NetAOEPaidTotals","bma_NetAOEIncurredTotals",null,"bma_CommissionsAndBrokerageTotals","bma_GeneralAndAdministrativeTotals","bma_PersonnelCostsTotals","bma_UnderwritingExpensesOtherTotals"]
[null,null,null,null,null,null,null,null,null,null,null,null,null,null,null,null,{"$f":"\"PaidCY\"&F$10&\"AY\"&B30","v":"PaidCY2013AY2010"},{"$f":"F30","v":0}]
[null,"COMMENTS",null,null,null,null,null,null,null,null,null,null,null,null,null,null,{"$f":"\"PaidCY\"&F$10&\"AY\"&B31","v":"PaidCY2013AY2011"},{"$f":"F31","v":0}]
[null,{"$f":"Import!I9694","v":0},null,null,null,null,null,null,null,null,null,null,null,null,null,null,{"$f":"\"PaidCY\"&G$10&\"AY\"&B30","v":"PaidCY2014AY2010"},{"$f":"G30","v":0},null,null,"brrt_LossTrianglesComments",{"$f":"XBRLMap(B81,U81&\".\"&U4&\".\"&U7,$B$95,$B$96,CONFIGURATION!$B$10,\"BMA\",CONFIGURATION!$B$1,\"bscr\")","v":"Mapped"},null,null,null,null,null,null,null,null,null,null,null,null,null,"bma_ScheduleOfLossTrianglesComments"]
[null,null,null,null,null,null,null,null,null,null,null,null,null,null,null,null,{"$f":"\"PaidCY\"&G$10&\"AY\"&B31","v":"PaidCY2014AY2011"},{"$f":"G31","v":0}]
[null,null,null,null,null,null,null,null,null,null,null,null,null,null,null,null,{"$f":"\"PaidCY\"&G$10&\"AY\"&B32","v":"PaidCY2014AY2012"},{"$f":"G32","v":0}]
[null,null,null,null,null,null,null,null,null,null,null,null,null,null,null,null,{"$f":"\"PaidCY\"&G$10&\"AY\"&B34","v":"PaidCY2014AY2014"},{"$f":"G34","v":0}]
[null,null,"brrt_IncurredEstimatedUltimateNetLossesAndAllocatedLossAdjustmentExpenses","brrt_IncurredEstimatedUltimateNetLossesAndAllocatedLossAdjustmentExpenses","brrt_IncurredEstimatedUltimateNetLossesAndAllocatedLossAdjustmentExpenses","brrt_IncurredEstimatedUltimateNetLossesAndAllocatedLossAdjustmentExpenses","brrt_IncurredEstimatedUltimateNetLossesAndAllocatedLossAdjustmentExpenses","brrt_IncurredEstimatedUltimateNetLossesAndAllocatedLossAdjustmentExpenses","brrt_IncurredEstimatedUltimateNetLossesAndAllocatedLossAdjustmentExpenses","brrt_IncurredEstimatedUltimateNetLossesAndAllocatedLossAdjustmentExpenses","brrt_IncurredEstimatedUltimateNetLossesAndAllocatedLossAdjustmentExpenses","brrt_IncurredEstimatedUltimateNetLossesAndAllocatedLossAdjustmentExpenses","brrt_UltimateCatastropheLosses",null,null,null,{"$f":"\"PaidCY\"&H$10&\"AY\"&B29","v":"PaidCY2015AYPrior"},{"$f":"H29","v":0}]
[null,null,"brrt_CumulativePaidNetLossesAndAllocatedLossAdjustmentExpenses","brrt_CumulativePaidNetLossesAndAllocatedLossAdjustmentExpenses","brrt_CumulativePaidNetLossesAndAllocatedLossAdjustmentExpenses","brrt_CumulativePaidNetLossesAndAllocatedLossAdjustmentExpenses","brrt_CumulativePaidNetLossesAndAllocatedLossAdjustmentExpenses","brrt_CumulativePaidNetLossesAndAllocatedLossAdjustmentExpenses","brrt_CumulativePaidNetLossesAndAllocatedLossAdjustmentExpenses","brrt_CumulativePaidNetLossesAndAllocatedLossAdjustmentExpenses","brrt_CumulativePaidNetLossesAndAllocatedLossAdjustmentExpenses","brrt_CumulativePaidNetLossesAndAllocatedLossAdjustmentExpenses","brrt_PaidCatastropheLosses",null,null,null,"PaidCY2015AY2010",0]
[null,null,"brrt_BulkAndIBNRReservesOnNetLossesAndAllocatedLossAdjustmentExpenses","brrt_BulkAndIBNRReservesOnNetLossesAndAllocatedLossAdjustmentExpenses","brrt_BulkAndIBNRReservesOnNetLossesAndAllocatedLossAdjustmentExpenses","brrt_BulkAndIBNRReservesOnNetLossesAndAllocatedLossAdjustmentExpenses","brrt_BulkAndIBNRReservesOnNetLossesAndAllocatedLossAdjustmentExpenses","brrt_BulkAndIBNRReservesOnNetLossesAndAllocatedLossAdjustmentExpenses","brrt_BulkAndIBNRReservesOnNetLossesAndAllocatedLossAdjustmentExpenses","brrt_BulkAndIBNRReservesOnNetLossesAndAllocatedLossAdjustmentExpenses","brrt_BulkAndIBNRReservesOnNetLossesAndAllocatedLossAdjustmentExpenses","brrt_BulkAndIBNRReservesOnNetLossesAndAllocatedLossAdjustmentExpenses","brrt_LossesBulkAndBNRReserves",null,null,null,"PaidCY2015AY2011",0]
[null,null,"brrt_GrossPremiumsWritten","brrt_GrossPremiumsEarned","brrt_NetPremiumsWritten","brrt_NetPremiumsEarned","brrt_UnallocatedLossAdjustmentExpensesPaid","brrt_UnallocatedLossAdjustmentExpensesIncurred",null,"brrt_CommissionsAndBrokerage","brrt_GeneralAndAdministrative","brrt_PersonnelCosts","brrt_OtherUnderwritingExpenses",null,null,null,"PaidCY2015AY2012",0]
[null,null,"brrt_ReportingYearAxis_brrt_YNMinus9Member","brrt_ReportingYearAxis_brrt_YNMinus8Member","brrt_ReportingYearAxis_brrt_YNMinus7Member","brrt_ReportingYearAxis_brrt_YNMinus6Member","brrt_ReportingYearAxis_brrt_YNMinus5Member","brrt_ReportingYearAxis_brrt_YNMinus4Member","brrt_ReportingYearAxis_brrt_YNMinus3Member","brrt_ReportingYearAxis_brrt_YNMinus2Member","brrt_ReportingYearAxis_brrt_YNMinus1Member","brrt_ReportingYearAxis_brrt_YNMember","brrt_ReportingYearAxis_brrt_YNMember",null,null,null,"PaidCY2015AY2013",0]
[null,null,"Accident Year",null,null,null,null,null,null,null,null,null,null,null,null,null,"PaidCY2015AY2014",0]
[null,null,"Underwriting Year",null,null,null,null,null,null,null,null,null,null,null,null,null,"PaidCY2015AY2015",0]
[null,null,null,null,null,null,null,null,null,null,null,null,null,null,null,null,{"$f":"\"PaidCY\"&I$10&\"AY\"&B29","v":"PaidCY2016AYPrior"},{"$f":"I29","v":0}]
[null,null,null,null,null,null,null,null,null,null,null,null,null,null,null,null,"PaidCY2016AY2010",0]
[null,null,null,null,null,null,null,null,null,null,null,null,null,null,null,null,"PaidCY2016AY2011",0]
[null,{"$f":"IF(B3=\"\",\"\",TEXT(DATE(YEAR(B3+1)-1,MONTH(B3+1),DAY(B3+1)),\"mm/dd/yyyy\"))","v":"01/01/2019"},null,null,null,null,null,null,null,null,null,null,null,null,null,null,"PaidCY2016AY2012",0]
[null,{"$f":"IF(B3=\"\",\"\",TEXT(B3,\"mm/dd/yyyy\"))","v":"12/31/2019"},null,null,null,null,null,null,null,null,null,null,null,null,null,null,"PaidCY2016AY2013",0]
[null,null,null,null,null,null,null,null,null,null,null,null,null,null,null,null,"PaidCY2016AY2014",0]
[null,null,null,null,null,null,null,null,null,null,null,null,null,null,null,null,"PaidCY2016AY2015",0]
[null,null,null,null,null,null,null,null,null,null,null,null,null,null,null,null,"PaidCY2016AY2016",0]
[null,null,null,null,null,null,null,null,null,null,null,null,null,null,null,null,{"$f":"\"PaidCY\"&J$10&\"AY\"&B29","v":"PaidCY2017AYPrior"},{"$f":"J29","v":0}]
[null,null,{"$f":"XBRLMap(C11,C$85&\".\"&$U$4&\".\"&$U$6&\".\"&$U11&\".\"&C$89&\".\"&$U$7,$B$95,$B$96,CONFIGURATION!$B$10,\"BMA\",CONFIGURATION!$B$1,\"bscr\",1000)","v":"Mapped"},{"$f":"XBRLMap(D11,D$85&\".\"&$U$4&\".\"&$U$6&\".\"&$U11&\".\"&D$89&\".\"&$U$7,$B$95,$B$96,CONFIGURATION!$B$10,\"BMA\",CONFIGURATION!$B$1,\"bscr\",1000)","v":"Mapped"},{"$f":"XBRLMap(E11,E$85&\".\"&$U$4&\".\"&$U$6&\".\"&$U11&\".\"&E$89&\".\"&$U$7,$B$95,$B$96,CONFIGURATION!$B$10,\"BMA\",CONFIGURATION!$B$1,\"bscr\",1000)","v":"Mapped"},{"$f":"XBRLMap(F11,F$85&\".\"&$U$4&\".\"&$U$6&\".\"&$U11&\".\"&F$89&\".\"&$U$7,$B$95,$B$96,CONFIGURATION!$B$10,\"BMA\",CONFIGURATION!$B$1,\"bscr\",1000)","v":"Mapped"},{"$f":"XBRLMap(G11,G$85&\".\"&$U$4&\".\"&$U$6&\".\"&$U11&\".\"&G$89&\".\"&$U$7,$B$95,$B$96,CONFIGURATION!$B$10,\"BMA\",CONFIGURATION!$B$1,\"bscr\",1000)","v":"Mapped"},{"$f":"XBRLMap(H11,H$85&\".\"&$U$4&\".\"&$U$6&\".\"&$U11&\".\"&H$89&\".\"&$U$7,$B$95,$B$96,CONFIGURATION!$B$10,\"BMA\",CONFIGURATION!$B$1,\"bscr\",1000)","v":"Mapped"},{"$f":"XBRLMap(I11,I$85&\".\"&$U$4&\".\"&$U$6&\".\"&$U11&\".\"&I$89&\".\"&$U$7,$B$95,$B$96,CONFIGURATION!$B$10,\"BMA\",CONFIGURATION!$B$1,\"bscr\",1000)","v":"Mapped"},{"$f":"XBRLMap(J11,J$85&\".\"&$U$4&\".\"&$U$6&\".\"&$U11&\".\"&J$89&\".\"&$U$7,$B$95,$B$96,CONFIGURATION!$B$10,\"BMA\",CONFIGURATION!$B$1,\"bscr\",1000)","v":"Mapped"},{"$f":"XBRLMap(K11,K$85&\".\"&$U$4&\".\"&$U$6&\".\"&$U11&\".\"&K$89&\".\"&$U$7,$B$95,$B$96,CONFIGURATION!$B$10,\"BMA\",CONFIGURATION!$B$1,\"bscr\",1000)","v":"Mapped"},{"$f":"XBRLMap(L11,L$85&\".\"&$U$4&\".\"&$U$6&\".\"&$U11&\".\"&L$89&\".\"&$U$7,$B$95,$B$96,CONFIGURATION!$B$10,\"BMA\",CONFIGURATION!$B$1,\"bscr\",1000)","v":"Mapped"},{"$f":"XBRLMap(M11,M$85&\".\"&$U$4&\".\"&$U$6&\".\"&$U11&\".\"&M$89&\".\"&$U$7,$B$95,$B$96,CONFIGURATION!$B$10,\"BMA\",CONFIGURATION!$B$1,\"bscr\",1000)","v":"Mapped"},null,null,null,"PaidCY2017AY2010",0]
[null,null,{"$f":"XBRLMap(C12,C$85&\".\"&$U$4&\".\"&$U$6&\".\"&$U12&\".\"&C$89&\".\"&$U$7,$B$95,$B$96,CONFIGURATION!$B$10,\"BMA\",CONFIGURATION!$B$1,\"bscr\",1000)","v":"Mapped"},{"$f":"XBRLMap(D12,D$85&\".\"&$U$4&\".\"&$U$6&\".\"&$U12&\".\"&D$89&\".\"&$U$7,$B$95,$B$96,CONFIGURATION!$B$10,\"BMA\",CONFIGURATION!$B$1,\"bscr\",1000)","v":"Mapped"},{"$f":"XBRLMap(E12,E$85&\".\"&$U$4&\".\"&$U$6&\".\"&$U12&\".\"&E$89&\".\"&$U$7,$B$95,$B$96,CONFIGURATION!$B$10,\"BMA\",CONFIGURATION!$B$1,\"bscr\",1000)","v":"Mapped"},{"$f":"XBRLMap(F12,F$85&\".\"&$U$4&\".\"&$U$6&\".\"&$U12&\".\"&F$89&\".\"&$U$7,$B$95,$B$96,CONFIGURATION!$B$10,\"BMA\",CONFIGURATION!$B$1,\"bscr\",1000)","v":"Mapped"},{"$f":"XBRLMap(G12,G$85&\".\"&$U$4&\".\"&$U$6&\".\"&$U12&\".\"&G$89&\".\"&$U$7,$B$95,$B$96,CONFIGURATION!$B$10,\"BMA\",CONFIGURATION!$B$1,\"bscr\",1000)","v":"Mapped"},{"$f":"XBRLMap(H12,H$85&\".\"&$U$4&\".\"&$U$6&\".\"&$U12&\".\"&H$89&\".\"&$U$7,$B$95,$B$96,CONFIGURATION!$B$10,\"BMA\",CONFIGURATION!$B$1,\"bscr\",1000)","v":"Mapped"},{"$f":"XBRLMap(I12,I$85&\".\"&$U$4&\".\"&$U$6&\".\"&$U12&\".\"&I$89&\".\"&$U$7,$B$95,$B$96,CONFIGURATION!$B$10,\"BMA\",CONFIGURATION!$B$1,\"bscr\",1000)","v":"Mapped"},{"$f":"XBRLMap(J12,J$85&\".\"&$U$4&\".\"&$U$6&\".\"&$U12&\".\"&J$89&\".\"&$U$7,$B$95,$B$96,CONFIGURATION!$B$10,\"BMA\",CONFIGURATION!$B$1,\"bscr\",1000)","v":"Mapped"},{"$f":"XBRLMap(K12,K$85&\".\"&$U$4&\".\"&$U$6&\".\"&$U12&\".\"&K$89&\".\"&$U$7,$B$95,$B$96,CONFIGURATION!$B$10,\"BMA\",CONFIGURATION!$B$1,\"bscr\",1000)","v":"Mapped"},{"$f":"XBRLMap(L12,L$85&\".\"&$U$4&\".\"&$U$6&\".\"&$U12&\".\"&L$89&\".\"&$U$7,$B$95,$B$96,CONFIGURATION!$B$10,\"BMA\",CONFIGURATION!$B$1,\"bscr\",1000)","v":"Mapped"},{"$f":"XBRLMap(M12,M$85&\".\"&$U$4&\".\"&$U$6&\".\"&$U12&\".\"&M$89&\".\"&$U$7,$B$95,$B$96,CONFIGURATION!$B$10,\"BMA\",CONFIGURATION!$B$1,\"bscr\",1000)","v":"Mapped"},null,null,null,"PaidCY2017AY2011",0]
[null,null,null,{"$f":"XBRLMap(D13,D$85&\".\"&$U$4&\".\"&$U$6&\".\"&$U13&\".\"&D$89&\".\"&$U$7,$B$95,$B$96,CONFIGURATION!$B$10,\"BMA\",CONFIGURATION!$B$1,\"bscr\",1000)","v":"Mapped"},{"$f":"XBRLMap(E13,E$85&\".\"&$U$4&\".\"&$U$6&\".\"&$U13&\".\"&E$89&\".\"&$U$7,$B$95,$B$96,CONFIGURATION!$B$10,\"BMA\",CONFIGURATION!$B$1,\"bscr\",1000)","v":"Mapped"},{"$f":"XBRLMap(F13,F$85&\".\"&$U$4&\".\"&$U$6&\".\"&$U13&\".\"&F$89&\".\"&$U$7,$B$95,$B$96,CONFIGURATION!$B$10,\"BMA\",CONFIGURATION!$B$1,\"bscr\",1000)","v":"Mapped"},{"$f":"XBRLMap(G13,G$85&\".\"&$U$4&\".\"&$U$6&\".\"&$U13&\".\"&G$89&\".\"&$U$7,$B$95,$B$96,CONFIGURATION!$B$10,\"BMA\",CONFIGURATION!$B$1,\"bscr\",1000)","v":"Mapped"},{"$f":"XBRLMap(H13,H$85&\".\"&$U$4&\".\"&$U$6&\".\"&$U13&\".\"&H$89&\".\"&$U$7,$B$95,$B$96,CONFIGURATION!$B$10,\"BMA\",CONFIGURATION!$B$1,\"bscr\",1000)","v":"Mapped"},{"$f":"XBRLMap(I13,I$85&\".\"&$U$4&\".\"&$U$6&\".\"&$U13&\".\"&I$89&\".\"&$U$7,$B$95,$B$96,CONFIGURATION!$B$10,\"BMA\",CONFIGURATION!$B$1,\"bscr\",1000)","v":"Mapped"},{"$f":"XBRLMap(J13,J$85&\".\"&$U$4&\".\"&$U$6&\".\"&$U13&\".\"&J$89&\".\"&$U$7,$B$95,$B$96,CONFIGURATION!$B$10,\"BMA\",CONFIGURATION!$B$1,\"bscr\",1000)","v":"Mapped"},{"$f":"XBRLMap(K13,K$85&\".\"&$U$4&\".\"&$U$6&\".\"&$U13&\".\"&K$89&\".\"&$U$7,$B$95,$B$96,CONFIGURATION!$B$10,\"BMA\",CONFIGURATION!$B$1,\"bscr\",1000)","v":"Mapped"},{"$f":"XBRLMap(L13,L$85&\".\"&$U$4&\".\"&$U$6&\".\"&$U13&\".\"&L$89&\".\"&$U$7,$B$95,$B$96,CONFIGURATION!$B$10,\"BMA\",CONFIGURATION!$B$1,\"bscr\",1000)","v":"Mapped"},{"$f":"XBRLMap(M13,M$85&\".\"&$U$4&\".\"&$U$6&\".\"&$U13&\".\"&M$89&\".\"&$U$7,$B$95,$B$96,CONFIGURATION!$B$10,\"BMA\",CONFIGURATION!$B$1,\"bscr\",1000)","v":"Mapped"},null,null,null,"PaidCY2017AY2012",0]
[null,null,null,null,{"$f":"XBRLMap(E14,E$85&\".\"&$U$4&\".\"&$U$6&\".\"&$U14&\".\"&E$89&\".\"&$U$7,$B$95,$B$96,CONFIGURATION!$B$10,\"BMA\",CONFIGURATION!$B$1,\"bscr\",1000)","v":"Mapped"},{"$f":"XBRLMap(F14,F$85&\".\"&$U$4&\".\"&$U$6&\".\"&$U14&\".\"&F$89&\".\"&$U$7,$B$95,$B$96,CONFIGURATION!$B$10,\"BMA\",CONFIGURATION!$B$1,\"bscr\",1000)","v":"Mapped"},{"$f":"XBRLMap(G14,G$85&\".\"&$U$4&\".\"&$U$6&\".\"&$U14&\".\"&G$89&\".\"&$U$7,$B$95,$B$96,CONFIGURATION!$B$10,\"BMA\",CONFIGURATION!$B$1,\"bscr\",1000)","v":"Mapped"},{"$f":"XBRLMap(H14,H$85&\".\"&$U$4&\".\"&$U$6&\".\"&$U14&\".\"&H$89&\".\"&$U$7,$B$95,$B$96,CONFIGURATION!$B$10,\"BMA\",CONFIGURATION!$B$1,\"bscr\",1000)","v":"Mapped"},{"$f":"XBRLMap(I14,I$85&\".\"&$U$4&\".\"&$U$6&\".\"&$U14&\".\"&I$89&\".\"&$U$7,$B$95,$B$96,CONFIGURATION!$B$10,\"BMA\",CONFIGURATION!$B$1,\"bscr\",1000)","v":"Mapped"},{"$f":"XBRLMap(J14,J$85&\".\"&$U$4&\".\"&$U$6&\".\"&$U14&\".\"&J$89&\".\"&$U$7,$B$95,$B$96,CONFIGURATION!$B$10,\"BMA\",CONFIGURATION!$B$1,\"bscr\",1000)","v":"Mapped"},{"$f":"XBRLMap(K14,K$85&\".\"&$U$4&\".\"&$U$6&\".\"&$U14&\".\"&K$89&\".\"&$U$7,$B$95,$B$96,CONFIGURATION!$B$10,\"BMA\",CONFIGURATION!$B$1,\"bscr\",1000)","v":"Mapped"},{"$f":"XBRLMap(L14,L$85&\".\"&$U$4&\".\"&$U$6&\".\"&$U14&\".\"&L$89&\".\"&$U$7,$B$95,$B$96,CONFIGURATION!$B$10,\"BMA\",CONFIGURATION!$B$1,\"bscr\",1000)","v":"Mapped"},{"$f":"XBRLMap(M14,M$85&\".\"&$U$4&\".\"&$U$6&\".\"&$U14&\".\"&M$89&\".\"&$U$7,$B$95,$B$96,CONFIGURATION!$B$10,\"BMA\",CONFIGURATION!$B$1,\"bscr\",1000)","v":"Mapped"},null,null,null,"PaidCY2017AY2013",0]
[null,null,null,null,null,{"$f":"XBRLMap(F15,F$85&\".\"&$U$4&\".\"&$U$6&\".\"&$U15&\".\"&F$89&\".\"&$U$7,$B$95,$B$96,CONFIGURATION!$B$10,\"BMA\",CONFIGURATION!$B$1,\"bscr\",1000)","v":"Mapped"},{"$f":"XBRLMap(G15,G$85&\".\"&$U$4&\".\"&$U$6&\".\"&$U15&\".\"&G$89&\".\"&$U$7,$B$95,$B$96,CONFIGURATION!$B$10,\"BMA\",CONFIGURATION!$B$1,\"bscr\",1000)","v":"Mapped"},{"$f":"XBRLMap(H15,H$85&\".\"&$U$4&\".\"&$U$6&\".\"&$U15&\".\"&H$89&\".\"&$U$7,$B$95,$B$96,CONFIGURATION!$B$10,\"BMA\",CONFIGURATION!$B$1,\"bscr\",1000)","v":"Mapped"},{"$f":"XBRLMap(I15,I$85&\".\"&$U$4&\".\"&$U$6&\".\"&$U15&\".\"&I$89&\".\"&$U$7,$B$95,$B$96,CONFIGURATION!$B$10,\"BMA\",CONFIGURATION!$B$1,\"bscr\",1000)","v":"Mapped"},{"$f":"XBRLMap(J15,J$85&\".\"&$U$4&\".\"&$U$6&\".\"&$U15&\".\"&J$89&\".\"&$U$7,$B$95,$B$96,CONFIGURATION!$B$10,\"BMA\",CONFIGURATION!$B$1,\"bscr\",1000)","v":"Mapped"},{"$f":"XBRLMap(K15,K$85&\".\"&$U$4&\".\"&$U$6&\".\"&$U15&\".\"&K$89&\".\"&$U$7,$B$95,$B$96,CONFIGURATION!$B$10,\"BMA\",CONFIGURATION!$B$1,\"bscr\",1000)","v":"Mapped"},{"$f":"XBRLMap(L15,L$85&\".\"&$U$4&\".\"&$U$6&\".\"&$U15&\".\"&L$89&\".\"&$U$7,$B$95,$B$96,CONFIGURATION!$B$10,\"BMA\",CONFIGURATION!$B$1,\"bscr\",1000)","v":"Mapped"},{"$f":"XBRLMap(M15,M$85&\".\"&$U$4&\".\"&$U$6&\".\"&$U15&\".\"&M$89&\".\"&$U$7,$B$95,$B$96,CONFIGURATION!$B$10,\"BMA\",CONFIGURATION!$B$1,\"bscr\",1000)","v":"Mapped"},null,null,null,"PaidCY2017AY2014",0]
[null,null,null,null,null,null,{"$f":"XBRLMap(G16,G$85&\".\"&$U$4&\".\"&$U$6&\".\"&$U16&\".\"&G$89&\".\"&$U$7,$B$95,$B$96,CONFIGURATION!$B$10,\"BMA\",CONFIGURATION!$B$1,\"bscr\",1000)","v":"Mapped"},{"$f":"XBRLMap(H16,H$85&\".\"&$U$4&\".\"&$U$6&\".\"&$U16&\".\"&H$89&\".\"&$U$7,$B$95,$B$96,CONFIGURATION!$B$10,\"BMA\",CONFIGURATION!$B$1,\"bscr\",1000)","v":"Mapped"},{"$f":"XBRLMap(I16,I$85&\".\"&$U$4&\".\"&$U$6&\".\"&$U16&\".\"&I$89&\".\"&$U$7,$B$95,$B$96,CONFIGURATION!$B$10,\"BMA\",CONFIGURATION!$B$1,\"bscr\",1000)","v":"Mapped"},{"$f":"XBRLMap(J16,J$85&\".\"&$U$4&\".\"&$U$6&\".\"&$U16&\".\"&J$89&\".\"&$U$7,$B$95,$B$96,CONFIGURATION!$B$10,\"BMA\",CONFIGURATION!$B$1,\"bscr\",1000)","v":"Mapped"},{"$f":"XBRLMap(K16,K$85&\".\"&$U$4&\".\"&$U$6&\".\"&$U16&\".\"&K$89&\".\"&$U$7,$B$95,$B$96,CONFIGURATION!$B$10,\"BMA\",CONFIGURATION!$B$1,\"bscr\",1000)","v":"Mapped"},{"$f":"XBRLMap(L16,L$85&\".\"&$U$4&\".\"&$U$6&\".\"&$U16&\".\"&L$89&\".\"&$U$7,$B$95,$B$96,CONFIGURATION!$B$10,\"BMA\",CONFIGURATION!$B$1,\"bscr\",1000)","v":"Mapped"},{"$f":"XBRLMap(M16,M$85&\".\"&$U$4&\".\"&$U$6&\".\"&$U16&\".\"&M$89&\".\"&$U$7,$B$95,$B$96,CONFIGURATION!$B$10,\"BMA\",CONFIGURATION!$B$1,\"bscr\",1000)","v":"Mapped"},null,null,null,"PaidCY2017AY2015",0]
[null,null,null,null,null,null,null,{"$f":"XBRLMap(H17,H$85&\".\"&$U$4&\".\"&$U$6&\".\"&$U17&\".\"&H$89&\".\"&$U$7,$B$95,$B$96,CONFIGURATION!$B$10,\"BMA\",CONFIGURATION!$B$1,\"bscr\",1000)","v":"Mapped"},{"$f":"XBRLMap(I17,I$85&\".\"&$U$4&\".\"&$U$6&\".\"&$U17&\".\"&I$89&\".\"&$U$7,$B$95,$B$96,CONFIGURATION!$B$10,\"BMA\",CONFIGURATION!$B$1,\"bscr\",1000)","v":"Mapped"},{"$f":"XBRLMap(J17,J$85&\".\"&$U$4&\".\"&$U$6&\".\"&$U17&\".\"&J$89&\".\"&$U$7,$B$95,$B$96,CONFIGURATION!$B$10,\"BMA\",CONFIGURATION!$B$1,\"bscr\",1000)","v":"Mapped"},{"$f":"XBRLMap(K17,K$85&\".\"&$U$4&\".\"&$U$6&\".\"&$U17&\".\"&K$89&\".\"&$U$7,$B$95,$B$96,CONFIGURATION!$B$10,\"BMA\",CONFIGURATION!$B$1,\"bscr\",1000)","v":"Mapped"},{"$f":"XBRLMap(L17,L$85&\".\"&$U$4&\".\"&$U$6&\".\"&$U17&\".\"&L$89&\".\"&$U$7,$B$95,$B$96,CONFIGURATION!$B$10,\"BMA\",CONFIGURATION!$B$1,\"bscr\",1000)","v":"Mapped"},{"$f":"XBRLMap(M17,M$85&\".\"&$U$4&\".\"&$U$6&\".\"&$U17&\".\"&M$89&\".\"&$U$7,$B$95,$B$96,CONFIGURATION!$B$10,\"BMA\",CONFIGURATION!$B$1,\"bscr\",1000)","v":"Mapped"},null,null,null,"PaidCY2017AY2016",0]
[null,null,null,null,null,null,null,null,{"$f":"XBRLMap(I18,I$85&\".\"&$U$4&\".\"&$U$6&\".\"&$U18&\".\"&I$89&\".\"&$U$7,$B$95,$B$96,CONFIGURATION!$B$10,\"BMA\",CONFIGURATION!$B$1,\"bscr\",1000)","v":"Mapped"},{"$f":"XBRLMap(J18,J$85&\".\"&$U$4&\".\"&$U$6&\".\"&$U18&\".\"&J$89&\".\"&$U$7,$B$95,$B$96,CONFIGURATION!$B$10,\"BMA\",CONFIGURATION!$B$1,\"bscr\",1000)","v":"Mapped"},{"$f":"XBRLMap(K18,K$85&\".\"&$U$4&\".\"&$U$6&\".\"&$U18&\".\"&K$89&\".\"&$U$7,$B$95,$B$96,CONFIGURATION!$B$10,\"BMA\",CONFIGURATION!$B$1,\"bscr\",1000)","v":"Mapped"},{"$f":"XBRLMap(L18,L$85&\".\"&$U$4&\".\"&$U$6&\".\"&$U18&\".\"&L$89&\".\"&$U$7,$B$95,$B$96,CONFIGURATION!$B$10,\"BMA\",CONFIGURATION!$B$1,\"bscr\",1000)","v":"Mapped"},{"$f":"XBRLMap(M18,M$85&\".\"&$U$4&\".\"&$U$6&\".\"&$U18&\".\"&M$89&\".\"&$U$7,$B$95,$B$96,CONFIGURATION!$B$10,\"BMA\",CONFIGURATION!$B$1,\"bscr\",1000)","v":"Mapped"},null,null,null,"PaidCY2017AY2017",0]
[null,null,null,null,null,null,null,null,null,{"$f":"XBRLMap(J19,J$85&\".\"&$U$4&\".\"&$U$6&\".\"&$U19&\".\"&J$89&\".\"&$U$7,$B$95,$B$96,CONFIGURATION!$B$10,\"BMA\",CONFIGURATION!$B$1,\"bscr\",1000)","v":"Mapped"},{"$f":"XBRLMap(K19,K$85&\".\"&$U$4&\".\"&$U$6&\".\"&$U19&\".\"&K$89&\".\"&$U$7,$B$95,$B$96,CONFIGURATION!$B$10,\"BMA\",CONFIGURATION!$B$1,\"bscr\",1000)","v":"Mapped"},{"$f":"XBRLMap(L19,L$85&\".\"&$U$4&\".\"&$U$6&\".\"&$U19&\".\"&L$89&\".\"&$U$7,$B$95,$B$96,CONFIGURATION!$B$10,\"BMA\",CONFIGURATION!$B$1,\"bscr\",1000)","v":"Mapped"},{"$f":"XBRLMap(M19,M$85&\".\"&$U$4&\".\"&$U$6&\".\"&$U19&\".\"&M$89&\".\"&$U$7,$B$95,$B$96,CONFIGURATION!$B$10,\"BMA\",CONFIGURATION!$B$1,\"bscr\",1000)","v":"Mapped"},null,null,null,{"$f":"\"PaidCY\"&K$10&\"AY\"&B29","v":"PaidCY2018AYPrior"},{"$f":"K29","v":0}]
[null,null,null,null,null,null,null,null,null,null,{"$f":"XBRLMap(K20,K$85&\".\"&$U$4&\".\"&$U$6&\".\"&$U20&\".\"&K$89&\".\"&$U$7,$B$95,$B$96,CONFIGURATION!$B$10,\"BMA\",CONFIGURATION!$B$1,\"bscr\",1000)","v":"Mapped"},{"$f":"XBRLMap(L20,L$85&\".\"&$U$4&\".\"&$U$6&\".\"&$U20&\".\"&L$89&\".\"&$U$7,$B$95,$B$96,CONFIGURATION!$B$10,\"BMA\",CONFIGURATION!$B$1,\"bscr\",1000)","v":"Mapped"},{"$f":"XBRLMap(M20,M$85&\".\"&$U$4&\".\"&$U$6&\".\"&$U20&\".\"&M$89&\".\"&$U$7,$B$95,$B$96,CONFIGURATION!$B$10,\"BMA\",CONFIGURATION!$B$1,\"bscr\",1000)","v":"Mapped"},null,null,null,"PaidCY2018AY2010",0]
[null,null,null,null,null,null,null,null,null,null,null,{"$f":"XBRLMap(L21,L$85&\".\"&$U$4&\".\"&$U$6&\".\"&$U21&\".\"&L$89&\".\"&$U$7,$B$95,$B$96,CONFIGURATION!$B$10,\"BMA\",CONFIGURATION!$B$1,\"bscr\",1000)","v":"Mapped"},{"$f":"XBRLMap(M21,M$85&\".\"&$U$4&\".\"&$U$6&\".\"&$U21&\".\"&M$89&\".\"&$U$7,$B$95,$B$96,CONFIGURATION!$B$10,\"BMA\",CONFIGURATION!$B$1,\"bscr\",1000)","v":"Mapped"},null,null,null,"PaidCY2018AY2011",0]
[null,null,null,null,null,null,null,null,null,null,null,null,null,null,null,null,"PaidCY2018AY2012",0]
[null,null,null,null,null,null,null,null,null,null,null,null,null,null,null,null,"PaidCY2018AY2013",0]
[null,null,null,null,null,null,null,null,null,null,null,null,null,null,null,null,"PaidCY2018AY2014",0]
[null,null,null,null,null,null,null,null,null,null,null,null,null,null,null,null,"PaidCY2018AY2015",0]
[null,null,null,null,null,null,null,null,null,null,null,null,null,null,null,null,"PaidCY2018AY2016",0]
[null,null,null,null,null,null,null,null,null,null,null,null,null,null,null,null,"PaidCY2018AY2017",0]
[null,null,null,null,null,null,null,null,null,null,null,null,null,null,null,null,"PaidCY2018AY2018",0]
[null,null,null,null,null,null,null,null,null,null,null,null,null,null,null,null,{"$f":"\"PaidCY\"&L$10&\"AY\"&B29","v":"PaidCY2019AYPrior"},{"$f":"L29","v":0}]
[null,null,{"$f":"XBRLMap(C29,C$86&\".\"&$U$4&\".\"&$U29&\".\"&C$89&\".\"&$U$7,$B$95,$B$96,CONFIGURATION!$B$10,\"BMA\",CONFIGURATION!$B$1,\"bscr\",1000)","v":"Mapped"},{"$f":"XBRLMap(D29,D$86&\".\"&$U$4&\".\"&$U29&\".\"&D$89&\".\"&$U$7,$B$95,$B$96,CONFIGURATION!$B$10,\"BMA\",CONFIGURATION!$B$1,\"bscr\",1000)","v":"Mapped"},{"$f":"XBRLMap(E29,E$86&\".\"&$U$4&\".\"&$U29&\".\"&E$89&\".\"&$U$7,$B$95,$B$96,CONFIGURATION!$B$10,\"BMA\",CONFIGURATION!$B$1,\"bscr\",1000)","v":"Mapped"},{"$f":"XBRLMap(F29,F$86&\".\"&$U$4&\".\"&$U29&\".\"&F$89&\".\"&$U$7,$B$95,$B$96,CONFIGURATION!$B$10,\"BMA\",CONFIGURATION!$B$1,\"bscr\",1000)","v":"Mapped"},{"$f":"XBRLMap(G29,G$86&\".\"&$U$4&\".\"&$U29&\".\"&G$89&\".\"&$U$7,$B$95,$B$96,CONFIGURATION!$B$10,\"BMA\",CONFIGURATION!$B$1,\"bscr\",1000)","v":"Mapped"},{"$f":"XBRLMap(H29,H$86&\".\"&$U$4&\".\"&$U29&\".\"&H$89&\".\"&$U$7,$B$95,$B$96,CONFIGURATION!$B$10,\"BMA\",CONFIGURATION!$B$1,\"bscr\",1000)","v":"Mapped"},{"$f":"XBRLMap(I29,I$86&\".\"&$U$4&\".\"&$U29&\".\"&I$89&\".\"&$U$7,$B$95,$B$96,CONFIGURATION!$B$10,\"BMA\",CONFIGURATION!$B$1,\"bscr\",1000)","v":"Mapped"},{"$f":"XBRLMap(J29,J$86&\".\"&$U$4&\".\"&$U29&\".\"&J$89&\".\"&$U$7,$B$95,$B$96,CONFIGURATION!$B$10,\"BMA\",CONFIGURATION!$B$1,\"bscr\",1000)","v":"Mapped"},{"$f":"XBRLMap(K29,K$86&\".\"&$U$4&\".\"&$U29&\".\"&K$89&\".\"&$U$7,$B$95,$B$96,CONFIGURATION!$B$10,\"BMA\",CONFIGURATION!$B$1,\"bscr\",1000)","v":"Mapped"},{"$f":"XBRLMap(L29,L$86&\".\"&$U$4&\".\"&$U29&\".\"&L$89&\".\"&$U$7,$B$95,$B$96,CONFIGURATION!$B$10,\"BMA\",CONFIGURATION!$B$1,\"bscr\",1000)","v":"Mapped"},{"$f":"XBRLMap(M29,M$86&\".\"&$U$4&\".\"&$U29&\".\"&M$89&\".\"&$U$7,$B$95,$B$96,CONFIGURATION!$B$10,\"BMA\",CONFIGURATION!$B$1,\"bscr\",1000)","v":"Mapped"},null,null,null,"PaidCY2019AY2010",0]
[null,null,{"$f":"XBRLMap(C30,C$86&\".\"&$U$4&\".\"&$U30&\".\"&C$89&\".\"&$U$7,$B$95,$B$96,CONFIGURATION!$B$10,\"BMA\",CONFIGURATION!$B$1,\"bscr\",1000)","v":"Mapped"},{"$f":"XBRLMap(D30,D$86&\".\"&$U$4&\".\"&$U30&\".\"&D$89&\".\"&$U$7,$B$95,$B$96,CONFIGURATION!$B$10,\"BMA\",CONFIGURATION!$B$1,\"bscr\",1000)","v":"Mapped"},{"$f":"XBRLMap(E30,E$86&\".\"&$U$4&\".\"&$U30&\".\"&E$89&\".\"&$U$7,$B$95,$B$96,CONFIGURATION!$B$10,\"BMA\",CONFIGURATION!$B$1,\"bscr\",1000)","v":"Mapped"},{"$f":"XBRLMap(F30,F$86&\".\"&$U$4&\".\"&$U30&\".\"&F$89&\".\"&$U$7,$B$95,$B$96,CONFIGURATION!$B$10,\"BMA\",CONFIGURATION!$B$1,\"bscr\",1000)","v":"Mapped"},{"$f":"XBRLMap(G30,G$86&\".\"&$U$4&\".\"&$U30&\".\"&G$89&\".\"&$U$7,$B$95,$B$96,CONFIGURATION!$B$10,\"BMA\",CONFIGURATION!$B$1,\"bscr\",1000)","v":"Mapped"},{"$f":"XBRLMap(H30,H$86&\".\"&$U$4&\".\"&$U30&\".\"&H$89&\".\"&$U$7,$B$95,$B$96,CONFIGURATION!$B$10,\"BMA\",CONFIGURATION!$B$1,\"bscr\",1000)","v":"Mapped"},{"$f":"XBRLMap(I30,I$86&\".\"&$U$4&\".\"&$U30&\".\"&I$89&\".\"&$U$7,$B$95,$B$96,CONFIGURATION!$B$10,\"BMA\",CONFIGURATION!$B$1,\"bscr\",1000)","v":"Mapped"},{"$f":"XBRLMap(J30,J$86&\".\"&$U$4&\".\"&$U30&\".\"&J$89&\".\"&$U$7,$B$95,$B$96,CONFIGURATION!$B$10,\"BMA\",CONFIGURATION!$B$1,\"bscr\",1000)","v":"Mapped"},{"$f":"XBRLMap(K30,K$86&\".\"&$U$4&\".\"&$U30&\".\"&K$89&\".\"&$U$7,$B$95,$B$96,CONFIGURATION!$B$10,\"BMA\",CONFIGURATION!$B$1,\"bscr\",1000)","v":"Mapped"},{"$f":"XBRLMap(L30,L$86&\".\"&$U$4&\".\"&$U30&\".\"&L$89&\".\"&$U$7,$B$95,$B$96,CONFIGURATION!$B$10,\"BMA\",CONFIGURATION!$B$1,\"bscr\",1000)","v":"Mapped"},{"$f":"XBRLMap(M30,M$86&\".\"&$U$4&\".\"&$U30&\".\"&M$89&\".\"&$U$7,$B$95,$B$96,CONFIGURATION!$B$10,\"BMA\",CONFIGURATION!$B$1,\"bscr\",1000)","v":"Mapped"},null,null,null,"PaidCY2019AY2011",0]
[null,null,null,{"$f":"XBRLMap(D31,D$86&\".\"&$U$4&\".\"&$U31&\".\"&D$89&\".\"&$U$7,$B$95,$B$96,CONFIGURATION!$B$10,\"BMA\",CONFIGURATION!$B$1,\"bscr\",1000)","v":"Mapped"},{"$f":"XBRLMap(E31,E$86&\".\"&$U$4&\".\"&$U31&\".\"&E$89&\".\"&$U$7,$B$95,$B$96,CONFIGURATION!$B$10,\"BMA\",CONFIGURATION!$B$1,\"bscr\",1000)","v":"Mapped"},{"$f":"XBRLMap(F31,F$86&\".\"&$U$4&\".\"&$U31&\".\"&F$89&\".\"&$U$7,$B$95,$B$96,CONFIGURATION!$B$10,\"BMA\",CONFIGURATION!$B$1,\"bscr\",1000)","v":"Mapped"},{"$f":"XBRLMap(G31,G$86&\".\"&$U$4&\".\"&$U31&\".\"&G$89&\".\"&$U$7,$B$95,$B$96,CONFIGURATION!$B$10,\"BMA\",CONFIGURATION!$B$1,\"bscr\",1000)","v":"Mapped"},{"$f":"XBRLMap(H31,H$86&\".\"&$U$4&\".\"&$U31&\".\"&H$89&\".\"&$U$7,$B$95,$B$96,CONFIGURATION!$B$10,\"BMA\",CONFIGURATION!$B$1,\"bscr\",1000)","v":"Mapped"},{"$f":"XBRLMap(I31,I$86&\".\"&$U$4&\".\"&$U31&\".\"&I$89&\".\"&$U$7,$B$95,$B$96,CONFIGURATION!$B$10,\"BMA\",CONFIGURATION!$B$1,\"bscr\",1000)","v":"Mapped"},{"$f":"XBRLMap(J31,J$86&\".\"&$U$4&\".\"&$U31&\".\"&J$89&\".\"&$U$7,$B$95,$B$96,CONFIGURATION!$B$10,\"BMA\",CONFIGURATION!$B$1,\"bscr\",1000)","v":"Mapped"},{"$f":"XBRLMap(K31,K$86&\".\"&$U$4&\".\"&$U31&\".\"&K$89&\".\"&$U$7,$B$95,$B$96,CONFIGURATION!$B$10,\"BMA\",CONFIGURATION!$B$1,\"bscr\",1000)","v":"Mapped"},{"$f":"XBRLMap(L31,L$86&\".\"&$U$4&\".\"&$U31&\".\"&L$89&\".\"&$U$7,$B$95,$B$96,CONFIGURATION!$B$10,\"BMA\",CONFIGURATION!$B$1,\"bscr\",1000)","v":"Mapped"},{"$f":"XBRLMap(M31,M$86&\".\"&$U$4&\".\"&$U31&\".\"&M$89&\".\"&$U$7,$B$95,$B$96,CONFIGURATION!$B$10,\"BMA\",CONFIGURATION!$B$1,\"bscr\",1000)","v":"Mapped"},null,null,null,"PaidCY2019AY2012",0]
[null,null,null,null,{"$f":"XBRLMap(E32,E$86&\".\"&$U$4&\".\"&$U32&\".\"&E$89&\".\"&$U$7,$B$95,$B$96,CONFIGURATION!$B$10,\"BMA\",CONFIGURATION!$B$1,\"bscr\",1000)","v":"Mapped"},{"$f":"XBRLMap(F32,F$86&\".\"&$U$4&\".\"&$U32&\".\"&F$89&\".\"&$U$7,$B$95,$B$96,CONFIGURATION!$B$10,\"BMA\",CONFIGURATION!$B$1,\"bscr\",1000)","v":"Mapped"},{"$f":"XBRLMap(G32,G$86&\".\"&$U$4&\".\"&$U32&\".\"&G$89&\".\"&$U$7,$B$95,$B$96,CONFIGURATION!$B$10,\"BMA\",CONFIGURATION!$B$1,\"bscr\",1000)","v":"Mapped"},{"$f":"XBRLMap(H32,H$86&\".\"&$U$4&\".\"&$U32&\".\"&H$89&\".\"&$U$7,$B$95,$B$96,CONFIGURATION!$B$10,\"BMA\",CONFIGURATION!$B$1,\"bscr\",1000)","v":"Mapped"},{"$f":"XBRLMap(I32,I$86&\".\"&$U$4&\".\"&$U32&\".\"&I$89&\".\"&$U$7,$B$95,$B$96,CONFIGURATION!$B$10,\"BMA\",CONFIGURATION!$B$1,\"bscr\",1000)","v":"Mapped"},{"$f":"XBRLMap(J32,J$86&\".\"&$U$4&\".\"&$U32&\".\"&J$89&\".\"&$U$7,$B$95,$B$96,CONFIGURATION!$B$10,\"BMA\",CONFIGURATION!$B$1,\"bscr\",1000)","v":"Mapped"},{"$f":"XBRLMap(K32,K$86&\".\"&$U$4&\".\"&$U32&\".\"&K$89&\".\"&$U$7,$B$95,$B$96,CONFIGURATION!$B$10,\"BMA\",CONFIGURATION!$B$1,\"bscr\",1000)","v":"Mapped"},{"$f":"XBRLMap(L32,L$86&\".\"&$U$4&\".\"&$U32&\".\"&L$89&\".\"&$U$7,$B$95,$B$96,CONFIGURATION!$B$10,\"BMA\",CONFIGURATION!$B$1,\"bscr\",1000)","v":"Mapped"},{"$f":"XBRLMap(M32,M$86&\".\"&$U$4&\".\"&$U32&\".\"&M$89&\".\"&$U$7,$B$95,$B$96,CONFIGURATION!$B$10,\"BMA\",CONFIGURATION!$B$1,\"bscr\",1000)","v":"Mapped"},null,null,null,"PaidCY2019AY2013",0]
[null,null,null,null,null,{"$f":"XBRLMap(F33,F$86&\".\"&$U$4&\".\"&$U33&\".\"&F$89&\".\"&$U$7,$B$95,$B$96,CONFIGURATION!$B$10,\"BMA\",CONFIGURATION!$B$1,\"bscr\",1000)","v":"Mapped"},{"$f":"XBRLMap(G33,G$86&\".\"&$U$4&\".\"&$U33&\".\"&G$89&\".\"&$U$7,$B$95,$B$96,CONFIGURATION!$B$10,\"BMA\",CONFIGURATION!$B$1,\"bscr\",1000)","v":"Mapped"},{"$f":"XBRLMap(H33,H$86&\".\"&$U$4&\".\"&$U33&\".\"&H$89&\".\"&$U$7,$B$95,$B$96,CONFIGURATION!$B$10,\"BMA\",CONFIGURATION!$B$1,\"bscr\",1000)","v":"Mapped"},{"$f":"XBRLMap(I33,I$86&\".\"&$U$4&\".\"&$U33&\".\"&I$89&\".\"&$U$7,$B$95,$B$96,CONFIGURATION!$B$10,\"BMA\",CONFIGURATION!$B$1,\"bscr\",1000)","v":"Mapped"},{"$f":"XBRLMap(J33,J$86&\".\"&$U$4&\".\"&$U33&\".\"&J$89&\".\"&$U$7,$B$95,$B$96,CONFIGURATION!$B$10,\"BMA\",CONFIGURATION!$B$1,\"bscr\",1000)","v":"Mapped"},{"$f":"XBRLMap(K33,K$86&\".\"&$U$4&\".\"&$U33&\".\"&K$89&\".\"&$U$7,$B$95,$B$96,CONFIGURATION!$B$10,\"BMA\",CONFIGURATION!$B$1,\"bscr\",1000)","v":"Mapped"},{"$f":"XBRLMap(L33,L$86&\".\"&$U$4&\".\"&$U33&\".\"&L$89&\".\"&$U$7,$B$95,$B$96,CONFIGURATION!$B$10,\"BMA\",CONFIGURATION!$B$1,\"bscr\",1000)","v":"Mapped"},{"$f":"XBRLMap(M33,M$86&\".\"&$U$4&\".\"&$U33&\".\"&M$89&\".\"&$U$7,$B$95,$B$96,CONFIGURATION!$B$10,\"BMA\",CONFIGURATION!$B$1,\"bscr\",1000)","v":"Mapped"},null,null,null,"PaidCY2019AY2014",0]
[null,null,null,null,null,null,{"$f":"XBRLMap(G34,G$86&\".\"&$U$4&\".\"&$U34&\".\"&G$89&\".\"&$U$7,$B$95,$B$96,CONFIGURATION!$B$10,\"BMA\",CONFIGURATION!$B$1,\"bscr\",1000)","v":"Mapped"},{"$f":"XBRLMap(H34,H$86&\".\"&$U$4&\".\"&$U34&\".\"&H$89&\".\"&$U$7,$B$95,$B$96,CONFIGURATION!$B$10,\"BMA\",CONFIGURATION!$B$1,\"bscr\",1000)","v":"Mapped"},{"$f":"XBRLMap(I34,I$86&\".\"&$U$4&\".\"&$U34&\".\"&I$89&\".\"&$U$7,$B$95,$B$96,CONFIGURATION!$B$10,\"BMA\",CONFIGURATION!$B$1,\"bscr\",1000)","v":"Mapped"},{"$f":"XBRLMap(J34,J$86&\".\"&$U$4&\".\"&$U34&\".\"&J$89&\".\"&$U$7,$B$95,$B$96,CONFIGURATION!$B$10,\"BMA\",CONFIGURATION!$B$1,\"bscr\",1000)","v":"Mapped"},{"$f":"XBRLMap(K34,K$86&\".\"&$U$4&\".\"&$U34&\".\"&K$89&\".\"&$U$7,$B$95,$B$96,CONFIGURATION!$B$10,\"BMA\",CONFIGURATION!$B$1,\"bscr\",1000)","v":"Mapped"},{"$f":"XBRLMap(L34,L$86&\".\"&$U$4&\".\"&$U34&\".\"&L$89&\".\"&$U$7,$B$95,$B$96,CONFIGURATION!$B$10,\"BMA\",CONFIGURATION!$B$1,\"bscr\",1000)","v":"Mapped"},{"$f":"XBRLMap(M34,M$86&\".\"&$U$4&\".\"&$U34&\".\"&M$89&\".\"&$U$7,$B$95,$B$96,CONFIGURATION!$B$10,\"BMA\",CONFIGURATION!$B$1,\"bscr\",1000)","v":"Mapped"},null,null,null,"PaidCY2019AY2015",0]
[null,null,null,null,null,null,null,{"$f":"XBRLMap(H35,H$86&\".\"&$U$4&\".\"&$U35&\".\"&H$89&\".\"&$U$7,$B$95,$B$96,CONFIGURATION!$B$10,\"BMA\",CONFIGURATION!$B$1,\"bscr\",1000)","v":"Mapped"},{"$f":"XBRLMap(I35,I$86&\".\"&$U$4&\".\"&$U35&\".\"&I$89&\".\"&$U$7,$B$95,$B$96,CONFIGURATION!$B$10,\"BMA\",CONFIGURATION!$B$1,\"bscr\",1000)","v":"Mapped"},{"$f":"XBRLMap(J35,J$86&\".\"&$U$4&\".\"&$U35&\".\"&J$89&\".\"&$U$7,$B$95,$B$96,CONFIGURATION!$B$10,\"BMA\",CONFIGURATION!$B$1,\"bscr\",1000)","v":"Mapped"},{"$f":"XBRLMap(K35,K$86&\".\"&$U$4&\".\"&$U35&\".\"&K$89&\".\"&$U$7,$B$95,$B$96,CONFIGURATION!$B$10,\"BMA\",CONFIGURATION!$B$1,\"bscr\",1000)","v":"Mapped"},{"$f":"XBRLMap(L35,L$86&\".\"&$U$4&\".\"&$U35&\".\"&L$89&\".\"&$U$7,$B$95,$B$96,CONFIGURATION!$B$10,\"BMA\",CONFIGURATION!$B$1,\"bscr\",1000)","v":"Mapped"},{"$f":"XBRLMap(M35,M$86&\".\"&$U$4&\".\"&$U35&\".\"&M$89&\".\"&$U$7,$B$95,$B$96,CONFIGURATION!$B$10,\"BMA\",CONFIGURATION!$B$1,\"bscr\",1000)","v":"Mapped"},null,null,null,"PaidCY2019AY2016",0]
[null,null,null,null,null,null,null,null,{"$f":"XBRLMap(I36,I$86&\".\"&$U$4&\".\"&$U36&\".\"&I$89&\".\"&$U$7,$B$95,$B$96,CONFIGURATION!$B$10,\"BMA\",CONFIGURATION!$B$1,\"bscr\",1000)","v":"Mapped"},{"$f":"XBRLMap(J36,J$86&\".\"&$U$4&\".\"&$U36&\".\"&J$89&\".\"&$U$7,$B$95,$B$96,CONFIGURATION!$B$10,\"BMA\",CONFIGURATION!$B$1,\"bscr\",1000)","v":"Mapped"},{"$f":"XBRLMap(K36,K$86&\".\"&$U$4&\".\"&$U36&\".\"&K$89&\".\"&$U$7,$B$95,$B$96,CONFIGURATION!$B$10,\"BMA\",CONFIGURATION!$B$1,\"bscr\",1000)","v":"Mapped"},{"$f":"XBRLMap(L36,L$86&\".\"&$U$4&\".\"&$U36&\".\"&L$89&\".\"&$U$7,$B$95,$B$96,CONFIGURATION!$B$10,\"BMA\",CONFIGURATION!$B$1,\"bscr\",1000)","v":"Mapped"},{"$f":"XBRLMap(M36,M$86&\".\"&$U$4&\".\"&$U36&\".\"&M$89&\".\"&$U$7,$B$95,$B$96,CONFIGURATION!$B$10,\"BMA\",CONFIGURATION!$B$1,\"bscr\",1000)","v":"Mapped"},null,null,null,"PaidCY2019AY2017",0]
[null,null,null,null,null,null,null,null,null,{"$f":"XBRLMap(J37,J$86&\".\"&$U$4&\".\"&$U37&\".\"&J$89&\".\"&$U$7,$B$95,$B$96,CONFIGURATION!$B$10,\"BMA\",CONFIGURATION!$B$1,\"bscr\",1000)","v":"Mapped"},{"$f":"XBRLMap(K37,K$86&\".\"&$U$4&\".\"&$U37&\".\"&K$89&\".\"&$U$7,$B$95,$B$96,CONFIGURATION!$B$10,\"BMA\",CONFIGURATION!$B$1,\"bscr\",1000)","v":"Mapped"},{"$f":"XBRLMap(L37,L$86&\".\"&$U$4&\".\"&$U37&\".\"&L$89&\".\"&$U$7,$B$95,$B$96,CONFIGURATION!$B$10,\"BMA\",CONFIGURATION!$B$1,\"bscr\",1000)","v":"Mapped"},{"$f":"XBRLMap(M37,M$86&\".\"&$U$4&\".\"&$U37&\".\"&M$89&\".\"&$U$7,$B$95,$B$96,CONFIGURATION!$B$10,\"BMA\",CONFIGURATION!$B$1,\"bscr\",1000)","v":"Mapped"},null,null,null,"PaidCY2019AY2018",0]
[null,null,null,null,null,null,null,null,null,null,{"$f":"XBRLMap(K38,K$86&\".\"&$U$4&\".\"&$U38&\".\"&K$89&\".\"&$U$7,$B$95,$B$96,CONFIGURATION!$B$10,\"BMA\",CONFIGURATION!$B$1,\"bscr\",1000)","v":"Mapped"},{"$f":"XBRLMap(L38,L$86&\".\"&$U$4&\".\"&$U38&\".\"&L$89&\".\"&$U$7,$B$95,$B$96,CONFIGURATION!$B$10,\"BMA\",CONFIGURATION!$B$1,\"bscr\",1000)","v":"Mapped"},{"$f":"XBRLMap(M38,M$86&\".\"&$U$4&\".\"&$U38&\".\"&M$89&\".\"&$U$7,$B$95,$B$96,CONFIGURATION!$B$10,\"BMA\",CONFIGURATION!$B$1,\"bscr\",1000)","v":"Mapped"},null,null,null,"PaidCY2019AY2019",0]
[null,null,null,null,null,null,null,null,null,null,null,{"$f":"XBRLMap(L39,L$86&\".\"&$U$4&\".\"&$U39&\".\"&L$89&\".\"&$U$7,$B$95,$B$96,CONFIGURATION!$B$10,\"BMA\",CONFIGURATION!$B$1,\"bscr\",1000)","v":"Mapped"},{"$f":"XBRLMap(M39,M$86&\".\"&$U$4&\".\"&$U39&\".\"&M$89&\".\"&$U$7,$B$95,$B$96,CONFIGURATION!$B$10,\"BMA\",CONFIGURATION!$B$1,\"bscr\",1000)","v":"Mapped"},null,null,null,{"$f":"\"IBNRCY\"&C$10&\"AY\"&B47","v":"IBNRCY2010AYPrior"},{"$f":"C47","v":0}]
[null,null,null,null,null,null,null,null,null,null,null,null,null,null,null,null,{"$f":"\"IBNRCY\"&C$10&\"AY\"&B48","v":"IBNRCY2010AY2010"},{"$f":"C48","v":0}]
[null,null,null,null,null,null,null,null,null,null,null,null,null,null,null,null,{"$f":"\"IBNRCY\"&D$10&\"AY\"&B47","v":"IBNRCY2011AYPrior"},{"$f":"D47","v":0}]
[null,null,null,null,null,null,null,null,null,null,null,null,null,null,null,null,{"$f":"\"IBNRCY\"&D$10&\"AY\"&B48","v":"IBNRCY2011AY2010"},{"$f":"D48","v":0}]
[null,null,null,null,null,null,null,null,null,null,null,null,null,null,null,null,{"$f":"\"IBNRCY\"&D$10&\"AY\"&B49","v":"IBNRCY2011AY2011"},{"$f":"D49","v":0}]
[null,null,null,null,null,null,null,null,null,null,null,null,null,null,null,null,{"$f":"\"IBNRCY\"&E$10&\"AY\"&B47","v":"IBNRCY2012AYPrior"},{"$f":"E47","v":0}]
[null,null,null,null,null,null,null,null,null,null,null,null,null,null,null,null,{"$f":"\"IBNRCY\"&E$10&\"AY\"&B48","v":"IBNRCY2012AY2010"},{"$f":"E48","v":0}]
[null,null,null,null,null,null,null,null,null,null,null,null,null,null,null,null,{"$f":"\"IBNRCY\"&E$10&\"AY\"&B49","v":"IBNRCY2012AY2011"},{"$f":"E49","v":0}]
[null,null,null,null,null,null,null,null,null,null,null,null,null,null,null,null,{"$f":"\"IBNRCY\"&E$10&\"AY\"&B50","v":"IBNRCY2012AY2012"},{"$f":"E50","v":0}]
[null,null,{"$f":"XBRLMap(C47,C$87&\".\"&$U$4&\".\"&$U47&\".\"&C$89&\".\"&$U$7,$B$95,$B$96,CONFIGURATION!$B$10,\"BMA\",CONFIGURATION!$B$1,\"bscr\",1000)","v":"Mapped"},{"$f":"XBRLMap(D47,D$87&\".\"&$U$4&\".\"&$U47&\".\"&D$89&\".\"&$U$7,$B$95,$B$96,CONFIGURATION!$B$10,\"BMA\",CONFIGURATION!$B$1,\"bscr\",1000)","v":"Mapped"},{"$f":"XBRLMap(E47,E$87&\".\"&$U$4&\".\"&$U47&\".\"&E$89&\".\"&$U$7,$B$95,$B$96,CONFIGURATION!$B$10,\"BMA\",CONFIGURATION!$B$1,\"bscr\",1000)","v":"Mapped"},{"$f":"XBRLMap(F47,F$87&\".\"&$U$4&\".\"&$U47&\".\"&F$89&\".\"&$U$7,$B$95,$B$96,CONFIGURATION!$B$10,\"BMA\",CONFIGURATION!$B$1,\"bscr\",1000)","v":"Mapped"},{"$f":"XBRLMap(G47,G$87&\".\"&$U$4&\".\"&$U47&\".\"&G$89&\".\"&$U$7,$B$95,$B$96,CONFIGURATION!$B$10,\"BMA\",CONFIGURATION!$B$1,\"bscr\",1000)","v":"Mapped"},{"$f":"XBRLMap(H47,H$87&\".\"&$U$4&\".\"&$U47&\".\"&H$89&\".\"&$U$7,$B$95,$B$96,CONFIGURATION!$B$10,\"BMA\",CONFIGURATION!$B$1,\"bscr\",1000)","v":"Mapped"},{"$f":"XBRLMap(I47,I$87&\".\"&$U$4&\".\"&$U47&\".\"&I$89&\".\"&$U$7,$B$95,$B$96,CONFIGURATION!$B$10,\"BMA\",CONFIGURATION!$B$1,\"bscr\",1000)","v":"Mapped"},{"$f":"XBRLMap(J47,J$87&\".\"&$U$4&\".\"&$U47&\".\"&J$89&\".\"&$U$7,$B$95,$B$96,CONFIGURATION!$B$10,\"BMA\",CONFIGURATION!$B$1,\"bscr\",1000)","v":"Mapped"},{"$f":"XBRLMap(K47,K$87&\".\"&$U$4&\".\"&$U47&\".\"&K$89&\".\"&$U$7,$B$95,$B$96,CONFIGURATION!$B$10,\"BMA\",CONFIGURATION!$B$1,\"bscr\",1000)","v":"Mapped"},{"$f":"XBRLMap(L47,L$87&\".\"&$U$4&\".\"&$U47&\".\"&L$89&\".\"&$U$7,$B$95,$B$96,CONFIGURATION!$B$10,\"BMA\",CONFIGURATION!$B$1,\"bscr\",1000)","v":"Mapped"},{"$f":"XBRLMap(M47,M$87&\".\"&$U$4&\".\"&$U47&\".\"&M$89&\".\"&$U$7,$B$95,$B$96,CONFIGURATION!$B$10,\"BMA\",CONFIGURATION!$B$1,\"bscr\",1000)","v":"Mapped"},null,null,null,{"$f":"\"IBNRCY\"&F$10&\"AY\"&B47","v":"IBNRCY2013AYPrior"},{"$f":"F47","v":0}]
[null,null,{"$f":"XBRLMap(C48,C$87&\".\"&$U$4&\".\"&$U48&\".\"&C$89&\".\"&$U$7,$B$95,$B$96,CONFIGURATION!$B$10,\"BMA\",CONFIGURATION!$B$1,\"bscr\",1000)","v":"Mapped"},{"$f":"XBRLMap(D48,D$87&\".\"&$U$4&\".\"&$U48&\".\"&D$89&\".\"&$U$7,$B$95,$B$96,CONFIGURATION!$B$10,\"BMA\",CONFIGURATION!$B$1,\"bscr\",1000)","v":"Mapped"},{"$f":"XBRLMap(E48,E$87&\".\"&$U$4&\".\"&$U48&\".\"&E$89&\".\"&$U$7,$B$95,$B$96,CONFIGURATION!$B$10,\"BMA\",CONFIGURATION!$B$1,\"bscr\",1000)","v":"Mapped"},{"$f":"XBRLMap(F48,F$87&\".\"&$U$4&\".\"&$U48&\".\"&F$89&\".\"&$U$7,$B$95,$B$96,CONFIGURATION!$B$10,\"BMA\",CONFIGURATION!$B$1,\"bscr\",1000)","v":"Mapped"},{"$f":"XBRLMap(G48,G$87&\".\"&$U$4&\".\"&$U48&\".\"&G$89&\".\"&$U$7,$B$95,$B$96,CONFIGURATION!$B$10,\"BMA\",CONFIGURATION!$B$1,\"bscr\",1000)","v":"Mapped"},{"$f":"XBRLMap(H48,H$87&\".\"&$U$4&\".\"&$U48&\".\"&H$89&\".\"&$U$7,$B$95,$B$96,CONFIGURATION!$B$10,\"BMA\",CONFIGURATION!$B$1,\"bscr\",1000)","v":"Mapped"},{"$f":"XBRLMap(I48,I$87&\".\"&$U$4&\".\"&$U48&\".\"&I$89&\".\"&$U$7,$B$95,$B$96,CONFIGURATION!$B$10,\"BMA\",CONFIGURATION!$B$1,\"bscr\",1000)","v":"Mapped"},{"$f":"XBRLMap(J48,J$87&\".\"&$U$4&\".\"&$U48&\".\"&J$89&\".\"&$U$7,$B$95,$B$96,CONFIGURATION!$B$10,\"BMA\",CONFIGURATION!$B$1,\"bscr\",1000)","v":"Mapped"},{"$f":"XBRLMap(K48,K$87&\".\"&$U$4&\".\"&$U48&\".\"&K$89&\".\"&$U$7,$B$95,$B$96,CONFIGURATION!$B$10,\"BMA\",CONFIGURATION!$B$1,\"bscr\",1000)","v":"Mapped"},{"$f":"XBRLMap(L48,L$87&\".\"&$U$4&\".\"&$U48&\".\"&L$89&\".\"&$U$7,$B$95,$B$96,CONFIGURATION!$B$10,\"BMA\",CONFIGURATION!$B$1,\"bscr\",1000)","v":"Mapped"},{"$f":"XBRLMap(M48,M$87&\".\"&$U$4&\".\"&$U48&\".\"&M$89&\".\"&$U$7,$B$95,$B$96,CONFIGURATION!$B$10,\"BMA\",CONFIGURATION!$B$1,\"bscr\",1000)","v":"Mapped"},null,null,null,{"$f":"\"IBNRCY\"&F$10&\"AY\"&B48","v":"IBNRCY2013AY2010"},{"$f":"F48","v":0}]
[null,null,null,{"$f":"XBRLMap(D49,D$87&\".\"&$U$4&\".\"&$U49&\".\"&D$89&\".\"&$U$7,$B$95,$B$96,CONFIGURATION!$B$10,\"BMA\",CONFIGURATION!$B$1,\"bscr\",1000)","v":"Mapped"},{"$f":"XBRLMap(E49,E$87&\".\"&$U$4&\".\"&$U49&\".\"&E$89&\".\"&$U$7,$B$95,$B$96,CONFIGURATION!$B$10,\"BMA\",CONFIGURATION!$B$1,\"bscr\",1000)","v":"Mapped"},{"$f":"XBRLMap(F49,F$87&\".\"&$U$4&\".\"&$U49&\".\"&F$89&\".\"&$U$7,$B$95,$B$96,CONFIGURATION!$B$10,\"BMA\",CONFIGURATION!$B$1,\"bscr\",1000)","v":"Mapped"},{"$f":"XBRLMap(G49,G$87&\".\"&$U$4&\".\"&$U49&\".\"&G$89&\".\"&$U$7,$B$95,$B$96,CONFIGURATION!$B$10,\"BMA\",CONFIGURATION!$B$1,\"bscr\",1000)","v":"Mapped"},{"$f":"XBRLMap(H49,H$87&\".\"&$U$4&\".\"&$U49&\".\"&H$89&\".\"&$U$7,$B$95,$B$96,CONFIGURATION!$B$10,\"BMA\",CONFIGURATION!$B$1,\"bscr\",1000)","v":"Mapped"},{"$f":"XBRLMap(I49,I$87&\".\"&$U$4&\".\"&$U49&\".\"&I$89&\".\"&$U$7,$B$95,$B$96,CONFIGURATION!$B$10,\"BMA\",CONFIGURATION!$B$1,\"bscr\",1000)","v":"Mapped"},{"$f":"XBRLMap(J49,J$87&\".\"&$U$4&\".\"&$U49&\".\"&J$89&\".\"&$U$7,$B$95,$B$96,CONFIGURATION!$B$10,\"BMA\",CONFIGURATION!$B$1,\"bscr\",1000)","v":"Mapped"},{"$f":"XBRLMap(K49,K$87&\".\"&$U$4&\".\"&$U49&\".\"&K$89&\".\"&$U$7,$B$95,$B$96,CONFIGURATION!$B$10,\"BMA\",CONFIGURATION!$B$1,\"bscr\",1000)","v":"Mapped"},{"$f":"XBRLMap(L49,L$87&\".\"&$U$4&\".\"&$U49&\".\"&L$89&\".\"&$U$7,$B$95,$B$96,CONFIGURATION!$B$10,\"BMA\",CONFIGURATION!$B$1,\"bscr\",1000)","v":"Mapped"},{"$f":"XBRLMap(M49,M$87&\".\"&$U$4&\".\"&$U49&\".\"&M$89&\".\"&$U$7,$B$95,$B$96,CONFIGURATION!$B$10,\"BMA\",CONFIGURATION!$B$1,\"bscr\",1000)","v":"Mapped"},null,null,null,{"$f":"\"IBNRCY\"&F$10&\"AY\"&B49","v":"IBNRCY2013AY2011"},{"$f":"F49","v":0}]
[null,null,null,null,{"$f":"XBRLMap(E50,E$87&\".\"&$U$4&\".\"&$U50&\".\"&E$89&\".\"&$U$7,$B$95,$B$96,CONFIGURATION!$B$10,\"BMA\",CONFIGURATION!$B$1,\"bscr\",1000)","v":"Mapped"},{"$f":"XBRLMap(F50,F$87&\".\"&$U$4&\".\"&$U50&\".\"&F$89&\".\"&$U$7,$B$95,$B$96,CONFIGURATION!$B$10,\"BMA\",CONFIGURATION!$B$1,\"bscr\",1000)","v":"Mapped"},{"$f":"XBRLMap(G50,G$87&\".\"&$U$4&\".\"&$U50&\".\"&G$89&\".\"&$U$7,$B$95,$B$96,CONFIGURATION!$B$10,\"BMA\",CONFIGURATION!$B$1,\"bscr\",1000)","v":"Mapped"},{"$f":"XBRLMap(H50,H$87&\".\"&$U$4&\".\"&$U50&\".\"&H$89&\".\"&$U$7,$B$95,$B$96,CONFIGURATION!$B$10,\"BMA\",CONFIGURATION!$B$1,\"bscr\",1000)","v":"Mapped"},{"$f":"XBRLMap(I50,I$87&\".\"&$U$4&\".\"&$U50&\".\"&I$89&\".\"&$U$7,$B$95,$B$96,CONFIGURATION!$B$10,\"BMA\",CONFIGURATION!$B$1,\"bscr\",1000)","v":"Mapped"},{"$f":"XBRLMap(J50,J$87&\".\"&$U$4&\".\"&$U50&\".\"&J$89&\".\"&$U$7,$B$95,$B$96,CONFIGURATION!$B$10,\"BMA\",CONFIGURATION!$B$1,\"bscr\",1000)","v":"Mapped"},{"$f":"XBRLMap(K50,K$87&\".\"&$U$4&\".\"&$U50&\".\"&K$89&\".\"&$U$7,$B$95,$B$96,CONFIGURATION!$B$10,\"BMA\",CONFIGURATION!$B$1,\"bscr\",1000)","v":"Mapped"},{"$f":"XBRLMap(L50,L$87&\".\"&$U$4&\".\"&$U50&\".\"&L$89&\".\"&$U$7,$B$95,$B$96,CONFIGURATION!$B$10,\"BMA\",CONFIGURATION!$B$1,\"bscr\",1000)","v":"Mapped"},{"$f":"XBRLMap(M50,M$87&\".\"&$U$4&\".\"&$U50&\".\"&M$89&\".\"&$U$7,$B$95,$B$96,CONFIGURATION!$B$10,\"BMA\",CONFIGURATION!$B$1,\"bscr\",1000)","v":"Mapped"},null,null,null,{"$f":"\"IBNRCY\"&F$10&\"AY\"&B50","v":"IBNRCY2013AY2012"},{"$f":"F50","v":0}]
[null,null,null,null,null,{"$f":"XBRLMap(F51,F$87&\".\"&$U$4&\".\"&$U51&\".\"&F$89&\".\"&$U$7,$B$95,$B$96,CONFIGURATION!$B$10,\"BMA\",CONFIGURATION!$B$1,\"bscr\",1000)","v":"Mapped"},{"$f":"XBRLMap(G51,G$87&\".\"&$U$4&\".\"&$U51&\".\"&G$89&\".\"&$U$7,$B$95,$B$96,CONFIGURATION!$B$10,\"BMA\",CONFIGURATION!$B$1,\"bscr\",1000)","v":"Mapped"},{"$f":"XBRLMap(H51,H$87&\".\"&$U$4&\".\"&$U51&\".\"&H$89&\".\"&$U$7,$B$95,$B$96,CONFIGURATION!$B$10,\"BMA\",CONFIGURATION!$B$1,\"bscr\",1000)","v":"Mapped"},{"$f":"XBRLMap(I51,I$87&\".\"&$U$4&\".\"&$U51&\".\"&I$89&\".\"&$U$7,$B$95,$B$96,CONFIGURATION!$B$10,\"BMA\",CONFIGURATION!$B$1,\"bscr\",1000)","v":"Mapped"},{"$f":"XBRLMap(J51,J$87&\".\"&$U$4&\".\"&$U51&\".\"&J$89&\".\"&$U$7,$B$95,$B$96,CONFIGURATION!$B$10,\"BMA\",CONFIGURATION!$B$1,\"bscr\",1000)","v":"Mapped"},{"$f":"XBRLMap(K51,K$87&\".\"&$U$4&\".\"&$U51&\".\"&K$89&\".\"&$U$7,$B$95,$B$96,CONFIGURATION!$B$10,\"BMA\",CONFIGURATION!$B$1,\"bscr\",1000)","v":"Mapped"},{"$f":"XBRLMap(L51,L$87&\".\"&$U$4&\".\"&$U51&\".\"&L$89&\".\"&$U$7,$B$95,$B$96,CONFIGURATION!$B$10,\"BMA\",CONFIGURATION!$B$1,\"bscr\",1000)","v":"Mapped"},{"$f":"XBRLMap(M51,M$87&\".\"&$U$4&\".\"&$U51&\".\"&M$89&\".\"&$U$7,$B$95,$B$96,CONFIGURATION!$B$10,\"BMA\",CONFIGURATION!$B$1,\"bscr\",1000)","v":"Mapped"},null,null,null,{"$f":"\"IBNRCY\"&F$10&\"AY\"&B51","v":"IBNRCY2013AY2013"},{"$f":"F51","v":0}]
[null,null,null,null,null,null,{"$f":"XBRLMap(G52,G$87&\".\"&$U$4&\".\"&$U52&\".\"&G$89&\".\"&$U$7,$B$95,$B$96,CONFIGURATION!$B$10,\"BMA\",CONFIGURATION!$B$1,\"bscr\",1000)","v":"Mapped"},{"$f":"XBRLMap(H52,H$87&\".\"&$U$4&\".\"&$U52&\".\"&H$89&\".\"&$U$7,$B$95,$B$96,CONFIGURATION!$B$10,\"BMA\",CONFIGURATION!$B$1,\"bscr\",1000)","v":"Mapped"},{"$f":"XBRLMap(I52,I$87&\".\"&$U$4&\".\"&$U52&\".\"&I$89&\".\"&$U$7,$B$95,$B$96,CONFIGURATION!$B$10,\"BMA\",CONFIGURATION!$B$1,\"bscr\",1000)","v":"Mapped"},{"$f":"XBRLMap(J52,J$87&\".\"&$U$4&\".\"&$U52&\".\"&J$89&\".\"&$U$7,$B$95,$B$96,CONFIGURATION!$B$10,\"BMA\",CONFIGURATION!$B$1,\"bscr\",1000)","v":"Mapped"},{"$f":"XBRLMap(K52,K$87&\".\"&$U$4&\".\"&$U52&\".\"&K$89&\".\"&$U$7,$B$95,$B$96,CONFIGURATION!$B$10,\"BMA\",CONFIGURATION!$B$1,\"bscr\",1000)","v":"Mapped"},{"$f":"XBRLMap(L52,L$87&\".\"&$U$4&\".\"&$U52&\".\"&L$89&\".\"&$U$7,$B$95,$B$96,CONFIGURATION!$B$10,\"BMA\",CONFIGURATION!$B$1,\"bscr\",1000)","v":"Mapped"},{"$f":"XBRLMap(M52,M$87&\".\"&$U$4&\".\"&$U52&\".\"&M$89&\".\"&$U$7,$B$95,$B$96,CONFIGURATION!$B$10,\"BMA\",CONFIGURATION!$B$1,\"bscr\",1000)","v":"Mapped"},null,null,null,{"$f":"\"IBNRCY\"&G$10&\"AY\"&B47","v":"IBNRCY2014AYPrior"},{"$f":"G47","v":0}]
[null,null,null,null,null,null,null,{"$f":"XBRLMap(H53,H$87&\".\"&$U$4&\".\"&$U53&\".\"&H$89&\".\"&$U$7,$B$95,$B$96,CONFIGURATION!$B$10,\"BMA\",CONFIGURATION!$B$1,\"bscr\",1000)","v":"Mapped"},{"$f":"XBRLMap(I53,I$87&\".\"&$U$4&\".\"&$U53&\".\"&I$89&\".\"&$U$7,$B$95,$B$96,CONFIGURATION!$B$10,\"BMA\",CONFIGURATION!$B$1,\"bscr\",1000)","v":"Mapped"},{"$f":"XBRLMap(J53,J$87&\".\"&$U$4&\".\"&$U53&\".\"&J$89&\".\"&$U$7,$B$95,$B$96,CONFIGURATION!$B$10,\"BMA\",CONFIGURATION!$B$1,\"bscr\",1000)","v":"Mapped"},{"$f":"XBRLMap(K53,K$87&\".\"&$U$4&\".\"&$U53&\".\"&K$89&\".\"&$U$7,$B$95,$B$96,CONFIGURATION!$B$10,\"BMA\",CONFIGURATION!$B$1,\"bscr\",1000)","v":"Mapped"},{"$f":"XBRLMap(L53,L$87&\".\"&$U$4&\".\"&$U53&\".\"&L$89&\".\"&$U$7,$B$95,$B$96,CONFIGURATION!$B$10,\"BMA\",CONFIGURATION!$B$1,\"bscr\",1000)","v":"Mapped"},{"$f":"XBRLMap(M53,M$87&\".\"&$U$4&\".\"&$U53&\".\"&M$89&\".\"&$U$7,$B$95,$B$96,CONFIGURATION!$B$10,\"BMA\",CONFIGURATION!$B$1,\"bscr\",1000)","v":"Mapped"},null,null,null,"IBNRCY2014AY2010",0]
[null,null,null,null,null,null,null,null,{"$f":"XBRLMap(I54,I$87&\".\"&$U$4&\".\"&$U54&\".\"&I$89&\".\"&$U$7,$B$95,$B$96,CONFIGURATION!$B$10,\"BMA\",CONFIGURATION!$B$1,\"bscr\",1000)","v":"Mapped"},{"$f":"XBRLMap(J54,J$87&\".\"&$U$4&\".\"&$U54&\".\"&J$89&\".\"&$U$7,$B$95,$B$96,CONFIGURATION!$B$10,\"BMA\",CONFIGURATION!$B$1,\"bscr\",1000)","v":"Mapped"},{"$f":"XBRLMap(K54,K$87&\".\"&$U$4&\".\"&$U54&\".\"&K$89&\".\"&$U$7,$B$95,$B$96,CONFIGURATION!$B$10,\"BMA\",CONFIGURATION!$B$1,\"bscr\",1000)","v":"Mapped"},{"$f":"XBRLMap(L54,L$87&\".\"&$U$4&\".\"&$U54&\".\"&L$89&\".\"&$U$7,$B$95,$B$96,CONFIGURATION!$B$10,\"BMA\",CONFIGURATION!$B$1,\"bscr\",1000)","v":"Mapped"},{"$f":"XBRLMap(M54,M$87&\".\"&$U$4&\".\"&$U54&\".\"&M$89&\".\"&$U$7,$B$95,$B$96,CONFIGURATION!$B$10,\"BMA\",CONFIGURATION!$B$1,\"bscr\",1000)","v":"Mapped"},null,null,null,"IBNRCY2014AY2011",0]
[null,null,null,null,null,null,null,null,null,{"$f":"XBRLMap(J55,J$87&\".\"&$U$4&\".\"&$U55&\".\"&J$89&\".\"&$U$7,$B$95,$B$96,CONFIGURATION!$B$10,\"BMA\",CONFIGURATION!$B$1,\"bscr\",1000)","v":"Mapped"},{"$f":"XBRLMap(K55,K$87&\".\"&$U$4&\".\"&$U55&\".\"&K$89&\".\"&$U$7,$B$95,$B$96,CONFIGURATION!$B$10,\"BMA\",CONFIGURATION!$B$1,\"bscr\",1000)","v":"Mapped"},{"$f":"XBRLMap(L55,L$87&\".\"&$U$4&\".\"&$U55&\".\"&L$89&\".\"&$U$7,$B$95,$B$96,CONFIGURATION!$B$10,\"BMA\",CONFIGURATION!$B$1,\"bscr\",1000)","v":"Mapped"},{"$f":"XBRLMap(M55,M$87&\".\"&$U$4&\".\"&$U55&\".\"&M$89&\".\"&$U$7,$B$95,$B$96,CONFIGURATION!$B$10,\"BMA\",CONFIGURATION!$B$1,\"bscr\",1000)","v":"Mapped"},null,null,null,"IBNRCY2014AY2012",0]
[null,null,null,null,null,null,null,null,null,null,{"$f":"XBRLMap(K56,K$87&\".\"&$U$4&\".\"&$U56&\".\"&K$89&\".\"&$U$7,$B$95,$B$96,CONFIGURATION!$B$10,\"BMA\",CONFIGURATION!$B$1,\"bscr\",1000)","v":"Mapped"},{"$f":"XBRLMap(L56,L$87&\".\"&$U$4&\".\"&$U56&\".\"&L$89&\".\"&$U$7,$B$95,$B$96,CONFIGURATION!$B$10,\"BMA\",CONFIGURATION!$B$1,\"bscr\",1000)","v":"Mapped"},{"$f":"XBRLMap(M56,M$87&\".\"&$U$4&\".\"&$U56&\".\"&M$89&\".\"&$U$7,$B$95,$B$96,CONFIGURATION!$B$10,\"BMA\",CONFIGURATION!$B$1,\"bscr\",1000)","v":"Mapped"},null,null,null,"IBNRCY2014AY2013",0]
[null,null,null,null,null,null,null,null,null,null,null,{"$f":"XBRLMap(L57,L$87&\".\"&$U$4&\".\"&$U57&\".\"&L$89&\".\"&$U$7,$B$95,$B$96,CONFIGURATION!$B$10,\"BMA\",CONFIGURATION!$B$1,\"bscr\",1000)","v":"Mapped"},{"$f":"XBRLMap(M57,M$87&\".\"&$U$4&\".\"&$U57&\".\"&M$89&\".\"&$U$7,$B$95,$B$96,CONFIGURATION!$B$10,\"BMA\",CONFIGURATION!$B$1,\"bscr\",1000)","v":"Mapped"},null,null,null,"IBNRCY2014AY2014",0]
[null,null,null,null,null,null,null,null,null,null,null,null,null,null,null,null,{"$f":"\"IBNRCY\"&H$10&\"AY\"&B47","v":"IBNRCY2015AYPrior"},{"$f":"H47","v":0}]
[null,null,null,null,null,null,null,null,null,null,null,null,null,null,null,null,"IBNRCY2015AY2010",0]
[null,null,null,null,null,null,null,null,null,null,null,null,null,null,null,null,"IBNRCY2015AY2011",0]
[null,null,null,null,null,null,null,null,null,null,null,null,null,null,null,null,"IBNRCY2015AY2012",0]
[null,null,null,null,null,null,null,null,null,null,null,null,null,null,null,null,"IBNRCY2015AY2013",0]
[null,null,null,null,null,null,null,null,null,null,null,null,null,null,null,null,"IBNRCY2015AY2014",0]
[null,null,null,null,null,null,null,null,null,null,null,null,null,null,null,null,"IBNRCY2015AY2015",0]
[null,null,null,null,null,null,null,null,null,null,null,null,null,null,null,null,{"$f":"\"IBNRCY\"&I$10&\"AY\"&B47","v":"IBNRCY2016AYPrior"},{"$f":"I47","v":0}]
[null,null,null,null,null,null,null,null,null,null,null,null,null,null,null,null,"IBNRCY2016AY2010",0]
[null,null,null,null,null,null,null,null,null,null,null,null,null,null,null,null,"IBNRCY2016AY2011",0]
[null,null,null,null,null,null,{"$f":"XBRLMap(G67,G$88&\".\"&$U$4&\".\"&$U67&\".\"&$U$7,$B$95,$B$96,CONFIGURATION!$B$10,\"BMA\",CONFIGURATION!$B$1,\"bscr\",1000)","v":"Mapped"},{"$f":"XBRLMap(H67,H$88&\".\"&$U$4&\".\"&$U67&\".\"&$U$7,$B$95,$B$96,CONFIGURATION!$B$10,\"BMA\",CONFIGURATION!$B$1,\"bscr\",1000)","v":"Mapped"},null,{"$f":"XBRLMap(J67,J$88&\".\"&$U$4&\".\"&$V67&\".\"&$U$7,$B$95,$B$96,CONFIGURATION!$B$10,\"BMA\",CONFIGURATION!$B$1,\"bscr\",1000)","v":"Mapped"},{"$f":"XBRLMap(K67,K$88&\".\"&$U$4&\".\"&$V67&\".\"&$U$7,$B$95,$B$96,CONFIGURATION!$B$10,\"BMA\",CONFIGURATION!$B$1,\"bscr\",1000)","v":"Mapped"},{"$f":"XBRLMap(L67,L$88&\".\"&$U$4&\".\"&$V67&\".\"&$U$7,$B$95,$B$96,CONFIGURATION!$B$10,\"BMA\",CONFIGURATION!$B$1,\"bscr\",1000)","v":"Mapped"},{"$f":"XBRLMap(M67,M$88&\".\"&$U$4&\".\"&$V67&\".\"&$U$7,$B$95,$B$96,CONFIGURATION!$B$10,\"BMA\",CONFIGURATION!$B$1,\"bscr\",1000)","v":"Mapped"},null,null,null,"IBNRCY2016AY2012",0]
[null,null,{"$f":"XBRLMap(C68,C$88&\".\"&$U$4&\".\"&$U68&\".\"&$U$7,$B$95,$B$96,CONFIGURATION!$B$10,\"BMA\",CONFIGURATION!$B$1,\"bscr\",1000)","v":"Mapped"},{"$f":"XBRLMap(D68,D$88&\".\"&$U$4&\".\"&$U68&\".\"&$U$7,$B$95,$B$96,CONFIGURATION!$B$10,\"BMA\",CONFIGURATION!$B$1,\"bscr\",1000)","v":"Mapped"},{"$f":"XBRLMap(E68,E$88&\".\"&$U$4&\".\"&$U68&\".\"&$U$7,$B$95,$B$96,CONFIGURATION!$B$10,\"BMA\",CONFIGURATION!$B$1,\"bscr\",1000)","v":"Mapped"},{"$f":"XBRLMap(F68,F$88&\".\"&$U$4&\".\"&$U68&\".\"&$U$7,$B$95,$B$96,CONFIGURATION!$B$10,\"BMA\",CONFIGURATION!$B$1,\"bscr\",1000)","v":"Mapped"},{"$f":"XBRLMap(G68,G$88&\".\"&$U$4&\".\"&$U68&\".\"&$U$7,$B$95,$B$96,CONFIGURATION!$B$10,\"BMA\",CONFIGURATION!$B$1,\"bscr\",1000)","v":"Mapped"},{"$f":"XBRLMap(H68,H$88&\".\"&$U$4&\".\"&$U68&\".\"&$U$7,$B$95,$B$96,CONFIGURATION!$B$10,\"BMA\",CONFIGURATION!$B$1,\"bscr\",1000)","v":"Mapped"},null,{"$f":"XBRLMap(J68,J$88&\".\"&$U$4&\".\"&$V68&\".\"&$U$7,$B$95,$B$96,CONFIGURATION!$B$10,\"BMA\",CONFIGURATION!$B$1,\"bscr\",1000)","v":"Mapped"},{"$f":"XBRLMap(K68,K$88&\".\"&$U$4&\".\"&$V68&\".\"&$U$7,$B$95,$B$96,CONFIGURATION!$B$10,\"BMA\",CONFIGURATION!$B$1,\"bscr\",1000)","v":"Mapped"},{"$f":"XBRLMap(L68,L$88&\".\"&$U$4&\".\"&$V68&\".\"&$U$7,$B$95,$B$96,CONFIGURATION!$B$10,\"BMA\",CONFIGURATION!$B$1,\"bscr\",1000)","v":"Mapped"},{"$f":"XBRLMap(M68,M$88&\".\"&$U$4&\".\"&$V68&\".\"&$U$7,$B$95,$B$96,CONFIGURATION!$B$10,\"BMA\",CONFIGURATION!$B$1,\"bscr\",1000)","v":"Mapped"},null,null,null,"IBNRCY2016AY2013",0]
[null,null,{"$f":"XBRLMap(C69,C$88&\".\"&$U$4&\".\"&$U69&\".\"&$U$7,$B$95,$B$96,CONFIGURATION!$B$10,\"BMA\",CONFIGURATION!$B$1,\"bscr\",1000)","v":"Mapped"},{"$f":"XBRLMap(D69,D$88&\".\"&$U$4&\".\"&$U69&\".\"&$U$7,$B$95,$B$96,CONFIGURATION!$B$10,\"BMA\",CONFIGURATION!$B$1,\"bscr\",1000)","v":"Mapped"},{"$f":"XBRLMap(E69,E$88&\".\"&$U$4&\".\"&$U69&\".\"&$U$7,$B$95,$B$96,CONFIGURATION!$B$10,\"BMA\",CONFIGURATION!$B$1,\"bscr\",1000)","v":"Mapped"},{"$f":"XBRLMap(F69,F$88&\".\"&$U$4&\".\"&$U69&\".\"&$U$7,$B$95,$B$96,CONFIGURATION!$B$10,\"BMA\",CONFIGURATION!$B$1,\"bscr\",1000)","v":"Mapped"},{"$f":"XBRLMap(G69,G$88&\".\"&$U$4&\".\"&$U69&\".\"&$U$7,$B$95,$B$96,CONFIGURATION!$B$10,\"BMA\",CONFIGURATION!$B$1,\"bscr\",1000)","v":"Mapped"},{"$f":"XBRLMap(H69,H$88&\".\"&$U$4&\".\"&$U69&\".\"&$U$7,$B$95,$B$96,CONFIGURATION!$B$10,\"BMA\",CONFIGURATION!$B$1,\"bscr\",1000)","v":"Mapped"},null,{"$f":"XBRLMap(J69,J$88&\".\"&$U$4&\".\"&$V69&\".\"&$U$7,$B$95,$B$96,CONFIGURATION!$B$10,\"BMA\",CONFIGURATION!$B$1,\"bscr\",1000)","v":"Mapped"},{"$f":"XBRLMap(K69,K$88&\".\"&$U$4&\".\"&$V69&\".\"&$U$7,$B$95,$B$96,CONFIGURATION!$B$10,\"BMA\",CONFIGURATION!$B$1,\"bscr\",1000)","v":"Mapped"},{"$f":"XBRLMap(L69,L$88&\".\"&$U$4&\".\"&$V69&\".\"&$U$7,$B$95,$B$96,CONFIGURATION!$B$10,\"BMA\",CONFIGURATION!$B$1,\"bscr\",1000)","v":"Mapped"},{"$f":"XBRLMap(M69,M$88&\".\"&$U$4&\".\"&$V69&\".\"&$U$7,$B$95,$B$96,CONFIGURATION!$B$10,\"BMA\",CONFIGURATION!$B$1,\"bscr\",1000)","v":"Mapped"},null,null,null,"IBNRCY2016AY2014",0]
[null,null,{"$f":"XBRLMap(C70,C$88&\".\"&$U$4&\".\"&$U70&\".\"&$U$7,$B$95,$B$96,CONFIGURATION!$B$10,\"BMA\",CONFIGURATION!$B$1,\"bscr\",1000)","v":"Mapped"},{"$f":"XBRLMap(D70,D$88&\".\"&$U$4&\".\"&$U70&\".\"&$U$7,$B$95,$B$96,CONFIGURATION!$B$10,\"BMA\",CONFIGURATION!$B$1,\"bscr\",1000)","v":"Mapped"},{"$f":"XBRLMap(E70,E$88&\".\"&$U$4&\".\"&$U70&\".\"&$U$7,$B$95,$B$96,CONFIGURATION!$B$10,\"BMA\",CONFIGURATION!$B$1,\"bscr\",1000)","v":"Mapped"},{"$f":"XBRLMap(F70,F$88&\".\"&$U$4&\".\"&$U70&\".\"&$U$7,$B$95,$B$96,CONFIGURATION!$B$10,\"BMA\",CONFIGURATION!$B$1,\"bscr\",1000)","v":"Mapped"},{"$f":"XBRLMap(G70,G$88&\".\"&$U$4&\".\"&$U70&\".\"&$U$7,$B$95,$B$96,CONFIGURATION!$B$10,\"BMA\",CONFIGURATION!$B$1,\"bscr\",1000)","v":"Mapped"},{"$f":"XBRLMap(H70,H$88&\".\"&$U$4&\".\"&$U70&\".\"&$U$7,$B$95,$B$96,CONFIGURATION!$B$10,\"BMA\",CONFIGURATION!$B$1,\"bscr\",1000)","v":"Mapped"},null,{"$f":"XBRLMap(J70,J$88&\".\"&$U$4&\".\"&$V70&\".\"&$U$7,$B$95,$B$96,CONFIGURATION!$B$10,\"BMA\",CONFIGURATION!$B$1,\"bscr\",1000)","v":"Mapped"},{"$f":"XBRLMap(K70,K$88&\".\"&$U$4&\".\"&$V70&\".\"&$U$7,$B$95,$B$96,CONFIGURATION!$B$10,\"BMA\",CONFIGURATION!$B$1,\"bscr\",1000)","v":"Mapped"},{"$f":"XBRLMap(L70,L$88&\".\"&$U$4&\".\"&$V70&\".\"&$U$7,$B$95,$B$96,CONFIGURATION!$B$10,\"BMA\",CONFIGURATION!$B$1,\"bscr\",1000)","v":"Mapped"},{"$f":"XBRLMap(M70,M$88&\".\"&$U$4&\".\"&$V70&\".\"&$U$7,$B$95,$B$96,CONFIGURATION!$B$10,\"BMA\",CONFIGURATION!$B$1,\"bscr\",1000)","v":"Mapped"},null,null,null,"IBNRCY2016AY2015",0]
[null,null,{"$f":"XBRLMap(C71,C$88&\".\"&$U$4&\".\"&$U71&\".\"&$U$7,$B$95,$B$96,CONFIGURATION!$B$10,\"BMA\",CONFIGURATION!$B$1,\"bscr\",1000)","v":"Mapped"},{"$f":"XBRLMap(D71,D$88&\".\"&$U$4&\".\"&$U71&\".\"&$U$7,$B$95,$B$96,CONFIGURATION!$B$10,\"BMA\",CONFIGURATION!$B$1,\"bscr\",1000)","v":"Mapped"},{"$f":"XBRLMap(E71,E$88&\".\"&$U$4&\".\"&$U71&\".\"&$U$7,$B$95,$B$96,CONFIGURATION!$B$10,\"BMA\",CONFIGURATION!$B$1,\"bscr\",1000)","v":"Mapped"},{"$f":"XBRLMap(F71,F$88&\".\"&$U$4&\".\"&$U71&\".\"&$U$7,$B$95,$B$96,CONFIGURATION!$B$10,\"BMA\",CONFIGURATION!$B$1,\"bscr\",1000)","v":"Mapped"},{"$f":"XBRLMap(G71,G$88&\".\"&$U$4&\".\"&$U71&\".\"&$U$7,$B$95,$B$96,CONFIGURATION!$B$10,\"BMA\",CONFIGURATION!$B$1,\"bscr\",1000)","v":"Mapped"},{"$f":"XBRLMap(H71,H$88&\".\"&$U$4&\".\"&$U71&\".\"&$U$7,$B$95,$B$96,CONFIGURATION!$B$10,\"BMA\",CONFIGURATION!$B$1,\"bscr\",1000)","v":"Mapped"},null,{"$f":"XBRLMap(J71,J$88&\".\"&$U$4&\".\"&$V71&\".\"&$U$7,$B$95,$B$96,CONFIGURATION!$B$10,\"BMA\",CONFIGURATION!$B$1,\"bscr\",1000)","v":"Mapped"},{"$f":"XBRLMap(K71,K$88&\".\"&$U$4&\".\"&$V71&\".\"&$U$7,$B$95,$B$96,CONFIGURATION!$B$10,\"BMA\",CONFIGURATION!$B$1,\"bscr\",1000)","v":"Mapped"},{"$f":"XBRLMap(L71,L$88&\".\"&$U$4&\".\"&$V71&\".\"&$U$7,$B$95,$B$96,CONFIGURATION!$B$10,\"BMA\",CONFIGURATION!$B$1,\"bscr\",1000)","v":"Mapped"},{"$f":"XBRLMap(M71,M$88&\".\"&$U$4&\".\"&$V71&\".\"&$U$7,$B$95,$B$96,CONFIGURATION!$B$10,\"BMA\",CONFIGURATION!$B$1,\"bscr\",1000)","v":"Mapped"},null,null,null,"IBNRCY2016AY2016",0]
[null,null,{"$f":"XBRLMap(C72,C$88&\".\"&$U$4&\".\"&$U72&\".\"&$U$7,$B$95,$B$96,CONFIGURATION!$B$10,\"BMA\",CONFIGURATION!$B$1,\"bscr\",1000)","v":"Mapped"},{"$f":"XBRLMap(D72,D$88&\".\"&$U$4&\".\"&$U72&\".\"&$U$7,$B$95,$B$96,CONFIGURATION!$B$10,\"BMA\",CONFIGURATION!$B$1,\"bscr\",1000)","v":"Mapped"},{"$f":"XBRLMap(E72,E$88&\".\"&$U$4&\".\"&$U72&\".\"&$U$7,$B$95,$B$96,CONFIGURATION!$B$10,\"BMA\",CONFIGURATION!$B$1,\"bscr\",1000)","v":"Mapped"},{"$f":"XBRLMap(F72,F$88&\".\"&$U$4&\".\"&$U72&\".\"&$U$7,$B$95,$B$96,CONFIGURATION!$B$10,\"BMA\",CONFIGURATION!$B$1,\"bscr\",1000)","v":"Mapped"},{"$f":"XBRLMap(G72,G$88&\".\"&$U$4&\".\"&$U72&\".\"&$U$7,$B$95,$B$96,CONFIGURATION!$B$10,\"BMA\",CONFIGURATION!$B$1,\"bscr\",1000)","v":"Mapped"},{"$f":"XBRLMap(H72,H$88&\".\"&$U$4&\".\"&$U72&\".\"&$U$7,$B$95,$B$96,CONFIGURATION!$B$10,\"BMA\",CONFIGURATION!$B$1,\"bscr\",1000)","v":"Mapped"},null,{"$f":"XBRLMap(J72,J$88&\".\"&$U$4&\".\"&$V72&\".\"&$U$7,$B$95,$B$96,CONFIGURATION!$B$10,\"BMA\",CONFIGURATION!$B$1,\"bscr\",1000)","v":"Mapped"},{"$f":"XBRLMap(K72,K$88&\".\"&$U$4&\".\"&$V72&\".\"&$U$7,$B$95,$B$96,CONFIGURATION!$B$10,\"BMA\",CONFIGURATION!$B$1,\"bscr\",1000)","v":"Mapped"},{"$f":"XBRLMap(L72,L$88&\".\"&$U$4&\".\"&$V72&\".\"&$U$7,$B$95,$B$96,CONFIGURATION!$B$10,\"BMA\",CONFIGURATION!$B$1,\"bscr\",1000)","v":"Mapped"},{"$f":"XBRLMap(M72,M$88&\".\"&$U$4&\".\"&$V72&\".\"&$U$7,$B$95,$B$96,CONFIGURATION!$B$10,\"BMA\",CONFIGURATION!$B$1,\"bscr\",1000)","v":"Mapped"},null,null,null,{"$f":"\"IBNRCY\"&J$10&\"AY\"&B47","v":"IBNRCY2017AYPrior"},{"$f":"J47","v":0}]
[null,null,{"$f":"XBRLMap(C73,C$88&\".\"&$U$4&\".\"&$U73&\".\"&$U$7,$B$95,$B$96,CONFIGURATION!$B$10,\"BMA\",CONFIGURATION!$B$1,\"bscr\",1000)","v":"Mapped"},{"$f":"XBRLMap(D73,D$88&\".\"&$U$4&\".\"&$U73&\".\"&$U$7,$B$95,$B$96,CONFIGURATION!$B$10,\"BMA\",CONFIGURATION!$B$1,\"bscr\",1000)","v":"Mapped"},{"$f":"XBRLMap(E73,E$88&\".\"&$U$4&\".\"&$U73&\".\"&$U$7,$B$95,$B$96,CONFIGURATION!$B$10,\"BMA\",CONFIGURATION!$B$1,\"bscr\",1000)","v":"Mapped"},{"$f":"XBRLMap(F73,F$88&\".\"&$U$4&\".\"&$U73&\".\"&$U$7,$B$95,$B$96,CONFIGURATION!$B$10,\"BMA\",CONFIGURATION!$B$1,\"bscr\",1000)","v":"Mapped"},{"$f":"XBRLMap(G73,G$88&\".\"&$U$4&\".\"&$U73&\".\"&$U$7,$B$95,$B$96,CONFIGURATION!$B$10,\"BMA\",CONFIGURATION!$B$1,\"bscr\",1000)","v":"Mapped"},{"$f":"XBRLMap(H73,H$88&\".\"&$U$4&\".\"&$U73&\".\"&$U$7,$B$95,$B$96,CONFIGURATION!$B$10,\"BMA\",CONFIGURATION!$B$1,\"bscr\",1000)","v":"Mapped"},null,{"$f":"XBRLMap(J73,J$88&\".\"&$U$4&\".\"&$V73&\".\"&$U$7,$B$95,$B$96,CONFIGURATION!$B$10,\"BMA\",CONFIGURATION!$B$1,\"bscr\",1000)","v":"Mapped"},{"$f":"XBRLMap(K73,K$88&\".\"&$U$4&\".\"&$V73&\".\"&$U$7,$B$95,$B$96,CONFIGURATION!$B$10,\"BMA\",CONFIGURATION!$B$1,\"bscr\",1000)","v":"Mapped"},{"$f":"XBRLMap(L73,L$88&\".\"&$U$4&\".\"&$V73&\".\"&$U$7,$B$95,$B$96,CONFIGURATION!$B$10,\"BMA\",CONFIGURATION!$B$1,\"bscr\",1000)","v":"Mapped"},{"$f":"XBRLMap(M73,M$88&\".\"&$U$4&\".\"&$V73&\".\"&$U$7,$B$95,$B$96,CONFIGURATION!$B$10,\"BMA\",CONFIGURATION!$B$1,\"bscr\",1000)","v":"Mapped"},null,null,null,"IBNRCY2017AY2010",0]
[null,null,{"$f":"XBRLMap(C74,C$88&\".\"&$U$4&\".\"&$U74&\".\"&$U$7,$B$95,$B$96,CONFIGURATION!$B$10,\"BMA\",CONFIGURATION!$B$1,\"bscr\",1000)","v":"Mapped"},{"$f":"XBRLMap(D74,D$88&\".\"&$U$4&\".\"&$U74&\".\"&$U$7,$B$95,$B$96,CONFIGURATION!$B$10,\"BMA\",CONFIGURATION!$B$1,\"bscr\",1000)","v":"Mapped"},{"$f":"XBRLMap(E74,E$88&\".\"&$U$4&\".\"&$U74&\".\"&$U$7,$B$95,$B$96,CONFIGURATION!$B$10,\"BMA\",CONFIGURATION!$B$1,\"bscr\",1000)","v":"Mapped"},{"$f":"XBRLMap(F74,F$88&\".\"&$U$4&\".\"&$U74&\".\"&$U$7,$B$95,$B$96,CONFIGURATION!$B$10,\"BMA\",CONFIGURATION!$B$1,\"bscr\",1000)","v":"Mapped"},{"$f":"XBRLMap(G74,G$88&\".\"&$U$4&\".\"&$U74&\".\"&$U$7,$B$95,$B$96,CONFIGURATION!$B$10,\"BMA\",CONFIGURATION!$B$1,\"bscr\",1000)","v":"Mapped"},{"$f":"XBRLMap(H74,H$88&\".\"&$U$4&\".\"&$U74&\".\"&$U$7,$B$95,$B$96,CONFIGURATION!$B$10,\"BMA\",CONFIGURATION!$B$1,\"bscr\",1000)","v":"Mapped"},null,{"$f":"XBRLMap(J74,J$88&\".\"&$U$4&\".\"&$V74&\".\"&$U$7,$B$95,$B$96,CONFIGURATION!$B$10,\"BMA\",CONFIGURATION!$B$1,\"bscr\",1000)","v":"Mapped"},{"$f":"XBRLMap(K74,K$88&\".\"&$U$4&\".\"&$V74&\".\"&$U$7,$B$95,$B$96,CONFIGURATION!$B$10,\"BMA\",CONFIGURATION!$B$1,\"bscr\",1000)","v":"Mapped"},{"$f":"XBRLMap(L74,L$88&\".\"&$U$4&\".\"&$V74&\".\"&$U$7,$B$95,$B$96,CONFIGURATION!$B$10,\"BMA\",CONFIGURATION!$B$1,\"bscr\",1000)","v":"Mapped"},{"$f":"XBRLMap(M74,M$88&\".\"&$U$4&\".\"&$V74&\".\"&$U$7,$B$95,$B$96,CONFIGURATION!$B$10,\"BMA\",CONFIGURATION!$B$1,\"bscr\",1000)","v":"Mapped"},null,null,null,"IBNRCY2017AY2011",0]
[null,null,{"$f":"XBRLMap(C75,C$88&\".\"&$U$4&\".\"&$U75&\".\"&$U$7,$B$95,$B$96,CONFIGURATION!$B$10,\"BMA\",CONFIGURATION!$B$1,\"bscr\",1000)","v":"Mapped"},{"$f":"XBRLMap(D75,D$88&\".\"&$U$4&\".\"&$U75&\".\"&$U$7,$B$95,$B$96,CONFIGURATION!$B$10,\"BMA\",CONFIGURATION!$B$1,\"bscr\",1000)","v":"Mapped"},{"$f":"XBRLMap(E75,E$88&\".\"&$U$4&\".\"&$U75&\".\"&$U$7,$B$95,$B$96,CONFIGURATION!$B$10,\"BMA\",CONFIGURATION!$B$1,\"bscr\",1000)","v":"Mapped"},{"$f":"XBRLMap(F75,F$88&\".\"&$U$4&\".\"&$U75&\".\"&$U$7,$B$95,$B$96,CONFIGURATION!$B$10,\"BMA\",CONFIGURATION!$B$1,\"bscr\",1000)","v":"Mapped"},{"$f":"XBRLMap(G75,G$88&\".\"&$U$4&\".\"&$U75&\".\"&$U$7,$B$95,$B$96,CONFIGURATION!$B$10,\"BMA\",CONFIGURATION!$B$1,\"bscr\",1000)","v":"Mapped"},{"$f":"XBRLMap(H75,H$88&\".\"&$U$4&\".\"&$U75&\".\"&$U$7,$B$95,$B$96,CONFIGURATION!$B$10,\"BMA\",CONFIGURATION!$B$1,\"bscr\",1000)","v":"Mapped"},null,{"$f":"XBRLMap(J75,J$88&\".\"&$U$4&\".\"&$V75&\".\"&$U$7,$B$95,$B$96,CONFIGURATION!$B$10,\"BMA\",CONFIGURATION!$B$1,\"bscr\",1000)","v":"Mapped"},{"$f":"XBRLMap(K75,K$88&\".\"&$U$4&\".\"&$V75&\".\"&$U$7,$B$95,$B$96,CONFIGURATION!$B$10,\"BMA\",CONFIGURATION!$B$1,\"bscr\",1000)","v":"Mapped"},{"$f":"XBRLMap(L75,L$88&\".\"&$U$4&\".\"&$V75&\".\"&$U$7,$B$95,$B$96,CONFIGURATION!$B$10,\"BMA\",CONFIGURATION!$B$1,\"bscr\",1000)","v":"Mapped"},{"$f":"XBRLMap(M75,M$88&\".\"&$U$4&\".\"&$V75&\".\"&$U$7,$B$95,$B$96,CONFIGURATION!$B$10,\"BMA\",CONFIGURATION!$B$1,\"bscr\",1000)","v":"Mapped"},null,null,null,"IBNRCY2017AY2012",0]
[null,null,{"$f":"XBRLMap(C76,C$88&\".\"&$U$4&\".\"&$U76&\".\"&$U$7,$B$95,$B$96,CONFIGURATION!$B$10,\"BMA\",CONFIGURATION!$B$1,\"bscr\",1000)","v":"Mapped"},{"$f":"XBRLMap(D76,D$88&\".\"&$U$4&\".\"&$U76&\".\"&$U$7,$B$95,$B$96,CONFIGURATION!$B$10,\"BMA\",CONFIGURATION!$B$1,\"bscr\",1000)","v":"Mapped"},{"$f":"XBRLMap(E76,E$88&\".\"&$U$4&\".\"&$U76&\".\"&$U$7,$B$95,$B$96,CONFIGURATION!$B$10,\"BMA\",CONFIGURATION!$B$1,\"bscr\",1000)","v":"Mapped"},{"$f":"XBRLMap(F76,F$88&\".\"&$U$4&\".\"&$U76&\".\"&$U$7,$B$95,$B$96,CONFIGURATION!$B$10,\"BMA\",CONFIGURATION!$B$1,\"bscr\",1000)","v":"Mapped"},{"$f":"XBRLMap(G76,G$88&\".\"&$U$4&\".\"&$U76&\".\"&$U$7,$B$95,$B$96,CONFIGURATION!$B$10,\"BMA\",CONFIGURATION!$B$1,\"bscr\",1000)","v":"Mapped"},{"$f":"XBRLMap(H76,H$88&\".\"&$U$4&\".\"&$U76&\".\"&$U$7,$B$95,$B$96,CONFIGURATION!$B$10,\"BMA\",CONFIGURATION!$B$1,\"bscr\",1000)","v":"Mapped"},null,{"$f":"XBRLMap(J76,J$88&\".\"&$U$4&\".\"&$V76&\".\"&$U$7,$B$95,$B$96,CONFIGURATION!$B$10,\"BMA\",CONFIGURATION!$B$1,\"bscr\",1000)","v":"Mapped"},{"$f":"XBRLMap(K76,K$88&\".\"&$U$4&\".\"&$V76&\".\"&$U$7,$B$95,$B$96,CONFIGURATION!$B$10,\"BMA\",CONFIGURATION!$B$1,\"bscr\",1000)","v":"Mapped"},{"$f":"XBRLMap(L76,L$88&\".\"&$U$4&\".\"&$V76&\".\"&$U$7,$B$95,$B$96,CONFIGURATION!$B$10,\"BMA\",CONFIGURATION!$B$1,\"bscr\",1000)","v":"Mapped"},{"$f":"XBRLMap(M76,M$88&\".\"&$U$4&\".\"&$V76&\".\"&$U$7,$B$95,$B$96,CONFIGURATION!$B$10,\"BMA\",CONFIGURATION!$B$1,\"bscr\",1000)","v":"Mapped"},null,null,null,"IBNRCY2017AY2013",0]
[null,null,{"$f":"XBRLMap(C77,C$88&\".\"&$U$4&\".\"&$U77&\".\"&$U$7,$B$95,$B$96,CONFIGURATION!$B$10,\"BMA\",CONFIGURATION!$B$1,\"bscr\",1000)","v":"Mapped"},{"$f":"XBRLMap(D77,D$88&\".\"&$U$4&\".\"&$U77&\".\"&$U$7,$B$95,$B$96,CONFIGURATION!$B$10,\"BMA\",CONFIGURATION!$B$1,\"bscr\",1000)","v":"Mapped"},{"$f":"XBRLMap(E77,E$88&\".\"&$U$4&\".\"&$U77&\".\"&$U$7,$B$95,$B$96,CONFIGURATION!$B$10,\"BMA\",CONFIGURATION!$B$1,\"bscr\",1000)","v":"Mapped"},{"$f":"XBRLMap(F77,F$88&\".\"&$U$4&\".\"&$U77&\".\"&$U$7,$B$95,$B$96,CONFIGURATION!$B$10,\"BMA\",CONFIGURATION!$B$1,\"bscr\",1000)","v":"Mapped"},{"$f":"XBRLMap(G77,G$88&\".\"&$U$4&\".\"&$U77&\".\"&$U$7,$B$95,$B$96,CONFIGURATION!$B$10,\"BMA\",CONFIGURATION!$B$1,\"bscr\",1000)","v":"Mapped"},{"$f":"XBRLMap(H77,H$88&\".\"&$U$4&\".\"&$U77&\".\"&$U$7,$B$95,$B$96,CONFIGURATION!$B$10,\"BMA\",CONFIGURATION!$B$1,\"bscr\",1000)","v":"Mapped"},null,{"$f":"XBRLMap(J77,J$88&\".\"&$U$4&\".\"&$V77&\".\"&$U$7,$B$95,$B$96,CONFIGURATION!$B$10,\"BMA\",CONFIGURATION!$B$1,\"bscr\",1000)","v":"Mapped"},{"$f":"XBRLMap(K77,K$88&\".\"&$U$4&\".\"&$V77&\".\"&$U$7,$B$95,$B$96,CONFIGURATION!$B$10,\"BMA\",CONFIGURATION!$B$1,\"bscr\",1000)","v":"Mapped"},{"$f":"XBRLMap(L77,L$88&\".\"&$U$4&\".\"&$V77&\".\"&$U$7,$B$95,$B$96,CONFIGURATION!$B$10,\"BMA\",CONFIGURATION!$B$1,\"bscr\",1000)","v":"Mapped"},{"$f":"XBRLMap(M77,M$88&\".\"&$U$4&\".\"&$V77&\".\"&$U$7,$B$95,$B$96,CONFIGURATION!$B$10,\"BMA\",CONFIGURATION!$B$1,\"bscr\",1000)","v":"Mapped"},null,null,null,"IBNRCY2017AY2014",0]
[null,null,null,null,null,null,null,null,null,null,null,null,null,null,null,null,"IBNRCY2017AY2015",0]
[null,null,null,null,null,null,null,null,null,null,null,null,null,null,null,null,"IBNRCY2017AY2016",0]
[null,null,null,null,null,null,null,null,null,null,null,null,null,null,null,null,"IBNRCY2017AY2017",0]
[null,null,null,null,null,null,null,null,null,null,null,null,null,null,null,null,{"$f":"\"IBNRCY\"&K$10&\"AY\"&B47","v":"IBNRCY2018AYPrior"},{"$f":"K47","v":0}]
[null,null,null,null,null,null,null,null,null,null,null,null,null,null,null,null,"IBNRCY2018AY2010",0]
[null,null,null,null,null,null,null,null,null,null,null,null,null,null,null,null,"IBNRCY2018AY2011",0]
[null,null,null,null,null,null,null,null,null,null,null,null,null,null,null,null,"IBNRCY2018AY2012",0]
[null,null,null,null,null,null,null,null,null,null,null,null,null,null,null,null,"IBNRCY2018AY2013",0]
[null,null,null,null,null,null,null,null,null,null,null,null,null,null,null,null,"IBNRCY2018AY2014",0]
[null,null,null,null,null,null,null,null,null,null,null,null,null,null,null,null,"IBNRCY2018AY2015",0]
[null,null,null,null,null,null,null,null,null,null,null,null,null,null,null,null,"IBNRCY2018AY2016",0]
[null,null,null,null,null,null,null,null,null,null,null,null,null,null,null,null,"IBNRCY2018AY2017",0]
[null,null,null,null,null,null,null,null,null,null,null,null,null,null,null,null,"IBNRCY2018AY2018",0]
[null,null,null,null,null,null,null,null,null,null,null,null,null,null,null,null,{"$f":"\"IBNRCY\"&L$10&\"AY\"&B47","v":"IBNRCY2019AYPrior"},{"$f":"L47","v":0}]
[null,null,null,null,null,null,null,null,null,null,null,null,null,null,null,null,"IBNRCY2019AY2010",0]
[null,null,null,null,null,null,null,null,null,null,null,null,null,null,null,null,"IBNRCY2019AY2011",0]
[null,null,null,null,null,null,null,null,null,null,null,null,null,null,null,null,"IBNRCY2019AY2012",0]
[null,null,null,null,null,null,null,null,null,null,null,null,null,null,null,null,"IBNRCY2019AY2013",0]
[null,null,null,null,null,null,null,null,null,null,null,null,null,null,null,null,"IBNRCY2019AY2014",0]
[null,null,null,null,null,null,null,null,null,null,null,null,null,null,null,null,"IBNRCY2019AY2015",0]
[null,null,null,null,null,null,null,null,null,null,null,null,null,null,null,null,"IBNRCY2019AY2016",0]
[null,null,null,null,null,null,null,null,null,null,null,null,null,null,null,null,"IBNRCY2019AY2017",0]
[null,null,null,null,null,null,null,null,null,null,null,null,null,null,null,null,"IBNRCY2019AY2018",0]
[null,null,null,null,null,null,null,null,null,null,null,null,null,null,null,null,"IBNRCY2019AY2019",0]
[null,null,null,null,null,null,null,null,null,null,null,null,null,null,null,null,{"$f":"\"GrossWP\"&$B68","v":"GrossWP2010"},{"$f":"C68","v":0}]
[null,null,null,null,null,null,null,null,null,null,null,null,null,null,null,null,"GrossWP2011",0]
[null,null,null,null,null,null,null,null,null,null,null,null,null,null,null,null,"GrossWP2012",0]
[null,null,null,null,null,null,null,null,null,null,null,null,null,null,null,null,"GrossWP2013",0]
[null,null,null,null,null,null,null,null,null,null,null,null,null,null,null,null,"GrossWP2014",0]
[null,null,null,null,null,null,null,null,null,null,null,null,null,null,null,null,"GrossWP2015",0]
[null,null,null,null,null,null,null,null,null,null,null,null,null,null,null,null,"GrossWP2016",0]
[null,null,null,null,null,null,null,null,null,null,null,null,null,null,null,null,"GrossWP2017",0]
[null,null,null,null,null,null,null,null,null,null,null,null,null,null,null,null,"GrossWP2018",0]
[null,null,null,null,null,null,null,null,null,null,null,null,null,null,null,null,"GrossWP2019",0]
[null,null,null,null,null,null,null,null,null,null,null,null,null,null,null,null,{"$f":"\"GrossEP\"&$B68","v":"GrossEP2010"},{"$f":"D68","v":0}]
[null,null,null,null,null,null,null,null,null,null,null,null,null,null,null,null,"GrossEP2011",0]
[null,null,null,null,null,null,null,null,null,null,null,null,null,null,null,null,"GrossEP2012",0]
[null,null,null,null,null,null,null,null,null,null,null,null,null,null,null,null,"GrossEP2013",0]
[null,null,null,null,null,null,null,null,null,null,null,null,null,null,null,null,"GrossEP2014",0]
[null,null,null,null,null,null,null,null,null,null,null,null,null,null,null,null,"GrossEP2015",0]
[null,null,null,null,null,null,null,null,null,null,null,null,null,null,null,null,"GrossEP2016",0]
[null,null,null,null,null,null,null,null,null,null,null,null,null,null,null,null,"GrossEP2017",0]
[null,null,null,null,null,null,null,null,null,null,null,null,null,null,null,null,"GrossEP2018",0]
[null,null,null,null,null,null,null,null,null,null,null,null,null,null,null,null,"GrossEP2019",0]
[null,null,null,null,null,null,null,null,null,null,null,null,null,null,null,null,{"$f":"\"NetWP\"&$B68","v":"NetWP2010"},{"$f":"E68","v":0}]
[null,null,null,null,null,null,null,null,null,null,null,null,null,null,null,null,"NetWP2011",0]
[null,null,null,null,null,null,null,null,null,null,null,null,null,null,null,null,"NetWP2012",0]
[null,null,null,null,null,null,null,null,null,null,null,null,null,null,null,null,"NetWP2013",0]
[null,null,null,null,null,null,null,null,null,null,null,null,null,null,null,null,"NetWP2014",0]
[null,null,null,null,null,null,null,null,null,null,null,null,null,null,null,null,"NetWP2015",0]
[null,null,null,null,null,null,null,null,null,null,null,null,null,null,null,null,"NetWP2016",0]
[null,null,null,null,null,null,null,null,null,null,null,null,null,null,null,null,"NetWP2017",0]
[null,null,null,null,null,null,null,null,null,null,null,null,null,null,null,null,"NetWP2018",0]
[null,null,null,null,null,null,null,null,null,null,null,null,null,null,null,null,"NetWP2019",0]
[null,null,null,null,null,null,null,null,null,null,null,null,null,null,null,null,{"$f":"\"NetEP\"&$B68","v":"NetEP2010"},{"$f":"F68","v":0}]
[null,null,null,null,null,null,null,null,null,null,null,null,null,null,null,null,"NetEP2011",0]
[null,null,null,null,null,null,null,null,null,null,null,null,null,null,null,null,"NetEP2012",0]
[null,null,null,null,null,null,null,null,null,null,null,null,null,null,null,null,"NetEP2013",0]
[null,null,null,null,null,null,null,null,null,null,null,null,null,null,null,null,"NetEP2014",0]
[null,null,null,null,null,null,null,null,null,null,null,null,null,null,null,null,"NetEP2015",0]
[null,null,null,null,null,null,null,null,null,null,null,null,null,null,null,null,"NetEP2016",0]
[null,null,null,null,null,null,null,null,null,null,null,null,null,null,null,null,"NetEP2017",0]
[null,null,null,null,null,null,null,null,null,null,null,null,null,null,null,null,"NetEP2018",0]
[null,null,null,null,null,null,null,null,null,null,null,null,null,null,null,null,"NetEP2019",0]
[null,null,null,null,null,null,null,null,null,null,null,null,null,null,null,null,{"$f":"\"NetAOEPaid\"&$B67","v":"NetAOEPaidPrior"},{"$f":"G67","v":0}]
[null,null,null,null,null,null,null,null,null,null,null,null,null,null,null,null,"NetAOEPaid2010",0]
[null,null,null,null,null,null,null,null,null,null,null,null,null,null,null,null,"NetAOEPaid2011",0]
[null,null,null,null,null,null,null,null,null,null,null,null,null,null,null,null,"NetAOEPaid2012",0]
[null,null,null,null,null,null,null,null,null,null,null,null,null,null,null,null,"NetAOEPaid2013",0]
[null,null,null,null,null,null,null,null,null,null,null,null,null,null,null,null,"NetAOEPaid2014",0]
[null,null,null,null,null,null,null,null,null,null,null,null,null,null,null,null,"NetAOEPaid2015",0]
[null,null,null,null,null,null,null,null,null,null,null,null,null,null,null,null,"NetAOEPaid2016",0]
[null,null,null,null,null,null,null,null,null,null,null,null,null,null,null,null,"NetAOEPaid2017",0]
[null,null,null,null,null,null,null,null,null,null,null,null,null,null,null,null,"NetAOEPaid2018",0]
[null,null,null,null,null,null,null,null,null,null,null,null,null,null,null,null,"NetAOEPaid2019",0]
[null,null,null,null,null,null,null,null,null,null,null,null,null,null,null,null,{"$f":"\"NetAOEIncurred\"&$B67","v":"NetAOEIncurredPrior"},{"$f":"H67","v":0}]
[null,null,null,null,null,null,null,null,null,null,null,null,null,null,null,null,"NetAOEIncurred2010",0]
[null,null,null,null,null,null,null,null,null,null,null,null,null,null,null,null,"NetAOEIncurred2011",0]
[null,null,null,null,null,null,null,null,null,null,null,null,null,null,null,null,"NetAOEIncurred2012",0]
[null,null,null,null,null,null,null,null,null,null,null,null,null,null,null,null,"NetAOEIncurred2013",0]
[null,null,null,null,null,null,null,null,null,null,null,null,null,null,null,null,"NetAOEIncurred2014",0]
[null,null,null,null,null,null,null,null,null,null,null,null,null,null,null,null,"NetAOEIncurred2015",0]
[null,null,null,null,null,null,null,null,null,null,null,null,null,null,null,null,"NetAOEIncurred2016",0]
[null,null,null,null,null,null,null,null,null,null,null,null,null,null,null,null,"NetAOEIncurred2017",0]
[null,null,null,null,null,null,null,null,null,null,null,null,null,null,null,null,"NetAOEIncurred2018",0]
[null,null,null,null,null,null,null,null,null,null,null,null,null,null,null,null,"NetAOEIncurred2019",0]
[null,null,null,null,null,null,null,null,null,null,null,null,null,null,null,null,{"$f":"\"Commission\"&$B67","v":"CommissionPrior"},{"$f":"J67","v":0}]
[null,null,null,null,null,null,null,null,null,null,null,null,null,null,null,null,"Commission2010",0]
[null,null,null,null,null,null,null,null,null,null,null,null,null,null,null,null,"Commission2011",0]
[null,null,null,null,null,null,null,null,null,null,null,null,null,null,null,null,"Commission2012",0]
[null,null,null,null,null,null,null,null,null,null,null,null,null,null,null,null,"Commission2013",0]
[null,null,null,null,null,null,null,null,null,null,null,null,null,null,null,null,"Commission2014",0]
[null,null,null,null,null,null,null,null,null,null,null,null,null,null,null,null,"Commission2015",0]
[null,null,null,null,null,null,null,null,null,null,null,null,null,null,null,null,"Commission2016",0]
[null,null,null,null,null,null,null,null,null,null,null,null,null,null,null,null,"Commission2017",0]
[null,null,null,null,null,null,null,null,null,null,null,null,null,null,null,null,"Commission2018",0]
[null,null,null,null,null,null,null,null,null,null,null,null,null,null,null,null,"Commission2019",0]
[null,null,null,null,null,null,null,null,null,null,null,null,null,null,null,null,{"$f":"\"AcqExp\"&$B67","v":"AcqExpPrior"},{"$f":"K67","v":0}]
[null,null,null,null,null,null,null,null,null,null,null,null,null,null,null,null,"AcqExp2010",0]
[null,null,null,null,null,null,null,null,null,null,null,null,null,null,null,null,"AcqExp2011",0]
[null,null,null,null,null,null,null,null,null,null,null,null,null,null,null,null,"AcqExp2012",0]
[null,null,null,null,null,null,null,null,null,null,null,null,null,null,null,null,"AcqExp2013",0]
[null,null,null,null,null,null,null,null,null,null,null,null,null,null,null,null,"AcqExp2014",0]
[null,null,null,null,null,null,null,null,null,null,null,null,null,null,null,null,"AcqExp2015",0]
[null,null,null,null,null,null,null,null,null,null,null,null,null,null,null,null,"AcqExp2016",0]
[null,null,null,null,null,null,null,null,null,null,null,null,null,null,null,null,"AcqExp2017",0]
[null,null,null,null,null,null,null,null,null,null,null,null,null,null,null,null,"AcqExp2018",0]
[null,null,null,null,null,null,null,null,null,null,null,null,null,null,null,null,"AcqExp2019",0]
[null,null,null,null,null,null,null,null,null,null,null,null,null,null,null,null,{"$f":"\"Taxes\"&$B67","v":"TaxesPrior"},{"$f":"L67","v":0}]
[null,null,null,null,null,null,null,null,null,null,null,null,null,null,null,null,"Taxes2010",0]
[null,null,null,null,null,null,null,null,null,null,null,null,null,null,null,null,"Taxes2011",0]
[null,null,null,null,null,null,null,null,null,null,null,null,null,null,null,null,"Taxes2012",0]
[null,null,null,null,null,null,null,null,null,null,null,null,null,null,null,null,"Taxes2013",0]
[null,null,null,null,null,null,null,null,null,null,null,null,null,null,null,null,"Taxes2014",0]
[null,null,null,null,null,null,null,null,null,null,null,null,null,null,null,null,"Taxes2015",0]
[null,null,null,null,null,null,null,null,null,null,null,null,null,null,null,null,"Taxes2016",0]
[null,null,null,null,null,null,null,null,null,null,null,null,null,null,null,null,"Taxes2017",0]
[null,null,null,null,null,null,null,null,null,null,null,null,null,null,null,null,"Taxes2018",0]
[null,null,null,null,null,null,null,null,null,null,null,null,null,null,null,null,"Taxes2019",0]
[null,null,null,null,null,null,null,null,null,null,null,null,null,null,null,null,{"$f":"\"GeneralOver\"&$B67","v":"GeneralOverPrior"},{"$f":"M67","v":0}]
[null,null,null,null,null,null,null,null,null,null,null,null,null,null,null,null,"GeneralOver2010",0]
[null,null,null,null,null,null,null,null,null,null,null,null,null,null,null,null,"GeneralOver2011",0]
[null,null,null,null,null,null,null,null,null,null,null,null,null,null,null,null,"GeneralOver2012",0]
[null,null,null,null,null,null,null,null,null,null,null,null,null,null,null,null,"GeneralOver2013",0]
[null,null,null,null,null,null,null,null,null,null,null,null,null,null,null,null,"GeneralOver2014",0]
[null,null,null,null,null,null,null,null,null,null,null,null,null,null,null,null,"GeneralOver2015",0]
[null,null,null,null,null,null,null,null,null,null,null,null,null,null,null,null,"GeneralOver2016",0]
[null,null,null,null,null,null,null,null,null,null,null,null,null,null,null,null,"GeneralOver2017",0]
[null,null,null,null,null,null,null,null,null,null,null,null,null,null,null,null,"GeneralOver2018",0]
[null,null,null,null,null,null,null,null,null,null,null,null,null,null,null,null,"GeneralOver2019",0]

{"sheet":"Sch XI(a)(viii)","index":71,"n_rows":300,"n_cols":48,"rows_kept":300,"cut":false,"hidden":false,"merged":[[0,13,0,14],[2,1,2,2],[60,6,60,7],[23,2,23,11],[80,1,82,12],[5,2,5,11],[59,6,59,7],[41,2,41,11]]}
[null,"SCHEDULE OF LOSS TRIANGLES (LINE 8 - STRUCTURED/FINITE LINES)",null,null,null,null,null,null,null,null,null,null,null,{"$f":"HYPERLINK(\"#'Index'!A1\",\"Return to Index\")","v":"Return to Index"}]
[null,{"$f":"'Company Information'!C7","v":"Enter Company Name"},null,null,null,null,null,null,null,null,null,null,null,null,null,null,null,null,null,null,null,null,null,null,null,null,null,null,null,null,null,null,null,null,null,"bma_Line8StructuredFiniteLinesMember"]
[null,{"$f":"'Company Information'!C3","v":"2019-12-31"},null,null,null,null,null,null,null,null,null,null,null,null,"SCHEDULE XI(a)(viii)"]
[null,{"$f":"\"expressed in\"& IF(1000>1,\" ['\"&MID(1000,2,LEN(1000))&\"s]\",\"\")&\" \"&'Form 1EBS'!$C$4","v":"expressed in ['000s] United States Dollars"},null,null,null,null,null,null,null,null,null,null,null,null,null,null,null,null,null,null,"brrt_LineOfBusinessAxis_brrt_StructuredFiniteLinesMember"]
[]
[null,"Accounting Basis: *","INCURRED (ESTIMATED ULTIMATE) NET LOSSES AND ALLOCATED LOSS ADJUSTMENT EXPENSES REPORTED AT YEAR END ($000)",null,null,null,null,null,null,null,null,null,11,12,13,null,"AcctBasis",{"$f":"B7","v":"Accident Year"},null,null,{"$f":"IF(B7=\"Accident Year\",\"brrt_AccountingBasisAxis_brrt_AccidentYearMember\",\"brrt_AccountingBasisAxis_brrt_AccountingYearMember\")","v":"brrt_AccountingBasisAxis_brrt_AccidentYearMember"}]
[null,"Accident Year",null,null,null,null,null,null,null,null,null,null,"Ultimate","Development","Development",null,{"$f":"\"UltCY\"&C$10&\"AY\"&B11","v":"UltCY2010AYPrior"},{"$f":"C11","v":0},{"$f":"\"CATUltCY\"&L$10&\"AY\"&B11","v":"CATUltCY2019AYPrior"},{"$f":"M11","v":0},"brrt_TypeOfContractAxis_brrt_ProportionalMember",null,null,null,null,null,null,null,null,null,null,null,null,null,null,"bma_AcctBasis"]
[null,"Years in Which",1,2,3,4,5,6,7,8,9,10,"Catastrophe",null,null,null,{"$f":"\"UltCY\"&C$10&\"AY\"&B12","v":"UltCY2010AY2010"},{"$f":"C12","v":0},"CATUltCY2019AY2010",0]
[null,"Losses Were",null,null,null,null,null,null,null,null,null,null,"Losses","One Year","Two Year",null,{"$f":"\"UltCY\"&D$10&\"AY\"&B11","v":"UltCY2011AYPrior"},{"$f":"D11","v":0},"CATUltCY2019AY2011",0]
[null,"Incurred",{"$f":"D10-1","v":2010},2011,2012,2013,2014,2015,2016,2017,2018,{"$f":"YEAR('Company Information'!C3)","v":2019},{"$f":"L10","v":2019},"Development","Development",null,{"$f":"\"UltCY\"&D$10&\"AY\"&B12","v":"UltCY2011AY2010"},{"$f":"D12","v":0},"CATUltCY2019AY2012",0]
["L1","Prior",{"$f":"Import!I9695","v":0},{"$f":"Import!I9697","v":0},{"$f":"Import!I9700","v":0},{"$f":"Import!I9704","v":0},{"$f":"Import!I9709","v":0},{"$f":"Import!I9715","v":0},{"$f":"Import!I9722","v":0},{"$f":"Import!I9730","v":0},{"$f":"Import!I9739","v":0},{"$f":"Import!I9749","v":0},{"$f":"Import!I9760","v":0},{"$f":"K11-L11","v":0},{"$f":"J11-L11","v":0},null,{"$f":"\"UltCY\"&D$10&\"AY\"&B13","v":"UltCY2011AY2011"},{"$f":"D13","v":0},"CATUltCY2019AY2013",0,"brrt_LossIncurredYearAxis_brrt_PriorMember",null,null,null,null,null,null,null,null,null,null,null,null,null,null,{"$f":"\"bma_\"&\"UltCY\"&P$10&\"AY\"&$B11","v":"bma_UltCYAYPrior"},"bma_UltCYUltCY2011AY2010AYPrior","bma_UltCY0AYPrior",{"$f":"\"bma_\"&\"UltCY\"&S$10&\"AY\"&$B11","v":"bma_UltCYCATUltCY2019AY2012AYPrior"},{"$f":"\"bma_\"&\"UltCY\"&T$10&\"AY\"&$B11","v":"bma_UltCY0AYPrior"},{"$f":"\"bma_\"&\"UltCY\"&U$10&\"AY\"&$B11","v":"bma_UltCYAYPrior"},{"$f":"\"bma_\"&\"UltCY\"&V$10&\"AY\"&$B11","v":"bma_UltCYAYPrior"},{"$f":"\"bma_\"&\"UltCY\"&W$10&\"AY\"&$B11","v":"bma_UltCYAYPrior"},{"$f":"\"bma_\"&\"UltCY\"&X$10&\"AY\"&$B11","v":"bma_UltCYAYPrior"},{"$f":"\"bma_\"&\"UltCY\"&Y$10&\"AY\"&$B11","v":"bma_UltCYAYPrior"},{"$f":"\"bma_\"&\"CATUltCY\"&Y$10&\"AY\"&$B11","v":"bma_CATUltCYAYPrior"},{"$f":"\"bma_\"&\"UltCY\"&\"OneYearDevelopment\"&\"AY\"&$B11","v":"bma_UltCYOneYearDevelopmentAYPrior"},{"$f":"\"bma_\"&\"UltCY\"&\"TwoYearDevelopment\"&\"AY\"&$B11","v":"bma_UltCYTwoYearDevelopmentAYPrior"}]
["L2",{"$f":"B13-1","v":2010},{"$f":"Import!I9696","v":0},{"$f":"Import!I9698","v":0},{"$f":"Import!I9701","v":0},{"$f":"Import!I9705","v":0},{"$f":"Import!I9710","v":0},{"$f":"Import!I9716","v":0},{"$f":"Import!I9723","v":0},{"$f":"Import!I9731","v":0},{"$f":"Import!I9740","v":0},{"$f":"Import!I9750","v":0},{"$f":"Import!I9761","v":0},0,0,null,{"$f":"\"UltCY\"&E$10&\"AY\"&B11","v":"UltCY2012AYPrior"},{"$f":"E11","v":0},"CATUltCY2019AY2014",0,"brrt_LossIncurredYearAxis_brrt_XNMinus9Member",null,null,null,null,null,null,null,null,null,null,null,null,null,null,"bma_UltCYAY2010","bma_UltCYUltCY2011AY2010AY2010","bma_UltCY0AY2010",{"$f":"\"bma_\"&\"UltCY\"&S$10&\"AY\"&$B12","v":"bma_UltCYCATUltCY2019AY2012AY2010"},"bma_UltCY0AY2010","bma_UltCYAY2010","bma_UltCYAY2010","bma_UltCYAY2010","bma_UltCYAY2010","bma_UltCYAY2010",{"$f":"\"bma_\"&\"CATUltCY\"&Y$10&\"AY\"&$B12","v":"bma_CATUltCYAY2010"},{"$f":"\"bma_\"&\"UltCY\"&\"OneYearDevelopment\"&\"AY\"&$B12","v":"bma_UltCYOneYearDevelopmentAY2010"},{"$f":"\"bma_\"&\"UltCY\"&\"TwoYearDevelopment\"&\"AY\"&$B12","v":"bma_UltCYTwoYearDevelopmentAY2010"}]
["L3",2011,"XXX",{"$f":"Import!I9699","v":0},{"$f":"Import!I9702","v":0},{"$f":"Import!I9706","v":0},{"$f":"Import!I9711","v":0},{"$f":"Import!I9717","v":0},{"$f":"Import!I9724","v":0},{"$f":"Import!I9732","v":0},{"$f":"Import!I9741","v":0},{"$f":"Import!I9751","v":0},{"$f":"Import!I9762","v":0},0,0,null,{"$f":"\"UltCY\"&E$10&\"AY\"&B12","v":"UltCY2012AY2010"},{"$f":"E12","v":0},"CATUltCY2019AY2015",0,"brrt_LossIncurredYearAxis_brrt_XNMinus8Member",null,null,null,null,null,null,null,null,null,null,null,null,null,null,null,{"$f":"\"bma_\"&\"UltCY\"&Q$10&\"AY\"&$B13","v":"bma_UltCYUltCY2011AY2010AY2011"},{"$f":"\"bma_\"&\"UltCY\"&R$10&\"AY\"&$B13","v":"bma_UltCY0AY2011"},{"$f":"\"bma_\"&\"UltCY\"&S$10&\"AY\"&$B13","v":"bma_UltCYCATUltCY2019AY2012AY2011"},"bma_UltCY0AY2011","bma_UltCYAY2011","bma_UltCYAY2011","bma_UltCYAY2011","bma_UltCYAY2011","bma_UltCYAY2011","bma_CATUltCYAY2011","bma_UltCYOneYearDevelopmentAY2011","bma_UltCYTwoYearDevelopmentAY2011"]
["L4",2012,"XXX","XXX",{"$f":"Import!I9703","v":0},{"$f":"Import!I9707","v":0},{"$f":"Import!I9712","v":0},{"$f":"Import!I9718","v":0},{"$f":"Import!I9725","v":0},{"$f":"Import!I9733","v":0},{"$f":"Import!I9742","v":0},{"$f":"Import!I9752","v":0},{"$f":"Import!I9763","v":0},0,0,null,{"$f":"\"UltCY\"&E$10&\"AY\"&B13","v":"UltCY2012AY2011"},{"$f":"E13","v":0},"CATUltCY2019AY2016",0,"brrt_LossIncurredYearAxis_brrt_XNMinus7Member",null,null,null,null,null,null,null,null,null,null,null,null,null,null,null,null,{"$f":"\"bma_\"&\"UltCY\"&R$10&\"AY\"&$B14","v":"bma_UltCY0AY2012"},{"$f":"\"bma_\"&\"UltCY\"&S$10&\"AY\"&$B14","v":"bma_UltCYCATUltCY2019AY2012AY2012"},"bma_UltCY0AY2012","bma_UltCYAY2012","bma_UltCYAY2012","bma_UltCYAY2012","bma_UltCYAY2012","bma_UltCYAY2012","bma_CATUltCYAY2012","bma_UltCYOneYearDevelopmentAY2012","bma_UltCYTwoYearDevelopmentAY2012"]
["L5",2013,"XXX","XXX","XXX",{"$f":"Import!I9708","v":0},{"$f":"Import!I9713","v":0},{"$f":"Import!I9719","v":0},{"$f":"Import!I9726","v":0},{"$f":"Import!I9734","v":0},{"$f":"Import!I9743","v":0},{"$f":"Import!I9753","v":0},{"$f":"Import!I9764","v":0},0,0,null,{"$f":"\"UltCY\"&E$10&\"AY\"&B14","v":"UltCY2012AY2012"},{"$f":"E14","v":0},"CATUltCY2019AY2017",0,"brrt_LossIncurredYearAxis_brrt_XNMinus6Member",null,null,null,null,null,null,null,null,null,null,null,null,null,null,null,null,null,{"$f":"\"bma_\"&\"UltCY\"&S$10&\"AY\"&$B15","v":"bma_UltCYCATUltCY2019AY2012AY2013"},"bma_UltCY0AY2013","bma_UltCYAY2013","bma_UltCYAY2013","bma_UltCYAY2013","bma_UltCYAY2013","bma_UltCYAY2013","bma_CATUltCYAY2013","bma_UltCYOneYearDevelopmentAY2013","bma_UltCYTwoYearDevelopmentAY2013"]
["L6",2014,"XXX","XXX","XXX","XXX",{"$f":"Import!I9714","v":0},{"$f":"Import!I9720","v":0},{"$f":"Import!I9727","v":0},{"$f":"Import!I9735","v":0},{"$f":"Import!I9744","v":0},{"$f":"Import!I9754","v":0},{"$f":"Import!I9765","v":0},0,0,null,{"$f":"\"UltCY\"&F$10&\"AY\"&B11","v":"UltCY2013AYPrior"},{"$f":"F11","v":0},"CATUltCY2019AY2018",0,"brrt_LossIncurredYearAxis_brrt_XNMinus5Member",null,null,null,null,null,null,null,null,null,null,null,null,null,null,null,null,null,null,"bma_UltCY0AY2014","bma_UltCYAY2014","bma_UltCYAY2014","bma_UltCYAY2014","bma_UltCYAY2014","bma_UltCYAY2014","bma_CATUltCYAY2014","bma_UltCYOneYearDevelopmentAY2014","bma_UltCYTwoYearDevelopmentAY2014"]
["L7",2015,"XXX","XXX","XXX","XXX","XXX",{"$f":"Import!I9721","v":0},{"$f":"Import!I9728","v":0},{"$f":"Import!I9736","v":0},{"$f":"Import!I9745","v":0},{"$f":"Import!I9755","v":0},{"$f":"Import!I9766","v":0},0,0,null,{"$f":"\"UltCY\"&F$10&\"AY\"&B12","v":"UltCY2013AY2010"},{"$f":"F12","v":0},"CATUltCY2019AY2019",0,"brrt_LossIncurredYearAxis_brrt_XNMinus4Member",null,null,null,null,null,null,null,null,null,null,null,null,null,null,null,null,null,null,null,"bma_UltCYAY2015","bma_UltCYAY2015","bma_UltCYAY2015","bma_UltCYAY2015","bma_UltCYAY2015","bma_CATUltCYAY2015","bma_UltCYOneYearDevelopmentAY2015","bma_UltCYTwoYearDevelopmentAY2015"]
["L8",2016,"XXX","XXX","XXX","XXX","XXX","XXX",{"$f":"Import!I9729","v":0},{"$f":"Import!I9737","v":0},{"$f":"Import!I9746","v":0},{"$f":"Import!I9756","v":0},{"$f":"Import!I9767","v":0},0,0,null,{"$f":"\"UltCY\"&F$10&\"AY\"&B13","v":"UltCY2013AY2011"},{"$f":"F13","v":0},{"$f":"\"CATPaidCY\"&L$10&\"AY\"&B29","v":"CATPaidCY2019AYPrior"},{"$f":"M29","v":0},"brrt_LossIncurredYearAxis_brrt_XNMinus3Member",null,null,null,null,null,null,null,null,null,null,null,null,null,null,null,null,null,null,null,null,"bma_UltCYAY2016","bma_UltCYAY2016","bma_UltCYAY2016","bma_UltCYAY2016","bma_CATUltCYAY2016","bma_UltCYOneYearDevelopmentAY2016","bma_UltCYTwoYearDevelopmentAY2016"]
["L9",2017,"XXX","XXX","XXX","XXX","XXX","XXX","XXX",{"$f":"Import!I9738","v":0},{"$f":"Import!I9747","v":0},{"$f":"Import!I9757","v":0},{"$f":"Import!I9768","v":0},0,0,null,{"$f":"\"UltCY\"&F$10&\"AY\"&B14","v":"UltCY2013AY2012"},{"$f":"F14","v":0},"CATPaidCY2019AY2010",0,"brrt_LossIncurredYearAxis_brrt_XNMinus2Member",null,null,null,null,null,null,null,null,null,null,null,null,null,null,null,null,null,null,null,null,null,"bma_UltCYAY2017","bma_UltCYAY2017","bma_UltCYAY2017","bma_CATUltCYAY2017","bma_UltCYOneYearDevelopmentAY2017","bma_UltCYTwoYearDevelopmentAY2017"]
["L10",2018,"XXX","XXX","XXX","XXX","XXX","XXX","XXX","XXX",{"$f":"Import!I9748","v":0},{"$f":"Import!I9758","v":0},{"$f":"Import!I9769","v":0},0,"XXX",null,{"$f":"\"UltCY\"&F$10&\"AY\"&B15","v":"UltCY2013AY2013"},{"$f":"F15","v":0},"CATPaidCY2019AY2011",0,"brrt_LossIncurredYearAxis_brrt_XNMinus1Member",null,null,null,null,null,null,null,null,null,null,null,null,null,null,null,null,null,null,null,null,null,null,"bma_UltCYAY2018","bma_UltCYAY2018","bma_CATUltCYAY2018","bma_UltCYOneYearDevelopmentAY2018"]
["L11",{"$f":"L10","v":2019},"XXX","XXX","XXX","XXX","XXX","XXX","XXX","XXX","XXX",{"$f":"Import!I9759","v":0},{"$f":"Import!I9770","v":0},"XXX","XXX",null,{"$f":"\"UltCY\"&G$10&\"AY\"&B11","v":"UltCY2014AYPrior"},{"$f":"G11","v":0},"CATPaidCY2019AY2012",0,"brrt_LossIncurredYearAxis_brrt_XNMember",null,null,null,null,null,null,null,null,null,null,null,null,null,null,null,null,null,null,null,null,null,null,null,"bma_UltCYAY2019","bma_CATUltCYAY2019"]
["L12","Totals",null,null,null,null,null,null,null,null,null,null,{"$f":"SUM(M11:M21)","v":0},{"$f":"SUM(N11:N21)","v":0},{"$f":"SUM(O11:O21)","v":0},null,{"$f":"\"UltCY\"&G$10&\"AY\"&B12","v":"UltCY2014AY2010"},{"$f":"G12","v":0},"CATPaidCY2019AY2013",0,null,null,null,null,null,null,null,null,null,null,null,null,null,null,null,null,null,null,null,null,null,null,null,null,null,"bma_CATUltCYAYTotals","bma_UltCYOneYearDevelopmentAYTotals",{"$f":"\"bma_\"&\"UltCY\"&\"TwoYearDevelopment\"&\"AY\"&$B22","v":"bma_UltCYTwoYearDevelopmentAYTotals"}]
[null,null,null,null,null,null,null,null,null,null,null,null,null,null,null,null,{"$f":"\"UltCY\"&G$10&\"AY\"&B13","v":"UltCY2014AY2011"},{"$f":"G13","v":0},"CATPaidCY2019AY2014",0]
[null,null,"CUMULATIVE PAID NET LOSSES AND ALLOCATED LOSS ADJUSTMENT EXPENSES REPORTED AT YEAR END ($000)",null,null,null,null,null,null,null,null,null,24,null,null,null,{"$f":"\"UltCY\"&G$10&\"AY\"&B15","v":"UltCY2014AY2013"},{"$f":"G15","v":0},{"$f":"\"CATPaidCY\"&L$10&\"AY\"&B36","v":"CATPaidCY2019AY2016"},{"$f":"M36","v":0}]
[null,null,null,null,null,null,null,null,null,null,null,null,"Paid",null,null,null,{"$f":"\"UltCY\"&G$10&\"AY\"&B16","v":"UltCY2014AY2014"},{"$f":"G16","v":0},{"$f":"\"CATPaidCY\"&L$10&\"AY\"&B37","v":"CATPaidCY2019AY2017"},{"$f":"M37","v":0}]
[null,"Years in Which",14,15,16,17,18,19,20,21,22,23,"Catastrophe",null,null,null,{"$f":"\"UltCY\"&H$10&\"AY\"&B11","v":"UltCY2015AYPrior"},{"$f":"H11","v":0},{"$f":"\"CATPaidCY\"&L$10&\"AY\"&B38","v":"CATPaidCY2019AY2018"},{"$f":"M38","v":0}]
[null,"Policies Were",null,null,null,null,null,null,null,null,null,null,"Losses",null,null,null,"UltCY2015AY2010",0,{"$f":"\"CATPaidCY\"&L$10&\"AY\"&B39","v":"CATPaidCY2019AY2019"},{"$f":"M39","v":0}]
[null,"Written",{"$f":"D28-1","v":2010},2011,2012,2013,2014,2015,2016,2017,2018,{"$f":"L10","v":2019},{"$f":"L28","v":2019},null,null,null,"UltCY2015AY2011",0,{"$f":"\"CATIBNRCY\"&L$10&\"AY\"&B47","v":"CATIBNRCY2019AYPrior"},{"$f":"M47","v":0}]
["L13","Prior",{"$f":"Import!I9771","v":0},{"$f":"Import!I9773","v":0},{"$f":"Import!I9776","v":0},{"$f":"Import!I9780","v":0},{"$f":"Import!I9785","v":0},{"$f":"Import!I9791","v":0},{"$f":"Import!I9798","v":0},{"$f":"Import!I9806","v":0},{"$f":"Import!I9815","v":0},{"$f":"Import!I9825","v":0},{"$f":"Import!I9836","v":0},null,null,null,"UltCY2015AY2012",0,"CATIBNRCY2019AY2010",0,"brrt_PoliciesWrittenYearAxis_brrt_PriorMember",null,null,null,null,null,null,null,null,null,null,null,null,null,null,{"$f":"\"bma_\"&\"PaidCY\"&P$10&\"AY\"&$B29","v":"bma_PaidCYAYPrior"},"bma_PaidCYUltCY2011AY2010AYPrior","bma_PaidCY0AYPrior","bma_PaidCYCATUltCY2019AY2012AYPrior",{"$f":"\"bma_\"&\"PaidCY\"&T$10&\"AY\"&$B29","v":"bma_PaidCY0AYPrior"},{"$f":"\"bma_\"&\"PaidCY\"&U$10&\"AY\"&$B29","v":"bma_PaidCYAYPrior"},{"$f":"\"bma_\"&\"PaidCY\"&V$10&\"AY\"&$B29","v":"bma_PaidCYAYPrior"},{"$f":"\"bma_\"&\"PaidCY\"&W$10&\"AY\"&$B29","v":"bma_PaidCYAYPrior"},{"$f":"\"bma_\"&\"PaidCY\"&X$10&\"AY\"&$B29","v":"bma_PaidCYAYPrior"},{"$f":"\"bma_\"&\"PaidCY\"&Y$10&\"AY\"&$B29","v":"bma_PaidCYAYPrior"},{"$f":"\"bma_\"&\"CATPaidCY\"&Y$10&\"AY\"&$B29","v":"bma_CATPaidCYAYPrior"}]
["L14",{"$f":"B31-1","v":2010},{"$f":"Import!I9772","v":0},{"$f":"Import!I9774","v":0},{"$f":"Import!I9777","v":0},{"$f":"Import!I9781","v":0},{"$f":"Import!I9786","v":0},{"$f":"Import!I9792","v":0},{"$f":"Import!I9799","v":0},{"$f":"Import!I9807","v":0},{"$f":"Import!I9816","v":0},{"$f":"Import!I9826","v":0},{"$f":"Import!I9837","v":0},null,null,null,"UltCY2015AY2013",0,"CATIBNRCY2019AY2011",0,"brrt_PoliciesWrittenYearAxis_brrt_XNMinus9Member",null,null,null,null,null,null,null,null,null,null,null,null,null,null,"bma_PaidCYAY2010","bma_PaidCYUltCY2011AY2010AY2010","bma_PaidCY0AY2010","bma_PaidCYCATUltCY2019AY2012AY2010","bma_PaidCY0AY2010","bma_PaidCYAY2010","bma_PaidCYAY2010","bma_PaidCYAY2010","bma_PaidCYAY2010","bma_PaidCYAY2010","bma_CATPaidCYAY2010"]
["L15",2011,"XXX",{"$f":"Import!I9775","v":0},{"$f":"Import!I9778","v":0},{"$f":"Import!I9782","v":0},{"$f":"Import!I9787","v":0},{"$f":"Import!I9793","v":0},{"$f":"Import!I9800","v":0},{"$f":"Import!I9808","v":0},{"$f":"Import!I9817","v":0},{"$f":"Import!I9827","v":0},{"$f":"Import!I9838","v":0},null,null,null,"UltCY2015AY2014",0,"CATIBNRCY2019AY2012",0,"brrt_PoliciesWrittenYearAxis_brrt_XNMinus8Member",null,null,null,null,null,null,null,null,null,null,null,null,null,null,null,{"$f":"\"bma_\"&\"PaidCY\"&Q$10&\"AY\"&$B31","v":"bma_PaidCYUltCY2011AY2010AY2011"},{"$f":"\"bma_\"&\"PaidCY\"&R$10&\"AY\"&$B31","v":"bma_PaidCY0AY2011"},{"$f":"\"bma_\"&\"PaidCY\"&S$10&\"AY\"&$B31","v":"bma_PaidCYCATUltCY2019AY2012AY2011"},"bma_PaidCY0AY2011","bma_PaidCYAY2011","bma_PaidCYAY2011","bma_PaidCYAY2011","bma_PaidCYAY2011","bma_PaidCYAY2011","bma_CATPaidCYAY2011"]
["L16",2012,"XXX","XXX",{"$f":"Import!I9779","v":0},{"$f":"Import!I9783","v":0},{"$f":"Import!I9788","v":0},{"$f":"Import!I9794","v":0},{"$f":"Import!I9801","v":0},{"$f":"Import!I9809","v":0},{"$f":"Import!I9818","v":0},{"$f":"Import!I9828","v":0},{"$f":"Import!I9839","v":0},null,null,null,"UltCY2015AY2015",0,"CATIBNRCY2019AY2013",0,"brrt_PoliciesWrittenYearAxis_brrt_XNMinus7Member",null,null,null,null,null,null,null,null,null,null,null,null,null,null,null,null,{"$f":"\"bma_\"&\"PaidCY\"&R$10&\"AY\"&$B32","v":"bma_PaidCY0AY2012"},{"$f":"\"bma_\"&\"PaidCY\"&S$10&\"AY\"&$B32","v":"bma_PaidCYCATUltCY2019AY2012AY2012"},"bma_PaidCY0AY2012","bma_PaidCYAY2012","bma_PaidCYAY2012","bma_PaidCYAY2012","bma_PaidCYAY2012","bma_PaidCYAY2012","bma_CATPaidCYAY2012"]
["L17",2013,"XXX","XXX","XXX",{"$f":"Import!I9784","v":0},{"$f":"Import!I9789","v":0},{"$f":"Import!I9795","v":0},{"$f":"Import!I9802","v":0},{"$f":"Import!I9810","v":0},{"$f":"Import!I9819","v":0},{"$f":"Import!I9829","v":0},{"$f":"Import!I9840","v":0},null,null,null,{"$f":"\"UltCY\"&I$10&\"AY\"&B11","v":"UltCY2016AYPrior"},{"$f":"I11","v":0},"CATIBNRCY2019AY2014",0,"brrt_PoliciesWrittenYearAxis_brrt_XNMinus6Member",null,null,null,null,null,null,null,null,null,null,null,null,null,null,null,null,null,{"$f":"\"bma_\"&\"PaidCY\"&S$10&\"AY\"&$B33","v":"bma_PaidCYCATUltCY2019AY2012AY2013"},"bma_PaidCY0AY2013","bma_PaidCYAY2013","bma_PaidCYAY2013","bma_PaidCYAY2013","bma_PaidCYAY2013","bma_PaidCYAY2013","bma_CATPaidCYAY2013"]
["L18",2014,"XXX","XXX","XXX","XXX",{"$f":"Import!I9790","v":0},{"$f":"Import!I9796","v":0},{"$f":"Import!I9803","v":0},{"$f":"Import!I9811","v":0},{"$f":"Import!I9820","v":0},{"$f":"Import!I9830","v":0},{"$f":"Import!I9841","v":0},null,null,null,"UltCY2016AY2010",0,"CATIBNRCY2019AY2015",0,"brrt_PoliciesWrittenYearAxis_brrt_XNMinus5Member",null,null,null,null,null,null,null,null,null,null,null,null,null,null,null,null,null,null,"bma_PaidCY0AY2014","bma_PaidCYAY2014","bma_PaidCYAY2014","bma_PaidCYAY2014","bma_PaidCYAY2014","bma_PaidCYAY2014","bma_CATPaidCYAY2014"]
["L19",2015,"XXX","XXX","XXX","XXX","XXX",{"$f":"Import!I9797","v":0},{"$f":"Import!I9804","v":0},{"$f":"Import!I9812","v":0},{"$f":"Import!I9821","v":0},{"$f":"Import!I9831","v":0},{"$f":"Import!I9842","v":0},null,null,null,"UltCY2016AY2011",0,"CATIBNRCY2019AY2016",0,"brrt_PoliciesWrittenYearAxis_brrt_XNMinus4Member",null,null,null,null,null,null,null,null,null,null,null,null,null,null,null,null,null,null,null,{"$f":"\"bma_\"&\"PaidCY\"&U$10&\"AY\"&$B35","v":"bma_PaidCYAY2015"},{"$f":"\"bma_\"&\"PaidCY\"&V$10&\"AY\"&$B35","v":"bma_PaidCYAY2015"},{"$f":"\"bma_\"&\"PaidCY\"&W$10&\"AY\"&$B35","v":"bma_PaidCYAY2015"},{"$f":"\"bma_\"&\"PaidCY\"&X$10&\"AY\"&$B35","v":"bma_PaidCYAY2015"},{"$f":"\"bma_\"&\"PaidCY\"&Y$10&\"AY\"&$B35","v":"bma_PaidCYAY2015"},"bma_CATPaidCYAY2015"]
["L20",2016,"XXX","XXX","XXX","XXX","XXX","XXX",{"$f":"Import!I9805","v":0},{"$f":"Import!I9813","v":0},{"$f":"Import!I9822","v":0},{"$f":"Import!I9832","v":0},{"$f":"Import!I9843","v":0},null,null,null,"UltCY2016AY2012",0,"CATIBNRCY2019AY2017",0,"brrt_PoliciesWrittenYearAxis_brrt_XNMinus3Member",null,null,null,null,null,null,null,null,null,null,null,null,null,null,null,null,null,null,null,null,{"$f":"\"bma_\"&\"PaidCY\"&V$10&\"AY\"&$B36","v":"bma_PaidCYAY2016"},{"$f":"\"bma_\"&\"PaidCY\"&W$10&\"AY\"&$B36","v":"bma_PaidCYAY2016"},{"$f":"\"bma_\"&\"PaidCY\"&X$10&\"AY\"&$B36","v":"bma_PaidCYAY2016"},{"$f":"\"bma_\"&\"PaidCY\"&Y$10&\"AY\"&$B36","v":"bma_PaidCYAY2016"},"bma_CATPaidCYAY2016"]
["L21",2017,"XXX","XXX","XXX","XXX","XXX","XXX","XXX",{"$f":"Import!I9814","v":0},{"$f":"Import!I9823","v":0},{"$f":"Import!I9833","v":0},{"$f":"Import!I9844","v":0},null,null,null,"UltCY2016AY2013",0,"CATIBNRCY2019AY2018",0,"brrt_PoliciesWrittenYearAxis_brrt_XNMinus2Member",null,null,null,null,null,null,null,null,null,null,null,null,null,null,null,null,null,null,null,null,null,{"$f":"\"bma_\"&\"PaidCY\"&W$10&\"AY\"&$B37","v":"bma_PaidCYAY2017"},{"$f":"\"bma_\"&\"PaidCY\"&X$10&\"AY\"&$B37","v":"bma_PaidCYAY2017"},{"$f":"\"bma_\"&\"PaidCY\"&Y$10&\"AY\"&$B37","v":"bma_PaidCYAY2017"},"bma_CATPaidCYAY2017"]
["L22",2018,"XXX","XXX","XXX","XXX","XXX","XXX","XXX","XXX",{"$f":"Import!I9824","v":0},{"$f":"Import!I9834","v":0},{"$f":"Import!I9845","v":0},null,null,null,"UltCY2016AY2014",0,"CATIBNRCY2019AY2019",0,"brrt_PoliciesWrittenYearAxis_brrt_XNMinus1Member",null,null,null,null,null,null,null,null,null,null,null,null,null,null,null,null,null,null,null,null,null,null,{"$f":"\"bma_\"&\"PaidCY\"&X$10&\"AY\"&$B38","v":"bma_PaidCYAY2018"},{"$f":"\"bma_\"&\"PaidCY\"&Y$10&\"AY\"&$B38","v":"bma_PaidCYAY2018"},"bma_CATPaidCYAY2018"]
["L23",{"$f":"L28","v":2019},"XXX","XXX","XXX","XXX","XXX","XXX","XXX","XXX","XXX",{"$f":"Import!I9835","v":0},{"$f":"Import!I9846","v":0},null,null,null,"UltCY2016AY2015",0,null,null,"brrt_PoliciesWrittenYearAxis_brrt_XNMember",null,null,null,null,null,null,null,null,null,null,null,null,null,null,null,null,null,null,null,null,null,null,null,{"$f":"\"bma_\"&\"PaidCY\"&Y$10&\"AY\"&$B39","v":"bma_PaidCYAY2019"},"bma_CATPaidCYAY2019"]
["L24","Totals",null,null,null,null,null,null,null,null,null,null,{"$f":"SUM(M29:M39)","v":0},null,null,null,"UltCY2016AY2016",0,null,null,null,null,null,null,null,null,null,null,null,null,null,null,null,null,null,null,null,null,null,null,null,null,null,null,null,"bma_CATPaidCYAYTotals"]
[null,null,null,null,null,null,null,null,null,null,null,null,null,null,null,null,{"$f":"\"UltCY\"&J$10&\"AY\"&B11","v":"UltCY2017AYPrior"},{"$f":"J11","v":0}]
[null,null,"BULK & IBNR RESERVES ON NET LOSSES AND ALLOCATED LOSS ADJUSTMENT EXPENSES REPORTED AT YEAR END ($000)",null,null,null,null,null,null,null,null,null,35,null,null,null,{"$f":"\"UltCY\"&J$10&\"AY\"&B13","v":"UltCY2017AY2011"},{"$f":"J13","v":0}]
[null,null,null,null,null,null,null,null,null,null,null,null,"Losses",null,null,null,"UltCY2017AY2012",0]
[null,"Years in Which",25,26,27,28,29,30,31,32,33,34,"Bulk & IBNR",null,null,null,"UltCY2017AY2013",0]
[null,"Policies Were",null,null,null,null,null,null,null,null,null,null,"Reserves",null,null,null,"UltCY2017AY2014",0]
[null,"Written",{"$f":"D46-1","v":2010},2011,2012,2013,2014,2015,2016,2017,2018,{"$f":"L28","v":2019},{"$f":"L46","v":2019},null,null,null,"UltCY2017AY2015",0]
["L25","Prior",{"$f":"Import!I9847","v":0},{"$f":"Import!I9849","v":0},{"$f":"Import!I9852","v":0},{"$f":"Import!I9856","v":0},{"$f":"Import!I9861","v":0},{"$f":"Import!I9867","v":0},{"$f":"Import!I9874","v":0},{"$f":"Import!I9882","v":0},{"$f":"Import!I9891","v":0},{"$f":"Import!I9901","v":0},{"$f":"Import!I9912","v":0},null,null,null,"UltCY2017AY2016",0,null,null,"brrt_PoliciesWrittenYearAxis_brrt_PriorMember",null,null,null,null,null,null,null,null,null,null,null,null,null,null,{"$f":"\"bma_\"&\"IBNRCY\"&P$10&\"AY\"&$B47","v":"bma_IBNRCYAYPrior"},"bma_IBNRCYUltCY2011AY2010AYPrior","bma_IBNRCY0AYPrior","bma_IBNRCYCATUltCY2019AY2012AYPrior",{"$f":"\"bma_\"&\"IBNRCY\"&T$10&\"AY\"&$B47","v":"bma_IBNRCY0AYPrior"},{"$f":"\"bma_\"&\"IBNRCY\"&U$10&\"AY\"&$B47","v":"bma_IBNRCYAYPrior"},{"$f":"\"bma_\"&\"IBNRCY\"&V$10&\"AY\"&$B47","v":"bma_IBNRCYAYPrior"},{"$f":"\"bma_\"&\"IBNRCY\"&W$10&\"AY\"&$B47","v":"bma_IBNRCYAYPrior"},{"$f":"\"bma_\"&\"IBNRCY\"&X$10&\"AY\"&$B47","v":"bma_IBNRCYAYPrior"},{"$f":"\"bma_\"&\"IBNRCY\"&Y$10&\"AY\"&$B47","v":"bma_IBNRCYAYPrior"},{"$f":"\"bma_\"&\"CATIBNRCY\"&Y$10&\"AY\"&$B47","v":"bma_CATIBNRCYAYPrior"}]
["L26",{"$f":"B49-1","v":2010},{"$f":"Import!I9848","v":0},{"$f":"Import!I9850","v":0},{"$f":"Import!I9853","v":0},{"$f":"Import!I9857","v":0},{"$f":"Import!I9862","v":0},{"$f":"Import!I9868","v":0},{"$f":"Import!I9875","v":0},{"$f":"Import!I9883","v":0},{"$f":"Import!I9892","v":0},{"$f":"Import!I9902","v":0},{"$f":"Import!I9913","v":0},null,null,null,"UltCY2017AY2017",0,null,null,"brrt_PoliciesWrittenYearAxis_brrt_XNMinus9Member",null,null,null,null,null,null,null,null,null,null,null,null,null,null,"bma_IBNRCYAY2010","bma_IBNRCYUltCY2011AY2010AY2010","bma_IBNRCY0AY2010","bma_IBNRCYCATUltCY2019AY2012AY2010","bma_IBNRCY0AY2010","bma_IBNRCYAY2010","bma_IBNRCYAY2010","bma_IBNRCYAY2010","bma_IBNRCYAY2010","bma_IBNRCYAY2010","bma_CATIBNRCYAY2010"]
["L27",2011,"XXX",{"$f":"Import!I9851","v":0},{"$f":"Import!I9854","v":0},{"$f":"Import!I9858","v":0},{"$f":"Import!I9863","v":0},{"$f":"Import!I9869","v":0},{"$f":"Import!I9876","v":0},{"$f":"Import!I9884","v":0},{"$f":"Import!I9893","v":0},{"$f":"Import!I9903","v":0},{"$f":"Import!I9914","v":0},null,null,null,{"$f":"\"UltCY\"&K$10&\"AY\"&B11","v":"UltCY2018AYPrior"},{"$f":"K11","v":0},null,null,"brrt_PoliciesWrittenYearAxis_brrt_XNMinus8Member",null,null,null,null,null,null,null,null,null,null,null,null,null,null,null,{"$f":"\"bma_\"&\"IBNRCY\"&Q$10&\"AY\"&$B49","v":"bma_IBNRCYUltCY2011AY2010AY2011"},{"$f":"\"bma_\"&\"IBNRCY\"&R$10&\"AY\"&$B49","v":"bma_IBNRCY0AY2011"},{"$f":"\"bma_\"&\"IBNRCY\"&S$10&\"AY\"&$B49","v":"bma_IBNRCYCATUltCY2019AY2012AY2011"},"bma_IBNRCY0AY2011","bma_IBNRCYAY2011","bma_IBNRCYAY2011","bma_IBNRCYAY2011","bma_IBNRCYAY2011","bma_IBNRCYAY2011","bma_CATIBNRCYAY2011"]
["L28",2012,"XXX","XXX",{"$f":"Import!I9855","v":0},{"$f":"Import!I9859","v":0},{"$f":"Import!I9864","v":0},{"$f":"Import!I9870","v":0},{"$f":"Import!I9877","v":0},{"$f":"Import!I9885","v":0},{"$f":"Import!I9894","v":0},{"$f":"Import!I9904","v":0},{"$f":"Import!I9915","v":0},null,null,null,"UltCY2018AY2010",0,null,null,"brrt_PoliciesWrittenYearAxis_brrt_XNMinus7Member",null,null,null,null,null,null,null,null,null,null,null,null,null,null,null,null,{"$f":"\"bma_\"&\"IBNRCY\"&R$10&\"AY\"&$B50","v":"bma_IBNRCY0AY2012"},{"$f":"\"bma_\"&\"IBNRCY\"&S$10&\"AY\"&$B50","v":"bma_IBNRCYCATUltCY2019AY2012AY2012"},"bma_IBNRCY0AY2012","bma_IBNRCYAY2012","bma_IBNRCYAY2012","bma_IBNRCYAY2012","bma_IBNRCYAY2012","bma_IBNRCYAY2012","bma_CATIBNRCYAY2012"]
["L29",2013,"XXX","XXX","XXX",{"$f":"Import!I9860","v":0},{"$f":"Import!I9865","v":0},{"$f":"Import!I9871","v":0},{"$f":"Import!I9878","v":0},{"$f":"Import!I9886","v":0},{"$f":"Import!I9895","v":0},{"$f":"Import!I9905","v":0},{"$f":"Import!I9916","v":0},null,null,null,"UltCY2018AY2011",0,null,null,"brrt_PoliciesWrittenYearAxis_brrt_XNMinus6Member",null,null,null,null,null,null,null,null,null,null,null,null,null,null,null,null,null,{"$f":"\"bma_\"&\"IBNRCY\"&S$10&\"AY\"&$B51","v":"bma_IBNRCYCATUltCY2019AY2012AY2013"},"bma_IBNRCY0AY2013","bma_IBNRCYAY2013","bma_IBNRCYAY2013","bma_IBNRCYAY2013","bma_IBNRCYAY2013","bma_IBNRCYAY2013","bma_CATIBNRCYAY2013"]
["L30",2014,"XXX","XXX","XXX","XXX",{"$f":"Import!I9866","v":0},{"$f":"Import!I9872","v":0},{"$f":"Import!I9879","v":0},{"$f":"Import!I9887","v":0},{"$f":"Import!I9896","v":0},{"$f":"Import!I9906","v":0},{"$f":"Import!I9917","v":0},null,null,null,"UltCY2018AY2012",0,null,null,"brrt_PoliciesWrittenYearAxis_brrt_XNMinus5Member",null,null,null,null,null,null,null,null,null,null,null,null,null,null,null,null,null,null,"bma_IBNRCY0AY2014","bma_IBNRCYAY2014","bma_IBNRCYAY2014","bma_IBNRCYAY2014","bma_IBNRCYAY2014","bma_IBNRCYAY2014","bma_CATIBNRCYAY2014"]
["L31",2015,"XXX","XXX","XXX","XXX","XXX",{"$f":"Import!I9873","v":0},{"$f":"Import!I9880","v":0},{"$f":"Import!I9888","v":0},{"$f":"Import!I9897","v":0},{"$f":"Import!I9907","v":0},{"$f":"Import!I9918","v":0},null,null,null,"UltCY2018AY2013",0,null,null,"brrt_PoliciesWrittenYearAxis_brrt_XNMinus4Member",null,null,null,null,null,null,null,null,null,null,null,null,null,null,null,null,null,null,null,{"$f":"\"bma_\"&\"IBNRCY\"&U$10&\"AY\"&$B53","v":"bma_IBNRCYAY2015"},{"$f":"\"bma_\"&\"IBNRCY\"&V$10&\"AY\"&$B53","v":"bma_IBNRCYAY2015"},{"$f":"\"bma_\"&\"IBNRCY\"&W$10&\"AY\"&$B53","v":"bma_IBNRCYAY2015"},{"$f":"\"bma_\"&\"IBNRCY\"&X$10&\"AY\"&$B53","v":"bma_IBNRCYAY2015"},{"$f":"\"bma_\"&\"IBNRCY\"&Y$10&\"AY\"&$B53","v":"bma_IBNRCYAY2015"},"bma_CATIBNRCYAY2015"]
["L32",2016,"XXX","XXX","XXX","XXX","XXX","XXX",{"$f":"Import!I9881","v":0},{"$f":"Import!I9889","v":0},{"$f":"Import!I9898","v":0},{"$f":"Import!I9908","v":0},{"$f":"Import!I9919","v":0},null,null,null,"UltCY2018AY2014",0,null,null,"brrt_PoliciesWrittenYearAxis_brrt_XNMinus3Member",null,null,null,null,null,null,null,null,null,null,null,null,null,null,null,null,null,null,null,null,{"$f":"\"bma_\"&\"IBNRCY\"&V$10&\"AY\"&$B54","v":"bma_IBNRCYAY2016"},{"$f":"\"bma_\"&\"IBNRCY\"&W$10&\"AY\"&$B54","v":"bma_IBNRCYAY2016"},{"$f":"\"bma_\"&\"IBNRCY\"&X$10&\"AY\"&$B54","v":"bma_IBNRCYAY2016"},{"$f":"\"bma_\"&\"IBNRCY\"&Y$10&\"AY\"&$B54","v":"bma_IBNRCYAY2016"},"bma_CATIBNRCYAY2016"]
["L33",2017,"XXX","XXX","XXX","XXX","XXX","XXX","XXX",{"$f":"Import!I9890","v":0},{"$f":"Import!I9899","v":0},{"$f":"Import!I9909","v":0},{"$f":"Import!I9920","v":0},null,null,null,"UltCY2018AY2015",0,null,null,"brrt_PoliciesWrittenYearAxis_brrt_XNMinus2Member",null,null,null,null,null,null,null,null,null,null,null,null,null,null,null,null,null,null,null,null,null,{"$f":"\"bma_\"&\"IBNRCY\"&W$10&\"AY\"&$B55","v":"bma_IBNRCYAY2017"},{"$f":"\"bma_\"&\"IBNRCY\"&X$10&\"AY\"&$B55","v":"bma_IBNRCYAY2017"},{"$f":"\"bma_\"&\"IBNRCY\"&Y$10&\"AY\"&$B55","v":"bma_IBNRCYAY2017"},"bma_CATIBNRCYAY2017"]
["L34",2018,"XXX","XXX","XXX","XXX","XXX","XXX","XXX","XXX",{"$f":"Import!I9900","v":0},{"$f":"Import!I9910","v":0},{"$f":"Import!I9921","v":0},null,null,null,"UltCY2018AY2016",0,null,null,"brrt_PoliciesWrittenYearAxis_brrt_XNMinus1Member",null,null,null,null,null,null,null,null,null,null,null,null,null,null,null,null,null,null,null,null,null,null,{"$f":"\"bma_\"&\"IBNRCY\"&X$10&\"AY\"&$B56","v":"bma_IBNRCYAY2018"},{"$f":"\"bma_\"&\"IBNRCY\"&Y$10&\"AY\"&$B56","v":"bma_IBNRCYAY2018"},"bma_CATIBNRCYAY2018"]
["L35",{"$f":"L46","v":2019},"XXX","XXX","XXX","XXX","XXX","XXX","XXX","XXX","XXX",{"$f":"Import!I9911","v":0},{"$f":"Import!I9922","v":0},null,null,null,"UltCY2018AY2017",0,null,null,"brrt_PoliciesWrittenYearAxis_brrt_XNMember",null,null,null,null,null,null,null,null,null,null,null,null,null,null,null,null,null,null,null,null,null,null,null,{"$f":"\"bma_\"&\"IBNRCY\"&Y$10&\"AY\"&$B57","v":"bma_IBNRCYAY2019"},"bma_CATIBNRCYAY2019"]
["L36","Totals",null,null,null,null,null,null,null,null,null,null,{"$f":"SUM(M47:M57)","v":0},null,null,null,"UltCY2018AY2018",0,null,null,null,null,null,null,null,null,null,null,null,null,null,null,null,null,null,null,null,null,null,null,null,null,null,null,null,"bma_CATIBNRCYAYTotals"]
[null,null,null,null,null,null,null,null,null,null,null,null,null,null,null,null,{"$f":"\"UltCY\"&L$10&\"AY\"&B11","v":"UltCY2019AYPrior"},{"$f":"L11","v":0}]
[null,null,36,37,38,39,"Unallocated Loss",null,null,42,43,44,45,null,null,null,{"$f":"\"UltCY\"&L$10&\"AY\"&B13","v":"UltCY2019AY2011"},{"$f":"L13","v":0}]
[null,"Years in Which",null,null,null,null,"Adjustment Expenses",null,null,null,null,null,null,null,null,null,"UltCY2019AY2012",0]
[null,"Premiums",null,null,null,null,40,41,null,null,null,null,null,null,null,null,"UltCY2019AY2013",0]
[null,"Were",null,null,null,null,null,null,null,"Commission and","General and",null,null,null,null,null,"UltCY2019AY2014",0]
[null,"Earned and","Gross","Gross","Net","Net",null,null,null,"Brokerage","Administrative","Personnel","Other",null,null,null,"UltCY2019AY2015",0]
[null,"Losses Were","Premiums","Premiums","Premiums","Premiums",null,null,"Calendar","Expense","Expense","Costs","Expense",null,null,null,"UltCY2019AY2016",0]
[null,"Incurred","Written","Earned","Written","Earned","Paid","Incurred","Year","(Form 2A, Line 9)","(Form 2A, Line 10)","(Form 2A, Line 11)","(Form 2A, Line 12)",null,null,null,"UltCY2019AY2017",0]
["L37","Prior","XXX",{"$f":"C67","v":"XXX"},"XXX",{"$f":"E67","v":"XXX"},{"$f":"Import!I9967","v":0},{"$f":"Import!I9978","v":0},"Prior",{"$f":"Import!I9989","v":0},{"$f":"Import!I10000","v":0},{"$f":"Import!I10011","v":0},{"$f":"Import!I10022","v":0},null,null,null,"UltCY2019AY2018",0,null,null,"brrt_PremiumsEarnedLossesIncurredYearAxis_brrt_PriorMember","brrt_CalendarYearAxis_brrt_PriorMember",null,null,null,null,null,null,null,null,null,null,null,null,null,null,null,null,null,{"$f":"\"bma_\"&\"NetAOEPaid\"&$B67","v":"bma_NetAOEPaidPrior"},{"$f":"\"bma_\"&\"NetAOEIncurred\"&$B67","v":"bma_NetAOEIncurredPrior"},null,{"$f":"\"bma_\"&\"CommissionsAndBrokerage\"&$B67","v":"bma_CommissionsAndBrokeragePrior"},{"$f":"\"bma_\"&\"GeneralAndAdministrative\"&$B67","v":"bma_GeneralAndAdministrativePrior"},{"$f":"\"bma_\"&\"PersonnelCosts\"&$B67","v":"bma_PersonnelCostsPrior"},{"$f":"\"bma_\"&\"UnderwritingExpensesOther\"&$B67","v":"bma_UnderwritingExpensesOtherPrior"}]
["L38",{"$f":"B69-1","v":2010},{"$f":"Import!I9924","v":0},{"$f":"Import!I9935","v":0},{"$f":"Import!I9946","v":0},{"$f":"Import!I9957","v":0},{"$f":"Import!I9968","v":0},{"$f":"Import!I9979","v":0},{"$f":"B68","v":2010},{"$f":"Import!I9990","v":0},{"$f":"Import!I10001","v":0},{"$f":"Import!I10012","v":0},{"$f":"Import!I10023","v":0},null,null,null,"UltCY2019AY2019",0,null,null,"brrt_PremiumsEarnedLossesIncurredYearAxis_brrt_XNMinus9Member","brrt_CalendarYearAxis_brrt_XNMinus9Member",null,null,null,null,null,null,null,null,null,null,null,null,null,{"$f":"\"bma_\"&\"GrossWP\"&$B68","v":"bma_GrossWP2010"},{"$f":"\"bma_\"&\"GrossEP\"&$B68","v":"bma_GrossEP2010"},{"$f":"\"bma_\"&\"NetWP\"&$B68","v":"bma_NetWP2010"},{"$f":"\"bma_\"&\"NetEP\"&$B68","v":"bma_NetEP2010"},{"$f":"\"bma_\"&\"NetAOEPaid\"&$B68","v":"bma_NetAOEPaid2010"},{"$f":"\"bma_\"&\"NetAOEIncurred\"&$B68","v":"bma_NetAOEIncurred2010"},null,{"$f":"\"bma_\"&\"CommissionsAndBrokerage\"&$B68","v":"bma_CommissionsAndBrokerage2010"},{"$f":"\"bma_\"&\"GeneralAndAdministrative\"&$B68","v":"bma_GeneralAndAdministrative2010"},{"$f":"\"bma_\"&\"PersonnelCosts\"&$B68","v":"bma_PersonnelCosts2010"},{"$f":"\"bma_\"&\"UnderwritingExpensesOther\"&$B68","v":"bma_UnderwritingExpensesOther2010"}]
["L39",2011,{"$f":"Import!I9925","v":0},{"$f":"Import!I9936","v":0},{"$f":"Import!I9947","v":0},{"$f":"Import!I9958","v":0},{"$f":"Import!I9969","v":0},{"$f":"Import!I9980","v":0},2011,{"$f":"Import!I9991","v":0},{"$f":"Import!I10002","v":0},{"$f":"Import!I10013","v":0},{"$f":"Import!I10024","v":0},null,null,null,{"$f":"\"PaidCY\"&C$10&\"AY\"&B29","v":"PaidCY2010AYPrior"},{"$f":"C29","v":0},null,null,"brrt_PremiumsEarnedLossesIncurredYearAxis_brrt_XNMinus8Member","brrt_CalendarYearAxis_brrt_XNMinus8Member",null,null,null,null,null,null,null,null,null,null,null,null,null,{"$f":"\"bma_\"&\"GrossWP\"&$B69","v":"bma_GrossWP2011"},{"$f":"\"bma_\"&\"GrossEP\"&$B69","v":"bma_GrossEP2011"},{"$f":"\"bma_\"&\"NetWP\"&$B69","v":"bma_NetWP2011"},{"$f":"\"bma_\"&\"NetEP\"&$B69","v":"bma_NetEP2011"},"bma_NetAOEPaid2011","bma_NetAOEIncurred2011",null,"bma_CommissionsAndBrokerage2011","bma_GeneralAndAdministrative2011","bma_PersonnelCosts2011","bma_UnderwritingExpensesOther2011"]
["L40",2012,{"$f":"Import!I9926","v":0},{"$f":"Import!I9937","v":0},{"$f":"Import!I9948","v":0},{"$f":"Import!I9959","v":0},{"$f":"Import!I9970","v":0},{"$f":"Import!I9981","v":0},2012,{"$f":"Import!I9992","v":0},{"$f":"Import!I10003","v":0},{"$f":"Import!I10014","v":0},{"$f":"Import!I10025","v":0},null,null,null,{"$f":"\"PaidCY\"&C$10&\"AY\"&B30","v":"PaidCY2010AY2010"},{"$f":"C30","v":0},null,null,"brrt_PremiumsEarnedLossesIncurredYearAxis_brrt_XNMinus7Member","brrt_CalendarYearAxis_brrt_XNMinus7Member",null,null,null,null,null,null,null,null,null,null,null,null,null,"bma_GrossWP2012","bma_GrossEP2012","bma_NetWP2012","bma_NetEP2012","bma_NetAOEPaid2012","bma_NetAOEIncurred2012",null,"bma_CommissionsAndBrokerage2012","bma_GeneralAndAdministrative2012","bma_PersonnelCosts2012","bma_UnderwritingExpensesOther2012"]
["L41",2013,{"$f":"Import!I9927","v":0},{"$f":"Import!I9938","v":0},{"$f":"Import!I9949","v":0},{"$f":"Import!I9960","v":0},{"$f":"Import!I9971","v":0},{"$f":"Import!I9982","v":0},2013,{"$f":"Import!I9993","v":0},{"$f":"Import!I10004","v":0},{"$f":"Import!I10015","v":0},{"$f":"Import!I10026","v":0},null,null,null,{"$f":"\"PaidCY\"&D$10&\"AY\"&B29","v":"PaidCY2011AYPrior"},{"$f":"D29","v":0},null,null,"brrt_PremiumsEarnedLossesIncurredYearAxis_brrt_XNMinus6Member","brrt_CalendarYearAxis_brrt_XNMinus6Member",null,null,null,null,null,null,null,null,null,null,null,null,null,"bma_GrossWP2013","bma_GrossEP2013","bma_NetWP2013","bma_NetEP2013","bma_NetAOEPaid2013","bma_NetAOEIncurred2013",null,"bma_CommissionsAndBrokerage2013","bma_GeneralAndAdministrative2013","bma_PersonnelCosts2013","bma_UnderwritingExpensesOther2013"]
["L42",2014,{"$f":"Import!I9928","v":0},{"$f":"Import!I9939","v":0},{"$f":"Import!I9950","v":0},{"$f":"Import!I9961","v":0},{"$f":"Import!I9972","v":0},{"$f":"Import!I9983","v":0},2014,{"$f":"Import!I9994","v":0},{"$f":"Import!I10005","v":0},{"$f":"Import!I10016","v":0},{"$f":"Import!I10027","v":0},null,null,null,{"$f":"\"PaidCY\"&D$10&\"AY\"&B30","v":"PaidCY2011AY2010"},{"$f":"D30","v":0},null,null,"brrt_PremiumsEarnedLossesIncurredYearAxis_brrt_XNMinus5Member","brrt_CalendarYearAxis_brrt_XNMinus5Member",null,null,null,null,null,null,null,null,null,null,null,null,null,"bma_GrossWP2014","bma_GrossEP2014","bma_NetWP2014","bma_NetEP2014","bma_NetAOEPaid2014","bma_NetAOEIncurred2014",null,"bma_CommissionsAndBrokerage2014","bma_GeneralAndAdministrative2014","bma_PersonnelCosts2014","bma_UnderwritingExpensesOther2014"]
["L43",2015,{"$f":"Import!I9929","v":0},{"$f":"Import!I9940","v":0},{"$f":"Import!I9951","v":0},{"$f":"Import!I9962","v":0},{"$f":"Import!I9973","v":0},{"$f":"Import!I9984","v":0},2015,{"$f":"Import!I9995","v":0},{"$f":"Import!I10006","v":0},{"$f":"Import!I10017","v":0},{"$f":"Import!I10028","v":0},null,null,null,{"$f":"\"PaidCY\"&D$10&\"AY\"&B31","v":"PaidCY2011AY2011"},{"$f":"D31","v":0},null,null,"brrt_PremiumsEarnedLossesIncurredYearAxis_brrt_XNMinus4Member","brrt_CalendarYearAxis_brrt_XNMinus4Member",null,null,null,null,null,null,null,null,null,null,null,null,null,"bma_GrossWP2015","bma_GrossEP2015","bma_NetWP2015","bma_NetEP2015","bma_NetAOEPaid2015","bma_NetAOEIncurred2015",null,"bma_CommissionsAndBrokerage2015","bma_GeneralAndAdministrative2015","bma_PersonnelCosts2015","bma_UnderwritingExpensesOther2015"]
["L44",2016,{"$f":"Import!I9930","v":0},{"$f":"Import!I9941","v":0},{"$f":"Import!I9952","v":0},{"$f":"Import!I9963","v":0},{"$f":"Import!I9974","v":0},{"$f":"Import!I9985","v":0},2016,{"$f":"Import!I9996","v":0},{"$f":"Import!I10007","v":0},{"$f":"Import!I10018","v":0},{"$f":"Import!I10029","v":0},null,null,null,{"$f":"\"PaidCY\"&E$10&\"AY\"&B29","v":"PaidCY2012AYPrior"},{"$f":"E29","v":0},null,null,"brrt_PremiumsEarnedLossesIncurredYearAxis_brrt_XNMinus3Member","brrt_CalendarYearAxis_brrt_XNMinus3Member",null,null,null,null,null,null,null,null,null,null,null,null,null,"bma_GrossWP2016","bma_GrossEP2016","bma_NetWP2016","bma_NetEP2016","bma_NetAOEPaid2016","bma_NetAOEIncurred2016",null,"bma_CommissionsAndBrokerage2016","bma_GeneralAndAdministrative2016","bma_PersonnelCosts2016","bma_UnderwritingExpensesOther2016"]
["L45",2017,{"$f":"Import!I9931","v":0},{"$f":"Import!I9942","v":0},{"$f":"Import!I9953","v":0},{"$f":"Import!I9964","v":0},{"$f":"Import!I9975","v":0},{"$f":"Import!I9986","v":0},2017,{"$f":"Import!I9997","v":0},{"$f":"Import!I10008","v":0},{"$f":"Import!I10019","v":0},{"$f":"Import!I10030","v":0},null,null,null,{"$f":"\"PaidCY\"&E$10&\"AY\"&B30","v":"PaidCY2012AY2010"},{"$f":"E30","v":0},null,null,"brrt_PremiumsEarnedLossesIncurredYearAxis_brrt_XNMinus2Member","brrt_CalendarYearAxis_brrt_XNMinus2Member",null,null,null,null,null,null,null,null,null,null,null,null,null,"bma_GrossWP2017","bma_GrossEP2017","bma_NetWP2017","bma_NetEP2017","bma_NetAOEPaid2017","bma_NetAOEIncurred2017",null,"bma_CommissionsAndBrokerage2017","bma_GeneralAndAdministrative2017","bma_PersonnelCosts2017","bma_UnderwritingExpensesOther2017"]
["L46",2018,{"$f":"Import!I9932","v":0},{"$f":"Import!I9943","v":0},{"$f":"Import!I9954","v":0},{"$f":"Import!I9965","v":0},{"$f":"Import!I9976","v":0},{"$f":"Import!I9987","v":0},2018,{"$f":"Import!I9998","v":0},{"$f":"Import!I10009","v":0},{"$f":"Import!I10020","v":0},{"$f":"Import!I10031","v":0},null,null,null,{"$f":"\"PaidCY\"&E$10&\"AY\"&B31","v":"PaidCY2012AY2011"},{"$f":"E31","v":0},null,null,"brrt_PremiumsEarnedLossesIncurredYearAxis_brrt_XNMinus1Member","brrt_CalendarYearAxis_brrt_XNMinus1Member",null,null,null,null,null,null,null,null,null,null,null,null,null,"bma_GrossWP2018","bma_GrossEP2018","bma_NetWP2018","bma_NetEP2018","bma_NetAOEPaid2018","bma_NetAOEIncurred2018",null,"bma_CommissionsAndBrokerage2018","bma_GeneralAndAdministrative2018","bma_PersonnelCosts2018","bma_UnderwritingExpensesOther2018"]
["L47",{"$f":"B39","v":2019},{"$f":"Import!I9933","v":0},{"$f":"Import!I9944","v":0},{"$f":"Import!I9955","v":0},{"$f":"Import!I9966","v":0},{"$f":"Import!I9977","v":0},{"$f":"Import!I9988","v":0},2019,{"$f":"Import!I9999","v":0},{"$f":"Import!I10010","v":0},{"$f":"Import!I10021","v":0},{"$f":"Import!I10032","v":0},null,null,null,{"$f":"\"PaidCY\"&E$10&\"AY\"&B32","v":"PaidCY2012AY2012"},{"$f":"E32","v":0},null,null,"brrt_PremiumsEarnedLossesIncurredYearAxis_brrt_XNMember","brrt_CalendarYearAxis_brrt_XNMember",null,null,null,null,null,null,null,null,null,null,null,null,null,"bma_GrossWP2019","bma_GrossEP2019","bma_NetWP2019","bma_NetEP2019","bma_NetAOEPaid2019","bma_NetAOEIncurred2019",null,"bma_CommissionsAndBrokerage2019","bma_GeneralAndAdministrative2019","bma_PersonnelCosts2019","bma_UnderwritingExpensesOther2019"]
["L48","Totals","XXX",{"$f":"C78","v":"XXX"},"XXX",{"$f":"E78","v":"XXX"},{"$f":"SUM(G67:G77)","v":0},{"$f":"SUM(H67:H77)","v":0},"Totals",{"$f":"SUM(J67:J77)","v":0},{"$f":"SUM(K67:K77)","v":0},{"$f":"SUM(L67:L77)","v":0},{"$f":"SUM(M67:M77)","v":0},null,null,null,{"$f":"\"PaidCY\"&F$10&\"AY\"&B29","v":"PaidCY2013AYPrior"},{"$f":"F29","v":0},null,null,null,null,null,null,null,null,null,null,null,null,null,null,null,null,null,null,null,null,null,"bma_NetAOEPaidTotals","bma_NetAOEIncurredTotals",null,"bma_CommissionsAndBrokerageTotals","bma_GeneralAndAdministrativeTotals","bma_PersonnelCostsTotals","bma_UnderwritingExpensesOtherTotals"]
[null,null,null,null,null,null,null,null,null,null,null,null,null,null,null,null,{"$f":"\"PaidCY\"&F$10&\"AY\"&B30","v":"PaidCY2013AY2010"},{"$f":"F30","v":0}]
[null,"COMMENTS",null,null,null,null,null,null,null,null,null,null,null,null,null,null,{"$f":"\"PaidCY\"&F$10&\"AY\"&B31","v":"PaidCY2013AY2011"},{"$f":"F31","v":0}]
[null,{"$f":"Import!I10033","v":0},null,null,null,null,null,null,null,null,null,null,null,null,null,null,{"$f":"\"PaidCY\"&G$10&\"AY\"&B30","v":"PaidCY2014AY2010"},{"$f":"G30","v":0},null,null,"brrt_LossTrianglesComments",{"$f":"XBRLMap(B81,U81&\".\"&U4&\".\"&U7,$B$95,$B$96,CONFIGURATION!$B$10,\"BMA\",CONFIGURATION!$B$1,\"bscr\")","v":"Mapped"},null,null,null,null,null,null,null,null,null,null,null,null,null,"bma_ScheduleOfLossTrianglesComments"]
[null,null,null,null,null,null,null,null,null,null,null,null,null,null,null,null,{"$f":"\"PaidCY\"&G$10&\"AY\"&B31","v":"PaidCY2014AY2011"},{"$f":"G31","v":0}]
[null,null,null,null,null,null,null,null,null,null,null,null,null,null,null,null,{"$f":"\"PaidCY\"&G$10&\"AY\"&B32","v":"PaidCY2014AY2012"},{"$f":"G32","v":0}]
[null,null,null,null,null,null,null,null,null,null,null,null,null,null,null,null,{"$f":"\"PaidCY\"&G$10&\"AY\"&B34","v":"PaidCY2014AY2014"},{"$f":"G34","v":0}]
[null,null,"brrt_IncurredEstimatedUltimateNetLossesAndAllocatedLossAdjustmentExpenses","brrt_IncurredEstimatedUltimateNetLossesAndAllocatedLossAdjustmentExpenses","brrt_IncurredEstimatedUltimateNetLossesAndAllocatedLossAdjustmentExpenses","brrt_IncurredEstimatedUltimateNetLossesAndAllocatedLossAdjustmentExpenses","brrt_IncurredEstimatedUltimateNetLossesAndAllocatedLossAdjustmentExpenses","brrt_IncurredEstimatedUltimateNetLossesAndAllocatedLossAdjustmentExpenses","brrt_IncurredEstimatedUltimateNetLossesAndAllocatedLossAdjustmentExpenses","brrt_IncurredEstimatedUltimateNetLossesAndAllocatedLossAdjustmentExpenses","brrt_IncurredEstimatedUltimateNetLossesAndAllocatedLossAdjustmentExpenses","brrt_IncurredEstimatedUltimateNetLossesAndAllocatedLossAdjustmentExpenses","brrt_UltimateCatastropheLosses",null,null,null,{"$f":"\"PaidCY\"&H$10&\"AY\"&B29","v":"PaidCY2015AYPrior"},{"$f":"H29","v":0}]
[null,null,"brrt_CumulativePaidNetLossesAndAllocatedLossAdjustmentExpenses","brrt_CumulativePaidNetLossesAndAllocatedLossAdjustmentExpenses","brrt_CumulativePaidNetLossesAndAllocatedLossAdjustmentExpenses","brrt_CumulativePaidNetLossesAndAllocatedLossAdjustmentExpenses","brrt_CumulativePaidNetLossesAndAllocatedLossAdjustmentExpenses","brrt_CumulativePaidNetLossesAndAllocatedLossAdjustmentExpenses","brrt_CumulativePaidNetLossesAndAllocatedLossAdjustmentExpenses","brrt_CumulativePaidNetLossesAndAllocatedLossAdjustmentExpenses","brrt_CumulativePaidNetLossesAndAllocatedLossAdjustmentExpenses","brrt_CumulativePaidNetLossesAndAllocatedLossAdjustmentExpenses","brrt_PaidCatastropheLosses",null,null,null,"PaidCY2015AY2010",0]
[null,null,"brrt_BulkAndIBNRReservesOnNetLossesAndAllocatedLossAdjustmentExpenses","brrt_BulkAndIBNRReservesOnNetLossesAndAllocatedLossAdjustmentExpenses","brrt_BulkAndIBNRReservesOnNetLossesAndAllocatedLossAdjustmentExpenses","brrt_BulkAndIBNRReservesOnNetLossesAndAllocatedLossAdjustmentExpenses","brrt_BulkAndIBNRReservesOnNetLossesAndAllocatedLossAdjustmentExpenses","brrt_BulkAndIBNRReservesOnNetLossesAndAllocatedLossAdjustmentExpenses","brrt_BulkAndIBNRReservesOnNetLossesAndAllocatedLossAdjustmentExpenses","brrt_BulkAndIBNRReservesOnNetLossesAndAllocatedLossAdjustmentExpenses","brrt_BulkAndIBNRReservesOnNetLossesAndAllocatedLossAdjustmentExpenses","brrt_BulkAndIBNRReservesOnNetLossesAndAllocatedLossAdjustmentExpenses","brrt_LossesBulkAndBNRReserves",null,null,null,"PaidCY2015AY2011",0]
[null,null,"brrt_GrossPremiumsWritten","brrt_GrossPremiumsEarned","brrt_NetPremiumsWritten","brrt_NetPremiumsEarned","brrt_UnallocatedLossAdjustmentExpensesPaid","brrt_UnallocatedLossAdjustmentExpensesIncurred",null,"brrt_CommissionsAndBrokerage","brrt_GeneralAndAdministrative","brrt_PersonnelCosts","brrt_OtherUnderwritingExpenses",null,null,null,"PaidCY2015AY2012",0]
[null,null,"brrt_ReportingYearAxis_brrt_YNMinus9Member","brrt_ReportingYearAxis_brrt_YNMinus8Member","brrt_ReportingYearAxis_brrt_YNMinus7Member","brrt_ReportingYearAxis_brrt_YNMinus6Member","brrt_ReportingYearAxis_brrt_YNMinus5Member","brrt_ReportingYearAxis_brrt_YNMinus4Member","brrt_ReportingYearAxis_brrt_YNMinus3Member","brrt_ReportingYearAxis_brrt_YNMinus2Member","brrt_ReportingYearAxis_brrt_YNMinus1Member","brrt_ReportingYearAxis_brrt_YNMember","brrt_ReportingYearAxis_brrt_YNMember",null,null,null,"PaidCY2015AY2013",0]
[null,null,null,null,null,null,null,null,null,null,null,null,null,null,null,null,"PaidCY2015AY2014",0]
[null,null,null,null,null,null,null,null,null,null,null,null,null,null,null,null,"PaidCY2015AY2015",0]
[null,null,"Accident Year",null,null,null,null,null,null,null,null,null,null,null,null,null,{"$f":"\"PaidCY\"&I$10&\"AY\"&B29","v":"PaidCY2016AYPrior"},{"$f":"I29","v":0}]
[null,null,"Underwriting Year",null,null,null,null,null,null,null,null,null,null,null,null,null,"PaidCY2016AY2010",0]
[null,null,null,null,null,null,null,null,null,null,null,null,null,null,null,null,"PaidCY2016AY2011",0]
[null,{"$f":"IF(B3=\"\",\"\",TEXT(DATE(YEAR(B3+1)-1,MONTH(B3+1),DAY(B3+1)),\"mm/dd/yyyy\"))","v":"01/01/2019"},null,null,null,null,null,null,null,null,null,null,null,null,null,null,"PaidCY2016AY2012",0]
[null,{"$f":"IF(B3=\"\",\"\",TEXT(B3,\"mm/dd/yyyy\"))","v":"12/31/2019"},null,null,null,null,null,null,null,null,null,null,null,null,null,null,"PaidCY2016AY2013",0]
[null,null,null,null,null,null,null,null,null,null,null,null,null,null,null,null,"PaidCY2016AY2014",0]
[null,null,null,null,null,null,null,null,null,null,null,null,null,null,null,null,"PaidCY2016AY2015",0]
[null,null,null,null,null,null,null,null,null,null,null,null,null,null,null,null,"PaidCY2016AY2016",0]
[null,null,null,null,null,null,null,null,null,null,null,null,null,null,null,null,{"$f":"\"PaidCY\"&J$10&\"AY\"&B29","v":"PaidCY2017AYPrior"},{"$f":"J29","v":0}]
[null,null,{"$f":"XBRLMap(C11,C$85&\".\"&$U$4&\".\"&$U$6&\".\"&$U11&\".\"&C$89&\".\"&$U$7,$B$95,$B$96,CONFIGURATION!$B$10,\"BMA\",CONFIGURATION!$B$1,\"bscr\",1000)","v":"Mapped"},{"$f":"XBRLMap(D11,D$85&\".\"&$U$4&\".\"&$U$6&\".\"&$U11&\".\"&D$89&\".\"&$U$7,$B$95,$B$96,CONFIGURATION!$B$10,\"BMA\",CONFIGURATION!$B$1,\"bscr\",1000)","v":"Mapped"},{"$f":"XBRLMap(E11,E$85&\".\"&$U$4&\".\"&$U$6&\".\"&$U11&\".\"&E$89&\".\"&$U$7,$B$95,$B$96,CONFIGURATION!$B$10,\"BMA\",CONFIGURATION!$B$1,\"bscr\",1000)","v":"Mapped"},{"$f":"XBRLMap(F11,F$85&\".\"&$U$4&\".\"&$U$6&\".\"&$U11&\".\"&F$89&\".\"&$U$7,$B$95,$B$96,CONFIGURATION!$B$10,\"BMA\",CONFIGURATION!$B$1,\"bscr\",1000)","v":"Mapped"},{"$f":"XBRLMap(G11,G$85&\".\"&$U$4&\".\"&$U$6&\".\"&$U11&\".\"&G$89&\".\"&$U$7,$B$95,$B$96,CONFIGURATION!$B$10,\"BMA\",CONFIGURATION!$B$1,\"bscr\",1000)","v":"Mapped"},{"$f":"XBRLMap(H11,H$85&\".\"&$U$4&\".\"&$U$6&\".\"&$U11&\".\"&H$89&\".\"&$U$7,$B$95,$B$96,CONFIGURATION!$B$10,\"BMA\",CONFIGURATION!$B$1,\"bscr\",1000)","v":"Mapped"},{"$f":"XBRLMap(I11,I$85&\".\"&$U$4&\".\"&$U$6&\".\"&$U11&\".\"&I$89&\".\"&$U$7,$B$95,$B$96,CONFIGURATION!$B$10,\"BMA\",CONFIGURATION!$B$1,\"bscr\",1000)","v":"Mapped"},{"$f":"XBRLMap(J11,J$85&\".\"&$U$4&\".\"&$U$6&\".\"&$U11&\".\"&J$89&\".\"&$U$7,$B$95,$B$96,CONFIGURATION!$B$10,\"BMA\",CONFIGURATION!$B$1,\"bscr\",1000)","v":"Mapped"},{"$f":"XBRLMap(K11,K$85&\".\"&$U$4&\".\"&$U$6&\".\"&$U11&\".\"&K$89&\".\"&$U$7,$B$95,$B$96,CONFIGURATION!$B$10,\"BMA\",CONFIGURATION!$B$1,\"bscr\",1000)","v":"Mapped"},{"$f":"XBRLMap(L11,L$85&\".\"&$U$4&\".\"&$U$6&\".\"&$U11&\".\"&L$89&\".\"&$U$7,$B$95,$B$96,CONFIGURATION!$B$10,\"BMA\",CONFIGURATION!$B$1,\"bscr\",1000)","v":"Mapped"},{"$f":"XBRLMap(M11,M$85&\".\"&$U$4&\".\"&$U$6&\".\"&$U11&\".\"&M$89&\".\"&$U$7,$B$95,$B$96,CONFIGURATION!$B$10,\"BMA\",CONFIGURATION!$B$1,\"bscr\",1000)","v":"Mapped"},null,null,null,"PaidCY2017AY2010",0]
[null,null,{"$f":"XBRLMap(C12,C$85&\".\"&$U$4&\".\"&$U$6&\".\"&$U12&\".\"&C$89&\".\"&$U$7,$B$95,$B$96,CONFIGURATION!$B$10,\"BMA\",CONFIGURATION!$B$1,\"bscr\",1000)","v":"Mapped"},{"$f":"XBRLMap(D12,D$85&\".\"&$U$4&\".\"&$U$6&\".\"&$U12&\".\"&D$89&\".\"&$U$7,$B$95,$B$96,CONFIGURATION!$B$10,\"BMA\",CONFIGURATION!$B$1,\"bscr\",1000)","v":"Mapped"},{"$f":"XBRLMap(E12,E$85&\".\"&$U$4&\".\"&$U$6&\".\"&$U12&\".\"&E$89&\".\"&$U$7,$B$95,$B$96,CONFIGURATION!$B$10,\"BMA\",CONFIGURATION!$B$1,\"bscr\",1000)","v":"Mapped"},{"$f":"XBRLMap(F12,F$85&\".\"&$U$4&\".\"&$U$6&\".\"&$U12&\".\"&F$89&\".\"&$U$7,$B$95,$B$96,CONFIGURATION!$B$10,\"BMA\",CONFIGURATION!$B$1,\"bscr\",1000)","v":"Mapped"},{"$f":"XBRLMap(G12,G$85&\".\"&$U$4&\".\"&$U$6&\".\"&$U12&\".\"&G$89&\".\"&$U$7,$B$95,$B$96,CONFIGURATION!$B$10,\"BMA\",CONFIGURATION!$B$1,\"bscr\",1000)","v":"Mapped"},{"$f":"XBRLMap(H12,H$85&\".\"&$U$4&\".\"&$U$6&\".\"&$U12&\".\"&H$89&\".\"&$U$7,$B$95,$B$96,CONFIGURATION!$B$10,\"BMA\",CONFIGURATION!$B$1,\"bscr\",1000)","v":"Mapped"},{"$f":"XBRLMap(I12,I$85&\".\"&$U$4&\".\"&$U$6&\".\"&$U12&\".\"&I$89&\".\"&$U$7,$B$95,$B$96,CONFIGURATION!$B$10,\"BMA\",CONFIGURATION!$B$1,\"bscr\",1000)","v":"Mapped"},{"$f":"XBRLMap(J12,J$85&\".\"&$U$4&\".\"&$U$6&\".\"&$U12&\".\"&J$89&\".\"&$U$7,$B$95,$B$96,CONFIGURATION!$B$10,\"BMA\",CONFIGURATION!$B$1,\"bscr\",1000)","v":"Mapped"},{"$f":"XBRLMap(K12,K$85&\".\"&$U$4&\".\"&$U$6&\".\"&$U12&\".\"&K$89&\".\"&$U$7,$B$95,$B$96,CONFIGURATION!$B$10,\"BMA\",CONFIGURATION!$B$1,\"bscr\",1000)","v":"Mapped"},{"$f":"XBRLMap(L12,L$85&\".\"&$U$4&\".\"&$U$6&\".\"&$U12&\".\"&L$89&\".\"&$U$7,$B$95,$B$96,CONFIGURATION!$B$10,\"BMA\",CONFIGURATION!$B$1,\"bscr\",1000)","v":"Mapped"},{"$f":"XBRLMap(M12,M$85&\".\"&$U$4&\".\"&$U$6&\".\"&$U12&\".\"&M$89&\".\"&$U$7,$B$95,$B$96,CONFIGURATION!$B$10,\"BMA\",CONFIGURATION!$B$1,\"bscr\",1000)","v":"Mapped"},null,null,null,"PaidCY2017AY2011",0]
[null,null,null,{"$f":"XBRLMap(D13,D$85&\".\"&$U$4&\".\"&$U$6&\".\"&$U13&\".\"&D$89&\".\"&$U$7,$B$95,$B$96,CONFIGURATION!$B$10,\"BMA\",CONFIGURATION!$B$1,\"bscr\",1000)","v":"Mapped"},{"$f":"XBRLMap(E13,E$85&\".\"&$U$4&\".\"&$U$6&\".\"&$U13&\".\"&E$89&\".\"&$U$7,$B$95,$B$96,CONFIGURATION!$B$10,\"BMA\",CONFIGURATION!$B$1,\"bscr\",1000)","v":"Mapped"},{"$f":"XBRLMap(F13,F$85&\".\"&$U$4&\".\"&$U$6&\".\"&$U13&\".\"&F$89&\".\"&$U$7,$B$95,$B$96,CONFIGURATION!$B$10,\"BMA\",CONFIGURATION!$B$1,\"bscr\",1000)","v":"Mapped"},{"$f":"XBRLMap(G13,G$85&\".\"&$U$4&\".\"&$U$6&\".\"&$U13&\".\"&G$89&\".\"&$U$7,$B$95,$B$96,CONFIGURATION!$B$10,\"BMA\",CONFIGURATION!$B$1,\"bscr\",1000)","v":"Mapped"},{"$f":"XBRLMap(H13,H$85&\".\"&$U$4&\".\"&$U$6&\".\"&$U13&\".\"&H$89&\".\"&$U$7,$B$95,$B$96,CONFIGURATION!$B$10,\"BMA\",CONFIGURATION!$B$1,\"bscr\",1000)","v":"Mapped"},{"$f":"XBRLMap(I13,I$85&\".\"&$U$4&\".\"&$U$6&\".\"&$U13&\".\"&I$89&\".\"&$U$7,$B$95,$B$96,CONFIGURATION!$B$10,\"BMA\",CONFIGURATION!$B$1,\"bscr\",1000)","v":"Mapped"},{"$f":"XBRLMap(J13,J$85&\".\"&$U$4&\".\"&$U$6&\".\"&$U13&\".\"&J$89&\".\"&$U$7,$B$95,$B$96,CONFIGURATION!$B$10,\"BMA\",CONFIGURATION!$B$1,\"bscr\",1000)","v":"Mapped"},{"$f":"XBRLMap(K13,K$85&\".\"&$U$4&\".\"&$U$6&\".\"&$U13&\".\"&K$89&\".\"&$U$7,$B$95,$B$96,CONFIGURATION!$B$10,\"BMA\",CONFIGURATION!$B$1,\"bscr\",1000)","v":"Mapped"},{"$f":"XBRLMap(L13,L$85&\".\"&$U$4&\".\"&$U$6&\".\"&$U13&\".\"&L$89&\".\"&$U$7,$B$95,$B$96,CONFIGURATION!$B$10,\"BMA\",CONFIGURATION!$B$1,\"bscr\",1000)","v":"Mapped"},{"$f":"XBRLMap(M13,M$85&\".\"&$U$4&\".\"&$U$6&\".\"&$U13&\".\"&M$89&\".\"&$U$7,$B$95,$B$96,CONFIGURATION!$B$10,\"BMA\",CONFIGURATION!$B$1,\"bscr\",1000)","v":"Mapped"},null,null,null,"PaidCY2017AY2012",0]
[null,null,null,null,{"$f":"XBRLMap(E14,E$85&\".\"&$U$4&\".\"&$U$6&\".\"&$U14&\".\"&E$89&\".\"&$U$7,$B$95,$B$96,CONFIGURATION!$B$10,\"BMA\",CONFIGURATION!$B$1,\"bscr\",1000)","v":"Mapped"},{"$f":"XBRLMap(F14,F$85&\".\"&$U$4&\".\"&$U$6&\".\"&$U14&\".\"&F$89&\".\"&$U$7,$B$95,$B$96,CONFIGURATION!$B$10,\"BMA\",CONFIGURATION!$B$1,\"bscr\",1000)","v":"Mapped"},{"$f":"XBRLMap(G14,G$85&\".\"&$U$4&\".\"&$U$6&\".\"&$U14&\".\"&G$89&\".\"&$U$7,$B$95,$B$96,CONFIGURATION!$B$10,\"BMA\",CONFIGURATION!$B$1,\"bscr\",1000)","v":"Mapped"},{"$f":"XBRLMap(H14,H$85&\".\"&$U$4&\".\"&$U$6&\".\"&$U14&\".\"&H$89&\".\"&$U$7,$B$95,$B$96,CONFIGURATION!$B$10,\"BMA\",CONFIGURATION!$B$1,\"bscr\",1000)","v":"Mapped"},{"$f":"XBRLMap(I14,I$85&\".\"&$U$4&\".\"&$U$6&\".\"&$U14&\".\"&I$89&\".\"&$U$7,$B$95,$B$96,CONFIGURATION!$B$10,\"BMA\",CONFIGURATION!$B$1,\"bscr\",1000)","v":"Mapped"},{"$f":"XBRLMap(J14,J$85&\".\"&$U$4&\".\"&$U$6&\".\"&$U14&\".\"&J$89&\".\"&$U$7,$B$95,$B$96,CONFIGURATION!$B$10,\"BMA\",CONFIGURATION!$B$1,\"bscr\",1000)","v":"Mapped"},{"$f":"XBRLMap(K14,K$85&\".\"&$U$4&\".\"&$U$6&\".\"&$U14&\".\"&K$89&\".\"&$U$7,$B$95,$B$96,CONFIGURATION!$B$10,\"BMA\",CONFIGURATION!$B$1,\"bscr\",1000)","v":"Mapped"},{"$f":"XBRLMap(L14,L$85&\".\"&$U$4&\".\"&$U$6&\".\"&$U14&\".\"&L$89&\".\"&$U$7,$B$95,$B$96,CONFIGURATION!$B$10,\"BMA\",CONFIGURATION!$B$1,\"bscr\",1000)","v":"Mapped"},{"$f":"XBRLMap(M14,M$85&\".\"&$U$4&\".\"&$U$6&\".\"&$U14&\".\"&M$89&\".\"&$U$7,$B$95,$B$96,CONFIGURATION!$B$10,\"BMA\",CONFIGURATION!$B$1,\"bscr\",1000)","v":"Mapped"},null,null,null,"PaidCY2017AY2013",0]
[null,null,null,null,null,{"$f":"XBRLMap(F15,F$85&\".\"&$U$4&\".\"&$U$6&\".\"&$U15&\".\"&F$89&\".\"&$U$7,$B$95,$B$96,CONFIGURATION!$B$10,\"BMA\",CONFIGURATION!$B$1,\"bscr\",1000)","v":"Mapped"},{"$f":"XBRLMap(G15,G$85&\".\"&$U$4&\".\"&$U$6&\".\"&$U15&\".\"&G$89&\".\"&$U$7,$B$95,$B$96,CONFIGURATION!$B$10,\"BMA\",CONFIGURATION!$B$1,\"bscr\",1000)","v":"Mapped"},{"$f":"XBRLMap(H15,H$85&\".\"&$U$4&\".\"&$U$6&\".\"&$U15&\".\"&H$89&\".\"&$U$7,$B$95,$B$96,CONFIGURATION!$B$10,\"BMA\",CONFIGURATION!$B$1,\"bscr\",1000)","v":"Mapped"},{"$f":"XBRLMap(I15,I$85&\".\"&$U$4&\".\"&$U$6&\".\"&$U15&\".\"&I$89&\".\"&$U$7,$B$95,$B$96,CONFIGURATION!$B$10,\"BMA\",CONFIGURATION!$B$1,\"bscr\",1000)","v":"Mapped"},{"$f":"XBRLMap(J15,J$85&\".\"&$U$4&\".\"&$U$6&\".\"&$U15&\".\"&J$89&\".\"&$U$7,$B$95,$B$96,CONFIGURATION!$B$10,\"BMA\",CONFIGURATION!$B$1,\"bscr\",1000)","v":"Mapped"},{"$f":"XBRLMap(K15,K$85&\".\"&$U$4&\".\"&$U$6&\".\"&$U15&\".\"&K$89&\".\"&$U$7,$B$95,$B$96,CONFIGURATION!$B$10,\"BMA\",CONFIGURATION!$B$1,\"bscr\",1000)","v":"Mapped"},{"$f":"XBRLMap(L15,L$85&\".\"&$U$4&\".\"&$U$6&\".\"&$U15&\".\"&L$89&\".\"&$U$7,$B$95,$B$96,CONFIGURATION!$B$10,\"BMA\",CONFIGURATION!$B$1,\"bscr\",1000)","v":"Mapped"},{"$f":"XBRLMap(M15,M$85&\".\"&$U$4&\".\"&$U$6&\".\"&$U15&\".\"&M$89&\".\"&$U$7,$B$95,$B$96,CONFIGURATION!$B$10,\"BMA\",CONFIGURATION!$B$1,\"bscr\",1000)","v":"Mapped"},null,null,null,"PaidCY2017AY2014",0]
[null,null,null,null,null,null,{"$f":"XBRLMap(G16,G$85&\".\"&$U$4&\".\"&$U$6&\".\"&$U16&\".\"&G$89&\".\"&$U$7,$B$95,$B$96,CONFIGURATION!$B$10,\"BMA\",CONFIGURATION!$B$1,\"bscr\",1000)","v":"Mapped"},{"$f":"XBRLMap(H16,H$85&\".\"&$U$4&\".\"&$U$6&\".\"&$U16&\".\"&H$89&\".\"&$U$7,$B$95,$B$96,CONFIGURATION!$B$10,\"BMA\",CONFIGURATION!$B$1,\"bscr\",1000)","v":"Mapped"},{"$f":"XBRLMap(I16,I$85&\".\"&$U$4&\".\"&$U$6&\".\"&$U16&\".\"&I$89&\".\"&$U$7,$B$95,$B$96,CONFIGURATION!$B$10,\"BMA\",CONFIGURATION!$B$1,\"bscr\",1000)","v":"Mapped"},{"$f":"XBRLMap(J16,J$85&\".\"&$U$4&\".\"&$U$6&\".\"&$U16&\".\"&J$89&\".\"&$U$7,$B$95,$B$96,CONFIGURATION!$B$10,\"BMA\",CONFIGURATION!$B$1,\"bscr\",1000)","v":"Mapped"},{"$f":"XBRLMap(K16,K$85&\".\"&$U$4&\".\"&$U$6&\".\"&$U16&\".\"&K$89&\".\"&$U$7,$B$95,$B$96,CONFIGURATION!$B$10,\"BMA\",CONFIGURATION!$B$1,\"bscr\",1000)","v":"Mapped"},{"$f":"XBRLMap(L16,L$85&\".\"&$U$4&\".\"&$U$6&\".\"&$U16&\".\"&L$89&\".\"&$U$7,$B$95,$B$96,CONFIGURATION!$B$10,\"BMA\",CONFIGURATION!$B$1,\"bscr\",1000)","v":"Mapped"},{"$f":"XBRLMap(M16,M$85&\".\"&$U$4&\".\"&$U$6&\".\"&$U16&\".\"&M$89&\".\"&$U$7,$B$95,$B$96,CONFIGURATION!$B$10,\"BMA\",CONFIGURATION!$B$1,\"bscr\",1000)","v":"Mapped"},null,null,null,"PaidCY2017AY2015",0]
[null,null,null,null,null,null,null,{"$f":"XBRLMap(H17,H$85&\".\"&$U$4&\".\"&$U$6&\".\"&$U17&\".\"&H$89&\".\"&$U$7,$B$95,$B$96,CONFIGURATION!$B$10,\"BMA\",CONFIGURATION!$B$1,\"bscr\",1000)","v":"Mapped"},{"$f":"XBRLMap(I17,I$85&\".\"&$U$4&\".\"&$U$6&\".\"&$U17&\".\"&I$89&\".\"&$U$7,$B$95,$B$96,CONFIGURATION!$B$10,\"BMA\",CONFIGURATION!$B$1,\"bscr\",1000)","v":"Mapped"},{"$f":"XBRLMap(J17,J$85&\".\"&$U$4&\".\"&$U$6&\".\"&$U17&\".\"&J$89&\".\"&$U$7,$B$95,$B$96,CONFIGURATION!$B$10,\"BMA\",CONFIGURATION!$B$1,\"bscr\",1000)","v":"Mapped"},{"$f":"XBRLMap(K17,K$85&\".\"&$U$4&\".\"&$U$6&\".\"&$U17&\".\"&K$89&\".\"&$U$7,$B$95,$B$96,CONFIGURATION!$B$10,\"BMA\",CONFIGURATION!$B$1,\"bscr\",1000)","v":"Mapped"},{"$f":"XBRLMap(L17,L$85&\".\"&$U$4&\".\"&$U$6&\".\"&$U17&\".\"&L$89&\".\"&$U$7,$B$95,$B$96,CONFIGURATION!$B$10,\"BMA\",CONFIGURATION!$B$1,\"bscr\",1000)","v":"Mapped"},{"$f":"XBRLMap(M17,M$85&\".\"&$U$4&\".\"&$U$6&\".\"&$U17&\".\"&M$89&\".\"&$U$7,$B$95,$B$96,CONFIGURATION!$B$10,\"BMA\",CONFIGURATION!$B$1,\"bscr\",1000)","v":"Mapped"},null,null,null,"PaidCY2017AY2016",0]
[null,null,null,null,null,null,null,null,{"$f":"XBRLMap(I18,I$85&\".\"&$U$4&\".\"&$U$6&\".\"&$U18&\".\"&I$89&\".\"&$U$7,$B$95,$B$96,CONFIGURATION!$B$10,\"BMA\",CONFIGURATION!$B$1,\"bscr\",1000)","v":"Mapped"},{"$f":"XBRLMap(J18,J$85&\".\"&$U$4&\".\"&$U$6&\".\"&$U18&\".\"&J$89&\".\"&$U$7,$B$95,$B$96,CONFIGURATION!$B$10,\"BMA\",CONFIGURATION!$B$1,\"bscr\",1000)","v":"Mapped"},{"$f":"XBRLMap(K18,K$85&\".\"&$U$4&\".\"&$U$6&\".\"&$U18&\".\"&K$89&\".\"&$U$7,$B$95,$B$96,CONFIGURATION!$B$10,\"BMA\",CONFIGURATION!$B$1,\"bscr\",1000)","v":"Mapped"},{"$f":"XBRLMap(L18,L$85&\".\"&$U$4&\".\"&$U$6&\".\"&$U18&\".\"&L$89&\".\"&$U$7,$B$95,$B$96,CONFIGURATION!$B$10,\"BMA\",CONFIGURATION!$B$1,\"bscr\",1000)","v":"Mapped"},{"$f":"XBRLMap(M18,M$85&\".\"&$U$4&\".\"&$U$6&\".\"&$U18&\".\"&M$89&\".\"&$U$7,$B$95,$B$96,CONFIGURATION!$B$10,\"BMA\",CONFIGURATION!$B$1,\"bscr\",1000)","v":"Mapped"},null,null,null,"PaidCY2017AY2017",0]
[null,null,null,null,null,null,null,null,null,{"$f":"XBRLMap(J19,J$85&\".\"&$U$4&\".\"&$U$6&\".\"&$U19&\".\"&J$89&\".\"&$U$7,$B$95,$B$96,CONFIGURATION!$B$10,\"BMA\",CONFIGURATION!$B$1,\"bscr\",1000)","v":"Mapped"},{"$f":"XBRLMap(K19,K$85&\".\"&$U$4&\".\"&$U$6&\".\"&$U19&\".\"&K$89&\".\"&$U$7,$B$95,$B$96,CONFIGURATION!$B$10,\"BMA\",CONFIGURATION!$B$1,\"bscr\",1000)","v":"Mapped"},{"$f":"XBRLMap(L19,L$85&\".\"&$U$4&\".\"&$U$6&\".\"&$U19&\".\"&L$89&\".\"&$U$7,$B$95,$B$96,CONFIGURATION!$B$10,\"BMA\",CONFIGURATION!$B$1,\"bscr\",1000)","v":"Mapped"},{"$f":"XBRLMap(M19,M$85&\".\"&$U$4&\".\"&$U$6&\".\"&$U19&\".\"&M$89&\".\"&$U$7,$B$95,$B$96,CONFIGURATION!$B$10,\"BMA\",CONFIGURATION!$B$1,\"bscr\",1000)","v":"Mapped"},null,null,null,{"$f":"\"PaidCY\"&K$10&\"AY\"&B29","v":"PaidCY2018AYPrior"},{"$f":"K29","v":0}]
[null,null,null,null,null,null,null,null,null,null,{"$f":"XBRLMap(K20,K$85&\".\"&$U$4&\".\"&$U$6&\".\"&$U20&\".\"&K$89&\".\"&$U$7,$B$95,$B$96,CONFIGURATION!$B$10,\"BMA\",CONFIGURATION!$B$1,\"bscr\",1000)","v":"Mapped"},{"$f":"XBRLMap(L20,L$85&\".\"&$U$4&\".\"&$U$6&\".\"&$U20&\".\"&L$89&\".\"&$U$7,$B$95,$B$96,CONFIGURATION!$B$10,\"BMA\",CONFIGURATION!$B$1,\"bscr\",1000)","v":"Mapped"},{"$f":"XBRLMap(M20,M$85&\".\"&$U$4&\".\"&$U$6&\".\"&$U20&\".\"&M$89&\".\"&$U$7,$B$95,$B$96,CONFIGURATION!$B$10,\"BMA\",CONFIGURATION!$B$1,\"bscr\",1000)","v":"Mapped"},null,null,null,"PaidCY2018AY2010",0]
[null,null,null,null,null,null,null,null,null,null,null,{"$f":"XBRLMap(L21,L$85&\".\"&$U$4&\".\"&$U$6&\".\"&$U21&\".\"&L$89&\".\"&$U$7,$B$95,$B$96,CONFIGURATION!$B$10,\"BMA\",CONFIGURATION!$B$1,\"bscr\",1000)","v":"Mapped"},{"$f":"XBRLMap(M21,M$85&\".\"&$U$4&\".\"&$U$6&\".\"&$U21&\".\"&M$89&\".\"&$U$7,$B$95,$B$96,CONFIGURATION!$B$10,\"BMA\",CONFIGURATION!$B$1,\"bscr\",1000)","v":"Mapped"},null,null,null,"PaidCY2018AY2011",0]
[null,null,null,null,null,null,null,null,null,null,null,null,null,null,null,null,"PaidCY2018AY2012",0]
[null,null,null,null,null,null,null,null,null,null,null,null,null,null,null,null,"PaidCY2018AY2013",0]
[null,null,null,null,null,null,null,null,null,null,null,null,null,null,null,null,"PaidCY2018AY2014",0]
[null,null,null,null,null,null,null,null,null,null,null,null,null,null,null,null,"PaidCY2018AY2015",0]
[null,null,null,null,null,null,null,null,null,null,null,null,null,null,null,null,"PaidCY2018AY2016",0]
[null,null,null,null,null,null,null,null,null,null,null,null,null,null,null,null,"PaidCY2018AY2017",0]
[null,null,null,null,null,null,null,null,null,null,null,null,null,null,null,null,"PaidCY2018AY2018",0]
[null,null,null,null,null,null,null,null,null,null,null,null,null,null,null,null,{"$f":"\"PaidCY\"&L$10&\"AY\"&B29","v":"PaidCY2019AYPrior"},{"$f":"L29","v":0}]
[null,null,{"$f":"XBRLMap(C29,C$86&\".\"&$U$4&\".\"&$U29&\".\"&C$89&\".\"&$U$7,$B$95,$B$96,CONFIGURATION!$B$10,\"BMA\",CONFIGURATION!$B$1,\"bscr\",1000)","v":"Mapped"},{"$f":"XBRLMap(D29,D$86&\".\"&$U$4&\".\"&$U29&\".\"&D$89&\".\"&$U$7,$B$95,$B$96,CONFIGURATION!$B$10,\"BMA\",CONFIGURATION!$B$1,\"bscr\",1000)","v":"Mapped"},{"$f":"XBRLMap(E29,E$86&\".\"&$U$4&\".\"&$U29&\".\"&E$89&\".\"&$U$7,$B$95,$B$96,CONFIGURATION!$B$10,\"BMA\",CONFIGURATION!$B$1,\"bscr\",1000)","v":"Mapped"},{"$f":"XBRLMap(F29,F$86&\".\"&$U$4&\".\"&$U29&\".\"&F$89&\".\"&$U$7,$B$95,$B$96,CONFIGURATION!$B$10,\"BMA\",CONFIGURATION!$B$1,\"bscr\",1000)","v":"Mapped"},{"$f":"XBRLMap(G29,G$86&\".\"&$U$4&\".\"&$U29&\".\"&G$89&\".\"&$U$7,$B$95,$B$96,CONFIGURATION!$B$10,\"BMA\",CONFIGURATION!$B$1,\"bscr\",1000)","v":"Mapped"},{"$f":"XBRLMap(H29,H$86&\".\"&$U$4&\".\"&$U29&\".\"&H$89&\".\"&$U$7,$B$95,$B$96,CONFIGURATION!$B$10,\"BMA\",CONFIGURATION!$B$1,\"bscr\",1000)","v":"Mapped"},{"$f":"XBRLMap(I29,I$86&\".\"&$U$4&\".\"&$U29&\".\"&I$89&\".\"&$U$7,$B$95,$B$96,CONFIGURATION!$B$10,\"BMA\",CONFIGURATION!$B$1,\"bscr\",1000)","v":"Mapped"},{"$f":"XBRLMap(J29,J$86&\".\"&$U$4&\".\"&$U29&\".\"&J$89&\".\"&$U$7,$B$95,$B$96,CONFIGURATION!$B$10,\"BMA\",CONFIGURATION!$B$1,\"bscr\",1000)","v":"Mapped"},{"$f":"XBRLMap(K29,K$86&\".\"&$U$4&\".\"&$U29&\".\"&K$89&\".\"&$U$7,$B$95,$B$96,CONFIGURATION!$B$10,\"BMA\",CONFIGURATION!$B$1,\"bscr\",1000)","v":"Mapped"},{"$f":"XBRLMap(L29,L$86&\".\"&$U$4&\".\"&$U29&\".\"&L$89&\".\"&$U$7,$B$95,$B$96,CONFIGURATION!$B$10,\"BMA\",CONFIGURATION!$B$1,\"bscr\",1000)","v":"Mapped"},{"$f":"XBRLMap(M29,M$86&\".\"&$U$4&\".\"&$U29&\".\"&M$89&\".\"&$U$7,$B$95,$B$96,CONFIGURATION!$B$10,\"BMA\",CONFIGURATION!$B$1,\"bscr\",1000)","v":"Mapped"},null,null,null,"PaidCY2019AY2010",0]
[null,null,{"$f":"XBRLMap(C30,C$86&\".\"&$U$4&\".\"&$U30&\".\"&C$89&\".\"&$U$7,$B$95,$B$96,CONFIGURATION!$B$10,\"BMA\",CONFIGURATION!$B$1,\"bscr\",1000)","v":"Mapped"},{"$f":"XBRLMap(D30,D$86&\".\"&$U$4&\".\"&$U30&\".\"&D$89&\".\"&$U$7,$B$95,$B$96,CONFIGURATION!$B$10,\"BMA\",CONFIGURATION!$B$1,\"bscr\",1000)","v":"Mapped"},{"$f":"XBRLMap(E30,E$86&\".\"&$U$4&\".\"&$U30&\".\"&E$89&\".\"&$U$7,$B$95,$B$96,CONFIGURATION!$B$10,\"BMA\",CONFIGURATION!$B$1,\"bscr\",1000)","v":"Mapped"},{"$f":"XBRLMap(F30,F$86&\".\"&$U$4&\".\"&$U30&\".\"&F$89&\".\"&$U$7,$B$95,$B$96,CONFIGURATION!$B$10,\"BMA\",CONFIGURATION!$B$1,\"bscr\",1000)","v":"Mapped"},{"$f":"XBRLMap(G30,G$86&\".\"&$U$4&\".\"&$U30&\".\"&G$89&\".\"&$U$7,$B$95,$B$96,CONFIGURATION!$B$10,\"BMA\",CONFIGURATION!$B$1,\"bscr\",1000)","v":"Mapped"},{"$f":"XBRLMap(H30,H$86&\".\"&$U$4&\".\"&$U30&\".\"&H$89&\".\"&$U$7,$B$95,$B$96,CONFIGURATION!$B$10,\"BMA\",CONFIGURATION!$B$1,\"bscr\",1000)","v":"Mapped"},{"$f":"XBRLMap(I30,I$86&\".\"&$U$4&\".\"&$U30&\".\"&I$89&\".\"&$U$7,$B$95,$B$96,CONFIGURATION!$B$10,\"BMA\",CONFIGURATION!$B$1,\"bscr\",1000)","v":"Mapped"},{"$f":"XBRLMap(J30,J$86&\".\"&$U$4&\".\"&$U30&\".\"&J$89&\".\"&$U$7,$B$95,$B$96,CONFIGURATION!$B$10,\"BMA\",CONFIGURATION!$B$1,\"bscr\",1000)","v":"Mapped"},{"$f":"XBRLMap(K30,K$86&\".\"&$U$4&\".\"&$U30&\".\"&K$89&\".\"&$U$7,$B$95,$B$96,CONFIGURATION!$B$10,\"BMA\",CONFIGURATION!$B$1,\"bscr\",1000)","v":"Mapped"},{"$f":"XBRLMap(L30,L$86&\".\"&$U$4&\".\"&$U30&\".\"&L$89&\".\"&$U$7,$B$95,$B$96,CONFIGURATION!$B$10,\"BMA\",CONFIGURATION!$B$1,\"bscr\",1000)","v":"Mapped"},{"$f":"XBRLMap(M30,M$86&\".\"&$U$4&\".\"&$U30&\".\"&M$89&\".\"&$U$7,$B$95,$B$96,CONFIGURATION!$B$10,\"BMA\",CONFIGURATION!$B$1,\"bscr\",1000)","v":"Mapped"},null,null,null,"PaidCY2019AY2011",0]
[null,null,null,{"$f":"XBRLMap(D31,D$86&\".\"&$U$4&\".\"&$U31&\".\"&D$89&\".\"&$U$7,$B$95,$B$96,CONFIGURATION!$B$10,\"BMA\",CONFIGURATION!$B$1,\"bscr\",1000)","v":"Mapped"},{"$f":"XBRLMap(E31,E$86&\".\"&$U$4&\".\"&$U31&\".\"&E$89&\".\"&$U$7,$B$95,$B$96,CONFIGURATION!$B$10,\"BMA\",CONFIGURATION!$B$1,\"bscr\",1000)","v":"Mapped"},{"$f":"XBRLMap(F31,F$86&\".\"&$U$4&\".\"&$U31&\".\"&F$89&\".\"&$U$7,$B$95,$B$96,CONFIGURATION!$B$10,\"BMA\",CONFIGURATION!$B$1,\"bscr\",1000)","v":"Mapped"},{"$f":"XBRLMap(G31,G$86&\".\"&$U$4&\".\"&$U31&\".\"&G$89&\".\"&$U$7,$B$95,$B$96,CONFIGURATION!$B$10,\"BMA\",CONFIGURATION!$B$1,\"bscr\",1000)","v":"Mapped"},{"$f":"XBRLMap(H31,H$86&\".\"&$U$4&\".\"&$U31&\".\"&H$89&\".\"&$U$7,$B$95,$B$96,CONFIGURATION!$B$10,\"BMA\",CONFIGURATION!$B$1,\"bscr\",1000)","v":"Mapped"},{"$f":"XBRLMap(I31,I$86&\".\"&$U$4&\".\"&$U31&\".\"&I$89&\".\"&$U$7,$B$95,$B$96,CONFIGURATION!$B$10,\"BMA\",CONFIGURATION!$B$1,\"bscr\",1000)","v":"Mapped"},{"$f":"XBRLMap(J31,J$86&\".\"&$U$4&\".\"&$U31&\".\"&J$89&\".\"&$U$7,$B$95,$B$96,CONFIGURATION!$B$10,\"BMA\",CONFIGURATION!$B$1,\"bscr\",1000)","v":"Mapped"},{"$f":"XBRLMap(K31,K$86&\".\"&$U$4&\".\"&$U31&\".\"&K$89&\".\"&$U$7,$B$95,$B$96,CONFIGURATION!$B$10,\"BMA\",CONFIGURATION!$B$1,\"bscr\",1000)","v":"Mapped"},{"$f":"XBRLMap(L31,L$86&\".\"&$U$4&\".\"&$U31&\".\"&L$89&\".\"&$U$7,$B$95,$B$96,CONFIGURATION!$B$10,\"BMA\",CONFIGURATION!$B$1,\"bscr\",1000)","v":"Mapped"},{"$f":"XBRLMap(M31,M$86&\".\"&$U$4&\".\"&$U31&\".\"&M$89&\".\"&$U$7,$B$95,$B$96,CONFIGURATION!$B$10,\"BMA\",CONFIGURATION!$B$1,\"bscr\",1000)","v":"Mapped"},null,null,null,"PaidCY2019AY2012",0]
[null,null,null,null,{"$f":"XBRLMap(E32,E$86&\".\"&$U$4&\".\"&$U32&\".\"&E$89&\".\"&$U$7,$B$95,$B$96,CONFIGURATION!$B$10,\"BMA\",CONFIGURATION!$B$1,\"bscr\",1000)","v":"Mapped"},{"$f":"XBRLMap(F32,F$86&\".\"&$U$4&\".\"&$U32&\".\"&F$89&\".\"&$U$7,$B$95,$B$96,CONFIGURATION!$B$10,\"BMA\",CONFIGURATION!$B$1,\"bscr\",1000)","v":"Mapped"},{"$f":"XBRLMap(G32,G$86&\".\"&$U$4&\".\"&$U32&\".\"&G$89&\".\"&$U$7,$B$95,$B$96,CONFIGURATION!$B$10,\"BMA\",CONFIGURATION!$B$1,\"bscr\",1000)","v":"Mapped"},{"$f":"XBRLMap(H32,H$86&\".\"&$U$4&\".\"&$U32&\".\"&H$89&\".\"&$U$7,$B$95,$B$96,CONFIGURATION!$B$10,\"BMA\",CONFIGURATION!$B$1,\"bscr\",1000)","v":"Mapped"},{"$f":"XBRLMap(I32,I$86&\".\"&$U$4&\".\"&$U32&\".\"&I$89&\".\"&$U$7,$B$95,$B$96,CONFIGURATION!$B$10,\"BMA\",CONFIGURATION!$B$1,\"bscr\",1000)","v":"Mapped"},{"$f":"XBRLMap(J32,J$86&\".\"&$U$4&\".\"&$U32&\".\"&J$89&\".\"&$U$7,$B$95,$B$96,CONFIGURATION!$B$10,\"BMA\",CONFIGURATION!$B$1,\"bscr\",1000)","v":"Mapped"},{"$f":"XBRLMap(K32,K$86&\".\"&$U$4&\".\"&$U32&\".\"&K$89&\".\"&$U$7,$B$95,$B$96,CONFIGURATION!$B$10,\"BMA\",CONFIGURATION!$B$1,\"bscr\",1000)","v":"Mapped"},{"$f":"XBRLMap(L32,L$86&\".\"&$U$4&\".\"&$U32&\".\"&L$89&\".\"&$U$7,$B$95,$B$96,CONFIGURATION!$B$10,\"BMA\",CONFIGURATION!$B$1,\"bscr\",1000)","v":"Mapped"},{"$f":"XBRLMap(M32,M$86&\".\"&$U$4&\".\"&$U32&\".\"&M$89&\".\"&$U$7,$B$95,$B$96,CONFIGURATION!$B$10,\"BMA\",CONFIGURATION!$B$1,\"bscr\",1000)","v":"Mapped"},null,null,null,"PaidCY2019AY2013",0]
[null,null,null,null,null,{"$f":"XBRLMap(F33,F$86&\".\"&$U$4&\".\"&$U33&\".\"&F$89&\".\"&$U$7,$B$95,$B$96,CONFIGURATION!$B$10,\"BMA\",CONFIGURATION!$B$1,\"bscr\",1000)","v":"Mapped"},{"$f":"XBRLMap(G33,G$86&\".\"&$U$4&\".\"&$U33&\".\"&G$89&\".\"&$U$7,$B$95,$B$96,CONFIGURATION!$B$10,\"BMA\",CONFIGURATION!$B$1,\"bscr\",1000)","v":"Mapped"},{"$f":"XBRLMap(H33,H$86&\".\"&$U$4&\".\"&$U33&\".\"&H$89&\".\"&$U$7,$B$95,$B$96,CONFIGURATION!$B$10,\"BMA\",CONFIGURATION!$B$1,\"bscr\",1000)","v":"Mapped"},{"$f":"XBRLMap(I33,I$86&\".\"&$U$4&\".\"&$U33&\".\"&I$89&\".\"&$U$7,$B$95,$B$96,CONFIGURATION!$B$10,\"BMA\",CONFIGURATION!$B$1,\"bscr\",1000)","v":"Mapped"},{"$f":"XBRLMap(J33,J$86&\".\"&$U$4&\".\"&$U33&\".\"&J$89&\".\"&$U$7,$B$95,$B$96,CONFIGURATION!$B$10,\"BMA\",CONFIGURATION!$B$1,\"bscr\",1000)","v":"Mapped"},{"$f":"XBRLMap(K33,K$86&\".\"&$U$4&\".\"&$U33&\".\"&K$89&\".\"&$U$7,$B$95,$B$96,CONFIGURATION!$B$10,\"BMA\",CONFIGURATION!$B$1,\"bscr\",1000)","v":"Mapped"},{"$f":"XBRLMap(L33,L$86&\".\"&$U$4&\".\"&$U33&\".\"&L$89&\".\"&$U$7,$B$95,$B$96,CONFIGURATION!$B$10,\"BMA\",CONFIGURATION!$B$1,\"bscr\",1000)","v":"Mapped"},{"$f":"XBRLMap(M33,M$86&\".\"&$U$4&\".\"&$U33&\".\"&M$89&\".\"&$U$7,$B$95,$B$96,CONFIGURATION!$B$10,\"BMA\",CONFIGURATION!$B$1,\"bscr\",1000)","v":"Mapped"},null,null,null,"PaidCY2019AY2014",0]
[null,null,null,null,null,null,{"$f":"XBRLMap(G34,G$86&\".\"&$U$4&\".\"&$U34&\".\"&G$89&\".\"&$U$7,$B$95,$B$96,CONFIGURATION!$B$10,\"BMA\",CONFIGURATION!$B$1,\"bscr\",1000)","v":"Mapped"},{"$f":"XBRLMap(H34,H$86&\".\"&$U$4&\".\"&$U34&\".\"&H$89&\".\"&$U$7,$B$95,$B$96,CONFIGURATION!$B$10,\"BMA\",CONFIGURATION!$B$1,\"bscr\",1000)","v":"Mapped"},{"$f":"XBRLMap(I34,I$86&\".\"&$U$4&\".\"&$U34&\".\"&I$89&\".\"&$U$7,$B$95,$B$96,CONFIGURATION!$B$10,\"BMA\",CONFIGURATION!$B$1,\"bscr\",1000)","v":"Mapped"},{"$f":"XBRLMap(J34,J$86&\".\"&$U$4&\".\"&$U34&\".\"&J$89&\".\"&$U$7,$B$95,$B$96,CONFIGURATION!$B$10,\"BMA\",CONFIGURATION!$B$1,\"bscr\",1000)","v":"Mapped"},{"$f":"XBRLMap(K34,K$86&\".\"&$U$4&\".\"&$U34&\".\"&K$89&\".\"&$U$7,$B$95,$B$96,CONFIGURATION!$B$10,\"BMA\",CONFIGURATION!$B$1,\"bscr\",1000)","v":"Mapped"},{"$f":"XBRLMap(L34,L$86&\".\"&$U$4&\".\"&$U34&\".\"&L$89&\".\"&$U$7,$B$95,$B$96,CONFIGURATION!$B$10,\"BMA\",CONFIGURATION!$B$1,\"bscr\",1000)","v":"Mapped"},{"$f":"XBRLMap(M34,M$86&\".\"&$U$4&\".\"&$U34&\".\"&M$89&\".\"&$U$7,$B$95,$B$96,CONFIGURATION!$B$10,\"BMA\",CONFIGURATION!$B$1,\"bscr\",1000)","v":"Mapped"},null,null,null,"PaidCY2019AY2015",0]
[null,null,null,null,null,null,null,{"$f":"XBRLMap(H35,H$86&\".\"&$U$4&\".\"&$U35&\".\"&H$89&\".\"&$U$7,$B$95,$B$96,CONFIGURATION!$B$10,\"BMA\",CONFIGURATION!$B$1,\"bscr\",1000)","v":"Mapped"},{"$f":"XBRLMap(I35,I$86&\".\"&$U$4&\".\"&$U35&\".\"&I$89&\".\"&$U$7,$B$95,$B$96,CONFIGURATION!$B$10,\"BMA\",CONFIGURATION!$B$1,\"bscr\",1000)","v":"Mapped"},{"$f":"XBRLMap(J35,J$86&\".\"&$U$4&\".\"&$U35&\".\"&J$89&\".\"&$U$7,$B$95,$B$96,CONFIGURATION!$B$10,\"BMA\",CONFIGURATION!$B$1,\"bscr\",1000)","v":"Mapped"},{"$f":"XBRLMap(K35,K$86&\".\"&$U$4&\".\"&$U35&\".\"&K$89&\".\"&$U$7,$B$95,$B$96,CONFIGURATION!$B$10,\"BMA\",CONFIGURATION!$B$1,\"bscr\",1000)","v":"Mapped"},{"$f":"XBRLMap(L35,L$86&\".\"&$U$4&\".\"&$U35&\".\"&L$89&\".\"&$U$7,$B$95,$B$96,CONFIGURATION!$B$10,\"BMA\",CONFIGURATION!$B$1,\"bscr\",1000)","v":"Mapped"},{"$f":"XBRLMap(M35,M$86&\".\"&$U$4&\".\"&$U35&\".\"&M$89&\".\"&$U$7,$B$95,$B$96,CONFIGURATION!$B$10,\"BMA\",CONFIGURATION!$B$1,\"bscr\",1000)","v":"Mapped"},null,null,null,"PaidCY2019AY2016",0]
[null,null,null,null,null,null,null,null,{"$f":"XBRLMap(I36,I$86&\".\"&$U$4&\".\"&$U36&\".\"&I$89&\".\"&$U$7,$B$95,$B$96,CONFIGURATION!$B$10,\"BMA\",CONFIGURATION!$B$1,\"bscr\",1000)","v":"Mapped"},{"$f":"XBRLMap(J36,J$86&\".\"&$U$4&\".\"&$U36&\".\"&J$89&\".\"&$U$7,$B$95,$B$96,CONFIGURATION!$B$10,\"BMA\",CONFIGURATION!$B$1,\"bscr\",1000)","v":"Mapped"},{"$f":"XBRLMap(K36,K$86&\".\"&$U$4&\".\"&$U36&\".\"&K$89&\".\"&$U$7,$B$95,$B$96,CONFIGURATION!$B$10,\"BMA\",CONFIGURATION!$B$1,\"bscr\",1000)","v":"Mapped"},{"$f":"XBRLMap(L36,L$86&\".\"&$U$4&\".\"&$U36&\".\"&L$89&\".\"&$U$7,$B$95,$B$96,CONFIGURATION!$B$10,\"BMA\",CONFIGURATION!$B$1,\"bscr\",1000)","v":"Mapped"},{"$f":"XBRLMap(M36,M$86&\".\"&$U$4&\".\"&$U36&\".\"&M$89&\".\"&$U$7,$B$95,$B$96,CONFIGURATION!$B$10,\"BMA\",CONFIGURATION!$B$1,\"bscr\",1000)","v":"Mapped"},null,null,null,"PaidCY2019AY2017",0]
[null,null,null,null,null,null,null,null,null,{"$f":"XBRLMap(J37,J$86&\".\"&$U$4&\".\"&$U37&\".\"&J$89&\".\"&$U$7,$B$95,$B$96,CONFIGURATION!$B$10,\"BMA\",CONFIGURATION!$B$1,\"bscr\",1000)","v":"Mapped"},{"$f":"XBRLMap(K37,K$86&\".\"&$U$4&\".\"&$U37&\".\"&K$89&\".\"&$U$7,$B$95,$B$96,CONFIGURATION!$B$10,\"BMA\",CONFIGURATION!$B$1,\"bscr\",1000)","v":"Mapped"},{"$f":"XBRLMap(L37,L$86&\".\"&$U$4&\".\"&$U37&\".\"&L$89&\".\"&$U$7,$B$95,$B$96,CONFIGURATION!$B$10,\"BMA\",CONFIGURATION!$B$1,\"bscr\",1000)","v":"Mapped"},{"$f":"XBRLMap(M37,M$86&\".\"&$U$4&\".\"&$U37&\".\"&M$89&\".\"&$U$7,$B$95,$B$96,CONFIGURATION!$B$10,\"BMA\",CONFIGURATION!$B$1,\"bscr\",1000)","v":"Mapped"},null,null,null,"PaidCY2019AY2018",0]
[null,null,null,null,null,null,null,null,null,null,{"$f":"XBRLMap(K38,K$86&\".\"&$U$4&\".\"&$U38&\".\"&K$89&\".\"&$U$7,$B$95,$B$96,CONFIGURATION!$B$10,\"BMA\",CONFIGURATION!$B$1,\"bscr\",1000)","v":"Mapped"},{"$f":"XBRLMap(L38,L$86&\".\"&$U$4&\".\"&$U38&\".\"&L$89&\".\"&$U$7,$B$95,$B$96,CONFIGURATION!$B$10,\"BMA\",CONFIGURATION!$B$1,\"bscr\",1000)","v":"Mapped"},{"$f":"XBRLMap(M38,M$86&\".\"&$U$4&\".\"&$U38&\".\"&M$89&\".\"&$U$7,$B$95,$B$96,CONFIGURATION!$B$10,\"BMA\",CONFIGURATION!$B$1,\"bscr\",1000)","v":"Mapped"},null,null,null,"PaidCY2019AY2019",0]
[null,null,null,null,null,null,null,null,null,null,null,{"$f":"XBRLMap(L39,L$86&\".\"&$U$4&\".\"&$U39&\".\"&L$89&\".\"&$U$7,$B$95,$B$96,CONFIGURATION!$B$10,\"BMA\",CONFIGURATION!$B$1,\"bscr\",1000)","v":"Mapped"},{"$f":"XBRLMap(M39,M$86&\".\"&$U$4&\".\"&$U39&\".\"&M$89&\".\"&$U$7,$B$95,$B$96,CONFIGURATION!$B$10,\"BMA\",CONFIGURATION!$B$1,\"bscr\",1000)","v":"Mapped"},null,null,null,{"$f":"\"IBNRCY\"&C$10&\"AY\"&B47","v":"IBNRCY2010AYPrior"},{"$f":"C47","v":0}]
[null,null,null,null,null,null,null,null,null,null,null,null,null,null,null,null,{"$f":"\"IBNRCY\"&C$10&\"AY\"&B48","v":"IBNRCY2010AY2010"},{"$f":"C48","v":0}]
[null,null,null,null,null,null,null,null,null,null,null,null,null,null,null,null,{"$f":"\"IBNRCY\"&D$10&\"AY\"&B47","v":"IBNRCY2011AYPrior"},{"$f":"D47","v":0}]
[null,null,null,null,null,null,null,null,null,null,null,null,null,null,null,null,{"$f":"\"IBNRCY\"&D$10&\"AY\"&B48","v":"IBNRCY2011AY2010"},{"$f":"D48","v":0}]
[null,null,null,null,null,null,null,null,null,null,null,null,null,null,null,null,{"$f":"\"IBNRCY\"&D$10&\"AY\"&B49","v":"IBNRCY2011AY2011"},{"$f":"D49","v":0}]
[null,null,null,null,null,null,null,null,null,null,null,null,null,null,null,null,{"$f":"\"IBNRCY\"&E$10&\"AY\"&B47","v":"IBNRCY2012AYPrior"},{"$f":"E47","v":0}]
[null,null,null,null,null,null,null,null,null,null,null,null,null,null,null,null,{"$f":"\"IBNRCY\"&E$10&\"AY\"&B48","v":"IBNRCY2012AY2010"},{"$f":"E48","v":0}]
[null,null,null,null,null,null,null,null,null,null,null,null,null,null,null,null,{"$f":"\"IBNRCY\"&E$10&\"AY\"&B49","v":"IBNRCY2012AY2011"},{"$f":"E49","v":0}]
[null,null,null,null,null,null,null,null,null,null,null,null,null,null,null,null,{"$f":"\"IBNRCY\"&E$10&\"AY\"&B50","v":"IBNRCY2012AY2012"},{"$f":"E50","v":0}]
[null,null,{"$f":"XBRLMap(C47,C$87&\".\"&$U$4&\".\"&$U47&\".\"&C$89&\".\"&$U$7,$B$95,$B$96,CONFIGURATION!$B$10,\"BMA\",CONFIGURATION!$B$1,\"bscr\",1000)","v":"Mapped"},{"$f":"XBRLMap(D47,D$87&\".\"&$U$4&\".\"&$U47&\".\"&D$89&\".\"&$U$7,$B$95,$B$96,CONFIGURATION!$B$10,\"BMA\",CONFIGURATION!$B$1,\"bscr\",1000)","v":"Mapped"},{"$f":"XBRLMap(E47,E$87&\".\"&$U$4&\".\"&$U47&\".\"&E$89&\".\"&$U$7,$B$95,$B$96,CONFIGURATION!$B$10,\"BMA\",CONFIGURATION!$B$1,\"bscr\",1000)","v":"Mapped"},{"$f":"XBRLMap(F47,F$87&\".\"&$U$4&\".\"&$U47&\".\"&F$89&\".\"&$U$7,$B$95,$B$96,CONFIGURATION!$B$10,\"BMA\",CONFIGURATION!$B$1,\"bscr\",1000)","v":"Mapped"},{"$f":"XBRLMap(G47,G$87&\".\"&$U$4&\".\"&$U47&\".\"&G$89&\".\"&$U$7,$B$95,$B$96,CONFIGURATION!$B$10,\"BMA\",CONFIGURATION!$B$1,\"bscr\",1000)","v":"Mapped"},{"$f":"XBRLMap(H47,H$87&\".\"&$U$4&\".\"&$U47&\".\"&H$89&\".\"&$U$7,$B$95,$B$96,CONFIGURATION!$B$10,\"BMA\",CONFIGURATION!$B$1,\"bscr\",1000)","v":"Mapped"},{"$f":"XBRLMap(I47,I$87&\".\"&$U$4&\".\"&$U47&\".\"&I$89&\".\"&$U$7,$B$95,$B$96,CONFIGURATION!$B$10,\"BMA\",CONFIGURATION!$B$1,\"bscr\",1000)","v":"Mapped"},{"$f":"XBRLMap(J47,J$87&\".\"&$U$4&\".\"&$U47&\".\"&J$89&\".\"&$U$7,$B$95,$B$96,CONFIGURATION!$B$10,\"BMA\",CONFIGURATION!$B$1,\"bscr\",1000)","v":"Mapped"},{"$f":"XBRLMap(K47,K$87&\".\"&$U$4&\".\"&$U47&\".\"&K$89&\".\"&$U$7,$B$95,$B$96,CONFIGURATION!$B$10,\"BMA\",CONFIGURATION!$B$1,\"bscr\",1000)","v":"Mapped"},{"$f":"XBRLMap(L47,L$87&\".\"&$U$4&\".\"&$U47&\".\"&L$89&\".\"&$U$7,$B$95,$B$96,CONFIGURATION!$B$10,\"BMA\",CONFIGURATION!$B$1,\"bscr\",1000)","v":"Mapped"},{"$f":"XBRLMap(M47,M$87&\".\"&$U$4&\".\"&$U47&\".\"&M$89&\".\"&$U$7,$B$95,$B$96,CONFIGURATION!$B$10,\"BMA\",CONFIGURATION!$B$1,\"bscr\",1000)","v":"Mapped"},null,null,null,{"$f":"\"IBNRCY\"&F$10&\"AY\"&B47","v":"IBNRCY2013AYPrior"},{"$f":"F47","v":0}]
[null,null,{"$f":"XBRLMap(C48,C$87&\".\"&$U$4&\".\"&$U48&\".\"&C$89&\".\"&$U$7,$B$95,$B$96,CONFIGURATION!$B$10,\"BMA\",CONFIGURATION!$B$1,\"bscr\",1000)","v":"Mapped"},{"$f":"XBRLMap(D48,D$87&\".\"&$U$4&\".\"&$U48&\".\"&D$89&\".\"&$U$7,$B$95,$B$96,CONFIGURATION!$B$10,\"BMA\",CONFIGURATION!$B$1,\"bscr\",1000)","v":"Mapped"},{"$f":"XBRLMap(E48,E$87&\".\"&$U$4&\".\"&$U48&\".\"&E$89&\".\"&$U$7,$B$95,$B$96,CONFIGURATION!$B$10,\"BMA\",CONFIGURATION!$B$1,\"bscr\",1000)","v":"Mapped"},{"$f":"XBRLMap(F48,F$87&\".\"&$U$4&\".\"&$U48&\".\"&F$89&\".\"&$U$7,$B$95,$B$96,CONFIGURATION!$B$10,\"BMA\",CONFIGURATION!$B$1,\"bscr\",1000)","v":"Mapped"},{"$f":"XBRLMap(G48,G$87&\".\"&$U$4&\".\"&$U48&\".\"&G$89&\".\"&$U$7,$B$95,$B$96,CONFIGURATION!$B$10,\"BMA\",CONFIGURATION!$B$1,\"bscr\",1000)","v":"Mapped"},{"$f":"XBRLMap(H48,H$87&\".\"&$U$4&\".\"&$U48&\".\"&H$89&\".\"&$U$7,$B$95,$B$96,CONFIGURATION!$B$10,\"BMA\",CONFIGURATION!$B$1,\"bscr\",1000)","v":"Mapped"},{"$f":"XBRLMap(I48,I$87&\".\"&$U$4&\".\"&$U48&\".\"&I$89&\".\"&$U$7,$B$95,$B$96,CONFIGURATION!$B$10,\"BMA\",CONFIGURATION!$B$1,\"bscr\",1000)","v":"Mapped"},{"$f":"XBRLMap(J48,J$87&\".\"&$U$4&\".\"&$U48&\".\"&J$89&\".\"&$U$7,$B$95,$B$96,CONFIGURATION!$B$10,\"BMA\",CONFIGURATION!$B$1,\"bscr\",1000)","v":"Mapped"},{"$f":"XBRLMap(K48,K$87&\".\"&$U$4&\".\"&$U48&\".\"&K$89&\".\"&$U$7,$B$95,$B$96,CONFIGURATION!$B$10,\"BMA\",CONFIGURATION!$B$1,\"bscr\",1000)","v":"Mapped"},{"$f":"XBRLMap(L48,L$87&\".\"&$U$4&\".\"&$U48&\".\"&L$89&\".\"&$U$7,$B$95,$B$96,CONFIGURATION!$B$10,\"BMA\",CONFIGURATION!$B$1,\"bscr\",1000)","v":"Mapped"},{"$f":"XBRLMap(M48,M$87&\".\"&$U$4&\".\"&$U48&\".\"&M$89&\".\"&$U$7,$B$95,$B$96,CONFIGURATION!$B$10,\"BMA\",CONFIGURATION!$B$1,\"bscr\",1000)","v":"Mapped"},null,null,null,{"$f":"\"IBNRCY\"&F$10&\"AY\"&B48","v":"IBNRCY2013AY2010"},{"$f":"F48","v":0}]
[null,null,null,{"$f":"XBRLMap(D49,D$87&\".\"&$U$4&\".\"&$U49&\".\"&D$89&\".\"&$U$7,$B$95,$B$96,CONFIGURATION!$B$10,\"BMA\",CONFIGURATION!$B$1,\"bscr\",1000)","v":"Mapped"},{"$f":"XBRLMap(E49,E$87&\".\"&$U$4&\".\"&$U49&\".\"&E$89&\".\"&$U$7,$B$95,$B$96,CONFIGURATION!$B$10,\"BMA\",CONFIGURATION!$B$1,\"bscr\",1000)","v":"Mapped"},{"$f":"XBRLMap(F49,F$87&\".\"&$U$4&\".\"&$U49&\".\"&F$89&\".\"&$U$7,$B$95,$B$96,CONFIGURATION!$B$10,\"BMA\",CONFIGURATION!$B$1,\"bscr\",1000)","v":"Mapped"},{"$f":"XBRLMap(G49,G$87&\".\"&$U$4&\".\"&$U49&\".\"&G$89&\".\"&$U$7,$B$95,$B$96,CONFIGURATION!$B$10,\"BMA\",CONFIGURATION!$B$1,\"bscr\",1000)","v":"Mapped"},{"$f":"XBRLMap(H49,H$87&\".\"&$U$4&\".\"&$U49&\".\"&H$89&\".\"&$U$7,$B$95,$B$96,CONFIGURATION!$B$10,\"BMA\",CONFIGURATION!$B$1,\"bscr\",1000)","v":"Mapped"},{"$f":"XBRLMap(I49,I$87&\".\"&$U$4&\".\"&$U49&\".\"&I$89&\".\"&$U$7,$B$95,$B$96,CONFIGURATION!$B$10,\"BMA\",CONFIGURATION!$B$1,\"bscr\",1000)","v":"Mapped"},{"$f":"XBRLMap(J49,J$87&\".\"&$U$4&\".\"&$U49&\".\"&J$89&\".\"&$U$7,$B$95,$B$96,CONFIGURATION!$B$10,\"BMA\",CONFIGURATION!$B$1,\"bscr\",1000)","v":"Mapped"},{"$f":"XBRLMap(K49,K$87&\".\"&$U$4&\".\"&$U49&\".\"&K$89&\".\"&$U$7,$B$95,$B$96,CONFIGURATION!$B$10,\"BMA\",CONFIGURATION!$B$1,\"bscr\",1000)","v":"Mapped"},{"$f":"XBRLMap(L49,L$87&\".\"&$U$4&\".\"&$U49&\".\"&L$89&\".\"&$U$7,$B$95,$B$96,CONFIGURATION!$B$10,\"BMA\",CONFIGURATION!$B$1,\"bscr\",1000)","v":"Mapped"},{"$f":"XBRLMap(M49,M$87&\".\"&$U$4&\".\"&$U49&\".\"&M$89&\".\"&$U$7,$B$95,$B$96,CONFIGURATION!$B$10,\"BMA\",CONFIGURATION!$B$1,\"bscr\",1000)","v":"Mapped"},null,null,null,{"$f":"\"IBNRCY\"&F$10&\"AY\"&B49","v":"IBNRCY2013AY2011"},{"$f":"F49","v":0}]
[null,null,null,null,{"$f":"XBRLMap(E50,E$87&\".\"&$U$4&\".\"&$U50&\".\"&E$89&\".\"&$U$7,$B$95,$B$96,CONFIGURATION!$B$10,\"BMA\",CONFIGURATION!$B$1,\"bscr\",1000)","v":"Mapped"},{"$f":"XBRLMap(F50,F$87&\".\"&$U$4&\".\"&$U50&\".\"&F$89&\".\"&$U$7,$B$95,$B$96,CONFIGURATION!$B$10,\"BMA\",CONFIGURATION!$B$1,\"bscr\",1000)","v":"Mapped"},{"$f":"XBRLMap(G50,G$87&\".\"&$U$4&\".\"&$U50&\".\"&G$89&\".\"&$U$7,$B$95,$B$96,CONFIGURATION!$B$10,\"BMA\",CONFIGURATION!$B$1,\"bscr\",1000)","v":"Mapped"},{"$f":"XBRLMap(H50,H$87&\".\"&$U$4&\".\"&$U50&\".\"&H$89&\".\"&$U$7,$B$95,$B$96,CONFIGURATION!$B$10,\"BMA\",CONFIGURATION!$B$1,\"bscr\",1000)","v":"Mapped"},{"$f":"XBRLMap(I50,I$87&\".\"&$U$4&\".\"&$U50&\".\"&I$89&\".\"&$U$7,$B$95,$B$96,CONFIGURATION!$B$10,\"BMA\",CONFIGURATION!$B$1,\"bscr\",1000)","v":"Mapped"},{"$f":"XBRLMap(J50,J$87&\".\"&$U$4&\".\"&$U50&\".\"&J$89&\".\"&$U$7,$B$95,$B$96,CONFIGURATION!$B$10,\"BMA\",CONFIGURATION!$B$1,\"bscr\",1000)","v":"Mapped"},{"$f":"XBRLMap(K50,K$87&\".\"&$U$4&\".\"&$U50&\".\"&K$89&\".\"&$U$7,$B$95,$B$96,CONFIGURATION!$B$10,\"BMA\",CONFIGURATION!$B$1,\"bscr\",1000)","v":"Mapped"},{"$f":"XBRLMap(L50,L$87&\".\"&$U$4&\".\"&$U50&\".\"&L$89&\".\"&$U$7,$B$95,$B$96,CONFIGURATION!$B$10,\"BMA\",CONFIGURATION!$B$1,\"bscr\",1000)","v":"Mapped"},{"$f":"XBRLMap(M50,M$87&\".\"&$U$4&\".\"&$U50&\".\"&M$89&\".\"&$U$7,$B$95,$B$96,CONFIGURATION!$B$10,\"BMA\",CONFIGURATION!$B$1,\"bscr\",1000)","v":"Mapped"},null,null,null,{"$f":"\"IBNRCY\"&F$10&\"AY\"&B50","v":"IBNRCY2013AY2012"},{"$f":"F50","v":0}]
[null,null,null,null,null,{"$f":"XBRLMap(F51,F$87&\".\"&$U$4&\".\"&$U51&\".\"&F$89&\".\"&$U$7,$B$95,$B$96,CONFIGURATION!$B$10,\"BMA\",CONFIGURATION!$B$1,\"bscr\",1000)","v":"Mapped"},{"$f":"XBRLMap(G51,G$87&\".\"&$U$4&\".\"&$U51&\".\"&G$89&\".\"&$U$7,$B$95,$B$96,CONFIGURATION!$B$10,\"BMA\",CONFIGURATION!$B$1,\"bscr\",1000)","v":"Mapped"},{"$f":"XBRLMap(H51,H$87&\".\"&$U$4&\".\"&$U51&\".\"&H$89&\".\"&$U$7,$B$95,$B$96,CONFIGURATION!$B$10,\"BMA\",CONFIGURATION!$B$1,\"bscr\",1000)","v":"Mapped"},{"$f":"XBRLMap(I51,I$87&\".\"&$U$4&\".\"&$U51&\".\"&I$89&\".\"&$U$7,$B$95,$B$96,CONFIGURATION!$B$10,\"BMA\",CONFIGURATION!$B$1,\"bscr\",1000)","v":"Mapped"},{"$f":"XBRLMap(J51,J$87&\".\"&$U$4&\".\"&$U51&\".\"&J$89&\".\"&$U$7,$B$95,$B$96,CONFIGURATION!$B$10,\"BMA\",CONFIGURATION!$B$1,\"bscr\",1000)","v":"Mapped"},{"$f":"XBRLMap(K51,K$87&\".\"&$U$4&\".\"&$U51&\".\"&K$89&\".\"&$U$7,$B$95,$B$96,CONFIGURATION!$B$10,\"BMA\",CONFIGURATION!$B$1,\"bscr\",1000)","v":"Mapped"},{"$f":"XBRLMap(L51,L$87&\".\"&$U$4&\".\"&$U51&\".\"&L$89&\".\"&$U$7,$B$95,$B$96,CONFIGURATION!$B$10,\"BMA\",CONFIGURATION!$B$1,\"bscr\",1000)","v":"Mapped"},{"$f":"XBRLMap(M51,M$87&\".\"&$U$4&\".\"&$U51&\".\"&M$89&\".\"&$U$7,$B$95,$B$96,CONFIGURATION!$B$10,\"BMA\",CONFIGURATION!$B$1,\"bscr\",1000)","v":"Mapped"},null,null,null,{"$f":"\"IBNRCY\"&F$10&\"AY\"&B51","v":"IBNRCY2013AY2013"},{"$f":"F51","v":0}]
[null,null,null,null,null,null,{"$f":"XBRLMap(G52,G$87&\".\"&$U$4&\".\"&$U52&\".\"&G$89&\".\"&$U$7,$B$95,$B$96,CONFIGURATION!$B$10,\"BMA\",CONFIGURATION!$B$1,\"bscr\",1000)","v":"Mapped"},{"$f":"XBRLMap(H52,H$87&\".\"&$U$4&\".\"&$U52&\".\"&H$89&\".\"&$U$7,$B$95,$B$96,CONFIGURATION!$B$10,\"BMA\",CONFIGURATION!$B$1,\"bscr\",1000)","v":"Mapped"},{"$f":"XBRLMap(I52,I$87&\".\"&$U$4&\".\"&$U52&\".\"&I$89&\".\"&$U$7,$B$95,$B$96,CONFIGURATION!$B$10,\"BMA\",CONFIGURATION!$B$1,\"bscr\",1000)","v":"Mapped"},{"$f":"XBRLMap(J52,J$87&\".\"&$U$4&\".\"&$U52&\".\"&J$89&\".\"&$U$7,$B$95,$B$96,CONFIGURATION!$B$10,\"BMA\",CONFIGURATION!$B$1,\"bscr\",1000)","v":"Mapped"},{"$f":"XBRLMap(K52,K$87&\".\"&$U$4&\".\"&$U52&\".\"&K$89&\".\"&$U$7,$B$95,$B$96,CONFIGURATION!$B$10,\"BMA\",CONFIGURATION!$B$1,\"bscr\",1000)","v":"Mapped"},{"$f":"XBRLMap(L52,L$87&\".\"&$U$4&\".\"&$U52&\".\"&L$89&\".\"&$U$7,$B$95,$B$96,CONFIGURATION!$B$10,\"BMA\",CONFIGURATION!$B$1,\"bscr\",1000)","v":"Mapped"},{"$f":"XBRLMap(M52,M$87&\".\"&$U$4&\".\"&$U52&\".\"&M$89&\".\"&$U$7,$B$95,$B$96,CONFIGURATION!$B$10,\"BMA\",CONFIGURATION!$B$1,\"bscr\",1000)","v":"Mapped"},null,null,null,{"$f":"\"IBNRCY\"&G$10&\"AY\"&B47","v":"IBNRCY2014AYPrior"},{"$f":"G47","v":0}]
[null,null,null,null,null,null,null,{"$f":"XBRLMap(H53,H$87&\".\"&$U$4&\".\"&$U53&\".\"&H$89&\".\"&$U$7,$B$95,$B$96,CONFIGURATION!$B$10,\"BMA\",CONFIGURATION!$B$1,\"bscr\",1000)","v":"Mapped"},{"$f":"XBRLMap(I53,I$87&\".\"&$U$4&\".\"&$U53&\".\"&I$89&\".\"&$U$7,$B$95,$B$96,CONFIGURATION!$B$10,\"BMA\",CONFIGURATION!$B$1,\"bscr\",1000)","v":"Mapped"},{"$f":"XBRLMap(J53,J$87&\".\"&$U$4&\".\"&$U53&\".\"&J$89&\".\"&$U$7,$B$95,$B$96,CONFIGURATION!$B$10,\"BMA\",CONFIGURATION!$B$1,\"bscr\",1000)","v":"Mapped"},{"$f":"XBRLMap(K53,K$87&\".\"&$U$4&\".\"&$U53&\".\"&K$89&\".\"&$U$7,$B$95,$B$96,CONFIGURATION!$B$10,\"BMA\",CONFIGURATION!$B$1,\"bscr\",1000)","v":"Mapped"},{"$f":"XBRLMap(L53,L$87&\".\"&$U$4&\".\"&$U53&\".\"&L$89&\".\"&$U$7,$B$95,$B$96,CONFIGURATION!$B$10,\"BMA\",CONFIGURATION!$B$1,\"bscr\",1000)","v":"Mapped"},{"$f":"XBRLMap(M53,M$87&\".\"&$U$4&\".\"&$U53&\".\"&M$89&\".\"&$U$7,$B$95,$B$96,CONFIGURATION!$B$10,\"BMA\",CONFIGURATION!$B$1,\"bscr\",1000)","v":"Mapped"},null,null,null,"IBNRCY2014AY2010",0]
[null,null,null,null,null,null,null,null,{"$f":"XBRLMap(I54,I$87&\".\"&$U$4&\".\"&$U54&\".\"&I$89&\".\"&$U$7,$B$95,$B$96,CONFIGURATION!$B$10,\"BMA\",CONFIGURATION!$B$1,\"bscr\",1000)","v":"Mapped"},{"$f":"XBRLMap(J54,J$87&\".\"&$U$4&\".\"&$U54&\".\"&J$89&\".\"&$U$7,$B$95,$B$96,CONFIGURATION!$B$10,\"BMA\",CONFIGURATION!$B$1,\"bscr\",1000)","v":"Mapped"},{"$f":"XBRLMap(K54,K$87&\".\"&$U$4&\".\"&$U54&\".\"&K$89&\".\"&$U$7,$B$95,$B$96,CONFIGURATION!$B$10,\"BMA\",CONFIGURATION!$B$1,\"bscr\",1000)","v":"Mapped"},{"$f":"XBRLMap(L54,L$87&\".\"&$U$4&\".\"&$U54&\".\"&L$89&\".\"&$U$7,$B$95,$B$96,CONFIGURATION!$B$10,\"BMA\",CONFIGURATION!$B$1,\"bscr\",1000)","v":"Mapped"},{"$f":"XBRLMap(M54,M$87&\".\"&$U$4&\".\"&$U54&\".\"&M$89&\".\"&$U$7,$B$95,$B$96,CONFIGURATION!$B$10,\"BMA\",CONFIGURATION!$B$1,\"bscr\",1000)","v":"Mapped"},null,null,null,"IBNRCY2014AY2011",0]
[null,null,null,null,null,null,null,null,null,{"$f":"XBRLMap(J55,J$87&\".\"&$U$4&\".\"&$U55&\".\"&J$89&\".\"&$U$7,$B$95,$B$96,CONFIGURATION!$B$10,\"BMA\",CONFIGURATION!$B$1,\"bscr\",1000)","v":"Mapped"},{"$f":"XBRLMap(K55,K$87&\".\"&$U$4&\".\"&$U55&\".\"&K$89&\".\"&$U$7,$B$95,$B$96,CONFIGURATION!$B$10,\"BMA\",CONFIGURATION!$B$1,\"bscr\",1000)","v":"Mapped"},{"$f":"XBRLMap(L55,L$87&\".\"&$U$4&\".\"&$U55&\".\"&L$89&\".\"&$U$7,$B$95,$B$96,CONFIGURATION!$B$10,\"BMA\",CONFIGURATION!$B$1,\"bscr\",1000)","v":"Mapped"},{"$f":"XBRLMap(M55,M$87&\".\"&$U$4&\".\"&$U55&\".\"&M$89&\".\"&$U$7,$B$95,$B$96,CONFIGURATION!$B$10,\"BMA\",CONFIGURATION!$B$1,\"bscr\",1000)","v":"Mapped"},null,null,null,"IBNRCY2014AY2012",0]
[null,null,null,null,null,null,null,null,null,null,{"$f":"XBRLMap(K56,K$87&\".\"&$U$4&\".\"&$U56&\".\"&K$89&\".\"&$U$7,$B$95,$B$96,CONFIGURATION!$B$10,\"BMA\",CONFIGURATION!$B$1,\"bscr\",1000)","v":"Mapped"},{"$f":"XBRLMap(L56,L$87&\".\"&$U$4&\".\"&$U56&\".\"&L$89&\".\"&$U$7,$B$95,$B$96,CONFIGURATION!$B$10,\"BMA\",CONFIGURATION!$B$1,\"bscr\",1000)","v":"Mapped"},{"$f":"XBRLMap(M56,M$87&\".\"&$U$4&\".\"&$U56&\".\"&M$89&\".\"&$U$7,$B$95,$B$96,CONFIGURATION!$B$10,\"BMA\",CONFIGURATION!$B$1,\"bscr\",1000)","v":"Mapped"},null,null,null,"IBNRCY2014AY2013",0]
[null,null,null,null,null,null,null,null,null,null,null,{"$f":"XBRLMap(L57,L$87&\".\"&$U$4&\".\"&$U57&\".\"&L$89&\".\"&$U$7,$B$95,$B$96,CONFIGURATION!$B$10,\"BMA\",CONFIGURATION!$B$1,\"bscr\",1000)","v":"Mapped"},{"$f":"XBRLMap(M57,M$87&\".\"&$U$4&\".\"&$U57&\".\"&M$89&\".\"&$U$7,$B$95,$B$96,CONFIGURATION!$B$10,\"BMA\",CONFIGURATION!$B$1,\"bscr\",1000)","v":"Mapped"},null,null,null,"IBNRCY2014AY2014",0]
[null,null,null,null,null,null,null,null,null,null,null,null,null,null,null,null,{"$f":"\"IBNRCY\"&H$10&\"AY\"&B47","v":"IBNRCY2015AYPrior"},{"$f":"H47","v":0}]
[null,null,null,null,null,null,null,null,null,null,null,null,null,null,null,null,"IBNRCY2015AY2010",0]
[null,null,null,null,null,null,null,null,null,null,null,null,null,null,null,null,"IBNRCY2015AY2011",0]
[null,null,null,null,null,null,null,null,null,null,null,null,null,null,null,null,"IBNRCY2015AY2012",0]
[null,null,null,null,null,null,null,null,null,null,null,null,null,null,null,null,"IBNRCY2015AY2013",0]
[null,null,null,null,null,null,null,null,null,null,null,null,null,null,null,null,"IBNRCY2015AY2014",0]
[null,null,null,null,null,null,null,null,null,null,null,null,null,null,null,null,"IBNRCY2015AY2015",0]
[null,null,null,null,null,null,null,null,null,null,null,null,null,null,null,null,{"$f":"\"IBNRCY\"&I$10&\"AY\"&B47","v":"IBNRCY2016AYPrior"},{"$f":"I47","v":0}]
[null,null,null,null,null,null,null,null,null,null,null,null,null,null,null,null,"IBNRCY2016AY2010",0]
[null,null,null,null,null,null,null,null,null,null,null,null,null,null,null,null,"IBNRCY2016AY2011",0]
[null,null,null,null,null,null,{"$f":"XBRLMap(G67,G$88&\".\"&$U$4&\".\"&$U67&\".\"&$U$7,$B$95,$B$96,CONFIGURATION!$B$10,\"BMA\",CONFIGURATION!$B$1,\"bscr\",1000)","v":"Mapped"},{"$f":"XBRLMap(H67,H$88&\".\"&$U$4&\".\"&$U67&\".\"&$U$7,$B$95,$B$96,CONFIGURATION!$B$10,\"BMA\",CONFIGURATION!$B$1,\"bscr\",1000)","v":"Mapped"},null,{"$f":"XBRLMap(J67,J$88&\".\"&$U$4&\".\"&$V67&\".\"&$U$7,$B$95,$B$96,CONFIGURATION!$B$10,\"BMA\",CONFIGURATION!$B$1,\"bscr\",1000)","v":"Mapped"},{"$f":"XBRLMap(K67,K$88&\".\"&$U$4&\".\"&$V67&\".\"&$U$7,$B$95,$B$96,CONFIGURATION!$B$10,\"BMA\",CONFIGURATION!$B$1,\"bscr\",1000)","v":"Mapped"},{"$f":"XBRLMap(L67,L$88&\".\"&$U$4&\".\"&$V67&\".\"&$U$7,$B$95,$B$96,CONFIGURATION!$B$10,\"BMA\",CONFIGURATION!$B$1,\"bscr\",1000)","v":"Mapped"},{"$f":"XBRLMap(M67,M$88&\".\"&$U$4&\".\"&$V67&\".\"&$U$7,$B$95,$B$96,CONFIGURATION!$B$10,\"BMA\",CONFIGURATION!$B$1,\"bscr\",1000)","v":"Mapped"},null,null,null,"IBNRCY2016AY2012",0]
[null,null,{"$f":"XBRLMap(C68,C$88&\".\"&$U$4&\".\"&$U68&\".\"&$U$7,$B$95,$B$96,CONFIGURATION!$B$10,\"BMA\",CONFIGURATION!$B$1,\"bscr\",1000)","v":"Mapped"},{"$f":"XBRLMap(D68,D$88&\".\"&$U$4&\".\"&$U68&\".\"&$U$7,$B$95,$B$96,CONFIGURATION!$B$10,\"BMA\",CONFIGURATION!$B$1,\"bscr\",1000)","v":"Mapped"},{"$f":"XBRLMap(E68,E$88&\".\"&$U$4&\".\"&$U68&\".\"&$U$7,$B$95,$B$96,CONFIGURATION!$B$10,\"BMA\",CONFIGURATION!$B$1,\"bscr\",1000)","v":"Mapped"},{"$f":"XBRLMap(F68,F$88&\".\"&$U$4&\".\"&$U68&\".\"&$U$7,$B$95,$B$96,CONFIGURATION!$B$10,\"BMA\",CONFIGURATION!$B$1,\"bscr\",1000)","v":"Mapped"},{"$f":"XBRLMap(G68,G$88&\".\"&$U$4&\".\"&$U68&\".\"&$U$7,$B$95,$B$96,CONFIGURATION!$B$10,\"BMA\",CONFIGURATION!$B$1,\"bscr\",1000)","v":"Mapped"},{"$f":"XBRLMap(H68,H$88&\".\"&$U$4&\".\"&$U68&\".\"&$U$7,$B$95,$B$96,CONFIGURATION!$B$10,\"BMA\",CONFIGURATION!$B$1,\"bscr\",1000)","v":"Mapped"},null,{"$f":"XBRLMap(J68,J$88&\".\"&$U$4&\".\"&$V68&\".\"&$U$7,$B$95,$B$96,CONFIGURATION!$B$10,\"BMA\",CONFIGURATION!$B$1,\"bscr\",1000)","v":"Mapped"},{"$f":"XBRLMap(K68,K$88&\".\"&$U$4&\".\"&$V68&\".\"&$U$7,$B$95,$B$96,CONFIGURATION!$B$10,\"BMA\",CONFIGURATION!$B$1,\"bscr\",1000)","v":"Mapped"},{"$f":"XBRLMap(L68,L$88&\".\"&$U$4&\".\"&$V68&\".\"&$U$7,$B$95,$B$96,CONFIGURATION!$B$10,\"BMA\",CONFIGURATION!$B$1,\"bscr\",1000)","v":"Mapped"},{"$f":"XBRLMap(M68,M$88&\".\"&$U$4&\".\"&$V68&\".\"&$U$7,$B$95,$B$96,CONFIGURATION!$B$10,\"BMA\",CONFIGURATION!$B$1,\"bscr\",1000)","v":"Mapped"},null,null,null,"IBNRCY2016AY2013",0]
[null,null,{"$f":"XBRLMap(C69,C$88&\".\"&$U$4&\".\"&$U69&\".\"&$U$7,$B$95,$B$96,CONFIGURATION!$B$10,\"BMA\",CONFIGURATION!$B$1,\"bscr\",1000)","v":"Mapped"},{"$f":"XBRLMap(D69,D$88&\".\"&$U$4&\".\"&$U69&\".\"&$U$7,$B$95,$B$96,CONFIGURATION!$B$10,\"BMA\",CONFIGURATION!$B$1,\"bscr\",1000)","v":"Mapped"},{"$f":"XBRLMap(E69,E$88&\".\"&$U$4&\".\"&$U69&\".\"&$U$7,$B$95,$B$96,CONFIGURATION!$B$10,\"BMA\",CONFIGURATION!$B$1,\"bscr\",1000)","v":"Mapped"},{"$f":"XBRLMap(F69,F$88&\".\"&$U$4&\".\"&$U69&\".\"&$U$7,$B$95,$B$96,CONFIGURATION!$B$10,\"BMA\",CONFIGURATION!$B$1,\"bscr\",1000)","v":"Mapped"},{"$f":"XBRLMap(G69,G$88&\".\"&$U$4&\".\"&$U69&\".\"&$U$7,$B$95,$B$96,CONFIGURATION!$B$10,\"BMA\",CONFIGURATION!$B$1,\"bscr\",1000)","v":"Mapped"},{"$f":"XBRLMap(H69,H$88&\".\"&$U$4&\".\"&$U69&\".\"&$U$7,$B$95,$B$96,CONFIGURATION!$B$10,\"BMA\",CONFIGURATION!$B$1,\"bscr\",1000)","v":"Mapped"},null,{"$f":"XBRLMap(J69,J$88&\".\"&$U$4&\".\"&$V69&\".\"&$U$7,$B$95,$B$96,CONFIGURATION!$B$10,\"BMA\",CONFIGURATION!$B$1,\"bscr\",1000)","v":"Mapped"},{"$f":"XBRLMap(K69,K$88&\".\"&$U$4&\".\"&$V69&\".\"&$U$7,$B$95,$B$96,CONFIGURATION!$B$10,\"BMA\",CONFIGURATION!$B$1,\"bscr\",1000)","v":"Mapped"},{"$f":"XBRLMap(L69,L$88&\".\"&$U$4&\".\"&$V69&\".\"&$U$7,$B$95,$B$96,CONFIGURATION!$B$10,\"BMA\",CONFIGURATION!$B$1,\"bscr\",1000)","v":"Mapped"},{"$f":"XBRLMap(M69,M$88&\".\"&$U$4&\".\"&$V69&\".\"&$U$7,$B$95,$B$96,CONFIGURATION!$B$10,\"BMA\",CONFIGURATION!$B$1,\"bscr\",1000)","v":"Mapped"},null,null,null,"IBNRCY2016AY2014",0]
[null,null,{"$f":"XBRLMap(C70,C$88&\".\"&$U$4&\".\"&$U70&\".\"&$U$7,$B$95,$B$96,CONFIGURATION!$B$10,\"BMA\",CONFIGURATION!$B$1,\"bscr\",1000)","v":"Mapped"},{"$f":"XBRLMap(D70,D$88&\".\"&$U$4&\".\"&$U70&\".\"&$U$7,$B$95,$B$96,CONFIGURATION!$B$10,\"BMA\",CONFIGURATION!$B$1,\"bscr\",1000)","v":"Mapped"},{"$f":"XBRLMap(E70,E$88&\".\"&$U$4&\".\"&$U70&\".\"&$U$7,$B$95,$B$96,CONFIGURATION!$B$10,\"BMA\",CONFIGURATION!$B$1,\"bscr\",1000)","v":"Mapped"},{"$f":"XBRLMap(F70,F$88&\".\"&$U$4&\".\"&$U70&\".\"&$U$7,$B$95,$B$96,CONFIGURATION!$B$10,\"BMA\",CONFIGURATION!$B$1,\"bscr\",1000)","v":"Mapped"},{"$f":"XBRLMap(G70,G$88&\".\"&$U$4&\".\"&$U70&\".\"&$U$7,$B$95,$B$96,CONFIGURATION!$B$10,\"BMA\",CONFIGURATION!$B$1,\"bscr\",1000)","v":"Mapped"},{"$f":"XBRLMap(H70,H$88&\".\"&$U$4&\".\"&$U70&\".\"&$U$7,$B$95,$B$96,CONFIGURATION!$B$10,\"BMA\",CONFIGURATION!$B$1,\"bscr\",1000)","v":"Mapped"},null,{"$f":"XBRLMap(J70,J$88&\".\"&$U$4&\".\"&$V70&\".\"&$U$7,$B$95,$B$96,CONFIGURATION!$B$10,\"BMA\",CONFIGURATION!$B$1,\"bscr\",1000)","v":"Mapped"},{"$f":"XBRLMap(K70,K$88&\".\"&$U$4&\".\"&$V70&\".\"&$U$7,$B$95,$B$96,CONFIGURATION!$B$10,\"BMA\",CONFIGURATION!$B$1,\"bscr\",1000)","v":"Mapped"},{"$f":"XBRLMap(L70,L$88&\".\"&$U$4&\".\"&$V70&\".\"&$U$7,$B$95,$B$96,CONFIGURATION!$B$10,\"BMA\",CONFIGURATION!$B$1,\"bscr\",1000)","v":"Mapped"},{"$f":"XBRLMap(M70,M$88&\".\"&$U$4&\".\"&$V70&\".\"&$U$7,$B$95,$B$96,CONFIGURATION!$B$10,\"BMA\",CONFIGURATION!$B$1,\"bscr\",1000)","v":"Mapped"},null,null,null,"IBNRCY2016AY2015",0]
[null,null,{"$f":"XBRLMap(C71,C$88&\".\"&$U$4&\".\"&$U71&\".\"&$U$7,$B$95,$B$96,CONFIGURATION!$B$10,\"BMA\",CONFIGURATION!$B$1,\"bscr\",1000)","v":"Mapped"},{"$f":"XBRLMap(D71,D$88&\".\"&$U$4&\".\"&$U71&\".\"&$U$7,$B$95,$B$96,CONFIGURATION!$B$10,\"BMA\",CONFIGURATION!$B$1,\"bscr\",1000)","v":"Mapped"},{"$f":"XBRLMap(E71,E$88&\".\"&$U$4&\".\"&$U71&\".\"&$U$7,$B$95,$B$96,CONFIGURATION!$B$10,\"BMA\",CONFIGURATION!$B$1,\"bscr\",1000)","v":"Mapped"},{"$f":"XBRLMap(F71,F$88&\".\"&$U$4&\".\"&$U71&\".\"&$U$7,$B$95,$B$96,CONFIGURATION!$B$10,\"BMA\",CONFIGURATION!$B$1,\"bscr\",1000)","v":"Mapped"},{"$f":"XBRLMap(G71,G$88&\".\"&$U$4&\".\"&$U71&\".\"&$U$7,$B$95,$B$96,CONFIGURATION!$B$10,\"BMA\",CONFIGURATION!$B$1,\"bscr\",1000)","v":"Mapped"},{"$f":"XBRLMap(H71,H$88&\".\"&$U$4&\".\"&$U71&\".\"&$U$7,$B$95,$B$96,CONFIGURATION!$B$10,\"BMA\",CONFIGURATION!$B$1,\"bscr\",1000)","v":"Mapped"},null,{"$f":"XBRLMap(J71,J$88&\".\"&$U$4&\".\"&$V71&\".\"&$U$7,$B$95,$B$96,CONFIGURATION!$B$10,\"BMA\",CONFIGURATION!$B$1,\"bscr\",1000)","v":"Mapped"},{"$f":"XBRLMap(K71,K$88&\".\"&$U$4&\".\"&$V71&\".\"&$U$7,$B$95,$B$96,CONFIGURATION!$B$10,\"BMA\",CONFIGURATION!$B$1,\"bscr\",1000)","v":"Mapped"},{"$f":"XBRLMap(L71,L$88&\".\"&$U$4&\".\"&$V71&\".\"&$U$7,$B$95,$B$96,CONFIGURATION!$B$10,\"BMA\",CONFIGURATION!$B$1,\"bscr\",1000)","v":"Mapped"},{"$f":"XBRLMap(M71,M$88&\".\"&$U$4&\".\"&$V71&\".\"&$U$7,$B$95,$B$96,CONFIGURATION!$B$10,\"BMA\",CONFIGURATION!$B$1,\"bscr\",1000)","v":"Mapped"},null,null,null,"IBNRCY2016AY2016",0]
[null,null,{"$f":"XBRLMap(C72,C$88&\".\"&$U$4&\".\"&$U72&\".\"&$U$7,$B$95,$B$96,CONFIGURATION!$B$10,\"BMA\",CONFIGURATION!$B$1,\"bscr\",1000)","v":"Mapped"},{"$f":"XBRLMap(D72,D$88&\".\"&$U$4&\".\"&$U72&\".\"&$U$7,$B$95,$B$96,CONFIGURATION!$B$10,\"BMA\",CONFIGURATION!$B$1,\"bscr\",1000)","v":"Mapped"},{"$f":"XBRLMap(E72,E$88&\".\"&$U$4&\".\"&$U72&\".\"&$U$7,$B$95,$B$96,CONFIGURATION!$B$10,\"BMA\",CONFIGURATION!$B$1,\"bscr\",1000)","v":"Mapped"},{"$f":"XBRLMap(F72,F$88&\".\"&$U$4&\".\"&$U72&\".\"&$U$7,$B$95,$B$96,CONFIGURATION!$B$10,\"BMA\",CONFIGURATION!$B$1,\"bscr\",1000)","v":"Mapped"},{"$f":"XBRLMap(G72,G$88&\".\"&$U$4&\".\"&$U72&\".\"&$U$7,$B$95,$B$96,CONFIGURATION!$B$10,\"BMA\",CONFIGURATION!$B$1,\"bscr\",1000)","v":"Mapped"},{"$f":"XBRLMap(H72,H$88&\".\"&$U$4&\".\"&$U72&\".\"&$U$7,$B$95,$B$96,CONFIGURATION!$B$10,\"BMA\",CONFIGURATION!$B$1,\"bscr\",1000)","v":"Mapped"},null,{"$f":"XBRLMap(J72,J$88&\".\"&$U$4&\".\"&$V72&\".\"&$U$7,$B$95,$B$96,CONFIGURATION!$B$10,\"BMA\",CONFIGURATION!$B$1,\"bscr\",1000)","v":"Mapped"},{"$f":"XBRLMap(K72,K$88&\".\"&$U$4&\".\"&$V72&\".\"&$U$7,$B$95,$B$96,CONFIGURATION!$B$10,\"BMA\",CONFIGURATION!$B$1,\"bscr\",1000)","v":"Mapped"},{"$f":"XBRLMap(L72,L$88&\".\"&$U$4&\".\"&$V72&\".\"&$U$7,$B$95,$B$96,CONFIGURATION!$B$10,\"BMA\",CONFIGURATION!$B$1,\"bscr\",1000)","v":"Mapped"},{"$f":"XBRLMap(M72,M$88&\".\"&$U$4&\".\"&$V72&\".\"&$U$7,$B$95,$B$96,CONFIGURATION!$B$10,\"BMA\",CONFIGURATION!$B$1,\"bscr\",1000)","v":"Mapped"},null,null,null,{"$f":"\"IBNRCY\"&J$10&\"AY\"&B47","v":"IBNRCY2017AYPrior"},{"$f":"J47","v":0}]
[null,null,{"$f":"XBRLMap(C73,C$88&\".\"&$U$4&\".\"&$U73&\".\"&$U$7,$B$95,$B$96,CONFIGURATION!$B$10,\"BMA\",CONFIGURATION!$B$1,\"bscr\",1000)","v":"Mapped"},{"$f":"XBRLMap(D73,D$88&\".\"&$U$4&\".\"&$U73&\".\"&$U$7,$B$95,$B$96,CONFIGURATION!$B$10,\"BMA\",CONFIGURATION!$B$1,\"bscr\",1000)","v":"Mapped"},{"$f":"XBRLMap(E73,E$88&\".\"&$U$4&\".\"&$U73&\".\"&$U$7,$B$95,$B$96,CONFIGURATION!$B$10,\"BMA\",CONFIGURATION!$B$1,\"bscr\",1000)","v":"Mapped"},{"$f":"XBRLMap(F73,F$88&\".\"&$U$4&\".\"&$U73&\".\"&$U$7,$B$95,$B$96,CONFIGURATION!$B$10,\"BMA\",CONFIGURATION!$B$1,\"bscr\",1000)","v":"Mapped"},{"$f":"XBRLMap(G73,G$88&\".\"&$U$4&\".\"&$U73&\".\"&$U$7,$B$95,$B$96,CONFIGURATION!$B$10,\"BMA\",CONFIGURATION!$B$1,\"bscr\",1000)","v":"Mapped"},{"$f":"XBRLMap(H73,H$88&\".\"&$U$4&\".\"&$U73&\".\"&$U$7,$B$95,$B$96,CONFIGURATION!$B$10,\"BMA\",CONFIGURATION!$B$1,\"bscr\",1000)","v":"Mapped"},null,{"$f":"XBRLMap(J73,J$88&\".\"&$U$4&\".\"&$V73&\".\"&$U$7,$B$95,$B$96,CONFIGURATION!$B$10,\"BMA\",CONFIGURATION!$B$1,\"bscr\",1000)","v":"Mapped"},{"$f":"XBRLMap(K73,K$88&\".\"&$U$4&\".\"&$V73&\".\"&$U$7,$B$95,$B$96,CONFIGURATION!$B$10,\"BMA\",CONFIGURATION!$B$1,\"bscr\",1000)","v":"Mapped"},{"$f":"XBRLMap(L73,L$88&\".\"&$U$4&\".\"&$V73&\".\"&$U$7,$B$95,$B$96,CONFIGURATION!$B$10,\"BMA\",CONFIGURATION!$B$1,\"bscr\",1000)","v":"Mapped"},{"$f":"XBRLMap(M73,M$88&\".\"&$U$4&\".\"&$V73&\".\"&$U$7,$B$95,$B$96,CONFIGURATION!$B$10,\"BMA\",CONFIGURATION!$B$1,\"bscr\",1000)","v":"Mapped"},null,null,null,"IBNRCY2017AY2010",0]
[null,null,{"$f":"XBRLMap(C74,C$88&\".\"&$U$4&\".\"&$U74&\".\"&$U$7,$B$95,$B$96,CONFIGURATION!$B$10,\"BMA\",CONFIGURATION!$B$1,\"bscr\",1000)","v":"Mapped"},{"$f":"XBRLMap(D74,D$88&\".\"&$U$4&\".\"&$U74&\".\"&$U$7,$B$95,$B$96,CONFIGURATION!$B$10,\"BMA\",CONFIGURATION!$B$1,\"bscr\",1000)","v":"Mapped"},{"$f":"XBRLMap(E74,E$88&\".\"&$U$4&\".\"&$U74&\".\"&$U$7,$B$95,$B$96,CONFIGURATION!$B$10,\"BMA\",CONFIGURATION!$B$1,\"bscr\",1000)","v":"Mapped"},{"$f":"XBRLMap(F74,F$88&\".\"&$U$4&\".\"&$U74&\".\"&$U$7,$B$95,$B$96,CONFIGURATION!$B$10,\"BMA\",CONFIGURATION!$B$1,\"bscr\",1000)","v":"Mapped"},{"$f":"XBRLMap(G74,G$88&\".\"&$U$4&\".\"&$U74&\".\"&$U$7,$B$95,$B$96,CONFIGURATION!$B$10,\"BMA\",CONFIGURATION!$B$1,\"bscr\",1000)","v":"Mapped"},{"$f":"XBRLMap(H74,H$88&\".\"&$U$4&\".\"&$U74&\".\"&$U$7,$B$95,$B$96,CONFIGURATION!$B$10,\"BMA\",CONFIGURATION!$B$1,\"bscr\",1000)","v":"Mapped"},null,{"$f":"XBRLMap(J74,J$88&\".\"&$U$4&\".\"&$V74&\".\"&$U$7,$B$95,$B$96,CONFIGURATION!$B$10,\"BMA\",CONFIGURATION!$B$1,\"bscr\",1000)","v":"Mapped"},{"$f":"XBRLMap(K74,K$88&\".\"&$U$4&\".\"&$V74&\".\"&$U$7,$B$95,$B$96,CONFIGURATION!$B$10,\"BMA\",CONFIGURATION!$B$1,\"bscr\",1000)","v":"Mapped"},{"$f":"XBRLMap(L74,L$88&\".\"&$U$4&\".\"&$V74&\".\"&$U$7,$B$95,$B$96,CONFIGURATION!$B$10,\"BMA\",CONFIGURATION!$B$1,\"bscr\",1000)","v":"Mapped"},{"$f":"XBRLMap(M74,M$88&\".\"&$U$4&\".\"&$V74&\".\"&$U$7,$B$95,$B$96,CONFIGURATION!$B$10,\"BMA\",CONFIGURATION!$B$1,\"bscr\",1000)","v":"Mapped"},null,null,null,"IBNRCY2017AY2011",0]
[null,null,{"$f":"XBRLMap(C75,C$88&\".\"&$U$4&\".\"&$U75&\".\"&$U$7,$B$95,$B$96,CONFIGURATION!$B$10,\"BMA\",CONFIGURATION!$B$1,\"bscr\",1000)","v":"Mapped"},{"$f":"XBRLMap(D75,D$88&\".\"&$U$4&\".\"&$U75&\".\"&$U$7,$B$95,$B$96,CONFIGURATION!$B$10,\"BMA\",CONFIGURATION!$B$1,\"bscr\",1000)","v":"Mapped"},{"$f":"XBRLMap(E75,E$88&\".\"&$U$4&\".\"&$U75&\".\"&$U$7,$B$95,$B$96,CONFIGURATION!$B$10,\"BMA\",CONFIGURATION!$B$1,\"bscr\",1000)","v":"Mapped"},{"$f":"XBRLMap(F75,F$88&\".\"&$U$4&\".\"&$U75&\".\"&$U$7,$B$95,$B$96,CONFIGURATION!$B$10,\"BMA\",CONFIGURATION!$B$1,\"bscr\",1000)","v":"Mapped"},{"$f":"XBRLMap(G75,G$88&\".\"&$U$4&\".\"&$U75&\".\"&$U$7,$B$95,$B$96,CONFIGURATION!$B$10,\"BMA\",CONFIGURATION!$B$1,\"bscr\",1000)","v":"Mapped"},{"$f":"XBRLMap(H75,H$88&\".\"&$U$4&\".\"&$U75&\".\"&$U$7,$B$95,$B$96,CONFIGURATION!$B$10,\"BMA\",CONFIGURATION!$B$1,\"bscr\",1000)","v":"Mapped"},null,{"$f":"XBRLMap(J75,J$88&\".\"&$U$4&\".\"&$V75&\".\"&$U$7,$B$95,$B$96,CONFIGURATION!$B$10,\"BMA\",CONFIGURATION!$B$1,\"bscr\",1000)","v":"Mapped"},{"$f":"XBRLMap(K75,K$88&\".\"&$U$4&\".\"&$V75&\".\"&$U$7,$B$95,$B$96,CONFIGURATION!$B$10,\"BMA\",CONFIGURATION!$B$1,\"bscr\",1000)","v":"Mapped"},{"$f":"XBRLMap(L75,L$88&\".\"&$U$4&\".\"&$V75&\".\"&$U$7,$B$95,$B$96,CONFIGURATION!$B$10,\"BMA\",CONFIGURATION!$B$1,\"bscr\",1000)","v":"Mapped"},{"$f":"XBRLMap(M75,M$88&\".\"&$U$4&\".\"&$V75&\".\"&$U$7,$B$95,$B$96,CONFIGURATION!$B$10,\"BMA\",CONFIGURATION!$B$1,\"bscr\",1000)","v":"Mapped"},null,null,null,"IBNRCY2017AY2012",0]
[null,null,{"$f":"XBRLMap(C76,C$88&\".\"&$U$4&\".\"&$U76&\".\"&$U$7,$B$95,$B$96,CONFIGURATION!$B$10,\"BMA\",CONFIGURATION!$B$1,\"bscr\",1000)","v":"Mapped"},{"$f":"XBRLMap(D76,D$88&\".\"&$U$4&\".\"&$U76&\".\"&$U$7,$B$95,$B$96,CONFIGURATION!$B$10,\"BMA\",CONFIGURATION!$B$1,\"bscr\",1000)","v":"Mapped"},{"$f":"XBRLMap(E76,E$88&\".\"&$U$4&\".\"&$U76&\".\"&$U$7,$B$95,$B$96,CONFIGURATION!$B$10,\"BMA\",CONFIGURATION!$B$1,\"bscr\",1000)","v":"Mapped"},{"$f":"XBRLMap(F76,F$88&\".\"&$U$4&\".\"&$U76&\".\"&$U$7,$B$95,$B$96,CONFIGURATION!$B$10,\"BMA\",CONFIGURATION!$B$1,\"bscr\",1000)","v":"Mapped"},{"$f":"XBRLMap(G76,G$88&\".\"&$U$4&\".\"&$U76&\".\"&$U$7,$B$95,$B$96,CONFIGURATION!$B$10,\"BMA\",CONFIGURATION!$B$1,\"bscr\",1000)","v":"Mapped"},{"$f":"XBRLMap(H76,H$88&\".\"&$U$4&\".\"&$U76&\".\"&$U$7,$B$95,$B$96,CONFIGURATION!$B$10,\"BMA\",CONFIGURATION!$B$1,\"bscr\",1000)","v":"Mapped"},null,{"$f":"XBRLMap(J76,J$88&\".\"&$U$4&\".\"&$V76&\".\"&$U$7,$B$95,$B$96,CONFIGURATION!$B$10,\"BMA\",CONFIGURATION!$B$1,\"bscr\",1000)","v":"Mapped"},{"$f":"XBRLMap(K76,K$88&\".\"&$U$4&\".\"&$V76&\".\"&$U$7,$B$95,$B$96,CONFIGURATION!$B$10,\"BMA\",CONFIGURATION!$B$1,\"bscr\",1000)","v":"Mapped"},{"$f":"XBRLMap(L76,L$88&\".\"&$U$4&\".\"&$V76&\".\"&$U$7,$B$95,$B$96,CONFIGURATION!$B$10,\"BMA\",CONFIGURATION!$B$1,\"bscr\",1000)","v":"Mapped"},{"$f":"XBRLMap(M76,M$88&\".\"&$U$4&\".\"&$V76&\".\"&$U$7,$B$95,$B$96,CONFIGURATION!$B$10,\"BMA\",CONFIGURATION!$B$1,\"bscr\",1000)","v":"Mapped"},null,null,null,"IBNRCY2017AY2013",0]
[null,null,{"$f":"XBRLMap(C77,C$88&\".\"&$U$4&\".\"&$U77&\".\"&$U$7,$B$95,$B$96,CONFIGURATION!$B$10,\"BMA\",CONFIGURATION!$B$1,\"bscr\",1000)","v":"Mapped"},{"$f":"XBRLMap(D77,D$88&\".\"&$U$4&\".\"&$U77&\".\"&$U$7,$B$95,$B$96,CONFIGURATION!$B$10,\"BMA\",CONFIGURATION!$B$1,\"bscr\",1000)","v":"Mapped"},{"$f":"XBRLMap(E77,E$88&\".\"&$U$4&\".\"&$U77&\".\"&$U$7,$B$95,$B$96,CONFIGURATION!$B$10,\"BMA\",CONFIGURATION!$B$1,\"bscr\",1000)","v":"Mapped"},{"$f":"XBRLMap(F77,F$88&\".\"&$U$4&\".\"&$U77&\".\"&$U$7,$B$95,$B$96,CONFIGURATION!$B$10,\"BMA\",CONFIGURATION!$B$1,\"bscr\",1000)","v":"Mapped"},{"$f":"XBRLMap(G77,G$88&\".\"&$U$4&\".\"&$U77&\".\"&$U$7,$B$95,$B$96,CONFIGURATION!$B$10,\"BMA\",CONFIGURATION!$B$1,\"bscr\",1000)","v":"Mapped"},{"$f":"XBRLMap(H77,H$88&\".\"&$U$4&\".\"&$U77&\".\"&$U$7,$B$95,$B$96,CONFIGURATION!$B$10,\"BMA\",CONFIGURATION!$B$1,\"bscr\",1000)","v":"Mapped"},null,{"$f":"XBRLMap(J77,J$88&\".\"&$U$4&\".\"&$V77&\".\"&$U$7,$B$95,$B$96,CONFIGURATION!$B$10,\"BMA\",CONFIGURATION!$B$1,\"bscr\",1000)","v":"Mapped"},{"$f":"XBRLMap(K77,K$88&\".\"&$U$4&\".\"&$V77&\".\"&$U$7,$B$95,$B$96,CONFIGURATION!$B$10,\"BMA\",CONFIGURATION!$B$1,\"bscr\",1000)","v":"Mapped"},{"$f":"XBRLMap(L77,L$88&\".\"&$U$4&\".\"&$V77&\".\"&$U$7,$B$95,$B$96,CONFIGURATION!$B$10,\"BMA\",CONFIGURATION!$B$1,\"bscr\",1000)","v":"Mapped"},{"$f":"XBRLMap(M77,M$88&\".\"&$U$4&\".\"&$V77&\".\"&$U$7,$B$95,$B$96,CONFIGURATION!$B$10,\"BMA\",CONFIGURATION!$B$1,\"bscr\",1000)","v":"Mapped"},null,null,null,"IBNRCY2017AY2014",0]
[null,null,null,null,null,null,null,null,null,null,null,null,null,null,null,null,"IBNRCY2017AY2015",0]
[null,null,null,null,null,null,null,null,null,null,null,null,null,null,null,null,"IBNRCY2017AY2016",0]
[null,null,null,null,null,null,null,null,null,null,null,null,null,null,null,null,"IBNRCY2017AY2017",0]
[null,null,null,null,null,null,null,null,null,null,null,null,null,null,null,null,{"$f":"\"IBNRCY\"&K$10&\"AY\"&B47","v":"IBNRCY2018AYPrior"},{"$f":"K47","v":0}]
[null,null,null,null,null,null,null,null,null,null,null,null,null,null,null,null,"IBNRCY2018AY2010",0]
[null,null,null,null,null,null,null,null,null,null,null,null,null,null,null,null,"IBNRCY2018AY2011",0]
[null,null,null,null,null,null,null,null,null,null,null,null,null,null,null,null,"IBNRCY2018AY2012",0]
[null,null,null,null,null,null,null,null,null,null,null,null,null,null,null,null,"IBNRCY2018AY2013",0]
[null,null,null,null,null,null,null,null,null,null,null,null,null,null,null,null,"IBNRCY2018AY2014",0]
[null,null,null,null,null,null,null,null,null,null,null,null,null,null,null,null,"IBNRCY2018AY2015",0]
[null,null,null,null,null,null,null,null,null,null,null,null,null,null,null,null,"IBNRCY2018AY2016",0]
[null,null,null,null,null,null,null,null,null,null,null,null,null,null,null,null,"IBNRCY2018AY2017",0]
[null,null,null,null,null,null,null,null,null,null,null,null,null,null,null,null,"IBNRCY2018AY2018",0]
[null,null,null,null,null,null,null,null,null,null,null,null,null,null,null,null,{"$f":"\"IBNRCY\"&L$10&\"AY\"&B47","v":"IBNRCY2019AYPrior"},{"$f":"L47","v":0}]
[null,null,null,null,null,null,null,null,null,null,null,null,null,null,null,null,"IBNRCY2019AY2010",0]
[null,null,null,null,null,null,null,null,null,null,null,null,null,null,null,null,"IBNRCY2019AY2011",0]
[null,null,null,null,null,null,null,null,null,null,null,null,null,null,null,null,"IBNRCY2019AY2012",0]
[null,null,null,null,null,null,null,null,null,null,null,null,null,null,null,null,"IBNRCY2019AY2013",0]
[null,null,null,null,null,null,null,null,null,null,null,null,null,null,null,null,"IBNRCY2019AY2014",0]
[null,null,null,null,null,null,null,null,null,null,null,null,null,null,null,null,"IBNRCY2019AY2015",0]
[null,null,null,null,null,null,null,null,null,null,null,null,null,null,null,null,"IBNRCY2019AY2016",0]
[null,null,null,null,null,null,null,null,null,null,null,null,null,null,null,null,"IBNRCY2019AY2017",0]
[null,null,null,null,null,null,null,null,null,null,null,null,null,null,null,null,"IBNRCY2019AY2018",0]
[null,null,null,null,null,null,null,null,null,null,null,null,null,null,null,null,"IBNRCY2019AY2019",0]
[null,null,null,null,null,null,null,null,null,null,null,null,null,null,null,null,{"$f":"\"GrossWP\"&$B68","v":"GrossWP2010"},{"$f":"C68","v":0}]
[null,null,null,null,null,null,null,null,null,null,null,null,null,null,null,null,"GrossWP2011",0]
[null,null,null,null,null,null,null,null,null,null,null,null,null,null,null,null,"GrossWP2012",0]
[null,null,null,null,null,null,null,null,null,null,null,null,null,null,null,null,"GrossWP2013",0]
[null,null,null,null,null,null,null,null,null,null,null,null,null,null,null,null,"GrossWP2014",0]
[null,null,null,null,null,null,null,null,null,null,null,null,null,null,null,null,"GrossWP2015",0]
[null,null,null,null,null,null,null,null,null,null,null,null,null,null,null,null,"GrossWP2016",0]
[null,null,null,null,null,null,null,null,null,null,null,null,null,null,null,null,"GrossWP2017",0]
[null,null,null,null,null,null,null,null,null,null,null,null,null,null,null,null,"GrossWP2018",0]
[null,null,null,null,null,null,null,null,null,null,null,null,null,null,null,null,"GrossWP2019",0]
[null,null,null,null,null,null,null,null,null,null,null,null,null,null,null,null,{"$f":"\"GrossEP\"&$B68","v":"GrossEP2010"},{"$f":"D68","v":0}]
[null,null,null,null,null,null,null,null,null,null,null,null,null,null,null,null,"GrossEP2011",0]
[null,null,null,null,null,null,null,null,null,null,null,null,null,null,null,null,"GrossEP2012",0]
[null,null,null,null,null,null,null,null,null,null,null,null,null,null,null,null,"GrossEP2013",0]
[null,null,null,null,null,null,null,null,null,null,null,null,null,null,null,null,"GrossEP2014",0]
[null,null,null,null,null,null,null,null,null,null,null,null,null,null,null,null,"GrossEP2015",0]
[null,null,null,null,null,null,null,null,null,null,null,null,null,null,null,null,"GrossEP2016",0]
[null,null,null,null,null,null,null,null,null,null,null,null,null,null,null,null,"GrossEP2017",0]
[null,null,null,null,null,null,null,null,null,null,null,null,null,null,null,null,"GrossEP2018",0]
[null,null,null,null,null,null,null,null,null,null,null,null,null,null,null,null,"GrossEP2019",0]
[null,null,null,null,null,null,null,null,null,null,null,null,null,null,null,null,{"$f":"\"NetWP\"&$B68","v":"NetWP2010"},{"$f":"E68","v":0}]
[null,null,null,null,null,null,null,null,null,null,null,null,null,null,null,null,"NetWP2011",0]
[null,null,null,null,null,null,null,null,null,null,null,null,null,null,null,null,"NetWP2012",0]
[null,null,null,null,null,null,null,null,null,null,null,null,null,null,null,null,"NetWP2013",0]
[null,null,null,null,null,null,null,null,null,null,null,null,null,null,null,null,"NetWP2014",0]
[null,null,null,null,null,null,null,null,null,null,null,null,null,null,null,null,"NetWP2015",0]
[null,null,null,null,null,null,null,null,null,null,null,null,null,null,null,null,"NetWP2016",0]
[null,null,null,null,null,null,null,null,null,null,null,null,null,null,null,null,"NetWP2017",0]
[null,null,null,null,null,null,null,null,null,null,null,null,null,null,null,null,"NetWP2018",0]
[null,null,null,null,null,null,null,null,null,null,null,null,null,null,null,null,"NetWP2019",0]
[null,null,null,null,null,null,null,null,null,null,null,null,null,null,null,null,{"$f":"\"NetEP\"&$B68","v":"NetEP2010"},{"$f":"F68","v":0}]
[null,null,null,null,null,null,null,null,null,null,null,null,null,null,null,null,"NetEP2011",0]
[null,null,null,null,null,null,null,null,null,null,null,null,null,null,null,null,"NetEP2012",0]
[null,null,null,null,null,null,null,null,null,null,null,null,null,null,null,null,"NetEP2013",0]
[null,null,null,null,null,null,null,null,null,null,null,null,null,null,null,null,"NetEP2014",0]
[null,null,null,null,null,null,null,null,null,null,null,null,null,null,null,null,"NetEP2015",0]
[null,null,null,null,null,null,null,null,null,null,null,null,null,null,null,null,"NetEP2016",0]
[null,null,null,null,null,null,null,null,null,null,null,null,null,null,null,null,"NetEP2017",0]
[null,null,null,null,null,null,null,null,null,null,null,null,null,null,null,null,"NetEP2018",0]
[null,null,null,null,null,null,null,null,null,null,null,null,null,null,null,null,"NetEP2019",0]
[null,null,null,null,null,null,null,null,null,null,null,null,null,null,null,null,{"$f":"\"NetAOEPaid\"&$B67","v":"NetAOEPaidPrior"},{"$f":"G67","v":0}]
[null,null,null,null,null,null,null,null,null,null,null,null,null,null,null,null,"NetAOEPaid2010",0]
[null,null,null,null,null,null,null,null,null,null,null,null,null,null,null,null,"NetAOEPaid2011",0]
[null,null,null,null,null,null,null,null,null,null,null,null,null,null,null,null,"NetAOEPaid2012",0]
[null,null,null,null,null,null,null,null,null,null,null,null,null,null,null,null,"NetAOEPaid2013",0]
[null,null,null,null,null,null,null,null,null,null,null,null,null,null,null,null,"NetAOEPaid2014",0]
[null,null,null,null,null,null,null,null,null,null,null,null,null,null,null,null,"NetAOEPaid2015",0]
[null,null,null,null,null,null,null,null,null,null,null,null,null,null,null,null,"NetAOEPaid2016",0]
[null,null,null,null,null,null,null,null,null,null,null,null,null,null,null,null,"NetAOEPaid2017",0]
[null,null,null,null,null,null,null,null,null,null,null,null,null,null,null,null,"NetAOEPaid2018",0]
[null,null,null,null,null,null,null,null,null,null,null,null,null,null,null,null,"NetAOEPaid2019",0]
[null,null,null,null,null,null,null,null,null,null,null,null,null,null,null,null,{"$f":"\"NetAOEIncurred\"&$B67","v":"NetAOEIncurredPrior"},{"$f":"H67","v":0}]
[null,null,null,null,null,null,null,null,null,null,null,null,null,null,null,null,"NetAOEIncurred2010",0]
[null,null,null,null,null,null,null,null,null,null,null,null,null,null,null,null,"NetAOEIncurred2011",0]
[null,null,null,null,null,null,null,null,null,null,null,null,null,null,null,null,"NetAOEIncurred2012",0]
[null,null,null,null,null,null,null,null,null,null,null,null,null,null,null,null,"NetAOEIncurred2013",0]
[null,null,null,null,null,null,null,null,null,null,null,null,null,null,null,null,"NetAOEIncurred2014",0]
[null,null,null,null,null,null,null,null,null,null,null,null,null,null,null,null,"NetAOEIncurred2015",0]
[null,null,null,null,null,null,null,null,null,null,null,null,null,null,null,null,"NetAOEIncurred2016",0]
[null,null,null,null,null,null,null,null,null,null,null,null,null,null,null,null,"NetAOEIncurred2017",0]
[null,null,null,null,null,null,null,null,null,null,null,null,null,null,null,null,"NetAOEIncurred2018",0]
[null,null,null,null,null,null,null,null,null,null,null,null,null,null,null,null,"NetAOEIncurred2019",0]
[null,null,null,null,null,null,null,null,null,null,null,null,null,null,null,null,{"$f":"\"Commission\"&$B67","v":"CommissionPrior"},{"$f":"J67","v":0}]
[null,null,null,null,null,null,null,null,null,null,null,null,null,null,null,null,"Commission2010",0]
[null,null,null,null,null,null,null,null,null,null,null,null,null,null,null,null,"Commission2011",0]
[null,null,null,null,null,null,null,null,null,null,null,null,null,null,null,null,"Commission2012",0]
[null,null,null,null,null,null,null,null,null,null,null,null,null,null,null,null,"Commission2013",0]
[null,null,null,null,null,null,null,null,null,null,null,null,null,null,null,null,"Commission2014",0]
[null,null,null,null,null,null,null,null,null,null,null,null,null,null,null,null,"Commission2015",0]
[null,null,null,null,null,null,null,null,null,null,null,null,null,null,null,null,"Commission2016",0]
[null,null,null,null,null,null,null,null,null,null,null,null,null,null,null,null,"Commission2017",0]
[null,null,null,null,null,null,null,null,null,null,null,null,null,null,null,null,"Commission2018",0]
[null,null,null,null,null,null,null,null,null,null,null,null,null,null,null,null,"Commission2019",0]
[null,null,null,null,null,null,null,null,null,null,null,null,null,null,null,null,{"$f":"\"AcqExp\"&$B67","v":"AcqExpPrior"},{"$f":"K67","v":0}]
[null,null,null,null,null,null,null,null,null,null,null,null,null,null,null,null,"AcqExp2010",0]
[null,null,null,null,null,null,null,null,null,null,null,null,null,null,null,null,"AcqExp2011",0]
[null,null,null,null,null,null,null,null,null,null,null,null,null,null,null,null,"AcqExp2012",0]
[null,null,null,null,null,null,null,null,null,null,null,null,null,null,null,null,"AcqExp2013",0]
[null,null,null,null,null,null,null,null,null,null,null,null,null,null,null,null,"AcqExp2014",0]
[null,null,null,null,null,null,null,null,null,null,null,null,null,null,null,null,"AcqExp2015",0]
[null,null,null,null,null,null,null,null,null,null,null,null,null,null,null,null,"AcqExp2016",0]
[null,null,null,null,null,null,null,null,null,null,null,null,null,null,null,null,"AcqExp2017",0]
[null,null,null,null,null,null,null,null,null,null,null,null,null,null,null,null,"AcqExp2018",0]
[null,null,null,null,null,null,null,null,null,null,null,null,null,null,null,null,"AcqExp2019",0]
[null,null,null,null,null,null,null,null,null,null,null,null,null,null,null,null,{"$f":"\"Taxes\"&$B67","v":"TaxesPrior"},{"$f":"L67","v":0}]
[null,null,null,null,null,null,null,null,null,null,null,null,null,null,null,null,"Taxes2010",0]
[null,null,null,null,null,null,null,null,null,null,null,null,null,null,null,null,"Taxes2011",0]
[null,null,null,null,null,null,null,null,null,null,null,null,null,null,null,null,"Taxes2012",0]
[null,null,null,null,null,null,null,null,null,null,null,null,null,null,null,null,"Taxes2013",0]
[null,null,null,null,null,null,null,null,null,null,null,null,null,null,null,null,"Taxes2014",0]
[null,null,null,null,null,null,null,null,null,null,null,null,null,null,null,null,"Taxes2015",0]
[null,null,null,null,null,null,null,null,null,null,null,null,null,null,null,null,"Taxes2016",0]
[null,null,null,null,null,null,null,null,null,null,null,null,null,null,null,null,"Taxes2017",0]
[null,null,null,null,null,null,null,null,null,null,null,null,null,null,null,null,"Taxes2018",0]
[null,null,null,null,null,null,null,null,null,null,null,null,null,null,null,null,"Taxes2019",0]
[null,null,null,null,null,null,null,null,null,null,null,null,null,null,null,null,{"$f":"\"GeneralOver\"&$B67","v":"GeneralOverPrior"},{"$f":"M67","v":0}]
[null,null,null,null,null,null,null,null,null,null,null,null,null,null,null,null,"GeneralOver2010",0]
[null,null,null,null,null,null,null,null,null,null,null,null,null,null,null,null,"GeneralOver2011",0]
[null,null,null,null,null,null,null,null,null,null,null,null,null,null,null,null,"GeneralOver2012",0]
[null,null,null,null,null,null,null,null,null,null,null,null,null,null,null,null,"GeneralOver2013",0]
[null,null,null,null,null,null,null,null,null,null,null,null,null,null,null,null,"GeneralOver2014",0]
[null,null,null,null,null,null,null,null,null,null,null,null,null,null,null,null,"GeneralOver2015",0]
[null,null,null,null,null,null,null,null,null,null,null,null,null,null,null,null,"GeneralOver2016",0]
[null,null,null,null,null,null,null,null,null,null,null,null,null,null,null,null,"GeneralOver2017",0]
[null,null,null,null,null,null,null,null,null,null,null,null,null,null,null,null,"GeneralOver2018",0]
[null,null,null,null,null,null,null,null,null,null,null,null,null,null,null,null,"GeneralOver2019",0]

{"sheet":"Schedule XI(b)","index":72,"n_rows":30,"n_cols":16,"rows_kept":30,"cut":false,"hidden":false,"merged":[[5,1,5,5],[0,1,0,4],[2,1,2,2]]}
[null,"SCHEDULE OF RECONCILIATION OF NET LOSS RESERVES BY LINES OF BUSINESS (COMBINED FOR ALL LINES)",null,null,null,{"$f":"HYPERLINK(\"#'Index'!A1\",\"Return to Index\")","v":"Return to Index"}]
[null,{"$f":"'Company Information'!C7","v":"Enter Company Name"}]
[null,{"$f":"'Company Information'!C3","v":"2019-12-31"},null,null,null,"SCHEDULE XI(b) (EBS)"]
[null,{"$f":"\"expressed in\"& IF(1000>1,\" ['\"&MID(1000,2,LEN(1000))&\"s]\",\"\")","v":"expressed in ['000s]"},{"$f":"'Form 1EBS'!$C$4","v":"United States Dollars"}]
[]
[null,"Note:  The insurer shall provide a reconciliation of its beginning and ending net loss reserve balances for the 8 statutory lines of business, as an alternative to the loss triangles - Schedule XI(a)."]
[null,null,null,null,null,null,null,null,"brrt_LineOfBusinessAxis_brrt_CombinedMember",{"$f":"IF(D8=\"\",\"\",TEXT(DATE(YEAR(D8+1)-1,MONTH(D8+1),DAY(D8+1)),\"mm/dd/yyyy\"))","v":"01/01/2019"},null,{"$f":"IF(F8=\"\",\"\",TEXT(DATE(YEAR(F8+1)-1,MONTH(F8+1),DAY(F8+1)),\"mm/dd/yyyy\"))","v":"01/01/2018"},null,null,null,"bma_ScheduleOfReconciliationOfNetLossReservesByLinesOfBusinessAxis"]
[null,null,null,{"$f":"'Form 1EBS'!F7","v":"2019-12-31"},null,{"$f":"'Form 1EBS'!H7","v":"2018-12-31"},null,null,"brrt_TypeOfContractAxis_brrt_CombinedMember",{"$f":"IF(D8=\"\",\"\",TEXT(D8,\"mm/dd/yyyy\"))","v":"12/31/2019"},null,{"$f":"IF(F8=\"\",\"\",TEXT(F8,\"mm/dd/yyyy\"))","v":"12/31/2018"},null,null,null,"bma_CombinedForAllLinesMember"]
[]
[null,"Net best estimate loss and loss expense provisions at start of year",null,{"$f":"'Sch XI(b)(i)'!D10+'Sch XI(b)(ii)'!D10+'Sch XI(b)(iii)'!D10+'Sch XI(b)(iv)'!D10+'Sch XI(b)(v)'!D10+'Sch XI(b)(vi)'!D10+'Sch XI(b)(vii)'!D10+'Sch XI(b)(viii)'!D10","v":0},null,{"$f":"'Sch XI(b)(i)'!F10+'Sch XI(b)(ii)'!F10+'Sch XI(b)(iii)'!F10+'Sch XI(b)(iv)'!F10+'Sch XI(b)(v)'!F10+'Sch XI(b)(vi)'!F10+'Sch XI(b)(vii)'!F10+'Sch XI(b)(viii)'!F10","v":0},null,null,"brrt_GrossLossAndLossExpenseProvisions",{"$f":"XBRLMap(D10,$I10&\".\"&$I$7&\".\"&$I$8,$J$7,$J$7,CONFIGURATION!$B$10,\"BMA\",CONFIGURATION!$B$1,\"bscr\",1000)","v":"Mapped"},null,{"$f":"XBRLMap(F10,$I10&\".\"&$I$7&\".\"&$I$8,$L$7,$L$7,CONFIGURATION!$B$10,\"BMA\",CONFIGURATION!$B$1,\"bscr\",1000)","v":"Mapped"},null,null,null,"bma_ScheduleOfReconciliationOfNetLossReservesByLinesOfBusinessnetLossAndLossExpenseProvisionsAtBeginningOfYear"]
[null,null,null,null,null,null,null,null,""]
[null,"Unwind of discount (start year discount curve)",null,{"$f":"'Sch XI(b)(i)'!D12+'Sch XI(b)(ii)'!D12+'Sch XI(b)(iii)'!D12+'Sch XI(b)(iv)'!D12+'Sch XI(b)(v)'!D12+'Sch XI(b)(vi)'!D12+'Sch XI(b)(vii)'!D12+'Sch XI(b)(viii)'!D12","v":0},null,{"$f":"'Sch XI(b)(i)'!F12+'Sch XI(b)(ii)'!F12+'Sch XI(b)(iii)'!F12+'Sch XI(b)(iv)'!F12+'Sch XI(b)(v)'!F12+'Sch XI(b)(vi)'!F12+'Sch XI(b)(vii)'!F12+'Sch XI(b)(viii)'!F12","v":0},null,null,"",null,null,null,null,null,null,"bma_ScheduleOfReconciliationOfNetLossReservesByLinesOfBusinessaddCaseReservesAndIbnrRecordedDuringYear"]
[null,"Net losses and loss expenses paid or payable related to prior years",null,{"$f":"'Sch XI(b)(i)'!D13+'Sch XI(b)(ii)'!D13+'Sch XI(b)(iii)'!D13+'Sch XI(b)(iv)'!D13+'Sch XI(b)(v)'!D13+'Sch XI(b)(vi)'!D13+'Sch XI(b)(vii)'!D13+'Sch XI(b)(viii)'!D13","v":0},null,{"$f":"'Sch XI(b)(i)'!F13+'Sch XI(b)(ii)'!F13+'Sch XI(b)(iii)'!F13+'Sch XI(b)(iv)'!F13+'Sch XI(b)(v)'!F13+'Sch XI(b)(vi)'!F13+'Sch XI(b)(vii)'!F13+'Sch XI(b)(viii)'!F13","v":0},null,null,"brrt_ReinsuranceRecoverable",{"$f":"XBRLMap(D13,$I13&\".\"&$I$7&\".\"&$I$8,$J$7,$J$7,CONFIGURATION!$B$10,\"BMA\",CONFIGURATION!$B$1,\"bscr\",1000)","v":"Mapped"},null,{"$f":"XBRLMap(F13,$I13&\".\"&$I$7&\".\"&$I$8,$L$7,$L$7,CONFIGURATION!$B$10,\"BMA\",CONFIGURATION!$B$1,\"bscr\",1000)","v":"Mapped"},null,null,null,"bma_ScheduleOfReconciliationOfNetLossReservesByLinesOfBusinesslessClaimsPaidInTheReportingYear"]
[null,"Net losses incurred and net loss expenses incurred related to prior years",null,{"$f":"'Sch XI(b)(i)'!D14+'Sch XI(b)(ii)'!D14+'Sch XI(b)(iii)'!D14+'Sch XI(b)(iv)'!D14+'Sch XI(b)(v)'!D14+'Sch XI(b)(vi)'!D14+'Sch XI(b)(vii)'!D14+'Sch XI(b)(viii)'!D14","v":0},null,{"$f":"'Sch XI(b)(i)'!F14+'Sch XI(b)(ii)'!F14+'Sch XI(b)(iii)'!F14+'Sch XI(b)(iv)'!F14+'Sch XI(b)(v)'!F14+'Sch XI(b)(vi)'!F14+'Sch XI(b)(vii)'!F14+'Sch XI(b)(viii)'!F14","v":0},null,null,"brrt_NetLossesAndNetLossExpensesIncurredRelatedToPriorYears",{"$f":"XBRLMap(D14,$I14&\".\"&$I$7&\".\"&$I$8,$J$7,$J$8,CONFIGURATION!$B$10,\"BMA\",CONFIGURATION!$B$1,\"bscr\",1000)","v":"Mapped"},null,{"$f":"XBRLMap(F14,$I14&\".\"&$I$7&\".\"&$I$8,$L$7,$L$8,CONFIGURATION!$B$10,\"BMA\",CONFIGURATION!$B$1,\"bscr\",1000)","v":"Mapped"}]
[null,"Undiscounted net best estimate loss and loss expense provisions at end of year related to prior years.",null,{"$f":"'Sch XI(b)(i)'!D15+'Sch XI(b)(ii)'!D15+'Sch XI(b)(iii)'!D15+'Sch XI(b)(iv)'!D15+'Sch XI(b)(v)'!D15+'Sch XI(b)(vi)'!D15+'Sch XI(b)(vii)'!D15+'Sch XI(b)(viii)'!D15","v":0},null,{"$f":"'Sch XI(b)(i)'!F15+'Sch XI(b)(ii)'!F15+'Sch XI(b)(iii)'!F15+'Sch XI(b)(iv)'!F15+'Sch XI(b)(v)'!F15+'Sch XI(b)(vi)'!F15+'Sch XI(b)(vii)'!F15+'Sch XI(b)(viii)'!F15","v":0},null,null,"brrt_NetIncurredLossesAndLossExpenses",{"$f":"XBRLMap(D15,$I15&\".\"&$I$7&\".\"&$I$8,$J$7,$J$8,CONFIGURATION!$B$10,\"BMA\",CONFIGURATION!$B$1,\"bscr\",1000)","v":"Mapped"},null,{"$f":"XBRLMap(F15,$I15&\".\"&$I$7&\".\"&$I$8,$L$7,$L$8,CONFIGURATION!$B$10,\"BMA\",CONFIGURATION!$B$1,\"bscr\",1000)","v":"Mapped"}]
[null,null,null,null,null,null,null,null,""]
[null,"Net losses incurred and net loss expenses incurred related to current year",null,{"$f":"'Sch XI(b)(i)'!D17+'Sch XI(b)(ii)'!D17+'Sch XI(b)(iii)'!D17+'Sch XI(b)(iv)'!D17+'Sch XI(b)(v)'!D17+'Sch XI(b)(vi)'!D17+'Sch XI(b)(vii)'!D17+'Sch XI(b)(viii)'!D17","v":0},null,{"$f":"'Sch XI(b)(i)'!F17+'Sch XI(b)(ii)'!F17+'Sch XI(b)(iii)'!F17+'Sch XI(b)(iv)'!F17+'Sch XI(b)(v)'!F17+'Sch XI(b)(vi)'!F17+'Sch XI(b)(vii)'!F17+'Sch XI(b)(viii)'!F17","v":0},null,null,""]
[null,"Net losses and loss expenses paid or payable related to current year",null,{"$f":"'Sch XI(b)(i)'!D18+'Sch XI(b)(ii)'!D18+'Sch XI(b)(iii)'!D18+'Sch XI(b)(iv)'!D18+'Sch XI(b)(v)'!D18+'Sch XI(b)(vi)'!D18+'Sch XI(b)(vii)'!D18+'Sch XI(b)(viii)'!D18","v":0},null,{"$f":"'Sch XI(b)(i)'!F18+'Sch XI(b)(ii)'!F18+'Sch XI(b)(iii)'!F18+'Sch XI(b)(iv)'!F18+'Sch XI(b)(v)'!F18+'Sch XI(b)(vi)'!F18+'Sch XI(b)(vii)'!F18+'Sch XI(b)(viii)'!F18","v":0},null,null,"brrt_NetLossesAndLossExpensesPaidOrPayableRelatedToCurrentYear",{"$f":"XBRLMap(D18,$I18&\".\"&$I$7&\".\"&$I$8,$J$7,$J$8,CONFIGURATION!$B$10,\"BMA\",CONFIGURATION!$B$1,\"bscr\",1000)","v":"Mapped"},null,{"$f":"XBRLMap(F18,$I18&\".\"&$I$7&\".\"&$I$8,$L$7,$L$8,CONFIGURATION!$B$10,\"BMA\",CONFIGURATION!$B$1,\"bscr\",1000)","v":"Mapped"}]
[null,"Foreign exchange and other adjustments",null,{"$f":"'Sch XI(b)(i)'!D19+'Sch XI(b)(ii)'!D19+'Sch XI(b)(iii)'!D19+'Sch XI(b)(iv)'!D19+'Sch XI(b)(v)'!D19+'Sch XI(b)(vi)'!D19+'Sch XI(b)(vii)'!D19+'Sch XI(b)(viii)'!D19","v":0},null,{"$f":"'Sch XI(b)(i)'!F19+'Sch XI(b)(ii)'!F19+'Sch XI(b)(iii)'!F19+'Sch XI(b)(iv)'!F19+'Sch XI(b)(v)'!F19+'Sch XI(b)(vi)'!F19+'Sch XI(b)(vii)'!F19+'Sch XI(b)(viii)'!F19","v":0},null,null,"brrt_NetLossAndLossExpenseProvisions",{"$f":"XBRLMap(D19,$I19&\".\"&$I$7&\".\"&$I$8,$J$7,$J$7,CONFIGURATION!$B$10,\"BMA\",CONFIGURATION!$B$1,\"bscr\",1000)","v":"Mapped"},null,{"$f":"XBRLMap(F19,$I19&\".\"&$I$7&\".\"&$I$8,$L$7,$L$7,CONFIGURATION!$B$10,\"BMA\",CONFIGURATION!$B$1,\"bscr\",1000)","v":"Mapped"},null,null,null,"bma_ScheduleOfReconciliationOfNetLossReservesByLinesOfBusinessaddLessNetLossReleasesNetAdverseDevelopmentForPriorYears"]
[null,"Undiscounted net best estimate loss and loss expense provisions at end of year related to current year.",null,{"$f":"'Sch XI(b)(i)'!D20+'Sch XI(b)(ii)'!D20+'Sch XI(b)(iii)'!D20+'Sch XI(b)(iv)'!D20+'Sch XI(b)(v)'!D20+'Sch XI(b)(vi)'!D20+'Sch XI(b)(vii)'!D20+'Sch XI(b)(viii)'!D20","v":0},null,{"$f":"'Sch XI(b)(i)'!F20+'Sch XI(b)(ii)'!F20+'Sch XI(b)(iii)'!F20+'Sch XI(b)(iv)'!F20+'Sch XI(b)(v)'!F20+'Sch XI(b)(vi)'!F20+'Sch XI(b)(vii)'!F20+'Sch XI(b)(viii)'!F20","v":0},null,null,"brrt_NetLossesAndLossExpensesPaidOrPayableRelatedToPriorYears",{"$f":"XBRLMap(D20,$I20&\".\"&$I$7&\".\"&$I$8,$J$7,$J$8,CONFIGURATION!$B$10,\"BMA\",CONFIGURATION!$B$1,\"bscr\",1000)","v":"Mapped"},null,{"$f":"XBRLMap(F20,$I20&\".\"&$I$7&\".\"&$I$8,$L$7,$L$8,CONFIGURATION!$B$10,\"BMA\",CONFIGURATION!$B$1,\"bscr\",1000)","v":"Mapped"}]
[null,null,null,null,null,null,null,null,""]
[null,"Impact of change in discount curve",null,{"$f":"'Sch XI(b)(i)'!D22+'Sch XI(b)(ii)'!D22+'Sch XI(b)(iii)'!D22+'Sch XI(b)(iv)'!D22+'Sch XI(b)(v)'!D22+'Sch XI(b)(vi)'!D22+'Sch XI(b)(vii)'!D22+'Sch XI(b)(viii)'!D22","v":0},null,{"$f":"'Sch XI(b)(i)'!F22+'Sch XI(b)(ii)'!F22+'Sch XI(b)(iii)'!F22+'Sch XI(b)(iv)'!F22+'Sch XI(b)(v)'!F22+'Sch XI(b)(vi)'!F22+'Sch XI(b)(vii)'!F22+'Sch XI(b)(viii)'!F22","v":0},null,null,"brrt_NetLossesAndNetLossExpensesIncurredRelatedToCurrentYear",{"$f":"XBRLMap(D22,$I22&\".\"&$I$7&\".\"&$I$8,$J$7,$J$8,CONFIGURATION!$B$10,\"BMA\",CONFIGURATION!$B$1,\"bscr\",1000)","v":"Mapped"},null,{"$f":"XBRLMap(F22,$I22&\".\"&$I$7&\".\"&$I$8,$L$7,$L$8,CONFIGURATION!$B$10,\"BMA\",CONFIGURATION!$B$1,\"bscr\",1000)","v":"Mapped"},null,null,null,"bma_ScheduleOfReconciliationOfNetLossReservesByLinesOfBusinessaddLessForeignExchangeAdjustments"]
[]
[null,"Net best estimate loss and loss expense provisions at end of year",null,{"$f":"D15+D20+D22","v":0},null,{"$f":"F15+F20+F22","v":0},null,null,"brrt_GrossLossAndLossExpenseProvisions",{"$f":"XBRLMap(D24,$I24&\".\"&$I$7&\".\"&$I$8,$J$8,$J$8,CONFIGURATION!$B$10,\"BMA\",CONFIGURATION!$B$1,\"bscr\",1000)","v":"Mapped"},null,{"$f":"XBRLMap(F24,$I24&\".\"&$I$7&\".\"&$I$8,$L$8,$L$8,CONFIGURATION!$B$10,\"BMA\",CONFIGURATION!$B$1,\"bscr\",1000)","v":"Mapped"}]
[]
[null,null,null,{"$f":"IF(D27=\"TRUE\",HYPERLINK(\"#'Form 1EBS'!F115\",\"TRUE\"),HYPERLINK(\"#'Form 1EBS'!F115\",\"FALSE\"))","v":"TRUE"},null,{"$f":"IF(F27=\"TRUE\",HYPERLINK(\"#'Form 1EBS'!H115\",\"TRUE\"),HYPERLINK(\"#'Form 1EBS'!H115\",\"FALSE\"))","v":"TRUE"}]
[null,null,null,{"$f":"IF(ROUND((D24-'Form 1EBS'!F115),0)=0,\"TRUE\",\"FALSE\")","v":"TRUE"},null,{"$f":"IF(ROUND((F24-'Form 1EBS'!H115),0)=0,\"TRUE\",\"FALSE\")","v":"TRUE"}]
[null,null,null,{"$f":"ROUND('Form 1EBS'!F115-D24,0)","v":0},null,{"$f":"ROUND('Form 1EBS'!H115-F24,0)","v":0}]
[]
[null,null,null,{"$f":"IF(D26=\"False\",\"Does not equal Form 1EBS Line 17(d)\",\"\")","v":""},null,{"$f":"IF(F26=\"False\",\"Does not equal Form 1EBS Line 17(d)\",\"\")","v":""}]

{"sheet":"Sch XI(b)(i)","index":73,"n_rows":24,"n_cols":16,"rows_kept":24,"cut":false,"hidden":false,"merged":[[0,1,0,4],[2,1,2,2]]}
[null,"SCHEDULE OF RECONCILIATION OF NET LOSS RESERVES BY LINES OF BUSINESS \n(LINE 1 - PROPERTY CATASTROPHE)",null,null,null,{"$f":"HYPERLINK(\"#'Index'!A1\",\"Return to Index\")","v":"Return to Index"}]
[null,{"$f":"'Company Information'!C7","v":"Enter Company Name"}]
[null,{"$f":"'Company Information'!C3","v":"2019-12-31"},null,null,null,"SCHEDULE XI(b)(i) (EBS)"]
[null,{"$f":"\"expressed in\"& IF(1000>1,\" ['\"&MID(1000,2,LEN(1000))&\"s]\",\"\")","v":"expressed in ['000s]"},{"$f":"'Form 1EBS'!$C$4","v":"United States Dollars"}]
[]
[]
[null,null,null,null,null,null,null,null,"brrt_LineOfBusinessAxis_brrt_PropertyCatastropheMember",{"$f":"IF(D8=\"\",\"\",TEXT(DATE(YEAR(D8+1)-1,MONTH(D8+1),DAY(D8+1)),\"mm/dd/yyyy\"))","v":"01/01/2019"},null,{"$f":"IF(F8=\"\",\"\",TEXT(DATE(YEAR(F8+1)-1,MONTH(F8+1),DAY(F8+1)),\"mm/dd/yyyy\"))","v":"01/01/2018"},null,null,null,"bma_ScheduleOfReconciliationOfNetLossReservesByLinesOfBusinessAxis"]
[null,null,null,{"$f":"'Schedule XI(b)'!D8","v":"2019-12-31"},null,{"$f":"'Schedule XI(b)'!F8","v":"2018-12-31"},null,null,"brrt_TypeOfContractAxis_brrt_ProportionalMember",{"$f":"IF(D8=\"\",\"\",TEXT(D8,\"mm/dd/yyyy\"))","v":"12/31/2019"},null,{"$f":"IF(F8=\"\",\"\",TEXT(F8,\"mm/dd/yyyy\"))","v":"12/31/2018"},null,null,null,"bma_Line1PropertyCatastropheMember"]
[]
[null,"Net best estimate loss and loss expense provisions at start of year",null,{"$f":"Import!M10035","v":0},null,{"$f":"Import!O10035","v":0},null,null,"brrt_GrossLossAndLossExpenseProvisions",{"$f":"XBRLMap(D10,$I10&\".\"&$I$7&\".\"&$I$8,$J$7,$J$7,CONFIGURATION!$B$10,\"BMA\",CONFIGURATION!$B$1,\"bscr\",1000)","v":"Mapped"},null,{"$f":"XBRLMap(F10,$I10&\".\"&$I$7&\".\"&$I$8,$L$7,$L$7,CONFIGURATION!$B$10,\"BMA\",CONFIGURATION!$B$1,\"bscr\",1000)","v":"Mapped"},null,null,null,"bma_ScheduleOfReconciliationOfNetLossReservesByLinesOfBusinessnetLossAndLossExpenseProvisionsAtBeginningOfYear"]
[null,null,null,null,null,null,null,null,""]
[null,"Unwind of discount (start year discount curve)",null,{"$f":"Import!M10036","v":0},null,{"$f":"Import!O10036","v":0},null,null,"",null,null,null,null,null,null,"bma_ScheduleOfReconciliationOfNetLossReservesByLinesOfBusinessaddCaseReservesAndIbnrRecordedDuringYear"]
[null,"Net losses and loss expenses paid or payable related to prior years",null,{"$f":"Import!M10037","v":0},null,{"$f":"Import!O10037","v":0},null,null,"brrt_ReinsuranceRecoverable",{"$f":"XBRLMap(D13,$I13&\".\"&$I$7&\".\"&$I$8,$J$7,$J$7,CONFIGURATION!$B$10,\"BMA\",CONFIGURATION!$B$1,\"bscr\",1000)","v":"Mapped"},null,{"$f":"XBRLMap(F13,$I13&\".\"&$I$7&\".\"&$I$8,$L$7,$L$7,CONFIGURATION!$B$10,\"BMA\",CONFIGURATION!$B$1,\"bscr\",1000)","v":"Mapped"},null,null,null,"bma_ScheduleOfReconciliationOfNetLossReservesByLinesOfBusinesslessClaimsPaidInTheReportingYear"]
[null,"Net losses incurred and net loss expenses incurred related to prior years",null,{"$f":"Import!M10038","v":0},null,{"$f":"Import!O10038","v":0},null,null,"brrt_NetLossesAndNetLossExpensesIncurredRelatedToPriorYears",{"$f":"XBRLMap(D14,$I14&\".\"&$I$7&\".\"&$I$8,$J$7,$J$8,CONFIGURATION!$B$10,\"BMA\",CONFIGURATION!$B$1,\"bscr\",1000)","v":"Mapped"},null,{"$f":"XBRLMap(F14,$I14&\".\"&$I$7&\".\"&$I$8,$L$7,$L$8,CONFIGURATION!$B$10,\"BMA\",CONFIGURATION!$B$1,\"bscr\",1000)","v":"Mapped"}]
[null,"Undiscounted net best estimate loss and loss expense provisions at end of year related to prior years.",null,{"$f":"SUM(D10:D14)","v":0},null,{"$f":"SUM(F10:F14)","v":0},null,null,"brrt_NetIncurredLossesAndLossExpenses",{"$f":"XBRLMap(D15,$I15&\".\"&$I$7&\".\"&$I$8,$J$7,$J$8,CONFIGURATION!$B$10,\"BMA\",CONFIGURATION!$B$1,\"bscr\",1000)","v":"Mapped"},null,{"$f":"XBRLMap(F15,$I15&\".\"&$I$7&\".\"&$I$8,$L$7,$L$8,CONFIGURATION!$B$10,\"BMA\",CONFIGURATION!$B$1,\"bscr\",1000)","v":"Mapped"}]
[null,null,null,null,null,null,null,null,""]
[null,"Net losses incurred and net loss expenses incurred related to current year",null,{"$f":"Import!M10040","v":0},null,{"$f":"Import!O10040","v":0},null,null,""]
[null,"Net losses and loss expenses paid or payable related to current year",null,{"$f":"Import!M10041","v":0},null,{"$f":"Import!O10041","v":0},null,null,"brrt_NetLossesAndLossExpensesPaidOrPayableRelatedToCurrentYear",{"$f":"XBRLMap(D18,$I18&\".\"&$I$7&\".\"&$I$8,$J$7,$J$8,CONFIGURATION!$B$10,\"BMA\",CONFIGURATION!$B$1,\"bscr\",1000)","v":"Mapped"},null,{"$f":"XBRLMap(F18,$I18&\".\"&$I$7&\".\"&$I$8,$L$7,$L$8,CONFIGURATION!$B$10,\"BMA\",CONFIGURATION!$B$1,\"bscr\",1000)","v":"Mapped"}]
[null,"Foreign exchange and other adjustments",null,{"$f":"Import!M10042","v":0},null,{"$f":"Import!O10042","v":0},null,null,"brrt_NetLossAndLossExpenseProvisions",{"$f":"XBRLMap(D19,$I19&\".\"&$I$7&\".\"&$I$8,$J$7,$J$7,CONFIGURATION!$B$10,\"BMA\",CONFIGURATION!$B$1,\"bscr\",1000)","v":"Mapped"},null,{"$f":"XBRLMap(F19,$I19&\".\"&$I$7&\".\"&$I$8,$L$7,$L$7,CONFIGURATION!$B$10,\"BMA\",CONFIGURATION!$B$1,\"bscr\",1000)","v":"Mapped"},null,null,null,"bma_ScheduleOfReconciliationOfNetLossReservesByLinesOfBusinessaddLessNetLossReleasesNetAdverseDevelopmentForPriorYears"]
[null,"Undiscounted net best estimate loss and loss expense provisions at end of year related to current year.",null,{"$f":"SUM(D17:D19)","v":0},null,{"$f":"SUM(F17:F19)","v":0},null,null,"brrt_NetLossesAndLossExpensesPaidOrPayableRelatedToPriorYears",{"$f":"XBRLMap(D20,$I20&\".\"&$I$7&\".\"&$I$8,$J$7,$J$8,CONFIGURATION!$B$10,\"BMA\",CONFIGURATION!$B$1,\"bscr\",1000)","v":"Mapped"},null,{"$f":"XBRLMap(F20,$I20&\".\"&$I$7&\".\"&$I$8,$L$7,$L$8,CONFIGURATION!$B$10,\"BMA\",CONFIGURATION!$B$1,\"bscr\",1000)","v":"Mapped"}]
[null,null,null,null,null,null,null,null,""]
[null,"Impact of change in discount curve",null,{"$f":"Import!M10044","v":0},null,{"$f":"Import!O10044","v":0},null,null,"brrt_NetLossesAndNetLossExpensesIncurredRelatedToCurrentYear",{"$f":"XBRLMap(D22,$I22&\".\"&$I$7&\".\"&$I$8,$J$7,$J$8,CONFIGURATION!$B$10,\"BMA\",CONFIGURATION!$B$1,\"bscr\",1000)","v":"Mapped"},null,{"$f":"XBRLMap(F22,$I22&\".\"&$I$7&\".\"&$I$8,$L$7,$L$8,CONFIGURATION!$B$10,\"BMA\",CONFIGURATION!$B$1,\"bscr\",1000)","v":"Mapped"},null,null,null,"bma_ScheduleOfReconciliationOfNetLossReservesByLinesOfBusinessaddLessForeignExchangeAdjustments"]
[null,null,null,null,null,null,null,null,""]
[null,"Net best estimate loss and loss expense provisions at end of year",null,{"$f":"D15+D20+D22","v":0},null,{"$f":"F15+F20+F22","v":0},null,null,"brrt_GrossLossAndLossExpenseProvisions",{"$f":"XBRLMap(D24,$I24&\".\"&$I$7&\".\"&$I$8,$J$8,$J$8,CONFIGURATION!$B$10,\"BMA\",CONFIGURATION!$B$1,\"bscr\",1000)","v":"Mapped"},null,{"$f":"XBRLMap(F24,$I24&\".\"&$I$7&\".\"&$I$8,$L$8,$L$8,CONFIGURATION!$B$10,\"BMA\",CONFIGURATION!$B$1,\"bscr\",1000)","v":"Mapped"}]

{"sheet":"Sch XI(b)(ii)","index":74,"n_rows":24,"n_cols":16,"rows_kept":24,"cut":false,"hidden":false,"merged":[[0,1,0,4]]}
[null,"SCHEDULE OF RECONCILIATION OF NET LOSS RESERVES BY LINES OF BUSINESS\n(LINE 2 - PROPERTY)",null,null,null,{"$f":"HYPERLINK(\"#'Index'!A1\",\"Return to Index\")","v":"Return to Index"}]
[null,{"$f":"'Company Information'!C7","v":"Enter Company Name"}]
[null,{"$f":"'Company Information'!C3","v":"2019-12-31"},null,null,null,"SCHEDULE XI(b)(ii) (EBS)"]
[null,{"$f":"\"expressed in\"& IF(1000>1,\" ['\"&MID(1000,2,LEN(1000))&\"s]\",\"\")","v":"expressed in ['000s]"},{"$f":"'Form 1EBS'!$C$4","v":"United States Dollars"}]
[]
[]
[null,null,null,null,null,null,null,null,"brrt_LineOfBusinessAxis_brrt_PropertyMember",{"$f":"IF(D8=\"\",\"\",TEXT(DATE(YEAR(D8+1)-1,MONTH(D8+1),DAY(D8+1)),\"mm/dd/yyyy\"))","v":"01/01/2019"},null,{"$f":"IF(F8=\"\",\"\",TEXT(DATE(YEAR(F8+1)-1,MONTH(F8+1),DAY(F8+1)),\"mm/dd/yyyy\"))","v":"01/01/2018"},null,null,null,"bma_ScheduleOfReconciliationOfNetLossReservesByLinesOfBusinessAxis"]
[null,null,null,{"$f":"'Sch XI(b)(i)'!D8","v":"2019-12-31"},null,{"$f":"'Sch XI(b)(i)'!F8","v":"2018-12-31"},null,null,"brrt_TypeOfContractAxis_brrt_ProportionalMember",{"$f":"IF(D8=\"\",\"\",TEXT(D8,\"mm/dd/yyyy\"))","v":"12/31/2019"},null,{"$f":"IF(F8=\"\",\"\",TEXT(F8,\"mm/dd/yyyy\"))","v":"12/31/2018"},null,null,null,"bma_Line2PropertyMember"]
[]
[null,"Net best estimate loss and loss expense provisions at start of year",null,{"$f":"Import!M10046","v":0},null,{"$f":"Import!O10046","v":0},null,null,"brrt_GrossLossAndLossExpenseProvisions",{"$f":"XBRLMap(D10,$I10&\".\"&$I$7&\".\"&$I$8,$J$7,$J$7,CONFIGURATION!$B$10,\"BMA\",CONFIGURATION!$B$1,\"bscr\",1000)","v":"Mapped"},null,{"$f":"XBRLMap(F10,$I10&\".\"&$I$7&\".\"&$I$8,$L$7,$L$7,CONFIGURATION!$B$10,\"BMA\",CONFIGURATION!$B$1,\"bscr\",1000)","v":"Mapped"},null,null,null,"bma_ScheduleOfReconciliationOfNetLossReservesByLinesOfBusinessnetLossAndLossExpenseProvisionsAtBeginningOfYear"]
[null,null,null,null,null,null,null,null,""]
[null,"Unwind of discount (start year discount curve)",null,{"$f":"Import!M10047","v":0},null,{"$f":"Import!O10047","v":0},null,null,"brrt_NetLossAndLossExpenseProvisions",{"$f":"XBRLMap(D12,$I12&\".\"&$I$7&\".\"&$I$8,$J$7,$J$7,CONFIGURATION!$B$10,\"BMA\",CONFIGURATION!$B$1,\"bscr\",1000)","v":"Mapped"},null,{"$f":"XBRLMap(F12,$I12&\".\"&$I$7&\".\"&$I$8,$L$7,$L$7,CONFIGURATION!$B$10,\"BMA\",CONFIGURATION!$B$1,\"bscr\",1000)","v":"Mapped"},null,null,null,"bma_ScheduleOfReconciliationOfNetLossReservesByLinesOfBusinessaddLessNetLossReleasesNetAdverseDevelopmentForPriorYears"]
[null,"Net losses and loss expenses paid or payable related to prior years",null,{"$f":"Import!M10048","v":0},null,{"$f":"Import!O10048","v":0},null,null,"brrt_ReinsuranceRecoverable",{"$f":"XBRLMap(D13,$I13&\".\"&$I$7&\".\"&$I$8,$J$7,$J$7,CONFIGURATION!$B$10,\"BMA\",CONFIGURATION!$B$1,\"bscr\",1000)","v":"Mapped"},null,{"$f":"XBRLMap(F13,$I13&\".\"&$I$7&\".\"&$I$8,$L$7,$L$7,CONFIGURATION!$B$10,\"BMA\",CONFIGURATION!$B$1,\"bscr\",1000)","v":"Mapped"},null,null,null,"bma_ScheduleOfReconciliationOfNetLossReservesByLinesOfBusinesslessClaimsPaidInTheReportingYear"]
[null,"Net losses incurred and net loss expenses incurred related to prior years",null,{"$f":"Import!M10049","v":0},null,{"$f":"Import!O10049","v":0},null,null,"",null,null,null,null,null,null,"bma_ScheduleOfReconciliationOfNetLossReservesByLinesOfBusinessaddCaseReservesAndIbnrRecordedDuringYear"]
[null,"Undiscounted net best estimate loss and loss expense provisions at end of year related to prior years.",null,{"$f":"SUM(D10:D14)","v":0},null,{"$f":"SUM(F10:F14)","v":0},null,null,""]
[null,null,null,null,null,null,null,null,"brrt_NetLossesAndNetLossExpensesIncurredRelatedToCurrentYear",{"$f":"XBRLMap(D16,$I16&\".\"&$I$7&\".\"&$I$8,$J$7,$J$8,CONFIGURATION!$B$10,\"BMA\",CONFIGURATION!$B$1,\"bscr\",1000)","v":"Mapped"},null,{"$f":"XBRLMap(F16,$I16&\".\"&$I$7&\".\"&$I$8,$L$7,$L$8,CONFIGURATION!$B$10,\"BMA\",CONFIGURATION!$B$1,\"bscr\",1000)","v":"Mapped"},null,null,null,"bma_ScheduleOfReconciliationOfNetLossReservesByLinesOfBusinessaddLessForeignExchangeAdjustments"]
[null,"Net losses incurred and net loss expenses incurred related to current year",null,{"$f":"Import!M10051","v":0},null,{"$f":"Import!O10051","v":0},null,null,"brrt_NetLossesAndNetLossExpensesIncurredRelatedToPriorYears",{"$f":"XBRLMap(D17,$I17&\".\"&$I$7&\".\"&$I$8,$J$7,$J$8,CONFIGURATION!$B$10,\"BMA\",CONFIGURATION!$B$1,\"bscr\",1000)","v":"Mapped"},null,{"$f":"XBRLMap(F17,$I17&\".\"&$I$7&\".\"&$I$8,$L$7,$L$8,CONFIGURATION!$B$10,\"BMA\",CONFIGURATION!$B$1,\"bscr\",1000)","v":"Mapped"}]
[null,"Net losses and loss expenses paid or payable related to current year",null,{"$f":"Import!M10052","v":0},null,{"$f":"Import!O10052","v":0},null,null,"",null,null,null,null,null,null,"bma_ScheduleOfReconciliationOfNetLossReservesByLinesOfBusinessnetLossAndLossExpenseProvisionsAtEndOfYear"]
[null,"Foreign exchange and other adjustments",null,{"$f":"Import!M10053","v":0},null,{"$f":"Import!O10053","v":0},null,null,""]
[null,"Undiscounted net best estimate loss and loss expense provisions at end of year related to current year.",null,{"$f":"SUM(D17:D19)","v":0},null,{"$f":"SUM(F17:F19)","v":0},null,null,"brrt_NetIncurredLossesAndLossExpenses",{"$f":"XBRLMap(D20,$I20&\".\"&$I$7&\".\"&$I$8,$J$7,$J$8,CONFIGURATION!$B$10,\"BMA\",CONFIGURATION!$B$1,\"bscr\",1000)","v":"Mapped"},null,{"$f":"XBRLMap(F20,$I20&\".\"&$I$7&\".\"&$I$8,$L$7,$L$8,CONFIGURATION!$B$10,\"BMA\",CONFIGURATION!$B$1,\"bscr\",1000)","v":"Mapped"}]
[null,null,null,null,null,null,null,null,""]
[null,"Impact of change in discount curve",null,{"$f":"Import!M10055","v":0},null,{"$f":"Import!O10055","v":0},null,null,""]
[null,null,null,null,null,null,null,null,""]
[null,"Net best estimate loss and loss expense provisions at end of year",null,{"$f":"D15+D20+D22","v":0},null,{"$f":"F15+F20+F22","v":0},null,null,"brrt_GrossLossAndLossExpenseProvisions",{"$f":"XBRLMap(D24,$I24&\".\"&$I$7&\".\"&$I$8,$J$8,$J$8,CONFIGURATION!$B$10,\"BMA\",CONFIGURATION!$B$1,\"bscr\",1000)","v":"Mapped"},null,{"$f":"XBRLMap(F24,$I24&\".\"&$I$7&\".\"&$I$8,$L$8,$L$8,CONFIGURATION!$B$10,\"BMA\",CONFIGURATION!$B$1,\"bscr\",1000)","v":"Mapped"}]

{"sheet":"Sch XI(b)(iii)","index":75,"n_rows":24,"n_cols":16,"rows_kept":24,"cut":false,"hidden":false,"merged":[[0,1,0,4]]}
[null,"SCHEDULE OF RECONCILIATION OF NET LOSS RESERVES BY LINES OF BUSINESS\n(LINE 3 - PROPERTY NON-PROPORTIONAL)",null,null,null,{"$f":"HYPERLINK(\"#'Index'!A1\",\"Return to Index\")","v":"Return to Index"}]
[null,{"$f":"'Company Information'!C7","v":"Enter Company Name"}]
[null,{"$f":"'Company Information'!C3","v":"2019-12-31"},null,null,null,"SCHEDULE XI(b)(iii) (EBS)"]
[null,{"$f":"\"expressed in\"& IF(1000>1,\" ['\"&MID(1000,2,LEN(1000))&\"s]\",\"\")","v":"expressed in ['000s]"},{"$f":"'Form 1EBS'!$C$4","v":"United States Dollars"}]
[]
[]
[null,null,null,null,null,null,null,null,"brrt_LineOfBusinessAxis_brrt_PropertyMember",{"$f":"IF(D8=\"\",\"\",TEXT(DATE(YEAR(D8+1)-1,MONTH(D8+1),DAY(D8+1)),\"mm/dd/yyyy\"))","v":"01/01/2019"},null,{"$f":"IF(F8=\"\",\"\",TEXT(DATE(YEAR(F8+1)-1,MONTH(F8+1),DAY(F8+1)),\"mm/dd/yyyy\"))","v":"01/01/2018"},null,null,null,"bma_ScheduleOfReconciliationOfNetLossReservesByLinesOfBusinessAxis"]
[null,null,null,{"$f":"'Sch XI(b)(i)'!D8","v":"2019-12-31"},null,{"$f":"'Sch XI(b)(i)'!F8","v":"2018-12-31"},null,null,"brrt_TypeOfContractAxis_brrt_NonProportionalMember",{"$f":"IF(D8=\"\",\"\",TEXT(D8,\"mm/dd/yyyy\"))","v":"12/31/2019"},null,{"$f":"IF(F8=\"\",\"\",TEXT(F8,\"mm/dd/yyyy\"))","v":"12/31/2018"},null,null,null,"bma_Line3PropertyNonproportionalMember"]
[]
[null,"Net best estimate loss and loss expense provisions at start of year",null,{"$f":"Import!M10057","v":0},null,{"$f":"Import!O10057","v":0},null,null,"brrt_GrossLossAndLossExpenseProvisions",{"$f":"XBRLMap(D10,$I10&\".\"&$I$7&\".\"&$I$8,$J$7,$J$7,CONFIGURATION!$B$10,\"BMA\",CONFIGURATION!$B$1,\"bscr\",1000)","v":"Mapped"},null,{"$f":"XBRLMap(F10,$I10&\".\"&$I$7&\".\"&$I$8,$L$7,$L$7,CONFIGURATION!$B$10,\"BMA\",CONFIGURATION!$B$1,\"bscr\",1000)","v":"Mapped"},null,null,null,"bma_ScheduleOfReconciliationOfNetLossReservesByLinesOfBusinessnetLossAndLossExpenseProvisionsAtBeginningOfYear"]
[null,null,null,null,null,null,null,null,""]
[null,"Unwind of discount (start year discount curve)",null,{"$f":"Import!M10058","v":0},null,{"$f":"Import!O10058","v":0},null,null,"brrt_NetLossAndLossExpenseProvisions",{"$f":"XBRLMap(D12,$I12&\".\"&$I$7&\".\"&$I$8,$J$7,$J$7,CONFIGURATION!$B$10,\"BMA\",CONFIGURATION!$B$1,\"bscr\",1000)","v":"Mapped"},null,{"$f":"XBRLMap(F12,$I12&\".\"&$I$7&\".\"&$I$8,$L$7,$L$7,CONFIGURATION!$B$10,\"BMA\",CONFIGURATION!$B$1,\"bscr\",1000)","v":"Mapped"},null,null,null,"bma_ScheduleOfReconciliationOfNetLossReservesByLinesOfBusinessaddLessNetLossReleasesNetAdverseDevelopmentForPriorYears"]
[null,"Net losses and loss expenses paid or payable related to prior years",null,{"$f":"Import!M10059","v":0},null,{"$f":"Import!O10059","v":0},null,null,"brrt_ReinsuranceRecoverable",{"$f":"XBRLMap(D13,$I13&\".\"&$I$7&\".\"&$I$8,$J$7,$J$7,CONFIGURATION!$B$10,\"BMA\",CONFIGURATION!$B$1,\"bscr\",1000)","v":"Mapped"},null,{"$f":"XBRLMap(F13,$I13&\".\"&$I$7&\".\"&$I$8,$L$7,$L$7,CONFIGURATION!$B$10,\"BMA\",CONFIGURATION!$B$1,\"bscr\",1000)","v":"Mapped"},null,null,null,"bma_ScheduleOfReconciliationOfNetLossReservesByLinesOfBusinesslessClaimsPaidInTheReportingYear"]
[null,"Net losses incurred and net loss expenses incurred related to prior years",null,{"$f":"Import!M10060","v":0},null,{"$f":"Import!O10060","v":0},null,null,"",null,null,null,null,null,null,"bma_ScheduleOfReconciliationOfNetLossReservesByLinesOfBusinessaddCaseReservesAndIbnrRecordedDuringYear"]
[null,"Undiscounted net best estimate loss and loss expense provisions at end of year related to prior years.",null,{"$f":"SUM(D10:D14)","v":0},null,{"$f":"SUM(F10:F14)","v":0},null,null,""]
[null,null,null,null,null,null,null,null,"brrt_NetLossesAndNetLossExpensesIncurredRelatedToCurrentYear",{"$f":"XBRLMap(D16,$I16&\".\"&$I$7&\".\"&$I$8,$J$7,$J$8,CONFIGURATION!$B$10,\"BMA\",CONFIGURATION!$B$1,\"bscr\",1000)","v":"Mapped"},null,{"$f":"XBRLMap(F16,$I16&\".\"&$I$7&\".\"&$I$8,$L$7,$L$8,CONFIGURATION!$B$10,\"BMA\",CONFIGURATION!$B$1,\"bscr\",1000)","v":"Mapped"},null,null,null,"bma_ScheduleOfReconciliationOfNetLossReservesByLinesOfBusinessaddLessForeignExchangeAdjustments"]
[null,"Net losses incurred and net loss expenses incurred related to current year",null,{"$f":"Import!M10062","v":0},null,{"$f":"Import!O10062","v":0},null,null,"brrt_NetLossesAndNetLossExpensesIncurredRelatedToPriorYears",{"$f":"XBRLMap(D17,$I17&\".\"&$I$7&\".\"&$I$8,$J$7,$J$8,CONFIGURATION!$B$10,\"BMA\",CONFIGURATION!$B$1,\"bscr\",1000)","v":"Mapped"},null,{"$f":"XBRLMap(F17,$I17&\".\"&$I$7&\".\"&$I$8,$L$7,$L$8,CONFIGURATION!$B$10,\"BMA\",CONFIGURATION!$B$1,\"bscr\",1000)","v":"Mapped"}]
[null,"Net losses and loss expenses paid or payable related to current year",null,{"$f":"Import!M10063","v":0},null,{"$f":"Import!O10063","v":0},null,null,"",null,null,null,null,null,null,"bma_ScheduleOfReconciliationOfNetLossReservesByLinesOfBusinessnetLossAndLossExpenseProvisionsAtEndOfYear"]
[null,"Foreign exchange and other adjustments",null,{"$f":"Import!M10064","v":0},null,{"$f":"Import!O10064","v":0},null,null,""]
[null,"Undiscounted net best estimate loss and loss expense provisions at end of year related to current year.",null,{"$f":"SUM(D17:D19)","v":0},null,{"$f":"SUM(F17:F19)","v":0},null,null,"brrt_NetIncurredLossesAndLossExpenses",{"$f":"XBRLMap(D20,$I20&\".\"&$I$7&\".\"&$I$8,$J$7,$J$8,CONFIGURATION!$B$10,\"BMA\",CONFIGURATION!$B$1,\"bscr\",1000)","v":"Mapped"},null,{"$f":"XBRLMap(F20,$I20&\".\"&$I$7&\".\"&$I$8,$L$7,$L$8,CONFIGURATION!$B$10,\"BMA\",CONFIGURATION!$B$1,\"bscr\",1000)","v":"Mapped"}]
[null,null,null,null,null,null,null,null,""]
[null,"Impact of change in discount curve",null,{"$f":"Import!M10066","v":0},null,{"$f":"Import!O10066","v":0},null,null,""]
[null,null,null,null,null,null,null,null,""]
[null,"Net best estimate loss and loss expense provisions at end of year",null,{"$f":"D15+D20+D22","v":0},null,{"$f":"F15+F20+F22","v":0},null,null,"brrt_GrossLossAndLossExpenseProvisions",{"$f":"XBRLMap(D24,$I24&\".\"&$I$7&\".\"&$I$8,$J$8,$J$8,CONFIGURATION!$B$10,\"BMA\",CONFIGURATION!$B$1,\"bscr\",1000)","v":"Mapped"},null,{"$f":"XBRLMap(F24,$I24&\".\"&$I$7&\".\"&$I$8,$L$8,$L$8,CONFIGURATION!$B$10,\"BMA\",CONFIGURATION!$B$1,\"bscr\",1000)","v":"Mapped"}]

{"sheet":"Sch XI(b)(iv)","index":76,"n_rows":24,"n_cols":16,"rows_kept":24,"cut":false,"hidden":false,"merged":[[0,1,0,4]]}
[null,"SCHEDULE OF RECONCILIATION OF NET LOSS RESERVES BY LINES OF BUSINESS \n(LINE 4 - CASUALTY)",null,null,null,{"$f":"HYPERLINK(\"#'Index'!A1\",\"Return to Index\")","v":"Return to Index"}]
[null,{"$f":"'Company Information'!C7","v":"Enter Company Name"}]
[null,{"$f":"'Company Information'!C3","v":"2019-12-31"},null,null,null,"SCHEDULE XI(b)(iv) (EBS)"]
[null,{"$f":"\"expressed in\"& IF(1000>1,\" ['\"&MID(1000,2,LEN(1000))&\"s]\",\"\")","v":"expressed in ['000s]"},{"$f":"'Form 1EBS'!$C$4","v":"United States Dollars"}]
[]
[]
[null,null,null,null,null,null,null,null,"brrt_LineOfBusinessAxis_brrt_CasualtyMember",{"$f":"IF(D8=\"\",\"\",TEXT(DATE(YEAR(D8+1)-1,MONTH(D8+1),DAY(D8+1)),\"mm/dd/yyyy\"))","v":"01/01/2019"},null,{"$f":"IF(F8=\"\",\"\",TEXT(DATE(YEAR(F8+1)-1,MONTH(F8+1),DAY(F8+1)),\"mm/dd/yyyy\"))","v":"01/01/2018"},null,null,null,"bma_ScheduleOfReconciliationOfNetLossReservesByLinesOfBusinessAxis"]
[null,null,null,{"$f":"'Sch XI(b)(i)'!D8","v":"2019-12-31"},null,{"$f":"'Sch XI(b)(i)'!F8","v":"2018-12-31"},null,null,"brrt_TypeOfContractAxis_brrt_ProportionalMember",{"$f":"IF(D8=\"\",\"\",TEXT(D8,\"mm/dd/yyyy\"))","v":"12/31/2019"},null,{"$f":"IF(F8=\"\",\"\",TEXT(F8,\"mm/dd/yyyy\"))","v":"12/31/2018"},null,null,null,"bma_Line4CasualtyMember"]
[]
[null,"Net best estimate loss and loss expense provisions at start of year",null,{"$f":"Import!M10068","v":0},null,{"$f":"Import!O10068","v":0},null,null,"brrt_GrossLossAndLossExpenseProvisions",{"$f":"XBRLMap(D10,$I10&\".\"&$I$7&\".\"&$I$8,$J$7,$J$7,CONFIGURATION!$B$10,\"BMA\",CONFIGURATION!$B$1,\"bscr\",1000)","v":"Mapped"},null,{"$f":"XBRLMap(F10,$I10&\".\"&$I$7&\".\"&$I$8,$L$7,$L$7,CONFIGURATION!$B$10,\"BMA\",CONFIGURATION!$B$1,\"bscr\",1000)","v":"Mapped"},null,null,null,"bma_ScheduleOfReconciliationOfNetLossReservesByLinesOfBusinessnetLossAndLossExpenseProvisionsAtBeginningOfYear"]
[null,null,null,null,null,null,null,null,""]
[null,"Unwind of discount (start year discount curve)",null,{"$f":"Import!M10069","v":0},null,{"$f":"Import!O10069","v":0},null,null,"brrt_NetLossAndLossExpenseProvisions",{"$f":"XBRLMap(D12,$I12&\".\"&$I$7&\".\"&$I$8,$J$7,$J$7,CONFIGURATION!$B$10,\"BMA\",CONFIGURATION!$B$1,\"bscr\",1000)","v":"Mapped"},null,{"$f":"XBRLMap(F12,$I12&\".\"&$I$7&\".\"&$I$8,$L$7,$L$7,CONFIGURATION!$B$10,\"BMA\",CONFIGURATION!$B$1,\"bscr\",1000)","v":"Mapped"},null,null,null,"bma_ScheduleOfReconciliationOfNetLossReservesByLinesOfBusinessaddLessNetLossReleasesNetAdverseDevelopmentForPriorYears"]
[null,"Net losses and loss expenses paid or payable related to prior years",null,{"$f":"Import!M10070","v":0},null,{"$f":"Import!O10070","v":0},null,null,"brrt_ReinsuranceRecoverable",{"$f":"XBRLMap(D13,$I13&\".\"&$I$7&\".\"&$I$8,$J$7,$J$7,CONFIGURATION!$B$10,\"BMA\",CONFIGURATION!$B$1,\"bscr\",1000)","v":"Mapped"},null,{"$f":"XBRLMap(F13,$I13&\".\"&$I$7&\".\"&$I$8,$L$7,$L$7,CONFIGURATION!$B$10,\"BMA\",CONFIGURATION!$B$1,\"bscr\",1000)","v":"Mapped"},null,null,null,"bma_ScheduleOfReconciliationOfNetLossReservesByLinesOfBusinesslessClaimsPaidInTheReportingYear"]
[null,"Net losses incurred and net loss expenses incurred related to prior years",null,{"$f":"Import!M10071","v":0},null,{"$f":"Import!O10071","v":0},null,null,"",null,null,null,null,null,null,"bma_ScheduleOfReconciliationOfNetLossReservesByLinesOfBusinessaddCaseReservesAndIbnrRecordedDuringYear"]
[null,"Undiscounted net best estimate loss and loss expense provisions at end of year related to prior years.",null,{"$f":"SUM(D10:D14)","v":0},null,{"$f":"SUM(F10:F14)","v":0},null,null,""]
[null,null,null,null,null,null,null,null,"brrt_NetLossesAndNetLossExpensesIncurredRelatedToCurrentYear",{"$f":"XBRLMap(D16,$I16&\".\"&$I$7&\".\"&$I$8,$J$7,$J$8,CONFIGURATION!$B$10,\"BMA\",CONFIGURATION!$B$1,\"bscr\",1000)","v":"Mapped"},null,{"$f":"XBRLMap(F16,$I16&\".\"&$I$7&\".\"&$I$8,$L$7,$L$8,CONFIGURATION!$B$10,\"BMA\",CONFIGURATION!$B$1,\"bscr\",1000)","v":"Mapped"},null,null,null,"bma_ScheduleOfReconciliationOfNetLossReservesByLinesOfBusinessaddLessForeignExchangeAdjustments"]
[null,"Net losses incurred and net loss expenses incurred related to current year",null,{"$f":"Import!M10073","v":0},null,{"$f":"Import!O10073","v":0},null,null,"brrt_NetLossesAndNetLossExpensesIncurredRelatedToPriorYears",{"$f":"XBRLMap(D17,$I17&\".\"&$I$7&\".\"&$I$8,$J$7,$J$8,CONFIGURATION!$B$10,\"BMA\",CONFIGURATION!$B$1,\"bscr\",1000)","v":"Mapped"},null,{"$f":"XBRLMap(F17,$I17&\".\"&$I$7&\".\"&$I$8,$L$7,$L$8,CONFIGURATION!$B$10,\"BMA\",CONFIGURATION!$B$1,\"bscr\",1000)","v":"Mapped"}]
[null,"Net losses and loss expenses paid or payable related to current year",null,{"$f":"Import!M10074","v":0},null,{"$f":"Import!O10074","v":0},null,null,"",null,null,null,null,null,null,"bma_ScheduleOfReconciliationOfNetLossReservesByLinesOfBusinessnetLossAndLossExpenseProvisionsAtEndOfYear"]
[null,"Foreign exchange and other adjustments",null,{"$f":"Import!M10075","v":0},null,{"$f":"Import!O10075","v":0},null,null,""]
[null,"Undiscounted net best estimate loss and loss expense provisions at end of year related to current year.",null,{"$f":"SUM(D17:D19)","v":0},null,{"$f":"SUM(F17:F19)","v":0},null,null,"brrt_NetIncurredLossesAndLossExpenses",{"$f":"XBRLMap(D20,$I20&\".\"&$I$7&\".\"&$I$8,$J$7,$J$8,CONFIGURATION!$B$10,\"BMA\",CONFIGURATION!$B$1,\"bscr\",1000)","v":"Mapped"},null,{"$f":"XBRLMap(F20,$I20&\".\"&$I$7&\".\"&$I$8,$L$7,$L$8,CONFIGURATION!$B$10,\"BMA\",CONFIGURATION!$B$1,\"bscr\",1000)","v":"Mapped"}]
[null,null,null,null,null,null,null,null,""]
[null,"Impact of change in discount curve",null,{"$f":"Import!M10077","v":0},null,{"$f":"Import!O10077","v":0},null,null,""]
[]
[null,"Net best estimate loss and loss expense provisions at end of year",null,{"$f":"D15+D20+D22","v":0},null,{"$f":"F15+F20+F22","v":0},null,null,"brrt_GrossLossAndLossExpenseProvisions",{"$f":"XBRLMap(D24,$I24&\".\"&$I$7&\".\"&$I$8,$J$8,$J$8,CONFIGURATION!$B$10,\"BMA\",CONFIGURATION!$B$1,\"bscr\",1000)","v":"Mapped"},null,{"$f":"XBRLMap(F24,$I24&\".\"&$I$7&\".\"&$I$8,$L$8,$L$8,CONFIGURATION!$B$10,\"BMA\",CONFIGURATION!$B$1,\"bscr\",1000)","v":"Mapped"}]

{"sheet":"Sch XI(b)(v)","index":77,"n_rows":24,"n_cols":16,"rows_kept":24,"cut":false,"hidden":false,"merged":[[0,1,0,4]]}
[null,"SCHEDULE OF RECONCILIATION OF NET LOSS RESERVES BY LINES OF BUSINESS \n(LINE 5 - CASUALTY NON-PROPORTIONAL)",null,null,null,{"$f":"HYPERLINK(\"#'Index'!A1\",\"Return to Index\")","v":"Return to Index"}]
[null,{"$f":"'Company Information'!C7","v":"Enter Company Name"}]
[null,{"$f":"'Company Information'!C3","v":"2019-12-31"},null,null,null,"SCHEDULE XI(b)(v) (EBS)"]
[null,{"$f":"\"expressed in\"& IF(1000>1,\" ['\"&MID(1000,2,LEN(1000))&\"s]\",\"\")","v":"expressed in ['000s]"},{"$f":"'Form 1EBS'!$C$4","v":"United States Dollars"}]
[]
[]
[null,null,null,null,null,null,null,null,"brrt_LineOfBusinessAxis_brrt_CasualtyMember",{"$f":"IF(D8=\"\",\"\",TEXT(DATE(YEAR(D8+1)-1,MONTH(D8+1),DAY(D8+1)),\"mm/dd/yyyy\"))","v":"01/01/2019"},null,{"$f":"IF(F8=\"\",\"\",TEXT(DATE(YEAR(F8+1)-1,MONTH(F8+1),DAY(F8+1)),\"mm/dd/yyyy\"))","v":"01/01/2018"},null,null,null,"bma_ScheduleOfReconciliationOfNetLossReservesByLinesOfBusinessAxis"]
[null,null,null,{"$f":"'Sch XI(b)(i)'!D8","v":"2019-12-31"},null,{"$f":"'Sch XI(b)(i)'!F8","v":"2018-12-31"},null,null,"brrt_TypeOfContractAxis_brrt_NonProportionalMember",{"$f":"IF(D8=\"\",\"\",TEXT(D8,\"mm/dd/yyyy\"))","v":"12/31/2019"},null,{"$f":"IF(F8=\"\",\"\",TEXT(F8,\"mm/dd/yyyy\"))","v":"12/31/2018"},null,null,null,"bma_Line5CasualtyNonproportionalMember"]
[]
[null,"Net best estimate loss and loss expense provisions at start of year",null,{"$f":"Import!M10079","v":0},null,{"$f":"Import!O10079","v":0},null,null,"brrt_GrossLossAndLossExpenseProvisions",{"$f":"XBRLMap(D10,$I10&\".\"&$I$7&\".\"&$I$8,$J$7,$J$7,CONFIGURATION!$B$10,\"BMA\",CONFIGURATION!$B$1,\"bscr\",1000)","v":"Mapped"},null,{"$f":"XBRLMap(F10,$I10&\".\"&$I$7&\".\"&$I$8,$L$7,$L$7,CONFIGURATION!$B$10,\"BMA\",CONFIGURATION!$B$1,\"bscr\",1000)","v":"Mapped"},null,null,null,"bma_ScheduleOfReconciliationOfNetLossReservesByLinesOfBusinessnetLossAndLossExpenseProvisionsAtBeginningOfYear"]
[null,null,null,null,null,null,null,null,""]
[null,"Unwind of discount (start year discount curve)",null,{"$f":"Import!M10080","v":0},null,{"$f":"Import!O10080","v":0},null,null,"brrt_NetLossAndLossExpenseProvisions",{"$f":"XBRLMap(D12,$I12&\".\"&$I$7&\".\"&$I$8,$J$7,$J$7,CONFIGURATION!$B$10,\"BMA\",CONFIGURATION!$B$1,\"bscr\",1000)","v":"Mapped"},null,{"$f":"XBRLMap(F12,$I12&\".\"&$I$7&\".\"&$I$8,$L$7,$L$7,CONFIGURATION!$B$10,\"BMA\",CONFIGURATION!$B$1,\"bscr\",1000)","v":"Mapped"},null,null,null,"bma_ScheduleOfReconciliationOfNetLossReservesByLinesOfBusinessaddLessNetLossReleasesNetAdverseDevelopmentForPriorYears"]
[null,"Net losses and loss expenses paid or payable related to prior years",null,{"$f":"Import!M10081","v":0},null,{"$f":"Import!O10081","v":0},null,null,"brrt_ReinsuranceRecoverable",{"$f":"XBRLMap(D13,$I13&\".\"&$I$7&\".\"&$I$8,$J$7,$J$7,CONFIGURATION!$B$10,\"BMA\",CONFIGURATION!$B$1,\"bscr\",1000)","v":"Mapped"},null,{"$f":"XBRLMap(F13,$I13&\".\"&$I$7&\".\"&$I$8,$L$7,$L$7,CONFIGURATION!$B$10,\"BMA\",CONFIGURATION!$B$1,\"bscr\",1000)","v":"Mapped"},null,null,null,"bma_ScheduleOfReconciliationOfNetLossReservesByLinesOfBusinesslessClaimsPaidInTheReportingYear"]
[null,"Net losses incurred and net loss expenses incurred related to prior years",null,{"$f":"Import!M10082","v":0},null,{"$f":"Import!O10082","v":0},null,null,"",null,null,null,null,null,null,"bma_ScheduleOfReconciliationOfNetLossReservesByLinesOfBusinessaddCaseReservesAndIbnrRecordedDuringYear"]
[null,"Undiscounted net best estimate loss and loss expense provisions at end of year related to prior years.",null,{"$f":"SUM(D10:D14)","v":0},null,{"$f":"SUM(F10:F14)","v":0},null,null,""]
[null,null,null,null,null,null,null,null,"brrt_NetLossesAndNetLossExpensesIncurredRelatedToCurrentYear",{"$f":"XBRLMap(D16,$I16&\".\"&$I$7&\".\"&$I$8,$J$7,$J$8,CONFIGURATION!$B$10,\"BMA\",CONFIGURATION!$B$1,\"bscr\",1000)","v":"Mapped"},null,{"$f":"XBRLMap(F16,$I16&\".\"&$I$7&\".\"&$I$8,$L$7,$L$8,CONFIGURATION!$B$10,\"BMA\",CONFIGURATION!$B$1,\"bscr\",1000)","v":"Mapped"},null,null,null,"bma_ScheduleOfReconciliationOfNetLossReservesByLinesOfBusinessaddLessForeignExchangeAdjustments"]
[null,"Net losses incurred and net loss expenses incurred related to current year",null,{"$f":"Import!M10084","v":0},null,{"$f":"Import!O10084","v":0},null,null,"brrt_NetLossesAndNetLossExpensesIncurredRelatedToPriorYears",{"$f":"XBRLMap(D17,$I17&\".\"&$I$7&\".\"&$I$8,$J$7,$J$8,CONFIGURATION!$B$10,\"BMA\",CONFIGURATION!$B$1,\"bscr\",1000)","v":"Mapped"},null,{"$f":"XBRLMap(F17,$I17&\".\"&$I$7&\".\"&$I$8,$L$7,$L$8,CONFIGURATION!$B$10,\"BMA\",CONFIGURATION!$B$1,\"bscr\",1000)","v":"Mapped"}]
[null,"Net losses and loss expenses paid or payable related to current year",null,{"$f":"Import!M10085","v":0},null,{"$f":"Import!O10085","v":0},null,null,"",null,null,null,null,null,null,"bma_ScheduleOfReconciliationOfNetLossReservesByLinesOfBusinessnetLossAndLossExpenseProvisionsAtEndOfYear"]
[null,"Foreign exchange and other adjustments",null,{"$f":"Import!M10086","v":0},null,{"$f":"Import!O10086","v":0},null,null,""]
[null,"Undiscounted net best estimate loss and loss expense provisions at end of year related to current year.",null,{"$f":"SUM(D17:D19)","v":0},null,{"$f":"SUM(F17:F19)","v":0},null,null,"brrt_NetIncurredLossesAndLossExpenses",{"$f":"XBRLMap(D20,$I20&\".\"&$I$7&\".\"&$I$8,$J$7,$J$8,CONFIGURATION!$B$10,\"BMA\",CONFIGURATION!$B$1,\"bscr\",1000)","v":"Mapped"},null,{"$f":"XBRLMap(F20,$I20&\".\"&$I$7&\".\"&$I$8,$L$7,$L$8,CONFIGURATION!$B$10,\"BMA\",CONFIGURATION!$B$1,\"bscr\",1000)","v":"Mapped"}]
[null,null,null,null,null,null,null,null,""]
[null,"Impact of change in discount curve",null,{"$f":"Import!M10088","v":0},null,{"$f":"Import!O10088","v":0},null,null,""]
[]
[null,"Net best estimate loss and loss expense provisions at end of year",null,{"$f":"D15+D20+D22","v":0},null,{"$f":"F15+F20+F22","v":0},null,null,"brrt_GrossLossAndLossExpenseProvisions",{"$f":"XBRLMap(D24,$I24&\".\"&$I$7&\".\"&$I$8,$J$8,$J$8,CONFIGURATION!$B$10,\"BMA\",CONFIGURATION!$B$1,\"bscr\",1000)","v":"Mapped"},null,{"$f":"XBRLMap(F24,$I24&\".\"&$I$7&\".\"&$I$8,$L$8,$L$8,CONFIGURATION!$B$10,\"BMA\",CONFIGURATION!$B$1,\"bscr\",1000)","v":"Mapped"}]

{"sheet":"Sch XI(b)(vi)","index":78,"n_rows":24,"n_cols":16,"rows_kept":24,"cut":false,"hidden":false,"merged":[[0,1,0,4]]}
[null,"SCHEDULE OF RECONCILIATION OF NET LOSS RESERVES BY LINES OF BUSINESS \n(LINE 6 - FINANCIAL LINES)",null,null,null,{"$f":"HYPERLINK(\"#'Index'!A1\",\"Return to Index\")","v":"Return to Index"}]
[null,{"$f":"'Company Information'!C7","v":"Enter Company Name"}]
[null,{"$f":"'Company Information'!C3","v":"2019-12-31"},null,null,null,"SCHEDULE XI(b)(vi) (EBS)"]
[null,{"$f":"\"expressed in\"& IF(1000>1,\" ['\"&MID(1000,2,LEN(1000))&\"s]\",\"\")","v":"expressed in ['000s]"},{"$f":"'Form 1EBS'!$C$4","v":"United States Dollars"}]
[]
[]
[null,null,null,null,null,null,null,null,"brrt_LineOfBusinessAxis_brrt_FinancialLinesMember",{"$f":"IF(D8=\"\",\"\",TEXT(DATE(YEAR(D8+1)-1,MONTH(D8+1),DAY(D8+1)),\"mm/dd/yyyy\"))","v":"01/01/2019"},null,{"$f":"IF(F8=\"\",\"\",TEXT(DATE(YEAR(F8+1)-1,MONTH(F8+1),DAY(F8+1)),\"mm/dd/yyyy\"))","v":"01/01/2018"},null,null,null,"bma_ScheduleOfReconciliationOfNetLossReservesByLinesOfBusinessAxis"]
[null,null,null,{"$f":"'Sch XI(b)(i)'!D8","v":"2019-12-31"},null,{"$f":"'Sch XI(b)(i)'!F8","v":"2018-12-31"},null,null,"brrt_TypeOfContractAxis_brrt_ProportionalMember",{"$f":"IF(D8=\"\",\"\",TEXT(D8,\"mm/dd/yyyy\"))","v":"12/31/2019"},null,{"$f":"IF(F8=\"\",\"\",TEXT(F8,\"mm/dd/yyyy\"))","v":"12/31/2018"},null,null,null,"bma_Line6FinancialLinesMember"]
[]
[null,"Net best estimate loss and loss expense provisions at start of year",null,{"$f":"Import!M10090","v":0},null,{"$f":"Import!O10090","v":0},null,null,"brrt_GrossLossAndLossExpenseProvisions",{"$f":"XBRLMap(D10,$I10&\".\"&$I$7&\".\"&$I$8,$J$7,$J$7,CONFIGURATION!$B$10,\"BMA\",CONFIGURATION!$B$1,\"bscr\",1000)","v":"Mapped"},null,{"$f":"XBRLMap(F10,$I10&\".\"&$I$7&\".\"&$I$8,$L$7,$L$7,CONFIGURATION!$B$10,\"BMA\",CONFIGURATION!$B$1,\"bscr\",1000)","v":"Mapped"},null,null,null,"bma_ScheduleOfReconciliationOfNetLossReservesByLinesOfBusinessnetLossAndLossExpenseProvisionsAtBeginningOfYear"]
[null,null,null,null,null,null,null,null,""]
[null,"Unwind of discount (start year discount curve)",null,{"$f":"Import!M10091","v":0},null,{"$f":"Import!O10091","v":0},null,null,"brrt_NetLossAndLossExpenseProvisions",{"$f":"XBRLMap(D12,$I12&\".\"&$I$7&\".\"&$I$8,$J$7,$J$7,CONFIGURATION!$B$10,\"BMA\",CONFIGURATION!$B$1,\"bscr\",1000)","v":"Mapped"},null,{"$f":"XBRLMap(F12,$I12&\".\"&$I$7&\".\"&$I$8,$L$7,$L$7,CONFIGURATION!$B$10,\"BMA\",CONFIGURATION!$B$1,\"bscr\",1000)","v":"Mapped"},null,null,null,"bma_ScheduleOfReconciliationOfNetLossReservesByLinesOfBusinessaddLessNetLossReleasesNetAdverseDevelopmentForPriorYears"]
[null,"Net losses and loss expenses paid or payable related to prior years",null,{"$f":"Import!M10092","v":0},null,{"$f":"Import!O10092","v":0},null,null,"brrt_ReinsuranceRecoverable",{"$f":"XBRLMap(D13,$I13&\".\"&$I$7&\".\"&$I$8,$J$7,$J$7,CONFIGURATION!$B$10,\"BMA\",CONFIGURATION!$B$1,\"bscr\",1000)","v":"Mapped"},null,{"$f":"XBRLMap(F13,$I13&\".\"&$I$7&\".\"&$I$8,$L$7,$L$7,CONFIGURATION!$B$10,\"BMA\",CONFIGURATION!$B$1,\"bscr\",1000)","v":"Mapped"},null,null,null,"bma_ScheduleOfReconciliationOfNetLossReservesByLinesOfBusinesslessClaimsPaidInTheReportingYear"]
[null,"Net losses incurred and net loss expenses incurred related to prior years",null,{"$f":"Import!M10093","v":0},null,{"$f":"Import!O10093","v":0},null,null,"",null,null,null,null,null,null,"bma_ScheduleOfReconciliationOfNetLossReservesByLinesOfBusinessaddCaseReservesAndIbnrRecordedDuringYear"]
[null,"Undiscounted net best estimate loss and loss expense provisions at end of year related to prior years.",null,{"$f":"SUM(D10:D14)","v":0},null,{"$f":"SUM(F10:F14)","v":0},null,null,""]
[null,null,null,null,null,null,null,null,"brrt_NetLossesAndNetLossExpensesIncurredRelatedToCurrentYear",{"$f":"XBRLMap(D16,$I16&\".\"&$I$7&\".\"&$I$8,$J$7,$J$8,CONFIGURATION!$B$10,\"BMA\",CONFIGURATION!$B$1,\"bscr\",1000)","v":"Mapped"},null,{"$f":"XBRLMap(F16,$I16&\".\"&$I$7&\".\"&$I$8,$L$7,$L$8,CONFIGURATION!$B$10,\"BMA\",CONFIGURATION!$B$1,\"bscr\",1000)","v":"Mapped"},null,null,null,"bma_ScheduleOfReconciliationOfNetLossReservesByLinesOfBusinessaddLessForeignExchangeAdjustments"]
[null,"Net losses incurred and net loss expenses incurred related to current year",null,{"$f":"Import!M10095","v":0},null,{"$f":"Import!O10095","v":0},null,null,"brrt_NetLossesAndNetLossExpensesIncurredRelatedToPriorYears",{"$f":"XBRLMap(D17,$I17&\".\"&$I$7&\".\"&$I$8,$J$7,$J$8,CONFIGURATION!$B$10,\"BMA\",CONFIGURATION!$B$1,\"bscr\",1000)","v":"Mapped"},null,{"$f":"XBRLMap(F17,$I17&\".\"&$I$7&\".\"&$I$8,$L$7,$L$8,CONFIGURATION!$B$10,\"BMA\",CONFIGURATION!$B$1,\"bscr\",1000)","v":"Mapped"}]
[null,"Net losses and loss expenses paid or payable related to current year",null,{"$f":"Import!M10096","v":0},null,{"$f":"Import!O10096","v":0},null,null,"",null,null,null,null,null,null,"bma_ScheduleOfReconciliationOfNetLossReservesByLinesOfBusinessnetLossAndLossExpenseProvisionsAtEndOfYear"]
[null,"Foreign exchange and other adjustments",null,{"$f":"Import!M10097","v":0},null,{"$f":"Import!O10097","v":0},null,null,""]
[null,"Undiscounted net best estimate loss and loss expense provisions at end of year related to current year.",null,{"$f":"SUM(D17:D19)","v":0},null,{"$f":"SUM(F17:F19)","v":0},null,null,"brrt_NetIncurredLossesAndLossExpenses",{"$f":"XBRLMap(D20,$I20&\".\"&$I$7&\".\"&$I$8,$J$7,$J$8,CONFIGURATION!$B$10,\"BMA\",CONFIGURATION!$B$1,\"bscr\",1000)","v":"Mapped"},null,{"$f":"XBRLMap(F20,$I20&\".\"&$I$7&\".\"&$I$8,$L$7,$L$8,CONFIGURATION!$B$10,\"BMA\",CONFIGURATION!$B$1,\"bscr\",1000)","v":"Mapped"}]
[null,null,null,null,null,null,null,null,""]
[null,"Impact of change in discount curve",null,{"$f":"Import!M10099","v":0},null,{"$f":"Import!O10099","v":0},null,null,""]
[]
[null,"Net best estimate loss and loss expense provisions at end of year",null,{"$f":"D15+D20+D22","v":0},null,{"$f":"F15+F20+F22","v":0},null,null,"brrt_GrossLossAndLossExpenseProvisions",{"$f":"XBRLMap(D24,$I24&\".\"&$I$7&\".\"&$I$8,$J$8,$J$8,CONFIGURATION!$B$10,\"BMA\",CONFIGURATION!$B$1,\"bscr\",1000)","v":"Mapped"},null,{"$f":"XBRLMap(F24,$I24&\".\"&$I$7&\".\"&$I$8,$L$8,$L$8,CONFIGURATION!$B$10,\"BMA\",CONFIGURATION!$B$1,\"bscr\",1000)","v":"Mapped"}]

{"sheet":"Sch XI(b)(vii)","index":79,"n_rows":24,"n_cols":16,"rows_kept":24,"cut":false,"hidden":false,"merged":[[0,1,0,4]]}
[null,"SCHEDULE OF RECONCILIATION OF NET LOSS RESERVES BY LINES OF BUSINESS \n(LINE 7 - OTHER SPECIALTY LINES)",null,null,null,{"$f":"HYPERLINK(\"#'Index'!A1\",\"Return to Index\")","v":"Return to Index"}]
[null,{"$f":"'Company Information'!C7","v":"Enter Company Name"}]
[null,{"$f":"'Company Information'!C3","v":"2019-12-31"},null,null,null,"SCHEDULE XI(b)(vii) (EBS)"]
[null,{"$f":"\"expressed in\"& IF(1000>1,\" ['\"&MID(1000,2,LEN(1000))&\"s]\",\"\")","v":"expressed in ['000s]"},{"$f":"'Form 1EBS'!$C$4","v":"United States Dollars"}]
[]
[]
[null,null,null,null,null,null,null,null,"brrt_LineOfBusinessAxis_brrt_OtherSpecialtyLinesMember",{"$f":"IF(D8=\"\",\"\",TEXT(DATE(YEAR(D8+1)-1,MONTH(D8+1),DAY(D8+1)),\"mm/dd/yyyy\"))","v":"01/01/2019"},null,{"$f":"IF(F8=\"\",\"\",TEXT(DATE(YEAR(F8+1)-1,MONTH(F8+1),DAY(F8+1)),\"mm/dd/yyyy\"))","v":"01/01/2018"},null,null,null,"bma_ScheduleOfReconciliationOfNetLossReservesByLinesOfBusinessAxis"]
[null,null,null,{"$f":"'Sch XI(b)(i)'!D8","v":"2019-12-31"},null,{"$f":"'Sch XI(b)(i)'!F8","v":"2018-12-31"},null,null,"brrt_TypeOfContractAxis_brrt_ProportionalMember",{"$f":"IF(D8=\"\",\"\",TEXT(D8,\"mm/dd/yyyy\"))","v":"12/31/2019"},null,{"$f":"IF(F8=\"\",\"\",TEXT(F8,\"mm/dd/yyyy\"))","v":"12/31/2018"},null,null,null,"bma_Line7OtherSpecialtyLinesMember"]
[]
[null,"Net best estimate loss and loss expense provisions at start of year",null,{"$f":"Import!M10101","v":0},null,{"$f":"Import!O10101","v":0},null,null,"brrt_GrossLossAndLossExpenseProvisions",{"$f":"XBRLMap(D10,$I10&\".\"&$I$7&\".\"&$I$8,$J$7,$J$7,CONFIGURATION!$B$10,\"BMA\",CONFIGURATION!$B$1,\"bscr\",1000)","v":"Mapped"},null,{"$f":"XBRLMap(F10,$I10&\".\"&$I$7&\".\"&$I$8,$L$7,$L$7,CONFIGURATION!$B$10,\"BMA\",CONFIGURATION!$B$1,\"bscr\",1000)","v":"Mapped"},null,null,null,"bma_ScheduleOfReconciliationOfNetLossReservesByLinesOfBusinessnetLossAndLossExpenseProvisionsAtBeginningOfYear"]
[null,null,null,null,null,null,null,null,""]
[null,"Unwind of discount (start year discount curve)",null,{"$f":"Import!M10102","v":0},null,{"$f":"Import!O10102","v":0},null,null,"brrt_NetLossAndLossExpenseProvisions",{"$f":"XBRLMap(D12,$I12&\".\"&$I$7&\".\"&$I$8,$J$7,$J$7,CONFIGURATION!$B$10,\"BMA\",CONFIGURATION!$B$1,\"bscr\",1000)","v":"Mapped"},null,{"$f":"XBRLMap(F12,$I12&\".\"&$I$7&\".\"&$I$8,$L$7,$L$7,CONFIGURATION!$B$10,\"BMA\",CONFIGURATION!$B$1,\"bscr\",1000)","v":"Mapped"},null,null,null,"bma_ScheduleOfReconciliationOfNetLossReservesByLinesOfBusinessaddLessNetLossReleasesNetAdverseDevelopmentForPriorYears"]
[null,"Net losses and loss expenses paid or payable related to prior years",null,{"$f":"Import!M10103","v":0},null,{"$f":"Import!O10103","v":0},null,null,"brrt_ReinsuranceRecoverable",{"$f":"XBRLMap(D13,$I13&\".\"&$I$7&\".\"&$I$8,$J$7,$J$7,CONFIGURATION!$B$10,\"BMA\",CONFIGURATION!$B$1,\"bscr\",1000)","v":"Mapped"},null,{"$f":"XBRLMap(F13,$I13&\".\"&$I$7&\".\"&$I$8,$L$7,$L$7,CONFIGURATION!$B$10,\"BMA\",CONFIGURATION!$B$1,\"bscr\",1000)","v":"Mapped"},null,null,null,"bma_ScheduleOfReconciliationOfNetLossReservesByLinesOfBusinesslessClaimsPaidInTheReportingYear"]
[null,"Net losses incurred and net loss expenses incurred related to prior years",null,{"$f":"Import!M10104","v":0},null,{"$f":"Import!O10104","v":0},null,null,"",null,null,null,null,null,null,"bma_ScheduleOfReconciliationOfNetLossReservesByLinesOfBusinessaddCaseReservesAndIbnrRecordedDuringYear"]
[null,"Undiscounted net best estimate loss and loss expense provisions at end of year related to prior years.",null,{"$f":"SUM(D10:D14)","v":0},null,{"$f":"SUM(F10:F14)","v":0},null,null,""]
[null,null,null,null,null,null,null,null,"brrt_NetLossesAndNetLossExpensesIncurredRelatedToCurrentYear",{"$f":"XBRLMap(D16,$I16&\".\"&$I$7&\".\"&$I$8,$J$7,$J$8,CONFIGURATION!$B$10,\"BMA\",CONFIGURATION!$B$1,\"bscr\",1000)","v":"Mapped"},null,{"$f":"XBRLMap(F16,$I16&\".\"&$I$7&\".\"&$I$8,$L$7,$L$8,CONFIGURATION!$B$10,\"BMA\",CONFIGURATION!$B$1,\"bscr\",1000)","v":"Mapped"},null,null,null,"bma_ScheduleOfReconciliationOfNetLossReservesByLinesOfBusinessaddLessForeignExchangeAdjustments"]
[null,"Net losses incurred and net loss expenses incurred related to current year",null,{"$f":"Import!M10106","v":0},null,{"$f":"Import!O10106","v":0},null,null,"brrt_NetLossesAndNetLossExpensesIncurredRelatedToPriorYears",{"$f":"XBRLMap(D17,$I17&\".\"&$I$7&\".\"&$I$8,$J$7,$J$8,CONFIGURATION!$B$10,\"BMA\",CONFIGURATION!$B$1,\"bscr\",1000)","v":"Mapped"},null,{"$f":"XBRLMap(F17,$I17&\".\"&$I$7&\".\"&$I$8,$L$7,$L$8,CONFIGURATION!$B$10,\"BMA\",CONFIGURATION!$B$1,\"bscr\",1000)","v":"Mapped"}]
[null,"Net losses and loss expenses paid or payable related to current year",null,{"$f":"Import!M10107","v":0},null,{"$f":"Import!O10107","v":0},null,null,"",null,null,null,null,null,null,"bma_ScheduleOfReconciliationOfNetLossReservesByLinesOfBusinessnetLossAndLossExpenseProvisionsAtEndOfYear"]
[null,"Foreign exchange and other adjustments",null,{"$f":"Import!M10108","v":0},null,{"$f":"Import!O10108","v":0},null,null,""]
[null,"Undiscounted net best estimate loss and loss expense provisions at end of year related to current year.",null,{"$f":"SUM(D17:D19)","v":0},null,{"$f":"SUM(F17:F19)","v":0},null,null,"brrt_NetIncurredLossesAndLossExpenses",{"$f":"XBRLMap(D20,$I20&\".\"&$I$7&\".\"&$I$8,$J$7,$J$8,CONFIGURATION!$B$10,\"BMA\",CONFIGURATION!$B$1,\"bscr\",1000)","v":"Mapped"},null,{"$f":"XBRLMap(F20,$I20&\".\"&$I$7&\".\"&$I$8,$L$7,$L$8,CONFIGURATION!$B$10,\"BMA\",CONFIGURATION!$B$1,\"bscr\",1000)","v":"Mapped"}]
[null,null,null,null,null,null,null,null,""]
[null,"Impact of change in discount curve",null,{"$f":"Import!M10110","v":0},null,{"$f":"Import!O10110","v":0},null,null,""]
[]
[null,"Net best estimate loss and loss expense provisions at end of year",null,{"$f":"D15+D20+D22","v":0},null,{"$f":"F15+F20+F22","v":0},null,null,"brrt_GrossLossAndLossExpenseProvisions",{"$f":"XBRLMap(D24,$I24&\".\"&$I$7&\".\"&$I$8,$J$8,$J$8,CONFIGURATION!$B$10,\"BMA\",CONFIGURATION!$B$1,\"bscr\",1000)","v":"Mapped"},null,{"$f":"XBRLMap(F24,$I24&\".\"&$I$7&\".\"&$I$8,$L$8,$L$8,CONFIGURATION!$B$10,\"BMA\",CONFIGURATION!$B$1,\"bscr\",1000)","v":"Mapped"}]

{"sheet":"Sch XI(b)(viii)","index":80,"n_rows":24,"n_cols":16,"rows_kept":24,"cut":false,"hidden":false,"merged":[[0,1,0,4]]}
["  ","SCHEDULE OF RECONCILIATION OF NET LOSS RESERVES BY LINES OF BUSINESS \n(LINE 8 - STRUCTURED/FINITE LINES)",null,null,null,{"$f":"HYPERLINK(\"#'Index'!A1\",\"Return to Index\")","v":"Return to Index"}]
[null,{"$f":"'Company Information'!C7","v":"Enter Company Name"}]
[null,{"$f":"'Company Information'!C3","v":"2019-12-31"},null,null,null,"SCHEDULE XI(b)(viii) (EBS)"]
[null,{"$f":"\"expressed in\"& IF(1000>1,\" ['\"&MID(1000,2,LEN(1000))&\"s]\",\"\")","v":"expressed in ['000s]"},{"$f":"'Form 1EBS'!$C$4","v":"United States Dollars"}]
[]
[]
[null,null,null,null,null,null,null,null,"brrt_LineOfBusinessAxis_brrt_StructuredFiniteLinesMember",{"$f":"IF(D8=\"\",\"\",TEXT(DATE(YEAR(D8+1)-1,MONTH(D8+1),DAY(D8+1)),\"mm/dd/yyyy\"))","v":"01/01/2019"},null,{"$f":"IF(F8=\"\",\"\",TEXT(DATE(YEAR(F8+1)-1,MONTH(F8+1),DAY(F8+1)),\"mm/dd/yyyy\"))","v":"01/01/2018"},null,null,null,"bma_ScheduleOfReconciliationOfNetLossReservesByLinesOfBusinessAxis"]
[null,null,null,{"$f":"'Sch XI(b)(i)'!D8","v":"2019-12-31"},null,{"$f":"'Sch XI(b)(i)'!F8","v":"2018-12-31"},null,null,"brrt_TypeOfContractAxis_brrt_ProportionalMember",{"$f":"IF(D8=\"\",\"\",TEXT(D8,\"mm/dd/yyyy\"))","v":"12/31/2019"},null,{"$f":"IF(F8=\"\",\"\",TEXT(F8,\"mm/dd/yyyy\"))","v":"12/31/2018"},null,null,null,"bma_Line8StructuredFiniteLinesMember"]
[]
[null,"Net best estimate loss and loss expense provisions at start of year",null,{"$f":"Import!M10112","v":0},null,{"$f":"Import!O10112","v":0},null,null,"brrt_GrossLossAndLossExpenseProvisions",{"$f":"XBRLMap(D10,$I10&\".\"&$I$7&\".\"&$I$8,$J$7,$J$7,CONFIGURATION!$B$10,\"BMA\",CONFIGURATION!$B$1,\"bscr\",1000)","v":"Mapped"},null,{"$f":"XBRLMap(F10,$I10&\".\"&$I$7&\".\"&$I$8,$L$7,$L$7,CONFIGURATION!$B$10,\"BMA\",CONFIGURATION!$B$1,\"bscr\",1000)","v":"Mapped"},null,null,null,"bma_ScheduleOfReconciliationOfNetLossReservesByLinesOfBusinessnetLossAndLossExpenseProvisionsAtBeginningOfYear"]
[null,null,null,null,null,null,null,null,""]
[null,"Unwind of discount (start year discount curve)",null,{"$f":"Import!M10113","v":0},null,{"$f":"Import!O10113","v":0},null,null,"brrt_NetLossAndLossExpenseProvisions",{"$f":"XBRLMap(D12,$I12&\".\"&$I$7&\".\"&$I$8,$J$7,$J$7,CONFIGURATION!$B$10,\"BMA\",CONFIGURATION!$B$1,\"bscr\",1000)","v":"Mapped"},null,{"$f":"XBRLMap(F12,$I12&\".\"&$I$7&\".\"&$I$8,$L$7,$L$7,CONFIGURATION!$B$10,\"BMA\",CONFIGURATION!$B$1,\"bscr\",1000)","v":"Mapped"},null,null,null,"bma_ScheduleOfReconciliationOfNetLossReservesByLinesOfBusinessaddLessNetLossReleasesNetAdverseDevelopmentForPriorYears"]
[null,"Net losses and loss expenses paid or payable related to prior years",null,{"$f":"Import!M10114","v":0},null,{"$f":"Import!O10114","v":0},null,null,"brrt_ReinsuranceRecoverable",{"$f":"XBRLMap(D13,$I13&\".\"&$I$7&\".\"&$I$8,$J$7,$J$7,CONFIGURATION!$B$10,\"BMA\",CONFIGURATION!$B$1,\"bscr\",1000)","v":"Mapped"},null,{"$f":"XBRLMap(F13,$I13&\".\"&$I$7&\".\"&$I$8,$L$7,$L$7,CONFIGURATION!$B$10,\"BMA\",CONFIGURATION!$B$1,\"bscr\",1000)","v":"Mapped"},null,null,null,"bma_ScheduleOfReconciliationOfNetLossReservesByLinesOfBusinesslessClaimsPaidInTheReportingYear"]
[null,"Net losses incurred and net loss expenses incurred related to prior years",null,{"$f":"Import!M10115","v":0},null,{"$f":"Import!O10115","v":0},null,null,"",null,null,null,null,null,null,"bma_ScheduleOfReconciliationOfNetLossReservesByLinesOfBusinessaddCaseReservesAndIbnrRecordedDuringYear"]
[null,"Undiscounted net best estimate loss and loss expense provisions at end of year related to prior years.",null,{"$f":"SUM(D10:D14)","v":0},null,{"$f":"SUM(F10:F14)","v":0},null,null,""]
[null,null,null,null,null,null,null,null,"brrt_NetLossesAndNetLossExpensesIncurredRelatedToCurrentYear",{"$f":"XBRLMap(D16,$I16&\".\"&$I$7&\".\"&$I$8,$J$7,$J$8,CONFIGURATION!$B$10,\"BMA\",CONFIGURATION!$B$1,\"bscr\",1000)","v":"Mapped"},null,{"$f":"XBRLMap(F16,$I16&\".\"&$I$7&\".\"&$I$8,$L$7,$L$8,CONFIGURATION!$B$10,\"BMA\",CONFIGURATION!$B$1,\"bscr\",1000)","v":"Mapped"},null,null,null,"bma_ScheduleOfReconciliationOfNetLossReservesByLinesOfBusinessaddLessForeignExchangeAdjustments"]
[null,"Net losses incurred and net loss expenses incurred related to current year",null,{"$f":"Import!M10117","v":0},null,{"$f":"Import!O10117","v":0},null,null,"brrt_NetLossesAndNetLossExpensesIncurredRelatedToPriorYears",{"$f":"XBRLMap(D17,$I17&\".\"&$I$7&\".\"&$I$8,$J$7,$J$8,CONFIGURATION!$B$10,\"BMA\",CONFIGURATION!$B$1,\"bscr\",1000)","v":"Mapped"},null,{"$f":"XBRLMap(F17,$I17&\".\"&$I$7&\".\"&$I$8,$L$7,$L$8,CONFIGURATION!$B$10,\"BMA\",CONFIGURATION!$B$1,\"bscr\",1000)","v":"Mapped"}]
[null,"Net losses and loss expenses paid or payable related to current year",null,{"$f":"Import!M10119","v":0},null,{"$f":"Import!O10119","v":0},null,null,"",null,null,null,null,null,null,"bma_ScheduleOfReconciliationOfNetLossReservesByLinesOfBusinessnetLossAndLossExpenseProvisionsAtEndOfYear"]
[null,"Foreign exchange and other adjustments",null,{"$f":"Import!M10118","v":0},null,{"$f":"Import!O10118","v":0},null,null,""]
[null,"Undiscounted net best estimate loss and loss expense provisions at end of year related to current year.",null,{"$f":"SUM(D17:D19)","v":0},null,{"$f":"SUM(F17:F19)","v":0},null,null,"brrt_NetIncurredLossesAndLossExpenses",{"$f":"XBRLMap(D20,$I20&\".\"&$I$7&\".\"&$I$8,$J$7,$J$8,CONFIGURATION!$B$10,\"BMA\",CONFIGURATION!$B$1,\"bscr\",1000)","v":"Mapped"},null,{"$f":"XBRLMap(F20,$I20&\".\"&$I$7&\".\"&$I$8,$L$7,$L$8,CONFIGURATION!$B$10,\"BMA\",CONFIGURATION!$B$1,\"bscr\",1000)","v":"Mapped"}]
[null,null,null,null,null,null,null,null,""]
[null,"Impact of change in discount curve",null,{"$f":"Import!M10121","v":0},null,{"$f":"Import!O10121","v":0},null,null,""]
[]
[null,"Net best estimate loss and loss expense provisions at end of year",null,{"$f":"D15+D20+D22","v":0},null,{"$f":"F15+F20+F22","v":0},null,null,"brrt_GrossLossAndLossExpenseProvisions",{"$f":"XBRLMap(D24,$I24&\".\"&$I$7&\".\"&$I$8,$J$8,$J$8,CONFIGURATION!$B$10,\"BMA\",CONFIGURATION!$B$1,\"bscr\",1000)","v":"Mapped"},null,{"$f":"XBRLMap(F24,$I24&\".\"&$I$7&\".\"&$I$8,$L$8,$L$8,CONFIGURATION!$B$10,\"BMA\",CONFIGURATION!$B$1,\"bscr\",1000)","v":"Mapped"}]

{"sheet":"Schedule XII(a)","index":81,"n_rows":127,"n_cols":23,"rows_kept":127,"cut":false,"hidden":false,"merged":[[84,8,84,9],[59,4,59,6],[0,8,0,9],[2,1,2,3],[16,4,16,6],[38,3,38,7],[39,3,39,7],[51,2,52,7]]}
[null,"SCHEDULE OF ELIGIBLE CAPITAL",null,null,null,null,null,null,{"$f":"HYPERLINK(\"#'Index'!A1\",\"Return to Index\")","v":"Return to Index"}]
[null,{"$f":"'Company Information'!C7","v":"Enter Company Name"},null,null,null,null,null,null,null,null,null,null,null,null,null,null,null,null,null,{"$f":"IF(B3=\"\",\"\",TEXT(DATE(YEAR(B3+1)-1,MONTH(B3+1),DAY(B3+1)),\"mm/dd/yyyy\"))","v":"01/01/2019"}]
[null,{"$f":"'Company Information'!C3","v":"2019-12-31"},null,null,null,null,null,null,null,"SCHEDULE XII(a) (EBS)",null,null,null,null,null,null,null,null,null,{"$f":"IF(B3=\"\",\"\",TEXT(B3,\"mm/dd/yyyy\"))","v":"12/31/2019"}]
[null,{"$f":"\"expressed in\"& IF(CONFIGURATION!$B$12>1,\" ['\"&MID(CONFIGURATION!$B$12,2,LEN(CONFIGURATION!$B$12))&\"s]\",\"\")","v":"expressed in ['000s]"},null,null,{"$f":"'Form 1EBS'!$C$4","v":"United States Dollars"}]
[null,null,null,null,null,null,null,null,null," "]
[null,"Total statutory economic capital and surplus (Form 1EBS, line 40 plus applicable adjustments)",null,null,null,null,null,null,null,{"$f":"+Summary!N97","v":0},null,null,"brrt_StatutoryCapitalAndSurplus",{"$f":"XBRLMap(J6,M6&\".\"&O6&\".\"&P6,$T$2,$T$3,CONFIGURATION!$B$10,\"BMA\",CONFIGURATION!$B$1,\"bscr\",CONFIGURATION!$B$12)","v":"Mapped"},"brrt_TierAxis_brrt_Tier1Member","brrt_BasicAncillaryAxis_brrt_BasicMember",null,null,null,null,null,null,"bma_ScheduleOfEligibleCapitalTotalStatutoryCapitalAndSurplusBefore"]
[null," ","Less: Encumbered assets (not securing policyholders' obligations) (Notes to Form 1EBS, STMT LINE 15) - Note 1",null,null,null,null,null,{"$f":"+'Form 1EBS'!F202","v":0},null,null,null,"brrt_EncumberedAssetsNotSecuringPolicyholdersObligations",{"$f":"XBRLMap(I7,M7&\".\"&O7&\".\"&P7,$T$2,$T$3,CONFIGURATION!$B$10,\"BMA\",CONFIGURATION!$B$1,\"bscr\",CONFIGURATION!$B$12)","v":"Mapped"},"brrt_TierAxis_brrt_Tier1Member","brrt_BasicAncillaryAxis_brrt_BasicMember",null,null,null,null,null,null,"bma_ScheduleOfEligibleCapitalLessEncumbrancesNotSecuringPolicyholderObligations"]
[null,null,"            Less: relative liability or contingent liability (Form 1EBS) for which the encumbered assets are held ",null,null,null,null,null,{"$f":"Import!M10124","v":0},{"$f":"MAX(0,I7-I8)","v":0}]
[null,null,"Subtotal:",null,null,null,null,null,null,{"$f":"J6-J8","v":0},null,null,"brrt_StatutoryCapitalAndSurplusNetOfEncumberedAssetsNotSecuringPolicyholdersObligations",{"$f":"XBRLMap(J9,M9&\".\"&O9&\".\"&P9,$T$2,$T$3,CONFIGURATION!$B$10,\"BMA\",CONFIGURATION!$B$1,\"bscr\",CONFIGURATION!$B$12)","v":"Mapped"},"brrt_TierAxis_brrt_Tier1Member","brrt_BasicAncillaryAxis_brrt_BasicMember",null,null,null,null,null,null,"bma_ScheduleOfEligibleCapitalSubtotal"]
[]
[null,"TIER 1 BASIC CAPITAL"]
[null," ","(a) Fully paid common shares (Form 8, STMT LINE 1(a) (i))",null,null,null,null,null,null,{"$f":"IF('Form 8SFS'!O12=0,('Form 8SFS'!G11+'Form 8SFS'!K11),'Form 8SFS'!O12)","v":0},null,null,"brrt_FullyPaidShares",{"$f":"XBRLMap(J12,M12&\".\"&O12&\".\"&P12,$T$2,$T$3,CONFIGURATION!$B$10,\"BMA\",CONFIGURATION!$B$1,\"bscr\",CONFIGURATION!$B$12)","v":"Mapped"},"brrt_TierAxis_brrt_Tier1Member","brrt_BasicAncillaryAxis_brrt_BasicMember",null,null,null,null,null,null,"bma_ScheduleOfEligibleCapitalTier1CapitalaFullyPaidCommonSharesform8Line1a"]
[null," ","(b) Contributed surplus or share premium (Form 8, STMT LINE 1(b))",null,null,null,null,null,null,{"$f":"IF('Form 8SFS'!O29=0,('Form 8SFS'!G29+'Form 8SFS'!K29),'Form 8SFS'!O29)","v":0},null,null,"brrt_ContributedSurplus",{"$f":"XBRLMap(J13,M13&\".\"&O13&\".\"&P13,$T$2,$T$3,CONFIGURATION!$B$10,\"BMA\",CONFIGURATION!$B$1,\"bscr\",CONFIGURATION!$B$12)","v":"Mapped"},"brrt_TierAxis_brrt_Tier1Member","brrt_BasicAncillaryAxis_brrt_BasicMember",null,null,null,null,null,null,"bma_ScheduleOfEligibleCapitalTier1CapitalbContributedSurplusOrSharePremiumform8Line1b"]
[null," ","(c) Statutory economic surplus – End of Year (Form 1EBS, line 40 less Form 8, line 1(d)",null,null,null,null,null,null,{"$f":"IF(SUM('Form 1SFS'!$E$100,'Form 1SFS'!$I$100)=0,'Form 1EBS'!F167-'Form 8SFS'!O36-'Form 8SFS'!O56,'Form 1EBS'!F167-'Form 8SFS'!G36-'Form 8SFS'!G56)","v":0},null,null,"brrt_StatutorySurplus",{"$f":"XBRLMap(J14,M14&\".\"&O14&\".\"&P14,$T$2,$T$3,CONFIGURATION!$B$10,\"BMA\",CONFIGURATION!$B$1,\"bscr\",CONFIGURATION!$B$12)","v":"Mapped"},"brrt_TierAxis_brrt_Tier1Member","brrt_BasicAncillaryAxis_brrt_BasicMember",null,null,null,null,null,null,"bma_ScheduleOfEligibleCapitalTier1CapitalcStatutorySurplusdeficitOrRetainedEarningform8Line2h"]
[null,null,"(d) Capital adjustments",null,null,null,null,null,null,{"$f":"Import!M10126","v":0},null,null,"brrt_CapitalAdjustments",{"$f":"XBRLMap(J15,M15&\".\"&O15&\".\"&P15,$T$2,$T$3,CONFIGURATION!$B$10,\"BMA\",CONFIGURATION!$B$1,\"bscr\",CONFIGURATION!$B$12)","v":"Mapped"},"brrt_TierAxis_brrt_Tier1Member","brrt_BasicAncillaryAxis_brrt_BasicMember",null,null,null,null,null,null,"bma_ScheduleOfEligibleCapitalTier1CapitaldCapitalAdjustments"]
[null,null,"(e) Hybrid capital instruments: Perpetual or fixed term preference shares (Form 8, STMT LINE 1a (ii))",null,null,null,null,null,null,{"$f":"Import!M10127","v":0},null,null,"brrt_HybridCapitalInstrumentsNoncumulativePerpetualOrFixedTermPreferenceShares",{"$f":"XBRLMap(J16,M16&\".\"&O16&\".\"&P16,$T$2,$T$3,CONFIGURATION!$B$10,\"BMA\",CONFIGURATION!$B$1,\"bscr\",CONFIGURATION!$B$12)","v":"Mapped"},"brrt_TierAxis_brrt_Tier1Member","brrt_BasicAncillaryAxis_brrt_BasicMember"]
[null,null,"(f) Other:",null,null,null,null,null,null,{"$f":"Import!M10128","v":0},null,null,"brrt_OtherBasicCapital",{"$f":"XBRLMap(J17,M17&\".\"&O17&\".\"&P17,$T$2,$T$3,CONFIGURATION!$B$10,\"BMA\",CONFIGURATION!$B$1,\"bscr\",CONFIGURATION!$B$12)","v":"Mapped"},"brrt_TierAxis_brrt_Tier1Member","brrt_BasicAncillaryAxis_brrt_BasicMember",null,null,null,null,null,null,"bma_ScheduleOfEligibleCapitalTier1CapitalgOthers"]
[null,null,"(g) Less: Treasury shares (Form 8, STMT LINE 1(a) (iii))",null,null,null,null,null,null,{"$f":"+'Form 8SFS'!O25","v":0},null,null,"brrt_OtherBasicCapitalDescription",{"$f":"XBRLMap(E17,M18&\".\"&O18&\".\"&P18,$T$2,$T$3,CONFIGURATION!$B$10,\"BMA\",CONFIGURATION!$B$1,\"bscr\",CONFIGURATION!$B$12)","v":"Mapped"},"brrt_TierAxis_brrt_Tier1Member","brrt_BasicAncillaryAxis_brrt_BasicMember"]
[null,null,"(h) Less: Difference between encumbered assets for policyholder obligations and policyholder obligations calculated as follows:",null,null,null,null,null,null,null,null,null,"brrt_TreasuryShares",{"$f":"XBRLMap(J18,M19&\".\"&O19&\".\"&P19,$T$2,$T$3,CONFIGURATION!$B$10,\"BMA\",CONFIGURATION!$B$1,\"bscr\",CONFIGURATION!$B$12)","v":"Mapped"},"brrt_TierAxis_brrt_Tier1Member","brrt_BasicAncillaryAxis_brrt_BasicMember"]
[]
[null,null,null,null,null,null,"(A)","(B)"]
[null,null,null,null,null,null,"Policyholder","Encumbered"]
[null,null,null,null,null,null,"obligations","(pledged) assets",null,null,null,null,null,null,"brrt_TierAxis_brrt_Tier1Member","brrt_BasicAncillaryAxis_brrt_BasicMember"]
[null,null,"(i)","Contracts where pledged assets exceed the policyholder obligations",null,null,{"$f":"Import!M10129","v":0},{"$f":"Import!M10134","v":0},null,null,null,null,"brrt_PolicyholdersObligationsWherePledgedAssetsExceedPolicyholderObligations","brrt_EncumberedAssetsWherePledgedAssetsExccedPolicyholderObligationsPerContract",{"$f":"XBRLMap(G24,M24&\".\"&$O$23&\".\"&$P$23,$T$2,$T$3,CONFIGURATION!$B$10,\"BMA\",CONFIGURATION!$B$1,\"bscr\",CONFIGURATION!$B$12)","v":"Mapped"},{"$f":"XBRLMap(H24,N24&\".\"&$O$23&\".\"&$P$23,$T$2,$T$3,CONFIGURATION!$B$10,\"BMA\",CONFIGURATION!$B$1,\"bscr\",CONFIGURATION!$B$12)","v":"Mapped"}]
[null,null,"(ii)","Contracts where pledged assets are equal to the policyholder obligations",null,null,{"$f":"Import!M10130","v":0},{"$f":"Import!M10135","v":0},null,null,null,null,"brrt_PolicyholdersObligationsWherePledgedAssetsEqualPolicyholderObligations","brrt_EncumberedAssetsWherePledgedAssetsEqualPolicyholderObligations",{"$f":"XBRLMap(G25,M25&\".\"&$O$23&\".\"&$P$23,$T$2,$T$3,CONFIGURATION!$B$10,\"BMA\",CONFIGURATION!$B$1,\"bscr\",CONFIGURATION!$B$12)","v":"Mapped"},{"$f":"XBRLMap(H25,N25&\".\"&$O$23&\".\"&$P$23,$T$2,$T$3,CONFIGURATION!$B$10,\"BMA\",CONFIGURATION!$B$1,\"bscr\",CONFIGURATION!$B$12)","v":"Mapped"}]
[null,null,"(iii)","Contracts where pledged assets are less than the policyholder obligations",null,null,{"$f":"Import!M10131","v":0},{"$f":"Import!M10136","v":0},null,null,null,null,"brrt_PolicyholdersObligationsWherePledgedAssetsAreLessThanPolicyholderObligations","brrt_EncumberedAssetsWherePledgedAssetsAreLessThanPolicyholderObligations",{"$f":"XBRLMap(G26,M26&\".\"&$O$23&\".\"&$P$23,$T$2,$T$3,CONFIGURATION!$B$10,\"BMA\",CONFIGURATION!$B$1,\"bscr\",CONFIGURATION!$B$12)","v":"Mapped"},{"$f":"XBRLMap(H26,N26&\".\"&$O$23&\".\"&$P$23,$T$2,$T$3,CONFIGURATION!$B$10,\"BMA\",CONFIGURATION!$B$1,\"bscr\",CONFIGURATION!$B$12)","v":"Mapped"}]
[null,null,"(iv)","Contracts where policyholder obligations are not collateralized",null,null,{"$f":"Import!M10132","v":0},null,null,null,null,null,"brrt_PolicyholdersObligationsAreNotCollateralized",null,{"$f":"XBRLMap(G27,M27&\".\"&$O$23&\".\"&$P$23,$T$2,$T$3,CONFIGURATION!$B$10,\"BMA\",CONFIGURATION!$B$1,\"bscr\",CONFIGURATION!$B$12)","v":"Mapped"}]
[null,null,"(v)","Total",null,null,{"$f":"SUM(G24:G27)","v":0},{"$f":"SUM(H24:H27)","v":0},null,null,null,null,"brrt_PolicyholdersObligations","brrt_AssetsEncumberedAmountOfEncumbrance",{"$f":"XBRLMap(G28,M28&\".\"&$O$23&\".\"&$P$23,$T$2,$T$3,CONFIGURATION!$B$10,\"BMA\",CONFIGURATION!$B$1,\"bscr\",CONFIGURATION!$B$12)","v":"Mapped"},{"$f":"XBRLMap(H28,N28&\".\"&$O$23&\".\"&$P$23,$T$2,$T$3,CONFIGURATION!$B$10,\"BMA\",CONFIGURATION!$B$1,\"bscr\",CONFIGURATION!$B$12)","v":"Mapped"}]
[]
[null,null,null,"Form 1EBS Lines 16(a), and 17(a) for policyholder obligations",null,null,null,{"$f":"'Form 1EBS'!F98+'Form 1EBS'!F108","v":0},null,null,null,null,"Already mapped"]
[]
[null,null,null,"Difference",null,null,null,{"$f":"H30-G28","v":0}]
[]
[null,null,null,"Notes to Form 1EBS Line 15 encumbered assets for policyholder obligations",null,null,null,{"$f":"'Form 1EBS'!F193","v":0},null,null,null,null,"Already mapped"]
[]
[null,null,null,"Difference",null,null,null,{"$f":"H34-H28","v":0}]
[]
[null,null,"(vi)","Excess encumbered assets i.e. Contracts where pledged assets exceed the policyholder obligations ((B)(i)-(A)(i))",null,null,null,null,{"$f":"H24-G24","v":0},null,null,{"$f":"H24-G24","v":0},"brrt_ExcessEncumberedAssets",null,{"$f":"XBRLMap(I38,M38&\".\"&$O$23&\".\"&$P$23,$T$2,$T$3,CONFIGURATION!$B$10,\"BMA\",CONFIGURATION!$B$1,\"bscr\",CONFIGURATION!$B$12)","v":"Mapped"}]
[null,null,"(vii)","Capital requirement applicable to the encumbered assets under (i) above (equal to the contribution of the pledged assets to the ECR)",null,null,null,null,{"$f":"Import!M10138","v":0},null,null,{"$f":"I39*J88/J90","v":0},"brrt_CapitalRequirementApplicableToEncumberedAssetsForPolicyholderObligations",null,{"$f":"XBRLMap(I39,M39&\".\"&$O$23&\".\"&$P$23,$T$2,$T$3,CONFIGURATION!$B$10,\"BMA\",CONFIGURATION!$B$1,\"bscr\",CONFIGURATION!$B$12)","v":"Mapped"}]
[null,null,"(viii)","Capital requirement applicable to the policyholder obligations under (i) above (equal to the contribution of the policyholder obligations to the ECR)",null,null,null,null,{"$f":"Import!M10139","v":0},null,null,{"$f":"I40*J88/J90","v":0},"brrt_CapitalRequirementApplicableToPolicyholderObligations",null,{"$f":"XBRLMap(I40,M40&\".\"&$O$23&\".\"&$P$23,$T$2,$T$3,CONFIGURATION!$B$10,\"BMA\",CONFIGURATION!$B$1,\"bscr\",CONFIGURATION!$B$12)","v":"Mapped"}]
[null,null,"(ix)"," Excess encumbered assets transferrable to Tier 2 ((vi) - (vii) - (viii))",null,null,null,null,{"$f":"MAX(0,(I38-I39-I40))","v":0},null,null,{"$f":"MAX(0,(L38-L39-L40))","v":0},"brrt_ExcessEncumberedAssetsTransferableToTier2",null,{"$f":"XBRLMap(I41,M41&\".\"&$O$23&\".\"&$P$23,$T$2,$T$3,CONFIGURATION!$B$10,\"BMA\",CONFIGURATION!$B$1,\"bscr\",CONFIGURATION!$B$12)","v":"Mapped"}]
[]
[null,null,"(x)","Policyholder obligations that are fully collateralized ((A)(i) + (A)(ii) + (B)(iii))",null,null,null,null,{"$f":"G24+G25+H26","v":0},null,null,{"$f":"G24+G25+H26","v":0},"brrt_PolicyholdersObligationsThatAreFullyCollateralized",null,{"$f":"XBRLMap(I43,M43&\".\"&$O$23&\".\"&$P$23,$T$2,$T$3,CONFIGURATION!$B$10,\"BMA\",CONFIGURATION!$B$1,\"bscr\",CONFIGURATION!$B$12)","v":"Mapped"}]
[null,null,"(xi)","Total Policyholder obligations ((A)(v))",null,null,null,null,{"$f":"G28","v":0},null,null,{"$f":"G28","v":0},"Allready mapped"]
[]
[null,null,"(xii)","Proportion of policyholder obligations that are NOT collateralized (1-(x)/(xi))",null,null,null,null,{"$f":"IF(I44=0,0,1-I43/I44)","v":0},null,null,{"$f":"IF(L44=0,0,1-L43/L44)","v":0},"brrt_ProportionOfNonCollateralizedPolicyHolderObligations",null,{"$f":"XBRLMap(I46,M46&\".\"&$O$23&\".\"&$P$23,$T$2,$T$3,CONFIGURATION!$B$10,\"BMA\",CONFIGURATION!$B$1,\"bscr\",CONFIGURATION!$B$12)","v":"Mapped"}]
[]
[null,null,"(xiii)","Excess encumbered assets transferred to Tier 2 ((ix) x (xii))",null,null,null,null,null,{"$f":"(I41*I46)+'Schedule IX(a)'!G89","v":0},null,{"$f":"L46*L41","v":0},"brrt_ExcessEncumberedAssetsTransferedTier2",null,{"$f":"XBRLMap(J48,M48&\".\"&$O$23&\".\"&$P$23,$T$2,$T$3,CONFIGURATION!$B$10,\"BMA\",CONFIGURATION!$B$1,\"bscr\",CONFIGURATION!$B$12)","v":"Mapped"}]
[]
[null,null,"(i) Encumbered assets not securing policyholder obligations (Notes to Form 1EBS, STMT LINE 15)"]
[null,null,"    Less: relative liability or contingent liability (Form 1EBS) for which the encumbered assets are held ",null,null,null,null,null,null,{"$f":"J8","v":0},null,null,"brrt_RelativeLiabilityOrContingentLiabilityForWhichTheEncumberedAssetsAreHeld",null,{"$f":"XBRLMap(J51,M51&\".\"&$O$23&\".\"&$P$23,$T$2,$T$3,CONFIGURATION!$B$10,\"BMA\",CONFIGURATION!$B$1,\"bscr\",CONFIGURATION!$B$12)","v":"Mapped"}]
[null,null,"(j) Less: Restricted assets in excess of capital requirements, reported in CISSA, to the extent that these amounts are not included in the encumbered assets both for policyholder obligations and not for securing policyholder obligations"]
[null,null,null,null,null,null,null,null,null,{"$f":"Import!M10140","v":0},null,null,"brrt_RestrictedAssetsInExcessOfCapitalRequirementsReportedInCissaNotIncludedInEncumberedAssetsForPolicyholderObligationsAndForNotSecuringPolicyholderObligations",{"$f":"XBRLMap(J53,M53&\".\"&O53&\".\"&P53,$T$2,$T$3,CONFIGURATION!$B$10,\"BMA\",CONFIGURATION!$B$1,\"bscr\",CONFIGURATION!$B$12)","v":"Mapped"},"brrt_TierAxis_brrt_Tier1Member","brrt_BasicAncillaryAxis_brrt_BasicMember"]
[null,"TIER 1 ANCILLARY CAPITAL"]
[null,null,"Perpetual or fixed term subordinated debt (Form 8, STMT LINE 1(c) (i))",null,null,null,null,null,null,{"$f":"Import!M10141","v":0},null,null,"brrt_AnyOtherFixedCapital",{"$f":"XBRLMap(J55,M55&\".\"&O55&\".\"&P55,$T$2,$T$3,CONFIGURATION!$B$10,\"BMA\",CONFIGURATION!$B$1,\"bscr\",CONFIGURATION!$B$12)","v":"Mapped"},"brrt_TierAxis_brrt_Tier1Member","brrt_BasicAncillaryAxis_brrt_AncillaryMember",null,null,null,null,null,null,"bma_ScheduleOfEligibleCapitalTier1CapitalfPerpetualOrFixedTermSubordinatedLiabilities"]
[null,"TOTAL TIER 1 AVAILABLE CAPITAL",null,null,null,null,null,null,null,{"$f":"J12+J13+J14+J15+J16+J17-J18-J48-J51-J53+J55","v":0}," ",{"$f":"J12+J13+J14+J15+J16+J17-J18-L48-J51-J53+J55","v":0},"brrt_AvailableCapital",{"$f":"XBRLMap(J56,M56&\".\"&O56&\".\"&P56,$T$2,$T$3,CONFIGURATION!$B$10,\"BMA\",CONFIGURATION!$B$1,\"bscr\",CONFIGURATION!$B$12)","v":"Mapped"},"brrt_TierAxis_brrt_Tier1Member","brrt_BasicAncillaryAxis_brrt_TotalMember",null,null,null,null,null,null,"bma_ScheduleOfEligibleCapitalTotalTier1AvailableCapital"]
[]
[null,"TIER 2 BASIC CAPITAL"]
[null,null,"(a) Hybrid capital instruments: Perpetual or fixed term preference shares (Form 8, STMT LINE 1(a) (ii))",null,null,null,null,null,null,{"$f":"Import!M10143","v":0},null,null,"brrt_HybridCapitalInstrumentsCumulativePreferenceShares",{"$f":"XBRLMap(J59,M59&\".\"&O59&\".\"&P59,$T$2,$T$3,CONFIGURATION!$B$10,\"BMA\",CONFIGURATION!$B$1,\"bscr\",CONFIGURATION!$B$12)","v":"Mapped"},"brrt_TierAxis_brrt_Tier2Member","brrt_BasicAncillaryAxis_brrt_BasicMember",null,null,null,null,null,null,"bma_ScheduleOfEligibleCapitalTier2BasicCapitaliCumulativePreferenceShares"]
[null,null,"(b) Other:  ",null,{"$f":"Import!M10144","v":0},null,null,null,null,{"$f":"Import!M10145","v":0},null,null,"brrt_OtherBasicCapital",{"$f":"XBRLMap(J60,M60&\".\"&O60&\".\"&P60,$T$2,$T$3,CONFIGURATION!$B$10,\"BMA\",CONFIGURATION!$B$1,\"bscr\",CONFIGURATION!$B$12)","v":"Mapped"},"brrt_TierAxis_brrt_Tier2Member","brrt_BasicAncillaryAxis_brrt_BasicMember",null,null,null,null,null,null,"bma_ScheduleOfEligibleCapitalTier2BasicCapitalcOther"]
[null,null,"(c) Add: Difference between encumbered assets for policyholder obligations and policyholder obligations deducted from Tier 1",null,null,null,null,null,null,{"$f":"+J48","v":0},null,{"$f":"+L48","v":0},"brrt_OtherBasicCapitalDescription",{"$f":"XBRLMap(J61,M62&\".\"&O61&\".\"&P61,$T$2,$T$3,CONFIGURATION!$B$10,\"BMA\",CONFIGURATION!$B$1,\"bscr\",CONFIGURATION!$B$12)","v":"Mapped"},"brrt_TierAxis_brrt_Tier2Member","brrt_BasicAncillaryAxis_brrt_BasicMember",null,null,null,null,null,null,"bma_ScheduleOfEligibleCapitalTier2BasicCapitalAddEncumbranceDifferenceDeductedInTier1Capital"]
[null,"TIER 2 ANCILLARY CAPITAL",null,null,null,null,null,null,null,null,null,null,"brrt_EncumberedAssetsForPolicyholdersObligationsNetOfPolicyholdersObligations"]
[null,null,"(a) Unpaid and callable common shares (Form 8, STMT LINE 1(c) (i))",null,null,null,null,null,null,{"$f":"Import!M10146","v":0},null,null,"brrt_UnpaidAndCallableCommonShares",{"$f":"XBRLMap(J63,M63&\".\"&O63&\".\"&P63,$T$2,$T$3,CONFIGURATION!$B$10,\"BMA\",CONFIGURATION!$B$1,\"bscr\",CONFIGURATION!$B$12)","v":"Mapped"},"brrt_TierAxis_brrt_Tier2Member","brrt_BasicAncillaryAxis_brrt_AncillaryMember",null,null,null,null,null,null,"bma_ScheduleOfEligibleCapitalTier2AncillaryCapitalaUnpaidAndCallableCommonShares"]
[null,null,"(b) Qualifying unpaid and callable hybrid capital (Form 8, STMT LINE 1(c) (i))",null,null,null,null,null,null,{"$f":"Import!M10147","v":0},null,null,"brrt_QualifyingUnpaidAndCallableHybridCapital",{"$f":"XBRLMap(J64,M64&\".\"&O64&\".\"&P64,$T$2,$T$3,CONFIGURATION!$B$10,\"BMA\",CONFIGURATION!$B$1,\"bscr\",CONFIGURATION!$B$12)","v":"Mapped"},"brrt_TierAxis_brrt_Tier2Member","brrt_BasicAncillaryAxis_brrt_AncillaryMember",null,null,null,null,null,null,"bma_ScheduleOfEligibleCapitalTier2AncillaryCapitalbQualifyingUnpaidAndCallableHybridCapital"]
[null,null,"(c) Qualifying unpaid and callable perpetual or fixed term preference shares (Form 8, STMT LINE 1(c) (i))",null,null,null,null,null,null,{"$f":"Import!M10148","v":0},null,null,"brrt_QualifyingUnpaidAndCallableNonCumulativePerpetualPreferenceShares",{"$f":"XBRLMap(J65,M65&\".\"&O65&\".\"&P65,$T$2,$T$3,CONFIGURATION!$B$10,\"BMA\",CONFIGURATION!$B$1,\"bscr\",CONFIGURATION!$B$12)","v":"Mapped"},"brrt_TierAxis_brrt_Tier2Member","brrt_BasicAncillaryAxis_brrt_AncillaryMember",null,null,null,null,null,null,"bma_ScheduleOfEligibleCapitalTier2AncillaryCapitalcQualifyingUnpaidAndCallableNoncumulativePerpetualPreferenceShares"]
[null,null,"(d) Perpetual or fixed term subordinated debt (Form 8, STMT LINE 1(c) (i))",null,null,null,null,null,null,{"$f":"Import!M10149","v":0},null,null,"brrt_PerpetualOrFixedTermSubordinatedDebt",{"$f":"XBRLMap(J66,M66&\".\"&O66&\".\"&P66,$T$2,$T$3,CONFIGURATION!$B$10,\"BMA\",CONFIGURATION!$B$1,\"bscr\",CONFIGURATION!$B$12)","v":"Mapped"},"brrt_TierAxis_brrt_Tier2Member","brrt_BasicAncillaryAxis_brrt_AncillaryMember",null,null,null,null,null,null,"bma_ScheduleOfEligibleCapitalTier2AncillaryCapitaldPerpetualOrFixedTermSubordinatedDebt"]
[null,null,"(e) Approved letters of credit (Form 8, STMT LINE 1(c) (ii))",null,null,null,null,null,null,{"$f":"Import!M10150","v":0},null,null,"brrt_ApprovedLettersOfCredit",{"$f":"XBRLMap(J67,M67&\".\"&O67&\".\"&P67,$T$2,$T$3,CONFIGURATION!$B$10,\"BMA\",CONFIGURATION!$B$1,\"bscr\",CONFIGURATION!$B$12)","v":"Mapped"},"brrt_TierAxis_brrt_Tier2Member","brrt_BasicAncillaryAxis_brrt_AncillaryMember",null,null,null,null,null,null,"bma_ScheduleOfEligibleCapitalTier2AncillaryCapitaldApprovedLettersOfCredit"]
[null,null,"(f) Approved guarantees (Form 8, STMT LINE 1(c) (ii))",null,null,null,null,null,null,{"$f":"Import!M10151","v":0},null,null,"brrt_ApprovedGuarantees",{"$f":"XBRLMap(J68,M68&\".\"&O68&\".\"&P68,$T$2,$T$3,CONFIGURATION!$B$10,\"BMA\",CONFIGURATION!$B$1,\"bscr\",CONFIGURATION!$B$12)","v":"Mapped"},"brrt_TierAxis_brrt_Tier2Member","brrt_BasicAncillaryAxis_brrt_AncillaryMember",null,null,null,null,null,null,"bma_ScheduleOfEligibleCapitalTier2AncillaryCapitaleApprovedParentalGuarantees"]
[null,"TOTAL TIER 2 AVAILABLE CAPITAL",null,null,null,null,null,null,null,{"$f":"J59+J63+J60+J61+J64+J65+J66+J67+J68","v":0}," ",{"$f":"J59+J63+J60+L61+J64+J65+J66+J67+J68","v":0},"brrt_AvailableCapital",{"$f":"XBRLMap(J69,M69&\".\"&O69&\".\"&P69,$T$2,$T$3,CONFIGURATION!$B$10,\"BMA\",CONFIGURATION!$B$1,\"bscr\",CONFIGURATION!$B$12)","v":"Mapped"},"brrt_TierAxis_brrt_Tier2Member","brrt_BasicAncillaryAxis_brrt_TotalMember",null,null,null,null,null,null,"bma_ScheduleOfEligibleCapitalTotalTier2AvailableCapital"]
[null,null,null,null,null,null,null,null,null,null,null,null,null,null,null,null,null,null,null,null,null,null,""]
[null,"TIER 3 BASIC CAPITAL"]
[null,null,"Short-term hybrid capital instruments: Perpetual or fixed term preference shares (Form 8, STMT LINE 1a (ii))",null,null,null,null,null,null,{"$f":"Import!M10153","v":0},null,null,"brrt_ShortTermHybridCapitalInstrumentsCumulativePreferenceShares",{"$f":"XBRLMap(J72,M72&\".\"&O72&\".\"&P72,$T$2,$T$3,CONFIGURATION!$B$10,\"BMA\",CONFIGURATION!$B$1,\"bscr\",CONFIGURATION!$B$12)","v":"Mapped"},"brrt_TierAxis_brrt_Tier3Member","brrt_BasicAncillaryAxis_brrt_BasicMember",null,null,null,null,null,null,"bma_ScheduleOfEligibleCapitalTier3BasicCapitaliCumulativePreferenceShares"]
[null,"TIER 3 ANCILLARY CAPITAL"]
[null,null,"(a) Short-term subordinated debt (Form 8, STMT LINE 1(c) (i))",null,null,null,null,null,null,{"$f":"Import!M10154","v":0},null,null,"brrt_ShortTermSubordinatedDebt",{"$f":"XBRLMap(J74,M74&\".\"&O74&\".\"&P74,$T$2,$T$3,CONFIGURATION!$B$10,\"BMA\",CONFIGURATION!$B$1,\"bscr\",CONFIGURATION!$B$12)","v":"Mapped"},"brrt_TierAxis_brrt_Tier3Member","brrt_BasicAncillaryAxis_brrt_AncillaryMember",null,null,null,null,null,null,"bma_ScheduleOfEligibleCapitalTier3AncillaryCapitalbShorttermSubordinatedLiabilities"]
[null,null,"(b) Approved letters of credit (Form 8, STMT LINE 1(c) (ii))",null,null,null,null,null,null,{"$f":"Import!M10155","v":0},null,null,"brrt_ApprovedLettersOfCredit",{"$f":"XBRLMap(J75,M75&\".\"&O75&\".\"&P75,$T$2,$T$3,CONFIGURATION!$B$10,\"BMA\",CONFIGURATION!$B$1,\"bscr\",CONFIGURATION!$B$12)","v":"Mapped"},"brrt_TierAxis_brrt_Tier3Member","brrt_BasicAncillaryAxis_brrt_AncillaryMember",null,null,null,null,null,null,"bma_ScheduleOfEligibleCapitalTier3AncillaryCapitalcApprovedLettersOfCreditform8Line1c"]
[null,null,"(c) Approved guarantees (Form 8, STMT LINE 1(c) (ii))",null,null,null,null,null,null,{"$f":"Import!M10156","v":0},null,null,"brrt_ApprovedGuarantees",{"$f":"XBRLMap(J76,M76&\".\"&O76&\".\"&P76,$T$2,$T$3,CONFIGURATION!$B$10,\"BMA\",CONFIGURATION!$B$1,\"bscr\",CONFIGURATION!$B$12)","v":"Mapped"},"brrt_TierAxis_brrt_Tier3Member","brrt_BasicAncillaryAxis_brrt_AncillaryMember",null,null,null,null,null,null,"bma_ScheduleOfEligibleCapitalTier3AncillaryCapitaldApprovedParentalGuaranteesform8Line1c"]
[null,"TOTAL TIER 3 AVAILABLE CAPITAL",null,null,null,null,null,null,null,{"$f":"J72+J74+J75+J76","v":0}," ",null,"brrt_AvailableCapital",{"$f":"XBRLMap(J77,M77&\".\"&O77&\".\"&P77,$T$2,$T$3,CONFIGURATION!$B$10,\"BMA\",CONFIGURATION!$B$1,\"bscr\",CONFIGURATION!$B$12)","v":"Mapped"},"brrt_TierAxis_brrt_Tier3Member","brrt_BasicAncillaryAxis_brrt_TotalMember",null,null,null,null,null,null,"bma_ScheduleOfEligibleCapitalTotalTier3AvailableCapital"]
[null,null,null,null,null,null,null,null,null,null,null,null,null,null,null,null,null,null,null,null,null,null,""]
[null,"TOTAL ELIGIBLE CAPITAL ",null,null,null,null,null,null,null,{"$f":"J56+J69+J77","v":0}," ",null,"brrt_TotalAvailableStatutoryCapitalAndSurplus",{"$f":"XBRLMap(J79,M79,$T$2,$T$3,CONFIGURATION!$B$10,\"BMA\",CONFIGURATION!$B$1,\"bscr\",CONFIGURATION!$B$12)","v":"Mapped"},null,null,null,null,null,null,null,null,"bma_ScheduleOfEligibleCapitalTotalStatutoryCapitalAndSurplus"]
[]
[null,null,null,null,null,null,null,null,null,{"$f":"IF(J82=\"TRUE\",HYPERLINK(\"#'Schedule XII(a)'!J9\",\"TRUE\"),HYPERLINK(\"#'Schedule XII(a)'!J9\",\"FALSE\"))","v":"TRUE"}]
[null,null,null,null,null,null,null,null,null,{"$f":"IF(ROUND((J9-J79),0)=0,\"TRUE\",\"FALSE\")","v":"TRUE"}]
[null,null,null,null,null,null,null,null,null,{"$f":"ROUND(J9-J79,0)","v":0}]
[]
[null,null,null,null,null,null,null,null,{"$f":"IF(J81=\"False\",\"Reconciliation does not equal Total Eligible Capital\",\"\")","v":""}]
[]
[null,"REGULATORY CAPITAL LEVELS"]
[null,null,"Minimum Margin of Solvency",null,null,null,null,null,null,{"$f":"+Summary!N103","v":1000},null,null,"brrt_MinimumSolvencyMargin",{"$f":"XBRLMap(J88,M88,$T$2,$T$3,CONFIGURATION!$B$10,\"BMA\",CONFIGURATION!$B$1,\"bscr\",CONFIGURATION!$B$12)","v":"Mapped"},null,null,null,null,null,null,null,null,"bma_ScheduleOfEligibleCapitalMinimumMarginOfSolvency"]
[null,null,"Enhanced Capital Requirement",null,null,null,null,null,null,{"$f":"Summary!N109","v":1000}]
[null,null,"Enhanced Capital Requirement - Transition",null,null,null,null,null,null,{"$f":"Summary!N107","v":1000},null,null,"brrt_EnhancedCapitalRequirement",{"$f":"XBRLMap(J90,M90,$T$2,$T$3,CONFIGURATION!$B$10,\"BMA\",CONFIGURATION!$B$1,\"bscr\",CONFIGURATION!$B$12)","v":"Mapped"},null,null,null,null,null,null,null,null,"bma_ScheduleOfEligibleCapitalEnhancedCapitalRequirement"]
[]
[null,null,null,"Limits","MSM","ECR","Applied to MSM","Met - Y/N","Applied to ECR","Met - Y/N"]
[null,null,"Tier 1","min",0.8,{"$f":"IF('Company Information'!F11=\"Class 3A\",50%,60%)","v":0.6},{"$f":"MAX(0,(IF(I40<G24,J56,L56)))","v":0},{"$f":"IF(J56>=E93*J88,\"Yes\",\"No\")","v":"No"},{"$f":"MAX(0,J56)","v":0},{"$f":"IF(J56>=F93*J90,\"Yes\",\"No\")","v":"No"}]
[null,null,"Tier 2 ","max",0.25,{"$f":"IF('Company Information'!F11=\"Class 3A\",50%,66.67%)","v":0.66670000000000007},{"$f":"MAX(0,(IF(I40<G24,MIN(J69,G93*0.25),MIN(L69,G93*0.25))))","v":0},null,{"$f":"IF('Company Information'!F11=\"Class 3A\",MIN(J69,I93),MIN(J69,I93*0.667))","v":0}]
[null,null,"Tier 3 ",null,null,0.17649999999999999,null,null,{"$f":"MAX(0,MIN(J77,((I93+I94)*0.1765),((0.667*I93-I94))))","v":0}]
[null,null,"Eligible Capital",null,null,null,{"$f":"SUM(G93:G95)","v":0},{"$f":"IF(G96>=J88,\"Yes\",\"No\")","v":"No"},{"$f":"SUM(I93:I95)","v":0},{"$f":"IF(I96>=J90,\"Yes\",\"No\")","v":"No"}]
[]
[null,null,"Note 1 - No deduction from Tier 1 would be required where an insurer can demonstrate that the assets are encumbered for its own risk management purposes."]
[]
[]
[]
[]
[]
[]
[]
[]
[]
[]
[]
[]
[]
[]
[]
[]
[]
[]
[]
[]
[]
[]
[]
[]
[]
[]
[]
[]
[null,"*¹"]

{"sheet":"Schedule XII(b)","index":82,"n_rows":219,"n_cols":15,"rows_kept":219,"cut":false,"hidden":false,"merged":[]}
["SCHEDULE OF ELIGIBLE CAPITAL - ADDITIONAL DETAILS (TABLE 12)",null,null,null,null,null,{"$f":"HYPERLINK(\"#'Index'!A1\",\"Return to Index\")","v":"Return to Index"}]
[]
[null,{"$f":"'Company Information'!C7","v":"Enter Company Name"}]
[null,"For the year ending",{"$f":"'Company Information'!C3","v":"2019-12-31"},null,null,null,"SCHEDULE XII(b)"]
[null,{"$f":"\"expressed in\"& IF(CONFIGURATION!$B$12>1,\" ['\"&MID(CONFIGURATION!$B$12,2,LEN(CONFIGURATION!$B$12))&\"s]\",\"\")","v":"expressed in ['000s]"},{"$f":"'Form 1EBS'!C4","v":"United States Dollars"},null,null,null,null,null,null,null,{"$f":"'Company Information'!L1","v":"01/01/2019"}]
[null,null,null,null,null,null,null,null,null,null,{"$f":"'Company Information'!L2","v":"12/31/2019"}]
[null,"1) Enter number of capital instruments ",{"$f":"Import!E10160","v":0}]
[null,"2) Enter description of each capital instrument"]
[null,null,null,null,null,null,null,null,null,"brrt_EligibleCapitalDetails"]
[null,"Description of capital instrument","Date of issue","Maturity date (as applicable)","Date approved by the Authority","Value of capital instrument","Eligible capital tier",null,null,"brrt_EligibleCapitalDetailsDescriptionOfCapitalInstrument","brrt_EligibleCapitalDetailsDateOfIssue","brrt_EligibleCapitalDetailsMaturityDate","brrt_EligibleCapitalDetailsDateApprovedByAuthority","brrt_EligibleCapitalDetailsValueOfCapitalInstrument","brrt_EligibleCapitalDetailsEligibleCapitalTier"]
[1,{"$f":"Import!E10161","v":0},{"$f":"Import!E10181","v":"00:00:00"},{"$f":"Import!E10201","v":"00:00:00"},{"$f":"Import!E10221","v":"00:00:00"},{"$f":"Import!E10241","v":0},{"$f":"Import!E10261","v":0},null,null,{"$f":"IF(OR(B11<>\"\",C11<>\"\",D11<>\"\",E11<>\"\",F11<>\"\",G11<>\"\"),XBRLMapTuple($J$9,$K$5,$K$6,\"BMA\",CONFIGURATION!$B$1,\"bscr\",\"\",CONFIGURATION!$B$12,$J$10,B11,$K$10,C11,$L$10,D11,$M$10,E11,$N$10,F11,$O$10,G11),\"emptyTuple\")","v":"Mapped"}]
[2,{"$f":"Import!E10162","v":0},{"$f":"Import!E10182","v":"00:00:00"},{"$f":"Import!E10202","v":"00:00:00"},{"$f":"Import!E10222","v":"00:00:00"},{"$f":"Import!E10242","v":0},{"$f":"Import!E10262","v":0},null,null,{"$f":"IF(OR(B12<>\"\",C12<>\"\",D12<>\"\",E12<>\"\",F12<>\"\",G12<>\"\"),XBRLMapTuple($J$9,$K$5,$K$6,\"BMA\",CONFIGURATION!$B$1,\"bscr\",\"\",CONFIGURATION!$B$12,$J$10,B12,$K$10,C12,$L$10,D12,$M$10,E12,$N$10,F12,$O$10,G12),\"emptyTuple\")","v":"Mapped"}]
[3,{"$f":"Import!E10163","v":0},{"$f":"Import!E10183","v":"00:00:00"},{"$f":"Import!E10203","v":"00:00:00"},{"$f":"Import!E10223","v":"00:00:00"},{"$f":"Import!E10243","v":0},{"$f":"Import!E10263","v":0},null,null,{"$f":"IF(OR(B13<>\"\",C13<>\"\",D13<>\"\",E13<>\"\",F13<>\"\",G13<>\"\"),XBRLMapTuple($J$9,$K$5,$K$6,\"BMA\",CONFIGURATION!$B$1,\"bscr\",\"\",CONFIGURATION!$B$12,$J$10,B13,$K$10,C13,$L$10,D13,$M$10,E13,$N$10,F13,$O$10,G13),\"emptyTuple\")","v":"Mapped"}]
[4,{"$f":"Import!E10164","v":0},{"$f":"Import!E10184","v":"00:00:00"},{"$f":"Import!E10204","v":"00:00:00"},{"$f":"Import!E10224","v":"00:00:00"},{"$f":"Import!E10244","v":0},{"$f":"Import!E10264","v":0},null,null,{"$f":"IF(OR(B14<>\"\",C14<>\"\",D14<>\"\",E14<>\"\",F14<>\"\",G14<>\"\"),XBRLMapTuple($J$9,$K$5,$K$6,\"BMA\",CONFIGURATION!$B$1,\"bscr\",\"\",CONFIGURATION!$B$12,$J$10,B14,$K$10,C14,$L$10,D14,$M$10,E14,$N$10,F14,$O$10,G14),\"emptyTuple\")","v":"Mapped"}]
[5,{"$f":"Import!E10165","v":0},{"$f":"Import!E10185","v":"00:00:00"},{"$f":"Import!E10205","v":"00:00:00"},{"$f":"Import!E10225","v":"00:00:00"},{"$f":"Import!E10245","v":0},{"$f":"Import!E10265","v":0},null,null,{"$f":"IF(OR(B15<>\"\",C15<>\"\",D15<>\"\",E15<>\"\",F15<>\"\",G15<>\"\"),XBRLMapTuple($J$9,$K$5,$K$6,\"BMA\",CONFIGURATION!$B$1,\"bscr\",\"\",CONFIGURATION!$B$12,$J$10,B15,$K$10,C15,$L$10,D15,$M$10,E15,$N$10,F15,$O$10,G15),\"emptyTuple\")","v":"Mapped"}]
[6,{"$f":"Import!E10166","v":0},{"$f":"Import!E10186","v":"00:00:00"},{"$f":"Import!E10206","v":"00:00:00"},{"$f":"Import!E10226","v":"00:00:00"},{"$f":"Import!E10246","v":0},{"$f":"Import!E10266","v":0},null,null,{"$f":"IF(OR(B16<>\"\",C16<>\"\",D16<>\"\",E16<>\"\",F16<>\"\",G16<>\"\"),XBRLMapTuple($J$9,$K$5,$K$6,\"BMA\",CONFIGURATION!$B$1,\"bscr\",\"\",CONFIGURATION!$B$12,$J$10,B16,$K$10,C16,$L$10,D16,$M$10,E16,$N$10,F16,$O$10,G16),\"emptyTuple\")","v":"Mapped"}]
[7,{"$f":"Import!E10167","v":0},{"$f":"Import!E10187","v":"00:00:00"},{"$f":"Import!E10207","v":"00:00:00"},{"$f":"Import!E10227","v":"00:00:00"},{"$f":"Import!E10247","v":0},{"$f":"Import!E10267","v":0},null,null,{"$f":"IF(OR(B17<>\"\",C17<>\"\",D17<>\"\",E17<>\"\",F17<>\"\",G17<>\"\"),XBRLMapTuple($J$9,$K$5,$K$6,\"BMA\",CONFIGURATION!$B$1,\"bscr\",\"\",CONFIGURATION!$B$12,$J$10,B17,$K$10,C17,$L$10,D17,$M$10,E17,$N$10,F17,$O$10,G17),\"emptyTuple\")","v":"Mapped"}]
[8,{"$f":"Import!E10168","v":0},{"$f":"Import!E10188","v":"00:00:00"},{"$f":"Import!E10208","v":"00:00:00"},{"$f":"Import!E10228","v":"00:00:00"},{"$f":"Import!E10248","v":0},{"$f":"Import!E10268","v":0},null,null,{"$f":"IF(OR(B18<>\"\",C18<>\"\",D18<>\"\",E18<>\"\",F18<>\"\",G18<>\"\"),XBRLMapTuple($J$9,$K$5,$K$6,\"BMA\",CONFIGURATION!$B$1,\"bscr\",\"\",CONFIGURATION!$B$12,$J$10,B18,$K$10,C18,$L$10,D18,$M$10,E18,$N$10,F18,$O$10,G18),\"emptyTuple\")","v":"Mapped"}]
[9,{"$f":"Import!E10169","v":0},{"$f":"Import!E10189","v":"00:00:00"},{"$f":"Import!E10209","v":"00:00:00"},{"$f":"Import!E10229","v":"00:00:00"},{"$f":"Import!E10249","v":0},{"$f":"Import!E10269","v":0},null,null,{"$f":"IF(OR(B19<>\"\",C19<>\"\",D19<>\"\",E19<>\"\",F19<>\"\",G19<>\"\"),XBRLMapTuple($J$9,$K$5,$K$6,\"BMA\",CONFIGURATION!$B$1,\"bscr\",\"\",CONFIGURATION!$B$12,$J$10,B19,$K$10,C19,$L$10,D19,$M$10,E19,$N$10,F19,$O$10,G19),\"emptyTuple\")","v":"Mapped"}]
[10,{"$f":"Import!E10170","v":0},{"$f":"Import!E10190","v":"00:00:00"},{"$f":"Import!E10210","v":"00:00:00"},{"$f":"Import!E10230","v":"00:00:00"},{"$f":"Import!E10250","v":0},{"$f":"Import!E10270","v":0},null,null,{"$f":"IF(OR(B20<>\"\",C20<>\"\",D20<>\"\",E20<>\"\",F20<>\"\",G20<>\"\"),XBRLMapTuple($J$9,$K$5,$K$6,\"BMA\",CONFIGURATION!$B$1,\"bscr\",\"\",CONFIGURATION!$B$12,$J$10,B20,$K$10,C20,$L$10,D20,$M$10,E20,$N$10,F20,$O$10,G20),\"emptyTuple\")","v":"Mapped"}]
[11,{"$f":"Import!E10171","v":0},{"$f":"Import!E10191","v":"00:00:00"},{"$f":"Import!E10211","v":"00:00:00"},{"$f":"Import!E10231","v":"00:00:00"},{"$f":"Import!E10251","v":0},{"$f":"Import!E10271","v":0},null,null,{"$f":"IF(OR(B21<>\"\",C21<>\"\",D21<>\"\",E21<>\"\",F21<>\"\",G21<>\"\"),XBRLMapTuple($J$9,$K$5,$K$6,\"BMA\",CONFIGURATION!$B$1,\"bscr\",\"\",CONFIGURATION!$B$12,$J$10,B21,$K$10,C21,$L$10,D21,$M$10,E21,$N$10,F21,$O$10,G21),\"emptyTuple\")","v":"Mapped"}]
[12,{"$f":"Import!E10172","v":0},{"$f":"Import!E10192","v":"00:00:00"},{"$f":"Import!E10212","v":"00:00:00"},{"$f":"Import!E10232","v":"00:00:00"},{"$f":"Import!E10252","v":0},{"$f":"Import!E10272","v":0},null,null,{"$f":"IF(OR(B22<>\"\",C22<>\"\",D22<>\"\",E22<>\"\",F22<>\"\",G22<>\"\"),XBRLMapTuple($J$9,$K$5,$K$6,\"BMA\",CONFIGURATION!$B$1,\"bscr\",\"\",CONFIGURATION!$B$12,$J$10,B22,$K$10,C22,$L$10,D22,$M$10,E22,$N$10,F22,$O$10,G22),\"emptyTuple\")","v":"Mapped"}]
[13,{"$f":"Import!E10173","v":0},{"$f":"Import!E10193","v":"00:00:00"},{"$f":"Import!E10213","v":"00:00:00"},{"$f":"Import!E10233","v":"00:00:00"},{"$f":"Import!E10253","v":0},{"$f":"Import!E10273","v":0},null,null,{"$f":"IF(OR(B23<>\"\",C23<>\"\",D23<>\"\",E23<>\"\",F23<>\"\",G23<>\"\"),XBRLMapTuple($J$9,$K$5,$K$6,\"BMA\",CONFIGURATION!$B$1,\"bscr\",\"\",CONFIGURATION!$B$12,$J$10,B23,$K$10,C23,$L$10,D23,$M$10,E23,$N$10,F23,$O$10,G23),\"emptyTuple\")","v":"Mapped"}]
[14,{"$f":"Import!E10174","v":0},{"$f":"Import!E10194","v":"00:00:00"},{"$f":"Import!E10214","v":"00:00:00"},{"$f":"Import!E10234","v":"00:00:00"},{"$f":"Import!E10254","v":0},{"$f":"Import!E10274","v":0},null,null,{"$f":"IF(OR(B24<>\"\",C24<>\"\",D24<>\"\",E24<>\"\",F24<>\"\",G24<>\"\"),XBRLMapTuple($J$9,$K$5,$K$6,\"BMA\",CONFIGURATION!$B$1,\"bscr\",\"\",CONFIGURATION!$B$12,$J$10,B24,$K$10,C24,$L$10,D24,$M$10,E24,$N$10,F24,$O$10,G24),\"emptyTuple\")","v":"Mapped"}]
[15,{"$f":"Import!E10175","v":0},{"$f":"Import!E10195","v":"00:00:00"},{"$f":"Import!E10215","v":"00:00:00"},{"$f":"Import!E10235","v":"00:00:00"},{"$f":"Import!E10255","v":0},{"$f":"Import!E10275","v":0},null,null,{"$f":"IF(OR(B25<>\"\",C25<>\"\",D25<>\"\",E25<>\"\",F25<>\"\",G25<>\"\"),XBRLMapTuple($J$9,$K$5,$K$6,\"BMA\",CONFIGURATION!$B$1,\"bscr\",\"\",CONFIGURATION!$B$12,$J$10,B25,$K$10,C25,$L$10,D25,$M$10,E25,$N$10,F25,$O$10,G25),\"emptyTuple\")","v":"Mapped"}]
[16,{"$f":"Import!E10176","v":0},{"$f":"Import!E10196","v":"00:00:00"},{"$f":"Import!E10216","v":"00:00:00"},{"$f":"Import!E10236","v":"00:00:00"},{"$f":"Import!E10256","v":0},{"$f":"Import!E10276","v":0},null,null,{"$f":"IF(OR(B26<>\"\",C26<>\"\",D26<>\"\",E26<>\"\",F26<>\"\",G26<>\"\"),XBRLMapTuple($J$9,$K$5,$K$6,\"BMA\",CONFIGURATION!$B$1,\"bscr\",\"\",CONFIGURATION!$B$12,$J$10,B26,$K$10,C26,$L$10,D26,$M$10,E26,$N$10,F26,$O$10,G26),\"emptyTuple\")","v":"Mapped"}]
[17,{"$f":"Import!E10177","v":0},{"$f":"Import!E10197","v":"00:00:00"},{"$f":"Import!E10217","v":"00:00:00"},{"$f":"Import!E10237","v":"00:00:00"},{"$f":"Import!E10257","v":0},{"$f":"Import!E10277","v":0},null,null,{"$f":"IF(OR(B27<>\"\",C27<>\"\",D27<>\"\",E27<>\"\",F27<>\"\",G27<>\"\"),XBRLMapTuple($J$9,$K$5,$K$6,\"BMA\",CONFIGURATION!$B$1,\"bscr\",\"\",CONFIGURATION!$B$12,$J$10,B27,$K$10,C27,$L$10,D27,$M$10,E27,$N$10,F27,$O$10,G27),\"emptyTuple\")","v":"Mapped"}]
[18,{"$f":"Import!E10178","v":0},{"$f":"Import!E10198","v":"00:00:00"},{"$f":"Import!E10218","v":"00:00:00"},{"$f":"Import!E10238","v":"00:00:00"},{"$f":"Import!E10258","v":0},{"$f":"Import!E10278","v":0},null,null,{"$f":"IF(OR(B28<>\"\",C28<>\"\",D28<>\"\",E28<>\"\",F28<>\"\",G28<>\"\"),XBRLMapTuple($J$9,$K$5,$K$6,\"BMA\",CONFIGURATION!$B$1,\"bscr\",\"\",CONFIGURATION!$B$12,$J$10,B28,$K$10,C28,$L$10,D28,$M$10,E28,$N$10,F28,$O$10,G28),\"emptyTuple\")","v":"Mapped"}]
[19,{"$f":"Import!E10179","v":0},{"$f":"Import!E10199","v":"00:00:00"},{"$f":"Import!E10219","v":"00:00:00"},{"$f":"Import!E10239","v":"00:00:00"},{"$f":"Import!E10259","v":0},{"$f":"Import!E10279","v":0},null,null,{"$f":"IF(OR(B29<>\"\",C29<>\"\",D29<>\"\",E29<>\"\",F29<>\"\",G29<>\"\"),XBRLMapTuple($J$9,$K$5,$K$6,\"BMA\",CONFIGURATION!$B$1,\"bscr\",\"\",CONFIGURATION!$B$12,$J$10,B29,$K$10,C29,$L$10,D29,$M$10,E29,$N$10,F29,$O$10,G29),\"emptyTuple\")","v":"Mapped"}]
[20,{"$f":"Import!E10180","v":0},{"$f":"Import!E10200","v":"00:00:00"},{"$f":"Import!E10220","v":"00:00:00"},{"$f":"Import!E10240","v":"00:00:00"},{"$f":"Import!E10260","v":0},{"$f":"Import!E10280","v":0},null,null,{"$f":"IF(OR(B30<>\"\",C30<>\"\",D30<>\"\",E30<>\"\",F30<>\"\",G30<>\"\"),XBRLMapTuple($J$9,$K$5,$K$6,\"BMA\",CONFIGURATION!$B$1,\"bscr\",\"\",CONFIGURATION!$B$12,$J$10,B30,$K$10,C30,$L$10,D30,$M$10,E30,$N$10,F30,$O$10,G30),\"emptyTuple\")","v":"Mapped"}]
[21,null,null,null,null,null,null,null,null,{"$f":"IF(OR(B31<>\"\",C31<>\"\",D31<>\"\",E31<>\"\",F31<>\"\",G31<>\"\"),XBRLMapTuple($J$9,$K$5,$K$6,\"BMA\",CONFIGURATION!$B$1,\"bscr\",\"\",CONFIGURATION!$B$12,$J$10,B31,$K$10,C31,$L$10,D31,$M$10,E31,$N$10,F31,$O$10,G31),\"emptyTuple\")","v":"emptyTuple"}]
[22,null,null,null,null,null,null,null,null,{"$f":"IF(OR(B32<>\"\",C32<>\"\",D32<>\"\",E32<>\"\",F32<>\"\",G32<>\"\"),XBRLMapTuple($J$9,$K$5,$K$6,\"BMA\",CONFIGURATION!$B$1,\"bscr\",\"\",CONFIGURATION!$B$12,$J$10,B32,$K$10,C32,$L$10,D32,$M$10,E32,$N$10,F32,$O$10,G32),\"emptyTuple\")","v":"emptyTuple"}]
[23,null,null,null,null,null,null,null,null,{"$f":"IF(OR(B33<>\"\",C33<>\"\",D33<>\"\",E33<>\"\",F33<>\"\",G33<>\"\"),XBRLMapTuple($J$9,$K$5,$K$6,\"BMA\",CONFIGURATION!$B$1,\"bscr\",\"\",CONFIGURATION!$B$12,$J$10,B33,$K$10,C33,$L$10,D33,$M$10,E33,$N$10,F33,$O$10,G33),\"emptyTuple\")","v":"emptyTuple"}]
[24,null,null,null,null,null,null,null,null,{"$f":"IF(OR(B34<>\"\",C34<>\"\",D34<>\"\",E34<>\"\",F34<>\"\",G34<>\"\"),XBRLMapTuple($J$9,$K$5,$K$6,\"BMA\",CONFIGURATION!$B$1,\"bscr\",\"\",CONFIGURATION!$B$12,$J$10,B34,$K$10,C34,$L$10,D34,$M$10,E34,$N$10,F34,$O$10,G34),\"emptyTuple\")","v":"emptyTuple"}]
[25,null,null,null,null,null,null,null,null,{"$f":"IF(OR(B35<>\"\",C35<>\"\",D35<>\"\",E35<>\"\",F35<>\"\",G35<>\"\"),XBRLMapTuple($J$9,$K$5,$K$6,\"BMA\",CONFIGURATION!$B$1,\"bscr\",\"\",CONFIGURATION!$B$12,$J$10,B35,$K$10,C35,$L$10,D35,$M$10,E35,$N$10,F35,$O$10,G35),\"emptyTuple\")","v":"emptyTuple"}]
[26,null,null,null,null,null,null,null,null,{"$f":"IF(OR(B36<>\"\",C36<>\"\",D36<>\"\",E36<>\"\",F36<>\"\",G36<>\"\"),XBRLMapTuple($J$9,$K$5,$K$6,\"BMA\",CONFIGURATION!$B$1,\"bscr\",\"\",CONFIGURATION!$B$12,$J$10,B36,$K$10,C36,$L$10,D36,$M$10,E36,$N$10,F36,$O$10,G36),\"emptyTuple\")","v":"emptyTuple"}]
[27,null,null,null,null,null,null,null,null,{"$f":"IF(OR(B37<>\"\",C37<>\"\",D37<>\"\",E37<>\"\",F37<>\"\",G37<>\"\"),XBRLMapTuple($J$9,$K$5,$K$6,\"BMA\",CONFIGURATION!$B$1,\"bscr\",\"\",CONFIGURATION!$B$12,$J$10,B37,$K$10,C37,$L$10,D37,$M$10,E37,$N$10,F37,$O$10,G37),\"emptyTuple\")","v":"emptyTuple"}]
[28,null,null,null,null,null,null,null,null,{"$f":"IF(OR(B38<>\"\",C38<>\"\",D38<>\"\",E38<>\"\",F38<>\"\",G38<>\"\"),XBRLMapTuple($J$9,$K$5,$K$6,\"BMA\",CONFIGURATION!$B$1,\"bscr\",\"\",CONFIGURATION!$B$12,$J$10,B38,$K$10,C38,$L$10,D38,$M$10,E38,$N$10,F38,$O$10,G38),\"emptyTuple\")","v":"emptyTuple"}]
[29,null,null,null,null,null,null,null,null,{"$f":"IF(OR(B39<>\"\",C39<>\"\",D39<>\"\",E39<>\"\",F39<>\"\",G39<>\"\"),XBRLMapTuple($J$9,$K$5,$K$6,\"BMA\",CONFIGURATION!$B$1,\"bscr\",\"\",CONFIGURATION!$B$12,$J$10,B39,$K$10,C39,$L$10,D39,$M$10,E39,$N$10,F39,$O$10,G39),\"emptyTuple\")","v":"emptyTuple"}]
[30,null,null,null,null,null,null,null,null,{"$f":"IF(OR(B40<>\"\",C40<>\"\",D40<>\"\",E40<>\"\",F40<>\"\",G40<>\"\"),XBRLMapTuple($J$9,$K$5,$K$6,\"BMA\",CONFIGURATION!$B$1,\"bscr\",\"\",CONFIGURATION!$B$12,$J$10,B40,$K$10,C40,$L$10,D40,$M$10,E40,$N$10,F40,$O$10,G40),\"emptyTuple\")","v":"emptyTuple"}]
[31,null,null,null,null,null,null,null,null,{"$f":"IF(OR(B41<>\"\",C41<>\"\",D41<>\"\",E41<>\"\",F41<>\"\",G41<>\"\"),XBRLMapTuple($J$9,$K$5,$K$6,\"BMA\",CONFIGURATION!$B$1,\"bscr\",\"\",CONFIGURATION!$B$12,$J$10,B41,$K$10,C41,$L$10,D41,$M$10,E41,$N$10,F41,$O$10,G41),\"emptyTuple\")","v":"emptyTuple"}]
[32,null,null,null,null,null,null,null,null,{"$f":"IF(OR(B42<>\"\",C42<>\"\",D42<>\"\",E42<>\"\",F42<>\"\",G42<>\"\"),XBRLMapTuple($J$9,$K$5,$K$6,\"BMA\",CONFIGURATION!$B$1,\"bscr\",\"\",CONFIGURATION!$B$12,$J$10,B42,$K$10,C42,$L$10,D42,$M$10,E42,$N$10,F42,$O$10,G42),\"emptyTuple\")","v":"emptyTuple"}]
[33,null,null,null,null,null,null,null,null,{"$f":"IF(OR(B43<>\"\",C43<>\"\",D43<>\"\",E43<>\"\",F43<>\"\",G43<>\"\"),XBRLMapTuple($J$9,$K$5,$K$6,\"BMA\",CONFIGURATION!$B$1,\"bscr\",\"\",CONFIGURATION!$B$12,$J$10,B43,$K$10,C43,$L$10,D43,$M$10,E43,$N$10,F43,$O$10,G43),\"emptyTuple\")","v":"emptyTuple"}]
[34,null,null,null,null,null,null,null,null,{"$f":"IF(OR(B44<>\"\",C44<>\"\",D44<>\"\",E44<>\"\",F44<>\"\",G44<>\"\"),XBRLMapTuple($J$9,$K$5,$K$6,\"BMA\",CONFIGURATION!$B$1,\"bscr\",\"\",CONFIGURATION!$B$12,$J$10,B44,$K$10,C44,$L$10,D44,$M$10,E44,$N$10,F44,$O$10,G44),\"emptyTuple\")","v":"emptyTuple"}]
[35,null,null,null,null,null,null,null,null,{"$f":"IF(OR(B45<>\"\",C45<>\"\",D45<>\"\",E45<>\"\",F45<>\"\",G45<>\"\"),XBRLMapTuple($J$9,$K$5,$K$6,\"BMA\",CONFIGURATION!$B$1,\"bscr\",\"\",CONFIGURATION!$B$12,$J$10,B45,$K$10,C45,$L$10,D45,$M$10,E45,$N$10,F45,$O$10,G45),\"emptyTuple\")","v":"emptyTuple"}]
[36,null,null,null,null,null,null,null,null,{"$f":"IF(OR(B46<>\"\",C46<>\"\",D46<>\"\",E46<>\"\",F46<>\"\",G46<>\"\"),XBRLMapTuple($J$9,$K$5,$K$6,\"BMA\",CONFIGURATION!$B$1,\"bscr\",\"\",CONFIGURATION!$B$12,$J$10,B46,$K$10,C46,$L$10,D46,$M$10,E46,$N$10,F46,$O$10,G46),\"emptyTuple\")","v":"emptyTuple"}]
[37,null,null,null,null,null,null,null,null,{"$f":"IF(OR(B47<>\"\",C47<>\"\",D47<>\"\",E47<>\"\",F47<>\"\",G47<>\"\"),XBRLMapTuple($J$9,$K$5,$K$6,\"BMA\",CONFIGURATION!$B$1,\"bscr\",\"\",CONFIGURATION!$B$12,$J$10,B47,$K$10,C47,$L$10,D47,$M$10,E47,$N$10,F47,$O$10,G47),\"emptyTuple\")","v":"emptyTuple"}]
[38,null,null,null,null,null,null,null,null,{"$f":"IF(OR(B48<>\"\",C48<>\"\",D48<>\"\",E48<>\"\",F48<>\"\",G48<>\"\"),XBRLMapTuple($J$9,$K$5,$K$6,\"BMA\",CONFIGURATION!$B$1,\"bscr\",\"\",CONFIGURATION!$B$12,$J$10,B48,$K$10,C48,$L$10,D48,$M$10,E48,$N$10,F48,$O$10,G48),\"emptyTuple\")","v":"emptyTuple"}]
[39,null,null,null,null,null,null,null,null,{"$f":"IF(OR(B49<>\"\",C49<>\"\",D49<>\"\",E49<>\"\",F49<>\"\",G49<>\"\"),XBRLMapTuple($J$9,$K$5,$K$6,\"BMA\",CONFIGURATION!$B$1,\"bscr\",\"\",CONFIGURATION!$B$12,$J$10,B49,$K$10,C49,$L$10,D49,$M$10,E49,$N$10,F49,$O$10,G49),\"emptyTuple\")","v":"emptyTuple"}]
[40,null,null,null,null,null,null,null,null,{"$f":"IF(OR(B50<>\"\",C50<>\"\",D50<>\"\",E50<>\"\",F50<>\"\",G50<>\"\"),XBRLMapTuple($J$9,$K$5,$K$6,\"BMA\",CONFIGURATION!$B$1,\"bscr\",\"\",CONFIGURATION!$B$12,$J$10,B50,$K$10,C50,$L$10,D50,$M$10,E50,$N$10,F50,$O$10,G50),\"emptyTuple\")","v":"emptyTuple"}]
[41,null,null,null,null,null,null,null,null,{"$f":"IF(OR(B51<>\"\",C51<>\"\",D51<>\"\",E51<>\"\",F51<>\"\",G51<>\"\"),XBRLMapTuple($J$9,$K$5,$K$6,\"BMA\",CONFIGURATION!$B$1,\"bscr\",\"\",CONFIGURATION!$B$12,$J$10,B51,$K$10,C51,$L$10,D51,$M$10,E51,$N$10,F51,$O$10,G51),\"emptyTuple\")","v":"emptyTuple"}]
[42,null,null,null,null,null,null,null,null,{"$f":"IF(OR(B52<>\"\",C52<>\"\",D52<>\"\",E52<>\"\",F52<>\"\",G52<>\"\"),XBRLMapTuple($J$9,$K$5,$K$6,\"BMA\",CONFIGURATION!$B$1,\"bscr\",\"\",CONFIGURATION!$B$12,$J$10,B52,$K$10,C52,$L$10,D52,$M$10,E52,$N$10,F52,$O$10,G52),\"emptyTuple\")","v":"emptyTuple"}]
[43,null,null,null,null,null,null,null,null,{"$f":"IF(OR(B53<>\"\",C53<>\"\",D53<>\"\",E53<>\"\",F53<>\"\",G53<>\"\"),XBRLMapTuple($J$9,$K$5,$K$6,\"BMA\",CONFIGURATION!$B$1,\"bscr\",\"\",CONFIGURATION!$B$12,$J$10,B53,$K$10,C53,$L$10,D53,$M$10,E53,$N$10,F53,$O$10,G53),\"emptyTuple\")","v":"emptyTuple"}]
[44,null,null,null,null,null,null,null,null,{"$f":"IF(OR(B54<>\"\",C54<>\"\",D54<>\"\",E54<>\"\",F54<>\"\",G54<>\"\"),XBRLMapTuple($J$9,$K$5,$K$6,\"BMA\",CONFIGURATION!$B$1,\"bscr\",\"\",CONFIGURATION!$B$12,$J$10,B54,$K$10,C54,$L$10,D54,$M$10,E54,$N$10,F54,$O$10,G54),\"emptyTuple\")","v":"emptyTuple"}]
[45,null,null,null,null,null,null,null,null,{"$f":"IF(OR(B55<>\"\",C55<>\"\",D55<>\"\",E55<>\"\",F55<>\"\",G55<>\"\"),XBRLMapTuple($J$9,$K$5,$K$6,\"BMA\",CONFIGURATION!$B$1,\"bscr\",\"\",CONFIGURATION!$B$12,$J$10,B55,$K$10,C55,$L$10,D55,$M$10,E55,$N$10,F55,$O$10,G55),\"emptyTuple\")","v":"emptyTuple"}]
[46,null,null,null,null,null,null,null,null,{"$f":"IF(OR(B56<>\"\",C56<>\"\",D56<>\"\",E56<>\"\",F56<>\"\",G56<>\"\"),XBRLMapTuple($J$9,$K$5,$K$6,\"BMA\",CONFIGURATION!$B$1,\"bscr\",\"\",CONFIGURATION!$B$12,$J$10,B56,$K$10,C56,$L$10,D56,$M$10,E56,$N$10,F56,$O$10,G56),\"emptyTuple\")","v":"emptyTuple"}]
[47,null,null,null,null,null,null,null,null,{"$f":"IF(OR(B57<>\"\",C57<>\"\",D57<>\"\",E57<>\"\",F57<>\"\",G57<>\"\"),XBRLMapTuple($J$9,$K$5,$K$6,\"BMA\",CONFIGURATION!$B$1,\"bscr\",\"\",CONFIGURATION!$B$12,$J$10,B57,$K$10,C57,$L$10,D57,$M$10,E57,$N$10,F57,$O$10,G57),\"emptyTuple\")","v":"emptyTuple"}]
[48,null,null,null,null,null,null,null,null,{"$f":"IF(OR(B58<>\"\",C58<>\"\",D58<>\"\",E58<>\"\",F58<>\"\",G58<>\"\"),XBRLMapTuple($J$9,$K$5,$K$6,\"BMA\",CONFIGURATION!$B$1,\"bscr\",\"\",CONFIGURATION!$B$12,$J$10,B58,$K$10,C58,$L$10,D58,$M$10,E58,$N$10,F58,$O$10,G58),\"emptyTuple\")","v":"emptyTuple"}]
[49,null,null,null,null,null,null,null,null,{"$f":"IF(OR(B59<>\"\",C59<>\"\",D59<>\"\",E59<>\"\",F59<>\"\",G59<>\"\"),XBRLMapTuple($J$9,$K$5,$K$6,\"BMA\",CONFIGURATION!$B$1,\"bscr\",\"\",CONFIGURATION!$B$12,$J$10,B59,$K$10,C59,$L$10,D59,$M$10,E59,$N$10,F59,$O$10,G59),\"emptyTuple\")","v":"emptyTuple"}]
[50,null,null,null,null,null,null,null,null,{"$f":"IF(OR(B60<>\"\",C60<>\"\",D60<>\"\",E60<>\"\",F60<>\"\",G60<>\"\"),XBRLMapTuple($J$9,$K$5,$K$6,\"BMA\",CONFIGURATION!$B$1,\"bscr\",\"\",CONFIGURATION!$B$12,$J$10,B60,$K$10,C60,$L$10,D60,$M$10,E60,$N$10,F60,$O$10,G60),\"emptyTuple\")","v":"emptyTuple"}]
[51,null,null,null,null,null,null,null,null,{"$f":"IF(OR(B61<>\"\",C61<>\"\",D61<>\"\",E61<>\"\",F61<>\"\",G61<>\"\"),XBRLMapTuple($J$9,$K$5,$K$6,\"BMA\",CONFIGURATION!$B$1,\"bscr\",\"\",CONFIGURATION!$B$12,$J$10,B61,$K$10,C61,$L$10,D61,$M$10,E61,$N$10,F61,$O$10,G61),\"emptyTuple\")","v":"emptyTuple"}]
[52,null,null,null,null,null,null,null,null,{"$f":"IF(OR(B62<>\"\",C62<>\"\",D62<>\"\",E62<>\"\",F62<>\"\",G62<>\"\"),XBRLMapTuple($J$9,$K$5,$K$6,\"BMA\",CONFIGURATION!$B$1,\"bscr\",\"\",CONFIGURATION!$B$12,$J$10,B62,$K$10,C62,$L$10,D62,$M$10,E62,$N$10,F62,$O$10,G62),\"emptyTuple\")","v":"emptyTuple"}]
[53,null,null,null,null,null,null,null,null,{"$f":"IF(OR(B63<>\"\",C63<>\"\",D63<>\"\",E63<>\"\",F63<>\"\",G63<>\"\"),XBRLMapTuple($J$9,$K$5,$K$6,\"BMA\",CONFIGURATION!$B$1,\"bscr\",\"\",CONFIGURATION!$B$12,$J$10,B63,$K$10,C63,$L$10,D63,$M$10,E63,$N$10,F63,$O$10,G63),\"emptyTuple\")","v":"emptyTuple"}]
[54,null,null,null,null,null,null,null,null,{"$f":"IF(OR(B64<>\"\",C64<>\"\",D64<>\"\",E64<>\"\",F64<>\"\",G64<>\"\"),XBRLMapTuple($J$9,$K$5,$K$6,\"BMA\",CONFIGURATION!$B$1,\"bscr\",\"\",CONFIGURATION!$B$12,$J$10,B64,$K$10,C64,$L$10,D64,$M$10,E64,$N$10,F64,$O$10,G64),\"emptyTuple\")","v":"emptyTuple"}]
[55,null,null,null,null,null,null,null,null,{"$f":"IF(OR(B65<>\"\",C65<>\"\",D65<>\"\",E65<>\"\",F65<>\"\",G65<>\"\"),XBRLMapTuple($J$9,$K$5,$K$6,\"BMA\",CONFIGURATION!$B$1,\"bscr\",\"\",CONFIGURATION!$B$12,$J$10,B65,$K$10,C65,$L$10,D65,$M$10,E65,$N$10,F65,$O$10,G65),\"emptyTuple\")","v":"emptyTuple"}]
[56,null,null,null,null,null,null,null,null,{"$f":"IF(OR(B66<>\"\",C66<>\"\",D66<>\"\",E66<>\"\",F66<>\"\",G66<>\"\"),XBRLMapTuple($J$9,$K$5,$K$6,\"BMA\",CONFIGURATION!$B$1,\"bscr\",\"\",CONFIGURATION!$B$12,$J$10,B66,$K$10,C66,$L$10,D66,$M$10,E66,$N$10,F66,$O$10,G66),\"emptyTuple\")","v":"emptyTuple"}]
[57,null,null,null,null,null,null,null,null,{"$f":"IF(OR(B67<>\"\",C67<>\"\",D67<>\"\",E67<>\"\",F67<>\"\",G67<>\"\"),XBRLMapTuple($J$9,$K$5,$K$6,\"BMA\",CONFIGURATION!$B$1,\"bscr\",\"\",CONFIGURATION!$B$12,$J$10,B67,$K$10,C67,$L$10,D67,$M$10,E67,$N$10,F67,$O$10,G67),\"emptyTuple\")","v":"emptyTuple"}]
[58,null,null,null,null,null,null,null,null,{"$f":"IF(OR(B68<>\"\",C68<>\"\",D68<>\"\",E68<>\"\",F68<>\"\",G68<>\"\"),XBRLMapTuple($J$9,$K$5,$K$6,\"BMA\",CONFIGURATION!$B$1,\"bscr\",\"\",CONFIGURATION!$B$12,$J$10,B68,$K$10,C68,$L$10,D68,$M$10,E68,$N$10,F68,$O$10,G68),\"emptyTuple\")","v":"emptyTuple"}]
[59,null,null,null,null,null,null,null,null,{"$f":"IF(OR(B69<>\"\",C69<>\"\",D69<>\"\",E69<>\"\",F69<>\"\",G69<>\"\"),XBRLMapTuple($J$9,$K$5,$K$6,\"BMA\",CONFIGURATION!$B$1,\"bscr\",\"\",CONFIGURATION!$B$12,$J$10,B69,$K$10,C69,$L$10,D69,$M$10,E69,$N$10,F69,$O$10,G69),\"emptyTuple\")","v":"emptyTuple"}]
[60,null,null,null,null,null,null,null,null,{"$f":"IF(OR(B70<>\"\",C70<>\"\",D70<>\"\",E70<>\"\",F70<>\"\",G70<>\"\"),XBRLMapTuple($J$9,$K$5,$K$6,\"BMA\",CONFIGURATION!$B$1,\"bscr\",\"\",CONFIGURATION!$B$12,$J$10,B70,$K$10,C70,$L$10,D70,$M$10,E70,$N$10,F70,$O$10,G70),\"emptyTuple\")","v":"emptyTuple"}]
[61,null,null,null,null,null,null,null,null,{"$f":"IF(OR(B71<>\"\",C71<>\"\",D71<>\"\",E71<>\"\",F71<>\"\",G71<>\"\"),XBRLMapTuple($J$9,$K$5,$K$6,\"BMA\",CONFIGURATION!$B$1,\"bscr\",\"\",CONFIGURATION!$B$12,$J$10,B71,$K$10,C71,$L$10,D71,$M$10,E71,$N$10,F71,$O$10,G71),\"emptyTuple\")","v":"emptyTuple"}]
[62,null,null,null,null,null,null,null,null,{"$f":"IF(OR(B72<>\"\",C72<>\"\",D72<>\"\",E72<>\"\",F72<>\"\",G72<>\"\"),XBRLMapTuple($J$9,$K$5,$K$6,\"BMA\",CONFIGURATION!$B$1,\"bscr\",\"\",CONFIGURATION!$B$12,$J$10,B72,$K$10,C72,$L$10,D72,$M$10,E72,$N$10,F72,$O$10,G72),\"emptyTuple\")","v":"emptyTuple"}]
[63,null,null,null,null,null,null,null,null,{"$f":"IF(OR(B73<>\"\",C73<>\"\",D73<>\"\",E73<>\"\",F73<>\"\",G73<>\"\"),XBRLMapTuple($J$9,$K$5,$K$6,\"BMA\",CONFIGURATION!$B$1,\"bscr\",\"\",CONFIGURATION!$B$12,$J$10,B73,$K$10,C73,$L$10,D73,$M$10,E73,$N$10,F73,$O$10,G73),\"emptyTuple\")","v":"emptyTuple"}]
[64,null,null,null,null,null,null,null,null,{"$f":"IF(OR(B74<>\"\",C74<>\"\",D74<>\"\",E74<>\"\",F74<>\"\",G74<>\"\"),XBRLMapTuple($J$9,$K$5,$K$6,\"BMA\",CONFIGURATION!$B$1,\"bscr\",\"\",CONFIGURATION!$B$12,$J$10,B74,$K$10,C74,$L$10,D74,$M$10,E74,$N$10,F74,$O$10,G74),\"emptyTuple\")","v":"emptyTuple"}]
[65,null,null,null,null,null,null,null,null,{"$f":"IF(OR(B75<>\"\",C75<>\"\",D75<>\"\",E75<>\"\",F75<>\"\",G75<>\"\"),XBRLMapTuple($J$9,$K$5,$K$6,\"BMA\",CONFIGURATION!$B$1,\"bscr\",\"\",CONFIGURATION!$B$12,$J$10,B75,$K$10,C75,$L$10,D75,$M$10,E75,$N$10,F75,$O$10,G75),\"emptyTuple\")","v":"emptyTuple"}]
[66,null,null,null,null,null,null,null,null,{"$f":"IF(OR(B76<>\"\",C76<>\"\",D76<>\"\",E76<>\"\",F76<>\"\",G76<>\"\"),XBRLMapTuple($J$9,$K$5,$K$6,\"BMA\",CONFIGURATION!$B$1,\"bscr\",\"\",CONFIGURATION!$B$12,$J$10,B76,$K$10,C76,$L$10,D76,$M$10,E76,$N$10,F76,$O$10,G76),\"emptyTuple\")","v":"emptyTuple"}]
[67,null,null,null,null,null,null,null,null,{"$f":"IF(OR(B77<>\"\",C77<>\"\",D77<>\"\",E77<>\"\",F77<>\"\",G77<>\"\"),XBRLMapTuple($J$9,$K$5,$K$6,\"BMA\",CONFIGURATION!$B$1,\"bscr\",\"\",CONFIGURATION!$B$12,$J$10,B77,$K$10,C77,$L$10,D77,$M$10,E77,$N$10,F77,$O$10,G77),\"emptyTuple\")","v":"emptyTuple"}]
[68,null,null,null,null,null,null,null,null,{"$f":"IF(OR(B78<>\"\",C78<>\"\",D78<>\"\",E78<>\"\",F78<>\"\",G78<>\"\"),XBRLMapTuple($J$9,$K$5,$K$6,\"BMA\",CONFIGURATION!$B$1,\"bscr\",\"\",CONFIGURATION!$B$12,$J$10,B78,$K$10,C78,$L$10,D78,$M$10,E78,$N$10,F78,$O$10,G78),\"emptyTuple\")","v":"emptyTuple"}]
[69,null,null,null,null,null,null,null,null,{"$f":"IF(OR(B79<>\"\",C79<>\"\",D79<>\"\",E79<>\"\",F79<>\"\",G79<>\"\"),XBRLMapTuple($J$9,$K$5,$K$6,\"BMA\",CONFIGURATION!$B$1,\"bscr\",\"\",CONFIGURATION!$B$12,$J$10,B79,$K$10,C79,$L$10,D79,$M$10,E79,$N$10,F79,$O$10,G79),\"emptyTuple\")","v":"emptyTuple"}]
[70,null,null,null,null,null,null,null,null,{"$f":"IF(OR(B80<>\"\",C80<>\"\",D80<>\"\",E80<>\"\",F80<>\"\",G80<>\"\"),XBRLMapTuple($J$9,$K$5,$K$6,\"BMA\",CONFIGURATION!$B$1,\"bscr\",\"\",CONFIGURATION!$B$12,$J$10,B80,$K$10,C80,$L$10,D80,$M$10,E80,$N$10,F80,$O$10,G80),\"emptyTuple\")","v":"emptyTuple"}]
[71,null,null,null,null,null,null,null,null,{"$f":"IF(OR(B81<>\"\",C81<>\"\",D81<>\"\",E81<>\"\",F81<>\"\",G81<>\"\"),XBRLMapTuple($J$9,$K$5,$K$6,\"BMA\",CONFIGURATION!$B$1,\"bscr\",\"\",CONFIGURATION!$B$12,$J$10,B81,$K$10,C81,$L$10,D81,$M$10,E81,$N$10,F81,$O$10,G81),\"emptyTuple\")","v":"emptyTuple"}]
[72,null,null,null,null,null,null,null,null,{"$f":"IF(OR(B82<>\"\",C82<>\"\",D82<>\"\",E82<>\"\",F82<>\"\",G82<>\"\"),XBRLMapTuple($J$9,$K$5,$K$6,\"BMA\",CONFIGURATION!$B$1,\"bscr\",\"\",CONFIGURATION!$B$12,$J$10,B82,$K$10,C82,$L$10,D82,$M$10,E82,$N$10,F82,$O$10,G82),\"emptyTuple\")","v":"emptyTuple"}]
[73,null,null,null,null,null,null,null,null,{"$f":"IF(OR(B83<>\"\",C83<>\"\",D83<>\"\",E83<>\"\",F83<>\"\",G83<>\"\"),XBRLMapTuple($J$9,$K$5,$K$6,\"BMA\",CONFIGURATION!$B$1,\"bscr\",\"\",CONFIGURATION!$B$12,$J$10,B83,$K$10,C83,$L$10,D83,$M$10,E83,$N$10,F83,$O$10,G83),\"emptyTuple\")","v":"emptyTuple"}]
[74,null,null,null,null,null,null,null,null,{"$f":"IF(OR(B84<>\"\",C84<>\"\",D84<>\"\",E84<>\"\",F84<>\"\",G84<>\"\"),XBRLMapTuple($J$9,$K$5,$K$6,\"BMA\",CONFIGURATION!$B$1,\"bscr\",\"\",CONFIGURATION!$B$12,$J$10,B84,$K$10,C84,$L$10,D84,$M$10,E84,$N$10,F84,$O$10,G84),\"emptyTuple\")","v":"emptyTuple"}]
[75,null,null,null,null,null,null,null,null,{"$f":"IF(OR(B85<>\"\",C85<>\"\",D85<>\"\",E85<>\"\",F85<>\"\",G85<>\"\"),XBRLMapTuple($J$9,$K$5,$K$6,\"BMA\",CONFIGURATION!$B$1,\"bscr\",\"\",CONFIGURATION!$B$12,$J$10,B85,$K$10,C85,$L$10,D85,$M$10,E85,$N$10,F85,$O$10,G85),\"emptyTuple\")","v":"emptyTuple"}]
[76,null,null,null,null,null,null,null,null,{"$f":"IF(OR(B86<>\"\",C86<>\"\",D86<>\"\",E86<>\"\",F86<>\"\",G86<>\"\"),XBRLMapTuple($J$9,$K$5,$K$6,\"BMA\",CONFIGURATION!$B$1,\"bscr\",\"\",CONFIGURATION!$B$12,$J$10,B86,$K$10,C86,$L$10,D86,$M$10,E86,$N$10,F86,$O$10,G86),\"emptyTuple\")","v":"emptyTuple"}]
[77,null,null,null,null,null,null,null,null,{"$f":"IF(OR(B87<>\"\",C87<>\"\",D87<>\"\",E87<>\"\",F87<>\"\",G87<>\"\"),XBRLMapTuple($J$9,$K$5,$K$6,\"BMA\",CONFIGURATION!$B$1,\"bscr\",\"\",CONFIGURATION!$B$12,$J$10,B87,$K$10,C87,$L$10,D87,$M$10,E87,$N$10,F87,$O$10,G87),\"emptyTuple\")","v":"emptyTuple"}]
[78,null,null,null,null,null,null,null,null,{"$f":"IF(OR(B88<>\"\",C88<>\"\",D88<>\"\",E88<>\"\",F88<>\"\",G88<>\"\"),XBRLMapTuple($J$9,$K$5,$K$6,\"BMA\",CONFIGURATION!$B$1,\"bscr\",\"\",CONFIGURATION!$B$12,$J$10,B88,$K$10,C88,$L$10,D88,$M$10,E88,$N$10,F88,$O$10,G88),\"emptyTuple\")","v":"emptyTuple"}]
[79,null,null,null,null,null,null,null,null,{"$f":"IF(OR(B89<>\"\",C89<>\"\",D89<>\"\",E89<>\"\",F89<>\"\",G89<>\"\"),XBRLMapTuple($J$9,$K$5,$K$6,\"BMA\",CONFIGURATION!$B$1,\"bscr\",\"\",CONFIGURATION!$B$12,$J$10,B89,$K$10,C89,$L$10,D89,$M$10,E89,$N$10,F89,$O$10,G89),\"emptyTuple\")","v":"emptyTuple"}]
[80,null,null,null,null,null,null,null,null,{"$f":"IF(OR(B90<>\"\",C90<>\"\",D90<>\"\",E90<>\"\",F90<>\"\",G90<>\"\"),XBRLMapTuple($J$9,$K$5,$K$6,\"BMA\",CONFIGURATION!$B$1,\"bscr\",\"\",CONFIGURATION!$B$12,$J$10,B90,$K$10,C90,$L$10,D90,$M$10,E90,$N$10,F90,$O$10,G90),\"emptyTuple\")","v":"emptyTuple"}]
[81,null,null,null,null,null,null,null,null,{"$f":"IF(OR(B91<>\"\",C91<>\"\",D91<>\"\",E91<>\"\",F91<>\"\",G91<>\"\"),XBRLMapTuple($J$9,$K$5,$K$6,\"BMA\",CONFIGURATION!$B$1,\"bscr\",\"\",CONFIGURATION!$B$12,$J$10,B91,$K$10,C91,$L$10,D91,$M$10,E91,$N$10,F91,$O$10,G91),\"emptyTuple\")","v":"emptyTuple"}]
[82,null,null,null,null,null,null,null,null,{"$f":"IF(OR(B92<>\"\",C92<>\"\",D92<>\"\",E92<>\"\",F92<>\"\",G92<>\"\"),XBRLMapTuple($J$9,$K$5,$K$6,\"BMA\",CONFIGURATION!$B$1,\"bscr\",\"\",CONFIGURATION!$B$12,$J$10,B92,$K$10,C92,$L$10,D92,$M$10,E92,$N$10,F92,$O$10,G92),\"emptyTuple\")","v":"emptyTuple"}]
[83,null,null,null,null,null,null,null,null,{"$f":"IF(OR(B93<>\"\",C93<>\"\",D93<>\"\",E93<>\"\",F93<>\"\",G93<>\"\"),XBRLMapTuple($J$9,$K$5,$K$6,\"BMA\",CONFIGURATION!$B$1,\"bscr\",\"\",CONFIGURATION!$B$12,$J$10,B93,$K$10,C93,$L$10,D93,$M$10,E93,$N$10,F93,$O$10,G93),\"emptyTuple\")","v":"emptyTuple"}]
[84,null,null,null,null,null,null,null,null,{"$f":"IF(OR(B94<>\"\",C94<>\"\",D94<>\"\",E94<>\"\",F94<>\"\",G94<>\"\"),XBRLMapTuple($J$9,$K$5,$K$6,\"BMA\",CONFIGURATION!$B$1,\"bscr\",\"\",CONFIGURATION!$B$12,$J$10,B94,$K$10,C94,$L$10,D94,$M$10,E94,$N$10,F94,$O$10,G94),\"emptyTuple\")","v":"emptyTuple"}]
[85,null,null,null,null,null,null,null,null,{"$f":"IF(OR(B95<>\"\",C95<>\"\",D95<>\"\",E95<>\"\",F95<>\"\",G95<>\"\"),XBRLMapTuple($J$9,$K$5,$K$6,\"BMA\",CONFIGURATION!$B$1,\"bscr\",\"\",CONFIGURATION!$B$12,$J$10,B95,$K$10,C95,$L$10,D95,$M$10,E95,$N$10,F95,$O$10,G95),\"emptyTuple\")","v":"emptyTuple"}]
[86,null,null,null,null,null,null,null,null,{"$f":"IF(OR(B96<>\"\",C96<>\"\",D96<>\"\",E96<>\"\",F96<>\"\",G96<>\"\"),XBRLMapTuple($J$9,$K$5,$K$6,\"BMA\",CONFIGURATION!$B$1,\"bscr\",\"\",CONFIGURATION!$B$12,$J$10,B96,$K$10,C96,$L$10,D96,$M$10,E96,$N$10,F96,$O$10,G96),\"emptyTuple\")","v":"emptyTuple"}]
[87,null,null,null,null,null,null,null,null,{"$f":"IF(OR(B97<>\"\",C97<>\"\",D97<>\"\",E97<>\"\",F97<>\"\",G97<>\"\"),XBRLMapTuple($J$9,$K$5,$K$6,\"BMA\",CONFIGURATION!$B$1,\"bscr\",\"\",CONFIGURATION!$B$12,$J$10,B97,$K$10,C97,$L$10,D97,$M$10,E97,$N$10,F97,$O$10,G97),\"emptyTuple\")","v":"emptyTuple"}]
[88,null,null,null,null,null,null,null,null,{"$f":"IF(OR(B98<>\"\",C98<>\"\",D98<>\"\",E98<>\"\",F98<>\"\",G98<>\"\"),XBRLMapTuple($J$9,$K$5,$K$6,\"BMA\",CONFIGURATION!$B$1,\"bscr\",\"\",CONFIGURATION!$B$12,$J$10,B98,$K$10,C98,$L$10,D98,$M$10,E98,$N$10,F98,$O$10,G98),\"emptyTuple\")","v":"emptyTuple"}]
[89,null,null,null,null,null,null,null,null,{"$f":"IF(OR(B99<>\"\",C99<>\"\",D99<>\"\",E99<>\"\",F99<>\"\",G99<>\"\"),XBRLMapTuple($J$9,$K$5,$K$6,\"BMA\",CONFIGURATION!$B$1,\"bscr\",\"\",CONFIGURATION!$B$12,$J$10,B99,$K$10,C99,$L$10,D99,$M$10,E99,$N$10,F99,$O$10,G99),\"emptyTuple\")","v":"emptyTuple"}]
[90,null,null,null,null,null,null,null,null,{"$f":"IF(OR(B100<>\"\",C100<>\"\",D100<>\"\",E100<>\"\",F100<>\"\",G100<>\"\"),XBRLMapTuple($J$9,$K$5,$K$6,\"BMA\",CONFIGURATION!$B$1,\"bscr\",\"\",CONFIGURATION!$B$12,$J$10,B100,$K$10,C100,$L$10,D100,$M$10,E100,$N$10,F100,$O$10,G100),\"emptyTuple\")","v":"emptyTuple"}]
[91,null,null,null,null,null,null,null,null,{"$f":"IF(OR(B101<>\"\",C101<>\"\",D101<>\"\",E101<>\"\",F101<>\"\",G101<>\"\"),XBRLMapTuple($J$9,$K$5,$K$6,\"BMA\",CONFIGURATION!$B$1,\"bscr\",\"\",CONFIGURATION!$B$12,$J$10,B101,$K$10,C101,$L$10,D101,$M$10,E101,$N$10,F101,$O$10,G101),\"emptyTuple\")","v":"emptyTuple"}]
[92,null,null,null,null,null,null,null,null,{"$f":"IF(OR(B102<>\"\",C102<>\"\",D102<>\"\",E102<>\"\",F102<>\"\",G102<>\"\"),XBRLMapTuple($J$9,$K$5,$K$6,\"BMA\",CONFIGURATION!$B$1,\"bscr\",\"\",CONFIGURATION!$B$12,$J$10,B102,$K$10,C102,$L$10,D102,$M$10,E102,$N$10,F102,$O$10,G102),\"emptyTuple\")","v":"emptyTuple"}]
[93,null,null,null,null,null,null,null,null,{"$f":"IF(OR(B103<>\"\",C103<>\"\",D103<>\"\",E103<>\"\",F103<>\"\",G103<>\"\"),XBRLMapTuple($J$9,$K$5,$K$6,\"BMA\",CONFIGURATION!$B$1,\"bscr\",\"\",CONFIGURATION!$B$12,$J$10,B103,$K$10,C103,$L$10,D103,$M$10,E103,$N$10,F103,$O$10,G103),\"emptyTuple\")","v":"emptyTuple"}]
[94,null,null,null,null,null,null,null,null,{"$f":"IF(OR(B104<>\"\",C104<>\"\",D104<>\"\",E104<>\"\",F104<>\"\",G104<>\"\"),XBRLMapTuple($J$9,$K$5,$K$6,\"BMA\",CONFIGURATION!$B$1,\"bscr\",\"\",CONFIGURATION!$B$12,$J$10,B104,$K$10,C104,$L$10,D104,$M$10,E104,$N$10,F104,$O$10,G104),\"emptyTuple\")","v":"emptyTuple"}]
[95,null,null,null,null,null,null,null,null,{"$f":"IF(OR(B105<>\"\",C105<>\"\",D105<>\"\",E105<>\"\",F105<>\"\",G105<>\"\"),XBRLMapTuple($J$9,$K$5,$K$6,\"BMA\",CONFIGURATION!$B$1,\"bscr\",\"\",CONFIGURATION!$B$12,$J$10,B105,$K$10,C105,$L$10,D105,$M$10,E105,$N$10,F105,$O$10,G105),\"emptyTuple\")","v":"emptyTuple"}]
[96,null,null,null,null,null,null,null,null,{"$f":"IF(OR(B106<>\"\",C106<>\"\",D106<>\"\",E106<>\"\",F106<>\"\",G106<>\"\"),XBRLMapTuple($J$9,$K$5,$K$6,\"BMA\",CONFIGURATION!$B$1,\"bscr\",\"\",CONFIGURATION!$B$12,$J$10,B106,$K$10,C106,$L$10,D106,$M$10,E106,$N$10,F106,$O$10,G106),\"emptyTuple\")","v":"emptyTuple"}]
[97,null,null,null,null,null,null,null,null,{"$f":"IF(OR(B107<>\"\",C107<>\"\",D107<>\"\",E107<>\"\",F107<>\"\",G107<>\"\"),XBRLMapTuple($J$9,$K$5,$K$6,\"BMA\",CONFIGURATION!$B$1,\"bscr\",\"\",CONFIGURATION!$B$12,$J$10,B107,$K$10,C107,$L$10,D107,$M$10,E107,$N$10,F107,$O$10,G107),\"emptyTuple\")","v":"emptyTuple"}]
[98,null,null,null,null,null,null,null,null,{"$f":"IF(OR(B108<>\"\",C108<>\"\",D108<>\"\",E108<>\"\",F108<>\"\",G108<>\"\"),XBRLMapTuple($J$9,$K$5,$K$6,\"BMA\",CONFIGURATION!$B$1,\"bscr\",\"\",CONFIGURATION!$B$12,$J$10,B108,$K$10,C108,$L$10,D108,$M$10,E108,$N$10,F108,$O$10,G108),\"emptyTuple\")","v":"emptyTuple"}]
[99,null,null,null,null,null,null,null,null,{"$f":"IF(OR(B109<>\"\",C109<>\"\",D109<>\"\",E109<>\"\",F109<>\"\",G109<>\"\"),XBRLMapTuple($J$9,$K$5,$K$6,\"BMA\",CONFIGURATION!$B$1,\"bscr\",\"\",CONFIGURATION!$B$12,$J$10,B109,$K$10,C109,$L$10,D109,$M$10,E109,$N$10,F109,$O$10,G109),\"emptyTuple\")","v":"emptyTuple"}]
[100,null,null,null,null,null,null,null,null,{"$f":"IF(OR(B110<>\"\",C110<>\"\",D110<>\"\",E110<>\"\",F110<>\"\",G110<>\"\"),XBRLMapTuple($J$9,$K$5,$K$6,\"BMA\",CONFIGURATION!$B$1,\"bscr\",\"\",CONFIGURATION!$B$12,$J$10,B110,$K$10,C110,$L$10,D110,$M$10,E110,$N$10,F110,$O$10,G110),\"emptyTuple\")","v":"emptyTuple"}]
[101,null,null,null,null,null,null,null,null,{"$f":"IF(OR(B111<>\"\",C111<>\"\",D111<>\"\",E111<>\"\",F111<>\"\",G111<>\"\"),XBRLMapTuple($J$9,$K$5,$K$6,\"BMA\",CONFIGURATION!$B$1,\"bscr\",\"\",CONFIGURATION!$B$12,$J$10,B111,$K$10,C111,$L$10,D111,$M$10,E111,$N$10,F111,$O$10,G111),\"emptyTuple\")","v":"emptyTuple"}]
[102,null,null,null,null,null,null,null,null,{"$f":"IF(OR(B112<>\"\",C112<>\"\",D112<>\"\",E112<>\"\",F112<>\"\",G112<>\"\"),XBRLMapTuple($J$9,$K$5,$K$6,\"BMA\",CONFIGURATION!$B$1,\"bscr\",\"\",CONFIGURATION!$B$12,$J$10,B112,$K$10,C112,$L$10,D112,$M$10,E112,$N$10,F112,$O$10,G112),\"emptyTuple\")","v":"emptyTuple"}]
[103,null,null,null,null,null,null,null,null,{"$f":"IF(OR(B113<>\"\",C113<>\"\",D113<>\"\",E113<>\"\",F113<>\"\",G113<>\"\"),XBRLMapTuple($J$9,$K$5,$K$6,\"BMA\",CONFIGURATION!$B$1,\"bscr\",\"\",CONFIGURATION!$B$12,$J$10,B113,$K$10,C113,$L$10,D113,$M$10,E113,$N$10,F113,$O$10,G113),\"emptyTuple\")","v":"emptyTuple"}]
[104,null,null,null,null,null,null,null,null,{"$f":"IF(OR(B114<>\"\",C114<>\"\",D114<>\"\",E114<>\"\",F114<>\"\",G114<>\"\"),XBRLMapTuple($J$9,$K$5,$K$6,\"BMA\",CONFIGURATION!$B$1,\"bscr\",\"\",CONFIGURATION!$B$12,$J$10,B114,$K$10,C114,$L$10,D114,$M$10,E114,$N$10,F114,$O$10,G114),\"emptyTuple\")","v":"emptyTuple"}]
[105,null,null,null,null,null,null,null,null,{"$f":"IF(OR(B115<>\"\",C115<>\"\",D115<>\"\",E115<>\"\",F115<>\"\",G115<>\"\"),XBRLMapTuple($J$9,$K$5,$K$6,\"BMA\",CONFIGURATION!$B$1,\"bscr\",\"\",CONFIGURATION!$B$12,$J$10,B115,$K$10,C115,$L$10,D115,$M$10,E115,$N$10,F115,$O$10,G115),\"emptyTuple\")","v":"emptyTuple"}]
[106,null,null,null,null,null,null,null,null,{"$f":"IF(OR(B116<>\"\",C116<>\"\",D116<>\"\",E116<>\"\",F116<>\"\",G116<>\"\"),XBRLMapTuple($J$9,$K$5,$K$6,\"BMA\",CONFIGURATION!$B$1,\"bscr\",\"\",CONFIGURATION!$B$12,$J$10,B116,$K$10,C116,$L$10,D116,$M$10,E116,$N$10,F116,$O$10,G116),\"emptyTuple\")","v":"emptyTuple"}]
[107,null,null,null,null,null,null,null,null,{"$f":"IF(OR(B117<>\"\",C117<>\"\",D117<>\"\",E117<>\"\",F117<>\"\",G117<>\"\"),XBRLMapTuple($J$9,$K$5,$K$6,\"BMA\",CONFIGURATION!$B$1,\"bscr\",\"\",CONFIGURATION!$B$12,$J$10,B117,$K$10,C117,$L$10,D117,$M$10,E117,$N$10,F117,$O$10,G117),\"emptyTuple\")","v":"emptyTuple"}]
[108,null,null,null,null,null,null,null,null,{"$f":"IF(OR(B118<>\"\",C118<>\"\",D118<>\"\",E118<>\"\",F118<>\"\",G118<>\"\"),XBRLMapTuple($J$9,$K$5,$K$6,\"BMA\",CONFIGURATION!$B$1,\"bscr\",\"\",CONFIGURATION!$B$12,$J$10,B118,$K$10,C118,$L$10,D118,$M$10,E118,$N$10,F118,$O$10,G118),\"emptyTuple\")","v":"emptyTuple"}]
[109,null,null,null,null,null,null,null,null,{"$f":"IF(OR(B119<>\"\",C119<>\"\",D119<>\"\",E119<>\"\",F119<>\"\",G119<>\"\"),XBRLMapTuple($J$9,$K$5,$K$6,\"BMA\",CONFIGURATION!$B$1,\"bscr\",\"\",CONFIGURATION!$B$12,$J$10,B119,$K$10,C119,$L$10,D119,$M$10,E119,$N$10,F119,$O$10,G119),\"emptyTuple\")","v":"emptyTuple"}]
[110,null,null,null,null,null,null,null,null,{"$f":"IF(OR(B120<>\"\",C120<>\"\",D120<>\"\",E120<>\"\",F120<>\"\",G120<>\"\"),XBRLMapTuple($J$9,$K$5,$K$6,\"BMA\",CONFIGURATION!$B$1,\"bscr\",\"\",CONFIGURATION!$B$12,$J$10,B120,$K$10,C120,$L$10,D120,$M$10,E120,$N$10,F120,$O$10,G120),\"emptyTuple\")","v":"emptyTuple"}]
[111,null,null,null,null,null,null,null,null,{"$f":"IF(OR(B121<>\"\",C121<>\"\",D121<>\"\",E121<>\"\",F121<>\"\",G121<>\"\"),XBRLMapTuple($J$9,$K$5,$K$6,\"BMA\",CONFIGURATION!$B$1,\"bscr\",\"\",CONFIGURATION!$B$12,$J$10,B121,$K$10,C121,$L$10,D121,$M$10,E121,$N$10,F121,$O$10,G121),\"emptyTuple\")","v":"emptyTuple"}]
[112,null,null,null,null,null,null,null,null,{"$f":"IF(OR(B122<>\"\",C122<>\"\",D122<>\"\",E122<>\"\",F122<>\"\",G122<>\"\"),XBRLMapTuple($J$9,$K$5,$K$6,\"BMA\",CONFIGURATION!$B$1,\"bscr\",\"\",CONFIGURATION!$B$12,$J$10,B122,$K$10,C122,$L$10,D122,$M$10,E122,$N$10,F122,$O$10,G122),\"emptyTuple\")","v":"emptyTuple"}]
[113,null,null,null,null,null,null,null,null,{"$f":"IF(OR(B123<>\"\",C123<>\"\",D123<>\"\",E123<>\"\",F123<>\"\",G123<>\"\"),XBRLMapTuple($J$9,$K$5,$K$6,\"BMA\",CONFIGURATION!$B$1,\"bscr\",\"\",CONFIGURATION!$B$12,$J$10,B123,$K$10,C123,$L$10,D123,$M$10,E123,$N$10,F123,$O$10,G123),\"emptyTuple\")","v":"emptyTuple"}]
[114,null,null,null,null,null,null,null,null,{"$f":"IF(OR(B124<>\"\",C124<>\"\",D124<>\"\",E124<>\"\",F124<>\"\",G124<>\"\"),XBRLMapTuple($J$9,$K$5,$K$6,\"BMA\",CONFIGURATION!$B$1,\"bscr\",\"\",CONFIGURATION!$B$12,$J$10,B124,$K$10,C124,$L$10,D124,$M$10,E124,$N$10,F124,$O$10,G124),\"emptyTuple\")","v":"emptyTuple"}]
[115,null,null,null,null,null,null,null,null,{"$f":"IF(OR(B125<>\"\",C125<>\"\",D125<>\"\",E125<>\"\",F125<>\"\",G125<>\"\"),XBRLMapTuple($J$9,$K$5,$K$6,\"BMA\",CONFIGURATION!$B$1,\"bscr\",\"\",CONFIGURATION!$B$12,$J$10,B125,$K$10,C125,$L$10,D125,$M$10,E125,$N$10,F125,$O$10,G125),\"emptyTuple\")","v":"emptyTuple"}]
[116,null,null,null,null,null,null,null,null,{"$f":"IF(OR(B126<>\"\",C126<>\"\",D126<>\"\",E126<>\"\",F126<>\"\",G126<>\"\"),XBRLMapTuple($J$9,$K$5,$K$6,\"BMA\",CONFIGURATION!$B$1,\"bscr\",\"\",CONFIGURATION!$B$12,$J$10,B126,$K$10,C126,$L$10,D126,$M$10,E126,$N$10,F126,$O$10,G126),\"emptyTuple\")","v":"emptyTuple"}]
[117,null,null,null,null,null,null,null,null,{"$f":"IF(OR(B127<>\"\",C127<>\"\",D127<>\"\",E127<>\"\",F127<>\"\",G127<>\"\"),XBRLMapTuple($J$9,$K$5,$K$6,\"BMA\",CONFIGURATION!$B$1,\"bscr\",\"\",CONFIGURATION!$B$12,$J$10,B127,$K$10,C127,$L$10,D127,$M$10,E127,$N$10,F127,$O$10,G127),\"emptyTuple\")","v":"emptyTuple"}]
[118,null,null,null,null,null,null,null,null,{"$f":"IF(OR(B128<>\"\",C128<>\"\",D128<>\"\",E128<>\"\",F128<>\"\",G128<>\"\"),XBRLMapTuple($J$9,$K$5,$K$6,\"BMA\",CONFIGURATION!$B$1,\"bscr\",\"\",CONFIGURATION!$B$12,$J$10,B128,$K$10,C128,$L$10,D128,$M$10,E128,$N$10,F128,$O$10,G128),\"emptyTuple\")","v":"emptyTuple"}]
[119,null,null,null,null,null,null,null,null,{"$f":"IF(OR(B129<>\"\",C129<>\"\",D129<>\"\",E129<>\"\",F129<>\"\",G129<>\"\"),XBRLMapTuple($J$9,$K$5,$K$6,\"BMA\",CONFIGURATION!$B$1,\"bscr\",\"\",CONFIGURATION!$B$12,$J$10,B129,$K$10,C129,$L$10,D129,$M$10,E129,$N$10,F129,$O$10,G129),\"emptyTuple\")","v":"emptyTuple"}]
[120,null,null,null,null,null,null,null,null,{"$f":"IF(OR(B130<>\"\",C130<>\"\",D130<>\"\",E130<>\"\",F130<>\"\",G130<>\"\"),XBRLMapTuple($J$9,$K$5,$K$6,\"BMA\",CONFIGURATION!$B$1,\"bscr\",\"\",CONFIGURATION!$B$12,$J$10,B130,$K$10,C130,$L$10,D130,$M$10,E130,$N$10,F130,$O$10,G130),\"emptyTuple\")","v":"emptyTuple"}]
[121,null,null,null,null,null,null,null,null,{"$f":"IF(OR(B131<>\"\",C131<>\"\",D131<>\"\",E131<>\"\",F131<>\"\",G131<>\"\"),XBRLMapTuple($J$9,$K$5,$K$6,\"BMA\",CONFIGURATION!$B$1,\"bscr\",\"\",CONFIGURATION!$B$12,$J$10,B131,$K$10,C131,$L$10,D131,$M$10,E131,$N$10,F131,$O$10,G131),\"emptyTuple\")","v":"emptyTuple"}]
[122,null,null,null,null,null,null,null,null,{"$f":"IF(OR(B132<>\"\",C132<>\"\",D132<>\"\",E132<>\"\",F132<>\"\",G132<>\"\"),XBRLMapTuple($J$9,$K$5,$K$6,\"BMA\",CONFIGURATION!$B$1,\"bscr\",\"\",CONFIGURATION!$B$12,$J$10,B132,$K$10,C132,$L$10,D132,$M$10,E132,$N$10,F132,$O$10,G132),\"emptyTuple\")","v":"emptyTuple"}]
[123,null,null,null,null,null,null,null,null,{"$f":"IF(OR(B133<>\"\",C133<>\"\",D133<>\"\",E133<>\"\",F133<>\"\",G133<>\"\"),XBRLMapTuple($J$9,$K$5,$K$6,\"BMA\",CONFIGURATION!$B$1,\"bscr\",\"\",CONFIGURATION!$B$12,$J$10,B133,$K$10,C133,$L$10,D133,$M$10,E133,$N$10,F133,$O$10,G133),\"emptyTuple\")","v":"emptyTuple"}]
[124,null,null,null,null,null,null,null,null,{"$f":"IF(OR(B134<>\"\",C134<>\"\",D134<>\"\",E134<>\"\",F134<>\"\",G134<>\"\"),XBRLMapTuple($J$9,$K$5,$K$6,\"BMA\",CONFIGURATION!$B$1,\"bscr\",\"\",CONFIGURATION!$B$12,$J$10,B134,$K$10,C134,$L$10,D134,$M$10,E134,$N$10,F134,$O$10,G134),\"emptyTuple\")","v":"emptyTuple"}]
[125,null,null,null,null,null,null,null,null,{"$f":"IF(OR(B135<>\"\",C135<>\"\",D135<>\"\",E135<>\"\",F135<>\"\",G135<>\"\"),XBRLMapTuple($J$9,$K$5,$K$6,\"BMA\",CONFIGURATION!$B$1,\"bscr\",\"\",CONFIGURATION!$B$12,$J$10,B135,$K$10,C135,$L$10,D135,$M$10,E135,$N$10,F135,$O$10,G135),\"emptyTuple\")","v":"emptyTuple"}]
[126,null,null,null,null,null,null,null,null,{"$f":"IF(OR(B136<>\"\",C136<>\"\",D136<>\"\",E136<>\"\",F136<>\"\",G136<>\"\"),XBRLMapTuple($J$9,$K$5,$K$6,\"BMA\",CONFIGURATION!$B$1,\"bscr\",\"\",CONFIGURATION!$B$12,$J$10,B136,$K$10,C136,$L$10,D136,$M$10,E136,$N$10,F136,$O$10,G136),\"emptyTuple\")","v":"emptyTuple"}]
[127,null,null,null,null,null,null,null,null,{"$f":"IF(OR(B137<>\"\",C137<>\"\",D137<>\"\",E137<>\"\",F137<>\"\",G137<>\"\"),XBRLMapTuple($J$9,$K$5,$K$6,\"BMA\",CONFIGURATION!$B$1,\"bscr\",\"\",CONFIGURATION!$B$12,$J$10,B137,$K$10,C137,$L$10,D137,$M$10,E137,$N$10,F137,$O$10,G137),\"emptyTuple\")","v":"emptyTuple"}]
[128,null,null,null,null,null,null,null,null,{"$f":"IF(OR(B138<>\"\",C138<>\"\",D138<>\"\",E138<>\"\",F138<>\"\",G138<>\"\"),XBRLMapTuple($J$9,$K$5,$K$6,\"BMA\",CONFIGURATION!$B$1,\"bscr\",\"\",CONFIGURATION!$B$12,$J$10,B138,$K$10,C138,$L$10,D138,$M$10,E138,$N$10,F138,$O$10,G138),\"emptyTuple\")","v":"emptyTuple"}]
[129,null,null,null,null,null,null,null,null,{"$f":"IF(OR(B139<>\"\",C139<>\"\",D139<>\"\",E139<>\"\",F139<>\"\",G139<>\"\"),XBRLMapTuple($J$9,$K$5,$K$6,\"BMA\",CONFIGURATION!$B$1,\"bscr\",\"\",CONFIGURATION!$B$12,$J$10,B139,$K$10,C139,$L$10,D139,$M$10,E139,$N$10,F139,$O$10,G139),\"emptyTuple\")","v":"emptyTuple"}]
[130,null,null,null,null,null,null,null,null,{"$f":"IF(OR(B140<>\"\",C140<>\"\",D140<>\"\",E140<>\"\",F140<>\"\",G140<>\"\"),XBRLMapTuple($J$9,$K$5,$K$6,\"BMA\",CONFIGURATION!$B$1,\"bscr\",\"\",CONFIGURATION!$B$12,$J$10,B140,$K$10,C140,$L$10,D140,$M$10,E140,$N$10,F140,$O$10,G140),\"emptyTuple\")","v":"emptyTuple"}]
[131,null,null,null,null,null,null,null,null,{"$f":"IF(OR(B141<>\"\",C141<>\"\",D141<>\"\",E141<>\"\",F141<>\"\",G141<>\"\"),XBRLMapTuple($J$9,$K$5,$K$6,\"BMA\",CONFIGURATION!$B$1,\"bscr\",\"\",CONFIGURATION!$B$12,$J$10,B141,$K$10,C141,$L$10,D141,$M$10,E141,$N$10,F141,$O$10,G141),\"emptyTuple\")","v":"emptyTuple"}]
[132,null,null,null,null,null,null,null,null,{"$f":"IF(OR(B142<>\"\",C142<>\"\",D142<>\"\",E142<>\"\",F142<>\"\",G142<>\"\"),XBRLMapTuple($J$9,$K$5,$K$6,\"BMA\",CONFIGURATION!$B$1,\"bscr\",\"\",CONFIGURATION!$B$12,$J$10,B142,$K$10,C142,$L$10,D142,$M$10,E142,$N$10,F142,$O$10,G142),\"emptyTuple\")","v":"emptyTuple"}]
[133,null,null,null,null,null,null,null,null,{"$f":"IF(OR(B143<>\"\",C143<>\"\",D143<>\"\",E143<>\"\",F143<>\"\",G143<>\"\"),XBRLMapTuple($J$9,$K$5,$K$6,\"BMA\",CONFIGURATION!$B$1,\"bscr\",\"\",CONFIGURATION!$B$12,$J$10,B143,$K$10,C143,$L$10,D143,$M$10,E143,$N$10,F143,$O$10,G143),\"emptyTuple\")","v":"emptyTuple"}]
[134,null,null,null,null,null,null,null,null,{"$f":"IF(OR(B144<>\"\",C144<>\"\",D144<>\"\",E144<>\"\",F144<>\"\",G144<>\"\"),XBRLMapTuple($J$9,$K$5,$K$6,\"BMA\",CONFIGURATION!$B$1,\"bscr\",\"\",CONFIGURATION!$B$12,$J$10,B144,$K$10,C144,$L$10,D144,$M$10,E144,$N$10,F144,$O$10,G144),\"emptyTuple\")","v":"emptyTuple"}]
[135,null,null,null,null,null,null,null,null,{"$f":"IF(OR(B145<>\"\",C145<>\"\",D145<>\"\",E145<>\"\",F145<>\"\",G145<>\"\"),XBRLMapTuple($J$9,$K$5,$K$6,\"BMA\",CONFIGURATION!$B$1,\"bscr\",\"\",CONFIGURATION!$B$12,$J$10,B145,$K$10,C145,$L$10,D145,$M$10,E145,$N$10,F145,$O$10,G145),\"emptyTuple\")","v":"emptyTuple"}]
[136,null,null,null,null,null,null,null,null,{"$f":"IF(OR(B146<>\"\",C146<>\"\",D146<>\"\",E146<>\"\",F146<>\"\",G146<>\"\"),XBRLMapTuple($J$9,$K$5,$K$6,\"BMA\",CONFIGURATION!$B$1,\"bscr\",\"\",CONFIGURATION!$B$12,$J$10,B146,$K$10,C146,$L$10,D146,$M$10,E146,$N$10,F146,$O$10,G146),\"emptyTuple\")","v":"emptyTuple"}]
[137,null,null,null,null,null,null,null,null,{"$f":"IF(OR(B147<>\"\",C147<>\"\",D147<>\"\",E147<>\"\",F147<>\"\",G147<>\"\"),XBRLMapTuple($J$9,$K$5,$K$6,\"BMA\",CONFIGURATION!$B$1,\"bscr\",\"\",CONFIGURATION!$B$12,$J$10,B147,$K$10,C147,$L$10,D147,$M$10,E147,$N$10,F147,$O$10,G147),\"emptyTuple\")","v":"emptyTuple"}]
[138,null,null,null,null,null,null,null,null,{"$f":"IF(OR(B148<>\"\",C148<>\"\",D148<>\"\",E148<>\"\",F148<>\"\",G148<>\"\"),XBRLMapTuple($J$9,$K$5,$K$6,\"BMA\",CONFIGURATION!$B$1,\"bscr\",\"\",CONFIGURATION!$B$12,$J$10,B148,$K$10,C148,$L$10,D148,$M$10,E148,$N$10,F148,$O$10,G148),\"emptyTuple\")","v":"emptyTuple"}]
[139,null,null,null,null,null,null,null,null,{"$f":"IF(OR(B149<>\"\",C149<>\"\",D149<>\"\",E149<>\"\",F149<>\"\",G149<>\"\"),XBRLMapTuple($J$9,$K$5,$K$6,\"BMA\",CONFIGURATION!$B$1,\"bscr\",\"\",CONFIGURATION!$B$12,$J$10,B149,$K$10,C149,$L$10,D149,$M$10,E149,$N$10,F149,$O$10,G149),\"emptyTuple\")","v":"emptyTuple"}]
[140,null,null,null,null,null,null,null,null,{"$f":"IF(OR(B150<>\"\",C150<>\"\",D150<>\"\",E150<>\"\",F150<>\"\",G150<>\"\"),XBRLMapTuple($J$9,$K$5,$K$6,\"BMA\",CONFIGURATION!$B$1,\"bscr\",\"\",CONFIGURATION!$B$12,$J$10,B150,$K$10,C150,$L$10,D150,$M$10,E150,$N$10,F150,$O$10,G150),\"emptyTuple\")","v":"emptyTuple"}]
[141,null,null,null,null,null,null,null,null,{"$f":"IF(OR(B151<>\"\",C151<>\"\",D151<>\"\",E151<>\"\",F151<>\"\",G151<>\"\"),XBRLMapTuple($J$9,$K$5,$K$6,\"BMA\",CONFIGURATION!$B$1,\"bscr\",\"\",CONFIGURATION!$B$12,$J$10,B151,$K$10,C151,$L$10,D151,$M$10,E151,$N$10,F151,$O$10,G151),\"emptyTuple\")","v":"emptyTuple"}]
[142,null,null,null,null,null,null,null,null,{"$f":"IF(OR(B152<>\"\",C152<>\"\",D152<>\"\",E152<>\"\",F152<>\"\",G152<>\"\"),XBRLMapTuple($J$9,$K$5,$K$6,\"BMA\",CONFIGURATION!$B$1,\"bscr\",\"\",CONFIGURATION!$B$12,$J$10,B152,$K$10,C152,$L$10,D152,$M$10,E152,$N$10,F152,$O$10,G152),\"emptyTuple\")","v":"emptyTuple"}]
[143,null,null,null,null,null,null,null,null,{"$f":"IF(OR(B153<>\"\",C153<>\"\",D153<>\"\",E153<>\"\",F153<>\"\",G153<>\"\"),XBRLMapTuple($J$9,$K$5,$K$6,\"BMA\",CONFIGURATION!$B$1,\"bscr\",\"\",CONFIGURATION!$B$12,$J$10,B153,$K$10,C153,$L$10,D153,$M$10,E153,$N$10,F153,$O$10,G153),\"emptyTuple\")","v":"emptyTuple"}]
[144,null,null,null,null,null,null,null,null,{"$f":"IF(OR(B154<>\"\",C154<>\"\",D154<>\"\",E154<>\"\",F154<>\"\",G154<>\"\"),XBRLMapTuple($J$9,$K$5,$K$6,\"BMA\",CONFIGURATION!$B$1,\"bscr\",\"\",CONFIGURATION!$B$12,$J$10,B154,$K$10,C154,$L$10,D154,$M$10,E154,$N$10,F154,$O$10,G154),\"emptyTuple\")","v":"emptyTuple"}]
[145,null,null,null,null,null,null,null,null,{"$f":"IF(OR(B155<>\"\",C155<>\"\",D155<>\"\",E155<>\"\",F155<>\"\",G155<>\"\"),XBRLMapTuple($J$9,$K$5,$K$6,\"BMA\",CONFIGURATION!$B$1,\"bscr\",\"\",CONFIGURATION!$B$12,$J$10,B155,$K$10,C155,$L$10,D155,$M$10,E155,$N$10,F155,$O$10,G155),\"emptyTuple\")","v":"emptyTuple"}]
[146,null,null,null,null,null,null,null,null,{"$f":"IF(OR(B156<>\"\",C156<>\"\",D156<>\"\",E156<>\"\",F156<>\"\",G156<>\"\"),XBRLMapTuple($J$9,$K$5,$K$6,\"BMA\",CONFIGURATION!$B$1,\"bscr\",\"\",CONFIGURATION!$B$12,$J$10,B156,$K$10,C156,$L$10,D156,$M$10,E156,$N$10,F156,$O$10,G156),\"emptyTuple\")","v":"emptyTuple"}]
[147,null,null,null,null,null,null,null,null,{"$f":"IF(OR(B157<>\"\",C157<>\"\",D157<>\"\",E157<>\"\",F157<>\"\",G157<>\"\"),XBRLMapTuple($J$9,$K$5,$K$6,\"BMA\",CONFIGURATION!$B$1,\"bscr\",\"\",CONFIGURATION!$B$12,$J$10,B157,$K$10,C157,$L$10,D157,$M$10,E157,$N$10,F157,$O$10,G157),\"emptyTuple\")","v":"emptyTuple"}]
[148,null,null,null,null,null,null,null,null,{"$f":"IF(OR(B158<>\"\",C158<>\"\",D158<>\"\",E158<>\"\",F158<>\"\",G158<>\"\"),XBRLMapTuple($J$9,$K$5,$K$6,\"BMA\",CONFIGURATION!$B$1,\"bscr\",\"\",CONFIGURATION!$B$12,$J$10,B158,$K$10,C158,$L$10,D158,$M$10,E158,$N$10,F158,$O$10,G158),\"emptyTuple\")","v":"emptyTuple"}]
[149,null,null,null,null,null,null,null,null,{"$f":"IF(OR(B159<>\"\",C159<>\"\",D159<>\"\",E159<>\"\",F159<>\"\",G159<>\"\"),XBRLMapTuple($J$9,$K$5,$K$6,\"BMA\",CONFIGURATION!$B$1,\"bscr\",\"\",CONFIGURATION!$B$12,$J$10,B159,$K$10,C159,$L$10,D159,$M$10,E159,$N$10,F159,$O$10,G159),\"emptyTuple\")","v":"emptyTuple"}]
[150,null,null,null,null,null,null,null,null,{"$f":"IF(OR(B160<>\"\",C160<>\"\",D160<>\"\",E160<>\"\",F160<>\"\",G160<>\"\"),XBRLMapTuple($J$9,$K$5,$K$6,\"BMA\",CONFIGURATION!$B$1,\"bscr\",\"\",CONFIGURATION!$B$12,$J$10,B160,$K$10,C160,$L$10,D160,$M$10,E160,$N$10,F160,$O$10,G160),\"emptyTuple\")","v":"emptyTuple"}]
[151,null,null,null,null,null,null,null,null,{"$f":"IF(OR(B161<>\"\",C161<>\"\",D161<>\"\",E161<>\"\",F161<>\"\",G161<>\"\"),XBRLMapTuple($J$9,$K$5,$K$6,\"BMA\",CONFIGURATION!$B$1,\"bscr\",\"\",CONFIGURATION!$B$12,$J$10,B161,$K$10,C161,$L$10,D161,$M$10,E161,$N$10,F161,$O$10,G161),\"emptyTuple\")","v":"emptyTuple"}]
[152,null,null,null,null,null,null,null,null,{"$f":"IF(OR(B162<>\"\",C162<>\"\",D162<>\"\",E162<>\"\",F162<>\"\",G162<>\"\"),XBRLMapTuple($J$9,$K$5,$K$6,\"BMA\",CONFIGURATION!$B$1,\"bscr\",\"\",CONFIGURATION!$B$12,$J$10,B162,$K$10,C162,$L$10,D162,$M$10,E162,$N$10,F162,$O$10,G162),\"emptyTuple\")","v":"emptyTuple"}]
[153,null,null,null,null,null,null,null,null,{"$f":"IF(OR(B163<>\"\",C163<>\"\",D163<>\"\",E163<>\"\",F163<>\"\",G163<>\"\"),XBRLMapTuple($J$9,$K$5,$K$6,\"BMA\",CONFIGURATION!$B$1,\"bscr\",\"\",CONFIGURATION!$B$12,$J$10,B163,$K$10,C163,$L$10,D163,$M$10,E163,$N$10,F163,$O$10,G163),\"emptyTuple\")","v":"emptyTuple"}]
[154,null,null,null,null,null,null,null,null,{"$f":"IF(OR(B164<>\"\",C164<>\"\",D164<>\"\",E164<>\"\",F164<>\"\",G164<>\"\"),XBRLMapTuple($J$9,$K$5,$K$6,\"BMA\",CONFIGURATION!$B$1,\"bscr\",\"\",CONFIGURATION!$B$12,$J$10,B164,$K$10,C164,$L$10,D164,$M$10,E164,$N$10,F164,$O$10,G164),\"emptyTuple\")","v":"emptyTuple"}]
[155,null,null,null,null,null,null,null,null,{"$f":"IF(OR(B165<>\"\",C165<>\"\",D165<>\"\",E165<>\"\",F165<>\"\",G165<>\"\"),XBRLMapTuple($J$9,$K$5,$K$6,\"BMA\",CONFIGURATION!$B$1,\"bscr\",\"\",CONFIGURATION!$B$12,$J$10,B165,$K$10,C165,$L$10,D165,$M$10,E165,$N$10,F165,$O$10,G165),\"emptyTuple\")","v":"emptyTuple"}]
[156,null,null,null,null,null,null,null,null,{"$f":"IF(OR(B166<>\"\",C166<>\"\",D166<>\"\",E166<>\"\",F166<>\"\",G166<>\"\"),XBRLMapTuple($J$9,$K$5,$K$6,\"BMA\",CONFIGURATION!$B$1,\"bscr\",\"\",CONFIGURATION!$B$12,$J$10,B166,$K$10,C166,$L$10,D166,$M$10,E166,$N$10,F166,$O$10,G166),\"emptyTuple\")","v":"emptyTuple"}]
[157,null,null,null,null,null,null,null,null,{"$f":"IF(OR(B167<>\"\",C167<>\"\",D167<>\"\",E167<>\"\",F167<>\"\",G167<>\"\"),XBRLMapTuple($J$9,$K$5,$K$6,\"BMA\",CONFIGURATION!$B$1,\"bscr\",\"\",CONFIGURATION!$B$12,$J$10,B167,$K$10,C167,$L$10,D167,$M$10,E167,$N$10,F167,$O$10,G167),\"emptyTuple\")","v":"emptyTuple"}]
[158,null,null,null,null,null,null,null,null,{"$f":"IF(OR(B168<>\"\",C168<>\"\",D168<>\"\",E168<>\"\",F168<>\"\",G168<>\"\"),XBRLMapTuple($J$9,$K$5,$K$6,\"BMA\",CONFIGURATION!$B$1,\"bscr\",\"\",CONFIGURATION!$B$12,$J$10,B168,$K$10,C168,$L$10,D168,$M$10,E168,$N$10,F168,$O$10,G168),\"emptyTuple\")","v":"emptyTuple"}]
[159,null,null,null,null,null,null,null,null,{"$f":"IF(OR(B169<>\"\",C169<>\"\",D169<>\"\",E169<>\"\",F169<>\"\",G169<>\"\"),XBRLMapTuple($J$9,$K$5,$K$6,\"BMA\",CONFIGURATION!$B$1,\"bscr\",\"\",CONFIGURATION!$B$12,$J$10,B169,$K$10,C169,$L$10,D169,$M$10,E169,$N$10,F169,$O$10,G169),\"emptyTuple\")","v":"emptyTuple"}]
[160,null,null,null,null,null,null,null,null,{"$f":"IF(OR(B170<>\"\",C170<>\"\",D170<>\"\",E170<>\"\",F170<>\"\",G170<>\"\"),XBRLMapTuple($J$9,$K$5,$K$6,\"BMA\",CONFIGURATION!$B$1,\"bscr\",\"\",CONFIGURATION!$B$12,$J$10,B170,$K$10,C170,$L$10,D170,$M$10,E170,$N$10,F170,$O$10,G170),\"emptyTuple\")","v":"emptyTuple"}]
[161,null,null,null,null,null,null,null,null,{"$f":"IF(OR(B171<>\"\",C171<>\"\",D171<>\"\",E171<>\"\",F171<>\"\",G171<>\"\"),XBRLMapTuple($J$9,$K$5,$K$6,\"BMA\",CONFIGURATION!$B$1,\"bscr\",\"\",CONFIGURATION!$B$12,$J$10,B171,$K$10,C171,$L$10,D171,$M$10,E171,$N$10,F171,$O$10,G171),\"emptyTuple\")","v":"emptyTuple"}]
[162,null,null,null,null,null,null,null,null,{"$f":"IF(OR(B172<>\"\",C172<>\"\",D172<>\"\",E172<>\"\",F172<>\"\",G172<>\"\"),XBRLMapTuple($J$9,$K$5,$K$6,\"BMA\",CONFIGURATION!$B$1,\"bscr\",\"\",CONFIGURATION!$B$12,$J$10,B172,$K$10,C172,$L$10,D172,$M$10,E172,$N$10,F172,$O$10,G172),\"emptyTuple\")","v":"emptyTuple"}]
[163,null,null,null,null,null,null,null,null,{"$f":"IF(OR(B173<>\"\",C173<>\"\",D173<>\"\",E173<>\"\",F173<>\"\",G173<>\"\"),XBRLMapTuple($J$9,$K$5,$K$6,\"BMA\",CONFIGURATION!$B$1,\"bscr\",\"\",CONFIGURATION!$B$12,$J$10,B173,$K$10,C173,$L$10,D173,$M$10,E173,$N$10,F173,$O$10,G173),\"emptyTuple\")","v":"emptyTuple"}]
[164,null,null,null,null,null,null,null,null,{"$f":"IF(OR(B174<>\"\",C174<>\"\",D174<>\"\",E174<>\"\",F174<>\"\",G174<>\"\"),XBRLMapTuple($J$9,$K$5,$K$6,\"BMA\",CONFIGURATION!$B$1,\"bscr\",\"\",CONFIGURATION!$B$12,$J$10,B174,$K$10,C174,$L$10,D174,$M$10,E174,$N$10,F174,$O$10,G174),\"emptyTuple\")","v":"emptyTuple"}]
[165,null,null,null,null,null,null,null,null,{"$f":"IF(OR(B175<>\"\",C175<>\"\",D175<>\"\",E175<>\"\",F175<>\"\",G175<>\"\"),XBRLMapTuple($J$9,$K$5,$K$6,\"BMA\",CONFIGURATION!$B$1,\"bscr\",\"\",CONFIGURATION!$B$12,$J$10,B175,$K$10,C175,$L$10,D175,$M$10,E175,$N$10,F175,$O$10,G175),\"emptyTuple\")","v":"emptyTuple"}]
[166,null,null,null,null,null,null,null,null,{"$f":"IF(OR(B176<>\"\",C176<>\"\",D176<>\"\",E176<>\"\",F176<>\"\",G176<>\"\"),XBRLMapTuple($J$9,$K$5,$K$6,\"BMA\",CONFIGURATION!$B$1,\"bscr\",\"\",CONFIGURATION!$B$12,$J$10,B176,$K$10,C176,$L$10,D176,$M$10,E176,$N$10,F176,$O$10,G176),\"emptyTuple\")","v":"emptyTuple"}]
[167,null,null,null,null,null,null,null,null,{"$f":"IF(OR(B177<>\"\",C177<>\"\",D177<>\"\",E177<>\"\",F177<>\"\",G177<>\"\"),XBRLMapTuple($J$9,$K$5,$K$6,\"BMA\",CONFIGURATION!$B$1,\"bscr\",\"\",CONFIGURATION!$B$12,$J$10,B177,$K$10,C177,$L$10,D177,$M$10,E177,$N$10,F177,$O$10,G177),\"emptyTuple\")","v":"emptyTuple"}]
[168,null,null,null,null,null,null,null,null,{"$f":"IF(OR(B178<>\"\",C178<>\"\",D178<>\"\",E178<>\"\",F178<>\"\",G178<>\"\"),XBRLMapTuple($J$9,$K$5,$K$6,\"BMA\",CONFIGURATION!$B$1,\"bscr\",\"\",CONFIGURATION!$B$12,$J$10,B178,$K$10,C178,$L$10,D178,$M$10,E178,$N$10,F178,$O$10,G178),\"emptyTuple\")","v":"emptyTuple"}]
[169,null,null,null,null,null,null,null,null,{"$f":"IF(OR(B179<>\"\",C179<>\"\",D179<>\"\",E179<>\"\",F179<>\"\",G179<>\"\"),XBRLMapTuple($J$9,$K$5,$K$6,\"BMA\",CONFIGURATION!$B$1,\"bscr\",\"\",CONFIGURATION!$B$12,$J$10,B179,$K$10,C179,$L$10,D179,$M$10,E179,$N$10,F179,$O$10,G179),\"emptyTuple\")","v":"emptyTuple"}]
[170,null,null,null,null,null,null,null,null,{"$f":"IF(OR(B180<>\"\",C180<>\"\",D180<>\"\",E180<>\"\",F180<>\"\",G180<>\"\"),XBRLMapTuple($J$9,$K$5,$K$6,\"BMA\",CONFIGURATION!$B$1,\"bscr\",\"\",CONFIGURATION!$B$12,$J$10,B180,$K$10,C180,$L$10,D180,$M$10,E180,$N$10,F180,$O$10,G180),\"emptyTuple\")","v":"emptyTuple"}]
[171,null,null,null,null,null,null,null,null,{"$f":"IF(OR(B181<>\"\",C181<>\"\",D181<>\"\",E181<>\"\",F181<>\"\",G181<>\"\"),XBRLMapTuple($J$9,$K$5,$K$6,\"BMA\",CONFIGURATION!$B$1,\"bscr\",\"\",CONFIGURATION!$B$12,$J$10,B181,$K$10,C181,$L$10,D181,$M$10,E181,$N$10,F181,$O$10,G181),\"emptyTuple\")","v":"emptyTuple"}]
[172,null,null,null,null,null,null,null,null,{"$f":"IF(OR(B182<>\"\",C182<>\"\",D182<>\"\",E182<>\"\",F182<>\"\",G182<>\"\"),XBRLMapTuple($J$9,$K$5,$K$6,\"BMA\",CONFIGURATION!$B$1,\"bscr\",\"\",CONFIGURATION!$B$12,$J$10,B182,$K$10,C182,$L$10,D182,$M$10,E182,$N$10,F182,$O$10,G182),\"emptyTuple\")","v":"emptyTuple"}]
[173,null,null,null,null,null,null,null,null,{"$f":"IF(OR(B183<>\"\",C183<>\"\",D183<>\"\",E183<>\"\",F183<>\"\",G183<>\"\"),XBRLMapTuple($J$9,$K$5,$K$6,\"BMA\",CONFIGURATION!$B$1,\"bscr\",\"\",CONFIGURATION!$B$12,$J$10,B183,$K$10,C183,$L$10,D183,$M$10,E183,$N$10,F183,$O$10,G183),\"emptyTuple\")","v":"emptyTuple"}]
[174,null,null,null,null,null,null,null,null,{"$f":"IF(OR(B184<>\"\",C184<>\"\",D184<>\"\",E184<>\"\",F184<>\"\",G184<>\"\"),XBRLMapTuple($J$9,$K$5,$K$6,\"BMA\",CONFIGURATION!$B$1,\"bscr\",\"\",CONFIGURATION!$B$12,$J$10,B184,$K$10,C184,$L$10,D184,$M$10,E184,$N$10,F184,$O$10,G184),\"emptyTuple\")","v":"emptyTuple"}]
[175,null,null,null,null,null,null,null,null,{"$f":"IF(OR(B185<>\"\",C185<>\"\",D185<>\"\",E185<>\"\",F185<>\"\",G185<>\"\"),XBRLMapTuple($J$9,$K$5,$K$6,\"BMA\",CONFIGURATION!$B$1,\"bscr\",\"\",CONFIGURATION!$B$12,$J$10,B185,$K$10,C185,$L$10,D185,$M$10,E185,$N$10,F185,$O$10,G185),\"emptyTuple\")","v":"emptyTuple"}]
[176,null,null,null,null,null,null,null,null,{"$f":"IF(OR(B186<>\"\",C186<>\"\",D186<>\"\",E186<>\"\",F186<>\"\",G186<>\"\"),XBRLMapTuple($J$9,$K$5,$K$6,\"BMA\",CONFIGURATION!$B$1,\"bscr\",\"\",CONFIGURATION!$B$12,$J$10,B186,$K$10,C186,$L$10,D186,$M$10,E186,$N$10,F186,$O$10,G186),\"emptyTuple\")","v":"emptyTuple"}]
[177,null,null,null,null,null,null,null,null,{"$f":"IF(OR(B187<>\"\",C187<>\"\",D187<>\"\",E187<>\"\",F187<>\"\",G187<>\"\"),XBRLMapTuple($J$9,$K$5,$K$6,\"BMA\",CONFIGURATION!$B$1,\"bscr\",\"\",CONFIGURATION!$B$12,$J$10,B187,$K$10,C187,$L$10,D187,$M$10,E187,$N$10,F187,$O$10,G187),\"emptyTuple\")","v":"emptyTuple"}]
[178,null,null,null,null,null,null,null,null,{"$f":"IF(OR(B188<>\"\",C188<>\"\",D188<>\"\",E188<>\"\",F188<>\"\",G188<>\"\"),XBRLMapTuple($J$9,$K$5,$K$6,\"BMA\",CONFIGURATION!$B$1,\"bscr\",\"\",CONFIGURATION!$B$12,$J$10,B188,$K$10,C188,$L$10,D188,$M$10,E188,$N$10,F188,$O$10,G188),\"emptyTuple\")","v":"emptyTuple"}]
[179,null,null,null,null,null,null,null,null,{"$f":"IF(OR(B189<>\"\",C189<>\"\",D189<>\"\",E189<>\"\",F189<>\"\",G189<>\"\"),XBRLMapTuple($J$9,$K$5,$K$6,\"BMA\",CONFIGURATION!$B$1,\"bscr\",\"\",CONFIGURATION!$B$12,$J$10,B189,$K$10,C189,$L$10,D189,$M$10,E189,$N$10,F189,$O$10,G189),\"emptyTuple\")","v":"emptyTuple"}]
[180,null,null,null,null,null,null,null,null,{"$f":"IF(OR(B190<>\"\",C190<>\"\",D190<>\"\",E190<>\"\",F190<>\"\",G190<>\"\"),XBRLMapTuple($J$9,$K$5,$K$6,\"BMA\",CONFIGURATION!$B$1,\"bscr\",\"\",CONFIGURATION!$B$12,$J$10,B190,$K$10,C190,$L$10,D190,$M$10,E190,$N$10,F190,$O$10,G190),\"emptyTuple\")","v":"emptyTuple"}]
[181,null,null,null,null,null,null,null,null,{"$f":"IF(OR(B191<>\"\",C191<>\"\",D191<>\"\",E191<>\"\",F191<>\"\",G191<>\"\"),XBRLMapTuple($J$9,$K$5,$K$6,\"BMA\",CONFIGURATION!$B$1,\"bscr\",\"\",CONFIGURATION!$B$12,$J$10,B191,$K$10,C191,$L$10,D191,$M$10,E191,$N$10,F191,$O$10,G191),\"emptyTuple\")","v":"emptyTuple"}]
[182,null,null,null,null,null,null,null,null,{"$f":"IF(OR(B192<>\"\",C192<>\"\",D192<>\"\",E192<>\"\",F192<>\"\",G192<>\"\"),XBRLMapTuple($J$9,$K$5,$K$6,\"BMA\",CONFIGURATION!$B$1,\"bscr\",\"\",CONFIGURATION!$B$12,$J$10,B192,$K$10,C192,$L$10,D192,$M$10,E192,$N$10,F192,$O$10,G192),\"emptyTuple\")","v":"emptyTuple"}]
[183,null,null,null,null,null,null,null,null,{"$f":"IF(OR(B193<>\"\",C193<>\"\",D193<>\"\",E193<>\"\",F193<>\"\",G193<>\"\"),XBRLMapTuple($J$9,$K$5,$K$6,\"BMA\",CONFIGURATION!$B$1,\"bscr\",\"\",CONFIGURATION!$B$12,$J$10,B193,$K$10,C193,$L$10,D193,$M$10,E193,$N$10,F193,$O$10,G193),\"emptyTuple\")","v":"emptyTuple"}]
[184,null,null,null,null,null,null,null,null,{"$f":"IF(OR(B194<>\"\",C194<>\"\",D194<>\"\",E194<>\"\",F194<>\"\",G194<>\"\"),XBRLMapTuple($J$9,$K$5,$K$6,\"BMA\",CONFIGURATION!$B$1,\"bscr\",\"\",CONFIGURATION!$B$12,$J$10,B194,$K$10,C194,$L$10,D194,$M$10,E194,$N$10,F194,$O$10,G194),\"emptyTuple\")","v":"emptyTuple"}]
[185,null,null,null,null,null,null,null,null,{"$f":"IF(OR(B195<>\"\",C195<>\"\",D195<>\"\",E195<>\"\",F195<>\"\",G195<>\"\"),XBRLMapTuple($J$9,$K$5,$K$6,\"BMA\",CONFIGURATION!$B$1,\"bscr\",\"\",CONFIGURATION!$B$12,$J$10,B195,$K$10,C195,$L$10,D195,$M$10,E195,$N$10,F195,$O$10,G195),\"emptyTuple\")","v":"emptyTuple"}]
[186,null,null,null,null,null,null,null,null,{"$f":"IF(OR(B196<>\"\",C196<>\"\",D196<>\"\",E196<>\"\",F196<>\"\",G196<>\"\"),XBRLMapTuple($J$9,$K$5,$K$6,\"BMA\",CONFIGURATION!$B$1,\"bscr\",\"\",CONFIGURATION!$B$12,$J$10,B196,$K$10,C196,$L$10,D196,$M$10,E196,$N$10,F196,$O$10,G196),\"emptyTuple\")","v":"emptyTuple"}]
[187,null,null,null,null,null,null,null,null,{"$f":"IF(OR(B197<>\"\",C197<>\"\",D197<>\"\",E197<>\"\",F197<>\"\",G197<>\"\"),XBRLMapTuple($J$9,$K$5,$K$6,\"BMA\",CONFIGURATION!$B$1,\"bscr\",\"\",CONFIGURATION!$B$12,$J$10,B197,$K$10,C197,$L$10,D197,$M$10,E197,$N$10,F197,$O$10,G197),\"emptyTuple\")","v":"emptyTuple"}]
[188,null,null,null,null,null,null,null,null,{"$f":"IF(OR(B198<>\"\",C198<>\"\",D198<>\"\",E198<>\"\",F198<>\"\",G198<>\"\"),XBRLMapTuple($J$9,$K$5,$K$6,\"BMA\",CONFIGURATION!$B$1,\"bscr\",\"\",CONFIGURATION!$B$12,$J$10,B198,$K$10,C198,$L$10,D198,$M$10,E198,$N$10,F198,$O$10,G198),\"emptyTuple\")","v":"emptyTuple"}]
[189,null,null,null,null,null,null,null,null,{"$f":"IF(OR(B199<>\"\",C199<>\"\",D199<>\"\",E199<>\"\",F199<>\"\",G199<>\"\"),XBRLMapTuple($J$9,$K$5,$K$6,\"BMA\",CONFIGURATION!$B$1,\"bscr\",\"\",CONFIGURATION!$B$12,$J$10,B199,$K$10,C199,$L$10,D199,$M$10,E199,$N$10,F199,$O$10,G199),\"emptyTuple\")","v":"emptyTuple"}]
[190,null,null,null,null,null,null,null,null,{"$f":"IF(OR(B200<>\"\",C200<>\"\",D200<>\"\",E200<>\"\",F200<>\"\",G200<>\"\"),XBRLMapTuple($J$9,$K$5,$K$6,\"BMA\",CONFIGURATION!$B$1,\"bscr\",\"\",CONFIGURATION!$B$12,$J$10,B200,$K$10,C200,$L$10,D200,$M$10,E200,$N$10,F200,$O$10,G200),\"emptyTuple\")","v":"emptyTuple"}]
[191,null,null,null,null,null,null,null,null,{"$f":"IF(OR(B201<>\"\",C201<>\"\",D201<>\"\",E201<>\"\",F201<>\"\",G201<>\"\"),XBRLMapTuple($J$9,$K$5,$K$6,\"BMA\",CONFIGURATION!$B$1,\"bscr\",\"\",CONFIGURATION!$B$12,$J$10,B201,$K$10,C201,$L$10,D201,$M$10,E201,$N$10,F201,$O$10,G201),\"emptyTuple\")","v":"emptyTuple"}]
[192,null,null,null,null,null,null,null,null,{"$f":"IF(OR(B202<>\"\",C202<>\"\",D202<>\"\",E202<>\"\",F202<>\"\",G202<>\"\"),XBRLMapTuple($J$9,$K$5,$K$6,\"BMA\",CONFIGURATION!$B$1,\"bscr\",\"\",CONFIGURATION!$B$12,$J$10,B202,$K$10,C202,$L$10,D202,$M$10,E202,$N$10,F202,$O$10,G202),\"emptyTuple\")","v":"emptyTuple"}]
[193,null,null,null,null,null,null,null,null,{"$f":"IF(OR(B203<>\"\",C203<>\"\",D203<>\"\",E203<>\"\",F203<>\"\",G203<>\"\"),XBRLMapTuple($J$9,$K$5,$K$6,\"BMA\",CONFIGURATION!$B$1,\"bscr\",\"\",CONFIGURATION!$B$12,$J$10,B203,$K$10,C203,$L$10,D203,$M$10,E203,$N$10,F203,$O$10,G203),\"emptyTuple\")","v":"emptyTuple"}]
[194,null,null,null,null,null,null,null,null,{"$f":"IF(OR(B204<>\"\",C204<>\"\",D204<>\"\",E204<>\"\",F204<>\"\",G204<>\"\"),XBRLMapTuple($J$9,$K$5,$K$6,\"BMA\",CONFIGURATION!$B$1,\"bscr\",\"\",CONFIGURATION!$B$12,$J$10,B204,$K$10,C204,$L$10,D204,$M$10,E204,$N$10,F204,$O$10,G204),\"emptyTuple\")","v":"emptyTuple"}]
[195,null,null,null,null,null,null,null,null,{"$f":"IF(OR(B205<>\"\",C205<>\"\",D205<>\"\",E205<>\"\",F205<>\"\",G205<>\"\"),XBRLMapTuple($J$9,$K$5,$K$6,\"BMA\",CONFIGURATION!$B$1,\"bscr\",\"\",CONFIGURATION!$B$12,$J$10,B205,$K$10,C205,$L$10,D205,$M$10,E205,$N$10,F205,$O$10,G205),\"emptyTuple\")","v":"emptyTuple"}]
[196,null,null,null,null,null,null,null,null,{"$f":"IF(OR(B206<>\"\",C206<>\"\",D206<>\"\",E206<>\"\",F206<>\"\",G206<>\"\"),XBRLMapTuple($J$9,$K$5,$K$6,\"BMA\",CONFIGURATION!$B$1,\"bscr\",\"\",CONFIGURATION!$B$12,$J$10,B206,$K$10,C206,$L$10,D206,$M$10,E206,$N$10,F206,$O$10,G206),\"emptyTuple\")","v":"emptyTuple"}]
[197,null,null,null,null,null,null,null,null,{"$f":"IF(OR(B207<>\"\",C207<>\"\",D207<>\"\",E207<>\"\",F207<>\"\",G207<>\"\"),XBRLMapTuple($J$9,$K$5,$K$6,\"BMA\",CONFIGURATION!$B$1,\"bscr\",\"\",CONFIGURATION!$B$12,$J$10,B207,$K$10,C207,$L$10,D207,$M$10,E207,$N$10,F207,$O$10,G207),\"emptyTuple\")","v":"emptyTuple"}]
[198,null,null,null,null,null,null,null,null,{"$f":"IF(OR(B208<>\"\",C208<>\"\",D208<>\"\",E208<>\"\",F208<>\"\",G208<>\"\"),XBRLMapTuple($J$9,$K$5,$K$6,\"BMA\",CONFIGURATION!$B$1,\"bscr\",\"\",CONFIGURATION!$B$12,$J$10,B208,$K$10,C208,$L$10,D208,$M$10,E208,$N$10,F208,$O$10,G208),\"emptyTuple\")","v":"emptyTuple"}]
[199,null,null,null,null,null,null,null,null,{"$f":"IF(OR(B209<>\"\",C209<>\"\",D209<>\"\",E209<>\"\",F209<>\"\",G209<>\"\"),XBRLMapTuple($J$9,$K$5,$K$6,\"BMA\",CONFIGURATION!$B$1,\"bscr\",\"\",CONFIGURATION!$B$12,$J$10,B209,$K$10,C209,$L$10,D209,$M$10,E209,$N$10,F209,$O$10,G209),\"emptyTuple\")","v":"emptyTuple"}]
[200,null,null,null,null,null,null,null,null,{"$f":"IF(OR(B210<>\"\",C210<>\"\",D210<>\"\",E210<>\"\",F210<>\"\",G210<>\"\"),XBRLMapTuple($J$9,$K$5,$K$6,\"BMA\",CONFIGURATION!$B$1,\"bscr\",\"\",CONFIGURATION!$B$12,$J$10,B210,$K$10,C210,$L$10,D210,$M$10,E210,$N$10,F210,$O$10,G210),\"emptyTuple\")","v":"emptyTuple"}]
[null,"Total Preferred Shares, Treasury Shares and Other Fixed Capital",null,null,null,{"$f":"SUM(F11:F210)","v":0},null,null,null,"brrt_TotalAvailableCapitalAndSurplus",{"$f":"XBRLMap(F211,J211,$K$5,$K$6,CONFIGURATION!$B$10,\"BMA\",CONFIGURATION!$B$1,\"bscr\",CONFIGURATION!$B$12)","v":"Mapped"},null,null,null,"bma_ScheduleOfEligibleCapitalTotalAvailableCapitalAndSurplus"]
[]
[null,null,null,null,null,{"$f":"'Form 8SFS'!O17-'Form 8SFS'!O25+'Form 8SFS'!O34","v":0}]
[]
[null,null,null,null,null,{"$f":"IF(F216=\"TRUE\",HYPERLINK(\"#'Form 8SFS'!O17:O34\",\"TRUE\"),HYPERLINK(\"#'Form 8SFS'!O17:O34\",\"FALSE\"))","v":"TRUE"}]
[null,null,null,null,null,{"$f":"IF(ROUND((F211-F213),0)=0,\"TRUE\",\"FALSE\")","v":"TRUE"}]
[null,null,null,null,null,{"$f":"ROUND((F213-F211),0)","v":0}]
[]
[null,null,null,null,null,{"$f":"IF(F215=\"False\",\"Does not equal Form 8SFS Lines 1(a)(ii), 1(a)(iii) & 1(c)(iii)\",\"\")","v":""}]

{"sheet":"Schedule XVI","index":83,"n_rows":211,"n_cols":17,"rows_kept":211,"cut":false,"hidden":false,"merged":[[3,2,3,3]]}
["SCHEDULE OF REGULATED NON-INSURANCE FINANCIAL OPERATING ENTITIES",null,null,null,null,null,null,null,null,null,null,null,{"$f":"HYPERLINK(\"#'Index'!A1\",\"Return to Index\")","v":"Return to Index"}]
[]
[null,{"$f":"'Company Information'!C7","v":"Enter Company Name"}]
[null,"For the year ending",{"$f":"'Company Information'!C3","v":"2019-12-31"},null,null,null,null,null,null,null,null,null,"SCHEDULE XVI"]
[null,{"$f":"\"expressed in\"& IF(CONFIGURATION!$B$12>1,\" ['\"&MID(CONFIGURATION!$B$12,2,LEN(CONFIGURATION!$B$12))&\"s]\",\"\")","v":"expressed in ['000s]"},{"$f":"'Form 1EBS'!C4","v":"United States Dollars"},null,null,null,null,null,null,null,null,null,null,null,"Select","Select","Select"]
[null,null,null,null,null,null,null,null,null,null,null,null,null,null,"Energy","Holding Entity","Significant Influence"]
[null," Enter Number of Regulated Non-Insurance Entities",{"$f":"Import!I10282","v":0},null,null,null,null,null,null,null,null,null,null,null,"Materials","Operating Entity","Control"]
[null," Enter information for each entity",null,null,null,null,null,null,null,null,null,null,null,null,"Industrial","Branch"]
[null,null,null,null,null,null,null,null,null,null,null,null,null,null,"Consumer Discretionary"]
[null,"Entity name","Jurisdiction","Sector Classification (Select from drop-down list)","Strategic Purpose","Entity Type (Select from drop-down list)","Products & Services Offered","Participation (Select from drop-down list)","Percent of Participating Interest","Assets","Investment Amount (equity method)","Regulatory Capital Requirement for Regulated Entities (RCR) (100%)","Applicable Share of the RCR",null,"Consumer Staples"]
[1,{"$f":"Import!I10283","v":0},{"$f":"+Import!I10298","v":0},{"$f":"Import!I10313","v":"Select"},{"$f":"Import!I10328","v":0},{"$f":"Import!I10343","v":"Select"},{"$f":"Import!I10358","v":0},{"$f":"Import!I10373","v":"Select"},{"$f":"Import!I10388","v":0},{"$f":"Import!I10403","v":0},{"$f":"Import!I10419","v":0},{"$f":"Import!I10435","v":0},{"$f":"MAX(0,L11*I11)","v":0},null,"Healthcare"]
[2,{"$f":"Import!I10284","v":0},{"$f":"+Import!I10299","v":0},{"$f":"Import!I10314","v":"Select"},{"$f":"Import!I10329","v":0},{"$f":"Import!I10344","v":"Select"},{"$f":"Import!I10359","v":0},{"$f":"Import!I10374","v":"Select"},{"$f":"Import!I10389","v":0},{"$f":"Import!I10404","v":0},{"$f":"Import!I10420","v":0},{"$f":"Import!I10436","v":0},{"$f":"MAX(0,L12*I12)","v":0},null,"Financial"]
[3,{"$f":"Import!I10285","v":0},{"$f":"+Import!I10300","v":0},{"$f":"Import!I10315","v":"Select"},{"$f":"Import!I10330","v":0},{"$f":"Import!I10345","v":"Select"},{"$f":"Import!I10360","v":0},{"$f":"Import!I10375","v":"Select"},{"$f":"Import!I10390","v":0},{"$f":"Import!I10405","v":0},{"$f":"Import!I10421","v":0},{"$f":"Import!I10437","v":0},0]
[4,{"$f":"Import!I10286","v":0},{"$f":"+Import!I10301","v":0},{"$f":"Import!I10316","v":"Select"},{"$f":"Import!I10331","v":0},{"$f":"Import!I10346","v":"Select"},{"$f":"Import!I10361","v":0},{"$f":"Import!I10376","v":"Select"},{"$f":"Import!I10391","v":0},{"$f":"Import!I10406","v":0},{"$f":"Import!I10422","v":0},{"$f":"Import!I10438","v":0},0]
[5,{"$f":"Import!I10287","v":0},{"$f":"+Import!I10302","v":0},{"$f":"Import!I10317","v":"Select"},{"$f":"Import!I10332","v":0},{"$f":"Import!I10347","v":"Select"},{"$f":"Import!I10362","v":0},{"$f":"Import!I10377","v":"Select"},{"$f":"Import!I10392","v":0},{"$f":"Import!I10407","v":0},{"$f":"Import!I10423","v":0},{"$f":"Import!I10439","v":0},0]
[6,{"$f":"Import!I10288","v":0},{"$f":"+Import!I10303","v":0},{"$f":"Import!I10318","v":"Select"},{"$f":"Import!I10333","v":0},{"$f":"Import!I10348","v":"Select"},{"$f":"Import!I10363","v":0},{"$f":"Import!I10378","v":"Select"},{"$f":"Import!I10393","v":0},{"$f":"Import!I10408","v":0},{"$f":"Import!I10424","v":0},{"$f":"Import!I10440","v":0},0]
[7,{"$f":"Import!I10289","v":0},{"$f":"+Import!I10304","v":0},{"$f":"Import!I10319","v":"Select"},{"$f":"Import!I10334","v":0},{"$f":"Import!I10349","v":"Select"},{"$f":"Import!I10364","v":0},{"$f":"Import!I10379","v":"Select"},{"$f":"Import!I10394","v":0},{"$f":"Import!I10409","v":0},{"$f":"Import!I10425","v":0},{"$f":"Import!I10441","v":0},0]
[8,{"$f":"Import!I10290","v":0},{"$f":"+Import!I10305","v":0},{"$f":"Import!I10320","v":"Select"},{"$f":"Import!I10335","v":0},{"$f":"Import!I10350","v":"Select"},{"$f":"Import!I10365","v":0},{"$f":"Import!I10380","v":"Select"},{"$f":"Import!I10395","v":0},{"$f":"Import!I10410","v":0},{"$f":"Import!I10426","v":0},{"$f":"Import!I10442","v":0},0]
[9,{"$f":"Import!I10291","v":0},{"$f":"+Import!I10306","v":0},{"$f":"Import!I10321","v":"Select"},{"$f":"Import!I10336","v":0},{"$f":"Import!I10351","v":"Select"},{"$f":"Import!I10366","v":0},{"$f":"Import!I10381","v":"Select"},{"$f":"Import!I10396","v":0},{"$f":"Import!I10411","v":0},{"$f":"Import!I10427","v":0},{"$f":"Import!I10443","v":0},0]
[10,{"$f":"Import!I10292","v":0},{"$f":"+Import!I10307","v":0},{"$f":"Import!I10322","v":"Select"},{"$f":"Import!I10337","v":0},{"$f":"Import!I10352","v":"Select"},{"$f":"Import!I10367","v":0},{"$f":"Import!I10382","v":"Select"},{"$f":"Import!I10397","v":0},{"$f":"Import!I10412","v":0},{"$f":"Import!I10428","v":0},{"$f":"Import!I10444","v":0},0]
[11,{"$f":"Import!I10293","v":0},{"$f":"+Import!I10308","v":0},{"$f":"Import!I10323","v":"Select"},{"$f":"Import!I10338","v":0},{"$f":"Import!I10353","v":"Select"},{"$f":"Import!I10368","v":0},{"$f":"Import!I10383","v":"Select"},{"$f":"Import!I10398","v":0},{"$f":"Import!I10413","v":0},{"$f":"Import!I10429","v":0},{"$f":"Import!I10445","v":0},0]
[12,{"$f":"Import!I10294","v":0},{"$f":"+Import!I10309","v":0},{"$f":"Import!I10324","v":"Select"},{"$f":"Import!I10339","v":0},{"$f":"Import!I10354","v":"Select"},{"$f":"Import!I10369","v":0},{"$f":"Import!I10384","v":"Select"},{"$f":"Import!I10399","v":0},{"$f":"Import!I10414","v":0},{"$f":"Import!I10430","v":0},{"$f":"Import!I10446","v":0},0]
[13,{"$f":"Import!I10295","v":0},{"$f":"+Import!I10310","v":0},{"$f":"Import!I10325","v":"Select"},{"$f":"Import!I10340","v":0},{"$f":"Import!I10355","v":"Select"},{"$f":"Import!I10370","v":0},{"$f":"Import!I10385","v":"Select"},{"$f":"Import!I10400","v":0},{"$f":"Import!I10415","v":0},{"$f":"Import!I10431","v":0},{"$f":"Import!I10447","v":0},0]
[14,{"$f":"Import!I10296","v":0},{"$f":"+Import!I10311","v":0},{"$f":"Import!I10326","v":"Select"},{"$f":"Import!I10341","v":0},{"$f":"Import!I10356","v":"Select"},{"$f":"Import!I10371","v":0},{"$f":"Import!I10386","v":"Select"},{"$f":"Import!I10401","v":0},{"$f":"Import!I10416","v":0},{"$f":"Import!I10432","v":0},{"$f":"Import!I10448","v":0},0]
[15,{"$f":"Import!I10297","v":0},{"$f":"+Import!I10312","v":0},{"$f":"Import!I10327","v":"Select"},{"$f":"Import!I10342","v":0},{"$f":"Import!I10357","v":"Select"},{"$f":"Import!I10372","v":0},{"$f":"Import!I10387","v":"Select"},{"$f":"Import!I10402","v":0},{"$f":"Import!I10417","v":0},{"$f":"Import!I10433","v":0},{"$f":"Import!I10449","v":0},0]
[16,null,null,null,null,null,null,null,null,null,null,null,0]
[17,null,null,null,null,null,null,null,null,null,null,null,0]
[18,null,null,null,null,null,null,null,null,null,null,null,0]
[19,null,null,null,null,null,null,null,null,null,null,null,0]
[20,null,null,null,null,null,null,null,null,null,null,null,0]
[21,null,null,null,null,null,null,null,null,null,null,null,0]
[22,null,null,null,null,null,null,null,null,null,null,null,0]
[23,null,null,null,null,null,null,null,null,null,null,null,0]
[24,null,null,null,null,null,null,null,null,null,null,null,0]
[25,null,null,null,null,null,null,null,null,null,null,null,0]
[26,null,null,null,null,null,null,null,null,null,null,null,0]
[27,null,null,null,null,null,null,null,null,null,null,null,0]
[28,null,null,null,null,null,null,null,null,null,null,null,0]
[29,null,null,null,null,null,null,null,null,null,null,null,0]
[30,null,null,null,null,null,null,null,null,null,null,null,0]
[31,null,null,null,null,null,null,null,null,null,null,null,0]
[32,null,null,null,null,null,null,null,null,null,null,null,0]
[33,null,null,null,null,null,null,null,null,null,null,null,0]
[34,null,null,null,null,null,null,null,null,null,null,null,0]
[35,null,null,null,null,null,null,null,null,null,null,null,0]
[36,null,null,null,null,null,null,null,null,null,null,null,0]
[37,null,null,null,null,null,null,null,null,null,null,null,0]
[38,null,null,null,null,null,null,null,null,null,null,null,0]
[39,null,null,null,null,null,null,null,null,null,null,null,0]
[40,null,null,null,null,null,null,null,null,null,null,null,0]
[41,null,null,null,null,null,null,null,null,null,null,null,0]
[42,null,null,null,null,null,null,null,null,null,null,null,0]
[43,null,null,null,null,null,null,null,null,null,null,null,0]
[44,null,null,null,null,null,null,null,null,null,null,null,0]
[45,null,null,null,null,null,null,null,null,null,null,null,0]
[46,null,null,null,null,null,null,null,null,null,null,null,0]
[47,null,null,null,null,null,null,null,null,null,null,null,0]
[48,null,null,null,null,null,null,null,null,null,null,null,0]
[49,null,null,null,null,null,null,null,null,null,null,null,0]
[50,null,null,null,null,null,null,null,null,null,null,null,0]
[51,null,null,null,null,null,null,null,null,null,null,null,0]
[52,null,null,null,null,null,null,null,null,null,null,null,0]
[53,null,null,null,null,null,null,null,null,null,null,null,0]
[54,null,null,null,null,null,null,null,null,null,null,null,0]
[55,null,null,null,null,null,null,null,null,null,null,null,0]
[56,null,null,null,null,null,null,null,null,null,null,null,0]
[57,null,null,null,null,null,null,null,null,null,null,null,0]
[58,null,null,null,null,null,null,null,null,null,null,null,0]
[59,null,null,null,null,null,null,null,null,null,null,null,0]
[60,null,null,null,null,null,null,null,null,null,null,null,0]
[61,null,null,null,null,null,null,null,null,null,null,null,0]
[62,null,null,null,null,null,null,null,null,null,null,null,0]
[63,null,null,null,null,null,null,null,null,null,null,null,0]
[64,null,null,null,null,null,null,null,null,null,null,null,0]
[65,null,null,null,null,null,null,null,null,null,null,null,0]
[66,null,null,null,null,null,null,null,null,null,null,null,{"$f":"MAX(0,L76*I76)","v":0}]
[67,null,null,null,null,null,null,null,null,null,null,null,0]
[68,null,null,null,null,null,null,null,null,null,null,null,0]
[69,null,null,null,null,null,null,null,null,null,null,null,0]
[70,null,null,null,null,null,null,null,null,null,null,null,0]
[71,null,null,null,null,null,null,null,null,null,null,null,0]
[72,null,null,null,null,null,null,null,null,null,null,null,0]
[73,null,null,null,null,null,null,null,null,null,null,null,0]
[74,null,null,null,null,null,null,null,null,null,null,null,0]
[75,null,null,null,null,null,null,null,null,null,null,null,0]
[76,null,null,null,null,null,null,null,null,null,null,null,0]
[77,null,null,null,null,null,null,null,null,null,null,null,0]
[78,null,null,null,null,null,null,null,null,null,null,null,0]
[79,null,null,null,null,null,null,null,null,null,null,null,0]
[80,null,null,null,null,null,null,null,null,null,null,null,0]
[81,null,null,null,null,null,null,null,null,null,null,null,0]
[82,null,null,null,null,null,null,null,null,null,null,null,0]
[83,null,null,null,null,null,null,null,null,null,null,null,0]
[84,null,null,null,null,null,null,null,null,null,null,null,0]
[85,null,null,null,null,null,null,null,null,null,null,null,0]
[86,null,null,null,null,null,null,null,null,null,null,null,0]
[87,null,null,null,null,null,null,null,null,null,null,null,0]
[88,null,null,null,null,null,null,null,null,null,null,null,0]
[89,null,null,null,null,null,null,null,null,null,null,null,0]
[90,null,null,null,null,null,null,null,null,null,null,null,0]
[91,null,null,null,null,null,null,null,null,null,null,null,0]
[92,null,null,null,null,null,null,null,null,null,null,null,0]
[93,null,null,null,null,null,null,null,null,null,null,null,0]
[94,null,null,null,null,null,null,null,null,null,null,null,0]
[95,null,null,null,null,null,null,null,null,null,null,null,0]
[96,null,null,null,null,null,null,null,null,null,null,null,0]
[97,null,null,null,null,null,null,null,null,null,null,null,0]
[98,null,null,null,null,null,null,null,null,null,null,null,0]
[99,null,null,null,null,null,null,null,null,null,null,null,0]
[100,null,null,null,null,null,null,null,null,null,null,null,0]
[101,null,null,null,null,null,null,null,null,null,null,null,0]
[102,null,null,null,null,null,null,null,null,null,null,null,0]
[103,null,null,null,null,null,null,null,null,null,null,null,0]
[104,null,null,null,null,null,null,null,null,null,null,null,0]
[105,null,null,null,null,null,null,null,null,null,null,null,0]
[106,null,null,null,null,null,null,null,null,null,null,null,0]
[107,null,null,null,null,null,null,null,null,null,null,null,0]
[108,null,null,null,null,null,null,null,null,null,null,null,0]
[109,null,null,null,null,null,null,null,null,null,null,null,0]
[110,null,null,null,null,null,null,null,null,null,null,null,0]
[111,null,null,null,null,null,null,null,null,null,null,null,0]
[112,null,null,null,null,null,null,null,null,null,null,null,0]
[113,null,null,null,null,null,null,null,null,null,null,null,0]
[114,null,null,null,null,null,null,null,null,null,null,null,0]
[115,null,null,null,null,null,null,null,null,null,null,null,0]
[116,null,null,null,null,null,null,null,null,null,null,null,0]
[117,null,null,null,null,null,null,null,null,null,null,null,0]
[118,null,null,null,null,null,null,null,null,null,null,null,0]
[119,null,null,null,null,null,null,null,null,null,null,null,0]
[120,null,null,null,null,null,null,null,null,null,null,null,0]
[121,null,null,null,null,null,null,null,null,null,null,null,0]
[122,null,null,null,null,null,null,null,null,null,null,null,0]
[123,null,null,null,null,null,null,null,null,null,null,null,0]
[124,null,null,null,null,null,null,null,null,null,null,null,0]
[125,null,null,null,null,null,null,null,null,null,null,null,0]
[126,null,null,null,null,null,null,null,null,null,null,null,0]
[127,null,null,null,null,null,null,null,null,null,null,null,0]
[128,null,null,null,null,null,null,null,null,null,null,null,0]
[129,null,null,null,null,null,null,null,null,null,null,null,0]
[130,null,null,null,null,null,null,null,null,null,null,null,{"$f":"MAX(0,L140*I140)","v":0}]
[131,null,null,null,null,null,null,null,null,null,null,null,0]
[132,null,null,null,null,null,null,null,null,null,null,null,0]
[133,null,null,null,null,null,null,null,null,null,null,null,0]
[134,null,null,null,null,null,null,null,null,null,null,null,0]
[135,null,null,null,null,null,null,null,null,null,null,null,0]
[136,null,null,null,null,null,null,null,null,null,null,null,0]
[137,null,null,null,null,null,null,null,null,null,null,null,0]
[138,null,null,null,null,null,null,null,null,null,null,null,0]
[139,null,null,null,null,null,null,null,null,null,null,null,0]
[140,null,null,null,null,null,null,null,null,null,null,null,0]
[141,null,null,null,null,null,null,null,null,null,null,null,0]
[142,null,null,null,null,null,null,null,null,null,null,null,0]
[143,null,null,null,null,null,null,null,null,null,null,null,0]
[144,null,null,null,null,null,null,null,null,null,null,null,0]
[145,null,null,null,null,null,null,null,null,null,null,null,0]
[146,null,null,null,null,null,null,null,null,null,null,null,0]
[147,null,null,null,null,null,null,null,null,null,null,null,0]
[148,null,null,null,null,null,null,null,null,null,null,null,0]
[149,null,null,null,null,null,null,null,null,null,null,null,0]
[150,null,null,null,null,null,null,null,null,null,null,null,0]
[151,null,null,null,null,null,null,null,null,null,null,null,0]
[152,null,null,null,null,null,null,null,null,null,null,null,0]
[153,null,null,null,null,null,null,null,null,null,null,null,0]
[154,null,null,null,null,null,null,null,null,null,null,null,0]
[155,null,null,null,null,null,null,null,null,null,null,null,0]
[156,null,null,null,null,null,null,null,null,null,null,null,0]
[157,null,null,null,null,null,null,null,null,null,null,null,0]
[158,null,null,null,null,null,null,null,null,null,null,null,0]
[159,null,null,null,null,null,null,null,null,null,null,null,0]
[160,null,null,null,null,null,null,null,null,null,null,null,0]
[161,null,null,null,null,null,null,null,null,null,null,null,0]
[162,null,null,null,null,null,null,null,null,null,null,null,0]
[163,null,null,null,null,null,null,null,null,null,null,null,0]
[164,null,null,null,null,null,null,null,null,null,null,null,0]
[165,null,null,null,null,null,null,null,null,null,null,null,0]
[166,null,null,null,null,null,null,null,null,null,null,null,0]
[167,null,null,null,null,null,null,null,null,null,null,null,0]
[168,null,null,null,null,null,null,null,null,null,null,null,0]
[169,null,null,null,null,null,null,null,null,null,null,null,0]
[170,null,null,null,null,null,null,null,null,null,null,null,0]
[171,null,null,null,null,null,null,null,null,null,null,null,0]
[172,null,null,null,null,null,null,null,null,null,null,null,0]
[173,null,null,null,null,null,null,null,null,null,null,null,0]
[174,null,null,null,null,null,null,null,null,null,null,null,0]
[175,null,null,null,null,null,null,null,null,null,null,null,0]
[176,null,null,null,null,null,null,null,null,null,null,null,0]
[177,null,null,null,null,null,null,null,null,null,null,null,0]
[178,null,null,null,null,null,null,null,null,null,null,null,0]
[179,null,null,null,null,null,null,null,null,null,null,null,0]
[180,null,null,null,null,null,null,null,null,null,null,null,0]
[181,null,null,null,null,null,null,null,null,null,null,null,0]
[182,null,null,null,null,null,null,null,null,null,null,null,0]
[183,null,null,null,null,null,null,null,null,null,null,null,0]
[184,null,null,null,null,null,null,null,null,null,null,null,0]
[185,null,null,null,null,null,null,null,null,null,null,null,0]
[186,null,null,null,null,null,null,null,null,null,null,null,0]
[187,null,null,null,null,null,null,null,null,null,null,null,0]
[188,null,null,null,null,null,null,null,null,null,null,null,0]
[189,null,null,null,null,null,null,null,null,null,null,null,0]
[190,null,null,null,null,null,null,null,null,null,null,null,0]
[191,null,null,null,null,null,null,null,null,null,null,null,0]
[192,null,null,null,null,null,null,null,null,null,null,null,0]
[193,null,null,null,null,null,null,null,null,null,null,null,0]
[194,null,null,null,null,null,null,null,null,null,null,null,{"$f":"MAX(0,L204*I204)","v":0}]
[195,null,null,null,null,null,null,null,null,null,null,null,0]
[196,null,null,null,null,null,null,null,null,null,null,null,0]
[197,null,null,null,null,null,null,null,null,null,null,null,0]
[198,null,null,null,null,null,null,null,null,null,null,null,0]
[199,null,null,null,null,null,null,null,null,null,null,null,0]
[200,null,null,null,null,null,null,null,null,null,null,null,0]
[null,null,null,null,null,null,null,null,null,{"$f":"SUM(J11:J210)","v":0},{"$f":"SUM(K11:K210)","v":0},null,{"$f":"SUM(M11:M210)","v":0}]

{"sheet":"Schedule XVII","index":84,"n_rows":219,"n_cols":14,"rows_kept":219,"cut":false,"hidden":false,"merged":[[3,2,3,3]]}
[null,"SCHEDULE OF SOLVENCY",null,null,null,null,null,null,null,{"$f":"HYPERLINK(\"#'Index'!A1\",\"Return to Index\")","v":"Return to Index"}]
[]
[null,{"$f":"'Company Information'!C7","v":"Enter Company Name"}]
[null,"For the year ending",{"$f":"'Company Information'!C3","v":"2019-12-31"},null,null,null,null,null,null,"SCHEDULE XVII"]
[null,{"$f":"\"expressed in\"& IF(CONFIGURATION!$B$12>1,\" ['\"&MID(CONFIGURATION!$B$12,2,LEN(CONFIGURATION!$B$12))&\"s]\",\"\")","v":"expressed in ['000s]"},{"$f":"'Form 1EBS'!C4","v":"United States Dollars"},null,null,null,null,null,null,null,null,null,"Select"]
[null,null,null,null,null,null,null,null,null,null,null,"Energy","Holding Entity","Significant Influence"]
[null,"Enter Number of Entities ",{"$f":"Import!I10467","v":0},null,null,null,null,null,null,null,null,"Materials","Operating Entity","Control"]
[null," Enter information for each entity",null,null,null,null,null,null,null,null,null,"Industrial","Branch"]
[null,"(1)","(2)","(3)","(4)","(5)","(6)","(7)","(8)","(9)",null,"Consumer Discretionary"]
[null,"Affiliate name","Jurisdiction","Entity Type","Percent of Participating Interest","Gross Premiums Written","Net Premiums Written","Total Assets ","Net Assets","Regulatory Capital Requirement (ECR Equivalent)",null,"Consumer Staples"]
[1,{"$f":"Import!I10468","v":0},{"$f":"+Import!I10498","v":0},{"$f":"Import!I10528","v":"Select"},{"$f":"Import!I10558","v":0},{"$f":"Import!I10588","v":0},{"$f":"Import!I10619","v":0},{"$f":"Import!I10650","v":0},{"$f":"Import!I10681","v":0},{"$f":"Import!I10712","v":0},null,"Healthcare"]
[2,{"$f":"Import!I10469","v":0},{"$f":"+Import!I10499","v":0},{"$f":"Import!I10529","v":"Select"},{"$f":"Import!I10559","v":0},{"$f":"Import!I10589","v":0},{"$f":"Import!I10620","v":0},{"$f":"Import!I10651","v":0},{"$f":"Import!I10682","v":0},{"$f":"Import!I10713","v":0},null,"Financial"]
[3,{"$f":"Import!I10470","v":0},{"$f":"+Import!I10500","v":0},{"$f":"Import!I10530","v":"Select"},{"$f":"Import!I10560","v":0},{"$f":"Import!I10590","v":0},{"$f":"Import!I10621","v":0},{"$f":"Import!I10652","v":0},{"$f":"Import!I10683","v":0},{"$f":"Import!I10714","v":0}]
[4,{"$f":"Import!I10471","v":0},{"$f":"+Import!I10501","v":0},{"$f":"Import!I10531","v":"Select"},{"$f":"Import!I10561","v":0},{"$f":"Import!I10591","v":0},{"$f":"Import!I10622","v":0},{"$f":"Import!I10653","v":0},{"$f":"Import!I10684","v":0},{"$f":"Import!I10715","v":0}]
[5,{"$f":"Import!I10472","v":0},{"$f":"+Import!I10502","v":0},{"$f":"Import!I10532","v":"Select"},{"$f":"Import!I10562","v":0},{"$f":"Import!I10592","v":0},{"$f":"Import!I10623","v":0},{"$f":"Import!I10654","v":0},{"$f":"Import!I10685","v":0},{"$f":"Import!I10716","v":0}]
[6,{"$f":"Import!I10473","v":0},{"$f":"+Import!I10503","v":0},{"$f":"Import!I10533","v":"Select"},{"$f":"Import!I10563","v":0},{"$f":"Import!I10593","v":0},{"$f":"Import!I10624","v":0},{"$f":"Import!I10655","v":0},{"$f":"Import!I10686","v":0},{"$f":"Import!I10717","v":0}]
[7,{"$f":"Import!I10474","v":0},{"$f":"+Import!I10504","v":0},{"$f":"Import!I10534","v":"Select"},{"$f":"Import!I10564","v":0},{"$f":"Import!I10594","v":0},{"$f":"Import!I10625","v":0},{"$f":"Import!I10656","v":0},{"$f":"Import!I10687","v":0},{"$f":"Import!I10718","v":0}]
[8,{"$f":"Import!I10475","v":0},{"$f":"+Import!I10505","v":0},{"$f":"Import!I10535","v":"Select"},{"$f":"Import!I10565","v":0},{"$f":"Import!I10595","v":0},{"$f":"Import!I10626","v":0},{"$f":"Import!I10657","v":0},{"$f":"Import!I10688","v":0},{"$f":"Import!I10719","v":0}]
[9,{"$f":"Import!I10476","v":0},{"$f":"+Import!I10506","v":0},{"$f":"Import!I10536","v":"Select"},{"$f":"Import!I10566","v":0},{"$f":"Import!I10596","v":0},{"$f":"Import!I10627","v":0},{"$f":"Import!I10658","v":0},{"$f":"Import!I10689","v":0},{"$f":"Import!I10720","v":0}]
[10,{"$f":"Import!I10477","v":0},{"$f":"+Import!I10507","v":0},{"$f":"Import!I10537","v":"Select"},{"$f":"Import!I10567","v":0},{"$f":"Import!I10597","v":0},{"$f":"Import!I10628","v":0},{"$f":"Import!I10659","v":0},{"$f":"Import!I10690","v":0},{"$f":"Import!I10721","v":0}]
[11,{"$f":"Import!I10478","v":0},{"$f":"+Import!I10508","v":0},{"$f":"Import!I10538","v":"Select"},{"$f":"Import!I10568","v":0},{"$f":"Import!I10598","v":0},{"$f":"Import!I10629","v":0},{"$f":"Import!I10660","v":0},{"$f":"Import!I10691","v":0},{"$f":"Import!I10722","v":0}]
[12,{"$f":"Import!I10479","v":0},{"$f":"+Import!I10509","v":0},{"$f":"Import!I10539","v":"Select"},{"$f":"Import!I10569","v":0},{"$f":"Import!I10599","v":0},{"$f":"Import!I10630","v":0},{"$f":"Import!I10661","v":0},{"$f":"Import!I10692","v":0},{"$f":"Import!I10723","v":0}]
[13,{"$f":"Import!I10480","v":0},{"$f":"+Import!I10510","v":0},{"$f":"Import!I10540","v":"Select"},{"$f":"Import!I10570","v":0},{"$f":"Import!I10600","v":0},{"$f":"Import!I10631","v":0},{"$f":"Import!I10662","v":0},{"$f":"Import!I10693","v":0},{"$f":"Import!I10724","v":0}]
[14,{"$f":"Import!I10481","v":0},{"$f":"+Import!I10511","v":0},{"$f":"Import!I10541","v":"Select"},{"$f":"Import!I10571","v":0},{"$f":"Import!I10601","v":0},{"$f":"Import!I10632","v":0},{"$f":"Import!I10663","v":0},{"$f":"Import!I10694","v":0},{"$f":"Import!I10725","v":0}]
[15,{"$f":"Import!I10482","v":0},{"$f":"+Import!I10512","v":0},{"$f":"Import!I10542","v":"Select"},{"$f":"Import!I10572","v":0},{"$f":"Import!I10602","v":0},{"$f":"Import!I10633","v":0},{"$f":"Import!I10664","v":0},{"$f":"Import!I10695","v":0},{"$f":"Import!I10726","v":0}]
[16,{"$f":"Import!I10483","v":0},{"$f":"+Import!I10513","v":0},{"$f":"Import!I10543","v":"Select"},{"$f":"Import!I10573","v":0},{"$f":"Import!I10603","v":0},{"$f":"Import!I10634","v":0},{"$f":"Import!I10665","v":0},{"$f":"Import!I10696","v":0},{"$f":"Import!I10727","v":0}]
[17,{"$f":"Import!I10484","v":0},{"$f":"+Import!I10514","v":0},{"$f":"Import!I10544","v":"Select"},{"$f":"Import!I10574","v":0},{"$f":"Import!I10604","v":0},{"$f":"Import!I10635","v":0},{"$f":"Import!I10666","v":0},{"$f":"Import!I10697","v":0},{"$f":"Import!I10728","v":0}]
[18,{"$f":"Import!I10485","v":0},{"$f":"+Import!I10515","v":0},{"$f":"Import!I10545","v":"Select"},{"$f":"Import!I10575","v":0},{"$f":"Import!I10605","v":0},{"$f":"Import!I10636","v":0},{"$f":"Import!I10667","v":0},{"$f":"Import!I10698","v":0},{"$f":"Import!I10729","v":0}]
[19,{"$f":"Import!I10486","v":0},{"$f":"+Import!I10516","v":0},{"$f":"Import!I10546","v":"Select"},{"$f":"Import!I10576","v":0},{"$f":"Import!I10606","v":0},{"$f":"Import!I10637","v":0},{"$f":"Import!I10668","v":0},{"$f":"Import!I10699","v":0},{"$f":"Import!I10730","v":0}]
[20,{"$f":"Import!I10487","v":0},{"$f":"+Import!I10517","v":0},{"$f":"Import!I10547","v":"Select"},{"$f":"Import!I10577","v":0},{"$f":"Import!I10607","v":0},{"$f":"Import!I10638","v":0},{"$f":"Import!I10669","v":0},{"$f":"Import!I10700","v":0},{"$f":"Import!I10731","v":0}]
[21,{"$f":"Import!I10488","v":0},{"$f":"+Import!I10518","v":0},{"$f":"Import!I10548","v":"Select"},{"$f":"Import!I10578","v":0},{"$f":"Import!I10608","v":0},{"$f":"Import!I10639","v":0},{"$f":"Import!I10670","v":0},{"$f":"Import!I10701","v":0},{"$f":"Import!I10732","v":0}]
[22,{"$f":"Import!I10489","v":0},{"$f":"+Import!I10519","v":0},{"$f":"Import!I10549","v":"Select"},{"$f":"Import!I10579","v":0},{"$f":"Import!I10609","v":0},{"$f":"Import!I10640","v":0},{"$f":"Import!I10671","v":0},{"$f":"Import!I10702","v":0},{"$f":"Import!I10733","v":0}]
[23,{"$f":"Import!I10490","v":0},{"$f":"+Import!I10520","v":0},{"$f":"Import!I10550","v":"Select"},{"$f":"Import!I10580","v":0},{"$f":"Import!I10610","v":0},{"$f":"Import!I10641","v":0},{"$f":"Import!I10672","v":0},{"$f":"Import!I10703","v":0},{"$f":"Import!I10734","v":0}]
[24,{"$f":"Import!I10491","v":0},{"$f":"+Import!I10521","v":0},{"$f":"Import!I10551","v":"Select"},{"$f":"Import!I10581","v":0},{"$f":"Import!I10611","v":0},{"$f":"Import!I10642","v":0},{"$f":"Import!I10673","v":0},{"$f":"Import!I10704","v":0},{"$f":"Import!I10735","v":0}]
[25,{"$f":"Import!I10492","v":0},{"$f":"+Import!I10522","v":0},{"$f":"Import!I10552","v":"Select"},{"$f":"Import!I10582","v":0},{"$f":"Import!I10612","v":0},{"$f":"Import!I10643","v":0},{"$f":"Import!I10674","v":0},{"$f":"Import!I10705","v":0},{"$f":"Import!I10736","v":0}]
[26,{"$f":"Import!I10493","v":0},{"$f":"+Import!I10523","v":0},{"$f":"Import!I10553","v":"Select"},{"$f":"Import!I10583","v":0},{"$f":"Import!I10613","v":0},{"$f":"Import!I10644","v":0},{"$f":"Import!I10675","v":0},{"$f":"Import!I10706","v":0},{"$f":"Import!I10737","v":0}]
[27,{"$f":"Import!I10494","v":0},{"$f":"+Import!I10524","v":0},{"$f":"Import!I10554","v":"Select"},{"$f":"Import!I10584","v":0},{"$f":"Import!I10614","v":0},{"$f":"Import!I10645","v":0},{"$f":"Import!I10676","v":0},{"$f":"Import!I10707","v":0},{"$f":"Import!I10738","v":0}]
[28,{"$f":"Import!I10495","v":0},{"$f":"+Import!I10525","v":0},{"$f":"Import!I10555","v":"Select"},{"$f":"Import!I10585","v":0},{"$f":"Import!I10615","v":0},{"$f":"Import!I10646","v":0},{"$f":"Import!I10677","v":0},{"$f":"Import!I10708","v":0},{"$f":"Import!I10739","v":0}]
[29,{"$f":"Import!I10496","v":0},{"$f":"+Import!I10526","v":0},{"$f":"Import!I10556","v":"Select"},{"$f":"Import!I10586","v":0},{"$f":"Import!I10616","v":0},{"$f":"Import!I10647","v":0},{"$f":"Import!I10678","v":0},{"$f":"Import!I10709","v":0},{"$f":"Import!I10740","v":0}]
[30,{"$f":"Import!I10497","v":0},{"$f":"+Import!I10527","v":0},{"$f":"Import!I10557","v":"Select"},{"$f":"Import!I10587","v":0},{"$f":"Import!I10617","v":0},{"$f":"Import!I10648","v":0},{"$f":"Import!I10679","v":0},{"$f":"Import!I10710","v":0},{"$f":"Import!I10741","v":0}]
[31]
[32]
[33]
[34]
[35]
[36]
[37]
[38]
[39]
[40]
[41]
[42]
[43]
[44]
[45]
[46]
[47]
[48]
[49]
[50]
[51]
[52]
[53]
[54]
[55]
[56]
[57]
[58]
[59]
[60]
[61]
[62]
[63]
[64]
[65]
[66]
[67]
[68]
[69]
[70]
[71]
[72]
[73]
[74]
[75]
[76]
[77]
[78]
[79]
[80]
[81]
[82]
[83]
[84]
[85]
[86]
[87]
[88]
[89]
[90]
[91]
[92]
[93]
[94]
[95]
[96]
[97]
[98]
[99]
[100]
[101]
[102]
[103]
[104]
[105]
[106]
[107]
[108]
[109]
[110]
[111]
[112]
[113]
[114]
[115]
[116]
[117]
[118]
[119]
[120]
[121]
[122]
[123]
[124]
[125]
[126]
[127]
[128]
[129]
[130]
[131]
[132]
[133]
[134]
[135]
[136]
[137]
[138]
[139]
[140]
[141]
[142]
[143]
[144]
[145]
[146]
[147]
[148]
[149]
[150]
[151]
[152]
[153]
[154]
[155]
[156]
[157]
[158]
[159]
[160]
[161]
[162]
[163]
[164]
[165]
[166]
[167]
[168]
[169]
[170]
[171]
[172]
[173]
[174]
[175]
[176]
[177]
[178]
[179]
[180]
[181]
[182]
[183]
[184]
[185]
[186]
[187]
[188]
[189]
[190]
[191]
[192]
[193]
[194]
[195]
[196]
[197]
[198]
[199]
[200]
[null,null,null,null,null,{"$f":"SUM(F11:F210)","v":0},{"$f":"SUM(G11:G210)","v":0},{"$f":"SUM(H11:H210)","v":0},{"$f":"SUM(I11:I210)","v":0},{"$f":"SUM(J11:J210)","v":0}]
[]
[]
[]
[null,null,null,"Select"]
[null,null,null,"Holding Entity"]
[null,null,null,"Operating Entity"]
[null,null,null,"Branch"]
[null,null,null,"Other"]

{"sheet":"Schedule XVIII","index":85,"n_rows":104,"n_cols":25,"rows_kept":104,"cut":false,"hidden":false,"merged":[[22,2,22,3],[0,2,0,10],[8,2,8,14],[13,2,13,3],[14,2,14,3],[15,2,15,3],[16,2,16,3],[17,2,17,3],[18,2,18,3],[19,2,19,3],[20,2,20,3],[21,2,21,3],[34,2,34,3],[23,2,23,3],[24,2,24,3],[25,2,25,3],[26,2,26,3],[27,2,27,3],[28,2,28,3],[29,2,29,3],[30,2,30,3],[31,2,31,3],[32,2,32,3],[33,2,33,3],[46,2,46,3],[35,2,35,3],[36,2,36,3],[37,2,37,3],[38,2,38,3],[39,2,39,3],[40,2,40,3],[41,2,41,3],[42,2,42,3],[43,2,43,3],[44,2,44,3],[45,2,45,3],[60,3,60,4],[47,2,47,3],[48,2,48,3],[49,2,49,3],[50,2,50,3],[51,2,51,3],[52,2,52,3],[53,2,53,3],[56,3,56,4],[57,3,57,4],[58,3,58,4],[59,3,59,4],[90,3,90,4],[61,3,61,4],[62,3,62,4],[63,3,63,4],[64,3,64,4],[65,3,65,4],[70,3,71,4],[83,3,84,14],[86,3,86,4],[87,3,87,4],[88,3,88,4],[89,3,89,4],[91,3,91,4],[92,3,92,4],[93,3,93,4],[94,3,94,4],[98,3,99,14]]}
[null,null,"SCHEDULE OF PARTICULARS OF CEDED REINSURANCE",null,null,null,null,null,null,null,null,null,null,null,{"$f":"HYPERLINK(\"#'Index'!A1\",\"Return to Index\")","v":"Return to Index"}]
[]
[null,null,{"$f":"+'Company Information'!C7","v":"Enter Company Name"},null,null,null,null,null,null,null,null,null,null,null,null,null,null,{"$f":"IF(C4=\"\",\"\",TEXT(DATE(YEAR(C4+1)-1,MONTH(C4+1),DAY(C4+1)),\"mm/dd/yyyy\"))","v":"01/01/2019"}]
[null,null,{"$f":"+'Company Information'!C3","v":"2019-12-31"},null,null,null,null,null,null,null,null,null,null,null,null,null,null,{"$f":"IF(C4=\"\",\"\",TEXT(C4,\"mm/dd/yyyy\"))","v":"12/31/2019"}]
[null,null,{"$f":"+'Form 1EBS'!B4","v":"expressed in ['000s]"},null,null,null,null,null,null,null,null,null,null,null,"SCHEDULE XVIII"]
[]
[null,null,"Particulars of reinsurance balances "]
[]
[null,null,"Enter at Least the 10 Largest Reinsurance Exposures with the Remaining Reinsurance Exposures Grouped According to BSCR Ratings and/or a Single Consolidated Reinsurance Exposure"]
[]
[null,null,"Enter Number of Entities",null,{"$f":"Import!E10744","v":0}]
[null,null,null,null,null,null,null,null,null,null,null,null,null,null,null,null,null,"brrt_ExposureByReinsurer"]
[null,null,"Exposure by Reinsurer",null,null,null,"(A)",null,"(B)",null,"(C)",null,"(D)",null,"(E)",null,null,"brrt_ParticularsOfCededReinsuranceNameOfReinsurer","brrt_ParticularsOfCededReinsuranceBSCRRating","brrt_ParticularsOfCededReinsuranceReinsuranceRecoverable","brrt_ParticularsOfCededReinsuranceReinsurancePayable","brrt_ParticularsOfCededReinsuranceCollateral","brrt_ParticularsOfCededReinsuranceQualifyingCollateral","brrt_ParticularsOfCededReinsuranceNetQualifyingExposure"]
[null,null,"Name of Reinsurer",null,"BSCR Rating",null,"Reinsurance Assets\nForm 1SFS Lines 11(e), 12(c) and 17(c) \n(Include Form 1A, Line 12(c) Only to the Extent That They Are Not Already Included Under Schedule IIA)",null,"Reinsurance Payable\nForm 1SFS Lines 28, 29, 33 and 34(c) ",null,"Collateral\nNotes to Form 1SFS Line 11(e) and Line 17(c) ",null,"Qualifying Collateral\nMax(0,Min(C,(A-B)/.98))",null,"Net Qualifying Exposure\nMax (0, (A - B - D x 98%))"]
[null,1,{"$f":"Import!E10745","v":0},null,{"$f":"Import!E10775","v":"Select"},null,{"$f":"Import!E10805","v":0},null,{"$f":"Import!E10836","v":0},null,{"$f":"Import!E10867","v":0},null,{"$f":"IF(K15=0,0,MAX(0,MIN(K15,(G15-I15)/0.98)))","v":0},null,{"$f":"MAX(0,(G15-I15-M15*98%))","v":0},null,null,null,null,null,null,null,null,null,{"$f":"IF(OR(C15<>\"\",E15<>\"\",G15<>\"\",I15<>\"\",K15<>\"\"),XBRLMapTuple($R$12,R$3,R$4,\"BMA\",CONFIGURATION!$B$1,\"bscr\",\"\",CONFIGURATION!$B$12,$R$13,C15,$S$13,E15,$T$13,G15,$U$13,I15,$V$13,K15,$W$13,M15,$X$13,O15),\"emptyTuple\")","v":"Mapped"}]
[null,2,{"$f":"Import!E10746","v":0},null,{"$f":"Import!E10776","v":"Select"},null,{"$f":"Import!E10806","v":0},null,{"$f":"Import!E10837","v":0},null,{"$f":"Import!E10868","v":0},null,{"$f":"IF(K16=0,0,MAX(0,MIN(K16,(G16-I16)/0.98)))","v":0},null,{"$f":"MAX(0,(G16-I16-M16*98%))","v":0},null,null,null,null,null,null,null,null,null,{"$f":"IF(OR(C16<>\"\",E16<>\"\",G16<>\"\",I16<>\"\",K16<>\"\"),XBRLMapTuple($R$12,R$3,R$4,\"BMA\",CONFIGURATION!$B$1,\"bscr\",\"\",CONFIGURATION!$B$12,$R$13,C16,$S$13,E16,$T$13,G16,$U$13,I16,$V$13,K16,$W$13,M16,$X$13,O16),\"emptyTuple\")","v":"Mapped"}]
[null,3,{"$f":"Import!E10747","v":0},null,{"$f":"Import!E10777","v":"Select"},null,{"$f":"Import!E10807","v":0},null,{"$f":"Import!E10838","v":0},null,{"$f":"Import!E10869","v":0},null,0,null,{"$f":"MAX(0,(G17-I17-M17*98%))","v":0},null,null,null,null,null,null,null,null,null,{"$f":"IF(OR(C17<>\"\",E17<>\"\",G17<>\"\",I17<>\"\",K17<>\"\"),XBRLMapTuple($R$12,R$3,R$4,\"BMA\",CONFIGURATION!$B$1,\"bscr\",\"\",CONFIGURATION!$B$12,$R$13,C17,$S$13,E17,$T$13,G17,$U$13,I17,$V$13,K17,$W$13,M17,$X$13,O17),\"emptyTuple\")","v":"Mapped"}]
[null,4,{"$f":"Import!E10748","v":0},null,{"$f":"Import!E10778","v":"Select"},null,{"$f":"Import!E10808","v":0},null,{"$f":"Import!E10839","v":0},null,{"$f":"Import!E10870","v":0},null,0,null,0,null,null,null,null,null,null,null,null,null,{"$f":"IF(OR(C18<>\"\",E18<>\"\",G18<>\"\",I18<>\"\",K18<>\"\"),XBRLMapTuple($R$12,R$3,R$4,\"BMA\",CONFIGURATION!$B$1,\"bscr\",\"\",CONFIGURATION!$B$12,$R$13,C18,$S$13,E18,$T$13,G18,$U$13,I18,$V$13,K18,$W$13,M18,$X$13,O18),\"emptyTuple\")","v":"Mapped"}]
[null,5,{"$f":"Import!E10749","v":0},null,{"$f":"Import!E10779","v":"Select"},null,{"$f":"Import!E10809","v":0},null,{"$f":"Import!E10840","v":0},null,{"$f":"Import!E10871","v":0},null,0,null,0,null,null,null,null,null,null,null,null,null,{"$f":"IF(OR(C19<>\"\",E19<>\"\",G19<>\"\",I19<>\"\",K19<>\"\"),XBRLMapTuple($R$12,R$3,R$4,\"BMA\",CONFIGURATION!$B$1,\"bscr\",\"\",CONFIGURATION!$B$12,$R$13,C19,$S$13,E19,$T$13,G19,$U$13,I19,$V$13,K19,$W$13,M19,$X$13,O19),\"emptyTuple\")","v":"Mapped"}]
[null,6,{"$f":"Import!E10750","v":0},null,{"$f":"Import!E10780","v":"Select"},null,{"$f":"Import!E10810","v":0},null,{"$f":"Import!E10841","v":0},null,{"$f":"Import!E10872","v":0},null,0,null,0,null,null,null,null,null,null,null,null,null,{"$f":"IF(OR(C20<>\"\",E20<>\"\",G20<>\"\",I20<>\"\",K20<>\"\"),XBRLMapTuple($R$12,R$3,R$4,\"BMA\",CONFIGURATION!$B$1,\"bscr\",\"\",CONFIGURATION!$B$12,$R$13,C20,$S$13,E20,$T$13,G20,$U$13,I20,$V$13,K20,$W$13,M20,$X$13,O20),\"emptyTuple\")","v":"Mapped"}]
[null,7,{"$f":"Import!E10751","v":0},null,{"$f":"Import!E10781","v":"Select"},null,{"$f":"Import!E10811","v":0},null,{"$f":"Import!E10842","v":0},null,{"$f":"Import!E10873","v":0},null,0,null,0,null,null,null,null,null,null,null,null,null,{"$f":"IF(OR(C21<>\"\",E21<>\"\",G21<>\"\",I21<>\"\",K21<>\"\"),XBRLMapTuple($R$12,R$3,R$4,\"BMA\",CONFIGURATION!$B$1,\"bscr\",\"\",CONFIGURATION!$B$12,$R$13,C21,$S$13,E21,$T$13,G21,$U$13,I21,$V$13,K21,$W$13,M21,$X$13,O21),\"emptyTuple\")","v":"Mapped"}]
[null,8,{"$f":"Import!E10752","v":0},null,{"$f":"Import!E10782","v":"Select"},null,{"$f":"Import!E10812","v":0},null,{"$f":"Import!E10843","v":0},null,{"$f":"Import!E10874","v":0},null,0,null,0,null,null,null,null,null,null,null,null,null,{"$f":"IF(OR(C22<>\"\",E22<>\"\",G22<>\"\",I22<>\"\",K22<>\"\"),XBRLMapTuple($R$12,R$3,R$4,\"BMA\",CONFIGURATION!$B$1,\"bscr\",\"\",CONFIGURATION!$B$12,$R$13,C22,$S$13,E22,$T$13,G22,$U$13,I22,$V$13,K22,$W$13,M22,$X$13,O22),\"emptyTuple\")","v":"Mapped"}]
[null,9,{"$f":"Import!E10753","v":0},null,{"$f":"Import!E10783","v":"Select"},null,{"$f":"Import!E10813","v":0},null,{"$f":"Import!E10844","v":0},null,{"$f":"Import!E10875","v":0},null,0,null,0,null,null,null,null,null,null,null,null,null,{"$f":"IF(OR(C23<>\"\",E23<>\"\",G23<>\"\",I23<>\"\",K23<>\"\"),XBRLMapTuple($R$12,R$3,R$4,\"BMA\",CONFIGURATION!$B$1,\"bscr\",\"\",CONFIGURATION!$B$12,$R$13,C23,$S$13,E23,$T$13,G23,$U$13,I23,$V$13,K23,$W$13,M23,$X$13,O23),\"emptyTuple\")","v":"Mapped"}]
[null,10,{"$f":"Import!E10754","v":0},null,{"$f":"Import!E10784","v":"Select"},null,{"$f":"Import!E10814","v":0},null,{"$f":"Import!E10845","v":0},null,{"$f":"Import!E10876","v":0},null,0,null,0,null,null,null,null,null,null,null,null,null,{"$f":"IF(OR(C24<>\"\",E24<>\"\",G24<>\"\",I24<>\"\",K24<>\"\"),XBRLMapTuple($R$12,R$3,R$4,\"BMA\",CONFIGURATION!$B$1,\"bscr\",\"\",CONFIGURATION!$B$12,$R$13,C24,$S$13,E24,$T$13,G24,$U$13,I24,$V$13,K24,$W$13,M24,$X$13,O24),\"emptyTuple\")","v":"Mapped"}]
[null,11,{"$f":"Import!E10755","v":0},null,{"$f":"Import!E10785","v":"Select"},null,{"$f":"Import!E10815","v":0},null,{"$f":"Import!E10846","v":0},null,{"$f":"Import!E10877","v":0},null,0,null,0,null,null,null,null,null,null,null,null,null,{"$f":"IF(OR(C25<>\"\",E25<>\"\",G25<>\"\",I25<>\"\",K25<>\"\"),XBRLMapTuple($R$12,R$3,R$4,\"BMA\",CONFIGURATION!$B$1,\"bscr\",\"\",CONFIGURATION!$B$12,$R$13,C25,$S$13,E25,$T$13,G25,$U$13,I25,$V$13,K25,$W$13,M25,$X$13,O25),\"emptyTuple\")","v":"Mapped"}]
[null,12,{"$f":"Import!E10756","v":0},null,{"$f":"Import!E10786","v":"Select"},null,{"$f":"Import!E10816","v":0},null,{"$f":"Import!E10847","v":0},null,{"$f":"Import!E10878","v":0},null,0,null,0,null,null,null,null,null,null,null,null,null,{"$f":"IF(OR(C26<>\"\",E26<>\"\",G26<>\"\",I26<>\"\",K26<>\"\"),XBRLMapTuple($R$12,R$3,R$4,\"BMA\",CONFIGURATION!$B$1,\"bscr\",\"\",CONFIGURATION!$B$12,$R$13,C26,$S$13,E26,$T$13,G26,$U$13,I26,$V$13,K26,$W$13,M26,$X$13,O26),\"emptyTuple\")","v":"Mapped"}]
[null,13,{"$f":"Import!E10757","v":0},null,{"$f":"Import!E10787","v":"Select"},null,{"$f":"Import!E10817","v":0},null,{"$f":"Import!E10848","v":0},null,{"$f":"Import!E10879","v":0},null,0,null,0,null,null,null,null,null,null,null,null,null,{"$f":"IF(OR(C27<>\"\",E27<>\"\",G27<>\"\",I27<>\"\",K27<>\"\"),XBRLMapTuple($R$12,R$3,R$4,\"BMA\",CONFIGURATION!$B$1,\"bscr\",\"\",CONFIGURATION!$B$12,$R$13,C27,$S$13,E27,$T$13,G27,$U$13,I27,$V$13,K27,$W$13,M27,$X$13,O27),\"emptyTuple\")","v":"Mapped"}]
[null,14,{"$f":"Import!E10758","v":0},null,{"$f":"Import!E10788","v":"Select"},null,{"$f":"Import!E10818","v":0},null,{"$f":"Import!E10849","v":0},null,{"$f":"Import!E10880","v":0},null,0,null,0,null,null,null,null,null,null,null,null,null,{"$f":"IF(OR(C28<>\"\",E28<>\"\",G28<>\"\",I28<>\"\",K28<>\"\"),XBRLMapTuple($R$12,R$3,R$4,\"BMA\",CONFIGURATION!$B$1,\"bscr\",\"\",CONFIGURATION!$B$12,$R$13,C28,$S$13,E28,$T$13,G28,$U$13,I28,$V$13,K28,$W$13,M28,$X$13,O28),\"emptyTuple\")","v":"Mapped"}]
[null,15,{"$f":"Import!E10759","v":0},null,{"$f":"Import!E10789","v":"Select"},null,{"$f":"Import!E10819","v":0},null,{"$f":"Import!E10850","v":0},null,{"$f":"Import!E10881","v":0},null,0,null,0,null,null,null,null,null,null,null,null,null,{"$f":"IF(OR(C29<>\"\",E29<>\"\",G29<>\"\",I29<>\"\",K29<>\"\"),XBRLMapTuple($R$12,R$3,R$4,\"BMA\",CONFIGURATION!$B$1,\"bscr\",\"\",CONFIGURATION!$B$12,$R$13,C29,$S$13,E29,$T$13,G29,$U$13,I29,$V$13,K29,$W$13,M29,$X$13,O29),\"emptyTuple\")","v":"Mapped"}]
[null,16,{"$f":"Import!E10760","v":0},null,{"$f":"Import!E10790","v":"Select"},null,{"$f":"Import!E10820","v":0},null,{"$f":"Import!E10851","v":0},null,{"$f":"Import!E10882","v":0},null,0,null,0,null,null,null,null,null,null,null,null,null,{"$f":"IF(OR(C30<>\"\",E30<>\"\",G30<>\"\",I30<>\"\",K30<>\"\"),XBRLMapTuple($R$12,R$3,R$4,\"BMA\",CONFIGURATION!$B$1,\"bscr\",\"\",CONFIGURATION!$B$12,$R$13,C30,$S$13,E30,$T$13,G30,$U$13,I30,$V$13,K30,$W$13,M30,$X$13,O30),\"emptyTuple\")","v":"Mapped"}]
[null,17,{"$f":"Import!E10761","v":0},null,{"$f":"Import!E10791","v":"Select"},null,{"$f":"Import!E10821","v":0},null,{"$f":"Import!E10852","v":0},null,{"$f":"Import!E10883","v":0},null,0,null,0,null,null,null,null,null,null,null,null,null,{"$f":"IF(OR(C31<>\"\",E31<>\"\",G31<>\"\",I31<>\"\",K31<>\"\"),XBRLMapTuple($R$12,R$3,R$4,\"BMA\",CONFIGURATION!$B$1,\"bscr\",\"\",CONFIGURATION!$B$12,$R$13,C31,$S$13,E31,$T$13,G31,$U$13,I31,$V$13,K31,$W$13,M31,$X$13,O31),\"emptyTuple\")","v":"Mapped"}]
[null,18,{"$f":"Import!E10762","v":0},null,{"$f":"Import!E10792","v":"Select"},null,{"$f":"Import!E10822","v":0},null,{"$f":"Import!E10853","v":0},null,{"$f":"Import!E10884","v":0},null,0,null,0,null,null,null,null,null,null,null,null,null,{"$f":"IF(OR(C32<>\"\",E32<>\"\",G32<>\"\",I32<>\"\",K32<>\"\"),XBRLMapTuple($R$12,R$3,R$4,\"BMA\",CONFIGURATION!$B$1,\"bscr\",\"\",CONFIGURATION!$B$12,$R$13,C32,$S$13,E32,$T$13,G32,$U$13,I32,$V$13,K32,$W$13,M32,$X$13,O32),\"emptyTuple\")","v":"Mapped"}]
[null,19,{"$f":"Import!E10763","v":0},null,{"$f":"Import!E10793","v":"Select"},null,{"$f":"Import!E10823","v":0},null,{"$f":"Import!E10854","v":0},null,{"$f":"Import!E10885","v":0},null,0,null,0,null,null,null,null,null,null,null,null,null,{"$f":"IF(OR(C33<>\"\",E33<>\"\",G33<>\"\",I33<>\"\",K33<>\"\"),XBRLMapTuple($R$12,R$3,R$4,\"BMA\",CONFIGURATION!$B$1,\"bscr\",\"\",CONFIGURATION!$B$12,$R$13,C33,$S$13,E33,$T$13,G33,$U$13,I33,$V$13,K33,$W$13,M33,$X$13,O33),\"emptyTuple\")","v":"Mapped"}]
[null,20,{"$f":"Import!E10764","v":0},null,{"$f":"Import!E10794","v":"Select"},null,{"$f":"Import!E10824","v":0},null,{"$f":"Import!E10855","v":0},null,{"$f":"Import!E10886","v":0},null,0,null,0,null,null,null,null,null,null,null,null,null,{"$f":"IF(OR(C34<>\"\",E34<>\"\",G34<>\"\",I34<>\"\",K34<>\"\"),XBRLMapTuple($R$12,R$3,R$4,\"BMA\",CONFIGURATION!$B$1,\"bscr\",\"\",CONFIGURATION!$B$12,$R$13,C34,$S$13,E34,$T$13,G34,$U$13,I34,$V$13,K34,$W$13,M34,$X$13,O34),\"emptyTuple\")","v":"Mapped"}]
[null,21,{"$f":"Import!E10765","v":0},null,{"$f":"Import!E10795","v":"Select"},null,{"$f":"Import!E10825","v":0},null,{"$f":"Import!E10856","v":0},null,{"$f":"Import!E10887","v":0},null,0,null,0,null,null,null,null,null,null,null,null,null,{"$f":"IF(OR(C35<>\"\",E35<>\"\",G35<>\"\",I35<>\"\",K35<>\"\"),XBRLMapTuple($R$12,R$3,R$4,\"BMA\",CONFIGURATION!$B$1,\"bscr\",\"\",CONFIGURATION!$B$12,$R$13,C35,$S$13,E35,$T$13,G35,$U$13,I35,$V$13,K35,$W$13,M35,$X$13,O35),\"emptyTuple\")","v":"Mapped"}]
[null,22,{"$f":"Import!E10766","v":0},null,{"$f":"Import!E10796","v":"Select"},null,{"$f":"Import!E10826","v":0},null,{"$f":"Import!E10857","v":0},null,{"$f":"Import!E10888","v":0},null,0,null,0,null,null,null,null,null,null,null,null,null,{"$f":"IF(OR(C36<>\"\",E36<>\"\",G36<>\"\",I36<>\"\",K36<>\"\"),XBRLMapTuple($R$12,R$3,R$4,\"BMA\",CONFIGURATION!$B$1,\"bscr\",\"\",CONFIGURATION!$B$12,$R$13,C36,$S$13,E36,$T$13,G36,$U$13,I36,$V$13,K36,$W$13,M36,$X$13,O36),\"emptyTuple\")","v":"Mapped"}]
[null,23,{"$f":"Import!E10767","v":0},null,{"$f":"Import!E10797","v":"Select"},null,{"$f":"Import!E10827","v":0},null,{"$f":"Import!E10858","v":0},null,{"$f":"Import!E10889","v":0},null,0,null,0,null,null,null,null,null,null,null,null,null,{"$f":"IF(OR(C37<>\"\",E37<>\"\",G37<>\"\",I37<>\"\",K37<>\"\"),XBRLMapTuple($R$12,R$3,R$4,\"BMA\",CONFIGURATION!$B$1,\"bscr\",\"\",CONFIGURATION!$B$12,$R$13,C37,$S$13,E37,$T$13,G37,$U$13,I37,$V$13,K37,$W$13,M37,$X$13,O37),\"emptyTuple\")","v":"Mapped"}]
[null,24,{"$f":"Import!E10768","v":0},null,{"$f":"Import!E10798","v":"Select"},null,{"$f":"Import!E10828","v":0},null,{"$f":"Import!E10859","v":0},null,{"$f":"Import!E10890","v":0},null,0,null,0,null,null,null,null,null,null,null,null,null,{"$f":"IF(OR(C38<>\"\",E38<>\"\",G38<>\"\",I38<>\"\",K38<>\"\"),XBRLMapTuple($R$12,R$3,R$4,\"BMA\",CONFIGURATION!$B$1,\"bscr\",\"\",CONFIGURATION!$B$12,$R$13,C38,$S$13,E38,$T$13,G38,$U$13,I38,$V$13,K38,$W$13,M38,$X$13,O38),\"emptyTuple\")","v":"Mapped"}]
[null,25,{"$f":"Import!E10769","v":0},null,{"$f":"Import!E10799","v":"Select"},null,{"$f":"Import!E10829","v":0},null,{"$f":"Import!E10860","v":0},null,{"$f":"Import!E10891","v":0},null,0,null,0,null,null,null,null,null,null,null,null,null,{"$f":"IF(OR(C39<>\"\",E39<>\"\",G39<>\"\",I39<>\"\",K39<>\"\"),XBRLMapTuple($R$12,R$3,R$4,\"BMA\",CONFIGURATION!$B$1,\"bscr\",\"\",CONFIGURATION!$B$12,$R$13,C39,$S$13,E39,$T$13,G39,$U$13,I39,$V$13,K39,$W$13,M39,$X$13,O39),\"emptyTuple\")","v":"Mapped"}]
[null,26,{"$f":"Import!E10770","v":0},null,{"$f":"Import!E10800","v":"Select"},null,{"$f":"Import!E10830","v":0},null,{"$f":"Import!E10861","v":0},null,{"$f":"Import!E10892","v":0},null,0,null,0,null,null,null,null,null,null,null,null,null,{"$f":"IF(OR(C40<>\"\",E40<>\"\",G40<>\"\",I40<>\"\",K40<>\"\"),XBRLMapTuple($R$12,R$3,R$4,\"BMA\",CONFIGURATION!$B$1,\"bscr\",\"\",CONFIGURATION!$B$12,$R$13,C40,$S$13,E40,$T$13,G40,$U$13,I40,$V$13,K40,$W$13,M40,$X$13,O40),\"emptyTuple\")","v":"Mapped"}]
[null,27,{"$f":"Import!E10771","v":0},null,{"$f":"Import!E10801","v":"Select"},null,{"$f":"Import!E10831","v":0},null,{"$f":"Import!E10862","v":0},null,{"$f":"Import!E10893","v":0},null,0,null,0,null,null,null,null,null,null,null,null,null,{"$f":"IF(OR(C41<>\"\",E41<>\"\",G41<>\"\",I41<>\"\",K41<>\"\"),XBRLMapTuple($R$12,R$3,R$4,\"BMA\",CONFIGURATION!$B$1,\"bscr\",\"\",CONFIGURATION!$B$12,$R$13,C41,$S$13,E41,$T$13,G41,$U$13,I41,$V$13,K41,$W$13,M41,$X$13,O41),\"emptyTuple\")","v":"Mapped"}]
[null,28,{"$f":"Import!E10772","v":0},null,{"$f":"Import!E10802","v":"Select"},null,{"$f":"Import!E10832","v":0},null,{"$f":"Import!E10863","v":0},null,{"$f":"Import!E10894","v":0},null,0,null,0,null,null,null,null,null,null,null,null,null,{"$f":"IF(OR(C42<>\"\",E42<>\"\",G42<>\"\",I42<>\"\",K42<>\"\"),XBRLMapTuple($R$12,R$3,R$4,\"BMA\",CONFIGURATION!$B$1,\"bscr\",\"\",CONFIGURATION!$B$12,$R$13,C42,$S$13,E42,$T$13,G42,$U$13,I42,$V$13,K42,$W$13,M42,$X$13,O42),\"emptyTuple\")","v":"Mapped"}]
[null,29,{"$f":"Import!E10773","v":0},null,{"$f":"Import!E10803","v":"Select"},null,{"$f":"Import!E10833","v":0},null,{"$f":"Import!E10864","v":0},null,{"$f":"Import!E10895","v":0},null,0,null,0,null,null,null,null,null,null,null,null,null,{"$f":"IF(OR(C43<>\"\",E43<>\"\",G43<>\"\",I43<>\"\",K43<>\"\"),XBRLMapTuple($R$12,R$3,R$4,\"BMA\",CONFIGURATION!$B$1,\"bscr\",\"\",CONFIGURATION!$B$12,$R$13,C43,$S$13,E43,$T$13,G43,$U$13,I43,$V$13,K43,$W$13,M43,$X$13,O43),\"emptyTuple\")","v":"Mapped"}]
[null,30,{"$f":"Import!E10774","v":0},null,{"$f":"Import!E10804","v":"Select"},null,{"$f":"Import!E10834","v":0},null,{"$f":"Import!E10865","v":0},null,{"$f":"Import!E10896","v":0},null,0,null,0,null,null,null,null,null,null,null,null,null,{"$f":"IF(OR(C44<>\"\",E44<>\"\",G44<>\"\",I44<>\"\",K44<>\"\"),XBRLMapTuple($R$12,R$3,R$4,\"BMA\",CONFIGURATION!$B$1,\"bscr\",\"\",CONFIGURATION!$B$12,$R$13,C44,$S$13,E44,$T$13,G44,$U$13,I44,$V$13,K44,$W$13,M44,$X$13,O44),\"emptyTuple\")","v":"Mapped"}]
[null,31,null,null,null,null,null,null,null,null,null,null,0,null,0,null,null,null,null,null,null,null,null,null,{"$f":"IF(OR(C45<>\"\",E45<>\"\",G45<>\"\",I45<>\"\",K45<>\"\"),XBRLMapTuple($R$12,R$3,R$4,\"BMA\",CONFIGURATION!$B$1,\"bscr\",\"\",CONFIGURATION!$B$12,$R$13,C45,$S$13,E45,$T$13,G45,$U$13,I45,$V$13,K45,$W$13,M45,$X$13,O45),\"emptyTuple\")","v":"emptyTuple"}]
[null,32,null,null,null,null,null,null,null,null,null,null,0,null,0,null,null,null,null,null,null,null,null,null,{"$f":"IF(OR(C46<>\"\",E46<>\"\",G46<>\"\",I46<>\"\",K46<>\"\"),XBRLMapTuple($R$12,R$3,R$4,\"BMA\",CONFIGURATION!$B$1,\"bscr\",\"\",CONFIGURATION!$B$12,$R$13,C46,$S$13,E46,$T$13,G46,$U$13,I46,$V$13,K46,$W$13,M46,$X$13,O46),\"emptyTuple\")","v":"emptyTuple"}]
[null,33,null,null,null,null,null,null,null,null,null,null,0,null,0,null,null,null,null,null,null,null,null,null,{"$f":"IF(OR(C47<>\"\",E47<>\"\",G47<>\"\",I47<>\"\",K47<>\"\"),XBRLMapTuple($R$12,R$3,R$4,\"BMA\",CONFIGURATION!$B$1,\"bscr\",\"\",CONFIGURATION!$B$12,$R$13,C47,$S$13,E47,$T$13,G47,$U$13,I47,$V$13,K47,$W$13,M47,$X$13,O47),\"emptyTuple\")","v":"emptyTuple"}]
[null,34,null,null,null,null,null,null,null,null,null,null,0,null,0,null,null,null,null,null,null,null,null,null,{"$f":"IF(OR(C48<>\"\",E48<>\"\",G48<>\"\",I48<>\"\",K48<>\"\"),XBRLMapTuple($R$12,R$3,R$4,\"BMA\",CONFIGURATION!$B$1,\"bscr\",\"\",CONFIGURATION!$B$12,$R$13,C48,$S$13,E48,$T$13,G48,$U$13,I48,$V$13,K48,$W$13,M48,$X$13,O48),\"emptyTuple\")","v":"emptyTuple"}]
[null,35,null,null,null,null,null,null,null,null,null,null,0,null,0,null,null,null,null,null,null,null,null,null,{"$f":"IF(OR(C49<>\"\",E49<>\"\",G49<>\"\",I49<>\"\",K49<>\"\"),XBRLMapTuple($R$12,R$3,R$4,\"BMA\",CONFIGURATION!$B$1,\"bscr\",\"\",CONFIGURATION!$B$12,$R$13,C49,$S$13,E49,$T$13,G49,$U$13,I49,$V$13,K49,$W$13,M49,$X$13,O49),\"emptyTuple\")","v":"emptyTuple"}]
[null,36,null,null,null,null,null,null,null,null,null,null,0,null,0,null,null,null,null,null,null,null,null,null,{"$f":"IF(OR(C50<>\"\",E50<>\"\",G50<>\"\",I50<>\"\",K50<>\"\"),XBRLMapTuple($R$12,R$3,R$4,\"BMA\",CONFIGURATION!$B$1,\"bscr\",\"\",CONFIGURATION!$B$12,$R$13,C50,$S$13,E50,$T$13,G50,$U$13,I50,$V$13,K50,$W$13,M50,$X$13,O50),\"emptyTuple\")","v":"emptyTuple"}]
[null,37,null,null,null,null,null,null,null,null,null,null,0,null,0,null,null,null,null,null,null,null,null,null,{"$f":"IF(OR(C51<>\"\",E51<>\"\",G51<>\"\",I51<>\"\",K51<>\"\"),XBRLMapTuple($R$12,R$3,R$4,\"BMA\",CONFIGURATION!$B$1,\"bscr\",\"\",CONFIGURATION!$B$12,$R$13,C51,$S$13,E51,$T$13,G51,$U$13,I51,$V$13,K51,$W$13,M51,$X$13,O51),\"emptyTuple\")","v":"emptyTuple"}]
[null,38,null,null,null,null,null,null,null,null,null,null,0,null,0,null,null,null,null,null,null,null,null,null,{"$f":"IF(OR(C52<>\"\",E52<>\"\",G52<>\"\",I52<>\"\",K52<>\"\"),XBRLMapTuple($R$12,R$3,R$4,\"BMA\",CONFIGURATION!$B$1,\"bscr\",\"\",CONFIGURATION!$B$12,$R$13,C52,$S$13,E52,$T$13,G52,$U$13,I52,$V$13,K52,$W$13,M52,$X$13,O52),\"emptyTuple\")","v":"emptyTuple"}]
[null,39,null,null,null,null,null,null,null,null,null,null,0,null,0,null,null,null,null,null,null,null,null,null,{"$f":"IF(OR(C53<>\"\",E53<>\"\",G53<>\"\",I53<>\"\",K53<>\"\"),XBRLMapTuple($R$12,R$3,R$4,\"BMA\",CONFIGURATION!$B$1,\"bscr\",\"\",CONFIGURATION!$B$12,$R$13,C53,$S$13,E53,$T$13,G53,$U$13,I53,$V$13,K53,$W$13,M53,$X$13,O53),\"emptyTuple\")","v":"emptyTuple"}]
[null,40,null,null,null,null,null,null,null,null,null,null,0,null,0,null,null,null,null,null,null,null,null,null,{"$f":"IF(OR(C54<>\"\",E54<>\"\",G54<>\"\",I54<>\"\",K54<>\"\"),XBRLMapTuple($R$12,R$3,R$4,\"BMA\",CONFIGURATION!$B$1,\"bscr\",\"\",CONFIGURATION!$B$12,$R$13,C54,$S$13,E54,$T$13,G54,$U$13,I54,$V$13,K54,$W$13,M54,$X$13,O54),\"emptyTuple\")","v":"emptyTuple"}]
[null,null,"Total Exposure By Reinsurer",null,null,null,{"$f":"SUM(G15:G54)","v":0},null,{"$f":"SUM(I15:I54)","v":0},null,{"$f":"SUM(K15:K54)","v":0},null,{"$f":"SUM(M15:M54)","v":0},null,{"$f":"SUM(O15:O54)","v":0},null,null,null,null,{"$f":"XBRLMap(G55,T13,$R$3,$R$4,CONFIGURATION!$B$10,\"BMA\",CONFIGURATION!$B$1,\"bscr\",CONFIGURATION!$B$12)","v":"Mapped"},{"$f":"XBRLMap(I55,U13,$R$3,$R$4,CONFIGURATION!$B$10,\"BMA\",CONFIGURATION!$B$1,\"bscr\",CONFIGURATION!$B$12)","v":"Mapped"},{"$f":"XBRLMap(K55,V13,$R$3,$R$4,CONFIGURATION!$B$10,\"BMA\",CONFIGURATION!$B$1,\"bscr\",CONFIGURATION!$B$12)","v":"Mapped"},{"$f":"XBRLMap(M55,W13,$R$3,$R$4,CONFIGURATION!$B$10,\"BMA\",CONFIGURATION!$B$1,\"bscr\",CONFIGURATION!$B$12)","v":"Mapped"},{"$f":"XBRLMap(O55,X13,$R$3,$R$4,CONFIGURATION!$B$10,\"BMA\",CONFIGURATION!$B$1,\"bscr\",CONFIGURATION!$B$12)","v":"Mapped"}]
[]
[null,null,null,"Exposure by BSCR Rating"]
[null,null,null,"BSCR Rating 0 (Domestic Affiliates)",null,null,{"$f":"Import!E10898","v":0},null,{"$f":"Import!E10909","v":0},null,{"$f":"Import!E10920","v":0},null,{"$f":"IF(K58=0,0,MAX(0,MIN(K58,(G58-I58)/0.98)))","v":0},null,{"$f":"MAX(0,(G58-I58-M58*98%))","v":0},null,"brrt_RiskGradeAxis_brrt_BSCRRating0Member",null,null,{"$f":"XBRLMap(G58,$T$13&\".\"&Q58,$R$3,$R$4,CONFIGURATION!$B$10,\"BMA\",CONFIGURATION!$B$1,\"bscr\",CONFIGURATION!$B$12)","v":"Mapped"},{"$f":"XBRLMap(I58,$U$13&\".\"&Q58,$R$3,$R$4,CONFIGURATION!$B$10,\"BMA\",CONFIGURATION!$B$1,\"bscr\",CONFIGURATION!$B$12)","v":"Mapped"},{"$f":"XBRLMap(K58,$V$13&\".\"&Q58,$R$3,$R$4,CONFIGURATION!$B$10,\"BMA\",CONFIGURATION!$B$1,\"bscr\",CONFIGURATION!$B$12)","v":"Mapped"},{"$f":"XBRLMap(M58,$W$13&\".\"&Q58,$R$3,$R$4,CONFIGURATION!$B$10,\"BMA\",CONFIGURATION!$B$1,\"bscr\",CONFIGURATION!$B$12)","v":"Mapped"},{"$f":"XBRLMap(O58,$X$13&\".\"&Q58,$R$3,$R$4,CONFIGURATION!$B$10,\"BMA\",CONFIGURATION!$B$1,\"bscr\",CONFIGURATION!$B$12)","v":"Mapped"}]
[null,null,null,"BSCR Rating 1",null,null,{"$f":"Import!E10899","v":0},null,{"$f":"Import!E10910","v":0},null,{"$f":"Import!E10921","v":0},null,0,null,0,null,"brrt_RiskGradeAxis_brrt_BSCRRating1Member",null,null,{"$f":"XBRLMap(G59,$T$13&\".\"&Q59,$R$3,$R$4,CONFIGURATION!$B$10,\"BMA\",CONFIGURATION!$B$1,\"bscr\",CONFIGURATION!$B$12)","v":"Mapped"},{"$f":"XBRLMap(I59,$U$13&\".\"&Q59,$R$3,$R$4,CONFIGURATION!$B$10,\"BMA\",CONFIGURATION!$B$1,\"bscr\",CONFIGURATION!$B$12)","v":"Mapped"},{"$f":"XBRLMap(K59,$V$13&\".\"&Q59,$R$3,$R$4,CONFIGURATION!$B$10,\"BMA\",CONFIGURATION!$B$1,\"bscr\",CONFIGURATION!$B$12)","v":"Mapped"},{"$f":"XBRLMap(M59,$W$13&\".\"&Q59,$R$3,$R$4,CONFIGURATION!$B$10,\"BMA\",CONFIGURATION!$B$1,\"bscr\",CONFIGURATION!$B$12)","v":"Mapped"},{"$f":"XBRLMap(O59,$X$13&\".\"&Q59,$R$3,$R$4,CONFIGURATION!$B$10,\"BMA\",CONFIGURATION!$B$1,\"bscr\",CONFIGURATION!$B$12)","v":"Mapped"}]
[null,null,null,"BSCR Rating 2",null,null,{"$f":"Import!E10900","v":0},null,{"$f":"Import!E10911","v":0},null,{"$f":"Import!E10922","v":0},null,0,null,{"$f":"MAX(0,(G60-I60-M60*98%))","v":0},null,"brrt_RiskGradeAxis_brrt_BSCRRating2Member",null,null,{"$f":"XBRLMap(G60,$T$13&\".\"&Q60,$R$3,$R$4,CONFIGURATION!$B$10,\"BMA\",CONFIGURATION!$B$1,\"bscr\",CONFIGURATION!$B$12)","v":"Mapped"},{"$f":"XBRLMap(I60,$U$13&\".\"&Q60,$R$3,$R$4,CONFIGURATION!$B$10,\"BMA\",CONFIGURATION!$B$1,\"bscr\",CONFIGURATION!$B$12)","v":"Mapped"},{"$f":"XBRLMap(K60,$V$13&\".\"&Q60,$R$3,$R$4,CONFIGURATION!$B$10,\"BMA\",CONFIGURATION!$B$1,\"bscr\",CONFIGURATION!$B$12)","v":"Mapped"},{"$f":"XBRLMap(M60,$W$13&\".\"&Q60,$R$3,$R$4,CONFIGURATION!$B$10,\"BMA\",CONFIGURATION!$B$1,\"bscr\",CONFIGURATION!$B$12)","v":"Mapped"},{"$f":"XBRLMap(O60,$X$13&\".\"&Q60,$R$3,$R$4,CONFIGURATION!$B$10,\"BMA\",CONFIGURATION!$B$1,\"bscr\",CONFIGURATION!$B$12)","v":"Mapped"}]
[null,null,null,"BSCR Rating 3",null,null,{"$f":"Import!E10901","v":0},null,{"$f":"Import!E10912","v":0},null,{"$f":"Import!E10923","v":0},null,0,null,{"$f":"MAX(0,(G61-I61-M61*98%))","v":0},null,"brrt_RiskGradeAxis_brrt_BSCRRating3Member",null,null,{"$f":"XBRLMap(G61,$T$13&\".\"&Q61,$R$3,$R$4,CONFIGURATION!$B$10,\"BMA\",CONFIGURATION!$B$1,\"bscr\",CONFIGURATION!$B$12)","v":"Mapped"},{"$f":"XBRLMap(I61,$U$13&\".\"&Q61,$R$3,$R$4,CONFIGURATION!$B$10,\"BMA\",CONFIGURATION!$B$1,\"bscr\",CONFIGURATION!$B$12)","v":"Mapped"},{"$f":"XBRLMap(K61,$V$13&\".\"&Q61,$R$3,$R$4,CONFIGURATION!$B$10,\"BMA\",CONFIGURATION!$B$1,\"bscr\",CONFIGURATION!$B$12)","v":"Mapped"},{"$f":"XBRLMap(M61,$W$13&\".\"&Q61,$R$3,$R$4,CONFIGURATION!$B$10,\"BMA\",CONFIGURATION!$B$1,\"bscr\",CONFIGURATION!$B$12)","v":"Mapped"},{"$f":"XBRLMap(O61,$X$13&\".\"&Q61,$R$3,$R$4,CONFIGURATION!$B$10,\"BMA\",CONFIGURATION!$B$1,\"bscr\",CONFIGURATION!$B$12)","v":"Mapped"}]
[null,null,null,"BSCR Rating 4",null,null,{"$f":"Import!E10902","v":0},null,{"$f":"Import!E10913","v":0},null,{"$f":"Import!E10924","v":0},null,0,null,0,null,"brrt_RiskGradeAxis_brrt_BSCRRating4Member",null,null,{"$f":"XBRLMap(G62,$T$13&\".\"&Q62,$R$3,$R$4,CONFIGURATION!$B$10,\"BMA\",CONFIGURATION!$B$1,\"bscr\",CONFIGURATION!$B$12)","v":"Mapped"},{"$f":"XBRLMap(I62,$U$13&\".\"&Q62,$R$3,$R$4,CONFIGURATION!$B$10,\"BMA\",CONFIGURATION!$B$1,\"bscr\",CONFIGURATION!$B$12)","v":"Mapped"},{"$f":"XBRLMap(K62,$V$13&\".\"&Q62,$R$3,$R$4,CONFIGURATION!$B$10,\"BMA\",CONFIGURATION!$B$1,\"bscr\",CONFIGURATION!$B$12)","v":"Mapped"},{"$f":"XBRLMap(M62,$W$13&\".\"&Q62,$R$3,$R$4,CONFIGURATION!$B$10,\"BMA\",CONFIGURATION!$B$1,\"bscr\",CONFIGURATION!$B$12)","v":"Mapped"},{"$f":"XBRLMap(O62,$X$13&\".\"&Q62,$R$3,$R$4,CONFIGURATION!$B$10,\"BMA\",CONFIGURATION!$B$1,\"bscr\",CONFIGURATION!$B$12)","v":"Mapped"}]
[null,null,null,"BSCR Rating 5",null,null,{"$f":"Import!E10903","v":0},null,{"$f":"Import!E10914","v":0},null,{"$f":"Import!E10925","v":0},null,0,null,0,null,"brrt_RiskGradeAxis_brrt_BSCRRating5Member",null,null,{"$f":"XBRLMap(G63,$T$13&\".\"&Q63,$R$3,$R$4,CONFIGURATION!$B$10,\"BMA\",CONFIGURATION!$B$1,\"bscr\",CONFIGURATION!$B$12)","v":"Mapped"},{"$f":"XBRLMap(I63,$U$13&\".\"&Q63,$R$3,$R$4,CONFIGURATION!$B$10,\"BMA\",CONFIGURATION!$B$1,\"bscr\",CONFIGURATION!$B$12)","v":"Mapped"},{"$f":"XBRLMap(K63,$V$13&\".\"&Q63,$R$3,$R$4,CONFIGURATION!$B$10,\"BMA\",CONFIGURATION!$B$1,\"bscr\",CONFIGURATION!$B$12)","v":"Mapped"},{"$f":"XBRLMap(M63,$W$13&\".\"&Q63,$R$3,$R$4,CONFIGURATION!$B$10,\"BMA\",CONFIGURATION!$B$1,\"bscr\",CONFIGURATION!$B$12)","v":"Mapped"},{"$f":"XBRLMap(O63,$X$13&\".\"&Q63,$R$3,$R$4,CONFIGURATION!$B$10,\"BMA\",CONFIGURATION!$B$1,\"bscr\",CONFIGURATION!$B$12)","v":"Mapped"}]
[null,null,null,"BSCR Rating 6",null,null,{"$f":"Import!E10904","v":0},null,{"$f":"Import!E10915","v":0},null,{"$f":"Import!E10926","v":0},null,0,null,0,null,"brrt_RiskGradeAxis_brrt_BSCRRating6Member",null,null,{"$f":"XBRLMap(G64,$T$13&\".\"&Q64,$R$3,$R$4,CONFIGURATION!$B$10,\"BMA\",CONFIGURATION!$B$1,\"bscr\",CONFIGURATION!$B$12)","v":"Mapped"},{"$f":"XBRLMap(I64,$U$13&\".\"&Q64,$R$3,$R$4,CONFIGURATION!$B$10,\"BMA\",CONFIGURATION!$B$1,\"bscr\",CONFIGURATION!$B$12)","v":"Mapped"},{"$f":"XBRLMap(K64,$V$13&\".\"&Q64,$R$3,$R$4,CONFIGURATION!$B$10,\"BMA\",CONFIGURATION!$B$1,\"bscr\",CONFIGURATION!$B$12)","v":"Mapped"},{"$f":"XBRLMap(M64,$W$13&\".\"&Q64,$R$3,$R$4,CONFIGURATION!$B$10,\"BMA\",CONFIGURATION!$B$1,\"bscr\",CONFIGURATION!$B$12)","v":"Mapped"},{"$f":"XBRLMap(O64,$X$13&\".\"&Q64,$R$3,$R$4,CONFIGURATION!$B$10,\"BMA\",CONFIGURATION!$B$1,\"bscr\",CONFIGURATION!$B$12)","v":"Mapped"}]
[null,null,null,"BSCR Rating 7",null,null,{"$f":"Import!E10905","v":0},null,{"$f":"Import!E10916","v":0},null,{"$f":"Import!E10927","v":0},null,0,null,0,null,"brrt_RiskGradeAxis_brrt_BSCRRating7Member",null,null,{"$f":"XBRLMap(G65,$T$13&\".\"&Q65,$R$3,$R$4,CONFIGURATION!$B$10,\"BMA\",CONFIGURATION!$B$1,\"bscr\",CONFIGURATION!$B$12)","v":"Mapped"},{"$f":"XBRLMap(I65,$U$13&\".\"&Q65,$R$3,$R$4,CONFIGURATION!$B$10,\"BMA\",CONFIGURATION!$B$1,\"bscr\",CONFIGURATION!$B$12)","v":"Mapped"},{"$f":"XBRLMap(K65,$V$13&\".\"&Q65,$R$3,$R$4,CONFIGURATION!$B$10,\"BMA\",CONFIGURATION!$B$1,\"bscr\",CONFIGURATION!$B$12)","v":"Mapped"},{"$f":"XBRLMap(M65,$W$13&\".\"&Q65,$R$3,$R$4,CONFIGURATION!$B$10,\"BMA\",CONFIGURATION!$B$1,\"bscr\",CONFIGURATION!$B$12)","v":"Mapped"},{"$f":"XBRLMap(O65,$X$13&\".\"&Q65,$R$3,$R$4,CONFIGURATION!$B$10,\"BMA\",CONFIGURATION!$B$1,\"bscr\",CONFIGURATION!$B$12)","v":"Mapped"}]
[null,null,null,"BSCR Rating 8",null,null,{"$f":"Import!E10906","v":0},null,{"$f":"Import!E10917","v":0},null,{"$f":"Import!E10928","v":0},null,0,null,{"$f":"MAX(0,(G66-I66-M66*98%))","v":0},null,"brrt_RiskGradeAxis_brrt_BSCRRating8Member",null,null,{"$f":"XBRLMap(G66,$T$13&\".\"&Q66,$R$3,$R$4,CONFIGURATION!$B$10,\"BMA\",CONFIGURATION!$B$1,\"bscr\",CONFIGURATION!$B$12)","v":"Mapped"},{"$f":"XBRLMap(I66,$U$13&\".\"&Q66,$R$3,$R$4,CONFIGURATION!$B$10,\"BMA\",CONFIGURATION!$B$1,\"bscr\",CONFIGURATION!$B$12)","v":"Mapped"},{"$f":"XBRLMap(K66,$V$13&\".\"&Q66,$R$3,$R$4,CONFIGURATION!$B$10,\"BMA\",CONFIGURATION!$B$1,\"bscr\",CONFIGURATION!$B$12)","v":"Mapped"},{"$f":"XBRLMap(M66,$W$13&\".\"&Q66,$R$3,$R$4,CONFIGURATION!$B$10,\"BMA\",CONFIGURATION!$B$1,\"bscr\",CONFIGURATION!$B$12)","v":"Mapped"},{"$f":"XBRLMap(O66,$X$13&\".\"&Q66,$R$3,$R$4,CONFIGURATION!$B$10,\"BMA\",CONFIGURATION!$B$1,\"bscr\",CONFIGURATION!$B$12)","v":"Mapped"}]
[null,null,null,"Total Exposure By BSCR Rating",null,null,{"$f":"SUM(G58:G66)","v":0},null,{"$f":"SUM(I58:I66)","v":0},null,{"$f":"SUM(K58:K66)","v":0},null,{"$f":"SUM(M58:M66)","v":0},null,{"$f":"SUM(O58:O66)","v":0},null,"brrt_RiskGradeAxis_brrt_TotalMember",null,null,{"$f":"XBRLMap(G67,$T$13&\".\"&Q67,$R$3,$R$4,CONFIGURATION!$B$10,\"BMA\",CONFIGURATION!$B$1,\"bscr\",CONFIGURATION!$B$12)","v":"Mapped"},{"$f":"XBRLMap(I67,$U$13&\".\"&Q67,$R$3,$R$4,CONFIGURATION!$B$10,\"BMA\",CONFIGURATION!$B$1,\"bscr\",CONFIGURATION!$B$12)","v":"Mapped"},{"$f":"XBRLMap(K67,$V$13&\".\"&Q67,$R$3,$R$4,CONFIGURATION!$B$10,\"BMA\",CONFIGURATION!$B$1,\"bscr\",CONFIGURATION!$B$12)","v":"Mapped"},{"$f":"XBRLMap(M67,$W$13&\".\"&Q67,$R$3,$R$4,CONFIGURATION!$B$10,\"BMA\",CONFIGURATION!$B$1,\"bscr\",CONFIGURATION!$B$12)","v":"Mapped"},{"$f":"XBRLMap(O67,$X$13&\".\"&Q67,$R$3,$R$4,CONFIGURATION!$B$10,\"BMA\",CONFIGURATION!$B$1,\"bscr\",CONFIGURATION!$B$12)","v":"Mapped"}]
[null,null,null,null,null,null,null,null,null,null,null,null,null,null,null,null,null,null,null,"brrt_SingleConsolidatedExposureReinsuranceRecoverable","brrt_SingleConsolidatedExposureReinsurancePayable","brrt_SingleConsolidatedExposureReinsuranceCollateral","brrt_SingleConsolidatedExposureReinsuranceQualifyingCollateral","brrt_SingleConsolidatedExposureReinsuranceNetQualifyingExposure"]
[null,null,null,"Single Consolidated Exposure",null,null,{"$f":"'Form 1SFS'!E77+'Form 1SFS'!I77+'Form 1SFS'!E79+'Form 1SFS'!I79+'Form 1SFS'!E123+'Form 1SFS'!I153-'Schedule IIA'!D74-G55-G67","v":0},null,null,null,null,null,{"$f":"IF(K69=0,0,MAX(0,MIN(K69,(G69-I69)/0.98)))","v":0},null,{"$f":"MAX(0,(G69-I69-M69*98%))","v":0},null,null,null,null,{"$f":"XBRLMap(G69,T68,$R$3,$R$4,CONFIGURATION!$B$10,\"BMA\",CONFIGURATION!$B$1,\"bscr\",CONFIGURATION!$B$12)","v":"Mapped"},{"$f":"XBRLMap(I69,U68,$R$3,$R$4,CONFIGURATION!$B$10,\"BMA\",CONFIGURATION!$B$1,\"bscr\",CONFIGURATION!$B$12)","v":"Mapped"},{"$f":"XBRLMap(K69,V68,$R$3,$R$4,CONFIGURATION!$B$10,\"BMA\",CONFIGURATION!$B$1,\"bscr\",CONFIGURATION!$B$12)","v":"Mapped"},{"$f":"XBRLMap(M69,W68,$R$3,$R$4,CONFIGURATION!$B$10,\"BMA\",CONFIGURATION!$B$1,\"bscr\",CONFIGURATION!$B$12)","v":"Mapped"},{"$f":"XBRLMap(O69,X68,$R$3,$R$4,CONFIGURATION!$B$10,\"BMA\",CONFIGURATION!$B$1,\"bscr\",CONFIGURATION!$B$12)","v":"Mapped"}]
[]
[null,null,null,"Total Balance Sheet Adjusted for Schedule IIA, Line 28, Column (1)"]
[null,null,null,null,null,null,{"$f":"'Form 1SFS'!E77+'Form 1SFS'!I77+'Form 1SFS'!E79+'Form 1SFS'!I79+'Form 1SFS'!E123+'Form 1SFS'!I153-'Schedule IIA'!D74","v":0},null,null,null,null,null,null,null,null,null,"brrt_AdjustedBalanceSheetReinsuranceAssets",null,null,{"$f":"XBRLMap(G72,Q72,$R$3,$R$4,CONFIGURATION!$B$10,\"BMA\",CONFIGURATION!$B$1,\"bscr\",CONFIGURATION!$B$12)","v":"Mapped"}]
[]
[null,null,null,"Total Collateral",null,null,null,null,null,null,{"$f":"'Form 1SFS'!M212+'Form 1SFS'!M214","v":0},null,null,null,null,null,"brrt_ExposureCollateral",null,null,{"$f":"XBRLMap(K74,Q74,$R$3,$R$4,CONFIGURATION!$B$10,\"BMA\",CONFIGURATION!$B$1,\"bscr\",CONFIGURATION!$B$12)","v":"Mapped"}]
[]
[null,null,null,null,null,null,{"$f":"IF((G55+G67+G69-G72)=0,\"TRUE\",\"FALSE\")","v":"TRUE"},null,null,null,{"$f":"IF((K55+K67+K69-K74)=0,\"TRUE\",\"FALSE\")","v":"TRUE"}]
[]
[null,null,null,"Difference",null,null,{"$f":"ROUND(G72-G55-G67-G69,0)","v":0},null,null,null,{"$f":"ROUND(K74-K55-K67-K69,0)","v":0}]
[]
[null,null,null,"Total Qualifying Collateral",null,null,null,null,null,null,null,null,{"$f":"IF(K74=0,0,MAX(0,MIN(K74,(G72)/0.98)))","v":0},null,null,null,"brrt_TotalQualifyingCollateral",null,null,{"$f":"XBRLMap(M80,Q80,$R$3,$R$4,CONFIGURATION!$B$10,\"BMA\",CONFIGURATION!$B$1,\"bscr\",CONFIGURATION!$B$12)","v":"Mapped"}]
[]
[null,null,null,"Total Net Qualifying Exposure",null,null,null,null,null,null,null,null,null,null,{"$f":"O55+O67+O69","v":0},null,"brrt_TotalNetQualifyingExposure",null,null,{"$f":"XBRLMap(O82,Q82,$R$3,$R$4,CONFIGURATION!$B$10,\"BMA\",CONFIGURATION!$B$1,\"bscr\",CONFIGURATION!$B$12)","v":"Mapped"}]
[]
[null,null,null,"Particulars of Reinsurance Balances by BSCR Rating"]
[]
[null,null,null,"Select",null,null,"Reinsurance Assets",null,"Reinsurance Payable",null,"Collateral",null,"Qualifying Collateral",null,"Net Qualifying Exposure"]
[null,null,null,"BSCR Rating 0 (Domestic Affiliates)",null,null,{"$f":"SUMPRODUCT(G$15:G$54,($E$15:$E$54=D87)*1)+G58","v":0},null,{"$f":"SUMPRODUCT(I$15:I$54,($E$15:$E$54=D87)*1)+I58","v":0},null,{"$f":"SUMPRODUCT(K$15:K$54,($E$15:$E$54=D87)*1)+K58","v":0},null,{"$f":"SUMPRODUCT(M$15:M$54,($E$15:$E$54=D87)*1)+M58","v":0},null,{"$f":"SUMPRODUCT(O$15:O$54,($E$15:$E$54=D87)*1)+O58","v":0}]
[null,null,null,"BSCR Rating 1",null,null,0,null,0,null,0,null,0,null,0]
[null,null,null,"BSCR Rating 2",null,null,0,null,0,null,0,null,0,null,0]
[null,null,null,"BSCR Rating 3",null,null,0,null,0,null,0,null,0,null,0]
[null,null,null,"BSCR Rating 4",null,null,0,null,0,null,0,null,0,null,0]
[null,null,null,"BSCR Rating 5",null,null,0,null,0,null,0,null,0,null,0]
[null,null,null,"BSCR Rating 6",null,null,0,null,0,null,0,null,0,null,0]
[null,null,null,"BSCR Rating 7",null,null,0,null,0,null,0,null,0,null,0]
[null,null,null,"BSCR Rating 8",null,null,{"$f":"SUMPRODUCT(G$15:G$54,($E$15:$E$54=D95)*1)+G66+G69","v":0},null,{"$f":"SUMPRODUCT(I$15:I$54,($E$15:$E$54=D95)*1)+I66+I69","v":0},null,{"$f":"SUMPRODUCT(K$15:K$54,($E$15:$E$54=D95)*1)+K66+K69","v":0},null,{"$f":"SUMPRODUCT(M$15:M$54,($E$15:$E$54=D95)*1)+M66+M69","v":0},null,{"$f":"SUMPRODUCT(O$15:O$54,($E$15:$E$54=D95)*1)+O66+O69","v":0}]
[null,null,null,"Total",null,null,{"$f":"SUM(G87:G95)","v":0},null,{"$f":"SUM(I87:I95)","v":0},null,{"$f":"SUM(K87:K95)","v":0},null,{"$f":"SUM(M87:M95)","v":0},null,{"$f":"SUM(O87:O95)","v":0}]
[]
[]
[null,null,null,"Diversification Adjustment Calculation On a Net Qualifying Exposure Basis"]
[]
[null,null,null,"Maximum Net Qualifying Exposure Balance On a Single Reinsurer Basis",null,null,null,null,null,null,null,null,null,null,{"$f":"MAX(O15:O54)","v":0}]
[null,null,null,"Total Net Qualifying Exposure",null,null,null,null,null,null,null,null,null,null,{"$f":"O82","v":0}]
[null,null,null,"Percentage",null,null,null,null,null,null,null,null,null,null,{"$f":"IF(O102=0,0,O101/O102)","v":0}]
[null,null,null,"Diversification Adjustment up to 40%",null,null,null,null,null,null,null,null,null,null,{"$f":"IF(O101=0,0,(1-O103)*40%)","v":0}]

{"sheet":"Schedule XVIII (EBS)","index":86,"n_rows":104,"n_cols":25,"rows_kept":104,"cut":false,"hidden":false,"merged":[[91,3,91,4],[92,3,92,4],[93,3,93,4],[94,3,94,4],[98,3,99,14],[58,3,58,4],[59,3,59,4],[60,3,60,4],[90,3,90,4],[61,3,61,4],[62,3,62,4],[63,3,63,4],[64,3,64,4],[65,3,65,4],[70,3,71,4],[83,3,84,14],[86,3,86,4],[87,3,87,4],[88,3,88,4],[89,3,89,4],[51,2,51,3],[52,2,52,3],[53,2,53,3],[56,3,56,4],[57,3,57,4],[46,2,46,3],[47,2,47,3],[48,2,48,3],[49,2,49,3],[50,2,50,3],[41,2,41,3],[42,2,42,3],[43,2,43,3],[44,2,44,3],[45,2,45,3],[36,2,36,3],[37,2,37,3],[38,2,38,3],[39,2,39,3],[40,2,40,3],[31,2,31,3],[32,2,32,3],[33,2,33,3],[34,2,34,3],[35,2,35,3],[26,2,26,3],[27,2,27,3],[28,2,28,3],[29,2,29,3],[30,2,30,3],[21,2,21,3],[22,2,22,3],[23,2,23,3],[24,2,24,3],[25,2,25,3],[16,2,16,3],[17,2,17,3],[18,2,18,3],[19,2,19,3],[20,2,20,3],[0,2,0,10],[8,2,8,14],[13,2,13,3],[14,2,14,3],[15,2,15,3]]}
[null,null,"SCHEDULE OF PARTICULARS OF CEDED REINSURANCE",null,null,null,null,null,null,null,null,null,null,null,{"$f":"HYPERLINK(\"#'Index'!A1\",\"Return to Index\")","v":"Return to Index"}]
[]
[null,null,{"$f":"+'Company Information'!C7","v":"Enter Company Name"},null,null,null,null,null,null,null,null,null,null,null,null,null,null,{"$f":"IF(C4=\"\",\"\",TEXT(DATE(YEAR(C4+1)-1,MONTH(C4+1),DAY(C4+1)),\"mm/dd/yyyy\"))","v":"01/01/2019"}]
[null,null,{"$f":"+'Company Information'!C3","v":"2019-12-31"},null,null,null,null,null,null,null,null,null,null,null,null,null,null,{"$f":"IF(C4=\"\",\"\",TEXT(C4,\"mm/dd/yyyy\"))","v":"12/31/2019"}]
[null,null,{"$f":"+'Form 1EBS'!B4","v":"expressed in ['000s]"},null,null,null,null,null,null,null,null,null,null,null,"SCHEDULE XVIII (EBS)"]
[]
[null,null,"Particulars of reinsurance balances "]
[]
[null,null,"Enter at Least the 10 Largest Reinsurance Exposures with the Remaining Reinsurance Exposures Grouped According to BSCR Ratings and/or a Single Consolidated Reinsurance Exposure"]
[]
[null,null,"Enter Number of Entities",null,{"$f":"Import!M10744","v":0}]
[null,null,null,null,null,null,null,null,null,null,null,null,null,null,null,null,null,"brrt_ExposureByReinsurer"]
[null,null,"Exposure by Reinsurer",null,null,null,"(A)",null,"(B)",null,"(C)",null,"(D)",null,"(E)",null,null,"brrt_ParticularsOfCededReinsuranceNameOfReinsurer","brrt_ParticularsOfCededReinsuranceBSCRRating","brrt_ParticularsOfCededReinsuranceReinsuranceRecoverable","brrt_ParticularsOfCededReinsuranceReinsurancePayable","brrt_ParticularsOfCededReinsuranceCollateral","brrt_ParticularsOfCededReinsuranceQualifyingCollateral","brrt_ParticularsOfCededReinsuranceNetQualifyingExposure"]
[null,null,"Name of Reinsurer",null,"BSCR Rating",null,"Reinsurance Assets\nForm 1EBS Lines 11(e), 12(c) and 17(c) \n(Include Form 1EBS, Line 12(c) Only to the Extent That They Are Not Already Included Under Schedule IIA)",null,"Reinsurance Payable\nForm 1EBS Lines 28, 29, 33 and 34(c) ",null,"Collateral\nNotes to Form 1EBS Line 11(e) and Line 17(c) ",null,"Qualifying Collateral\nMax(0,Min(C,(A-B)/.98))",null,"Net Qualifying Exposure\nMax (0, (A - B - D x 98%))"]
[null,1,{"$f":"Import!M10745","v":0},null,{"$f":"Import!M10775","v":"Select"},null,{"$f":"Import!M10805","v":0},null,{"$f":"Import!M10836","v":0},null,{"$f":"Import!M10867","v":0},null,{"$f":"IF(K15=0,0,MAX(0,MIN(K15,(G15-I15)/0.98)))","v":0},null,{"$f":"MAX(0,(G15-I15-M15*98%))","v":0},null,null,null,null,null,null,null,null,null,{"$f":"IF(OR(C15<>\"\",E15<>\"\",G15<>\"\",I15<>\"\",K15<>\"\"),XBRLMapTuple($R$12,R$3,R$4,\"BMA\",CONFIGURATION!$B$1,\"bscr\",\"\",CONFIGURATION!$B$12,$R$13,C15,$S$13,E15,$T$13,G15,$U$13,I15,$V$13,K15,$W$13,M15,$X$13,O15),\"emptyTuple\")","v":"Mapped"}]
[null,2,{"$f":"Import!M10746","v":0},null,{"$f":"Import!M10776","v":"Select"},null,{"$f":"Import!M10806","v":0},null,{"$f":"Import!M10837","v":0},null,{"$f":"Import!M10868","v":0},null,{"$f":"IF(K16=0,0,MAX(0,MIN(K16,(G16-I16)/0.98)))","v":0},null,{"$f":"MAX(0,(G16-I16-M16*98%))","v":0},null,null,null,null,null,null,null,null,null,{"$f":"IF(OR(C16<>\"\",E16<>\"\",G16<>\"\",I16<>\"\",K16<>\"\"),XBRLMapTuple($R$12,R$3,R$4,\"BMA\",CONFIGURATION!$B$1,\"bscr\",\"\",CONFIGURATION!$B$12,$R$13,C16,$S$13,E16,$T$13,G16,$U$13,I16,$V$13,K16,$W$13,M16,$X$13,O16),\"emptyTuple\")","v":"Mapped"}]
[null,3,{"$f":"Import!M10747","v":0},null,{"$f":"Import!M10777","v":"Select"},null,{"$f":"Import!M10807","v":0},null,{"$f":"Import!M10838","v":0},null,{"$f":"Import!M10869","v":0},null,0,null,{"$f":"MAX(0,(G17-I17-M17*98%))","v":0},null,null,null,null,null,null,null,null,null,{"$f":"IF(OR(C17<>\"\",E17<>\"\",G17<>\"\",I17<>\"\",K17<>\"\"),XBRLMapTuple($R$12,R$3,R$4,\"BMA\",CONFIGURATION!$B$1,\"bscr\",\"\",CONFIGURATION!$B$12,$R$13,C17,$S$13,E17,$T$13,G17,$U$13,I17,$V$13,K17,$W$13,M17,$X$13,O17),\"emptyTuple\")","v":"Mapped"}]
[null,4,{"$f":"Import!M10748","v":0},null,{"$f":"Import!M10778","v":"Select"},null,{"$f":"Import!M10808","v":0},null,{"$f":"Import!M10839","v":0},null,{"$f":"Import!M10870","v":0},null,0,null,0,null,null,null,null,null,null,null,null,null,{"$f":"IF(OR(C18<>\"\",E18<>\"\",G18<>\"\",I18<>\"\",K18<>\"\"),XBRLMapTuple($R$12,R$3,R$4,\"BMA\",CONFIGURATION!$B$1,\"bscr\",\"\",CONFIGURATION!$B$12,$R$13,C18,$S$13,E18,$T$13,G18,$U$13,I18,$V$13,K18,$W$13,M18,$X$13,O18),\"emptyTuple\")","v":"Mapped"}]
[null,5,{"$f":"Import!M10749","v":0},null,{"$f":"Import!M10779","v":"Select"},null,{"$f":"Import!M10809","v":0},null,{"$f":"Import!M10840","v":0},null,{"$f":"Import!M10871","v":0},null,0,null,0,null,null,null,null,null,null,null,null,null,{"$f":"IF(OR(C19<>\"\",E19<>\"\",G19<>\"\",I19<>\"\",K19<>\"\"),XBRLMapTuple($R$12,R$3,R$4,\"BMA\",CONFIGURATION!$B$1,\"bscr\",\"\",CONFIGURATION!$B$12,$R$13,C19,$S$13,E19,$T$13,G19,$U$13,I19,$V$13,K19,$W$13,M19,$X$13,O19),\"emptyTuple\")","v":"Mapped"}]
[null,6,{"$f":"Import!M10750","v":0},null,{"$f":"Import!M10780","v":"Select"},null,{"$f":"Import!M10810","v":0},null,{"$f":"Import!M10841","v":0},null,{"$f":"Import!M10872","v":0},null,0,null,0,null,null,null,null,null,null,null,null,null,{"$f":"IF(OR(C20<>\"\",E20<>\"\",G20<>\"\",I20<>\"\",K20<>\"\"),XBRLMapTuple($R$12,R$3,R$4,\"BMA\",CONFIGURATION!$B$1,\"bscr\",\"\",CONFIGURATION!$B$12,$R$13,C20,$S$13,E20,$T$13,G20,$U$13,I20,$V$13,K20,$W$13,M20,$X$13,O20),\"emptyTuple\")","v":"Mapped"}]
[null,7,{"$f":"Import!M10751","v":0},null,{"$f":"Import!M10781","v":"Select"},null,{"$f":"Import!M10811","v":0},null,{"$f":"Import!M10842","v":0},null,{"$f":"Import!M10873","v":0},null,0,null,0,null,null,null,null,null,null,null,null,null,{"$f":"IF(OR(C21<>\"\",E21<>\"\",G21<>\"\",I21<>\"\",K21<>\"\"),XBRLMapTuple($R$12,R$3,R$4,\"BMA\",CONFIGURATION!$B$1,\"bscr\",\"\",CONFIGURATION!$B$12,$R$13,C21,$S$13,E21,$T$13,G21,$U$13,I21,$V$13,K21,$W$13,M21,$X$13,O21),\"emptyTuple\")","v":"Mapped"}]
[null,8,{"$f":"Import!M10752","v":0},null,{"$f":"Import!M10782","v":"Select"},null,{"$f":"Import!M10812","v":0},null,{"$f":"Import!M10843","v":0},null,{"$f":"Import!M10874","v":0},null,0,null,0,null,null,null,null,null,null,null,null,null,{"$f":"IF(OR(C22<>\"\",E22<>\"\",G22<>\"\",I22<>\"\",K22<>\"\"),XBRLMapTuple($R$12,R$3,R$4,\"BMA\",CONFIGURATION!$B$1,\"bscr\",\"\",CONFIGURATION!$B$12,$R$13,C22,$S$13,E22,$T$13,G22,$U$13,I22,$V$13,K22,$W$13,M22,$X$13,O22),\"emptyTuple\")","v":"Mapped"}]
[null,9,{"$f":"Import!M10753","v":0},null,{"$f":"Import!M10783","v":"Select"},null,{"$f":"Import!M10813","v":0},null,{"$f":"Import!M10844","v":0},null,{"$f":"Import!M10875","v":0},null,0,null,0,null,null,null,null,null,null,null,null,null,{"$f":"IF(OR(C23<>\"\",E23<>\"\",G23<>\"\",I23<>\"\",K23<>\"\"),XBRLMapTuple($R$12,R$3,R$4,\"BMA\",CONFIGURATION!$B$1,\"bscr\",\"\",CONFIGURATION!$B$12,$R$13,C23,$S$13,E23,$T$13,G23,$U$13,I23,$V$13,K23,$W$13,M23,$X$13,O23),\"emptyTuple\")","v":"Mapped"}]
[null,10,{"$f":"Import!M10754","v":0},null,{"$f":"Import!M10784","v":"Select"},null,{"$f":"Import!M10814","v":0},null,{"$f":"Import!M10845","v":0},null,{"$f":"Import!M10876","v":0},null,0,null,0,null,null,null,null,null,null,null,null,null,{"$f":"IF(OR(C24<>\"\",E24<>\"\",G24<>\"\",I24<>\"\",K24<>\"\"),XBRLMapTuple($R$12,R$3,R$4,\"BMA\",CONFIGURATION!$B$1,\"bscr\",\"\",CONFIGURATION!$B$12,$R$13,C24,$S$13,E24,$T$13,G24,$U$13,I24,$V$13,K24,$W$13,M24,$X$13,O24),\"emptyTuple\")","v":"Mapped"}]
[null,11,{"$f":"Import!M10755","v":0},null,{"$f":"Import!M10785","v":"Select"},null,{"$f":"Import!M10815","v":0},null,{"$f":"Import!M10846","v":0},null,{"$f":"Import!M10877","v":0},null,0,null,0,null,null,null,null,null,null,null,null,null,{"$f":"IF(OR(C25<>\"\",E25<>\"\",G25<>\"\",I25<>\"\",K25<>\"\"),XBRLMapTuple($R$12,R$3,R$4,\"BMA\",CONFIGURATION!$B$1,\"bscr\",\"\",CONFIGURATION!$B$12,$R$13,C25,$S$13,E25,$T$13,G25,$U$13,I25,$V$13,K25,$W$13,M25,$X$13,O25),\"emptyTuple\")","v":"Mapped"}]
[null,12,{"$f":"Import!M10756","v":0},null,{"$f":"Import!M10786","v":"Select"},null,{"$f":"Import!M10816","v":0},null,{"$f":"Import!M10847","v":0},null,{"$f":"Import!M10878","v":0},null,0,null,0,null,null,null,null,null,null,null,null,null,{"$f":"IF(OR(C26<>\"\",E26<>\"\",G26<>\"\",I26<>\"\",K26<>\"\"),XBRLMapTuple($R$12,R$3,R$4,\"BMA\",CONFIGURATION!$B$1,\"bscr\",\"\",CONFIGURATION!$B$12,$R$13,C26,$S$13,E26,$T$13,G26,$U$13,I26,$V$13,K26,$W$13,M26,$X$13,O26),\"emptyTuple\")","v":"Mapped"}]
[null,13,{"$f":"Import!M10757","v":0},null,{"$f":"Import!M10787","v":"Select"},null,{"$f":"Import!M10817","v":0},null,{"$f":"Import!M10848","v":0},null,{"$f":"Import!M10879","v":0},null,0,null,0,null,null,null,null,null,null,null,null,null,{"$f":"IF(OR(C27<>\"\",E27<>\"\",G27<>\"\",I27<>\"\",K27<>\"\"),XBRLMapTuple($R$12,R$3,R$4,\"BMA\",CONFIGURATION!$B$1,\"bscr\",\"\",CONFIGURATION!$B$12,$R$13,C27,$S$13,E27,$T$13,G27,$U$13,I27,$V$13,K27,$W$13,M27,$X$13,O27),\"emptyTuple\")","v":"Mapped"}]
[null,14,{"$f":"Import!M10758","v":0},null,{"$f":"Import!M10788","v":"Select"},null,{"$f":"Import!M10818","v":0},null,{"$f":"Import!M10849","v":0},null,{"$f":"Import!M10880","v":0},null,0,null,0,null,null,null,null,null,null,null,null,null,{"$f":"IF(OR(C28<>\"\",E28<>\"\",G28<>\"\",I28<>\"\",K28<>\"\"),XBRLMapTuple($R$12,R$3,R$4,\"BMA\",CONFIGURATION!$B$1,\"bscr\",\"\",CONFIGURATION!$B$12,$R$13,C28,$S$13,E28,$T$13,G28,$U$13,I28,$V$13,K28,$W$13,M28,$X$13,O28),\"emptyTuple\")","v":"Mapped"}]
[null,15,{"$f":"Import!M10759","v":0},null,{"$f":"Import!M10789","v":"Select"},null,{"$f":"Import!M10819","v":0},null,{"$f":"Import!M10850","v":0},null,{"$f":"Import!M10881","v":0},null,0,null,0,null,null,null,null,null,null,null,null,null,{"$f":"IF(OR(C29<>\"\",E29<>\"\",G29<>\"\",I29<>\"\",K29<>\"\"),XBRLMapTuple($R$12,R$3,R$4,\"BMA\",CONFIGURATION!$B$1,\"bscr\",\"\",CONFIGURATION!$B$12,$R$13,C29,$S$13,E29,$T$13,G29,$U$13,I29,$V$13,K29,$W$13,M29,$X$13,O29),\"emptyTuple\")","v":"Mapped"}]
[null,16,{"$f":"Import!M10760","v":0},null,{"$f":"Import!M10790","v":"Select"},null,{"$f":"Import!M10820","v":0},null,{"$f":"Import!M10851","v":0},null,{"$f":"Import!M10882","v":0},null,0,null,0,null,null,null,null,null,null,null,null,null,{"$f":"IF(OR(C30<>\"\",E30<>\"\",G30<>\"\",I30<>\"\",K30<>\"\"),XBRLMapTuple($R$12,R$3,R$4,\"BMA\",CONFIGURATION!$B$1,\"bscr\",\"\",CONFIGURATION!$B$12,$R$13,C30,$S$13,E30,$T$13,G30,$U$13,I30,$V$13,K30,$W$13,M30,$X$13,O30),\"emptyTuple\")","v":"Mapped"}]
[null,17,{"$f":"Import!M10761","v":0},null,{"$f":"Import!M10791","v":"Select"},null,{"$f":"Import!M10821","v":0},null,{"$f":"Import!M10852","v":0},null,{"$f":"Import!M10883","v":0},null,0,null,0,null,null,null,null,null,null,null,null,null,{"$f":"IF(OR(C31<>\"\",E31<>\"\",G31<>\"\",I31<>\"\",K31<>\"\"),XBRLMapTuple($R$12,R$3,R$4,\"BMA\",CONFIGURATION!$B$1,\"bscr\",\"\",CONFIGURATION!$B$12,$R$13,C31,$S$13,E31,$T$13,G31,$U$13,I31,$V$13,K31,$W$13,M31,$X$13,O31),\"emptyTuple\")","v":"Mapped"}]
[null,18,{"$f":"Import!M10762","v":0},null,{"$f":"Import!M10792","v":"Select"},null,{"$f":"Import!M10822","v":0},null,{"$f":"Import!M10853","v":0},null,{"$f":"Import!M10884","v":0},null,0,null,0,null,null,null,null,null,null,null,null,null,{"$f":"IF(OR(C32<>\"\",E32<>\"\",G32<>\"\",I32<>\"\",K32<>\"\"),XBRLMapTuple($R$12,R$3,R$4,\"BMA\",CONFIGURATION!$B$1,\"bscr\",\"\",CONFIGURATION!$B$12,$R$13,C32,$S$13,E32,$T$13,G32,$U$13,I32,$V$13,K32,$W$13,M32,$X$13,O32),\"emptyTuple\")","v":"Mapped"}]
[null,19,{"$f":"Import!M10763","v":0},null,{"$f":"Import!M10793","v":"Select"},null,{"$f":"Import!M10823","v":0},null,{"$f":"Import!M10854","v":0},null,{"$f":"Import!M10885","v":0},null,0,null,0,null,null,null,null,null,null,null,null,null,{"$f":"IF(OR(C33<>\"\",E33<>\"\",G33<>\"\",I33<>\"\",K33<>\"\"),XBRLMapTuple($R$12,R$3,R$4,\"BMA\",CONFIGURATION!$B$1,\"bscr\",\"\",CONFIGURATION!$B$12,$R$13,C33,$S$13,E33,$T$13,G33,$U$13,I33,$V$13,K33,$W$13,M33,$X$13,O33),\"emptyTuple\")","v":"Mapped"}]
[null,20,{"$f":"Import!M10764","v":0},null,{"$f":"Import!M10794","v":"Select"},null,{"$f":"Import!M10824","v":0},null,{"$f":"Import!M10855","v":0},null,{"$f":"Import!M10886","v":0},null,0,null,0,null,null,null,null,null,null,null,null,null,{"$f":"IF(OR(C34<>\"\",E34<>\"\",G34<>\"\",I34<>\"\",K34<>\"\"),XBRLMapTuple($R$12,R$3,R$4,\"BMA\",CONFIGURATION!$B$1,\"bscr\",\"\",CONFIGURATION!$B$12,$R$13,C34,$S$13,E34,$T$13,G34,$U$13,I34,$V$13,K34,$W$13,M34,$X$13,O34),\"emptyTuple\")","v":"Mapped"}]
[null,21,{"$f":"Import!M10765","v":0},null,{"$f":"Import!M10795","v":"Select"},null,{"$f":"Import!M10825","v":0},null,{"$f":"Import!M10856","v":0},null,{"$f":"Import!M10887","v":0},null,0,null,0,null,null,null,null,null,null,null,null,null,{"$f":"IF(OR(C35<>\"\",E35<>\"\",G35<>\"\",I35<>\"\",K35<>\"\"),XBRLMapTuple($R$12,R$3,R$4,\"BMA\",CONFIGURATION!$B$1,\"bscr\",\"\",CONFIGURATION!$B$12,$R$13,C35,$S$13,E35,$T$13,G35,$U$13,I35,$V$13,K35,$W$13,M35,$X$13,O35),\"emptyTuple\")","v":"Mapped"}]
[null,22,{"$f":"Import!M10766","v":0},null,{"$f":"Import!M10796","v":"Select"},null,{"$f":"Import!M10826","v":0},null,{"$f":"Import!M10857","v":0},null,{"$f":"Import!M10888","v":0},null,0,null,0,null,null,null,null,null,null,null,null,null,{"$f":"IF(OR(C36<>\"\",E36<>\"\",G36<>\"\",I36<>\"\",K36<>\"\"),XBRLMapTuple($R$12,R$3,R$4,\"BMA\",CONFIGURATION!$B$1,\"bscr\",\"\",CONFIGURATION!$B$12,$R$13,C36,$S$13,E36,$T$13,G36,$U$13,I36,$V$13,K36,$W$13,M36,$X$13,O36),\"emptyTuple\")","v":"Mapped"}]
[null,23,{"$f":"Import!M10767","v":0},null,{"$f":"Import!M10797","v":"Select"},null,{"$f":"Import!M10827","v":0},null,{"$f":"Import!M10858","v":0},null,{"$f":"Import!M10889","v":0},null,0,null,0,null,null,null,null,null,null,null,null,null,{"$f":"IF(OR(C37<>\"\",E37<>\"\",G37<>\"\",I37<>\"\",K37<>\"\"),XBRLMapTuple($R$12,R$3,R$4,\"BMA\",CONFIGURATION!$B$1,\"bscr\",\"\",CONFIGURATION!$B$12,$R$13,C37,$S$13,E37,$T$13,G37,$U$13,I37,$V$13,K37,$W$13,M37,$X$13,O37),\"emptyTuple\")","v":"Mapped"}]
[null,24,{"$f":"Import!M10768","v":0},null,{"$f":"Import!M10798","v":"Select"},null,{"$f":"Import!M10828","v":0},null,{"$f":"Import!M10859","v":0},null,{"$f":"Import!M10890","v":0},null,0,null,0,null,null,null,null,null,null,null,null,null,{"$f":"IF(OR(C38<>\"\",E38<>\"\",G38<>\"\",I38<>\"\",K38<>\"\"),XBRLMapTuple($R$12,R$3,R$4,\"BMA\",CONFIGURATION!$B$1,\"bscr\",\"\",CONFIGURATION!$B$12,$R$13,C38,$S$13,E38,$T$13,G38,$U$13,I38,$V$13,K38,$W$13,M38,$X$13,O38),\"emptyTuple\")","v":"Mapped"}]
[null,25,{"$f":"Import!M10769","v":0},null,{"$f":"Import!M10799","v":"Select"},null,{"$f":"Import!M10829","v":0},null,{"$f":"Import!M10860","v":0},null,{"$f":"Import!M10891","v":0},null,0,null,0,null,null,null,null,null,null,null,null,null,{"$f":"IF(OR(C39<>\"\",E39<>\"\",G39<>\"\",I39<>\"\",K39<>\"\"),XBRLMapTuple($R$12,R$3,R$4,\"BMA\",CONFIGURATION!$B$1,\"bscr\",\"\",CONFIGURATION!$B$12,$R$13,C39,$S$13,E39,$T$13,G39,$U$13,I39,$V$13,K39,$W$13,M39,$X$13,O39),\"emptyTuple\")","v":"Mapped"}]
[null,26,{"$f":"Import!M10770","v":0},null,{"$f":"Import!M10800","v":"Select"},null,{"$f":"Import!M10830","v":0},null,{"$f":"Import!M10861","v":0},null,{"$f":"Import!M10892","v":0},null,0,null,0,null,null,null,null,null,null,null,null,null,{"$f":"IF(OR(C40<>\"\",E40<>\"\",G40<>\"\",I40<>\"\",K40<>\"\"),XBRLMapTuple($R$12,R$3,R$4,\"BMA\",CONFIGURATION!$B$1,\"bscr\",\"\",CONFIGURATION!$B$12,$R$13,C40,$S$13,E40,$T$13,G40,$U$13,I40,$V$13,K40,$W$13,M40,$X$13,O40),\"emptyTuple\")","v":"Mapped"}]
[null,27,{"$f":"Import!M10771","v":0},null,{"$f":"Import!M10801","v":"Select"},null,{"$f":"Import!M10831","v":0},null,{"$f":"Import!M10862","v":0},null,{"$f":"Import!M10893","v":0},null,0,null,0,null,null,null,null,null,null,null,null,null,{"$f":"IF(OR(C41<>\"\",E41<>\"\",G41<>\"\",I41<>\"\",K41<>\"\"),XBRLMapTuple($R$12,R$3,R$4,\"BMA\",CONFIGURATION!$B$1,\"bscr\",\"\",CONFIGURATION!$B$12,$R$13,C41,$S$13,E41,$T$13,G41,$U$13,I41,$V$13,K41,$W$13,M41,$X$13,O41),\"emptyTuple\")","v":"Mapped"}]
[null,28,{"$f":"Import!M10772","v":0},null,{"$f":"Import!M10802","v":"Select"},null,{"$f":"Import!M10832","v":0},null,{"$f":"Import!M10863","v":0},null,{"$f":"Import!M10894","v":0},null,0,null,0,null,null,null,null,null,null,null,null,null,{"$f":"IF(OR(C42<>\"\",E42<>\"\",G42<>\"\",I42<>\"\",K42<>\"\"),XBRLMapTuple($R$12,R$3,R$4,\"BMA\",CONFIGURATION!$B$1,\"bscr\",\"\",CONFIGURATION!$B$12,$R$13,C42,$S$13,E42,$T$13,G42,$U$13,I42,$V$13,K42,$W$13,M42,$X$13,O42),\"emptyTuple\")","v":"Mapped"}]
[null,29,{"$f":"Import!M10773","v":0},null,{"$f":"Import!M10803","v":"Select"},null,{"$f":"Import!M10833","v":0},null,{"$f":"Import!M10864","v":0},null,{"$f":"Import!M10895","v":0},null,0,null,0,null,null,null,null,null,null,null,null,null,{"$f":"IF(OR(C43<>\"\",E43<>\"\",G43<>\"\",I43<>\"\",K43<>\"\"),XBRLMapTuple($R$12,R$3,R$4,\"BMA\",CONFIGURATION!$B$1,\"bscr\",\"\",CONFIGURATION!$B$12,$R$13,C43,$S$13,E43,$T$13,G43,$U$13,I43,$V$13,K43,$W$13,M43,$X$13,O43),\"emptyTuple\")","v":"Mapped"}]
[null,30,{"$f":"Import!M10774","v":0},null,{"$f":"Import!M10804","v":"Select"},null,{"$f":"Import!M10834","v":0},null,{"$f":"Import!M10865","v":0},null,{"$f":"Import!M10896","v":0},null,0,null,0,null,null,null,null,null,null,null,null,null,{"$f":"IF(OR(C44<>\"\",E44<>\"\",G44<>\"\",I44<>\"\",K44<>\"\"),XBRLMapTuple($R$12,R$3,R$4,\"BMA\",CONFIGURATION!$B$1,\"bscr\",\"\",CONFIGURATION!$B$12,$R$13,C44,$S$13,E44,$T$13,G44,$U$13,I44,$V$13,K44,$W$13,M44,$X$13,O44),\"emptyTuple\")","v":"Mapped"}]
[null,31,null,null,null,null,null,null,null,null,null,null,0,null,0,null,null,null,null,null,null,null,null,null,{"$f":"IF(OR(C45<>\"\",E45<>\"\",G45<>\"\",I45<>\"\",K45<>\"\"),XBRLMapTuple($R$12,R$3,R$4,\"BMA\",CONFIGURATION!$B$1,\"bscr\",\"\",CONFIGURATION!$B$12,$R$13,C45,$S$13,E45,$T$13,G45,$U$13,I45,$V$13,K45,$W$13,M45,$X$13,O45),\"emptyTuple\")","v":"emptyTuple"}]
[null,32,null,null,null,null,null,null,null,null,null,null,0,null,0,null,null,null,null,null,null,null,null,null,{"$f":"IF(OR(C46<>\"\",E46<>\"\",G46<>\"\",I46<>\"\",K46<>\"\"),XBRLMapTuple($R$12,R$3,R$4,\"BMA\",CONFIGURATION!$B$1,\"bscr\",\"\",CONFIGURATION!$B$12,$R$13,C46,$S$13,E46,$T$13,G46,$U$13,I46,$V$13,K46,$W$13,M46,$X$13,O46),\"emptyTuple\")","v":"emptyTuple"}]
[null,33,null,null,null,null,null,null,null,null,null,null,0,null,0,null,null,null,null,null,null,null,null,null,{"$f":"IF(OR(C47<>\"\",E47<>\"\",G47<>\"\",I47<>\"\",K47<>\"\"),XBRLMapTuple($R$12,R$3,R$4,\"BMA\",CONFIGURATION!$B$1,\"bscr\",\"\",CONFIGURATION!$B$12,$R$13,C47,$S$13,E47,$T$13,G47,$U$13,I47,$V$13,K47,$W$13,M47,$X$13,O47),\"emptyTuple\")","v":"emptyTuple"}]
[null,34,null,null,null,null,null,null,null,null,null,null,0,null,0,null,null,null,null,null,null,null,null,null,{"$f":"IF(OR(C48<>\"\",E48<>\"\",G48<>\"\",I48<>\"\",K48<>\"\"),XBRLMapTuple($R$12,R$3,R$4,\"BMA\",CONFIGURATION!$B$1,\"bscr\",\"\",CONFIGURATION!$B$12,$R$13,C48,$S$13,E48,$T$13,G48,$U$13,I48,$V$13,K48,$W$13,M48,$X$13,O48),\"emptyTuple\")","v":"emptyTuple"}]
[null,35,null,null,null,null,null,null,null,null,null,null,0,null,0,null,null,null,null,null,null,null,null,null,{"$f":"IF(OR(C49<>\"\",E49<>\"\",G49<>\"\",I49<>\"\",K49<>\"\"),XBRLMapTuple($R$12,R$3,R$4,\"BMA\",CONFIGURATION!$B$1,\"bscr\",\"\",CONFIGURATION!$B$12,$R$13,C49,$S$13,E49,$T$13,G49,$U$13,I49,$V$13,K49,$W$13,M49,$X$13,O49),\"emptyTuple\")","v":"emptyTuple"}]
[null,36,null,null,null,null,null,null,null,null,null,null,0,null,0,null,null,null,null,null,null,null,null,null,{"$f":"IF(OR(C50<>\"\",E50<>\"\",G50<>\"\",I50<>\"\",K50<>\"\"),XBRLMapTuple($R$12,R$3,R$4,\"BMA\",CONFIGURATION!$B$1,\"bscr\",\"\",CONFIGURATION!$B$12,$R$13,C50,$S$13,E50,$T$13,G50,$U$13,I50,$V$13,K50,$W$13,M50,$X$13,O50),\"emptyTuple\")","v":"emptyTuple"}]
[null,37,null,null,null,null,null,null,null,null,null,null,0,null,0,null,null,null,null,null,null,null,null,null,{"$f":"IF(OR(C51<>\"\",E51<>\"\",G51<>\"\",I51<>\"\",K51<>\"\"),XBRLMapTuple($R$12,R$3,R$4,\"BMA\",CONFIGURATION!$B$1,\"bscr\",\"\",CONFIGURATION!$B$12,$R$13,C51,$S$13,E51,$T$13,G51,$U$13,I51,$V$13,K51,$W$13,M51,$X$13,O51),\"emptyTuple\")","v":"emptyTuple"}]
[null,38,null,null,null,null,null,null,null,null,null,null,0,null,0,null,null,null,null,null,null,null,null,null,{"$f":"IF(OR(C52<>\"\",E52<>\"\",G52<>\"\",I52<>\"\",K52<>\"\"),XBRLMapTuple($R$12,R$3,R$4,\"BMA\",CONFIGURATION!$B$1,\"bscr\",\"\",CONFIGURATION!$B$12,$R$13,C52,$S$13,E52,$T$13,G52,$U$13,I52,$V$13,K52,$W$13,M52,$X$13,O52),\"emptyTuple\")","v":"emptyTuple"}]
[null,39,null,null,null,null,null,null,null,null,null,null,0,null,0,null,null,null,null,null,null,null,null,null,{"$f":"IF(OR(C53<>\"\",E53<>\"\",G53<>\"\",I53<>\"\",K53<>\"\"),XBRLMapTuple($R$12,R$3,R$4,\"BMA\",CONFIGURATION!$B$1,\"bscr\",\"\",CONFIGURATION!$B$12,$R$13,C53,$S$13,E53,$T$13,G53,$U$13,I53,$V$13,K53,$W$13,M53,$X$13,O53),\"emptyTuple\")","v":"emptyTuple"}]
[null,40,null,null,null,null,null,null,null,null,null,null,0,null,0,null,null,null,null,null,null,null,null,null,{"$f":"IF(OR(C54<>\"\",E54<>\"\",G54<>\"\",I54<>\"\",K54<>\"\"),XBRLMapTuple($R$12,R$3,R$4,\"BMA\",CONFIGURATION!$B$1,\"bscr\",\"\",CONFIGURATION!$B$12,$R$13,C54,$S$13,E54,$T$13,G54,$U$13,I54,$V$13,K54,$W$13,M54,$X$13,O54),\"emptyTuple\")","v":"emptyTuple"}]
[null,null,"Total Exposure By Reinsurer",null,null,null,{"$f":"SUM(G15:G54)","v":0},null,{"$f":"SUM(I15:I54)","v":0},null,{"$f":"SUM(K15:K54)","v":0},null,{"$f":"SUM(M15:M54)","v":0},null,{"$f":"SUM(O15:O54)","v":0},null,null,null,null,{"$f":"XBRLMap(G55,T13,$R$3,$R$4,CONFIGURATION!$B$10,\"BMA\",CONFIGURATION!$B$1,\"bscr\",CONFIGURATION!$B$12)","v":"Mapped"},{"$f":"XBRLMap(I55,U13,$R$3,$R$4,CONFIGURATION!$B$10,\"BMA\",CONFIGURATION!$B$1,\"bscr\",CONFIGURATION!$B$12)","v":"Mapped"},{"$f":"XBRLMap(K55,V13,$R$3,$R$4,CONFIGURATION!$B$10,\"BMA\",CONFIGURATION!$B$1,\"bscr\",CONFIGURATION!$B$12)","v":"Mapped"},{"$f":"XBRLMap(M55,W13,$R$3,$R$4,CONFIGURATION!$B$10,\"BMA\",CONFIGURATION!$B$1,\"bscr\",CONFIGURATION!$B$12)","v":"Mapped"},{"$f":"XBRLMap(O55,X13,$R$3,$R$4,CONFIGURATION!$B$10,\"BMA\",CONFIGURATION!$B$1,\"bscr\",CONFIGURATION!$B$12)","v":"Mapped"}]
[]
[null,null,null,"Exposure by BSCR Rating"]
[null,null,null,"BSCR Rating 0 (Domestic Affiliates)",null,null,{"$f":"Import!M10898","v":0},null,{"$f":"Import!M10909","v":0},null,{"$f":"Import!M10920","v":0},null,{"$f":"IF(K58=0,0,MAX(0,MIN(K58,(G58-I58)/0.98)))","v":0},null,{"$f":"MAX(0,(G58-I58-M58*98%))","v":0},null,"brrt_RiskGradeAxis_brrt_BSCRRating0Member",null,null,{"$f":"XBRLMap(G58,$T$13&\".\"&Q58,$R$3,$R$4,CONFIGURATION!$B$10,\"BMA\",CONFIGURATION!$B$1,\"bscr\",CONFIGURATION!$B$12)","v":"Mapped"},{"$f":"XBRLMap(I58,$U$13&\".\"&Q58,$R$3,$R$4,CONFIGURATION!$B$10,\"BMA\",CONFIGURATION!$B$1,\"bscr\",CONFIGURATION!$B$12)","v":"Mapped"},{"$f":"XBRLMap(K58,$V$13&\".\"&Q58,$R$3,$R$4,CONFIGURATION!$B$10,\"BMA\",CONFIGURATION!$B$1,\"bscr\",CONFIGURATION!$B$12)","v":"Mapped"},{"$f":"XBRLMap(M58,$W$13&\".\"&Q58,$R$3,$R$4,CONFIGURATION!$B$10,\"BMA\",CONFIGURATION!$B$1,\"bscr\",CONFIGURATION!$B$12)","v":"Mapped"},{"$f":"XBRLMap(O58,$X$13&\".\"&Q58,$R$3,$R$4,CONFIGURATION!$B$10,\"BMA\",CONFIGURATION!$B$1,\"bscr\",CONFIGURATION!$B$12)","v":"Mapped"}]
[null,null,null,"BSCR Rating 1",null,null,{"$f":"Import!M10899","v":0},null,{"$f":"Import!M10910","v":0},null,{"$f":"Import!M10921","v":0},null,0,null,0,null,"brrt_RiskGradeAxis_brrt_BSCRRating1Member",null,null,{"$f":"XBRLMap(G59,$T$13&\".\"&Q59,$R$3,$R$4,CONFIGURATION!$B$10,\"BMA\",CONFIGURATION!$B$1,\"bscr\",CONFIGURATION!$B$12)","v":"Mapped"},{"$f":"XBRLMap(I59,$U$13&\".\"&Q59,$R$3,$R$4,CONFIGURATION!$B$10,\"BMA\",CONFIGURATION!$B$1,\"bscr\",CONFIGURATION!$B$12)","v":"Mapped"},{"$f":"XBRLMap(K59,$V$13&\".\"&Q59,$R$3,$R$4,CONFIGURATION!$B$10,\"BMA\",CONFIGURATION!$B$1,\"bscr\",CONFIGURATION!$B$12)","v":"Mapped"},{"$f":"XBRLMap(M59,$W$13&\".\"&Q59,$R$3,$R$4,CONFIGURATION!$B$10,\"BMA\",CONFIGURATION!$B$1,\"bscr\",CONFIGURATION!$B$12)","v":"Mapped"},{"$f":"XBRLMap(O59,$X$13&\".\"&Q59,$R$3,$R$4,CONFIGURATION!$B$10,\"BMA\",CONFIGURATION!$B$1,\"bscr\",CONFIGURATION!$B$12)","v":"Mapped"}]
[null,null,null,"BSCR Rating 2",null,null,{"$f":"Import!M10900","v":0},null,{"$f":"Import!M10911","v":0},null,{"$f":"Import!M10922","v":0},null,0,null,{"$f":"MAX(0,(G60-I60-M60*98%))","v":0},null,"brrt_RiskGradeAxis_brrt_BSCRRating2Member",null,null,{"$f":"XBRLMap(G60,$T$13&\".\"&Q60,$R$3,$R$4,CONFIGURATION!$B$10,\"BMA\",CONFIGURATION!$B$1,\"bscr\",CONFIGURATION!$B$12)","v":"Mapped"},{"$f":"XBRLMap(I60,$U$13&\".\"&Q60,$R$3,$R$4,CONFIGURATION!$B$10,\"BMA\",CONFIGURATION!$B$1,\"bscr\",CONFIGURATION!$B$12)","v":"Mapped"},{"$f":"XBRLMap(K60,$V$13&\".\"&Q60,$R$3,$R$4,CONFIGURATION!$B$10,\"BMA\",CONFIGURATION!$B$1,\"bscr\",CONFIGURATION!$B$12)","v":"Mapped"},{"$f":"XBRLMap(M60,$W$13&\".\"&Q60,$R$3,$R$4,CONFIGURATION!$B$10,\"BMA\",CONFIGURATION!$B$1,\"bscr\",CONFIGURATION!$B$12)","v":"Mapped"},{"$f":"XBRLMap(O60,$X$13&\".\"&Q60,$R$3,$R$4,CONFIGURATION!$B$10,\"BMA\",CONFIGURATION!$B$1,\"bscr\",CONFIGURATION!$B$12)","v":"Mapped"}]
[null,null,null,"BSCR Rating 3",null,null,{"$f":"Import!M10901","v":0},null,{"$f":"Import!M10912","v":0},null,{"$f":"Import!M10923","v":0},null,0,null,{"$f":"MAX(0,(G61-I61-M61*98%))","v":0},null,"brrt_RiskGradeAxis_brrt_BSCRRating3Member",null,null,{"$f":"XBRLMap(G61,$T$13&\".\"&Q61,$R$3,$R$4,CONFIGURATION!$B$10,\"BMA\",CONFIGURATION!$B$1,\"bscr\",CONFIGURATION!$B$12)","v":"Mapped"},{"$f":"XBRLMap(I61,$U$13&\".\"&Q61,$R$3,$R$4,CONFIGURATION!$B$10,\"BMA\",CONFIGURATION!$B$1,\"bscr\",CONFIGURATION!$B$12)","v":"Mapped"},{"$f":"XBRLMap(K61,$V$13&\".\"&Q61,$R$3,$R$4,CONFIGURATION!$B$10,\"BMA\",CONFIGURATION!$B$1,\"bscr\",CONFIGURATION!$B$12)","v":"Mapped"},{"$f":"XBRLMap(M61,$W$13&\".\"&Q61,$R$3,$R$4,CONFIGURATION!$B$10,\"BMA\",CONFIGURATION!$B$1,\"bscr\",CONFIGURATION!$B$12)","v":"Mapped"},{"$f":"XBRLMap(O61,$X$13&\".\"&Q61,$R$3,$R$4,CONFIGURATION!$B$10,\"BMA\",CONFIGURATION!$B$1,\"bscr\",CONFIGURATION!$B$12)","v":"Mapped"}]
[null,null,null,"BSCR Rating 4",null,null,{"$f":"Import!M10902","v":0},null,{"$f":"Import!M10913","v":0},null,{"$f":"Import!M10924","v":0},null,0,null,0,null,"brrt_RiskGradeAxis_brrt_BSCRRating4Member",null,null,{"$f":"XBRLMap(G62,$T$13&\".\"&Q62,$R$3,$R$4,CONFIGURATION!$B$10,\"BMA\",CONFIGURATION!$B$1,\"bscr\",CONFIGURATION!$B$12)","v":"Mapped"},{"$f":"XBRLMap(I62,$U$13&\".\"&Q62,$R$3,$R$4,CONFIGURATION!$B$10,\"BMA\",CONFIGURATION!$B$1,\"bscr\",CONFIGURATION!$B$12)","v":"Mapped"},{"$f":"XBRLMap(K62,$V$13&\".\"&Q62,$R$3,$R$4,CONFIGURATION!$B$10,\"BMA\",CONFIGURATION!$B$1,\"bscr\",CONFIGURATION!$B$12)","v":"Mapped"},{"$f":"XBRLMap(M62,$W$13&\".\"&Q62,$R$3,$R$4,CONFIGURATION!$B$10,\"BMA\",CONFIGURATION!$B$1,\"bscr\",CONFIGURATION!$B$12)","v":"Mapped"},{"$f":"XBRLMap(O62,$X$13&\".\"&Q62,$R$3,$R$4,CONFIGURATION!$B$10,\"BMA\",CONFIGURATION!$B$1,\"bscr\",CONFIGURATION!$B$12)","v":"Mapped"}]
[null,null,null,"BSCR Rating 5",null,null,{"$f":"Import!M10903","v":0},null,{"$f":"Import!M10914","v":0},null,{"$f":"Import!M10925","v":0},null,0,null,0,null,"brrt_RiskGradeAxis_brrt_BSCRRating5Member",null,null,{"$f":"XBRLMap(G63,$T$13&\".\"&Q63,$R$3,$R$4,CONFIGURATION!$B$10,\"BMA\",CONFIGURATION!$B$1,\"bscr\",CONFIGURATION!$B$12)","v":"Mapped"},{"$f":"XBRLMap(I63,$U$13&\".\"&Q63,$R$3,$R$4,CONFIGURATION!$B$10,\"BMA\",CONFIGURATION!$B$1,\"bscr\",CONFIGURATION!$B$12)","v":"Mapped"},{"$f":"XBRLMap(K63,$V$13&\".\"&Q63,$R$3,$R$4,CONFIGURATION!$B$10,\"BMA\",CONFIGURATION!$B$1,\"bscr\",CONFIGURATION!$B$12)","v":"Mapped"},{"$f":"XBRLMap(M63,$W$13&\".\"&Q63,$R$3,$R$4,CONFIGURATION!$B$10,\"BMA\",CONFIGURATION!$B$1,\"bscr\",CONFIGURATION!$B$12)","v":"Mapped"},{"$f":"XBRLMap(O63,$X$13&\".\"&Q63,$R$3,$R$4,CONFIGURATION!$B$10,\"BMA\",CONFIGURATION!$B$1,\"bscr\",CONFIGURATION!$B$12)","v":"Mapped"}]
[null,null,null,"BSCR Rating 6",null,null,{"$f":"Import!M10904","v":0},null,{"$f":"Import!M10915","v":0},null,{"$f":"Import!M10926","v":0},null,0,null,0,null,"brrt_RiskGradeAxis_brrt_BSCRRating6Member",null,null,{"$f":"XBRLMap(G64,$T$13&\".\"&Q64,$R$3,$R$4,CONFIGURATION!$B$10,\"BMA\",CONFIGURATION!$B$1,\"bscr\",CONFIGURATION!$B$12)","v":"Mapped"},{"$f":"XBRLMap(I64,$U$13&\".\"&Q64,$R$3,$R$4,CONFIGURATION!$B$10,\"BMA\",CONFIGURATION!$B$1,\"bscr\",CONFIGURATION!$B$12)","v":"Mapped"},{"$f":"XBRLMap(K64,$V$13&\".\"&Q64,$R$3,$R$4,CONFIGURATION!$B$10,\"BMA\",CONFIGURATION!$B$1,\"bscr\",CONFIGURATION!$B$12)","v":"Mapped"},{"$f":"XBRLMap(M64,$W$13&\".\"&Q64,$R$3,$R$4,CONFIGURATION!$B$10,\"BMA\",CONFIGURATION!$B$1,\"bscr\",CONFIGURATION!$B$12)","v":"Mapped"},{"$f":"XBRLMap(O64,$X$13&\".\"&Q64,$R$3,$R$4,CONFIGURATION!$B$10,\"BMA\",CONFIGURATION!$B$1,\"bscr\",CONFIGURATION!$B$12)","v":"Mapped"}]
[null,null,null,"BSCR Rating 7",null,null,{"$f":"Import!M10905","v":0},null,{"$f":"Import!M10916","v":0},null,{"$f":"Import!M10927","v":0},null,0,null,0,null,"brrt_RiskGradeAxis_brrt_BSCRRating7Member",null,null,{"$f":"XBRLMap(G65,$T$13&\".\"&Q65,$R$3,$R$4,CONFIGURATION!$B$10,\"BMA\",CONFIGURATION!$B$1,\"bscr\",CONFIGURATION!$B$12)","v":"Mapped"},{"$f":"XBRLMap(I65,$U$13&\".\"&Q65,$R$3,$R$4,CONFIGURATION!$B$10,\"BMA\",CONFIGURATION!$B$1,\"bscr\",CONFIGURATION!$B$12)","v":"Mapped"},{"$f":"XBRLMap(K65,$V$13&\".\"&Q65,$R$3,$R$4,CONFIGURATION!$B$10,\"BMA\",CONFIGURATION!$B$1,\"bscr\",CONFIGURATION!$B$12)","v":"Mapped"},{"$f":"XBRLMap(M65,$W$13&\".\"&Q65,$R$3,$R$4,CONFIGURATION!$B$10,\"BMA\",CONFIGURATION!$B$1,\"bscr\",CONFIGURATION!$B$12)","v":"Mapped"},{"$f":"XBRLMap(O65,$X$13&\".\"&Q65,$R$3,$R$4,CONFIGURATION!$B$10,\"BMA\",CONFIGURATION!$B$1,\"bscr\",CONFIGURATION!$B$12)","v":"Mapped"}]
[null,null,null,"BSCR Rating 8",null,null,{"$f":"Import!M10906","v":0},null,{"$f":"Import!M10917","v":0},null,{"$f":"Import!M10928","v":0},null,0,null,{"$f":"MAX(0,(G66-I66-M66*98%))","v":0},null,"brrt_RiskGradeAxis_brrt_BSCRRating8Member",null,null,{"$f":"XBRLMap(G66,$T$13&\".\"&Q66,$R$3,$R$4,CONFIGURATION!$B$10,\"BMA\",CONFIGURATION!$B$1,\"bscr\",CONFIGURATION!$B$12)","v":"Mapped"},{"$f":"XBRLMap(I66,$U$13&\".\"&Q66,$R$3,$R$4,CONFIGURATION!$B$10,\"BMA\",CONFIGURATION!$B$1,\"bscr\",CONFIGURATION!$B$12)","v":"Mapped"},{"$f":"XBRLMap(K66,$V$13&\".\"&Q66,$R$3,$R$4,CONFIGURATION!$B$10,\"BMA\",CONFIGURATION!$B$1,\"bscr\",CONFIGURATION!$B$12)","v":"Mapped"},{"$f":"XBRLMap(M66,$W$13&\".\"&Q66,$R$3,$R$4,CONFIGURATION!$B$10,\"BMA\",CONFIGURATION!$B$1,\"bscr\",CONFIGURATION!$B$12)","v":"Mapped"},{"$f":"XBRLMap(O66,$X$13&\".\"&Q66,$R$3,$R$4,CONFIGURATION!$B$10,\"BMA\",CONFIGURATION!$B$1,\"bscr\",CONFIGURATION!$B$12)","v":"Mapped"}]
[null,null,null,"Total Exposure By BSCR Rating",null,null,{"$f":"SUM(G58:G66)","v":0},null,{"$f":"SUM(I58:I66)","v":0},null,{"$f":"SUM(K58:K66)","v":0},null,{"$f":"SUM(M58:M66)","v":0},null,{"$f":"SUM(O58:O66)","v":0},null,"brrt_RiskGradeAxis_brrt_TotalMember",null,null,{"$f":"XBRLMap(G67,$T$13&\".\"&Q67,$R$3,$R$4,CONFIGURATION!$B$10,\"BMA\",CONFIGURATION!$B$1,\"bscr\",CONFIGURATION!$B$12)","v":"Mapped"},{"$f":"XBRLMap(I67,$U$13&\".\"&Q67,$R$3,$R$4,CONFIGURATION!$B$10,\"BMA\",CONFIGURATION!$B$1,\"bscr\",CONFIGURATION!$B$12)","v":"Mapped"},{"$f":"XBRLMap(K67,$V$13&\".\"&Q67,$R$3,$R$4,CONFIGURATION!$B$10,\"BMA\",CONFIGURATION!$B$1,\"bscr\",CONFIGURATION!$B$12)","v":"Mapped"},{"$f":"XBRLMap(M67,$W$13&\".\"&Q67,$R$3,$R$4,CONFIGURATION!$B$10,\"BMA\",CONFIGURATION!$B$1,\"bscr\",CONFIGURATION!$B$12)","v":"Mapped"},{"$f":"XBRLMap(O67,$X$13&\".\"&Q67,$R$3,$R$4,CONFIGURATION!$B$10,\"BMA\",CONFIGURATION!$B$1,\"bscr\",CONFIGURATION!$B$12)","v":"Mapped"}]
[null,null,null,null,null,null,null,null,null,null,null,null,null,null,null,null,null,null,null,"brrt_SingleConsolidatedExposureReinsuranceRecoverable","brrt_SingleConsolidatedExposureReinsurancePayable","brrt_SingleConsolidatedExposureReinsuranceCollateral","brrt_SingleConsolidatedExposureReinsuranceQualifyingCollateral","brrt_SingleConsolidatedExposureReinsuranceNetQualifyingExposure"]
[null,null,null,"Single Consolidated Exposure",null,null,{"$f":"'Form 1EBS'!F66+'Form 1EBS'!F71+'Form 1EBS'!F114-'Schedule IIA (EBS)'!D74-G55-G67","v":0},null,null,null,null,null,{"$f":"IF(K69=0,0,MAX(0,MIN(K69,(G69-I69)/0.98)))","v":0},null,{"$f":"MAX(0,(G69-I69-M69*98%))","v":0},null,null,null,null,{"$f":"XBRLMap(G69,T68,$R$3,$R$4,CONFIGURATION!$B$10,\"BMA\",CONFIGURATION!$B$1,\"bscr\",CONFIGURATION!$B$12)","v":"Mapped"},{"$f":"XBRLMap(I69,U68,$R$3,$R$4,CONFIGURATION!$B$10,\"BMA\",CONFIGURATION!$B$1,\"bscr\",CONFIGURATION!$B$12)","v":"Mapped"},{"$f":"XBRLMap(K69,V68,$R$3,$R$4,CONFIGURATION!$B$10,\"BMA\",CONFIGURATION!$B$1,\"bscr\",CONFIGURATION!$B$12)","v":"Mapped"},{"$f":"XBRLMap(M69,W68,$R$3,$R$4,CONFIGURATION!$B$10,\"BMA\",CONFIGURATION!$B$1,\"bscr\",CONFIGURATION!$B$12)","v":"Mapped"},{"$f":"XBRLMap(O69,X68,$R$3,$R$4,CONFIGURATION!$B$10,\"BMA\",CONFIGURATION!$B$1,\"bscr\",CONFIGURATION!$B$12)","v":"Mapped"}]
[]
[null,null,null,"Total Balance Sheet Adjusted for Schedule IIA, Line 28, Column (1)"]
[null,null,null,null,null,null,{"$f":"'Form 1EBS'!F66+'Form 1EBS'!F71+'Form 1EBS'!F114-'Schedule IIA (EBS)'!D74","v":0},null,null,null,null,null,null,null,null,null,"brrt_AdjustedBalanceSheetReinsuranceAssets",null,null,{"$f":"XBRLMap(G72,Q72,$R$3,$R$4,CONFIGURATION!$B$10,\"BMA\",CONFIGURATION!$B$1,\"bscr\",CONFIGURATION!$B$12)","v":"Mapped"}]
[]
[null,null,null,"Total Collateral",null,null,null,null,null,null,{"$f":"+'Form 1EBS'!F180+'Form 1EBS'!F181","v":0},null,null,null,null,null,"brrt_ExposureCollateral",null,null,{"$f":"XBRLMap(K74,Q74,$R$3,$R$4,CONFIGURATION!$B$10,\"BMA\",CONFIGURATION!$B$1,\"bscr\",CONFIGURATION!$B$12)","v":"Mapped"}]
[]
[null,null,null,null,null,null,{"$f":"IF((G55+G67+G69-G72)=0,\"TRUE\",\"FALSE\")","v":"TRUE"},null,null,null,{"$f":"IF((K55+K67+K69-K74)=0,\"TRUE\",\"FALSE\")","v":"TRUE"}]
[]
[null,null,null,"Difference",null,null,{"$f":"ROUND(G72-G55-G67-G69,0)","v":0},null,null,null,{"$f":"ROUND(K74-K55-K67-K69,0)","v":0}]
[]
[null,null,null,"Total Qualifying Collateral",null,null,null,null,null,null,null,null,{"$f":"IF(K74=0,0,MAX(0,MIN(K74,(G72)/0.98)))","v":0},null,null,null,"brrt_TotalQualifyingCollateral",null,null,{"$f":"XBRLMap(M80,Q80,$R$3,$R$4,CONFIGURATION!$B$10,\"BMA\",CONFIGURATION!$B$1,\"bscr\",CONFIGURATION!$B$12)","v":"Mapped"}]
[]
[null,null,null,"Total Net Qualifying Exposure",null,null,null,null,null,null,null,null,null,null,{"$f":"O55+O67+O69","v":0},null,"brrt_TotalNetQualifyingExposure",null,null,{"$f":"XBRLMap(O82,Q82,$R$3,$R$4,CONFIGURATION!$B$10,\"BMA\",CONFIGURATION!$B$1,\"bscr\",CONFIGURATION!$B$12)","v":"Mapped"}]
[]
[null,null,null,"Particulars of Reinsurance Balances by BSCR Rating"]
[]
[null,null,null,"Select",null,null,"Reinsurance Assets",null,"Reinsurance Payable",null,"Collateral",null,"Qualifying Collateral",null,"Net Qualifying Exposure"]
[null,null,null,"BSCR Rating 0 (Domestic Affiliates)",null,null,{"$f":"SUMPRODUCT(G$15:G$54,($E$15:$E$54=D87)*1)+G58","v":0},null,{"$f":"SUMPRODUCT(I$15:I$54,($E$15:$E$54=D87)*1)+I58","v":0},null,{"$f":"SUMPRODUCT(K$15:K$54,($E$15:$E$54=D87)*1)+K58","v":0},null,{"$f":"SUMPRODUCT(M$15:M$54,($E$15:$E$54=D87)*1)+M58","v":0},null,{"$f":"SUMPRODUCT(O$15:O$54,($E$15:$E$54=D87)*1)+O58","v":0}]
[null,null,null,"BSCR Rating 1",null,null,0,null,0,null,0,null,0,null,0]
[null,null,null,"BSCR Rating 2",null,null,0,null,0,null,0,null,0,null,0]
[null,null,null,"BSCR Rating 3",null,null,0,null,0,null,0,null,0,null,0]
[null,null,null,"BSCR Rating 4",null,null,0,null,0,null,0,null,0,null,0]
[null,null,null,"BSCR Rating 5",null,null,0,null,0,null,0,null,0,null,0]
[null,null,null,"BSCR Rating 6",null,null,0,null,0,null,0,null,0,null,0]
[null,null,null,"BSCR Rating 7",null,null,0,null,0,null,0,null,0,null,0]
[null,null,null,"BSCR Rating 8",null,null,{"$f":"SUMPRODUCT(G$15:G$54,($E$15:$E$54=D95)*1)+G66+G69","v":0},null,{"$f":"SUMPRODUCT(I$15:I$54,($E$15:$E$54=D95)*1)+I66+I69","v":0},null,{"$f":"SUMPRODUCT(K$15:K$54,($E$15:$E$54=D95)*1)+K66+K69","v":0},null,{"$f":"SUMPRODUCT(M$15:M$54,($E$15:$E$54=D95)*1)+M66+M69","v":0},null,{"$f":"SUMPRODUCT(O$15:O$54,($E$15:$E$54=D95)*1)+O66+O69","v":0}]
[null,null,null,"Total",null,null,{"$f":"SUM(G87:G95)","v":0},null,{"$f":"SUM(I87:I95)","v":0},null,{"$f":"SUM(K87:K95)","v":0},null,{"$f":"SUM(M87:M95)","v":0},null,{"$f":"SUM(O87:O95)","v":0}]
[]
[]
[null,null,null,"Diversification Adjustment Calculation On a Net Qualifying Exposure Basis"]
[]
[null,null,null,"Maximum Net Qualifying Exposure Balance On a Single Reinsurer Basis",null,null,null,null,null,null,null,null,null,null,{"$f":"MAX(O15:O54)","v":0}]
[null,null,null,"Total Net Qualifying Exposure",null,null,null,null,null,null,null,null,null,null,{"$f":"O82","v":0}]
[null,null,null,"Percentage",null,null,null,null,null,null,null,null,null,null,{"$f":"IF(O102=0,0,O101/O102)","v":0}]
[null,null,null,"Diversification Adjustment up to 40%",null,null,null,null,null,null,null,null,null,null,{"$f":"IF(O101=0,0,(1-O103)*40%)","v":0}]

{"sheet":"Schedule XIX","index":87,"n_rows":100,"n_cols":18,"rows_kept":100,"cut":false,"hidden":false,"merged":[[87,2,87,3],[88,2,88,3],[89,2,89,3],[90,2,90,3],[82,2,82,3],[83,2,83,3],[84,2,84,3],[85,2,85,3],[86,2,86,3],[79,2,80,7],[0,2,0,3],[7,2,7,7],[56,2,56,3],[57,2,57,3],[58,2,58,3],[59,2,59,3],[60,2,60,3],[61,2,61,3],[62,2,62,3],[63,2,63,3],[64,2,64,3],[1,5,6,6]]}
[null,null,"SCHEDULE OF RISK MANAGEMENT -  CASH AND CASH EQUIVALENTS COUNTERPARTY ANALYSIS",null,null,null,null,{"$f":"HYPERLINK(\"#'Index'!A1\",\"Return to Index\")","v":"Return to Index"}]
[null,null,{"$f":"+'Company Information'!C7","v":"Enter Company Name"},null,null,"Note if an insurer does not have any entities to consolidate, enter EBS Valuation information only \n(This cell is editable for deletion)",null,null,null,null,{"$f":"IF(C3=\"\",\"\",TEXT(DATE(YEAR(C3+1)-1,MONTH(C3+1),DAY(C3+1)),\"mm/dd/yyyy\"))","v":"01/01/2019"}]
[null,null,{"$f":"+'Company Information'!C3","v":"2019-12-31"},null,null,null,null,null,null,null,{"$f":"IF(C3=\"\",\"\",TEXT(C3,\"mm/dd/yyyy\"))","v":"12/31/2019"}]
[null,null,{"$f":"+'Form 1EBS'!B4","v":"expressed in ['000s]"},null,null,null,null,"SCHEDULE XIX"]
[]
[null,null,"Cash and cash equivalent countparty balances"]
[]
[null,null,"Enter at Least the 10 Largest Balances for Cash and Cash Equivalents with the Remaining Balances Grouped According to BSCR Ratings and/or a Single Consolidated Cash Balance"]
[]
[null,null,"Enter Number of Balances",{"$f":"Import!E10931","v":0},null,"Unconsolidated SFS",null,"EBS Valuation"]
[null,null,null,null,null,null,null,null,null,null,"brrt_ExposureByReinsurer"]
[null,null,"Cash and Cash Equivalent Counterparty Balance",null,null,"(A)",null,"(B)",null,null,"brrt_ParticularsOfCededReinsuranceNameOfReinsurer","brrt_ParticularsOfCededReinsuranceBSCRRating","brrt_ParticularsOfCededReinsuranceReinsuranceRecoverable","brrt_ParticularsOfCededReinsuranceReinsurancePayable","brrt_ParticularsOfCededReinsuranceCollateral","brrt_ParticularsOfCededReinsuranceQualifyingCollateral","brrt_ParticularsOfCededReinsuranceNetQualifyingExposure"]
[null,null,"Name of Cash and Cash Equivalent Counterparty Balance","BSCR Rating",null,"Cash and Cash Equivalent Balance\n(Form 1SFS, Line 1 & Schedule IIA Line 27)",null,"Cash and Cash Equivalent Balance\n(Form 1EBS, Line 1 & Schedule IIA Line 27)"]
[null,1,{"$f":"Import!E10932","v":0},{"$f":"Import!E10952","v":"Select"},null,{"$f":"Import!E10972","v":0},null,{"$f":"Import!M10972","v":0},null,null,null,null,null,null,null,null,null,{"$f":"IF(OR(C14<>\"\",D14<>\"\",F14<>\"\",H14<>\"\"),XBRLMapTuple($K$11,K$2,K$3,\"BMA\",CONFIGURATION!$B$1,\"bscr\",\"\",CONFIGURATION!$B$12,$K$12,C14,$L$12,D14,$P$12,F14,$Q$12,H14),\"emptyTuple\")","v":"Mapped"}]
[null,2,{"$f":"Import!E10933","v":0},{"$f":"Import!E10953","v":"Select"},null,{"$f":"Import!E10973","v":0},null,{"$f":"Import!M10973","v":0},null,null,null,null,null,null,null,null,null,{"$f":"IF(OR(C15<>\"\",D15<>\"\",F15<>\"\",H15<>\"\"),XBRLMapTuple($K$11,K$2,K$3,\"BMA\",CONFIGURATION!$B$1,\"bscr\",\"\",CONFIGURATION!$B$12,$K$12,C15,$L$12,D15,$P$12,F15,$Q$12,H15),\"emptyTuple\")","v":"Mapped"}]
[null,3,{"$f":"Import!E10934","v":0},{"$f":"Import!E10954","v":"Select"},null,{"$f":"Import!E10974","v":0},null,{"$f":"Import!M10974","v":0},null,null,null,null,null,null,null,null,null,{"$f":"IF(OR(C16<>\"\",D16<>\"\",F16<>\"\",H16<>\"\"),XBRLMapTuple($K$11,K$2,K$3,\"BMA\",CONFIGURATION!$B$1,\"bscr\",\"\",CONFIGURATION!$B$12,$K$12,C16,$L$12,D16,$P$12,F16,$Q$12,H16),\"emptyTuple\")","v":"Mapped"}]
[null,4,{"$f":"Import!E10935","v":0},{"$f":"Import!E10955","v":"Select"},null,{"$f":"Import!E10975","v":0},null,{"$f":"Import!M10975","v":0},null,null,null,null,null,null,null,null,null,{"$f":"IF(OR(C17<>\"\",D17<>\"\",F17<>\"\",H17<>\"\"),XBRLMapTuple($K$11,K$2,K$3,\"BMA\",CONFIGURATION!$B$1,\"bscr\",\"\",CONFIGURATION!$B$12,$K$12,C17,$L$12,D17,$P$12,F17,$Q$12,H17),\"emptyTuple\")","v":"Mapped"}]
[null,5,{"$f":"Import!E10936","v":0},{"$f":"Import!E10956","v":"Select"},null,{"$f":"Import!E10976","v":0},null,{"$f":"Import!M10976","v":0},null,null,null,null,null,null,null,null,null,{"$f":"IF(OR(C18<>\"\",D18<>\"\",F18<>\"\",H18<>\"\"),XBRLMapTuple($K$11,K$2,K$3,\"BMA\",CONFIGURATION!$B$1,\"bscr\",\"\",CONFIGURATION!$B$12,$K$12,C18,$L$12,D18,$P$12,F18,$Q$12,H18),\"emptyTuple\")","v":"Mapped"}]
[null,6,{"$f":"Import!E10937","v":0},{"$f":"Import!E10957","v":"Select"},null,{"$f":"Import!E10977","v":0},null,{"$f":"Import!M10977","v":0},null,null,null,null,null,null,null,null,null,{"$f":"IF(OR(C19<>\"\",D19<>\"\",F19<>\"\",H19<>\"\"),XBRLMapTuple($K$11,K$2,K$3,\"BMA\",CONFIGURATION!$B$1,\"bscr\",\"\",CONFIGURATION!$B$12,$K$12,C19,$L$12,D19,$P$12,F19,$Q$12,H19),\"emptyTuple\")","v":"Mapped"}]
[null,7,{"$f":"Import!E10938","v":0},{"$f":"Import!E10958","v":"Select"},null,{"$f":"Import!E10978","v":0},null,{"$f":"Import!M10978","v":0},null,null,null,null,null,null,null,null,null,{"$f":"IF(OR(C20<>\"\",D20<>\"\",F20<>\"\",H20<>\"\"),XBRLMapTuple($K$11,K$2,K$3,\"BMA\",CONFIGURATION!$B$1,\"bscr\",\"\",CONFIGURATION!$B$12,$K$12,C20,$L$12,D20,$P$12,F20,$Q$12,H20),\"emptyTuple\")","v":"Mapped"}]
[null,8,{"$f":"Import!E10939","v":0},{"$f":"Import!E10959","v":"Select"},null,{"$f":"Import!E10979","v":0},null,{"$f":"Import!M10979","v":0},null,null,null,null,null,null,null,null,null,{"$f":"IF(OR(C21<>\"\",D21<>\"\",F21<>\"\",H21<>\"\"),XBRLMapTuple($K$11,K$2,K$3,\"BMA\",CONFIGURATION!$B$1,\"bscr\",\"\",CONFIGURATION!$B$12,$K$12,C21,$L$12,D21,$P$12,F21,$Q$12,H21),\"emptyTuple\")","v":"Mapped"}]
[null,9,{"$f":"Import!E10940","v":0},{"$f":"Import!E10960","v":"Select"},null,{"$f":"Import!E10980","v":0},null,{"$f":"Import!M10980","v":0},null,null,null,null,null,null,null,null,null,{"$f":"IF(OR(C22<>\"\",D22<>\"\",F22<>\"\",H22<>\"\"),XBRLMapTuple($K$11,K$2,K$3,\"BMA\",CONFIGURATION!$B$1,\"bscr\",\"\",CONFIGURATION!$B$12,$K$12,C22,$L$12,D22,$P$12,F22,$Q$12,H22),\"emptyTuple\")","v":"Mapped"}]
[null,10,{"$f":"Import!E10941","v":0},{"$f":"Import!E10961","v":"Select"},null,{"$f":"Import!E10981","v":0},null,{"$f":"Import!M10981","v":0},null,null,null,null,null,null,null,null,null,{"$f":"IF(OR(C23<>\"\",D23<>\"\",F23<>\"\",H23<>\"\"),XBRLMapTuple($K$11,K$2,K$3,\"BMA\",CONFIGURATION!$B$1,\"bscr\",\"\",CONFIGURATION!$B$12,$K$12,C23,$L$12,D23,$P$12,F23,$Q$12,H23),\"emptyTuple\")","v":"Mapped"}]
[null,11,{"$f":"Import!E10942","v":0},{"$f":"Import!E10962","v":"Select"},null,{"$f":"Import!E10982","v":0},null,{"$f":"Import!M10982","v":0},null,null,null,null,null,null,null,null,null,{"$f":"IF(OR(C24<>\"\",D24<>\"\",F24<>\"\",H24<>\"\"),XBRLMapTuple($K$11,K$2,K$3,\"BMA\",CONFIGURATION!$B$1,\"bscr\",\"\",CONFIGURATION!$B$12,$K$12,C24,$L$12,D24,$P$12,F24,$Q$12,H24),\"emptyTuple\")","v":"Mapped"}]
[null,12,{"$f":"Import!E10943","v":0},{"$f":"Import!E10963","v":"Select"},null,{"$f":"Import!E10983","v":0},null,{"$f":"Import!M10983","v":0},null,null,null,null,null,null,null,null,null,{"$f":"IF(OR(C25<>\"\",D25<>\"\",F25<>\"\",H25<>\"\"),XBRLMapTuple($K$11,K$2,K$3,\"BMA\",CONFIGURATION!$B$1,\"bscr\",\"\",CONFIGURATION!$B$12,$K$12,C25,$L$12,D25,$P$12,F25,$Q$12,H25),\"emptyTuple\")","v":"Mapped"}]
[null,13,{"$f":"Import!E10944","v":0},{"$f":"Import!E10964","v":"Select"},null,{"$f":"Import!E10984","v":0},null,{"$f":"Import!M10984","v":0},null,null,null,null,null,null,null,null,null,{"$f":"IF(OR(C26<>\"\",D26<>\"\",F26<>\"\",H26<>\"\"),XBRLMapTuple($K$11,K$2,K$3,\"BMA\",CONFIGURATION!$B$1,\"bscr\",\"\",CONFIGURATION!$B$12,$K$12,C26,$L$12,D26,$P$12,F26,$Q$12,H26),\"emptyTuple\")","v":"Mapped"}]
[null,14,{"$f":"Import!E10945","v":0},{"$f":"Import!E10965","v":"Select"},null,{"$f":"Import!E10985","v":0},null,{"$f":"Import!M10985","v":0},null,null,null,null,null,null,null,null,null,{"$f":"IF(OR(C27<>\"\",D27<>\"\",F27<>\"\",H27<>\"\"),XBRLMapTuple($K$11,K$2,K$3,\"BMA\",CONFIGURATION!$B$1,\"bscr\",\"\",CONFIGURATION!$B$12,$K$12,C27,$L$12,D27,$P$12,F27,$Q$12,H27),\"emptyTuple\")","v":"Mapped"}]
[null,15,{"$f":"Import!E10946","v":0},{"$f":"Import!E10966","v":"Select"},null,{"$f":"Import!E10986","v":0},null,{"$f":"Import!M10986","v":0},null,null,null,null,null,null,null,null,null,{"$f":"IF(OR(C28<>\"\",D28<>\"\",F28<>\"\",H28<>\"\"),XBRLMapTuple($K$11,K$2,K$3,\"BMA\",CONFIGURATION!$B$1,\"bscr\",\"\",CONFIGURATION!$B$12,$K$12,C28,$L$12,D28,$P$12,F28,$Q$12,H28),\"emptyTuple\")","v":"Mapped"}]
[null,16,{"$f":"Import!E10947","v":0},{"$f":"Import!E10967","v":"Select"},null,{"$f":"Import!E10987","v":0},null,{"$f":"Import!M10987","v":0},null,null,null,null,null,null,null,null,null,{"$f":"IF(OR(C29<>\"\",D29<>\"\",F29<>\"\",H29<>\"\"),XBRLMapTuple($K$11,K$2,K$3,\"BMA\",CONFIGURATION!$B$1,\"bscr\",\"\",CONFIGURATION!$B$12,$K$12,C29,$L$12,D29,$P$12,F29,$Q$12,H29),\"emptyTuple\")","v":"Mapped"}]
[null,17,{"$f":"Import!E10948","v":0},{"$f":"Import!E10968","v":"Select"},null,{"$f":"Import!E10988","v":0},null,{"$f":"Import!M10988","v":0},null,null,null,null,null,null,null,null,null,{"$f":"IF(OR(C30<>\"\",D30<>\"\",F30<>\"\",H30<>\"\"),XBRLMapTuple($K$11,K$2,K$3,\"BMA\",CONFIGURATION!$B$1,\"bscr\",\"\",CONFIGURATION!$B$12,$K$12,C30,$L$12,D30,$P$12,F30,$Q$12,H30),\"emptyTuple\")","v":"Mapped"}]
[null,18,{"$f":"Import!E10949","v":0},{"$f":"Import!E10969","v":"Select"},null,{"$f":"Import!E10989","v":0},null,{"$f":"Import!M10989","v":0},null,null,null,null,null,null,null,null,null,{"$f":"IF(OR(C31<>\"\",D31<>\"\",F31<>\"\",H31<>\"\"),XBRLMapTuple($K$11,K$2,K$3,\"BMA\",CONFIGURATION!$B$1,\"bscr\",\"\",CONFIGURATION!$B$12,$K$12,C31,$L$12,D31,$P$12,F31,$Q$12,H31),\"emptyTuple\")","v":"Mapped"}]
[null,19,{"$f":"Import!E10950","v":0},{"$f":"Import!E10970","v":"Select"},null,{"$f":"Import!E10990","v":0},null,{"$f":"Import!M10990","v":0},null,null,null,null,null,null,null,null,null,{"$f":"IF(OR(C32<>\"\",D32<>\"\",F32<>\"\",H32<>\"\"),XBRLMapTuple($K$11,K$2,K$3,\"BMA\",CONFIGURATION!$B$1,\"bscr\",\"\",CONFIGURATION!$B$12,$K$12,C32,$L$12,D32,$P$12,F32,$Q$12,H32),\"emptyTuple\")","v":"Mapped"}]
[null,20,{"$f":"Import!E10951","v":0},{"$f":"Import!E10971","v":"Select"},null,{"$f":"Import!E10991","v":0},null,{"$f":"Import!M10991","v":0},null,null,null,null,null,null,null,null,null,{"$f":"IF(OR(C33<>\"\",D33<>\"\",F33<>\"\",H33<>\"\"),XBRLMapTuple($K$11,K$2,K$3,\"BMA\",CONFIGURATION!$B$1,\"bscr\",\"\",CONFIGURATION!$B$12,$K$12,C33,$L$12,D33,$P$12,F33,$Q$12,H33),\"emptyTuple\")","v":"Mapped"}]
[null,21,null,null,null,null,null,null,null,null,null,null,null,null,null,null,null,{"$f":"IF(OR(C34<>\"\",D34<>\"\",F34<>\"\",H34<>\"\"),XBRLMapTuple($K$11,K$2,K$3,\"BMA\",CONFIGURATION!$B$1,\"bscr\",\"\",CONFIGURATION!$B$12,$K$12,C34,$L$12,D34,$P$12,F34,$Q$12,H34),\"emptyTuple\")","v":"emptyTuple"}]
[null,22,null,null,null,null,null,null,null,null,null,null,null,null,null,null,null,{"$f":"IF(OR(C35<>\"\",D35<>\"\",F35<>\"\",H35<>\"\"),XBRLMapTuple($K$11,K$2,K$3,\"BMA\",CONFIGURATION!$B$1,\"bscr\",\"\",CONFIGURATION!$B$12,$K$12,C35,$L$12,D35,$P$12,F35,$Q$12,H35),\"emptyTuple\")","v":"emptyTuple"}]
[null,23,null,null,null,null,null,null,null,null,null,null,null,null,null,null,null,{"$f":"IF(OR(C36<>\"\",D36<>\"\",F36<>\"\",H36<>\"\"),XBRLMapTuple($K$11,K$2,K$3,\"BMA\",CONFIGURATION!$B$1,\"bscr\",\"\",CONFIGURATION!$B$12,$K$12,C36,$L$12,D36,$P$12,F36,$Q$12,H36),\"emptyTuple\")","v":"emptyTuple"}]
[null,24,null,null,null,null,null,null,null,null,null,null,null,null,null,null,null,{"$f":"IF(OR(C37<>\"\",D37<>\"\",F37<>\"\",H37<>\"\"),XBRLMapTuple($K$11,K$2,K$3,\"BMA\",CONFIGURATION!$B$1,\"bscr\",\"\",CONFIGURATION!$B$12,$K$12,C37,$L$12,D37,$P$12,F37,$Q$12,H37),\"emptyTuple\")","v":"emptyTuple"}]
[null,25,null,null,null,null,null,null,null,null,null,null,null,null,null,null,null,{"$f":"IF(OR(C38<>\"\",D38<>\"\",F38<>\"\",H38<>\"\"),XBRLMapTuple($K$11,K$2,K$3,\"BMA\",CONFIGURATION!$B$1,\"bscr\",\"\",CONFIGURATION!$B$12,$K$12,C38,$L$12,D38,$P$12,F38,$Q$12,H38),\"emptyTuple\")","v":"emptyTuple"}]
[null,26,null,null,null,null,null,null,null,null,null,null,null,null,null,null,null,{"$f":"IF(OR(C39<>\"\",D39<>\"\",F39<>\"\",H39<>\"\"),XBRLMapTuple($K$11,K$2,K$3,\"BMA\",CONFIGURATION!$B$1,\"bscr\",\"\",CONFIGURATION!$B$12,$K$12,C39,$L$12,D39,$P$12,F39,$Q$12,H39),\"emptyTuple\")","v":"emptyTuple"}]
[null,27,null,null,null,null,null,null,null,null,null,null,null,null,null,null,null,{"$f":"IF(OR(C40<>\"\",D40<>\"\",F40<>\"\",H40<>\"\"),XBRLMapTuple($K$11,K$2,K$3,\"BMA\",CONFIGURATION!$B$1,\"bscr\",\"\",CONFIGURATION!$B$12,$K$12,C40,$L$12,D40,$P$12,F40,$Q$12,H40),\"emptyTuple\")","v":"emptyTuple"}]
[null,28,null,null,null,null,null,null,null,null,null,null,null,null,null,null,null,{"$f":"IF(OR(C41<>\"\",D41<>\"\",F41<>\"\",H41<>\"\"),XBRLMapTuple($K$11,K$2,K$3,\"BMA\",CONFIGURATION!$B$1,\"bscr\",\"\",CONFIGURATION!$B$12,$K$12,C41,$L$12,D41,$P$12,F41,$Q$12,H41),\"emptyTuple\")","v":"emptyTuple"}]
[null,29,null,null,null,null,null,null,null,null,null,null,null,null,null,null,null,{"$f":"IF(OR(C42<>\"\",D42<>\"\",F42<>\"\",H42<>\"\"),XBRLMapTuple($K$11,K$2,K$3,\"BMA\",CONFIGURATION!$B$1,\"bscr\",\"\",CONFIGURATION!$B$12,$K$12,C42,$L$12,D42,$P$12,F42,$Q$12,H42),\"emptyTuple\")","v":"emptyTuple"}]
[null,30,null,null,null,null,null,null,null,null,null,null,null,null,null,null,null,{"$f":"IF(OR(C43<>\"\",D43<>\"\",F43<>\"\",H43<>\"\"),XBRLMapTuple($K$11,K$2,K$3,\"BMA\",CONFIGURATION!$B$1,\"bscr\",\"\",CONFIGURATION!$B$12,$K$12,C43,$L$12,D43,$P$12,F43,$Q$12,H43),\"emptyTuple\")","v":"emptyTuple"}]
[null,31,null,null,null,null,null,null,null,null,null,null,null,null,null,null,null,{"$f":"IF(OR(C44<>\"\",D44<>\"\",F44<>\"\",H44<>\"\"),XBRLMapTuple($K$11,K$2,K$3,\"BMA\",CONFIGURATION!$B$1,\"bscr\",\"\",CONFIGURATION!$B$12,$K$12,C44,$L$12,D44,$P$12,F44,$Q$12,H44),\"emptyTuple\")","v":"emptyTuple"}]
[null,32,null,null,null,null,null,null,null,null,null,null,null,null,null,null,null,{"$f":"IF(OR(C45<>\"\",D45<>\"\",F45<>\"\",H45<>\"\"),XBRLMapTuple($K$11,K$2,K$3,\"BMA\",CONFIGURATION!$B$1,\"bscr\",\"\",CONFIGURATION!$B$12,$K$12,C45,$L$12,D45,$P$12,F45,$Q$12,H45),\"emptyTuple\")","v":"emptyTuple"}]
[null,33,null,null,null,null,null,null,null,null,null,null,null,null,null,null,null,{"$f":"IF(OR(C46<>\"\",D46<>\"\",F46<>\"\",H46<>\"\"),XBRLMapTuple($K$11,K$2,K$3,\"BMA\",CONFIGURATION!$B$1,\"bscr\",\"\",CONFIGURATION!$B$12,$K$12,C46,$L$12,D46,$P$12,F46,$Q$12,H46),\"emptyTuple\")","v":"emptyTuple"}]
[null,34,null,null,null,null,null,null,null,null,null,null,null,null,null,null,null,{"$f":"IF(OR(C47<>\"\",D47<>\"\",F47<>\"\",H47<>\"\"),XBRLMapTuple($K$11,K$2,K$3,\"BMA\",CONFIGURATION!$B$1,\"bscr\",\"\",CONFIGURATION!$B$12,$K$12,C47,$L$12,D47,$P$12,F47,$Q$12,H47),\"emptyTuple\")","v":"emptyTuple"}]
[null,35,null,null,null,null,null,null,null,null,null,null,null,null,null,null,null,{"$f":"IF(OR(C48<>\"\",D48<>\"\",F48<>\"\",H48<>\"\"),XBRLMapTuple($K$11,K$2,K$3,\"BMA\",CONFIGURATION!$B$1,\"bscr\",\"\",CONFIGURATION!$B$12,$K$12,C48,$L$12,D48,$P$12,F48,$Q$12,H48),\"emptyTuple\")","v":"emptyTuple"}]
[null,36,null,null,null,null,null,null,null,null,null,null,null,null,null,null,null,{"$f":"IF(OR(C49<>\"\",D49<>\"\",F49<>\"\",H49<>\"\"),XBRLMapTuple($K$11,K$2,K$3,\"BMA\",CONFIGURATION!$B$1,\"bscr\",\"\",CONFIGURATION!$B$12,$K$12,C49,$L$12,D49,$P$12,F49,$Q$12,H49),\"emptyTuple\")","v":"emptyTuple"}]
[null,37,null,null,null,null,null,null,null,null,null,null,null,null,null,null,null,{"$f":"IF(OR(C50<>\"\",D50<>\"\",F50<>\"\",H50<>\"\"),XBRLMapTuple($K$11,K$2,K$3,\"BMA\",CONFIGURATION!$B$1,\"bscr\",\"\",CONFIGURATION!$B$12,$K$12,C50,$L$12,D50,$P$12,F50,$Q$12,H50),\"emptyTuple\")","v":"emptyTuple"}]
[null,38,null,null,null,null,null,null,null,null,null,null,null,null,null,null,null,{"$f":"IF(OR(C51<>\"\",D51<>\"\",F51<>\"\",H51<>\"\"),XBRLMapTuple($K$11,K$2,K$3,\"BMA\",CONFIGURATION!$B$1,\"bscr\",\"\",CONFIGURATION!$B$12,$K$12,C51,$L$12,D51,$P$12,F51,$Q$12,H51),\"emptyTuple\")","v":"emptyTuple"}]
[null,39,null,null,null,null,null,null,null,null,null,null,null,null,null,null,null,{"$f":"IF(OR(C52<>\"\",D52<>\"\",F52<>\"\",H52<>\"\"),XBRLMapTuple($K$11,K$2,K$3,\"BMA\",CONFIGURATION!$B$1,\"bscr\",\"\",CONFIGURATION!$B$12,$K$12,C52,$L$12,D52,$P$12,F52,$Q$12,H52),\"emptyTuple\")","v":"emptyTuple"}]
[null,40,null,null,null,null,null,null,null,null,null,null,null,null,null,null,null,{"$f":"IF(OR(C53<>\"\",D53<>\"\",F53<>\"\",H53<>\"\"),XBRLMapTuple($K$11,K$2,K$3,\"BMA\",CONFIGURATION!$B$1,\"bscr\",\"\",CONFIGURATION!$B$12,$K$12,C53,$L$12,D53,$P$12,F53,$Q$12,H53),\"emptyTuple\")","v":"emptyTuple"}]
[null,null,"Total Cash and Cash Equivalent Counterparty Balance",null,null,{"$f":"SUM(F14:F53)","v":0},null,{"$f":"SUM(H14:H53)","v":0},null,null,null,null,null,null,null,{"$f":"XBRLMap(F54,P12,$K$2,$K$3,CONFIGURATION!$B$10,\"BMA\",CONFIGURATION!$B$1,\"bscr\",CONFIGURATION!$B$12)","v":"Mapped"},{"$f":"XBRLMap(H54,Q12,$K$2,$K$3,CONFIGURATION!$B$10,\"BMA\",CONFIGURATION!$B$1,\"bscr\",CONFIGURATION!$B$12)","v":"Mapped"}]
[]
[null,null,"Exposure by BSCR Rating"]
[null,null,"BSCR Rating 0 (Domestic Affiliates)",null,null,{"$f":"Import!E10993","v":0},null,{"$f":"Import!M10993","v":0},null,"brrt_RiskGradeAxis_brrt_BSCRRating0Member",null,null,null,null,null,{"$f":"XBRLMap(F57,$P$12&\".\"&J57,$K$2,$K$3,CONFIGURATION!$B$10,\"BMA\",CONFIGURATION!$B$1,\"bscr\",CONFIGURATION!$B$12)","v":"Mapped"},{"$f":"XBRLMap(H57,$Q$12&\".\"&J57,$K$2,$K$3,CONFIGURATION!$B$10,\"BMA\",CONFIGURATION!$B$1,\"bscr\",CONFIGURATION!$B$12)","v":"Mapped"}]
[null,null,"BSCR Rating 1",null,null,{"$f":"Import!E10994","v":0},null,{"$f":"Import!M10994","v":0},null,"brrt_RiskGradeAxis_brrt_BSCRRating1Member",null,null,null,null,null,{"$f":"XBRLMap(F58,$P$12&\".\"&J58,$K$2,$K$3,CONFIGURATION!$B$10,\"BMA\",CONFIGURATION!$B$1,\"bscr\",CONFIGURATION!$B$12)","v":"Mapped"},{"$f":"XBRLMap(H58,$Q$12&\".\"&J58,$K$2,$K$3,CONFIGURATION!$B$10,\"BMA\",CONFIGURATION!$B$1,\"bscr\",CONFIGURATION!$B$12)","v":"Mapped"}]
[null,null,"BSCR Rating 2",null,null,{"$f":"Import!E10995","v":0},null,{"$f":"Import!M10995","v":0},null,"brrt_RiskGradeAxis_brrt_BSCRRating2Member",null,null,null,null,null,{"$f":"XBRLMap(F59,$P$12&\".\"&J59,$K$2,$K$3,CONFIGURATION!$B$10,\"BMA\",CONFIGURATION!$B$1,\"bscr\",CONFIGURATION!$B$12)","v":"Mapped"},{"$f":"XBRLMap(H59,$Q$12&\".\"&J59,$K$2,$K$3,CONFIGURATION!$B$10,\"BMA\",CONFIGURATION!$B$1,\"bscr\",CONFIGURATION!$B$12)","v":"Mapped"}]
[null,null,"BSCR Rating 3",null,null,{"$f":"Import!E10996","v":0},null,{"$f":"Import!M10996","v":0},null,"brrt_RiskGradeAxis_brrt_BSCRRating3Member",null,null,null,null,null,{"$f":"XBRLMap(F60,$P$12&\".\"&J60,$K$2,$K$3,CONFIGURATION!$B$10,\"BMA\",CONFIGURATION!$B$1,\"bscr\",CONFIGURATION!$B$12)","v":"Mapped"},{"$f":"XBRLMap(H60,$Q$12&\".\"&J60,$K$2,$K$3,CONFIGURATION!$B$10,\"BMA\",CONFIGURATION!$B$1,\"bscr\",CONFIGURATION!$B$12)","v":"Mapped"}]
[null,null,"BSCR Rating 4",null,null,{"$f":"Import!E10997","v":0},null,{"$f":"Import!M10997","v":0},null,"brrt_RiskGradeAxis_brrt_BSCRRating4Member",null,null,null,null,null,{"$f":"XBRLMap(F61,$P$12&\".\"&J61,$K$2,$K$3,CONFIGURATION!$B$10,\"BMA\",CONFIGURATION!$B$1,\"bscr\",CONFIGURATION!$B$12)","v":"Mapped"},{"$f":"XBRLMap(H61,$Q$12&\".\"&J61,$K$2,$K$3,CONFIGURATION!$B$10,\"BMA\",CONFIGURATION!$B$1,\"bscr\",CONFIGURATION!$B$12)","v":"Mapped"}]
[null,null,"BSCR Rating 5",null,null,{"$f":"Import!E10998","v":0},null,{"$f":"Import!M10998","v":0},null,"brrt_RiskGradeAxis_brrt_BSCRRating5Member",null,null,null,null,null,{"$f":"XBRLMap(F62,$P$12&\".\"&J62,$K$2,$K$3,CONFIGURATION!$B$10,\"BMA\",CONFIGURATION!$B$1,\"bscr\",CONFIGURATION!$B$12)","v":"Mapped"},{"$f":"XBRLMap(H62,$Q$12&\".\"&J62,$K$2,$K$3,CONFIGURATION!$B$10,\"BMA\",CONFIGURATION!$B$1,\"bscr\",CONFIGURATION!$B$12)","v":"Mapped"}]
[null,null,"BSCR Rating 6",null,null,{"$f":"Import!E10999","v":0},null,{"$f":"Import!M10999","v":0},null,"brrt_RiskGradeAxis_brrt_BSCRRating6Member",null,null,null,null,null,{"$f":"XBRLMap(F63,$P$12&\".\"&J63,$K$2,$K$3,CONFIGURATION!$B$10,\"BMA\",CONFIGURATION!$B$1,\"bscr\",CONFIGURATION!$B$12)","v":"Mapped"},{"$f":"XBRLMap(H63,$Q$12&\".\"&J63,$K$2,$K$3,CONFIGURATION!$B$10,\"BMA\",CONFIGURATION!$B$1,\"bscr\",CONFIGURATION!$B$12)","v":"Mapped"}]
[null,null,"BSCR Rating 7",null,null,{"$f":"Import!E11000","v":0},null,{"$f":"Import!M11000","v":0},null,"brrt_RiskGradeAxis_brrt_BSCRRating7Member",null,null,null,null,null,{"$f":"XBRLMap(F64,$P$12&\".\"&J64,$K$2,$K$3,CONFIGURATION!$B$10,\"BMA\",CONFIGURATION!$B$1,\"bscr\",CONFIGURATION!$B$12)","v":"Mapped"},{"$f":"XBRLMap(H64,$Q$12&\".\"&J64,$K$2,$K$3,CONFIGURATION!$B$10,\"BMA\",CONFIGURATION!$B$1,\"bscr\",CONFIGURATION!$B$12)","v":"Mapped"}]
[null,null,"BSCR Rating 8",null,null,{"$f":"Import!E11001","v":0},null,{"$f":"Import!M11001","v":0},null,"brrt_RiskGradeAxis_brrt_BSCRRating8Member",null,null,null,null,null,{"$f":"XBRLMap(F65,$P$12&\".\"&J65,$K$2,$K$3,CONFIGURATION!$B$10,\"BMA\",CONFIGURATION!$B$1,\"bscr\",CONFIGURATION!$B$12)","v":"Mapped"},{"$f":"XBRLMap(H65,$Q$12&\".\"&J65,$K$2,$K$3,CONFIGURATION!$B$10,\"BMA\",CONFIGURATION!$B$1,\"bscr\",CONFIGURATION!$B$12)","v":"Mapped"}]
[null,null,"Total Exposure By BSCR Rating",null,null,{"$f":"SUM(F57:F65)","v":0},null,{"$f":"SUM(H57:H65)","v":0},null,"brrt_RiskGradeAxis_brrt_TotalMember",null,null,null,null,null,{"$f":"XBRLMap(F66,$P$12&\".\"&J66,$K$2,$K$3,CONFIGURATION!$B$10,\"BMA\",CONFIGURATION!$B$1,\"bscr\",CONFIGURATION!$B$12)","v":"Mapped"},{"$f":"XBRLMap(H66,$Q$12&\".\"&J66,$K$2,$K$3,CONFIGURATION!$B$10,\"BMA\",CONFIGURATION!$B$1,\"bscr\",CONFIGURATION!$B$12)","v":"Mapped"}]
[null,null,null,null,null,null,null,null,null,null,null,null,"brrt_SingleConsolidatedExposureReinsuranceRecoverable","brrt_SingleConsolidatedExposureReinsurancePayable","brrt_SingleConsolidatedExposureReinsuranceCollateral","brrt_SingleConsolidatedExposureReinsuranceQualifyingCollateral","brrt_SingleConsolidatedExposureReinsuranceNetQualifyingExposure"]
[null,null,"Single Consolidated Exposure",null,null,{"$f":"'Form 1SFS'!E12+'Form 1SFS'!I12+'Schedule IIA'!D68-F54-F66","v":0},null,{"$f":"'Form 1EBS'!F10+'Schedule IIA (EBS)'!D68-H54-H66","v":0},null,null,null,null,null,null,null,{"$f":"XBRLMap(F68,P67,$K$2,$K$3,CONFIGURATION!$B$10,\"BMA\",CONFIGURATION!$B$1,\"bscr\",CONFIGURATION!$B$12)","v":"Mapped"},{"$f":"XBRLMap(H68,Q67,$K$2,$K$3,CONFIGURATION!$B$10,\"BMA\",CONFIGURATION!$B$1,\"bscr\",CONFIGURATION!$B$12)","v":"Mapped"}]
[]
[null,null,"Total Cash and Cash Equivalent Balance",null,null,{"$f":"F54+F66+F68","v":0},null,{"$f":"H54+H66+H68","v":0}]
[]
[null,null,"Cash and Cash Equivalent Check",null,null,{"$f":"'Form 1SFS'!E12+'Form 1SFS'!I12+'Schedule IIA'!D68","v":0},null,{"$f":"'Form 1EBS'!F10+'Schedule IIA (EBS)'!D68","v":0}]
[null,null,null,null,null,null,null,null,null,"brrt_AdjustedBalanceSheetReinsuranceAssets"]
[null,null,null,null,null,{"$f":"IF(F75=\"TRUE\",HYPERLINK(\"#'Form 1SFS'!E12:M12\",\"TRUE\"),HYPERLINK(\"#'Form 1SFS'!E12:M12\",\"FALSE\"))","v":"TRUE"},null,{"$f":"IF(H75=\"TRUE\",HYPERLINK(\"#'Form 1EBS'!F10\",\"TRUE\"),HYPERLINK(\"#'Form 1EBS'!F10\",\"FALSE\"))","v":"TRUE"}]
[null,null,null,null,null,{"$f":"IF(ROUND((F70-F72),0)=0,\"True\",\"False\")","v":"True"},null,{"$f":"IF(ROUND((H70-H72),0)=0,\"True\",\"False\")","v":"True"}]
[null,null,"Difference",null,null,{"$f":"ROUND(F70-F72,0)","v":0},null,{"$f":"ROUND(H70-H72,0)","v":0}]
[]
[null,null,null,null,null,{"$f":"IF(F74=\"False\",\"Does not equal Form 1SFS Line 1 & Sch IIA Line 27\",\"\")","v":""},null,{"$f":"IF(H74=\"False\",\"Does not equal Form 1EBS Line 1 & Sch IIA EBS Line 27\",\"\")","v":""}]
[]
[null,null,"Cash and Cash Equivalents Counterparty Balance by BSCR Rating"]
[]
[null,null,"Select",null,null,null,null,"Cash and Cash Equivalent Exposure"]
[null,null,"BSCR Rating 0 (Domestic Affiliates)",null,null,null,null,{"$f":"SUMPRODUCT(H$14:H$53,($D$14:$D$53=C83)*1)+H57","v":0}]
[null,null,"BSCR Rating 1",null,null,null,null,0]
[null,null,"BSCR Rating 2",null,null,null,null,0]
[null,null,"BSCR Rating 3",null,null,null,null,0]
[null,null,"BSCR Rating 4",null,null,null,null,0]
[null,null,"BSCR Rating 5",null,null,null,null,0]
[null,null,"BSCR Rating 6",null,null,null,null,0]
[null,null,"BSCR Rating 7",null,null,null,null,0]
[null,null,"BSCR Rating 8",null,null,null,null,{"$f":"SUMPRODUCT(H$14:H$53,($D$14:$D$53=C91)*1)+H65+H68","v":0}]
[null,null,"Total",null,null,null,null,{"$f":"SUM(H83:H91)","v":0}]
[]
[]
[null,null,"Diversification Adjustment Calculation On an Exposure Basis"]
[]
[null,null,"Maximum Cash and Cash Equivalent Counterparty Balance On a Single Exposure Basis",null,null,null,null,{"$f":"MAX(H14:H53)","v":0}]
[null,null,"Total Cash and Cash Equivalent Counterparty Balance",null,null,null,null,{"$f":"+H72","v":0}]
[null,null,"Percentage",null,null,null,null,{"$f":"IF(H98=0,0,H97/H98)","v":0}]
[null,null,"Diversification Adjustment up to 40%",null,null,null,null,{"$f":"IF(H97=0,0,(1-H99)*40%)","v":0}]

{"sheet":"Schedule XIXA","index":88,"n_rows":98,"n_cols":16,"rows_kept":98,"cut":false,"hidden":false,"merged":[[85,2,85,3],[86,2,86,3],[87,2,87,3],[88,2,88,3],[77,2,78,5],[80,2,80,3],[81,2,81,3],[82,2,82,3],[83,2,83,3],[84,2,84,3],[64,2,64,3],[0,2,0,3],[7,2,7,5],[56,2,56,3],[57,2,57,3],[58,2,58,3],[59,2,59,3],[60,2,60,3],[61,2,61,3],[62,2,62,3],[63,2,63,3]]}
[null,null,"SCHEDULE OF RISK MANAGEMENT -  CASH AND CASH EQUIVALENTS COUNTERPARTY ANALYSIS",null,null,{"$f":"HYPERLINK(\"#'Index'!A1\",\"Return to Index\")","v":"Return to Index"}]
[null,null,{"$f":"+'Company Information'!C7","v":"Enter Company Name"},null,null,null,null,null,{"$f":"IF(C3=\"\",\"\",TEXT(DATE(YEAR(C3+1)-1,MONTH(C3+1),DAY(C3+1)),\"mm/dd/yyyy\"))","v":"01/01/2019"}]
[null,null,{"$f":"+'Company Information'!C3","v":"2019-12-31"},null,null,null,null,null,{"$f":"IF(C3=\"\",\"\",TEXT(C3,\"mm/dd/yyyy\"))","v":"12/31/2019"}]
[null,null,{"$f":"+'Form 1EBS'!B4","v":"expressed in ['000s]"},null,null,"SCHEDULE XIXA"]
[]
[null,null,"Cash and cash equivalent countparty balances"]
[]
[null,null,"Enter at Least the 10 Largest Balances for Cash and Cash Equivalents with the Remaining Balances Grouped According to BSCR Ratings and/or a Single Consolidated Cash Balance"]
[]
[null,null,"Enter Number of Balances",{"$f":"Import!M13633","v":0},null,"EBS Valuation"]
[null,null,null,null,null,null,null,null,"brrt_ExposureByReinsurer"]
[null,null,"Cash and Cash Equivalent Counterparty Balance",null,null,"(A)",null,null,"brrt_ParticularsOfCededReinsuranceNameOfReinsurer","brrt_ParticularsOfCededReinsuranceBSCRRating","brrt_ParticularsOfCededReinsuranceReinsuranceRecoverable","brrt_ParticularsOfCededReinsuranceReinsurancePayable","brrt_ParticularsOfCededReinsuranceCollateral","brrt_ParticularsOfCededReinsuranceQualifyingCollateral","brrt_ParticularsOfCededReinsuranceNetQualifyingExposure"]
[null,null,"Name of Cash and Cash Equivalent Counterparty Balance","BSCR Rating",null,"Cash and Cash Equivalent Balance\n(Form 1EBS Line 1 & Schedule IIB-IIF Line 58)"]
[null,1,{"$f":"Import!M13634","v":0},{"$f":"Import!M13654","v":"Select"},null,{"$f":"Import!M13674","v":0},null,null,null,null,null,null,null,null,null,{"$f":"IF(OR(C14<>\"\",D14<>\"\",#REF!<>\"\",#REF!<>\"\",#REF!<>\"\"),XBRLMapTuple($I$11,I$2,I$3,\"BMA\",CONFIGURATION!$B$1,\"bscr\",\"\",CONFIGURATION!$B$12,$I$12,C14,$J$12,D14,$K$12,#REF!,$L$12,#REF!,$M$12,#REF!,$N$12,#REF!,$O$12,F14),\"emptyTuple\")","v":{"$error":"#REF!"}}]
[null,2,{"$f":"Import!M13635","v":0},{"$f":"Import!M13655","v":"Select"},null,{"$f":"Import!M13675","v":0},null,null,null,null,null,null,null,null,null,{"$f":"IF(OR(C15<>\"\",D15<>\"\",#REF!<>\"\",#REF!<>\"\",#REF!<>\"\"),XBRLMapTuple($I$11,I$2,I$3,\"BMA\",CONFIGURATION!$B$1,\"bscr\",\"\",CONFIGURATION!$B$12,$I$12,C15,$J$12,D15,$K$12,#REF!,$L$12,#REF!,$M$12,#REF!,$N$12,#REF!,$O$12,F15),\"emptyTuple\")","v":{"$error":"#REF!"}}]
[null,3,{"$f":"Import!M13636","v":0},{"$f":"Import!M13656","v":"Select"},null,{"$f":"Import!M13676","v":0},null,null,null,null,null,null,null,null,null,{"$f":"IF(OR(C16<>\"\",D16<>\"\",#REF!<>\"\",#REF!<>\"\",#REF!<>\"\"),XBRLMapTuple($I$11,I$2,I$3,\"BMA\",CONFIGURATION!$B$1,\"bscr\",\"\",CONFIGURATION!$B$12,$I$12,C16,$J$12,D16,$K$12,#REF!,$L$12,#REF!,$M$12,#REF!,$N$12,#REF!,$O$12,F16),\"emptyTuple\")","v":{"$error":"#REF!"}}]
[null,4,{"$f":"Import!M13637","v":0},{"$f":"Import!M13657","v":"Select"},null,{"$f":"Import!M13677","v":0},null,null,null,null,null,null,null,null,null,{"$f":"IF(OR(C17<>\"\",D17<>\"\",#REF!<>\"\",#REF!<>\"\",#REF!<>\"\"),XBRLMapTuple($I$11,I$2,I$3,\"BMA\",CONFIGURATION!$B$1,\"bscr\",\"\",CONFIGURATION!$B$12,$I$12,C17,$J$12,D17,$K$12,#REF!,$L$12,#REF!,$M$12,#REF!,$N$12,#REF!,$O$12,F17),\"emptyTuple\")","v":{"$error":"#REF!"}}]
[null,5,{"$f":"Import!M13638","v":0},{"$f":"Import!M13658","v":"Select"},null,{"$f":"Import!M13678","v":0},null,null,null,null,null,null,null,null,null,{"$f":"IF(OR(C18<>\"\",D18<>\"\",#REF!<>\"\",#REF!<>\"\",#REF!<>\"\"),XBRLMapTuple($I$11,I$2,I$3,\"BMA\",CONFIGURATION!$B$1,\"bscr\",\"\",CONFIGURATION!$B$12,$I$12,C18,$J$12,D18,$K$12,#REF!,$L$12,#REF!,$M$12,#REF!,$N$12,#REF!,$O$12,F18),\"emptyTuple\")","v":{"$error":"#REF!"}}]
[null,6,{"$f":"Import!M13639","v":0},{"$f":"Import!M13659","v":"Select"},null,{"$f":"Import!M13679","v":0},null,null,null,null,null,null,null,null,null,{"$f":"IF(OR(C19<>\"\",D19<>\"\",#REF!<>\"\",#REF!<>\"\",#REF!<>\"\"),XBRLMapTuple($I$11,I$2,I$3,\"BMA\",CONFIGURATION!$B$1,\"bscr\",\"\",CONFIGURATION!$B$12,$I$12,C19,$J$12,D19,$K$12,#REF!,$L$12,#REF!,$M$12,#REF!,$N$12,#REF!,$O$12,F19),\"emptyTuple\")","v":{"$error":"#REF!"}}]
[null,7,{"$f":"Import!M13640","v":0},{"$f":"Import!M13660","v":"Select"},null,{"$f":"Import!M13680","v":0},null,null,null,null,null,null,null,null,null,{"$f":"IF(OR(C20<>\"\",D20<>\"\",#REF!<>\"\",#REF!<>\"\",#REF!<>\"\"),XBRLMapTuple($I$11,I$2,I$3,\"BMA\",CONFIGURATION!$B$1,\"bscr\",\"\",CONFIGURATION!$B$12,$I$12,C20,$J$12,D20,$K$12,#REF!,$L$12,#REF!,$M$12,#REF!,$N$12,#REF!,$O$12,F20),\"emptyTuple\")","v":{"$error":"#REF!"}}]
[null,8,{"$f":"Import!M13641","v":0},{"$f":"Import!M13661","v":"Select"},null,{"$f":"Import!M13681","v":0},null,null,null,null,null,null,null,null,null,{"$f":"IF(OR(C21<>\"\",D21<>\"\",#REF!<>\"\",#REF!<>\"\",#REF!<>\"\"),XBRLMapTuple($I$11,I$2,I$3,\"BMA\",CONFIGURATION!$B$1,\"bscr\",\"\",CONFIGURATION!$B$12,$I$12,C21,$J$12,D21,$K$12,#REF!,$L$12,#REF!,$M$12,#REF!,$N$12,#REF!,$O$12,F21),\"emptyTuple\")","v":{"$error":"#REF!"}}]
[null,9,{"$f":"Import!M13642","v":0},{"$f":"Import!M13662","v":"Select"},null,{"$f":"Import!M13682","v":0},null,null,null,null,null,null,null,null,null,{"$f":"IF(OR(C22<>\"\",D22<>\"\",#REF!<>\"\",#REF!<>\"\",#REF!<>\"\"),XBRLMapTuple($I$11,I$2,I$3,\"BMA\",CONFIGURATION!$B$1,\"bscr\",\"\",CONFIGURATION!$B$12,$I$12,C22,$J$12,D22,$K$12,#REF!,$L$12,#REF!,$M$12,#REF!,$N$12,#REF!,$O$12,F22),\"emptyTuple\")","v":{"$error":"#REF!"}}]
[null,10,{"$f":"Import!M13643","v":0},{"$f":"Import!M13663","v":"Select"},null,{"$f":"Import!M13683","v":0},null,null,null,null,null,null,null,null,null,{"$f":"IF(OR(C23<>\"\",D23<>\"\",#REF!<>\"\",#REF!<>\"\",#REF!<>\"\"),XBRLMapTuple($I$11,I$2,I$3,\"BMA\",CONFIGURATION!$B$1,\"bscr\",\"\",CONFIGURATION!$B$12,$I$12,C23,$J$12,D23,$K$12,#REF!,$L$12,#REF!,$M$12,#REF!,$N$12,#REF!,$O$12,F23),\"emptyTuple\")","v":{"$error":"#REF!"}}]
[null,11,{"$f":"Import!M13644","v":0},{"$f":"Import!M13664","v":"Select"},null,{"$f":"Import!M13684","v":0},null,null,null,null,null,null,null,null,null,{"$f":"IF(OR(C24<>\"\",D24<>\"\",#REF!<>\"\",#REF!<>\"\",#REF!<>\"\"),XBRLMapTuple($I$11,I$2,I$3,\"BMA\",CONFIGURATION!$B$1,\"bscr\",\"\",CONFIGURATION!$B$12,$I$12,C24,$J$12,D24,$K$12,#REF!,$L$12,#REF!,$M$12,#REF!,$N$12,#REF!,$O$12,F24),\"emptyTuple\")","v":{"$error":"#REF!"}}]
[null,12,{"$f":"Import!M13645","v":0},{"$f":"Import!M13665","v":"Select"},null,{"$f":"Import!M13685","v":0},null,null,null,null,null,null,null,null,null,{"$f":"IF(OR(C25<>\"\",D25<>\"\",#REF!<>\"\",#REF!<>\"\",#REF!<>\"\"),XBRLMapTuple($I$11,I$2,I$3,\"BMA\",CONFIGURATION!$B$1,\"bscr\",\"\",CONFIGURATION!$B$12,$I$12,C25,$J$12,D25,$K$12,#REF!,$L$12,#REF!,$M$12,#REF!,$N$12,#REF!,$O$12,F25),\"emptyTuple\")","v":{"$error":"#REF!"}}]
[null,13,{"$f":"Import!M13646","v":0},{"$f":"Import!M13666","v":"Select"},null,{"$f":"Import!M13686","v":0},null,null,null,null,null,null,null,null,null,{"$f":"IF(OR(C26<>\"\",D26<>\"\",#REF!<>\"\",#REF!<>\"\",#REF!<>\"\"),XBRLMapTuple($I$11,I$2,I$3,\"BMA\",CONFIGURATION!$B$1,\"bscr\",\"\",CONFIGURATION!$B$12,$I$12,C26,$J$12,D26,$K$12,#REF!,$L$12,#REF!,$M$12,#REF!,$N$12,#REF!,$O$12,F26),\"emptyTuple\")","v":{"$error":"#REF!"}}]
[null,14,{"$f":"Import!M13647","v":0},{"$f":"Import!M13667","v":"Select"},null,{"$f":"Import!M13687","v":0},null,null,null,null,null,null,null,null,null,{"$f":"IF(OR(C27<>\"\",D27<>\"\",#REF!<>\"\",#REF!<>\"\",#REF!<>\"\"),XBRLMapTuple($I$11,I$2,I$3,\"BMA\",CONFIGURATION!$B$1,\"bscr\",\"\",CONFIGURATION!$B$12,$I$12,C27,$J$12,D27,$K$12,#REF!,$L$12,#REF!,$M$12,#REF!,$N$12,#REF!,$O$12,F27),\"emptyTuple\")","v":{"$error":"#REF!"}}]
[null,15,{"$f":"Import!M13648","v":0},{"$f":"Import!M13668","v":"Select"},null,{"$f":"Import!M13688","v":0},null,null,null,null,null,null,null,null,null,{"$f":"IF(OR(C28<>\"\",D28<>\"\",#REF!<>\"\",#REF!<>\"\",#REF!<>\"\"),XBRLMapTuple($I$11,I$2,I$3,\"BMA\",CONFIGURATION!$B$1,\"bscr\",\"\",CONFIGURATION!$B$12,$I$12,C28,$J$12,D28,$K$12,#REF!,$L$12,#REF!,$M$12,#REF!,$N$12,#REF!,$O$12,F28),\"emptyTuple\")","v":{"$error":"#REF!"}}]
[null,16,{"$f":"Import!M13649","v":0},{"$f":"Import!M13669","v":"Select"},null,{"$f":"Import!M13689","v":0},null,null,null,null,null,null,null,null,null,{"$f":"IF(OR(C29<>\"\",D29<>\"\",#REF!<>\"\",#REF!<>\"\",#REF!<>\"\"),XBRLMapTuple($I$11,I$2,I$3,\"BMA\",CONFIGURATION!$B$1,\"bscr\",\"\",CONFIGURATION!$B$12,$I$12,C29,$J$12,D29,$K$12,#REF!,$L$12,#REF!,$M$12,#REF!,$N$12,#REF!,$O$12,F29),\"emptyTuple\")","v":{"$error":"#REF!"}}]
[null,17,{"$f":"Import!M13650","v":0},{"$f":"Import!M13670","v":"Select"},null,{"$f":"Import!M13690","v":0},null,null,null,null,null,null,null,null,null,{"$f":"IF(OR(C30<>\"\",D30<>\"\",#REF!<>\"\",#REF!<>\"\",#REF!<>\"\"),XBRLMapTuple($I$11,I$2,I$3,\"BMA\",CONFIGURATION!$B$1,\"bscr\",\"\",CONFIGURATION!$B$12,$I$12,C30,$J$12,D30,$K$12,#REF!,$L$12,#REF!,$M$12,#REF!,$N$12,#REF!,$O$12,F30),\"emptyTuple\")","v":{"$error":"#REF!"}}]
[null,18,{"$f":"Import!M13651","v":0},{"$f":"Import!M13671","v":"Select"},null,{"$f":"Import!M13691","v":0},null,null,null,null,null,null,null,null,null,{"$f":"IF(OR(C31<>\"\",D31<>\"\",#REF!<>\"\",#REF!<>\"\",#REF!<>\"\"),XBRLMapTuple($I$11,I$2,I$3,\"BMA\",CONFIGURATION!$B$1,\"bscr\",\"\",CONFIGURATION!$B$12,$I$12,C31,$J$12,D31,$K$12,#REF!,$L$12,#REF!,$M$12,#REF!,$N$12,#REF!,$O$12,F31),\"emptyTuple\")","v":{"$error":"#REF!"}}]
[null,19,{"$f":"Import!M13652","v":0},{"$f":"Import!M13672","v":"Select"},null,{"$f":"Import!M13692","v":0},null,null,null,null,null,null,null,null,null,{"$f":"IF(OR(C32<>\"\",D32<>\"\",#REF!<>\"\",#REF!<>\"\",#REF!<>\"\"),XBRLMapTuple($I$11,I$2,I$3,\"BMA\",CONFIGURATION!$B$1,\"bscr\",\"\",CONFIGURATION!$B$12,$I$12,C32,$J$12,D32,$K$12,#REF!,$L$12,#REF!,$M$12,#REF!,$N$12,#REF!,$O$12,F32),\"emptyTuple\")","v":{"$error":"#REF!"}}]
[null,20,{"$f":"Import!M13653","v":0},{"$f":"Import!M13673","v":"Select"},null,{"$f":"Import!M13693","v":0},null,null,null,null,null,null,null,null,null,{"$f":"IF(OR(C33<>\"\",D33<>\"\",#REF!<>\"\",#REF!<>\"\",#REF!<>\"\"),XBRLMapTuple($I$11,I$2,I$3,\"BMA\",CONFIGURATION!$B$1,\"bscr\",\"\",CONFIGURATION!$B$12,$I$12,C33,$J$12,D33,$K$12,#REF!,$L$12,#REF!,$M$12,#REF!,$N$12,#REF!,$O$12,F33),\"emptyTuple\")","v":{"$error":"#REF!"}}]
[null,21,null,null,null,null,null,null,null,null,null,null,null,null,null,{"$f":"IF(OR(C34<>\"\",D34<>\"\",#REF!<>\"\",#REF!<>\"\",#REF!<>\"\"),XBRLMapTuple($I$11,I$2,I$3,\"BMA\",CONFIGURATION!$B$1,\"bscr\",\"\",CONFIGURATION!$B$12,$I$12,C34,$J$12,D34,$K$12,#REF!,$L$12,#REF!,$M$12,#REF!,$N$12,#REF!,$O$12,F34),\"emptyTuple\")","v":{"$error":"#REF!"}}]
[null,22,null,null,null,null,null,null,null,null,null,null,null,null,null,{"$f":"IF(OR(C35<>\"\",D35<>\"\",#REF!<>\"\",#REF!<>\"\",#REF!<>\"\"),XBRLMapTuple($I$11,I$2,I$3,\"BMA\",CONFIGURATION!$B$1,\"bscr\",\"\",CONFIGURATION!$B$12,$I$12,C35,$J$12,D35,$K$12,#REF!,$L$12,#REF!,$M$12,#REF!,$N$12,#REF!,$O$12,F35),\"emptyTuple\")","v":{"$error":"#REF!"}}]
[null,23,null,null,null,null,null,null,null,null,null,null,null,null,null,{"$f":"IF(OR(C36<>\"\",D36<>\"\",#REF!<>\"\",#REF!<>\"\",#REF!<>\"\"),XBRLMapTuple($I$11,I$2,I$3,\"BMA\",CONFIGURATION!$B$1,\"bscr\",\"\",CONFIGURATION!$B$12,$I$12,C36,$J$12,D36,$K$12,#REF!,$L$12,#REF!,$M$12,#REF!,$N$12,#REF!,$O$12,F36),\"emptyTuple\")","v":{"$error":"#REF!"}}]
[null,24,null,null,null,null,null,null,null,null,null,null,null,null,null,{"$f":"IF(OR(C37<>\"\",D37<>\"\",#REF!<>\"\",#REF!<>\"\",#REF!<>\"\"),XBRLMapTuple($I$11,I$2,I$3,\"BMA\",CONFIGURATION!$B$1,\"bscr\",\"\",CONFIGURATION!$B$12,$I$12,C37,$J$12,D37,$K$12,#REF!,$L$12,#REF!,$M$12,#REF!,$N$12,#REF!,$O$12,F37),\"emptyTuple\")","v":{"$error":"#REF!"}}]
[null,25,null,null,null,null,null,null,null,null,null,null,null,null,null,{"$f":"IF(OR(C38<>\"\",D38<>\"\",#REF!<>\"\",#REF!<>\"\",#REF!<>\"\"),XBRLMapTuple($I$11,I$2,I$3,\"BMA\",CONFIGURATION!$B$1,\"bscr\",\"\",CONFIGURATION!$B$12,$I$12,C38,$J$12,D38,$K$12,#REF!,$L$12,#REF!,$M$12,#REF!,$N$12,#REF!,$O$12,F38),\"emptyTuple\")","v":{"$error":"#REF!"}}]
[null,26,null,null,null,null,null,null,null,null,null,null,null,null,null,{"$f":"IF(OR(C39<>\"\",D39<>\"\",#REF!<>\"\",#REF!<>\"\",#REF!<>\"\"),XBRLMapTuple($I$11,I$2,I$3,\"BMA\",CONFIGURATION!$B$1,\"bscr\",\"\",CONFIGURATION!$B$12,$I$12,C39,$J$12,D39,$K$12,#REF!,$L$12,#REF!,$M$12,#REF!,$N$12,#REF!,$O$12,F39),\"emptyTuple\")","v":{"$error":"#REF!"}}]
[null,27,null,null,null,null,null,null,null,null,null,null,null,null,null,{"$f":"IF(OR(C40<>\"\",D40<>\"\",#REF!<>\"\",#REF!<>\"\",#REF!<>\"\"),XBRLMapTuple($I$11,I$2,I$3,\"BMA\",CONFIGURATION!$B$1,\"bscr\",\"\",CONFIGURATION!$B$12,$I$12,C40,$J$12,D40,$K$12,#REF!,$L$12,#REF!,$M$12,#REF!,$N$12,#REF!,$O$12,F40),\"emptyTuple\")","v":{"$error":"#REF!"}}]
[null,28,null,null,null,null,null,null,null,null,null,null,null,null,null,{"$f":"IF(OR(C41<>\"\",D41<>\"\",#REF!<>\"\",#REF!<>\"\",#REF!<>\"\"),XBRLMapTuple($I$11,I$2,I$3,\"BMA\",CONFIGURATION!$B$1,\"bscr\",\"\",CONFIGURATION!$B$12,$I$12,C41,$J$12,D41,$K$12,#REF!,$L$12,#REF!,$M$12,#REF!,$N$12,#REF!,$O$12,F41),\"emptyTuple\")","v":{"$error":"#REF!"}}]
[null,29,null,null,null,null,null,null,null,null,null,null,null,null,null,{"$f":"IF(OR(C42<>\"\",D42<>\"\",#REF!<>\"\",#REF!<>\"\",#REF!<>\"\"),XBRLMapTuple($I$11,I$2,I$3,\"BMA\",CONFIGURATION!$B$1,\"bscr\",\"\",CONFIGURATION!$B$12,$I$12,C42,$J$12,D42,$K$12,#REF!,$L$12,#REF!,$M$12,#REF!,$N$12,#REF!,$O$12,F42),\"emptyTuple\")","v":{"$error":"#REF!"}}]
[null,30,null,null,null,null,null,null,null,null,null,null,null,null,null,{"$f":"IF(OR(C43<>\"\",D43<>\"\",#REF!<>\"\",#REF!<>\"\",#REF!<>\"\"),XBRLMapTuple($I$11,I$2,I$3,\"BMA\",CONFIGURATION!$B$1,\"bscr\",\"\",CONFIGURATION!$B$12,$I$12,C43,$J$12,D43,$K$12,#REF!,$L$12,#REF!,$M$12,#REF!,$N$12,#REF!,$O$12,F43),\"emptyTuple\")","v":{"$error":"#REF!"}}]
[null,31,null,null,null,null,null,null,null,null,null,null,null,null,null,{"$f":"IF(OR(C44<>\"\",D44<>\"\",#REF!<>\"\",#REF!<>\"\",#REF!<>\"\"),XBRLMapTuple($I$11,I$2,I$3,\"BMA\",CONFIGURATION!$B$1,\"bscr\",\"\",CONFIGURATION!$B$12,$I$12,C44,$J$12,D44,$K$12,#REF!,$L$12,#REF!,$M$12,#REF!,$N$12,#REF!,$O$12,F44),\"emptyTuple\")","v":{"$error":"#REF!"}}]
[null,32,null,null,null,null,null,null,null,null,null,null,null,null,null,{"$f":"IF(OR(C45<>\"\",D45<>\"\",#REF!<>\"\",#REF!<>\"\",#REF!<>\"\"),XBRLMapTuple($I$11,I$2,I$3,\"BMA\",CONFIGURATION!$B$1,\"bscr\",\"\",CONFIGURATION!$B$12,$I$12,C45,$J$12,D45,$K$12,#REF!,$L$12,#REF!,$M$12,#REF!,$N$12,#REF!,$O$12,F45),\"emptyTuple\")","v":{"$error":"#REF!"}}]
[null,33,null,null,null,null,null,null,null,null,null,null,null,null,null,{"$f":"IF(OR(C46<>\"\",D46<>\"\",#REF!<>\"\",#REF!<>\"\",#REF!<>\"\"),XBRLMapTuple($I$11,I$2,I$3,\"BMA\",CONFIGURATION!$B$1,\"bscr\",\"\",CONFIGURATION!$B$12,$I$12,C46,$J$12,D46,$K$12,#REF!,$L$12,#REF!,$M$12,#REF!,$N$12,#REF!,$O$12,F46),\"emptyTuple\")","v":{"$error":"#REF!"}}]
[null,34,null,null,null,null,null,null,null,null,null,null,null,null,null,{"$f":"IF(OR(C47<>\"\",D47<>\"\",#REF!<>\"\",#REF!<>\"\",#REF!<>\"\"),XBRLMapTuple($I$11,I$2,I$3,\"BMA\",CONFIGURATION!$B$1,\"bscr\",\"\",CONFIGURATION!$B$12,$I$12,C47,$J$12,D47,$K$12,#REF!,$L$12,#REF!,$M$12,#REF!,$N$12,#REF!,$O$12,F47),\"emptyTuple\")","v":{"$error":"#REF!"}}]
[null,35,null,null,null,null,null,null,null,null,null,null,null,null,null,{"$f":"IF(OR(C48<>\"\",D48<>\"\",#REF!<>\"\",#REF!<>\"\",#REF!<>\"\"),XBRLMapTuple($I$11,I$2,I$3,\"BMA\",CONFIGURATION!$B$1,\"bscr\",\"\",CONFIGURATION!$B$12,$I$12,C48,$J$12,D48,$K$12,#REF!,$L$12,#REF!,$M$12,#REF!,$N$12,#REF!,$O$12,F48),\"emptyTuple\")","v":{"$error":"#REF!"}}]
[null,36,null,null,null,null,null,null,null,null,null,null,null,null,null,{"$f":"IF(OR(C49<>\"\",D49<>\"\",#REF!<>\"\",#REF!<>\"\",#REF!<>\"\"),XBRLMapTuple($I$11,I$2,I$3,\"BMA\",CONFIGURATION!$B$1,\"bscr\",\"\",CONFIGURATION!$B$12,$I$12,C49,$J$12,D49,$K$12,#REF!,$L$12,#REF!,$M$12,#REF!,$N$12,#REF!,$O$12,F49),\"emptyTuple\")","v":{"$error":"#REF!"}}]
[null,37,null,null,null,null,null,null,null,null,null,null,null,null,null,{"$f":"IF(OR(C50<>\"\",D50<>\"\",#REF!<>\"\",#REF!<>\"\",#REF!<>\"\"),XBRLMapTuple($I$11,I$2,I$3,\"BMA\",CONFIGURATION!$B$1,\"bscr\",\"\",CONFIGURATION!$B$12,$I$12,C50,$J$12,D50,$K$12,#REF!,$L$12,#REF!,$M$12,#REF!,$N$12,#REF!,$O$12,F50),\"emptyTuple\")","v":{"$error":"#REF!"}}]
[null,38,null,null,null,null,null,null,null,null,null,null,null,null,null,{"$f":"IF(OR(C51<>\"\",D51<>\"\",#REF!<>\"\",#REF!<>\"\",#REF!<>\"\"),XBRLMapTuple($I$11,I$2,I$3,\"BMA\",CONFIGURATION!$B$1,\"bscr\",\"\",CONFIGURATION!$B$12,$I$12,C51,$J$12,D51,$K$12,#REF!,$L$12,#REF!,$M$12,#REF!,$N$12,#REF!,$O$12,F51),\"emptyTuple\")","v":{"$error":"#REF!"}}]
[null,39,null,null,null,null,null,null,null,null,null,null,null,null,null,{"$f":"IF(OR(C52<>\"\",D52<>\"\",#REF!<>\"\",#REF!<>\"\",#REF!<>\"\"),XBRLMapTuple($I$11,I$2,I$3,\"BMA\",CONFIGURATION!$B$1,\"bscr\",\"\",CONFIGURATION!$B$12,$I$12,C52,$J$12,D52,$K$12,#REF!,$L$12,#REF!,$M$12,#REF!,$N$12,#REF!,$O$12,F52),\"emptyTuple\")","v":{"$error":"#REF!"}}]
[null,40,null,null,null,null,null,null,null,null,null,null,null,null,null,{"$f":"IF(OR(C53<>\"\",D53<>\"\",#REF!<>\"\",#REF!<>\"\",#REF!<>\"\"),XBRLMapTuple($I$11,I$2,I$3,\"BMA\",CONFIGURATION!$B$1,\"bscr\",\"\",CONFIGURATION!$B$12,$I$12,C53,$J$12,D53,$K$12,#REF!,$L$12,#REF!,$M$12,#REF!,$N$12,#REF!,$O$12,F53),\"emptyTuple\")","v":{"$error":"#REF!"}}]
[null,null,"Total Cash and Cash Equivalent Counterparty Balance",null,null,{"$f":"SUM(F14:F53)","v":0},null,null,null,null,{"$f":"XBRLMap(#REF!,K12,$I$2,$I$3,CONFIGURATION!$B$10,\"BMA\",CONFIGURATION!$B$1,\"bscr\",CONFIGURATION!$B$12)","v":{"$error":"#VALUE!"}},{"$f":"XBRLMap(#REF!,L12,$I$2,$I$3,CONFIGURATION!$B$10,\"BMA\",CONFIGURATION!$B$1,\"bscr\",CONFIGURATION!$B$12)","v":{"$error":"#VALUE!"}},{"$f":"XBRLMap(#REF!,M12,$I$2,$I$3,CONFIGURATION!$B$10,\"BMA\",CONFIGURATION!$B$1,\"bscr\",CONFIGURATION!$B$12)","v":{"$error":"#VALUE!"}},{"$f":"XBRLMap(#REF!,N12,$I$2,$I$3,CONFIGURATION!$B$10,\"BMA\",CONFIGURATION!$B$1,\"bscr\",CONFIGURATION!$B$12)","v":{"$error":"#VALUE!"}},{"$f":"XBRLMap(F54,O12,$I$2,$I$3,CONFIGURATION!$B$10,\"BMA\",CONFIGURATION!$B$1,\"bscr\",CONFIGURATION!$B$12)","v":"Mapped"}]
[]
[null,null,"Exposure by BSCR Rating"]
[null,null,"BSCR Rating 0 (Domestic Affiliates)",null,null,{"$f":"Import!M13695","v":0},null,"brrt_RiskGradeAxis_brrt_BSCRRating0Member",null,null,{"$f":"XBRLMap(#REF!,$K$12&\".\"&H57,$I$2,$I$3,CONFIGURATION!$B$10,\"BMA\",CONFIGURATION!$B$1,\"bscr\",CONFIGURATION!$B$12)","v":{"$error":"#VALUE!"}},{"$f":"XBRLMap(#REF!,$L$12&\".\"&H57,$I$2,$I$3,CONFIGURATION!$B$10,\"BMA\",CONFIGURATION!$B$1,\"bscr\",CONFIGURATION!$B$12)","v":{"$error":"#VALUE!"}},{"$f":"XBRLMap(#REF!,$M$12&\".\"&H57,$I$2,$I$3,CONFIGURATION!$B$10,\"BMA\",CONFIGURATION!$B$1,\"bscr\",CONFIGURATION!$B$12)","v":{"$error":"#VALUE!"}},{"$f":"XBRLMap(#REF!,$N$12&\".\"&H57,$I$2,$I$3,CONFIGURATION!$B$10,\"BMA\",CONFIGURATION!$B$1,\"bscr\",CONFIGURATION!$B$12)","v":{"$error":"#VALUE!"}},{"$f":"XBRLMap(F57,$O$12&\".\"&H57,$I$2,$I$3,CONFIGURATION!$B$10,\"BMA\",CONFIGURATION!$B$1,\"bscr\",CONFIGURATION!$B$12)","v":"Mapped"}]
[null,null,"BSCR Rating 1",null,null,{"$f":"Import!M13696","v":0},null,"brrt_RiskGradeAxis_brrt_BSCRRating1Member",null,null,{"$f":"XBRLMap(#REF!,$K$12&\".\"&H58,$I$2,$I$3,CONFIGURATION!$B$10,\"BMA\",CONFIGURATION!$B$1,\"bscr\",CONFIGURATION!$B$12)","v":{"$error":"#VALUE!"}},{"$f":"XBRLMap(#REF!,$L$12&\".\"&H58,$I$2,$I$3,CONFIGURATION!$B$10,\"BMA\",CONFIGURATION!$B$1,\"bscr\",CONFIGURATION!$B$12)","v":{"$error":"#VALUE!"}},{"$f":"XBRLMap(#REF!,$M$12&\".\"&H58,$I$2,$I$3,CONFIGURATION!$B$10,\"BMA\",CONFIGURATION!$B$1,\"bscr\",CONFIGURATION!$B$12)","v":{"$error":"#VALUE!"}},{"$f":"XBRLMap(#REF!,$N$12&\".\"&H58,$I$2,$I$3,CONFIGURATION!$B$10,\"BMA\",CONFIGURATION!$B$1,\"bscr\",CONFIGURATION!$B$12)","v":{"$error":"#VALUE!"}},{"$f":"XBRLMap(F58,$O$12&\".\"&H58,$I$2,$I$3,CONFIGURATION!$B$10,\"BMA\",CONFIGURATION!$B$1,\"bscr\",CONFIGURATION!$B$12)","v":"Mapped"}]
[null,null,"BSCR Rating 2",null,null,{"$f":"Import!M13697","v":0},null,"brrt_RiskGradeAxis_brrt_BSCRRating2Member",null,null,{"$f":"XBRLMap(#REF!,$K$12&\".\"&H59,$I$2,$I$3,CONFIGURATION!$B$10,\"BMA\",CONFIGURATION!$B$1,\"bscr\",CONFIGURATION!$B$12)","v":{"$error":"#VALUE!"}},{"$f":"XBRLMap(#REF!,$L$12&\".\"&H59,$I$2,$I$3,CONFIGURATION!$B$10,\"BMA\",CONFIGURATION!$B$1,\"bscr\",CONFIGURATION!$B$12)","v":{"$error":"#VALUE!"}},{"$f":"XBRLMap(#REF!,$M$12&\".\"&H59,$I$2,$I$3,CONFIGURATION!$B$10,\"BMA\",CONFIGURATION!$B$1,\"bscr\",CONFIGURATION!$B$12)","v":{"$error":"#VALUE!"}},{"$f":"XBRLMap(#REF!,$N$12&\".\"&H59,$I$2,$I$3,CONFIGURATION!$B$10,\"BMA\",CONFIGURATION!$B$1,\"bscr\",CONFIGURATION!$B$12)","v":{"$error":"#VALUE!"}},{"$f":"XBRLMap(F59,$O$12&\".\"&H59,$I$2,$I$3,CONFIGURATION!$B$10,\"BMA\",CONFIGURATION!$B$1,\"bscr\",CONFIGURATION!$B$12)","v":"Mapped"}]
[null,null,"BSCR Rating 3",null,null,{"$f":"Import!M13698","v":0},null,"brrt_RiskGradeAxis_brrt_BSCRRating3Member",null,null,{"$f":"XBRLMap(#REF!,$K$12&\".\"&H60,$I$2,$I$3,CONFIGURATION!$B$10,\"BMA\",CONFIGURATION!$B$1,\"bscr\",CONFIGURATION!$B$12)","v":{"$error":"#VALUE!"}},{"$f":"XBRLMap(#REF!,$L$12&\".\"&H60,$I$2,$I$3,CONFIGURATION!$B$10,\"BMA\",CONFIGURATION!$B$1,\"bscr\",CONFIGURATION!$B$12)","v":{"$error":"#VALUE!"}},{"$f":"XBRLMap(#REF!,$M$12&\".\"&H60,$I$2,$I$3,CONFIGURATION!$B$10,\"BMA\",CONFIGURATION!$B$1,\"bscr\",CONFIGURATION!$B$12)","v":{"$error":"#VALUE!"}},{"$f":"XBRLMap(#REF!,$N$12&\".\"&H60,$I$2,$I$3,CONFIGURATION!$B$10,\"BMA\",CONFIGURATION!$B$1,\"bscr\",CONFIGURATION!$B$12)","v":{"$error":"#VALUE!"}},{"$f":"XBRLMap(F60,$O$12&\".\"&H60,$I$2,$I$3,CONFIGURATION!$B$10,\"BMA\",CONFIGURATION!$B$1,\"bscr\",CONFIGURATION!$B$12)","v":"Mapped"}]
[null,null,"BSCR Rating 4",null,null,{"$f":"Import!M13699","v":0},null,"brrt_RiskGradeAxis_brrt_BSCRRating4Member",null,null,{"$f":"XBRLMap(#REF!,$K$12&\".\"&H61,$I$2,$I$3,CONFIGURATION!$B$10,\"BMA\",CONFIGURATION!$B$1,\"bscr\",CONFIGURATION!$B$12)","v":{"$error":"#VALUE!"}},{"$f":"XBRLMap(#REF!,$L$12&\".\"&H61,$I$2,$I$3,CONFIGURATION!$B$10,\"BMA\",CONFIGURATION!$B$1,\"bscr\",CONFIGURATION!$B$12)","v":{"$error":"#VALUE!"}},{"$f":"XBRLMap(#REF!,$M$12&\".\"&H61,$I$2,$I$3,CONFIGURATION!$B$10,\"BMA\",CONFIGURATION!$B$1,\"bscr\",CONFIGURATION!$B$12)","v":{"$error":"#VALUE!"}},{"$f":"XBRLMap(#REF!,$N$12&\".\"&H61,$I$2,$I$3,CONFIGURATION!$B$10,\"BMA\",CONFIGURATION!$B$1,\"bscr\",CONFIGURATION!$B$12)","v":{"$error":"#VALUE!"}},{"$f":"XBRLMap(F61,$O$12&\".\"&H61,$I$2,$I$3,CONFIGURATION!$B$10,\"BMA\",CONFIGURATION!$B$1,\"bscr\",CONFIGURATION!$B$12)","v":"Mapped"}]
[null,null,"BSCR Rating 5",null,null,{"$f":"Import!M13700","v":0},null,"brrt_RiskGradeAxis_brrt_BSCRRating5Member",null,null,{"$f":"XBRLMap(#REF!,$K$12&\".\"&H62,$I$2,$I$3,CONFIGURATION!$B$10,\"BMA\",CONFIGURATION!$B$1,\"bscr\",CONFIGURATION!$B$12)","v":{"$error":"#VALUE!"}},{"$f":"XBRLMap(#REF!,$L$12&\".\"&H62,$I$2,$I$3,CONFIGURATION!$B$10,\"BMA\",CONFIGURATION!$B$1,\"bscr\",CONFIGURATION!$B$12)","v":{"$error":"#VALUE!"}},{"$f":"XBRLMap(#REF!,$M$12&\".\"&H62,$I$2,$I$3,CONFIGURATION!$B$10,\"BMA\",CONFIGURATION!$B$1,\"bscr\",CONFIGURATION!$B$12)","v":{"$error":"#VALUE!"}},{"$f":"XBRLMap(#REF!,$N$12&\".\"&H62,$I$2,$I$3,CONFIGURATION!$B$10,\"BMA\",CONFIGURATION!$B$1,\"bscr\",CONFIGURATION!$B$12)","v":{"$error":"#VALUE!"}},{"$f":"XBRLMap(F62,$O$12&\".\"&H62,$I$2,$I$3,CONFIGURATION!$B$10,\"BMA\",CONFIGURATION!$B$1,\"bscr\",CONFIGURATION!$B$12)","v":"Mapped"}]
[null,null,"BSCR Rating 6",null,null,{"$f":"Import!M13701","v":0},null,"brrt_RiskGradeAxis_brrt_BSCRRating6Member",null,null,{"$f":"XBRLMap(#REF!,$K$12&\".\"&H63,$I$2,$I$3,CONFIGURATION!$B$10,\"BMA\",CONFIGURATION!$B$1,\"bscr\",CONFIGURATION!$B$12)","v":{"$error":"#VALUE!"}},{"$f":"XBRLMap(#REF!,$L$12&\".\"&H63,$I$2,$I$3,CONFIGURATION!$B$10,\"BMA\",CONFIGURATION!$B$1,\"bscr\",CONFIGURATION!$B$12)","v":{"$error":"#VALUE!"}},{"$f":"XBRLMap(#REF!,$M$12&\".\"&H63,$I$2,$I$3,CONFIGURATION!$B$10,\"BMA\",CONFIGURATION!$B$1,\"bscr\",CONFIGURATION!$B$12)","v":{"$error":"#VALUE!"}},{"$f":"XBRLMap(#REF!,$N$12&\".\"&H63,$I$2,$I$3,CONFIGURATION!$B$10,\"BMA\",CONFIGURATION!$B$1,\"bscr\",CONFIGURATION!$B$12)","v":{"$error":"#VALUE!"}},{"$f":"XBRLMap(F63,$O$12&\".\"&H63,$I$2,$I$3,CONFIGURATION!$B$10,\"BMA\",CONFIGURATION!$B$1,\"bscr\",CONFIGURATION!$B$12)","v":"Mapped"}]
[null,null,"BSCR Rating 7",null,null,{"$f":"Import!M13702","v":0},null,"brrt_RiskGradeAxis_brrt_BSCRRating7Member",null,null,{"$f":"XBRLMap(#REF!,$K$12&\".\"&H64,$I$2,$I$3,CONFIGURATION!$B$10,\"BMA\",CONFIGURATION!$B$1,\"bscr\",CONFIGURATION!$B$12)","v":{"$error":"#VALUE!"}},{"$f":"XBRLMap(#REF!,$L$12&\".\"&H64,$I$2,$I$3,CONFIGURATION!$B$10,\"BMA\",CONFIGURATION!$B$1,\"bscr\",CONFIGURATION!$B$12)","v":{"$error":"#VALUE!"}},{"$f":"XBRLMap(#REF!,$M$12&\".\"&H64,$I$2,$I$3,CONFIGURATION!$B$10,\"BMA\",CONFIGURATION!$B$1,\"bscr\",CONFIGURATION!$B$12)","v":{"$error":"#VALUE!"}},{"$f":"XBRLMap(#REF!,$N$12&\".\"&H64,$I$2,$I$3,CONFIGURATION!$B$10,\"BMA\",CONFIGURATION!$B$1,\"bscr\",CONFIGURATION!$B$12)","v":{"$error":"#VALUE!"}},{"$f":"XBRLMap(F64,$O$12&\".\"&H64,$I$2,$I$3,CONFIGURATION!$B$10,\"BMA\",CONFIGURATION!$B$1,\"bscr\",CONFIGURATION!$B$12)","v":"Mapped"}]
[null,null,"BSCR Rating 8",null,null,{"$f":"Import!M13703","v":0},null,"brrt_RiskGradeAxis_brrt_BSCRRating8Member",null,null,{"$f":"XBRLMap(#REF!,$K$12&\".\"&H65,$I$2,$I$3,CONFIGURATION!$B$10,\"BMA\",CONFIGURATION!$B$1,\"bscr\",CONFIGURATION!$B$12)","v":{"$error":"#VALUE!"}},{"$f":"XBRLMap(#REF!,$L$12&\".\"&H65,$I$2,$I$3,CONFIGURATION!$B$10,\"BMA\",CONFIGURATION!$B$1,\"bscr\",CONFIGURATION!$B$12)","v":{"$error":"#VALUE!"}},{"$f":"XBRLMap(#REF!,$M$12&\".\"&H65,$I$2,$I$3,CONFIGURATION!$B$10,\"BMA\",CONFIGURATION!$B$1,\"bscr\",CONFIGURATION!$B$12)","v":{"$error":"#VALUE!"}},{"$f":"XBRLMap(#REF!,$N$12&\".\"&H65,$I$2,$I$3,CONFIGURATION!$B$10,\"BMA\",CONFIGURATION!$B$1,\"bscr\",CONFIGURATION!$B$12)","v":{"$error":"#VALUE!"}},{"$f":"XBRLMap(F65,$O$12&\".\"&H65,$I$2,$I$3,CONFIGURATION!$B$10,\"BMA\",CONFIGURATION!$B$1,\"bscr\",CONFIGURATION!$B$12)","v":"Mapped"}]
[null,null,"Total Exposure By BSCR Rating",null,null,{"$f":"SUM(F57:F65)","v":0},null,"brrt_RiskGradeAxis_brrt_TotalMember",null,null,{"$f":"XBRLMap(#REF!,$K$12&\".\"&H66,$I$2,$I$3,CONFIGURATION!$B$10,\"BMA\",CONFIGURATION!$B$1,\"bscr\",CONFIGURATION!$B$12)","v":{"$error":"#VALUE!"}},{"$f":"XBRLMap(#REF!,$L$12&\".\"&H66,$I$2,$I$3,CONFIGURATION!$B$10,\"BMA\",CONFIGURATION!$B$1,\"bscr\",CONFIGURATION!$B$12)","v":{"$error":"#VALUE!"}},{"$f":"XBRLMap(#REF!,$M$12&\".\"&H66,$I$2,$I$3,CONFIGURATION!$B$10,\"BMA\",CONFIGURATION!$B$1,\"bscr\",CONFIGURATION!$B$12)","v":{"$error":"#VALUE!"}},{"$f":"XBRLMap(#REF!,$N$12&\".\"&H66,$I$2,$I$3,CONFIGURATION!$B$10,\"BMA\",CONFIGURATION!$B$1,\"bscr\",CONFIGURATION!$B$12)","v":{"$error":"#VALUE!"}},{"$f":"XBRLMap(F66,$O$12&\".\"&H66,$I$2,$I$3,CONFIGURATION!$B$10,\"BMA\",CONFIGURATION!$B$1,\"bscr\",CONFIGURATION!$B$12)","v":"Mapped"}]
[null,null,null,null,null,null,null,null,null,null,"brrt_SingleConsolidatedExposureReinsuranceRecoverable","brrt_SingleConsolidatedExposureReinsurancePayable","brrt_SingleConsolidatedExposureReinsuranceCollateral","brrt_SingleConsolidatedExposureReinsuranceQualifyingCollateral","brrt_SingleConsolidatedExposureReinsuranceNetQualifyingExposure"]
[null,null,"Single Consolidated Exposure",null,null,{"$f":"'Form 1EBS'!F10+'Schedule IIB (EBS)'!D95+'Schedule IIC (EBS)'!D95+'Schedule IID (EBS)'!D95+'Schedule IIE (EBS)'!D95+'Schedule IIF (EBS)'!D95-F54-F66","v":0},null,null,null,null,{"$f":"XBRLMap(#REF!,K67,$I$2,$I$3,CONFIGURATION!$B$10,\"BMA\",CONFIGURATION!$B$1,\"bscr\",CONFIGURATION!$B$12)","v":{"$error":"#VALUE!"}},{"$f":"XBRLMap(#REF!,L67,$I$2,$I$3,CONFIGURATION!$B$10,\"BMA\",CONFIGURATION!$B$1,\"bscr\",CONFIGURATION!$B$12)","v":{"$error":"#VALUE!"}},{"$f":"XBRLMap(#REF!,M67,$I$2,$I$3,CONFIGURATION!$B$10,\"BMA\",CONFIGURATION!$B$1,\"bscr\",CONFIGURATION!$B$12)","v":{"$error":"#VALUE!"}},{"$f":"XBRLMap(#REF!,N67,$I$2,$I$3,CONFIGURATION!$B$10,\"BMA\",CONFIGURATION!$B$1,\"bscr\",CONFIGURATION!$B$12)","v":{"$error":"#VALUE!"}},{"$f":"XBRLMap(F68,O67,$I$2,$I$3,CONFIGURATION!$B$10,\"BMA\",CONFIGURATION!$B$1,\"bscr\",CONFIGURATION!$B$12)","v":"Mapped"}]
[]
[null,null,"Total Cash and Cash Equivalent Balance",null,null,{"$f":"F54+F66+F68","v":0}]
[]
[null,null,"Cash and Cash Equivalent Check",null,null,{"$f":"'Form 1EBS'!F10+'Schedule IIB (EBS)'!D95+'Schedule IIC (EBS)'!D95+'Schedule IID (EBS)'!D95+'Schedule IIE (EBS)'!D95+'Schedule IIF (EBS)'!D95","v":0}]
[null,null,null,null,null,null,null,"brrt_AdjustedBalanceSheetReinsuranceAssets",null,null,{"$f":"XBRLMap(#REF!,H73,$I$2,$I$3,CONFIGURATION!$B$10,\"BMA\",CONFIGURATION!$B$1,\"bscr\",CONFIGURATION!$B$12)","v":{"$error":"#VALUE!"}}]
[null,null,null,null,null,{"$f":"IF(ROUND((F70-F72),0)=0,\"True\",\"False\")","v":"True"}]
[]
[null,null,"Difference",null,null,{"$f":"F70-F72","v":0}]
[]
[null,null,"Cash and Cash Equivalents Counterparty Balance by BSCR Rating"]
[]
[null,null,"Select",null,null,"Cash and Cash Equivalent Exposure"]
[null,null,"BSCR Rating 0 (Domestic Affiliates)",null,null,{"$f":"SUMPRODUCT(F$14:F$53,($D$14:$D$53=C81)*1)+F57","v":0}]
[null,null,"BSCR Rating 1",null,null,0]
[null,null,"BSCR Rating 2",null,null,0]
[null,null,"BSCR Rating 3",null,null,0]
[null,null,"BSCR Rating 4",null,null,0]
[null,null,"BSCR Rating 5",null,null,0]
[null,null,"BSCR Rating 6",null,null,0]
[null,null,"BSCR Rating 7",null,null,0]
[null,null,"BSCR Rating 8",null,null,{"$f":"SUMPRODUCT(F$14:F$53,($D$14:$D$53=C89)*1)+F65+F68","v":0}]
[null,null,"Total",null,null,{"$f":"SUM(F81:F89)","v":0}]
[]
[]
[null,null,"Diversification Adjustment Calculation On an Exposure Basis"]
[]
[null,null,"Maximum Cash and Cash Equivalent Counterparty Balance On a Single Exposure Basis",null,null,{"$f":"MAX(F14:F53)","v":0}]
[null,null,"Total Cash and Cash Equivalent Counterparty Balance",null,null,{"$f":"+F72","v":0}]
[null,null,"Percentage",null,null,{"$f":"IF(F96=0,0,F95/F96)","v":0}]
[null,null,"Diversification Adjustment up to 40%",null,null,{"$f":"IF(F95=0,0,(1-F97)*40%)","v":0}]

{"sheet":"Schedule XX","index":89,"n_rows":82,"n_cols":20,"rows_kept":82,"cut":false,"hidden":false,"merged":[[4,3,4,9],[4,11,4,17],[2,3,3,9]]}
[null,"SCHEDULE OF CURRENCY RISK",null,null,null,null,null,null,null,null,null,null,null,null,null,null,null,null,null,{"$f":"HYPERLINK(\"#'Index'!A1\",\"Return to Index\")","v":"Return to Index"}]
[null,{"$f":"'Company Information'!C7","v":"Enter Company Name"}]
[null,{"$f":"'Form 1EBS'!C3","v":"2019-12-31"},null,"Note if an insurer does not have any entities to consolidate, enter EBS Valuation information only (This cell is editable for deletion)",null,null,null,null,null,null,null,null,null,null,null,null,null,null,null,"SCHEDULE XX"]
[null,{"$f":"IF(CONFIGURATION!$B$12>1,\" ['\"&MID(CONFIGURATION!$B$12,2,LEN(CONFIGURATION!$B$12))&\"s]\",\"\")&'Form 1EBS'!C4","v":" ['000s]United States Dollars"}]
[null,null,null,"Unconsolidated SFS",null,null,null,null,null,null,null,"EBS Valuation"]
[]
[null,"Currency",null,"Assets",null,"Assets with Hedging Arrangements",null,"Liabilities",null,"Liabilities with Hedging Arrangements",null,"Assets",null,"Assets with Hedging Arrangements",null,"Liabilities",null,"Liabilities with Hedging Arrangements",null,"Net Asset Value"]
[]
[null,{"$f":"'Form 1EBS'!C4","v":"United States Dollars"},null,{"$f":"Import!E11003","v":0},null,{"$f":"Import!E11019","v":0},null,{"$f":"Import!E11035","v":0},null,{"$f":"Import!E11051","v":0},null,{"$f":"Import!M11003","v":0},null,{"$f":"Import!M11019","v":0},null,{"$f":"Import!M11035","v":0},null,{"$f":"Import!M11051","v":0},null,{"$f":"L9-P9","v":0}]
[null,{"$f":"IF($B$9=\"Euro\",\"United States Dollar\",\"Euro\")","v":"Euro"},null,{"$f":"Import!E11004","v":0},null,{"$f":"Import!E11020","v":0},null,{"$f":"Import!E11036","v":0},null,{"$f":"Import!E11052","v":0},null,{"$f":"Import!M11004","v":0},null,{"$f":"Import!M11020","v":0},null,{"$f":"Import!M11036","v":0},null,{"$f":"Import!M11052","v":0},null,0]
[null,{"$f":"IF($B$9=\"United Kingdom Pounds\",\"United States Dollar\",\"United Kingdom Pounds\")","v":"United Kingdom Pounds"},null,{"$f":"Import!E11005","v":0},null,{"$f":"Import!E11021","v":0},null,{"$f":"Import!E11037","v":0},null,{"$f":"Import!E11053","v":0},null,{"$f":"Import!M11005","v":0},null,{"$f":"Import!M11021","v":0},null,{"$f":"Import!M11037","v":0},null,{"$f":"Import!M11053","v":0},null,0]
[null,{"$f":"IF($B$9=\"Canada Dollars\",\"United States Dollar\",\"Canada Dollars\")","v":"Canada Dollars"},null,{"$f":"Import!E11006","v":0},null,{"$f":"Import!E11022","v":0},null,{"$f":"Import!E11038","v":0},null,{"$f":"Import!E11054","v":0},null,{"$f":"Import!M11006","v":0},null,{"$f":"Import!M11022","v":0},null,{"$f":"Import!M11038","v":0},null,{"$f":"Import!M11054","v":0},null,0]
[null,{"$f":"IF($B$9=\"Japan Yen\",\"United States Dollar\",\"Japan Yen\")","v":"Japan Yen"},null,{"$f":"Import!E11007","v":0},null,{"$f":"Import!E11023","v":0},null,{"$f":"Import!E11039","v":0},null,{"$f":"Import!E11055","v":0},null,{"$f":"Import!M11007","v":0},null,{"$f":"Import!M11023","v":0},null,{"$f":"Import!M11039","v":0},null,{"$f":"Import!M11055","v":0},null,0]
[null,"Other currency 1",null,{"$f":"Import!E11008","v":0},null,{"$f":"Import!E11024","v":0},null,{"$f":"Import!E11040","v":0},null,{"$f":"Import!E11056","v":0},null,{"$f":"Import!M11008","v":0},null,{"$f":"Import!M11024","v":0},null,{"$f":"Import!M11040","v":0},null,{"$f":"Import!M11056","v":0},null,0]
[null,"Other currency 2",null,{"$f":"Import!E11009","v":0},null,{"$f":"Import!E11025","v":0},null,{"$f":"Import!E11041","v":0},null,{"$f":"Import!E11057","v":0},null,{"$f":"Import!M11009","v":0},null,{"$f":"Import!M11025","v":0},null,{"$f":"Import!M11041","v":0},null,{"$f":"Import!M11057","v":0},null,0]
[null,"Other currency 3",null,{"$f":"Import!E11010","v":0},null,{"$f":"Import!E11026","v":0},null,{"$f":"Import!E11042","v":0},null,{"$f":"Import!E11058","v":0},null,{"$f":"Import!M11010","v":0},null,{"$f":"Import!M11026","v":0},null,{"$f":"Import!M11042","v":0},null,{"$f":"Import!M11058","v":0},null,0]
[null,"Other currency 4",null,{"$f":"Import!E11011","v":0},null,{"$f":"Import!E11027","v":0},null,{"$f":"Import!E11043","v":0},null,{"$f":"Import!E11059","v":0},null,{"$f":"Import!M11011","v":0},null,{"$f":"Import!M11027","v":0},null,{"$f":"Import!M11043","v":0},null,{"$f":"Import!M11059","v":0},null,0]
[null,"Other currency 5",null,{"$f":"Import!E11012","v":0},null,{"$f":"Import!E11028","v":0},null,{"$f":"Import!E11044","v":0},null,{"$f":"Import!E11060","v":0},null,{"$f":"Import!M11012","v":0},null,{"$f":"Import!M11028","v":0},null,{"$f":"Import!M11044","v":0},null,{"$f":"Import!M11060","v":0},null,0]
[null,"Other currency 6",null,{"$f":"Import!E11013","v":0},null,{"$f":"Import!E11029","v":0},null,{"$f":"Import!E11045","v":0},null,{"$f":"Import!E11061","v":0},null,{"$f":"Import!M11013","v":0},null,{"$f":"Import!M11029","v":0},null,{"$f":"Import!M11045","v":0},null,{"$f":"Import!M11061","v":0},null,0]
[null,"Other currency 7",null,{"$f":"Import!E11014","v":0},null,{"$f":"Import!E11030","v":0},null,{"$f":"Import!E11046","v":0},null,{"$f":"Import!E11062","v":0},null,{"$f":"Import!M11014","v":0},null,{"$f":"Import!M11030","v":0},null,{"$f":"Import!M11046","v":0},null,{"$f":"Import!M11062","v":0},null,0]
[null,"Other currency 8",null,{"$f":"Import!E11015","v":0},null,{"$f":"Import!E11031","v":0},null,{"$f":"Import!E11047","v":0},null,{"$f":"Import!E11063","v":0},null,{"$f":"Import!M11015","v":0},null,{"$f":"Import!M11031","v":0},null,{"$f":"Import!M11047","v":0},null,{"$f":"Import!M11063","v":0},null,0]
[null,"Other currency 9",null,{"$f":"Import!E11016","v":0},null,{"$f":"Import!E11032","v":0},null,{"$f":"Import!E11048","v":0},null,{"$f":"Import!E11064","v":0},null,{"$f":"Import!M11016","v":0},null,{"$f":"Import!M11032","v":0},null,{"$f":"Import!M11048","v":0},null,{"$f":"Import!M11064","v":0},null,0]
[null,"Other currency 10",null,{"$f":"Import!E11017","v":0},null,{"$f":"Import!E11033","v":0},null,{"$f":"Import!E11049","v":0},null,{"$f":"Import!E11065","v":0},null,{"$f":"Import!M11017","v":0},null,{"$f":"Import!M11033","v":0},null,{"$f":"Import!M11049","v":0},null,{"$f":"Import!M11065","v":0},null,{"$f":"L23-P23","v":0}]
[null,"Currency Total",null,{"$f":"SUM(D9:D23)","v":0},null,{"$f":"SUM(F9:F23)","v":0},null,{"$f":"SUM(H9:H23)","v":0},null,{"$f":"SUM(J9:J23)","v":0},null,{"$f":"SUM(L9:L23)","v":0},null,{"$f":"SUM(N9:N23)","v":0},null,{"$f":"SUM(P9:P23)","v":0},null,{"$f":"SUM(R9:R23)","v":0},null,{"$f":"SUM(T9:T23)","v":0}]
[]
[null,null,null,null,null,null,null,null,null,null,null,"Form 1EBS Line 15",null,null,null,"Form 1EBS Line 39"]
[null,"Balance Sheet Total",null,null,null,null,null,null,null,null,null,{"$f":"+'Form 1EBS'!F90","v":0},null,null,null,{"$f":"+'Form 1EBS'!F163","v":0}]
[null,"% of Balance Sheet Total",null,null,null,null,null,null,null,null,null,{"$f":"IF(L27=0,0,L24/L27)","v":0},null,null,null,{"$f":"IF(P27=0,0,P24/P27)","v":0}]
[]
[null,"95% Minimum Test Met",null,null,null,null,null,null,null,null,null,{"$f":"IF(L27=0,\"Form 1EBS is Blank\",IF(L28<=95%,\"False\",IF(L28>100%,\"False\",\"True\")))","v":"Form 1EBS is Blank"},null,null,null,{"$f":"IF(P27=0,\"Form 1EBS is Blank\",IF(P28<=95%,\"False\",IF(P28>100%,\"False\",\"True\")))","v":"Form 1EBS is Blank"}]
[]
[null,null,null,null,null,null,null,null,null,null,null,"Liabilities",null,null,null,"ECR Charge",null,"Ratio",null,"Assessment*"]
[null,null,null,null,null,null,null,null,null,null,null,"Form 1EBS, Line 39",null,null,null,"Summary tab"]
[null,{"$f":"'Form 1EBS'!H7","v":"2018-12-31"},null,null,null,null,null,null,null,null,null,{"$f":"Import!M11067","v":0},null,null,null,{"$f":"Import!M11070","v":0},null,{"$f":"IF(P34=0,\"\",P34/L34)","v":""}]
[null,{"$f":"DATE(YEAR(B34)-1,MONTH(B34),DAY(B34))","v":"2017-12-31"},null,null,null,null,null,null,null,null,null,{"$f":"Import!M11068","v":0},null,null,null,{"$f":"Import!M11071","v":0},null,{"$f":"IF(P35=0,\"\",P35/L35)","v":""}]
[null,{"$f":"DATE(YEAR(B35)-1,MONTH(B35),DAY(B35))","v":"2016-12-31"},null,null,null,null,null,null,null,null,null,{"$f":"Import!M11069","v":0},null,null,null,{"$f":"Import!M11072","v":0},null,{"$f":"IF(P36=0,\"\",P36/L36)","v":""},null,{"$f":"IF(SUM(R34:R36)=0,IF(P34=0,0%,R34),MAX(R34,AVERAGE(R34:R36)))","v":0}]
[]
[null,"*If there are no amounts for previous years, enter the results from the current year without taking currency risk into account into the prior year"]
[]
[]
[]
[]
[]
[]
[]
[]
[]
[]
[]
[]
[]
[null,null,null,null,null,null,null,null,null,null,null,null,null,null,null,null,null,null,null,"brrt_BondsAndDebenturesFaceValue"]
[null,null,null,null,null,null,null,null,null,null,null,"brrt_BondsAndDebentures",null,null,null,"brrt_BondsAndDebenturesFaceValue"]
[null,{"$f":"IF($B$3=\"\",\"\",TEXT(DATE(YEAR($B$3+1)-1,MONTH($B$3+1),DAY($B$3+1)),\"mm/dd/yyyy\"))","v":"01/01/2019"},null,null,null,null,null,null,null,null,null,{"$f":"IF($B$3=\"\",\"\",TEXT(DATE(YEAR($B$3+1)-1,MONTH($B$3+1),DAY($B$3+1)),\"mm/dd/yyyy\"))","v":"01/01/2019"},null,null,null,{"$f":"IF($B$3=\"\",\"\",TEXT(DATE(YEAR($B$3+1)-1,MONTH($B$3+1),DAY($B$3+1)),\"mm/dd/yyyy\"))","v":"01/01/2019"},null,null,null,"brrt_BondsAndDebenturesEffectiveConvexity"]
[null,{"$f":"IF($B$3=\"\",\"\",TEXT($B$3,\"mm/dd/yyyy\"))","v":"12/31/2019"},null,null,null,null,null,null,null,null,null,{"$f":"IF($B$3=\"\",\"\",TEXT($B$3,\"mm/dd/yyyy\"))","v":"12/31/2019"},null,null,null,{"$f":"IF($B$3=\"\",\"\",TEXT($B$3,\"mm/dd/yyyy\"))","v":"12/31/2019"},null,null,null,{"$f":"IF($B$3=\"\",\"\",TEXT(DATE(YEAR($B$3+1)-1,MONTH($B$3+1),DAY($B$3+1)),\"mm/dd/yyyy\"))","v":"01/01/2019"}]
[null,null,null,null,null,null,null,null,null,null,null,null,null,null,null,null,null,null,null,{"$f":"IF($B$3=\"\",\"\",TEXT($B$3,\"mm/dd/yyyy\"))","v":"12/31/2019"}]
[null,null,null,null,null,null,null,null,null,null,null,{"$f":"XBRLMap(#REF!,L$53&\".\"&#REF!,L$54,L$55,CONFIGURATION!$B$10,\"BMA\",CONFIGURATION!$B$1,\"bscr\",CONFIGURATION!$B$12)","v":{"$error":"#VALUE!"}},null,null,null,{"$f":"XBRLMap(#REF!,P$53&\".\"&#REF!,P$54,P$55,CONFIGURATION!$B$10,\"BMA\",CONFIGURATION!$B$1,\"bscr\",CONFIGURATION!$B$12)","v":{"$error":"#VALUE!"}}]
[null,null,null,null,null,null,null,null,null,null,null,{"$f":"XBRLMap(#REF!,L$53&\".\"&#REF!,L$54,L$55,CONFIGURATION!$B$10,\"BMA\",CONFIGURATION!$B$1,\"bscr\",CONFIGURATION!$B$12)","v":{"$error":"#VALUE!"}},null,null,null,{"$f":"XBRLMap(#REF!,P$53&\".\"&#REF!,P$54,P$55,CONFIGURATION!$B$10,\"BMA\",CONFIGURATION!$B$1,\"bscr\",CONFIGURATION!$B$12)","v":{"$error":"#VALUE!"}},null,null,null,{"$f":"XBRLMap(#REF!,T$54&\".\"&#REF!,T$55,T$56,CONFIGURATION!$B$10,\"BMA\",CONFIGURATION!$B$1,\"bscr\")","v":{"$error":"#VALUE!"}}]
[null,null,null,null,null,null,null,null,null,null,null,{"$f":"XBRLMap(#REF!,L$53&\".\"&#REF!,L$54,L$55,CONFIGURATION!$B$10,\"BMA\",CONFIGURATION!$B$1,\"bscr\",CONFIGURATION!$B$12)","v":{"$error":"#VALUE!"}},null,null,null,{"$f":"XBRLMap(#REF!,P$53&\".\"&#REF!,P$54,P$55,CONFIGURATION!$B$10,\"BMA\",CONFIGURATION!$B$1,\"bscr\",CONFIGURATION!$B$12)","v":{"$error":"#VALUE!"}},null,null,null,{"$f":"XBRLMap(#REF!,T$54&\".\"&#REF!,T$55,T$56,CONFIGURATION!$B$10,\"BMA\",CONFIGURATION!$B$1,\"bscr\")","v":{"$error":"#VALUE!"}}]
[null,null,null,null,null,null,null,null,null,null,null,{"$f":"XBRLMap(#REF!,L$53&\".\"&#REF!,L$54,L$55,CONFIGURATION!$B$10,\"BMA\",CONFIGURATION!$B$1,\"bscr\",CONFIGURATION!$B$12)","v":{"$error":"#VALUE!"}},null,null,null,{"$f":"XBRLMap(#REF!,P$53&\".\"&#REF!,P$54,P$55,CONFIGURATION!$B$10,\"BMA\",CONFIGURATION!$B$1,\"bscr\",CONFIGURATION!$B$12)","v":{"$error":"#VALUE!"}},null,null,null,{"$f":"XBRLMap(#REF!,T$54&\".\"&#REF!,T$55,T$56,CONFIGURATION!$B$10,\"BMA\",CONFIGURATION!$B$1,\"bscr\")","v":{"$error":"#VALUE!"}}]
[null,null,null,null,null,null,null,null,null,null,null,{"$f":"XBRLMap(#REF!,L$53&\".\"&#REF!,L$54,L$55,CONFIGURATION!$B$10,\"BMA\",CONFIGURATION!$B$1,\"bscr\",CONFIGURATION!$B$12)","v":{"$error":"#VALUE!"}},null,null,null,{"$f":"XBRLMap(#REF!,P$53&\".\"&#REF!,P$54,P$55,CONFIGURATION!$B$10,\"BMA\",CONFIGURATION!$B$1,\"bscr\",CONFIGURATION!$B$12)","v":{"$error":"#VALUE!"}},null,null,null,{"$f":"XBRLMap(#REF!,T$54&\".\"&#REF!,T$55,T$56,CONFIGURATION!$B$10,\"BMA\",CONFIGURATION!$B$1,\"bscr\")","v":{"$error":"#VALUE!"}}]
[null,null,null,null,null,null,null,null,null,null,null,null,null,null,null,null,null,null,null,{"$f":"XBRLMap(#REF!,T$54&\".\"&#REF!,T$55,T$56,CONFIGURATION!$B$10,\"BMA\",CONFIGURATION!$B$1,\"bscr\")","v":{"$error":"#VALUE!"}}]
[null,null,null,null,null,null,null,null,null,null,null,{"$f":"XBRLMap(#REF!,L$53&\".\"&#REF!,L$54,L$55,CONFIGURATION!$B$10,\"BMA\",CONFIGURATION!$B$1,\"bscr\",CONFIGURATION!$B$12)","v":{"$error":"#VALUE!"}},null,null,null,{"$f":"XBRLMap(#REF!,P$53&\".\"&#REF!,P$54,P$55,CONFIGURATION!$B$10,\"BMA\",CONFIGURATION!$B$1,\"bscr\",CONFIGURATION!$B$12)","v":{"$error":"#VALUE!"}}]
[null,null,null,null,null,null,null,null,null,null,null,{"$f":"XBRLMap(#REF!,L$53&\".\"&#REF!,L$54,L$55,CONFIGURATION!$B$10,\"BMA\",CONFIGURATION!$B$1,\"bscr\",CONFIGURATION!$B$12)","v":{"$error":"#VALUE!"}},null,null,null,{"$f":"XBRLMap(#REF!,P$53&\".\"&#REF!,P$54,P$55,CONFIGURATION!$B$10,\"BMA\",CONFIGURATION!$B$1,\"bscr\",CONFIGURATION!$B$12)","v":{"$error":"#VALUE!"}},null,null,null,{"$f":"XBRLMap(#REF!,T$54&\".\"&#REF!,T$55,T$56,CONFIGURATION!$B$10,\"BMA\",CONFIGURATION!$B$1,\"bscr\")","v":{"$error":"#VALUE!"}}]
[null,null,null,null,null,null,null,null,null,null,null,{"$f":"XBRLMap(#REF!,L$53&\".\"&#REF!,L$54,L$55,CONFIGURATION!$B$10,\"BMA\",CONFIGURATION!$B$1,\"bscr\",CONFIGURATION!$B$12)","v":{"$error":"#VALUE!"}},null,null,null,{"$f":"XBRLMap(#REF!,P$53&\".\"&#REF!,P$54,P$55,CONFIGURATION!$B$10,\"BMA\",CONFIGURATION!$B$1,\"bscr\",CONFIGURATION!$B$12)","v":{"$error":"#VALUE!"}},null,null,null,{"$f":"XBRLMap(#REF!,T$54&\".\"&#REF!,T$55,T$56,CONFIGURATION!$B$10,\"BMA\",CONFIGURATION!$B$1,\"bscr\")","v":{"$error":"#VALUE!"}}]
[null,null,null,null,null,null,null,null,null,null,null,{"$f":"XBRLMap(#REF!,L$53&\".\"&#REF!,L$54,L$55,CONFIGURATION!$B$10,\"BMA\",CONFIGURATION!$B$1,\"bscr\",CONFIGURATION!$B$12)","v":{"$error":"#VALUE!"}},null,null,null,{"$f":"XBRLMap(#REF!,P$53&\".\"&#REF!,P$54,P$55,CONFIGURATION!$B$10,\"BMA\",CONFIGURATION!$B$1,\"bscr\",CONFIGURATION!$B$12)","v":{"$error":"#VALUE!"}},null,null,null,{"$f":"XBRLMap(#REF!,T$54&\".\"&#REF!,T$55,T$56,CONFIGURATION!$B$10,\"BMA\",CONFIGURATION!$B$1,\"bscr\")","v":{"$error":"#VALUE!"}}]
[null,null,null,null,null,null,null,null,null,null,null,{"$f":"XBRLMap(#REF!,L$53&\".\"&#REF!,L$54,L$55,CONFIGURATION!$B$10,\"BMA\",CONFIGURATION!$B$1,\"bscr\",CONFIGURATION!$B$12)","v":{"$error":"#VALUE!"}},null,null,null,{"$f":"XBRLMap(#REF!,P$53&\".\"&#REF!,P$54,P$55,CONFIGURATION!$B$10,\"BMA\",CONFIGURATION!$B$1,\"bscr\",CONFIGURATION!$B$12)","v":{"$error":"#VALUE!"}},null,null,null,{"$f":"XBRLMap(#REF!,T$54&\".\"&#REF!,T$55,T$56,CONFIGURATION!$B$10,\"BMA\",CONFIGURATION!$B$1,\"bscr\")","v":{"$error":"#VALUE!"}}]
[null,null,null,null,null,null,null,null,null,null,null,null,null,null,null,null,null,null,null,{"$f":"XBRLMap(#REF!,T$54&\".\"&#REF!,T$55,T$56,CONFIGURATION!$B$10,\"BMA\",CONFIGURATION!$B$1,\"bscr\")","v":{"$error":"#VALUE!"}}]
[null,null,null,null,null,null,null,null,null,null,null,{"$f":"XBRLMap(#REF!,L$53&\".\"&#REF!,L$54,L$55,CONFIGURATION!$B$10,\"BMA\",CONFIGURATION!$B$1,\"bscr\",CONFIGURATION!$B$12)","v":{"$error":"#VALUE!"}},null,null,null,{"$f":"XBRLMap(#REF!,P$53&\".\"&#REF!,P$54,P$55,CONFIGURATION!$B$10,\"BMA\",CONFIGURATION!$B$1,\"bscr\",CONFIGURATION!$B$12)","v":{"$error":"#VALUE!"}}]
[null,null,null,null,null,null,null,null,null,null,null,{"$f":"XBRLMap(#REF!,L$53&\".\"&#REF!,L$54,L$55,CONFIGURATION!$B$10,\"BMA\",CONFIGURATION!$B$1,\"bscr\",CONFIGURATION!$B$12)","v":{"$error":"#VALUE!"}},null,null,null,{"$f":"XBRLMap(#REF!,P$53&\".\"&#REF!,P$54,P$55,CONFIGURATION!$B$10,\"BMA\",CONFIGURATION!$B$1,\"bscr\",CONFIGURATION!$B$12)","v":{"$error":"#VALUE!"}},null,null,null,{"$f":"XBRLMap(#REF!,T$54&\".\"&#REF!,T$55,T$56,CONFIGURATION!$B$10,\"BMA\",CONFIGURATION!$B$1,\"bscr\")","v":{"$error":"#VALUE!"}}]
[null,null,null,null,null,null,null,null,null,null,null,{"$f":"XBRLMap(#REF!,L$53&\".\"&#REF!,L$54,L$55,CONFIGURATION!$B$10,\"BMA\",CONFIGURATION!$B$1,\"bscr\",CONFIGURATION!$B$12)","v":{"$error":"#VALUE!"}},null,null,null,{"$f":"XBRLMap(#REF!,P$53&\".\"&#REF!,P$54,P$55,CONFIGURATION!$B$10,\"BMA\",CONFIGURATION!$B$1,\"bscr\",CONFIGURATION!$B$12)","v":{"$error":"#VALUE!"}},null,null,null,{"$f":"XBRLMap(#REF!,T$54&\".\"&#REF!,T$55,T$56,CONFIGURATION!$B$10,\"BMA\",CONFIGURATION!$B$1,\"bscr\")","v":{"$error":"#VALUE!"}}]
[null,null,null,null,null,null,null,null,null,null,null,{"$f":"XBRLMap(#REF!,L$53&\".\"&#REF!,L$54,L$55,CONFIGURATION!$B$10,\"BMA\",CONFIGURATION!$B$1,\"bscr\",CONFIGURATION!$B$12)","v":{"$error":"#VALUE!"}},null,null,null,{"$f":"XBRLMap(#REF!,P$53&\".\"&#REF!,P$54,P$55,CONFIGURATION!$B$10,\"BMA\",CONFIGURATION!$B$1,\"bscr\",CONFIGURATION!$B$12)","v":{"$error":"#VALUE!"}},null,null,null,{"$f":"XBRLMap(#REF!,T$54&\".\"&#REF!,T$55,T$56,CONFIGURATION!$B$10,\"BMA\",CONFIGURATION!$B$1,\"bscr\")","v":{"$error":"#VALUE!"}}]
[null,null,null,null,null,null,null,null,null,null,null,{"$f":"XBRLMap(#REF!,L$53&\".\"&#REF!,L$54,L$55,CONFIGURATION!$B$10,\"BMA\",CONFIGURATION!$B$1,\"bscr\",CONFIGURATION!$B$12)","v":{"$error":"#VALUE!"}},null,null,null,{"$f":"XBRLMap(#REF!,P$53&\".\"&#REF!,P$54,P$55,CONFIGURATION!$B$10,\"BMA\",CONFIGURATION!$B$1,\"bscr\",CONFIGURATION!$B$12)","v":{"$error":"#VALUE!"}},null,null,null,{"$f":"XBRLMap(#REF!,T$54&\".\"&#REF!,T$55,T$56,CONFIGURATION!$B$10,\"BMA\",CONFIGURATION!$B$1,\"bscr\")","v":{"$error":"#VALUE!"}}]
[null,null,null,null,null,null,null,null,null,null,null,{"$f":"XBRLMap(#REF!,L$53&\".\"&#REF!,L$54,L$55,CONFIGURATION!$B$10,\"BMA\",CONFIGURATION!$B$1,\"bscr\",CONFIGURATION!$B$12)","v":{"$error":"#VALUE!"}},null,null,null,{"$f":"XBRLMap(#REF!,P$53&\".\"&#REF!,P$54,P$55,CONFIGURATION!$B$10,\"BMA\",CONFIGURATION!$B$1,\"bscr\",CONFIGURATION!$B$12)","v":{"$error":"#VALUE!"}},null,null,null,{"$f":"XBRLMap(#REF!,T$54&\".\"&#REF!,T$55,T$56,CONFIGURATION!$B$10,\"BMA\",CONFIGURATION!$B$1,\"bscr\")","v":{"$error":"#VALUE!"}}]
[null,null,null,null,null,null,null,null,null,null,null,{"$f":"XBRLMap(#REF!,L$53&\".\"&#REF!,L$54,L$55,CONFIGURATION!$B$10,\"BMA\",CONFIGURATION!$B$1,\"bscr\",CONFIGURATION!$B$12)","v":{"$error":"#VALUE!"}},null,null,null,{"$f":"XBRLMap(#REF!,P$53&\".\"&#REF!,P$54,P$55,CONFIGURATION!$B$10,\"BMA\",CONFIGURATION!$B$1,\"bscr\",CONFIGURATION!$B$12)","v":{"$error":"#VALUE!"}},null,null,null,{"$f":"XBRLMap(#REF!,T$54&\".\"&#REF!,T$55,T$56,CONFIGURATION!$B$10,\"BMA\",CONFIGURATION!$B$1,\"bscr\")","v":{"$error":"#VALUE!"}}]
[null,null,null,null,null,null,null,null,null,null,null,{"$f":"XBRLMap(#REF!,L$53&\".\"&#REF!,L$54,L$55,CONFIGURATION!$B$10,\"BMA\",CONFIGURATION!$B$1,\"bscr\",CONFIGURATION!$B$12)","v":{"$error":"#VALUE!"}},null,null,null,null,null,null,null,{"$f":"XBRLMap(#REF!,T$54&\".\"&#REF!,T$55,T$56,CONFIGURATION!$B$10,\"BMA\",CONFIGURATION!$B$1,\"bscr\")","v":{"$error":"#VALUE!"}}]
[null,null,null,null,null,null,null,null,null,null,null,null,null,null,null,"A or better"]
[null,null,null,null,null,null,null,null,null,null,null,null,null,null,null,"BBB or equivalent"]
[null,null,null,null,null,null,null,null,null,null,null,null,null,null,null,"B or better"]
[null,{"$f":"XBRLMap(#REF!,#REF!,B$54,B$55,CONFIGURATION!$B$10,\"BMA\",CONFIGURATION!$B$1,\"bscr\")","v":{"$error":"#VALUE!"}},null,null,null,null,null,null,null,null,null,null,null,null,null,"unrated/other"]
[]
[null,{"$f":"XBRLMap(#REF!,#REF!,B$54,B$55,CONFIGURATION!$B$10,\"BMA\",CONFIGURATION!$B$1,\"bscr\")","v":{"$error":"#VALUE!"}}]

{"sheet":"Schedule XXA","index":90,"n_rows":91,"n_cols":34,"rows_kept":91,"cut":false,"hidden":false,"merged":[[6,5,6,7],[6,9,6,11],[6,23,6,25],[6,27,6,29],[2,3,3,3],[4,3,4,33],[5,21,5,33],[5,3,5,14]]}
[null,"SCHEDULE OF CURRENCY RISK",null,null,null,null,null,null,null,null,null,null,null,null,null,null,null,null,null,null,null,null,null,null,null,null,null,null,null,null,null,null,null,{"$f":"HYPERLINK(\"#'Index'!A1\",\"Return to Index\")","v":"Return to Index"}]
[null,{"$f":"'Company Information'!C7","v":"Enter Company Name"}]
[null,{"$f":"'Form 1EBS'!C3","v":"2019-12-31"},null,null,null,null,null,null,null,null,null,null,null,null,null,null,null,null,null,null,null,null,null,null,null,null,null,null,null,null,null,null,null,"SCHEDULE XXA"]
[null,{"$f":"IF(CONFIGURATION!$B$12>1,\" ['\"&MID(CONFIGURATION!$B$12,2,LEN(CONFIGURATION!$B$12))&\"s]\",\"\")&'Form 1EBS'!C4","v":" ['000s]United States Dollars"}]
[null,null,null,"EBS Valuation"]
[null,null,null,"MARKET VALUE BEFORE SHOCK",null,null,null,null,null,null,null,null,null,null,null,null,null,null,null,null,null,"MARKET VALUE AFTER SHOCK"]
[null,null,null,null,null,"Long Exposures",null,null,null,"Short Exposures",null,null,null,null,null,null,null,null,null,null,null,null,null,"Long Exposures",null,null,null,"Short Exposures"]
[null,"Currency",null,"Assets - Excluding currency- derivatives",null,"Currency Derivatives Qualifying as held for risk-mitigation purposes",null,"Currency Derivatives Not Qualifying as held for risk-mitigation purposes",null,"Currency Derivatives Qualifying as held for risk-mitigation purposes",null,"Currency Derivatives Not Qualifying as held for risk-mitigation purposes",null,"Best Estimate Liabilities without Management Actions",null,"Proxy BSCR",null,"Surplus Assets",null,"Shock",null,"Assets - Excluding currency- derivatives",null,"Currency Derivatives Qualifying as held for risk-mitigation purposes",null,"Currency Derivatives Not Qualifying as held for risk-mitigation purposes",null,"Currency Derivatives Qualifying as held for risk-mitigation purposes",null,"Currency Derivatives Not Qualifying as held for risk-mitigation purposes",null,"Best Estimate Liabilities without Management Actions",null,"Best Estimate Liabilities with Management Actions"]
[null,null,null,"(A)",null,"(B)",null,"(C)",null,"(D)",null,"(E)",null,"(F)",null,null,null,null,null,null,null,"(G)",null,"(H)",null,"(I)",null,"(J)",null,"(K)",null,"(L)",null,"(M)"]
[null,{"$f":"'Form 1EBS'!C4","v":"United States Dollars"},null,{"$f":"Import!M13715","v":0},null,{"$f":"Import!M13738","v":0},null,{"$f":"Import!M13761","v":0},null,{"$f":"Import!M13784","v":0},null,{"$f":"Import!M13807","v":0},null,{"$f":"Import!M13830","v":0},null,{"$f":"$P$45*N10","v":0},null,{"$f":"D10+F10+H10+J10+L10-N10-P10","v":0},null,0,null,{"$f":"IF(OR(Import!M13853=0,Import!M13853=\"\"),(1+T10)*D10,Import!M13853)","v":0},null,{"$f":"Import!M13876","v":0},null,{"$f":"Import!M13899","v":0},null,{"$f":"Import!M13922","v":0},null,{"$f":"Import!M13945","v":0},null,{"$f":"IF(OR(Import!M13968=0,Import!M13968=\"\"),(1+T10)*N10,Import!M13968)","v":0},null,{"$f":"IF(OR(Import!M13991=0,Import!M13991=\"\"),AF10,Import!M13991)","v":0}]
[null,{"$f":"IF($B$10=\"Bermuda Dollars\",\"United States Dollar\",\"Bermuda Dollars\")","v":"Bermuda Dollars"},null,{"$f":"Import!M13716","v":0},null,{"$f":"Import!M13739","v":0},null,{"$f":"Import!M13762","v":0},null,{"$f":"Import!M13785","v":0},null,{"$f":"Import!M13808","v":0},null,{"$f":"Import!M13831","v":0},null,{"$f":"$P$45*N11","v":0},null,{"$f":"D11+F11+H11+J11+L11-N11-P11","v":0},null,{"$f":"IF($B$10=\"Bermuda Dollars\",0%,IF($B$10=\"United States Dollars\",0%,IF((D11+F11+H11+J11+L11)>(N11+P11),0%,25%)))","v":0},null,{"$f":"IF(OR(Import!M13854=0,Import!M13854=\"\"),(1+T11)*D11,Import!M13854)","v":0},null,{"$f":"Import!M13877","v":0},null,{"$f":"Import!M13900","v":0},null,{"$f":"Import!M13923","v":0},null,{"$f":"Import!M13946","v":0},null,{"$f":"IF(OR(Import!M13969=0,Import!M13969=\"\"),(1+T11)*N11,Import!M13969)","v":0},null,{"$f":"IF(OR(Import!M13992=0,Import!M13992=\"\"),AF11,Import!M13992)","v":0}]
[null,{"$f":"IF($B$10=\"Qatar Riyals\",\"United States Dollar\",\"Qatar Riyals\")","v":"Qatar Riyals"},null,{"$f":"Import!M13717","v":0},null,{"$f":"Import!M13740","v":0},null,{"$f":"Import!M13763","v":0},null,{"$f":"Import!M13786","v":0},null,{"$f":"Import!M13809","v":0},null,{"$f":"Import!M13832","v":0},null,0,null,0,null,{"$f":"IF($B$10=\"Qatar Riyals\",IF((D12+F12+H12+J12+L12)>(N12+P12),0%,5%),IF($B$10=\"United States Dollars\",IF((D12+F12+H12+J12+L12)>(N12+P12),0%,5%),IF((D12+F12+H12+J12+L12)>(N12+P12),0%,25%)))","v":0.05},null,{"$f":"IF(OR(Import!M13855=0,Import!M13855=\"\"),(1+T12)*D12,Import!M13855)","v":0},null,{"$f":"Import!M13878","v":0},null,{"$f":"Import!M13901","v":0},null,{"$f":"Import!M13924","v":0},null,{"$f":"Import!M13947","v":0},null,{"$f":"IF(OR(Import!M13970=0,Import!M13970=\"\"),(1+T12)*N12,Import!M13970)","v":0},null,{"$f":"IF(OR(Import!M13993=0,Import!M13993=\"\"),AF12,Import!M13993)","v":0}]
[null,{"$f":"IF($B$10=\"Hong Kong Dollars\",\"United States Dollar\",\"Hong Kong Dollars\")","v":"Hong Kong Dollars"},null,{"$f":"Import!M13718","v":0},null,{"$f":"Import!M13741","v":0},null,{"$f":"Import!M13764","v":0},null,{"$f":"Import!M13787","v":0},null,{"$f":"Import!M13810","v":0},null,{"$f":"Import!M13833","v":0},null,0,null,0,null,{"$f":"IF($B$10=\"Hong Kong Dollars\",IF((D13+F13+H13+J13+L13)>(N13+P13),0%,1%),IF($B$10=\"United States Dollars\",IF((D13+F13+H13+J13+L13)>(N13+P13),0%,1%),IF((D13+F13+H13+J13+L13)>(N13+P13),0%,25%)))","v":0.01},null,{"$f":"IF(OR(Import!M13856=0,Import!M13856=\"\"),(1+T13)*D13,Import!M13856)","v":0},null,{"$f":"Import!M13879","v":0},null,{"$f":"Import!M13902","v":0},null,{"$f":"Import!M13925","v":0},null,{"$f":"Import!M13948","v":0},null,{"$f":"IF(OR(Import!M13971=0,Import!M13971=\"\"),(1+T13)*N13,Import!M13971)","v":0},null,{"$f":"IF(OR(Import!M13994=0,Import!M13994=\"\"),AF13,Import!M13994)","v":0}]
[null,{"$f":"IF($B$10=\"Euro\",\"United States Dollar\",\"Euro\")","v":"Euro"},null,{"$f":"Import!M13719","v":0},null,{"$f":"Import!M13742","v":0},null,{"$f":"Import!M13765","v":0},null,{"$f":"Import!M13788","v":0},null,{"$f":"Import!M13811","v":0},null,{"$f":"Import!M13834","v":0},null,0,null,0,null,{"$f":"IF($B$10=\"Denmark Kroner\",IF((D14+F14+H14+J14+L14)>(N14+P14),0%,0.39%),IF($B$10=\"Bulgaria Leva\",IF((D14+F14+H14+J14+L14)>(N14+P14),0%,1.81%),IF($B$10=\"West African CFA Francs\",IF((D14+F14+H14+J14+L14)>(N14+P14),0%,2.18%),IF($B$10=\"Central African CFA Francs\",IF((D14+F14+H14+J14+L14)>(N14+P14),0%,1.96%),IF($B$10=\"Comorian Francs\",IF((D14+F14+H14+J14+L14)>(N14+P14),0%,2%),IF((D14+F14+H14+J14+L14)>(N14+P14),0%,25%))))))","v":0.25},null,{"$f":"IF(OR(Import!M13857=0,Import!M13857=\"\"),(1+T14)*D14,Import!M13857)","v":0},null,{"$f":"Import!M13880","v":0},null,{"$f":"Import!M13903","v":0},null,{"$f":"Import!M13926","v":0},null,{"$f":"Import!M13949","v":0},null,{"$f":"IF(OR(Import!M13972=0,Import!M13972=\"\"),(1+T14)*N14,Import!M13972)","v":0},null,{"$f":"IF(OR(Import!M13995=0,Import!M13995=\"\"),AF14,Import!M13995)","v":0}]
[null,{"$f":"IF($B$10=\"Denmark Kroner\",\"United States Dollar\",\"Denmark Kroner\")","v":"Denmark Kroner"},null,{"$f":"Import!M13720","v":0},null,{"$f":"Import!M13743","v":0},null,{"$f":"Import!M13766","v":0},null,{"$f":"Import!M13789","v":0},null,{"$f":"Import!M13812","v":0},null,{"$f":"Import!M13835","v":0},null,0,null,0,null,{"$f":"IF($B$10=\"Euro\",IF((D15+F15+H15+J15+L15)>(N15+P15),0%,0.39%),IF((D15+F15+H15+J15+L15)>(N15+P15),0%,25%))","v":0.25},null,{"$f":"IF(OR(Import!M13858=0,Import!M13858=\"\"),(1+T15)*D15,Import!M13858)","v":0},null,{"$f":"Import!M13881","v":0},null,{"$f":"Import!M13904","v":0},null,{"$f":"Import!M13927","v":0},null,{"$f":"Import!M13950","v":0},null,{"$f":"IF(OR(Import!M13973=0,Import!M13973=\"\"),(1+T15)*N15,Import!M13973)","v":0},null,{"$f":"IF(OR(Import!M13996=0,Import!M13996=\"\"),AF15,Import!M13996)","v":0}]
[null,{"$f":"IF($B$10=\"Bulgaria Leva\",\"United States Dollar\",\"Bulgaria Leva\")","v":"Bulgaria Leva"},null,{"$f":"Import!M13721","v":0},null,{"$f":"Import!M13744","v":0},null,{"$f":"Import!M13767","v":0},null,{"$f":"Import!M13790","v":0},null,{"$f":"Import!M13813","v":0},null,{"$f":"Import!M13836","v":0},null,0,null,0,null,{"$f":"IF($B$10=\"Euro\",IF((D16+F16+H16+J16+L16)>(N16+P16),0%,1.81%),IF((D16+F16+H16+J16+L16)>(N16+P16),0%,25%))","v":0.25},null,{"$f":"IF(OR(Import!M13859=0,Import!M13859=\"\"),(1+T16)*D16,Import!M13859)","v":0},null,{"$f":"Import!M13882","v":0},null,{"$f":"Import!M13905","v":0},null,{"$f":"Import!M13928","v":0},null,{"$f":"Import!M13951","v":0},null,{"$f":"IF(OR(Import!M13974=0,Import!M13974=\"\"),(1+T16)*N16,Import!M13974)","v":0},null,{"$f":"IF(OR(Import!M13997=0,Import!M13997=\"\"),AF16,Import!M13997)","v":0}]
[null,{"$f":"IF($B$10=\"West African CFA Francs\",\"United States Dollar\",\"West African CFA Francs\")","v":"West African CFA Francs"},null,{"$f":"Import!M13722","v":0},null,{"$f":"Import!M13745","v":0},null,{"$f":"Import!M13768","v":0},null,{"$f":"Import!M13791","v":0},null,{"$f":"Import!M13814","v":0},null,{"$f":"Import!M13837","v":0},null,0,null,0,null,{"$f":"IF($B$10=\"Euro\",IF((D17+F17+H17+J17+L17)>(N17+P17),0%,2.18%),IF((D17+F17+H17+J17+L17)>(N17+P17),0%,25%))","v":0.25},null,{"$f":"IF(OR(Import!M13860=0,Import!M13860=\"\"),(1+T17)*D17,Import!M13860)","v":0},null,{"$f":"Import!M13883","v":0},null,{"$f":"Import!M13906","v":0},null,{"$f":"Import!M13929","v":0},null,{"$f":"Import!M13952","v":0},null,{"$f":"IF(OR(Import!M13975=0,Import!M13975=\"\"),(1+T17)*N17,Import!M13975)","v":0},null,{"$f":"IF(OR(Import!M13998=0,Import!M13998=\"\"),AF17,Import!M13998)","v":0}]
[null,{"$f":"IF($B$10=\"Central African CFA Francs\",\"United States Dollar\",\"Central African CFA Francs\")","v":"Central African CFA Francs"},null,{"$f":"Import!M13723","v":0},null,{"$f":"Import!M13746","v":0},null,{"$f":"Import!M13769","v":0},null,{"$f":"Import!M13792","v":0},null,{"$f":"Import!M13815","v":0},null,{"$f":"Import!M13838","v":0},null,0,null,0,null,{"$f":"IF($B$10=\"Euro\",IF((D18+F18+H18+J18+L18)>(N18+P18),0%,1.96%),IF((D18+F18+H18+J18+L18)>(N18+P18),0%,25%))","v":0.25},null,{"$f":"IF(OR(Import!M13861=0,Import!M13861=\"\"),(1+T18)*D18,Import!M13861)","v":0},null,{"$f":"Import!M13884","v":0},null,{"$f":"Import!M13907","v":0},null,{"$f":"Import!M13930","v":0},null,{"$f":"Import!M13953","v":0},null,{"$f":"IF(OR(Import!M13976=0,Import!M13976=\"\"),(1+T18)*N18,Import!M13976)","v":0},null,{"$f":"IF(OR(Import!M13999=0,Import!M13999=\"\"),AF18,Import!M13999)","v":0}]
[null,{"$f":"IF($B$10=\"Comorian Francs\",\"United States Dollar\",\"Comorian Francs\")","v":"Comorian Francs"},null,{"$f":"Import!M13724","v":0},null,{"$f":"Import!M13747","v":0},null,{"$f":"Import!M13770","v":0},null,{"$f":"Import!M13793","v":0},null,{"$f":"Import!M13816","v":0},null,{"$f":"Import!M13839","v":0},null,0,null,0,null,{"$f":"IF($B$10=\"Euro\",IF((D19+F19+H19+J19+L19)>(N19+P19),0%,2%),IF((D19+F19+H19+J19+L19)>(N19+P19),0%,25%))","v":0.25},null,{"$f":"IF(OR(Import!M13862=0,Import!M13862=\"\"),(1+T19)*D19,Import!M13862)","v":0},null,{"$f":"Import!M13885","v":0},null,{"$f":"Import!M13908","v":0},null,{"$f":"Import!M13931","v":0},null,{"$f":"Import!M13954","v":0},null,{"$f":"IF(OR(Import!M13977=0,Import!M13977=\"\"),(1+T19)*N19,Import!M13977)","v":0},null,{"$f":"IF(OR(Import!M14000=0,Import!M14000=\"\"),AF19,Import!M14000)","v":0}]
[null,{"$f":"IF($B$10=\"United Kingdom Pounds\",\"United States Dollar\",\"United Kingdom Pounds\")","v":"United Kingdom Pounds"},null,{"$f":"Import!M13725","v":0},null,{"$f":"Import!M13748","v":0},null,{"$f":"Import!M13771","v":0},null,{"$f":"Import!M13794","v":0},null,{"$f":"Import!M13817","v":0},null,{"$f":"Import!M13840","v":0},null,0,null,0,null,{"$f":"IF((D20+F20+H20+J20+L20)>(N20+P20),0%,25%)","v":0.25},null,{"$f":"IF(OR(Import!M13863=0,Import!M13863=\"\"),(1+T20)*D20,Import!M13863)","v":0},null,{"$f":"Import!M13886","v":0},null,{"$f":"Import!M13909","v":0},null,{"$f":"Import!M13932","v":0},null,{"$f":"Import!M13955","v":0},null,{"$f":"IF(OR(Import!M13978=0,Import!M13978=\"\"),(1+T20)*N20,Import!M13978)","v":0},null,{"$f":"IF(OR(Import!M14001=0,Import!M14001=\"\"),AF20,Import!M14001)","v":0}]
[null,{"$f":"IF($B$10=\"Canada Dollars\",\"United States Dollar\",\"Canada Dollars\")","v":"Canada Dollars"},null,{"$f":"Import!M13726","v":0},null,{"$f":"Import!M13749","v":0},null,{"$f":"Import!M13772","v":0},null,{"$f":"Import!M13795","v":0},null,{"$f":"Import!M13818","v":0},null,{"$f":"Import!M13841","v":0},null,0,null,0,null,{"$f":"IF((D21+F21+H21+J21+L21)>(N21+P21),0%,25%)","v":0.25},null,{"$f":"IF(OR(Import!M13864=0,Import!M13864=\"\"),(1+T21)*D21,Import!M13864)","v":0},null,{"$f":"Import!M13887","v":0},null,{"$f":"Import!M13910","v":0},null,{"$f":"Import!M13933","v":0},null,{"$f":"Import!M13956","v":0},null,{"$f":"IF(OR(Import!M13979=0,Import!M13979=\"\"),(1+T21)*N21,Import!M13979)","v":0},null,{"$f":"IF(OR(Import!M14002=0,Import!M14002=\"\"),AF21,Import!M14002)","v":0}]
[null,{"$f":"IF($B$10=\"Japan Yen\",\"United States Dollar\",\"Japan Yen\")","v":"Japan Yen"},null,{"$f":"Import!M13727","v":0},null,{"$f":"Import!M13750","v":0},null,{"$f":"Import!M13773","v":0},null,{"$f":"Import!M13796","v":0},null,{"$f":"Import!M13819","v":0},null,{"$f":"Import!M13842","v":0},null,0,null,0,null,0.25,null,{"$f":"IF(OR(Import!M13865=0,Import!M13865=\"\"),(1+T22)*D22,Import!M13865)","v":0},null,{"$f":"Import!M13888","v":0},null,{"$f":"Import!M13911","v":0},null,{"$f":"Import!M13934","v":0},null,{"$f":"Import!M13957","v":0},null,{"$f":"IF(OR(Import!M13980=0,Import!M13980=\"\"),(1+T22)*N22,Import!M13980)","v":0},null,{"$f":"IF(OR(Import!M14003=0,Import!M14003=\"\"),AF22,Import!M14003)","v":0}]
[null,{"$f":"Import!M13705","v":"Other currency 1"},null,{"$f":"Import!M13728","v":0},null,{"$f":"Import!M13751","v":0},null,{"$f":"Import!M13774","v":0},null,{"$f":"Import!M13797","v":0},null,{"$f":"Import!M13820","v":0},null,{"$f":"Import!M13843","v":0},null,0,null,0,null,0.25,null,{"$f":"IF(OR(Import!M13866=0,Import!M13866=\"\"),(1+T23)*D23,Import!M13866)","v":0},null,{"$f":"Import!M13889","v":0},null,{"$f":"Import!M13912","v":0},null,{"$f":"Import!M13935","v":0},null,{"$f":"Import!M13958","v":0},null,{"$f":"IF(OR(Import!M13981=0,Import!M13981=\"\"),(1+T23)*N23,Import!M13981)","v":0},null,{"$f":"IF(OR(Import!M14004=0,Import!M14004=\"\"),AF23,Import!M14004)","v":0}]
[null,{"$f":"Import!M13706","v":"Other currency 2"},null,{"$f":"Import!M13729","v":0},null,{"$f":"Import!M13752","v":0},null,{"$f":"Import!M13775","v":0},null,{"$f":"Import!M13798","v":0},null,{"$f":"Import!M13821","v":0},null,{"$f":"Import!M13844","v":0},null,0,null,0,null,0.25,null,{"$f":"IF(OR(Import!M13867=0,Import!M13867=\"\"),(1+T24)*D24,Import!M13867)","v":0},null,{"$f":"Import!M13890","v":0},null,{"$f":"Import!M13913","v":0},null,{"$f":"Import!M13936","v":0},null,{"$f":"Import!M13959","v":0},null,{"$f":"IF(OR(Import!M13982=0,Import!M13982=\"\"),(1+T24)*N24,Import!M13982)","v":0},null,{"$f":"IF(OR(Import!M14005=0,Import!M14005=\"\"),AF24,Import!M14005)","v":0}]
[null,{"$f":"Import!M13707","v":"Other currency 3"},null,{"$f":"Import!M13730","v":0},null,{"$f":"Import!M13753","v":0},null,{"$f":"Import!M13776","v":0},null,{"$f":"Import!M13799","v":0},null,{"$f":"Import!M13822","v":0},null,{"$f":"Import!M13845","v":0},null,0,null,0,null,0.25,null,{"$f":"IF(OR(Import!M13868=0,Import!M13868=\"\"),(1+T25)*D25,Import!M13868)","v":0},null,{"$f":"Import!M13891","v":0},null,{"$f":"Import!M13914","v":0},null,{"$f":"Import!M13937","v":0},null,{"$f":"Import!M13960","v":0},null,{"$f":"IF(OR(Import!M13983=0,Import!M13983=\"\"),(1+T25)*N25,Import!M13983)","v":0},null,{"$f":"IF(OR(Import!M14006=0,Import!M14006=\"\"),AF25,Import!M14006)","v":0}]
[null,{"$f":"Import!M13708","v":"Other currency 4"},null,{"$f":"Import!M13731","v":0},null,{"$f":"Import!M13754","v":0},null,{"$f":"Import!M13777","v":0},null,{"$f":"Import!M13800","v":0},null,{"$f":"Import!M13823","v":0},null,{"$f":"Import!M13846","v":0},null,0,null,0,null,0.25,null,{"$f":"IF(OR(Import!M13869=0,Import!M13869=\"\"),(1+T26)*D26,Import!M13869)","v":0},null,{"$f":"Import!M13892","v":0},null,{"$f":"Import!M13915","v":0},null,{"$f":"Import!M13938","v":0},null,{"$f":"Import!M13961","v":0},null,{"$f":"IF(OR(Import!M13984=0,Import!M13984=\"\"),(1+T26)*N26,Import!M13984)","v":0},null,{"$f":"IF(OR(Import!M14007=0,Import!M14007=\"\"),AF26,Import!M14007)","v":0}]
[null,{"$f":"Import!M13709","v":"Other currency 5"},null,{"$f":"Import!M13732","v":0},null,{"$f":"Import!M13755","v":0},null,{"$f":"Import!M13778","v":0},null,{"$f":"Import!M13801","v":0},null,{"$f":"Import!M13824","v":0},null,{"$f":"Import!M13847","v":0},null,0,null,0,null,0.25,null,{"$f":"IF(OR(Import!M13870=0,Import!M13870=\"\"),(1+T27)*D27,Import!M13870)","v":0},null,{"$f":"Import!M13893","v":0},null,{"$f":"Import!M13916","v":0},null,{"$f":"Import!M13939","v":0},null,{"$f":"Import!M13962","v":0},null,{"$f":"IF(OR(Import!M13985=0,Import!M13985=\"\"),(1+T27)*N27,Import!M13985)","v":0},null,{"$f":"IF(OR(Import!M14008=0,Import!M14008=\"\"),AF27,Import!M14008)","v":0}]
[null,{"$f":"Import!M13710","v":"Other currency 6"},null,{"$f":"Import!M13733","v":0},null,{"$f":"Import!M13756","v":0},null,{"$f":"Import!M13779","v":0},null,{"$f":"Import!M13802","v":0},null,{"$f":"Import!M13825","v":0},null,{"$f":"Import!M13848","v":0},null,0,null,0,null,0.25,null,{"$f":"IF(OR(Import!M13871=0,Import!M13871=\"\"),(1+T28)*D28,Import!M13871)","v":0},null,{"$f":"Import!M13894","v":0},null,{"$f":"Import!M13917","v":0},null,{"$f":"Import!M13940","v":0},null,{"$f":"Import!M13963","v":0},null,{"$f":"IF(OR(Import!M13986=0,Import!M13986=\"\"),(1+T28)*N28,Import!M13986)","v":0},null,{"$f":"IF(OR(Import!M14009=0,Import!M14009=\"\"),AF28,Import!M14009)","v":0}]
[null,{"$f":"Import!M13711","v":"Other currency 7"},null,{"$f":"Import!M13734","v":0},null,{"$f":"Import!M13757","v":0},null,{"$f":"Import!M13780","v":0},null,{"$f":"Import!M13803","v":0},null,{"$f":"Import!M13826","v":0},null,{"$f":"Import!M13849","v":0},null,0,null,0,null,0.25,null,{"$f":"IF(OR(Import!M13872=0,Import!M13872=\"\"),(1+T29)*D29,Import!M13872)","v":0},null,{"$f":"Import!M13895","v":0},null,{"$f":"Import!M13918","v":0},null,{"$f":"Import!M13941","v":0},null,{"$f":"Import!M13964","v":0},null,{"$f":"IF(OR(Import!M13987=0,Import!M13987=\"\"),(1+T29)*N29,Import!M13987)","v":0},null,{"$f":"IF(OR(Import!M14010=0,Import!M14010=\"\"),AF29,Import!M14010)","v":0}]
[null,{"$f":"Import!M13712","v":"Other currency 8"},null,{"$f":"Import!M13735","v":0},null,{"$f":"Import!M13758","v":0},null,{"$f":"Import!M13781","v":0},null,{"$f":"Import!M13804","v":0},null,{"$f":"Import!M13827","v":0},null,{"$f":"Import!M13850","v":0},null,0,null,0,null,0.25,null,{"$f":"IF(OR(Import!M13873=0,Import!M13873=\"\"),(1+T30)*D30,Import!M13873)","v":0},null,{"$f":"Import!M13896","v":0},null,{"$f":"Import!M13919","v":0},null,{"$f":"Import!M13942","v":0},null,{"$f":"Import!M13965","v":0},null,{"$f":"IF(OR(Import!M13988=0,Import!M13988=\"\"),(1+T30)*N30,Import!M13988)","v":0},null,{"$f":"IF(OR(Import!M14011=0,Import!M14011=\"\"),AF30,Import!M14011)","v":0}]
[null,{"$f":"Import!M13713","v":"Other currency 9"},null,{"$f":"Import!M13736","v":0},null,{"$f":"Import!M13759","v":0},null,{"$f":"Import!M13782","v":0},null,{"$f":"Import!M13805","v":0},null,{"$f":"Import!M13828","v":0},null,{"$f":"Import!M13851","v":0},null,0,null,0,null,0.25,null,{"$f":"IF(OR(Import!M13874=0,Import!M13874=\"\"),(1+T31)*D31,Import!M13874)","v":0},null,{"$f":"Import!M13897","v":0},null,{"$f":"Import!M13920","v":0},null,{"$f":"Import!M13943","v":0},null,{"$f":"Import!M13966","v":0},null,{"$f":"IF(OR(Import!M13989=0,Import!M13989=\"\"),(1+T31)*N31,Import!M13989)","v":0},null,{"$f":"IF(OR(Import!M14012=0,Import!M14012=\"\"),AF31,Import!M14012)","v":0}]
[null,{"$f":"Import!M13714","v":"Other currency 10"},null,{"$f":"Import!M13737","v":0},null,{"$f":"Import!M13760","v":0},null,{"$f":"Import!M13783","v":0},null,{"$f":"Import!M13806","v":0},null,{"$f":"Import!M13829","v":0},null,{"$f":"Import!M13852","v":0},null,0,null,0,null,0.25,null,{"$f":"IF(OR(Import!M13875=0,Import!M13875=\"\"),(1+T32)*D32,Import!M13875)","v":0},null,{"$f":"Import!M13898","v":0},null,{"$f":"Import!M13921","v":0},null,{"$f":"Import!M13944","v":0},null,{"$f":"Import!M13967","v":0},null,{"$f":"IF(OR(Import!M13990=0,Import!M13990=\"\"),(1+T32)*N32,Import!M13990)","v":0},null,{"$f":"IF(OR(Import!M14013=0,Import!M14013=\"\"),AF32,Import!M14013)","v":0}]
[null,"Currency Total",null,{"$f":"SUM(D10:D32)","v":0},null,{"$f":"SUM(F10:F32)","v":0},null,{"$f":"SUM(H10:H32)","v":0},null,{"$f":"SUM(J10:J32)","v":0},null,{"$f":"SUM(L10:L32)","v":0},null,{"$f":"SUM(N10:N32)","v":0},null,null,null,null,null,null,null,{"$f":"SUM(V10:V32)","v":0},null,{"$f":"SUM(X10:X32)","v":0},null,{"$f":"SUM(Z10:Z32)","v":0},null,{"$f":"SUM(AB10:AB32)","v":0},null,{"$f":"SUM(AD10:AD32)","v":0},null,{"$f":"SUM(AF10:AF32)","v":0},null,{"$f":"SUM(AH10:AH32)","v":0}]
[]
[null,null,null,"Form 1EBS Line 15",null,null,null,null,null,null,null,null,null,"Form 1EBS Line 39"]
[null,"Balance Sheet Total",null,{"$f":"+'Form 1EBS'!F90","v":0},null,null,null,null,null,null,null,null,null,{"$f":"+'Form 1EBS'!F163","v":0}]
[null,"% of Balance Sheet Total",null,{"$f":"IF(D36=0,0,(SUM(D33:L33))/D36)","v":0},null,null,null,null,null,null,null,null,null,{"$f":"IF(N36=0,0,N33/N36)","v":0}]
[]
[null,"95% Minimum Test Met",null,{"$f":"IF(D36=0,\"Form 1EBS is Blank\",IF(D37<=95%,\"False\",IF(D37>100%,\"False\",\"True\")))","v":"Form 1EBS is Blank"},null,null,null,null,null,null,null,null,null,{"$f":"IF(N36=0,\"Form 1EBS is Blank\",IF(N37<=95%,\"False\",IF(N37>100%,\"False\",\"True\")))","v":"Form 1EBS is Blank"}]
[]
[null,null,null,"Liabilities",null,null,null,"ECR Charge",null,null,null,null,null,"Ratio",null,"Assessment*"]
[null,null,null,"Form 1EBS, Line 39",null,null,null,"Summary tab"]
[null,{"$f":"'Form 1EBS'!H7","v":"2018-12-31"},null,{"$f":"Import!M14014","v":0},null,null,null,{"$f":"Import!M14017","v":0},null,null,null,null,null,{"$f":"IF(H43=0,\"\",H43/D43)","v":""}]
[null,{"$f":"DATE(YEAR(B43)-1,MONTH(B43),DAY(B43))","v":"2017-12-31"},null,{"$f":"Import!M14015","v":0},null,null,null,{"$f":"Import!M14018","v":0},null,null,null,null,null,{"$f":"IF(H44=0,\"\",H44/D44)","v":""}]
[null,{"$f":"DATE(YEAR(B44)-1,MONTH(B44),DAY(B44))","v":"2016-12-31"},null,{"$f":"Import!M14016","v":0},null,null,null,{"$f":"Import!M14019","v":0},null,null,null,null,null,{"$f":"IF(H45=0,\"\",H45/D45)","v":""},null,{"$f":"IF(SUM(N43:N45)=0,IF(H43=0,0%,N43),MAX(,N43,AVERAGE(N43:N45)))","v":0}]
[]
[null,"*If there are no amounts for previous years, enter the results from the current year without taking currency risk into account into the prior year"]
[]
[]
[]
[]
[]
[]
[]
[]
[]
[]
[]
[]
[]
[]
[null,null,null,"brrt_BondsAndDebentures",null,null,null,null,null,null,null,null,null,"brrt_BondsAndDebenturesFaceValue",null,null,null,null,null,null,null,null,null,null,null,"brrt_BondsAndDebenturesFaceValue",null,null,null,null,null,"brrt_BondsAndDebenturesFaceValue",null,"brrt_BondsAndDebenturesFaceValue"]
[null,{"$f":"IF($B$3=\"\",\"\",TEXT(DATE(YEAR($B$3+1)-1,MONTH($B$3+1),DAY($B$3+1)),\"mm/dd/yyyy\"))","v":"01/01/2019"},null,{"$f":"IF($B$3=\"\",\"\",TEXT(DATE(YEAR($B$3+1)-1,MONTH($B$3+1),DAY($B$3+1)),\"mm/dd/yyyy\"))","v":"01/01/2019"},null,null,null,null,null,null,null,null,null,{"$f":"IF($B$3=\"\",\"\",TEXT(DATE(YEAR($B$3+1)-1,MONTH($B$3+1),DAY($B$3+1)),\"mm/dd/yyyy\"))","v":"01/01/2019"},null,null,null,null,null,null,null,null,null,null,null,{"$f":"IF($B$3=\"\",\"\",TEXT(DATE(YEAR($B$3+1)-1,MONTH($B$3+1),DAY($B$3+1)),\"mm/dd/yyyy\"))","v":"01/01/2019"},null,null,null,null,null,{"$f":"IF($B$3=\"\",\"\",TEXT(DATE(YEAR($B$3+1)-1,MONTH($B$3+1),DAY($B$3+1)),\"mm/dd/yyyy\"))","v":"01/01/2019"},null,{"$f":"IF($B$3=\"\",\"\",TEXT(DATE(YEAR($B$3+1)-1,MONTH($B$3+1),DAY($B$3+1)),\"mm/dd/yyyy\"))","v":"01/01/2019"}]
[null,{"$f":"IF($B$3=\"\",\"\",TEXT($B$3,\"mm/dd/yyyy\"))","v":"12/31/2019"},null,{"$f":"IF($B$3=\"\",\"\",TEXT($B$3,\"mm/dd/yyyy\"))","v":"12/31/2019"},null,null,null,null,null,null,null,null,null,{"$f":"IF($B$3=\"\",\"\",TEXT($B$3,\"mm/dd/yyyy\"))","v":"12/31/2019"},null,null,null,null,null,null,null,null,null,null,null,{"$f":"IF($B$3=\"\",\"\",TEXT($B$3,\"mm/dd/yyyy\"))","v":"12/31/2019"},null,null,null,null,null,{"$f":"IF($B$3=\"\",\"\",TEXT($B$3,\"mm/dd/yyyy\"))","v":"12/31/2019"},null,{"$f":"IF($B$3=\"\",\"\",TEXT($B$3,\"mm/dd/yyyy\"))","v":"12/31/2019"}]
[]
[null,null,null,{"$f":"XBRLMap(#REF!,D$62&\".\"&#REF!,D$63,D$64,CONFIGURATION!$B$10,\"BMA\",CONFIGURATION!$B$1,\"bscr\",CONFIGURATION!$B$12)","v":{"$error":"#VALUE!"}},null,null,null,null,null,null,null,null,null,{"$f":"XBRLMap(#REF!,N$62&\".\"&#REF!,N$63,N$64,CONFIGURATION!$B$10,\"BMA\",CONFIGURATION!$B$1,\"bscr\",CONFIGURATION!$B$12)","v":{"$error":"#VALUE!"}},null,null,null,null,null,null,null,null,null,null,null,{"$f":"XBRLMap(#REF!,Z$62&\".\"&#REF!,Z$63,Z$64,CONFIGURATION!$B$10,\"BMA\",CONFIGURATION!$B$1,\"bscr\",CONFIGURATION!$B$12)","v":{"$error":"#VALUE!"}},null,null,null,null,null,{"$f":"XBRLMap(#REF!,AF$62&\".\"&#REF!,AF$63,AF$64,CONFIGURATION!$B$10,\"BMA\",CONFIGURATION!$B$1,\"bscr\",CONFIGURATION!$B$12)","v":{"$error":"#VALUE!"}},null,{"$f":"XBRLMap(#REF!,AH$62&\".\"&#REF!,AH$63,AH$64,CONFIGURATION!$B$10,\"BMA\",CONFIGURATION!$B$1,\"bscr\",CONFIGURATION!$B$12)","v":{"$error":"#VALUE!"}}]
[null,null,null,{"$f":"XBRLMap(#REF!,D$62&\".\"&#REF!,D$63,D$64,CONFIGURATION!$B$10,\"BMA\",CONFIGURATION!$B$1,\"bscr\",CONFIGURATION!$B$12)","v":{"$error":"#VALUE!"}},null,null,null,null,null,null,null,null,null,{"$f":"XBRLMap(#REF!,N$62&\".\"&#REF!,N$63,N$64,CONFIGURATION!$B$10,\"BMA\",CONFIGURATION!$B$1,\"bscr\",CONFIGURATION!$B$12)","v":{"$error":"#VALUE!"}},null,null,null,null,null,null,null,null,null,null,null,{"$f":"XBRLMap(#REF!,Z$62&\".\"&#REF!,Z$63,Z$64,CONFIGURATION!$B$10,\"BMA\",CONFIGURATION!$B$1,\"bscr\",CONFIGURATION!$B$12)","v":{"$error":"#VALUE!"}},null,null,null,null,null,{"$f":"XBRLMap(#REF!,AF$62&\".\"&#REF!,AF$63,AF$64,CONFIGURATION!$B$10,\"BMA\",CONFIGURATION!$B$1,\"bscr\",CONFIGURATION!$B$12)","v":{"$error":"#VALUE!"}},null,{"$f":"XBRLMap(#REF!,AH$62&\".\"&#REF!,AH$63,AH$64,CONFIGURATION!$B$10,\"BMA\",CONFIGURATION!$B$1,\"bscr\",CONFIGURATION!$B$12)","v":{"$error":"#VALUE!"}}]
[null,null,null,{"$f":"XBRLMap(#REF!,D$62&\".\"&#REF!,D$63,D$64,CONFIGURATION!$B$10,\"BMA\",CONFIGURATION!$B$1,\"bscr\",CONFIGURATION!$B$12)","v":{"$error":"#VALUE!"}},null,null,null,null,null,null,null,null,null,{"$f":"XBRLMap(#REF!,N$62&\".\"&#REF!,N$63,N$64,CONFIGURATION!$B$10,\"BMA\",CONFIGURATION!$B$1,\"bscr\",CONFIGURATION!$B$12)","v":{"$error":"#VALUE!"}},null,null,null,null,null,null,null,null,null,null,null,{"$f":"XBRLMap(#REF!,Z$62&\".\"&#REF!,Z$63,Z$64,CONFIGURATION!$B$10,\"BMA\",CONFIGURATION!$B$1,\"bscr\",CONFIGURATION!$B$12)","v":{"$error":"#VALUE!"}},null,null,null,null,null,{"$f":"XBRLMap(#REF!,AF$62&\".\"&#REF!,AF$63,AF$64,CONFIGURATION!$B$10,\"BMA\",CONFIGURATION!$B$1,\"bscr\",CONFIGURATION!$B$12)","v":{"$error":"#VALUE!"}},null,{"$f":"XBRLMap(#REF!,AH$62&\".\"&#REF!,AH$63,AH$64,CONFIGURATION!$B$10,\"BMA\",CONFIGURATION!$B$1,\"bscr\",CONFIGURATION!$B$12)","v":{"$error":"#VALUE!"}}]
[null,null,null,{"$f":"XBRLMap(#REF!,D$62&\".\"&#REF!,D$63,D$64,CONFIGURATION!$B$10,\"BMA\",CONFIGURATION!$B$1,\"bscr\",CONFIGURATION!$B$12)","v":{"$error":"#VALUE!"}},null,null,null,null,null,null,null,null,null,{"$f":"XBRLMap(#REF!,N$62&\".\"&#REF!,N$63,N$64,CONFIGURATION!$B$10,\"BMA\",CONFIGURATION!$B$1,\"bscr\",CONFIGURATION!$B$12)","v":{"$error":"#VALUE!"}},null,null,null,null,null,null,null,null,null,null,null,{"$f":"XBRLMap(#REF!,Z$62&\".\"&#REF!,Z$63,Z$64,CONFIGURATION!$B$10,\"BMA\",CONFIGURATION!$B$1,\"bscr\",CONFIGURATION!$B$12)","v":{"$error":"#VALUE!"}},null,null,null,null,null,{"$f":"XBRLMap(#REF!,AF$62&\".\"&#REF!,AF$63,AF$64,CONFIGURATION!$B$10,\"BMA\",CONFIGURATION!$B$1,\"bscr\",CONFIGURATION!$B$12)","v":{"$error":"#VALUE!"}},null,{"$f":"XBRLMap(#REF!,AH$62&\".\"&#REF!,AH$63,AH$64,CONFIGURATION!$B$10,\"BMA\",CONFIGURATION!$B$1,\"bscr\",CONFIGURATION!$B$12)","v":{"$error":"#VALUE!"}}]
[null,null,null,{"$f":"XBRLMap(#REF!,D$62&\".\"&#REF!,D$63,D$64,CONFIGURATION!$B$10,\"BMA\",CONFIGURATION!$B$1,\"bscr\",CONFIGURATION!$B$12)","v":{"$error":"#VALUE!"}},null,null,null,null,null,null,null,null,null,{"$f":"XBRLMap(#REF!,N$62&\".\"&#REF!,N$63,N$64,CONFIGURATION!$B$10,\"BMA\",CONFIGURATION!$B$1,\"bscr\",CONFIGURATION!$B$12)","v":{"$error":"#VALUE!"}},null,null,null,null,null,null,null,null,null,null,null,{"$f":"XBRLMap(#REF!,Z$62&\".\"&#REF!,Z$63,Z$64,CONFIGURATION!$B$10,\"BMA\",CONFIGURATION!$B$1,\"bscr\",CONFIGURATION!$B$12)","v":{"$error":"#VALUE!"}},null,null,null,null,null,{"$f":"XBRLMap(#REF!,AF$62&\".\"&#REF!,AF$63,AF$64,CONFIGURATION!$B$10,\"BMA\",CONFIGURATION!$B$1,\"bscr\",CONFIGURATION!$B$12)","v":{"$error":"#VALUE!"}},null,{"$f":"XBRLMap(#REF!,AH$62&\".\"&#REF!,AH$63,AH$64,CONFIGURATION!$B$10,\"BMA\",CONFIGURATION!$B$1,\"bscr\",CONFIGURATION!$B$12)","v":{"$error":"#VALUE!"}}]
[]
[null,null,null,{"$f":"XBRLMap(#REF!,D$62&\".\"&#REF!,D$63,D$64,CONFIGURATION!$B$10,\"BMA\",CONFIGURATION!$B$1,\"bscr\",CONFIGURATION!$B$12)","v":{"$error":"#VALUE!"}},null,null,null,null,null,null,null,null,null,{"$f":"XBRLMap(#REF!,N$62&\".\"&#REF!,N$63,N$64,CONFIGURATION!$B$10,\"BMA\",CONFIGURATION!$B$1,\"bscr\",CONFIGURATION!$B$12)","v":{"$error":"#VALUE!"}},null,null,null,null,null,null,null,null,null,null,null,{"$f":"XBRLMap(#REF!,Z$62&\".\"&#REF!,Z$63,Z$64,CONFIGURATION!$B$10,\"BMA\",CONFIGURATION!$B$1,\"bscr\",CONFIGURATION!$B$12)","v":{"$error":"#VALUE!"}},null,null,null,null,null,{"$f":"XBRLMap(#REF!,AF$62&\".\"&#REF!,AF$63,AF$64,CONFIGURATION!$B$10,\"BMA\",CONFIGURATION!$B$1,\"bscr\",CONFIGURATION!$B$12)","v":{"$error":"#VALUE!"}},null,{"$f":"XBRLMap(#REF!,AH$62&\".\"&#REF!,AH$63,AH$64,CONFIGURATION!$B$10,\"BMA\",CONFIGURATION!$B$1,\"bscr\",CONFIGURATION!$B$12)","v":{"$error":"#VALUE!"}}]
[null,null,null,{"$f":"XBRLMap(#REF!,D$62&\".\"&#REF!,D$63,D$64,CONFIGURATION!$B$10,\"BMA\",CONFIGURATION!$B$1,\"bscr\",CONFIGURATION!$B$12)","v":{"$error":"#VALUE!"}},null,null,null,null,null,null,null,null,null,{"$f":"XBRLMap(#REF!,N$62&\".\"&#REF!,N$63,N$64,CONFIGURATION!$B$10,\"BMA\",CONFIGURATION!$B$1,\"bscr\",CONFIGURATION!$B$12)","v":{"$error":"#VALUE!"}},null,null,null,null,null,null,null,null,null,null,null,{"$f":"XBRLMap(#REF!,Z$62&\".\"&#REF!,Z$63,Z$64,CONFIGURATION!$B$10,\"BMA\",CONFIGURATION!$B$1,\"bscr\",CONFIGURATION!$B$12)","v":{"$error":"#VALUE!"}},null,null,null,null,null,{"$f":"XBRLMap(#REF!,AF$62&\".\"&#REF!,AF$63,AF$64,CONFIGURATION!$B$10,\"BMA\",CONFIGURATION!$B$1,\"bscr\",CONFIGURATION!$B$12)","v":{"$error":"#VALUE!"}},null,{"$f":"XBRLMap(#REF!,AH$62&\".\"&#REF!,AH$63,AH$64,CONFIGURATION!$B$10,\"BMA\",CONFIGURATION!$B$1,\"bscr\",CONFIGURATION!$B$12)","v":{"$error":"#VALUE!"}}]
[null,null,null,{"$f":"XBRLMap(#REF!,D$62&\".\"&#REF!,D$63,D$64,CONFIGURATION!$B$10,\"BMA\",CONFIGURATION!$B$1,\"bscr\",CONFIGURATION!$B$12)","v":{"$error":"#VALUE!"}},null,null,null,null,null,null,null,null,null,{"$f":"XBRLMap(#REF!,N$62&\".\"&#REF!,N$63,N$64,CONFIGURATION!$B$10,\"BMA\",CONFIGURATION!$B$1,\"bscr\",CONFIGURATION!$B$12)","v":{"$error":"#VALUE!"}},null,null,null,null,null,null,null,null,null,null,null,{"$f":"XBRLMap(#REF!,Z$62&\".\"&#REF!,Z$63,Z$64,CONFIGURATION!$B$10,\"BMA\",CONFIGURATION!$B$1,\"bscr\",CONFIGURATION!$B$12)","v":{"$error":"#VALUE!"}},null,null,null,null,null,{"$f":"XBRLMap(#REF!,AF$62&\".\"&#REF!,AF$63,AF$64,CONFIGURATION!$B$10,\"BMA\",CONFIGURATION!$B$1,\"bscr\",CONFIGURATION!$B$12)","v":{"$error":"#VALUE!"}},null,{"$f":"XBRLMap(#REF!,AH$62&\".\"&#REF!,AH$63,AH$64,CONFIGURATION!$B$10,\"BMA\",CONFIGURATION!$B$1,\"bscr\",CONFIGURATION!$B$12)","v":{"$error":"#VALUE!"}}]
[null,null,null,{"$f":"XBRLMap(#REF!,D$62&\".\"&#REF!,D$63,D$64,CONFIGURATION!$B$10,\"BMA\",CONFIGURATION!$B$1,\"bscr\",CONFIGURATION!$B$12)","v":{"$error":"#VALUE!"}},null,null,null,null,null,null,null,null,null,{"$f":"XBRLMap(#REF!,N$62&\".\"&#REF!,N$63,N$64,CONFIGURATION!$B$10,\"BMA\",CONFIGURATION!$B$1,\"bscr\",CONFIGURATION!$B$12)","v":{"$error":"#VALUE!"}},null,null,null,null,null,null,null,null,null,null,null,{"$f":"XBRLMap(#REF!,Z$62&\".\"&#REF!,Z$63,Z$64,CONFIGURATION!$B$10,\"BMA\",CONFIGURATION!$B$1,\"bscr\",CONFIGURATION!$B$12)","v":{"$error":"#VALUE!"}},null,null,null,null,null,{"$f":"XBRLMap(#REF!,AF$62&\".\"&#REF!,AF$63,AF$64,CONFIGURATION!$B$10,\"BMA\",CONFIGURATION!$B$1,\"bscr\",CONFIGURATION!$B$12)","v":{"$error":"#VALUE!"}},null,{"$f":"XBRLMap(#REF!,AH$62&\".\"&#REF!,AH$63,AH$64,CONFIGURATION!$B$10,\"BMA\",CONFIGURATION!$B$1,\"bscr\",CONFIGURATION!$B$12)","v":{"$error":"#VALUE!"}}]
[null,null,null,{"$f":"XBRLMap(#REF!,D$62&\".\"&#REF!,D$63,D$64,CONFIGURATION!$B$10,\"BMA\",CONFIGURATION!$B$1,\"bscr\",CONFIGURATION!$B$12)","v":{"$error":"#VALUE!"}},null,null,null,null,null,null,null,null,null,{"$f":"XBRLMap(#REF!,N$62&\".\"&#REF!,N$63,N$64,CONFIGURATION!$B$10,\"BMA\",CONFIGURATION!$B$1,\"bscr\",CONFIGURATION!$B$12)","v":{"$error":"#VALUE!"}},null,null,null,null,null,null,null,null,null,null,null,{"$f":"XBRLMap(#REF!,Z$62&\".\"&#REF!,Z$63,Z$64,CONFIGURATION!$B$10,\"BMA\",CONFIGURATION!$B$1,\"bscr\",CONFIGURATION!$B$12)","v":{"$error":"#VALUE!"}},null,null,null,null,null,{"$f":"XBRLMap(#REF!,AF$62&\".\"&#REF!,AF$63,AF$64,CONFIGURATION!$B$10,\"BMA\",CONFIGURATION!$B$1,\"bscr\",CONFIGURATION!$B$12)","v":{"$error":"#VALUE!"}},null,{"$f":"XBRLMap(#REF!,AH$62&\".\"&#REF!,AH$63,AH$64,CONFIGURATION!$B$10,\"BMA\",CONFIGURATION!$B$1,\"bscr\",CONFIGURATION!$B$12)","v":{"$error":"#VALUE!"}}]
[]
[null,null,null,{"$f":"XBRLMap(#REF!,D$62&\".\"&#REF!,D$63,D$64,CONFIGURATION!$B$10,\"BMA\",CONFIGURATION!$B$1,\"bscr\",CONFIGURATION!$B$12)","v":{"$error":"#VALUE!"}},null,null,null,null,null,null,null,null,null,{"$f":"XBRLMap(#REF!,N$62&\".\"&#REF!,N$63,N$64,CONFIGURATION!$B$10,\"BMA\",CONFIGURATION!$B$1,\"bscr\",CONFIGURATION!$B$12)","v":{"$error":"#VALUE!"}},null,null,null,null,null,null,null,null,null,null,null,{"$f":"XBRLMap(#REF!,Z$62&\".\"&#REF!,Z$63,Z$64,CONFIGURATION!$B$10,\"BMA\",CONFIGURATION!$B$1,\"bscr\",CONFIGURATION!$B$12)","v":{"$error":"#VALUE!"}},null,null,null,null,null,{"$f":"XBRLMap(#REF!,AF$62&\".\"&#REF!,AF$63,AF$64,CONFIGURATION!$B$10,\"BMA\",CONFIGURATION!$B$1,\"bscr\",CONFIGURATION!$B$12)","v":{"$error":"#VALUE!"}},null,{"$f":"XBRLMap(#REF!,AH$62&\".\"&#REF!,AH$63,AH$64,CONFIGURATION!$B$10,\"BMA\",CONFIGURATION!$B$1,\"bscr\",CONFIGURATION!$B$12)","v":{"$error":"#VALUE!"}}]
[null,null,null,{"$f":"XBRLMap(#REF!,D$62&\".\"&#REF!,D$63,D$64,CONFIGURATION!$B$10,\"BMA\",CONFIGURATION!$B$1,\"bscr\",CONFIGURATION!$B$12)","v":{"$error":"#VALUE!"}},null,null,null,null,null,null,null,null,null,{"$f":"XBRLMap(#REF!,N$62&\".\"&#REF!,N$63,N$64,CONFIGURATION!$B$10,\"BMA\",CONFIGURATION!$B$1,\"bscr\",CONFIGURATION!$B$12)","v":{"$error":"#VALUE!"}},null,null,null,null,null,null,null,null,null,null,null,{"$f":"XBRLMap(#REF!,Z$62&\".\"&#REF!,Z$63,Z$64,CONFIGURATION!$B$10,\"BMA\",CONFIGURATION!$B$1,\"bscr\",CONFIGURATION!$B$12)","v":{"$error":"#VALUE!"}},null,null,null,null,null,{"$f":"XBRLMap(#REF!,AF$62&\".\"&#REF!,AF$63,AF$64,CONFIGURATION!$B$10,\"BMA\",CONFIGURATION!$B$1,\"bscr\",CONFIGURATION!$B$12)","v":{"$error":"#VALUE!"}},null,{"$f":"XBRLMap(#REF!,AH$62&\".\"&#REF!,AH$63,AH$64,CONFIGURATION!$B$10,\"BMA\",CONFIGURATION!$B$1,\"bscr\",CONFIGURATION!$B$12)","v":{"$error":"#VALUE!"}}]
[null,null,null,{"$f":"XBRLMap(#REF!,D$62&\".\"&#REF!,D$63,D$64,CONFIGURATION!$B$10,\"BMA\",CONFIGURATION!$B$1,\"bscr\",CONFIGURATION!$B$12)","v":{"$error":"#VALUE!"}},null,null,null,null,null,null,null,null,null,{"$f":"XBRLMap(#REF!,N$62&\".\"&#REF!,N$63,N$64,CONFIGURATION!$B$10,\"BMA\",CONFIGURATION!$B$1,\"bscr\",CONFIGURATION!$B$12)","v":{"$error":"#VALUE!"}},null,null,null,null,null,null,null,null,null,null,null,{"$f":"XBRLMap(#REF!,Z$62&\".\"&#REF!,Z$63,Z$64,CONFIGURATION!$B$10,\"BMA\",CONFIGURATION!$B$1,\"bscr\",CONFIGURATION!$B$12)","v":{"$error":"#VALUE!"}},null,null,null,null,null,{"$f":"XBRLMap(#REF!,AF$62&\".\"&#REF!,AF$63,AF$64,CONFIGURATION!$B$10,\"BMA\",CONFIGURATION!$B$1,\"bscr\",CONFIGURATION!$B$12)","v":{"$error":"#VALUE!"}},null,{"$f":"XBRLMap(#REF!,AH$62&\".\"&#REF!,AH$63,AH$64,CONFIGURATION!$B$10,\"BMA\",CONFIGURATION!$B$1,\"bscr\",CONFIGURATION!$B$12)","v":{"$error":"#VALUE!"}}]
[null,null,null,{"$f":"XBRLMap(#REF!,D$62&\".\"&#REF!,D$63,D$64,CONFIGURATION!$B$10,\"BMA\",CONFIGURATION!$B$1,\"bscr\",CONFIGURATION!$B$12)","v":{"$error":"#VALUE!"}},null,null,null,null,null,null,null,null,null,{"$f":"XBRLMap(#REF!,N$62&\".\"&#REF!,N$63,N$64,CONFIGURATION!$B$10,\"BMA\",CONFIGURATION!$B$1,\"bscr\",CONFIGURATION!$B$12)","v":{"$error":"#VALUE!"}},null,null,null,null,null,null,null,null,null,null,null,{"$f":"XBRLMap(#REF!,Z$62&\".\"&#REF!,Z$63,Z$64,CONFIGURATION!$B$10,\"BMA\",CONFIGURATION!$B$1,\"bscr\",CONFIGURATION!$B$12)","v":{"$error":"#VALUE!"}},null,null,null,null,null,{"$f":"XBRLMap(#REF!,AF$62&\".\"&#REF!,AF$63,AF$64,CONFIGURATION!$B$10,\"BMA\",CONFIGURATION!$B$1,\"bscr\",CONFIGURATION!$B$12)","v":{"$error":"#VALUE!"}},null,{"$f":"XBRLMap(#REF!,AH$62&\".\"&#REF!,AH$63,AH$64,CONFIGURATION!$B$10,\"BMA\",CONFIGURATION!$B$1,\"bscr\",CONFIGURATION!$B$12)","v":{"$error":"#VALUE!"}}]
[null,null,null,{"$f":"XBRLMap(#REF!,D$62&\".\"&#REF!,D$63,D$64,CONFIGURATION!$B$10,\"BMA\",CONFIGURATION!$B$1,\"bscr\",CONFIGURATION!$B$12)","v":{"$error":"#VALUE!"}},null,null,null,null,null,null,null,null,null,{"$f":"XBRLMap(#REF!,N$62&\".\"&#REF!,N$63,N$64,CONFIGURATION!$B$10,\"BMA\",CONFIGURATION!$B$1,\"bscr\",CONFIGURATION!$B$12)","v":{"$error":"#VALUE!"}},null,null,null,null,null,null,null,null,null,null,null,{"$f":"XBRLMap(#REF!,Z$62&\".\"&#REF!,Z$63,Z$64,CONFIGURATION!$B$10,\"BMA\",CONFIGURATION!$B$1,\"bscr\",CONFIGURATION!$B$12)","v":{"$error":"#VALUE!"}},null,null,null,null,null,{"$f":"XBRLMap(#REF!,AF$62&\".\"&#REF!,AF$63,AF$64,CONFIGURATION!$B$10,\"BMA\",CONFIGURATION!$B$1,\"bscr\",CONFIGURATION!$B$12)","v":{"$error":"#VALUE!"}},null,{"$f":"XBRLMap(#REF!,AH$62&\".\"&#REF!,AH$63,AH$64,CONFIGURATION!$B$10,\"BMA\",CONFIGURATION!$B$1,\"bscr\",CONFIGURATION!$B$12)","v":{"$error":"#VALUE!"}}]
[null,null,null,{"$f":"XBRLMap(#REF!,D$62&\".\"&#REF!,D$63,D$64,CONFIGURATION!$B$10,\"BMA\",CONFIGURATION!$B$1,\"bscr\",CONFIGURATION!$B$12)","v":{"$error":"#VALUE!"}},null,null,null,null,null,null,null,null,null,{"$f":"XBRLMap(#REF!,N$62&\".\"&#REF!,N$63,N$64,CONFIGURATION!$B$10,\"BMA\",CONFIGURATION!$B$1,\"bscr\",CONFIGURATION!$B$12)","v":{"$error":"#VALUE!"}},null,null,null,null,null,null,null,null,null,null,null,{"$f":"XBRLMap(#REF!,Z$62&\".\"&#REF!,Z$63,Z$64,CONFIGURATION!$B$10,\"BMA\",CONFIGURATION!$B$1,\"bscr\",CONFIGURATION!$B$12)","v":{"$error":"#VALUE!"}},null,null,null,null,null,{"$f":"XBRLMap(#REF!,AF$62&\".\"&#REF!,AF$63,AF$64,CONFIGURATION!$B$10,\"BMA\",CONFIGURATION!$B$1,\"bscr\",CONFIGURATION!$B$12)","v":{"$error":"#VALUE!"}},null,{"$f":"XBRLMap(#REF!,AH$62&\".\"&#REF!,AH$63,AH$64,CONFIGURATION!$B$10,\"BMA\",CONFIGURATION!$B$1,\"bscr\",CONFIGURATION!$B$12)","v":{"$error":"#VALUE!"}}]
[null,null,null,{"$f":"XBRLMap(#REF!,D$62&\".\"&#REF!,D$63,D$64,CONFIGURATION!$B$10,\"BMA\",CONFIGURATION!$B$1,\"bscr\",CONFIGURATION!$B$12)","v":{"$error":"#VALUE!"}},null,null,null,null,null,null,null,null,null,{"$f":"XBRLMap(#REF!,N$62&\".\"&#REF!,N$63,N$64,CONFIGURATION!$B$10,\"BMA\",CONFIGURATION!$B$1,\"bscr\",CONFIGURATION!$B$12)","v":{"$error":"#VALUE!"}},null,null,null,null,null,null,null,null,null,null,null,{"$f":"XBRLMap(#REF!,Z$62&\".\"&#REF!,Z$63,Z$64,CONFIGURATION!$B$10,\"BMA\",CONFIGURATION!$B$1,\"bscr\",CONFIGURATION!$B$12)","v":{"$error":"#VALUE!"}},null,null,null,null,null,{"$f":"XBRLMap(#REF!,AF$62&\".\"&#REF!,AF$63,AF$64,CONFIGURATION!$B$10,\"BMA\",CONFIGURATION!$B$1,\"bscr\",CONFIGURATION!$B$12)","v":{"$error":"#VALUE!"}},null,{"$f":"XBRLMap(#REF!,AH$62&\".\"&#REF!,AH$63,AH$64,CONFIGURATION!$B$10,\"BMA\",CONFIGURATION!$B$1,\"bscr\",CONFIGURATION!$B$12)","v":{"$error":"#VALUE!"}}]
[null,null,null,{"$f":"XBRLMap(#REF!,D$62&\".\"&#REF!,D$63,D$64,CONFIGURATION!$B$10,\"BMA\",CONFIGURATION!$B$1,\"bscr\",CONFIGURATION!$B$12)","v":{"$error":"#VALUE!"}}]
[null,null,null,null,null,null,null,null,null,null,null,null,null,"A or better",null,null,null,null,null,null,null,null,null,null,null,"A or better",null,null,null,null,null,"A or better",null,"A or better"]
[null,null,null,null,null,null,null,null,null,null,null,null,null,"BBB or equivalent",null,null,null,null,null,null,null,null,null,null,null,"BBB or equivalent",null,null,null,null,null,"BBB or equivalent",null,"BBB or equivalent"]
[null,null,null,null,null,null,null,null,null,null,null,null,null,"B or better",null,null,null,null,null,null,null,null,null,null,null,"B or better",null,null,null,null,null,"B or better",null,"B or better"]
[null,{"$f":"XBRLMap(#REF!,#REF!,B$63,B$64,CONFIGURATION!$B$10,\"BMA\",CONFIGURATION!$B$1,\"bscr\")","v":{"$error":"#VALUE!"}},null,null,null,null,null,null,null,null,null,null,null,"unrated/other",null,null,null,null,null,null,null,null,null,null,null,"unrated/other",null,null,null,null,null,"unrated/other",null,"unrated/other"]
[]
[null,{"$f":"XBRLMap(#REF!,#REF!,B$63,B$64,CONFIGURATION!$B$10,\"BMA\",CONFIGURATION!$B$1,\"bscr\")","v":{"$error":"#VALUE!"}}]

{"sheet":"Schedule XXI","index":91,"n_rows":110,"n_cols":45,"rows_kept":110,"cut":false,"hidden":false,"merged":[[4,4,4,7],[4,9,4,12],[61,9,62,12]]}
[null,null,"SCHEDULE OF CONCENTRATION RISK",null,null,null,null,null,null,null,null,null,{"$f":"HYPERLINK(\"#'Index'!A1\",\"Return to Index\")","v":"Return to Index"}]
[null,null,{"$f":"'Company Information'!C7","v":"Enter Company Name"}]
[null,null,{"$f":"'Form 1EBS'!C3","v":"2019-12-31"},null,null,null,null,null,null,{"$f":"Import!E11074","v":0},null,"Enter # of Rows","SCHEDULE XXI"]
[null,null,{"$f":"IF(CONFIGURATION!$B$12>1,\" ['\"&MID(CONFIGURATION!$B$12,2,LEN(CONFIGURATION!$B$12))&\"s]\",\"\")&'Form 1EBS'!C4","v":" ['000s]United States Dollars"}]
[null,null,null,null,"Unconsolidated SFS",null,null,null,null,"EBS Valuation"]
[null,null,null,null,"(A)","(B)","(C)","(D)",null,"(E)","(F)","(G)","(H)"]
[null,null,"Name of Exposure",null,"Asset Type","Bond / Mortgage Loan Type","BSCR Rating","Asset Value",null,"Asset Type","Bond / Mortgage Loan Type","BSCR Rating","Asset Value"]
[null,1,{"$f":"Import!E11075","v":0},null,{"$f":"Import!E11115","v":"Select"},{"$f":"Import!E11155","v":"Select"},{"$f":"Import!E11195","v":"Select"},{"$f":"Import!E11235","v":0},null,{"$f":"Import!M11115","v":"Select"},{"$f":"Import!M11155","v":"Select"},{"$f":"Import!M11195","v":"Select"},{"$f":"Import!M11235","v":0},null,null,null,null,null,null,null,null,null,null,null,null,null,null,null,null,null,"",null,"bma_SecurityUSGovernmentAmountPerForm1ALines2bAnd3b",null,"bma_SecurityUSGovernmentFaceValue",null,"bma_SecurityUSGovernmentFairValue",null,"bma_SecurityUSGovernmentAverageYTM",null,"bma_SecurityUSGovernmentAverageRating",null,"bma_SecurityUSGovernmentEffectiveDuration",null,"bma_SecurityUSGovernmentEffectiveConvexity"]
[null,{"$f":"B8+1","v":2},{"$f":"Import!E11076","v":0},null,{"$f":"Import!E11116","v":"Select"},{"$f":"Import!E11156","v":"Select"},{"$f":"Import!E11196","v":"Select"},{"$f":"Import!E11236","v":0},null,{"$f":"Import!M11116","v":"Select"},{"$f":"Import!M11156","v":"Select"},{"$f":"Import!M11196","v":"Select"},{"$f":"Import!M11236","v":0},null,"brrt_SecurityTypeAxis_brrt_USGovernmentMember",null,null,null,null,null,null,null,null,null,null,null,null,null,null,null,"",null,"bma_SecurityNonUSGovernmentAmountPerForm1ALines2bAnd3b",null,"bma_SecurityNonUSGovernmentFaceValue",null,"bma_SecurityNonUSGovernmentFairValue",null,"bma_SecurityNonUSGovernmentAverageYTM",null,"bma_SecurityNonUSGovernmentAverageRating",null,"bma_SecurityNonUSGovernmentEffectiveDuration",null,"bma_SecurityNonUSGovernmentEffectiveConvexity"]
[null,{"$f":"B9+1","v":3},{"$f":"Import!E11077","v":0},null,{"$f":"Import!E11117","v":"Select"},{"$f":"Import!E11157","v":"Select"},{"$f":"Import!E11197","v":"Select"},{"$f":"Import!E11237","v":0},null,{"$f":"Import!M11117","v":"Select"},{"$f":"Import!M11157","v":"Select"},{"$f":"Import!M11197","v":"Select"},{"$f":"Import!M11237","v":0},null,"brrt_SecurityTypeAxis_brrt_USGovernmentAgencyMortgageBackedSecuritiesMember",null,null,null,null,null,null,null,null,null,null,null,null,null,null,null,"",null,"bma_SecurityUSGovernmentAgencyMortgageBackedSecuritiesAmountPerForm1ALines2bAnd3b",null,"bma_SecurityUSGovernmentAgencyMortgageBackedSecuritiesFaceValue",null,"bma_SecurityUSGovernmentAgencyMortgageBackedSecuritiesFairValue",null,"bma_SecurityUSGovernmentAgencyMortgageBackedSecuritiesAverageYTM",null,"bma_SecurityUSGovernmentAgencyMortgageBackedSecuritiesAverageRating",null,"bma_SecurityUSGovernmentAgencyMortgageBackedSecuritiesEffectiveDuration",null,"bma_SecurityUSGovernmentAgencyMortgageBackedSecuritiesEffectiveConvexity"]
[null,4,{"$f":"Import!E11078","v":0},null,{"$f":"Import!E11118","v":"Select"},{"$f":"Import!E11158","v":"Select"},{"$f":"Import!E11198","v":"Select"},{"$f":"Import!E11238","v":0},null,{"$f":"Import!M11118","v":"Select"},{"$f":"Import!M11158","v":"Select"},{"$f":"Import!M11198","v":"Select"},{"$f":"Import!M11238","v":0},null,"brrt_SecurityTypeAxis_brrt_USGovernmentAgencyOtherMember",null,null,null,null,null,null,null,null,null,null,null,null,null,null,null,"",null,"bma_SecurityUSGovernmentAgencyOtherAmountPerForm1ALines2bAnd3b",null,"bma_SecurityUSGovernmentAgencyOtherFaceValue",null,"bma_SecurityUSGovernmentAgencyOtherFairValue",null,"bma_SecurityUSGovernmentAgencyOtherAverageYTM",null,"bma_SecurityUSGovernmentAgencyOtherAverageRating",null,"bma_SecurityUSGovernmentAgencyOtherEffectiveDuration",null,"bma_SecurityUSGovernmentAgencyOtherEffectiveConvexity"]
[null,5,{"$f":"Import!E11079","v":0},null,{"$f":"Import!E11119","v":"Select"},{"$f":"Import!E11159","v":"Select"},{"$f":"Import!E11199","v":"Select"},{"$f":"Import!E11239","v":0},null,{"$f":"Import!M11119","v":"Select"},{"$f":"Import!M11159","v":"Select"},{"$f":"Import!M11199","v":"Select"},{"$f":"Import!M11239","v":0},null,"brrt_SecurityTypeAxis_brrt_NonUSGovernmentMember",null,null,null,null,null,null,null,null,null,null,null,null,null,null,null,"",null,"bma_SecurityCorporateSecuritiesAmountPerForm1ALines2bAnd3b",null,"bma_SecurityCorporateSecuritiesFaceValue",null,"bma_SecurityCorporateSecuritiesFairValue",null,"bma_SecurityCorporateSecuritiesAverageYTM",null,"bma_SecurityCorporateSecuritiesAverageRating",null,"bma_SecurityCorporateSecuritiesEffectiveDuration",null,"bma_SecurityCorporateSecuritiesEffectiveConvexity"]
[null,6,{"$f":"Import!E11080","v":0},null,{"$f":"Import!E11120","v":"Select"},{"$f":"Import!E11160","v":"Select"},{"$f":"Import!E11200","v":"Select"},{"$f":"Import!E11240","v":0},null,{"$f":"Import!M11120","v":"Select"},{"$f":"Import!M11160","v":"Select"},{"$f":"Import!M11200","v":"Select"},{"$f":"Import!M11240","v":0},null,"brrt_SecurityTypeAxis_brrt_StatesMunicipalitiesAndPoliticalSubdivisionMember",null,null,null,null,null,null,null,null,null,null,null,null,null,null,null,"",null,"bma_SecurityAssetBackedSecuritiesAmountPerForm1ALines2bAnd3b",null,"bma_SecurityAssetBackedSecuritiesFaceValue",null,"bma_SecurityAssetBackedSecuritiesFairValue",null,"bma_SecurityAssetBackedSecuritiesAverageYTM",null,"bma_SecurityAssetBackedSecuritiesAverageRating",null,"bma_SecurityAssetBackedSecuritiesEffectiveDuration",null,"bma_SecurityAssetBackedSecuritiesEffectiveConvexity"]
[null,7,{"$f":"Import!E11081","v":0},null,{"$f":"Import!E11121","v":"Select"},{"$f":"Import!E11161","v":"Select"},{"$f":"Import!E11201","v":"Select"},{"$f":"Import!E11241","v":0},null,{"$f":"Import!M11121","v":"Select"},{"$f":"Import!M11161","v":"Select"},{"$f":"Import!M11201","v":"Select"},{"$f":"Import!M11241","v":0},null,null,null,null,null,null,null,null,null,null,null,null,null,null,null,null,null,"",null,"bma_SecurityMortgageBackedSecuritiesAmountPerForm1ALines2bAnd3b",null,"bma_SecurityMortgageBackedSecuritiesFaceValue",null,"bma_SecurityMortgageBackedSecuritiesFairValue",null,"bma_SecurityMortgageBackedSecuritiesAverageYTM",null,"bma_SecurityMortgageBackedSecuritiesAverageRating",null,"bma_SecurityMortgageBackedSecuritiesEffectiveDuration",null,"bma_SecurityMortgageBackedSecuritiesEffectiveConvexity"]
[null,8,{"$f":"Import!E11082","v":0},null,{"$f":"Import!E11122","v":"Select"},{"$f":"Import!E11162","v":"Select"},{"$f":"Import!E11202","v":"Select"},{"$f":"Import!E11242","v":0},null,{"$f":"Import!M11122","v":"Select"},{"$f":"Import!M11162","v":"Select"},{"$f":"Import!M11202","v":"Select"},{"$f":"Import!M11242","v":0},null,"brrt_SecurityTypeAxis_brrt_USGovernmentBackedCorporateSecuritiesMember",null,null,null,null,null,null,null,null,null,null,null,null,null,null,null,"",null,"bma_SecurityMutualFundsAmountPerForm1ALines2bAnd3b",null,"bma_SecurityMutualFundsFaceValue",null,"bma_SecurityMutualFundsFairValue",null,"bma_SecurityMutualFundsAverageYTM",null,"bma_SecurityMutualFundsAverageRating",null,"bma_SecurityMutualFundsEffectiveDuration",null,"bma_SecurityMutualFundsEffectiveConvexity"]
[null,9,{"$f":"Import!E11083","v":0},null,{"$f":"Import!E11123","v":"Select"},{"$f":"Import!E11163","v":"Select"},{"$f":"Import!E11203","v":"Select"},{"$f":"Import!E11243","v":0},null,{"$f":"Import!M11123","v":"Select"},{"$f":"Import!M11163","v":"Select"},{"$f":"Import!M11203","v":"Select"},{"$f":"Import!M11243","v":0}]
[null,10,{"$f":"Import!E11084","v":0},null,{"$f":"Import!E11124","v":"Select"},{"$f":"Import!E11164","v":"Select"},{"$f":"Import!E11204","v":"Select"},{"$f":"Import!E11244","v":0},null,{"$f":"Import!M11124","v":"Select"},{"$f":"Import!M11164","v":"Select"},{"$f":"Import!M11204","v":"Select"},{"$f":"Import!M11244","v":0}]
[null,11,{"$f":"Import!E11085","v":0},null,{"$f":"Import!E11125","v":"Select"},{"$f":"Import!E11165","v":"Select"},{"$f":"Import!E11205","v":"Select"},{"$f":"Import!E11245","v":0},null,{"$f":"Import!M11125","v":"Select"},{"$f":"Import!M11165","v":"Select"},{"$f":"Import!M11205","v":"Select"},{"$f":"Import!M11245","v":0}]
[null,12,{"$f":"Import!E11086","v":0},null,{"$f":"Import!E11126","v":"Select"},{"$f":"Import!E11166","v":"Select"},{"$f":"Import!E11206","v":"Select"},{"$f":"Import!E11246","v":0},null,{"$f":"Import!M11126","v":"Select"},{"$f":"Import!M11166","v":"Select"},{"$f":"Import!M11206","v":"Select"},{"$f":"Import!M11246","v":0}]
[null,13,{"$f":"Import!E11087","v":0},null,{"$f":"Import!E11127","v":"Select"},{"$f":"Import!E11167","v":"Select"},{"$f":"Import!E11207","v":"Select"},{"$f":"Import!E11247","v":0},null,{"$f":"Import!M11127","v":"Select"},{"$f":"Import!M11167","v":"Select"},{"$f":"Import!M11207","v":"Select"},{"$f":"Import!M11247","v":0}]
[null,14,{"$f":"Import!E11088","v":0},null,{"$f":"Import!E11128","v":"Select"},{"$f":"Import!E11168","v":"Select"},{"$f":"Import!E11208","v":"Select"},{"$f":"Import!E11248","v":0},null,{"$f":"Import!M11128","v":"Select"},{"$f":"Import!M11168","v":"Select"},{"$f":"Import!M11208","v":"Select"},{"$f":"Import!M11248","v":0}]
[null,15,{"$f":"Import!E11089","v":0},null,{"$f":"Import!E11129","v":"Select"},{"$f":"Import!E11169","v":"Select"},{"$f":"Import!E11209","v":"Select"},{"$f":"Import!E11249","v":0},null,{"$f":"Import!M11129","v":"Select"},{"$f":"Import!M11169","v":"Select"},{"$f":"Import!M11209","v":"Select"},{"$f":"Import!M11249","v":0}]
[null,16,{"$f":"Import!E11090","v":0},null,{"$f":"Import!E11130","v":"Select"},{"$f":"Import!E11170","v":"Select"},{"$f":"Import!E11210","v":"Select"},{"$f":"Import!E11250","v":0},null,{"$f":"Import!M11130","v":"Select"},{"$f":"Import!M11170","v":"Select"},{"$f":"Import!M11210","v":"Select"},{"$f":"Import!M11250","v":0}]
[null,17,{"$f":"Import!E11091","v":0},null,{"$f":"Import!E11131","v":"Select"},{"$f":"Import!E11171","v":"Select"},{"$f":"Import!E11211","v":"Select"},{"$f":"Import!E11251","v":0},null,{"$f":"Import!M11131","v":"Select"},{"$f":"Import!M11171","v":"Select"},{"$f":"Import!M11211","v":"Select"},{"$f":"Import!M11251","v":0}]
[null,18,{"$f":"Import!E11092","v":0},null,{"$f":"Import!E11132","v":"Select"},{"$f":"Import!E11172","v":"Select"},{"$f":"Import!E11212","v":"Select"},{"$f":"Import!E11252","v":0},null,{"$f":"Import!M11132","v":"Select"},{"$f":"Import!M11172","v":"Select"},{"$f":"Import!M11212","v":"Select"},{"$f":"Import!M11252","v":0}]
[null,19,{"$f":"Import!E11093","v":0},null,{"$f":"Import!E11133","v":"Select"},{"$f":"Import!E11173","v":"Select"},{"$f":"Import!E11213","v":"Select"},{"$f":"Import!E11253","v":0},null,{"$f":"Import!M11133","v":"Select"},{"$f":"Import!M11173","v":"Select"},{"$f":"Import!M11213","v":"Select"},{"$f":"Import!M11253","v":0}]
[null,20,{"$f":"Import!E11094","v":0},null,{"$f":"Import!E11134","v":"Select"},{"$f":"Import!E11174","v":"Select"},{"$f":"Import!E11214","v":"Select"},{"$f":"Import!E11254","v":0},null,{"$f":"Import!M11134","v":"Select"},{"$f":"Import!M11174","v":"Select"},{"$f":"Import!M11214","v":"Select"},{"$f":"Import!M11254","v":0}]
[null,21,{"$f":"Import!E11095","v":0},null,{"$f":"Import!E11135","v":"Select"},{"$f":"Import!E11175","v":"Select"},{"$f":"Import!E11215","v":"Select"},{"$f":"Import!E11255","v":0},null,{"$f":"Import!M11135","v":"Select"},{"$f":"Import!M11175","v":"Select"},{"$f":"Import!M11215","v":"Select"},{"$f":"Import!M11255","v":0}]
[null,22,{"$f":"Import!E11096","v":0},null,{"$f":"Import!E11136","v":"Select"},{"$f":"Import!E11176","v":"Select"},{"$f":"Import!E11216","v":"Select"},{"$f":"Import!E11256","v":0},null,{"$f":"Import!M11136","v":"Select"},{"$f":"Import!M11176","v":"Select"},{"$f":"Import!M11216","v":"Select"},{"$f":"Import!M11256","v":0}]
[null,23,{"$f":"Import!E11097","v":0},null,{"$f":"Import!E11137","v":"Select"},{"$f":"Import!E11177","v":"Select"},{"$f":"Import!E11217","v":"Select"},{"$f":"Import!E11257","v":0},null,{"$f":"Import!M11137","v":"Select"},{"$f":"Import!M11177","v":"Select"},{"$f":"Import!M11217","v":"Select"},{"$f":"Import!M11257","v":0}]
[null,24,{"$f":"Import!E11098","v":0},null,{"$f":"Import!E11138","v":"Select"},{"$f":"Import!E11178","v":"Select"},{"$f":"Import!E11218","v":"Select"},{"$f":"Import!E11258","v":0},null,{"$f":"Import!M11138","v":"Select"},{"$f":"Import!M11178","v":"Select"},{"$f":"Import!M11218","v":"Select"},{"$f":"Import!M11258","v":0}]
[null,25,{"$f":"Import!E11099","v":0},null,{"$f":"Import!E11139","v":"Select"},{"$f":"Import!E11179","v":"Select"},{"$f":"Import!E11219","v":"Select"},{"$f":"Import!E11259","v":0},null,{"$f":"Import!M11139","v":"Select"},{"$f":"Import!M11179","v":"Select"},{"$f":"Import!M11219","v":"Select"},{"$f":"Import!M11259","v":0}]
[null,26,{"$f":"Import!E11100","v":0},null,{"$f":"Import!E11140","v":"Select"},{"$f":"Import!E11180","v":"Select"},{"$f":"Import!E11220","v":"Select"},{"$f":"Import!E11260","v":0},null,{"$f":"Import!M11140","v":"Select"},{"$f":"Import!M11180","v":"Select"},{"$f":"Import!M11220","v":"Select"},{"$f":"Import!M11260","v":0}]
[null,27,{"$f":"Import!E11101","v":0},null,{"$f":"Import!E11141","v":"Select"},{"$f":"Import!E11181","v":"Select"},{"$f":"Import!E11221","v":"Select"},{"$f":"Import!E11261","v":0},null,{"$f":"Import!M11141","v":"Select"},{"$f":"Import!M11181","v":"Select"},{"$f":"Import!M11221","v":"Select"},{"$f":"Import!M11261","v":0}]
[null,28,{"$f":"Import!E11102","v":0},null,{"$f":"Import!E11142","v":"Select"},{"$f":"Import!E11182","v":"Select"},{"$f":"Import!E11222","v":"Select"},{"$f":"Import!E11262","v":0},null,{"$f":"Import!M11142","v":"Select"},{"$f":"Import!M11182","v":"Select"},{"$f":"Import!M11222","v":"Select"},{"$f":"Import!M11262","v":0}]
[null,29,{"$f":"Import!E11103","v":0},null,{"$f":"Import!E11143","v":"Select"},{"$f":"Import!E11183","v":"Select"},{"$f":"Import!E11223","v":"Select"},{"$f":"Import!E11263","v":0},null,{"$f":"Import!M11143","v":"Select"},{"$f":"Import!M11183","v":"Select"},{"$f":"Import!M11223","v":"Select"},{"$f":"Import!M11263","v":0}]
[null,30,{"$f":"Import!E11104","v":0},null,{"$f":"Import!E11144","v":"Select"},{"$f":"Import!E11184","v":"Select"},{"$f":"Import!E11224","v":"Select"},{"$f":"Import!E11264","v":0},null,{"$f":"Import!M11144","v":"Select"},{"$f":"Import!M11184","v":"Select"},{"$f":"Import!M11224","v":"Select"},{"$f":"Import!M11264","v":0}]
[null,31,{"$f":"Import!E11105","v":0},null,{"$f":"Import!E11145","v":"Select"},{"$f":"Import!E11185","v":"Select"},{"$f":"Import!E11225","v":"Select"},{"$f":"Import!E11265","v":0},null,{"$f":"Import!M11145","v":"Select"},{"$f":"Import!M11185","v":"Select"},{"$f":"Import!M11225","v":"Select"},{"$f":"Import!M11265","v":0}]
[null,32,{"$f":"Import!E11106","v":0},null,{"$f":"Import!E11146","v":"Select"},{"$f":"Import!E11186","v":"Select"},{"$f":"Import!E11226","v":"Select"},{"$f":"Import!E11266","v":0},null,{"$f":"Import!M11146","v":"Select"},{"$f":"Import!M11186","v":"Select"},{"$f":"Import!M11226","v":"Select"},{"$f":"Import!M11266","v":0}]
[null,33,{"$f":"Import!E11107","v":0},null,{"$f":"Import!E11147","v":"Select"},{"$f":"Import!E11187","v":"Select"},{"$f":"Import!E11227","v":"Select"},{"$f":"Import!E11267","v":0},null,{"$f":"Import!M11147","v":"Select"},{"$f":"Import!M11187","v":"Select"},{"$f":"Import!M11227","v":"Select"},{"$f":"Import!M11267","v":0}]
[null,34,{"$f":"Import!E11108","v":0},null,{"$f":"Import!E11148","v":"Select"},{"$f":"Import!E11188","v":"Select"},{"$f":"Import!E11228","v":"Select"},{"$f":"Import!E11268","v":0},null,{"$f":"Import!M11148","v":"Select"},{"$f":"Import!M11188","v":"Select"},{"$f":"Import!M11228","v":"Select"},{"$f":"Import!M11268","v":0}]
[null,35,{"$f":"Import!E11109","v":0},null,{"$f":"Import!E11149","v":"Select"},{"$f":"Import!E11189","v":"Select"},{"$f":"Import!E11229","v":"Select"},{"$f":"Import!E11269","v":0},null,{"$f":"Import!M11149","v":"Select"},{"$f":"Import!M11189","v":"Select"},{"$f":"Import!M11229","v":"Select"},{"$f":"Import!M11269","v":0}]
[null,36,{"$f":"Import!E11110","v":0},null,{"$f":"Import!E11150","v":"Select"},{"$f":"Import!E11190","v":"Select"},{"$f":"Import!E11230","v":"Select"},{"$f":"Import!E11270","v":0},null,{"$f":"Import!M11150","v":"Select"},{"$f":"Import!M11190","v":"Select"},{"$f":"Import!M11230","v":"Select"},{"$f":"Import!M11270","v":0}]
[null,37,{"$f":"Import!E11111","v":0},null,{"$f":"Import!E11151","v":"Select"},{"$f":"Import!E11191","v":"Select"},{"$f":"Import!E11231","v":"Select"},{"$f":"Import!E11271","v":0},null,{"$f":"Import!M11151","v":"Select"},{"$f":"Import!M11191","v":"Select"},{"$f":"Import!M11231","v":"Select"},{"$f":"Import!M11271","v":0}]
[null,38,{"$f":"Import!E11112","v":0},null,{"$f":"Import!E11152","v":"Select"},{"$f":"Import!E11192","v":"Select"},{"$f":"Import!E11232","v":"Select"},{"$f":"Import!E11272","v":0},null,{"$f":"Import!M11152","v":"Select"},{"$f":"Import!M11192","v":"Select"},{"$f":"Import!M11232","v":"Select"},{"$f":"Import!M11272","v":0}]
[null,39,{"$f":"Import!E11113","v":0},null,{"$f":"Import!E11153","v":"Select"},{"$f":"Import!E11193","v":"Select"},{"$f":"Import!E11233","v":"Select"},{"$f":"Import!E11273","v":0},null,{"$f":"Import!M11153","v":"Select"},{"$f":"Import!M11193","v":"Select"},{"$f":"Import!M11233","v":"Select"},{"$f":"Import!M11273","v":0}]
[null,40,{"$f":"Import!E11114","v":0},null,{"$f":"Import!E11154","v":"Select"},{"$f":"Import!E11194","v":"Select"},{"$f":"Import!E11234","v":"Select"},{"$f":"Import!E11274","v":0},null,{"$f":"Import!M11154","v":"Select"},{"$f":"Import!M11194","v":"Select"},{"$f":"Import!M11234","v":"Select"},{"$f":"Import!M11274","v":0}]
[null,41]
[null,42]
[null,43]
[null,44]
[null,45]
[null,46]
[null,47]
[null,48]
[null,49]
[null,50,null,null,null,null,null,null,null,null,null,null,null,null,"brrt_SecurityTypeAxis_brrt_FDICGuaranteedCorporateSecuritiesMember",null,null,null,null,null,null,null,null,null,null,null,null,null,null,null,"bma_SecurityOther2Type",null,"bma_SecurityOther2AmountPerForm1ALines2bAnd3b",null,"bma_SecurityOther2FaceValue",null,"bma_SecurityOther2FairValue",null,"bma_SecurityOther2AverageYTM",null,"bma_SecurityOther2AverageRating",null,"bma_SecurityOther2EffectiveDuration",null,"bma_SecurityOther2EffectiveConvexity"]
[null,null,"TOTAL CONCENTRATION RISK",null,null,null,null,{"$f":"SUM(H8:H57)","v":0},null,null,null,null,{"$f":"SUM(M8:M57)","v":0},null,"brrt_SecurityTypeAxis_brrt_TotalMember",null,null,null,null,null,null,null,null,null,null,null,null,null,null,null,"",null,"bma_SecurityTotalPortfolioAmountPerForm1ALines2bAnd3b",null,"bma_SecurityTotalPortfolioFaceValue",null,"bma_SecurityTotalPortfolioFairValue",null,"",null,"",null,"",null,""]
[null,null,null,null,null,null,null,null,null,null,null,null,null,null,"brrt_SecurityTypeOtherDescription",{"$f":"XBRLMap(#REF!,O59,E$82,E$83,CONFIGURATION!$B$10,\"BMA\",CONFIGURATION!$B$1,\"bscr\")","v":{"$error":"#VALUE!"}},null,null,"",null,"",null,"",null,"",null,"",null,"",null,"",null,"",null,"",null,"",null,"",null,"",null,"",null,""]
[null,null,"Asset Type",null,null,"Bond Types",null,"BSCR Rating Reference"]
[null,null,"Select",null,null,"Select",null,"Select"]
[null,null,"Cash and Cash Equivalent",null,null,"Corporate & Sovereign Bonds",null,"BSCR Rating 0",null,"Note if an insurer does not have any entities to consolidate, enter consolidated information only (This cell is editable for deletion)"]
[null,null,"BondTypes",null,null,"Residential Mortgage-Backed Securities",null,"BSCR Rating 1"]
[null,null,"Preferred Shares",null,null,"Commercial Mortgage-Backed Securities",null,"BSCR Rating 2"]
[null,null,"MortgageLoanTypes",null,null,"Bond Mutual Funds",null,"BSCR Rating 3"]
[null,null,"Common Stock and Mutual Funds",null,null,null,null,"BSCR Rating 4"]
[null,null,"Other Investments",null,null,"Mortgage Loan Categories",null,"BSCR Rating 5"]
[null,null,"Investment in Affiliates – Unregulated entities that conduct ancillary services",null,null,"Select",null,"BSCR Rating 6"]
[null,null,"Investment in Affiliates - Unregulated non-financial operating entities",null,null,"Insured/Guaranteed Mortgages",null,"BSCR Rating 7"]
[null,null,"Investment in Affiliates - Unregulated financial operating entities",null,null,"Other Commercial and Farm Mortgages",null,"BSCR Rating 8"]
[null,null,"Investment in Affiliates - Regulated non-insurance financial operating entities",null,null,"Other Residential Mortgages"]
[null,null,"Investment in Affiliates - Regulated insurance financial operating entities",null,null,"Mortgages Not In Good Standing"]
[null,null,"Advances to Affiliates - "]
[null,null,"Policy Loans"]
[null,null,"Real Estate: Occupied by company"]
[null,null,"Real Estate: Other properties"]
[null,null,"Collateral Loans"]
[]
[]
[]
[null,null,null,null,"brrt_BondsAndDebentures",null,"brrt_BondsAndDebenturesFaceValue","brrt_BondsAndDebenturesAverageRating",null,"brrt_BondsAndDebenturesFaceValue",null,"brrt_BondsAndDebenturesFairValue","brrt_BondsAndDebenturesEffectiveConvexity"]
[null,null,{"$f":"IF($C$3=\"\",\"\",TEXT(DATE(YEAR($C$3+1)-1,MONTH($C$3+1),DAY($C$3+1)),\"mm/dd/yyyy\"))","v":"01/01/2019"},null,{"$f":"IF($C$3=\"\",\"\",TEXT(DATE(YEAR($C$3+1)-1,MONTH($C$3+1),DAY($C$3+1)),\"mm/dd/yyyy\"))","v":"01/01/2019"},null,"01/01/2019","01/01/2019",null,"01/01/2019",null,"01/01/2019","01/01/2019"]
[null,null,{"$f":"IF($C$3=\"\",\"\",TEXT($C$3,\"mm/dd/yyyy\"))","v":"12/31/2019"},null,{"$f":"IF($C$3=\"\",\"\",TEXT($C$3,\"mm/dd/yyyy\"))","v":"12/31/2019"},null,"12/31/2019","12/31/2019",null,"12/31/2019",null,"12/31/2019","12/31/2019"]
[]
[null,null,null,null,{"$f":"XBRLMap(E9,E$81&\".\"&$O9,E$82,E$83,CONFIGURATION!$B$10,\"BMA\",CONFIGURATION!$B$1,\"bscr\",CONFIGURATION!$B$12)","v":"Mapped"},null,{"$f":"XBRLMap(G9,G$81&\".\"&$O9,G$82,G$83,CONFIGURATION!$B$10,\"BMA\",CONFIGURATION!$B$1,\"bscr\",CONFIGURATION!$B$12)","v":"Mapped"},{"$f":"XBRLMap(H9,H$81&\".\"&$O9,H$82,H$83,CONFIGURATION!$B$10,\"BMA\",CONFIGURATION!$B$1,\"bscr\")","v":"Mapped"},null,{"$f":"XBRLMap(J9,J$81&\".\"&$O9,J$82,J$83,CONFIGURATION!$B$10,\"BMA\",CONFIGURATION!$B$1,\"bscr\",CONFIGURATION!$B$12)","v":"Mapped"},null,{"$f":"XBRLMap(L9,L$81&\".\"&$O9,L$82,L$83,CONFIGURATION!$B$10,\"BMA\",CONFIGURATION!$B$1,\"bscr\",CONFIGURATION!$B$12)","v":"Mapped"},{"$f":"XBRLMap(M9,M$81&\".\"&$O9,M$82,M$83,CONFIGURATION!$B$10,\"BMA\",CONFIGURATION!$B$1,\"bscr\")","v":"Mapped"}]
[null,null,null,null,{"$f":"XBRLMap(E10,E$81&\".\"&$O10,E$82,E$83,CONFIGURATION!$B$10,\"BMA\",CONFIGURATION!$B$1,\"bscr\",CONFIGURATION!$B$12)","v":"Mapped"},null,{"$f":"XBRLMap(G10,G$81&\".\"&$O10,G$82,G$83,CONFIGURATION!$B$10,\"BMA\",CONFIGURATION!$B$1,\"bscr\",CONFIGURATION!$B$12)","v":"Mapped"},{"$f":"XBRLMap(H10,H$81&\".\"&$O10,H$82,H$83,CONFIGURATION!$B$10,\"BMA\",CONFIGURATION!$B$1,\"bscr\")","v":"Mapped"},null,{"$f":"XBRLMap(J10,J$81&\".\"&$O10,J$82,J$83,CONFIGURATION!$B$10,\"BMA\",CONFIGURATION!$B$1,\"bscr\",CONFIGURATION!$B$12)","v":"Mapped"},null,{"$f":"XBRLMap(L10,L$81&\".\"&$O10,L$82,L$83,CONFIGURATION!$B$10,\"BMA\",CONFIGURATION!$B$1,\"bscr\",CONFIGURATION!$B$12)","v":"Mapped"},{"$f":"XBRLMap(M10,M$81&\".\"&$O10,M$82,M$83,CONFIGURATION!$B$10,\"BMA\",CONFIGURATION!$B$1,\"bscr\")","v":"Mapped"}]
[null,null,null,null,{"$f":"XBRLMap(E11,E$81&\".\"&$O11,E$82,E$83,CONFIGURATION!$B$10,\"BMA\",CONFIGURATION!$B$1,\"bscr\",CONFIGURATION!$B$12)","v":"Mapped"},null,{"$f":"XBRLMap(G11,G$81&\".\"&$O11,G$82,G$83,CONFIGURATION!$B$10,\"BMA\",CONFIGURATION!$B$1,\"bscr\",CONFIGURATION!$B$12)","v":"Mapped"},{"$f":"XBRLMap(H11,H$81&\".\"&$O11,H$82,H$83,CONFIGURATION!$B$10,\"BMA\",CONFIGURATION!$B$1,\"bscr\")","v":"Mapped"},null,{"$f":"XBRLMap(J11,J$81&\".\"&$O11,J$82,J$83,CONFIGURATION!$B$10,\"BMA\",CONFIGURATION!$B$1,\"bscr\",CONFIGURATION!$B$12)","v":"Mapped"},null,{"$f":"XBRLMap(L11,L$81&\".\"&$O11,L$82,L$83,CONFIGURATION!$B$10,\"BMA\",CONFIGURATION!$B$1,\"bscr\",CONFIGURATION!$B$12)","v":"Mapped"},{"$f":"XBRLMap(M11,M$81&\".\"&$O11,M$82,M$83,CONFIGURATION!$B$10,\"BMA\",CONFIGURATION!$B$1,\"bscr\")","v":"Mapped"}]
[null,null,null,null,{"$f":"XBRLMap(E12,E$81&\".\"&$O12,E$82,E$83,CONFIGURATION!$B$10,\"BMA\",CONFIGURATION!$B$1,\"bscr\",CONFIGURATION!$B$12)","v":"Mapped"},null,{"$f":"XBRLMap(G12,G$81&\".\"&$O12,G$82,G$83,CONFIGURATION!$B$10,\"BMA\",CONFIGURATION!$B$1,\"bscr\",CONFIGURATION!$B$12)","v":"Mapped"},{"$f":"XBRLMap(H12,H$81&\".\"&$O12,H$82,H$83,CONFIGURATION!$B$10,\"BMA\",CONFIGURATION!$B$1,\"bscr\")","v":"Mapped"},null,{"$f":"XBRLMap(J12,J$81&\".\"&$O12,J$82,J$83,CONFIGURATION!$B$10,\"BMA\",CONFIGURATION!$B$1,\"bscr\",CONFIGURATION!$B$12)","v":"Mapped"},null,{"$f":"XBRLMap(L12,L$81&\".\"&$O12,L$82,L$83,CONFIGURATION!$B$10,\"BMA\",CONFIGURATION!$B$1,\"bscr\",CONFIGURATION!$B$12)","v":"Mapped"},{"$f":"XBRLMap(M12,M$81&\".\"&$O12,M$82,M$83,CONFIGURATION!$B$10,\"BMA\",CONFIGURATION!$B$1,\"bscr\")","v":"Mapped"}]
[null,null,null,null,{"$f":"XBRLMap(E13,E$81&\".\"&$O13,E$82,E$83,CONFIGURATION!$B$10,\"BMA\",CONFIGURATION!$B$1,\"bscr\",CONFIGURATION!$B$12)","v":"Mapped"},null,{"$f":"XBRLMap(G13,G$81&\".\"&$O13,G$82,G$83,CONFIGURATION!$B$10,\"BMA\",CONFIGURATION!$B$1,\"bscr\",CONFIGURATION!$B$12)","v":"Mapped"},{"$f":"XBRLMap(H13,H$81&\".\"&$O13,H$82,H$83,CONFIGURATION!$B$10,\"BMA\",CONFIGURATION!$B$1,\"bscr\")","v":"Mapped"},null,{"$f":"XBRLMap(J13,J$81&\".\"&$O13,J$82,J$83,CONFIGURATION!$B$10,\"BMA\",CONFIGURATION!$B$1,\"bscr\",CONFIGURATION!$B$12)","v":"Mapped"},null,{"$f":"XBRLMap(L13,L$81&\".\"&$O13,L$82,L$83,CONFIGURATION!$B$10,\"BMA\",CONFIGURATION!$B$1,\"bscr\",CONFIGURATION!$B$12)","v":"Mapped"},{"$f":"XBRLMap(M13,M$81&\".\"&$O13,M$82,M$83,CONFIGURATION!$B$10,\"BMA\",CONFIGURATION!$B$1,\"bscr\")","v":"Mapped"}]
[]
[null,null,null,null,{"$f":"XBRLMap(E15,E$81&\".\"&$O15,E$82,E$83,CONFIGURATION!$B$10,\"BMA\",CONFIGURATION!$B$1,\"bscr\",CONFIGURATION!$B$12)","v":"Mapped"},null,{"$f":"XBRLMap(G15,G$81&\".\"&$O15,G$82,G$83,CONFIGURATION!$B$10,\"BMA\",CONFIGURATION!$B$1,\"bscr\",CONFIGURATION!$B$12)","v":"Mapped"},{"$f":"XBRLMap(H15,H$81&\".\"&$O15,H$82,H$83,CONFIGURATION!$B$10,\"BMA\",CONFIGURATION!$B$1,\"bscr\")","v":"Mapped"},null,{"$f":"XBRLMap(J15,J$81&\".\"&$O15,J$82,J$83,CONFIGURATION!$B$10,\"BMA\",CONFIGURATION!$B$1,\"bscr\",CONFIGURATION!$B$12)","v":"Mapped"},null,{"$f":"XBRLMap(L15,L$81&\".\"&$O15,L$82,L$83,CONFIGURATION!$B$10,\"BMA\",CONFIGURATION!$B$1,\"bscr\",CONFIGURATION!$B$12)","v":"Mapped"},{"$f":"XBRLMap(M15,M$81&\".\"&$O15,M$82,M$83,CONFIGURATION!$B$10,\"BMA\",CONFIGURATION!$B$1,\"bscr\")","v":"Mapped"}]
[null,null,null,null,{"$f":"XBRLMap(#REF!,E$81&\".\"&#REF!,E$82,E$83,CONFIGURATION!$B$10,\"BMA\",CONFIGURATION!$B$1,\"bscr\",CONFIGURATION!$B$12)","v":{"$error":"#VALUE!"}},null,{"$f":"XBRLMap(#REF!,G$81&\".\"&#REF!,G$82,G$83,CONFIGURATION!$B$10,\"BMA\",CONFIGURATION!$B$1,\"bscr\",CONFIGURATION!$B$12)","v":{"$error":"#VALUE!"}},{"$f":"XBRLMap(#REF!,H$81&\".\"&#REF!,H$82,H$83,CONFIGURATION!$B$10,\"BMA\",CONFIGURATION!$B$1,\"bscr\")","v":{"$error":"#VALUE!"}},null,{"$f":"XBRLMap(#REF!,J$81&\".\"&#REF!,J$82,J$83,CONFIGURATION!$B$10,\"BMA\",CONFIGURATION!$B$1,\"bscr\",CONFIGURATION!$B$12)","v":{"$error":"#VALUE!"}},null,{"$f":"XBRLMap(#REF!,L$81&\".\"&#REF!,L$82,L$83,CONFIGURATION!$B$10,\"BMA\",CONFIGURATION!$B$1,\"bscr\",CONFIGURATION!$B$12)","v":{"$error":"#VALUE!"}},{"$f":"XBRLMap(#REF!,M$81&\".\"&#REF!,M$82,M$83,CONFIGURATION!$B$10,\"BMA\",CONFIGURATION!$B$1,\"bscr\")","v":{"$error":"#VALUE!"}}]
[null,null,null,null,{"$f":"XBRLMap(E57,E$81&\".\"&$O57,E$82,E$83,CONFIGURATION!$B$10,\"BMA\",CONFIGURATION!$B$1,\"bscr\",CONFIGURATION!$B$12)","v":"Mapped"},null,{"$f":"XBRLMap(G57,G$81&\".\"&$O57,G$82,G$83,CONFIGURATION!$B$10,\"BMA\",CONFIGURATION!$B$1,\"bscr\",CONFIGURATION!$B$12)","v":"Mapped"},{"$f":"XBRLMap(H57,H$81&\".\"&$O57,H$82,H$83,CONFIGURATION!$B$10,\"BMA\",CONFIGURATION!$B$1,\"bscr\")","v":"Mapped"},null,{"$f":"XBRLMap(J57,J$81&\".\"&$O57,J$82,J$83,CONFIGURATION!$B$10,\"BMA\",CONFIGURATION!$B$1,\"bscr\",CONFIGURATION!$B$12)","v":"Mapped"},null,{"$f":"XBRLMap(L57,L$81&\".\"&$O57,L$82,L$83,CONFIGURATION!$B$10,\"BMA\",CONFIGURATION!$B$1,\"bscr\",CONFIGURATION!$B$12)","v":"Mapped"},{"$f":"XBRLMap(M57,M$81&\".\"&$O57,M$82,M$83,CONFIGURATION!$B$10,\"BMA\",CONFIGURATION!$B$1,\"bscr\")","v":"Mapped"}]
[null,null,null,null,{"$f":"XBRLMap(#REF!,E$81&\".\"&#REF!,E$82,E$83,CONFIGURATION!$B$10,\"BMA\",CONFIGURATION!$B$1,\"bscr\",CONFIGURATION!$B$12)","v":{"$error":"#VALUE!"}},null,{"$f":"XBRLMap(#REF!,G$81&\".\"&#REF!,G$82,G$83,CONFIGURATION!$B$10,\"BMA\",CONFIGURATION!$B$1,\"bscr\",CONFIGURATION!$B$12)","v":{"$error":"#VALUE!"}},{"$f":"XBRLMap(#REF!,H$81&\".\"&#REF!,H$82,H$83,CONFIGURATION!$B$10,\"BMA\",CONFIGURATION!$B$1,\"bscr\")","v":{"$error":"#VALUE!"}},null,{"$f":"XBRLMap(#REF!,J$81&\".\"&#REF!,J$82,J$83,CONFIGURATION!$B$10,\"BMA\",CONFIGURATION!$B$1,\"bscr\",CONFIGURATION!$B$12)","v":{"$error":"#VALUE!"}},null,{"$f":"XBRLMap(#REF!,L$81&\".\"&#REF!,L$82,L$83,CONFIGURATION!$B$10,\"BMA\",CONFIGURATION!$B$1,\"bscr\",CONFIGURATION!$B$12)","v":{"$error":"#VALUE!"}},{"$f":"XBRLMap(#REF!,M$81&\".\"&#REF!,M$82,M$83,CONFIGURATION!$B$10,\"BMA\",CONFIGURATION!$B$1,\"bscr\")","v":{"$error":"#VALUE!"}}]
[null,null,null,null,{"$f":"XBRLMap(#REF!,E$81&\".\"&#REF!,E$82,E$83,CONFIGURATION!$B$10,\"BMA\",CONFIGURATION!$B$1,\"bscr\",CONFIGURATION!$B$12)","v":{"$error":"#VALUE!"}},null,{"$f":"XBRLMap(#REF!,G$81&\".\"&#REF!,G$82,G$83,CONFIGURATION!$B$10,\"BMA\",CONFIGURATION!$B$1,\"bscr\",CONFIGURATION!$B$12)","v":{"$error":"#VALUE!"}},{"$f":"XBRLMap(#REF!,H$81&\".\"&#REF!,H$82,H$83,CONFIGURATION!$B$10,\"BMA\",CONFIGURATION!$B$1,\"bscr\")","v":{"$error":"#VALUE!"}},null,{"$f":"XBRLMap(#REF!,J$81&\".\"&#REF!,J$82,J$83,CONFIGURATION!$B$10,\"BMA\",CONFIGURATION!$B$1,\"bscr\",CONFIGURATION!$B$12)","v":{"$error":"#VALUE!"}},null,{"$f":"XBRLMap(#REF!,L$81&\".\"&#REF!,L$82,L$83,CONFIGURATION!$B$10,\"BMA\",CONFIGURATION!$B$1,\"bscr\",CONFIGURATION!$B$12)","v":{"$error":"#VALUE!"}},{"$f":"XBRLMap(#REF!,M$81&\".\"&#REF!,M$82,M$83,CONFIGURATION!$B$10,\"BMA\",CONFIGURATION!$B$1,\"bscr\")","v":{"$error":"#VALUE!"}}]
[]
[null,null,null,null,{"$f":"XBRLMap(#REF!,E$81&\".\"&#REF!,E$82,E$83,CONFIGURATION!$B$10,\"BMA\",CONFIGURATION!$B$1,\"bscr\",CONFIGURATION!$B$12)","v":{"$error":"#VALUE!"}},null,{"$f":"XBRLMap(#REF!,G$81&\".\"&#REF!,G$82,G$83,CONFIGURATION!$B$10,\"BMA\",CONFIGURATION!$B$1,\"bscr\",CONFIGURATION!$B$12)","v":{"$error":"#VALUE!"}},{"$f":"XBRLMap(#REF!,H$81&\".\"&#REF!,H$82,H$83,CONFIGURATION!$B$10,\"BMA\",CONFIGURATION!$B$1,\"bscr\")","v":{"$error":"#VALUE!"}},null,{"$f":"XBRLMap(#REF!,J$81&\".\"&#REF!,J$82,J$83,CONFIGURATION!$B$10,\"BMA\",CONFIGURATION!$B$1,\"bscr\",CONFIGURATION!$B$12)","v":{"$error":"#VALUE!"}},null,{"$f":"XBRLMap(#REF!,L$81&\".\"&#REF!,L$82,L$83,CONFIGURATION!$B$10,\"BMA\",CONFIGURATION!$B$1,\"bscr\",CONFIGURATION!$B$12)","v":{"$error":"#VALUE!"}},{"$f":"XBRLMap(#REF!,M$81&\".\"&#REF!,M$82,M$83,CONFIGURATION!$B$10,\"BMA\",CONFIGURATION!$B$1,\"bscr\")","v":{"$error":"#VALUE!"}}]
[null,null,null,null,{"$f":"XBRLMap(#REF!,E$81&\".\"&#REF!,E$82,E$83,CONFIGURATION!$B$10,\"BMA\",CONFIGURATION!$B$1,\"bscr\",CONFIGURATION!$B$12)","v":{"$error":"#VALUE!"}},null,{"$f":"XBRLMap(#REF!,G$81&\".\"&#REF!,G$82,G$83,CONFIGURATION!$B$10,\"BMA\",CONFIGURATION!$B$1,\"bscr\",CONFIGURATION!$B$12)","v":{"$error":"#VALUE!"}},{"$f":"XBRLMap(#REF!,H$81&\".\"&#REF!,H$82,H$83,CONFIGURATION!$B$10,\"BMA\",CONFIGURATION!$B$1,\"bscr\")","v":{"$error":"#VALUE!"}},null,{"$f":"XBRLMap(#REF!,J$81&\".\"&#REF!,J$82,J$83,CONFIGURATION!$B$10,\"BMA\",CONFIGURATION!$B$1,\"bscr\",CONFIGURATION!$B$12)","v":{"$error":"#VALUE!"}},null,{"$f":"XBRLMap(#REF!,L$81&\".\"&#REF!,L$82,L$83,CONFIGURATION!$B$10,\"BMA\",CONFIGURATION!$B$1,\"bscr\",CONFIGURATION!$B$12)","v":{"$error":"#VALUE!"}},{"$f":"XBRLMap(#REF!,M$81&\".\"&#REF!,M$82,M$83,CONFIGURATION!$B$10,\"BMA\",CONFIGURATION!$B$1,\"bscr\")","v":{"$error":"#VALUE!"}}]
[null,null,null,null,{"$f":"XBRLMap(#REF!,E$81&\".\"&#REF!,E$82,E$83,CONFIGURATION!$B$10,\"BMA\",CONFIGURATION!$B$1,\"bscr\",CONFIGURATION!$B$12)","v":{"$error":"#VALUE!"}},null,{"$f":"XBRLMap(#REF!,G$81&\".\"&#REF!,G$82,G$83,CONFIGURATION!$B$10,\"BMA\",CONFIGURATION!$B$1,\"bscr\",CONFIGURATION!$B$12)","v":{"$error":"#VALUE!"}},{"$f":"XBRLMap(#REF!,H$81&\".\"&#REF!,H$82,H$83,CONFIGURATION!$B$10,\"BMA\",CONFIGURATION!$B$1,\"bscr\")","v":{"$error":"#VALUE!"}},null,{"$f":"XBRLMap(#REF!,J$81&\".\"&#REF!,J$82,J$83,CONFIGURATION!$B$10,\"BMA\",CONFIGURATION!$B$1,\"bscr\",CONFIGURATION!$B$12)","v":{"$error":"#VALUE!"}},null,{"$f":"XBRLMap(#REF!,L$81&\".\"&#REF!,L$82,L$83,CONFIGURATION!$B$10,\"BMA\",CONFIGURATION!$B$1,\"bscr\",CONFIGURATION!$B$12)","v":{"$error":"#VALUE!"}},{"$f":"XBRLMap(#REF!,M$81&\".\"&#REF!,M$82,M$83,CONFIGURATION!$B$10,\"BMA\",CONFIGURATION!$B$1,\"bscr\")","v":{"$error":"#VALUE!"}}]
[null,null,null,null,{"$f":"XBRLMap(#REF!,E$81&\".\"&#REF!,E$82,E$83,CONFIGURATION!$B$10,\"BMA\",CONFIGURATION!$B$1,\"bscr\",CONFIGURATION!$B$12)","v":{"$error":"#VALUE!"}},null,{"$f":"XBRLMap(#REF!,G$81&\".\"&#REF!,G$82,G$83,CONFIGURATION!$B$10,\"BMA\",CONFIGURATION!$B$1,\"bscr\",CONFIGURATION!$B$12)","v":{"$error":"#VALUE!"}},{"$f":"XBRLMap(#REF!,H$81&\".\"&#REF!,H$82,H$83,CONFIGURATION!$B$10,\"BMA\",CONFIGURATION!$B$1,\"bscr\")","v":{"$error":"#VALUE!"}},null,{"$f":"XBRLMap(#REF!,J$81&\".\"&#REF!,J$82,J$83,CONFIGURATION!$B$10,\"BMA\",CONFIGURATION!$B$1,\"bscr\",CONFIGURATION!$B$12)","v":{"$error":"#VALUE!"}},null,{"$f":"XBRLMap(#REF!,L$81&\".\"&#REF!,L$82,L$83,CONFIGURATION!$B$10,\"BMA\",CONFIGURATION!$B$1,\"bscr\",CONFIGURATION!$B$12)","v":{"$error":"#VALUE!"}},{"$f":"XBRLMap(#REF!,M$81&\".\"&#REF!,M$82,M$83,CONFIGURATION!$B$10,\"BMA\",CONFIGURATION!$B$1,\"bscr\")","v":{"$error":"#VALUE!"}}]
[null,null,null,null,{"$f":"XBRLMap(#REF!,E$81&\".\"&#REF!,E$82,E$83,CONFIGURATION!$B$10,\"BMA\",CONFIGURATION!$B$1,\"bscr\",CONFIGURATION!$B$12)","v":{"$error":"#VALUE!"}},null,{"$f":"XBRLMap(#REF!,G$81&\".\"&#REF!,G$82,G$83,CONFIGURATION!$B$10,\"BMA\",CONFIGURATION!$B$1,\"bscr\",CONFIGURATION!$B$12)","v":{"$error":"#VALUE!"}},{"$f":"XBRLMap(#REF!,H$81&\".\"&#REF!,H$82,H$83,CONFIGURATION!$B$10,\"BMA\",CONFIGURATION!$B$1,\"bscr\")","v":{"$error":"#VALUE!"}},null,{"$f":"XBRLMap(#REF!,J$81&\".\"&#REF!,J$82,J$83,CONFIGURATION!$B$10,\"BMA\",CONFIGURATION!$B$1,\"bscr\",CONFIGURATION!$B$12)","v":{"$error":"#VALUE!"}},null,{"$f":"XBRLMap(#REF!,L$81&\".\"&#REF!,L$82,L$83,CONFIGURATION!$B$10,\"BMA\",CONFIGURATION!$B$1,\"bscr\",CONFIGURATION!$B$12)","v":{"$error":"#VALUE!"}},{"$f":"XBRLMap(#REF!,M$81&\".\"&#REF!,M$82,M$83,CONFIGURATION!$B$10,\"BMA\",CONFIGURATION!$B$1,\"bscr\")","v":{"$error":"#VALUE!"}}]
[null,null,null,null,{"$f":"XBRLMap(#REF!,E$81&\".\"&#REF!,E$82,E$83,CONFIGURATION!$B$10,\"BMA\",CONFIGURATION!$B$1,\"bscr\",CONFIGURATION!$B$12)","v":{"$error":"#VALUE!"}},null,{"$f":"XBRLMap(#REF!,G$81&\".\"&#REF!,G$82,G$83,CONFIGURATION!$B$10,\"BMA\",CONFIGURATION!$B$1,\"bscr\",CONFIGURATION!$B$12)","v":{"$error":"#VALUE!"}},{"$f":"XBRLMap(#REF!,H$81&\".\"&#REF!,H$82,H$83,CONFIGURATION!$B$10,\"BMA\",CONFIGURATION!$B$1,\"bscr\")","v":{"$error":"#VALUE!"}},null,{"$f":"XBRLMap(#REF!,J$81&\".\"&#REF!,J$82,J$83,CONFIGURATION!$B$10,\"BMA\",CONFIGURATION!$B$1,\"bscr\",CONFIGURATION!$B$12)","v":{"$error":"#VALUE!"}},null,{"$f":"XBRLMap(#REF!,L$81&\".\"&#REF!,L$82,L$83,CONFIGURATION!$B$10,\"BMA\",CONFIGURATION!$B$1,\"bscr\",CONFIGURATION!$B$12)","v":{"$error":"#VALUE!"}},{"$f":"XBRLMap(#REF!,M$81&\".\"&#REF!,M$82,M$83,CONFIGURATION!$B$10,\"BMA\",CONFIGURATION!$B$1,\"bscr\")","v":{"$error":"#VALUE!"}}]
[null,null,null,null,{"$f":"XBRLMap(#REF!,E$81&\".\"&#REF!,E$82,E$83,CONFIGURATION!$B$10,\"BMA\",CONFIGURATION!$B$1,\"bscr\",CONFIGURATION!$B$12)","v":{"$error":"#VALUE!"}},null,{"$f":"XBRLMap(#REF!,G$81&\".\"&#REF!,G$82,G$83,CONFIGURATION!$B$10,\"BMA\",CONFIGURATION!$B$1,\"bscr\",CONFIGURATION!$B$12)","v":{"$error":"#VALUE!"}},{"$f":"XBRLMap(#REF!,H$81&\".\"&#REF!,H$82,H$83,CONFIGURATION!$B$10,\"BMA\",CONFIGURATION!$B$1,\"bscr\")","v":{"$error":"#VALUE!"}},null,{"$f":"XBRLMap(#REF!,J$81&\".\"&#REF!,J$82,J$83,CONFIGURATION!$B$10,\"BMA\",CONFIGURATION!$B$1,\"bscr\",CONFIGURATION!$B$12)","v":{"$error":"#VALUE!"}},null,{"$f":"XBRLMap(#REF!,L$81&\".\"&#REF!,L$82,L$83,CONFIGURATION!$B$10,\"BMA\",CONFIGURATION!$B$1,\"bscr\",CONFIGURATION!$B$12)","v":{"$error":"#VALUE!"}},{"$f":"XBRLMap(#REF!,M$81&\".\"&#REF!,M$82,M$83,CONFIGURATION!$B$10,\"BMA\",CONFIGURATION!$B$1,\"bscr\")","v":{"$error":"#VALUE!"}}]
[null,null,null,null,{"$f":"XBRLMap(E58,E$81&\".\"&$O58,E$82,E$83,CONFIGURATION!$B$10,\"BMA\",CONFIGURATION!$B$1,\"bscr\",CONFIGURATION!$B$12)","v":"Mapped"},null,null,null,null,null,null,{"$f":"XBRLMap(L58,L$81&\".\"&$O58,L$82,L$83,CONFIGURATION!$B$10,\"BMA\",CONFIGURATION!$B$1,\"bscr\",CONFIGURATION!$B$12)","v":"Mapped"}]
[null,null,null,null,null,null,"A or better",null,null,"A or better"]
[null,null,null,null,null,null,"BBB or equivalent",null,null,"BBB or equivalent"]
[null,null,null,null,null,null,"B or better",null,null,"B or better"]
[null,null,{"$f":"XBRLMap(#REF!,#REF!,C$82,C$83,CONFIGURATION!$B$10,\"BMA\",CONFIGURATION!$B$1,\"bscr\")","v":{"$error":"#VALUE!"}},null,null,null,"unrated/other",null,null,"unrated/other"]
[]
[null,null,{"$f":"XBRLMap(#REF!,#REF!,C$82,C$83,CONFIGURATION!$B$10,\"BMA\",CONFIGURATION!$B$1,\"bscr\")","v":{"$error":"#VALUE!"}}]

{"sheet":"Schedule XXIA","index":92,"n_rows":108,"n_cols":45,"rows_kept":108,"cut":false,"hidden":false,"merged":[[4,4,4,7],[4,9,4,12],[61,9,62,12]]}
[null,null,"SCHEDULE OF CONCENTRATION RISK",null,null,null,null,null,null,null,null,null,{"$f":"HYPERLINK(\"#'Index'!A1\",\"Return to Index\")","v":"Return to Index"}]
[null,null,{"$f":"'Company Information'!C7","v":"Enter Company Name"}]
[null,null,{"$f":"'Form 1EBS'!C3","v":"2019-12-31"},null,null,null,null,null,null,{"$f":"Import!E14021","v":0},"Enter Number of Rows Required",null,"SCHEDULE XXIA"]
[null,null,{"$f":"IF(CONFIGURATION!$B$12>1,\" ['\"&MID(CONFIGURATION!$B$12,2,LEN(CONFIGURATION!$B$12))&\"s]\",\"\")&'Form 1EBS'!C4","v":" ['000s]United States Dollars"}]
[null,null,null,null,"Unconsolidated SFS",null,null,null,null,"EBS Valuation"]
[null,null,null,null,"(A)","(B)","(C)","(D)",null,"(E)","(F)","(G)","(H)"]
[null,null,"Name of Exposure",null,"Asset Type","Bond / Mortgage Loan Type","BSCR Rating","Asset Value",null,"Asset Type","Bond / Mortgage Loan Type","BSCR Rating","Asset Value"]
[null,1,{"$f":"Import!E14022","v":0},null,{"$f":"Import!E14072","v":"Select"},{"$f":"Import!E14122","v":"Select"},{"$f":"Import!E14172","v":"Select"},{"$f":"Import!E14222","v":0},null,{"$f":"Import!M14072","v":"Select"},{"$f":"Import!M14122","v":"Select"},{"$f":"Import!M14172","v":"Select"},{"$f":"Import!M14222","v":0},null,null,null,null,null,null,null,null,null,null,null,null,null,null,null,null,null,"",null,"bma_SecurityUSGovernmentAmountPerForm1ALines2bAnd3b",null,"bma_SecurityUSGovernmentFaceValue",null,"bma_SecurityUSGovernmentFairValue",null,"bma_SecurityUSGovernmentAverageYTM",null,"bma_SecurityUSGovernmentAverageRating",null,"bma_SecurityUSGovernmentEffectiveDuration",null,"bma_SecurityUSGovernmentEffectiveConvexity"]
[null,{"$f":"B8+1","v":2},{"$f":"Import!E14023","v":0},null,{"$f":"Import!E14073","v":"Select"},{"$f":"Import!E14123","v":"Select"},{"$f":"Import!E14173","v":"Select"},{"$f":"Import!E14223","v":0},null,{"$f":"Import!M14073","v":"Select"},{"$f":"Import!M14123","v":"Select"},{"$f":"Import!M14173","v":"Select"},{"$f":"Import!M14223","v":0},null,"brrt_SecurityTypeAxis_brrt_USGovernmentMember",null,null,null,null,null,null,null,null,null,null,null,null,null,null,null,"",null,"bma_SecurityNonUSGovernmentAmountPerForm1ALines2bAnd3b",null,"bma_SecurityNonUSGovernmentFaceValue",null,"bma_SecurityNonUSGovernmentFairValue",null,"bma_SecurityNonUSGovernmentAverageYTM",null,"bma_SecurityNonUSGovernmentAverageRating",null,"bma_SecurityNonUSGovernmentEffectiveDuration",null,"bma_SecurityNonUSGovernmentEffectiveConvexity"]
[null,{"$f":"B9+1","v":3},{"$f":"Import!E14024","v":0},null,{"$f":"Import!E14074","v":"Select"},{"$f":"Import!E14124","v":"Select"},{"$f":"Import!E14174","v":"Select"},{"$f":"Import!E14224","v":0},null,{"$f":"Import!M14074","v":"Select"},{"$f":"Import!M14124","v":"Select"},{"$f":"Import!M14174","v":"Select"},{"$f":"Import!M14224","v":0},null,"brrt_SecurityTypeAxis_brrt_USGovernmentAgencyMortgageBackedSecuritiesMember",null,null,null,null,null,null,null,null,null,null,null,null,null,null,null,"",null,"bma_SecurityUSGovernmentAgencyMortgageBackedSecuritiesAmountPerForm1ALines2bAnd3b",null,"bma_SecurityUSGovernmentAgencyMortgageBackedSecuritiesFaceValue",null,"bma_SecurityUSGovernmentAgencyMortgageBackedSecuritiesFairValue",null,"bma_SecurityUSGovernmentAgencyMortgageBackedSecuritiesAverageYTM",null,"bma_SecurityUSGovernmentAgencyMortgageBackedSecuritiesAverageRating",null,"bma_SecurityUSGovernmentAgencyMortgageBackedSecuritiesEffectiveDuration",null,"bma_SecurityUSGovernmentAgencyMortgageBackedSecuritiesEffectiveConvexity"]
[null,4,{"$f":"Import!E14025","v":0},null,{"$f":"Import!E14075","v":"Select"},{"$f":"Import!E14125","v":"Select"},{"$f":"Import!E14175","v":"Select"},{"$f":"Import!E14225","v":0},null,{"$f":"Import!M14075","v":"Select"},{"$f":"Import!M14125","v":"Select"},{"$f":"Import!M14175","v":"Select"},{"$f":"Import!M14225","v":0},null,"brrt_SecurityTypeAxis_brrt_USGovernmentAgencyOtherMember",null,null,null,null,null,null,null,null,null,null,null,null,null,null,null,"",null,"bma_SecurityUSGovernmentAgencyOtherAmountPerForm1ALines2bAnd3b",null,"bma_SecurityUSGovernmentAgencyOtherFaceValue",null,"bma_SecurityUSGovernmentAgencyOtherFairValue",null,"bma_SecurityUSGovernmentAgencyOtherAverageYTM",null,"bma_SecurityUSGovernmentAgencyOtherAverageRating",null,"bma_SecurityUSGovernmentAgencyOtherEffectiveDuration",null,"bma_SecurityUSGovernmentAgencyOtherEffectiveConvexity"]
[null,5,{"$f":"Import!E14026","v":0},null,{"$f":"Import!E14076","v":"Select"},{"$f":"Import!E14126","v":"Select"},{"$f":"Import!E14176","v":"Select"},{"$f":"Import!E14226","v":0},null,{"$f":"Import!M14076","v":"Select"},{"$f":"Import!M14126","v":"Select"},{"$f":"Import!M14176","v":"Select"},{"$f":"Import!M14226","v":0},null,"brrt_SecurityTypeAxis_brrt_NonUSGovernmentMember",null,null,null,null,null,null,null,null,null,null,null,null,null,null,null,"",null,"bma_SecurityCorporateSecuritiesAmountPerForm1ALines2bAnd3b",null,"bma_SecurityCorporateSecuritiesFaceValue",null,"bma_SecurityCorporateSecuritiesFairValue",null,"bma_SecurityCorporateSecuritiesAverageYTM",null,"bma_SecurityCorporateSecuritiesAverageRating",null,"bma_SecurityCorporateSecuritiesEffectiveDuration",null,"bma_SecurityCorporateSecuritiesEffectiveConvexity"]
[null,6,{"$f":"Import!E14027","v":0},null,{"$f":"Import!E14077","v":"Select"},{"$f":"Import!E14127","v":"Select"},{"$f":"Import!E14177","v":"Select"},{"$f":"Import!E14227","v":0},null,{"$f":"Import!M14077","v":"Select"},{"$f":"Import!M14127","v":"Select"},{"$f":"Import!M14177","v":"Select"},{"$f":"Import!M14227","v":0},null,"brrt_SecurityTypeAxis_brrt_StatesMunicipalitiesAndPoliticalSubdivisionMember",null,null,null,null,null,null,null,null,null,null,null,null,null,null,null,"",null,"bma_SecurityAssetBackedSecuritiesAmountPerForm1ALines2bAnd3b",null,"bma_SecurityAssetBackedSecuritiesFaceValue",null,"bma_SecurityAssetBackedSecuritiesFairValue",null,"bma_SecurityAssetBackedSecuritiesAverageYTM",null,"bma_SecurityAssetBackedSecuritiesAverageRating",null,"bma_SecurityAssetBackedSecuritiesEffectiveDuration",null,"bma_SecurityAssetBackedSecuritiesEffectiveConvexity"]
[null,7,{"$f":"Import!E14028","v":0},null,{"$f":"Import!E14078","v":"Select"},{"$f":"Import!E14128","v":"Select"},{"$f":"Import!E14178","v":"Select"},{"$f":"Import!E14228","v":0},null,{"$f":"Import!M14078","v":"Select"},{"$f":"Import!M14128","v":"Select"},{"$f":"Import!M14178","v":"Select"},{"$f":"Import!M14228","v":0},null,null,null,null,null,null,null,null,null,null,null,null,null,null,null,null,null,"",null,"bma_SecurityMortgageBackedSecuritiesAmountPerForm1ALines2bAnd3b",null,"bma_SecurityMortgageBackedSecuritiesFaceValue",null,"bma_SecurityMortgageBackedSecuritiesFairValue",null,"bma_SecurityMortgageBackedSecuritiesAverageYTM",null,"bma_SecurityMortgageBackedSecuritiesAverageRating",null,"bma_SecurityMortgageBackedSecuritiesEffectiveDuration",null,"bma_SecurityMortgageBackedSecuritiesEffectiveConvexity"]
[null,8,{"$f":"Import!E14029","v":0},null,{"$f":"Import!E14079","v":"Select"},{"$f":"Import!E14129","v":"Select"},{"$f":"Import!E14179","v":"Select"},{"$f":"Import!E14229","v":0},null,{"$f":"Import!M14079","v":"Select"},{"$f":"Import!M14129","v":"Select"},{"$f":"Import!M14179","v":"Select"},{"$f":"Import!M14229","v":0},null,"brrt_SecurityTypeAxis_brrt_USGovernmentBackedCorporateSecuritiesMember",null,null,null,null,null,null,null,null,null,null,null,null,null,null,null,"",null,"bma_SecurityMutualFundsAmountPerForm1ALines2bAnd3b",null,"bma_SecurityMutualFundsFaceValue",null,"bma_SecurityMutualFundsFairValue",null,"bma_SecurityMutualFundsAverageYTM",null,"bma_SecurityMutualFundsAverageRating",null,"bma_SecurityMutualFundsEffectiveDuration",null,"bma_SecurityMutualFundsEffectiveConvexity"]
[null,9,{"$f":"Import!E14030","v":0},null,{"$f":"Import!E14080","v":"Select"},{"$f":"Import!E14130","v":"Select"},{"$f":"Import!E14180","v":"Select"},{"$f":"Import!E14230","v":0},null,{"$f":"Import!M14080","v":"Select"},{"$f":"Import!M14130","v":"Select"},{"$f":"Import!M14180","v":"Select"},{"$f":"Import!M14230","v":0}]
[null,10,{"$f":"Import!E14031","v":0},null,{"$f":"Import!E14081","v":"Select"},{"$f":"Import!E14131","v":"Select"},{"$f":"Import!E14181","v":"Select"},{"$f":"Import!E14231","v":0},null,{"$f":"Import!M14081","v":"Select"},{"$f":"Import!M14131","v":"Select"},{"$f":"Import!M14181","v":"Select"},{"$f":"Import!M14231","v":0}]
[null,11,{"$f":"Import!E14032","v":0},null,{"$f":"Import!E14082","v":"Select"},{"$f":"Import!E14132","v":"Select"},{"$f":"Import!E14182","v":"Select"},{"$f":"Import!E14232","v":0},null,{"$f":"Import!M14082","v":"Select"},{"$f":"Import!M14132","v":"Select"},{"$f":"Import!M14182","v":"Select"},{"$f":"Import!M14232","v":0}]
[null,12,{"$f":"Import!E14033","v":0},null,{"$f":"Import!E14083","v":"Select"},{"$f":"Import!E14133","v":"Select"},{"$f":"Import!E14183","v":"Select"},{"$f":"Import!E14233","v":0},null,{"$f":"Import!M14083","v":"Select"},{"$f":"Import!M14133","v":"Select"},{"$f":"Import!M14183","v":"Select"},{"$f":"Import!M14233","v":0}]
[null,13,{"$f":"Import!E14034","v":0},null,{"$f":"Import!E14084","v":"Select"},{"$f":"Import!E14134","v":"Select"},{"$f":"Import!E14184","v":"Select"},{"$f":"Import!E14234","v":0},null,{"$f":"Import!M14084","v":"Select"},{"$f":"Import!M14134","v":"Select"},{"$f":"Import!M14184","v":"Select"},{"$f":"Import!M14234","v":0}]
[null,14,{"$f":"Import!E14035","v":0},null,{"$f":"Import!E14085","v":"Select"},{"$f":"Import!E14135","v":"Select"},{"$f":"Import!E14185","v":"Select"},{"$f":"Import!E14235","v":0},null,{"$f":"Import!M14085","v":"Select"},{"$f":"Import!M14135","v":"Select"},{"$f":"Import!M14185","v":"Select"},{"$f":"Import!M14235","v":0}]
[null,15,{"$f":"Import!E14036","v":0},null,{"$f":"Import!E14086","v":"Select"},{"$f":"Import!E14136","v":"Select"},{"$f":"Import!E14186","v":"Select"},{"$f":"Import!E14236","v":0},null,{"$f":"Import!M14086","v":"Select"},{"$f":"Import!M14136","v":"Select"},{"$f":"Import!M14186","v":"Select"},{"$f":"Import!M14236","v":0}]
[null,16,{"$f":"Import!E14037","v":0},null,{"$f":"Import!E14087","v":"Select"},{"$f":"Import!E14137","v":"Select"},{"$f":"Import!E14187","v":"Select"},{"$f":"Import!E14237","v":0},null,{"$f":"Import!M14087","v":"Select"},{"$f":"Import!M14137","v":"Select"},{"$f":"Import!M14187","v":"Select"},{"$f":"Import!M14237","v":0}]
[null,17,{"$f":"Import!E14038","v":0},null,{"$f":"Import!E14088","v":"Select"},{"$f":"Import!E14138","v":"Select"},{"$f":"Import!E14188","v":"Select"},{"$f":"Import!E14238","v":0},null,{"$f":"Import!M14088","v":"Select"},{"$f":"Import!M14138","v":"Select"},{"$f":"Import!M14188","v":"Select"},{"$f":"Import!M14238","v":0}]
[null,18,{"$f":"Import!E14039","v":0},null,{"$f":"Import!E14089","v":"Select"},{"$f":"Import!E14139","v":"Select"},{"$f":"Import!E14189","v":"Select"},{"$f":"Import!E14239","v":0},null,{"$f":"Import!M14089","v":"Select"},{"$f":"Import!M14139","v":"Select"},{"$f":"Import!M14189","v":"Select"},{"$f":"Import!M14239","v":0}]
[null,19,{"$f":"Import!E14040","v":0},null,{"$f":"Import!E14090","v":"Select"},{"$f":"Import!E14140","v":"Select"},{"$f":"Import!E14190","v":"Select"},{"$f":"Import!E14240","v":0},null,{"$f":"Import!M14090","v":"Select"},{"$f":"Import!M14140","v":"Select"},{"$f":"Import!M14190","v":"Select"},{"$f":"Import!M14240","v":0}]
[null,20,{"$f":"Import!E14041","v":0},null,{"$f":"Import!E14091","v":"Select"},{"$f":"Import!E14141","v":"Select"},{"$f":"Import!E14191","v":"Select"},{"$f":"Import!E14241","v":0},null,{"$f":"Import!M14091","v":"Select"},{"$f":"Import!M14141","v":"Select"},{"$f":"Import!M14191","v":"Select"},{"$f":"Import!M14241","v":0}]
[null,21,{"$f":"Import!E14042","v":0},null,{"$f":"Import!E14092","v":"Select"},{"$f":"Import!E14142","v":"Select"},{"$f":"Import!E14192","v":"Select"},{"$f":"Import!E14242","v":0},null,{"$f":"Import!M14092","v":"Select"},{"$f":"Import!M14142","v":"Select"},{"$f":"Import!M14192","v":"Select"},{"$f":"Import!M14242","v":0}]
[null,22,{"$f":"Import!E14043","v":0},null,{"$f":"Import!E14093","v":"Select"},{"$f":"Import!E14143","v":"Select"},{"$f":"Import!E14193","v":"Select"},{"$f":"Import!E14243","v":0},null,{"$f":"Import!M14093","v":"Select"},{"$f":"Import!M14143","v":"Select"},{"$f":"Import!M14193","v":"Select"},{"$f":"Import!M14243","v":0}]
[null,23,{"$f":"Import!E14044","v":0},null,{"$f":"Import!E14094","v":"Select"},{"$f":"Import!E14144","v":"Select"},{"$f":"Import!E14194","v":"Select"},{"$f":"Import!E14244","v":0},null,{"$f":"Import!M14094","v":"Select"},{"$f":"Import!M14144","v":"Select"},{"$f":"Import!M14194","v":"Select"},{"$f":"Import!M14244","v":0}]
[null,24,{"$f":"Import!E14045","v":0},null,{"$f":"Import!E14095","v":"Select"},{"$f":"Import!E14145","v":"Select"},{"$f":"Import!E14195","v":"Select"},{"$f":"Import!E14245","v":0},null,{"$f":"Import!M14095","v":"Select"},{"$f":"Import!M14145","v":"Select"},{"$f":"Import!M14195","v":"Select"},{"$f":"Import!M14245","v":0}]
[null,25,{"$f":"Import!E14046","v":0},null,{"$f":"Import!E14096","v":"Select"},{"$f":"Import!E14146","v":"Select"},{"$f":"Import!E14196","v":"Select"},{"$f":"Import!E14246","v":0},null,{"$f":"Import!M14096","v":"Select"},{"$f":"Import!M14146","v":"Select"},{"$f":"Import!M14196","v":"Select"},{"$f":"Import!M14246","v":0}]
[null,26,{"$f":"Import!E14047","v":0},null,{"$f":"Import!E14097","v":"Select"},{"$f":"Import!E14147","v":"Select"},{"$f":"Import!E14197","v":"Select"},{"$f":"Import!E14247","v":0},null,{"$f":"Import!M14097","v":"Select"},{"$f":"Import!M14147","v":"Select"},{"$f":"Import!M14197","v":"Select"},{"$f":"Import!M14247","v":0}]
[null,27,{"$f":"Import!E14048","v":0},null,{"$f":"Import!E14098","v":"Select"},{"$f":"Import!E14148","v":"Select"},{"$f":"Import!E14198","v":"Select"},{"$f":"Import!E14248","v":0},null,{"$f":"Import!M14098","v":"Select"},{"$f":"Import!M14148","v":"Select"},{"$f":"Import!M14198","v":"Select"},{"$f":"Import!M14248","v":0}]
[null,28,{"$f":"Import!E14049","v":0},null,{"$f":"Import!E14099","v":"Select"},{"$f":"Import!E14149","v":"Select"},{"$f":"Import!E14199","v":"Select"},{"$f":"Import!E14249","v":0},null,{"$f":"Import!M14099","v":"Select"},{"$f":"Import!M14149","v":"Select"},{"$f":"Import!M14199","v":"Select"},{"$f":"Import!M14249","v":0}]
[null,29,{"$f":"Import!E14050","v":0},null,{"$f":"Import!E14100","v":"Select"},{"$f":"Import!E14150","v":"Select"},{"$f":"Import!E14200","v":"Select"},{"$f":"Import!E14250","v":0},null,{"$f":"Import!M14100","v":"Select"},{"$f":"Import!M14150","v":"Select"},{"$f":"Import!M14200","v":"Select"},{"$f":"Import!M14250","v":0}]
[null,30,{"$f":"Import!E14051","v":0},null,{"$f":"Import!E14101","v":"Select"},{"$f":"Import!E14151","v":"Select"},{"$f":"Import!E14201","v":"Select"},{"$f":"Import!E14251","v":0},null,{"$f":"Import!M14101","v":"Select"},{"$f":"Import!M14151","v":"Select"},{"$f":"Import!M14201","v":"Select"},{"$f":"Import!M14251","v":0}]
[null,31,{"$f":"Import!E14052","v":0},null,{"$f":"Import!E14102","v":"Select"},{"$f":"Import!E14152","v":"Select"},{"$f":"Import!E14202","v":"Select"},{"$f":"Import!E14252","v":0},null,{"$f":"Import!M14102","v":"Select"},{"$f":"Import!M14152","v":"Select"},{"$f":"Import!M14202","v":"Select"},{"$f":"Import!M14252","v":0}]
[null,32,{"$f":"Import!E14053","v":0},null,{"$f":"Import!E14103","v":"Select"},{"$f":"Import!E14153","v":"Select"},{"$f":"Import!E14203","v":"Select"},{"$f":"Import!E14253","v":0},null,{"$f":"Import!M14103","v":"Select"},{"$f":"Import!M14153","v":"Select"},{"$f":"Import!M14203","v":"Select"},{"$f":"Import!M14253","v":0}]
[null,33,{"$f":"Import!E14054","v":0},null,{"$f":"Import!E14104","v":"Select"},{"$f":"Import!E14154","v":"Select"},{"$f":"Import!E14204","v":"Select"},{"$f":"Import!E14254","v":0},null,{"$f":"Import!M14104","v":"Select"},{"$f":"Import!M14154","v":"Select"},{"$f":"Import!M14204","v":"Select"},{"$f":"Import!M14254","v":0}]
[null,34,{"$f":"Import!E14055","v":0},null,{"$f":"Import!E14105","v":"Select"},{"$f":"Import!E14155","v":"Select"},{"$f":"Import!E14205","v":"Select"},{"$f":"Import!E14255","v":0},null,{"$f":"Import!M14105","v":"Select"},{"$f":"Import!M14155","v":"Select"},{"$f":"Import!M14205","v":"Select"},{"$f":"Import!M14255","v":0}]
[null,35,{"$f":"Import!E14056","v":0},null,{"$f":"Import!E14106","v":"Select"},{"$f":"Import!E14156","v":"Select"},{"$f":"Import!E14206","v":"Select"},{"$f":"Import!E14256","v":0},null,{"$f":"Import!M14106","v":"Select"},{"$f":"Import!M14156","v":"Select"},{"$f":"Import!M14206","v":"Select"},{"$f":"Import!M14256","v":0}]
[null,36,{"$f":"Import!E14057","v":0},null,{"$f":"Import!E14107","v":"Select"},{"$f":"Import!E14157","v":"Select"},{"$f":"Import!E14207","v":"Select"},{"$f":"Import!E14257","v":0},null,{"$f":"Import!M14107","v":"Select"},{"$f":"Import!M14157","v":"Select"},{"$f":"Import!M14207","v":"Select"},{"$f":"Import!M14257","v":0}]
[null,37,{"$f":"Import!E14058","v":0},null,{"$f":"Import!E14108","v":"Select"},{"$f":"Import!E14158","v":"Select"},{"$f":"Import!E14208","v":"Select"},{"$f":"Import!E14258","v":0},null,{"$f":"Import!M14108","v":"Select"},{"$f":"Import!M14158","v":"Select"},{"$f":"Import!M14208","v":"Select"},{"$f":"Import!M14258","v":0}]
[null,38,{"$f":"Import!E14059","v":0},null,{"$f":"Import!E14109","v":"Select"},{"$f":"Import!E14159","v":"Select"},{"$f":"Import!E14209","v":"Select"},{"$f":"Import!E14259","v":0},null,{"$f":"Import!M14109","v":"Select"},{"$f":"Import!M14159","v":"Select"},{"$f":"Import!M14209","v":"Select"},{"$f":"Import!M14259","v":0}]
[null,39,{"$f":"Import!E14060","v":0},null,{"$f":"Import!E14110","v":"Select"},{"$f":"Import!E14160","v":"Select"},{"$f":"Import!E14210","v":"Select"},{"$f":"Import!E14260","v":0},null,{"$f":"Import!M14110","v":"Select"},{"$f":"Import!M14160","v":"Select"},{"$f":"Import!M14210","v":"Select"},{"$f":"Import!M14260","v":0}]
[null,40,{"$f":"Import!E14061","v":0},null,{"$f":"Import!E14111","v":"Select"},{"$f":"Import!E14161","v":"Select"},{"$f":"Import!E14211","v":"Select"},{"$f":"Import!E14261","v":0},null,{"$f":"Import!M14111","v":"Select"},{"$f":"Import!M14161","v":"Select"},{"$f":"Import!M14211","v":"Select"},{"$f":"Import!M14261","v":0}]
[null,41,{"$f":"Import!E14062","v":0},null,{"$f":"Import!E14112","v":"Select"},{"$f":"Import!E14162","v":"Select"},{"$f":"Import!E14212","v":"Select"},{"$f":"Import!E14262","v":0},null,{"$f":"Import!M14112","v":"Select"},{"$f":"Import!M14162","v":"Select"},{"$f":"Import!M14212","v":"Select"},{"$f":"Import!M14262","v":0}]
[null,42,{"$f":"Import!E14063","v":0},null,{"$f":"Import!E14113","v":"Select"},{"$f":"Import!E14163","v":"Select"},{"$f":"Import!E14213","v":"Select"},{"$f":"Import!E14263","v":0},null,{"$f":"Import!M14113","v":"Select"},{"$f":"Import!M14163","v":"Select"},{"$f":"Import!M14213","v":"Select"},{"$f":"Import!M14263","v":0}]
[null,43,{"$f":"Import!E14064","v":0},null,{"$f":"Import!E14114","v":"Select"},{"$f":"Import!E14164","v":"Select"},{"$f":"Import!E14214","v":"Select"},{"$f":"Import!E14264","v":0},null,{"$f":"Import!M14114","v":"Select"},{"$f":"Import!M14164","v":"Select"},{"$f":"Import!M14214","v":"Select"},{"$f":"Import!M14264","v":0}]
[null,44,{"$f":"Import!E14065","v":0},null,{"$f":"Import!E14115","v":"Select"},{"$f":"Import!E14165","v":"Select"},{"$f":"Import!E14215","v":"Select"},{"$f":"Import!E14265","v":0},null,{"$f":"Import!M14115","v":"Select"},{"$f":"Import!M14165","v":"Select"},{"$f":"Import!M14215","v":"Select"},{"$f":"Import!M14265","v":0}]
[null,45,{"$f":"Import!E14066","v":0},null,{"$f":"Import!E14116","v":"Select"},{"$f":"Import!E14166","v":"Select"},{"$f":"Import!E14216","v":"Select"},{"$f":"Import!E14266","v":0},null,{"$f":"Import!M14116","v":"Select"},{"$f":"Import!M14166","v":"Select"},{"$f":"Import!M14216","v":"Select"},{"$f":"Import!M14266","v":0}]
[null,46,{"$f":"Import!E14067","v":0},null,{"$f":"Import!E14117","v":"Select"},{"$f":"Import!E14167","v":"Select"},{"$f":"Import!E14217","v":"Select"},{"$f":"Import!E14267","v":0},null,{"$f":"Import!M14117","v":"Select"},{"$f":"Import!M14167","v":"Select"},{"$f":"Import!M14217","v":"Select"},{"$f":"Import!M14267","v":0}]
[null,47,{"$f":"Import!E14068","v":0},null,{"$f":"Import!E14118","v":"Select"},{"$f":"Import!E14168","v":"Select"},{"$f":"Import!E14218","v":"Select"},{"$f":"Import!E14268","v":0},null,{"$f":"Import!M14118","v":"Select"},{"$f":"Import!M14168","v":"Select"},{"$f":"Import!M14218","v":"Select"},{"$f":"Import!M14268","v":0}]
[null,48,{"$f":"Import!E14069","v":0},null,{"$f":"Import!E14119","v":"Select"},{"$f":"Import!E14169","v":"Select"},{"$f":"Import!E14219","v":"Select"},{"$f":"Import!E14269","v":0},null,{"$f":"Import!M14119","v":"Select"},{"$f":"Import!M14169","v":"Select"},{"$f":"Import!M14219","v":"Select"},{"$f":"Import!M14269","v":0}]
[null,49,{"$f":"Import!E14070","v":0},null,{"$f":"Import!E14120","v":"Select"},{"$f":"Import!E14170","v":"Select"},{"$f":"Import!E14220","v":"Select"},{"$f":"Import!E14270","v":0},null,{"$f":"Import!M14120","v":"Select"},{"$f":"Import!M14170","v":"Select"},{"$f":"Import!M14220","v":"Select"},{"$f":"Import!M14270","v":0}]
[null,50,{"$f":"Import!E14071","v":0},null,{"$f":"Import!E14121","v":"Select"},{"$f":"Import!E14171","v":"Select"},{"$f":"Import!E14221","v":"Select"},{"$f":"Import!E14271","v":0},null,{"$f":"Import!M14121","v":"Select"},{"$f":"Import!M14171","v":"Select"},{"$f":"Import!M14221","v":"Select"},{"$f":"Import!M14271","v":0},null,"brrt_SecurityTypeAxis_brrt_FDICGuaranteedCorporateSecuritiesMember",null,null,null,null,null,null,null,null,null,null,null,null,null,null,null,"bma_SecurityOther2Type",null,"bma_SecurityOther2AmountPerForm1ALines2bAnd3b",null,"bma_SecurityOther2FaceValue",null,"bma_SecurityOther2FairValue",null,"bma_SecurityOther2AverageYTM",null,"bma_SecurityOther2AverageRating",null,"bma_SecurityOther2EffectiveDuration",null,"bma_SecurityOther2EffectiveConvexity"]
[null,null,"TOTAL CONCENTRATION RISK",null,null,null,null,{"$f":"SUM(H8:H57)","v":0},null,null,null,null,{"$f":"SUM(M8:M57)","v":0},null,"brrt_SecurityTypeAxis_brrt_TotalMember",null,null,null,null,null,null,null,null,null,null,null,null,null,null,null,"",null,"bma_SecurityTotalPortfolioAmountPerForm1ALines2bAnd3b",null,"bma_SecurityTotalPortfolioFaceValue",null,"bma_SecurityTotalPortfolioFairValue",null,"",null,"",null,"",null,""]
[null,null,null,null,null,null,null,null,null,null,null,null,null,null,"brrt_SecurityTypeOtherDescription",{"$f":"XBRLMap(#REF!,O59,E$80,E$81,CONFIGURATION!$B$10,\"BMA\",CONFIGURATION!$B$1,\"bscr\")","v":{"$error":"#VALUE!"}},null,null,"",null,"",null,"",null,"",null,"",null,"",null,"",null,"",null,"",null,"",null,"",null,"",null,"",null,""]
[null,null,"Asset Type",null,null,"Bond Types",null,"BSCR Rating Reference"]
[null,null,"Select",null,null,"Select",null,"Select"]
[null,null,"Cash and Cash Equivalent",null,null,"Corporate & Sovereign Bonds",null,"BSCR Rating 0",null,"Note if an insurer does not have any entities to consolidate, enter consolidated information only (This cell is editable for deletion)"]
[null,null,"BondTypes",null,null,"Residential Mortgage-Backed Securities",null,"BSCR Rating 1"]
[null,null,"Preferred Shares",null,null,"Commercial Mortgage-Backed Securities",null,"BSCR Rating 2"]
[null,null,"MortgageLoanTypes",null,null,"Bond Mutual Funds",null,"BSCR Rating 3"]
[null,null,"Infrastructure (Non-affiliate holdings, non-duration based)",null,null,null,null,"BSCR Rating 4"]
[null,null,"Listed Equity Securities in Developed Markets",null,null,"Mortgage Loan Categories",null,"BSCR Rating 5"]
[null,null,"Other Equities",null,null,"Select",null,"BSCR Rating 6"]
[null,null,"Strategic Holdings",null,null,"Insured/Guaranteed Mortgages",null,"BSCR Rating 7"]
[null,null,"Duration Based",null,null,"Other Commercial and Farm Mortgages",null,"BSCR Rating 8"]
[null,null,"Letters of Credit",null,null,"Other Residential Mortgages"]
[null,null,"Advances to Affiliates - ",null,null,"Mortgages Not In Good Standing"]
[null,null,"Policy Loans"]
[null,null,"Equity Real Estate 1"]
[null,null,"Equity Real Estate 2"]
[null,null,"Collateral Loans"]
[]
[]
[null,null,null,null,"brrt_BondsAndDebentures",null,"brrt_BondsAndDebenturesFaceValue","brrt_BondsAndDebenturesAverageRating",null,"brrt_BondsAndDebenturesFaceValue",null,"brrt_BondsAndDebenturesFairValue","brrt_BondsAndDebenturesEffectiveConvexity"]
[null,null,{"$f":"IF($C$3=\"\",\"\",TEXT(DATE(YEAR($C$3+1)-1,MONTH($C$3+1),DAY($C$3+1)),\"mm/dd/yyyy\"))","v":"01/01/2019"},null,{"$f":"IF($C$3=\"\",\"\",TEXT(DATE(YEAR($C$3+1)-1,MONTH($C$3+1),DAY($C$3+1)),\"mm/dd/yyyy\"))","v":"01/01/2019"},null,"01/01/2019","01/01/2019",null,"01/01/2019",null,"01/01/2019","01/01/2019"]
[null,null,{"$f":"IF($C$3=\"\",\"\",TEXT($C$3,\"mm/dd/yyyy\"))","v":"12/31/2019"},null,{"$f":"IF($C$3=\"\",\"\",TEXT($C$3,\"mm/dd/yyyy\"))","v":"12/31/2019"},null,"12/31/2019","12/31/2019",null,"12/31/2019",null,"12/31/2019","12/31/2019"]
[]
[null,null,null,null,{"$f":"XBRLMap(E9,E$79&\".\"&$O9,E$80,E$81,CONFIGURATION!$B$10,\"BMA\",CONFIGURATION!$B$1,\"bscr\",CONFIGURATION!$B$12)","v":"Mapped"},null,{"$f":"XBRLMap(G9,G$79&\".\"&$O9,G$80,G$81,CONFIGURATION!$B$10,\"BMA\",CONFIGURATION!$B$1,\"bscr\",CONFIGURATION!$B$12)","v":"Mapped"},{"$f":"XBRLMap(H9,H$79&\".\"&$O9,H$80,H$81,CONFIGURATION!$B$10,\"BMA\",CONFIGURATION!$B$1,\"bscr\")","v":"Mapped"},null,{"$f":"XBRLMap(J9,J$79&\".\"&$O9,J$80,J$81,CONFIGURATION!$B$10,\"BMA\",CONFIGURATION!$B$1,\"bscr\",CONFIGURATION!$B$12)","v":"Mapped"},null,{"$f":"XBRLMap(L9,L$79&\".\"&$O9,L$80,L$81,CONFIGURATION!$B$10,\"BMA\",CONFIGURATION!$B$1,\"bscr\",CONFIGURATION!$B$12)","v":"Mapped"},{"$f":"XBRLMap(M9,M$79&\".\"&$O9,M$80,M$81,CONFIGURATION!$B$10,\"BMA\",CONFIGURATION!$B$1,\"bscr\")","v":"Mapped"}]
[null,null,null,null,{"$f":"XBRLMap(E10,E$79&\".\"&$O10,E$80,E$81,CONFIGURATION!$B$10,\"BMA\",CONFIGURATION!$B$1,\"bscr\",CONFIGURATION!$B$12)","v":"Mapped"},null,{"$f":"XBRLMap(G10,G$79&\".\"&$O10,G$80,G$81,CONFIGURATION!$B$10,\"BMA\",CONFIGURATION!$B$1,\"bscr\",CONFIGURATION!$B$12)","v":"Mapped"},{"$f":"XBRLMap(H10,H$79&\".\"&$O10,H$80,H$81,CONFIGURATION!$B$10,\"BMA\",CONFIGURATION!$B$1,\"bscr\")","v":"Mapped"},null,{"$f":"XBRLMap(J10,J$79&\".\"&$O10,J$80,J$81,CONFIGURATION!$B$10,\"BMA\",CONFIGURATION!$B$1,\"bscr\",CONFIGURATION!$B$12)","v":"Mapped"},null,{"$f":"XBRLMap(L10,L$79&\".\"&$O10,L$80,L$81,CONFIGURATION!$B$10,\"BMA\",CONFIGURATION!$B$1,\"bscr\",CONFIGURATION!$B$12)","v":"Mapped"},{"$f":"XBRLMap(M10,M$79&\".\"&$O10,M$80,M$81,CONFIGURATION!$B$10,\"BMA\",CONFIGURATION!$B$1,\"bscr\")","v":"Mapped"}]
[null,null,null,null,{"$f":"XBRLMap(E11,E$79&\".\"&$O11,E$80,E$81,CONFIGURATION!$B$10,\"BMA\",CONFIGURATION!$B$1,\"bscr\",CONFIGURATION!$B$12)","v":"Mapped"},null,{"$f":"XBRLMap(G11,G$79&\".\"&$O11,G$80,G$81,CONFIGURATION!$B$10,\"BMA\",CONFIGURATION!$B$1,\"bscr\",CONFIGURATION!$B$12)","v":"Mapped"},{"$f":"XBRLMap(H11,H$79&\".\"&$O11,H$80,H$81,CONFIGURATION!$B$10,\"BMA\",CONFIGURATION!$B$1,\"bscr\")","v":"Mapped"},null,{"$f":"XBRLMap(J11,J$79&\".\"&$O11,J$80,J$81,CONFIGURATION!$B$10,\"BMA\",CONFIGURATION!$B$1,\"bscr\",CONFIGURATION!$B$12)","v":"Mapped"},null,{"$f":"XBRLMap(L11,L$79&\".\"&$O11,L$80,L$81,CONFIGURATION!$B$10,\"BMA\",CONFIGURATION!$B$1,\"bscr\",CONFIGURATION!$B$12)","v":"Mapped"},{"$f":"XBRLMap(M11,M$79&\".\"&$O11,M$80,M$81,CONFIGURATION!$B$10,\"BMA\",CONFIGURATION!$B$1,\"bscr\")","v":"Mapped"}]
[null,null,null,null,{"$f":"XBRLMap(E12,E$79&\".\"&$O12,E$80,E$81,CONFIGURATION!$B$10,\"BMA\",CONFIGURATION!$B$1,\"bscr\",CONFIGURATION!$B$12)","v":"Mapped"},null,{"$f":"XBRLMap(G12,G$79&\".\"&$O12,G$80,G$81,CONFIGURATION!$B$10,\"BMA\",CONFIGURATION!$B$1,\"bscr\",CONFIGURATION!$B$12)","v":"Mapped"},{"$f":"XBRLMap(H12,H$79&\".\"&$O12,H$80,H$81,CONFIGURATION!$B$10,\"BMA\",CONFIGURATION!$B$1,\"bscr\")","v":"Mapped"},null,{"$f":"XBRLMap(J12,J$79&\".\"&$O12,J$80,J$81,CONFIGURATION!$B$10,\"BMA\",CONFIGURATION!$B$1,\"bscr\",CONFIGURATION!$B$12)","v":"Mapped"},null,{"$f":"XBRLMap(L12,L$79&\".\"&$O12,L$80,L$81,CONFIGURATION!$B$10,\"BMA\",CONFIGURATION!$B$1,\"bscr\",CONFIGURATION!$B$12)","v":"Mapped"},{"$f":"XBRLMap(M12,M$79&\".\"&$O12,M$80,M$81,CONFIGURATION!$B$10,\"BMA\",CONFIGURATION!$B$1,\"bscr\")","v":"Mapped"}]
[null,null,null,null,{"$f":"XBRLMap(E13,E$79&\".\"&$O13,E$80,E$81,CONFIGURATION!$B$10,\"BMA\",CONFIGURATION!$B$1,\"bscr\",CONFIGURATION!$B$12)","v":"Mapped"},null,{"$f":"XBRLMap(G13,G$79&\".\"&$O13,G$80,G$81,CONFIGURATION!$B$10,\"BMA\",CONFIGURATION!$B$1,\"bscr\",CONFIGURATION!$B$12)","v":"Mapped"},{"$f":"XBRLMap(H13,H$79&\".\"&$O13,H$80,H$81,CONFIGURATION!$B$10,\"BMA\",CONFIGURATION!$B$1,\"bscr\")","v":"Mapped"},null,{"$f":"XBRLMap(J13,J$79&\".\"&$O13,J$80,J$81,CONFIGURATION!$B$10,\"BMA\",CONFIGURATION!$B$1,\"bscr\",CONFIGURATION!$B$12)","v":"Mapped"},null,{"$f":"XBRLMap(L13,L$79&\".\"&$O13,L$80,L$81,CONFIGURATION!$B$10,\"BMA\",CONFIGURATION!$B$1,\"bscr\",CONFIGURATION!$B$12)","v":"Mapped"},{"$f":"XBRLMap(M13,M$79&\".\"&$O13,M$80,M$81,CONFIGURATION!$B$10,\"BMA\",CONFIGURATION!$B$1,\"bscr\")","v":"Mapped"}]
[]
[null,null,null,null,{"$f":"XBRLMap(E15,E$79&\".\"&$O15,E$80,E$81,CONFIGURATION!$B$10,\"BMA\",CONFIGURATION!$B$1,\"bscr\",CONFIGURATION!$B$12)","v":"Mapped"},null,{"$f":"XBRLMap(G15,G$79&\".\"&$O15,G$80,G$81,CONFIGURATION!$B$10,\"BMA\",CONFIGURATION!$B$1,\"bscr\",CONFIGURATION!$B$12)","v":"Mapped"},{"$f":"XBRLMap(H15,H$79&\".\"&$O15,H$80,H$81,CONFIGURATION!$B$10,\"BMA\",CONFIGURATION!$B$1,\"bscr\")","v":"Mapped"},null,{"$f":"XBRLMap(J15,J$79&\".\"&$O15,J$80,J$81,CONFIGURATION!$B$10,\"BMA\",CONFIGURATION!$B$1,\"bscr\",CONFIGURATION!$B$12)","v":"Mapped"},null,{"$f":"XBRLMap(L15,L$79&\".\"&$O15,L$80,L$81,CONFIGURATION!$B$10,\"BMA\",CONFIGURATION!$B$1,\"bscr\",CONFIGURATION!$B$12)","v":"Mapped"},{"$f":"XBRLMap(M15,M$79&\".\"&$O15,M$80,M$81,CONFIGURATION!$B$10,\"BMA\",CONFIGURATION!$B$1,\"bscr\")","v":"Mapped"}]
[null,null,null,null,{"$f":"XBRLMap(#REF!,E$79&\".\"&#REF!,E$80,E$81,CONFIGURATION!$B$10,\"BMA\",CONFIGURATION!$B$1,\"bscr\",CONFIGURATION!$B$12)","v":{"$error":"#VALUE!"}},null,{"$f":"XBRLMap(#REF!,G$79&\".\"&#REF!,G$80,G$81,CONFIGURATION!$B$10,\"BMA\",CONFIGURATION!$B$1,\"bscr\",CONFIGURATION!$B$12)","v":{"$error":"#VALUE!"}},{"$f":"XBRLMap(#REF!,H$79&\".\"&#REF!,H$80,H$81,CONFIGURATION!$B$10,\"BMA\",CONFIGURATION!$B$1,\"bscr\")","v":{"$error":"#VALUE!"}},null,{"$f":"XBRLMap(#REF!,J$79&\".\"&#REF!,J$80,J$81,CONFIGURATION!$B$10,\"BMA\",CONFIGURATION!$B$1,\"bscr\",CONFIGURATION!$B$12)","v":{"$error":"#VALUE!"}},null,{"$f":"XBRLMap(#REF!,L$79&\".\"&#REF!,L$80,L$81,CONFIGURATION!$B$10,\"BMA\",CONFIGURATION!$B$1,\"bscr\",CONFIGURATION!$B$12)","v":{"$error":"#VALUE!"}},{"$f":"XBRLMap(#REF!,M$79&\".\"&#REF!,M$80,M$81,CONFIGURATION!$B$10,\"BMA\",CONFIGURATION!$B$1,\"bscr\")","v":{"$error":"#VALUE!"}}]
[null,null,null,null,{"$f":"XBRLMap(E57,E$79&\".\"&$O57,E$80,E$81,CONFIGURATION!$B$10,\"BMA\",CONFIGURATION!$B$1,\"bscr\",CONFIGURATION!$B$12)","v":"Mapped"},null,{"$f":"XBRLMap(G57,G$79&\".\"&$O57,G$80,G$81,CONFIGURATION!$B$10,\"BMA\",CONFIGURATION!$B$1,\"bscr\",CONFIGURATION!$B$12)","v":"Mapped"},{"$f":"XBRLMap(H57,H$79&\".\"&$O57,H$80,H$81,CONFIGURATION!$B$10,\"BMA\",CONFIGURATION!$B$1,\"bscr\")","v":"Mapped"},null,{"$f":"XBRLMap(J57,J$79&\".\"&$O57,J$80,J$81,CONFIGURATION!$B$10,\"BMA\",CONFIGURATION!$B$1,\"bscr\",CONFIGURATION!$B$12)","v":"Mapped"},null,{"$f":"XBRLMap(L57,L$79&\".\"&$O57,L$80,L$81,CONFIGURATION!$B$10,\"BMA\",CONFIGURATION!$B$1,\"bscr\",CONFIGURATION!$B$12)","v":"Mapped"},{"$f":"XBRLMap(M57,M$79&\".\"&$O57,M$80,M$81,CONFIGURATION!$B$10,\"BMA\",CONFIGURATION!$B$1,\"bscr\")","v":"Mapped"}]
[null,null,null,null,{"$f":"XBRLMap(#REF!,E$79&\".\"&#REF!,E$80,E$81,CONFIGURATION!$B$10,\"BMA\",CONFIGURATION!$B$1,\"bscr\",CONFIGURATION!$B$12)","v":{"$error":"#VALUE!"}},null,{"$f":"XBRLMap(#REF!,G$79&\".\"&#REF!,G$80,G$81,CONFIGURATION!$B$10,\"BMA\",CONFIGURATION!$B$1,\"bscr\",CONFIGURATION!$B$12)","v":{"$error":"#VALUE!"}},{"$f":"XBRLMap(#REF!,H$79&\".\"&#REF!,H$80,H$81,CONFIGURATION!$B$10,\"BMA\",CONFIGURATION!$B$1,\"bscr\")","v":{"$error":"#VALUE!"}},null,{"$f":"XBRLMap(#REF!,J$79&\".\"&#REF!,J$80,J$81,CONFIGURATION!$B$10,\"BMA\",CONFIGURATION!$B$1,\"bscr\",CONFIGURATION!$B$12)","v":{"$error":"#VALUE!"}},null,{"$f":"XBRLMap(#REF!,L$79&\".\"&#REF!,L$80,L$81,CONFIGURATION!$B$10,\"BMA\",CONFIGURATION!$B$1,\"bscr\",CONFIGURATION!$B$12)","v":{"$error":"#VALUE!"}},{"$f":"XBRLMap(#REF!,M$79&\".\"&#REF!,M$80,M$81,CONFIGURATION!$B$10,\"BMA\",CONFIGURATION!$B$1,\"bscr\")","v":{"$error":"#VALUE!"}}]
[null,null,null,null,{"$f":"XBRLMap(#REF!,E$79&\".\"&#REF!,E$80,E$81,CONFIGURATION!$B$10,\"BMA\",CONFIGURATION!$B$1,\"bscr\",CONFIGURATION!$B$12)","v":{"$error":"#VALUE!"}},null,{"$f":"XBRLMap(#REF!,G$79&\".\"&#REF!,G$80,G$81,CONFIGURATION!$B$10,\"BMA\",CONFIGURATION!$B$1,\"bscr\",CONFIGURATION!$B$12)","v":{"$error":"#VALUE!"}},{"$f":"XBRLMap(#REF!,H$79&\".\"&#REF!,H$80,H$81,CONFIGURATION!$B$10,\"BMA\",CONFIGURATION!$B$1,\"bscr\")","v":{"$error":"#VALUE!"}},null,{"$f":"XBRLMap(#REF!,J$79&\".\"&#REF!,J$80,J$81,CONFIGURATION!$B$10,\"BMA\",CONFIGURATION!$B$1,\"bscr\",CONFIGURATION!$B$12)","v":{"$error":"#VALUE!"}},null,{"$f":"XBRLMap(#REF!,L$79&\".\"&#REF!,L$80,L$81,CONFIGURATION!$B$10,\"BMA\",CONFIGURATION!$B$1,\"bscr\",CONFIGURATION!$B$12)","v":{"$error":"#VALUE!"}},{"$f":"XBRLMap(#REF!,M$79&\".\"&#REF!,M$80,M$81,CONFIGURATION!$B$10,\"BMA\",CONFIGURATION!$B$1,\"bscr\")","v":{"$error":"#VALUE!"}}]
[]
[null,null,null,null,{"$f":"XBRLMap(#REF!,E$79&\".\"&#REF!,E$80,E$81,CONFIGURATION!$B$10,\"BMA\",CONFIGURATION!$B$1,\"bscr\",CONFIGURATION!$B$12)","v":{"$error":"#VALUE!"}},null,{"$f":"XBRLMap(#REF!,G$79&\".\"&#REF!,G$80,G$81,CONFIGURATION!$B$10,\"BMA\",CONFIGURATION!$B$1,\"bscr\",CONFIGURATION!$B$12)","v":{"$error":"#VALUE!"}},{"$f":"XBRLMap(#REF!,H$79&\".\"&#REF!,H$80,H$81,CONFIGURATION!$B$10,\"BMA\",CONFIGURATION!$B$1,\"bscr\")","v":{"$error":"#VALUE!"}},null,{"$f":"XBRLMap(#REF!,J$79&\".\"&#REF!,J$80,J$81,CONFIGURATION!$B$10,\"BMA\",CONFIGURATION!$B$1,\"bscr\",CONFIGURATION!$B$12)","v":{"$error":"#VALUE!"}},null,{"$f":"XBRLMap(#REF!,L$79&\".\"&#REF!,L$80,L$81,CONFIGURATION!$B$10,\"BMA\",CONFIGURATION!$B$1,\"bscr\",CONFIGURATION!$B$12)","v":{"$error":"#VALUE!"}},{"$f":"XBRLMap(#REF!,M$79&\".\"&#REF!,M$80,M$81,CONFIGURATION!$B$10,\"BMA\",CONFIGURATION!$B$1,\"bscr\")","v":{"$error":"#VALUE!"}}]
[null,null,null,null,{"$f":"XBRLMap(#REF!,E$79&\".\"&#REF!,E$80,E$81,CONFIGURATION!$B$10,\"BMA\",CONFIGURATION!$B$1,\"bscr\",CONFIGURATION!$B$12)","v":{"$error":"#VALUE!"}},null,{"$f":"XBRLMap(#REF!,G$79&\".\"&#REF!,G$80,G$81,CONFIGURATION!$B$10,\"BMA\",CONFIGURATION!$B$1,\"bscr\",CONFIGURATION!$B$12)","v":{"$error":"#VALUE!"}},{"$f":"XBRLMap(#REF!,H$79&\".\"&#REF!,H$80,H$81,CONFIGURATION!$B$10,\"BMA\",CONFIGURATION!$B$1,\"bscr\")","v":{"$error":"#VALUE!"}},null,{"$f":"XBRLMap(#REF!,J$79&\".\"&#REF!,J$80,J$81,CONFIGURATION!$B$10,\"BMA\",CONFIGURATION!$B$1,\"bscr\",CONFIGURATION!$B$12)","v":{"$error":"#VALUE!"}},null,{"$f":"XBRLMap(#REF!,L$79&\".\"&#REF!,L$80,L$81,CONFIGURATION!$B$10,\"BMA\",CONFIGURATION!$B$1,\"bscr\",CONFIGURATION!$B$12)","v":{"$error":"#VALUE!"}},{"$f":"XBRLMap(#REF!,M$79&\".\"&#REF!,M$80,M$81,CONFIGURATION!$B$10,\"BMA\",CONFIGURATION!$B$1,\"bscr\")","v":{"$error":"#VALUE!"}}]
[null,null,null,null,{"$f":"XBRLMap(#REF!,E$79&\".\"&#REF!,E$80,E$81,CONFIGURATION!$B$10,\"BMA\",CONFIGURATION!$B$1,\"bscr\",CONFIGURATION!$B$12)","v":{"$error":"#VALUE!"}},null,{"$f":"XBRLMap(#REF!,G$79&\".\"&#REF!,G$80,G$81,CONFIGURATION!$B$10,\"BMA\",CONFIGURATION!$B$1,\"bscr\",CONFIGURATION!$B$12)","v":{"$error":"#VALUE!"}},{"$f":"XBRLMap(#REF!,H$79&\".\"&#REF!,H$80,H$81,CONFIGURATION!$B$10,\"BMA\",CONFIGURATION!$B$1,\"bscr\")","v":{"$error":"#VALUE!"}},null,{"$f":"XBRLMap(#REF!,J$79&\".\"&#REF!,J$80,J$81,CONFIGURATION!$B$10,\"BMA\",CONFIGURATION!$B$1,\"bscr\",CONFIGURATION!$B$12)","v":{"$error":"#VALUE!"}},null,{"$f":"XBRLMap(#REF!,L$79&\".\"&#REF!,L$80,L$81,CONFIGURATION!$B$10,\"BMA\",CONFIGURATION!$B$1,\"bscr\",CONFIGURATION!$B$12)","v":{"$error":"#VALUE!"}},{"$f":"XBRLMap(#REF!,M$79&\".\"&#REF!,M$80,M$81,CONFIGURATION!$B$10,\"BMA\",CONFIGURATION!$B$1,\"bscr\")","v":{"$error":"#VALUE!"}}]
[null,null,null,null,{"$f":"XBRLMap(#REF!,E$79&\".\"&#REF!,E$80,E$81,CONFIGURATION!$B$10,\"BMA\",CONFIGURATION!$B$1,\"bscr\",CONFIGURATION!$B$12)","v":{"$error":"#VALUE!"}},null,{"$f":"XBRLMap(#REF!,G$79&\".\"&#REF!,G$80,G$81,CONFIGURATION!$B$10,\"BMA\",CONFIGURATION!$B$1,\"bscr\",CONFIGURATION!$B$12)","v":{"$error":"#VALUE!"}},{"$f":"XBRLMap(#REF!,H$79&\".\"&#REF!,H$80,H$81,CONFIGURATION!$B$10,\"BMA\",CONFIGURATION!$B$1,\"bscr\")","v":{"$error":"#VALUE!"}},null,{"$f":"XBRLMap(#REF!,J$79&\".\"&#REF!,J$80,J$81,CONFIGURATION!$B$10,\"BMA\",CONFIGURATION!$B$1,\"bscr\",CONFIGURATION!$B$12)","v":{"$error":"#VALUE!"}},null,{"$f":"XBRLMap(#REF!,L$79&\".\"&#REF!,L$80,L$81,CONFIGURATION!$B$10,\"BMA\",CONFIGURATION!$B$1,\"bscr\",CONFIGURATION!$B$12)","v":{"$error":"#VALUE!"}},{"$f":"XBRLMap(#REF!,M$79&\".\"&#REF!,M$80,M$81,CONFIGURATION!$B$10,\"BMA\",CONFIGURATION!$B$1,\"bscr\")","v":{"$error":"#VALUE!"}}]
[null,null,null,null,{"$f":"XBRLMap(#REF!,E$79&\".\"&#REF!,E$80,E$81,CONFIGURATION!$B$10,\"BMA\",CONFIGURATION!$B$1,\"bscr\",CONFIGURATION!$B$12)","v":{"$error":"#VALUE!"}},null,{"$f":"XBRLMap(#REF!,G$79&\".\"&#REF!,G$80,G$81,CONFIGURATION!$B$10,\"BMA\",CONFIGURATION!$B$1,\"bscr\",CONFIGURATION!$B$12)","v":{"$error":"#VALUE!"}},{"$f":"XBRLMap(#REF!,H$79&\".\"&#REF!,H$80,H$81,CONFIGURATION!$B$10,\"BMA\",CONFIGURATION!$B$1,\"bscr\")","v":{"$error":"#VALUE!"}},null,{"$f":"XBRLMap(#REF!,J$79&\".\"&#REF!,J$80,J$81,CONFIGURATION!$B$10,\"BMA\",CONFIGURATION!$B$1,\"bscr\",CONFIGURATION!$B$12)","v":{"$error":"#VALUE!"}},null,{"$f":"XBRLMap(#REF!,L$79&\".\"&#REF!,L$80,L$81,CONFIGURATION!$B$10,\"BMA\",CONFIGURATION!$B$1,\"bscr\",CONFIGURATION!$B$12)","v":{"$error":"#VALUE!"}},{"$f":"XBRLMap(#REF!,M$79&\".\"&#REF!,M$80,M$81,CONFIGURATION!$B$10,\"BMA\",CONFIGURATION!$B$1,\"bscr\")","v":{"$error":"#VALUE!"}}]
[null,null,null,null,{"$f":"XBRLMap(#REF!,E$79&\".\"&#REF!,E$80,E$81,CONFIGURATION!$B$10,\"BMA\",CONFIGURATION!$B$1,\"bscr\",CONFIGURATION!$B$12)","v":{"$error":"#VALUE!"}},null,{"$f":"XBRLMap(#REF!,G$79&\".\"&#REF!,G$80,G$81,CONFIGURATION!$B$10,\"BMA\",CONFIGURATION!$B$1,\"bscr\",CONFIGURATION!$B$12)","v":{"$error":"#VALUE!"}},{"$f":"XBRLMap(#REF!,H$79&\".\"&#REF!,H$80,H$81,CONFIGURATION!$B$10,\"BMA\",CONFIGURATION!$B$1,\"bscr\")","v":{"$error":"#VALUE!"}},null,{"$f":"XBRLMap(#REF!,J$79&\".\"&#REF!,J$80,J$81,CONFIGURATION!$B$10,\"BMA\",CONFIGURATION!$B$1,\"bscr\",CONFIGURATION!$B$12)","v":{"$error":"#VALUE!"}},null,{"$f":"XBRLMap(#REF!,L$79&\".\"&#REF!,L$80,L$81,CONFIGURATION!$B$10,\"BMA\",CONFIGURATION!$B$1,\"bscr\",CONFIGURATION!$B$12)","v":{"$error":"#VALUE!"}},{"$f":"XBRLMap(#REF!,M$79&\".\"&#REF!,M$80,M$81,CONFIGURATION!$B$10,\"BMA\",CONFIGURATION!$B$1,\"bscr\")","v":{"$error":"#VALUE!"}}]
[null,null,null,null,{"$f":"XBRLMap(#REF!,E$79&\".\"&#REF!,E$80,E$81,CONFIGURATION!$B$10,\"BMA\",CONFIGURATION!$B$1,\"bscr\",CONFIGURATION!$B$12)","v":{"$error":"#VALUE!"}},null,{"$f":"XBRLMap(#REF!,G$79&\".\"&#REF!,G$80,G$81,CONFIGURATION!$B$10,\"BMA\",CONFIGURATION!$B$1,\"bscr\",CONFIGURATION!$B$12)","v":{"$error":"#VALUE!"}},{"$f":"XBRLMap(#REF!,H$79&\".\"&#REF!,H$80,H$81,CONFIGURATION!$B$10,\"BMA\",CONFIGURATION!$B$1,\"bscr\")","v":{"$error":"#VALUE!"}},null,{"$f":"XBRLMap(#REF!,J$79&\".\"&#REF!,J$80,J$81,CONFIGURATION!$B$10,\"BMA\",CONFIGURATION!$B$1,\"bscr\",CONFIGURATION!$B$12)","v":{"$error":"#VALUE!"}},null,{"$f":"XBRLMap(#REF!,L$79&\".\"&#REF!,L$80,L$81,CONFIGURATION!$B$10,\"BMA\",CONFIGURATION!$B$1,\"bscr\",CONFIGURATION!$B$12)","v":{"$error":"#VALUE!"}},{"$f":"XBRLMap(#REF!,M$79&\".\"&#REF!,M$80,M$81,CONFIGURATION!$B$10,\"BMA\",CONFIGURATION!$B$1,\"bscr\")","v":{"$error":"#VALUE!"}}]
[null,null,null,null,{"$f":"XBRLMap(E58,E$79&\".\"&$O58,E$80,E$81,CONFIGURATION!$B$10,\"BMA\",CONFIGURATION!$B$1,\"bscr\",CONFIGURATION!$B$12)","v":"Mapped"},null,null,null,null,null,null,{"$f":"XBRLMap(L58,L$79&\".\"&$O58,L$80,L$81,CONFIGURATION!$B$10,\"BMA\",CONFIGURATION!$B$1,\"bscr\",CONFIGURATION!$B$12)","v":"Mapped"}]
[null,null,null,null,null,null,"A or better",null,null,"A or better"]
[null,null,null,null,null,null,"BBB or equivalent",null,null,"BBB or equivalent"]
[null,null,null,null,null,null,"B or better",null,null,"B or better"]
[null,null,{"$f":"XBRLMap(#REF!,#REF!,C$80,C$81,CONFIGURATION!$B$10,\"BMA\",CONFIGURATION!$B$1,\"bscr\")","v":{"$error":"#VALUE!"}},null,null,null,"unrated/other",null,null,"unrated/other"]
[]
[null,null,{"$f":"XBRLMap(#REF!,#REF!,C$80,C$81,CONFIGURATION!$B$10,\"BMA\",CONFIGURATION!$B$1,\"bscr\")","v":{"$error":"#VALUE!"}}]

{"sheet":"Schedule XXIII","index":93,"n_rows":100,"n_cols":22,"rows_kept":100,"cut":false,"hidden":false,"merged":[[2,4,3,4],[4,4,4,21],[5,12,5,21],[6,4,6,5],[5,4,5,10],[6,12,6,13],[6,15,6,16],[31,4,31,5],[31,12,31,13],[31,15,31,16],[29,4,29,21],[30,12,30,21],[30,4,30,10]]}
[null,null,"SCHEDULE OF INTEREST RATE SENSITIVE ASSETS AND LIABILITIES",null,null,null,null,null,null,null,null,null,null,null,null,null,null,null,null,null,null,{"$f":"HYPERLINK(\"#'Index'!A1\",\"Return to Index\")","v":"Return to Index"}]
[null,null,{"$f":"'Company Information'!C7","v":"Enter Company Name"}]
[null,null,{"$f":"'Form 1EBS'!C3","v":"2019-12-31"},null,null,null,null,null,null,null,null,null,null,null,null,null,null,null,null,null,null,"SCHEDULE XXIII"]
[null,null,{"$f":"IF(CONFIGURATION!$B$12>1,\" ['\"&MID(CONFIGURATION!$B$12,2,LEN(CONFIGURATION!$B$12))&\"s]\",\"\")&'Form 1EBS'!C4","v":" ['000s]United States Dollars"}]
[null,null,null,null,"INTEREST RATE DOWN SHOCK"]
[null,null,null,null,"Exposures other than derivatives",null,null,null,null,null,null,null,"Derivative exposures"]
[null,null,"Currency",null,"Assets",null,null,"Liabilities","Liabilities without Management Actions",null,"Liabilities with Management Actions",null,"Assets - Qualifying as held for risk-mitigation purposes",null,null,"Assets - Not Qualifying as held for risk-mitigation purposes",null,null,"Liabilities","Liabilities without Management Actions",null,"Liabilities with Management Actions"]
[null,null,null,null,"Before Shock","After Shock",null,"Before Shock","After Shock",null,"After Shock",null,"Before Shock","After Shock",null,"Before Shock","After Shock",null,"Before Shock","After Shock",null,"After Shock"]
[null,null,null,null,"(A)","(B)",null,"(C)","(D)",null,"(E)",null,"(F)","(G)",null,"(H)","(I)",null,"(J)","(K)",null,"(L)"]
[null,1,"United States Dollars",null,{"$f":"Import!M14284","v":0},{"$f":"Import!M14303","v":0},null,{"$f":"Import!M14322","v":0},{"$f":"Import!M14341","v":0},null,{"$f":"Import!M14360","v":0},null,{"$f":"Import!M14379","v":0},{"$f":"Import!M14398","v":0},null,{"$f":"Import!M14417","v":0},{"$f":"Import!M14436","v":0},null,{"$f":"Import!M14455","v":0},{"$f":"Import!M14474","v":0},null,{"$f":"Import!M14493","v":0}]
[null,{"$f":"B10+1","v":2},"Euro",null,{"$f":"Import!M14285","v":0},{"$f":"Import!M14304","v":0},null,{"$f":"Import!M14323","v":0},{"$f":"Import!M14342","v":0},null,{"$f":"Import!M14361","v":0},null,{"$f":"Import!M14380","v":0},{"$f":"Import!M14399","v":0},null,{"$f":"Import!M14418","v":0},{"$f":"Import!M14437","v":0},null,{"$f":"Import!M14456","v":0},{"$f":"Import!M14475","v":0},null,{"$f":"Import!M14494","v":0}]
[null,{"$f":"B11+1","v":3},"United Kingdom Pounds",null,{"$f":"Import!M14286","v":0},{"$f":"Import!M14305","v":0},null,{"$f":"Import!M14324","v":0},{"$f":"Import!M14343","v":0},null,{"$f":"Import!M14362","v":0},null,{"$f":"Import!M14381","v":0},{"$f":"Import!M14400","v":0},null,{"$f":"Import!M14419","v":0},{"$f":"Import!M14438","v":0},null,{"$f":"Import!M14457","v":0},{"$f":"Import!M14476","v":0},null,{"$f":"Import!M14495","v":0}]
[null,4,"Japan Yen",null,{"$f":"Import!M14287","v":0},{"$f":"Import!M14306","v":0},null,{"$f":"Import!M14325","v":0},{"$f":"Import!M14344","v":0},null,{"$f":"Import!M14363","v":0},null,{"$f":"Import!M14382","v":0},{"$f":"Import!M14401","v":0},null,{"$f":"Import!M14420","v":0},{"$f":"Import!M14439","v":0},null,{"$f":"Import!M14458","v":0},{"$f":"Import!M14477","v":0},null,{"$f":"Import!M14496","v":0}]
[null,5,"Canada Dollars",null,{"$f":"Import!M14288","v":0},{"$f":"Import!M14307","v":0},null,{"$f":"Import!M14326","v":0},{"$f":"Import!M14345","v":0},null,{"$f":"Import!M14364","v":0},null,{"$f":"Import!M14383","v":0},{"$f":"Import!M14402","v":0},null,{"$f":"Import!M14421","v":0},{"$f":"Import!M14440","v":0},null,{"$f":"Import!M14459","v":0},{"$f":"Import!M14478","v":0},null,{"$f":"Import!M14497","v":0}]
[null,6,"Swiss Francs",null,{"$f":"Import!M14289","v":0},{"$f":"Import!M14308","v":0},null,{"$f":"Import!M14327","v":0},{"$f":"Import!M14346","v":0},null,{"$f":"Import!M14365","v":0},null,{"$f":"Import!M14384","v":0},{"$f":"Import!M14403","v":0},null,{"$f":"Import!M14422","v":0},{"$f":"Import!M14441","v":0},null,{"$f":"Import!M14460","v":0},{"$f":"Import!M14479","v":0},null,{"$f":"Import!M14498","v":0}]
[null,7,"Australia Dollar",null,{"$f":"Import!M14290","v":0},{"$f":"Import!M14309","v":0},null,{"$f":"Import!M14328","v":0},{"$f":"Import!M14347","v":0},null,{"$f":"Import!M14366","v":0},null,{"$f":"Import!M14385","v":0},{"$f":"Import!M14404","v":0},null,{"$f":"Import!M14423","v":0},{"$f":"Import!M14442","v":0},null,{"$f":"Import!M14461","v":0},{"$f":"Import!M14480","v":0},null,{"$f":"Import!M14499","v":0}]
[null,8,"New Zealand Dollar",null,{"$f":"Import!M14291","v":0},{"$f":"Import!M14310","v":0},null,{"$f":"Import!M14329","v":0},{"$f":"Import!M14348","v":0},null,{"$f":"Import!M14367","v":0},null,{"$f":"Import!M14386","v":0},{"$f":"Import!M14405","v":0},null,{"$f":"Import!M14424","v":0},{"$f":"Import!M14443","v":0},null,{"$f":"Import!M14462","v":0},{"$f":"Import!M14481","v":0},null,{"$f":"Import!M14500","v":0}]
[null,9,{"$f":"Import!M14274","v":"Other currency 1"},null,{"$f":"Import!M14292","v":0},{"$f":"Import!M14311","v":0},null,{"$f":"Import!M14330","v":0},{"$f":"Import!M14349","v":0},null,{"$f":"Import!M14368","v":0},null,{"$f":"Import!M14387","v":0},{"$f":"Import!M14406","v":0},null,{"$f":"Import!M14425","v":0},{"$f":"Import!M14444","v":0},null,{"$f":"Import!M14463","v":0},{"$f":"Import!M14482","v":0},null,{"$f":"Import!M14501","v":0}]
[null,10,{"$f":"Import!M14275","v":"Other currency 2"},null,{"$f":"Import!M14293","v":0},{"$f":"Import!M14312","v":0},null,{"$f":"Import!M14331","v":0},{"$f":"Import!M14350","v":0},null,{"$f":"Import!M14369","v":0},null,{"$f":"Import!M14388","v":0},{"$f":"Import!M14407","v":0},null,{"$f":"Import!M14426","v":0},{"$f":"Import!M14445","v":0},null,{"$f":"Import!M14464","v":0},{"$f":"Import!M14483","v":0},null,{"$f":"Import!M14502","v":0}]
[null,11,{"$f":"Import!M14276","v":"Other currency 3"},null,{"$f":"Import!M14294","v":0},{"$f":"Import!M14313","v":0},null,{"$f":"Import!M14332","v":0},{"$f":"Import!M14351","v":0},null,{"$f":"Import!M14370","v":0},null,{"$f":"Import!M14389","v":0},{"$f":"Import!M14408","v":0},null,{"$f":"Import!M14427","v":0},{"$f":"Import!M14446","v":0},null,{"$f":"Import!M14465","v":0},{"$f":"Import!M14484","v":0},null,{"$f":"Import!M14503","v":0}]
[null,12,{"$f":"Import!M14277","v":"Other currency 4"},null,{"$f":"Import!M14295","v":0},{"$f":"Import!M14314","v":0},null,{"$f":"Import!M14333","v":0},{"$f":"Import!M14352","v":0},null,{"$f":"Import!M14371","v":0},null,{"$f":"Import!M14390","v":0},{"$f":"Import!M14409","v":0},null,{"$f":"Import!M14428","v":0},{"$f":"Import!M14447","v":0},null,{"$f":"Import!M14466","v":0},{"$f":"Import!M14485","v":0},null,{"$f":"Import!M14504","v":0}]
[null,13,{"$f":"Import!M14278","v":"Other currency 5"},null,{"$f":"Import!M14296","v":0},{"$f":"Import!M14315","v":0},null,{"$f":"Import!M14334","v":0},{"$f":"Import!M14353","v":0},null,{"$f":"Import!M14372","v":0},null,{"$f":"Import!M14391","v":0},{"$f":"Import!M14410","v":0},null,{"$f":"Import!M14429","v":0},{"$f":"Import!M14448","v":0},null,{"$f":"Import!M14467","v":0},{"$f":"Import!M14486","v":0},null,{"$f":"Import!M14505","v":0}]
[null,14,{"$f":"Import!M14279","v":"Other currency 6"},null,{"$f":"Import!M14297","v":0},{"$f":"Import!M14316","v":0},null,{"$f":"Import!M14335","v":0},{"$f":"Import!M14354","v":0},null,{"$f":"Import!M14373","v":0},null,{"$f":"Import!M14392","v":0},{"$f":"Import!M14411","v":0},null,{"$f":"Import!M14430","v":0},{"$f":"Import!M14449","v":0},null,{"$f":"Import!M14468","v":0},{"$f":"Import!M14487","v":0},null,{"$f":"Import!M14506","v":0}]
[null,15,{"$f":"Import!M14280","v":"Other currency 7"},null,{"$f":"Import!M14298","v":0},{"$f":"Import!M14317","v":0},null,{"$f":"Import!M14336","v":0},{"$f":"Import!M14355","v":0},null,{"$f":"Import!M14374","v":0},null,{"$f":"Import!M14393","v":0},{"$f":"Import!M14412","v":0},null,{"$f":"Import!M14431","v":0},{"$f":"Import!M14450","v":0},null,{"$f":"Import!M14469","v":0},{"$f":"Import!M14488","v":0},null,{"$f":"Import!M14507","v":0}]
[null,16,{"$f":"Import!M14281","v":"Other currency 8"},null,{"$f":"Import!M14299","v":0},{"$f":"Import!M14318","v":0},null,{"$f":"Import!M14337","v":0},{"$f":"Import!M14356","v":0},null,{"$f":"Import!M14375","v":0},null,{"$f":"Import!M14394","v":0},{"$f":"Import!M14413","v":0},null,{"$f":"Import!M14432","v":0},{"$f":"Import!M14451","v":0},null,{"$f":"Import!M14470","v":0},{"$f":"Import!M14489","v":0},null,{"$f":"Import!M14508","v":0}]
[null,17,{"$f":"Import!M14282","v":"Other currency 9"},null,{"$f":"Import!M14300","v":0},{"$f":"Import!M14319","v":0},null,{"$f":"Import!M14338","v":0},{"$f":"Import!M14357","v":0},null,{"$f":"Import!M14376","v":0},null,{"$f":"Import!M14395","v":0},{"$f":"Import!M14414","v":0},null,{"$f":"Import!M14433","v":0},{"$f":"Import!M14452","v":0},null,{"$f":"Import!M14471","v":0},{"$f":"Import!M14490","v":0},null,{"$f":"Import!M14509","v":0}]
[null,18,{"$f":"Import!M14283","v":"Other currency 10"},null,{"$f":"Import!M14301","v":0},{"$f":"Import!M14320","v":0},null,{"$f":"Import!M14339","v":0},{"$f":"Import!M14358","v":0},null,{"$f":"Import!M14377","v":0},null,{"$f":"Import!M14396","v":0},{"$f":"Import!M14415","v":0},null,{"$f":"Import!M14434","v":0},{"$f":"Import!M14453","v":0},null,{"$f":"Import!M14472","v":0},{"$f":"Import!M14491","v":0},null,{"$f":"Import!M14510","v":0}]
[null,19,"IR Down Shock Total",null,{"$f":"SUM(E10:E27)","v":0},{"$f":"SUM(F10:F27)","v":0},null,{"$f":"SUM(H10:H27)","v":0},{"$f":"SUM(I10:I27)","v":0},null,{"$f":"SUM(K10:K27)","v":0},null,{"$f":"SUM(M10:M27)","v":0},{"$f":"SUM(N10:N27)","v":0},null,{"$f":"SUM(P10:P27)","v":0},{"$f":"SUM(Q10:Q27)","v":0},null,{"$f":"SUM(S10:S27)","v":0},{"$f":"SUM(T10:T27)","v":0},null,{"$f":"SUM(V10:V27)","v":0}]
[]
[null,null,null,null,"INTEREST RATE UP SHOCK"]
[null,null,null,null,"Exposures other than derivatives",null,null,null,null,null,null,null,"Derivative exposures"]
[null,null,"Currency",null,"Assets",null,null,"Liabilities","Liabilities without Management Actions",null,"Liabilities with Management Actions",null,"Assets - Qualifying as held for risk-mitigation purposes",null,null,"Assets - Not Qualifying as held for risk-mitigation purposes",null,null,"Liabilities","Liabilities without Management Actions",null,"Liabilities with Management Actions"]
[null,null,null,null,"Before Shock","After Shock",null,"Before Shock","After Shock",null,"After Shock",null,"Before Shock","After Shock",null,"Before Shock","After Shock",null,"Before Shock","After Shock",null,"After Shock"]
[null,null,null,null,"(A)","(B)",null,"(C)","(D)",null,"(E)",null,"(F)","(G)",null,"(H)","(I)",null,"(J)","(K)",null,"(L)"]
[null,{"$f":"B28+1","v":20},"United States Dollars",null,{"$f":"Import!M14522","v":0},{"$f":"Import!M14541","v":0},null,{"$f":"Import!M14560","v":0},{"$f":"Import!M14579","v":0},null,{"$f":"Import!M14598","v":0},null,{"$f":"Import!M14617","v":0},{"$f":"Import!M14636","v":0},null,{"$f":"Import!M14655","v":0},{"$f":"Import!M14674","v":0},null,{"$f":"Import!M14693","v":0},{"$f":"Import!M14712","v":0},null,{"$f":"Import!M14731","v":0}]
[null,{"$f":"B35+1","v":21},"Euro",null,{"$f":"Import!M14523","v":0},{"$f":"Import!M14542","v":0},null,{"$f":"Import!M14561","v":0},{"$f":"Import!M14580","v":0},null,{"$f":"Import!M14599","v":0},null,{"$f":"Import!M14618","v":0},{"$f":"Import!M14637","v":0},null,{"$f":"Import!M14656","v":0},{"$f":"Import!M14675","v":0},null,{"$f":"Import!M14694","v":0},{"$f":"Import!M14713","v":0},null,{"$f":"Import!M14732","v":0}]
[null,{"$f":"B36+1","v":22},"United Kingdom Pounds",null,{"$f":"Import!M14524","v":0},{"$f":"Import!M14543","v":0},null,{"$f":"Import!M14562","v":0},{"$f":"Import!M14581","v":0},null,{"$f":"Import!M14600","v":0},null,{"$f":"Import!M14619","v":0},{"$f":"Import!M14638","v":0},null,{"$f":"Import!M14657","v":0},{"$f":"Import!M14676","v":0},null,{"$f":"Import!M14695","v":0},{"$f":"Import!M14714","v":0},null,{"$f":"Import!M14733","v":0}]
[null,23,"Japan Yen",null,{"$f":"Import!M14525","v":0},{"$f":"Import!M14544","v":0},null,{"$f":"Import!M14563","v":0},{"$f":"Import!M14582","v":0},null,{"$f":"Import!M14601","v":0},null,{"$f":"Import!M14620","v":0},{"$f":"Import!M14639","v":0},null,{"$f":"Import!M14658","v":0},{"$f":"Import!M14677","v":0},null,{"$f":"Import!M14696","v":0},{"$f":"Import!M14715","v":0},null,{"$f":"Import!M14734","v":0}]
[null,24,"Canada Dollars",null,{"$f":"Import!M14526","v":0},{"$f":"Import!M14545","v":0},null,{"$f":"Import!M14564","v":0},{"$f":"Import!M14583","v":0},null,{"$f":"Import!M14602","v":0},null,{"$f":"Import!M14621","v":0},{"$f":"Import!M14640","v":0},null,{"$f":"Import!M14659","v":0},{"$f":"Import!M14678","v":0},null,{"$f":"Import!M14697","v":0},{"$f":"Import!M14716","v":0},null,{"$f":"Import!M14735","v":0}]
[null,25,"Swiss Francs",null,{"$f":"Import!M14527","v":0},{"$f":"Import!M14546","v":0},null,{"$f":"Import!M14565","v":0},{"$f":"Import!M14584","v":0},null,{"$f":"Import!M14603","v":0},null,{"$f":"Import!M14622","v":0},{"$f":"Import!M14641","v":0},null,{"$f":"Import!M14660","v":0},{"$f":"Import!M14679","v":0},null,{"$f":"Import!M14698","v":0},{"$f":"Import!M14717","v":0},null,{"$f":"Import!M14736","v":0}]
[null,26,"Australia Dollar",null,{"$f":"Import!M14528","v":0},{"$f":"Import!M14547","v":0},null,{"$f":"Import!M14566","v":0},{"$f":"Import!M14585","v":0},null,{"$f":"Import!M14604","v":0},null,{"$f":"Import!M14623","v":0},{"$f":"Import!M14642","v":0},null,{"$f":"Import!M14661","v":0},{"$f":"Import!M14680","v":0},null,{"$f":"Import!M14699","v":0},{"$f":"Import!M14718","v":0},null,{"$f":"Import!M14737","v":0}]
[null,27,"New Zealand Dollar",null,{"$f":"Import!M14529","v":0},{"$f":"Import!M14548","v":0},null,{"$f":"Import!M14567","v":0},{"$f":"Import!M14586","v":0},null,{"$f":"Import!M14605","v":0},null,{"$f":"Import!M14624","v":0},{"$f":"Import!M14643","v":0},null,{"$f":"Import!M14662","v":0},{"$f":"Import!M14681","v":0},null,{"$f":"Import!M14700","v":0},{"$f":"Import!M14719","v":0},null,{"$f":"Import!M14738","v":0}]
[null,28,{"$f":"Import!M14512","v":"Other currency 1"},null,{"$f":"Import!M14530","v":0},{"$f":"Import!M14549","v":0},null,{"$f":"Import!M14568","v":0},{"$f":"Import!M14587","v":0},null,{"$f":"Import!M14606","v":0},null,{"$f":"Import!M14625","v":0},{"$f":"Import!M14644","v":0},null,{"$f":"Import!M14663","v":0},{"$f":"Import!M14682","v":0},null,{"$f":"Import!M14701","v":0},{"$f":"Import!M14720","v":0},null,{"$f":"Import!M14739","v":0}]
[null,29,{"$f":"Import!M14513","v":"Other currency 2"},null,{"$f":"Import!M14531","v":0},{"$f":"Import!M14550","v":0},null,{"$f":"Import!M14569","v":0},{"$f":"Import!M14588","v":0},null,{"$f":"Import!M14607","v":0},null,{"$f":"Import!M14626","v":0},{"$f":"Import!M14645","v":0},null,{"$f":"Import!M14664","v":0},{"$f":"Import!M14683","v":0},null,{"$f":"Import!M14702","v":0},{"$f":"Import!M14721","v":0},null,{"$f":"Import!M14740","v":0}]
[null,30,{"$f":"Import!M14514","v":"Other currency 3"},null,{"$f":"Import!M14532","v":0},{"$f":"Import!M14551","v":0},null,{"$f":"Import!M14570","v":0},{"$f":"Import!M14589","v":0},null,{"$f":"Import!M14608","v":0},null,{"$f":"Import!M14627","v":0},{"$f":"Import!M14646","v":0},null,{"$f":"Import!M14665","v":0},{"$f":"Import!M14684","v":0},null,{"$f":"Import!M14703","v":0},{"$f":"Import!M14722","v":0},null,{"$f":"Import!M14741","v":0}]
[null,31,{"$f":"Import!M14515","v":"Other currency 4"},null,{"$f":"Import!M14533","v":0},{"$f":"Import!M14552","v":0},null,{"$f":"Import!M14571","v":0},{"$f":"Import!M14590","v":0},null,{"$f":"Import!M14609","v":0},null,{"$f":"Import!M14628","v":0},{"$f":"Import!M14647","v":0},null,{"$f":"Import!M14666","v":0},{"$f":"Import!M14685","v":0},null,{"$f":"Import!M14704","v":0},{"$f":"Import!M14723","v":0},null,{"$f":"Import!M14742","v":0}]
[null,32,{"$f":"Import!M14516","v":"Other currency 5"},null,{"$f":"Import!M14534","v":0},{"$f":"Import!M14553","v":0},null,{"$f":"Import!M14572","v":0},{"$f":"Import!M14591","v":0},null,{"$f":"Import!M14610","v":0},null,{"$f":"Import!M14629","v":0},{"$f":"Import!M14648","v":0},null,{"$f":"Import!M14667","v":0},{"$f":"Import!M14686","v":0},null,{"$f":"Import!M14705","v":0},{"$f":"Import!M14724","v":0},null,{"$f":"Import!M14743","v":0}]
[null,33,{"$f":"Import!M14517","v":"Other currency 6"},null,{"$f":"Import!M14535","v":0},{"$f":"Import!M14554","v":0},null,{"$f":"Import!M14573","v":0},{"$f":"Import!M14592","v":0},null,{"$f":"Import!M14611","v":0},null,{"$f":"Import!M14630","v":0},{"$f":"Import!M14649","v":0},null,{"$f":"Import!M14668","v":0},{"$f":"Import!M14687","v":0},null,{"$f":"Import!M14706","v":0},{"$f":"Import!M14725","v":0},null,{"$f":"Import!M14744","v":0}]
[null,34,{"$f":"Import!M14518","v":"Other currency 7"},null,{"$f":"Import!M14536","v":0},{"$f":"Import!M14555","v":0},null,{"$f":"Import!M14574","v":0},{"$f":"Import!M14593","v":0},null,{"$f":"Import!M14612","v":0},null,{"$f":"Import!M14631","v":0},{"$f":"Import!M14650","v":0},null,{"$f":"Import!M14669","v":0},{"$f":"Import!M14688","v":0},null,{"$f":"Import!M14707","v":0},{"$f":"Import!M14726","v":0},null,{"$f":"Import!M14745","v":0}]
[null,35,{"$f":"Import!M14519","v":"Other currency 8"},null,{"$f":"Import!M14537","v":0},{"$f":"Import!M14556","v":0},null,{"$f":"Import!M14575","v":0},{"$f":"Import!M14594","v":0},null,{"$f":"Import!M14613","v":0},null,{"$f":"Import!M14632","v":0},{"$f":"Import!M14651","v":0},null,{"$f":"Import!M14670","v":0},{"$f":"Import!M14689","v":0},null,{"$f":"Import!M14708","v":0},{"$f":"Import!M14727","v":0},null,{"$f":"Import!M14746","v":0}]
[null,36,{"$f":"Import!M14520","v":"Other currency 9"},null,{"$f":"Import!M14538","v":0},{"$f":"Import!M14557","v":0},null,{"$f":"Import!M14576","v":0},{"$f":"Import!M14595","v":0},null,{"$f":"Import!M14614","v":0},null,{"$f":"Import!M14633","v":0},{"$f":"Import!M14652","v":0},null,{"$f":"Import!M14671","v":0},{"$f":"Import!M14690","v":0},null,{"$f":"Import!M14709","v":0},{"$f":"Import!M14728","v":0},null,{"$f":"Import!M14747","v":0}]
[null,37,{"$f":"Import!M14521","v":"Other currency 10"},null,{"$f":"Import!M14539","v":0},{"$f":"Import!M14558","v":0},null,{"$f":"Import!M14577","v":0},{"$f":"Import!M14596","v":0},null,{"$f":"Import!M14615","v":0},null,{"$f":"Import!M14634","v":0},{"$f":"Import!M14653","v":0},null,{"$f":"Import!M14672","v":0},{"$f":"Import!M14691","v":0},null,{"$f":"Import!M14710","v":0},{"$f":"Import!M14729","v":0},null,{"$f":"Import!M14748","v":0}]
[null,38,"IR UP Shock Total",null,{"$f":"SUM(E35:E52)","v":0},{"$f":"SUM(F35:F52)","v":0},null,{"$f":"SUM(H35:H52)","v":0},{"$f":"SUM(I35:I52)","v":0},null,{"$f":"SUM(K35:K52)","v":0},null,{"$f":"SUM(M35:M52)","v":0},{"$f":"SUM(N35:N52)","v":0},null,{"$f":"SUM(P35:P52)","v":0},{"$f":"SUM(Q35:Q52)","v":0},null,{"$f":"SUM(S35:S52)","v":0},{"$f":"SUM(T35:T52)","v":0},null,{"$f":"SUM(V35:V52)","v":0}]
[]
[null,null,"Interest Rate Check",null,{"$f":"IF(ROUND(E28-E53,0)=0,\"Yes\",\"No\")","v":"Yes"},null,null,{"$f":"IF(ROUND(H28-H53,0)=0,\"Yes\",\"No\")","v":"Yes"},null,null,null,null,{"$f":"IF(ROUND(M28-M53,0)=0,\"Yes\",\"No\")","v":"Yes"},null,null,{"$f":"IF(ROUND(P28-P53,0)=0,\"Yes\",\"No\")","v":"Yes"},null,null,{"$f":"IF(ROUND(S28-S53,0)=0,\"Yes\",\"No\")","v":"Yes"}]
[null,null,"Difference",null,{"$f":"ROUND(E28-E53,0)","v":0},null,null,{"$f":"ROUND(H28-H53,0)","v":0},null,null,null,null,{"$f":"ROUND(M28-M53,0)","v":0},null,null,{"$f":"ROUND(P28-P53,0)","v":0},null,null,{"$f":"ROUND(S28-S53,0)","v":0}]
[]
[]
[]
[]
[]
[]
[]
[]
[]
[]
[]
[]
[]
[null,null,null,null,null,null,null,null,null,null,null,null,null,null,null,null,null,null,null,null,null,"brrt_BondsAndDebenturesFaceValue"]
[null,null,null,null,"brrt_BondsAndDebentures",null,null,"brrt_BondsAndDebenturesFaceValue",null,null,null,null,null,null,null,"brrt_BondsAndDebenturesFaceValue",null,null,"brrt_BondsAndDebenturesFaceValue"]
[null,null,{"$f":"IF($C$3=\"\",\"\",TEXT(DATE(YEAR($C$3+1)-1,MONTH($C$3+1),DAY($C$3+1)),\"mm/dd/yyyy\"))","v":"01/01/2019"},null,{"$f":"IF($C$3=\"\",\"\",TEXT(DATE(YEAR($C$3+1)-1,MONTH($C$3+1),DAY($C$3+1)),\"mm/dd/yyyy\"))","v":"01/01/2019"},null,null,{"$f":"IF($C$3=\"\",\"\",TEXT(DATE(YEAR($C$3+1)-1,MONTH($C$3+1),DAY($C$3+1)),\"mm/dd/yyyy\"))","v":"01/01/2019"},null,null,null,null,null,null,null,{"$f":"IF($C$3=\"\",\"\",TEXT(DATE(YEAR($C$3+1)-1,MONTH($C$3+1),DAY($C$3+1)),\"mm/dd/yyyy\"))","v":"01/01/2019"},null,null,{"$f":"IF($C$3=\"\",\"\",TEXT(DATE(YEAR($C$3+1)-1,MONTH($C$3+1),DAY($C$3+1)),\"mm/dd/yyyy\"))","v":"01/01/2019"},null,null,"brrt_BondsAndDebenturesEffectiveConvexity"]
[null,null,{"$f":"IF($C$3=\"\",\"\",TEXT($C$3,\"mm/dd/yyyy\"))","v":"12/31/2019"},null,{"$f":"IF($C$3=\"\",\"\",TEXT($C$3,\"mm/dd/yyyy\"))","v":"12/31/2019"},null,null,{"$f":"IF($C$3=\"\",\"\",TEXT($C$3,\"mm/dd/yyyy\"))","v":"12/31/2019"},null,null,null,null,null,null,null,{"$f":"IF($C$3=\"\",\"\",TEXT($C$3,\"mm/dd/yyyy\"))","v":"12/31/2019"},null,null,{"$f":"IF($C$3=\"\",\"\",TEXT($C$3,\"mm/dd/yyyy\"))","v":"12/31/2019"},null,null,{"$f":"IF($C$3=\"\",\"\",TEXT(DATE(YEAR($C$3+1)-1,MONTH($C$3+1),DAY($C$3+1)),\"mm/dd/yyyy\"))","v":"01/01/2019"}]
[null,null,null,null,null,null,null,null,null,null,null,null,null,null,null,null,null,null,null,null,null,{"$f":"IF($C$3=\"\",\"\",TEXT($C$3,\"mm/dd/yyyy\"))","v":"12/31/2019"}]
[null,null,null,null,{"$f":"XBRLMap(#REF!,E$71&\".\"&#REF!,E$72,E$73,CONFIGURATION!$B$10,\"BMA\",CONFIGURATION!$B$1,\"bscr\",CONFIGURATION!$B$12)","v":{"$error":"#VALUE!"}},null,null,{"$f":"XBRLMap(#REF!,H$71&\".\"&#REF!,H$72,H$73,CONFIGURATION!$B$10,\"BMA\",CONFIGURATION!$B$1,\"bscr\",CONFIGURATION!$B$12)","v":{"$error":"#VALUE!"}},null,null,null,null,null,null,null,{"$f":"XBRLMap(#REF!,P$71&\".\"&#REF!,P$72,P$73,CONFIGURATION!$B$10,\"BMA\",CONFIGURATION!$B$1,\"bscr\",CONFIGURATION!$B$12)","v":{"$error":"#VALUE!"}},null,null,{"$f":"XBRLMap(#REF!,S$71&\".\"&#REF!,S$72,S$73,CONFIGURATION!$B$10,\"BMA\",CONFIGURATION!$B$1,\"bscr\",CONFIGURATION!$B$12)","v":{"$error":"#VALUE!"}}]
[null,null,null,null,{"$f":"XBRLMap(#REF!,E$71&\".\"&#REF!,E$72,E$73,CONFIGURATION!$B$10,\"BMA\",CONFIGURATION!$B$1,\"bscr\",CONFIGURATION!$B$12)","v":{"$error":"#VALUE!"}},null,null,{"$f":"XBRLMap(#REF!,H$71&\".\"&#REF!,H$72,H$73,CONFIGURATION!$B$10,\"BMA\",CONFIGURATION!$B$1,\"bscr\",CONFIGURATION!$B$12)","v":{"$error":"#VALUE!"}},null,null,null,null,null,null,null,{"$f":"XBRLMap(#REF!,P$71&\".\"&#REF!,P$72,P$73,CONFIGURATION!$B$10,\"BMA\",CONFIGURATION!$B$1,\"bscr\",CONFIGURATION!$B$12)","v":{"$error":"#VALUE!"}},null,null,{"$f":"XBRLMap(#REF!,S$71&\".\"&#REF!,S$72,S$73,CONFIGURATION!$B$10,\"BMA\",CONFIGURATION!$B$1,\"bscr\",CONFIGURATION!$B$12)","v":{"$error":"#VALUE!"}},null,null,{"$f":"XBRLMap(#REF!,V$72&\".\"&#REF!,V$73,V$74,CONFIGURATION!$B$10,\"BMA\",CONFIGURATION!$B$1,\"bscr\")","v":{"$error":"#VALUE!"}}]
[null,null,null,null,{"$f":"XBRLMap(#REF!,E$71&\".\"&#REF!,E$72,E$73,CONFIGURATION!$B$10,\"BMA\",CONFIGURATION!$B$1,\"bscr\",CONFIGURATION!$B$12)","v":{"$error":"#VALUE!"}},null,null,{"$f":"XBRLMap(#REF!,H$71&\".\"&#REF!,H$72,H$73,CONFIGURATION!$B$10,\"BMA\",CONFIGURATION!$B$1,\"bscr\",CONFIGURATION!$B$12)","v":{"$error":"#VALUE!"}},null,null,null,null,null,null,null,{"$f":"XBRLMap(#REF!,P$71&\".\"&#REF!,P$72,P$73,CONFIGURATION!$B$10,\"BMA\",CONFIGURATION!$B$1,\"bscr\",CONFIGURATION!$B$12)","v":{"$error":"#VALUE!"}},null,null,{"$f":"XBRLMap(#REF!,S$71&\".\"&#REF!,S$72,S$73,CONFIGURATION!$B$10,\"BMA\",CONFIGURATION!$B$1,\"bscr\",CONFIGURATION!$B$12)","v":{"$error":"#VALUE!"}},null,null,{"$f":"XBRLMap(#REF!,V$72&\".\"&#REF!,V$73,V$74,CONFIGURATION!$B$10,\"BMA\",CONFIGURATION!$B$1,\"bscr\")","v":{"$error":"#VALUE!"}}]
[null,null,null,null,{"$f":"XBRLMap(#REF!,E$71&\".\"&#REF!,E$72,E$73,CONFIGURATION!$B$10,\"BMA\",CONFIGURATION!$B$1,\"bscr\",CONFIGURATION!$B$12)","v":{"$error":"#VALUE!"}},null,null,{"$f":"XBRLMap(#REF!,H$71&\".\"&#REF!,H$72,H$73,CONFIGURATION!$B$10,\"BMA\",CONFIGURATION!$B$1,\"bscr\",CONFIGURATION!$B$12)","v":{"$error":"#VALUE!"}},null,null,null,null,null,null,null,{"$f":"XBRLMap(#REF!,P$71&\".\"&#REF!,P$72,P$73,CONFIGURATION!$B$10,\"BMA\",CONFIGURATION!$B$1,\"bscr\",CONFIGURATION!$B$12)","v":{"$error":"#VALUE!"}},null,null,{"$f":"XBRLMap(#REF!,S$71&\".\"&#REF!,S$72,S$73,CONFIGURATION!$B$10,\"BMA\",CONFIGURATION!$B$1,\"bscr\",CONFIGURATION!$B$12)","v":{"$error":"#VALUE!"}},null,null,{"$f":"XBRLMap(#REF!,V$72&\".\"&#REF!,V$73,V$74,CONFIGURATION!$B$10,\"BMA\",CONFIGURATION!$B$1,\"bscr\")","v":{"$error":"#VALUE!"}}]
[null,null,null,null,{"$f":"XBRLMap(#REF!,E$71&\".\"&#REF!,E$72,E$73,CONFIGURATION!$B$10,\"BMA\",CONFIGURATION!$B$1,\"bscr\",CONFIGURATION!$B$12)","v":{"$error":"#VALUE!"}},null,null,{"$f":"XBRLMap(#REF!,H$71&\".\"&#REF!,H$72,H$73,CONFIGURATION!$B$10,\"BMA\",CONFIGURATION!$B$1,\"bscr\",CONFIGURATION!$B$12)","v":{"$error":"#VALUE!"}},null,null,null,null,null,null,null,{"$f":"XBRLMap(#REF!,P$71&\".\"&#REF!,P$72,P$73,CONFIGURATION!$B$10,\"BMA\",CONFIGURATION!$B$1,\"bscr\",CONFIGURATION!$B$12)","v":{"$error":"#VALUE!"}},null,null,{"$f":"XBRLMap(#REF!,S$71&\".\"&#REF!,S$72,S$73,CONFIGURATION!$B$10,\"BMA\",CONFIGURATION!$B$1,\"bscr\",CONFIGURATION!$B$12)","v":{"$error":"#VALUE!"}},null,null,{"$f":"XBRLMap(#REF!,V$72&\".\"&#REF!,V$73,V$74,CONFIGURATION!$B$10,\"BMA\",CONFIGURATION!$B$1,\"bscr\")","v":{"$error":"#VALUE!"}}]
[null,null,null,null,null,null,null,null,null,null,null,null,null,null,null,null,null,null,null,null,null,{"$f":"XBRLMap(#REF!,V$72&\".\"&#REF!,V$73,V$74,CONFIGURATION!$B$10,\"BMA\",CONFIGURATION!$B$1,\"bscr\")","v":{"$error":"#VALUE!"}}]
[null,null,null,null,{"$f":"XBRLMap(#REF!,E$71&\".\"&#REF!,E$72,E$73,CONFIGURATION!$B$10,\"BMA\",CONFIGURATION!$B$1,\"bscr\",CONFIGURATION!$B$12)","v":{"$error":"#VALUE!"}},null,null,{"$f":"XBRLMap(#REF!,H$71&\".\"&#REF!,H$72,H$73,CONFIGURATION!$B$10,\"BMA\",CONFIGURATION!$B$1,\"bscr\",CONFIGURATION!$B$12)","v":{"$error":"#VALUE!"}},null,null,null,null,null,null,null,{"$f":"XBRLMap(#REF!,P$71&\".\"&#REF!,P$72,P$73,CONFIGURATION!$B$10,\"BMA\",CONFIGURATION!$B$1,\"bscr\",CONFIGURATION!$B$12)","v":{"$error":"#VALUE!"}},null,null,{"$f":"XBRLMap(#REF!,S$71&\".\"&#REF!,S$72,S$73,CONFIGURATION!$B$10,\"BMA\",CONFIGURATION!$B$1,\"bscr\",CONFIGURATION!$B$12)","v":{"$error":"#VALUE!"}}]
[null,null,null,null,{"$f":"XBRLMap(#REF!,E$71&\".\"&#REF!,E$72,E$73,CONFIGURATION!$B$10,\"BMA\",CONFIGURATION!$B$1,\"bscr\",CONFIGURATION!$B$12)","v":{"$error":"#VALUE!"}},null,null,{"$f":"XBRLMap(#REF!,H$71&\".\"&#REF!,H$72,H$73,CONFIGURATION!$B$10,\"BMA\",CONFIGURATION!$B$1,\"bscr\",CONFIGURATION!$B$12)","v":{"$error":"#VALUE!"}},null,null,null,null,null,null,null,{"$f":"XBRLMap(#REF!,P$71&\".\"&#REF!,P$72,P$73,CONFIGURATION!$B$10,\"BMA\",CONFIGURATION!$B$1,\"bscr\",CONFIGURATION!$B$12)","v":{"$error":"#VALUE!"}},null,null,{"$f":"XBRLMap(#REF!,S$71&\".\"&#REF!,S$72,S$73,CONFIGURATION!$B$10,\"BMA\",CONFIGURATION!$B$1,\"bscr\",CONFIGURATION!$B$12)","v":{"$error":"#VALUE!"}},null,null,{"$f":"XBRLMap(#REF!,V$72&\".\"&#REF!,V$73,V$74,CONFIGURATION!$B$10,\"BMA\",CONFIGURATION!$B$1,\"bscr\")","v":{"$error":"#VALUE!"}}]
[null,null,null,null,{"$f":"XBRLMap(#REF!,E$71&\".\"&#REF!,E$72,E$73,CONFIGURATION!$B$10,\"BMA\",CONFIGURATION!$B$1,\"bscr\",CONFIGURATION!$B$12)","v":{"$error":"#VALUE!"}},null,null,{"$f":"XBRLMap(#REF!,H$71&\".\"&#REF!,H$72,H$73,CONFIGURATION!$B$10,\"BMA\",CONFIGURATION!$B$1,\"bscr\",CONFIGURATION!$B$12)","v":{"$error":"#VALUE!"}},null,null,null,null,null,null,null,{"$f":"XBRLMap(#REF!,P$71&\".\"&#REF!,P$72,P$73,CONFIGURATION!$B$10,\"BMA\",CONFIGURATION!$B$1,\"bscr\",CONFIGURATION!$B$12)","v":{"$error":"#VALUE!"}},null,null,{"$f":"XBRLMap(#REF!,S$71&\".\"&#REF!,S$72,S$73,CONFIGURATION!$B$10,\"BMA\",CONFIGURATION!$B$1,\"bscr\",CONFIGURATION!$B$12)","v":{"$error":"#VALUE!"}},null,null,{"$f":"XBRLMap(#REF!,V$72&\".\"&#REF!,V$73,V$74,CONFIGURATION!$B$10,\"BMA\",CONFIGURATION!$B$1,\"bscr\")","v":{"$error":"#VALUE!"}}]
[null,null,null,null,{"$f":"XBRLMap(#REF!,E$71&\".\"&#REF!,E$72,E$73,CONFIGURATION!$B$10,\"BMA\",CONFIGURATION!$B$1,\"bscr\",CONFIGURATION!$B$12)","v":{"$error":"#VALUE!"}},null,null,{"$f":"XBRLMap(#REF!,H$71&\".\"&#REF!,H$72,H$73,CONFIGURATION!$B$10,\"BMA\",CONFIGURATION!$B$1,\"bscr\",CONFIGURATION!$B$12)","v":{"$error":"#VALUE!"}},null,null,null,null,null,null,null,{"$f":"XBRLMap(#REF!,P$71&\".\"&#REF!,P$72,P$73,CONFIGURATION!$B$10,\"BMA\",CONFIGURATION!$B$1,\"bscr\",CONFIGURATION!$B$12)","v":{"$error":"#VALUE!"}},null,null,{"$f":"XBRLMap(#REF!,S$71&\".\"&#REF!,S$72,S$73,CONFIGURATION!$B$10,\"BMA\",CONFIGURATION!$B$1,\"bscr\",CONFIGURATION!$B$12)","v":{"$error":"#VALUE!"}},null,null,{"$f":"XBRLMap(#REF!,V$72&\".\"&#REF!,V$73,V$74,CONFIGURATION!$B$10,\"BMA\",CONFIGURATION!$B$1,\"bscr\")","v":{"$error":"#VALUE!"}}]
[null,null,null,null,{"$f":"XBRLMap(#REF!,E$71&\".\"&#REF!,E$72,E$73,CONFIGURATION!$B$10,\"BMA\",CONFIGURATION!$B$1,\"bscr\",CONFIGURATION!$B$12)","v":{"$error":"#VALUE!"}},null,null,{"$f":"XBRLMap(#REF!,H$71&\".\"&#REF!,H$72,H$73,CONFIGURATION!$B$10,\"BMA\",CONFIGURATION!$B$1,\"bscr\",CONFIGURATION!$B$12)","v":{"$error":"#VALUE!"}},null,null,null,null,null,null,null,{"$f":"XBRLMap(#REF!,P$71&\".\"&#REF!,P$72,P$73,CONFIGURATION!$B$10,\"BMA\",CONFIGURATION!$B$1,\"bscr\",CONFIGURATION!$B$12)","v":{"$error":"#VALUE!"}},null,null,{"$f":"XBRLMap(#REF!,S$71&\".\"&#REF!,S$72,S$73,CONFIGURATION!$B$10,\"BMA\",CONFIGURATION!$B$1,\"bscr\",CONFIGURATION!$B$12)","v":{"$error":"#VALUE!"}},null,null,{"$f":"XBRLMap(#REF!,V$72&\".\"&#REF!,V$73,V$74,CONFIGURATION!$B$10,\"BMA\",CONFIGURATION!$B$1,\"bscr\")","v":{"$error":"#VALUE!"}}]
[null,null,null,null,null,null,null,null,null,null,null,null,null,null,null,null,null,null,null,null,null,{"$f":"XBRLMap(#REF!,V$72&\".\"&#REF!,V$73,V$74,CONFIGURATION!$B$10,\"BMA\",CONFIGURATION!$B$1,\"bscr\")","v":{"$error":"#VALUE!"}}]
[null,null,null,null,{"$f":"XBRLMap(#REF!,E$71&\".\"&#REF!,E$72,E$73,CONFIGURATION!$B$10,\"BMA\",CONFIGURATION!$B$1,\"bscr\",CONFIGURATION!$B$12)","v":{"$error":"#VALUE!"}},null,null,{"$f":"XBRLMap(#REF!,H$71&\".\"&#REF!,H$72,H$73,CONFIGURATION!$B$10,\"BMA\",CONFIGURATION!$B$1,\"bscr\",CONFIGURATION!$B$12)","v":{"$error":"#VALUE!"}},null,null,null,null,null,null,null,{"$f":"XBRLMap(#REF!,P$71&\".\"&#REF!,P$72,P$73,CONFIGURATION!$B$10,\"BMA\",CONFIGURATION!$B$1,\"bscr\",CONFIGURATION!$B$12)","v":{"$error":"#VALUE!"}},null,null,{"$f":"XBRLMap(#REF!,S$71&\".\"&#REF!,S$72,S$73,CONFIGURATION!$B$10,\"BMA\",CONFIGURATION!$B$1,\"bscr\",CONFIGURATION!$B$12)","v":{"$error":"#VALUE!"}}]
[null,null,null,null,{"$f":"XBRLMap(#REF!,E$71&\".\"&#REF!,E$72,E$73,CONFIGURATION!$B$10,\"BMA\",CONFIGURATION!$B$1,\"bscr\",CONFIGURATION!$B$12)","v":{"$error":"#VALUE!"}},null,null,{"$f":"XBRLMap(#REF!,H$71&\".\"&#REF!,H$72,H$73,CONFIGURATION!$B$10,\"BMA\",CONFIGURATION!$B$1,\"bscr\",CONFIGURATION!$B$12)","v":{"$error":"#VALUE!"}},null,null,null,null,null,null,null,{"$f":"XBRLMap(#REF!,P$71&\".\"&#REF!,P$72,P$73,CONFIGURATION!$B$10,\"BMA\",CONFIGURATION!$B$1,\"bscr\",CONFIGURATION!$B$12)","v":{"$error":"#VALUE!"}},null,null,{"$f":"XBRLMap(#REF!,S$71&\".\"&#REF!,S$72,S$73,CONFIGURATION!$B$10,\"BMA\",CONFIGURATION!$B$1,\"bscr\",CONFIGURATION!$B$12)","v":{"$error":"#VALUE!"}},null,null,{"$f":"XBRLMap(#REF!,V$72&\".\"&#REF!,V$73,V$74,CONFIGURATION!$B$10,\"BMA\",CONFIGURATION!$B$1,\"bscr\")","v":{"$error":"#VALUE!"}}]
[null,null,null,null,{"$f":"XBRLMap(#REF!,E$71&\".\"&#REF!,E$72,E$73,CONFIGURATION!$B$10,\"BMA\",CONFIGURATION!$B$1,\"bscr\",CONFIGURATION!$B$12)","v":{"$error":"#VALUE!"}},null,null,{"$f":"XBRLMap(#REF!,H$71&\".\"&#REF!,H$72,H$73,CONFIGURATION!$B$10,\"BMA\",CONFIGURATION!$B$1,\"bscr\",CONFIGURATION!$B$12)","v":{"$error":"#VALUE!"}},null,null,null,null,null,null,null,{"$f":"XBRLMap(#REF!,P$71&\".\"&#REF!,P$72,P$73,CONFIGURATION!$B$10,\"BMA\",CONFIGURATION!$B$1,\"bscr\",CONFIGURATION!$B$12)","v":{"$error":"#VALUE!"}},null,null,{"$f":"XBRLMap(#REF!,S$71&\".\"&#REF!,S$72,S$73,CONFIGURATION!$B$10,\"BMA\",CONFIGURATION!$B$1,\"bscr\",CONFIGURATION!$B$12)","v":{"$error":"#VALUE!"}},null,null,{"$f":"XBRLMap(#REF!,V$72&\".\"&#REF!,V$73,V$74,CONFIGURATION!$B$10,\"BMA\",CONFIGURATION!$B$1,\"bscr\")","v":{"$error":"#VALUE!"}}]
[null,null,null,null,{"$f":"XBRLMap(#REF!,E$71&\".\"&#REF!,E$72,E$73,CONFIGURATION!$B$10,\"BMA\",CONFIGURATION!$B$1,\"bscr\",CONFIGURATION!$B$12)","v":{"$error":"#VALUE!"}},null,null,{"$f":"XBRLMap(#REF!,H$71&\".\"&#REF!,H$72,H$73,CONFIGURATION!$B$10,\"BMA\",CONFIGURATION!$B$1,\"bscr\",CONFIGURATION!$B$12)","v":{"$error":"#VALUE!"}},null,null,null,null,null,null,null,{"$f":"XBRLMap(#REF!,P$71&\".\"&#REF!,P$72,P$73,CONFIGURATION!$B$10,\"BMA\",CONFIGURATION!$B$1,\"bscr\",CONFIGURATION!$B$12)","v":{"$error":"#VALUE!"}},null,null,{"$f":"XBRLMap(#REF!,S$71&\".\"&#REF!,S$72,S$73,CONFIGURATION!$B$10,\"BMA\",CONFIGURATION!$B$1,\"bscr\",CONFIGURATION!$B$12)","v":{"$error":"#VALUE!"}},null,null,{"$f":"XBRLMap(#REF!,V$72&\".\"&#REF!,V$73,V$74,CONFIGURATION!$B$10,\"BMA\",CONFIGURATION!$B$1,\"bscr\")","v":{"$error":"#VALUE!"}}]
[null,null,null,null,{"$f":"XBRLMap(#REF!,E$71&\".\"&#REF!,E$72,E$73,CONFIGURATION!$B$10,\"BMA\",CONFIGURATION!$B$1,\"bscr\",CONFIGURATION!$B$12)","v":{"$error":"#VALUE!"}},null,null,{"$f":"XBRLMap(#REF!,H$71&\".\"&#REF!,H$72,H$73,CONFIGURATION!$B$10,\"BMA\",CONFIGURATION!$B$1,\"bscr\",CONFIGURATION!$B$12)","v":{"$error":"#VALUE!"}},null,null,null,null,null,null,null,{"$f":"XBRLMap(#REF!,P$71&\".\"&#REF!,P$72,P$73,CONFIGURATION!$B$10,\"BMA\",CONFIGURATION!$B$1,\"bscr\",CONFIGURATION!$B$12)","v":{"$error":"#VALUE!"}},null,null,{"$f":"XBRLMap(#REF!,S$71&\".\"&#REF!,S$72,S$73,CONFIGURATION!$B$10,\"BMA\",CONFIGURATION!$B$1,\"bscr\",CONFIGURATION!$B$12)","v":{"$error":"#VALUE!"}},null,null,{"$f":"XBRLMap(#REF!,V$72&\".\"&#REF!,V$73,V$74,CONFIGURATION!$B$10,\"BMA\",CONFIGURATION!$B$1,\"bscr\")","v":{"$error":"#VALUE!"}}]
[null,null,null,null,{"$f":"XBRLMap(#REF!,E$71&\".\"&#REF!,E$72,E$73,CONFIGURATION!$B$10,\"BMA\",CONFIGURATION!$B$1,\"bscr\",CONFIGURATION!$B$12)","v":{"$error":"#VALUE!"}},null,null,{"$f":"XBRLMap(#REF!,H$71&\".\"&#REF!,H$72,H$73,CONFIGURATION!$B$10,\"BMA\",CONFIGURATION!$B$1,\"bscr\",CONFIGURATION!$B$12)","v":{"$error":"#VALUE!"}},null,null,null,null,null,null,null,{"$f":"XBRLMap(#REF!,P$71&\".\"&#REF!,P$72,P$73,CONFIGURATION!$B$10,\"BMA\",CONFIGURATION!$B$1,\"bscr\",CONFIGURATION!$B$12)","v":{"$error":"#VALUE!"}},null,null,{"$f":"XBRLMap(#REF!,S$71&\".\"&#REF!,S$72,S$73,CONFIGURATION!$B$10,\"BMA\",CONFIGURATION!$B$1,\"bscr\",CONFIGURATION!$B$12)","v":{"$error":"#VALUE!"}},null,null,{"$f":"XBRLMap(#REF!,V$72&\".\"&#REF!,V$73,V$74,CONFIGURATION!$B$10,\"BMA\",CONFIGURATION!$B$1,\"bscr\")","v":{"$error":"#VALUE!"}}]
[null,null,null,null,{"$f":"XBRLMap(#REF!,E$71&\".\"&#REF!,E$72,E$73,CONFIGURATION!$B$10,\"BMA\",CONFIGURATION!$B$1,\"bscr\",CONFIGURATION!$B$12)","v":{"$error":"#VALUE!"}},null,null,{"$f":"XBRLMap(#REF!,H$71&\".\"&#REF!,H$72,H$73,CONFIGURATION!$B$10,\"BMA\",CONFIGURATION!$B$1,\"bscr\",CONFIGURATION!$B$12)","v":{"$error":"#VALUE!"}},null,null,null,null,null,null,null,{"$f":"XBRLMap(#REF!,P$71&\".\"&#REF!,P$72,P$73,CONFIGURATION!$B$10,\"BMA\",CONFIGURATION!$B$1,\"bscr\",CONFIGURATION!$B$12)","v":{"$error":"#VALUE!"}},null,null,{"$f":"XBRLMap(#REF!,S$71&\".\"&#REF!,S$72,S$73,CONFIGURATION!$B$10,\"BMA\",CONFIGURATION!$B$1,\"bscr\",CONFIGURATION!$B$12)","v":{"$error":"#VALUE!"}},null,null,{"$f":"XBRLMap(#REF!,V$72&\".\"&#REF!,V$73,V$74,CONFIGURATION!$B$10,\"BMA\",CONFIGURATION!$B$1,\"bscr\")","v":{"$error":"#VALUE!"}}]
[null,null,null,null,{"$f":"XBRLMap(#REF!,E$71&\".\"&#REF!,E$72,E$73,CONFIGURATION!$B$10,\"BMA\",CONFIGURATION!$B$1,\"bscr\",CONFIGURATION!$B$12)","v":{"$error":"#VALUE!"}},null,null,null,null,null,null,null,null,null,null,null,null,null,null,null,null,{"$f":"XBRLMap(#REF!,V$72&\".\"&#REF!,V$73,V$74,CONFIGURATION!$B$10,\"BMA\",CONFIGURATION!$B$1,\"bscr\")","v":{"$error":"#VALUE!"}}]
[null,null,null,null,null,null,null,"A or better",null,null,null,null,null,null,null,"A or better",null,null,"A or better"]
[null,null,null,null,null,null,null,"BBB or equivalent",null,null,null,null,null,null,null,"BBB or equivalent",null,null,"BBB or equivalent"]
[null,null,null,null,null,null,null,"B or better",null,null,null,null,null,null,null,"B or better",null,null,"B or better"]
[null,null,{"$f":"XBRLMap(#REF!,#REF!,C$72,C$73,CONFIGURATION!$B$10,\"BMA\",CONFIGURATION!$B$1,\"bscr\")","v":{"$error":"#VALUE!"}},null,null,null,null,"unrated/other",null,null,null,null,null,null,null,"unrated/other",null,null,"unrated/other"]
[]
[null,null,{"$f":"XBRLMap(#REF!,#REF!,C$72,C$73,CONFIGURATION!$B$10,\"BMA\",CONFIGURATION!$B$1,\"bscr\")","v":{"$error":"#VALUE!"}}]

{"sheet":"Corp Gov","index":94,"n_rows":22,"n_cols":11,"rows_kept":22,"cut":false,"hidden":false,"merged":[[6,1,6,3],[21,1,21,3],[20,1,20,4]]}
[null,"CORPORATE GOVERNANCE",null,{"$f":"HYPERLINK(\"#'Index'!A1\",\"Return to Index\")","v":"Return to Index"}]
[]
[null,{"$f":"'Company Information'!C7","v":"Enter Company Name"}]
[]
[null,{"$f":"'Form 1EBS'!C3","v":"2019-12-31"}]
[]
[null,"The insurer is to review the following statements below.  The insurer is to place an “X” in the column “Implemented” where the Corporate Governance function meets the criteria (200 points for each fulfilled criteria).  The worksheet will automatically aggregate all scores."]
[]
[null,"The Board of Directors:"]
[null,null,null,null,null,null,{"$f":"IF($B$5=\"\",\"\",TEXT(DATE(YEAR($B$5+1)-1,MONTH($B$5+1),DAY($B$5+1)),\"mm/dd/yyyy\"))","v":"01/01/2019"}]
[null,"Description","Implemented","Score",null,null,{"$f":"IF($B$5=\"\",\"\",TEXT($B$5,\"mm/dd/yyyy\"))","v":"12/31/2019"}]
[null,{"$f":"IF('Company Information'!$F$11=\"Class 3A\",\"Sets risk policies, practices and tolerance limits for all material foreseeable operational risks at least annually \",\"Sets risk policies, practices and tolerance limits for all material foreseeable operational risks at least annually and ensures they are communicated to relevant business units\")","v":"Sets risk policies, practices and tolerance limits for all material foreseeable operational risks at least annually and ensures they are communicated to relevant business units"},null,{"$f":"IF(C12=\"\",Import!I11277,IF(C12=\"X\", 200, 0))","v":0},null,"brrt_TheBoardOfDirectorsSetsRiskPoliciesPracticesAndToleranceLimitsForAllMaterialForeseeableOperationalRisksAtLeastAnnuallyAndEnsuresTheyAreCommunicatedToRelevantBusinessUnits",{"$f":"XBRLMapBoolean(C12,$F12,$G$10,$G$11,CONFIGURATION!$B$10,\"BMA\",CONFIGURATION!$B$1,\"bscr\",IF(OR(C12=\"X\",C12=\"x\"),\"1\", \"0\"))","v":"Mapped"},null,null,null,"bma_CorporateGovernance1"]
[null,"Ensures they are communicated to relevant business units",null,{"$f":"IF(C13=\"\",Import!I11278,IF(C13=\"X\", 200, 0))","v":0}]
[null,"Monitors adherence to operational risk tolerance limits more regularly than annually",null,{"$f":"IF(C14=\"\",Import!I11279,IF(C14=\"X\", 200, 0))","v":0},null,"brrt_TheBoardOfDirectorsMonitorsAdherenceToOperationalRiskToleranceLimitsMoreRegularlyThanAnnually",{"$f":"XBRLMapBoolean(C14,$F14,$G$10,$G$11,CONFIGURATION!$B$10,\"BMA\",CONFIGURATION!$B$1,\"bscr\",IF(OR(C14=\"X\",C14=\"x\"),\"1\", \"0\"))","v":"Mapped"},null,null,null,"bma_CorporateGovernance2"]
[null,"Receives, at least annually, reports on the effectiveness of material operational risk internal controls as well as management’s plans to address related weaknesses",null,{"$f":"IF(C15=\"\",Import!I11280,IF(C15=\"X\", 200, 0))","v":0},null,"brrt_TheBoardOfDirectorsReceivesAtLeastAnnuallyReportsOnTheEffectivenessOfMaterialOperationalRiskInternalControlsAsWellAsManagementsPlansToAddressRelatedWeaknesses",{"$f":"XBRLMapBoolean(C15,$F15,$G$10,$G$11,CONFIGURATION!$B$10,\"BMA\",CONFIGURATION!$B$1,\"bscr\",IF(OR(C15=\"X\",C15=\"x\"),\"1\", \"0\"))","v":"Mapped"},null,null,null,"bma_CorporateGovernance3"]
[null,"Ensures that systems and/or procedures are in place to identify, report and promptly address internal control deficiencies related to operational risks",null,{"$f":"IF(C16=\"\",Import!I11281,IF(C16=\"X\", 200, 0))","v":0},null,"brrt_TheBoardOfDirectorsEnsuresThatSystemsAndOrProceduresAreInPlaceToIdentifyReportAndPromptlyAddressInternalControlDeficienciesRelatedToOperationalRisks",{"$f":"XBRLMapBoolean(C16,$F16,$G$10,$G$11,CONFIGURATION!$B$10,\"BMA\",CONFIGURATION!$B$1,\"bscr\",IF(OR(C16=\"X\",C16=\"x\"),\"1\", \"0\"))","v":"Mapped"},null,null,null,"bma_CorporateGovernance4"]
[null,"Promotes full, open and timely disclosure from senior management on all significant issues related to operational risk",null,{"$f":"IF(C17=\"\",Import!I11282,IF(C17=\"X\", 200, 0))","v":0},null,"brrt_TheBoardOfDirectorsPromotesFullOpenAndTimelyDisclosureFromSeniorManagementOnAllSignificantIssuesRelatedToOperationalRisk",{"$f":"XBRLMapBoolean(C17,$F17,$G$10,$G$11,CONFIGURATION!$B$10,\"BMA\",CONFIGURATION!$B$1,\"bscr\",IF(OR(C17=\"X\",C17=\"x\"),\"1\", \"0\"))","v":"Mapped"},null,null,null,"bma_CorporateGovernance5"]
[null,"Ensures that periodic independent reviews of the risk management function are performed and receives the findings of the review",null,{"$f":"IF(C18=\"\",Import!I11283,IF(C18=\"X\", 200, 0))","v":0},null,"brrt_TheBoardOfDirectorsEnsuresThatPeriodicIndependentReviewsOfTheRiskManagementFunctionArePerformedAndReceivesTheFindingsOfTheReview",{"$f":"XBRLMapBoolean(C18,$F18,$G$10,$G$11,CONFIGURATION!$B$10,\"BMA\",CONFIGURATION!$B$1,\"bscr\",IF(OR(C18=\"X\",C18=\"x\"),\"1\", \"0\"))","v":"Mapped"},null,null,null,"bma_CorporateGovernance6"]
[null,null,null,{"$f":"SUM(D12:D18)","v":0},null,"brrt_CorporateGovernanceScore",{"$f":"XBRLMap(D19,$F19,$G$10,$G$11,CONFIGURATION!$B$10,\"BMA\",CONFIGURATION!$B$1,\"bscr\")","v":"Mapped"},null,null,null,"bma_CorporateGovernanceTotal"]
[]
[null,"Comments (optionally, the insurer may provide comments in the box below to support its responses above):"]
[null,null,null,null,null,"brrt_AdditionalCommentsCorporateGovernance",{"$f":"XBRLMap(B22,$F22,$G$10,$G$11,CONFIGURATION!$B$10,\"BMA\",CONFIGURATION!$B$1,\"bscr\")","v":"Mapped"},null,null,null,"bma_CorporateGovernanceComment"]

{"sheet":"Risk Man","index":95,"n_rows":21,"n_cols":11,"rows_kept":21,"cut":false,"hidden":false,"merged":[[5,1,5,3],[20,1,20,3]]}
[null,"RISK MANAGEMENT FUNCTION",null,{"$f":"HYPERLINK(\"#'Index'!A1\",\"Return to Index\")","v":"Return to Index"}]
[]
[null,{"$f":"'Company Information'!C7","v":"Enter Company Name"}]
[null,{"$f":"'Form 1EBS'!C3","v":"2019-12-31"},null,{"$f":"IF('Company Information'!$F$11=\"Class 3A\",200,150)","v":150}]
[]
[null,{"$f":"\"The insurer is to review the following statements below.  The insurer is to place an X in the column Implemented where the Risk Management function meets the criteria (\"&D4 &\" points for each fulfilled criteria).  The worksheet will automatically aggregate all scores.\"","v":"The insurer is to review the following statements below.  The insurer is to place an X in the column Implemented where the Risk Management function meets the criteria (150 points for each fulfilled criteria).  The worksheet will automatically aggregate all scores."}]
[]
[null,"The Risk Management Function:"]
[null,null,null,null,null,null,{"$f":"IF($B$4=\"\",\"\",TEXT(DATE(YEAR($B$4+1)-1,MONTH($B$4+1),DAY($B$4+1)),\"mm/dd/yyyy\"))","v":"01/01/2019"}]
[null,"Description","Implemented","Score",null,null,{"$f":"IF($B$4=\"\",\"\",TEXT($B$4,\"mm/dd/yyyy\"))","v":"12/31/2019"}]
[null,"Is independent of other operational units and has direct access to the Board of Directors",null,{"$f":"IF(C11=\"\",Import!I11284,IF('Company Information'!$F$11=\"Class 3A\",IF(C11=\"X\", 200, 0),IF(C11=\"X\", 150, 0)))","v":0},null,"brrt_TheRiskManagementFunctionIsIndependentOfOtherOperationalUnitsAndHasDirectAccessToTheBoardOfDirectors",{"$f":"XBRLMapBoolean(C11,$F11,$G$9,$G$10,CONFIGURATION!$B$10,\"BMA\",CONFIGURATION!$B$1,\"bscr\",IF(OR(C11=\"X\",C11=\"x\"),\"1\", \"0\"))","v":"Mapped"},null,null,null,"bma_RiskManagementFunction1"]
[null,"Is entrenched in strategic planning, decision making and budgeting process",null,{"$f":"IF(C12=\"\",Import!I11285,IF('Company Information'!$F$11=\"Class 3A\",IF(C12=\"X\", 200, 0),IF(C12=\"X\", 150, 0)))","v":0},null,"brrt_TheRiskManagementFunctionIsEntrenchedInStrategicPlanningDecisionMakingAndBudgetingProcess",{"$f":"XBRLMapBoolean(C12,$F12,$G$9,$G$10,CONFIGURATION!$B$10,\"BMA\",CONFIGURATION!$B$1,\"bscr\",IF(OR(C12=\"X\",C12=\"x\"),\"1\", \"0\"))","v":"Mapped"},null,null,null,"bma_RiskManagementFunction2"]
[null,"Ensures that the risk management procedures and policies are well documented and approved by the Board of Directors",null,{"$f":"IF(C13=\"\",Import!I11286,IF('Company Information'!$F$11=\"Class 3A\",IF(C13=\"X\", 200, 0),IF(C13=\"X\", 150, 0)))","v":0},null,"brrt_TheRiskManagementFunctionEnsuresThatTheRiskManagementProceduresAndPoliciesAreWellDocumentedAndApprovedByTheBoardOfDirectors",{"$f":"XBRLMapBoolean(C13,$F13,$G$9,$G$10,CONFIGURATION!$B$10,\"BMA\",CONFIGURATION!$B$1,\"bscr\",IF(OR(C13=\"X\",C13=\"x\"),\"1\", \"0\"))","v":"Mapped"},null,null,null,"bma_RiskManagementFunction3"]
[null,"Ensures the risk management policies and procedures are communicated throughout the organisation.",null,{"$f":"IF(C14=\"\",Import!I11287,IF('Company Information'!$F$11=\"Class 3A\",IF(C14=\"X\", 200, 0),IF(C14=\"X\", 150, 0)))","v":0},null,"brrt_TheRiskManagementFunctionEnsuresTheRiskManagementPoliciesAndProceduresAreCommunicatedThroughoutTheOrganisation",{"$f":"XBRLMapBoolean(C14,$F14,$G$9,$G$10,CONFIGURATION!$B$10,\"BMA\",CONFIGURATION!$B$1,\"bscr\",IF(OR(C14=\"X\",C14=\"x\"),\"1\", \"0\"))","v":"Mapped"},null,null,null,"bma_RiskManagementFunction4"]
[null,"Reviews operational risk management processes and procedures at least annually",null,{"$f":"IF(C15=\"\",Import!I11288,IF('Company Information'!$F$11=\"Class 3A\",IF(C15=\"X\", 200, 0),IF(C15=\"X\", 150, 0)))","v":0},null,"brrt_TheRiskManagementFunctionReviewsOperationalRiskManagementProcessesAndProceduresAtLeastAnnually",{"$f":"XBRLMapBoolean(C15,$F15,$G$9,$G$10,CONFIGURATION!$B$10,\"BMA\",CONFIGURATION!$B$1,\"bscr\",IF(OR(C15=\"X\",C15=\"x\"),\"1\", \"0\"))","v":"Mapped"},null,null,null,"bma_RiskManagementFunction5"]
[null,"Ensures that loss events arising from operational risks are documented and loss event data is integrated into enterprise risk management ",null,{"$f":"IF(C16=\"\",Import!I11289,IF('Company Information'!$F$11=\"Class 3A\",IF(C16=\"X\", 200, 0),IF(C16=\"X\", 150, 0)))","v":0},null,"brrt_TheRiskManagementFunctionEnsuresThatLossEventsArisingFromOperationalRisksAreDocumentedAndLossEventDataIsIntegratedIntoEnterpriseRiskManagement",{"$f":"XBRLMapBoolean(C16,$F16,$G$9,$G$10,CONFIGURATION!$B$10,\"BMA\",CONFIGURATION!$B$1,\"bscr\",IF(OR(C16=\"X\",C16=\"x\"),\"1\", \"0\"))","v":"Mapped"},null,null,null,"bma_RiskManagementFunction6"]
[null,"Documents its risk management recommendations for operational units, ensures that deficiencies have remedial plans and progress on the execution of such plans are reported to the Board of Directors at least annually",null,{"$f":"IF(C17=\"\",Import!I11290,IF('Company Information'!$F$11=\"Class 3A\",IF(C17=\"X\", 200, 0),IF(C17=\"X\", 150, 0)))","v":0},null,"brrt_TheRiskManagementFunctionDocumentsItsRiskManagementRecommendationsForOperationalUnitsEnsuresThatDeficienciesHaveRemedialPlansAndProgressOnTheExecutionOfSuchPlansAreReportedToTheBoardOfDirectorsAtLeastAnnually",{"$f":"XBRLMapBoolean(C17,$F17,$G$9,$G$10,CONFIGURATION!$B$10,\"BMA\",CONFIGURATION!$B$1,\"bscr\",IF(OR(C17=\"X\",C17=\"x\"),\"1\", \"0\"))","v":"Mapped"},null,null,null,"bma_RiskManagementFunction7"]
[null,null,null,{"$f":"SUM(D11:D17)","v":0},null,"brrt_RiskManagementScore",{"$f":"XBRLMap(D18,$F18,$G$9,$G$10,CONFIGURATION!$B$10,\"BMA\",CONFIGURATION!$B$1,\"bscr\")","v":"Mapped"},null,null,null,"bma_RiskManagementFunctionTotal"]
[]
[null,"Comments (optionally, the insurer may provide comments in the box below to support its responses above):"]
[null,null,null,null,null,"brrt_AdditionalCommentsRiskManagement",{"$f":"XBRLMap(B21,$F21,$G$9,$G$10,CONFIGURATION!$B$10,\"BMA\",CONFIGURATION!$B$1,\"bscr\")","v":"Mapped"},null,null,null,"bma_RiskManagementFunctionComment"]

{"sheet":"Identification","index":96,"n_rows":40,"n_cols":35,"rows_kept":40,"cut":false,"hidden":false,"merged":[[2,1,2,3],[1,1,1,3],[21,1,21,12],[12,1,12,2],[12,3,13,3],[12,4,12,12],[20,1,20,7],[4,1,4,12],[6,1,6,10],[6,11,6,12]]}
[null,"RISK IDENTIFICATION",null,null,null,null,null,null,null,null,null,null,{"$f":"HYPERLINK(\"#'Index'!A1\",\"Return to Index\")","v":"Return to Index"}]
[null,{"$f":"'Company Information'!C7","v":"Enter Company Name"},null,null,null,null,null,null,null,null,null,null,null,null,null,"brrt_OperationalRiskAreaActionAxis_brrt_IdentificationMember"]
[null,{"$f":"'Form 1EBS'!C3","v":"2019-12-31"},null,null,null,null,null,null,null,null,null,null,null,null,null,"brrt_OperationalRiskAreaStageAxis_brrt_TotalMember"]
[]
[null,"The insurer is to answer the following question.  If the answer to the question is \"No\" then the insurer does not have to complete the matrix/grid.  If the answer to the question is \"Yes\" then the insurer is to identify the stage of progression of each Operational Risk Area based upon the Dimension descriptor.  The insurer is then to input an “X” in the grid corresponding to the stage in the matrix table under the relevant Operational Risk Area."]
[]
[null,"Has your company taken steps to identify material risks arising from the Operational Risk Areas identified below? (Y/N) ",null,null,null,null,null,null,null,null,null,null,null,null,null,"brrt_StepsHaveBeenTakenToIdentifyMaterialRisksArisingFromOperationalRiskAreasIdentified",{"$f":"XBRLMapBoolean(L7,P7&\".\"&P2,$E$25,$E$26,CONFIGURATION!$B$10,\"BMA\",CONFIGURATION!$B$1,\"bscr\",IF(L7=\"Yes\",\"1\", \"0\"))","v":"Mapped"},null,null,null,null,null,null,null,null,null,"bma_RiskIdentificationPractice"]
[]
[null,"If \"Y\", identify the stage of each Operational Risk Area and input an \"X\" in the appropriate grid under each area."]
[]
[null,"Risk Identification Processes are:"]
[]
[null,"Progression",null,"Dimension","Operational Risk Areas"]
[null,"Stage","Scoring",null,"Fraud","Human Resources","Outsourcing","Distribution Channels","Business Processes","Business Continuity","Information Systems","Compliance","Total (Si)",null,null,null,null,null,null,null,null,null,null,null,null,null,"bma_RiskIdentificationFraudAbstract","bma_RiskIdentificationHumanResourcesAbstract","bma_RiskIdentificationOutsourcingAbstract","bma_RiskIdentificationDistributionChannelsAbstract","bma_RiskIdentificationBusinessProcessesAbstract","bma_RiskIdentificationBusinessContinuityAbstract","bma_RiskIdentificationInformationSystemsAbstract","bma_RiskIdentificationComplianceAbstract","bma_RiskIdentificationTotalAbstract"]
[null,1,50,"“ad hoc”",null,null,null,null,null,null,null,null,null,null,null,"brrt_OperationalRiskAreaStageAxis_brrt_Stage1Member",null,null,null,null,null,null,null,null,null,null,"bma_RiskIdentificationFraudStage1","bma_RiskIdentificationHumanResourcesStage1","bma_RiskIdentificationOutsourcingStage1","bma_RiskIdentificationDistributionChannelsStage1","bma_RiskIdentificationBusinessProcessesStage1","bma_RiskIdentificationBusinessContinuityStage1","bma_RiskIdentificationInformationSystemsStage1","bma_RiskIdentificationComplianceStage1","bma_RiskIdentificationTotalStage1"]
[null,2,100,"Implemented but not standardized across the organization",null,null,null,null,null,null,null,null,null,null,null,"brrt_OperationalRiskAreaStageAxis_brrt_Stage2Member",null,null,null,null,null,null,null,null,null,null,"bma_RiskIdentificationFraudStage2","bma_RiskIdentificationHumanResourcesStage2","bma_RiskIdentificationOutsourcingStage2","bma_RiskIdentificationDistributionChannelsStage2","bma_RiskIdentificationBusinessProcessesStage2","bma_RiskIdentificationBusinessContinuityStage2","bma_RiskIdentificationInformationSystemsStage2","bma_RiskIdentificationComplianceStage2","bma_RiskIdentificationTotalStage2"]
[null,3,150,"Implemented, well documented policies and procedures that are understood by relevant staff, and standardized across the entire organization",null,null,null,null,null,null,null,null,null,null,null,"brrt_OperationalRiskAreaStageAxis_brrt_Stage3Member",null,null,null,null,null,null,null,null,null,null,"bma_RiskIdentificationFraudStage3","bma_RiskIdentificationHumanResourcesStage3","bma_RiskIdentificationOutsourcingStage3","bma_RiskIdentificationDistributionChannelsStage3","bma_RiskIdentificationBusinessProcessesStage3","bma_RiskIdentificationBusinessContinuityStage3","bma_RiskIdentificationInformationSystemsStage3","bma_RiskIdentificationComplianceStage3","bma_RiskIdentificationTotalStage3"]
[null,4,200,"In addition to Stage 3, processes are reviewed at least annually with the view to assessing effectiveness and introducing improvements",null,null,null,null,null,null,null,null,null,null,null,"brrt_OperationalRiskAreaStageAxis_brrt_Stage4Member",null,null,null,null,null,null,null,null,null,null,"bma_RiskIdentificationFraudStage4","bma_RiskIdentificationHumanResourcesStage4","bma_RiskIdentificationOutsourcingStage4","bma_RiskIdentificationDistributionChannelsStage4","bma_RiskIdentificationBusinessProcessesStage4","bma_RiskIdentificationBusinessContinuityStage4","bma_RiskIdentificationInformationSystemsStage4","bma_RiskIdentificationComplianceStage4","bma_RiskIdentificationTotalStage4"]
[null,null,null,null,{"$f":"IF(COUNTA(E15:E18)=0,Import!$I11291,IF(E15=\"X\", 50, IF(E16=\"X\", 100, IF(E17=\"X\", 150, IF(E18=\"X\", 200, 0)))))","v":0},{"$f":"IF(COUNTA(F15:F18)=0,Import!$I11292,IF(F15=\"X\", 50, IF(F16=\"X\", 100, IF(F17=\"X\", 150, IF(F18=\"X\", 200, 0)))))","v":0},{"$f":"IF(COUNTA(G15:G18)=0,Import!$I11293,IF(G15=\"X\", 50, IF(G16=\"X\", 100, IF(G17=\"X\", 150, IF(G18=\"X\", 200, 0)))))","v":0},{"$f":"IF(COUNTA(H15:H18)=0,Import!$I11294,IF(H15=\"X\", 50, IF(H16=\"X\", 100, IF(H17=\"X\", 150, IF(H18=\"X\", 200, 0)))))","v":0},{"$f":"IF(COUNTA(I15:I18)=0,Import!$I11295,IF(I15=\"X\", 50, IF(I16=\"X\", 100, IF(I17=\"X\", 150, IF(I18=\"X\", 200, 0)))))","v":0},{"$f":"IF(COUNTA(J15:J18)=0,Import!$I11296,IF(J15=\"X\", 50, IF(J16=\"X\", 100, IF(J17=\"X\", 150, IF(J18=\"X\", 200, 0)))))","v":0},{"$f":"IF(COUNTA(K15:K18)=0,Import!$I11297,IF(K15=\"X\", 50, IF(K16=\"X\", 100, IF(K17=\"X\", 150, IF(K18=\"X\", 200, 0)))))","v":0},{"$f":"IF(COUNTA(L15:L18)=0,Import!$I11298,IF(L15=\"X\", 50, IF(L16=\"X\", 100, IF(L17=\"X\", 150, IF(L18=\"X\", 200, 0)))))","v":0},{"$f":"SUM(E19:L19)","v":0},{"$f":"IF(M19>1600, \"ERR\", \"OK\")","v":"OK"},null,null,null,null,null,null,null,null,null,null,null,null,"bma_RiskIdentificationFraudTotal","bma_RiskIdentificationHumanResourcesTotal","bma_RiskIdentificationOutsourcingTotal","bma_RiskIdentificationDistributionChannelsTotal","bma_RiskIdentificationBusinessProcessesTotal","bma_RiskIdentificationBusinessContinuityTotal","bma_RiskIdentificationInformationSystemsTotal","bma_RiskIdentificationComplianceTotal","bma_RiskIdentificationTotalTotal"]
[]
[null,"Comments (optionally, the insurer may provide comments in the box below to support its responses above):"]
[null,null,null,null,null,null,null,null,null,null,null,null,null,null,null,"brrt_AdditionalComments",{"$f":"XBRLMap(B22,P22&\".\"&P2,$E$25,$E$26,CONFIGURATION!$B$10,\"BMA\",CONFIGURATION!$B$1,\"bscr\")","v":"Mapped"},null,null,null,null,null,null,null,null,null,"bma_RiskIdentificationComment"]
[]
[null,null,null,null,"brrt_Fraud","brrt_HumanResources","brrt_Outsourcing","brrt_DistributionChannels","brrt_BusinessProcesses","brrt_BusinessContinuity","brrt_InformationSystems","brrt_Compliance"]
[null,null,null,null,{"$f":"IF($B$3=\"\",\"\",TEXT(DATE(YEAR($B$3+1)-1,MONTH($B$3+1),DAY($B$3+1)),\"mm/dd/yyyy\"))","v":"01/01/2019"},{"$f":"IF($B$3=\"\",\"\",TEXT(DATE(YEAR($B$3+1)-1,MONTH($B$3+1),DAY($B$3+1)),\"mm/dd/yyyy\"))","v":"01/01/2019"},"01/01/2019","01/01/2019","01/01/2019","01/01/2019","01/01/2019","01/01/2019"]
[null,null,null,null,{"$f":"IF($B$3=\"\",\"\",TEXT($B$3,\"mm/dd/yyyy\"))","v":"12/31/2019"},{"$f":"IF($B$3=\"\",\"\",TEXT($B$3,\"mm/dd/yyyy\"))","v":"12/31/2019"},"12/31/2019","12/31/2019","12/31/2019","12/31/2019","12/31/2019","12/31/2019"]
[null,null,null,null,{"$f":"XBRLMapBoolean(E15,E$24&\".\"&$P15&\".\"&$P$2,E$25,E$26,CONFIGURATION!$B$10,\"BMA\",CONFIGURATION!$B$1,\"bscr\",IF(OR(E15=\"X\",E15=\"x\"),\"1\", \"0\"))","v":"Mapped"},{"$f":"XBRLMapBoolean(F15,F$24&\".\"&$P15&\".\"&$P$2,F$25,F$26,CONFIGURATION!$B$10,\"BMA\",CONFIGURATION!$B$1,\"bscr\",IF(OR(F15=\"X\",F15=\"x\"),\"1\", \"0\"))","v":"Mapped"},{"$f":"XBRLMapBoolean(G15,G$24&\".\"&$P15&\".\"&$P$2,G$25,G$26,CONFIGURATION!$B$10,\"BMA\",CONFIGURATION!$B$1,\"bscr\",IF(OR(G15=\"X\",G15=\"x\"),\"1\", \"0\"))","v":"Mapped"},{"$f":"XBRLMapBoolean(H15,H$24&\".\"&$P15&\".\"&$P$2,H$25,H$26,CONFIGURATION!$B$10,\"BMA\",CONFIGURATION!$B$1,\"bscr\",IF(OR(H15=\"X\",H15=\"x\"),\"1\", \"0\"))","v":"Mapped"},{"$f":"XBRLMapBoolean(I15,I$24&\".\"&$P15&\".\"&$P$2,I$25,I$26,CONFIGURATION!$B$10,\"BMA\",CONFIGURATION!$B$1,\"bscr\",IF(OR(I15=\"X\",I15=\"x\"),\"1\", \"0\"))","v":"Mapped"},{"$f":"XBRLMapBoolean(J15,J$24&\".\"&$P15&\".\"&$P$2,J$25,J$26,CONFIGURATION!$B$10,\"BMA\",CONFIGURATION!$B$1,\"bscr\",IF(OR(J15=\"X\",J15=\"x\"),\"1\", \"0\"))","v":"Mapped"},{"$f":"XBRLMapBoolean(K15,K$24&\".\"&$P15&\".\"&$P$2,K$25,K$26,CONFIGURATION!$B$10,\"BMA\",CONFIGURATION!$B$1,\"bscr\",IF(OR(K15=\"X\",K15=\"x\"),\"1\", \"0\"))","v":"Mapped"},{"$f":"XBRLMapBoolean(L15,L$24&\".\"&$P15&\".\"&$P$2,L$25,L$26,CONFIGURATION!$B$10,\"BMA\",CONFIGURATION!$B$1,\"bscr\",IF(OR(L15=\"X\",L15=\"x\"),\"1\", \"0\"))","v":"Mapped"}]
[null,null,null,null,{"$f":"XBRLMapBoolean(E16,E$24&\".\"&$P16&\".\"&$P$2,E$25,E$26,CONFIGURATION!$B$10,\"BMA\",CONFIGURATION!$B$1,\"bscr\",IF(OR(E16=\"X\",E16=\"x\"),\"1\", \"0\"))","v":"Mapped"},{"$f":"XBRLMapBoolean(F16,F$24&\".\"&$P16&\".\"&$P$2,F$25,F$26,CONFIGURATION!$B$10,\"BMA\",CONFIGURATION!$B$1,\"bscr\",IF(OR(F16=\"X\",F16=\"x\"),\"1\", \"0\"))","v":"Mapped"},{"$f":"XBRLMapBoolean(G16,G$24&\".\"&$P16&\".\"&$P$2,G$25,G$26,CONFIGURATION!$B$10,\"BMA\",CONFIGURATION!$B$1,\"bscr\",IF(OR(G16=\"X\",G16=\"x\"),\"1\", \"0\"))","v":"Mapped"},{"$f":"XBRLMapBoolean(H16,H$24&\".\"&$P16&\".\"&$P$2,H$25,H$26,CONFIGURATION!$B$10,\"BMA\",CONFIGURATION!$B$1,\"bscr\",IF(OR(H16=\"X\",H16=\"x\"),\"1\", \"0\"))","v":"Mapped"},{"$f":"XBRLMapBoolean(I16,I$24&\".\"&$P16&\".\"&$P$2,I$25,I$26,CONFIGURATION!$B$10,\"BMA\",CONFIGURATION!$B$1,\"bscr\",IF(OR(I16=\"X\",I16=\"x\"),\"1\", \"0\"))","v":"Mapped"},{"$f":"XBRLMapBoolean(J16,J$24&\".\"&$P16&\".\"&$P$2,J$25,J$26,CONFIGURATION!$B$10,\"BMA\",CONFIGURATION!$B$1,\"bscr\",IF(OR(J16=\"X\",J16=\"x\"),\"1\", \"0\"))","v":"Mapped"},{"$f":"XBRLMapBoolean(K16,K$24&\".\"&$P16&\".\"&$P$2,K$25,K$26,CONFIGURATION!$B$10,\"BMA\",CONFIGURATION!$B$1,\"bscr\",IF(OR(K16=\"X\",K16=\"x\"),\"1\", \"0\"))","v":"Mapped"},{"$f":"XBRLMapBoolean(L16,L$24&\".\"&$P16&\".\"&$P$2,L$25,L$26,CONFIGURATION!$B$10,\"BMA\",CONFIGURATION!$B$1,\"bscr\",IF(OR(L16=\"X\",L16=\"x\"),\"1\", \"0\"))","v":"Mapped"}]
[null,null,null,null,{"$f":"XBRLMapBoolean(E17,E$24&\".\"&$P17&\".\"&$P$2,E$25,E$26,CONFIGURATION!$B$10,\"BMA\",CONFIGURATION!$B$1,\"bscr\",IF(OR(E17=\"X\",E17=\"x\"),\"1\", \"0\"))","v":"Mapped"},{"$f":"XBRLMapBoolean(F17,F$24&\".\"&$P17&\".\"&$P$2,F$25,F$26,CONFIGURATION!$B$10,\"BMA\",CONFIGURATION!$B$1,\"bscr\",IF(OR(F17=\"X\",F17=\"x\"),\"1\", \"0\"))","v":"Mapped"},{"$f":"XBRLMapBoolean(G17,G$24&\".\"&$P17&\".\"&$P$2,G$25,G$26,CONFIGURATION!$B$10,\"BMA\",CONFIGURATION!$B$1,\"bscr\",IF(OR(G17=\"X\",G17=\"x\"),\"1\", \"0\"))","v":"Mapped"},{"$f":"XBRLMapBoolean(H17,H$24&\".\"&$P17&\".\"&$P$2,H$25,H$26,CONFIGURATION!$B$10,\"BMA\",CONFIGURATION!$B$1,\"bscr\",IF(OR(H17=\"X\",H17=\"x\"),\"1\", \"0\"))","v":"Mapped"},{"$f":"XBRLMapBoolean(I17,I$24&\".\"&$P17&\".\"&$P$2,I$25,I$26,CONFIGURATION!$B$10,\"BMA\",CONFIGURATION!$B$1,\"bscr\",IF(OR(I17=\"X\",I17=\"x\"),\"1\", \"0\"))","v":"Mapped"},{"$f":"XBRLMapBoolean(J17,J$24&\".\"&$P17&\".\"&$P$2,J$25,J$26,CONFIGURATION!$B$10,\"BMA\",CONFIGURATION!$B$1,\"bscr\",IF(OR(J17=\"X\",J17=\"x\"),\"1\", \"0\"))","v":"Mapped"},{"$f":"XBRLMapBoolean(K17,K$24&\".\"&$P17&\".\"&$P$2,K$25,K$26,CONFIGURATION!$B$10,\"BMA\",CONFIGURATION!$B$1,\"bscr\",IF(OR(K17=\"X\",K17=\"x\"),\"1\", \"0\"))","v":"Mapped"},{"$f":"XBRLMapBoolean(L17,L$24&\".\"&$P17&\".\"&$P$2,L$25,L$26,CONFIGURATION!$B$10,\"BMA\",CONFIGURATION!$B$1,\"bscr\",IF(OR(L17=\"X\",L17=\"x\"),\"1\", \"0\"))","v":"Mapped"}]
[null,null,null,null,{"$f":"XBRLMapBoolean(E18,E$24&\".\"&$P18&\".\"&$P$2,E$25,E$26,CONFIGURATION!$B$10,\"BMA\",CONFIGURATION!$B$1,\"bscr\",IF(OR(E18=\"X\",E18=\"x\"),\"1\", \"0\"))","v":"Mapped"},{"$f":"XBRLMapBoolean(F18,F$24&\".\"&$P18&\".\"&$P$2,F$25,F$26,CONFIGURATION!$B$10,\"BMA\",CONFIGURATION!$B$1,\"bscr\",IF(OR(F18=\"X\",F18=\"x\"),\"1\", \"0\"))","v":"Mapped"},{"$f":"XBRLMapBoolean(G18,G$24&\".\"&$P18&\".\"&$P$2,G$25,G$26,CONFIGURATION!$B$10,\"BMA\",CONFIGURATION!$B$1,\"bscr\",IF(OR(G18=\"X\",G18=\"x\"),\"1\", \"0\"))","v":"Mapped"},{"$f":"XBRLMapBoolean(H18,H$24&\".\"&$P18&\".\"&$P$2,H$25,H$26,CONFIGURATION!$B$10,\"BMA\",CONFIGURATION!$B$1,\"bscr\",IF(OR(H18=\"X\",H18=\"x\"),\"1\", \"0\"))","v":"Mapped"},{"$f":"XBRLMapBoolean(I18,I$24&\".\"&$P18&\".\"&$P$2,I$25,I$26,CONFIGURATION!$B$10,\"BMA\",CONFIGURATION!$B$1,\"bscr\",IF(OR(I18=\"X\",I18=\"x\"),\"1\", \"0\"))","v":"Mapped"},{"$f":"XBRLMapBoolean(J18,J$24&\".\"&$P18&\".\"&$P$2,J$25,J$26,CONFIGURATION!$B$10,\"BMA\",CONFIGURATION!$B$1,\"bscr\",IF(OR(J18=\"X\",J18=\"x\"),\"1\", \"0\"))","v":"Mapped"},{"$f":"XBRLMapBoolean(K18,K$24&\".\"&$P18&\".\"&$P$2,K$25,K$26,CONFIGURATION!$B$10,\"BMA\",CONFIGURATION!$B$1,\"bscr\",IF(OR(K18=\"X\",K18=\"x\"),\"1\", \"0\"))","v":"Mapped"},{"$f":"XBRLMapBoolean(L18,L$24&\".\"&$P18&\".\"&$P$2,L$25,L$26,CONFIGURATION!$B$10,\"BMA\",CONFIGURATION!$B$1,\"bscr\",IF(OR(L18=\"X\",L18=\"x\"),\"1\", \"0\"))","v":"Mapped"}]
[null,null,null,null,"brrt_FraudScore","brrt_HumanResourcesScore","brrt_OutsourcingScore","brrt_DistributionChannelsScore","brrt_BusinessProcessesScore","brrt_BusinessContinuityScore","brrt_InformationSystemsScore","brrt_ComplianceScore","brrt_OperationalRiskScore"]
[null,null,null,null,{"$f":"XBRLMap(E19,E$31&\".\"&$P$2&\".\"&$P$3,$E$25,$E$26,CONFIGURATION!$B$10,\"BMA\",CONFIGURATION!$B$1,\"bscr\")","v":"Mapped"},{"$f":"XBRLMap(F19,F$31&\".\"&$P$2&\".\"&$P$3,$E$25,$E$26,CONFIGURATION!$B$10,\"BMA\",CONFIGURATION!$B$1,\"bscr\")","v":"Mapped"},{"$f":"XBRLMap(G19,G$31&\".\"&$P$2&\".\"&$P$3,$E$25,$E$26,CONFIGURATION!$B$10,\"BMA\",CONFIGURATION!$B$1,\"bscr\")","v":"Mapped"},{"$f":"XBRLMap(H19,H$31&\".\"&$P$2&\".\"&$P$3,$E$25,$E$26,CONFIGURATION!$B$10,\"BMA\",CONFIGURATION!$B$1,\"bscr\")","v":"Mapped"},{"$f":"XBRLMap(I19,I$31&\".\"&$P$2&\".\"&$P$3,$E$25,$E$26,CONFIGURATION!$B$10,\"BMA\",CONFIGURATION!$B$1,\"bscr\")","v":"Mapped"},{"$f":"XBRLMap(J19,J$31&\".\"&$P$2&\".\"&$P$3,$E$25,$E$26,CONFIGURATION!$B$10,\"BMA\",CONFIGURATION!$B$1,\"bscr\")","v":"Mapped"},{"$f":"XBRLMap(K19,K$31&\".\"&$P$2&\".\"&$P$3,$E$25,$E$26,CONFIGURATION!$B$10,\"BMA\",CONFIGURATION!$B$1,\"bscr\")","v":"Mapped"},{"$f":"XBRLMap(L19,L$31&\".\"&$P$2&\".\"&$P$3,$E$25,$E$26,CONFIGURATION!$B$10,\"BMA\",CONFIGURATION!$B$1,\"bscr\")","v":"Mapped"},{"$f":"XBRLMap(M19,M$31&\".\"&$P$2&\".\"&$P$3,$E$25,$E$26,CONFIGURATION!$B$10,\"BMA\",CONFIGURATION!$B$1,\"bscr\")","v":"Mapped"}]
[]
[]
[]
[]
[]
[]
[null,null,null,null,"Yes"]
[null,null,null,null,"No"]

{"sheet":"Measurement","index":97,"n_rows":40,"n_cols":35,"rows_kept":40,"cut":false,"hidden":false,"merged":[[1,1,1,3],[2,1,2,2],[20,1,20,7],[21,1,23,12],[4,1,4,12],[6,10,6,11],[12,1,12,2],[12,3,13,3],[12,4,12,12]]}
[null,"RISK MEASUREMENT",null,null,null,null,null,null,null,null,null,null,{"$f":"HYPERLINK(\"#'Index'!A1\",\"Return to Index\")","v":"Return to Index"},null,null,null,null,null,null,null,null,null,null,null,null,null,"bma_RiskMeasurementAbstract"]
[null,{"$f":"'Company Information'!C7","v":"Enter Company Name"},null,null,null,null,null,null,null,null,null,null,null,null,null,"brrt_OperationalRiskAreaActionAxis_brrt_MeasurementMember"]
[null,{"$f":"'Form 1EBS'!C3","v":"2019-12-31"},null,null,null,null,null,null,null,null,null,null,null,null,null,"brrt_OperationalRiskAreaStageAxis_brrt_TotalMember"]
[]
[null,"The insurer is to answer the following question.  If the answer to the question is \"No\" then the insurer does not have to complete the matrix/grid.  If the answer to the question is \"Yes\" then the insurer is to identify the stage of progression of each Operational Risk Area based upon the Dimension descriptor.  The insurer is then to input an “X” in the grid corresponding to the stage in the matrix table under the relevant Operational Risk Area."]
[]
[null,"Has your company taken steps to measure material risks arising from the Operational Risk Areas identified below? (Y/N) ",null,null,null,null,null,null,null,null,null,null,null,null,null,"brrt_StepsHaveBeenTakenToMeasureMaterialRisksArisingFromOperationalRiskAreasIdentified",null,null,null,null,null,null,null,null,null,null,"bma_RiskMeasurementPractice"]
[]
[null,"If \"Y\", identify the stage of each Operational Risk Area and input an \"X\" in the appropriate grid under each area."]
[]
[null,"Risk Measurement processes are:"]
[]
[null,"Progression",null,"Dimension","Operational Risk Areas"]
[null,"Stage","Scoring",null,"Fraud","Human Resources","Outsourcing","Distribution Channels","Business Processes","Business Continuity","Information Systems","Compliance","Total (Si)",null,null,null,null,null,null,null,null,null,null,null,null,null,"bma_RiskMeasurementFraudAbstract","bma_RiskMeasurementHumanResourcesAbstract","bma_RiskMeasurementOutsourcingAbstract","bma_RiskMeasurementDistributionChannelsAbstract","bma_RiskMeasurementBusinessProcessesAbstract","bma_RiskMeasurementBusinessContinuityAbstract","bma_RiskMeasurementInformationSystemsAbstract","bma_RiskMeasurementComplianceAbstract","bma_RiskMeasurementTotalAbstract"]
[null,1,50,"“ad hoc”",null,null,null,null,null,null,null,null,null,null,null,"brrt_OperationalRiskAreaStageAxis_brrt_Stage1Member",null,null,null,null,null,null,null,null,null,null,"bma_RiskMeasurementFraudStage1","bma_RiskMeasurementHumanResourcesStage1","bma_RiskMeasurementOutsourcingStage1","bma_RiskMeasurementDistributionChannelsStage1","bma_RiskMeasurementBusinessProcessesStage1","bma_RiskMeasurementBusinessContinuityStage1","bma_RiskMeasurementInformationSystemsStage1","bma_RiskMeasurementComplianceStage1","bma_RiskMeasurementTotalStage1"]
[null,2,100,"Implemented but not standardized across the organization",null,null,null,null,null,null,null,null,null,null,null,"brrt_OperationalRiskAreaStageAxis_brrt_Stage2Member",null,null,null,null,null,null,null,null,null,null,"bma_RiskMeasurementFraudStage2","bma_RiskMeasurementHumanResourcesStage2","bma_RiskMeasurementOutsourcingStage2","bma_RiskMeasurementDistributionChannelsStage2","bma_RiskMeasurementBusinessProcessesStage2","bma_RiskMeasurementBusinessContinuityStage2","bma_RiskMeasurementInformationSystemsStage2","bma_RiskMeasurementComplianceStage2","bma_RiskMeasurementTotalStage2"]
[null,3,150,"Implemented, well documented policies and procedures that are understood by relevant staff, and standardized across the entire organization",null,null,null,null,null,null,null,null,null,null,null,"brrt_OperationalRiskAreaStageAxis_brrt_Stage3Member",null,null,null,null,null,null,null,null,null,null,"bma_RiskMeasurementFraudStage3","bma_RiskMeasurementHumanResourcesStage3","bma_RiskMeasurementOutsourcingStage3","bma_RiskMeasurementDistributionChannelsStage3","bma_RiskMeasurementBusinessProcessesStage3","bma_RiskMeasurementBusinessContinuityStage3","bma_RiskMeasurementInformationSystemsStage3","bma_RiskMeasurementComplianceStage3","bma_RiskMeasurementTotalStage3"]
[null,4,200,"In addition to Stage 3, processes are reviewed at least annually with the view to assessing effectiveness and introducing improvements",null,null,null,null,null,null,null,null,null,null,null,"brrt_OperationalRiskAreaStageAxis_brrt_Stage4Member",null,null,null,null,null,null,null,null,null,null,"bma_RiskMeasurementFraudStage4","bma_RiskMeasurementHumanResourcesStage4","bma_RiskMeasurementOutsourcingStage4","bma_RiskMeasurementDistributionChannelsStage4","bma_RiskMeasurementBusinessProcessesStage4","bma_RiskMeasurementBusinessContinuityStage4","bma_RiskMeasurementInformationSystemsStage4","bma_RiskMeasurementComplianceStage4","bma_RiskMeasurementTotalStage4"]
[null,null,null,null,{"$f":"IF(COUNTA(E15:E18)=0,Import!$I11299,IF(E15=\"X\", 50, IF(E16=\"X\", 100, IF(E17=\"X\", 150, IF(E18=\"X\", 200, 0)))))","v":0},{"$f":"IF(COUNTA(F15:F18)=0,Import!$I11300,IF(E15=\"X\", 50, IF(F16=\"X\", 100, IF(F17=\"X\", 150, IF(F18=\"X\", 200, 0)))))","v":0},{"$f":"IF(COUNTA(G15:G18)=0,Import!$I11301,IF(G15=\"X\", 50, IF(G16=\"X\", 100, IF(G17=\"X\", 150, IF(G18=\"X\", 200, 0)))))","v":0},{"$f":"IF(COUNTA(H15:H18)=0,Import!$I11302,IF(H15=\"X\", 50, IF(H16=\"X\", 100, IF(H17=\"X\", 150, IF(H18=\"X\", 200, 0)))))","v":0},{"$f":"IF(COUNTA(I15:I18)=0,Import!$I11303,IF(I15=\"X\", 50, IF(I16=\"X\", 100, IF(I17=\"X\", 150, IF(I18=\"X\", 200, 0)))))","v":0},{"$f":"IF(COUNTA(J15:J18)=0,Import!$I11304,IF(J15=\"X\", 50, IF(J16=\"X\", 100, IF(J17=\"X\", 150, IF(J18=\"X\", 200, 0)))))","v":0},{"$f":"IF(COUNTA(K15:K18)=0,Import!$I11305,IF(K15=\"X\", 50, IF(K16=\"X\", 100, IF(K17=\"X\", 150, IF(K18=\"X\", 200, 0)))))","v":0},{"$f":"IF(COUNTA(L15:L18)=0,Import!$I11306,IF(L15=\"X\", 50, IF(L16=\"X\", 100, IF(L17=\"X\", 150, IF(L18=\"X\", 200, 0)))))","v":0},{"$f":"SUM(E19:L19)","v":0},{"$f":"IF(M19>1600, \"ERR\", \"OK\")","v":"OK"},null,null,null,null,null,null,null,null,null,null,null,null,"bma_RiskMeasurementFraudTotal","bma_RiskMeasurementHumanResourcesTotal","bma_RiskMeasurementOutsourcingTotal","bma_RiskMeasurementDistributionChannelsTotal","bma_RiskMeasurementBusinessProcessesTotal","bma_RiskMeasurementBusinessContinuityTotal","bma_RiskMeasurementInformationSystemsTotal","bma_RiskMeasurementComplianceTotal","bma_RiskMeasurementTotalTotal"]
[]
[null,"Comments (optionally, the insurer may provide comments in the box below to support its responses above):"]
[null,null,null,null,null,null,null,null,null,null,null,null,null,null,null,"brrt_AdditionalComments",null,null,null,null,null,null,null,null,null,null,"bma_RiskMeasurementComment"]
[]
[]
[]
[null,null,null,null,"brrt_Fraud","brrt_HumanResources","brrt_Outsourcing","brrt_DistributionChannels","brrt_BusinessProcesses","brrt_BusinessContinuity","brrt_InformationSystems","brrt_Compliance"]
[null,null,null,null,{"$f":"IF($B$3=\"\",\"\",TEXT(DATE(YEAR($B$3+1)-1,MONTH($B$3+1),DAY($B$3+1)),\"mm/dd/yyyy\"))","v":"01/01/2019"},{"$f":"IF($B$3=\"\",\"\",TEXT(DATE(YEAR($B$3+1)-1,MONTH($B$3+1),DAY($B$3+1)),\"mm/dd/yyyy\"))","v":"01/01/2019"},"01/01/2019","01/01/2019","01/01/2019","01/01/2019","01/01/2019","01/01/2019","01/01/2019"]
[null,null,null,null,{"$f":"IF($B$3=\"\",\"\",TEXT($B$3,\"mm/dd/yyyy\"))","v":"12/31/2019"},{"$f":"IF($B$3=\"\",\"\",TEXT($B$3,\"mm/dd/yyyy\"))","v":"12/31/2019"},"12/31/2019","12/31/2019","12/31/2019","12/31/2019","12/31/2019","12/31/2019","12/31/2019"]
[null,null,null,null,{"$f":"XBRLMapBoolean(E15,E$26&\".\"&$P15&\".\"&$P$2,E$27,E$28,CONFIGURATION!$B$10,\"BMA\",CONFIGURATION!$B$1,\"bscr\",IF(OR(E15=\"X\",E15=\"x\"),\"1\", \"0\"))","v":"Mapped"},{"$f":"XBRLMapBoolean(F15,F$26&\".\"&$P15&\".\"&$P$2,F$27,F$28,CONFIGURATION!$B$10,\"BMA\",CONFIGURATION!$B$1,\"bscr\",IF(OR(F15=\"X\",F15=\"x\"),\"1\", \"0\"))","v":"Mapped"},{"$f":"XBRLMapBoolean(G15,G$26&\".\"&$P15&\".\"&$P$2,G$27,G$28,CONFIGURATION!$B$10,\"BMA\",CONFIGURATION!$B$1,\"bscr\",IF(OR(G15=\"X\",G15=\"x\"),\"1\", \"0\"))","v":"Mapped"},{"$f":"XBRLMapBoolean(H15,H$26&\".\"&$P15&\".\"&$P$2,H$27,H$28,CONFIGURATION!$B$10,\"BMA\",CONFIGURATION!$B$1,\"bscr\",IF(OR(H15=\"X\",H15=\"x\"),\"1\", \"0\"))","v":"Mapped"},{"$f":"XBRLMapBoolean(I15,I$26&\".\"&$P15&\".\"&$P$2,I$27,I$28,CONFIGURATION!$B$10,\"BMA\",CONFIGURATION!$B$1,\"bscr\",IF(OR(I15=\"X\",I15=\"x\"),\"1\", \"0\"))","v":"Mapped"},{"$f":"XBRLMapBoolean(J15,J$26&\".\"&$P15&\".\"&$P$2,J$27,J$28,CONFIGURATION!$B$10,\"BMA\",CONFIGURATION!$B$1,\"bscr\",IF(OR(J15=\"X\",J15=\"x\"),\"1\", \"0\"))","v":"Mapped"},{"$f":"XBRLMapBoolean(K15,K$26&\".\"&$P15&\".\"&$P$2,K$27,K$28,CONFIGURATION!$B$10,\"BMA\",CONFIGURATION!$B$1,\"bscr\",IF(OR(K15=\"X\",K15=\"x\"),\"1\", \"0\"))","v":"Mapped"},{"$f":"XBRLMapBoolean(L15,L$26&\".\"&$P15&\".\"&$P$2,L$27,L$28,CONFIGURATION!$B$10,\"BMA\",CONFIGURATION!$B$1,\"bscr\",IF(OR(L15=\"X\",L15=\"x\"),\"1\", \"0\"))","v":"Mapped"}]
[null,null,null,null,{"$f":"XBRLMapBoolean(E16,E$26&\".\"&$P16&\".\"&$P$2,E$27,E$28,CONFIGURATION!$B$10,\"BMA\",CONFIGURATION!$B$1,\"bscr\",IF(OR(E16=\"X\",E16=\"x\"),\"1\", \"0\"))","v":"Mapped"},{"$f":"XBRLMapBoolean(F16,F$26&\".\"&$P16&\".\"&$P$2,F$27,F$28,CONFIGURATION!$B$10,\"BMA\",CONFIGURATION!$B$1,\"bscr\",IF(OR(F16=\"X\",F16=\"x\"),\"1\", \"0\"))","v":"Mapped"},{"$f":"XBRLMapBoolean(G16,G$26&\".\"&$P16&\".\"&$P$2,G$27,G$28,CONFIGURATION!$B$10,\"BMA\",CONFIGURATION!$B$1,\"bscr\",IF(OR(G16=\"X\",G16=\"x\"),\"1\", \"0\"))","v":"Mapped"},{"$f":"XBRLMapBoolean(H16,H$26&\".\"&$P16&\".\"&$P$2,H$27,H$28,CONFIGURATION!$B$10,\"BMA\",CONFIGURATION!$B$1,\"bscr\",IF(OR(H16=\"X\",H16=\"x\"),\"1\", \"0\"))","v":"Mapped"},{"$f":"XBRLMapBoolean(I16,I$26&\".\"&$P16&\".\"&$P$2,I$27,I$28,CONFIGURATION!$B$10,\"BMA\",CONFIGURATION!$B$1,\"bscr\",IF(OR(I16=\"X\",I16=\"x\"),\"1\", \"0\"))","v":"Mapped"},{"$f":"XBRLMapBoolean(J16,J$26&\".\"&$P16&\".\"&$P$2,J$27,J$28,CONFIGURATION!$B$10,\"BMA\",CONFIGURATION!$B$1,\"bscr\",IF(OR(J16=\"X\",J16=\"x\"),\"1\", \"0\"))","v":"Mapped"},{"$f":"XBRLMapBoolean(K16,K$26&\".\"&$P16&\".\"&$P$2,K$27,K$28,CONFIGURATION!$B$10,\"BMA\",CONFIGURATION!$B$1,\"bscr\",IF(OR(K16=\"X\",K16=\"x\"),\"1\", \"0\"))","v":"Mapped"},{"$f":"XBRLMapBoolean(L16,L$26&\".\"&$P16&\".\"&$P$2,L$27,L$28,CONFIGURATION!$B$10,\"BMA\",CONFIGURATION!$B$1,\"bscr\",IF(OR(L16=\"X\",L16=\"x\"),\"1\", \"0\"))","v":"Mapped"}]
[null,null,null,null,{"$f":"XBRLMapBoolean(E17,E$26&\".\"&$P17&\".\"&$P$2,E$27,E$28,CONFIGURATION!$B$10,\"BMA\",CONFIGURATION!$B$1,\"bscr\",IF(OR(E17=\"X\",E17=\"x\"),\"1\", \"0\"))","v":"Mapped"},{"$f":"XBRLMapBoolean(F17,F$26&\".\"&$P17&\".\"&$P$2,F$27,F$28,CONFIGURATION!$B$10,\"BMA\",CONFIGURATION!$B$1,\"bscr\",IF(OR(F17=\"X\",F17=\"x\"),\"1\", \"0\"))","v":"Mapped"},{"$f":"XBRLMapBoolean(G17,G$26&\".\"&$P17&\".\"&$P$2,G$27,G$28,CONFIGURATION!$B$10,\"BMA\",CONFIGURATION!$B$1,\"bscr\",IF(OR(G17=\"X\",G17=\"x\"),\"1\", \"0\"))","v":"Mapped"},{"$f":"XBRLMapBoolean(H17,H$26&\".\"&$P17&\".\"&$P$2,H$27,H$28,CONFIGURATION!$B$10,\"BMA\",CONFIGURATION!$B$1,\"bscr\",IF(OR(H17=\"X\",H17=\"x\"),\"1\", \"0\"))","v":"Mapped"},{"$f":"XBRLMapBoolean(I17,I$26&\".\"&$P17&\".\"&$P$2,I$27,I$28,CONFIGURATION!$B$10,\"BMA\",CONFIGURATION!$B$1,\"bscr\",IF(OR(I17=\"X\",I17=\"x\"),\"1\", \"0\"))","v":"Mapped"},{"$f":"XBRLMapBoolean(J17,J$26&\".\"&$P17&\".\"&$P$2,J$27,J$28,CONFIGURATION!$B$10,\"BMA\",CONFIGURATION!$B$1,\"bscr\",IF(OR(J17=\"X\",J17=\"x\"),\"1\", \"0\"))","v":"Mapped"},{"$f":"XBRLMapBoolean(K17,K$26&\".\"&$P17&\".\"&$P$2,K$27,K$28,CONFIGURATION!$B$10,\"BMA\",CONFIGURATION!$B$1,\"bscr\",IF(OR(K17=\"X\",K17=\"x\"),\"1\", \"0\"))","v":"Mapped"},{"$f":"XBRLMapBoolean(L17,L$26&\".\"&$P17&\".\"&$P$2,L$27,L$28,CONFIGURATION!$B$10,\"BMA\",CONFIGURATION!$B$1,\"bscr\",IF(OR(L17=\"X\",L17=\"x\"),\"1\", \"0\"))","v":"Mapped"}]
[null,null,null,null,{"$f":"XBRLMapBoolean(E18,E$26&\".\"&$P18&\".\"&$P$2,E$27,E$28,CONFIGURATION!$B$10,\"BMA\",CONFIGURATION!$B$1,\"bscr\",IF(OR(E18=\"X\",E18=\"x\"),\"1\", \"0\"))","v":"Mapped"},{"$f":"XBRLMapBoolean(F18,F$26&\".\"&$P18&\".\"&$P$2,F$27,F$28,CONFIGURATION!$B$10,\"BMA\",CONFIGURATION!$B$1,\"bscr\",IF(OR(F18=\"X\",F18=\"x\"),\"1\", \"0\"))","v":"Mapped"},{"$f":"XBRLMapBoolean(G18,G$26&\".\"&$P18&\".\"&$P$2,G$27,G$28,CONFIGURATION!$B$10,\"BMA\",CONFIGURATION!$B$1,\"bscr\",IF(OR(G18=\"X\",G18=\"x\"),\"1\", \"0\"))","v":"Mapped"},{"$f":"XBRLMapBoolean(H18,H$26&\".\"&$P18&\".\"&$P$2,H$27,H$28,CONFIGURATION!$B$10,\"BMA\",CONFIGURATION!$B$1,\"bscr\",IF(OR(H18=\"X\",H18=\"x\"),\"1\", \"0\"))","v":"Mapped"},{"$f":"XBRLMapBoolean(I18,I$26&\".\"&$P18&\".\"&$P$2,I$27,I$28,CONFIGURATION!$B$10,\"BMA\",CONFIGURATION!$B$1,\"bscr\",IF(OR(I18=\"X\",I18=\"x\"),\"1\", \"0\"))","v":"Mapped"},{"$f":"XBRLMapBoolean(J18,J$26&\".\"&$P18&\".\"&$P$2,J$27,J$28,CONFIGURATION!$B$10,\"BMA\",CONFIGURATION!$B$1,\"bscr\",IF(OR(J18=\"X\",J18=\"x\"),\"1\", \"0\"))","v":"Mapped"},{"$f":"XBRLMapBoolean(K18,K$26&\".\"&$P18&\".\"&$P$2,K$27,K$28,CONFIGURATION!$B$10,\"BMA\",CONFIGURATION!$B$1,\"bscr\",IF(OR(K18=\"X\",K18=\"x\"),\"1\", \"0\"))","v":"Mapped"},{"$f":"XBRLMapBoolean(L18,L$26&\".\"&$P18&\".\"&$P$2,L$27,L$28,CONFIGURATION!$B$10,\"BMA\",CONFIGURATION!$B$1,\"bscr\",IF(OR(L18=\"X\",L18=\"x\"),\"1\", \"0\"))","v":"Mapped"}]
[]
[null,null,null,null,{"$f":"XBRLMapBoolean(K7,$P7&\".\"&$P2,$E$27,$E$28,CONFIGURATION!$B$10,\"BMA\",CONFIGURATION!$B$1,\"bscr\",IF(K7=\"Yes\",\"1\", \"0\"))","v":"Mapped"}]
[null,null,null,null,{"$f":"XBRLMap(B22,$P22&\".\"&$P2,$E$27,$E$28,CONFIGURATION!$B$10,\"BMA\",CONFIGURATION!$B$1,\"bscr\")","v":"Mapped"}]
[null,null,null,null,"brrt_FraudScore","brrt_HumanResourcesScore","brrt_OutsourcingScore","brrt_DistributionChannelsScore","brrt_BusinessProcessesScore","brrt_BusinessContinuityScore","brrt_InformationSystemsScore","brrt_ComplianceScore","brrt_OperationalRiskScore"]
[null,null,null,null,{"$f":"XBRLMap(E19,E$36&\".\"&$P$2&\".\"&$P$3,$E$27,$E$28,CONFIGURATION!$B$10,\"BMA\",CONFIGURATION!$B$1,\"bscr\")","v":"Mapped"},{"$f":"XBRLMap(F19,F$36&\".\"&$P$2&\".\"&$P$3,$E$27,$E$28,CONFIGURATION!$B$10,\"BMA\",CONFIGURATION!$B$1,\"bscr\")","v":"Mapped"},{"$f":"XBRLMap(G19,G$36&\".\"&$P$2&\".\"&$P$3,$E$27,$E$28,CONFIGURATION!$B$10,\"BMA\",CONFIGURATION!$B$1,\"bscr\")","v":"Mapped"},{"$f":"XBRLMap(H19,H$36&\".\"&$P$2&\".\"&$P$3,$E$27,$E$28,CONFIGURATION!$B$10,\"BMA\",CONFIGURATION!$B$1,\"bscr\")","v":"Mapped"},{"$f":"XBRLMap(I19,I$36&\".\"&$P$2&\".\"&$P$3,$E$27,$E$28,CONFIGURATION!$B$10,\"BMA\",CONFIGURATION!$B$1,\"bscr\")","v":"Mapped"},{"$f":"XBRLMap(J19,J$36&\".\"&$P$2&\".\"&$P$3,$E$27,$E$28,CONFIGURATION!$B$10,\"BMA\",CONFIGURATION!$B$1,\"bscr\")","v":"Mapped"},{"$f":"XBRLMap(K19,K$36&\".\"&$P$2&\".\"&$P$3,$E$27,$E$28,CONFIGURATION!$B$10,\"BMA\",CONFIGURATION!$B$1,\"bscr\")","v":"Mapped"},{"$f":"XBRLMap(L19,L$36&\".\"&$P$2&\".\"&$P$3,$E$27,$E$28,CONFIGURATION!$B$10,\"BMA\",CONFIGURATION!$B$1,\"bscr\")","v":"Mapped"},{"$f":"XBRLMap(M19,M$36&\".\"&$P$2&\".\"&$P$3,$E$27,$E$28,CONFIGURATION!$B$10,\"BMA\",CONFIGURATION!$B$1,\"bscr\")","v":"Mapped"}]
[]
[null,null,null,null,"Yes"]
[null,null,null,null,"No"]

{"sheet":"Response","index":98,"n_rows":40,"n_cols":35,"rows_kept":40,"cut":false,"hidden":false,"merged":[[2,1,2,2],[0,1,0,3],[20,1,20,7],[21,1,21,12],[4,1,4,12],[6,11,6,12],[12,1,12,2],[12,3,13,3],[12,4,12,12]]}
[null,"RISK RESPONSE",null,null,null,null,null,null,null,null,null,null,{"$f":"HYPERLINK(\"#'Index'!A1\",\"Return to Index\")","v":"Return to Index"}]
[null,{"$f":"'Company Information'!C7","v":"Enter Company Name"},null,null,null,null,null,null,null,null,null,null,null,null,null,"brrt_OperationalRiskAreaActionAxis_brrt_ResponseMember"]
[null,{"$f":"'Form 1EBS'!C3","v":"2019-12-31"},null,null,null,null,null,null,null,null,null,null,null,null,null,"brrt_OperationalRiskAreaStageAxis_brrt_TotalMember"]
[]
[null,"The insurer is to answer the following question.  If the answer to the question is \"No\" then the insurer does not have to complete the matrix/grid.  If the answer to the question is \"Yes\" then the insurer is to identify the stage of progression of each Operational Risk Area based upon the Dimension descriptor.  The insurer is then to input an “X” in the grid corresponding to the stage in the matrix table under the relevant Operational Risk Area."]
[]
[null,"Has your company taken steps to control and/or mitigate material risks arising from the Operational Risk Areas identified below? (Y/N)",null,null,null,null,null,null,null,null,null,null,null,null,null,"brrt_StepsHaveBeenTakenToControlAndOrMitigateMaterialRisksArisingFromOperationalRiskAreasIdentified"]
[]
[null,"If \"Y\", identify the stage of each Operational Risk Area and input an \"X\" in the appropriate grid under each area."]
[]
[null,"Risk Response processes are:"]
[]
[null,"Progression",null,"Dimension","Operational Risk Areas"]
[null,"Stage","Scoring",null,"Fraud","Human Resources","Outsourcing","Distribution Channels","Business Processes","Business Continuity","Information Systems","Compliance","Total (Si)",null,null,null,null,null,null,null,null,null,null,null,null,null,"bma_RiskResponseFraudAbstract","bma_RiskResponseHumanResourcesAbstract","bma_RiskResponseOutsourcingAbstract","bma_RiskResponseDistributionChannelsAbstract","bma_RiskResponseBusinessProcessesAbstract","bma_RiskResponseBusinessContinuityAbstract","bma_RiskResponseInformationSystemsAbstract","bma_RiskResponseComplianceAbstract","bma_RiskResponseTotalAbstract"]
[null,1,50,"“ad hoc”",null,null,null,null,null,null,null,null,null,null,null,"brrt_OperationalRiskAreaStageAxis_brrt_Stage1Member",null,null,null,null,null,null,null,null,null,null,"bma_RiskResponseFraudStage1","bma_RiskResponseHumanResourcesStage1","bma_RiskResponseOutsourcingStage1","bma_RiskResponseDistributionChannelsStage1","bma_RiskResponseBusinessProcessesStage1","bma_RiskResponseBusinessContinuityStage1","bma_RiskResponseInformationSystemsStage1","bma_RiskResponseComplianceStage1","bma_RiskResponseTotalStage1"]
[null,2,100,"Implemented but not standardized across the organization",null,null,null,null,null,null,null,null,null,null,null,"brrt_OperationalRiskAreaStageAxis_brrt_Stage2Member",null,null,null,null,null,null,null,null,null,null,"bma_RiskResponseFraudStage2","bma_RiskResponseHumanResourcesStage2","bma_RiskResponseOutsourcingStage2","bma_RiskResponseDistributionChannelsStage2","bma_RiskResponseBusinessProcessesStage2","bma_RiskResponseBusinessContinuityStage2","bma_RiskResponseInformationSystemsStage2","bma_RiskResponseComplianceStage2","bma_RiskResponseTotalStage2"]
[null,3,150,"Implemented, well documented policies and procedures that are understood by relevant staff, and standardized across the entire organization",null,null,null,null,null,null,null,null,null,null,null,"brrt_OperationalRiskAreaStageAxis_brrt_Stage3Member",null,null,null,null,null,null,null,null,null,null,"bma_RiskResponseFraudStage3","bma_RiskResponseHumanResourcesStage3","bma_RiskResponseOutsourcingStage3","bma_RiskResponseDistributionChannelsStage3","bma_RiskResponseBusinessProcessesStage3","bma_RiskResponseBusinessContinuityStage3","bma_RiskResponseInformationSystemsStage3","bma_RiskResponseComplianceStage3","bma_RiskResponseTotalStage3"]
[null,4,200,"In addition to Stage 3, processes are reviewed at least annually with the view to assessing effectiveness and introducing improvements",null,null,null,null,null,null,null,null,null,null,null,"brrt_OperationalRiskAreaStageAxis_brrt_Stage4Member",null,null,null,null,null,null,null,null,null,null,"bma_RiskResponseFraudStage4","bma_RiskResponseHumanResourcesStage4","bma_RiskResponseOutsourcingStage4","bma_RiskResponseDistributionChannelsStage4","bma_RiskResponseBusinessProcessesStage4","bma_RiskResponseBusinessContinuityStage4","bma_RiskResponseInformationSystemsStage4","bma_RiskResponseComplianceStage4","bma_RiskResponseTotalStage4"]
[null,null,null,null,{"$f":"IF(COUNTA(E15:E18)=0,Import!$I11307,IF(E15=\"X\", 50, IF(E16=\"X\", 100, IF(E17=\"X\", 150, IF(E18=\"X\", 200, 0)))))","v":0},{"$f":"IF(COUNTA(F15:F18)=0,Import!$I11308,IF(F15=\"X\", 50, IF(F16=\"X\", 100, IF(F17=\"X\", 150, IF(F18=\"X\", 200, 0)))))","v":0},{"$f":"IF(COUNTA(G15:G18)=0,Import!$I11309,IF(G15=\"X\", 50, IF(G16=\"X\", 100, IF(G17=\"X\", 150, IF(G18=\"X\", 200, 0)))))","v":0},{"$f":"IF(COUNTA(H15:H18)=0,Import!$I11310,IF(H15=\"X\", 50, IF(H16=\"X\", 100, IF(H17=\"X\", 150, IF(H18=\"X\", 200, 0)))))","v":0},{"$f":"IF(COUNTA(I15:I18)=0,Import!$I11311,IF(I15=\"X\", 50, IF(I16=\"X\", 100, IF(I17=\"X\", 150, IF(I18=\"X\", 200, 0)))))","v":0},{"$f":"IF(COUNTA(J15:J18)=0,Import!$I11312,IF(J15=\"X\", 50, IF(J16=\"X\", 100, IF(J17=\"X\", 150, IF(J18=\"X\", 200, 0)))))","v":0},{"$f":"IF(COUNTA(K15:K18)=0,Import!$I11313,IF(K15=\"X\", 50, IF(K16=\"X\", 100, IF(K17=\"X\", 150, IF(K18=\"X\", 200, 0)))))","v":0},{"$f":"IF(COUNTA(L15:L18)=0,Import!$I11314,IF(L15=\"X\", 50, IF(L16=\"X\", 100, IF(L17=\"X\", 150, IF(L18=\"X\", 200, 0)))))","v":0},{"$f":"SUM(E19:L19)","v":0},{"$f":"IF(M19>1600, \"ERR\", \"OK\")","v":"OK"},null,null,null,null,null,null,null,null,null,null,null,null,"bma_RiskResponseFraudTotal","bma_RiskResponseHumanResourcesTotal","bma_RiskResponseOutsourcingTotal","bma_RiskResponseDistributionChannelsTotal","bma_RiskResponseBusinessProcessesTotal","bma_RiskResponseBusinessContinuityTotal","bma_RiskResponseInformationSystemsTotal","bma_RiskResponseComplianceTotal","bma_RiskResponseTotalTotal"]
[]
[null,"Comments (optionally, the insurer may provide comments in the box below to support its responses above):"]
[null,null,null,null,null,null,null,null,null,null,null,null,null,null,null,"brrt_AdditionalComments",null,null,null,null,null,null,null,null,null,null,"bma_RiskResponseComment"]
[]
[]
[null,null,null,null,"brrt_Fraud","brrt_HumanResources","brrt_Outsourcing","brrt_DistributionChannels","brrt_BusinessProcesses","brrt_BusinessContinuity","brrt_InformationSystems","brrt_Compliance"]
[null,null,null,null,{"$f":"IF($B$3=\"\",\"\",TEXT(DATE(YEAR($B$3+1)-1,MONTH($B$3+1),DAY($B$3+1)),\"mm/dd/yyyy\"))","v":"01/01/2019"},{"$f":"IF($B$3=\"\",\"\",TEXT(DATE(YEAR($B$3+1)-1,MONTH($B$3+1),DAY($B$3+1)),\"mm/dd/yyyy\"))","v":"01/01/2019"},"01/01/2019","01/01/2019","01/01/2019","01/01/2019","01/01/2019","01/01/2019","01/01/2019"]
[null,null,null,null,{"$f":"IF($B$3=\"\",\"\",TEXT($B$3,\"mm/dd/yyyy\"))","v":"12/31/2019"},{"$f":"IF($B$3=\"\",\"\",TEXT($B$3,\"mm/dd/yyyy\"))","v":"12/31/2019"},"12/31/2019","12/31/2019","12/31/2019","12/31/2019","12/31/2019","12/31/2019","12/31/2019"]
[null,null,null,null,{"$f":"XBRLMapBoolean(E15,E$25&\".\"&$P15&\".\"&$P$2,E$26,E$27,CONFIGURATION!$B$10,\"BMA\",CONFIGURATION!$B$1,\"bscr\",IF(OR(E15=\"X\",E15=\"x\"),\"1\", \"0\"))","v":"Mapped"},{"$f":"XBRLMapBoolean(F15,F$25&\".\"&$P15&\".\"&$P$2,F$26,F$27,CONFIGURATION!$B$10,\"BMA\",CONFIGURATION!$B$1,\"bscr\",IF(OR(F15=\"X\",F15=\"x\"),\"1\", \"0\"))","v":"Mapped"},{"$f":"XBRLMapBoolean(G15,G$25&\".\"&$P15&\".\"&$P$2,G$26,G$27,CONFIGURATION!$B$10,\"BMA\",CONFIGURATION!$B$1,\"bscr\",IF(OR(G15=\"X\",G15=\"x\"),\"1\", \"0\"))","v":"Mapped"},{"$f":"XBRLMapBoolean(H15,H$25&\".\"&$P15&\".\"&$P$2,H$26,H$27,CONFIGURATION!$B$10,\"BMA\",CONFIGURATION!$B$1,\"bscr\",IF(OR(H15=\"X\",H15=\"x\"),\"1\", \"0\"))","v":"Mapped"},{"$f":"XBRLMapBoolean(I15,I$25&\".\"&$P15&\".\"&$P$2,I$26,I$27,CONFIGURATION!$B$10,\"BMA\",CONFIGURATION!$B$1,\"bscr\",IF(OR(I15=\"X\",I15=\"x\"),\"1\", \"0\"))","v":"Mapped"},{"$f":"XBRLMapBoolean(J15,J$25&\".\"&$P15&\".\"&$P$2,J$26,J$27,CONFIGURATION!$B$10,\"BMA\",CONFIGURATION!$B$1,\"bscr\",IF(OR(J15=\"X\",J15=\"x\"),\"1\", \"0\"))","v":"Mapped"},{"$f":"XBRLMapBoolean(K15,K$25&\".\"&$P15&\".\"&$P$2,K$26,K$27,CONFIGURATION!$B$10,\"BMA\",CONFIGURATION!$B$1,\"bscr\",IF(OR(K15=\"X\",K15=\"x\"),\"1\", \"0\"))","v":"Mapped"},{"$f":"XBRLMapBoolean(L15,L$25&\".\"&$P15&\".\"&$P$2,L$26,L$27,CONFIGURATION!$B$10,\"BMA\",CONFIGURATION!$B$1,\"bscr\",IF(OR(L15=\"X\",L15=\"x\"),\"1\", \"0\"))","v":"Mapped"},{"$f":"XBRLMap(M19,Z19,M$26,M$27,CONFIGURATION!$B$10,\"BMA\",CONFIGURATION!$B$1,\"bscr\")","v":"-"}]
[null,null,null,null,{"$f":"XBRLMapBoolean(E16,E$25&\".\"&$P16&\".\"&$P$2,E$26,E$27,CONFIGURATION!$B$10,\"BMA\",CONFIGURATION!$B$1,\"bscr\",IF(OR(E16=\"X\",E16=\"x\"),\"1\", \"0\"))","v":"Mapped"},{"$f":"XBRLMapBoolean(F16,F$25&\".\"&$P16&\".\"&$P$2,F$26,F$27,CONFIGURATION!$B$10,\"BMA\",CONFIGURATION!$B$1,\"bscr\",IF(OR(F16=\"X\",F16=\"x\"),\"1\", \"0\"))","v":"Mapped"},{"$f":"XBRLMapBoolean(G16,G$25&\".\"&$P16&\".\"&$P$2,G$26,G$27,CONFIGURATION!$B$10,\"BMA\",CONFIGURATION!$B$1,\"bscr\",IF(OR(G16=\"X\",G16=\"x\"),\"1\", \"0\"))","v":"Mapped"},{"$f":"XBRLMapBoolean(H16,H$25&\".\"&$P16&\".\"&$P$2,H$26,H$27,CONFIGURATION!$B$10,\"BMA\",CONFIGURATION!$B$1,\"bscr\",IF(OR(H16=\"X\",H16=\"x\"),\"1\", \"0\"))","v":"Mapped"},{"$f":"XBRLMapBoolean(I16,I$25&\".\"&$P16&\".\"&$P$2,I$26,I$27,CONFIGURATION!$B$10,\"BMA\",CONFIGURATION!$B$1,\"bscr\",IF(OR(I16=\"X\",I16=\"x\"),\"1\", \"0\"))","v":"Mapped"},{"$f":"XBRLMapBoolean(J16,J$25&\".\"&$P16&\".\"&$P$2,J$26,J$27,CONFIGURATION!$B$10,\"BMA\",CONFIGURATION!$B$1,\"bscr\",IF(OR(J16=\"X\",J16=\"x\"),\"1\", \"0\"))","v":"Mapped"},{"$f":"XBRLMapBoolean(K16,K$25&\".\"&$P16&\".\"&$P$2,K$26,K$27,CONFIGURATION!$B$10,\"BMA\",CONFIGURATION!$B$1,\"bscr\",IF(OR(K16=\"X\",K16=\"x\"),\"1\", \"0\"))","v":"Mapped"},{"$f":"XBRLMapBoolean(L16,L$25&\".\"&$P16&\".\"&$P$2,L$26,L$27,CONFIGURATION!$B$10,\"BMA\",CONFIGURATION!$B$1,\"bscr\",IF(OR(L16=\"X\",L16=\"x\"),\"1\", \"0\"))","v":"Mapped"}]
[null,null,null,null,{"$f":"XBRLMapBoolean(E17,E$25&\".\"&$P17&\".\"&$P$2,E$26,E$27,CONFIGURATION!$B$10,\"BMA\",CONFIGURATION!$B$1,\"bscr\",IF(OR(E17=\"X\",E17=\"x\"),\"1\", \"0\"))","v":"Mapped"},{"$f":"XBRLMapBoolean(F17,F$25&\".\"&$P17&\".\"&$P$2,F$26,F$27,CONFIGURATION!$B$10,\"BMA\",CONFIGURATION!$B$1,\"bscr\",IF(OR(F17=\"X\",F17=\"x\"),\"1\", \"0\"))","v":"Mapped"},{"$f":"XBRLMapBoolean(G17,G$25&\".\"&$P17&\".\"&$P$2,G$26,G$27,CONFIGURATION!$B$10,\"BMA\",CONFIGURATION!$B$1,\"bscr\",IF(OR(G17=\"X\",G17=\"x\"),\"1\", \"0\"))","v":"Mapped"},{"$f":"XBRLMapBoolean(H17,H$25&\".\"&$P17&\".\"&$P$2,H$26,H$27,CONFIGURATION!$B$10,\"BMA\",CONFIGURATION!$B$1,\"bscr\",IF(OR(H17=\"X\",H17=\"x\"),\"1\", \"0\"))","v":"Mapped"},{"$f":"XBRLMapBoolean(I17,I$25&\".\"&$P17&\".\"&$P$2,I$26,I$27,CONFIGURATION!$B$10,\"BMA\",CONFIGURATION!$B$1,\"bscr\",IF(OR(I17=\"X\",I17=\"x\"),\"1\", \"0\"))","v":"Mapped"},{"$f":"XBRLMapBoolean(J17,J$25&\".\"&$P17&\".\"&$P$2,J$26,J$27,CONFIGURATION!$B$10,\"BMA\",CONFIGURATION!$B$1,\"bscr\",IF(OR(J17=\"X\",J17=\"x\"),\"1\", \"0\"))","v":"Mapped"},{"$f":"XBRLMapBoolean(K17,K$25&\".\"&$P17&\".\"&$P$2,K$26,K$27,CONFIGURATION!$B$10,\"BMA\",CONFIGURATION!$B$1,\"bscr\",IF(OR(K17=\"X\",K17=\"x\"),\"1\", \"0\"))","v":"Mapped"},{"$f":"XBRLMapBoolean(L17,L$25&\".\"&$P17&\".\"&$P$2,L$26,L$27,CONFIGURATION!$B$10,\"BMA\",CONFIGURATION!$B$1,\"bscr\",IF(OR(L17=\"X\",L17=\"x\"),\"1\", \"0\"))","v":"Mapped"}]
[null,null,null,null,{"$f":"XBRLMapBoolean(E18,E$25&\".\"&$P18&\".\"&$P$2,E$26,E$27,CONFIGURATION!$B$10,\"BMA\",CONFIGURATION!$B$1,\"bscr\",IF(OR(E18=\"X\",E18=\"x\"),\"1\", \"0\"))","v":"Mapped"},{"$f":"XBRLMapBoolean(F18,F$25&\".\"&$P18&\".\"&$P$2,F$26,F$27,CONFIGURATION!$B$10,\"BMA\",CONFIGURATION!$B$1,\"bscr\",IF(OR(F18=\"X\",F18=\"x\"),\"1\", \"0\"))","v":"Mapped"},{"$f":"XBRLMapBoolean(G18,G$25&\".\"&$P18&\".\"&$P$2,G$26,G$27,CONFIGURATION!$B$10,\"BMA\",CONFIGURATION!$B$1,\"bscr\",IF(OR(G18=\"X\",G18=\"x\"),\"1\", \"0\"))","v":"Mapped"},{"$f":"XBRLMapBoolean(H18,H$25&\".\"&$P18&\".\"&$P$2,H$26,H$27,CONFIGURATION!$B$10,\"BMA\",CONFIGURATION!$B$1,\"bscr\",IF(OR(H18=\"X\",H18=\"x\"),\"1\", \"0\"))","v":"Mapped"},{"$f":"XBRLMapBoolean(I18,I$25&\".\"&$P18&\".\"&$P$2,I$26,I$27,CONFIGURATION!$B$10,\"BMA\",CONFIGURATION!$B$1,\"bscr\",IF(OR(I18=\"X\",I18=\"x\"),\"1\", \"0\"))","v":"Mapped"},{"$f":"XBRLMapBoolean(J18,J$25&\".\"&$P18&\".\"&$P$2,J$26,J$27,CONFIGURATION!$B$10,\"BMA\",CONFIGURATION!$B$1,\"bscr\",IF(OR(J18=\"X\",J18=\"x\"),\"1\", \"0\"))","v":"Mapped"},{"$f":"XBRLMapBoolean(K18,K$25&\".\"&$P18&\".\"&$P$2,K$26,K$27,CONFIGURATION!$B$10,\"BMA\",CONFIGURATION!$B$1,\"bscr\",IF(OR(K18=\"X\",K18=\"x\"),\"1\", \"0\"))","v":"Mapped"},{"$f":"XBRLMapBoolean(L18,L$25&\".\"&$P18&\".\"&$P$2,L$26,L$27,CONFIGURATION!$B$10,\"BMA\",CONFIGURATION!$B$1,\"bscr\",IF(OR(L18=\"X\",L18=\"x\"),\"1\", \"0\"))","v":"Mapped"}]
[null,null,null,null,{"$f":"XBRLMap(L7,$P7&\".\"&$P2,$E$26,$E$27,CONFIGURATION!$B$10,\"BMA\",CONFIGURATION!$B$1,\"bscr\",IF(L7=\"Yes\",\"1\", \"0\"))","v":"Mapped"}]
[null,null,null,null,{"$f":"XBRLMap(B22,$P22&\".\"&$P2,$E$26,$E$27,CONFIGURATION!$B$10,\"BMA\",CONFIGURATION!$B$1,\"bscr\")","v":"Mapped"}]
[null,null,null,null,"brrt_FraudScore","brrt_HumanResourcesScore","brrt_OutsourcingScore","brrt_DistributionChannelsScore","brrt_BusinessProcessesScore","brrt_BusinessContinuityScore","brrt_InformationSystemsScore","brrt_ComplianceScore","brrt_OperationalRiskScore"]
[null,null,null,null,{"$f":"XBRLMap(E19,E$34&\".\"&$P$2&\".\"&$P$3,$E$26,$E$27,CONFIGURATION!$B$10,\"BMA\",CONFIGURATION!$B$1,\"bscr\")","v":"Mapped"},{"$f":"XBRLMap(F19,F$34&\".\"&$P$2&\".\"&$P$3,$E$26,$E$27,CONFIGURATION!$B$10,\"BMA\",CONFIGURATION!$B$1,\"bscr\")","v":"Mapped"},{"$f":"XBRLMap(G19,G$34&\".\"&$P$2&\".\"&$P$3,$E$26,$E$27,CONFIGURATION!$B$10,\"BMA\",CONFIGURATION!$B$1,\"bscr\")","v":"Mapped"},{"$f":"XBRLMap(H19,H$34&\".\"&$P$2&\".\"&$P$3,$E$26,$E$27,CONFIGURATION!$B$10,\"BMA\",CONFIGURATION!$B$1,\"bscr\")","v":"Mapped"},{"$f":"XBRLMap(I19,I$34&\".\"&$P$2&\".\"&$P$3,$E$26,$E$27,CONFIGURATION!$B$10,\"BMA\",CONFIGURATION!$B$1,\"bscr\")","v":"Mapped"},{"$f":"XBRLMap(J19,J$34&\".\"&$P$2&\".\"&$P$3,$E$26,$E$27,CONFIGURATION!$B$10,\"BMA\",CONFIGURATION!$B$1,\"bscr\")","v":"Mapped"},{"$f":"XBRLMap(K19,K$34&\".\"&$P$2&\".\"&$P$3,$E$26,$E$27,CONFIGURATION!$B$10,\"BMA\",CONFIGURATION!$B$1,\"bscr\")","v":"Mapped"},{"$f":"XBRLMap(L19,L$34&\".\"&$P$2&\".\"&$P$3,$E$26,$E$27,CONFIGURATION!$B$10,\"BMA\",CONFIGURATION!$B$1,\"bscr\")","v":"Mapped"},{"$f":"XBRLMap(M19,M$34&\".\"&$P$2&\".\"&$P$3,$E$26,$E$27,CONFIGURATION!$B$10,\"BMA\",CONFIGURATION!$B$1,\"bscr\")","v":"Mapped"}]
[]
[]
[]
[null,null,null,null,"Yes"]
[null,null,null,null,"No"]

{"sheet":"Monitoring & Reporting","index":99,"n_rows":38,"n_cols":35,"rows_kept":38,"cut":false,"hidden":false,"merged":[[1,1,1,3],[2,1,2,2],[0,1,0,3],[20,1,20,7],[21,1,21,12],[4,1,4,12],[6,10,6,11],[12,1,12,2],[12,3,13,3],[12,4,12,12]]}
[null,"RISK MONITORING & REPORTING",null,null,null,null,null,null,null,null,null,null,{"$f":"HYPERLINK(\"#'Index'!A1\",\"Return to Index\")","v":"Return to Index"}]
[null,{"$f":"'Company Information'!C7","v":"Enter Company Name"},null,null,null,null,null,null,null,null,null,null,null,null,null,"brrt_OperationalRiskAreaActionAxis_brrt_MonitoringAndReportingMember"]
[null,{"$f":"'Form 1EBS'!C3","v":"2019-12-31"},null,null,null,null,null,null,null,null,null,null,null,null,null,"brrt_OperationalRiskAreaStageAxis_brrt_TotalMember"]
[]
[null,"The insurer is to answer the following question.  If the answer to the question is \"No\" then the insurer does not have to complete the matrix/grid.  If the answer to the question is \"Yes\" then the insurer is to identify the stage of progression of each Operational Risk Area based upon the Dimension descriptor.  The insurer is then to input an “X” in the grid corresponding to the stage in the matrix table under the relevant Operational Risk Area."]
[]
[null,"Has your company taken steps to monitor and report material risks arising from the Operational Risk Areas identified below? (Y/N)",null,null,null,null,null,null,null,null,null,null,null,null,null,"brrt_StepsHaveBeenTakenToMonitorAndReportMaterialRisksArisingFromOperationalRiskAreasIdentified"]
[]
[null,"If \"Y\", identify the stage of each Operational Risk Area and input an \"X\" in the appropriate grid under each area."]
[]
[null,"Risk Monitoring & Reporting processes are:"]
[]
[null,"Progression",null,"Dimension","Operational Risk Areas"]
[null,"Stage","Scoring",null,"Fraud","Human Resources","Outsourcing","Distribution Channels","Business Processes","Business Continuity","Information Systems","Compliance","Total (Si)",null,null,null,null,null,null,null,null,null,null,null,null,null,"bma_RiskMonitoringAndReportingFraudAbstract","bma_RiskMonitoringAndReportingHumanResourcesAbstract","bma_RiskMonitoringAndReportingOutsourcingAbstract","bma_RiskMonitoringAndReportingDistributionChannelsAbstract","bma_RiskMonitoringAndReportingBusinessProcessesAbstract","bma_RiskMonitoringAndReportingBusinessContinuityAbstract","bma_RiskMonitoringAndReportingInformationSystemsAbstract","bma_RiskMonitoringAndReportingComplianceAbstract","bma_RiskMonitoringAndReportingTotalAbstract"]
[null,1,50,"“ad hoc”",null,null,null,null,null,null,null,null,null,null,null,"brrt_OperationalRiskAreaStageAxis_brrt_Stage1Member",null,null,null,null,null,null,null,null,null,null,"bma_RiskMonitoringAndReportingFraudStage1","bma_RiskMonitoringAndReportingHumanResourcesStage1","bma_RiskMonitoringAndReportingOutsourcingStage1","bma_RiskMonitoringAndReportingDistributionChannelsStage1","bma_RiskMonitoringAndReportingBusinessProcessesStage1","bma_RiskMonitoringAndReportingBusinessContinuityStage1","bma_RiskMonitoringAndReportingInformationSystemsStage1","bma_RiskMonitoringAndReportingComplianceStage1","bma_RiskMonitoringAndReportingTotalStage1"]
[null,2,100,"Implemented but not standardized across the organization",null,null,null,null,null,null,null,null,null,null,null,"brrt_OperationalRiskAreaStageAxis_brrt_Stage2Member",null,null,null,null,null,null,null,null,null,null,"bma_RiskMonitoringAndReportingFraudStage2","bma_RiskMonitoringAndReportingHumanResourcesStage2","bma_RiskMonitoringAndReportingOutsourcingStage2","bma_RiskMonitoringAndReportingDistributionChannelsStage2","bma_RiskMonitoringAndReportingBusinessProcessesStage2","bma_RiskMonitoringAndReportingBusinessContinuityStage2","bma_RiskMonitoringAndReportingInformationSystemsStage2","bma_RiskMonitoringAndReportingComplianceStage2","bma_RiskMonitoringAndReportingTotalStage2"]
[null,3,150,"Implemented, well documented policies and procedures that are understood by relevant staff, and standardized across the entire organization",null,null,null,null,null,null,null,null,null,null,null,"brrt_OperationalRiskAreaStageAxis_brrt_Stage3Member",null,null,null,null,null,null,null,null,null,null,"bma_RiskMonitoringAndReportingFraudStage3","bma_RiskMonitoringAndReportingHumanResourcesStage3","bma_RiskMonitoringAndReportingOutsourcingStage3","bma_RiskMonitoringAndReportingDistributionChannelsStage3","bma_RiskMonitoringAndReportingBusinessProcessesStage3","bma_RiskMonitoringAndReportingBusinessContinuityStage3","bma_RiskMonitoringAndReportingInformationSystemsStage3","bma_RiskMonitoringAndReportingComplianceStage3","bma_RiskMonitoringAndReportingTotalStage3"]
[null,4,200,"In addition to Stage 3, processes are reviewed at least annually with the view to assessing effectiveness and introducing improvements",null,null,null,null,null,null,null,null,null,null,null,"brrt_OperationalRiskAreaStageAxis_brrt_Stage4Member",null,null,null,null,null,null,null,null,null,null,"bma_RiskMonitoringAndReportingFraudStage4","bma_RiskMonitoringAndReportingHumanResourcesStage4","bma_RiskMonitoringAndReportingOutsourcingStage4","bma_RiskMonitoringAndReportingDistributionChannelsStage4","bma_RiskMonitoringAndReportingBusinessProcessesStage4","bma_RiskMonitoringAndReportingBusinessContinuityStage4","bma_RiskMonitoringAndReportingInformationSystemsStage4","bma_RiskMonitoringAndReportingComplianceStage4","bma_RiskMonitoringAndReportingTotalStage4"]
[null,null,null,null,{"$f":"IF(COUNTA(E15:E18)=0,Import!$I11315,IF(E15=\"X\", 50, IF(E16=\"X\", 100, IF(E17=\"X\", 150, IF(E18=\"X\", 200, 0)))))","v":0},{"$f":"IF(COUNTA(F15:F18)=0,Import!$I11316,IF(F15=\"X\", 50, IF(F16=\"X\", 100, IF(F17=\"X\", 150, IF(F18=\"X\", 200, 0)))))","v":0},{"$f":"IF(COUNTA(G15:G18)=0,Import!$I11317,IF(G15=\"X\", 50, IF(G16=\"X\", 100, IF(G17=\"X\", 150, IF(G18=\"X\", 200, 0)))))","v":0},{"$f":"IF(COUNTA(H15:H18)=0,Import!$I11318,IF(H15=\"X\", 50, IF(H16=\"X\", 100, IF(H17=\"X\", 150, IF(H18=\"X\", 200, 0)))))","v":0},{"$f":"IF(COUNTA(I15:I18)=0,Import!$I11319,IF(I15=\"X\", 50, IF(I16=\"X\", 100, IF(I17=\"X\", 150, IF(I18=\"X\", 200, 0)))))","v":0},{"$f":"IF(COUNTA(J15:J18)=0,Import!$I11320,IF(J15=\"X\", 50, IF(J16=\"X\", 100, IF(J17=\"X\", 150, IF(J18=\"X\", 200, 0)))))","v":0},{"$f":"IF(COUNTA(K15:K18)=0,Import!$I11321,IF(K15=\"X\", 50, IF(K16=\"X\", 100, IF(K17=\"X\", 150, IF(K18=\"X\", 200, 0)))))","v":0},{"$f":"IF(COUNTA(L15:L18)=0,Import!$I11322,IF(L15=\"X\", 50, IF(L16=\"X\", 100, IF(L17=\"X\", 150, IF(L18=\"X\", 200, 0)))))","v":0},{"$f":"SUM(E19:L19)","v":0},{"$f":"IF(M19>1600, \"ERR\", \"OK\")","v":"OK"},null,null,null,null,null,null,null,null,null,null,null,null,"bma_RiskMonitoringAndReportingFraudTotal","bma_RiskMonitoringAndReportingHumanResourcesTotal","bma_RiskMonitoringAndReportingOutsourcingTotal","bma_RiskMonitoringAndReportingDistributionChannelsTotal","bma_RiskMonitoringAndReportingBusinessProcessesTotal","bma_RiskMonitoringAndReportingBusinessContinuityTotal","bma_RiskMonitoringAndReportingInformationSystemsTotal","bma_RiskMonitoringAndReportingComplianceTotal","bma_RiskMonitoringAndReportingTotalTotal"]
[]
[null,"Comments (optionally, the insurer may provide comments in the box below to support its responses above):"]
[null,null,null,null,null,null,null,null,null,null,null,null,null,null,null,"brrt_AdditionalComments",null,null,null,null,null,null,null,null,null,null,"bma_RiskMonitoringAndReportingComment"]
[]
[]
[null,null,null,null,"brrt_Fraud","brrt_HumanResources","brrt_Outsourcing","brrt_DistributionChannels","brrt_BusinessProcesses","brrt_BusinessContinuity","brrt_InformationSystems","brrt_Compliance"]
[null,null,null,null,{"$f":"IF($B$3=\"\",\"\",TEXT(DATE(YEAR($B$3+1)-1,MONTH($B$3+1),DAY($B$3+1)),\"mm/dd/yyyy\"))","v":"01/01/2019"},{"$f":"IF($B$3=\"\",\"\",TEXT(DATE(YEAR($B$3+1)-1,MONTH($B$3+1),DAY($B$3+1)),\"mm/dd/yyyy\"))","v":"01/01/2019"},"01/01/2019","01/01/2019","01/01/2019","01/01/2019","01/01/2019","01/01/2019","01/01/2019"]
[null,null,null,null,{"$f":"IF($B$3=\"\",\"\",TEXT($B$3,\"mm/dd/yyyy\"))","v":"12/31/2019"},{"$f":"IF($B$3=\"\",\"\",TEXT($B$3,\"mm/dd/yyyy\"))","v":"12/31/2019"},"12/31/2019","12/31/2019","12/31/2019","12/31/2019","12/31/2019","12/31/2019","12/31/2019"]
[null,null,null,null,{"$f":"XBRLMapBoolean(E15,E$25&\".\"&$P15&\".\"&$P$2,E$26,E$27,CONFIGURATION!$B$10,\"BMA\",CONFIGURATION!$B$1,\"bscr\",IF(OR(E15=\"X\",E15=\"x\"),\"1\", \"0\"))","v":"Mapped"},{"$f":"XBRLMapBoolean(F15,F$25&\".\"&$P15&\".\"&$P$2,F$26,F$27,CONFIGURATION!$B$10,\"BMA\",CONFIGURATION!$B$1,\"bscr\",IF(OR(F15=\"X\",F15=\"x\"),\"1\", \"0\"))","v":"Mapped"},{"$f":"XBRLMapBoolean(G15,G$25&\".\"&$P15&\".\"&$P$2,G$26,G$27,CONFIGURATION!$B$10,\"BMA\",CONFIGURATION!$B$1,\"bscr\",IF(OR(G15=\"X\",G15=\"x\"),\"1\", \"0\"))","v":"Mapped"},{"$f":"XBRLMapBoolean(H15,H$25&\".\"&$P15&\".\"&$P$2,H$26,H$27,CONFIGURATION!$B$10,\"BMA\",CONFIGURATION!$B$1,\"bscr\",IF(OR(H15=\"X\",H15=\"x\"),\"1\", \"0\"))","v":"Mapped"},{"$f":"XBRLMapBoolean(I15,I$25&\".\"&$P15&\".\"&$P$2,I$26,I$27,CONFIGURATION!$B$10,\"BMA\",CONFIGURATION!$B$1,\"bscr\",IF(OR(I15=\"X\",I15=\"x\"),\"1\", \"0\"))","v":"Mapped"},{"$f":"XBRLMapBoolean(J15,J$25&\".\"&$P15&\".\"&$P$2,J$26,J$27,CONFIGURATION!$B$10,\"BMA\",CONFIGURATION!$B$1,\"bscr\",IF(OR(J15=\"X\",J15=\"x\"),\"1\", \"0\"))","v":"Mapped"},{"$f":"XBRLMapBoolean(K15,K$25&\".\"&$P15&\".\"&$P$2,K$26,K$27,CONFIGURATION!$B$10,\"BMA\",CONFIGURATION!$B$1,\"bscr\",IF(OR(K15=\"X\",K15=\"x\"),\"1\", \"0\"))","v":"Mapped"},{"$f":"XBRLMapBoolean(L15,L$25&\".\"&$P15&\".\"&$P$2,L$26,L$27,CONFIGURATION!$B$10,\"BMA\",CONFIGURATION!$B$1,\"bscr\",IF(OR(L15=\"X\",L15=\"x\"),\"1\", \"0\"))","v":"Mapped"}]
[null,null,null,null,{"$f":"XBRLMapBoolean(E16,E$25&\".\"&$P16&\".\"&$P$2,E$26,E$27,CONFIGURATION!$B$10,\"BMA\",CONFIGURATION!$B$1,\"bscr\",IF(OR(E16=\"X\",E16=\"x\"),\"1\", \"0\"))","v":"Mapped"},{"$f":"XBRLMapBoolean(F16,F$25&\".\"&$P16&\".\"&$P$2,F$26,F$27,CONFIGURATION!$B$10,\"BMA\",CONFIGURATION!$B$1,\"bscr\",IF(OR(F16=\"X\",F16=\"x\"),\"1\", \"0\"))","v":"Mapped"},{"$f":"XBRLMapBoolean(G16,G$25&\".\"&$P16&\".\"&$P$2,G$26,G$27,CONFIGURATION!$B$10,\"BMA\",CONFIGURATION!$B$1,\"bscr\",IF(OR(G16=\"X\",G16=\"x\"),\"1\", \"0\"))","v":"Mapped"},{"$f":"XBRLMapBoolean(H16,H$25&\".\"&$P16&\".\"&$P$2,H$26,H$27,CONFIGURATION!$B$10,\"BMA\",CONFIGURATION!$B$1,\"bscr\",IF(OR(H16=\"X\",H16=\"x\"),\"1\", \"0\"))","v":"Mapped"},{"$f":"XBRLMapBoolean(I16,I$25&\".\"&$P16&\".\"&$P$2,I$26,I$27,CONFIGURATION!$B$10,\"BMA\",CONFIGURATION!$B$1,\"bscr\",IF(OR(I16=\"X\",I16=\"x\"),\"1\", \"0\"))","v":"Mapped"},{"$f":"XBRLMapBoolean(J16,J$25&\".\"&$P16&\".\"&$P$2,J$26,J$27,CONFIGURATION!$B$10,\"BMA\",CONFIGURATION!$B$1,\"bscr\",IF(OR(J16=\"X\",J16=\"x\"),\"1\", \"0\"))","v":"Mapped"},{"$f":"XBRLMapBoolean(K16,K$25&\".\"&$P16&\".\"&$P$2,K$26,K$27,CONFIGURATION!$B$10,\"BMA\",CONFIGURATION!$B$1,\"bscr\",IF(OR(K16=\"X\",K16=\"x\"),\"1\", \"0\"))","v":"Mapped"},{"$f":"XBRLMapBoolean(L16,L$25&\".\"&$P16&\".\"&$P$2,L$26,L$27,CONFIGURATION!$B$10,\"BMA\",CONFIGURATION!$B$1,\"bscr\",IF(OR(L16=\"X\",L16=\"x\"),\"1\", \"0\"))","v":"Mapped"}]
[null,null,null,null,{"$f":"XBRLMapBoolean(E17,E$25&\".\"&$P17&\".\"&$P$2,E$26,E$27,CONFIGURATION!$B$10,\"BMA\",CONFIGURATION!$B$1,\"bscr\",IF(OR(E17=\"X\",E17=\"x\"),\"1\", \"0\"))","v":"Mapped"},{"$f":"XBRLMapBoolean(F17,F$25&\".\"&$P17&\".\"&$P$2,F$26,F$27,CONFIGURATION!$B$10,\"BMA\",CONFIGURATION!$B$1,\"bscr\",IF(OR(F17=\"X\",F17=\"x\"),\"1\", \"0\"))","v":"Mapped"},{"$f":"XBRLMapBoolean(G17,G$25&\".\"&$P17&\".\"&$P$2,G$26,G$27,CONFIGURATION!$B$10,\"BMA\",CONFIGURATION!$B$1,\"bscr\",IF(OR(G17=\"X\",G17=\"x\"),\"1\", \"0\"))","v":"Mapped"},{"$f":"XBRLMapBoolean(H17,H$25&\".\"&$P17&\".\"&$P$2,H$26,H$27,CONFIGURATION!$B$10,\"BMA\",CONFIGURATION!$B$1,\"bscr\",IF(OR(H17=\"X\",H17=\"x\"),\"1\", \"0\"))","v":"Mapped"},{"$f":"XBRLMapBoolean(I17,I$25&\".\"&$P17&\".\"&$P$2,I$26,I$27,CONFIGURATION!$B$10,\"BMA\",CONFIGURATION!$B$1,\"bscr\",IF(OR(I17=\"X\",I17=\"x\"),\"1\", \"0\"))","v":"Mapped"},{"$f":"XBRLMapBoolean(J17,J$25&\".\"&$P17&\".\"&$P$2,J$26,J$27,CONFIGURATION!$B$10,\"BMA\",CONFIGURATION!$B$1,\"bscr\",IF(OR(J17=\"X\",J17=\"x\"),\"1\", \"0\"))","v":"Mapped"},{"$f":"XBRLMapBoolean(K17,K$25&\".\"&$P17&\".\"&$P$2,K$26,K$27,CONFIGURATION!$B$10,\"BMA\",CONFIGURATION!$B$1,\"bscr\",IF(OR(K17=\"X\",K17=\"x\"),\"1\", \"0\"))","v":"Mapped"},{"$f":"XBRLMapBoolean(L17,L$25&\".\"&$P17&\".\"&$P$2,L$26,L$27,CONFIGURATION!$B$10,\"BMA\",CONFIGURATION!$B$1,\"bscr\",IF(OR(L17=\"X\",L17=\"x\"),\"1\", \"0\"))","v":"Mapped"}]
[null,null,null,null,{"$f":"XBRLMapBoolean(E18,E$25&\".\"&$P18&\".\"&$P$2,E$26,E$27,CONFIGURATION!$B$10,\"BMA\",CONFIGURATION!$B$1,\"bscr\",IF(OR(E18=\"X\",E18=\"x\"),\"1\", \"0\"))","v":"Mapped"},{"$f":"XBRLMapBoolean(F18,F$25&\".\"&$P18&\".\"&$P$2,F$26,F$27,CONFIGURATION!$B$10,\"BMA\",CONFIGURATION!$B$1,\"bscr\",IF(OR(F18=\"X\",F18=\"x\"),\"1\", \"0\"))","v":"Mapped"},{"$f":"XBRLMapBoolean(G18,G$25&\".\"&$P18&\".\"&$P$2,G$26,G$27,CONFIGURATION!$B$10,\"BMA\",CONFIGURATION!$B$1,\"bscr\",IF(OR(G18=\"X\",G18=\"x\"),\"1\", \"0\"))","v":"Mapped"},{"$f":"XBRLMapBoolean(H18,H$25&\".\"&$P18&\".\"&$P$2,H$26,H$27,CONFIGURATION!$B$10,\"BMA\",CONFIGURATION!$B$1,\"bscr\",IF(OR(H18=\"X\",H18=\"x\"),\"1\", \"0\"))","v":"Mapped"},{"$f":"XBRLMapBoolean(I18,I$25&\".\"&$P18&\".\"&$P$2,I$26,I$27,CONFIGURATION!$B$10,\"BMA\",CONFIGURATION!$B$1,\"bscr\",IF(OR(I18=\"X\",I18=\"x\"),\"1\", \"0\"))","v":"Mapped"},{"$f":"XBRLMapBoolean(J18,J$25&\".\"&$P18&\".\"&$P$2,J$26,J$27,CONFIGURATION!$B$10,\"BMA\",CONFIGURATION!$B$1,\"bscr\",IF(OR(J18=\"X\",J18=\"x\"),\"1\", \"0\"))","v":"Mapped"},{"$f":"XBRLMapBoolean(K18,K$25&\".\"&$P18&\".\"&$P$2,K$26,K$27,CONFIGURATION!$B$10,\"BMA\",CONFIGURATION!$B$1,\"bscr\",IF(OR(K18=\"X\",K18=\"x\"),\"1\", \"0\"))","v":"Mapped"},{"$f":"XBRLMapBoolean(L18,L$25&\".\"&$P18&\".\"&$P$2,L$26,L$27,CONFIGURATION!$B$10,\"BMA\",CONFIGURATION!$B$1,\"bscr\",IF(OR(L18=\"X\",L18=\"x\"),\"1\", \"0\"))","v":"Mapped"}]
[null,null,null,null,"brrt_FraudScore","brrt_HumanResourcesScore","brrt_OutsourcingScore","brrt_DistributionChannelsScore","brrt_BusinessProcessesScore","brrt_BusinessContinuityScore","brrt_InformationSystemsScore","brrt_ComplianceScore","brrt_OperationalRiskScore"]
[null,null,null,null,{"$f":"XBRLMap(E19,E$32&\".\"&$P$2&\".\"&$P$3,$E$26,$E$27,CONFIGURATION!$B$10,\"BMA\",CONFIGURATION!$B$1,\"bscr\")","v":"Mapped"},{"$f":"XBRLMap(F19,F$32&\".\"&$P$2&\".\"&$P$3,$E$26,$E$27,CONFIGURATION!$B$10,\"BMA\",CONFIGURATION!$B$1,\"bscr\")","v":"Mapped"},{"$f":"XBRLMap(G19,G$32&\".\"&$P$2&\".\"&$P$3,$E$26,$E$27,CONFIGURATION!$B$10,\"BMA\",CONFIGURATION!$B$1,\"bscr\")","v":"Mapped"},{"$f":"XBRLMap(H19,H$32&\".\"&$P$2&\".\"&$P$3,$E$26,$E$27,CONFIGURATION!$B$10,\"BMA\",CONFIGURATION!$B$1,\"bscr\")","v":"Mapped"},{"$f":"XBRLMap(I19,I$32&\".\"&$P$2&\".\"&$P$3,$E$26,$E$27,CONFIGURATION!$B$10,\"BMA\",CONFIGURATION!$B$1,\"bscr\")","v":"Mapped"},{"$f":"XBRLMap(J19,J$32&\".\"&$P$2&\".\"&$P$3,$E$26,$E$27,CONFIGURATION!$B$10,\"BMA\",CONFIGURATION!$B$1,\"bscr\")","v":"Mapped"},{"$f":"XBRLMap(K19,K$32&\".\"&$P$2&\".\"&$P$3,$E$26,$E$27,CONFIGURATION!$B$10,\"BMA\",CONFIGURATION!$B$1,\"bscr\")","v":"Mapped"},{"$f":"XBRLMap(L19,L$32&\".\"&$P$2&\".\"&$P$3,$E$26,$E$27,CONFIGURATION!$B$10,\"BMA\",CONFIGURATION!$B$1,\"bscr\")","v":"Mapped"},{"$f":"XBRLMap(M19,M$32&\".\"&$P$2&\".\"&$P$3,$E$26,$E$27,CONFIGURATION!$B$10,\"BMA\",CONFIGURATION!$B$1,\"bscr\")","v":"Mapped"}]
[]
[]
[]
[null,null,null,null,"Yes"]
[null,null,null,null,"No"]

{"sheet":"Op Risk","index":100,"n_rows":50,"n_cols":17,"rows_kept":50,"cut":false,"hidden":false,"merged":[[5,1,5,7],[0,1,0,5],[49,3,49,7],[36,3,36,7],[38,3,38,7],[31,3,31,7],[33,3,33,7],[40,3,40,7],[43,3,43,7]]}
[null,"OPERATIONAL RISK CHARGE CALCULATION INSTRUCTIONS",null,null,null,null,null,{"$f":"HYPERLINK(\"#'Index'!A1\",\"Return to Index\")","v":"Return to Index"}]
[null,null,null,null,null,null,null,null,null,""]
[null,null,null,null,null,null,null,null,null,""]
[null,null,null,null,null,null,null,null,null,""]
[null,null,null,null,null,null,null,null,null,""]
[null,"Subject to the Authority applying a re-assessment upon onsite inspection, the “Total Operational Risk Capital Charge” below will be applied to the insurer’s BSCR (After Covariance Adjustment) sub-total in the BSCR model for purposes of arriving at its Enhanced Capital Requirement for the year-end filing.",null,null,null,null,null,null,null,"",{"$f":"IF('Company Information'!C3=\"\",\"\",TEXT(DATE(YEAR('Company Information'!C3+1)-1,MONTH('Company Information'!C3+1),DAY('Company Information'!C3+1)),\"mm/dd/yyyy\"))","v":"01/01/2019"}]
[null,null,null,null,null,null,null,null,null,"",{"$f":"IF('Company Information'!C3=\"\",\"\",TEXT('Company Information'!C3,\"mm/dd/yyyy\"))","v":"12/31/2019"}]
[null,null,"Overall CIRA Score",{"$f":"'Corp Gov'!D19+'Risk Man'!D18+Identification!M19+Measurement!M19+'Monitoring & Reporting'!M19+Response!M19","v":0},null,null,null,null,null,null,null,null,null,null,null,null,"bma_OverallCIRAScore"]
[null,null,null,null,null,null,null,null,null,null,null,null,null,null,null,null,""]
[null,null,"CIRA Scoring Grid",null,null,null,null,null,null,null,null,null,null,null,null,null,""]
[null,null,null,null,null,null,null,null,null,null,null,null,null,null,null,null,""]
[null,null,"OVERALL SCORE","APPLICABLE OPERATIONAL RISK CHARGE % OF \"BSCR AFTER COVARIANCE ADJUSTMENT\"",null,null,null,null,null,null,null,null,null,null,null,null,""]
[null,null,null,null,null,null,null,null,null,null,null,null,null,null,null,null,""]
[null,null,{"$f":"IF('Company Information'!F11=\"Class 3A\",\"<=800\",\"<=5,200\")","v":"<=5,200"},0.1,null,null,null,null,null,null,null,null,null,null,null,null,""]
[null,null,{"$f":"IF('Company Information'!F11=\"Class 3A\",\"> 800 <= 1,200\",\"> 5,200 <= 6,000\")","v":"> 5,200 <= 6,000"},0.09,null,null,null,null,null,null,null,null,null,null,null,null,""]
[null,null,{"$f":"IF('Company Information'!F11=\"Class 3A\",\"> 1,200 <= 1,400\",\"> 6,000 <= 6,650\")","v":"> 6,000 <= 6,650"},0.08,null,null,null,null,null,null,null,null,null,null,null,null,""]
[null,null,{"$f":"IF('Company Information'!F11=\"Class 3A\",\"> 1,400 <= 1,600\",\"> 6,650 <= 7,250\")","v":"> 6,650 <= 7,250"},7.0000000000000007E-2,null,null,null,null,null,null,null,null,null,null,null,null,""]
[null,null,{"$f":"IF('Company Information'!F11=\"Class 3A\",\"> 1,600 <= 1,800\",\"> 7,250 <= 7,650\")","v":"> 7,250 <= 7,650"},0.06,null,null,null,null,null,null,null,null,null,null,null,null,""]
[null,null,{"$f":"IF('Company Information'!F11=\"Class 3A\",\"> 1,800 <= 2,000\",\"> 7,650 <= 7,850\")","v":"> 7,650 <= 7,850"},0.05,null,null,null,null,null,null,null,null,null,null,null,null,""]
[null,null,{"$f":"IF('Company Information'!F11=\"Class 3A\",\"> 2,000 <= 2,200\",\"> 7,850 <= 8,050\")","v":"> 7,850 <= 8,050"},0.04,null,null,null,null,null,null,null,null,null,null,null,null,""]
[null,null,{"$f":"IF('Company Information'!F11=\"Class 3A\",\"> 2,200 <= 2,400\",\"> 8,050 <= 8,250\")","v":"> 8,050 <= 8,250"},0.03,null,null,null,null,null,null,null,null,null,null,null,null,""]
[null,null,{"$f":"IF('Company Information'!F11=\"Class 3A\",\"> 2,400 <= 2,600\",\"> 8,250 <= 8,450\")","v":"> 8,250 <= 8,450"},0.02,null,null,null,null,null,null,null,null,null,null,null,null,""]
[null,null,{"$f":"IF('Company Information'!F11=\"Class 3A\",\">2,600\",\"> 8,450\")","v":"> 8,450"},0.01,null,null,null,null,null,null,null,null,null,null,null,null,""]
[null,null,null,null,null,null,null,null,null,null,null,null,null,null,null,null,""]
[null,null,"BSCR After Covariance Adjustment:",{"$f":"Summary!G71","v":0},null,null,null,null,null,null,null,null,null,null,null,null,"bma_BSCRAfterCovarianceAdjustment"]
[null,null,null,null,null,null,null,null,null,null,null,null,null,null,null,null,""]
[null,null,"Operational Risk Charge %:",{"$f":"IF('Company Information'!F11=\"Class 3A\", F27, F28)","v":0.1},null,{"$f":"IF(D8<=800,0.1, IF(D8<=1200, 0.09, IF(D8<=1400, 0.08, IF(D8<=1600, 0.07, IF(D8<=1800, 0.06, IF(D8<=2000, 0.05, IF(D8<=2200, 0.04, IF(D8<=2400, 0.03, IF(D8<=2400, 0.03,IF(D8<=2600,0.02,IF(D8>2600,0.01,\"N/A\")))))))))))","v":0.1},null,null,null,null,null,null,null,null,null,null,"bma_OperationalRiskChargePercentage"]
[null,null,null,null,null,{"$f":"IF(D8<=5200,0.1, IF(D8<=6000, 0.09, IF(D8<=6650, 0.08, IF(D8<=7250, 0.07, IF(D8<=7650, 0.06, IF(D8<=7850, 0.05, IF(D8<=8050, 0.04, IF(D8<=8250, 0.03, IF(D8<=8250, 0.03,IF(D8<=8450,0.02,IF(D8>8450,0.01,\"N/A\")))))))))))","v":0.1},null,null,null,null,null,null,null,null,null,null,""]
[null,null,"Total Operational Risk Capital Charge:",{"$f":"D25*D27","v":0},null,null,null,null,null,null,null,null,null,null,null,null,"bma_TotalOperationalRiskCapitalCharge"]
[null,null,null,null,null,null,null,null,null,null,null,null,null,null,null,null,""]
[null,null,null,null,null,null,null,null,null,null,null,null,null,null,null,null,"bma_ResidentDirectorAbstract"]
[null,null,"Signatory:",null,null,null,null,null,null,null,null,null,null,null,null,null,"bma_ResidentDirectorSignatory"]
[null,null,null,null,null,null,null,null,null,null,null,null,null,null,null,null,""]
[null,null,"Print Name:",null,null,null,null,null,null,null,null,null,null,null,null,null,"bma_ResidentDirectorPrintName"]
[null,null,null,"Resident Director",null,null,null,null,null,null,null,null,null,null,null,null,""]
[null,null,null,null,null,null,null,null,null,null,null,null,null,null,null,null,""]
[null,null,"Date:",null,null,null,null,null,{"$f":"IF(D37=\"\",\"\",TEXT(D37,\"yyyy-mm-dd\"))","v":""},null,null,null,null,null,null,null,"bma_ResidentDirectorSignedDate"]
[null,null,null,null,null,null,null,null,null,null,null,null,null,null,null,null,"bma_DirectorAbstract"]
[null,null,"Signatory:",null,null,null,null,null,null,null,null,null,null,null,null,null,"bma_DirectorSignatory"]
[null,null,null,null,null,null,null,null,null,null,null,null,null,null,null,null,""]
[null,null,"Print Name:",null,null,null,null,null,null,null,null,null,null,null,null,null,"bma_DirectorPrintName"]
[null,null,null,"Director",null,null,null,null,null,null,null,null,null,null,null,null,""]
[null,null,null,null,null,null,null,null,null,null,null,null,null,null,null,null,""]
[null,null,"Date:",null,null,null,null,null,{"$f":"IF(D44=\"\",\"\",TEXT(D44,\"yyyy-mm-dd\"))","v":""},null,null,null,null,null,null,null,"bma_DirectorSignedDate"]
[null,null,null,null,null,null,null,null,null,null,null,null,null,null,null,null,""]
[null,null,"Insurer Name:",{"$f":"'Company Information'!C7","v":"Enter Company Name"},null,null,null,null,null,null,null,null,null,null,null,null,""]
[null,null,null,null,null,null,null,null,null,null,null,null,null,null,null,null,""]
[null,null,"Year-end:",{"$f":"'Form 1EBS'!C3","v":"2019-12-31"},null,null,null,null,null,null,null,null,null,null,null,null,""]
[null,null,null,null,null,null,null,null,null,null,null,null,null,null,null,null,""]
[null,null,"Insurer Registration No.",{"$f":"CONFIGURATION!B1","v":0},null,null,null,null,null,null,null,null,null,null,null,null,"bma_InsurerRegistrationNo"]

{"sheet":"Op Risk (Revised)","index":101,"n_rows":50,"n_cols":17,"rows_kept":50,"cut":false,"hidden":false,"merged":[[40,3,40,7],[43,3,43,7],[49,3,49,7],[0,1,0,5],[5,1,5,7],[31,3,31,7],[33,3,33,7],[36,3,36,7],[38,3,38,7]]}
[null,"OPERATIONAL RISK CHARGE CALCULATION INSTRUCTIONS",null,null,null,null,null,{"$f":"HYPERLINK(\"#'Index'!A1\",\"Return to Index\")","v":"Return to Index"}]
[null,null,null,null,null,null,null,null,null,""]
[null,null,null,null,null,null,null,null,null,""]
[null,null,null,null,null,null,null,null,null,""]
[null,null,null,null,null,null,null,null,null,""]
[null,"Subject to the Authority applying a re-assessment upon onsite inspection, the “Total Operational Risk Capital Charge” below will be applied to the insurer’s BSCR (After Covariance Adjustment) sub-total in the BSCR model for purposes of arriving at its Enhanced Capital Requirement for the year-end filing.",null,null,null,null,null,null,null,"",{"$f":"IF('Company Information'!C3=\"\",\"\",TEXT(DATE(YEAR('Company Information'!C3+1)-1,MONTH('Company Information'!C3+1),DAY('Company Information'!C3+1)),\"mm/dd/yyyy\"))","v":"01/01/2019"}]
[null,null,null,null,null,null,null,null,null,"",{"$f":"IF('Company Information'!C3=\"\",\"\",TEXT('Company Information'!C3,\"mm/dd/yyyy\"))","v":"12/31/2019"}]
[null,null,"Overall CIRA Score",{"$f":"'Corp Gov'!D19+'Risk Man'!D18+Identification!M19+Measurement!M19+'Monitoring & Reporting'!M19+Response!M19","v":0},null,null,null,null,null,null,null,null,null,null,null,null,"bma_OverallCIRAScore"]
[null,null,null,null,null,null,null,null,null,null,null,null,null,null,null,null,""]
[null,null,"CIRA Scoring Grid",null,null,null,null,null,null,null,null,null,null,null,null,null,""]
[null,null,null,null,null,null,null,null,null,null,null,null,null,null,null,null,""]
[null,null,"OVERALL SCORE","APPLICABLE OPERATIONAL RISK CHARGE % OF \"BSCR AFTER COVARIANCE ADJUSTMENT\"",null,null,null,null,null,null,null,null,null,null,null,null,""]
[null,null,null,null,null,null,null,null,null,null,null,null,null,null,null,null,""]
[null,null,{"$f":"IF('Company Information'!F11=\"Class 3A\",\"<=800\",\"<=4,000\")","v":"<=4,000"},0.2,null,null,null,null,null,null,null,null,null,null,null,null,""]
[null,null,{"$f":"IF('Company Information'!F11=\"Class 3A\",\"> 800 <= 1,200\",\"> 4,000 <= 5,200\")","v":"> 4,000 <= 5,200"},0.18,null,null,null,null,null,null,null,null,null,null,null,null,""]
[null,null,{"$f":"IF('Company Information'!F11=\"Class 3A\",\"> 1,200 <= 1,400\",\"> 5,200 <= 6,000\")","v":"> 5,200 <= 6,000"},0.15,null,null,null,null,null,null,null,null,null,null,null,null,""]
[null,null,{"$f":"IF('Company Information'!F11=\"Class 3A\",\"> 1,400 <= 1,600\",\"> 6,000 <= 6,650\")","v":"> 6,000 <= 6,650"},0.12,null,null,null,null,null,null,null,null,null,null,null,null,""]
[null,null,{"$f":"IF('Company Information'!F11=\"Class 3A\",\"> 1,600 <= 1,800\",\"> 6,650 <= 7,250\")","v":"> 6,650 <= 7,250"},0.09,null,null,null,null,null,null,null,null,null,null,null,null,""]
[null,null,{"$f":"IF('Company Information'!F11=\"Class 3A\",\"> 1,800 <= 2,000\",\"> 7,250 <= 7,650\")","v":"> 7,250 <= 7,650"},7.0000000000000007E-2,null,null,null,null,null,null,null,null,null,null,null,null,""]
[null,null,{"$f":"IF('Company Information'!F11=\"Class 3A\",\"> 2,000 <= 2,200\",\"> 7,650 <= 7,850\")","v":"> 7,650 <= 7,850"},0.05,null,null,null,null,null,null,null,null,null,null,null,null,""]
[null,null,{"$f":"IF('Company Information'!F11=\"Class 3A\",\"> 2,200 <= 2,400\",\"> 7,850 <= 8,050\")","v":"> 7,850 <= 8,050"},0.03,null,null,null,null,null,null,null,null,null,null,null,null,""]
[null,null,{"$f":"IF('Company Information'!F11=\"Class 3A\",\"> 2,400 <= 2,600\",\"> 8,050 <= 8,250\")","v":"> 8,050 <= 8,250"},0.02,null,null,null,null,null,null,null,null,null,null,null,null,""]
[null,null,{"$f":"IF('Company Information'!F11=\"Class 3A\",\">2,600\",\"> 8,250\")","v":"> 8,250"},0.01,null,null,null,null,null,null,null,null,null,null,null,null,""]
[null,null,null,null,null,null,null,null,null,null,null,null,null,null,null,null,""]
[null,null,"BSCR After Covariance Adjustment:",{"$f":"Summary!N71","v":0},null,null,null,null,null,null,null,null,null,null,null,null,"bma_BSCRAfterCovarianceAdjustment"]
[null,null,null,null,null,null,null,null,null,null,null,null,null,null,null,null,""]
[null,null,"Operational Risk Charge %:",{"$f":"IF('Company Information'!F11=\"Class 3A\",F27,F28)","v":0.2},null,{"$f":"IF(D8<=800,0.2, IF(D8<=1200, 0.18, IF(D8<=1400, 0.15, IF(D8<=1600, 0.12, IF(D8<=1800, 0.09, IF(D8<=2000, 0.07, IF(D8<=2200, 0.05, IF(D8<=2400, 0.03, IF(D8<=2600,0.02,IF(D8>2600,0.01,\"N/A\"))))))))))","v":0.2},null,null,null,null,null,null,null,null,null,null,"bma_OperationalRiskChargePercentage"]
[null,null,null,null,null,{"$f":"IF(D8<=4000,0.2,IF(D8<=5200,0.18,IF(D8<=6000,0.15,IF(D8<=6650,0.12,IF(D8<=7250,0.09,IF(D8<=7650,0.07,IF(D8<=7850,0.05,IF(D8<=8050,0.03,IF(D8<=8250,0.02,IF(D8>8250,0.01,\"N/A\"))))))))))","v":0.2},null,null,null,null,null,null,null,null,null,null,""]
[null,null,"Total Operational Risk Capital Charge:",{"$f":"D25*D27","v":0},null,null,null,null,null,null,null,null,null,null,null,null,"bma_TotalOperationalRiskCapitalCharge"]
[null,null,null,null,null,null,null,null,null,null,null,null,null,null,null,null,""]
[null,null,null,null,null,null,null,null,null,null,null,null,null,null,null,null,"bma_ResidentDirectorAbstract"]
[null,null,"Signatory:",null,null,null,null,null,null,null,null,null,null,null,null,null,"bma_ResidentDirectorSignatory"]
[null,null,null,null,null,null,null,null,null,null,null,null,null,null,null,null,""]
[null,null,"Print Name:",null,null,null,null,null,null,null,null,null,null,null,null,null,"bma_ResidentDirectorPrintName"]
[null,null,null,"Resident Director",null,null,null,null,null,null,null,null,null,null,null,null,""]
[null,null,null,null,null,null,null,null,null,null,null,null,null,null,null,null,""]
[null,null,"Date:",null,null,null,null,null,{"$f":"IF(D37=\"\",\"\",TEXT(D37,\"yyyy-mm-dd\"))","v":""},null,null,null,null,null,null,null,"bma_ResidentDirectorSignedDate"]
[null,null,null,null,null,null,null,null,null,null,null,null,null,null,null,null,"bma_DirectorAbstract"]
[null,null,"Signatory:",null,null,null,null,null,null,null,null,null,null,null,null,null,"bma_DirectorSignatory"]
[null,null,null,null,null,null,null,null,null,null,null,null,null,null,null,null,""]
[null,null,"Print Name:",null,null,null,null,null,null,null,null,null,null,null,null,null,"bma_DirectorPrintName"]
[null,null,null,"Director",null,null,null,null,null,null,null,null,null,null,null,null,""]
[null,null,null,null,null,null,null,null,null,null,null,null,null,null,null,null,""]
[null,null,"Date:",null,null,null,null,null,{"$f":"IF(D44=\"\",\"\",TEXT(D44,\"yyyy-mm-dd\"))","v":""},null,null,null,null,null,null,null,"bma_DirectorSignedDate"]
[null,null,null,null,null,null,null,null,null,null,null,null,null,null,null,null,""]
[null,null,"Insurer Name:",{"$f":"'Company Information'!C7","v":"Enter Company Name"},null,null,null,null,null,null,null,null,null,null,null,null,""]
[null,null,null,null,null,null,null,null,null,null,null,null,null,null,null,null,""]
[null,null,"Year-end:",{"$f":"'Form 1EBS'!C3","v":"2019-12-31"},null,null,null,null,null,null,null,null,null,null,null,null,""]
[null,null,null,null,null,null,null,null,null,null,null,null,null,null,null,null,""]
[null,null,"Insurer Registration No.",{"$f":"CONFIGURATION!B1","v":0},null,null,null,null,null,null,null,null,null,null,null,null,"bma_InsurerRegistrationNo"]

{"sheet":"Summary","index":102,"n_rows":174,"n_cols":43,"rows_kept":174,"cut":false,"hidden":false,"merged":[[68,40,70,41],[1,0,1,4],[76,2,76,4],[68,38,68,39],[68,36,68,37],[68,34,68,35],[52,12,52,13],[52,10,52,11],[50,10,50,13],[6,1,6,17],[114,10,114,13],[139,10,139,13],[146,10,146,13],[153,7,153,8],[48,1,48,18],[148,12,148,13],[88,10,88,13],[98,10,98,13],[104,10,104,13],[50,5,50,6]]}
["SUMMARY",null,null,null,null,null,null,null,null,null,null,null,null,null,null,null,null,{"$f":"HYPERLINK(\"#'Index'!A1\",\"Return to Index\")","v":"Return to Index"}]
[{"$f":"'Company Information'!C7","v":"Enter Company Name"},null,null,null,null,null,null,null,null,null,null,null,null,null,null,null,null,null,null,null,null,null,null,null,null,null,null,null,null,null,null,null,null,null,"Utilize Automatic Label Adjustment:",null,null,null,"No"]
["Bermuda Solvency Capital Requirement (BSCR)"]
[{"$f":"\"For the Year Ending \"","v":"For the Year Ending "},null,null,{"$f":"TEXT('Company Information'!C3,\"mmmm dd, yyyy\")","v":"December 31, 2019"}]
[{"$f":"\"(\"&IF(CONFIGURATION!$B$12>1,MID(CONFIGURATION!$B$12,2,LEN(CONFIGURATION!$B$12)),\"\")&\")\"","v":"(000)"}]
[]
[null,"UNCONSOLIDATED BASIS"]
[]
[null,"General Business Minimum Solvency Margin",null,null,null,null,null,null,null,null,"Liquidity Ratio"]
[]
[null,"Unconsolidated Capital & Surplus (Form 8SFS, Line 4)",null,null,null,null,{"$f":"IF('Company Information'!$B$2=\"Unconsolidated BSCR Model\",'Form 1SFS'!$M$198,'Form 1SFS'!$E$198)*IF('Form 1SFS'!$C$5=\"United States Dollars\",1,'Information Sheet'!$H$18)","v":0},null,null,"a)","Cash (Form 1SFS, Line 1)",null,null,{"$f":"IF('Company Information'!$B$2=\"Unconsolidated BSCR Model\",'Form 1SFS'!$M$12,'Form 1SFS'!$E$12)","v":0}]
[null,null,null,null,null,null,null,null,null,"b)","Quoted Investments (Form 1SFS, Line 2(f))",null,null,{"$f":"IF('Company Information'!$B$2=\"Unconsolidated BSCR Model\",'Form 1SFS'!$M$25,'Form 1SFS'!$E$25)","v":0}]
[null,"Minimum Margin of Solvency Test - must be greater of:",null,null,null,null,null,null,null,"c)","Unquoted Bonds & Debentures (Form 1SFS, Line 3(b))",null,null,{"$f":"IF('Company Information'!$B$2=\"Unconsolidated BSCR Model\",'Form 1SFS'!$M$31,'Form 1SFS'!$E$31)","v":0}]
[null,"a)","Base MSM:",null,null,null,{"$f":"IF(CONFIGURATION!$B$12=1000,(IF('Company Information'!$F$11=\"Class 4\",100000,1000)),IF('Company Information'!$F$11=\"Class 4\",100000000,1000000))","v":1000},null,null,"d)","Real Estate 1st liens (Form 1, Line 5(a))",null,null,{"$f":"IF('Company Information'!$B$2=\"Unconsolidated BSCR Model\",'Form 1SFS'!$M$51,'Form 1SFS'!$E$51)","v":0}]
[null,null,null,null,null,null,null,null,null,"e)","Investment Income Due & Accrued (Form 1SFS, Line 9)",null,null,{"$f":"IF('Company Information'!$B$2=\"Unconsolidated BSCR Model\",'Form 1SFS'!$M$64,'Form 1SFS'!$E$64)","v":0}]
[null,"b)","Net Premium Written (Schedule I, Form 2SFS Column A, Line 3)",null,null,{"$f":"IF('Company Information'!$B$2=\"Unconsolidated BSCR Model\",'Form 2SFS'!M18,'Form 2SFS'!E18)*IF('Form 1SFS'!$C$5=\"United States Dollars\",1,'Information Sheet'!$H$18)","v":0},null,null,null,"f)","A/C & Premiums Receivable (Form 1SFS, Line 10(d))",null,null,{"$f":"IF('Company Information'!$B$2=\"Unconsolidated BSCR Model\",'Form 1SFS'!$M$70,'Form 1SFS'!$E$70)","v":0}]
[null,null,"Premiums Ceded",null,null,{"$f":"IF('Company Information'!$B$2=\"Unconsolidated BSCR Model\",'Form 2SFS'!M16,'Form 2SFS'!E16)*IF('Form 1SFS'!$C$5=\"United States Dollars\",1,'Information Sheet'!$H$18)","v":0},null,null,null,"g)","R/I Balances Receivable (Form 1SFS, Line 11(e))",null,null,{"$f":"IF('Company Information'!$B$2=\"Unconsolidated BSCR Model\",'Form 1SFS'!$M$77,'Form 1SFS'!$E$77)","v":0}]
[null,null,{"$f":"IF('Company Information'!F11=\"Class 4\",\"\",\"20% of 1st $6M NPW\")","v":"20% of 1st $6M NPW"},null,null,{"$f":"IF(CONFIGURATION!$B$12=1000,IF('Company Information'!$F$11=\"Class 4\",\"\",MIN(F16*20%,1200)),IF('Company Information'!$F$11=\"Class 4\",\"\",MIN(F16*20%,1200000)))","v":0},null,null,null,"h)","Funds Held (Form 1SFS, Line 12)",null,null,{"$f":"IF('Company Information'!$B$2=\"Unconsolidated BSCR Model\",'Form 1SFS'!$M$79,'Form 1SFS'!$E$79)","v":0}]
[null,{"$f":"IF('Company Information'!$F$11=\"Class 4\",50,15)","v":15},{"$f":"IF('Company Information'!F11=\"Class 4\",\"% of NPW\",\"% of any above NPW above $6M\")","v":"% of any above NPW above $6M"},null,null,{"$f":"IF(CONFIGURATION!$B$12=1000,(IF('Company Information'!$F$11=\"Class 4\",MAX(((F16+F17)*75%*50%),F16*B19/100),IF(+(F16-6000)*B19/100>0,+(F16-6000)*B19/100,0))),IF(B19=\"\",0,IF('Company Information'!$F$11=\"Class 4\",MAX(((F16+F17)*75%*50%),F16*B19/100),IF(+(F16-6000000)*B19/100>0,+(F16-6000000)*B19/100,0))))","v":0},null,null,null,null,"Approved Assets (If applicable)"]
[null,null,"Net Premium Written Requirement",null,null,null,{"$f":"SUM(F18:F19)","v":0},null,null,null,"Total Relevant Assets",null,null,null,{"$f":"SUM(N11:N19)","v":0}]
[]
[null,"c)","Net Loss Provision (Schedule I, Form 1SFS Column A, Line 17(d))",null,null,{"$f":"IF('Company Information'!$B$2=\"Unconsolidated BSCR Model\",'Form 1SFS'!M124,'Form 1SFS'!E124)*IF('Form 1SFS'!$C$5=\"United States Dollars\",1,'Information Sheet'!$H$18)","v":0},null,null,null,"Total Liabilities (Form 1SFS, Line 39)",null,null,null,{"$f":"IF('Company Information'!$B$2=\"Unconsolidated BSCR Model\",'Form 1SFS'!$M$194,'Form 1SFS'!$E$194)","v":0}]
[null,null,"Other Insurance Reserves (Schedule I, Form 1SFS Column A, Line 18)",null,null,{"$f":"IF('Company Information'!$B$2=\"Unconsolidated BSCR Model\",'Form 1SFS'!M126,'Form 1SFS'!E126)*IF('Form 1SFS'!$C$5=\"United States Dollars\",1,'Information Sheet'!$H$18)","v":0},null,null,null,"less:"]
[null,null,"Total Provisions",null,null,{"$f":"SUM(F22:F23)","v":0},null,null,null,"a)","Deferred Income Tax (Form 1SFS, Line 31(b))",null,null,{"$f":"-IF('Company Information'!$B$2=\"Unconsolidated BSCR Model\",'Form 1SFS'!$M$166,'Form 1SFS'!$E$166)","v":0}]
[null,0.15,"Net Loss Reserve Requirement",null,null,null,{"$f":"F24*B25","v":0},null,null,"b)","LOC, guarantees (Form 1SFS, Line 37(d))",null,null,{"$f":"-IF('Company Information'!$B$2=\"Unconsolidated BSCR Model\",'Form 1SFS'!$M$190,'Form 1SFS'!$E$190)","v":0}]
[null,null,null,null,null,null,null,null,null,null,"Relevant Liabilities",null,null,null,{"$f":"SUM(N22:N25)","v":0}]
[null,"d)","MSM Floor = 25% of ECR ",null,null,null,{"$f":"G109*25%","v":250}]
[null,null,null,null,null,null,null,null,null,null,"75% of Relevant liabilities",null,null,null,{"$f":"O26*75%","v":0}]
[null,"e)","Minimum Margin of Solvency Adjustment (if Applicable)"]
[]
[null,"Minimum Margin of Solvency Requirement",null,null,null,null,{"$f":"IF(G29=\"\",MAX(G14,G20,G25,G27),G29)","v":1000}]
[]
[null,"Minimum Margin of Solvency Met",null,null,null,null,{"$f":"IF(G11>=G31,\"YES\",\"NO\")","v":"NO"},null,null,null,"Liquidity Test Met",null,null,null,{"$f":"IF(O20>=O28,\"YES\",\"NO\")","v":"YES"}]
[]
[]
[null,"Statutory Capital & Surplus Reduction",null,null,null,null,null,null,null,"Statutory Capital Reduction"]
[]
[null,"31B Statutory Capital & Surplus Reduction (Dividend Payment Maximum 25%)",null,null,null,null,null,null,null,null,"31C Statutory Capital Reduction (Maximum Reduction of 15%)"]
[]
[null,{"$f":"\"Unconsolidated Statutory Capital & Surplus for \"&YEAR('Form 1SFS'!$G$9)","v":"Unconsolidated Statutory Capital & Surplus for 2018"},null,null,null,null,{"$f":"IF('Company Information'!$B$2=\"Unconsolidated BSCR Model\",'Form 8SFS'!$Q$58,('Form 8SFS'!$I$58+'Form 8SFS'!$M$58))","v":0},null,null,null,{"$f":"\"Unconsolidated Statutory Capital for \"&YEAR('Form 1SFS'!$E9)","v":"Unconsolidated Statutory Capital for 2019"},null,null,null,{"$f":"IF('Company Information'!$B$2=\"Unconsolidated BSCR Model\",'Form 8SFS'!$O$36,('Form 8SFS'!$G$36+'Form 8SFS'!$K$36))","v":0}]
[null,null,null,null,null,null,null,null,null,null,{"$f":"\"Unconsolidated Statutory Capital for \"&YEAR('Form 1SFS'!$G$9)","v":"Unconsolidated Statutory Capital for 2018"},null,null,null,{"$f":"IF('Company Information'!$B$2=\"Unconsolidated BSCR Model\",'Form 8SFS'!$Q$36,('Form 8SFS'!$I$36+'Form 8SFS'!$M$36))","v":0}]
[null,"Maximum Dividend",null,null,null,{"$f":"25%*G40","v":0}]
[null,{"$f":"\"Dividend Payment in \"&YEAR('Form 1SFS'!$E$9)","v":"Dividend Payment in 2019"},null,null,null,{"$f":"-IF('Company Information'!$B$2=\"Unconsolidated BSCR Model\",'Form 8SFS'!$O$44,('Form 8SFS'!$G$44+'Form 8SFS'!$K$44))","v":0},null,null,null,null,{"$f":"\"Statutory Capital Change from \"&YEAR('Form 1SFS'!$G9)&\" to \"&YEAR('Form 1SFS'!$E9)","v":"Statutory Capital Change from 2018 to 2019"},null,null,{"$f":"O40-O41","v":0}]
[null,null,null,null,null,null,null,null,null,null,"Maximum Reduction",null,null,{"$f":"O41*-15%","v":0}]
[]
[null,"Insurer met Dividend Payment Requirement",null,null,null,null,{"$f":"IF(F42>=F43,\"YES\",\"NO\")","v":"YES"},null,null,null,"Insurer met Capital Reduction Requirement",null,null,null,{"$f":"IF(N44<N43,\"YES\",\"NO\")","v":"NO"}]
[]
[]
[null,"CONSOLIDATED ECONOMIC BALANCE SHEET BASIS"]
[]
[null,"REQUIRED CAPITAL AND SURPLUS",null,null,null,"2018 Year-End Methodology",null,null,null,null,"2019 Year-End Revised Methodology",null,null,null,null,null,null,null,null,null,null,null,"Data for Pie Chart",null,null,null,null,null,"Cum. %","Mid.","Risk","Left","Top",null,"4 Right",null,"3 Right - 1 Down",null,"3 Right",null,"Custom",null,"Risk"]
[]
[null,null,null,null,null,null,null,null,null,null,"Net Capital Charge",null,"Gross Capital Charge"]
[null,"Market Risk",null,null,null,null,null,null,null,null,null,{"$f":"SQRT(MMULT(TRANSPOSE(K55:K59),MMULT('Correlation Matrix'!C7:G11,K55:K59)))","v":0},null,{"$f":"SQRT(MMULT(TRANSPOSE(M55:M59),MMULT('Correlation Matrix'!C7:G11,M55:M59)))","v":0}]
[null,"Cfi","Fixed Income Investment Risk",null,null,null,{"$f":"ROUND('Fixed Income Investments'!F99,$N$163)","v":0},null,null,null,{"$f":"ROUND('Fixed Income Investments (Rev.)'!I136,$N$163)","v":0},null,{"$f":"ROUND('Fixed Income Investments (Rev.)'!I136,$N$163)","v":0},null,null,null,null,null,null,{"$f":"C55","v":"Fixed Income Investment Risk"},null,null,null,{"$f":"G55","v":0},{"$f":"IF($L$71=0,1/9,X55/$X$65)","v":0.1111111111111111},{"$f":"M55","v":0},{"$f":"IF($N$71=0,1/9,Z55/$Z$65)","v":0.1111111111111111},null,{"$f":"(SUM(AA$55:AA55)/AA$65)","v":0.11111111111111108},null,"FI",{"$f":"IF(AO55=\"\",IF(Test_Statistic<$AJ$71,AI55,IF(Test_Statistic<$AL$71,AK55,AM55)),AO55)","v":280},{"$f":"IF(AP55=\"\",IF(Test_Statistic<$AJ$71,AJ55,IF(Test_Statistic<$AL$71,AL55,AN55)),AP55)","v":60},null,{"$f":"IF(AC60>1,300,IF(AC60>0.6,260,240))","v":260},{"$f":"IF(AC62>1,50,IF(AC60>1,20,IF(AC60>0.6,25,15)))","v":25},{"$f":"IF(Test_Statistic_2<1,300,300)","v":300},60,280,60,null,null,"FI"]
[null,"Ceq","Equity Investment Risk",null,null,null,{"$f":"ROUND('Equity Investments'!F51,$N$163)","v":0},null,null,null,{"$f":"ROUND('Equity Investments (Revised)'!R58,$N$163)","v":0},null,{"$f":"ROUND('Equity Investments (Revised)'!P58,$N$163)","v":0},null,null,null,null,null,null,{"$f":"C56","v":"Equity Investment Risk"},null,null,null,{"$f":"G56","v":0},{"$f":"IF($L$71=0,1/9,X56/$X$65)","v":0.1111111111111111},{"$f":"M56","v":0},{"$f":"IF($N$71=0,1/9,Z56/$Z$65)","v":0.1111111111111111},null,{"$f":"(SUM(AA$55:AA56)/AA$65)","v":0.22222222222222215},null,"EI",{"$f":"IF(AO56=\"\",IF(Test_Statistic<$AJ$71,AI56,IF(Test_Statistic<$AL$71,AK56,AM56)),AO56)","v":280},{"$f":"IF(AP56=\"\",IF(Test_Statistic<$AJ$71,AJ56,IF(Test_Statistic<$AL$71,AL56,AN56)),AP56)","v":140},null,{"$f":"IF(AC60>0.6,300,300)","v":300},{"$f":"IF(AC62>1,90,IF(AC60>1,60,IF(AC60>0.6,90,60)))","v":90},300,120,280,140,null,null,"EI"]
[null,"Cint","Interest Rate / Liquidity Risk",null,"Duration-Based Approach",null,{"$f":"ROUND('Interest Rate-Liquidity Risk'!G15,$N$163)","v":0},null,null,null,{"$f":"ROUND(IF(E57=\"Duration-Based Approach\",'Interest Rate-Liquidity Risk'!G15,'Interest Rate-Liquidity (Rev.)'!E117),$N$163)","v":0},null,{"$f":"ROUND(IF(E57=\"Duration-Based Approach\",'Interest Rate-Liquidity Risk'!G15,'Interest Rate-Liquidity (Rev.)'!D117),$N$163)","v":0},null,null,null,null,null,null,{"$f":"C57","v":"Interest Rate / Liquidity Risk"},null,null,null,{"$f":"G57","v":0},0.1111111111111111,{"$f":"M57","v":0},0.1111111111111111,null,{"$f":"(SUM(AA$55:AA57)/AA$65)","v":0.33333333333333326},null,"IR",{"$f":"IF(AO57=\"\",IF(Test_Statistic<$AJ$71,AI57,IF(Test_Statistic<$AL$71,AK57,AM57)),AO57)","v":180},250,null,{"$f":"IF(AC60>0.6,300,300)","v":300},{"$f":"IF(AC62>1,140,IF(AC60>1,120,IF(AC60>0.6,150,100)))","v":150},{"$f":"IF(Test_Statistic_2<0.95,280,260)","v":280},{"$f":"IF(Test_Statistic_2<0.95,170,200)","v":170},180,250,null,null,"IR"]
[null,"CCur","Currency Risk",null,null,null,{"$f":"+'Currency Risk'!I28","v":0},null,null,null,{"$f":"'Currency Risk (Revised)'!Y39","v":0},null,{"$f":"'Currency Risk (Revised)'!X39","v":0},null,null,null,null,null,null,"Currency Risk",null,null,null,{"$f":"G58","v":0},0.1111111111111111,{"$f":"M58","v":0},0.1111111111111111,null,{"$f":"(SUM(AA$55:AA58)/AA$65)","v":0.44444444444444431}]
[null,"Cconc","Concentration Risk",null,null,null,{"$f":"+'Concentration Risk'!F111","v":0},null,null,null,{"$f":"'Concentration Risk (Revised)'!F110","v":0},null,{"$f":"'Concentration Risk (Revised)'!F110","v":0},null,null,null,null,null,null,"Concentration Risk",null,null,null,{"$f":"G59","v":0},0.1111111111111111,{"$f":"M59","v":0},0.1111111111111111,null,{"$f":"(SUM(AA$55:AA59)/AA$65)","v":0.55555555555555547}]
[null,null,null,null,null,null,null,null,null,null,null,null,null,null,null,null,null,null,null,{"$f":"C62","v":"Credit Risk"},null,null,null,{"$f":"G62","v":0},0.1111111111111111,{"$f":"M62","v":0},0.1111111111111111,null,{"$f":"(SUM(AA$55:AA62)/AA$65)","v":0.88888888888888884},{"$f":"IF(ISERROR(AVERAGE(AC62:AC62)),0,AVERAGE(AC62:AC62))","v":0.88888888888888884},"C",{"$f":"IF(AO62=\"\",IF(Test_Statistic<$AJ$71,AI60,IF(Test_Statistic<$AL$71,AK60,AM60)),AO62)","v":50},{"$f":"IF(AP62=\"\",IF(Test_Statistic<$AJ$71,AJ60,IF(Test_Statistic<$AL$71,AL60,AN60)),AP62)","v":50},null,{"$f":"IF(AC62>1,200,IF(AC60>1,50,IF(AC60>0.6,50,180)))","v":50},{"$f":"IF(AC62>1,5,IF(AC60>0.6,IF(AD62>0.5,60,120),IF(AC60>0.6,100,200)))","v":60},{"$f":"IF(Test_Statistic_2<0.95,50,160)","v":50},{"$f":"IF(Test_Statistic_2<0.95,70,5)","v":70},{"$f":"IF(Test_Statistic_2<1,50,180)","v":50},{"$f":"IF(Test_Statistic_2<1,50,5)","v":50}]
[null,"Credit Risk",null,null,null,null,null,null,null,null,null,{"$f":"K62","v":0},null,{"$f":"M62","v":0},null,null,null,null,null,{"$f":"C65","v":"Premium Risk"},null,null,null,{"$f":"G65","v":0},0.1111111111111111,{"$f":"M65","v":0},0.1111111111111111,null,{"$f":"(SUM(AA$55:AA61)/AA$65)","v":0.77777777777777768},{"$f":"IF(ISERROR(AVERAGE(AC57:AC61)),0,AVERAGE(AC57:AC61))","v":0.59999999999999987},"P",{"$f":"IF(AO65=\"\",IF(Test_Statistic<$AJ$71,AI61,IF(Test_Statistic<$AL$71,AK61,AM61)),AO65)","v":100},250,null,{"$f":"IF(AC62>1,250,IF(AC60>1,300,IF(AC60>0.6,260,300)))","v":260},{"$f":"IF(AC60>0.6,185,140)","v":185},{"$f":"IF(Test_Statistic_2<0.95,180,120)","v":180},200,100,250]
[null,"Ccred","Credit Risk",null,null,null,{"$f":"ROUND('Credit Risk'!F41,$N$163)","v":0},null,null,null,{"$f":"ROUND('Credit Risk (Revised)'!H84,$N$163)","v":0},null,{"$f":"ROUND('Credit Risk (Revised)'!H84,$N$163)","v":0},null,null,null,null,null,null,{"$f":"C66","v":"Reserve Risk"},null,null,null,{"$f":"G66","v":0},0.1111111111111111,{"$f":"M66","v":0},0.1111111111111111,null,{"$f":"(SUM(AA$55:AA62)/AA$65)","v":0.88888888888888884},{"$f":"IF(ISERROR(AVERAGE(AC61:AC62)),0,AVERAGE(AC61:AC62))","v":0.83333333333333326},"R",{"$f":"IF(AO66=\"\",IF(Test_Statistic<$AJ$71,AI62,IF(Test_Statistic<$AL$71,AK62,AM62)),AO66)","v":50},160,null,{"$f":"IF(AC62>1,50,IF(AC60>0.6,120,260))","v":120},{"$f":"IF(AC62>1,90,IF(AC60>0.6,200,185))","v":200},50,{"$f":"IF(Test_Statistic_2<0.95,160,80)","v":160},{"$f":"IF(Test_Statistic_2<1,50,50)","v":50},150,null,null,"C"]
[null,null,null,null,null,null,null,null,null,null,null,null,null,null,null,null,null,null,null,{"$f":"C67","v":"Catastrophe Risk"},null,null,null,{"$f":"G67","v":0},0.1111111111111111,{"$f":"M67","v":0},0.1111111111111111,null,{"$f":"(SUM(AA$55:AA64)/AA$65)","v":1},null,"CAT",{"$f":"IF(AO67=\"\",IF(Test_Statistic<$AJ$71,AI63,IF(Test_Statistic<$AL$71,AK63,AM63)),AO67)","v":180},{"$f":"IF(AP67=\"\",IF(Test_Statistic<$AJ$71,AJ63,IF(Test_Statistic<$AL$71,AL63,AN63)),AP67)","v":5},null,{"$f":"IF(AC62>1,260,IF(AC60>1,200,IF(AC60>0.6,180,40)))","v":180},{"$f":"IF(AC62>1,15,IF(AC60>0.6,5,100))","v":5},{"$f":"IF(Test_Statistic_2<0.95,180,240)","v":180},{"$f":"IF(Test_Statistic_2<0.95,5,20)","v":5},{"$f":"IF(Test_Statistic_2<1,180,240)","v":180},{"$f":"IF(Test_Statistic_2<1,5,20)","v":5}]
[null,"P&C Insurance Risk",null,null,null,null,null,null,null,null,null,{"$f":"SQRT(MMULT(TRANSPOSE(K65:K67),MMULT('Correlation Matrix'!J7:L9,K65:K67)))","v":0},null,{"$f":"SQRT(MMULT(TRANSPOSE(M65:M67),MMULT('Correlation Matrix'!J7:L9,M65:M67)))","v":0}]
[null,"Cprem","Premium Risk",null,null,null,{"$f":"ROUND('Premium Risk'!I78,$N$163)","v":0},null,null,null,{"$f":"ROUND('Premium Risk (Revised)'!N59,$N$163)","v":0},null,{"$f":"ROUND('Premium Risk (Revised)'!N59,$N$163)","v":0},null,null,null,null,null,null,"Total",null,null,null,{"$f":"SUM(X55:X64)","v":0},{"$f":"SUM(Y55:Y64)","v":1.0000000000000002},{"$f":"SUM(Z55:Z64)","v":0},{"$f":"SUM(AA55:AA64)","v":1.0000000000000002},null,null,null,null,null,null,null,null,null,null,null,null,null,null,null,"P"]
[null,"Crsvs","Reserve Risk",null,null,null,{"$f":"ROUND('Reserve Risk'!H68,$N$163)","v":0},null,null,null,{"$f":"ROUND('Reserve Risk (Revised)'!H53,$N$163)","v":0},null,{"$f":"ROUND('Reserve Risk (Revised)'!H53,$N$163)","v":0},null,null,null,null,null,null,null,null,null,null,null,null,null,null,null,null,null,null,null,null,null,null,null,null,null,null,null,null,null,"R"]
[null,"Ccat","Catastrophe Risk",null,null,null,{"$f":"ROUND('Catastrophe Risk'!E25,$N$163)","v":0},null,null,null,{"$f":"ROUND('Catastrophe Risk (Revised)'!E25,$N$163)","v":0},null,{"$f":"ROUND('Catastrophe Risk (Revised)'!E25,$N$163)","v":0},null,null,null,null,null,null,null,null,null,null,null,null,null,null,null,null,null,null,null,null,null,null,null,null,null,null,null,null,null,"CAT"]
[]
[null,"BSCR (Prior to Covariance Adjustment/Correlation Adjustment)",null,null,null,null,{"$f":"SUM(G55:G67)","v":0},null,null,null,null,{"$f":"SUM(K55:K67)","v":0},null,{"$f":"SUM(M55:M67)","v":0},null,null,null,null,null,null,null,null,null,null,null,null,null,null,null,null,null,null,null,null,{"$f":"AI71&\" - \"&AJ71","v":"0 - 0.425"},null,{"$f":"AJ71&\" - \"&AL71","v":"0.425 - 0.575"},null,{"$f":"AL71&\" - \"&AN71","v":"0.575 - 1"},null,"Use the above to manually change label positions."]
[]
[null,"BSCR (After Covariance Adjustment/Correlation Adjustment)",null,null,null,null,{"$f":"(G55^2+G56^2+G57^2+G58^2+G59^2+G65^2+G67^2+(1/2*G62+G66)^2+(1/2*G62)^2)^0.5","v":0},null,null,null,null,{"$f":"SQRT(MMULT(TRANSPOSE('Correlation Matrix'!Z6:Z8),MMULT('Correlation Matrix'!O7:Q9,'Correlation Matrix'!Z6:Z8)))","v":0},null,{"$f":"SQRT(MMULT(TRANSPOSE('Correlation Matrix'!W6:W8),MMULT('Correlation Matrix'!O7:Q9,'Correlation Matrix'!W6:W8)))","v":0},null,null,null,null,null,null,null,null,null,null,null,null,null,null,null,null,null,null,null,null,0,{"$f":"0.5-AI89","v":0.42499999999999999},{"$f":"AJ71","v":0.42499999999999999},{"$f":"0.5+AI89","v":0.57499999999999996},{"$f":"AL71","v":0.57499999999999996},1]
[]
[null,"Operational risk charge (%)",null,null,null,null,{"$f":"'Op Risk'!D27","v":0.1},null,null,null,null,null,null,{"$f":"'Op Risk (Revised)'!D27","v":0.2}]
[]
[null,"Operational risk capital charge ($)",null,null,null,null,{"$f":"$G$71*$G$73","v":0},null,null,null,null,null,null,{"$f":"($N$71+N144)*$N$73","v":0},null,null,null,null,null,null,null,null,null,"Minimum Solvency Margin",null,{"$f":"MAX(Z83,Z85,Z89)","v":1000},"ECR",null,{"$f":"MAX($Z$75,$N$87)","v":1000}]
[]
[null,"Cadj","Capital Adjustment for (Regulatory) Capital Requirement for Regulated Non-Insurance Financial Operating Entities:",null,null,null,{"$f":"+'Schedule XVI'!M211","v":0},null,null,null,null,null,null,{"$f":"+'Schedule XVI'!M211","v":0}]
[]
[null,"CMgmtAction",null,null,null,null,null,null,null,null,null,null,null,{"$f":"N144","v":0}]
[]
[null,"Other Capital Adjustment",null,null,null,null,0,null,null,null,null,null,null,{"$f":"M149","v":0}]
[]
[null,"Capital add-on / reduction (BMA assessment)",null,null,null,null,{"$f":"'Company Specific Parameters'!I524-'Company Specific Parameters'!F524","v":0},null,null,null,null,null,null,{"$f":"'CSP (Revised)'!L692-'CSP (Revised)'!I692","v":0},null,null,null,null,null,"brrt_CapitalAddonReductionBMAAssessmentRequiredCapitalAndSurplus",{"$f":"XBRLMap(N83,T83,E$163,E$164,CONFIGURATION!$B$10,\"BMA\",CONFIGURATION!$B$1,\"bscr\",CONFIGURATION!$B$12)","v":"Mapped"},null,null,"LRSO",null,{"$f":"IF('Company Information'!B2=\"Unconsolidated BSCR Model\",'Form 1SFS'!M124*IF('Form 1SFS'!$C$5=\"United States Dollars\",1,'Information Sheet'!$H$18)*15%,'Form 1SFS'!E124*IF('Form 1SFS'!$C$5=\"United States Dollars\",1,'Information Sheet'!$H$18)*15%)","v":0}]
[]
[null,"Transition BSCR ",null,null,null,null,0,null,null,null,null,null,null,{"$f":"IF(YEAR('Company Information'!C3)<2020,(N87-G87)*33%+G87,IF(YEAR('Company Information'!C3)<2021,(N87-G87)*66%+G87,N87))","v":0},null,null,null,null,null,"brrt_BSCR",{"$f":"XBRLMap(N87,T85,E$163,E$164,CONFIGURATION!$B$10,\"BMA\",CONFIGURATION!$B$1,\"bscr\",CONFIGURATION!$B$12)","v":"Mapped"},null,null,"Minimum Capital & Surplus",null,{"$f":"IF('Company Information'!F11=\"Class 4\",IF(CONFIGURATION!B12=1000,100000,100000000),IF(CONFIGURATION!B12=1000,1000,1000000))","v":1000}]
[]
[null,"Full BSCR ",null,null,null,null,{"$f":"G71+G75+G83+G77","v":0},null,null,null,null,null,null,{"$f":"N71+N75+N83+N77-N81+N79","v":0}]
[]
[null,"AVAILABLE STATUTORY CAPITAL AND SURPLUS",null,null,null,null,{"$f":"'Form 1EBS'!$F$7","v":"2019-12-31"},null,null,null,"2019 Year-End Revised Methodology",null,null,null,null,null,null,null,null,null,null,null,null,"Premiums",null,{"$f":"G20","v":0},null,null,null,null,null,null,null,null,7.4999999999999997E-2,"Swing"]
[]
[null,"Total statutory economic capital and surplus",null,null,"Form 1EBS, Line (40)",null,{"$f":"'Form 1EBS'!F167","v":0},null,null,null,null,null,null,{"$f":"'Form 1EBS'!F167","v":0},null,null,null,null,null,"brrt_StatutoryCapitalAndSurplus","Mapped in Form 8",null,"Data for Column Chart"]
[null,"Capital Contribution",null,null,null,null,null,null,null,null,null,null,null,null,null,null,null,null,null,"brrt_CapitalContribution",{"$f":"XBRLMap(N92,T92,E$163,E$164,CONFIGURATION!$B$10,\"BMA\",CONFIGURATION!$B$1,\"bscr\",CONFIGURATION!$B$12)","v":"Mapped"}]
[null,"Pre-adjustment available statutory economic capital and surplus",null,null,null,null,{"$f":"G91+G92","v":0},null,null,null,null,null,null,{"$f":"N91+N92","v":0},null,null,null,null,null,"brrt_PreAdjustmentAvailableStatutoryCapitalSurplus",{"$f":"XBRLMap(N93,T93,E$163,E$164,CONFIGURATION!$B$10,\"BMA\",CONFIGURATION!$B$1,\"bscr\",CONFIGURATION!$B$12)","v":"Mapped"}]
[]
[null,null,"Capital add-on / reduction (BMA Assessment)",null,null,null,null,null,null,null,null,null,null,null,null,null,null,null,null,"brrt_CapitalAddonReductionBMAAssessmentAvailableStatutoryCapitalAndSurplus",{"$f":"XBRLMap(N95,T95,E$163,E$164,CONFIGURATION!$B$10,\"BMA\",CONFIGURATION!$B$1,\"bscr\",CONFIGURATION!$B$12)","v":"Mapped"}]
[]
[null,"Available Statutory Economic Capital and Surplus",null,null,null,null,{"$f":"G93-SUM(G95:G95)","v":0},null,null,null,null,null,null,{"$f":"N93-SUM(N95:N95)","v":0},null,null,null,null,null,"brrt_AvailableStatutoryCapitalSurplus",{"$f":"XBRLMap(N97,T97,E$163,E$164,CONFIGURATION!$B$10,\"BMA\",CONFIGURATION!$B$1,\"bscr\",CONFIGURATION!$B$12)","v":"Mapped"}]
[]
[null,"MINIMUM MARGIN OF SOLVENCY",null,null,null,null,{"$f":"'Form 1EBS'!$F$7","v":"2019-12-31"},null,null,null,"2019 Year-End Revised Methodology"]
[]
[null,"Minimum Margin of Solvency (Calculation)",null,null,null,null,{"$f":"MAX(Z75,(G87*25%))","v":1000},null,null,null,null,null,null,{"$f":"MAX(Z75,(N87*25%))","v":1000}]
[null,"Approved Minimum Margin of Solvency (if applicable)"]
[null,"Minimum Margin of Solvency",null,null,null,null,{"$f":"SUM(G101:G102)","v":1000},null,null,null,null,null,null,{"$f":"SUM(N101:N102)","v":1000},null,null,null,null,null,"brrt_MinimumSolvencyMargin","Mapped in Schedule XIII(a)",null,null,null,null,null,"Bottom",null,"Top","Level"]
[]
[null,"ENHANCED CAPITAL REQUIREMENT & TARGET CAPITAL LEVEL",null,null,null,null,{"$f":"'Form 1EBS'!$F$7","v":"2019-12-31"},null,null,null,"2019 Year-End Revised Methodology",null,null,null,null,null,null,null,null,null,null,null,null,"Adjusted Surplus","Available Statutory Capital and Surplus",null,{"$f":"IF($N$97=0,15000000,$N$97)","v":15000000},null,{"$f":"AC$119-AA105","v":10000000},{"$f":"IF($N$97=0,25000000,$N$97)","v":25000000}]
[]
[null,"Transition Enhanced Capital Requirement",null,null,null,null,null,null,null,null,null,null,null,{"$f":"MAX(N85,N103)","v":1000}]
[]
[null,"Enhanced Capital Requirement",null,null,null,null,{"$f":"MAX(G103,G87)","v":1000},null,null,null,null,null,null,{"$f":"MAX(N103,N87)","v":1000},null,null,null,null,null,"brrt_EnhancedCapitalRequirement","Mapped in Schedule XIII(a)",null,null,"Mandatory Control Level (100% of ACL)","Regulatory Action Level 1",1,{"$f":"IF($AC$75=100000,15000000,$AC$75)","v":1000},null,{"$f":"AC$119-AA109","v":24999000},{"$f":"Z109*AA$110","v":1000}]
[null,null,null,null,null,null,null,null,null,null,null,null,null,null,null,null,null,null,null,null,null,null,null,"Authorized Control Level (120% of ACL)","Regulatory Action Level 2",1.2,{"$f":"IF($AC$75=100000,15000000,$AC$75)","v":1000},null,{"$f":"AC$119-AA110","v":24999000},{"$f":"Z110*AA$110","v":1200}]
[null,"Transition Target Capital Level",null,null,null,null,null,null,null,null,null,null,null,{"$f":"N107*1.2","v":1200}]
[]
[null,"Target Capital Level",null,null,null,null,{"$f":"$G$109*1.2","v":1200},null,null,null,null,null,null,{"$f":"$N$109*1.2","v":1200},null,null,null,null,null,"brrt_TargetCapitalLevel",{"$f":"XBRLMap(N113,T113,E$163,E$164,CONFIGURATION!$B$10,\"BMA\",CONFIGURATION!$B$1,\"bscr\",CONFIGURATION!$B$12)","v":"Mapped"},null,null,null,"AL3",null,{"$f":"IF(N71=0,15000000,N71)","v":15000000},null,{"$f":"AC$119-AA113","v":10000000},{"$f":"Z113*AA$110","v":0}]
[null,null,null,null,null,null,null,null,null,null,null,null,null,null,null,null,null,null,null,null,null,null,null,null,"AL4",null,{"$f":"IF(N71=0,15000000,N71)","v":15000000},null,{"$f":"AC$119-AA114","v":10000000},{"$f":"Z114*AA$110","v":0}]
[null,"RATIOS",null,null,null,null,{"$f":"'Form 1EBS'!$F$7","v":"2019-12-31"},null,null,null,"2019 Year-End Revised Methodology"]
[]
[null,"Transition Bermuda Solvency Capital Requirement Ratio",null,null,null,null,null,null,null,null,null,null,null,{"$f":"IF(N85=0,\"n/a\",N97/N85)","v":"n/a"}]
[]
[null,"Bermuda Solvency Capital Requirement Ratio",null,null,null,null,{"$f":"IF($G$87=0,\"n/a\",$G$97/$G$87)","v":"n/a"},null,null,null,null,null,null,{"$f":"IF($N$87=0,\"n/a\",$N$97/$N$87)","v":"n/a"},null,null,null,null,null,"brrt_BSCRRatio",{"$f":"XBRLMap(N119,T119,E$163,E$164,CONFIGURATION!$B$10,\"BMA\",CONFIGURATION!$B$1,\"bscr\",CONFIGURATION!$B$12)","v":"Mapped"},null,null,null,null,null,"Max Column",null,{"$f":"MAX(AD105:AD114)","v":25000000}]
[]
[null,"Transition Enhanced Capital Requirement Ratio",null,null,null,null,null,null,null,null,null,null,null,{"$f":"IF(N107=0,\"n/a\",N97/N107)","v":0}]
[]
[null,"Enhanced Capital Requirement Ratio",null,null,null,null,{"$f":"IF($G$87=0,\"n/a\",$G$97/$G$109)","v":"n/a"},null,null,null,null,null,null,{"$f":"IF($N$87=0,\"n/a\",$N$97/$N$109)","v":"n/a"},null,null,null,null,null,"brrt_EnhancedCapitalRequirementRatio",{"$f":"XBRLMap(N123,T123,E$163,E$164,CONFIGURATION!$B$10,\"BMA\",CONFIGURATION!$B$1,\"bscr\",CONFIGURATION!$B$12)","v":"Mapped"}]
[]
[null,"Enhancement Capital Requirement Met",null,null,null,null,{"$f":"IF(G123=\"n/a\",\"n/a\",IF(G123>100%,\"YES\",\"NO\"))","v":"n/a"},null,null,null,null,null,null,{"$f":"IF(N123=\"n/a\",\"n/a\",IF(N123>100%,\"YES\",\"NO\"))","v":"n/a"}]
[]
[]
[null,"Eligible Capital",null,null,null,null,{"$f":"'Form 1EBS'!$F$7","v":"2019-12-31"}]
[]
[null,null,null,null,"Applied to MSM",null,"Applied to ECR"]
[]
[null,"Tier 1 Capital ",null,null,{"$f":"+'Schedule XII(a)'!G93","v":0},null,{"$f":"+'Schedule XII(a)'!I93","v":0}]
[null,"Tier 2 Capital ",null,null,{"$f":"+'Schedule XII(a)'!G94","v":0},null,{"$f":"+'Schedule XII(a)'!I94","v":0}]
[null,"Tier 3 Capital ",null,null,{"$f":"+'Schedule XII(a)'!G95","v":0},null,{"$f":"+'Schedule XII(a)'!I95","v":0}]
[null,"Total Capital",null,null,{"$f":"+'Schedule XII(a)'!G96","v":0},null,{"$f":"+'Schedule XII(a)'!I96","v":0}]
[]
[null,"Insurer met Eligible Capital Requirement",null,null,{"$f":"IF(E135>=$G$109,\"YES\",\"NO\")","v":"NO"},null,{"$f":"IF(G135>=$G$109,\"YES\",\"NO\")","v":"NO"}]
[]
[]
[null,"Capital Adjustment - Management Action ",null,null,null,null,null,null,null,null,"2019 Year-End Revised Methodology"]
[]
[null,"Implied Loss-absorbing capacity of Technical Provisions without cap",null,null,null,null,null,null,null,null,null,null,null,{"$f":"N71-L71","v":0}]
[null,"Initial FDB / Bonus reserve on EBS basis",null,null,null,null,null,null,null,null,null,null,null,{"$f":"Import!M11328","v":0}]
[null,"Adj. for the Loss-absorbing capacity of Tech. Provisions",null,null,null,null,null,null,null,null,null,null,null,{"$f":"-MAX(MIN(N142,N143),0)","v":0}]
[]
[]
[null,"Other Capital Adjustment",null,null,null,null,null,null,null,null,"2019 Year-End Revised Methodology"]
[]
[null,"Adjustment = min (BSCR x t, Limit, 20% x BSCR)",null,null,null,null,null,null,null,null,null,null,{"$f":"-MIN(D155,G158,N154)","v":0}]
[]
[null,"Test 1",null,null,"Test 2",null,null,"Test 3"]
[]
[null,"BSCR",null,{"$f":"N71+N75+N77+N79+N83","v":0},"Limit = Past LAC + Current LAC + Future LAC",null,null,"BSCR",null,null,null,null,null,{"$f":"N71+N75+N77+N83+N79","v":0}]
[null,"T",null,{"$f":"Import!M11326","v":0},"Loss Carryback Provision",null,{"$f":"MAX(0,Import!M11327)","v":0},0.2,null,null,null,null,null,{"$f":"N153*H154","v":0}]
[null,"Test Result",null,{"$f":"MAX(0,D153*D154)","v":0},"PAST LAC",null,{"$f":"G154*D154","v":0}]
[null,null,null,null,"Current LAC",null,{"$f":"'Form 1EBS'!F131-'Form 1EBS'!F79","v":0}]
[null,null,null,null,"Future LAC",null,{"$f":"'Form 1EBS'!F117*D154","v":0}]
[null,null,null,null,"Total Limit",null,{"$f":"MAX(0,SUM(G155:G157))","v":0}]
[]
[]
[]
[]
[null,"Rounding (decimal places)",null,null,null,null,null,null,null,null,null,null,null,10]
[]
[]
[]
[]
[null,null,null,null,null,null,null,null,null,null,null,null,null,"bma_FixedIncomeInvestmentRisk"]
[null,null,null,null,null,null,null,null,null,null,null,null,null,"bma_EquityInvestmentRisk"]
[null,null,null,null,null,null,null,null,null,null,null,null,null,"bma_InterestRateAndLiquidityRisk"]
[null,null,null,null,null,null,null,null,null,null,null,null,null,"bma_PremiumRisk"]
[null,null,null,null,null,null,null,null,null,null,null,null,null,"bma_ReserveRisk"]
[null,null,null,null,null,null,null,null,null,null,null,null,null,"bma_CreditRisk"]
[null,null,null,null,null,null,null,null,null,null,null,null,null,"bma_CatastropheRisk"]

{"sheet":"Fixed Income Investments","index":103,"n_rows":99,"n_cols":6,"rows_kept":99,"cut":false,"hidden":false,"merged":[[102,0,102,1],[0,5,0,6]]}
["FIXED INCOME INVESTMENTS",null,null,null,null,{"$f":"HYPERLINK(\"#'Index'!A1\",\"Return to Index\")","v":"Return to Index"}]
[{"$f":"'Company Information'!C7","v":"Enter Company Name"}]
["Fixed Income Investment Risk",null,{"$f":"'Company Information'!C3","v":"2019-12-31"},-1,-2,-3]
[]
[]
[null,"TYPE OF ",null,"ASSET","CAPITAL","REQUIRED"]
[null,"FIXED INCOME INVESTMENTS","STATEMENT SOURCE","VALUE","FACTOR","CAPITAL"]
[]
[null,"(a)  Corporate & Sovereign Bonds",null,null,null,"(1) x (2)"]
[]
[null,"BSCR Rating"]
[null,0,"Sch II EBS, Line (1), Column 1 and Sch IIA EBS, Line (1), Column 1",{"$f":"'Schedule II (EBS)'!D12+'Schedule IIA (EBS)'!D12","v":0},0,{"$f":"IF(D12<0,0,D12*E12)","v":0}]
[null,1,"Sch II EBS, Line (2), Column 1 and Sch IIA EBS, Line (2), Column 1",{"$f":"'Schedule II (EBS)'!D13+'Schedule IIA (EBS)'!D13","v":0},4.0000000000000001E-3,0]
[null,2,"Sch II EBS, Line (3), Column 1 and Sch IIA EBS, Line (3), Column 1",{"$f":"'Schedule II (EBS)'!D14+'Schedule IIA (EBS)'!D14","v":0},8.0000000000000002E-3,0]
[null,3,"Sch II EBS, Line (4), Column 1 and Sch IIA EBS, Line (4), Column 1",{"$f":"'Schedule II (EBS)'!D15+'Schedule IIA (EBS)'!D15","v":0},1.4999999999999999E-2,0]
[null,4,"Sch II EBS, Line (5), Column 1 and Sch IIA EBS, Line (5), Column 1",{"$f":"'Schedule II (EBS)'!D16+'Schedule IIA (EBS)'!D16","v":0},0.03,0]
[null,5,"Sch II EBS, Line (6), Column 1 and Sch IIA EBS, Line (6), Column 1",{"$f":"'Schedule II (EBS)'!D17+'Schedule IIA (EBS)'!D17","v":0},0.08,0]
[null,6,"Sch II EBS, Line (7), Column 1 and Sch IIA EBS, Line (7), Column 1",{"$f":"'Schedule II (EBS)'!D18+'Schedule IIA (EBS)'!D18","v":0},0.15,{"$f":"IF(D18<0,0,D18*E18)","v":0}]
[null,7,"Sch II EBS, Line (8), Column 1 and Sch IIA EBS, Line (8), Column 1",{"$f":"'Schedule II (EBS)'!D19+'Schedule IIA (EBS)'!D19","v":0},0.26300000000000001,{"$f":"IF(D19<0,0,D19*E19)","v":0}]
[null,8,"Sch II EBS, Line (9), Column 1 and Sch IIA EBS, Line (9), Column 1",{"$f":"'Schedule II (EBS)'!D20+'Schedule IIA (EBS)'!D20","v":0},0.35,{"$f":"IF(D20<0,0,D20*E20)","v":0}]
[]
[null,"(a)  SUBTOTAL -  CORPORATE BONDS",null,{"$f":"SUM(D11:D20)","v":0},null,{"$f":"IF(SUM(F11:F20)>=0,SUM(F11:F20),0)","v":0}]
[]
[null,"(b) Residential Mortgage-Backed Securities"]
[]
[null,"BSCR Rating"]
[null,1,"Sch II EBS, Line (2), Column 3 and Sch IIA EBS, Line (2), Column 3",{"$f":"'Schedule II (EBS)'!H13+'Schedule IIA (EBS)'!H13","v":0},6.0000000000000001E-3,{"$f":"IF(D27<0,0,D27*E27)","v":0}]
[null,2,"Sch II EBS, Line (3), Column 3 and Sch IIA EBS, Line (3), Column 3",{"$f":"'Schedule II (EBS)'!H14+'Schedule IIA (EBS)'!H14","v":0},1.2E-2,0]
[null,3,"Sch II EBS, Line (4), Column 3 and Sch IIA EBS, Line (4), Column 3",{"$f":"'Schedule II (EBS)'!H15+'Schedule IIA (EBS)'!H15","v":0},0.02,0]
[null,4,"Sch II EBS, Line (5), Column 3 and Sch IIA EBS, Line (5), Column 3",{"$f":"'Schedule II (EBS)'!H16+'Schedule IIA (EBS)'!H16","v":0},0.04,0]
[null,5,"Sch II EBS, Line (6), Column 3 and Sch IIA EBS, Line (6), Column 3",{"$f":"'Schedule II (EBS)'!H17+'Schedule IIA (EBS)'!H17","v":0},0.11,0]
[null,6,"Sch II EBS, Line (7), Column 3 and Sch IIA EBS, Line (7), Column 3",{"$f":"'Schedule II (EBS)'!H18+'Schedule IIA (EBS)'!H18","v":0},0.25,0]
[null,7,"Sch II EBS, Line (8), Column 3 and Sch IIA EBS, Line (8), Column 3",{"$f":"'Schedule II (EBS)'!H19+'Schedule IIA (EBS)'!H19","v":0},0.35,0]
[null,8,"Sch II EBS, Line (9), Column 3 and Sch IIA EBS, Line (9), Column 3",{"$f":"'Schedule II (EBS)'!H20+'Schedule IIA (EBS)'!H20","v":0},0.35,0]
[]
[null,"(b)  SUBTOTAL - RESIDENTIAL MORTGAGE-BACKED SECURITIES",null,{"$f":"SUM(D27:D34)","v":0},null,{"$f":"IF(SUM(F27:F34)>=0,SUM(F27:F34),0)","v":0}]
[]
[null,"(c) Commercial Mortgage-Backed Securities / Asset-Backed Securities"]
[]
[null,"BSCR Rating"]
[null,1,"Sch II EBS, Line (2), Column 5 and Sch IIA EBS, Line (2), Column 5",{"$f":"'Schedule II (EBS)'!L13+'Schedule IIA (EBS)'!L13","v":0},5.0000000000000001E-3,{"$f":"IF(D41<0,0,D41*E41)","v":0}]
[null,2,"Sch II EBS, Line (3), Column 5 and Sch IIA EBS, Line (3), Column 5",{"$f":"'Schedule II (EBS)'!L14+'Schedule IIA (EBS)'!L14","v":0},0.01,0]
[null,3,"Sch II EBS, Line (4), Column 5 and Sch IIA EBS, Line (4), Column 5",{"$f":"'Schedule II (EBS)'!L15+'Schedule IIA (EBS)'!L15","v":0},1.7999999999999999E-2,0]
[null,4,"Sch II EBS, Line (5), Column 5 and Sch IIA EBS, Line (5), Column 5",{"$f":"'Schedule II (EBS)'!L16+'Schedule IIA (EBS)'!L16","v":0},3.5000000000000003E-2,0]
[null,5,"Sch II EBS, Line (6), Column 5 and Sch IIA EBS, Line (6), Column 5",{"$f":"'Schedule II (EBS)'!L17+'Schedule IIA (EBS)'!L17","v":0},0.1,0]
[null,6,"Sch II EBS, Line (7), Column 5 and Sch IIA EBS, Line (7), Column 5",{"$f":"'Schedule II (EBS)'!L18+'Schedule IIA (EBS)'!L18","v":0},0.2,0]
[null,7,"Sch II EBS, Line (8), Column 5 and Sch IIA EBS, Line (8), Column 5",{"$f":"'Schedule II (EBS)'!L19+'Schedule IIA (EBS)'!L19","v":0},0.3,0]
[null,8,"Sch II EBS, Line (9), Column 5 and Sch IIA EBS, Line (9), Column 5",{"$f":"'Schedule II (EBS)'!L20+'Schedule IIA (EBS)'!L20","v":0},0.35,0]
[]
[]
[null,"(c)  SUBTOTAL - COMMERCIAL MORTGAGE-BACKED SECURITIES / ASSET-BACKED SECURITIES",null,{"$f":"SUM(D41:D48)","v":0},null,{"$f":"IF(SUM(F41:F48)>=0,SUM(F41:F48),0)","v":0}]
[]
[null,"(d) Bond Mutual Funds"]
[]
[null,"BSCR Rating"]
[null,0,"Sch II EBS, Line (1), Column 7 and Sch IIA EBS, Line (1), Column 7",{"$f":"'Schedule II (EBS)'!P12+'Schedule IIA (EBS)'!P12","v":0},0,{"$f":"IF(D56<0,0,D56*E56)","v":0}]
[null,1,"Sch II EBS, Line (2), Column 7 and Sch IIA EBS, Line (2), Column 7",{"$f":"'Schedule II (EBS)'!P13+'Schedule IIA (EBS)'!P13","v":0},4.0000000000000001E-3,0]
[null,2,"Sch II EBS, Line (3), Column 7 and Sch IIA EBS, Line (3), Column 7",{"$f":"'Schedule II (EBS)'!P14+'Schedule IIA (EBS)'!P14","v":0},8.0000000000000002E-3,0]
[null,3,"Sch II EBS, Line (4), Column 7 and Sch IIA EBS, Line (4), Column 7",{"$f":"'Schedule II (EBS)'!P15+'Schedule IIA (EBS)'!P15","v":0},1.4999999999999999E-2,0]
[null,4,"Sch II EBS, Line (5), Column 7 and Sch IIA EBS, Line (5), Column 7",{"$f":"'Schedule II (EBS)'!P16+'Schedule IIA (EBS)'!P16","v":0},0.03,0]
[null,5,"Sch II EBS, Line (6), Column 7 and Sch IIA EBS, Line (6), Column 7",{"$f":"'Schedule II (EBS)'!P17+'Schedule IIA (EBS)'!P17","v":0},0.08,0]
[null,6,"Sch II EBS, Line (7), Column 7 and Sch IIA EBS, Line (7), Column 7",{"$f":"'Schedule II (EBS)'!P18+'Schedule IIA (EBS)'!P18","v":0},0.15,0]
[null,7,"Sch II EBS, Line (8), Column 7 and Sch IIA EBS, Line (8), Column 7",{"$f":"'Schedule II (EBS)'!P19+'Schedule IIA (EBS)'!P19","v":0},0.26300000000000001,0]
[null,8,"Sch II EBS, Line (9), Column 7 and Sch IIA EBS, Line (9), Column 7",{"$f":"'Schedule II (EBS)'!P20+'Schedule IIA (EBS)'!P20","v":0},0.35,0]
[]
[null,"(d)  SUBTOTAL - BOND MUTUAL FUNDS",null,{"$f":"SUM(D56:D64)","v":0},null,{"$f":"IF(SUM(F56:F64)>=0,SUM(F56:F64),0)","v":0}]
[]
[null,"(e) Mortgage Loans"]
[]
[null,"Insured/Guaranteed Mortgages","Sch II EBS, Line (22), Column 1 and Sch IIA EBS, Line (22), Column 1",{"$f":"'Schedule II (EBS)'!D57+'Schedule IIA (EBS)'!D57","v":0},3.0000000000000001E-3,{"$f":"IF(D70<0,0,D70*E70)","v":0}]
[null,"Other Commercial and Farm Mortgages","Sch II EBS, Line (23), Column 1 and Sch IIA EBS, Line (23), Column 1 ",{"$f":"'Schedule II (EBS)'!D58+'Schedule IIA (EBS)'!D58","v":0},0.05,{"$f":"IF(D71<0,0,D71*E71)","v":0}]
[null,"Other Residential Mortgages","Sch II EBS, Line (24), Column 1 and Sch IIA EBS, Line (24), Column 1",{"$f":"'Schedule II (EBS)'!D59+'Schedule IIA (EBS)'!D59","v":0},1.4999999999999999E-2,{"$f":"IF(D72<0,0,D72*E72)","v":0}]
[null,"Mortgages Not In Good Standing","Sch II EBS, Line (25), Column 1 and Sch IIA EBS, Line (25), Column 1",{"$f":"'Schedule II (EBS)'!D60+'Schedule IIA (EBS)'!D60","v":0},0.25,{"$f":"IF(D73<0,0,D73*E73)","v":0}]
[]
[null,"(e)  SUBTOTAL - MORTGAGE LOANS",null,{"$f":"SUM(D70:D73)","v":0},null,{"$f":"IF(SUM(F70:F73)>=0,SUM(F70:F73),0)","v":0}]
[]
[null,"(f) Other Fixed Income Investments"]
[]
[null,"Other Loans","Form 1EBS, Line (8)",{"$f":"'Form 1EBS'!F52","v":0},0.05,{"$f":"IF($D$79<0,0,$D$79*$E$79)","v":0}]
[]
[null,"Cash and Cash Equivalent Counterparty Balances By BSCR Rating"]
[]
[null,"BSCR Rating 0 ","Schedule XIX, Column B",{"$f":"+'Schedule XIX'!H83","v":0},0,{"$f":"IF($D$83<0,0,$D$83*$E$83)","v":0}]
[null,"BSCR Rating 1","Schedule XIX, Column B",{"$f":"+'Schedule XIX'!H84","v":0},1E-3,{"$f":"IF($D$84<0,0,$D$84*$E$84)","v":0}]
[null,"BSCR Rating 2","Schedule XIX, Column B",{"$f":"+'Schedule XIX'!H85","v":0},2E-3,{"$f":"IF($D$85<0,0,$D$85*$E$85)","v":0}]
[null,"BSCR Rating 3","Schedule XIX, Column B",{"$f":"+'Schedule XIX'!H86","v":0},3.0000000000000001E-3,{"$f":"IF($D$86<0,0,$D$86*$E$86)","v":0}]
[null,"BSCR Rating 4","Schedule XIX, Column B",{"$f":"+'Schedule XIX'!H87","v":0},5.0000000000000001E-3,{"$f":"IF($D$87<0,0,$D$87*$E$87)","v":0}]
[null,"BSCR Rating 5","Schedule XIX, Column B",{"$f":"+'Schedule XIX'!H88","v":0},1.4999999999999999E-2,{"$f":"IF($D$88<0,0,$D$88*$E$88)","v":0}]
[null,"BSCR Rating 6","Schedule XIX, Column B",{"$f":"+'Schedule XIX'!H89","v":0},0.04,{"$f":"IF($D$89<0,0,$D$89*$E$89)","v":0}]
[null,"BSCR Rating 7","Schedule XIX, Column B",{"$f":"+'Schedule XIX'!H90","v":0},0.06,{"$f":"IF($D$90<0,0,$D$90*$E$90)","v":0}]
[null,"BSCR Rating 8","Schedule XIX, Column B",{"$f":"+'Schedule XIX'!H91","v":0},0.09,{"$f":"IF($D$91<0,0,$D$91*$E$91)","v":0}]
[]
[null,"Total",null,{"$f":"SUM(D83:D92)","v":0},null,{"$f":"SUM(F83:F92)","v":0}]
[]
[null,"Diversification Adjustment up to 40%",null,null,{"$f":"+'Schedule XIX'!H100","v":0},{"$f":"SUM(F83:F91)*-('Schedule XIX'!H100)","v":0}]
[]
[null,"(f)  SUBTOTAL - OTHER FIXED INCOME SECURITIES",null,{"$f":"D79+D93","v":0},null,{"$f":"IF(SUM(F79,F83:F91,F95)>=0,SUM(F79,F83:F91,F95),0)","v":0}]
[]
[null,"(g)  TOTAL FIXED INCOME INVESTMENTS [ (a)+(b)+(c)+(d)+(e)+(f) ]",null,{"$f":"D22+D36+D51+D66+D75+D97","v":0},null,{"$f":"F22+F36+F51+F66+F75+F97","v":0}]

{"sheet":"Fixed Income Investments (Rev.)","index":104,"n_rows":136,"n_cols":9,"rows_kept":136,"cut":false,"hidden":false,"merged":[[0,8,0,9],[139,0,139,1],[31,2,31,5],[32,2,32,5],[33,2,33,5],[40,2,40,5],[41,2,41,5],[42,2,42,5],[43,2,43,5],[44,2,44,5],[45,2,45,5],[46,2,46,5],[47,2,47,5],[55,2,55,5],[56,2,56,5],[57,2,57,5],[100,2,100,5],[101,2,101,3],[101,4,101,5],[115,2,115,5],[116,2,116,3],[116,4,116,5],[2,2,2,3],[11,2,11,5],[12,2,12,5],[13,2,13,5],[14,2,14,5],[15,2,15,5],[16,2,16,5],[17,2,17,5],[18,2,18,5],[19,2,19,5],[69,2,69,5],[70,2,70,5],[71,2,71,5],[72,2,72,5],[26,2,26,5],[27,2,27,5],[28,2,28,5],[29,2,29,5],[30,2,30,5],[58,2,58,5],[59,2,59,5],[60,2,60,5],[61,2,61,5],[62,2,62,5],[63,2,63,5]]}
["FIXED INCOME INVESTMENTS (REVISED)",null,null,null,null,null,null,null,{"$f":"HYPERLINK(\"#'Index'!A1\",\"Return to Index\")","v":"Return to Index"}]
[{"$f":"'Company Information'!C7","v":"Enter Company Name"}]
[{"$f":"\"Fixed Income Investment Risk\"&\"($\"&IF(CONFIGURATION!$B$12>1,MID(CONFIGURATION!$B$12,2,LEN(CONFIGURATION!$B$12)),\"\")&\")\"","v":"Fixed Income Investment Risk($000)"},null,{"$f":"'Company Information'!C3","v":"2019-12-31"},null,null,null,-1,-2,-3]
[]
[]
[null,"TYPE OF ",null,null,null,null,"ASSET","CAPITAL","REQUIRED"]
[null,"FIXED INCOME INVESTMENTS",null,null,null,null,"VALUE","FACTOR","CAPITAL"]
[]
[null,"(a)  Corporate & Sovereign Bonds",null,null,null,null,null,null,"(1) x (2)"]
[]
[null,"BSCR Rating"]
[null,0,"Sch IIB, Column (1), Line 1, Sch IIC, Column (1), Line 1, (Sch IID, Column (1), Line 1 - Column (2), Line 1), Sch IIE, Column (1), Line 1, Sch IIF, Column (1), Line 1",null,null,null,{"$f":"'Schedule IIB (EBS)'!D13+'Schedule IIC (EBS)'!D13+(MAX(0,'Schedule IID (EBS)'!D13-'Schedule IID (EBS)'!F13))+'Schedule IIE (EBS)'!D13+'Schedule IIF (EBS)'!D13","v":0},0,{"$f":"IF(G12<0,0,G12*H12)","v":0}]
[null,1,"Sch IIB, Column (1), Line 2, Sch IIC, Column (1), Line 2, (Sch IID, Column (1), Line 2 - Column (2), Line 2), Sch IIE, Column (1), Line 2, Sch IIF, Column (1), Line 2",null,null,null,{"$f":"'Schedule IIB (EBS)'!D14+'Schedule IIC (EBS)'!D14+(MAX(0,'Schedule IID (EBS)'!D14-'Schedule IID (EBS)'!F14))+'Schedule IIE (EBS)'!D14+'Schedule IIF (EBS)'!D14","v":0},4.0000000000000001E-3,0]
[null,2,"Sch IIB, Column (1), Line 3, Sch IIC, Column (1), Line 3, (Sch IID, Column (1), Line 3 - Column (2), Line 3), Sch IIE, Column (1), Line 3, Sch IIF, Column (1), Line 3",null,null,null,{"$f":"'Schedule IIB (EBS)'!D15+'Schedule IIC (EBS)'!D15+(MAX(0,'Schedule IID (EBS)'!D15-'Schedule IID (EBS)'!F15))+'Schedule IIE (EBS)'!D15+'Schedule IIF (EBS)'!D15","v":0},8.0000000000000002E-3,0]
[null,3,"Sch IIB, Column (1), Line 4, Sch IIC, Column (1), Line 4, (Sch IID, Column (1), Line 4 - Column (2), Line 4), Sch IIE, Column (1), Line 4, Sch IIF, Column (1), Line 4",null,null,null,{"$f":"'Schedule IIB (EBS)'!D16+'Schedule IIC (EBS)'!D16+(MAX(0,'Schedule IID (EBS)'!D16-'Schedule IID (EBS)'!F16))+'Schedule IIE (EBS)'!D16+'Schedule IIF (EBS)'!D16","v":0},1.4999999999999999E-2,0]
[null,4,"Sch IIB, Column (1), Line 5, Sch IIC, Column (1), Line 5, (Sch IID, Column (1), Line 5 - Column (2), Line 5), Sch IIE, Column (1), Line 5, Sch IIF, Column (1), Line 5",null,null,null,{"$f":"'Schedule IIB (EBS)'!D17+'Schedule IIC (EBS)'!D17+(MAX(0,'Schedule IID (EBS)'!D17-'Schedule IID (EBS)'!F17))+'Schedule IIE (EBS)'!D17+'Schedule IIF (EBS)'!D17","v":0},0.03,0]
[null,5,"Sch IIB, Column (1), Line 6, Sch IIC, Column (1), Line 6, (Sch IID, Column (1), Line 6 - Column (2), Line 6), Sch IIE, Column (1), Line 6, Sch IIF, Column (1), Line 6",null,null,null,{"$f":"'Schedule IIB (EBS)'!D18+'Schedule IIC (EBS)'!D18+(MAX(0,'Schedule IID (EBS)'!D18-'Schedule IID (EBS)'!F18))+'Schedule IIE (EBS)'!D18+'Schedule IIF (EBS)'!D18","v":0},0.08,0]
[null,6,"Sch IIB, Column (1), Line 7, Sch IIC, Column (1), Line 7, (Sch IID, Column (1), Line 7 - Column (2), Line 7), Sch IIE, Column (1), Line 7, Sch IIF, Column (1), Line 7",null,null,null,{"$f":"'Schedule IIB (EBS)'!D19+'Schedule IIC (EBS)'!D19+(MAX(0,'Schedule IID (EBS)'!D19-'Schedule IID (EBS)'!F19))+'Schedule IIE (EBS)'!D19+'Schedule IIF (EBS)'!D19","v":0},0.15,{"$f":"IF(G18<0,0,G18*H18)","v":0}]
[null,7,"Sch IIB, Column (1), Line 8, Sch IIC, Column (1), Line 8, (Sch IID, Column (1), Line 8 - Column (2), Line 8), Sch IIE, Column (1), Line 8, Sch IIF, Column (1), Line 8",null,null,null,{"$f":"'Schedule IIB (EBS)'!D20+'Schedule IIC (EBS)'!D20+(MAX(0,'Schedule IID (EBS)'!D20-'Schedule IID (EBS)'!F20))+'Schedule IIE (EBS)'!D20+'Schedule IIF (EBS)'!D20","v":0},0.26300000000000001,{"$f":"IF(G19<0,0,G19*H19)","v":0}]
[null,8,"Sch IIB, Column (1), Line 9, Sch IIC, Column (1), Line 9, (Sch IID, Column (1), Line 9 - Column (2), Line 9), Sch IIE, Column (1), Line 9, Sch IIF, Column (1), Line 9",null,null,null,{"$f":"'Schedule IIB (EBS)'!D21+'Schedule IIC (EBS)'!D21+(MAX(0,'Schedule IID (EBS)'!D21-'Schedule IID (EBS)'!F21))+'Schedule IIE (EBS)'!D21+'Schedule IIF (EBS)'!D21","v":0},0.35,{"$f":"IF(G20<0,0,G20*H20)","v":0}]
[]
[null,"(a)  SUBTOTAL -  CORPORATE BONDS",null,null,null,null,{"$f":"SUM(G11:G20)","v":0},null,{"$f":"IF(SUM(I11:I20)>=0,SUM(I11:I20),0)","v":0}]
[]
[null,"(b) Residential Mortgage-Backed Securities"]
[]
[null,"BSCR Rating"]
[null,1,"Sch IIB, Column (3), Line 2, Sch IIC, Column (3), Line 2, (Sch IID, Column (3), Line 2 - Column (4), Line 2), Sch IIE, Column (3), Line 2, Sch IIF, Column (3), Line 2",null,null,null,{"$f":"'Schedule IIB (EBS)'!H14+'Schedule IIC (EBS)'!H14+(MAX(0,'Schedule IID (EBS)'!H14-'Schedule IID (EBS)'!J14))+'Schedule IIE (EBS)'!H14+'Schedule IIF (EBS)'!H14","v":0},6.0000000000000001E-3,{"$f":"IF(G27<0,0,G27*H27)","v":0}]
[null,2,"Sch IIB, Column (3), Line 3, Sch IIC, Column (3), Line 3, (Sch IID, Column (3), Line 3 - Column (4), Line 3), Sch IIE, Column (3), Line 3, Sch IIF, Column (3), Line 3",null,null,null,{"$f":"'Schedule IIB (EBS)'!H15+'Schedule IIC (EBS)'!H15+(MAX(0,'Schedule IID (EBS)'!H15-'Schedule IID (EBS)'!J15))+'Schedule IIE (EBS)'!H15+'Schedule IIF (EBS)'!H15","v":0},1.2E-2,0]
[null,3,"Sch IIB, Column (3), Line 4, Sch IIC, Column (3), Line 4, (Sch IID, Column (3), Line 4 - Column (4), Line 4), Sch IIE, Column (3), Line 4, Sch IIF, Column (3), Line 4",null,null,null,{"$f":"'Schedule IIB (EBS)'!H16+'Schedule IIC (EBS)'!H16+(MAX(0,'Schedule IID (EBS)'!H16-'Schedule IID (EBS)'!J16))+'Schedule IIE (EBS)'!H16+'Schedule IIF (EBS)'!H16","v":0},0.02,0]
[null,4,"Sch IIB, Column (3), Line 5, Sch IIC, Column (3), Line 5, (Sch IID, Column (3), Line 5 - Column (4), Line 5), Sch IIE, Column (3), Line 5, Sch IIF, Column (3), Line 5",null,null,null,{"$f":"'Schedule IIB (EBS)'!H17+'Schedule IIC (EBS)'!H17+(MAX(0,'Schedule IID (EBS)'!H17-'Schedule IID (EBS)'!J17))+'Schedule IIE (EBS)'!H17+'Schedule IIF (EBS)'!H17","v":0},0.04,0]
[null,5,"Sch IIB, Column (3), Line 6, Sch IIC, Column (3), Line 6, (Sch IID, Column (3), Line 6 - Column (4), Line 6), Sch IIE, Column (3), Line 6, Sch IIF, Column (3), Line 6",null,null,null,{"$f":"'Schedule IIB (EBS)'!H18+'Schedule IIC (EBS)'!H18+(MAX(0,'Schedule IID (EBS)'!H18-'Schedule IID (EBS)'!J18))+'Schedule IIE (EBS)'!H18+'Schedule IIF (EBS)'!H18","v":0},0.11,0]
[null,6,"Sch IIB, Column (3), Line 7, Sch IIC, Column (3), Line 7, (Sch IID, Column (3), Line 7 - Column (4), Line 7), Sch IIE, Column (3), Line 7, Sch IIF, Column (3), Line 7",null,null,null,{"$f":"'Schedule IIB (EBS)'!H19+'Schedule IIC (EBS)'!H19+(MAX(0,'Schedule IID (EBS)'!H19-'Schedule IID (EBS)'!J19))+'Schedule IIE (EBS)'!H19+'Schedule IIF (EBS)'!H19","v":0},0.25,0]
[null,7,"Sch IIB, Column (3), Line 8, Sch IIC, Column (3), Line 8, (Sch IID, Column (3), Line 8 - Column (4), Line 8), Sch IIE, Column (3), Line 8, Sch IIF, Column (3), Line 8",null,null,null,{"$f":"'Schedule IIB (EBS)'!H20+'Schedule IIC (EBS)'!H20+(MAX(0,'Schedule IID (EBS)'!H20-'Schedule IID (EBS)'!J20))+'Schedule IIE (EBS)'!H20+'Schedule IIF (EBS)'!H20","v":0},0.35,0]
[null,8,"Sch IIB, Column (3), Line 9, Sch IIC, Column (3), Line 9, (Sch IID, Column (3), Line 9 - Column (4), Line 9), Sch IIE, Column (3), Line 9, Sch IIF, Column (3), Line 9",null,null,null,{"$f":"'Schedule IIB (EBS)'!H21+'Schedule IIC (EBS)'!H21+(MAX(0,'Schedule IID (EBS)'!H21-'Schedule IID (EBS)'!J21))+'Schedule IIE (EBS)'!H21+'Schedule IIF (EBS)'!H21","v":0},0.35,0]
[]
[null,"(b)  SUBTOTAL - RESIDENTIAL MORTGAGE-BACKED SECURITIES",null,null,null,null,{"$f":"SUM(G27:G34)","v":0},null,{"$f":"IF(SUM(I27:I34)>=0,SUM(I27:I34),0)","v":0}]
[]
[null,"(c) Commercial Mortgage-Backed Securities / Asset-Backed Securities"]
[]
[null,"BSCR Rating"]
[null,1,"Sch IIB, Column (5), Line 2, Sch IIC, Column (5), Line 2, (Sch IID, Column (5), Line 2 - Column (4), Line 2), Sch IIE, Column (5), Line 2, Sch IIF, Column (5), Line 2",null,null,null,{"$f":"'Schedule IIB (EBS)'!L14+'Schedule IIC (EBS)'!L14+(MAX(0,'Schedule IID (EBS)'!L14-'Schedule IID (EBS)'!N14))+'Schedule IIE (EBS)'!L14+'Schedule IIF (EBS)'!L14","v":0},5.0000000000000001E-3,{"$f":"IF(G41<0,0,G41*H41)","v":0}]
[null,2,"Sch IIB, Column (5), Line 3, Sch IIC, Column (5), Line 3, (Sch IID, Column (5), Line 3 - Column (4), Line 3), Sch IIE, Column (5), Line 3, Sch IIF, Column (5), Line 3",null,null,null,{"$f":"'Schedule IIB (EBS)'!L15+'Schedule IIC (EBS)'!L15+(MAX(0,'Schedule IID (EBS)'!L15-'Schedule IID (EBS)'!N15))+'Schedule IIE (EBS)'!L15+'Schedule IIF (EBS)'!L15","v":0},0.01,0]
[null,3,"Sch IIB, Column (5), Line 4, Sch IIC, Column (5), Line 4, (Sch IID, Column (5), Line 4 - Column (4), Line 4), Sch IIE, Column (5), Line 4, Sch IIF, Column (5), Line 4",null,null,null,{"$f":"'Schedule IIB (EBS)'!L16+'Schedule IIC (EBS)'!L16+(MAX(0,'Schedule IID (EBS)'!L16-'Schedule IID (EBS)'!N16))+'Schedule IIE (EBS)'!L16+'Schedule IIF (EBS)'!L16","v":0},1.7999999999999999E-2,0]
[null,4,"Sch IIB, Column (5), Line 5, Sch IIC, Column (5), Line 5, (Sch IID, Column (5), Line 5 - Column (4), Line 5), Sch IIE, Column (5), Line 5, Sch IIF, Column (5), Line 5",null,null,null,{"$f":"'Schedule IIB (EBS)'!L17+'Schedule IIC (EBS)'!L17+(MAX(0,'Schedule IID (EBS)'!L17-'Schedule IID (EBS)'!N17))+'Schedule IIE (EBS)'!L17+'Schedule IIF (EBS)'!L17","v":0},3.5000000000000003E-2,0]
[null,5,"Sch IIB, Column (5), Line 6, Sch IIC, Column (5), Line 6, (Sch IID, Column (5), Line 6 - Column (4), Line 6), Sch IIE, Column (5), Line 6, Sch IIF, Column (5), Line 6",null,null,null,{"$f":"'Schedule IIB (EBS)'!L18+'Schedule IIC (EBS)'!L18+(MAX(0,'Schedule IID (EBS)'!L18-'Schedule IID (EBS)'!N18))+'Schedule IIE (EBS)'!L18+'Schedule IIF (EBS)'!L18","v":0},0.1,0]
[null,6,"Sch IIB, Column (5), Line 7, Sch IIC, Column (5), Line 7, (Sch IID, Column (5), Line 7 - Column (4), Line 7), Sch IIE, Column (5), Line 7, Sch IIF, Column (5), Line 7",null,null,null,{"$f":"'Schedule IIB (EBS)'!L19+'Schedule IIC (EBS)'!L19+(MAX(0,'Schedule IID (EBS)'!L19-'Schedule IID (EBS)'!N19))+'Schedule IIE (EBS)'!L19+'Schedule IIF (EBS)'!L19","v":0},0.2,0]
[null,7,"Sch IIB, Column (5), Line 8, Sch IIC, Column (5), Line 8, (Sch IID, Column (5), Line 8 - Column (4), Line 8), Sch IIE, Column (5), Line 8, Sch IIF, Column (5), Line 8",null,null,null,{"$f":"'Schedule IIB (EBS)'!L20+'Schedule IIC (EBS)'!L20+(MAX(0,'Schedule IID (EBS)'!L20-'Schedule IID (EBS)'!N20))+'Schedule IIE (EBS)'!L20+'Schedule IIF (EBS)'!L20","v":0},0.3,0]
[null,8,"Sch IIB, Column (5), Line 9, Sch IIC, Column (5), Line 9, (Sch IID, Column (5), Line 9 - Column (4), Line 9), Sch IIE, Column (5), Line 9, Sch IIF, Column (5), Line 9",null,null,null,{"$f":"'Schedule IIB (EBS)'!L21+'Schedule IIC (EBS)'!L21+(MAX(0,'Schedule IID (EBS)'!L21-'Schedule IID (EBS)'!N21))+'Schedule IIE (EBS)'!L21+'Schedule IIF (EBS)'!L21","v":0},0.35,0]
[]
[]
[null,"(c)  SUBTOTAL - COMMERCIAL MORTGAGE-BACKED SECURITIES / ASSET-BACKED SECURITIES",null,null,null,null,{"$f":"SUM(G41:G48)","v":0},null,{"$f":"IF(SUM(I41:I48)>=0,SUM(I41:I48),0)","v":0}]
[]
[null,"(d) Bond Mutual Funds"]
[]
[null,"BSCR Rating"]
[null,0,"Sch IIB, Column (7), Line 1, Sch IIC, Column (7), Line 1, (Sch IID, Column (7), Line 1 - Column (8), Line 1), Sch IIE, Column (7), Line 1, Sch IIF, Column (7), Line 1",null,null,null,{"$f":"'Schedule IIB (EBS)'!P13+'Schedule IIC (EBS)'!P13+(MAX(0,'Schedule IID (EBS)'!P13-'Schedule IID (EBS)'!R13))+'Schedule IIE (EBS)'!P13+'Schedule IIF (EBS)'!P13","v":0},0,{"$f":"IF(G56<0,0,G56*H56)","v":0}]
[null,1,"Sch IIB, Column (7), Line 2, Sch IIC, Column (7), Line 2, (Sch IID, Column (7), Line 2 - Column (8), Line 2), Sch IIE, Column (7), Line 2, Sch IIF, Column (7), Line 2",null,null,null,{"$f":"'Schedule IIB (EBS)'!P14+'Schedule IIC (EBS)'!P14+(MAX(0,'Schedule IID (EBS)'!P14-'Schedule IID (EBS)'!R14))+'Schedule IIE (EBS)'!P14+'Schedule IIF (EBS)'!P14","v":0},4.0000000000000001E-3,0]
[null,2,"Sch IIB, Column (7), Line 3, Sch IIC, Column (7), Line 3, (Sch IID, Column (7), Line 3 - Column (8), Line 3), Sch IIE, Column (7), Line 3, Sch IIF, Column (7), Line 3",null,null,null,{"$f":"'Schedule IIB (EBS)'!P15+'Schedule IIC (EBS)'!P15+(MAX(0,'Schedule IID (EBS)'!P15-'Schedule IID (EBS)'!R15))+'Schedule IIE (EBS)'!P15+'Schedule IIF (EBS)'!P15","v":0},8.0000000000000002E-3,0]
[null,3,"Sch IIB, Column (7), Line 4, Sch IIC, Column (7), Line 4, (Sch IID, Column (7), Line 4 - Column (8), Line 4), Sch IIE, Column (7), Line 4, Sch IIF, Column (7), Line 4",null,null,null,{"$f":"'Schedule IIB (EBS)'!P16+'Schedule IIC (EBS)'!P16+(MAX(0,'Schedule IID (EBS)'!P16-'Schedule IID (EBS)'!R16))+'Schedule IIE (EBS)'!P16+'Schedule IIF (EBS)'!P16","v":0},1.4999999999999999E-2,0]
[null,4,"Sch IIB, Column (7), Line 5, Sch IIC, Column (7), Line 5, (Sch IID, Column (7), Line 5 - Column (8), Line 5), Sch IIE, Column (7), Line 5, Sch IIF, Column (7), Line 5",null,null,null,{"$f":"'Schedule IIB (EBS)'!P17+'Schedule IIC (EBS)'!P17+(MAX(0,'Schedule IID (EBS)'!P17-'Schedule IID (EBS)'!R17))+'Schedule IIE (EBS)'!P17+'Schedule IIF (EBS)'!P17","v":0},0.03,0]
[null,5,"Sch IIB, Column (7), Line 6, Sch IIC, Column (7), Line 6, (Sch IID, Column (7), Line 6 - Column (8), Line 6), Sch IIE, Column (7), Line 6, Sch IIF, Column (7), Line 6",null,null,null,{"$f":"'Schedule IIB (EBS)'!P18+'Schedule IIC (EBS)'!P18+(MAX(0,'Schedule IID (EBS)'!P18-'Schedule IID (EBS)'!R18))+'Schedule IIE (EBS)'!P18+'Schedule IIF (EBS)'!P18","v":0},0.08,0]
[null,6,"Sch IIB, Column (7), Line 7, Sch IIC, Column (7), Line 7, (Sch IID, Column (7), Line 7 - Column (8), Line 7), Sch IIE, Column (7), Line 7, Sch IIF, Column (7), Line 7",null,null,null,{"$f":"'Schedule IIB (EBS)'!P19+'Schedule IIC (EBS)'!P19+(MAX(0,'Schedule IID (EBS)'!P19-'Schedule IID (EBS)'!R19))+'Schedule IIE (EBS)'!P19+'Schedule IIF (EBS)'!P19","v":0},0.15,0]
[null,7,"Sch IIB, Column (7), Line 8, Sch IIC, Column (7), Line 8, (Sch IID, Column (7), Line 8 - Column (8), Line 8), Sch IIE, Column (7), Line 8, Sch IIF, Column (7), Line 8",null,null,null,{"$f":"'Schedule IIB (EBS)'!P20+'Schedule IIC (EBS)'!P20+(MAX(0,'Schedule IID (EBS)'!P20-'Schedule IID (EBS)'!R20))+'Schedule IIE (EBS)'!P20+'Schedule IIF (EBS)'!P20","v":0},0.26300000000000001,0]
[null,8,"Sch IIB, Column (7), Line 9, Sch IIC, Column (7), Line 9, (Sch IID, Column (7), Line 9 - Column (8), Line 9), Sch IIE, Column (7), Line 9, Sch IIF, Column (7), Line 9",null,null,null,{"$f":"'Schedule IIB (EBS)'!P21+'Schedule IIC (EBS)'!P21+(MAX(0,'Schedule IID (EBS)'!P21-'Schedule IID (EBS)'!R21))+'Schedule IIE (EBS)'!P21+'Schedule IIF (EBS)'!P21","v":0},0.35,0]
[]
[null,"(d)  SUBTOTAL - BOND MUTUAL FUNDS",null,null,null,null,{"$f":"SUM(G56:G64)","v":0},null,{"$f":"IF(SUM(I56:I64)>=0,SUM(I56:I64),0)","v":0}]
[]
[null,"(e) Mortgage Loans"]
[]
[null,"Insured/Guaranteed Mortgages","Sch IIB, Column (9), Line 10, Sch IIC, Column (9), Line 10, (Sch IID, Column (9), Line 10 - Column (10), Line 10), Sch IIE, Column (9), Line 10, Sch IIF, Column (9), Line 10",null,null,null,{"$f":"'Schedule IIB (EBS)'!T22+'Schedule IIC (EBS)'!T22+(MAX(0,'Schedule IID (EBS)'!T22-'Schedule IID (EBS)'!V22))+'Schedule IIE (EBS)'!T22+'Schedule IIF (EBS)'!T22","v":0},3.0000000000000001E-3,{"$f":"IF(G70<0,0,G70*H70)","v":0}]
[null,"Other Commercial and Farm Mortgages","Sch IIB, Column (9), Line 11, Sch IIC, Column (9), Line 11, (Sch IID, Column (9), Line 11 - Column (10), Line 11), Sch IIE, Column (9), Line 11, Sch IIF, Column (9), Line 11",null,null,null,{"$f":"'Schedule IIB (EBS)'!T23+'Schedule IIC (EBS)'!T23+(MAX(0,'Schedule IID (EBS)'!T23-'Schedule IID (EBS)'!V23))+'Schedule IIE (EBS)'!T23+'Schedule IIF (EBS)'!T23","v":0},0.05,{"$f":"IF(G71<0,0,G71*H71)","v":0}]
[null,"Other Residential Mortgages","Sch IIB, Column (9), Line 12, Sch IIC, Column (9), Line 12, (Sch IID, Column (9), Line 12 - Column (10), Line 12), Sch IIE, Column (9), Line 12, Sch IIF, Column (9), Line 12",null,null,null,{"$f":"'Schedule IIB (EBS)'!T24+'Schedule IIC (EBS)'!T24+(MAX(0,'Schedule IID (EBS)'!T24-'Schedule IID (EBS)'!V24))+'Schedule IIE (EBS)'!T24+'Schedule IIF (EBS)'!T24","v":0},1.4999999999999999E-2,{"$f":"IF(G72<0,0,G72*H72)","v":0}]
[null,"Mortgages Not In Good Standing","Sch IIB, Column (9), Line 13, Sch IIC, Column (9), Line 13, (Sch IID, Column (9), Line 13 - Column (10), Line 13), Sch IIE, Column (9), Line 13, Sch IIF, Column (9), Line 13",null,null,null,{"$f":"'Schedule IIB (EBS)'!T25+'Schedule IIC (EBS)'!T25+(MAX(0,'Schedule IID (EBS)'!T25-'Schedule IID (EBS)'!V25))+'Schedule IIE (EBS)'!T25+'Schedule IIF (EBS)'!T25","v":0},0.25,{"$f":"IF(G73<0,0,G73*H73)","v":0}]
[]
[null,"(e)  SUBTOTAL - MORTGAGE LOANS",null,null,null,null,{"$f":"SUM(G70:G73)","v":0},null,{"$f":"IF(SUM(I70:I73)>=0,SUM(I70:I73),0)","v":0}]
[]
[null,"(f) Other Fixed Income Investments"]
[]
[null,"Other Loans","Form 1EBS, Line (8)",null,null,null,{"$f":"'Form 1EBS'!F52","v":0},0.05,{"$f":"IF($G$79<0,0,$G$79*$H$79)","v":0}]
[]
[null,"Cash and Cash Equivalent Counterparty Balances By BSCR Rating"]
[]
[null,"BSCR Rating 0 ","Schedule XIXA, Column B",null,null,null,{"$f":"'Schedule XIXA'!F81","v":0},0,{"$f":"IF($G$83<0,0,$G$83*$H$83)","v":0}]
[null,"BSCR Rating 1","Schedule XIXA, Column B",null,null,null,{"$f":"'Schedule XIXA'!F82","v":0},1E-3,{"$f":"IF($G$84<0,0,$G$84*$H$84)","v":0}]
[null,"BSCR Rating 2","Schedule XIXA, Column B",null,null,null,{"$f":"'Schedule XIXA'!F83","v":0},2E-3,{"$f":"IF($G$85<0,0,$G$85*$H$85)","v":0}]
[null,"BSCR Rating 3","Schedule XIXA, Column B",null,null,null,{"$f":"'Schedule XIXA'!F84","v":0},3.0000000000000001E-3,{"$f":"IF($G$86<0,0,$G$86*$H$86)","v":0}]
[null,"BSCR Rating 4","Schedule XIXA, Column B",null,null,null,{"$f":"'Schedule XIXA'!F85","v":0},5.0000000000000001E-3,{"$f":"IF($G$87<0,0,$G$87*$H$87)","v":0}]
[null,"BSCR Rating 5","Schedule XIXA, Column B",null,null,null,{"$f":"'Schedule XIXA'!F86","v":0},1.4999999999999999E-2,{"$f":"IF($G$88<0,0,$G$88*$H$88)","v":0}]
[null,"BSCR Rating 6","Schedule XIXA, Column B",null,null,null,{"$f":"'Schedule XIXA'!F87","v":0},0.04,{"$f":"IF($G$89<0,0,$G$89*$H$89)","v":0}]
[null,"BSCR Rating 7","Schedule XIXA, Column B",null,null,null,{"$f":"'Schedule XIXA'!F88","v":0},0.06,{"$f":"IF($G$90<0,0,$G$90*$H$90)","v":0}]
[null,"BSCR Rating 8","Schedule XIXA, Column B",null,null,null,{"$f":"'Schedule XIXA'!F89","v":0},0.09,{"$f":"IF($G$91<0,0,$G$91*$H$91)","v":0}]
[]
[null,"Total",null,null,null,null,{"$f":"SUM(G83:G92)","v":0},null,{"$f":"SUM(I83:I92)","v":0}]
[]
[null,"Diversification Adjustment up to 40%",null,null,null,null,null,{"$f":"'Schedule XIXA'!F98","v":0},{"$f":"SUM(I83:I91)*-('Schedule XIXA'!F98)","v":0}]
[]
[null,"(f)  SUBTOTAL - OTHER FIXED INCOME SECURITIES",null,null,null,null,{"$f":"G79+G93","v":0},null,{"$f":"IF(SUM(I79,I83:I91,I95)>=0,SUM(I79,I83:I91,I95),0)","v":0}]
[]
[null,"(g) Spread Risk for Credit Derivatives"]
[]
[null,null,"SPREAD UP"]
[null,null,"Long Exposures",null,"Short Exposures"]
[null,null,"Before Shock","After Shock","Before Shock","After Shock"]
[null,"Spread Up",null,null,null,null,null,"Shock (bps)"]
[null,"BSCR Rating 0 ",{"$f":"'Schedule IIB (EBS)'!D68+'Schedule IIC (EBS)'!D68+'Schedule IID (EBS)'!D68+'Schedule IIE (EBS)'!D68+'Schedule IIF (EBS)'!D68","v":0},{"$f":"'Schedule IIB (EBS)'!F68+'Schedule IIC (EBS)'!F68+'Schedule IID (EBS)'!F68+'Schedule IIE (EBS)'!F68+'Schedule IIF (EBS)'!F68","v":0},{"$f":"'Schedule IIB (EBS)'!H68+'Schedule IIC (EBS)'!H68+'Schedule IID (EBS)'!H68+'Schedule IIE (EBS)'!H68+'Schedule IIF (EBS)'!H68","v":0},{"$f":"'Schedule IIB (EBS)'!J68+'Schedule IIC (EBS)'!J68+'Schedule IID (EBS)'!J68+'Schedule IIE (EBS)'!J68+'Schedule IIF (EBS)'!J68","v":0},null,0,{"$f":"(C105-D105)+MAX(0,E105-F105)","v":0}]
[null,"BSCR Rating 1",{"$f":"'Schedule IIB (EBS)'!D69+'Schedule IIC (EBS)'!D69+'Schedule IID (EBS)'!D69+'Schedule IIE (EBS)'!D69+'Schedule IIF (EBS)'!D69","v":0},{"$f":"'Schedule IIB (EBS)'!F69+'Schedule IIC (EBS)'!F69+'Schedule IID (EBS)'!F69+'Schedule IIE (EBS)'!F69+'Schedule IIF (EBS)'!F69","v":0},{"$f":"'Schedule IIB (EBS)'!H69+'Schedule IIC (EBS)'!H69+'Schedule IID (EBS)'!H69+'Schedule IIE (EBS)'!H69+'Schedule IIF (EBS)'!H69","v":0},{"$f":"'Schedule IIB (EBS)'!J69+'Schedule IIC (EBS)'!J69+'Schedule IID (EBS)'!J69+'Schedule IIE (EBS)'!J69+'Schedule IIF (EBS)'!J69","v":0},null,130,0]
[null,"BSCR Rating 2",{"$f":"'Schedule IIB (EBS)'!D70+'Schedule IIC (EBS)'!D70+'Schedule IID (EBS)'!D70+'Schedule IIE (EBS)'!D70+'Schedule IIF (EBS)'!D70","v":0},{"$f":"'Schedule IIB (EBS)'!F70+'Schedule IIC (EBS)'!F70+'Schedule IID (EBS)'!F70+'Schedule IIE (EBS)'!F70+'Schedule IIF (EBS)'!F70","v":0},{"$f":"'Schedule IIB (EBS)'!H70+'Schedule IIC (EBS)'!H70+'Schedule IID (EBS)'!H70+'Schedule IIE (EBS)'!H70+'Schedule IIF (EBS)'!H70","v":0},{"$f":"'Schedule IIB (EBS)'!J70+'Schedule IIC (EBS)'!J70+'Schedule IID (EBS)'!J70+'Schedule IIE (EBS)'!J70+'Schedule IIF (EBS)'!J70","v":0},null,150,0]
[null,"BSCR Rating 3",{"$f":"'Schedule IIB (EBS)'!D71+'Schedule IIC (EBS)'!D71+'Schedule IID (EBS)'!D71+'Schedule IIE (EBS)'!D71+'Schedule IIF (EBS)'!D71","v":0},{"$f":"'Schedule IIB (EBS)'!F71+'Schedule IIC (EBS)'!F71+'Schedule IID (EBS)'!F71+'Schedule IIE (EBS)'!F71+'Schedule IIF (EBS)'!F71","v":0},{"$f":"'Schedule IIB (EBS)'!H71+'Schedule IIC (EBS)'!H71+'Schedule IID (EBS)'!H71+'Schedule IIE (EBS)'!H71+'Schedule IIF (EBS)'!H71","v":0},{"$f":"'Schedule IIB (EBS)'!J71+'Schedule IIC (EBS)'!J71+'Schedule IID (EBS)'!J71+'Schedule IIE (EBS)'!J71+'Schedule IIF (EBS)'!J71","v":0},null,260,0]
[null,"BSCR Rating 4",{"$f":"'Schedule IIB (EBS)'!D72+'Schedule IIC (EBS)'!D72+'Schedule IID (EBS)'!D72+'Schedule IIE (EBS)'!D72+'Schedule IIF (EBS)'!D72","v":0},{"$f":"'Schedule IIB (EBS)'!F72+'Schedule IIC (EBS)'!F72+'Schedule IID (EBS)'!F72+'Schedule IIE (EBS)'!F72+'Schedule IIF (EBS)'!F72","v":0},{"$f":"'Schedule IIB (EBS)'!H72+'Schedule IIC (EBS)'!H72+'Schedule IID (EBS)'!H72+'Schedule IIE (EBS)'!H72+'Schedule IIF (EBS)'!H72","v":0},{"$f":"'Schedule IIB (EBS)'!J72+'Schedule IIC (EBS)'!J72+'Schedule IID (EBS)'!J72+'Schedule IIE (EBS)'!J72+'Schedule IIF (EBS)'!J72","v":0},null,450,0]
[null,"BSCR Rating 5",{"$f":"'Schedule IIB (EBS)'!D73+'Schedule IIC (EBS)'!D73+'Schedule IID (EBS)'!D73+'Schedule IIE (EBS)'!D73+'Schedule IIF (EBS)'!D73","v":0},{"$f":"'Schedule IIB (EBS)'!F73+'Schedule IIC (EBS)'!F73+'Schedule IID (EBS)'!F73+'Schedule IIE (EBS)'!F73+'Schedule IIF (EBS)'!F73","v":0},{"$f":"'Schedule IIB (EBS)'!H73+'Schedule IIC (EBS)'!H73+'Schedule IID (EBS)'!H73+'Schedule IIE (EBS)'!H73+'Schedule IIF (EBS)'!H73","v":0},{"$f":"'Schedule IIB (EBS)'!J73+'Schedule IIC (EBS)'!J73+'Schedule IID (EBS)'!J73+'Schedule IIE (EBS)'!J73+'Schedule IIF (EBS)'!J73","v":0},null,840,0]
[null,"BSCR Rating 6",{"$f":"'Schedule IIB (EBS)'!D74+'Schedule IIC (EBS)'!D74+'Schedule IID (EBS)'!D74+'Schedule IIE (EBS)'!D74+'Schedule IIF (EBS)'!D74","v":0},{"$f":"'Schedule IIB (EBS)'!F74+'Schedule IIC (EBS)'!F74+'Schedule IID (EBS)'!F74+'Schedule IIE (EBS)'!F74+'Schedule IIF (EBS)'!F74","v":0},{"$f":"'Schedule IIB (EBS)'!H74+'Schedule IIC (EBS)'!H74+'Schedule IID (EBS)'!H74+'Schedule IIE (EBS)'!H74+'Schedule IIF (EBS)'!H74","v":0},{"$f":"'Schedule IIB (EBS)'!J74+'Schedule IIC (EBS)'!J74+'Schedule IID (EBS)'!J74+'Schedule IIE (EBS)'!J74+'Schedule IIF (EBS)'!J74","v":0},null,1620,0]
[null,"BSCR Rating 7",{"$f":"'Schedule IIB (EBS)'!D75+'Schedule IIC (EBS)'!D75+'Schedule IID (EBS)'!D75+'Schedule IIE (EBS)'!D75+'Schedule IIF (EBS)'!D75","v":0},{"$f":"'Schedule IIB (EBS)'!F75+'Schedule IIC (EBS)'!F75+'Schedule IID (EBS)'!F75+'Schedule IIE (EBS)'!F75+'Schedule IIF (EBS)'!F75","v":0},{"$f":"'Schedule IIB (EBS)'!H75+'Schedule IIC (EBS)'!H75+'Schedule IID (EBS)'!H75+'Schedule IIE (EBS)'!H75+'Schedule IIF (EBS)'!H75","v":0},{"$f":"'Schedule IIB (EBS)'!J75+'Schedule IIC (EBS)'!J75+'Schedule IID (EBS)'!J75+'Schedule IIE (EBS)'!J75+'Schedule IIF (EBS)'!J75","v":0},null,1620,0]
[null,"BSCR Rating 8",{"$f":"'Schedule IIB (EBS)'!D76+'Schedule IIC (EBS)'!D76+'Schedule IID (EBS)'!D76+'Schedule IIE (EBS)'!D76+'Schedule IIF (EBS)'!D76","v":0},{"$f":"'Schedule IIB (EBS)'!F76+'Schedule IIC (EBS)'!F76+'Schedule IID (EBS)'!F76+'Schedule IIE (EBS)'!F76+'Schedule IIF (EBS)'!F76","v":0},{"$f":"'Schedule IIB (EBS)'!H76+'Schedule IIC (EBS)'!H76+'Schedule IID (EBS)'!H76+'Schedule IIE (EBS)'!H76+'Schedule IIF (EBS)'!H76","v":0},{"$f":"'Schedule IIB (EBS)'!J76+'Schedule IIC (EBS)'!J76+'Schedule IID (EBS)'!J76+'Schedule IIE (EBS)'!J76+'Schedule IIF (EBS)'!J76","v":0},null,1620,0]
[null,"Total Spread Up",{"$f":"SUM(C105:C113)","v":0},{"$f":"SUM(D105:D113)","v":0},{"$f":"SUM(E105:E113)","v":0},{"$f":"SUM(F105:F113)","v":0},null,null,{"$f":"MAX(SUM(I105:I113),0)","v":0}]
[]
[null,null,"SPREAD DOWN"]
[null,null,"Long Exposures",null,"Short Exposures"]
[null,null,"Before Shock","After Shock","Before Shock","After Shock"]
[null,"Spread Down",null,null,null,null,null,"Shock (%)"]
[null,"BSCR Rating 0 ",{"$f":"'Schedule IIB (EBS)'!N68+'Schedule IIC (EBS)'!N68+'Schedule IID (EBS)'!N68+'Schedule IIE (EBS)'!N68+'Schedule IIF (EBS)'!N68","v":0},{"$f":"'Schedule IIB (EBS)'!P68+'Schedule IIC (EBS)'!P68+'Schedule IID (EBS)'!P68+'Schedule IIE (EBS)'!P68+'Schedule IIF (EBS)'!P68","v":0},{"$f":"'Schedule IIB (EBS)'!R68+'Schedule IIC (EBS)'!R68+'Schedule IID (EBS)'!R68+'Schedule IIE (EBS)'!R68+'Schedule IIF (EBS)'!R68","v":0},{"$f":"'Schedule IIB (EBS)'!T68+'Schedule IIC (EBS)'!T68+'Schedule IID (EBS)'!T68+'Schedule IIE (EBS)'!T68+'Schedule IIF (EBS)'!T68","v":0},null,0,{"$f":"(C120-D120)+MAX(0,E120-F120)","v":0}]
[null,"BSCR Rating 1",{"$f":"'Schedule IIB (EBS)'!N69+'Schedule IIC (EBS)'!N69+'Schedule IID (EBS)'!N69+'Schedule IIE (EBS)'!N69+'Schedule IIF (EBS)'!N69","v":0},{"$f":"'Schedule IIB (EBS)'!P69+'Schedule IIC (EBS)'!P69+'Schedule IID (EBS)'!P69+'Schedule IIE (EBS)'!P69+'Schedule IIF (EBS)'!P69","v":0},{"$f":"'Schedule IIB (EBS)'!R69+'Schedule IIC (EBS)'!R69+'Schedule IID (EBS)'!R69+'Schedule IIE (EBS)'!R69+'Schedule IIF (EBS)'!R69","v":0},{"$f":"'Schedule IIB (EBS)'!T69+'Schedule IIC (EBS)'!T69+'Schedule IID (EBS)'!T69+'Schedule IIE (EBS)'!T69+'Schedule IIF (EBS)'!T69","v":0},null,-0.75,0]
[null,"BSCR Rating 2",{"$f":"'Schedule IIB (EBS)'!N70+'Schedule IIC (EBS)'!N70+'Schedule IID (EBS)'!N70+'Schedule IIE (EBS)'!N70+'Schedule IIF (EBS)'!N70","v":0},{"$f":"'Schedule IIB (EBS)'!P70+'Schedule IIC (EBS)'!P70+'Schedule IID (EBS)'!P70+'Schedule IIE (EBS)'!P70+'Schedule IIF (EBS)'!P70","v":0},{"$f":"'Schedule IIB (EBS)'!R70+'Schedule IIC (EBS)'!R70+'Schedule IID (EBS)'!R70+'Schedule IIE (EBS)'!R70+'Schedule IIF (EBS)'!R70","v":0},{"$f":"'Schedule IIB (EBS)'!T70+'Schedule IIC (EBS)'!T70+'Schedule IID (EBS)'!T70+'Schedule IIE (EBS)'!T70+'Schedule IIF (EBS)'!T70","v":0},null,-0.75,0]
[null,"BSCR Rating 3",{"$f":"'Schedule IIB (EBS)'!N71+'Schedule IIC (EBS)'!N71+'Schedule IID (EBS)'!N71+'Schedule IIE (EBS)'!N71+'Schedule IIF (EBS)'!N71","v":0},{"$f":"'Schedule IIB (EBS)'!P71+'Schedule IIC (EBS)'!P71+'Schedule IID (EBS)'!P71+'Schedule IIE (EBS)'!P71+'Schedule IIF (EBS)'!P71","v":0},{"$f":"'Schedule IIB (EBS)'!R71+'Schedule IIC (EBS)'!R71+'Schedule IID (EBS)'!R71+'Schedule IIE (EBS)'!R71+'Schedule IIF (EBS)'!R71","v":0},{"$f":"'Schedule IIB (EBS)'!T71+'Schedule IIC (EBS)'!T71+'Schedule IID (EBS)'!T71+'Schedule IIE (EBS)'!T71+'Schedule IIF (EBS)'!T71","v":0},null,-0.75,0]
[null,"BSCR Rating 4",{"$f":"'Schedule IIB (EBS)'!N72+'Schedule IIC (EBS)'!N72+'Schedule IID (EBS)'!N72+'Schedule IIE (EBS)'!N72+'Schedule IIF (EBS)'!N72","v":0},{"$f":"'Schedule IIB (EBS)'!P72+'Schedule IIC (EBS)'!P72+'Schedule IID (EBS)'!P72+'Schedule IIE (EBS)'!P72+'Schedule IIF (EBS)'!P72","v":0},{"$f":"'Schedule IIB (EBS)'!R72+'Schedule IIC (EBS)'!R72+'Schedule IID (EBS)'!R72+'Schedule IIE (EBS)'!R72+'Schedule IIF (EBS)'!R72","v":0},{"$f":"'Schedule IIB (EBS)'!T72+'Schedule IIC (EBS)'!T72+'Schedule IID (EBS)'!T72+'Schedule IIE (EBS)'!T72+'Schedule IIF (EBS)'!T72","v":0},null,-0.75,0]
[null,"BSCR Rating 5",{"$f":"'Schedule IIB (EBS)'!N73+'Schedule IIC (EBS)'!N73+'Schedule IID (EBS)'!N73+'Schedule IIE (EBS)'!N73+'Schedule IIF (EBS)'!N73","v":0},{"$f":"'Schedule IIB (EBS)'!P73+'Schedule IIC (EBS)'!P73+'Schedule IID (EBS)'!P73+'Schedule IIE (EBS)'!P73+'Schedule IIF (EBS)'!P73","v":0},{"$f":"'Schedule IIB (EBS)'!R73+'Schedule IIC (EBS)'!R73+'Schedule IID (EBS)'!R73+'Schedule IIE (EBS)'!R73+'Schedule IIF (EBS)'!R73","v":0},{"$f":"'Schedule IIB (EBS)'!T73+'Schedule IIC (EBS)'!T73+'Schedule IID (EBS)'!T73+'Schedule IIE (EBS)'!T73+'Schedule IIF (EBS)'!T73","v":0},null,-0.75,0]
[null,"BSCR Rating 6",{"$f":"'Schedule IIB (EBS)'!N74+'Schedule IIC (EBS)'!N74+'Schedule IID (EBS)'!N74+'Schedule IIE (EBS)'!N74+'Schedule IIF (EBS)'!N74","v":0},{"$f":"'Schedule IIB (EBS)'!P74+'Schedule IIC (EBS)'!P74+'Schedule IID (EBS)'!P74+'Schedule IIE (EBS)'!P74+'Schedule IIF (EBS)'!P74","v":0},{"$f":"'Schedule IIB (EBS)'!R74+'Schedule IIC (EBS)'!R74+'Schedule IID (EBS)'!R74+'Schedule IIE (EBS)'!R74+'Schedule IIF (EBS)'!R74","v":0},{"$f":"'Schedule IIB (EBS)'!T74+'Schedule IIC (EBS)'!T74+'Schedule IID (EBS)'!T74+'Schedule IIE (EBS)'!T74+'Schedule IIF (EBS)'!T74","v":0},null,-0.75,0]
[null,"BSCR Rating 7",{"$f":"'Schedule IIB (EBS)'!N75+'Schedule IIC (EBS)'!N75+'Schedule IID (EBS)'!N75+'Schedule IIE (EBS)'!N75+'Schedule IIF (EBS)'!N75","v":0},{"$f":"'Schedule IIB (EBS)'!P75+'Schedule IIC (EBS)'!P75+'Schedule IID (EBS)'!P75+'Schedule IIE (EBS)'!P75+'Schedule IIF (EBS)'!P75","v":0},{"$f":"'Schedule IIB (EBS)'!R75+'Schedule IIC (EBS)'!R75+'Schedule IID (EBS)'!R75+'Schedule IIE (EBS)'!R75+'Schedule IIF (EBS)'!R75","v":0},{"$f":"'Schedule IIB (EBS)'!T75+'Schedule IIC (EBS)'!T75+'Schedule IID (EBS)'!T75+'Schedule IIE (EBS)'!T75+'Schedule IIF (EBS)'!T75","v":0},null,-0.75,0]
[null,"BSCR Rating 8",{"$f":"'Schedule IIB (EBS)'!N76+'Schedule IIC (EBS)'!N76+'Schedule IID (EBS)'!N76+'Schedule IIE (EBS)'!N76+'Schedule IIF (EBS)'!N76","v":0},{"$f":"'Schedule IIB (EBS)'!P76+'Schedule IIC (EBS)'!P76+'Schedule IID (EBS)'!P76+'Schedule IIE (EBS)'!P76+'Schedule IIF (EBS)'!P76","v":0},{"$f":"'Schedule IIB (EBS)'!R76+'Schedule IIC (EBS)'!R76+'Schedule IID (EBS)'!R76+'Schedule IIE (EBS)'!R76+'Schedule IIF (EBS)'!R76","v":0},{"$f":"'Schedule IIB (EBS)'!T76+'Schedule IIC (EBS)'!T76+'Schedule IID (EBS)'!T76+'Schedule IIE (EBS)'!T76+'Schedule IIF (EBS)'!T76","v":0},null,-0.75,0]
[null,"Total Spread Down",{"$f":"SUM(C120:C128)","v":0},{"$f":"SUM(D120:D128)","v":0},{"$f":"SUM(E120:E128)","v":0},{"$f":"SUM(F120:F128)","v":0},null,null,{"$f":"MAX(SUM(I120:I128),0)","v":0}]
[]
[null,"Spread Up",null,null,null,null,null,null,{"$f":"I114","v":0}]
[null,"Spread Down",null,null,null,null,null,null,{"$f":"I129","v":0}]
[]
[null,"(g) Total Spread Risk",null,null,null,null,null,null,{"$f":"MAX(I131,I132)","v":0}]
[]
[null,"(h)  TOTAL FIXED INCOME INVESTMENTS [ (a)+(b)+(c)+(d)+(e)+(f)+(g) ]",null,null,null,null,{"$f":"G22+G36+G51+G66+G75+G97","v":0},null,{"$f":"I22+I36+I51+I66+I75+I97+I134","v":0}]

{"sheet":"Equity Investments","index":105,"n_rows":51,"n_cols":6,"rows_kept":51,"cut":false,"hidden":false,"merged":[[87,0,87,1],[0,5,0,6]]}
["EQUITY INVESTMENTS",null,null,null,null,{"$f":"HYPERLINK(\"#'Index'!A1\",\"Return to Index\")","v":"Return to Index"}]
[{"$f":"'Company Information'!C7","v":"Enter Company Name"}]
[{"$f":"\"Equity Investment Risk\" & \"($\"&IF(CONFIGURATION!$B$12>1,MID(CONFIGURATION!$B$12,2,LEN(CONFIGURATION!$B$12)),\"\")&\")\"","v":"Equity Investment Risk($000)"},null,{"$f":"'Company Information'!C3","v":"2019-12-31"},-1,-2,-3]
[]
[]
[null,"TYPE OF ",null,"ASSET","CAPITAL","REQUIRED"]
[null,"EQUITY INVESTMENTS","STATEMENT SOURCE","VALUE","FACTOR","CAPITAL"]
[]
[null,"(a)  Common Stocks",null,null,null,"(1) x (2)"]
[]
[null,"Non-Affiliated (Quoted)","Sch II EBS, Line (19), Column (1) and Sch IIA EBS, Line (19), Column (1)",{"$f":"'Schedule II (EBS)'!D41+'Schedule IIA (EBS)'!D41","v":0},0.14399999999999999,{"$f":"IF($D$11<0,0,$D$11*$E$11)","v":0}]
[null,"Non-Affiliated (Unquoted)","Sch II EBS, Line (20), Column (1) and Sch IIA EBS, Line (20), Column (1)",{"$f":"'Schedule II (EBS)'!D42+'Schedule IIA (EBS)'!D42","v":0},0.14399999999999999,{"$f":"IF($D$12<0,0,$D$12*$E$12)","v":0}]
[null,"Equity Mutual Funds","Sch II EBS, Line (21), Column (5) and Sch IIA EBS, Line (21), Column (5)",{"$f":"+'Schedule II (EBS)'!L44+'Schedule IIA (EBS)'!L44","v":0},0.14399999999999999,{"$f":"IF($D$13<0,0,$D$13*$E$13)","v":0}]
[]
[null,"(a)  SUBTOTAL - COMMON STOCKS",null,{"$f":"SUM(D11:D13)","v":0},null,{"$f":"IF(SUM(F11:F13)>=0,SUM(F11:F13),0)","v":0}]
[]
[null,"(b)  Preferred Stocks"]
[]
[null,"BSCR Rating"]
[null,1,"Sch II EBS, Line (11), Column (3) and Sch IIA EBS, Line (11), Column (3)",{"$f":"'Schedule II (EBS)'!H33+'Schedule IIA (EBS)'!H33","v":0},6.0000000000000001E-3,{"$f":"IF(D20<0,0,D20*E20)","v":0}]
[null,2,"Sch II EBS, Line (12), Column (3) and Sch IIA EBS, Line (12), Column (3)",{"$f":"'Schedule II (EBS)'!H34+'Schedule IIA (EBS)'!H34","v":0},1.2E-2,0]
[null,3,"Sch II EBS, Line (13), Column (3) and Sch IIA EBS, Line (13), Column (3)",{"$f":"'Schedule II (EBS)'!H35+'Schedule IIA (EBS)'!H35","v":0},0.02,0]
[null,4,"Sch II EBS, Line (14), Column (3) and Sch IIA EBS, Line (14), Column (3)",{"$f":"'Schedule II (EBS)'!H36+'Schedule IIA (EBS)'!H36","v":0},0.04,0]
[null,5,"Sch II EBS, Line (15), Column (3) and Sch IIA EBS, Line (15), Column (3)",{"$f":"'Schedule II (EBS)'!H37+'Schedule IIA (EBS)'!H37","v":0},0.11,0]
[null,6,"Sch II EBS, Line (16), Column (3) and Sch IIA EBS, Line (16), Column (3)",{"$f":"'Schedule II (EBS)'!H38+'Schedule IIA (EBS)'!H38","v":0},0.25,0]
[null,7,"Sch II EBS, Line (17), Column (3) and Sch IIA EBS, Line (17), Column (3)",{"$f":"'Schedule II (EBS)'!H39+'Schedule IIA (EBS)'!H39","v":0},0.35,0]
[null,8,"Sch II EBS, Line (18), Column (3) and Sch IIA EBS, Line (18), Column (3)",{"$f":"'Schedule II (EBS)'!H40+'Schedule IIA (EBS)'!H40","v":0},0.35,0]
[]
[null,"(b)  SUBTOTAL - PREFERRED STOCKS",null,{"$f":"SUM(D20:D27)","v":0},null,{"$f":"IF(SUM(F20:F27)>=0,SUM(F20:F27),0)","v":0}]
[]
[null,"(c)  Other Equity Investments"]
[]
[null,"Real Estate"]
[null,"Company-Occupied Less Encumbrances","Form 1EBS, Line (7a)",{"$f":"'Form 1EBS'!F48","v":0},0.1,{"$f":"IF($D$34<0,0,$D$34*$E$34)","v":0}]
[null,"Investments Less Encumbrances","Form 1EBS, Line (7b)",{"$f":"'Form 1EBS'!F49","v":0},0.2,{"$f":"IF($D$35<0,0,$D$35*$E$35)","v":0}]
[]
[null,"Other Equity Investments","Form 1EBS, Lines (2e), (3e) & Schedule IIA EBS, Line 21, Column (7)",{"$f":"'Form 1EBS'!F19+'Form 1EBS'!F29+'Schedule IIA (EBS)'!P44","v":0},0.2,{"$f":"IF($D$37<0,0,$D$37*$E$37)","v":0}]
[null,"Other Tangible Assets - Net of Segregated Accounts Companies","Form 1EBS, Lines (13k), (14d), and (36f) Less Form 1EBS, and Line (13d)",{"$f":"'Form 1EBS'!F82+'Form 1EBS'!F88+'Form 1EBS'!F148-'Form 1EBS'!F75","v":0},0.2,{"$f":"IF($D$38<0,0,$D$38*$E$38)","v":0}]
[]
[null,"(c)  SUBTOTAL - OTHER EQUITY INVESTMENTS",null,{"$f":"SUM(D34:D38)","v":0},null,{"$f":"IF(SUM(F34:F38)>=0,SUM(F34:F38),0)","v":0}]
[]
[null,"(d)  Investments in Affiliates"]
[]
[null,"Unregulated Entities That Conduct Ancillary Services","Form 1EBS, Line (4a)",{"$f":"'Form 1EBS'!F33","v":0},0.05,{"$f":"IF(D44<0,0,D44*E44)","v":0}]
[null,"Unregulated Non-Financial Operating Entities","Form 1EBS, Line (4b)",{"$f":"'Form 1EBS'!F34","v":0},0.2,{"$f":"IF(D45<0,0,D45*E45)","v":0}]
[null,"Unregulated Financial Operating Entities","Form 1EBS, Line (4c)",{"$f":"'Form 1EBS'!F35","v":0},0.55000000000000004,{"$f":"IF(D46<0,0,D46*E46)","v":0}]
[null,"Regulated Insurance Financial Operating Entities","Form 1EBS, Line (4e)",{"$f":"'Form 1EBS'!F37","v":0},0.2,{"$f":"IF(D47<0,0,D47*E47)","v":0}]
[]
[null,"(d)  SUBTOTAL - INVESTMENTS IN AFFILIATES",null,{"$f":"SUM(D44:D47)","v":0},null,{"$f":"IF(SUM(F44:F47)>=0,SUM(F44:F47),0)","v":0}]
[]
[null,"(e)  TOTAL EQUITY INVESTMENTS [ (a) + (b) + (c) + (d) ]",null,{"$f":"D15+D29+D40+D49","v":0},null,{"$f":"F15+F29+F40+F49","v":0}]

{"sheet":"Equity Investments (Revised)","index":106,"n_rows":58,"n_cols":18,"rows_kept":58,"cut":false,"hidden":false,"merged":[[5,17,6,17],[4,15,6,15],[60,0,60,1],[4,3,4,8],[6,5,6,6],[6,7,6,8],[5,5,5,8],[5,3,6,4],[4,9,4,11],[5,9,6,9],[5,10,6,10],[5,11,6,11]]}
["EQUITY INVESTMENTS (REVISED)",null,null,null,null,null,null,null,null,null,null,null,null,null,null,null,null,{"$f":"HYPERLINK(\"#'Index'!A1\",\"Return to Index\")","v":"Return to Index"}]
[{"$f":"'Company Information'!C7","v":"Enter Company Name"}]
[{"$f":"\"Equity Investment Risk\" & \"($\"&IF(CONFIGURATION!$B$12>1,MID(CONFIGURATION!$B$12,2,LEN(CONFIGURATION!$B$12)),\"\")&\")\"","v":"Equity Investment Risk($000)"},null,{"$f":"'Company Information'!C3","v":"2019-12-31"},"(1)",{"$f":"D3-1","v":-2},{"$f":"E3-1","v":-3},-4,-5,-6,-7,-8,-9,null,{"$f":"L3-1","v":-10},null,{"$f":"N3-1","v":-11},null,{"$f":"P3-1","v":-12}]
[]
[null,null,null,"ASSETS",null,null,null,null,null,"LIABILITIES",null,null,null,null,null,"WITHOUT MANAGEMENT ACTIONS"]
[null,null,null,"Long Exposure",null,"Short Exposure",null,null,null,null,"Without Mgmt Actions","With Mgmt Actions",null,null,null,null,null,"WITH MANAGEMENT ACTIONS"]
[null,"TYPE OF ",null,null,null,"Qualifying as Assets held for risk-mitigation purposes",null,"Not Qualifying as Assets held for risk-mitigation purposes",null,null,null,null,null,"CAPITAL"]
[null,"EQUITY INVESTMENTS","STATEMENT SOURCE","Before Shock","After Shock","Before Shock","After Shock","Before Shock","After Shock","Before Shock","After Shock","After Shock",null,"FACTOR",null,"REQUIRED CAPITAL",null,"CAPITAL"]
[]
[null,"Type 1 Equity Holdings"]
[null,"Strategic Holdings - Listed","Sch IIB, IIC, IID, IIE and IIF Line (15)",{"$f":"'Schedule IIB (EBS)'!D39+'Schedule IIC (EBS)'!D39+'Schedule IID (EBS)'!D39+'Schedule IIE (EBS)'!D39+'Schedule IIF (EBS)'!D39","v":0},{"$f":"'Schedule IIB (EBS)'!F39+'Schedule IIC (EBS)'!F39+'Schedule IID (EBS)'!F39+'Schedule IIE (EBS)'!F39+'Schedule IIF (EBS)'!F39","v":0},{"$f":"'Schedule IIB (EBS)'!H39+'Schedule IIC (EBS)'!H39+'Schedule IID (EBS)'!H39+'Schedule IIE (EBS)'!H39+'Schedule IIF (EBS)'!H39","v":0},{"$f":"'Schedule IIB (EBS)'!J39+'Schedule IIC (EBS)'!J39+'Schedule IID (EBS)'!J39+'Schedule IIE (EBS)'!J39+'Schedule IIF (EBS)'!J39","v":0},{"$f":"'Schedule IIB (EBS)'!L39+'Schedule IIC (EBS)'!L39+'Schedule IID (EBS)'!L39+'Schedule IIE (EBS)'!L39+'Schedule IIF (EBS)'!L39","v":0},{"$f":"'Schedule IIB (EBS)'!N39+'Schedule IIC (EBS)'!N39+'Schedule IID (EBS)'!N39+'Schedule IIE (EBS)'!N39+'Schedule IIF (EBS)'!N39","v":0},{"$f":"'Schedule IIB (EBS)'!P39+'Schedule IIC (EBS)'!P39+'Schedule IID (EBS)'!P39+'Schedule IIE (EBS)'!P39+'Schedule IIF (EBS)'!P39","v":0},{"$f":"'Schedule IIB (EBS)'!R39+'Schedule IIC (EBS)'!R39+'Schedule IID (EBS)'!R39+'Schedule IIE (EBS)'!R39+'Schedule IIF (EBS)'!R39","v":0},{"$f":"'Schedule IIB (EBS)'!T39+'Schedule IIC (EBS)'!T39+'Schedule IID (EBS)'!T39+'Schedule IIE (EBS)'!T39+'Schedule IIF (EBS)'!T39","v":0},null,0.2,null,{"$f":"MAX(D11-E11,0)+(F11-G11)+MAX(H11-I11,0)+(K11-J11)","v":0},null,{"$f":"MAX(D11-E11,0)+(F11-G11)+MAX(H11-I11,0)+(L11-J11)","v":0}]
[null,"Duration Based","Sch IIB, IIC, IID, IIE and IIF Line (16)",{"$f":"'Schedule IIB (EBS)'!D40+'Schedule IIC (EBS)'!D40+'Schedule IID (EBS)'!D40+'Schedule IIE (EBS)'!D40+'Schedule IIF (EBS)'!D40","v":0},{"$f":"'Schedule IIB (EBS)'!F40+'Schedule IIC (EBS)'!F40+'Schedule IID (EBS)'!F40+'Schedule IIE (EBS)'!F40+'Schedule IIF (EBS)'!F40","v":0},{"$f":"'Schedule IIB (EBS)'!H40+'Schedule IIC (EBS)'!H40+'Schedule IID (EBS)'!H40+'Schedule IIE (EBS)'!H40+'Schedule IIF (EBS)'!H40","v":0},{"$f":"'Schedule IIB (EBS)'!J40+'Schedule IIC (EBS)'!J40+'Schedule IID (EBS)'!J40+'Schedule IIE (EBS)'!J40+'Schedule IIF (EBS)'!J40","v":0},{"$f":"'Schedule IIB (EBS)'!L40+'Schedule IIC (EBS)'!L40+'Schedule IID (EBS)'!L40+'Schedule IIE (EBS)'!L40+'Schedule IIF (EBS)'!L40","v":0},{"$f":"'Schedule IIB (EBS)'!N40+'Schedule IIC (EBS)'!N40+'Schedule IID (EBS)'!N40+'Schedule IIE (EBS)'!N40+'Schedule IIF (EBS)'!N40","v":0},{"$f":"'Schedule IIB (EBS)'!P40+'Schedule IIC (EBS)'!P40+'Schedule IID (EBS)'!P40+'Schedule IIE (EBS)'!P40+'Schedule IIF (EBS)'!P40","v":0},{"$f":"'Schedule IIB (EBS)'!R40+'Schedule IIC (EBS)'!R40+'Schedule IID (EBS)'!R40+'Schedule IIE (EBS)'!R40+'Schedule IIF (EBS)'!R40","v":0},{"$f":"'Schedule IIB (EBS)'!T40+'Schedule IIC (EBS)'!T40+'Schedule IID (EBS)'!T40+'Schedule IIE (EBS)'!T40+'Schedule IIF (EBS)'!T40","v":0},null,0.2,null,0,null,{"$f":"MAX(D12-E12,0)+(F12-G12)+MAX(H12-I12,0)+(L12-J12)","v":0}]
[null,"Listed Equity Securities in Developed Markets","Sch IIB, IIC, IID, IIE and IIF Line (17)",{"$f":"'Schedule IIB (EBS)'!D41+'Schedule IIC (EBS)'!D41+'Schedule IID (EBS)'!D41+'Schedule IIE (EBS)'!D41+'Schedule IIF (EBS)'!D41","v":0},{"$f":"'Schedule IIB (EBS)'!F41+'Schedule IIC (EBS)'!F41+'Schedule IID (EBS)'!F41+'Schedule IIE (EBS)'!F41+'Schedule IIF (EBS)'!F41","v":0},{"$f":"'Schedule IIB (EBS)'!H41+'Schedule IIC (EBS)'!H41+'Schedule IID (EBS)'!H41+'Schedule IIE (EBS)'!H41+'Schedule IIF (EBS)'!H41","v":0},{"$f":"'Schedule IIB (EBS)'!J41+'Schedule IIC (EBS)'!J41+'Schedule IID (EBS)'!J41+'Schedule IIE (EBS)'!J41+'Schedule IIF (EBS)'!J41","v":0},{"$f":"'Schedule IIB (EBS)'!L41+'Schedule IIC (EBS)'!L41+'Schedule IID (EBS)'!L41+'Schedule IIE (EBS)'!L41+'Schedule IIF (EBS)'!L41","v":0},{"$f":"'Schedule IIB (EBS)'!N41+'Schedule IIC (EBS)'!N41+'Schedule IID (EBS)'!N41+'Schedule IIE (EBS)'!N41+'Schedule IIF (EBS)'!N41","v":0},{"$f":"'Schedule IIB (EBS)'!P41+'Schedule IIC (EBS)'!P41+'Schedule IID (EBS)'!P41+'Schedule IIE (EBS)'!P41+'Schedule IIF (EBS)'!P41","v":0},{"$f":"'Schedule IIB (EBS)'!R41+'Schedule IIC (EBS)'!R41+'Schedule IID (EBS)'!R41+'Schedule IIE (EBS)'!R41+'Schedule IIF (EBS)'!R41","v":0},{"$f":"'Schedule IIB (EBS)'!T41+'Schedule IIC (EBS)'!T41+'Schedule IID (EBS)'!T41+'Schedule IIE (EBS)'!T41+'Schedule IIF (EBS)'!T41","v":0},null,0.35,null,0,null,0]
[null,"Preferred Stocks, BSCR Rating 1","Sch IIB, IIC, IID, IIE and IIF Line (18)",{"$f":"'Schedule IIB (EBS)'!D42+'Schedule IIC (EBS)'!D42+'Schedule IID (EBS)'!D42+'Schedule IIE (EBS)'!D42+'Schedule IIF (EBS)'!D42","v":0},{"$f":"'Schedule IIB (EBS)'!F42+'Schedule IIC (EBS)'!F42+'Schedule IID (EBS)'!F42+'Schedule IIE (EBS)'!F42+'Schedule IIF (EBS)'!F42","v":0},{"$f":"'Schedule IIB (EBS)'!H42+'Schedule IIC (EBS)'!H42+'Schedule IID (EBS)'!H42+'Schedule IIE (EBS)'!H42+'Schedule IIF (EBS)'!H42","v":0},{"$f":"'Schedule IIB (EBS)'!J42+'Schedule IIC (EBS)'!J42+'Schedule IID (EBS)'!J42+'Schedule IIE (EBS)'!J42+'Schedule IIF (EBS)'!J42","v":0},{"$f":"'Schedule IIB (EBS)'!L42+'Schedule IIC (EBS)'!L42+'Schedule IID (EBS)'!L42+'Schedule IIE (EBS)'!L42+'Schedule IIF (EBS)'!L42","v":0},{"$f":"'Schedule IIB (EBS)'!N42+'Schedule IIC (EBS)'!N42+'Schedule IID (EBS)'!N42+'Schedule IIE (EBS)'!N42+'Schedule IIF (EBS)'!N42","v":0},{"$f":"'Schedule IIB (EBS)'!P42+'Schedule IIC (EBS)'!P42+'Schedule IID (EBS)'!P42+'Schedule IIE (EBS)'!P42+'Schedule IIF (EBS)'!P42","v":0},{"$f":"'Schedule IIB (EBS)'!R42+'Schedule IIC (EBS)'!R42+'Schedule IID (EBS)'!R42+'Schedule IIE (EBS)'!R42+'Schedule IIF (EBS)'!R42","v":0},{"$f":"'Schedule IIB (EBS)'!T42+'Schedule IIC (EBS)'!T42+'Schedule IID (EBS)'!T42+'Schedule IIE (EBS)'!T42+'Schedule IIF (EBS)'!T42","v":0},null,6.0000000000000001E-3,null,0,null,0]
[null,"Preferred Stocks, BSCR Rating 2","Sch IIB, IIC, IID, IIE and IIF Line (19)",{"$f":"'Schedule IIB (EBS)'!D43+'Schedule IIC (EBS)'!D43+'Schedule IID (EBS)'!D43+'Schedule IIE (EBS)'!D43+'Schedule IIF (EBS)'!D43","v":0},{"$f":"'Schedule IIB (EBS)'!F43+'Schedule IIC (EBS)'!F43+'Schedule IID (EBS)'!F43+'Schedule IIE (EBS)'!F43+'Schedule IIF (EBS)'!F43","v":0},{"$f":"'Schedule IIB (EBS)'!H43+'Schedule IIC (EBS)'!H43+'Schedule IID (EBS)'!H43+'Schedule IIE (EBS)'!H43+'Schedule IIF (EBS)'!H43","v":0},{"$f":"'Schedule IIB (EBS)'!J43+'Schedule IIC (EBS)'!J43+'Schedule IID (EBS)'!J43+'Schedule IIE (EBS)'!J43+'Schedule IIF (EBS)'!J43","v":0},{"$f":"'Schedule IIB (EBS)'!L43+'Schedule IIC (EBS)'!L43+'Schedule IID (EBS)'!L43+'Schedule IIE (EBS)'!L43+'Schedule IIF (EBS)'!L43","v":0},{"$f":"'Schedule IIB (EBS)'!N43+'Schedule IIC (EBS)'!N43+'Schedule IID (EBS)'!N43+'Schedule IIE (EBS)'!N43+'Schedule IIF (EBS)'!N43","v":0},{"$f":"'Schedule IIB (EBS)'!P43+'Schedule IIC (EBS)'!P43+'Schedule IID (EBS)'!P43+'Schedule IIE (EBS)'!P43+'Schedule IIF (EBS)'!P43","v":0},{"$f":"'Schedule IIB (EBS)'!R43+'Schedule IIC (EBS)'!R43+'Schedule IID (EBS)'!R43+'Schedule IIE (EBS)'!R43+'Schedule IIF (EBS)'!R43","v":0},{"$f":"'Schedule IIB (EBS)'!T43+'Schedule IIC (EBS)'!T43+'Schedule IID (EBS)'!T43+'Schedule IIE (EBS)'!T43+'Schedule IIF (EBS)'!T43","v":0},null,1.2E-2,null,0,null,0]
[null,"Preferred Stocks, BSCR Rating 3","Sch IIB, IIC, IID, IIE and IIF Line (20)",{"$f":"'Schedule IIB (EBS)'!D44+'Schedule IIC (EBS)'!D44+'Schedule IID (EBS)'!D44+'Schedule IIE (EBS)'!D44+'Schedule IIF (EBS)'!D44","v":0},{"$f":"'Schedule IIB (EBS)'!F44+'Schedule IIC (EBS)'!F44+'Schedule IID (EBS)'!F44+'Schedule IIE (EBS)'!F44+'Schedule IIF (EBS)'!F44","v":0},{"$f":"'Schedule IIB (EBS)'!H44+'Schedule IIC (EBS)'!H44+'Schedule IID (EBS)'!H44+'Schedule IIE (EBS)'!H44+'Schedule IIF (EBS)'!H44","v":0},{"$f":"'Schedule IIB (EBS)'!J44+'Schedule IIC (EBS)'!J44+'Schedule IID (EBS)'!J44+'Schedule IIE (EBS)'!J44+'Schedule IIF (EBS)'!J44","v":0},{"$f":"'Schedule IIB (EBS)'!L44+'Schedule IIC (EBS)'!L44+'Schedule IID (EBS)'!L44+'Schedule IIE (EBS)'!L44+'Schedule IIF (EBS)'!L44","v":0},{"$f":"'Schedule IIB (EBS)'!N44+'Schedule IIC (EBS)'!N44+'Schedule IID (EBS)'!N44+'Schedule IIE (EBS)'!N44+'Schedule IIF (EBS)'!N44","v":0},{"$f":"'Schedule IIB (EBS)'!P44+'Schedule IIC (EBS)'!P44+'Schedule IID (EBS)'!P44+'Schedule IIE (EBS)'!P44+'Schedule IIF (EBS)'!P44","v":0},{"$f":"'Schedule IIB (EBS)'!R44+'Schedule IIC (EBS)'!R44+'Schedule IID (EBS)'!R44+'Schedule IIE (EBS)'!R44+'Schedule IIF (EBS)'!R44","v":0},{"$f":"'Schedule IIB (EBS)'!T44+'Schedule IIC (EBS)'!T44+'Schedule IID (EBS)'!T44+'Schedule IIE (EBS)'!T44+'Schedule IIF (EBS)'!T44","v":0},null,0.02,null,0,null,0]
[null,"Preferred Stocks, BSCR Rating 4","Sch IIB, IIC, IID, IIE and IIF Line (21)",{"$f":"'Schedule IIB (EBS)'!D45+'Schedule IIC (EBS)'!D45+'Schedule IID (EBS)'!D45+'Schedule IIE (EBS)'!D45+'Schedule IIF (EBS)'!D45","v":0},{"$f":"'Schedule IIB (EBS)'!F45+'Schedule IIC (EBS)'!F45+'Schedule IID (EBS)'!F45+'Schedule IIE (EBS)'!F45+'Schedule IIF (EBS)'!F45","v":0},{"$f":"'Schedule IIB (EBS)'!H45+'Schedule IIC (EBS)'!H45+'Schedule IID (EBS)'!H45+'Schedule IIE (EBS)'!H45+'Schedule IIF (EBS)'!H45","v":0},{"$f":"'Schedule IIB (EBS)'!J45+'Schedule IIC (EBS)'!J45+'Schedule IID (EBS)'!J45+'Schedule IIE (EBS)'!J45+'Schedule IIF (EBS)'!J45","v":0},{"$f":"'Schedule IIB (EBS)'!L45+'Schedule IIC (EBS)'!L45+'Schedule IID (EBS)'!L45+'Schedule IIE (EBS)'!L45+'Schedule IIF (EBS)'!L45","v":0},{"$f":"'Schedule IIB (EBS)'!N45+'Schedule IIC (EBS)'!N45+'Schedule IID (EBS)'!N45+'Schedule IIE (EBS)'!N45+'Schedule IIF (EBS)'!N45","v":0},{"$f":"'Schedule IIB (EBS)'!P45+'Schedule IIC (EBS)'!P45+'Schedule IID (EBS)'!P45+'Schedule IIE (EBS)'!P45+'Schedule IIF (EBS)'!P45","v":0},{"$f":"'Schedule IIB (EBS)'!R45+'Schedule IIC (EBS)'!R45+'Schedule IID (EBS)'!R45+'Schedule IIE (EBS)'!R45+'Schedule IIF (EBS)'!R45","v":0},{"$f":"'Schedule IIB (EBS)'!T45+'Schedule IIC (EBS)'!T45+'Schedule IID (EBS)'!T45+'Schedule IIE (EBS)'!T45+'Schedule IIF (EBS)'!T45","v":0},null,0.04,null,0,null,0]
[null,"Preferred Stocks, BSCR Rating 5","Sch IIB, IIC, IID, IIE and IIF Line (22)",{"$f":"'Schedule IIB (EBS)'!D46+'Schedule IIC (EBS)'!D46+'Schedule IID (EBS)'!D46+'Schedule IIE (EBS)'!D46+'Schedule IIF (EBS)'!D46","v":0},{"$f":"'Schedule IIB (EBS)'!F46+'Schedule IIC (EBS)'!F46+'Schedule IID (EBS)'!F46+'Schedule IIE (EBS)'!F46+'Schedule IIF (EBS)'!F46","v":0},{"$f":"'Schedule IIB (EBS)'!H46+'Schedule IIC (EBS)'!H46+'Schedule IID (EBS)'!H46+'Schedule IIE (EBS)'!H46+'Schedule IIF (EBS)'!H46","v":0},{"$f":"'Schedule IIB (EBS)'!J46+'Schedule IIC (EBS)'!J46+'Schedule IID (EBS)'!J46+'Schedule IIE (EBS)'!J46+'Schedule IIF (EBS)'!J46","v":0},{"$f":"'Schedule IIB (EBS)'!L46+'Schedule IIC (EBS)'!L46+'Schedule IID (EBS)'!L46+'Schedule IIE (EBS)'!L46+'Schedule IIF (EBS)'!L46","v":0},{"$f":"'Schedule IIB (EBS)'!N46+'Schedule IIC (EBS)'!N46+'Schedule IID (EBS)'!N46+'Schedule IIE (EBS)'!N46+'Schedule IIF (EBS)'!N46","v":0},{"$f":"'Schedule IIB (EBS)'!P46+'Schedule IIC (EBS)'!P46+'Schedule IID (EBS)'!P46+'Schedule IIE (EBS)'!P46+'Schedule IIF (EBS)'!P46","v":0},{"$f":"'Schedule IIB (EBS)'!R46+'Schedule IIC (EBS)'!R46+'Schedule IID (EBS)'!R46+'Schedule IIE (EBS)'!R46+'Schedule IIF (EBS)'!R46","v":0},{"$f":"'Schedule IIB (EBS)'!T46+'Schedule IIC (EBS)'!T46+'Schedule IID (EBS)'!T46+'Schedule IIE (EBS)'!T46+'Schedule IIF (EBS)'!T46","v":0},null,0.11,null,0,null,0]
[null,"Preferred Stocks, BSCR Rating 6","Sch IIB, IIC, IID, IIE and IIF Line (23)",{"$f":"'Schedule IIB (EBS)'!D47+'Schedule IIC (EBS)'!D47+'Schedule IID (EBS)'!D47+'Schedule IIE (EBS)'!D47+'Schedule IIF (EBS)'!D47","v":0},{"$f":"'Schedule IIB (EBS)'!F47+'Schedule IIC (EBS)'!F47+'Schedule IID (EBS)'!F47+'Schedule IIE (EBS)'!F47+'Schedule IIF (EBS)'!F47","v":0},{"$f":"'Schedule IIB (EBS)'!H47+'Schedule IIC (EBS)'!H47+'Schedule IID (EBS)'!H47+'Schedule IIE (EBS)'!H47+'Schedule IIF (EBS)'!H47","v":0},{"$f":"'Schedule IIB (EBS)'!J47+'Schedule IIC (EBS)'!J47+'Schedule IID (EBS)'!J47+'Schedule IIE (EBS)'!J47+'Schedule IIF (EBS)'!J47","v":0},{"$f":"'Schedule IIB (EBS)'!L47+'Schedule IIC (EBS)'!L47+'Schedule IID (EBS)'!L47+'Schedule IIE (EBS)'!L47+'Schedule IIF (EBS)'!L47","v":0},{"$f":"'Schedule IIB (EBS)'!N47+'Schedule IIC (EBS)'!N47+'Schedule IID (EBS)'!N47+'Schedule IIE (EBS)'!N47+'Schedule IIF (EBS)'!N47","v":0},{"$f":"'Schedule IIB (EBS)'!P47+'Schedule IIC (EBS)'!P47+'Schedule IID (EBS)'!P47+'Schedule IIE (EBS)'!P47+'Schedule IIF (EBS)'!P47","v":0},{"$f":"'Schedule IIB (EBS)'!R47+'Schedule IIC (EBS)'!R47+'Schedule IID (EBS)'!R47+'Schedule IIE (EBS)'!R47+'Schedule IIF (EBS)'!R47","v":0},{"$f":"'Schedule IIB (EBS)'!T47+'Schedule IIC (EBS)'!T47+'Schedule IID (EBS)'!T47+'Schedule IIE (EBS)'!T47+'Schedule IIF (EBS)'!T47","v":0},null,0.25,null,0,null,0]
[null,"Preferred Stocks, BSCR Rating 7","Sch IIB, IIC, IID, IIE and IIF Line (24)",{"$f":"'Schedule IIB (EBS)'!D48+'Schedule IIC (EBS)'!D48+'Schedule IID (EBS)'!D48+'Schedule IIE (EBS)'!D48+'Schedule IIF (EBS)'!D48","v":0},{"$f":"'Schedule IIB (EBS)'!F48+'Schedule IIC (EBS)'!F48+'Schedule IID (EBS)'!F48+'Schedule IIE (EBS)'!F48+'Schedule IIF (EBS)'!F48","v":0},{"$f":"'Schedule IIB (EBS)'!H48+'Schedule IIC (EBS)'!H48+'Schedule IID (EBS)'!H48+'Schedule IIE (EBS)'!H48+'Schedule IIF (EBS)'!H48","v":0},{"$f":"'Schedule IIB (EBS)'!J48+'Schedule IIC (EBS)'!J48+'Schedule IID (EBS)'!J48+'Schedule IIE (EBS)'!J48+'Schedule IIF (EBS)'!J48","v":0},{"$f":"'Schedule IIB (EBS)'!L48+'Schedule IIC (EBS)'!L48+'Schedule IID (EBS)'!L48+'Schedule IIE (EBS)'!L48+'Schedule IIF (EBS)'!L48","v":0},{"$f":"'Schedule IIB (EBS)'!N48+'Schedule IIC (EBS)'!N48+'Schedule IID (EBS)'!N48+'Schedule IIE (EBS)'!N48+'Schedule IIF (EBS)'!N48","v":0},{"$f":"'Schedule IIB (EBS)'!P48+'Schedule IIC (EBS)'!P48+'Schedule IID (EBS)'!P48+'Schedule IIE (EBS)'!P48+'Schedule IIF (EBS)'!P48","v":0},{"$f":"'Schedule IIB (EBS)'!R48+'Schedule IIC (EBS)'!R48+'Schedule IID (EBS)'!R48+'Schedule IIE (EBS)'!R48+'Schedule IIF (EBS)'!R48","v":0},{"$f":"'Schedule IIB (EBS)'!T48+'Schedule IIC (EBS)'!T48+'Schedule IID (EBS)'!T48+'Schedule IIE (EBS)'!T48+'Schedule IIF (EBS)'!T48","v":0},null,0.35,null,0,null,0]
[null,"Preferred Stocks, BSCR Rating 8","Sch IIB, IIC, IID, IIE and IIF Line (25)",{"$f":"'Schedule IIB (EBS)'!D49+'Schedule IIC (EBS)'!D49+'Schedule IID (EBS)'!D49+'Schedule IIE (EBS)'!D49+'Schedule IIF (EBS)'!D49","v":0},{"$f":"'Schedule IIB (EBS)'!F49+'Schedule IIC (EBS)'!F49+'Schedule IID (EBS)'!F49+'Schedule IIE (EBS)'!F49+'Schedule IIF (EBS)'!F49","v":0},{"$f":"'Schedule IIB (EBS)'!H49+'Schedule IIC (EBS)'!H49+'Schedule IID (EBS)'!H49+'Schedule IIE (EBS)'!H49+'Schedule IIF (EBS)'!H49","v":0},{"$f":"'Schedule IIB (EBS)'!J49+'Schedule IIC (EBS)'!J49+'Schedule IID (EBS)'!J49+'Schedule IIE (EBS)'!J49+'Schedule IIF (EBS)'!J49","v":0},{"$f":"'Schedule IIB (EBS)'!L49+'Schedule IIC (EBS)'!L49+'Schedule IID (EBS)'!L49+'Schedule IIE (EBS)'!L49+'Schedule IIF (EBS)'!L49","v":0},{"$f":"'Schedule IIB (EBS)'!N49+'Schedule IIC (EBS)'!N49+'Schedule IID (EBS)'!N49+'Schedule IIE (EBS)'!N49+'Schedule IIF (EBS)'!N49","v":0},{"$f":"'Schedule IIB (EBS)'!P49+'Schedule IIC (EBS)'!P49+'Schedule IID (EBS)'!P49+'Schedule IIE (EBS)'!P49+'Schedule IIF (EBS)'!P49","v":0},{"$f":"'Schedule IIB (EBS)'!R49+'Schedule IIC (EBS)'!R49+'Schedule IID (EBS)'!R49+'Schedule IIE (EBS)'!R49+'Schedule IIF (EBS)'!R49","v":0},{"$f":"'Schedule IIB (EBS)'!T49+'Schedule IIC (EBS)'!T49+'Schedule IID (EBS)'!T49+'Schedule IIE (EBS)'!T49+'Schedule IIF (EBS)'!T49","v":0},null,0.35,null,0,null,0]
[null,"Equity Derivatives on Type 1 Equities","Sch IIB, IIC, IID, IIE and IIF Line (26)",{"$f":"'Schedule IIB (EBS)'!D50+'Schedule IIC (EBS)'!D50+'Schedule IID (EBS)'!D50+'Schedule IIE (EBS)'!D50+'Schedule IIF (EBS)'!D50","v":0},{"$f":"'Schedule IIB (EBS)'!F50+'Schedule IIC (EBS)'!F50+'Schedule IID (EBS)'!F50+'Schedule IIE (EBS)'!F50+'Schedule IIF (EBS)'!F50","v":0},{"$f":"'Schedule IIB (EBS)'!H50+'Schedule IIC (EBS)'!H50+'Schedule IID (EBS)'!H50+'Schedule IIE (EBS)'!H50+'Schedule IIF (EBS)'!H50","v":0},{"$f":"'Schedule IIB (EBS)'!J50+'Schedule IIC (EBS)'!J50+'Schedule IID (EBS)'!J50+'Schedule IIE (EBS)'!J50+'Schedule IIF (EBS)'!J50","v":0},{"$f":"'Schedule IIB (EBS)'!L50+'Schedule IIC (EBS)'!L50+'Schedule IID (EBS)'!L50+'Schedule IIE (EBS)'!L50+'Schedule IIF (EBS)'!L50","v":0},{"$f":"'Schedule IIB (EBS)'!N50+'Schedule IIC (EBS)'!N50+'Schedule IID (EBS)'!N50+'Schedule IIE (EBS)'!N50+'Schedule IIF (EBS)'!N50","v":0},{"$f":"'Schedule IIB (EBS)'!P50+'Schedule IIC (EBS)'!P50+'Schedule IID (EBS)'!P50+'Schedule IIE (EBS)'!P50+'Schedule IIF (EBS)'!P50","v":0},{"$f":"'Schedule IIB (EBS)'!R50+'Schedule IIC (EBS)'!R50+'Schedule IID (EBS)'!R50+'Schedule IIE (EBS)'!R50+'Schedule IIF (EBS)'!R50","v":0},{"$f":"'Schedule IIB (EBS)'!T50+'Schedule IIC (EBS)'!T50+'Schedule IID (EBS)'!T50+'Schedule IIE (EBS)'!T50+'Schedule IIF (EBS)'!T50","v":0},null,0.35,null,0,null,0]
[]
[null,"Subtotal - Type 1 Equity Holdings",null,{"$f":"SUM(D11:D23)","v":0},0,0,0,0,0,0,0,0,null,null,null,{"$f":"MAX(SUM(P11:P22,0))","v":0},null,{"$f":"MAX(SUM(R11:R22,0))","v":0}]
[]
[null,"Type 2 Equity Holdings"]
[null,"Strategic Holdings - Unlisted","Sch IIB, IIC, IID, IIE and IIF Line (27)",{"$f":"'Schedule IIB (EBS)'!D51+'Schedule IIC (EBS)'!D51+'Schedule IID (EBS)'!D51+'Schedule IIE (EBS)'!D51+'Schedule IIF (EBS)'!D51","v":0},{"$f":"'Schedule IIB (EBS)'!F51+'Schedule IIC (EBS)'!F51+'Schedule IID (EBS)'!F51+'Schedule IIE (EBS)'!F51+'Schedule IIF (EBS)'!F51","v":0},{"$f":"'Schedule IIB (EBS)'!H51+'Schedule IIC (EBS)'!H51+'Schedule IID (EBS)'!H51+'Schedule IIE (EBS)'!H51+'Schedule IIF (EBS)'!H51","v":0},{"$f":"'Schedule IIB (EBS)'!J51+'Schedule IIC (EBS)'!J51+'Schedule IID (EBS)'!J51+'Schedule IIE (EBS)'!J51+'Schedule IIF (EBS)'!J51","v":0},{"$f":"'Schedule IIB (EBS)'!L51+'Schedule IIC (EBS)'!L51+'Schedule IID (EBS)'!L51+'Schedule IIE (EBS)'!L51+'Schedule IIF (EBS)'!L51","v":0},{"$f":"'Schedule IIB (EBS)'!N51+'Schedule IIC (EBS)'!N51+'Schedule IID (EBS)'!N51+'Schedule IIE (EBS)'!N51+'Schedule IIF (EBS)'!N51","v":0},{"$f":"'Schedule IIB (EBS)'!P51+'Schedule IIC (EBS)'!P51+'Schedule IID (EBS)'!P51+'Schedule IIE (EBS)'!P51+'Schedule IIF (EBS)'!P51","v":0},{"$f":"'Schedule IIB (EBS)'!R51+'Schedule IIC (EBS)'!R51+'Schedule IID (EBS)'!R51+'Schedule IIE (EBS)'!R51+'Schedule IIF (EBS)'!R51","v":0},{"$f":"'Schedule IIB (EBS)'!T51+'Schedule IIC (EBS)'!T51+'Schedule IID (EBS)'!T51+'Schedule IIE (EBS)'!T51+'Schedule IIF (EBS)'!T51","v":0},null,0.2,null,{"$f":"MAX(D27-E27,0)+(F27-G27)+MAX(H27-I27,0)+(K27-J27)","v":0},null,{"$f":"MAX(D27-E27,0)+(F27-G27)+MAX(H27-I27,0)+(L27-J27)","v":0}]
[null,"Other Equities","Sch IIB, IIC, IID, IIE and IIF Line (28)",{"$f":"'Schedule IIB (EBS)'!D52+'Schedule IIC (EBS)'!D52+'Schedule IID (EBS)'!D52+'Schedule IIE (EBS)'!D52+'Schedule IIF (EBS)'!D52","v":0},{"$f":"'Schedule IIB (EBS)'!F52+'Schedule IIC (EBS)'!F52+'Schedule IID (EBS)'!F52+'Schedule IIE (EBS)'!F52+'Schedule IIF (EBS)'!F52","v":0},{"$f":"'Schedule IIB (EBS)'!H52+'Schedule IIC (EBS)'!H52+'Schedule IID (EBS)'!H52+'Schedule IIE (EBS)'!H52+'Schedule IIF (EBS)'!H52","v":0},{"$f":"'Schedule IIB (EBS)'!J52+'Schedule IIC (EBS)'!J52+'Schedule IID (EBS)'!J52+'Schedule IIE (EBS)'!J52+'Schedule IIF (EBS)'!J52","v":0},{"$f":"'Schedule IIB (EBS)'!L52+'Schedule IIC (EBS)'!L52+'Schedule IID (EBS)'!L52+'Schedule IIE (EBS)'!L52+'Schedule IIF (EBS)'!L52","v":0},{"$f":"'Schedule IIB (EBS)'!N52+'Schedule IIC (EBS)'!N52+'Schedule IID (EBS)'!N52+'Schedule IIE (EBS)'!N52+'Schedule IIF (EBS)'!N52","v":0},{"$f":"'Schedule IIB (EBS)'!P52+'Schedule IIC (EBS)'!P52+'Schedule IID (EBS)'!P52+'Schedule IIE (EBS)'!P52+'Schedule IIF (EBS)'!P52","v":0},{"$f":"'Schedule IIB (EBS)'!R52+'Schedule IIC (EBS)'!R52+'Schedule IID (EBS)'!R52+'Schedule IIE (EBS)'!R52+'Schedule IIF (EBS)'!R52","v":0},{"$f":"'Schedule IIB (EBS)'!T52+'Schedule IIC (EBS)'!T52+'Schedule IID (EBS)'!T52+'Schedule IIE (EBS)'!T52+'Schedule IIF (EBS)'!T52","v":0},null,0.45,null,0,null,0]
[null,"Letters of Credit","Sch IIB, IIC, IID, IIE and IIF Line (29)",{"$f":"'Schedule IIB (EBS)'!D53+'Schedule IIC (EBS)'!D53+'Schedule IID (EBS)'!D53+'Schedule IIE (EBS)'!D53+'Schedule IIF (EBS)'!D53","v":0},{"$f":"'Schedule IIB (EBS)'!F53+'Schedule IIC (EBS)'!F53+'Schedule IID (EBS)'!F53+'Schedule IIE (EBS)'!F53+'Schedule IIF (EBS)'!F53","v":0},{"$f":"'Schedule IIB (EBS)'!H53+'Schedule IIC (EBS)'!H53+'Schedule IID (EBS)'!H53+'Schedule IIE (EBS)'!H53+'Schedule IIF (EBS)'!H53","v":0},{"$f":"'Schedule IIB (EBS)'!J53+'Schedule IIC (EBS)'!J53+'Schedule IID (EBS)'!J53+'Schedule IIE (EBS)'!J53+'Schedule IIF (EBS)'!J53","v":0},{"$f":"'Schedule IIB (EBS)'!L53+'Schedule IIC (EBS)'!L53+'Schedule IID (EBS)'!L53+'Schedule IIE (EBS)'!L53+'Schedule IIF (EBS)'!L53","v":0},{"$f":"'Schedule IIB (EBS)'!N53+'Schedule IIC (EBS)'!N53+'Schedule IID (EBS)'!N53+'Schedule IIE (EBS)'!N53+'Schedule IIF (EBS)'!N53","v":0},{"$f":"'Schedule IIB (EBS)'!P53+'Schedule IIC (EBS)'!P53+'Schedule IID (EBS)'!P53+'Schedule IIE (EBS)'!P53+'Schedule IIF (EBS)'!P53","v":0},{"$f":"'Schedule IIB (EBS)'!R53+'Schedule IIC (EBS)'!R53+'Schedule IID (EBS)'!R53+'Schedule IIE (EBS)'!R53+'Schedule IIF (EBS)'!R53","v":0},{"$f":"'Schedule IIB (EBS)'!T53+'Schedule IIC (EBS)'!T53+'Schedule IID (EBS)'!T53+'Schedule IIE (EBS)'!T53+'Schedule IIF (EBS)'!T53","v":0},null,0.2,null,0,null,0]
[null,"Intangible assets","Sch IIB, IIC, IID, IIE and IIF Line (30)",{"$f":"'Schedule IIB (EBS)'!D54+'Schedule IIC (EBS)'!D54+'Schedule IID (EBS)'!D54+'Schedule IIE (EBS)'!D54+'Schedule IIF (EBS)'!D54","v":0},{"$f":"'Schedule IIB (EBS)'!F54+'Schedule IIC (EBS)'!F54+'Schedule IID (EBS)'!F54+'Schedule IIE (EBS)'!F54+'Schedule IIF (EBS)'!F54","v":0},{"$f":"'Schedule IIB (EBS)'!H54+'Schedule IIC (EBS)'!H54+'Schedule IID (EBS)'!H54+'Schedule IIE (EBS)'!H54+'Schedule IIF (EBS)'!H54","v":0},{"$f":"'Schedule IIB (EBS)'!J54+'Schedule IIC (EBS)'!J54+'Schedule IID (EBS)'!J54+'Schedule IIE (EBS)'!J54+'Schedule IIF (EBS)'!J54","v":0},{"$f":"'Schedule IIB (EBS)'!L54+'Schedule IIC (EBS)'!L54+'Schedule IID (EBS)'!L54+'Schedule IIE (EBS)'!L54+'Schedule IIF (EBS)'!L54","v":0},{"$f":"'Schedule IIB (EBS)'!N54+'Schedule IIC (EBS)'!N54+'Schedule IID (EBS)'!N54+'Schedule IIE (EBS)'!N54+'Schedule IIF (EBS)'!N54","v":0},{"$f":"'Schedule IIB (EBS)'!P54+'Schedule IIC (EBS)'!P54+'Schedule IID (EBS)'!P54+'Schedule IIE (EBS)'!P54+'Schedule IIF (EBS)'!P54","v":0},{"$f":"'Schedule IIB (EBS)'!R54+'Schedule IIC (EBS)'!R54+'Schedule IID (EBS)'!R54+'Schedule IIE (EBS)'!R54+'Schedule IIF (EBS)'!R54","v":0},{"$f":"'Schedule IIB (EBS)'!T54+'Schedule IIC (EBS)'!T54+'Schedule IID (EBS)'!T54+'Schedule IIE (EBS)'!T54+'Schedule IIF (EBS)'!T54","v":0},null,0.2,null,0,null,0]
[null,"Pension Benefit Surplus","Sch IIB, IIC, IID, IIE and IIF Line (31)",{"$f":"'Schedule IIB (EBS)'!D55+'Schedule IIC (EBS)'!D55+'Schedule IID (EBS)'!D55+'Schedule IIE (EBS)'!D55+'Schedule IIF (EBS)'!D55","v":0},{"$f":"'Schedule IIB (EBS)'!F55+'Schedule IIC (EBS)'!F55+'Schedule IID (EBS)'!F55+'Schedule IIE (EBS)'!F55+'Schedule IIF (EBS)'!F55","v":0},{"$f":"'Schedule IIB (EBS)'!H55+'Schedule IIC (EBS)'!H55+'Schedule IID (EBS)'!H55+'Schedule IIE (EBS)'!H55+'Schedule IIF (EBS)'!H55","v":0},{"$f":"'Schedule IIB (EBS)'!J55+'Schedule IIC (EBS)'!J55+'Schedule IID (EBS)'!J55+'Schedule IIE (EBS)'!J55+'Schedule IIF (EBS)'!J55","v":0},{"$f":"'Schedule IIB (EBS)'!L55+'Schedule IIC (EBS)'!L55+'Schedule IID (EBS)'!L55+'Schedule IIE (EBS)'!L55+'Schedule IIF (EBS)'!L55","v":0},{"$f":"'Schedule IIB (EBS)'!N55+'Schedule IIC (EBS)'!N55+'Schedule IID (EBS)'!N55+'Schedule IIE (EBS)'!N55+'Schedule IIF (EBS)'!N55","v":0},{"$f":"'Schedule IIB (EBS)'!P55+'Schedule IIC (EBS)'!P55+'Schedule IID (EBS)'!P55+'Schedule IIE (EBS)'!P55+'Schedule IIF (EBS)'!P55","v":0},{"$f":"'Schedule IIB (EBS)'!R55+'Schedule IIC (EBS)'!R55+'Schedule IID (EBS)'!R55+'Schedule IIE (EBS)'!R55+'Schedule IIF (EBS)'!R55","v":0},{"$f":"'Schedule IIB (EBS)'!T55+'Schedule IIC (EBS)'!T55+'Schedule IID (EBS)'!T55+'Schedule IIE (EBS)'!T55+'Schedule IIF (EBS)'!T55","v":0},null,0.2,null,0,null,0]
[null,"Equity Derivatives on Type 2 Equities","Sch IIB, IIC, IID, IIE and IIF Line (32)",{"$f":"'Schedule IIB (EBS)'!D56+'Schedule IIC (EBS)'!D56+'Schedule IID (EBS)'!D56+'Schedule IIE (EBS)'!D56+'Schedule IIF (EBS)'!D56","v":0},{"$f":"'Schedule IIB (EBS)'!F56+'Schedule IIC (EBS)'!F56+'Schedule IID (EBS)'!F56+'Schedule IIE (EBS)'!F56+'Schedule IIF (EBS)'!F56","v":0},{"$f":"'Schedule IIB (EBS)'!H56+'Schedule IIC (EBS)'!H56+'Schedule IID (EBS)'!H56+'Schedule IIE (EBS)'!H56+'Schedule IIF (EBS)'!H56","v":0},{"$f":"'Schedule IIB (EBS)'!J56+'Schedule IIC (EBS)'!J56+'Schedule IID (EBS)'!J56+'Schedule IIE (EBS)'!J56+'Schedule IIF (EBS)'!J56","v":0},{"$f":"'Schedule IIB (EBS)'!L56+'Schedule IIC (EBS)'!L56+'Schedule IID (EBS)'!L56+'Schedule IIE (EBS)'!L56+'Schedule IIF (EBS)'!L56","v":0},{"$f":"'Schedule IIB (EBS)'!N56+'Schedule IIC (EBS)'!N56+'Schedule IID (EBS)'!N56+'Schedule IIE (EBS)'!N56+'Schedule IIF (EBS)'!N56","v":0},{"$f":"'Schedule IIB (EBS)'!P56+'Schedule IIC (EBS)'!P56+'Schedule IID (EBS)'!P56+'Schedule IIE (EBS)'!P56+'Schedule IIF (EBS)'!P56","v":0},{"$f":"'Schedule IIB (EBS)'!R56+'Schedule IIC (EBS)'!R56+'Schedule IID (EBS)'!R56+'Schedule IIE (EBS)'!R56+'Schedule IIF (EBS)'!R56","v":0},{"$f":"'Schedule IIB (EBS)'!T56+'Schedule IIC (EBS)'!T56+'Schedule IID (EBS)'!T56+'Schedule IIE (EBS)'!T56+'Schedule IIF (EBS)'!T56","v":0},null,0.45,null,0,null,0]
[]
[null,"Subtotal - Type 2 Equity Holdings",null,{"$f":"SUM(D27:D33)","v":0},{"$f":"SUM(E27:E33)","v":0},{"$f":"SUM(F27:F33)","v":0},0,0,0,0,0,{"$f":"SUM(L27:L33)","v":0},null,null,null,{"$f":"MAX(SUM(P27:P33),0)","v":0},null,{"$f":"MAX(SUM(R27:R33),0)","v":0}]
[]
[null,"Type 3 Equity Holdings"]
[null,"Infrastructure","Sch IIB, IIC, IID, IIE and IIF Line (33)",{"$f":"'Schedule IIB (EBS)'!D57+'Schedule IIC (EBS)'!D57+'Schedule IID (EBS)'!D57+'Schedule IIE (EBS)'!D57+'Schedule IIF (EBS)'!D57","v":0},{"$f":"'Schedule IIB (EBS)'!F57+'Schedule IIC (EBS)'!F57+'Schedule IID (EBS)'!F57+'Schedule IIE (EBS)'!F57+'Schedule IIF (EBS)'!F57","v":0},{"$f":"'Schedule IIB (EBS)'!H57+'Schedule IIC (EBS)'!H57+'Schedule IID (EBS)'!H57+'Schedule IIE (EBS)'!H57+'Schedule IIF (EBS)'!H57","v":0},{"$f":"'Schedule IIB (EBS)'!J57+'Schedule IIC (EBS)'!J57+'Schedule IID (EBS)'!J57+'Schedule IIE (EBS)'!J57+'Schedule IIF (EBS)'!J57","v":0},{"$f":"'Schedule IIB (EBS)'!L57+'Schedule IIC (EBS)'!L57+'Schedule IID (EBS)'!L57+'Schedule IIE (EBS)'!L57+'Schedule IIF (EBS)'!L57","v":0},{"$f":"'Schedule IIB (EBS)'!N57+'Schedule IIC (EBS)'!N57+'Schedule IID (EBS)'!N57+'Schedule IIE (EBS)'!N57+'Schedule IIF (EBS)'!N57","v":0},{"$f":"'Schedule IIB (EBS)'!P57+'Schedule IIC (EBS)'!P57+'Schedule IID (EBS)'!P57+'Schedule IIE (EBS)'!P57+'Schedule IIF (EBS)'!P57","v":0},{"$f":"'Schedule IIB (EBS)'!R57+'Schedule IIC (EBS)'!R57+'Schedule IID (EBS)'!R57+'Schedule IIE (EBS)'!R57+'Schedule IIF (EBS)'!R57","v":0},{"$f":"'Schedule IIB (EBS)'!T57+'Schedule IIC (EBS)'!T57+'Schedule IID (EBS)'!T57+'Schedule IIE (EBS)'!T57+'Schedule IIF (EBS)'!T57","v":0},null,0.25,null,{"$f":"MAX(D37-E37,0)+(F37-G37)+MAX(H37-I37,0)+(K37-J37)","v":0},null,{"$f":"MAX(D37-E37,0)+(F37-G37)+MAX(H37-I37,0)+(L37-J37)","v":0}]
[null,"Derivatives on Infrastructure","Sch IIB, IIC, IID, IIE and IIF Line (34)",{"$f":"'Schedule IIB (EBS)'!D58+'Schedule IIC (EBS)'!D58+'Schedule IID (EBS)'!D58+'Schedule IIE (EBS)'!D58+'Schedule IIF (EBS)'!D58","v":0},{"$f":"'Schedule IIB (EBS)'!F58+'Schedule IIC (EBS)'!F58+'Schedule IID (EBS)'!F58+'Schedule IIE (EBS)'!F58+'Schedule IIF (EBS)'!F58","v":0},{"$f":"'Schedule IIB (EBS)'!H58+'Schedule IIC (EBS)'!H58+'Schedule IID (EBS)'!H58+'Schedule IIE (EBS)'!H58+'Schedule IIF (EBS)'!H58","v":0},{"$f":"'Schedule IIB (EBS)'!J58+'Schedule IIC (EBS)'!J58+'Schedule IID (EBS)'!J58+'Schedule IIE (EBS)'!J58+'Schedule IIF (EBS)'!J58","v":0},{"$f":"'Schedule IIB (EBS)'!L58+'Schedule IIC (EBS)'!L58+'Schedule IID (EBS)'!L58+'Schedule IIE (EBS)'!L58+'Schedule IIF (EBS)'!L58","v":0},{"$f":"'Schedule IIB (EBS)'!N58+'Schedule IIC (EBS)'!N58+'Schedule IID (EBS)'!N58+'Schedule IIE (EBS)'!N58+'Schedule IIF (EBS)'!N58","v":0},{"$f":"'Schedule IIB (EBS)'!P58+'Schedule IIC (EBS)'!P58+'Schedule IID (EBS)'!P58+'Schedule IIE (EBS)'!P58+'Schedule IIF (EBS)'!P58","v":0},{"$f":"'Schedule IIB (EBS)'!R58+'Schedule IIC (EBS)'!R58+'Schedule IID (EBS)'!R58+'Schedule IIE (EBS)'!R58+'Schedule IIF (EBS)'!R58","v":0},{"$f":"'Schedule IIB (EBS)'!T58+'Schedule IIC (EBS)'!T58+'Schedule IID (EBS)'!T58+'Schedule IIE (EBS)'!T58+'Schedule IIF (EBS)'!T58","v":0},null,0.25,null,{"$f":"MAX(D38-E38,0)+(F38-G38)+MAX(H38-I38,0)+(K38-J38)","v":0},null,0]
[]
[null,"Subtotal - Type 3 Equity Holdings",null,{"$f":"SUM(D37:D39)","v":0},{"$f":"SUM(E37:E39)","v":0},{"$f":"SUM(F37:F39)","v":0},0,0,0,0,0,{"$f":"SUM(L37:L39)","v":0},null,null,null,{"$f":"MAX(SUM(P37:P39),0)","v":0},null,{"$f":"MAX(SUM(R37:R39),0)","v":0}]
[]
[null,"Type 4 Equity Holdings"]
[null,"Equity Real Estate 1","Sch IIB, IIC, IID, IIE and IIF Line (35)",{"$f":"'Schedule IIB (EBS)'!D59+'Schedule IIC (EBS)'!D59+'Schedule IID (EBS)'!D59+'Schedule IIE (EBS)'!D59+'Schedule IIF (EBS)'!D59","v":0},{"$f":"'Schedule IIB (EBS)'!F59+'Schedule IIC (EBS)'!F59+'Schedule IID (EBS)'!F59+'Schedule IIE (EBS)'!F59+'Schedule IIF (EBS)'!F59","v":0},{"$f":"'Schedule IIB (EBS)'!H59+'Schedule IIC (EBS)'!H59+'Schedule IID (EBS)'!H59+'Schedule IIE (EBS)'!H59+'Schedule IIF (EBS)'!H59","v":0},{"$f":"'Schedule IIB (EBS)'!J59+'Schedule IIC (EBS)'!J59+'Schedule IID (EBS)'!J59+'Schedule IIE (EBS)'!J59+'Schedule IIF (EBS)'!J59","v":0},{"$f":"'Schedule IIB (EBS)'!L59+'Schedule IIC (EBS)'!L59+'Schedule IID (EBS)'!L59+'Schedule IIE (EBS)'!L59+'Schedule IIF (EBS)'!L59","v":0},{"$f":"'Schedule IIB (EBS)'!N59+'Schedule IIC (EBS)'!N59+'Schedule IID (EBS)'!N59+'Schedule IIE (EBS)'!N59+'Schedule IIF (EBS)'!N59","v":0},{"$f":"'Schedule IIB (EBS)'!P59+'Schedule IIC (EBS)'!P59+'Schedule IID (EBS)'!P59+'Schedule IIE (EBS)'!P59+'Schedule IIF (EBS)'!P59","v":0},{"$f":"'Schedule IIB (EBS)'!R59+'Schedule IIC (EBS)'!R59+'Schedule IID (EBS)'!R59+'Schedule IIE (EBS)'!R59+'Schedule IIF (EBS)'!R59","v":0},{"$f":"'Schedule IIB (EBS)'!T59+'Schedule IIC (EBS)'!T59+'Schedule IID (EBS)'!T59+'Schedule IIE (EBS)'!T59+'Schedule IIF (EBS)'!T59","v":0},null,0.1,null,{"$f":"MAX(D43-E43,0)+(F43-G43)+MAX(H43-I43,0)+(K43-J43)","v":0},null,{"$f":"MAX(D43-E43,0)+(F43-G43)+MAX(H43-I43,0)+(L43-J43)","v":0}]
[null,"Equity Real Estate 2","Sch IIB, IIC, IID, IIE and IIF Line (36)",{"$f":"'Schedule IIB (EBS)'!D60+'Schedule IIC (EBS)'!D60+'Schedule IID (EBS)'!D60+'Schedule IIE (EBS)'!D60+'Schedule IIF (EBS)'!D60","v":0},{"$f":"'Schedule IIB (EBS)'!F60+'Schedule IIC (EBS)'!F60+'Schedule IID (EBS)'!F60+'Schedule IIE (EBS)'!F60+'Schedule IIF (EBS)'!F60","v":0},{"$f":"'Schedule IIB (EBS)'!H60+'Schedule IIC (EBS)'!H60+'Schedule IID (EBS)'!H60+'Schedule IIE (EBS)'!H60+'Schedule IIF (EBS)'!H60","v":0},{"$f":"'Schedule IIB (EBS)'!J60+'Schedule IIC (EBS)'!J60+'Schedule IID (EBS)'!J60+'Schedule IIE (EBS)'!J60+'Schedule IIF (EBS)'!J60","v":0},{"$f":"'Schedule IIB (EBS)'!L60+'Schedule IIC (EBS)'!L60+'Schedule IID (EBS)'!L60+'Schedule IIE (EBS)'!L60+'Schedule IIF (EBS)'!L60","v":0},{"$f":"'Schedule IIB (EBS)'!N60+'Schedule IIC (EBS)'!N60+'Schedule IID (EBS)'!N60+'Schedule IIE (EBS)'!N60+'Schedule IIF (EBS)'!N60","v":0},{"$f":"'Schedule IIB (EBS)'!P60+'Schedule IIC (EBS)'!P60+'Schedule IID (EBS)'!P60+'Schedule IIE (EBS)'!P60+'Schedule IIF (EBS)'!P60","v":0},{"$f":"'Schedule IIB (EBS)'!R60+'Schedule IIC (EBS)'!R60+'Schedule IID (EBS)'!R60+'Schedule IIE (EBS)'!R60+'Schedule IIF (EBS)'!R60","v":0},{"$f":"'Schedule IIB (EBS)'!T60+'Schedule IIC (EBS)'!T60+'Schedule IID (EBS)'!T60+'Schedule IIE (EBS)'!T60+'Schedule IIF (EBS)'!T60","v":0},null,0.2,null,{"$f":"MAX(D44-E44,0)+(F44-G44)+MAX(H44-I44,0)+(K44-J44)","v":0},null,0]
[]
[null,"Subtotal - Type 4 Equity Holdings",null,{"$f":"SUM(D43:D45)","v":0},{"$f":"SUM(E43:E45)","v":0},0,0,0,0,0,{"$f":"SUM(K43:K45)","v":0},{"$f":"SUM(L43:L45)","v":0},null,null,null,{"$f":"MAX(SUM(P43:P45),0)","v":0},null,{"$f":"MAX(SUM(R43:R45),0)","v":0}]
[]
[null,"Total Equity Risk before Diversification",null,{"$f":"D40+D34+D24+D46","v":0},{"$f":"E40+E34+E24+E46","v":0},0,0,0,0,0,{"$f":"K40+K34+K24+K46","v":0},{"$f":"L40+L34+L24+L46","v":0},null,null,null,{"$f":"P40+P34+P24+P46","v":0},null,{"$f":"R40+R34+R24+R46","v":0}]
[]
[null,"Aggregation of Risks","Correlation Matrix","Type 1","Type 2","Type 3","Type 4"]
[null,null,"Type 1",1,0.75,0.75,0.5,null,null,null,null,null,null,"Total Type 1 Risk ",null,{"$f":"P24","v":0},null,{"$f":"R24","v":0}]
[null,null,"Type 2",0.75,1,0.75,0.5,null,null,null,null,null,null,"Total Type 2 Risk ",null,{"$f":"P34","v":0},null,{"$f":"R34","v":0}]
[null,null,"Type 3",0.75,0.75,1,0.5,null,null,null,null,null,null,"Total Type 3 Risk",null,{"$f":"P40","v":0},null,{"$f":"R40","v":0}]
[null,null,"Type 4",0.5,0.5,0.5,1,null,null,null,null,null,null,"Total Type 4 Risk",null,{"$f":"P46","v":0},null,{"$f":"R46","v":0}]
[]
[null,"Adjustment for Grandfathering of Equity Holdings for years-ending 2018 and prior"]
[]
[null,"Total Equity Risk (Post Diversification) ",null,null,null,null,null,null,null,null,null,null,null,null,null,{"$f":"SQRT(MMULT(TRANSPOSE($P$51:$P$54),MMULT($D$51:$G$54,$P$51:$P$54)))","v":0},null,{"$f":"SQRT(MMULT(TRANSPOSE($R$51:$R$54),MMULT($D$51:$G$54,$R$51:$R$54)))","v":0}]

{"sheet":"Interest Rate-Liquidity Risk","index":107,"n_rows":15,"n_cols":7,"rows_kept":15,"cut":false,"hidden":false,"merged":[[0,6,0,7]]}
["INTEREST RATE - LIQUIDITY RISK",null,null,null,null,null,{"$f":"HYPERLINK(\"#'Index'!A1\",\"Return to Index\")","v":"Return to Index"}]
[{"$f":"'Company Information'!C7","v":"Enter Company Name"}]
[{"$f":"\"Interest Rate / Liquidity Risk\" & \"($\"&IF(CONFIGURATION!$B$12>1,MID(CONFIGURATION!$B$12,2,LEN(CONFIGURATION!$B$12)),\"\")&\")\"","v":"Interest Rate / Liquidity Risk($000)"},null,{"$f":"'Company Information'!C3","v":"2019-12-31"},-1,-2,-3,-4]
[]
[null,null,null,null,"ESTIMATED","200 BASIS POINT"]
[null,"TYPE OF ",null,"MARKET","EFFECTIVE","INTEREST RATE","REQUIRED"]
[null,"SECURITY","STATEMENT SOURCE","VALUES","DURATION","INCREASE","CAPITAL"]
[]
[null,null,null,null,null,null,"(1) x (2) x (3)"]
[]
[null,"Bonds and Debentures - Other","Sch II EBS & IIA EBS Column (9), Line 10",{"$f":"+'Schedule II (EBS)'!T22+'Schedule IIA (EBS)'!T22","v":0},{"$f":"IF('Company Information'!F11=\"Class 3A\",IF(('Schedule V'!$H$12-'Schedule V'!$H$10)>3.5,3.5,MAX(1,'Schedule V'!$H$10-'Schedule V'!$H$12,'Schedule V'!$H$12-'Schedule V'!$H$10)),IF('Schedule V'!$H$10-'Schedule V'!$H$12>=1,'Schedule V'!$H$10-'Schedule V'!$H$12,IF('Schedule V'!$H$12-'Schedule V'!$H$10>=1,'Schedule V'!$H$12-'Schedule V'!$H$10,1)))","v":1},0.02,{"$f":"IF($E$11<0,0,$D$11*$E$11*$F$11)","v":0}]
[null,"Preferred Stocks ","Sch II EBS & IIA EBS Column (3), Line 21",{"$f":"+'Schedule II (EBS)'!H44+'Schedule IIA (EBS)'!H44","v":0},{"$f":"IF('Company Information'!F11=\"Class 3A\",IF(('Schedule V'!$H$12-'Schedule V'!$H$10)>3.5,3.5,MAX(1,'Schedule V'!$H$10-'Schedule V'!$H$12,'Schedule V'!$H$12-'Schedule V'!$H$10)),IF('Schedule V'!$H$10-'Schedule V'!$H$12>=1,'Schedule V'!$H$10-'Schedule V'!$H$12,IF('Schedule V'!$H$12-'Schedule V'!$H$10>=1,'Schedule V'!$H$12-'Schedule V'!$H$10,1)))","v":1},0.02,{"$f":"IF($E$12<0,0, $D$12*$E$12*$F$12)","v":0}]
[null,"Mortgage Loans","Sch II EBS & IIA EBS Column (1), Line 26",{"$f":"+'Schedule II (EBS)'!D62+'Schedule IIA (EBS)'!D62","v":0},{"$f":"IF('Company Information'!F11=\"Class 3A\",IF(('Schedule V'!$H$12-'Schedule V'!$H$10)>3.5,3.5,MAX(1,'Schedule V'!$H$10-'Schedule V'!$H$12,'Schedule V'!$H$12-'Schedule V'!$H$10)),IF('Schedule V'!$H$10-'Schedule V'!$H$12>=1,'Schedule V'!$H$10-'Schedule V'!$H$12,IF('Schedule V'!$H$12-'Schedule V'!$H$10>=1,'Schedule V'!$H$12-'Schedule V'!$H$10,1)))","v":1},0.02,{"$f":"IF($E$13<0,0, $D$13*$E$13*$F$13)","v":0}]
[]
[null,"TOTAL INTEREST RATE / LIQUIDITY RISK",null,{"$f":"SUM(D11:D13)","v":0},null,null,{"$f":"IF(SUM(G11:G13)>=0,SUM(G11:G13),0)","v":0}]

{"sheet":"Interest Rate-Liquidity (Rev.)","index":108,"n_rows":117,"n_cols":20,"rows_kept":117,"cut":false,"hidden":false,"merged":[[2,3,2,4],[5,2,5,8],[5,10,5,12],[6,2,6,3],[6,4,6,5],[6,7,6,8],[6,10,6,11],[97,10,97,11],[97,14,97,15],[98,10,98,11],[98,14,98,15],[2,7,2,10]]}
["CURRENCY RISK","INTEREST RATE - LIQUIDITY RISK (REVISED)",null,null,null,null,null,null,null,null,null,null,null,null,null,null,null,null,null,{"$f":"HYPERLINK(\"#'Index'!A1\",\"Return to Index\")","v":"Return to Index"}]
[{"$f":"'Company Information'!C7","v":"Enter Company Name"}]
["Interest Rate / Liquidity Risk",null,null,{"$f":"'Company Information'!C3","v":"2019-12-31"}]
[]
[null,null,-1,{"$f":"C5-1","v":-2},{"$f":"D5-1","v":-3},{"$f":"E5-1","v":-4},null,{"$f":"F5-1","v":-5},{"$f":"H5-1","v":-6},null,{"$f":"I5-1","v":-7},{"$f":"K5-1","v":-8},{"$f":"L5-1","v":-9},null,{"$f":"M5-1","v":-10},{"$f":"O5-1","v":-11},{"$f":"P5-1","v":-12},null,{"$f":"Q5-1","v":-13},{"$f":"S5-1","v":-14}]
[null,null,"ASSETS",null,null,null,null,null,null,null,"LIABILITIES"]
[null,null,"Assets including derivatives qualifying as held for risk-mitigation purposes",null,"Derivatives not qualifying as held for risk-mitigation purposes",null,null,"Gross Position",null,null,"Without Management Actions",null,"With Management Actions"]
[null,"Currency","Market Value Before Shock","Market Value After Shock","Market Value Before Shock","Market Value After Shock",null,"Market Value Before Shock","Market Value After Shock",null,"Best Estimate Before Shock","Best Estimate After Shock","Best Estimate After Shock",null,"IR - Assets","IR Risk - TP without MA","IR Risk - TP with MA",null,"IR Risk - without MA","IR Risk - with MA"]
[]
[null,"IR Down- Exposures without Derivatives",null,"x"]
[null,{"$f":"'Schedule XXIII'!C10","v":"United States Dollars"},{"$f":"'Schedule XXIII'!E10","v":0},{"$f":"'Schedule XXIII'!F10","v":0},null,null,null,{"$f":"C11+E11","v":0},{"$f":"D11+F11","v":0},null,{"$f":"'Schedule XXIII'!H10","v":0},{"$f":"'Schedule XXIII'!I10","v":0},{"$f":"'Schedule XXIII'!K10","v":0},null,{"$f":"C11-D11","v":0},{"$f":"L11-K11","v":0},{"$f":"M11-K11","v":0},null,{"$f":"$O11+P11","v":0},{"$f":"$O11+Q11","v":0}]
[null,{"$f":"'Schedule XXIII'!C11","v":"Euro"},{"$f":"'Schedule XXIII'!E11","v":0},{"$f":"'Schedule XXIII'!F11","v":0},null,null,null,{"$f":"C12+E12","v":0},{"$f":"D12+F12","v":0},null,{"$f":"'Schedule XXIII'!H11","v":0},{"$f":"'Schedule XXIII'!I11","v":0},{"$f":"'Schedule XXIII'!K11","v":0},null,0,0,{"$f":"M12-K12","v":0},null,{"$f":"$O12+P12","v":0},{"$f":"$O12+Q12","v":0}]
[null,{"$f":"'Schedule XXIII'!C12","v":"United Kingdom Pounds"},{"$f":"'Schedule XXIII'!E12","v":0},{"$f":"'Schedule XXIII'!F12","v":0},null,null,null,0,0,null,{"$f":"'Schedule XXIII'!H12","v":0},{"$f":"'Schedule XXIII'!I12","v":0},{"$f":"'Schedule XXIII'!K12","v":0},null,0,0,0,null,0,0]
[null,{"$f":"'Schedule XXIII'!C13","v":"Japan Yen"},{"$f":"'Schedule XXIII'!E13","v":0},{"$f":"'Schedule XXIII'!F13","v":0},null,null,null,{"$f":"C14+E14","v":0},{"$f":"D14+F14","v":0},null,{"$f":"'Schedule XXIII'!H13","v":0},{"$f":"'Schedule XXIII'!I13","v":0},{"$f":"'Schedule XXIII'!K13","v":0},null,0,0,0,null,0,0]
[null,{"$f":"'Schedule XXIII'!C14","v":"Canada Dollars"},{"$f":"'Schedule XXIII'!E14","v":0},{"$f":"'Schedule XXIII'!F14","v":0},null,null,null,0,0,null,{"$f":"'Schedule XXIII'!H14","v":0},{"$f":"'Schedule XXIII'!I14","v":0},{"$f":"'Schedule XXIII'!K14","v":0},null,0,0,0,null,0,0]
[null,{"$f":"'Schedule XXIII'!C15","v":"Swiss Francs"},{"$f":"'Schedule XXIII'!E15","v":0},{"$f":"'Schedule XXIII'!F15","v":0},null,null,null,0,0,null,{"$f":"'Schedule XXIII'!H15","v":0},{"$f":"'Schedule XXIII'!I15","v":0},{"$f":"'Schedule XXIII'!K15","v":0},null,0,0,0,null,0,0]
[null,{"$f":"'Schedule XXIII'!C16","v":"Australia Dollar"},{"$f":"'Schedule XXIII'!E16","v":0},{"$f":"'Schedule XXIII'!F16","v":0},null,null,null,0,0,null,{"$f":"'Schedule XXIII'!H16","v":0},{"$f":"'Schedule XXIII'!I16","v":0},{"$f":"'Schedule XXIII'!K16","v":0},null,0,0,0,null,0,0]
[null,{"$f":"'Schedule XXIII'!C17","v":"New Zealand Dollar"},{"$f":"'Schedule XXIII'!E17","v":0},{"$f":"'Schedule XXIII'!F17","v":0},null,null,null,0,0,null,{"$f":"'Schedule XXIII'!H17","v":0},{"$f":"'Schedule XXIII'!I17","v":0},{"$f":"'Schedule XXIII'!K17","v":0},null,0,0,0,null,0,0]
[null,{"$f":"'Schedule XXIII'!C18","v":"Other currency 1"},{"$f":"'Schedule XXIII'!E18","v":0},{"$f":"'Schedule XXIII'!F18","v":0},null,null,null,0,0,null,{"$f":"'Schedule XXIII'!H18","v":0},{"$f":"'Schedule XXIII'!I18","v":0},{"$f":"'Schedule XXIII'!K18","v":0},null,0,0,0,null,0,0]
[null,{"$f":"'Schedule XXIII'!C19","v":"Other currency 2"},{"$f":"'Schedule XXIII'!E19","v":0},{"$f":"'Schedule XXIII'!F19","v":0},null,null,null,0,0,null,{"$f":"'Schedule XXIII'!H19","v":0},{"$f":"'Schedule XXIII'!I19","v":0},{"$f":"'Schedule XXIII'!K19","v":0},null,0,0,0,null,0,0]
[null,{"$f":"'Schedule XXIII'!C20","v":"Other currency 3"},{"$f":"'Schedule XXIII'!E20","v":0},{"$f":"'Schedule XXIII'!F20","v":0},null,null,null,0,0,null,{"$f":"'Schedule XXIII'!H20","v":0},{"$f":"'Schedule XXIII'!I20","v":0},{"$f":"'Schedule XXIII'!K20","v":0},null,0,0,0,null,0,0]
[null,{"$f":"'Schedule XXIII'!C21","v":"Other currency 4"},{"$f":"'Schedule XXIII'!E21","v":0},{"$f":"'Schedule XXIII'!F21","v":0},null,null,null,0,0,null,{"$f":"'Schedule XXIII'!H21","v":0},{"$f":"'Schedule XXIII'!I21","v":0},{"$f":"'Schedule XXIII'!K21","v":0},null,0,0,0,null,0,0]
[null,{"$f":"'Schedule XXIII'!C22","v":"Other currency 5"},{"$f":"'Schedule XXIII'!E22","v":0},{"$f":"'Schedule XXIII'!F22","v":0},null,null,null,0,0,null,{"$f":"'Schedule XXIII'!H22","v":0},{"$f":"'Schedule XXIII'!I22","v":0},{"$f":"'Schedule XXIII'!K22","v":0},null,0,0,0,null,0,0]
[null,{"$f":"'Schedule XXIII'!C23","v":"Other currency 6"},{"$f":"'Schedule XXIII'!E23","v":0},{"$f":"'Schedule XXIII'!F23","v":0},null,null,null,0,0,null,{"$f":"'Schedule XXIII'!H23","v":0},{"$f":"'Schedule XXIII'!I23","v":0},{"$f":"'Schedule XXIII'!K23","v":0},null,0,0,0,null,0,0]
[null,{"$f":"'Schedule XXIII'!C24","v":"Other currency 7"},{"$f":"'Schedule XXIII'!E24","v":0},{"$f":"'Schedule XXIII'!F24","v":0},null,null,null,0,0,null,{"$f":"'Schedule XXIII'!H24","v":0},{"$f":"'Schedule XXIII'!I24","v":0},{"$f":"'Schedule XXIII'!K24","v":0},null,0,0,0,null,0,0]
[null,{"$f":"'Schedule XXIII'!C25","v":"Other currency 8"},{"$f":"'Schedule XXIII'!E25","v":0},{"$f":"'Schedule XXIII'!F25","v":0},null,null,null,0,0,null,{"$f":"'Schedule XXIII'!H25","v":0},{"$f":"'Schedule XXIII'!I25","v":0},{"$f":"'Schedule XXIII'!K25","v":0},null,0,0,0,null,0,0]
[null,{"$f":"'Schedule XXIII'!C26","v":"Other currency 9"},{"$f":"'Schedule XXIII'!E26","v":0},{"$f":"'Schedule XXIII'!F26","v":0},null,null,null,0,0,null,{"$f":"'Schedule XXIII'!H26","v":0},{"$f":"'Schedule XXIII'!I26","v":0},{"$f":"'Schedule XXIII'!K26","v":0},null,0,0,0,null,0,0]
[null,{"$f":"'Schedule XXIII'!C27","v":"Other currency 10"},{"$f":"'Schedule XXIII'!E27","v":0},{"$f":"'Schedule XXIII'!F27","v":0},null,null,null,0,0,null,{"$f":"'Schedule XXIII'!H27","v":0},{"$f":"'Schedule XXIII'!I27","v":0},{"$f":"'Schedule XXIII'!K27","v":0},null,0,0,0,null,0,0]
[null,"Total IR - Other",{"$f":"SUM(C11:C28)","v":0},{"$f":"SUM(D11:D28)","v":0},{"$f":"SUM(E11:E28)","v":0},{"$f":"SUM(F11:F28)","v":0},null,{"$f":"SUM(H11:H28)","v":0},{"$f":"SUM(I11:I28)","v":0},null,{"$f":"SUM(K11:K28)","v":0},{"$f":"SUM(L11:L28)","v":0},{"$f":"SUM(M11:M28)","v":0},null,{"$f":"SUM(O11:O28)","v":0},{"$f":"SUM(P11:P28)","v":0},{"$f":"SUM(Q11:Q28)","v":0},null,{"$f":"SUM(S11:S28)","v":0},{"$f":"SUM(T11:T28)","v":0}]
[]
[null,"IR Down- Derivatives"]
[null,{"$f":"'Schedule XXIII'!C10","v":"United States Dollars"},{"$f":"'Schedule XXIII'!M10","v":0},{"$f":"'Schedule XXIII'!N10","v":0},{"$f":"'Schedule XXIII'!P10","v":0},{"$f":"'Schedule XXIII'!Q10","v":0},null,{"$f":"C32+E32","v":0},{"$f":"D32+F32","v":0},null,{"$f":"'Schedule XXIII'!S10","v":0},{"$f":"'Schedule XXIII'!T10","v":0},{"$f":"'Schedule XXIII'!V10","v":0},null,{"$f":"C32-D32 + MAX(0,E32-F32)","v":0},{"$f":"L32-K32","v":0},{"$f":"M32-K32","v":0},null,{"$f":"$O32+P32","v":0},{"$f":"$O32+Q32","v":0}]
[null,{"$f":"'Schedule XXIII'!C11","v":"Euro"},{"$f":"'Schedule XXIII'!M11","v":0},{"$f":"'Schedule XXIII'!N11","v":0},{"$f":"'Schedule XXIII'!P11","v":0},{"$f":"'Schedule XXIII'!Q11","v":0},null,{"$f":"C33+E33","v":0},0,null,{"$f":"'Schedule XXIII'!S11","v":0},{"$f":"'Schedule XXIII'!T11","v":0},{"$f":"'Schedule XXIII'!V11","v":0},null,0,0,0,null,{"$f":"$O33+P33","v":0},{"$f":"$O33+Q33","v":0}]
[null,{"$f":"'Schedule XXIII'!C12","v":"United Kingdom Pounds"},{"$f":"'Schedule XXIII'!M12","v":0},{"$f":"'Schedule XXIII'!N12","v":0},{"$f":"'Schedule XXIII'!P12","v":0},{"$f":"'Schedule XXIII'!Q12","v":0},null,0,0,null,{"$f":"'Schedule XXIII'!S12","v":0},{"$f":"'Schedule XXIII'!T12","v":0},{"$f":"'Schedule XXIII'!V12","v":0},null,0,0,0,null,0,0]
[null,{"$f":"'Schedule XXIII'!C13","v":"Japan Yen"},{"$f":"'Schedule XXIII'!M13","v":0},{"$f":"'Schedule XXIII'!N13","v":0},{"$f":"'Schedule XXIII'!P13","v":0},{"$f":"'Schedule XXIII'!Q13","v":0},null,0,0,null,{"$f":"'Schedule XXIII'!S13","v":0},{"$f":"'Schedule XXIII'!T13","v":0},{"$f":"'Schedule XXIII'!V13","v":0},null,0,0,0,null,0,0]
[null,{"$f":"'Schedule XXIII'!C14","v":"Canada Dollars"},{"$f":"'Schedule XXIII'!M14","v":0},{"$f":"'Schedule XXIII'!N14","v":0},{"$f":"'Schedule XXIII'!P14","v":0},{"$f":"'Schedule XXIII'!Q14","v":0},null,0,0,null,{"$f":"'Schedule XXIII'!S14","v":0},{"$f":"'Schedule XXIII'!T14","v":0},{"$f":"'Schedule XXIII'!V14","v":0},null,0,0,0,null,0,0]
[null,{"$f":"'Schedule XXIII'!C15","v":"Swiss Francs"},{"$f":"'Schedule XXIII'!M15","v":0},{"$f":"'Schedule XXIII'!N15","v":0},{"$f":"'Schedule XXIII'!P15","v":0},{"$f":"'Schedule XXIII'!Q15","v":0},null,0,0,null,{"$f":"'Schedule XXIII'!S15","v":0},{"$f":"'Schedule XXIII'!T15","v":0},{"$f":"'Schedule XXIII'!V15","v":0},null,0,0,0,null,0,0]
[null,{"$f":"'Schedule XXIII'!C16","v":"Australia Dollar"},{"$f":"'Schedule XXIII'!M16","v":0},{"$f":"'Schedule XXIII'!N16","v":0},{"$f":"'Schedule XXIII'!P16","v":0},{"$f":"'Schedule XXIII'!Q16","v":0},null,0,0,null,{"$f":"'Schedule XXIII'!S16","v":0},{"$f":"'Schedule XXIII'!T16","v":0},{"$f":"'Schedule XXIII'!V16","v":0},null,0,0,0,null,0,0]
[null,{"$f":"'Schedule XXIII'!C17","v":"New Zealand Dollar"},{"$f":"'Schedule XXIII'!M17","v":0},{"$f":"'Schedule XXIII'!N17","v":0},{"$f":"'Schedule XXIII'!P17","v":0},{"$f":"'Schedule XXIII'!Q17","v":0},null,0,0,null,{"$f":"'Schedule XXIII'!S17","v":0},{"$f":"'Schedule XXIII'!T17","v":0},{"$f":"'Schedule XXIII'!V17","v":0},null,0,0,0,null,0,0]
[null,{"$f":"'Schedule XXIII'!C18","v":"Other currency 1"},{"$f":"'Schedule XXIII'!M18","v":0},{"$f":"'Schedule XXIII'!N18","v":0},{"$f":"'Schedule XXIII'!P18","v":0},{"$f":"'Schedule XXIII'!Q18","v":0},null,0,0,null,{"$f":"'Schedule XXIII'!S18","v":0},{"$f":"'Schedule XXIII'!T18","v":0},{"$f":"'Schedule XXIII'!V18","v":0},null,0,0,0,null,0,0]
[null,{"$f":"'Schedule XXIII'!C19","v":"Other currency 2"},{"$f":"'Schedule XXIII'!M19","v":0},{"$f":"'Schedule XXIII'!N19","v":0},{"$f":"'Schedule XXIII'!P19","v":0},{"$f":"'Schedule XXIII'!Q19","v":0},null,0,0,null,{"$f":"'Schedule XXIII'!S19","v":0},{"$f":"'Schedule XXIII'!T19","v":0},{"$f":"'Schedule XXIII'!V19","v":0},null,0,0,0,null,0,0]
[null,{"$f":"'Schedule XXIII'!C20","v":"Other currency 3"},{"$f":"'Schedule XXIII'!M20","v":0},{"$f":"'Schedule XXIII'!N20","v":0},{"$f":"'Schedule XXIII'!P20","v":0},{"$f":"'Schedule XXIII'!Q20","v":0},null,0,0,null,{"$f":"'Schedule XXIII'!S20","v":0},{"$f":"'Schedule XXIII'!T20","v":0},{"$f":"'Schedule XXIII'!V20","v":0},null,0,0,0,null,0,0]
[null,{"$f":"'Schedule XXIII'!C21","v":"Other currency 4"},{"$f":"'Schedule XXIII'!M21","v":0},{"$f":"'Schedule XXIII'!N21","v":0},{"$f":"'Schedule XXIII'!P21","v":0},{"$f":"'Schedule XXIII'!Q21","v":0},null,0,0,null,{"$f":"'Schedule XXIII'!S21","v":0},{"$f":"'Schedule XXIII'!T21","v":0},{"$f":"'Schedule XXIII'!V21","v":0},null,0,0,0,null,0,0]
[null,{"$f":"'Schedule XXIII'!C22","v":"Other currency 5"},{"$f":"'Schedule XXIII'!M22","v":0},{"$f":"'Schedule XXIII'!N22","v":0},{"$f":"'Schedule XXIII'!P22","v":0},{"$f":"'Schedule XXIII'!Q22","v":0},null,0,0,null,{"$f":"'Schedule XXIII'!S22","v":0},{"$f":"'Schedule XXIII'!T22","v":0},{"$f":"'Schedule XXIII'!V22","v":0},null,0,0,0,null,0,0]
[null,{"$f":"'Schedule XXIII'!C23","v":"Other currency 6"},{"$f":"'Schedule XXIII'!M23","v":0},{"$f":"'Schedule XXIII'!N23","v":0},{"$f":"'Schedule XXIII'!P23","v":0},{"$f":"'Schedule XXIII'!Q23","v":0},null,0,0,null,{"$f":"'Schedule XXIII'!S23","v":0},{"$f":"'Schedule XXIII'!T23","v":0},{"$f":"'Schedule XXIII'!V23","v":0},null,0,0,0,null,0,0]
[null,{"$f":"'Schedule XXIII'!C24","v":"Other currency 7"},{"$f":"'Schedule XXIII'!M24","v":0},{"$f":"'Schedule XXIII'!N24","v":0},{"$f":"'Schedule XXIII'!P24","v":0},{"$f":"'Schedule XXIII'!Q24","v":0},null,0,0,null,{"$f":"'Schedule XXIII'!S24","v":0},{"$f":"'Schedule XXIII'!T24","v":0},{"$f":"'Schedule XXIII'!V24","v":0},null,0,0,0,null,0,0]
[null,{"$f":"'Schedule XXIII'!C25","v":"Other currency 8"},{"$f":"'Schedule XXIII'!M25","v":0},{"$f":"'Schedule XXIII'!N25","v":0},{"$f":"'Schedule XXIII'!P25","v":0},{"$f":"'Schedule XXIII'!Q25","v":0},null,0,0,null,{"$f":"'Schedule XXIII'!S25","v":0},{"$f":"'Schedule XXIII'!T25","v":0},{"$f":"'Schedule XXIII'!V25","v":0},null,0,0,0,null,0,0]
[null,{"$f":"'Schedule XXIII'!C26","v":"Other currency 9"},{"$f":"'Schedule XXIII'!M26","v":0},{"$f":"'Schedule XXIII'!N26","v":0},{"$f":"'Schedule XXIII'!P26","v":0},{"$f":"'Schedule XXIII'!Q26","v":0},null,0,0,null,{"$f":"'Schedule XXIII'!S26","v":0},{"$f":"'Schedule XXIII'!T26","v":0},{"$f":"'Schedule XXIII'!V26","v":0},null,0,0,0,null,0,0]
[null,{"$f":"'Schedule XXIII'!C27","v":"Other currency 10"},{"$f":"'Schedule XXIII'!M27","v":0},{"$f":"'Schedule XXIII'!N27","v":0},{"$f":"'Schedule XXIII'!P27","v":0},{"$f":"'Schedule XXIII'!Q27","v":0},null,0,0,null,{"$f":"'Schedule XXIII'!S27","v":0},{"$f":"'Schedule XXIII'!T27","v":0},{"$f":"'Schedule XXIII'!V27","v":0},null,0,0,0,null,0,0]
[null,"Total IR - Derivatives",{"$f":"SUM(C32:C49)","v":0},{"$f":"SUM(D32:D49)","v":0},{"$f":"SUM(E32:E49)","v":0},{"$f":"SUM(F32:F49)","v":0},null,{"$f":"SUM(H32:H49)","v":0},{"$f":"SUM(I32:I49)","v":0},null,{"$f":"SUM(K32:K49)","v":0},{"$f":"SUM(L32:L49)","v":0},{"$f":"SUM(M32:M49)","v":0},null,{"$f":"SUM(O32:O49)","v":0},{"$f":"SUM(P32:P49)","v":0},{"$f":"SUM(Q32:Q49)","v":0},null,{"$f":"SUM(S32:S49)","v":0},{"$f":"SUM(T32:T49)","v":0}]
[null,"Total IR - DOWN",{"$f":"C29+C50","v":0},{"$f":"D29+D50","v":0},{"$f":"E29+E50","v":0},{"$f":"F29+F50","v":0},null,{"$f":"H29+H50","v":0},{"$f":"I29+I50","v":0},null,{"$f":"K29+K50","v":0},{"$f":"L29+L50","v":0},{"$f":"M29+M50","v":0},null,{"$f":"O29+O50","v":0},{"$f":"P29+P50","v":0},{"$f":"Q29+Q50","v":0},null,{"$f":"MAX(0,S29+S50)","v":0},{"$f":"MAX(0,T29+T50)","v":0}]
[]
[null,"IR UP - Exposures without Derivatives"]
[null,{"$f":"'Schedule XXIII'!C35","v":"United States Dollars"},{"$f":"'Schedule XXIII'!E35","v":0},{"$f":"'Schedule XXIII'!F35","v":0},null,null,null,{"$f":"C54+E54","v":0},{"$f":"D54+F54","v":0},null,{"$f":"'Schedule XXIII'!H35","v":0},{"$f":"'Schedule XXIII'!I35","v":0},{"$f":"'Schedule XXIII'!K35","v":0},null,{"$f":"C54-D54","v":0},{"$f":"L54-K54","v":0},{"$f":"M54-K54","v":0},null,{"$f":"$O54+P54","v":0},{"$f":"$O54+Q54","v":0}]
[null,{"$f":"'Schedule XXIII'!C36","v":"Euro"},{"$f":"'Schedule XXIII'!E36","v":0},{"$f":"'Schedule XXIII'!F36","v":0},null,null,null,{"$f":"C55+E55","v":0},0,null,{"$f":"'Schedule XXIII'!H36","v":0},{"$f":"'Schedule XXIII'!I36","v":0},{"$f":"'Schedule XXIII'!K36","v":0},null,0,0,0,null,{"$f":"$O55+P55","v":0},{"$f":"$O55+Q55","v":0}]
[null,{"$f":"'Schedule XXIII'!C37","v":"United Kingdom Pounds"},{"$f":"'Schedule XXIII'!E37","v":0},{"$f":"'Schedule XXIII'!F37","v":0},null,null,null,0,0,null,{"$f":"'Schedule XXIII'!H37","v":0},{"$f":"'Schedule XXIII'!I37","v":0},{"$f":"'Schedule XXIII'!K37","v":0},null,0,0,0,null,0,0]
[null,{"$f":"'Schedule XXIII'!C38","v":"Japan Yen"},{"$f":"'Schedule XXIII'!E38","v":0},{"$f":"'Schedule XXIII'!F38","v":0},null,null,null,0,0,null,{"$f":"'Schedule XXIII'!H38","v":0},{"$f":"'Schedule XXIII'!I38","v":0},{"$f":"'Schedule XXIII'!K38","v":0},null,0,0,0,null,0,0]
[null,{"$f":"'Schedule XXIII'!C39","v":"Canada Dollars"},{"$f":"'Schedule XXIII'!E39","v":0},{"$f":"'Schedule XXIII'!F39","v":0},null,null,null,0,0,null,{"$f":"'Schedule XXIII'!H39","v":0},{"$f":"'Schedule XXIII'!I39","v":0},{"$f":"'Schedule XXIII'!K39","v":0},null,0,0,0,null,0,0]
[null,{"$f":"'Schedule XXIII'!C40","v":"Swiss Francs"},{"$f":"'Schedule XXIII'!E40","v":0},{"$f":"'Schedule XXIII'!F40","v":0},null,null,null,0,0,null,{"$f":"'Schedule XXIII'!H40","v":0},{"$f":"'Schedule XXIII'!I40","v":0},{"$f":"'Schedule XXIII'!K40","v":0},null,0,0,0,null,0,0]
[null,{"$f":"'Schedule XXIII'!C41","v":"Australia Dollar"},{"$f":"'Schedule XXIII'!E41","v":0},{"$f":"'Schedule XXIII'!F41","v":0},null,null,null,0,0,null,{"$f":"'Schedule XXIII'!H41","v":0},{"$f":"'Schedule XXIII'!I41","v":0},{"$f":"'Schedule XXIII'!K41","v":0},null,0,0,0,null,0,0]
[null,{"$f":"'Schedule XXIII'!C42","v":"New Zealand Dollar"},{"$f":"'Schedule XXIII'!E42","v":0},{"$f":"'Schedule XXIII'!F42","v":0},null,null,null,0,0,null,{"$f":"'Schedule XXIII'!H42","v":0},{"$f":"'Schedule XXIII'!I42","v":0},{"$f":"'Schedule XXIII'!K42","v":0},null,0,0,0,null,0,0]
[null,{"$f":"'Schedule XXIII'!C43","v":"Other currency 1"},{"$f":"'Schedule XXIII'!E43","v":0},{"$f":"'Schedule XXIII'!F43","v":0},null,null,null,0,0,null,{"$f":"'Schedule XXIII'!H43","v":0},{"$f":"'Schedule XXIII'!I43","v":0},{"$f":"'Schedule XXIII'!K43","v":0},null,0,0,0,null,0,0]
[null,{"$f":"'Schedule XXIII'!C44","v":"Other currency 2"},{"$f":"'Schedule XXIII'!E44","v":0},{"$f":"'Schedule XXIII'!F44","v":0},null,null,null,0,0,null,{"$f":"'Schedule XXIII'!H44","v":0},{"$f":"'Schedule XXIII'!I44","v":0},{"$f":"'Schedule XXIII'!K44","v":0},null,0,0,0,null,0,0]
[null,{"$f":"'Schedule XXIII'!C45","v":"Other currency 3"},{"$f":"'Schedule XXIII'!E45","v":0},{"$f":"'Schedule XXIII'!F45","v":0},null,null,null,0,0,null,{"$f":"'Schedule XXIII'!H45","v":0},{"$f":"'Schedule XXIII'!I45","v":0},{"$f":"'Schedule XXIII'!K45","v":0},null,0,0,0,null,0,0]
[null,{"$f":"'Schedule XXIII'!C46","v":"Other currency 4"},{"$f":"'Schedule XXIII'!E46","v":0},{"$f":"'Schedule XXIII'!F46","v":0},null,null,null,0,0,null,{"$f":"'Schedule XXIII'!H46","v":0},{"$f":"'Schedule XXIII'!I46","v":0},{"$f":"'Schedule XXIII'!K46","v":0},null,0,0,0,null,0,0]
[null,{"$f":"'Schedule XXIII'!C47","v":"Other currency 5"},{"$f":"'Schedule XXIII'!E47","v":0},{"$f":"'Schedule XXIII'!F47","v":0},null,null,null,0,0,null,{"$f":"'Schedule XXIII'!H47","v":0},{"$f":"'Schedule XXIII'!I47","v":0},{"$f":"'Schedule XXIII'!K47","v":0},null,0,0,0,null,0,0]
[null,{"$f":"'Schedule XXIII'!C48","v":"Other currency 6"},{"$f":"'Schedule XXIII'!E48","v":0},{"$f":"'Schedule XXIII'!F48","v":0},null,null,null,0,0,null,{"$f":"'Schedule XXIII'!H48","v":0},{"$f":"'Schedule XXIII'!I48","v":0},{"$f":"'Schedule XXIII'!K48","v":0},null,0,0,0,null,0,0]
[null,{"$f":"'Schedule XXIII'!C49","v":"Other currency 7"},{"$f":"'Schedule XXIII'!E49","v":0},{"$f":"'Schedule XXIII'!F49","v":0},null,null,null,0,0,null,{"$f":"'Schedule XXIII'!H49","v":0},{"$f":"'Schedule XXIII'!I49","v":0},{"$f":"'Schedule XXIII'!K49","v":0},null,0,0,0,null,0,0]
[null,{"$f":"'Schedule XXIII'!C50","v":"Other currency 8"},{"$f":"'Schedule XXIII'!E50","v":0},{"$f":"'Schedule XXIII'!F50","v":0},null,null,null,0,0,null,{"$f":"'Schedule XXIII'!H50","v":0},{"$f":"'Schedule XXIII'!I50","v":0},{"$f":"'Schedule XXIII'!K50","v":0},null,0,0,0,null,0,0]
[null,{"$f":"'Schedule XXIII'!C51","v":"Other currency 9"},{"$f":"'Schedule XXIII'!E51","v":0},{"$f":"'Schedule XXIII'!F51","v":0},null,null,null,0,0,null,{"$f":"'Schedule XXIII'!H51","v":0},{"$f":"'Schedule XXIII'!I51","v":0},{"$f":"'Schedule XXIII'!K51","v":0},null,0,0,0,null,0,0]
[null,{"$f":"'Schedule XXIII'!C52","v":"Other currency 10"},{"$f":"'Schedule XXIII'!E52","v":0},{"$f":"'Schedule XXIII'!F52","v":0},null,null,null,0,0,null,{"$f":"'Schedule XXIII'!H52","v":0},{"$f":"'Schedule XXIII'!I52","v":0},{"$f":"'Schedule XXIII'!K52","v":0},null,0,0,0,null,0,0]
[null,"Total IR - Other",{"$f":"SUM(C54:C71)","v":0},{"$f":"SUM(D54:D71)","v":0},{"$f":"SUM(E54:E71)","v":0},null,null,{"$f":"SUM(H54:H71)","v":0},{"$f":"SUM(I54:I71)","v":0},null,{"$f":"SUM(K54:K71)","v":0},{"$f":"SUM(L54:L71)","v":0},{"$f":"SUM(M54:M71)","v":0},null,{"$f":"SUM(O54:O71)","v":0},{"$f":"SUM(P54:P71)","v":0},{"$f":"SUM(Q54:Q71)","v":0},null,{"$f":"SUM(S54:S71)","v":0},{"$f":"SUM(T54:T71)","v":0}]
[]
[null,"IR Up - Derivatives"]
[null,{"$f":"'Schedule XXIII'!C35","v":"United States Dollars"},{"$f":"'Schedule XXIII'!M35","v":0},{"$f":"'Schedule XXIII'!N35","v":0},{"$f":"'Schedule XXIII'!P35","v":0},{"$f":"'Schedule XXIII'!Q35","v":0},null,{"$f":"C75+E75","v":0},{"$f":"D75+F75","v":0},null,{"$f":"'Schedule XXIII'!S35","v":0},{"$f":"'Schedule XXIII'!T35","v":0},{"$f":"'Schedule XXIII'!V35","v":0},null,{"$f":"C75-D75 + MAX(0,E75-F75)","v":0},{"$f":"L75-K75","v":0},{"$f":"M75-K75","v":0},null,{"$f":"$O75+P75","v":0},{"$f":"$O75+Q75","v":0}]
[null,{"$f":"'Schedule XXIII'!C36","v":"Euro"},{"$f":"'Schedule XXIII'!M36","v":0},{"$f":"'Schedule XXIII'!N36","v":0},{"$f":"'Schedule XXIII'!P36","v":0},{"$f":"'Schedule XXIII'!Q36","v":0},null,{"$f":"C76+E76","v":0},0,null,{"$f":"'Schedule XXIII'!S36","v":0},{"$f":"'Schedule XXIII'!T36","v":0},{"$f":"'Schedule XXIII'!V36","v":0},null,{"$f":"C76-D76 + MAX(0,E76-F76)","v":0},0,0,null,{"$f":"$O76+P76","v":0},{"$f":"$O76+Q76","v":0}]
[null,{"$f":"'Schedule XXIII'!C37","v":"United Kingdom Pounds"},{"$f":"'Schedule XXIII'!M37","v":0},{"$f":"'Schedule XXIII'!N37","v":0},{"$f":"'Schedule XXIII'!P37","v":0},{"$f":"'Schedule XXIII'!Q37","v":0},null,0,0,null,{"$f":"'Schedule XXIII'!S37","v":0},{"$f":"'Schedule XXIII'!T37","v":0},{"$f":"'Schedule XXIII'!V37","v":0},null,{"$f":"C77-D77 + MAX(0,E77-F77)","v":0},0,0,null,0,0]
[null,{"$f":"'Schedule XXIII'!C38","v":"Japan Yen"},{"$f":"'Schedule XXIII'!M38","v":0},{"$f":"'Schedule XXIII'!N38","v":0},{"$f":"'Schedule XXIII'!P38","v":0},{"$f":"'Schedule XXIII'!Q38","v":0},null,0,0,null,{"$f":"'Schedule XXIII'!S38","v":0},{"$f":"'Schedule XXIII'!T38","v":0},{"$f":"'Schedule XXIII'!V38","v":0},null,{"$f":"C78-D78 + MAX(0,E78-F78)","v":0},0,0,null,0,0]
[null,{"$f":"'Schedule XXIII'!C39","v":"Canada Dollars"},{"$f":"'Schedule XXIII'!M39","v":0},{"$f":"'Schedule XXIII'!N39","v":0},{"$f":"'Schedule XXIII'!P39","v":0},{"$f":"'Schedule XXIII'!Q39","v":0},null,0,0,null,{"$f":"'Schedule XXIII'!S39","v":0},{"$f":"'Schedule XXIII'!T39","v":0},{"$f":"'Schedule XXIII'!V39","v":0},null,{"$f":"C79-D79 + MAX(0,E79-F79)","v":0},0,0,null,0,0]
[null,{"$f":"'Schedule XXIII'!C40","v":"Swiss Francs"},{"$f":"'Schedule XXIII'!M40","v":0},{"$f":"'Schedule XXIII'!N40","v":0},{"$f":"'Schedule XXIII'!P40","v":0},{"$f":"'Schedule XXIII'!Q40","v":0},null,0,0,null,{"$f":"'Schedule XXIII'!S40","v":0},{"$f":"'Schedule XXIII'!T40","v":0},{"$f":"'Schedule XXIII'!V40","v":0},null,{"$f":"C80-D80 + MAX(0,E80-F80)","v":0},0,0,null,0,0]
[null,{"$f":"'Schedule XXIII'!C41","v":"Australia Dollar"},{"$f":"'Schedule XXIII'!M41","v":0},{"$f":"'Schedule XXIII'!N41","v":0},{"$f":"'Schedule XXIII'!P41","v":0},{"$f":"'Schedule XXIII'!Q41","v":0},null,0,0,null,{"$f":"'Schedule XXIII'!S41","v":0},{"$f":"'Schedule XXIII'!T41","v":0},{"$f":"'Schedule XXIII'!V41","v":0},null,0,0,0,null,0,0]
[null,{"$f":"'Schedule XXIII'!C42","v":"New Zealand Dollar"},{"$f":"'Schedule XXIII'!M42","v":0},{"$f":"'Schedule XXIII'!N42","v":0},{"$f":"'Schedule XXIII'!P42","v":0},{"$f":"'Schedule XXIII'!Q42","v":0},null,0,0,null,{"$f":"'Schedule XXIII'!S42","v":0},{"$f":"'Schedule XXIII'!T42","v":0},{"$f":"'Schedule XXIII'!V42","v":0},null,0,0,0,null,0,0]
[null,{"$f":"'Schedule XXIII'!C43","v":"Other currency 1"},{"$f":"'Schedule XXIII'!M43","v":0},{"$f":"'Schedule XXIII'!N43","v":0},{"$f":"'Schedule XXIII'!P43","v":0},{"$f":"'Schedule XXIII'!Q43","v":0},null,0,0,null,{"$f":"'Schedule XXIII'!S43","v":0},{"$f":"'Schedule XXIII'!T43","v":0},{"$f":"'Schedule XXIII'!V43","v":0},null,0,0,0,null,0,0]
[null,{"$f":"'Schedule XXIII'!C44","v":"Other currency 2"},{"$f":"'Schedule XXIII'!M44","v":0},{"$f":"'Schedule XXIII'!N44","v":0},{"$f":"'Schedule XXIII'!P44","v":0},{"$f":"'Schedule XXIII'!Q44","v":0},null,0,0,null,{"$f":"'Schedule XXIII'!S44","v":0},{"$f":"'Schedule XXIII'!T44","v":0},{"$f":"'Schedule XXIII'!V44","v":0},null,0,0,0,null,0,0]
[null,{"$f":"'Schedule XXIII'!C45","v":"Other currency 3"},{"$f":"'Schedule XXIII'!M45","v":0},{"$f":"'Schedule XXIII'!N45","v":0},{"$f":"'Schedule XXIII'!P45","v":0},{"$f":"'Schedule XXIII'!Q45","v":0},null,0,0,null,{"$f":"'Schedule XXIII'!S45","v":0},{"$f":"'Schedule XXIII'!T45","v":0},{"$f":"'Schedule XXIII'!V45","v":0},null,0,0,0,null,0,0]
[null,{"$f":"'Schedule XXIII'!C46","v":"Other currency 4"},{"$f":"'Schedule XXIII'!M46","v":0},{"$f":"'Schedule XXIII'!N46","v":0},{"$f":"'Schedule XXIII'!P46","v":0},{"$f":"'Schedule XXIII'!Q46","v":0},null,0,0,null,{"$f":"'Schedule XXIII'!S46","v":0},{"$f":"'Schedule XXIII'!T46","v":0},{"$f":"'Schedule XXIII'!V46","v":0},null,0,0,0,null,0,0]
[null,{"$f":"'Schedule XXIII'!C47","v":"Other currency 5"},{"$f":"'Schedule XXIII'!M47","v":0},{"$f":"'Schedule XXIII'!N47","v":0},{"$f":"'Schedule XXIII'!P47","v":0},{"$f":"'Schedule XXIII'!Q47","v":0},null,0,0,null,{"$f":"'Schedule XXIII'!S47","v":0},{"$f":"'Schedule XXIII'!T47","v":0},{"$f":"'Schedule XXIII'!V47","v":0},null,0,0,0,null,0,0]
[null,{"$f":"'Schedule XXIII'!C48","v":"Other currency 6"},{"$f":"'Schedule XXIII'!M48","v":0},{"$f":"'Schedule XXIII'!N48","v":0},{"$f":"'Schedule XXIII'!P48","v":0},{"$f":"'Schedule XXIII'!Q48","v":0},null,0,0,null,{"$f":"'Schedule XXIII'!S48","v":0},{"$f":"'Schedule XXIII'!T48","v":0},{"$f":"'Schedule XXIII'!V48","v":0},null,0,0,0,null,0,0]
[null,{"$f":"'Schedule XXIII'!C49","v":"Other currency 7"},{"$f":"'Schedule XXIII'!M49","v":0},{"$f":"'Schedule XXIII'!N49","v":0},{"$f":"'Schedule XXIII'!P49","v":0},{"$f":"'Schedule XXIII'!Q49","v":0},null,0,0,null,{"$f":"'Schedule XXIII'!S49","v":0},{"$f":"'Schedule XXIII'!T49","v":0},{"$f":"'Schedule XXIII'!V49","v":0},null,0,0,0,null,0,0]
[null,{"$f":"'Schedule XXIII'!C50","v":"Other currency 8"},{"$f":"'Schedule XXIII'!M50","v":0},{"$f":"'Schedule XXIII'!N50","v":0},{"$f":"'Schedule XXIII'!P50","v":0},{"$f":"'Schedule XXIII'!Q50","v":0},null,0,0,null,{"$f":"'Schedule XXIII'!S50","v":0},{"$f":"'Schedule XXIII'!T50","v":0},{"$f":"'Schedule XXIII'!V50","v":0},null,0,0,0,null,0,0]
[null,{"$f":"'Schedule XXIII'!C51","v":"Other currency 9"},{"$f":"'Schedule XXIII'!M51","v":0},{"$f":"'Schedule XXIII'!N51","v":0},{"$f":"'Schedule XXIII'!P51","v":0},{"$f":"'Schedule XXIII'!Q51","v":0},null,0,0,null,{"$f":"'Schedule XXIII'!S51","v":0},{"$f":"'Schedule XXIII'!T51","v":0},{"$f":"'Schedule XXIII'!V51","v":0},null,0,0,0,null,0,0]
[null,{"$f":"'Schedule XXIII'!C52","v":"Other currency 10"},{"$f":"'Schedule XXIII'!M52","v":0},{"$f":"'Schedule XXIII'!N52","v":0},{"$f":"'Schedule XXIII'!P52","v":0},{"$f":"'Schedule XXIII'!Q52","v":0},null,0,0,null,{"$f":"'Schedule XXIII'!S52","v":0},{"$f":"'Schedule XXIII'!T52","v":0},{"$f":"'Schedule XXIII'!V52","v":0},null,0,0,0,null,0,0]
[null,"Total IR - Derivatives",{"$f":"SUM(C75:C92)","v":0},{"$f":"SUM(D75:D92)","v":0},{"$f":"SUM(E75:E92)","v":0},null,null,{"$f":"SUM(H75:H92)","v":0},{"$f":"SUM(I75:I92)","v":0},null,{"$f":"SUM(K75:K92)","v":0},{"$f":"SUM(L75:L92)","v":0},{"$f":"SUM(M75:M92)","v":0},null,{"$f":"SUM(O75:O92)","v":0},{"$f":"SUM(P75:P92)","v":0},{"$f":"SUM(Q75:Q92)","v":0},null,{"$f":"SUM(S75:S92)","v":0},{"$f":"SUM(T75:T92)","v":0}]
[null,"Total IR - UP",{"$f":"C72+C93","v":0},{"$f":"D72+D93","v":0},{"$f":"E72+E93","v":0},{"$f":"F72+F93","v":0},null,{"$f":"H72+H93","v":0},{"$f":"I72+I93","v":0},null,{"$f":"K72+K93","v":0},{"$f":"L72+L93","v":0},{"$f":"M72+M93","v":0},null,{"$f":"O72+O93","v":0},{"$f":"P72+P93","v":0},{"$f":"Q72+Q93","v":0},null,{"$f":"MAX(0,S72+S93)","v":0},{"$f":"MAX(0,T72+T93)","v":0}]
[]
[]
[null,"Overall Interest Rate Risk",null,null,null,null,null,"Scenario-Based Approach"]
[null,null,null,null,null,null,null,null,null,null,"Without Management Actions",null,null,null,"With Management Actions"]
[null,"Interest Rates Down Shock - without Management Actions",null,null,{"$f":"S51","v":0},null,null,null,"EBS Base",null,"EBS Shock",null,null,null,"EBS Shock"]
[null,"Interest Rates Up Shock - without Management Actions",null,null,{"$f":"S94","v":0}]
[null,"Max(IR Down, IR Up) - without MA",null,null,{"$f":"MAX(0,E99,E100)","v":0},null,null,"Shock used",null,null,"Down","Up",null,null,"Down","Up"]
[]
[null,"Interest Rate Risk without Management Actions",null,null,{"$f":"MAX(0,IF(E109=\"UP\",E100,E99))","v":0},null,null,"MV Assets",{"$f":"C51","v":0},null,{"$f":"D51+F51","v":0},{"$f":"D94+F94","v":0},null,null,{"$f":"K103","v":0},{"$f":"L103","v":0}]
[null,null,null,null,null,null,null,"BEL",{"$f":"K51","v":0},null,{"$f":"L51","v":0},{"$f":"L94","v":0},null,null,{"$f":"M51","v":0},{"$f":"M94","v":0}]
[]
[null,"Interest Rates Down Shock - with Management Actions",null,null,{"$f":"T51","v":0},null,null,"BEL-Worst",{"$f":"'Form 1EBS'!F215","v":0},null,{"$f":"$I106","v":0},{"$f":"$I106","v":0},null,null,{"$f":"$I106","v":0},{"$f":"$I106","v":0}]
[null,"Interest Rates Up Shock - with Management Actions",null,null,{"$f":"T94","v":0},null,null,"BEL-Base",{"$f":"'Form 1EBS'!F215","v":0},null,{"$f":"$I107","v":0},{"$f":"$I107","v":0},null,null,{"$f":"$I107","v":0},{"$f":"$I107","v":0}]
[null,"Max(IR Down, IR Up) - with MA",null,null,{"$f":"MAX(E106,E107)","v":0}]
[null,"Biting scenario",null,null,{"$f":"IF(E108=E106,\"DOWN\",\"UP\")","v":"DOWN"},null,null,"\"NAV\"",{"$f":"I$103-I$104","v":0},null,{"$f":"K$103-K$104","v":0},{"$f":"L$103-L$104","v":0},null,null,{"$f":"O$103-O$104","v":0},{"$f":"P$103-P$104","v":0}]
[]
[null,"Interest Rate Risk with Management Actions",null,null,{"$f":"MAX(0,E108)","v":0},null,null,"CR IR",null,null,{"$f":"MAX(0,$I109-K109)","v":0},{"$f":"MAX(0,$I109-L109)","v":0},null,null,{"$f":"MAX(0,$I109-O109)","v":0},{"$f":"MAX(0,$I109-P109)","v":0}]
[null,null,null,null,null,null,null,"Floor (25 % of CR IR)",null,null,{"$f":"25%*K111","v":0},{"$f":"25%*L111","v":0},null,null,{"$f":"25%*O111","v":0},{"$f":"25%*P111","v":0}]
[null,null,null,null,null,null,null,"BEL Deduction",null,null,{"$f":"K$106-K$107","v":0},{"$f":"L$106-L$107","v":0},null,null,{"$f":"O$106-O$107","v":0},{"$f":"P$106-P$107","v":0}]
[null,"Adjustment to IR Risk capital requirement",null,"Without MA","With MA",null,null,"Factor-adjusted BEL Deduct",null,null,{"$f":"50%*K113","v":0},{"$f":"50%*L113","v":0},null,null,{"$f":"50%*O113","v":0},{"$f":"50%*P113","v":0}]
[null,"For companies using Scenario-Based Approach",null,{"$f":"IF(OR(VALUE(I107)=0,VALUE(I106)=0),0,IF($E$109=\"DOWN\",K116-K111,L116-L111))","v":0},{"$f":"IF(OR(VALUE(I107)=0,VALUE(I106)=0),0,IF($E$109=\"DOWN\",O116-O111,P116-P111))","v":0}]
[null,null,null,null,null,null,null,"Capital Charge with 50 % factor",null,null,{"$f":"MAX(K112,K111-K114)","v":0},{"$f":"MAX(L112,L111-L114)","v":0},null,null,{"$f":"MAX(O112,O111-O114)","v":0},{"$f":"MAX(P112,P111-P114)","v":0}]
[null,"Interest Rate Risk capital requirement",null,{"$f":"MAX(E103+D115,0)","v":0},{"$f":"MAX(E111+E115,0)","v":0},null,null,"Max(Down,Up)",null,null,{"$f":"IF(K111>L111,K116,L116)","v":0},null,null,null,{"$f":"IF(O111>P111,O116,P116)","v":0}]

{"sheet":"Currency Risk","index":109,"n_rows":28,"n_cols":9,"rows_kept":28,"cut":false,"hidden":false,"merged":[[0,8,0,9],[4,7,5,7],[2,2,2,4]]}
["CURRENCY RISK",null,null,null,null,null,null,null,{"$f":"HYPERLINK(\"#'Index'!A1\",\"Return to Index\")","v":"Return to Index"}]
[{"$f":"'Company Information'!C7","v":"Enter Company Name"}]
["Currency Risk",null,{"$f":"'Company Information'!C3","v":"2019-12-31"}]
[]
[null,null,"(A)","(B)","(C)","(D)",{"$f":"\"(E) = (\"&ROUND(G6,2)*100&\"% of C)\"","v":"(E) = (0% of C)"},"(F) = (If(A>(C+E), 0%, 25%))","(G) = F x ABS(A-C-E)"]
[null,null,"ASSETS","TOTAL ASSETS WITH","LIABILITIES","TOTAL LIABILITIES WITH",{"$f":"+'Schedule XX'!T36","v":0},null,"REQUIRED"]
[null,"CURRENCY","Form 1EBS, Line 15","HEDGING ARRAGEMENTS","Form 1EBS, Line 39","HEDGING ARRAGEMENTS","PROXY BSCR","CHARGE","CAPITAL"]
[]
[null,{"$f":"'Schedule XX'!B9","v":"United States Dollars"},{"$f":"'Schedule XX'!L9","v":0},{"$f":"'Schedule XX'!N9","v":0},{"$f":"'Schedule XX'!P9","v":0},{"$f":"'Schedule XX'!R9","v":0},{"$f":"IF(F9=0,E9*$G$6,F9*$G$6)","v":0},0,{"$f":"IF(SUM(C10:E23)=0,0,IF(D9=0,H9*ABS(C9-E9-G9),H9*ABS(D9-F9-G9)))","v":0}]
[null,{"$f":"'Schedule XX'!B10","v":"Euro"},{"$f":"'Schedule XX'!L10","v":0},{"$f":"'Schedule XX'!N10","v":0},{"$f":"'Schedule XX'!P10","v":0},{"$f":"'Schedule XX'!R10","v":0},{"$f":"IF(F10=0,E10*$G$6,F10*$G$6)","v":0},{"$f":"IF(D10=0,IF(C10>(E10+G10),0%,25%),IF(D10>(F10+G10),0%,25%))","v":0.25},{"$f":"IF(D10=0,H10*ABS(C10-E10-G10),H10*ABS(D10-F10-G10))","v":0}]
[null,{"$f":"'Schedule XX'!B11","v":"United Kingdom Pounds"},{"$f":"'Schedule XX'!L11","v":0},{"$f":"'Schedule XX'!N11","v":0},{"$f":"'Schedule XX'!P11","v":0},{"$f":"'Schedule XX'!R11","v":0},0,0.25,0]
[null,{"$f":"'Schedule XX'!B12","v":"Canada Dollars"},{"$f":"'Schedule XX'!L12","v":0},{"$f":"'Schedule XX'!N12","v":0},{"$f":"'Schedule XX'!P12","v":0},{"$f":"'Schedule XX'!R12","v":0},0,0.25,0]
[null,{"$f":"'Schedule XX'!B13","v":"Japan Yen"},{"$f":"'Schedule XX'!L13","v":0},{"$f":"'Schedule XX'!N13","v":0},{"$f":"'Schedule XX'!P13","v":0},{"$f":"'Schedule XX'!R13","v":0},0,0.25,0]
[null,{"$f":"'Schedule XX'!B14","v":"Other currency 1"},{"$f":"'Schedule XX'!L14","v":0},{"$f":"'Schedule XX'!N14","v":0},{"$f":"'Schedule XX'!P14","v":0},{"$f":"'Schedule XX'!R14","v":0},0,0.25,0]
[null,{"$f":"'Schedule XX'!B15","v":"Other currency 2"},{"$f":"'Schedule XX'!L15","v":0},{"$f":"'Schedule XX'!N15","v":0},{"$f":"'Schedule XX'!P15","v":0},{"$f":"'Schedule XX'!R15","v":0},0,0.25,0]
[null,{"$f":"'Schedule XX'!B16","v":"Other currency 3"},{"$f":"'Schedule XX'!L16","v":0},{"$f":"'Schedule XX'!N16","v":0},{"$f":"'Schedule XX'!P16","v":0},{"$f":"'Schedule XX'!R16","v":0},0,0.25,0]
[null,{"$f":"'Schedule XX'!B17","v":"Other currency 4"},{"$f":"'Schedule XX'!L17","v":0},{"$f":"'Schedule XX'!N17","v":0},{"$f":"'Schedule XX'!P17","v":0},{"$f":"'Schedule XX'!R17","v":0},0,0.25,0]
[null,{"$f":"'Schedule XX'!B18","v":"Other currency 5"},{"$f":"'Schedule XX'!L18","v":0},{"$f":"'Schedule XX'!N18","v":0},{"$f":"'Schedule XX'!P18","v":0},{"$f":"'Schedule XX'!R18","v":0},0,0.25,{"$f":"IF(D18=0,H18*ABS(C18-E18-G18),H18*ABS(D18-F18-G18))","v":0}]
[null,{"$f":"'Schedule XX'!B19","v":"Other currency 6"},{"$f":"'Schedule XX'!L19","v":0},{"$f":"'Schedule XX'!N19","v":0},{"$f":"'Schedule XX'!P19","v":0},{"$f":"'Schedule XX'!R19","v":0},0,0.25,{"$f":"IF(D19=0,H19*ABS(C19-E19-G19),H19*ABS(D19-F19-G19))","v":0}]
[null,{"$f":"'Schedule XX'!B20","v":"Other currency 7"},{"$f":"'Schedule XX'!L20","v":0},{"$f":"'Schedule XX'!N20","v":0},{"$f":"'Schedule XX'!P20","v":0},{"$f":"'Schedule XX'!R20","v":0},0,0.25,{"$f":"IF(D20=0,H20*ABS(C20-E20-G20),H20*ABS(D20-F20-G20))","v":0}]
[null,{"$f":"'Schedule XX'!B21","v":"Other currency 8"},{"$f":"'Schedule XX'!L21","v":0},{"$f":"'Schedule XX'!N21","v":0},{"$f":"'Schedule XX'!P21","v":0},{"$f":"'Schedule XX'!R21","v":0},0,0.25,{"$f":"IF(D21=0,H21*ABS(C21-E21-G21),H21*ABS(D21-F21-G21))","v":0}]
[null,{"$f":"'Schedule XX'!B22","v":"Other currency 9"},{"$f":"'Schedule XX'!L22","v":0},{"$f":"'Schedule XX'!N22","v":0},{"$f":"'Schedule XX'!P22","v":0},{"$f":"'Schedule XX'!R22","v":0},0,0.25,{"$f":"IF(D22=0,H22*ABS(C22-E22-G22),H22*ABS(D22-F22-G22))","v":0}]
[null,{"$f":"'Schedule XX'!B23","v":"Other currency 10"},{"$f":"'Schedule XX'!L23","v":0},{"$f":"'Schedule XX'!N23","v":0},{"$f":"'Schedule XX'!P23","v":0},{"$f":"'Schedule XX'!R23","v":0},0,0.25,0]
[null,"Total Identified",{"$f":"SUM(C9:C23)","v":0},{"$f":"SUM(D9:D23)","v":0},{"$f":"SUM(E9:E23)","v":0},{"$f":"SUM(F9:F23)","v":0}]
[null,"Total",{"$f":"'Form 1EBS'!F90","v":0},null,{"$f":"+'Form 1EBS'!F163","v":0}]
[null,"% Identified",{"$f":"IF(C24=0,0,C24/C25)","v":0},null,{"$f":"IF(E24=0,0,E24/E25)","v":0}]
[]
[null,"TOTAL CURRENCY RISK",{"$f":"SUM(C9:C23)","v":0},null,{"$f":"SUM(E9:E23)","v":0},null,null,null,{"$f":"IF(SUM(I9:I26)>=0,SUM(I9:I26),0)","v":0}]

{"sheet":"Currency Risk (Revised)","index":110,"n_rows":39,"n_cols":25,"rows_kept":39,"cut":false,"hidden":false,"merged":[[5,23,5,24],[2,4,2,7],[2,11,2,16],[5,2,5,9],[5,11,5,17],[8,3,8,4],[8,5,8,6],[8,12,8,13],[8,14,8,15],[5,19,5,21]]}
[" ","CURRENCY RISK (REVISED)",null,null,null,null,null,null,null,null,null,null,null,null,null,null,null,null,null,null,null,null,null,null,{"$f":"HYPERLINK(\"#'Index'!A1\",\"Return to Index\")","v":"Return to Index"}]
[{"$f":"'Company Information'!C7","v":"Enter Company Name"}]
[{"$f":"\"Currency Risk\" & \"($\"&IF(CONFIGURATION!$B$12>1,MID(CONFIGURATION!$B$12,2,LEN(CONFIGURATION!$B$12)),\"\")&\")\"","v":"Currency Risk($000)"},null,null,null,{"$f":"'Company Information'!C3","v":"2019-12-31"}]
[]
[null,null,-1,{"$f":"C5-1","v":-2},-3,-4,-5,-6,-7,-8,null,{"$f":"J5-1","v":-9},{"$f":"L5-1","v":-10},-11,-12,-13,-14,-15,null,{"$f":"R5-1","v":-16},{"$f":"T5-1","v":-17},{"$f":"U5-1","v":-18},null,{"$f":"V5-1","v":-19},{"$f":"X5-1","v":-20}]
[null,null,"MARKET VALUE BEFORE SHOCK",null,null,null,null,null,null,null,null,"MARKET VALUE AFTER SHOCK",null,null,null,null,null,null,null,"CURRENCY RISK"]
[null,null,null,null,null,null,null,null,"(6) x BSCR PROXY","if(((1) + (2) + (3) + (4) + (5)) > ((6) + (7)), 0, X1)"]
[null,null,null,null,null,null,null,null,"PROXY BSCR",null,null,"(1) + (8) x (1)",null,null,null,null,"(6) + (8) x (6)",null,null,"((1) - (9)) + ((2) - (10)) + ((3) - (11)) + MAX((4) - (12),0) + MAX((5) - (13),0)","(14) - (6)","(15) - (6)",null,"(16) + (17)","(16) + (18)"]
[null,null,null,"Long Exposures",null,"Short Exposures",null,null,null,null,null,null,"Long Exposures",null,"Short Exposures"]
[null,"CURRENCY","Assets - Excluding currency-sensitive derivatives","Currency Derivatives Qualifying as held for risk-mitigation purposes","Currency Derivatives Not Qualifying as held for risk-mitigation purposes","Currency Derivatives Qualifying as held for risk-mitigation purposes","Currency Derivatives Not Qualifying as held for risk-mitigation purposes","Best Estimate Liabilities",{"$f":"'Schedule XXA'!P45","v":0},"SHOCK",null,"Assets - Excluding currency-sensitive derivatives","Currency Derivatives Qualifying as held for risk-mitigation purposes","Currency Derivatives Not Qualifying as held for risk-mitigation purposes","Currency Derivatives Qualifying as held for risk-mitigation purposes","Currency Derivatives Not Qualifying as held for risk-mitigation purposes","Best Estimate Liabilities without Management Actions","Best Estimate Liabilities with Management Actions",null,"ASSETS","TECHNICAL PROVISIONS WITHOUT MANAGEMENT ACTIONS","TECHNICAL PROVISIONS WITH MANAGEMENT ACTIONS",null,"CAPITAL CHARGE WITHOUT MANAGEMENT ACTIONS","CAPITAL CHARGE WITH MANAGEMENT ACTIONS"]
[]
[null,{"$f":"'Schedule XXA'!B10","v":"United States Dollars"},{"$f":"'Schedule XXA'!D10","v":0},{"$f":"'Schedule XXA'!F10","v":0},{"$f":"'Schedule XXA'!H10","v":0},{"$f":"'Schedule XXA'!J10","v":0},{"$f":"'Schedule XXA'!L10","v":0},{"$f":"'Schedule XXA'!N10","v":0},{"$f":"$I$10*H12","v":0},0,null,{"$f":"'Schedule XXA'!V10","v":0},{"$f":"'Schedule XXA'!X10","v":0},{"$f":"'Schedule XXA'!Z10","v":0},{"$f":"'Schedule XXA'!AB10","v":0},{"$f":"'Schedule XXA'!AD10","v":0},{"$f":"'Schedule XXA'!AF10","v":0},{"$f":"IF('Schedule XXA'!AH10=0,Q12,'Schedule XXA'!AH10)","v":0},null,{"$f":"(C12-L12)+(D12-M12)+(F12-O12)+MAX(E12-N12,0)+MAX(G12-P12,0)","v":0},{"$f":"Q12-$H12","v":0},{"$f":"R12-$H12","v":0},null,{"$f":"MAX(0,$T12+U12+(J12*I12))","v":0},{"$f":"MAX(0,$T12+V12+(J12*I12))","v":0}]
[null,{"$f":"'Schedule XXA'!B11","v":"Bermuda Dollars"},{"$f":"'Schedule XXA'!D11","v":0},{"$f":"'Schedule XXA'!F11","v":0},{"$f":"'Schedule XXA'!H11","v":0},{"$f":"'Schedule XXA'!J11","v":0},{"$f":"'Schedule XXA'!L11","v":0},{"$f":"'Schedule XXA'!N11","v":0},{"$f":"$I$10*H13","v":0},{"$f":"IF($B$12=\"Bermuda Dollars\",0%,IF($B$12=\"United States Dollars\",0%,IF((SUM(C13:G13))>(H13+I13),0%,25%)))","v":0},null,{"$f":"'Schedule XXA'!V11","v":0},{"$f":"'Schedule XXA'!X11","v":0},{"$f":"'Schedule XXA'!Z11","v":0},{"$f":"'Schedule XXA'!AB11","v":0},{"$f":"'Schedule XXA'!AD11","v":0},{"$f":"'Schedule XXA'!AF11","v":0},{"$f":"IF('Schedule XXA'!AH11=0,Q13,'Schedule XXA'!AH11)","v":0},null,{"$f":"(C13-L13)+(D13-M13)+(F13-O13)+MAX(E13-N13,0)+MAX(G13-P13,0)","v":0},{"$f":"Q13-$H13","v":0},{"$f":"R13-$H13","v":0},null,{"$f":"MAX(0,$T13+U13+(J13*I13))","v":0},{"$f":"MAX(0,$T13+V13+(J13*I13))","v":0}]
[null,{"$f":"'Schedule XXA'!B12","v":"Qatar Riyals"},{"$f":"'Schedule XXA'!D12","v":0},{"$f":"'Schedule XXA'!F12","v":0},{"$f":"'Schedule XXA'!H12","v":0},{"$f":"'Schedule XXA'!J12","v":0},{"$f":"'Schedule XXA'!L12","v":0},{"$f":"'Schedule XXA'!N12","v":0},0,{"$f":"IF($B$12=\"Qatar Riyals\",IF((SUM(C14:G14))>(H14+I14),0%,5%),IF($B$12=\"United States Dollars\",IF((C14+E14)>(H14+I14),0%,5%),IF((SUM(C14:G14))>(H14+I14),0%,25%)))","v":0.05},null,{"$f":"'Schedule XXA'!V12","v":0},{"$f":"'Schedule XXA'!X12","v":0},{"$f":"'Schedule XXA'!Z12","v":0},{"$f":"'Schedule XXA'!AB12","v":0},{"$f":"'Schedule XXA'!AD12","v":0},{"$f":"'Schedule XXA'!AF12","v":0},{"$f":"IF('Schedule XXA'!AH12=0,Q14,'Schedule XXA'!AH12)","v":0},null,0,0,0,null,0,0]
[null,{"$f":"'Schedule XXA'!B13","v":"Hong Kong Dollars"},{"$f":"'Schedule XXA'!D13","v":0},{"$f":"'Schedule XXA'!F13","v":0},{"$f":"'Schedule XXA'!H13","v":0},{"$f":"'Schedule XXA'!J13","v":0},{"$f":"'Schedule XXA'!L13","v":0},{"$f":"'Schedule XXA'!N13","v":0},0,{"$f":"IF($B$12=\"Hong Kong Dollars\",IF((SUM(C15:G15))>(H15+I15),0%,1%),IF($B$12=\"United States Dollars\",IF((C15+E15)>(H15+I15),0%,1%),IF((SUM(C15:G15))>(H15+I15),0%,25%)))","v":0.01},null,{"$f":"'Schedule XXA'!V13","v":0},{"$f":"'Schedule XXA'!X13","v":0},{"$f":"'Schedule XXA'!Z13","v":0},{"$f":"'Schedule XXA'!AB13","v":0},{"$f":"'Schedule XXA'!AD13","v":0},{"$f":"'Schedule XXA'!AF13","v":0},{"$f":"IF('Schedule XXA'!AH13=0,Q15,'Schedule XXA'!AH13)","v":0},null,0,0,0,null,0,0]
[null,{"$f":"'Schedule XXA'!B14","v":"Euro"},{"$f":"'Schedule XXA'!D14","v":0},{"$f":"'Schedule XXA'!F14","v":0},{"$f":"'Schedule XXA'!H14","v":0},{"$f":"'Schedule XXA'!J14","v":0},{"$f":"'Schedule XXA'!L14","v":0},{"$f":"'Schedule XXA'!N14","v":0},0,{"$f":"IF($B$12=\"Denmark Kroner\",IF((C16+D16+E16+F16+G16)>(H16+I16),0%,0.39%),IF($B$12=\"Bulgaria Leva\",IF((C16+D16+E16+F16+G16)>(H16+I16),0%,1.81%),IF($B$12=\"West African CFA Francs\",IF((C16+D16+E16+F16+G16)>(H16+I16),0%,2.18%),IF($B$12=\"Central African CFA Francs\",IF((C16+D16+E16+F16+G16)>(H16+I16),0%,1.96%),IF($B$12=\"Comorian Francs\",IF((C16+D16+E16+F16+G16)>(H16+I16),0%,2%),IF((C16+D16+E16+F16+G16)>(H16+I16),0%,25%))))))","v":0.25},null,{"$f":"'Schedule XXA'!V14","v":0},{"$f":"'Schedule XXA'!X14","v":0},{"$f":"'Schedule XXA'!Z14","v":0},{"$f":"'Schedule XXA'!AB14","v":0},{"$f":"'Schedule XXA'!AD14","v":0},{"$f":"'Schedule XXA'!AF14","v":0},{"$f":"IF('Schedule XXA'!AH14=0,Q16,'Schedule XXA'!AH14)","v":0},null,0,0,0,null,0,0]
[null,{"$f":"'Schedule XXA'!B15","v":"Denmark Kroner"},{"$f":"'Schedule XXA'!D15","v":0},{"$f":"'Schedule XXA'!F15","v":0},{"$f":"'Schedule XXA'!H15","v":0},{"$f":"'Schedule XXA'!J15","v":0},{"$f":"'Schedule XXA'!L15","v":0},{"$f":"'Schedule XXA'!N15","v":0},0,{"$f":"IF($B$12=\"Euro\",IF((SUM(C17:G17))>(H17+I17),0%,0.39%),IF((SUM(C17:G17))>(H17+I17),0%,25%))","v":0.25},null,{"$f":"'Schedule XXA'!V15","v":0},{"$f":"'Schedule XXA'!X15","v":0},{"$f":"'Schedule XXA'!Z15","v":0},{"$f":"'Schedule XXA'!AB15","v":0},{"$f":"'Schedule XXA'!AD15","v":0},{"$f":"'Schedule XXA'!AF15","v":0},{"$f":"IF('Schedule XXA'!AH15=0,Q17,'Schedule XXA'!AH15)","v":0},null,0,0,0,null,0,0]
[null,{"$f":"'Schedule XXA'!B16","v":"Bulgaria Leva"},{"$f":"'Schedule XXA'!D16","v":0},{"$f":"'Schedule XXA'!F16","v":0},{"$f":"'Schedule XXA'!H16","v":0},{"$f":"'Schedule XXA'!J16","v":0},{"$f":"'Schedule XXA'!L16","v":0},{"$f":"'Schedule XXA'!N16","v":0},0,{"$f":"IF($B$12=\"Euro\",IF((SUM(C18:G18))>(H18+I18),0%,1.81%),IF((SUM(C18:G18))>(H18+I18),0%,25%))","v":0.25},null,{"$f":"'Schedule XXA'!V16","v":0},{"$f":"'Schedule XXA'!X16","v":0},{"$f":"'Schedule XXA'!Z16","v":0},{"$f":"'Schedule XXA'!AB16","v":0},{"$f":"'Schedule XXA'!AD16","v":0},{"$f":"'Schedule XXA'!AF16","v":0},{"$f":"IF('Schedule XXA'!AH16=0,Q18,'Schedule XXA'!AH16)","v":0},null,0,0,0,null,0,0]
[null,{"$f":"'Schedule XXA'!B17","v":"West African CFA Francs"},{"$f":"'Schedule XXA'!D17","v":0},{"$f":"'Schedule XXA'!F17","v":0},{"$f":"'Schedule XXA'!H17","v":0},{"$f":"'Schedule XXA'!J17","v":0},{"$f":"'Schedule XXA'!L17","v":0},{"$f":"'Schedule XXA'!N17","v":0},0,{"$f":"IF($B$12=\"Euro\",IF((SUM(C19:G19))>(H19+I19),0%,2.18%),IF((SUM(C19:G19))>(H19+I19),0%,25%))","v":0.25},null,{"$f":"'Schedule XXA'!V17","v":0},{"$f":"'Schedule XXA'!X17","v":0},{"$f":"'Schedule XXA'!Z17","v":0},{"$f":"'Schedule XXA'!AB17","v":0},{"$f":"'Schedule XXA'!AD17","v":0},{"$f":"'Schedule XXA'!AF17","v":0},{"$f":"IF('Schedule XXA'!AH17=0,Q19,'Schedule XXA'!AH17)","v":0},null,0,0,0,null,0,0]
[null,{"$f":"'Schedule XXA'!B18","v":"Central African CFA Francs"},{"$f":"'Schedule XXA'!D18","v":0},{"$f":"'Schedule XXA'!F18","v":0},{"$f":"'Schedule XXA'!H18","v":0},{"$f":"'Schedule XXA'!J18","v":0},{"$f":"'Schedule XXA'!L18","v":0},{"$f":"'Schedule XXA'!N18","v":0},0,{"$f":"IF($B$12=\"Euro\",IF((SUM(C20:G20))>(H20+I20),0%,1.96%),IF((SUM(C20:G20))>(H20+I20),0%,25%))","v":0.25},null,{"$f":"'Schedule XXA'!V18","v":0},{"$f":"'Schedule XXA'!X18","v":0},{"$f":"'Schedule XXA'!Z18","v":0},{"$f":"'Schedule XXA'!AB18","v":0},{"$f":"'Schedule XXA'!AD18","v":0},{"$f":"'Schedule XXA'!AF18","v":0},{"$f":"IF('Schedule XXA'!AH18=0,Q20,'Schedule XXA'!AH18)","v":0},null,0,0,0,null,0,0]
[null,{"$f":"'Schedule XXA'!B19","v":"Comorian Francs"},{"$f":"'Schedule XXA'!D19","v":0},{"$f":"'Schedule XXA'!F19","v":0},{"$f":"'Schedule XXA'!H19","v":0},{"$f":"'Schedule XXA'!J19","v":0},{"$f":"'Schedule XXA'!L19","v":0},{"$f":"'Schedule XXA'!N19","v":0},0,{"$f":"IF($B$12=\"Euro\",IF((SUM(C21:G21))>(H21+I21),0%,2%),IF((SUM(C21:G21))>(H21+I21),0%,25%))","v":0.25},null,{"$f":"'Schedule XXA'!V19","v":0},{"$f":"'Schedule XXA'!X19","v":0},{"$f":"'Schedule XXA'!Z19","v":0},{"$f":"'Schedule XXA'!AB19","v":0},{"$f":"'Schedule XXA'!AD19","v":0},{"$f":"'Schedule XXA'!AF19","v":0},{"$f":"IF('Schedule XXA'!AH19=0,Q21,'Schedule XXA'!AH19)","v":0},null,0,0,0,null,0,0]
[null,{"$f":"'Schedule XXA'!B20","v":"United Kingdom Pounds"},{"$f":"'Schedule XXA'!D20","v":0},{"$f":"'Schedule XXA'!F20","v":0},{"$f":"'Schedule XXA'!H20","v":0},{"$f":"'Schedule XXA'!J20","v":0},{"$f":"'Schedule XXA'!L20","v":0},{"$f":"'Schedule XXA'!N20","v":0},0,{"$f":"IF((SUM(C22:G22))>(H22+I22),0%,25%)","v":0.25},null,{"$f":"'Schedule XXA'!V20","v":0},{"$f":"'Schedule XXA'!X20","v":0},{"$f":"'Schedule XXA'!Z20","v":0},{"$f":"'Schedule XXA'!AB20","v":0},{"$f":"'Schedule XXA'!AD20","v":0},{"$f":"'Schedule XXA'!AF20","v":0},{"$f":"IF('Schedule XXA'!AH20=0,Q22,'Schedule XXA'!AH20)","v":0},null,0,0,0,null,0,0]
[null,{"$f":"'Schedule XXA'!B21","v":"Canada Dollars"},{"$f":"'Schedule XXA'!D21","v":0},{"$f":"'Schedule XXA'!F21","v":0},{"$f":"'Schedule XXA'!H21","v":0},{"$f":"'Schedule XXA'!J21","v":0},{"$f":"'Schedule XXA'!L21","v":0},{"$f":"'Schedule XXA'!N21","v":0},0,{"$f":"IF((SUM(C23:G23))>(H23+I23),0%,25%)","v":0.25},null,{"$f":"'Schedule XXA'!V21","v":0},{"$f":"'Schedule XXA'!X21","v":0},{"$f":"'Schedule XXA'!Z21","v":0},{"$f":"'Schedule XXA'!AB21","v":0},{"$f":"'Schedule XXA'!AD21","v":0},{"$f":"'Schedule XXA'!AF21","v":0},{"$f":"IF('Schedule XXA'!AH21=0,Q23,'Schedule XXA'!AH21)","v":0},null,0,0,0,null,0,0]
[null,{"$f":"'Schedule XXA'!B22","v":"Japan Yen"},{"$f":"'Schedule XXA'!D22","v":0},{"$f":"'Schedule XXA'!F22","v":0},{"$f":"'Schedule XXA'!H22","v":0},{"$f":"'Schedule XXA'!J22","v":0},{"$f":"'Schedule XXA'!L22","v":0},{"$f":"'Schedule XXA'!N22","v":0},0,{"$f":"IF((SUM(C24:G24))>(H24+I24),0%,25%)","v":0.25},null,{"$f":"'Schedule XXA'!V22","v":0},{"$f":"'Schedule XXA'!X22","v":0},{"$f":"'Schedule XXA'!Z22","v":0},{"$f":"'Schedule XXA'!AB22","v":0},{"$f":"'Schedule XXA'!AD22","v":0},{"$f":"'Schedule XXA'!AF22","v":0},{"$f":"IF('Schedule XXA'!AH22=0,Q24,'Schedule XXA'!AH22)","v":0},null,0,0,0,null,0,0]
[null,{"$f":"'Schedule XXA'!B23","v":"Other currency 1"},{"$f":"'Schedule XXA'!D23","v":0},{"$f":"'Schedule XXA'!F23","v":0},{"$f":"'Schedule XXA'!H23","v":0},{"$f":"'Schedule XXA'!J23","v":0},{"$f":"'Schedule XXA'!L23","v":0},{"$f":"'Schedule XXA'!N23","v":0},0,{"$f":"IF((SUM(C25:G25))>(H25+I25),0%,25%)","v":0.25},null,{"$f":"'Schedule XXA'!V23","v":0},{"$f":"'Schedule XXA'!X23","v":0},{"$f":"'Schedule XXA'!Z23","v":0},{"$f":"'Schedule XXA'!AB23","v":0},{"$f":"'Schedule XXA'!AD23","v":0},{"$f":"'Schedule XXA'!AF23","v":0},{"$f":"IF('Schedule XXA'!AH23=0,Q25,'Schedule XXA'!AH23)","v":0},null,0,0,0,null,0,0]
[null,{"$f":"'Schedule XXA'!B24","v":"Other currency 2"},{"$f":"'Schedule XXA'!D24","v":0},{"$f":"'Schedule XXA'!F24","v":0},{"$f":"'Schedule XXA'!H24","v":0},{"$f":"'Schedule XXA'!J24","v":0},{"$f":"'Schedule XXA'!L24","v":0},{"$f":"'Schedule XXA'!N24","v":0},0,0.25,null,{"$f":"'Schedule XXA'!V24","v":0},{"$f":"'Schedule XXA'!X24","v":0},{"$f":"'Schedule XXA'!Z24","v":0},{"$f":"'Schedule XXA'!AB24","v":0},{"$f":"'Schedule XXA'!AD24","v":0},{"$f":"'Schedule XXA'!AF24","v":0},{"$f":"IF('Schedule XXA'!AH24=0,Q26,'Schedule XXA'!AH24)","v":0},null,0,0,0,null,0,0]
[null,{"$f":"'Schedule XXA'!B25","v":"Other currency 3"},{"$f":"'Schedule XXA'!D25","v":0},{"$f":"'Schedule XXA'!F25","v":0},{"$f":"'Schedule XXA'!H25","v":0},{"$f":"'Schedule XXA'!J25","v":0},{"$f":"'Schedule XXA'!L25","v":0},{"$f":"'Schedule XXA'!N25","v":0},0,0.25,null,{"$f":"'Schedule XXA'!V25","v":0},{"$f":"'Schedule XXA'!X25","v":0},{"$f":"'Schedule XXA'!Z25","v":0},{"$f":"'Schedule XXA'!AB25","v":0},{"$f":"'Schedule XXA'!AD25","v":0},{"$f":"'Schedule XXA'!AF25","v":0},{"$f":"IF('Schedule XXA'!AH25=0,Q27,'Schedule XXA'!AH25)","v":0},null,0,0,0,null,0,0]
[null,{"$f":"'Schedule XXA'!B26","v":"Other currency 4"},{"$f":"'Schedule XXA'!D26","v":0},{"$f":"'Schedule XXA'!F26","v":0},{"$f":"'Schedule XXA'!H26","v":0},{"$f":"'Schedule XXA'!J26","v":0},{"$f":"'Schedule XXA'!L26","v":0},{"$f":"'Schedule XXA'!N26","v":0},0,0.25,null,{"$f":"'Schedule XXA'!V26","v":0},{"$f":"'Schedule XXA'!X26","v":0},{"$f":"'Schedule XXA'!Z26","v":0},{"$f":"'Schedule XXA'!AB26","v":0},{"$f":"'Schedule XXA'!AD26","v":0},{"$f":"'Schedule XXA'!AF26","v":0},{"$f":"IF('Schedule XXA'!AH26=0,Q28,'Schedule XXA'!AH26)","v":0},null,0,0,0,null,0,0]
[null,{"$f":"'Schedule XXA'!B27","v":"Other currency 5"},{"$f":"'Schedule XXA'!D27","v":0},{"$f":"'Schedule XXA'!F27","v":0},{"$f":"'Schedule XXA'!H27","v":0},{"$f":"'Schedule XXA'!J27","v":0},{"$f":"'Schedule XXA'!L27","v":0},{"$f":"'Schedule XXA'!N27","v":0},0,0.25,null,{"$f":"'Schedule XXA'!V27","v":0},{"$f":"'Schedule XXA'!X27","v":0},{"$f":"'Schedule XXA'!Z27","v":0},{"$f":"'Schedule XXA'!AB27","v":0},{"$f":"'Schedule XXA'!AD27","v":0},{"$f":"'Schedule XXA'!AF27","v":0},{"$f":"IF('Schedule XXA'!AH27=0,Q29,'Schedule XXA'!AH27)","v":0},null,0,0,0,null,0,0]
[null,{"$f":"'Schedule XXA'!B28","v":"Other currency 6"},{"$f":"'Schedule XXA'!D28","v":0},{"$f":"'Schedule XXA'!F28","v":0},{"$f":"'Schedule XXA'!H28","v":0},{"$f":"'Schedule XXA'!J28","v":0},{"$f":"'Schedule XXA'!L28","v":0},{"$f":"'Schedule XXA'!N28","v":0},0,0.25,null,{"$f":"'Schedule XXA'!V28","v":0},{"$f":"'Schedule XXA'!X28","v":0},{"$f":"'Schedule XXA'!Z28","v":0},{"$f":"'Schedule XXA'!AB28","v":0},{"$f":"'Schedule XXA'!AD28","v":0},{"$f":"'Schedule XXA'!AF28","v":0},{"$f":"IF('Schedule XXA'!AH28=0,Q30,'Schedule XXA'!AH28)","v":0},null,0,0,0,null,0,0]
[null,{"$f":"'Schedule XXA'!B29","v":"Other currency 7"},{"$f":"'Schedule XXA'!D29","v":0},{"$f":"'Schedule XXA'!F29","v":0},{"$f":"'Schedule XXA'!H29","v":0},{"$f":"'Schedule XXA'!J29","v":0},{"$f":"'Schedule XXA'!L29","v":0},{"$f":"'Schedule XXA'!N29","v":0},0,0.25,null,{"$f":"'Schedule XXA'!V29","v":0},{"$f":"'Schedule XXA'!X29","v":0},{"$f":"'Schedule XXA'!Z29","v":0},{"$f":"'Schedule XXA'!AB29","v":0},{"$f":"'Schedule XXA'!AD29","v":0},{"$f":"'Schedule XXA'!AF29","v":0},{"$f":"IF('Schedule XXA'!AH29=0,Q31,'Schedule XXA'!AH29)","v":0},null,0,0,0,null,0,0]
[null,{"$f":"'Schedule XXA'!B30","v":"Other currency 8"},{"$f":"'Schedule XXA'!D30","v":0},{"$f":"'Schedule XXA'!F30","v":0},{"$f":"'Schedule XXA'!H30","v":0},{"$f":"'Schedule XXA'!J30","v":0},{"$f":"'Schedule XXA'!L30","v":0},{"$f":"'Schedule XXA'!N30","v":0},0,0.25,null,{"$f":"'Schedule XXA'!V30","v":0},{"$f":"'Schedule XXA'!X30","v":0},{"$f":"'Schedule XXA'!Z30","v":0},{"$f":"'Schedule XXA'!AB30","v":0},{"$f":"'Schedule XXA'!AD30","v":0},{"$f":"'Schedule XXA'!AF30","v":0},{"$f":"IF('Schedule XXA'!AH30=0,Q32,'Schedule XXA'!AH30)","v":0},null,0,0,0,null,0,0]
[null,{"$f":"'Schedule XXA'!B31","v":"Other currency 9"},{"$f":"'Schedule XXA'!D31","v":0},{"$f":"'Schedule XXA'!F31","v":0},{"$f":"'Schedule XXA'!H31","v":0},{"$f":"'Schedule XXA'!J31","v":0},{"$f":"'Schedule XXA'!L31","v":0},{"$f":"'Schedule XXA'!N31","v":0},0,0.25,null,{"$f":"'Schedule XXA'!V31","v":0},{"$f":"'Schedule XXA'!X31","v":0},{"$f":"'Schedule XXA'!Z31","v":0},{"$f":"'Schedule XXA'!AB31","v":0},{"$f":"'Schedule XXA'!AD31","v":0},{"$f":"'Schedule XXA'!AF31","v":0},{"$f":"IF('Schedule XXA'!AH31=0,Q33,'Schedule XXA'!AH31)","v":0},null,0,0,0,null,0,0]
[null,{"$f":"'Schedule XXA'!B32","v":"Other currency 10"},{"$f":"'Schedule XXA'!D32","v":0},{"$f":"'Schedule XXA'!F32","v":0},{"$f":"'Schedule XXA'!H32","v":0},{"$f":"'Schedule XXA'!J32","v":0},{"$f":"'Schedule XXA'!L32","v":0},{"$f":"'Schedule XXA'!N32","v":0},0,0.25,null,{"$f":"'Schedule XXA'!V32","v":0},{"$f":"'Schedule XXA'!X32","v":0},{"$f":"'Schedule XXA'!Z32","v":0},{"$f":"'Schedule XXA'!AB32","v":0},{"$f":"'Schedule XXA'!AD32","v":0},{"$f":"'Schedule XXA'!AF32","v":0},{"$f":"IF('Schedule XXA'!AH32=0,Q34,'Schedule XXA'!AH32)","v":0},null,0,0,0,null,0,0]
[null,"Total Identified",{"$f":"SUM(C12:C34)","v":0},0,0,0,0,0,null,null,null,{"$f":"SUM(L12:L34)","v":0},0,0,0,0,0,0,null,{"$f":"SUM(T12:T34)","v":0},0,0,null,{"$f":"SUM(X12:X34)","v":0},{"$f":"SUM(Y12:Y34)","v":0}]
[null,"Total",{"$f":"'Schedule XXA'!D36","v":0},null,null,null,null,{"$f":"'Schedule XXA'!N36","v":0}]
[null,"% Identified",{"$f":"IF(C35=0,0,(C35+E35)/C36)","v":0},null,null,null,null,{"$f":"IF(H35=0,0,H35/H36)","v":0}]
[]
[null,"TOTAL CURRENCY RISK",null,null,null,null,null,null,null,null,null,null,null,null,null,null,null,null,null,null,null,null,null,{"$f":"IF(SUM(X12:X34)>=0,SUM(X12:X34),0)","v":0},{"$f":"IF(SUM(Y12:Y34)>=0,SUM(Y12:Y34),0)","v":0}]

{"sheet":"Concentration Risk","index":111,"n_rows":111,"n_cols":6,"rows_kept":111,"cut":false,"hidden":false,"merged":[[0,5,0,6]]}
["CONCENTRATION RISK",null,null,null,null,{"$f":"HYPERLINK(\"#'Index'!A1\",\"Return to Index\")","v":"Return to Index"}]
[{"$f":"'Company Information'!C7","v":"Enter Company Name"}]
[{"$f":"\"Concentration Risk\" & \"($\"&IF(CONFIGURATION!$B$12>1,MID(CONFIGURATION!$B$12,2,LEN(CONFIGURATION!$B$12)),\"\")&\")\"","v":"Concentration Risk($000)"},null,{"$f":"'Company Information'!C3","v":"2019-12-31"}]
[null,null,null,-1,-2,-3]
[]
[null,"ASSET ",null,null,"CAPITAL","REQUIRED"]
[null,"TYPE","STATEMENT SOURCE","EXPOSURE","FACTOR","CAPITAL"]
[]
[null,"(a) Cash and Cash Equivalents",null,"Cash and Cash Equivalent"]
[null,"BSCR Rating 0","Schedule XXI, Column H",{"$f":"SUMIFS('Schedule XXI'!$M$8:$M$57,'Schedule XXI'!$J$8:$J$57,$D$9,'Schedule XXI'!$L$8:$L$57,$B10)","v":0},{"$f":"+'Fixed Income Investments'!E83","v":0},{"$f":"MAX(0,(D10*E10))","v":0}]
[null,"BSCR Rating 1","Schedule XXI, Column H",{"$f":"SUMIFS('Schedule XXI'!$M$8:$M$57,'Schedule XXI'!$J$8:$J$57,$D$9,'Schedule XXI'!$L$8:$L$57,$B11)","v":0},{"$f":"+'Fixed Income Investments'!E84","v":1E-3},{"$f":"MAX(0,(D11*E11))","v":0}]
[null,"BSCR Rating 2","Schedule XXI, Column H",{"$f":"SUMIFS('Schedule XXI'!$M$8:$M$57,'Schedule XXI'!$J$8:$J$57,$D$9,'Schedule XXI'!$L$8:$L$57,$B12)","v":0},{"$f":"+'Fixed Income Investments'!E85","v":2E-3},0]
[null,"BSCR Rating 3","Schedule XXI, Column H",{"$f":"SUMIFS('Schedule XXI'!$M$8:$M$57,'Schedule XXI'!$J$8:$J$57,$D$9,'Schedule XXI'!$L$8:$L$57,$B13)","v":0},{"$f":"+'Fixed Income Investments'!E86","v":3.0000000000000001E-3},0]
[null,"BSCR Rating 4","Schedule XXI, Column H",{"$f":"SUMIFS('Schedule XXI'!$M$8:$M$57,'Schedule XXI'!$J$8:$J$57,$D$9,'Schedule XXI'!$L$8:$L$57,$B14)","v":0},{"$f":"+'Fixed Income Investments'!E87","v":5.0000000000000001E-3},0]
[null,"BSCR Rating 5","Schedule XXI, Column H",{"$f":"SUMIFS('Schedule XXI'!$M$8:$M$57,'Schedule XXI'!$J$8:$J$57,$D$9,'Schedule XXI'!$L$8:$L$57,$B15)","v":0},{"$f":"+'Fixed Income Investments'!E88","v":1.4999999999999999E-2},0]
[null,"BSCR Rating 6","Schedule XXI, Column H",{"$f":"SUMIFS('Schedule XXI'!$M$8:$M$57,'Schedule XXI'!$J$8:$J$57,$D$9,'Schedule XXI'!$L$8:$L$57,$B16)","v":0},{"$f":"+'Fixed Income Investments'!E89","v":0.04},0]
[null,"BSCR Rating 7","Schedule XXI, Column H",{"$f":"SUMIFS('Schedule XXI'!$M$8:$M$57,'Schedule XXI'!$J$8:$J$57,$D$9,'Schedule XXI'!$L$8:$L$57,$B17)","v":0},{"$f":"+'Fixed Income Investments'!E90","v":0.06},0]
[null,"BSCR Rating 8","Schedule XXI, Column H",{"$f":"SUMIFS('Schedule XXI'!$M$8:$M$57,'Schedule XXI'!$J$8:$J$57,$D$9,'Schedule XXI'!$L$8:$L$57,$B18)","v":0},{"$f":"+'Fixed Income Investments'!E91","v":0.09},0]
[]
[null,"(a)  SUBTOTAL - CASH AND CASH EQUIVALENTS",null,{"$f":"SUM(D9:D18)","v":0},null,{"$f":"SUM(F9:F18)","v":0}]
[]
[null,"(b) Corporate & Sovereign Bonds",null,"Corporate & Sovereign Bonds"]
[null,"BSCR Rating 0","Schedule XXI, Column H",{"$f":"SUMIFS('Schedule XXI'!$M$8:$M$57,'Schedule XXI'!$K$8:$K$57,$D$22,'Schedule XXI'!$L$8:$L$57,$B23)","v":0},{"$f":"+'Fixed Income Investments'!E12","v":0},{"$f":"MAX(0,(D23*E23))","v":0}]
[null,"BSCR Rating 1","Schedule XXI, Column H",{"$f":"SUMIFS('Schedule XXI'!$M$8:$M$57,'Schedule XXI'!$K$8:$K$57,$D$22,'Schedule XXI'!$L$8:$L$57,$B24)","v":0},{"$f":"+'Fixed Income Investments'!E13","v":4.0000000000000001E-3},{"$f":"MAX(0,(D24*E24))","v":0}]
[null,"BSCR Rating 2","Schedule XXI, Column H",{"$f":"SUMIFS('Schedule XXI'!$M$8:$M$57,'Schedule XXI'!$K$8:$K$57,$D$22,'Schedule XXI'!$L$8:$L$57,$B25)","v":0},{"$f":"+'Fixed Income Investments'!E14","v":8.0000000000000002E-3},0]
[null,"BSCR Rating 3","Schedule XXI, Column H",{"$f":"SUMIFS('Schedule XXI'!$M$8:$M$57,'Schedule XXI'!$K$8:$K$57,$D$22,'Schedule XXI'!$L$8:$L$57,$B26)","v":0},{"$f":"+'Fixed Income Investments'!E15","v":1.4999999999999999E-2},0]
[null,"BSCR Rating 4","Schedule XXI, Column H",{"$f":"SUMIFS('Schedule XXI'!$M$8:$M$57,'Schedule XXI'!$K$8:$K$57,$D$22,'Schedule XXI'!$L$8:$L$57,$B27)","v":0},{"$f":"+'Fixed Income Investments'!E16","v":0.03},0]
[null,"BSCR Rating 5","Schedule XXI, Column H",{"$f":"SUMIFS('Schedule XXI'!$M$8:$M$57,'Schedule XXI'!$K$8:$K$57,$D$22,'Schedule XXI'!$L$8:$L$57,$B28)","v":0},{"$f":"+'Fixed Income Investments'!E17","v":0.08},0]
[null,"BSCR Rating 6","Schedule XXI, Column H",{"$f":"SUMIFS('Schedule XXI'!$M$8:$M$57,'Schedule XXI'!$K$8:$K$57,$D$22,'Schedule XXI'!$L$8:$L$57,$B29)","v":0},{"$f":"+'Fixed Income Investments'!E18","v":0.15},0]
[null,"BSCR Rating 7","Schedule XXI, Column H",{"$f":"SUMIFS('Schedule XXI'!$M$8:$M$57,'Schedule XXI'!$K$8:$K$57,$D$22,'Schedule XXI'!$L$8:$L$57,$B30)","v":0},{"$f":"+'Fixed Income Investments'!E19","v":0.26300000000000001},0]
[null,"BSCR Rating 8","Schedule XXI, Column H",{"$f":"SUMIFS('Schedule XXI'!$M$8:$M$57,'Schedule XXI'!$K$8:$K$57,$D$22,'Schedule XXI'!$L$8:$L$57,$B31)","v":0},{"$f":"+'Fixed Income Investments'!E20","v":0.35},0]
[]
[null,"(b)  SUBTOTAL - CORPORATE & SOVEREIGN BONDS",null,{"$f":"SUM(D22:D31)","v":0},null,{"$f":"SUM(F22:F31)","v":0}]
[]
[null,"(c) Residential Mortage-Backed Securities",null,"Residential Mortgage-Backed Securities"]
[null,"BSCR Rating 0","Schedule XXI, Column H",{"$f":"SUMIFS('Schedule XXI'!$M$8:$M$57,'Schedule XXI'!$K$8:$K$57,$D$35,'Schedule XXI'!$L$8:$L$57,$B36)","v":0},0,{"$f":"MAX(0,(D36*E36))","v":0}]
[null,"BSCR Rating 1","Schedule XXI, Column H",{"$f":"SUMIFS('Schedule XXI'!$M$8:$M$57,'Schedule XXI'!$K$8:$K$57,$D$35,'Schedule XXI'!$L$8:$L$57,$B37)","v":0},{"$f":"+'Fixed Income Investments'!E27","v":6.0000000000000001E-3},{"$f":"MAX(0,(D37*E37))","v":0}]
[null,"BSCR Rating 2","Schedule XXI, Column H",{"$f":"SUMIFS('Schedule XXI'!$M$8:$M$57,'Schedule XXI'!$K$8:$K$57,$D$35,'Schedule XXI'!$L$8:$L$57,$B38)","v":0},{"$f":"+'Fixed Income Investments'!E28","v":1.2E-2},0]
[null,"BSCR Rating 3","Schedule XXI, Column H",{"$f":"SUMIFS('Schedule XXI'!$M$8:$M$57,'Schedule XXI'!$K$8:$K$57,$D$35,'Schedule XXI'!$L$8:$L$57,$B39)","v":0},{"$f":"+'Fixed Income Investments'!E29","v":0.02},0]
[null,"BSCR Rating 4","Schedule XXI, Column H",{"$f":"SUMIFS('Schedule XXI'!$M$8:$M$57,'Schedule XXI'!$K$8:$K$57,$D$35,'Schedule XXI'!$L$8:$L$57,$B40)","v":0},{"$f":"+'Fixed Income Investments'!E30","v":0.04},0]
[null,"BSCR Rating 5","Schedule XXI, Column H",{"$f":"SUMIFS('Schedule XXI'!$M$8:$M$57,'Schedule XXI'!$K$8:$K$57,$D$35,'Schedule XXI'!$L$8:$L$57,$B41)","v":0},{"$f":"+'Fixed Income Investments'!E31","v":0.11},0]
[null,"BSCR Rating 6","Schedule XXI, Column H",{"$f":"SUMIFS('Schedule XXI'!$M$8:$M$57,'Schedule XXI'!$K$8:$K$57,$D$35,'Schedule XXI'!$L$8:$L$57,$B42)","v":0},{"$f":"+'Fixed Income Investments'!E32","v":0.25},0]
[null,"BSCR Rating 7","Schedule XXI, Column H",{"$f":"SUMIFS('Schedule XXI'!$M$8:$M$57,'Schedule XXI'!$K$8:$K$57,$D$35,'Schedule XXI'!$L$8:$L$57,$B43)","v":0},{"$f":"+'Fixed Income Investments'!E33","v":0.35},0]
[null,"BSCR Rating 8","Schedule XXI, Column H",{"$f":"SUMIFS('Schedule XXI'!$M$8:$M$57,'Schedule XXI'!$K$8:$K$57,$D$35,'Schedule XXI'!$L$8:$L$57,$B44)","v":0},{"$f":"+'Fixed Income Investments'!E34","v":0.35},0]
[]
[null,"(c)  SUBTOTAL - RESIDENTIAL MORTGAGE-BACKED SECURITIES",null,{"$f":"SUM(D35:D44)","v":0},null,{"$f":"SUM(F35:F44)","v":0}]
[]
[null,"(d) Commercial Mortgage-Backed Securities / Asset Backed Securities",null,"Commercial Mortgage-Backed Securities"]
[null,"BSCR Rating 0","Schedule XXI, Column H",{"$f":"SUMIFS('Schedule XXI'!$M$8:$M$57,'Schedule XXI'!$K$8:$K$57,$D$48,'Schedule XXI'!$L$8:$L$57,$B49)","v":0},0,{"$f":"MAX(0,(D49*E49))","v":0}]
[null,"BSCR Rating 1","Schedule XXI, Column H",{"$f":"SUMIFS('Schedule XXI'!$M$8:$M$57,'Schedule XXI'!$K$8:$K$57,$D$48,'Schedule XXI'!$L$8:$L$57,$B50)","v":0},{"$f":"+'Fixed Income Investments'!E41","v":5.0000000000000001E-3},{"$f":"MAX(0,(D50*E50))","v":0}]
[null,"BSCR Rating 2","Schedule XXI, Column H",{"$f":"SUMIFS('Schedule XXI'!$M$8:$M$57,'Schedule XXI'!$K$8:$K$57,$D$48,'Schedule XXI'!$L$8:$L$57,$B51)","v":0},{"$f":"+'Fixed Income Investments'!E42","v":0.01},0]
[null,"BSCR Rating 3","Schedule XXI, Column H",{"$f":"SUMIFS('Schedule XXI'!$M$8:$M$57,'Schedule XXI'!$K$8:$K$57,$D$48,'Schedule XXI'!$L$8:$L$57,$B52)","v":0},{"$f":"+'Fixed Income Investments'!E43","v":1.7999999999999999E-2},0]
[null,"BSCR Rating 4","Schedule XXI, Column H",{"$f":"SUMIFS('Schedule XXI'!$M$8:$M$57,'Schedule XXI'!$K$8:$K$57,$D$48,'Schedule XXI'!$L$8:$L$57,$B53)","v":0},{"$f":"+'Fixed Income Investments'!E44","v":3.5000000000000003E-2},0]
[null,"BSCR Rating 5","Schedule XXI, Column H",{"$f":"SUMIFS('Schedule XXI'!$M$8:$M$57,'Schedule XXI'!$K$8:$K$57,$D$48,'Schedule XXI'!$L$8:$L$57,$B54)","v":0},{"$f":"+'Fixed Income Investments'!E45","v":0.1},0]
[null,"BSCR Rating 6","Schedule XXI, Column H",{"$f":"SUMIFS('Schedule XXI'!$M$8:$M$57,'Schedule XXI'!$K$8:$K$57,$D$48,'Schedule XXI'!$L$8:$L$57,$B55)","v":0},{"$f":"+'Fixed Income Investments'!E46","v":0.2},0]
[null,"BSCR Rating 7","Schedule XXI, Column H",{"$f":"SUMIFS('Schedule XXI'!$M$8:$M$57,'Schedule XXI'!$K$8:$K$57,$D$48,'Schedule XXI'!$L$8:$L$57,$B56)","v":0},{"$f":"+'Fixed Income Investments'!E47","v":0.3},0]
[null,"BSCR Rating 8","Schedule XXI, Column H",{"$f":"SUMIFS('Schedule XXI'!$M$8:$M$57,'Schedule XXI'!$K$8:$K$57,$D$48,'Schedule XXI'!$L$8:$L$57,$B57)","v":0},{"$f":"+'Fixed Income Investments'!E48","v":0.35},0]
[]
[null,"(d)  SUBTOTAL - COMMERCIAL MORTGAGE-BACKED SECURITIES / ASSET-BACKED SECURITIES",null,{"$f":"SUM(D48:D57)","v":0},null,{"$f":"SUM(F48:F57)","v":0}]
[]
[null,"(e) Bond Mutual Funds",null,"Bond Mutual Funds"]
[null,"BSCR Rating 0","Schedule XXI, Column H",{"$f":"SUMIFS('Schedule XXI'!$M$8:$M$57,'Schedule XXI'!$K$8:$K$57,$D$61,'Schedule XXI'!$L$8:$L$57,$B62)","v":0},{"$f":"+'Fixed Income Investments'!E56","v":0},{"$f":"MAX(0,(D62*E62))","v":0}]
[null,"BSCR Rating 1","Schedule XXI, Column H",{"$f":"SUMIFS('Schedule XXI'!$M$8:$M$57,'Schedule XXI'!$K$8:$K$57,$D$61,'Schedule XXI'!$L$8:$L$57,$B63)","v":0},{"$f":"+'Fixed Income Investments'!E57","v":4.0000000000000001E-3},{"$f":"MAX(0,(D63*E63))","v":0}]
[null,"BSCR Rating 2","Schedule XXI, Column H",{"$f":"SUMIFS('Schedule XXI'!$M$8:$M$57,'Schedule XXI'!$K$8:$K$57,$D$61,'Schedule XXI'!$L$8:$L$57,$B64)","v":0},{"$f":"+'Fixed Income Investments'!E58","v":8.0000000000000002E-3},0]
[null,"BSCR Rating 3","Schedule XXI, Column H",{"$f":"SUMIFS('Schedule XXI'!$M$8:$M$57,'Schedule XXI'!$K$8:$K$57,$D$61,'Schedule XXI'!$L$8:$L$57,$B65)","v":0},{"$f":"+'Fixed Income Investments'!E59","v":1.4999999999999999E-2},0]
[null,"BSCR Rating 4","Schedule XXI, Column H",{"$f":"SUMIFS('Schedule XXI'!$M$8:$M$57,'Schedule XXI'!$K$8:$K$57,$D$61,'Schedule XXI'!$L$8:$L$57,$B66)","v":0},{"$f":"+'Fixed Income Investments'!E60","v":0.03},0]
[null,"BSCR Rating 5","Schedule XXI, Column H",{"$f":"SUMIFS('Schedule XXI'!$M$8:$M$57,'Schedule XXI'!$K$8:$K$57,$D$61,'Schedule XXI'!$L$8:$L$57,$B67)","v":0},{"$f":"+'Fixed Income Investments'!E61","v":0.08},0]
[null,"BSCR Rating 6","Schedule XXI, Column H",{"$f":"SUMIFS('Schedule XXI'!$M$8:$M$57,'Schedule XXI'!$K$8:$K$57,$D$61,'Schedule XXI'!$L$8:$L$57,$B68)","v":0},{"$f":"+'Fixed Income Investments'!E62","v":0.15},0]
[null,"BSCR Rating 7","Schedule XXI, Column H",{"$f":"SUMIFS('Schedule XXI'!$M$8:$M$57,'Schedule XXI'!$K$8:$K$57,$D$61,'Schedule XXI'!$L$8:$L$57,$B69)","v":0},{"$f":"+'Fixed Income Investments'!E63","v":0.26300000000000001},0]
[null,"BSCR Rating 8","Schedule XXI, Column H",{"$f":"SUMIFS('Schedule XXI'!$M$8:$M$57,'Schedule XXI'!$K$8:$K$57,$D$61,'Schedule XXI'!$L$8:$L$57,$B70)","v":0},{"$f":"+'Fixed Income Investments'!E64","v":0.35},0]
[]
[null,"(e)  SUBTOTAL - BOND MUTUAL FUNDS",null,{"$f":"SUM(D61:D70)","v":0},null,{"$f":"SUM(F61:F70)","v":0}]
[]
[null,"(f) Preferred Shares",null,"Preferred Shares"]
[null,"BSCR Rating 0","Schedule XXI, Column H",{"$f":"SUMIFS('Schedule XXI'!$M$8:$M$57,'Schedule XXI'!$J$8:$J$57,$D$74,'Schedule XXI'!$L$8:$L$57,$B75)","v":0},0,{"$f":"MAX(0,(D75*E75))","v":0}]
[null,"BSCR Rating 1","Schedule XXI, Column H",{"$f":"SUMIFS('Schedule XXI'!$M$8:$M$57,'Schedule XXI'!$J$8:$J$57,$D$74,'Schedule XXI'!$L$8:$L$57,$B76)","v":0},6.0000000000000001E-3,{"$f":"MAX(0,(D76*E76))","v":0}]
[null,"BSCR Rating 2","Schedule XXI, Column H",{"$f":"SUMIFS('Schedule XXI'!$M$8:$M$57,'Schedule XXI'!$J$8:$J$57,$D$74,'Schedule XXI'!$L$8:$L$57,$B77)","v":0},1.2E-2,0]
[null,"BSCR Rating 3","Schedule XXI, Column H",{"$f":"SUMIFS('Schedule XXI'!$M$8:$M$57,'Schedule XXI'!$J$8:$J$57,$D$74,'Schedule XXI'!$L$8:$L$57,$B78)","v":0},0.02,0]
[null,"BSCR Rating 4","Schedule XXI, Column H",{"$f":"SUMIFS('Schedule XXI'!$M$8:$M$57,'Schedule XXI'!$J$8:$J$57,$D$74,'Schedule XXI'!$L$8:$L$57,$B79)","v":0},0.04,0]
[null,"BSCR Rating 5","Schedule XXI, Column H",{"$f":"SUMIFS('Schedule XXI'!$M$8:$M$57,'Schedule XXI'!$J$8:$J$57,$D$74,'Schedule XXI'!$L$8:$L$57,$B80)","v":0},0.11,0]
[null,"BSCR Rating 6","Schedule XXI, Column H",{"$f":"SUMIFS('Schedule XXI'!$M$8:$M$57,'Schedule XXI'!$J$8:$J$57,$D$74,'Schedule XXI'!$L$8:$L$57,$B81)","v":0},0.25,0]
[null,"BSCR Rating 7","Schedule XXI, Column H",{"$f":"SUMIFS('Schedule XXI'!$M$8:$M$57,'Schedule XXI'!$J$8:$J$57,$D$74,'Schedule XXI'!$L$8:$L$57,$B82)","v":0},0.35,0]
[null,"BSCR Rating 8","Schedule XXI, Column H",{"$f":"SUMIFS('Schedule XXI'!$M$8:$M$57,'Schedule XXI'!$J$8:$J$57,$D$74,'Schedule XXI'!$L$8:$L$57,$B83)","v":0},0.35,0]
[]
[null,"(f)  SUBTOTAL - PREFERRED SHARES",null,{"$f":"SUM(D74:D83)","v":0},null,{"$f":"SUM(F74:F83)","v":0}]
[]
[null,"(g) Mortgage Loans",null,{"$f":"+'Schedule XXI'!C65","v":"MortgageLoanTypes"}]
[null,"Insured/Guaranteed Mortgages","Schedule XXI, Column H",{"$f":"SUMIFS('Schedule XXI'!$M$8:$M$57,'Schedule XXI'!$J$8:$J$57,$D$87,'Schedule XXI'!$K$8:$K$57,$B88)","v":0},{"$f":"'Fixed Income Investments'!E70","v":3.0000000000000001E-3},{"$f":"MAX(0,(D88*E88))","v":0}]
[null,"Other Commercial and Farm Mortgages","Schedule XXI, Column H",{"$f":"SUMIFS('Schedule XXI'!$M$8:$M$57,'Schedule XXI'!$J$8:$J$57,$D$87,'Schedule XXI'!$K$8:$K$57,$B89)","v":0},{"$f":"'Fixed Income Investments'!E71","v":0.05},{"$f":"MAX(0,(D89*E89))","v":0}]
[null,"Other Residential Mortgages","Schedule XXI, Column H",{"$f":"SUMIFS('Schedule XXI'!$M$8:$M$57,'Schedule XXI'!$J$8:$J$57,$D$87,'Schedule XXI'!$K$8:$K$57,$B90)","v":0},{"$f":"'Fixed Income Investments'!E72","v":1.4999999999999999E-2},{"$f":"MAX(0,(D90*E90))","v":0}]
[null,"Mortgages Not In Good Standing","Schedule XXI, Column H",{"$f":"SUMIFS('Schedule XXI'!$M$8:$M$57,'Schedule XXI'!$J$8:$J$57,$D$87,'Schedule XXI'!$K$8:$K$57,$B91)","v":0},{"$f":"'Fixed Income Investments'!E73","v":0.25},{"$f":"MAX(0,(D91*E91))","v":0}]
[]
[null,"(g)  SUBTOTAL - Mortgage Loans",null,{"$f":"SUM(D88:D91)","v":0},null,{"$f":"SUM(F88:F91)","v":0}]
[]
[null,"(h) Other Asset Classes"]
[null,"Common Stock and Mutual Funds","Schedule XXI, Column H",{"$f":"SUMIFS('Schedule XXI'!$M$8:$M$57,'Schedule XXI'!$J$8:$J$57,$B96)","v":0},0.14399999999999999,{"$f":"MAX(0,(D96*E96))","v":0}]
[null,"Other Investments","Schedule XXI, Column H",{"$f":"SUMIFS('Schedule XXI'!$M$8:$M$57,'Schedule XXI'!$J$8:$J$57,$B97)","v":0},0.2,{"$f":"MAX(0,(D97*E97))","v":0}]
[null,"Investment in Affiliates – Unregulated entities that conduct ancillary services",null,{"$f":"SUMIFS('Schedule XXI'!$M$8:$M$57,'Schedule XXI'!$J$8:$J$57,$B98)","v":0},0.05,0]
[null,"Investment in Affiliates - Unregulated non-financial operating entities",null,{"$f":"SUMIFS('Schedule XXI'!$M$8:$M$57,'Schedule XXI'!$J$8:$J$57,$B99)","v":0},0.2,0]
[null,"Investment in Affiliates - Unregulated financial operating entities",null,{"$f":"SUMIFS('Schedule XXI'!$M$8:$M$57,'Schedule XXI'!$J$8:$J$57,$B100)","v":0},0.55000000000000004,0]
[null,"Investment in Affiliates - Regulated non-insurance financial operating entities",null,{"$f":"SUMIFS('Schedule XXI'!$M$8:$M$57,'Schedule XXI'!$J$8:$J$57,$B101)","v":0},0.55000000000000004,0]
[null,"Investment in Affiliates - Regulated insurance financial operating entities",null,{"$f":"SUMIFS('Schedule XXI'!$M$8:$M$57,'Schedule XXI'!$J$8:$J$57,$B102)","v":0},0.2,0]
[null,"Advances to Affiliates - ","Schedule XXI, Column H",{"$f":"SUMIFS('Schedule XXI'!$M$8:$M$57,'Schedule XXI'!$J$8:$J$57,$B103)","v":0},0.05,0]
[null,"Policy Loans","Schedule XXI, Column H",{"$f":"SUMIFS('Schedule XXI'!$M$8:$M$57,'Schedule XXI'!$J$8:$J$57,$B104)","v":0},0,0]
[null,"Real Estate: Occupied by company","Schedule XXI, Column H",{"$f":"SUMIFS('Schedule XXI'!$M$8:$M$57,'Schedule XXI'!$J$8:$J$57,$B105)","v":0},0.1,0]
[null,"Real Estate: Other properties","Schedule XXI, Column H",{"$f":"SUMIFS('Schedule XXI'!$M$8:$M$57,'Schedule XXI'!$J$8:$J$57,$B106)","v":0},0.2,0]
[null,"Collateral Loans","Schedule XXI, Column H",{"$f":"SUMIFS('Schedule XXI'!$M$8:$M$57,'Schedule XXI'!$J$8:$J$57,$B107)","v":0},0.05,0]
[]
[null,"(h)  SUBTOTAL - OTHER ASSET CLASSES",null,{"$f":"SUM(D96:D108)","v":0},null,{"$f":"SUM(F96:F108)","v":0}]
[]
[null,"TOTAL CONCENTRATION RISK",null,{"$f":"D109+D93+D85+D72+D59+D46+D33+D20","v":0},null,{"$f":"F109+F93+F85+F72+F59+F46+F33+F20","v":0}]

{"sheet":"Concentration Risk (Revised)","index":112,"n_rows":110,"n_cols":6,"rows_kept":110,"cut":false,"hidden":false,"merged":[[0,5,0,6]]}
["CONCENTRATION RISK (REVISED)",null,null,null,null,{"$f":"HYPERLINK(\"#'Index'!A1\",\"Return to Index\")","v":"Return to Index"}]
[{"$f":"'Company Information'!C7","v":"Enter Company Name"}]
[{"$f":"\"Concentration Risk\" & \"($\"&IF(CONFIGURATION!$B$12>1,MID(CONFIGURATION!$B$12,2,LEN(CONFIGURATION!$B$12)),\"\")&\")\"","v":"Concentration Risk($000)"},null,{"$f":"'Company Information'!C3","v":"2019-12-31"}]
[null,null,null,-1,-2,-3]
[]
[null,"ASSET ",null,null,"CAPITAL","REQUIRED"]
[null,"TYPE","STATEMENT SOURCE","EXPOSURE","FACTOR","CAPITAL"]
[]
[null,"(a) Cash and Cash Equivalents",null,"Cash and Cash Equivalent"]
[null,"BSCR Rating 0","Schedule XXIA, Column H",{"$f":"SUMIFS('Schedule XXIA'!$M$8:$M$57,'Schedule XXIA'!$J$8:$J$57,$D$9,'Schedule XXIA'!$L$8:$L$57,$B10)","v":0},{"$f":"+'Fixed Income Investments'!E83","v":0},{"$f":"MAX(0,(D10*E10))","v":0}]
[null,"BSCR Rating 1","Schedule XXIA, Column H",{"$f":"SUMIFS('Schedule XXIA'!$M$8:$M$57,'Schedule XXIA'!$J$8:$J$57,$D$9,'Schedule XXIA'!$L$8:$L$57,$B11)","v":0},{"$f":"+'Fixed Income Investments'!E84","v":1E-3},{"$f":"MAX(0,(D11*E11))","v":0}]
[null,"BSCR Rating 2","Schedule XXIA, Column H",{"$f":"SUMIFS('Schedule XXIA'!$M$8:$M$57,'Schedule XXIA'!$J$8:$J$57,$D$9,'Schedule XXIA'!$L$8:$L$57,$B12)","v":0},{"$f":"+'Fixed Income Investments'!E85","v":2E-3},0]
[null,"BSCR Rating 3","Schedule XXIA, Column H",{"$f":"SUMIFS('Schedule XXIA'!$M$8:$M$57,'Schedule XXIA'!$J$8:$J$57,$D$9,'Schedule XXIA'!$L$8:$L$57,$B13)","v":0},{"$f":"+'Fixed Income Investments'!E86","v":3.0000000000000001E-3},0]
[null,"BSCR Rating 4","Schedule XXIA, Column H",{"$f":"SUMIFS('Schedule XXIA'!$M$8:$M$57,'Schedule XXIA'!$J$8:$J$57,$D$9,'Schedule XXIA'!$L$8:$L$57,$B14)","v":0},{"$f":"+'Fixed Income Investments'!E87","v":5.0000000000000001E-3},0]
[null,"BSCR Rating 5","Schedule XXIA, Column H",{"$f":"SUMIFS('Schedule XXIA'!$M$8:$M$57,'Schedule XXIA'!$J$8:$J$57,$D$9,'Schedule XXIA'!$L$8:$L$57,$B15)","v":0},{"$f":"+'Fixed Income Investments'!E88","v":1.4999999999999999E-2},0]
[null,"BSCR Rating 6","Schedule XXIA, Column H",{"$f":"SUMIFS('Schedule XXIA'!$M$8:$M$57,'Schedule XXIA'!$J$8:$J$57,$D$9,'Schedule XXIA'!$L$8:$L$57,$B16)","v":0},{"$f":"+'Fixed Income Investments'!E89","v":0.04},0]
[null,"BSCR Rating 7","Schedule XXIA, Column H",{"$f":"SUMIFS('Schedule XXIA'!$M$8:$M$57,'Schedule XXIA'!$J$8:$J$57,$D$9,'Schedule XXIA'!$L$8:$L$57,$B17)","v":0},{"$f":"+'Fixed Income Investments'!E90","v":0.06},0]
[null,"BSCR Rating 8","Schedule XXIA, Column H",{"$f":"SUMIFS('Schedule XXIA'!$M$8:$M$57,'Schedule XXIA'!$J$8:$J$57,$D$9,'Schedule XXIA'!$L$8:$L$57,$B18)","v":0},{"$f":"+'Fixed Income Investments'!E91","v":0.09},0]
[]
[null,"(a)  SUBTOTAL - CASH AND CASH EQUIVALENTS",null,{"$f":"SUM(D9:D18)","v":0},null,{"$f":"SUM(F9:F18)","v":0}]
[]
[null,"(b) Corporate & Sovereign Bonds",null,"Corporate & Sovereign Bonds"]
[null,"BSCR Rating 0","Schedule XXIA, Column H",{"$f":"SUMIFS('Schedule XXIA'!$M$8:$M$57,'Schedule XXIA'!$K$8:$K$57,$D$22,'Schedule XXIA'!$L$8:$L$57,$B23)","v":0},{"$f":"+'Fixed Income Investments'!E12","v":0},{"$f":"MAX(0,(D23*E23))","v":0}]
[null,"BSCR Rating 1","Schedule XXIA, Column H",{"$f":"SUMIFS('Schedule XXIA'!$M$8:$M$57,'Schedule XXIA'!$K$8:$K$57,$D$22,'Schedule XXIA'!$L$8:$L$57,$B24)","v":0},{"$f":"+'Fixed Income Investments'!E13","v":4.0000000000000001E-3},{"$f":"MAX(0,(D24*E24))","v":0}]
[null,"BSCR Rating 2","Schedule XXIA, Column H",{"$f":"SUMIFS('Schedule XXIA'!$M$8:$M$57,'Schedule XXIA'!$K$8:$K$57,$D$22,'Schedule XXIA'!$L$8:$L$57,$B25)","v":0},{"$f":"+'Fixed Income Investments'!E14","v":8.0000000000000002E-3},0]
[null,"BSCR Rating 3","Schedule XXIA, Column H",{"$f":"SUMIFS('Schedule XXIA'!$M$8:$M$57,'Schedule XXIA'!$K$8:$K$57,$D$22,'Schedule XXIA'!$L$8:$L$57,$B26)","v":0},{"$f":"+'Fixed Income Investments'!E15","v":1.4999999999999999E-2},0]
[null,"BSCR Rating 4","Schedule XXIA, Column H",{"$f":"SUMIFS('Schedule XXIA'!$M$8:$M$57,'Schedule XXIA'!$K$8:$K$57,$D$22,'Schedule XXIA'!$L$8:$L$57,$B27)","v":0},{"$f":"+'Fixed Income Investments'!E16","v":0.03},0]
[null,"BSCR Rating 5","Schedule XXIA, Column H",{"$f":"SUMIFS('Schedule XXIA'!$M$8:$M$57,'Schedule XXIA'!$K$8:$K$57,$D$22,'Schedule XXIA'!$L$8:$L$57,$B28)","v":0},{"$f":"+'Fixed Income Investments'!E17","v":0.08},0]
[null,"BSCR Rating 6","Schedule XXIA, Column H",{"$f":"SUMIFS('Schedule XXIA'!$M$8:$M$57,'Schedule XXIA'!$K$8:$K$57,$D$22,'Schedule XXIA'!$L$8:$L$57,$B29)","v":0},{"$f":"+'Fixed Income Investments'!E18","v":0.15},0]
[null,"BSCR Rating 7","Schedule XXIA, Column H",{"$f":"SUMIFS('Schedule XXIA'!$M$8:$M$57,'Schedule XXIA'!$K$8:$K$57,$D$22,'Schedule XXIA'!$L$8:$L$57,$B30)","v":0},{"$f":"+'Fixed Income Investments'!E19","v":0.26300000000000001},0]
[null,"BSCR Rating 8","Schedule XXIA, Column H",{"$f":"SUMIFS('Schedule XXIA'!$M$8:$M$57,'Schedule XXIA'!$K$8:$K$57,$D$22,'Schedule XXIA'!$L$8:$L$57,$B31)","v":0},{"$f":"+'Fixed Income Investments'!E20","v":0.35},0]
[]
[null,"(b)  SUBTOTAL - CORPORATE & SOVEREIGN BONDS",null,{"$f":"SUM(D22:D31)","v":0},null,{"$f":"SUM(F22:F31)","v":0}]
[]
[null,"(c) Residential Mortage-Backed Securities",null,"Residential Mortgage-Backed Securities"]
[null,"BSCR Rating 0","Schedule XXIA, Column H",{"$f":"SUMIFS('Schedule XXIA'!$M$8:$M$57,'Schedule XXIA'!$K$8:$K$57,$D$35,'Schedule XXIA'!$L$8:$L$57,$B36)","v":0},0,{"$f":"MAX(0,(D36*E36))","v":0}]
[null,"BSCR Rating 1","Schedule XXIA, Column H",{"$f":"SUMIFS('Schedule XXIA'!$M$8:$M$57,'Schedule XXIA'!$K$8:$K$57,$D$35,'Schedule XXIA'!$L$8:$L$57,$B37)","v":0},{"$f":"+'Fixed Income Investments'!E27","v":6.0000000000000001E-3},{"$f":"MAX(0,(D37*E37))","v":0}]
[null,"BSCR Rating 2","Schedule XXIA, Column H",{"$f":"SUMIFS('Schedule XXIA'!$M$8:$M$57,'Schedule XXIA'!$K$8:$K$57,$D$35,'Schedule XXIA'!$L$8:$L$57,$B38)","v":0},{"$f":"+'Fixed Income Investments'!E28","v":1.2E-2},0]
[null,"BSCR Rating 3","Schedule XXIA, Column H",{"$f":"SUMIFS('Schedule XXIA'!$M$8:$M$57,'Schedule XXIA'!$K$8:$K$57,$D$35,'Schedule XXIA'!$L$8:$L$57,$B39)","v":0},{"$f":"+'Fixed Income Investments'!E29","v":0.02},0]
[null,"BSCR Rating 4","Schedule XXIA, Column H",{"$f":"SUMIFS('Schedule XXIA'!$M$8:$M$57,'Schedule XXIA'!$K$8:$K$57,$D$35,'Schedule XXIA'!$L$8:$L$57,$B40)","v":0},{"$f":"+'Fixed Income Investments'!E30","v":0.04},0]
[null,"BSCR Rating 5","Schedule XXIA, Column H",{"$f":"SUMIFS('Schedule XXIA'!$M$8:$M$57,'Schedule XXIA'!$K$8:$K$57,$D$35,'Schedule XXIA'!$L$8:$L$57,$B41)","v":0},{"$f":"+'Fixed Income Investments'!E31","v":0.11},0]
[null,"BSCR Rating 6","Schedule XXIA, Column H",{"$f":"SUMIFS('Schedule XXIA'!$M$8:$M$57,'Schedule XXIA'!$K$8:$K$57,$D$35,'Schedule XXIA'!$L$8:$L$57,$B42)","v":0},{"$f":"+'Fixed Income Investments'!E32","v":0.25},0]
[null,"BSCR Rating 7","Schedule XXIA, Column H",{"$f":"SUMIFS('Schedule XXIA'!$M$8:$M$57,'Schedule XXIA'!$K$8:$K$57,$D$35,'Schedule XXIA'!$L$8:$L$57,$B43)","v":0},{"$f":"+'Fixed Income Investments'!E33","v":0.35},0]
[null,"BSCR Rating 8","Schedule XXIA, Column H",{"$f":"SUMIFS('Schedule XXIA'!$M$8:$M$57,'Schedule XXIA'!$K$8:$K$57,$D$35,'Schedule XXIA'!$L$8:$L$57,$B44)","v":0},{"$f":"+'Fixed Income Investments'!E34","v":0.35},0]
[]
[null,"(c)  SUBTOTAL - RESIDENTIAL MORTGAGE-BACKED SECURITIES",null,{"$f":"SUM(D35:D44)","v":0},null,{"$f":"SUM(F35:F44)","v":0}]
[]
[null,"(d) Commercial Mortgage-Backed Securities / Asset Backed Securities",null,"Commercial Mortgage-Backed Securities"]
[null,"BSCR Rating 0","Schedule XXIA, Column H",{"$f":"SUMIFS('Schedule XXIA'!$M$8:$M$57,'Schedule XXIA'!$K$8:$K$57,$D$48,'Schedule XXIA'!$L$8:$L$57,$B49)","v":0},0,{"$f":"MAX(0,(D49*E49))","v":0}]
[null,"BSCR Rating 1","Schedule XXIA, Column H",{"$f":"SUMIFS('Schedule XXIA'!$M$8:$M$57,'Schedule XXIA'!$K$8:$K$57,$D$48,'Schedule XXIA'!$L$8:$L$57,$B50)","v":0},{"$f":"+'Fixed Income Investments'!E41","v":5.0000000000000001E-3},{"$f":"MAX(0,(D50*E50))","v":0}]
[null,"BSCR Rating 2","Schedule XXIA, Column H",{"$f":"SUMIFS('Schedule XXIA'!$M$8:$M$57,'Schedule XXIA'!$K$8:$K$57,$D$48,'Schedule XXIA'!$L$8:$L$57,$B51)","v":0},{"$f":"+'Fixed Income Investments'!E42","v":0.01},0]
[null,"BSCR Rating 3","Schedule XXIA, Column H",{"$f":"SUMIFS('Schedule XXIA'!$M$8:$M$57,'Schedule XXIA'!$K$8:$K$57,$D$48,'Schedule XXIA'!$L$8:$L$57,$B52)","v":0},{"$f":"+'Fixed Income Investments'!E43","v":1.7999999999999999E-2},0]
[null,"BSCR Rating 4","Schedule XXIA, Column H",{"$f":"SUMIFS('Schedule XXIA'!$M$8:$M$57,'Schedule XXIA'!$K$8:$K$57,$D$48,'Schedule XXIA'!$L$8:$L$57,$B53)","v":0},{"$f":"+'Fixed Income Investments'!E44","v":3.5000000000000003E-2},0]
[null,"BSCR Rating 5","Schedule XXIA, Column H",{"$f":"SUMIFS('Schedule XXIA'!$M$8:$M$57,'Schedule XXIA'!$K$8:$K$57,$D$48,'Schedule XXIA'!$L$8:$L$57,$B54)","v":0},{"$f":"+'Fixed Income Investments'!E45","v":0.1},0]
[null,"BSCR Rating 6","Schedule XXIA, Column H",{"$f":"SUMIFS('Schedule XXIA'!$M$8:$M$57,'Schedule XXIA'!$K$8:$K$57,$D$48,'Schedule XXIA'!$L$8:$L$57,$B55)","v":0},{"$f":"+'Fixed Income Investments'!E46","v":0.2},0]
[null,"BSCR Rating 7","Schedule XXIA, Column H",{"$f":"SUMIFS('Schedule XXIA'!$M$8:$M$57,'Schedule XXIA'!$K$8:$K$57,$D$48,'Schedule XXIA'!$L$8:$L$57,$B56)","v":0},{"$f":"+'Fixed Income Investments'!E47","v":0.3},0]
[null,"BSCR Rating 8","Schedule XXIA, Column H",{"$f":"SUMIFS('Schedule XXIA'!$M$8:$M$57,'Schedule XXIA'!$K$8:$K$57,$D$48,'Schedule XXIA'!$L$8:$L$57,$B57)","v":0},{"$f":"+'Fixed Income Investments'!E48","v":0.35},0]
[]
[null,"(d)  SUBTOTAL - COMMERCIAL MORTGAGE-BACKED SECURITIES / ASSET-BACKED SECURITIES",null,{"$f":"SUM(D48:D57)","v":0},null,{"$f":"SUM(F48:F57)","v":0}]
[]
[null,"(e) Bond Mutual Funds",null,"Bond Mutual Funds"]
[null,"BSCR Rating 0","Schedule XXIA, Column H",{"$f":"SUMIFS('Schedule XXIA'!$M$8:$M$57,'Schedule XXIA'!$K$8:$K$57,$D$61,'Schedule XXIA'!$L$8:$L$57,$B62)","v":0},{"$f":"+'Fixed Income Investments'!E56","v":0},{"$f":"MAX(0,(D62*E62))","v":0}]
[null,"BSCR Rating 1","Schedule XXIA, Column H",{"$f":"SUMIFS('Schedule XXIA'!$M$8:$M$57,'Schedule XXIA'!$K$8:$K$57,$D$61,'Schedule XXIA'!$L$8:$L$57,$B63)","v":0},{"$f":"+'Fixed Income Investments'!E57","v":4.0000000000000001E-3},{"$f":"MAX(0,(D63*E63))","v":0}]
[null,"BSCR Rating 2","Schedule XXIA, Column H",{"$f":"SUMIFS('Schedule XXIA'!$M$8:$M$57,'Schedule XXIA'!$K$8:$K$57,$D$61,'Schedule XXIA'!$L$8:$L$57,$B64)","v":0},{"$f":"+'Fixed Income Investments'!E58","v":8.0000000000000002E-3},0]
[null,"BSCR Rating 3","Schedule XXIA, Column H",{"$f":"SUMIFS('Schedule XXIA'!$M$8:$M$57,'Schedule XXIA'!$K$8:$K$57,$D$61,'Schedule XXIA'!$L$8:$L$57,$B65)","v":0},{"$f":"+'Fixed Income Investments'!E59","v":1.4999999999999999E-2},0]
[null,"BSCR Rating 4","Schedule XXIA, Column H",{"$f":"SUMIFS('Schedule XXIA'!$M$8:$M$57,'Schedule XXIA'!$K$8:$K$57,$D$61,'Schedule XXIA'!$L$8:$L$57,$B66)","v":0},{"$f":"+'Fixed Income Investments'!E60","v":0.03},0]
[null,"BSCR Rating 5","Schedule XXIA, Column H",{"$f":"SUMIFS('Schedule XXIA'!$M$8:$M$57,'Schedule XXIA'!$K$8:$K$57,$D$61,'Schedule XXIA'!$L$8:$L$57,$B67)","v":0},{"$f":"+'Fixed Income Investments'!E61","v":0.08},0]
[null,"BSCR Rating 6","Schedule XXIA, Column H",{"$f":"SUMIFS('Schedule XXIA'!$M$8:$M$57,'Schedule XXIA'!$K$8:$K$57,$D$61,'Schedule XXIA'!$L$8:$L$57,$B68)","v":0},{"$f":"+'Fixed Income Investments'!E62","v":0.15},0]
[null,"BSCR Rating 7","Schedule XXIA, Column H",{"$f":"SUMIFS('Schedule XXIA'!$M$8:$M$57,'Schedule XXIA'!$K$8:$K$57,$D$61,'Schedule XXIA'!$L$8:$L$57,$B69)","v":0},{"$f":"+'Fixed Income Investments'!E63","v":0.26300000000000001},0]
[null,"BSCR Rating 8","Schedule XXIA, Column H",{"$f":"SUMIFS('Schedule XXIA'!$M$8:$M$57,'Schedule XXIA'!$K$8:$K$57,$D$61,'Schedule XXIA'!$L$8:$L$57,$B70)","v":0},{"$f":"+'Fixed Income Investments'!E64","v":0.35},0]
[]
[null,"(e)  SUBTOTAL - BOND MUTUAL FUNDS",null,{"$f":"SUM(D61:D70)","v":0},null,{"$f":"SUM(F61:F70)","v":0}]
[]
[null,"(f) Preferred Shares",null,"Preferred Shares"]
[null,"BSCR Rating 0","Schedule XXIA, Column H",{"$f":"SUMIFS('Schedule XXIA'!$M$8:$M$57,'Schedule XXIA'!$J$8:$J$57,$D$74,'Schedule XXIA'!$L$8:$L$57,$B75)","v":0},0,{"$f":"MAX(0,(D75*E75))","v":0}]
[null,"BSCR Rating 1","Schedule XXIA, Column H",{"$f":"SUMIFS('Schedule XXIA'!$M$8:$M$57,'Schedule XXIA'!$J$8:$J$57,$D$74,'Schedule XXIA'!$L$8:$L$57,$B76)","v":0},6.0000000000000001E-3,{"$f":"MAX(0,(D76*E76))","v":0}]
[null,"BSCR Rating 2","Schedule XXIA, Column H",{"$f":"SUMIFS('Schedule XXIA'!$M$8:$M$57,'Schedule XXIA'!$J$8:$J$57,$D$74,'Schedule XXIA'!$L$8:$L$57,$B77)","v":0},1.2E-2,0]
[null,"BSCR Rating 3","Schedule XXIA, Column H",{"$f":"SUMIFS('Schedule XXIA'!$M$8:$M$57,'Schedule XXIA'!$J$8:$J$57,$D$74,'Schedule XXIA'!$L$8:$L$57,$B78)","v":0},0.02,0]
[null,"BSCR Rating 4","Schedule XXIA, Column H",{"$f":"SUMIFS('Schedule XXIA'!$M$8:$M$57,'Schedule XXIA'!$J$8:$J$57,$D$74,'Schedule XXIA'!$L$8:$L$57,$B79)","v":0},0.04,0]
[null,"BSCR Rating 5","Schedule XXIA, Column H",{"$f":"SUMIFS('Schedule XXIA'!$M$8:$M$57,'Schedule XXIA'!$J$8:$J$57,$D$74,'Schedule XXIA'!$L$8:$L$57,$B80)","v":0},0.11,0]
[null,"BSCR Rating 6","Schedule XXIA, Column H",{"$f":"SUMIFS('Schedule XXIA'!$M$8:$M$57,'Schedule XXIA'!$J$8:$J$57,$D$74,'Schedule XXIA'!$L$8:$L$57,$B81)","v":0},0.25,0]
[null,"BSCR Rating 7","Schedule XXIA, Column H",{"$f":"SUMIFS('Schedule XXIA'!$M$8:$M$57,'Schedule XXIA'!$J$8:$J$57,$D$74,'Schedule XXIA'!$L$8:$L$57,$B82)","v":0},0.35,0]
[null,"BSCR Rating 8","Schedule XXIA, Column H",{"$f":"SUMIFS('Schedule XXIA'!$M$8:$M$57,'Schedule XXIA'!$J$8:$J$57,$D$74,'Schedule XXIA'!$L$8:$L$57,$B83)","v":0},0.35,0]
[]
[null,"(f)  SUBTOTAL - PREFERRED SHARES",null,{"$f":"SUM(D74:D83)","v":0},null,{"$f":"SUM(F74:F83)","v":0}]
[]
[null,"(g) Mortgage Loans",null,{"$f":"+'Schedule XXIA'!C65","v":"MortgageLoanTypes"}]
[null,"Insured/Guaranteed Mortgages","Schedule XXIA, Column H",{"$f":"SUMIFS('Schedule XXIA'!$M$8:$M$57,'Schedule XXIA'!$J$8:$J$57,$D$87,'Schedule XXIA'!$K$8:$K$57,$B88)","v":0},{"$f":"'Fixed Income Investments (Rev.)'!H70","v":3.0000000000000001E-3},{"$f":"MAX(0,(D88*E88))","v":0}]
[null,"Other Commercial and Farm Mortgages","Schedule XXIA, Column H",{"$f":"SUMIFS('Schedule XXIA'!$M$8:$M$57,'Schedule XXIA'!$J$8:$J$57,$D$87,'Schedule XXIA'!$K$8:$K$57,$B89)","v":0},{"$f":"'Fixed Income Investments (Rev.)'!H71","v":0.05},{"$f":"MAX(0,(D89*E89))","v":0}]
[null,"Other Residential Mortgages","Schedule XXIA, Column H",{"$f":"SUMIFS('Schedule XXIA'!$M$8:$M$57,'Schedule XXIA'!$J$8:$J$57,$D$87,'Schedule XXIA'!$K$8:$K$57,$B90)","v":0},{"$f":"'Fixed Income Investments (Rev.)'!H72","v":1.4999999999999999E-2},{"$f":"MAX(0,(D90*E90))","v":0}]
[null,"Mortgages Not In Good Standing","Schedule XXIA, Column H",{"$f":"SUMIFS('Schedule XXIA'!$M$8:$M$57,'Schedule XXIA'!$J$8:$J$57,$D$87,'Schedule XXIA'!$K$8:$K$57,$B91)","v":0},{"$f":"'Fixed Income Investments (Rev.)'!H73","v":0.25},{"$f":"MAX(0,(D91*E91))","v":0}]
[]
[null,"(g)  SUBTOTAL - Mortgage Loans",null,{"$f":"SUM(D88:D91)","v":0},null,{"$f":"SUM(F88:F91)","v":0}]
[]
[null,"(h) Other Asset Classes"]
[null,"Infrastructure (Non-affiliate holdings, non-duration based)","Schedule XXIA, Column H",{"$f":"SUMIFS('Schedule XXIA'!$M$8:$M$57,'Schedule XXIA'!$J$8:$J$57,$B96)","v":0},0.25,{"$f":"MAX(0,(D96*E96))","v":0}]
[null,"Listed Equity Securities in Developed Markets","Schedule XXIA, Column H",{"$f":"SUMIFS('Schedule XXIA'!$M$8:$M$57,'Schedule XXIA'!$J$8:$J$57,$B97)","v":0},0.35,{"$f":"MAX(0,(D97*E97))","v":0}]
[null,"Other Equities","Schedule XXIA, Column H",{"$f":"SUMIFS('Schedule XXIA'!$M$8:$M$57,'Schedule XXIA'!$J$8:$J$57,$B98)","v":0},0.45,{"$f":"MAX(0,(D98*E98))","v":0}]
[null,"Strategic Holdings","Schedule XXIA, Column H",{"$f":"SUMIFS('Schedule XXIA'!$M$8:$M$57,'Schedule XXIA'!$J$8:$J$57,$B99)","v":0},0.2,{"$f":"MAX(0,(D99*E99))","v":0}]
[null,"Duration Based","Schedule XXIA, Column H",{"$f":"SUMIFS('Schedule XXIA'!$M$8:$M$57,'Schedule XXIA'!$J$8:$J$57,$B100)","v":0},{"$f":"'Equity Investments (Revised)'!$N$12","v":0.2},{"$f":"MAX(0,(D100*E100))","v":0}]
[null,"Letters of Credit","Schedule XXIA, Column H",{"$f":"SUMIFS('Schedule XXIA'!$M$8:$M$57,'Schedule XXIA'!$J$8:$J$57,$B101)","v":0},{"$f":"'Equity Investments (Revised)'!N29","v":0.2},{"$f":"MAX(0,(D101*E101))","v":0}]
[null,"Advances to Affiliates - ","Schedule XXIA, Column H",{"$f":"SUMIFS('Schedule XXIA'!$M$8:$M$57,'Schedule XXIA'!$J$8:$J$57,$B102)","v":0},0.05,0]
[null,"Policy Loans","Schedule XXIA, Column H",{"$f":"SUMIFS('Schedule XXIA'!$M$8:$M$57,'Schedule XXIA'!$J$8:$J$57,$B103)","v":0},0,0]
[null,"Equity Real Estate 1","Schedule XXIA, Column H",{"$f":"SUMIFS('Schedule XXIA'!$M$8:$M$57,'Schedule XXIA'!$J$8:$J$57,$B104)","v":0},0.1,0]
[null,"Equity Real Estate 2","Schedule XXIA, Column H",{"$f":"SUMIFS('Schedule XXIA'!$M$8:$M$57,'Schedule XXIA'!$J$8:$J$57,$B105)","v":0},0.2,0]
[null,"Collateral Loans","Schedule XXIA, Column H",{"$f":"SUMIFS('Schedule XXIA'!$M$8:$M$57,'Schedule XXIA'!$J$8:$J$57,$B106)","v":0},0.05,0]
[]
[null,"(h)  SUBTOTAL - OTHER ASSET CLASSES",null,{"$f":"SUM(D96:D107)","v":0},null,{"$f":"SUM(F96:F107)","v":0}]
[]
[null,"TOTAL CONCENTRATION RISK",null,{"$f":"D108+D93+D85+D72+D59+D46+D33+D20","v":0},null,{"$f":"F108+F93+F85+F72+F59+F46+F33+F20","v":0}]

{"sheet":"Geographic Diversification","index":113,"n_rows":65,"n_cols":26,"rows_kept":65,"cut":false,"hidden":false,"merged":[[2,2,2,3]]}
["GEOGRAPHIC DIVERSIFICATION",null,null,null,null,null,null,null,null,null,null,null,null,null,null,null,null,null,null,null,null,null,null,null,null,{"$f":"HYPERLINK(\"#'Index'!A1\",\"Return to Index\")","v":"Return to Index"}]
[{"$f":"'Company Information'!C7","v":"Enter Company Name"}]
[{"$f":"\"Geographic Diversification\" & \"($\"&IF(CONFIGURATION!$B$12>1,MID(CONFIGURATION!$B$12,2,LEN(CONFIGURATION!$B$12)),\"\")&\")\"","v":"Geographic Diversification($000)"},null,{"$f":"'Company Information'!C3","v":"2019-12-31"}]
[]
[null,null,null,"TOTAL",null,null,null,"CHARGE"]
[null,"NET PREMIUMS WRITTEN BY ",null,"NET","SUM","DIVERSIFICATION","PREMIUM","DIVERSIFIED"]
[null,"LINE OF BUSINESS","STATEMENT SOURCE","PREMIUM","SQUARED","FACTOR","USED","PREMIUM",{"$f":"HYPERLINK(\"#'Zones'!c4\",\"Zone 1\")","v":"Zone 1"},{"$f":"HYPERLINK(\"#'Zones'!c13\",\"Zone 2\")","v":"Zone 2"},{"$f":"HYPERLINK(\"#'Zones'!c18\",\"Zone 3\")","v":"Zone 3"},{"$f":"HYPERLINK(\"#'Zones'!c26\",\"Zone 4\")","v":"Zone 4"},{"$f":"HYPERLINK(\"#'Zones'!c36\",\"Zone 5\")","v":"Zone 5"},{"$f":"HYPERLINK(\"#'Zones'!c46\",\"Zone 6\")","v":"Zone 6"},{"$f":"HYPERLINK(\"#'Zones'!c57\",\"Zone 7\")","v":"Zone 7"},{"$f":"HYPERLINK(\"#'Zones'!c68\",\"Zone 8\")","v":"Zone 8"},{"$f":"HYPERLINK(\"#'Zones'!c76\",\"Zone 9\")","v":"Zone 9"},{"$f":"HYPERLINK(\"#'Zones'!c84\",\"Zone 10\")","v":"Zone 10"},{"$f":"HYPERLINK(\"#'Zones'!c90\",\"Zone 11\")","v":"Zone 11"},{"$f":"HYPERLINK(\"#'Zones'!c94\",\"Zone 12\")","v":"Zone 12"},{"$f":"HYPERLINK(\"#'Zones'!c107\",\"Zone 13\")","v":"Zone 13"},{"$f":"HYPERLINK(\"#'Zones'!c112\",\"Zone 14\")","v":"Zone 14"},{"$f":"HYPERLINK(\"#'Zones'!c116\",\"Zone 15\")","v":"Zone 15"},{"$f":"HYPERLINK(\"#'Zones'!c121\",\"Zone 16\")","v":"Zone 16"},{"$f":"HYPERLINK(\"#'Zones'!c127\",\"Zone 17\")","v":"Zone 17"},{"$f":"HYPERLINK(\"#'Zones'!c133\",\"Zone 18\")","v":"Zone 18"}]
[]
[null,"Property Catastrophe","Schedule IV(a), Line (1)",{"$f":"SUM(I9:Z9)","v":0},{"$f":"SUMSQ(I9:Z9)","v":0},{"$f":"(IF(D9>0,E9/D9^2,1))","v":1},{"$f":"D9*(0.75+0.25*F9)","v":0},{"$f":"IF('Schedule IVC (EBS)'!AB9=\"True\",G9,'Schedule IVA (EBS)'!Q11)","v":0},{"$f":"+'Schedule IVC (EBS)'!E9","v":0},{"$f":"+'Schedule IVC (EBS)'!F9","v":0},{"$f":"+'Schedule IVC (EBS)'!G9","v":0},{"$f":"+'Schedule IVC (EBS)'!H9","v":0},{"$f":"+'Schedule IVC (EBS)'!I9","v":0},{"$f":"+'Schedule IVC (EBS)'!J9","v":0},{"$f":"+'Schedule IVC (EBS)'!K9","v":0},{"$f":"+'Schedule IVC (EBS)'!L9","v":0},{"$f":"+'Schedule IVC (EBS)'!M9","v":0},{"$f":"+'Schedule IVC (EBS)'!N9","v":0},{"$f":"+'Schedule IVC (EBS)'!O9","v":0},{"$f":"+'Schedule IVC (EBS)'!P9","v":0},{"$f":"+'Schedule IVC (EBS)'!Q9","v":0},{"$f":"+'Schedule IVC (EBS)'!R9","v":0},{"$f":"+'Schedule IVC (EBS)'!S9","v":0},{"$f":"+'Schedule IVC (EBS)'!T9","v":0},{"$f":"+'Schedule IVC (EBS)'!U9","v":0},{"$f":"+'Schedule IVC (EBS)'!V9","v":0}]
[null,"Property","Schedule IV(a), Line (2)",{"$f":"SUM(I10:Z10)","v":0},{"$f":"SUMSQ(I10:Z10)","v":0},{"$f":"(IF(D10>0,E10/D10^2,1))","v":1},{"$f":"D10*(0.75+0.25*F10)","v":0},{"$f":"IF('Schedule IVC (EBS)'!AB10=\"True\",G10,'Schedule IVA (EBS)'!Q12)","v":0},{"$f":"+'Schedule IVC (EBS)'!E10","v":0},{"$f":"+'Schedule IVC (EBS)'!F10","v":0},{"$f":"+'Schedule IVC (EBS)'!G10","v":0},{"$f":"+'Schedule IVC (EBS)'!H10","v":0},{"$f":"+'Schedule IVC (EBS)'!I10","v":0},{"$f":"+'Schedule IVC (EBS)'!J10","v":0},{"$f":"+'Schedule IVC (EBS)'!K10","v":0},{"$f":"+'Schedule IVC (EBS)'!L10","v":0},{"$f":"+'Schedule IVC (EBS)'!M10","v":0},{"$f":"+'Schedule IVC (EBS)'!N10","v":0},{"$f":"+'Schedule IVC (EBS)'!O10","v":0},{"$f":"+'Schedule IVC (EBS)'!P10","v":0},{"$f":"+'Schedule IVC (EBS)'!Q10","v":0},{"$f":"+'Schedule IVC (EBS)'!R10","v":0},{"$f":"+'Schedule IVC (EBS)'!S10","v":0},{"$f":"+'Schedule IVC (EBS)'!T10","v":0},{"$f":"+'Schedule IVC (EBS)'!U10","v":0},{"$f":"+'Schedule IVC (EBS)'!V10","v":0}]
[null,"Property Non-Proportional","Schedule IV(a), Line (3)",0,0,1,0,{"$f":"IF('Schedule IVC (EBS)'!AB11=\"True\",G11,'Schedule IVA (EBS)'!Q13)","v":0},{"$f":"+'Schedule IVC (EBS)'!E11","v":0},{"$f":"+'Schedule IVC (EBS)'!F11","v":0},{"$f":"+'Schedule IVC (EBS)'!G11","v":0},{"$f":"+'Schedule IVC (EBS)'!H11","v":0},{"$f":"+'Schedule IVC (EBS)'!I11","v":0},{"$f":"+'Schedule IVC (EBS)'!J11","v":0},{"$f":"+'Schedule IVC (EBS)'!K11","v":0},{"$f":"+'Schedule IVC (EBS)'!L11","v":0},{"$f":"+'Schedule IVC (EBS)'!M11","v":0},{"$f":"+'Schedule IVC (EBS)'!N11","v":0},{"$f":"+'Schedule IVC (EBS)'!O11","v":0},{"$f":"+'Schedule IVC (EBS)'!P11","v":0},{"$f":"+'Schedule IVC (EBS)'!Q11","v":0},{"$f":"+'Schedule IVC (EBS)'!R11","v":0},{"$f":"+'Schedule IVC (EBS)'!S11","v":0},{"$f":"+'Schedule IVC (EBS)'!T11","v":0},{"$f":"+'Schedule IVC (EBS)'!U11","v":0},{"$f":"+'Schedule IVC (EBS)'!V11","v":0}]
[null,"Personal Accident","Schedule IV(a), Line (4)",0,0,1,0,{"$f":"IF('Schedule IVC (EBS)'!AB12=\"True\",G12,'Schedule IVA (EBS)'!Q14)","v":0},{"$f":"+'Schedule IVC (EBS)'!E12","v":0},{"$f":"+'Schedule IVC (EBS)'!F12","v":0},{"$f":"+'Schedule IVC (EBS)'!G12","v":0},{"$f":"+'Schedule IVC (EBS)'!H12","v":0},{"$f":"+'Schedule IVC (EBS)'!I12","v":0},{"$f":"+'Schedule IVC (EBS)'!J12","v":0},{"$f":"+'Schedule IVC (EBS)'!K12","v":0},{"$f":"+'Schedule IVC (EBS)'!L12","v":0},{"$f":"+'Schedule IVC (EBS)'!M12","v":0},{"$f":"+'Schedule IVC (EBS)'!N12","v":0},{"$f":"+'Schedule IVC (EBS)'!O12","v":0},{"$f":"+'Schedule IVC (EBS)'!P12","v":0},{"$f":"+'Schedule IVC (EBS)'!Q12","v":0},{"$f":"+'Schedule IVC (EBS)'!R12","v":0},{"$f":"+'Schedule IVC (EBS)'!S12","v":0},{"$f":"+'Schedule IVC (EBS)'!T12","v":0},{"$f":"+'Schedule IVC (EBS)'!U12","v":0},{"$f":"+'Schedule IVC (EBS)'!V12","v":0}]
[null,"Personal Accident Non-Proportional","Schedule IV(a), Line (5)",0,0,1,0,{"$f":"IF('Schedule IVC (EBS)'!AB13=\"True\",G13,'Schedule IVA (EBS)'!Q15)","v":0},{"$f":"+'Schedule IVC (EBS)'!E13","v":0},{"$f":"+'Schedule IVC (EBS)'!F13","v":0},{"$f":"+'Schedule IVC (EBS)'!G13","v":0},{"$f":"+'Schedule IVC (EBS)'!H13","v":0},{"$f":"+'Schedule IVC (EBS)'!I13","v":0},{"$f":"+'Schedule IVC (EBS)'!J13","v":0},{"$f":"+'Schedule IVC (EBS)'!K13","v":0},{"$f":"+'Schedule IVC (EBS)'!L13","v":0},{"$f":"+'Schedule IVC (EBS)'!M13","v":0},{"$f":"+'Schedule IVC (EBS)'!N13","v":0},{"$f":"+'Schedule IVC (EBS)'!O13","v":0},{"$f":"+'Schedule IVC (EBS)'!P13","v":0},{"$f":"+'Schedule IVC (EBS)'!Q13","v":0},{"$f":"+'Schedule IVC (EBS)'!R13","v":0},{"$f":"+'Schedule IVC (EBS)'!S13","v":0},{"$f":"+'Schedule IVC (EBS)'!T13","v":0},{"$f":"+'Schedule IVC (EBS)'!U13","v":0},{"$f":"+'Schedule IVC (EBS)'!V13","v":0}]
[null,"Aviation","Schedule IV(a), Line (6)",0,0,1,0,{"$f":"IF('Schedule IVC (EBS)'!AB14=\"True\",G14,'Schedule IVA (EBS)'!Q16)","v":0},{"$f":"+'Schedule IVC (EBS)'!E14","v":0},{"$f":"+'Schedule IVC (EBS)'!F14","v":0},{"$f":"+'Schedule IVC (EBS)'!G14","v":0},{"$f":"+'Schedule IVC (EBS)'!H14","v":0},{"$f":"+'Schedule IVC (EBS)'!I14","v":0},{"$f":"+'Schedule IVC (EBS)'!J14","v":0},{"$f":"+'Schedule IVC (EBS)'!K14","v":0},{"$f":"+'Schedule IVC (EBS)'!L14","v":0},{"$f":"+'Schedule IVC (EBS)'!M14","v":0},{"$f":"+'Schedule IVC (EBS)'!N14","v":0},{"$f":"+'Schedule IVC (EBS)'!O14","v":0},{"$f":"+'Schedule IVC (EBS)'!P14","v":0},{"$f":"+'Schedule IVC (EBS)'!Q14","v":0},{"$f":"+'Schedule IVC (EBS)'!R14","v":0},{"$f":"+'Schedule IVC (EBS)'!S14","v":0},{"$f":"+'Schedule IVC (EBS)'!T14","v":0},{"$f":"+'Schedule IVC (EBS)'!U14","v":0},{"$f":"+'Schedule IVC (EBS)'!V14","v":0}]
[null,"Aviation Non-Proportional","Schedule IV(a), Line (7)",0,0,1,0,{"$f":"IF('Schedule IVC (EBS)'!AB15=\"True\",G15,'Schedule IVA (EBS)'!Q17)","v":0},{"$f":"+'Schedule IVC (EBS)'!E15","v":0},{"$f":"+'Schedule IVC (EBS)'!F15","v":0},{"$f":"+'Schedule IVC (EBS)'!G15","v":0},{"$f":"+'Schedule IVC (EBS)'!H15","v":0},{"$f":"+'Schedule IVC (EBS)'!I15","v":0},{"$f":"+'Schedule IVC (EBS)'!J15","v":0},{"$f":"+'Schedule IVC (EBS)'!K15","v":0},{"$f":"+'Schedule IVC (EBS)'!L15","v":0},{"$f":"+'Schedule IVC (EBS)'!M15","v":0},{"$f":"+'Schedule IVC (EBS)'!N15","v":0},{"$f":"+'Schedule IVC (EBS)'!O15","v":0},{"$f":"+'Schedule IVC (EBS)'!P15","v":0},{"$f":"+'Schedule IVC (EBS)'!Q15","v":0},{"$f":"+'Schedule IVC (EBS)'!R15","v":0},{"$f":"+'Schedule IVC (EBS)'!S15","v":0},{"$f":"+'Schedule IVC (EBS)'!T15","v":0},{"$f":"+'Schedule IVC (EBS)'!U15","v":0},{"$f":"+'Schedule IVC (EBS)'!V15","v":0}]
[null,"Credit / Surety","Schedule IV(a), Line (8)",0,0,1,0,{"$f":"IF('Schedule IVC (EBS)'!AB16=\"True\",G16,'Schedule IVA (EBS)'!Q18)","v":0},{"$f":"+'Schedule IVC (EBS)'!E16","v":0},{"$f":"+'Schedule IVC (EBS)'!F16","v":0},{"$f":"+'Schedule IVC (EBS)'!G16","v":0},{"$f":"+'Schedule IVC (EBS)'!H16","v":0},{"$f":"+'Schedule IVC (EBS)'!I16","v":0},{"$f":"+'Schedule IVC (EBS)'!J16","v":0},{"$f":"+'Schedule IVC (EBS)'!K16","v":0},{"$f":"+'Schedule IVC (EBS)'!L16","v":0},{"$f":"+'Schedule IVC (EBS)'!M16","v":0},{"$f":"+'Schedule IVC (EBS)'!N16","v":0},{"$f":"+'Schedule IVC (EBS)'!O16","v":0},{"$f":"+'Schedule IVC (EBS)'!P16","v":0},{"$f":"+'Schedule IVC (EBS)'!Q16","v":0},{"$f":"+'Schedule IVC (EBS)'!R16","v":0},{"$f":"+'Schedule IVC (EBS)'!S16","v":0},{"$f":"+'Schedule IVC (EBS)'!T16","v":0},{"$f":"+'Schedule IVC (EBS)'!U16","v":0},{"$f":"+'Schedule IVC (EBS)'!V16","v":0}]
[null,"Credit / Surety Non-Proportional","Schedule IV(a), Line (9)",0,0,1,0,{"$f":"IF('Schedule IVC (EBS)'!AB17=\"True\",G17,'Schedule IVA (EBS)'!Q19)","v":0},{"$f":"+'Schedule IVC (EBS)'!E17","v":0},{"$f":"+'Schedule IVC (EBS)'!F17","v":0},{"$f":"+'Schedule IVC (EBS)'!G17","v":0},{"$f":"+'Schedule IVC (EBS)'!H17","v":0},{"$f":"+'Schedule IVC (EBS)'!I17","v":0},{"$f":"+'Schedule IVC (EBS)'!J17","v":0},{"$f":"+'Schedule IVC (EBS)'!K17","v":0},{"$f":"+'Schedule IVC (EBS)'!L17","v":0},{"$f":"+'Schedule IVC (EBS)'!M17","v":0},{"$f":"+'Schedule IVC (EBS)'!N17","v":0},{"$f":"+'Schedule IVC (EBS)'!O17","v":0},{"$f":"+'Schedule IVC (EBS)'!P17","v":0},{"$f":"+'Schedule IVC (EBS)'!Q17","v":0},{"$f":"+'Schedule IVC (EBS)'!R17","v":0},{"$f":"+'Schedule IVC (EBS)'!S17","v":0},{"$f":"+'Schedule IVC (EBS)'!T17","v":0},{"$f":"+'Schedule IVC (EBS)'!U17","v":0},{"$f":"+'Schedule IVC (EBS)'!V17","v":0}]
[null,"Energy Offshore / Marine","Schedule IV(a), Line (10)",0,0,1,0,{"$f":"IF('Schedule IVC (EBS)'!AB18=\"True\",G18,'Schedule IVA (EBS)'!Q20)","v":0},{"$f":"+'Schedule IVC (EBS)'!E18","v":0},{"$f":"+'Schedule IVC (EBS)'!F18","v":0},{"$f":"+'Schedule IVC (EBS)'!G18","v":0},{"$f":"+'Schedule IVC (EBS)'!H18","v":0},{"$f":"+'Schedule IVC (EBS)'!I18","v":0},{"$f":"+'Schedule IVC (EBS)'!J18","v":0},{"$f":"+'Schedule IVC (EBS)'!K18","v":0},{"$f":"+'Schedule IVC (EBS)'!L18","v":0},{"$f":"+'Schedule IVC (EBS)'!M18","v":0},{"$f":"+'Schedule IVC (EBS)'!N18","v":0},{"$f":"+'Schedule IVC (EBS)'!O18","v":0},{"$f":"+'Schedule IVC (EBS)'!P18","v":0},{"$f":"+'Schedule IVC (EBS)'!Q18","v":0},{"$f":"+'Schedule IVC (EBS)'!R18","v":0},{"$f":"+'Schedule IVC (EBS)'!S18","v":0},{"$f":"+'Schedule IVC (EBS)'!T18","v":0},{"$f":"+'Schedule IVC (EBS)'!U18","v":0},{"$f":"+'Schedule IVC (EBS)'!V18","v":0}]
[null,"Energy Offshore / Marine Non-Proportional","Schedule IV(a), Line (11)",0,0,1,0,{"$f":"IF('Schedule IVC (EBS)'!AB19=\"True\",G19,'Schedule IVA (EBS)'!Q21)","v":0},{"$f":"+'Schedule IVC (EBS)'!E19","v":0},{"$f":"+'Schedule IVC (EBS)'!F19","v":0},{"$f":"+'Schedule IVC (EBS)'!G19","v":0},{"$f":"+'Schedule IVC (EBS)'!H19","v":0},{"$f":"+'Schedule IVC (EBS)'!I19","v":0},{"$f":"+'Schedule IVC (EBS)'!J19","v":0},{"$f":"+'Schedule IVC (EBS)'!K19","v":0},{"$f":"+'Schedule IVC (EBS)'!L19","v":0},{"$f":"+'Schedule IVC (EBS)'!M19","v":0},{"$f":"+'Schedule IVC (EBS)'!N19","v":0},{"$f":"+'Schedule IVC (EBS)'!O19","v":0},{"$f":"+'Schedule IVC (EBS)'!P19","v":0},{"$f":"+'Schedule IVC (EBS)'!Q19","v":0},{"$f":"+'Schedule IVC (EBS)'!R19","v":0},{"$f":"+'Schedule IVC (EBS)'!S19","v":0},{"$f":"+'Schedule IVC (EBS)'!T19","v":0},{"$f":"+'Schedule IVC (EBS)'!U19","v":0},{"$f":"+'Schedule IVC (EBS)'!V19","v":0}]
[null,"US Casualty","Schedule IV(a), Line (12)",0,0,1,0,{"$f":"IF('Schedule IVC (EBS)'!AB20=\"True\",G20,'Schedule IVA (EBS)'!Q22)","v":0},{"$f":"+'Schedule IVC (EBS)'!E20","v":0},{"$f":"+'Schedule IVC (EBS)'!F20","v":0},{"$f":"+'Schedule IVC (EBS)'!G20","v":0},{"$f":"+'Schedule IVC (EBS)'!H20","v":0},{"$f":"+'Schedule IVC (EBS)'!I20","v":0},{"$f":"+'Schedule IVC (EBS)'!J20","v":0},{"$f":"+'Schedule IVC (EBS)'!K20","v":0},{"$f":"+'Schedule IVC (EBS)'!L20","v":0},{"$f":"+'Schedule IVC (EBS)'!M20","v":0},{"$f":"+'Schedule IVC (EBS)'!N20","v":0},{"$f":"+'Schedule IVC (EBS)'!O20","v":0},{"$f":"+'Schedule IVC (EBS)'!P20","v":0},{"$f":"+'Schedule IVC (EBS)'!Q20","v":0},{"$f":"+'Schedule IVC (EBS)'!R20","v":0},{"$f":"+'Schedule IVC (EBS)'!S20","v":0},{"$f":"+'Schedule IVC (EBS)'!T20","v":0},{"$f":"+'Schedule IVC (EBS)'!U20","v":0},{"$f":"+'Schedule IVC (EBS)'!V20","v":0}]
[null,"US Casualty Non-Proportional","Schedule IV(a), Line (13)",0,0,1,0,{"$f":"IF('Schedule IVC (EBS)'!AB21=\"True\",G21,'Schedule IVA (EBS)'!Q23)","v":0},{"$f":"+'Schedule IVC (EBS)'!E21","v":0},{"$f":"+'Schedule IVC (EBS)'!F21","v":0},{"$f":"+'Schedule IVC (EBS)'!G21","v":0},{"$f":"+'Schedule IVC (EBS)'!H21","v":0},{"$f":"+'Schedule IVC (EBS)'!I21","v":0},{"$f":"+'Schedule IVC (EBS)'!J21","v":0},{"$f":"+'Schedule IVC (EBS)'!K21","v":0},{"$f":"+'Schedule IVC (EBS)'!L21","v":0},{"$f":"+'Schedule IVC (EBS)'!M21","v":0},{"$f":"+'Schedule IVC (EBS)'!N21","v":0},{"$f":"+'Schedule IVC (EBS)'!O21","v":0},{"$f":"+'Schedule IVC (EBS)'!P21","v":0},{"$f":"+'Schedule IVC (EBS)'!Q21","v":0},{"$f":"+'Schedule IVC (EBS)'!R21","v":0},{"$f":"+'Schedule IVC (EBS)'!S21","v":0},{"$f":"+'Schedule IVC (EBS)'!T21","v":0},{"$f":"+'Schedule IVC (EBS)'!U21","v":0},{"$f":"+'Schedule IVC (EBS)'!V21","v":0}]
[null,"US Professional","Schedule IV(a), Line (14)",0,0,1,0,{"$f":"IF('Schedule IVC (EBS)'!AB22=\"True\",G22,'Schedule IVA (EBS)'!Q24)","v":0},{"$f":"+'Schedule IVC (EBS)'!E22","v":0},{"$f":"+'Schedule IVC (EBS)'!F22","v":0},{"$f":"+'Schedule IVC (EBS)'!G22","v":0},{"$f":"+'Schedule IVC (EBS)'!H22","v":0},{"$f":"+'Schedule IVC (EBS)'!I22","v":0},{"$f":"+'Schedule IVC (EBS)'!J22","v":0},{"$f":"+'Schedule IVC (EBS)'!K22","v":0},{"$f":"+'Schedule IVC (EBS)'!L22","v":0},{"$f":"+'Schedule IVC (EBS)'!M22","v":0},{"$f":"+'Schedule IVC (EBS)'!N22","v":0},{"$f":"+'Schedule IVC (EBS)'!O22","v":0},{"$f":"+'Schedule IVC (EBS)'!P22","v":0},{"$f":"+'Schedule IVC (EBS)'!Q22","v":0},{"$f":"+'Schedule IVC (EBS)'!R22","v":0},{"$f":"+'Schedule IVC (EBS)'!S22","v":0},{"$f":"+'Schedule IVC (EBS)'!T22","v":0},{"$f":"+'Schedule IVC (EBS)'!U22","v":0},{"$f":"+'Schedule IVC (EBS)'!V22","v":0}]
[null,"US Professional Non-Proportional","Schedule IV(a), Line (15)",0,0,1,0,{"$f":"IF('Schedule IVC (EBS)'!AB23=\"True\",G23,'Schedule IVA (EBS)'!Q25)","v":0},{"$f":"+'Schedule IVC (EBS)'!E23","v":0},{"$f":"+'Schedule IVC (EBS)'!F23","v":0},{"$f":"+'Schedule IVC (EBS)'!G23","v":0},{"$f":"+'Schedule IVC (EBS)'!H23","v":0},{"$f":"+'Schedule IVC (EBS)'!I23","v":0},{"$f":"+'Schedule IVC (EBS)'!J23","v":0},{"$f":"+'Schedule IVC (EBS)'!K23","v":0},{"$f":"+'Schedule IVC (EBS)'!L23","v":0},{"$f":"+'Schedule IVC (EBS)'!M23","v":0},{"$f":"+'Schedule IVC (EBS)'!N23","v":0},{"$f":"+'Schedule IVC (EBS)'!O23","v":0},{"$f":"+'Schedule IVC (EBS)'!P23","v":0},{"$f":"+'Schedule IVC (EBS)'!Q23","v":0},{"$f":"+'Schedule IVC (EBS)'!R23","v":0},{"$f":"+'Schedule IVC (EBS)'!S23","v":0},{"$f":"+'Schedule IVC (EBS)'!T23","v":0},{"$f":"+'Schedule IVC (EBS)'!U23","v":0},{"$f":"+'Schedule IVC (EBS)'!V23","v":0}]
[null,"US Specialty","Schedule IV(a), Line (16)",0,0,1,0,{"$f":"IF('Schedule IVC (EBS)'!AB24=\"True\",G24,'Schedule IVA (EBS)'!Q26)","v":0},{"$f":"+'Schedule IVC (EBS)'!E24","v":0},{"$f":"+'Schedule IVC (EBS)'!F24","v":0},{"$f":"+'Schedule IVC (EBS)'!G24","v":0},{"$f":"+'Schedule IVC (EBS)'!H24","v":0},{"$f":"+'Schedule IVC (EBS)'!I24","v":0},{"$f":"+'Schedule IVC (EBS)'!J24","v":0},{"$f":"+'Schedule IVC (EBS)'!K24","v":0},{"$f":"+'Schedule IVC (EBS)'!L24","v":0},{"$f":"+'Schedule IVC (EBS)'!M24","v":0},{"$f":"+'Schedule IVC (EBS)'!N24","v":0},{"$f":"+'Schedule IVC (EBS)'!O24","v":0},{"$f":"+'Schedule IVC (EBS)'!P24","v":0},{"$f":"+'Schedule IVC (EBS)'!Q24","v":0},{"$f":"+'Schedule IVC (EBS)'!R24","v":0},{"$f":"+'Schedule IVC (EBS)'!S24","v":0},{"$f":"+'Schedule IVC (EBS)'!T24","v":0},{"$f":"+'Schedule IVC (EBS)'!U24","v":0},{"$f":"+'Schedule IVC (EBS)'!V24","v":0}]
[null,"US Specialty Non-Proportional","Schedule IV(a), Line (17)",0,0,1,0,{"$f":"IF('Schedule IVC (EBS)'!AB25=\"True\",G25,'Schedule IVA (EBS)'!Q27)","v":0},{"$f":"+'Schedule IVC (EBS)'!E25","v":0},{"$f":"+'Schedule IVC (EBS)'!F25","v":0},{"$f":"+'Schedule IVC (EBS)'!G25","v":0},{"$f":"+'Schedule IVC (EBS)'!H25","v":0},{"$f":"+'Schedule IVC (EBS)'!I25","v":0},{"$f":"+'Schedule IVC (EBS)'!J25","v":0},{"$f":"+'Schedule IVC (EBS)'!K25","v":0},{"$f":"+'Schedule IVC (EBS)'!L25","v":0},{"$f":"+'Schedule IVC (EBS)'!M25","v":0},{"$f":"+'Schedule IVC (EBS)'!N25","v":0},{"$f":"+'Schedule IVC (EBS)'!O25","v":0},{"$f":"+'Schedule IVC (EBS)'!P25","v":0},{"$f":"+'Schedule IVC (EBS)'!Q25","v":0},{"$f":"+'Schedule IVC (EBS)'!R25","v":0},{"$f":"+'Schedule IVC (EBS)'!S25","v":0},{"$f":"+'Schedule IVC (EBS)'!T25","v":0},{"$f":"+'Schedule IVC (EBS)'!U25","v":0},{"$f":"+'Schedule IVC (EBS)'!V25","v":0}]
[null,"International Motor","Schedule IV(a), Line (18)",0,0,1,0,{"$f":"IF('Schedule IVC (EBS)'!AB26=\"True\",G26,'Schedule IVA (EBS)'!Q28)","v":0},{"$f":"+'Schedule IVC (EBS)'!E26","v":0},{"$f":"+'Schedule IVC (EBS)'!F26","v":0},{"$f":"+'Schedule IVC (EBS)'!G26","v":0},{"$f":"+'Schedule IVC (EBS)'!H26","v":0},{"$f":"+'Schedule IVC (EBS)'!I26","v":0},{"$f":"+'Schedule IVC (EBS)'!J26","v":0},{"$f":"+'Schedule IVC (EBS)'!K26","v":0},{"$f":"+'Schedule IVC (EBS)'!L26","v":0},{"$f":"+'Schedule IVC (EBS)'!M26","v":0},{"$f":"+'Schedule IVC (EBS)'!N26","v":0},{"$f":"+'Schedule IVC (EBS)'!O26","v":0},{"$f":"+'Schedule IVC (EBS)'!P26","v":0},{"$f":"+'Schedule IVC (EBS)'!Q26","v":0},{"$f":"+'Schedule IVC (EBS)'!R26","v":0},{"$f":"+'Schedule IVC (EBS)'!S26","v":0},{"$f":"+'Schedule IVC (EBS)'!T26","v":0},{"$f":"+'Schedule IVC (EBS)'!U26","v":0},{"$f":"+'Schedule IVC (EBS)'!V26","v":0}]
[null,"International Motor Non-Proportional","Schedule IV(a), Line (19)",0,0,1,0,{"$f":"IF('Schedule IVC (EBS)'!AB27=\"True\",G27,'Schedule IVA (EBS)'!Q29)","v":0},{"$f":"+'Schedule IVC (EBS)'!E27","v":0},{"$f":"+'Schedule IVC (EBS)'!F27","v":0},{"$f":"+'Schedule IVC (EBS)'!G27","v":0},{"$f":"+'Schedule IVC (EBS)'!H27","v":0},{"$f":"+'Schedule IVC (EBS)'!I27","v":0},{"$f":"+'Schedule IVC (EBS)'!J27","v":0},{"$f":"+'Schedule IVC (EBS)'!K27","v":0},{"$f":"+'Schedule IVC (EBS)'!L27","v":0},{"$f":"+'Schedule IVC (EBS)'!M27","v":0},{"$f":"+'Schedule IVC (EBS)'!N27","v":0},{"$f":"+'Schedule IVC (EBS)'!O27","v":0},{"$f":"+'Schedule IVC (EBS)'!P27","v":0},{"$f":"+'Schedule IVC (EBS)'!Q27","v":0},{"$f":"+'Schedule IVC (EBS)'!R27","v":0},{"$f":"+'Schedule IVC (EBS)'!S27","v":0},{"$f":"+'Schedule IVC (EBS)'!T27","v":0},{"$f":"+'Schedule IVC (EBS)'!U27","v":0},{"$f":"+'Schedule IVC (EBS)'!V27","v":0}]
[null,"International Casualty Non-Motor","Schedule IV(a), Line (20)",0,0,1,0,{"$f":"IF('Schedule IVC (EBS)'!AB28=\"True\",G28,'Schedule IVA (EBS)'!Q30)","v":0},{"$f":"+'Schedule IVC (EBS)'!E28","v":0},{"$f":"+'Schedule IVC (EBS)'!F28","v":0},{"$f":"+'Schedule IVC (EBS)'!G28","v":0},{"$f":"+'Schedule IVC (EBS)'!H28","v":0},{"$f":"+'Schedule IVC (EBS)'!I28","v":0},{"$f":"+'Schedule IVC (EBS)'!J28","v":0},{"$f":"+'Schedule IVC (EBS)'!K28","v":0},{"$f":"+'Schedule IVC (EBS)'!L28","v":0},{"$f":"+'Schedule IVC (EBS)'!M28","v":0},{"$f":"+'Schedule IVC (EBS)'!N28","v":0},{"$f":"+'Schedule IVC (EBS)'!O28","v":0},{"$f":"+'Schedule IVC (EBS)'!P28","v":0},{"$f":"+'Schedule IVC (EBS)'!Q28","v":0},{"$f":"+'Schedule IVC (EBS)'!R28","v":0},{"$f":"+'Schedule IVC (EBS)'!S28","v":0},{"$f":"+'Schedule IVC (EBS)'!T28","v":0},{"$f":"+'Schedule IVC (EBS)'!U28","v":0},{"$f":"+'Schedule IVC (EBS)'!V28","v":0}]
[null,"International Casualty Non-Motor Non-Proportional","Schedule IV(a), Line (21)",0,0,1,0,{"$f":"IF('Schedule IVC (EBS)'!AB29=\"True\",G29,'Schedule IVA (EBS)'!Q31)","v":0},{"$f":"+'Schedule IVC (EBS)'!E29","v":0},{"$f":"+'Schedule IVC (EBS)'!F29","v":0},{"$f":"+'Schedule IVC (EBS)'!G29","v":0},{"$f":"+'Schedule IVC (EBS)'!H29","v":0},{"$f":"+'Schedule IVC (EBS)'!I29","v":0},{"$f":"+'Schedule IVC (EBS)'!J29","v":0},{"$f":"+'Schedule IVC (EBS)'!K29","v":0},{"$f":"+'Schedule IVC (EBS)'!L29","v":0},{"$f":"+'Schedule IVC (EBS)'!M29","v":0},{"$f":"+'Schedule IVC (EBS)'!N29","v":0},{"$f":"+'Schedule IVC (EBS)'!O29","v":0},{"$f":"+'Schedule IVC (EBS)'!P29","v":0},{"$f":"+'Schedule IVC (EBS)'!Q29","v":0},{"$f":"+'Schedule IVC (EBS)'!R29","v":0},{"$f":"+'Schedule IVC (EBS)'!S29","v":0},{"$f":"+'Schedule IVC (EBS)'!T29","v":0},{"$f":"+'Schedule IVC (EBS)'!U29","v":0},{"$f":"+'Schedule IVC (EBS)'!V29","v":0}]
[null,"Retro Property","Schedule IV(a), Line (22)",0,0,1,0,{"$f":"IF('Schedule IVC (EBS)'!AB30=\"True\",G30,'Schedule IVA (EBS)'!Q32)","v":0},{"$f":"+'Schedule IVC (EBS)'!E30","v":0},{"$f":"+'Schedule IVC (EBS)'!F30","v":0},{"$f":"+'Schedule IVC (EBS)'!G30","v":0},{"$f":"+'Schedule IVC (EBS)'!H30","v":0},{"$f":"+'Schedule IVC (EBS)'!I30","v":0},{"$f":"+'Schedule IVC (EBS)'!J30","v":0},{"$f":"+'Schedule IVC (EBS)'!K30","v":0},{"$f":"+'Schedule IVC (EBS)'!L30","v":0},{"$f":"+'Schedule IVC (EBS)'!M30","v":0},{"$f":"+'Schedule IVC (EBS)'!N30","v":0},{"$f":"+'Schedule IVC (EBS)'!O30","v":0},{"$f":"+'Schedule IVC (EBS)'!P30","v":0},{"$f":"+'Schedule IVC (EBS)'!Q30","v":0},{"$f":"+'Schedule IVC (EBS)'!R30","v":0},{"$f":"+'Schedule IVC (EBS)'!S30","v":0},{"$f":"+'Schedule IVC (EBS)'!T30","v":0},{"$f":"+'Schedule IVC (EBS)'!U30","v":0},{"$f":"+'Schedule IVC (EBS)'!V30","v":0}]
[null,"Structured / Finite Reinsurance","Schedule IV(a), Line (23)",0,0,1,0,{"$f":"IF('Schedule IVC (EBS)'!AB31=\"True\",G31,'Schedule IVA (EBS)'!Q33)","v":0},{"$f":"+'Schedule IVC (EBS)'!E31","v":0},{"$f":"+'Schedule IVC (EBS)'!F31","v":0},{"$f":"+'Schedule IVC (EBS)'!G31","v":0},{"$f":"+'Schedule IVC (EBS)'!H31","v":0},{"$f":"+'Schedule IVC (EBS)'!I31","v":0},{"$f":"+'Schedule IVC (EBS)'!J31","v":0},{"$f":"+'Schedule IVC (EBS)'!K31","v":0},{"$f":"+'Schedule IVC (EBS)'!L31","v":0},{"$f":"+'Schedule IVC (EBS)'!M31","v":0},{"$f":"+'Schedule IVC (EBS)'!N31","v":0},{"$f":"+'Schedule IVC (EBS)'!O31","v":0},{"$f":"+'Schedule IVC (EBS)'!P31","v":0},{"$f":"+'Schedule IVC (EBS)'!Q31","v":0},{"$f":"+'Schedule IVC (EBS)'!R31","v":0},{"$f":"+'Schedule IVC (EBS)'!S31","v":0},{"$f":"+'Schedule IVC (EBS)'!T31","v":0},{"$f":"+'Schedule IVC (EBS)'!U31","v":0},{"$f":"+'Schedule IVC (EBS)'!V31","v":0}]
[null,"Health","Schedule IV(a), Line (24)",0,0,1,0,{"$f":"IF('Schedule IVC (EBS)'!AB32=\"True\",G32,'Schedule IVA (EBS)'!Q34)","v":0},{"$f":"+'Schedule IVC (EBS)'!E32","v":0},{"$f":"+'Schedule IVC (EBS)'!F32","v":0},{"$f":"+'Schedule IVC (EBS)'!G32","v":0},{"$f":"+'Schedule IVC (EBS)'!H32","v":0},{"$f":"+'Schedule IVC (EBS)'!I32","v":0},{"$f":"+'Schedule IVC (EBS)'!J32","v":0},{"$f":"+'Schedule IVC (EBS)'!K32","v":0},{"$f":"+'Schedule IVC (EBS)'!L32","v":0},{"$f":"+'Schedule IVC (EBS)'!M32","v":0},{"$f":"+'Schedule IVC (EBS)'!N32","v":0},{"$f":"+'Schedule IVC (EBS)'!O32","v":0},{"$f":"+'Schedule IVC (EBS)'!P32","v":0},{"$f":"+'Schedule IVC (EBS)'!Q32","v":0},{"$f":"+'Schedule IVC (EBS)'!R32","v":0},{"$f":"+'Schedule IVC (EBS)'!S32","v":0},{"$f":"+'Schedule IVC (EBS)'!T32","v":0},{"$f":"+'Schedule IVC (EBS)'!U32","v":0},{"$f":"+'Schedule IVC (EBS)'!V32","v":0}]
[]
[null,"(a) TOTAL",null,{"$f":"SUM(D9:D32)","v":0},{"$f":"SUM(E9:E32)","v":0},null,{"$f":"SUM(G9:G32)","v":0},0,0,0,0,0,0,0,0,0,0,0,0,0,0,0,0,0,0,0]
[]
[null,null,null,"TOTAL",null,null,null,"CHARGE"]
[null,"NET LOSS PROVISION BY ",null,"NET","SUM","DIVERSIFICATION","RESERVE","DIVERSIFIED"]
[null,"LINE OF BUSINESS","STATEMENT SOURCE","RESERVE","SQUARED","FACTOR","USED","RESERVE",{"$f":"HYPERLINK(\"#'Zones'!c4\",\"Zone 1\")","v":"Zone 1"},{"$f":"HYPERLINK(\"#'Zones'!c13\",\"Zone 2\")","v":"Zone 2"},{"$f":"HYPERLINK(\"#'Zones'!c18\",\"Zone 3\")","v":"Zone 3"},{"$f":"HYPERLINK(\"#'Zones'!c26\",\"Zone 4\")","v":"Zone 4"},{"$f":"HYPERLINK(\"#'Zones'!c36\",\"Zone 5\")","v":"Zone 5"},{"$f":"HYPERLINK(\"#'Zones'!c46\",\"Zone 6\")","v":"Zone 6"},{"$f":"HYPERLINK(\"#'Zones'!c57\",\"Zone 7\")","v":"Zone 7"},{"$f":"HYPERLINK(\"#'Zones'!c68\",\"Zone 8\")","v":"Zone 8"},{"$f":"HYPERLINK(\"#'Zones'!c76\",\"Zone 9\")","v":"Zone 9"},{"$f":"HYPERLINK(\"#'Zones'!c84\",\"Zone 10\")","v":"Zone 10"},{"$f":"HYPERLINK(\"#'Zones'!c90\",\"Zone 11\")","v":"Zone 11"},{"$f":"HYPERLINK(\"#'Zones'!c94\",\"Zone 12\")","v":"Zone 12"},{"$f":"HYPERLINK(\"#'Zones'!c107\",\"Zone 13\")","v":"Zone 13"},{"$f":"HYPERLINK(\"#'Zones'!c112\",\"Zone 14\")","v":"Zone 14"},{"$f":"HYPERLINK(\"#'Zones'!c116\",\"Zone 15\")","v":"Zone 15"},{"$f":"HYPERLINK(\"#'Zones'!c121\",\"Zone 16\")","v":"Zone 16"},{"$f":"HYPERLINK(\"#'Zones'!c127\",\"Zone 17\")","v":"Zone 17"},{"$f":"HYPERLINK(\"#'Zones'!c133\",\"Zone 18\")","v":"Zone 18"}]
[]
[null,"Property Catastrophe","Schedule III(a), Line (1)",{"$f":"SUM(I40:Z40)","v":0},{"$f":"SUMSQ(I40:Z40)","v":0},{"$f":"(IF(D40>0,E40/D40^2,1))","v":1},{"$f":"D40*(0.75+0.25*F40)","v":0},{"$f":"IF('Schedule IIIA (EBS)'!AB10=\"TRUE\",G40,'Schedule III (EBS)'!F10)","v":0},{"$f":"'Schedule IIIA (EBS)'!E10","v":0},{"$f":"'Schedule IIIA (EBS)'!F10","v":0},{"$f":"'Schedule IIIA (EBS)'!G10","v":0},{"$f":"'Schedule IIIA (EBS)'!H10","v":0},{"$f":"'Schedule IIIA (EBS)'!I10","v":0},{"$f":"'Schedule IIIA (EBS)'!J10","v":0},{"$f":"'Schedule IIIA (EBS)'!K10","v":0},{"$f":"'Schedule IIIA (EBS)'!L10","v":0},{"$f":"'Schedule IIIA (EBS)'!M10","v":0},{"$f":"'Schedule IIIA (EBS)'!N10","v":0},{"$f":"'Schedule IIIA (EBS)'!O10","v":0},{"$f":"'Schedule IIIA (EBS)'!P10","v":0},{"$f":"'Schedule IIIA (EBS)'!Q10","v":0},{"$f":"'Schedule IIIA (EBS)'!R10","v":0},{"$f":"'Schedule IIIA (EBS)'!S10","v":0},{"$f":"'Schedule IIIA (EBS)'!T10","v":0},{"$f":"'Schedule IIIA (EBS)'!U10","v":0},{"$f":"'Schedule IIIA (EBS)'!V10","v":0}]
[null,"Property","Schedule III(a), Line (2)",{"$f":"SUM(I41:Z41)","v":0},{"$f":"SUMSQ(I41:Z41)","v":0},{"$f":"(IF(D41>0,E41/D41^2,1))","v":1},{"$f":"D41*(0.75+0.25*F41)","v":0},{"$f":"IF('Schedule IIIA (EBS)'!AB11=\"TRUE\",G41,'Schedule III (EBS)'!F11)","v":0},{"$f":"'Schedule IIIA (EBS)'!E11","v":0},{"$f":"'Schedule IIIA (EBS)'!F11","v":0},{"$f":"'Schedule IIIA (EBS)'!G11","v":0},{"$f":"'Schedule IIIA (EBS)'!H11","v":0},{"$f":"'Schedule IIIA (EBS)'!I11","v":0},{"$f":"'Schedule IIIA (EBS)'!J11","v":0},{"$f":"'Schedule IIIA (EBS)'!K11","v":0},{"$f":"'Schedule IIIA (EBS)'!L11","v":0},{"$f":"'Schedule IIIA (EBS)'!M11","v":0},{"$f":"'Schedule IIIA (EBS)'!N11","v":0},{"$f":"'Schedule IIIA (EBS)'!O11","v":0},{"$f":"'Schedule IIIA (EBS)'!P11","v":0},{"$f":"'Schedule IIIA (EBS)'!Q11","v":0},{"$f":"'Schedule IIIA (EBS)'!R11","v":0},{"$f":"'Schedule IIIA (EBS)'!S11","v":0},{"$f":"'Schedule IIIA (EBS)'!T11","v":0},{"$f":"'Schedule IIIA (EBS)'!U11","v":0},{"$f":"'Schedule IIIA (EBS)'!V11","v":0}]
[null,"Property Non-Proportional","Schedule III(a), Line (3)",0,0,1,0,{"$f":"IF('Schedule IIIA (EBS)'!AB12=\"TRUE\",G42,'Schedule III (EBS)'!F12)","v":0},{"$f":"'Schedule IIIA (EBS)'!E12","v":0},{"$f":"'Schedule IIIA (EBS)'!F12","v":0},{"$f":"'Schedule IIIA (EBS)'!G12","v":0},{"$f":"'Schedule IIIA (EBS)'!H12","v":0},{"$f":"'Schedule IIIA (EBS)'!I12","v":0},{"$f":"'Schedule IIIA (EBS)'!J12","v":0},{"$f":"'Schedule IIIA (EBS)'!K12","v":0},{"$f":"'Schedule IIIA (EBS)'!L12","v":0},{"$f":"'Schedule IIIA (EBS)'!M12","v":0},{"$f":"'Schedule IIIA (EBS)'!N12","v":0},{"$f":"'Schedule IIIA (EBS)'!O12","v":0},{"$f":"'Schedule IIIA (EBS)'!P12","v":0},{"$f":"'Schedule IIIA (EBS)'!Q12","v":0},{"$f":"'Schedule IIIA (EBS)'!R12","v":0},{"$f":"'Schedule IIIA (EBS)'!S12","v":0},{"$f":"'Schedule IIIA (EBS)'!T12","v":0},{"$f":"'Schedule IIIA (EBS)'!U12","v":0},{"$f":"'Schedule IIIA (EBS)'!V12","v":0}]
[null,"Personal Accident","Schedule III(a), Line (4)",0,0,1,0,{"$f":"IF('Schedule IIIA (EBS)'!AB13=\"TRUE\",G43,'Schedule III (EBS)'!F13)","v":0},{"$f":"'Schedule IIIA (EBS)'!E13","v":0},{"$f":"'Schedule IIIA (EBS)'!F13","v":0},{"$f":"'Schedule IIIA (EBS)'!G13","v":0},{"$f":"'Schedule IIIA (EBS)'!H13","v":0},{"$f":"'Schedule IIIA (EBS)'!I13","v":0},{"$f":"'Schedule IIIA (EBS)'!J13","v":0},{"$f":"'Schedule IIIA (EBS)'!K13","v":0},{"$f":"'Schedule IIIA (EBS)'!L13","v":0},{"$f":"'Schedule IIIA (EBS)'!M13","v":0},{"$f":"'Schedule IIIA (EBS)'!N13","v":0},{"$f":"'Schedule IIIA (EBS)'!O13","v":0},{"$f":"'Schedule IIIA (EBS)'!P13","v":0},{"$f":"'Schedule IIIA (EBS)'!Q13","v":0},{"$f":"'Schedule IIIA (EBS)'!R13","v":0},{"$f":"'Schedule IIIA (EBS)'!S13","v":0},{"$f":"'Schedule IIIA (EBS)'!T13","v":0},{"$f":"'Schedule IIIA (EBS)'!U13","v":0},{"$f":"'Schedule IIIA (EBS)'!V13","v":0}]
[null,"Personal Accident Non-Proportional","Schedule III(a), Line (5)",0,0,1,0,{"$f":"IF('Schedule IIIA (EBS)'!AB14=\"TRUE\",G44,'Schedule III (EBS)'!F14)","v":0},{"$f":"'Schedule IIIA (EBS)'!E14","v":0},{"$f":"'Schedule IIIA (EBS)'!F14","v":0},{"$f":"'Schedule IIIA (EBS)'!G14","v":0},{"$f":"'Schedule IIIA (EBS)'!H14","v":0},{"$f":"'Schedule IIIA (EBS)'!I14","v":0},{"$f":"'Schedule IIIA (EBS)'!J14","v":0},{"$f":"'Schedule IIIA (EBS)'!K14","v":0},{"$f":"'Schedule IIIA (EBS)'!L14","v":0},{"$f":"'Schedule IIIA (EBS)'!M14","v":0},{"$f":"'Schedule IIIA (EBS)'!N14","v":0},{"$f":"'Schedule IIIA (EBS)'!O14","v":0},{"$f":"'Schedule IIIA (EBS)'!P14","v":0},{"$f":"'Schedule IIIA (EBS)'!Q14","v":0},{"$f":"'Schedule IIIA (EBS)'!R14","v":0},{"$f":"'Schedule IIIA (EBS)'!S14","v":0},{"$f":"'Schedule IIIA (EBS)'!T14","v":0},{"$f":"'Schedule IIIA (EBS)'!U14","v":0},{"$f":"'Schedule IIIA (EBS)'!V14","v":0}]
[null,"Aviation","Schedule III(a), Line (6)",0,0,1,0,{"$f":"IF('Schedule IIIA (EBS)'!AB15=\"TRUE\",G45,'Schedule III (EBS)'!F15)","v":0},{"$f":"'Schedule IIIA (EBS)'!E15","v":0},{"$f":"'Schedule IIIA (EBS)'!F15","v":0},{"$f":"'Schedule IIIA (EBS)'!G15","v":0},{"$f":"'Schedule IIIA (EBS)'!H15","v":0},{"$f":"'Schedule IIIA (EBS)'!I15","v":0},{"$f":"'Schedule IIIA (EBS)'!J15","v":0},{"$f":"'Schedule IIIA (EBS)'!K15","v":0},{"$f":"'Schedule IIIA (EBS)'!L15","v":0},{"$f":"'Schedule IIIA (EBS)'!M15","v":0},{"$f":"'Schedule IIIA (EBS)'!N15","v":0},{"$f":"'Schedule IIIA (EBS)'!O15","v":0},{"$f":"'Schedule IIIA (EBS)'!P15","v":0},{"$f":"'Schedule IIIA (EBS)'!Q15","v":0},{"$f":"'Schedule IIIA (EBS)'!R15","v":0},{"$f":"'Schedule IIIA (EBS)'!S15","v":0},{"$f":"'Schedule IIIA (EBS)'!T15","v":0},{"$f":"'Schedule IIIA (EBS)'!U15","v":0},{"$f":"'Schedule IIIA (EBS)'!V15","v":0}]
[null,"Aviation Non-Proportional","Schedule III(a), Line (7)",0,0,1,0,{"$f":"IF('Schedule IIIA (EBS)'!AB16=\"TRUE\",G46,'Schedule III (EBS)'!F16)","v":0},{"$f":"'Schedule IIIA (EBS)'!E16","v":0},{"$f":"'Schedule IIIA (EBS)'!F16","v":0},{"$f":"'Schedule IIIA (EBS)'!G16","v":0},{"$f":"'Schedule IIIA (EBS)'!H16","v":0},{"$f":"'Schedule IIIA (EBS)'!I16","v":0},{"$f":"'Schedule IIIA (EBS)'!J16","v":0},{"$f":"'Schedule IIIA (EBS)'!K16","v":0},{"$f":"'Schedule IIIA (EBS)'!L16","v":0},{"$f":"'Schedule IIIA (EBS)'!M16","v":0},{"$f":"'Schedule IIIA (EBS)'!N16","v":0},{"$f":"'Schedule IIIA (EBS)'!O16","v":0},{"$f":"'Schedule IIIA (EBS)'!P16","v":0},{"$f":"'Schedule IIIA (EBS)'!Q16","v":0},{"$f":"'Schedule IIIA (EBS)'!R16","v":0},{"$f":"'Schedule IIIA (EBS)'!S16","v":0},{"$f":"'Schedule IIIA (EBS)'!T16","v":0},{"$f":"'Schedule IIIA (EBS)'!U16","v":0},{"$f":"'Schedule IIIA (EBS)'!V16","v":0}]
[null,"Credit / Surety","Schedule III(a), Line (8)",0,0,1,0,{"$f":"IF('Schedule IIIA (EBS)'!AB17=\"TRUE\",G47,'Schedule III (EBS)'!F17)","v":0},{"$f":"'Schedule IIIA (EBS)'!E17","v":0},{"$f":"'Schedule IIIA (EBS)'!F17","v":0},{"$f":"'Schedule IIIA (EBS)'!G17","v":0},{"$f":"'Schedule IIIA (EBS)'!H17","v":0},{"$f":"'Schedule IIIA (EBS)'!I17","v":0},{"$f":"'Schedule IIIA (EBS)'!J17","v":0},{"$f":"'Schedule IIIA (EBS)'!K17","v":0},{"$f":"'Schedule IIIA (EBS)'!L17","v":0},{"$f":"'Schedule IIIA (EBS)'!M17","v":0},{"$f":"'Schedule IIIA (EBS)'!N17","v":0},{"$f":"'Schedule IIIA (EBS)'!O17","v":0},{"$f":"'Schedule IIIA (EBS)'!P17","v":0},{"$f":"'Schedule IIIA (EBS)'!Q17","v":0},{"$f":"'Schedule IIIA (EBS)'!R17","v":0},{"$f":"'Schedule IIIA (EBS)'!S17","v":0},{"$f":"'Schedule IIIA (EBS)'!T17","v":0},{"$f":"'Schedule IIIA (EBS)'!U17","v":0},{"$f":"'Schedule IIIA (EBS)'!V17","v":0}]
[null,"Credit / Surety Non-Proportional","Schedule III(a), Line (9)",0,0,1,0,{"$f":"IF('Schedule IIIA (EBS)'!AB18=\"TRUE\",G48,'Schedule III (EBS)'!F18)","v":0},{"$f":"'Schedule IIIA (EBS)'!E18","v":0},{"$f":"'Schedule IIIA (EBS)'!F18","v":0},{"$f":"'Schedule IIIA (EBS)'!G18","v":0},{"$f":"'Schedule IIIA (EBS)'!H18","v":0},{"$f":"'Schedule IIIA (EBS)'!I18","v":0},{"$f":"'Schedule IIIA (EBS)'!J18","v":0},{"$f":"'Schedule IIIA (EBS)'!K18","v":0},{"$f":"'Schedule IIIA (EBS)'!L18","v":0},{"$f":"'Schedule IIIA (EBS)'!M18","v":0},{"$f":"'Schedule IIIA (EBS)'!N18","v":0},{"$f":"'Schedule IIIA (EBS)'!O18","v":0},{"$f":"'Schedule IIIA (EBS)'!P18","v":0},{"$f":"'Schedule IIIA (EBS)'!Q18","v":0},{"$f":"'Schedule IIIA (EBS)'!R18","v":0},{"$f":"'Schedule IIIA (EBS)'!S18","v":0},{"$f":"'Schedule IIIA (EBS)'!T18","v":0},{"$f":"'Schedule IIIA (EBS)'!U18","v":0},{"$f":"'Schedule IIIA (EBS)'!V18","v":0}]
[null,"Energy Offshore / Marine","Schedule III(a), Line (10)",0,0,1,0,{"$f":"IF('Schedule IIIA (EBS)'!AB19=\"TRUE\",G49,'Schedule III (EBS)'!F19)","v":0},{"$f":"'Schedule IIIA (EBS)'!E19","v":0},{"$f":"'Schedule IIIA (EBS)'!F19","v":0},{"$f":"'Schedule IIIA (EBS)'!G19","v":0},{"$f":"'Schedule IIIA (EBS)'!H19","v":0},{"$f":"'Schedule IIIA (EBS)'!I19","v":0},{"$f":"'Schedule IIIA (EBS)'!J19","v":0},{"$f":"'Schedule IIIA (EBS)'!K19","v":0},{"$f":"'Schedule IIIA (EBS)'!L19","v":0},{"$f":"'Schedule IIIA (EBS)'!M19","v":0},{"$f":"'Schedule IIIA (EBS)'!N19","v":0},{"$f":"'Schedule IIIA (EBS)'!O19","v":0},{"$f":"'Schedule IIIA (EBS)'!P19","v":0},{"$f":"'Schedule IIIA (EBS)'!Q19","v":0},{"$f":"'Schedule IIIA (EBS)'!R19","v":0},{"$f":"'Schedule IIIA (EBS)'!S19","v":0},{"$f":"'Schedule IIIA (EBS)'!T19","v":0},{"$f":"'Schedule IIIA (EBS)'!U19","v":0},{"$f":"'Schedule IIIA (EBS)'!V19","v":0}]
[null,"Energy Offshore / Marine Non-Proportional","Schedule III(a), Line (11)",0,0,1,0,{"$f":"IF('Schedule IIIA (EBS)'!AB20=\"TRUE\",G50,'Schedule III (EBS)'!F20)","v":0},{"$f":"'Schedule IIIA (EBS)'!E20","v":0},{"$f":"'Schedule IIIA (EBS)'!F20","v":0},{"$f":"'Schedule IIIA (EBS)'!G20","v":0},{"$f":"'Schedule IIIA (EBS)'!H20","v":0},{"$f":"'Schedule IIIA (EBS)'!I20","v":0},{"$f":"'Schedule IIIA (EBS)'!J20","v":0},{"$f":"'Schedule IIIA (EBS)'!K20","v":0},{"$f":"'Schedule IIIA (EBS)'!L20","v":0},{"$f":"'Schedule IIIA (EBS)'!M20","v":0},{"$f":"'Schedule IIIA (EBS)'!N20","v":0},{"$f":"'Schedule IIIA (EBS)'!O20","v":0},{"$f":"'Schedule IIIA (EBS)'!P20","v":0},{"$f":"'Schedule IIIA (EBS)'!Q20","v":0},{"$f":"'Schedule IIIA (EBS)'!R20","v":0},{"$f":"'Schedule IIIA (EBS)'!S20","v":0},{"$f":"'Schedule IIIA (EBS)'!T20","v":0},{"$f":"'Schedule IIIA (EBS)'!U20","v":0},{"$f":"'Schedule IIIA (EBS)'!V20","v":0}]
[null,"US Casualty","Schedule III(a), Line (12)",0,0,1,0,{"$f":"IF('Schedule IIIA (EBS)'!AB21=\"TRUE\",G51,'Schedule III (EBS)'!F21)","v":0},{"$f":"'Schedule IIIA (EBS)'!E21","v":0},{"$f":"'Schedule IIIA (EBS)'!F21","v":0},{"$f":"'Schedule IIIA (EBS)'!G21","v":0},{"$f":"'Schedule IIIA (EBS)'!H21","v":0},{"$f":"'Schedule IIIA (EBS)'!I21","v":0},{"$f":"'Schedule IIIA (EBS)'!J21","v":0},{"$f":"'Schedule IIIA (EBS)'!K21","v":0},{"$f":"'Schedule IIIA (EBS)'!L21","v":0},{"$f":"'Schedule IIIA (EBS)'!M21","v":0},{"$f":"'Schedule IIIA (EBS)'!N21","v":0},{"$f":"'Schedule IIIA (EBS)'!O21","v":0},{"$f":"'Schedule IIIA (EBS)'!P21","v":0},{"$f":"'Schedule IIIA (EBS)'!Q21","v":0},{"$f":"'Schedule IIIA (EBS)'!R21","v":0},{"$f":"'Schedule IIIA (EBS)'!S21","v":0},{"$f":"'Schedule IIIA (EBS)'!T21","v":0},{"$f":"'Schedule IIIA (EBS)'!U21","v":0},{"$f":"'Schedule IIIA (EBS)'!V21","v":0}]
[null,"US Casualty Non-Proportional","Schedule III(a), Line (13)",0,0,1,0,{"$f":"IF('Schedule IIIA (EBS)'!AB22=\"TRUE\",G52,'Schedule III (EBS)'!F22)","v":0},{"$f":"'Schedule IIIA (EBS)'!E22","v":0},{"$f":"'Schedule IIIA (EBS)'!F22","v":0},{"$f":"'Schedule IIIA (EBS)'!G22","v":0},{"$f":"'Schedule IIIA (EBS)'!H22","v":0},{"$f":"'Schedule IIIA (EBS)'!I22","v":0},{"$f":"'Schedule IIIA (EBS)'!J22","v":0},{"$f":"'Schedule IIIA (EBS)'!K22","v":0},{"$f":"'Schedule IIIA (EBS)'!L22","v":0},{"$f":"'Schedule IIIA (EBS)'!M22","v":0},{"$f":"'Schedule IIIA (EBS)'!N22","v":0},{"$f":"'Schedule IIIA (EBS)'!O22","v":0},{"$f":"'Schedule IIIA (EBS)'!P22","v":0},{"$f":"'Schedule IIIA (EBS)'!Q22","v":0},{"$f":"'Schedule IIIA (EBS)'!R22","v":0},{"$f":"'Schedule IIIA (EBS)'!S22","v":0},{"$f":"'Schedule IIIA (EBS)'!T22","v":0},{"$f":"'Schedule IIIA (EBS)'!U22","v":0},{"$f":"'Schedule IIIA (EBS)'!V22","v":0}]
[null,"US Professional","Schedule III(a), Line (14)",0,0,1,0,{"$f":"IF('Schedule IIIA (EBS)'!AB23=\"TRUE\",G53,'Schedule III (EBS)'!F23)","v":0},{"$f":"'Schedule IIIA (EBS)'!E23","v":0},{"$f":"'Schedule IIIA (EBS)'!F23","v":0},{"$f":"'Schedule IIIA (EBS)'!G23","v":0},{"$f":"'Schedule IIIA (EBS)'!H23","v":0},{"$f":"'Schedule IIIA (EBS)'!I23","v":0},{"$f":"'Schedule IIIA (EBS)'!J23","v":0},{"$f":"'Schedule IIIA (EBS)'!K23","v":0},{"$f":"'Schedule IIIA (EBS)'!L23","v":0},{"$f":"'Schedule IIIA (EBS)'!M23","v":0},{"$f":"'Schedule IIIA (EBS)'!N23","v":0},{"$f":"'Schedule IIIA (EBS)'!O23","v":0},{"$f":"'Schedule IIIA (EBS)'!P23","v":0},{"$f":"'Schedule IIIA (EBS)'!Q23","v":0},{"$f":"'Schedule IIIA (EBS)'!R23","v":0},{"$f":"'Schedule IIIA (EBS)'!S23","v":0},{"$f":"'Schedule IIIA (EBS)'!T23","v":0},{"$f":"'Schedule IIIA (EBS)'!U23","v":0},{"$f":"'Schedule IIIA (EBS)'!V23","v":0}]
[null,"US Professional Non-Proportional","Schedule III(a), Line (15)",0,0,1,0,{"$f":"IF('Schedule IIIA (EBS)'!AB24=\"TRUE\",G54,'Schedule III (EBS)'!F24)","v":0},{"$f":"'Schedule IIIA (EBS)'!E24","v":0},{"$f":"'Schedule IIIA (EBS)'!F24","v":0},{"$f":"'Schedule IIIA (EBS)'!G24","v":0},{"$f":"'Schedule IIIA (EBS)'!H24","v":0},{"$f":"'Schedule IIIA (EBS)'!I24","v":0},{"$f":"'Schedule IIIA (EBS)'!J24","v":0},{"$f":"'Schedule IIIA (EBS)'!K24","v":0},{"$f":"'Schedule IIIA (EBS)'!L24","v":0},{"$f":"'Schedule IIIA (EBS)'!M24","v":0},{"$f":"'Schedule IIIA (EBS)'!N24","v":0},{"$f":"'Schedule IIIA (EBS)'!O24","v":0},{"$f":"'Schedule IIIA (EBS)'!P24","v":0},{"$f":"'Schedule IIIA (EBS)'!Q24","v":0},{"$f":"'Schedule IIIA (EBS)'!R24","v":0},{"$f":"'Schedule IIIA (EBS)'!S24","v":0},{"$f":"'Schedule IIIA (EBS)'!T24","v":0},{"$f":"'Schedule IIIA (EBS)'!U24","v":0},{"$f":"'Schedule IIIA (EBS)'!V24","v":0}]
[null,"US Specialty","Schedule III(a), Line (16)",0,0,1,0,{"$f":"IF('Schedule IIIA (EBS)'!AB25=\"TRUE\",G55,'Schedule III (EBS)'!F25)","v":0},{"$f":"'Schedule IIIA (EBS)'!E25","v":0},{"$f":"'Schedule IIIA (EBS)'!F25","v":0},{"$f":"'Schedule IIIA (EBS)'!G25","v":0},{"$f":"'Schedule IIIA (EBS)'!H25","v":0},{"$f":"'Schedule IIIA (EBS)'!I25","v":0},{"$f":"'Schedule IIIA (EBS)'!J25","v":0},{"$f":"'Schedule IIIA (EBS)'!K25","v":0},{"$f":"'Schedule IIIA (EBS)'!L25","v":0},{"$f":"'Schedule IIIA (EBS)'!M25","v":0},{"$f":"'Schedule IIIA (EBS)'!N25","v":0},{"$f":"'Schedule IIIA (EBS)'!O25","v":0},{"$f":"'Schedule IIIA (EBS)'!P25","v":0},{"$f":"'Schedule IIIA (EBS)'!Q25","v":0},{"$f":"'Schedule IIIA (EBS)'!R25","v":0},{"$f":"'Schedule IIIA (EBS)'!S25","v":0},{"$f":"'Schedule IIIA (EBS)'!T25","v":0},{"$f":"'Schedule IIIA (EBS)'!U25","v":0},{"$f":"'Schedule IIIA (EBS)'!V25","v":0}]
[null,"US Specialty Non-Proportional","Schedule III(a), Line (17)",0,0,1,0,{"$f":"IF('Schedule IIIA (EBS)'!AB26=\"TRUE\",G56,'Schedule III (EBS)'!F26)","v":0},{"$f":"'Schedule IIIA (EBS)'!E26","v":0},{"$f":"'Schedule IIIA (EBS)'!F26","v":0},{"$f":"'Schedule IIIA (EBS)'!G26","v":0},{"$f":"'Schedule IIIA (EBS)'!H26","v":0},{"$f":"'Schedule IIIA (EBS)'!I26","v":0},{"$f":"'Schedule IIIA (EBS)'!J26","v":0},{"$f":"'Schedule IIIA (EBS)'!K26","v":0},{"$f":"'Schedule IIIA (EBS)'!L26","v":0},{"$f":"'Schedule IIIA (EBS)'!M26","v":0},{"$f":"'Schedule IIIA (EBS)'!N26","v":0},{"$f":"'Schedule IIIA (EBS)'!O26","v":0},{"$f":"'Schedule IIIA (EBS)'!P26","v":0},{"$f":"'Schedule IIIA (EBS)'!Q26","v":0},{"$f":"'Schedule IIIA (EBS)'!R26","v":0},{"$f":"'Schedule IIIA (EBS)'!S26","v":0},{"$f":"'Schedule IIIA (EBS)'!T26","v":0},{"$f":"'Schedule IIIA (EBS)'!U26","v":0},{"$f":"'Schedule IIIA (EBS)'!V26","v":0}]
[null,"International Motor","Schedule III(a), Line (18)",0,0,1,0,{"$f":"IF('Schedule IIIA (EBS)'!AB27=\"TRUE\",G57,'Schedule III (EBS)'!F27)","v":0},{"$f":"'Schedule IIIA (EBS)'!E27","v":0},{"$f":"'Schedule IIIA (EBS)'!F27","v":0},{"$f":"'Schedule IIIA (EBS)'!G27","v":0},{"$f":"'Schedule IIIA (EBS)'!H27","v":0},{"$f":"'Schedule IIIA (EBS)'!I27","v":0},{"$f":"'Schedule IIIA (EBS)'!J27","v":0},{"$f":"'Schedule IIIA (EBS)'!K27","v":0},{"$f":"'Schedule IIIA (EBS)'!L27","v":0},{"$f":"'Schedule IIIA (EBS)'!M27","v":0},{"$f":"'Schedule IIIA (EBS)'!N27","v":0},{"$f":"'Schedule IIIA (EBS)'!O27","v":0},{"$f":"'Schedule IIIA (EBS)'!P27","v":0},{"$f":"'Schedule IIIA (EBS)'!Q27","v":0},{"$f":"'Schedule IIIA (EBS)'!R27","v":0},{"$f":"'Schedule IIIA (EBS)'!S27","v":0},{"$f":"'Schedule IIIA (EBS)'!T27","v":0},{"$f":"'Schedule IIIA (EBS)'!U27","v":0},{"$f":"'Schedule IIIA (EBS)'!V27","v":0}]
[null,"International Motor Non-Proportional","Schedule III(a), Line (19)",0,0,1,0,{"$f":"IF('Schedule IIIA (EBS)'!AB28=\"TRUE\",G58,'Schedule III (EBS)'!F28)","v":0},{"$f":"'Schedule IIIA (EBS)'!E28","v":0},{"$f":"'Schedule IIIA (EBS)'!F28","v":0},{"$f":"'Schedule IIIA (EBS)'!G28","v":0},{"$f":"'Schedule IIIA (EBS)'!H28","v":0},{"$f":"'Schedule IIIA (EBS)'!I28","v":0},{"$f":"'Schedule IIIA (EBS)'!J28","v":0},{"$f":"'Schedule IIIA (EBS)'!K28","v":0},{"$f":"'Schedule IIIA (EBS)'!L28","v":0},{"$f":"'Schedule IIIA (EBS)'!M28","v":0},{"$f":"'Schedule IIIA (EBS)'!N28","v":0},{"$f":"'Schedule IIIA (EBS)'!O28","v":0},{"$f":"'Schedule IIIA (EBS)'!P28","v":0},{"$f":"'Schedule IIIA (EBS)'!Q28","v":0},{"$f":"'Schedule IIIA (EBS)'!R28","v":0},{"$f":"'Schedule IIIA (EBS)'!S28","v":0},{"$f":"'Schedule IIIA (EBS)'!T28","v":0},{"$f":"'Schedule IIIA (EBS)'!U28","v":0},{"$f":"'Schedule IIIA (EBS)'!V28","v":0}]
[null,"International Casualty Non-Motor","Schedule III(a), Line (20)",0,0,1,0,{"$f":"IF('Schedule IIIA (EBS)'!AB29=\"TRUE\",G59,'Schedule III (EBS)'!F29)","v":0},{"$f":"'Schedule IIIA (EBS)'!E29","v":0},{"$f":"'Schedule IIIA (EBS)'!F29","v":0},{"$f":"'Schedule IIIA (EBS)'!G29","v":0},{"$f":"'Schedule IIIA (EBS)'!H29","v":0},{"$f":"'Schedule IIIA (EBS)'!I29","v":0},{"$f":"'Schedule IIIA (EBS)'!J29","v":0},{"$f":"'Schedule IIIA (EBS)'!K29","v":0},{"$f":"'Schedule IIIA (EBS)'!L29","v":0},{"$f":"'Schedule IIIA (EBS)'!M29","v":0},{"$f":"'Schedule IIIA (EBS)'!N29","v":0},{"$f":"'Schedule IIIA (EBS)'!O29","v":0},{"$f":"'Schedule IIIA (EBS)'!P29","v":0},{"$f":"'Schedule IIIA (EBS)'!Q29","v":0},{"$f":"'Schedule IIIA (EBS)'!R29","v":0},{"$f":"'Schedule IIIA (EBS)'!S29","v":0},{"$f":"'Schedule IIIA (EBS)'!T29","v":0},{"$f":"'Schedule IIIA (EBS)'!U29","v":0},{"$f":"'Schedule IIIA (EBS)'!V29","v":0}]
[null,"International Casualty Non-Motor Non-Proportional","Schedule III(a), Line (21)",0,0,1,0,{"$f":"IF('Schedule IIIA (EBS)'!AB30=\"TRUE\",G60,'Schedule III (EBS)'!F30)","v":0},{"$f":"'Schedule IIIA (EBS)'!E30","v":0},{"$f":"'Schedule IIIA (EBS)'!F30","v":0},{"$f":"'Schedule IIIA (EBS)'!G30","v":0},{"$f":"'Schedule IIIA (EBS)'!H30","v":0},{"$f":"'Schedule IIIA (EBS)'!I30","v":0},{"$f":"'Schedule IIIA (EBS)'!J30","v":0},{"$f":"'Schedule IIIA (EBS)'!K30","v":0},{"$f":"'Schedule IIIA (EBS)'!L30","v":0},{"$f":"'Schedule IIIA (EBS)'!M30","v":0},{"$f":"'Schedule IIIA (EBS)'!N30","v":0},{"$f":"'Schedule IIIA (EBS)'!O30","v":0},{"$f":"'Schedule IIIA (EBS)'!P30","v":0},{"$f":"'Schedule IIIA (EBS)'!Q30","v":0},{"$f":"'Schedule IIIA (EBS)'!R30","v":0},{"$f":"'Schedule IIIA (EBS)'!S30","v":0},{"$f":"'Schedule IIIA (EBS)'!T30","v":0},{"$f":"'Schedule IIIA (EBS)'!U30","v":0},{"$f":"'Schedule IIIA (EBS)'!V30","v":0}]
[null,"Retro Property","Schedule III(a), Line (22)",0,0,1,0,{"$f":"IF('Schedule IIIA (EBS)'!AB31=\"TRUE\",G61,'Schedule III (EBS)'!F31)","v":0},{"$f":"'Schedule IIIA (EBS)'!E31","v":0},{"$f":"'Schedule IIIA (EBS)'!F31","v":0},{"$f":"'Schedule IIIA (EBS)'!G31","v":0},{"$f":"'Schedule IIIA (EBS)'!H31","v":0},{"$f":"'Schedule IIIA (EBS)'!I31","v":0},{"$f":"'Schedule IIIA (EBS)'!J31","v":0},{"$f":"'Schedule IIIA (EBS)'!K31","v":0},{"$f":"'Schedule IIIA (EBS)'!L31","v":0},{"$f":"'Schedule IIIA (EBS)'!M31","v":0},{"$f":"'Schedule IIIA (EBS)'!N31","v":0},{"$f":"'Schedule IIIA (EBS)'!O31","v":0},{"$f":"'Schedule IIIA (EBS)'!P31","v":0},{"$f":"'Schedule IIIA (EBS)'!Q31","v":0},{"$f":"'Schedule IIIA (EBS)'!R31","v":0},{"$f":"'Schedule IIIA (EBS)'!S31","v":0},{"$f":"'Schedule IIIA (EBS)'!T31","v":0},{"$f":"'Schedule IIIA (EBS)'!U31","v":0},{"$f":"'Schedule IIIA (EBS)'!V31","v":0}]
[null,"Structured / Finite Reinsurance","Schedule III(a), Line (23)",0,0,1,0,{"$f":"IF('Schedule IIIA (EBS)'!AB32=\"TRUE\",G62,'Schedule III (EBS)'!F32)","v":0},{"$f":"'Schedule IIIA (EBS)'!E32","v":0},{"$f":"'Schedule IIIA (EBS)'!F32","v":0},{"$f":"'Schedule IIIA (EBS)'!G32","v":0},{"$f":"'Schedule IIIA (EBS)'!H32","v":0},{"$f":"'Schedule IIIA (EBS)'!I32","v":0},{"$f":"'Schedule IIIA (EBS)'!J32","v":0},{"$f":"'Schedule IIIA (EBS)'!K32","v":0},{"$f":"'Schedule IIIA (EBS)'!L32","v":0},{"$f":"'Schedule IIIA (EBS)'!M32","v":0},{"$f":"'Schedule IIIA (EBS)'!N32","v":0},{"$f":"'Schedule IIIA (EBS)'!O32","v":0},{"$f":"'Schedule IIIA (EBS)'!P32","v":0},{"$f":"'Schedule IIIA (EBS)'!Q32","v":0},{"$f":"'Schedule IIIA (EBS)'!R32","v":0},{"$f":"'Schedule IIIA (EBS)'!S32","v":0},{"$f":"'Schedule IIIA (EBS)'!T32","v":0},{"$f":"'Schedule IIIA (EBS)'!U32","v":0},{"$f":"'Schedule IIIA (EBS)'!V32","v":0}]
[null,"Health","Schedule III(a), Line (24)",0,0,1,0,{"$f":"IF('Schedule IIIA (EBS)'!AB33=\"TRUE\",G63,'Schedule III (EBS)'!F33)","v":0},{"$f":"'Schedule IIIA (EBS)'!E33","v":0},{"$f":"'Schedule IIIA (EBS)'!F33","v":0},{"$f":"'Schedule IIIA (EBS)'!G33","v":0},{"$f":"'Schedule IIIA (EBS)'!H33","v":0},{"$f":"'Schedule IIIA (EBS)'!I33","v":0},{"$f":"'Schedule IIIA (EBS)'!J33","v":0},{"$f":"'Schedule IIIA (EBS)'!K33","v":0},{"$f":"'Schedule IIIA (EBS)'!L33","v":0},{"$f":"'Schedule IIIA (EBS)'!M33","v":0},{"$f":"'Schedule IIIA (EBS)'!N33","v":0},{"$f":"'Schedule IIIA (EBS)'!O33","v":0},{"$f":"'Schedule IIIA (EBS)'!P33","v":0},{"$f":"'Schedule IIIA (EBS)'!Q33","v":0},{"$f":"'Schedule IIIA (EBS)'!R33","v":0},{"$f":"'Schedule IIIA (EBS)'!S33","v":0},{"$f":"'Schedule IIIA (EBS)'!T33","v":0},{"$f":"'Schedule IIIA (EBS)'!U33","v":0},{"$f":"'Schedule IIIA (EBS)'!V33","v":0}]
[]
[null,"(a) TOTAL",null,{"$f":"SUM(D40:D63)","v":0},{"$f":"SUM(E40:E63)","v":0},null,{"$f":"SUM(G40:G63)","v":0},0,0,0,0,0,0,0,0,0,0,0,0,0,0,0,0,0,0,0]

{"sheet":"Geographic Div. (Revised)","index":114,"n_rows":65,"n_cols":26,"rows_kept":65,"cut":false,"hidden":false,"merged":[[2,2,2,3]]}
["GEOGRAPHIC DIVERSIFICATION (REVISED)",null,null,null,null,null,null,null,null,null,null,null,null,null,null,null,null,null,null,null,null,null,null,null,null,{"$f":"HYPERLINK(\"#'Index'!A1\",\"Return to Index\")","v":"Return to Index"}]
[{"$f":"'Company Information'!C7","v":"Enter Company Name"}]
[{"$f":"\"Geographic Diversification\" & \"($\"&IF(CONFIGURATION!$B$12>1,MID(CONFIGURATION!$B$12,2,LEN(CONFIGURATION!$B$12)),\"\")&\")\"","v":"Geographic Diversification($000)"},null,{"$f":"'Company Information'!C3","v":"2019-12-31"}]
[]
[null,null,null,"TOTAL",null,null,null,"CHARGE"]
[null,"NET PREMIUMS EARNED BY ",null,"NET","SUM","DIVERSIFICATION","PREMIUM","DIVERSIFIED"]
[null,"LINE OF BUSINESS","STATEMENT SOURCE","PREMIUM","SQUARED","FACTOR","USED","PREMIUM",{"$f":"HYPERLINK(\"#'Zones'!c4\",\"Zone 1\")","v":"Zone 1"},{"$f":"HYPERLINK(\"#'Zones'!c13\",\"Zone 2\")","v":"Zone 2"},{"$f":"HYPERLINK(\"#'Zones'!c18\",\"Zone 3\")","v":"Zone 3"},{"$f":"HYPERLINK(\"#'Zones'!c26\",\"Zone 4\")","v":"Zone 4"},{"$f":"HYPERLINK(\"#'Zones'!c36\",\"Zone 5\")","v":"Zone 5"},{"$f":"HYPERLINK(\"#'Zones'!c46\",\"Zone 6\")","v":"Zone 6"},{"$f":"HYPERLINK(\"#'Zones'!c57\",\"Zone 7\")","v":"Zone 7"},{"$f":"HYPERLINK(\"#'Zones'!c68\",\"Zone 8\")","v":"Zone 8"},{"$f":"HYPERLINK(\"#'Zones'!c76\",\"Zone 9\")","v":"Zone 9"},{"$f":"HYPERLINK(\"#'Zones'!c84\",\"Zone 10\")","v":"Zone 10"},{"$f":"HYPERLINK(\"#'Zones'!c90\",\"Zone 11\")","v":"Zone 11"},{"$f":"HYPERLINK(\"#'Zones'!c94\",\"Zone 12\")","v":"Zone 12"},{"$f":"HYPERLINK(\"#'Zones'!c107\",\"Zone 13\")","v":"Zone 13"},{"$f":"HYPERLINK(\"#'Zones'!c112\",\"Zone 14\")","v":"Zone 14"},{"$f":"HYPERLINK(\"#'Zones'!c116\",\"Zone 15\")","v":"Zone 15"},{"$f":"HYPERLINK(\"#'Zones'!c121\",\"Zone 16\")","v":"Zone 16"},{"$f":"HYPERLINK(\"#'Zones'!c127\",\"Zone 17\")","v":"Zone 17"},{"$f":"HYPERLINK(\"#'Zones'!c133\",\"Zone 18\")","v":"Zone 18"}]
[]
[null,"Property Catastrophe","Schedule IV(a), Line (1)",{"$f":"SUM(I9:Z9)","v":0},{"$f":"SUMSQ(I9:Z9)","v":0},{"$f":"(IF(D9>0,E9/D9^2,1))","v":1},{"$f":"D9*(0.75+0.25*F9)","v":0},{"$f":"IF('Schedule IVE (EBS)'!AB11=\"True\",G9,'Schedule IVD (EBS)'!O9)","v":0},{"$f":"+'Schedule IVE (EBS)'!E11","v":0},{"$f":"+'Schedule IVE (EBS)'!F11","v":0},{"$f":"+'Schedule IVE (EBS)'!G11","v":0},{"$f":"+'Schedule IVE (EBS)'!H11","v":0},{"$f":"+'Schedule IVE (EBS)'!I11","v":0},{"$f":"+'Schedule IVE (EBS)'!J11","v":0},{"$f":"+'Schedule IVE (EBS)'!K11","v":0},{"$f":"+'Schedule IVE (EBS)'!L11","v":0},{"$f":"+'Schedule IVE (EBS)'!M11","v":0},{"$f":"+'Schedule IVE (EBS)'!N11","v":0},{"$f":"+'Schedule IVE (EBS)'!O11","v":0},{"$f":"+'Schedule IVE (EBS)'!P11","v":0},{"$f":"+'Schedule IVE (EBS)'!Q11","v":0},{"$f":"+'Schedule IVE (EBS)'!R11","v":0},{"$f":"+'Schedule IVE (EBS)'!S11","v":0},{"$f":"+'Schedule IVE (EBS)'!T11","v":0},{"$f":"+'Schedule IVE (EBS)'!U11","v":0},{"$f":"+'Schedule IVE (EBS)'!V11","v":0}]
[null,"Property","Schedule IV(a), Line (2)",{"$f":"SUM(I10:Z10)","v":0},{"$f":"SUMSQ(I10:Z10)","v":0},{"$f":"(IF(D10>0,E10/D10^2,1))","v":1},{"$f":"D10*(0.75+0.25*F10)","v":0},{"$f":"IF('Schedule IVE (EBS)'!AB12=\"True\",G10,'Schedule IVD (EBS)'!O10)","v":0},{"$f":"+'Schedule IVE (EBS)'!E12","v":0},{"$f":"+'Schedule IVE (EBS)'!F12","v":0},{"$f":"+'Schedule IVE (EBS)'!G12","v":0},{"$f":"+'Schedule IVE (EBS)'!H12","v":0},{"$f":"+'Schedule IVE (EBS)'!I12","v":0},{"$f":"+'Schedule IVE (EBS)'!J12","v":0},{"$f":"+'Schedule IVE (EBS)'!K12","v":0},{"$f":"+'Schedule IVE (EBS)'!L12","v":0},{"$f":"+'Schedule IVE (EBS)'!M12","v":0},{"$f":"+'Schedule IVE (EBS)'!N12","v":0},{"$f":"+'Schedule IVE (EBS)'!O12","v":0},{"$f":"+'Schedule IVE (EBS)'!P12","v":0},{"$f":"+'Schedule IVE (EBS)'!Q12","v":0},{"$f":"+'Schedule IVE (EBS)'!R12","v":0},{"$f":"+'Schedule IVE (EBS)'!S12","v":0},{"$f":"+'Schedule IVE (EBS)'!T12","v":0},{"$f":"+'Schedule IVE (EBS)'!U12","v":0},{"$f":"+'Schedule IVE (EBS)'!V12","v":0}]
[null,"Property Non-Proportional","Schedule IV(a), Line (3)",0,0,1,0,{"$f":"IF('Schedule IVE (EBS)'!AB13=\"True\",G11,'Schedule IVD (EBS)'!O11)","v":0},{"$f":"+'Schedule IVE (EBS)'!E13","v":0},{"$f":"+'Schedule IVE (EBS)'!F13","v":0},{"$f":"+'Schedule IVE (EBS)'!G13","v":0},{"$f":"+'Schedule IVE (EBS)'!H13","v":0},{"$f":"+'Schedule IVE (EBS)'!I13","v":0},{"$f":"+'Schedule IVE (EBS)'!J13","v":0},{"$f":"+'Schedule IVE (EBS)'!K13","v":0},{"$f":"+'Schedule IVE (EBS)'!L13","v":0},{"$f":"+'Schedule IVE (EBS)'!M13","v":0},{"$f":"+'Schedule IVE (EBS)'!N13","v":0},{"$f":"+'Schedule IVE (EBS)'!O13","v":0},{"$f":"+'Schedule IVE (EBS)'!P13","v":0},{"$f":"+'Schedule IVE (EBS)'!Q13","v":0},{"$f":"+'Schedule IVE (EBS)'!R13","v":0},{"$f":"+'Schedule IVE (EBS)'!S13","v":0},{"$f":"+'Schedule IVE (EBS)'!T13","v":0},{"$f":"+'Schedule IVE (EBS)'!U13","v":0},{"$f":"+'Schedule IVE (EBS)'!V13","v":0}]
[null,"Personal Accident","Schedule IV(a), Line (4)",0,0,1,0,{"$f":"IF('Schedule IVE (EBS)'!AB14=\"True\",G12,'Schedule IVD (EBS)'!O12)","v":0},{"$f":"+'Schedule IVE (EBS)'!E14","v":0},{"$f":"+'Schedule IVE (EBS)'!F14","v":0},{"$f":"+'Schedule IVE (EBS)'!G14","v":0},{"$f":"+'Schedule IVE (EBS)'!H14","v":0},{"$f":"+'Schedule IVE (EBS)'!I14","v":0},{"$f":"+'Schedule IVE (EBS)'!J14","v":0},{"$f":"+'Schedule IVE (EBS)'!K14","v":0},{"$f":"+'Schedule IVE (EBS)'!L14","v":0},{"$f":"+'Schedule IVE (EBS)'!M14","v":0},{"$f":"+'Schedule IVE (EBS)'!N14","v":0},{"$f":"+'Schedule IVE (EBS)'!O14","v":0},{"$f":"+'Schedule IVE (EBS)'!P14","v":0},{"$f":"+'Schedule IVE (EBS)'!Q14","v":0},{"$f":"+'Schedule IVE (EBS)'!R14","v":0},{"$f":"+'Schedule IVE (EBS)'!S14","v":0},{"$f":"+'Schedule IVE (EBS)'!T14","v":0},{"$f":"+'Schedule IVE (EBS)'!U14","v":0},{"$f":"+'Schedule IVE (EBS)'!V14","v":0}]
[null,"Personal Accident Non-Proportional","Schedule IV(a), Line (5)",0,0,1,0,{"$f":"IF('Schedule IVE (EBS)'!AB15=\"True\",G13,'Schedule IVD (EBS)'!O13)","v":0},{"$f":"+'Schedule IVE (EBS)'!E15","v":0},{"$f":"+'Schedule IVE (EBS)'!F15","v":0},{"$f":"+'Schedule IVE (EBS)'!G15","v":0},{"$f":"+'Schedule IVE (EBS)'!H15","v":0},{"$f":"+'Schedule IVE (EBS)'!I15","v":0},{"$f":"+'Schedule IVE (EBS)'!J15","v":0},{"$f":"+'Schedule IVE (EBS)'!K15","v":0},{"$f":"+'Schedule IVE (EBS)'!L15","v":0},{"$f":"+'Schedule IVE (EBS)'!M15","v":0},{"$f":"+'Schedule IVE (EBS)'!N15","v":0},{"$f":"+'Schedule IVE (EBS)'!O15","v":0},{"$f":"+'Schedule IVE (EBS)'!P15","v":0},{"$f":"+'Schedule IVE (EBS)'!Q15","v":0},{"$f":"+'Schedule IVE (EBS)'!R15","v":0},{"$f":"+'Schedule IVE (EBS)'!S15","v":0},{"$f":"+'Schedule IVE (EBS)'!T15","v":0},{"$f":"+'Schedule IVE (EBS)'!U15","v":0},{"$f":"+'Schedule IVE (EBS)'!V15","v":0}]
[null,"Aviation","Schedule IV(a), Line (6)",0,0,1,0,{"$f":"IF('Schedule IVE (EBS)'!AB16=\"True\",G14,'Schedule IVD (EBS)'!O14)","v":0},{"$f":"+'Schedule IVE (EBS)'!E16","v":0},{"$f":"+'Schedule IVE (EBS)'!F16","v":0},{"$f":"+'Schedule IVE (EBS)'!G16","v":0},{"$f":"+'Schedule IVE (EBS)'!H16","v":0},{"$f":"+'Schedule IVE (EBS)'!I16","v":0},{"$f":"+'Schedule IVE (EBS)'!J16","v":0},{"$f":"+'Schedule IVE (EBS)'!K16","v":0},{"$f":"+'Schedule IVE (EBS)'!L16","v":0},{"$f":"+'Schedule IVE (EBS)'!M16","v":0},{"$f":"+'Schedule IVE (EBS)'!N16","v":0},{"$f":"+'Schedule IVE (EBS)'!O16","v":0},{"$f":"+'Schedule IVE (EBS)'!P16","v":0},{"$f":"+'Schedule IVE (EBS)'!Q16","v":0},{"$f":"+'Schedule IVE (EBS)'!R16","v":0},{"$f":"+'Schedule IVE (EBS)'!S16","v":0},{"$f":"+'Schedule IVE (EBS)'!T16","v":0},{"$f":"+'Schedule IVE (EBS)'!U16","v":0},{"$f":"+'Schedule IVE (EBS)'!V16","v":0}]
[null,"Aviation Non-Proportional","Schedule IV(a), Line (7)",0,0,1,0,{"$f":"IF('Schedule IVE (EBS)'!AB17=\"True\",G15,'Schedule IVD (EBS)'!O15)","v":0},{"$f":"+'Schedule IVE (EBS)'!E17","v":0},{"$f":"+'Schedule IVE (EBS)'!F17","v":0},{"$f":"+'Schedule IVE (EBS)'!G17","v":0},{"$f":"+'Schedule IVE (EBS)'!H17","v":0},{"$f":"+'Schedule IVE (EBS)'!I17","v":0},{"$f":"+'Schedule IVE (EBS)'!J17","v":0},{"$f":"+'Schedule IVE (EBS)'!K17","v":0},{"$f":"+'Schedule IVE (EBS)'!L17","v":0},{"$f":"+'Schedule IVE (EBS)'!M17","v":0},{"$f":"+'Schedule IVE (EBS)'!N17","v":0},{"$f":"+'Schedule IVE (EBS)'!O17","v":0},{"$f":"+'Schedule IVE (EBS)'!P17","v":0},{"$f":"+'Schedule IVE (EBS)'!Q17","v":0},{"$f":"+'Schedule IVE (EBS)'!R17","v":0},{"$f":"+'Schedule IVE (EBS)'!S17","v":0},{"$f":"+'Schedule IVE (EBS)'!T17","v":0},{"$f":"+'Schedule IVE (EBS)'!U17","v":0},{"$f":"+'Schedule IVE (EBS)'!V17","v":0}]
[null,"Credit / Surety","Schedule IV(a), Line (8)",0,0,1,0,{"$f":"IF('Schedule IVE (EBS)'!AB18=\"True\",G16,'Schedule IVD (EBS)'!O16)","v":0},{"$f":"+'Schedule IVE (EBS)'!E18","v":0},{"$f":"+'Schedule IVE (EBS)'!F18","v":0},{"$f":"+'Schedule IVE (EBS)'!G18","v":0},{"$f":"+'Schedule IVE (EBS)'!H18","v":0},{"$f":"+'Schedule IVE (EBS)'!I18","v":0},{"$f":"+'Schedule IVE (EBS)'!J18","v":0},{"$f":"+'Schedule IVE (EBS)'!K18","v":0},{"$f":"+'Schedule IVE (EBS)'!L18","v":0},{"$f":"+'Schedule IVE (EBS)'!M18","v":0},{"$f":"+'Schedule IVE (EBS)'!N18","v":0},{"$f":"+'Schedule IVE (EBS)'!O18","v":0},{"$f":"+'Schedule IVE (EBS)'!P18","v":0},{"$f":"+'Schedule IVE (EBS)'!Q18","v":0},{"$f":"+'Schedule IVE (EBS)'!R18","v":0},{"$f":"+'Schedule IVE (EBS)'!S18","v":0},{"$f":"+'Schedule IVE (EBS)'!T18","v":0},{"$f":"+'Schedule IVE (EBS)'!U18","v":0},{"$f":"+'Schedule IVE (EBS)'!V18","v":0}]
[null,"Credit / Surety Non-Proportional","Schedule IV(a), Line (9)",0,0,1,0,{"$f":"IF('Schedule IVE (EBS)'!AB19=\"True\",G17,'Schedule IVD (EBS)'!O17)","v":0},{"$f":"+'Schedule IVE (EBS)'!E19","v":0},{"$f":"+'Schedule IVE (EBS)'!F19","v":0},{"$f":"+'Schedule IVE (EBS)'!G19","v":0},{"$f":"+'Schedule IVE (EBS)'!H19","v":0},{"$f":"+'Schedule IVE (EBS)'!I19","v":0},{"$f":"+'Schedule IVE (EBS)'!J19","v":0},{"$f":"+'Schedule IVE (EBS)'!K19","v":0},{"$f":"+'Schedule IVE (EBS)'!L19","v":0},{"$f":"+'Schedule IVE (EBS)'!M19","v":0},{"$f":"+'Schedule IVE (EBS)'!N19","v":0},{"$f":"+'Schedule IVE (EBS)'!O19","v":0},{"$f":"+'Schedule IVE (EBS)'!P19","v":0},{"$f":"+'Schedule IVE (EBS)'!Q19","v":0},{"$f":"+'Schedule IVE (EBS)'!R19","v":0},{"$f":"+'Schedule IVE (EBS)'!S19","v":0},{"$f":"+'Schedule IVE (EBS)'!T19","v":0},{"$f":"+'Schedule IVE (EBS)'!U19","v":0},{"$f":"+'Schedule IVE (EBS)'!V19","v":0}]
[null,"Energy Offshore / Marine","Schedule IV(a), Line (10)",0,0,1,0,{"$f":"IF('Schedule IVE (EBS)'!AB20=\"True\",G18,'Schedule IVD (EBS)'!O18)","v":0},{"$f":"+'Schedule IVE (EBS)'!E20","v":0},{"$f":"+'Schedule IVE (EBS)'!F20","v":0},{"$f":"+'Schedule IVE (EBS)'!G20","v":0},{"$f":"+'Schedule IVE (EBS)'!H20","v":0},{"$f":"+'Schedule IVE (EBS)'!I20","v":0},{"$f":"+'Schedule IVE (EBS)'!J20","v":0},{"$f":"+'Schedule IVE (EBS)'!K20","v":0},{"$f":"+'Schedule IVE (EBS)'!L20","v":0},{"$f":"+'Schedule IVE (EBS)'!M20","v":0},{"$f":"+'Schedule IVE (EBS)'!N20","v":0},{"$f":"+'Schedule IVE (EBS)'!O20","v":0},{"$f":"+'Schedule IVE (EBS)'!P20","v":0},{"$f":"+'Schedule IVE (EBS)'!Q20","v":0},{"$f":"+'Schedule IVE (EBS)'!R20","v":0},{"$f":"+'Schedule IVE (EBS)'!S20","v":0},{"$f":"+'Schedule IVE (EBS)'!T20","v":0},{"$f":"+'Schedule IVE (EBS)'!U20","v":0},{"$f":"+'Schedule IVE (EBS)'!V20","v":0}]
[null,"Energy Offshore / Marine Non-Proportional","Schedule IV(a), Line (11)",0,0,1,0,{"$f":"IF('Schedule IVE (EBS)'!AB21=\"True\",G19,'Schedule IVD (EBS)'!O19)","v":0},{"$f":"+'Schedule IVE (EBS)'!E21","v":0},{"$f":"+'Schedule IVE (EBS)'!F21","v":0},{"$f":"+'Schedule IVE (EBS)'!G21","v":0},{"$f":"+'Schedule IVE (EBS)'!H21","v":0},{"$f":"+'Schedule IVE (EBS)'!I21","v":0},{"$f":"+'Schedule IVE (EBS)'!J21","v":0},{"$f":"+'Schedule IVE (EBS)'!K21","v":0},{"$f":"+'Schedule IVE (EBS)'!L21","v":0},{"$f":"+'Schedule IVE (EBS)'!M21","v":0},{"$f":"+'Schedule IVE (EBS)'!N21","v":0},{"$f":"+'Schedule IVE (EBS)'!O21","v":0},{"$f":"+'Schedule IVE (EBS)'!P21","v":0},{"$f":"+'Schedule IVE (EBS)'!Q21","v":0},{"$f":"+'Schedule IVE (EBS)'!R21","v":0},{"$f":"+'Schedule IVE (EBS)'!S21","v":0},{"$f":"+'Schedule IVE (EBS)'!T21","v":0},{"$f":"+'Schedule IVE (EBS)'!U21","v":0},{"$f":"+'Schedule IVE (EBS)'!V21","v":0}]
[null,"US Casualty","Schedule IV(a), Line (12)",0,0,1,0,{"$f":"IF('Schedule IVE (EBS)'!AB22=\"True\",G20,'Schedule IVD (EBS)'!O20)","v":0},{"$f":"+'Schedule IVE (EBS)'!E22","v":0},{"$f":"+'Schedule IVE (EBS)'!F22","v":0},{"$f":"+'Schedule IVE (EBS)'!G22","v":0},{"$f":"+'Schedule IVE (EBS)'!H22","v":0},{"$f":"+'Schedule IVE (EBS)'!I22","v":0},{"$f":"+'Schedule IVE (EBS)'!J22","v":0},{"$f":"+'Schedule IVE (EBS)'!K22","v":0},{"$f":"+'Schedule IVE (EBS)'!L22","v":0},{"$f":"+'Schedule IVE (EBS)'!M22","v":0},{"$f":"+'Schedule IVE (EBS)'!N22","v":0},{"$f":"+'Schedule IVE (EBS)'!O22","v":0},{"$f":"+'Schedule IVE (EBS)'!P22","v":0},{"$f":"+'Schedule IVE (EBS)'!Q22","v":0},{"$f":"+'Schedule IVE (EBS)'!R22","v":0},{"$f":"+'Schedule IVE (EBS)'!S22","v":0},{"$f":"+'Schedule IVE (EBS)'!T22","v":0},{"$f":"+'Schedule IVE (EBS)'!U22","v":0},{"$f":"+'Schedule IVE (EBS)'!V22","v":0}]
[null,"US Casualty Non-Proportional","Schedule IV(a), Line (13)",0,0,1,0,{"$f":"IF('Schedule IVE (EBS)'!AB23=\"True\",G21,'Schedule IVD (EBS)'!O21)","v":0},{"$f":"+'Schedule IVE (EBS)'!E23","v":0},{"$f":"+'Schedule IVE (EBS)'!F23","v":0},{"$f":"+'Schedule IVE (EBS)'!G23","v":0},{"$f":"+'Schedule IVE (EBS)'!H23","v":0},{"$f":"+'Schedule IVE (EBS)'!I23","v":0},{"$f":"+'Schedule IVE (EBS)'!J23","v":0},{"$f":"+'Schedule IVE (EBS)'!K23","v":0},{"$f":"+'Schedule IVE (EBS)'!L23","v":0},{"$f":"+'Schedule IVE (EBS)'!M23","v":0},{"$f":"+'Schedule IVE (EBS)'!N23","v":0},{"$f":"+'Schedule IVE (EBS)'!O23","v":0},{"$f":"+'Schedule IVE (EBS)'!P23","v":0},{"$f":"+'Schedule IVE (EBS)'!Q23","v":0},{"$f":"+'Schedule IVE (EBS)'!R23","v":0},{"$f":"+'Schedule IVE (EBS)'!S23","v":0},{"$f":"+'Schedule IVE (EBS)'!T23","v":0},{"$f":"+'Schedule IVE (EBS)'!U23","v":0},{"$f":"+'Schedule IVE (EBS)'!V23","v":0}]
[null,"US Professional","Schedule IV(a), Line (14)",0,0,1,0,{"$f":"IF('Schedule IVE (EBS)'!AB24=\"True\",G22,'Schedule IVD (EBS)'!O22)","v":0},{"$f":"+'Schedule IVE (EBS)'!E24","v":0},{"$f":"+'Schedule IVE (EBS)'!F24","v":0},{"$f":"+'Schedule IVE (EBS)'!G24","v":0},{"$f":"+'Schedule IVE (EBS)'!H24","v":0},{"$f":"+'Schedule IVE (EBS)'!I24","v":0},{"$f":"+'Schedule IVE (EBS)'!J24","v":0},{"$f":"+'Schedule IVE (EBS)'!K24","v":0},{"$f":"+'Schedule IVE (EBS)'!L24","v":0},{"$f":"+'Schedule IVE (EBS)'!M24","v":0},{"$f":"+'Schedule IVE (EBS)'!N24","v":0},{"$f":"+'Schedule IVE (EBS)'!O24","v":0},{"$f":"+'Schedule IVE (EBS)'!P24","v":0},{"$f":"+'Schedule IVE (EBS)'!Q24","v":0},{"$f":"+'Schedule IVE (EBS)'!R24","v":0},{"$f":"+'Schedule IVE (EBS)'!S24","v":0},{"$f":"+'Schedule IVE (EBS)'!T24","v":0},{"$f":"+'Schedule IVE (EBS)'!U24","v":0},{"$f":"+'Schedule IVE (EBS)'!V24","v":0}]
[null,"US Professional Non-Proportional","Schedule IV(a), Line (15)",0,0,1,0,{"$f":"IF('Schedule IVE (EBS)'!AB25=\"True\",G23,'Schedule IVD (EBS)'!O23)","v":0},{"$f":"+'Schedule IVE (EBS)'!E25","v":0},{"$f":"+'Schedule IVE (EBS)'!F25","v":0},{"$f":"+'Schedule IVE (EBS)'!G25","v":0},{"$f":"+'Schedule IVE (EBS)'!H25","v":0},{"$f":"+'Schedule IVE (EBS)'!I25","v":0},{"$f":"+'Schedule IVE (EBS)'!J25","v":0},{"$f":"+'Schedule IVE (EBS)'!K25","v":0},{"$f":"+'Schedule IVE (EBS)'!L25","v":0},{"$f":"+'Schedule IVE (EBS)'!M25","v":0},{"$f":"+'Schedule IVE (EBS)'!N25","v":0},{"$f":"+'Schedule IVE (EBS)'!O25","v":0},{"$f":"+'Schedule IVE (EBS)'!P25","v":0},{"$f":"+'Schedule IVE (EBS)'!Q25","v":0},{"$f":"+'Schedule IVE (EBS)'!R25","v":0},{"$f":"+'Schedule IVE (EBS)'!S25","v":0},{"$f":"+'Schedule IVE (EBS)'!T25","v":0},{"$f":"+'Schedule IVE (EBS)'!U25","v":0},{"$f":"+'Schedule IVE (EBS)'!V25","v":0}]
[null,"US Specialty","Schedule IV(a), Line (16)",0,0,1,0,{"$f":"IF('Schedule IVE (EBS)'!AB26=\"True\",G24,'Schedule IVD (EBS)'!O24)","v":0},{"$f":"+'Schedule IVE (EBS)'!E26","v":0},{"$f":"+'Schedule IVE (EBS)'!F26","v":0},{"$f":"+'Schedule IVE (EBS)'!G26","v":0},{"$f":"+'Schedule IVE (EBS)'!H26","v":0},{"$f":"+'Schedule IVE (EBS)'!I26","v":0},{"$f":"+'Schedule IVE (EBS)'!J26","v":0},{"$f":"+'Schedule IVE (EBS)'!K26","v":0},{"$f":"+'Schedule IVE (EBS)'!L26","v":0},{"$f":"+'Schedule IVE (EBS)'!M26","v":0},{"$f":"+'Schedule IVE (EBS)'!N26","v":0},{"$f":"+'Schedule IVE (EBS)'!O26","v":0},{"$f":"+'Schedule IVE (EBS)'!P26","v":0},{"$f":"+'Schedule IVE (EBS)'!Q26","v":0},{"$f":"+'Schedule IVE (EBS)'!R26","v":0},{"$f":"+'Schedule IVE (EBS)'!S26","v":0},{"$f":"+'Schedule IVE (EBS)'!T26","v":0},{"$f":"+'Schedule IVE (EBS)'!U26","v":0},{"$f":"+'Schedule IVE (EBS)'!V26","v":0}]
[null,"US Specialty Non-Proportional","Schedule IV(a), Line (17)",0,0,1,0,{"$f":"IF('Schedule IVE (EBS)'!AB27=\"True\",G25,'Schedule IVD (EBS)'!O25)","v":0},{"$f":"+'Schedule IVE (EBS)'!E27","v":0},{"$f":"+'Schedule IVE (EBS)'!F27","v":0},{"$f":"+'Schedule IVE (EBS)'!G27","v":0},{"$f":"+'Schedule IVE (EBS)'!H27","v":0},{"$f":"+'Schedule IVE (EBS)'!I27","v":0},{"$f":"+'Schedule IVE (EBS)'!J27","v":0},{"$f":"+'Schedule IVE (EBS)'!K27","v":0},{"$f":"+'Schedule IVE (EBS)'!L27","v":0},{"$f":"+'Schedule IVE (EBS)'!M27","v":0},{"$f":"+'Schedule IVE (EBS)'!N27","v":0},{"$f":"+'Schedule IVE (EBS)'!O27","v":0},{"$f":"+'Schedule IVE (EBS)'!P27","v":0},{"$f":"+'Schedule IVE (EBS)'!Q27","v":0},{"$f":"+'Schedule IVE (EBS)'!R27","v":0},{"$f":"+'Schedule IVE (EBS)'!S27","v":0},{"$f":"+'Schedule IVE (EBS)'!T27","v":0},{"$f":"+'Schedule IVE (EBS)'!U27","v":0},{"$f":"+'Schedule IVE (EBS)'!V27","v":0}]
[null,"International Motor","Schedule IV(a), Line (18)",0,0,1,0,{"$f":"IF('Schedule IVE (EBS)'!AB28=\"True\",G26,'Schedule IVD (EBS)'!O26)","v":0},{"$f":"+'Schedule IVE (EBS)'!E28","v":0},{"$f":"+'Schedule IVE (EBS)'!F28","v":0},{"$f":"+'Schedule IVE (EBS)'!G28","v":0},{"$f":"+'Schedule IVE (EBS)'!H28","v":0},{"$f":"+'Schedule IVE (EBS)'!I28","v":0},{"$f":"+'Schedule IVE (EBS)'!J28","v":0},{"$f":"+'Schedule IVE (EBS)'!K28","v":0},{"$f":"+'Schedule IVE (EBS)'!L28","v":0},{"$f":"+'Schedule IVE (EBS)'!M28","v":0},{"$f":"+'Schedule IVE (EBS)'!N28","v":0},{"$f":"+'Schedule IVE (EBS)'!O28","v":0},{"$f":"+'Schedule IVE (EBS)'!P28","v":0},{"$f":"+'Schedule IVE (EBS)'!Q28","v":0},{"$f":"+'Schedule IVE (EBS)'!R28","v":0},{"$f":"+'Schedule IVE (EBS)'!S28","v":0},{"$f":"+'Schedule IVE (EBS)'!T28","v":0},{"$f":"+'Schedule IVE (EBS)'!U28","v":0},{"$f":"+'Schedule IVE (EBS)'!V28","v":0}]
[null,"International Motor Non-Proportional","Schedule IV(a), Line (19)",0,0,1,0,{"$f":"IF('Schedule IVE (EBS)'!AB29=\"True\",G27,'Schedule IVD (EBS)'!O27)","v":0},{"$f":"+'Schedule IVE (EBS)'!E29","v":0},{"$f":"+'Schedule IVE (EBS)'!F29","v":0},{"$f":"+'Schedule IVE (EBS)'!G29","v":0},{"$f":"+'Schedule IVE (EBS)'!H29","v":0},{"$f":"+'Schedule IVE (EBS)'!I29","v":0},{"$f":"+'Schedule IVE (EBS)'!J29","v":0},{"$f":"+'Schedule IVE (EBS)'!K29","v":0},{"$f":"+'Schedule IVE (EBS)'!L29","v":0},{"$f":"+'Schedule IVE (EBS)'!M29","v":0},{"$f":"+'Schedule IVE (EBS)'!N29","v":0},{"$f":"+'Schedule IVE (EBS)'!O29","v":0},{"$f":"+'Schedule IVE (EBS)'!P29","v":0},{"$f":"+'Schedule IVE (EBS)'!Q29","v":0},{"$f":"+'Schedule IVE (EBS)'!R29","v":0},{"$f":"+'Schedule IVE (EBS)'!S29","v":0},{"$f":"+'Schedule IVE (EBS)'!T29","v":0},{"$f":"+'Schedule IVE (EBS)'!U29","v":0},{"$f":"+'Schedule IVE (EBS)'!V29","v":0}]
[null,"International Casualty Non-Motor","Schedule IV(a), Line (20)",0,0,1,0,{"$f":"IF('Schedule IVE (EBS)'!AB30=\"True\",G28,'Schedule IVD (EBS)'!O28)","v":0},{"$f":"+'Schedule IVE (EBS)'!E30","v":0},{"$f":"+'Schedule IVE (EBS)'!F30","v":0},{"$f":"+'Schedule IVE (EBS)'!G30","v":0},{"$f":"+'Schedule IVE (EBS)'!H30","v":0},{"$f":"+'Schedule IVE (EBS)'!I30","v":0},{"$f":"+'Schedule IVE (EBS)'!J30","v":0},{"$f":"+'Schedule IVE (EBS)'!K30","v":0},{"$f":"+'Schedule IVE (EBS)'!L30","v":0},{"$f":"+'Schedule IVE (EBS)'!M30","v":0},{"$f":"+'Schedule IVE (EBS)'!N30","v":0},{"$f":"+'Schedule IVE (EBS)'!O30","v":0},{"$f":"+'Schedule IVE (EBS)'!P30","v":0},{"$f":"+'Schedule IVE (EBS)'!Q30","v":0},{"$f":"+'Schedule IVE (EBS)'!R30","v":0},{"$f":"+'Schedule IVE (EBS)'!S30","v":0},{"$f":"+'Schedule IVE (EBS)'!T30","v":0},{"$f":"+'Schedule IVE (EBS)'!U30","v":0},{"$f":"+'Schedule IVE (EBS)'!V30","v":0}]
[null,"International Casualty Non-Motor Non-Proportional","Schedule IV(a), Line (21)",0,0,1,0,{"$f":"IF('Schedule IVE (EBS)'!AB31=\"True\",G29,'Schedule IVD (EBS)'!O29)","v":0},{"$f":"+'Schedule IVE (EBS)'!E31","v":0},{"$f":"+'Schedule IVE (EBS)'!F31","v":0},{"$f":"+'Schedule IVE (EBS)'!G31","v":0},{"$f":"+'Schedule IVE (EBS)'!H31","v":0},{"$f":"+'Schedule IVE (EBS)'!I31","v":0},{"$f":"+'Schedule IVE (EBS)'!J31","v":0},{"$f":"+'Schedule IVE (EBS)'!K31","v":0},{"$f":"+'Schedule IVE (EBS)'!L31","v":0},{"$f":"+'Schedule IVE (EBS)'!M31","v":0},{"$f":"+'Schedule IVE (EBS)'!N31","v":0},{"$f":"+'Schedule IVE (EBS)'!O31","v":0},{"$f":"+'Schedule IVE (EBS)'!P31","v":0},{"$f":"+'Schedule IVE (EBS)'!Q31","v":0},{"$f":"+'Schedule IVE (EBS)'!R31","v":0},{"$f":"+'Schedule IVE (EBS)'!S31","v":0},{"$f":"+'Schedule IVE (EBS)'!T31","v":0},{"$f":"+'Schedule IVE (EBS)'!U31","v":0},{"$f":"+'Schedule IVE (EBS)'!V31","v":0}]
[null,"Retro Property","Schedule IV(a), Line (22)",0,0,1,0,{"$f":"IF('Schedule IVE (EBS)'!AB32=\"True\",G30,'Schedule IVD (EBS)'!O30)","v":0},{"$f":"+'Schedule IVE (EBS)'!E32","v":0},{"$f":"+'Schedule IVE (EBS)'!F32","v":0},{"$f":"+'Schedule IVE (EBS)'!G32","v":0},{"$f":"+'Schedule IVE (EBS)'!H32","v":0},{"$f":"+'Schedule IVE (EBS)'!I32","v":0},{"$f":"+'Schedule IVE (EBS)'!J32","v":0},{"$f":"+'Schedule IVE (EBS)'!K32","v":0},{"$f":"+'Schedule IVE (EBS)'!L32","v":0},{"$f":"+'Schedule IVE (EBS)'!M32","v":0},{"$f":"+'Schedule IVE (EBS)'!N32","v":0},{"$f":"+'Schedule IVE (EBS)'!O32","v":0},{"$f":"+'Schedule IVE (EBS)'!P32","v":0},{"$f":"+'Schedule IVE (EBS)'!Q32","v":0},{"$f":"+'Schedule IVE (EBS)'!R32","v":0},{"$f":"+'Schedule IVE (EBS)'!S32","v":0},{"$f":"+'Schedule IVE (EBS)'!T32","v":0},{"$f":"+'Schedule IVE (EBS)'!U32","v":0},{"$f":"+'Schedule IVE (EBS)'!V32","v":0}]
[null,"Structured / Finite Reinsurance","Schedule IV(a), Line (23)",0,0,1,0,{"$f":"IF('Schedule IVE (EBS)'!AB33=\"True\",G31,'Schedule IVD (EBS)'!O31)","v":0},{"$f":"+'Schedule IVE (EBS)'!E33","v":0},{"$f":"+'Schedule IVE (EBS)'!F33","v":0},{"$f":"+'Schedule IVE (EBS)'!G33","v":0},{"$f":"+'Schedule IVE (EBS)'!H33","v":0},{"$f":"+'Schedule IVE (EBS)'!I33","v":0},{"$f":"+'Schedule IVE (EBS)'!J33","v":0},{"$f":"+'Schedule IVE (EBS)'!K33","v":0},{"$f":"+'Schedule IVE (EBS)'!L33","v":0},{"$f":"+'Schedule IVE (EBS)'!M33","v":0},{"$f":"+'Schedule IVE (EBS)'!N33","v":0},{"$f":"+'Schedule IVE (EBS)'!O33","v":0},{"$f":"+'Schedule IVE (EBS)'!P33","v":0},{"$f":"+'Schedule IVE (EBS)'!Q33","v":0},{"$f":"+'Schedule IVE (EBS)'!R33","v":0},{"$f":"+'Schedule IVE (EBS)'!S33","v":0},{"$f":"+'Schedule IVE (EBS)'!T33","v":0},{"$f":"+'Schedule IVE (EBS)'!U33","v":0},{"$f":"+'Schedule IVE (EBS)'!V33","v":0}]
[null,"Health","Schedule IV(a), Line (24)",0,0,1,0,{"$f":"IF('Schedule IVE (EBS)'!AB34=\"True\",G32,'Schedule IVD (EBS)'!O32)","v":0},{"$f":"+'Schedule IVE (EBS)'!E34","v":0},{"$f":"+'Schedule IVE (EBS)'!F34","v":0},{"$f":"+'Schedule IVE (EBS)'!G34","v":0},{"$f":"+'Schedule IVE (EBS)'!H34","v":0},{"$f":"+'Schedule IVE (EBS)'!I34","v":0},{"$f":"+'Schedule IVE (EBS)'!J34","v":0},{"$f":"+'Schedule IVE (EBS)'!K34","v":0},{"$f":"+'Schedule IVE (EBS)'!L34","v":0},{"$f":"+'Schedule IVE (EBS)'!M34","v":0},{"$f":"+'Schedule IVE (EBS)'!N34","v":0},{"$f":"+'Schedule IVE (EBS)'!O34","v":0},{"$f":"+'Schedule IVE (EBS)'!P34","v":0},{"$f":"+'Schedule IVE (EBS)'!Q34","v":0},{"$f":"+'Schedule IVE (EBS)'!R34","v":0},{"$f":"+'Schedule IVE (EBS)'!S34","v":0},{"$f":"+'Schedule IVE (EBS)'!T34","v":0},{"$f":"+'Schedule IVE (EBS)'!U34","v":0},{"$f":"+'Schedule IVE (EBS)'!V34","v":0}]
[]
[null,"(a) TOTAL",null,{"$f":"SUM(D9:D32)","v":0},{"$f":"SUM(E9:E32)","v":0},null,{"$f":"SUM(G9:G32)","v":0},0,0,0,0,0,0,0,0,0,0,0,0,0,0,0,0,0,0,0]
[]
[null,null,null,"TOTAL",null,null,null,"CHARGE"]
[null,"NET LOSS PROVISION BY ",null,"NET","SUM","DIVERSIFICATION","RESERVE","DIVERSIFIED"]
[null,"LINE OF BUSINESS","STATEMENT SOURCE","RESERVE","SQUARED","FACTOR","USED","RESERVE",{"$f":"HYPERLINK(\"#'Zones'!c4\",\"Zone 1\")","v":"Zone 1"},{"$f":"HYPERLINK(\"#'Zones'!c13\",\"Zone 2\")","v":"Zone 2"},{"$f":"HYPERLINK(\"#'Zones'!c18\",\"Zone 3\")","v":"Zone 3"},{"$f":"HYPERLINK(\"#'Zones'!c26\",\"Zone 4\")","v":"Zone 4"},{"$f":"HYPERLINK(\"#'Zones'!c36\",\"Zone 5\")","v":"Zone 5"},{"$f":"HYPERLINK(\"#'Zones'!c46\",\"Zone 6\")","v":"Zone 6"},{"$f":"HYPERLINK(\"#'Zones'!c57\",\"Zone 7\")","v":"Zone 7"},{"$f":"HYPERLINK(\"#'Zones'!c68\",\"Zone 8\")","v":"Zone 8"},{"$f":"HYPERLINK(\"#'Zones'!c76\",\"Zone 9\")","v":"Zone 9"},{"$f":"HYPERLINK(\"#'Zones'!c84\",\"Zone 10\")","v":"Zone 10"},{"$f":"HYPERLINK(\"#'Zones'!c90\",\"Zone 11\")","v":"Zone 11"},{"$f":"HYPERLINK(\"#'Zones'!c94\",\"Zone 12\")","v":"Zone 12"},{"$f":"HYPERLINK(\"#'Zones'!c107\",\"Zone 13\")","v":"Zone 13"},{"$f":"HYPERLINK(\"#'Zones'!c112\",\"Zone 14\")","v":"Zone 14"},{"$f":"HYPERLINK(\"#'Zones'!c116\",\"Zone 15\")","v":"Zone 15"},{"$f":"HYPERLINK(\"#'Zones'!c121\",\"Zone 16\")","v":"Zone 16"},{"$f":"HYPERLINK(\"#'Zones'!c127\",\"Zone 17\")","v":"Zone 17"},{"$f":"HYPERLINK(\"#'Zones'!c133\",\"Zone 18\")","v":"Zone 18"}]
[]
[null,"Property Catastrophe","Schedule III(a), Line (1)",{"$f":"SUM(I40:Z40)","v":0},{"$f":"SUMSQ(I40:Z40)","v":0},{"$f":"(IF(D40>0,E40/D40^2,1))","v":1},{"$f":"D40*(0.75+0.25*F40)","v":0},{"$f":"IF('Schedule IIIA (EBS)'!AB10=\"TRUE\",G40,'Schedule III (EBS)'!F10)","v":0},{"$f":"'Schedule IIIA (EBS)'!E10","v":0},{"$f":"'Schedule IIIA (EBS)'!F10","v":0},{"$f":"'Schedule IIIA (EBS)'!G10","v":0},{"$f":"'Schedule IIIA (EBS)'!H10","v":0},{"$f":"'Schedule IIIA (EBS)'!I10","v":0},{"$f":"'Schedule IIIA (EBS)'!J10","v":0},{"$f":"'Schedule IIIA (EBS)'!K10","v":0},{"$f":"'Schedule IIIA (EBS)'!L10","v":0},{"$f":"'Schedule IIIA (EBS)'!M10","v":0},{"$f":"'Schedule IIIA (EBS)'!N10","v":0},{"$f":"'Schedule IIIA (EBS)'!O10","v":0},{"$f":"'Schedule IIIA (EBS)'!P10","v":0},{"$f":"'Schedule IIIA (EBS)'!Q10","v":0},{"$f":"'Schedule IIIA (EBS)'!R10","v":0},{"$f":"'Schedule IIIA (EBS)'!S10","v":0},{"$f":"'Schedule IIIA (EBS)'!T10","v":0},{"$f":"'Schedule IIIA (EBS)'!U10","v":0},{"$f":"'Schedule IIIA (EBS)'!V10","v":0}]
[null,"Property","Schedule III(a), Line (2)",{"$f":"SUM(I41:Z41)","v":0},{"$f":"SUMSQ(I41:Z41)","v":0},{"$f":"(IF(D41>0,E41/D41^2,1))","v":1},{"$f":"D41*(0.75+0.25*F41)","v":0},{"$f":"IF('Schedule IIIA (EBS)'!AB11=\"TRUE\",G41,'Schedule III (EBS)'!F11)","v":0},{"$f":"'Schedule IIIA (EBS)'!E11","v":0},{"$f":"'Schedule IIIA (EBS)'!F11","v":0},{"$f":"'Schedule IIIA (EBS)'!G11","v":0},{"$f":"'Schedule IIIA (EBS)'!H11","v":0},{"$f":"'Schedule IIIA (EBS)'!I11","v":0},{"$f":"'Schedule IIIA (EBS)'!J11","v":0},{"$f":"'Schedule IIIA (EBS)'!K11","v":0},{"$f":"'Schedule IIIA (EBS)'!L11","v":0},{"$f":"'Schedule IIIA (EBS)'!M11","v":0},{"$f":"'Schedule IIIA (EBS)'!N11","v":0},{"$f":"'Schedule IIIA (EBS)'!O11","v":0},{"$f":"'Schedule IIIA (EBS)'!P11","v":0},{"$f":"'Schedule IIIA (EBS)'!Q11","v":0},{"$f":"'Schedule IIIA (EBS)'!R11","v":0},{"$f":"'Schedule IIIA (EBS)'!S11","v":0},{"$f":"'Schedule IIIA (EBS)'!T11","v":0},{"$f":"'Schedule IIIA (EBS)'!U11","v":0},{"$f":"'Schedule IIIA (EBS)'!V11","v":0}]
[null,"Property Non-Proportional","Schedule III(a), Line (3)",0,0,1,0,{"$f":"IF('Schedule IIIA (EBS)'!AB12=\"TRUE\",G42,'Schedule III (EBS)'!F12)","v":0},{"$f":"'Schedule IIIA (EBS)'!E12","v":0},{"$f":"'Schedule IIIA (EBS)'!F12","v":0},{"$f":"'Schedule IIIA (EBS)'!G12","v":0},{"$f":"'Schedule IIIA (EBS)'!H12","v":0},{"$f":"'Schedule IIIA (EBS)'!I12","v":0},{"$f":"'Schedule IIIA (EBS)'!J12","v":0},{"$f":"'Schedule IIIA (EBS)'!K12","v":0},{"$f":"'Schedule IIIA (EBS)'!L12","v":0},{"$f":"'Schedule IIIA (EBS)'!M12","v":0},{"$f":"'Schedule IIIA (EBS)'!N12","v":0},{"$f":"'Schedule IIIA (EBS)'!O12","v":0},{"$f":"'Schedule IIIA (EBS)'!P12","v":0},{"$f":"'Schedule IIIA (EBS)'!Q12","v":0},{"$f":"'Schedule IIIA (EBS)'!R12","v":0},{"$f":"'Schedule IIIA (EBS)'!S12","v":0},{"$f":"'Schedule IIIA (EBS)'!T12","v":0},{"$f":"'Schedule IIIA (EBS)'!U12","v":0},{"$f":"'Schedule IIIA (EBS)'!V12","v":0}]
[null,"Personal Accident","Schedule III(a), Line (4)",0,0,1,0,{"$f":"IF('Schedule IIIA (EBS)'!AB13=\"TRUE\",G43,'Schedule III (EBS)'!F13)","v":0},{"$f":"'Schedule IIIA (EBS)'!E13","v":0},{"$f":"'Schedule IIIA (EBS)'!F13","v":0},{"$f":"'Schedule IIIA (EBS)'!G13","v":0},{"$f":"'Schedule IIIA (EBS)'!H13","v":0},{"$f":"'Schedule IIIA (EBS)'!I13","v":0},{"$f":"'Schedule IIIA (EBS)'!J13","v":0},{"$f":"'Schedule IIIA (EBS)'!K13","v":0},{"$f":"'Schedule IIIA (EBS)'!L13","v":0},{"$f":"'Schedule IIIA (EBS)'!M13","v":0},{"$f":"'Schedule IIIA (EBS)'!N13","v":0},{"$f":"'Schedule IIIA (EBS)'!O13","v":0},{"$f":"'Schedule IIIA (EBS)'!P13","v":0},{"$f":"'Schedule IIIA (EBS)'!Q13","v":0},{"$f":"'Schedule IIIA (EBS)'!R13","v":0},{"$f":"'Schedule IIIA (EBS)'!S13","v":0},{"$f":"'Schedule IIIA (EBS)'!T13","v":0},{"$f":"'Schedule IIIA (EBS)'!U13","v":0},{"$f":"'Schedule IIIA (EBS)'!V13","v":0}]
[null,"Personal Accident Non-Proportional","Schedule III(a), Line (5)",0,0,1,0,{"$f":"IF('Schedule IIIA (EBS)'!AB14=\"TRUE\",G44,'Schedule III (EBS)'!F14)","v":0},{"$f":"'Schedule IIIA (EBS)'!E14","v":0},{"$f":"'Schedule IIIA (EBS)'!F14","v":0},{"$f":"'Schedule IIIA (EBS)'!G14","v":0},{"$f":"'Schedule IIIA (EBS)'!H14","v":0},{"$f":"'Schedule IIIA (EBS)'!I14","v":0},{"$f":"'Schedule IIIA (EBS)'!J14","v":0},{"$f":"'Schedule IIIA (EBS)'!K14","v":0},{"$f":"'Schedule IIIA (EBS)'!L14","v":0},{"$f":"'Schedule IIIA (EBS)'!M14","v":0},{"$f":"'Schedule IIIA (EBS)'!N14","v":0},{"$f":"'Schedule IIIA (EBS)'!O14","v":0},{"$f":"'Schedule IIIA (EBS)'!P14","v":0},{"$f":"'Schedule IIIA (EBS)'!Q14","v":0},{"$f":"'Schedule IIIA (EBS)'!R14","v":0},{"$f":"'Schedule IIIA (EBS)'!S14","v":0},{"$f":"'Schedule IIIA (EBS)'!T14","v":0},{"$f":"'Schedule IIIA (EBS)'!U14","v":0},{"$f":"'Schedule IIIA (EBS)'!V14","v":0}]
[null,"Aviation","Schedule III(a), Line (6)",0,0,1,0,{"$f":"IF('Schedule IIIA (EBS)'!AB15=\"TRUE\",G45,'Schedule III (EBS)'!F15)","v":0},{"$f":"'Schedule IIIA (EBS)'!E15","v":0},{"$f":"'Schedule IIIA (EBS)'!F15","v":0},{"$f":"'Schedule IIIA (EBS)'!G15","v":0},{"$f":"'Schedule IIIA (EBS)'!H15","v":0},{"$f":"'Schedule IIIA (EBS)'!I15","v":0},{"$f":"'Schedule IIIA (EBS)'!J15","v":0},{"$f":"'Schedule IIIA (EBS)'!K15","v":0},{"$f":"'Schedule IIIA (EBS)'!L15","v":0},{"$f":"'Schedule IIIA (EBS)'!M15","v":0},{"$f":"'Schedule IIIA (EBS)'!N15","v":0},{"$f":"'Schedule IIIA (EBS)'!O15","v":0},{"$f":"'Schedule IIIA (EBS)'!P15","v":0},{"$f":"'Schedule IIIA (EBS)'!Q15","v":0},{"$f":"'Schedule IIIA (EBS)'!R15","v":0},{"$f":"'Schedule IIIA (EBS)'!S15","v":0},{"$f":"'Schedule IIIA (EBS)'!T15","v":0},{"$f":"'Schedule IIIA (EBS)'!U15","v":0},{"$f":"'Schedule IIIA (EBS)'!V15","v":0}]
[null,"Aviation Non-Proportional","Schedule III(a), Line (7)",0,0,1,0,{"$f":"IF('Schedule IIIA (EBS)'!AB16=\"TRUE\",G46,'Schedule III (EBS)'!F16)","v":0},{"$f":"'Schedule IIIA (EBS)'!E16","v":0},{"$f":"'Schedule IIIA (EBS)'!F16","v":0},{"$f":"'Schedule IIIA (EBS)'!G16","v":0},{"$f":"'Schedule IIIA (EBS)'!H16","v":0},{"$f":"'Schedule IIIA (EBS)'!I16","v":0},{"$f":"'Schedule IIIA (EBS)'!J16","v":0},{"$f":"'Schedule IIIA (EBS)'!K16","v":0},{"$f":"'Schedule IIIA (EBS)'!L16","v":0},{"$f":"'Schedule IIIA (EBS)'!M16","v":0},{"$f":"'Schedule IIIA (EBS)'!N16","v":0},{"$f":"'Schedule IIIA (EBS)'!O16","v":0},{"$f":"'Schedule IIIA (EBS)'!P16","v":0},{"$f":"'Schedule IIIA (EBS)'!Q16","v":0},{"$f":"'Schedule IIIA (EBS)'!R16","v":0},{"$f":"'Schedule IIIA (EBS)'!S16","v":0},{"$f":"'Schedule IIIA (EBS)'!T16","v":0},{"$f":"'Schedule IIIA (EBS)'!U16","v":0},{"$f":"'Schedule IIIA (EBS)'!V16","v":0}]
[null,"Credit / Surety","Schedule III(a), Line (8)",0,0,1,0,{"$f":"IF('Schedule IIIA (EBS)'!AB17=\"TRUE\",G47,'Schedule III (EBS)'!F17)","v":0},{"$f":"'Schedule IIIA (EBS)'!E17","v":0},{"$f":"'Schedule IIIA (EBS)'!F17","v":0},{"$f":"'Schedule IIIA (EBS)'!G17","v":0},{"$f":"'Schedule IIIA (EBS)'!H17","v":0},{"$f":"'Schedule IIIA (EBS)'!I17","v":0},{"$f":"'Schedule IIIA (EBS)'!J17","v":0},{"$f":"'Schedule IIIA (EBS)'!K17","v":0},{"$f":"'Schedule IIIA (EBS)'!L17","v":0},{"$f":"'Schedule IIIA (EBS)'!M17","v":0},{"$f":"'Schedule IIIA (EBS)'!N17","v":0},{"$f":"'Schedule IIIA (EBS)'!O17","v":0},{"$f":"'Schedule IIIA (EBS)'!P17","v":0},{"$f":"'Schedule IIIA (EBS)'!Q17","v":0},{"$f":"'Schedule IIIA (EBS)'!R17","v":0},{"$f":"'Schedule IIIA (EBS)'!S17","v":0},{"$f":"'Schedule IIIA (EBS)'!T17","v":0},{"$f":"'Schedule IIIA (EBS)'!U17","v":0},{"$f":"'Schedule IIIA (EBS)'!V17","v":0}]
[null,"Credit / Surety Non-Proportional","Schedule III(a), Line (9)",0,0,1,0,{"$f":"IF('Schedule IIIA (EBS)'!AB18=\"TRUE\",G48,'Schedule III (EBS)'!F18)","v":0},{"$f":"'Schedule IIIA (EBS)'!E18","v":0},{"$f":"'Schedule IIIA (EBS)'!F18","v":0},{"$f":"'Schedule IIIA (EBS)'!G18","v":0},{"$f":"'Schedule IIIA (EBS)'!H18","v":0},{"$f":"'Schedule IIIA (EBS)'!I18","v":0},{"$f":"'Schedule IIIA (EBS)'!J18","v":0},{"$f":"'Schedule IIIA (EBS)'!K18","v":0},{"$f":"'Schedule IIIA (EBS)'!L18","v":0},{"$f":"'Schedule IIIA (EBS)'!M18","v":0},{"$f":"'Schedule IIIA (EBS)'!N18","v":0},{"$f":"'Schedule IIIA (EBS)'!O18","v":0},{"$f":"'Schedule IIIA (EBS)'!P18","v":0},{"$f":"'Schedule IIIA (EBS)'!Q18","v":0},{"$f":"'Schedule IIIA (EBS)'!R18","v":0},{"$f":"'Schedule IIIA (EBS)'!S18","v":0},{"$f":"'Schedule IIIA (EBS)'!T18","v":0},{"$f":"'Schedule IIIA (EBS)'!U18","v":0},{"$f":"'Schedule IIIA (EBS)'!V18","v":0}]
[null,"Energy Offshore / Marine","Schedule III(a), Line (10)",0,0,1,0,{"$f":"IF('Schedule IIIA (EBS)'!AB19=\"TRUE\",G49,'Schedule III (EBS)'!F19)","v":0},{"$f":"'Schedule IIIA (EBS)'!E19","v":0},{"$f":"'Schedule IIIA (EBS)'!F19","v":0},{"$f":"'Schedule IIIA (EBS)'!G19","v":0},{"$f":"'Schedule IIIA (EBS)'!H19","v":0},{"$f":"'Schedule IIIA (EBS)'!I19","v":0},{"$f":"'Schedule IIIA (EBS)'!J19","v":0},{"$f":"'Schedule IIIA (EBS)'!K19","v":0},{"$f":"'Schedule IIIA (EBS)'!L19","v":0},{"$f":"'Schedule IIIA (EBS)'!M19","v":0},{"$f":"'Schedule IIIA (EBS)'!N19","v":0},{"$f":"'Schedule IIIA (EBS)'!O19","v":0},{"$f":"'Schedule IIIA (EBS)'!P19","v":0},{"$f":"'Schedule IIIA (EBS)'!Q19","v":0},{"$f":"'Schedule IIIA (EBS)'!R19","v":0},{"$f":"'Schedule IIIA (EBS)'!S19","v":0},{"$f":"'Schedule IIIA (EBS)'!T19","v":0},{"$f":"'Schedule IIIA (EBS)'!U19","v":0},{"$f":"'Schedule IIIA (EBS)'!V19","v":0}]
[null,"Energy Offshore / Marine Non-Proportional","Schedule III(a), Line (11)",0,0,1,0,{"$f":"IF('Schedule IIIA (EBS)'!AB20=\"TRUE\",G50,'Schedule III (EBS)'!F20)","v":0},{"$f":"'Schedule IIIA (EBS)'!E20","v":0},{"$f":"'Schedule IIIA (EBS)'!F20","v":0},{"$f":"'Schedule IIIA (EBS)'!G20","v":0},{"$f":"'Schedule IIIA (EBS)'!H20","v":0},{"$f":"'Schedule IIIA (EBS)'!I20","v":0},{"$f":"'Schedule IIIA (EBS)'!J20","v":0},{"$f":"'Schedule IIIA (EBS)'!K20","v":0},{"$f":"'Schedule IIIA (EBS)'!L20","v":0},{"$f":"'Schedule IIIA (EBS)'!M20","v":0},{"$f":"'Schedule IIIA (EBS)'!N20","v":0},{"$f":"'Schedule IIIA (EBS)'!O20","v":0},{"$f":"'Schedule IIIA (EBS)'!P20","v":0},{"$f":"'Schedule IIIA (EBS)'!Q20","v":0},{"$f":"'Schedule IIIA (EBS)'!R20","v":0},{"$f":"'Schedule IIIA (EBS)'!S20","v":0},{"$f":"'Schedule IIIA (EBS)'!T20","v":0},{"$f":"'Schedule IIIA (EBS)'!U20","v":0},{"$f":"'Schedule IIIA (EBS)'!V20","v":0}]
[null,"US Casualty","Schedule III(a), Line (12)",0,0,1,0,{"$f":"IF('Schedule IIIA (EBS)'!AB21=\"TRUE\",G51,'Schedule III (EBS)'!F21)","v":0},{"$f":"'Schedule IIIA (EBS)'!E21","v":0},{"$f":"'Schedule IIIA (EBS)'!F21","v":0},{"$f":"'Schedule IIIA (EBS)'!G21","v":0},{"$f":"'Schedule IIIA (EBS)'!H21","v":0},{"$f":"'Schedule IIIA (EBS)'!I21","v":0},{"$f":"'Schedule IIIA (EBS)'!J21","v":0},{"$f":"'Schedule IIIA (EBS)'!K21","v":0},{"$f":"'Schedule IIIA (EBS)'!L21","v":0},{"$f":"'Schedule IIIA (EBS)'!M21","v":0},{"$f":"'Schedule IIIA (EBS)'!N21","v":0},{"$f":"'Schedule IIIA (EBS)'!O21","v":0},{"$f":"'Schedule IIIA (EBS)'!P21","v":0},{"$f":"'Schedule IIIA (EBS)'!Q21","v":0},{"$f":"'Schedule IIIA (EBS)'!R21","v":0},{"$f":"'Schedule IIIA (EBS)'!S21","v":0},{"$f":"'Schedule IIIA (EBS)'!T21","v":0},{"$f":"'Schedule IIIA (EBS)'!U21","v":0},{"$f":"'Schedule IIIA (EBS)'!V21","v":0}]
[null,"US Casualty Non-Proportional","Schedule III(a), Line (13)",0,0,1,0,{"$f":"IF('Schedule IIIA (EBS)'!AB22=\"TRUE\",G52,'Schedule III (EBS)'!F22)","v":0},{"$f":"'Schedule IIIA (EBS)'!E22","v":0},{"$f":"'Schedule IIIA (EBS)'!F22","v":0},{"$f":"'Schedule IIIA (EBS)'!G22","v":0},{"$f":"'Schedule IIIA (EBS)'!H22","v":0},{"$f":"'Schedule IIIA (EBS)'!I22","v":0},{"$f":"'Schedule IIIA (EBS)'!J22","v":0},{"$f":"'Schedule IIIA (EBS)'!K22","v":0},{"$f":"'Schedule IIIA (EBS)'!L22","v":0},{"$f":"'Schedule IIIA (EBS)'!M22","v":0},{"$f":"'Schedule IIIA (EBS)'!N22","v":0},{"$f":"'Schedule IIIA (EBS)'!O22","v":0},{"$f":"'Schedule IIIA (EBS)'!P22","v":0},{"$f":"'Schedule IIIA (EBS)'!Q22","v":0},{"$f":"'Schedule IIIA (EBS)'!R22","v":0},{"$f":"'Schedule IIIA (EBS)'!S22","v":0},{"$f":"'Schedule IIIA (EBS)'!T22","v":0},{"$f":"'Schedule IIIA (EBS)'!U22","v":0},{"$f":"'Schedule IIIA (EBS)'!V22","v":0}]
[null,"US Professional","Schedule III(a), Line (14)",0,0,1,0,{"$f":"IF('Schedule IIIA (EBS)'!AB23=\"TRUE\",G53,'Schedule III (EBS)'!F23)","v":0},{"$f":"'Schedule IIIA (EBS)'!E23","v":0},{"$f":"'Schedule IIIA (EBS)'!F23","v":0},{"$f":"'Schedule IIIA (EBS)'!G23","v":0},{"$f":"'Schedule IIIA (EBS)'!H23","v":0},{"$f":"'Schedule IIIA (EBS)'!I23","v":0},{"$f":"'Schedule IIIA (EBS)'!J23","v":0},{"$f":"'Schedule IIIA (EBS)'!K23","v":0},{"$f":"'Schedule IIIA (EBS)'!L23","v":0},{"$f":"'Schedule IIIA (EBS)'!M23","v":0},{"$f":"'Schedule IIIA (EBS)'!N23","v":0},{"$f":"'Schedule IIIA (EBS)'!O23","v":0},{"$f":"'Schedule IIIA (EBS)'!P23","v":0},{"$f":"'Schedule IIIA (EBS)'!Q23","v":0},{"$f":"'Schedule IIIA (EBS)'!R23","v":0},{"$f":"'Schedule IIIA (EBS)'!S23","v":0},{"$f":"'Schedule IIIA (EBS)'!T23","v":0},{"$f":"'Schedule IIIA (EBS)'!U23","v":0},{"$f":"'Schedule IIIA (EBS)'!V23","v":0}]
[null,"US Professional Non-Proportional","Schedule III(a), Line (15)",0,0,1,0,{"$f":"IF('Schedule IIIA (EBS)'!AB24=\"TRUE\",G54,'Schedule III (EBS)'!F24)","v":0},{"$f":"'Schedule IIIA (EBS)'!E24","v":0},{"$f":"'Schedule IIIA (EBS)'!F24","v":0},{"$f":"'Schedule IIIA (EBS)'!G24","v":0},{"$f":"'Schedule IIIA (EBS)'!H24","v":0},{"$f":"'Schedule IIIA (EBS)'!I24","v":0},{"$f":"'Schedule IIIA (EBS)'!J24","v":0},{"$f":"'Schedule IIIA (EBS)'!K24","v":0},{"$f":"'Schedule IIIA (EBS)'!L24","v":0},{"$f":"'Schedule IIIA (EBS)'!M24","v":0},{"$f":"'Schedule IIIA (EBS)'!N24","v":0},{"$f":"'Schedule IIIA (EBS)'!O24","v":0},{"$f":"'Schedule IIIA (EBS)'!P24","v":0},{"$f":"'Schedule IIIA (EBS)'!Q24","v":0},{"$f":"'Schedule IIIA (EBS)'!R24","v":0},{"$f":"'Schedule IIIA (EBS)'!S24","v":0},{"$f":"'Schedule IIIA (EBS)'!T24","v":0},{"$f":"'Schedule IIIA (EBS)'!U24","v":0},{"$f":"'Schedule IIIA (EBS)'!V24","v":0}]
[null,"US Specialty","Schedule III(a), Line (16)",0,0,1,0,{"$f":"IF('Schedule IIIA (EBS)'!AB25=\"TRUE\",G55,'Schedule III (EBS)'!F25)","v":0},{"$f":"'Schedule IIIA (EBS)'!E25","v":0},{"$f":"'Schedule IIIA (EBS)'!F25","v":0},{"$f":"'Schedule IIIA (EBS)'!G25","v":0},{"$f":"'Schedule IIIA (EBS)'!H25","v":0},{"$f":"'Schedule IIIA (EBS)'!I25","v":0},{"$f":"'Schedule IIIA (EBS)'!J25","v":0},{"$f":"'Schedule IIIA (EBS)'!K25","v":0},{"$f":"'Schedule IIIA (EBS)'!L25","v":0},{"$f":"'Schedule IIIA (EBS)'!M25","v":0},{"$f":"'Schedule IIIA (EBS)'!N25","v":0},{"$f":"'Schedule IIIA (EBS)'!O25","v":0},{"$f":"'Schedule IIIA (EBS)'!P25","v":0},{"$f":"'Schedule IIIA (EBS)'!Q25","v":0},{"$f":"'Schedule IIIA (EBS)'!R25","v":0},{"$f":"'Schedule IIIA (EBS)'!S25","v":0},{"$f":"'Schedule IIIA (EBS)'!T25","v":0},{"$f":"'Schedule IIIA (EBS)'!U25","v":0},{"$f":"'Schedule IIIA (EBS)'!V25","v":0}]
[null,"US Specialty Non-Proportional","Schedule III(a), Line (17)",0,0,1,0,{"$f":"IF('Schedule IIIA (EBS)'!AB26=\"TRUE\",G56,'Schedule III (EBS)'!F26)","v":0},{"$f":"'Schedule IIIA (EBS)'!E26","v":0},{"$f":"'Schedule IIIA (EBS)'!F26","v":0},{"$f":"'Schedule IIIA (EBS)'!G26","v":0},{"$f":"'Schedule IIIA (EBS)'!H26","v":0},{"$f":"'Schedule IIIA (EBS)'!I26","v":0},{"$f":"'Schedule IIIA (EBS)'!J26","v":0},{"$f":"'Schedule IIIA (EBS)'!K26","v":0},{"$f":"'Schedule IIIA (EBS)'!L26","v":0},{"$f":"'Schedule IIIA (EBS)'!M26","v":0},{"$f":"'Schedule IIIA (EBS)'!N26","v":0},{"$f":"'Schedule IIIA (EBS)'!O26","v":0},{"$f":"'Schedule IIIA (EBS)'!P26","v":0},{"$f":"'Schedule IIIA (EBS)'!Q26","v":0},{"$f":"'Schedule IIIA (EBS)'!R26","v":0},{"$f":"'Schedule IIIA (EBS)'!S26","v":0},{"$f":"'Schedule IIIA (EBS)'!T26","v":0},{"$f":"'Schedule IIIA (EBS)'!U26","v":0},{"$f":"'Schedule IIIA (EBS)'!V26","v":0}]
[null,"International Motor","Schedule III(a), Line (18)",0,0,1,0,{"$f":"IF('Schedule IIIA (EBS)'!AB27=\"TRUE\",G57,'Schedule III (EBS)'!F27)","v":0},{"$f":"'Schedule IIIA (EBS)'!E27","v":0},{"$f":"'Schedule IIIA (EBS)'!F27","v":0},{"$f":"'Schedule IIIA (EBS)'!G27","v":0},{"$f":"'Schedule IIIA (EBS)'!H27","v":0},{"$f":"'Schedule IIIA (EBS)'!I27","v":0},{"$f":"'Schedule IIIA (EBS)'!J27","v":0},{"$f":"'Schedule IIIA (EBS)'!K27","v":0},{"$f":"'Schedule IIIA (EBS)'!L27","v":0},{"$f":"'Schedule IIIA (EBS)'!M27","v":0},{"$f":"'Schedule IIIA (EBS)'!N27","v":0},{"$f":"'Schedule IIIA (EBS)'!O27","v":0},{"$f":"'Schedule IIIA (EBS)'!P27","v":0},{"$f":"'Schedule IIIA (EBS)'!Q27","v":0},{"$f":"'Schedule IIIA (EBS)'!R27","v":0},{"$f":"'Schedule IIIA (EBS)'!S27","v":0},{"$f":"'Schedule IIIA (EBS)'!T27","v":0},{"$f":"'Schedule IIIA (EBS)'!U27","v":0},{"$f":"'Schedule IIIA (EBS)'!V27","v":0}]
[null,"International Motor Non-Proportional","Schedule III(a), Line (19)",0,0,1,0,{"$f":"IF('Schedule IIIA (EBS)'!AB28=\"TRUE\",G58,'Schedule III (EBS)'!F28)","v":0},{"$f":"'Schedule IIIA (EBS)'!E28","v":0},{"$f":"'Schedule IIIA (EBS)'!F28","v":0},{"$f":"'Schedule IIIA (EBS)'!G28","v":0},{"$f":"'Schedule IIIA (EBS)'!H28","v":0},{"$f":"'Schedule IIIA (EBS)'!I28","v":0},{"$f":"'Schedule IIIA (EBS)'!J28","v":0},{"$f":"'Schedule IIIA (EBS)'!K28","v":0},{"$f":"'Schedule IIIA (EBS)'!L28","v":0},{"$f":"'Schedule IIIA (EBS)'!M28","v":0},{"$f":"'Schedule IIIA (EBS)'!N28","v":0},{"$f":"'Schedule IIIA (EBS)'!O28","v":0},{"$f":"'Schedule IIIA (EBS)'!P28","v":0},{"$f":"'Schedule IIIA (EBS)'!Q28","v":0},{"$f":"'Schedule IIIA (EBS)'!R28","v":0},{"$f":"'Schedule IIIA (EBS)'!S28","v":0},{"$f":"'Schedule IIIA (EBS)'!T28","v":0},{"$f":"'Schedule IIIA (EBS)'!U28","v":0},{"$f":"'Schedule IIIA (EBS)'!V28","v":0}]
[null,"International Casualty Non-Motor","Schedule III(a), Line (20)",0,0,1,0,{"$f":"IF('Schedule IIIA (EBS)'!AB29=\"TRUE\",G59,'Schedule III (EBS)'!F29)","v":0},{"$f":"'Schedule IIIA (EBS)'!E29","v":0},{"$f":"'Schedule IIIA (EBS)'!F29","v":0},{"$f":"'Schedule IIIA (EBS)'!G29","v":0},{"$f":"'Schedule IIIA (EBS)'!H29","v":0},{"$f":"'Schedule IIIA (EBS)'!I29","v":0},{"$f":"'Schedule IIIA (EBS)'!J29","v":0},{"$f":"'Schedule IIIA (EBS)'!K29","v":0},{"$f":"'Schedule IIIA (EBS)'!L29","v":0},{"$f":"'Schedule IIIA (EBS)'!M29","v":0},{"$f":"'Schedule IIIA (EBS)'!N29","v":0},{"$f":"'Schedule IIIA (EBS)'!O29","v":0},{"$f":"'Schedule IIIA (EBS)'!P29","v":0},{"$f":"'Schedule IIIA (EBS)'!Q29","v":0},{"$f":"'Schedule IIIA (EBS)'!R29","v":0},{"$f":"'Schedule IIIA (EBS)'!S29","v":0},{"$f":"'Schedule IIIA (EBS)'!T29","v":0},{"$f":"'Schedule IIIA (EBS)'!U29","v":0},{"$f":"'Schedule IIIA (EBS)'!V29","v":0}]
[null,"International Casualty Non-Motor Non-Proportional","Schedule III(a), Line (21)",0,0,1,0,{"$f":"IF('Schedule IIIA (EBS)'!AB30=\"TRUE\",G60,'Schedule III (EBS)'!F30)","v":0},{"$f":"'Schedule IIIA (EBS)'!E30","v":0},{"$f":"'Schedule IIIA (EBS)'!F30","v":0},{"$f":"'Schedule IIIA (EBS)'!G30","v":0},{"$f":"'Schedule IIIA (EBS)'!H30","v":0},{"$f":"'Schedule IIIA (EBS)'!I30","v":0},{"$f":"'Schedule IIIA (EBS)'!J30","v":0},{"$f":"'Schedule IIIA (EBS)'!K30","v":0},{"$f":"'Schedule IIIA (EBS)'!L30","v":0},{"$f":"'Schedule IIIA (EBS)'!M30","v":0},{"$f":"'Schedule IIIA (EBS)'!N30","v":0},{"$f":"'Schedule IIIA (EBS)'!O30","v":0},{"$f":"'Schedule IIIA (EBS)'!P30","v":0},{"$f":"'Schedule IIIA (EBS)'!Q30","v":0},{"$f":"'Schedule IIIA (EBS)'!R30","v":0},{"$f":"'Schedule IIIA (EBS)'!S30","v":0},{"$f":"'Schedule IIIA (EBS)'!T30","v":0},{"$f":"'Schedule IIIA (EBS)'!U30","v":0},{"$f":"'Schedule IIIA (EBS)'!V30","v":0}]
[null,"Retro Property","Schedule III(a), Line (22)",0,0,1,0,{"$f":"IF('Schedule IIIA (EBS)'!AB31=\"TRUE\",G61,'Schedule III (EBS)'!F31)","v":0},{"$f":"'Schedule IIIA (EBS)'!E31","v":0},{"$f":"'Schedule IIIA (EBS)'!F31","v":0},{"$f":"'Schedule IIIA (EBS)'!G31","v":0},{"$f":"'Schedule IIIA (EBS)'!H31","v":0},{"$f":"'Schedule IIIA (EBS)'!I31","v":0},{"$f":"'Schedule IIIA (EBS)'!J31","v":0},{"$f":"'Schedule IIIA (EBS)'!K31","v":0},{"$f":"'Schedule IIIA (EBS)'!L31","v":0},{"$f":"'Schedule IIIA (EBS)'!M31","v":0},{"$f":"'Schedule IIIA (EBS)'!N31","v":0},{"$f":"'Schedule IIIA (EBS)'!O31","v":0},{"$f":"'Schedule IIIA (EBS)'!P31","v":0},{"$f":"'Schedule IIIA (EBS)'!Q31","v":0},{"$f":"'Schedule IIIA (EBS)'!R31","v":0},{"$f":"'Schedule IIIA (EBS)'!S31","v":0},{"$f":"'Schedule IIIA (EBS)'!T31","v":0},{"$f":"'Schedule IIIA (EBS)'!U31","v":0},{"$f":"'Schedule IIIA (EBS)'!V31","v":0}]
[null,"Structured / Finite Reinsurance","Schedule III(a), Line (23)",0,0,1,0,{"$f":"IF('Schedule IIIA (EBS)'!AB32=\"TRUE\",G62,'Schedule III (EBS)'!F32)","v":0},{"$f":"'Schedule IIIA (EBS)'!E32","v":0},{"$f":"'Schedule IIIA (EBS)'!F32","v":0},{"$f":"'Schedule IIIA (EBS)'!G32","v":0},{"$f":"'Schedule IIIA (EBS)'!H32","v":0},{"$f":"'Schedule IIIA (EBS)'!I32","v":0},{"$f":"'Schedule IIIA (EBS)'!J32","v":0},{"$f":"'Schedule IIIA (EBS)'!K32","v":0},{"$f":"'Schedule IIIA (EBS)'!L32","v":0},{"$f":"'Schedule IIIA (EBS)'!M32","v":0},{"$f":"'Schedule IIIA (EBS)'!N32","v":0},{"$f":"'Schedule IIIA (EBS)'!O32","v":0},{"$f":"'Schedule IIIA (EBS)'!P32","v":0},{"$f":"'Schedule IIIA (EBS)'!Q32","v":0},{"$f":"'Schedule IIIA (EBS)'!R32","v":0},{"$f":"'Schedule IIIA (EBS)'!S32","v":0},{"$f":"'Schedule IIIA (EBS)'!T32","v":0},{"$f":"'Schedule IIIA (EBS)'!U32","v":0},{"$f":"'Schedule IIIA (EBS)'!V32","v":0}]
[null,"Health","Schedule III(a), Line (24)",0,0,1,0,{"$f":"IF('Schedule IIIA (EBS)'!AB33=\"TRUE\",G63,'Schedule III (EBS)'!F33)","v":0},{"$f":"'Schedule IIIA (EBS)'!E33","v":0},{"$f":"'Schedule IIIA (EBS)'!F33","v":0},{"$f":"'Schedule IIIA (EBS)'!G33","v":0},{"$f":"'Schedule IIIA (EBS)'!H33","v":0},{"$f":"'Schedule IIIA (EBS)'!I33","v":0},{"$f":"'Schedule IIIA (EBS)'!J33","v":0},{"$f":"'Schedule IIIA (EBS)'!K33","v":0},{"$f":"'Schedule IIIA (EBS)'!L33","v":0},{"$f":"'Schedule IIIA (EBS)'!M33","v":0},{"$f":"'Schedule IIIA (EBS)'!N33","v":0},{"$f":"'Schedule IIIA (EBS)'!O33","v":0},{"$f":"'Schedule IIIA (EBS)'!P33","v":0},{"$f":"'Schedule IIIA (EBS)'!Q33","v":0},{"$f":"'Schedule IIIA (EBS)'!R33","v":0},{"$f":"'Schedule IIIA (EBS)'!S33","v":0},{"$f":"'Schedule IIIA (EBS)'!T33","v":0},{"$f":"'Schedule IIIA (EBS)'!U33","v":0},{"$f":"'Schedule IIIA (EBS)'!V33","v":0}]
[]
[null,"(a) TOTAL",null,{"$f":"SUM(D40:D63)","v":0},{"$f":"SUM(E40:E63)","v":0},null,{"$f":"SUM(G40:G63)","v":0},0,0,0,0,0,0,0,0,0,0,0,0,0,0,0,0,0,0,0]

{"sheet":"Premium Risk","index":115,"n_rows":78,"n_cols":9,"rows_kept":78,"cut":false,"hidden":false,"merged":[[0,8,0,9],[5,3,6,3]]}
["PREMIUM RISK",null,null,null,null,null,null,null,{"$f":"HYPERLINK(\"#'Index'!A1\",\"Return to Index\")","v":"Return to Index"}]
[{"$f":"'Company Information'!C7","v":"Enter Company Name"}]
[{"$f":"\"Premium Risk\" & \"($\"&IF(CONFIGURATION!$B$12>1,MID(CONFIGURATION!$B$12,2,LEN(CONFIGURATION!$B$12)),\"\")&\")\"","v":"Premium Risk($000)"},null,null,{"$f":"'Company Information'!C3","v":"2019-12-31"},-1,-2,-3,-4,-5]
[]
[null,null,null,null,"GROSS","NET","GEO"]
[null,null,null,"STATEMENT SOURCE","PREMIUMS","PREMIUMS","DIVERSIFIED","CAPITAL","REQUIRED"]
[null,"LINE OF BUSINESS",null,null,"WRITTEN","WRITTEN","PREMIUMS","FACTOR","CAPITAL"]
[]
[null,null,null,null,null,null,null,null,"(3) x (4)"]
[]
[null,"Property Catastrophe",null,"Schedule IVA, Line (1)",{"$f":"+'Schedule IVA (EBS)'!M11","v":0},{"$f":"'Schedule IVA (EBS)'!Q11","v":0},{"$f":"+'Geographic Diversification'!H9","v":0},0,{"$f":"IF($G$11<0,0,$G$11*$H$11)","v":0}]
[null,"Property",null,"Schedule IVA, Line (2)",{"$f":"+'Schedule IVA (EBS)'!M12","v":0},{"$f":"'Schedule IVA (EBS)'!Q12","v":0},{"$f":"+'Geographic Diversification'!H10","v":0},0.497450025355053,{"$f":"IF($G$12<0,0,$G$12*$H$12)","v":0}]
[null,"Property Non-Proportional",null,"Schedule IVA, Line (3)",{"$f":"+'Schedule IVA (EBS)'!M13","v":0},{"$f":"'Schedule IVA (EBS)'!Q13","v":0},{"$f":"+'Geographic Diversification'!H11","v":0},0.51625715924082105,{"$f":"IF($G$13<0,0,$G$13*$H$13)","v":0}]
[null,"Personal Accident",null,"Schedule IVA, Line (4)",{"$f":"+'Schedule IVA (EBS)'!M14","v":0},{"$f":"'Schedule IVA (EBS)'!Q14","v":0},{"$f":"+'Geographic Diversification'!H12","v":0},0.34115345724240698,{"$f":"IF($G$14<0,0,$G$14*$H$14)","v":0}]
[null,"Personal Accident Non-Proportional",null,"Schedule IVA, Line (5)",{"$f":"+'Schedule IVA (EBS)'!M15","v":0},{"$f":"'Schedule IVA (EBS)'!Q15","v":0},{"$f":"+'Geographic Diversification'!H13","v":0},0.41221262895987398,{"$f":"IF($G$15<0,0,$G$15*$H$15)","v":0}]
[null,"Aviation",null,"Schedule IVA, Line (6)",{"$f":"+'Schedule IVA (EBS)'!M16","v":0},{"$f":"'Schedule IVA (EBS)'!Q16","v":0},{"$f":"+'Geographic Diversification'!H14","v":0},0.48178449435856302,{"$f":"IF($G$16<0,0,$G$16*$H$16)","v":0}]
[null,"Aviation Non-Proportional",null,"Schedule IVA, Line (7)",{"$f":"+'Schedule IVA (EBS)'!M17","v":0},{"$f":"'Schedule IVA (EBS)'!Q17","v":0},{"$f":"+'Geographic Diversification'!H15","v":0},0.48201231799963601,{"$f":"IF($G$17<0,0,$G$17*$H$17)","v":0}]
[null,"Credit / Surety",null,"Schedule IVA, Line (8)",{"$f":"+'Schedule IVA (EBS)'!M18","v":0},{"$f":"'Schedule IVA (EBS)'!Q18","v":0},{"$f":"+'Geographic Diversification'!H16","v":0},0.39820522005250802,{"$f":"IF($G$18<0,0,$G$18*$H$18)","v":0}]
[null,"Credit / Surety Non-Proportional",null,"Schedule IVA, Line (9)",{"$f":"+'Schedule IVA (EBS)'!M19","v":0},{"$f":"'Schedule IVA (EBS)'!Q19","v":0},{"$f":"+'Geographic Diversification'!H17","v":0},0.45356665999464701,{"$f":"IF($G$19<0,0,$G$19*$H$19)","v":0}]
[null,"Energy Offshore / Marine",null,"Schedule IVA, Line (10)",{"$f":"+'Schedule IVA (EBS)'!M20","v":0},{"$f":"'Schedule IVA (EBS)'!Q20","v":0},{"$f":"+'Geographic Diversification'!H18","v":0},0.42102344656076801,{"$f":"IF($G$20<0,0,$G$20*$H$20)","v":0}]
[null,"Energy Offshore / Marine Non-Proportional",null,"Schedule IVA, Line (11)",{"$f":"+'Schedule IVA (EBS)'!M21","v":0},{"$f":"'Schedule IVA (EBS)'!Q21","v":0},{"$f":"+'Geographic Diversification'!H19","v":0},0.47016820069929899,{"$f":"IF($G$21<0,0,$G$21*$H$21)","v":0}]
[null,"US Casualty",null,"Schedule IVA, Line (12)",{"$f":"+'Schedule IVA (EBS)'!M22","v":0},{"$f":"'Schedule IVA (EBS)'!Q22","v":0},{"$f":"+'Geographic Diversification'!H20","v":0},0.50272577892886305,{"$f":"IF($G$22<0,0,$G$22*$H$22)","v":0}]
[null,"US Casualty Non-Proportional",null,"Schedule IVA, Line (13)",{"$f":"+'Schedule IVA (EBS)'!M23","v":0},{"$f":"'Schedule IVA (EBS)'!Q23","v":0},{"$f":"+'Geographic Diversification'!H21","v":0},0.555814073452775,{"$f":"IF($G$23<0,0,$G$23*$H$23)","v":0}]
[null,"US Professional",null,"Schedule IVA, Line (14)",{"$f":"+'Schedule IVA (EBS)'!M24","v":0},{"$f":"'Schedule IVA (EBS)'!Q24","v":0},{"$f":"+'Geographic Diversification'!H22","v":0},0.51225206482709496,{"$f":"IF($G$24<0,0,$G$24*$H$24)","v":0}]
[null,"US Professional Non-Proportional",null,"Schedule IVA, Line (15)",{"$f":"+'Schedule IVA (EBS)'!M25","v":0},{"$f":"'Schedule IVA (EBS)'!Q25","v":0},{"$f":"+'Geographic Diversification'!H23","v":0},0.53805556666757803,{"$f":"IF($G$25<0,0,$G$25*$H$25)","v":0}]
[null,"US Specialty",null,"Schedule IVA, Line (16)",{"$f":"+'Schedule IVA (EBS)'!M26","v":0},{"$f":"'Schedule IVA (EBS)'!Q26","v":0},{"$f":"+'Geographic Diversification'!H24","v":0},0.51436147942106603,{"$f":"IF($G$26<0,0,$G$26*$H$26)","v":0}]
[null,"US Specialty Non-Proportional",null,"Schedule IVA, Line (17)",{"$f":"+'Schedule IVA (EBS)'!M27","v":0},{"$f":"'Schedule IVA (EBS)'!Q27","v":0},{"$f":"+'Geographic Diversification'!H25","v":0},0.52697789035313303,{"$f":"IF($G$27<0,0,$G$27*$H$27)","v":0}]
[null,"International Motor",null,"Schedule IVA, Line (18)",{"$f":"+'Schedule IVA (EBS)'!M28","v":0},{"$f":"'Schedule IVA (EBS)'!Q28","v":0},{"$f":"+'Geographic Diversification'!H26","v":0},0.42191756117933499,{"$f":"IF($G$28<0,0,$G$28*$H$28)","v":0}]
[null,"International Motor Non-Proportional",null,"Schedule IVA, Line (19)",{"$f":"+'Schedule IVA (EBS)'!M29","v":0},{"$f":"'Schedule IVA (EBS)'!Q29","v":0},{"$f":"+'Geographic Diversification'!H27","v":0},0.482210885429324,{"$f":"IF($G$29<0,0,$G$29*$H$29)","v":0}]
[null,"International Casualty Non-Motor",null,"Schedule IVA, Line (20)",{"$f":"+'Schedule IVA (EBS)'!M30","v":0},{"$f":"'Schedule IVA (EBS)'!Q30","v":0},{"$f":"+'Geographic Diversification'!H28","v":0},0.50012106835589698,{"$f":"IF($G$30<0,0,$G$30*$H$30)","v":0}]
[null,"International Casualty Non-Motor Non-Proportional",null,"Schedule IVA, Line (21)",{"$f":"+'Schedule IVA (EBS)'!M31","v":0},{"$f":"'Schedule IVA (EBS)'!Q31","v":0},{"$f":"+'Geographic Diversification'!H29","v":0},0.53551360019381999,{"$f":"IF($G$31<0,0,$G$31*$H$31)","v":0}]
[null,"Retro Property",null,"Schedule IVA, Line (22)",{"$f":"+'Schedule IVA (EBS)'!M32","v":0},{"$f":"'Schedule IVA (EBS)'!Q32","v":0},{"$f":"+'Geographic Diversification'!H30","v":0},0.508030898436173,{"$f":"IF($G$32<0,0,$G$32*$H$32)","v":0}]
[null,"Structured / Finite Reinsurance",null,"Schedule IVA, Line (23)",{"$f":"+'Schedule IVA (EBS)'!M33","v":0},{"$f":"'Schedule IVA (EBS)'!Q33","v":0},{"$f":"+'Geographic Diversification'!H31","v":0},0.27200000000000002,{"$f":"IF($G$33<0,0,$G$33*$H$33)","v":0}]
[null,"Health",null,"Schedule IVA, Line (24)",{"$f":"+'Schedule IVA (EBS)'!M34","v":0},{"$f":"'Schedule IVA (EBS)'!Q34","v":0},{"$f":"+'Geographic Diversification'!H32","v":0},0.15,{"$f":"IF($G$34<0,0,$G$34*$H$34)","v":0}]
[]
[null,"(a)  TOTAL",null,null,{"$f":"SUM(E11:E34)","v":0},{"$f":"SUM(F11:F34)","v":0},{"$f":"SUM(G11:G34)","v":0},null,{"$f":"SUM(I11:I35)","v":0}]
[]
[null,"(b)  CONCENTRATION ADJUSTMENT CALCULATION"]
[]
[null,"(i)","(i)","Maximum Premium [ Maximum (1a) excl Prop CAT ]",null,null,null,null,{"$f":"MAX(G12:G34)","v":0}]
[null,"(ii)","(ii)","Total Premium [ Total (1a) excl Prop CAT ]",null,null,null,null,{"$f":"G36-G11","v":0}]
[null,"(iii)","(iii)","Maximum Premium / Total Premium [ (i) / (ii) ]",null,null,null,null,{"$f":"IF(I41=0,0,I40/I41)","v":0}]
[null,"(iv)","(iv)","Maximum Adjustment",null,null,null,null,{"$f":"'Reserve Risk'!H43","v":0.4}]
[null,"(v)","(v)","[ (iii) x (iv) ]",null,null,null,null,{"$f":"I42*I43","v":0}]
[null,"(vi)","(vi)","Minimum Adjustment Factor",null,null,null,null,{"$f":"1-I43","v":0.6}]
[]
[null,"(b)  CONCENTRATION ADJUSTMENT FACTOR [ (v) + (vi) ]",null,null,null,null,null,null,{"$f":"I44+I45","v":0.6}]
[]
[null,"(c)  REQUIRED CAPITAL CHARGE  [ TOTAL (a) x (b) ]",null,null,null,null,null,null,{"$f":"IF(I36=0,0,I36*I47)","v":0}]
[]
[null,"(c)  CATASTROPHE PREMIUM ADJUSTMENT CALCULATION"]
[]
[null,"(i)","(i)","Average Annual Loss (AAL) Excluding Property Catastrophe",null,null,null,null,{"$f":"'Catastrophe Risk'!E11","v":0}]
[null,"(ii)","(ii)","Industry Catastrophe Loss Ratio",null,null,null,null,{"$f":"'Catastrophe Risk'!E13","v":0.4}]
[null,"(iii)","(iii)","Avg Capital Factor  [ Total (3c) / (Total (1a) excl Prop CAT) ]",null,null,null,null,{"$f":"IF(I41=0,0,I49/I41)","v":0}]
[]
[null,"(c)  CATASTROPHE PREMIUM ADJUSTMENT  [ (i) / (ii) x (iii) ]",null,null,null,null,null,null,{"$f":"I53/I54*I55","v":0}]
[]
[null,"(b)  CONCENTRATION ADJUSTMENT CALCULATIONS"]
[]
[null,null,"(i)","Total Premium [ Total (1a) excl Prop CAT ]",null,null,null,null,{"$f":"G36-G11","v":0}]
[null,null,"(ii)","Concentration Adjustment (HHI Calculation)",null,null,null,null,{"$f":"IF(I61=0,0,(G12/I61)^2+(G13/I61)^2+(G14/I61)^2+(G15/I61)^2+(G16/I61)^2+(G17/I61)^2+(G18/I61)^2+(G19/I61)^2+(G20/I61)^2+(G21/I61)^2+(G22/I61)^2+(G23/I61)^2+(G24/I61)^2+(G25/I61)^2+(G26/I61)^2+(G27/I61)^2+(G28/I61)^2+(G29/I61)^2+(G30/I61)^2+(G31/I61)^2+(G32/I61)^2+(G33/I61)^2+(G34/I61)^2)","v":0}]
[null,null,"(iii)","Maximum Adjustment",null,null,null,null,0.4]
[null,null,"(iv)"," [ (ii) x (iii) ]",null,null,null,null,{"$f":"I62*I63","v":0}]
[null,null,"(v)","Minimum Adjustment Factor",null,null,null,null,{"$f":"1-I63","v":0.6}]
[]
[null,"(b)(i) CONCENTRATION ADJUSTMENT FACTOR (formula 1) [(iv) + (v)]",null,null,null,null,null,null,{"$f":"I64+I65","v":0.6}]
[]
[null,null,"(i)","Concentration Adjustment (up to 95%)",null,null,null,null,{"$f":"'Schedule IX(b)'!H51/900*95%","v":0}]
[null,null,"(ii)","Related Business % (up to 5%)",null,null,null,null,{"$f":"'Schedule IX(b)'!H55*5%","v":0}]
[null,null,"(iii)"," [ (i) + (ii) ]",null,null,null,null,{"$f":"I69+I70","v":0}]
[null,null,"(iv)","Maximum Adjustment",null,null,null,null,0.4]
[]
[null,"(b)(ii) CONCENTRATION ADJUSTMENT FACTOR (formula 2) [(iii) x (iv)]",null,null,null,null,null,null,{"$f":"I71*I72","v":0}]
[]
[null,"(c) CONCENTRATION ADJUSTMENT FACTOR [(b)(i)-(b)(ii)]",null,null,null,null,null,null,{"$f":"I67-I74","v":0.6}]
[]
[null,{"$f":"IF('Company Information'!F11=\"Class 3A\",\"(d) TOTAL PREMIUM RISK [(a) x (c)]\",\"(e)  TOTAL PREMIUM RISK (AFTER CATASTROPHE PREMIUM ADJUSTMENT)   [ (c) - (d) ]\")","v":"(e)  TOTAL PREMIUM RISK (AFTER CATASTROPHE PREMIUM ADJUSTMENT)   [ (c) - (d) ]"},null,null,null,null,null,null,{"$f":"IF('Company Information'!F11=\"Class 3A\",IF((I76*I36)>=0,I76*I36,0),IF(I49-I57>=0,I49-I57,0))","v":0}]

{"sheet":"Premium Risk (Revised)","index":116,"n_rows":59,"n_cols":20,"rows_kept":59,"cut":false,"hidden":false,"merged":[[5,2,6,2]]}
["PREMIUM RISK (REVISED)",null,null,null,null,null,null,null,null,null,null,null,null,{"$f":"HYPERLINK(\"#'Index'!A1\",\"Return to Index\")","v":"Return to Index"}]
[{"$f":"'Company Information'!C7","v":"Enter Company Name"}]
[{"$f":"\"Premium Risk\" & \"($\"&IF(CONFIGURATION!$B$12>1,MID(CONFIGURATION!$B$12,2,LEN(CONFIGURATION!$B$12)),\"\")&\")\"","v":"Premium Risk($000)"},null,{"$f":"'Company Information'!C3","v":"2019-12-31"}]
[]
[null,null,null,"GROSS","NET","GEO","GEO","GEO","GEO","GEO","CAPITAL","CAPITAL","CAPITAL",null,null,null,"Capital Charges for Credit Risk"]
[null,null,"STATEMENT SOURCE","EXPOSURE","EXPOSURE","DIVERSIFIED","DIVERSIFIED","DIVERSIFIED","DIVERSIFIED","DIVERSIFIED","FACTOR 1","FACTOR 2","FACTOR 3","REQUIRED",null,null,"Gross Required"]
[null,"LINE OF BUSINESS",null,"MEASURE","MEASURE","PREMIUMS","SCALAR","NET BASE EXPOSURE","NET FP (EXISTING)","NET FP (FUTURE)","NET BASE EXPOSURE","NET FP (EXISTING)","NET FP (FUTURE)","CAPITAL",null,null,"Capital "]
[]
[null,null,null,"(1)","(2)","(3)","(4)","(5)","(6)","(7)","(8)","(9)","(10)","(11)",null,null,null,null,"Scalars 2","Scalars 3"]
[]
[null,"Property Catastrophe","Schedule IVD, Line (1)",{"$f":"'Schedule IVD (EBS)'!Q9","v":0},{"$f":"'Schedule IVD (EBS)'!O9","v":0},{"$f":"'Geographic Div. (Revised)'!H9","v":0},{"$f":"IF(IFERROR(F11/E11,1)<0,1,IFERROR(F11/E11,1))","v":1},{"$f":"'Schedule IVD (EBS)'!I9*$G11","v":0},{"$f":"'Schedule IVD (EBS)'!K9*$G11","v":0},{"$f":"'Schedule IVD (EBS)'!M9*$G11","v":0},0,0.115,{"$f":"+L11*T11","v":5.7500000000000002E-2},{"$f":"IF($H11<0,0,$H11*$K11)+IF($I11<0,0,$I11*$L11)+IF($J11<0,0,$J11*$M11)","v":0},null,null,{"$f":"IF(H11=E11,MAX(D11*K11,0),IF(E11=F11,IF(D11<0,0,D11*(H11/F11)*K11),IF(D11<0,0,D11*(H11/E11)*K11)))\n+IF(I11=E11,MAX(D11*L11,0),IF(E11=F11,IF(D11<0,0,D11*(I11/F11)*L11),IF(D11<0,0,D11*(I11/E11)*L11)))\n+IF(J11=E11,MAX(D11*M11,0),IF(E11=F11,IF(D11<0,0,D11*(J11/F11)*M11),IF(D11<0,0,D11*(J11/E11)*M11)))","v":0},null,0,0.5]
[null,"Property","Schedule IVD, Line (2)",{"$f":"'Schedule IVD (EBS)'!Q10","v":0},{"$f":"'Schedule IVD (EBS)'!O10","v":0},{"$f":"'Geographic Div. (Revised)'!H10","v":0},{"$f":"IF(IFERROR(F12/E12,1)<0,1,IFERROR(F12/E12,1))","v":1},{"$f":"'Schedule IVD (EBS)'!I10*$G12","v":0},{"$f":"'Schedule IVD (EBS)'!K10*$G12","v":0},{"$f":"'Schedule IVD (EBS)'!M10*$G12","v":0},0.497450025355053,{"$f":"+K12*S12","v":0.12436250633876325},6.2181253169381626E-2,{"$f":"IF($H12<0,0,$H12*$K12)+IF($I12<0,0,$I12*$L12)+IF($J12<0,0,$J12*$M12)","v":0},null,null,{"$f":"IF(H12=E12,MAX(D12*K12,0),IF(E12=F12,IF(D12<0,0,D12*(H12/F12)*K12),IF(D12<0,0,D12*(H12/E12)*K12)))\n+IF(I12=E12,MAX(D12*L12,0),IF(E12=F12,IF(D12<0,0,D12*(I12/F12)*L12),IF(D12<0,0,D12*(I12/E12)*L12)))\n+IF(J12=E12,MAX(D12*M12,0),IF(E12=F12,IF(D12<0,0,D12*(J12/F12)*M12),IF(D12<0,0,D12*(J12/E12)*M12)))","v":0},null,0.25,0.5]
[null,"Property Non-Proportional","Schedule IVD, Line (3)",{"$f":"'Schedule IVD (EBS)'!Q11","v":0},{"$f":"'Schedule IVD (EBS)'!O11","v":0},{"$f":"'Geographic Div. (Revised)'!H11","v":0},1,{"$f":"'Schedule IVD (EBS)'!I11*$G13","v":0},{"$f":"'Schedule IVD (EBS)'!K11*$G13","v":0},{"$f":"'Schedule IVD (EBS)'!M11*$G13","v":0},0.51625715924082105,0.12906428981020526,6.4532144905102631E-2,{"$f":"IF($H13<0,0,$H13*$K13)+IF($I13<0,0,$I13*$L13)+IF($J13<0,0,$J13*$M13)","v":0},null,null,0,null,0.25,0.5]
[null,"Personal Accident","Schedule IVD, Line (4)",{"$f":"'Schedule IVD (EBS)'!Q12","v":0},{"$f":"'Schedule IVD (EBS)'!O12","v":0},{"$f":"'Geographic Div. (Revised)'!H12","v":0},1,{"$f":"'Schedule IVD (EBS)'!I12*$G14","v":0},{"$f":"'Schedule IVD (EBS)'!K12*$G14","v":0},{"$f":"'Schedule IVD (EBS)'!M12*$G14","v":0},0.34115345724240698,8.5288364310601744E-2,4.2644182155300872E-2,{"$f":"IF($H14<0,0,$H14*$K14)+IF($I14<0,0,$I14*$L14)+IF($J14<0,0,$J14*$M14)","v":0},null,null,0,null,0.25,0.5]
[null,"Personal Accident Non-Proportional","Schedule IVD, Line (5)",{"$f":"'Schedule IVD (EBS)'!Q13","v":0},{"$f":"'Schedule IVD (EBS)'!O13","v":0},{"$f":"'Geographic Div. (Revised)'!H13","v":0},1,{"$f":"'Schedule IVD (EBS)'!I13*$G15","v":0},{"$f":"'Schedule IVD (EBS)'!K13*$G15","v":0},{"$f":"'Schedule IVD (EBS)'!M13*$G15","v":0},0.41221262895987398,0.12366378868796218,6.1831894343981092E-2,0,null,null,0,null,0.3,0.5]
[null,"Aviation","Schedule IVD, Line (6)",{"$f":"'Schedule IVD (EBS)'!Q14","v":0},{"$f":"'Schedule IVD (EBS)'!O14","v":0},{"$f":"'Geographic Div. (Revised)'!H14","v":0},1,{"$f":"'Schedule IVD (EBS)'!I14*$G16","v":0},{"$f":"'Schedule IVD (EBS)'!K14*$G16","v":0},{"$f":"'Schedule IVD (EBS)'!M14*$G16","v":0},0.48178449435856302,0.14453534830756889,7.2267674153784447E-2,{"$f":"IF($H16<0,0,$H16*$K16)+IF($I16<0,0,$I16*$L16)+IF($J16<0,0,$J16*$M16)","v":0},null,null,0,null,0.3,0.5]
[null,"Aviation Non-Proportional","Schedule IVD, Line (7)",{"$f":"'Schedule IVD (EBS)'!Q15","v":0},{"$f":"'Schedule IVD (EBS)'!O15","v":0},{"$f":"'Geographic Div. (Revised)'!H15","v":0},1,{"$f":"'Schedule IVD (EBS)'!I15*$G17","v":0},{"$f":"'Schedule IVD (EBS)'!K15*$G17","v":0},{"$f":"'Schedule IVD (EBS)'!M15*$G17","v":0},0.48201231799963601,0.14460369539989079,7.2301847699945396E-2,0,null,null,0,null,0.3,0.5]
[null,"Credit / Surety","Schedule IVD, Line (8)",{"$f":"'Schedule IVD (EBS)'!Q16","v":0},{"$f":"'Schedule IVD (EBS)'!O16","v":0},{"$f":"'Geographic Div. (Revised)'!H16","v":0},1,{"$f":"'Schedule IVD (EBS)'!I16*$G18","v":0},{"$f":"'Schedule IVD (EBS)'!K16*$G18","v":0},{"$f":"'Schedule IVD (EBS)'!M16*$G18","v":0},0.39820522005250802,0.1194615660157524,5.9730783007876202E-2,0,null,null,0,null,0.3,0.5]
[null,"Credit / Surety Non-Proportional","Schedule IVD, Line (9)",{"$f":"'Schedule IVD (EBS)'!Q17","v":0},{"$f":"'Schedule IVD (EBS)'!O17","v":0},{"$f":"'Geographic Div. (Revised)'!H17","v":0},1,{"$f":"'Schedule IVD (EBS)'!I17*$G19","v":0},{"$f":"'Schedule IVD (EBS)'!K17*$G19","v":0},{"$f":"'Schedule IVD (EBS)'!M17*$G19","v":0},0.45356665999464701,0.13606999799839409,6.8034998999197044E-2,0,null,null,0,null,0.3,0.5]
[null,"Energy Offshore / Marine","Schedule IVD, Line (10)",{"$f":"'Schedule IVD (EBS)'!Q18","v":0},{"$f":"'Schedule IVD (EBS)'!O18","v":0},{"$f":"'Geographic Div. (Revised)'!H18","v":0},1,{"$f":"'Schedule IVD (EBS)'!I18*$G20","v":0},{"$f":"'Schedule IVD (EBS)'!K18*$G20","v":0},{"$f":"'Schedule IVD (EBS)'!M18*$G20","v":0},0.42102344656076801,0.1263070339682304,6.3153516984115199E-2,0,null,null,0,null,0.3,0.5]
[null,"Energy Offshore / Marine Non-Proportional","Schedule IVD, Line (11)",{"$f":"'Schedule IVD (EBS)'!Q19","v":0},{"$f":"'Schedule IVD (EBS)'!O19","v":0},{"$f":"'Geographic Div. (Revised)'!H19","v":0},1,{"$f":"'Schedule IVD (EBS)'!I19*$G21","v":0},{"$f":"'Schedule IVD (EBS)'!K19*$G21","v":0},{"$f":"'Schedule IVD (EBS)'!M19*$G21","v":0},0.47016820069929899,0.1410504602097897,7.0525230104894851E-2,0,null,null,0,null,0.3,0.5]
[null,"US Casualty","Schedule IVD, Line (12)",{"$f":"'Schedule IVD (EBS)'!Q20","v":0},{"$f":"'Schedule IVD (EBS)'!O20","v":0},{"$f":"'Geographic Div. (Revised)'!H20","v":0},1,{"$f":"'Schedule IVD (EBS)'!I20*$G22","v":0},{"$f":"'Schedule IVD (EBS)'!K20*$G22","v":0},{"$f":"'Schedule IVD (EBS)'!M20*$G22","v":0},0.50272577892886305,0.25136288946443153,0.12568144473221576,0,null,null,0,null,0.5,0.5]
[null,"US Casualty Non-Proportional","Schedule IVD, Line (13)",{"$f":"'Schedule IVD (EBS)'!Q21","v":0},{"$f":"'Schedule IVD (EBS)'!O21","v":0},{"$f":"'Geographic Div. (Revised)'!H21","v":0},1,{"$f":"'Schedule IVD (EBS)'!I21*$G23","v":0},{"$f":"'Schedule IVD (EBS)'!K21*$G23","v":0},{"$f":"'Schedule IVD (EBS)'!M21*$G23","v":0},0.555814073452775,0.2779070367263875,0.13895351836319375,0,null,null,0,null,0.5,0.5]
[null,"US Professional","Schedule IVD, Line (14)",{"$f":"'Schedule IVD (EBS)'!Q22","v":0},{"$f":"'Schedule IVD (EBS)'!O22","v":0},{"$f":"'Geographic Div. (Revised)'!H22","v":0},1,{"$f":"'Schedule IVD (EBS)'!I22*$G24","v":0},{"$f":"'Schedule IVD (EBS)'!K22*$G24","v":0},{"$f":"'Schedule IVD (EBS)'!M22*$G24","v":0},0.51225206482709496,0.25612603241354748,0.12806301620677374,0,null,null,0,null,0.5,0.5]
[null,"US Professional Non-Proportional","Schedule IVD, Line (15)",{"$f":"'Schedule IVD (EBS)'!Q23","v":0},{"$f":"'Schedule IVD (EBS)'!O23","v":0},{"$f":"'Geographic Div. (Revised)'!H23","v":0},1,{"$f":"'Schedule IVD (EBS)'!I23*$G25","v":0},{"$f":"'Schedule IVD (EBS)'!K23*$G25","v":0},{"$f":"'Schedule IVD (EBS)'!M23*$G25","v":0},0.53805556666757803,0.26902778333378902,0.13451389166689451,0,null,null,0,null,0.5,0.5]
[null,"US Specialty","Schedule IVD, Line (16)",{"$f":"'Schedule IVD (EBS)'!Q24","v":0},{"$f":"'Schedule IVD (EBS)'!O24","v":0},{"$f":"'Geographic Div. (Revised)'!H24","v":0},1,{"$f":"'Schedule IVD (EBS)'!I24*$G26","v":0},{"$f":"'Schedule IVD (EBS)'!K24*$G26","v":0},{"$f":"'Schedule IVD (EBS)'!M24*$G26","v":0},0.51436147942106603,0.25718073971053301,0.12859036985526651,0,null,null,0,null,0.5,0.5]
[null,"US Specialty Non-Proportional","Schedule IVD, Line (17)",{"$f":"'Schedule IVD (EBS)'!Q25","v":0},{"$f":"'Schedule IVD (EBS)'!O25","v":0},{"$f":"'Geographic Div. (Revised)'!H25","v":0},1,{"$f":"'Schedule IVD (EBS)'!I25*$G27","v":0},{"$f":"'Schedule IVD (EBS)'!K25*$G27","v":0},{"$f":"'Schedule IVD (EBS)'!M25*$G27","v":0},0.52697789035313303,0.26348894517656651,0.13174447258828326,0,null,null,0,null,0.5,0.5]
[null,"International Motor","Schedule IVD, Line (18)",{"$f":"'Schedule IVD (EBS)'!Q26","v":0},{"$f":"'Schedule IVD (EBS)'!O26","v":0},{"$f":"'Geographic Div. (Revised)'!H26","v":0},1,{"$f":"'Schedule IVD (EBS)'!I26*$G28","v":0},{"$f":"'Schedule IVD (EBS)'!K26*$G28","v":0},{"$f":"'Schedule IVD (EBS)'!M26*$G28","v":0},0.42191756117933499,0.12657526835380048,6.328763417690024E-2,0,null,null,0,null,0.3,0.5]
[null,"International Motor Non-Proportional","Schedule IVD, Line (19)",{"$f":"'Schedule IVD (EBS)'!Q27","v":0},{"$f":"'Schedule IVD (EBS)'!O27","v":0},{"$f":"'Geographic Div. (Revised)'!H27","v":0},1,{"$f":"'Schedule IVD (EBS)'!I27*$G29","v":0},{"$f":"'Schedule IVD (EBS)'!K27*$G29","v":0},{"$f":"'Schedule IVD (EBS)'!M27*$G29","v":0},0.482210885429324,0.241105442714662,0.120552721357331,0,null,null,0,null,0.5,0.5]
[null,"International Casualty Non-Motor","Schedule IVD, Line (20)",{"$f":"'Schedule IVD (EBS)'!Q28","v":0},{"$f":"'Schedule IVD (EBS)'!O28","v":0},{"$f":"'Geographic Div. (Revised)'!H28","v":0},1,{"$f":"'Schedule IVD (EBS)'!I28*$G30","v":0},{"$f":"'Schedule IVD (EBS)'!K28*$G30","v":0},{"$f":"'Schedule IVD (EBS)'!M28*$G30","v":0},0.50012106835589698,0.25006053417794849,0.12503026708897425,0,null,null,0,null,0.5,0.5]
[null,"International Casualty Non-Motor Non-Proportional","Schedule IVD, Line (21)",{"$f":"'Schedule IVD (EBS)'!Q29","v":0},{"$f":"'Schedule IVD (EBS)'!O29","v":0},{"$f":"'Geographic Div. (Revised)'!H29","v":0},1,{"$f":"'Schedule IVD (EBS)'!I29*$G31","v":0},{"$f":"'Schedule IVD (EBS)'!K29*$G31","v":0},{"$f":"'Schedule IVD (EBS)'!M29*$G31","v":0},0.53551360019381999,0.26775680009691,0.133878400048455,0,null,null,0,null,0.5,0.5]
[null,"Retro Property","Schedule IVD, Line (22)",{"$f":"'Schedule IVD (EBS)'!Q30","v":0},{"$f":"'Schedule IVD (EBS)'!O30","v":0},{"$f":"'Geographic Div. (Revised)'!H30","v":0},1,{"$f":"'Schedule IVD (EBS)'!I30*$G32","v":0},{"$f":"'Schedule IVD (EBS)'!K30*$G32","v":0},{"$f":"'Schedule IVD (EBS)'!M30*$G32","v":0},0.508030898436173,0.12700772460904325,6.3503862304521624E-2,0,null,null,0,null,0.25,0.5]
[null,"Structured / Finite Reinsurance","Schedule IVD, Line (23)",{"$f":"'Schedule IVD (EBS)'!Q31","v":0},{"$f":"'Schedule IVD (EBS)'!O31","v":0},{"$f":"'Geographic Div. (Revised)'!H31","v":0},1,{"$f":"'Schedule IVD (EBS)'!I31*$G33","v":0},{"$f":"'Schedule IVD (EBS)'!K31*$G33","v":0},{"$f":"'Schedule IVD (EBS)'!M31*$G33","v":0},0.27200000000000002,6.8000000000000005E-2,3.4000000000000002E-2,0,null,null,0,null,0.25,0.5]
[null,"Health","Schedule IVD, Line (24)",{"$f":"'Schedule IVD (EBS)'!Q32","v":0},{"$f":"'Schedule IVD (EBS)'!O32","v":0},{"$f":"'Geographic Div. (Revised)'!H32","v":0},1,{"$f":"'Schedule IVD (EBS)'!I32*$G34","v":0},{"$f":"'Schedule IVD (EBS)'!K32*$G34","v":0},{"$f":"'Schedule IVD (EBS)'!M32*$G34","v":0},0.15,3.7499999999999999E-2,1.8749999999999999E-2,0,null,null,0,null,0.25,0.5]
[]
[null,"(a)  TOTAL",null,{"$f":"SUM(D11:D34)","v":0},{"$f":"SUM(E11:E34)","v":0},{"$f":"SUM(F11:F34)","v":0},null,{"$f":"SUM(H11:H34)","v":0},{"$f":"SUM(I11:I34)","v":0},{"$f":"SUM(J11:J34)","v":0},null,null,null,{"$f":"SUM(N11:N35)","v":0},null,null,{"$f":"SUM(Q11:Q35)","v":0}]
[]
[null,"(b)  CORRELATION ADJUSTMENT"]
[]
[null,"(i)","Reduction in Capital Charge from Correlation Matrix",null,null,null,null,null,null,null,null,null,null,{"$f":"N36-N42","v":0},null,null,{"$f":"Q36-Q42","v":0}]
[]
[null,"(b)  CAPITAL CHARGE AFTER CORRELATION",null,null,null,null,null,null,null,null,{"$f":"SQRT(MMULT(TRANSPOSE(IF($H11:$H34<0,0,$H11:$H34*$K11:$K34)),MMULT('Correlation Matrix'!C15:Z38,IF($H11:$H34<0,0,$H11:$H34*$K11:$K34))))","v":0},null,null,{"$f":"SQRT(MMULT(TRANSPOSE(N11:N34),MMULT('Correlation Matrix'!C15:Z38,N11:N34)))","v":0},null,null,{"$f":"SQRT(MMULT(TRANSPOSE(Q11:Q34),MMULT('Correlation Matrix'!C15:Z38,Q11:Q34)))","v":0}]
[]
[null,"(c)  CATASTROPHE PREMIUM ADJUSTMENT CALCULATION"]
[]
[null,"(i)","Average Annual Loss (AAL) Excluding Property Catastrophe",null,null,null,null,null,null,null,null,null,null,{"$f":"'Catastrophe Risk (Revised)'!E11","v":0},null,null,{"$f":"'Catastrophe Risk (Revised)'!E11","v":0}]
[null,"(ii)","Industry Catastrophe Loss Ratio",null,null,null,null,null,null,null,null,null,null,{"$f":"'Catastrophe Risk (Revised)'!E13","v":0.4},null,null,{"$f":"'Catastrophe Risk (Revised)'!E13","v":0.4}]
[null,"(iii)","Avg Capital Factor  [ Total (3c) / (Total (1a) excl Prop CAT) ]",null,null,null,null,null,null,null,null,null,null,{"$f":"IF((H36-H11)=0,0,K42/(H36-H11))","v":0},null,null,{"$f":"IF((D36-D11)=0,0,Q42/(D36-D11))","v":0}]
[]
[null,"(c)  CATASTROPHE PREMIUM ADJUSTMENT  [ (i) / (ii) x (iii) ]",null,null,null,null,null,null,null,null,null,null,null,{"$f":"N46/N47*N48","v":0},null,null,{"$f":"Q46/Q47*Q48","v":0}]
[]
[null,"(i)","Concentration Adjustment (up to 95%)",null,null,null,null,null,null,null,null,null,null,{"$f":"'Schedule IX(b)'!H51/900*95%","v":0},null,null,{"$f":"'Schedule IX(b)'!H51/900*95%","v":0}]
[null,"(ii)","Related Business % (up to 5%)",null,null,null,null,null,null,null,null,null,null,{"$f":"'Schedule IX(b)'!H55*5%","v":0},null,null,{"$f":"'Schedule IX(b)'!H55*5%","v":0}]
[null,"(iii)"," [ (i) + (ii) ]",null,null,null,null,null,null,null,null,null,null,{"$f":"N52+N53","v":0},null,null,{"$f":"Q52+Q53","v":0}]
[null,"(iv)","Maximum Adjustment",null,null,null,null,null,null,null,null,null,null,0.4,null,null,0.4]
[]
[null,"(c) CONCENTRATION ADJUSTMENT FACTOR (formula 2) [(iii) x (iv)]",null,null,null,null,null,null,null,null,null,null,null,{"$f":"N54*N55","v":0},null,null,{"$f":"Q54*Q55","v":0}]
[]
[null,"(d)  TOTAL PREMIUM RISK (AFTER CATASTROPHE PREMIUM ADJUSTMENT)   [ (b) - (c) ]",null,null,null,null,null,null,null,null,null,null,null,{"$f":"IF('Company Information'!$F$11=\"Class 3A\",N42-N36*N57,IF(N42-N50>=0,N42-N50,0))","v":0},null,null,{"$f":"IF('Company Information'!$F$11=\"Class 3A\",Q42-Q36*Q57,IF(Q42-Q50>=0,Q42-Q50,0))","v":0}]

{"sheet":"Reserve Risk","index":117,"n_rows":68,"n_cols":8,"rows_kept":68,"cut":false,"hidden":false,"merged":[[69,0,69,1],[0,7,0,8],[5,2,6,2]]}
["RESERVE RISK",null,null,null,null,null,null,{"$f":"HYPERLINK(\"#'Index'!A1\",\"Return to Index\")","v":"Return to Index"}]
[{"$f":"'Company Information'!C7","v":"Enter Company Name"}]
[{"$f":"\"Reserve Risk\"& \"($\"&IF(CONFIGURATION!$B$12>1,MID(CONFIGURATION!$B$12,2,LEN(CONFIGURATION!$B$12)),\"\")&\")\"","v":"Reserve Risk($000)"},null,{"$f":"'Company Information'!$C$3","v":"2019-12-31"},-1,-2,-3,-4,-5]
[]
[null,null,null,"GROSS LOSS &","NET LOSS &","GEO"]
[null,null,"STATEMENT SOURCE","LOSS EXPENSE","LOSS EXPENSE","DIVERSIFIED","CAPITAL","REQUIRED"]
[null,"LINE OF BUSINESS",null,"PROVISIONS","PROVISIONS","PROVISIONS","FACTOR","CAPITAL"]
[]
[null,null,null,null,null,null,null,"(3) x (4)"]
[]
[null,"Property Catastrophe","Sch III EBS, Line (1)",{"$f":"+'Schedule III (EBS)'!D10","v":0},{"$f":"+'Schedule III (EBS)'!F10","v":0},{"$f":"+'Geographic Diversification'!H40","v":0},0.46158858246802098,{"$f":"IF($F$11<0,0,$F$11*$G$11)","v":0}]
[null,"Property","Sch III EBS, Line (2)",{"$f":"+'Schedule III (EBS)'!D11","v":0},{"$f":"+'Schedule III (EBS)'!F11","v":0},{"$f":"+'Geographic Diversification'!H41","v":0},0.43844984238218698,{"$f":"IF($F$12<0,0,$F$12*$G$12)","v":0}]
[null,"Property Non-Proportional","Sch III EBS, Line (3)",{"$f":"+'Schedule III (EBS)'!D12","v":0},{"$f":"+'Schedule III (EBS)'!F12","v":0},{"$f":"+'Geographic Diversification'!H42","v":0},0.49735573879029998,{"$f":"IF($F$13<0,0,$F$13*$G$13)","v":0}]
[null,"Personal Accident","Sch III EBS, Line (4)",{"$f":"+'Schedule III (EBS)'!D13","v":0},{"$f":"+'Schedule III (EBS)'!F13","v":0},{"$f":"+'Geographic Diversification'!H43","v":0},0.29666070682155399,{"$f":"IF($F$14<0,0,$F$14*$G$14)","v":0}]
[null,"Personal Accident Non-Proportional","Sch III EBS, Line (5)",{"$f":"+'Schedule III (EBS)'!D14","v":0},{"$f":"+'Schedule III (EBS)'!F14","v":0},{"$f":"+'Geographic Diversification'!H44","v":0},0.34876523067975901,{"$f":"IF($F$15<0,0,$F$15*$G$15)","v":0}]
[null,"Aviation","Sch III EBS, Line (6)",{"$f":"+'Schedule III (EBS)'!D15","v":0},{"$f":"+'Schedule III (EBS)'!F15","v":0},{"$f":"+'Geographic Diversification'!H45","v":0},0.45952604952349801,{"$f":"IF($F$16<0,0,$F$16*$G$16)","v":0}]
[null,"Aviation Non-Proportional","Sch III EBS, Line (7)",{"$f":"+'Schedule III (EBS)'!D16","v":0},{"$f":"+'Schedule III (EBS)'!F16","v":0},{"$f":"+'Geographic Diversification'!H46","v":0},0.48255646377949901,{"$f":"IF($F$17<0,0,$F$17*$G$17)","v":0}]
[null,"Credit / Surety","Sch III EBS, Line (8)",{"$f":"+'Schedule III (EBS)'!D17","v":0},{"$f":"+'Schedule III (EBS)'!F17","v":0},{"$f":"+'Geographic Diversification'!H47","v":0},0.383682680649994,{"$f":"IF($F$18<0,0,$F$18*$G$18)","v":0}]
[null,"Credit / Surety Non-Proportional","Sch III EBS, Line (9)",{"$f":"+'Schedule III (EBS)'!D18","v":0},{"$f":"+'Schedule III (EBS)'!F18","v":0},{"$f":"+'Geographic Diversification'!H48","v":0},0.43464696624596899,{"$f":"IF($F$19<0,0,$F$19*$G$19)","v":0}]
[null,"Energy Offshore / Marine","Sch III EBS, Line (10)",{"$f":"+'Schedule III (EBS)'!D19","v":0},{"$f":"+'Schedule III (EBS)'!F19","v":0},{"$f":"+'Geographic Diversification'!H49","v":0},0.39543823911176501,{"$f":"IF($F$20<0,0,$F$20*$G$20)","v":0}]
[null,"Energy Offshore / Marine Non-Proportional","Sch III EBS, Line (11)",{"$f":"+'Schedule III (EBS)'!D20","v":0},{"$f":"+'Schedule III (EBS)'!F20","v":0},{"$f":"+'Geographic Diversification'!H50","v":0},0.43945783577556502,{"$f":"IF($F$21<0,0,$F$21*$G$21)","v":0}]
[null,"US Casualty","Sch III EBS, Line (12)",{"$f":"+'Schedule III (EBS)'!D21","v":0},{"$f":"+'Schedule III (EBS)'!F21","v":0},{"$f":"+'Geographic Diversification'!H51","v":0},0.43018098459069698,{"$f":"IF($F$22<0,0,$F$22*$G$22)","v":0}]
[null,"US Casualty Non-Proportional","Sch III EBS, Line (13)",{"$f":"+'Schedule III (EBS)'!D22","v":0},{"$f":"+'Schedule III (EBS)'!F22","v":0},{"$f":"+'Geographic Diversification'!H52","v":0},0.48842309052279498,{"$f":"IF($F$23<0,0,$F$23*$G$23)","v":0}]
[null,"US Professional","Sch III EBS, Line (14)",{"$f":"+'Schedule III (EBS)'!D23","v":0},{"$f":"+'Schedule III (EBS)'!F23","v":0},{"$f":"+'Geographic Diversification'!H53","v":0},0.462752832710698,{"$f":"IF($F$24<0,0,$F$24*$G$24)","v":0}]
[null,"US Professional Non-Proportional","Sch III EBS, Line (15)",{"$f":"+'Schedule III (EBS)'!D24","v":0},{"$f":"+'Schedule III (EBS)'!F24","v":0},{"$f":"+'Geographic Diversification'!H54","v":0},0.51484129765284703,{"$f":"IF($F$25<0,0,$F$25*$G$25)","v":0}]
[null,"US Specialty","Sch III EBS, Line (16)",{"$f":"+'Schedule III (EBS)'!D25","v":0},{"$f":"+'Schedule III (EBS)'!F25","v":0},{"$f":"+'Geographic Diversification'!H55","v":0},0.46506790223690597,{"$f":"IF($F$26<0,0,$F$26*$G$26)","v":0}]
[null,"US Specialty Non-Proportional","Sch III EBS, Line (17)",{"$f":"+'Schedule III (EBS)'!D26","v":0},{"$f":"+'Schedule III (EBS)'!F26","v":0},{"$f":"+'Geographic Diversification'!H56","v":0},0.482760284027479,{"$f":"IF($F$27<0,0,$F$27*$G$27)","v":0}]
[null,"International Motor","Sch III EBS, Line (18)",{"$f":"+'Schedule III (EBS)'!D27","v":0},{"$f":"+'Schedule III (EBS)'!F27","v":0},{"$f":"+'Geographic Diversification'!H57","v":0},0.37080464615634001,{"$f":"IF($F$28<0,0,$F$28*$G$28)","v":0}]
[null,"International Motor Non-Proportional","Sch III EBS, Line (19)",{"$f":"+'Schedule III (EBS)'!D28","v":0},{"$f":"+'Schedule III (EBS)'!F28","v":0},{"$f":"+'Geographic Diversification'!H58","v":0},0.43541657269369,{"$f":"IF($F$29<0,0,$F$29*$G$29)","v":0}]
[null,"International Casualty Non-Motor","Sch III EBS, Line (20)",{"$f":"+'Schedule III (EBS)'!D29","v":0},{"$f":"+'Schedule III (EBS)'!F29","v":0},{"$f":"+'Geographic Diversification'!H59","v":0},0.43652386132510701,{"$f":"IF($F$30<0,0,$F$30*$G$30)","v":0}]
[null,"International Casualty Non-Motor Non-Proportional","Sch III EBS, Line (21)",{"$f":"+'Schedule III (EBS)'!D30","v":0},{"$f":"+'Schedule III (EBS)'!F30","v":0},{"$f":"+'Geographic Diversification'!H60","v":0},0.49410327959272199,{"$f":"IF($F$31<0,0,$F$31*$G$31)","v":0}]
[null,"Retro Property","Sch III EBS, Line (22)",{"$f":"+'Schedule III (EBS)'!D31","v":0},{"$f":"+'Schedule III (EBS)'!F31","v":0},{"$f":"+'Geographic Diversification'!H61","v":0},0.478452065307162,{"$f":"IF($F$32<0,0,$F$32*$G$32)","v":0}]
[null,"Structured / Finite Reinsurance","Sch III EBS, Line (23)",{"$f":"+'Schedule III (EBS)'!D32","v":0},{"$f":"+'Schedule III (EBS)'!F32","v":0},{"$f":"+'Geographic Diversification'!H62","v":0},0.24099999999999999,{"$f":"IF($F$33<0,0,$F$33*$G$33)","v":0}]
[null,"Health","Sch III EBS, Line (24)",{"$f":"+'Schedule III (EBS)'!D33","v":0},{"$f":"+'Schedule III (EBS)'!F33","v":0},{"$f":"+'Geographic Diversification'!H63","v":0},0.125,{"$f":"IF($F$34<0,0,$F$34*$G$34)","v":0}]
[]
[null,"(a)  TOTAL",null,{"$f":"SUM(D11:D34)","v":0},{"$f":"SUM(E11:E34)","v":0},{"$f":"SUM(F11:F34)","v":0},null,{"$f":"SUM(H11:H35)","v":0}]
[]
[null,"(b)  CONCENTRATION ADJUSTMENT CALCULATION"]
[]
[null,"(i)","Maximum Reserve [ Maximum (1a) ]",null,null,null,null,{"$f":"MAX(F11:F34)","v":0}]
[null,"(ii)","Total Reserve [ Total (1a) ]",null,null,null,null,{"$f":"F36","v":0}]
[null,"(iii)","Maximum Reserve / Total Reserve [ (i) / (ii) ]",null,null,null,null,{"$f":"IF(H41=0,0,H40/H41)","v":0}]
[null,"(iv)","Maximum Adjustment",null,null,null,null,0.4]
[null,"(v)"," [ (iii) x (iv) ]",null,null,null,null,{"$f":"H42*H43","v":0}]
[null,"(vi)","Minimum Adjustment Factor",null,null,null,null,{"$f":"1-H43","v":0.6}]
[]
[null,"(b)  CONCENTRATION ADJUSTMENT FACTOR [ (v) + (vi) ]",null,null,null,null,null,{"$f":"H45+H44","v":0.6}]
[]
[null,"(b) CONCENTRATION ADJUSTMENT CALCULATIONS:"]
[]
[null,"(i)","Total Reserve [ Total (1a) ]",null,null,null,null,{"$f":"F36","v":0}]
[null,"(ii)","Concentration Adjustment (HHI Calculation)",null,null,null,null,{"$f":"IF(H51=0,0,(F11/H51)^2+(F12/H51)^2+(F13/H51)^2+(F14/H51)^2+(F15/H51)^2+(F16/H51)^2+(F17/H51)^2+(F18/H51)^2+(F19/H51)^2+(F20/H51)^2+(F21/H51)^2+(F22/H51)^2+(F23/H51)^2+(F24/H51)^2+(F25/H51)^2+(F26/H51)^2+(F27/H51)^2+(F28/H51)^2+(F29/H51)^2+(F30/H51)^2+(F31/H51)^2+(F32/H51)^2+(F33/H51)^2+(F34/H51)^2)","v":0}]
[null,"(iii)","Maximum Adjustment",null,null,null,null,0.4]
[null,"(iv)"," [ (ii) x (iii) ]",null,null,null,null,{"$f":"H52*H53","v":0}]
[null,"(v)","Minimum Adjustment Factor",null,null,null,null,{"$f":"1-H53","v":0.6}]
[]
[null,"(b)(i) CONCENTRATION ADJUSTMENT FACTOR (formula 1) [(iv) + (v)]",null,null,null,null,null,{"$f":"H55+H54","v":0.6}]
[]
[null,"(i)","Concentration Adjustment (up to 95%)",null,null,null,null,{"$f":"+'Premium Risk'!I69","v":0}]
[null,"(ii)","Related Business % (up to 5%)",null,null,null,null,{"$f":"+'Premium Risk'!I70","v":0}]
[null,"(iii)"," [ (i) + (ii) ]",null,null,null,null,{"$f":"H59+H60","v":0}]
[null,"(iv)","Maximum Adjustment",null,null,null,null,0.4]
[]
[null,"(b)(ii) CONCENTRATION ADJUSTMENT FACTOR (formula 2) [(iii) x (iv)]",null,null,null,null,null,{"$f":"H61*H62","v":0}]
[]
[null,"(c) CONCENTRATION ADJUSTMENT FACTOR [(b)(i)-(b)(ii)]",null,null,null,null,null,{"$f":"H57-H64","v":0.6}]
[]
[null,{"$f":"IF('Company Information'!F11=\"Class 3A\",\"(d) TOTAL RESERVE RISK [(a) x (c)]\",\"(c)  TOTAL RESERVE RISK  [ Total (a) x (b) ]\")","v":"(c)  TOTAL RESERVE RISK  [ Total (a) x (b) ]"},null,null,null,null,null,{"$f":"IF('Company Information'!F11=\"Class 3A\",IF(H36=0,0,H36*H66),IF(H36*H47>=0,H36*H47,0))","v":0}]

{"sheet":"Reserve Risk (Revised)","index":118,"n_rows":53,"n_cols":8,"rows_kept":53,"cut":false,"hidden":false,"merged":[[0,7,0,8],[5,2,6,2],[54,0,54,1]]}
["RESERVE RISK (REVISED)",null,null,null,null,null,null,{"$f":"HYPERLINK(\"#'Index'!A1\",\"Return to Index\")","v":"Return to Index"}]
[{"$f":"'Company Information'!C7","v":"Enter Company Name"}]
[{"$f":"\"Reserve Risk\"& \"($\"&IF(CONFIGURATION!$B$12>1,MID(CONFIGURATION!$B$12,2,LEN(CONFIGURATION!$B$12)),\"\")&\")\"","v":"Reserve Risk($000)"},null,{"$f":"'Company Information'!$C$3","v":"2019-12-31"},-1,-2,-3,-4,-5]
[]
[null,null,null,"GROSS LOSS &","NET LOSS &","GEO"]
[null,null,"STATEMENT SOURCE","LOSS EXPENSE","LOSS EXPENSE","DIVERSIFIED","CAPITAL","REQUIRED"]
[null,"LINE OF BUSINESS",null,"PROVISIONS","PROVISIONS","PROVISIONS","FACTOR","CAPITAL"]
[]
[null,null,null,null,null,null,null,"(3) x (4)"]
[]
[null,"Property Catastrophe","Sch III EBS, Line (1)",{"$f":"+'Schedule III (EBS)'!D10","v":0},{"$f":"+'Schedule III (EBS)'!F10","v":0},{"$f":"+'Geographic Diversification'!H40","v":0},0.46158858246802098,{"$f":"IF($F$11<0,0,$F$11*$G$11)","v":0}]
[null,"Property","Sch III EBS, Line (2)",{"$f":"+'Schedule III (EBS)'!D11","v":0},{"$f":"+'Schedule III (EBS)'!F11","v":0},{"$f":"+'Geographic Diversification'!H41","v":0},0.43844984238218698,{"$f":"IF($F$12<0,0,$F$12*$G$12)","v":0}]
[null,"Property Non-Proportional","Sch III EBS, Line (3)",{"$f":"+'Schedule III (EBS)'!D12","v":0},{"$f":"+'Schedule III (EBS)'!F12","v":0},{"$f":"+'Geographic Diversification'!H42","v":0},0.49735573879029998,{"$f":"IF($F$13<0,0,$F$13*$G$13)","v":0}]
[null,"Personal Accident","Sch III EBS, Line (4)",{"$f":"+'Schedule III (EBS)'!D13","v":0},{"$f":"+'Schedule III (EBS)'!F13","v":0},{"$f":"+'Geographic Diversification'!H43","v":0},0.29666070682155399,{"$f":"IF($F$14<0,0,$F$14*$G$14)","v":0}]
[null,"Personal Accident Non-Proportional","Sch III EBS, Line (5)",{"$f":"+'Schedule III (EBS)'!D14","v":0},{"$f":"+'Schedule III (EBS)'!F14","v":0},{"$f":"+'Geographic Diversification'!H44","v":0},0.34876523067975901,{"$f":"IF($F$15<0,0,$F$15*$G$15)","v":0}]
[null,"Aviation","Sch III EBS, Line (6)",{"$f":"+'Schedule III (EBS)'!D15","v":0},{"$f":"+'Schedule III (EBS)'!F15","v":0},{"$f":"+'Geographic Diversification'!H45","v":0},0.45952604952349801,{"$f":"IF($F$16<0,0,$F$16*$G$16)","v":0}]
[null,"Aviation Non-Proportional","Sch III EBS, Line (7)",{"$f":"+'Schedule III (EBS)'!D16","v":0},{"$f":"+'Schedule III (EBS)'!F16","v":0},{"$f":"+'Geographic Diversification'!H46","v":0},0.48255646377949901,{"$f":"IF($F$17<0,0,$F$17*$G$17)","v":0}]
[null,"Credit / Surety","Sch III EBS, Line (8)",{"$f":"+'Schedule III (EBS)'!D17","v":0},{"$f":"+'Schedule III (EBS)'!F17","v":0},{"$f":"+'Geographic Diversification'!H47","v":0},0.383682680649994,{"$f":"IF($F$18<0,0,$F$18*$G$18)","v":0}]
[null,"Credit / Surety Non-Proportional","Sch III EBS, Line (9)",{"$f":"+'Schedule III (EBS)'!D18","v":0},{"$f":"+'Schedule III (EBS)'!F18","v":0},{"$f":"+'Geographic Diversification'!H48","v":0},0.43464696624596899,{"$f":"IF($F$19<0,0,$F$19*$G$19)","v":0}]
[null,"Energy Offshore / Marine","Sch III EBS, Line (10)",{"$f":"+'Schedule III (EBS)'!D19","v":0},{"$f":"+'Schedule III (EBS)'!F19","v":0},{"$f":"+'Geographic Diversification'!H49","v":0},0.39543823911176501,{"$f":"IF($F$20<0,0,$F$20*$G$20)","v":0}]
[null,"Energy Offshore / Marine Non-Proportional","Sch III EBS, Line (11)",{"$f":"+'Schedule III (EBS)'!D20","v":0},{"$f":"+'Schedule III (EBS)'!F20","v":0},{"$f":"+'Geographic Diversification'!H50","v":0},0.43945783577556502,{"$f":"IF($F$21<0,0,$F$21*$G$21)","v":0}]
[null,"US Casualty","Sch III EBS, Line (12)",{"$f":"+'Schedule III (EBS)'!D21","v":0},{"$f":"+'Schedule III (EBS)'!F21","v":0},{"$f":"+'Geographic Diversification'!H51","v":0},0.43018098459069698,{"$f":"IF($F$22<0,0,$F$22*$G$22)","v":0}]
[null,"US Casualty Non-Proportional","Sch III EBS, Line (13)",{"$f":"+'Schedule III (EBS)'!D22","v":0},{"$f":"+'Schedule III (EBS)'!F22","v":0},{"$f":"+'Geographic Diversification'!H52","v":0},0.48842309052279498,{"$f":"IF($F$23<0,0,$F$23*$G$23)","v":0}]
[null,"US Professional","Sch III EBS, Line (14)",{"$f":"+'Schedule III (EBS)'!D23","v":0},{"$f":"+'Schedule III (EBS)'!F23","v":0},{"$f":"+'Geographic Diversification'!H53","v":0},0.462752832710698,{"$f":"IF($F$24<0,0,$F$24*$G$24)","v":0}]
[null,"US Professional Non-Proportional","Sch III EBS, Line (15)",{"$f":"+'Schedule III (EBS)'!D24","v":0},{"$f":"+'Schedule III (EBS)'!F24","v":0},{"$f":"+'Geographic Diversification'!H54","v":0},0.51484129765284703,{"$f":"IF($F$25<0,0,$F$25*$G$25)","v":0}]
[null,"US Specialty","Sch III EBS, Line (16)",{"$f":"+'Schedule III (EBS)'!D25","v":0},{"$f":"+'Schedule III (EBS)'!F25","v":0},{"$f":"+'Geographic Diversification'!H55","v":0},0.46506790223690597,{"$f":"IF($F$26<0,0,$F$26*$G$26)","v":0}]
[null,"US Specialty Non-Proportional","Sch III EBS, Line (17)",{"$f":"+'Schedule III (EBS)'!D26","v":0},{"$f":"+'Schedule III (EBS)'!F26","v":0},{"$f":"+'Geographic Diversification'!H56","v":0},0.482760284027479,{"$f":"IF($F$27<0,0,$F$27*$G$27)","v":0}]
[null,"International Motor","Sch III EBS, Line (18)",{"$f":"+'Schedule III (EBS)'!D27","v":0},{"$f":"+'Schedule III (EBS)'!F27","v":0},{"$f":"+'Geographic Diversification'!H57","v":0},0.37080464615634001,{"$f":"IF($F$28<0,0,$F$28*$G$28)","v":0}]
[null,"International Motor Non-Proportional","Sch III EBS, Line (19)",{"$f":"+'Schedule III (EBS)'!D28","v":0},{"$f":"+'Schedule III (EBS)'!F28","v":0},{"$f":"+'Geographic Diversification'!H58","v":0},0.43541657269369,{"$f":"IF($F$29<0,0,$F$29*$G$29)","v":0}]
[null,"International Casualty Non-Motor","Sch III EBS, Line (20)",{"$f":"+'Schedule III (EBS)'!D29","v":0},{"$f":"+'Schedule III (EBS)'!F29","v":0},{"$f":"+'Geographic Diversification'!H59","v":0},0.43652386132510701,{"$f":"IF($F$30<0,0,$F$30*$G$30)","v":0}]
[null,"International Casualty Non-Motor Non-Proportional","Sch III EBS, Line (21)",{"$f":"+'Schedule III (EBS)'!D30","v":0},{"$f":"+'Schedule III (EBS)'!F30","v":0},{"$f":"+'Geographic Diversification'!H60","v":0},0.49410327959272199,{"$f":"IF($F$31<0,0,$F$31*$G$31)","v":0}]
[null,"Retro Property","Sch III EBS, Line (22)",{"$f":"+'Schedule III (EBS)'!D31","v":0},{"$f":"+'Schedule III (EBS)'!F31","v":0},{"$f":"+'Geographic Diversification'!H61","v":0},0.478452065307162,{"$f":"IF($F$32<0,0,$F$32*$G$32)","v":0}]
[null,"Structured / Finite Reinsurance","Sch III EBS, Line (23)",{"$f":"+'Schedule III (EBS)'!D32","v":0},{"$f":"+'Schedule III (EBS)'!F32","v":0},{"$f":"+'Geographic Diversification'!H62","v":0},0.24099999999999999,{"$f":"IF($F$33<0,0,$F$33*$G$33)","v":0}]
[null,"Health","Sch III EBS, Line (24)",{"$f":"+'Schedule III (EBS)'!D33","v":0},{"$f":"+'Schedule III (EBS)'!F33","v":0},{"$f":"+'Geographic Diversification'!H63","v":0},0.125,{"$f":"IF($F$34<0,0,$F$34*$G$34)","v":0}]
[]
[null,"(a)  TOTAL",null,{"$f":"SUM(D11:D34)","v":0},{"$f":"SUM(E11:E34)","v":0},{"$f":"SUM(F11:F34)","v":0},null,{"$f":"SUM(H11:H35)","v":0}]
[]
[null,"(b)  CORRELATION ADJUSTMENT"]
[]
[null,"(i)","Reduction in Capital Charge from Correlation Matrix",null,null,null,null,{"$f":"H36-H42","v":0}]
[]
[null,"(b)  RESERVE RISK AFTER CORRELATION ADJUSTMENT",null,null,null,null,null,{"$f":"SQRT(MMULT(TRANSPOSE(H11:H34),MMULT('Correlation Matrix'!C43:Z66,H11:H34)))","v":0}]
[]
[null,"(b) CONCENTRATION ADJUSTMENT CALCULATIONS:"]
[]
[null,"(i)","Concentration Adjustment (up to 95%)",null,null,null,null,{"$f":"'Premium Risk (Revised)'!N52","v":0}]
[null,"(ii)","Related Business % (up to 5%)",null,null,null,null,{"$f":"'Premium Risk (Revised)'!N53","v":0}]
[null,"(iii)"," [ (i) + (ii) ]",null,null,null,null,{"$f":"H46+H47","v":0}]
[null,"(iv)","Maximum Adjustment",null,null,null,null,0.4]
[]
[null,"(b)(ii) CONCENTRATION ADJUSTMENT FACTOR (formula 2) [(iii) x (iv)]",null,null,null,null,null,{"$f":"H48*H49","v":0}]
[]
[null,{"$f":"IF('Company Information'!F4=\"Class 3A\",\"(d) TOTAL RESERVE RISK [(a) x (c)]\",\"(c)  TOTAL RESERVE RISK  [ Total (a) x (b) ]\")","v":"(c)  TOTAL RESERVE RISK  [ Total (a) x (b) ]"},null,null,null,null,null,{"$f":"IF('Company Information'!$F$11=\"Class 3A\",IF(H42=0,0,H42-H36*H51),IF(H42>=0,H42,0))","v":0}]

{"sheet":"Credit Risk","index":119,"n_rows":41,"n_cols":6,"rows_kept":41,"cut":false,"hidden":false,"merged":[[43,0,43,1],[0,5,0,6]]}
["CREDIT RISK",null,null,null,null,{"$f":"HYPERLINK(\"#'Index'!A1\",\"Return to Index\")","v":"Return to Index"}]
[{"$f":"'Company Information'!C7","v":"Enter Company Name"}]
[{"$f":"\"Credit Risk\" & \"($\"&IF(CONFIGURATION!$B$12>1,MID(CONFIGURATION!$B$12,2,LEN(CONFIGURATION!$B$12)),\"\")&\")\"","v":"Credit Risk($000)"},null,{"$f":"'Company Information'!C3","v":"2019-12-31"},-1,-2,-3]
[]
[]
[null,"TYPE OF ",null,"RECEIVABLES/","CAPITAL","REQUIRED"]
[null,"DEBTOR","STATEMENT SOURCE","RECOVERABLES","FACTOR","CAPITAL"]
[]
[null,"(a)  Accounts and Premiums Receivable",null,null,null,"(1) x (2)"]
[]
[null,"In Course of Collection","Form 1EBS, Line (10a)",{"$f":"'Form 1EBS'!F57","v":0},0.05,{"$f":"IF($D$11<0,0,$D$11*$E$11)","v":0}]
[null,"Receivables from retrocessional contracts Less: Collateralized Balances","Form 1EBS, Line (10c), Notes to Form 1EBS, Line (10)",{"$f":"'Form 1EBS'!F58-'Form 1EBS'!F179","v":0},0.1,{"$f":"$D$12*$E$12","v":0}]
[]
[null,"(a)  SUBTOTAL - ACCOUNTS AND PREMIUMS RECEIVABLE",null,{"$f":"SUM(D11:D12)","v":0},null,{"$f":"IF(SUM(F11:F12)>=0,SUM(F11:F12),0)","v":0}]
[]
[null,"(b)  All Other Receivables"]
[]
[null,"Accrued Investment Income","Form 1EBS, Line (9)",{"$f":"'Form 1EBS'!F54","v":0},2.5000000000000001E-2,{"$f":"IF($D$18<0,0,$D$18*$E$18)","v":0}]
[null,"Advances to Affiliates","Form 1EBS, Line (4g)",{"$f":"'Form 1EBS'!F39","v":0},0.05,{"$f":"IF($D$19<0,0,$D$19*$E$19)","v":0}]
[]
[null,"(b)  SUBTOTAL - ALL OTHER RECEIVABLES",null,{"$f":"SUM(D18:D19)","v":0},null,{"$f":"IF(SUM(F18:F19)>=0,SUM(F18:F19),0)","v":0}]
[]
[null,"(c) Particulars of Reinsurance Balances By BSCR Rating",null,null,null,"Max(0, (Column (1) x Column (2) ))"]
[null,0]
[null,"BSCR Rating 0","Schedule XVIII EBS, Column E",{"$f":"'Schedule XVIII (EBS)'!O87","v":0},0,{"$f":"IF(D25<0,0,D25*E25)","v":0}]
[null,"BSCR Rating 1","Schedule XVIII EBS, Column E",{"$f":"'Schedule XVIII (EBS)'!O88","v":0},7.0000000000000001E-3,0]
[null,"BSCR Rating 2","Schedule XVIII EBS, Column E",{"$f":"'Schedule XVIII (EBS)'!O89","v":0},1.4999999999999999E-2,0]
[null,"BSCR Rating 3","Schedule XVIII EBS, Column E",{"$f":"'Schedule XVIII (EBS)'!O90","v":0},3.5000000000000003E-2,0]
[null,"BSCR Rating 4","Schedule XVIII EBS, Column E",{"$f":"'Schedule XVIII (EBS)'!O91","v":0},7.0000000000000007E-2,0]
[null,"BSCR Rating 5","Schedule XVIII EBS, Column E",{"$f":"'Schedule XVIII (EBS)'!O92","v":0},0.12,0]
[null,"BSCR Rating 6","Schedule XVIII EBS, Column E",{"$f":"'Schedule XVIII (EBS)'!O93","v":0},0.2,0]
[null,"BSCR Rating 7","Schedule XVIII EBS, Column E",{"$f":"'Schedule XVIII (EBS)'!O94","v":0},0.27,0]
[null,"BSCR Rating 8","Schedule XVIII EBS, Column E",{"$f":"'Schedule XVIII (EBS)'!O95","v":0},0.35,0]
[]
[null,"Total",null,{"$f":"SUM(D25:D33)","v":0},null,{"$f":"SUM(F25:F33)","v":0}]
[]
[null,"Diversification Adjustment up to 40%","Schedule XVIII EBS, Column E",null,{"$f":"'Schedule XVIII (EBS)'!O104","v":0},{"$f":"SUM(F25:F33)*-('Schedule XVIII (EBS)'!O104)","v":0}]
[]
[null,"(c)  SUBTOTAL - PARTICULARS OF REINSURANCE BALANCES BY BSCR RATING",null,{"$f":"+D35","v":0},null,{"$f":"SUM(F25:F33)+F37","v":0}]
[]
[null,"(d)  TOTAL CREDIT RISK  [ (a) + (b) + (c) ]",null,{"$f":"D14+D21+D39","v":0},null,{"$f":"F14+F21+F39","v":0}]

{"sheet":"Credit Risk (Revised)","index":120,"n_rows":84,"n_cols":8,"rows_kept":84,"cut":false,"hidden":false,"merged":[[0,7,0,8],[86,0,86,1]]}
["CREDIT RISK (REVISED)",null,null,null,null,null,null,{"$f":"HYPERLINK(\"#'Index'!A1\",\"Return to Index\")","v":"Return to Index"}]
[{"$f":"'Company Information'!C7","v":"Enter Company Name"}]
[{"$f":"\"Credit Risk\" & \"($\"&IF(CONFIGURATION!$B$12>1,MID(CONFIGURATION!$B$12,2,LEN(CONFIGURATION!$B$12)),\"\")&\")\"","v":"Credit Risk($000)"},null,null,{"$f":"'Company Information'!C3","v":"2019-12-31"},null,-1,-2,-3]
[]
[]
[null,"TYPE OF ",null,null,null,"RECEIVABLES/","CAPITAL","REQUIRED"]
[null,"DEBTOR",null,"STATEMENT SOURCE",null,"RECOVERABLES","FACTOR","CAPITAL"]
[]
[null,"(a)  Accounts and Premiums Receivable",null,null,null,null,null,"(1) x (2)"]
[]
[null,"In Course of Collection",null,"Form 1EBS, Line (10a)",null,{"$f":"'Form 1EBS'!F57","v":0},0.05,{"$f":"IF($F$11<0,0,$F$11*$G$11)","v":0}]
[null,"Deferred - Not Yet Due",null,"Form 1SFS, Line (10b)",null,{"$f":"IF('Form 1SFS'!M68=0,'Form 1SFS'!E68+'Form 1SFS'!I68,'Form 1SFS'!M68)","v":0},0.05,{"$f":"IF($F$12<0,0,$F$12*$G$12)","v":0}]
[null,"Receivables from retrocessional contracts Less: Collateralized Balances",null,"Form 1EBS, Line (10c), Notes to Form 1EBS, Line (10)",null,{"$f":"'Form 1EBS'!F58-'Form 1EBS'!F179","v":0},0.1,{"$f":"$F$13*$G$13","v":0}]
[]
[null,"(a)  SUBTOTAL - ACCOUNTS AND PREMIUMS RECEIVABLE",null,null,null,{"$f":"SUM(F11:F13)","v":0},null,{"$f":"IF(SUM(H11:H13)>=0,SUM(H11:H13),0)","v":0}]
[]
[null,"(b)  All Other Receivables"]
[]
[null,"Accrued Investment Income",null,"Form 1EBS, Line (9)",null,{"$f":"'Form 1EBS'!F54","v":0},2.5000000000000001E-2,{"$f":"IF($F$19<0,0,$F$19*$G$19)","v":0}]
[null,"Advances to Affiliates",null,"Form 1EBS, Line (4g)",null,{"$f":"'Form 1EBS'!F39","v":0},0.05,{"$f":"IF($F$20<0,0,$F$20*$G$20)","v":0}]
[null,"Balances receivable on sale of investments",null,"Form 1EBS, Line (13f)",null,{"$f":"'Form 1EBS'!F77","v":0},2.5000000000000001E-2,{"$f":"IF($F$21<0,0,$F$21*$G$21)","v":0}]
[]
[]
[null,"(b)  SUBTOTAL - ALL OTHER RECEIVABLES",null,null,null,{"$f":"SUM(F19:F21)","v":0},null,{"$f":"IF(SUM(H19:H21)>=0,SUM(H19:H21),0)","v":0}]
[]
[null,"(c)(i) Particulars of Reinsurance Balances For Current Year By BSCR Rating",null,null,null,null,null,"Max(0, (Column (1) x Column (2) ))"]
[null,0]
[null,"BSCR Rating 0",null,"Schedule XVIII EBS, Column E",null,{"$f":"'Schedule XVIII (EBS)'!O87","v":0},0,{"$f":"IF(F28<0,0,F28*G28)","v":0}]
[null,"BSCR Rating 1",null,"Schedule XVIII EBS, Column E",null,{"$f":"'Schedule XVIII (EBS)'!O88","v":0},7.0000000000000001E-3,0]
[null,"BSCR Rating 2",null,"Schedule XVIII EBS, Column E",null,{"$f":"'Schedule XVIII (EBS)'!O89","v":0},1.4999999999999999E-2,0]
[null,"BSCR Rating 3",null,"Schedule XVIII EBS, Column E",null,{"$f":"'Schedule XVIII (EBS)'!O90","v":0},3.5000000000000003E-2,0]
[null,"BSCR Rating 4",null,"Schedule XVIII EBS, Column E",null,{"$f":"'Schedule XVIII (EBS)'!O91","v":0},7.0000000000000007E-2,0]
[null,"BSCR Rating 5",null,"Schedule XVIII EBS, Column E",null,{"$f":"'Schedule XVIII (EBS)'!O92","v":0},0.12,0]
[null,"BSCR Rating 6",null,"Schedule XVIII EBS, Column E",null,{"$f":"'Schedule XVIII (EBS)'!O93","v":0},0.2,0]
[null,"BSCR Rating 7",null,"Schedule XVIII EBS, Column E",null,{"$f":"'Schedule XVIII (EBS)'!O94","v":0},0.27,0]
[null,"BSCR Rating 8",null,"Schedule XVIII EBS, Column E",null,{"$f":"'Schedule XVIII (EBS)'!O95","v":0},0.35,0]
[]
[null,"Total",null,null,null,{"$f":"SUM(F28:F36)","v":0},null,{"$f":"SUM(H28:H36)","v":0}]
[]
[null,"Diversification Adjustment up to 40%",null,"Schedule XVIII EBS, Column E",null,null,{"$f":"'Schedule XVIII (EBS)'!O104","v":0},{"$f":"SUM(H28:H36)*-('Schedule XVIII (EBS)'!O104)","v":0}]
[null,0]
[null,"(c)(i)  SUBTOTAL - PARTICULARS OF REINSURANCE BALANCES BY BSCR RATING",null,null,null,{"$f":"+F38","v":0},null,{"$f":"SUM(H28:H36)+H40","v":0}]
[]
[null,"(c)(ii) Particulars of Reinsurance Balances For Future Premium By BSCR Rating"]
[null,null,null,"(A)",null,"(B)","(C) ","(A) x (B) x (C) "]
[]
[null,"Premium Risk Capital Charge (Gross)",null,{"$f":"'Premium Risk (Revised)'!Q59","v":0}]
[null,"Premium Risk Capital Charge (Net)",null,{"$f":"'Premium Risk (Revised)'!N59","v":0}]
[null,"Reinsurance Asset - Premium Risk",null,{"$f":"D47-D48","v":0}]
[]
[null,"BSCR Rating 0",null,{"$f":"IF($F$38<>0, $D$49*F28/$F$38, 0)","v":0},null,{"$f":"IF($D$61=0,0,D51/$D$61)","v":0},0,{"$f":"IF($D$49<0,0,$D$49*F51*G51)","v":0}]
[null,"BSCR Rating 1",null,{"$f":"IF($F$38<>0, $D$49*F29/$F$38, 0)","v":0},null,{"$f":"IF($D$61=0,0,D52/$D$61)","v":0},7.0000000000000001E-3,{"$f":"IF($D$49<0,0,$D$49*F52*G52)","v":0}]
[null,"BSCR Rating 2",null,{"$f":"IF($F$38<>0, $D$49*F30/$F$38, 0)","v":0},null,0,1.4999999999999999E-2,0]
[null,"BSCR Rating 3",null,{"$f":"IF($F$38<>0, $D$49*F31/$F$38, 0)","v":0},null,0,3.5000000000000003E-2,0]
[null,"BSCR Rating 4",null,{"$f":"IF($F$38<>0, $D$49*F32/$F$38, D49)","v":0},null,0,7.0000000000000007E-2,0]
[null,"BSCR Rating 5",null,{"$f":"IF($F$38<>0, $D$49*F33/$F$38, 0)","v":0},null,0,0.12,0]
[null,"BSCR Rating 6",null,{"$f":"IF($F$38<>0, $D$49*F34/$F$38, 0)","v":0},null,0,0.2,0]
[null,"BSCR Rating 7",null,{"$f":"IF($F$38<>0, $D$49*F35/$F$38, 0)","v":0},null,0,0.27,0]
[null,"BSCR Rating 8",null,{"$f":"IF($F$38<>0, $D$49*F36/$F$38, 0)","v":0},null,0,0.35,0]
[]
[null,"Total",null,{"$f":"SUM(D51:D59)","v":0},null,{"$f":"SUM(F51:F59)","v":0},null,{"$f":"SUM(H51:H59)","v":0}]
[]
[null,"Diversification Adjustment up to 40%",null,"Schedule XVIII EBS, Column E",null,null,{"$f":"'Schedule XVIII (EBS)'!O104","v":0},{"$f":"SUM(H51:H59)*-('Schedule XVIII (EBS)'!O104)","v":0}]
[]
[null,"(c)(ii)  SUBTOTAL - PARTICULARS OF REINSURANCE BALANCES BY BSCR RATING ",null,null,null,null,null,{"$f":"SUM(H61:H63)","v":0}]
[]
[null,"(c)  SUBTOTAL - PARTICULARS OF REINSURANCE BALANCES BY BSCR RATING (MAX OF (C)(I) AND (C)(II)",null,null,null,{"$f":"MAX(F42,F65)","v":0},null,{"$f":"MAX(H42,H65)","v":0}]
[]
[null,"(d) Counterparty Default Risk for OTC Derivatives"]
[]
[null,null,"Market Value of Derivatives with Positive Market Value","Market Value of Derivatives with Negative Market Value","Market Value of Collateral, Excluding any overcollateralization","Capital Factor","Haircut on Collateral"]
[null,"BSCR Rating 0 ",{"$f":"'Schedule IIB (EBS)'!D84+'Schedule IIC (EBS)'!D84+'Schedule IID (EBS)'!D84+'Schedule IIE (EBS)'!D84+'Schedule IIF (EBS)'!D84","v":0},{"$f":"'Schedule IIB (EBS)'!F84+'Schedule IIC (EBS)'!F84+'Schedule IID (EBS)'!F84+'Schedule IIE (EBS)'!F84+'Schedule IIF (EBS)'!F84","v":0},{"$f":"'Schedule IIB (EBS)'!H84+'Schedule IIC (EBS)'!H84+'Schedule IID (EBS)'!H84+'Schedule IIE (EBS)'!H84+'Schedule IIF (EBS)'!H84","v":0},0,0.03,{"$f":"MAX(0,C72-(1-G72)*MIN(C72,E72))*F72","v":0}]
[null,"BSCR Rating 1",{"$f":"'Schedule IIB (EBS)'!D85+'Schedule IIC (EBS)'!D85+'Schedule IID (EBS)'!D85+'Schedule IIE (EBS)'!D85+'Schedule IIF (EBS)'!D85","v":0},{"$f":"'Schedule IIB (EBS)'!F85+'Schedule IIC (EBS)'!F85+'Schedule IID (EBS)'!F85+'Schedule IIE (EBS)'!F85+'Schedule IIF (EBS)'!F85","v":0},{"$f":"'Schedule IIB (EBS)'!H85+'Schedule IIC (EBS)'!H85+'Schedule IID (EBS)'!H85+'Schedule IIE (EBS)'!H85+'Schedule IIF (EBS)'!H85","v":0},4.0000000000000001E-3,0.03,{"$f":"MAX(0,C73-(1-G73)*MIN(C73,E73))*F73","v":0}]
[null,"BSCR Rating 2",{"$f":"'Schedule IIB (EBS)'!D86+'Schedule IIC (EBS)'!D86+'Schedule IID (EBS)'!D86+'Schedule IIE (EBS)'!D86+'Schedule IIF (EBS)'!D86","v":0},{"$f":"'Schedule IIB (EBS)'!F86+'Schedule IIC (EBS)'!F86+'Schedule IID (EBS)'!F86+'Schedule IIE (EBS)'!F86+'Schedule IIF (EBS)'!F86","v":0},{"$f":"'Schedule IIB (EBS)'!H86+'Schedule IIC (EBS)'!H86+'Schedule IID (EBS)'!H86+'Schedule IIE (EBS)'!H86+'Schedule IIF (EBS)'!H86","v":0},8.0000000000000002E-3,0.03,0]
[null,"BSCR Rating 3",{"$f":"'Schedule IIB (EBS)'!D87+'Schedule IIC (EBS)'!D87+'Schedule IID (EBS)'!D87+'Schedule IIE (EBS)'!D87+'Schedule IIF (EBS)'!D87","v":0},{"$f":"'Schedule IIB (EBS)'!F87+'Schedule IIC (EBS)'!F87+'Schedule IID (EBS)'!F87+'Schedule IIE (EBS)'!F87+'Schedule IIF (EBS)'!F87","v":0},{"$f":"'Schedule IIB (EBS)'!H87+'Schedule IIC (EBS)'!H87+'Schedule IID (EBS)'!H87+'Schedule IIE (EBS)'!H87+'Schedule IIF (EBS)'!H87","v":0},1.4999999999999999E-2,0.03,0]
[null,"BSCR Rating 4",{"$f":"'Schedule IIB (EBS)'!D88+'Schedule IIC (EBS)'!D88+'Schedule IID (EBS)'!D88+'Schedule IIE (EBS)'!D88+'Schedule IIF (EBS)'!D88","v":0},{"$f":"'Schedule IIB (EBS)'!F88+'Schedule IIC (EBS)'!F88+'Schedule IID (EBS)'!F88+'Schedule IIE (EBS)'!F88+'Schedule IIF (EBS)'!F88","v":0},{"$f":"'Schedule IIB (EBS)'!H88+'Schedule IIC (EBS)'!H88+'Schedule IID (EBS)'!H88+'Schedule IIE (EBS)'!H88+'Schedule IIF (EBS)'!H88","v":0},0.03,0.03,0]
[null,"BSCR Rating 5",{"$f":"'Schedule IIB (EBS)'!D89+'Schedule IIC (EBS)'!D89+'Schedule IID (EBS)'!D89+'Schedule IIE (EBS)'!D89+'Schedule IIF (EBS)'!D89","v":0},{"$f":"'Schedule IIB (EBS)'!F89+'Schedule IIC (EBS)'!F89+'Schedule IID (EBS)'!F89+'Schedule IIE (EBS)'!F89+'Schedule IIF (EBS)'!F89","v":0},{"$f":"'Schedule IIB (EBS)'!H89+'Schedule IIC (EBS)'!H89+'Schedule IID (EBS)'!H89+'Schedule IIE (EBS)'!H89+'Schedule IIF (EBS)'!H89","v":0},0.08,0.03,0]
[null,"BSCR Rating 6",{"$f":"'Schedule IIB (EBS)'!D90+'Schedule IIC (EBS)'!D90+'Schedule IID (EBS)'!D90+'Schedule IIE (EBS)'!D90+'Schedule IIF (EBS)'!D90","v":0},{"$f":"'Schedule IIB (EBS)'!F90+'Schedule IIC (EBS)'!F90+'Schedule IID (EBS)'!F90+'Schedule IIE (EBS)'!F90+'Schedule IIF (EBS)'!F90","v":0},{"$f":"'Schedule IIB (EBS)'!H90+'Schedule IIC (EBS)'!H90+'Schedule IID (EBS)'!H90+'Schedule IIE (EBS)'!H90+'Schedule IIF (EBS)'!H90","v":0},0.15,0.03,0]
[null,"BSCR Rating 7",{"$f":"'Schedule IIB (EBS)'!D91+'Schedule IIC (EBS)'!D91+'Schedule IID (EBS)'!D91+'Schedule IIE (EBS)'!D91+'Schedule IIF (EBS)'!D91","v":0},{"$f":"'Schedule IIB (EBS)'!F91+'Schedule IIC (EBS)'!F91+'Schedule IID (EBS)'!F91+'Schedule IIE (EBS)'!F91+'Schedule IIF (EBS)'!F91","v":0},{"$f":"'Schedule IIB (EBS)'!H91+'Schedule IIC (EBS)'!H91+'Schedule IID (EBS)'!H91+'Schedule IIE (EBS)'!H91+'Schedule IIF (EBS)'!H91","v":0},0.26300000000000001,0.03,0]
[null,"BSCR Rating 8",{"$f":"'Schedule IIB (EBS)'!D92+'Schedule IIC (EBS)'!D92+'Schedule IID (EBS)'!D92+'Schedule IIE (EBS)'!D92+'Schedule IIF (EBS)'!D92","v":0},{"$f":"'Schedule IIB (EBS)'!F92+'Schedule IIC (EBS)'!F92+'Schedule IID (EBS)'!F92+'Schedule IIE (EBS)'!F92+'Schedule IIF (EBS)'!F92","v":0},{"$f":"'Schedule IIB (EBS)'!H92+'Schedule IIC (EBS)'!H92+'Schedule IID (EBS)'!H92+'Schedule IIE (EBS)'!H92+'Schedule IIF (EBS)'!H92","v":0},0.35,0.03,0]
[]
[null,"(d)  SUBTOTAL - COUNTERPARTY DEFAULT RISK FOR OTC DERIVATIVES",null,null,null,null,null,{"$f":"SUM(H72:H80)","v":0}]
[]
[null,"(e)  TOTAL CREDIT RISK  [ (a) + (b) + (c) + (d) ]",null,null,null,{"$f":"F15+F24+F67","v":0},null,{"$f":"H15+H24+H67+H82","v":0}]

{"sheet":"Catastrophe Risk","index":121,"n_rows":25,"n_cols":5,"rows_kept":25,"cut":false,"hidden":false,"merged":[[27,0,27,1],[0,4,0,5]]}
["CATASTROPHE RISK",null,null,null,{"$f":"HYPERLINK(\"#'Index'!A1\",\"Return to Index\")","v":"Return to Index"}]
[{"$f":"'Company Information'!C7","v":"Enter Company Name"}]
[{"$f":"\"Catastrophe Risk\" & \"($\"&IF(CONFIGURATION!$B$12>1,MID(CONFIGURATION!$B$12,2,LEN(CONFIGURATION!$B$12)),\"\")&\")\"","v":"Catastrophe Risk($000)"},null,{"$f":"'Company Information'!C3","v":"2019-12-31"}]
[]
[null,"DESCRIPTION","STATEMENT SOURCE",null,"VALUE"]
[]
[null,{"$f":"IF('Company Information'!F11=\"Class 3A\",\"(a)  Gross Probable Maximum Loss (if property catastrophe writer)\",\"(a)  Gross Probable Maximum Loss\")","v":"(a)  Gross Probable Maximum Loss"},{"$f":"IF('Company Information'!F11=\"Class 3A\",\"Schedule V, Line (f)\",\"Schedule V, Line (g)\")","v":"Schedule V, Line (g)"},null,{"$f":"'Schedule V'!H16","v":0}]
[]
[null,{"$f":"IF('Company Information'!F11=\"Class 3A\",\"(b)  Net Probable Maximum Loss (if property catastrophe writer)\",\"(b)  Net Probable Maximum Loss\")","v":"(b)  Net Probable Maximum Loss"},{"$f":"IF('Company Information'!F11=\"Class 3A\",\"Schedule V, Line (g)\",\"Schedule V, Line (h)\")","v":"Schedule V, Line (h)"},null,{"$f":"'Schedule V'!H18","v":0}]
[]
[null,"(c)  Average Annual Loss (AAL) Excluding Property Catastrophe",{"$f":"IF('Company Information'!F11=\"Class 3A\",\"Schedule V, Line (h)\",\"Schedule V, Line (i)\")","v":"Schedule V, Line (i)"},null,{"$f":"'Schedule V'!H20","v":0}]
[]
[null,"(d)  Industry Catastrophe Loss Ratio",null,null,0.4]
[]
[null,{"$f":"IF('Company Information'!F11=\"Class 3A\",\"(c)  Property Catastrophe Premium\",\"(e)  Property Catastrophe Premium\")","v":"(e)  Property Catastrophe Premium"},"Schedule IV, Line (1)",null,{"$f":"'Premium Risk'!F11","v":0}]
[]
[null,"(f)  Total Catastrophe Premium  [ (c) / (d) + (e) ]",null,null,{"$f":"$E$11/$E$13+IF($E$15>0,$E$15,0)","v":0}]
[]
[null,{"$f":"IF('Company Information'!F11=\"Class 3A\",\"(d)  Credit Risk Capital Factor\",\"(g)  Credit Risk Capital Factor\")","v":"(g)  Credit Risk Capital Factor"},null,null,0.1]
[]
[null,{"$f":"IF('Company Information'!F11=\"Class 3A\",\"(e) Arrangements with Respect to Property Catastrophe Recoverables\",\"(h) Arrangements with Respect to Property Catastrophe Recoverables\")","v":"(h) Arrangements with Respect to Property Catastrophe Recoverables"},{"$f":"IF('Company Information'!F11=\"Class 3A\",\"Schedule V, Line (j)(v)\",\"Schedule V, Line (k)(v)\")","v":"Schedule V, Line (k)(v)"},null,{"$f":"'Schedule V'!H29","v":0}]
[]
[null,{"$f":"IF('Company Information'!F11=\"Class 3A\",\"(f)  Credit Risk Charge [ ((a - b) - (e * 0.98)) * d ]\",\"(i)  Credit Risk Charge [ ((a - b) - (h * 0.98)) * g ]\")","v":"(i)  Credit Risk Charge [ ((a - b) - (h * 0.98)) * g ]"},null,null,{"$f":"MAX(0,((E7-E9)-(E21*98%))*E19)","v":0}]
[]
[null,{"$f":"IF('Company Information'!F11=\"Class 3A\",\"(g)  REQUIRED CAPITAL FOR CATASTROPHE RISK  [ (b) - (c) + (f) ]\",\"(j)  REQUIRED CAPITAL FOR CATASTROPHE RISK  [ (b) - (f) + (i) ]\")","v":"(j)  REQUIRED CAPITAL FOR CATASTROPHE RISK  [ (b) - (f) + (i) ]"},null,null,{"$f":"IF('Company Information'!F11=\"Class 3A\",(IF((E9-E15)>=0,E9-E15+E23,E23)),(IF((E9-E17)>=0,E9-E17+E23,E23)))","v":0}]

{"sheet":"Catastrophe Risk (Revised)","index":122,"n_rows":25,"n_cols":5,"rows_kept":25,"cut":false,"hidden":false,"merged":[[0,4,0,5],[27,0,27,1]]}
["CATASTROPHE RISK (REVISED)",null,null,null,{"$f":"HYPERLINK(\"#'Index'!A1\",\"Return to Index\")","v":"Return to Index"}]
[{"$f":"'Company Information'!C7","v":"Enter Company Name"}]
[{"$f":"\"Catastrophe Risk\" & \"($\"&IF(CONFIGURATION!$B$12>1,MID(CONFIGURATION!$B$12,2,LEN(CONFIGURATION!$B$12)),\"\")&\")\"","v":"Catastrophe Risk($000)"},null,{"$f":"'Company Information'!C3","v":"2019-12-31"}]
[]
[null,"DESCRIPTION","STATEMENT SOURCE",null,"VALUE"]
[]
[null,{"$f":"IF('Company Information'!F11=\"Class 3A\",\"(a)  Gross Probable Maximum Loss (if property catastrophe writer)\",\"(a)  Gross Probable Maximum Loss\")","v":"(a)  Gross Probable Maximum Loss"},{"$f":"IF('Company Information'!F11=\"Class 3A\",\"Schedule V, Line (f)\",\"Schedule V, Line (g)\")","v":"Schedule V, Line (g)"},null,{"$f":"'Schedule V'!H16","v":0}]
[]
[null,{"$f":"IF('Company Information'!F11=\"Class 3A\",\"(b)  Net Probable Maximum Loss (if property catastrophe writer)\",\"(b)  Net Probable Maximum Loss\")","v":"(b)  Net Probable Maximum Loss"},{"$f":"IF('Company Information'!F11=\"Class 3A\",\"Schedule V, Line (g)\",\"Schedule V, Line (h)\")","v":"Schedule V, Line (h)"},null,{"$f":"'Schedule V'!H18","v":0}]
[]
[null,"(c)  Average Annual Loss (AAL) Excluding Property Catastrophe",{"$f":"IF('Company Information'!F11=\"Class 3A\",\"Schedule V, Line (h)\",\"Schedule V, Line (i)\")","v":"Schedule V, Line (i)"},null,{"$f":"'Schedule V'!H20","v":0}]
[]
[null,"(d)  Industry Catastrophe Loss Ratio",null,null,0.4]
[]
[null,{"$f":"IF('Company Information'!F11=\"Class 3A\",\"(c)  Property Catastrophe Premium\",\"(e)  Property Catastrophe Premium\")","v":"(e)  Property Catastrophe Premium"},"Schedule IVD, Column C, Line (1)",null,{"$f":"IF('Schedule IVD (EBS)'!G9=0,'Schedule IVD (EBS)'!E9,'Schedule IVD (EBS)'!G9)","v":0}]
[]
[null,"(f)  Total Catastrophe Premium  [ (c) / (d) + (e) ]",null,null,{"$f":"$E$11/$E$13+IF($E$15>0,$E$15,0)","v":0}]
[]
[null,{"$f":"IF('Company Information'!F11=\"Class 3A\",\"(d)  Credit Risk Capital Factor\",\"(g)  Credit Risk Capital Factor\")","v":"(g)  Credit Risk Capital Factor"},null,null,0.1]
[]
[null,{"$f":"IF('Company Information'!F11=\"Class 3A\",\"(e) Arrangements with Respect to Property Catastrophe Recoverables\",\"(h) Arrangements with Respect to Property Catastrophe Recoverables\")","v":"(h) Arrangements with Respect to Property Catastrophe Recoverables"},{"$f":"IF('Company Information'!F11=\"Class 3A\",\"Schedule V, Line (j)(v)\",\"Schedule V, Line (k)(v)\")","v":"Schedule V, Line (k)(v)"},null,{"$f":"'Schedule V'!H29","v":0}]
[]
[null,{"$f":"IF('Company Information'!F11=\"Class 3A\",\"(f)  Credit Risk Charge [ ((a - b) - (e * 0.98)) * d ]\",\"(i)  Credit Risk Charge [ ((a - b) - (h * 0.98)) * g ]\")","v":"(i)  Credit Risk Charge [ ((a - b) - (h * 0.98)) * g ]"},null,null,{"$f":"MAX(0,((E7-E9)-(E21*98%))*E19)","v":0}]
[]
[null,{"$f":"IF('Company Information'!F11=\"Class 3A\",\"(g)  REQUIRED CAPITAL FOR CATASTROPHE RISK  [ (b) - (c) + (f) ]\",\"(j)  REQUIRED CAPITAL FOR CATASTROPHE RISK  [ (b) - (f) + (i) ]\")","v":"(j)  REQUIRED CAPITAL FOR CATASTROPHE RISK  [ (b) - (f) + (i) ]"},null,null,{"$f":"IF('Company Information'!F11=\"Class 3A\",(IF((E9-E15)>=0,E9-E15+E23,E23)),(IF((E9-E17)>=0,E9-E17+E23,E23)))","v":0}]

{"sheet":"Company Specific Parameters","index":123,"n_rows":528,"n_cols":21,"rows_kept":528,"cut":false,"hidden":false,"merged":[[2,5,3,8],[2,0,2,2],[5,1,5,8],[0,0,0,6]]}
["COMPANY SPECIFIC PARAMETERS",null,null,null,null,null,null,null,{"$f":"HYPERLINK(\"#'Index'!A1\",\"Return to Index\")","v":"Return to Index"},null,null,null,null,null,null,null,null,null,null,null,{"$f":"IF(C4=\"\",\"\",TEXT(DATE(YEAR(C4+1)-1,MONTH(C4+1),DAY(C4+1)),\"mm/dd/yyyy\"))","v":"01/01/2019"}]
[null,null,null,null,null,null,null,null,null,null,null,null,"",null,null,null,null,null,null,null,{"$f":"IF(C4=\"\",\"\",TEXT(C4,\"mm/dd/yyyy\"))","v":"12/31/2019"}]
[{"$f":"'Company Information'!B2","v":0},null,null,null,null,{"$f":"HYPERLINK(\"#'Attachments'!A205\",\"Details of User Capital Factor to be included in the attachments section 11.\")","v":"Details of User Capital Factor to be included in the attachments section 11."}]
["For the Year Ending ",null,{"$f":"'Company Information'!C3","v":"2019-12-31"},null,null,null,null,null,null,null,null,null,""]
[null,null,null,null,null,null,null,null,null,null,null,null,"",null,null,null,null,null,null,null,{"$f":"IF(C7=\"\",\"\",TEXT(C7,\"mm/dd/yyyy\"))","v":""}]
[null,"To be completed only with prior approval from the Bermuda Monetary Authority"]
[null,null,null,null,null,null,null,null,null,null,null,null,"",null,null,null,null,null,null,null,{"$f":"IF(C9=\"\",\"\",TEXT(C9,\"mm/dd/yyyy\"))","v":""}]
[null,null,null,null,"STANDARD","STANDARD",null,"USER","USER"]
[null,"TYPE OF ",null,"ASSET","CAPITAL","REQUIRED",null,"CAPITAL","REQUIRED"]
[null,"FIXED INCOME INVESTMENTS","STATEMENT SOURCE","VALUE","FACTOR","CAPITAL",null,"FACTOR","CAPITAL"]
[]
[null,"(a) Corporate & Sovereign Bonds",null,"(1) ","(2)","(1) x (2)",null,"(3)","(1) x (3)"]
[]
[null,"BSCR Rating"]
[null,0,"Sch II EBS, Line (1), Column 1 and Sch IIA EBS, Line (1), Column 1",{"$f":"'Schedule II (EBS)'!D12+'Schedule IIA (EBS)'!D12","v":0},{"$f":"+'Fixed Income Investments'!E12","v":0},{"$f":"IF(D15<0,0,D15*E15)","v":0},null,null,{"$f":"MAX(0,IF(H15=\"\",E15*D15,D15*H15))","v":0}]
[null,1,"Sch II EBS, Line (2), Column 1 and Sch IIA EBS, Line (2), Column 1",{"$f":"'Schedule II (EBS)'!D13+'Schedule IIA (EBS)'!D13","v":0},{"$f":"+'Fixed Income Investments'!E13","v":4.0000000000000001E-3},0,null,null,{"$f":"MAX(0,IF(H16=\"\",E16*D16,D16*H16))","v":0}]
[null,2,"Sch II EBS, Line (3), Column 1 and Sch IIA EBS, Line (3), Column 1",{"$f":"'Schedule II (EBS)'!D14+'Schedule IIA (EBS)'!D14","v":0},{"$f":"+'Fixed Income Investments'!E14","v":8.0000000000000002E-3},0,null,null,0]
[null,3,"Sch II EBS, Line (4), Column 1 and Sch IIA EBS, Line (4), Column 1",{"$f":"'Schedule II (EBS)'!D15+'Schedule IIA (EBS)'!D15","v":0},{"$f":"+'Fixed Income Investments'!E15","v":1.4999999999999999E-2},0,null,null,0]
[null,4,"Sch II EBS, Line (5), Column 1 and Sch IIA EBS, Line (5), Column 1",{"$f":"'Schedule II (EBS)'!D16+'Schedule IIA (EBS)'!D16","v":0},{"$f":"+'Fixed Income Investments'!E16","v":0.03},0,null,null,0]
[null,5,"Sch II EBS, Line (6), Column 1 and Sch IIA EBS, Line (6), Column 1",{"$f":"'Schedule II (EBS)'!D17+'Schedule IIA (EBS)'!D17","v":0},{"$f":"+'Fixed Income Investments'!E17","v":0.08},0,null,null,0]
[null,6,"Sch II EBS, Line (7), Column 1 and Sch IIA EBS, Line (7), Column 1",{"$f":"'Schedule II (EBS)'!D18+'Schedule IIA (EBS)'!D18","v":0},{"$f":"+'Fixed Income Investments'!E18","v":0.15},0,null,null,0]
[null,7,"Sch II EBS, Line (8), Column 1 and Sch IIA EBS, Line (8), Column 1",{"$f":"'Schedule II (EBS)'!D19+'Schedule IIA (EBS)'!D19","v":0},{"$f":"+'Fixed Income Investments'!E19","v":0.26300000000000001},0,null,null,0]
[null,8,"Sch II EBS, Line (9), Column 1 and Sch IIA EBS, Line (9), Column 1",{"$f":"'Schedule II (EBS)'!D20+'Schedule IIA (EBS)'!D20","v":0},{"$f":"+'Fixed Income Investments'!E20","v":0.35},0,null,null,0]
[]
[null,"(a)  SUBTOTAL -  CORPORATE BONDS",null,{"$f":"SUM(D15:D24)","v":0},null,{"$f":"IF(SUM(F15:F23)>=0,SUM(F15:F23),0)","v":0},null,null,{"$f":"IF(SUM(I15:I23)>=0,SUM(I15:I23),0)","v":0}]
[]
[null,"(b) Residential Mortgage-Backed Securities"]
[]
[null,"BSCR Rating"]
[null,1,"Sch II EBS, Line (2), Column 3 and Sch IIA EBS, Line (2), Column 3",{"$f":"'Schedule II (EBS)'!H13+'Schedule IIA (EBS)'!H13","v":0},{"$f":"+'Fixed Income Investments'!E27","v":6.0000000000000001E-3},{"$f":"IF(D30<0,0,D30*E30)","v":0},null,null,{"$f":"MAX(0,IF(H30=\"\",E30*D30,D30*H30))","v":0}]
[null,2,"Sch II EBS, Line (3), Column 3 and Sch IIA EBS, Line (3), Column 3",{"$f":"'Schedule II (EBS)'!H14+'Schedule IIA (EBS)'!H14","v":0},{"$f":"+'Fixed Income Investments'!E28","v":1.2E-2},0,null,null,0]
[null,3,"Sch II EBS, Line (4), Column 3 and Sch IIA EBS, Line (4), Column 3",{"$f":"'Schedule II (EBS)'!H15+'Schedule IIA (EBS)'!H15","v":0},{"$f":"+'Fixed Income Investments'!E29","v":0.02},0,null,null,0]
[null,4,"Sch II EBS, Line (5), Column 3 and Sch IIA EBS, Line (5), Column 3",{"$f":"'Schedule II (EBS)'!H16+'Schedule IIA (EBS)'!H16","v":0},{"$f":"+'Fixed Income Investments'!E30","v":0.04},0,null,null,0]
[null,5,"Sch II EBS, Line (6), Column 3 and Sch IIA EBS, Line (6), Column 3",{"$f":"'Schedule II (EBS)'!H17+'Schedule IIA (EBS)'!H17","v":0},{"$f":"+'Fixed Income Investments'!E31","v":0.11},0,null,null,0]
[null,6,"Sch II EBS, Line (7), Column 3 and Sch IIA EBS, Line (7), Column 3",{"$f":"'Schedule II (EBS)'!H18+'Schedule IIA (EBS)'!H18","v":0},{"$f":"+'Fixed Income Investments'!E32","v":0.25},0,null,null,0]
[null,7,"Sch II EBS, Line (8), Column 3 and Sch IIA EBS, Line (8), Column 3",{"$f":"'Schedule II (EBS)'!H19+'Schedule IIA (EBS)'!H19","v":0},{"$f":"+'Fixed Income Investments'!E33","v":0.35},0,null,null,0]
[null,8,"Sch II EBS, Line (9), Column 3 and Sch IIA EBS, Line (9), Column 3",{"$f":"'Schedule II (EBS)'!H20+'Schedule IIA (EBS)'!H20","v":0},{"$f":"+'Fixed Income Investments'!E34","v":0.35},0,null,null,0]
[]
[null,"(b)  SUBTOTAL - RESIDENTIAL MORTGAGE-BACKED SECURITIES",null,{"$f":"SUM(D29:D38)","v":0},null,{"$f":"IF(SUM(F29:F37)>=0,SUM(F29:F37),0)","v":0},null,null,{"$f":"IF(SUM(I29:I37)>=0,SUM(I29:I37),0)","v":0}]
[]
[null,"(c) Commercial Mortgage-Backed Securities / Asset-Backed Securities"]
[]
[null,"BSCR Rating"]
[null,1,"Sch II EBS, Line (2), Column 5 and Sch IIA EBS, Line (2), Column 5",{"$f":"'Schedule II (EBS)'!L13+'Schedule IIA (EBS)'!L13","v":0},{"$f":"+'Fixed Income Investments'!E41","v":5.0000000000000001E-3},{"$f":"IF(D44<0,0,D44*E44)","v":0},null,null,{"$f":"MAX(0,IF(H44=\"\",E44*D44,D44*H44))","v":0}]
[null,2,"Sch II EBS, Line (3), Column 5 and Sch IIA EBS, Line (3), Column 5",{"$f":"'Schedule II (EBS)'!L14+'Schedule IIA (EBS)'!L14","v":0},{"$f":"+'Fixed Income Investments'!E42","v":0.01},0,null,null,0]
[null,3,"Sch II EBS, Line (4), Column 5 and Sch IIA EBS, Line (4), Column 5",{"$f":"'Schedule II (EBS)'!L15+'Schedule IIA (EBS)'!L15","v":0},{"$f":"+'Fixed Income Investments'!E43","v":1.7999999999999999E-2},0,null,null,0]
[null,4,"Sch II EBS, Line (5), Column 5 and Sch IIA EBS, Line (5), Column 5",{"$f":"'Schedule II (EBS)'!L16+'Schedule IIA (EBS)'!L16","v":0},{"$f":"+'Fixed Income Investments'!E44","v":3.5000000000000003E-2},0,null,null,0]
[null,5,"Sch II EBS, Line (6), Column 5 and Sch IIA EBS, Line (6), Column 5",{"$f":"'Schedule II (EBS)'!L17+'Schedule IIA (EBS)'!L17","v":0},{"$f":"+'Fixed Income Investments'!E45","v":0.1},0,null,null,0]
[null,6,"Sch II EBS, Line (7), Column 5 and Sch IIA EBS, Line (7), Column 5",{"$f":"'Schedule II (EBS)'!L18+'Schedule IIA (EBS)'!L18","v":0},{"$f":"+'Fixed Income Investments'!E46","v":0.2},0,null,null,0]
[null,7,"Sch II EBS, Line (8), Column 5 and Sch IIA EBS, Line (8), Column 5",{"$f":"'Schedule II (EBS)'!L19+'Schedule IIA (EBS)'!L19","v":0},{"$f":"+'Fixed Income Investments'!E47","v":0.3},0,null,null,0]
[null,8,"Sch II EBS, Line (9), Column 5 and Sch IIA EBS, Line (9), Column 5",{"$f":"'Schedule II (EBS)'!L20+'Schedule IIA (EBS)'!L20","v":0},{"$f":"+'Fixed Income Investments'!E48","v":0.35},0,null,null,0]
[]
[null,"(c)  SUBTOTAL - COMMERCIAL MORTGAGE-BACKED SECURITIES / ASSET-BACKED SECURITIES",null,{"$f":"SUM(D43:D52)","v":0},null,{"$f":"IF(SUM(F43:F51)>=0,SUM(F43:F51),0)","v":0},null,null,{"$f":"IF(SUM(I43:I51)>=0,SUM(I43:I51),0)","v":0}]
[]
[null,"(d) Bond Mutual Funds"]
[]
[null,"BSCR Rating"]
[null,0,"Sch II EBS, Line (1), Column 7 and Sch IIA EBS, Line (1), Column 7",{"$f":"'Schedule II (EBS)'!P12+'Schedule IIA (EBS)'!P12","v":0},{"$f":"+'Fixed Income Investments'!E56","v":0},{"$f":"IF(D58<0,0,D58*E58)","v":0},null,null,{"$f":"MAX(0,IF(H58=\"\",E58*D58,D58*H58))","v":0}]
[null,1,"Sch II EBS, Line (2), Column 7 and Sch IIA EBS, Line (2), Column 7",{"$f":"'Schedule II (EBS)'!P13+'Schedule IIA (EBS)'!P13","v":0},{"$f":"+'Fixed Income Investments'!E57","v":4.0000000000000001E-3},0,null,null,0]
[null,2,"Sch II EBS, Line (3), Column 7 and Sch IIA EBS, Line (3), Column 7",{"$f":"'Schedule II (EBS)'!P14+'Schedule IIA (EBS)'!P14","v":0},{"$f":"+'Fixed Income Investments'!E58","v":8.0000000000000002E-3},0,null,null,0]
[null,3,"Sch II EBS, Line (4), Column 7 and Sch IIA EBS, Line (4), Column 7",{"$f":"'Schedule II (EBS)'!P15+'Schedule IIA (EBS)'!P15","v":0},{"$f":"+'Fixed Income Investments'!E59","v":1.4999999999999999E-2},0,null,null,0]
[null,4,"Sch II EBS, Line (5), Column 7 and Sch IIA EBS, Line (5), Column 7",{"$f":"'Schedule II (EBS)'!P16+'Schedule IIA (EBS)'!P16","v":0},{"$f":"+'Fixed Income Investments'!E60","v":0.03},0,null,null,0]
[null,5,"Sch II EBS, Line (6), Column 7 and Sch IIA EBS, Line (6), Column 7",{"$f":"'Schedule II (EBS)'!P17+'Schedule IIA (EBS)'!P17","v":0},{"$f":"+'Fixed Income Investments'!E61","v":0.08},0,null,null,0]
[null,6,"Sch II EBS, Line (7), Column 7 and Sch IIA EBS, Line (7), Column 7",{"$f":"'Schedule II (EBS)'!P18+'Schedule IIA (EBS)'!P18","v":0},{"$f":"+'Fixed Income Investments'!E62","v":0.15},0,null,null,0]
[null,7,"Sch II EBS, Line (8), Column 7 and Sch IIA EBS, Line (8), Column 7",{"$f":"'Schedule II (EBS)'!P19+'Schedule IIA (EBS)'!P19","v":0},{"$f":"+'Fixed Income Investments'!E63","v":0.26300000000000001},0,null,null,0]
[null,8,"Sch II EBS, Line (9), Column 7 and Sch IIA EBS, Line (9), Column 7",{"$f":"'Schedule II (EBS)'!P20+'Schedule IIA (EBS)'!P20","v":0},{"$f":"+'Fixed Income Investments'!E64","v":0.35},0,null,null,0]
[]
[null,"(d)  SUBTOTAL - BOND MUTUAL FUNDS",null,{"$f":"SUM(D58:D67)","v":0},null,{"$f":"IF(SUM(F58:F66)>=0,SUM(F58:F66),0)","v":0},null,null,{"$f":"IF(SUM(I58:I66)>=0,SUM(I58:I66),0)","v":0}]
[]
[null,"(e) Mortgage Loans"]
[]
[null,"Insured/Guaranteed Mortgages","Sch II EBS, Line (22), Column 1 and Sch IIA EBS, Line (22), Column 1",{"$f":"'Schedule II (EBS)'!D57+'Schedule IIA (EBS)'!D57","v":0},{"$f":"+'Fixed Income Investments'!E70","v":3.0000000000000001E-3},{"$f":"IF(D72<0,0,D72*E72)","v":0},null,null,{"$f":"MAX(0,IF(H72=\"\",E72*D72,D72*H72))","v":0}]
[null,"Other Commercial and Farm Mortgages","Sch II EBS, Line (23), Column 1 and Sch IIA EBS, Line (23), Column 1 ",{"$f":"'Schedule II (EBS)'!D58+'Schedule IIA (EBS)'!D58","v":0},{"$f":"+'Fixed Income Investments'!E71","v":0.05},{"$f":"IF(D73<0,0,D73*E73)","v":0},null,null,{"$f":"MAX(0,IF(H73=\"\",E73*D73,D73*H73))","v":0}]
[null,"Other Residential Mortgages","Sch II EBS, Line (24), Column 1 and Sch IIA EBS, Line (24), Column 1",{"$f":"'Schedule II (EBS)'!D59+'Schedule IIA (EBS)'!D59","v":0},{"$f":"+'Fixed Income Investments'!E72","v":1.4999999999999999E-2},{"$f":"IF(D74<0,0,D74*E74)","v":0},null,null,{"$f":"MAX(0,IF(H74=\"\",E74*D74,D74*H74))","v":0}]
[null,"Mortgages Not In Good Standing","Sch II EBS, Line (25), Column 1 and Sch IIA EBS, Line (25), Column 1",{"$f":"'Schedule II (EBS)'!D60+'Schedule IIA (EBS)'!D60","v":0},{"$f":"+'Fixed Income Investments'!E73","v":0.25},{"$f":"IF(D75<0,0,D75*E75)","v":0},null,null,{"$f":"MAX(0,IF(H75=\"\",E75*D75,D75*H75))","v":0}]
[]
[null,"(e)  SUBTOTAL - MORTGAGE LOANS",null,{"$f":"SUM(D72:D76)","v":0},null,{"$f":"IF(SUM(F72:F75)>=0,SUM(F72:F75),0)","v":0},null,null,{"$f":"IF(SUM(I72:I75)>=0,SUM(I72:I75),0)","v":0}]
[]
[null,"(f) Other Fixed Income Investments"]
[]
[null,"Other Loans","Form 1EBS, Line (8)",{"$f":"'Form 1EBS'!F52","v":0},{"$f":"+'Fixed Income Investments'!E79","v":0.05},{"$f":"IF(D81<0,0,D81*E81)","v":0},null,null,{"$f":"MAX(0,IF(H81=\"\",E81*D81,D81*H81))","v":0}]
[]
[null,"Cash and Cash Equivalent Counterparty Balances By BSCR Rating"]
[]
[null,"BSCR Rating 0 ","Schedule XIX, Column B",{"$f":"+'Schedule XIX'!H83","v":0},{"$f":"+'Fixed Income Investments'!E83","v":0},{"$f":"IF(D85<0,0,D85*E85)","v":0},null,null,{"$f":"MAX(0,IF(H85=\"\",E85*D85,D85*H85))","v":0}]
[null,"BSCR Rating 1","Schedule XIX, Column B",{"$f":"+'Schedule XIX'!H84","v":0},{"$f":"+'Fixed Income Investments'!E84","v":1E-3},{"$f":"IF(D86<0,0,D86*E86)","v":0},null,null,{"$f":"MAX(0,IF(H86=\"\",E86*D86,D86*H86))","v":0}]
[null,"BSCR Rating 2","Schedule XIX, Column B",{"$f":"+'Schedule XIX'!H85","v":0},{"$f":"+'Fixed Income Investments'!E85","v":2E-3},0,null,null,0]
[null,"BSCR Rating 3","Schedule XIX, Column B",{"$f":"+'Schedule XIX'!H86","v":0},{"$f":"+'Fixed Income Investments'!E86","v":3.0000000000000001E-3},0,null,null,0]
[null,"BSCR Rating 4","Schedule XIX, Column B",{"$f":"+'Schedule XIX'!H87","v":0},{"$f":"+'Fixed Income Investments'!E87","v":5.0000000000000001E-3},0,null,null,0]
[null,"BSCR Rating 5","Schedule XIX, Column B",{"$f":"+'Schedule XIX'!H88","v":0},{"$f":"+'Fixed Income Investments'!E88","v":1.4999999999999999E-2},0,null,null,0]
[null,"BSCR Rating 6","Schedule XIX, Column B",{"$f":"+'Schedule XIX'!H89","v":0},{"$f":"+'Fixed Income Investments'!E89","v":0.04},0,null,null,0]
[null,"BSCR Rating 7","Schedule XIX, Column B",{"$f":"+'Schedule XIX'!H90","v":0},{"$f":"+'Fixed Income Investments'!E90","v":0.06},0,null,null,0]
[null,"BSCR Rating 8","Schedule XIX, Column B",{"$f":"+'Schedule XIX'!H91","v":0},{"$f":"+'Fixed Income Investments'!E91","v":0.09},0,null,null,0]
[]
[null,"Total",null,{"$f":"SUM(D85:D94)","v":0},null,{"$f":"SUM(F85:F94)","v":0},null,null,{"$f":"SUM(I85:I94)","v":0}]
[]
[null,"Diversification Adj at 40%","Schedule XIX, Column B",null,null,{"$f":"SUM(F85:F93)*-(+'Schedule XIX'!H100)","v":0},null,null,{"$f":"SUM(I85:I93)*-(+'Schedule XIX'!H100)","v":0}]
[]
[null,"(f)  SUBTOTAL - OTHER FIXED INCOME SECURITIES",null,{"$f":"D81+D95","v":0},null,{"$f":"IF(SUM(F81,F95,F97)>=0,SUM(F81,F95,F97),0)","v":0},null,null,{"$f":"IF(SUM(I81,I95,I97)>=0,SUM(I81,I95,I97),0)","v":0}]
[]
[null,"(g)  TOTAL FIXED INCOME INVESTMENTS [ (a)+(b)+(c)+(d)+(e)+(f) ]",null,{"$f":"D25+D39+D53+D68+D77+D99","v":0},null,{"$f":"IF(SUM(F25+F39+F53+F68+F77+F99)>=0,SUM(F25+F39+F53+F68+F77+F99),0)","v":0},null,null,{"$f":"IF(SUM(I25+I39+I53+I68+I77+I99)>=0,SUM(I25+I39+I53+I68+I77+I99),0)","v":0}]
[]
[null,null,null,null,"STANDARD","STANDARD",null,"USER","USER"]
[null,"TYPE OF ",null,"ASSET","CAPITAL","REQUIRED",null,"CAPITAL","REQUIRED"]
[null,"EQUITY INVESTMENTS","STATEMENT SOURCE","VALUE","FACTOR","CAPITAL",null,"FACTOR","CAPITAL"]
[]
[null,"(a)  Common Stocks",null,"(1) ","(2)","(1) x (2)",null,"(3)","(1) x (3)"]
[]
[null,"Non-Affiliated (Quoted)","Sch II EBS, Line (19), Column (1) and Sch IIA EBS, Line (19), Column (1)",{"$f":"'Schedule II (EBS)'!D41+'Schedule IIA (EBS)'!D41","v":0},{"$f":"+'Equity Investments'!E11","v":0.14399999999999999},{"$f":"IF(D109<0,0,D109*E109)","v":0},null,null,{"$f":"MAX(0,IF(H109=\"\",E109*D109,D109*H109))","v":0}]
[null,"Non-Affiliated (Unquoted)","Sch II EBS, Line (20), Column (1) and Sch IIA EBS, Line (20), Column (1)",{"$f":"'Schedule II (EBS)'!D42+'Schedule IIA (EBS)'!D42","v":0},{"$f":"+'Equity Investments'!E12","v":0.14399999999999999},{"$f":"IF(D110<0,0,D110*E110)","v":0},null,null,{"$f":"MAX(0,IF(H110=\"\",E110*D110,D110*H110))","v":0}]
[null,"Equity Mutual Funds","Sch II EBS, Line (21), Column (5) and Sch IIA EBS, Line (21), Column (5)",{"$f":"+'Schedule II (EBS)'!L44+'Schedule IIA (EBS)'!L44","v":0},{"$f":"+'Equity Investments'!E13","v":0.14399999999999999},{"$f":"IF(D111<0,0,D111*E111)","v":0},null,null,{"$f":"MAX(0,IF(H111=\"\",E111*D111,D111*H111))","v":0}]
[]
[null,"(a)  SUBTOTAL - COMMON STOCKS",null,{"$f":"SUM(D109:D111)","v":0},null,{"$f":"IF(SUM(F109:F111)>=0,SUM(F109:F111),0)","v":0},null,null,{"$f":"IF(SUM(I109:I111)>=0,SUM(I109:I111),0)","v":0}]
[]
[null,"(b)  Preferred Stocks"]
[]
[null,"BSCR Rating"]
[null,1,"Sch II EBS, Line (11), Column (3) and Sch IIA EBS, Line (11), Column (3)",{"$f":"'Schedule II (EBS)'!H33+'Schedule IIA (EBS)'!H33","v":0},{"$f":"+'Equity Investments'!E20","v":6.0000000000000001E-3},{"$f":"IF(D118<0,0,D118*E118)","v":0},null,null,{"$f":"MAX(0,IF(H118=\"\",E118*D118,D118*H118))","v":0}]
[null,2,"Sch II EBS, Line (12), Column (3) and Sch IIA EBS, Line (12), Column (3)",{"$f":"'Schedule II (EBS)'!H34+'Schedule IIA (EBS)'!H34","v":0},{"$f":"+'Equity Investments'!E21","v":1.2E-2},0,null,null,0]
[null,3,"Sch II EBS, Line (13), Column (3) and Sch IIA EBS, Line (13), Column (3)",{"$f":"'Schedule II (EBS)'!H35+'Schedule IIA (EBS)'!H35","v":0},{"$f":"+'Equity Investments'!E22","v":0.02},0,null,null,0]
[null,4,"Sch II EBS, Line (14), Column (3) and Sch IIA EBS, Line (14), Column (3)",{"$f":"'Schedule II (EBS)'!H36+'Schedule IIA (EBS)'!H36","v":0},{"$f":"+'Equity Investments'!E23","v":0.04},0,null,null,0]
[null,5,"Sch II EBS, Line (15), Column (3) and Sch IIA EBS, Line (15), Column (3)",{"$f":"'Schedule II (EBS)'!H37+'Schedule IIA (EBS)'!H37","v":0},{"$f":"+'Equity Investments'!E24","v":0.11},0,null,null,0]
[null,6,"Sch II EBS, Line (16), Column (3) and Sch IIA EBS, Line (16), Column (3)",{"$f":"'Schedule II (EBS)'!H38+'Schedule IIA (EBS)'!H38","v":0},{"$f":"+'Equity Investments'!E25","v":0.25},0,null,null,0]
[null,7,"Sch II EBS, Line (17), Column (3) and Sch IIA EBS, Line (17), Column (3)",{"$f":"'Schedule II (EBS)'!H39+'Schedule IIA (EBS)'!H39","v":0},{"$f":"+'Equity Investments'!E26","v":0.35},0,null,null,0]
[null,8,"Sch II EBS, Line (18), Column (3) and Sch IIA EBS, Line (18), Column (3)",{"$f":"'Schedule II (EBS)'!H40+'Schedule IIA (EBS)'!H40","v":0},{"$f":"+'Equity Investments'!E27","v":0.35},0,null,null,0]
[]
[null,"(b)  SUBTOTAL - PREFERRED STOCKS",null,{"$f":"SUM(D117:D125)","v":0},null,{"$f":"IF(SUM(F117:F125)>=0,SUM(F117:F125),0)","v":0},null,null,{"$f":"IF(SUM(I117:I125)>=0,SUM(I117:I125),0)","v":0}]
[]
[null,"(c)  Other Equity Investments"]
[]
[null,"Real Estate"]
[null,"Company-Occupied Less Encumbrances","Form 1EBS, Line (7a)",{"$f":"'Form 1EBS'!F48","v":0},{"$f":"+'Equity Investments'!E34","v":0.1},{"$f":"IF(D132<0,0,D132*E132)","v":0},null,null,{"$f":"MAX(0,IF(H132=\"\",E132*D132,D132*H132))","v":0}]
[null,"Investments Less Encumbrances","Form 1EBS, Line (7b)",{"$f":"'Form 1EBS'!F49","v":0},{"$f":"+'Equity Investments'!E35","v":0.2},{"$f":"IF(D133<0,0,D133*E133)","v":0},null,null,{"$f":"MAX(0,IF(H133=\"\",E133*D133,D133*H133))","v":0}]
[]
[null,"Other Equity Investments","Form 1EBS, Lines (2e), (3e) & Sch IIA EBS, Line 21, Column (7)",{"$f":"'Form 1EBS'!F19+'Form 1EBS'!F29+'Schedule IIA (EBS)'!P44","v":0},{"$f":"+'Equity Investments'!E37","v":0.2},{"$f":"IF(D135<0,0,D135*E135)","v":0},null,null,{"$f":"MAX(0,IF(H135=\"\",E135*D135,D135*H135))","v":0}]
[null,"Other Tangible Assets - Net of Segregated Accounts Companies","Form 1EBS, Lines (13k), (14d), and (36f) Less Form 1EBS, and Lines (13d) and 13(h)",{"$f":"'Form 1EBS'!F82+'Form 1EBS'!F88+'Form 1EBS'!F148-'Form 1EBS'!F75","v":0},{"$f":"+'Equity Investments'!E38","v":0.2},{"$f":"IF(D136<0,0,D136*E136)","v":0},null,null,{"$f":"MAX(0,IF(H136=\"\",E136*D136,D136*H136))","v":0}]
[]
[null,"(c)  SUBTOTAL - OTHER EQUITY INVESTMENTS",null,{"$f":"SUM(D132:D136)","v":0},null,{"$f":"IF(SUM(F132:F136)>=0,SUM(F132:F136),0)","v":0},null,null,{"$f":"IF(SUM(I132:I136)>=0,SUM(I132:I136),0)","v":0}]
[]
[null,"(d)  Investments in Affiliates"]
[]
[null,"Unregulated Entities That Conduct Ancillary Services","Form 1EBS, Line (4a)",{"$f":"'Form 1EBS'!F33","v":0},{"$f":"+'Equity Investments'!E44","v":0.05},{"$f":"IF(D142<0,0,D142*E142)","v":0},null,null,{"$f":"MAX(0,IF(H142=\"\",E142*D142,D142*H142))","v":0}]
[null,"Unregulated Non-Financial Operating Entities","Form 1EBS, Line (4b)",{"$f":"'Form 1EBS'!F34","v":0},{"$f":"+'Equity Investments'!E45","v":0.2},{"$f":"IF(D143<0,0,D143*E143)","v":0},null,null,{"$f":"MAX(0,IF(H143=\"\",E143*D143,D143*H143))","v":0}]
[null,"Unregulated Financial Operating Entities","Form 1EBS, Line (4c)",{"$f":"'Form 1EBS'!F35","v":0},{"$f":"+'Equity Investments'!E46","v":0.55000000000000004},{"$f":"IF(D144<0,0,D144*E144)","v":0},null,null,{"$f":"MAX(0,IF(H144=\"\",E144*D144,D144*H144))","v":0}]
[null,"Regulated Insurance Financial Operating Entities","Form 1EBS, Line (4e)",{"$f":"'Form 1EBS'!F37","v":0},{"$f":"+'Equity Investments'!E47","v":0.2},{"$f":"IF(D145<0,0,D145*E145)","v":0},null,null,{"$f":"MAX(0,IF(H145=\"\",E145*D145,D145*H145))","v":0}]
[]
[null,"(d)  SUBTOTAL - INVESTMENTS IN AFFILIATES",null,{"$f":"SUM(D142:D145)","v":0},null,{"$f":"IF(SUM(F142:F145)>=0,SUM(F142:F145),0)","v":0},null,null,{"$f":"IF(SUM(I142:I145)>=0,SUM(I142:I145),0)","v":0}]
[]
[null,"(e)  TOTAL EQUITY INVESTMENTS [ (a) + (b) + (c) + (d) ]",null,{"$f":"D113+D127+D138+D147","v":0},null,{"$f":"IF(SUM(F113,F127,F138,F147)>=0,SUM(F113,F127,F138,F147),0)","v":0},null,null,{"$f":"IF(SUM(I113,I127,I138,I147)>=0,SUM(I113,I127,I138,I147),0)","v":0}]
[]
[null,null,null,null,"STANDARD","STANDARD",null,"USER","USER"]
[null,null,null,null,"CAPITAL","REQUIRED",null,"CAPITAL","REQUIRED"]
[null,"CURRENCY RISK","ASSETS","LIABILITIES","FACTOR","CAPITAL",null,"FACTOR","CAPITAL"]
[]
[null,"US Dollar",{"$f":"IF('Currency Risk'!D9=0,'Currency Risk'!C9,'Currency Risk'!D9)","v":0},{"$f":"IF('Currency Risk'!D9=0,'Currency Risk'!E9,'Currency Risk'!F9)","v":0},{"$f":"'Currency Risk'!H9","v":0},{"$f":"'Currency Risk'!I9","v":0},null,null,{"$f":"IF(H155=\"\",F155,H155*ABS(D155-C155))","v":0}]
[null,"Euro",{"$f":"IF('Currency Risk'!D10=0,'Currency Risk'!C10,'Currency Risk'!D10)","v":0},{"$f":"IF('Currency Risk'!D10=0,'Currency Risk'!E10,'Currency Risk'!F10)","v":0},{"$f":"'Currency Risk'!H10","v":0.25},{"$f":"'Currency Risk'!I10","v":0},null,null,{"$f":"IF(H156=\"\",F156,H156*ABS(D156-C156))","v":0}]
[null,"GBP",{"$f":"IF('Currency Risk'!D11=0,'Currency Risk'!C11,'Currency Risk'!D11)","v":0},{"$f":"IF('Currency Risk'!D11=0,'Currency Risk'!E11,'Currency Risk'!F11)","v":0},{"$f":"'Currency Risk'!H11","v":0.25},{"$f":"'Currency Risk'!I11","v":0},null,null,0]
[null,"CAD$",{"$f":"IF('Currency Risk'!D12=0,'Currency Risk'!C12,'Currency Risk'!D12)","v":0},{"$f":"IF('Currency Risk'!D12=0,'Currency Risk'!E12,'Currency Risk'!F12)","v":0},{"$f":"'Currency Risk'!H12","v":0.25},{"$f":"'Currency Risk'!I12","v":0},null,null,0]
[null,"YEN",{"$f":"IF('Currency Risk'!D13=0,'Currency Risk'!C13,'Currency Risk'!D13)","v":0},{"$f":"IF('Currency Risk'!D13=0,'Currency Risk'!E13,'Currency Risk'!F13)","v":0},{"$f":"'Currency Risk'!H13","v":0.25},{"$f":"'Currency Risk'!I13","v":0},null,null,0]
[null,"Other currency 1",{"$f":"IF('Currency Risk'!D14=0,'Currency Risk'!C14,'Currency Risk'!D14)","v":0},{"$f":"IF('Currency Risk'!D14=0,'Currency Risk'!E14,'Currency Risk'!F14)","v":0},{"$f":"'Currency Risk'!H14","v":0.25},{"$f":"'Currency Risk'!I14","v":0},null,null,0]
[null,"Other currency 2",{"$f":"IF('Currency Risk'!D15=0,'Currency Risk'!C15,'Currency Risk'!D15)","v":0},{"$f":"IF('Currency Risk'!D15=0,'Currency Risk'!E15,'Currency Risk'!F15)","v":0},{"$f":"'Currency Risk'!H15","v":0.25},{"$f":"'Currency Risk'!I15","v":0},null,null,0]
[null,"Other currency 3",{"$f":"IF('Currency Risk'!D16=0,'Currency Risk'!C16,'Currency Risk'!D16)","v":0},{"$f":"IF('Currency Risk'!D16=0,'Currency Risk'!E16,'Currency Risk'!F16)","v":0},{"$f":"'Currency Risk'!H16","v":0.25},{"$f":"'Currency Risk'!I16","v":0},null,null,0]
[null,"Other currency 4",{"$f":"IF('Currency Risk'!D17=0,'Currency Risk'!C17,'Currency Risk'!D17)","v":0},{"$f":"IF('Currency Risk'!D17=0,'Currency Risk'!E17,'Currency Risk'!F17)","v":0},{"$f":"'Currency Risk'!H17","v":0.25},{"$f":"'Currency Risk'!I17","v":0},null,null,0]
[null,"Other currency 5",{"$f":"IF('Currency Risk'!D18=0,'Currency Risk'!C18,'Currency Risk'!D18)","v":0},{"$f":"IF('Currency Risk'!D18=0,'Currency Risk'!E18,'Currency Risk'!F18)","v":0},{"$f":"'Currency Risk'!H18","v":0.25},{"$f":"'Currency Risk'!I18","v":0},null,null,0]
[null,"Other currency 6",{"$f":"IF('Currency Risk'!D19=0,'Currency Risk'!C19,'Currency Risk'!D19)","v":0},{"$f":"IF('Currency Risk'!D19=0,'Currency Risk'!E19,'Currency Risk'!F19)","v":0},{"$f":"'Currency Risk'!H19","v":0.25},{"$f":"'Currency Risk'!I19","v":0},null,null,0]
[null,"Other currency 7",{"$f":"IF('Currency Risk'!D20=0,'Currency Risk'!C20,'Currency Risk'!D20)","v":0},{"$f":"IF('Currency Risk'!D20=0,'Currency Risk'!E20,'Currency Risk'!F20)","v":0},{"$f":"'Currency Risk'!H20","v":0.25},{"$f":"'Currency Risk'!I20","v":0},null,null,0]
[null,"Other currency 8",{"$f":"IF('Currency Risk'!D21=0,'Currency Risk'!C21,'Currency Risk'!D21)","v":0},{"$f":"IF('Currency Risk'!D21=0,'Currency Risk'!E21,'Currency Risk'!F21)","v":0},{"$f":"'Currency Risk'!H21","v":0.25},{"$f":"'Currency Risk'!I21","v":0},null,null,0]
[null,"Other currency 9",{"$f":"IF('Currency Risk'!D22=0,'Currency Risk'!C22,'Currency Risk'!D22)","v":0},{"$f":"IF('Currency Risk'!D22=0,'Currency Risk'!E22,'Currency Risk'!F22)","v":0},{"$f":"'Currency Risk'!H22","v":0.25},{"$f":"'Currency Risk'!I22","v":0},null,null,0]
[null,"Other currency 10",{"$f":"IF('Currency Risk'!D23=0,'Currency Risk'!C23,'Currency Risk'!D23)","v":0},{"$f":"IF('Currency Risk'!D23=0,'Currency Risk'!E23,'Currency Risk'!F23)","v":0},{"$f":"'Currency Risk'!H23","v":0.25},{"$f":"'Currency Risk'!I23","v":0},null,null,0]
[null,"Total Identified",{"$f":"SUM(C155:C169)","v":0},{"$f":"SUM(D155:D169)","v":0}]
[null,"Total",{"$f":"'Form 1EBS'!F90","v":0},{"$f":"'Form 1EBS'!F163","v":0}]
[null,"% Identified",{"$f":"IF(C170=0,0,C170/C171)","v":0},{"$f":"IF(D170=0,0,D170/D171)","v":0}]
[]
[null,"TOTAL CURRENCY RISK",{"$f":"SUM(C155:C169)","v":0},{"$f":"SUM(D155:D169)","v":0},null,{"$f":"IF(SUM(F155:F172)>=0,SUM(F155:F172),0)","v":0},null,null,{"$f":"IF(SUM(I155:I172)>=0,SUM(I155:I172),0)","v":0}]
[]
[null,"CONCENTRATION RISK",null,null,"STANDARD","STANDARD",null,"USER","USER"]
[null,null,null,"EXPOSURE","CAPITAL","REQUIRED",null,"CAPITAL","REQUIRED"]
[null,"ASSET TYPE","STATEMENT SOURCE","VALUE","FACTOR","CAPITAL",null,"FACTOR","CAPITAL"]
[]
[null,"(a) Cash and Cash Equivalents"]
[null,"BSCR Rating 0","Schedule XXI, Column H",{"$f":"+'Concentration Risk'!D10","v":0},{"$f":"+'Fixed Income Investments'!E83","v":0},{"$f":"IF(D181<0,0,D181*E181)","v":0},null,null,{"$f":"MAX(0,IF(H181=\"\",E181*D181,D181*H181))","v":0}]
[null,"BSCR Rating 1","Schedule XXI, Column H",{"$f":"+'Concentration Risk'!D11","v":0},{"$f":"+'Fixed Income Investments'!E84","v":1E-3},{"$f":"IF(D182<0,0,D182*E182)","v":0},null,null,{"$f":"MAX(0,IF(H182=\"\",E182*D182,D182*H182))","v":0}]
[null,"BSCR Rating 2","Schedule XXI, Column H",{"$f":"+'Concentration Risk'!D12","v":0},{"$f":"+'Fixed Income Investments'!E85","v":2E-3},{"$f":"IF(D183<0,0,D183*E183)","v":0},null,null,{"$f":"MAX(0,IF(H183=\"\",E183*D183,D183*H183))","v":0}]
[null,"BSCR Rating 3","Schedule XXI, Column H",{"$f":"+'Concentration Risk'!D13","v":0},{"$f":"+'Fixed Income Investments'!E86","v":3.0000000000000001E-3},0,null,null,0]
[null,"BSCR Rating 4","Schedule XXI, Column H",{"$f":"+'Concentration Risk'!D14","v":0},{"$f":"+'Fixed Income Investments'!E87","v":5.0000000000000001E-3},0,null,null,0]
[null,"BSCR Rating 5","Schedule XXI, Column H",{"$f":"+'Concentration Risk'!D15","v":0},{"$f":"+'Fixed Income Investments'!E88","v":1.4999999999999999E-2},0,null,null,0]
[null,"BSCR Rating 6","Schedule XXI, Column H",{"$f":"+'Concentration Risk'!D16","v":0},{"$f":"+'Fixed Income Investments'!E89","v":0.04},0,null,null,0]
[null,"BSCR Rating 7","Schedule XXI, Column H",{"$f":"+'Concentration Risk'!D17","v":0},{"$f":"+'Fixed Income Investments'!E90","v":0.06},0,null,null,0]
[null,"BSCR Rating 8","Schedule XXI, Column H",{"$f":"+'Concentration Risk'!D18","v":0},{"$f":"+'Fixed Income Investments'!E91","v":0.09},0,null,null,0]
[]
[null,"(a)  SUBTOTAL - CASH AND CASH EQUIVALENTS",null,{"$f":"SUM(D181:D189)","v":0},null,{"$f":"SUM(F181:F189)","v":0},null,null,{"$f":"SUM(I181:I189)","v":0}]
[]
[null,"(b) Corporate & Sovereign Bonds"]
[null,"BSCR Rating 0","Schedule XXI, Column H",{"$f":"+'Concentration Risk'!D23","v":0},{"$f":"+E15","v":0},{"$f":"IF(D194<0,0,D194*E194)","v":0},null,null,{"$f":"MAX(0,IF(H194=\"\",E194*D194,D194*H194))","v":0}]
[null,"BSCR Rating 1","Schedule XXI, Column H",{"$f":"+'Concentration Risk'!D24","v":0},4.0000000000000001E-3,0,null,null,{"$f":"MAX(0,IF(H195=\"\",E195*D195,D195*H195))","v":0}]
[null,"BSCR Rating 2","Schedule XXI, Column H",{"$f":"+'Concentration Risk'!D25","v":0},8.0000000000000002E-3,0,null,null,{"$f":"MAX(0,IF(H196=\"\",E196*D196,D196*H196))","v":0}]
[null,"BSCR Rating 3","Schedule XXI, Column H",{"$f":"+'Concentration Risk'!D26","v":0},1.4999999999999999E-2,0,null,null,0]
[null,"BSCR Rating 4","Schedule XXI, Column H",{"$f":"+'Concentration Risk'!D27","v":0},0.03,0,null,null,0]
[null,"BSCR Rating 5","Schedule XXI, Column H",{"$f":"+'Concentration Risk'!D28","v":0},0.08,0,null,null,0]
[null,"BSCR Rating 6","Schedule XXI, Column H",{"$f":"+'Concentration Risk'!D29","v":0},0.15,0,null,null,0]
[null,"BSCR Rating 7","Schedule XXI, Column H",{"$f":"+'Concentration Risk'!D30","v":0},0.26300000000000001,0,null,null,0]
[null,"BSCR Rating 8","Schedule XXI, Column H",{"$f":"+'Concentration Risk'!D31","v":0},0.35,0,null,null,0]
[]
[null,"(b)  SUBTOTAL - CORPORATE & SOVEREIGN BONDS",null,{"$f":"SUM(D194:D202)","v":0},null,{"$f":"SUM(F194:F202)","v":0},null,null,{"$f":"SUM(I194:I202)","v":0}]
[]
[null,"(c) Residential Mortage-Backed Securities"]
[null,"BSCR Rating 0","Schedule XXI, Column H",{"$f":"+'Concentration Risk'!D36","v":0},0,{"$f":"IF(D207<0,0,D207*E207)","v":0},null,null,{"$f":"MAX(0,IF(H207=\"\",E207*D207,D207*H207))","v":0}]
[null,"BSCR Rating 1","Schedule XXI, Column H",{"$f":"+'Concentration Risk'!D37","v":0},{"$f":"+E30","v":6.0000000000000001E-3},0,null,null,{"$f":"MAX(0,IF(H208=\"\",E208*D208,D208*H208))","v":0}]
[null,"BSCR Rating 2","Schedule XXI, Column H",{"$f":"+'Concentration Risk'!D38","v":0},1.2E-2,0,null,null,{"$f":"MAX(0,IF(H209=\"\",E209*D209,D209*H209))","v":0}]
[null,"BSCR Rating 3","Schedule XXI, Column H",{"$f":"+'Concentration Risk'!D39","v":0},0.02,0,null,null,0]
[null,"BSCR Rating 4","Schedule XXI, Column H",{"$f":"+'Concentration Risk'!D40","v":0},0.04,0,null,null,0]
[null,"BSCR Rating 5","Schedule XXI, Column H",{"$f":"+'Concentration Risk'!D41","v":0},0.11,0,null,null,0]
[null,"BSCR Rating 6","Schedule XXI, Column H",{"$f":"+'Concentration Risk'!D42","v":0},0.25,0,null,null,0]
[null,"BSCR Rating 7","Schedule XXI, Column H",{"$f":"+'Concentration Risk'!D43","v":0},0.35,0,null,null,0]
[null,"BSCR Rating 8","Schedule XXI, Column H",{"$f":"+'Concentration Risk'!D44","v":0},0.35,0,null,null,0]
[]
[null,"(c)  SUBTOTAL - RESIDENTIAL MORTGAGE-BACKED SECURITIES",null,{"$f":"SUM(D207:D215)","v":0},null,{"$f":"SUM(F207:F215)","v":0},null,null,{"$f":"SUM(I207:I215)","v":0}]
[]
[null,"(d) Commercial Mortgage-Backed Securities / Asset Backed Securities"]
[null,"BSCR Rating 0","Schedule XXI, Column H",{"$f":"+'Concentration Risk'!D49","v":0},0,{"$f":"IF(D220<0,0,D220*E220)","v":0},null,null,{"$f":"MAX(0,IF(H220=\"\",E220*D220,D220*H220))","v":0}]
[null,"BSCR Rating 1","Schedule XXI, Column H",{"$f":"+'Concentration Risk'!D50","v":0},{"$f":"+E44","v":5.0000000000000001E-3},0,null,null,{"$f":"MAX(0,IF(H221=\"\",E221*D221,D221*H221))","v":0}]
[null,"BSCR Rating 2","Schedule XXI, Column H",{"$f":"+'Concentration Risk'!D51","v":0},0.01,0,null,null,{"$f":"MAX(0,IF(H222=\"\",E222*D222,D222*H222))","v":0}]
[null,"BSCR Rating 3","Schedule XXI, Column H",{"$f":"+'Concentration Risk'!D52","v":0},1.7999999999999999E-2,0,null,null,0]
[null,"BSCR Rating 4","Schedule XXI, Column H",{"$f":"+'Concentration Risk'!D53","v":0},3.5000000000000003E-2,0,null,null,0]
[null,"BSCR Rating 5","Schedule XXI, Column H",{"$f":"+'Concentration Risk'!D54","v":0},0.1,0,null,null,0]
[null,"BSCR Rating 6","Schedule XXI, Column H",{"$f":"+'Concentration Risk'!D55","v":0},0.2,0,null,null,0]
[null,"BSCR Rating 7","Schedule XXI, Column H",{"$f":"+'Concentration Risk'!D56","v":0},0.3,0,null,null,0]
[null,"BSCR Rating 8","Schedule XXI, Column H",{"$f":"+'Concentration Risk'!D57","v":0},0.35,0,null,null,0]
[]
[null,"(d)  SUBTOTAL - COMMERCIAL MORTGAGE-BACKED SECURITIES / ASSET-BACKED SECURITIES",null,{"$f":"SUM(D220:D228)","v":0},null,{"$f":"SUM(F220:F228)","v":0},null,null,{"$f":"SUM(I220:I228)","v":0}]
[]
[null,"(e) Bond Mutual Funds"]
[null,"BSCR Rating 0","Schedule XXI, Column H",{"$f":"+'Concentration Risk'!D62","v":0},{"$f":"+E58","v":0},{"$f":"IF(D233<0,0,D233*E233)","v":0},null,null,{"$f":"MAX(0,IF(H233=\"\",E233*D233,D233*H233))","v":0}]
[null,"BSCR Rating 1","Schedule XXI, Column H",{"$f":"+'Concentration Risk'!D63","v":0},4.0000000000000001E-3,0,null,null,{"$f":"MAX(0,IF(H234=\"\",E234*D234,D234*H234))","v":0}]
[null,"BSCR Rating 2","Schedule XXI, Column H",{"$f":"+'Concentration Risk'!D64","v":0},8.0000000000000002E-3,0,null,null,{"$f":"MAX(0,IF(H235=\"\",E235*D235,D235*H235))","v":0}]
[null,"BSCR Rating 3","Schedule XXI, Column H",{"$f":"+'Concentration Risk'!D65","v":0},1.4999999999999999E-2,0,null,null,0]
[null,"BSCR Rating 4","Schedule XXI, Column H",{"$f":"+'Concentration Risk'!D66","v":0},0.03,0,null,null,0]
[null,"BSCR Rating 5","Schedule XXI, Column H",{"$f":"+'Concentration Risk'!D67","v":0},0.08,0,null,null,0]
[null,"BSCR Rating 6","Schedule XXI, Column H",{"$f":"+'Concentration Risk'!D68","v":0},0.15,0,null,null,0]
[null,"BSCR Rating 7","Schedule XXI, Column H",{"$f":"+'Concentration Risk'!D69","v":0},0.26300000000000001,0,null,null,0]
[null,"BSCR Rating 8","Schedule XXI, Column H",{"$f":"+'Concentration Risk'!D70","v":0},0.35,0,null,null,0]
[]
[null,"(e)  SUBTOTAL - BOND MUTUAL FUNDS",null,{"$f":"SUM(D233:D241)","v":0},null,{"$f":"SUM(F233:F241)","v":0},null,null,{"$f":"SUM(I233:I241)","v":0}]
[]
[null,"(f) Preferred Shares"]
[null,"BSCR Rating 0","Schedule XXI, Column H",{"$f":"+'Concentration Risk'!D75","v":0},{"$f":"+'Concentration Risk'!E75","v":0},{"$f":"IF(D246<0,0,D246*E246)","v":0},null,null,{"$f":"MAX(0,IF(H246=\"\",E246*D246,D246*H246))","v":0}]
[null,"BSCR Rating 1","Schedule XXI, Column H",{"$f":"+'Concentration Risk'!D76","v":0},{"$f":"+'Concentration Risk'!E76","v":6.0000000000000001E-3},{"$f":"IF(D247<0,0,D247*E247)","v":0},null,null,{"$f":"MAX(0,IF(H247=\"\",E247*D247,D247*H247))","v":0}]
[null,"BSCR Rating 2","Schedule XXI, Column H",{"$f":"+'Concentration Risk'!D77","v":0},{"$f":"+'Concentration Risk'!E77","v":1.2E-2},0,null,null,0]
[null,"BSCR Rating 3","Schedule XXI, Column H",{"$f":"+'Concentration Risk'!D78","v":0},{"$f":"+'Concentration Risk'!E78","v":0.02},0,null,null,0]
[null,"BSCR Rating 4","Schedule XXI, Column H",{"$f":"+'Concentration Risk'!D79","v":0},{"$f":"+'Concentration Risk'!E79","v":0.04},0,null,null,0]
[null,"BSCR Rating 5","Schedule XXI, Column H",{"$f":"+'Concentration Risk'!D80","v":0},{"$f":"+'Concentration Risk'!E80","v":0.11},0,null,null,0]
[null,"BSCR Rating 6","Schedule XXI, Column H",{"$f":"+'Concentration Risk'!D81","v":0},{"$f":"+'Concentration Risk'!E81","v":0.25},0,null,null,0]
[null,"BSCR Rating 7","Schedule XXI, Column H",{"$f":"+'Concentration Risk'!D82","v":0},{"$f":"+'Concentration Risk'!E82","v":0.35},0,null,null,0]
[null,"BSCR Rating 8","Schedule XXI, Column H",{"$f":"+'Concentration Risk'!D83","v":0},{"$f":"+'Concentration Risk'!E83","v":0.35},0,null,null,0]
[]
[null,"(f)  SUBTOTAL - PREFERRED SHARES",null,{"$f":"SUM(D246:D254)","v":0},null,{"$f":"SUM(F246:F254)","v":0},null,null,{"$f":"SUM(I246:I254)","v":0}]
[]
[null,"(g) Mortgage Loans"]
[null,"Insured/Guaranteed Mortgages","Schedule XXI, Column H",{"$f":"+'Concentration Risk'!D88","v":0},{"$f":"+'Concentration Risk'!E88","v":3.0000000000000001E-3},{"$f":"IF(D259<0,0,D259*E259)","v":0},null,null,{"$f":"MAX(0,IF(H259=\"\",E259*D259,D259*H259))","v":0}]
[null,"Other Commercial and Farm Mortgages","Schedule XXI, Column H",{"$f":"+'Concentration Risk'!D89","v":0},{"$f":"+'Concentration Risk'!E89","v":0.05},{"$f":"IF(D260<0,0,D260*E260)","v":0},null,null,{"$f":"MAX(0,IF(H260=\"\",E260*D260,D260*H260))","v":0}]
[null,"Other Residential Mortgages","Schedule XXI, Column H",{"$f":"+'Concentration Risk'!D90","v":0},{"$f":"+'Concentration Risk'!E90","v":1.4999999999999999E-2},{"$f":"IF(D261<0,0,D261*E261)","v":0},null,null,{"$f":"MAX(0,IF(H261=\"\",E261*D261,D261*H261))","v":0}]
[null,"Mortgages Not In Good Standing","Schedule XXI, Column H",{"$f":"+'Concentration Risk'!D91","v":0},{"$f":"+'Concentration Risk'!E91","v":0.25},{"$f":"IF(D262<0,0,D262*E262)","v":0},null,null,{"$f":"MAX(0,IF(H262=\"\",E262*D262,D262*H262))","v":0}]
[]
[null,"(g)  SUBTOTAL - Mortgage Loans",null,{"$f":"SUM(D258:D262)","v":0},null,{"$f":"SUM(F258:F262)","v":0},null,null,{"$f":"SUM(I258:I262)","v":0}]
[]
[null,"(h) Other Asset Classes"]
[null,"Common Stock and Mutual Funds","Schedule XXI, Column H",{"$f":"+'Concentration Risk'!D96","v":0},{"$f":"+'Concentration Risk'!E96","v":0.14399999999999999},{"$f":"IF(D267<0,0,D267*E267)","v":0},null,null,{"$f":"MAX(0,IF(H267=\"\",E267*D267,D267*H267))","v":0}]
[null,"Other Investments","Schedule XXI, Column H",{"$f":"+'Concentration Risk'!D97","v":0},{"$f":"+'Concentration Risk'!E97","v":0.2},0,null,null,0]
[null,"Investment in Affiliates – Unregulated entities that conduct ancillary services",null,{"$f":"+'Concentration Risk'!D98","v":0},{"$f":"+'Concentration Risk'!E98","v":0.05},0,null,null,0]
[null,"Investment in Affiliates - Unregulated non-financial operating entities",null,{"$f":"+'Concentration Risk'!D99","v":0},{"$f":"+'Concentration Risk'!E99","v":0.2},0,null,null,0]
[null,"Investment in Affiliates - Unregulated financial operating entities",null,{"$f":"+'Concentration Risk'!D100","v":0},{"$f":"+'Concentration Risk'!E100","v":0.55000000000000004},0,null,null,0]
[null,"Investment in Affiliates - Regulated non-insurance financial operating entities",null,{"$f":"+'Concentration Risk'!D101","v":0},{"$f":"+'Concentration Risk'!E101","v":0.55000000000000004},0,null,null,0]
[null,"Investment in Affiliates - Regulated insurance financial operating entities",null,{"$f":"+'Concentration Risk'!D102","v":0},{"$f":"+'Concentration Risk'!E102","v":0.2},0,null,null,0]
[null,"Advances to Affiliates - ","Schedule XXI, Column H",{"$f":"+'Concentration Risk'!D103","v":0},{"$f":"+'Concentration Risk'!E103","v":0.05},0,null,null,0]
[null,"Policy Loans","Schedule XXI, Column H",{"$f":"+'Concentration Risk'!D104","v":0},{"$f":"+'Concentration Risk'!E104","v":0},0,null,null,0]
[null,"Real Estate: Occupied by company","Schedule XXI, Column H",{"$f":"+'Concentration Risk'!D105","v":0},{"$f":"+'Concentration Risk'!E105","v":0.1},0,null,null,0]
[null,"Real Estate: Other properties","Schedule XXI, Column H",{"$f":"+'Concentration Risk'!D106","v":0},{"$f":"+'Concentration Risk'!E106","v":0.2},0,null,null,0]
[null,"Collateral Loans","Schedule XXI, Column H",{"$f":"+'Concentration Risk'!D107","v":0},{"$f":"+'Concentration Risk'!E107","v":0.05},0,null,null,0]
[]
[null,"(h)  SUBTOTAL - OTHER ASSET CLASSES",null,{"$f":"SUM(D267:D279)","v":0},null,{"$f":"SUM(F267:F279)","v":0},null,null,{"$f":"SUM(I267:I279)","v":0}]
[]
[null,"TOTAL CONCENTRATION RISK",null,{"$f":"D191+D204+D217+D230+D243+D256+D264+D280","v":0},null,{"$f":"F191+F204+F217+F230+F243+F256+F264+F280","v":0},null,null,{"$f":"I191+I204+I217+I230+I243+I256+I264+I280","v":0}]
[]
[null,null,null,null,"STANDARD","STANDARD",null,"USER","USER"]
[null,"TYPE OF ",null,"ASSET","CAPITAL","REQUIRED",null,"CAPITAL","REQUIRED"]
[null,"INTEREST RATE/LIQUIDITY RISK","STATEMENT SOURCE","VALUE","FACTOR","CAPITAL",null,"FACTOR","CAPITAL"]
[]
[null,"Bonds and Debentures ","Sch II EBS & IIA EBS Column (9), Line 10",{"$f":"+'Schedule II (EBS)'!T22+'Schedule IIA (EBS)'!T22","v":0},{"$f":"IF('Company Information'!F11=\"Class 3A\",IF(('Schedule V'!H12-'Schedule V'!H10)>3.5,3.5,MAX(1,'Schedule V'!H10-'Schedule V'!H12,'Schedule V'!H12-'Schedule V'!H10)),IF('Schedule V'!$H$10-'Schedule V'!$H$12>=1,'Schedule V'!$H$10-'Schedule V'!$H$12,IF('Schedule V'!$H$12-'Schedule V'!$H$10>=1,'Schedule V'!$H$12-'Schedule V'!$H$10,1)))*2%","v":0.02},{"$f":"IF(D288<0,0,D288*E288)","v":0},null,null,{"$f":"MAX(0,IF(H288=\"\",E288*D288,D288*H288))","v":0}]
[null,"Preferred Stocks ","Sch II EBS & IIA EBS Column (3), Line 21",{"$f":"+'Schedule II (EBS)'!H44+'Schedule IIA (EBS)'!H44","v":0},{"$f":"IF('Company Information'!F11=\"Class 3A\",IF(('Schedule V'!H12-'Schedule V'!H10)>3.5,3.5,MAX(1,'Schedule V'!H10-'Schedule V'!H12,'Schedule V'!H12-'Schedule V'!H10)),IF('Schedule V'!$H$10-'Schedule V'!$H$12>=1,'Schedule V'!$H$10-'Schedule V'!$H$12,IF('Schedule V'!$H$12-'Schedule V'!$H$10>=1,'Schedule V'!$H$12-'Schedule V'!$H$10,1)))*2%","v":0.02},{"$f":"IF(D289<0,0,D289*E289)","v":0},null,null,{"$f":"MAX(0,IF(H289=\"\",E289*D289,D289*H289))","v":0}]
[null,"Mortgage Loans","Sch II EBS & IIA EBS Column (1), Line 26",{"$f":"+'Schedule II (EBS)'!D62+'Schedule IIA (EBS)'!D62","v":0},{"$f":"IF('Company Information'!F11=\"Class 3A\",IF(('Schedule V'!H12-'Schedule V'!H10)>3.5,3.5,MAX(1,'Schedule V'!H10-'Schedule V'!H12,'Schedule V'!H12-'Schedule V'!H10)),IF('Schedule V'!$H$10-'Schedule V'!$H$12>=1,'Schedule V'!$H$10-'Schedule V'!$H$12,IF('Schedule V'!$H$12-'Schedule V'!$H$10>=1,'Schedule V'!$H$12-'Schedule V'!$H$10,1)))*2%","v":0.02},{"$f":"IF(D290<0,0,D290*E290)","v":0},null,null,{"$f":"MAX(0,IF(H290=\"\",E290*D290,D290*H290))","v":0}]
[]
[null,"TOTAL INTEREST RATE / LIQUIDITY RISK",null,{"$f":"SUM(D288:D290)","v":0},null,{"$f":"IF(SUM(F288:F290)>=0,SUM(F288:F290),0)","v":0},null,null,{"$f":"IF(SUM(I288:I290)>=0,SUM(I288:I290),0)","v":0}]
[]
[null,null,null,"GEO","STANDARD","STANDARD",null,"USER","USER"]
[null,"TYPE OF ",null,"DIVERSIFIED","CAPITAL","REQUIRED",null,"CAPITAL","REQUIRED"]
[null,"PREMIUM RISK","STATEMENT SOURCE","PREMIUMS","FACTOR","CAPITAL",null,"FACTOR","CAPITAL"]
[]
[null,"Property Catastrophe","Schedule IVA, Line (1)",{"$f":"+'Geographic Diversification'!H9","v":0},{"$f":"+'Premium Risk'!H11","v":0},{"$f":"IF(D298<0,0,D298*E298)","v":0},null,null,{"$f":"MAX(0,IF(H298=\"\",E298*D298,D298*H298))","v":0}]
[null,"Property","Schedule IVA, Line (2)",{"$f":"+'Geographic Diversification'!H10","v":0},{"$f":"+'Premium Risk'!H12","v":0.497450025355053},{"$f":"IF(D299<0,0,D299*E299)","v":0},null,null,0]
[null,"Property Non-Proportional","Schedule IVA, Line (3)",{"$f":"+'Geographic Diversification'!H11","v":0},{"$f":"+'Premium Risk'!H13","v":0.51625715924082105},0,null,null,0]
[null,"Personal Accident","Schedule IVA, Line (4)",{"$f":"+'Geographic Diversification'!H12","v":0},{"$f":"+'Premium Risk'!H14","v":0.34115345724240698},0,null,null,0]
[null,"Personal Accident Non-Proportional","Schedule IVA, Line (5)",{"$f":"+'Geographic Diversification'!H13","v":0},{"$f":"+'Premium Risk'!H15","v":0.41221262895987398},0,null,null,0]
[null,"Aviation","Schedule IVA, Line (6)",{"$f":"+'Geographic Diversification'!H14","v":0},{"$f":"+'Premium Risk'!H16","v":0.48178449435856302},0,null,null,0]
[null,"Aviation Non-Proportional","Schedule IVA, Line (7)",{"$f":"+'Geographic Diversification'!H15","v":0},{"$f":"+'Premium Risk'!H17","v":0.48201231799963601},0,null,null,0]
[null,"Credit / Surety","Schedule IVA, Line (8)",{"$f":"+'Geographic Diversification'!H16","v":0},{"$f":"+'Premium Risk'!H18","v":0.39820522005250802},0,null,null,0]
[null,"Credit / Surety Non-Proportional","Schedule IVA, Line (9)",{"$f":"+'Geographic Diversification'!H17","v":0},{"$f":"+'Premium Risk'!H19","v":0.45356665999464701},0,null,null,0]
[null,"Energy Offshore / Marine","Schedule IVA, Line (10)",{"$f":"+'Geographic Diversification'!H18","v":0},{"$f":"+'Premium Risk'!H20","v":0.42102344656076801},0,null,null,0]
[null,"Energy Offshore / Marine Non-Proportional","Schedule IVA, Line (11)",{"$f":"+'Geographic Diversification'!H19","v":0},{"$f":"+'Premium Risk'!H21","v":0.47016820069929899},0,null,null,0]
[null,"US Casualty","Schedule IVA, Line (12)",{"$f":"+'Geographic Diversification'!H20","v":0},{"$f":"+'Premium Risk'!H22","v":0.50272577892886305},0,null,null,0]
[null,"US Casualty Non-Proportional","Schedule IVA, Line (13)",{"$f":"+'Geographic Diversification'!H21","v":0},{"$f":"+'Premium Risk'!H23","v":0.555814073452775},0,null,null,0]
[null,"US Professional","Schedule IVA, Line (14)",{"$f":"+'Geographic Diversification'!H22","v":0},{"$f":"+'Premium Risk'!H24","v":0.51225206482709496},0,null,null,0]
[null,"US Professional Non-Proportional","Schedule IVA, Line (15)",{"$f":"+'Geographic Diversification'!H23","v":0},{"$f":"+'Premium Risk'!H25","v":0.53805556666757803},0,null,null,0]
[null,"US Specialty","Schedule IVA, Line (16)",{"$f":"+'Geographic Diversification'!H24","v":0},{"$f":"+'Premium Risk'!H26","v":0.51436147942106603},0,null,null,0]
[null,"US Specialty Non-Proportional","Schedule IVA, Line (17)",{"$f":"+'Geographic Diversification'!H25","v":0},{"$f":"+'Premium Risk'!H27","v":0.52697789035313303},0,null,null,0]
[null,"International Motor","Schedule IVA, Line (18)",{"$f":"+'Geographic Diversification'!H26","v":0},{"$f":"+'Premium Risk'!H28","v":0.42191756117933499},0,null,null,0]
[null,"International Motor Non-Proportional","Schedule IVA, Line (19)",{"$f":"+'Geographic Diversification'!H27","v":0},{"$f":"+'Premium Risk'!H29","v":0.482210885429324},0,null,null,0]
[null,"International Casualty Non-Motor","Schedule IVA, Line (20)",{"$f":"+'Geographic Diversification'!H28","v":0},{"$f":"+'Premium Risk'!H30","v":0.50012106835589698},0,null,null,0]
[null,"International Casualty Non-Motor Non-Proportional","Schedule IVA, Line (21)",{"$f":"+'Geographic Diversification'!H29","v":0},{"$f":"+'Premium Risk'!H31","v":0.53551360019381999},0,null,null,0]
[null,"Retro Property","Schedule IVA, Line (22)",{"$f":"+'Geographic Diversification'!H30","v":0},{"$f":"+'Premium Risk'!H32","v":0.508030898436173},0,null,null,0]
[null,"Structured / Finite Reinsurance","Schedule IVA, Line (23)",{"$f":"+'Geographic Diversification'!H31","v":0},{"$f":"+'Premium Risk'!H33","v":0.27200000000000002},0,null,null,0]
[null,"Health","Schedule IVA, Line (24)",{"$f":"+'Geographic Diversification'!H32","v":0},{"$f":"+'Premium Risk'!H34","v":0.15},0,null,null,0]
[]
[null,"(a)  TOTAL",null,{"$f":"SUM(D298:D321)","v":0},null,{"$f":"SUM(F298:F322)","v":0},null,null,{"$f":"SUM(I298:I321)","v":0}]
[]
[null,"(b)  CONCENTRATION ADJUSTMENT CALCULATION"]
[]
[null,"(i)","Maximum Premium [ Maximum (1a) excl Prop CAT ]",null,null,{"$f":"MAX(D299:D321)","v":0},null,null,{"$f":"MAX(D299:D321)","v":0}]
[null,"(ii)","Total Premium [ Total (1a) excl Prop CAT ]",null,null,{"$f":"D323-D298","v":0},null,null,{"$f":"D323-D298","v":0}]
[null,"(iii)","Maximum Premium / Total Premium [ (i) / (ii) ]",null,null,{"$f":"IF(F328=0,0,F327/F328)","v":0},null,null,{"$f":"IF(I328=0,0,I327/I328)","v":0}]
[null,"(iv)","Maximum Adjustment",null,null,{"$f":"+F409","v":0.4},null,null,{"$f":"+I409","v":0.4}]
[null,"(v)","[ (iii) x (iv) ]",null,null,{"$f":"F329*F330","v":0},null,null,{"$f":"I329*I330","v":0}]
[null,"(vi)","Minimum Adjustment Factor",null,null,{"$f":"1-F330","v":0.6},null,null,{"$f":"1-I330","v":0.6}]
[]
[null,"(b)  CONCENTRATION ADJUSTMENT FACTOR [ (v) + (vi) ]",null,null,null,{"$f":"F331+F332","v":0.6},null,null,{"$f":"I331+I332","v":0.6}]
[]
[null,"(c)  REQUIRED CAPITAL CHARGE  [ TOTAL (a) x (b) ]",null,null,null,{"$f":"IF(F323=0,0,F323*F334)","v":0},null,null,{"$f":"IF(I323=0,0,I323*I334)","v":0}]
[]
[null,"(c)  CATASTROPHE PREMIUM ADJUSTMENT CALCULATION"]
[]
[null,"(i)","Average Annual Loss (AAL) Excluding Property Catastrophe",null,null,{"$f":"+F485","v":0},null,null,{"$f":"+I485","v":0}]
[null,"(ii)","Industry Catastrophe Loss Ratio",null,null,{"$f":"+F487","v":0.4},null,null,{"$f":"+F341","v":0.4}]
[null,"(iii)","Avg Capital Factor  [ Total (3c) / (Total (1a) excl Prop CAT) ]",null,null,{"$f":"IF(F328=0,0,F336/F328)","v":0},null,null,{"$f":"IF(I328=0,0,I336/I328)","v":0}]
[]
[null,"(c)  CATASTROPHE PREMIUM ADJUSTMENT  [ (i) / (ii) x (iii) ]",null,null,null,{"$f":"F340/F341*F342","v":0},null,null,{"$f":"IF(I341=0,0,I340/I341*I342)","v":0}]
[]
[null,"(d)  TOTAL PREMIUM RISK (AFTER CAT PREMIUM ADJUSTMENT)   [ (b) - (c) ]",null,null,null,{"$f":"IF(F336-F344>=0,F336-F344,0)","v":0},null,null,{"$f":"IF(I336-I344>=0,I336-I344,0)","v":0}]
[]
[null,"(b)  CONCENTRATION ADJUSTMENT CALCULATION"]
[]
[null,"(i)","Total Premium [ Total (1a) excl Prop CAT ]",null,null,{"$f":"'Company Specific Parameters'!D323-'Company Specific Parameters'!D298","v":0},null,null,{"$f":"'Company Specific Parameters'!D323-'Company Specific Parameters'!D298","v":0}]
[null,"(ii)","Concentration Adjustment (HHI Calculation)",null,null,{"$f":"IF(F350=0,0,('Company Specific Parameters'!D299/F350)^2+('Company Specific Parameters'!D300/F350)^2+('Company Specific Parameters'!D301/F350)^2+('Company Specific Parameters'!D302/F350)^2+('Company Specific Parameters'!D303/F350)^2+('Company Specific Parameters'!D304/F350)^2+('Company Specific Parameters'!D305/F350)^2+('Company Specific Parameters'!D306/F350)^2+('Company Specific Parameters'!D307/F350)^2+('Company Specific Parameters'!D308/F350)^2+('Company Specific Parameters'!D309/F350)^2+('Company Specific Parameters'!D310/F350)^2+('Company Specific Parameters'!D311/F350)^2+('Company Specific Parameters'!D312/F350)^2+('Company Specific Parameters'!D313/F350)^2+('Company Specific Parameters'!D314/F350)^2+('Company Specific Parameters'!D315/F350)^2+('Company Specific Parameters'!D316/F350)^2+('Company Specific Parameters'!D317/F350)^2+('Company Specific Parameters'!D318/F350)^2+('Company Specific Parameters'!D319/F350)^2+('Company Specific Parameters'!D320/F350)^2+('Company Specific Parameters'!D321/F350)^2)","v":0},null,null,{"$f":"IF(I350=0,0,('Company Specific Parameters'!D299/I350)^2+('Company Specific Parameters'!D300/I350)^2+('Company Specific Parameters'!D301/I350)^2+('Company Specific Parameters'!D302/I350)^2+('Company Specific Parameters'!D303/I350)^2+('Company Specific Parameters'!D304/I350)^2+('Company Specific Parameters'!D305/I350)^2+('Company Specific Parameters'!D306/I350)^2+('Company Specific Parameters'!D307/I350)^2+('Company Specific Parameters'!D308/I350)^2+('Company Specific Parameters'!D309/I350)^2+('Company Specific Parameters'!D310/I350)^2+('Company Specific Parameters'!D311/I350)^2+('Company Specific Parameters'!D312/I350)^2+('Company Specific Parameters'!D313/I350)^2+('Company Specific Parameters'!D314/I350)^2+('Company Specific Parameters'!D315/I350)^2+('Company Specific Parameters'!D316/I350)^2+('Company Specific Parameters'!D317/I350)^2+('Company Specific Parameters'!D318/I350)^2+('Company Specific Parameters'!D319/I350)^2+('Company Specific Parameters'!D320/I350)^2+('Company Specific Parameters'!D321/I350)^2)","v":0}]
[null,"(iii)","Maximum Adjustment",null,null,0.4,null,null,{"$f":"+F352","v":0.4}]
[null,"(iv)"," [ (ii) x (iii) ]",null,null,{"$f":"F351*F352","v":0},null,null,{"$f":"I351*I352","v":0}]
[null,"(v)","Minimum Adjustment Factor",null,null,{"$f":"1-F352","v":0.6},null,null,{"$f":"1-I352","v":0.6}]
[]
[null,"(b)(i) CONCENTRATION ADJUSTMENT FACTOR (formula 1) [(iv) + (v)]",null,null,null,{"$f":"F353+F354","v":0.6},null,null,{"$f":"I353+I354","v":0.6}]
[]
[null,"(i)","Concentration Adjustment (up to 95%)",null,null,{"$f":"'Schedule IX(b)'!H51/900*95%","v":0},null,null,{"$f":"'Schedule IX(b)'!H51/900*95%","v":0}]
[null,"(ii)","Related Business % (up to 5%)",null,null,{"$f":"'Schedule IX(b)'!H55*5%","v":0},null,null,{"$f":"'Schedule IX(b)'!H55*5%","v":0}]
[null,"(iii)"," [ (i) + (ii) ]",null,null,{"$f":"SUM(F358:F359)","v":0},null,null,{"$f":"SUM(I358:I359)","v":0}]
[null,"(iv)","Maximum Adjustment",null,null,0.4,null,null,0.4]
[]
[null,"(b)(ii) CONCENTRATION ADJUSTMENT FACTOR (formula 2) [(iii) x (iv)]",null,null,null,{"$f":"F360*F361","v":0},null,null,{"$f":"I360*I361","v":0}]
[]
[null,"(c) CONCENTRATION ADJUSTMENT FACTOR [(b)(i)-(b)(ii)]",null,null,null,{"$f":"F356-F363","v":0.6},null,null,{"$f":"I356-I363","v":0.6}]
[]
[null,"(d) TOTAL PREMIUM RISK [(a) x (c)]",null,null,null,{"$f":"IF(F365*'Company Specific Parameters'!F323>=0,F365*'Company Specific Parameters'!F323,0)","v":0},null,null,{"$f":"IF(I365*'Company Specific Parameters'!I323>=0,I365*'Company Specific Parameters'!I323,0)","v":0}]
[]
[null,"(d)  TOTAL PREMIUM RISK (AFTER CAT PREMIUM ADJUSTMENT)   [ (b) - (c) ]",null,null,null,{"$f":"IF('Company Information'!$F$11=\"Class 3A\",F367,F346)","v":0},null,null,{"$f":"IF('Company Information'!$F$11=\"Class 3A\",I367,I346)","v":0}]
[]
[null,null,null,null,"STANDARD","STANDARD",null,"USER","USER"]
[null,"TYPE OF ",null,"LIABILITY","CAPITAL","REQUIRED",null,"CAPITAL","REQUIRED"]
[null,"RESERVE RISK","STATEMENT SOURCE","VALUE","FACTOR","CAPITAL",null,"FACTOR","CAPITAL"]
[]
[null,null,null,"(1) ","(2)","(1) x (2)",null,"(3)","(1) x (3)"]
[]
[null,"Property Catastrophe","Sch III EBS, Line (1)",{"$f":"+'Geographic Diversification'!H40","v":0},{"$f":"+'Reserve Risk'!G11","v":0.46158858246802098},{"$f":"IF(D377<0,0,D377*E377)","v":0},null,null,{"$f":"MAX(0,IF(H377=\"\",E377*D377,D377*H377))","v":0}]
[null,"Property","Sch III EBS, Line (2)",{"$f":"+'Geographic Diversification'!H41","v":0},{"$f":"+'Reserve Risk'!G12","v":0.43844984238218698},{"$f":"IF(D378<0,0,D378*E378)","v":0},null,null,0]
[null,"Property Non-Proportional","Sch III EBS, Line (3)",{"$f":"+'Geographic Diversification'!H42","v":0},{"$f":"+'Reserve Risk'!G13","v":0.49735573879029998},0,null,null,0]
[null,"Personal Accident","Sch III EBS, Line (4)",{"$f":"+'Geographic Diversification'!H43","v":0},{"$f":"+'Reserve Risk'!G14","v":0.29666070682155399},0,null,null,0]
[null,"Personal Accident Non-Proportional","Sch III EBS, Line (5)",{"$f":"+'Geographic Diversification'!H44","v":0},{"$f":"+'Reserve Risk'!G15","v":0.34876523067975901},0,null,null,0]
[null,"Aviation","Sch III EBS, Line (6)",{"$f":"+'Geographic Diversification'!H45","v":0},{"$f":"+'Reserve Risk'!G16","v":0.45952604952349801},0,null,null,0]
[null,"Aviation Non-Proportional","Sch III EBS, Line (7)",{"$f":"+'Geographic Diversification'!H46","v":0},{"$f":"+'Reserve Risk'!G17","v":0.48255646377949901},0,null,null,0]
[null,"Credit / Surety","Sch III EBS, Line (8)",{"$f":"+'Geographic Diversification'!H47","v":0},{"$f":"+'Reserve Risk'!G18","v":0.383682680649994},0,null,null,0]
[null,"Credit / Surety Non-Proportional","Sch III EBS, Line (9)",{"$f":"+'Geographic Diversification'!H48","v":0},{"$f":"+'Reserve Risk'!G19","v":0.43464696624596899},0,null,null,0]
[null,"Energy Offshore / Marine","Sch III EBS, Line (10)",{"$f":"+'Geographic Diversification'!H49","v":0},{"$f":"+'Reserve Risk'!G20","v":0.39543823911176501},0,null,null,0]
[null,"Energy Offshore / Marine Non-Proportional","Sch III EBS, Line (11)",{"$f":"+'Geographic Diversification'!H50","v":0},{"$f":"+'Reserve Risk'!G21","v":0.43945783577556502},0,null,null,0]
[null,"US Casualty","Sch III EBS, Line (12)",{"$f":"+'Geographic Diversification'!H51","v":0},{"$f":"+'Reserve Risk'!G22","v":0.43018098459069698},0,null,null,0]
[null,"US Casualty Non-Proportional","Sch III EBS, Line (13)",{"$f":"+'Geographic Diversification'!H52","v":0},{"$f":"+'Reserve Risk'!G23","v":0.48842309052279498},0,null,null,0]
[null,"US Professional","Sch III EBS, Line (14)",{"$f":"+'Geographic Diversification'!H53","v":0},{"$f":"+'Reserve Risk'!G24","v":0.462752832710698},0,null,null,0]
[null,"US Professional Non-Proportional","Sch III EBS, Line (15)",{"$f":"+'Geographic Diversification'!H54","v":0},{"$f":"+'Reserve Risk'!G25","v":0.51484129765284703},0,null,null,0]
[null,"US Specialty","Sch III EBS, Line (16)",{"$f":"+'Geographic Diversification'!H55","v":0},{"$f":"+'Reserve Risk'!G26","v":0.46506790223690597},0,null,null,0]
[null,"US Specialty Non-Proportional","Sch III EBS, Line (17)",{"$f":"+'Geographic Diversification'!H56","v":0},{"$f":"+'Reserve Risk'!G27","v":0.482760284027479},0,null,null,0]
[null,"International Motor","Sch III EBS, Line (18)",{"$f":"+'Geographic Diversification'!H57","v":0},{"$f":"+'Reserve Risk'!G28","v":0.37080464615634001},0,null,null,0]
[null,"International Motor Non-Proportional","Sch III EBS, Line (19)",{"$f":"+'Geographic Diversification'!H58","v":0},{"$f":"+'Reserve Risk'!G29","v":0.43541657269369},0,null,null,0]
[null,"International Casualty Non-Motor","Sch III EBS, Line (20)",{"$f":"+'Geographic Diversification'!H59","v":0},{"$f":"+'Reserve Risk'!G30","v":0.43652386132510701},0,null,null,0]
[null,"International Casualty Non-Motor Non-Proportional","Sch III EBS, Line (21)",{"$f":"+'Geographic Diversification'!H60","v":0},{"$f":"+'Reserve Risk'!G31","v":0.49410327959272199},0,null,null,0]
[null,"Retro Property","Sch III EBS, Line (22)",{"$f":"+'Geographic Diversification'!H61","v":0},{"$f":"+'Reserve Risk'!G32","v":0.478452065307162},0,null,null,0]
[null,"Structured / Finite Reinsurance","Sch III EBS, Line (23)",{"$f":"+'Geographic Diversification'!H62","v":0},{"$f":"+'Reserve Risk'!G33","v":0.24099999999999999},0,null,null,0]
[null,"Health","Sch III EBS, Line (24)",{"$f":"+'Geographic Diversification'!H63","v":0},{"$f":"+'Reserve Risk'!G34","v":0.125},0,null,null,0]
[]
[null,"(a)  TOTAL",null,{"$f":"SUM(D377:D400)","v":0},null,{"$f":"SUM(F377:F401)","v":0},null,null,{"$f":"SUM(I377:I401)","v":0}]
[]
[null,"(b)  CONCENTRATION ADJUSTMENT CALCULATION"]
[]
[null,"(i)","Maximum Reserve [ Maximum (1a) ]",null,null,{"$f":"MAX(D377:D400)","v":0},null,null,{"$f":"MAX(D377:D400)","v":0}]
[null,"(ii)","Total Reserve [ Total (1a) ]",null,null,{"$f":"D402","v":0},null,null,{"$f":"D402","v":0}]
[null,"(iii)","Maximum Reserve / Total Reserve [ (i) / (ii) ]",null,null,{"$f":"IF(F407=0,0,F406/F407)","v":0},null,null,{"$f":"IF(I407=0,0,I406/I407)","v":0}]
[null,"(iv)","Maximum Adjustment",null,null,0.4,null,null,0.4]
[null,"(v)"," [ (iii) x (iv) ]",null,null,{"$f":"F408*F409","v":0},null,null,{"$f":"I408*I409","v":0}]
[null,"(vi)","Minimum Adjustment Factor",null,null,{"$f":"1-F409","v":0.6},null,null,{"$f":"1-I409","v":0.6}]
[]
[null,"(b)  CONCENTRATION ADJUSTMENT FACTOR [ (v) + (vi) ]",null,null,null,{"$f":"F411+F410","v":0.6},null,null,{"$f":"I411+I410","v":0.6}]
[]
[null,"(c)  TOTAL RESERVE RISK  [ Total (a) x (b) ]",null,null,null,{"$f":"IF(F402>=0,F402*F413,0)","v":0},null,null,{"$f":"IF(I402>=0,I402*I413,0)","v":0}]
[]
[null,"(b)  CONCENTRATION ADJUSTMENT CALCULATION"]
[]
[null,"(i)","Total Reserve [ Total (1a) ]",null,null,{"$f":"'Company Specific Parameters'!D402","v":0},null,null,{"$f":"'Company Specific Parameters'!D402","v":0}]
[null,"(ii)","Concentration Adjustment (HHI Calculation)",null,null,{"$f":"IF(F419=0,0,('Company Specific Parameters'!D377/F419)^2+('Company Specific Parameters'!D378/F419)^2+('Company Specific Parameters'!D379/F419)^2+('Company Specific Parameters'!D380/F419)^2+('Company Specific Parameters'!D381/F419)^2+('Company Specific Parameters'!D382/F419)^2+('Company Specific Parameters'!D383/F419)^2+('Company Specific Parameters'!D384/F419)^2+('Company Specific Parameters'!D385/F419)^2+('Company Specific Parameters'!D386/F419)^2+('Company Specific Parameters'!D387/F419)^2+('Company Specific Parameters'!D388/F419)^2+('Company Specific Parameters'!D389/F419)^2+('Company Specific Parameters'!D390/F419)^2+('Company Specific Parameters'!D391/F419)^2+('Company Specific Parameters'!D392/F419)^2+('Company Specific Parameters'!D393/F419)^2+('Company Specific Parameters'!D394/F419)^2+('Company Specific Parameters'!D395/F419)^2+('Company Specific Parameters'!D396/F419)^2+('Company Specific Parameters'!D397/F419)^2+('Company Specific Parameters'!D398/F419)^2+('Company Specific Parameters'!D399/F419)^2+('Company Specific Parameters'!D400/F419)^2)","v":0},null,null,{"$f":"IF(I419=0,0,('Company Specific Parameters'!D377/I419)^2+('Company Specific Parameters'!D378/I419)^2+('Company Specific Parameters'!D379/I419)^2+('Company Specific Parameters'!D380/I419)^2+('Company Specific Parameters'!D381/I419)^2+('Company Specific Parameters'!D382/I419)^2+('Company Specific Parameters'!D383/I419)^2+('Company Specific Parameters'!D384/I419)^2+('Company Specific Parameters'!D385/I419)^2+('Company Specific Parameters'!D386/I419)^2+('Company Specific Parameters'!D387/I419)^2+('Company Specific Parameters'!D388/I419)^2+('Company Specific Parameters'!D389/I419)^2+('Company Specific Parameters'!D390/I419)^2+('Company Specific Parameters'!D391/I419)^2+('Company Specific Parameters'!D392/I419)^2+('Company Specific Parameters'!D393/I419)^2+('Company Specific Parameters'!D394/I419)^2+('Company Specific Parameters'!D395/I419)^2+('Company Specific Parameters'!D396/I419)^2+('Company Specific Parameters'!D397/I419)^2+('Company Specific Parameters'!D398/I419)^2+('Company Specific Parameters'!D399/I419)^2+('Company Specific Parameters'!D400/I419)^2)","v":0}]
[null,"(iii)","Maximum Adjustment",null,null,0.4,null,null,0.4]
[null,"(iv)"," [ (iii) x (iv) ]",null,null,{"$f":"F420*F421","v":0},null,null,{"$f":"I420*I421","v":0}]
[null,"(v)","Minimum Adjustment Factor",null,null,{"$f":"1-F421","v":0.6},null,null,{"$f":"1-I421","v":0.6}]
[]
[null,"(b)(i) CONCENTRATION ADJUSTMENT FACTOR (formula 1) [(iv) + (v)]",null,null,null,{"$f":"F423+F422","v":0.6},null,null,{"$f":"I423+I422","v":0.6}]
[]
[null,"(i)","Concentration Adjustment (up to 95%)",null,null,{"$f":"'Schedule IX(b)'!H51/900*95%","v":0},null,null,{"$f":"'Schedule IX(b)'!H51/900*95%","v":0}]
[null,"(ii)","Related Business % (up to 5%)",null,null,{"$f":"'Schedule IX(b)'!H55*5%","v":0},null,null,{"$f":"'Schedule IX(b)'!H55*5%","v":0}]
[null,"(iii)"," [ (i) + (ii) ]",null,null,{"$f":"SUM(F427:F428)","v":0},null,null,{"$f":"SUM(I427:I428)","v":0}]
[null,"(iv)","Maximum Adjustment",null,null,0.4,null,null,0.4]
[]
[null,"(b)(ii) CONCENTRATION ADJUSTMENT FACTOR (formula 2) [(iii) x (iv)]",null,null,null,{"$f":"F429*F430","v":0},null,null,{"$f":"I429*I430","v":0}]
[]
[null,"(c) CONCENTRATION ADJUSTMENT FACTOR [(b)(i)-(b)(ii)]",null,null,null,{"$f":"F425-F432","v":0.6},null,null,{"$f":"I425-I432","v":0.6}]
[]
[null,"(d) TOTAL RESERVE RISK [(a) x (c)]",null,null,null,{"$f":"IF('Company Specific Parameters'!F402=0,0,'Company Specific Parameters'!F402*F434)","v":0},null,null,{"$f":"IF('Company Specific Parameters'!I402=0,0,'Company Specific Parameters'!I402*I434)","v":0}]
[]
[null,"(d) TOTAL RESERVE RISK [(a) x (c)]",null,null,null,{"$f":"IF('Company Information'!$F$11=\"Class 3A\",F436,F415)","v":0},null,null,{"$f":"IF('Company Information'!$F$11=\"Class 3A\",I436,I415)","v":0}]
[]
[null,null,null,null,"STANDARD","STANDARD",null,"USER","USER"]
[null,"TYPE OF ",null,"ASSET","CAPITAL","REQUIRED",null,"CAPITAL","REQUIRED"]
[null,"CREDIT RISK","STATEMENT SOURCE","VALUE","FACTOR","CAPITAL",null,"FACTOR","CAPITAL"]
[]
[null,"(a)  Accounts and Premiums Receivable",null,"(1) ","(2)","(1) x (2)",null,"(3)","(1) x (3)"]
[]
[null,"In Course of Collection","Form 1EBS, Line (10a)",{"$f":"'Form 1EBS'!F57","v":0},{"$f":"+'Credit Risk'!E11","v":0.05},{"$f":"IF(D446<0,0,D446*E446)","v":0},null,null,{"$f":"MAX(0,IF(H446=\"\",E446*D446,D446*H446))","v":0}]
[null,"Receivables from retrocessional contracts                            Less: Collateralized Balances","Form 1EBS, Line (10c), Notes to Form 1EBS, \nLine (10)",{"$f":"'Form 1EBS'!F58-'Form 1EBS'!F179","v":0},{"$f":"+'Credit Risk'!E12","v":0.1},{"$f":"(D447*E447)","v":0},null,null,{"$f":"IF(H447=\"\",E447*D447,D447*H447)","v":0}]
[]
[null,"(a)  SUBTOTAL - ACCOUNTS AND PREMIUMS RECEIVABLE",null,{"$f":"SUM(D446:D447)","v":0},null,{"$f":"IF(SUM(F446:F447)>=0,SUM(F446:F447),0)","v":0},null,null,{"$f":"IF(SUM(I446:I447)>=0,SUM(I446:I447),0)","v":0}]
[]
[null,"(b)  All Other Receivables"]
[]
[null,"Accrued Investment Income","Form 1EBS, Line (9)",{"$f":"'Form 1EBS'!F54","v":0},{"$f":"+'Credit Risk'!E18","v":2.5000000000000001E-2},{"$f":"IF(D453<0,0,D453*E453)","v":0},null,null,{"$f":"MAX(0,IF(H453=\"\",E453*D453,D453*H453))","v":0}]
[null,"Advances to Affiliates","Form 1EBS, Line (4g)",{"$f":"'Form 1EBS'!F39","v":0},{"$f":"+'Credit Risk'!E19","v":0.05},{"$f":"IF(D454<0,0,D454*E454)","v":0},null,null,{"$f":"MAX(0,IF(H454=\"\",E454*D454,D454*H454))","v":0}]
[]
[null,"(b)  SUBTOTAL - ALL OTHER RECEIVABLES",null,{"$f":"SUM(D453:D454)","v":0},null,{"$f":"IF(SUM(F453:F454)>=0,SUM(F453:F454),0)","v":0},null,null,{"$f":"IF(SUM(I453:I454)>=0,SUM(I453:I454),0)","v":0}]
[]
[null,"(c) Particulars of Reinsurance Balances By BSCR Rating"]
[]
[null,"BSCR Rating 0 (Domestic Affiliates)","Schedule XVIII, Column E",{"$f":"'Schedule XVIII (EBS)'!O87","v":0},{"$f":"+'Credit Risk'!E25","v":0},{"$f":"IF(D460<0,0,D460*E460)","v":0},null,null,{"$f":"MAX(0,IF(H460=\"\",E460*D460,D460*H460))","v":0}]
[null,"BSCR Rating 1","Schedule XVIII, Column E",{"$f":"'Schedule XVIII (EBS)'!O88","v":0},{"$f":"+'Credit Risk'!E26","v":7.0000000000000001E-3},{"$f":"IF(D461<0,0,D461*E461)","v":0},null,null,0]
[null,"BSCR Rating 2","Schedule XVIII, Column E",{"$f":"'Schedule XVIII (EBS)'!O89","v":0},{"$f":"+'Credit Risk'!E27","v":1.4999999999999999E-2},0,null,null,0]
[null,"BSCR Rating 3","Schedule XVIII, Column E",{"$f":"'Schedule XVIII (EBS)'!O90","v":0},{"$f":"+'Credit Risk'!E28","v":3.5000000000000003E-2},0,null,null,0]
[null,"BSCR Rating 4","Schedule XVIII, Column E",{"$f":"'Schedule XVIII (EBS)'!O91","v":0},{"$f":"+'Credit Risk'!E29","v":7.0000000000000007E-2},0,null,null,0]
[null,"BSCR Rating 5","Schedule XVIII, Column E",{"$f":"'Schedule XVIII (EBS)'!O92","v":0},{"$f":"+'Credit Risk'!E30","v":0.12},0,null,null,0]
[null,"BSCR Rating 6","Schedule XVIII, Column E",{"$f":"'Schedule XVIII (EBS)'!O93","v":0},{"$f":"+'Credit Risk'!E31","v":0.2},0,null,null,0]
[null,"BSCR Rating 7","Schedule XVIII, Column E",{"$f":"'Schedule XVIII (EBS)'!O94","v":0},{"$f":"+'Credit Risk'!E32","v":0.27},0,null,null,0]
[null,"BSCR Rating 8","Schedule XVIII, Column E",{"$f":"'Schedule XVIII (EBS)'!O95","v":0},{"$f":"+'Credit Risk'!E33","v":0.35},0,null,null,0]
[]
[null,"Total",null,{"$f":"SUM(D460:D469)","v":0},null,{"$f":"SUM(F460:F469)","v":0},null,null,{"$f":"SUM(I460:I469)","v":0}]
[]
[null,"Diversification Adjustment at 40%",null,null,null,{"$f":"SUM(F460:F468)*-('Schedule XVIII (EBS)'!O104)","v":0},null,null,{"$f":"SUM(I460:I468)*-('Schedule XVIII (EBS)'!O104)","v":0}]
[]
[null,"(c)  SUBTOTAL - PARTICULARS OF REINSURANCE BALANCES",null,{"$f":"+D470","v":0},null,{"$f":"IF(SUM(F460:F468,F472)>=0,SUM(F460:F468,F472),0)","v":0},null,null,{"$f":"IF(SUM(I460:I468,I472)>=0,SUM(I460:I468,I472),0)","v":0}]
[]
[null,"(d)  TOTAL CREDIT RISK  [ (a) + (b) + (c) ]",null,{"$f":"D474+D456+D449","v":0},null,{"$f":"F474+F456+F449","v":0},null,null,{"$f":"I474+I456+I449","v":0}]
[]
[null,"TYPE OF "]
[null,"CATASTROPHE RISK","STATEMENT SOURCE"]
[]
[null,"(a)  Gross Probable Maximum Loss","Schedule V, Line (g)",null,null,{"$f":"'Schedule V'!H16","v":0},null,null,{"$f":"+F481","v":0}]
[]
[null,"(b)  Net Probable Maximum Loss","Schedule V, Line (h)",null,null,{"$f":"'Schedule V'!H18","v":0},null,null,{"$f":"+F483","v":0}]
[]
[null,"(c)  Average Annual Loss (AAL) Excluding Property Catastrophe","Schedule V, Line (i)",null,null,{"$f":"'Schedule V'!H20","v":0},null,null,{"$f":"+F485","v":0}]
[]
[null,"(d)  Industry Catastrophe Loss Ratio",null,null,null,{"$f":"+'Catastrophe Risk'!E13","v":0.4},null,null,0.4]
[]
[null,"(e)  Property Catastrophe Premium","Schedule IV, Line (1)",null,null,{"$f":"'Schedule IVA (EBS)'!Q11","v":0},null,null,{"$f":"+F489","v":0}]
[]
[null,"(f)  Total Catastrophe Premium  [ (c) / (d) + (e) ]",null,null,null,{"$f":"F485/F487+IF(F489>0,F489,0)","v":0},null,null,{"$f":"IF(I487=\"\",IF(F487=0,0,I485/F487+IF(I489>0,I489,0)),IF(I487=0,0,I485/I487+IF(I489>0,I489,0)))","v":0}]
[]
[null,"(g)  Credit Risk Capital Factor",null,null,null,{"$f":"+'Catastrophe Risk'!E19","v":0.1},null,null,0.1]
[]
[null,"(h) Arrangements with Respect to Property Catastrophe Recoverables",null,null,null,{"$f":"'Schedule V'!H29","v":0},null,null,{"$f":"F495","v":0}]
[]
[null,"(i)  Credit Risk Charge  [ ((a) - (b) - (h) x .98 (g) ]",null,null,null,{"$f":"MAX(0,((F481-F483)-(F495*98%))*F493)","v":0},null,null,{"$f":"MAX(0,((I481-I483)-(I495*98%))*I493)","v":0}]
[]
[null,"(j)  REQUIRED CAPITAL FOR CATASTROPHE RISK  [ (b) - (f) + (i) ]",null,null,null,{"$f":"IF('Company Information'!$F$11=\"Class 3A\",(IF((F483-F489)>=0,F483-F489+F497,F497)),(IF((F483-F491)>=0,F483-F491+F497,F497)))","v":0},null,null,{"$f":"IF('Company Information'!$F$11=\"Class 3A\",(IF((I483-I489)>=0,I483-I489+I497,I497)),(IF((I483-I491)>=0,I483-I491+I497,I497)))","v":0}]
[]
[null,"REQUIRED CAPITAL AND SURPLUS"]
[]
[null,"Fixed Income Investment Risk",null,null,null,{"$f":"+F101","v":0},null,null,{"$f":"+I101","v":0}]
[null,"Equity Investment Risk",null,null,null,{"$f":"+F149","v":0},null,null,{"$f":"+I149","v":0}]
[null,"Interest Rate / Liquidity Risk",null,null,null,{"$f":"+F292","v":0},null,null,{"$f":"+I292","v":0}]
[null,"Currency Risk",null,null,null,{"$f":"+F174","v":0},null,null,{"$f":"+I174","v":0}]
[null,"Concentration Risk",null,null,null,{"$f":"+F282","v":0},null,null,{"$f":"+I282","v":0}]
[null,"Premium Risk",null,null,null,{"$f":"F369","v":0},null,null,{"$f":"I369","v":0}]
[null,"Reserve Risk",null,null,null,{"$f":"+F438","v":0},null,null,{"$f":"+I438","v":0}]
[null,"Credit Risk",null,null,null,{"$f":"+F476","v":0},null,null,{"$f":"+I476","v":0}]
[null,"Catastrophe Risk",null,null,null,{"$f":"+F499","v":0},null,null,{"$f":"+I499","v":0}]
[]
[null,"BSCR (Prior to Covariance Adjustment)",null,null,null,{"$f":"F503+F504+F505+F506+F507+F508+F509+F510+F511","v":0},null,null,{"$f":"I503+I504+I505+I506+I507+I508+I509+I510+I511","v":0}]
[]
[null,"BSCR (After Covariance Adjustment)",null,null,null,{"$f":"(F503^2+F504^2+F505^2+F506^2+F507^2+F508^2+F511^2+(1/2*F510+F509)^2+(1/2*F510)^2)^0.5","v":0},null,null,{"$f":"(I503^2+I504^2+I505^2+I506^2+I507^2+I508^2+I511^2+(1/2*I510+I509)^2+(1/2*I510)^2)^0.5","v":0}]
[]
[null,"Operational risk charge (%)",null,null,null,{"$f":"+Summary!G73","v":0.1}]
[]
[null,"Operational risk capital charge ($)",null,null,null,{"$f":"F515*F517","v":0},null,null,{"$f":"IF(I517=\"\",I515*F517,I515*I517)","v":0}]
[]
[null,"Capital add-on / reduction (BMA assessment)"]
[]
[null,{"$f":"+Summary!C77","v":"Capital Adjustment for (Regulatory) Capital Requirement for Regulated Non-Insurance Financial Operating Entities:"},null,null,null,{"$f":"+Summary!N77","v":0},null,null,{"$f":"+Summary!N77","v":0}]
[null,"BSCR ",null,null,null,{"$f":"F515+F519+F521+F523","v":0},null,null,{"$f":"I515+I519+I521+I523","v":0}]
[]
[]
[null,null,null,null,null,null,null,null,null,null,null,null,""]
[null,null,null,null,null,null,null,null,null,null,null,null,""]

{"sheet":"CSP (Revised)","index":124,"n_rows":706,"n_cols":24,"rows_kept":706,"cut":false,"hidden":false,"merged":[[513,2,515,2],[513,3,515,3],[513,4,515,4],[513,5,515,5],[202,3,203,4],[202,5,204,5],[311,3,311,4],[311,5,311,6],[310,2,310,6],[2,8,3,11],[5,1,5,11],[103,3,103,4],[103,5,103,6],[102,3,102,6],[3,2,3,3],[138,3,138,5],[139,4,139,5],[139,6,140,6],[0,0,0,6],[2,0,2,3],[116,3,116,6],[117,3,117,4],[117,5,117,6]]}
["COMPANY SPECIFIC PARAMETERS (REVISED)",null,null,null,null,null,null,null,null,null,null,{"$f":"HYPERLINK(\"#'Index'!A1\",\"Return to Index\")","v":"Return to Index"},null,null,null,null,null,null,null,null,null,null,null,{"$f":"IF(C4=\"\",\"\",TEXT(DATE(YEAR(C4+1)-1,MONTH(C4+1),DAY(C4+1)),\"mm/dd/yyyy\"))","v":"01/01/2019"}]
[null,null,null,null,null,null,null,null,null,null,null,null,null,null,null,"",null,null,null,null,null,null,null,{"$f":"IF(C4=\"\",\"\",TEXT(C4,\"mm/dd/yyyy\"))","v":"12/31/2019"}]
[{"$f":"'Company Information'!C7","v":"Enter Company Name"},null,null,null,null,null,null,null,{"$f":"HYPERLINK(\"#'Attachments'!A205\",\"Details of User Capital Factor to be included in the attachments section 11.\")","v":"Details of User Capital Factor to be included in the attachments section 11."}]
["For the Year Ending ",null,{"$f":"'Company Information'!C3","v":"2019-12-31"},null,null,null,null,null,null,null,null,null,null,null,null,""]
[null,null,null,null,null,null,null,null,null,null,null,null,null,null,null,"",null,null,null,null,null,null,null,{"$f":"IF(D7=\"\",\"\",TEXT(D7,\"mm/dd/yyyy\"))","v":""}]
[null,"To be completed only with prior approval from the Bermuda Monetary Authority"]
[null,null,null,null,null,null,null,null,null,null,null,null,null,null,null,"",null,null,null,null,null,null,null,{"$f":"IF(D9=\"\",\"\",TEXT(D9,\"mm/dd/yyyy\"))","v":""}]
[null,null,null,null,null,null,null,"STANDARD","STANDARD",null,"USER","USER"]
[null,"TYPE OF ",null,null,null,null,"ASSET","CAPITAL","REQUIRED",null,"CAPITAL","REQUIRED"]
[null,"FIXED INCOME INVESTMENTS",null,null,null,null,"VALUE","FACTOR","CAPITAL",null,"FACTOR","CAPITAL"]
[]
[null,"(a) Corporate & Sovereign Bonds",null,null,null,null,"(1) ","(2)","(1) x (2)",null,"(3)","(1) x (3)"]
[]
[null,"BSCR Rating"]
[null,0,null,null,null,null,{"$f":"'Schedule IIB (EBS)'!D13+'Schedule IIC (EBS)'!D13+(MAX(0,'Schedule IID (EBS)'!D13-'Schedule IID (EBS)'!F13))+'Schedule IIE (EBS)'!D13+'Schedule IIF (EBS)'!D13","v":0},{"$f":"'Fixed Income Investments (Rev.)'!H12","v":0},{"$f":"IF(G15<0,0,G15*H15)","v":0},null,null,{"$f":"MAX(0,IF(K15=\"\",H15*G15,G15*K15))","v":0}]
[null,1,null,null,null,null,{"$f":"'Schedule IIB (EBS)'!D14+'Schedule IIC (EBS)'!D14+(MAX(0,'Schedule IID (EBS)'!D14-'Schedule IID (EBS)'!F14))+'Schedule IIE (EBS)'!D14+'Schedule IIF (EBS)'!D14","v":0},{"$f":"'Fixed Income Investments (Rev.)'!H13","v":4.0000000000000001E-3},0,null,null,{"$f":"MAX(0,IF(K16=\"\",H16*G16,G16*K16))","v":0}]
[null,2,null,null,null,null,{"$f":"'Schedule IIB (EBS)'!D15+'Schedule IIC (EBS)'!D15+(MAX(0,'Schedule IID (EBS)'!D15-'Schedule IID (EBS)'!F15))+'Schedule IIE (EBS)'!D15+'Schedule IIF (EBS)'!D15","v":0},{"$f":"'Fixed Income Investments (Rev.)'!H14","v":8.0000000000000002E-3},0,null,null,0]
[null,3,null,null,null,null,{"$f":"'Schedule IIB (EBS)'!D16+'Schedule IIC (EBS)'!D16+(MAX(0,'Schedule IID (EBS)'!D16-'Schedule IID (EBS)'!F16))+'Schedule IIE (EBS)'!D16+'Schedule IIF (EBS)'!D16","v":0},{"$f":"'Fixed Income Investments (Rev.)'!H15","v":1.4999999999999999E-2},0,null,null,0]
[null,4,null,null,null,null,{"$f":"'Schedule IIB (EBS)'!D17+'Schedule IIC (EBS)'!D17+(MAX(0,'Schedule IID (EBS)'!D17-'Schedule IID (EBS)'!F17))+'Schedule IIE (EBS)'!D17+'Schedule IIF (EBS)'!D17","v":0},{"$f":"'Fixed Income Investments (Rev.)'!H16","v":0.03},0,null,null,0]
[null,5,null,null,null,null,{"$f":"'Schedule IIB (EBS)'!D18+'Schedule IIC (EBS)'!D18+(MAX(0,'Schedule IID (EBS)'!D18-'Schedule IID (EBS)'!F18))+'Schedule IIE (EBS)'!D18+'Schedule IIF (EBS)'!D18","v":0},{"$f":"'Fixed Income Investments (Rev.)'!H17","v":0.08},0,null,null,0]
[null,6,null,null,null,null,{"$f":"'Schedule IIB (EBS)'!D19+'Schedule IIC (EBS)'!D19+(MAX(0,'Schedule IID (EBS)'!D19-'Schedule IID (EBS)'!F19))+'Schedule IIE (EBS)'!D19+'Schedule IIF (EBS)'!D19","v":0},{"$f":"'Fixed Income Investments (Rev.)'!H18","v":0.15},0,null,null,0]
[null,7,null,null,null,null,{"$f":"'Schedule IIB (EBS)'!D20+'Schedule IIC (EBS)'!D20+(MAX(0,'Schedule IID (EBS)'!D20-'Schedule IID (EBS)'!F20))+'Schedule IIE (EBS)'!D20+'Schedule IIF (EBS)'!D20","v":0},{"$f":"'Fixed Income Investments (Rev.)'!H19","v":0.26300000000000001},0,null,null,0]
[null,8,null,null,null,null,{"$f":"'Schedule IIB (EBS)'!D21+'Schedule IIC (EBS)'!D21+(MAX(0,'Schedule IID (EBS)'!D21-'Schedule IID (EBS)'!F21))+'Schedule IIE (EBS)'!D21+'Schedule IIF (EBS)'!D21","v":0},{"$f":"'Fixed Income Investments (Rev.)'!H20","v":0.35},0,null,null,0]
[]
[null,"(a)  SUBTOTAL -  CORPORATE BONDS",null,null,null,null,{"$f":"SUM(G15:G24)","v":0},null,{"$f":"IF(SUM(I15:I23)>=0,SUM(I15:I23),0)","v":0},null,null,{"$f":"IF(SUM(L15:L23)>=0,SUM(L15:L23),0)","v":0}]
[]
[null,"(b) Residential Mortgage-Backed Securities"]
[]
[null,"BSCR Rating"]
[null,1,null,null,null,null,{"$f":"'Schedule IIB (EBS)'!H14+'Schedule IIC (EBS)'!H14+(MAX(0,'Schedule IID (EBS)'!H14-'Schedule IID (EBS)'!J14))+'Schedule IIE (EBS)'!H14+'Schedule IIF (EBS)'!H14","v":0},{"$f":"'Fixed Income Investments (Rev.)'!H27","v":6.0000000000000001E-3},{"$f":"IF(G30<0,0,G30*H30)","v":0},null,null,{"$f":"MAX(0,IF(K30=\"\",H30*G30,G30*K30))","v":0}]
[null,2,null,null,null,null,{"$f":"'Schedule IIB (EBS)'!H15+'Schedule IIC (EBS)'!H15+(MAX(0,'Schedule IID (EBS)'!H15-'Schedule IID (EBS)'!J15))+'Schedule IIE (EBS)'!H15+'Schedule IIF (EBS)'!H15","v":0},{"$f":"'Fixed Income Investments (Rev.)'!H28","v":1.2E-2},0,null,null,0]
[null,3,null,null,null,null,{"$f":"'Schedule IIB (EBS)'!H16+'Schedule IIC (EBS)'!H16+(MAX(0,'Schedule IID (EBS)'!H16-'Schedule IID (EBS)'!J16))+'Schedule IIE (EBS)'!H16+'Schedule IIF (EBS)'!H16","v":0},{"$f":"'Fixed Income Investments (Rev.)'!H29","v":0.02},0,null,null,0]
[null,4,null,null,null,null,{"$f":"'Schedule IIB (EBS)'!H17+'Schedule IIC (EBS)'!H17+(MAX(0,'Schedule IID (EBS)'!H17-'Schedule IID (EBS)'!J17))+'Schedule IIE (EBS)'!H17+'Schedule IIF (EBS)'!H17","v":0},{"$f":"'Fixed Income Investments (Rev.)'!H30","v":0.04},0,null,null,0]
[null,5,null,null,null,null,{"$f":"'Schedule IIB (EBS)'!H18+'Schedule IIC (EBS)'!H18+(MAX(0,'Schedule IID (EBS)'!H18-'Schedule IID (EBS)'!J18))+'Schedule IIE (EBS)'!H18+'Schedule IIF (EBS)'!H18","v":0},{"$f":"'Fixed Income Investments (Rev.)'!H31","v":0.11},0,null,null,0]
[null,6,null,null,null,null,{"$f":"'Schedule IIB (EBS)'!H19+'Schedule IIC (EBS)'!H19+(MAX(0,'Schedule IID (EBS)'!H19-'Schedule IID (EBS)'!J19))+'Schedule IIE (EBS)'!H19+'Schedule IIF (EBS)'!H19","v":0},{"$f":"'Fixed Income Investments (Rev.)'!H32","v":0.25},0,null,null,0]
[null,7,null,null,null,null,{"$f":"'Schedule IIB (EBS)'!H20+'Schedule IIC (EBS)'!H20+(MAX(0,'Schedule IID (EBS)'!H20-'Schedule IID (EBS)'!J20))+'Schedule IIE (EBS)'!H20+'Schedule IIF (EBS)'!H20","v":0},{"$f":"'Fixed Income Investments (Rev.)'!H33","v":0.35},0,null,null,0]
[null,8,null,null,null,null,{"$f":"'Schedule IIB (EBS)'!H21+'Schedule IIC (EBS)'!H21+(MAX(0,'Schedule IID (EBS)'!H21-'Schedule IID (EBS)'!J21))+'Schedule IIE (EBS)'!H21+'Schedule IIF (EBS)'!H21","v":0},{"$f":"'Fixed Income Investments (Rev.)'!H34","v":0.35},0,null,null,0]
[]
[null,"(b)  SUBTOTAL - RESIDENTIAL MORTGAGE-BACKED SECURITIES",null,null,null,null,{"$f":"SUM(G29:G38)","v":0},null,{"$f":"IF(SUM(I29:I37)>=0,SUM(I29:I37),0)","v":0},null,null,{"$f":"IF(SUM(L29:L37)>=0,SUM(L29:L37),0)","v":0}]
[]
[null,"(c) Commercial Mortgage-Backed Securities / Asset-Backed Securities"]
[]
[null,"BSCR Rating"]
[null,1,null,null,null,null,{"$f":"'Schedule IIB (EBS)'!L14+'Schedule IIC (EBS)'!L14+(MAX(0,'Schedule IID (EBS)'!L14-'Schedule IID (EBS)'!N14))+'Schedule IIE (EBS)'!L14+'Schedule IIF (EBS)'!L14","v":0},{"$f":"'Fixed Income Investments (Rev.)'!H41","v":5.0000000000000001E-3},{"$f":"IF(G44<0,0,G44*H44)","v":0},null,null,{"$f":"MAX(0,IF(K44=\"\",H44*G44,G44*K44))","v":0}]
[null,2,null,null,null,null,{"$f":"'Schedule IIB (EBS)'!L15+'Schedule IIC (EBS)'!L15+(MAX(0,'Schedule IID (EBS)'!L15-'Schedule IID (EBS)'!N15))+'Schedule IIE (EBS)'!L15+'Schedule IIF (EBS)'!L15","v":0},{"$f":"'Fixed Income Investments (Rev.)'!H42","v":0.01},0,null,null,0]
[null,3,null,null,null,null,{"$f":"'Schedule IIB (EBS)'!L16+'Schedule IIC (EBS)'!L16+(MAX(0,'Schedule IID (EBS)'!L16-'Schedule IID (EBS)'!N16))+'Schedule IIE (EBS)'!L16+'Schedule IIF (EBS)'!L16","v":0},{"$f":"'Fixed Income Investments (Rev.)'!H43","v":1.7999999999999999E-2},0,null,null,0]
[null,4,null,null,null,null,{"$f":"'Schedule IIB (EBS)'!L17+'Schedule IIC (EBS)'!L17+(MAX(0,'Schedule IID (EBS)'!L17-'Schedule IID (EBS)'!N17))+'Schedule IIE (EBS)'!L17+'Schedule IIF (EBS)'!L17","v":0},{"$f":"'Fixed Income Investments (Rev.)'!H44","v":3.5000000000000003E-2},0,null,null,0]
[null,5,null,null,null,null,{"$f":"'Schedule IIB (EBS)'!L18+'Schedule IIC (EBS)'!L18+(MAX(0,'Schedule IID (EBS)'!L18-'Schedule IID (EBS)'!N18))+'Schedule IIE (EBS)'!L18+'Schedule IIF (EBS)'!L18","v":0},{"$f":"'Fixed Income Investments (Rev.)'!H45","v":0.1},0,null,null,0]
[null,6,null,null,null,null,{"$f":"'Schedule IIB (EBS)'!L19+'Schedule IIC (EBS)'!L19+(MAX(0,'Schedule IID (EBS)'!L19-'Schedule IID (EBS)'!N19))+'Schedule IIE (EBS)'!L19+'Schedule IIF (EBS)'!L19","v":0},{"$f":"'Fixed Income Investments (Rev.)'!H46","v":0.2},0,null,null,0]
[null,7,null,null,null,null,{"$f":"'Schedule IIB (EBS)'!L20+'Schedule IIC (EBS)'!L20+(MAX(0,'Schedule IID (EBS)'!L20-'Schedule IID (EBS)'!N20))+'Schedule IIE (EBS)'!L20+'Schedule IIF (EBS)'!L20","v":0},{"$f":"'Fixed Income Investments (Rev.)'!H47","v":0.3},0,null,null,0]
[null,8,null,null,null,null,{"$f":"'Schedule IIB (EBS)'!L21+'Schedule IIC (EBS)'!L21+(MAX(0,'Schedule IID (EBS)'!L21-'Schedule IID (EBS)'!N21))+'Schedule IIE (EBS)'!L21+'Schedule IIF (EBS)'!L21","v":0},{"$f":"'Fixed Income Investments (Rev.)'!H48","v":0.35},0,null,null,0]
[]
[null,"(c)  SUBTOTAL - COMMERCIAL MORTGAGE-BACKED SECURITIES / ASSET-BACKED SECURITIES",null,null,null,null,{"$f":"SUM(G43:G52)","v":0},null,{"$f":"IF(SUM(I43:I51)>=0,SUM(I43:I51),0)","v":0},null,null,{"$f":"IF(SUM(L43:L51)>=0,SUM(L43:L51),0)","v":0}]
[]
[null,"(d) Bond Mutual Funds"]
[]
[null,"BSCR Rating"]
[null,0,null,null,null,null,{"$f":"'Schedule IIB (EBS)'!P13+'Schedule IIC (EBS)'!P13+(MAX(0,'Schedule IID (EBS)'!P13-'Schedule IID (EBS)'!R13))+'Schedule IIE (EBS)'!P13+'Schedule IIF (EBS)'!P13","v":0},{"$f":"'Fixed Income Investments (Rev.)'!H56","v":0},{"$f":"IF(G58<0,0,G58*H58)","v":0},null,null,{"$f":"MAX(0,IF(K58=\"\",H58*G58,G58*K58))","v":0}]
[null,1,null,null,null,null,{"$f":"'Schedule IIB (EBS)'!P14+'Schedule IIC (EBS)'!P14+(MAX(0,'Schedule IID (EBS)'!P14-'Schedule IID (EBS)'!R14))+'Schedule IIE (EBS)'!P14+'Schedule IIF (EBS)'!P14","v":0},{"$f":"'Fixed Income Investments (Rev.)'!H57","v":4.0000000000000001E-3},0,null,null,0]
[null,2,null,null,null,null,{"$f":"'Schedule IIB (EBS)'!P15+'Schedule IIC (EBS)'!P15+(MAX(0,'Schedule IID (EBS)'!P15-'Schedule IID (EBS)'!R15))+'Schedule IIE (EBS)'!P15+'Schedule IIF (EBS)'!P15","v":0},{"$f":"'Fixed Income Investments (Rev.)'!H58","v":8.0000000000000002E-3},0,null,null,0]
[null,3,null,null,null,null,{"$f":"'Schedule IIB (EBS)'!P16+'Schedule IIC (EBS)'!P16+(MAX(0,'Schedule IID (EBS)'!P16-'Schedule IID (EBS)'!R16))+'Schedule IIE (EBS)'!P16+'Schedule IIF (EBS)'!P16","v":0},{"$f":"'Fixed Income Investments (Rev.)'!H59","v":1.4999999999999999E-2},0,null,null,0]
[null,4,null,null,null,null,{"$f":"'Schedule IIB (EBS)'!P17+'Schedule IIC (EBS)'!P17+(MAX(0,'Schedule IID (EBS)'!P17-'Schedule IID (EBS)'!R17))+'Schedule IIE (EBS)'!P17+'Schedule IIF (EBS)'!P17","v":0},{"$f":"'Fixed Income Investments (Rev.)'!H60","v":0.03},0,null,null,0]
[null,5,null,null,null,null,{"$f":"'Schedule IIB (EBS)'!P18+'Schedule IIC (EBS)'!P18+(MAX(0,'Schedule IID (EBS)'!P18-'Schedule IID (EBS)'!R18))+'Schedule IIE (EBS)'!P18+'Schedule IIF (EBS)'!P18","v":0},{"$f":"'Fixed Income Investments (Rev.)'!H61","v":0.08},0,null,null,0]
[null,6,null,null,null,null,{"$f":"'Schedule IIB (EBS)'!P19+'Schedule IIC (EBS)'!P19+(MAX(0,'Schedule IID (EBS)'!P19-'Schedule IID (EBS)'!R19))+'Schedule IIE (EBS)'!P19+'Schedule IIF (EBS)'!P19","v":0},{"$f":"'Fixed Income Investments (Rev.)'!H62","v":0.15},0,null,null,0]
[null,7,null,null,null,null,{"$f":"'Schedule IIB (EBS)'!P20+'Schedule IIC (EBS)'!P20+(MAX(0,'Schedule IID (EBS)'!P20-'Schedule IID (EBS)'!R20))+'Schedule IIE (EBS)'!P20+'Schedule IIF (EBS)'!P20","v":0},{"$f":"'Fixed Income Investments (Rev.)'!H63","v":0.26300000000000001},0,null,null,0]
[null,8,null,null,null,null,{"$f":"'Schedule IIB (EBS)'!P21+'Schedule IIC (EBS)'!P21+(MAX(0,'Schedule IID (EBS)'!P21-'Schedule IID (EBS)'!R21))+'Schedule IIE (EBS)'!P21+'Schedule IIF (EBS)'!P21","v":0},{"$f":"'Fixed Income Investments (Rev.)'!H64","v":0.35},0,null,null,0]
[]
[null,"(d)  SUBTOTAL - BOND MUTUAL FUNDS",null,null,null,null,{"$f":"SUM(G58:G67)","v":0},null,{"$f":"IF(SUM(I58:I66)>=0,SUM(I58:I66),0)","v":0},null,null,{"$f":"IF(SUM(L58:L66)>=0,SUM(L58:L66),0)","v":0}]
[]
[null,"(e) Mortgage Loans"]
[]
[null,"Insured/Guaranteed Mortgages",null,null,null,null,{"$f":"'Schedule IIB (EBS)'!T22+'Schedule IIC (EBS)'!T22+(MAX(0,'Schedule IID (EBS)'!T22-'Schedule IID (EBS)'!V22))+'Schedule IIE (EBS)'!T22+'Schedule IIF (EBS)'!T22","v":0},{"$f":"'Fixed Income Investments (Rev.)'!H70","v":3.0000000000000001E-3},{"$f":"IF(G72<0,0,G72*H72)","v":0},null,null,{"$f":"MAX(0,IF(K72=\"\",H72*G72,G72*K72))","v":0}]
[null,"Other Commercial and Farm Mortgages",null,null,null,null,{"$f":"'Schedule IIB (EBS)'!T23+'Schedule IIC (EBS)'!T23+(MAX(0,'Schedule IID (EBS)'!T23-'Schedule IID (EBS)'!V23))+'Schedule IIE (EBS)'!T23+'Schedule IIF (EBS)'!T23","v":0},{"$f":"'Fixed Income Investments (Rev.)'!H71","v":0.05},{"$f":"IF(G73<0,0,G73*H73)","v":0},null,null,{"$f":"MAX(0,IF(K73=\"\",H73*G73,G73*K73))","v":0}]
[null,"Other Residential Mortgages",null,null,null,null,{"$f":"'Schedule IIB (EBS)'!T24+'Schedule IIC (EBS)'!T24+(MAX(0,'Schedule IID (EBS)'!T24-'Schedule IID (EBS)'!V24))+'Schedule IIE (EBS)'!T24+'Schedule IIF (EBS)'!T24","v":0},{"$f":"'Fixed Income Investments (Rev.)'!H72","v":1.4999999999999999E-2},{"$f":"IF(G74<0,0,G74*H74)","v":0},null,null,{"$f":"MAX(0,IF(K74=\"\",H74*G74,G74*K74))","v":0}]
[null,"Mortgages Not In Good Standing",null,null,null,null,{"$f":"'Schedule IIB (EBS)'!T25+'Schedule IIC (EBS)'!T25+(MAX(0,'Schedule IID (EBS)'!T25-'Schedule IID (EBS)'!V25))+'Schedule IIE (EBS)'!T25+'Schedule IIF (EBS)'!T25","v":0},{"$f":"'Fixed Income Investments (Rev.)'!H73","v":0.25},{"$f":"IF(G75<0,0,G75*H75)","v":0},null,null,{"$f":"MAX(0,IF(K75=\"\",H75*G75,G75*K75))","v":0}]
[]
[null,"(e)  SUBTOTAL - MORTGAGE LOANS",null,null,null,null,{"$f":"SUM(G72:G76)","v":0},null,{"$f":"IF(SUM(I72:I75)>=0,SUM(I72:I75),0)","v":0},null,null,{"$f":"IF(SUM(L72:L75)>=0,SUM(L72:L75),0)","v":0}]
[]
[null,"(f) Other Fixed Income Investments"]
[]
[null,"Other Loans",null,null,null,null,{"$f":"'Form 1EBS'!F52","v":0},{"$f":"'Fixed Income Investments (Rev.)'!H79","v":0.05},{"$f":"IF(G81<0,0,G81*H81)","v":0},null,null,{"$f":"MAX(0,IF(K81=\"\",H81*G81,G81*K81))","v":0}]
[]
[null,"Cash and Cash Equivalent Counterparty Balances By BSCR Rating"]
[]
[null,"BSCR Rating 0 ",null,null,null,null,{"$f":"'Schedule XIXA'!F81","v":0},{"$f":"'Fixed Income Investments (Rev.)'!H83","v":0},{"$f":"IF(G85<0,0,G85*H85)","v":0},null,null,{"$f":"MAX(0,IF(K85=\"\",H85*G85,G85*K85))","v":0}]
[null,"BSCR Rating 1",null,null,null,null,{"$f":"'Schedule XIXA'!F82","v":0},{"$f":"'Fixed Income Investments (Rev.)'!H84","v":1E-3},{"$f":"IF(G86<0,0,G86*H86)","v":0},null,null,{"$f":"MAX(0,IF(K86=\"\",H86*G86,G86*K86))","v":0}]
[null,"BSCR Rating 2",null,null,null,null,{"$f":"'Schedule XIXA'!F83","v":0},{"$f":"'Fixed Income Investments (Rev.)'!H85","v":2E-3},0,null,null,0]
[null,"BSCR Rating 3",null,null,null,null,{"$f":"'Schedule XIXA'!F84","v":0},{"$f":"'Fixed Income Investments (Rev.)'!H86","v":3.0000000000000001E-3},0,null,null,0]
[null,"BSCR Rating 4",null,null,null,null,{"$f":"'Schedule XIXA'!F85","v":0},{"$f":"'Fixed Income Investments (Rev.)'!H87","v":5.0000000000000001E-3},0,null,null,0]
[null,"BSCR Rating 5",null,null,null,null,{"$f":"'Schedule XIXA'!F86","v":0},{"$f":"'Fixed Income Investments (Rev.)'!H88","v":1.4999999999999999E-2},0,null,null,0]
[null,"BSCR Rating 6",null,null,null,null,{"$f":"'Schedule XIXA'!F87","v":0},{"$f":"'Fixed Income Investments (Rev.)'!H89","v":0.04},0,null,null,0]
[null,"BSCR Rating 7",null,null,null,null,{"$f":"'Schedule XIXA'!F88","v":0},{"$f":"'Fixed Income Investments (Rev.)'!H90","v":0.06},0,null,null,0]
[null,"BSCR Rating 8",null,null,null,null,{"$f":"'Schedule XIXA'!F89","v":0},{"$f":"'Fixed Income Investments (Rev.)'!H91","v":0.09},0,null,null,0]
[]
[null,"Total",null,null,null,null,{"$f":"SUM(G85:G94)","v":0},null,{"$f":"SUM(I85:I94)","v":0},null,null,{"$f":"SUM(L85:L94)","v":0}]
[]
[null,"Diversification Adj at 40%",null,null,null,null,null,null,{"$f":"SUM(I85:I93)*-('Schedule XIXA'!F98)","v":0},null,null,{"$f":"SUM(L85:L93)*-('Schedule XIXA'!F98)","v":0}]
[]
[null,"(f)  SUBTOTAL - OTHER FIXED INCOME SECURITIES",null,null,null,null,{"$f":"G81+G95","v":0},null,{"$f":"IF(SUM(I81,I95,I97)>=0,SUM(I81,I95,I97),0)","v":0},null,null,{"$f":"IF(SUM(L81,L95,L97)>=0,SUM(L81,L95,L97),0)","v":0}]
[]
[null,"(g) Spread Risk for Credit Derivatives"]
[]
[null,null,null,"Spread Up"]
[null,null,null,"Long Exposures",null,"Short Exposures"]
[null,"Spread Up",null,"Before Shock","After Shock","Before Shock","After Shock"]
[null,"BSCR Rating 0 ",null,{"$f":"'Schedule IIB (EBS)'!D68+'Schedule IIC (EBS)'!D68+'Schedule IID (EBS)'!D68+'Schedule IIE (EBS)'!D68+'Schedule IIF (EBS)'!D68","v":0},{"$f":"'Schedule IIB (EBS)'!F68+'Schedule IIC (EBS)'!F68+'Schedule IID (EBS)'!F68+'Schedule IIE (EBS)'!F68+'Schedule IIF (EBS)'!F68","v":0},{"$f":"'Schedule IIB (EBS)'!H68+'Schedule IIC (EBS)'!H68+'Schedule IID (EBS)'!H68+'Schedule IIE (EBS)'!H68+'Schedule IIF (EBS)'!H68","v":0},{"$f":"'Schedule IIB (EBS)'!J68+'Schedule IIC (EBS)'!J68+'Schedule IID (EBS)'!J68+'Schedule IIE (EBS)'!J68+'Schedule IIF (EBS)'!J68","v":0},0,{"$f":"'Fixed Income Investments (Rev.)'!I105","v":0},null,null,{"$f":"IF(K106=\"\",I106,K106)","v":0}]
[null,"BSCR Rating 1",null,{"$f":"'Schedule IIB (EBS)'!D69+'Schedule IIC (EBS)'!D69+'Schedule IID (EBS)'!D69+'Schedule IIE (EBS)'!D69+'Schedule IIF (EBS)'!D69","v":0},{"$f":"'Schedule IIB (EBS)'!F69+'Schedule IIC (EBS)'!F69+'Schedule IID (EBS)'!F69+'Schedule IIE (EBS)'!F69+'Schedule IIF (EBS)'!F69","v":0},{"$f":"'Schedule IIB (EBS)'!H69+'Schedule IIC (EBS)'!H69+'Schedule IID (EBS)'!H69+'Schedule IIE (EBS)'!H69+'Schedule IIF (EBS)'!H69","v":0},{"$f":"'Schedule IIB (EBS)'!J69+'Schedule IIC (EBS)'!J69+'Schedule IID (EBS)'!J69+'Schedule IIE (EBS)'!J69+'Schedule IIF (EBS)'!J69","v":0},130,{"$f":"'Fixed Income Investments (Rev.)'!I106","v":0},null,null,{"$f":"IF(K107=\"\",I107,K107)","v":0}]
[null,"BSCR Rating 2",null,{"$f":"'Schedule IIB (EBS)'!D70+'Schedule IIC (EBS)'!D70+'Schedule IID (EBS)'!D70+'Schedule IIE (EBS)'!D70+'Schedule IIF (EBS)'!D70","v":0},{"$f":"'Schedule IIB (EBS)'!F70+'Schedule IIC (EBS)'!F70+'Schedule IID (EBS)'!F70+'Schedule IIE (EBS)'!F70+'Schedule IIF (EBS)'!F70","v":0},{"$f":"'Schedule IIB (EBS)'!H70+'Schedule IIC (EBS)'!H70+'Schedule IID (EBS)'!H70+'Schedule IIE (EBS)'!H70+'Schedule IIF (EBS)'!H70","v":0},{"$f":"'Schedule IIB (EBS)'!J70+'Schedule IIC (EBS)'!J70+'Schedule IID (EBS)'!J70+'Schedule IIE (EBS)'!J70+'Schedule IIF (EBS)'!J70","v":0},150,{"$f":"'Fixed Income Investments (Rev.)'!I107","v":0},null,null,0]
[null,"BSCR Rating 3",null,{"$f":"'Schedule IIB (EBS)'!D71+'Schedule IIC (EBS)'!D71+'Schedule IID (EBS)'!D71+'Schedule IIE (EBS)'!D71+'Schedule IIF (EBS)'!D71","v":0},{"$f":"'Schedule IIB (EBS)'!F71+'Schedule IIC (EBS)'!F71+'Schedule IID (EBS)'!F71+'Schedule IIE (EBS)'!F71+'Schedule IIF (EBS)'!F71","v":0},{"$f":"'Schedule IIB (EBS)'!H71+'Schedule IIC (EBS)'!H71+'Schedule IID (EBS)'!H71+'Schedule IIE (EBS)'!H71+'Schedule IIF (EBS)'!H71","v":0},{"$f":"'Schedule IIB (EBS)'!J71+'Schedule IIC (EBS)'!J71+'Schedule IID (EBS)'!J71+'Schedule IIE (EBS)'!J71+'Schedule IIF (EBS)'!J71","v":0},260,{"$f":"'Fixed Income Investments (Rev.)'!I108","v":0},null,null,0]
[null,"BSCR Rating 4",null,{"$f":"'Schedule IIB (EBS)'!D72+'Schedule IIC (EBS)'!D72+'Schedule IID (EBS)'!D72+'Schedule IIE (EBS)'!D72+'Schedule IIF (EBS)'!D72","v":0},{"$f":"'Schedule IIB (EBS)'!F72+'Schedule IIC (EBS)'!F72+'Schedule IID (EBS)'!F72+'Schedule IIE (EBS)'!F72+'Schedule IIF (EBS)'!F72","v":0},{"$f":"'Schedule IIB (EBS)'!H72+'Schedule IIC (EBS)'!H72+'Schedule IID (EBS)'!H72+'Schedule IIE (EBS)'!H72+'Schedule IIF (EBS)'!H72","v":0},{"$f":"'Schedule IIB (EBS)'!J72+'Schedule IIC (EBS)'!J72+'Schedule IID (EBS)'!J72+'Schedule IIE (EBS)'!J72+'Schedule IIF (EBS)'!J72","v":0},450,{"$f":"'Fixed Income Investments (Rev.)'!I109","v":0},null,null,0]
[null,"BSCR Rating 5",null,{"$f":"'Schedule IIB (EBS)'!D73+'Schedule IIC (EBS)'!D73+'Schedule IID (EBS)'!D73+'Schedule IIE (EBS)'!D73+'Schedule IIF (EBS)'!D73","v":0},{"$f":"'Schedule IIB (EBS)'!F73+'Schedule IIC (EBS)'!F73+'Schedule IID (EBS)'!F73+'Schedule IIE (EBS)'!F73+'Schedule IIF (EBS)'!F73","v":0},{"$f":"'Schedule IIB (EBS)'!H73+'Schedule IIC (EBS)'!H73+'Schedule IID (EBS)'!H73+'Schedule IIE (EBS)'!H73+'Schedule IIF (EBS)'!H73","v":0},{"$f":"'Schedule IIB (EBS)'!J73+'Schedule IIC (EBS)'!J73+'Schedule IID (EBS)'!J73+'Schedule IIE (EBS)'!J73+'Schedule IIF (EBS)'!J73","v":0},840,{"$f":"'Fixed Income Investments (Rev.)'!I110","v":0},null,null,0]
[null,"BSCR Rating 6",null,{"$f":"'Schedule IIB (EBS)'!D74+'Schedule IIC (EBS)'!D74+'Schedule IID (EBS)'!D74+'Schedule IIE (EBS)'!D74+'Schedule IIF (EBS)'!D74","v":0},{"$f":"'Schedule IIB (EBS)'!F74+'Schedule IIC (EBS)'!F74+'Schedule IID (EBS)'!F74+'Schedule IIE (EBS)'!F74+'Schedule IIF (EBS)'!F74","v":0},{"$f":"'Schedule IIB (EBS)'!H74+'Schedule IIC (EBS)'!H74+'Schedule IID (EBS)'!H74+'Schedule IIE (EBS)'!H74+'Schedule IIF (EBS)'!H74","v":0},{"$f":"'Schedule IIB (EBS)'!J74+'Schedule IIC (EBS)'!J74+'Schedule IID (EBS)'!J74+'Schedule IIE (EBS)'!J74+'Schedule IIF (EBS)'!J74","v":0},1620,{"$f":"'Fixed Income Investments (Rev.)'!I111","v":0},null,null,0]
[null,"BSCR Rating 7",null,{"$f":"'Schedule IIB (EBS)'!D75+'Schedule IIC (EBS)'!D75+'Schedule IID (EBS)'!D75+'Schedule IIE (EBS)'!D75+'Schedule IIF (EBS)'!D75","v":0},{"$f":"'Schedule IIB (EBS)'!F75+'Schedule IIC (EBS)'!F75+'Schedule IID (EBS)'!F75+'Schedule IIE (EBS)'!F75+'Schedule IIF (EBS)'!F75","v":0},{"$f":"'Schedule IIB (EBS)'!H75+'Schedule IIC (EBS)'!H75+'Schedule IID (EBS)'!H75+'Schedule IIE (EBS)'!H75+'Schedule IIF (EBS)'!H75","v":0},{"$f":"'Schedule IIB (EBS)'!J75+'Schedule IIC (EBS)'!J75+'Schedule IID (EBS)'!J75+'Schedule IIE (EBS)'!J75+'Schedule IIF (EBS)'!J75","v":0},1620,{"$f":"'Fixed Income Investments (Rev.)'!I112","v":0},null,null,0]
[null,"BSCR Rating 8",null,{"$f":"'Schedule IIB (EBS)'!D76+'Schedule IIC (EBS)'!D76+'Schedule IID (EBS)'!D76+'Schedule IIE (EBS)'!D76+'Schedule IIF (EBS)'!D76","v":0},{"$f":"'Schedule IIB (EBS)'!F76+'Schedule IIC (EBS)'!F76+'Schedule IID (EBS)'!F76+'Schedule IIE (EBS)'!F76+'Schedule IIF (EBS)'!F76","v":0},{"$f":"'Schedule IIB (EBS)'!H76+'Schedule IIC (EBS)'!H76+'Schedule IID (EBS)'!H76+'Schedule IIE (EBS)'!H76+'Schedule IIF (EBS)'!H76","v":0},{"$f":"'Schedule IIB (EBS)'!J76+'Schedule IIC (EBS)'!J76+'Schedule IID (EBS)'!J76+'Schedule IIE (EBS)'!J76+'Schedule IIF (EBS)'!J76","v":0},1620,{"$f":"'Fixed Income Investments (Rev.)'!I113","v":0},null,null,0]
[null,"Total Spread Up",null,{"$f":"SUM(D106:D114)","v":0},{"$f":"SUM(E106:E114)","v":0},{"$f":"SUM(F106:F114)","v":0},{"$f":"SUM(G106:G114)","v":0},null,{"$f":"SUM(I106:I114)","v":0},null,{"$f":"SUM(K106:K114)","v":0},{"$f":"SUM(L106:L114)","v":0}]
[]
[null,null,null,"Spread Down"]
[null,null,null,"Long Exposures",null,"Short Exposures"]
[null,null,null,"Before Shock","After Shock","Before Shock","After Shock"]
[null,"Spread Up",null,{"$f":"'Schedule IIB (EBS)'!N68+'Schedule IIC (EBS)'!N68+'Schedule IID (EBS)'!N68+'Schedule IIE (EBS)'!N68+'Schedule IIF (EBS)'!N68","v":0},{"$f":"'Schedule IIB (EBS)'!P68+'Schedule IIC (EBS)'!P68+'Schedule IID (EBS)'!P68+'Schedule IIE (EBS)'!P68+'Schedule IIF (EBS)'!P68","v":0},{"$f":"'Schedule IIB (EBS)'!R68+'Schedule IIC (EBS)'!R68+'Schedule IID (EBS)'!R68+'Schedule IIE (EBS)'!R68+'Schedule IIF (EBS)'!R68","v":0},{"$f":"'Schedule IIB (EBS)'!T68+'Schedule IIC (EBS)'!T68+'Schedule IID (EBS)'!T68+'Schedule IIE (EBS)'!T68+'Schedule IIF (EBS)'!T68","v":0}]
[null,"BSCR Rating 0 ",null,{"$f":"'Schedule IIB (EBS)'!N69+'Schedule IIC (EBS)'!N69+'Schedule IID (EBS)'!N69+'Schedule IIE (EBS)'!N69+'Schedule IIF (EBS)'!N69","v":0},{"$f":"'Schedule IIB (EBS)'!P69+'Schedule IIC (EBS)'!P69+'Schedule IID (EBS)'!P69+'Schedule IIE (EBS)'!P69+'Schedule IIF (EBS)'!P69","v":0},{"$f":"'Schedule IIB (EBS)'!R69+'Schedule IIC (EBS)'!R69+'Schedule IID (EBS)'!R69+'Schedule IIE (EBS)'!R69+'Schedule IIF (EBS)'!R69","v":0},{"$f":"'Schedule IIB (EBS)'!T69+'Schedule IIC (EBS)'!T69+'Schedule IID (EBS)'!T69+'Schedule IIE (EBS)'!T69+'Schedule IIF (EBS)'!T69","v":0},0,{"$f":"'Fixed Income Investments (Rev.)'!I122","v":0},null,null,{"$f":"IF(K121=\"\",I121,K121)","v":0}]
[null,"BSCR Rating 1",null,{"$f":"'Schedule IIB (EBS)'!N70+'Schedule IIC (EBS)'!N70+'Schedule IID (EBS)'!N70+'Schedule IIE (EBS)'!N70+'Schedule IIF (EBS)'!N70","v":0},{"$f":"'Schedule IIB (EBS)'!P70+'Schedule IIC (EBS)'!P70+'Schedule IID (EBS)'!P70+'Schedule IIE (EBS)'!P70+'Schedule IIF (EBS)'!P70","v":0},{"$f":"'Schedule IIB (EBS)'!R70+'Schedule IIC (EBS)'!R70+'Schedule IID (EBS)'!R70+'Schedule IIE (EBS)'!R70+'Schedule IIF (EBS)'!R70","v":0},{"$f":"'Schedule IIB (EBS)'!T70+'Schedule IIC (EBS)'!T70+'Schedule IID (EBS)'!T70+'Schedule IIE (EBS)'!T70+'Schedule IIF (EBS)'!T70","v":0},-0.75,{"$f":"'Fixed Income Investments (Rev.)'!I123","v":0},null,null,0]
[null,"BSCR Rating 2",null,{"$f":"'Schedule IIB (EBS)'!N71+'Schedule IIC (EBS)'!N71+'Schedule IID (EBS)'!N71+'Schedule IIE (EBS)'!N71+'Schedule IIF (EBS)'!N71","v":0},{"$f":"'Schedule IIB (EBS)'!P71+'Schedule IIC (EBS)'!P71+'Schedule IID (EBS)'!P71+'Schedule IIE (EBS)'!P71+'Schedule IIF (EBS)'!P71","v":0},{"$f":"'Schedule IIB (EBS)'!R71+'Schedule IIC (EBS)'!R71+'Schedule IID (EBS)'!R71+'Schedule IIE (EBS)'!R71+'Schedule IIF (EBS)'!R71","v":0},{"$f":"'Schedule IIB (EBS)'!T71+'Schedule IIC (EBS)'!T71+'Schedule IID (EBS)'!T71+'Schedule IIE (EBS)'!T71+'Schedule IIF (EBS)'!T71","v":0},-0.75,{"$f":"'Fixed Income Investments (Rev.)'!I124","v":0},null,null,0]
[null,"BSCR Rating 3",null,{"$f":"'Schedule IIB (EBS)'!N72+'Schedule IIC (EBS)'!N72+'Schedule IID (EBS)'!N72+'Schedule IIE (EBS)'!N72+'Schedule IIF (EBS)'!N72","v":0},{"$f":"'Schedule IIB (EBS)'!P72+'Schedule IIC (EBS)'!P72+'Schedule IID (EBS)'!P72+'Schedule IIE (EBS)'!P72+'Schedule IIF (EBS)'!P72","v":0},{"$f":"'Schedule IIB (EBS)'!R72+'Schedule IIC (EBS)'!R72+'Schedule IID (EBS)'!R72+'Schedule IIE (EBS)'!R72+'Schedule IIF (EBS)'!R72","v":0},{"$f":"'Schedule IIB (EBS)'!T72+'Schedule IIC (EBS)'!T72+'Schedule IID (EBS)'!T72+'Schedule IIE (EBS)'!T72+'Schedule IIF (EBS)'!T72","v":0},-0.75,{"$f":"'Fixed Income Investments (Rev.)'!I125","v":0},null,null,0]
[null,"BSCR Rating 4",null,{"$f":"'Schedule IIB (EBS)'!N73+'Schedule IIC (EBS)'!N73+'Schedule IID (EBS)'!N73+'Schedule IIE (EBS)'!N73+'Schedule IIF (EBS)'!N73","v":0},{"$f":"'Schedule IIB (EBS)'!P73+'Schedule IIC (EBS)'!P73+'Schedule IID (EBS)'!P73+'Schedule IIE (EBS)'!P73+'Schedule IIF (EBS)'!P73","v":0},{"$f":"'Schedule IIB (EBS)'!R73+'Schedule IIC (EBS)'!R73+'Schedule IID (EBS)'!R73+'Schedule IIE (EBS)'!R73+'Schedule IIF (EBS)'!R73","v":0},{"$f":"'Schedule IIB (EBS)'!T73+'Schedule IIC (EBS)'!T73+'Schedule IID (EBS)'!T73+'Schedule IIE (EBS)'!T73+'Schedule IIF (EBS)'!T73","v":0},-0.75,{"$f":"'Fixed Income Investments (Rev.)'!I126","v":0},null,null,0]
[null,"BSCR Rating 5",null,{"$f":"'Schedule IIB (EBS)'!N74+'Schedule IIC (EBS)'!N74+'Schedule IID (EBS)'!N74+'Schedule IIE (EBS)'!N74+'Schedule IIF (EBS)'!N74","v":0},{"$f":"'Schedule IIB (EBS)'!P74+'Schedule IIC (EBS)'!P74+'Schedule IID (EBS)'!P74+'Schedule IIE (EBS)'!P74+'Schedule IIF (EBS)'!P74","v":0},{"$f":"'Schedule IIB (EBS)'!R74+'Schedule IIC (EBS)'!R74+'Schedule IID (EBS)'!R74+'Schedule IIE (EBS)'!R74+'Schedule IIF (EBS)'!R74","v":0},{"$f":"'Schedule IIB (EBS)'!T74+'Schedule IIC (EBS)'!T74+'Schedule IID (EBS)'!T74+'Schedule IIE (EBS)'!T74+'Schedule IIF (EBS)'!T74","v":0},-0.75,{"$f":"'Fixed Income Investments (Rev.)'!I127","v":0},null,null,0]
[null,"BSCR Rating 6",null,{"$f":"'Schedule IIB (EBS)'!N75+'Schedule IIC (EBS)'!N75+'Schedule IID (EBS)'!N75+'Schedule IIE (EBS)'!N75+'Schedule IIF (EBS)'!N75","v":0},{"$f":"'Schedule IIB (EBS)'!P75+'Schedule IIC (EBS)'!P75+'Schedule IID (EBS)'!P75+'Schedule IIE (EBS)'!P75+'Schedule IIF (EBS)'!P75","v":0},{"$f":"'Schedule IIB (EBS)'!R75+'Schedule IIC (EBS)'!R75+'Schedule IID (EBS)'!R75+'Schedule IIE (EBS)'!R75+'Schedule IIF (EBS)'!R75","v":0},{"$f":"'Schedule IIB (EBS)'!T75+'Schedule IIC (EBS)'!T75+'Schedule IID (EBS)'!T75+'Schedule IIE (EBS)'!T75+'Schedule IIF (EBS)'!T75","v":0},-0.75,{"$f":"'Fixed Income Investments (Rev.)'!I128","v":0},null,null,0]
[null,"BSCR Rating 7",null,{"$f":"'Schedule IIB (EBS)'!N76+'Schedule IIC (EBS)'!N76+'Schedule IID (EBS)'!N76+'Schedule IIE (EBS)'!N76+'Schedule IIF (EBS)'!N76","v":0},{"$f":"'Schedule IIB (EBS)'!P76+'Schedule IIC (EBS)'!P76+'Schedule IID (EBS)'!P76+'Schedule IIE (EBS)'!P76+'Schedule IIF (EBS)'!P76","v":0},{"$f":"'Schedule IIB (EBS)'!R76+'Schedule IIC (EBS)'!R76+'Schedule IID (EBS)'!R76+'Schedule IIE (EBS)'!R76+'Schedule IIF (EBS)'!R76","v":0},{"$f":"'Schedule IIB (EBS)'!T76+'Schedule IIC (EBS)'!T76+'Schedule IID (EBS)'!T76+'Schedule IIE (EBS)'!T76+'Schedule IIF (EBS)'!T76","v":0},-0.75,{"$f":"'Fixed Income Investments (Rev.)'!I129","v":0},null,null,0]
[null,"BSCR Rating 8",null,{"$f":"SUM(D120:D128)","v":0},{"$f":"SUM(E120:E128)","v":0},{"$f":"SUM(F120:F128)","v":0},{"$f":"SUM(G120:G128)","v":0},-0.75,{"$f":"'Fixed Income Investments (Rev.)'!I130","v":0},null,null,0]
[null,"Total Spread Down",null,null,null,null,null,null,{"$f":"SUM(I121:I129)","v":0},null,{"$f":"SUM(K121:K129)","v":0},{"$f":"SUM(L121:L129)","v":0}]
[]
[null,"Spread Up",null,null,null,null,null,null,{"$f":"I115","v":0},null,null,{"$f":"L115","v":0}]
[null,"Spread Down",null,null,null,null,null,null,{"$f":"I130","v":0},null,null,{"$f":"L130","v":0}]
[]
[null,"(g) Total Spread Risk",null,null,null,null,null,null,{"$f":"MAX(0,I132,I133)","v":0},null,null,{"$f":"MAX(0,L132,L133)","v":0}]
[]
[null,"(h)  TOTAL FIXED INCOME INVESTMENTS [ (a)+(b)+(c)+(d)+(e)+(f)+(g) ]",null,null,null,null,{"$f":"G25+G39+G53+G68+G77+G99","v":0},null,{"$f":"IF(SUM(I25+I39+I53+I68+I77+I99+I135)>=0,SUM(I25+I39+I53+I68+I77+I99+I135),0)","v":0},null,null,{"$f":"IF(SUM(L25+L39+L53+L68+L77+L99+L135)>=0,SUM(L25+L39+L53+L68+L77+L99+L135),0)","v":0}]
[]
[null,null,null,"ASSETS",null,null,"LIABILITIES","STANDARD","STANDARD",null,"USER","USER"]
[null,"TYPE OF ",null,"Long Exposures","Short Exposures",null,null,"CAPITAL","REQUIRED",null,"CAPITAL","REQUIRED"]
[null,"EQUITY INVESTMENTS",null,"Qualified Assets","Qualified Assets","Not Qual. Assets",null,"FACTOR","CAPITAL",null,"FACTOR","CAPITAL"]
[]
[null,"Type 1 Equity Holdings"]
[null,"Strategic Holdings - Listed",null,{"$f":"'Schedule IIB (EBS)'!D39+'Schedule IIC (EBS)'!D39+'Schedule IID (EBS)'!D39+'Schedule IIE (EBS)'!D39+'Schedule IIF (EBS)'!D39","v":0},{"$f":"'Schedule IIB (EBS)'!H39+'Schedule IIC (EBS)'!H39+'Schedule IID (EBS)'!H39+'Schedule IIE (EBS)'!H39+'Schedule IIF (EBS)'!H39","v":0},{"$f":"'Schedule IIB (EBS)'!L39+'Schedule IIC (EBS)'!L39+'Schedule IID (EBS)'!L39+'Schedule IIE (EBS)'!L39+'Schedule IIF (EBS)'!L39","v":0},{"$f":"'Schedule IIB (EBS)'!P39+'Schedule IIC (EBS)'!P39+'Schedule IID (EBS)'!P39+'Schedule IIE (EBS)'!P39+'Schedule IIF (EBS)'!P39","v":0},{"$f":"'Equity Investments (Revised)'!N11","v":0.2},{"$f":"'Equity Investments (Revised)'!P11","v":0},null,null,{"$f":"IF(K144=\"\",I144,K144*(SUM(D144:F144)))","v":0}]
[null,"Duration Based",null,{"$f":"'Schedule IIB (EBS)'!D40+'Schedule IIC (EBS)'!D40+'Schedule IID (EBS)'!D40+'Schedule IIE (EBS)'!D40+'Schedule IIF (EBS)'!D40","v":0},{"$f":"'Schedule IIB (EBS)'!H40+'Schedule IIC (EBS)'!H40+'Schedule IID (EBS)'!H40+'Schedule IIE (EBS)'!H40+'Schedule IIF (EBS)'!H40","v":0},{"$f":"'Schedule IIB (EBS)'!L40+'Schedule IIC (EBS)'!L40+'Schedule IID (EBS)'!L40+'Schedule IIE (EBS)'!L40+'Schedule IIF (EBS)'!L40","v":0},{"$f":"'Schedule IIB (EBS)'!P40+'Schedule IIC (EBS)'!P40+'Schedule IID (EBS)'!P40+'Schedule IIE (EBS)'!P40+'Schedule IIF (EBS)'!P40","v":0},{"$f":"'Equity Investments (Revised)'!N12","v":0.2},{"$f":"'Equity Investments (Revised)'!P12","v":0},null,null,{"$f":"IF(K145=\"\",I145,K145*(SUM(D145:F145)))","v":0}]
[null,"Listed Equity Securities in Developed Markets",null,{"$f":"'Schedule IIB (EBS)'!D41+'Schedule IIC (EBS)'!D41+'Schedule IID (EBS)'!D41+'Schedule IIE (EBS)'!D41+'Schedule IIF (EBS)'!D41","v":0},{"$f":"'Schedule IIB (EBS)'!H41+'Schedule IIC (EBS)'!H41+'Schedule IID (EBS)'!H41+'Schedule IIE (EBS)'!H41+'Schedule IIF (EBS)'!H41","v":0},{"$f":"'Schedule IIB (EBS)'!L41+'Schedule IIC (EBS)'!L41+'Schedule IID (EBS)'!L41+'Schedule IIE (EBS)'!L41+'Schedule IIF (EBS)'!L41","v":0},{"$f":"'Schedule IIB (EBS)'!P41+'Schedule IIC (EBS)'!P41+'Schedule IID (EBS)'!P41+'Schedule IIE (EBS)'!P41+'Schedule IIF (EBS)'!P41","v":0},{"$f":"'Equity Investments (Revised)'!N13","v":0.35},{"$f":"'Equity Investments (Revised)'!P13","v":0},null,null,0]
[null,"Preferred Stocks, BSCR Rating 1",null,{"$f":"'Schedule IIB (EBS)'!D42+'Schedule IIC (EBS)'!D42+'Schedule IID (EBS)'!D42+'Schedule IIE (EBS)'!D42+'Schedule IIF (EBS)'!D42","v":0},{"$f":"'Schedule IIB (EBS)'!H42+'Schedule IIC (EBS)'!H42+'Schedule IID (EBS)'!H42+'Schedule IIE (EBS)'!H42+'Schedule IIF (EBS)'!H42","v":0},{"$f":"'Schedule IIB (EBS)'!L42+'Schedule IIC (EBS)'!L42+'Schedule IID (EBS)'!L42+'Schedule IIE (EBS)'!L42+'Schedule IIF (EBS)'!L42","v":0},{"$f":"'Schedule IIB (EBS)'!P42+'Schedule IIC (EBS)'!P42+'Schedule IID (EBS)'!P42+'Schedule IIE (EBS)'!P42+'Schedule IIF (EBS)'!P42","v":0},{"$f":"'Equity Investments (Revised)'!N14","v":6.0000000000000001E-3},{"$f":"'Equity Investments (Revised)'!P14","v":0},null,null,0]
[null,"Preferred Stocks, BSCR Rating 2",null,{"$f":"'Schedule IIB (EBS)'!D43+'Schedule IIC (EBS)'!D43+'Schedule IID (EBS)'!D43+'Schedule IIE (EBS)'!D43+'Schedule IIF (EBS)'!D43","v":0},{"$f":"'Schedule IIB (EBS)'!H43+'Schedule IIC (EBS)'!H43+'Schedule IID (EBS)'!H43+'Schedule IIE (EBS)'!H43+'Schedule IIF (EBS)'!H43","v":0},{"$f":"'Schedule IIB (EBS)'!L43+'Schedule IIC (EBS)'!L43+'Schedule IID (EBS)'!L43+'Schedule IIE (EBS)'!L43+'Schedule IIF (EBS)'!L43","v":0},{"$f":"'Schedule IIB (EBS)'!P43+'Schedule IIC (EBS)'!P43+'Schedule IID (EBS)'!P43+'Schedule IIE (EBS)'!P43+'Schedule IIF (EBS)'!P43","v":0},{"$f":"'Equity Investments (Revised)'!N15","v":1.2E-2},{"$f":"'Equity Investments (Revised)'!P15","v":0},null,null,0]
[null,"Preferred Stocks, BSCR Rating 3",null,{"$f":"'Schedule IIB (EBS)'!D44+'Schedule IIC (EBS)'!D44+'Schedule IID (EBS)'!D44+'Schedule IIE (EBS)'!D44+'Schedule IIF (EBS)'!D44","v":0},{"$f":"'Schedule IIB (EBS)'!H44+'Schedule IIC (EBS)'!H44+'Schedule IID (EBS)'!H44+'Schedule IIE (EBS)'!H44+'Schedule IIF (EBS)'!H44","v":0},{"$f":"'Schedule IIB (EBS)'!L44+'Schedule IIC (EBS)'!L44+'Schedule IID (EBS)'!L44+'Schedule IIE (EBS)'!L44+'Schedule IIF (EBS)'!L44","v":0},{"$f":"'Schedule IIB (EBS)'!P44+'Schedule IIC (EBS)'!P44+'Schedule IID (EBS)'!P44+'Schedule IIE (EBS)'!P44+'Schedule IIF (EBS)'!P44","v":0},{"$f":"'Equity Investments (Revised)'!N16","v":0.02},{"$f":"'Equity Investments (Revised)'!P16","v":0},null,null,0]
[null,"Preferred Stocks, BSCR Rating 4",null,{"$f":"'Schedule IIB (EBS)'!D45+'Schedule IIC (EBS)'!D45+'Schedule IID (EBS)'!D45+'Schedule IIE (EBS)'!D45+'Schedule IIF (EBS)'!D45","v":0},{"$f":"'Schedule IIB (EBS)'!H45+'Schedule IIC (EBS)'!H45+'Schedule IID (EBS)'!H45+'Schedule IIE (EBS)'!H45+'Schedule IIF (EBS)'!H45","v":0},{"$f":"'Schedule IIB (EBS)'!L45+'Schedule IIC (EBS)'!L45+'Schedule IID (EBS)'!L45+'Schedule IIE (EBS)'!L45+'Schedule IIF (EBS)'!L45","v":0},{"$f":"'Schedule IIB (EBS)'!P45+'Schedule IIC (EBS)'!P45+'Schedule IID (EBS)'!P45+'Schedule IIE (EBS)'!P45+'Schedule IIF (EBS)'!P45","v":0},{"$f":"'Equity Investments (Revised)'!N17","v":0.04},{"$f":"'Equity Investments (Revised)'!P17","v":0},null,null,0]
[null,"Preferred Stocks, BSCR Rating 5",null,{"$f":"'Schedule IIB (EBS)'!D46+'Schedule IIC (EBS)'!D46+'Schedule IID (EBS)'!D46+'Schedule IIE (EBS)'!D46+'Schedule IIF (EBS)'!D46","v":0},{"$f":"'Schedule IIB (EBS)'!H46+'Schedule IIC (EBS)'!H46+'Schedule IID (EBS)'!H46+'Schedule IIE (EBS)'!H46+'Schedule IIF (EBS)'!H46","v":0},{"$f":"'Schedule IIB (EBS)'!L46+'Schedule IIC (EBS)'!L46+'Schedule IID (EBS)'!L46+'Schedule IIE (EBS)'!L46+'Schedule IIF (EBS)'!L46","v":0},{"$f":"'Schedule IIB (EBS)'!P46+'Schedule IIC (EBS)'!P46+'Schedule IID (EBS)'!P46+'Schedule IIE (EBS)'!P46+'Schedule IIF (EBS)'!P46","v":0},{"$f":"'Equity Investments (Revised)'!N18","v":0.11},{"$f":"'Equity Investments (Revised)'!P18","v":0},null,null,0]
[null,"Preferred Stocks, BSCR Rating 6",null,{"$f":"'Schedule IIB (EBS)'!D47+'Schedule IIC (EBS)'!D47+'Schedule IID (EBS)'!D47+'Schedule IIE (EBS)'!D47+'Schedule IIF (EBS)'!D47","v":0},{"$f":"'Schedule IIB (EBS)'!H47+'Schedule IIC (EBS)'!H47+'Schedule IID (EBS)'!H47+'Schedule IIE (EBS)'!H47+'Schedule IIF (EBS)'!H47","v":0},{"$f":"'Schedule IIB (EBS)'!L47+'Schedule IIC (EBS)'!L47+'Schedule IID (EBS)'!L47+'Schedule IIE (EBS)'!L47+'Schedule IIF (EBS)'!L47","v":0},{"$f":"'Schedule IIB (EBS)'!P47+'Schedule IIC (EBS)'!P47+'Schedule IID (EBS)'!P47+'Schedule IIE (EBS)'!P47+'Schedule IIF (EBS)'!P47","v":0},{"$f":"'Equity Investments (Revised)'!N19","v":0.25},{"$f":"'Equity Investments (Revised)'!P19","v":0},null,null,0]
[null,"Preferred Stocks, BSCR Rating 7",null,{"$f":"'Schedule IIB (EBS)'!D48+'Schedule IIC (EBS)'!D48+'Schedule IID (EBS)'!D48+'Schedule IIE (EBS)'!D48+'Schedule IIF (EBS)'!D48","v":0},{"$f":"'Schedule IIB (EBS)'!H48+'Schedule IIC (EBS)'!H48+'Schedule IID (EBS)'!H48+'Schedule IIE (EBS)'!H48+'Schedule IIF (EBS)'!H48","v":0},{"$f":"'Schedule IIB (EBS)'!L48+'Schedule IIC (EBS)'!L48+'Schedule IID (EBS)'!L48+'Schedule IIE (EBS)'!L48+'Schedule IIF (EBS)'!L48","v":0},{"$f":"'Schedule IIB (EBS)'!P48+'Schedule IIC (EBS)'!P48+'Schedule IID (EBS)'!P48+'Schedule IIE (EBS)'!P48+'Schedule IIF (EBS)'!P48","v":0},{"$f":"'Equity Investments (Revised)'!N20","v":0.35},{"$f":"'Equity Investments (Revised)'!P20","v":0},null,null,0]
[null,"Preferred Stocks, BSCR Rating 8",null,{"$f":"'Schedule IIB (EBS)'!D49+'Schedule IIC (EBS)'!D49+'Schedule IID (EBS)'!D49+'Schedule IIE (EBS)'!D49+'Schedule IIF (EBS)'!D49","v":0},{"$f":"'Schedule IIB (EBS)'!H49+'Schedule IIC (EBS)'!H49+'Schedule IID (EBS)'!H49+'Schedule IIE (EBS)'!H49+'Schedule IIF (EBS)'!H49","v":0},{"$f":"'Schedule IIB (EBS)'!L49+'Schedule IIC (EBS)'!L49+'Schedule IID (EBS)'!L49+'Schedule IIE (EBS)'!L49+'Schedule IIF (EBS)'!L49","v":0},{"$f":"'Schedule IIB (EBS)'!P49+'Schedule IIC (EBS)'!P49+'Schedule IID (EBS)'!P49+'Schedule IIE (EBS)'!P49+'Schedule IIF (EBS)'!P49","v":0},{"$f":"'Equity Investments (Revised)'!N21","v":0.35},{"$f":"'Equity Investments (Revised)'!P21","v":0},null,null,0]
[null,"Equity Derivatives on Type 1 Equities",null,{"$f":"'Schedule IIB (EBS)'!D50+'Schedule IIC (EBS)'!D50+'Schedule IID (EBS)'!D50+'Schedule IIE (EBS)'!D50+'Schedule IIF (EBS)'!D50","v":0},{"$f":"'Schedule IIB (EBS)'!H50+'Schedule IIC (EBS)'!H50+'Schedule IID (EBS)'!H50+'Schedule IIE (EBS)'!H50+'Schedule IIF (EBS)'!H50","v":0},{"$f":"'Schedule IIB (EBS)'!L50+'Schedule IIC (EBS)'!L50+'Schedule IID (EBS)'!L50+'Schedule IIE (EBS)'!L50+'Schedule IIF (EBS)'!L50","v":0},{"$f":"'Schedule IIB (EBS)'!P50+'Schedule IIC (EBS)'!P50+'Schedule IID (EBS)'!P50+'Schedule IIE (EBS)'!P50+'Schedule IIF (EBS)'!P50","v":0},{"$f":"'Equity Investments (Revised)'!N22","v":0.35},{"$f":"'Equity Investments (Revised)'!P22","v":0},null,null,0]
[]
[null,"Subtotal - Type 1 Equity Holdings",null,{"$f":"SUM(D144:D156)","v":0},{"$f":"SUM(E144:E156)","v":0},{"$f":"SUM(F144:F156)","v":0},{"$f":"SUM(G144:G156)","v":0},null,{"$f":"SUM(I144:I156)","v":0},null,null,{"$f":"SUM(L144:L156)","v":0}]
[]
[null,"Type 2 Equity Holdings"]
[null,"Strategic Holdings - Unlisted",null,{"$f":"'Schedule IIB (EBS)'!D51+'Schedule IIC (EBS)'!D51+'Schedule IID (EBS)'!D51+'Schedule IIE (EBS)'!D51+'Schedule IIF (EBS)'!D51","v":0},{"$f":"'Schedule IIB (EBS)'!H51+'Schedule IIC (EBS)'!H51+'Schedule IID (EBS)'!H51+'Schedule IIE (EBS)'!H51+'Schedule IIF (EBS)'!H51","v":0},{"$f":"'Schedule IIB (EBS)'!L51+'Schedule IIC (EBS)'!L51+'Schedule IID (EBS)'!L51+'Schedule IIE (EBS)'!L51+'Schedule IIF (EBS)'!L51","v":0},{"$f":"'Schedule IIB (EBS)'!P51+'Schedule IIC (EBS)'!P51+'Schedule IID (EBS)'!P51+'Schedule IIE (EBS)'!P51+'Schedule IIF (EBS)'!P51","v":0},{"$f":"'Equity Investments (Revised)'!N27","v":0.2},{"$f":"'Equity Investments (Revised)'!P27","v":0},null,null,{"$f":"IF(K160=\"\",I160,K160*(SUM(D160:F160)))","v":0}]
[null,"Other Equities",null,{"$f":"'Schedule IIB (EBS)'!D52+'Schedule IIC (EBS)'!D52+'Schedule IID (EBS)'!D52+'Schedule IIE (EBS)'!D52+'Schedule IIF (EBS)'!D52","v":0},{"$f":"'Schedule IIB (EBS)'!H52+'Schedule IIC (EBS)'!H52+'Schedule IID (EBS)'!H52+'Schedule IIE (EBS)'!H52+'Schedule IIF (EBS)'!H52","v":0},{"$f":"'Schedule IIB (EBS)'!L52+'Schedule IIC (EBS)'!L52+'Schedule IID (EBS)'!L52+'Schedule IIE (EBS)'!L52+'Schedule IIF (EBS)'!L52","v":0},{"$f":"'Schedule IIB (EBS)'!P52+'Schedule IIC (EBS)'!P52+'Schedule IID (EBS)'!P52+'Schedule IIE (EBS)'!P52+'Schedule IIF (EBS)'!P52","v":0},{"$f":"'Equity Investments (Revised)'!N28","v":0.45},{"$f":"'Equity Investments (Revised)'!P28","v":0},null,null,0]
[null,"Letters of Credit",null,{"$f":"'Schedule IIB (EBS)'!D53+'Schedule IIC (EBS)'!D53+'Schedule IID (EBS)'!D53+'Schedule IIE (EBS)'!D53+'Schedule IIF (EBS)'!D53","v":0},{"$f":"'Schedule IIB (EBS)'!H53+'Schedule IIC (EBS)'!H53+'Schedule IID (EBS)'!H53+'Schedule IIE (EBS)'!H53+'Schedule IIF (EBS)'!H53","v":0},{"$f":"'Schedule IIB (EBS)'!L53+'Schedule IIC (EBS)'!L53+'Schedule IID (EBS)'!L53+'Schedule IIE (EBS)'!L53+'Schedule IIF (EBS)'!L53","v":0},{"$f":"'Schedule IIB (EBS)'!P53+'Schedule IIC (EBS)'!P53+'Schedule IID (EBS)'!P53+'Schedule IIE (EBS)'!P53+'Schedule IIF (EBS)'!P53","v":0},{"$f":"'Equity Investments (Revised)'!N29","v":0.2},{"$f":"'Equity Investments (Revised)'!P29","v":0},null,null,0]
[null,"Intangible assets",null,{"$f":"'Schedule IIB (EBS)'!D54+'Schedule IIC (EBS)'!D54+'Schedule IID (EBS)'!D54+'Schedule IIE (EBS)'!D54+'Schedule IIF (EBS)'!D54","v":0},{"$f":"'Schedule IIB (EBS)'!H54+'Schedule IIC (EBS)'!H54+'Schedule IID (EBS)'!H54+'Schedule IIE (EBS)'!H54+'Schedule IIF (EBS)'!H54","v":0},{"$f":"'Schedule IIB (EBS)'!L54+'Schedule IIC (EBS)'!L54+'Schedule IID (EBS)'!L54+'Schedule IIE (EBS)'!L54+'Schedule IIF (EBS)'!L54","v":0},{"$f":"'Schedule IIB (EBS)'!P54+'Schedule IIC (EBS)'!P54+'Schedule IID (EBS)'!P54+'Schedule IIE (EBS)'!P54+'Schedule IIF (EBS)'!P54","v":0},{"$f":"'Equity Investments (Revised)'!N30","v":0.2},{"$f":"'Equity Investments (Revised)'!P30","v":0},null,null,0]
[null,"Pension Benefit Surplus",null,{"$f":"'Schedule IIB (EBS)'!D55+'Schedule IIC (EBS)'!D55+'Schedule IID (EBS)'!D55+'Schedule IIE (EBS)'!D55+'Schedule IIF (EBS)'!D55","v":0},{"$f":"'Schedule IIB (EBS)'!H55+'Schedule IIC (EBS)'!H55+'Schedule IID (EBS)'!H55+'Schedule IIE (EBS)'!H55+'Schedule IIF (EBS)'!H55","v":0},{"$f":"'Schedule IIB (EBS)'!L55+'Schedule IIC (EBS)'!L55+'Schedule IID (EBS)'!L55+'Schedule IIE (EBS)'!L55+'Schedule IIF (EBS)'!L55","v":0},{"$f":"'Schedule IIB (EBS)'!P55+'Schedule IIC (EBS)'!P55+'Schedule IID (EBS)'!P55+'Schedule IIE (EBS)'!P55+'Schedule IIF (EBS)'!P55","v":0},{"$f":"'Equity Investments (Revised)'!N31","v":0.2},{"$f":"'Equity Investments (Revised)'!P31","v":0},null,null,0]
[null,"Equity Derivatives on Type 2 Equities",null,{"$f":"'Schedule IIB (EBS)'!D56+'Schedule IIC (EBS)'!D56+'Schedule IID (EBS)'!D56+'Schedule IIE (EBS)'!D56+'Schedule IIF (EBS)'!D56","v":0},{"$f":"'Schedule IIB (EBS)'!H56+'Schedule IIC (EBS)'!H56+'Schedule IID (EBS)'!H56+'Schedule IIE (EBS)'!H56+'Schedule IIF (EBS)'!H56","v":0},{"$f":"'Schedule IIB (EBS)'!L56+'Schedule IIC (EBS)'!L56+'Schedule IID (EBS)'!L56+'Schedule IIE (EBS)'!L56+'Schedule IIF (EBS)'!L56","v":0},{"$f":"'Schedule IIB (EBS)'!P56+'Schedule IIC (EBS)'!P56+'Schedule IID (EBS)'!P56+'Schedule IIE (EBS)'!P56+'Schedule IIF (EBS)'!P56","v":0},{"$f":"'Equity Investments (Revised)'!N32","v":0.45},{"$f":"'Equity Investments (Revised)'!P32","v":0},null,null,0]
[]
[null,"Subtotal - Type 2 Equity Holdings",null,{"$f":"SUM(D160:D166)","v":0},{"$f":"SUM(E160:E166)","v":0},{"$f":"SUM(F160:F166)","v":0},{"$f":"SUM(G160:G166)","v":0},null,{"$f":"SUM(I160:I166)","v":0},null,null,{"$f":"SUM(L160:L166)","v":0}]
[]
[null,"Type 3 Equity Holdings"]
[null,"Infrastructure",null,{"$f":"'Schedule IIB (EBS)'!D57+'Schedule IIC (EBS)'!D57+'Schedule IID (EBS)'!D57+'Schedule IIE (EBS)'!D57+'Schedule IIF (EBS)'!D57","v":0},{"$f":"'Schedule IIB (EBS)'!H57+'Schedule IIC (EBS)'!H57+'Schedule IID (EBS)'!H57+'Schedule IIE (EBS)'!H57+'Schedule IIF (EBS)'!H57","v":0},{"$f":"'Schedule IIB (EBS)'!L57+'Schedule IIC (EBS)'!L57+'Schedule IID (EBS)'!L57+'Schedule IIE (EBS)'!L57+'Schedule IIF (EBS)'!L57","v":0},{"$f":"'Schedule IIB (EBS)'!P57+'Schedule IIC (EBS)'!P57+'Schedule IID (EBS)'!P57+'Schedule IIE (EBS)'!P57+'Schedule IIF (EBS)'!P57","v":0},{"$f":"'Equity Investments (Revised)'!N37","v":0.25},{"$f":"'Equity Investments (Revised)'!P37","v":0},null,null,{"$f":"IF(K170=\"\",I170,K170*(SUM(D170:F170)))","v":0}]
[null,"Derivatives on Infrastructure",null,{"$f":"'Schedule IIB (EBS)'!D58+'Schedule IIC (EBS)'!D58+'Schedule IID (EBS)'!D58+'Schedule IIE (EBS)'!D58+'Schedule IIF (EBS)'!D58","v":0},{"$f":"'Schedule IIB (EBS)'!H58+'Schedule IIC (EBS)'!H58+'Schedule IID (EBS)'!H58+'Schedule IIE (EBS)'!H58+'Schedule IIF (EBS)'!H58","v":0},{"$f":"'Schedule IIB (EBS)'!L58+'Schedule IIC (EBS)'!L58+'Schedule IID (EBS)'!L58+'Schedule IIE (EBS)'!L58+'Schedule IIF (EBS)'!L58","v":0},{"$f":"'Schedule IIB (EBS)'!P58+'Schedule IIC (EBS)'!P58+'Schedule IID (EBS)'!P58+'Schedule IIE (EBS)'!P58+'Schedule IIF (EBS)'!P58","v":0},{"$f":"'Equity Investments (Revised)'!N38","v":0.25},{"$f":"'Equity Investments (Revised)'!P38","v":0},null,null,0]
[]
[null,"Subtotal - Type 3 Equity Holdings",null,{"$f":"SUM(D170:D172)","v":0},{"$f":"SUM(E170:E172)","v":0},{"$f":"SUM(F170:F172)","v":0},{"$f":"SUM(G170:G172)","v":0},null,{"$f":"SUM(I170:I172)","v":0},null,null,{"$f":"SUM(L170:L172)","v":0}]
[]
[null,"Type 4 Equity Holdings"]
[null,"Equity Real Estate 1",null,{"$f":"'Schedule IIB (EBS)'!D59+'Schedule IIC (EBS)'!D59+'Schedule IID (EBS)'!D59+'Schedule IIE (EBS)'!D59+'Schedule IIF (EBS)'!D59","v":0},{"$f":"'Schedule IIB (EBS)'!H59+'Schedule IIC (EBS)'!H59+'Schedule IID (EBS)'!H59+'Schedule IIE (EBS)'!H59+'Schedule IIF (EBS)'!H59","v":0},{"$f":"'Schedule IIB (EBS)'!L59+'Schedule IIC (EBS)'!L59+'Schedule IID (EBS)'!L59+'Schedule IIE (EBS)'!L59+'Schedule IIF (EBS)'!L59","v":0},{"$f":"'Schedule IIB (EBS)'!P59+'Schedule IIC (EBS)'!P59+'Schedule IID (EBS)'!P59+'Schedule IIE (EBS)'!P59+'Schedule IIF (EBS)'!P59","v":0},{"$f":"'Equity Investments (Revised)'!N43","v":0.1},{"$f":"'Equity Investments (Revised)'!P43","v":0},null,null,{"$f":"IF(K176=\"\",I176,K176*(SUM(D176:F176)))","v":0}]
[null,"Equity Real Estate 2",null,{"$f":"'Schedule IIB (EBS)'!D60+'Schedule IIC (EBS)'!D60+'Schedule IID (EBS)'!D60+'Schedule IIE (EBS)'!D60+'Schedule IIF (EBS)'!D60","v":0},{"$f":"'Schedule IIB (EBS)'!H60+'Schedule IIC (EBS)'!H60+'Schedule IID (EBS)'!H60+'Schedule IIE (EBS)'!H60+'Schedule IIF (EBS)'!H60","v":0},{"$f":"'Schedule IIB (EBS)'!L60+'Schedule IIC (EBS)'!L60+'Schedule IID (EBS)'!L60+'Schedule IIE (EBS)'!L60+'Schedule IIF (EBS)'!L60","v":0},{"$f":"'Schedule IIB (EBS)'!P60+'Schedule IIC (EBS)'!P60+'Schedule IID (EBS)'!P60+'Schedule IIE (EBS)'!P60+'Schedule IIF (EBS)'!P60","v":0},{"$f":"'Equity Investments (Revised)'!N44","v":0.2},{"$f":"'Equity Investments (Revised)'!P44","v":0},null,null,0]
[]
[null,"Subtotal - Type 4 Equity Holdings",null,{"$f":"SUM(D176:D178)","v":0},{"$f":"SUM(E176:E178)","v":0},{"$f":"SUM(F176:F178)","v":0},{"$f":"SUM(G176:G178)","v":0},null,{"$f":"SUM(I176:I178)","v":0},null,null,{"$f":"SUM(L176:L178)","v":0}]
[]
[null,"Total Equity Risk before Diversification"]
[]
[null,"Correlation Matrix","Type 1","Type 2","Type 3","Type 4","W/O Mgmt. Action","Mgmt. Action",null,null,"W/O Mgmt. Action","Mgmt. Action"]
[null,"Type 1",1,0.75,0.75,0.5,{"$f":"I157","v":0},{"$f":"'Equity Investments (Revised)'!R51","v":0},null,null,{"$f":"L157","v":0},{"$f":"K184","v":0}]
[null,"Type 2",0.75,1,0.75,0.5,{"$f":"I167","v":0},{"$f":"'Equity Investments (Revised)'!R52","v":0},null,null,{"$f":"L167","v":0},{"$f":"K185","v":0}]
[null,"Type 3",0.75,0.75,1,0.5,{"$f":"I173","v":0},{"$f":"'Equity Investments (Revised)'!R53","v":0},null,null,{"$f":"L173","v":0},0]
[null,"Type 4",0.5,0.5,0.5,1,{"$f":"I179","v":0},{"$f":"'Equity Investments (Revised)'!R54","v":0},null,null,{"$f":"L179","v":0},0]
[]
[]
[]
[null,"(f)  TOTAL EQUITY INVESTMENTS (AFTER CORRELATION ADJUSTMENT)",null,null,null,null,{"$f":"SQRT(MMULT(TRANSPOSE(G184:G187),MMULT($C$184:$F$187,G184:G187)))","v":0},{"$f":"SQRT(MMULT(TRANSPOSE(H184:H187),MMULT($C$184:$F$187,H184:H187)))","v":0},null,null,{"$f":"SQRT(MMULT(TRANSPOSE(K184:K187),MMULT($C$184:$F$187,K184:K187)))","v":0},{"$f":"SQRT(MMULT(TRANSPOSE(L184:L187),MMULT($C$184:$F$187,L184:L187)))","v":0}]
[]
[null,null,null,null,null,null,null,"STANDARD","STANDARD",null,"USER","USER"]
[null,"TYPE OF ",null,null,null,null,"ASSET","CAPITAL","REQUIRED",null,"CAPITAL","REQUIRED"]
[null,"INTEREST RATE/LIQUIDITY RISK",null,null,null,null,"VALUE","FACTOR","CAPITAL",null,"FACTOR","CAPITAL"]
[]
[null,"Bonds and Debentures ",null,null,null,null,{"$f":"'Schedule II (EBS)'!T22+'Schedule IIA (EBS)'!T22","v":0},{"$f":"IF('Company Information'!F11=\"Class 3A\",IF(('Schedule V'!H12-'Schedule V'!H10)>3.5,3.5,MAX(1,'Schedule V'!H10-'Schedule V'!H12,'Schedule V'!H12-'Schedule V'!H10)),IF('Schedule V'!$H$10-'Schedule V'!$H$12>=1,'Schedule V'!$H$10-'Schedule V'!$H$12,IF('Schedule V'!$H$12-'Schedule V'!$H$10>=1,'Schedule V'!$H$12-'Schedule V'!$H$10,1)))*2%","v":0.02},{"$f":"IF(G197<0,0,G197*H197)","v":0},null,null,{"$f":"MAX(0,IF(K197=\"\",H197*G197,G197*K197))","v":0}]
[null,"Preferred Stocks ",null,null,null,null,{"$f":"'Schedule II (EBS)'!H44+'Schedule IIA (EBS)'!H44","v":0},{"$f":"IF('Company Information'!F11=\"Class 3A\",IF(('Schedule V'!H12-'Schedule V'!H10)>3.5,3.5,MAX(1,'Schedule V'!H10-'Schedule V'!H12,'Schedule V'!H12-'Schedule V'!H10)),IF('Schedule V'!$H$10-'Schedule V'!$H$12>=1,'Schedule V'!$H$10-'Schedule V'!$H$12,IF('Schedule V'!$H$12-'Schedule V'!$H$10>=1,'Schedule V'!$H$12-'Schedule V'!$H$10,1)))*2%","v":0.02},{"$f":"IF(G198<0,0,G198*H198)","v":0},null,null,{"$f":"MAX(0,IF(K198=\"\",H198*G198,G198*K198))","v":0}]
[null,"Mortgage Loans",null,null,null,null,{"$f":"'Schedule II (EBS)'!D62+'Schedule IIA (EBS)'!D62","v":0},{"$f":"IF('Company Information'!F11=\"Class 3A\",IF(('Schedule V'!H12-'Schedule V'!H10)>3.5,3.5,MAX(1,'Schedule V'!H10-'Schedule V'!H12,'Schedule V'!H12-'Schedule V'!H10)),IF('Schedule V'!$H$10-'Schedule V'!$H$12>=1,'Schedule V'!$H$10-'Schedule V'!$H$12,IF('Schedule V'!$H$12-'Schedule V'!$H$10>=1,'Schedule V'!$H$12-'Schedule V'!$H$10,1)))*2%","v":0.02},{"$f":"IF(G199<0,0,G199*H199)","v":0},null,null,{"$f":"MAX(0,IF(K199=\"\",H199*G199,G199*K199))","v":0}]
[]
[null,"TOTAL INTEREST RATE / LIQUIDITY RISK",null,null,null,null,{"$f":"SUM(G197:G199)","v":0},null,{"$f":"IF(SUM(I197:I199)>=0,SUM(I197:I199),0)","v":0},null,null,{"$f":"IF(SUM(L197:L199)>=0,SUM(L197:L199),0)","v":0}]
[]
[null,null,null,"ASSETS",null,"LIABILITIES",null,null,"CAPITAL",null,"USER","USER"]
[null,"INTEREST RATE -",null,null,null,null,null,null,"CHARGE",null,"CAPITAL","CAPITAL"]
[null,"LIQUIDITY RISK",null,"Qualified Assets","Not Qual. Assets",null,null,null,"W MGMT",null,"W/O MGMT","W MGMT ACTION"]
[]
[null,"IR Down- Exposures without Derivatives"]
[null,{"$f":"'Interest Rate-Liquidity (Rev.)'!B11","v":"United States Dollars"},null,{"$f":"'Schedule XXIII'!E10","v":0},null,{"$f":"'Schedule XXIII'!H10","v":0},null,{"$f":"'Interest Rate-Liquidity (Rev.)'!S11","v":0},{"$f":"'Interest Rate-Liquidity (Rev.)'!T11","v":0},null,null,{"$f":"MAX(0,IF(K208=\"\",H208,K208))","v":0}]
[null,{"$f":"'Interest Rate-Liquidity (Rev.)'!B12","v":"Euro"},null,{"$f":"'Schedule XXIII'!E11","v":0},null,{"$f":"'Schedule XXIII'!H11","v":0},null,{"$f":"'Interest Rate-Liquidity (Rev.)'!S12","v":0},{"$f":"'Interest Rate-Liquidity (Rev.)'!T12","v":0},null,null,{"$f":"MAX(0,IF(K209=\"\",H209,K209))","v":0}]
[null,{"$f":"'Interest Rate-Liquidity (Rev.)'!B13","v":"United Kingdom Pounds"},null,{"$f":"'Schedule XXIII'!E12","v":0},null,{"$f":"'Schedule XXIII'!H12","v":0},null,{"$f":"'Interest Rate-Liquidity (Rev.)'!S13","v":0},{"$f":"'Interest Rate-Liquidity (Rev.)'!T13","v":0},null,null,{"$f":"MAX(0,IF(K210=\"\",H210,K210))","v":0}]
[null,{"$f":"'Interest Rate-Liquidity (Rev.)'!B14","v":"Japan Yen"},null,{"$f":"'Schedule XXIII'!E13","v":0},null,{"$f":"'Schedule XXIII'!H13","v":0},null,{"$f":"'Interest Rate-Liquidity (Rev.)'!S14","v":0},{"$f":"'Interest Rate-Liquidity (Rev.)'!T14","v":0},null,null,0]
[null,{"$f":"'Interest Rate-Liquidity (Rev.)'!B15","v":"Canada Dollars"},null,{"$f":"'Schedule XXIII'!E14","v":0},null,{"$f":"'Schedule XXIII'!H14","v":0},null,{"$f":"'Interest Rate-Liquidity (Rev.)'!S15","v":0},{"$f":"'Interest Rate-Liquidity (Rev.)'!T15","v":0},null,null,0]
[null,{"$f":"'Interest Rate-Liquidity (Rev.)'!B16","v":"Swiss Francs"},null,{"$f":"'Schedule XXIII'!E15","v":0},null,{"$f":"'Schedule XXIII'!H15","v":0},null,{"$f":"'Interest Rate-Liquidity (Rev.)'!S16","v":0},{"$f":"'Interest Rate-Liquidity (Rev.)'!T16","v":0},null,null,0]
[null,{"$f":"'Interest Rate-Liquidity (Rev.)'!B17","v":"Australia Dollar"},null,{"$f":"'Schedule XXIII'!E16","v":0},null,{"$f":"'Schedule XXIII'!H16","v":0},null,{"$f":"'Interest Rate-Liquidity (Rev.)'!S17","v":0},{"$f":"'Interest Rate-Liquidity (Rev.)'!T17","v":0},null,null,0]
[null,{"$f":"'Interest Rate-Liquidity (Rev.)'!B18","v":"New Zealand Dollar"},null,{"$f":"'Schedule XXIII'!E17","v":0},null,{"$f":"'Schedule XXIII'!H17","v":0},null,{"$f":"'Interest Rate-Liquidity (Rev.)'!S18","v":0},{"$f":"'Interest Rate-Liquidity (Rev.)'!T18","v":0},null,null,0]
[null,{"$f":"'Interest Rate-Liquidity (Rev.)'!B19","v":"Other currency 1"},null,{"$f":"'Schedule XXIII'!E18","v":0},null,{"$f":"'Schedule XXIII'!H18","v":0},null,{"$f":"'Interest Rate-Liquidity (Rev.)'!S19","v":0},{"$f":"'Interest Rate-Liquidity (Rev.)'!T19","v":0},null,null,0]
[null,{"$f":"'Interest Rate-Liquidity (Rev.)'!B20","v":"Other currency 2"},null,{"$f":"'Schedule XXIII'!E19","v":0},null,{"$f":"'Schedule XXIII'!H19","v":0},null,{"$f":"'Interest Rate-Liquidity (Rev.)'!S20","v":0},{"$f":"'Interest Rate-Liquidity (Rev.)'!T20","v":0},null,null,0]
[null,{"$f":"'Interest Rate-Liquidity (Rev.)'!B21","v":"Other currency 3"},null,{"$f":"'Schedule XXIII'!E20","v":0},null,{"$f":"'Schedule XXIII'!H20","v":0},null,{"$f":"'Interest Rate-Liquidity (Rev.)'!S21","v":0},{"$f":"'Interest Rate-Liquidity (Rev.)'!T21","v":0},null,null,0]
[null,{"$f":"'Interest Rate-Liquidity (Rev.)'!B22","v":"Other currency 4"},null,{"$f":"'Schedule XXIII'!E21","v":0},null,{"$f":"'Schedule XXIII'!H21","v":0},null,{"$f":"'Interest Rate-Liquidity (Rev.)'!S22","v":0},{"$f":"'Interest Rate-Liquidity (Rev.)'!T22","v":0},null,null,0]
[null,{"$f":"'Interest Rate-Liquidity (Rev.)'!B23","v":"Other currency 5"},null,{"$f":"'Schedule XXIII'!E22","v":0},null,{"$f":"'Schedule XXIII'!H22","v":0},null,{"$f":"'Interest Rate-Liquidity (Rev.)'!S23","v":0},{"$f":"'Interest Rate-Liquidity (Rev.)'!T23","v":0},null,null,0]
[null,{"$f":"'Interest Rate-Liquidity (Rev.)'!B24","v":"Other currency 6"},null,{"$f":"'Schedule XXIII'!E23","v":0},null,{"$f":"'Schedule XXIII'!H23","v":0},null,{"$f":"'Interest Rate-Liquidity (Rev.)'!S24","v":0},{"$f":"'Interest Rate-Liquidity (Rev.)'!T24","v":0},null,null,0]
[null,{"$f":"'Interest Rate-Liquidity (Rev.)'!B25","v":"Other currency 7"},null,{"$f":"'Schedule XXIII'!E24","v":0},null,{"$f":"'Schedule XXIII'!H24","v":0},null,{"$f":"'Interest Rate-Liquidity (Rev.)'!S25","v":0},{"$f":"'Interest Rate-Liquidity (Rev.)'!T25","v":0},null,null,0]
[null,{"$f":"'Interest Rate-Liquidity (Rev.)'!B26","v":"Other currency 8"},null,{"$f":"'Schedule XXIII'!E25","v":0},null,{"$f":"'Schedule XXIII'!H25","v":0},null,{"$f":"'Interest Rate-Liquidity (Rev.)'!S26","v":0},{"$f":"'Interest Rate-Liquidity (Rev.)'!T26","v":0},null,null,0]
[null,{"$f":"'Interest Rate-Liquidity (Rev.)'!B27","v":"Other currency 9"},null,{"$f":"'Schedule XXIII'!E26","v":0},null,{"$f":"'Schedule XXIII'!H26","v":0},null,{"$f":"'Interest Rate-Liquidity (Rev.)'!S27","v":0},{"$f":"'Interest Rate-Liquidity (Rev.)'!T27","v":0},null,null,0]
[null,{"$f":"'Interest Rate-Liquidity (Rev.)'!B28","v":"Other currency 10"},null,{"$f":"'Schedule XXIII'!E27","v":0},null,{"$f":"'Schedule XXIII'!H27","v":0},null,{"$f":"'Interest Rate-Liquidity (Rev.)'!S28","v":0},{"$f":"'Interest Rate-Liquidity (Rev.)'!T28","v":0},null,null,0]
[null,{"$f":"'Interest Rate-Liquidity (Rev.)'!B29","v":"Total IR - Other"},null,{"$f":"SUM(D208:D225)","v":0},null,{"$f":"SUM(F208:F225)","v":0},null,{"$f":"SUM(H208:H225)","v":0},{"$f":"SUM(I208:I225)","v":0},null,{"$f":"SUM(K208:K225)","v":0},{"$f":"SUM(L208:L225)","v":0}]
[]
[null,{"$f":"'Interest Rate-Liquidity (Rev.)'!B31","v":"IR Down- Derivatives"}]
[null,{"$f":"'Interest Rate-Liquidity (Rev.)'!B32","v":"United States Dollars"},null,{"$f":"'Schedule XXIII'!M10","v":0},{"$f":"'Schedule XXIII'!P10","v":0},{"$f":"'Schedule XXIII'!S10","v":0},null,{"$f":"'Interest Rate-Liquidity (Rev.)'!S32","v":0},{"$f":"'Interest Rate-Liquidity (Rev.)'!T32","v":0},null,null,{"$f":"MAX(0,IF(K229=\"\",H229,K229))","v":0}]
[null,{"$f":"'Interest Rate-Liquidity (Rev.)'!B33","v":"Euro"},null,{"$f":"'Schedule XXIII'!M11","v":0},{"$f":"'Schedule XXIII'!P11","v":0},{"$f":"'Schedule XXIII'!S11","v":0},null,{"$f":"'Interest Rate-Liquidity (Rev.)'!S33","v":0},{"$f":"'Interest Rate-Liquidity (Rev.)'!T33","v":0},null,null,{"$f":"MAX(0,IF(K230=\"\",H230,K230))","v":0}]
[null,{"$f":"'Interest Rate-Liquidity (Rev.)'!B34","v":"United Kingdom Pounds"},null,{"$f":"'Schedule XXIII'!M12","v":0},{"$f":"'Schedule XXIII'!P12","v":0},{"$f":"'Schedule XXIII'!S12","v":0},null,{"$f":"'Interest Rate-Liquidity (Rev.)'!S34","v":0},{"$f":"'Interest Rate-Liquidity (Rev.)'!T34","v":0},null,null,0]
[null,{"$f":"'Interest Rate-Liquidity (Rev.)'!B35","v":"Japan Yen"},null,{"$f":"'Schedule XXIII'!M13","v":0},{"$f":"'Schedule XXIII'!P13","v":0},{"$f":"'Schedule XXIII'!S13","v":0},null,{"$f":"'Interest Rate-Liquidity (Rev.)'!S35","v":0},{"$f":"'Interest Rate-Liquidity (Rev.)'!T35","v":0},null,null,0]
[null,{"$f":"'Interest Rate-Liquidity (Rev.)'!B36","v":"Canada Dollars"},null,{"$f":"'Schedule XXIII'!M14","v":0},{"$f":"'Schedule XXIII'!P14","v":0},{"$f":"'Schedule XXIII'!S14","v":0},null,{"$f":"'Interest Rate-Liquidity (Rev.)'!S36","v":0},{"$f":"'Interest Rate-Liquidity (Rev.)'!T36","v":0},null,null,0]
[null,{"$f":"'Interest Rate-Liquidity (Rev.)'!B37","v":"Swiss Francs"},null,{"$f":"'Schedule XXIII'!M15","v":0},{"$f":"'Schedule XXIII'!P15","v":0},{"$f":"'Schedule XXIII'!S15","v":0},null,{"$f":"'Interest Rate-Liquidity (Rev.)'!S37","v":0},{"$f":"'Interest Rate-Liquidity (Rev.)'!T37","v":0},null,null,0]
[null,{"$f":"'Interest Rate-Liquidity (Rev.)'!B38","v":"Australia Dollar"},null,{"$f":"'Schedule XXIII'!M16","v":0},{"$f":"'Schedule XXIII'!P16","v":0},{"$f":"'Schedule XXIII'!S16","v":0},null,{"$f":"'Interest Rate-Liquidity (Rev.)'!S38","v":0},{"$f":"'Interest Rate-Liquidity (Rev.)'!T38","v":0},null,null,0]
[null,{"$f":"'Interest Rate-Liquidity (Rev.)'!B39","v":"New Zealand Dollar"},null,{"$f":"'Schedule XXIII'!M17","v":0},{"$f":"'Schedule XXIII'!P17","v":0},{"$f":"'Schedule XXIII'!S17","v":0},null,{"$f":"'Interest Rate-Liquidity (Rev.)'!S39","v":0},{"$f":"'Interest Rate-Liquidity (Rev.)'!T39","v":0},null,null,0]
[null,{"$f":"'Interest Rate-Liquidity (Rev.)'!B40","v":"Other currency 1"},null,{"$f":"'Schedule XXIII'!M18","v":0},{"$f":"'Schedule XXIII'!P18","v":0},{"$f":"'Schedule XXIII'!S18","v":0},null,{"$f":"'Interest Rate-Liquidity (Rev.)'!S40","v":0},{"$f":"'Interest Rate-Liquidity (Rev.)'!T40","v":0},null,null,0]
[null,{"$f":"'Interest Rate-Liquidity (Rev.)'!B41","v":"Other currency 2"},null,{"$f":"'Schedule XXIII'!M19","v":0},{"$f":"'Schedule XXIII'!P19","v":0},{"$f":"'Schedule XXIII'!S19","v":0},null,{"$f":"'Interest Rate-Liquidity (Rev.)'!S41","v":0},{"$f":"'Interest Rate-Liquidity (Rev.)'!T41","v":0},null,null,0]
[null,{"$f":"'Interest Rate-Liquidity (Rev.)'!B42","v":"Other currency 3"},null,{"$f":"'Schedule XXIII'!M20","v":0},{"$f":"'Schedule XXIII'!P20","v":0},{"$f":"'Schedule XXIII'!S20","v":0},null,{"$f":"'Interest Rate-Liquidity (Rev.)'!S42","v":0},{"$f":"'Interest Rate-Liquidity (Rev.)'!T42","v":0},null,null,0]
[null,{"$f":"'Interest Rate-Liquidity (Rev.)'!B43","v":"Other currency 4"},null,{"$f":"'Schedule XXIII'!M21","v":0},{"$f":"'Schedule XXIII'!P21","v":0},{"$f":"'Schedule XXIII'!S21","v":0},null,{"$f":"'Interest Rate-Liquidity (Rev.)'!S43","v":0},{"$f":"'Interest Rate-Liquidity (Rev.)'!T43","v":0},null,null,0]
[null,{"$f":"'Interest Rate-Liquidity (Rev.)'!B44","v":"Other currency 5"},null,{"$f":"'Schedule XXIII'!M22","v":0},{"$f":"'Schedule XXIII'!P22","v":0},{"$f":"'Schedule XXIII'!S22","v":0},null,{"$f":"'Interest Rate-Liquidity (Rev.)'!S44","v":0},{"$f":"'Interest Rate-Liquidity (Rev.)'!T44","v":0},null,null,0]
[null,{"$f":"'Interest Rate-Liquidity (Rev.)'!B45","v":"Other currency 6"},null,{"$f":"'Schedule XXIII'!M23","v":0},{"$f":"'Schedule XXIII'!P23","v":0},{"$f":"'Schedule XXIII'!S23","v":0},null,{"$f":"'Interest Rate-Liquidity (Rev.)'!S45","v":0},{"$f":"'Interest Rate-Liquidity (Rev.)'!T45","v":0},null,null,0]
[null,{"$f":"'Interest Rate-Liquidity (Rev.)'!B46","v":"Other currency 7"},null,{"$f":"'Schedule XXIII'!M24","v":0},{"$f":"'Schedule XXIII'!P24","v":0},{"$f":"'Schedule XXIII'!S24","v":0},null,{"$f":"'Interest Rate-Liquidity (Rev.)'!S46","v":0},{"$f":"'Interest Rate-Liquidity (Rev.)'!T46","v":0},null,null,0]
[null,{"$f":"'Interest Rate-Liquidity (Rev.)'!B47","v":"Other currency 8"},null,{"$f":"'Schedule XXIII'!M25","v":0},{"$f":"'Schedule XXIII'!P25","v":0},{"$f":"'Schedule XXIII'!S25","v":0},null,{"$f":"'Interest Rate-Liquidity (Rev.)'!S47","v":0},{"$f":"'Interest Rate-Liquidity (Rev.)'!T47","v":0},null,null,0]
[null,{"$f":"'Interest Rate-Liquidity (Rev.)'!B48","v":"Other currency 9"},null,{"$f":"'Schedule XXIII'!M26","v":0},{"$f":"'Schedule XXIII'!P26","v":0},{"$f":"'Schedule XXIII'!S26","v":0},null,{"$f":"'Interest Rate-Liquidity (Rev.)'!S48","v":0},{"$f":"'Interest Rate-Liquidity (Rev.)'!T48","v":0},null,null,0]
[null,{"$f":"'Interest Rate-Liquidity (Rev.)'!B49","v":"Other currency 10"},null,{"$f":"'Schedule XXIII'!M27","v":0},{"$f":"'Schedule XXIII'!P27","v":0},{"$f":"'Schedule XXIII'!S27","v":0},null,{"$f":"'Interest Rate-Liquidity (Rev.)'!S49","v":0},{"$f":"'Interest Rate-Liquidity (Rev.)'!T49","v":0},null,null,0]
[null,{"$f":"'Interest Rate-Liquidity (Rev.)'!B50","v":"Total IR - Derivatives"},null,{"$f":"SUM(D229:D246)","v":0},0,0,null,0,0,null,{"$f":"SUM(K229:K246)","v":0},{"$f":"SUM(L229:L246)","v":0}]
[null,{"$f":"'Interest Rate-Liquidity (Rev.)'!B51","v":"Total IR - DOWN"},null,{"$f":"D226+D247","v":0},{"$f":"E226+E247","v":0},0,null,{"$f":"MAX(0,H226+H247)","v":0},{"$f":"MAX(0,I226+I247)","v":0},null,{"$f":"MAX(0,K226+K247)","v":0},0]
[]
[null,{"$f":"'Interest Rate-Liquidity (Rev.)'!B53","v":"IR UP - Exposures without Derivatives"}]
[null,{"$f":"'Interest Rate-Liquidity (Rev.)'!B54","v":"United States Dollars"},null,{"$f":"'Schedule XXIII'!E35","v":0},null,{"$f":"'Schedule XXIII'!H35","v":0},null,{"$f":"'Interest Rate-Liquidity (Rev.)'!S54","v":0},{"$f":"'Interest Rate-Liquidity (Rev.)'!T54","v":0},null,null,{"$f":"MAX(0,IF(K251=\"\",H251,K251))","v":0}]
[null,{"$f":"'Interest Rate-Liquidity (Rev.)'!B55","v":"Euro"},null,{"$f":"'Schedule XXIII'!E36","v":0},null,{"$f":"'Schedule XXIII'!H36","v":0},null,{"$f":"'Interest Rate-Liquidity (Rev.)'!S55","v":0},{"$f":"'Interest Rate-Liquidity (Rev.)'!T55","v":0},null,null,{"$f":"MAX(0,IF(K252=\"\",H252,K252))","v":0}]
[null,{"$f":"'Interest Rate-Liquidity (Rev.)'!B56","v":"United Kingdom Pounds"},null,{"$f":"'Schedule XXIII'!E37","v":0},null,{"$f":"'Schedule XXIII'!H37","v":0},null,{"$f":"'Interest Rate-Liquidity (Rev.)'!S56","v":0},{"$f":"'Interest Rate-Liquidity (Rev.)'!T56","v":0},null,null,0]
[null,{"$f":"'Interest Rate-Liquidity (Rev.)'!B57","v":"Japan Yen"},null,{"$f":"'Schedule XXIII'!E38","v":0},null,{"$f":"'Schedule XXIII'!H38","v":0},null,{"$f":"'Interest Rate-Liquidity (Rev.)'!S57","v":0},{"$f":"'Interest Rate-Liquidity (Rev.)'!T57","v":0},null,null,0]
[null,{"$f":"'Interest Rate-Liquidity (Rev.)'!B58","v":"Canada Dollars"},null,{"$f":"'Schedule XXIII'!E39","v":0},null,{"$f":"'Schedule XXIII'!H39","v":0},null,{"$f":"'Interest Rate-Liquidity (Rev.)'!S58","v":0},{"$f":"'Interest Rate-Liquidity (Rev.)'!T58","v":0},null,null,0]
[null,{"$f":"'Interest Rate-Liquidity (Rev.)'!B59","v":"Swiss Francs"},null,{"$f":"'Schedule XXIII'!E40","v":0},null,{"$f":"'Schedule XXIII'!H40","v":0},null,{"$f":"'Interest Rate-Liquidity (Rev.)'!S59","v":0},{"$f":"'Interest Rate-Liquidity (Rev.)'!T59","v":0},null,null,0]
[null,{"$f":"'Interest Rate-Liquidity (Rev.)'!B60","v":"Australia Dollar"},null,{"$f":"'Schedule XXIII'!E41","v":0},null,{"$f":"'Schedule XXIII'!H41","v":0},null,{"$f":"'Interest Rate-Liquidity (Rev.)'!S60","v":0},{"$f":"'Interest Rate-Liquidity (Rev.)'!T60","v":0},null,null,0]
[null,{"$f":"'Interest Rate-Liquidity (Rev.)'!B61","v":"New Zealand Dollar"},null,{"$f":"'Schedule XXIII'!E42","v":0},null,{"$f":"'Schedule XXIII'!H42","v":0},null,{"$f":"'Interest Rate-Liquidity (Rev.)'!S61","v":0},{"$f":"'Interest Rate-Liquidity (Rev.)'!T61","v":0},null,null,0]
[null,{"$f":"'Interest Rate-Liquidity (Rev.)'!B62","v":"Other currency 1"},null,{"$f":"'Schedule XXIII'!E43","v":0},null,{"$f":"'Schedule XXIII'!H43","v":0},null,{"$f":"'Interest Rate-Liquidity (Rev.)'!S62","v":0},{"$f":"'Interest Rate-Liquidity (Rev.)'!T62","v":0},null,null,0]
[null,{"$f":"'Interest Rate-Liquidity (Rev.)'!B63","v":"Other currency 2"},null,{"$f":"'Schedule XXIII'!E44","v":0},null,{"$f":"'Schedule XXIII'!H44","v":0},null,{"$f":"'Interest Rate-Liquidity (Rev.)'!S63","v":0},{"$f":"'Interest Rate-Liquidity (Rev.)'!T63","v":0},null,null,0]
[null,{"$f":"'Interest Rate-Liquidity (Rev.)'!B64","v":"Other currency 3"},null,{"$f":"'Schedule XXIII'!E45","v":0},null,{"$f":"'Schedule XXIII'!H45","v":0},null,{"$f":"'Interest Rate-Liquidity (Rev.)'!S64","v":0},{"$f":"'Interest Rate-Liquidity (Rev.)'!T64","v":0},null,null,0]
[null,{"$f":"'Interest Rate-Liquidity (Rev.)'!B65","v":"Other currency 4"},null,{"$f":"'Schedule XXIII'!E46","v":0},null,{"$f":"'Schedule XXIII'!H46","v":0},null,{"$f":"'Interest Rate-Liquidity (Rev.)'!S65","v":0},{"$f":"'Interest Rate-Liquidity (Rev.)'!T65","v":0},null,null,0]
[null,{"$f":"'Interest Rate-Liquidity (Rev.)'!B66","v":"Other currency 5"},null,{"$f":"'Schedule XXIII'!E47","v":0},null,{"$f":"'Schedule XXIII'!H47","v":0},null,{"$f":"'Interest Rate-Liquidity (Rev.)'!S66","v":0},{"$f":"'Interest Rate-Liquidity (Rev.)'!T66","v":0},null,null,0]
[null,{"$f":"'Interest Rate-Liquidity (Rev.)'!B67","v":"Other currency 6"},null,{"$f":"'Schedule XXIII'!E48","v":0},null,{"$f":"'Schedule XXIII'!H48","v":0},null,{"$f":"'Interest Rate-Liquidity (Rev.)'!S67","v":0},{"$f":"'Interest Rate-Liquidity (Rev.)'!T67","v":0},null,null,0]
[null,{"$f":"'Interest Rate-Liquidity (Rev.)'!B68","v":"Other currency 7"},null,{"$f":"'Schedule XXIII'!E49","v":0},null,{"$f":"'Schedule XXIII'!H49","v":0},null,{"$f":"'Interest Rate-Liquidity (Rev.)'!S68","v":0},{"$f":"'Interest Rate-Liquidity (Rev.)'!T68","v":0},null,null,0]
[null,{"$f":"'Interest Rate-Liquidity (Rev.)'!B69","v":"Other currency 8"},null,{"$f":"'Schedule XXIII'!E50","v":0},null,{"$f":"'Schedule XXIII'!H50","v":0},null,{"$f":"'Interest Rate-Liquidity (Rev.)'!S69","v":0},{"$f":"'Interest Rate-Liquidity (Rev.)'!T69","v":0},null,null,0]
[null,{"$f":"'Interest Rate-Liquidity (Rev.)'!B70","v":"Other currency 9"},null,{"$f":"'Schedule XXIII'!E51","v":0},null,{"$f":"'Schedule XXIII'!H51","v":0},null,{"$f":"'Interest Rate-Liquidity (Rev.)'!S70","v":0},{"$f":"'Interest Rate-Liquidity (Rev.)'!T70","v":0},null,null,0]
[null,{"$f":"'Interest Rate-Liquidity (Rev.)'!B71","v":"Other currency 10"},null,{"$f":"'Schedule XXIII'!E52","v":0},null,{"$f":"'Schedule XXIII'!H52","v":0},null,{"$f":"'Interest Rate-Liquidity (Rev.)'!S71","v":0},{"$f":"'Interest Rate-Liquidity (Rev.)'!T71","v":0},null,null,0]
[null,{"$f":"'Interest Rate-Liquidity (Rev.)'!B72","v":"Total IR - Other"},null,{"$f":"SUM(D251:D268)","v":0},null,{"$f":"SUM(F251:F268)","v":0},null,{"$f":"SUM(H251:H268)","v":0},{"$f":"SUM(I251:I268)","v":0},null,{"$f":"SUM(K251:K268)","v":0},{"$f":"SUM(L251:L268)","v":0}]
[]
[null,{"$f":"'Interest Rate-Liquidity (Rev.)'!B74","v":"IR Up - Derivatives"}]
[null,{"$f":"'Interest Rate-Liquidity (Rev.)'!B75","v":"United States Dollars"},null,{"$f":"'Schedule XXIII'!M35","v":0},{"$f":"'Schedule XXIII'!P35","v":0},{"$f":"'Schedule XXIII'!S35","v":0},null,{"$f":"'Interest Rate-Liquidity (Rev.)'!S75","v":0},{"$f":"'Interest Rate-Liquidity (Rev.)'!T75","v":0},null,null,{"$f":"MAX(0,IF(K272=\"\",H272,K272))","v":0}]
[null,{"$f":"'Interest Rate-Liquidity (Rev.)'!B76","v":"Euro"},null,{"$f":"'Schedule XXIII'!M36","v":0},{"$f":"'Schedule XXIII'!P36","v":0},{"$f":"'Schedule XXIII'!S36","v":0},null,{"$f":"'Interest Rate-Liquidity (Rev.)'!S76","v":0},{"$f":"'Interest Rate-Liquidity (Rev.)'!T76","v":0},null,null,{"$f":"MAX(0,IF(K273=\"\",H273,K273))","v":0}]
[null,{"$f":"'Interest Rate-Liquidity (Rev.)'!B77","v":"United Kingdom Pounds"},null,{"$f":"'Schedule XXIII'!M37","v":0},{"$f":"'Schedule XXIII'!P37","v":0},{"$f":"'Schedule XXIII'!S37","v":0},null,{"$f":"'Interest Rate-Liquidity (Rev.)'!S77","v":0},{"$f":"'Interest Rate-Liquidity (Rev.)'!T77","v":0},null,null,0]
[null,{"$f":"'Interest Rate-Liquidity (Rev.)'!B78","v":"Japan Yen"},null,{"$f":"'Schedule XXIII'!M38","v":0},{"$f":"'Schedule XXIII'!P38","v":0},{"$f":"'Schedule XXIII'!S38","v":0},null,{"$f":"'Interest Rate-Liquidity (Rev.)'!S78","v":0},{"$f":"'Interest Rate-Liquidity (Rev.)'!T78","v":0},null,null,0]
[null,{"$f":"'Interest Rate-Liquidity (Rev.)'!B79","v":"Canada Dollars"},null,{"$f":"'Schedule XXIII'!M39","v":0},{"$f":"'Schedule XXIII'!P39","v":0},{"$f":"'Schedule XXIII'!S39","v":0},null,{"$f":"'Interest Rate-Liquidity (Rev.)'!S79","v":0},{"$f":"'Interest Rate-Liquidity (Rev.)'!T79","v":0},null,null,0]
[null,{"$f":"'Interest Rate-Liquidity (Rev.)'!B80","v":"Swiss Francs"},null,{"$f":"'Schedule XXIII'!M40","v":0},{"$f":"'Schedule XXIII'!P40","v":0},{"$f":"'Schedule XXIII'!S40","v":0},null,{"$f":"'Interest Rate-Liquidity (Rev.)'!S80","v":0},{"$f":"'Interest Rate-Liquidity (Rev.)'!T80","v":0},null,null,0]
[null,{"$f":"'Interest Rate-Liquidity (Rev.)'!B81","v":"Australia Dollar"},null,{"$f":"'Schedule XXIII'!M41","v":0},{"$f":"'Schedule XXIII'!P41","v":0},{"$f":"'Schedule XXIII'!S41","v":0},null,{"$f":"'Interest Rate-Liquidity (Rev.)'!S81","v":0},{"$f":"'Interest Rate-Liquidity (Rev.)'!T81","v":0},null,null,0]
[null,{"$f":"'Interest Rate-Liquidity (Rev.)'!B82","v":"New Zealand Dollar"},null,{"$f":"'Schedule XXIII'!M42","v":0},{"$f":"'Schedule XXIII'!P42","v":0},{"$f":"'Schedule XXIII'!S42","v":0},null,{"$f":"'Interest Rate-Liquidity (Rev.)'!S82","v":0},{"$f":"'Interest Rate-Liquidity (Rev.)'!T82","v":0},null,null,0]
[null,{"$f":"'Interest Rate-Liquidity (Rev.)'!B83","v":"Other currency 1"},null,{"$f":"'Schedule XXIII'!M43","v":0},{"$f":"'Schedule XXIII'!P43","v":0},{"$f":"'Schedule XXIII'!S43","v":0},null,{"$f":"'Interest Rate-Liquidity (Rev.)'!S83","v":0},{"$f":"'Interest Rate-Liquidity (Rev.)'!T83","v":0},null,null,0]
[null,{"$f":"'Interest Rate-Liquidity (Rev.)'!B84","v":"Other currency 2"},null,{"$f":"'Schedule XXIII'!M44","v":0},{"$f":"'Schedule XXIII'!P44","v":0},{"$f":"'Schedule XXIII'!S44","v":0},null,{"$f":"'Interest Rate-Liquidity (Rev.)'!S84","v":0},{"$f":"'Interest Rate-Liquidity (Rev.)'!T84","v":0},null,null,0]
[null,{"$f":"'Interest Rate-Liquidity (Rev.)'!B85","v":"Other currency 3"},null,{"$f":"'Schedule XXIII'!M45","v":0},{"$f":"'Schedule XXIII'!P45","v":0},{"$f":"'Schedule XXIII'!S45","v":0},null,{"$f":"'Interest Rate-Liquidity (Rev.)'!S85","v":0},{"$f":"'Interest Rate-Liquidity (Rev.)'!T85","v":0},null,null,0]
[null,{"$f":"'Interest Rate-Liquidity (Rev.)'!B86","v":"Other currency 4"},null,{"$f":"'Schedule XXIII'!M46","v":0},{"$f":"'Schedule XXIII'!P46","v":0},{"$f":"'Schedule XXIII'!S46","v":0},null,{"$f":"'Interest Rate-Liquidity (Rev.)'!S86","v":0},{"$f":"'Interest Rate-Liquidity (Rev.)'!T86","v":0},null,null,0]
[null,{"$f":"'Interest Rate-Liquidity (Rev.)'!B87","v":"Other currency 5"},null,{"$f":"'Schedule XXIII'!M47","v":0},{"$f":"'Schedule XXIII'!P47","v":0},{"$f":"'Schedule XXIII'!S47","v":0},null,{"$f":"'Interest Rate-Liquidity (Rev.)'!S87","v":0},{"$f":"'Interest Rate-Liquidity (Rev.)'!T87","v":0},null,null,0]
[null,{"$f":"'Interest Rate-Liquidity (Rev.)'!B88","v":"Other currency 6"},null,{"$f":"'Schedule XXIII'!M48","v":0},{"$f":"'Schedule XXIII'!P48","v":0},{"$f":"'Schedule XXIII'!S48","v":0},null,{"$f":"'Interest Rate-Liquidity (Rev.)'!S88","v":0},{"$f":"'Interest Rate-Liquidity (Rev.)'!T88","v":0},null,null,0]
[null,{"$f":"'Interest Rate-Liquidity (Rev.)'!B89","v":"Other currency 7"},null,{"$f":"'Schedule XXIII'!M49","v":0},{"$f":"'Schedule XXIII'!P49","v":0},{"$f":"'Schedule XXIII'!S49","v":0},null,{"$f":"'Interest Rate-Liquidity (Rev.)'!S89","v":0},{"$f":"'Interest Rate-Liquidity (Rev.)'!T89","v":0},null,null,0]
[null,{"$f":"'Interest Rate-Liquidity (Rev.)'!B90","v":"Other currency 8"},null,{"$f":"'Schedule XXIII'!M50","v":0},{"$f":"'Schedule XXIII'!P50","v":0},{"$f":"'Schedule XXIII'!S50","v":0},null,{"$f":"'Interest Rate-Liquidity (Rev.)'!S90","v":0},{"$f":"'Interest Rate-Liquidity (Rev.)'!T90","v":0},null,null,0]
[null,{"$f":"'Interest Rate-Liquidity (Rev.)'!B91","v":"Other currency 9"},null,{"$f":"'Schedule XXIII'!M51","v":0},{"$f":"'Schedule XXIII'!P51","v":0},{"$f":"'Schedule XXIII'!S51","v":0},null,{"$f":"'Interest Rate-Liquidity (Rev.)'!S91","v":0},{"$f":"'Interest Rate-Liquidity (Rev.)'!T91","v":0},null,null,0]
[null,{"$f":"'Interest Rate-Liquidity (Rev.)'!B92","v":"Other currency 10"},null,{"$f":"'Schedule XXIII'!M52","v":0},{"$f":"'Schedule XXIII'!P52","v":0},{"$f":"'Schedule XXIII'!S52","v":0},null,{"$f":"'Interest Rate-Liquidity (Rev.)'!S92","v":0},{"$f":"'Interest Rate-Liquidity (Rev.)'!T92","v":0},null,null,0]
[null,{"$f":"'Interest Rate-Liquidity (Rev.)'!B93","v":"Total IR - Derivatives"},null,{"$f":"SUM(D272:D289)","v":0},0,0,null,0,0,null,{"$f":"SUM(K272:K289)","v":0},{"$f":"SUM(L272:L289)","v":0}]
[null,{"$f":"'Interest Rate-Liquidity (Rev.)'!B94","v":"Total IR - UP"},null,{"$f":"D269+D290","v":0},{"$f":"E269+E290","v":0},{"$f":"F269+F290","v":0},null,{"$f":"MAX(0,H269+H290)","v":0},{"$f":"MAX(0,I269+I290)","v":0},null,{"$f":"MAX(0,K269+K290)","v":0},{"$f":"MAX(0,L269+L290)","v":0}]
[]
[null,{"$f":"'Interest Rate-Liquidity (Rev.)'!B97","v":"Overall Interest Rate Risk"},null,null,null,null,"Scenario-Based Approach"]
[]
[null,{"$f":"'Interest Rate-Liquidity (Rev.)'!B99","v":"Interest Rates Down Shock - without Management Actions"},null,null,null,{"$f":"H248","v":0}]
[null,{"$f":"'Interest Rate-Liquidity (Rev.)'!B100","v":"Interest Rates Up Shock - without Management Actions"},null,null,null,{"$f":"H269","v":0}]
[null,{"$f":"'Interest Rate-Liquidity (Rev.)'!B101","v":"Max(IR Down, IR Up) - without MA"},null,null,null,{"$f":"MAX(0,F295,F296)","v":0}]
[]
[null,{"$f":"'Interest Rate-Liquidity (Rev.)'!B103","v":"Interest Rate Risk without Management Actions"},null,null,null,{"$f":"IF(F305=\"UP\",F296,F295)","v":0},"Adj. IR Risk Cap. Req.",{"$f":"'Interest Rate-Liquidity (Rev.)'!D115","v":0},{"$f":"'Interest Rate-Liquidity (Rev.)'!E115","v":0},null,{"$f":"H299","v":0},{"$f":"I299","v":0}]
[]
[]
[null,{"$f":"'Interest Rate-Liquidity (Rev.)'!B106","v":"Interest Rates Down Shock - with Management Actions"},null,null,null,{"$f":"I248","v":0}]
[null,{"$f":"'Interest Rate-Liquidity (Rev.)'!B107","v":"Interest Rates Up Shock - with Management Actions"},null,null,null,{"$f":"I269","v":0}]
[null,{"$f":"'Interest Rate-Liquidity (Rev.)'!B108","v":"Max(IR Down, IR Up) - with MA"},null,null,null,{"$f":"MAX(F302,F303)","v":0}]
[null,{"$f":"'Interest Rate-Liquidity (Rev.)'!B109","v":"Biting scenario"},null,null,null,{"$f":"IF(F304=F302,\"DOWN\",\"UP\")","v":"DOWN"},null,"W/O Mgmt. Action","Mgmt. Action",null,"W/O Mgmt. Action","Mgmt. Action"]
[]
[null,{"$f":"'Interest Rate-Liquidity (Rev.)'!B111","v":"Interest Rate Risk with Management Actions"},null,null,null,{"$f":"F304","v":0}]
[]
[null,"Interest Rate Risk capital requirement",null,null,null,null,null,{"$f":"'Interest Rate-Liquidity (Rev.)'!D117","v":0},{"$f":"'Interest Rate-Liquidity (Rev.)'!E117","v":0},null,{"$f":"H309","v":0},{"$f":"I309","v":0}]
[]
[null,null,"ASSETS",null,null,null,null,"CAPITAL","CAPITAL",null,"USER","USER"]
[null,null,null,"Long Exposures",null,"Long Exposures",null,"CHARGE","CHARGE",null,"CAPITAL","REQUIRED"]
[null,"CURRENCY RISK","Assets - Excluding currency-sensitive derivatives","Currency Derivatives Qualifying as held for risk-mitigation purposes","Currency Derivatives Not Qualifying as held for risk-mitigation purposes","Currency Derivatives Qualifying as held for risk-mitigation purposes","Currency Derivatives Not Qualifying as held for risk-mitigation purposes","W/O MGMT","W MGMT",null,"FACTOR","CAPITAL"]
[]
[null,{"$f":"'Currency Risk (Revised)'!B12","v":"United States Dollars"},{"$f":"'Schedule XXA'!D10","v":0},{"$f":"'Schedule XXA'!F10","v":0},{"$f":"'Schedule XXA'!H10","v":0},{"$f":"'Schedule XXA'!J10","v":0},{"$f":"'Schedule XXA'!L10","v":0},{"$f":"'Currency Risk (Revised)'!X12","v":0},{"$f":"'Currency Risk (Revised)'!Y12","v":0},null,null,{"$f":"MAX(0,IF(K315=\"\",H315,K315*SUM(C315:G315)))","v":0}]
[null,{"$f":"'Currency Risk (Revised)'!B13","v":"Bermuda Dollars"},{"$f":"'Schedule XXA'!D11","v":0},{"$f":"'Schedule XXA'!F11","v":0},{"$f":"'Schedule XXA'!H11","v":0},{"$f":"'Schedule XXA'!J11","v":0},{"$f":"'Schedule XXA'!L11","v":0},{"$f":"'Currency Risk (Revised)'!X13","v":0},{"$f":"'Currency Risk (Revised)'!Y13","v":0},null,null,{"$f":"MAX(0,IF(K316=\"\",H316,K316*SUM(C316:G316)))","v":0}]
[null,{"$f":"'Currency Risk (Revised)'!B14","v":"Qatar Riyals"},{"$f":"'Schedule XXA'!D12","v":0},{"$f":"'Schedule XXA'!F12","v":0},{"$f":"'Schedule XXA'!H12","v":0},{"$f":"'Schedule XXA'!J12","v":0},{"$f":"'Schedule XXA'!L12","v":0},{"$f":"'Currency Risk (Revised)'!X14","v":0},{"$f":"'Currency Risk (Revised)'!Y14","v":0},null,null,{"$f":"MAX(0,IF(K317=\"\",H317,K317*SUM(C317:G317)))","v":0}]
[null,{"$f":"'Currency Risk (Revised)'!B15","v":"Hong Kong Dollars"},{"$f":"'Schedule XXA'!D13","v":0},{"$f":"'Schedule XXA'!F13","v":0},{"$f":"'Schedule XXA'!H13","v":0},{"$f":"'Schedule XXA'!J13","v":0},{"$f":"'Schedule XXA'!L13","v":0},{"$f":"'Currency Risk (Revised)'!X15","v":0},{"$f":"'Currency Risk (Revised)'!Y15","v":0},null,null,0]
[null,{"$f":"'Currency Risk (Revised)'!B16","v":"Euro"},{"$f":"'Schedule XXA'!D14","v":0},{"$f":"'Schedule XXA'!F14","v":0},{"$f":"'Schedule XXA'!H14","v":0},{"$f":"'Schedule XXA'!J14","v":0},{"$f":"'Schedule XXA'!L14","v":0},{"$f":"'Currency Risk (Revised)'!X16","v":0},{"$f":"'Currency Risk (Revised)'!Y16","v":0},null,null,0]
[null,{"$f":"'Currency Risk (Revised)'!B17","v":"Denmark Kroner"},{"$f":"'Schedule XXA'!D15","v":0},{"$f":"'Schedule XXA'!F15","v":0},{"$f":"'Schedule XXA'!H15","v":0},{"$f":"'Schedule XXA'!J15","v":0},{"$f":"'Schedule XXA'!L15","v":0},{"$f":"'Currency Risk (Revised)'!X17","v":0},{"$f":"'Currency Risk (Revised)'!Y17","v":0},null,null,0]
[null,{"$f":"'Currency Risk (Revised)'!B18","v":"Bulgaria Leva"},{"$f":"'Schedule XXA'!D16","v":0},{"$f":"'Schedule XXA'!F16","v":0},{"$f":"'Schedule XXA'!H16","v":0},{"$f":"'Schedule XXA'!J16","v":0},{"$f":"'Schedule XXA'!L16","v":0},{"$f":"'Currency Risk (Revised)'!X18","v":0},{"$f":"'Currency Risk (Revised)'!Y18","v":0},null,null,0]
[null,{"$f":"'Currency Risk (Revised)'!B19","v":"West African CFA Francs"},{"$f":"'Schedule XXA'!D17","v":0},{"$f":"'Schedule XXA'!F17","v":0},{"$f":"'Schedule XXA'!H17","v":0},{"$f":"'Schedule XXA'!J17","v":0},{"$f":"'Schedule XXA'!L17","v":0},{"$f":"'Currency Risk (Revised)'!X19","v":0},{"$f":"'Currency Risk (Revised)'!Y19","v":0},null,null,0]
[null,{"$f":"'Currency Risk (Revised)'!B20","v":"Central African CFA Francs"},{"$f":"'Schedule XXA'!D18","v":0},{"$f":"'Schedule XXA'!F18","v":0},{"$f":"'Schedule XXA'!H18","v":0},{"$f":"'Schedule XXA'!J18","v":0},{"$f":"'Schedule XXA'!L18","v":0},{"$f":"'Currency Risk (Revised)'!X20","v":0},{"$f":"'Currency Risk (Revised)'!Y20","v":0},null,null,0]
[null,{"$f":"'Currency Risk (Revised)'!B21","v":"Comorian Francs"},{"$f":"'Schedule XXA'!D19","v":0},{"$f":"'Schedule XXA'!F19","v":0},{"$f":"'Schedule XXA'!H19","v":0},{"$f":"'Schedule XXA'!J19","v":0},{"$f":"'Schedule XXA'!L19","v":0},{"$f":"'Currency Risk (Revised)'!X21","v":0},{"$f":"'Currency Risk (Revised)'!Y21","v":0},null,null,0]
[null,{"$f":"'Currency Risk (Revised)'!B22","v":"United Kingdom Pounds"},{"$f":"'Schedule XXA'!D20","v":0},{"$f":"'Schedule XXA'!F20","v":0},{"$f":"'Schedule XXA'!H20","v":0},{"$f":"'Schedule XXA'!J20","v":0},{"$f":"'Schedule XXA'!L20","v":0},{"$f":"'Currency Risk (Revised)'!X22","v":0},{"$f":"'Currency Risk (Revised)'!Y22","v":0},null,null,0]
[null,{"$f":"'Currency Risk (Revised)'!B23","v":"Canada Dollars"},{"$f":"'Schedule XXA'!D21","v":0},{"$f":"'Schedule XXA'!F21","v":0},{"$f":"'Schedule XXA'!H21","v":0},{"$f":"'Schedule XXA'!J21","v":0},{"$f":"'Schedule XXA'!L21","v":0},{"$f":"'Currency Risk (Revised)'!X23","v":0},{"$f":"'Currency Risk (Revised)'!Y23","v":0},null,null,0]
[null,{"$f":"'Currency Risk (Revised)'!B24","v":"Japan Yen"},{"$f":"'Schedule XXA'!D22","v":0},{"$f":"'Schedule XXA'!F22","v":0},{"$f":"'Schedule XXA'!H22","v":0},{"$f":"'Schedule XXA'!J22","v":0},{"$f":"'Schedule XXA'!L22","v":0},{"$f":"'Currency Risk (Revised)'!X24","v":0},{"$f":"'Currency Risk (Revised)'!Y24","v":0},null,null,0]
[null,{"$f":"'Currency Risk (Revised)'!B25","v":"Other currency 1"},{"$f":"'Schedule XXA'!D23","v":0},{"$f":"'Schedule XXA'!F23","v":0},{"$f":"'Schedule XXA'!H23","v":0},{"$f":"'Schedule XXA'!J23","v":0},{"$f":"'Schedule XXA'!L23","v":0},{"$f":"'Currency Risk (Revised)'!X25","v":0},{"$f":"'Currency Risk (Revised)'!Y25","v":0},null,null,0]
[null,{"$f":"'Currency Risk (Revised)'!B26","v":"Other currency 2"},{"$f":"'Schedule XXA'!D24","v":0},{"$f":"'Schedule XXA'!F24","v":0},{"$f":"'Schedule XXA'!H24","v":0},{"$f":"'Schedule XXA'!J24","v":0},{"$f":"'Schedule XXA'!L24","v":0},{"$f":"'Currency Risk (Revised)'!X26","v":0},{"$f":"'Currency Risk (Revised)'!Y26","v":0},null,null,0]
[null,{"$f":"'Currency Risk (Revised)'!B27","v":"Other currency 3"},{"$f":"'Schedule XXA'!D25","v":0},{"$f":"'Schedule XXA'!F25","v":0},{"$f":"'Schedule XXA'!H25","v":0},{"$f":"'Schedule XXA'!J25","v":0},{"$f":"'Schedule XXA'!L25","v":0},{"$f":"'Currency Risk (Revised)'!X27","v":0},{"$f":"'Currency Risk (Revised)'!Y27","v":0},null,null,0]
[null,{"$f":"'Currency Risk (Revised)'!B28","v":"Other currency 4"},{"$f":"'Schedule XXA'!D26","v":0},{"$f":"'Schedule XXA'!F26","v":0},{"$f":"'Schedule XXA'!H26","v":0},{"$f":"'Schedule XXA'!J26","v":0},{"$f":"'Schedule XXA'!L26","v":0},{"$f":"'Currency Risk (Revised)'!X28","v":0},{"$f":"'Currency Risk (Revised)'!Y28","v":0},null,null,0]
[null,{"$f":"'Currency Risk (Revised)'!B29","v":"Other currency 5"},{"$f":"'Schedule XXA'!D27","v":0},{"$f":"'Schedule XXA'!F27","v":0},{"$f":"'Schedule XXA'!H27","v":0},{"$f":"'Schedule XXA'!J27","v":0},{"$f":"'Schedule XXA'!L27","v":0},{"$f":"'Currency Risk (Revised)'!X29","v":0},{"$f":"'Currency Risk (Revised)'!Y29","v":0},null,null,0]
[null,{"$f":"'Currency Risk (Revised)'!B30","v":"Other currency 6"},{"$f":"'Schedule XXA'!D28","v":0},{"$f":"'Schedule XXA'!F28","v":0},{"$f":"'Schedule XXA'!H28","v":0},{"$f":"'Schedule XXA'!J28","v":0},{"$f":"'Schedule XXA'!L28","v":0},{"$f":"'Currency Risk (Revised)'!X30","v":0},{"$f":"'Currency Risk (Revised)'!Y30","v":0},null,null,0]
[null,{"$f":"'Currency Risk (Revised)'!B31","v":"Other currency 7"},{"$f":"'Schedule XXA'!D29","v":0},{"$f":"'Schedule XXA'!F29","v":0},{"$f":"'Schedule XXA'!H29","v":0},{"$f":"'Schedule XXA'!J29","v":0},{"$f":"'Schedule XXA'!L29","v":0},{"$f":"'Currency Risk (Revised)'!X31","v":0},{"$f":"'Currency Risk (Revised)'!Y31","v":0},null,null,0]
[null,{"$f":"'Currency Risk (Revised)'!B32","v":"Other currency 8"},{"$f":"'Schedule XXA'!D30","v":0},{"$f":"'Schedule XXA'!F30","v":0},{"$f":"'Schedule XXA'!H30","v":0},{"$f":"'Schedule XXA'!J30","v":0},{"$f":"'Schedule XXA'!L30","v":0},{"$f":"'Currency Risk (Revised)'!X32","v":0},{"$f":"'Currency Risk (Revised)'!Y32","v":0},null,null,0]
[null,{"$f":"'Currency Risk (Revised)'!B33","v":"Other currency 9"},{"$f":"'Schedule XXA'!D31","v":0},{"$f":"'Schedule XXA'!F31","v":0},{"$f":"'Schedule XXA'!H31","v":0},{"$f":"'Schedule XXA'!J31","v":0},{"$f":"'Schedule XXA'!L31","v":0},{"$f":"'Currency Risk (Revised)'!X33","v":0},{"$f":"'Currency Risk (Revised)'!Y33","v":0},null,null,0]
[null,{"$f":"'Currency Risk (Revised)'!B34","v":"Other currency 10"},{"$f":"'Schedule XXA'!D32","v":0},{"$f":"'Schedule XXA'!F32","v":0},{"$f":"'Schedule XXA'!H32","v":0},{"$f":"'Schedule XXA'!J32","v":0},{"$f":"'Schedule XXA'!L32","v":0},{"$f":"'Currency Risk (Revised)'!X34","v":0},{"$f":"'Currency Risk (Revised)'!Y34","v":0},null,null,0]
[null,{"$f":"'Currency Risk (Revised)'!B36","v":"Total"},{"$f":"SUM(C315:C337)","v":0},{"$f":"SUM(D315:D337)","v":0},{"$f":"SUM(E315:E337)","v":0},{"$f":"SUM(F315:F337)","v":0},{"$f":"SUM(G315:G337)","v":0},0,0,null,{"$f":"SUM(K315:K337)","v":0},{"$f":"SUM(L315:L337)","v":0}]
[]
[null,null,null,null,null,null,null,"W/O Mgmt. Action","Mgmt. Action",null,"W/O Mgmt. Action","Mgmt. Action"]
[]
[null,"CURRENCY RISK",null,null,null,null,null,{"$f":"IF(SUM(H315:H337)>=0,SUM(H315:H337),0)","v":0},{"$f":"IF(SUM(I315:I337)>=0,SUM(I315:I337),0)","v":0},null,{"$f":"IF(SUM(L315:L337)>=0,SUM(L315:L337),0)","v":0},{"$f":"IF(SUM(L315:L337)>=0,SUM(L315:L337),0)","v":0}]
[]
[null,"CONCENTRATION RISK",null,null,null,null,null,"STANDARD","STANDARD",null,"USER","USER"]
[null,null,null,null,null,null,"EXPOSURE","CAPITAL","REQUIRED",null,"CAPITAL","REQUIRED"]
[null,"ASSET TYPE",null,null,null,null,"VALUE","FACTOR","CAPITAL",null,"FACTOR","CAPITAL"]
[]
[null,"(a) Cash and Cash Equivalents"]
[null,"BSCR Rating 0",null,null,null,null,{"$f":"'Concentration Risk (Revised)'!D10","v":0},{"$f":"+'Fixed Income Investments'!E83","v":0},{"$f":"IF(G349<0,0,G349*H349)","v":0},null,null,{"$f":"MAX(0,IF(K349=\"\",H349*G349,G349*K349))","v":0}]
[null,"BSCR Rating 1",null,null,null,null,{"$f":"'Concentration Risk (Revised)'!D11","v":0},{"$f":"+'Fixed Income Investments'!E84","v":1E-3},{"$f":"IF(G350<0,0,G350*H350)","v":0},null,null,{"$f":"MAX(0,IF(K350=\"\",H350*G350,G350*K350))","v":0}]
[null,"BSCR Rating 2",null,null,null,null,{"$f":"'Concentration Risk (Revised)'!D12","v":0},{"$f":"+'Fixed Income Investments'!E85","v":2E-3},{"$f":"IF(G351<0,0,G351*H351)","v":0},null,null,{"$f":"MAX(0,IF(K351=\"\",H351*G351,G351*K351))","v":0}]
[null,"BSCR Rating 3",null,null,null,null,{"$f":"'Concentration Risk (Revised)'!D13","v":0},{"$f":"+'Fixed Income Investments'!E86","v":3.0000000000000001E-3},0,null,null,0]
[null,"BSCR Rating 4",null,null,null,null,{"$f":"'Concentration Risk (Revised)'!D14","v":0},{"$f":"+'Fixed Income Investments'!E87","v":5.0000000000000001E-3},0,null,null,0]
[null,"BSCR Rating 5",null,null,null,null,{"$f":"'Concentration Risk (Revised)'!D15","v":0},{"$f":"+'Fixed Income Investments'!E88","v":1.4999999999999999E-2},0,null,null,0]
[null,"BSCR Rating 6",null,null,null,null,{"$f":"'Concentration Risk (Revised)'!D16","v":0},{"$f":"+'Fixed Income Investments'!E89","v":0.04},0,null,null,0]
[null,"BSCR Rating 7",null,null,null,null,{"$f":"'Concentration Risk (Revised)'!D17","v":0},{"$f":"+'Fixed Income Investments'!E90","v":0.06},0,null,null,0]
[null,"BSCR Rating 8",null,null,null,null,{"$f":"'Concentration Risk (Revised)'!D18","v":0},{"$f":"+'Fixed Income Investments'!E91","v":0.09},0,null,null,0]
[]
[null,"(a)  SUBTOTAL - CASH AND CASH EQUIVALENTS",null,null,null,null,{"$f":"SUM(G349:G357)","v":0},null,{"$f":"SUM(I349:I357)","v":0},null,null,{"$f":"SUM(L349:L357)","v":0}]
[]
[null,"(b) Corporate & Sovereign Bonds"]
[null,"BSCR Rating 0",null,null,null,null,{"$f":"'Concentration Risk (Revised)'!D23","v":0},{"$f":"+H15","v":0},{"$f":"IF(G362<0,0,G362*H362)","v":0},null,null,{"$f":"MAX(0,IF(K362=\"\",H362*G362,G362*K362))","v":0}]
[null,"BSCR Rating 1",null,null,null,null,{"$f":"'Concentration Risk (Revised)'!D24","v":0},4.0000000000000001E-3,0,null,null,{"$f":"MAX(0,IF(K363=\"\",H363*G363,G363*K363))","v":0}]
[null,"BSCR Rating 2",null,null,null,null,{"$f":"'Concentration Risk (Revised)'!D25","v":0},8.0000000000000002E-3,0,null,null,{"$f":"MAX(0,IF(K364=\"\",H364*G364,G364*K364))","v":0}]
[null,"BSCR Rating 3",null,null,null,null,{"$f":"'Concentration Risk (Revised)'!D26","v":0},1.4999999999999999E-2,0,null,null,0]
[null,"BSCR Rating 4",null,null,null,null,{"$f":"'Concentration Risk (Revised)'!D27","v":0},0.03,0,null,null,0]
[null,"BSCR Rating 5",null,null,null,null,{"$f":"'Concentration Risk (Revised)'!D28","v":0},0.08,0,null,null,0]
[null,"BSCR Rating 6",null,null,null,null,{"$f":"'Concentration Risk (Revised)'!D29","v":0},0.15,0,null,null,0]
[null,"BSCR Rating 7",null,null,null,null,{"$f":"'Concentration Risk (Revised)'!D30","v":0},0.26300000000000001,0,null,null,0]
[null,"BSCR Rating 8",null,null,null,null,{"$f":"'Concentration Risk (Revised)'!D31","v":0},0.35,0,null,null,0]
[]
[null,"(b)  SUBTOTAL - CORPORATE & SOVEREIGN BONDS",null,null,null,null,{"$f":"SUM(G362:G370)","v":0},null,{"$f":"SUM(I362:I370)","v":0},null,null,{"$f":"SUM(L362:L370)","v":0}]
[]
[null,"(c) Residential Mortage-Backed Securities"]
[null,"BSCR Rating 0",null,null,null,null,{"$f":"'Concentration Risk (Revised)'!D36","v":0},0,{"$f":"IF(G375<0,0,G375*H375)","v":0},null,null,{"$f":"MAX(0,IF(K375=\"\",H375*G375,G375*K375))","v":0}]
[null,"BSCR Rating 1",null,null,null,null,{"$f":"'Concentration Risk (Revised)'!D37","v":0},{"$f":"+H30","v":6.0000000000000001E-3},0,null,null,{"$f":"MAX(0,IF(K376=\"\",H376*G376,G376*K376))","v":0}]
[null,"BSCR Rating 2",null,null,null,null,{"$f":"'Concentration Risk (Revised)'!D38","v":0},1.2E-2,0,null,null,{"$f":"MAX(0,IF(K377=\"\",H377*G377,G377*K377))","v":0}]
[null,"BSCR Rating 3",null,null,null,null,{"$f":"'Concentration Risk (Revised)'!D39","v":0},0.02,0,null,null,0]
[null,"BSCR Rating 4",null,null,null,null,{"$f":"'Concentration Risk (Revised)'!D40","v":0},0.04,0,null,null,0]
[null,"BSCR Rating 5",null,null,null,null,{"$f":"'Concentration Risk (Revised)'!D41","v":0},0.11,0,null,null,0]
[null,"BSCR Rating 6",null,null,null,null,{"$f":"'Concentration Risk (Revised)'!D42","v":0},0.25,0,null,null,0]
[null,"BSCR Rating 7",null,null,null,null,{"$f":"'Concentration Risk (Revised)'!D43","v":0},0.35,0,null,null,0]
[null,"BSCR Rating 8",null,null,null,null,{"$f":"'Concentration Risk (Revised)'!D44","v":0},0.35,0,null,null,0]
[]
[null,"(c)  SUBTOTAL - RESIDENTIAL MORTGAGE-BACKED SECURITIES",null,null,null,null,{"$f":"SUM(G375:G383)","v":0},null,{"$f":"SUM(I375:I383)","v":0},null,null,{"$f":"SUM(L375:L383)","v":0}]
[]
[null,"(d) Commercial Mortgage-Backed Securities / Asset Backed Securities"]
[null,"BSCR Rating 0",null,null,null,null,{"$f":"'Concentration Risk (Revised)'!D49","v":0},0,{"$f":"IF(G388<0,0,G388*H388)","v":0},null,null,{"$f":"MAX(0,IF(K388=\"\",H388*G388,G388*K388))","v":0}]
[null,"BSCR Rating 1",null,null,null,null,{"$f":"'Concentration Risk (Revised)'!D50","v":0},{"$f":"+H44","v":5.0000000000000001E-3},0,null,null,{"$f":"MAX(0,IF(K389=\"\",H389*G389,G389*K389))","v":0}]
[null,"BSCR Rating 2",null,null,null,null,{"$f":"'Concentration Risk (Revised)'!D51","v":0},0.01,0,null,null,{"$f":"MAX(0,IF(K390=\"\",H390*G390,G390*K390))","v":0}]
[null,"BSCR Rating 3",null,null,null,null,{"$f":"'Concentration Risk (Revised)'!D52","v":0},1.7999999999999999E-2,0,null,null,0]
[null,"BSCR Rating 4",null,null,null,null,{"$f":"'Concentration Risk (Revised)'!D53","v":0},3.5000000000000003E-2,0,null,null,0]
[null,"BSCR Rating 5",null,null,null,null,{"$f":"'Concentration Risk (Revised)'!D54","v":0},0.1,0,null,null,0]
[null,"BSCR Rating 6",null,null,null,null,{"$f":"'Concentration Risk (Revised)'!D55","v":0},0.2,0,null,null,0]
[null,"BSCR Rating 7",null,null,null,null,{"$f":"'Concentration Risk (Revised)'!D56","v":0},0.3,0,null,null,0]
[null,"BSCR Rating 8",null,null,null,null,{"$f":"'Concentration Risk (Revised)'!D57","v":0},0.35,0,null,null,0]
[]
[null,"(d)  SUBTOTAL - COMMERCIAL MORTGAGE-BACKED SECURITIES / ASSET-BACKED SECURITIES",null,null,null,null,{"$f":"SUM(G388:G396)","v":0},null,{"$f":"SUM(I388:I396)","v":0},null,null,{"$f":"SUM(L388:L396)","v":0}]
[]
[null,"(e) Bond Mutual Funds"]
[null,"BSCR Rating 0",null,null,null,null,{"$f":"'Concentration Risk (Revised)'!D62","v":0},{"$f":"+H58","v":0},{"$f":"IF(G401<0,0,G401*H401)","v":0},null,null,{"$f":"MAX(0,IF(K401=\"\",H401*G401,G401*K401))","v":0}]
[null,"BSCR Rating 1",null,null,null,null,{"$f":"'Concentration Risk (Revised)'!D63","v":0},4.0000000000000001E-3,0,null,null,{"$f":"MAX(0,IF(K402=\"\",H402*G402,G402*K402))","v":0}]
[null,"BSCR Rating 2",null,null,null,null,{"$f":"'Concentration Risk (Revised)'!D64","v":0},8.0000000000000002E-3,0,null,null,{"$f":"MAX(0,IF(K403=\"\",H403*G403,G403*K403))","v":0}]
[null,"BSCR Rating 3",null,null,null,null,{"$f":"'Concentration Risk (Revised)'!D65","v":0},1.4999999999999999E-2,0,null,null,0]
[null,"BSCR Rating 4",null,null,null,null,{"$f":"'Concentration Risk (Revised)'!D66","v":0},0.03,0,null,null,0]
[null,"BSCR Rating 5",null,null,null,null,{"$f":"'Concentration Risk (Revised)'!D67","v":0},0.08,0,null,null,0]
[null,"BSCR Rating 6",null,null,null,null,{"$f":"'Concentration Risk (Revised)'!D68","v":0},0.15,0,null,null,0]
[null,"BSCR Rating 7",null,null,null,null,{"$f":"'Concentration Risk (Revised)'!D69","v":0},0.26300000000000001,0,null,null,0]
[null,"BSCR Rating 8",null,null,null,null,{"$f":"'Concentration Risk (Revised)'!D70","v":0},0.35,0,null,null,0]
[]
[null,"(e)  SUBTOTAL - BOND MUTUAL FUNDS",null,null,null,null,{"$f":"SUM(G401:G409)","v":0},null,{"$f":"SUM(I401:I409)","v":0},null,null,{"$f":"SUM(L401:L409)","v":0}]
[]
[null,"(f) Preferred Shares"]
[null,"BSCR Rating 0",null,null,null,null,{"$f":"'Concentration Risk (Revised)'!D75","v":0},{"$f":"+'Concentration Risk'!E75","v":0},{"$f":"IF(G414<0,0,G414*H414)","v":0},null,null,{"$f":"MAX(0,IF(K414=\"\",H414*G414,G414*K414))","v":0}]
[null,"BSCR Rating 1",null,null,null,null,{"$f":"'Concentration Risk (Revised)'!D76","v":0},{"$f":"+'Concentration Risk'!E76","v":6.0000000000000001E-3},{"$f":"IF(G415<0,0,G415*H415)","v":0},null,null,{"$f":"MAX(0,IF(K415=\"\",H415*G415,G415*K415))","v":0}]
[null,"BSCR Rating 2",null,null,null,null,{"$f":"'Concentration Risk (Revised)'!D77","v":0},{"$f":"+'Concentration Risk'!E77","v":1.2E-2},0,null,null,0]
[null,"BSCR Rating 3",null,null,null,null,{"$f":"'Concentration Risk (Revised)'!D78","v":0},{"$f":"+'Concentration Risk'!E78","v":0.02},0,null,null,0]
[null,"BSCR Rating 4",null,null,null,null,{"$f":"'Concentration Risk (Revised)'!D79","v":0},{"$f":"+'Concentration Risk'!E79","v":0.04},0,null,null,0]
[null,"BSCR Rating 5",null,null,null,null,{"$f":"'Concentration Risk (Revised)'!D80","v":0},{"$f":"+'Concentration Risk'!E80","v":0.11},0,null,null,0]
[null,"BSCR Rating 6",null,null,null,null,{"$f":"'Concentration Risk (Revised)'!D81","v":0},{"$f":"+'Concentration Risk'!E81","v":0.25},0,null,null,0]
[null,"BSCR Rating 7",null,null,null,null,{"$f":"'Concentration Risk (Revised)'!D82","v":0},{"$f":"+'Concentration Risk'!E82","v":0.35},0,null,null,0]
[null,"BSCR Rating 8",null,null,null,null,{"$f":"'Concentration Risk (Revised)'!D83","v":0},{"$f":"+'Concentration Risk'!E83","v":0.35},0,null,null,0]
[]
[null,"(f)  SUBTOTAL - PREFERRED SHARES",null,null,null,null,{"$f":"SUM(G414:G422)","v":0},null,{"$f":"SUM(I414:I422)","v":0},null,null,{"$f":"SUM(L414:L422)","v":0}]
[]
[null,"(g) Mortgage Loans"]
[null,"Insured/Guaranteed Mortgages",null,null,null,null,{"$f":"'Concentration Risk (Revised)'!D88","v":0},{"$f":"+'Concentration Risk'!E88","v":3.0000000000000001E-3},{"$f":"IF(G427<0,0,G427*H427)","v":0},null,null,{"$f":"MAX(0,IF(K427=\"\",H427*G427,G427*K427))","v":0}]
[null,"Other Commercial and Farm Mortgages",null,null,null,null,{"$f":"'Concentration Risk (Revised)'!D89","v":0},{"$f":"+'Concentration Risk'!E89","v":0.05},{"$f":"IF(G428<0,0,G428*H428)","v":0},null,null,{"$f":"MAX(0,IF(K428=\"\",H428*G428,G428*K428))","v":0}]
[null,"Other Residential Mortgages",null,null,null,null,{"$f":"'Concentration Risk (Revised)'!D90","v":0},{"$f":"+'Concentration Risk'!E90","v":1.4999999999999999E-2},{"$f":"IF(G429<0,0,G429*H429)","v":0},null,null,{"$f":"MAX(0,IF(K429=\"\",H429*G429,G429*K429))","v":0}]
[null,"Mortgages Not In Good Standing",null,null,null,null,{"$f":"'Concentration Risk (Revised)'!D91","v":0},{"$f":"+'Concentration Risk'!E91","v":0.25},{"$f":"IF(G430<0,0,G430*H430)","v":0},null,null,{"$f":"MAX(0,IF(K430=\"\",H430*G430,G430*K430))","v":0}]
[]
[null,"(g)  SUBTOTAL - Mortgage Loans",null,null,null,null,{"$f":"SUM(G426:G430)","v":0},null,{"$f":"SUM(I426:I430)","v":0},null,null,{"$f":"SUM(L426:L430)","v":0}]
[]
[null,"(h) Other Asset Classes"]
[null,"Infrastructure (Non-affiliate holdings, non-duration based)",null,null,null,null,{"$f":"'Concentration Risk (Revised)'!D96","v":0},{"$f":"'Concentration Risk (Revised)'!E96","v":0.25},{"$f":"IF(G435<0,0,G435*H435)","v":0},null,null,{"$f":"MAX(0,IF(K435=\"\",H435*G435,G435*K435))","v":0}]
[null,"Listed Equity Securities in Developed Markets",null,null,null,null,{"$f":"'Concentration Risk (Revised)'!D97","v":0},{"$f":"'Concentration Risk (Revised)'!E97","v":0.35},{"$f":"IF(G436<0,0,G436*H436)","v":0},null,null,{"$f":"MAX(0,IF(K436=\"\",H436*G436,G436*K436))","v":0}]
[null,"Other Equities",null,null,null,null,{"$f":"'Concentration Risk (Revised)'!D98","v":0},{"$f":"'Concentration Risk (Revised)'!E98","v":0.45},0,null,null,0]
[null,"Strategic Holdings",null,null,null,null,{"$f":"'Concentration Risk (Revised)'!D99","v":0},{"$f":"'Concentration Risk (Revised)'!E99","v":0.2},0,null,null,0]
[null,"Duration Based",null,null,null,null,{"$f":"'Concentration Risk (Revised)'!D100","v":0},{"$f":"'Concentration Risk (Revised)'!E100","v":0.2},{"$f":"IF(G439<0,0,G439*H439)","v":0},null,null,{"$f":"MAX(0,IF(K439=\"\",H439*G439,G439*K439))","v":0}]
[null,"Letters of Credit",null,null,null,null,{"$f":"'Concentration Risk (Revised)'!D101","v":0},{"$f":"'Concentration Risk (Revised)'!E101","v":0.2},0,null,null,0]
[null,"Advances to Affiliates - ",null,null,null,null,{"$f":"'Concentration Risk (Revised)'!D102","v":0},{"$f":"+'Concentration Risk'!E103","v":0.05},0,null,null,0]
[null,"Policy Loans",null,null,null,null,{"$f":"'Concentration Risk (Revised)'!D103","v":0},{"$f":"+'Concentration Risk'!E104","v":0},0,null,null,0]
[null,"Equity Real Estate 1",null,null,null,null,{"$f":"'Concentration Risk (Revised)'!D104","v":0},{"$f":"+'Concentration Risk'!E105","v":0.1},0,null,null,0]
[null,"Equity Real Estate 2",null,null,null,null,{"$f":"'Concentration Risk (Revised)'!D105","v":0},{"$f":"+'Concentration Risk'!E106","v":0.2},0,null,null,0]
[null,"Collateral Loans",null,null,null,null,{"$f":"'Concentration Risk (Revised)'!D106","v":0},{"$f":"+'Concentration Risk'!E107","v":0.05},0,null,null,0]
[]
[null,"(h)  SUBTOTAL - OTHER ASSET CLASSES",null,null,null,null,{"$f":"SUM(G435:G446)","v":0},null,{"$f":"SUM(I435:I446)","v":0},null,null,{"$f":"SUM(L435:L446)","v":0}]
[]
[null,"TOTAL CONCENTRATION RISK",null,null,null,null,{"$f":"G359+G372+G385+G398+G411+G424+G432+G447","v":0},null,{"$f":"I359+I372+I385+I398+I411+I424+I432+I447","v":0},null,null,{"$f":"L359+L372+L385+L398+L411+L424+L432+L447","v":0}]
[]
[null,null,null,null,null,null,null,"STANDARD","STANDARD",null,"USER","USER"]
[null,"TYPE OF ",null,null,null,null,"ASSET","CAPITAL","REQUIRED",null,"CAPITAL","REQUIRED"]
[null,"CREDIT RISK",null,null,null,null,"VALUE","FACTOR","CAPITAL",null,"FACTOR","CAPITAL"]
[]
[null,"(a)  Accounts and Premiums Receivable",null,null,null,null,"(1) ","(2)","(1) x (2)",null,"(3)","(1) x (3)"]
[]
[null,"In Course of Collection",null,null,null,null,{"$f":"'Form 1EBS'!F57","v":0},{"$f":"'Credit Risk (Revised)'!G11","v":0.05},{"$f":"IF(G457<0,0,G457*H457)","v":0},null,null,{"$f":"MAX(0,IF(K457=\"\",H457*G457,G457*K457))","v":0}]
[null,"Deferred - Not Yet Due",null,null,null,null,{"$f":"IF('Form 1SFS'!M68=0,'Form 1SFS'!E68+'Form 1SFS'!I68,'Form 1SFS'!M68)","v":0},{"$f":"'Credit Risk (Revised)'!G12","v":0.05},{"$f":"IF(G458<0,0,G458*H458)","v":0},null,null,{"$f":"MAX(0,IF(K458=\"\",H458*G458,G458*K458))","v":0}]
[null,"Receivables from retrocessional contracts Less: Collateralized Balances",null,null,null,null,{"$f":"'Form 1EBS'!F58-'Form 1EBS'!F179","v":0},{"$f":"'Credit Risk (Revised)'!G13","v":0.1},{"$f":"(G459*H459)","v":0},null,null,{"$f":"IF(K459=\"\",H459*G459,G459*K459)","v":0}]
[]
[null,"(a)  SUBTOTAL - ACCOUNTS AND PREMIUMS RECEIVABLE",null,null,null,null,{"$f":"SUM(G457:G459)","v":0},null,{"$f":"IF(SUM(I457:I459)>=0,SUM(I457:I459),0)","v":0},null,null,{"$f":"IF(SUM(L457:L459)>=0,SUM(L457:L459),0)","v":0}]
[]
[null,"(b)  All Other Receivables"]
[]
[null,"Accrued Investment Income",null,null,null,null,{"$f":"'Form 1EBS'!F54","v":0},{"$f":"'Credit Risk (Revised)'!G19","v":2.5000000000000001E-2},{"$f":"IF(G465<0,0,G465*H465)","v":0},null,null,{"$f":"MAX(0,IF(K465=\"\",H465*G465,G465*K465))","v":0}]
[null,"Advances to Affiliates",null,null,null,null,{"$f":"'Form 1EBS'!F39","v":0},{"$f":"'Credit Risk (Revised)'!G20","v":0.05},{"$f":"IF(G466<0,0,G466*H466)","v":0},null,null,{"$f":"MAX(0,IF(K466=\"\",H466*G466,G466*K466))","v":0}]
[null,"Balances receivable on sale of investments",null,null,null,null,{"$f":"'Form 1EBS'!F77","v":0},{"$f":"'Credit Risk (Revised)'!G21","v":2.5000000000000001E-2},{"$f":"IF(G467<0,0,G467*H467)","v":0},null,null,{"$f":"MAX(0,IF(K467=\"\",H467*G467,G467*K467))","v":0}]
[]
[null,"(b)  SUBTOTAL - ALL OTHER RECEIVABLES",null,null,null,null,{"$f":"SUM(G465:G467)","v":0},null,{"$f":"IF(SUM(I465:I467)>=0,SUM(I465:I467),0)","v":0},null,null,{"$f":"IF(SUM(L465:L467)>=0,SUM(L465:L467),0)","v":0}]
[]
[null,"(c)(i) Particulars of Reinsurance Balances For Current Year By BSCR Rating"]
[]
[null,"BSCR Rating 0 (Domestic Affiliates)",null,null,null,null,{"$f":"'Schedule XVIII (EBS)'!O87","v":0},{"$f":"'Credit Risk (Revised)'!G28","v":0},{"$f":"IF(G473<0,0,G473*H473)","v":0},null,null,{"$f":"MAX(0,IF(K473=\"\",H473*G473,G473*K473))","v":0}]
[null,"BSCR Rating 1",null,null,null,null,{"$f":"'Schedule XVIII (EBS)'!O88","v":0},{"$f":"'Credit Risk (Revised)'!G29","v":7.0000000000000001E-3},{"$f":"IF(G474<0,0,G474*H474)","v":0},null,null,0]
[null,"BSCR Rating 2",null,null,null,null,{"$f":"'Schedule XVIII (EBS)'!O89","v":0},{"$f":"'Credit Risk (Revised)'!G30","v":1.4999999999999999E-2},0,null,null,0]
[null,"BSCR Rating 3",null,null,null,null,{"$f":"'Schedule XVIII (EBS)'!O90","v":0},{"$f":"'Credit Risk (Revised)'!G31","v":3.5000000000000003E-2},0,null,null,0]
[null,"BSCR Rating 4",null,null,null,null,{"$f":"'Schedule XVIII (EBS)'!O91","v":0},{"$f":"'Credit Risk (Revised)'!G32","v":7.0000000000000007E-2},0,null,null,0]
[null,"BSCR Rating 5",null,null,null,null,{"$f":"'Schedule XVIII (EBS)'!O92","v":0},{"$f":"'Credit Risk (Revised)'!G33","v":0.12},0,null,null,0]
[null,"BSCR Rating 6",null,null,null,null,{"$f":"'Schedule XVIII (EBS)'!O93","v":0},{"$f":"'Credit Risk (Revised)'!G34","v":0.2},0,null,null,0]
[null,"BSCR Rating 7",null,null,null,null,{"$f":"'Schedule XVIII (EBS)'!O94","v":0},{"$f":"'Credit Risk (Revised)'!G35","v":0.27},0,null,null,0]
[null,"BSCR Rating 8",null,null,null,null,{"$f":"'Schedule XVIII (EBS)'!O95","v":0},{"$f":"'Credit Risk (Revised)'!G36","v":0.35},0,null,null,0]
[]
[null,"Total",null,null,null,null,{"$f":"SUM(G473:G482)","v":0},null,{"$f":"SUM(I473:I482)","v":0},null,null,{"$f":"SUM(L473:L482)","v":0}]
[]
[null,"Diversification Adjustment at 40%",null,null,null,null,null,null,{"$f":"SUM(I473:I481)*-('Schedule XVIII (EBS)'!O104)","v":0},null,null,{"$f":"SUM(L473:L481)*-('Schedule XVIII (EBS)'!O104)","v":0}]
[]
[null,"(c)(i)  SUBTOTAL - PARTICULARS OF REINSURANCE BALANCES BY BSCR RATING",null,null,null,null,{"$f":"+G483","v":0},null,{"$f":"IF(SUM(I473:I481,I485)>=0,SUM(I473:I481,I485),0)","v":0},null,null,{"$f":"IF(SUM(L473:L481,L485)>=0,SUM(L473:L481,L485),0)","v":0}]
[]
[]
[null,"(c)(ii) Particulars of Reinsurance Balances For Future Premium By BSCR Rating"]
[]
[null,"Gross Premium Risk Charge",null,{"$f":"'Premium Risk (Revised)'!Q59","v":0}]
[null,"Net Premium Risk Charge",null,{"$f":"'Premium Risk (Revised)'!N59","v":0}]
[null,"% of Premiums Ceded Risk",null,{"$f":"D492-D493","v":0}]
[]
[null,"BSCR Rating 0 (Domestic Affiliates)",null,{"$f":"IF($G$483<>0, $D$494*G473/$G$483, 0)","v":0},null,null,{"$f":"IF($D$506=0,0,D496/$D$506)","v":0},{"$f":"'Credit Risk (Revised)'!G51","v":0},{"$f":"IF($D$494<0,0,$D$494*G496*H496)","v":0},null,null,{"$f":"MAX(0,IF(K496=\"\",$D$494*G496*H496,$D$494*G496*K496))","v":0}]
[null,"BSCR Rating 1",null,{"$f":"IF($G$483<>0, $D$494*G474/$G$483, 0)","v":0},null,null,0,{"$f":"'Credit Risk (Revised)'!G52","v":7.0000000000000001E-3},0,null,null,0]
[null,"BSCR Rating 2",null,{"$f":"IF($G$483<>0, $D$494*G475/$G$483, 0)","v":0},null,null,0,{"$f":"'Credit Risk (Revised)'!G53","v":1.4999999999999999E-2},0,null,null,0]
[null,"BSCR Rating 3",null,{"$f":"IF($G$483<>0, $D$494*G476/$G$483, 0)","v":0},null,null,0,{"$f":"'Credit Risk (Revised)'!G54","v":3.5000000000000003E-2},0,null,null,0]
[null,"BSCR Rating 4",null,{"$f":"IF($G$483<>0, $D$494*G477/$G$483, D494)","v":0},null,null,0,{"$f":"'Credit Risk (Revised)'!G55","v":7.0000000000000007E-2},0,null,null,0]
[null,"BSCR Rating 5",null,{"$f":"IF($G$483<>0, $D$494*G478/$G$483, 0)","v":0},null,null,0,{"$f":"'Credit Risk (Revised)'!G56","v":0.12},0,null,null,0]
[null,"BSCR Rating 6",null,{"$f":"IF($G$483<>0, $D$494*G479/$G$483, 0)","v":0},null,null,0,{"$f":"'Credit Risk (Revised)'!G57","v":0.2},0,null,null,0]
[null,"BSCR Rating 7",null,{"$f":"IF($G$483<>0, $D$494*G480/$G$483, 0)","v":0},null,null,0,{"$f":"'Credit Risk (Revised)'!G58","v":0.27},0,null,null,0]
[null,"BSCR Rating 8",null,{"$f":"IF($G$483<>0, $D$494*G481/$G$483, 0)","v":0},null,null,0,{"$f":"'Credit Risk (Revised)'!G59","v":0.35},0,null,null,0]
[]
[null,"Total",null,{"$f":"SUM(D496:D505)","v":0},null,null,{"$f":"SUM(G496:G505)","v":0},null,{"$f":"SUM(I496:I505)","v":0},null,null,{"$f":"SUM(L496:L505)","v":0}]
[]
[null,"Diversification Adjustment at 40%",null,null,null,null,null,null,{"$f":"SUM(I496:I504)*-('Schedule XVIII (EBS)'!O104)","v":0},null,null,{"$f":"SUM(L496:L504)*-('Schedule XVIII (EBS)'!O104)","v":0}]
[]
[null,"(c)(ii)  SUBTOTAL - PARTICULARS OF REINSURANCE BALANCES BY BSCR RATING",null,null,null,null,null,null,{"$f":"IF(SUM(I506:I508)>=0,SUM(I506:I508),0)","v":0},null,null,{"$f":"IF(SUM(L506:L508)>=0,SUM(L506:L508),0)","v":0}]
[]
[null,"(c)  SUBTOTAL - PARTICULARS OF REINSURANCE BALANCES BY BSCR RATING (MAX OF (C)(I) AND (C)(II)",null,null,null,null,null,null,{"$f":"MAX(I487,I510)","v":0},null,null,{"$f":"MAX(L487,L510)","v":0}]
[]
[null,null,null,"Market Value of Derivatives with Positive Market Value","Market Value of Derivatives with Negative Market Value","Market Value of Collateral, Excluding any overcollateralization","STANDARD","HAIRCUT","STANDARD",null,"USER","USER"]
[null,null,null,null,null,null,"CAPITAL","ON","REQUIRED",null,"CAPITAL","REQUIRED"]
[null,null,null,null,null,null,"FACTOR","COLLATERAL","CAPITAL",null,"FACTOR","CAPITAL"]
[]
[null,"(d) Counterparty Default Risk for OTC Derivatives"]
[]
[null,"BSCR Rating 0 ",null,{"$f":"'Schedule IIB (EBS)'!D84+'Schedule IIC (EBS)'!D84+'Schedule IID (EBS)'!D84+'Schedule IIE (EBS)'!D84+'Schedule IIF (EBS)'!D84","v":0},{"$f":"'Schedule IIB (EBS)'!F84+'Schedule IIC (EBS)'!F84+'Schedule IID (EBS)'!F84+'Schedule IIE (EBS)'!F84+'Schedule IIF (EBS)'!F84","v":0},{"$f":"'Schedule IIB (EBS)'!H84+'Schedule IIC (EBS)'!H84+'Schedule IID (EBS)'!H84+'Schedule IIE (EBS)'!H84+'Schedule IIF (EBS)'!H84","v":0},{"$f":"'Credit Risk (Revised)'!F72","v":0},{"$f":"'Credit Risk (Revised)'!G72","v":0.03},{"$f":"MAX(0,D520-(1-H520)*MIN(D520,F520))*G520","v":0},null,null,{"$f":"IF(K520=\"\",I520,MAX(0,D520-(1-H520)*MIN(D520,F520))*K520)","v":0}]
[null,"BSCR Rating 1",null,{"$f":"'Schedule IIB (EBS)'!D85+'Schedule IIC (EBS)'!D85+'Schedule IID (EBS)'!D85+'Schedule IIE (EBS)'!D85+'Schedule IIF (EBS)'!D85","v":0},{"$f":"'Schedule IIB (EBS)'!F85+'Schedule IIC (EBS)'!F85+'Schedule IID (EBS)'!F85+'Schedule IIE (EBS)'!F85+'Schedule IIF (EBS)'!F85","v":0},{"$f":"'Schedule IIB (EBS)'!H85+'Schedule IIC (EBS)'!H85+'Schedule IID (EBS)'!H85+'Schedule IIE (EBS)'!H85+'Schedule IIF (EBS)'!H85","v":0},{"$f":"'Credit Risk (Revised)'!F73","v":4.0000000000000001E-3},{"$f":"'Credit Risk (Revised)'!G73","v":0.03},{"$f":"MAX(0,D521-(1-H521)*MIN(D521,F521))*G521","v":0},null,null,{"$f":"IF(K521=\"\",I521,MAX(0,D521-(1-H521)*MIN(D521,F521))*K521)","v":0}]
[null,"BSCR Rating 2",null,{"$f":"'Schedule IIB (EBS)'!D86+'Schedule IIC (EBS)'!D86+'Schedule IID (EBS)'!D86+'Schedule IIE (EBS)'!D86+'Schedule IIF (EBS)'!D86","v":0},{"$f":"'Schedule IIB (EBS)'!F86+'Schedule IIC (EBS)'!F86+'Schedule IID (EBS)'!F86+'Schedule IIE (EBS)'!F86+'Schedule IIF (EBS)'!F86","v":0},{"$f":"'Schedule IIB (EBS)'!H86+'Schedule IIC (EBS)'!H86+'Schedule IID (EBS)'!H86+'Schedule IIE (EBS)'!H86+'Schedule IIF (EBS)'!H86","v":0},{"$f":"'Credit Risk (Revised)'!F74","v":8.0000000000000002E-3},{"$f":"'Credit Risk (Revised)'!G74","v":0.03},0,null,null,0]
[null,"BSCR Rating 3",null,{"$f":"'Schedule IIB (EBS)'!D87+'Schedule IIC (EBS)'!D87+'Schedule IID (EBS)'!D87+'Schedule IIE (EBS)'!D87+'Schedule IIF (EBS)'!D87","v":0},{"$f":"'Schedule IIB (EBS)'!F87+'Schedule IIC (EBS)'!F87+'Schedule IID (EBS)'!F87+'Schedule IIE (EBS)'!F87+'Schedule IIF (EBS)'!F87","v":0},{"$f":"'Schedule IIB (EBS)'!H87+'Schedule IIC (EBS)'!H87+'Schedule IID (EBS)'!H87+'Schedule IIE (EBS)'!H87+'Schedule IIF (EBS)'!H87","v":0},{"$f":"'Credit Risk (Revised)'!F75","v":1.4999999999999999E-2},{"$f":"'Credit Risk (Revised)'!G75","v":0.03},0,null,null,0]
[null,"BSCR Rating 4",null,{"$f":"'Schedule IIB (EBS)'!D88+'Schedule IIC (EBS)'!D88+'Schedule IID (EBS)'!D88+'Schedule IIE (EBS)'!D88+'Schedule IIF (EBS)'!D88","v":0},{"$f":"'Schedule IIB (EBS)'!F88+'Schedule IIC (EBS)'!F88+'Schedule IID (EBS)'!F88+'Schedule IIE (EBS)'!F88+'Schedule IIF (EBS)'!F88","v":0},{"$f":"'Schedule IIB (EBS)'!H88+'Schedule IIC (EBS)'!H88+'Schedule IID (EBS)'!H88+'Schedule IIE (EBS)'!H88+'Schedule IIF (EBS)'!H88","v":0},{"$f":"'Credit Risk (Revised)'!F76","v":0.03},{"$f":"'Credit Risk (Revised)'!G76","v":0.03},0,null,null,0]
[null,"BSCR Rating 5",null,{"$f":"'Schedule IIB (EBS)'!D89+'Schedule IIC (EBS)'!D89+'Schedule IID (EBS)'!D89+'Schedule IIE (EBS)'!D89+'Schedule IIF (EBS)'!D89","v":0},{"$f":"'Schedule IIB (EBS)'!F89+'Schedule IIC (EBS)'!F89+'Schedule IID (EBS)'!F89+'Schedule IIE (EBS)'!F89+'Schedule IIF (EBS)'!F89","v":0},{"$f":"'Schedule IIB (EBS)'!H89+'Schedule IIC (EBS)'!H89+'Schedule IID (EBS)'!H89+'Schedule IIE (EBS)'!H89+'Schedule IIF (EBS)'!H89","v":0},{"$f":"'Credit Risk (Revised)'!F77","v":0.08},{"$f":"'Credit Risk (Revised)'!G77","v":0.03},0,null,null,0]
[null,"BSCR Rating 6",null,{"$f":"'Schedule IIB (EBS)'!D90+'Schedule IIC (EBS)'!D90+'Schedule IID (EBS)'!D90+'Schedule IIE (EBS)'!D90+'Schedule IIF (EBS)'!D90","v":0},{"$f":"'Schedule IIB (EBS)'!F90+'Schedule IIC (EBS)'!F90+'Schedule IID (EBS)'!F90+'Schedule IIE (EBS)'!F90+'Schedule IIF (EBS)'!F90","v":0},{"$f":"'Schedule IIB (EBS)'!H90+'Schedule IIC (EBS)'!H90+'Schedule IID (EBS)'!H90+'Schedule IIE (EBS)'!H90+'Schedule IIF (EBS)'!H90","v":0},{"$f":"'Credit Risk (Revised)'!F78","v":0.15},{"$f":"'Credit Risk (Revised)'!G78","v":0.03},0,null,null,0]
[null,"BSCR Rating 7",null,{"$f":"'Schedule IIB (EBS)'!D91+'Schedule IIC (EBS)'!D91+'Schedule IID (EBS)'!D91+'Schedule IIE (EBS)'!D91+'Schedule IIF (EBS)'!D91","v":0},{"$f":"'Schedule IIB (EBS)'!F91+'Schedule IIC (EBS)'!F91+'Schedule IID (EBS)'!F91+'Schedule IIE (EBS)'!F91+'Schedule IIF (EBS)'!F91","v":0},{"$f":"'Schedule IIB (EBS)'!H91+'Schedule IIC (EBS)'!H91+'Schedule IID (EBS)'!H91+'Schedule IIE (EBS)'!H91+'Schedule IIF (EBS)'!H91","v":0},{"$f":"'Credit Risk (Revised)'!F79","v":0.26300000000000001},{"$f":"'Credit Risk (Revised)'!G79","v":0.03},0,null,null,0]
[null,"BSCR Rating 8",null,{"$f":"'Schedule IIB (EBS)'!D92+'Schedule IIC (EBS)'!D92+'Schedule IID (EBS)'!D92+'Schedule IIE (EBS)'!D92+'Schedule IIF (EBS)'!D92","v":0},{"$f":"'Schedule IIB (EBS)'!F92+'Schedule IIC (EBS)'!F92+'Schedule IID (EBS)'!F92+'Schedule IIE (EBS)'!F92+'Schedule IIF (EBS)'!F92","v":0},{"$f":"'Schedule IIB (EBS)'!H92+'Schedule IIC (EBS)'!H92+'Schedule IID (EBS)'!H92+'Schedule IIE (EBS)'!H92+'Schedule IIF (EBS)'!H92","v":0},{"$f":"'Credit Risk (Revised)'!F80","v":0.35},{"$f":"'Credit Risk (Revised)'!G80","v":0.03},0,null,null,0]
[null,null,null,{"$f":"SUM(D520:D528)","v":0},{"$f":"SUM(E520:E528)","v":0},{"$f":"SUM(F520:F528)","v":0},null,null,{"$f":"SUM(I520:I528)","v":0},null,{"$f":"SUM(K520:K528)","v":0},{"$f":"SUM(L520:L528)","v":0}]
[]
[null,"(d)  SUBTOTAL - COUNTERPARTY DEFAULT RISK FOR OTC DERIVATIVES",null,null,null,null,null,null,{"$f":"SUM(I520:I528)","v":0},null,null,{"$f":"SUM(L520:L528)","v":0}]
[]
[null,"(d)  TOTAL CREDIT RISK  [ (a) + (b) + (c) ]",null,null,null,null,{"$f":"G487+G469+G461","v":0},null,{"$f":"I469+I461+I512+I531","v":0},null,null,{"$f":"L469+L461+L512+L531","v":0}]
[]
[null,null,null,"GROSS","GEO DIV","GEO DIV","GEO DIV","STANDARD","STANDARD",null,"USER","USER"]
[null,"TYPE OF ",null,"EXPOSURE","NET BASE","NET FP","NET FP","CAPITAL","REQUIRED",null,"CAPITAL","REQUIRED"]
[null,"PREMIUM RISK",null,"MEASURE","EXPOSURE","(EXISTING)","(FUTURE)","FACTOR","CAPITAL",null,"FACTOR","CAPITAL"]
[]
[null,"Property Catastrophe",null,{"$f":"'Premium Risk (Revised)'!D11","v":0},{"$f":"'Premium Risk (Revised)'!H11","v":0},{"$f":"'Premium Risk (Revised)'!I11","v":0},{"$f":"'Premium Risk (Revised)'!J11","v":0},{"$f":"+'Premium Risk'!H11","v":0},{"$f":"IF($E539<0,0,$E539*'Premium Risk (Revised)'!$K11)+IF($F539<0,0,$F539*'Premium Risk (Revised)'!$L11)+IF($G539<0,0,$G539*'Premium Risk (Revised)'!$M11)","v":0},null,null,{"$f":"MAX(0,IF(K539=\"\",I539,IF($E539<0,0,$E539*K539)+IF($F539<0,0,$F539*K539)+IF($G539<0,0,$G539*K539)))","v":0}]
[null,"Property",null,{"$f":"'Premium Risk (Revised)'!D12","v":0},{"$f":"'Premium Risk (Revised)'!H12","v":0},{"$f":"'Premium Risk (Revised)'!I12","v":0},{"$f":"'Premium Risk (Revised)'!J12","v":0},{"$f":"+'Premium Risk'!H12","v":0.497450025355053},{"$f":"IF($E540<0,0,$E540*'Premium Risk (Revised)'!$K12)+IF($F540<0,0,$F540*'Premium Risk (Revised)'!$L12)+IF($G540<0,0,$G540*'Premium Risk (Revised)'!$M12)","v":0},null,null,{"$f":"MAX(0,IF(K540=\"\",I540,IF($E540<0,0,$E540*K540)+IF($F540<0,0,$F540*K540*'Premium Risk (Revised)'!S12)+IF($G540<0,0,$G540*K540*'Premium Risk (Revised)'!S12*'Premium Risk (Revised)'!T12)))","v":0}]
[null,"Property Non-Proportional",null,{"$f":"'Premium Risk (Revised)'!D13","v":0},{"$f":"'Premium Risk (Revised)'!H13","v":0},{"$f":"'Premium Risk (Revised)'!I13","v":0},{"$f":"'Premium Risk (Revised)'!J13","v":0},{"$f":"+'Premium Risk'!H13","v":0.51625715924082105},{"$f":"IF($E541<0,0,$E541*'Premium Risk (Revised)'!$K13)+IF($F541<0,0,$F541*'Premium Risk (Revised)'!$L13)+IF($G541<0,0,$G541*'Premium Risk (Revised)'!$M13)","v":0},null,null,{"$f":"MAX(0,IF(K541=\"\",I541,IF($E541<0,0,$E541*K541)+IF($F541<0,0,$F541*K541*'Premium Risk (Revised)'!S13)+IF($G541<0,0,$G541*K541*'Premium Risk (Revised)'!S13*'Premium Risk (Revised)'!T13)))","v":0}]
[null,"Personal Accident",null,{"$f":"'Premium Risk (Revised)'!D14","v":0},{"$f":"'Premium Risk (Revised)'!H14","v":0},{"$f":"'Premium Risk (Revised)'!I14","v":0},{"$f":"'Premium Risk (Revised)'!J14","v":0},{"$f":"+'Premium Risk'!H14","v":0.34115345724240698},{"$f":"IF($E542<0,0,$E542*'Premium Risk (Revised)'!$K14)+IF($F542<0,0,$F542*'Premium Risk (Revised)'!$L14)+IF($G542<0,0,$G542*'Premium Risk (Revised)'!$M14)","v":0},null,null,{"$f":"MAX(0,IF(K542=\"\",I542,IF($E542<0,0,$E542*K542)+IF($F542<0,0,$F542*K542*'Premium Risk (Revised)'!S14)+IF($G542<0,0,$G542*K542*'Premium Risk (Revised)'!S14*'Premium Risk (Revised)'!T14)))","v":0}]
[null,"Personal Accident Non-Proportional",null,{"$f":"'Premium Risk (Revised)'!D15","v":0},{"$f":"'Premium Risk (Revised)'!H15","v":0},{"$f":"'Premium Risk (Revised)'!I15","v":0},{"$f":"'Premium Risk (Revised)'!J15","v":0},{"$f":"+'Premium Risk'!H15","v":0.41221262895987398},{"$f":"IF($E543<0,0,$E543*'Premium Risk (Revised)'!$K15)+IF($F543<0,0,$F543*'Premium Risk (Revised)'!$L15)+IF($G543<0,0,$G543*'Premium Risk (Revised)'!$M15)","v":0},null,null,{"$f":"MAX(0,IF(K543=\"\",I543,IF($E543<0,0,$E543*K543)+IF($F543<0,0,$F543*K543*'Premium Risk (Revised)'!S15)+IF($G543<0,0,$G543*K543*'Premium Risk (Revised)'!S15*'Premium Risk (Revised)'!T15)))","v":0}]
[null,"Aviation",null,{"$f":"'Premium Risk (Revised)'!D16","v":0},{"$f":"'Premium Risk (Revised)'!H16","v":0},{"$f":"'Premium Risk (Revised)'!I16","v":0},{"$f":"'Premium Risk (Revised)'!J16","v":0},{"$f":"+'Premium Risk'!H16","v":0.48178449435856302},{"$f":"IF($E544<0,0,$E544*'Premium Risk (Revised)'!$K16)+IF($F544<0,0,$F544*'Premium Risk (Revised)'!$L16)+IF($G544<0,0,$G544*'Premium Risk (Revised)'!$M16)","v":0},null,null,{"$f":"MAX(0,IF(K544=\"\",I544,IF($E544<0,0,$E544*K544)+IF($F544<0,0,$F544*K544*'Premium Risk (Revised)'!S16)+IF($G544<0,0,$G544*K544*'Premium Risk (Revised)'!S16*'Premium Risk (Revised)'!T16)))","v":0}]
[null,"Aviation Non-Proportional",null,{"$f":"'Premium Risk (Revised)'!D17","v":0},{"$f":"'Premium Risk (Revised)'!H17","v":0},{"$f":"'Premium Risk (Revised)'!I17","v":0},{"$f":"'Premium Risk (Revised)'!J17","v":0},{"$f":"+'Premium Risk'!H17","v":0.48201231799963601},{"$f":"IF($E545<0,0,$E545*'Premium Risk (Revised)'!$K17)+IF($F545<0,0,$F545*'Premium Risk (Revised)'!$L17)+IF($G545<0,0,$G545*'Premium Risk (Revised)'!$M17)","v":0},null,null,{"$f":"MAX(0,IF(K545=\"\",I545,IF($E545<0,0,$E545*K545)+IF($F545<0,0,$F545*K545*'Premium Risk (Revised)'!S17)+IF($G545<0,0,$G545*K545*'Premium Risk (Revised)'!S17*'Premium Risk (Revised)'!T17)))","v":0}]
[null,"Credit / Surety",null,{"$f":"'Premium Risk (Revised)'!D18","v":0},{"$f":"'Premium Risk (Revised)'!H18","v":0},{"$f":"'Premium Risk (Revised)'!I18","v":0},{"$f":"'Premium Risk (Revised)'!J18","v":0},{"$f":"+'Premium Risk'!H18","v":0.39820522005250802},{"$f":"IF($E546<0,0,$E546*'Premium Risk (Revised)'!$K18)+IF($F546<0,0,$F546*'Premium Risk (Revised)'!$L18)+IF($G546<0,0,$G546*'Premium Risk (Revised)'!$M18)","v":0},null,null,{"$f":"MAX(0,IF(K546=\"\",I546,IF($E546<0,0,$E546*K546)+IF($F546<0,0,$F546*K546*'Premium Risk (Revised)'!S18)+IF($G546<0,0,$G546*K546*'Premium Risk (Revised)'!S18*'Premium Risk (Revised)'!T18)))","v":0}]
[null,"Credit / Surety Non-Proportional",null,{"$f":"'Premium Risk (Revised)'!D19","v":0},{"$f":"'Premium Risk (Revised)'!H19","v":0},{"$f":"'Premium Risk (Revised)'!I19","v":0},{"$f":"'Premium Risk (Revised)'!J19","v":0},{"$f":"+'Premium Risk'!H19","v":0.45356665999464701},{"$f":"IF($E547<0,0,$E547*'Premium Risk (Revised)'!$K19)+IF($F547<0,0,$F547*'Premium Risk (Revised)'!$L19)+IF($G547<0,0,$G547*'Premium Risk (Revised)'!$M19)","v":0},null,null,{"$f":"MAX(0,IF(K547=\"\",I547,IF($E547<0,0,$E547*K547)+IF($F547<0,0,$F547*K547*'Premium Risk (Revised)'!S19)+IF($G547<0,0,$G547*K547*'Premium Risk (Revised)'!S19*'Premium Risk (Revised)'!T19)))","v":0}]
[null,"Energy Offshore / Marine",null,{"$f":"'Premium Risk (Revised)'!D20","v":0},{"$f":"'Premium Risk (Revised)'!H20","v":0},{"$f":"'Premium Risk (Revised)'!I20","v":0},{"$f":"'Premium Risk (Revised)'!J20","v":0},{"$f":"+'Premium Risk'!H20","v":0.42102344656076801},{"$f":"IF($E548<0,0,$E548*'Premium Risk (Revised)'!$K20)+IF($F548<0,0,$F548*'Premium Risk (Revised)'!$L20)+IF($G548<0,0,$G548*'Premium Risk (Revised)'!$M20)","v":0},null,null,{"$f":"MAX(0,IF(K548=\"\",I548,IF($E548<0,0,$E548*K548)+IF($F548<0,0,$F548*K548*'Premium Risk (Revised)'!S20)+IF($G548<0,0,$G548*K548*'Premium Risk (Revised)'!S20*'Premium Risk (Revised)'!T20)))","v":0}]
[null,"Energy Offshore / Marine Non-Proportional",null,{"$f":"'Premium Risk (Revised)'!D21","v":0},{"$f":"'Premium Risk (Revised)'!H21","v":0},{"$f":"'Premium Risk (Revised)'!I21","v":0},{"$f":"'Premium Risk (Revised)'!J21","v":0},{"$f":"+'Premium Risk'!H21","v":0.47016820069929899},{"$f":"IF($E549<0,0,$E549*'Premium Risk (Revised)'!$K21)+IF($F549<0,0,$F549*'Premium Risk (Revised)'!$L21)+IF($G549<0,0,$G549*'Premium Risk (Revised)'!$M21)","v":0},null,null,{"$f":"MAX(0,IF(K549=\"\",I549,IF($E549<0,0,$E549*K549)+IF($F549<0,0,$F549*K549*'Premium Risk (Revised)'!S21)+IF($G549<0,0,$G549*K549*'Premium Risk (Revised)'!S21*'Premium Risk (Revised)'!T21)))","v":0}]
[null,"US Casualty",null,{"$f":"'Premium Risk (Revised)'!D22","v":0},{"$f":"'Premium Risk (Revised)'!H22","v":0},{"$f":"'Premium Risk (Revised)'!I22","v":0},{"$f":"'Premium Risk (Revised)'!J22","v":0},{"$f":"+'Premium Risk'!H22","v":0.50272577892886305},{"$f":"IF($E550<0,0,$E550*'Premium Risk (Revised)'!$K22)+IF($F550<0,0,$F550*'Premium Risk (Revised)'!$L22)+IF($G550<0,0,$G550*'Premium Risk (Revised)'!$M22)","v":0},null,null,{"$f":"MAX(0,IF(K550=\"\",I550,IF($E550<0,0,$E550*K550)+IF($F550<0,0,$F550*K550*'Premium Risk (Revised)'!S22)+IF($G550<0,0,$G550*K550*'Premium Risk (Revised)'!S22*'Premium Risk (Revised)'!T22)))","v":0}]
[null,"US Casualty Non-Proportional",null,{"$f":"'Premium Risk (Revised)'!D23","v":0},{"$f":"'Premium Risk (Revised)'!H23","v":0},{"$f":"'Premium Risk (Revised)'!I23","v":0},{"$f":"'Premium Risk (Revised)'!J23","v":0},{"$f":"+'Premium Risk'!H23","v":0.555814073452775},{"$f":"IF($E551<0,0,$E551*'Premium Risk (Revised)'!$K23)+IF($F551<0,0,$F551*'Premium Risk (Revised)'!$L23)+IF($G551<0,0,$G551*'Premium Risk (Revised)'!$M23)","v":0},null,null,{"$f":"MAX(0,IF(K551=\"\",I551,IF($E551<0,0,$E551*K551)+IF($F551<0,0,$F551*K551*'Premium Risk (Revised)'!S23)+IF($G551<0,0,$G551*K551*'Premium Risk (Revised)'!S23*'Premium Risk (Revised)'!T23)))","v":0}]
[null,"US Professional",null,{"$f":"'Premium Risk (Revised)'!D24","v":0},{"$f":"'Premium Risk (Revised)'!H24","v":0},{"$f":"'Premium Risk (Revised)'!I24","v":0},{"$f":"'Premium Risk (Revised)'!J24","v":0},{"$f":"+'Premium Risk'!H24","v":0.51225206482709496},{"$f":"IF($E552<0,0,$E552*'Premium Risk (Revised)'!$K24)+IF($F552<0,0,$F552*'Premium Risk (Revised)'!$L24)+IF($G552<0,0,$G552*'Premium Risk (Revised)'!$M24)","v":0},null,null,{"$f":"MAX(0,IF(K552=\"\",I552,IF($E552<0,0,$E552*K552)+IF($F552<0,0,$F552*K552*'Premium Risk (Revised)'!S24)+IF($G552<0,0,$G552*K552*'Premium Risk (Revised)'!S24*'Premium Risk (Revised)'!T24)))","v":0}]
[null,"US Professional Non-Proportional",null,{"$f":"'Premium Risk (Revised)'!D25","v":0},{"$f":"'Premium Risk (Revised)'!H25","v":0},{"$f":"'Premium Risk (Revised)'!I25","v":0},{"$f":"'Premium Risk (Revised)'!J25","v":0},{"$f":"+'Premium Risk'!H25","v":0.53805556666757803},{"$f":"IF($E553<0,0,$E553*'Premium Risk (Revised)'!$K25)+IF($F553<0,0,$F553*'Premium Risk (Revised)'!$L25)+IF($G553<0,0,$G553*'Premium Risk (Revised)'!$M25)","v":0},null,null,{"$f":"MAX(0,IF(K553=\"\",I553,IF($E553<0,0,$E553*K553)+IF($F553<0,0,$F553*K553*'Premium Risk (Revised)'!S25)+IF($G553<0,0,$G553*K553*'Premium Risk (Revised)'!S25*'Premium Risk (Revised)'!T25)))","v":0}]
[null,"US Specialty",null,{"$f":"'Premium Risk (Revised)'!D26","v":0},{"$f":"'Premium Risk (Revised)'!H26","v":0},{"$f":"'Premium Risk (Revised)'!I26","v":0},{"$f":"'Premium Risk (Revised)'!J26","v":0},{"$f":"+'Premium Risk'!H26","v":0.51436147942106603},{"$f":"IF($E554<0,0,$E554*'Premium Risk (Revised)'!$K26)+IF($F554<0,0,$F554*'Premium Risk (Revised)'!$L26)+IF($G554<0,0,$G554*'Premium Risk (Revised)'!$M26)","v":0},null,null,{"$f":"MAX(0,IF(K554=\"\",I554,IF($E554<0,0,$E554*K554)+IF($F554<0,0,$F554*K554*'Premium Risk (Revised)'!S26)+IF($G554<0,0,$G554*K554*'Premium Risk (Revised)'!S26*'Premium Risk (Revised)'!T26)))","v":0}]
[null,"US Specialty Non-Proportional",null,{"$f":"'Premium Risk (Revised)'!D27","v":0},{"$f":"'Premium Risk (Revised)'!H27","v":0},{"$f":"'Premium Risk (Revised)'!I27","v":0},{"$f":"'Premium Risk (Revised)'!J27","v":0},{"$f":"+'Premium Risk'!H27","v":0.52697789035313303},{"$f":"IF($E555<0,0,$E555*'Premium Risk (Revised)'!$K27)+IF($F555<0,0,$F555*'Premium Risk (Revised)'!$L27)+IF($G555<0,0,$G555*'Premium Risk (Revised)'!$M27)","v":0},null,null,{"$f":"MAX(0,IF(K555=\"\",I555,IF($E555<0,0,$E555*K555)+IF($F555<0,0,$F555*K555*'Premium Risk (Revised)'!S27)+IF($G555<0,0,$G555*K555*'Premium Risk (Revised)'!S27*'Premium Risk (Revised)'!T27)))","v":0}]
[null,"International Motor",null,{"$f":"'Premium Risk (Revised)'!D28","v":0},{"$f":"'Premium Risk (Revised)'!H28","v":0},{"$f":"'Premium Risk (Revised)'!I28","v":0},{"$f":"'Premium Risk (Revised)'!J28","v":0},{"$f":"+'Premium Risk'!H28","v":0.42191756117933499},{"$f":"IF($E556<0,0,$E556*'Premium Risk (Revised)'!$K28)+IF($F556<0,0,$F556*'Premium Risk (Revised)'!$L28)+IF($G556<0,0,$G556*'Premium Risk (Revised)'!$M28)","v":0},null,null,{"$f":"MAX(0,IF(K556=\"\",I556,IF($E556<0,0,$E556*K556)+IF($F556<0,0,$F556*K556*'Premium Risk (Revised)'!S28)+IF($G556<0,0,$G556*K556*'Premium Risk (Revised)'!S28*'Premium Risk (Revised)'!T28)))","v":0}]
[null,"International Motor Non-Proportional",null,{"$f":"'Premium Risk (Revised)'!D29","v":0},{"$f":"'Premium Risk (Revised)'!H29","v":0},{"$f":"'Premium Risk (Revised)'!I29","v":0},{"$f":"'Premium Risk (Revised)'!J29","v":0},{"$f":"+'Premium Risk'!H29","v":0.482210885429324},{"$f":"IF($E557<0,0,$E557*'Premium Risk (Revised)'!$K29)+IF($F557<0,0,$F557*'Premium Risk (Revised)'!$L29)+IF($G557<0,0,$G557*'Premium Risk (Revised)'!$M29)","v":0},null,null,{"$f":"MAX(0,IF(K557=\"\",I557,IF($E557<0,0,$E557*K557)+IF($F557<0,0,$F557*K557*'Premium Risk (Revised)'!S29)+IF($G557<0,0,$G557*K557*'Premium Risk (Revised)'!S29*'Premium Risk (Revised)'!T29)))","v":0}]
[null,"International Casualty Non-Motor",null,{"$f":"'Premium Risk (Revised)'!D30","v":0},{"$f":"'Premium Risk (Revised)'!H30","v":0},{"$f":"'Premium Risk (Revised)'!I30","v":0},{"$f":"'Premium Risk (Revised)'!J30","v":0},{"$f":"+'Premium Risk'!H30","v":0.50012106835589698},{"$f":"IF($E558<0,0,$E558*'Premium Risk (Revised)'!$K30)+IF($F558<0,0,$F558*'Premium Risk (Revised)'!$L30)+IF($G558<0,0,$G558*'Premium Risk (Revised)'!$M30)","v":0},null,null,{"$f":"MAX(0,IF(K558=\"\",I558,IF($E558<0,0,$E558*K558)+IF($F558<0,0,$F558*K558*'Premium Risk (Revised)'!S30)+IF($G558<0,0,$G558*K558*'Premium Risk (Revised)'!S30*'Premium Risk (Revised)'!T30)))","v":0}]
[null,"International Casualty Non-Motor Non-Proportional",null,{"$f":"'Premium Risk (Revised)'!D31","v":0},{"$f":"'Premium Risk (Revised)'!H31","v":0},{"$f":"'Premium Risk (Revised)'!I31","v":0},{"$f":"'Premium Risk (Revised)'!J31","v":0},{"$f":"+'Premium Risk'!H31","v":0.53551360019381999},{"$f":"IF($E559<0,0,$E559*'Premium Risk (Revised)'!$K31)+IF($F559<0,0,$F559*'Premium Risk (Revised)'!$L31)+IF($G559<0,0,$G559*'Premium Risk (Revised)'!$M31)","v":0},null,null,{"$f":"MAX(0,IF(K559=\"\",I559,IF($E559<0,0,$E559*K559)+IF($F559<0,0,$F559*K559*'Premium Risk (Revised)'!S31)+IF($G559<0,0,$G559*K559*'Premium Risk (Revised)'!S31*'Premium Risk (Revised)'!T31)))","v":0}]
[null,"Retro Property",null,{"$f":"'Premium Risk (Revised)'!D32","v":0},{"$f":"'Premium Risk (Revised)'!H32","v":0},{"$f":"'Premium Risk (Revised)'!I32","v":0},{"$f":"'Premium Risk (Revised)'!J32","v":0},{"$f":"+'Premium Risk'!H32","v":0.508030898436173},{"$f":"IF($E560<0,0,$E560*'Premium Risk (Revised)'!$K32)+IF($F560<0,0,$F560*'Premium Risk (Revised)'!$L32)+IF($G560<0,0,$G560*'Premium Risk (Revised)'!$M32)","v":0},null,null,{"$f":"MAX(0,IF(K560=\"\",I560,IF($E560<0,0,$E560*K560)+IF($F560<0,0,$F560*K560*'Premium Risk (Revised)'!S32)+IF($G560<0,0,$G560*K560*'Premium Risk (Revised)'!S32*'Premium Risk (Revised)'!T32)))","v":0}]
[null,"Structured / Finite Reinsurance",null,{"$f":"'Premium Risk (Revised)'!D33","v":0},{"$f":"'Premium Risk (Revised)'!H33","v":0},{"$f":"'Premium Risk (Revised)'!I33","v":0},{"$f":"'Premium Risk (Revised)'!J33","v":0},{"$f":"+'Premium Risk'!H33","v":0.27200000000000002},{"$f":"IF($E561<0,0,$E561*'Premium Risk (Revised)'!$K33)+IF($F561<0,0,$F561*'Premium Risk (Revised)'!$L33)+IF($G561<0,0,$G561*'Premium Risk (Revised)'!$M33)","v":0},null,null,{"$f":"MAX(0,IF(K561=\"\",I561,IF($E561<0,0,$E561*K561)+IF($F561<0,0,$F561*K561*'Premium Risk (Revised)'!S33)+IF($G561<0,0,$G561*K561*'Premium Risk (Revised)'!S33*'Premium Risk (Revised)'!T33)))","v":0}]
[null,"Health",null,{"$f":"'Premium Risk (Revised)'!D34","v":0},{"$f":"'Premium Risk (Revised)'!H34","v":0},{"$f":"'Premium Risk (Revised)'!I34","v":0},{"$f":"'Premium Risk (Revised)'!J34","v":0},{"$f":"+'Premium Risk'!H34","v":0.15},{"$f":"IF($E562<0,0,$E562*'Premium Risk (Revised)'!$K34)+IF($F562<0,0,$F562*'Premium Risk (Revised)'!$L34)+IF($G562<0,0,$G562*'Premium Risk (Revised)'!$M34)","v":0},null,null,{"$f":"MAX(0,IF(K562=\"\",I562,IF($E562<0,0,$E562*K562)+IF($F562<0,0,$F562*K562*'Premium Risk (Revised)'!S34)+IF($G562<0,0,$G562*K562*'Premium Risk (Revised)'!S34*'Premium Risk (Revised)'!T34)))","v":0}]
[]
[null,"(a)  TOTAL",null,{"$f":"SUM(D539:D562)","v":0},{"$f":"SUM(E539:E562)","v":0},{"$f":"SUM(F539:F562)","v":0},{"$f":"SUM(G539:G562)","v":0},null,{"$f":"SUM(I539:I563)","v":0},null,null,{"$f":"SUM(L539:L562)","v":0}]
[]
[null,"(b)  CORRELATION ADJUSTMENT"]
[]
[null,null,"(i)","Reduction in Capital Charge from Correlation Matrix",null,null,null,null,{"$f":"I564-I570","v":0},null,null,{"$f":"L564-L570","v":0}]
[]
[null,"(b)  CAPITAL CHARGE AFTER CORRELATION",null,null,null,null,null,{"$f":"'Premium Risk (Revised)'!K42","v":0},{"$f":"SQRT(MMULT(TRANSPOSE(I539:I562),MMULT('Correlation Matrix'!C15:Z38,I539:I562)))","v":0},null,null,{"$f":"SQRT(MMULT(TRANSPOSE(L539:L562),MMULT('Correlation Matrix'!C15:Z38,L539:L562)))","v":0}]
[]
[null,"(c)  CATASTROPHE PREMIUM ADJUSTMENT CALCULATION"]
[]
[null,null,"(i)","Average Annual Loss (AAL) Excluding Property Catastrophe",null,null,null,null,{"$f":"+I646","v":0},null,null,{"$f":"+L646","v":0}]
[null,null,"(ii)","Industry Catastrophe Loss Ratio",null,null,null,null,{"$f":"+I648","v":0.4},null,null,{"$f":"+I575","v":0.4}]
[null,null,"(iii)","Avg Capital Factor  [ Total (3c) / (Total (1a) excl Prop CAT) ]",null,null,null,null,{"$f":"IF((E564-E539)=0,0,H570/(E564-E539))","v":0},null,null,{"$f":"IF((E564-E539)=0,0,H570/(E564-E539))","v":0}]
[]
[null,"(c)  CATASTROPHE PREMIUM ADJUSTMENT  [ (i) / (ii) x (iii) ]",null,null,null,null,null,null,{"$f":"I574/I575*I576","v":0},null,null,{"$f":"IF(L575=0,0,L574/L575*L576)","v":0}]
[]
[null,null,"(i)","Concentration Adjustment (up to 95%)",null,null,null,null,{"$f":"'Schedule IX(b)'!H51/900*95%","v":0},null,null,{"$f":"'Schedule IX(b)'!H51/900*95%","v":0}]
[null,null,"(ii)","Related Business % (up to 5%)",null,null,null,null,{"$f":"'Schedule IX(b)'!H55*5%","v":0},null,null,{"$f":"'Schedule IX(b)'!H55*5%","v":0}]
[null,null,"(iii)"," [ (i) + (ii) ]",null,null,null,null,{"$f":"I580+I581","v":0},null,null,{"$f":"L580+L581","v":0}]
[null,null,"(iv)","Maximum Adjustment",null,null,null,null,0.4,null,null,0.4]
[]
[null,"(c) CONCENTRATION ADJUSTMENT FACTOR (formula 2) [(iii) x (iv)]",null,null,null,null,null,null,{"$f":"I582*I583","v":0},null,null,{"$f":"L582*L583","v":0}]
[]
[null,"(d)  TOTAL PREMIUM RISK (AFTER CATASTROPHE PREMIUM ADJUSTMENT)   [ (b) - (c) ]",null,null,null,null,null,null,{"$f":"IF('Company Information'!$F$11=\"Class 3A\",I570-I564*I585,IF(I570-I578>=0,I570-I578,0))","v":0},null,null,{"$f":"IF('Company Information'!$F$11=\"Class 3A\",L570-L564*L585,IF(L570-L578>=0,L570-L578,0))","v":0}]
[]
[null,null,null,null,null,null,null,"STANDARD","STANDARD",null,"USER","USER"]
[null,"TYPE OF ",null,null,null,null,"LIABILITY","CAPITAL","REQUIRED",null,"CAPITAL","REQUIRED"]
[null,"RESERVE RISK",null,null,null,null,"VALUE","FACTOR","CAPITAL",null,"FACTOR","CAPITAL"]
[]
[null,null,null,null,null,null,"(1) ","(2)","(1) x (2)",null,"(3)","(1) x (3)"]
[]
[null,"Property Catastrophe",null,null,null,null,{"$f":"+'Geographic Diversification'!H40","v":0},{"$f":"+'Reserve Risk'!G11","v":0.46158858246802098},{"$f":"IF(G595<0,0,G595*H595)","v":0},null,null,{"$f":"MAX(0,IF(K595=\"\",H595*G595,G595*K595))","v":0}]
[null,"Property",null,null,null,null,{"$f":"+'Geographic Diversification'!H41","v":0},{"$f":"+'Reserve Risk'!G12","v":0.43844984238218698},{"$f":"IF(G596<0,0,G596*H596)","v":0},null,null,0]
[null,"Property Non-Proportional",null,null,null,null,{"$f":"+'Geographic Diversification'!H42","v":0},{"$f":"+'Reserve Risk'!G13","v":0.49735573879029998},0,null,null,0]
[null,"Personal Accident",null,null,null,null,{"$f":"+'Geographic Diversification'!H43","v":0},{"$f":"+'Reserve Risk'!G14","v":0.29666070682155399},0,null,null,0]
[null,"Personal Accident Non-Proportional",null,null,null,null,{"$f":"+'Geographic Diversification'!H44","v":0},{"$f":"+'Reserve Risk'!G15","v":0.34876523067975901},0,null,null,0]
[null,"Aviation",null,null,null,null,{"$f":"+'Geographic Diversification'!H45","v":0},{"$f":"+'Reserve Risk'!G16","v":0.45952604952349801},0,null,null,0]
[null,"Aviation Non-Proportional",null,null,null,null,{"$f":"+'Geographic Diversification'!H46","v":0},{"$f":"+'Reserve Risk'!G17","v":0.48255646377949901},0,null,null,0]
[null,"Credit / Surety",null,null,null,null,{"$f":"+'Geographic Diversification'!H47","v":0},{"$f":"+'Reserve Risk'!G18","v":0.383682680649994},0,null,null,0]
[null,"Credit / Surety Non-Proportional",null,null,null,null,{"$f":"+'Geographic Diversification'!H48","v":0},{"$f":"+'Reserve Risk'!G19","v":0.43464696624596899},0,null,null,0]
[null,"Energy Offshore / Marine",null,null,null,null,{"$f":"+'Geographic Diversification'!H49","v":0},{"$f":"+'Reserve Risk'!G20","v":0.39543823911176501},0,null,null,0]
[null,"Energy Offshore / Marine Non-Proportional",null,null,null,null,{"$f":"+'Geographic Diversification'!H50","v":0},{"$f":"+'Reserve Risk'!G21","v":0.43945783577556502},0,null,null,0]
[null,"US Casualty",null,null,null,null,{"$f":"+'Geographic Diversification'!H51","v":0},{"$f":"+'Reserve Risk'!G22","v":0.43018098459069698},0,null,null,0]
[null,"US Casualty Non-Proportional",null,null,null,null,{"$f":"+'Geographic Diversification'!H52","v":0},{"$f":"+'Reserve Risk'!G23","v":0.48842309052279498},0,null,null,0]
[null,"US Professional",null,null,null,null,{"$f":"+'Geographic Diversification'!H53","v":0},{"$f":"+'Reserve Risk'!G24","v":0.462752832710698},0,null,null,0]
[null,"US Professional Non-Proportional",null,null,null,null,{"$f":"+'Geographic Diversification'!H54","v":0},{"$f":"+'Reserve Risk'!G25","v":0.51484129765284703},0,null,null,0]
[null,"US Specialty",null,null,null,null,{"$f":"+'Geographic Diversification'!H55","v":0},{"$f":"+'Reserve Risk'!G26","v":0.46506790223690597},0,null,null,0]
[null,"US Specialty Non-Proportional",null,null,null,null,{"$f":"+'Geographic Diversification'!H56","v":0},{"$f":"+'Reserve Risk'!G27","v":0.482760284027479},0,null,null,0]
[null,"International Motor",null,null,null,null,{"$f":"+'Geographic Diversification'!H57","v":0},{"$f":"+'Reserve Risk'!G28","v":0.37080464615634001},0,null,null,0]
[null,"International Motor Non-Proportional",null,null,null,null,{"$f":"+'Geographic Diversification'!H58","v":0},{"$f":"+'Reserve Risk'!G29","v":0.43541657269369},0,null,null,0]
[null,"International Casualty Non-Motor",null,null,null,null,{"$f":"+'Geographic Diversification'!H59","v":0},{"$f":"+'Reserve Risk'!G30","v":0.43652386132510701},0,null,null,0]
[null,"International Casualty Non-Motor Non-Proportional",null,null,null,null,{"$f":"+'Geographic Diversification'!H60","v":0},{"$f":"+'Reserve Risk'!G31","v":0.49410327959272199},0,null,null,0]
[null,"Retro Property",null,null,null,null,{"$f":"+'Geographic Diversification'!H61","v":0},{"$f":"+'Reserve Risk'!G32","v":0.478452065307162},0,null,null,0]
[null,"Structured / Finite Reinsurance",null,null,null,null,{"$f":"+'Geographic Diversification'!H62","v":0},{"$f":"+'Reserve Risk'!G33","v":0.24099999999999999},0,null,null,0]
[null,"Health",null,null,null,null,{"$f":"+'Geographic Diversification'!H63","v":0},{"$f":"+'Reserve Risk'!G34","v":0.125},0,null,null,0]
[]
[null,"(a)  TOTAL",null,null,null,null,{"$f":"SUM(G595:G618)","v":0},null,{"$f":"SUM(I595:I619)","v":0},null,null,{"$f":"SUM(L595:L619)","v":0}]
[]
[null,"(b)  CORRELATION ADJUSTMENT"]
[]
[null,null,"(i)","Reduction in Capital Charge from Correlation Matrix",null,null,null,null,{"$f":"I620-I626","v":0},null,null,{"$f":"L620-L626","v":0}]
[]
[null,"(b)  RESERVE RISK AFTER CORRELATION ADJUSTMENT",null,null,null,null,null,null,{"$f":"SQRT(MMULT(TRANSPOSE(I595:I618),MMULT('Correlation Matrix'!C43:Z66,I595:I618)))","v":0},null,null,{"$f":"SQRT(MMULT(TRANSPOSE(L595:L618),MMULT('Correlation Matrix'!C43:Z66,L595:L618)))","v":0}]
[]
[null,"(b)(i) CONCENTRATION ADJUSTMENT FACTOR (formula 1) [(iv) + (v)]"]
[]
[null,null,"(i)","Concentration Adjustment (up to 95%)",null,null,null,null,{"$f":"'Schedule IX(b)'!H51/900*95%","v":0},null,null,{"$f":"'Schedule IX(b)'!H51/900*95%","v":0}]
[null,null,"(ii)","Related Business % (up to 5%)",null,null,null,null,{"$f":"'Schedule IX(b)'!H55*5%","v":0},null,null,{"$f":"'Schedule IX(b)'!H55*5%","v":0}]
[null,null,"(iii)"," [ (i) + (ii) ]",null,null,null,null,{"$f":"I630+I631","v":0},null,null,{"$f":"L630+L631","v":0}]
[null,null,"(iv)","Maximum Adjustment",null,null,null,null,0.4,null,null,0.4]
[]
[null,"(b)(ii) CONCENTRATION ADJUSTMENT FACTOR (formula 2) [(iii) x (iv)]",null,null,null,null,null,null,{"$f":"I632*I633","v":0},null,null,{"$f":"L632*L633","v":0}]
[]
[null,"(b)  CAPITAL CHARGE AFTER CORRELATION",null,null,null,null,null,null,{"$f":"IF('Company Information'!$F$11=\"Class 3A\",IF(I626=0,0,I626-I620*I635),IF(I626>=0,I626,0))","v":0},null,null,{"$f":"IF('Company Information'!$F$11=\"Class 3A\",IF(L626=0,0,L626-L620*L635),IF(L626>=0,L626,0))","v":0}]
[]
[null,"TYPE OF "]
[null,"CATASTROPHE RISK",null,"STATEMENT SOURCE"]
[]
[null,"(a)  Gross Probable Maximum Loss",null,"Schedule V, Line (g)",null,null,null,null,{"$f":"'Schedule V'!H16","v":0},null,null,{"$f":"+I642","v":0}]
[]
[null,"(b)  Net Probable Maximum Loss",null,"Schedule V, Line (h)",null,null,null,null,{"$f":"'Schedule V'!H18","v":0},null,null,{"$f":"+I644","v":0}]
[]
[null,"(c)  Average Annual Loss (AAL) Excluding Property Catastrophe",null,"Schedule V, Line (i)",null,null,null,null,{"$f":"'Schedule V'!H20","v":0},null,null,{"$f":"+I646","v":0}]
[]
[null,"(d)  Industry Catastrophe Loss Ratio",null,null,null,null,null,null,{"$f":"+'Catastrophe Risk (Revised)'!E13","v":0.4},null,null,0.4]
[]
[null,"(e)  Property Catastrophe Premium",null,"Schedule IVD, Column C, Line (1)",null,null,null,null,{"$f":"IF('Schedule IVD (EBS)'!G9=0,'Schedule IVD (EBS)'!E9,'Schedule IVD (EBS)'!G9)","v":0},null,null,{"$f":"+I650","v":0}]
[]
[null,"(f)  Total Catastrophe Premium  [ (c) / (d) + (e) ]",null,null,null,null,null,null,{"$f":"I646/I648+IF(I650>0,I650,0)","v":0},null,null,{"$f":"IF(L648=\"\",IF(I648=0,0,L646/I648+IF(L650>0,L650,0)),IF(L648=0,0,L646/L648+IF(L650>0,L650,0)))","v":0}]
[]
[null,"(g)  Credit Risk Capital Factor",null,null,null,null,null,null,{"$f":"+'Catastrophe Risk (Revised)'!E19","v":0.1},null,null,0.1]
[]
[null,"(h) Arrangements with Respect to Property Catastrophe Recoverables",null,null,null,null,null,null,{"$f":"'Schedule V'!H29","v":0},null,null,{"$f":"I656","v":0}]
[]
[null,"(i)  Credit Risk Charge  [ ((a) - (b) - (h) x .98 (g) ]",null,null,null,null,null,null,{"$f":"MAX(0,((I642-I644)-(I656*98%))*I654)","v":0},null,null,{"$f":"MAX(0,((L642-L644)-(L656*98%))*L654)","v":0}]
[]
[null,"(j)  REQUIRED CAPITAL FOR CATASTROPHE RISK  [ (b) - (f) + (i) ]",null,null,null,null,null,null,{"$f":"IF('Company Information'!$F$11=\"Class 3A\",(IF((I644-I650)>=0,I644-I650+I658,I658)),(IF((I644-I652)>=0,I644-I652+I658,I658)))","v":0},null,null,{"$f":"IF('Company Information'!$F$11=\"Class 3A\",(IF((L644-L650)>=0,L644-L650+L658,L658)),(IF((L644-L652)>=0,L644-L652+L658,L658)))","v":0}]
[]
[null,"REQUIRED CAPITAL AND SURPLUS"]
[]
[null,null,null,null,null,null,null,"Net","Gross",null,"Net","Gross"]
[]
[null,"Fixed Income Investment Risk",null,null,null,null,null,{"$f":"I137","v":0},{"$f":"I137","v":0},null,{"$f":"+L137","v":0},{"$f":"+L137","v":0}]
[null,"Equity Investment Risk",null,null,null,null,null,{"$f":"H191","v":0},{"$f":"G191","v":0},null,{"$f":"L191","v":0},{"$f":"K191","v":0}]
[null,"Interest Rate / Liquidity Risk",null,null,null,null,null,{"$f":"IF(Summary!$E$57=\"Duration-Based Approach\",I201,I309)","v":0},{"$f":"IF(Summary!$E$57=\"Duration-Based Approach\",I201,H309)","v":0},null,{"$f":"IF(Summary!$E$57=\"Duration-Based Approach\",L201,L309)","v":0},{"$f":"IF(Summary!$E$57=\"Duration-Based Approach\",L201,K309)","v":0}]
[null,"Currency Risk",null,null,null,null,null,{"$f":"I342","v":0},{"$f":"H342","v":0},null,{"$f":"L342","v":0},{"$f":"K342","v":0}]
[null,"Concentration Risk",null,null,null,null,null,{"$f":"I449","v":0},{"$f":"I449","v":0},null,{"$f":"+L449","v":0},{"$f":"+L449","v":0}]
[null,"Credit Risk",null,null,null,null,null,null,{"$f":"I533","v":0},null,null,{"$f":"+L533","v":0}]
[null,"Premium Risk",null,null,null,null,null,null,{"$f":"I587","v":0},null,null,{"$f":"L587","v":0}]
[null,"Reserve Risk",null,null,null,null,null,null,{"$f":"I637","v":0},null,null,{"$f":"+L637","v":0}]
[null,"Catastrophe Risk",null,null,null,null,null,null,{"$f":"I660","v":0},null,null,{"$f":"+L660","v":0}]
[]
[null,"BSCR (Prior to Correlation Adjustment)",null,null,null,null,null,null,{"$f":"I666+I667+I668+I669+I670+I672+I673+I671+I674","v":0},null,null,{"$f":"L666+L667+L668+L669+L670+L672+L673+L671+L674","v":0}]
[]
[null,"BSCR (After Correlation Adjustment)",null,null,null,null,null,null,{"$f":"SQRT(MMULT(TRANSPOSE(I696:I698),MMULT('Correlation Matrix'!O7:Q9,I696:I698)))","v":0},null,null,{"$f":"SQRT(MMULT(TRANSPOSE(L696:L698),MMULT('Correlation Matrix'!O7:Q9,L696:L698)))","v":0}]
[]
[null,"Operational risk charge (%)",null,null,null,null,null,null,{"$f":"Summary!N73","v":0.2}]
[]
[null,"Operational risk capital charge ($)",null,null,null,null,null,null,{"$f":"(I678+I704)*I680","v":0},null,null,{"$f":"IF(L680=\"\",(L678+L704)*I680,(L678+L704)*L680)","v":0}]
[]
[null,{"$f":"+Summary!C77","v":"Capital Adjustment for (Regulatory) Capital Requirement for Regulated Non-Insurance Financial Operating Entities:"},null,null,null,null,null,null,{"$f":"+'Schedule XVI'!M211","v":0},null,null,{"$f":"+Summary!N77","v":0}]
[]
[null,"CMgmtAction",null,null,null,null,null,null,{"$f":"I704","v":0},null,null,{"$f":"L704","v":0}]
[]
[null,"Other Capital Adjustment"]
[]
[null,"Capital add-on / reduction (BMA assessment)"]
[]
[null,"BSCR ",null,null,null,null,null,null,{"$f":"I678+I682+I690+I684+I686+I688","v":0},null,null,{"$f":"L678+L682+L690+L684+L686+L688","v":0}]
[]
[]
[null,"Capital Charges",null,null,null,null,null,"Net","Gross",null,"Net","Gross"]
[null,"Market Risk",null,null,null,null,null,{"$f":"SQRT(MMULT(TRANSPOSE(H666:H670),MMULT('Correlation Matrix'!$C$7:$G$11,H666:H670)))","v":0},{"$f":"SQRT(MMULT(TRANSPOSE(I666:I670),MMULT('Correlation Matrix'!$C$7:$G$11,I666:I670)))","v":0},null,{"$f":"SQRT(MMULT(TRANSPOSE(K666:K670),MMULT('Correlation Matrix'!$C$7:$G$11,K666:K670)))","v":0},{"$f":"SQRT(MMULT(TRANSPOSE(L666:L670),MMULT('Correlation Matrix'!$C$7:$G$11,L666:L670)))","v":0}]
[null,"Credit Risk",null,null,null,null,null,{"$f":"I671","v":0},{"$f":"I671","v":0},null,{"$f":"L671","v":0},{"$f":"L671","v":0}]
[null,"P&C Insurance Risk",null,null,null,null,null,{"$f":"SQRT(MMULT(TRANSPOSE(I672:I674),MMULT('Correlation Matrix'!J7:L9,I672:I674)))","v":0},{"$f":"SQRT(MMULT(TRANSPOSE(I672:I674),MMULT('Correlation Matrix'!J7:L9,I672:I674)))","v":0},null,{"$f":"SQRT(MMULT(TRANSPOSE(L672:L674),MMULT('Correlation Matrix'!J7:L9,L672:L674)))","v":0},{"$f":"SQRT(MMULT(TRANSPOSE(L672:L674),MMULT('Correlation Matrix'!J7:L9,L672:L674)))","v":0}]
[null,"Total",null,null,null,null,null,{"$f":"SUM(H696:H698)","v":0},{"$f":"SUM(I696:I698)","v":0},null,{"$f":"SUM(K696:K698)","v":0},{"$f":"SUM(L696:L698)","v":0}]
[]
[null,"Management Action"]
[null,"Implied Loss-absorbing capacity of Technical Provisions without cap",null,null,null,null,null,null,{"$f":"(I696+I697+I698)-(H696+H697+H698)","v":0},null,null,{"$f":"(L696+L697+L698)-(K696+K697+K698)","v":0}]
[null,"Initial FDB / Bonus reserve",null,null,null,null,null,null,{"$f":"Summary!N143","v":0},null,null,{"$f":"I703","v":0}]
[null,"Adjustment for the LaC of TP",null,null,null,null,null,null,{"$f":"-MAX(MIN((I696+I697+I698)-(H696+H697+H698),I703),0)","v":0},null,null,{"$f":"-MAX(MIN((L696+L697+L698)-(K696+K697+K698),L703),0)","v":0}]
[null,null,null,null,null,null,null,null,null,null,null,null,null,null,null,""]
[null,null,null,null,null,null,null,null,null,null,null,null,null,null,null,""]

{"sheet":"Correlation Matrix","index":125,"n_rows":66,"n_cols":26,"rows_kept":66,"cut":false,"hidden":false,"merged":[[2,3,2,5],[0,24,0,25]]}
["Correlation Factors",null,null,null,null,null,null,null,null,null,null,null,null,null,null,null,null,null,null,null,null,null,null,null,{"$f":"HYPERLINK(\"#'Index'!A1\",\"Return to Index\")","v":"Return to Index"}]
[{"$f":"'Company Information'!C7","v":"Enter Company Name"}]
[{"$f":"\"Premium Risk\" & \"($\"&IF(CONFIGURATION!$B$12>1,MID(CONFIGURATION!$B$12,2,LEN(CONFIGURATION!$B$12)),\"\")&\")\"","v":"Premium Risk($000)"}]
[]
[null,"Market Risk",null,null,null,null,null,null,"P&C Insurance Risk",null,null,null,null,"Overall BSCR",null,null,null,null,null,null,null,"Capital Charges - Gross",null,null,"Capital Charges - Net"]
[null,null,"Cfi","Ceq","Cint","CCur","Cconc",null,null,"Cprem","Crsvs","Ccat",null,null,"Market","Credit","P&C",null,null,null,null,"Market",{"$f":"Summary!N54","v":0},null,"Market",{"$f":"Summary!L54","v":0}]
[null,"Cfi",1,0.5,{"$f":"IF(Summary!E57=\"Duration-Based Approach\",0.25,IF('Interest Rate-Liquidity (Rev.)'!$E$109=\"Down\",0.25,0))","v":0.25},0.25,0,null,"Cprem",1,0.25,0.125,null,"Market",1,0.25,0.125,null,null,null,null,"Credit",{"$f":"Summary!N61","v":0},null,"Credit",{"$f":"Summary!L61","v":0}]
[null,"Ceq",0.5,1,{"$f":"IF(Summary!E57=\"Duration-Based Approach\",0.25,IF('Interest Rate-Liquidity (Rev.)'!$E$109=\"Down\",0.25,0))","v":0.25},0.25,0,null,"Crsvs",0.25,1,0,null,"Credit",0.25,1,0.5,null,null,null,null,"P&C",{"$f":"Summary!N64","v":0},null,"P&C",{"$f":"Summary!L64","v":0}]
[null,"Cint",{"$f":"IF(Summary!E57=\"Duration-Based Approach\",0.25,IF('Interest Rate-Liquidity (Rev.)'!$E$109=\"Down\",0.25,0))","v":0.25},{"$f":"IF(Summary!E57=\"Duration-Based Approach\",0.25,IF('Interest Rate-Liquidity (Rev.)'!$E$109=\"Down\",0.25,0))","v":0.25},1,0.25,0,null,"Ccat",0.125,0,1,null,"P&C",0.125,0.5,1,null,null,null,null,null,{"$f":"SUM(W6:W8)","v":0},null,null,{"$f":"SUM(Z6:Z8)","v":0}]
[null,"CCur",0.25,0.25,0.25,1,0]
[null,"Cconc",0,0,0,0,1]
[]
[null,"Premium Risk"]
[null,null,"Prop Cat","Prop","Prop NP","PA","PA NP","Aviatn","AviatnNP","C/S","C/S NP","Ergy O/M","Ergy O/MNP","US Cas","US CasNP","US Prof","US ProfNP","US Spec","US SpecNP","IntMotor","IntMotorNP","IntCas","IntCasNP","Retro Prop","Str/Fin Re","Health"]
[null,"Prop Cat",1,0.25,0.25,0.25,0.25,0.25,0.25,0.25,0.25,0.25,0.25,0.25,0.25,0.25,0.25,0.25,0.25,0.25,0.25,0.25,0.25,0.25,0.25,0.25]
[null,"Prop",0.25,1,0.5,0.25,0.25,0.25,0.25,0.25,0.25,0.25,0.25,0.25,0.25,0.25,0.25,0.25,0.25,0.25,0.25,0.25,0.25,0.25,0.25,0.25]
[null,"Prop NP",0.25,0.5,1,0.25,0.25,0.25,0.25,0.25,0.25,0.25,0.25,0.25,0.25,0.25,0.25,0.25,0.25,0.25,0.25,0.25,0.25,0.25,0.25,0.25]
[null,"PA",0.25,0.25,0.25,1,0.5,0.25,0.25,0.25,0.25,0.25,0.25,0.25,0.25,0.25,0.25,0.25,0.25,0.25,0.25,0.25,0.25,0.25,0.25,0.25]
[null,"PA NP",0.25,0.25,0.25,0.5,1,0.25,0.25,0.25,0.25,0.25,0.25,0.25,0.25,0.25,0.25,0.25,0.25,0.25,0.25,0.25,0.25,0.25,0.25,0.25]
[null,"Aviatn",0.25,0.25,0.25,0.25,0.25,1,0.5,0.25,0.25,0.25,0.25,0.25,0.25,0.25,0.25,0.25,0.25,0.25,0.25,0.25,0.25,0.25,0.25,0.25]
[null,"AviatnNP",0.25,0.25,0.25,0.25,0.25,0.5,1,0.25,0.25,0.25,0.25,0.25,0.25,0.25,0.25,0.25,0.25,0.25,0.25,0.25,0.25,0.25,0.25,0.25]
[null,"C/S",0.25,0.25,0.25,0.25,0.25,0.25,0.25,1,0.5,0.25,0.25,0.25,0.25,0.25,0.25,0.25,0.25,0.25,0.25,0.25,0.25,0.25,0.25,0.25]
[null,"C/S NP",0.25,0.25,0.25,0.25,0.25,0.25,0.25,0.5,1,0.25,0.25,0.25,0.25,0.25,0.25,0.25,0.25,0.25,0.25,0.25,0.25,0.25,0.25,0.25]
[null,"Ergy O/M",0.25,0.25,0.25,0.25,0.25,0.25,0.25,0.25,0.25,1,0.5,0.25,0.25,0.25,0.25,0.25,0.25,0.25,0.25,0.25,0.25,0.25,0.25,0.25]
[null,"Ergy O/MNP",0.25,0.25,0.25,0.25,0.25,0.25,0.25,0.25,0.25,0.5,1,0.25,0.25,0.25,0.25,0.25,0.25,0.25,0.25,0.25,0.25,0.25,0.25,0.25]
[null,"US Cas",0.25,0.25,0.25,0.25,0.25,0.25,0.25,0.25,0.25,0.25,0.25,1,0.5,0.5,0.5,0.25,0.25,0.25,0.25,0.5,0.5,0.25,0.25,0.25]
[null,"US CasNP",0.25,0.25,0.25,0.25,0.25,0.25,0.25,0.25,0.25,0.25,0.25,0.5,1,0.5,0.5,0.25,0.25,0.25,0.25,0.5,0.5,0.25,0.25,0.25]
[null,"US Prof",0.25,0.25,0.25,0.25,0.25,0.25,0.25,0.25,0.25,0.25,0.25,0.5,0.5,1,0.5,0.25,0.25,0.25,0.25,0.5,0.5,0.25,0.25,0.25]
[null,"US ProfNP",0.25,0.25,0.25,0.25,0.25,0.25,0.25,0.25,0.25,0.25,0.25,0.5,0.5,0.5,1,0.25,0.25,0.25,0.25,0.5,0.5,0.25,0.25,0.25]
[null,"US Spec",0.25,0.25,0.25,0.25,0.25,0.25,0.25,0.25,0.25,0.25,0.25,0.25,0.25,0.25,0.25,1,0.5,0.25,0.25,0.25,0.25,0.25,0.25,0.25]
[null,"US SpecNP",0.25,0.25,0.25,0.25,0.25,0.25,0.25,0.25,0.25,0.25,0.25,0.25,0.25,0.25,0.25,0.5,1,0.25,0.25,0.25,0.25,0.25,0.25,0.25]
[null,"IntMotor",0.25,0.25,0.25,0.25,0.25,0.25,0.25,0.25,0.25,0.25,0.25,0.25,0.25,0.25,0.25,0.25,0.25,1,0.5,0.25,0.25,0.25,0.25,0.25]
[null,"IntMotorNP",0.25,0.25,0.25,0.25,0.25,0.25,0.25,0.25,0.25,0.25,0.25,0.25,0.25,0.25,0.25,0.25,0.25,0.5,1,0.25,0.25,0.25,0.25,0.25]
[null,"IntCas",0.25,0.25,0.25,0.25,0.25,0.25,0.25,0.25,0.25,0.25,0.25,0.5,0.5,0.5,0.5,0.25,0.25,0.25,0.25,1,0.5,0.25,0.25,0.25]
[null,"IntCasNP",0.25,0.25,0.25,0.25,0.25,0.25,0.25,0.25,0.25,0.25,0.25,0.5,0.5,0.5,0.5,0.25,0.25,0.25,0.25,0.5,1,0.25,0.25,0.25]
[null,"Retro Prop",0.25,0.25,0.25,0.25,0.25,0.25,0.25,0.25,0.25,0.25,0.25,0.25,0.25,0.25,0.25,0.25,0.25,0.25,0.25,0.25,0.25,1,0.25,0.25]
[null,"Str/Fin Re",0.25,0.25,0.25,0.25,0.25,0.25,0.25,0.25,0.25,0.25,0.25,0.25,0.25,0.25,0.25,0.25,0.25,0.25,0.25,0.25,0.25,0.25,1,0.25]
[null,"Health",0.25,0.25,0.25,0.25,0.25,0.25,0.25,0.25,0.25,0.25,0.25,0.25,0.25,0.25,0.25,0.25,0.25,0.25,0.25,0.25,0.25,0.25,0.25,1]
[]
[]
[null,"Reserve Risk"]
[null,null,"Prop Cat","Prop","Prop NP","PA","PA NP","Aviatn","AviatnNP","C/S","C/S NP","Ergy O/M","Ergy O/MNP","US Cas","US CasNP","US Prof","US ProfNP","US Spec","US SpecNP","IntMotor","IntMotorNP","IntCas","IntCasNP","Retro Prop","Str/Fin Re","Health"]
[null,"Prop Cat",1,0.25,0.25,0.25,0.25,0.25,0.25,0.25,0.25,0.25,0.25,0.25,0.25,0.25,0.25,0.25,0.25,0.25,0.25,0.25,0.25,0.25,0.25,0.25]
[null,"Prop",0.25,1,0.5,0.25,0.25,0.25,0.25,0.25,0.25,0.25,0.25,0.25,0.25,0.25,0.25,0.25,0.25,0.25,0.25,0.25,0.25,0.25,0.25,0.25]
[null,"Prop NP",0.25,0.5,1,0.25,0.25,0.25,0.25,0.25,0.25,0.25,0.25,0.25,0.25,0.25,0.25,0.25,0.25,0.25,0.25,0.25,0.25,0.25,0.25,0.25]
[null,"PA",0.25,0.25,0.25,1,0.5,0.25,0.25,0.25,0.25,0.25,0.25,0.25,0.25,0.25,0.25,0.25,0.25,0.25,0.25,0.25,0.25,0.25,0.25,0.25]
[null,"PA NP",0.25,0.25,0.25,0.5,1,0.25,0.25,0.25,0.25,0.25,0.25,0.25,0.25,0.25,0.25,0.25,0.25,0.25,0.25,0.25,0.25,0.25,0.25,0.25]
[null,"Aviatn",0.25,0.25,0.25,0.25,0.25,1,0.5,0.25,0.25,0.25,0.25,0.25,0.25,0.25,0.25,0.25,0.25,0.25,0.25,0.25,0.25,0.25,0.25,0.25]
[null,"AviatnNP",0.25,0.25,0.25,0.25,0.25,0.5,1,0.25,0.25,0.25,0.25,0.25,0.25,0.25,0.25,0.25,0.25,0.25,0.25,0.25,0.25,0.25,0.25,0.25]
[null,"C/S",0.25,0.25,0.25,0.25,0.25,0.25,0.25,1,0.5,0.25,0.25,0.25,0.25,0.25,0.25,0.25,0.25,0.25,0.25,0.25,0.25,0.25,0.25,0.25]
[null,"C/S NP",0.25,0.25,0.25,0.25,0.25,0.25,0.25,0.5,1,0.25,0.25,0.25,0.25,0.25,0.25,0.25,0.25,0.25,0.25,0.25,0.25,0.25,0.25,0.25]
[null,"Ergy O/M",0.25,0.25,0.25,0.25,0.25,0.25,0.25,0.25,0.25,1,0.5,0.25,0.25,0.25,0.25,0.25,0.25,0.25,0.25,0.25,0.25,0.25,0.25,0.25]
[null,"Ergy O/MNP",0.25,0.25,0.25,0.25,0.25,0.25,0.25,0.25,0.25,0.5,1,0.25,0.25,0.25,0.25,0.25,0.25,0.25,0.25,0.25,0.25,0.25,0.25,0.25]
[null,"US Cas",0.25,0.25,0.25,0.25,0.25,0.25,0.25,0.25,0.25,0.25,0.25,1,0.5,0.5,0.5,0.25,0.25,0.25,0.25,0.5,0.5,0.25,0.25,0.25]
[null,"US CasNP",0.25,0.25,0.25,0.25,0.25,0.25,0.25,0.25,0.25,0.25,0.25,0.5,1,0.5,0.5,0.25,0.25,0.25,0.25,0.5,0.5,0.25,0.25,0.25]
[null,"US Prof",0.25,0.25,0.25,0.25,0.25,0.25,0.25,0.25,0.25,0.25,0.25,0.5,0.5,1,0.5,0.25,0.25,0.25,0.25,0.5,0.5,0.25,0.25,0.25]
[null,"US ProfNP",0.25,0.25,0.25,0.25,0.25,0.25,0.25,0.25,0.25,0.25,0.25,0.5,0.5,0.5,1,0.25,0.25,0.25,0.25,0.5,0.5,0.25,0.25,0.25]
[null,"US Spec",0.25,0.25,0.25,0.25,0.25,0.25,0.25,0.25,0.25,0.25,0.25,0.25,0.25,0.25,0.25,1,0.5,0.25,0.25,0.25,0.25,0.25,0.25,0.25]
[null,"US SpecNP",0.25,0.25,0.25,0.25,0.25,0.25,0.25,0.25,0.25,0.25,0.25,0.25,0.25,0.25,0.25,0.5,1,0.25,0.25,0.25,0.25,0.25,0.25,0.25]
[null,"IntMotor",0.25,0.25,0.25,0.25,0.25,0.25,0.25,0.25,0.25,0.25,0.25,0.25,0.25,0.25,0.25,0.25,0.25,1,0.5,0.25,0.25,0.25,0.25,0.25]
[null,"IntMotorNP",0.25,0.25,0.25,0.25,0.25,0.25,0.25,0.25,0.25,0.25,0.25,0.25,0.25,0.25,0.25,0.25,0.25,0.5,1,0.25,0.25,0.25,0.25,0.25]
[null,"IntCas",0.25,0.25,0.25,0.25,0.25,0.25,0.25,0.25,0.25,0.25,0.25,0.5,0.5,0.5,0.5,0.25,0.25,0.25,0.25,1,0.5,0.25,0.25,0.25]
[null,"IntCasNP",0.25,0.25,0.25,0.25,0.25,0.25,0.25,0.25,0.25,0.25,0.25,0.5,0.5,0.5,0.5,0.25,0.25,0.25,0.25,0.5,1,0.25,0.25,0.25]
[null,"Retro Prop",0.25,0.25,0.25,0.25,0.25,0.25,0.25,0.25,0.25,0.25,0.25,0.25,0.25,0.25,0.25,0.25,0.25,0.25,0.25,0.25,0.25,1,0.25,0.25]
[null,"Str/Fin Re",0.25,0.25,0.25,0.25,0.25,0.25,0.25,0.25,0.25,0.25,0.25,0.25,0.25,0.25,0.25,0.25,0.25,0.25,0.25,0.25,0.25,0.25,1,0.25]
[null,"Health",0.25,0.25,0.25,0.25,0.25,0.25,0.25,0.25,0.25,0.25,0.25,0.25,0.25,0.25,0.25,0.25,0.25,0.25,0.25,0.25,0.25,0.25,0.25,1]

{"sheet":"Crosscheck - SFS","index":126,"n_rows":151,"n_cols":4,"rows_kept":151,"cut":false,"hidden":true,"merged":[[3,0,3,1]]}
[null,"SUMMARY OF SFS INPUTS"]
[{"$f":"'Company Information'!C7","v":"Enter Company Name"}]
["Summary of SFS Inputs - For BMA Use Only"]
[{"$f":"'Company Information'!C3","v":"2019-12-31"}]
[]
[]
[null,"INPUT","STATEMENT SOURCE","VALUE"]
[]
[null,"Cash and time deposits","Form 1A, Line 1",{"$f":"'Form 1EBS'!F10","v":0}]
[null,"Quoted invesments, bonds and debentures - held to maturity","Form 1A, Line 2(a)(i)"]
[null,"Quoted invesments, bonds and debentures - others","Form 1A, Line 2(a)(ii)"]
[null,"Quoted investments, equities - common stocks","Form 1A, Line 2(c)(i)",{"$f":"'Form 1EBS'!F15","v":0}]
[null,"Quoted investments, equities - preferred stocks","Form 1A, Line 2(c)(ii)",{"$f":"'Form 1EBS'!F16","v":0}]
[null,"Quoted investments, equities - mutual funds","Form 1A, Line 2(c)(iii)",{"$f":"'Form 1EBS'!F17","v":0}]
[null,"Other quoted investments","Form 1A, Line 2(e)",{"$f":"'Form 1EBS'!F19","v":0}]
[null,"Unquoted investments, bonds and debentures - held to maturity","Form 1A, Line 3(a)(i)"]
[null,"Unquoted investments, bonds and debentures - others","Form 1A, Line 3(a)(ii)"]
[null,"Unquoted investments, equities - common stocks","Form 1A, Line 3(c)(i)",{"$f":"'Form 1EBS'!F25","v":0}]
[null,"Unquoted investments, equities - preferred stocks","Form 1A, Line 3(c)(ii)",{"$f":"'Form 1EBS'!F26","v":0}]
[null,"Unquoted investments, equities - mutual funds","Form 1A, Line 3(c)(iii)",{"$f":"'Form 1EBS'!F27","v":0}]
[null,"Other unquoted investments","Form 1A, Line 3(e)",{"$f":"'Form 1EBS'!F29","v":0}]
[null,"Investments in affiliates","Form 1A, Line 4(a)",{"$f":"'Form 1EBS'!F38","v":0}]
[null,"Advances to affiliates","Form 1A, Line 4(b)",{"$f":"'Form 1EBS'!F39","v":0}]
[null,"Investment in mortgage loans on real estate - first liens","Form 1A, Line 5(a)",{"$f":"'Form 1EBS'!F43","v":0}]
[null,"Investment in mortgage loans on real estate - other than first liens","Form 1A, Line 5(b)",{"$f":"'Form 1EBS'!F44","v":0}]
[null,"Real estate, occupied by the company (less encumbrances)","Form 1A, Line 7(a)",{"$f":"'Form 1EBS'!F48","v":0}]
[null,"Real estate, other properties (less encumbrances)","Form 1A, Line 7(b)",{"$f":"'Form 1EBS'!F49","v":0}]
[null,"Collateral loans","Form 1A, Line 8",{"$f":"'Form 1EBS'!F52","v":0}]
[null,"Investment income due and accrued","Form 1A, Line 9",{"$f":"'Form 1EBS'!F54","v":0}]
[null,"Accounts and premium receivable - in course of collection","Form 1A, Line 10(a)",{"$f":"'Form 1EBS'!F57","v":0}]
[null,"Accounts and premium receivable - deferred - not yet due","Form 1A, Line 10(b)"]
[null,"Accounts and premium receivable - receivables from retrocessional contracts","Form 1A, Line 10(c)",{"$f":"'Form 1EBS'!F58","v":0}]
[null,"Reinsurance balances receivable - foreign affiliates","Form 1A, Line 11(a)",{"$f":"'Form 1EBS'!F62","v":0}]
[null,"Reinsurance balances receivable - domestic affiliates","Form 1A, Line 11(b)",{"$f":"'Form 1EBS'!F63","v":0}]
[null,"Reinsurance balances receivable - pools & associations","Form 1A, Line 11(c)",{"$f":"'Form 1EBS'!F64","v":0}]
[null,"Reinsurance balances receivable - all other insurers","Form 1A, Line 11(d)",{"$f":"'Form 1EBS'!F65","v":0}]
[null,"Funds held by ceding reinsurers - affiliated","Form 1A, Line 12(a)",{"$f":"'Form 1EBS'!F69","v":0}]
[null,"Funds held by ceding reinsurers - non-affiliated","Form 1A, Line 12(b)",{"$f":"'Form 1EBS'!F70","v":0}]
[null,"Sundry assets - derivative instruments","Form 1A, Line 13(a)",{"$f":"'Form 1EBS'!F74","v":0}]
[null,"Sundry assets - segregated accounts companies","Form 1A, Line 13(b)",{"$f":"'Form 1EBS'!F75","v":0}]
[null,"Sundry assets - deposit assets","Form 1A, Line 13(c)",{"$f":"'Form 1EBS'!F76","v":0}]
[null,"Sundry assets - others","Form 1A, Line 13(d)",{"$f":"'Form 1EBS'!F81","v":0}]
[null,"Letters of credit, guarantees and other instruments - letters of credit","Form 1A, Line 14(a)",{"$f":"'Form 1EBS'!F85","v":0}]
[null,"Letters of credit, guarantees and other instruments - guarantees","Form 1A, Line 14(b)",{"$f":"'Form 1EBS'!F86","v":0}]
[null,"Letters of credit, guarantees and other instruments - other instruments","Form 1A, Line 14(c)",{"$f":"'Form 1EBS'!F87","v":0}]
[null,"Unearned premium","Form 1A, Line 16",{"$f":"'Form 1EBS'!F105","v":0}]
[null,"Loss and loss expense provisions - gross loss and loss expense provisions","Form 1A, Line 17(a)",{"$f":"'Form 1EBS'!F108","v":0}]
[null,"Loss and loss expense provisions - reinsurance recoverable - foreign affiliates","Form 1A, Line 17(b)(i)",{"$f":"'Form 1EBS'!F110","v":0}]
[null,"Loss and loss expense provisions - reinsurance recoverable - domestic affiliates","Form 1A, Line 17(b)(ii)",{"$f":"'Form 1EBS'!F111","v":0}]
[null,"Loss and loss expense provisions - reinsurance recoverable - pools  associations","Form 1A, Line 17(b)(iii)",{"$f":"'Form 1EBS'!F112","v":0}]
[null,"Loss and loss expense provisions - reinsurance recoverable - all other insurers","Form 1A, Line 17(b)(iv)",{"$f":"'Form 1EBS'!F113","v":0}]
[null,"Other insurance reserves - general business","Form 1A, Line 18"]
[null,"Insurance and reinsurance balances payable","Form 1A, Line 28",{"$f":"'Form 1EBS'!F123","v":0}]
[null,"Commissions, expenses, fees and taxes payable","Form 1A, Line 29",{"$f":"'Form 1EBS'!F125","v":0}]
[null,"Loans and notes payable","Form 1A, Line 30",{"$f":"'Form 1EBS'!F127","v":0}]
[null,"Income taxes payable","Form 1A, Line 31(a)",{"$f":"'Form 1EBS'!F130","v":0}]
[null,"Deferred income taxes","Form 1A, Line 31(b)",{"$f":"'Form 1EBS'!F131","v":0}]
[null,"Amounts due to affiliates","Form 1A, Line 32",{"$f":"'Form 1EBS'!F133","v":0}]
[null,"Accounts payable and accrued liabilities","Form 1A, Line 33",{"$f":"'Form 1EBS'!F135","v":0}]
[null,"Funds held under reinsurance contracts - affiliates","Form 1A, Line 34(a)",{"$f":"'Form 1EBS'!F138","v":0}]
[null,"Funds held under reinsurance contracts - non-affiliates","Form 1A, Line 34(b)",{"$f":"'Form 1EBS'!F139","v":0}]
[null,"Dividends payable","Form 1A, Line 35",{"$f":"'Form 1EBS'!F142","v":0}]
[null,"Sundry liabilities - derivative instruments","Form 1A, Line 36(a)",{"$f":"'Form 1EBS'!F145","v":0}]
[null,"Sundry liabilities - segregated accounts companies","Form 1A, Line 36(b)",{"$f":"'Form 1EBS'!F147","v":0}]
[null,"Sundry liabilities - deposit liabilities","Form 1A, Line 36(c)",{"$f":"'Form 1EBS'!F148","v":0}]
[null,"Sundry liabilities - others","Form 1A, Line 36(d)",{"$f":"'Form 1EBS'!F151","v":0}]
[null,"Letters of credit, guarantees and other instruments - letters of credit","Form 1A, Line 37(a)",{"$f":"'Form 1EBS'!F155","v":0}]
[null,"Letters of credit, guarantees and other instruments - guarantees","Form 1A, Line 37(b)",{"$f":"'Form 1EBS'!F156","v":0}]
[null,"Letters of credit, guarantees and other instruments - other instruments","Form 1A, Line 37(c)",{"$f":"'Form 1EBS'!F157","v":0}]
[null,"Gross premium written - direct GPW","Form 2A, Line 1(a)"]
[null,"Gross premium written - assumed GPW","Form 2A, Line 1(b)"]
[null,"Reinsurance premiums ceded","Form 2A, Line 2"]
[null,"Increase (decrease) in unearned premiums","Form 2A, Line 4"]
[null,"Other insurance income","Form 2A, Line 6"]
[null,"Net losses incurred and net loss expenses incurred","Form 2A, Line 8"]
[null,"Commissions and brokerage","Form 2A, Line 9"]
[null,"General and administrative","Form 2A, Line 10"]
[null,"Personel costs","Form 2A, Line 11"]
[null,"Others","Form 2A, Line 12"]
[null,"Transferred from (to) open year business revenue statement","Form 2A, Line 15"]
[null,"General business investment income-net","Form 2A, Line 17"]
[null,"Other income (deductions)","Form 2A, Line 37"]
[null,"Income taxes - current","Form 2A, Line 39(a)"]
[null,"Income taxes - deferred","Form 2A, Line 39(b)"]
[null,"Realized gains (losses)","Form 2A, Line 41"]
[null,"Statutory Capital - authorized shares","Form 8, Line 1(a)"]
[null,"Statutory Capital - par value","Form 8, Line 1(a)"]
[null,"Statutory Capital - fully paid shares","Form 8, Line 1(a)"]
[null,"Statutory Capital - capital stock","Form 8, Line 1(a)"]
[null,"Statutory Capital - contributed surplus","Form 8, Line 1(b)"]
[null,"Statutory Capital - any other fixed capital","Form 8, Line 1(c)"]
[null,"Statutory surplus - beginning of year","Form 8, Line 2(a)"]
[null,"Statutory surplus - dividends paid and payable","Form 8, Line 2(c)"]
[null,"Statutory surplus - change in unrealized appreciation (depreciation) of investments","Form 8, Line 2(d)"]
[null,"Statutory surplus - change in non-admitted assets","Form 8, Line 2(e)"]
[null,"Statutory surplus - change in appraisal of real estate","Form 8, Line 2(f)"]
[null,"Statutory surplus - change in any other statutory capital","Form 8, Line 2(g)"]
[null,"Government","Schedule II, Line (1)"]
[null,"High Investment Grade (AAA & AA)","Schedule II, Line (2)"]
[null,"Medium Investment Grade (A)","Schedule II, Line (3)"]
[null,"Low Investment Grade (BBB)","Schedule II, Line (4)"]
[null,"Non Investment Grade","Schedule II, Line (5)"]
[null,"Mortgage Backed","Schedule II, Line (6)"]
[null,"Mutual Funds","Schedule II, Line (7)"]
[null,"Non Rated","Schedule II, Line (8)"]
[null,{"$f":"\"Reserves - \"&'Reserve Risk'!B11","v":"Reserves - Property Catastrophe"},"Schedule III, Line (1)",{"$f":"'Schedule III (EBS)'!F10","v":0}]
[null,{"$f":"\"Reserves - \"&'Reserve Risk'!B12","v":"Reserves - Property"},"Schedule III, Line (2)",{"$f":"'Schedule III (EBS)'!F11","v":0}]
[null,{"$f":"\"Reserves - \"&'Reserve Risk'!B13","v":"Reserves - Property Non-Proportional"},"Schedule III, Line (3)",{"$f":"'Schedule III (EBS)'!F12","v":0}]
[null,{"$f":"\"Reserves - \"&'Reserve Risk'!B14","v":"Reserves - Personal Accident"},"Schedule III, Line (4)",{"$f":"'Schedule III (EBS)'!F13","v":0}]
[null,{"$f":"\"Reserves - \"&'Reserve Risk'!B15","v":"Reserves - Personal Accident Non-Proportional"},"Schedule III, Line (5)",{"$f":"'Schedule III (EBS)'!F14","v":0}]
[null,{"$f":"\"Reserves - \"&'Reserve Risk'!B16","v":"Reserves - Aviation"},"Schedule III, Line (6)",{"$f":"'Schedule III (EBS)'!F15","v":0}]
[null,{"$f":"\"Reserves - \"&'Reserve Risk'!B17","v":"Reserves - Aviation Non-Proportional"},"Schedule III, Line (7)",{"$f":"'Schedule III (EBS)'!F16","v":0}]
[null,{"$f":"\"Reserves - \"&'Reserve Risk'!B18","v":"Reserves - Credit / Surety"},"Schedule III, Line (8)",{"$f":"'Schedule III (EBS)'!F17","v":0}]
[null,{"$f":"\"Reserves - \"&'Reserve Risk'!B19","v":"Reserves - Credit / Surety Non-Proportional"},"Schedule III, Line (9)",{"$f":"'Schedule III (EBS)'!F18","v":0}]
[null,{"$f":"\"Reserves - \"&'Reserve Risk'!B20","v":"Reserves - Energy Offshore / Marine"},"Schedule III, Line (10)",{"$f":"'Schedule III (EBS)'!F19","v":0}]
[null,{"$f":"\"Reserves - \"&'Reserve Risk'!B21","v":"Reserves - Energy Offshore / Marine Non-Proportional"},"Schedule III, Line (11)",{"$f":"'Schedule III (EBS)'!F20","v":0}]
[null,{"$f":"\"Reserves - \"&'Reserve Risk'!B22","v":"Reserves - US Casualty"},"Schedule III, Line (12)",{"$f":"'Schedule III (EBS)'!F21","v":0}]
[null,{"$f":"\"Reserves - \"&'Reserve Risk'!B23","v":"Reserves - US Casualty Non-Proportional"},"Schedule III, Line (13)",{"$f":"'Schedule III (EBS)'!F22","v":0}]
[null,{"$f":"\"Reserves - \"&'Reserve Risk'!B24","v":"Reserves - US Professional"},"Schedule III, Line (14)",{"$f":"'Schedule III (EBS)'!F23","v":0}]
[null,{"$f":"\"Reserves - \"&'Reserve Risk'!B25","v":"Reserves - US Professional Non-Proportional"},"Schedule III, Line (15)",{"$f":"'Schedule III (EBS)'!F24","v":0}]
[null,{"$f":"\"Reserves - \"&'Reserve Risk'!B26","v":"Reserves - US Specialty"},"Schedule III, Line (16)",{"$f":"'Schedule III (EBS)'!F25","v":0}]
[null,{"$f":"\"Reserves - \"&'Reserve Risk'!B27","v":"Reserves - US Specialty Non-Proportional"},"Schedule III, Line (17)",{"$f":"'Schedule III (EBS)'!F26","v":0}]
[null,{"$f":"\"Reserves - \"&'Reserve Risk'!B28","v":"Reserves - International Motor"},"Schedule III, Line (18)",{"$f":"'Schedule III (EBS)'!F27","v":0}]
[null,{"$f":"\"Reserves - \"&'Reserve Risk'!B29","v":"Reserves - International Motor Non-Proportional"},"Schedule III, Line (19)",{"$f":"'Schedule III (EBS)'!F28","v":0}]
[null,{"$f":"\"Reserves - \"&'Reserve Risk'!B30","v":"Reserves - International Casualty Non-Motor"},"Schedule III, Line (20)",{"$f":"'Schedule III (EBS)'!F29","v":0}]
[null,{"$f":"\"Reserves - \"&'Reserve Risk'!B31","v":"Reserves - International Casualty Non-Motor Non-Proportional"},"Schedule III, Line (21)",{"$f":"'Schedule III (EBS)'!F30","v":0}]
[null,{"$f":"\"Reserves - \"&'Reserve Risk'!B32","v":"Reserves - Retro Property"},"Schedule III, Line (22)",{"$f":"'Schedule III (EBS)'!F31","v":0}]
[null,{"$f":"\"Reserves - \"&'Reserve Risk'!B33","v":"Reserves - Structured / Finite Reinsurance"},"Schedule III, Line (23)",{"$f":"'Schedule III (EBS)'!F32","v":0}]
[null,"Premium - Property Catastrophe","Schedule IV, Line (1)",{"$f":"'Schedule IVA (EBS)'!Q11","v":0}]
[null,"Premium - Property","Schedule IV, Line (2)",{"$f":"'Schedule IVA (EBS)'!Q12","v":0}]
[null,"Premium - Property Non-Proportional","Schedule IV, Line (3)",{"$f":"'Schedule IVA (EBS)'!Q13","v":0}]
[null,"Premium - Personal Accident","Schedule IV, Line (4)",{"$f":"'Schedule IVA (EBS)'!Q14","v":0}]
[null,"Premium - Personal Accident Non-Proportional","Schedule IV, Line (5)",{"$f":"'Schedule IVA (EBS)'!Q15","v":0}]
[null,"Premium - Aviation","Schedule IV, Line (6)",{"$f":"'Schedule IVA (EBS)'!Q16","v":0}]
[null,"Premium - Aviation Non-Proportional","Schedule IV, Line (7)",{"$f":"'Schedule IVA (EBS)'!Q17","v":0}]
[null,"Premium - Credit / Surety","Schedule IV, Line (8)",{"$f":"'Schedule IVA (EBS)'!Q18","v":0}]
[null,"Premium - Credit / Surety Non-Proportional","Schedule IV, Line (9)",{"$f":"'Schedule IVA (EBS)'!Q19","v":0}]
[null,"Premium - Energy Offshore / Marine","Schedule IV, Line (10)",{"$f":"'Schedule IVA (EBS)'!Q20","v":0}]
[null,"Premium - Energy Offshore / Marine Non-Proportional","Schedule IV, Line (11)",{"$f":"'Schedule IVA (EBS)'!Q21","v":0}]
[null,"Premium - US Casualty","Schedule IV, Line (12)",{"$f":"'Schedule IVA (EBS)'!Q22","v":0}]
[null,"Premium - US Casualty Non-Proportional","Schedule IV, Line (13)",{"$f":"'Schedule IVA (EBS)'!Q23","v":0}]
[null,"Premium - US Professional","Schedule IV, Line (14)",{"$f":"'Schedule IVA (EBS)'!Q24","v":0}]
[null,"Premium - US Professional Non-Proportional","Schedule IV, Line (15)",{"$f":"'Schedule IVA (EBS)'!Q25","v":0}]
[null,"Premium - US Specialty","Schedule IV, Line (16)",{"$f":"'Schedule IVA (EBS)'!Q26","v":0}]
[null,"Premium - US Specialty Non-Proportional","Schedule IV, Line (17)",{"$f":"'Schedule IVA (EBS)'!Q27","v":0}]
[null,"Premium - International Motor","Schedule IV, Line (18)",{"$f":"'Schedule IVA (EBS)'!Q28","v":0}]
[null,"Premium - International Motor Non-Proportional","Schedule IV, Line (19)",{"$f":"'Schedule IVA (EBS)'!Q29","v":0}]
[null,"Premium - International Casualty Non-Motor","Schedule IV, Line (20)",{"$f":"'Schedule IVA (EBS)'!Q30","v":0}]
[null,"Premium - International Casualty Non-Motor Non-Proportional","Schedule IV, Line (21)",{"$f":"'Schedule IVA (EBS)'!Q31","v":0}]
[null,"Premium - Retro Property","Schedule IV, Line (22)",{"$f":"'Schedule IVA (EBS)'!Q32","v":0}]
[null,"Premium - Structured / Finite Reinsurance","Schedule IV, Line (23)",{"$f":"'Schedule IVA (EBS)'!Q33","v":0}]

{"sheet":"Crosscheck-Model","index":127,"n_rows":95,"n_cols":4,"rows_kept":95,"cut":false,"hidden":true,"merged":[[3,0,3,1]]}
[null,"SUMMARY OF INPUTS"]
[{"$f":"'Company Information'!C7","v":"Enter Company Name"}]
["Summary of SFS Inputs - For BMA Use Only"]
[{"$f":"'Company Information'!C3","v":"2019-12-31"}]
[]
[]
[null,"INPUT","STATEMENT SOURCE","VALUE"]
[]
[null,"Reported Surplus","Form 1A, Line (40)",{"$f":"Summary!N91","v":0}]
[null,"Government","Schedule II, Line (1)",{"$f":"'Fixed Income Investments'!D11","v":0}]
[null,"High Investment Grade (AAA & AA)","Schedule II, Line (2)",{"$f":"'Fixed Income Investments'!D12","v":0}]
[null,"Medium Investment Grade (A)","Schedule II, Line (3)",{"$f":"'Fixed Income Investments'!D13","v":0}]
[null,"Low Investment Grade (BBB)","Schedule II, Line (4)",{"$f":"'Fixed Income Investments'!D14","v":0}]
[null,"Non Investment Grade","Schedule II, Line (5)",{"$f":"'Fixed Income Investments'!D15","v":0}]
[null,"Mortgage Backed","Schedule II, Line (6)",{"$f":"'Fixed Income Investments'!D16","v":0}]
[null,"Mutual Funds","Schedule II, Line (7)",{"$f":"'Fixed Income Investments'!D17","v":0}]
[null,"Non Rated","Schedule II, Line (8)",{"$f":"'Fixed Income Investments'!D20","v":0}]
[null,"Mortgage Loans","Form 1A, Line (5c)"]
[null,"Other Loans","Form 1A, Line (8)",{"$f":"'Fixed Income Investments'!D79","v":0}]
[null,"Cash","Form 1A, Line (1)"]
[null,"Non-Affiliated (Quoted)","Form 1A, Line (2c)-i",{"$f":"'Equity Investments'!D11","v":0}]
[null,"Non-Affiliated (Unquoted)","Form 1A, Line (3c)-i",{"$f":"'Equity Investments'!D12","v":0}]
[null,"Mutual Funds","Form 1A, Lines (2c)-iii, (3c)-iii",{"$f":"'Equity Investments'!D13","v":0}]
[null,"Non-Affiliated (Quoted)","Form 1A, Line (2c)-ii",{"$f":"'Equity Investments'!D19","v":0}]
[null,"Non-Affiliated (Unquoted)","Form 1A, Line (3c)-ii",{"$f":"'Equity Investments'!D27","v":0}]
[null,"Company-Occupied Less Encumbrances","Form 1A, Line (7a)",{"$f":"'Equity Investments'!D34","v":0}]
[null,"Investments Less Encumbrances","Form 1A, Line (7b)",{"$f":"'Equity Investments'!D35","v":0}]
[null,"Other Investments","Form 1A, Lines (2e), (3e)",{"$f":"'Equity Investments'!D37","v":0}]
[null,"Other Tangible Assets","Form 1A, Lines (13e), (14d)",{"$f":"'Equity Investments'!D38","v":0}]
[null,"Bonds (Quoted Only)","Form 1A, Lines (2a)-ii and (3a)-ii",{"$f":"'Interest Rate-Liquidity Risk'!D11","v":0}]
[null,"In Course of Collection","Form 1A, Line (10a)",{"$f":"'Credit Risk'!D11","v":0}]
[null,"Deferred - Not Yet Due","Form 1A, Line (10b)"]
[null,"Receivables from retrocessional contracts  less: Collateralized Balances","Form 1A, Line (10c)",{"$f":"'Credit Risk'!D12","v":0}]
[null,"Foreign Affiliates","Form 1A, Line (11a)"]
[null,"Domestic Affiliates","Form 1A, Line (11b)"]
[null,"Pools & Associations","Form 1A, Line (11c)"]
[null,"All Other Insurers","Form 1A, Line (11d)"]
[null,"Letter of credits","Notes to Form 1A, Line 11"]
[null,"Funds held by Company","Form 1A, Line 34(c)"]
[null,"Funds Held by Ceding Reinsurers","Form 1A, Line (12c)",{"$f":"'Form 1EBS'!F71","v":0}]
[null,"Accrued Investment Income","Form 1A, Line (9)",{"$f":"'Credit Risk'!D18","v":0}]
[null,"Receivable from Affiliates","Form 1A, Line (4c)",{"$f":"'Credit Risk'!D19","v":0}]
[null,"Foreign Affiliates","Form 1A, Line (17b)-i",{"$f":"'Credit Risk'!D25","v":0}]
[null,"Domestic Affiliates","Form 1A, Line (17b)-ii",{"$f":"'Credit Risk'!D26","v":0}]
[null,"Pools & Associations","Form 1A, Line (17b)-iii"]
[null,"All Other Insurers","Form 1A, Line (17b)-iv"]
[null,"Premium - Property Catastrophe","Schedule IV, Line (1)",{"$f":"'Premium Risk'!F11","v":0}]
[null,"Premium - Property","Schedule IV, Line (2)",{"$f":"'Premium Risk'!F12","v":0}]
[null,"Premium - Property Non-Proportional","Schedule IV, Line (3)",{"$f":"'Premium Risk'!F13","v":0}]
[null,"Premium - Personal Accident","Schedule IV, Line (4)",{"$f":"'Premium Risk'!F14","v":0}]
[null,"Premium - Personal Accident Non-Proportional","Schedule IV, Line (5)",{"$f":"'Premium Risk'!F15","v":0}]
[null,"Premium - Aviation","Schedule IV, Line (6)",{"$f":"'Premium Risk'!F16","v":0}]
[null,"Premium - Aviation Non-Proportional","Schedule IV, Line (7)",{"$f":"'Premium Risk'!F17","v":0}]
[null,"Premium - Credit / Surety","Schedule IV, Line (8)",{"$f":"'Premium Risk'!F18","v":0}]
[null,"Premium - Credit / Surety Non-Proportional","Schedule IV, Line (9)",{"$f":"'Premium Risk'!F19","v":0}]
[null,"Premium - Energy Offshore / Marine","Schedule IV, Line (10)",{"$f":"'Premium Risk'!F20","v":0}]
[null,"Premium - Energy Offshore / Marine Non-Proportional","Schedule IV, Line (11)",{"$f":"'Premium Risk'!F21","v":0}]
[null,"Premium - US Casualty","Schedule IV, Line (12)",{"$f":"'Premium Risk'!F22","v":0}]
[null,"Premium - US Casualty Non-Proportional","Schedule IV, Line (13)",{"$f":"'Premium Risk'!F23","v":0}]
[null,"Premium - US Professional","Schedule IV, Line (14)",{"$f":"'Premium Risk'!F24","v":0}]
[null,"Premium - US Professional Non-Proportional","Schedule IV, Line (15)",{"$f":"'Premium Risk'!F25","v":0}]
[null,"Premium - US Specialty","Schedule IV, Line (16)",{"$f":"'Premium Risk'!F26","v":0}]
[null,"Premium - US Specialty Non-Proportional","Schedule IV, Line (17)",{"$f":"'Premium Risk'!F27","v":0}]
[null,"Premium - International Motor","Schedule IV, Line (18)",{"$f":"'Premium Risk'!F28","v":0}]
[null,"Premium - International Motor Non-Proportional","Schedule IV, Line (19)",{"$f":"'Premium Risk'!F29","v":0}]
[null,"Premium - International Casualty Non-Motor","Schedule IV, Line (20)",{"$f":"'Premium Risk'!F30","v":0}]
[null,"Premium - International Casualty Non-Motor Non-Proportional","Schedule IV, Line (21)",{"$f":"'Premium Risk'!F31","v":0}]
[null,"Premium - Retro Property","Schedule IV, Line (22)",{"$f":"'Premium Risk'!F32","v":0}]
[null,"Premium - Structured / Finite Reinsurance","Schedule IV, Line (23)",{"$f":"'Premium Risk'!F33","v":0}]
[null,{"$f":"\"Reserves - \"&'Reserve Risk'!B11","v":"Reserves - Property Catastrophe"},"Schedule III, Line (1)",{"$f":"'Reserve Risk'!E11","v":0}]
[null,{"$f":"\"Reserves - \"&'Reserve Risk'!B12","v":"Reserves - Property"},"Schedule III, Line (2)",{"$f":"'Reserve Risk'!E12","v":0}]
[null,{"$f":"\"Reserves - \"&'Reserve Risk'!B13","v":"Reserves - Property Non-Proportional"},"Schedule III, Line (3)",{"$f":"'Reserve Risk'!E13","v":0}]
[null,{"$f":"\"Reserves - \"&'Reserve Risk'!B14","v":"Reserves - Personal Accident"},"Schedule III, Line (4)",{"$f":"'Reserve Risk'!E14","v":0}]
[null,{"$f":"\"Reserves - \"&'Reserve Risk'!B15","v":"Reserves - Personal Accident Non-Proportional"},"Schedule III, Line (5)",{"$f":"'Reserve Risk'!E15","v":0}]
[null,{"$f":"\"Reserves - \"&'Reserve Risk'!B16","v":"Reserves - Aviation"},"Schedule III, Line (6)",{"$f":"'Reserve Risk'!E16","v":0}]
[null,{"$f":"\"Reserves - \"&'Reserve Risk'!B17","v":"Reserves - Aviation Non-Proportional"},"Schedule III, Line (7)",{"$f":"'Reserve Risk'!E17","v":0}]
[null,{"$f":"\"Reserves - \"&'Reserve Risk'!B18","v":"Reserves - Credit / Surety"},"Schedule III, Line (8)",{"$f":"'Reserve Risk'!E18","v":0}]
[null,{"$f":"\"Reserves - \"&'Reserve Risk'!B19","v":"Reserves - Credit / Surety Non-Proportional"},"Schedule III, Line (9)",{"$f":"'Reserve Risk'!E19","v":0}]
[null,{"$f":"\"Reserves - \"&'Reserve Risk'!B20","v":"Reserves - Energy Offshore / Marine"},"Schedule III, Line (10)",{"$f":"'Reserve Risk'!E20","v":0}]
[null,{"$f":"\"Reserves - \"&'Reserve Risk'!B21","v":"Reserves - Energy Offshore / Marine Non-Proportional"},"Schedule III, Line (11)",{"$f":"'Reserve Risk'!E21","v":0}]
[null,{"$f":"\"Reserves - \"&'Reserve Risk'!B22","v":"Reserves - US Casualty"},"Schedule III, Line (12)",{"$f":"'Reserve Risk'!E22","v":0}]
[null,{"$f":"\"Reserves - \"&'Reserve Risk'!B23","v":"Reserves - US Casualty Non-Proportional"},"Schedule III, Line (13)",{"$f":"'Reserve Risk'!E23","v":0}]
[null,{"$f":"\"Reserves - \"&'Reserve Risk'!B24","v":"Reserves - US Professional"},"Schedule III, Line (14)",{"$f":"'Reserve Risk'!E24","v":0}]
[null,{"$f":"\"Reserves - \"&'Reserve Risk'!B25","v":"Reserves - US Professional Non-Proportional"},"Schedule III, Line (15)",{"$f":"'Reserve Risk'!E25","v":0}]
[null,{"$f":"\"Reserves - \"&'Reserve Risk'!B26","v":"Reserves - US Specialty"},"Schedule III, Line (16)",{"$f":"'Reserve Risk'!E26","v":0}]
[null,{"$f":"\"Reserves - \"&'Reserve Risk'!B27","v":"Reserves - US Specialty Non-Proportional"},"Schedule III, Line (17)",{"$f":"'Reserve Risk'!E27","v":0}]
[null,{"$f":"\"Reserves - \"&'Reserve Risk'!B28","v":"Reserves - International Motor"},"Schedule III, Line (18)",{"$f":"'Reserve Risk'!E28","v":0}]
[null,{"$f":"\"Reserves - \"&'Reserve Risk'!B29","v":"Reserves - International Motor Non-Proportional"},"Schedule III, Line (19)",{"$f":"'Reserve Risk'!E29","v":0}]
[null,{"$f":"\"Reserves - \"&'Reserve Risk'!B30","v":"Reserves - International Casualty Non-Motor"},"Schedule III, Line (20)",{"$f":"'Reserve Risk'!E30","v":0}]
[null,{"$f":"\"Reserves - \"&'Reserve Risk'!B31","v":"Reserves - International Casualty Non-Motor Non-Proportional"},"Schedule III, Line (21)",{"$f":"'Reserve Risk'!E31","v":0}]
[null,{"$f":"\"Reserves - \"&'Reserve Risk'!B32","v":"Reserves - Retro Property"},"Schedule III, Line (22)",{"$f":"'Reserve Risk'!E32","v":0}]
[null,{"$f":"\"Reserves - \"&'Reserve Risk'!B33","v":"Reserves - Structured / Finite Reinsurance"},"Schedule III, Line (23)",{"$f":"'Reserve Risk'!E33","v":0}]
[null,"Gross Probable Maximum Loss","Schedule V, Line (b)",{"$f":"'Catastrophe Risk'!E7","v":0}]
[null,"Net Probable Maximum Loss","Schedule V, Line (c)",{"$f":"'Catastrophe Risk'!E9","v":0}]
[null,"Average Annual Loss (AAL) Excluding Property Catastrophe","Schedule V, Line (d)",{"$f":"'Catastrophe Risk'!E11","v":0}]

{"sheet":"Crosscheck - Op Risk","index":128,"n_rows":153,"n_cols":4,"rows_kept":153,"cut":false,"hidden":true,"merged":[[3,0,3,1]]}
[null,"SUMMARY OF OPERATIONAL RISK"]
["Sample Company"]
["Summary of SFS Inputs - For BMA Use Only"]
[{"$f":"'Company Information'!C3","v":"2019-12-31"}]
[]
[]
[null,"INPUT","STATEMENT SOURCE","SCORE"]
[]
[null,"Corporate Governance - 1","Corp Gov",{"$f":"'Corp Gov'!C12","v":0}]
[null,"Corporate Governance - 2","Corp Gov",{"$f":"'Corp Gov'!C14","v":0}]
[null,"Corporate Governance - 3","Corp Gov",{"$f":"'Corp Gov'!C15","v":0}]
[null,"Corporate Governance - 4","Corp Gov",{"$f":"'Corp Gov'!C16","v":0}]
[null,"Corporate Governance - 5","Corp Gov",{"$f":"'Corp Gov'!C17","v":0}]
[null,"Corporate Governance - 6","Corp Gov",{"$f":"'Corp Gov'!C18","v":0}]
[null,"Risk Management - 1","Risk Man"]
[null,"Risk Management - 2","Risk Man"]
[null,"Risk Management - 3","Risk Man"]
[null,"Risk Management - 4","Risk Man"]
[null,"Risk Management - 5","Risk Man"]
[null,"Risk Management - 6","Risk Man"]
[null,"Risk Management - 7","Risk Man"]
[null,"Risk Identification"]
[null,"Fraud - Stage 1","Identification",{"$f":"Identification!E15","v":0}]
[null,"Fraud - Stage 2","Identification",{"$f":"Identification!E16","v":0}]
[null,"Fraud - Stage 3","Identification",{"$f":"Identification!E17","v":0}]
[null,"Fraud - Stage 4","Identification",{"$f":"Identification!E18","v":0}]
[null,"Human Resources - Stage 1","Identification",{"$f":"Identification!F15","v":0}]
[null,"Human Resources - Stage 2","Identification",{"$f":"Identification!F16","v":0}]
[null,"Human Resources - Stage 3","Identification",{"$f":"Identification!F17","v":0}]
[null,"Human Resources - Stage 4","Identification",{"$f":"Identification!F18","v":0}]
[null,"Outsourcing - Stage 1","Identification",{"$f":"Identification!G15","v":0}]
[null,"Outsourcing - Stage 2","Identification",{"$f":"Identification!G16","v":0}]
[null,"Outsourcing - Stage 3","Identification",{"$f":"Identification!G17","v":0}]
[null,"Outsourcing - Stage 4","Identification",{"$f":"Identification!G18","v":0}]
[null,"Distribution Channels - Stage 1","Identification",{"$f":"Identification!H15","v":0}]
[null,"Distribution Channels - Stage 2","Identification",{"$f":"Identification!H16","v":0}]
[null,"Distribution Channels - Stage 3","Identification",{"$f":"Identification!H17","v":0}]
[null,"Distribution Channels - Stage 4","Identification",{"$f":"Identification!H18","v":0}]
[null,"Business Processes - Stage 1","Identification",{"$f":"Identification!I15","v":0}]
[null,"Business Processes - Stage 2","Identification",{"$f":"Identification!I16","v":0}]
[null,"Business Processes - Stage 3","Identification",{"$f":"Identification!I17","v":0}]
[null,"Business Processes - Stage 4","Identification",{"$f":"Identification!I18","v":0}]
[null,"Business Continuity - Stage 1","Identification",{"$f":"Identification!J15","v":0}]
[null,"Business Continuity - Stage 2","Identification",{"$f":"Identification!J16","v":0}]
[null,"Business Continuity - Stage 3","Identification",{"$f":"Identification!J17","v":0}]
[null,"Business Continuity - Stage 4","Identification",{"$f":"Identification!J18","v":0}]
[null,"Information Systems - Stage 1","Identification",{"$f":"Identification!K15","v":0}]
[null,"Information Systems - Stage 2","Identification",{"$f":"Identification!K16","v":0}]
[null,"Information Systems - Stage 3","Identification",{"$f":"Identification!K17","v":0}]
[null,"Information Systems - Stage 4","Identification",{"$f":"Identification!K18","v":0}]
[null,"Compliance - Stage 1","Identification",{"$f":"Identification!L15","v":0}]
[null,"Compliance - Stage 2","Identification",{"$f":"Identification!L16","v":0}]
[null,"Compliance - Stage 3","Identification",{"$f":"Identification!L17","v":0}]
[null,"Compliance - Stage 4","Identification",{"$f":"Identification!L18","v":0}]
[null,"Risk Measurement"]
[null,"Fraud - Stage 1","Measurement",{"$f":"Measurement!E15","v":0}]
[null,"Fraud - Stage 2","Measurement",{"$f":"Measurement!E16","v":0}]
[null,"Fraud - Stage 3","Measurement",{"$f":"Measurement!E17","v":0}]
[null,"Fraud - Stage 4","Measurement",{"$f":"Measurement!E18","v":0}]
[null,"Human Resources - Stage 1","Measurement",{"$f":"Measurement!F15","v":0}]
[null,"Human Resources - Stage 2","Measurement",{"$f":"Measurement!F16","v":0}]
[null,"Human Resources - Stage 3","Measurement",{"$f":"Measurement!F17","v":0}]
[null,"Human Resources - Stage 4","Measurement",{"$f":"Measurement!F18","v":0}]
[null,"Outsourcing - Stage 1","Measurement",{"$f":"Measurement!G15","v":0}]
[null,"Outsourcing - Stage 2","Measurement",{"$f":"Measurement!G16","v":0}]
[null,"Outsourcing - Stage 3","Measurement",{"$f":"Measurement!G17","v":0}]
[null,"Outsourcing - Stage 4","Measurement",{"$f":"Measurement!G18","v":0}]
[null,"Distribution Channels - Stage 1","Measurement",{"$f":"Measurement!H15","v":0}]
[null,"Distribution Channels - Stage 2","Measurement",{"$f":"Measurement!H16","v":0}]
[null,"Distribution Channels - Stage 3","Measurement",{"$f":"Measurement!H17","v":0}]
[null,"Distribution Channels - Stage 4","Measurement",{"$f":"Measurement!H18","v":0}]
[null,"Business Processes - Stage 1","Measurement",{"$f":"Measurement!I15","v":0}]
[null,"Business Processes - Stage 2","Measurement",{"$f":"Measurement!I16","v":0}]
[null,"Business Processes - Stage 3","Measurement",{"$f":"Measurement!I17","v":0}]
[null,"Business Processes - Stage 4","Measurement",{"$f":"Measurement!I18","v":0}]
[null,"Business Continuity - Stage 1","Measurement",{"$f":"Measurement!J15","v":0}]
[null,"Business Continuity - Stage 2","Measurement",{"$f":"Measurement!J16","v":0}]
[null,"Business Continuity - Stage 3","Measurement",{"$f":"Measurement!J17","v":0}]
[null,"Business Continuity - Stage 4","Measurement",{"$f":"Measurement!J18","v":0}]
[null,"Information Systems - Stage 1","Measurement",{"$f":"Measurement!K15","v":0}]
[null,"Information Systems - Stage 2","Measurement",{"$f":"Measurement!K16","v":0}]
[null,"Information Systems - Stage 3","Measurement",{"$f":"Measurement!K17","v":0}]
[null,"Information Systems - Stage 4","Measurement",{"$f":"Measurement!K18","v":0}]
[null,"Compliance - Stage 1","Measurement",{"$f":"Measurement!L15","v":0}]
[null,"Compliance - Stage 2","Measurement",{"$f":"Measurement!L16","v":0}]
[null,"Compliance - Stage 3","Measurement",{"$f":"Measurement!L17","v":0}]
[null,"Compliance - Stage 4","Measurement",{"$f":"Measurement!L18","v":0}]
[null,"Risk Response"]
[null,"Fraud - Stage 1","Response",{"$f":"Response!E15","v":0}]
[null,"Fraud - Stage 2","Response",{"$f":"Response!E16","v":0}]
[null,"Fraud - Stage 3","Response",{"$f":"Response!E17","v":0}]
[null,"Fraud - Stage 4","Response",{"$f":"Response!E18","v":0}]
[null,"Human Resources - Stage 1","Response",{"$f":"Response!F15","v":0}]
[null,"Human Resources - Stage 2","Response",{"$f":"Response!F16","v":0}]
[null,"Human Resources - Stage 3","Response",{"$f":"Response!F17","v":0}]
[null,"Human Resources - Stage 4","Response",{"$f":"Response!F18","v":0}]
[null,"Outsourcing - Stage 1","Response",{"$f":"Response!G15","v":0}]
[null,"Outsourcing - Stage 2","Response",{"$f":"Response!G16","v":0}]
[null,"Outsourcing - Stage 3","Response",{"$f":"Response!G17","v":0}]
[null,"Outsourcing - Stage 4","Response",{"$f":"Response!G18","v":0}]
[null,"Distribution Channels - Stage 1","Response",{"$f":"Response!H15","v":0}]
[null,"Distribution Channels - Stage 2","Response",{"$f":"Response!H16","v":0}]
[null,"Distribution Channels - Stage 3","Response",{"$f":"Response!H17","v":0}]
[null,"Distribution Channels - Stage 4","Response",{"$f":"Response!H18","v":0}]
[null,"Business Processes - Stage 1","Response",{"$f":"Response!I15","v":0}]
[null,"Business Processes - Stage 2","Response",{"$f":"Response!I16","v":0}]
[null,"Business Processes - Stage 3","Response",{"$f":"Response!I17","v":0}]
[null,"Business Processes - Stage 4","Response",{"$f":"Response!I18","v":0}]
[null,"Business Continuity - Stage 1","Response",{"$f":"Response!J15","v":0}]
[null,"Business Continuity - Stage 2","Response",{"$f":"Response!J16","v":0}]
[null,"Business Continuity - Stage 3","Response",{"$f":"Response!J17","v":0}]
[null,"Business Continuity - Stage 4","Response",{"$f":"Response!J18","v":0}]
[null,"Information Systems - Stage 1","Response",{"$f":"Response!K15","v":0}]
[null,"Information Systems - Stage 2","Response",{"$f":"Response!K16","v":0}]
[null,"Information Systems - Stage 3","Response",{"$f":"Response!K17","v":0}]
[null,"Information Systems - Stage 4","Response",{"$f":"Response!K18","v":0}]
[null,"Compliance - Stage 1","Response",{"$f":"Response!L15","v":0}]
[null,"Compliance - Stage 2","Response",{"$f":"Response!L16","v":0}]
[null,"Compliance - Stage 3","Response",{"$f":"Response!L17","v":0}]
[null,"Compliance - Stage 4","Response",{"$f":"Response!L18","v":0}]
[null,"Risk Monitoring & Reporting"]
[null,"Fraud - Stage 1","Monitoring & Reporting",{"$f":"'Monitoring & Reporting'!E15","v":0}]
[null,"Fraud - Stage 2","Monitoring & Reporting",{"$f":"'Monitoring & Reporting'!E16","v":0}]
[null,"Fraud - Stage 3","Monitoring & Reporting",{"$f":"'Monitoring & Reporting'!E17","v":0}]
[null,"Fraud - Stage 4","Monitoring & Reporting",{"$f":"'Monitoring & Reporting'!E18","v":0}]
[null,"Human Resources - Stage 1","Monitoring & Reporting",{"$f":"'Monitoring & Reporting'!F15","v":0}]
[null,"Human Resources - Stage 2","Monitoring & Reporting",{"$f":"'Monitoring & Reporting'!F16","v":0}]
[null,"Human Resources - Stage 3","Monitoring & Reporting",{"$f":"'Monitoring & Reporting'!F17","v":0}]
[null,"Human Resources - Stage 4","Monitoring & Reporting",{"$f":"'Monitoring & Reporting'!F18","v":0}]
[null,"Outsourcing - Stage 1","Monitoring & Reporting",{"$f":"'Monitoring & Reporting'!G15","v":0}]
[null,"Outsourcing - Stage 2","Monitoring & Reporting",{"$f":"'Monitoring & Reporting'!G16","v":0}]
[null,"Outsourcing - Stage 3","Monitoring & Reporting",{"$f":"'Monitoring & Reporting'!G17","v":0}]
[null,"Outsourcing - Stage 4","Monitoring & Reporting",{"$f":"'Monitoring & Reporting'!G18","v":0}]
[null,"Distribution Channels - Stage 1","Monitoring & Reporting",{"$f":"'Monitoring & Reporting'!H15","v":0}]
[null,"Distribution Channels - Stage 2","Monitoring & Reporting",{"$f":"'Monitoring & Reporting'!H16","v":0}]
[null,"Distribution Channels - Stage 3","Monitoring & Reporting",{"$f":"'Monitoring & Reporting'!H17","v":0}]
[null,"Distribution Channels - Stage 4","Monitoring & Reporting",{"$f":"'Monitoring & Reporting'!H18","v":0}]
[null,"Business Processes - Stage 1","Monitoring & Reporting",{"$f":"'Monitoring & Reporting'!I15","v":0}]
[null,"Business Processes - Stage 2","Monitoring & Reporting",{"$f":"'Monitoring & Reporting'!I16","v":0}]
[null,"Business Processes - Stage 3","Monitoring & Reporting",{"$f":"'Monitoring & Reporting'!I17","v":0}]
[null,"Business Processes - Stage 4","Monitoring & Reporting",{"$f":"'Monitoring & Reporting'!I18","v":0}]
[null,"Business Continuity - Stage 1","Monitoring & Reporting",{"$f":"'Monitoring & Reporting'!J15","v":0}]
[null,"Business Continuity - Stage 2","Monitoring & Reporting",{"$f":"'Monitoring & Reporting'!J16","v":0}]
[null,"Business Continuity - Stage 3","Monitoring & Reporting",{"$f":"'Monitoring & Reporting'!J17","v":0}]
[null,"Business Continuity - Stage 4","Monitoring & Reporting",{"$f":"'Monitoring & Reporting'!J18","v":0}]
[null,"Information Systems - Stage 1","Monitoring & Reporting",{"$f":"'Monitoring & Reporting'!K15","v":0}]
[null,"Information Systems - Stage 2","Monitoring & Reporting",{"$f":"'Monitoring & Reporting'!K16","v":0}]
[null,"Information Systems - Stage 3","Monitoring & Reporting",{"$f":"'Monitoring & Reporting'!K17","v":0}]
[null,"Information Systems - Stage 4","Monitoring & Reporting",{"$f":"'Monitoring & Reporting'!K18","v":0}]
[null,"Compliance - Stage 1","Monitoring & Reporting",{"$f":"'Monitoring & Reporting'!L15","v":0}]
[null,"Compliance - Stage 2","Monitoring & Reporting",{"$f":"'Monitoring & Reporting'!L16","v":0}]
[null,"Compliance - Stage 3","Monitoring & Reporting",{"$f":"'Monitoring & Reporting'!L17","v":0}]
[null,"Compliance - Stage 4","Monitoring & Reporting",{"$f":"'Monitoring & Reporting'!L18","v":0}]

{"sheet":"prt_res","index":129,"n_rows":54,"n_cols":4,"rows_kept":54,"cut":false,"hidden":true,"merged":[]}
[true,"Company_Information_Print",null,true]
[true,"Summary_Print",null,false]
[true,"Fixed_Income_Print"]
[true,"Equity_Print"]
[true,"Interest_Rate_Print"]
[true,"Credit_Print"]
[true,"Premium_Print"]
[true,"Reserve_Print"]
[true,"Cat_Print"]
[]
[]
[]
[]
[]
[]
[]
[]
[]
[]
[]
[]
[]
[]
[]
[]
[]
[]
[]
[]
[]
[]
[]
[]
[]
[]
[]
[]
[]
[]
[]
[]
[]
[]
[]
[]
[]
[]
[]
[]
[]
[]
[]
[]
[null,"a"]

{"sheet":"HiddenFormulas","index":130,"n_rows":1155,"n_cols":33,"rows_kept":1155,"cut":false,"hidden":true,"merged":[]}
["Summary",null,null,"Fixed Income Investments",null,null,"Equity Investments",null,null,"Interest Rate-Liquidity Risk",null,null,"Currency Risk",null,null,"Concentration Risk",null,null,"Geographic Diversification",null,null,"Credit Risk",null,null,"Premium Risk",null,null,"Reserve Risk",null,null,"Catastrophe Risk"]
[{"$f":"IFERROR(SUM(C2:AG2),999)","v":0},null,{"$f":"IFERROR(SUM(C3:C292),999)","v":0},null,null,{"$f":"IFERROR(SUM(F3:F168),999)","v":0},null,null,{"$f":"IFERROR(SUM(I3:I74),999)","v":0},null,null,{"$f":"IFERROR(SUM(L3:L21),999)","v":0},null,null,{"$f":"IFERROR(SUM(O3:O139),999)","v":0},null,null,{"$f":"IFERROR(SUM(R3:R312),999)","v":0},null,null,{"$f":"IFERROR(SUM(U3:U1155),999)","v":0},null,null,{"$f":"IFERROR(SUM(X3:X58),999)","v":0},null,null,{"$f":"IFERROR(SUM(AA3:AA157),999)","v":0},null,null,{"$f":"IFERROR(SUM(AD3:AD152),999)","v":0},null,null,{"$f":"IFERROR(SUM(AG3:AG28),999)","v":0}]
[null,null,292,null,null,168,null,null,74,null,null,21,null,null,139,null,null,312,null,null,1155,null,null,58,null,null,157,null,null,152,null,null,28]
[{"$f":"ADDRESS(2,1,1,1,$A$1)","v":"Summary!$A$2"},"='Company Information'!C7",{"$f":"IF(_xlfn.FORMULATEXT(INDIRECT(A4))=B4,0,1)","v":0},{"$f":"ADDRESS(2,1,1,1,$D$1)","v":"'Fixed Income Investments'!$A$2"},"='Company Information'!C7",{"$f":"IF(_xlfn.FORMULATEXT(INDIRECT(D4))=E4,0,1)","v":0},{"$f":"ADDRESS(2,1,1,1,$G$1)","v":"'Equity Investments'!$A$2"},"='Company Information'!C7",{"$f":"IF(_xlfn.FORMULATEXT(INDIRECT(G4))=H4,0,1)","v":0},{"$f":"ADDRESS(2,1,1,1,$J$1)","v":"'Interest Rate-Liquidity Risk'!$A$2"},"='Company Information'!C7",{"$f":"IF(_xlfn.FORMULATEXT(INDIRECT(J4))=K4,0,1)","v":0},{"$f":"ADDRESS(2,1,1,1,$M$1)","v":"'Currency Risk'!$A$2"},"='Company Information'!C7",{"$f":"IF(_xlfn.FORMULATEXT(INDIRECT(M4))=N4,0,1)","v":0},{"$f":"ADDRESS(2,1,1,1,$P$1)","v":"'Concentration Risk'!$A$2"},"='Company Information'!C7",{"$f":"IF(_xlfn.FORMULATEXT(INDIRECT(P4))=Q4,0,1)","v":0},{"$f":"ADDRESS(2,1,1,1,$S$1)","v":"'Geographic Diversification'!$A$2"},"='Company Information'!C7",{"$f":"IF(_xlfn.FORMULATEXT(INDIRECT(S4))=T4,0,1)","v":0},{"$f":"ADDRESS(2,1,1,1,$V$1)","v":"'Credit Risk'!$A$2"},"='Company Information'!C7",{"$f":"IF(_xlfn.FORMULATEXT(INDIRECT(V4))=W4,0,1)","v":0},{"$f":"ADDRESS(2,1,1,1,$Y$1)","v":"'Premium Risk'!$A$2"},"='Company Information'!C7",{"$f":"IF(_xlfn.FORMULATEXT(INDIRECT(Y4))=Z4,0,1)","v":0},{"$f":"ADDRESS(2,1,1,1,$AB$1)","v":"'Reserve Risk'!$A$2"},"='Company Information'!C7",{"$f":"IF(_xlfn.FORMULATEXT(INDIRECT(AB4))=AC4,0,1)","v":0},{"$f":"ADDRESS(2,1,1,1,$AE$1)","v":"'Catastrophe Risk'!$A$2"},"='Company Information'!C7",{"$f":"IF(_xlfn.FORMULATEXT(INDIRECT(AE4))=AF4,0,1)","v":0}]
[{"$f":"ADDRESS(4,1,1,1,$A$1)","v":"Summary!$A$4"},"=\"For the Year Ending \"",{"$f":"IF(_xlfn.FORMULATEXT(INDIRECT(A5))=B5,0,1)","v":0},{"$f":"ADDRESS(3,3,1,1,$D$1)","v":"'Fixed Income Investments'!$C$3"},"='Company Information'!C3",{"$f":"IF(_xlfn.FORMULATEXT(INDIRECT(D5))=E5,0,1)","v":0},{"$f":"ADDRESS(3,1,1,1,$G$1)","v":"'Equity Investments'!$A$3"},"=\"Equity Investment Risk\" & \"($\"&IF(CONFIGURATION!$B$12>1,MID(CONFIGURATION!$B$12,2,LEN(CONFIGURATION!$B$12)),\"\")&\")\"",{"$f":"IF(_xlfn.FORMULATEXT(INDIRECT(G5))=H5,0,1)","v":0},{"$f":"ADDRESS(3,1,1,1,$J$1)","v":"'Interest Rate-Liquidity Risk'!$A$3"},"=\"Interest Rate / Liquidity Risk\" & \"($\"&IF(CONFIGURATION!$B$12>1,MID(CONFIGURATION!$B$12,2,LEN(CONFIGURATION!$B$12)),\"\")&\")\"",{"$f":"IF(_xlfn.FORMULATEXT(INDIRECT(J5))=K5,0,1)","v":0},{"$f":"ADDRESS(3,3,1,1,$M$1)","v":"'Currency Risk'!$C$3"},"='Company Information'!C3",{"$f":"IF(_xlfn.FORMULATEXT(INDIRECT(M5))=N5,0,1)","v":0},{"$f":"ADDRESS(3,1,1,1,$P$1)","v":"'Concentration Risk'!$A$3"},"=\"Concentration Risk\" & \"($\"&IF(CONFIGURATION!$B$12>1,MID(CONFIGURATION!$B$12,2,LEN(CONFIGURATION!$B$12)),\"\")&\")\"",{"$f":"IF(_xlfn.FORMULATEXT(INDIRECT(P5))=Q5,0,1)","v":0},{"$f":"ADDRESS(3,1,1,1,$S$1)","v":"'Geographic Diversification'!$A$3"},"=\"Geographic Diversification\" & \"($\"&IF(CONFIGURATION!$B$12>1,MID(CONFIGURATION!$B$12,2,LEN(CONFIGURATION!$B$12)),\"\")&\")\"",{"$f":"IF(_xlfn.FORMULATEXT(INDIRECT(S5))=T5,0,1)","v":0},{"$f":"ADDRESS(3,1,1,1,$V$1)","v":"'Credit Risk'!$A$3"},"=\"Credit Risk\" & \"($\"&IF(CONFIGURATION!$B$12>1,MID(CONFIGURATION!$B$12,2,LEN(CONFIGURATION!$B$12)),\"\")&\")\"",{"$f":"IF(_xlfn.FORMULATEXT(INDIRECT(V5))=W5,0,1)","v":0},{"$f":"ADDRESS(3,1,1,1,$Y$1)","v":"'Premium Risk'!$A$3"},"=\"Premium Risk\" & \"($\"&IF(CONFIGURATION!$B$12>1,MID(CONFIGURATION!$B$12,2,LEN(CONFIGURATION!$B$12)),\"\")&\")\"",{"$f":"IF(_xlfn.FORMULATEXT(INDIRECT(Y5))=Z5,0,1)","v":0},{"$f":"ADDRESS(3,1,1,1,$AB$1)","v":"'Reserve Risk'!$A$3"},"=\"Reserve Risk\"& \"($\"&IF(CONFIGURATION!$B$12>1,MID(CONFIGURATION!$B$12,2,LEN(CONFIGURATION!$B$12)),\"\")&\")\"",{"$f":"IF(_xlfn.FORMULATEXT(INDIRECT(AB5))=AC5,0,1)","v":0},{"$f":"ADDRESS(3,1,1,1,$AE$1)","v":"'Catastrophe Risk'!$A$3"},"=\"Catastrophe Risk\" & \"($\"&IF(CONFIGURATION!$B$12>1,MID(CONFIGURATION!$B$12,2,LEN(CONFIGURATION!$B$12)),\"\")&\")\"",{"$f":"IF(_xlfn.FORMULATEXT(INDIRECT(AE5))=AF5,0,1)","v":0}]
[{"$f":"ADDRESS(4,4,1,1,$A$1)","v":"Summary!$D$4"},"=TEXT('Company Information'!C3,\"mmmm dd, yyyy\")",{"$f":"IF(_xlfn.FORMULATEXT(INDIRECT(A6))=B6,0,1)","v":0},{"$f":"ADDRESS(12,4,1,1,$D$1)","v":"'Fixed Income Investments'!$D$12"},"='Schedule II (EBS)'!D12+'Schedule IIA (EBS)'!D12",{"$f":"IF(_xlfn.FORMULATEXT(INDIRECT(D6))=E6,0,1)","v":0},{"$f":"ADDRESS(3,3,1,1,$G$1)","v":"'Equity Investments'!$C$3"},"='Company Information'!C3",{"$f":"IF(_xlfn.FORMULATEXT(INDIRECT(G6))=H6,0,1)","v":0},{"$f":"ADDRESS(3,3,1,1,$J$1)","v":"'Interest Rate-Liquidity Risk'!$C$3"},"='Company Information'!C3",{"$f":"IF(_xlfn.FORMULATEXT(INDIRECT(J6))=K6,0,1)","v":0},{"$f":"ADDRESS(5,7,1,1,$M$1)","v":"'Currency Risk'!$G$5"},"=\"(E) = (\"&ROUND(G6,2)*100&\"% of C)\"",{"$f":"IF(_xlfn.FORMULATEXT(INDIRECT(M6))=N6,0,1)","v":0},{"$f":"ADDRESS(3,3,1,1,$P$1)","v":"'Concentration Risk'!$C$3"},"='Company Information'!C3",{"$f":"IF(_xlfn.FORMULATEXT(INDIRECT(P6))=Q6,0,1)","v":0},{"$f":"ADDRESS(3,3,1,1,$S$1)","v":"'Geographic Diversification'!$C$3"},"='Company Information'!C3",{"$f":"IF(_xlfn.FORMULATEXT(INDIRECT(S6))=T6,0,1)","v":0},{"$f":"ADDRESS(3,3,1,1,$V$1)","v":"'Credit Risk'!$C$3"},"='Company Information'!C3",{"$f":"IF(_xlfn.FORMULATEXT(INDIRECT(V6))=W6,0,1)","v":0},{"$f":"ADDRESS(3,4,1,1,$Y$1)","v":"'Premium Risk'!$D$3"},"='Company Information'!C3",{"$f":"IF(_xlfn.FORMULATEXT(INDIRECT(Y6))=Z6,0,1)","v":0},{"$f":"ADDRESS(3,3,1,1,$AB$1)","v":"'Reserve Risk'!$C$3"},"='Company Information'!$C$3",{"$f":"IF(_xlfn.FORMULATEXT(INDIRECT(AB6))=AC6,0,1)","v":0},{"$f":"ADDRESS(3,3,1,1,$AE$1)","v":"'Catastrophe Risk'!$C$3"},"='Company Information'!C3",{"$f":"IF(_xlfn.FORMULATEXT(INDIRECT(AE6))=AF6,0,1)","v":0}]
[{"$f":"ADDRESS(5,1,1,1,$A$1)","v":"Summary!$A$5"},"=\"(\"&IF(CONFIGURATION!$B$12>1,MID(CONFIGURATION!$B$12,2,LEN(CONFIGURATION!$B$12)),\"\")&\")\"",{"$f":"IF(_xlfn.FORMULATEXT(INDIRECT(A7))=B7,0,1)","v":0},{"$f":"ADDRESS(12,5,1,1,$D$1)","v":"'Fixed Income Investments'!$E$12"},0,{"$f":"IF(INDIRECT(D7)=E7,0,1)","v":0},{"$f":"ADDRESS(11,4,1,1,$G$1)","v":"'Equity Investments'!$D$11"},"='Schedule II (EBS)'!D41+'Schedule IIA (EBS)'!D41",{"$f":"IF(_xlfn.FORMULATEXT(INDIRECT(G7))=H7,0,1)","v":0},{"$f":"ADDRESS(11,4,1,1,$J$1)","v":"'Interest Rate-Liquidity Risk'!$D$11"},"=+'Schedule II (EBS)'!T22+'Schedule IIA (EBS)'!T22",{"$f":"IF(_xlfn.FORMULATEXT(INDIRECT(J7))=K7,0,1)","v":0},{"$f":"ADDRESS(6,7,1,1,$M$1)","v":"'Currency Risk'!$G$6"},"=+'Schedule XX'!T36",{"$f":"IF(_xlfn.FORMULATEXT(INDIRECT(M7))=N7,0,1)","v":0},{"$f":"ADDRESS(9,4,1,1,$P$1)","v":"'Concentration Risk'!$D$9"},"Cash and Cash Equivalent",{"$f":"IF(INDIRECT(P7)=Q7,0,1)","v":0},{"$f":"ADDRESS(9,4,1,1,$S$1)","v":"'Geographic Diversification'!$D$9"},"=SUM(I9:Z9)",{"$f":"IF(_xlfn.FORMULATEXT(INDIRECT(S7))=T7,0,1)","v":0},{"$f":"ADDRESS(11,4,1,1,$V$1)","v":"'Credit Risk'!$D$11"},"='Form 1EBS'!F57",{"$f":"IF(_xlfn.FORMULATEXT(INDIRECT(V7))=W7,0,1)","v":0},{"$f":"ADDRESS(11,5,1,1,$Y$1)","v":"'Premium Risk'!$E$11"},"=+'Schedule IVA (EBS)'!M11",{"$f":"IF(_xlfn.FORMULATEXT(INDIRECT(Y7))=Z7,0,1)","v":0},{"$f":"ADDRESS(11,4,1,1,$AB$1)","v":"'Reserve Risk'!$D$11"},"=+'Schedule III (EBS)'!D10",{"$f":"IF(_xlfn.FORMULATEXT(INDIRECT(AB7))=AC7,0,1)","v":0},{"$f":"ADDRESS(7,2,1,1,$AE$1)","v":"'Catastrophe Risk'!$B$7"},"=IF('Company Information'!F11=\"Class 3A\",\"(a)  Gross Probable Maximum Loss (if property catastrophe writer)\",\"(a)  Gross Probable Maximum Loss\")",{"$f":"IF(_xlfn.FORMULATEXT(INDIRECT(AE7))=AF7,0,1)","v":0}]
[{"$f":"ADDRESS(11,7,1,1,$A$1)","v":"Summary!$G$11"},"=IF('Company Information'!$B$2=\"Unconsolidated BSCR Model\",'Form 1SFS'!$M$198,'Form 1SFS'!$E$198)*IF('Form 1SFS'!$C$5=\"United States Dollars\",1,'Information Sheet'!$H$18)",{"$f":"IF(_xlfn.FORMULATEXT(INDIRECT(A8))=B8,0,1)","v":0},{"$f":"ADDRESS(12,6,1,1,$D$1)","v":"'Fixed Income Investments'!$F$12"},"=IF(D12<0,0,D12*E12)",{"$f":"IF(_xlfn.FORMULATEXT(INDIRECT(D8))=E8,0,1)","v":0},{"$f":"ADDRESS(11,5,1,1,$G$1)","v":"'Equity Investments'!$E$11"},0.14399999999999999,{"$f":"IF(INDIRECT(G8)=H8,0,1)","v":0},{"$f":"ADDRESS(11,5,1,1,$J$1)","v":"'Interest Rate-Liquidity Risk'!$E$11"},"=IF('Company Information'!F11=\"Class 3A\",IF(('Schedule V'!$H$12-'Schedule V'!$H$10)>3.5,3.5,MAX(1,'Schedule V'!$H$10-'Schedule V'!$H$12,'Schedule V'!$H$12-'Schedule V'!$H$10)),IF('Schedule V'!$H$10-'Schedule V'!$H$12>=1,'Schedule V'!$H$10-'Schedule V'!$H$12,IF('Schedule V'!$H$12-'Schedule V'!$H$10>=1,'Schedule V'!$H$12-'Schedule V'!$H$10,1)))",{"$f":"IF(_xlfn.FORMULATEXT(INDIRECT(J8))=K8,0,1)","v":0},{"$f":"ADDRESS(9,2,1,1,$M$1)","v":"'Currency Risk'!$B$9"},"='Schedule XX'!B9",{"$f":"IF(_xlfn.FORMULATEXT(INDIRECT(M8))=N8,0,1)","v":0},{"$f":"ADDRESS(10,2,1,1,$P$1)","v":"'Concentration Risk'!$B$10"},"BSCR Rating 0",{"$f":"IF(INDIRECT(P8)=Q8,0,1)","v":0},{"$f":"ADDRESS(9,5,1,1,$S$1)","v":"'Geographic Diversification'!$E$9"},"=SUMSQ(I9:Z9)",{"$f":"IF(_xlfn.FORMULATEXT(INDIRECT(S8))=T8,0,1)","v":0},{"$f":"ADDRESS(11,5,1,1,$V$1)","v":"'Credit Risk'!$E$11"},0.05,{"$f":"IF(INDIRECT(V8)=W8,0,1)","v":0},{"$f":"ADDRESS(11,6,1,1,$Y$1)","v":"'Premium Risk'!$F$11"},"='Schedule IVA (EBS)'!Q11",{"$f":"IF(_xlfn.FORMULATEXT(INDIRECT(Y8))=Z8,0,1)","v":0},{"$f":"ADDRESS(11,5,1,1,$AB$1)","v":"'Reserve Risk'!$E$11"},"=+'Schedule III (EBS)'!F10",{"$f":"IF(_xlfn.FORMULATEXT(INDIRECT(AB8))=AC8,0,1)","v":0},{"$f":"ADDRESS(7,3,1,1,$AE$1)","v":"'Catastrophe Risk'!$C$7"},"=IF('Company Information'!F11=\"Class 3A\",\"Schedule V, Line (f)\",\"Schedule V, Line (g)\")",{"$f":"IF(_xlfn.FORMULATEXT(INDIRECT(AE8))=AF8,0,1)","v":0}]
[{"$f":"ADDRESS(11,14,1,1,$A$1)","v":"Summary!$N$11"},"=IF('Company Information'!$B$2=\"Unconsolidated BSCR Model\",'Form 1SFS'!$M$12,'Form 1SFS'!$E$12)",{"$f":"IF(_xlfn.FORMULATEXT(INDIRECT(A9))=B9,0,1)","v":0},{"$f":"ADDRESS(13,4,1,1,$D$1)","v":"'Fixed Income Investments'!$D$13"},"='Schedule II (EBS)'!D13+'Schedule IIA (EBS)'!D13",{"$f":"IF(_xlfn.FORMULATEXT(INDIRECT(D9))=E9,0,1)","v":0},{"$f":"ADDRESS(11,6,1,1,$G$1)","v":"'Equity Investments'!$F$11"},"=IF($D$11<0,0,$D$11*$E$11)",{"$f":"IF(_xlfn.FORMULATEXT(INDIRECT(G9))=H9,0,1)","v":0},{"$f":"ADDRESS(11,6,1,1,$J$1)","v":"'Interest Rate-Liquidity Risk'!$F$11"},0.02,{"$f":"IF(INDIRECT(J9)=K9,0,1)","v":0},{"$f":"ADDRESS(9,3,1,1,$M$1)","v":"'Currency Risk'!$C$9"},"='Schedule XX'!L9",{"$f":"IF(_xlfn.FORMULATEXT(INDIRECT(M9))=N9,0,1)","v":0},{"$f":"ADDRESS(10,4,1,1,$P$1)","v":"'Concentration Risk'!$D$10"},"=SUMIFS('Schedule XXI'!$M$8:$M$57,'Schedule XXI'!$J$8:$J$57,$D$9,'Schedule XXI'!$L$8:$L$57,$B10)",{"$f":"IF(_xlfn.FORMULATEXT(INDIRECT(P9))=Q9,0,1)","v":0},{"$f":"ADDRESS(9,6,1,1,$S$1)","v":"'Geographic Diversification'!$F$9"},"=(IF(D9>0,E9/D9^2,1))",{"$f":"IF(_xlfn.FORMULATEXT(INDIRECT(S9))=T9,0,1)","v":0},{"$f":"ADDRESS(11,6,1,1,$V$1)","v":"'Credit Risk'!$F$11"},"=IF($D$11<0,0,$D$11*$E$11)",{"$f":"IF(_xlfn.FORMULATEXT(INDIRECT(V9))=W9,0,1)","v":0},{"$f":"ADDRESS(11,7,1,1,$Y$1)","v":"'Premium Risk'!$G$11"},"=+'Geographic Diversification'!H9",{"$f":"IF(_xlfn.FORMULATEXT(INDIRECT(Y9))=Z9,0,1)","v":0},{"$f":"ADDRESS(11,6,1,1,$AB$1)","v":"'Reserve Risk'!$F$11"},"=+'Geographic Diversification'!H40",{"$f":"IF(_xlfn.FORMULATEXT(INDIRECT(AB9))=AC9,0,1)","v":0},{"$f":"ADDRESS(7,5,1,1,$AE$1)","v":"'Catastrophe Risk'!$E$7"},"='Schedule V'!H16",{"$f":"IF(_xlfn.FORMULATEXT(INDIRECT(AE9))=AF9,0,1)","v":0}]
[{"$f":"ADDRESS(18,3,1,1,$A$1)","v":"Summary!$C$18"},"=IF('Company Information'!F11=\"Class 4\",\"\",\"20% of 1st $6M NPW\")",{"$f":"IF(_xlfn.FORMULATEXT(INDIRECT(A10))=B10,0,1)","v":0},{"$f":"ADDRESS(13,5,1,1,$D$1)","v":"'Fixed Income Investments'!$E$13"},4.0000000000000001E-3,{"$f":"IF(INDIRECT(D10)=E10,0,1)","v":0},{"$f":"ADDRESS(12,4,1,1,$G$1)","v":"'Equity Investments'!$D$12"},"='Schedule II (EBS)'!D42+'Schedule IIA (EBS)'!D42",{"$f":"IF(_xlfn.FORMULATEXT(INDIRECT(G10))=H10,0,1)","v":0},{"$f":"ADDRESS(11,7,1,1,$J$1)","v":"'Interest Rate-Liquidity Risk'!$G$11"},"=IF($E$11<0,0,$D$11*$E$11*$F$11)",{"$f":"IF(_xlfn.FORMULATEXT(INDIRECT(J10))=K10,0,1)","v":0},{"$f":"ADDRESS(9,4,1,1,$M$1)","v":"'Currency Risk'!$D$9"},"='Schedule XX'!N9",{"$f":"IF(_xlfn.FORMULATEXT(INDIRECT(M10))=N10,0,1)","v":0},{"$f":"ADDRESS(10,5,1,1,$P$1)","v":"'Concentration Risk'!$E$10"},"=+'Fixed Income Investments'!E83",{"$f":"IF(_xlfn.FORMULATEXT(INDIRECT(P10))=Q10,0,1)","v":0},{"$f":"ADDRESS(9,7,1,1,$S$1)","v":"'Geographic Diversification'!$G$9"},"=D9*(0.75+0.25*F9)",{"$f":"IF(_xlfn.FORMULATEXT(INDIRECT(S10))=T10,0,1)","v":0},{"$f":"ADDRESS(12,4,1,1,$V$1)","v":"'Credit Risk'!$D$12"},"='Form 1EBS'!F58-'Form 1EBS'!F179",{"$f":"IF(_xlfn.FORMULATEXT(INDIRECT(V10))=W10,0,1)","v":0},{"$f":"ADDRESS(11,8,1,1,$Y$1)","v":"'Premium Risk'!$H$11"},0,{"$f":"IF(INDIRECT(Y10)=Z10,0,1)","v":0},{"$f":"ADDRESS(11,7,1,1,$AB$1)","v":"'Reserve Risk'!$G$11"},0.46158858246802098,{"$f":"IF(INDIRECT(AB10)=AC10,0,1)","v":0},{"$f":"ADDRESS(9,2,1,1,$AE$1)","v":"'Catastrophe Risk'!$B$9"},"=IF('Company Information'!F11=\"Class 3A\",\"(b)  Net Probable Maximum Loss (if property catastrophe writer)\",\"(b)  Net Probable Maximum Loss\")",{"$f":"IF(_xlfn.FORMULATEXT(INDIRECT(AE10))=AF10,0,1)","v":0}]
[{"$f":"ADDRESS(19,2,1,1,$A$1)","v":"Summary!$B$19"},"=IF('Company Information'!$F$11=\"Class 4\",50,15)",{"$f":"IF(_xlfn.FORMULATEXT(INDIRECT(A11))=B11,0,1)","v":0},{"$f":"ADDRESS(13,6,1,1,$D$1)","v":"'Fixed Income Investments'!$F$13"},"=IF(D13<0,0,D13*E13)",{"$f":"IF(_xlfn.FORMULATEXT(INDIRECT(D11))=E11,0,1)","v":0},{"$f":"ADDRESS(12,5,1,1,$G$1)","v":"'Equity Investments'!$E$12"},0.14399999999999999,{"$f":"IF(INDIRECT(G11)=H11,0,1)","v":0},{"$f":"ADDRESS(12,4,1,1,$J$1)","v":"'Interest Rate-Liquidity Risk'!$D$12"},"=+'Schedule II (EBS)'!H44+'Schedule IIA (EBS)'!H44",{"$f":"IF(_xlfn.FORMULATEXT(INDIRECT(J11))=K11,0,1)","v":0},{"$f":"ADDRESS(9,5,1,1,$M$1)","v":"'Currency Risk'!$E$9"},"='Schedule XX'!P9",{"$f":"IF(_xlfn.FORMULATEXT(INDIRECT(M11))=N11,0,1)","v":0},{"$f":"ADDRESS(10,6,1,1,$P$1)","v":"'Concentration Risk'!$F$10"},"=MAX(0,(D10*E10))",{"$f":"IF(_xlfn.FORMULATEXT(INDIRECT(P11))=Q11,0,1)","v":0},{"$f":"ADDRESS(9,8,1,1,$S$1)","v":"'Geographic Diversification'!$H$9"},"=IF('Schedule IVC (EBS)'!AB9=\"True\",G9,'Schedule IVA (EBS)'!Q11)",{"$f":"IF(_xlfn.FORMULATEXT(INDIRECT(S11))=T11,0,1)","v":0},{"$f":"ADDRESS(12,5,1,1,$V$1)","v":"'Credit Risk'!$E$12"},0.1,{"$f":"IF(INDIRECT(V11)=W11,0,1)","v":0},{"$f":"ADDRESS(11,9,1,1,$Y$1)","v":"'Premium Risk'!$I$11"},"=IF($G$11<0,0,$G$11*$H$11)",{"$f":"IF(_xlfn.FORMULATEXT(INDIRECT(Y11))=Z11,0,1)","v":0},{"$f":"ADDRESS(11,8,1,1,$AB$1)","v":"'Reserve Risk'!$H$11"},"=IF($F$11<0,0,$F$11*$G$11)",{"$f":"IF(_xlfn.FORMULATEXT(INDIRECT(AB11))=AC11,0,1)","v":0},{"$f":"ADDRESS(9,3,1,1,$AE$1)","v":"'Catastrophe Risk'!$C$9"},"=IF('Company Information'!F11=\"Class 3A\",\"Schedule V, Line (g)\",\"Schedule V, Line (h)\")",{"$f":"IF(_xlfn.FORMULATEXT(INDIRECT(AE11))=AF11,0,1)","v":0}]
[{"$f":"ADDRESS(19,3,1,1,$A$1)","v":"Summary!$C$19"},"=IF('Company Information'!F11=\"Class 4\",\"% of NPW\",\"% of any above NPW above $6M\")",{"$f":"IF(_xlfn.FORMULATEXT(INDIRECT(A12))=B12,0,1)","v":0},{"$f":"ADDRESS(14,4,1,1,$D$1)","v":"'Fixed Income Investments'!$D$14"},"='Schedule II (EBS)'!D14+'Schedule IIA (EBS)'!D14",{"$f":"IF(_xlfn.FORMULATEXT(INDIRECT(D12))=E12,0,1)","v":0},{"$f":"ADDRESS(12,6,1,1,$G$1)","v":"'Equity Investments'!$F$12"},"=IF($D$12<0,0,$D$12*$E$12)",{"$f":"IF(_xlfn.FORMULATEXT(INDIRECT(G12))=H12,0,1)","v":0},{"$f":"ADDRESS(12,5,1,1,$J$1)","v":"'Interest Rate-Liquidity Risk'!$E$12"},"=IF('Company Information'!F11=\"Class 3A\",IF(('Schedule V'!$H$12-'Schedule V'!$H$10)>3.5,3.5,MAX(1,'Schedule V'!$H$10-'Schedule V'!$H$12,'Schedule V'!$H$12-'Schedule V'!$H$10)),IF('Schedule V'!$H$10-'Schedule V'!$H$12>=1,'Schedule V'!$H$10-'Schedule V'!$H$12,IF('Schedule V'!$H$12-'Schedule V'!$H$10>=1,'Schedule V'!$H$12-'Schedule V'!$H$10,1)))",{"$f":"IF(_xlfn.FORMULATEXT(INDIRECT(J12))=K12,0,1)","v":0},{"$f":"ADDRESS(9,6,1,1,$M$1)","v":"'Currency Risk'!$F$9"},"='Schedule XX'!R9",{"$f":"IF(_xlfn.FORMULATEXT(INDIRECT(M12))=N12,0,1)","v":0},{"$f":"ADDRESS(11,2,1,1,$P$1)","v":"'Concentration Risk'!$B$11"},"BSCR Rating 1",{"$f":"IF(INDIRECT(P12)=Q12,0,1)","v":0},{"$f":"ADDRESS(9,9,1,1,$S$1)","v":"'Geographic Diversification'!$I$9"},"=+'Schedule IVC (EBS)'!E9",{"$f":"IF(_xlfn.FORMULATEXT(INDIRECT(S12))=T12,0,1)","v":0},{"$f":"ADDRESS(12,6,1,1,$V$1)","v":"'Credit Risk'!$F$12"},"=$D$12*$E$12",{"$f":"IF(_xlfn.FORMULATEXT(INDIRECT(V12))=W12,0,1)","v":0},{"$f":"ADDRESS(12,5,1,1,$Y$1)","v":"'Premium Risk'!$E$12"},"=+'Schedule IVA (EBS)'!M12",{"$f":"IF(_xlfn.FORMULATEXT(INDIRECT(Y12))=Z12,0,1)","v":0},{"$f":"ADDRESS(12,4,1,1,$AB$1)","v":"'Reserve Risk'!$D$12"},"=+'Schedule III (EBS)'!D11",{"$f":"IF(_xlfn.FORMULATEXT(INDIRECT(AB12))=AC12,0,1)","v":0},{"$f":"ADDRESS(9,5,1,1,$AE$1)","v":"'Catastrophe Risk'!$E$9"},"='Schedule V'!H18",{"$f":"IF(_xlfn.FORMULATEXT(INDIRECT(AE12))=AF12,0,1)","v":0}]
[{"$f":"ADDRESS(25,2,1,1,$A$1)","v":"Summary!$B$25"},0.15,{"$f":"IF(INDIRECT(A13)=B13,0,1)","v":0},{"$f":"ADDRESS(14,5,1,1,$D$1)","v":"'Fixed Income Investments'!$E$14"},8.0000000000000002E-3,{"$f":"IF(INDIRECT(D13)=E13,0,1)","v":0},{"$f":"ADDRESS(13,4,1,1,$G$1)","v":"'Equity Investments'!$D$13"},"=+'Schedule II (EBS)'!L44+'Schedule IIA (EBS)'!L44",{"$f":"IF(_xlfn.FORMULATEXT(INDIRECT(G13))=H13,0,1)","v":0},{"$f":"ADDRESS(12,6,1,1,$J$1)","v":"'Interest Rate-Liquidity Risk'!$F$12"},0.02,{"$f":"IF(INDIRECT(J13)=K13,0,1)","v":0},{"$f":"ADDRESS(9,7,1,1,$M$1)","v":"'Currency Risk'!$G$9"},"=IF(F9=0,E9*$G$6,F9*$G$6)",{"$f":"IF(_xlfn.FORMULATEXT(INDIRECT(M13))=N13,0,1)","v":0},{"$f":"ADDRESS(11,4,1,1,$P$1)","v":"'Concentration Risk'!$D$11"},"=SUMIFS('Schedule XXI'!$M$8:$M$57,'Schedule XXI'!$J$8:$J$57,$D$9,'Schedule XXI'!$L$8:$L$57,$B11)",{"$f":"IF(_xlfn.FORMULATEXT(INDIRECT(P13))=Q13,0,1)","v":0},{"$f":"ADDRESS(9,10,1,1,$S$1)","v":"'Geographic Diversification'!$J$9"},"=+'Schedule IVC (EBS)'!F9",{"$f":"IF(_xlfn.FORMULATEXT(INDIRECT(S13))=T13,0,1)","v":0},{"$f":"ADDRESS(14,4,1,1,$V$1)","v":"'Credit Risk'!$D$14"},"=SUM(D11:D12)",{"$f":"IF(_xlfn.FORMULATEXT(INDIRECT(V13))=W13,0,1)","v":0},{"$f":"ADDRESS(12,6,1,1,$Y$1)","v":"'Premium Risk'!$F$12"},"='Schedule IVA (EBS)'!Q12",{"$f":"IF(_xlfn.FORMULATEXT(INDIRECT(Y13))=Z13,0,1)","v":0},{"$f":"ADDRESS(12,5,1,1,$AB$1)","v":"'Reserve Risk'!$E$12"},"=+'Schedule III (EBS)'!F11",{"$f":"IF(_xlfn.FORMULATEXT(INDIRECT(AB13))=AC13,0,1)","v":0},{"$f":"ADDRESS(11,3,1,1,$AE$1)","v":"'Catastrophe Risk'!$C$11"},"=IF('Company Information'!F11=\"Class 3A\",\"Schedule V, Line (h)\",\"Schedule V, Line (i)\")",{"$f":"IF(_xlfn.FORMULATEXT(INDIRECT(AE13))=AF13,0,1)","v":0}]
[{"$f":"ADDRESS(33,7,1,1,$A$1)","v":"Summary!$G$33"},"=IF(G11>=G31,\"YES\",\"NO\")",{"$f":"IF(_xlfn.FORMULATEXT(INDIRECT(A14))=B14,0,1)","v":0},{"$f":"ADDRESS(14,6,1,1,$D$1)","v":"'Fixed Income Investments'!$F$14"},"=IF(D14<0,0,D14*E14)",{"$f":"IF(_xlfn.FORMULATEXT(INDIRECT(D14))=E14,0,1)","v":0},{"$f":"ADDRESS(13,5,1,1,$G$1)","v":"'Equity Investments'!$E$13"},0.14399999999999999,{"$f":"IF(INDIRECT(G14)=H14,0,1)","v":0},{"$f":"ADDRESS(12,7,1,1,$J$1)","v":"'Interest Rate-Liquidity Risk'!$G$12"},"=IF($E$12<0,0, $D$12*$E$12*$F$12)",{"$f":"IF(_xlfn.FORMULATEXT(INDIRECT(J14))=K14,0,1)","v":0},{"$f":"ADDRESS(9,8,1,1,$M$1)","v":"'Currency Risk'!$H$9"},0,{"$f":"IF(INDIRECT(M14)=N14,0,1)","v":0},{"$f":"ADDRESS(11,5,1,1,$P$1)","v":"'Concentration Risk'!$E$11"},"=+'Fixed Income Investments'!E84",{"$f":"IF(_xlfn.FORMULATEXT(INDIRECT(P14))=Q14,0,1)","v":0},{"$f":"ADDRESS(9,11,1,1,$S$1)","v":"'Geographic Diversification'!$K$9"},"=+'Schedule IVC (EBS)'!G9",{"$f":"IF(_xlfn.FORMULATEXT(INDIRECT(S14))=T14,0,1)","v":0},{"$f":"ADDRESS(14,6,1,1,$V$1)","v":"'Credit Risk'!$F$14"},"=IF(SUM(F11:F12)>=0,SUM(F11:F12),0)",{"$f":"IF(_xlfn.FORMULATEXT(INDIRECT(V14))=W14,0,1)","v":0},{"$f":"ADDRESS(12,7,1,1,$Y$1)","v":"'Premium Risk'!$G$12"},"=+'Geographic Diversification'!H10",{"$f":"IF(_xlfn.FORMULATEXT(INDIRECT(Y14))=Z14,0,1)","v":0},{"$f":"ADDRESS(12,6,1,1,$AB$1)","v":"'Reserve Risk'!$F$12"},"=+'Geographic Diversification'!H41",{"$f":"IF(_xlfn.FORMULATEXT(INDIRECT(AB14))=AC14,0,1)","v":0},{"$f":"ADDRESS(11,5,1,1,$AE$1)","v":"'Catastrophe Risk'!$E$11"},"='Schedule V'!H20",{"$f":"IF(_xlfn.FORMULATEXT(INDIRECT(AE14))=AF14,0,1)","v":0}]
[{"$f":"ADDRESS(33,15,1,1,$A$1)","v":"Summary!$O$33"},"=IF(O20>=O28,\"YES\",\"NO\")",{"$f":"IF(_xlfn.FORMULATEXT(INDIRECT(A15))=B15,0,1)","v":0},{"$f":"ADDRESS(15,4,1,1,$D$1)","v":"'Fixed Income Investments'!$D$15"},"='Schedule II (EBS)'!D15+'Schedule IIA (EBS)'!D15",{"$f":"IF(_xlfn.FORMULATEXT(INDIRECT(D15))=E15,0,1)","v":0},{"$f":"ADDRESS(13,6,1,1,$G$1)","v":"'Equity Investments'!$F$13"},"=IF($D$13<0,0,$D$13*$E$13)",{"$f":"IF(_xlfn.FORMULATEXT(INDIRECT(G15))=H15,0,1)","v":0},{"$f":"ADDRESS(13,4,1,1,$J$1)","v":"'Interest Rate-Liquidity Risk'!$D$13"},"=+'Schedule II (EBS)'!D62+'Schedule IIA (EBS)'!D62",{"$f":"IF(_xlfn.FORMULATEXT(INDIRECT(J15))=K15,0,1)","v":0},{"$f":"ADDRESS(9,9,1,1,$M$1)","v":"'Currency Risk'!$I$9"},"=IF(SUM(C10:E23)=0,0,IF(D9=0,H9*ABS(C9-E9-G9),H9*ABS(D9-F9-G9)))",{"$f":"IF(_xlfn.FORMULATEXT(INDIRECT(M15))=N15,0,1)","v":0},{"$f":"ADDRESS(11,6,1,1,$P$1)","v":"'Concentration Risk'!$F$11"},"=MAX(0,(D11*E11))",{"$f":"IF(_xlfn.FORMULATEXT(INDIRECT(P15))=Q15,0,1)","v":0},{"$f":"ADDRESS(9,12,1,1,$S$1)","v":"'Geographic Diversification'!$L$9"},"=+'Schedule IVC (EBS)'!H9",{"$f":"IF(_xlfn.FORMULATEXT(INDIRECT(S15))=T15,0,1)","v":0},{"$f":"ADDRESS(18,4,1,1,$V$1)","v":"'Credit Risk'!$D$18"},"='Form 1EBS'!F54",{"$f":"IF(_xlfn.FORMULATEXT(INDIRECT(V15))=W15,0,1)","v":0},{"$f":"ADDRESS(12,8,1,1,$Y$1)","v":"'Premium Risk'!$H$12"},0.497450025355053,{"$f":"IF(INDIRECT(Y15)=Z15,0,1)","v":0},{"$f":"ADDRESS(12,7,1,1,$AB$1)","v":"'Reserve Risk'!$G$12"},0.43844984238218698,{"$f":"IF(INDIRECT(AB15)=AC15,0,1)","v":0},{"$f":"ADDRESS(13,5,1,1,$AE$1)","v":"'Catastrophe Risk'!$E$13"},0.4,{"$f":"IF(INDIRECT(AE15)=AF15,0,1)","v":0}]
[{"$f":"ADDRESS(40,2,1,1,$A$1)","v":"Summary!$B$40"},"=\"Unconsolidated Statutory Capital & Surplus for \"&YEAR('Form 1SFS'!$G$9)",{"$f":"IF(_xlfn.FORMULATEXT(INDIRECT(A16))=B16,0,1)","v":0},{"$f":"ADDRESS(15,5,1,1,$D$1)","v":"'Fixed Income Investments'!$E$15"},1.4999999999999999E-2,{"$f":"IF(INDIRECT(D16)=E16,0,1)","v":0},{"$f":"ADDRESS(15,4,1,1,$G$1)","v":"'Equity Investments'!$D$15"},"=SUM(D11:D13)",{"$f":"IF(_xlfn.FORMULATEXT(INDIRECT(G16))=H16,0,1)","v":0},{"$f":"ADDRESS(13,5,1,1,$J$1)","v":"'Interest Rate-Liquidity Risk'!$E$13"},"=IF('Company Information'!F11=\"Class 3A\",IF(('Schedule V'!$H$12-'Schedule V'!$H$10)>3.5,3.5,MAX(1,'Schedule V'!$H$10-'Schedule V'!$H$12,'Schedule V'!$H$12-'Schedule V'!$H$10)),IF('Schedule V'!$H$10-'Schedule V'!$H$12>=1,'Schedule V'!$H$10-'Schedule V'!$H$12,IF('Schedule V'!$H$12-'Schedule V'!$H$10>=1,'Schedule V'!$H$12-'Schedule V'!$H$10,1)))",{"$f":"IF(_xlfn.FORMULATEXT(INDIRECT(J16))=K16,0,1)","v":0},{"$f":"ADDRESS(10,2,1,1,$M$1)","v":"'Currency Risk'!$B$10"},"='Schedule XX'!B10",{"$f":"IF(_xlfn.FORMULATEXT(INDIRECT(M16))=N16,0,1)","v":0},{"$f":"ADDRESS(12,2,1,1,$P$1)","v":"'Concentration Risk'!$B$12"},"BSCR Rating 2",{"$f":"IF(INDIRECT(P16)=Q16,0,1)","v":0},{"$f":"ADDRESS(9,13,1,1,$S$1)","v":"'Geographic Diversification'!$M$9"},"=+'Schedule IVC (EBS)'!I9",{"$f":"IF(_xlfn.FORMULATEXT(INDIRECT(S16))=T16,0,1)","v":0},{"$f":"ADDRESS(18,5,1,1,$V$1)","v":"'Credit Risk'!$E$18"},2.5000000000000001E-2,{"$f":"IF(INDIRECT(V16)=W16,0,1)","v":0},{"$f":"ADDRESS(12,9,1,1,$Y$1)","v":"'Premium Risk'!$I$12"},"=IF($G$12<0,0,$G$12*$H$12)",{"$f":"IF(_xlfn.FORMULATEXT(INDIRECT(Y16))=Z16,0,1)","v":0},{"$f":"ADDRESS(12,8,1,1,$AB$1)","v":"'Reserve Risk'!$H$12"},"=IF($F$12<0,0,$F$12*$G$12)",{"$f":"IF(_xlfn.FORMULATEXT(INDIRECT(AB16))=AC16,0,1)","v":0},{"$f":"ADDRESS(15,2,1,1,$AE$1)","v":"'Catastrophe Risk'!$B$15"},"=IF('Company Information'!F11=\"Class 3A\",\"(c)  Property Catastrophe Premium\",\"(e)  Property Catastrophe Premium\")",{"$f":"IF(_xlfn.FORMULATEXT(INDIRECT(AE16))=AF16,0,1)","v":0}]
[{"$f":"ADDRESS(40,11,1,1,$A$1)","v":"Summary!$K$40"},"=\"Unconsolidated Statutory Capital for \"&YEAR('Form 1SFS'!$E9)",{"$f":"IF(_xlfn.FORMULATEXT(INDIRECT(A17))=B17,0,1)","v":0},{"$f":"ADDRESS(15,6,1,1,$D$1)","v":"'Fixed Income Investments'!$F$15"},"=IF(D15<0,0,D15*E15)",{"$f":"IF(_xlfn.FORMULATEXT(INDIRECT(D17))=E17,0,1)","v":0},{"$f":"ADDRESS(15,6,1,1,$G$1)","v":"'Equity Investments'!$F$15"},"=IF(SUM(F11:F13)>=0,SUM(F11:F13),0)",{"$f":"IF(_xlfn.FORMULATEXT(INDIRECT(G17))=H17,0,1)","v":0},{"$f":"ADDRESS(13,6,1,1,$J$1)","v":"'Interest Rate-Liquidity Risk'!$F$13"},0.02,{"$f":"IF(INDIRECT(J17)=K17,0,1)","v":0},{"$f":"ADDRESS(10,3,1,1,$M$1)","v":"'Currency Risk'!$C$10"},"='Schedule XX'!L10",{"$f":"IF(_xlfn.FORMULATEXT(INDIRECT(M17))=N17,0,1)","v":0},{"$f":"ADDRESS(12,4,1,1,$P$1)","v":"'Concentration Risk'!$D$12"},"=SUMIFS('Schedule XXI'!$M$8:$M$57,'Schedule XXI'!$J$8:$J$57,$D$9,'Schedule XXI'!$L$8:$L$57,$B12)",{"$f":"IF(_xlfn.FORMULATEXT(INDIRECT(P17))=Q17,0,1)","v":0},{"$f":"ADDRESS(9,14,1,1,$S$1)","v":"'Geographic Diversification'!$N$9"},"=+'Schedule IVC (EBS)'!J9",{"$f":"IF(_xlfn.FORMULATEXT(INDIRECT(S17))=T17,0,1)","v":0},{"$f":"ADDRESS(18,6,1,1,$V$1)","v":"'Credit Risk'!$F$18"},"=IF($D$18<0,0,$D$18*$E$18)",{"$f":"IF(_xlfn.FORMULATEXT(INDIRECT(V17))=W17,0,1)","v":0},{"$f":"ADDRESS(13,5,1,1,$Y$1)","v":"'Premium Risk'!$E$13"},"=+'Schedule IVA (EBS)'!M13",{"$f":"IF(_xlfn.FORMULATEXT(INDIRECT(Y17))=Z17,0,1)","v":0},{"$f":"ADDRESS(13,4,1,1,$AB$1)","v":"'Reserve Risk'!$D$13"},"=+'Schedule III (EBS)'!D12",{"$f":"IF(_xlfn.FORMULATEXT(INDIRECT(AB17))=AC17,0,1)","v":0},{"$f":"ADDRESS(15,5,1,1,$AE$1)","v":"'Catastrophe Risk'!$E$15"},"='Premium Risk'!F11",{"$f":"IF(_xlfn.FORMULATEXT(INDIRECT(AE17))=AF17,0,1)","v":0}]
[{"$f":"ADDRESS(41,11,1,1,$A$1)","v":"Summary!$K$41"},"=\"Unconsolidated Statutory Capital for \"&YEAR('Form 1SFS'!$G$9)",{"$f":"IF(_xlfn.FORMULATEXT(INDIRECT(A18))=B18,0,1)","v":0},{"$f":"ADDRESS(16,4,1,1,$D$1)","v":"'Fixed Income Investments'!$D$16"},"='Schedule II (EBS)'!D16+'Schedule IIA (EBS)'!D16",{"$f":"IF(_xlfn.FORMULATEXT(INDIRECT(D18))=E18,0,1)","v":0},{"$f":"ADDRESS(20,4,1,1,$G$1)","v":"'Equity Investments'!$D$20"},"='Schedule II (EBS)'!H33+'Schedule IIA (EBS)'!H33",{"$f":"IF(_xlfn.FORMULATEXT(INDIRECT(G18))=H18,0,1)","v":0},{"$f":"ADDRESS(13,7,1,1,$J$1)","v":"'Interest Rate-Liquidity Risk'!$G$13"},"=IF($E$13<0,0, $D$13*$E$13*$F$13)",{"$f":"IF(_xlfn.FORMULATEXT(INDIRECT(J18))=K18,0,1)","v":0},{"$f":"ADDRESS(10,4,1,1,$M$1)","v":"'Currency Risk'!$D$10"},"='Schedule XX'!N10",{"$f":"IF(_xlfn.FORMULATEXT(INDIRECT(M18))=N18,0,1)","v":0},{"$f":"ADDRESS(12,5,1,1,$P$1)","v":"'Concentration Risk'!$E$12"},"=+'Fixed Income Investments'!E85",{"$f":"IF(_xlfn.FORMULATEXT(INDIRECT(P18))=Q18,0,1)","v":0},{"$f":"ADDRESS(9,15,1,1,$S$1)","v":"'Geographic Diversification'!$O$9"},"=+'Schedule IVC (EBS)'!K9",{"$f":"IF(_xlfn.FORMULATEXT(INDIRECT(S18))=T18,0,1)","v":0},{"$f":"ADDRESS(19,4,1,1,$V$1)","v":"'Credit Risk'!$D$19"},"='Form 1EBS'!F39",{"$f":"IF(_xlfn.FORMULATEXT(INDIRECT(V18))=W18,0,1)","v":0},{"$f":"ADDRESS(13,6,1,1,$Y$1)","v":"'Premium Risk'!$F$13"},"='Schedule IVA (EBS)'!Q13",{"$f":"IF(_xlfn.FORMULATEXT(INDIRECT(Y18))=Z18,0,1)","v":0},{"$f":"ADDRESS(13,5,1,1,$AB$1)","v":"'Reserve Risk'!$E$13"},"=+'Schedule III (EBS)'!F12",{"$f":"IF(_xlfn.FORMULATEXT(INDIRECT(AB18))=AC18,0,1)","v":0},{"$f":"ADDRESS(17,5,1,1,$AE$1)","v":"'Catastrophe Risk'!$E$17"},"=$E$11/$E$13+IF($E$15>0,$E$15,0)",{"$f":"IF(_xlfn.FORMULATEXT(INDIRECT(AE18))=AF18,0,1)","v":0}]
[{"$f":"ADDRESS(43,2,1,1,$A$1)","v":"Summary!$B$43"},"=\"Dividend Payment in \"&YEAR('Form 1SFS'!$E$9)",{"$f":"IF(_xlfn.FORMULATEXT(INDIRECT(A19))=B19,0,1)","v":0},{"$f":"ADDRESS(16,5,1,1,$D$1)","v":"'Fixed Income Investments'!$E$16"},0.03,{"$f":"IF(INDIRECT(D19)=E19,0,1)","v":0},{"$f":"ADDRESS(20,5,1,1,$G$1)","v":"'Equity Investments'!$E$20"},6.0000000000000001E-3,{"$f":"IF(INDIRECT(G19)=H19,0,1)","v":0},{"$f":"ADDRESS(15,4,1,1,$J$1)","v":"'Interest Rate-Liquidity Risk'!$D$15"},"=SUM(D11:D13)",{"$f":"IF(_xlfn.FORMULATEXT(INDIRECT(J19))=K19,0,1)","v":0},{"$f":"ADDRESS(10,5,1,1,$M$1)","v":"'Currency Risk'!$E$10"},"='Schedule XX'!P10",{"$f":"IF(_xlfn.FORMULATEXT(INDIRECT(M19))=N19,0,1)","v":0},{"$f":"ADDRESS(12,6,1,1,$P$1)","v":"'Concentration Risk'!$F$12"},"=MAX(0,(D12*E12))",{"$f":"IF(_xlfn.FORMULATEXT(INDIRECT(P19))=Q19,0,1)","v":0},{"$f":"ADDRESS(9,16,1,1,$S$1)","v":"'Geographic Diversification'!$P$9"},"=+'Schedule IVC (EBS)'!L9",{"$f":"IF(_xlfn.FORMULATEXT(INDIRECT(S19))=T19,0,1)","v":0},{"$f":"ADDRESS(19,5,1,1,$V$1)","v":"'Credit Risk'!$E$19"},0.05,{"$f":"IF(INDIRECT(V19)=W19,0,1)","v":0},{"$f":"ADDRESS(13,7,1,1,$Y$1)","v":"'Premium Risk'!$G$13"},"=+'Geographic Diversification'!H11",{"$f":"IF(_xlfn.FORMULATEXT(INDIRECT(Y19))=Z19,0,1)","v":0},{"$f":"ADDRESS(13,6,1,1,$AB$1)","v":"'Reserve Risk'!$F$13"},"=+'Geographic Diversification'!H42",{"$f":"IF(_xlfn.FORMULATEXT(INDIRECT(AB19))=AC19,0,1)","v":0},{"$f":"ADDRESS(19,2,1,1,$AE$1)","v":"'Catastrophe Risk'!$B$19"},"=IF('Company Information'!F11=\"Class 3A\",\"(d)  Credit Risk Capital Factor\",\"(g)  Credit Risk Capital Factor\")",{"$f":"IF(_xlfn.FORMULATEXT(INDIRECT(AE19))=AF19,0,1)","v":0}]
[{"$f":"ADDRESS(43,11,1,1,$A$1)","v":"Summary!$K$43"},"=\"Statutory Capital Change from \"&YEAR('Form 1SFS'!$G9)&\" to \"&YEAR('Form 1SFS'!$E9)",{"$f":"IF(_xlfn.FORMULATEXT(INDIRECT(A20))=B20,0,1)","v":0},{"$f":"ADDRESS(16,6,1,1,$D$1)","v":"'Fixed Income Investments'!$F$16"},"=IF(D16<0,0,D16*E16)",{"$f":"IF(_xlfn.FORMULATEXT(INDIRECT(D20))=E20,0,1)","v":0},{"$f":"ADDRESS(20,6,1,1,$G$1)","v":"'Equity Investments'!$F$20"},"=IF(D20<0,0,D20*E20)",{"$f":"IF(_xlfn.FORMULATEXT(INDIRECT(G20))=H20,0,1)","v":0},{"$f":"ADDRESS(15,7,1,1,$J$1)","v":"'Interest Rate-Liquidity Risk'!$G$15"},"=IF(SUM(G11:G13)>=0,SUM(G11:G13),0)",{"$f":"IF(_xlfn.FORMULATEXT(INDIRECT(J20))=K20,0,1)","v":0},{"$f":"ADDRESS(10,6,1,1,$M$1)","v":"'Currency Risk'!$F$10"},"='Schedule XX'!R10",{"$f":"IF(_xlfn.FORMULATEXT(INDIRECT(M20))=N20,0,1)","v":0},{"$f":"ADDRESS(13,2,1,1,$P$1)","v":"'Concentration Risk'!$B$13"},"BSCR Rating 3",{"$f":"IF(INDIRECT(P20)=Q20,0,1)","v":0},{"$f":"ADDRESS(9,17,1,1,$S$1)","v":"'Geographic Diversification'!$Q$9"},"=+'Schedule IVC (EBS)'!M9",{"$f":"IF(_xlfn.FORMULATEXT(INDIRECT(S20))=T20,0,1)","v":0},{"$f":"ADDRESS(19,6,1,1,$V$1)","v":"'Credit Risk'!$F$19"},"=IF($D$19<0,0,$D$19*$E$19)",{"$f":"IF(_xlfn.FORMULATEXT(INDIRECT(V20))=W20,0,1)","v":0},{"$f":"ADDRESS(13,8,1,1,$Y$1)","v":"'Premium Risk'!$H$13"},0.51625715924082105,{"$f":"IF(INDIRECT(Y20)=Z20,0,1)","v":0},{"$f":"ADDRESS(13,7,1,1,$AB$1)","v":"'Reserve Risk'!$G$13"},0.49735573879029998,{"$f":"IF(INDIRECT(AB20)=AC20,0,1)","v":0},{"$f":"ADDRESS(19,5,1,1,$AE$1)","v":"'Catastrophe Risk'!$E$19"},0.1,{"$f":"IF(INDIRECT(AE20)=AF20,0,1)","v":0}]
[{"$f":"ADDRESS(46,7,1,1,$A$1)","v":"Summary!$G$46"},"=IF(F42>=F43,\"YES\",\"NO\")",{"$f":"IF(_xlfn.FORMULATEXT(INDIRECT(A21))=B21,0,1)","v":0},{"$f":"ADDRESS(17,4,1,1,$D$1)","v":"'Fixed Income Investments'!$D$17"},"='Schedule II (EBS)'!D17+'Schedule IIA (EBS)'!D17",{"$f":"IF(_xlfn.FORMULATEXT(INDIRECT(D21))=E21,0,1)","v":0},{"$f":"ADDRESS(21,4,1,1,$G$1)","v":"'Equity Investments'!$D$21"},"='Schedule II (EBS)'!H34+'Schedule IIA (EBS)'!H34",{"$f":"IF(_xlfn.FORMULATEXT(INDIRECT(G21))=H21,0,1)","v":0},null,null,-21,{"$f":"ADDRESS(10,7,1,1,$M$1)","v":"'Currency Risk'!$G$10"},"=IF(F10=0,E10*$G$6,F10*$G$6)",{"$f":"IF(_xlfn.FORMULATEXT(INDIRECT(M21))=N21,0,1)","v":0},{"$f":"ADDRESS(13,4,1,1,$P$1)","v":"'Concentration Risk'!$D$13"},"=SUMIFS('Schedule XXI'!$M$8:$M$57,'Schedule XXI'!$J$8:$J$57,$D$9,'Schedule XXI'!$L$8:$L$57,$B13)",{"$f":"IF(_xlfn.FORMULATEXT(INDIRECT(P21))=Q21,0,1)","v":0},{"$f":"ADDRESS(9,18,1,1,$S$1)","v":"'Geographic Diversification'!$R$9"},"=+'Schedule IVC (EBS)'!N9",{"$f":"IF(_xlfn.FORMULATEXT(INDIRECT(S21))=T21,0,1)","v":0},{"$f":"ADDRESS(21,4,1,1,$V$1)","v":"'Credit Risk'!$D$21"},"=SUM(D18:D19)",{"$f":"IF(_xlfn.FORMULATEXT(INDIRECT(V21))=W21,0,1)","v":0},{"$f":"ADDRESS(13,9,1,1,$Y$1)","v":"'Premium Risk'!$I$13"},"=IF($G$13<0,0,$G$13*$H$13)",{"$f":"IF(_xlfn.FORMULATEXT(INDIRECT(Y21))=Z21,0,1)","v":0},{"$f":"ADDRESS(13,8,1,1,$AB$1)","v":"'Reserve Risk'!$H$13"},"=IF($F$13<0,0,$F$13*$G$13)",{"$f":"IF(_xlfn.FORMULATEXT(INDIRECT(AB21))=AC21,0,1)","v":0},{"$f":"ADDRESS(21,2,1,1,$AE$1)","v":"'Catastrophe Risk'!$B$21"},"=IF('Company Information'!F11=\"Class 3A\",\"(e) Arrangements with Respect to Property Catastrophe Recoverables\",\"(h) Arrangements with Respect to Property Catastrophe Recoverables\")",{"$f":"IF(_xlfn.FORMULATEXT(INDIRECT(AE21))=AF21,0,1)","v":0}]
[{"$f":"ADDRESS(54,12,1,1,$A$1)","v":"Summary!$L$54"},"{=SQRT(MMULT(TRANSPOSE(K55:K59),MMULT('Correlation Matrix'!C7:G11,K55:K59)))}",{"$f":"IF(_xlfn.FORMULATEXT(INDIRECT(A22))=B22,0,1)","v":0},{"$f":"ADDRESS(17,5,1,1,$D$1)","v":"'Fixed Income Investments'!$E$17"},0.08,{"$f":"IF(INDIRECT(D22)=E22,0,1)","v":0},{"$f":"ADDRESS(21,5,1,1,$G$1)","v":"'Equity Investments'!$E$21"},1.2E-2,{"$f":"IF(INDIRECT(G22)=H22,0,1)","v":0},null,null,null,{"$f":"ADDRESS(10,8,1,1,$M$1)","v":"'Currency Risk'!$H$10"},"=IF(D10=0,IF(C10>(E10+G10),0%,25%),IF(D10>(F10+G10),0%,25%))",{"$f":"IF(_xlfn.FORMULATEXT(INDIRECT(M22))=N22,0,1)","v":0},{"$f":"ADDRESS(13,5,1,1,$P$1)","v":"'Concentration Risk'!$E$13"},"=+'Fixed Income Investments'!E86",{"$f":"IF(_xlfn.FORMULATEXT(INDIRECT(P22))=Q22,0,1)","v":0},{"$f":"ADDRESS(9,19,1,1,$S$1)","v":"'Geographic Diversification'!$S$9"},"=+'Schedule IVC (EBS)'!O9",{"$f":"IF(_xlfn.FORMULATEXT(INDIRECT(S22))=T22,0,1)","v":0},{"$f":"ADDRESS(21,6,1,1,$V$1)","v":"'Credit Risk'!$F$21"},"=IF(SUM(F18:F19)>=0,SUM(F18:F19),0)",{"$f":"IF(_xlfn.FORMULATEXT(INDIRECT(V22))=W22,0,1)","v":0},{"$f":"ADDRESS(14,5,1,1,$Y$1)","v":"'Premium Risk'!$E$14"},"=+'Schedule IVA (EBS)'!M14",{"$f":"IF(_xlfn.FORMULATEXT(INDIRECT(Y22))=Z22,0,1)","v":0},{"$f":"ADDRESS(14,4,1,1,$AB$1)","v":"'Reserve Risk'!$D$14"},"=+'Schedule III (EBS)'!D13",{"$f":"IF(_xlfn.FORMULATEXT(INDIRECT(AB22))=AC22,0,1)","v":0},{"$f":"ADDRESS(21,3,1,1,$AE$1)","v":"'Catastrophe Risk'!$C$21"},"=IF('Company Information'!F11=\"Class 3A\",\"Schedule V, Line (j)(v)\",\"Schedule V, Line (k)(v)\")",{"$f":"IF(_xlfn.FORMULATEXT(INDIRECT(AE22))=AF22,0,1)","v":0}]
[{"$f":"ADDRESS(54,14,1,1,$A$1)","v":"Summary!$N$54"},"{=SQRT(MMULT(TRANSPOSE(M55:M59),MMULT('Correlation Matrix'!C7:G11,M55:M59)))}",{"$f":"IF(_xlfn.FORMULATEXT(INDIRECT(A23))=B23,0,1)","v":0},{"$f":"ADDRESS(17,6,1,1,$D$1)","v":"'Fixed Income Investments'!$F$17"},"=IF(D17<0,0,D17*E17)",{"$f":"IF(_xlfn.FORMULATEXT(INDIRECT(D23))=E23,0,1)","v":0},{"$f":"ADDRESS(21,6,1,1,$G$1)","v":"'Equity Investments'!$F$21"},"=IF(D21<0,0,D21*E21)",{"$f":"IF(_xlfn.FORMULATEXT(INDIRECT(G23))=H23,0,1)","v":0},null,null,null,{"$f":"ADDRESS(10,9,1,1,$M$1)","v":"'Currency Risk'!$I$10"},"=IF(D10=0,H10*ABS(C10-E10-G10),H10*ABS(D10-F10-G10))",{"$f":"IF(_xlfn.FORMULATEXT(INDIRECT(M23))=N23,0,1)","v":0},{"$f":"ADDRESS(13,6,1,1,$P$1)","v":"'Concentration Risk'!$F$13"},"=MAX(0,(D13*E13))",{"$f":"IF(_xlfn.FORMULATEXT(INDIRECT(P23))=Q23,0,1)","v":0},{"$f":"ADDRESS(9,20,1,1,$S$1)","v":"'Geographic Diversification'!$T$9"},"=+'Schedule IVC (EBS)'!P9",{"$f":"IF(_xlfn.FORMULATEXT(INDIRECT(S23))=T23,0,1)","v":0},{"$f":"ADDRESS(25,4,1,1,$V$1)","v":"'Credit Risk'!$D$25"},"='Schedule XVIII (EBS)'!O87",{"$f":"IF(_xlfn.FORMULATEXT(INDIRECT(V23))=W23,0,1)","v":0},{"$f":"ADDRESS(14,6,1,1,$Y$1)","v":"'Premium Risk'!$F$14"},"='Schedule IVA (EBS)'!Q14",{"$f":"IF(_xlfn.FORMULATEXT(INDIRECT(Y23))=Z23,0,1)","v":0},{"$f":"ADDRESS(14,5,1,1,$AB$1)","v":"'Reserve Risk'!$E$14"},"=+'Schedule III (EBS)'!F13",{"$f":"IF(_xlfn.FORMULATEXT(INDIRECT(AB23))=AC23,0,1)","v":0},{"$f":"ADDRESS(21,5,1,1,$AE$1)","v":"'Catastrophe Risk'!$E$21"},"='Schedule V'!H29",{"$f":"IF(_xlfn.FORMULATEXT(INDIRECT(AE23))=AF23,0,1)","v":0}]
[{"$f":"ADDRESS(55,3,1,1,$A$1)","v":"Summary!$C$55"},"Fixed Income Investment Risk",{"$f":"IF(INDIRECT(A24)=B24,0,1)","v":0},{"$f":"ADDRESS(18,4,1,1,$D$1)","v":"'Fixed Income Investments'!$D$18"},"='Schedule II (EBS)'!D18+'Schedule IIA (EBS)'!D18",{"$f":"IF(_xlfn.FORMULATEXT(INDIRECT(D24))=E24,0,1)","v":0},{"$f":"ADDRESS(22,4,1,1,$G$1)","v":"'Equity Investments'!$D$22"},"='Schedule II (EBS)'!H35+'Schedule IIA (EBS)'!H35",{"$f":"IF(_xlfn.FORMULATEXT(INDIRECT(G24))=H24,0,1)","v":0},null,null,null,{"$f":"ADDRESS(11,2,1,1,$M$1)","v":"'Currency Risk'!$B$11"},"='Schedule XX'!B11",{"$f":"IF(_xlfn.FORMULATEXT(INDIRECT(M24))=N24,0,1)","v":0},{"$f":"ADDRESS(14,2,1,1,$P$1)","v":"'Concentration Risk'!$B$14"},"BSCR Rating 4",{"$f":"IF(INDIRECT(P24)=Q24,0,1)","v":0},{"$f":"ADDRESS(9,21,1,1,$S$1)","v":"'Geographic Diversification'!$U$9"},"=+'Schedule IVC (EBS)'!Q9",{"$f":"IF(_xlfn.FORMULATEXT(INDIRECT(S24))=T24,0,1)","v":0},{"$f":"ADDRESS(25,5,1,1,$V$1)","v":"'Credit Risk'!$E$25"},0,{"$f":"IF(INDIRECT(V24)=W24,0,1)","v":0},{"$f":"ADDRESS(14,7,1,1,$Y$1)","v":"'Premium Risk'!$G$14"},"=+'Geographic Diversification'!H12",{"$f":"IF(_xlfn.FORMULATEXT(INDIRECT(Y24))=Z24,0,1)","v":0},{"$f":"ADDRESS(14,6,1,1,$AB$1)","v":"'Reserve Risk'!$F$14"},"=+'Geographic Diversification'!H43",{"$f":"IF(_xlfn.FORMULATEXT(INDIRECT(AB24))=AC24,0,1)","v":0},{"$f":"ADDRESS(23,2,1,1,$AE$1)","v":"'Catastrophe Risk'!$B$23"},"=IF('Company Information'!F11=\"Class 3A\",\"(f)  Credit Risk Charge [ ((a - b) - (e * 0.98)) * d ]\",\"(i)  Credit Risk Charge [ ((a - b) - (h * 0.98)) * g ]\")",{"$f":"IF(_xlfn.FORMULATEXT(INDIRECT(AE24))=AF24,0,1)","v":0}]
[{"$f":"ADDRESS(55,7,1,1,$A$1)","v":"Summary!$G$55"},"=ROUND('Fixed Income Investments'!F99,$N$163)",{"$f":"IF(_xlfn.FORMULATEXT(INDIRECT(A25))=B25,0,1)","v":0},{"$f":"ADDRESS(18,5,1,1,$D$1)","v":"'Fixed Income Investments'!$E$18"},0.15,{"$f":"IF(INDIRECT(D25)=E25,0,1)","v":0},{"$f":"ADDRESS(22,5,1,1,$G$1)","v":"'Equity Investments'!$E$22"},0.02,{"$f":"IF(INDIRECT(G25)=H25,0,1)","v":0},null,null,null,{"$f":"ADDRESS(11,3,1,1,$M$1)","v":"'Currency Risk'!$C$11"},"='Schedule XX'!L11",{"$f":"IF(_xlfn.FORMULATEXT(INDIRECT(M25))=N25,0,1)","v":0},{"$f":"ADDRESS(14,4,1,1,$P$1)","v":"'Concentration Risk'!$D$14"},"=SUMIFS('Schedule XXI'!$M$8:$M$57,'Schedule XXI'!$J$8:$J$57,$D$9,'Schedule XXI'!$L$8:$L$57,$B14)",{"$f":"IF(_xlfn.FORMULATEXT(INDIRECT(P25))=Q25,0,1)","v":0},{"$f":"ADDRESS(9,22,1,1,$S$1)","v":"'Geographic Diversification'!$V$9"},"=+'Schedule IVC (EBS)'!R9",{"$f":"IF(_xlfn.FORMULATEXT(INDIRECT(S25))=T25,0,1)","v":0},{"$f":"ADDRESS(25,6,1,1,$V$1)","v":"'Credit Risk'!$F$25"},"=IF(D25<0,0,D25*E25)",{"$f":"IF(_xlfn.FORMULATEXT(INDIRECT(V25))=W25,0,1)","v":0},{"$f":"ADDRESS(14,8,1,1,$Y$1)","v":"'Premium Risk'!$H$14"},0.34115345724240698,{"$f":"IF(INDIRECT(Y25)=Z25,0,1)","v":0},{"$f":"ADDRESS(14,7,1,1,$AB$1)","v":"'Reserve Risk'!$G$14"},0.29666070682155399,{"$f":"IF(INDIRECT(AB25)=AC25,0,1)","v":0},{"$f":"ADDRESS(23,5,1,1,$AE$1)","v":"'Catastrophe Risk'!$E$23"},"=MAX(0,((E7-E9)-(E21*98%))*E19)",{"$f":"IF(_xlfn.FORMULATEXT(INDIRECT(AE25))=AF25,0,1)","v":0}]
[{"$f":"ADDRESS(55,11,1,1,$A$1)","v":"Summary!$K$55"},"=ROUND('Fixed Income Investments (Rev.)'!I136,$N$163)",{"$f":"IF(_xlfn.FORMULATEXT(INDIRECT(A26))=B26,0,1)","v":0},{"$f":"ADDRESS(18,6,1,1,$D$1)","v":"'Fixed Income Investments'!$F$18"},"=IF(D18<0,0,D18*E18)",{"$f":"IF(_xlfn.FORMULATEXT(INDIRECT(D26))=E26,0,1)","v":0},{"$f":"ADDRESS(22,6,1,1,$G$1)","v":"'Equity Investments'!$F$22"},"=IF(D22<0,0,D22*E22)",{"$f":"IF(_xlfn.FORMULATEXT(INDIRECT(G26))=H26,0,1)","v":0},null,null,null,{"$f":"ADDRESS(11,4,1,1,$M$1)","v":"'Currency Risk'!$D$11"},"='Schedule XX'!N11",{"$f":"IF(_xlfn.FORMULATEXT(INDIRECT(M26))=N26,0,1)","v":0},{"$f":"ADDRESS(14,5,1,1,$P$1)","v":"'Concentration Risk'!$E$14"},"=+'Fixed Income Investments'!E87",{"$f":"IF(_xlfn.FORMULATEXT(INDIRECT(P26))=Q26,0,1)","v":0},{"$f":"ADDRESS(9,23,1,1,$S$1)","v":"'Geographic Diversification'!$W$9"},"=+'Schedule IVC (EBS)'!S9",{"$f":"IF(_xlfn.FORMULATEXT(INDIRECT(S26))=T26,0,1)","v":0},{"$f":"ADDRESS(26,4,1,1,$V$1)","v":"'Credit Risk'!$D$26"},"='Schedule XVIII (EBS)'!O88",{"$f":"IF(_xlfn.FORMULATEXT(INDIRECT(V26))=W26,0,1)","v":0},{"$f":"ADDRESS(14,9,1,1,$Y$1)","v":"'Premium Risk'!$I$14"},"=IF($G$14<0,0,$G$14*$H$14)",{"$f":"IF(_xlfn.FORMULATEXT(INDIRECT(Y26))=Z26,0,1)","v":0},{"$f":"ADDRESS(14,8,1,1,$AB$1)","v":"'Reserve Risk'!$H$14"},"=IF($F$14<0,0,$F$14*$G$14)",{"$f":"IF(_xlfn.FORMULATEXT(INDIRECT(AB26))=AC26,0,1)","v":0},{"$f":"ADDRESS(25,2,1,1,$AE$1)","v":"'Catastrophe Risk'!$B$25"},"=IF('Company Information'!F11=\"Class 3A\",\"(g)  REQUIRED CAPITAL FOR CATASTROPHE RISK  [ (b) - (c) + (f) ]\",\"(j)  REQUIRED CAPITAL FOR CATASTROPHE RISK  [ (b) - (f) + (i) ]\")",{"$f":"IF(_xlfn.FORMULATEXT(INDIRECT(AE26))=AF26,0,1)","v":0}]
[{"$f":"ADDRESS(55,13,1,1,$A$1)","v":"Summary!$M$55"},"=ROUND('Fixed Income Investments (Rev.)'!I136,$N$163)",{"$f":"IF(_xlfn.FORMULATEXT(INDIRECT(A27))=B27,0,1)","v":0},{"$f":"ADDRESS(19,4,1,1,$D$1)","v":"'Fixed Income Investments'!$D$19"},"='Schedule II (EBS)'!D19+'Schedule IIA (EBS)'!D19",{"$f":"IF(_xlfn.FORMULATEXT(INDIRECT(D27))=E27,0,1)","v":0},{"$f":"ADDRESS(23,4,1,1,$G$1)","v":"'Equity Investments'!$D$23"},"='Schedule II (EBS)'!H36+'Schedule IIA (EBS)'!H36",{"$f":"IF(_xlfn.FORMULATEXT(INDIRECT(G27))=H27,0,1)","v":0},null,null,null,{"$f":"ADDRESS(11,5,1,1,$M$1)","v":"'Currency Risk'!$E$11"},"='Schedule XX'!P11",{"$f":"IF(_xlfn.FORMULATEXT(INDIRECT(M27))=N27,0,1)","v":0},{"$f":"ADDRESS(14,6,1,1,$P$1)","v":"'Concentration Risk'!$F$14"},"=MAX(0,(D14*E14))",{"$f":"IF(_xlfn.FORMULATEXT(INDIRECT(P27))=Q27,0,1)","v":0},{"$f":"ADDRESS(9,24,1,1,$S$1)","v":"'Geographic Diversification'!$X$9"},"=+'Schedule IVC (EBS)'!T9",{"$f":"IF(_xlfn.FORMULATEXT(INDIRECT(S27))=T27,0,1)","v":0},{"$f":"ADDRESS(26,5,1,1,$V$1)","v":"'Credit Risk'!$E$26"},7.0000000000000001E-3,{"$f":"IF(INDIRECT(V27)=W27,0,1)","v":0},{"$f":"ADDRESS(15,5,1,1,$Y$1)","v":"'Premium Risk'!$E$15"},"=+'Schedule IVA (EBS)'!M15",{"$f":"IF(_xlfn.FORMULATEXT(INDIRECT(Y27))=Z27,0,1)","v":0},{"$f":"ADDRESS(15,4,1,1,$AB$1)","v":"'Reserve Risk'!$D$15"},"=+'Schedule III (EBS)'!D14",{"$f":"IF(_xlfn.FORMULATEXT(INDIRECT(AB27))=AC27,0,1)","v":0},{"$f":"ADDRESS(25,5,1,1,$AE$1)","v":"'Catastrophe Risk'!$E$25"},"=IF('Company Information'!F11=\"Class 3A\",(IF((E9-E15)>=0,E9-E15+E23,E23)),(IF((E9-E17)>=0,E9-E17+E23,E23)))",{"$f":"IF(_xlfn.FORMULATEXT(INDIRECT(AE27))=AF27,0,1)","v":0}]
[{"$f":"ADDRESS(55,20,1,1,$A$1)","v":"Summary!$T$55"},"=C55",{"$f":"IF(_xlfn.FORMULATEXT(INDIRECT(A28))=B28,0,1)","v":0},{"$f":"ADDRESS(19,5,1,1,$D$1)","v":"'Fixed Income Investments'!$E$19"},0.26300000000000001,{"$f":"IF(INDIRECT(D28)=E28,0,1)","v":0},{"$f":"ADDRESS(23,5,1,1,$G$1)","v":"'Equity Investments'!$E$23"},0.04,{"$f":"IF(INDIRECT(G28)=H28,0,1)","v":0},null,null,null,{"$f":"ADDRESS(11,6,1,1,$M$1)","v":"'Currency Risk'!$F$11"},"='Schedule XX'!R11",{"$f":"IF(_xlfn.FORMULATEXT(INDIRECT(M28))=N28,0,1)","v":0},{"$f":"ADDRESS(15,2,1,1,$P$1)","v":"'Concentration Risk'!$B$15"},"BSCR Rating 5",{"$f":"IF(INDIRECT(P28)=Q28,0,1)","v":0},{"$f":"ADDRESS(9,25,1,1,$S$1)","v":"'Geographic Diversification'!$Y$9"},"=+'Schedule IVC (EBS)'!U9",{"$f":"IF(_xlfn.FORMULATEXT(INDIRECT(S28))=T28,0,1)","v":0},{"$f":"ADDRESS(26,6,1,1,$V$1)","v":"'Credit Risk'!$F$26"},"=IF(D26<0,0,D26*E26)",{"$f":"IF(_xlfn.FORMULATEXT(INDIRECT(V28))=W28,0,1)","v":0},{"$f":"ADDRESS(15,6,1,1,$Y$1)","v":"'Premium Risk'!$F$15"},"='Schedule IVA (EBS)'!Q15",{"$f":"IF(_xlfn.FORMULATEXT(INDIRECT(Y28))=Z28,0,1)","v":0},{"$f":"ADDRESS(15,5,1,1,$AB$1)","v":"'Reserve Risk'!$E$15"},"=+'Schedule III (EBS)'!F14",{"$f":"IF(_xlfn.FORMULATEXT(INDIRECT(AB28))=AC28,0,1)","v":0},null,null,-28]
[{"$f":"ADDRESS(55,24,1,1,$A$1)","v":"Summary!$X$55"},"=G55",{"$f":"IF(_xlfn.FORMULATEXT(INDIRECT(A29))=B29,0,1)","v":0},{"$f":"ADDRESS(19,6,1,1,$D$1)","v":"'Fixed Income Investments'!$F$19"},"=IF(D19<0,0,D19*E19)",{"$f":"IF(_xlfn.FORMULATEXT(INDIRECT(D29))=E29,0,1)","v":0},{"$f":"ADDRESS(23,6,1,1,$G$1)","v":"'Equity Investments'!$F$23"},"=IF(D23<0,0,D23*E23)",{"$f":"IF(_xlfn.FORMULATEXT(INDIRECT(G29))=H29,0,1)","v":0},null,null,null,{"$f":"ADDRESS(11,7,1,1,$M$1)","v":"'Currency Risk'!$G$11"},"=IF(F11=0,E11*$G$6,F11*$G$6)",{"$f":"IF(_xlfn.FORMULATEXT(INDIRECT(M29))=N29,0,1)","v":0},{"$f":"ADDRESS(15,4,1,1,$P$1)","v":"'Concentration Risk'!$D$15"},"=SUMIFS('Schedule XXI'!$M$8:$M$57,'Schedule XXI'!$J$8:$J$57,$D$9,'Schedule XXI'!$L$8:$L$57,$B15)",{"$f":"IF(_xlfn.FORMULATEXT(INDIRECT(P29))=Q29,0,1)","v":0},{"$f":"ADDRESS(9,26,1,1,$S$1)","v":"'Geographic Diversification'!$Z$9"},"=+'Schedule IVC (EBS)'!V9",{"$f":"IF(_xlfn.FORMULATEXT(INDIRECT(S29))=T29,0,1)","v":0},{"$f":"ADDRESS(27,4,1,1,$V$1)","v":"'Credit Risk'!$D$27"},"='Schedule XVIII (EBS)'!O89",{"$f":"IF(_xlfn.FORMULATEXT(INDIRECT(V29))=W29,0,1)","v":0},{"$f":"ADDRESS(15,7,1,1,$Y$1)","v":"'Premium Risk'!$G$15"},"=+'Geographic Diversification'!H13",{"$f":"IF(_xlfn.FORMULATEXT(INDIRECT(Y29))=Z29,0,1)","v":0},{"$f":"ADDRESS(15,6,1,1,$AB$1)","v":"'Reserve Risk'!$F$15"},"=+'Geographic Diversification'!H44",{"$f":"IF(_xlfn.FORMULATEXT(INDIRECT(AB29))=AC29,0,1)","v":0}]
[{"$f":"ADDRESS(55,25,1,1,$A$1)","v":"Summary!$Y$55"},"=IF($L$71=0,1/9,X55/$X$65)",{"$f":"IF(_xlfn.FORMULATEXT(INDIRECT(A30))=B30,0,1)","v":0},{"$f":"ADDRESS(20,4,1,1,$D$1)","v":"'Fixed Income Investments'!$D$20"},"='Schedule II (EBS)'!D20+'Schedule IIA (EBS)'!D20",{"$f":"IF(_xlfn.FORMULATEXT(INDIRECT(D30))=E30,0,1)","v":0},{"$f":"ADDRESS(24,4,1,1,$G$1)","v":"'Equity Investments'!$D$24"},"='Schedule II (EBS)'!H37+'Schedule IIA (EBS)'!H37",{"$f":"IF(_xlfn.FORMULATEXT(INDIRECT(G30))=H30,0,1)","v":0},null,null,null,{"$f":"ADDRESS(11,8,1,1,$M$1)","v":"'Currency Risk'!$H$11"},"=IF(D11=0,IF(C11>(E11+G11),0%,25%),IF(D11>(F11+G11),0%,25%))",{"$f":"IF(_xlfn.FORMULATEXT(INDIRECT(M30))=N30,0,1)","v":0},{"$f":"ADDRESS(15,5,1,1,$P$1)","v":"'Concentration Risk'!$E$15"},"=+'Fixed Income Investments'!E88",{"$f":"IF(_xlfn.FORMULATEXT(INDIRECT(P30))=Q30,0,1)","v":0},{"$f":"ADDRESS(10,4,1,1,$S$1)","v":"'Geographic Diversification'!$D$10"},"=SUM(I10:Z10)",{"$f":"IF(_xlfn.FORMULATEXT(INDIRECT(S30))=T30,0,1)","v":0},{"$f":"ADDRESS(27,5,1,1,$V$1)","v":"'Credit Risk'!$E$27"},1.4999999999999999E-2,{"$f":"IF(INDIRECT(V30)=W30,0,1)","v":0},{"$f":"ADDRESS(15,8,1,1,$Y$1)","v":"'Premium Risk'!$H$15"},0.41221262895987398,{"$f":"IF(INDIRECT(Y30)=Z30,0,1)","v":0},{"$f":"ADDRESS(15,7,1,1,$AB$1)","v":"'Reserve Risk'!$G$15"},0.34876523067975901,{"$f":"IF(INDIRECT(AB30)=AC30,0,1)","v":0}]
[{"$f":"ADDRESS(55,26,1,1,$A$1)","v":"Summary!$Z$55"},"=M55",{"$f":"IF(_xlfn.FORMULATEXT(INDIRECT(A31))=B31,0,1)","v":0},{"$f":"ADDRESS(20,5,1,1,$D$1)","v":"'Fixed Income Investments'!$E$20"},0.35,{"$f":"IF(INDIRECT(D31)=E31,0,1)","v":0},{"$f":"ADDRESS(24,5,1,1,$G$1)","v":"'Equity Investments'!$E$24"},0.11,{"$f":"IF(INDIRECT(G31)=H31,0,1)","v":0},null,null,null,{"$f":"ADDRESS(11,9,1,1,$M$1)","v":"'Currency Risk'!$I$11"},"=IF(D11=0,H11*ABS(C11-E11-G11),H11*ABS(D11-F11-G11))",{"$f":"IF(_xlfn.FORMULATEXT(INDIRECT(M31))=N31,0,1)","v":0},{"$f":"ADDRESS(15,6,1,1,$P$1)","v":"'Concentration Risk'!$F$15"},"=MAX(0,(D15*E15))",{"$f":"IF(_xlfn.FORMULATEXT(INDIRECT(P31))=Q31,0,1)","v":0},{"$f":"ADDRESS(10,5,1,1,$S$1)","v":"'Geographic Diversification'!$E$10"},"=SUMSQ(I10:Z10)",{"$f":"IF(_xlfn.FORMULATEXT(INDIRECT(S31))=T31,0,1)","v":0},{"$f":"ADDRESS(27,6,1,1,$V$1)","v":"'Credit Risk'!$F$27"},"=IF(D27<0,0,D27*E27)",{"$f":"IF(_xlfn.FORMULATEXT(INDIRECT(V31))=W31,0,1)","v":0},{"$f":"ADDRESS(15,9,1,1,$Y$1)","v":"'Premium Risk'!$I$15"},"=IF($G$15<0,0,$G$15*$H$15)",{"$f":"IF(_xlfn.FORMULATEXT(INDIRECT(Y31))=Z31,0,1)","v":0},{"$f":"ADDRESS(15,8,1,1,$AB$1)","v":"'Reserve Risk'!$H$15"},"=IF($F$15<0,0,$F$15*$G$15)",{"$f":"IF(_xlfn.FORMULATEXT(INDIRECT(AB31))=AC31,0,1)","v":0}]
[{"$f":"ADDRESS(55,27,1,1,$A$1)","v":"Summary!$AA$55"},"=IF($N$71=0,1/9,Z55/$Z$65)",{"$f":"IF(_xlfn.FORMULATEXT(INDIRECT(A32))=B32,0,1)","v":0},{"$f":"ADDRESS(20,6,1,1,$D$1)","v":"'Fixed Income Investments'!$F$20"},"=IF(D20<0,0,D20*E20)",{"$f":"IF(_xlfn.FORMULATEXT(INDIRECT(D32))=E32,0,1)","v":0},{"$f":"ADDRESS(24,6,1,1,$G$1)","v":"'Equity Investments'!$F$24"},"=IF(D24<0,0,D24*E24)",{"$f":"IF(_xlfn.FORMULATEXT(INDIRECT(G32))=H32,0,1)","v":0},null,null,null,{"$f":"ADDRESS(12,2,1,1,$M$1)","v":"'Currency Risk'!$B$12"},"='Schedule XX'!B12",{"$f":"IF(_xlfn.FORMULATEXT(INDIRECT(M32))=N32,0,1)","v":0},{"$f":"ADDRESS(16,2,1,1,$P$1)","v":"'Concentration Risk'!$B$16"},"BSCR Rating 6",{"$f":"IF(INDIRECT(P32)=Q32,0,1)","v":0},{"$f":"ADDRESS(10,6,1,1,$S$1)","v":"'Geographic Diversification'!$F$10"},"=(IF(D10>0,E10/D10^2,1))",{"$f":"IF(_xlfn.FORMULATEXT(INDIRECT(S32))=T32,0,1)","v":0},{"$f":"ADDRESS(28,4,1,1,$V$1)","v":"'Credit Risk'!$D$28"},"='Schedule XVIII (EBS)'!O90",{"$f":"IF(_xlfn.FORMULATEXT(INDIRECT(V32))=W32,0,1)","v":0},{"$f":"ADDRESS(16,5,1,1,$Y$1)","v":"'Premium Risk'!$E$16"},"=+'Schedule IVA (EBS)'!M16",{"$f":"IF(_xlfn.FORMULATEXT(INDIRECT(Y32))=Z32,0,1)","v":0},{"$f":"ADDRESS(16,4,1,1,$AB$1)","v":"'Reserve Risk'!$D$16"},"=+'Schedule III (EBS)'!D15",{"$f":"IF(_xlfn.FORMULATEXT(INDIRECT(AB32))=AC32,0,1)","v":0}]
[{"$f":"ADDRESS(55,29,1,1,$A$1)","v":"Summary!$AC$55"},"=(SUM(AA$55:AA55)/AA$65)",{"$f":"IF(_xlfn.FORMULATEXT(INDIRECT(A33))=B33,0,1)","v":0},{"$f":"ADDRESS(22,4,1,1,$D$1)","v":"'Fixed Income Investments'!$D$22"},"=SUM(D11:D20)",{"$f":"IF(_xlfn.FORMULATEXT(INDIRECT(D33))=E33,0,1)","v":0},{"$f":"ADDRESS(25,4,1,1,$G$1)","v":"'Equity Investments'!$D$25"},"='Schedule II (EBS)'!H38+'Schedule IIA (EBS)'!H38",{"$f":"IF(_xlfn.FORMULATEXT(INDIRECT(G33))=H33,0,1)","v":0},null,null,null,{"$f":"ADDRESS(12,3,1,1,$M$1)","v":"'Currency Risk'!$C$12"},"='Schedule XX'!L12",{"$f":"IF(_xlfn.FORMULATEXT(INDIRECT(M33))=N33,0,1)","v":0},{"$f":"ADDRESS(16,4,1,1,$P$1)","v":"'Concentration Risk'!$D$16"},"=SUMIFS('Schedule XXI'!$M$8:$M$57,'Schedule XXI'!$J$8:$J$57,$D$9,'Schedule XXI'!$L$8:$L$57,$B16)",{"$f":"IF(_xlfn.FORMULATEXT(INDIRECT(P33))=Q33,0,1)","v":0},{"$f":"ADDRESS(10,7,1,1,$S$1)","v":"'Geographic Diversification'!$G$10"},"=D10*(0.75+0.25*F10)",{"$f":"IF(_xlfn.FORMULATEXT(INDIRECT(S33))=T33,0,1)","v":0},{"$f":"ADDRESS(28,5,1,1,$V$1)","v":"'Credit Risk'!$E$28"},3.5000000000000003E-2,{"$f":"IF(INDIRECT(V33)=W33,0,1)","v":0},{"$f":"ADDRESS(16,6,1,1,$Y$1)","v":"'Premium Risk'!$F$16"},"='Schedule IVA (EBS)'!Q16",{"$f":"IF(_xlfn.FORMULATEXT(INDIRECT(Y33))=Z33,0,1)","v":0},{"$f":"ADDRESS(16,5,1,1,$AB$1)","v":"'Reserve Risk'!$E$16"},"=+'Schedule III (EBS)'!F15",{"$f":"IF(_xlfn.FORMULATEXT(INDIRECT(AB33))=AC33,0,1)","v":0}]
[{"$f":"ADDRESS(55,32,1,1,$A$1)","v":"Summary!$AF$55"},"=IF(AO55=\"\",IF(Test_Statistic<$AJ$71,AI55,IF(Test_Statistic<$AL$71,AK55,AM55)),AO55)",{"$f":"IF(_xlfn.FORMULATEXT(INDIRECT(A34))=B34,0,1)","v":0},{"$f":"ADDRESS(22,6,1,1,$D$1)","v":"'Fixed Income Investments'!$F$22"},"=IF(SUM(F11:F20)>=0,SUM(F11:F20),0)",{"$f":"IF(_xlfn.FORMULATEXT(INDIRECT(D34))=E34,0,1)","v":0},{"$f":"ADDRESS(25,5,1,1,$G$1)","v":"'Equity Investments'!$E$25"},0.25,{"$f":"IF(INDIRECT(G34)=H34,0,1)","v":0},null,null,null,{"$f":"ADDRESS(12,4,1,1,$M$1)","v":"'Currency Risk'!$D$12"},"='Schedule XX'!N12",{"$f":"IF(_xlfn.FORMULATEXT(INDIRECT(M34))=N34,0,1)","v":0},{"$f":"ADDRESS(16,5,1,1,$P$1)","v":"'Concentration Risk'!$E$16"},"=+'Fixed Income Investments'!E89",{"$f":"IF(_xlfn.FORMULATEXT(INDIRECT(P34))=Q34,0,1)","v":0},{"$f":"ADDRESS(10,8,1,1,$S$1)","v":"'Geographic Diversification'!$H$10"},"=IF('Schedule IVC (EBS)'!AB10=\"True\",G10,'Schedule IVA (EBS)'!Q12)",{"$f":"IF(_xlfn.FORMULATEXT(INDIRECT(S34))=T34,0,1)","v":0},{"$f":"ADDRESS(28,6,1,1,$V$1)","v":"'Credit Risk'!$F$28"},"=IF(D28<0,0,D28*E28)",{"$f":"IF(_xlfn.FORMULATEXT(INDIRECT(V34))=W34,0,1)","v":0},{"$f":"ADDRESS(16,7,1,1,$Y$1)","v":"'Premium Risk'!$G$16"},"=+'Geographic Diversification'!H14",{"$f":"IF(_xlfn.FORMULATEXT(INDIRECT(Y34))=Z34,0,1)","v":0},{"$f":"ADDRESS(16,6,1,1,$AB$1)","v":"'Reserve Risk'!$F$16"},"=+'Geographic Diversification'!H45",{"$f":"IF(_xlfn.FORMULATEXT(INDIRECT(AB34))=AC34,0,1)","v":0}]
[{"$f":"ADDRESS(55,33,1,1,$A$1)","v":"Summary!$AG$55"},"=IF(AP55=\"\",IF(Test_Statistic<$AJ$71,AJ55,IF(Test_Statistic<$AL$71,AL55,AN55)),AP55)",{"$f":"IF(_xlfn.FORMULATEXT(INDIRECT(A35))=B35,0,1)","v":0},{"$f":"ADDRESS(27,4,1,1,$D$1)","v":"'Fixed Income Investments'!$D$27"},"='Schedule II (EBS)'!H13+'Schedule IIA (EBS)'!H13",{"$f":"IF(_xlfn.FORMULATEXT(INDIRECT(D35))=E35,0,1)","v":0},{"$f":"ADDRESS(25,6,1,1,$G$1)","v":"'Equity Investments'!$F$25"},"=IF(D25<0,0,D25*E25)",{"$f":"IF(_xlfn.FORMULATEXT(INDIRECT(G35))=H35,0,1)","v":0},null,null,null,{"$f":"ADDRESS(12,5,1,1,$M$1)","v":"'Currency Risk'!$E$12"},"='Schedule XX'!P12",{"$f":"IF(_xlfn.FORMULATEXT(INDIRECT(M35))=N35,0,1)","v":0},{"$f":"ADDRESS(16,6,1,1,$P$1)","v":"'Concentration Risk'!$F$16"},"=MAX(0,(D16*E16))",{"$f":"IF(_xlfn.FORMULATEXT(INDIRECT(P35))=Q35,0,1)","v":0},{"$f":"ADDRESS(10,9,1,1,$S$1)","v":"'Geographic Diversification'!$I$10"},"=+'Schedule IVC (EBS)'!E10",{"$f":"IF(_xlfn.FORMULATEXT(INDIRECT(S35))=T35,0,1)","v":0},{"$f":"ADDRESS(29,4,1,1,$V$1)","v":"'Credit Risk'!$D$29"},"='Schedule XVIII (EBS)'!O91",{"$f":"IF(_xlfn.FORMULATEXT(INDIRECT(V35))=W35,0,1)","v":0},{"$f":"ADDRESS(16,8,1,1,$Y$1)","v":"'Premium Risk'!$H$16"},0.48178449435856302,{"$f":"IF(INDIRECT(Y35)=Z35,0,1)","v":0},{"$f":"ADDRESS(16,7,1,1,$AB$1)","v":"'Reserve Risk'!$G$16"},0.45952604952349801,{"$f":"IF(INDIRECT(AB35)=AC35,0,1)","v":0}]
[{"$f":"ADDRESS(55,35,1,1,$A$1)","v":"Summary!$AI$55"},"=IF(AC60>1,300,IF(AC60>0.6,260,240))",{"$f":"IF(_xlfn.FORMULATEXT(INDIRECT(A36))=B36,0,1)","v":0},{"$f":"ADDRESS(27,5,1,1,$D$1)","v":"'Fixed Income Investments'!$E$27"},6.0000000000000001E-3,{"$f":"IF(INDIRECT(D36)=E36,0,1)","v":0},{"$f":"ADDRESS(26,4,1,1,$G$1)","v":"'Equity Investments'!$D$26"},"='Schedule II (EBS)'!H39+'Schedule IIA (EBS)'!H39",{"$f":"IF(_xlfn.FORMULATEXT(INDIRECT(G36))=H36,0,1)","v":0},null,null,null,{"$f":"ADDRESS(12,6,1,1,$M$1)","v":"'Currency Risk'!$F$12"},"='Schedule XX'!R12",{"$f":"IF(_xlfn.FORMULATEXT(INDIRECT(M36))=N36,0,1)","v":0},{"$f":"ADDRESS(17,2,1,1,$P$1)","v":"'Concentration Risk'!$B$17"},"BSCR Rating 7",{"$f":"IF(INDIRECT(P36)=Q36,0,1)","v":0},{"$f":"ADDRESS(10,10,1,1,$S$1)","v":"'Geographic Diversification'!$J$10"},"=+'Schedule IVC (EBS)'!F10",{"$f":"IF(_xlfn.FORMULATEXT(INDIRECT(S36))=T36,0,1)","v":0},{"$f":"ADDRESS(29,5,1,1,$V$1)","v":"'Credit Risk'!$E$29"},7.0000000000000007E-2,{"$f":"IF(INDIRECT(V36)=W36,0,1)","v":0},{"$f":"ADDRESS(16,9,1,1,$Y$1)","v":"'Premium Risk'!$I$16"},"=IF($G$16<0,0,$G$16*$H$16)",{"$f":"IF(_xlfn.FORMULATEXT(INDIRECT(Y36))=Z36,0,1)","v":0},{"$f":"ADDRESS(16,8,1,1,$AB$1)","v":"'Reserve Risk'!$H$16"},"=IF($F$16<0,0,$F$16*$G$16)",{"$f":"IF(_xlfn.FORMULATEXT(INDIRECT(AB36))=AC36,0,1)","v":0}]
[{"$f":"ADDRESS(55,36,1,1,$A$1)","v":"Summary!$AJ$55"},"=IF(AC62>1,50,IF(AC60>1,20,IF(AC60>0.6,25,15)))",{"$f":"IF(_xlfn.FORMULATEXT(INDIRECT(A37))=B37,0,1)","v":0},{"$f":"ADDRESS(27,6,1,1,$D$1)","v":"'Fixed Income Investments'!$F$27"},"=IF(D27<0,0,D27*E27)",{"$f":"IF(_xlfn.FORMULATEXT(INDIRECT(D37))=E37,0,1)","v":0},{"$f":"ADDRESS(26,5,1,1,$G$1)","v":"'Equity Investments'!$E$26"},0.35,{"$f":"IF(INDIRECT(G37)=H37,0,1)","v":0},null,null,null,{"$f":"ADDRESS(12,7,1,1,$M$1)","v":"'Currency Risk'!$G$12"},"=IF(F12=0,E12*$G$6,F12*$G$6)",{"$f":"IF(_xlfn.FORMULATEXT(INDIRECT(M37))=N37,0,1)","v":0},{"$f":"ADDRESS(17,4,1,1,$P$1)","v":"'Concentration Risk'!$D$17"},"=SUMIFS('Schedule XXI'!$M$8:$M$57,'Schedule XXI'!$J$8:$J$57,$D$9,'Schedule XXI'!$L$8:$L$57,$B17)",{"$f":"IF(_xlfn.FORMULATEXT(INDIRECT(P37))=Q37,0,1)","v":0},{"$f":"ADDRESS(10,11,1,1,$S$1)","v":"'Geographic Diversification'!$K$10"},"=+'Schedule IVC (EBS)'!G10",{"$f":"IF(_xlfn.FORMULATEXT(INDIRECT(S37))=T37,0,1)","v":0},{"$f":"ADDRESS(29,6,1,1,$V$1)","v":"'Credit Risk'!$F$29"},"=IF(D29<0,0,D29*E29)",{"$f":"IF(_xlfn.FORMULATEXT(INDIRECT(V37))=W37,0,1)","v":0},{"$f":"ADDRESS(17,5,1,1,$Y$1)","v":"'Premium Risk'!$E$17"},"=+'Schedule IVA (EBS)'!M17",{"$f":"IF(_xlfn.FORMULATEXT(INDIRECT(Y37))=Z37,0,1)","v":0},{"$f":"ADDRESS(17,4,1,1,$AB$1)","v":"'Reserve Risk'!$D$17"},"=+'Schedule III (EBS)'!D16",{"$f":"IF(_xlfn.FORMULATEXT(INDIRECT(AB37))=AC37,0,1)","v":0}]
[{"$f":"ADDRESS(55,37,1,1,$A$1)","v":"Summary!$AK$55"},"=IF(Test_Statistic_2<1,300,300)",{"$f":"IF(_xlfn.FORMULATEXT(INDIRECT(A38))=B38,0,1)","v":0},{"$f":"ADDRESS(28,4,1,1,$D$1)","v":"'Fixed Income Investments'!$D$28"},"='Schedule II (EBS)'!H14+'Schedule IIA (EBS)'!H14",{"$f":"IF(_xlfn.FORMULATEXT(INDIRECT(D38))=E38,0,1)","v":0},{"$f":"ADDRESS(26,6,1,1,$G$1)","v":"'Equity Investments'!$F$26"},"=IF(D26<0,0,D26*E26)",{"$f":"IF(_xlfn.FORMULATEXT(INDIRECT(G38))=H38,0,1)","v":0},null,null,null,{"$f":"ADDRESS(12,8,1,1,$M$1)","v":"'Currency Risk'!$H$12"},"=IF(D12=0,IF(C12>(E12+G12),0%,25%),IF(D12>(F12+G12),0%,25%))",{"$f":"IF(_xlfn.FORMULATEXT(INDIRECT(M38))=N38,0,1)","v":0},{"$f":"ADDRESS(17,5,1,1,$P$1)","v":"'Concentration Risk'!$E$17"},"=+'Fixed Income Investments'!E90",{"$f":"IF(_xlfn.FORMULATEXT(INDIRECT(P38))=Q38,0,1)","v":0},{"$f":"ADDRESS(10,12,1,1,$S$1)","v":"'Geographic Diversification'!$L$10"},"=+'Schedule IVC (EBS)'!H10",{"$f":"IF(_xlfn.FORMULATEXT(INDIRECT(S38))=T38,0,1)","v":0},{"$f":"ADDRESS(30,4,1,1,$V$1)","v":"'Credit Risk'!$D$30"},"='Schedule XVIII (EBS)'!O92",{"$f":"IF(_xlfn.FORMULATEXT(INDIRECT(V38))=W38,0,1)","v":0},{"$f":"ADDRESS(17,6,1,1,$Y$1)","v":"'Premium Risk'!$F$17"},"='Schedule IVA (EBS)'!Q17",{"$f":"IF(_xlfn.FORMULATEXT(INDIRECT(Y38))=Z38,0,1)","v":0},{"$f":"ADDRESS(17,5,1,1,$AB$1)","v":"'Reserve Risk'!$E$17"},"=+'Schedule III (EBS)'!F16",{"$f":"IF(_xlfn.FORMULATEXT(INDIRECT(AB38))=AC38,0,1)","v":0}]
[{"$f":"ADDRESS(55,38,1,1,$A$1)","v":"Summary!$AL$55"},60,{"$f":"IF(INDIRECT(A39)=B39,0,1)","v":0},{"$f":"ADDRESS(28,5,1,1,$D$1)","v":"'Fixed Income Investments'!$E$28"},1.2E-2,{"$f":"IF(INDIRECT(D39)=E39,0,1)","v":0},{"$f":"ADDRESS(27,4,1,1,$G$1)","v":"'Equity Investments'!$D$27"},"='Schedule II (EBS)'!H40+'Schedule IIA (EBS)'!H40",{"$f":"IF(_xlfn.FORMULATEXT(INDIRECT(G39))=H39,0,1)","v":0},null,null,null,{"$f":"ADDRESS(12,9,1,1,$M$1)","v":"'Currency Risk'!$I$12"},"=IF(D12=0,H12*ABS(C12-E12-G12),H12*ABS(D12-F12-G12))",{"$f":"IF(_xlfn.FORMULATEXT(INDIRECT(M39))=N39,0,1)","v":0},{"$f":"ADDRESS(17,6,1,1,$P$1)","v":"'Concentration Risk'!$F$17"},"=MAX(0,(D17*E17))",{"$f":"IF(_xlfn.FORMULATEXT(INDIRECT(P39))=Q39,0,1)","v":0},{"$f":"ADDRESS(10,13,1,1,$S$1)","v":"'Geographic Diversification'!$M$10"},"=+'Schedule IVC (EBS)'!I10",{"$f":"IF(_xlfn.FORMULATEXT(INDIRECT(S39))=T39,0,1)","v":0},{"$f":"ADDRESS(30,5,1,1,$V$1)","v":"'Credit Risk'!$E$30"},0.12,{"$f":"IF(INDIRECT(V39)=W39,0,1)","v":0},{"$f":"ADDRESS(17,7,1,1,$Y$1)","v":"'Premium Risk'!$G$17"},"=+'Geographic Diversification'!H15",{"$f":"IF(_xlfn.FORMULATEXT(INDIRECT(Y39))=Z39,0,1)","v":0},{"$f":"ADDRESS(17,6,1,1,$AB$1)","v":"'Reserve Risk'!$F$17"},"=+'Geographic Diversification'!H46",{"$f":"IF(_xlfn.FORMULATEXT(INDIRECT(AB39))=AC39,0,1)","v":0}]
[{"$f":"ADDRESS(55,39,1,1,$A$1)","v":"Summary!$AM$55"},280,{"$f":"IF(INDIRECT(A40)=B40,0,1)","v":0},{"$f":"ADDRESS(28,6,1,1,$D$1)","v":"'Fixed Income Investments'!$F$28"},"=IF(D28<0,0,D28*E28)",{"$f":"IF(_xlfn.FORMULATEXT(INDIRECT(D40))=E40,0,1)","v":0},{"$f":"ADDRESS(27,5,1,1,$G$1)","v":"'Equity Investments'!$E$27"},0.35,{"$f":"IF(INDIRECT(G40)=H40,0,1)","v":0},null,null,null,{"$f":"ADDRESS(13,2,1,1,$M$1)","v":"'Currency Risk'!$B$13"},"='Schedule XX'!B13",{"$f":"IF(_xlfn.FORMULATEXT(INDIRECT(M40))=N40,0,1)","v":0},{"$f":"ADDRESS(18,2,1,1,$P$1)","v":"'Concentration Risk'!$B$18"},"BSCR Rating 8",{"$f":"IF(INDIRECT(P40)=Q40,0,1)","v":0},{"$f":"ADDRESS(10,14,1,1,$S$1)","v":"'Geographic Diversification'!$N$10"},"=+'Schedule IVC (EBS)'!J10",{"$f":"IF(_xlfn.FORMULATEXT(INDIRECT(S40))=T40,0,1)","v":0},{"$f":"ADDRESS(30,6,1,1,$V$1)","v":"'Credit Risk'!$F$30"},"=IF(D30<0,0,D30*E30)",{"$f":"IF(_xlfn.FORMULATEXT(INDIRECT(V40))=W40,0,1)","v":0},{"$f":"ADDRESS(17,8,1,1,$Y$1)","v":"'Premium Risk'!$H$17"},0.48201231799963601,{"$f":"IF(INDIRECT(Y40)=Z40,0,1)","v":0},{"$f":"ADDRESS(17,7,1,1,$AB$1)","v":"'Reserve Risk'!$G$17"},0.48255646377949901,{"$f":"IF(INDIRECT(AB40)=AC40,0,1)","v":0}]
[{"$f":"ADDRESS(55,40,1,1,$A$1)","v":"Summary!$AN$55"},60,{"$f":"IF(INDIRECT(A41)=B41,0,1)","v":0},{"$f":"ADDRESS(29,4,1,1,$D$1)","v":"'Fixed Income Investments'!$D$29"},"='Schedule II (EBS)'!H15+'Schedule IIA (EBS)'!H15",{"$f":"IF(_xlfn.FORMULATEXT(INDIRECT(D41))=E41,0,1)","v":0},{"$f":"ADDRESS(27,6,1,1,$G$1)","v":"'Equity Investments'!$F$27"},"=IF(D27<0,0,D27*E27)",{"$f":"IF(_xlfn.FORMULATEXT(INDIRECT(G41))=H41,0,1)","v":0},null,null,null,{"$f":"ADDRESS(13,3,1,1,$M$1)","v":"'Currency Risk'!$C$13"},"='Schedule XX'!L13",{"$f":"IF(_xlfn.FORMULATEXT(INDIRECT(M41))=N41,0,1)","v":0},{"$f":"ADDRESS(18,4,1,1,$P$1)","v":"'Concentration Risk'!$D$18"},"=SUMIFS('Schedule XXI'!$M$8:$M$57,'Schedule XXI'!$J$8:$J$57,$D$9,'Schedule XXI'!$L$8:$L$57,$B18)",{"$f":"IF(_xlfn.FORMULATEXT(INDIRECT(P41))=Q41,0,1)","v":0},{"$f":"ADDRESS(10,15,1,1,$S$1)","v":"'Geographic Diversification'!$O$10"},"=+'Schedule IVC (EBS)'!K10",{"$f":"IF(_xlfn.FORMULATEXT(INDIRECT(S41))=T41,0,1)","v":0},{"$f":"ADDRESS(31,4,1,1,$V$1)","v":"'Credit Risk'!$D$31"},"='Schedule XVIII (EBS)'!O93",{"$f":"IF(_xlfn.FORMULATEXT(INDIRECT(V41))=W41,0,1)","v":0},{"$f":"ADDRESS(17,9,1,1,$Y$1)","v":"'Premium Risk'!$I$17"},"=IF($G$17<0,0,$G$17*$H$17)",{"$f":"IF(_xlfn.FORMULATEXT(INDIRECT(Y41))=Z41,0,1)","v":0},{"$f":"ADDRESS(17,8,1,1,$AB$1)","v":"'Reserve Risk'!$H$17"},"=IF($F$17<0,0,$F$17*$G$17)",{"$f":"IF(_xlfn.FORMULATEXT(INDIRECT(AB41))=AC41,0,1)","v":0}]
[{"$f":"ADDRESS(56,3,1,1,$A$1)","v":"Summary!$C$56"},"Equity Investment Risk",{"$f":"IF(INDIRECT(A42)=B42,0,1)","v":0},{"$f":"ADDRESS(29,5,1,1,$D$1)","v":"'Fixed Income Investments'!$E$29"},0.02,{"$f":"IF(INDIRECT(D42)=E42,0,1)","v":0},{"$f":"ADDRESS(29,4,1,1,$G$1)","v":"'Equity Investments'!$D$29"},"=SUM(D20:D27)",{"$f":"IF(_xlfn.FORMULATEXT(INDIRECT(G42))=H42,0,1)","v":0},null,null,null,{"$f":"ADDRESS(13,4,1,1,$M$1)","v":"'Currency Risk'!$D$13"},"='Schedule XX'!N13",{"$f":"IF(_xlfn.FORMULATEXT(INDIRECT(M42))=N42,0,1)","v":0},{"$f":"ADDRESS(18,5,1,1,$P$1)","v":"'Concentration Risk'!$E$18"},"=+'Fixed Income Investments'!E91",{"$f":"IF(_xlfn.FORMULATEXT(INDIRECT(P42))=Q42,0,1)","v":0},{"$f":"ADDRESS(10,16,1,1,$S$1)","v":"'Geographic Diversification'!$P$10"},"=+'Schedule IVC (EBS)'!L10",{"$f":"IF(_xlfn.FORMULATEXT(INDIRECT(S42))=T42,0,1)","v":0},{"$f":"ADDRESS(31,5,1,1,$V$1)","v":"'Credit Risk'!$E$31"},0.2,{"$f":"IF(INDIRECT(V42)=W42,0,1)","v":0},{"$f":"ADDRESS(18,5,1,1,$Y$1)","v":"'Premium Risk'!$E$18"},"=+'Schedule IVA (EBS)'!M18",{"$f":"IF(_xlfn.FORMULATEXT(INDIRECT(Y42))=Z42,0,1)","v":0},{"$f":"ADDRESS(18,4,1,1,$AB$1)","v":"'Reserve Risk'!$D$18"},"=+'Schedule III (EBS)'!D17",{"$f":"IF(_xlfn.FORMULATEXT(INDIRECT(AB42))=AC42,0,1)","v":0}]
[{"$f":"ADDRESS(56,7,1,1,$A$1)","v":"Summary!$G$56"},"=ROUND('Equity Investments'!F51,$N$163)",{"$f":"IF(_xlfn.FORMULATEXT(INDIRECT(A43))=B43,0,1)","v":0},{"$f":"ADDRESS(29,6,1,1,$D$1)","v":"'Fixed Income Investments'!$F$29"},"=IF(D29<0,0,D29*E29)",{"$f":"IF(_xlfn.FORMULATEXT(INDIRECT(D43))=E43,0,1)","v":0},{"$f":"ADDRESS(29,6,1,1,$G$1)","v":"'Equity Investments'!$F$29"},"=IF(SUM(F20:F27)>=0,SUM(F20:F27),0)",{"$f":"IF(_xlfn.FORMULATEXT(INDIRECT(G43))=H43,0,1)","v":0},null,null,null,{"$f":"ADDRESS(13,5,1,1,$M$1)","v":"'Currency Risk'!$E$13"},"='Schedule XX'!P13",{"$f":"IF(_xlfn.FORMULATEXT(INDIRECT(M43))=N43,0,1)","v":0},{"$f":"ADDRESS(18,6,1,1,$P$1)","v":"'Concentration Risk'!$F$18"},"=MAX(0,(D18*E18))",{"$f":"IF(_xlfn.FORMULATEXT(INDIRECT(P43))=Q43,0,1)","v":0},{"$f":"ADDRESS(10,17,1,1,$S$1)","v":"'Geographic Diversification'!$Q$10"},"=+'Schedule IVC (EBS)'!M10",{"$f":"IF(_xlfn.FORMULATEXT(INDIRECT(S43))=T43,0,1)","v":0},{"$f":"ADDRESS(31,6,1,1,$V$1)","v":"'Credit Risk'!$F$31"},"=IF(D31<0,0,D31*E31)",{"$f":"IF(_xlfn.FORMULATEXT(INDIRECT(V43))=W43,0,1)","v":0},{"$f":"ADDRESS(18,6,1,1,$Y$1)","v":"'Premium Risk'!$F$18"},"='Schedule IVA (EBS)'!Q18",{"$f":"IF(_xlfn.FORMULATEXT(INDIRECT(Y43))=Z43,0,1)","v":0},{"$f":"ADDRESS(18,5,1,1,$AB$1)","v":"'Reserve Risk'!$E$18"},"=+'Schedule III (EBS)'!F17",{"$f":"IF(_xlfn.FORMULATEXT(INDIRECT(AB43))=AC43,0,1)","v":0}]
[{"$f":"ADDRESS(56,11,1,1,$A$1)","v":"Summary!$K$56"},"=ROUND('Equity Investments (Revised)'!R58,$N$163)",{"$f":"IF(_xlfn.FORMULATEXT(INDIRECT(A44))=B44,0,1)","v":0},{"$f":"ADDRESS(30,4,1,1,$D$1)","v":"'Fixed Income Investments'!$D$30"},"='Schedule II (EBS)'!H16+'Schedule IIA (EBS)'!H16",{"$f":"IF(_xlfn.FORMULATEXT(INDIRECT(D44))=E44,0,1)","v":0},{"$f":"ADDRESS(34,4,1,1,$G$1)","v":"'Equity Investments'!$D$34"},"='Form 1EBS'!F48",{"$f":"IF(_xlfn.FORMULATEXT(INDIRECT(G44))=H44,0,1)","v":0},null,null,null,{"$f":"ADDRESS(13,6,1,1,$M$1)","v":"'Currency Risk'!$F$13"},"='Schedule XX'!R13",{"$f":"IF(_xlfn.FORMULATEXT(INDIRECT(M44))=N44,0,1)","v":0},{"$f":"ADDRESS(20,4,1,1,$P$1)","v":"'Concentration Risk'!$D$20"},"=SUM(D9:D18)",{"$f":"IF(_xlfn.FORMULATEXT(INDIRECT(P44))=Q44,0,1)","v":0},{"$f":"ADDRESS(10,18,1,1,$S$1)","v":"'Geographic Diversification'!$R$10"},"=+'Schedule IVC (EBS)'!N10",{"$f":"IF(_xlfn.FORMULATEXT(INDIRECT(S44))=T44,0,1)","v":0},{"$f":"ADDRESS(32,4,1,1,$V$1)","v":"'Credit Risk'!$D$32"},"='Schedule XVIII (EBS)'!O94",{"$f":"IF(_xlfn.FORMULATEXT(INDIRECT(V44))=W44,0,1)","v":0},{"$f":"ADDRESS(18,7,1,1,$Y$1)","v":"'Premium Risk'!$G$18"},"=+'Geographic Diversification'!H16",{"$f":"IF(_xlfn.FORMULATEXT(INDIRECT(Y44))=Z44,0,1)","v":0},{"$f":"ADDRESS(18,6,1,1,$AB$1)","v":"'Reserve Risk'!$F$18"},"=+'Geographic Diversification'!H47",{"$f":"IF(_xlfn.FORMULATEXT(INDIRECT(AB44))=AC44,0,1)","v":0}]
[{"$f":"ADDRESS(56,13,1,1,$A$1)","v":"Summary!$M$56"},"=ROUND('Equity Investments (Revised)'!P58,$N$163)",{"$f":"IF(_xlfn.FORMULATEXT(INDIRECT(A45))=B45,0,1)","v":0},{"$f":"ADDRESS(30,5,1,1,$D$1)","v":"'Fixed Income Investments'!$E$30"},0.04,{"$f":"IF(INDIRECT(D45)=E45,0,1)","v":0},{"$f":"ADDRESS(34,5,1,1,$G$1)","v":"'Equity Investments'!$E$34"},0.1,{"$f":"IF(INDIRECT(G45)=H45,0,1)","v":0},null,null,null,{"$f":"ADDRESS(13,7,1,1,$M$1)","v":"'Currency Risk'!$G$13"},"=IF(F13=0,E13*$G$6,F13*$G$6)",{"$f":"IF(_xlfn.FORMULATEXT(INDIRECT(M45))=N45,0,1)","v":0},{"$f":"ADDRESS(20,6,1,1,$P$1)","v":"'Concentration Risk'!$F$20"},"=SUM(F9:F18)",{"$f":"IF(_xlfn.FORMULATEXT(INDIRECT(P45))=Q45,0,1)","v":0},{"$f":"ADDRESS(10,19,1,1,$S$1)","v":"'Geographic Diversification'!$S$10"},"=+'Schedule IVC (EBS)'!O10",{"$f":"IF(_xlfn.FORMULATEXT(INDIRECT(S45))=T45,0,1)","v":0},{"$f":"ADDRESS(32,5,1,1,$V$1)","v":"'Credit Risk'!$E$32"},0.27,{"$f":"IF(INDIRECT(V45)=W45,0,1)","v":0},{"$f":"ADDRESS(18,8,1,1,$Y$1)","v":"'Premium Risk'!$H$18"},0.39820522005250802,{"$f":"IF(INDIRECT(Y45)=Z45,0,1)","v":0},{"$f":"ADDRESS(18,7,1,1,$AB$1)","v":"'Reserve Risk'!$G$18"},0.383682680649994,{"$f":"IF(INDIRECT(AB45)=AC45,0,1)","v":0}]
[{"$f":"ADDRESS(56,20,1,1,$A$1)","v":"Summary!$T$56"},"=C56",{"$f":"IF(_xlfn.FORMULATEXT(INDIRECT(A46))=B46,0,1)","v":0},{"$f":"ADDRESS(30,6,1,1,$D$1)","v":"'Fixed Income Investments'!$F$30"},"=IF(D30<0,0,D30*E30)",{"$f":"IF(_xlfn.FORMULATEXT(INDIRECT(D46))=E46,0,1)","v":0},{"$f":"ADDRESS(34,6,1,1,$G$1)","v":"'Equity Investments'!$F$34"},"=IF($D$34<0,0,$D$34*$E$34)",{"$f":"IF(_xlfn.FORMULATEXT(INDIRECT(G46))=H46,0,1)","v":0},null,null,null,{"$f":"ADDRESS(13,8,1,1,$M$1)","v":"'Currency Risk'!$H$13"},"=IF(D13=0,IF(C13>(E13+G13),0%,25%),IF(D13>(F13+G13),0%,25%))",{"$f":"IF(_xlfn.FORMULATEXT(INDIRECT(M46))=N46,0,1)","v":0},{"$f":"ADDRESS(22,4,1,1,$P$1)","v":"'Concentration Risk'!$D$22"},"Corporate & Sovereign Bonds",{"$f":"IF(INDIRECT(P46)=Q46,0,1)","v":0},{"$f":"ADDRESS(10,20,1,1,$S$1)","v":"'Geographic Diversification'!$T$10"},"=+'Schedule IVC (EBS)'!P10",{"$f":"IF(_xlfn.FORMULATEXT(INDIRECT(S46))=T46,0,1)","v":0},{"$f":"ADDRESS(32,6,1,1,$V$1)","v":"'Credit Risk'!$F$32"},"=IF(D32<0,0,D32*E32)",{"$f":"IF(_xlfn.FORMULATEXT(INDIRECT(V46))=W46,0,1)","v":0},{"$f":"ADDRESS(18,9,1,1,$Y$1)","v":"'Premium Risk'!$I$18"},"=IF($G$18<0,0,$G$18*$H$18)",{"$f":"IF(_xlfn.FORMULATEXT(INDIRECT(Y46))=Z46,0,1)","v":0},{"$f":"ADDRESS(18,8,1,1,$AB$1)","v":"'Reserve Risk'!$H$18"},"=IF($F$18<0,0,$F$18*$G$18)",{"$f":"IF(_xlfn.FORMULATEXT(INDIRECT(AB46))=AC46,0,1)","v":0}]
[{"$f":"ADDRESS(56,24,1,1,$A$1)","v":"Summary!$X$56"},"=G56",{"$f":"IF(_xlfn.FORMULATEXT(INDIRECT(A47))=B47,0,1)","v":0},{"$f":"ADDRESS(31,4,1,1,$D$1)","v":"'Fixed Income Investments'!$D$31"},"='Schedule II (EBS)'!H17+'Schedule IIA (EBS)'!H17",{"$f":"IF(_xlfn.FORMULATEXT(INDIRECT(D47))=E47,0,1)","v":0},{"$f":"ADDRESS(35,4,1,1,$G$1)","v":"'Equity Investments'!$D$35"},"='Form 1EBS'!F49",{"$f":"IF(_xlfn.FORMULATEXT(INDIRECT(G47))=H47,0,1)","v":0},null,null,null,{"$f":"ADDRESS(13,9,1,1,$M$1)","v":"'Currency Risk'!$I$13"},"=IF(D13=0,H13*ABS(C13-E13-G13),H13*ABS(D13-F13-G13))",{"$f":"IF(_xlfn.FORMULATEXT(INDIRECT(M47))=N47,0,1)","v":0},{"$f":"ADDRESS(23,2,1,1,$P$1)","v":"'Concentration Risk'!$B$23"},"BSCR Rating 0",{"$f":"IF(INDIRECT(P47)=Q47,0,1)","v":0},{"$f":"ADDRESS(10,21,1,1,$S$1)","v":"'Geographic Diversification'!$U$10"},"=+'Schedule IVC (EBS)'!Q10",{"$f":"IF(_xlfn.FORMULATEXT(INDIRECT(S47))=T47,0,1)","v":0},{"$f":"ADDRESS(33,4,1,1,$V$1)","v":"'Credit Risk'!$D$33"},"='Schedule XVIII (EBS)'!O95",{"$f":"IF(_xlfn.FORMULATEXT(INDIRECT(V47))=W47,0,1)","v":0},{"$f":"ADDRESS(19,5,1,1,$Y$1)","v":"'Premium Risk'!$E$19"},"=+'Schedule IVA (EBS)'!M19",{"$f":"IF(_xlfn.FORMULATEXT(INDIRECT(Y47))=Z47,0,1)","v":0},{"$f":"ADDRESS(19,4,1,1,$AB$1)","v":"'Reserve Risk'!$D$19"},"=+'Schedule III (EBS)'!D18",{"$f":"IF(_xlfn.FORMULATEXT(INDIRECT(AB47))=AC47,0,1)","v":0}]
[{"$f":"ADDRESS(56,25,1,1,$A$1)","v":"Summary!$Y$56"},"=IF($L$71=0,1/9,X56/$X$65)",{"$f":"IF(_xlfn.FORMULATEXT(INDIRECT(A48))=B48,0,1)","v":0},{"$f":"ADDRESS(31,5,1,1,$D$1)","v":"'Fixed Income Investments'!$E$31"},0.11,{"$f":"IF(INDIRECT(D48)=E48,0,1)","v":0},{"$f":"ADDRESS(35,5,1,1,$G$1)","v":"'Equity Investments'!$E$35"},0.2,{"$f":"IF(INDIRECT(G48)=H48,0,1)","v":0},null,null,null,{"$f":"ADDRESS(14,2,1,1,$M$1)","v":"'Currency Risk'!$B$14"},"='Schedule XX'!B14",{"$f":"IF(_xlfn.FORMULATEXT(INDIRECT(M48))=N48,0,1)","v":0},{"$f":"ADDRESS(23,4,1,1,$P$1)","v":"'Concentration Risk'!$D$23"},"=SUMIFS('Schedule XXI'!$M$8:$M$57,'Schedule XXI'!$K$8:$K$57,$D$22,'Schedule XXI'!$L$8:$L$57,$B23)",{"$f":"IF(_xlfn.FORMULATEXT(INDIRECT(P48))=Q48,0,1)","v":0},{"$f":"ADDRESS(10,22,1,1,$S$1)","v":"'Geographic Diversification'!$V$10"},"=+'Schedule IVC (EBS)'!R10",{"$f":"IF(_xlfn.FORMULATEXT(INDIRECT(S48))=T48,0,1)","v":0},{"$f":"ADDRESS(33,5,1,1,$V$1)","v":"'Credit Risk'!$E$33"},0.35,{"$f":"IF(INDIRECT(V48)=W48,0,1)","v":0},{"$f":"ADDRESS(19,6,1,1,$Y$1)","v":"'Premium Risk'!$F$19"},"='Schedule IVA (EBS)'!Q19",{"$f":"IF(_xlfn.FORMULATEXT(INDIRECT(Y48))=Z48,0,1)","v":0},{"$f":"ADDRESS(19,5,1,1,$AB$1)","v":"'Reserve Risk'!$E$19"},"=+'Schedule III (EBS)'!F18",{"$f":"IF(_xlfn.FORMULATEXT(INDIRECT(AB48))=AC48,0,1)","v":0}]
[{"$f":"ADDRESS(56,26,1,1,$A$1)","v":"Summary!$Z$56"},"=M56",{"$f":"IF(_xlfn.FORMULATEXT(INDIRECT(A49))=B49,0,1)","v":0},{"$f":"ADDRESS(31,6,1,1,$D$1)","v":"'Fixed Income Investments'!$F$31"},"=IF(D31<0,0,D31*E31)",{"$f":"IF(_xlfn.FORMULATEXT(INDIRECT(D49))=E49,0,1)","v":0},{"$f":"ADDRESS(35,6,1,1,$G$1)","v":"'Equity Investments'!$F$35"},"=IF($D$35<0,0,$D$35*$E$35)",{"$f":"IF(_xlfn.FORMULATEXT(INDIRECT(G49))=H49,0,1)","v":0},null,null,null,{"$f":"ADDRESS(14,3,1,1,$M$1)","v":"'Currency Risk'!$C$14"},"='Schedule XX'!L14",{"$f":"IF(_xlfn.FORMULATEXT(INDIRECT(M49))=N49,0,1)","v":0},{"$f":"ADDRESS(23,5,1,1,$P$1)","v":"'Concentration Risk'!$E$23"},"=+'Fixed Income Investments'!E12",{"$f":"IF(_xlfn.FORMULATEXT(INDIRECT(P49))=Q49,0,1)","v":0},{"$f":"ADDRESS(10,23,1,1,$S$1)","v":"'Geographic Diversification'!$W$10"},"=+'Schedule IVC (EBS)'!S10",{"$f":"IF(_xlfn.FORMULATEXT(INDIRECT(S49))=T49,0,1)","v":0},{"$f":"ADDRESS(33,6,1,1,$V$1)","v":"'Credit Risk'!$F$33"},"=IF(D33<0,0,D33*E33)",{"$f":"IF(_xlfn.FORMULATEXT(INDIRECT(V49))=W49,0,1)","v":0},{"$f":"ADDRESS(19,7,1,1,$Y$1)","v":"'Premium Risk'!$G$19"},"=+'Geographic Diversification'!H17",{"$f":"IF(_xlfn.FORMULATEXT(INDIRECT(Y49))=Z49,0,1)","v":0},{"$f":"ADDRESS(19,6,1,1,$AB$1)","v":"'Reserve Risk'!$F$19"},"=+'Geographic Diversification'!H48",{"$f":"IF(_xlfn.FORMULATEXT(INDIRECT(AB49))=AC49,0,1)","v":0}]
[{"$f":"ADDRESS(56,27,1,1,$A$1)","v":"Summary!$AA$56"},"=IF($N$71=0,1/9,Z56/$Z$65)",{"$f":"IF(_xlfn.FORMULATEXT(INDIRECT(A50))=B50,0,1)","v":0},{"$f":"ADDRESS(32,4,1,1,$D$1)","v":"'Fixed Income Investments'!$D$32"},"='Schedule II (EBS)'!H18+'Schedule IIA (EBS)'!H18",{"$f":"IF(_xlfn.FORMULATEXT(INDIRECT(D50))=E50,0,1)","v":0},{"$f":"ADDRESS(37,4,1,1,$G$1)","v":"'Equity Investments'!$D$37"},"='Form 1EBS'!F19+'Form 1EBS'!F29+'Schedule IIA (EBS)'!P44",{"$f":"IF(_xlfn.FORMULATEXT(INDIRECT(G50))=H50,0,1)","v":0},null,null,null,{"$f":"ADDRESS(14,4,1,1,$M$1)","v":"'Currency Risk'!$D$14"},"='Schedule XX'!N14",{"$f":"IF(_xlfn.FORMULATEXT(INDIRECT(M50))=N50,0,1)","v":0},{"$f":"ADDRESS(23,6,1,1,$P$1)","v":"'Concentration Risk'!$F$23"},"=MAX(0,(D23*E23))",{"$f":"IF(_xlfn.FORMULATEXT(INDIRECT(P50))=Q50,0,1)","v":0},{"$f":"ADDRESS(10,24,1,1,$S$1)","v":"'Geographic Diversification'!$X$10"},"=+'Schedule IVC (EBS)'!T10",{"$f":"IF(_xlfn.FORMULATEXT(INDIRECT(S50))=T50,0,1)","v":0},{"$f":"ADDRESS(35,4,1,1,$V$1)","v":"'Credit Risk'!$D$35"},"=SUM(D25:D33)",{"$f":"IF(_xlfn.FORMULATEXT(INDIRECT(V50))=W50,0,1)","v":0},{"$f":"ADDRESS(19,8,1,1,$Y$1)","v":"'Premium Risk'!$H$19"},0.45356665999464701,{"$f":"IF(INDIRECT(Y50)=Z50,0,1)","v":0},{"$f":"ADDRESS(19,7,1,1,$AB$1)","v":"'Reserve Risk'!$G$19"},0.43464696624596899,{"$f":"IF(INDIRECT(AB50)=AC50,0,1)","v":0}]
[{"$f":"ADDRESS(56,29,1,1,$A$1)","v":"Summary!$AC$56"},"=(SUM(AA$55:AA56)/AA$65)",{"$f":"IF(_xlfn.FORMULATEXT(INDIRECT(A51))=B51,0,1)","v":0},{"$f":"ADDRESS(32,5,1,1,$D$1)","v":"'Fixed Income Investments'!$E$32"},0.25,{"$f":"IF(INDIRECT(D51)=E51,0,1)","v":0},{"$f":"ADDRESS(37,5,1,1,$G$1)","v":"'Equity Investments'!$E$37"},0.2,{"$f":"IF(INDIRECT(G51)=H51,0,1)","v":0},null,null,null,{"$f":"ADDRESS(14,5,1,1,$M$1)","v":"'Currency Risk'!$E$14"},"='Schedule XX'!P14",{"$f":"IF(_xlfn.FORMULATEXT(INDIRECT(M51))=N51,0,1)","v":0},{"$f":"ADDRESS(24,2,1,1,$P$1)","v":"'Concentration Risk'!$B$24"},"BSCR Rating 1",{"$f":"IF(INDIRECT(P51)=Q51,0,1)","v":0},{"$f":"ADDRESS(10,25,1,1,$S$1)","v":"'Geographic Diversification'!$Y$10"},"=+'Schedule IVC (EBS)'!U10",{"$f":"IF(_xlfn.FORMULATEXT(INDIRECT(S51))=T51,0,1)","v":0},{"$f":"ADDRESS(35,6,1,1,$V$1)","v":"'Credit Risk'!$F$35"},"=SUM(F25:F33)",{"$f":"IF(_xlfn.FORMULATEXT(INDIRECT(V51))=W51,0,1)","v":0},{"$f":"ADDRESS(19,9,1,1,$Y$1)","v":"'Premium Risk'!$I$19"},"=IF($G$19<0,0,$G$19*$H$19)",{"$f":"IF(_xlfn.FORMULATEXT(INDIRECT(Y51))=Z51,0,1)","v":0},{"$f":"ADDRESS(19,8,1,1,$AB$1)","v":"'Reserve Risk'!$H$19"},"=IF($F$19<0,0,$F$19*$G$19)",{"$f":"IF(_xlfn.FORMULATEXT(INDIRECT(AB51))=AC51,0,1)","v":0}]
[{"$f":"ADDRESS(56,32,1,1,$A$1)","v":"Summary!$AF$56"},"=IF(AO56=\"\",IF(Test_Statistic<$AJ$71,AI56,IF(Test_Statistic<$AL$71,AK56,AM56)),AO56)",{"$f":"IF(_xlfn.FORMULATEXT(INDIRECT(A52))=B52,0,1)","v":0},{"$f":"ADDRESS(32,6,1,1,$D$1)","v":"'Fixed Income Investments'!$F$32"},"=IF(D32<0,0,D32*E32)",{"$f":"IF(_xlfn.FORMULATEXT(INDIRECT(D52))=E52,0,1)","v":0},{"$f":"ADDRESS(37,6,1,1,$G$1)","v":"'Equity Investments'!$F$37"},"=IF($D$37<0,0,$D$37*$E$37)",{"$f":"IF(_xlfn.FORMULATEXT(INDIRECT(G52))=H52,0,1)","v":0},null,null,null,{"$f":"ADDRESS(14,6,1,1,$M$1)","v":"'Currency Risk'!$F$14"},"='Schedule XX'!R14",{"$f":"IF(_xlfn.FORMULATEXT(INDIRECT(M52))=N52,0,1)","v":0},{"$f":"ADDRESS(24,4,1,1,$P$1)","v":"'Concentration Risk'!$D$24"},"=SUMIFS('Schedule XXI'!$M$8:$M$57,'Schedule XXI'!$K$8:$K$57,$D$22,'Schedule XXI'!$L$8:$L$57,$B24)",{"$f":"IF(_xlfn.FORMULATEXT(INDIRECT(P52))=Q52,0,1)","v":0},{"$f":"ADDRESS(10,26,1,1,$S$1)","v":"'Geographic Diversification'!$Z$10"},"=+'Schedule IVC (EBS)'!V10",{"$f":"IF(_xlfn.FORMULATEXT(INDIRECT(S52))=T52,0,1)","v":0},{"$f":"ADDRESS(37,5,1,1,$V$1)","v":"'Credit Risk'!$E$37"},"='Schedule XVIII (EBS)'!O104",{"$f":"IF(_xlfn.FORMULATEXT(INDIRECT(V52))=W52,0,1)","v":0},{"$f":"ADDRESS(20,5,1,1,$Y$1)","v":"'Premium Risk'!$E$20"},"=+'Schedule IVA (EBS)'!M20",{"$f":"IF(_xlfn.FORMULATEXT(INDIRECT(Y52))=Z52,0,1)","v":0},{"$f":"ADDRESS(20,4,1,1,$AB$1)","v":"'Reserve Risk'!$D$20"},"=+'Schedule III (EBS)'!D19",{"$f":"IF(_xlfn.FORMULATEXT(INDIRECT(AB52))=AC52,0,1)","v":0}]
[{"$f":"ADDRESS(56,33,1,1,$A$1)","v":"Summary!$AG$56"},"=IF(AP56=\"\",IF(Test_Statistic<$AJ$71,AJ56,IF(Test_Statistic<$AL$71,AL56,AN56)),AP56)",{"$f":"IF(_xlfn.FORMULATEXT(INDIRECT(A53))=B53,0,1)","v":0},{"$f":"ADDRESS(33,4,1,1,$D$1)","v":"'Fixed Income Investments'!$D$33"},"='Schedule II (EBS)'!H19+'Schedule IIA (EBS)'!H19",{"$f":"IF(_xlfn.FORMULATEXT(INDIRECT(D53))=E53,0,1)","v":0},{"$f":"ADDRESS(38,4,1,1,$G$1)","v":"'Equity Investments'!$D$38"},"='Form 1EBS'!F82+'Form 1EBS'!F88+'Form 1EBS'!F148-'Form 1EBS'!F75",{"$f":"IF(_xlfn.FORMULATEXT(INDIRECT(G53))=H53,0,1)","v":0},null,null,null,{"$f":"ADDRESS(14,7,1,1,$M$1)","v":"'Currency Risk'!$G$14"},"=IF(F14=0,E14*$G$6,F14*$G$6)",{"$f":"IF(_xlfn.FORMULATEXT(INDIRECT(M53))=N53,0,1)","v":0},{"$f":"ADDRESS(24,5,1,1,$P$1)","v":"'Concentration Risk'!$E$24"},"=+'Fixed Income Investments'!E13",{"$f":"IF(_xlfn.FORMULATEXT(INDIRECT(P53))=Q53,0,1)","v":0},{"$f":"ADDRESS(11,4,1,1,$S$1)","v":"'Geographic Diversification'!$D$11"},"=SUM(I11:Z11)",{"$f":"IF(_xlfn.FORMULATEXT(INDIRECT(S53))=T53,0,1)","v":0},{"$f":"ADDRESS(37,6,1,1,$V$1)","v":"'Credit Risk'!$F$37"},"=SUM(F25:F33)*-('Schedule XVIII (EBS)'!O104)",{"$f":"IF(_xlfn.FORMULATEXT(INDIRECT(V53))=W53,0,1)","v":0},{"$f":"ADDRESS(20,6,1,1,$Y$1)","v":"'Premium Risk'!$F$20"},"='Schedule IVA (EBS)'!Q20",{"$f":"IF(_xlfn.FORMULATEXT(INDIRECT(Y53))=Z53,0,1)","v":0},{"$f":"ADDRESS(20,5,1,1,$AB$1)","v":"'Reserve Risk'!$E$20"},"=+'Schedule III (EBS)'!F19",{"$f":"IF(_xlfn.FORMULATEXT(INDIRECT(AB53))=AC53,0,1)","v":0}]
[{"$f":"ADDRESS(56,35,1,1,$A$1)","v":"Summary!$AI$56"},"=IF(AC60>0.6,300,300)",{"$f":"IF(_xlfn.FORMULATEXT(INDIRECT(A54))=B54,0,1)","v":0},{"$f":"ADDRESS(33,5,1,1,$D$1)","v":"'Fixed Income Investments'!$E$33"},0.35,{"$f":"IF(INDIRECT(D54)=E54,0,1)","v":0},{"$f":"ADDRESS(38,5,1,1,$G$1)","v":"'Equity Investments'!$E$38"},0.2,{"$f":"IF(INDIRECT(G54)=H54,0,1)","v":0},null,null,null,{"$f":"ADDRESS(14,8,1,1,$M$1)","v":"'Currency Risk'!$H$14"},"=IF(D14=0,IF(C14>(E14+G14),0%,25%),IF(D14>(F14+G14),0%,25%))",{"$f":"IF(_xlfn.FORMULATEXT(INDIRECT(M54))=N54,0,1)","v":0},{"$f":"ADDRESS(24,6,1,1,$P$1)","v":"'Concentration Risk'!$F$24"},"=MAX(0,(D24*E24))",{"$f":"IF(_xlfn.FORMULATEXT(INDIRECT(P54))=Q54,0,1)","v":0},{"$f":"ADDRESS(11,5,1,1,$S$1)","v":"'Geographic Diversification'!$E$11"},"=SUMSQ(I11:Z11)",{"$f":"IF(_xlfn.FORMULATEXT(INDIRECT(S54))=T54,0,1)","v":0},{"$f":"ADDRESS(39,4,1,1,$V$1)","v":"'Credit Risk'!$D$39"},"=+D35",{"$f":"IF(_xlfn.FORMULATEXT(INDIRECT(V54))=W54,0,1)","v":0},{"$f":"ADDRESS(20,7,1,1,$Y$1)","v":"'Premium Risk'!$G$20"},"=+'Geographic Diversification'!H18",{"$f":"IF(_xlfn.FORMULATEXT(INDIRECT(Y54))=Z54,0,1)","v":0},{"$f":"ADDRESS(20,6,1,1,$AB$1)","v":"'Reserve Risk'!$F$20"},"=+'Geographic Diversification'!H49",{"$f":"IF(_xlfn.FORMULATEXT(INDIRECT(AB54))=AC54,0,1)","v":0}]
[{"$f":"ADDRESS(56,36,1,1,$A$1)","v":"Summary!$AJ$56"},"=IF(AC62>1,90,IF(AC60>1,60,IF(AC60>0.6,90,60)))",{"$f":"IF(_xlfn.FORMULATEXT(INDIRECT(A55))=B55,0,1)","v":0},{"$f":"ADDRESS(33,6,1,1,$D$1)","v":"'Fixed Income Investments'!$F$33"},"=IF(D33<0,0,D33*E33)",{"$f":"IF(_xlfn.FORMULATEXT(INDIRECT(D55))=E55,0,1)","v":0},{"$f":"ADDRESS(38,6,1,1,$G$1)","v":"'Equity Investments'!$F$38"},"=IF($D$38<0,0,$D$38*$E$38)",{"$f":"IF(_xlfn.FORMULATEXT(INDIRECT(G55))=H55,0,1)","v":0},null,null,null,{"$f":"ADDRESS(14,9,1,1,$M$1)","v":"'Currency Risk'!$I$14"},"=IF(D14=0,H14*ABS(C14-E14-G14),H14*ABS(D14-F14-G14))",{"$f":"IF(_xlfn.FORMULATEXT(INDIRECT(M55))=N55,0,1)","v":0},{"$f":"ADDRESS(25,2,1,1,$P$1)","v":"'Concentration Risk'!$B$25"},"BSCR Rating 2",{"$f":"IF(INDIRECT(P55)=Q55,0,1)","v":0},{"$f":"ADDRESS(11,6,1,1,$S$1)","v":"'Geographic Diversification'!$F$11"},"=(IF(D11>0,E11/D11^2,1))",{"$f":"IF(_xlfn.FORMULATEXT(INDIRECT(S55))=T55,0,1)","v":0},{"$f":"ADDRESS(39,6,1,1,$V$1)","v":"'Credit Risk'!$F$39"},"=SUM(F25:F33)+F37",{"$f":"IF(_xlfn.FORMULATEXT(INDIRECT(V55))=W55,0,1)","v":0},{"$f":"ADDRESS(20,8,1,1,$Y$1)","v":"'Premium Risk'!$H$20"},0.42102344656076801,{"$f":"IF(INDIRECT(Y55)=Z55,0,1)","v":0},{"$f":"ADDRESS(20,7,1,1,$AB$1)","v":"'Reserve Risk'!$G$20"},0.39543823911176501,{"$f":"IF(INDIRECT(AB55)=AC55,0,1)","v":0}]
[{"$f":"ADDRESS(56,37,1,1,$A$1)","v":"Summary!$AK$56"},300,{"$f":"IF(INDIRECT(A56)=B56,0,1)","v":0},{"$f":"ADDRESS(34,4,1,1,$D$1)","v":"'Fixed Income Investments'!$D$34"},"='Schedule II (EBS)'!H20+'Schedule IIA (EBS)'!H20",{"$f":"IF(_xlfn.FORMULATEXT(INDIRECT(D56))=E56,0,1)","v":0},{"$f":"ADDRESS(40,4,1,1,$G$1)","v":"'Equity Investments'!$D$40"},"=SUM(D34:D38)",{"$f":"IF(_xlfn.FORMULATEXT(INDIRECT(G56))=H56,0,1)","v":0},null,null,null,{"$f":"ADDRESS(15,2,1,1,$M$1)","v":"'Currency Risk'!$B$15"},"='Schedule XX'!B15",{"$f":"IF(_xlfn.FORMULATEXT(INDIRECT(M56))=N56,0,1)","v":0},{"$f":"ADDRESS(25,4,1,1,$P$1)","v":"'Concentration Risk'!$D$25"},"=SUMIFS('Schedule XXI'!$M$8:$M$57,'Schedule XXI'!$K$8:$K$57,$D$22,'Schedule XXI'!$L$8:$L$57,$B25)",{"$f":"IF(_xlfn.FORMULATEXT(INDIRECT(P56))=Q56,0,1)","v":0},{"$f":"ADDRESS(11,7,1,1,$S$1)","v":"'Geographic Diversification'!$G$11"},"=D11*(0.75+0.25*F11)",{"$f":"IF(_xlfn.FORMULATEXT(INDIRECT(S56))=T56,0,1)","v":0},{"$f":"ADDRESS(41,4,1,1,$V$1)","v":"'Credit Risk'!$D$41"},"=D14+D21+D39",{"$f":"IF(_xlfn.FORMULATEXT(INDIRECT(V56))=W56,0,1)","v":0},{"$f":"ADDRESS(20,9,1,1,$Y$1)","v":"'Premium Risk'!$I$20"},"=IF($G$20<0,0,$G$20*$H$20)",{"$f":"IF(_xlfn.FORMULATEXT(INDIRECT(Y56))=Z56,0,1)","v":0},{"$f":"ADDRESS(20,8,1,1,$AB$1)","v":"'Reserve Risk'!$H$20"},"=IF($F$20<0,0,$F$20*$G$20)",{"$f":"IF(_xlfn.FORMULATEXT(INDIRECT(AB56))=AC56,0,1)","v":0}]
[{"$f":"ADDRESS(56,38,1,1,$A$1)","v":"Summary!$AL$56"},120,{"$f":"IF(INDIRECT(A57)=B57,0,1)","v":0},{"$f":"ADDRESS(34,5,1,1,$D$1)","v":"'Fixed Income Investments'!$E$34"},0.35,{"$f":"IF(INDIRECT(D57)=E57,0,1)","v":0},{"$f":"ADDRESS(40,6,1,1,$G$1)","v":"'Equity Investments'!$F$40"},"=IF(SUM(F34:F38)>=0,SUM(F34:F38),0)",{"$f":"IF(_xlfn.FORMULATEXT(INDIRECT(G57))=H57,0,1)","v":0},null,null,null,{"$f":"ADDRESS(15,3,1,1,$M$1)","v":"'Currency Risk'!$C$15"},"='Schedule XX'!L15",{"$f":"IF(_xlfn.FORMULATEXT(INDIRECT(M57))=N57,0,1)","v":0},{"$f":"ADDRESS(25,5,1,1,$P$1)","v":"'Concentration Risk'!$E$25"},"=+'Fixed Income Investments'!E14",{"$f":"IF(_xlfn.FORMULATEXT(INDIRECT(P57))=Q57,0,1)","v":0},{"$f":"ADDRESS(11,8,1,1,$S$1)","v":"'Geographic Diversification'!$H$11"},"=IF('Schedule IVC (EBS)'!AB11=\"True\",G11,'Schedule IVA (EBS)'!Q13)",{"$f":"IF(_xlfn.FORMULATEXT(INDIRECT(S57))=T57,0,1)","v":0},{"$f":"ADDRESS(41,6,1,1,$V$1)","v":"'Credit Risk'!$F$41"},"=F14+F21+F39",{"$f":"IF(_xlfn.FORMULATEXT(INDIRECT(V57))=W57,0,1)","v":0},{"$f":"ADDRESS(21,5,1,1,$Y$1)","v":"'Premium Risk'!$E$21"},"=+'Schedule IVA (EBS)'!M21",{"$f":"IF(_xlfn.FORMULATEXT(INDIRECT(Y57))=Z57,0,1)","v":0},{"$f":"ADDRESS(21,4,1,1,$AB$1)","v":"'Reserve Risk'!$D$21"},"=+'Schedule III (EBS)'!D20",{"$f":"IF(_xlfn.FORMULATEXT(INDIRECT(AB57))=AC57,0,1)","v":0}]
[{"$f":"ADDRESS(56,39,1,1,$A$1)","v":"Summary!$AM$56"},280,{"$f":"IF(INDIRECT(A58)=B58,0,1)","v":0},{"$f":"ADDRESS(34,6,1,1,$D$1)","v":"'Fixed Income Investments'!$F$34"},"=IF(D34<0,0,D34*E34)",{"$f":"IF(_xlfn.FORMULATEXT(INDIRECT(D58))=E58,0,1)","v":0},{"$f":"ADDRESS(44,4,1,1,$G$1)","v":"'Equity Investments'!$D$44"},"='Form 1EBS'!F33",{"$f":"IF(_xlfn.FORMULATEXT(INDIRECT(G58))=H58,0,1)","v":0},null,null,null,{"$f":"ADDRESS(15,4,1,1,$M$1)","v":"'Currency Risk'!$D$15"},"='Schedule XX'!N15",{"$f":"IF(_xlfn.FORMULATEXT(INDIRECT(M58))=N58,0,1)","v":0},{"$f":"ADDRESS(25,6,1,1,$P$1)","v":"'Concentration Risk'!$F$25"},"=MAX(0,(D25*E25))",{"$f":"IF(_xlfn.FORMULATEXT(INDIRECT(P58))=Q58,0,1)","v":0},{"$f":"ADDRESS(11,9,1,1,$S$1)","v":"'Geographic Diversification'!$I$11"},"=+'Schedule IVC (EBS)'!E11",{"$f":"IF(_xlfn.FORMULATEXT(INDIRECT(S58))=T58,0,1)","v":0},null,null,-58,{"$f":"ADDRESS(21,6,1,1,$Y$1)","v":"'Premium Risk'!$F$21"},"='Schedule IVA (EBS)'!Q21",{"$f":"IF(_xlfn.FORMULATEXT(INDIRECT(Y58))=Z58,0,1)","v":0},{"$f":"ADDRESS(21,5,1,1,$AB$1)","v":"'Reserve Risk'!$E$21"},"=+'Schedule III (EBS)'!F20",{"$f":"IF(_xlfn.FORMULATEXT(INDIRECT(AB58))=AC58,0,1)","v":0}]
[{"$f":"ADDRESS(56,40,1,1,$A$1)","v":"Summary!$AN$56"},140,{"$f":"IF(INDIRECT(A59)=B59,0,1)","v":0},{"$f":"ADDRESS(36,4,1,1,$D$1)","v":"'Fixed Income Investments'!$D$36"},"=SUM(D27:D34)",{"$f":"IF(_xlfn.FORMULATEXT(INDIRECT(D59))=E59,0,1)","v":0},{"$f":"ADDRESS(44,5,1,1,$G$1)","v":"'Equity Investments'!$E$44"},0.05,{"$f":"IF(INDIRECT(G59)=H59,0,1)","v":0},null,null,null,{"$f":"ADDRESS(15,5,1,1,$M$1)","v":"'Currency Risk'!$E$15"},"='Schedule XX'!P15",{"$f":"IF(_xlfn.FORMULATEXT(INDIRECT(M59))=N59,0,1)","v":0},{"$f":"ADDRESS(26,2,1,1,$P$1)","v":"'Concentration Risk'!$B$26"},"BSCR Rating 3",{"$f":"IF(INDIRECT(P59)=Q59,0,1)","v":0},{"$f":"ADDRESS(11,10,1,1,$S$1)","v":"'Geographic Diversification'!$J$11"},"=+'Schedule IVC (EBS)'!F11",{"$f":"IF(_xlfn.FORMULATEXT(INDIRECT(S59))=T59,0,1)","v":0},null,null,null,{"$f":"ADDRESS(21,7,1,1,$Y$1)","v":"'Premium Risk'!$G$21"},"=+'Geographic Diversification'!H19",{"$f":"IF(_xlfn.FORMULATEXT(INDIRECT(Y59))=Z59,0,1)","v":0},{"$f":"ADDRESS(21,6,1,1,$AB$1)","v":"'Reserve Risk'!$F$21"},"=+'Geographic Diversification'!H50",{"$f":"IF(_xlfn.FORMULATEXT(INDIRECT(AB59))=AC59,0,1)","v":0}]
[{"$f":"ADDRESS(57,3,1,1,$A$1)","v":"Summary!$C$57"},"Interest Rate / Liquidity Risk",{"$f":"IF(INDIRECT(A60)=B60,0,1)","v":0},{"$f":"ADDRESS(36,6,1,1,$D$1)","v":"'Fixed Income Investments'!$F$36"},"=IF(SUM(F27:F34)>=0,SUM(F27:F34),0)",{"$f":"IF(_xlfn.FORMULATEXT(INDIRECT(D60))=E60,0,1)","v":0},{"$f":"ADDRESS(44,6,1,1,$G$1)","v":"'Equity Investments'!$F$44"},"=IF(D44<0,0,D44*E44)",{"$f":"IF(_xlfn.FORMULATEXT(INDIRECT(G60))=H60,0,1)","v":0},null,null,null,{"$f":"ADDRESS(15,6,1,1,$M$1)","v":"'Currency Risk'!$F$15"},"='Schedule XX'!R15",{"$f":"IF(_xlfn.FORMULATEXT(INDIRECT(M60))=N60,0,1)","v":0},{"$f":"ADDRESS(26,4,1,1,$P$1)","v":"'Concentration Risk'!$D$26"},"=SUMIFS('Schedule XXI'!$M$8:$M$57,'Schedule XXI'!$K$8:$K$57,$D$22,'Schedule XXI'!$L$8:$L$57,$B26)",{"$f":"IF(_xlfn.FORMULATEXT(INDIRECT(P60))=Q60,0,1)","v":0},{"$f":"ADDRESS(11,11,1,1,$S$1)","v":"'Geographic Diversification'!$K$11"},"=+'Schedule IVC (EBS)'!G11",{"$f":"IF(_xlfn.FORMULATEXT(INDIRECT(S60))=T60,0,1)","v":0},null,null,null,{"$f":"ADDRESS(21,8,1,1,$Y$1)","v":"'Premium Risk'!$H$21"},0.47016820069929899,{"$f":"IF(INDIRECT(Y60)=Z60,0,1)","v":0},{"$f":"ADDRESS(21,7,1,1,$AB$1)","v":"'Reserve Risk'!$G$21"},0.43945783577556502,{"$f":"IF(INDIRECT(AB60)=AC60,0,1)","v":0}]
[{"$f":"ADDRESS(57,7,1,1,$A$1)","v":"Summary!$G$57"},"=ROUND('Interest Rate-Liquidity Risk'!G15,$N$163)",{"$f":"IF(_xlfn.FORMULATEXT(INDIRECT(A61))=B61,0,1)","v":0},{"$f":"ADDRESS(41,4,1,1,$D$1)","v":"'Fixed Income Investments'!$D$41"},"='Schedule II (EBS)'!L13+'Schedule IIA (EBS)'!L13",{"$f":"IF(_xlfn.FORMULATEXT(INDIRECT(D61))=E61,0,1)","v":0},{"$f":"ADDRESS(45,4,1,1,$G$1)","v":"'Equity Investments'!$D$45"},"='Form 1EBS'!F34",{"$f":"IF(_xlfn.FORMULATEXT(INDIRECT(G61))=H61,0,1)","v":0},null,null,null,{"$f":"ADDRESS(15,7,1,1,$M$1)","v":"'Currency Risk'!$G$15"},"=IF(F15=0,E15*$G$6,F15*$G$6)",{"$f":"IF(_xlfn.FORMULATEXT(INDIRECT(M61))=N61,0,1)","v":0},{"$f":"ADDRESS(26,5,1,1,$P$1)","v":"'Concentration Risk'!$E$26"},"=+'Fixed Income Investments'!E15",{"$f":"IF(_xlfn.FORMULATEXT(INDIRECT(P61))=Q61,0,1)","v":0},{"$f":"ADDRESS(11,12,1,1,$S$1)","v":"'Geographic Diversification'!$L$11"},"=+'Schedule IVC (EBS)'!H11",{"$f":"IF(_xlfn.FORMULATEXT(INDIRECT(S61))=T61,0,1)","v":0},null,null,null,{"$f":"ADDRESS(21,9,1,1,$Y$1)","v":"'Premium Risk'!$I$21"},"=IF($G$21<0,0,$G$21*$H$21)",{"$f":"IF(_xlfn.FORMULATEXT(INDIRECT(Y61))=Z61,0,1)","v":0},{"$f":"ADDRESS(21,8,1,1,$AB$1)","v":"'Reserve Risk'!$H$21"},"=IF($F$21<0,0,$F$21*$G$21)",{"$f":"IF(_xlfn.FORMULATEXT(INDIRECT(AB61))=AC61,0,1)","v":0}]
[{"$f":"ADDRESS(57,11,1,1,$A$1)","v":"Summary!$K$57"},"=ROUND(IF(E57=\"Duration-Based Approach\",'Interest Rate-Liquidity Risk'!G15,'Interest Rate-Liquidity (Rev.)'!E117),$N$163)",{"$f":"IF(_xlfn.FORMULATEXT(INDIRECT(A62))=B62,0,1)","v":0},{"$f":"ADDRESS(41,5,1,1,$D$1)","v":"'Fixed Income Investments'!$E$41"},5.0000000000000001E-3,{"$f":"IF(INDIRECT(D62)=E62,0,1)","v":0},{"$f":"ADDRESS(45,5,1,1,$G$1)","v":"'Equity Investments'!$E$45"},0.2,{"$f":"IF(INDIRECT(G62)=H62,0,1)","v":0},null,null,null,{"$f":"ADDRESS(15,8,1,1,$M$1)","v":"'Currency Risk'!$H$15"},"=IF(D15=0,IF(C15>(E15+G15),0%,25%),IF(D15>(F15+G15),0%,25%))",{"$f":"IF(_xlfn.FORMULATEXT(INDIRECT(M62))=N62,0,1)","v":0},{"$f":"ADDRESS(26,6,1,1,$P$1)","v":"'Concentration Risk'!$F$26"},"=MAX(0,(D26*E26))",{"$f":"IF(_xlfn.FORMULATEXT(INDIRECT(P62))=Q62,0,1)","v":0},{"$f":"ADDRESS(11,13,1,1,$S$1)","v":"'Geographic Diversification'!$M$11"},"=+'Schedule IVC (EBS)'!I11",{"$f":"IF(_xlfn.FORMULATEXT(INDIRECT(S62))=T62,0,1)","v":0},null,null,null,{"$f":"ADDRESS(22,5,1,1,$Y$1)","v":"'Premium Risk'!$E$22"},"=+'Schedule IVA (EBS)'!M22",{"$f":"IF(_xlfn.FORMULATEXT(INDIRECT(Y62))=Z62,0,1)","v":0},{"$f":"ADDRESS(22,4,1,1,$AB$1)","v":"'Reserve Risk'!$D$22"},"=+'Schedule III (EBS)'!D21",{"$f":"IF(_xlfn.FORMULATEXT(INDIRECT(AB62))=AC62,0,1)","v":0}]
[{"$f":"ADDRESS(57,13,1,1,$A$1)","v":"Summary!$M$57"},"=ROUND(IF(E57=\"Duration-Based Approach\",'Interest Rate-Liquidity Risk'!G15,'Interest Rate-Liquidity (Rev.)'!D117),$N$163)",{"$f":"IF(_xlfn.FORMULATEXT(INDIRECT(A63))=B63,0,1)","v":0},{"$f":"ADDRESS(41,6,1,1,$D$1)","v":"'Fixed Income Investments'!$F$41"},"=IF(D41<0,0,D41*E41)",{"$f":"IF(_xlfn.FORMULATEXT(INDIRECT(D63))=E63,0,1)","v":0},{"$f":"ADDRESS(45,6,1,1,$G$1)","v":"'Equity Investments'!$F$45"},"=IF(D45<0,0,D45*E45)",{"$f":"IF(_xlfn.FORMULATEXT(INDIRECT(G63))=H63,0,1)","v":0},null,null,null,{"$f":"ADDRESS(15,9,1,1,$M$1)","v":"'Currency Risk'!$I$15"},"=IF(D15=0,H15*ABS(C15-E15-G15),H15*ABS(D15-F15-G15))",{"$f":"IF(_xlfn.FORMULATEXT(INDIRECT(M63))=N63,0,1)","v":0},{"$f":"ADDRESS(27,2,1,1,$P$1)","v":"'Concentration Risk'!$B$27"},"BSCR Rating 4",{"$f":"IF(INDIRECT(P63)=Q63,0,1)","v":0},{"$f":"ADDRESS(11,14,1,1,$S$1)","v":"'Geographic Diversification'!$N$11"},"=+'Schedule IVC (EBS)'!J11",{"$f":"IF(_xlfn.FORMULATEXT(INDIRECT(S63))=T63,0,1)","v":0},null,null,null,{"$f":"ADDRESS(22,6,1,1,$Y$1)","v":"'Premium Risk'!$F$22"},"='Schedule IVA (EBS)'!Q22",{"$f":"IF(_xlfn.FORMULATEXT(INDIRECT(Y63))=Z63,0,1)","v":0},{"$f":"ADDRESS(22,5,1,1,$AB$1)","v":"'Reserve Risk'!$E$22"},"=+'Schedule III (EBS)'!F21",{"$f":"IF(_xlfn.FORMULATEXT(INDIRECT(AB63))=AC63,0,1)","v":0}]
[{"$f":"ADDRESS(57,20,1,1,$A$1)","v":"Summary!$T$57"},"=C57",{"$f":"IF(_xlfn.FORMULATEXT(INDIRECT(A64))=B64,0,1)","v":0},{"$f":"ADDRESS(42,4,1,1,$D$1)","v":"'Fixed Income Investments'!$D$42"},"='Schedule II (EBS)'!L14+'Schedule IIA (EBS)'!L14",{"$f":"IF(_xlfn.FORMULATEXT(INDIRECT(D64))=E64,0,1)","v":0},{"$f":"ADDRESS(46,4,1,1,$G$1)","v":"'Equity Investments'!$D$46"},"='Form 1EBS'!F35",{"$f":"IF(_xlfn.FORMULATEXT(INDIRECT(G64))=H64,0,1)","v":0},null,null,null,{"$f":"ADDRESS(16,2,1,1,$M$1)","v":"'Currency Risk'!$B$16"},"='Schedule XX'!B16",{"$f":"IF(_xlfn.FORMULATEXT(INDIRECT(M64))=N64,0,1)","v":0},{"$f":"ADDRESS(27,4,1,1,$P$1)","v":"'Concentration Risk'!$D$27"},"=SUMIFS('Schedule XXI'!$M$8:$M$57,'Schedule XXI'!$K$8:$K$57,$D$22,'Schedule XXI'!$L$8:$L$57,$B27)",{"$f":"IF(_xlfn.FORMULATEXT(INDIRECT(P64))=Q64,0,1)","v":0},{"$f":"ADDRESS(11,15,1,1,$S$1)","v":"'Geographic Diversification'!$O$11"},"=+'Schedule IVC (EBS)'!K11",{"$f":"IF(_xlfn.FORMULATEXT(INDIRECT(S64))=T64,0,1)","v":0},null,null,null,{"$f":"ADDRESS(22,7,1,1,$Y$1)","v":"'Premium Risk'!$G$22"},"=+'Geographic Diversification'!H20",{"$f":"IF(_xlfn.FORMULATEXT(INDIRECT(Y64))=Z64,0,1)","v":0},{"$f":"ADDRESS(22,6,1,1,$AB$1)","v":"'Reserve Risk'!$F$22"},"=+'Geographic Diversification'!H51",{"$f":"IF(_xlfn.FORMULATEXT(INDIRECT(AB64))=AC64,0,1)","v":0}]
[{"$f":"ADDRESS(57,24,1,1,$A$1)","v":"Summary!$X$57"},"=G57",{"$f":"IF(_xlfn.FORMULATEXT(INDIRECT(A65))=B65,0,1)","v":0},{"$f":"ADDRESS(42,5,1,1,$D$1)","v":"'Fixed Income Investments'!$E$42"},0.01,{"$f":"IF(INDIRECT(D65)=E65,0,1)","v":0},{"$f":"ADDRESS(46,5,1,1,$G$1)","v":"'Equity Investments'!$E$46"},0.55000000000000004,{"$f":"IF(INDIRECT(G65)=H65,0,1)","v":0},null,null,null,{"$f":"ADDRESS(16,3,1,1,$M$1)","v":"'Currency Risk'!$C$16"},"='Schedule XX'!L16",{"$f":"IF(_xlfn.FORMULATEXT(INDIRECT(M65))=N65,0,1)","v":0},{"$f":"ADDRESS(27,5,1,1,$P$1)","v":"'Concentration Risk'!$E$27"},"=+'Fixed Income Investments'!E16",{"$f":"IF(_xlfn.FORMULATEXT(INDIRECT(P65))=Q65,0,1)","v":0},{"$f":"ADDRESS(11,16,1,1,$S$1)","v":"'Geographic Diversification'!$P$11"},"=+'Schedule IVC (EBS)'!L11",{"$f":"IF(_xlfn.FORMULATEXT(INDIRECT(S65))=T65,0,1)","v":0},null,null,null,{"$f":"ADDRESS(22,8,1,1,$Y$1)","v":"'Premium Risk'!$H$22"},0.50272577892886305,{"$f":"IF(INDIRECT(Y65)=Z65,0,1)","v":0},{"$f":"ADDRESS(22,7,1,1,$AB$1)","v":"'Reserve Risk'!$G$22"},0.43018098459069698,{"$f":"IF(INDIRECT(AB65)=AC65,0,1)","v":0}]
[{"$f":"ADDRESS(57,25,1,1,$A$1)","v":"Summary!$Y$57"},"=IF($L$71=0,1/9,X57/$X$65)",{"$f":"IF(_xlfn.FORMULATEXT(INDIRECT(A66))=B66,0,1)","v":0},{"$f":"ADDRESS(42,6,1,1,$D$1)","v":"'Fixed Income Investments'!$F$42"},"=IF(D42<0,0,D42*E42)",{"$f":"IF(_xlfn.FORMULATEXT(INDIRECT(D66))=E66,0,1)","v":0},{"$f":"ADDRESS(46,6,1,1,$G$1)","v":"'Equity Investments'!$F$46"},"=IF(D46<0,0,D46*E46)",{"$f":"IF(_xlfn.FORMULATEXT(INDIRECT(G66))=H66,0,1)","v":0},null,null,null,{"$f":"ADDRESS(16,4,1,1,$M$1)","v":"'Currency Risk'!$D$16"},"='Schedule XX'!N16",{"$f":"IF(_xlfn.FORMULATEXT(INDIRECT(M66))=N66,0,1)","v":0},{"$f":"ADDRESS(27,6,1,1,$P$1)","v":"'Concentration Risk'!$F$27"},"=MAX(0,(D27*E27))",{"$f":"IF(_xlfn.FORMULATEXT(INDIRECT(P66))=Q66,0,1)","v":0},{"$f":"ADDRESS(11,17,1,1,$S$1)","v":"'Geographic Diversification'!$Q$11"},"=+'Schedule IVC (EBS)'!M11",{"$f":"IF(_xlfn.FORMULATEXT(INDIRECT(S66))=T66,0,1)","v":0},null,null,null,{"$f":"ADDRESS(22,9,1,1,$Y$1)","v":"'Premium Risk'!$I$22"},"=IF($G$22<0,0,$G$22*$H$22)",{"$f":"IF(_xlfn.FORMULATEXT(INDIRECT(Y66))=Z66,0,1)","v":0},{"$f":"ADDRESS(22,8,1,1,$AB$1)","v":"'Reserve Risk'!$H$22"},"=IF($F$22<0,0,$F$22*$G$22)",{"$f":"IF(_xlfn.FORMULATEXT(INDIRECT(AB66))=AC66,0,1)","v":0}]
[{"$f":"ADDRESS(57,26,1,1,$A$1)","v":"Summary!$Z$57"},"=M57",{"$f":"IF(_xlfn.FORMULATEXT(INDIRECT(A67))=B67,0,1)","v":0},{"$f":"ADDRESS(43,4,1,1,$D$1)","v":"'Fixed Income Investments'!$D$43"},"='Schedule II (EBS)'!L15+'Schedule IIA (EBS)'!L15",{"$f":"IF(_xlfn.FORMULATEXT(INDIRECT(D67))=E67,0,1)","v":0},{"$f":"ADDRESS(47,4,1,1,$G$1)","v":"'Equity Investments'!$D$47"},"='Form 1EBS'!F37",{"$f":"IF(_xlfn.FORMULATEXT(INDIRECT(G67))=H67,0,1)","v":0},null,null,null,{"$f":"ADDRESS(16,5,1,1,$M$1)","v":"'Currency Risk'!$E$16"},"='Schedule XX'!P16",{"$f":"IF(_xlfn.FORMULATEXT(INDIRECT(M67))=N67,0,1)","v":0},{"$f":"ADDRESS(28,2,1,1,$P$1)","v":"'Concentration Risk'!$B$28"},"BSCR Rating 5",{"$f":"IF(INDIRECT(P67)=Q67,0,1)","v":0},{"$f":"ADDRESS(11,18,1,1,$S$1)","v":"'Geographic Diversification'!$R$11"},"=+'Schedule IVC (EBS)'!N11",{"$f":"IF(_xlfn.FORMULATEXT(INDIRECT(S67))=T67,0,1)","v":0},null,null,null,{"$f":"ADDRESS(23,5,1,1,$Y$1)","v":"'Premium Risk'!$E$23"},"=+'Schedule IVA (EBS)'!M23",{"$f":"IF(_xlfn.FORMULATEXT(INDIRECT(Y67))=Z67,0,1)","v":0},{"$f":"ADDRESS(23,4,1,1,$AB$1)","v":"'Reserve Risk'!$D$23"},"=+'Schedule III (EBS)'!D22",{"$f":"IF(_xlfn.FORMULATEXT(INDIRECT(AB67))=AC67,0,1)","v":0}]
[{"$f":"ADDRESS(57,27,1,1,$A$1)","v":"Summary!$AA$57"},"=IF($N$71=0,1/9,Z57/$Z$65)",{"$f":"IF(_xlfn.FORMULATEXT(INDIRECT(A68))=B68,0,1)","v":0},{"$f":"ADDRESS(43,5,1,1,$D$1)","v":"'Fixed Income Investments'!$E$43"},1.7999999999999999E-2,{"$f":"IF(INDIRECT(D68)=E68,0,1)","v":0},{"$f":"ADDRESS(47,5,1,1,$G$1)","v":"'Equity Investments'!$E$47"},0.2,{"$f":"IF(INDIRECT(G68)=H68,0,1)","v":0},null,null,null,{"$f":"ADDRESS(16,6,1,1,$M$1)","v":"'Currency Risk'!$F$16"},"='Schedule XX'!R16",{"$f":"IF(_xlfn.FORMULATEXT(INDIRECT(M68))=N68,0,1)","v":0},{"$f":"ADDRESS(28,4,1,1,$P$1)","v":"'Concentration Risk'!$D$28"},"=SUMIFS('Schedule XXI'!$M$8:$M$57,'Schedule XXI'!$K$8:$K$57,$D$22,'Schedule XXI'!$L$8:$L$57,$B28)",{"$f":"IF(_xlfn.FORMULATEXT(INDIRECT(P68))=Q68,0,1)","v":0},{"$f":"ADDRESS(11,19,1,1,$S$1)","v":"'Geographic Diversification'!$S$11"},"=+'Schedule IVC (EBS)'!O11",{"$f":"IF(_xlfn.FORMULATEXT(INDIRECT(S68))=T68,0,1)","v":0},null,null,null,{"$f":"ADDRESS(23,6,1,1,$Y$1)","v":"'Premium Risk'!$F$23"},"='Schedule IVA (EBS)'!Q23",{"$f":"IF(_xlfn.FORMULATEXT(INDIRECT(Y68))=Z68,0,1)","v":0},{"$f":"ADDRESS(23,5,1,1,$AB$1)","v":"'Reserve Risk'!$E$23"},"=+'Schedule III (EBS)'!F22",{"$f":"IF(_xlfn.FORMULATEXT(INDIRECT(AB68))=AC68,0,1)","v":0}]
[{"$f":"ADDRESS(57,29,1,1,$A$1)","v":"Summary!$AC$57"},"=(SUM(AA$55:AA57)/AA$65)",{"$f":"IF(_xlfn.FORMULATEXT(INDIRECT(A69))=B69,0,1)","v":0},{"$f":"ADDRESS(43,6,1,1,$D$1)","v":"'Fixed Income Investments'!$F$43"},"=IF(D43<0,0,D43*E43)",{"$f":"IF(_xlfn.FORMULATEXT(INDIRECT(D69))=E69,0,1)","v":0},{"$f":"ADDRESS(47,6,1,1,$G$1)","v":"'Equity Investments'!$F$47"},"=IF(D47<0,0,D47*E47)",{"$f":"IF(_xlfn.FORMULATEXT(INDIRECT(G69))=H69,0,1)","v":0},null,null,null,{"$f":"ADDRESS(16,7,1,1,$M$1)","v":"'Currency Risk'!$G$16"},"=IF(F16=0,E16*$G$6,F16*$G$6)",{"$f":"IF(_xlfn.FORMULATEXT(INDIRECT(M69))=N69,0,1)","v":0},{"$f":"ADDRESS(28,5,1,1,$P$1)","v":"'Concentration Risk'!$E$28"},"=+'Fixed Income Investments'!E17",{"$f":"IF(_xlfn.FORMULATEXT(INDIRECT(P69))=Q69,0,1)","v":0},{"$f":"ADDRESS(11,20,1,1,$S$1)","v":"'Geographic Diversification'!$T$11"},"=+'Schedule IVC (EBS)'!P11",{"$f":"IF(_xlfn.FORMULATEXT(INDIRECT(S69))=T69,0,1)","v":0},null,null,null,{"$f":"ADDRESS(23,7,1,1,$Y$1)","v":"'Premium Risk'!$G$23"},"=+'Geographic Diversification'!H21",{"$f":"IF(_xlfn.FORMULATEXT(INDIRECT(Y69))=Z69,0,1)","v":0},{"$f":"ADDRESS(23,6,1,1,$AB$1)","v":"'Reserve Risk'!$F$23"},"=+'Geographic Diversification'!H52",{"$f":"IF(_xlfn.FORMULATEXT(INDIRECT(AB69))=AC69,0,1)","v":0}]
[{"$f":"ADDRESS(57,32,1,1,$A$1)","v":"Summary!$AF$57"},"=IF(AO57=\"\",IF(Test_Statistic<$AJ$71,AI57,IF(Test_Statistic<$AL$71,AK57,AM57)),AO57)",{"$f":"IF(_xlfn.FORMULATEXT(INDIRECT(A70))=B70,0,1)","v":0},{"$f":"ADDRESS(44,4,1,1,$D$1)","v":"'Fixed Income Investments'!$D$44"},"='Schedule II (EBS)'!L16+'Schedule IIA (EBS)'!L16",{"$f":"IF(_xlfn.FORMULATEXT(INDIRECT(D70))=E70,0,1)","v":0},{"$f":"ADDRESS(49,4,1,1,$G$1)","v":"'Equity Investments'!$D$49"},"=SUM(D44:D47)",{"$f":"IF(_xlfn.FORMULATEXT(INDIRECT(G70))=H70,0,1)","v":0},null,null,null,{"$f":"ADDRESS(16,8,1,1,$M$1)","v":"'Currency Risk'!$H$16"},"=IF(D16=0,IF(C16>(E16+G16),0%,25%),IF(D16>(F16+G16),0%,25%))",{"$f":"IF(_xlfn.FORMULATEXT(INDIRECT(M70))=N70,0,1)","v":0},{"$f":"ADDRESS(28,6,1,1,$P$1)","v":"'Concentration Risk'!$F$28"},"=MAX(0,(D28*E28))",{"$f":"IF(_xlfn.FORMULATEXT(INDIRECT(P70))=Q70,0,1)","v":0},{"$f":"ADDRESS(11,21,1,1,$S$1)","v":"'Geographic Diversification'!$U$11"},"=+'Schedule IVC (EBS)'!Q11",{"$f":"IF(_xlfn.FORMULATEXT(INDIRECT(S70))=T70,0,1)","v":0},null,null,null,{"$f":"ADDRESS(23,8,1,1,$Y$1)","v":"'Premium Risk'!$H$23"},0.555814073452775,{"$f":"IF(INDIRECT(Y70)=Z70,0,1)","v":0},{"$f":"ADDRESS(23,7,1,1,$AB$1)","v":"'Reserve Risk'!$G$23"},0.48842309052279498,{"$f":"IF(INDIRECT(AB70)=AC70,0,1)","v":0}]
[{"$f":"ADDRESS(57,35,1,1,$A$1)","v":"Summary!$AI$57"},"=IF(AC60>0.6,300,300)",{"$f":"IF(_xlfn.FORMULATEXT(INDIRECT(A71))=B71,0,1)","v":0},{"$f":"ADDRESS(44,5,1,1,$D$1)","v":"'Fixed Income Investments'!$E$44"},3.5000000000000003E-2,{"$f":"IF(INDIRECT(D71)=E71,0,1)","v":0},{"$f":"ADDRESS(49,6,1,1,$G$1)","v":"'Equity Investments'!$F$49"},"=IF(SUM(F44:F47)>=0,SUM(F44:F47),0)",{"$f":"IF(_xlfn.FORMULATEXT(INDIRECT(G71))=H71,0,1)","v":0},null,null,null,{"$f":"ADDRESS(16,9,1,1,$M$1)","v":"'Currency Risk'!$I$16"},"=IF(D16=0,H16*ABS(C16-E16-G16),H16*ABS(D16-F16-G16))",{"$f":"IF(_xlfn.FORMULATEXT(INDIRECT(M71))=N71,0,1)","v":0},{"$f":"ADDRESS(29,2,1,1,$P$1)","v":"'Concentration Risk'!$B$29"},"BSCR Rating 6",{"$f":"IF(INDIRECT(P71)=Q71,0,1)","v":0},{"$f":"ADDRESS(11,22,1,1,$S$1)","v":"'Geographic Diversification'!$V$11"},"=+'Schedule IVC (EBS)'!R11",{"$f":"IF(_xlfn.FORMULATEXT(INDIRECT(S71))=T71,0,1)","v":0},null,null,null,{"$f":"ADDRESS(23,9,1,1,$Y$1)","v":"'Premium Risk'!$I$23"},"=IF($G$23<0,0,$G$23*$H$23)",{"$f":"IF(_xlfn.FORMULATEXT(INDIRECT(Y71))=Z71,0,1)","v":0},{"$f":"ADDRESS(23,8,1,1,$AB$1)","v":"'Reserve Risk'!$H$23"},"=IF($F$23<0,0,$F$23*$G$23)",{"$f":"IF(_xlfn.FORMULATEXT(INDIRECT(AB71))=AC71,0,1)","v":0}]
[{"$f":"ADDRESS(57,36,1,1,$A$1)","v":"Summary!$AJ$57"},"=IF(AC62>1,140,IF(AC60>1,120,IF(AC60>0.6,150,100)))",{"$f":"IF(_xlfn.FORMULATEXT(INDIRECT(A72))=B72,0,1)","v":0},{"$f":"ADDRESS(44,6,1,1,$D$1)","v":"'Fixed Income Investments'!$F$44"},"=IF(D44<0,0,D44*E44)",{"$f":"IF(_xlfn.FORMULATEXT(INDIRECT(D72))=E72,0,1)","v":0},{"$f":"ADDRESS(51,4,1,1,$G$1)","v":"'Equity Investments'!$D$51"},"=D15+D29+D40+D49",{"$f":"IF(_xlfn.FORMULATEXT(INDIRECT(G72))=H72,0,1)","v":0},null,null,null,{"$f":"ADDRESS(17,2,1,1,$M$1)","v":"'Currency Risk'!$B$17"},"='Schedule XX'!B17",{"$f":"IF(_xlfn.FORMULATEXT(INDIRECT(M72))=N72,0,1)","v":0},{"$f":"ADDRESS(29,4,1,1,$P$1)","v":"'Concentration Risk'!$D$29"},"=SUMIFS('Schedule XXI'!$M$8:$M$57,'Schedule XXI'!$K$8:$K$57,$D$22,'Schedule XXI'!$L$8:$L$57,$B29)",{"$f":"IF(_xlfn.FORMULATEXT(INDIRECT(P72))=Q72,0,1)","v":0},{"$f":"ADDRESS(11,23,1,1,$S$1)","v":"'Geographic Diversification'!$W$11"},"=+'Schedule IVC (EBS)'!S11",{"$f":"IF(_xlfn.FORMULATEXT(INDIRECT(S72))=T72,0,1)","v":0},null,null,null,{"$f":"ADDRESS(24,5,1,1,$Y$1)","v":"'Premium Risk'!$E$24"},"=+'Schedule IVA (EBS)'!M24",{"$f":"IF(_xlfn.FORMULATEXT(INDIRECT(Y72))=Z72,0,1)","v":0},{"$f":"ADDRESS(24,4,1,1,$AB$1)","v":"'Reserve Risk'!$D$24"},"=+'Schedule III (EBS)'!D23",{"$f":"IF(_xlfn.FORMULATEXT(INDIRECT(AB72))=AC72,0,1)","v":0}]
[{"$f":"ADDRESS(57,37,1,1,$A$1)","v":"Summary!$AK$57"},"=IF(Test_Statistic_2<0.95,280,260)",{"$f":"IF(_xlfn.FORMULATEXT(INDIRECT(A73))=B73,0,1)","v":0},{"$f":"ADDRESS(45,4,1,1,$D$1)","v":"'Fixed Income Investments'!$D$45"},"='Schedule II (EBS)'!L17+'Schedule IIA (EBS)'!L17",{"$f":"IF(_xlfn.FORMULATEXT(INDIRECT(D73))=E73,0,1)","v":0},{"$f":"ADDRESS(51,6,1,1,$G$1)","v":"'Equity Investments'!$F$51"},"=F15+F29+F40+F49",{"$f":"IF(_xlfn.FORMULATEXT(INDIRECT(G73))=H73,0,1)","v":0},null,null,null,{"$f":"ADDRESS(17,3,1,1,$M$1)","v":"'Currency Risk'!$C$17"},"='Schedule XX'!L17",{"$f":"IF(_xlfn.FORMULATEXT(INDIRECT(M73))=N73,0,1)","v":0},{"$f":"ADDRESS(29,5,1,1,$P$1)","v":"'Concentration Risk'!$E$29"},"=+'Fixed Income Investments'!E18",{"$f":"IF(_xlfn.FORMULATEXT(INDIRECT(P73))=Q73,0,1)","v":0},{"$f":"ADDRESS(11,24,1,1,$S$1)","v":"'Geographic Diversification'!$X$11"},"=+'Schedule IVC (EBS)'!T11",{"$f":"IF(_xlfn.FORMULATEXT(INDIRECT(S73))=T73,0,1)","v":0},null,null,null,{"$f":"ADDRESS(24,6,1,1,$Y$1)","v":"'Premium Risk'!$F$24"},"='Schedule IVA (EBS)'!Q24",{"$f":"IF(_xlfn.FORMULATEXT(INDIRECT(Y73))=Z73,0,1)","v":0},{"$f":"ADDRESS(24,5,1,1,$AB$1)","v":"'Reserve Risk'!$E$24"},"=+'Schedule III (EBS)'!F23",{"$f":"IF(_xlfn.FORMULATEXT(INDIRECT(AB73))=AC73,0,1)","v":0}]
[{"$f":"ADDRESS(57,38,1,1,$A$1)","v":"Summary!$AL$57"},"=IF(Test_Statistic_2<0.95,170,200)",{"$f":"IF(_xlfn.FORMULATEXT(INDIRECT(A74))=B74,0,1)","v":0},{"$f":"ADDRESS(45,5,1,1,$D$1)","v":"'Fixed Income Investments'!$E$45"},0.1,{"$f":"IF(INDIRECT(D74)=E74,0,1)","v":0},null,null,-74,null,null,null,{"$f":"ADDRESS(17,4,1,1,$M$1)","v":"'Currency Risk'!$D$17"},"='Schedule XX'!N17",{"$f":"IF(_xlfn.FORMULATEXT(INDIRECT(M74))=N74,0,1)","v":0},{"$f":"ADDRESS(29,6,1,1,$P$1)","v":"'Concentration Risk'!$F$29"},"=MAX(0,(D29*E29))",{"$f":"IF(_xlfn.FORMULATEXT(INDIRECT(P74))=Q74,0,1)","v":0},{"$f":"ADDRESS(11,25,1,1,$S$1)","v":"'Geographic Diversification'!$Y$11"},"=+'Schedule IVC (EBS)'!U11",{"$f":"IF(_xlfn.FORMULATEXT(INDIRECT(S74))=T74,0,1)","v":0},null,null,null,{"$f":"ADDRESS(24,7,1,1,$Y$1)","v":"'Premium Risk'!$G$24"},"=+'Geographic Diversification'!H22",{"$f":"IF(_xlfn.FORMULATEXT(INDIRECT(Y74))=Z74,0,1)","v":0},{"$f":"ADDRESS(24,6,1,1,$AB$1)","v":"'Reserve Risk'!$F$24"},"=+'Geographic Diversification'!H53",{"$f":"IF(_xlfn.FORMULATEXT(INDIRECT(AB74))=AC74,0,1)","v":0}]
[{"$f":"ADDRESS(57,39,1,1,$A$1)","v":"Summary!$AM$57"},180,{"$f":"IF(INDIRECT(A75)=B75,0,1)","v":0},{"$f":"ADDRESS(45,6,1,1,$D$1)","v":"'Fixed Income Investments'!$F$45"},"=IF(D45<0,0,D45*E45)",{"$f":"IF(_xlfn.FORMULATEXT(INDIRECT(D75))=E75,0,1)","v":0},null,null,null,null,null,null,{"$f":"ADDRESS(17,5,1,1,$M$1)","v":"'Currency Risk'!$E$17"},"='Schedule XX'!P17",{"$f":"IF(_xlfn.FORMULATEXT(INDIRECT(M75))=N75,0,1)","v":0},{"$f":"ADDRESS(30,2,1,1,$P$1)","v":"'Concentration Risk'!$B$30"},"BSCR Rating 7",{"$f":"IF(INDIRECT(P75)=Q75,0,1)","v":0},{"$f":"ADDRESS(11,26,1,1,$S$1)","v":"'Geographic Diversification'!$Z$11"},"=+'Schedule IVC (EBS)'!V11",{"$f":"IF(_xlfn.FORMULATEXT(INDIRECT(S75))=T75,0,1)","v":0},null,null,null,{"$f":"ADDRESS(24,8,1,1,$Y$1)","v":"'Premium Risk'!$H$24"},0.51225206482709496,{"$f":"IF(INDIRECT(Y75)=Z75,0,1)","v":0},{"$f":"ADDRESS(24,7,1,1,$AB$1)","v":"'Reserve Risk'!$G$24"},0.462752832710698,{"$f":"IF(INDIRECT(AB75)=AC75,0,1)","v":0}]
[{"$f":"ADDRESS(58,7,1,1,$A$1)","v":"Summary!$G$58"},"=+'Currency Risk'!I28",{"$f":"IF(_xlfn.FORMULATEXT(INDIRECT(A76))=B76,0,1)","v":0},{"$f":"ADDRESS(46,4,1,1,$D$1)","v":"'Fixed Income Investments'!$D$46"},"='Schedule II (EBS)'!L18+'Schedule IIA (EBS)'!L18",{"$f":"IF(_xlfn.FORMULATEXT(INDIRECT(D76))=E76,0,1)","v":0},null,null,null,null,null,null,{"$f":"ADDRESS(17,6,1,1,$M$1)","v":"'Currency Risk'!$F$17"},"='Schedule XX'!R17",{"$f":"IF(_xlfn.FORMULATEXT(INDIRECT(M76))=N76,0,1)","v":0},{"$f":"ADDRESS(30,4,1,1,$P$1)","v":"'Concentration Risk'!$D$30"},"=SUMIFS('Schedule XXI'!$M$8:$M$57,'Schedule XXI'!$K$8:$K$57,$D$22,'Schedule XXI'!$L$8:$L$57,$B30)",{"$f":"IF(_xlfn.FORMULATEXT(INDIRECT(P76))=Q76,0,1)","v":0},{"$f":"ADDRESS(12,4,1,1,$S$1)","v":"'Geographic Diversification'!$D$12"},"=SUM(I12:Z12)",{"$f":"IF(_xlfn.FORMULATEXT(INDIRECT(S76))=T76,0,1)","v":0},null,null,null,{"$f":"ADDRESS(24,9,1,1,$Y$1)","v":"'Premium Risk'!$I$24"},"=IF($G$24<0,0,$G$24*$H$24)",{"$f":"IF(_xlfn.FORMULATEXT(INDIRECT(Y76))=Z76,0,1)","v":0},{"$f":"ADDRESS(24,8,1,1,$AB$1)","v":"'Reserve Risk'!$H$24"},"=IF($F$24<0,0,$F$24*$G$24)",{"$f":"IF(_xlfn.FORMULATEXT(INDIRECT(AB76))=AC76,0,1)","v":0}]
[{"$f":"ADDRESS(58,11,1,1,$A$1)","v":"Summary!$K$58"},"='Currency Risk (Revised)'!Y39",{"$f":"IF(_xlfn.FORMULATEXT(INDIRECT(A77))=B77,0,1)","v":0},{"$f":"ADDRESS(46,5,1,1,$D$1)","v":"'Fixed Income Investments'!$E$46"},0.2,{"$f":"IF(INDIRECT(D77)=E77,0,1)","v":0},null,null,null,null,null,null,{"$f":"ADDRESS(17,7,1,1,$M$1)","v":"'Currency Risk'!$G$17"},"=IF(F17=0,E17*$G$6,F17*$G$6)",{"$f":"IF(_xlfn.FORMULATEXT(INDIRECT(M77))=N77,0,1)","v":0},{"$f":"ADDRESS(30,5,1,1,$P$1)","v":"'Concentration Risk'!$E$30"},"=+'Fixed Income Investments'!E19",{"$f":"IF(_xlfn.FORMULATEXT(INDIRECT(P77))=Q77,0,1)","v":0},{"$f":"ADDRESS(12,5,1,1,$S$1)","v":"'Geographic Diversification'!$E$12"},"=SUMSQ(I12:Z12)",{"$f":"IF(_xlfn.FORMULATEXT(INDIRECT(S77))=T77,0,1)","v":0},null,null,null,{"$f":"ADDRESS(25,5,1,1,$Y$1)","v":"'Premium Risk'!$E$25"},"=+'Schedule IVA (EBS)'!M25",{"$f":"IF(_xlfn.FORMULATEXT(INDIRECT(Y77))=Z77,0,1)","v":0},{"$f":"ADDRESS(25,4,1,1,$AB$1)","v":"'Reserve Risk'!$D$25"},"=+'Schedule III (EBS)'!D24",{"$f":"IF(_xlfn.FORMULATEXT(INDIRECT(AB77))=AC77,0,1)","v":0}]
[{"$f":"ADDRESS(58,13,1,1,$A$1)","v":"Summary!$M$58"},"='Currency Risk (Revised)'!X39",{"$f":"IF(_xlfn.FORMULATEXT(INDIRECT(A78))=B78,0,1)","v":0},{"$f":"ADDRESS(46,6,1,1,$D$1)","v":"'Fixed Income Investments'!$F$46"},"=IF(D46<0,0,D46*E46)",{"$f":"IF(_xlfn.FORMULATEXT(INDIRECT(D78))=E78,0,1)","v":0},null,null,null,null,null,null,{"$f":"ADDRESS(17,8,1,1,$M$1)","v":"'Currency Risk'!$H$17"},"=IF(D17=0,IF(C17>(E17+G17),0%,25%),IF(D17>(F17+G17),0%,25%))",{"$f":"IF(_xlfn.FORMULATEXT(INDIRECT(M78))=N78,0,1)","v":0},{"$f":"ADDRESS(30,6,1,1,$P$1)","v":"'Concentration Risk'!$F$30"},"=MAX(0,(D30*E30))",{"$f":"IF(_xlfn.FORMULATEXT(INDIRECT(P78))=Q78,0,1)","v":0},{"$f":"ADDRESS(12,6,1,1,$S$1)","v":"'Geographic Diversification'!$F$12"},"=(IF(D12>0,E12/D12^2,1))",{"$f":"IF(_xlfn.FORMULATEXT(INDIRECT(S78))=T78,0,1)","v":0},null,null,null,{"$f":"ADDRESS(25,6,1,1,$Y$1)","v":"'Premium Risk'!$F$25"},"='Schedule IVA (EBS)'!Q25",{"$f":"IF(_xlfn.FORMULATEXT(INDIRECT(Y78))=Z78,0,1)","v":0},{"$f":"ADDRESS(25,5,1,1,$AB$1)","v":"'Reserve Risk'!$E$25"},"=+'Schedule III (EBS)'!F24",{"$f":"IF(_xlfn.FORMULATEXT(INDIRECT(AB78))=AC78,0,1)","v":0}]
[{"$f":"ADDRESS(58,24,1,1,$A$1)","v":"Summary!$X$58"},"=G58",{"$f":"IF(_xlfn.FORMULATEXT(INDIRECT(A79))=B79,0,1)","v":0},{"$f":"ADDRESS(47,4,1,1,$D$1)","v":"'Fixed Income Investments'!$D$47"},"='Schedule II (EBS)'!L19+'Schedule IIA (EBS)'!L19",{"$f":"IF(_xlfn.FORMULATEXT(INDIRECT(D79))=E79,0,1)","v":0},null,null,null,null,null,null,{"$f":"ADDRESS(17,9,1,1,$M$1)","v":"'Currency Risk'!$I$17"},"=IF(D17=0,H17*ABS(C17-E17-G17),H17*ABS(D17-F17-G17))",{"$f":"IF(_xlfn.FORMULATEXT(INDIRECT(M79))=N79,0,1)","v":0},{"$f":"ADDRESS(31,2,1,1,$P$1)","v":"'Concentration Risk'!$B$31"},"BSCR Rating 8",{"$f":"IF(INDIRECT(P79)=Q79,0,1)","v":0},{"$f":"ADDRESS(12,7,1,1,$S$1)","v":"'Geographic Diversification'!$G$12"},"=D12*(0.75+0.25*F12)",{"$f":"IF(_xlfn.FORMULATEXT(INDIRECT(S79))=T79,0,1)","v":0},null,null,null,{"$f":"ADDRESS(25,7,1,1,$Y$1)","v":"'Premium Risk'!$G$25"},"=+'Geographic Diversification'!H23",{"$f":"IF(_xlfn.FORMULATEXT(INDIRECT(Y79))=Z79,0,1)","v":0},{"$f":"ADDRESS(25,6,1,1,$AB$1)","v":"'Reserve Risk'!$F$25"},"=+'Geographic Diversification'!H54",{"$f":"IF(_xlfn.FORMULATEXT(INDIRECT(AB79))=AC79,0,1)","v":0}]
[{"$f":"ADDRESS(58,25,1,1,$A$1)","v":"Summary!$Y$58"},"=IF($L$71=0,1/9,X58/$X$65)",{"$f":"IF(_xlfn.FORMULATEXT(INDIRECT(A80))=B80,0,1)","v":0},{"$f":"ADDRESS(47,5,1,1,$D$1)","v":"'Fixed Income Investments'!$E$47"},0.3,{"$f":"IF(INDIRECT(D80)=E80,0,1)","v":0},null,null,null,null,null,null,{"$f":"ADDRESS(18,2,1,1,$M$1)","v":"'Currency Risk'!$B$18"},"='Schedule XX'!B18",{"$f":"IF(_xlfn.FORMULATEXT(INDIRECT(M80))=N80,0,1)","v":0},{"$f":"ADDRESS(31,4,1,1,$P$1)","v":"'Concentration Risk'!$D$31"},"=SUMIFS('Schedule XXI'!$M$8:$M$57,'Schedule XXI'!$K$8:$K$57,$D$22,'Schedule XXI'!$L$8:$L$57,$B31)",{"$f":"IF(_xlfn.FORMULATEXT(INDIRECT(P80))=Q80,0,1)","v":0},{"$f":"ADDRESS(12,8,1,1,$S$1)","v":"'Geographic Diversification'!$H$12"},"=IF('Schedule IVC (EBS)'!AB12=\"True\",G12,'Schedule IVA (EBS)'!Q14)",{"$f":"IF(_xlfn.FORMULATEXT(INDIRECT(S80))=T80,0,1)","v":0},null,null,null,{"$f":"ADDRESS(25,8,1,1,$Y$1)","v":"'Premium Risk'!$H$25"},0.53805556666757803,{"$f":"IF(INDIRECT(Y80)=Z80,0,1)","v":0},{"$f":"ADDRESS(25,7,1,1,$AB$1)","v":"'Reserve Risk'!$G$25"},0.51484129765284703,{"$f":"IF(INDIRECT(AB80)=AC80,0,1)","v":0}]
[{"$f":"ADDRESS(58,26,1,1,$A$1)","v":"Summary!$Z$58"},"=M58",{"$f":"IF(_xlfn.FORMULATEXT(INDIRECT(A81))=B81,0,1)","v":0},{"$f":"ADDRESS(47,6,1,1,$D$1)","v":"'Fixed Income Investments'!$F$47"},"=IF(D47<0,0,D47*E47)",{"$f":"IF(_xlfn.FORMULATEXT(INDIRECT(D81))=E81,0,1)","v":0},null,null,null,null,null,null,{"$f":"ADDRESS(18,3,1,1,$M$1)","v":"'Currency Risk'!$C$18"},"='Schedule XX'!L18",{"$f":"IF(_xlfn.FORMULATEXT(INDIRECT(M81))=N81,0,1)","v":0},{"$f":"ADDRESS(31,5,1,1,$P$1)","v":"'Concentration Risk'!$E$31"},"=+'Fixed Income Investments'!E20",{"$f":"IF(_xlfn.FORMULATEXT(INDIRECT(P81))=Q81,0,1)","v":0},{"$f":"ADDRESS(12,9,1,1,$S$1)","v":"'Geographic Diversification'!$I$12"},"=+'Schedule IVC (EBS)'!E12",{"$f":"IF(_xlfn.FORMULATEXT(INDIRECT(S81))=T81,0,1)","v":0},null,null,null,{"$f":"ADDRESS(25,9,1,1,$Y$1)","v":"'Premium Risk'!$I$25"},"=IF($G$25<0,0,$G$25*$H$25)",{"$f":"IF(_xlfn.FORMULATEXT(INDIRECT(Y81))=Z81,0,1)","v":0},{"$f":"ADDRESS(25,8,1,1,$AB$1)","v":"'Reserve Risk'!$H$25"},"=IF($F$25<0,0,$F$25*$G$25)",{"$f":"IF(_xlfn.FORMULATEXT(INDIRECT(AB81))=AC81,0,1)","v":0}]
[{"$f":"ADDRESS(58,27,1,1,$A$1)","v":"Summary!$AA$58"},"=IF($N$71=0,1/9,Z58/$Z$65)",{"$f":"IF(_xlfn.FORMULATEXT(INDIRECT(A82))=B82,0,1)","v":0},{"$f":"ADDRESS(48,4,1,1,$D$1)","v":"'Fixed Income Investments'!$D$48"},"='Schedule II (EBS)'!L20+'Schedule IIA (EBS)'!L20",{"$f":"IF(_xlfn.FORMULATEXT(INDIRECT(D82))=E82,0,1)","v":0},null,null,null,null,null,null,{"$f":"ADDRESS(18,4,1,1,$M$1)","v":"'Currency Risk'!$D$18"},"='Schedule XX'!N18",{"$f":"IF(_xlfn.FORMULATEXT(INDIRECT(M82))=N82,0,1)","v":0},{"$f":"ADDRESS(31,6,1,1,$P$1)","v":"'Concentration Risk'!$F$31"},"=MAX(0,(D31*E31))",{"$f":"IF(_xlfn.FORMULATEXT(INDIRECT(P82))=Q82,0,1)","v":0},{"$f":"ADDRESS(12,10,1,1,$S$1)","v":"'Geographic Diversification'!$J$12"},"=+'Schedule IVC (EBS)'!F12",{"$f":"IF(_xlfn.FORMULATEXT(INDIRECT(S82))=T82,0,1)","v":0},null,null,null,{"$f":"ADDRESS(26,5,1,1,$Y$1)","v":"'Premium Risk'!$E$26"},"=+'Schedule IVA (EBS)'!M26",{"$f":"IF(_xlfn.FORMULATEXT(INDIRECT(Y82))=Z82,0,1)","v":0},{"$f":"ADDRESS(26,4,1,1,$AB$1)","v":"'Reserve Risk'!$D$26"},"=+'Schedule III (EBS)'!D25",{"$f":"IF(_xlfn.FORMULATEXT(INDIRECT(AB82))=AC82,0,1)","v":0}]
[{"$f":"ADDRESS(58,29,1,1,$A$1)","v":"Summary!$AC$58"},"=(SUM(AA$55:AA58)/AA$65)",{"$f":"IF(_xlfn.FORMULATEXT(INDIRECT(A83))=B83,0,1)","v":0},{"$f":"ADDRESS(48,5,1,1,$D$1)","v":"'Fixed Income Investments'!$E$48"},0.35,{"$f":"IF(INDIRECT(D83)=E83,0,1)","v":0},null,null,null,null,null,null,{"$f":"ADDRESS(18,5,1,1,$M$1)","v":"'Currency Risk'!$E$18"},"='Schedule XX'!P18",{"$f":"IF(_xlfn.FORMULATEXT(INDIRECT(M83))=N83,0,1)","v":0},{"$f":"ADDRESS(33,4,1,1,$P$1)","v":"'Concentration Risk'!$D$33"},"=SUM(D22:D31)",{"$f":"IF(_xlfn.FORMULATEXT(INDIRECT(P83))=Q83,0,1)","v":0},{"$f":"ADDRESS(12,11,1,1,$S$1)","v":"'Geographic Diversification'!$K$12"},"=+'Schedule IVC (EBS)'!G12",{"$f":"IF(_xlfn.FORMULATEXT(INDIRECT(S83))=T83,0,1)","v":0},null,null,null,{"$f":"ADDRESS(26,6,1,1,$Y$1)","v":"'Premium Risk'!$F$26"},"='Schedule IVA (EBS)'!Q26",{"$f":"IF(_xlfn.FORMULATEXT(INDIRECT(Y83))=Z83,0,1)","v":0},{"$f":"ADDRESS(26,5,1,1,$AB$1)","v":"'Reserve Risk'!$E$26"},"=+'Schedule III (EBS)'!F25",{"$f":"IF(_xlfn.FORMULATEXT(INDIRECT(AB83))=AC83,0,1)","v":0}]
[{"$f":"ADDRESS(59,7,1,1,$A$1)","v":"Summary!$G$59"},"=+'Concentration Risk'!F111",{"$f":"IF(_xlfn.FORMULATEXT(INDIRECT(A84))=B84,0,1)","v":0},{"$f":"ADDRESS(48,6,1,1,$D$1)","v":"'Fixed Income Investments'!$F$48"},"=IF(D48<0,0,D48*E48)",{"$f":"IF(_xlfn.FORMULATEXT(INDIRECT(D84))=E84,0,1)","v":0},null,null,null,null,null,null,{"$f":"ADDRESS(18,6,1,1,$M$1)","v":"'Currency Risk'!$F$18"},"='Schedule XX'!R18",{"$f":"IF(_xlfn.FORMULATEXT(INDIRECT(M84))=N84,0,1)","v":0},{"$f":"ADDRESS(33,6,1,1,$P$1)","v":"'Concentration Risk'!$F$33"},"=SUM(F22:F31)",{"$f":"IF(_xlfn.FORMULATEXT(INDIRECT(P84))=Q84,0,1)","v":0},{"$f":"ADDRESS(12,12,1,1,$S$1)","v":"'Geographic Diversification'!$L$12"},"=+'Schedule IVC (EBS)'!H12",{"$f":"IF(_xlfn.FORMULATEXT(INDIRECT(S84))=T84,0,1)","v":0},null,null,null,{"$f":"ADDRESS(26,7,1,1,$Y$1)","v":"'Premium Risk'!$G$26"},"=+'Geographic Diversification'!H24",{"$f":"IF(_xlfn.FORMULATEXT(INDIRECT(Y84))=Z84,0,1)","v":0},{"$f":"ADDRESS(26,6,1,1,$AB$1)","v":"'Reserve Risk'!$F$26"},"=+'Geographic Diversification'!H55",{"$f":"IF(_xlfn.FORMULATEXT(INDIRECT(AB84))=AC84,0,1)","v":0}]
[{"$f":"ADDRESS(59,11,1,1,$A$1)","v":"Summary!$K$59"},"='Concentration Risk (Revised)'!F110",{"$f":"IF(_xlfn.FORMULATEXT(INDIRECT(A85))=B85,0,1)","v":0},{"$f":"ADDRESS(51,4,1,1,$D$1)","v":"'Fixed Income Investments'!$D$51"},"=SUM(D41:D48)",{"$f":"IF(_xlfn.FORMULATEXT(INDIRECT(D85))=E85,0,1)","v":0},null,null,null,null,null,null,{"$f":"ADDRESS(18,7,1,1,$M$1)","v":"'Currency Risk'!$G$18"},"=IF(F18=0,E18*$G$6,F18*$G$6)",{"$f":"IF(_xlfn.FORMULATEXT(INDIRECT(M85))=N85,0,1)","v":0},{"$f":"ADDRESS(35,4,1,1,$P$1)","v":"'Concentration Risk'!$D$35"},"Residential Mortgage-Backed Securities",{"$f":"IF(INDIRECT(P85)=Q85,0,1)","v":0},{"$f":"ADDRESS(12,13,1,1,$S$1)","v":"'Geographic Diversification'!$M$12"},"=+'Schedule IVC (EBS)'!I12",{"$f":"IF(_xlfn.FORMULATEXT(INDIRECT(S85))=T85,0,1)","v":0},null,null,null,{"$f":"ADDRESS(26,8,1,1,$Y$1)","v":"'Premium Risk'!$H$26"},0.51436147942106603,{"$f":"IF(INDIRECT(Y85)=Z85,0,1)","v":0},{"$f":"ADDRESS(26,7,1,1,$AB$1)","v":"'Reserve Risk'!$G$26"},0.46506790223690597,{"$f":"IF(INDIRECT(AB85)=AC85,0,1)","v":0}]
[{"$f":"ADDRESS(59,13,1,1,$A$1)","v":"Summary!$M$59"},"='Concentration Risk (Revised)'!F110",{"$f":"IF(_xlfn.FORMULATEXT(INDIRECT(A86))=B86,0,1)","v":0},{"$f":"ADDRESS(51,6,1,1,$D$1)","v":"'Fixed Income Investments'!$F$51"},"=IF(SUM(F41:F48)>=0,SUM(F41:F48),0)",{"$f":"IF(_xlfn.FORMULATEXT(INDIRECT(D86))=E86,0,1)","v":0},null,null,null,null,null,null,{"$f":"ADDRESS(18,8,1,1,$M$1)","v":"'Currency Risk'!$H$18"},"=IF(D18=0,IF(C18>(E18+G18),0%,25%),IF(D18>(F18+G18),0%,25%))",{"$f":"IF(_xlfn.FORMULATEXT(INDIRECT(M86))=N86,0,1)","v":0},{"$f":"ADDRESS(36,2,1,1,$P$1)","v":"'Concentration Risk'!$B$36"},"BSCR Rating 0",{"$f":"IF(INDIRECT(P86)=Q86,0,1)","v":0},{"$f":"ADDRESS(12,14,1,1,$S$1)","v":"'Geographic Diversification'!$N$12"},"=+'Schedule IVC (EBS)'!J12",{"$f":"IF(_xlfn.FORMULATEXT(INDIRECT(S86))=T86,0,1)","v":0},null,null,null,{"$f":"ADDRESS(26,9,1,1,$Y$1)","v":"'Premium Risk'!$I$26"},"=IF($G$26<0,0,$G$26*$H$26)",{"$f":"IF(_xlfn.FORMULATEXT(INDIRECT(Y86))=Z86,0,1)","v":0},{"$f":"ADDRESS(26,8,1,1,$AB$1)","v":"'Reserve Risk'!$H$26"},"=IF($F$26<0,0,$F$26*$G$26)",{"$f":"IF(_xlfn.FORMULATEXT(INDIRECT(AB86))=AC86,0,1)","v":0}]
[{"$f":"ADDRESS(59,24,1,1,$A$1)","v":"Summary!$X$59"},"=G59",{"$f":"IF(_xlfn.FORMULATEXT(INDIRECT(A87))=B87,0,1)","v":0},{"$f":"ADDRESS(56,4,1,1,$D$1)","v":"'Fixed Income Investments'!$D$56"},"='Schedule II (EBS)'!P12+'Schedule IIA (EBS)'!P12",{"$f":"IF(_xlfn.FORMULATEXT(INDIRECT(D87))=E87,0,1)","v":0},null,null,null,null,null,null,{"$f":"ADDRESS(18,9,1,1,$M$1)","v":"'Currency Risk'!$I$18"},"=IF(D18=0,H18*ABS(C18-E18-G18),H18*ABS(D18-F18-G18))",{"$f":"IF(_xlfn.FORMULATEXT(INDIRECT(M87))=N87,0,1)","v":0},{"$f":"ADDRESS(36,4,1,1,$P$1)","v":"'Concentration Risk'!$D$36"},"=SUMIFS('Schedule XXI'!$M$8:$M$57,'Schedule XXI'!$K$8:$K$57,$D$35,'Schedule XXI'!$L$8:$L$57,$B36)",{"$f":"IF(_xlfn.FORMULATEXT(INDIRECT(P87))=Q87,0,1)","v":0},{"$f":"ADDRESS(12,15,1,1,$S$1)","v":"'Geographic Diversification'!$O$12"},"=+'Schedule IVC (EBS)'!K12",{"$f":"IF(_xlfn.FORMULATEXT(INDIRECT(S87))=T87,0,1)","v":0},null,null,null,{"$f":"ADDRESS(27,5,1,1,$Y$1)","v":"'Premium Risk'!$E$27"},"=+'Schedule IVA (EBS)'!M27",{"$f":"IF(_xlfn.FORMULATEXT(INDIRECT(Y87))=Z87,0,1)","v":0},{"$f":"ADDRESS(27,4,1,1,$AB$1)","v":"'Reserve Risk'!$D$27"},"=+'Schedule III (EBS)'!D26",{"$f":"IF(_xlfn.FORMULATEXT(INDIRECT(AB87))=AC87,0,1)","v":0}]
[{"$f":"ADDRESS(59,25,1,1,$A$1)","v":"Summary!$Y$59"},"=IF($L$71=0,1/9,X59/$X$65)",{"$f":"IF(_xlfn.FORMULATEXT(INDIRECT(A88))=B88,0,1)","v":0},{"$f":"ADDRESS(56,5,1,1,$D$1)","v":"'Fixed Income Investments'!$E$56"},0,{"$f":"IF(INDIRECT(D88)=E88,0,1)","v":0},null,null,null,null,null,null,{"$f":"ADDRESS(19,2,1,1,$M$1)","v":"'Currency Risk'!$B$19"},"='Schedule XX'!B19",{"$f":"IF(_xlfn.FORMULATEXT(INDIRECT(M88))=N88,0,1)","v":0},{"$f":"ADDRESS(36,5,1,1,$P$1)","v":"'Concentration Risk'!$E$36"},0,{"$f":"IF(INDIRECT(P88)=Q88,0,1)","v":0},{"$f":"ADDRESS(12,16,1,1,$S$1)","v":"'Geographic Diversification'!$P$12"},"=+'Schedule IVC (EBS)'!L12",{"$f":"IF(_xlfn.FORMULATEXT(INDIRECT(S88))=T88,0,1)","v":0},null,null,null,{"$f":"ADDRESS(27,6,1,1,$Y$1)","v":"'Premium Risk'!$F$27"},"='Schedule IVA (EBS)'!Q27",{"$f":"IF(_xlfn.FORMULATEXT(INDIRECT(Y88))=Z88,0,1)","v":0},{"$f":"ADDRESS(27,5,1,1,$AB$1)","v":"'Reserve Risk'!$E$27"},"=+'Schedule III (EBS)'!F26",{"$f":"IF(_xlfn.FORMULATEXT(INDIRECT(AB88))=AC88,0,1)","v":0}]
[{"$f":"ADDRESS(59,26,1,1,$A$1)","v":"Summary!$Z$59"},"=M59",{"$f":"IF(_xlfn.FORMULATEXT(INDIRECT(A89))=B89,0,1)","v":0},{"$f":"ADDRESS(56,6,1,1,$D$1)","v":"'Fixed Income Investments'!$F$56"},"=IF(D56<0,0,D56*E56)",{"$f":"IF(_xlfn.FORMULATEXT(INDIRECT(D89))=E89,0,1)","v":0},null,null,null,null,null,null,{"$f":"ADDRESS(19,3,1,1,$M$1)","v":"'Currency Risk'!$C$19"},"='Schedule XX'!L19",{"$f":"IF(_xlfn.FORMULATEXT(INDIRECT(M89))=N89,0,1)","v":0},{"$f":"ADDRESS(36,6,1,1,$P$1)","v":"'Concentration Risk'!$F$36"},"=MAX(0,(D36*E36))",{"$f":"IF(_xlfn.FORMULATEXT(INDIRECT(P89))=Q89,0,1)","v":0},{"$f":"ADDRESS(12,17,1,1,$S$1)","v":"'Geographic Diversification'!$Q$12"},"=+'Schedule IVC (EBS)'!M12",{"$f":"IF(_xlfn.FORMULATEXT(INDIRECT(S89))=T89,0,1)","v":0},null,null,null,{"$f":"ADDRESS(27,7,1,1,$Y$1)","v":"'Premium Risk'!$G$27"},"=+'Geographic Diversification'!H25",{"$f":"IF(_xlfn.FORMULATEXT(INDIRECT(Y89))=Z89,0,1)","v":0},{"$f":"ADDRESS(27,6,1,1,$AB$1)","v":"'Reserve Risk'!$F$27"},"=+'Geographic Diversification'!H56",{"$f":"IF(_xlfn.FORMULATEXT(INDIRECT(AB89))=AC89,0,1)","v":0}]
[{"$f":"ADDRESS(59,27,1,1,$A$1)","v":"Summary!$AA$59"},"=IF($N$71=0,1/9,Z59/$Z$65)",{"$f":"IF(_xlfn.FORMULATEXT(INDIRECT(A90))=B90,0,1)","v":0},{"$f":"ADDRESS(57,4,1,1,$D$1)","v":"'Fixed Income Investments'!$D$57"},"='Schedule II (EBS)'!P13+'Schedule IIA (EBS)'!P13",{"$f":"IF(_xlfn.FORMULATEXT(INDIRECT(D90))=E90,0,1)","v":0},null,null,null,null,null,null,{"$f":"ADDRESS(19,4,1,1,$M$1)","v":"'Currency Risk'!$D$19"},"='Schedule XX'!N19",{"$f":"IF(_xlfn.FORMULATEXT(INDIRECT(M90))=N90,0,1)","v":0},{"$f":"ADDRESS(37,2,1,1,$P$1)","v":"'Concentration Risk'!$B$37"},"BSCR Rating 1",{"$f":"IF(INDIRECT(P90)=Q90,0,1)","v":0},{"$f":"ADDRESS(12,18,1,1,$S$1)","v":"'Geographic Diversification'!$R$12"},"=+'Schedule IVC (EBS)'!N12",{"$f":"IF(_xlfn.FORMULATEXT(INDIRECT(S90))=T90,0,1)","v":0},null,null,null,{"$f":"ADDRESS(27,8,1,1,$Y$1)","v":"'Premium Risk'!$H$27"},0.52697789035313303,{"$f":"IF(INDIRECT(Y90)=Z90,0,1)","v":0},{"$f":"ADDRESS(27,7,1,1,$AB$1)","v":"'Reserve Risk'!$G$27"},0.482760284027479,{"$f":"IF(INDIRECT(AB90)=AC90,0,1)","v":0}]
[{"$f":"ADDRESS(59,29,1,1,$A$1)","v":"Summary!$AC$59"},"=(SUM(AA$55:AA59)/AA$65)",{"$f":"IF(_xlfn.FORMULATEXT(INDIRECT(A91))=B91,0,1)","v":0},{"$f":"ADDRESS(57,5,1,1,$D$1)","v":"'Fixed Income Investments'!$E$57"},4.0000000000000001E-3,{"$f":"IF(INDIRECT(D91)=E91,0,1)","v":0},null,null,null,null,null,null,{"$f":"ADDRESS(19,5,1,1,$M$1)","v":"'Currency Risk'!$E$19"},"='Schedule XX'!P19",{"$f":"IF(_xlfn.FORMULATEXT(INDIRECT(M91))=N91,0,1)","v":0},{"$f":"ADDRESS(37,4,1,1,$P$1)","v":"'Concentration Risk'!$D$37"},"=SUMIFS('Schedule XXI'!$M$8:$M$57,'Schedule XXI'!$K$8:$K$57,$D$35,'Schedule XXI'!$L$8:$L$57,$B37)",{"$f":"IF(_xlfn.FORMULATEXT(INDIRECT(P91))=Q91,0,1)","v":0},{"$f":"ADDRESS(12,19,1,1,$S$1)","v":"'Geographic Diversification'!$S$12"},"=+'Schedule IVC (EBS)'!O12",{"$f":"IF(_xlfn.FORMULATEXT(INDIRECT(S91))=T91,0,1)","v":0},null,null,null,{"$f":"ADDRESS(27,9,1,1,$Y$1)","v":"'Premium Risk'!$I$27"},"=IF($G$27<0,0,$G$27*$H$27)",{"$f":"IF(_xlfn.FORMULATEXT(INDIRECT(Y91))=Z91,0,1)","v":0},{"$f":"ADDRESS(27,8,1,1,$AB$1)","v":"'Reserve Risk'!$H$27"},"=IF($F$27<0,0,$F$27*$G$27)",{"$f":"IF(_xlfn.FORMULATEXT(INDIRECT(AB91))=AC91,0,1)","v":0}]
[{"$f":"ADDRESS(60,20,1,1,$A$1)","v":"Summary!$T$60"},"=C62",{"$f":"IF(_xlfn.FORMULATEXT(INDIRECT(A92))=B92,0,1)","v":0},{"$f":"ADDRESS(57,6,1,1,$D$1)","v":"'Fixed Income Investments'!$F$57"},"=IF(D57<0,0,D57*E57)",{"$f":"IF(_xlfn.FORMULATEXT(INDIRECT(D92))=E92,0,1)","v":0},null,null,null,null,null,null,{"$f":"ADDRESS(19,6,1,1,$M$1)","v":"'Currency Risk'!$F$19"},"='Schedule XX'!R19",{"$f":"IF(_xlfn.FORMULATEXT(INDIRECT(M92))=N92,0,1)","v":0},{"$f":"ADDRESS(37,5,1,1,$P$1)","v":"'Concentration Risk'!$E$37"},"=+'Fixed Income Investments'!E27",{"$f":"IF(_xlfn.FORMULATEXT(INDIRECT(P92))=Q92,0,1)","v":0},{"$f":"ADDRESS(12,20,1,1,$S$1)","v":"'Geographic Diversification'!$T$12"},"=+'Schedule IVC (EBS)'!P12",{"$f":"IF(_xlfn.FORMULATEXT(INDIRECT(S92))=T92,0,1)","v":0},null,null,null,{"$f":"ADDRESS(28,5,1,1,$Y$1)","v":"'Premium Risk'!$E$28"},"=+'Schedule IVA (EBS)'!M28",{"$f":"IF(_xlfn.FORMULATEXT(INDIRECT(Y92))=Z92,0,1)","v":0},{"$f":"ADDRESS(28,4,1,1,$AB$1)","v":"'Reserve Risk'!$D$28"},"=+'Schedule III (EBS)'!D27",{"$f":"IF(_xlfn.FORMULATEXT(INDIRECT(AB92))=AC92,0,1)","v":0}]
[{"$f":"ADDRESS(60,24,1,1,$A$1)","v":"Summary!$X$60"},"=G62",{"$f":"IF(_xlfn.FORMULATEXT(INDIRECT(A93))=B93,0,1)","v":0},{"$f":"ADDRESS(58,4,1,1,$D$1)","v":"'Fixed Income Investments'!$D$58"},"='Schedule II (EBS)'!P14+'Schedule IIA (EBS)'!P14",{"$f":"IF(_xlfn.FORMULATEXT(INDIRECT(D93))=E93,0,1)","v":0},null,null,null,null,null,null,{"$f":"ADDRESS(19,7,1,1,$M$1)","v":"'Currency Risk'!$G$19"},"=IF(F19=0,E19*$G$6,F19*$G$6)",{"$f":"IF(_xlfn.FORMULATEXT(INDIRECT(M93))=N93,0,1)","v":0},{"$f":"ADDRESS(37,6,1,1,$P$1)","v":"'Concentration Risk'!$F$37"},"=MAX(0,(D37*E37))",{"$f":"IF(_xlfn.FORMULATEXT(INDIRECT(P93))=Q93,0,1)","v":0},{"$f":"ADDRESS(12,21,1,1,$S$1)","v":"'Geographic Diversification'!$U$12"},"=+'Schedule IVC (EBS)'!Q12",{"$f":"IF(_xlfn.FORMULATEXT(INDIRECT(S93))=T93,0,1)","v":0},null,null,null,{"$f":"ADDRESS(28,6,1,1,$Y$1)","v":"'Premium Risk'!$F$28"},"='Schedule IVA (EBS)'!Q28",{"$f":"IF(_xlfn.FORMULATEXT(INDIRECT(Y93))=Z93,0,1)","v":0},{"$f":"ADDRESS(28,5,1,1,$AB$1)","v":"'Reserve Risk'!$E$28"},"=+'Schedule III (EBS)'!F27",{"$f":"IF(_xlfn.FORMULATEXT(INDIRECT(AB93))=AC93,0,1)","v":0}]
[{"$f":"ADDRESS(60,25,1,1,$A$1)","v":"Summary!$Y$60"},"=IF($L$71=0,1/9,X60/$X$65)",{"$f":"IF(_xlfn.FORMULATEXT(INDIRECT(A94))=B94,0,1)","v":0},{"$f":"ADDRESS(58,5,1,1,$D$1)","v":"'Fixed Income Investments'!$E$58"},8.0000000000000002E-3,{"$f":"IF(INDIRECT(D94)=E94,0,1)","v":0},null,null,null,null,null,null,{"$f":"ADDRESS(19,8,1,1,$M$1)","v":"'Currency Risk'!$H$19"},"=IF(D19=0,IF(C19>(E19+G19),0%,25%),IF(D19>(F19+G19),0%,25%))",{"$f":"IF(_xlfn.FORMULATEXT(INDIRECT(M94))=N94,0,1)","v":0},{"$f":"ADDRESS(38,2,1,1,$P$1)","v":"'Concentration Risk'!$B$38"},"BSCR Rating 2",{"$f":"IF(INDIRECT(P94)=Q94,0,1)","v":0},{"$f":"ADDRESS(12,22,1,1,$S$1)","v":"'Geographic Diversification'!$V$12"},"=+'Schedule IVC (EBS)'!R12",{"$f":"IF(_xlfn.FORMULATEXT(INDIRECT(S94))=T94,0,1)","v":0},null,null,null,{"$f":"ADDRESS(28,7,1,1,$Y$1)","v":"'Premium Risk'!$G$28"},"=+'Geographic Diversification'!H26",{"$f":"IF(_xlfn.FORMULATEXT(INDIRECT(Y94))=Z94,0,1)","v":0},{"$f":"ADDRESS(28,6,1,1,$AB$1)","v":"'Reserve Risk'!$F$28"},"=+'Geographic Diversification'!H57",{"$f":"IF(_xlfn.FORMULATEXT(INDIRECT(AB94))=AC94,0,1)","v":0}]
[{"$f":"ADDRESS(60,26,1,1,$A$1)","v":"Summary!$Z$60"},"=M62",{"$f":"IF(_xlfn.FORMULATEXT(INDIRECT(A95))=B95,0,1)","v":0},{"$f":"ADDRESS(58,6,1,1,$D$1)","v":"'Fixed Income Investments'!$F$58"},"=IF(D58<0,0,D58*E58)",{"$f":"IF(_xlfn.FORMULATEXT(INDIRECT(D95))=E95,0,1)","v":0},null,null,null,null,null,null,{"$f":"ADDRESS(19,9,1,1,$M$1)","v":"'Currency Risk'!$I$19"},"=IF(D19=0,H19*ABS(C19-E19-G19),H19*ABS(D19-F19-G19))",{"$f":"IF(_xlfn.FORMULATEXT(INDIRECT(M95))=N95,0,1)","v":0},{"$f":"ADDRESS(38,4,1,1,$P$1)","v":"'Concentration Risk'!$D$38"},"=SUMIFS('Schedule XXI'!$M$8:$M$57,'Schedule XXI'!$K$8:$K$57,$D$35,'Schedule XXI'!$L$8:$L$57,$B38)",{"$f":"IF(_xlfn.FORMULATEXT(INDIRECT(P95))=Q95,0,1)","v":0},{"$f":"ADDRESS(12,23,1,1,$S$1)","v":"'Geographic Diversification'!$W$12"},"=+'Schedule IVC (EBS)'!S12",{"$f":"IF(_xlfn.FORMULATEXT(INDIRECT(S95))=T95,0,1)","v":0},null,null,null,{"$f":"ADDRESS(28,8,1,1,$Y$1)","v":"'Premium Risk'!$H$28"},0.42191756117933499,{"$f":"IF(INDIRECT(Y95)=Z95,0,1)","v":0},{"$f":"ADDRESS(28,7,1,1,$AB$1)","v":"'Reserve Risk'!$G$28"},0.37080464615634001,{"$f":"IF(INDIRECT(AB95)=AC95,0,1)","v":0}]
[{"$f":"ADDRESS(60,27,1,1,$A$1)","v":"Summary!$AA$60"},"=IF($N$71=0,1/9,Z60/$Z$65)",{"$f":"IF(_xlfn.FORMULATEXT(INDIRECT(A96))=B96,0,1)","v":0},{"$f":"ADDRESS(59,4,1,1,$D$1)","v":"'Fixed Income Investments'!$D$59"},"='Schedule II (EBS)'!P15+'Schedule IIA (EBS)'!P15",{"$f":"IF(_xlfn.FORMULATEXT(INDIRECT(D96))=E96,0,1)","v":0},null,null,null,null,null,null,{"$f":"ADDRESS(20,2,1,1,$M$1)","v":"'Currency Risk'!$B$20"},"='Schedule XX'!B20",{"$f":"IF(_xlfn.FORMULATEXT(INDIRECT(M96))=N96,0,1)","v":0},{"$f":"ADDRESS(38,5,1,1,$P$1)","v":"'Concentration Risk'!$E$38"},"=+'Fixed Income Investments'!E28",{"$f":"IF(_xlfn.FORMULATEXT(INDIRECT(P96))=Q96,0,1)","v":0},{"$f":"ADDRESS(12,24,1,1,$S$1)","v":"'Geographic Diversification'!$X$12"},"=+'Schedule IVC (EBS)'!T12",{"$f":"IF(_xlfn.FORMULATEXT(INDIRECT(S96))=T96,0,1)","v":0},null,null,null,{"$f":"ADDRESS(28,9,1,1,$Y$1)","v":"'Premium Risk'!$I$28"},"=IF($G$28<0,0,$G$28*$H$28)",{"$f":"IF(_xlfn.FORMULATEXT(INDIRECT(Y96))=Z96,0,1)","v":0},{"$f":"ADDRESS(28,8,1,1,$AB$1)","v":"'Reserve Risk'!$H$28"},"=IF($F$28<0,0,$F$28*$G$28)",{"$f":"IF(_xlfn.FORMULATEXT(INDIRECT(AB96))=AC96,0,1)","v":0}]
[{"$f":"ADDRESS(60,29,1,1,$A$1)","v":"Summary!$AC$60"},"=(SUM(AA$55:AA62)/AA$65)",{"$f":"IF(_xlfn.FORMULATEXT(INDIRECT(A97))=B97,0,1)","v":0},{"$f":"ADDRESS(59,5,1,1,$D$1)","v":"'Fixed Income Investments'!$E$59"},1.4999999999999999E-2,{"$f":"IF(INDIRECT(D97)=E97,0,1)","v":0},null,null,null,null,null,null,{"$f":"ADDRESS(20,3,1,1,$M$1)","v":"'Currency Risk'!$C$20"},"='Schedule XX'!L20",{"$f":"IF(_xlfn.FORMULATEXT(INDIRECT(M97))=N97,0,1)","v":0},{"$f":"ADDRESS(38,6,1,1,$P$1)","v":"'Concentration Risk'!$F$38"},"=MAX(0,(D38*E38))",{"$f":"IF(_xlfn.FORMULATEXT(INDIRECT(P97))=Q97,0,1)","v":0},{"$f":"ADDRESS(12,25,1,1,$S$1)","v":"'Geographic Diversification'!$Y$12"},"=+'Schedule IVC (EBS)'!U12",{"$f":"IF(_xlfn.FORMULATEXT(INDIRECT(S97))=T97,0,1)","v":0},null,null,null,{"$f":"ADDRESS(29,5,1,1,$Y$1)","v":"'Premium Risk'!$E$29"},"=+'Schedule IVA (EBS)'!M29",{"$f":"IF(_xlfn.FORMULATEXT(INDIRECT(Y97))=Z97,0,1)","v":0},{"$f":"ADDRESS(29,4,1,1,$AB$1)","v":"'Reserve Risk'!$D$29"},"=+'Schedule III (EBS)'!D28",{"$f":"IF(_xlfn.FORMULATEXT(INDIRECT(AB97))=AC97,0,1)","v":0}]
[{"$f":"ADDRESS(60,30,1,1,$A$1)","v":"Summary!$AD$60"},"=IF(ISERROR(AVERAGE(AC62:AC62)),0,AVERAGE(AC62:AC62))",{"$f":"IF(_xlfn.FORMULATEXT(INDIRECT(A98))=B98,0,1)","v":0},{"$f":"ADDRESS(59,6,1,1,$D$1)","v":"'Fixed Income Investments'!$F$59"},"=IF(D59<0,0,D59*E59)",{"$f":"IF(_xlfn.FORMULATEXT(INDIRECT(D98))=E98,0,1)","v":0},null,null,null,null,null,null,{"$f":"ADDRESS(20,4,1,1,$M$1)","v":"'Currency Risk'!$D$20"},"='Schedule XX'!N20",{"$f":"IF(_xlfn.FORMULATEXT(INDIRECT(M98))=N98,0,1)","v":0},{"$f":"ADDRESS(39,2,1,1,$P$1)","v":"'Concentration Risk'!$B$39"},"BSCR Rating 3",{"$f":"IF(INDIRECT(P98)=Q98,0,1)","v":0},{"$f":"ADDRESS(12,26,1,1,$S$1)","v":"'Geographic Diversification'!$Z$12"},"=+'Schedule IVC (EBS)'!V12",{"$f":"IF(_xlfn.FORMULATEXT(INDIRECT(S98))=T98,0,1)","v":0},null,null,null,{"$f":"ADDRESS(29,6,1,1,$Y$1)","v":"'Premium Risk'!$F$29"},"='Schedule IVA (EBS)'!Q29",{"$f":"IF(_xlfn.FORMULATEXT(INDIRECT(Y98))=Z98,0,1)","v":0},{"$f":"ADDRESS(29,5,1,1,$AB$1)","v":"'Reserve Risk'!$E$29"},"=+'Schedule III (EBS)'!F28",{"$f":"IF(_xlfn.FORMULATEXT(INDIRECT(AB98))=AC98,0,1)","v":0}]
[{"$f":"ADDRESS(60,32,1,1,$A$1)","v":"Summary!$AF$60"},"=IF(AO62=\"\",IF(Test_Statistic<$AJ$71,AI60,IF(Test_Statistic<$AL$71,AK60,AM60)),AO62)",{"$f":"IF(_xlfn.FORMULATEXT(INDIRECT(A99))=B99,0,1)","v":0},{"$f":"ADDRESS(60,4,1,1,$D$1)","v":"'Fixed Income Investments'!$D$60"},"='Schedule II (EBS)'!P16+'Schedule IIA (EBS)'!P16",{"$f":"IF(_xlfn.FORMULATEXT(INDIRECT(D99))=E99,0,1)","v":0},null,null,null,null,null,null,{"$f":"ADDRESS(20,5,1,1,$M$1)","v":"'Currency Risk'!$E$20"},"='Schedule XX'!P20",{"$f":"IF(_xlfn.FORMULATEXT(INDIRECT(M99))=N99,0,1)","v":0},{"$f":"ADDRESS(39,4,1,1,$P$1)","v":"'Concentration Risk'!$D$39"},"=SUMIFS('Schedule XXI'!$M$8:$M$57,'Schedule XXI'!$K$8:$K$57,$D$35,'Schedule XXI'!$L$8:$L$57,$B39)",{"$f":"IF(_xlfn.FORMULATEXT(INDIRECT(P99))=Q99,0,1)","v":0},{"$f":"ADDRESS(13,4,1,1,$S$1)","v":"'Geographic Diversification'!$D$13"},"=SUM(I13:Z13)",{"$f":"IF(_xlfn.FORMULATEXT(INDIRECT(S99))=T99,0,1)","v":0},null,null,null,{"$f":"ADDRESS(29,7,1,1,$Y$1)","v":"'Premium Risk'!$G$29"},"=+'Geographic Diversification'!H27",{"$f":"IF(_xlfn.FORMULATEXT(INDIRECT(Y99))=Z99,0,1)","v":0},{"$f":"ADDRESS(29,6,1,1,$AB$1)","v":"'Reserve Risk'!$F$29"},"=+'Geographic Diversification'!H58",{"$f":"IF(_xlfn.FORMULATEXT(INDIRECT(AB99))=AC99,0,1)","v":0}]
[{"$f":"ADDRESS(60,33,1,1,$A$1)","v":"Summary!$AG$60"},"=IF(AP62=\"\",IF(Test_Statistic<$AJ$71,AJ60,IF(Test_Statistic<$AL$71,AL60,AN60)),AP62)",{"$f":"IF(_xlfn.FORMULATEXT(INDIRECT(A100))=B100,0,1)","v":0},{"$f":"ADDRESS(60,5,1,1,$D$1)","v":"'Fixed Income Investments'!$E$60"},0.03,{"$f":"IF(INDIRECT(D100)=E100,0,1)","v":0},null,null,null,null,null,null,{"$f":"ADDRESS(20,6,1,1,$M$1)","v":"'Currency Risk'!$F$20"},"='Schedule XX'!R20",{"$f":"IF(_xlfn.FORMULATEXT(INDIRECT(M100))=N100,0,1)","v":0},{"$f":"ADDRESS(39,5,1,1,$P$1)","v":"'Concentration Risk'!$E$39"},"=+'Fixed Income Investments'!E29",{"$f":"IF(_xlfn.FORMULATEXT(INDIRECT(P100))=Q100,0,1)","v":0},{"$f":"ADDRESS(13,5,1,1,$S$1)","v":"'Geographic Diversification'!$E$13"},"=SUMSQ(I13:Z13)",{"$f":"IF(_xlfn.FORMULATEXT(INDIRECT(S100))=T100,0,1)","v":0},null,null,null,{"$f":"ADDRESS(29,8,1,1,$Y$1)","v":"'Premium Risk'!$H$29"},0.482210885429324,{"$f":"IF(INDIRECT(Y100)=Z100,0,1)","v":0},{"$f":"ADDRESS(29,7,1,1,$AB$1)","v":"'Reserve Risk'!$G$29"},0.43541657269369,{"$f":"IF(INDIRECT(AB100)=AC100,0,1)","v":0}]
[{"$f":"ADDRESS(60,35,1,1,$A$1)","v":"Summary!$AI$60"},"=IF(AC62>1,200,IF(AC60>1,50,IF(AC60>0.6,50,180)))",{"$f":"IF(_xlfn.FORMULATEXT(INDIRECT(A101))=B101,0,1)","v":0},{"$f":"ADDRESS(60,6,1,1,$D$1)","v":"'Fixed Income Investments'!$F$60"},"=IF(D60<0,0,D60*E60)",{"$f":"IF(_xlfn.FORMULATEXT(INDIRECT(D101))=E101,0,1)","v":0},null,null,null,null,null,null,{"$f":"ADDRESS(20,7,1,1,$M$1)","v":"'Currency Risk'!$G$20"},"=IF(F20=0,E20*$G$6,F20*$G$6)",{"$f":"IF(_xlfn.FORMULATEXT(INDIRECT(M101))=N101,0,1)","v":0},{"$f":"ADDRESS(39,6,1,1,$P$1)","v":"'Concentration Risk'!$F$39"},"=MAX(0,(D39*E39))",{"$f":"IF(_xlfn.FORMULATEXT(INDIRECT(P101))=Q101,0,1)","v":0},{"$f":"ADDRESS(13,6,1,1,$S$1)","v":"'Geographic Diversification'!$F$13"},"=(IF(D13>0,E13/D13^2,1))",{"$f":"IF(_xlfn.FORMULATEXT(INDIRECT(S101))=T101,0,1)","v":0},null,null,null,{"$f":"ADDRESS(29,9,1,1,$Y$1)","v":"'Premium Risk'!$I$29"},"=IF($G$29<0,0,$G$29*$H$29)",{"$f":"IF(_xlfn.FORMULATEXT(INDIRECT(Y101))=Z101,0,1)","v":0},{"$f":"ADDRESS(29,8,1,1,$AB$1)","v":"'Reserve Risk'!$H$29"},"=IF($F$29<0,0,$F$29*$G$29)",{"$f":"IF(_xlfn.FORMULATEXT(INDIRECT(AB101))=AC101,0,1)","v":0}]
[{"$f":"ADDRESS(60,36,1,1,$A$1)","v":"Summary!$AJ$60"},"=IF(AC62>1,5,IF(AC60>0.6,IF(AD62>0.5,60,120),IF(AC60>0.6,100,200)))",{"$f":"IF(_xlfn.FORMULATEXT(INDIRECT(A102))=B102,0,1)","v":0},{"$f":"ADDRESS(61,4,1,1,$D$1)","v":"'Fixed Income Investments'!$D$61"},"='Schedule II (EBS)'!P17+'Schedule IIA (EBS)'!P17",{"$f":"IF(_xlfn.FORMULATEXT(INDIRECT(D102))=E102,0,1)","v":0},null,null,null,null,null,null,{"$f":"ADDRESS(20,8,1,1,$M$1)","v":"'Currency Risk'!$H$20"},"=IF(D20=0,IF(C20>(E20+G20),0%,25%),IF(D20>(F20+G20),0%,25%))",{"$f":"IF(_xlfn.FORMULATEXT(INDIRECT(M102))=N102,0,1)","v":0},{"$f":"ADDRESS(40,2,1,1,$P$1)","v":"'Concentration Risk'!$B$40"},"BSCR Rating 4",{"$f":"IF(INDIRECT(P102)=Q102,0,1)","v":0},{"$f":"ADDRESS(13,7,1,1,$S$1)","v":"'Geographic Diversification'!$G$13"},"=D13*(0.75+0.25*F13)",{"$f":"IF(_xlfn.FORMULATEXT(INDIRECT(S102))=T102,0,1)","v":0},null,null,null,{"$f":"ADDRESS(30,5,1,1,$Y$1)","v":"'Premium Risk'!$E$30"},"=+'Schedule IVA (EBS)'!M30",{"$f":"IF(_xlfn.FORMULATEXT(INDIRECT(Y102))=Z102,0,1)","v":0},{"$f":"ADDRESS(30,4,1,1,$AB$1)","v":"'Reserve Risk'!$D$30"},"=+'Schedule III (EBS)'!D29",{"$f":"IF(_xlfn.FORMULATEXT(INDIRECT(AB102))=AC102,0,1)","v":0}]
[{"$f":"ADDRESS(60,37,1,1,$A$1)","v":"Summary!$AK$60"},"=IF(Test_Statistic_2<0.95,50,160)",{"$f":"IF(_xlfn.FORMULATEXT(INDIRECT(A103))=B103,0,1)","v":0},{"$f":"ADDRESS(61,5,1,1,$D$1)","v":"'Fixed Income Investments'!$E$61"},0.08,{"$f":"IF(INDIRECT(D103)=E103,0,1)","v":0},null,null,null,null,null,null,{"$f":"ADDRESS(20,9,1,1,$M$1)","v":"'Currency Risk'!$I$20"},"=IF(D20=0,H20*ABS(C20-E20-G20),H20*ABS(D20-F20-G20))",{"$f":"IF(_xlfn.FORMULATEXT(INDIRECT(M103))=N103,0,1)","v":0},{"$f":"ADDRESS(40,4,1,1,$P$1)","v":"'Concentration Risk'!$D$40"},"=SUMIFS('Schedule XXI'!$M$8:$M$57,'Schedule XXI'!$K$8:$K$57,$D$35,'Schedule XXI'!$L$8:$L$57,$B40)",{"$f":"IF(_xlfn.FORMULATEXT(INDIRECT(P103))=Q103,0,1)","v":0},{"$f":"ADDRESS(13,8,1,1,$S$1)","v":"'Geographic Diversification'!$H$13"},"=IF('Schedule IVC (EBS)'!AB13=\"True\",G13,'Schedule IVA (EBS)'!Q15)",{"$f":"IF(_xlfn.FORMULATEXT(INDIRECT(S103))=T103,0,1)","v":0},null,null,null,{"$f":"ADDRESS(30,6,1,1,$Y$1)","v":"'Premium Risk'!$F$30"},"='Schedule IVA (EBS)'!Q30",{"$f":"IF(_xlfn.FORMULATEXT(INDIRECT(Y103))=Z103,0,1)","v":0},{"$f":"ADDRESS(30,5,1,1,$AB$1)","v":"'Reserve Risk'!$E$30"},"=+'Schedule III (EBS)'!F29",{"$f":"IF(_xlfn.FORMULATEXT(INDIRECT(AB103))=AC103,0,1)","v":0}]
[{"$f":"ADDRESS(60,38,1,1,$A$1)","v":"Summary!$AL$60"},"=IF(Test_Statistic_2<0.95,70,5)",{"$f":"IF(_xlfn.FORMULATEXT(INDIRECT(A104))=B104,0,1)","v":0},{"$f":"ADDRESS(61,6,1,1,$D$1)","v":"'Fixed Income Investments'!$F$61"},"=IF(D61<0,0,D61*E61)",{"$f":"IF(_xlfn.FORMULATEXT(INDIRECT(D104))=E104,0,1)","v":0},null,null,null,null,null,null,{"$f":"ADDRESS(21,2,1,1,$M$1)","v":"'Currency Risk'!$B$21"},"='Schedule XX'!B21",{"$f":"IF(_xlfn.FORMULATEXT(INDIRECT(M104))=N104,0,1)","v":0},{"$f":"ADDRESS(40,5,1,1,$P$1)","v":"'Concentration Risk'!$E$40"},"=+'Fixed Income Investments'!E30",{"$f":"IF(_xlfn.FORMULATEXT(INDIRECT(P104))=Q104,0,1)","v":0},{"$f":"ADDRESS(13,9,1,1,$S$1)","v":"'Geographic Diversification'!$I$13"},"=+'Schedule IVC (EBS)'!E13",{"$f":"IF(_xlfn.FORMULATEXT(INDIRECT(S104))=T104,0,1)","v":0},null,null,null,{"$f":"ADDRESS(30,7,1,1,$Y$1)","v":"'Premium Risk'!$G$30"},"=+'Geographic Diversification'!H28",{"$f":"IF(_xlfn.FORMULATEXT(INDIRECT(Y104))=Z104,0,1)","v":0},{"$f":"ADDRESS(30,6,1,1,$AB$1)","v":"'Reserve Risk'!$F$30"},"=+'Geographic Diversification'!H59",{"$f":"IF(_xlfn.FORMULATEXT(INDIRECT(AB104))=AC104,0,1)","v":0}]
[{"$f":"ADDRESS(60,39,1,1,$A$1)","v":"Summary!$AM$60"},"=IF(Test_Statistic_2<1,50,180)",{"$f":"IF(_xlfn.FORMULATEXT(INDIRECT(A105))=B105,0,1)","v":0},{"$f":"ADDRESS(62,4,1,1,$D$1)","v":"'Fixed Income Investments'!$D$62"},"='Schedule II (EBS)'!P18+'Schedule IIA (EBS)'!P18",{"$f":"IF(_xlfn.FORMULATEXT(INDIRECT(D105))=E105,0,1)","v":0},null,null,null,null,null,null,{"$f":"ADDRESS(21,3,1,1,$M$1)","v":"'Currency Risk'!$C$21"},"='Schedule XX'!L21",{"$f":"IF(_xlfn.FORMULATEXT(INDIRECT(M105))=N105,0,1)","v":0},{"$f":"ADDRESS(40,6,1,1,$P$1)","v":"'Concentration Risk'!$F$40"},"=MAX(0,(D40*E40))",{"$f":"IF(_xlfn.FORMULATEXT(INDIRECT(P105))=Q105,0,1)","v":0},{"$f":"ADDRESS(13,10,1,1,$S$1)","v":"'Geographic Diversification'!$J$13"},"=+'Schedule IVC (EBS)'!F13",{"$f":"IF(_xlfn.FORMULATEXT(INDIRECT(S105))=T105,0,1)","v":0},null,null,null,{"$f":"ADDRESS(30,8,1,1,$Y$1)","v":"'Premium Risk'!$H$30"},0.50012106835589698,{"$f":"IF(INDIRECT(Y105)=Z105,0,1)","v":0},{"$f":"ADDRESS(30,7,1,1,$AB$1)","v":"'Reserve Risk'!$G$30"},0.43652386132510701,{"$f":"IF(INDIRECT(AB105)=AC105,0,1)","v":0}]
[{"$f":"ADDRESS(60,40,1,1,$A$1)","v":"Summary!$AN$60"},"=IF(Test_Statistic_2<1,50,5)",{"$f":"IF(_xlfn.FORMULATEXT(INDIRECT(A106))=B106,0,1)","v":0},{"$f":"ADDRESS(62,5,1,1,$D$1)","v":"'Fixed Income Investments'!$E$62"},0.15,{"$f":"IF(INDIRECT(D106)=E106,0,1)","v":0},null,null,null,null,null,null,{"$f":"ADDRESS(21,4,1,1,$M$1)","v":"'Currency Risk'!$D$21"},"='Schedule XX'!N21",{"$f":"IF(_xlfn.FORMULATEXT(INDIRECT(M106))=N106,0,1)","v":0},{"$f":"ADDRESS(41,2,1,1,$P$1)","v":"'Concentration Risk'!$B$41"},"BSCR Rating 5",{"$f":"IF(INDIRECT(P106)=Q106,0,1)","v":0},{"$f":"ADDRESS(13,11,1,1,$S$1)","v":"'Geographic Diversification'!$K$13"},"=+'Schedule IVC (EBS)'!G13",{"$f":"IF(_xlfn.FORMULATEXT(INDIRECT(S106))=T106,0,1)","v":0},null,null,null,{"$f":"ADDRESS(30,9,1,1,$Y$1)","v":"'Premium Risk'!$I$30"},"=IF($G$30<0,0,$G$30*$H$30)",{"$f":"IF(_xlfn.FORMULATEXT(INDIRECT(Y106))=Z106,0,1)","v":0},{"$f":"ADDRESS(30,8,1,1,$AB$1)","v":"'Reserve Risk'!$H$30"},"=IF($F$30<0,0,$F$30*$G$30)",{"$f":"IF(_xlfn.FORMULATEXT(INDIRECT(AB106))=AC106,0,1)","v":0}]
[{"$f":"ADDRESS(61,12,1,1,$A$1)","v":"Summary!$L$61"},"=K62",{"$f":"IF(_xlfn.FORMULATEXT(INDIRECT(A107))=B107,0,1)","v":0},{"$f":"ADDRESS(62,6,1,1,$D$1)","v":"'Fixed Income Investments'!$F$62"},"=IF(D62<0,0,D62*E62)",{"$f":"IF(_xlfn.FORMULATEXT(INDIRECT(D107))=E107,0,1)","v":0},null,null,null,null,null,null,{"$f":"ADDRESS(21,5,1,1,$M$1)","v":"'Currency Risk'!$E$21"},"='Schedule XX'!P21",{"$f":"IF(_xlfn.FORMULATEXT(INDIRECT(M107))=N107,0,1)","v":0},{"$f":"ADDRESS(41,4,1,1,$P$1)","v":"'Concentration Risk'!$D$41"},"=SUMIFS('Schedule XXI'!$M$8:$M$57,'Schedule XXI'!$K$8:$K$57,$D$35,'Schedule XXI'!$L$8:$L$57,$B41)",{"$f":"IF(_xlfn.FORMULATEXT(INDIRECT(P107))=Q107,0,1)","v":0},{"$f":"ADDRESS(13,12,1,1,$S$1)","v":"'Geographic Diversification'!$L$13"},"=+'Schedule IVC (EBS)'!H13",{"$f":"IF(_xlfn.FORMULATEXT(INDIRECT(S107))=T107,0,1)","v":0},null,null,null,{"$f":"ADDRESS(31,5,1,1,$Y$1)","v":"'Premium Risk'!$E$31"},"=+'Schedule IVA (EBS)'!M31",{"$f":"IF(_xlfn.FORMULATEXT(INDIRECT(Y107))=Z107,0,1)","v":0},{"$f":"ADDRESS(31,4,1,1,$AB$1)","v":"'Reserve Risk'!$D$31"},"=+'Schedule III (EBS)'!D30",{"$f":"IF(_xlfn.FORMULATEXT(INDIRECT(AB107))=AC107,0,1)","v":0}]
[{"$f":"ADDRESS(61,14,1,1,$A$1)","v":"Summary!$N$61"},"=M62",{"$f":"IF(_xlfn.FORMULATEXT(INDIRECT(A108))=B108,0,1)","v":0},{"$f":"ADDRESS(63,4,1,1,$D$1)","v":"'Fixed Income Investments'!$D$63"},"='Schedule II (EBS)'!P19+'Schedule IIA (EBS)'!P19",{"$f":"IF(_xlfn.FORMULATEXT(INDIRECT(D108))=E108,0,1)","v":0},null,null,null,null,null,null,{"$f":"ADDRESS(21,6,1,1,$M$1)","v":"'Currency Risk'!$F$21"},"='Schedule XX'!R21",{"$f":"IF(_xlfn.FORMULATEXT(INDIRECT(M108))=N108,0,1)","v":0},{"$f":"ADDRESS(41,5,1,1,$P$1)","v":"'Concentration Risk'!$E$41"},"=+'Fixed Income Investments'!E31",{"$f":"IF(_xlfn.FORMULATEXT(INDIRECT(P108))=Q108,0,1)","v":0},{"$f":"ADDRESS(13,13,1,1,$S$1)","v":"'Geographic Diversification'!$M$13"},"=+'Schedule IVC (EBS)'!I13",{"$f":"IF(_xlfn.FORMULATEXT(INDIRECT(S108))=T108,0,1)","v":0},null,null,null,{"$f":"ADDRESS(31,6,1,1,$Y$1)","v":"'Premium Risk'!$F$31"},"='Schedule IVA (EBS)'!Q31",{"$f":"IF(_xlfn.FORMULATEXT(INDIRECT(Y108))=Z108,0,1)","v":0},{"$f":"ADDRESS(31,5,1,1,$AB$1)","v":"'Reserve Risk'!$E$31"},"=+'Schedule III (EBS)'!F30",{"$f":"IF(_xlfn.FORMULATEXT(INDIRECT(AB108))=AC108,0,1)","v":0}]
[{"$f":"ADDRESS(61,20,1,1,$A$1)","v":"Summary!$T$61"},"=C65",{"$f":"IF(_xlfn.FORMULATEXT(INDIRECT(A109))=B109,0,1)","v":0},{"$f":"ADDRESS(63,5,1,1,$D$1)","v":"'Fixed Income Investments'!$E$63"},0.26300000000000001,{"$f":"IF(INDIRECT(D109)=E109,0,1)","v":0},null,null,null,null,null,null,{"$f":"ADDRESS(21,7,1,1,$M$1)","v":"'Currency Risk'!$G$21"},"=IF(F21=0,E21*$G$6,F21*$G$6)",{"$f":"IF(_xlfn.FORMULATEXT(INDIRECT(M109))=N109,0,1)","v":0},{"$f":"ADDRESS(41,6,1,1,$P$1)","v":"'Concentration Risk'!$F$41"},"=MAX(0,(D41*E41))",{"$f":"IF(_xlfn.FORMULATEXT(INDIRECT(P109))=Q109,0,1)","v":0},{"$f":"ADDRESS(13,14,1,1,$S$1)","v":"'Geographic Diversification'!$N$13"},"=+'Schedule IVC (EBS)'!J13",{"$f":"IF(_xlfn.FORMULATEXT(INDIRECT(S109))=T109,0,1)","v":0},null,null,null,{"$f":"ADDRESS(31,7,1,1,$Y$1)","v":"'Premium Risk'!$G$31"},"=+'Geographic Diversification'!H29",{"$f":"IF(_xlfn.FORMULATEXT(INDIRECT(Y109))=Z109,0,1)","v":0},{"$f":"ADDRESS(31,6,1,1,$AB$1)","v":"'Reserve Risk'!$F$31"},"=+'Geographic Diversification'!H60",{"$f":"IF(_xlfn.FORMULATEXT(INDIRECT(AB109))=AC109,0,1)","v":0}]
[{"$f":"ADDRESS(61,24,1,1,$A$1)","v":"Summary!$X$61"},"=G65",{"$f":"IF(_xlfn.FORMULATEXT(INDIRECT(A110))=B110,0,1)","v":0},{"$f":"ADDRESS(63,6,1,1,$D$1)","v":"'Fixed Income Investments'!$F$63"},"=IF(D63<0,0,D63*E63)",{"$f":"IF(_xlfn.FORMULATEXT(INDIRECT(D110))=E110,0,1)","v":0},null,null,null,null,null,null,{"$f":"ADDRESS(21,8,1,1,$M$1)","v":"'Currency Risk'!$H$21"},"=IF(D21=0,IF(C21>(E21+G21),0%,25%),IF(D21>(F21+G21),0%,25%))",{"$f":"IF(_xlfn.FORMULATEXT(INDIRECT(M110))=N110,0,1)","v":0},{"$f":"ADDRESS(42,2,1,1,$P$1)","v":"'Concentration Risk'!$B$42"},"BSCR Rating 6",{"$f":"IF(INDIRECT(P110)=Q110,0,1)","v":0},{"$f":"ADDRESS(13,15,1,1,$S$1)","v":"'Geographic Diversification'!$O$13"},"=+'Schedule IVC (EBS)'!K13",{"$f":"IF(_xlfn.FORMULATEXT(INDIRECT(S110))=T110,0,1)","v":0},null,null,null,{"$f":"ADDRESS(31,8,1,1,$Y$1)","v":"'Premium Risk'!$H$31"},0.53551360019381999,{"$f":"IF(INDIRECT(Y110)=Z110,0,1)","v":0},{"$f":"ADDRESS(31,7,1,1,$AB$1)","v":"'Reserve Risk'!$G$31"},0.49410327959272199,{"$f":"IF(INDIRECT(AB110)=AC110,0,1)","v":0}]
[{"$f":"ADDRESS(61,25,1,1,$A$1)","v":"Summary!$Y$61"},"=IF($L$71=0,1/9,X61/$X$65)",{"$f":"IF(_xlfn.FORMULATEXT(INDIRECT(A111))=B111,0,1)","v":0},{"$f":"ADDRESS(64,4,1,1,$D$1)","v":"'Fixed Income Investments'!$D$64"},"='Schedule II (EBS)'!P20+'Schedule IIA (EBS)'!P20",{"$f":"IF(_xlfn.FORMULATEXT(INDIRECT(D111))=E111,0,1)","v":0},null,null,null,null,null,null,{"$f":"ADDRESS(21,9,1,1,$M$1)","v":"'Currency Risk'!$I$21"},"=IF(D21=0,H21*ABS(C21-E21-G21),H21*ABS(D21-F21-G21))",{"$f":"IF(_xlfn.FORMULATEXT(INDIRECT(M111))=N111,0,1)","v":0},{"$f":"ADDRESS(42,4,1,1,$P$1)","v":"'Concentration Risk'!$D$42"},"=SUMIFS('Schedule XXI'!$M$8:$M$57,'Schedule XXI'!$K$8:$K$57,$D$35,'Schedule XXI'!$L$8:$L$57,$B42)",{"$f":"IF(_xlfn.FORMULATEXT(INDIRECT(P111))=Q111,0,1)","v":0},{"$f":"ADDRESS(13,16,1,1,$S$1)","v":"'Geographic Diversification'!$P$13"},"=+'Schedule IVC (EBS)'!L13",{"$f":"IF(_xlfn.FORMULATEXT(INDIRECT(S111))=T111,0,1)","v":0},null,null,null,{"$f":"ADDRESS(31,9,1,1,$Y$1)","v":"'Premium Risk'!$I$31"},"=IF($G$31<0,0,$G$31*$H$31)",{"$f":"IF(_xlfn.FORMULATEXT(INDIRECT(Y111))=Z111,0,1)","v":0},{"$f":"ADDRESS(31,8,1,1,$AB$1)","v":"'Reserve Risk'!$H$31"},"=IF($F$31<0,0,$F$31*$G$31)",{"$f":"IF(_xlfn.FORMULATEXT(INDIRECT(AB111))=AC111,0,1)","v":0}]
[{"$f":"ADDRESS(61,26,1,1,$A$1)","v":"Summary!$Z$61"},"=M65",{"$f":"IF(_xlfn.FORMULATEXT(INDIRECT(A112))=B112,0,1)","v":0},{"$f":"ADDRESS(64,5,1,1,$D$1)","v":"'Fixed Income Investments'!$E$64"},0.35,{"$f":"IF(INDIRECT(D112)=E112,0,1)","v":0},null,null,null,null,null,null,{"$f":"ADDRESS(22,2,1,1,$M$1)","v":"'Currency Risk'!$B$22"},"='Schedule XX'!B22",{"$f":"IF(_xlfn.FORMULATEXT(INDIRECT(M112))=N112,0,1)","v":0},{"$f":"ADDRESS(42,5,1,1,$P$1)","v":"'Concentration Risk'!$E$42"},"=+'Fixed Income Investments'!E32",{"$f":"IF(_xlfn.FORMULATEXT(INDIRECT(P112))=Q112,0,1)","v":0},{"$f":"ADDRESS(13,17,1,1,$S$1)","v":"'Geographic Diversification'!$Q$13"},"=+'Schedule IVC (EBS)'!M13",{"$f":"IF(_xlfn.FORMULATEXT(INDIRECT(S112))=T112,0,1)","v":0},null,null,null,{"$f":"ADDRESS(32,5,1,1,$Y$1)","v":"'Premium Risk'!$E$32"},"=+'Schedule IVA (EBS)'!M32",{"$f":"IF(_xlfn.FORMULATEXT(INDIRECT(Y112))=Z112,0,1)","v":0},{"$f":"ADDRESS(32,4,1,1,$AB$1)","v":"'Reserve Risk'!$D$32"},"=+'Schedule III (EBS)'!D31",{"$f":"IF(_xlfn.FORMULATEXT(INDIRECT(AB112))=AC112,0,1)","v":0}]
[{"$f":"ADDRESS(61,27,1,1,$A$1)","v":"Summary!$AA$61"},"=IF($N$71=0,1/9,Z61/$Z$65)",{"$f":"IF(_xlfn.FORMULATEXT(INDIRECT(A113))=B113,0,1)","v":0},{"$f":"ADDRESS(64,6,1,1,$D$1)","v":"'Fixed Income Investments'!$F$64"},"=IF(D64<0,0,D64*E64)",{"$f":"IF(_xlfn.FORMULATEXT(INDIRECT(D113))=E113,0,1)","v":0},null,null,null,null,null,null,{"$f":"ADDRESS(22,3,1,1,$M$1)","v":"'Currency Risk'!$C$22"},"='Schedule XX'!L22",{"$f":"IF(_xlfn.FORMULATEXT(INDIRECT(M113))=N113,0,1)","v":0},{"$f":"ADDRESS(42,6,1,1,$P$1)","v":"'Concentration Risk'!$F$42"},"=MAX(0,(D42*E42))",{"$f":"IF(_xlfn.FORMULATEXT(INDIRECT(P113))=Q113,0,1)","v":0},{"$f":"ADDRESS(13,18,1,1,$S$1)","v":"'Geographic Diversification'!$R$13"},"=+'Schedule IVC (EBS)'!N13",{"$f":"IF(_xlfn.FORMULATEXT(INDIRECT(S113))=T113,0,1)","v":0},null,null,null,{"$f":"ADDRESS(32,6,1,1,$Y$1)","v":"'Premium Risk'!$F$32"},"='Schedule IVA (EBS)'!Q32",{"$f":"IF(_xlfn.FORMULATEXT(INDIRECT(Y113))=Z113,0,1)","v":0},{"$f":"ADDRESS(32,5,1,1,$AB$1)","v":"'Reserve Risk'!$E$32"},"=+'Schedule III (EBS)'!F31",{"$f":"IF(_xlfn.FORMULATEXT(INDIRECT(AB113))=AC113,0,1)","v":0}]
[{"$f":"ADDRESS(61,29,1,1,$A$1)","v":"Summary!$AC$61"},"=(SUM(AA$55:AA61)/AA$65)",{"$f":"IF(_xlfn.FORMULATEXT(INDIRECT(A114))=B114,0,1)","v":0},{"$f":"ADDRESS(66,4,1,1,$D$1)","v":"'Fixed Income Investments'!$D$66"},"=SUM(D56:D64)",{"$f":"IF(_xlfn.FORMULATEXT(INDIRECT(D114))=E114,0,1)","v":0},null,null,null,null,null,null,{"$f":"ADDRESS(22,4,1,1,$M$1)","v":"'Currency Risk'!$D$22"},"='Schedule XX'!N22",{"$f":"IF(_xlfn.FORMULATEXT(INDIRECT(M114))=N114,0,1)","v":0},{"$f":"ADDRESS(43,2,1,1,$P$1)","v":"'Concentration Risk'!$B$43"},"BSCR Rating 7",{"$f":"IF(INDIRECT(P114)=Q114,0,1)","v":0},{"$f":"ADDRESS(13,19,1,1,$S$1)","v":"'Geographic Diversification'!$S$13"},"=+'Schedule IVC (EBS)'!O13",{"$f":"IF(_xlfn.FORMULATEXT(INDIRECT(S114))=T114,0,1)","v":0},null,null,null,{"$f":"ADDRESS(32,7,1,1,$Y$1)","v":"'Premium Risk'!$G$32"},"=+'Geographic Diversification'!H30",{"$f":"IF(_xlfn.FORMULATEXT(INDIRECT(Y114))=Z114,0,1)","v":0},{"$f":"ADDRESS(32,6,1,1,$AB$1)","v":"'Reserve Risk'!$F$32"},"=+'Geographic Diversification'!H61",{"$f":"IF(_xlfn.FORMULATEXT(INDIRECT(AB114))=AC114,0,1)","v":0}]
[{"$f":"ADDRESS(61,30,1,1,$A$1)","v":"Summary!$AD$61"},"=IF(ISERROR(AVERAGE(AC57:AC61)),0,AVERAGE(AC57:AC61))",{"$f":"IF(_xlfn.FORMULATEXT(INDIRECT(A115))=B115,0,1)","v":0},{"$f":"ADDRESS(66,6,1,1,$D$1)","v":"'Fixed Income Investments'!$F$66"},"=IF(SUM(F56:F64)>=0,SUM(F56:F64),0)",{"$f":"IF(_xlfn.FORMULATEXT(INDIRECT(D115))=E115,0,1)","v":0},null,null,null,null,null,null,{"$f":"ADDRESS(22,5,1,1,$M$1)","v":"'Currency Risk'!$E$22"},"='Schedule XX'!P22",{"$f":"IF(_xlfn.FORMULATEXT(INDIRECT(M115))=N115,0,1)","v":0},{"$f":"ADDRESS(43,4,1,1,$P$1)","v":"'Concentration Risk'!$D$43"},"=SUMIFS('Schedule XXI'!$M$8:$M$57,'Schedule XXI'!$K$8:$K$57,$D$35,'Schedule XXI'!$L$8:$L$57,$B43)",{"$f":"IF(_xlfn.FORMULATEXT(INDIRECT(P115))=Q115,0,1)","v":0},{"$f":"ADDRESS(13,20,1,1,$S$1)","v":"'Geographic Diversification'!$T$13"},"=+'Schedule IVC (EBS)'!P13",{"$f":"IF(_xlfn.FORMULATEXT(INDIRECT(S115))=T115,0,1)","v":0},null,null,null,{"$f":"ADDRESS(32,8,1,1,$Y$1)","v":"'Premium Risk'!$H$32"},0.508030898436173,{"$f":"IF(INDIRECT(Y115)=Z115,0,1)","v":0},{"$f":"ADDRESS(32,7,1,1,$AB$1)","v":"'Reserve Risk'!$G$32"},0.478452065307162,{"$f":"IF(INDIRECT(AB115)=AC115,0,1)","v":0}]
[{"$f":"ADDRESS(61,32,1,1,$A$1)","v":"Summary!$AF$61"},"=IF(AO65=\"\",IF(Test_Statistic<$AJ$71,AI61,IF(Test_Statistic<$AL$71,AK61,AM61)),AO65)",{"$f":"IF(_xlfn.FORMULATEXT(INDIRECT(A116))=B116,0,1)","v":0},{"$f":"ADDRESS(70,4,1,1,$D$1)","v":"'Fixed Income Investments'!$D$70"},"='Schedule II (EBS)'!D57+'Schedule IIA (EBS)'!D57",{"$f":"IF(_xlfn.FORMULATEXT(INDIRECT(D116))=E116,0,1)","v":0},null,null,null,null,null,null,{"$f":"ADDRESS(22,6,1,1,$M$1)","v":"'Currency Risk'!$F$22"},"='Schedule XX'!R22",{"$f":"IF(_xlfn.FORMULATEXT(INDIRECT(M116))=N116,0,1)","v":0},{"$f":"ADDRESS(43,5,1,1,$P$1)","v":"'Concentration Risk'!$E$43"},"=+'Fixed Income Investments'!E33",{"$f":"IF(_xlfn.FORMULATEXT(INDIRECT(P116))=Q116,0,1)","v":0},{"$f":"ADDRESS(13,21,1,1,$S$1)","v":"'Geographic Diversification'!$U$13"},"=+'Schedule IVC (EBS)'!Q13",{"$f":"IF(_xlfn.FORMULATEXT(INDIRECT(S116))=T116,0,1)","v":0},null,null,null,{"$f":"ADDRESS(32,9,1,1,$Y$1)","v":"'Premium Risk'!$I$32"},"=IF($G$32<0,0,$G$32*$H$32)",{"$f":"IF(_xlfn.FORMULATEXT(INDIRECT(Y116))=Z116,0,1)","v":0},{"$f":"ADDRESS(32,8,1,1,$AB$1)","v":"'Reserve Risk'!$H$32"},"=IF($F$32<0,0,$F$32*$G$32)",{"$f":"IF(_xlfn.FORMULATEXT(INDIRECT(AB116))=AC116,0,1)","v":0}]
[{"$f":"ADDRESS(61,35,1,1,$A$1)","v":"Summary!$AI$61"},"=IF(AC62>1,250,IF(AC60>1,300,IF(AC60>0.6,260,300)))",{"$f":"IF(_xlfn.FORMULATEXT(INDIRECT(A117))=B117,0,1)","v":0},{"$f":"ADDRESS(70,5,1,1,$D$1)","v":"'Fixed Income Investments'!$E$70"},3.0000000000000001E-3,{"$f":"IF(INDIRECT(D117)=E117,0,1)","v":0},null,null,null,null,null,null,{"$f":"ADDRESS(22,7,1,1,$M$1)","v":"'Currency Risk'!$G$22"},"=IF(F22=0,E22*$G$6,F22*$G$6)",{"$f":"IF(_xlfn.FORMULATEXT(INDIRECT(M117))=N117,0,1)","v":0},{"$f":"ADDRESS(43,6,1,1,$P$1)","v":"'Concentration Risk'!$F$43"},"=MAX(0,(D43*E43))",{"$f":"IF(_xlfn.FORMULATEXT(INDIRECT(P117))=Q117,0,1)","v":0},{"$f":"ADDRESS(13,22,1,1,$S$1)","v":"'Geographic Diversification'!$V$13"},"=+'Schedule IVC (EBS)'!R13",{"$f":"IF(_xlfn.FORMULATEXT(INDIRECT(S117))=T117,0,1)","v":0},null,null,null,{"$f":"ADDRESS(33,5,1,1,$Y$1)","v":"'Premium Risk'!$E$33"},"=+'Schedule IVA (EBS)'!M33",{"$f":"IF(_xlfn.FORMULATEXT(INDIRECT(Y117))=Z117,0,1)","v":0},{"$f":"ADDRESS(33,4,1,1,$AB$1)","v":"'Reserve Risk'!$D$33"},"=+'Schedule III (EBS)'!D32",{"$f":"IF(_xlfn.FORMULATEXT(INDIRECT(AB117))=AC117,0,1)","v":0}]
[{"$f":"ADDRESS(61,36,1,1,$A$1)","v":"Summary!$AJ$61"},"=IF(AC60>0.6,185,140)",{"$f":"IF(_xlfn.FORMULATEXT(INDIRECT(A118))=B118,0,1)","v":0},{"$f":"ADDRESS(70,6,1,1,$D$1)","v":"'Fixed Income Investments'!$F$70"},"=IF(D70<0,0,D70*E70)",{"$f":"IF(_xlfn.FORMULATEXT(INDIRECT(D118))=E118,0,1)","v":0},null,null,null,null,null,null,{"$f":"ADDRESS(22,8,1,1,$M$1)","v":"'Currency Risk'!$H$22"},"=IF(D22=0,IF(C22>(E22+G22),0%,25%),IF(D22>(F22+G22),0%,25%))",{"$f":"IF(_xlfn.FORMULATEXT(INDIRECT(M118))=N118,0,1)","v":0},{"$f":"ADDRESS(44,2,1,1,$P$1)","v":"'Concentration Risk'!$B$44"},"BSCR Rating 8",{"$f":"IF(INDIRECT(P118)=Q118,0,1)","v":0},{"$f":"ADDRESS(13,23,1,1,$S$1)","v":"'Geographic Diversification'!$W$13"},"=+'Schedule IVC (EBS)'!S13",{"$f":"IF(_xlfn.FORMULATEXT(INDIRECT(S118))=T118,0,1)","v":0},null,null,null,{"$f":"ADDRESS(33,6,1,1,$Y$1)","v":"'Premium Risk'!$F$33"},"='Schedule IVA (EBS)'!Q33",{"$f":"IF(_xlfn.FORMULATEXT(INDIRECT(Y118))=Z118,0,1)","v":0},{"$f":"ADDRESS(33,5,1,1,$AB$1)","v":"'Reserve Risk'!$E$33"},"=+'Schedule III (EBS)'!F32",{"$f":"IF(_xlfn.FORMULATEXT(INDIRECT(AB118))=AC118,0,1)","v":0}]
[{"$f":"ADDRESS(61,37,1,1,$A$1)","v":"Summary!$AK$61"},"=IF(Test_Statistic_2<0.95,180,120)",{"$f":"IF(_xlfn.FORMULATEXT(INDIRECT(A119))=B119,0,1)","v":0},{"$f":"ADDRESS(71,4,1,1,$D$1)","v":"'Fixed Income Investments'!$D$71"},"='Schedule II (EBS)'!D58+'Schedule IIA (EBS)'!D58",{"$f":"IF(_xlfn.FORMULATEXT(INDIRECT(D119))=E119,0,1)","v":0},null,null,null,null,null,null,{"$f":"ADDRESS(22,9,1,1,$M$1)","v":"'Currency Risk'!$I$22"},"=IF(D22=0,H22*ABS(C22-E22-G22),H22*ABS(D22-F22-G22))",{"$f":"IF(_xlfn.FORMULATEXT(INDIRECT(M119))=N119,0,1)","v":0},{"$f":"ADDRESS(44,4,1,1,$P$1)","v":"'Concentration Risk'!$D$44"},"=SUMIFS('Schedule XXI'!$M$8:$M$57,'Schedule XXI'!$K$8:$K$57,$D$35,'Schedule XXI'!$L$8:$L$57,$B44)",{"$f":"IF(_xlfn.FORMULATEXT(INDIRECT(P119))=Q119,0,1)","v":0},{"$f":"ADDRESS(13,24,1,1,$S$1)","v":"'Geographic Diversification'!$X$13"},"=+'Schedule IVC (EBS)'!T13",{"$f":"IF(_xlfn.FORMULATEXT(INDIRECT(S119))=T119,0,1)","v":0},null,null,null,{"$f":"ADDRESS(33,7,1,1,$Y$1)","v":"'Premium Risk'!$G$33"},"=+'Geographic Diversification'!H31",{"$f":"IF(_xlfn.FORMULATEXT(INDIRECT(Y119))=Z119,0,1)","v":0},{"$f":"ADDRESS(33,6,1,1,$AB$1)","v":"'Reserve Risk'!$F$33"},"=+'Geographic Diversification'!H62",{"$f":"IF(_xlfn.FORMULATEXT(INDIRECT(AB119))=AC119,0,1)","v":0}]
[{"$f":"ADDRESS(61,39,1,1,$A$1)","v":"Summary!$AM$61"},100,{"$f":"IF(INDIRECT(A120)=B120,0,1)","v":0},{"$f":"ADDRESS(71,5,1,1,$D$1)","v":"'Fixed Income Investments'!$E$71"},0.05,{"$f":"IF(INDIRECT(D120)=E120,0,1)","v":0},null,null,null,null,null,null,{"$f":"ADDRESS(23,2,1,1,$M$1)","v":"'Currency Risk'!$B$23"},"='Schedule XX'!B23",{"$f":"IF(_xlfn.FORMULATEXT(INDIRECT(M120))=N120,0,1)","v":0},{"$f":"ADDRESS(44,5,1,1,$P$1)","v":"'Concentration Risk'!$E$44"},"=+'Fixed Income Investments'!E34",{"$f":"IF(_xlfn.FORMULATEXT(INDIRECT(P120))=Q120,0,1)","v":0},{"$f":"ADDRESS(13,25,1,1,$S$1)","v":"'Geographic Diversification'!$Y$13"},"=+'Schedule IVC (EBS)'!U13",{"$f":"IF(_xlfn.FORMULATEXT(INDIRECT(S120))=T120,0,1)","v":0},null,null,null,{"$f":"ADDRESS(33,8,1,1,$Y$1)","v":"'Premium Risk'!$H$33"},0.27200000000000002,{"$f":"IF(INDIRECT(Y120)=Z120,0,1)","v":0},{"$f":"ADDRESS(33,7,1,1,$AB$1)","v":"'Reserve Risk'!$G$33"},0.24099999999999999,{"$f":"IF(INDIRECT(AB120)=AC120,0,1)","v":0}]
[{"$f":"ADDRESS(62,3,1,1,$A$1)","v":"Summary!$C$62"},"Credit Risk",{"$f":"IF(INDIRECT(A121)=B121,0,1)","v":0},{"$f":"ADDRESS(71,6,1,1,$D$1)","v":"'Fixed Income Investments'!$F$71"},"=IF(D71<0,0,D71*E71)",{"$f":"IF(_xlfn.FORMULATEXT(INDIRECT(D121))=E121,0,1)","v":0},null,null,null,null,null,null,{"$f":"ADDRESS(23,3,1,1,$M$1)","v":"'Currency Risk'!$C$23"},"='Schedule XX'!L23",{"$f":"IF(_xlfn.FORMULATEXT(INDIRECT(M121))=N121,0,1)","v":0},{"$f":"ADDRESS(44,6,1,1,$P$1)","v":"'Concentration Risk'!$F$44"},"=MAX(0,(D44*E44))",{"$f":"IF(_xlfn.FORMULATEXT(INDIRECT(P121))=Q121,0,1)","v":0},{"$f":"ADDRESS(13,26,1,1,$S$1)","v":"'Geographic Diversification'!$Z$13"},"=+'Schedule IVC (EBS)'!V13",{"$f":"IF(_xlfn.FORMULATEXT(INDIRECT(S121))=T121,0,1)","v":0},null,null,null,{"$f":"ADDRESS(33,9,1,1,$Y$1)","v":"'Premium Risk'!$I$33"},"=IF($G$33<0,0,$G$33*$H$33)",{"$f":"IF(_xlfn.FORMULATEXT(INDIRECT(Y121))=Z121,0,1)","v":0},{"$f":"ADDRESS(33,8,1,1,$AB$1)","v":"'Reserve Risk'!$H$33"},"=IF($F$33<0,0,$F$33*$G$33)",{"$f":"IF(_xlfn.FORMULATEXT(INDIRECT(AB121))=AC121,0,1)","v":0}]
[{"$f":"ADDRESS(62,7,1,1,$A$1)","v":"Summary!$G$62"},"=ROUND('Credit Risk'!F41,$N$163)",{"$f":"IF(_xlfn.FORMULATEXT(INDIRECT(A122))=B122,0,1)","v":0},{"$f":"ADDRESS(72,4,1,1,$D$1)","v":"'Fixed Income Investments'!$D$72"},"='Schedule II (EBS)'!D59+'Schedule IIA (EBS)'!D59",{"$f":"IF(_xlfn.FORMULATEXT(INDIRECT(D122))=E122,0,1)","v":0},null,null,null,null,null,null,{"$f":"ADDRESS(23,4,1,1,$M$1)","v":"'Currency Risk'!$D$23"},"='Schedule XX'!N23",{"$f":"IF(_xlfn.FORMULATEXT(INDIRECT(M122))=N122,0,1)","v":0},{"$f":"ADDRESS(46,4,1,1,$P$1)","v":"'Concentration Risk'!$D$46"},"=SUM(D35:D44)",{"$f":"IF(_xlfn.FORMULATEXT(INDIRECT(P122))=Q122,0,1)","v":0},{"$f":"ADDRESS(14,4,1,1,$S$1)","v":"'Geographic Diversification'!$D$14"},"=SUM(I14:Z14)",{"$f":"IF(_xlfn.FORMULATEXT(INDIRECT(S122))=T122,0,1)","v":0},null,null,null,{"$f":"ADDRESS(34,5,1,1,$Y$1)","v":"'Premium Risk'!$E$34"},"=+'Schedule IVA (EBS)'!M34",{"$f":"IF(_xlfn.FORMULATEXT(INDIRECT(Y122))=Z122,0,1)","v":0},{"$f":"ADDRESS(34,4,1,1,$AB$1)","v":"'Reserve Risk'!$D$34"},"=+'Schedule III (EBS)'!D33",{"$f":"IF(_xlfn.FORMULATEXT(INDIRECT(AB122))=AC122,0,1)","v":0}]
[{"$f":"ADDRESS(62,11,1,1,$A$1)","v":"Summary!$K$62"},"=ROUND('Credit Risk (Revised)'!H84,$N$163)",{"$f":"IF(_xlfn.FORMULATEXT(INDIRECT(A123))=B123,0,1)","v":0},{"$f":"ADDRESS(72,5,1,1,$D$1)","v":"'Fixed Income Investments'!$E$72"},1.4999999999999999E-2,{"$f":"IF(INDIRECT(D123)=E123,0,1)","v":0},null,null,null,null,null,null,{"$f":"ADDRESS(23,5,1,1,$M$1)","v":"'Currency Risk'!$E$23"},"='Schedule XX'!P23",{"$f":"IF(_xlfn.FORMULATEXT(INDIRECT(M123))=N123,0,1)","v":0},{"$f":"ADDRESS(46,6,1,1,$P$1)","v":"'Concentration Risk'!$F$46"},"=SUM(F35:F44)",{"$f":"IF(_xlfn.FORMULATEXT(INDIRECT(P123))=Q123,0,1)","v":0},{"$f":"ADDRESS(14,5,1,1,$S$1)","v":"'Geographic Diversification'!$E$14"},"=SUMSQ(I14:Z14)",{"$f":"IF(_xlfn.FORMULATEXT(INDIRECT(S123))=T123,0,1)","v":0},null,null,null,{"$f":"ADDRESS(34,6,1,1,$Y$1)","v":"'Premium Risk'!$F$34"},"='Schedule IVA (EBS)'!Q34",{"$f":"IF(_xlfn.FORMULATEXT(INDIRECT(Y123))=Z123,0,1)","v":0},{"$f":"ADDRESS(34,5,1,1,$AB$1)","v":"'Reserve Risk'!$E$34"},"=+'Schedule III (EBS)'!F33",{"$f":"IF(_xlfn.FORMULATEXT(INDIRECT(AB123))=AC123,0,1)","v":0}]
[{"$f":"ADDRESS(62,13,1,1,$A$1)","v":"Summary!$M$62"},"=ROUND('Credit Risk (Revised)'!H84,$N$163)",{"$f":"IF(_xlfn.FORMULATEXT(INDIRECT(A124))=B124,0,1)","v":0},{"$f":"ADDRESS(72,6,1,1,$D$1)","v":"'Fixed Income Investments'!$F$72"},"=IF(D72<0,0,D72*E72)",{"$f":"IF(_xlfn.FORMULATEXT(INDIRECT(D124))=E124,0,1)","v":0},null,null,null,null,null,null,{"$f":"ADDRESS(23,6,1,1,$M$1)","v":"'Currency Risk'!$F$23"},"='Schedule XX'!R23",{"$f":"IF(_xlfn.FORMULATEXT(INDIRECT(M124))=N124,0,1)","v":0},{"$f":"ADDRESS(48,4,1,1,$P$1)","v":"'Concentration Risk'!$D$48"},"Commercial Mortgage-Backed Securities",{"$f":"IF(INDIRECT(P124)=Q124,0,1)","v":0},{"$f":"ADDRESS(14,6,1,1,$S$1)","v":"'Geographic Diversification'!$F$14"},"=(IF(D14>0,E14/D14^2,1))",{"$f":"IF(_xlfn.FORMULATEXT(INDIRECT(S124))=T124,0,1)","v":0},null,null,null,{"$f":"ADDRESS(34,7,1,1,$Y$1)","v":"'Premium Risk'!$G$34"},"=+'Geographic Diversification'!H32",{"$f":"IF(_xlfn.FORMULATEXT(INDIRECT(Y124))=Z124,0,1)","v":0},{"$f":"ADDRESS(34,6,1,1,$AB$1)","v":"'Reserve Risk'!$F$34"},"=+'Geographic Diversification'!H63",{"$f":"IF(_xlfn.FORMULATEXT(INDIRECT(AB124))=AC124,0,1)","v":0}]
[{"$f":"ADDRESS(62,20,1,1,$A$1)","v":"Summary!$T$62"},"=C66",{"$f":"IF(_xlfn.FORMULATEXT(INDIRECT(A125))=B125,0,1)","v":0},{"$f":"ADDRESS(73,4,1,1,$D$1)","v":"'Fixed Income Investments'!$D$73"},"='Schedule II (EBS)'!D60+'Schedule IIA (EBS)'!D60",{"$f":"IF(_xlfn.FORMULATEXT(INDIRECT(D125))=E125,0,1)","v":0},null,null,null,null,null,null,{"$f":"ADDRESS(23,7,1,1,$M$1)","v":"'Currency Risk'!$G$23"},"=IF(F23=0,E23*$G$6,F23*$G$6)",{"$f":"IF(_xlfn.FORMULATEXT(INDIRECT(M125))=N125,0,1)","v":0},{"$f":"ADDRESS(49,2,1,1,$P$1)","v":"'Concentration Risk'!$B$49"},"BSCR Rating 0",{"$f":"IF(INDIRECT(P125)=Q125,0,1)","v":0},{"$f":"ADDRESS(14,7,1,1,$S$1)","v":"'Geographic Diversification'!$G$14"},"=D14*(0.75+0.25*F14)",{"$f":"IF(_xlfn.FORMULATEXT(INDIRECT(S125))=T125,0,1)","v":0},null,null,null,{"$f":"ADDRESS(34,8,1,1,$Y$1)","v":"'Premium Risk'!$H$34"},0.15,{"$f":"IF(INDIRECT(Y125)=Z125,0,1)","v":0},{"$f":"ADDRESS(34,7,1,1,$AB$1)","v":"'Reserve Risk'!$G$34"},0.125,{"$f":"IF(INDIRECT(AB125)=AC125,0,1)","v":0}]
[{"$f":"ADDRESS(62,24,1,1,$A$1)","v":"Summary!$X$62"},"=G66",{"$f":"IF(_xlfn.FORMULATEXT(INDIRECT(A126))=B126,0,1)","v":0},{"$f":"ADDRESS(73,5,1,1,$D$1)","v":"'Fixed Income Investments'!$E$73"},0.25,{"$f":"IF(INDIRECT(D126)=E126,0,1)","v":0},null,null,null,null,null,null,{"$f":"ADDRESS(23,8,1,1,$M$1)","v":"'Currency Risk'!$H$23"},"=IF(D23=0,IF(C23>(E23+G23),0%,25%),IF(D23>(F23+G23),0%,25%))",{"$f":"IF(_xlfn.FORMULATEXT(INDIRECT(M126))=N126,0,1)","v":0},{"$f":"ADDRESS(49,4,1,1,$P$1)","v":"'Concentration Risk'!$D$49"},"=SUMIFS('Schedule XXI'!$M$8:$M$57,'Schedule XXI'!$K$8:$K$57,$D$48,'Schedule XXI'!$L$8:$L$57,$B49)",{"$f":"IF(_xlfn.FORMULATEXT(INDIRECT(P126))=Q126,0,1)","v":0},{"$f":"ADDRESS(14,8,1,1,$S$1)","v":"'Geographic Diversification'!$H$14"},"=IF('Schedule IVC (EBS)'!AB14=\"True\",G14,'Schedule IVA (EBS)'!Q16)",{"$f":"IF(_xlfn.FORMULATEXT(INDIRECT(S126))=T126,0,1)","v":0},null,null,null,{"$f":"ADDRESS(34,9,1,1,$Y$1)","v":"'Premium Risk'!$I$34"},"=IF($G$34<0,0,$G$34*$H$34)",{"$f":"IF(_xlfn.FORMULATEXT(INDIRECT(Y126))=Z126,0,1)","v":0},{"$f":"ADDRESS(34,8,1,1,$AB$1)","v":"'Reserve Risk'!$H$34"},"=IF($F$34<0,0,$F$34*$G$34)",{"$f":"IF(_xlfn.FORMULATEXT(INDIRECT(AB126))=AC126,0,1)","v":0}]
[{"$f":"ADDRESS(62,25,1,1,$A$1)","v":"Summary!$Y$62"},"=IF($L$71=0,1/9,X62/$X$65)",{"$f":"IF(_xlfn.FORMULATEXT(INDIRECT(A127))=B127,0,1)","v":0},{"$f":"ADDRESS(73,6,1,1,$D$1)","v":"'Fixed Income Investments'!$F$73"},"=IF(D73<0,0,D73*E73)",{"$f":"IF(_xlfn.FORMULATEXT(INDIRECT(D127))=E127,0,1)","v":0},null,null,null,null,null,null,{"$f":"ADDRESS(23,9,1,1,$M$1)","v":"'Currency Risk'!$I$23"},"=IF(D23=0,H23*ABS(C23-E23-G23),H23*ABS(D23-F23-G23))",{"$f":"IF(_xlfn.FORMULATEXT(INDIRECT(M127))=N127,0,1)","v":0},{"$f":"ADDRESS(49,5,1,1,$P$1)","v":"'Concentration Risk'!$E$49"},0,{"$f":"IF(INDIRECT(P127)=Q127,0,1)","v":0},{"$f":"ADDRESS(14,9,1,1,$S$1)","v":"'Geographic Diversification'!$I$14"},"=+'Schedule IVC (EBS)'!E14",{"$f":"IF(_xlfn.FORMULATEXT(INDIRECT(S127))=T127,0,1)","v":0},null,null,null,{"$f":"ADDRESS(36,5,1,1,$Y$1)","v":"'Premium Risk'!$E$36"},"=SUM(E11:E34)",{"$f":"IF(_xlfn.FORMULATEXT(INDIRECT(Y127))=Z127,0,1)","v":0},{"$f":"ADDRESS(36,4,1,1,$AB$1)","v":"'Reserve Risk'!$D$36"},"=SUM(D11:D34)",{"$f":"IF(_xlfn.FORMULATEXT(INDIRECT(AB127))=AC127,0,1)","v":0}]
[{"$f":"ADDRESS(62,26,1,1,$A$1)","v":"Summary!$Z$62"},"=M66",{"$f":"IF(_xlfn.FORMULATEXT(INDIRECT(A128))=B128,0,1)","v":0},{"$f":"ADDRESS(75,4,1,1,$D$1)","v":"'Fixed Income Investments'!$D$75"},"=SUM(D70:D73)",{"$f":"IF(_xlfn.FORMULATEXT(INDIRECT(D128))=E128,0,1)","v":0},null,null,null,null,null,null,{"$f":"ADDRESS(24,3,1,1,$M$1)","v":"'Currency Risk'!$C$24"},"=SUM(C9:C23)",{"$f":"IF(_xlfn.FORMULATEXT(INDIRECT(M128))=N128,0,1)","v":0},{"$f":"ADDRESS(49,6,1,1,$P$1)","v":"'Concentration Risk'!$F$49"},"=MAX(0,(D49*E49))",{"$f":"IF(_xlfn.FORMULATEXT(INDIRECT(P128))=Q128,0,1)","v":0},{"$f":"ADDRESS(14,10,1,1,$S$1)","v":"'Geographic Diversification'!$J$14"},"=+'Schedule IVC (EBS)'!F14",{"$f":"IF(_xlfn.FORMULATEXT(INDIRECT(S128))=T128,0,1)","v":0},null,null,null,{"$f":"ADDRESS(36,6,1,1,$Y$1)","v":"'Premium Risk'!$F$36"},"=SUM(F11:F34)",{"$f":"IF(_xlfn.FORMULATEXT(INDIRECT(Y128))=Z128,0,1)","v":0},{"$f":"ADDRESS(36,5,1,1,$AB$1)","v":"'Reserve Risk'!$E$36"},"=SUM(E11:E34)",{"$f":"IF(_xlfn.FORMULATEXT(INDIRECT(AB128))=AC128,0,1)","v":0}]
[{"$f":"ADDRESS(62,27,1,1,$A$1)","v":"Summary!$AA$62"},"=IF($N$71=0,1/9,Z62/$Z$65)",{"$f":"IF(_xlfn.FORMULATEXT(INDIRECT(A129))=B129,0,1)","v":0},{"$f":"ADDRESS(75,6,1,1,$D$1)","v":"'Fixed Income Investments'!$F$75"},"=IF(SUM(F70:F73)>=0,SUM(F70:F73),0)",{"$f":"IF(_xlfn.FORMULATEXT(INDIRECT(D129))=E129,0,1)","v":0},null,null,null,null,null,null,{"$f":"ADDRESS(24,4,1,1,$M$1)","v":"'Currency Risk'!$D$24"},"=SUM(D9:D23)",{"$f":"IF(_xlfn.FORMULATEXT(INDIRECT(M129))=N129,0,1)","v":0},{"$f":"ADDRESS(50,2,1,1,$P$1)","v":"'Concentration Risk'!$B$50"},"BSCR Rating 1",{"$f":"IF(INDIRECT(P129)=Q129,0,1)","v":0},{"$f":"ADDRESS(14,11,1,1,$S$1)","v":"'Geographic Diversification'!$K$14"},"=+'Schedule IVC (EBS)'!G14",{"$f":"IF(_xlfn.FORMULATEXT(INDIRECT(S129))=T129,0,1)","v":0},null,null,null,{"$f":"ADDRESS(36,7,1,1,$Y$1)","v":"'Premium Risk'!$G$36"},"=SUM(G11:G34)",{"$f":"IF(_xlfn.FORMULATEXT(INDIRECT(Y129))=Z129,0,1)","v":0},{"$f":"ADDRESS(36,6,1,1,$AB$1)","v":"'Reserve Risk'!$F$36"},"=SUM(F11:F34)",{"$f":"IF(_xlfn.FORMULATEXT(INDIRECT(AB129))=AC129,0,1)","v":0}]
[{"$f":"ADDRESS(62,29,1,1,$A$1)","v":"Summary!$AC$62"},"=(SUM(AA$55:AA62)/AA$65)",{"$f":"IF(_xlfn.FORMULATEXT(INDIRECT(A130))=B130,0,1)","v":0},{"$f":"ADDRESS(79,4,1,1,$D$1)","v":"'Fixed Income Investments'!$D$79"},"='Form 1EBS'!F52",{"$f":"IF(_xlfn.FORMULATEXT(INDIRECT(D130))=E130,0,1)","v":0},null,null,null,null,null,null,{"$f":"ADDRESS(24,5,1,1,$M$1)","v":"'Currency Risk'!$E$24"},"=SUM(E9:E23)",{"$f":"IF(_xlfn.FORMULATEXT(INDIRECT(M130))=N130,0,1)","v":0},{"$f":"ADDRESS(50,4,1,1,$P$1)","v":"'Concentration Risk'!$D$50"},"=SUMIFS('Schedule XXI'!$M$8:$M$57,'Schedule XXI'!$K$8:$K$57,$D$48,'Schedule XXI'!$L$8:$L$57,$B50)",{"$f":"IF(_xlfn.FORMULATEXT(INDIRECT(P130))=Q130,0,1)","v":0},{"$f":"ADDRESS(14,12,1,1,$S$1)","v":"'Geographic Diversification'!$L$14"},"=+'Schedule IVC (EBS)'!H14",{"$f":"IF(_xlfn.FORMULATEXT(INDIRECT(S130))=T130,0,1)","v":0},null,null,null,{"$f":"ADDRESS(36,9,1,1,$Y$1)","v":"'Premium Risk'!$I$36"},"=SUM(I11:I35)",{"$f":"IF(_xlfn.FORMULATEXT(INDIRECT(Y130))=Z130,0,1)","v":0},{"$f":"ADDRESS(36,8,1,1,$AB$1)","v":"'Reserve Risk'!$H$36"},"=SUM(H11:H35)",{"$f":"IF(_xlfn.FORMULATEXT(INDIRECT(AB130))=AC130,0,1)","v":0}]
[{"$f":"ADDRESS(62,30,1,1,$A$1)","v":"Summary!$AD$62"},"=IF(ISERROR(AVERAGE(AC61:AC62)),0,AVERAGE(AC61:AC62))",{"$f":"IF(_xlfn.FORMULATEXT(INDIRECT(A131))=B131,0,1)","v":0},{"$f":"ADDRESS(79,5,1,1,$D$1)","v":"'Fixed Income Investments'!$E$79"},0.05,{"$f":"IF(INDIRECT(D131)=E131,0,1)","v":0},null,null,null,null,null,null,{"$f":"ADDRESS(24,6,1,1,$M$1)","v":"'Currency Risk'!$F$24"},"=SUM(F9:F23)",{"$f":"IF(_xlfn.FORMULATEXT(INDIRECT(M131))=N131,0,1)","v":0},{"$f":"ADDRESS(50,5,1,1,$P$1)","v":"'Concentration Risk'!$E$50"},"=+'Fixed Income Investments'!E41",{"$f":"IF(_xlfn.FORMULATEXT(INDIRECT(P131))=Q131,0,1)","v":0},{"$f":"ADDRESS(14,13,1,1,$S$1)","v":"'Geographic Diversification'!$M$14"},"=+'Schedule IVC (EBS)'!I14",{"$f":"IF(_xlfn.FORMULATEXT(INDIRECT(S131))=T131,0,1)","v":0},null,null,null,{"$f":"ADDRESS(40,9,1,1,$Y$1)","v":"'Premium Risk'!$I$40"},"=MAX(G12:G34)",{"$f":"IF(_xlfn.FORMULATEXT(INDIRECT(Y131))=Z131,0,1)","v":0},{"$f":"ADDRESS(40,8,1,1,$AB$1)","v":"'Reserve Risk'!$H$40"},"=MAX(F11:F34)",{"$f":"IF(_xlfn.FORMULATEXT(INDIRECT(AB131))=AC131,0,1)","v":0}]
[{"$f":"ADDRESS(62,32,1,1,$A$1)","v":"Summary!$AF$62"},"=IF(AO66=\"\",IF(Test_Statistic<$AJ$71,AI62,IF(Test_Statistic<$AL$71,AK62,AM62)),AO66)",{"$f":"IF(_xlfn.FORMULATEXT(INDIRECT(A132))=B132,0,1)","v":0},{"$f":"ADDRESS(79,6,1,1,$D$1)","v":"'Fixed Income Investments'!$F$79"},"=IF($D$79<0,0,$D$79*$E$79)",{"$f":"IF(_xlfn.FORMULATEXT(INDIRECT(D132))=E132,0,1)","v":0},null,null,null,null,null,null,{"$f":"ADDRESS(25,3,1,1,$M$1)","v":"'Currency Risk'!$C$25"},"='Form 1EBS'!F90",{"$f":"IF(_xlfn.FORMULATEXT(INDIRECT(M132))=N132,0,1)","v":0},{"$f":"ADDRESS(50,6,1,1,$P$1)","v":"'Concentration Risk'!$F$50"},"=MAX(0,(D50*E50))",{"$f":"IF(_xlfn.FORMULATEXT(INDIRECT(P132))=Q132,0,1)","v":0},{"$f":"ADDRESS(14,14,1,1,$S$1)","v":"'Geographic Diversification'!$N$14"},"=+'Schedule IVC (EBS)'!J14",{"$f":"IF(_xlfn.FORMULATEXT(INDIRECT(S132))=T132,0,1)","v":0},null,null,null,{"$f":"ADDRESS(41,9,1,1,$Y$1)","v":"'Premium Risk'!$I$41"},"=G36-G11",{"$f":"IF(_xlfn.FORMULATEXT(INDIRECT(Y132))=Z132,0,1)","v":0},{"$f":"ADDRESS(41,8,1,1,$AB$1)","v":"'Reserve Risk'!$H$41"},"=F36",{"$f":"IF(_xlfn.FORMULATEXT(INDIRECT(AB132))=AC132,0,1)","v":0}]
[{"$f":"ADDRESS(62,35,1,1,$A$1)","v":"Summary!$AI$62"},"=IF(AC62>1,50,IF(AC60>0.6,120,260))",{"$f":"IF(_xlfn.FORMULATEXT(INDIRECT(A133))=B133,0,1)","v":0},{"$f":"ADDRESS(83,4,1,1,$D$1)","v":"'Fixed Income Investments'!$D$83"},"=+'Schedule XIX'!H83",{"$f":"IF(_xlfn.FORMULATEXT(INDIRECT(D133))=E133,0,1)","v":0},null,null,null,null,null,null,{"$f":"ADDRESS(25,5,1,1,$M$1)","v":"'Currency Risk'!$E$25"},"=+'Form 1EBS'!F163",{"$f":"IF(_xlfn.FORMULATEXT(INDIRECT(M133))=N133,0,1)","v":0},{"$f":"ADDRESS(51,2,1,1,$P$1)","v":"'Concentration Risk'!$B$51"},"BSCR Rating 2",{"$f":"IF(INDIRECT(P133)=Q133,0,1)","v":0},{"$f":"ADDRESS(14,15,1,1,$S$1)","v":"'Geographic Diversification'!$O$14"},"=+'Schedule IVC (EBS)'!K14",{"$f":"IF(_xlfn.FORMULATEXT(INDIRECT(S133))=T133,0,1)","v":0},null,null,null,{"$f":"ADDRESS(42,9,1,1,$Y$1)","v":"'Premium Risk'!$I$42"},"=IF(I41=0,0,I40/I41)",{"$f":"IF(_xlfn.FORMULATEXT(INDIRECT(Y133))=Z133,0,1)","v":0},{"$f":"ADDRESS(42,8,1,1,$AB$1)","v":"'Reserve Risk'!$H$42"},"=IF(H41=0,0,H40/H41)",{"$f":"IF(_xlfn.FORMULATEXT(INDIRECT(AB133))=AC133,0,1)","v":0}]
[{"$f":"ADDRESS(62,36,1,1,$A$1)","v":"Summary!$AJ$62"},"=IF(AC62>1,90,IF(AC60>0.6,200,185))",{"$f":"IF(_xlfn.FORMULATEXT(INDIRECT(A134))=B134,0,1)","v":0},{"$f":"ADDRESS(83,5,1,1,$D$1)","v":"'Fixed Income Investments'!$E$83"},0,{"$f":"IF(INDIRECT(D134)=E134,0,1)","v":0},null,null,null,null,null,null,{"$f":"ADDRESS(26,3,1,1,$M$1)","v":"'Currency Risk'!$C$26"},"=IF(C24=0,0,C24/C25)",{"$f":"IF(_xlfn.FORMULATEXT(INDIRECT(M134))=N134,0,1)","v":0},{"$f":"ADDRESS(51,4,1,1,$P$1)","v":"'Concentration Risk'!$D$51"},"=SUMIFS('Schedule XXI'!$M$8:$M$57,'Schedule XXI'!$K$8:$K$57,$D$48,'Schedule XXI'!$L$8:$L$57,$B51)",{"$f":"IF(_xlfn.FORMULATEXT(INDIRECT(P134))=Q134,0,1)","v":0},{"$f":"ADDRESS(14,16,1,1,$S$1)","v":"'Geographic Diversification'!$P$14"},"=+'Schedule IVC (EBS)'!L14",{"$f":"IF(_xlfn.FORMULATEXT(INDIRECT(S134))=T134,0,1)","v":0},null,null,null,{"$f":"ADDRESS(43,9,1,1,$Y$1)","v":"'Premium Risk'!$I$43"},"='Reserve Risk'!H43",{"$f":"IF(_xlfn.FORMULATEXT(INDIRECT(Y134))=Z134,0,1)","v":0},{"$f":"ADDRESS(43,8,1,1,$AB$1)","v":"'Reserve Risk'!$H$43"},0.4,{"$f":"IF(INDIRECT(AB134)=AC134,0,1)","v":0}]
[{"$f":"ADDRESS(62,37,1,1,$A$1)","v":"Summary!$AK$62"},50,{"$f":"IF(INDIRECT(A135)=B135,0,1)","v":0},{"$f":"ADDRESS(83,6,1,1,$D$1)","v":"'Fixed Income Investments'!$F$83"},"=IF($D$83<0,0,$D$83*$E$83)",{"$f":"IF(_xlfn.FORMULATEXT(INDIRECT(D135))=E135,0,1)","v":0},null,null,null,null,null,null,{"$f":"ADDRESS(26,5,1,1,$M$1)","v":"'Currency Risk'!$E$26"},"=IF(E24=0,0,E24/E25)",{"$f":"IF(_xlfn.FORMULATEXT(INDIRECT(M135))=N135,0,1)","v":0},{"$f":"ADDRESS(51,5,1,1,$P$1)","v":"'Concentration Risk'!$E$51"},"=+'Fixed Income Investments'!E42",{"$f":"IF(_xlfn.FORMULATEXT(INDIRECT(P135))=Q135,0,1)","v":0},{"$f":"ADDRESS(14,17,1,1,$S$1)","v":"'Geographic Diversification'!$Q$14"},"=+'Schedule IVC (EBS)'!M14",{"$f":"IF(_xlfn.FORMULATEXT(INDIRECT(S135))=T135,0,1)","v":0},null,null,null,{"$f":"ADDRESS(44,9,1,1,$Y$1)","v":"'Premium Risk'!$I$44"},"=I42*I43",{"$f":"IF(_xlfn.FORMULATEXT(INDIRECT(Y135))=Z135,0,1)","v":0},{"$f":"ADDRESS(44,8,1,1,$AB$1)","v":"'Reserve Risk'!$H$44"},"=H42*H43",{"$f":"IF(_xlfn.FORMULATEXT(INDIRECT(AB135))=AC135,0,1)","v":0}]
[{"$f":"ADDRESS(62,38,1,1,$A$1)","v":"Summary!$AL$62"},"=IF(Test_Statistic_2<0.95,160,80)",{"$f":"IF(_xlfn.FORMULATEXT(INDIRECT(A136))=B136,0,1)","v":0},{"$f":"ADDRESS(84,4,1,1,$D$1)","v":"'Fixed Income Investments'!$D$84"},"=+'Schedule XIX'!H84",{"$f":"IF(_xlfn.FORMULATEXT(INDIRECT(D136))=E136,0,1)","v":0},null,null,null,null,null,null,{"$f":"ADDRESS(28,3,1,1,$M$1)","v":"'Currency Risk'!$C$28"},"=SUM(C9:C23)",{"$f":"IF(_xlfn.FORMULATEXT(INDIRECT(M136))=N136,0,1)","v":0},{"$f":"ADDRESS(51,6,1,1,$P$1)","v":"'Concentration Risk'!$F$51"},"=MAX(0,(D51*E51))",{"$f":"IF(_xlfn.FORMULATEXT(INDIRECT(P136))=Q136,0,1)","v":0},{"$f":"ADDRESS(14,18,1,1,$S$1)","v":"'Geographic Diversification'!$R$14"},"=+'Schedule IVC (EBS)'!N14",{"$f":"IF(_xlfn.FORMULATEXT(INDIRECT(S136))=T136,0,1)","v":0},null,null,null,{"$f":"ADDRESS(45,9,1,1,$Y$1)","v":"'Premium Risk'!$I$45"},"=1-I43",{"$f":"IF(_xlfn.FORMULATEXT(INDIRECT(Y136))=Z136,0,1)","v":0},{"$f":"ADDRESS(45,8,1,1,$AB$1)","v":"'Reserve Risk'!$H$45"},"=1-H43",{"$f":"IF(_xlfn.FORMULATEXT(INDIRECT(AB136))=AC136,0,1)","v":0}]
[{"$f":"ADDRESS(62,39,1,1,$A$1)","v":"Summary!$AM$62"},"=IF(Test_Statistic_2<1,50,50)",{"$f":"IF(_xlfn.FORMULATEXT(INDIRECT(A137))=B137,0,1)","v":0},{"$f":"ADDRESS(84,5,1,1,$D$1)","v":"'Fixed Income Investments'!$E$84"},1E-3,{"$f":"IF(INDIRECT(D137)=E137,0,1)","v":0},null,null,null,null,null,null,{"$f":"ADDRESS(28,5,1,1,$M$1)","v":"'Currency Risk'!$E$28"},"=SUM(E9:E23)",{"$f":"IF(_xlfn.FORMULATEXT(INDIRECT(M137))=N137,0,1)","v":0},{"$f":"ADDRESS(52,2,1,1,$P$1)","v":"'Concentration Risk'!$B$52"},"BSCR Rating 3",{"$f":"IF(INDIRECT(P137)=Q137,0,1)","v":0},{"$f":"ADDRESS(14,19,1,1,$S$1)","v":"'Geographic Diversification'!$S$14"},"=+'Schedule IVC (EBS)'!O14",{"$f":"IF(_xlfn.FORMULATEXT(INDIRECT(S137))=T137,0,1)","v":0},null,null,null,{"$f":"ADDRESS(47,9,1,1,$Y$1)","v":"'Premium Risk'!$I$47"},"=I44+I45",{"$f":"IF(_xlfn.FORMULATEXT(INDIRECT(Y137))=Z137,0,1)","v":0},{"$f":"ADDRESS(47,8,1,1,$AB$1)","v":"'Reserve Risk'!$H$47"},"=H45+H44",{"$f":"IF(_xlfn.FORMULATEXT(INDIRECT(AB137))=AC137,0,1)","v":0}]
[{"$f":"ADDRESS(63,20,1,1,$A$1)","v":"Summary!$T$63"},"=C67",{"$f":"IF(_xlfn.FORMULATEXT(INDIRECT(A138))=B138,0,1)","v":0},{"$f":"ADDRESS(84,6,1,1,$D$1)","v":"'Fixed Income Investments'!$F$84"},"=IF($D$84<0,0,$D$84*$E$84)",{"$f":"IF(_xlfn.FORMULATEXT(INDIRECT(D138))=E138,0,1)","v":0},null,null,null,null,null,null,{"$f":"ADDRESS(28,9,1,1,$M$1)","v":"'Currency Risk'!$I$28"},"=IF(SUM(I9:I26)>=0,SUM(I9:I26),0)",{"$f":"IF(_xlfn.FORMULATEXT(INDIRECT(M138))=N138,0,1)","v":0},{"$f":"ADDRESS(52,4,1,1,$P$1)","v":"'Concentration Risk'!$D$52"},"=SUMIFS('Schedule XXI'!$M$8:$M$57,'Schedule XXI'!$K$8:$K$57,$D$48,'Schedule XXI'!$L$8:$L$57,$B52)",{"$f":"IF(_xlfn.FORMULATEXT(INDIRECT(P138))=Q138,0,1)","v":0},{"$f":"ADDRESS(14,20,1,1,$S$1)","v":"'Geographic Diversification'!$T$14"},"=+'Schedule IVC (EBS)'!P14",{"$f":"IF(_xlfn.FORMULATEXT(INDIRECT(S138))=T138,0,1)","v":0},null,null,null,{"$f":"ADDRESS(49,9,1,1,$Y$1)","v":"'Premium Risk'!$I$49"},"=IF(I36=0,0,I36*I47)",{"$f":"IF(_xlfn.FORMULATEXT(INDIRECT(Y138))=Z138,0,1)","v":0},{"$f":"ADDRESS(51,8,1,1,$AB$1)","v":"'Reserve Risk'!$H$51"},"=F36",{"$f":"IF(_xlfn.FORMULATEXT(INDIRECT(AB138))=AC138,0,1)","v":0}]
[{"$f":"ADDRESS(63,24,1,1,$A$1)","v":"Summary!$X$63"},"=G67",{"$f":"IF(_xlfn.FORMULATEXT(INDIRECT(A139))=B139,0,1)","v":0},{"$f":"ADDRESS(85,4,1,1,$D$1)","v":"'Fixed Income Investments'!$D$85"},"=+'Schedule XIX'!H85",{"$f":"IF(_xlfn.FORMULATEXT(INDIRECT(D139))=E139,0,1)","v":0},null,null,null,null,null,null,null,null,-139,{"$f":"ADDRESS(52,5,1,1,$P$1)","v":"'Concentration Risk'!$E$52"},"=+'Fixed Income Investments'!E43",{"$f":"IF(_xlfn.FORMULATEXT(INDIRECT(P139))=Q139,0,1)","v":0},{"$f":"ADDRESS(14,21,1,1,$S$1)","v":"'Geographic Diversification'!$U$14"},"=+'Schedule IVC (EBS)'!Q14",{"$f":"IF(_xlfn.FORMULATEXT(INDIRECT(S139))=T139,0,1)","v":0},null,null,null,{"$f":"ADDRESS(53,9,1,1,$Y$1)","v":"'Premium Risk'!$I$53"},"='Catastrophe Risk'!E11",{"$f":"IF(_xlfn.FORMULATEXT(INDIRECT(Y139))=Z139,0,1)","v":0},{"$f":"ADDRESS(52,8,1,1,$AB$1)","v":"'Reserve Risk'!$H$52"},"=IF(H51=0,0,(F11/H51)^2+(F12/H51)^2+(F13/H51)^2+(F14/H51)^2+(F15/H51)^2+(F16/H51)^2+(F17/H51)^2+(F18/H51)^2+(F19/H51)^2+(F20/H51)^2+(F21/H51)^2+(F22/H51)^2+(F23/H51)^2+(F24/H51)^2+(F25/H51)^2+(F26/H51)^2+(F27/H51)^2+(F28/H51)^2+(F29/H51)^2+(F30/H51)^2+(F31/H51)^2+(F32/H51)^2+(F33/H51)^2+(F34/H51)^2)",{"$f":"IF(_xlfn.FORMULATEXT(INDIRECT(AB139))=AC139,0,1)","v":0}]
[{"$f":"ADDRESS(63,25,1,1,$A$1)","v":"Summary!$Y$63"},"=IF($L$71=0,1/9,X63/$X$65)",{"$f":"IF(_xlfn.FORMULATEXT(INDIRECT(A140))=B140,0,1)","v":0},{"$f":"ADDRESS(85,5,1,1,$D$1)","v":"'Fixed Income Investments'!$E$85"},2E-3,{"$f":"IF(INDIRECT(D140)=E140,0,1)","v":0},null,null,null,null,null,null,null,null,null,{"$f":"ADDRESS(52,6,1,1,$P$1)","v":"'Concentration Risk'!$F$52"},"=MAX(0,(D52*E52))",{"$f":"IF(_xlfn.FORMULATEXT(INDIRECT(P140))=Q140,0,1)","v":0},{"$f":"ADDRESS(14,22,1,1,$S$1)","v":"'Geographic Diversification'!$V$14"},"=+'Schedule IVC (EBS)'!R14",{"$f":"IF(_xlfn.FORMULATEXT(INDIRECT(S140))=T140,0,1)","v":0},null,null,null,{"$f":"ADDRESS(54,9,1,1,$Y$1)","v":"'Premium Risk'!$I$54"},"='Catastrophe Risk'!E13",{"$f":"IF(_xlfn.FORMULATEXT(INDIRECT(Y140))=Z140,0,1)","v":0},{"$f":"ADDRESS(53,8,1,1,$AB$1)","v":"'Reserve Risk'!$H$53"},0.4,{"$f":"IF(INDIRECT(AB140)=AC140,0,1)","v":0}]
[{"$f":"ADDRESS(63,26,1,1,$A$1)","v":"Summary!$Z$63"},"=M67",{"$f":"IF(_xlfn.FORMULATEXT(INDIRECT(A141))=B141,0,1)","v":0},{"$f":"ADDRESS(85,6,1,1,$D$1)","v":"'Fixed Income Investments'!$F$85"},"=IF($D$85<0,0,$D$85*$E$85)",{"$f":"IF(_xlfn.FORMULATEXT(INDIRECT(D141))=E141,0,1)","v":0},null,null,null,null,null,null,null,null,null,{"$f":"ADDRESS(53,2,1,1,$P$1)","v":"'Concentration Risk'!$B$53"},"BSCR Rating 4",{"$f":"IF(INDIRECT(P141)=Q141,0,1)","v":0},{"$f":"ADDRESS(14,23,1,1,$S$1)","v":"'Geographic Diversification'!$W$14"},"=+'Schedule IVC (EBS)'!S14",{"$f":"IF(_xlfn.FORMULATEXT(INDIRECT(S141))=T141,0,1)","v":0},null,null,null,{"$f":"ADDRESS(55,9,1,1,$Y$1)","v":"'Premium Risk'!$I$55"},"=IF(I41=0,0,I49/I41)",{"$f":"IF(_xlfn.FORMULATEXT(INDIRECT(Y141))=Z141,0,1)","v":0},{"$f":"ADDRESS(54,8,1,1,$AB$1)","v":"'Reserve Risk'!$H$54"},"=H52*H53",{"$f":"IF(_xlfn.FORMULATEXT(INDIRECT(AB141))=AC141,0,1)","v":0}]
[{"$f":"ADDRESS(63,27,1,1,$A$1)","v":"Summary!$AA$63"},"=IF($N$71=0,1/9,Z63/$Z$65)",{"$f":"IF(_xlfn.FORMULATEXT(INDIRECT(A142))=B142,0,1)","v":0},{"$f":"ADDRESS(86,4,1,1,$D$1)","v":"'Fixed Income Investments'!$D$86"},"=+'Schedule XIX'!H86",{"$f":"IF(_xlfn.FORMULATEXT(INDIRECT(D142))=E142,0,1)","v":0},null,null,null,null,null,null,null,null,null,{"$f":"ADDRESS(53,4,1,1,$P$1)","v":"'Concentration Risk'!$D$53"},"=SUMIFS('Schedule XXI'!$M$8:$M$57,'Schedule XXI'!$K$8:$K$57,$D$48,'Schedule XXI'!$L$8:$L$57,$B53)",{"$f":"IF(_xlfn.FORMULATEXT(INDIRECT(P142))=Q142,0,1)","v":0},{"$f":"ADDRESS(14,24,1,1,$S$1)","v":"'Geographic Diversification'!$X$14"},"=+'Schedule IVC (EBS)'!T14",{"$f":"IF(_xlfn.FORMULATEXT(INDIRECT(S142))=T142,0,1)","v":0},null,null,null,{"$f":"ADDRESS(57,9,1,1,$Y$1)","v":"'Premium Risk'!$I$57"},"=I53/I54*I55",{"$f":"IF(_xlfn.FORMULATEXT(INDIRECT(Y142))=Z142,0,1)","v":0},{"$f":"ADDRESS(55,8,1,1,$AB$1)","v":"'Reserve Risk'!$H$55"},"=1-H53",{"$f":"IF(_xlfn.FORMULATEXT(INDIRECT(AB142))=AC142,0,1)","v":0}]
[{"$f":"ADDRESS(63,29,1,1,$A$1)","v":"Summary!$AC$63"},"=(SUM(AA$55:AA64)/AA$65)",{"$f":"IF(_xlfn.FORMULATEXT(INDIRECT(A143))=B143,0,1)","v":0},{"$f":"ADDRESS(86,5,1,1,$D$1)","v":"'Fixed Income Investments'!$E$86"},3.0000000000000001E-3,{"$f":"IF(INDIRECT(D143)=E143,0,1)","v":0},null,null,null,null,null,null,null,null,null,{"$f":"ADDRESS(53,5,1,1,$P$1)","v":"'Concentration Risk'!$E$53"},"=+'Fixed Income Investments'!E44",{"$f":"IF(_xlfn.FORMULATEXT(INDIRECT(P143))=Q143,0,1)","v":0},{"$f":"ADDRESS(14,25,1,1,$S$1)","v":"'Geographic Diversification'!$Y$14"},"=+'Schedule IVC (EBS)'!U14",{"$f":"IF(_xlfn.FORMULATEXT(INDIRECT(S143))=T143,0,1)","v":0},null,null,null,{"$f":"ADDRESS(61,9,1,1,$Y$1)","v":"'Premium Risk'!$I$61"},"=G36-G11",{"$f":"IF(_xlfn.FORMULATEXT(INDIRECT(Y143))=Z143,0,1)","v":0},{"$f":"ADDRESS(57,8,1,1,$AB$1)","v":"'Reserve Risk'!$H$57"},"=H55+H54",{"$f":"IF(_xlfn.FORMULATEXT(INDIRECT(AB143))=AC143,0,1)","v":0}]
[{"$f":"ADDRESS(63,32,1,1,$A$1)","v":"Summary!$AF$63"},"=IF(AO67=\"\",IF(Test_Statistic<$AJ$71,AI63,IF(Test_Statistic<$AL$71,AK63,AM63)),AO67)",{"$f":"IF(_xlfn.FORMULATEXT(INDIRECT(A144))=B144,0,1)","v":0},{"$f":"ADDRESS(86,6,1,1,$D$1)","v":"'Fixed Income Investments'!$F$86"},"=IF($D$86<0,0,$D$86*$E$86)",{"$f":"IF(_xlfn.FORMULATEXT(INDIRECT(D144))=E144,0,1)","v":0},null,null,null,null,null,null,null,null,null,{"$f":"ADDRESS(53,6,1,1,$P$1)","v":"'Concentration Risk'!$F$53"},"=MAX(0,(D53*E53))",{"$f":"IF(_xlfn.FORMULATEXT(INDIRECT(P144))=Q144,0,1)","v":0},{"$f":"ADDRESS(14,26,1,1,$S$1)","v":"'Geographic Diversification'!$Z$14"},"=+'Schedule IVC (EBS)'!V14",{"$f":"IF(_xlfn.FORMULATEXT(INDIRECT(S144))=T144,0,1)","v":0},null,null,null,{"$f":"ADDRESS(62,9,1,1,$Y$1)","v":"'Premium Risk'!$I$62"},"=IF(I61=0,0,(G12/I61)^2+(G13/I61)^2+(G14/I61)^2+(G15/I61)^2+(G16/I61)^2+(G17/I61)^2+(G18/I61)^2+(G19/I61)^2+(G20/I61)^2+(G21/I61)^2+(G22/I61)^2+(G23/I61)^2+(G24/I61)^2+(G25/I61)^2+(G26/I61)^2+(G27/I61)^2+(G28/I61)^2+(G29/I61)^2+(G30/I61)^2+(G31/I61)^2+(G32/I61)^2+(G33/I61)^2+(G34/I61)^2)",{"$f":"IF(_xlfn.FORMULATEXT(INDIRECT(Y144))=Z144,0,1)","v":0},{"$f":"ADDRESS(59,8,1,1,$AB$1)","v":"'Reserve Risk'!$H$59"},"=+'Premium Risk'!I69",{"$f":"IF(_xlfn.FORMULATEXT(INDIRECT(AB144))=AC144,0,1)","v":0}]
[{"$f":"ADDRESS(63,33,1,1,$A$1)","v":"Summary!$AG$63"},"=IF(AP67=\"\",IF(Test_Statistic<$AJ$71,AJ63,IF(Test_Statistic<$AL$71,AL63,AN63)),AP67)",{"$f":"IF(_xlfn.FORMULATEXT(INDIRECT(A145))=B145,0,1)","v":0},{"$f":"ADDRESS(87,4,1,1,$D$1)","v":"'Fixed Income Investments'!$D$87"},"=+'Schedule XIX'!H87",{"$f":"IF(_xlfn.FORMULATEXT(INDIRECT(D145))=E145,0,1)","v":0},null,null,null,null,null,null,null,null,null,{"$f":"ADDRESS(54,2,1,1,$P$1)","v":"'Concentration Risk'!$B$54"},"BSCR Rating 5",{"$f":"IF(INDIRECT(P145)=Q145,0,1)","v":0},{"$f":"ADDRESS(15,4,1,1,$S$1)","v":"'Geographic Diversification'!$D$15"},"=SUM(I15:Z15)",{"$f":"IF(_xlfn.FORMULATEXT(INDIRECT(S145))=T145,0,1)","v":0},null,null,null,{"$f":"ADDRESS(63,9,1,1,$Y$1)","v":"'Premium Risk'!$I$63"},0.4,{"$f":"IF(INDIRECT(Y145)=Z145,0,1)","v":0},{"$f":"ADDRESS(60,8,1,1,$AB$1)","v":"'Reserve Risk'!$H$60"},"=+'Premium Risk'!I70",{"$f":"IF(_xlfn.FORMULATEXT(INDIRECT(AB145))=AC145,0,1)","v":0}]
[{"$f":"ADDRESS(63,35,1,1,$A$1)","v":"Summary!$AI$63"},"=IF(AC62>1,260,IF(AC60>1,200,IF(AC60>0.6,180,40)))",{"$f":"IF(_xlfn.FORMULATEXT(INDIRECT(A146))=B146,0,1)","v":0},{"$f":"ADDRESS(87,5,1,1,$D$1)","v":"'Fixed Income Investments'!$E$87"},5.0000000000000001E-3,{"$f":"IF(INDIRECT(D146)=E146,0,1)","v":0},null,null,null,null,null,null,null,null,null,{"$f":"ADDRESS(54,4,1,1,$P$1)","v":"'Concentration Risk'!$D$54"},"=SUMIFS('Schedule XXI'!$M$8:$M$57,'Schedule XXI'!$K$8:$K$57,$D$48,'Schedule XXI'!$L$8:$L$57,$B54)",{"$f":"IF(_xlfn.FORMULATEXT(INDIRECT(P146))=Q146,0,1)","v":0},{"$f":"ADDRESS(15,5,1,1,$S$1)","v":"'Geographic Diversification'!$E$15"},"=SUMSQ(I15:Z15)",{"$f":"IF(_xlfn.FORMULATEXT(INDIRECT(S146))=T146,0,1)","v":0},null,null,null,{"$f":"ADDRESS(64,9,1,1,$Y$1)","v":"'Premium Risk'!$I$64"},"=I62*I63",{"$f":"IF(_xlfn.FORMULATEXT(INDIRECT(Y146))=Z146,0,1)","v":0},{"$f":"ADDRESS(61,8,1,1,$AB$1)","v":"'Reserve Risk'!$H$61"},"=H59+H60",{"$f":"IF(_xlfn.FORMULATEXT(INDIRECT(AB146))=AC146,0,1)","v":0}]
[{"$f":"ADDRESS(63,36,1,1,$A$1)","v":"Summary!$AJ$63"},"=IF(AC62>1,15,IF(AC60>0.6,5,100))",{"$f":"IF(_xlfn.FORMULATEXT(INDIRECT(A147))=B147,0,1)","v":0},{"$f":"ADDRESS(87,6,1,1,$D$1)","v":"'Fixed Income Investments'!$F$87"},"=IF($D$87<0,0,$D$87*$E$87)",{"$f":"IF(_xlfn.FORMULATEXT(INDIRECT(D147))=E147,0,1)","v":0},null,null,null,null,null,null,null,null,null,{"$f":"ADDRESS(54,5,1,1,$P$1)","v":"'Concentration Risk'!$E$54"},"=+'Fixed Income Investments'!E45",{"$f":"IF(_xlfn.FORMULATEXT(INDIRECT(P147))=Q147,0,1)","v":0},{"$f":"ADDRESS(15,6,1,1,$S$1)","v":"'Geographic Diversification'!$F$15"},"=(IF(D15>0,E15/D15^2,1))",{"$f":"IF(_xlfn.FORMULATEXT(INDIRECT(S147))=T147,0,1)","v":0},null,null,null,{"$f":"ADDRESS(65,9,1,1,$Y$1)","v":"'Premium Risk'!$I$65"},"=1-I63",{"$f":"IF(_xlfn.FORMULATEXT(INDIRECT(Y147))=Z147,0,1)","v":0},{"$f":"ADDRESS(62,8,1,1,$AB$1)","v":"'Reserve Risk'!$H$62"},0.4,{"$f":"IF(INDIRECT(AB147)=AC147,0,1)","v":0}]
[{"$f":"ADDRESS(63,37,1,1,$A$1)","v":"Summary!$AK$63"},"=IF(Test_Statistic_2<0.95,180,240)",{"$f":"IF(_xlfn.FORMULATEXT(INDIRECT(A148))=B148,0,1)","v":0},{"$f":"ADDRESS(88,4,1,1,$D$1)","v":"'Fixed Income Investments'!$D$88"},"=+'Schedule XIX'!H88",{"$f":"IF(_xlfn.FORMULATEXT(INDIRECT(D148))=E148,0,1)","v":0},null,null,null,null,null,null,null,null,null,{"$f":"ADDRESS(54,6,1,1,$P$1)","v":"'Concentration Risk'!$F$54"},"=MAX(0,(D54*E54))",{"$f":"IF(_xlfn.FORMULATEXT(INDIRECT(P148))=Q148,0,1)","v":0},{"$f":"ADDRESS(15,7,1,1,$S$1)","v":"'Geographic Diversification'!$G$15"},"=D15*(0.75+0.25*F15)",{"$f":"IF(_xlfn.FORMULATEXT(INDIRECT(S148))=T148,0,1)","v":0},null,null,null,{"$f":"ADDRESS(67,9,1,1,$Y$1)","v":"'Premium Risk'!$I$67"},"=I64+I65",{"$f":"IF(_xlfn.FORMULATEXT(INDIRECT(Y148))=Z148,0,1)","v":0},{"$f":"ADDRESS(64,8,1,1,$AB$1)","v":"'Reserve Risk'!$H$64"},"=H61*H62",{"$f":"IF(_xlfn.FORMULATEXT(INDIRECT(AB148))=AC148,0,1)","v":0}]
[{"$f":"ADDRESS(63,38,1,1,$A$1)","v":"Summary!$AL$63"},"=IF(Test_Statistic_2<0.95,5,20)",{"$f":"IF(_xlfn.FORMULATEXT(INDIRECT(A149))=B149,0,1)","v":0},{"$f":"ADDRESS(88,5,1,1,$D$1)","v":"'Fixed Income Investments'!$E$88"},1.4999999999999999E-2,{"$f":"IF(INDIRECT(D149)=E149,0,1)","v":0},null,null,null,null,null,null,null,null,null,{"$f":"ADDRESS(55,2,1,1,$P$1)","v":"'Concentration Risk'!$B$55"},"BSCR Rating 6",{"$f":"IF(INDIRECT(P149)=Q149,0,1)","v":0},{"$f":"ADDRESS(15,8,1,1,$S$1)","v":"'Geographic Diversification'!$H$15"},"=IF('Schedule IVC (EBS)'!AB15=\"True\",G15,'Schedule IVA (EBS)'!Q17)",{"$f":"IF(_xlfn.FORMULATEXT(INDIRECT(S149))=T149,0,1)","v":0},null,null,null,{"$f":"ADDRESS(69,9,1,1,$Y$1)","v":"'Premium Risk'!$I$69"},"='Schedule IX(b)'!H51/900*95%",{"$f":"IF(_xlfn.FORMULATEXT(INDIRECT(Y149))=Z149,0,1)","v":0},{"$f":"ADDRESS(66,8,1,1,$AB$1)","v":"'Reserve Risk'!$H$66"},"=H57-H64",{"$f":"IF(_xlfn.FORMULATEXT(INDIRECT(AB149))=AC149,0,1)","v":0}]
[{"$f":"ADDRESS(63,39,1,1,$A$1)","v":"Summary!$AM$63"},"=IF(Test_Statistic_2<1,180,240)",{"$f":"IF(_xlfn.FORMULATEXT(INDIRECT(A150))=B150,0,1)","v":0},{"$f":"ADDRESS(88,6,1,1,$D$1)","v":"'Fixed Income Investments'!$F$88"},"=IF($D$88<0,0,$D$88*$E$88)",{"$f":"IF(_xlfn.FORMULATEXT(INDIRECT(D150))=E150,0,1)","v":0},null,null,null,null,null,null,null,null,null,{"$f":"ADDRESS(55,4,1,1,$P$1)","v":"'Concentration Risk'!$D$55"},"=SUMIFS('Schedule XXI'!$M$8:$M$57,'Schedule XXI'!$K$8:$K$57,$D$48,'Schedule XXI'!$L$8:$L$57,$B55)",{"$f":"IF(_xlfn.FORMULATEXT(INDIRECT(P150))=Q150,0,1)","v":0},{"$f":"ADDRESS(15,9,1,1,$S$1)","v":"'Geographic Diversification'!$I$15"},"=+'Schedule IVC (EBS)'!E15",{"$f":"IF(_xlfn.FORMULATEXT(INDIRECT(S150))=T150,0,1)","v":0},null,null,null,{"$f":"ADDRESS(70,9,1,1,$Y$1)","v":"'Premium Risk'!$I$70"},"='Schedule IX(b)'!H55*5%",{"$f":"IF(_xlfn.FORMULATEXT(INDIRECT(Y150))=Z150,0,1)","v":0},{"$f":"ADDRESS(68,2,1,1,$AB$1)","v":"'Reserve Risk'!$B$68"},"=IF('Company Information'!F11=\"Class 3A\",\"(d) TOTAL RESERVE RISK [(a) x (c)]\",\"(c)  TOTAL RESERVE RISK  [ Total (a) x (b) ]\")",{"$f":"IF(_xlfn.FORMULATEXT(INDIRECT(AB150))=AC150,0,1)","v":0}]
[{"$f":"ADDRESS(63,40,1,1,$A$1)","v":"Summary!$AN$63"},"=IF(Test_Statistic_2<1,5,20)",{"$f":"IF(_xlfn.FORMULATEXT(INDIRECT(A151))=B151,0,1)","v":0},{"$f":"ADDRESS(89,4,1,1,$D$1)","v":"'Fixed Income Investments'!$D$89"},"=+'Schedule XIX'!H89",{"$f":"IF(_xlfn.FORMULATEXT(INDIRECT(D151))=E151,0,1)","v":0},null,null,null,null,null,null,null,null,null,{"$f":"ADDRESS(55,5,1,1,$P$1)","v":"'Concentration Risk'!$E$55"},"=+'Fixed Income Investments'!E46",{"$f":"IF(_xlfn.FORMULATEXT(INDIRECT(P151))=Q151,0,1)","v":0},{"$f":"ADDRESS(15,10,1,1,$S$1)","v":"'Geographic Diversification'!$J$15"},"=+'Schedule IVC (EBS)'!F15",{"$f":"IF(_xlfn.FORMULATEXT(INDIRECT(S151))=T151,0,1)","v":0},null,null,null,{"$f":"ADDRESS(71,9,1,1,$Y$1)","v":"'Premium Risk'!$I$71"},"=I69+I70",{"$f":"IF(_xlfn.FORMULATEXT(INDIRECT(Y151))=Z151,0,1)","v":0},{"$f":"ADDRESS(68,8,1,1,$AB$1)","v":"'Reserve Risk'!$H$68"},"=IF('Company Information'!F11=\"Class 3A\",IF(H36=0,0,H36*H66),IF(H36*H47>=0,H36*H47,0))",{"$f":"IF(_xlfn.FORMULATEXT(INDIRECT(AB151))=AC151,0,1)","v":0}]
[{"$f":"ADDRESS(64,12,1,1,$A$1)","v":"Summary!$L$64"},"{=SQRT(MMULT(TRANSPOSE(K65:K67),MMULT('Correlation Matrix'!J7:L9,K65:K67)))}",{"$f":"IF(_xlfn.FORMULATEXT(INDIRECT(A152))=B152,0,1)","v":0},{"$f":"ADDRESS(89,5,1,1,$D$1)","v":"'Fixed Income Investments'!$E$89"},0.04,{"$f":"IF(INDIRECT(D152)=E152,0,1)","v":0},null,null,null,null,null,null,null,null,null,{"$f":"ADDRESS(55,6,1,1,$P$1)","v":"'Concentration Risk'!$F$55"},"=MAX(0,(D55*E55))",{"$f":"IF(_xlfn.FORMULATEXT(INDIRECT(P152))=Q152,0,1)","v":0},{"$f":"ADDRESS(15,11,1,1,$S$1)","v":"'Geographic Diversification'!$K$15"},"=+'Schedule IVC (EBS)'!G15",{"$f":"IF(_xlfn.FORMULATEXT(INDIRECT(S152))=T152,0,1)","v":0},null,null,null,{"$f":"ADDRESS(72,9,1,1,$Y$1)","v":"'Premium Risk'!$I$72"},0.4,{"$f":"IF(INDIRECT(Y152)=Z152,0,1)","v":0},null,null,-152]
[{"$f":"ADDRESS(64,14,1,1,$A$1)","v":"Summary!$N$64"},"{=SQRT(MMULT(TRANSPOSE(M65:M67),MMULT('Correlation Matrix'!J7:L9,M65:M67)))}",{"$f":"IF(_xlfn.FORMULATEXT(INDIRECT(A153))=B153,0,1)","v":0},{"$f":"ADDRESS(89,6,1,1,$D$1)","v":"'Fixed Income Investments'!$F$89"},"=IF($D$89<0,0,$D$89*$E$89)",{"$f":"IF(_xlfn.FORMULATEXT(INDIRECT(D153))=E153,0,1)","v":0},null,null,null,null,null,null,null,null,null,{"$f":"ADDRESS(56,2,1,1,$P$1)","v":"'Concentration Risk'!$B$56"},"BSCR Rating 7",{"$f":"IF(INDIRECT(P153)=Q153,0,1)","v":0},{"$f":"ADDRESS(15,12,1,1,$S$1)","v":"'Geographic Diversification'!$L$15"},"=+'Schedule IVC (EBS)'!H15",{"$f":"IF(_xlfn.FORMULATEXT(INDIRECT(S153))=T153,0,1)","v":0},null,null,null,{"$f":"ADDRESS(74,9,1,1,$Y$1)","v":"'Premium Risk'!$I$74"},"=I71*I72",{"$f":"IF(_xlfn.FORMULATEXT(INDIRECT(Y153))=Z153,0,1)","v":0}]
[{"$f":"ADDRESS(65,3,1,1,$A$1)","v":"Summary!$C$65"},"Premium Risk",{"$f":"IF(INDIRECT(A154)=B154,0,1)","v":0},{"$f":"ADDRESS(90,4,1,1,$D$1)","v":"'Fixed Income Investments'!$D$90"},"=+'Schedule XIX'!H90",{"$f":"IF(_xlfn.FORMULATEXT(INDIRECT(D154))=E154,0,1)","v":0},null,null,null,null,null,null,null,null,null,{"$f":"ADDRESS(56,4,1,1,$P$1)","v":"'Concentration Risk'!$D$56"},"=SUMIFS('Schedule XXI'!$M$8:$M$57,'Schedule XXI'!$K$8:$K$57,$D$48,'Schedule XXI'!$L$8:$L$57,$B56)",{"$f":"IF(_xlfn.FORMULATEXT(INDIRECT(P154))=Q154,0,1)","v":0},{"$f":"ADDRESS(15,13,1,1,$S$1)","v":"'Geographic Diversification'!$M$15"},"=+'Schedule IVC (EBS)'!I15",{"$f":"IF(_xlfn.FORMULATEXT(INDIRECT(S154))=T154,0,1)","v":0},null,null,null,{"$f":"ADDRESS(76,9,1,1,$Y$1)","v":"'Premium Risk'!$I$76"},"=I67-I74",{"$f":"IF(_xlfn.FORMULATEXT(INDIRECT(Y154))=Z154,0,1)","v":0}]
[{"$f":"ADDRESS(65,7,1,1,$A$1)","v":"Summary!$G$65"},"=ROUND('Premium Risk'!I78,$N$163)",{"$f":"IF(_xlfn.FORMULATEXT(INDIRECT(A155))=B155,0,1)","v":0},{"$f":"ADDRESS(90,5,1,1,$D$1)","v":"'Fixed Income Investments'!$E$90"},0.06,{"$f":"IF(INDIRECT(D155)=E155,0,1)","v":0},null,null,null,null,null,null,null,null,null,{"$f":"ADDRESS(56,5,1,1,$P$1)","v":"'Concentration Risk'!$E$56"},"=+'Fixed Income Investments'!E47",{"$f":"IF(_xlfn.FORMULATEXT(INDIRECT(P155))=Q155,0,1)","v":0},{"$f":"ADDRESS(15,14,1,1,$S$1)","v":"'Geographic Diversification'!$N$15"},"=+'Schedule IVC (EBS)'!J15",{"$f":"IF(_xlfn.FORMULATEXT(INDIRECT(S155))=T155,0,1)","v":0},null,null,null,{"$f":"ADDRESS(78,2,1,1,$Y$1)","v":"'Premium Risk'!$B$78"},"=IF('Company Information'!F11=\"Class 3A\",\"(d) TOTAL PREMIUM RISK [(a) x (c)]\",\"(e)  TOTAL PREMIUM RISK (AFTER CATASTROPHE PREMIUM ADJUSTMENT)   [ (c) - (d) ]\")",{"$f":"IF(_xlfn.FORMULATEXT(INDIRECT(Y155))=Z155,0,1)","v":0}]
[{"$f":"ADDRESS(65,11,1,1,$A$1)","v":"Summary!$K$65"},"=ROUND('Premium Risk (Revised)'!N59,$N$163)",{"$f":"IF(_xlfn.FORMULATEXT(INDIRECT(A156))=B156,0,1)","v":0},{"$f":"ADDRESS(90,6,1,1,$D$1)","v":"'Fixed Income Investments'!$F$90"},"=IF($D$90<0,0,$D$90*$E$90)",{"$f":"IF(_xlfn.FORMULATEXT(INDIRECT(D156))=E156,0,1)","v":0},null,null,null,null,null,null,null,null,null,{"$f":"ADDRESS(56,6,1,1,$P$1)","v":"'Concentration Risk'!$F$56"},"=MAX(0,(D56*E56))",{"$f":"IF(_xlfn.FORMULATEXT(INDIRECT(P156))=Q156,0,1)","v":0},{"$f":"ADDRESS(15,15,1,1,$S$1)","v":"'Geographic Diversification'!$O$15"},"=+'Schedule IVC (EBS)'!K15",{"$f":"IF(_xlfn.FORMULATEXT(INDIRECT(S156))=T156,0,1)","v":0},null,null,null,{"$f":"ADDRESS(78,9,1,1,$Y$1)","v":"'Premium Risk'!$I$78"},"=IF('Company Information'!F11=\"Class 3A\",IF((I76*I36)>=0,I76*I36,0),IF(I49-I57>=0,I49-I57,0))",{"$f":"IF(_xlfn.FORMULATEXT(INDIRECT(Y156))=Z156,0,1)","v":0}]
[{"$f":"ADDRESS(65,13,1,1,$A$1)","v":"Summary!$M$65"},"=ROUND('Premium Risk (Revised)'!N59,$N$163)",{"$f":"IF(_xlfn.FORMULATEXT(INDIRECT(A157))=B157,0,1)","v":0},{"$f":"ADDRESS(91,4,1,1,$D$1)","v":"'Fixed Income Investments'!$D$91"},"=+'Schedule XIX'!H91",{"$f":"IF(_xlfn.FORMULATEXT(INDIRECT(D157))=E157,0,1)","v":0},null,null,null,null,null,null,null,null,null,{"$f":"ADDRESS(57,2,1,1,$P$1)","v":"'Concentration Risk'!$B$57"},"BSCR Rating 8",{"$f":"IF(INDIRECT(P157)=Q157,0,1)","v":0},{"$f":"ADDRESS(15,16,1,1,$S$1)","v":"'Geographic Diversification'!$P$15"},"=+'Schedule IVC (EBS)'!L15",{"$f":"IF(_xlfn.FORMULATEXT(INDIRECT(S157))=T157,0,1)","v":0},null,null,null,null,null,-157]
[{"$f":"ADDRESS(65,24,1,1,$A$1)","v":"Summary!$X$65"},"=SUM(X55:X64)",{"$f":"IF(_xlfn.FORMULATEXT(INDIRECT(A158))=B158,0,1)","v":0},{"$f":"ADDRESS(91,5,1,1,$D$1)","v":"'Fixed Income Investments'!$E$91"},0.09,{"$f":"IF(INDIRECT(D158)=E158,0,1)","v":0},null,null,null,null,null,null,null,null,null,{"$f":"ADDRESS(57,4,1,1,$P$1)","v":"'Concentration Risk'!$D$57"},"=SUMIFS('Schedule XXI'!$M$8:$M$57,'Schedule XXI'!$K$8:$K$57,$D$48,'Schedule XXI'!$L$8:$L$57,$B57)",{"$f":"IF(_xlfn.FORMULATEXT(INDIRECT(P158))=Q158,0,1)","v":0},{"$f":"ADDRESS(15,17,1,1,$S$1)","v":"'Geographic Diversification'!$Q$15"},"=+'Schedule IVC (EBS)'!M15",{"$f":"IF(_xlfn.FORMULATEXT(INDIRECT(S158))=T158,0,1)","v":0}]
[{"$f":"ADDRESS(65,25,1,1,$A$1)","v":"Summary!$Y$65"},"=SUM(Y55:Y64)",{"$f":"IF(_xlfn.FORMULATEXT(INDIRECT(A159))=B159,0,1)","v":0},{"$f":"ADDRESS(91,6,1,1,$D$1)","v":"'Fixed Income Investments'!$F$91"},"=IF($D$91<0,0,$D$91*$E$91)",{"$f":"IF(_xlfn.FORMULATEXT(INDIRECT(D159))=E159,0,1)","v":0},null,null,null,null,null,null,null,null,null,{"$f":"ADDRESS(57,5,1,1,$P$1)","v":"'Concentration Risk'!$E$57"},"=+'Fixed Income Investments'!E48",{"$f":"IF(_xlfn.FORMULATEXT(INDIRECT(P159))=Q159,0,1)","v":0},{"$f":"ADDRESS(15,18,1,1,$S$1)","v":"'Geographic Diversification'!$R$15"},"=+'Schedule IVC (EBS)'!N15",{"$f":"IF(_xlfn.FORMULATEXT(INDIRECT(S159))=T159,0,1)","v":0}]
[{"$f":"ADDRESS(65,26,1,1,$A$1)","v":"Summary!$Z$65"},"=SUM(Z55:Z64)",{"$f":"IF(_xlfn.FORMULATEXT(INDIRECT(A160))=B160,0,1)","v":0},{"$f":"ADDRESS(93,4,1,1,$D$1)","v":"'Fixed Income Investments'!$D$93"},"=SUM(D83:D92)",{"$f":"IF(_xlfn.FORMULATEXT(INDIRECT(D160))=E160,0,1)","v":0},null,null,null,null,null,null,null,null,null,{"$f":"ADDRESS(57,6,1,1,$P$1)","v":"'Concentration Risk'!$F$57"},"=MAX(0,(D57*E57))",{"$f":"IF(_xlfn.FORMULATEXT(INDIRECT(P160))=Q160,0,1)","v":0},{"$f":"ADDRESS(15,19,1,1,$S$1)","v":"'Geographic Diversification'!$S$15"},"=+'Schedule IVC (EBS)'!O15",{"$f":"IF(_xlfn.FORMULATEXT(INDIRECT(S160))=T160,0,1)","v":0}]
[{"$f":"ADDRESS(65,27,1,1,$A$1)","v":"Summary!$AA$65"},"=SUM(AA55:AA64)",{"$f":"IF(_xlfn.FORMULATEXT(INDIRECT(A161))=B161,0,1)","v":0},{"$f":"ADDRESS(93,6,1,1,$D$1)","v":"'Fixed Income Investments'!$F$93"},"=SUM(F83:F92)",{"$f":"IF(_xlfn.FORMULATEXT(INDIRECT(D161))=E161,0,1)","v":0},null,null,null,null,null,null,null,null,null,{"$f":"ADDRESS(59,4,1,1,$P$1)","v":"'Concentration Risk'!$D$59"},"=SUM(D48:D57)",{"$f":"IF(_xlfn.FORMULATEXT(INDIRECT(P161))=Q161,0,1)","v":0},{"$f":"ADDRESS(15,20,1,1,$S$1)","v":"'Geographic Diversification'!$T$15"},"=+'Schedule IVC (EBS)'!P15",{"$f":"IF(_xlfn.FORMULATEXT(INDIRECT(S161))=T161,0,1)","v":0}]
[{"$f":"ADDRESS(66,3,1,1,$A$1)","v":"Summary!$C$66"},"Reserve Risk",{"$f":"IF(INDIRECT(A162)=B162,0,1)","v":0},{"$f":"ADDRESS(95,5,1,1,$D$1)","v":"'Fixed Income Investments'!$E$95"},"=+'Schedule XIX'!H100",{"$f":"IF(_xlfn.FORMULATEXT(INDIRECT(D162))=E162,0,1)","v":0},null,null,null,null,null,null,null,null,null,{"$f":"ADDRESS(59,6,1,1,$P$1)","v":"'Concentration Risk'!$F$59"},"=SUM(F48:F57)",{"$f":"IF(_xlfn.FORMULATEXT(INDIRECT(P162))=Q162,0,1)","v":0},{"$f":"ADDRESS(15,21,1,1,$S$1)","v":"'Geographic Diversification'!$U$15"},"=+'Schedule IVC (EBS)'!Q15",{"$f":"IF(_xlfn.FORMULATEXT(INDIRECT(S162))=T162,0,1)","v":0}]
[{"$f":"ADDRESS(66,7,1,1,$A$1)","v":"Summary!$G$66"},"=ROUND('Reserve Risk'!H68,$N$163)",{"$f":"IF(_xlfn.FORMULATEXT(INDIRECT(A163))=B163,0,1)","v":0},{"$f":"ADDRESS(95,6,1,1,$D$1)","v":"'Fixed Income Investments'!$F$95"},"=SUM(F83:F91)*-('Schedule XIX'!H100)",{"$f":"IF(_xlfn.FORMULATEXT(INDIRECT(D163))=E163,0,1)","v":0},null,null,null,null,null,null,null,null,null,{"$f":"ADDRESS(61,4,1,1,$P$1)","v":"'Concentration Risk'!$D$61"},"Bond Mutual Funds",{"$f":"IF(INDIRECT(P163)=Q163,0,1)","v":0},{"$f":"ADDRESS(15,22,1,1,$S$1)","v":"'Geographic Diversification'!$V$15"},"=+'Schedule IVC (EBS)'!R15",{"$f":"IF(_xlfn.FORMULATEXT(INDIRECT(S163))=T163,0,1)","v":0}]
[{"$f":"ADDRESS(66,11,1,1,$A$1)","v":"Summary!$K$66"},"=ROUND('Reserve Risk (Revised)'!H53,$N$163)",{"$f":"IF(_xlfn.FORMULATEXT(INDIRECT(A164))=B164,0,1)","v":0},{"$f":"ADDRESS(97,4,1,1,$D$1)","v":"'Fixed Income Investments'!$D$97"},"=D79+D93",{"$f":"IF(_xlfn.FORMULATEXT(INDIRECT(D164))=E164,0,1)","v":0},null,null,null,null,null,null,null,null,null,{"$f":"ADDRESS(62,2,1,1,$P$1)","v":"'Concentration Risk'!$B$62"},"BSCR Rating 0",{"$f":"IF(INDIRECT(P164)=Q164,0,1)","v":0},{"$f":"ADDRESS(15,23,1,1,$S$1)","v":"'Geographic Diversification'!$W$15"},"=+'Schedule IVC (EBS)'!S15",{"$f":"IF(_xlfn.FORMULATEXT(INDIRECT(S164))=T164,0,1)","v":0}]
[{"$f":"ADDRESS(66,13,1,1,$A$1)","v":"Summary!$M$66"},"=ROUND('Reserve Risk (Revised)'!H53,$N$163)",{"$f":"IF(_xlfn.FORMULATEXT(INDIRECT(A165))=B165,0,1)","v":0},{"$f":"ADDRESS(97,6,1,1,$D$1)","v":"'Fixed Income Investments'!$F$97"},"=IF(SUM(F79,F83:F91,F95)>=0,SUM(F79,F83:F91,F95),0)",{"$f":"IF(_xlfn.FORMULATEXT(INDIRECT(D165))=E165,0,1)","v":0},null,null,null,null,null,null,null,null,null,{"$f":"ADDRESS(62,4,1,1,$P$1)","v":"'Concentration Risk'!$D$62"},"=SUMIFS('Schedule XXI'!$M$8:$M$57,'Schedule XXI'!$K$8:$K$57,$D$61,'Schedule XXI'!$L$8:$L$57,$B62)",{"$f":"IF(_xlfn.FORMULATEXT(INDIRECT(P165))=Q165,0,1)","v":0},{"$f":"ADDRESS(15,24,1,1,$S$1)","v":"'Geographic Diversification'!$X$15"},"=+'Schedule IVC (EBS)'!T15",{"$f":"IF(_xlfn.FORMULATEXT(INDIRECT(S165))=T165,0,1)","v":0}]
[{"$f":"ADDRESS(67,3,1,1,$A$1)","v":"Summary!$C$67"},"Catastrophe Risk",{"$f":"IF(INDIRECT(A166)=B166,0,1)","v":0},{"$f":"ADDRESS(99,4,1,1,$D$1)","v":"'Fixed Income Investments'!$D$99"},"=D22+D36+D51+D66+D75+D97",{"$f":"IF(_xlfn.FORMULATEXT(INDIRECT(D166))=E166,0,1)","v":0},null,null,null,null,null,null,null,null,null,{"$f":"ADDRESS(62,5,1,1,$P$1)","v":"'Concentration Risk'!$E$62"},"=+'Fixed Income Investments'!E56",{"$f":"IF(_xlfn.FORMULATEXT(INDIRECT(P166))=Q166,0,1)","v":0},{"$f":"ADDRESS(15,25,1,1,$S$1)","v":"'Geographic Diversification'!$Y$15"},"=+'Schedule IVC (EBS)'!U15",{"$f":"IF(_xlfn.FORMULATEXT(INDIRECT(S166))=T166,0,1)","v":0}]
[{"$f":"ADDRESS(67,7,1,1,$A$1)","v":"Summary!$G$67"},"=ROUND('Catastrophe Risk'!E25,$N$163)",{"$f":"IF(_xlfn.FORMULATEXT(INDIRECT(A167))=B167,0,1)","v":0},{"$f":"ADDRESS(99,6,1,1,$D$1)","v":"'Fixed Income Investments'!$F$99"},"=F22+F36+F51+F66+F75+F97",{"$f":"IF(_xlfn.FORMULATEXT(INDIRECT(D167))=E167,0,1)","v":0},null,null,null,null,null,null,null,null,null,{"$f":"ADDRESS(62,6,1,1,$P$1)","v":"'Concentration Risk'!$F$62"},"=MAX(0,(D62*E62))",{"$f":"IF(_xlfn.FORMULATEXT(INDIRECT(P167))=Q167,0,1)","v":0},{"$f":"ADDRESS(15,26,1,1,$S$1)","v":"'Geographic Diversification'!$Z$15"},"=+'Schedule IVC (EBS)'!V15",{"$f":"IF(_xlfn.FORMULATEXT(INDIRECT(S167))=T167,0,1)","v":0}]
[{"$f":"ADDRESS(67,11,1,1,$A$1)","v":"Summary!$K$67"},"=ROUND('Catastrophe Risk (Revised)'!E25,$N$163)",{"$f":"IF(_xlfn.FORMULATEXT(INDIRECT(A168))=B168,0,1)","v":0},null,null,-168,null,null,null,null,null,null,null,null,null,{"$f":"ADDRESS(63,2,1,1,$P$1)","v":"'Concentration Risk'!$B$63"},"BSCR Rating 1",{"$f":"IF(INDIRECT(P168)=Q168,0,1)","v":0},{"$f":"ADDRESS(16,4,1,1,$S$1)","v":"'Geographic Diversification'!$D$16"},"=SUM(I16:Z16)",{"$f":"IF(_xlfn.FORMULATEXT(INDIRECT(S168))=T168,0,1)","v":0}]
[{"$f":"ADDRESS(67,13,1,1,$A$1)","v":"Summary!$M$67"},"=ROUND('Catastrophe Risk (Revised)'!E25,$N$163)",{"$f":"IF(_xlfn.FORMULATEXT(INDIRECT(A169))=B169,0,1)","v":0},null,null,null,null,null,null,null,null,null,null,null,null,{"$f":"ADDRESS(63,4,1,1,$P$1)","v":"'Concentration Risk'!$D$63"},"=SUMIFS('Schedule XXI'!$M$8:$M$57,'Schedule XXI'!$K$8:$K$57,$D$61,'Schedule XXI'!$L$8:$L$57,$B63)",{"$f":"IF(_xlfn.FORMULATEXT(INDIRECT(P169))=Q169,0,1)","v":0},{"$f":"ADDRESS(16,5,1,1,$S$1)","v":"'Geographic Diversification'!$E$16"},"=SUMSQ(I16:Z16)",{"$f":"IF(_xlfn.FORMULATEXT(INDIRECT(S169))=T169,0,1)","v":0}]
[{"$f":"ADDRESS(69,7,1,1,$A$1)","v":"Summary!$G$69"},"=SUM(G55:G67)",{"$f":"IF(_xlfn.FORMULATEXT(INDIRECT(A170))=B170,0,1)","v":0},null,null,null,null,null,null,null,null,null,null,null,null,{"$f":"ADDRESS(63,5,1,1,$P$1)","v":"'Concentration Risk'!$E$63"},"=+'Fixed Income Investments'!E57",{"$f":"IF(_xlfn.FORMULATEXT(INDIRECT(P170))=Q170,0,1)","v":0},{"$f":"ADDRESS(16,6,1,1,$S$1)","v":"'Geographic Diversification'!$F$16"},"=(IF(D16>0,E16/D16^2,1))",{"$f":"IF(_xlfn.FORMULATEXT(INDIRECT(S170))=T170,0,1)","v":0}]
[{"$f":"ADDRESS(69,12,1,1,$A$1)","v":"Summary!$L$69"},"=SUM(K55:K67)",{"$f":"IF(_xlfn.FORMULATEXT(INDIRECT(A171))=B171,0,1)","v":0},null,null,null,null,null,null,null,null,null,null,null,null,{"$f":"ADDRESS(63,6,1,1,$P$1)","v":"'Concentration Risk'!$F$63"},"=MAX(0,(D63*E63))",{"$f":"IF(_xlfn.FORMULATEXT(INDIRECT(P171))=Q171,0,1)","v":0},{"$f":"ADDRESS(16,7,1,1,$S$1)","v":"'Geographic Diversification'!$G$16"},"=D16*(0.75+0.25*F16)",{"$f":"IF(_xlfn.FORMULATEXT(INDIRECT(S171))=T171,0,1)","v":0}]
[{"$f":"ADDRESS(69,14,1,1,$A$1)","v":"Summary!$N$69"},"=SUM(M55:M67)",{"$f":"IF(_xlfn.FORMULATEXT(INDIRECT(A172))=B172,0,1)","v":0},null,null,null,null,null,null,null,null,null,null,null,null,{"$f":"ADDRESS(64,2,1,1,$P$1)","v":"'Concentration Risk'!$B$64"},"BSCR Rating 2",{"$f":"IF(INDIRECT(P172)=Q172,0,1)","v":0},{"$f":"ADDRESS(16,8,1,1,$S$1)","v":"'Geographic Diversification'!$H$16"},"=IF('Schedule IVC (EBS)'!AB16=\"True\",G16,'Schedule IVA (EBS)'!Q18)",{"$f":"IF(_xlfn.FORMULATEXT(INDIRECT(S172))=T172,0,1)","v":0}]
[{"$f":"ADDRESS(69,35,1,1,$A$1)","v":"Summary!$AI$69"},"=AI71&\" - \"&AJ71",{"$f":"IF(_xlfn.FORMULATEXT(INDIRECT(A173))=B173,0,1)","v":0},null,null,null,null,null,null,null,null,null,null,null,null,{"$f":"ADDRESS(64,4,1,1,$P$1)","v":"'Concentration Risk'!$D$64"},"=SUMIFS('Schedule XXI'!$M$8:$M$57,'Schedule XXI'!$K$8:$K$57,$D$61,'Schedule XXI'!$L$8:$L$57,$B64)",{"$f":"IF(_xlfn.FORMULATEXT(INDIRECT(P173))=Q173,0,1)","v":0},{"$f":"ADDRESS(16,9,1,1,$S$1)","v":"'Geographic Diversification'!$I$16"},"=+'Schedule IVC (EBS)'!E16",{"$f":"IF(_xlfn.FORMULATEXT(INDIRECT(S173))=T173,0,1)","v":0}]
[{"$f":"ADDRESS(69,37,1,1,$A$1)","v":"Summary!$AK$69"},"=AJ71&\" - \"&AL71",{"$f":"IF(_xlfn.FORMULATEXT(INDIRECT(A174))=B174,0,1)","v":0},null,null,null,null,null,null,null,null,null,null,null,null,{"$f":"ADDRESS(64,5,1,1,$P$1)","v":"'Concentration Risk'!$E$64"},"=+'Fixed Income Investments'!E58",{"$f":"IF(_xlfn.FORMULATEXT(INDIRECT(P174))=Q174,0,1)","v":0},{"$f":"ADDRESS(16,10,1,1,$S$1)","v":"'Geographic Diversification'!$J$16"},"=+'Schedule IVC (EBS)'!F16",{"$f":"IF(_xlfn.FORMULATEXT(INDIRECT(S174))=T174,0,1)","v":0}]
[{"$f":"ADDRESS(69,39,1,1,$A$1)","v":"Summary!$AM$69"},"=AL71&\" - \"&AN71",{"$f":"IF(_xlfn.FORMULATEXT(INDIRECT(A175))=B175,0,1)","v":0},null,null,null,null,null,null,null,null,null,null,null,null,{"$f":"ADDRESS(64,6,1,1,$P$1)","v":"'Concentration Risk'!$F$64"},"=MAX(0,(D64*E64))",{"$f":"IF(_xlfn.FORMULATEXT(INDIRECT(P175))=Q175,0,1)","v":0},{"$f":"ADDRESS(16,11,1,1,$S$1)","v":"'Geographic Diversification'!$K$16"},"=+'Schedule IVC (EBS)'!G16",{"$f":"IF(_xlfn.FORMULATEXT(INDIRECT(S175))=T175,0,1)","v":0}]
[{"$f":"ADDRESS(71,7,1,1,$A$1)","v":"Summary!$G$71"},"=(G55^2+G56^2+G57^2+G58^2+G59^2+G65^2+G67^2+(1/2*G62+G66)^2+(1/2*G62)^2)^0.5",{"$f":"IF(_xlfn.FORMULATEXT(INDIRECT(A176))=B176,0,1)","v":0},null,null,null,null,null,null,null,null,null,null,null,null,{"$f":"ADDRESS(65,2,1,1,$P$1)","v":"'Concentration Risk'!$B$65"},"BSCR Rating 3",{"$f":"IF(INDIRECT(P176)=Q176,0,1)","v":0},{"$f":"ADDRESS(16,12,1,1,$S$1)","v":"'Geographic Diversification'!$L$16"},"=+'Schedule IVC (EBS)'!H16",{"$f":"IF(_xlfn.FORMULATEXT(INDIRECT(S176))=T176,0,1)","v":0}]
[{"$f":"ADDRESS(71,12,1,1,$A$1)","v":"Summary!$L$71"},"{=SQRT(MMULT(TRANSPOSE('Correlation Matrix'!Z6:Z8),MMULT('Correlation Matrix'!O7:Q9,'Correlation Matrix'!Z6:Z8)))}",{"$f":"IF(_xlfn.FORMULATEXT(INDIRECT(A177))=B177,0,1)","v":0},null,null,null,null,null,null,null,null,null,null,null,null,{"$f":"ADDRESS(65,4,1,1,$P$1)","v":"'Concentration Risk'!$D$65"},"=SUMIFS('Schedule XXI'!$M$8:$M$57,'Schedule XXI'!$K$8:$K$57,$D$61,'Schedule XXI'!$L$8:$L$57,$B65)",{"$f":"IF(_xlfn.FORMULATEXT(INDIRECT(P177))=Q177,0,1)","v":0},{"$f":"ADDRESS(16,13,1,1,$S$1)","v":"'Geographic Diversification'!$M$16"},"=+'Schedule IVC (EBS)'!I16",{"$f":"IF(_xlfn.FORMULATEXT(INDIRECT(S177))=T177,0,1)","v":0}]
[{"$f":"ADDRESS(71,14,1,1,$A$1)","v":"Summary!$N$71"},"{=SQRT(MMULT(TRANSPOSE('Correlation Matrix'!W6:W8),MMULT('Correlation Matrix'!O7:Q9,'Correlation Matrix'!W6:W8)))}",{"$f":"IF(_xlfn.FORMULATEXT(INDIRECT(A178))=B178,0,1)","v":0},null,null,null,null,null,null,null,null,null,null,null,null,{"$f":"ADDRESS(65,5,1,1,$P$1)","v":"'Concentration Risk'!$E$65"},"=+'Fixed Income Investments'!E59",{"$f":"IF(_xlfn.FORMULATEXT(INDIRECT(P178))=Q178,0,1)","v":0},{"$f":"ADDRESS(16,14,1,1,$S$1)","v":"'Geographic Diversification'!$N$16"},"=+'Schedule IVC (EBS)'!J16",{"$f":"IF(_xlfn.FORMULATEXT(INDIRECT(S178))=T178,0,1)","v":0}]
[{"$f":"ADDRESS(71,35,1,1,$A$1)","v":"Summary!$AI$71"},0,{"$f":"IF(INDIRECT(A179)=B179,0,1)","v":0},null,null,null,null,null,null,null,null,null,null,null,null,{"$f":"ADDRESS(65,6,1,1,$P$1)","v":"'Concentration Risk'!$F$65"},"=MAX(0,(D65*E65))",{"$f":"IF(_xlfn.FORMULATEXT(INDIRECT(P179))=Q179,0,1)","v":0},{"$f":"ADDRESS(16,15,1,1,$S$1)","v":"'Geographic Diversification'!$O$16"},"=+'Schedule IVC (EBS)'!K16",{"$f":"IF(_xlfn.FORMULATEXT(INDIRECT(S179))=T179,0,1)","v":0}]
[{"$f":"ADDRESS(71,36,1,1,$A$1)","v":"Summary!$AJ$71"},"=0.5-AI89",{"$f":"IF(_xlfn.FORMULATEXT(INDIRECT(A180))=B180,0,1)","v":0},null,null,null,null,null,null,null,null,null,null,null,null,{"$f":"ADDRESS(66,2,1,1,$P$1)","v":"'Concentration Risk'!$B$66"},"BSCR Rating 4",{"$f":"IF(INDIRECT(P180)=Q180,0,1)","v":0},{"$f":"ADDRESS(16,16,1,1,$S$1)","v":"'Geographic Diversification'!$P$16"},"=+'Schedule IVC (EBS)'!L16",{"$f":"IF(_xlfn.FORMULATEXT(INDIRECT(S180))=T180,0,1)","v":0}]
[{"$f":"ADDRESS(71,37,1,1,$A$1)","v":"Summary!$AK$71"},"=AJ71",{"$f":"IF(_xlfn.FORMULATEXT(INDIRECT(A181))=B181,0,1)","v":0},null,null,null,null,null,null,null,null,null,null,null,null,{"$f":"ADDRESS(66,4,1,1,$P$1)","v":"'Concentration Risk'!$D$66"},"=SUMIFS('Schedule XXI'!$M$8:$M$57,'Schedule XXI'!$K$8:$K$57,$D$61,'Schedule XXI'!$L$8:$L$57,$B66)",{"$f":"IF(_xlfn.FORMULATEXT(INDIRECT(P181))=Q181,0,1)","v":0},{"$f":"ADDRESS(16,17,1,1,$S$1)","v":"'Geographic Diversification'!$Q$16"},"=+'Schedule IVC (EBS)'!M16",{"$f":"IF(_xlfn.FORMULATEXT(INDIRECT(S181))=T181,0,1)","v":0}]
[{"$f":"ADDRESS(71,38,1,1,$A$1)","v":"Summary!$AL$71"},"=0.5+AI89",{"$f":"IF(_xlfn.FORMULATEXT(INDIRECT(A182))=B182,0,1)","v":0},null,null,null,null,null,null,null,null,null,null,null,null,{"$f":"ADDRESS(66,5,1,1,$P$1)","v":"'Concentration Risk'!$E$66"},"=+'Fixed Income Investments'!E60",{"$f":"IF(_xlfn.FORMULATEXT(INDIRECT(P182))=Q182,0,1)","v":0},{"$f":"ADDRESS(16,18,1,1,$S$1)","v":"'Geographic Diversification'!$R$16"},"=+'Schedule IVC (EBS)'!N16",{"$f":"IF(_xlfn.FORMULATEXT(INDIRECT(S182))=T182,0,1)","v":0}]
[{"$f":"ADDRESS(71,39,1,1,$A$1)","v":"Summary!$AM$71"},"=AL71",{"$f":"IF(_xlfn.FORMULATEXT(INDIRECT(A183))=B183,0,1)","v":0},null,null,null,null,null,null,null,null,null,null,null,null,{"$f":"ADDRESS(66,6,1,1,$P$1)","v":"'Concentration Risk'!$F$66"},"=MAX(0,(D66*E66))",{"$f":"IF(_xlfn.FORMULATEXT(INDIRECT(P183))=Q183,0,1)","v":0},{"$f":"ADDRESS(16,19,1,1,$S$1)","v":"'Geographic Diversification'!$S$16"},"=+'Schedule IVC (EBS)'!O16",{"$f":"IF(_xlfn.FORMULATEXT(INDIRECT(S183))=T183,0,1)","v":0}]
[{"$f":"ADDRESS(71,40,1,1,$A$1)","v":"Summary!$AN$71"},1,{"$f":"IF(INDIRECT(A184)=B184,0,1)","v":0},null,null,null,null,null,null,null,null,null,null,null,null,{"$f":"ADDRESS(67,2,1,1,$P$1)","v":"'Concentration Risk'!$B$67"},"BSCR Rating 5",{"$f":"IF(INDIRECT(P184)=Q184,0,1)","v":0},{"$f":"ADDRESS(16,20,1,1,$S$1)","v":"'Geographic Diversification'!$T$16"},"=+'Schedule IVC (EBS)'!P16",{"$f":"IF(_xlfn.FORMULATEXT(INDIRECT(S184))=T184,0,1)","v":0}]
[{"$f":"ADDRESS(73,7,1,1,$A$1)","v":"Summary!$G$73"},"='Op Risk'!D27",{"$f":"IF(_xlfn.FORMULATEXT(INDIRECT(A185))=B185,0,1)","v":0},null,null,null,null,null,null,null,null,null,null,null,null,{"$f":"ADDRESS(67,4,1,1,$P$1)","v":"'Concentration Risk'!$D$67"},"=SUMIFS('Schedule XXI'!$M$8:$M$57,'Schedule XXI'!$K$8:$K$57,$D$61,'Schedule XXI'!$L$8:$L$57,$B67)",{"$f":"IF(_xlfn.FORMULATEXT(INDIRECT(P185))=Q185,0,1)","v":0},{"$f":"ADDRESS(16,21,1,1,$S$1)","v":"'Geographic Diversification'!$U$16"},"=+'Schedule IVC (EBS)'!Q16",{"$f":"IF(_xlfn.FORMULATEXT(INDIRECT(S185))=T185,0,1)","v":0}]
[{"$f":"ADDRESS(73,14,1,1,$A$1)","v":"Summary!$N$73"},"='Op Risk (Revised)'!D27",{"$f":"IF(_xlfn.FORMULATEXT(INDIRECT(A186))=B186,0,1)","v":0},null,null,null,null,null,null,null,null,null,null,null,null,{"$f":"ADDRESS(67,5,1,1,$P$1)","v":"'Concentration Risk'!$E$67"},"=+'Fixed Income Investments'!E61",{"$f":"IF(_xlfn.FORMULATEXT(INDIRECT(P186))=Q186,0,1)","v":0},{"$f":"ADDRESS(16,22,1,1,$S$1)","v":"'Geographic Diversification'!$V$16"},"=+'Schedule IVC (EBS)'!R16",{"$f":"IF(_xlfn.FORMULATEXT(INDIRECT(S186))=T186,0,1)","v":0}]
[{"$f":"ADDRESS(75,7,1,1,$A$1)","v":"Summary!$G$75"},"=$G$71*$G$73",{"$f":"IF(_xlfn.FORMULATEXT(INDIRECT(A187))=B187,0,1)","v":0},null,null,null,null,null,null,null,null,null,null,null,null,{"$f":"ADDRESS(67,6,1,1,$P$1)","v":"'Concentration Risk'!$F$67"},"=MAX(0,(D67*E67))",{"$f":"IF(_xlfn.FORMULATEXT(INDIRECT(P187))=Q187,0,1)","v":0},{"$f":"ADDRESS(16,23,1,1,$S$1)","v":"'Geographic Diversification'!$W$16"},"=+'Schedule IVC (EBS)'!S16",{"$f":"IF(_xlfn.FORMULATEXT(INDIRECT(S187))=T187,0,1)","v":0}]
[{"$f":"ADDRESS(75,14,1,1,$A$1)","v":"Summary!$N$75"},"=($N$71+N144)*$N$73",{"$f":"IF(_xlfn.FORMULATEXT(INDIRECT(A188))=B188,0,1)","v":0},null,null,null,null,null,null,null,null,null,null,null,null,{"$f":"ADDRESS(68,2,1,1,$P$1)","v":"'Concentration Risk'!$B$68"},"BSCR Rating 6",{"$f":"IF(INDIRECT(P188)=Q188,0,1)","v":0},{"$f":"ADDRESS(16,24,1,1,$S$1)","v":"'Geographic Diversification'!$X$16"},"=+'Schedule IVC (EBS)'!T16",{"$f":"IF(_xlfn.FORMULATEXT(INDIRECT(S188))=T188,0,1)","v":0}]
[{"$f":"ADDRESS(75,26,1,1,$A$1)","v":"Summary!$Z$75"},"=MAX(Z83,Z85,Z89)",{"$f":"IF(_xlfn.FORMULATEXT(INDIRECT(A189))=B189,0,1)","v":0},null,null,null,null,null,null,null,null,null,null,null,null,{"$f":"ADDRESS(68,4,1,1,$P$1)","v":"'Concentration Risk'!$D$68"},"=SUMIFS('Schedule XXI'!$M$8:$M$57,'Schedule XXI'!$K$8:$K$57,$D$61,'Schedule XXI'!$L$8:$L$57,$B68)",{"$f":"IF(_xlfn.FORMULATEXT(INDIRECT(P189))=Q189,0,1)","v":0},{"$f":"ADDRESS(16,25,1,1,$S$1)","v":"'Geographic Diversification'!$Y$16"},"=+'Schedule IVC (EBS)'!U16",{"$f":"IF(_xlfn.FORMULATEXT(INDIRECT(S189))=T189,0,1)","v":0}]
[{"$f":"ADDRESS(75,29,1,1,$A$1)","v":"Summary!$AC$75"},"=MAX($Z$75,$N$87)",{"$f":"IF(_xlfn.FORMULATEXT(INDIRECT(A190))=B190,0,1)","v":0},null,null,null,null,null,null,null,null,null,null,null,null,{"$f":"ADDRESS(68,5,1,1,$P$1)","v":"'Concentration Risk'!$E$68"},"=+'Fixed Income Investments'!E62",{"$f":"IF(_xlfn.FORMULATEXT(INDIRECT(P190))=Q190,0,1)","v":0},{"$f":"ADDRESS(16,26,1,1,$S$1)","v":"'Geographic Diversification'!$Z$16"},"=+'Schedule IVC (EBS)'!V16",{"$f":"IF(_xlfn.FORMULATEXT(INDIRECT(S190))=T190,0,1)","v":0}]
[{"$f":"ADDRESS(77,7,1,1,$A$1)","v":"Summary!$G$77"},"=+'Schedule XVI'!M211",{"$f":"IF(_xlfn.FORMULATEXT(INDIRECT(A191))=B191,0,1)","v":0},null,null,null,null,null,null,null,null,null,null,null,null,{"$f":"ADDRESS(68,6,1,1,$P$1)","v":"'Concentration Risk'!$F$68"},"=MAX(0,(D68*E68))",{"$f":"IF(_xlfn.FORMULATEXT(INDIRECT(P191))=Q191,0,1)","v":0},{"$f":"ADDRESS(17,4,1,1,$S$1)","v":"'Geographic Diversification'!$D$17"},"=SUM(I17:Z17)",{"$f":"IF(_xlfn.FORMULATEXT(INDIRECT(S191))=T191,0,1)","v":0}]
[{"$f":"ADDRESS(77,14,1,1,$A$1)","v":"Summary!$N$77"},"=+'Schedule XVI'!M211",{"$f":"IF(_xlfn.FORMULATEXT(INDIRECT(A192))=B192,0,1)","v":0},null,null,null,null,null,null,null,null,null,null,null,null,{"$f":"ADDRESS(69,2,1,1,$P$1)","v":"'Concentration Risk'!$B$69"},"BSCR Rating 7",{"$f":"IF(INDIRECT(P192)=Q192,0,1)","v":0},{"$f":"ADDRESS(17,5,1,1,$S$1)","v":"'Geographic Diversification'!$E$17"},"=SUMSQ(I17:Z17)",{"$f":"IF(_xlfn.FORMULATEXT(INDIRECT(S192))=T192,0,1)","v":0}]
[{"$f":"ADDRESS(79,14,1,1,$A$1)","v":"Summary!$N$79"},"=N144",{"$f":"IF(_xlfn.FORMULATEXT(INDIRECT(A193))=B193,0,1)","v":0},null,null,null,null,null,null,null,null,null,null,null,null,{"$f":"ADDRESS(69,4,1,1,$P$1)","v":"'Concentration Risk'!$D$69"},"=SUMIFS('Schedule XXI'!$M$8:$M$57,'Schedule XXI'!$K$8:$K$57,$D$61,'Schedule XXI'!$L$8:$L$57,$B69)",{"$f":"IF(_xlfn.FORMULATEXT(INDIRECT(P193))=Q193,0,1)","v":0},{"$f":"ADDRESS(17,6,1,1,$S$1)","v":"'Geographic Diversification'!$F$17"},"=(IF(D17>0,E17/D17^2,1))",{"$f":"IF(_xlfn.FORMULATEXT(INDIRECT(S193))=T193,0,1)","v":0}]
[{"$f":"ADDRESS(81,14,1,1,$A$1)","v":"Summary!$N$81"},"=M149",{"$f":"IF(_xlfn.FORMULATEXT(INDIRECT(A194))=B194,0,1)","v":0},null,null,null,null,null,null,null,null,null,null,null,null,{"$f":"ADDRESS(69,5,1,1,$P$1)","v":"'Concentration Risk'!$E$69"},"=+'Fixed Income Investments'!E63",{"$f":"IF(_xlfn.FORMULATEXT(INDIRECT(P194))=Q194,0,1)","v":0},{"$f":"ADDRESS(17,7,1,1,$S$1)","v":"'Geographic Diversification'!$G$17"},"=D17*(0.75+0.25*F17)",{"$f":"IF(_xlfn.FORMULATEXT(INDIRECT(S194))=T194,0,1)","v":0}]
[{"$f":"ADDRESS(83,7,1,1,$A$1)","v":"Summary!$G$83"},"='Company Specific Parameters'!I524-'Company Specific Parameters'!F524",{"$f":"IF(_xlfn.FORMULATEXT(INDIRECT(A195))=B195,0,1)","v":0},null,null,null,null,null,null,null,null,null,null,null,null,{"$f":"ADDRESS(69,6,1,1,$P$1)","v":"'Concentration Risk'!$F$69"},"=MAX(0,(D69*E69))",{"$f":"IF(_xlfn.FORMULATEXT(INDIRECT(P195))=Q195,0,1)","v":0},{"$f":"ADDRESS(17,8,1,1,$S$1)","v":"'Geographic Diversification'!$H$17"},"=IF('Schedule IVC (EBS)'!AB17=\"True\",G17,'Schedule IVA (EBS)'!Q19)",{"$f":"IF(_xlfn.FORMULATEXT(INDIRECT(S195))=T195,0,1)","v":0}]
[{"$f":"ADDRESS(83,14,1,1,$A$1)","v":"Summary!$N$83"},"='CSP (Revised)'!L692-'CSP (Revised)'!I692",{"$f":"IF(_xlfn.FORMULATEXT(INDIRECT(A196))=B196,0,1)","v":0},null,null,null,null,null,null,null,null,null,null,null,null,{"$f":"ADDRESS(70,2,1,1,$P$1)","v":"'Concentration Risk'!$B$70"},"BSCR Rating 8",{"$f":"IF(INDIRECT(P196)=Q196,0,1)","v":0},{"$f":"ADDRESS(17,9,1,1,$S$1)","v":"'Geographic Diversification'!$I$17"},"=+'Schedule IVC (EBS)'!E17",{"$f":"IF(_xlfn.FORMULATEXT(INDIRECT(S196))=T196,0,1)","v":0}]
[{"$f":"ADDRESS(83,20,1,1,$A$1)","v":"Summary!$T$83"},"brrt_CapitalAddonReductionBMAAssessmentRequiredCapitalAndSurplus",{"$f":"IF(INDIRECT(A197)=B197,0,1)","v":0},null,null,null,null,null,null,null,null,null,null,null,null,{"$f":"ADDRESS(70,4,1,1,$P$1)","v":"'Concentration Risk'!$D$70"},"=SUMIFS('Schedule XXI'!$M$8:$M$57,'Schedule XXI'!$K$8:$K$57,$D$61,'Schedule XXI'!$L$8:$L$57,$B70)",{"$f":"IF(_xlfn.FORMULATEXT(INDIRECT(P197))=Q197,0,1)","v":0},{"$f":"ADDRESS(17,10,1,1,$S$1)","v":"'Geographic Diversification'!$J$17"},"=+'Schedule IVC (EBS)'!F17",{"$f":"IF(_xlfn.FORMULATEXT(INDIRECT(S197))=T197,0,1)","v":0}]
[{"$f":"ADDRESS(83,21,1,1,$A$1)","v":"Summary!$U$83"},"=XBRLMap(N83,T83,E$163,E$164,CONFIGURATION!$B$10,\"BMA\",CONFIGURATION!$B$1,\"bscr\",CONFIGURATION!$B$12)",{"$f":"IF(_xlfn.FORMULATEXT(INDIRECT(A198))=B198,0,1)","v":0},null,null,null,null,null,null,null,null,null,null,null,null,{"$f":"ADDRESS(70,5,1,1,$P$1)","v":"'Concentration Risk'!$E$70"},"=+'Fixed Income Investments'!E64",{"$f":"IF(_xlfn.FORMULATEXT(INDIRECT(P198))=Q198,0,1)","v":0},{"$f":"ADDRESS(17,11,1,1,$S$1)","v":"'Geographic Diversification'!$K$17"},"=+'Schedule IVC (EBS)'!G17",{"$f":"IF(_xlfn.FORMULATEXT(INDIRECT(S198))=T198,0,1)","v":0}]
[{"$f":"ADDRESS(83,26,1,1,$A$1)","v":"Summary!$Z$83"},"=IF('Company Information'!B2=\"Unconsolidated BSCR Model\",'Form 1SFS'!M124*IF('Form 1SFS'!$C$5=\"United States Dollars\",1,'Information Sheet'!$H$18)*15%,'Form 1SFS'!E124*IF('Form 1SFS'!$C$5=\"United States Dollars\",1,'Information Sheet'!$H$18)*15%)",{"$f":"IF(_xlfn.FORMULATEXT(INDIRECT(A199))=B199,0,1)","v":0},null,null,null,null,null,null,null,null,null,null,null,null,{"$f":"ADDRESS(70,6,1,1,$P$1)","v":"'Concentration Risk'!$F$70"},"=MAX(0,(D70*E70))",{"$f":"IF(_xlfn.FORMULATEXT(INDIRECT(P199))=Q199,0,1)","v":0},{"$f":"ADDRESS(17,12,1,1,$S$1)","v":"'Geographic Diversification'!$L$17"},"=+'Schedule IVC (EBS)'!H17",{"$f":"IF(_xlfn.FORMULATEXT(INDIRECT(S199))=T199,0,1)","v":0}]
[{"$f":"ADDRESS(85,14,1,1,$A$1)","v":"Summary!$N$85"},"=IF(YEAR('Company Information'!C3)<2020,(N87-G87)*33%+G87,IF(YEAR('Company Information'!C3)<2021,(N87-G87)*66%+G87,N87))",{"$f":"IF(_xlfn.FORMULATEXT(INDIRECT(A200))=B200,0,1)","v":0},null,null,null,null,null,null,null,null,null,null,null,null,{"$f":"ADDRESS(72,4,1,1,$P$1)","v":"'Concentration Risk'!$D$72"},"=SUM(D61:D70)",{"$f":"IF(_xlfn.FORMULATEXT(INDIRECT(P200))=Q200,0,1)","v":0},{"$f":"ADDRESS(17,13,1,1,$S$1)","v":"'Geographic Diversification'!$M$17"},"=+'Schedule IVC (EBS)'!I17",{"$f":"IF(_xlfn.FORMULATEXT(INDIRECT(S200))=T200,0,1)","v":0}]
[{"$f":"ADDRESS(85,20,1,1,$A$1)","v":"Summary!$T$85"},"brrt_BSCR",{"$f":"IF(INDIRECT(A201)=B201,0,1)","v":0},null,null,null,null,null,null,null,null,null,null,null,null,{"$f":"ADDRESS(72,6,1,1,$P$1)","v":"'Concentration Risk'!$F$72"},"=SUM(F61:F70)",{"$f":"IF(_xlfn.FORMULATEXT(INDIRECT(P201))=Q201,0,1)","v":0},{"$f":"ADDRESS(17,14,1,1,$S$1)","v":"'Geographic Diversification'!$N$17"},"=+'Schedule IVC (EBS)'!J17",{"$f":"IF(_xlfn.FORMULATEXT(INDIRECT(S201))=T201,0,1)","v":0}]
[{"$f":"ADDRESS(85,21,1,1,$A$1)","v":"Summary!$U$85"},"=XBRLMap(N87,T85,E$163,E$164,CONFIGURATION!$B$10,\"BMA\",CONFIGURATION!$B$1,\"bscr\",CONFIGURATION!$B$12)",{"$f":"IF(_xlfn.FORMULATEXT(INDIRECT(A202))=B202,0,1)","v":0},null,null,null,null,null,null,null,null,null,null,null,null,{"$f":"ADDRESS(74,4,1,1,$P$1)","v":"'Concentration Risk'!$D$74"},"Preferred Shares",{"$f":"IF(INDIRECT(P202)=Q202,0,1)","v":0},{"$f":"ADDRESS(17,15,1,1,$S$1)","v":"'Geographic Diversification'!$O$17"},"=+'Schedule IVC (EBS)'!K17",{"$f":"IF(_xlfn.FORMULATEXT(INDIRECT(S202))=T202,0,1)","v":0}]
[{"$f":"ADDRESS(85,26,1,1,$A$1)","v":"Summary!$Z$85"},"=IF('Company Information'!F11=\"Class 4\",IF(CONFIGURATION!B12=1000,100000,100000000),IF(CONFIGURATION!B12=1000,1000,1000000))",{"$f":"IF(_xlfn.FORMULATEXT(INDIRECT(A203))=B203,0,1)","v":0},null,null,null,null,null,null,null,null,null,null,null,null,{"$f":"ADDRESS(75,2,1,1,$P$1)","v":"'Concentration Risk'!$B$75"},"BSCR Rating 0",{"$f":"IF(INDIRECT(P203)=Q203,0,1)","v":0},{"$f":"ADDRESS(17,16,1,1,$S$1)","v":"'Geographic Diversification'!$P$17"},"=+'Schedule IVC (EBS)'!L17",{"$f":"IF(_xlfn.FORMULATEXT(INDIRECT(S203))=T203,0,1)","v":0}]
[{"$f":"ADDRESS(87,7,1,1,$A$1)","v":"Summary!$G$87"},"=G71+G75+G83+G77",{"$f":"IF(_xlfn.FORMULATEXT(INDIRECT(A204))=B204,0,1)","v":0},null,null,null,null,null,null,null,null,null,null,null,null,{"$f":"ADDRESS(75,4,1,1,$P$1)","v":"'Concentration Risk'!$D$75"},"=SUMIFS('Schedule XXI'!$M$8:$M$57,'Schedule XXI'!$J$8:$J$57,$D$74,'Schedule XXI'!$L$8:$L$57,$B75)",{"$f":"IF(_xlfn.FORMULATEXT(INDIRECT(P204))=Q204,0,1)","v":0},{"$f":"ADDRESS(17,17,1,1,$S$1)","v":"'Geographic Diversification'!$Q$17"},"=+'Schedule IVC (EBS)'!M17",{"$f":"IF(_xlfn.FORMULATEXT(INDIRECT(S204))=T204,0,1)","v":0}]
[{"$f":"ADDRESS(87,14,1,1,$A$1)","v":"Summary!$N$87"},"=N71+N75+N83+N77-N81+N79",{"$f":"IF(_xlfn.FORMULATEXT(INDIRECT(A205))=B205,0,1)","v":0},null,null,null,null,null,null,null,null,null,null,null,null,{"$f":"ADDRESS(75,5,1,1,$P$1)","v":"'Concentration Risk'!$E$75"},0,{"$f":"IF(INDIRECT(P205)=Q205,0,1)","v":0},{"$f":"ADDRESS(17,18,1,1,$S$1)","v":"'Geographic Diversification'!$R$17"},"=+'Schedule IVC (EBS)'!N17",{"$f":"IF(_xlfn.FORMULATEXT(INDIRECT(S205))=T205,0,1)","v":0}]
[{"$f":"ADDRESS(89,7,1,1,$A$1)","v":"Summary!$G$89"},"='Form 1EBS'!$F$7",{"$f":"IF(_xlfn.FORMULATEXT(INDIRECT(A206))=B206,0,1)","v":0},null,null,null,null,null,null,null,null,null,null,null,null,{"$f":"ADDRESS(75,6,1,1,$P$1)","v":"'Concentration Risk'!$F$75"},"=MAX(0,(D75*E75))",{"$f":"IF(_xlfn.FORMULATEXT(INDIRECT(P206))=Q206,0,1)","v":0},{"$f":"ADDRESS(17,19,1,1,$S$1)","v":"'Geographic Diversification'!$S$17"},"=+'Schedule IVC (EBS)'!O17",{"$f":"IF(_xlfn.FORMULATEXT(INDIRECT(S206))=T206,0,1)","v":0}]
[{"$f":"ADDRESS(89,26,1,1,$A$1)","v":"Summary!$Z$89"},"=G20",{"$f":"IF(_xlfn.FORMULATEXT(INDIRECT(A207))=B207,0,1)","v":0},null,null,null,null,null,null,null,null,null,null,null,null,{"$f":"ADDRESS(76,2,1,1,$P$1)","v":"'Concentration Risk'!$B$76"},"BSCR Rating 1",{"$f":"IF(INDIRECT(P207)=Q207,0,1)","v":0},{"$f":"ADDRESS(17,20,1,1,$S$1)","v":"'Geographic Diversification'!$T$17"},"=+'Schedule IVC (EBS)'!P17",{"$f":"IF(_xlfn.FORMULATEXT(INDIRECT(S207))=T207,0,1)","v":0}]
[{"$f":"ADDRESS(89,35,1,1,$A$1)","v":"Summary!$AI$89"},7.4999999999999997E-2,{"$f":"IF(INDIRECT(A208)=B208,0,1)","v":0},null,null,null,null,null,null,null,null,null,null,null,null,{"$f":"ADDRESS(76,4,1,1,$P$1)","v":"'Concentration Risk'!$D$76"},"=SUMIFS('Schedule XXI'!$M$8:$M$57,'Schedule XXI'!$J$8:$J$57,$D$74,'Schedule XXI'!$L$8:$L$57,$B76)",{"$f":"IF(_xlfn.FORMULATEXT(INDIRECT(P208))=Q208,0,1)","v":0},{"$f":"ADDRESS(17,21,1,1,$S$1)","v":"'Geographic Diversification'!$U$17"},"=+'Schedule IVC (EBS)'!Q17",{"$f":"IF(_xlfn.FORMULATEXT(INDIRECT(S208))=T208,0,1)","v":0}]
[{"$f":"ADDRESS(91,7,1,1,$A$1)","v":"Summary!$G$91"},"='Form 1EBS'!F167",{"$f":"IF(_xlfn.FORMULATEXT(INDIRECT(A209))=B209,0,1)","v":0},null,null,null,null,null,null,null,null,null,null,null,null,{"$f":"ADDRESS(76,5,1,1,$P$1)","v":"'Concentration Risk'!$E$76"},6.0000000000000001E-3,{"$f":"IF(INDIRECT(P209)=Q209,0,1)","v":0},{"$f":"ADDRESS(17,22,1,1,$S$1)","v":"'Geographic Diversification'!$V$17"},"=+'Schedule IVC (EBS)'!R17",{"$f":"IF(_xlfn.FORMULATEXT(INDIRECT(S209))=T209,0,1)","v":0}]
[{"$f":"ADDRESS(91,14,1,1,$A$1)","v":"Summary!$N$91"},"='Form 1EBS'!F167",{"$f":"IF(_xlfn.FORMULATEXT(INDIRECT(A210))=B210,0,1)","v":0},null,null,null,null,null,null,null,null,null,null,null,null,{"$f":"ADDRESS(76,6,1,1,$P$1)","v":"'Concentration Risk'!$F$76"},"=MAX(0,(D76*E76))",{"$f":"IF(_xlfn.FORMULATEXT(INDIRECT(P210))=Q210,0,1)","v":0},{"$f":"ADDRESS(17,23,1,1,$S$1)","v":"'Geographic Diversification'!$W$17"},"=+'Schedule IVC (EBS)'!S17",{"$f":"IF(_xlfn.FORMULATEXT(INDIRECT(S210))=T210,0,1)","v":0}]
[{"$f":"ADDRESS(92,20,1,1,$A$1)","v":"Summary!$T$92"},"brrt_CapitalContribution",{"$f":"IF(INDIRECT(A211)=B211,0,1)","v":0},null,null,null,null,null,null,null,null,null,null,null,null,{"$f":"ADDRESS(77,2,1,1,$P$1)","v":"'Concentration Risk'!$B$77"},"BSCR Rating 2",{"$f":"IF(INDIRECT(P211)=Q211,0,1)","v":0},{"$f":"ADDRESS(17,24,1,1,$S$1)","v":"'Geographic Diversification'!$X$17"},"=+'Schedule IVC (EBS)'!T17",{"$f":"IF(_xlfn.FORMULATEXT(INDIRECT(S211))=T211,0,1)","v":0}]
[{"$f":"ADDRESS(92,21,1,1,$A$1)","v":"Summary!$U$92"},"=XBRLMap(N92,T92,E$163,E$164,CONFIGURATION!$B$10,\"BMA\",CONFIGURATION!$B$1,\"bscr\",CONFIGURATION!$B$12)",{"$f":"IF(_xlfn.FORMULATEXT(INDIRECT(A212))=B212,0,1)","v":0},null,null,null,null,null,null,null,null,null,null,null,null,{"$f":"ADDRESS(77,4,1,1,$P$1)","v":"'Concentration Risk'!$D$77"},"=SUMIFS('Schedule XXI'!$M$8:$M$57,'Schedule XXI'!$J$8:$J$57,$D$74,'Schedule XXI'!$L$8:$L$57,$B77)",{"$f":"IF(_xlfn.FORMULATEXT(INDIRECT(P212))=Q212,0,1)","v":0},{"$f":"ADDRESS(17,25,1,1,$S$1)","v":"'Geographic Diversification'!$Y$17"},"=+'Schedule IVC (EBS)'!U17",{"$f":"IF(_xlfn.FORMULATEXT(INDIRECT(S212))=T212,0,1)","v":0}]
[{"$f":"ADDRESS(93,7,1,1,$A$1)","v":"Summary!$G$93"},"=G91+G92",{"$f":"IF(_xlfn.FORMULATEXT(INDIRECT(A213))=B213,0,1)","v":0},null,null,null,null,null,null,null,null,null,null,null,null,{"$f":"ADDRESS(77,5,1,1,$P$1)","v":"'Concentration Risk'!$E$77"},1.2E-2,{"$f":"IF(INDIRECT(P213)=Q213,0,1)","v":0},{"$f":"ADDRESS(17,26,1,1,$S$1)","v":"'Geographic Diversification'!$Z$17"},"=+'Schedule IVC (EBS)'!V17",{"$f":"IF(_xlfn.FORMULATEXT(INDIRECT(S213))=T213,0,1)","v":0}]
[{"$f":"ADDRESS(93,14,1,1,$A$1)","v":"Summary!$N$93"},"=N91+N92",{"$f":"IF(_xlfn.FORMULATEXT(INDIRECT(A214))=B214,0,1)","v":0},null,null,null,null,null,null,null,null,null,null,null,null,{"$f":"ADDRESS(77,6,1,1,$P$1)","v":"'Concentration Risk'!$F$77"},"=MAX(0,(D77*E77))",{"$f":"IF(_xlfn.FORMULATEXT(INDIRECT(P214))=Q214,0,1)","v":0},{"$f":"ADDRESS(18,4,1,1,$S$1)","v":"'Geographic Diversification'!$D$18"},"=SUM(I18:Z18)",{"$f":"IF(_xlfn.FORMULATEXT(INDIRECT(S214))=T214,0,1)","v":0}]
[{"$f":"ADDRESS(93,20,1,1,$A$1)","v":"Summary!$T$93"},"brrt_PreAdjustmentAvailableStatutoryCapitalSurplus",{"$f":"IF(INDIRECT(A215)=B215,0,1)","v":0},null,null,null,null,null,null,null,null,null,null,null,null,{"$f":"ADDRESS(78,2,1,1,$P$1)","v":"'Concentration Risk'!$B$78"},"BSCR Rating 3",{"$f":"IF(INDIRECT(P215)=Q215,0,1)","v":0},{"$f":"ADDRESS(18,5,1,1,$S$1)","v":"'Geographic Diversification'!$E$18"},"=SUMSQ(I18:Z18)",{"$f":"IF(_xlfn.FORMULATEXT(INDIRECT(S215))=T215,0,1)","v":0}]
[{"$f":"ADDRESS(93,21,1,1,$A$1)","v":"Summary!$U$93"},"=XBRLMap(N93,T93,E$163,E$164,CONFIGURATION!$B$10,\"BMA\",CONFIGURATION!$B$1,\"bscr\",CONFIGURATION!$B$12)",{"$f":"IF(_xlfn.FORMULATEXT(INDIRECT(A216))=B216,0,1)","v":0},null,null,null,null,null,null,null,null,null,null,null,null,{"$f":"ADDRESS(78,4,1,1,$P$1)","v":"'Concentration Risk'!$D$78"},"=SUMIFS('Schedule XXI'!$M$8:$M$57,'Schedule XXI'!$J$8:$J$57,$D$74,'Schedule XXI'!$L$8:$L$57,$B78)",{"$f":"IF(_xlfn.FORMULATEXT(INDIRECT(P216))=Q216,0,1)","v":0},{"$f":"ADDRESS(18,6,1,1,$S$1)","v":"'Geographic Diversification'!$F$18"},"=(IF(D18>0,E18/D18^2,1))",{"$f":"IF(_xlfn.FORMULATEXT(INDIRECT(S216))=T216,0,1)","v":0}]
[{"$f":"ADDRESS(95,20,1,1,$A$1)","v":"Summary!$T$95"},"brrt_CapitalAddonReductionBMAAssessmentAvailableStatutoryCapitalAndSurplus",{"$f":"IF(INDIRECT(A217)=B217,0,1)","v":0},null,null,null,null,null,null,null,null,null,null,null,null,{"$f":"ADDRESS(78,5,1,1,$P$1)","v":"'Concentration Risk'!$E$78"},0.02,{"$f":"IF(INDIRECT(P217)=Q217,0,1)","v":0},{"$f":"ADDRESS(18,7,1,1,$S$1)","v":"'Geographic Diversification'!$G$18"},"=D18*(0.75+0.25*F18)",{"$f":"IF(_xlfn.FORMULATEXT(INDIRECT(S217))=T217,0,1)","v":0}]
[{"$f":"ADDRESS(95,21,1,1,$A$1)","v":"Summary!$U$95"},"=XBRLMap(N95,T95,E$163,E$164,CONFIGURATION!$B$10,\"BMA\",CONFIGURATION!$B$1,\"bscr\",CONFIGURATION!$B$12)",{"$f":"IF(_xlfn.FORMULATEXT(INDIRECT(A218))=B218,0,1)","v":0},null,null,null,null,null,null,null,null,null,null,null,null,{"$f":"ADDRESS(78,6,1,1,$P$1)","v":"'Concentration Risk'!$F$78"},"=MAX(0,(D78*E78))",{"$f":"IF(_xlfn.FORMULATEXT(INDIRECT(P218))=Q218,0,1)","v":0},{"$f":"ADDRESS(18,8,1,1,$S$1)","v":"'Geographic Diversification'!$H$18"},"=IF('Schedule IVC (EBS)'!AB18=\"True\",G18,'Schedule IVA (EBS)'!Q20)",{"$f":"IF(_xlfn.FORMULATEXT(INDIRECT(S218))=T218,0,1)","v":0}]
[{"$f":"ADDRESS(97,7,1,1,$A$1)","v":"Summary!$G$97"},"=G93-SUM(G95:G95)",{"$f":"IF(_xlfn.FORMULATEXT(INDIRECT(A219))=B219,0,1)","v":0},null,null,null,null,null,null,null,null,null,null,null,null,{"$f":"ADDRESS(79,2,1,1,$P$1)","v":"'Concentration Risk'!$B$79"},"BSCR Rating 4",{"$f":"IF(INDIRECT(P219)=Q219,0,1)","v":0},{"$f":"ADDRESS(18,9,1,1,$S$1)","v":"'Geographic Diversification'!$I$18"},"=+'Schedule IVC (EBS)'!E18",{"$f":"IF(_xlfn.FORMULATEXT(INDIRECT(S219))=T219,0,1)","v":0}]
[{"$f":"ADDRESS(97,14,1,1,$A$1)","v":"Summary!$N$97"},"=N93-SUM(N95:N95)",{"$f":"IF(_xlfn.FORMULATEXT(INDIRECT(A220))=B220,0,1)","v":0},null,null,null,null,null,null,null,null,null,null,null,null,{"$f":"ADDRESS(79,4,1,1,$P$1)","v":"'Concentration Risk'!$D$79"},"=SUMIFS('Schedule XXI'!$M$8:$M$57,'Schedule XXI'!$J$8:$J$57,$D$74,'Schedule XXI'!$L$8:$L$57,$B79)",{"$f":"IF(_xlfn.FORMULATEXT(INDIRECT(P220))=Q220,0,1)","v":0},{"$f":"ADDRESS(18,10,1,1,$S$1)","v":"'Geographic Diversification'!$J$18"},"=+'Schedule IVC (EBS)'!F18",{"$f":"IF(_xlfn.FORMULATEXT(INDIRECT(S220))=T220,0,1)","v":0}]
[{"$f":"ADDRESS(97,20,1,1,$A$1)","v":"Summary!$T$97"},"brrt_AvailableStatutoryCapitalSurplus",{"$f":"IF(INDIRECT(A221)=B221,0,1)","v":0},null,null,null,null,null,null,null,null,null,null,null,null,{"$f":"ADDRESS(79,5,1,1,$P$1)","v":"'Concentration Risk'!$E$79"},0.04,{"$f":"IF(INDIRECT(P221)=Q221,0,1)","v":0},{"$f":"ADDRESS(18,11,1,1,$S$1)","v":"'Geographic Diversification'!$K$18"},"=+'Schedule IVC (EBS)'!G18",{"$f":"IF(_xlfn.FORMULATEXT(INDIRECT(S221))=T221,0,1)","v":0}]
[{"$f":"ADDRESS(97,21,1,1,$A$1)","v":"Summary!$U$97"},"=XBRLMap(N97,T97,E$163,E$164,CONFIGURATION!$B$10,\"BMA\",CONFIGURATION!$B$1,\"bscr\",CONFIGURATION!$B$12)",{"$f":"IF(_xlfn.FORMULATEXT(INDIRECT(A222))=B222,0,1)","v":0},null,null,null,null,null,null,null,null,null,null,null,null,{"$f":"ADDRESS(79,6,1,1,$P$1)","v":"'Concentration Risk'!$F$79"},"=MAX(0,(D79*E79))",{"$f":"IF(_xlfn.FORMULATEXT(INDIRECT(P222))=Q222,0,1)","v":0},{"$f":"ADDRESS(18,12,1,1,$S$1)","v":"'Geographic Diversification'!$L$18"},"=+'Schedule IVC (EBS)'!H18",{"$f":"IF(_xlfn.FORMULATEXT(INDIRECT(S222))=T222,0,1)","v":0}]
[{"$f":"ADDRESS(99,7,1,1,$A$1)","v":"Summary!$G$99"},"='Form 1EBS'!$F$7",{"$f":"IF(_xlfn.FORMULATEXT(INDIRECT(A223))=B223,0,1)","v":0},null,null,null,null,null,null,null,null,null,null,null,null,{"$f":"ADDRESS(80,2,1,1,$P$1)","v":"'Concentration Risk'!$B$80"},"BSCR Rating 5",{"$f":"IF(INDIRECT(P223)=Q223,0,1)","v":0},{"$f":"ADDRESS(18,13,1,1,$S$1)","v":"'Geographic Diversification'!$M$18"},"=+'Schedule IVC (EBS)'!I18",{"$f":"IF(_xlfn.FORMULATEXT(INDIRECT(S223))=T223,0,1)","v":0}]
[{"$f":"ADDRESS(101,7,1,1,$A$1)","v":"Summary!$G$101"},"=MAX(Z75,(G87*25%))",{"$f":"IF(_xlfn.FORMULATEXT(INDIRECT(A224))=B224,0,1)","v":0},null,null,null,null,null,null,null,null,null,null,null,null,{"$f":"ADDRESS(80,4,1,1,$P$1)","v":"'Concentration Risk'!$D$80"},"=SUMIFS('Schedule XXI'!$M$8:$M$57,'Schedule XXI'!$J$8:$J$57,$D$74,'Schedule XXI'!$L$8:$L$57,$B80)",{"$f":"IF(_xlfn.FORMULATEXT(INDIRECT(P224))=Q224,0,1)","v":0},{"$f":"ADDRESS(18,14,1,1,$S$1)","v":"'Geographic Diversification'!$N$18"},"=+'Schedule IVC (EBS)'!J18",{"$f":"IF(_xlfn.FORMULATEXT(INDIRECT(S224))=T224,0,1)","v":0}]
[{"$f":"ADDRESS(101,14,1,1,$A$1)","v":"Summary!$N$101"},"=MAX(Z75,(N87*25%))",{"$f":"IF(_xlfn.FORMULATEXT(INDIRECT(A225))=B225,0,1)","v":0},null,null,null,null,null,null,null,null,null,null,null,null,{"$f":"ADDRESS(80,5,1,1,$P$1)","v":"'Concentration Risk'!$E$80"},0.11,{"$f":"IF(INDIRECT(P225)=Q225,0,1)","v":0},{"$f":"ADDRESS(18,15,1,1,$S$1)","v":"'Geographic Diversification'!$O$18"},"=+'Schedule IVC (EBS)'!K18",{"$f":"IF(_xlfn.FORMULATEXT(INDIRECT(S225))=T225,0,1)","v":0}]
[{"$f":"ADDRESS(103,7,1,1,$A$1)","v":"Summary!$G$103"},"=SUM(G101:G102)",{"$f":"IF(_xlfn.FORMULATEXT(INDIRECT(A226))=B226,0,1)","v":0},null,null,null,null,null,null,null,null,null,null,null,null,{"$f":"ADDRESS(80,6,1,1,$P$1)","v":"'Concentration Risk'!$F$80"},"=MAX(0,(D80*E80))",{"$f":"IF(_xlfn.FORMULATEXT(INDIRECT(P226))=Q226,0,1)","v":0},{"$f":"ADDRESS(18,16,1,1,$S$1)","v":"'Geographic Diversification'!$P$18"},"=+'Schedule IVC (EBS)'!L18",{"$f":"IF(_xlfn.FORMULATEXT(INDIRECT(S226))=T226,0,1)","v":0}]
[{"$f":"ADDRESS(103,14,1,1,$A$1)","v":"Summary!$N$103"},"=SUM(N101:N102)",{"$f":"IF(_xlfn.FORMULATEXT(INDIRECT(A227))=B227,0,1)","v":0},null,null,null,null,null,null,null,null,null,null,null,null,{"$f":"ADDRESS(81,2,1,1,$P$1)","v":"'Concentration Risk'!$B$81"},"BSCR Rating 6",{"$f":"IF(INDIRECT(P227)=Q227,0,1)","v":0},{"$f":"ADDRESS(18,17,1,1,$S$1)","v":"'Geographic Diversification'!$Q$18"},"=+'Schedule IVC (EBS)'!M18",{"$f":"IF(_xlfn.FORMULATEXT(INDIRECT(S227))=T227,0,1)","v":0}]
[{"$f":"ADDRESS(105,7,1,1,$A$1)","v":"Summary!$G$105"},"='Form 1EBS'!$F$7",{"$f":"IF(_xlfn.FORMULATEXT(INDIRECT(A228))=B228,0,1)","v":0},null,null,null,null,null,null,null,null,null,null,null,null,{"$f":"ADDRESS(81,4,1,1,$P$1)","v":"'Concentration Risk'!$D$81"},"=SUMIFS('Schedule XXI'!$M$8:$M$57,'Schedule XXI'!$J$8:$J$57,$D$74,'Schedule XXI'!$L$8:$L$57,$B81)",{"$f":"IF(_xlfn.FORMULATEXT(INDIRECT(P228))=Q228,0,1)","v":0},{"$f":"ADDRESS(18,18,1,1,$S$1)","v":"'Geographic Diversification'!$R$18"},"=+'Schedule IVC (EBS)'!N18",{"$f":"IF(_xlfn.FORMULATEXT(INDIRECT(S228))=T228,0,1)","v":0}]
[{"$f":"ADDRESS(105,27,1,1,$A$1)","v":"Summary!$AA$105"},"=IF($N$97=0,15000000,$N$97)",{"$f":"IF(_xlfn.FORMULATEXT(INDIRECT(A229))=B229,0,1)","v":0},null,null,null,null,null,null,null,null,null,null,null,null,{"$f":"ADDRESS(81,5,1,1,$P$1)","v":"'Concentration Risk'!$E$81"},0.25,{"$f":"IF(INDIRECT(P229)=Q229,0,1)","v":0},{"$f":"ADDRESS(18,19,1,1,$S$1)","v":"'Geographic Diversification'!$S$18"},"=+'Schedule IVC (EBS)'!O18",{"$f":"IF(_xlfn.FORMULATEXT(INDIRECT(S229))=T229,0,1)","v":0}]
[{"$f":"ADDRESS(105,29,1,1,$A$1)","v":"Summary!$AC$105"},"=AC$119-AA105",{"$f":"IF(_xlfn.FORMULATEXT(INDIRECT(A230))=B230,0,1)","v":0},null,null,null,null,null,null,null,null,null,null,null,null,{"$f":"ADDRESS(81,6,1,1,$P$1)","v":"'Concentration Risk'!$F$81"},"=MAX(0,(D81*E81))",{"$f":"IF(_xlfn.FORMULATEXT(INDIRECT(P230))=Q230,0,1)","v":0},{"$f":"ADDRESS(18,20,1,1,$S$1)","v":"'Geographic Diversification'!$T$18"},"=+'Schedule IVC (EBS)'!P18",{"$f":"IF(_xlfn.FORMULATEXT(INDIRECT(S230))=T230,0,1)","v":0}]
[{"$f":"ADDRESS(105,30,1,1,$A$1)","v":"Summary!$AD$105"},"=IF($N$97=0,25000000,$N$97)",{"$f":"IF(_xlfn.FORMULATEXT(INDIRECT(A231))=B231,0,1)","v":0},null,null,null,null,null,null,null,null,null,null,null,null,{"$f":"ADDRESS(82,2,1,1,$P$1)","v":"'Concentration Risk'!$B$82"},"BSCR Rating 7",{"$f":"IF(INDIRECT(P231)=Q231,0,1)","v":0},{"$f":"ADDRESS(18,21,1,1,$S$1)","v":"'Geographic Diversification'!$U$18"},"=+'Schedule IVC (EBS)'!Q18",{"$f":"IF(_xlfn.FORMULATEXT(INDIRECT(S231))=T231,0,1)","v":0}]
[{"$f":"ADDRESS(107,14,1,1,$A$1)","v":"Summary!$N$107"},"=MAX(N85,N103)",{"$f":"IF(_xlfn.FORMULATEXT(INDIRECT(A232))=B232,0,1)","v":0},null,null,null,null,null,null,null,null,null,null,null,null,{"$f":"ADDRESS(82,4,1,1,$P$1)","v":"'Concentration Risk'!$D$82"},"=SUMIFS('Schedule XXI'!$M$8:$M$57,'Schedule XXI'!$J$8:$J$57,$D$74,'Schedule XXI'!$L$8:$L$57,$B82)",{"$f":"IF(_xlfn.FORMULATEXT(INDIRECT(P232))=Q232,0,1)","v":0},{"$f":"ADDRESS(18,22,1,1,$S$1)","v":"'Geographic Diversification'!$V$18"},"=+'Schedule IVC (EBS)'!R18",{"$f":"IF(_xlfn.FORMULATEXT(INDIRECT(S232))=T232,0,1)","v":0}]
[{"$f":"ADDRESS(109,7,1,1,$A$1)","v":"Summary!$G$109"},"=MAX(G103,G87)",{"$f":"IF(_xlfn.FORMULATEXT(INDIRECT(A233))=B233,0,1)","v":0},null,null,null,null,null,null,null,null,null,null,null,null,{"$f":"ADDRESS(82,5,1,1,$P$1)","v":"'Concentration Risk'!$E$82"},0.35,{"$f":"IF(INDIRECT(P233)=Q233,0,1)","v":0},{"$f":"ADDRESS(18,23,1,1,$S$1)","v":"'Geographic Diversification'!$W$18"},"=+'Schedule IVC (EBS)'!S18",{"$f":"IF(_xlfn.FORMULATEXT(INDIRECT(S233))=T233,0,1)","v":0}]
[{"$f":"ADDRESS(109,14,1,1,$A$1)","v":"Summary!$N$109"},"=MAX(N103,N87)",{"$f":"IF(_xlfn.FORMULATEXT(INDIRECT(A234))=B234,0,1)","v":0},null,null,null,null,null,null,null,null,null,null,null,null,{"$f":"ADDRESS(82,6,1,1,$P$1)","v":"'Concentration Risk'!$F$82"},"=MAX(0,(D82*E82))",{"$f":"IF(_xlfn.FORMULATEXT(INDIRECT(P234))=Q234,0,1)","v":0},{"$f":"ADDRESS(18,24,1,1,$S$1)","v":"'Geographic Diversification'!$X$18"},"=+'Schedule IVC (EBS)'!T18",{"$f":"IF(_xlfn.FORMULATEXT(INDIRECT(S234))=T234,0,1)","v":0}]
[{"$f":"ADDRESS(109,26,1,1,$A$1)","v":"Summary!$Z$109"},1,{"$f":"IF(INDIRECT(A235)=B235,0,1)","v":0},null,null,null,null,null,null,null,null,null,null,null,null,{"$f":"ADDRESS(83,2,1,1,$P$1)","v":"'Concentration Risk'!$B$83"},"BSCR Rating 8",{"$f":"IF(INDIRECT(P235)=Q235,0,1)","v":0},{"$f":"ADDRESS(18,25,1,1,$S$1)","v":"'Geographic Diversification'!$Y$18"},"=+'Schedule IVC (EBS)'!U18",{"$f":"IF(_xlfn.FORMULATEXT(INDIRECT(S235))=T235,0,1)","v":0}]
[{"$f":"ADDRESS(109,27,1,1,$A$1)","v":"Summary!$AA$109"},"=IF($AC$75=100000,15000000,$AC$75)",{"$f":"IF(_xlfn.FORMULATEXT(INDIRECT(A236))=B236,0,1)","v":0},null,null,null,null,null,null,null,null,null,null,null,null,{"$f":"ADDRESS(83,4,1,1,$P$1)","v":"'Concentration Risk'!$D$83"},"=SUMIFS('Schedule XXI'!$M$8:$M$57,'Schedule XXI'!$J$8:$J$57,$D$74,'Schedule XXI'!$L$8:$L$57,$B83)",{"$f":"IF(_xlfn.FORMULATEXT(INDIRECT(P236))=Q236,0,1)","v":0},{"$f":"ADDRESS(18,26,1,1,$S$1)","v":"'Geographic Diversification'!$Z$18"},"=+'Schedule IVC (EBS)'!V18",{"$f":"IF(_xlfn.FORMULATEXT(INDIRECT(S236))=T236,0,1)","v":0}]
[{"$f":"ADDRESS(109,29,1,1,$A$1)","v":"Summary!$AC$109"},"=AC$119-AA109",{"$f":"IF(_xlfn.FORMULATEXT(INDIRECT(A237))=B237,0,1)","v":0},null,null,null,null,null,null,null,null,null,null,null,null,{"$f":"ADDRESS(83,5,1,1,$P$1)","v":"'Concentration Risk'!$E$83"},0.35,{"$f":"IF(INDIRECT(P237)=Q237,0,1)","v":0},{"$f":"ADDRESS(19,4,1,1,$S$1)","v":"'Geographic Diversification'!$D$19"},"=SUM(I19:Z19)",{"$f":"IF(_xlfn.FORMULATEXT(INDIRECT(S237))=T237,0,1)","v":0}]
[{"$f":"ADDRESS(109,30,1,1,$A$1)","v":"Summary!$AD$109"},"=Z109*AA$110",{"$f":"IF(_xlfn.FORMULATEXT(INDIRECT(A238))=B238,0,1)","v":0},null,null,null,null,null,null,null,null,null,null,null,null,{"$f":"ADDRESS(83,6,1,1,$P$1)","v":"'Concentration Risk'!$F$83"},"=MAX(0,(D83*E83))",{"$f":"IF(_xlfn.FORMULATEXT(INDIRECT(P238))=Q238,0,1)","v":0},{"$f":"ADDRESS(19,5,1,1,$S$1)","v":"'Geographic Diversification'!$E$19"},"=SUMSQ(I19:Z19)",{"$f":"IF(_xlfn.FORMULATEXT(INDIRECT(S238))=T238,0,1)","v":0}]
[{"$f":"ADDRESS(110,26,1,1,$A$1)","v":"Summary!$Z$110"},1.2,{"$f":"IF(INDIRECT(A239)=B239,0,1)","v":0},null,null,null,null,null,null,null,null,null,null,null,null,{"$f":"ADDRESS(85,4,1,1,$P$1)","v":"'Concentration Risk'!$D$85"},"=SUM(D74:D83)",{"$f":"IF(_xlfn.FORMULATEXT(INDIRECT(P239))=Q239,0,1)","v":0},{"$f":"ADDRESS(19,6,1,1,$S$1)","v":"'Geographic Diversification'!$F$19"},"=(IF(D19>0,E19/D19^2,1))",{"$f":"IF(_xlfn.FORMULATEXT(INDIRECT(S239))=T239,0,1)","v":0}]
[{"$f":"ADDRESS(110,27,1,1,$A$1)","v":"Summary!$AA$110"},"=IF($AC$75=100000,15000000,$AC$75)",{"$f":"IF(_xlfn.FORMULATEXT(INDIRECT(A240))=B240,0,1)","v":0},null,null,null,null,null,null,null,null,null,null,null,null,{"$f":"ADDRESS(85,6,1,1,$P$1)","v":"'Concentration Risk'!$F$85"},"=SUM(F74:F83)",{"$f":"IF(_xlfn.FORMULATEXT(INDIRECT(P240))=Q240,0,1)","v":0},{"$f":"ADDRESS(19,7,1,1,$S$1)","v":"'Geographic Diversification'!$G$19"},"=D19*(0.75+0.25*F19)",{"$f":"IF(_xlfn.FORMULATEXT(INDIRECT(S240))=T240,0,1)","v":0}]
[{"$f":"ADDRESS(110,29,1,1,$A$1)","v":"Summary!$AC$110"},"=AC$119-AA110",{"$f":"IF(_xlfn.FORMULATEXT(INDIRECT(A241))=B241,0,1)","v":0},null,null,null,null,null,null,null,null,null,null,null,null,{"$f":"ADDRESS(87,4,1,1,$P$1)","v":"'Concentration Risk'!$D$87"},"=+'Schedule XXI'!C65",{"$f":"IF(_xlfn.FORMULATEXT(INDIRECT(P241))=Q241,0,1)","v":0},{"$f":"ADDRESS(19,8,1,1,$S$1)","v":"'Geographic Diversification'!$H$19"},"=IF('Schedule IVC (EBS)'!AB19=\"True\",G19,'Schedule IVA (EBS)'!Q21)",{"$f":"IF(_xlfn.FORMULATEXT(INDIRECT(S241))=T241,0,1)","v":0}]
[{"$f":"ADDRESS(110,30,1,1,$A$1)","v":"Summary!$AD$110"},"=Z110*AA$110",{"$f":"IF(_xlfn.FORMULATEXT(INDIRECT(A242))=B242,0,1)","v":0},null,null,null,null,null,null,null,null,null,null,null,null,{"$f":"ADDRESS(88,2,1,1,$P$1)","v":"'Concentration Risk'!$B$88"},"Insured/Guaranteed Mortgages",{"$f":"IF(INDIRECT(P242)=Q242,0,1)","v":0},{"$f":"ADDRESS(19,9,1,1,$S$1)","v":"'Geographic Diversification'!$I$19"},"=+'Schedule IVC (EBS)'!E19",{"$f":"IF(_xlfn.FORMULATEXT(INDIRECT(S242))=T242,0,1)","v":0}]
[{"$f":"ADDRESS(111,14,1,1,$A$1)","v":"Summary!$N$111"},"=N107*1.2",{"$f":"IF(_xlfn.FORMULATEXT(INDIRECT(A243))=B243,0,1)","v":0},null,null,null,null,null,null,null,null,null,null,null,null,{"$f":"ADDRESS(88,4,1,1,$P$1)","v":"'Concentration Risk'!$D$88"},"=SUMIFS('Schedule XXI'!$M$8:$M$57,'Schedule XXI'!$J$8:$J$57,$D$87,'Schedule XXI'!$K$8:$K$57,$B88)",{"$f":"IF(_xlfn.FORMULATEXT(INDIRECT(P243))=Q243,0,1)","v":0},{"$f":"ADDRESS(19,10,1,1,$S$1)","v":"'Geographic Diversification'!$J$19"},"=+'Schedule IVC (EBS)'!F19",{"$f":"IF(_xlfn.FORMULATEXT(INDIRECT(S243))=T243,0,1)","v":0}]
[{"$f":"ADDRESS(113,7,1,1,$A$1)","v":"Summary!$G$113"},"=$G$109*1.2",{"$f":"IF(_xlfn.FORMULATEXT(INDIRECT(A244))=B244,0,1)","v":0},null,null,null,null,null,null,null,null,null,null,null,null,{"$f":"ADDRESS(88,5,1,1,$P$1)","v":"'Concentration Risk'!$E$88"},"='Fixed Income Investments'!E70",{"$f":"IF(_xlfn.FORMULATEXT(INDIRECT(P244))=Q244,0,1)","v":0},{"$f":"ADDRESS(19,11,1,1,$S$1)","v":"'Geographic Diversification'!$K$19"},"=+'Schedule IVC (EBS)'!G19",{"$f":"IF(_xlfn.FORMULATEXT(INDIRECT(S244))=T244,0,1)","v":0}]
[{"$f":"ADDRESS(113,14,1,1,$A$1)","v":"Summary!$N$113"},"=$N$109*1.2",{"$f":"IF(_xlfn.FORMULATEXT(INDIRECT(A245))=B245,0,1)","v":0},null,null,null,null,null,null,null,null,null,null,null,null,{"$f":"ADDRESS(88,6,1,1,$P$1)","v":"'Concentration Risk'!$F$88"},"=MAX(0,(D88*E88))",{"$f":"IF(_xlfn.FORMULATEXT(INDIRECT(P245))=Q245,0,1)","v":0},{"$f":"ADDRESS(19,12,1,1,$S$1)","v":"'Geographic Diversification'!$L$19"},"=+'Schedule IVC (EBS)'!H19",{"$f":"IF(_xlfn.FORMULATEXT(INDIRECT(S245))=T245,0,1)","v":0}]
[{"$f":"ADDRESS(113,20,1,1,$A$1)","v":"Summary!$T$113"},"brrt_TargetCapitalLevel",{"$f":"IF(INDIRECT(A246)=B246,0,1)","v":0},null,null,null,null,null,null,null,null,null,null,null,null,{"$f":"ADDRESS(89,2,1,1,$P$1)","v":"'Concentration Risk'!$B$89"},"Other Commercial and Farm Mortgages",{"$f":"IF(INDIRECT(P246)=Q246,0,1)","v":0},{"$f":"ADDRESS(19,13,1,1,$S$1)","v":"'Geographic Diversification'!$M$19"},"=+'Schedule IVC (EBS)'!I19",{"$f":"IF(_xlfn.FORMULATEXT(INDIRECT(S246))=T246,0,1)","v":0}]
[{"$f":"ADDRESS(113,21,1,1,$A$1)","v":"Summary!$U$113"},"=XBRLMap(N113,T113,E$163,E$164,CONFIGURATION!$B$10,\"BMA\",CONFIGURATION!$B$1,\"bscr\",CONFIGURATION!$B$12)",{"$f":"IF(_xlfn.FORMULATEXT(INDIRECT(A247))=B247,0,1)","v":0},null,null,null,null,null,null,null,null,null,null,null,null,{"$f":"ADDRESS(89,4,1,1,$P$1)","v":"'Concentration Risk'!$D$89"},"=SUMIFS('Schedule XXI'!$M$8:$M$57,'Schedule XXI'!$J$8:$J$57,$D$87,'Schedule XXI'!$K$8:$K$57,$B89)",{"$f":"IF(_xlfn.FORMULATEXT(INDIRECT(P247))=Q247,0,1)","v":0},{"$f":"ADDRESS(19,14,1,1,$S$1)","v":"'Geographic Diversification'!$N$19"},"=+'Schedule IVC (EBS)'!J19",{"$f":"IF(_xlfn.FORMULATEXT(INDIRECT(S247))=T247,0,1)","v":0}]
[{"$f":"ADDRESS(113,27,1,1,$A$1)","v":"Summary!$AA$113"},"=IF(N71=0,15000000,N71)",{"$f":"IF(_xlfn.FORMULATEXT(INDIRECT(A248))=B248,0,1)","v":0},null,null,null,null,null,null,null,null,null,null,null,null,{"$f":"ADDRESS(89,5,1,1,$P$1)","v":"'Concentration Risk'!$E$89"},"='Fixed Income Investments'!E71",{"$f":"IF(_xlfn.FORMULATEXT(INDIRECT(P248))=Q248,0,1)","v":0},{"$f":"ADDRESS(19,15,1,1,$S$1)","v":"'Geographic Diversification'!$O$19"},"=+'Schedule IVC (EBS)'!K19",{"$f":"IF(_xlfn.FORMULATEXT(INDIRECT(S248))=T248,0,1)","v":0}]
[{"$f":"ADDRESS(113,29,1,1,$A$1)","v":"Summary!$AC$113"},"=AC$119-AA113",{"$f":"IF(_xlfn.FORMULATEXT(INDIRECT(A249))=B249,0,1)","v":0},null,null,null,null,null,null,null,null,null,null,null,null,{"$f":"ADDRESS(89,6,1,1,$P$1)","v":"'Concentration Risk'!$F$89"},"=MAX(0,(D89*E89))",{"$f":"IF(_xlfn.FORMULATEXT(INDIRECT(P249))=Q249,0,1)","v":0},{"$f":"ADDRESS(19,16,1,1,$S$1)","v":"'Geographic Diversification'!$P$19"},"=+'Schedule IVC (EBS)'!L19",{"$f":"IF(_xlfn.FORMULATEXT(INDIRECT(S249))=T249,0,1)","v":0}]
[{"$f":"ADDRESS(113,30,1,1,$A$1)","v":"Summary!$AD$113"},"=Z113*AA$110",{"$f":"IF(_xlfn.FORMULATEXT(INDIRECT(A250))=B250,0,1)","v":0},null,null,null,null,null,null,null,null,null,null,null,null,{"$f":"ADDRESS(90,2,1,1,$P$1)","v":"'Concentration Risk'!$B$90"},"Other Residential Mortgages",{"$f":"IF(INDIRECT(P250)=Q250,0,1)","v":0},{"$f":"ADDRESS(19,17,1,1,$S$1)","v":"'Geographic Diversification'!$Q$19"},"=+'Schedule IVC (EBS)'!M19",{"$f":"IF(_xlfn.FORMULATEXT(INDIRECT(S250))=T250,0,1)","v":0}]
[{"$f":"ADDRESS(114,27,1,1,$A$1)","v":"Summary!$AA$114"},"=IF(N71=0,15000000,N71)",{"$f":"IF(_xlfn.FORMULATEXT(INDIRECT(A251))=B251,0,1)","v":0},null,null,null,null,null,null,null,null,null,null,null,null,{"$f":"ADDRESS(90,4,1,1,$P$1)","v":"'Concentration Risk'!$D$90"},"=SUMIFS('Schedule XXI'!$M$8:$M$57,'Schedule XXI'!$J$8:$J$57,$D$87,'Schedule XXI'!$K$8:$K$57,$B90)",{"$f":"IF(_xlfn.FORMULATEXT(INDIRECT(P251))=Q251,0,1)","v":0},{"$f":"ADDRESS(19,18,1,1,$S$1)","v":"'Geographic Diversification'!$R$19"},"=+'Schedule IVC (EBS)'!N19",{"$f":"IF(_xlfn.FORMULATEXT(INDIRECT(S251))=T251,0,1)","v":0}]
[{"$f":"ADDRESS(114,29,1,1,$A$1)","v":"Summary!$AC$114"},"=AC$119-AA114",{"$f":"IF(_xlfn.FORMULATEXT(INDIRECT(A252))=B252,0,1)","v":0},null,null,null,null,null,null,null,null,null,null,null,null,{"$f":"ADDRESS(90,5,1,1,$P$1)","v":"'Concentration Risk'!$E$90"},"='Fixed Income Investments'!E72",{"$f":"IF(_xlfn.FORMULATEXT(INDIRECT(P252))=Q252,0,1)","v":0},{"$f":"ADDRESS(19,19,1,1,$S$1)","v":"'Geographic Diversification'!$S$19"},"=+'Schedule IVC (EBS)'!O19",{"$f":"IF(_xlfn.FORMULATEXT(INDIRECT(S252))=T252,0,1)","v":0}]
[{"$f":"ADDRESS(114,30,1,1,$A$1)","v":"Summary!$AD$114"},"=Z114*AA$110",{"$f":"IF(_xlfn.FORMULATEXT(INDIRECT(A253))=B253,0,1)","v":0},null,null,null,null,null,null,null,null,null,null,null,null,{"$f":"ADDRESS(90,6,1,1,$P$1)","v":"'Concentration Risk'!$F$90"},"=MAX(0,(D90*E90))",{"$f":"IF(_xlfn.FORMULATEXT(INDIRECT(P253))=Q253,0,1)","v":0},{"$f":"ADDRESS(19,20,1,1,$S$1)","v":"'Geographic Diversification'!$T$19"},"=+'Schedule IVC (EBS)'!P19",{"$f":"IF(_xlfn.FORMULATEXT(INDIRECT(S253))=T253,0,1)","v":0}]
[{"$f":"ADDRESS(115,7,1,1,$A$1)","v":"Summary!$G$115"},"='Form 1EBS'!$F$7",{"$f":"IF(_xlfn.FORMULATEXT(INDIRECT(A254))=B254,0,1)","v":0},null,null,null,null,null,null,null,null,null,null,null,null,{"$f":"ADDRESS(91,2,1,1,$P$1)","v":"'Concentration Risk'!$B$91"},"Mortgages Not In Good Standing",{"$f":"IF(INDIRECT(P254)=Q254,0,1)","v":0},{"$f":"ADDRESS(19,21,1,1,$S$1)","v":"'Geographic Diversification'!$U$19"},"=+'Schedule IVC (EBS)'!Q19",{"$f":"IF(_xlfn.FORMULATEXT(INDIRECT(S254))=T254,0,1)","v":0}]
[{"$f":"ADDRESS(117,14,1,1,$A$1)","v":"Summary!$N$117"},"=IF(N85=0,\"n/a\",N97/N85)",{"$f":"IF(_xlfn.FORMULATEXT(INDIRECT(A255))=B255,0,1)","v":0},null,null,null,null,null,null,null,null,null,null,null,null,{"$f":"ADDRESS(91,4,1,1,$P$1)","v":"'Concentration Risk'!$D$91"},"=SUMIFS('Schedule XXI'!$M$8:$M$57,'Schedule XXI'!$J$8:$J$57,$D$87,'Schedule XXI'!$K$8:$K$57,$B91)",{"$f":"IF(_xlfn.FORMULATEXT(INDIRECT(P255))=Q255,0,1)","v":0},{"$f":"ADDRESS(19,22,1,1,$S$1)","v":"'Geographic Diversification'!$V$19"},"=+'Schedule IVC (EBS)'!R19",{"$f":"IF(_xlfn.FORMULATEXT(INDIRECT(S255))=T255,0,1)","v":0}]
[{"$f":"ADDRESS(119,7,1,1,$A$1)","v":"Summary!$G$119"},"=IF($G$87=0,\"n/a\",$G$97/$G$87)",{"$f":"IF(_xlfn.FORMULATEXT(INDIRECT(A256))=B256,0,1)","v":0},null,null,null,null,null,null,null,null,null,null,null,null,{"$f":"ADDRESS(91,5,1,1,$P$1)","v":"'Concentration Risk'!$E$91"},"='Fixed Income Investments'!E73",{"$f":"IF(_xlfn.FORMULATEXT(INDIRECT(P256))=Q256,0,1)","v":0},{"$f":"ADDRESS(19,23,1,1,$S$1)","v":"'Geographic Diversification'!$W$19"},"=+'Schedule IVC (EBS)'!S19",{"$f":"IF(_xlfn.FORMULATEXT(INDIRECT(S256))=T256,0,1)","v":0}]
[{"$f":"ADDRESS(119,14,1,1,$A$1)","v":"Summary!$N$119"},"=IF($N$87=0,\"n/a\",$N$97/$N$87)",{"$f":"IF(_xlfn.FORMULATEXT(INDIRECT(A257))=B257,0,1)","v":0},null,null,null,null,null,null,null,null,null,null,null,null,{"$f":"ADDRESS(91,6,1,1,$P$1)","v":"'Concentration Risk'!$F$91"},"=MAX(0,(D91*E91))",{"$f":"IF(_xlfn.FORMULATEXT(INDIRECT(P257))=Q257,0,1)","v":0},{"$f":"ADDRESS(19,24,1,1,$S$1)","v":"'Geographic Diversification'!$X$19"},"=+'Schedule IVC (EBS)'!T19",{"$f":"IF(_xlfn.FORMULATEXT(INDIRECT(S257))=T257,0,1)","v":0}]
[{"$f":"ADDRESS(119,20,1,1,$A$1)","v":"Summary!$T$119"},"brrt_BSCRRatio",{"$f":"IF(INDIRECT(A258)=B258,0,1)","v":0},null,null,null,null,null,null,null,null,null,null,null,null,{"$f":"ADDRESS(93,4,1,1,$P$1)","v":"'Concentration Risk'!$D$93"},"=SUM(D88:D91)",{"$f":"IF(_xlfn.FORMULATEXT(INDIRECT(P258))=Q258,0,1)","v":0},{"$f":"ADDRESS(19,25,1,1,$S$1)","v":"'Geographic Diversification'!$Y$19"},"=+'Schedule IVC (EBS)'!U19",{"$f":"IF(_xlfn.FORMULATEXT(INDIRECT(S258))=T258,0,1)","v":0}]
[{"$f":"ADDRESS(119,21,1,1,$A$1)","v":"Summary!$U$119"},"=XBRLMap(N119,T119,E$163,E$164,CONFIGURATION!$B$10,\"BMA\",CONFIGURATION!$B$1,\"bscr\",CONFIGURATION!$B$12)",{"$f":"IF(_xlfn.FORMULATEXT(INDIRECT(A259))=B259,0,1)","v":0},null,null,null,null,null,null,null,null,null,null,null,null,{"$f":"ADDRESS(93,6,1,1,$P$1)","v":"'Concentration Risk'!$F$93"},"=SUM(F88:F91)",{"$f":"IF(_xlfn.FORMULATEXT(INDIRECT(P259))=Q259,0,1)","v":0},{"$f":"ADDRESS(19,26,1,1,$S$1)","v":"'Geographic Diversification'!$Z$19"},"=+'Schedule IVC (EBS)'!V19",{"$f":"IF(_xlfn.FORMULATEXT(INDIRECT(S259))=T259,0,1)","v":0}]
[{"$f":"ADDRESS(119,29,1,1,$A$1)","v":"Summary!$AC$119"},"=MAX(AD105:AD114)",{"$f":"IF(_xlfn.FORMULATEXT(INDIRECT(A260))=B260,0,1)","v":0},null,null,null,null,null,null,null,null,null,null,null,null,{"$f":"ADDRESS(96,2,1,1,$P$1)","v":"'Concentration Risk'!$B$96"},"Common Stock and Mutual Funds",{"$f":"IF(INDIRECT(P260)=Q260,0,1)","v":0},{"$f":"ADDRESS(20,4,1,1,$S$1)","v":"'Geographic Diversification'!$D$20"},"=SUM(I20:Z20)",{"$f":"IF(_xlfn.FORMULATEXT(INDIRECT(S260))=T260,0,1)","v":0}]
[{"$f":"ADDRESS(121,14,1,1,$A$1)","v":"Summary!$N$121"},"=IF(N107=0,\"n/a\",N97/N107)",{"$f":"IF(_xlfn.FORMULATEXT(INDIRECT(A261))=B261,0,1)","v":0},null,null,null,null,null,null,null,null,null,null,null,null,{"$f":"ADDRESS(96,4,1,1,$P$1)","v":"'Concentration Risk'!$D$96"},"=SUMIFS('Schedule XXI'!$M$8:$M$57,'Schedule XXI'!$J$8:$J$57,$B96)",{"$f":"IF(_xlfn.FORMULATEXT(INDIRECT(P261))=Q261,0,1)","v":0},{"$f":"ADDRESS(20,5,1,1,$S$1)","v":"'Geographic Diversification'!$E$20"},"=SUMSQ(I20:Z20)",{"$f":"IF(_xlfn.FORMULATEXT(INDIRECT(S261))=T261,0,1)","v":0}]
[{"$f":"ADDRESS(123,7,1,1,$A$1)","v":"Summary!$G$123"},"=IF($G$87=0,\"n/a\",$G$97/$G$109)",{"$f":"IF(_xlfn.FORMULATEXT(INDIRECT(A262))=B262,0,1)","v":0},null,null,null,null,null,null,null,null,null,null,null,null,{"$f":"ADDRESS(96,5,1,1,$P$1)","v":"'Concentration Risk'!$E$96"},0.14399999999999999,{"$f":"IF(INDIRECT(P262)=Q262,0,1)","v":0},{"$f":"ADDRESS(20,6,1,1,$S$1)","v":"'Geographic Diversification'!$F$20"},"=(IF(D20>0,E20/D20^2,1))",{"$f":"IF(_xlfn.FORMULATEXT(INDIRECT(S262))=T262,0,1)","v":0}]
[{"$f":"ADDRESS(123,14,1,1,$A$1)","v":"Summary!$N$123"},"=IF($N$87=0,\"n/a\",$N$97/$N$109)",{"$f":"IF(_xlfn.FORMULATEXT(INDIRECT(A263))=B263,0,1)","v":0},null,null,null,null,null,null,null,null,null,null,null,null,{"$f":"ADDRESS(96,6,1,1,$P$1)","v":"'Concentration Risk'!$F$96"},"=MAX(0,(D96*E96))",{"$f":"IF(_xlfn.FORMULATEXT(INDIRECT(P263))=Q263,0,1)","v":0},{"$f":"ADDRESS(20,7,1,1,$S$1)","v":"'Geographic Diversification'!$G$20"},"=D20*(0.75+0.25*F20)",{"$f":"IF(_xlfn.FORMULATEXT(INDIRECT(S263))=T263,0,1)","v":0}]
[{"$f":"ADDRESS(123,20,1,1,$A$1)","v":"Summary!$T$123"},"brrt_EnhancedCapitalRequirementRatio",{"$f":"IF(INDIRECT(A264)=B264,0,1)","v":0},null,null,null,null,null,null,null,null,null,null,null,null,{"$f":"ADDRESS(97,2,1,1,$P$1)","v":"'Concentration Risk'!$B$97"},"Other Investments",{"$f":"IF(INDIRECT(P264)=Q264,0,1)","v":0},{"$f":"ADDRESS(20,8,1,1,$S$1)","v":"'Geographic Diversification'!$H$20"},"=IF('Schedule IVC (EBS)'!AB20=\"True\",G20,'Schedule IVA (EBS)'!Q22)",{"$f":"IF(_xlfn.FORMULATEXT(INDIRECT(S264))=T264,0,1)","v":0}]
[{"$f":"ADDRESS(123,21,1,1,$A$1)","v":"Summary!$U$123"},"=XBRLMap(N123,T123,E$163,E$164,CONFIGURATION!$B$10,\"BMA\",CONFIGURATION!$B$1,\"bscr\",CONFIGURATION!$B$12)",{"$f":"IF(_xlfn.FORMULATEXT(INDIRECT(A265))=B265,0,1)","v":0},null,null,null,null,null,null,null,null,null,null,null,null,{"$f":"ADDRESS(97,4,1,1,$P$1)","v":"'Concentration Risk'!$D$97"},"=SUMIFS('Schedule XXI'!$M$8:$M$57,'Schedule XXI'!$J$8:$J$57,$B97)",{"$f":"IF(_xlfn.FORMULATEXT(INDIRECT(P265))=Q265,0,1)","v":0},{"$f":"ADDRESS(20,9,1,1,$S$1)","v":"'Geographic Diversification'!$I$20"},"=+'Schedule IVC (EBS)'!E20",{"$f":"IF(_xlfn.FORMULATEXT(INDIRECT(S265))=T265,0,1)","v":0}]
[{"$f":"ADDRESS(125,7,1,1,$A$1)","v":"Summary!$G$125"},"=IF(G123=\"n/a\",\"n/a\",IF(G123>100%,\"YES\",\"NO\"))",{"$f":"IF(_xlfn.FORMULATEXT(INDIRECT(A266))=B266,0,1)","v":0},null,null,null,null,null,null,null,null,null,null,null,null,{"$f":"ADDRESS(97,5,1,1,$P$1)","v":"'Concentration Risk'!$E$97"},0.2,{"$f":"IF(INDIRECT(P266)=Q266,0,1)","v":0},{"$f":"ADDRESS(20,10,1,1,$S$1)","v":"'Geographic Diversification'!$J$20"},"=+'Schedule IVC (EBS)'!F20",{"$f":"IF(_xlfn.FORMULATEXT(INDIRECT(S266))=T266,0,1)","v":0}]
[{"$f":"ADDRESS(125,14,1,1,$A$1)","v":"Summary!$N$125"},"=IF(N123=\"n/a\",\"n/a\",IF(N123>100%,\"YES\",\"NO\"))",{"$f":"IF(_xlfn.FORMULATEXT(INDIRECT(A267))=B267,0,1)","v":0},null,null,null,null,null,null,null,null,null,null,null,null,{"$f":"ADDRESS(97,6,1,1,$P$1)","v":"'Concentration Risk'!$F$97"},"=MAX(0,(D97*E97))",{"$f":"IF(_xlfn.FORMULATEXT(INDIRECT(P267))=Q267,0,1)","v":0},{"$f":"ADDRESS(20,11,1,1,$S$1)","v":"'Geographic Diversification'!$K$20"},"=+'Schedule IVC (EBS)'!G20",{"$f":"IF(_xlfn.FORMULATEXT(INDIRECT(S267))=T267,0,1)","v":0}]
[{"$f":"ADDRESS(128,7,1,1,$A$1)","v":"Summary!$G$128"},"='Form 1EBS'!$F$7",{"$f":"IF(_xlfn.FORMULATEXT(INDIRECT(A268))=B268,0,1)","v":0},null,null,null,null,null,null,null,null,null,null,null,null,{"$f":"ADDRESS(98,2,1,1,$P$1)","v":"'Concentration Risk'!$B$98"},"Investment in Affiliates – Unregulated entities that conduct ancillary services",{"$f":"IF(INDIRECT(P268)=Q268,0,1)","v":0},{"$f":"ADDRESS(20,12,1,1,$S$1)","v":"'Geographic Diversification'!$L$20"},"=+'Schedule IVC (EBS)'!H20",{"$f":"IF(_xlfn.FORMULATEXT(INDIRECT(S268))=T268,0,1)","v":0}]
[{"$f":"ADDRESS(132,5,1,1,$A$1)","v":"Summary!$E$132"},"=+'Schedule XII(a)'!G93",{"$f":"IF(_xlfn.FORMULATEXT(INDIRECT(A269))=B269,0,1)","v":0},null,null,null,null,null,null,null,null,null,null,null,null,{"$f":"ADDRESS(98,4,1,1,$P$1)","v":"'Concentration Risk'!$D$98"},"=SUMIFS('Schedule XXI'!$M$8:$M$57,'Schedule XXI'!$J$8:$J$57,$B98)",{"$f":"IF(_xlfn.FORMULATEXT(INDIRECT(P269))=Q269,0,1)","v":0},{"$f":"ADDRESS(20,13,1,1,$S$1)","v":"'Geographic Diversification'!$M$20"},"=+'Schedule IVC (EBS)'!I20",{"$f":"IF(_xlfn.FORMULATEXT(INDIRECT(S269))=T269,0,1)","v":0}]
[{"$f":"ADDRESS(132,7,1,1,$A$1)","v":"Summary!$G$132"},"=+'Schedule XII(a)'!I93",{"$f":"IF(_xlfn.FORMULATEXT(INDIRECT(A270))=B270,0,1)","v":0},null,null,null,null,null,null,null,null,null,null,null,null,{"$f":"ADDRESS(98,5,1,1,$P$1)","v":"'Concentration Risk'!$E$98"},0.05,{"$f":"IF(INDIRECT(P270)=Q270,0,1)","v":0},{"$f":"ADDRESS(20,14,1,1,$S$1)","v":"'Geographic Diversification'!$N$20"},"=+'Schedule IVC (EBS)'!J20",{"$f":"IF(_xlfn.FORMULATEXT(INDIRECT(S270))=T270,0,1)","v":0}]
[{"$f":"ADDRESS(133,5,1,1,$A$1)","v":"Summary!$E$133"},"=+'Schedule XII(a)'!G94",{"$f":"IF(_xlfn.FORMULATEXT(INDIRECT(A271))=B271,0,1)","v":0},null,null,null,null,null,null,null,null,null,null,null,null,{"$f":"ADDRESS(98,6,1,1,$P$1)","v":"'Concentration Risk'!$F$98"},"=MAX(0,(D98*E98))",{"$f":"IF(_xlfn.FORMULATEXT(INDIRECT(P271))=Q271,0,1)","v":0},{"$f":"ADDRESS(20,15,1,1,$S$1)","v":"'Geographic Diversification'!$O$20"},"=+'Schedule IVC (EBS)'!K20",{"$f":"IF(_xlfn.FORMULATEXT(INDIRECT(S271))=T271,0,1)","v":0}]
[{"$f":"ADDRESS(133,7,1,1,$A$1)","v":"Summary!$G$133"},"=+'Schedule XII(a)'!I94",{"$f":"IF(_xlfn.FORMULATEXT(INDIRECT(A272))=B272,0,1)","v":0},null,null,null,null,null,null,null,null,null,null,null,null,{"$f":"ADDRESS(99,2,1,1,$P$1)","v":"'Concentration Risk'!$B$99"},"Investment in Affiliates - Unregulated non-financial operating entities",{"$f":"IF(INDIRECT(P272)=Q272,0,1)","v":0},{"$f":"ADDRESS(20,16,1,1,$S$1)","v":"'Geographic Diversification'!$P$20"},"=+'Schedule IVC (EBS)'!L20",{"$f":"IF(_xlfn.FORMULATEXT(INDIRECT(S272))=T272,0,1)","v":0}]
[{"$f":"ADDRESS(134,5,1,1,$A$1)","v":"Summary!$E$134"},"=+'Schedule XII(a)'!G95",{"$f":"IF(_xlfn.FORMULATEXT(INDIRECT(A273))=B273,0,1)","v":0},null,null,null,null,null,null,null,null,null,null,null,null,{"$f":"ADDRESS(99,4,1,1,$P$1)","v":"'Concentration Risk'!$D$99"},"=SUMIFS('Schedule XXI'!$M$8:$M$57,'Schedule XXI'!$J$8:$J$57,$B99)",{"$f":"IF(_xlfn.FORMULATEXT(INDIRECT(P273))=Q273,0,1)","v":0},{"$f":"ADDRESS(20,17,1,1,$S$1)","v":"'Geographic Diversification'!$Q$20"},"=+'Schedule IVC (EBS)'!M20",{"$f":"IF(_xlfn.FORMULATEXT(INDIRECT(S273))=T273,0,1)","v":0}]
[{"$f":"ADDRESS(134,7,1,1,$A$1)","v":"Summary!$G$134"},"=+'Schedule XII(a)'!I95",{"$f":"IF(_xlfn.FORMULATEXT(INDIRECT(A274))=B274,0,1)","v":0},null,null,null,null,null,null,null,null,null,null,null,null,{"$f":"ADDRESS(99,5,1,1,$P$1)","v":"'Concentration Risk'!$E$99"},0.2,{"$f":"IF(INDIRECT(P274)=Q274,0,1)","v":0},{"$f":"ADDRESS(20,18,1,1,$S$1)","v":"'Geographic Diversification'!$R$20"},"=+'Schedule IVC (EBS)'!N20",{"$f":"IF(_xlfn.FORMULATEXT(INDIRECT(S274))=T274,0,1)","v":0}]
[{"$f":"ADDRESS(135,5,1,1,$A$1)","v":"Summary!$E$135"},"=+'Schedule XII(a)'!G96",{"$f":"IF(_xlfn.FORMULATEXT(INDIRECT(A275))=B275,0,1)","v":0},null,null,null,null,null,null,null,null,null,null,null,null,{"$f":"ADDRESS(99,6,1,1,$P$1)","v":"'Concentration Risk'!$F$99"},"=MAX(0,(D99*E99))",{"$f":"IF(_xlfn.FORMULATEXT(INDIRECT(P275))=Q275,0,1)","v":0},{"$f":"ADDRESS(20,19,1,1,$S$1)","v":"'Geographic Diversification'!$S$20"},"=+'Schedule IVC (EBS)'!O20",{"$f":"IF(_xlfn.FORMULATEXT(INDIRECT(S275))=T275,0,1)","v":0}]
[{"$f":"ADDRESS(135,7,1,1,$A$1)","v":"Summary!$G$135"},"=+'Schedule XII(a)'!I96",{"$f":"IF(_xlfn.FORMULATEXT(INDIRECT(A276))=B276,0,1)","v":0},null,null,null,null,null,null,null,null,null,null,null,null,{"$f":"ADDRESS(100,2,1,1,$P$1)","v":"'Concentration Risk'!$B$100"},"Investment in Affiliates - Unregulated financial operating entities",{"$f":"IF(INDIRECT(P276)=Q276,0,1)","v":0},{"$f":"ADDRESS(20,20,1,1,$S$1)","v":"'Geographic Diversification'!$T$20"},"=+'Schedule IVC (EBS)'!P20",{"$f":"IF(_xlfn.FORMULATEXT(INDIRECT(S276))=T276,0,1)","v":0}]
[{"$f":"ADDRESS(137,5,1,1,$A$1)","v":"Summary!$E$137"},"=IF(E135>=$G$109,\"YES\",\"NO\")",{"$f":"IF(_xlfn.FORMULATEXT(INDIRECT(A277))=B277,0,1)","v":0},null,null,null,null,null,null,null,null,null,null,null,null,{"$f":"ADDRESS(100,4,1,1,$P$1)","v":"'Concentration Risk'!$D$100"},"=SUMIFS('Schedule XXI'!$M$8:$M$57,'Schedule XXI'!$J$8:$J$57,$B100)",{"$f":"IF(_xlfn.FORMULATEXT(INDIRECT(P277))=Q277,0,1)","v":0},{"$f":"ADDRESS(20,21,1,1,$S$1)","v":"'Geographic Diversification'!$U$20"},"=+'Schedule IVC (EBS)'!Q20",{"$f":"IF(_xlfn.FORMULATEXT(INDIRECT(S277))=T277,0,1)","v":0}]
[{"$f":"ADDRESS(137,7,1,1,$A$1)","v":"Summary!$G$137"},"=IF(G135>=$G$109,\"YES\",\"NO\")",{"$f":"IF(_xlfn.FORMULATEXT(INDIRECT(A278))=B278,0,1)","v":0},null,null,null,null,null,null,null,null,null,null,null,null,{"$f":"ADDRESS(100,5,1,1,$P$1)","v":"'Concentration Risk'!$E$100"},0.55000000000000004,{"$f":"IF(INDIRECT(P278)=Q278,0,1)","v":0},{"$f":"ADDRESS(20,22,1,1,$S$1)","v":"'Geographic Diversification'!$V$20"},"=+'Schedule IVC (EBS)'!R20",{"$f":"IF(_xlfn.FORMULATEXT(INDIRECT(S278))=T278,0,1)","v":0}]
[{"$f":"ADDRESS(142,14,1,1,$A$1)","v":"Summary!$N$142"},"=N71-L71",{"$f":"IF(_xlfn.FORMULATEXT(INDIRECT(A279))=B279,0,1)","v":0},null,null,null,null,null,null,null,null,null,null,null,null,{"$f":"ADDRESS(100,6,1,1,$P$1)","v":"'Concentration Risk'!$F$100"},"=MAX(0,(D100*E100))",{"$f":"IF(_xlfn.FORMULATEXT(INDIRECT(P279))=Q279,0,1)","v":0},{"$f":"ADDRESS(20,23,1,1,$S$1)","v":"'Geographic Diversification'!$W$20"},"=+'Schedule IVC (EBS)'!S20",{"$f":"IF(_xlfn.FORMULATEXT(INDIRECT(S279))=T279,0,1)","v":0}]
[{"$f":"ADDRESS(144,14,1,1,$A$1)","v":"Summary!$N$144"},"=-MAX(MIN(N142,N143),0)",{"$f":"IF(_xlfn.FORMULATEXT(INDIRECT(A280))=B280,0,1)","v":0},null,null,null,null,null,null,null,null,null,null,null,null,{"$f":"ADDRESS(101,2,1,1,$P$1)","v":"'Concentration Risk'!$B$101"},"Investment in Affiliates - Regulated non-insurance financial operating entities",{"$f":"IF(INDIRECT(P280)=Q280,0,1)","v":0},{"$f":"ADDRESS(20,24,1,1,$S$1)","v":"'Geographic Diversification'!$X$20"},"=+'Schedule IVC (EBS)'!T20",{"$f":"IF(_xlfn.FORMULATEXT(INDIRECT(S280))=T280,0,1)","v":0}]
[{"$f":"ADDRESS(149,13,1,1,$A$1)","v":"Summary!$M$149"},"=-MIN(D155,G158,N154)",{"$f":"IF(_xlfn.FORMULATEXT(INDIRECT(A281))=B281,0,1)","v":0},null,null,null,null,null,null,null,null,null,null,null,null,{"$f":"ADDRESS(101,4,1,1,$P$1)","v":"'Concentration Risk'!$D$101"},"=SUMIFS('Schedule XXI'!$M$8:$M$57,'Schedule XXI'!$J$8:$J$57,$B101)",{"$f":"IF(_xlfn.FORMULATEXT(INDIRECT(P281))=Q281,0,1)","v":0},{"$f":"ADDRESS(20,25,1,1,$S$1)","v":"'Geographic Diversification'!$Y$20"},"=+'Schedule IVC (EBS)'!U20",{"$f":"IF(_xlfn.FORMULATEXT(INDIRECT(S281))=T281,0,1)","v":0}]
[{"$f":"ADDRESS(153,4,1,1,$A$1)","v":"Summary!$D$153"},"=N71+N75+N77+N79+N83",{"$f":"IF(_xlfn.FORMULATEXT(INDIRECT(A282))=B282,0,1)","v":0},null,null,null,null,null,null,null,null,null,null,null,null,{"$f":"ADDRESS(101,5,1,1,$P$1)","v":"'Concentration Risk'!$E$101"},0.55000000000000004,{"$f":"IF(INDIRECT(P282)=Q282,0,1)","v":0},{"$f":"ADDRESS(20,26,1,1,$S$1)","v":"'Geographic Diversification'!$Z$20"},"=+'Schedule IVC (EBS)'!V20",{"$f":"IF(_xlfn.FORMULATEXT(INDIRECT(S282))=T282,0,1)","v":0}]
[{"$f":"ADDRESS(153,14,1,1,$A$1)","v":"Summary!$N$153"},"=N71+N75+N77+N83+N79",{"$f":"IF(_xlfn.FORMULATEXT(INDIRECT(A283))=B283,0,1)","v":0},null,null,null,null,null,null,null,null,null,null,null,null,{"$f":"ADDRESS(101,6,1,1,$P$1)","v":"'Concentration Risk'!$F$101"},"=MAX(0,(D101*E101))",{"$f":"IF(_xlfn.FORMULATEXT(INDIRECT(P283))=Q283,0,1)","v":0},{"$f":"ADDRESS(21,4,1,1,$S$1)","v":"'Geographic Diversification'!$D$21"},"=SUM(I21:Z21)",{"$f":"IF(_xlfn.FORMULATEXT(INDIRECT(S283))=T283,0,1)","v":0}]
[{"$f":"ADDRESS(154,8,1,1,$A$1)","v":"Summary!$H$154"},0.2,{"$f":"IF(INDIRECT(A284)=B284,0,1)","v":0},null,null,null,null,null,null,null,null,null,null,null,null,{"$f":"ADDRESS(102,2,1,1,$P$1)","v":"'Concentration Risk'!$B$102"},"Investment in Affiliates - Regulated insurance financial operating entities",{"$f":"IF(INDIRECT(P284)=Q284,0,1)","v":0},{"$f":"ADDRESS(21,5,1,1,$S$1)","v":"'Geographic Diversification'!$E$21"},"=SUMSQ(I21:Z21)",{"$f":"IF(_xlfn.FORMULATEXT(INDIRECT(S284))=T284,0,1)","v":0}]
[{"$f":"ADDRESS(154,14,1,1,$A$1)","v":"Summary!$N$154"},"=N153*H154",{"$f":"IF(_xlfn.FORMULATEXT(INDIRECT(A285))=B285,0,1)","v":0},null,null,null,null,null,null,null,null,null,null,null,null,{"$f":"ADDRESS(102,4,1,1,$P$1)","v":"'Concentration Risk'!$D$102"},"=SUMIFS('Schedule XXI'!$M$8:$M$57,'Schedule XXI'!$J$8:$J$57,$B102)",{"$f":"IF(_xlfn.FORMULATEXT(INDIRECT(P285))=Q285,0,1)","v":0},{"$f":"ADDRESS(21,6,1,1,$S$1)","v":"'Geographic Diversification'!$F$21"},"=(IF(D21>0,E21/D21^2,1))",{"$f":"IF(_xlfn.FORMULATEXT(INDIRECT(S285))=T285,0,1)","v":0}]
[{"$f":"ADDRESS(155,4,1,1,$A$1)","v":"Summary!$D$155"},"=MAX(0,D153*D154)",{"$f":"IF(_xlfn.FORMULATEXT(INDIRECT(A286))=B286,0,1)","v":0},null,null,null,null,null,null,null,null,null,null,null,null,{"$f":"ADDRESS(102,5,1,1,$P$1)","v":"'Concentration Risk'!$E$102"},0.2,{"$f":"IF(INDIRECT(P286)=Q286,0,1)","v":0},{"$f":"ADDRESS(21,7,1,1,$S$1)","v":"'Geographic Diversification'!$G$21"},"=D21*(0.75+0.25*F21)",{"$f":"IF(_xlfn.FORMULATEXT(INDIRECT(S286))=T286,0,1)","v":0}]
[{"$f":"ADDRESS(155,7,1,1,$A$1)","v":"Summary!$G$155"},"=G154*D154",{"$f":"IF(_xlfn.FORMULATEXT(INDIRECT(A287))=B287,0,1)","v":0},null,null,null,null,null,null,null,null,null,null,null,null,{"$f":"ADDRESS(102,6,1,1,$P$1)","v":"'Concentration Risk'!$F$102"},"=MAX(0,(D102*E102))",{"$f":"IF(_xlfn.FORMULATEXT(INDIRECT(P287))=Q287,0,1)","v":0},{"$f":"ADDRESS(21,8,1,1,$S$1)","v":"'Geographic Diversification'!$H$21"},"=IF('Schedule IVC (EBS)'!AB21=\"True\",G21,'Schedule IVA (EBS)'!Q23)",{"$f":"IF(_xlfn.FORMULATEXT(INDIRECT(S287))=T287,0,1)","v":0}]
[{"$f":"ADDRESS(156,7,1,1,$A$1)","v":"Summary!$G$156"},"='Form 1EBS'!F131-'Form 1EBS'!F79",{"$f":"IF(_xlfn.FORMULATEXT(INDIRECT(A288))=B288,0,1)","v":0},null,null,null,null,null,null,null,null,null,null,null,null,{"$f":"ADDRESS(103,2,1,1,$P$1)","v":"'Concentration Risk'!$B$103"},"Advances to Affiliates - ",{"$f":"IF(INDIRECT(P288)=Q288,0,1)","v":0},{"$f":"ADDRESS(21,9,1,1,$S$1)","v":"'Geographic Diversification'!$I$21"},"=+'Schedule IVC (EBS)'!E21",{"$f":"IF(_xlfn.FORMULATEXT(INDIRECT(S288))=T288,0,1)","v":0}]
[{"$f":"ADDRESS(157,7,1,1,$A$1)","v":"Summary!$G$157"},"='Form 1EBS'!F117*D154",{"$f":"IF(_xlfn.FORMULATEXT(INDIRECT(A289))=B289,0,1)","v":0},null,null,null,null,null,null,null,null,null,null,null,null,{"$f":"ADDRESS(103,4,1,1,$P$1)","v":"'Concentration Risk'!$D$103"},"=SUMIFS('Schedule XXI'!$M$8:$M$57,'Schedule XXI'!$J$8:$J$57,$B103)",{"$f":"IF(_xlfn.FORMULATEXT(INDIRECT(P289))=Q289,0,1)","v":0},{"$f":"ADDRESS(21,10,1,1,$S$1)","v":"'Geographic Diversification'!$J$21"},"=+'Schedule IVC (EBS)'!F21",{"$f":"IF(_xlfn.FORMULATEXT(INDIRECT(S289))=T289,0,1)","v":0}]
[{"$f":"ADDRESS(158,7,1,1,$A$1)","v":"Summary!$G$158"},"=MAX(0,SUM(G155:G157))",{"$f":"IF(_xlfn.FORMULATEXT(INDIRECT(A290))=B290,0,1)","v":0},null,null,null,null,null,null,null,null,null,null,null,null,{"$f":"ADDRESS(103,5,1,1,$P$1)","v":"'Concentration Risk'!$E$103"},0.05,{"$f":"IF(INDIRECT(P290)=Q290,0,1)","v":0},{"$f":"ADDRESS(21,11,1,1,$S$1)","v":"'Geographic Diversification'!$K$21"},"=+'Schedule IVC (EBS)'!G21",{"$f":"IF(_xlfn.FORMULATEXT(INDIRECT(S290))=T290,0,1)","v":0}]
[{"$f":"ADDRESS(163,14,1,1,$A$1)","v":"Summary!$N$163"},10,{"$f":"IF(INDIRECT(A291)=B291,0,1)","v":0},null,null,null,null,null,null,null,null,null,null,null,null,{"$f":"ADDRESS(103,6,1,1,$P$1)","v":"'Concentration Risk'!$F$103"},"=MAX(0,(D103*E103))",{"$f":"IF(_xlfn.FORMULATEXT(INDIRECT(P291))=Q291,0,1)","v":0},{"$f":"ADDRESS(21,12,1,1,$S$1)","v":"'Geographic Diversification'!$L$21"},"=+'Schedule IVC (EBS)'!H21",{"$f":"IF(_xlfn.FORMULATEXT(INDIRECT(S291))=T291,0,1)","v":0}]
[null,null,-292,null,null,null,null,null,null,null,null,null,null,null,null,{"$f":"ADDRESS(104,2,1,1,$P$1)","v":"'Concentration Risk'!$B$104"},"Policy Loans",{"$f":"IF(INDIRECT(P292)=Q292,0,1)","v":0},{"$f":"ADDRESS(21,13,1,1,$S$1)","v":"'Geographic Diversification'!$M$21"},"=+'Schedule IVC (EBS)'!I21",{"$f":"IF(_xlfn.FORMULATEXT(INDIRECT(S292))=T292,0,1)","v":0}]
[null,null,null,null,null,null,null,null,null,null,null,null,null,null,null,{"$f":"ADDRESS(104,4,1,1,$P$1)","v":"'Concentration Risk'!$D$104"},"=SUMIFS('Schedule XXI'!$M$8:$M$57,'Schedule XXI'!$J$8:$J$57,$B104)",{"$f":"IF(_xlfn.FORMULATEXT(INDIRECT(P293))=Q293,0,1)","v":0},{"$f":"ADDRESS(21,14,1,1,$S$1)","v":"'Geographic Diversification'!$N$21"},"=+'Schedule IVC (EBS)'!J21",{"$f":"IF(_xlfn.FORMULATEXT(INDIRECT(S293))=T293,0,1)","v":0}]
[null,null,null,null,null,null,null,null,null,null,null,null,null,null,null,{"$f":"ADDRESS(104,5,1,1,$P$1)","v":"'Concentration Risk'!$E$104"},0,{"$f":"IF(INDIRECT(P294)=Q294,0,1)","v":0},{"$f":"ADDRESS(21,15,1,1,$S$1)","v":"'Geographic Diversification'!$O$21"},"=+'Schedule IVC (EBS)'!K21",{"$f":"IF(_xlfn.FORMULATEXT(INDIRECT(S294))=T294,0,1)","v":0}]
[null,null,null,null,null,null,null,null,null,null,null,null,null,null,null,{"$f":"ADDRESS(104,6,1,1,$P$1)","v":"'Concentration Risk'!$F$104"},"=MAX(0,(D104*E104))",{"$f":"IF(_xlfn.FORMULATEXT(INDIRECT(P295))=Q295,0,1)","v":0},{"$f":"ADDRESS(21,16,1,1,$S$1)","v":"'Geographic Diversification'!$P$21"},"=+'Schedule IVC (EBS)'!L21",{"$f":"IF(_xlfn.FORMULATEXT(INDIRECT(S295))=T295,0,1)","v":0}]
[null,null,null,null,null,null,null,null,null,null,null,null,null,null,null,{"$f":"ADDRESS(105,2,1,1,$P$1)","v":"'Concentration Risk'!$B$105"},"Real Estate: Occupied by company",{"$f":"IF(INDIRECT(P296)=Q296,0,1)","v":0},{"$f":"ADDRESS(21,17,1,1,$S$1)","v":"'Geographic Diversification'!$Q$21"},"=+'Schedule IVC (EBS)'!M21",{"$f":"IF(_xlfn.FORMULATEXT(INDIRECT(S296))=T296,0,1)","v":0}]
[null,null,null,null,null,null,null,null,null,null,null,null,null,null,null,{"$f":"ADDRESS(105,4,1,1,$P$1)","v":"'Concentration Risk'!$D$105"},"=SUMIFS('Schedule XXI'!$M$8:$M$57,'Schedule XXI'!$J$8:$J$57,$B105)",{"$f":"IF(_xlfn.FORMULATEXT(INDIRECT(P297))=Q297,0,1)","v":0},{"$f":"ADDRESS(21,18,1,1,$S$1)","v":"'Geographic Diversification'!$R$21"},"=+'Schedule IVC (EBS)'!N21",{"$f":"IF(_xlfn.FORMULATEXT(INDIRECT(S297))=T297,0,1)","v":0}]
[null,null,null,null,null,null,null,null,null,null,null,null,null,null,null,{"$f":"ADDRESS(105,5,1,1,$P$1)","v":"'Concentration Risk'!$E$105"},0.1,{"$f":"IF(INDIRECT(P298)=Q298,0,1)","v":0},{"$f":"ADDRESS(21,19,1,1,$S$1)","v":"'Geographic Diversification'!$S$21"},"=+'Schedule IVC (EBS)'!O21",{"$f":"IF(_xlfn.FORMULATEXT(INDIRECT(S298))=T298,0,1)","v":0}]
[null,null,null,null,null,null,null,null,null,null,null,null,null,null,null,{"$f":"ADDRESS(105,6,1,1,$P$1)","v":"'Concentration Risk'!$F$105"},"=MAX(0,(D105*E105))",{"$f":"IF(_xlfn.FORMULATEXT(INDIRECT(P299))=Q299,0,1)","v":0},{"$f":"ADDRESS(21,20,1,1,$S$1)","v":"'Geographic Diversification'!$T$21"},"=+'Schedule IVC (EBS)'!P21",{"$f":"IF(_xlfn.FORMULATEXT(INDIRECT(S299))=T299,0,1)","v":0}]
[null,null,null,null,null,null,null,null,null,null,null,null,null,null,null,{"$f":"ADDRESS(106,2,1,1,$P$1)","v":"'Concentration Risk'!$B$106"},"Real Estate: Other properties",{"$f":"IF(INDIRECT(P300)=Q300,0,1)","v":0},{"$f":"ADDRESS(21,21,1,1,$S$1)","v":"'Geographic Diversification'!$U$21"},"=+'Schedule IVC (EBS)'!Q21",{"$f":"IF(_xlfn.FORMULATEXT(INDIRECT(S300))=T300,0,1)","v":0}]
[null,null,null,null,null,null,null,null,null,null,null,null,null,null,null,{"$f":"ADDRESS(106,4,1,1,$P$1)","v":"'Concentration Risk'!$D$106"},"=SUMIFS('Schedule XXI'!$M$8:$M$57,'Schedule XXI'!$J$8:$J$57,$B106)",{"$f":"IF(_xlfn.FORMULATEXT(INDIRECT(P301))=Q301,0,1)","v":0},{"$f":"ADDRESS(21,22,1,1,$S$1)","v":"'Geographic Diversification'!$V$21"},"=+'Schedule IVC (EBS)'!R21",{"$f":"IF(_xlfn.FORMULATEXT(INDIRECT(S301))=T301,0,1)","v":0}]
[null,null,null,null,null,null,null,null,null,null,null,null,null,null,null,{"$f":"ADDRESS(106,5,1,1,$P$1)","v":"'Concentration Risk'!$E$106"},0.2,{"$f":"IF(INDIRECT(P302)=Q302,0,1)","v":0},{"$f":"ADDRESS(21,23,1,1,$S$1)","v":"'Geographic Diversification'!$W$21"},"=+'Schedule IVC (EBS)'!S21",{"$f":"IF(_xlfn.FORMULATEXT(INDIRECT(S302))=T302,0,1)","v":0}]
[null,null,null,null,null,null,null,null,null,null,null,null,null,null,null,{"$f":"ADDRESS(106,6,1,1,$P$1)","v":"'Concentration Risk'!$F$106"},"=MAX(0,(D106*E106))",{"$f":"IF(_xlfn.FORMULATEXT(INDIRECT(P303))=Q303,0,1)","v":0},{"$f":"ADDRESS(21,24,1,1,$S$1)","v":"'Geographic Diversification'!$X$21"},"=+'Schedule IVC (EBS)'!T21",{"$f":"IF(_xlfn.FORMULATEXT(INDIRECT(S303))=T303,0,1)","v":0}]
[null,null,null,null,null,null,null,null,null,null,null,null,null,null,null,{"$f":"ADDRESS(107,2,1,1,$P$1)","v":"'Concentration Risk'!$B$107"},"Collateral Loans",{"$f":"IF(INDIRECT(P304)=Q304,0,1)","v":0},{"$f":"ADDRESS(21,25,1,1,$S$1)","v":"'Geographic Diversification'!$Y$21"},"=+'Schedule IVC (EBS)'!U21",{"$f":"IF(_xlfn.FORMULATEXT(INDIRECT(S304))=T304,0,1)","v":0}]
[null,null,null,null,null,null,null,null,null,null,null,null,null,null,null,{"$f":"ADDRESS(107,4,1,1,$P$1)","v":"'Concentration Risk'!$D$107"},"=SUMIFS('Schedule XXI'!$M$8:$M$57,'Schedule XXI'!$J$8:$J$57,$B107)",{"$f":"IF(_xlfn.FORMULATEXT(INDIRECT(P305))=Q305,0,1)","v":0},{"$f":"ADDRESS(21,26,1,1,$S$1)","v":"'Geographic Diversification'!$Z$21"},"=+'Schedule IVC (EBS)'!V21",{"$f":"IF(_xlfn.FORMULATEXT(INDIRECT(S305))=T305,0,1)","v":0}]
[null,null,null,null,null,null,null,null,null,null,null,null,null,null,null,{"$f":"ADDRESS(107,5,1,1,$P$1)","v":"'Concentration Risk'!$E$107"},0.05,{"$f":"IF(INDIRECT(P306)=Q306,0,1)","v":0},{"$f":"ADDRESS(22,4,1,1,$S$1)","v":"'Geographic Diversification'!$D$22"},"=SUM(I22:Z22)",{"$f":"IF(_xlfn.FORMULATEXT(INDIRECT(S306))=T306,0,1)","v":0}]
[null,null,null,null,null,null,null,null,null,null,null,null,null,null,null,{"$f":"ADDRESS(107,6,1,1,$P$1)","v":"'Concentration Risk'!$F$107"},"=MAX(0,(D107*E107))",{"$f":"IF(_xlfn.FORMULATEXT(INDIRECT(P307))=Q307,0,1)","v":0},{"$f":"ADDRESS(22,5,1,1,$S$1)","v":"'Geographic Diversification'!$E$22"},"=SUMSQ(I22:Z22)",{"$f":"IF(_xlfn.FORMULATEXT(INDIRECT(S307))=T307,0,1)","v":0}]
[null,null,null,null,null,null,null,null,null,null,null,null,null,null,null,{"$f":"ADDRESS(109,4,1,1,$P$1)","v":"'Concentration Risk'!$D$109"},"=SUM(D96:D108)",{"$f":"IF(_xlfn.FORMULATEXT(INDIRECT(P308))=Q308,0,1)","v":0},{"$f":"ADDRESS(22,6,1,1,$S$1)","v":"'Geographic Diversification'!$F$22"},"=(IF(D22>0,E22/D22^2,1))",{"$f":"IF(_xlfn.FORMULATEXT(INDIRECT(S308))=T308,0,1)","v":0}]
[null,null,null,null,null,null,null,null,null,null,null,null,null,null,null,{"$f":"ADDRESS(109,6,1,1,$P$1)","v":"'Concentration Risk'!$F$109"},"=SUM(F96:F108)",{"$f":"IF(_xlfn.FORMULATEXT(INDIRECT(P309))=Q309,0,1)","v":0},{"$f":"ADDRESS(22,7,1,1,$S$1)","v":"'Geographic Diversification'!$G$22"},"=D22*(0.75+0.25*F22)",{"$f":"IF(_xlfn.FORMULATEXT(INDIRECT(S309))=T309,0,1)","v":0}]
[null,null,null,null,null,null,null,null,null,null,null,null,null,null,null,{"$f":"ADDRESS(111,4,1,1,$P$1)","v":"'Concentration Risk'!$D$111"},"=D109+D93+D85+D72+D59+D46+D33+D20",{"$f":"IF(_xlfn.FORMULATEXT(INDIRECT(P310))=Q310,0,1)","v":0},{"$f":"ADDRESS(22,8,1,1,$S$1)","v":"'Geographic Diversification'!$H$22"},"=IF('Schedule IVC (EBS)'!AB22=\"True\",G22,'Schedule IVA (EBS)'!Q24)",{"$f":"IF(_xlfn.FORMULATEXT(INDIRECT(S310))=T310,0,1)","v":0}]
[null,null,null,null,null,null,null,null,null,null,null,null,null,null,null,{"$f":"ADDRESS(111,6,1,1,$P$1)","v":"'Concentration Risk'!$F$111"},"=F109+F93+F85+F72+F59+F46+F33+F20",{"$f":"IF(_xlfn.FORMULATEXT(INDIRECT(P311))=Q311,0,1)","v":0},{"$f":"ADDRESS(22,9,1,1,$S$1)","v":"'Geographic Diversification'!$I$22"},"=+'Schedule IVC (EBS)'!E22",{"$f":"IF(_xlfn.FORMULATEXT(INDIRECT(S311))=T311,0,1)","v":0}]
[null,null,null,null,null,null,null,null,null,null,null,null,null,null,null,null,null,-312,{"$f":"ADDRESS(22,10,1,1,$S$1)","v":"'Geographic Diversification'!$J$22"},"=+'Schedule IVC (EBS)'!F22",{"$f":"IF(_xlfn.FORMULATEXT(INDIRECT(S312))=T312,0,1)","v":0}]
[null,null,null,null,null,null,null,null,null,null,null,null,null,null,null,null,null,null,{"$f":"ADDRESS(22,11,1,1,$S$1)","v":"'Geographic Diversification'!$K$22"},"=+'Schedule IVC (EBS)'!G22",{"$f":"IF(_xlfn.FORMULATEXT(INDIRECT(S313))=T313,0,1)","v":0}]
[null,null,null,null,null,null,null,null,null,null,null,null,null,null,null,null,null,null,{"$f":"ADDRESS(22,12,1,1,$S$1)","v":"'Geographic Diversification'!$L$22"},"=+'Schedule IVC (EBS)'!H22",{"$f":"IF(_xlfn.FORMULATEXT(INDIRECT(S314))=T314,0,1)","v":0}]
[null,null,null,null,null,null,null,null,null,null,null,null,null,null,null,null,null,null,{"$f":"ADDRESS(22,13,1,1,$S$1)","v":"'Geographic Diversification'!$M$22"},"=+'Schedule IVC (EBS)'!I22",{"$f":"IF(_xlfn.FORMULATEXT(INDIRECT(S315))=T315,0,1)","v":0}]
[null,null,null,null,null,null,null,null,null,null,null,null,null,null,null,null,null,null,{"$f":"ADDRESS(22,14,1,1,$S$1)","v":"'Geographic Diversification'!$N$22"},"=+'Schedule IVC (EBS)'!J22",{"$f":"IF(_xlfn.FORMULATEXT(INDIRECT(S316))=T316,0,1)","v":0}]
[null,null,null,null,null,null,null,null,null,null,null,null,null,null,null,null,null,null,{"$f":"ADDRESS(22,15,1,1,$S$1)","v":"'Geographic Diversification'!$O$22"},"=+'Schedule IVC (EBS)'!K22",{"$f":"IF(_xlfn.FORMULATEXT(INDIRECT(S317))=T317,0,1)","v":0}]
[null,null,null,null,null,null,null,null,null,null,null,null,null,null,null,null,null,null,{"$f":"ADDRESS(22,16,1,1,$S$1)","v":"'Geographic Diversification'!$P$22"},"=+'Schedule IVC (EBS)'!L22",{"$f":"IF(_xlfn.FORMULATEXT(INDIRECT(S318))=T318,0,1)","v":0}]
[null,null,null,null,null,null,null,null,null,null,null,null,null,null,null,null,null,null,{"$f":"ADDRESS(22,17,1,1,$S$1)","v":"'Geographic Diversification'!$Q$22"},"=+'Schedule IVC (EBS)'!M22",{"$f":"IF(_xlfn.FORMULATEXT(INDIRECT(S319))=T319,0,1)","v":0}]
[null,null,null,null,null,null,null,null,null,null,null,null,null,null,null,null,null,null,{"$f":"ADDRESS(22,18,1,1,$S$1)","v":"'Geographic Diversification'!$R$22"},"=+'Schedule IVC (EBS)'!N22",{"$f":"IF(_xlfn.FORMULATEXT(INDIRECT(S320))=T320,0,1)","v":0}]
[null,null,null,null,null,null,null,null,null,null,null,null,null,null,null,null,null,null,{"$f":"ADDRESS(22,19,1,1,$S$1)","v":"'Geographic Diversification'!$S$22"},"=+'Schedule IVC (EBS)'!O22",{"$f":"IF(_xlfn.FORMULATEXT(INDIRECT(S321))=T321,0,1)","v":0}]
[null,null,null,null,null,null,null,null,null,null,null,null,null,null,null,null,null,null,{"$f":"ADDRESS(22,20,1,1,$S$1)","v":"'Geographic Diversification'!$T$22"},"=+'Schedule IVC (EBS)'!P22",{"$f":"IF(_xlfn.FORMULATEXT(INDIRECT(S322))=T322,0,1)","v":0}]
[null,null,null,null,null,null,null,null,null,null,null,null,null,null,null,null,null,null,{"$f":"ADDRESS(22,21,1,1,$S$1)","v":"'Geographic Diversification'!$U$22"},"=+'Schedule IVC (EBS)'!Q22",{"$f":"IF(_xlfn.FORMULATEXT(INDIRECT(S323))=T323,0,1)","v":0}]
[null,null,null,null,null,null,null,null,null,null,null,null,null,null,null,null,null,null,{"$f":"ADDRESS(22,22,1,1,$S$1)","v":"'Geographic Diversification'!$V$22"},"=+'Schedule IVC (EBS)'!R22",{"$f":"IF(_xlfn.FORMULATEXT(INDIRECT(S324))=T324,0,1)","v":0}]
[null,null,null,null,null,null,null,null,null,null,null,null,null,null,null,null,null,null,{"$f":"ADDRESS(22,23,1,1,$S$1)","v":"'Geographic Diversification'!$W$22"},"=+'Schedule IVC (EBS)'!S22",{"$f":"IF(_xlfn.FORMULATEXT(INDIRECT(S325))=T325,0,1)","v":0}]
[null,null,null,null,null,null,null,null,null,null,null,null,null,null,null,null,null,null,{"$f":"ADDRESS(22,24,1,1,$S$1)","v":"'Geographic Diversification'!$X$22"},"=+'Schedule IVC (EBS)'!T22",{"$f":"IF(_xlfn.FORMULATEXT(INDIRECT(S326))=T326,0,1)","v":0}]
[null,null,null,null,null,null,null,null,null,null,null,null,null,null,null,null,null,null,{"$f":"ADDRESS(22,25,1,1,$S$1)","v":"'Geographic Diversification'!$Y$22"},"=+'Schedule IVC (EBS)'!U22",{"$f":"IF(_xlfn.FORMULATEXT(INDIRECT(S327))=T327,0,1)","v":0}]
[null,null,null,null,null,null,null,null,null,null,null,null,null,null,null,null,null,null,{"$f":"ADDRESS(22,26,1,1,$S$1)","v":"'Geographic Diversification'!$Z$22"},"=+'Schedule IVC (EBS)'!V22",{"$f":"IF(_xlfn.FORMULATEXT(INDIRECT(S328))=T328,0,1)","v":0}]
[null,null,null,null,null,null,null,null,null,null,null,null,null,null,null,null,null,null,{"$f":"ADDRESS(23,4,1,1,$S$1)","v":"'Geographic Diversification'!$D$23"},"=SUM(I23:Z23)",{"$f":"IF(_xlfn.FORMULATEXT(INDIRECT(S329))=T329,0,1)","v":0}]
[null,null,null,null,null,null,null,null,null,null,null,null,null,null,null,null,null,null,{"$f":"ADDRESS(23,5,1,1,$S$1)","v":"'Geographic Diversification'!$E$23"},"=SUMSQ(I23:Z23)",{"$f":"IF(_xlfn.FORMULATEXT(INDIRECT(S330))=T330,0,1)","v":0}]
[null,null,null,null,null,null,null,null,null,null,null,null,null,null,null,null,null,null,{"$f":"ADDRESS(23,6,1,1,$S$1)","v":"'Geographic Diversification'!$F$23"},"=(IF(D23>0,E23/D23^2,1))",{"$f":"IF(_xlfn.FORMULATEXT(INDIRECT(S331))=T331,0,1)","v":0}]
[null,null,null,null,null,null,null,null,null,null,null,null,null,null,null,null,null,null,{"$f":"ADDRESS(23,7,1,1,$S$1)","v":"'Geographic Diversification'!$G$23"},"=D23*(0.75+0.25*F23)",{"$f":"IF(_xlfn.FORMULATEXT(INDIRECT(S332))=T332,0,1)","v":0}]
[null,null,null,null,null,null,null,null,null,null,null,null,null,null,null,null,null,null,{"$f":"ADDRESS(23,8,1,1,$S$1)","v":"'Geographic Diversification'!$H$23"},"=IF('Schedule IVC (EBS)'!AB23=\"True\",G23,'Schedule IVA (EBS)'!Q25)",{"$f":"IF(_xlfn.FORMULATEXT(INDIRECT(S333))=T333,0,1)","v":0}]
[null,null,null,null,null,null,null,null,null,null,null,null,null,null,null,null,null,null,{"$f":"ADDRESS(23,9,1,1,$S$1)","v":"'Geographic Diversification'!$I$23"},"=+'Schedule IVC (EBS)'!E23",{"$f":"IF(_xlfn.FORMULATEXT(INDIRECT(S334))=T334,0,1)","v":0}]
[null,null,null,null,null,null,null,null,null,null,null,null,null,null,null,null,null,null,{"$f":"ADDRESS(23,10,1,1,$S$1)","v":"'Geographic Diversification'!$J$23"},"=+'Schedule IVC (EBS)'!F23",{"$f":"IF(_xlfn.FORMULATEXT(INDIRECT(S335))=T335,0,1)","v":0}]
[null,null,null,null,null,null,null,null,null,null,null,null,null,null,null,null,null,null,{"$f":"ADDRESS(23,11,1,1,$S$1)","v":"'Geographic Diversification'!$K$23"},"=+'Schedule IVC (EBS)'!G23",{"$f":"IF(_xlfn.FORMULATEXT(INDIRECT(S336))=T336,0,1)","v":0}]
[null,null,null,null,null,null,null,null,null,null,null,null,null,null,null,null,null,null,{"$f":"ADDRESS(23,12,1,1,$S$1)","v":"'Geographic Diversification'!$L$23"},"=+'Schedule IVC (EBS)'!H23",{"$f":"IF(_xlfn.FORMULATEXT(INDIRECT(S337))=T337,0,1)","v":0}]
[null,null,null,null,null,null,null,null,null,null,null,null,null,null,null,null,null,null,{"$f":"ADDRESS(23,13,1,1,$S$1)","v":"'Geographic Diversification'!$M$23"},"=+'Schedule IVC (EBS)'!I23",{"$f":"IF(_xlfn.FORMULATEXT(INDIRECT(S338))=T338,0,1)","v":0}]
[null,null,null,null,null,null,null,null,null,null,null,null,null,null,null,null,null,null,{"$f":"ADDRESS(23,14,1,1,$S$1)","v":"'Geographic Diversification'!$N$23"},"=+'Schedule IVC (EBS)'!J23",{"$f":"IF(_xlfn.FORMULATEXT(INDIRECT(S339))=T339,0,1)","v":0}]
[null,null,null,null,null,null,null,null,null,null,null,null,null,null,null,null,null,null,{"$f":"ADDRESS(23,15,1,1,$S$1)","v":"'Geographic Diversification'!$O$23"},"=+'Schedule IVC (EBS)'!K23",{"$f":"IF(_xlfn.FORMULATEXT(INDIRECT(S340))=T340,0,1)","v":0}]
[null,null,null,null,null,null,null,null,null,null,null,null,null,null,null,null,null,null,{"$f":"ADDRESS(23,16,1,1,$S$1)","v":"'Geographic Diversification'!$P$23"},"=+'Schedule IVC (EBS)'!L23",{"$f":"IF(_xlfn.FORMULATEXT(INDIRECT(S341))=T341,0,1)","v":0}]
[null,null,null,null,null,null,null,null,null,null,null,null,null,null,null,null,null,null,{"$f":"ADDRESS(23,17,1,1,$S$1)","v":"'Geographic Diversification'!$Q$23"},"=+'Schedule IVC (EBS)'!M23",{"$f":"IF(_xlfn.FORMULATEXT(INDIRECT(S342))=T342,0,1)","v":0}]
[null,null,null,null,null,null,null,null,null,null,null,null,null,null,null,null,null,null,{"$f":"ADDRESS(23,18,1,1,$S$1)","v":"'Geographic Diversification'!$R$23"},"=+'Schedule IVC (EBS)'!N23",{"$f":"IF(_xlfn.FORMULATEXT(INDIRECT(S343))=T343,0,1)","v":0}]
[null,null,null,null,null,null,null,null,null,null,null,null,null,null,null,null,null,null,{"$f":"ADDRESS(23,19,1,1,$S$1)","v":"'Geographic Diversification'!$S$23"},"=+'Schedule IVC (EBS)'!O23",{"$f":"IF(_xlfn.FORMULATEXT(INDIRECT(S344))=T344,0,1)","v":0}]
[null,null,null,null,null,null,null,null,null,null,null,null,null,null,null,null,null,null,{"$f":"ADDRESS(23,20,1,1,$S$1)","v":"'Geographic Diversification'!$T$23"},"=+'Schedule IVC (EBS)'!P23",{"$f":"IF(_xlfn.FORMULATEXT(INDIRECT(S345))=T345,0,1)","v":0}]
[null,null,null,null,null,null,null,null,null,null,null,null,null,null,null,null,null,null,{"$f":"ADDRESS(23,21,1,1,$S$1)","v":"'Geographic Diversification'!$U$23"},"=+'Schedule IVC (EBS)'!Q23",{"$f":"IF(_xlfn.FORMULATEXT(INDIRECT(S346))=T346,0,1)","v":0}]
[null,null,null,null,null,null,null,null,null,null,null,null,null,null,null,null,null,null,{"$f":"ADDRESS(23,22,1,1,$S$1)","v":"'Geographic Diversification'!$V$23"},"=+'Schedule IVC (EBS)'!R23",{"$f":"IF(_xlfn.FORMULATEXT(INDIRECT(S347))=T347,0,1)","v":0}]
[null,null,null,null,null,null,null,null,null,null,null,null,null,null,null,null,null,null,{"$f":"ADDRESS(23,23,1,1,$S$1)","v":"'Geographic Diversification'!$W$23"},"=+'Schedule IVC (EBS)'!S23",{"$f":"IF(_xlfn.FORMULATEXT(INDIRECT(S348))=T348,0,1)","v":0}]
[null,null,null,null,null,null,null,null,null,null,null,null,null,null,null,null,null,null,{"$f":"ADDRESS(23,24,1,1,$S$1)","v":"'Geographic Diversification'!$X$23"},"=+'Schedule IVC (EBS)'!T23",{"$f":"IF(_xlfn.FORMULATEXT(INDIRECT(S349))=T349,0,1)","v":0}]
[null,null,null,null,null,null,null,null,null,null,null,null,null,null,null,null,null,null,{"$f":"ADDRESS(23,25,1,1,$S$1)","v":"'Geographic Diversification'!$Y$23"},"=+'Schedule IVC (EBS)'!U23",{"$f":"IF(_xlfn.FORMULATEXT(INDIRECT(S350))=T350,0,1)","v":0}]
[null,null,null,null,null,null,null,null,null,null,null,null,null,null,null,null,null,null,{"$f":"ADDRESS(23,26,1,1,$S$1)","v":"'Geographic Diversification'!$Z$23"},"=+'Schedule IVC (EBS)'!V23",{"$f":"IF(_xlfn.FORMULATEXT(INDIRECT(S351))=T351,0,1)","v":0}]
[null,null,null,null,null,null,null,null,null,null,null,null,null,null,null,null,null,null,{"$f":"ADDRESS(24,4,1,1,$S$1)","v":"'Geographic Diversification'!$D$24"},"=SUM(I24:Z24)",{"$f":"IF(_xlfn.FORMULATEXT(INDIRECT(S352))=T352,0,1)","v":0}]
[null,null,null,null,null,null,null,null,null,null,null,null,null,null,null,null,null,null,{"$f":"ADDRESS(24,5,1,1,$S$1)","v":"'Geographic Diversification'!$E$24"},"=SUMSQ(I24:Z24)",{"$f":"IF(_xlfn.FORMULATEXT(INDIRECT(S353))=T353,0,1)","v":0}]
[null,null,null,null,null,null,null,null,null,null,null,null,null,null,null,null,null,null,{"$f":"ADDRESS(24,6,1,1,$S$1)","v":"'Geographic Diversification'!$F$24"},"=(IF(D24>0,E24/D24^2,1))",{"$f":"IF(_xlfn.FORMULATEXT(INDIRECT(S354))=T354,0,1)","v":0}]
[null,null,null,null,null,null,null,null,null,null,null,null,null,null,null,null,null,null,{"$f":"ADDRESS(24,7,1,1,$S$1)","v":"'Geographic Diversification'!$G$24"},"=D24*(0.75+0.25*F24)",{"$f":"IF(_xlfn.FORMULATEXT(INDIRECT(S355))=T355,0,1)","v":0}]
[null,null,null,null,null,null,null,null,null,null,null,null,null,null,null,null,null,null,{"$f":"ADDRESS(24,8,1,1,$S$1)","v":"'Geographic Diversification'!$H$24"},"=IF('Schedule IVC (EBS)'!AB24=\"True\",G24,'Schedule IVA (EBS)'!Q26)",{"$f":"IF(_xlfn.FORMULATEXT(INDIRECT(S356))=T356,0,1)","v":0}]
[null,null,null,null,null,null,null,null,null,null,null,null,null,null,null,null,null,null,{"$f":"ADDRESS(24,9,1,1,$S$1)","v":"'Geographic Diversification'!$I$24"},"=+'Schedule IVC (EBS)'!E24",{"$f":"IF(_xlfn.FORMULATEXT(INDIRECT(S357))=T357,0,1)","v":0}]
[null,null,null,null,null,null,null,null,null,null,null,null,null,null,null,null,null,null,{"$f":"ADDRESS(24,10,1,1,$S$1)","v":"'Geographic Diversification'!$J$24"},"=+'Schedule IVC (EBS)'!F24",{"$f":"IF(_xlfn.FORMULATEXT(INDIRECT(S358))=T358,0,1)","v":0}]
[null,null,null,null,null,null,null,null,null,null,null,null,null,null,null,null,null,null,{"$f":"ADDRESS(24,11,1,1,$S$1)","v":"'Geographic Diversification'!$K$24"},"=+'Schedule IVC (EBS)'!G24",{"$f":"IF(_xlfn.FORMULATEXT(INDIRECT(S359))=T359,0,1)","v":0}]
[null,null,null,null,null,null,null,null,null,null,null,null,null,null,null,null,null,null,{"$f":"ADDRESS(24,12,1,1,$S$1)","v":"'Geographic Diversification'!$L$24"},"=+'Schedule IVC (EBS)'!H24",{"$f":"IF(_xlfn.FORMULATEXT(INDIRECT(S360))=T360,0,1)","v":0}]
[null,null,null,null,null,null,null,null,null,null,null,null,null,null,null,null,null,null,{"$f":"ADDRESS(24,13,1,1,$S$1)","v":"'Geographic Diversification'!$M$24"},"=+'Schedule IVC (EBS)'!I24",{"$f":"IF(_xlfn.FORMULATEXT(INDIRECT(S361))=T361,0,1)","v":0}]
[null,null,null,null,null,null,null,null,null,null,null,null,null,null,null,null,null,null,{"$f":"ADDRESS(24,14,1,1,$S$1)","v":"'Geographic Diversification'!$N$24"},"=+'Schedule IVC (EBS)'!J24",{"$f":"IF(_xlfn.FORMULATEXT(INDIRECT(S362))=T362,0,1)","v":0}]
[null,null,null,null,null,null,null,null,null,null,null,null,null,null,null,null,null,null,{"$f":"ADDRESS(24,15,1,1,$S$1)","v":"'Geographic Diversification'!$O$24"},"=+'Schedule IVC (EBS)'!K24",{"$f":"IF(_xlfn.FORMULATEXT(INDIRECT(S363))=T363,0,1)","v":0}]
[null,null,null,null,null,null,null,null,null,null,null,null,null,null,null,null,null,null,{"$f":"ADDRESS(24,16,1,1,$S$1)","v":"'Geographic Diversification'!$P$24"},"=+'Schedule IVC (EBS)'!L24",{"$f":"IF(_xlfn.FORMULATEXT(INDIRECT(S364))=T364,0,1)","v":0}]
[null,null,null,null,null,null,null,null,null,null,null,null,null,null,null,null,null,null,{"$f":"ADDRESS(24,17,1,1,$S$1)","v":"'Geographic Diversification'!$Q$24"},"=+'Schedule IVC (EBS)'!M24",{"$f":"IF(_xlfn.FORMULATEXT(INDIRECT(S365))=T365,0,1)","v":0}]
[null,null,null,null,null,null,null,null,null,null,null,null,null,null,null,null,null,null,{"$f":"ADDRESS(24,18,1,1,$S$1)","v":"'Geographic Diversification'!$R$24"},"=+'Schedule IVC (EBS)'!N24",{"$f":"IF(_xlfn.FORMULATEXT(INDIRECT(S366))=T366,0,1)","v":0}]
[null,null,null,null,null,null,null,null,null,null,null,null,null,null,null,null,null,null,{"$f":"ADDRESS(24,19,1,1,$S$1)","v":"'Geographic Diversification'!$S$24"},"=+'Schedule IVC (EBS)'!O24",{"$f":"IF(_xlfn.FORMULATEXT(INDIRECT(S367))=T367,0,1)","v":0}]
[null,null,null,null,null,null,null,null,null,null,null,null,null,null,null,null,null,null,{"$f":"ADDRESS(24,20,1,1,$S$1)","v":"'Geographic Diversification'!$T$24"},"=+'Schedule IVC (EBS)'!P24",{"$f":"IF(_xlfn.FORMULATEXT(INDIRECT(S368))=T368,0,1)","v":0}]
[null,null,null,null,null,null,null,null,null,null,null,null,null,null,null,null,null,null,{"$f":"ADDRESS(24,21,1,1,$S$1)","v":"'Geographic Diversification'!$U$24"},"=+'Schedule IVC (EBS)'!Q24",{"$f":"IF(_xlfn.FORMULATEXT(INDIRECT(S369))=T369,0,1)","v":0}]
[null,null,null,null,null,null,null,null,null,null,null,null,null,null,null,null,null,null,{"$f":"ADDRESS(24,22,1,1,$S$1)","v":"'Geographic Diversification'!$V$24"},"=+'Schedule IVC (EBS)'!R24",{"$f":"IF(_xlfn.FORMULATEXT(INDIRECT(S370))=T370,0,1)","v":0}]
[null,null,null,null,null,null,null,null,null,null,null,null,null,null,null,null,null,null,{"$f":"ADDRESS(24,23,1,1,$S$1)","v":"'Geographic Diversification'!$W$24"},"=+'Schedule IVC (EBS)'!S24",{"$f":"IF(_xlfn.FORMULATEXT(INDIRECT(S371))=T371,0,1)","v":0}]
[null,null,null,null,null,null,null,null,null,null,null,null,null,null,null,null,null,null,{"$f":"ADDRESS(24,24,1,1,$S$1)","v":"'Geographic Diversification'!$X$24"},"=+'Schedule IVC (EBS)'!T24",{"$f":"IF(_xlfn.FORMULATEXT(INDIRECT(S372))=T372,0,1)","v":0}]
[null,null,null,null,null,null,null,null,null,null,null,null,null,null,null,null,null,null,{"$f":"ADDRESS(24,25,1,1,$S$1)","v":"'Geographic Diversification'!$Y$24"},"=+'Schedule IVC (EBS)'!U24",{"$f":"IF(_xlfn.FORMULATEXT(INDIRECT(S373))=T373,0,1)","v":0}]
[null,null,null,null,null,null,null,null,null,null,null,null,null,null,null,null,null,null,{"$f":"ADDRESS(24,26,1,1,$S$1)","v":"'Geographic Diversification'!$Z$24"},"=+'Schedule IVC (EBS)'!V24",{"$f":"IF(_xlfn.FORMULATEXT(INDIRECT(S374))=T374,0,1)","v":0}]
[null,null,null,null,null,null,null,null,null,null,null,null,null,null,null,null,null,null,{"$f":"ADDRESS(25,4,1,1,$S$1)","v":"'Geographic Diversification'!$D$25"},"=SUM(I25:Z25)",{"$f":"IF(_xlfn.FORMULATEXT(INDIRECT(S375))=T375,0,1)","v":0}]
[null,null,null,null,null,null,null,null,null,null,null,null,null,null,null,null,null,null,{"$f":"ADDRESS(25,5,1,1,$S$1)","v":"'Geographic Diversification'!$E$25"},"=SUMSQ(I25:Z25)",{"$f":"IF(_xlfn.FORMULATEXT(INDIRECT(S376))=T376,0,1)","v":0}]
[null,null,null,null,null,null,null,null,null,null,null,null,null,null,null,null,null,null,{"$f":"ADDRESS(25,6,1,1,$S$1)","v":"'Geographic Diversification'!$F$25"},"=(IF(D25>0,E25/D25^2,1))",{"$f":"IF(_xlfn.FORMULATEXT(INDIRECT(S377))=T377,0,1)","v":0}]
[null,null,null,null,null,null,null,null,null,null,null,null,null,null,null,null,null,null,{"$f":"ADDRESS(25,7,1,1,$S$1)","v":"'Geographic Diversification'!$G$25"},"=D25*(0.75+0.25*F25)",{"$f":"IF(_xlfn.FORMULATEXT(INDIRECT(S378))=T378,0,1)","v":0}]
[null,null,null,null,null,null,null,null,null,null,null,null,null,null,null,null,null,null,{"$f":"ADDRESS(25,8,1,1,$S$1)","v":"'Geographic Diversification'!$H$25"},"=IF('Schedule IVC (EBS)'!AB25=\"True\",G25,'Schedule IVA (EBS)'!Q27)",{"$f":"IF(_xlfn.FORMULATEXT(INDIRECT(S379))=T379,0,1)","v":0}]
[null,null,null,null,null,null,null,null,null,null,null,null,null,null,null,null,null,null,{"$f":"ADDRESS(25,9,1,1,$S$1)","v":"'Geographic Diversification'!$I$25"},"=+'Schedule IVC (EBS)'!E25",{"$f":"IF(_xlfn.FORMULATEXT(INDIRECT(S380))=T380,0,1)","v":0}]
[null,null,null,null,null,null,null,null,null,null,null,null,null,null,null,null,null,null,{"$f":"ADDRESS(25,10,1,1,$S$1)","v":"'Geographic Diversification'!$J$25"},"=+'Schedule IVC (EBS)'!F25",{"$f":"IF(_xlfn.FORMULATEXT(INDIRECT(S381))=T381,0,1)","v":0}]
[null,null,null,null,null,null,null,null,null,null,null,null,null,null,null,null,null,null,{"$f":"ADDRESS(25,11,1,1,$S$1)","v":"'Geographic Diversification'!$K$25"},"=+'Schedule IVC (EBS)'!G25",{"$f":"IF(_xlfn.FORMULATEXT(INDIRECT(S382))=T382,0,1)","v":0}]
[null,null,null,null,null,null,null,null,null,null,null,null,null,null,null,null,null,null,{"$f":"ADDRESS(25,12,1,1,$S$1)","v":"'Geographic Diversification'!$L$25"},"=+'Schedule IVC (EBS)'!H25",{"$f":"IF(_xlfn.FORMULATEXT(INDIRECT(S383))=T383,0,1)","v":0}]
[null,null,null,null,null,null,null,null,null,null,null,null,null,null,null,null,null,null,{"$f":"ADDRESS(25,13,1,1,$S$1)","v":"'Geographic Diversification'!$M$25"},"=+'Schedule IVC (EBS)'!I25",{"$f":"IF(_xlfn.FORMULATEXT(INDIRECT(S384))=T384,0,1)","v":0}]
[null,null,null,null,null,null,null,null,null,null,null,null,null,null,null,null,null,null,{"$f":"ADDRESS(25,14,1,1,$S$1)","v":"'Geographic Diversification'!$N$25"},"=+'Schedule IVC (EBS)'!J25",{"$f":"IF(_xlfn.FORMULATEXT(INDIRECT(S385))=T385,0,1)","v":0}]
[null,null,null,null,null,null,null,null,null,null,null,null,null,null,null,null,null,null,{"$f":"ADDRESS(25,15,1,1,$S$1)","v":"'Geographic Diversification'!$O$25"},"=+'Schedule IVC (EBS)'!K25",{"$f":"IF(_xlfn.FORMULATEXT(INDIRECT(S386))=T386,0,1)","v":0}]
[null,null,null,null,null,null,null,null,null,null,null,null,null,null,null,null,null,null,{"$f":"ADDRESS(25,16,1,1,$S$1)","v":"'Geographic Diversification'!$P$25"},"=+'Schedule IVC (EBS)'!L25",{"$f":"IF(_xlfn.FORMULATEXT(INDIRECT(S387))=T387,0,1)","v":0}]
[null,null,null,null,null,null,null,null,null,null,null,null,null,null,null,null,null,null,{"$f":"ADDRESS(25,17,1,1,$S$1)","v":"'Geographic Diversification'!$Q$25"},"=+'Schedule IVC (EBS)'!M25",{"$f":"IF(_xlfn.FORMULATEXT(INDIRECT(S388))=T388,0,1)","v":0}]
[null,null,null,null,null,null,null,null,null,null,null,null,null,null,null,null,null,null,{"$f":"ADDRESS(25,18,1,1,$S$1)","v":"'Geographic Diversification'!$R$25"},"=+'Schedule IVC (EBS)'!N25",{"$f":"IF(_xlfn.FORMULATEXT(INDIRECT(S389))=T389,0,1)","v":0}]
[null,null,null,null,null,null,null,null,null,null,null,null,null,null,null,null,null,null,{"$f":"ADDRESS(25,19,1,1,$S$1)","v":"'Geographic Diversification'!$S$25"},"=+'Schedule IVC (EBS)'!O25",{"$f":"IF(_xlfn.FORMULATEXT(INDIRECT(S390))=T390,0,1)","v":0}]
[null,null,null,null,null,null,null,null,null,null,null,null,null,null,null,null,null,null,{"$f":"ADDRESS(25,20,1,1,$S$1)","v":"'Geographic Diversification'!$T$25"},"=+'Schedule IVC (EBS)'!P25",{"$f":"IF(_xlfn.FORMULATEXT(INDIRECT(S391))=T391,0,1)","v":0}]
[null,null,null,null,null,null,null,null,null,null,null,null,null,null,null,null,null,null,{"$f":"ADDRESS(25,21,1,1,$S$1)","v":"'Geographic Diversification'!$U$25"},"=+'Schedule IVC (EBS)'!Q25",{"$f":"IF(_xlfn.FORMULATEXT(INDIRECT(S392))=T392,0,1)","v":0}]
[null,null,null,null,null,null,null,null,null,null,null,null,null,null,null,null,null,null,{"$f":"ADDRESS(25,22,1,1,$S$1)","v":"'Geographic Diversification'!$V$25"},"=+'Schedule IVC (EBS)'!R25",{"$f":"IF(_xlfn.FORMULATEXT(INDIRECT(S393))=T393,0,1)","v":0}]
[null,null,null,null,null,null,null,null,null,null,null,null,null,null,null,null,null,null,{"$f":"ADDRESS(25,23,1,1,$S$1)","v":"'Geographic Diversification'!$W$25"},"=+'Schedule IVC (EBS)'!S25",{"$f":"IF(_xlfn.FORMULATEXT(INDIRECT(S394))=T394,0,1)","v":0}]
[null,null,null,null,null,null,null,null,null,null,null,null,null,null,null,null,null,null,{"$f":"ADDRESS(25,24,1,1,$S$1)","v":"'Geographic Diversification'!$X$25"},"=+'Schedule IVC (EBS)'!T25",{"$f":"IF(_xlfn.FORMULATEXT(INDIRECT(S395))=T395,0,1)","v":0}]
[null,null,null,null,null,null,null,null,null,null,null,null,null,null,null,null,null,null,{"$f":"ADDRESS(25,25,1,1,$S$1)","v":"'Geographic Diversification'!$Y$25"},"=+'Schedule IVC (EBS)'!U25",{"$f":"IF(_xlfn.FORMULATEXT(INDIRECT(S396))=T396,0,1)","v":0}]
[null,null,null,null,null,null,null,null,null,null,null,null,null,null,null,null,null,null,{"$f":"ADDRESS(25,26,1,1,$S$1)","v":"'Geographic Diversification'!$Z$25"},"=+'Schedule IVC (EBS)'!V25",{"$f":"IF(_xlfn.FORMULATEXT(INDIRECT(S397))=T397,0,1)","v":0}]
[null,null,null,null,null,null,null,null,null,null,null,null,null,null,null,null,null,null,{"$f":"ADDRESS(26,4,1,1,$S$1)","v":"'Geographic Diversification'!$D$26"},"=SUM(I26:Z26)",{"$f":"IF(_xlfn.FORMULATEXT(INDIRECT(S398))=T398,0,1)","v":0}]
[null,null,null,null,null,null,null,null,null,null,null,null,null,null,null,null,null,null,{"$f":"ADDRESS(26,5,1,1,$S$1)","v":"'Geographic Diversification'!$E$26"},"=SUMSQ(I26:Z26)",{"$f":"IF(_xlfn.FORMULATEXT(INDIRECT(S399))=T399,0,1)","v":0}]
[null,null,null,null,null,null,null,null,null,null,null,null,null,null,null,null,null,null,{"$f":"ADDRESS(26,6,1,1,$S$1)","v":"'Geographic Diversification'!$F$26"},"=(IF(D26>0,E26/D26^2,1))",{"$f":"IF(_xlfn.FORMULATEXT(INDIRECT(S400))=T400,0,1)","v":0}]
[null,null,null,null,null,null,null,null,null,null,null,null,null,null,null,null,null,null,{"$f":"ADDRESS(26,7,1,1,$S$1)","v":"'Geographic Diversification'!$G$26"},"=D26*(0.75+0.25*F26)",{"$f":"IF(_xlfn.FORMULATEXT(INDIRECT(S401))=T401,0,1)","v":0}]
[null,null,null,null,null,null,null,null,null,null,null,null,null,null,null,null,null,null,{"$f":"ADDRESS(26,8,1,1,$S$1)","v":"'Geographic Diversification'!$H$26"},"=IF('Schedule IVC (EBS)'!AB26=\"True\",G26,'Schedule IVA (EBS)'!Q28)",{"$f":"IF(_xlfn.FORMULATEXT(INDIRECT(S402))=T402,0,1)","v":0}]
[null,null,null,null,null,null,null,null,null,null,null,null,null,null,null,null,null,null,{"$f":"ADDRESS(26,9,1,1,$S$1)","v":"'Geographic Diversification'!$I$26"},"=+'Schedule IVC (EBS)'!E26",{"$f":"IF(_xlfn.FORMULATEXT(INDIRECT(S403))=T403,0,1)","v":0}]
[null,null,null,null,null,null,null,null,null,null,null,null,null,null,null,null,null,null,{"$f":"ADDRESS(26,10,1,1,$S$1)","v":"'Geographic Diversification'!$J$26"},"=+'Schedule IVC (EBS)'!F26",{"$f":"IF(_xlfn.FORMULATEXT(INDIRECT(S404))=T404,0,1)","v":0}]
[null,null,null,null,null,null,null,null,null,null,null,null,null,null,null,null,null,null,{"$f":"ADDRESS(26,11,1,1,$S$1)","v":"'Geographic Diversification'!$K$26"},"=+'Schedule IVC (EBS)'!G26",{"$f":"IF(_xlfn.FORMULATEXT(INDIRECT(S405))=T405,0,1)","v":0}]
[null,null,null,null,null,null,null,null,null,null,null,null,null,null,null,null,null,null,{"$f":"ADDRESS(26,12,1,1,$S$1)","v":"'Geographic Diversification'!$L$26"},"=+'Schedule IVC (EBS)'!H26",{"$f":"IF(_xlfn.FORMULATEXT(INDIRECT(S406))=T406,0,1)","v":0}]
[null,null,null,null,null,null,null,null,null,null,null,null,null,null,null,null,null,null,{"$f":"ADDRESS(26,13,1,1,$S$1)","v":"'Geographic Diversification'!$M$26"},"=+'Schedule IVC (EBS)'!I26",{"$f":"IF(_xlfn.FORMULATEXT(INDIRECT(S407))=T407,0,1)","v":0}]
[null,null,null,null,null,null,null,null,null,null,null,null,null,null,null,null,null,null,{"$f":"ADDRESS(26,14,1,1,$S$1)","v":"'Geographic Diversification'!$N$26"},"=+'Schedule IVC (EBS)'!J26",{"$f":"IF(_xlfn.FORMULATEXT(INDIRECT(S408))=T408,0,1)","v":0}]
[null,null,null,null,null,null,null,null,null,null,null,null,null,null,null,null,null,null,{"$f":"ADDRESS(26,15,1,1,$S$1)","v":"'Geographic Diversification'!$O$26"},"=+'Schedule IVC (EBS)'!K26",{"$f":"IF(_xlfn.FORMULATEXT(INDIRECT(S409))=T409,0,1)","v":0}]
[null,null,null,null,null,null,null,null,null,null,null,null,null,null,null,null,null,null,{"$f":"ADDRESS(26,16,1,1,$S$1)","v":"'Geographic Diversification'!$P$26"},"=+'Schedule IVC (EBS)'!L26",{"$f":"IF(_xlfn.FORMULATEXT(INDIRECT(S410))=T410,0,1)","v":0}]
[null,null,null,null,null,null,null,null,null,null,null,null,null,null,null,null,null,null,{"$f":"ADDRESS(26,17,1,1,$S$1)","v":"'Geographic Diversification'!$Q$26"},"=+'Schedule IVC (EBS)'!M26",{"$f":"IF(_xlfn.FORMULATEXT(INDIRECT(S411))=T411,0,1)","v":0}]
[null,null,null,null,null,null,null,null,null,null,null,null,null,null,null,null,null,null,{"$f":"ADDRESS(26,18,1,1,$S$1)","v":"'Geographic Diversification'!$R$26"},"=+'Schedule IVC (EBS)'!N26",{"$f":"IF(_xlfn.FORMULATEXT(INDIRECT(S412))=T412,0,1)","v":0}]
[null,null,null,null,null,null,null,null,null,null,null,null,null,null,null,null,null,null,{"$f":"ADDRESS(26,19,1,1,$S$1)","v":"'Geographic Diversification'!$S$26"},"=+'Schedule IVC (EBS)'!O26",{"$f":"IF(_xlfn.FORMULATEXT(INDIRECT(S413))=T413,0,1)","v":0}]
[null,null,null,null,null,null,null,null,null,null,null,null,null,null,null,null,null,null,{"$f":"ADDRESS(26,20,1,1,$S$1)","v":"'Geographic Diversification'!$T$26"},"=+'Schedule IVC (EBS)'!P26",{"$f":"IF(_xlfn.FORMULATEXT(INDIRECT(S414))=T414,0,1)","v":0}]
[null,null,null,null,null,null,null,null,null,null,null,null,null,null,null,null,null,null,{"$f":"ADDRESS(26,21,1,1,$S$1)","v":"'Geographic Diversification'!$U$26"},"=+'Schedule IVC (EBS)'!Q26",{"$f":"IF(_xlfn.FORMULATEXT(INDIRECT(S415))=T415,0,1)","v":0}]
[null,null,null,null,null,null,null,null,null,null,null,null,null,null,null,null,null,null,{"$f":"ADDRESS(26,22,1,1,$S$1)","v":"'Geographic Diversification'!$V$26"},"=+'Schedule IVC (EBS)'!R26",{"$f":"IF(_xlfn.FORMULATEXT(INDIRECT(S416))=T416,0,1)","v":0}]
[null,null,null,null,null,null,null,null,null,null,null,null,null,null,null,null,null,null,{"$f":"ADDRESS(26,23,1,1,$S$1)","v":"'Geographic Diversification'!$W$26"},"=+'Schedule IVC (EBS)'!S26",{"$f":"IF(_xlfn.FORMULATEXT(INDIRECT(S417))=T417,0,1)","v":0}]
[null,null,null,null,null,null,null,null,null,null,null,null,null,null,null,null,null,null,{"$f":"ADDRESS(26,24,1,1,$S$1)","v":"'Geographic Diversification'!$X$26"},"=+'Schedule IVC (EBS)'!T26",{"$f":"IF(_xlfn.FORMULATEXT(INDIRECT(S418))=T418,0,1)","v":0}]
[null,null,null,null,null,null,null,null,null,null,null,null,null,null,null,null,null,null,{"$f":"ADDRESS(26,25,1,1,$S$1)","v":"'Geographic Diversification'!$Y$26"},"=+'Schedule IVC (EBS)'!U26",{"$f":"IF(_xlfn.FORMULATEXT(INDIRECT(S419))=T419,0,1)","v":0}]
[null,null,null,null,null,null,null,null,null,null,null,null,null,null,null,null,null,null,{"$f":"ADDRESS(26,26,1,1,$S$1)","v":"'Geographic Diversification'!$Z$26"},"=+'Schedule IVC (EBS)'!V26",{"$f":"IF(_xlfn.FORMULATEXT(INDIRECT(S420))=T420,0,1)","v":0}]
[null,null,null,null,null,null,null,null,null,null,null,null,null,null,null,null,null,null,{"$f":"ADDRESS(27,4,1,1,$S$1)","v":"'Geographic Diversification'!$D$27"},"=SUM(I27:Z27)",{"$f":"IF(_xlfn.FORMULATEXT(INDIRECT(S421))=T421,0,1)","v":0}]
[null,null,null,null,null,null,null,null,null,null,null,null,null,null,null,null,null,null,{"$f":"ADDRESS(27,5,1,1,$S$1)","v":"'Geographic Diversification'!$E$27"},"=SUMSQ(I27:Z27)",{"$f":"IF(_xlfn.FORMULATEXT(INDIRECT(S422))=T422,0,1)","v":0}]
[null,null,null,null,null,null,null,null,null,null,null,null,null,null,null,null,null,null,{"$f":"ADDRESS(27,6,1,1,$S$1)","v":"'Geographic Diversification'!$F$27"},"=(IF(D27>0,E27/D27^2,1))",{"$f":"IF(_xlfn.FORMULATEXT(INDIRECT(S423))=T423,0,1)","v":0}]
[null,null,null,null,null,null,null,null,null,null,null,null,null,null,null,null,null,null,{"$f":"ADDRESS(27,7,1,1,$S$1)","v":"'Geographic Diversification'!$G$27"},"=D27*(0.75+0.25*F27)",{"$f":"IF(_xlfn.FORMULATEXT(INDIRECT(S424))=T424,0,1)","v":0}]
[null,null,null,null,null,null,null,null,null,null,null,null,null,null,null,null,null,null,{"$f":"ADDRESS(27,8,1,1,$S$1)","v":"'Geographic Diversification'!$H$27"},"=IF('Schedule IVC (EBS)'!AB27=\"True\",G27,'Schedule IVA (EBS)'!Q29)",{"$f":"IF(_xlfn.FORMULATEXT(INDIRECT(S425))=T425,0,1)","v":0}]
[null,null,null,null,null,null,null,null,null,null,null,null,null,null,null,null,null,null,{"$f":"ADDRESS(27,9,1,1,$S$1)","v":"'Geographic Diversification'!$I$27"},"=+'Schedule IVC (EBS)'!E27",{"$f":"IF(_xlfn.FORMULATEXT(INDIRECT(S426))=T426,0,1)","v":0}]
[null,null,null,null,null,null,null,null,null,null,null,null,null,null,null,null,null,null,{"$f":"ADDRESS(27,10,1,1,$S$1)","v":"'Geographic Diversification'!$J$27"},"=+'Schedule IVC (EBS)'!F27",{"$f":"IF(_xlfn.FORMULATEXT(INDIRECT(S427))=T427,0,1)","v":0}]
[null,null,null,null,null,null,null,null,null,null,null,null,null,null,null,null,null,null,{"$f":"ADDRESS(27,11,1,1,$S$1)","v":"'Geographic Diversification'!$K$27"},"=+'Schedule IVC (EBS)'!G27",{"$f":"IF(_xlfn.FORMULATEXT(INDIRECT(S428))=T428,0,1)","v":0}]
[null,null,null,null,null,null,null,null,null,null,null,null,null,null,null,null,null,null,{"$f":"ADDRESS(27,12,1,1,$S$1)","v":"'Geographic Diversification'!$L$27"},"=+'Schedule IVC (EBS)'!H27",{"$f":"IF(_xlfn.FORMULATEXT(INDIRECT(S429))=T429,0,1)","v":0}]
[null,null,null,null,null,null,null,null,null,null,null,null,null,null,null,null,null,null,{"$f":"ADDRESS(27,13,1,1,$S$1)","v":"'Geographic Diversification'!$M$27"},"=+'Schedule IVC (EBS)'!I27",{"$f":"IF(_xlfn.FORMULATEXT(INDIRECT(S430))=T430,0,1)","v":0}]
[null,null,null,null,null,null,null,null,null,null,null,null,null,null,null,null,null,null,{"$f":"ADDRESS(27,14,1,1,$S$1)","v":"'Geographic Diversification'!$N$27"},"=+'Schedule IVC (EBS)'!J27",{"$f":"IF(_xlfn.FORMULATEXT(INDIRECT(S431))=T431,0,1)","v":0}]
[null,null,null,null,null,null,null,null,null,null,null,null,null,null,null,null,null,null,{"$f":"ADDRESS(27,15,1,1,$S$1)","v":"'Geographic Diversification'!$O$27"},"=+'Schedule IVC (EBS)'!K27",{"$f":"IF(_xlfn.FORMULATEXT(INDIRECT(S432))=T432,0,1)","v":0}]
[null,null,null,null,null,null,null,null,null,null,null,null,null,null,null,null,null,null,{"$f":"ADDRESS(27,16,1,1,$S$1)","v":"'Geographic Diversification'!$P$27"},"=+'Schedule IVC (EBS)'!L27",{"$f":"IF(_xlfn.FORMULATEXT(INDIRECT(S433))=T433,0,1)","v":0}]
[null,null,null,null,null,null,null,null,null,null,null,null,null,null,null,null,null,null,{"$f":"ADDRESS(27,17,1,1,$S$1)","v":"'Geographic Diversification'!$Q$27"},"=+'Schedule IVC (EBS)'!M27",{"$f":"IF(_xlfn.FORMULATEXT(INDIRECT(S434))=T434,0,1)","v":0}]
[null,null,null,null,null,null,null,null,null,null,null,null,null,null,null,null,null,null,{"$f":"ADDRESS(27,18,1,1,$S$1)","v":"'Geographic Diversification'!$R$27"},"=+'Schedule IVC (EBS)'!N27",{"$f":"IF(_xlfn.FORMULATEXT(INDIRECT(S435))=T435,0,1)","v":0}]
[null,null,null,null,null,null,null,null,null,null,null,null,null,null,null,null,null,null,{"$f":"ADDRESS(27,19,1,1,$S$1)","v":"'Geographic Diversification'!$S$27"},"=+'Schedule IVC (EBS)'!O27",{"$f":"IF(_xlfn.FORMULATEXT(INDIRECT(S436))=T436,0,1)","v":0}]
[null,null,null,null,null,null,null,null,null,null,null,null,null,null,null,null,null,null,{"$f":"ADDRESS(27,20,1,1,$S$1)","v":"'Geographic Diversification'!$T$27"},"=+'Schedule IVC (EBS)'!P27",{"$f":"IF(_xlfn.FORMULATEXT(INDIRECT(S437))=T437,0,1)","v":0}]
[null,null,null,null,null,null,null,null,null,null,null,null,null,null,null,null,null,null,{"$f":"ADDRESS(27,21,1,1,$S$1)","v":"'Geographic Diversification'!$U$27"},"=+'Schedule IVC (EBS)'!Q27",{"$f":"IF(_xlfn.FORMULATEXT(INDIRECT(S438))=T438,0,1)","v":0}]
[null,null,null,null,null,null,null,null,null,null,null,null,null,null,null,null,null,null,{"$f":"ADDRESS(27,22,1,1,$S$1)","v":"'Geographic Diversification'!$V$27"},"=+'Schedule IVC (EBS)'!R27",{"$f":"IF(_xlfn.FORMULATEXT(INDIRECT(S439))=T439,0,1)","v":0}]
[null,null,null,null,null,null,null,null,null,null,null,null,null,null,null,null,null,null,{"$f":"ADDRESS(27,23,1,1,$S$1)","v":"'Geographic Diversification'!$W$27"},"=+'Schedule IVC (EBS)'!S27",{"$f":"IF(_xlfn.FORMULATEXT(INDIRECT(S440))=T440,0,1)","v":0}]
[null,null,null,null,null,null,null,null,null,null,null,null,null,null,null,null,null,null,{"$f":"ADDRESS(27,24,1,1,$S$1)","v":"'Geographic Diversification'!$X$27"},"=+'Schedule IVC (EBS)'!T27",{"$f":"IF(_xlfn.FORMULATEXT(INDIRECT(S441))=T441,0,1)","v":0}]
[null,null,null,null,null,null,null,null,null,null,null,null,null,null,null,null,null,null,{"$f":"ADDRESS(27,25,1,1,$S$1)","v":"'Geographic Diversification'!$Y$27"},"=+'Schedule IVC (EBS)'!U27",{"$f":"IF(_xlfn.FORMULATEXT(INDIRECT(S442))=T442,0,1)","v":0}]
[null,null,null,null,null,null,null,null,null,null,null,null,null,null,null,null,null,null,{"$f":"ADDRESS(27,26,1,1,$S$1)","v":"'Geographic Diversification'!$Z$27"},"=+'Schedule IVC (EBS)'!V27",{"$f":"IF(_xlfn.FORMULATEXT(INDIRECT(S443))=T443,0,1)","v":0}]
[null,null,null,null,null,null,null,null,null,null,null,null,null,null,null,null,null,null,{"$f":"ADDRESS(28,4,1,1,$S$1)","v":"'Geographic Diversification'!$D$28"},"=SUM(I28:Z28)",{"$f":"IF(_xlfn.FORMULATEXT(INDIRECT(S444))=T444,0,1)","v":0}]
[null,null,null,null,null,null,null,null,null,null,null,null,null,null,null,null,null,null,{"$f":"ADDRESS(28,5,1,1,$S$1)","v":"'Geographic Diversification'!$E$28"},"=SUMSQ(I28:Z28)",{"$f":"IF(_xlfn.FORMULATEXT(INDIRECT(S445))=T445,0,1)","v":0}]
[null,null,null,null,null,null,null,null,null,null,null,null,null,null,null,null,null,null,{"$f":"ADDRESS(28,6,1,1,$S$1)","v":"'Geographic Diversification'!$F$28"},"=(IF(D28>0,E28/D28^2,1))",{"$f":"IF(_xlfn.FORMULATEXT(INDIRECT(S446))=T446,0,1)","v":0}]
[null,null,null,null,null,null,null,null,null,null,null,null,null,null,null,null,null,null,{"$f":"ADDRESS(28,7,1,1,$S$1)","v":"'Geographic Diversification'!$G$28"},"=D28*(0.75+0.25*F28)",{"$f":"IF(_xlfn.FORMULATEXT(INDIRECT(S447))=T447,0,1)","v":0}]
[null,null,null,null,null,null,null,null,null,null,null,null,null,null,null,null,null,null,{"$f":"ADDRESS(28,8,1,1,$S$1)","v":"'Geographic Diversification'!$H$28"},"=IF('Schedule IVC (EBS)'!AB28=\"True\",G28,'Schedule IVA (EBS)'!Q30)",{"$f":"IF(_xlfn.FORMULATEXT(INDIRECT(S448))=T448,0,1)","v":0}]
[null,null,null,null,null,null,null,null,null,null,null,null,null,null,null,null,null,null,{"$f":"ADDRESS(28,9,1,1,$S$1)","v":"'Geographic Diversification'!$I$28"},"=+'Schedule IVC (EBS)'!E28",{"$f":"IF(_xlfn.FORMULATEXT(INDIRECT(S449))=T449,0,1)","v":0}]
[null,null,null,null,null,null,null,null,null,null,null,null,null,null,null,null,null,null,{"$f":"ADDRESS(28,10,1,1,$S$1)","v":"'Geographic Diversification'!$J$28"},"=+'Schedule IVC (EBS)'!F28",{"$f":"IF(_xlfn.FORMULATEXT(INDIRECT(S450))=T450,0,1)","v":0}]
[null,null,null,null,null,null,null,null,null,null,null,null,null,null,null,null,null,null,{"$f":"ADDRESS(28,11,1,1,$S$1)","v":"'Geographic Diversification'!$K$28"},"=+'Schedule IVC (EBS)'!G28",{"$f":"IF(_xlfn.FORMULATEXT(INDIRECT(S451))=T451,0,1)","v":0}]
[null,null,null,null,null,null,null,null,null,null,null,null,null,null,null,null,null,null,{"$f":"ADDRESS(28,12,1,1,$S$1)","v":"'Geographic Diversification'!$L$28"},"=+'Schedule IVC (EBS)'!H28",{"$f":"IF(_xlfn.FORMULATEXT(INDIRECT(S452))=T452,0,1)","v":0}]
[null,null,null,null,null,null,null,null,null,null,null,null,null,null,null,null,null,null,{"$f":"ADDRESS(28,13,1,1,$S$1)","v":"'Geographic Diversification'!$M$28"},"=+'Schedule IVC (EBS)'!I28",{"$f":"IF(_xlfn.FORMULATEXT(INDIRECT(S453))=T453,0,1)","v":0}]
[null,null,null,null,null,null,null,null,null,null,null,null,null,null,null,null,null,null,{"$f":"ADDRESS(28,14,1,1,$S$1)","v":"'Geographic Diversification'!$N$28"},"=+'Schedule IVC (EBS)'!J28",{"$f":"IF(_xlfn.FORMULATEXT(INDIRECT(S454))=T454,0,1)","v":0}]
[null,null,null,null,null,null,null,null,null,null,null,null,null,null,null,null,null,null,{"$f":"ADDRESS(28,15,1,1,$S$1)","v":"'Geographic Diversification'!$O$28"},"=+'Schedule IVC (EBS)'!K28",{"$f":"IF(_xlfn.FORMULATEXT(INDIRECT(S455))=T455,0,1)","v":0}]
[null,null,null,null,null,null,null,null,null,null,null,null,null,null,null,null,null,null,{"$f":"ADDRESS(28,16,1,1,$S$1)","v":"'Geographic Diversification'!$P$28"},"=+'Schedule IVC (EBS)'!L28",{"$f":"IF(_xlfn.FORMULATEXT(INDIRECT(S456))=T456,0,1)","v":0}]
[null,null,null,null,null,null,null,null,null,null,null,null,null,null,null,null,null,null,{"$f":"ADDRESS(28,17,1,1,$S$1)","v":"'Geographic Diversification'!$Q$28"},"=+'Schedule IVC (EBS)'!M28",{"$f":"IF(_xlfn.FORMULATEXT(INDIRECT(S457))=T457,0,1)","v":0}]
[null,null,null,null,null,null,null,null,null,null,null,null,null,null,null,null,null,null,{"$f":"ADDRESS(28,18,1,1,$S$1)","v":"'Geographic Diversification'!$R$28"},"=+'Schedule IVC (EBS)'!N28",{"$f":"IF(_xlfn.FORMULATEXT(INDIRECT(S458))=T458,0,1)","v":0}]
[null,null,null,null,null,null,null,null,null,null,null,null,null,null,null,null,null,null,{"$f":"ADDRESS(28,19,1,1,$S$1)","v":"'Geographic Diversification'!$S$28"},"=+'Schedule IVC (EBS)'!O28",{"$f":"IF(_xlfn.FORMULATEXT(INDIRECT(S459))=T459,0,1)","v":0}]
[null,null,null,null,null,null,null,null,null,null,null,null,null,null,null,null,null,null,{"$f":"ADDRESS(28,20,1,1,$S$1)","v":"'Geographic Diversification'!$T$28"},"=+'Schedule IVC (EBS)'!P28",{"$f":"IF(_xlfn.FORMULATEXT(INDIRECT(S460))=T460,0,1)","v":0}]
[null,null,null,null,null,null,null,null,null,null,null,null,null,null,null,null,null,null,{"$f":"ADDRESS(28,21,1,1,$S$1)","v":"'Geographic Diversification'!$U$28"},"=+'Schedule IVC (EBS)'!Q28",{"$f":"IF(_xlfn.FORMULATEXT(INDIRECT(S461))=T461,0,1)","v":0}]
[null,null,null,null,null,null,null,null,null,null,null,null,null,null,null,null,null,null,{"$f":"ADDRESS(28,22,1,1,$S$1)","v":"'Geographic Diversification'!$V$28"},"=+'Schedule IVC (EBS)'!R28",{"$f":"IF(_xlfn.FORMULATEXT(INDIRECT(S462))=T462,0,1)","v":0}]
[null,null,null,null,null,null,null,null,null,null,null,null,null,null,null,null,null,null,{"$f":"ADDRESS(28,23,1,1,$S$1)","v":"'Geographic Diversification'!$W$28"},"=+'Schedule IVC (EBS)'!S28",{"$f":"IF(_xlfn.FORMULATEXT(INDIRECT(S463))=T463,0,1)","v":0}]
[null,null,null,null,null,null,null,null,null,null,null,null,null,null,null,null,null,null,{"$f":"ADDRESS(28,24,1,1,$S$1)","v":"'Geographic Diversification'!$X$28"},"=+'Schedule IVC (EBS)'!T28",{"$f":"IF(_xlfn.FORMULATEXT(INDIRECT(S464))=T464,0,1)","v":0}]
[null,null,null,null,null,null,null,null,null,null,null,null,null,null,null,null,null,null,{"$f":"ADDRESS(28,25,1,1,$S$1)","v":"'Geographic Diversification'!$Y$28"},"=+'Schedule IVC (EBS)'!U28",{"$f":"IF(_xlfn.FORMULATEXT(INDIRECT(S465))=T465,0,1)","v":0}]
[null,null,null,null,null,null,null,null,null,null,null,null,null,null,null,null,null,null,{"$f":"ADDRESS(28,26,1,1,$S$1)","v":"'Geographic Diversification'!$Z$28"},"=+'Schedule IVC (EBS)'!V28",{"$f":"IF(_xlfn.FORMULATEXT(INDIRECT(S466))=T466,0,1)","v":0}]
[null,null,null,null,null,null,null,null,null,null,null,null,null,null,null,null,null,null,{"$f":"ADDRESS(29,4,1,1,$S$1)","v":"'Geographic Diversification'!$D$29"},"=SUM(I29:Z29)",{"$f":"IF(_xlfn.FORMULATEXT(INDIRECT(S467))=T467,0,1)","v":0}]
[null,null,null,null,null,null,null,null,null,null,null,null,null,null,null,null,null,null,{"$f":"ADDRESS(29,5,1,1,$S$1)","v":"'Geographic Diversification'!$E$29"},"=SUMSQ(I29:Z29)",{"$f":"IF(_xlfn.FORMULATEXT(INDIRECT(S468))=T468,0,1)","v":0}]
[null,null,null,null,null,null,null,null,null,null,null,null,null,null,null,null,null,null,{"$f":"ADDRESS(29,6,1,1,$S$1)","v":"'Geographic Diversification'!$F$29"},"=(IF(D29>0,E29/D29^2,1))",{"$f":"IF(_xlfn.FORMULATEXT(INDIRECT(S469))=T469,0,1)","v":0}]
[null,null,null,null,null,null,null,null,null,null,null,null,null,null,null,null,null,null,{"$f":"ADDRESS(29,7,1,1,$S$1)","v":"'Geographic Diversification'!$G$29"},"=D29*(0.75+0.25*F29)",{"$f":"IF(_xlfn.FORMULATEXT(INDIRECT(S470))=T470,0,1)","v":0}]
[null,null,null,null,null,null,null,null,null,null,null,null,null,null,null,null,null,null,{"$f":"ADDRESS(29,8,1,1,$S$1)","v":"'Geographic Diversification'!$H$29"},"=IF('Schedule IVC (EBS)'!AB29=\"True\",G29,'Schedule IVA (EBS)'!Q31)",{"$f":"IF(_xlfn.FORMULATEXT(INDIRECT(S471))=T471,0,1)","v":0}]
[null,null,null,null,null,null,null,null,null,null,null,null,null,null,null,null,null,null,{"$f":"ADDRESS(29,9,1,1,$S$1)","v":"'Geographic Diversification'!$I$29"},"=+'Schedule IVC (EBS)'!E29",{"$f":"IF(_xlfn.FORMULATEXT(INDIRECT(S472))=T472,0,1)","v":0}]
[null,null,null,null,null,null,null,null,null,null,null,null,null,null,null,null,null,null,{"$f":"ADDRESS(29,10,1,1,$S$1)","v":"'Geographic Diversification'!$J$29"},"=+'Schedule IVC (EBS)'!F29",{"$f":"IF(_xlfn.FORMULATEXT(INDIRECT(S473))=T473,0,1)","v":0}]
[null,null,null,null,null,null,null,null,null,null,null,null,null,null,null,null,null,null,{"$f":"ADDRESS(29,11,1,1,$S$1)","v":"'Geographic Diversification'!$K$29"},"=+'Schedule IVC (EBS)'!G29",{"$f":"IF(_xlfn.FORMULATEXT(INDIRECT(S474))=T474,0,1)","v":0}]
[null,null,null,null,null,null,null,null,null,null,null,null,null,null,null,null,null,null,{"$f":"ADDRESS(29,12,1,1,$S$1)","v":"'Geographic Diversification'!$L$29"},"=+'Schedule IVC (EBS)'!H29",{"$f":"IF(_xlfn.FORMULATEXT(INDIRECT(S475))=T475,0,1)","v":0}]
[null,null,null,null,null,null,null,null,null,null,null,null,null,null,null,null,null,null,{"$f":"ADDRESS(29,13,1,1,$S$1)","v":"'Geographic Diversification'!$M$29"},"=+'Schedule IVC (EBS)'!I29",{"$f":"IF(_xlfn.FORMULATEXT(INDIRECT(S476))=T476,0,1)","v":0}]
[null,null,null,null,null,null,null,null,null,null,null,null,null,null,null,null,null,null,{"$f":"ADDRESS(29,14,1,1,$S$1)","v":"'Geographic Diversification'!$N$29"},"=+'Schedule IVC (EBS)'!J29",{"$f":"IF(_xlfn.FORMULATEXT(INDIRECT(S477))=T477,0,1)","v":0}]
[null,null,null,null,null,null,null,null,null,null,null,null,null,null,null,null,null,null,{"$f":"ADDRESS(29,15,1,1,$S$1)","v":"'Geographic Diversification'!$O$29"},"=+'Schedule IVC (EBS)'!K29",{"$f":"IF(_xlfn.FORMULATEXT(INDIRECT(S478))=T478,0,1)","v":0}]
[null,null,null,null,null,null,null,null,null,null,null,null,null,null,null,null,null,null,{"$f":"ADDRESS(29,16,1,1,$S$1)","v":"'Geographic Diversification'!$P$29"},"=+'Schedule IVC (EBS)'!L29",{"$f":"IF(_xlfn.FORMULATEXT(INDIRECT(S479))=T479,0,1)","v":0}]
[null,null,null,null,null,null,null,null,null,null,null,null,null,null,null,null,null,null,{"$f":"ADDRESS(29,17,1,1,$S$1)","v":"'Geographic Diversification'!$Q$29"},"=+'Schedule IVC (EBS)'!M29",{"$f":"IF(_xlfn.FORMULATEXT(INDIRECT(S480))=T480,0,1)","v":0}]
[null,null,null,null,null,null,null,null,null,null,null,null,null,null,null,null,null,null,{"$f":"ADDRESS(29,18,1,1,$S$1)","v":"'Geographic Diversification'!$R$29"},"=+'Schedule IVC (EBS)'!N29",{"$f":"IF(_xlfn.FORMULATEXT(INDIRECT(S481))=T481,0,1)","v":0}]
[null,null,null,null,null,null,null,null,null,null,null,null,null,null,null,null,null,null,{"$f":"ADDRESS(29,19,1,1,$S$1)","v":"'Geographic Diversification'!$S$29"},"=+'Schedule IVC (EBS)'!O29",{"$f":"IF(_xlfn.FORMULATEXT(INDIRECT(S482))=T482,0,1)","v":0}]
[null,null,null,null,null,null,null,null,null,null,null,null,null,null,null,null,null,null,{"$f":"ADDRESS(29,20,1,1,$S$1)","v":"'Geographic Diversification'!$T$29"},"=+'Schedule IVC (EBS)'!P29",{"$f":"IF(_xlfn.FORMULATEXT(INDIRECT(S483))=T483,0,1)","v":0}]
[null,null,null,null,null,null,null,null,null,null,null,null,null,null,null,null,null,null,{"$f":"ADDRESS(29,21,1,1,$S$1)","v":"'Geographic Diversification'!$U$29"},"=+'Schedule IVC (EBS)'!Q29",{"$f":"IF(_xlfn.FORMULATEXT(INDIRECT(S484))=T484,0,1)","v":0}]
[null,null,null,null,null,null,null,null,null,null,null,null,null,null,null,null,null,null,{"$f":"ADDRESS(29,22,1,1,$S$1)","v":"'Geographic Diversification'!$V$29"},"=+'Schedule IVC (EBS)'!R29",{"$f":"IF(_xlfn.FORMULATEXT(INDIRECT(S485))=T485,0,1)","v":0}]
[null,null,null,null,null,null,null,null,null,null,null,null,null,null,null,null,null,null,{"$f":"ADDRESS(29,23,1,1,$S$1)","v":"'Geographic Diversification'!$W$29"},"=+'Schedule IVC (EBS)'!S29",{"$f":"IF(_xlfn.FORMULATEXT(INDIRECT(S486))=T486,0,1)","v":0}]
[null,null,null,null,null,null,null,null,null,null,null,null,null,null,null,null,null,null,{"$f":"ADDRESS(29,24,1,1,$S$1)","v":"'Geographic Diversification'!$X$29"},"=+'Schedule IVC (EBS)'!T29",{"$f":"IF(_xlfn.FORMULATEXT(INDIRECT(S487))=T487,0,1)","v":0}]
[null,null,null,null,null,null,null,null,null,null,null,null,null,null,null,null,null,null,{"$f":"ADDRESS(29,25,1,1,$S$1)","v":"'Geographic Diversification'!$Y$29"},"=+'Schedule IVC (EBS)'!U29",{"$f":"IF(_xlfn.FORMULATEXT(INDIRECT(S488))=T488,0,1)","v":0}]
[null,null,null,null,null,null,null,null,null,null,null,null,null,null,null,null,null,null,{"$f":"ADDRESS(29,26,1,1,$S$1)","v":"'Geographic Diversification'!$Z$29"},"=+'Schedule IVC (EBS)'!V29",{"$f":"IF(_xlfn.FORMULATEXT(INDIRECT(S489))=T489,0,1)","v":0}]
[null,null,null,null,null,null,null,null,null,null,null,null,null,null,null,null,null,null,{"$f":"ADDRESS(30,4,1,1,$S$1)","v":"'Geographic Diversification'!$D$30"},"=SUM(I30:Z30)",{"$f":"IF(_xlfn.FORMULATEXT(INDIRECT(S490))=T490,0,1)","v":0}]
[null,null,null,null,null,null,null,null,null,null,null,null,null,null,null,null,null,null,{"$f":"ADDRESS(30,5,1,1,$S$1)","v":"'Geographic Diversification'!$E$30"},"=SUMSQ(I30:Z30)",{"$f":"IF(_xlfn.FORMULATEXT(INDIRECT(S491))=T491,0,1)","v":0}]
[null,null,null,null,null,null,null,null,null,null,null,null,null,null,null,null,null,null,{"$f":"ADDRESS(30,6,1,1,$S$1)","v":"'Geographic Diversification'!$F$30"},"=(IF(D30>0,E30/D30^2,1))",{"$f":"IF(_xlfn.FORMULATEXT(INDIRECT(S492))=T492,0,1)","v":0}]
[null,null,null,null,null,null,null,null,null,null,null,null,null,null,null,null,null,null,{"$f":"ADDRESS(30,7,1,1,$S$1)","v":"'Geographic Diversification'!$G$30"},"=D30*(0.75+0.25*F30)",{"$f":"IF(_xlfn.FORMULATEXT(INDIRECT(S493))=T493,0,1)","v":0}]
[null,null,null,null,null,null,null,null,null,null,null,null,null,null,null,null,null,null,{"$f":"ADDRESS(30,8,1,1,$S$1)","v":"'Geographic Diversification'!$H$30"},"=IF('Schedule IVC (EBS)'!AB30=\"True\",G30,'Schedule IVA (EBS)'!Q32)",{"$f":"IF(_xlfn.FORMULATEXT(INDIRECT(S494))=T494,0,1)","v":0}]
[null,null,null,null,null,null,null,null,null,null,null,null,null,null,null,null,null,null,{"$f":"ADDRESS(30,9,1,1,$S$1)","v":"'Geographic Diversification'!$I$30"},"=+'Schedule IVC (EBS)'!E30",{"$f":"IF(_xlfn.FORMULATEXT(INDIRECT(S495))=T495,0,1)","v":0}]
[null,null,null,null,null,null,null,null,null,null,null,null,null,null,null,null,null,null,{"$f":"ADDRESS(30,10,1,1,$S$1)","v":"'Geographic Diversification'!$J$30"},"=+'Schedule IVC (EBS)'!F30",{"$f":"IF(_xlfn.FORMULATEXT(INDIRECT(S496))=T496,0,1)","v":0}]
[null,null,null,null,null,null,null,null,null,null,null,null,null,null,null,null,null,null,{"$f":"ADDRESS(30,11,1,1,$S$1)","v":"'Geographic Diversification'!$K$30"},"=+'Schedule IVC (EBS)'!G30",{"$f":"IF(_xlfn.FORMULATEXT(INDIRECT(S497))=T497,0,1)","v":0}]
[null,null,null,null,null,null,null,null,null,null,null,null,null,null,null,null,null,null,{"$f":"ADDRESS(30,12,1,1,$S$1)","v":"'Geographic Diversification'!$L$30"},"=+'Schedule IVC (EBS)'!H30",{"$f":"IF(_xlfn.FORMULATEXT(INDIRECT(S498))=T498,0,1)","v":0}]
[null,null,null,null,null,null,null,null,null,null,null,null,null,null,null,null,null,null,{"$f":"ADDRESS(30,13,1,1,$S$1)","v":"'Geographic Diversification'!$M$30"},"=+'Schedule IVC (EBS)'!I30",{"$f":"IF(_xlfn.FORMULATEXT(INDIRECT(S499))=T499,0,1)","v":0}]
[null,null,null,null,null,null,null,null,null,null,null,null,null,null,null,null,null,null,{"$f":"ADDRESS(30,14,1,1,$S$1)","v":"'Geographic Diversification'!$N$30"},"=+'Schedule IVC (EBS)'!J30",{"$f":"IF(_xlfn.FORMULATEXT(INDIRECT(S500))=T500,0,1)","v":0}]
[null,null,null,null,null,null,null,null,null,null,null,null,null,null,null,null,null,null,{"$f":"ADDRESS(30,15,1,1,$S$1)","v":"'Geographic Diversification'!$O$30"},"=+'Schedule IVC (EBS)'!K30",{"$f":"IF(_xlfn.FORMULATEXT(INDIRECT(S501))=T501,0,1)","v":0}]
[null,null,null,null,null,null,null,null,null,null,null,null,null,null,null,null,null,null,{"$f":"ADDRESS(30,16,1,1,$S$1)","v":"'Geographic Diversification'!$P$30"},"=+'Schedule IVC (EBS)'!L30",{"$f":"IF(_xlfn.FORMULATEXT(INDIRECT(S502))=T502,0,1)","v":0}]
[null,null,null,null,null,null,null,null,null,null,null,null,null,null,null,null,null,null,{"$f":"ADDRESS(30,17,1,1,$S$1)","v":"'Geographic Diversification'!$Q$30"},"=+'Schedule IVC (EBS)'!M30",{"$f":"IF(_xlfn.FORMULATEXT(INDIRECT(S503))=T503,0,1)","v":0}]
[null,null,null,null,null,null,null,null,null,null,null,null,null,null,null,null,null,null,{"$f":"ADDRESS(30,18,1,1,$S$1)","v":"'Geographic Diversification'!$R$30"},"=+'Schedule IVC (EBS)'!N30",{"$f":"IF(_xlfn.FORMULATEXT(INDIRECT(S504))=T504,0,1)","v":0}]
[null,null,null,null,null,null,null,null,null,null,null,null,null,null,null,null,null,null,{"$f":"ADDRESS(30,19,1,1,$S$1)","v":"'Geographic Diversification'!$S$30"},"=+'Schedule IVC (EBS)'!O30",{"$f":"IF(_xlfn.FORMULATEXT(INDIRECT(S505))=T505,0,1)","v":0}]
[null,null,null,null,null,null,null,null,null,null,null,null,null,null,null,null,null,null,{"$f":"ADDRESS(30,20,1,1,$S$1)","v":"'Geographic Diversification'!$T$30"},"=+'Schedule IVC (EBS)'!P30",{"$f":"IF(_xlfn.FORMULATEXT(INDIRECT(S506))=T506,0,1)","v":0}]
[null,null,null,null,null,null,null,null,null,null,null,null,null,null,null,null,null,null,{"$f":"ADDRESS(30,21,1,1,$S$1)","v":"'Geographic Diversification'!$U$30"},"=+'Schedule IVC (EBS)'!Q30",{"$f":"IF(_xlfn.FORMULATEXT(INDIRECT(S507))=T507,0,1)","v":0}]
[null,null,null,null,null,null,null,null,null,null,null,null,null,null,null,null,null,null,{"$f":"ADDRESS(30,22,1,1,$S$1)","v":"'Geographic Diversification'!$V$30"},"=+'Schedule IVC (EBS)'!R30",{"$f":"IF(_xlfn.FORMULATEXT(INDIRECT(S508))=T508,0,1)","v":0}]
[null,null,null,null,null,null,null,null,null,null,null,null,null,null,null,null,null,null,{"$f":"ADDRESS(30,23,1,1,$S$1)","v":"'Geographic Diversification'!$W$30"},"=+'Schedule IVC (EBS)'!S30",{"$f":"IF(_xlfn.FORMULATEXT(INDIRECT(S509))=T509,0,1)","v":0}]
[null,null,null,null,null,null,null,null,null,null,null,null,null,null,null,null,null,null,{"$f":"ADDRESS(30,24,1,1,$S$1)","v":"'Geographic Diversification'!$X$30"},"=+'Schedule IVC (EBS)'!T30",{"$f":"IF(_xlfn.FORMULATEXT(INDIRECT(S510))=T510,0,1)","v":0}]
[null,null,null,null,null,null,null,null,null,null,null,null,null,null,null,null,null,null,{"$f":"ADDRESS(30,25,1,1,$S$1)","v":"'Geographic Diversification'!$Y$30"},"=+'Schedule IVC (EBS)'!U30",{"$f":"IF(_xlfn.FORMULATEXT(INDIRECT(S511))=T511,0,1)","v":0}]
[null,null,null,null,null,null,null,null,null,null,null,null,null,null,null,null,null,null,{"$f":"ADDRESS(30,26,1,1,$S$1)","v":"'Geographic Diversification'!$Z$30"},"=+'Schedule IVC (EBS)'!V30",{"$f":"IF(_xlfn.FORMULATEXT(INDIRECT(S512))=T512,0,1)","v":0}]
[null,null,null,null,null,null,null,null,null,null,null,null,null,null,null,null,null,null,{"$f":"ADDRESS(31,4,1,1,$S$1)","v":"'Geographic Diversification'!$D$31"},"=SUM(I31:Z31)",{"$f":"IF(_xlfn.FORMULATEXT(INDIRECT(S513))=T513,0,1)","v":0}]
[null,null,null,null,null,null,null,null,null,null,null,null,null,null,null,null,null,null,{"$f":"ADDRESS(31,5,1,1,$S$1)","v":"'Geographic Diversification'!$E$31"},"=SUMSQ(I31:Z31)",{"$f":"IF(_xlfn.FORMULATEXT(INDIRECT(S514))=T514,0,1)","v":0}]
[null,null,null,null,null,null,null,null,null,null,null,null,null,null,null,null,null,null,{"$f":"ADDRESS(31,6,1,1,$S$1)","v":"'Geographic Diversification'!$F$31"},"=(IF(D31>0,E31/D31^2,1))",{"$f":"IF(_xlfn.FORMULATEXT(INDIRECT(S515))=T515,0,1)","v":0}]
[null,null,null,null,null,null,null,null,null,null,null,null,null,null,null,null,null,null,{"$f":"ADDRESS(31,7,1,1,$S$1)","v":"'Geographic Diversification'!$G$31"},"=D31*(0.75+0.25*F31)",{"$f":"IF(_xlfn.FORMULATEXT(INDIRECT(S516))=T516,0,1)","v":0}]
[null,null,null,null,null,null,null,null,null,null,null,null,null,null,null,null,null,null,{"$f":"ADDRESS(31,8,1,1,$S$1)","v":"'Geographic Diversification'!$H$31"},"=IF('Schedule IVC (EBS)'!AB31=\"True\",G31,'Schedule IVA (EBS)'!Q33)",{"$f":"IF(_xlfn.FORMULATEXT(INDIRECT(S517))=T517,0,1)","v":0}]
[null,null,null,null,null,null,null,null,null,null,null,null,null,null,null,null,null,null,{"$f":"ADDRESS(31,9,1,1,$S$1)","v":"'Geographic Diversification'!$I$31"},"=+'Schedule IVC (EBS)'!E31",{"$f":"IF(_xlfn.FORMULATEXT(INDIRECT(S518))=T518,0,1)","v":0}]
[null,null,null,null,null,null,null,null,null,null,null,null,null,null,null,null,null,null,{"$f":"ADDRESS(31,10,1,1,$S$1)","v":"'Geographic Diversification'!$J$31"},"=+'Schedule IVC (EBS)'!F31",{"$f":"IF(_xlfn.FORMULATEXT(INDIRECT(S519))=T519,0,1)","v":0}]
[null,null,null,null,null,null,null,null,null,null,null,null,null,null,null,null,null,null,{"$f":"ADDRESS(31,11,1,1,$S$1)","v":"'Geographic Diversification'!$K$31"},"=+'Schedule IVC (EBS)'!G31",{"$f":"IF(_xlfn.FORMULATEXT(INDIRECT(S520))=T520,0,1)","v":0}]
[null,null,null,null,null,null,null,null,null,null,null,null,null,null,null,null,null,null,{"$f":"ADDRESS(31,12,1,1,$S$1)","v":"'Geographic Diversification'!$L$31"},"=+'Schedule IVC (EBS)'!H31",{"$f":"IF(_xlfn.FORMULATEXT(INDIRECT(S521))=T521,0,1)","v":0}]
[null,null,null,null,null,null,null,null,null,null,null,null,null,null,null,null,null,null,{"$f":"ADDRESS(31,13,1,1,$S$1)","v":"'Geographic Diversification'!$M$31"},"=+'Schedule IVC (EBS)'!I31",{"$f":"IF(_xlfn.FORMULATEXT(INDIRECT(S522))=T522,0,1)","v":0}]
[null,null,null,null,null,null,null,null,null,null,null,null,null,null,null,null,null,null,{"$f":"ADDRESS(31,14,1,1,$S$1)","v":"'Geographic Diversification'!$N$31"},"=+'Schedule IVC (EBS)'!J31",{"$f":"IF(_xlfn.FORMULATEXT(INDIRECT(S523))=T523,0,1)","v":0}]
[null,null,null,null,null,null,null,null,null,null,null,null,null,null,null,null,null,null,{"$f":"ADDRESS(31,15,1,1,$S$1)","v":"'Geographic Diversification'!$O$31"},"=+'Schedule IVC (EBS)'!K31",{"$f":"IF(_xlfn.FORMULATEXT(INDIRECT(S524))=T524,0,1)","v":0}]
[null,null,null,null,null,null,null,null,null,null,null,null,null,null,null,null,null,null,{"$f":"ADDRESS(31,16,1,1,$S$1)","v":"'Geographic Diversification'!$P$31"},"=+'Schedule IVC (EBS)'!L31",{"$f":"IF(_xlfn.FORMULATEXT(INDIRECT(S525))=T525,0,1)","v":0}]
[null,null,null,null,null,null,null,null,null,null,null,null,null,null,null,null,null,null,{"$f":"ADDRESS(31,17,1,1,$S$1)","v":"'Geographic Diversification'!$Q$31"},"=+'Schedule IVC (EBS)'!M31",{"$f":"IF(_xlfn.FORMULATEXT(INDIRECT(S526))=T526,0,1)","v":0}]
[null,null,null,null,null,null,null,null,null,null,null,null,null,null,null,null,null,null,{"$f":"ADDRESS(31,18,1,1,$S$1)","v":"'Geographic Diversification'!$R$31"},"=+'Schedule IVC (EBS)'!N31",{"$f":"IF(_xlfn.FORMULATEXT(INDIRECT(S527))=T527,0,1)","v":0}]
[null,null,null,null,null,null,null,null,null,null,null,null,null,null,null,null,null,null,{"$f":"ADDRESS(31,19,1,1,$S$1)","v":"'Geographic Diversification'!$S$31"},"=+'Schedule IVC (EBS)'!O31",{"$f":"IF(_xlfn.FORMULATEXT(INDIRECT(S528))=T528,0,1)","v":0}]
[null,null,null,null,null,null,null,null,null,null,null,null,null,null,null,null,null,null,{"$f":"ADDRESS(31,20,1,1,$S$1)","v":"'Geographic Diversification'!$T$31"},"=+'Schedule IVC (EBS)'!P31",{"$f":"IF(_xlfn.FORMULATEXT(INDIRECT(S529))=T529,0,1)","v":0}]
[null,null,null,null,null,null,null,null,null,null,null,null,null,null,null,null,null,null,{"$f":"ADDRESS(31,21,1,1,$S$1)","v":"'Geographic Diversification'!$U$31"},"=+'Schedule IVC (EBS)'!Q31",{"$f":"IF(_xlfn.FORMULATEXT(INDIRECT(S530))=T530,0,1)","v":0}]
[null,null,null,null,null,null,null,null,null,null,null,null,null,null,null,null,null,null,{"$f":"ADDRESS(31,22,1,1,$S$1)","v":"'Geographic Diversification'!$V$31"},"=+'Schedule IVC (EBS)'!R31",{"$f":"IF(_xlfn.FORMULATEXT(INDIRECT(S531))=T531,0,1)","v":0}]
[null,null,null,null,null,null,null,null,null,null,null,null,null,null,null,null,null,null,{"$f":"ADDRESS(31,23,1,1,$S$1)","v":"'Geographic Diversification'!$W$31"},"=+'Schedule IVC (EBS)'!S31",{"$f":"IF(_xlfn.FORMULATEXT(INDIRECT(S532))=T532,0,1)","v":0}]
[null,null,null,null,null,null,null,null,null,null,null,null,null,null,null,null,null,null,{"$f":"ADDRESS(31,24,1,1,$S$1)","v":"'Geographic Diversification'!$X$31"},"=+'Schedule IVC (EBS)'!T31",{"$f":"IF(_xlfn.FORMULATEXT(INDIRECT(S533))=T533,0,1)","v":0}]
[null,null,null,null,null,null,null,null,null,null,null,null,null,null,null,null,null,null,{"$f":"ADDRESS(31,25,1,1,$S$1)","v":"'Geographic Diversification'!$Y$31"},"=+'Schedule IVC (EBS)'!U31",{"$f":"IF(_xlfn.FORMULATEXT(INDIRECT(S534))=T534,0,1)","v":0}]
[null,null,null,null,null,null,null,null,null,null,null,null,null,null,null,null,null,null,{"$f":"ADDRESS(31,26,1,1,$S$1)","v":"'Geographic Diversification'!$Z$31"},"=+'Schedule IVC (EBS)'!V31",{"$f":"IF(_xlfn.FORMULATEXT(INDIRECT(S535))=T535,0,1)","v":0}]
[null,null,null,null,null,null,null,null,null,null,null,null,null,null,null,null,null,null,{"$f":"ADDRESS(32,4,1,1,$S$1)","v":"'Geographic Diversification'!$D$32"},"=SUM(I32:Z32)",{"$f":"IF(_xlfn.FORMULATEXT(INDIRECT(S536))=T536,0,1)","v":0}]
[null,null,null,null,null,null,null,null,null,null,null,null,null,null,null,null,null,null,{"$f":"ADDRESS(32,5,1,1,$S$1)","v":"'Geographic Diversification'!$E$32"},"=SUMSQ(I32:Z32)",{"$f":"IF(_xlfn.FORMULATEXT(INDIRECT(S537))=T537,0,1)","v":0}]
[null,null,null,null,null,null,null,null,null,null,null,null,null,null,null,null,null,null,{"$f":"ADDRESS(32,6,1,1,$S$1)","v":"'Geographic Diversification'!$F$32"},"=(IF(D32>0,E32/D32^2,1))",{"$f":"IF(_xlfn.FORMULATEXT(INDIRECT(S538))=T538,0,1)","v":0}]
[null,null,null,null,null,null,null,null,null,null,null,null,null,null,null,null,null,null,{"$f":"ADDRESS(32,7,1,1,$S$1)","v":"'Geographic Diversification'!$G$32"},"=D32*(0.75+0.25*F32)",{"$f":"IF(_xlfn.FORMULATEXT(INDIRECT(S539))=T539,0,1)","v":0}]
[null,null,null,null,null,null,null,null,null,null,null,null,null,null,null,null,null,null,{"$f":"ADDRESS(32,8,1,1,$S$1)","v":"'Geographic Diversification'!$H$32"},"=IF('Schedule IVC (EBS)'!AB32=\"True\",G32,'Schedule IVA (EBS)'!Q34)",{"$f":"IF(_xlfn.FORMULATEXT(INDIRECT(S540))=T540,0,1)","v":0}]
[null,null,null,null,null,null,null,null,null,null,null,null,null,null,null,null,null,null,{"$f":"ADDRESS(32,9,1,1,$S$1)","v":"'Geographic Diversification'!$I$32"},"=+'Schedule IVC (EBS)'!E32",{"$f":"IF(_xlfn.FORMULATEXT(INDIRECT(S541))=T541,0,1)","v":0}]
[null,null,null,null,null,null,null,null,null,null,null,null,null,null,null,null,null,null,{"$f":"ADDRESS(32,10,1,1,$S$1)","v":"'Geographic Diversification'!$J$32"},"=+'Schedule IVC (EBS)'!F32",{"$f":"IF(_xlfn.FORMULATEXT(INDIRECT(S542))=T542,0,1)","v":0}]
[null,null,null,null,null,null,null,null,null,null,null,null,null,null,null,null,null,null,{"$f":"ADDRESS(32,11,1,1,$S$1)","v":"'Geographic Diversification'!$K$32"},"=+'Schedule IVC (EBS)'!G32",{"$f":"IF(_xlfn.FORMULATEXT(INDIRECT(S543))=T543,0,1)","v":0}]
[null,null,null,null,null,null,null,null,null,null,null,null,null,null,null,null,null,null,{"$f":"ADDRESS(32,12,1,1,$S$1)","v":"'Geographic Diversification'!$L$32"},"=+'Schedule IVC (EBS)'!H32",{"$f":"IF(_xlfn.FORMULATEXT(INDIRECT(S544))=T544,0,1)","v":0}]
[null,null,null,null,null,null,null,null,null,null,null,null,null,null,null,null,null,null,{"$f":"ADDRESS(32,13,1,1,$S$1)","v":"'Geographic Diversification'!$M$32"},"=+'Schedule IVC (EBS)'!I32",{"$f":"IF(_xlfn.FORMULATEXT(INDIRECT(S545))=T545,0,1)","v":0}]
[null,null,null,null,null,null,null,null,null,null,null,null,null,null,null,null,null,null,{"$f":"ADDRESS(32,14,1,1,$S$1)","v":"'Geographic Diversification'!$N$32"},"=+'Schedule IVC (EBS)'!J32",{"$f":"IF(_xlfn.FORMULATEXT(INDIRECT(S546))=T546,0,1)","v":0}]
[null,null,null,null,null,null,null,null,null,null,null,null,null,null,null,null,null,null,{"$f":"ADDRESS(32,15,1,1,$S$1)","v":"'Geographic Diversification'!$O$32"},"=+'Schedule IVC (EBS)'!K32",{"$f":"IF(_xlfn.FORMULATEXT(INDIRECT(S547))=T547,0,1)","v":0}]
[null,null,null,null,null,null,null,null,null,null,null,null,null,null,null,null,null,null,{"$f":"ADDRESS(32,16,1,1,$S$1)","v":"'Geographic Diversification'!$P$32"},"=+'Schedule IVC (EBS)'!L32",{"$f":"IF(_xlfn.FORMULATEXT(INDIRECT(S548))=T548,0,1)","v":0}]
[null,null,null,null,null,null,null,null,null,null,null,null,null,null,null,null,null,null,{"$f":"ADDRESS(32,17,1,1,$S$1)","v":"'Geographic Diversification'!$Q$32"},"=+'Schedule IVC (EBS)'!M32",{"$f":"IF(_xlfn.FORMULATEXT(INDIRECT(S549))=T549,0,1)","v":0}]
[null,null,null,null,null,null,null,null,null,null,null,null,null,null,null,null,null,null,{"$f":"ADDRESS(32,18,1,1,$S$1)","v":"'Geographic Diversification'!$R$32"},"=+'Schedule IVC (EBS)'!N32",{"$f":"IF(_xlfn.FORMULATEXT(INDIRECT(S550))=T550,0,1)","v":0}]
[null,null,null,null,null,null,null,null,null,null,null,null,null,null,null,null,null,null,{"$f":"ADDRESS(32,19,1,1,$S$1)","v":"'Geographic Diversification'!$S$32"},"=+'Schedule IVC (EBS)'!O32",{"$f":"IF(_xlfn.FORMULATEXT(INDIRECT(S551))=T551,0,1)","v":0}]
[null,null,null,null,null,null,null,null,null,null,null,null,null,null,null,null,null,null,{"$f":"ADDRESS(32,20,1,1,$S$1)","v":"'Geographic Diversification'!$T$32"},"=+'Schedule IVC (EBS)'!P32",{"$f":"IF(_xlfn.FORMULATEXT(INDIRECT(S552))=T552,0,1)","v":0}]
[null,null,null,null,null,null,null,null,null,null,null,null,null,null,null,null,null,null,{"$f":"ADDRESS(32,21,1,1,$S$1)","v":"'Geographic Diversification'!$U$32"},"=+'Schedule IVC (EBS)'!Q32",{"$f":"IF(_xlfn.FORMULATEXT(INDIRECT(S553))=T553,0,1)","v":0}]
[null,null,null,null,null,null,null,null,null,null,null,null,null,null,null,null,null,null,{"$f":"ADDRESS(32,22,1,1,$S$1)","v":"'Geographic Diversification'!$V$32"},"=+'Schedule IVC (EBS)'!R32",{"$f":"IF(_xlfn.FORMULATEXT(INDIRECT(S554))=T554,0,1)","v":0}]
[null,null,null,null,null,null,null,null,null,null,null,null,null,null,null,null,null,null,{"$f":"ADDRESS(32,23,1,1,$S$1)","v":"'Geographic Diversification'!$W$32"},"=+'Schedule IVC (EBS)'!S32",{"$f":"IF(_xlfn.FORMULATEXT(INDIRECT(S555))=T555,0,1)","v":0}]
[null,null,null,null,null,null,null,null,null,null,null,null,null,null,null,null,null,null,{"$f":"ADDRESS(32,24,1,1,$S$1)","v":"'Geographic Diversification'!$X$32"},"=+'Schedule IVC (EBS)'!T32",{"$f":"IF(_xlfn.FORMULATEXT(INDIRECT(S556))=T556,0,1)","v":0}]
[null,null,null,null,null,null,null,null,null,null,null,null,null,null,null,null,null,null,{"$f":"ADDRESS(32,25,1,1,$S$1)","v":"'Geographic Diversification'!$Y$32"},"=+'Schedule IVC (EBS)'!U32",{"$f":"IF(_xlfn.FORMULATEXT(INDIRECT(S557))=T557,0,1)","v":0}]
[null,null,null,null,null,null,null,null,null,null,null,null,null,null,null,null,null,null,{"$f":"ADDRESS(32,26,1,1,$S$1)","v":"'Geographic Diversification'!$Z$32"},"=+'Schedule IVC (EBS)'!V32",{"$f":"IF(_xlfn.FORMULATEXT(INDIRECT(S558))=T558,0,1)","v":0}]
[null,null,null,null,null,null,null,null,null,null,null,null,null,null,null,null,null,null,{"$f":"ADDRESS(34,4,1,1,$S$1)","v":"'Geographic Diversification'!$D$34"},"=SUM(D9:D32)",{"$f":"IF(_xlfn.FORMULATEXT(INDIRECT(S559))=T559,0,1)","v":0}]
[null,null,null,null,null,null,null,null,null,null,null,null,null,null,null,null,null,null,{"$f":"ADDRESS(34,5,1,1,$S$1)","v":"'Geographic Diversification'!$E$34"},"=SUM(E9:E32)",{"$f":"IF(_xlfn.FORMULATEXT(INDIRECT(S560))=T560,0,1)","v":0}]
[null,null,null,null,null,null,null,null,null,null,null,null,null,null,null,null,null,null,{"$f":"ADDRESS(34,7,1,1,$S$1)","v":"'Geographic Diversification'!$G$34"},"=SUM(G9:G32)",{"$f":"IF(_xlfn.FORMULATEXT(INDIRECT(S561))=T561,0,1)","v":0}]
[null,null,null,null,null,null,null,null,null,null,null,null,null,null,null,null,null,null,{"$f":"ADDRESS(34,8,1,1,$S$1)","v":"'Geographic Diversification'!$H$34"},"=SUM(H9:H32)",{"$f":"IF(_xlfn.FORMULATEXT(INDIRECT(S562))=T562,0,1)","v":0}]
[null,null,null,null,null,null,null,null,null,null,null,null,null,null,null,null,null,null,{"$f":"ADDRESS(34,9,1,1,$S$1)","v":"'Geographic Diversification'!$I$34"},"=SUM(I9:I32)",{"$f":"IF(_xlfn.FORMULATEXT(INDIRECT(S563))=T563,0,1)","v":0}]
[null,null,null,null,null,null,null,null,null,null,null,null,null,null,null,null,null,null,{"$f":"ADDRESS(34,10,1,1,$S$1)","v":"'Geographic Diversification'!$J$34"},"=SUM(J9:J32)",{"$f":"IF(_xlfn.FORMULATEXT(INDIRECT(S564))=T564,0,1)","v":0}]
[null,null,null,null,null,null,null,null,null,null,null,null,null,null,null,null,null,null,{"$f":"ADDRESS(34,11,1,1,$S$1)","v":"'Geographic Diversification'!$K$34"},"=SUM(K9:K32)",{"$f":"IF(_xlfn.FORMULATEXT(INDIRECT(S565))=T565,0,1)","v":0}]
[null,null,null,null,null,null,null,null,null,null,null,null,null,null,null,null,null,null,{"$f":"ADDRESS(34,12,1,1,$S$1)","v":"'Geographic Diversification'!$L$34"},"=SUM(L9:L32)",{"$f":"IF(_xlfn.FORMULATEXT(INDIRECT(S566))=T566,0,1)","v":0}]
[null,null,null,null,null,null,null,null,null,null,null,null,null,null,null,null,null,null,{"$f":"ADDRESS(34,13,1,1,$S$1)","v":"'Geographic Diversification'!$M$34"},"=SUM(M9:M32)",{"$f":"IF(_xlfn.FORMULATEXT(INDIRECT(S567))=T567,0,1)","v":0}]
[null,null,null,null,null,null,null,null,null,null,null,null,null,null,null,null,null,null,{"$f":"ADDRESS(34,14,1,1,$S$1)","v":"'Geographic Diversification'!$N$34"},"=SUM(N9:N32)",{"$f":"IF(_xlfn.FORMULATEXT(INDIRECT(S568))=T568,0,1)","v":0}]
[null,null,null,null,null,null,null,null,null,null,null,null,null,null,null,null,null,null,{"$f":"ADDRESS(34,15,1,1,$S$1)","v":"'Geographic Diversification'!$O$34"},"=SUM(O9:O32)",{"$f":"IF(_xlfn.FORMULATEXT(INDIRECT(S569))=T569,0,1)","v":0}]
[null,null,null,null,null,null,null,null,null,null,null,null,null,null,null,null,null,null,{"$f":"ADDRESS(34,16,1,1,$S$1)","v":"'Geographic Diversification'!$P$34"},"=SUM(P9:P32)",{"$f":"IF(_xlfn.FORMULATEXT(INDIRECT(S570))=T570,0,1)","v":0}]
[null,null,null,null,null,null,null,null,null,null,null,null,null,null,null,null,null,null,{"$f":"ADDRESS(34,17,1,1,$S$1)","v":"'Geographic Diversification'!$Q$34"},"=SUM(Q9:Q32)",{"$f":"IF(_xlfn.FORMULATEXT(INDIRECT(S571))=T571,0,1)","v":0}]
[null,null,null,null,null,null,null,null,null,null,null,null,null,null,null,null,null,null,{"$f":"ADDRESS(34,18,1,1,$S$1)","v":"'Geographic Diversification'!$R$34"},"=SUM(R9:R32)",{"$f":"IF(_xlfn.FORMULATEXT(INDIRECT(S572))=T572,0,1)","v":0}]
[null,null,null,null,null,null,null,null,null,null,null,null,null,null,null,null,null,null,{"$f":"ADDRESS(34,19,1,1,$S$1)","v":"'Geographic Diversification'!$S$34"},"=SUM(S9:S32)",{"$f":"IF(_xlfn.FORMULATEXT(INDIRECT(S573))=T573,0,1)","v":0}]
[null,null,null,null,null,null,null,null,null,null,null,null,null,null,null,null,null,null,{"$f":"ADDRESS(34,20,1,1,$S$1)","v":"'Geographic Diversification'!$T$34"},"=SUM(T9:T32)",{"$f":"IF(_xlfn.FORMULATEXT(INDIRECT(S574))=T574,0,1)","v":0}]
[null,null,null,null,null,null,null,null,null,null,null,null,null,null,null,null,null,null,{"$f":"ADDRESS(34,21,1,1,$S$1)","v":"'Geographic Diversification'!$U$34"},"=SUM(U9:U32)",{"$f":"IF(_xlfn.FORMULATEXT(INDIRECT(S575))=T575,0,1)","v":0}]
[null,null,null,null,null,null,null,null,null,null,null,null,null,null,null,null,null,null,{"$f":"ADDRESS(34,22,1,1,$S$1)","v":"'Geographic Diversification'!$V$34"},"=SUM(V9:V32)",{"$f":"IF(_xlfn.FORMULATEXT(INDIRECT(S576))=T576,0,1)","v":0}]
[null,null,null,null,null,null,null,null,null,null,null,null,null,null,null,null,null,null,{"$f":"ADDRESS(34,23,1,1,$S$1)","v":"'Geographic Diversification'!$W$34"},"=SUM(W9:W32)",{"$f":"IF(_xlfn.FORMULATEXT(INDIRECT(S577))=T577,0,1)","v":0}]
[null,null,null,null,null,null,null,null,null,null,null,null,null,null,null,null,null,null,{"$f":"ADDRESS(34,24,1,1,$S$1)","v":"'Geographic Diversification'!$X$34"},"=SUM(X9:X32)",{"$f":"IF(_xlfn.FORMULATEXT(INDIRECT(S578))=T578,0,1)","v":0}]
[null,null,null,null,null,null,null,null,null,null,null,null,null,null,null,null,null,null,{"$f":"ADDRESS(34,25,1,1,$S$1)","v":"'Geographic Diversification'!$Y$34"},"=SUM(Y9:Y32)",{"$f":"IF(_xlfn.FORMULATEXT(INDIRECT(S579))=T579,0,1)","v":0}]
[null,null,null,null,null,null,null,null,null,null,null,null,null,null,null,null,null,null,{"$f":"ADDRESS(34,26,1,1,$S$1)","v":"'Geographic Diversification'!$Z$34"},"=SUM(Z9:Z32)",{"$f":"IF(_xlfn.FORMULATEXT(INDIRECT(S580))=T580,0,1)","v":0}]
[null,null,null,null,null,null,null,null,null,null,null,null,null,null,null,null,null,null,{"$f":"ADDRESS(40,4,1,1,$S$1)","v":"'Geographic Diversification'!$D$40"},"=SUM(I40:Z40)",{"$f":"IF(_xlfn.FORMULATEXT(INDIRECT(S581))=T581,0,1)","v":0}]
[null,null,null,null,null,null,null,null,null,null,null,null,null,null,null,null,null,null,{"$f":"ADDRESS(40,5,1,1,$S$1)","v":"'Geographic Diversification'!$E$40"},"=SUMSQ(I40:Z40)",{"$f":"IF(_xlfn.FORMULATEXT(INDIRECT(S582))=T582,0,1)","v":0}]
[null,null,null,null,null,null,null,null,null,null,null,null,null,null,null,null,null,null,{"$f":"ADDRESS(40,6,1,1,$S$1)","v":"'Geographic Diversification'!$F$40"},"=(IF(D40>0,E40/D40^2,1))",{"$f":"IF(_xlfn.FORMULATEXT(INDIRECT(S583))=T583,0,1)","v":0}]
[null,null,null,null,null,null,null,null,null,null,null,null,null,null,null,null,null,null,{"$f":"ADDRESS(40,7,1,1,$S$1)","v":"'Geographic Diversification'!$G$40"},"=D40*(0.75+0.25*F40)",{"$f":"IF(_xlfn.FORMULATEXT(INDIRECT(S584))=T584,0,1)","v":0}]
[null,null,null,null,null,null,null,null,null,null,null,null,null,null,null,null,null,null,{"$f":"ADDRESS(40,8,1,1,$S$1)","v":"'Geographic Diversification'!$H$40"},"=IF('Schedule IIIA (EBS)'!AB10=\"TRUE\",G40,'Schedule III (EBS)'!F10)",{"$f":"IF(_xlfn.FORMULATEXT(INDIRECT(S585))=T585,0,1)","v":0}]
[null,null,null,null,null,null,null,null,null,null,null,null,null,null,null,null,null,null,{"$f":"ADDRESS(40,9,1,1,$S$1)","v":"'Geographic Diversification'!$I$40"},"='Schedule IIIA (EBS)'!E10",{"$f":"IF(_xlfn.FORMULATEXT(INDIRECT(S586))=T586,0,1)","v":0}]
[null,null,null,null,null,null,null,null,null,null,null,null,null,null,null,null,null,null,{"$f":"ADDRESS(40,10,1,1,$S$1)","v":"'Geographic Diversification'!$J$40"},"='Schedule IIIA (EBS)'!F10",{"$f":"IF(_xlfn.FORMULATEXT(INDIRECT(S587))=T587,0,1)","v":0}]
[null,null,null,null,null,null,null,null,null,null,null,null,null,null,null,null,null,null,{"$f":"ADDRESS(40,11,1,1,$S$1)","v":"'Geographic Diversification'!$K$40"},"='Schedule IIIA (EBS)'!G10",{"$f":"IF(_xlfn.FORMULATEXT(INDIRECT(S588))=T588,0,1)","v":0}]
[null,null,null,null,null,null,null,null,null,null,null,null,null,null,null,null,null,null,{"$f":"ADDRESS(40,12,1,1,$S$1)","v":"'Geographic Diversification'!$L$40"},"='Schedule IIIA (EBS)'!H10",{"$f":"IF(_xlfn.FORMULATEXT(INDIRECT(S589))=T589,0,1)","v":0}]
[null,null,null,null,null,null,null,null,null,null,null,null,null,null,null,null,null,null,{"$f":"ADDRESS(40,13,1,1,$S$1)","v":"'Geographic Diversification'!$M$40"},"='Schedule IIIA (EBS)'!I10",{"$f":"IF(_xlfn.FORMULATEXT(INDIRECT(S590))=T590,0,1)","v":0}]
[null,null,null,null,null,null,null,null,null,null,null,null,null,null,null,null,null,null,{"$f":"ADDRESS(40,14,1,1,$S$1)","v":"'Geographic Diversification'!$N$40"},"='Schedule IIIA (EBS)'!J10",{"$f":"IF(_xlfn.FORMULATEXT(INDIRECT(S591))=T591,0,1)","v":0}]
[null,null,null,null,null,null,null,null,null,null,null,null,null,null,null,null,null,null,{"$f":"ADDRESS(40,15,1,1,$S$1)","v":"'Geographic Diversification'!$O$40"},"='Schedule IIIA (EBS)'!K10",{"$f":"IF(_xlfn.FORMULATEXT(INDIRECT(S592))=T592,0,1)","v":0}]
[null,null,null,null,null,null,null,null,null,null,null,null,null,null,null,null,null,null,{"$f":"ADDRESS(40,16,1,1,$S$1)","v":"'Geographic Diversification'!$P$40"},"='Schedule IIIA (EBS)'!L10",{"$f":"IF(_xlfn.FORMULATEXT(INDIRECT(S593))=T593,0,1)","v":0}]
[null,null,null,null,null,null,null,null,null,null,null,null,null,null,null,null,null,null,{"$f":"ADDRESS(40,17,1,1,$S$1)","v":"'Geographic Diversification'!$Q$40"},"='Schedule IIIA (EBS)'!M10",{"$f":"IF(_xlfn.FORMULATEXT(INDIRECT(S594))=T594,0,1)","v":0}]
[null,null,null,null,null,null,null,null,null,null,null,null,null,null,null,null,null,null,{"$f":"ADDRESS(40,18,1,1,$S$1)","v":"'Geographic Diversification'!$R$40"},"='Schedule IIIA (EBS)'!N10",{"$f":"IF(_xlfn.FORMULATEXT(INDIRECT(S595))=T595,0,1)","v":0}]
[null,null,null,null,null,null,null,null,null,null,null,null,null,null,null,null,null,null,{"$f":"ADDRESS(40,19,1,1,$S$1)","v":"'Geographic Diversification'!$S$40"},"='Schedule IIIA (EBS)'!O10",{"$f":"IF(_xlfn.FORMULATEXT(INDIRECT(S596))=T596,0,1)","v":0}]
[null,null,null,null,null,null,null,null,null,null,null,null,null,null,null,null,null,null,{"$f":"ADDRESS(40,20,1,1,$S$1)","v":"'Geographic Diversification'!$T$40"},"='Schedule IIIA (EBS)'!P10",{"$f":"IF(_xlfn.FORMULATEXT(INDIRECT(S597))=T597,0,1)","v":0}]
[null,null,null,null,null,null,null,null,null,null,null,null,null,null,null,null,null,null,{"$f":"ADDRESS(40,21,1,1,$S$1)","v":"'Geographic Diversification'!$U$40"},"='Schedule IIIA (EBS)'!Q10",{"$f":"IF(_xlfn.FORMULATEXT(INDIRECT(S598))=T598,0,1)","v":0}]
[null,null,null,null,null,null,null,null,null,null,null,null,null,null,null,null,null,null,{"$f":"ADDRESS(40,22,1,1,$S$1)","v":"'Geographic Diversification'!$V$40"},"='Schedule IIIA (EBS)'!R10",{"$f":"IF(_xlfn.FORMULATEXT(INDIRECT(S599))=T599,0,1)","v":0}]
[null,null,null,null,null,null,null,null,null,null,null,null,null,null,null,null,null,null,{"$f":"ADDRESS(40,23,1,1,$S$1)","v":"'Geographic Diversification'!$W$40"},"='Schedule IIIA (EBS)'!S10",{"$f":"IF(_xlfn.FORMULATEXT(INDIRECT(S600))=T600,0,1)","v":0}]
[null,null,null,null,null,null,null,null,null,null,null,null,null,null,null,null,null,null,{"$f":"ADDRESS(40,24,1,1,$S$1)","v":"'Geographic Diversification'!$X$40"},"='Schedule IIIA (EBS)'!T10",{"$f":"IF(_xlfn.FORMULATEXT(INDIRECT(S601))=T601,0,1)","v":0}]
[null,null,null,null,null,null,null,null,null,null,null,null,null,null,null,null,null,null,{"$f":"ADDRESS(40,25,1,1,$S$1)","v":"'Geographic Diversification'!$Y$40"},"='Schedule IIIA (EBS)'!U10",{"$f":"IF(_xlfn.FORMULATEXT(INDIRECT(S602))=T602,0,1)","v":0}]
[null,null,null,null,null,null,null,null,null,null,null,null,null,null,null,null,null,null,{"$f":"ADDRESS(40,26,1,1,$S$1)","v":"'Geographic Diversification'!$Z$40"},"='Schedule IIIA (EBS)'!V10",{"$f":"IF(_xlfn.FORMULATEXT(INDIRECT(S603))=T603,0,1)","v":0}]
[null,null,null,null,null,null,null,null,null,null,null,null,null,null,null,null,null,null,{"$f":"ADDRESS(41,4,1,1,$S$1)","v":"'Geographic Diversification'!$D$41"},"=SUM(I41:Z41)",{"$f":"IF(_xlfn.FORMULATEXT(INDIRECT(S604))=T604,0,1)","v":0}]
[null,null,null,null,null,null,null,null,null,null,null,null,null,null,null,null,null,null,{"$f":"ADDRESS(41,5,1,1,$S$1)","v":"'Geographic Diversification'!$E$41"},"=SUMSQ(I41:Z41)",{"$f":"IF(_xlfn.FORMULATEXT(INDIRECT(S605))=T605,0,1)","v":0}]
[null,null,null,null,null,null,null,null,null,null,null,null,null,null,null,null,null,null,{"$f":"ADDRESS(41,6,1,1,$S$1)","v":"'Geographic Diversification'!$F$41"},"=(IF(D41>0,E41/D41^2,1))",{"$f":"IF(_xlfn.FORMULATEXT(INDIRECT(S606))=T606,0,1)","v":0}]
[null,null,null,null,null,null,null,null,null,null,null,null,null,null,null,null,null,null,{"$f":"ADDRESS(41,7,1,1,$S$1)","v":"'Geographic Diversification'!$G$41"},"=D41*(0.75+0.25*F41)",{"$f":"IF(_xlfn.FORMULATEXT(INDIRECT(S607))=T607,0,1)","v":0}]
[null,null,null,null,null,null,null,null,null,null,null,null,null,null,null,null,null,null,{"$f":"ADDRESS(41,8,1,1,$S$1)","v":"'Geographic Diversification'!$H$41"},"=IF('Schedule IIIA (EBS)'!AB11=\"TRUE\",G41,'Schedule III (EBS)'!F11)",{"$f":"IF(_xlfn.FORMULATEXT(INDIRECT(S608))=T608,0,1)","v":0}]
[null,null,null,null,null,null,null,null,null,null,null,null,null,null,null,null,null,null,{"$f":"ADDRESS(41,9,1,1,$S$1)","v":"'Geographic Diversification'!$I$41"},"='Schedule IIIA (EBS)'!E11",{"$f":"IF(_xlfn.FORMULATEXT(INDIRECT(S609))=T609,0,1)","v":0}]
[null,null,null,null,null,null,null,null,null,null,null,null,null,null,null,null,null,null,{"$f":"ADDRESS(41,10,1,1,$S$1)","v":"'Geographic Diversification'!$J$41"},"='Schedule IIIA (EBS)'!F11",{"$f":"IF(_xlfn.FORMULATEXT(INDIRECT(S610))=T610,0,1)","v":0}]
[null,null,null,null,null,null,null,null,null,null,null,null,null,null,null,null,null,null,{"$f":"ADDRESS(41,11,1,1,$S$1)","v":"'Geographic Diversification'!$K$41"},"='Schedule IIIA (EBS)'!G11",{"$f":"IF(_xlfn.FORMULATEXT(INDIRECT(S611))=T611,0,1)","v":0}]
[null,null,null,null,null,null,null,null,null,null,null,null,null,null,null,null,null,null,{"$f":"ADDRESS(41,12,1,1,$S$1)","v":"'Geographic Diversification'!$L$41"},"='Schedule IIIA (EBS)'!H11",{"$f":"IF(_xlfn.FORMULATEXT(INDIRECT(S612))=T612,0,1)","v":0}]
[null,null,null,null,null,null,null,null,null,null,null,null,null,null,null,null,null,null,{"$f":"ADDRESS(41,13,1,1,$S$1)","v":"'Geographic Diversification'!$M$41"},"='Schedule IIIA (EBS)'!I11",{"$f":"IF(_xlfn.FORMULATEXT(INDIRECT(S613))=T613,0,1)","v":0}]
[null,null,null,null,null,null,null,null,null,null,null,null,null,null,null,null,null,null,{"$f":"ADDRESS(41,14,1,1,$S$1)","v":"'Geographic Diversification'!$N$41"},"='Schedule IIIA (EBS)'!J11",{"$f":"IF(_xlfn.FORMULATEXT(INDIRECT(S614))=T614,0,1)","v":0}]
[null,null,null,null,null,null,null,null,null,null,null,null,null,null,null,null,null,null,{"$f":"ADDRESS(41,15,1,1,$S$1)","v":"'Geographic Diversification'!$O$41"},"='Schedule IIIA (EBS)'!K11",{"$f":"IF(_xlfn.FORMULATEXT(INDIRECT(S615))=T615,0,1)","v":0}]
[null,null,null,null,null,null,null,null,null,null,null,null,null,null,null,null,null,null,{"$f":"ADDRESS(41,16,1,1,$S$1)","v":"'Geographic Diversification'!$P$41"},"='Schedule IIIA (EBS)'!L11",{"$f":"IF(_xlfn.FORMULATEXT(INDIRECT(S616))=T616,0,1)","v":0}]
[null,null,null,null,null,null,null,null,null,null,null,null,null,null,null,null,null,null,{"$f":"ADDRESS(41,17,1,1,$S$1)","v":"'Geographic Diversification'!$Q$41"},"='Schedule IIIA (EBS)'!M11",{"$f":"IF(_xlfn.FORMULATEXT(INDIRECT(S617))=T617,0,1)","v":0}]
[null,null,null,null,null,null,null,null,null,null,null,null,null,null,null,null,null,null,{"$f":"ADDRESS(41,18,1,1,$S$1)","v":"'Geographic Diversification'!$R$41"},"='Schedule IIIA (EBS)'!N11",{"$f":"IF(_xlfn.FORMULATEXT(INDIRECT(S618))=T618,0,1)","v":0}]
[null,null,null,null,null,null,null,null,null,null,null,null,null,null,null,null,null,null,{"$f":"ADDRESS(41,19,1,1,$S$1)","v":"'Geographic Diversification'!$S$41"},"='Schedule IIIA (EBS)'!O11",{"$f":"IF(_xlfn.FORMULATEXT(INDIRECT(S619))=T619,0,1)","v":0}]
[null,null,null,null,null,null,null,null,null,null,null,null,null,null,null,null,null,null,{"$f":"ADDRESS(41,20,1,1,$S$1)","v":"'Geographic Diversification'!$T$41"},"='Schedule IIIA (EBS)'!P11",{"$f":"IF(_xlfn.FORMULATEXT(INDIRECT(S620))=T620,0,1)","v":0}]
[null,null,null,null,null,null,null,null,null,null,null,null,null,null,null,null,null,null,{"$f":"ADDRESS(41,21,1,1,$S$1)","v":"'Geographic Diversification'!$U$41"},"='Schedule IIIA (EBS)'!Q11",{"$f":"IF(_xlfn.FORMULATEXT(INDIRECT(S621))=T621,0,1)","v":0}]
[null,null,null,null,null,null,null,null,null,null,null,null,null,null,null,null,null,null,{"$f":"ADDRESS(41,22,1,1,$S$1)","v":"'Geographic Diversification'!$V$41"},"='Schedule IIIA (EBS)'!R11",{"$f":"IF(_xlfn.FORMULATEXT(INDIRECT(S622))=T622,0,1)","v":0}]
[null,null,null,null,null,null,null,null,null,null,null,null,null,null,null,null,null,null,{"$f":"ADDRESS(41,23,1,1,$S$1)","v":"'Geographic Diversification'!$W$41"},"='Schedule IIIA (EBS)'!S11",{"$f":"IF(_xlfn.FORMULATEXT(INDIRECT(S623))=T623,0,1)","v":0}]
[null,null,null,null,null,null,null,null,null,null,null,null,null,null,null,null,null,null,{"$f":"ADDRESS(41,24,1,1,$S$1)","v":"'Geographic Diversification'!$X$41"},"='Schedule IIIA (EBS)'!T11",{"$f":"IF(_xlfn.FORMULATEXT(INDIRECT(S624))=T624,0,1)","v":0}]
[null,null,null,null,null,null,null,null,null,null,null,null,null,null,null,null,null,null,{"$f":"ADDRESS(41,25,1,1,$S$1)","v":"'Geographic Diversification'!$Y$41"},"='Schedule IIIA (EBS)'!U11",{"$f":"IF(_xlfn.FORMULATEXT(INDIRECT(S625))=T625,0,1)","v":0}]
[null,null,null,null,null,null,null,null,null,null,null,null,null,null,null,null,null,null,{"$f":"ADDRESS(41,26,1,1,$S$1)","v":"'Geographic Diversification'!$Z$41"},"='Schedule IIIA (EBS)'!V11",{"$f":"IF(_xlfn.FORMULATEXT(INDIRECT(S626))=T626,0,1)","v":0}]
[null,null,null,null,null,null,null,null,null,null,null,null,null,null,null,null,null,null,{"$f":"ADDRESS(42,4,1,1,$S$1)","v":"'Geographic Diversification'!$D$42"},"=SUM(I42:Z42)",{"$f":"IF(_xlfn.FORMULATEXT(INDIRECT(S627))=T627,0,1)","v":0}]
[null,null,null,null,null,null,null,null,null,null,null,null,null,null,null,null,null,null,{"$f":"ADDRESS(42,5,1,1,$S$1)","v":"'Geographic Diversification'!$E$42"},"=SUMSQ(I42:Z42)",{"$f":"IF(_xlfn.FORMULATEXT(INDIRECT(S628))=T628,0,1)","v":0}]
[null,null,null,null,null,null,null,null,null,null,null,null,null,null,null,null,null,null,{"$f":"ADDRESS(42,6,1,1,$S$1)","v":"'Geographic Diversification'!$F$42"},"=(IF(D42>0,E42/D42^2,1))",{"$f":"IF(_xlfn.FORMULATEXT(INDIRECT(S629))=T629,0,1)","v":0}]
[null,null,null,null,null,null,null,null,null,null,null,null,null,null,null,null,null,null,{"$f":"ADDRESS(42,7,1,1,$S$1)","v":"'Geographic Diversification'!$G$42"},"=D42*(0.75+0.25*F42)",{"$f":"IF(_xlfn.FORMULATEXT(INDIRECT(S630))=T630,0,1)","v":0}]
[null,null,null,null,null,null,null,null,null,null,null,null,null,null,null,null,null,null,{"$f":"ADDRESS(42,8,1,1,$S$1)","v":"'Geographic Diversification'!$H$42"},"=IF('Schedule IIIA (EBS)'!AB12=\"TRUE\",G42,'Schedule III (EBS)'!F12)",{"$f":"IF(_xlfn.FORMULATEXT(INDIRECT(S631))=T631,0,1)","v":0}]
[null,null,null,null,null,null,null,null,null,null,null,null,null,null,null,null,null,null,{"$f":"ADDRESS(42,9,1,1,$S$1)","v":"'Geographic Diversification'!$I$42"},"='Schedule IIIA (EBS)'!E12",{"$f":"IF(_xlfn.FORMULATEXT(INDIRECT(S632))=T632,0,1)","v":0}]
[null,null,null,null,null,null,null,null,null,null,null,null,null,null,null,null,null,null,{"$f":"ADDRESS(42,10,1,1,$S$1)","v":"'Geographic Diversification'!$J$42"},"='Schedule IIIA (EBS)'!F12",{"$f":"IF(_xlfn.FORMULATEXT(INDIRECT(S633))=T633,0,1)","v":0}]
[null,null,null,null,null,null,null,null,null,null,null,null,null,null,null,null,null,null,{"$f":"ADDRESS(42,11,1,1,$S$1)","v":"'Geographic Diversification'!$K$42"},"='Schedule IIIA (EBS)'!G12",{"$f":"IF(_xlfn.FORMULATEXT(INDIRECT(S634))=T634,0,1)","v":0}]
[null,null,null,null,null,null,null,null,null,null,null,null,null,null,null,null,null,null,{"$f":"ADDRESS(42,12,1,1,$S$1)","v":"'Geographic Diversification'!$L$42"},"='Schedule IIIA (EBS)'!H12",{"$f":"IF(_xlfn.FORMULATEXT(INDIRECT(S635))=T635,0,1)","v":0}]
[null,null,null,null,null,null,null,null,null,null,null,null,null,null,null,null,null,null,{"$f":"ADDRESS(42,13,1,1,$S$1)","v":"'Geographic Diversification'!$M$42"},"='Schedule IIIA (EBS)'!I12",{"$f":"IF(_xlfn.FORMULATEXT(INDIRECT(S636))=T636,0,1)","v":0}]
[null,null,null,null,null,null,null,null,null,null,null,null,null,null,null,null,null,null,{"$f":"ADDRESS(42,14,1,1,$S$1)","v":"'Geographic Diversification'!$N$42"},"='Schedule IIIA (EBS)'!J12",{"$f":"IF(_xlfn.FORMULATEXT(INDIRECT(S637))=T637,0,1)","v":0}]
[null,null,null,null,null,null,null,null,null,null,null,null,null,null,null,null,null,null,{"$f":"ADDRESS(42,15,1,1,$S$1)","v":"'Geographic Diversification'!$O$42"},"='Schedule IIIA (EBS)'!K12",{"$f":"IF(_xlfn.FORMULATEXT(INDIRECT(S638))=T638,0,1)","v":0}]
[null,null,null,null,null,null,null,null,null,null,null,null,null,null,null,null,null,null,{"$f":"ADDRESS(42,16,1,1,$S$1)","v":"'Geographic Diversification'!$P$42"},"='Schedule IIIA (EBS)'!L12",{"$f":"IF(_xlfn.FORMULATEXT(INDIRECT(S639))=T639,0,1)","v":0}]
[null,null,null,null,null,null,null,null,null,null,null,null,null,null,null,null,null,null,{"$f":"ADDRESS(42,17,1,1,$S$1)","v":"'Geographic Diversification'!$Q$42"},"='Schedule IIIA (EBS)'!M12",{"$f":"IF(_xlfn.FORMULATEXT(INDIRECT(S640))=T640,0,1)","v":0}]
[null,null,null,null,null,null,null,null,null,null,null,null,null,null,null,null,null,null,{"$f":"ADDRESS(42,18,1,1,$S$1)","v":"'Geographic Diversification'!$R$42"},"='Schedule IIIA (EBS)'!N12",{"$f":"IF(_xlfn.FORMULATEXT(INDIRECT(S641))=T641,0,1)","v":0}]
[null,null,null,null,null,null,null,null,null,null,null,null,null,null,null,null,null,null,{"$f":"ADDRESS(42,19,1,1,$S$1)","v":"'Geographic Diversification'!$S$42"},"='Schedule IIIA (EBS)'!O12",{"$f":"IF(_xlfn.FORMULATEXT(INDIRECT(S642))=T642,0,1)","v":0}]
[null,null,null,null,null,null,null,null,null,null,null,null,null,null,null,null,null,null,{"$f":"ADDRESS(42,20,1,1,$S$1)","v":"'Geographic Diversification'!$T$42"},"='Schedule IIIA (EBS)'!P12",{"$f":"IF(_xlfn.FORMULATEXT(INDIRECT(S643))=T643,0,1)","v":0}]
[null,null,null,null,null,null,null,null,null,null,null,null,null,null,null,null,null,null,{"$f":"ADDRESS(42,21,1,1,$S$1)","v":"'Geographic Diversification'!$U$42"},"='Schedule IIIA (EBS)'!Q12",{"$f":"IF(_xlfn.FORMULATEXT(INDIRECT(S644))=T644,0,1)","v":0}]
[null,null,null,null,null,null,null,null,null,null,null,null,null,null,null,null,null,null,{"$f":"ADDRESS(42,22,1,1,$S$1)","v":"'Geographic Diversification'!$V$42"},"='Schedule IIIA (EBS)'!R12",{"$f":"IF(_xlfn.FORMULATEXT(INDIRECT(S645))=T645,0,1)","v":0}]
[null,null,null,null,null,null,null,null,null,null,null,null,null,null,null,null,null,null,{"$f":"ADDRESS(42,23,1,1,$S$1)","v":"'Geographic Diversification'!$W$42"},"='Schedule IIIA (EBS)'!S12",{"$f":"IF(_xlfn.FORMULATEXT(INDIRECT(S646))=T646,0,1)","v":0}]
[null,null,null,null,null,null,null,null,null,null,null,null,null,null,null,null,null,null,{"$f":"ADDRESS(42,24,1,1,$S$1)","v":"'Geographic Diversification'!$X$42"},"='Schedule IIIA (EBS)'!T12",{"$f":"IF(_xlfn.FORMULATEXT(INDIRECT(S647))=T647,0,1)","v":0}]
[null,null,null,null,null,null,null,null,null,null,null,null,null,null,null,null,null,null,{"$f":"ADDRESS(42,25,1,1,$S$1)","v":"'Geographic Diversification'!$Y$42"},"='Schedule IIIA (EBS)'!U12",{"$f":"IF(_xlfn.FORMULATEXT(INDIRECT(S648))=T648,0,1)","v":0}]
[null,null,null,null,null,null,null,null,null,null,null,null,null,null,null,null,null,null,{"$f":"ADDRESS(42,26,1,1,$S$1)","v":"'Geographic Diversification'!$Z$42"},"='Schedule IIIA (EBS)'!V12",{"$f":"IF(_xlfn.FORMULATEXT(INDIRECT(S649))=T649,0,1)","v":0}]
[null,null,null,null,null,null,null,null,null,null,null,null,null,null,null,null,null,null,{"$f":"ADDRESS(43,4,1,1,$S$1)","v":"'Geographic Diversification'!$D$43"},"=SUM(I43:Z43)",{"$f":"IF(_xlfn.FORMULATEXT(INDIRECT(S650))=T650,0,1)","v":0}]
[null,null,null,null,null,null,null,null,null,null,null,null,null,null,null,null,null,null,{"$f":"ADDRESS(43,5,1,1,$S$1)","v":"'Geographic Diversification'!$E$43"},"=SUMSQ(I43:Z43)",{"$f":"IF(_xlfn.FORMULATEXT(INDIRECT(S651))=T651,0,1)","v":0}]
[null,null,null,null,null,null,null,null,null,null,null,null,null,null,null,null,null,null,{"$f":"ADDRESS(43,6,1,1,$S$1)","v":"'Geographic Diversification'!$F$43"},"=(IF(D43>0,E43/D43^2,1))",{"$f":"IF(_xlfn.FORMULATEXT(INDIRECT(S652))=T652,0,1)","v":0}]
[null,null,null,null,null,null,null,null,null,null,null,null,null,null,null,null,null,null,{"$f":"ADDRESS(43,7,1,1,$S$1)","v":"'Geographic Diversification'!$G$43"},"=D43*(0.75+0.25*F43)",{"$f":"IF(_xlfn.FORMULATEXT(INDIRECT(S653))=T653,0,1)","v":0}]
[null,null,null,null,null,null,null,null,null,null,null,null,null,null,null,null,null,null,{"$f":"ADDRESS(43,8,1,1,$S$1)","v":"'Geographic Diversification'!$H$43"},"=IF('Schedule IIIA (EBS)'!AB13=\"TRUE\",G43,'Schedule III (EBS)'!F13)",{"$f":"IF(_xlfn.FORMULATEXT(INDIRECT(S654))=T654,0,1)","v":0}]
[null,null,null,null,null,null,null,null,null,null,null,null,null,null,null,null,null,null,{"$f":"ADDRESS(43,9,1,1,$S$1)","v":"'Geographic Diversification'!$I$43"},"='Schedule IIIA (EBS)'!E13",{"$f":"IF(_xlfn.FORMULATEXT(INDIRECT(S655))=T655,0,1)","v":0}]
[null,null,null,null,null,null,null,null,null,null,null,null,null,null,null,null,null,null,{"$f":"ADDRESS(43,10,1,1,$S$1)","v":"'Geographic Diversification'!$J$43"},"='Schedule IIIA (EBS)'!F13",{"$f":"IF(_xlfn.FORMULATEXT(INDIRECT(S656))=T656,0,1)","v":0}]
[null,null,null,null,null,null,null,null,null,null,null,null,null,null,null,null,null,null,{"$f":"ADDRESS(43,11,1,1,$S$1)","v":"'Geographic Diversification'!$K$43"},"='Schedule IIIA (EBS)'!G13",{"$f":"IF(_xlfn.FORMULATEXT(INDIRECT(S657))=T657,0,1)","v":0}]
[null,null,null,null,null,null,null,null,null,null,null,null,null,null,null,null,null,null,{"$f":"ADDRESS(43,12,1,1,$S$1)","v":"'Geographic Diversification'!$L$43"},"='Schedule IIIA (EBS)'!H13",{"$f":"IF(_xlfn.FORMULATEXT(INDIRECT(S658))=T658,0,1)","v":0}]
[null,null,null,null,null,null,null,null,null,null,null,null,null,null,null,null,null,null,{"$f":"ADDRESS(43,13,1,1,$S$1)","v":"'Geographic Diversification'!$M$43"},"='Schedule IIIA (EBS)'!I13",{"$f":"IF(_xlfn.FORMULATEXT(INDIRECT(S659))=T659,0,1)","v":0}]
[null,null,null,null,null,null,null,null,null,null,null,null,null,null,null,null,null,null,{"$f":"ADDRESS(43,14,1,1,$S$1)","v":"'Geographic Diversification'!$N$43"},"='Schedule IIIA (EBS)'!J13",{"$f":"IF(_xlfn.FORMULATEXT(INDIRECT(S660))=T660,0,1)","v":0}]
[null,null,null,null,null,null,null,null,null,null,null,null,null,null,null,null,null,null,{"$f":"ADDRESS(43,15,1,1,$S$1)","v":"'Geographic Diversification'!$O$43"},"='Schedule IIIA (EBS)'!K13",{"$f":"IF(_xlfn.FORMULATEXT(INDIRECT(S661))=T661,0,1)","v":0}]
[null,null,null,null,null,null,null,null,null,null,null,null,null,null,null,null,null,null,{"$f":"ADDRESS(43,16,1,1,$S$1)","v":"'Geographic Diversification'!$P$43"},"='Schedule IIIA (EBS)'!L13",{"$f":"IF(_xlfn.FORMULATEXT(INDIRECT(S662))=T662,0,1)","v":0}]
[null,null,null,null,null,null,null,null,null,null,null,null,null,null,null,null,null,null,{"$f":"ADDRESS(43,17,1,1,$S$1)","v":"'Geographic Diversification'!$Q$43"},"='Schedule IIIA (EBS)'!M13",{"$f":"IF(_xlfn.FORMULATEXT(INDIRECT(S663))=T663,0,1)","v":0}]
[null,null,null,null,null,null,null,null,null,null,null,null,null,null,null,null,null,null,{"$f":"ADDRESS(43,18,1,1,$S$1)","v":"'Geographic Diversification'!$R$43"},"='Schedule IIIA (EBS)'!N13",{"$f":"IF(_xlfn.FORMULATEXT(INDIRECT(S664))=T664,0,1)","v":0}]
[null,null,null,null,null,null,null,null,null,null,null,null,null,null,null,null,null,null,{"$f":"ADDRESS(43,19,1,1,$S$1)","v":"'Geographic Diversification'!$S$43"},"='Schedule IIIA (EBS)'!O13",{"$f":"IF(_xlfn.FORMULATEXT(INDIRECT(S665))=T665,0,1)","v":0}]
[null,null,null,null,null,null,null,null,null,null,null,null,null,null,null,null,null,null,{"$f":"ADDRESS(43,20,1,1,$S$1)","v":"'Geographic Diversification'!$T$43"},"='Schedule IIIA (EBS)'!P13",{"$f":"IF(_xlfn.FORMULATEXT(INDIRECT(S666))=T666,0,1)","v":0}]
[null,null,null,null,null,null,null,null,null,null,null,null,null,null,null,null,null,null,{"$f":"ADDRESS(43,21,1,1,$S$1)","v":"'Geographic Diversification'!$U$43"},"='Schedule IIIA (EBS)'!Q13",{"$f":"IF(_xlfn.FORMULATEXT(INDIRECT(S667))=T667,0,1)","v":0}]
[null,null,null,null,null,null,null,null,null,null,null,null,null,null,null,null,null,null,{"$f":"ADDRESS(43,22,1,1,$S$1)","v":"'Geographic Diversification'!$V$43"},"='Schedule IIIA (EBS)'!R13",{"$f":"IF(_xlfn.FORMULATEXT(INDIRECT(S668))=T668,0,1)","v":0}]
[null,null,null,null,null,null,null,null,null,null,null,null,null,null,null,null,null,null,{"$f":"ADDRESS(43,23,1,1,$S$1)","v":"'Geographic Diversification'!$W$43"},"='Schedule IIIA (EBS)'!S13",{"$f":"IF(_xlfn.FORMULATEXT(INDIRECT(S669))=T669,0,1)","v":0}]
[null,null,null,null,null,null,null,null,null,null,null,null,null,null,null,null,null,null,{"$f":"ADDRESS(43,24,1,1,$S$1)","v":"'Geographic Diversification'!$X$43"},"='Schedule IIIA (EBS)'!T13",{"$f":"IF(_xlfn.FORMULATEXT(INDIRECT(S670))=T670,0,1)","v":0}]
[null,null,null,null,null,null,null,null,null,null,null,null,null,null,null,null,null,null,{"$f":"ADDRESS(43,25,1,1,$S$1)","v":"'Geographic Diversification'!$Y$43"},"='Schedule IIIA (EBS)'!U13",{"$f":"IF(_xlfn.FORMULATEXT(INDIRECT(S671))=T671,0,1)","v":0}]
[null,null,null,null,null,null,null,null,null,null,null,null,null,null,null,null,null,null,{"$f":"ADDRESS(43,26,1,1,$S$1)","v":"'Geographic Diversification'!$Z$43"},"='Schedule IIIA (EBS)'!V13",{"$f":"IF(_xlfn.FORMULATEXT(INDIRECT(S672))=T672,0,1)","v":0}]
[null,null,null,null,null,null,null,null,null,null,null,null,null,null,null,null,null,null,{"$f":"ADDRESS(44,4,1,1,$S$1)","v":"'Geographic Diversification'!$D$44"},"=SUM(I44:Z44)",{"$f":"IF(_xlfn.FORMULATEXT(INDIRECT(S673))=T673,0,1)","v":0}]
[null,null,null,null,null,null,null,null,null,null,null,null,null,null,null,null,null,null,{"$f":"ADDRESS(44,5,1,1,$S$1)","v":"'Geographic Diversification'!$E$44"},"=SUMSQ(I44:Z44)",{"$f":"IF(_xlfn.FORMULATEXT(INDIRECT(S674))=T674,0,1)","v":0}]
[null,null,null,null,null,null,null,null,null,null,null,null,null,null,null,null,null,null,{"$f":"ADDRESS(44,6,1,1,$S$1)","v":"'Geographic Diversification'!$F$44"},"=(IF(D44>0,E44/D44^2,1))",{"$f":"IF(_xlfn.FORMULATEXT(INDIRECT(S675))=T675,0,1)","v":0}]
[null,null,null,null,null,null,null,null,null,null,null,null,null,null,null,null,null,null,{"$f":"ADDRESS(44,7,1,1,$S$1)","v":"'Geographic Diversification'!$G$44"},"=D44*(0.75+0.25*F44)",{"$f":"IF(_xlfn.FORMULATEXT(INDIRECT(S676))=T676,0,1)","v":0}]
[null,null,null,null,null,null,null,null,null,null,null,null,null,null,null,null,null,null,{"$f":"ADDRESS(44,8,1,1,$S$1)","v":"'Geographic Diversification'!$H$44"},"=IF('Schedule IIIA (EBS)'!AB14=\"TRUE\",G44,'Schedule III (EBS)'!F14)",{"$f":"IF(_xlfn.FORMULATEXT(INDIRECT(S677))=T677,0,1)","v":0}]
[null,null,null,null,null,null,null,null,null,null,null,null,null,null,null,null,null,null,{"$f":"ADDRESS(44,9,1,1,$S$1)","v":"'Geographic Diversification'!$I$44"},"='Schedule IIIA (EBS)'!E14",{"$f":"IF(_xlfn.FORMULATEXT(INDIRECT(S678))=T678,0,1)","v":0}]
[null,null,null,null,null,null,null,null,null,null,null,null,null,null,null,null,null,null,{"$f":"ADDRESS(44,10,1,1,$S$1)","v":"'Geographic Diversification'!$J$44"},"='Schedule IIIA (EBS)'!F14",{"$f":"IF(_xlfn.FORMULATEXT(INDIRECT(S679))=T679,0,1)","v":0}]
[null,null,null,null,null,null,null,null,null,null,null,null,null,null,null,null,null,null,{"$f":"ADDRESS(44,11,1,1,$S$1)","v":"'Geographic Diversification'!$K$44"},"='Schedule IIIA (EBS)'!G14",{"$f":"IF(_xlfn.FORMULATEXT(INDIRECT(S680))=T680,0,1)","v":0}]
[null,null,null,null,null,null,null,null,null,null,null,null,null,null,null,null,null,null,{"$f":"ADDRESS(44,12,1,1,$S$1)","v":"'Geographic Diversification'!$L$44"},"='Schedule IIIA (EBS)'!H14",{"$f":"IF(_xlfn.FORMULATEXT(INDIRECT(S681))=T681,0,1)","v":0}]
[null,null,null,null,null,null,null,null,null,null,null,null,null,null,null,null,null,null,{"$f":"ADDRESS(44,13,1,1,$S$1)","v":"'Geographic Diversification'!$M$44"},"='Schedule IIIA (EBS)'!I14",{"$f":"IF(_xlfn.FORMULATEXT(INDIRECT(S682))=T682,0,1)","v":0}]
[null,null,null,null,null,null,null,null,null,null,null,null,null,null,null,null,null,null,{"$f":"ADDRESS(44,14,1,1,$S$1)","v":"'Geographic Diversification'!$N$44"},"='Schedule IIIA (EBS)'!J14",{"$f":"IF(_xlfn.FORMULATEXT(INDIRECT(S683))=T683,0,1)","v":0}]
[null,null,null,null,null,null,null,null,null,null,null,null,null,null,null,null,null,null,{"$f":"ADDRESS(44,15,1,1,$S$1)","v":"'Geographic Diversification'!$O$44"},"='Schedule IIIA (EBS)'!K14",{"$f":"IF(_xlfn.FORMULATEXT(INDIRECT(S684))=T684,0,1)","v":0}]
[null,null,null,null,null,null,null,null,null,null,null,null,null,null,null,null,null,null,{"$f":"ADDRESS(44,16,1,1,$S$1)","v":"'Geographic Diversification'!$P$44"},"='Schedule IIIA (EBS)'!L14",{"$f":"IF(_xlfn.FORMULATEXT(INDIRECT(S685))=T685,0,1)","v":0}]
[null,null,null,null,null,null,null,null,null,null,null,null,null,null,null,null,null,null,{"$f":"ADDRESS(44,17,1,1,$S$1)","v":"'Geographic Diversification'!$Q$44"},"='Schedule IIIA (EBS)'!M14",{"$f":"IF(_xlfn.FORMULATEXT(INDIRECT(S686))=T686,0,1)","v":0}]
[null,null,null,null,null,null,null,null,null,null,null,null,null,null,null,null,null,null,{"$f":"ADDRESS(44,18,1,1,$S$1)","v":"'Geographic Diversification'!$R$44"},"='Schedule IIIA (EBS)'!N14",{"$f":"IF(_xlfn.FORMULATEXT(INDIRECT(S687))=T687,0,1)","v":0}]
[null,null,null,null,null,null,null,null,null,null,null,null,null,null,null,null,null,null,{"$f":"ADDRESS(44,19,1,1,$S$1)","v":"'Geographic Diversification'!$S$44"},"='Schedule IIIA (EBS)'!O14",{"$f":"IF(_xlfn.FORMULATEXT(INDIRECT(S688))=T688,0,1)","v":0}]
[null,null,null,null,null,null,null,null,null,null,null,null,null,null,null,null,null,null,{"$f":"ADDRESS(44,20,1,1,$S$1)","v":"'Geographic Diversification'!$T$44"},"='Schedule IIIA (EBS)'!P14",{"$f":"IF(_xlfn.FORMULATEXT(INDIRECT(S689))=T689,0,1)","v":0}]
[null,null,null,null,null,null,null,null,null,null,null,null,null,null,null,null,null,null,{"$f":"ADDRESS(44,21,1,1,$S$1)","v":"'Geographic Diversification'!$U$44"},"='Schedule IIIA (EBS)'!Q14",{"$f":"IF(_xlfn.FORMULATEXT(INDIRECT(S690))=T690,0,1)","v":0}]
[null,null,null,null,null,null,null,null,null,null,null,null,null,null,null,null,null,null,{"$f":"ADDRESS(44,22,1,1,$S$1)","v":"'Geographic Diversification'!$V$44"},"='Schedule IIIA (EBS)'!R14",{"$f":"IF(_xlfn.FORMULATEXT(INDIRECT(S691))=T691,0,1)","v":0}]
[null,null,null,null,null,null,null,null,null,null,null,null,null,null,null,null,null,null,{"$f":"ADDRESS(44,23,1,1,$S$1)","v":"'Geographic Diversification'!$W$44"},"='Schedule IIIA (EBS)'!S14",{"$f":"IF(_xlfn.FORMULATEXT(INDIRECT(S692))=T692,0,1)","v":0}]
[null,null,null,null,null,null,null,null,null,null,null,null,null,null,null,null,null,null,{"$f":"ADDRESS(44,24,1,1,$S$1)","v":"'Geographic Diversification'!$X$44"},"='Schedule IIIA (EBS)'!T14",{"$f":"IF(_xlfn.FORMULATEXT(INDIRECT(S693))=T693,0,1)","v":0}]
[null,null,null,null,null,null,null,null,null,null,null,null,null,null,null,null,null,null,{"$f":"ADDRESS(44,25,1,1,$S$1)","v":"'Geographic Diversification'!$Y$44"},"='Schedule IIIA (EBS)'!U14",{"$f":"IF(_xlfn.FORMULATEXT(INDIRECT(S694))=T694,0,1)","v":0}]
[null,null,null,null,null,null,null,null,null,null,null,null,null,null,null,null,null,null,{"$f":"ADDRESS(44,26,1,1,$S$1)","v":"'Geographic Diversification'!$Z$44"},"='Schedule IIIA (EBS)'!V14",{"$f":"IF(_xlfn.FORMULATEXT(INDIRECT(S695))=T695,0,1)","v":0}]
[null,null,null,null,null,null,null,null,null,null,null,null,null,null,null,null,null,null,{"$f":"ADDRESS(45,4,1,1,$S$1)","v":"'Geographic Diversification'!$D$45"},"=SUM(I45:Z45)",{"$f":"IF(_xlfn.FORMULATEXT(INDIRECT(S696))=T696,0,1)","v":0}]
[null,null,null,null,null,null,null,null,null,null,null,null,null,null,null,null,null,null,{"$f":"ADDRESS(45,5,1,1,$S$1)","v":"'Geographic Diversification'!$E$45"},"=SUMSQ(I45:Z45)",{"$f":"IF(_xlfn.FORMULATEXT(INDIRECT(S697))=T697,0,1)","v":0}]
[null,null,null,null,null,null,null,null,null,null,null,null,null,null,null,null,null,null,{"$f":"ADDRESS(45,6,1,1,$S$1)","v":"'Geographic Diversification'!$F$45"},"=(IF(D45>0,E45/D45^2,1))",{"$f":"IF(_xlfn.FORMULATEXT(INDIRECT(S698))=T698,0,1)","v":0}]
[null,null,null,null,null,null,null,null,null,null,null,null,null,null,null,null,null,null,{"$f":"ADDRESS(45,7,1,1,$S$1)","v":"'Geographic Diversification'!$G$45"},"=D45*(0.75+0.25*F45)",{"$f":"IF(_xlfn.FORMULATEXT(INDIRECT(S699))=T699,0,1)","v":0}]
[null,null,null,null,null,null,null,null,null,null,null,null,null,null,null,null,null,null,{"$f":"ADDRESS(45,8,1,1,$S$1)","v":"'Geographic Diversification'!$H$45"},"=IF('Schedule IIIA (EBS)'!AB15=\"TRUE\",G45,'Schedule III (EBS)'!F15)",{"$f":"IF(_xlfn.FORMULATEXT(INDIRECT(S700))=T700,0,1)","v":0}]
[null,null,null,null,null,null,null,null,null,null,null,null,null,null,null,null,null,null,{"$f":"ADDRESS(45,9,1,1,$S$1)","v":"'Geographic Diversification'!$I$45"},"='Schedule IIIA (EBS)'!E15",{"$f":"IF(_xlfn.FORMULATEXT(INDIRECT(S701))=T701,0,1)","v":0}]
[null,null,null,null,null,null,null,null,null,null,null,null,null,null,null,null,null,null,{"$f":"ADDRESS(45,10,1,1,$S$1)","v":"'Geographic Diversification'!$J$45"},"='Schedule IIIA (EBS)'!F15",{"$f":"IF(_xlfn.FORMULATEXT(INDIRECT(S702))=T702,0,1)","v":0}]
[null,null,null,null,null,null,null,null,null,null,null,null,null,null,null,null,null,null,{"$f":"ADDRESS(45,11,1,1,$S$1)","v":"'Geographic Diversification'!$K$45"},"='Schedule IIIA (EBS)'!G15",{"$f":"IF(_xlfn.FORMULATEXT(INDIRECT(S703))=T703,0,1)","v":0}]
[null,null,null,null,null,null,null,null,null,null,null,null,null,null,null,null,null,null,{"$f":"ADDRESS(45,12,1,1,$S$1)","v":"'Geographic Diversification'!$L$45"},"='Schedule IIIA (EBS)'!H15",{"$f":"IF(_xlfn.FORMULATEXT(INDIRECT(S704))=T704,0,1)","v":0}]
[null,null,null,null,null,null,null,null,null,null,null,null,null,null,null,null,null,null,{"$f":"ADDRESS(45,13,1,1,$S$1)","v":"'Geographic Diversification'!$M$45"},"='Schedule IIIA (EBS)'!I15",{"$f":"IF(_xlfn.FORMULATEXT(INDIRECT(S705))=T705,0,1)","v":0}]
[null,null,null,null,null,null,null,null,null,null,null,null,null,null,null,null,null,null,{"$f":"ADDRESS(45,14,1,1,$S$1)","v":"'Geographic Diversification'!$N$45"},"='Schedule IIIA (EBS)'!J15",{"$f":"IF(_xlfn.FORMULATEXT(INDIRECT(S706))=T706,0,1)","v":0}]
[null,null,null,null,null,null,null,null,null,null,null,null,null,null,null,null,null,null,{"$f":"ADDRESS(45,15,1,1,$S$1)","v":"'Geographic Diversification'!$O$45"},"='Schedule IIIA (EBS)'!K15",{"$f":"IF(_xlfn.FORMULATEXT(INDIRECT(S707))=T707,0,1)","v":0}]
[null,null,null,null,null,null,null,null,null,null,null,null,null,null,null,null,null,null,{"$f":"ADDRESS(45,16,1,1,$S$1)","v":"'Geographic Diversification'!$P$45"},"='Schedule IIIA (EBS)'!L15",{"$f":"IF(_xlfn.FORMULATEXT(INDIRECT(S708))=T708,0,1)","v":0}]
[null,null,null,null,null,null,null,null,null,null,null,null,null,null,null,null,null,null,{"$f":"ADDRESS(45,17,1,1,$S$1)","v":"'Geographic Diversification'!$Q$45"},"='Schedule IIIA (EBS)'!M15",{"$f":"IF(_xlfn.FORMULATEXT(INDIRECT(S709))=T709,0,1)","v":0}]
[null,null,null,null,null,null,null,null,null,null,null,null,null,null,null,null,null,null,{"$f":"ADDRESS(45,18,1,1,$S$1)","v":"'Geographic Diversification'!$R$45"},"='Schedule IIIA (EBS)'!N15",{"$f":"IF(_xlfn.FORMULATEXT(INDIRECT(S710))=T710,0,1)","v":0}]
[null,null,null,null,null,null,null,null,null,null,null,null,null,null,null,null,null,null,{"$f":"ADDRESS(45,19,1,1,$S$1)","v":"'Geographic Diversification'!$S$45"},"='Schedule IIIA (EBS)'!O15",{"$f":"IF(_xlfn.FORMULATEXT(INDIRECT(S711))=T711,0,1)","v":0}]
[null,null,null,null,null,null,null,null,null,null,null,null,null,null,null,null,null,null,{"$f":"ADDRESS(45,20,1,1,$S$1)","v":"'Geographic Diversification'!$T$45"},"='Schedule IIIA (EBS)'!P15",{"$f":"IF(_xlfn.FORMULATEXT(INDIRECT(S712))=T712,0,1)","v":0}]
[null,null,null,null,null,null,null,null,null,null,null,null,null,null,null,null,null,null,{"$f":"ADDRESS(45,21,1,1,$S$1)","v":"'Geographic Diversification'!$U$45"},"='Schedule IIIA (EBS)'!Q15",{"$f":"IF(_xlfn.FORMULATEXT(INDIRECT(S713))=T713,0,1)","v":0}]
[null,null,null,null,null,null,null,null,null,null,null,null,null,null,null,null,null,null,{"$f":"ADDRESS(45,22,1,1,$S$1)","v":"'Geographic Diversification'!$V$45"},"='Schedule IIIA (EBS)'!R15",{"$f":"IF(_xlfn.FORMULATEXT(INDIRECT(S714))=T714,0,1)","v":0}]
[null,null,null,null,null,null,null,null,null,null,null,null,null,null,null,null,null,null,{"$f":"ADDRESS(45,23,1,1,$S$1)","v":"'Geographic Diversification'!$W$45"},"='Schedule IIIA (EBS)'!S15",{"$f":"IF(_xlfn.FORMULATEXT(INDIRECT(S715))=T715,0,1)","v":0}]
[null,null,null,null,null,null,null,null,null,null,null,null,null,null,null,null,null,null,{"$f":"ADDRESS(45,24,1,1,$S$1)","v":"'Geographic Diversification'!$X$45"},"='Schedule IIIA (EBS)'!T15",{"$f":"IF(_xlfn.FORMULATEXT(INDIRECT(S716))=T716,0,1)","v":0}]
[null,null,null,null,null,null,null,null,null,null,null,null,null,null,null,null,null,null,{"$f":"ADDRESS(45,25,1,1,$S$1)","v":"'Geographic Diversification'!$Y$45"},"='Schedule IIIA (EBS)'!U15",{"$f":"IF(_xlfn.FORMULATEXT(INDIRECT(S717))=T717,0,1)","v":0}]
[null,null,null,null,null,null,null,null,null,null,null,null,null,null,null,null,null,null,{"$f":"ADDRESS(45,26,1,1,$S$1)","v":"'Geographic Diversification'!$Z$45"},"='Schedule IIIA (EBS)'!V15",{"$f":"IF(_xlfn.FORMULATEXT(INDIRECT(S718))=T718,0,1)","v":0}]
[null,null,null,null,null,null,null,null,null,null,null,null,null,null,null,null,null,null,{"$f":"ADDRESS(46,4,1,1,$S$1)","v":"'Geographic Diversification'!$D$46"},"=SUM(I46:Z46)",{"$f":"IF(_xlfn.FORMULATEXT(INDIRECT(S719))=T719,0,1)","v":0}]
[null,null,null,null,null,null,null,null,null,null,null,null,null,null,null,null,null,null,{"$f":"ADDRESS(46,5,1,1,$S$1)","v":"'Geographic Diversification'!$E$46"},"=SUMSQ(I46:Z46)",{"$f":"IF(_xlfn.FORMULATEXT(INDIRECT(S720))=T720,0,1)","v":0}]
[null,null,null,null,null,null,null,null,null,null,null,null,null,null,null,null,null,null,{"$f":"ADDRESS(46,6,1,1,$S$1)","v":"'Geographic Diversification'!$F$46"},"=(IF(D46>0,E46/D46^2,1))",{"$f":"IF(_xlfn.FORMULATEXT(INDIRECT(S721))=T721,0,1)","v":0}]
[null,null,null,null,null,null,null,null,null,null,null,null,null,null,null,null,null,null,{"$f":"ADDRESS(46,7,1,1,$S$1)","v":"'Geographic Diversification'!$G$46"},"=D46*(0.75+0.25*F46)",{"$f":"IF(_xlfn.FORMULATEXT(INDIRECT(S722))=T722,0,1)","v":0}]
[null,null,null,null,null,null,null,null,null,null,null,null,null,null,null,null,null,null,{"$f":"ADDRESS(46,8,1,1,$S$1)","v":"'Geographic Diversification'!$H$46"},"=IF('Schedule IIIA (EBS)'!AB16=\"TRUE\",G46,'Schedule III (EBS)'!F16)",{"$f":"IF(_xlfn.FORMULATEXT(INDIRECT(S723))=T723,0,1)","v":0}]
[null,null,null,null,null,null,null,null,null,null,null,null,null,null,null,null,null,null,{"$f":"ADDRESS(46,9,1,1,$S$1)","v":"'Geographic Diversification'!$I$46"},"='Schedule IIIA (EBS)'!E16",{"$f":"IF(_xlfn.FORMULATEXT(INDIRECT(S724))=T724,0,1)","v":0}]
[null,null,null,null,null,null,null,null,null,null,null,null,null,null,null,null,null,null,{"$f":"ADDRESS(46,10,1,1,$S$1)","v":"'Geographic Diversification'!$J$46"},"='Schedule IIIA (EBS)'!F16",{"$f":"IF(_xlfn.FORMULATEXT(INDIRECT(S725))=T725,0,1)","v":0}]
[null,null,null,null,null,null,null,null,null,null,null,null,null,null,null,null,null,null,{"$f":"ADDRESS(46,11,1,1,$S$1)","v":"'Geographic Diversification'!$K$46"},"='Schedule IIIA (EBS)'!G16",{"$f":"IF(_xlfn.FORMULATEXT(INDIRECT(S726))=T726,0,1)","v":0}]
[null,null,null,null,null,null,null,null,null,null,null,null,null,null,null,null,null,null,{"$f":"ADDRESS(46,12,1,1,$S$1)","v":"'Geographic Diversification'!$L$46"},"='Schedule IIIA (EBS)'!H16",{"$f":"IF(_xlfn.FORMULATEXT(INDIRECT(S727))=T727,0,1)","v":0}]
[null,null,null,null,null,null,null,null,null,null,null,null,null,null,null,null,null,null,{"$f":"ADDRESS(46,13,1,1,$S$1)","v":"'Geographic Diversification'!$M$46"},"='Schedule IIIA (EBS)'!I16",{"$f":"IF(_xlfn.FORMULATEXT(INDIRECT(S728))=T728,0,1)","v":0}]
[null,null,null,null,null,null,null,null,null,null,null,null,null,null,null,null,null,null,{"$f":"ADDRESS(46,14,1,1,$S$1)","v":"'Geographic Diversification'!$N$46"},"='Schedule IIIA (EBS)'!J16",{"$f":"IF(_xlfn.FORMULATEXT(INDIRECT(S729))=T729,0,1)","v":0}]
[null,null,null,null,null,null,null,null,null,null,null,null,null,null,null,null,null,null,{"$f":"ADDRESS(46,15,1,1,$S$1)","v":"'Geographic Diversification'!$O$46"},"='Schedule IIIA (EBS)'!K16",{"$f":"IF(_xlfn.FORMULATEXT(INDIRECT(S730))=T730,0,1)","v":0}]
[null,null,null,null,null,null,null,null,null,null,null,null,null,null,null,null,null,null,{"$f":"ADDRESS(46,16,1,1,$S$1)","v":"'Geographic Diversification'!$P$46"},"='Schedule IIIA (EBS)'!L16",{"$f":"IF(_xlfn.FORMULATEXT(INDIRECT(S731))=T731,0,1)","v":0}]
[null,null,null,null,null,null,null,null,null,null,null,null,null,null,null,null,null,null,{"$f":"ADDRESS(46,17,1,1,$S$1)","v":"'Geographic Diversification'!$Q$46"},"='Schedule IIIA (EBS)'!M16",{"$f":"IF(_xlfn.FORMULATEXT(INDIRECT(S732))=T732,0,1)","v":0}]
[null,null,null,null,null,null,null,null,null,null,null,null,null,null,null,null,null,null,{"$f":"ADDRESS(46,18,1,1,$S$1)","v":"'Geographic Diversification'!$R$46"},"='Schedule IIIA (EBS)'!N16",{"$f":"IF(_xlfn.FORMULATEXT(INDIRECT(S733))=T733,0,1)","v":0}]
[null,null,null,null,null,null,null,null,null,null,null,null,null,null,null,null,null,null,{"$f":"ADDRESS(46,19,1,1,$S$1)","v":"'Geographic Diversification'!$S$46"},"='Schedule IIIA (EBS)'!O16",{"$f":"IF(_xlfn.FORMULATEXT(INDIRECT(S734))=T734,0,1)","v":0}]
[null,null,null,null,null,null,null,null,null,null,null,null,null,null,null,null,null,null,{"$f":"ADDRESS(46,20,1,1,$S$1)","v":"'Geographic Diversification'!$T$46"},"='Schedule IIIA (EBS)'!P16",{"$f":"IF(_xlfn.FORMULATEXT(INDIRECT(S735))=T735,0,1)","v":0}]
[null,null,null,null,null,null,null,null,null,null,null,null,null,null,null,null,null,null,{"$f":"ADDRESS(46,21,1,1,$S$1)","v":"'Geographic Diversification'!$U$46"},"='Schedule IIIA (EBS)'!Q16",{"$f":"IF(_xlfn.FORMULATEXT(INDIRECT(S736))=T736,0,1)","v":0}]
[null,null,null,null,null,null,null,null,null,null,null,null,null,null,null,null,null,null,{"$f":"ADDRESS(46,22,1,1,$S$1)","v":"'Geographic Diversification'!$V$46"},"='Schedule IIIA (EBS)'!R16",{"$f":"IF(_xlfn.FORMULATEXT(INDIRECT(S737))=T737,0,1)","v":0}]
[null,null,null,null,null,null,null,null,null,null,null,null,null,null,null,null,null,null,{"$f":"ADDRESS(46,23,1,1,$S$1)","v":"'Geographic Diversification'!$W$46"},"='Schedule IIIA (EBS)'!S16",{"$f":"IF(_xlfn.FORMULATEXT(INDIRECT(S738))=T738,0,1)","v":0}]
[null,null,null,null,null,null,null,null,null,null,null,null,null,null,null,null,null,null,{"$f":"ADDRESS(46,24,1,1,$S$1)","v":"'Geographic Diversification'!$X$46"},"='Schedule IIIA (EBS)'!T16",{"$f":"IF(_xlfn.FORMULATEXT(INDIRECT(S739))=T739,0,1)","v":0}]
[null,null,null,null,null,null,null,null,null,null,null,null,null,null,null,null,null,null,{"$f":"ADDRESS(46,25,1,1,$S$1)","v":"'Geographic Diversification'!$Y$46"},"='Schedule IIIA (EBS)'!U16",{"$f":"IF(_xlfn.FORMULATEXT(INDIRECT(S740))=T740,0,1)","v":0}]
[null,null,null,null,null,null,null,null,null,null,null,null,null,null,null,null,null,null,{"$f":"ADDRESS(46,26,1,1,$S$1)","v":"'Geographic Diversification'!$Z$46"},"='Schedule IIIA (EBS)'!V16",{"$f":"IF(_xlfn.FORMULATEXT(INDIRECT(S741))=T741,0,1)","v":0}]
[null,null,null,null,null,null,null,null,null,null,null,null,null,null,null,null,null,null,{"$f":"ADDRESS(47,4,1,1,$S$1)","v":"'Geographic Diversification'!$D$47"},"=SUM(I47:Z47)",{"$f":"IF(_xlfn.FORMULATEXT(INDIRECT(S742))=T742,0,1)","v":0}]
[null,null,null,null,null,null,null,null,null,null,null,null,null,null,null,null,null,null,{"$f":"ADDRESS(47,5,1,1,$S$1)","v":"'Geographic Diversification'!$E$47"},"=SUMSQ(I47:Z47)",{"$f":"IF(_xlfn.FORMULATEXT(INDIRECT(S743))=T743,0,1)","v":0}]
[null,null,null,null,null,null,null,null,null,null,null,null,null,null,null,null,null,null,{"$f":"ADDRESS(47,6,1,1,$S$1)","v":"'Geographic Diversification'!$F$47"},"=(IF(D47>0,E47/D47^2,1))",{"$f":"IF(_xlfn.FORMULATEXT(INDIRECT(S744))=T744,0,1)","v":0}]
[null,null,null,null,null,null,null,null,null,null,null,null,null,null,null,null,null,null,{"$f":"ADDRESS(47,7,1,1,$S$1)","v":"'Geographic Diversification'!$G$47"},"=D47*(0.75+0.25*F47)",{"$f":"IF(_xlfn.FORMULATEXT(INDIRECT(S745))=T745,0,1)","v":0}]
[null,null,null,null,null,null,null,null,null,null,null,null,null,null,null,null,null,null,{"$f":"ADDRESS(47,8,1,1,$S$1)","v":"'Geographic Diversification'!$H$47"},"=IF('Schedule IIIA (EBS)'!AB17=\"TRUE\",G47,'Schedule III (EBS)'!F17)",{"$f":"IF(_xlfn.FORMULATEXT(INDIRECT(S746))=T746,0,1)","v":0}]
[null,null,null,null,null,null,null,null,null,null,null,null,null,null,null,null,null,null,{"$f":"ADDRESS(47,9,1,1,$S$1)","v":"'Geographic Diversification'!$I$47"},"='Schedule IIIA (EBS)'!E17",{"$f":"IF(_xlfn.FORMULATEXT(INDIRECT(S747))=T747,0,1)","v":0}]
[null,null,null,null,null,null,null,null,null,null,null,null,null,null,null,null,null,null,{"$f":"ADDRESS(47,10,1,1,$S$1)","v":"'Geographic Diversification'!$J$47"},"='Schedule IIIA (EBS)'!F17",{"$f":"IF(_xlfn.FORMULATEXT(INDIRECT(S748))=T748,0,1)","v":0}]
[null,null,null,null,null,null,null,null,null,null,null,null,null,null,null,null,null,null,{"$f":"ADDRESS(47,11,1,1,$S$1)","v":"'Geographic Diversification'!$K$47"},"='Schedule IIIA (EBS)'!G17",{"$f":"IF(_xlfn.FORMULATEXT(INDIRECT(S749))=T749,0,1)","v":0}]
[null,null,null,null,null,null,null,null,null,null,null,null,null,null,null,null,null,null,{"$f":"ADDRESS(47,12,1,1,$S$1)","v":"'Geographic Diversification'!$L$47"},"='Schedule IIIA (EBS)'!H17",{"$f":"IF(_xlfn.FORMULATEXT(INDIRECT(S750))=T750,0,1)","v":0}]
[null,null,null,null,null,null,null,null,null,null,null,null,null,null,null,null,null,null,{"$f":"ADDRESS(47,13,1,1,$S$1)","v":"'Geographic Diversification'!$M$47"},"='Schedule IIIA (EBS)'!I17",{"$f":"IF(_xlfn.FORMULATEXT(INDIRECT(S751))=T751,0,1)","v":0}]
[null,null,null,null,null,null,null,null,null,null,null,null,null,null,null,null,null,null,{"$f":"ADDRESS(47,14,1,1,$S$1)","v":"'Geographic Diversification'!$N$47"},"='Schedule IIIA (EBS)'!J17",{"$f":"IF(_xlfn.FORMULATEXT(INDIRECT(S752))=T752,0,1)","v":0}]
[null,null,null,null,null,null,null,null,null,null,null,null,null,null,null,null,null,null,{"$f":"ADDRESS(47,15,1,1,$S$1)","v":"'Geographic Diversification'!$O$47"},"='Schedule IIIA (EBS)'!K17",{"$f":"IF(_xlfn.FORMULATEXT(INDIRECT(S753))=T753,0,1)","v":0}]
[null,null,null,null,null,null,null,null,null,null,null,null,null,null,null,null,null,null,{"$f":"ADDRESS(47,16,1,1,$S$1)","v":"'Geographic Diversification'!$P$47"},"='Schedule IIIA (EBS)'!L17",{"$f":"IF(_xlfn.FORMULATEXT(INDIRECT(S754))=T754,0,1)","v":0}]
[null,null,null,null,null,null,null,null,null,null,null,null,null,null,null,null,null,null,{"$f":"ADDRESS(47,17,1,1,$S$1)","v":"'Geographic Diversification'!$Q$47"},"='Schedule IIIA (EBS)'!M17",{"$f":"IF(_xlfn.FORMULATEXT(INDIRECT(S755))=T755,0,1)","v":0}]
[null,null,null,null,null,null,null,null,null,null,null,null,null,null,null,null,null,null,{"$f":"ADDRESS(47,18,1,1,$S$1)","v":"'Geographic Diversification'!$R$47"},"='Schedule IIIA (EBS)'!N17",{"$f":"IF(_xlfn.FORMULATEXT(INDIRECT(S756))=T756,0,1)","v":0}]
[null,null,null,null,null,null,null,null,null,null,null,null,null,null,null,null,null,null,{"$f":"ADDRESS(47,19,1,1,$S$1)","v":"'Geographic Diversification'!$S$47"},"='Schedule IIIA (EBS)'!O17",{"$f":"IF(_xlfn.FORMULATEXT(INDIRECT(S757))=T757,0,1)","v":0}]
[null,null,null,null,null,null,null,null,null,null,null,null,null,null,null,null,null,null,{"$f":"ADDRESS(47,20,1,1,$S$1)","v":"'Geographic Diversification'!$T$47"},"='Schedule IIIA (EBS)'!P17",{"$f":"IF(_xlfn.FORMULATEXT(INDIRECT(S758))=T758,0,1)","v":0}]
[null,null,null,null,null,null,null,null,null,null,null,null,null,null,null,null,null,null,{"$f":"ADDRESS(47,21,1,1,$S$1)","v":"'Geographic Diversification'!$U$47"},"='Schedule IIIA (EBS)'!Q17",{"$f":"IF(_xlfn.FORMULATEXT(INDIRECT(S759))=T759,0,1)","v":0}]
[null,null,null,null,null,null,null,null,null,null,null,null,null,null,null,null,null,null,{"$f":"ADDRESS(47,22,1,1,$S$1)","v":"'Geographic Diversification'!$V$47"},"='Schedule IIIA (EBS)'!R17",{"$f":"IF(_xlfn.FORMULATEXT(INDIRECT(S760))=T760,0,1)","v":0}]
[null,null,null,null,null,null,null,null,null,null,null,null,null,null,null,null,null,null,{"$f":"ADDRESS(47,23,1,1,$S$1)","v":"'Geographic Diversification'!$W$47"},"='Schedule IIIA (EBS)'!S17",{"$f":"IF(_xlfn.FORMULATEXT(INDIRECT(S761))=T761,0,1)","v":0}]
[null,null,null,null,null,null,null,null,null,null,null,null,null,null,null,null,null,null,{"$f":"ADDRESS(47,24,1,1,$S$1)","v":"'Geographic Diversification'!$X$47"},"='Schedule IIIA (EBS)'!T17",{"$f":"IF(_xlfn.FORMULATEXT(INDIRECT(S762))=T762,0,1)","v":0}]
[null,null,null,null,null,null,null,null,null,null,null,null,null,null,null,null,null,null,{"$f":"ADDRESS(47,25,1,1,$S$1)","v":"'Geographic Diversification'!$Y$47"},"='Schedule IIIA (EBS)'!U17",{"$f":"IF(_xlfn.FORMULATEXT(INDIRECT(S763))=T763,0,1)","v":0}]
[null,null,null,null,null,null,null,null,null,null,null,null,null,null,null,null,null,null,{"$f":"ADDRESS(47,26,1,1,$S$1)","v":"'Geographic Diversification'!$Z$47"},"='Schedule IIIA (EBS)'!V17",{"$f":"IF(_xlfn.FORMULATEXT(INDIRECT(S764))=T764,0,1)","v":0}]
[null,null,null,null,null,null,null,null,null,null,null,null,null,null,null,null,null,null,{"$f":"ADDRESS(48,4,1,1,$S$1)","v":"'Geographic Diversification'!$D$48"},"=SUM(I48:Z48)",{"$f":"IF(_xlfn.FORMULATEXT(INDIRECT(S765))=T765,0,1)","v":0}]
[null,null,null,null,null,null,null,null,null,null,null,null,null,null,null,null,null,null,{"$f":"ADDRESS(48,5,1,1,$S$1)","v":"'Geographic Diversification'!$E$48"},"=SUMSQ(I48:Z48)",{"$f":"IF(_xlfn.FORMULATEXT(INDIRECT(S766))=T766,0,1)","v":0}]
[null,null,null,null,null,null,null,null,null,null,null,null,null,null,null,null,null,null,{"$f":"ADDRESS(48,6,1,1,$S$1)","v":"'Geographic Diversification'!$F$48"},"=(IF(D48>0,E48/D48^2,1))",{"$f":"IF(_xlfn.FORMULATEXT(INDIRECT(S767))=T767,0,1)","v":0}]
[null,null,null,null,null,null,null,null,null,null,null,null,null,null,null,null,null,null,{"$f":"ADDRESS(48,7,1,1,$S$1)","v":"'Geographic Diversification'!$G$48"},"=D48*(0.75+0.25*F48)",{"$f":"IF(_xlfn.FORMULATEXT(INDIRECT(S768))=T768,0,1)","v":0}]
[null,null,null,null,null,null,null,null,null,null,null,null,null,null,null,null,null,null,{"$f":"ADDRESS(48,8,1,1,$S$1)","v":"'Geographic Diversification'!$H$48"},"=IF('Schedule IIIA (EBS)'!AB18=\"TRUE\",G48,'Schedule III (EBS)'!F18)",{"$f":"IF(_xlfn.FORMULATEXT(INDIRECT(S769))=T769,0,1)","v":0}]
[null,null,null,null,null,null,null,null,null,null,null,null,null,null,null,null,null,null,{"$f":"ADDRESS(48,9,1,1,$S$1)","v":"'Geographic Diversification'!$I$48"},"='Schedule IIIA (EBS)'!E18",{"$f":"IF(_xlfn.FORMULATEXT(INDIRECT(S770))=T770,0,1)","v":0}]
[null,null,null,null,null,null,null,null,null,null,null,null,null,null,null,null,null,null,{"$f":"ADDRESS(48,10,1,1,$S$1)","v":"'Geographic Diversification'!$J$48"},"='Schedule IIIA (EBS)'!F18",{"$f":"IF(_xlfn.FORMULATEXT(INDIRECT(S771))=T771,0,1)","v":0}]
[null,null,null,null,null,null,null,null,null,null,null,null,null,null,null,null,null,null,{"$f":"ADDRESS(48,11,1,1,$S$1)","v":"'Geographic Diversification'!$K$48"},"='Schedule IIIA (EBS)'!G18",{"$f":"IF(_xlfn.FORMULATEXT(INDIRECT(S772))=T772,0,1)","v":0}]
[null,null,null,null,null,null,null,null,null,null,null,null,null,null,null,null,null,null,{"$f":"ADDRESS(48,12,1,1,$S$1)","v":"'Geographic Diversification'!$L$48"},"='Schedule IIIA (EBS)'!H18",{"$f":"IF(_xlfn.FORMULATEXT(INDIRECT(S773))=T773,0,1)","v":0}]
[null,null,null,null,null,null,null,null,null,null,null,null,null,null,null,null,null,null,{"$f":"ADDRESS(48,13,1,1,$S$1)","v":"'Geographic Diversification'!$M$48"},"='Schedule IIIA (EBS)'!I18",{"$f":"IF(_xlfn.FORMULATEXT(INDIRECT(S774))=T774,0,1)","v":0}]
[null,null,null,null,null,null,null,null,null,null,null,null,null,null,null,null,null,null,{"$f":"ADDRESS(48,14,1,1,$S$1)","v":"'Geographic Diversification'!$N$48"},"='Schedule IIIA (EBS)'!J18",{"$f":"IF(_xlfn.FORMULATEXT(INDIRECT(S775))=T775,0,1)","v":0}]
[null,null,null,null,null,null,null,null,null,null,null,null,null,null,null,null,null,null,{"$f":"ADDRESS(48,15,1,1,$S$1)","v":"'Geographic Diversification'!$O$48"},"='Schedule IIIA (EBS)'!K18",{"$f":"IF(_xlfn.FORMULATEXT(INDIRECT(S776))=T776,0,1)","v":0}]
[null,null,null,null,null,null,null,null,null,null,null,null,null,null,null,null,null,null,{"$f":"ADDRESS(48,16,1,1,$S$1)","v":"'Geographic Diversification'!$P$48"},"='Schedule IIIA (EBS)'!L18",{"$f":"IF(_xlfn.FORMULATEXT(INDIRECT(S777))=T777,0,1)","v":0}]
[null,null,null,null,null,null,null,null,null,null,null,null,null,null,null,null,null,null,{"$f":"ADDRESS(48,17,1,1,$S$1)","v":"'Geographic Diversification'!$Q$48"},"='Schedule IIIA (EBS)'!M18",{"$f":"IF(_xlfn.FORMULATEXT(INDIRECT(S778))=T778,0,1)","v":0}]
[null,null,null,null,null,null,null,null,null,null,null,null,null,null,null,null,null,null,{"$f":"ADDRESS(48,18,1,1,$S$1)","v":"'Geographic Diversification'!$R$48"},"='Schedule IIIA (EBS)'!N18",{"$f":"IF(_xlfn.FORMULATEXT(INDIRECT(S779))=T779,0,1)","v":0}]
[null,null,null,null,null,null,null,null,null,null,null,null,null,null,null,null,null,null,{"$f":"ADDRESS(48,19,1,1,$S$1)","v":"'Geographic Diversification'!$S$48"},"='Schedule IIIA (EBS)'!O18",{"$f":"IF(_xlfn.FORMULATEXT(INDIRECT(S780))=T780,0,1)","v":0}]
[null,null,null,null,null,null,null,null,null,null,null,null,null,null,null,null,null,null,{"$f":"ADDRESS(48,20,1,1,$S$1)","v":"'Geographic Diversification'!$T$48"},"='Schedule IIIA (EBS)'!P18",{"$f":"IF(_xlfn.FORMULATEXT(INDIRECT(S781))=T781,0,1)","v":0}]
[null,null,null,null,null,null,null,null,null,null,null,null,null,null,null,null,null,null,{"$f":"ADDRESS(48,21,1,1,$S$1)","v":"'Geographic Diversification'!$U$48"},"='Schedule IIIA (EBS)'!Q18",{"$f":"IF(_xlfn.FORMULATEXT(INDIRECT(S782))=T782,0,1)","v":0}]
[null,null,null,null,null,null,null,null,null,null,null,null,null,null,null,null,null,null,{"$f":"ADDRESS(48,22,1,1,$S$1)","v":"'Geographic Diversification'!$V$48"},"='Schedule IIIA (EBS)'!R18",{"$f":"IF(_xlfn.FORMULATEXT(INDIRECT(S783))=T783,0,1)","v":0}]
[null,null,null,null,null,null,null,null,null,null,null,null,null,null,null,null,null,null,{"$f":"ADDRESS(48,23,1,1,$S$1)","v":"'Geographic Diversification'!$W$48"},"='Schedule IIIA (EBS)'!S18",{"$f":"IF(_xlfn.FORMULATEXT(INDIRECT(S784))=T784,0,1)","v":0}]
[null,null,null,null,null,null,null,null,null,null,null,null,null,null,null,null,null,null,{"$f":"ADDRESS(48,24,1,1,$S$1)","v":"'Geographic Diversification'!$X$48"},"='Schedule IIIA (EBS)'!T18",{"$f":"IF(_xlfn.FORMULATEXT(INDIRECT(S785))=T785,0,1)","v":0}]
[null,null,null,null,null,null,null,null,null,null,null,null,null,null,null,null,null,null,{"$f":"ADDRESS(48,25,1,1,$S$1)","v":"'Geographic Diversification'!$Y$48"},"='Schedule IIIA (EBS)'!U18",{"$f":"IF(_xlfn.FORMULATEXT(INDIRECT(S786))=T786,0,1)","v":0}]
[null,null,null,null,null,null,null,null,null,null,null,null,null,null,null,null,null,null,{"$f":"ADDRESS(48,26,1,1,$S$1)","v":"'Geographic Diversification'!$Z$48"},"='Schedule IIIA (EBS)'!V18",{"$f":"IF(_xlfn.FORMULATEXT(INDIRECT(S787))=T787,0,1)","v":0}]
[null,null,null,null,null,null,null,null,null,null,null,null,null,null,null,null,null,null,{"$f":"ADDRESS(49,4,1,1,$S$1)","v":"'Geographic Diversification'!$D$49"},"=SUM(I49:Z49)",{"$f":"IF(_xlfn.FORMULATEXT(INDIRECT(S788))=T788,0,1)","v":0}]
[null,null,null,null,null,null,null,null,null,null,null,null,null,null,null,null,null,null,{"$f":"ADDRESS(49,5,1,1,$S$1)","v":"'Geographic Diversification'!$E$49"},"=SUMSQ(I49:Z49)",{"$f":"IF(_xlfn.FORMULATEXT(INDIRECT(S789))=T789,0,1)","v":0}]
[null,null,null,null,null,null,null,null,null,null,null,null,null,null,null,null,null,null,{"$f":"ADDRESS(49,6,1,1,$S$1)","v":"'Geographic Diversification'!$F$49"},"=(IF(D49>0,E49/D49^2,1))",{"$f":"IF(_xlfn.FORMULATEXT(INDIRECT(S790))=T790,0,1)","v":0}]
[null,null,null,null,null,null,null,null,null,null,null,null,null,null,null,null,null,null,{"$f":"ADDRESS(49,7,1,1,$S$1)","v":"'Geographic Diversification'!$G$49"},"=D49*(0.75+0.25*F49)",{"$f":"IF(_xlfn.FORMULATEXT(INDIRECT(S791))=T791,0,1)","v":0}]
[null,null,null,null,null,null,null,null,null,null,null,null,null,null,null,null,null,null,{"$f":"ADDRESS(49,8,1,1,$S$1)","v":"'Geographic Diversification'!$H$49"},"=IF('Schedule IIIA (EBS)'!AB19=\"TRUE\",G49,'Schedule III (EBS)'!F19)",{"$f":"IF(_xlfn.FORMULATEXT(INDIRECT(S792))=T792,0,1)","v":0}]
[null,null,null,null,null,null,null,null,null,null,null,null,null,null,null,null,null,null,{"$f":"ADDRESS(49,9,1,1,$S$1)","v":"'Geographic Diversification'!$I$49"},"='Schedule IIIA (EBS)'!E19",{"$f":"IF(_xlfn.FORMULATEXT(INDIRECT(S793))=T793,0,1)","v":0}]
[null,null,null,null,null,null,null,null,null,null,null,null,null,null,null,null,null,null,{"$f":"ADDRESS(49,10,1,1,$S$1)","v":"'Geographic Diversification'!$J$49"},"='Schedule IIIA (EBS)'!F19",{"$f":"IF(_xlfn.FORMULATEXT(INDIRECT(S794))=T794,0,1)","v":0}]
[null,null,null,null,null,null,null,null,null,null,null,null,null,null,null,null,null,null,{"$f":"ADDRESS(49,11,1,1,$S$1)","v":"'Geographic Diversification'!$K$49"},"='Schedule IIIA (EBS)'!G19",{"$f":"IF(_xlfn.FORMULATEXT(INDIRECT(S795))=T795,0,1)","v":0}]
[null,null,null,null,null,null,null,null,null,null,null,null,null,null,null,null,null,null,{"$f":"ADDRESS(49,12,1,1,$S$1)","v":"'Geographic Diversification'!$L$49"},"='Schedule IIIA (EBS)'!H19",{"$f":"IF(_xlfn.FORMULATEXT(INDIRECT(S796))=T796,0,1)","v":0}]
[null,null,null,null,null,null,null,null,null,null,null,null,null,null,null,null,null,null,{"$f":"ADDRESS(49,13,1,1,$S$1)","v":"'Geographic Diversification'!$M$49"},"='Schedule IIIA (EBS)'!I19",{"$f":"IF(_xlfn.FORMULATEXT(INDIRECT(S797))=T797,0,1)","v":0}]
[null,null,null,null,null,null,null,null,null,null,null,null,null,null,null,null,null,null,{"$f":"ADDRESS(49,14,1,1,$S$1)","v":"'Geographic Diversification'!$N$49"},"='Schedule IIIA (EBS)'!J19",{"$f":"IF(_xlfn.FORMULATEXT(INDIRECT(S798))=T798,0,1)","v":0}]
[null,null,null,null,null,null,null,null,null,null,null,null,null,null,null,null,null,null,{"$f":"ADDRESS(49,15,1,1,$S$1)","v":"'Geographic Diversification'!$O$49"},"='Schedule IIIA (EBS)'!K19",{"$f":"IF(_xlfn.FORMULATEXT(INDIRECT(S799))=T799,0,1)","v":0}]
[null,null,null,null,null,null,null,null,null,null,null,null,null,null,null,null,null,null,{"$f":"ADDRESS(49,16,1,1,$S$1)","v":"'Geographic Diversification'!$P$49"},"='Schedule IIIA (EBS)'!L19",{"$f":"IF(_xlfn.FORMULATEXT(INDIRECT(S800))=T800,0,1)","v":0}]
[null,null,null,null,null,null,null,null,null,null,null,null,null,null,null,null,null,null,{"$f":"ADDRESS(49,17,1,1,$S$1)","v":"'Geographic Diversification'!$Q$49"},"='Schedule IIIA (EBS)'!M19",{"$f":"IF(_xlfn.FORMULATEXT(INDIRECT(S801))=T801,0,1)","v":0}]
[null,null,null,null,null,null,null,null,null,null,null,null,null,null,null,null,null,null,{"$f":"ADDRESS(49,18,1,1,$S$1)","v":"'Geographic Diversification'!$R$49"},"='Schedule IIIA (EBS)'!N19",{"$f":"IF(_xlfn.FORMULATEXT(INDIRECT(S802))=T802,0,1)","v":0}]
[null,null,null,null,null,null,null,null,null,null,null,null,null,null,null,null,null,null,{"$f":"ADDRESS(49,19,1,1,$S$1)","v":"'Geographic Diversification'!$S$49"},"='Schedule IIIA (EBS)'!O19",{"$f":"IF(_xlfn.FORMULATEXT(INDIRECT(S803))=T803,0,1)","v":0}]
[null,null,null,null,null,null,null,null,null,null,null,null,null,null,null,null,null,null,{"$f":"ADDRESS(49,20,1,1,$S$1)","v":"'Geographic Diversification'!$T$49"},"='Schedule IIIA (EBS)'!P19",{"$f":"IF(_xlfn.FORMULATEXT(INDIRECT(S804))=T804,0,1)","v":0}]
[null,null,null,null,null,null,null,null,null,null,null,null,null,null,null,null,null,null,{"$f":"ADDRESS(49,21,1,1,$S$1)","v":"'Geographic Diversification'!$U$49"},"='Schedule IIIA (EBS)'!Q19",{"$f":"IF(_xlfn.FORMULATEXT(INDIRECT(S805))=T805,0,1)","v":0}]
[null,null,null,null,null,null,null,null,null,null,null,null,null,null,null,null,null,null,{"$f":"ADDRESS(49,22,1,1,$S$1)","v":"'Geographic Diversification'!$V$49"},"='Schedule IIIA (EBS)'!R19",{"$f":"IF(_xlfn.FORMULATEXT(INDIRECT(S806))=T806,0,1)","v":0}]
[null,null,null,null,null,null,null,null,null,null,null,null,null,null,null,null,null,null,{"$f":"ADDRESS(49,23,1,1,$S$1)","v":"'Geographic Diversification'!$W$49"},"='Schedule IIIA (EBS)'!S19",{"$f":"IF(_xlfn.FORMULATEXT(INDIRECT(S807))=T807,0,1)","v":0}]
[null,null,null,null,null,null,null,null,null,null,null,null,null,null,null,null,null,null,{"$f":"ADDRESS(49,24,1,1,$S$1)","v":"'Geographic Diversification'!$X$49"},"='Schedule IIIA (EBS)'!T19",{"$f":"IF(_xlfn.FORMULATEXT(INDIRECT(S808))=T808,0,1)","v":0}]
[null,null,null,null,null,null,null,null,null,null,null,null,null,null,null,null,null,null,{"$f":"ADDRESS(49,25,1,1,$S$1)","v":"'Geographic Diversification'!$Y$49"},"='Schedule IIIA (EBS)'!U19",{"$f":"IF(_xlfn.FORMULATEXT(INDIRECT(S809))=T809,0,1)","v":0}]
[null,null,null,null,null,null,null,null,null,null,null,null,null,null,null,null,null,null,{"$f":"ADDRESS(49,26,1,1,$S$1)","v":"'Geographic Diversification'!$Z$49"},"='Schedule IIIA (EBS)'!V19",{"$f":"IF(_xlfn.FORMULATEXT(INDIRECT(S810))=T810,0,1)","v":0}]
[null,null,null,null,null,null,null,null,null,null,null,null,null,null,null,null,null,null,{"$f":"ADDRESS(50,4,1,1,$S$1)","v":"'Geographic Diversification'!$D$50"},"=SUM(I50:Z50)",{"$f":"IF(_xlfn.FORMULATEXT(INDIRECT(S811))=T811,0,1)","v":0}]
[null,null,null,null,null,null,null,null,null,null,null,null,null,null,null,null,null,null,{"$f":"ADDRESS(50,5,1,1,$S$1)","v":"'Geographic Diversification'!$E$50"},"=SUMSQ(I50:Z50)",{"$f":"IF(_xlfn.FORMULATEXT(INDIRECT(S812))=T812,0,1)","v":0}]
[null,null,null,null,null,null,null,null,null,null,null,null,null,null,null,null,null,null,{"$f":"ADDRESS(50,6,1,1,$S$1)","v":"'Geographic Diversification'!$F$50"},"=(IF(D50>0,E50/D50^2,1))",{"$f":"IF(_xlfn.FORMULATEXT(INDIRECT(S813))=T813,0,1)","v":0}]
[null,null,null,null,null,null,null,null,null,null,null,null,null,null,null,null,null,null,{"$f":"ADDRESS(50,7,1,1,$S$1)","v":"'Geographic Diversification'!$G$50"},"=D50*(0.75+0.25*F50)",{"$f":"IF(_xlfn.FORMULATEXT(INDIRECT(S814))=T814,0,1)","v":0}]
[null,null,null,null,null,null,null,null,null,null,null,null,null,null,null,null,null,null,{"$f":"ADDRESS(50,8,1,1,$S$1)","v":"'Geographic Diversification'!$H$50"},"=IF('Schedule IIIA (EBS)'!AB20=\"TRUE\",G50,'Schedule III (EBS)'!F20)",{"$f":"IF(_xlfn.FORMULATEXT(INDIRECT(S815))=T815,0,1)","v":0}]
[null,null,null,null,null,null,null,null,null,null,null,null,null,null,null,null,null,null,{"$f":"ADDRESS(50,9,1,1,$S$1)","v":"'Geographic Diversification'!$I$50"},"='Schedule IIIA (EBS)'!E20",{"$f":"IF(_xlfn.FORMULATEXT(INDIRECT(S816))=T816,0,1)","v":0}]
[null,null,null,null,null,null,null,null,null,null,null,null,null,null,null,null,null,null,{"$f":"ADDRESS(50,10,1,1,$S$1)","v":"'Geographic Diversification'!$J$50"},"='Schedule IIIA (EBS)'!F20",{"$f":"IF(_xlfn.FORMULATEXT(INDIRECT(S817))=T817,0,1)","v":0}]
[null,null,null,null,null,null,null,null,null,null,null,null,null,null,null,null,null,null,{"$f":"ADDRESS(50,11,1,1,$S$1)","v":"'Geographic Diversification'!$K$50"},"='Schedule IIIA (EBS)'!G20",{"$f":"IF(_xlfn.FORMULATEXT(INDIRECT(S818))=T818,0,1)","v":0}]
[null,null,null,null,null,null,null,null,null,null,null,null,null,null,null,null,null,null,{"$f":"ADDRESS(50,12,1,1,$S$1)","v":"'Geographic Diversification'!$L$50"},"='Schedule IIIA (EBS)'!H20",{"$f":"IF(_xlfn.FORMULATEXT(INDIRECT(S819))=T819,0,1)","v":0}]
[null,null,null,null,null,null,null,null,null,null,null,null,null,null,null,null,null,null,{"$f":"ADDRESS(50,13,1,1,$S$1)","v":"'Geographic Diversification'!$M$50"},"='Schedule IIIA (EBS)'!I20",{"$f":"IF(_xlfn.FORMULATEXT(INDIRECT(S820))=T820,0,1)","v":0}]
[null,null,null,null,null,null,null,null,null,null,null,null,null,null,null,null,null,null,{"$f":"ADDRESS(50,14,1,1,$S$1)","v":"'Geographic Diversification'!$N$50"},"='Schedule IIIA (EBS)'!J20",{"$f":"IF(_xlfn.FORMULATEXT(INDIRECT(S821))=T821,0,1)","v":0}]
[null,null,null,null,null,null,null,null,null,null,null,null,null,null,null,null,null,null,{"$f":"ADDRESS(50,15,1,1,$S$1)","v":"'Geographic Diversification'!$O$50"},"='Schedule IIIA (EBS)'!K20",{"$f":"IF(_xlfn.FORMULATEXT(INDIRECT(S822))=T822,0,1)","v":0}]
[null,null,null,null,null,null,null,null,null,null,null,null,null,null,null,null,null,null,{"$f":"ADDRESS(50,16,1,1,$S$1)","v":"'Geographic Diversification'!$P$50"},"='Schedule IIIA (EBS)'!L20",{"$f":"IF(_xlfn.FORMULATEXT(INDIRECT(S823))=T823,0,1)","v":0}]
[null,null,null,null,null,null,null,null,null,null,null,null,null,null,null,null,null,null,{"$f":"ADDRESS(50,17,1,1,$S$1)","v":"'Geographic Diversification'!$Q$50"},"='Schedule IIIA (EBS)'!M20",{"$f":"IF(_xlfn.FORMULATEXT(INDIRECT(S824))=T824,0,1)","v":0}]
[null,null,null,null,null,null,null,null,null,null,null,null,null,null,null,null,null,null,{"$f":"ADDRESS(50,18,1,1,$S$1)","v":"'Geographic Diversification'!$R$50"},"='Schedule IIIA (EBS)'!N20",{"$f":"IF(_xlfn.FORMULATEXT(INDIRECT(S825))=T825,0,1)","v":0}]
[null,null,null,null,null,null,null,null,null,null,null,null,null,null,null,null,null,null,{"$f":"ADDRESS(50,19,1,1,$S$1)","v":"'Geographic Diversification'!$S$50"},"='Schedule IIIA (EBS)'!O20",{"$f":"IF(_xlfn.FORMULATEXT(INDIRECT(S826))=T826,0,1)","v":0}]
[null,null,null,null,null,null,null,null,null,null,null,null,null,null,null,null,null,null,{"$f":"ADDRESS(50,20,1,1,$S$1)","v":"'Geographic Diversification'!$T$50"},"='Schedule IIIA (EBS)'!P20",{"$f":"IF(_xlfn.FORMULATEXT(INDIRECT(S827))=T827,0,1)","v":0}]
[null,null,null,null,null,null,null,null,null,null,null,null,null,null,null,null,null,null,{"$f":"ADDRESS(50,21,1,1,$S$1)","v":"'Geographic Diversification'!$U$50"},"='Schedule IIIA (EBS)'!Q20",{"$f":"IF(_xlfn.FORMULATEXT(INDIRECT(S828))=T828,0,1)","v":0}]
[null,null,null,null,null,null,null,null,null,null,null,null,null,null,null,null,null,null,{"$f":"ADDRESS(50,22,1,1,$S$1)","v":"'Geographic Diversification'!$V$50"},"='Schedule IIIA (EBS)'!R20",{"$f":"IF(_xlfn.FORMULATEXT(INDIRECT(S829))=T829,0,1)","v":0}]
[null,null,null,null,null,null,null,null,null,null,null,null,null,null,null,null,null,null,{"$f":"ADDRESS(50,23,1,1,$S$1)","v":"'Geographic Diversification'!$W$50"},"='Schedule IIIA (EBS)'!S20",{"$f":"IF(_xlfn.FORMULATEXT(INDIRECT(S830))=T830,0,1)","v":0}]
[null,null,null,null,null,null,null,null,null,null,null,null,null,null,null,null,null,null,{"$f":"ADDRESS(50,24,1,1,$S$1)","v":"'Geographic Diversification'!$X$50"},"='Schedule IIIA (EBS)'!T20",{"$f":"IF(_xlfn.FORMULATEXT(INDIRECT(S831))=T831,0,1)","v":0}]
[null,null,null,null,null,null,null,null,null,null,null,null,null,null,null,null,null,null,{"$f":"ADDRESS(50,25,1,1,$S$1)","v":"'Geographic Diversification'!$Y$50"},"='Schedule IIIA (EBS)'!U20",{"$f":"IF(_xlfn.FORMULATEXT(INDIRECT(S832))=T832,0,1)","v":0}]
[null,null,null,null,null,null,null,null,null,null,null,null,null,null,null,null,null,null,{"$f":"ADDRESS(50,26,1,1,$S$1)","v":"'Geographic Diversification'!$Z$50"},"='Schedule IIIA (EBS)'!V20",{"$f":"IF(_xlfn.FORMULATEXT(INDIRECT(S833))=T833,0,1)","v":0}]
[null,null,null,null,null,null,null,null,null,null,null,null,null,null,null,null,null,null,{"$f":"ADDRESS(51,4,1,1,$S$1)","v":"'Geographic Diversification'!$D$51"},"=SUM(I51:Z51)",{"$f":"IF(_xlfn.FORMULATEXT(INDIRECT(S834))=T834,0,1)","v":0}]
[null,null,null,null,null,null,null,null,null,null,null,null,null,null,null,null,null,null,{"$f":"ADDRESS(51,5,1,1,$S$1)","v":"'Geographic Diversification'!$E$51"},"=SUMSQ(I51:Z51)",{"$f":"IF(_xlfn.FORMULATEXT(INDIRECT(S835))=T835,0,1)","v":0}]
[null,null,null,null,null,null,null,null,null,null,null,null,null,null,null,null,null,null,{"$f":"ADDRESS(51,6,1,1,$S$1)","v":"'Geographic Diversification'!$F$51"},"=(IF(D51>0,E51/D51^2,1))",{"$f":"IF(_xlfn.FORMULATEXT(INDIRECT(S836))=T836,0,1)","v":0}]
[null,null,null,null,null,null,null,null,null,null,null,null,null,null,null,null,null,null,{"$f":"ADDRESS(51,7,1,1,$S$1)","v":"'Geographic Diversification'!$G$51"},"=D51*(0.75+0.25*F51)",{"$f":"IF(_xlfn.FORMULATEXT(INDIRECT(S837))=T837,0,1)","v":0}]
[null,null,null,null,null,null,null,null,null,null,null,null,null,null,null,null,null,null,{"$f":"ADDRESS(51,8,1,1,$S$1)","v":"'Geographic Diversification'!$H$51"},"=IF('Schedule IIIA (EBS)'!AB21=\"TRUE\",G51,'Schedule III (EBS)'!F21)",{"$f":"IF(_xlfn.FORMULATEXT(INDIRECT(S838))=T838,0,1)","v":0}]
[null,null,null,null,null,null,null,null,null,null,null,null,null,null,null,null,null,null,{"$f":"ADDRESS(51,9,1,1,$S$1)","v":"'Geographic Diversification'!$I$51"},"='Schedule IIIA (EBS)'!E21",{"$f":"IF(_xlfn.FORMULATEXT(INDIRECT(S839))=T839,0,1)","v":0}]
[null,null,null,null,null,null,null,null,null,null,null,null,null,null,null,null,null,null,{"$f":"ADDRESS(51,10,1,1,$S$1)","v":"'Geographic Diversification'!$J$51"},"='Schedule IIIA (EBS)'!F21",{"$f":"IF(_xlfn.FORMULATEXT(INDIRECT(S840))=T840,0,1)","v":0}]
[null,null,null,null,null,null,null,null,null,null,null,null,null,null,null,null,null,null,{"$f":"ADDRESS(51,11,1,1,$S$1)","v":"'Geographic Diversification'!$K$51"},"='Schedule IIIA (EBS)'!G21",{"$f":"IF(_xlfn.FORMULATEXT(INDIRECT(S841))=T841,0,1)","v":0}]
[null,null,null,null,null,null,null,null,null,null,null,null,null,null,null,null,null,null,{"$f":"ADDRESS(51,12,1,1,$S$1)","v":"'Geographic Diversification'!$L$51"},"='Schedule IIIA (EBS)'!H21",{"$f":"IF(_xlfn.FORMULATEXT(INDIRECT(S842))=T842,0,1)","v":0}]
[null,null,null,null,null,null,null,null,null,null,null,null,null,null,null,null,null,null,{"$f":"ADDRESS(51,13,1,1,$S$1)","v":"'Geographic Diversification'!$M$51"},"='Schedule IIIA (EBS)'!I21",{"$f":"IF(_xlfn.FORMULATEXT(INDIRECT(S843))=T843,0,1)","v":0}]
[null,null,null,null,null,null,null,null,null,null,null,null,null,null,null,null,null,null,{"$f":"ADDRESS(51,14,1,1,$S$1)","v":"'Geographic Diversification'!$N$51"},"='Schedule IIIA (EBS)'!J21",{"$f":"IF(_xlfn.FORMULATEXT(INDIRECT(S844))=T844,0,1)","v":0}]
[null,null,null,null,null,null,null,null,null,null,null,null,null,null,null,null,null,null,{"$f":"ADDRESS(51,15,1,1,$S$1)","v":"'Geographic Diversification'!$O$51"},"='Schedule IIIA (EBS)'!K21",{"$f":"IF(_xlfn.FORMULATEXT(INDIRECT(S845))=T845,0,1)","v":0}]
[null,null,null,null,null,null,null,null,null,null,null,null,null,null,null,null,null,null,{"$f":"ADDRESS(51,16,1,1,$S$1)","v":"'Geographic Diversification'!$P$51"},"='Schedule IIIA (EBS)'!L21",{"$f":"IF(_xlfn.FORMULATEXT(INDIRECT(S846))=T846,0,1)","v":0}]
[null,null,null,null,null,null,null,null,null,null,null,null,null,null,null,null,null,null,{"$f":"ADDRESS(51,17,1,1,$S$1)","v":"'Geographic Diversification'!$Q$51"},"='Schedule IIIA (EBS)'!M21",{"$f":"IF(_xlfn.FORMULATEXT(INDIRECT(S847))=T847,0,1)","v":0}]
[null,null,null,null,null,null,null,null,null,null,null,null,null,null,null,null,null,null,{"$f":"ADDRESS(51,18,1,1,$S$1)","v":"'Geographic Diversification'!$R$51"},"='Schedule IIIA (EBS)'!N21",{"$f":"IF(_xlfn.FORMULATEXT(INDIRECT(S848))=T848,0,1)","v":0}]
[null,null,null,null,null,null,null,null,null,null,null,null,null,null,null,null,null,null,{"$f":"ADDRESS(51,19,1,1,$S$1)","v":"'Geographic Diversification'!$S$51"},"='Schedule IIIA (EBS)'!O21",{"$f":"IF(_xlfn.FORMULATEXT(INDIRECT(S849))=T849,0,1)","v":0}]
[null,null,null,null,null,null,null,null,null,null,null,null,null,null,null,null,null,null,{"$f":"ADDRESS(51,20,1,1,$S$1)","v":"'Geographic Diversification'!$T$51"},"='Schedule IIIA (EBS)'!P21",{"$f":"IF(_xlfn.FORMULATEXT(INDIRECT(S850))=T850,0,1)","v":0}]
[null,null,null,null,null,null,null,null,null,null,null,null,null,null,null,null,null,null,{"$f":"ADDRESS(51,21,1,1,$S$1)","v":"'Geographic Diversification'!$U$51"},"='Schedule IIIA (EBS)'!Q21",{"$f":"IF(_xlfn.FORMULATEXT(INDIRECT(S851))=T851,0,1)","v":0}]
[null,null,null,null,null,null,null,null,null,null,null,null,null,null,null,null,null,null,{"$f":"ADDRESS(51,22,1,1,$S$1)","v":"'Geographic Diversification'!$V$51"},"='Schedule IIIA (EBS)'!R21",{"$f":"IF(_xlfn.FORMULATEXT(INDIRECT(S852))=T852,0,1)","v":0}]
[null,null,null,null,null,null,null,null,null,null,null,null,null,null,null,null,null,null,{"$f":"ADDRESS(51,23,1,1,$S$1)","v":"'Geographic Diversification'!$W$51"},"='Schedule IIIA (EBS)'!S21",{"$f":"IF(_xlfn.FORMULATEXT(INDIRECT(S853))=T853,0,1)","v":0}]
[null,null,null,null,null,null,null,null,null,null,null,null,null,null,null,null,null,null,{"$f":"ADDRESS(51,24,1,1,$S$1)","v":"'Geographic Diversification'!$X$51"},"='Schedule IIIA (EBS)'!T21",{"$f":"IF(_xlfn.FORMULATEXT(INDIRECT(S854))=T854,0,1)","v":0}]
[null,null,null,null,null,null,null,null,null,null,null,null,null,null,null,null,null,null,{"$f":"ADDRESS(51,25,1,1,$S$1)","v":"'Geographic Diversification'!$Y$51"},"='Schedule IIIA (EBS)'!U21",{"$f":"IF(_xlfn.FORMULATEXT(INDIRECT(S855))=T855,0,1)","v":0}]
[null,null,null,null,null,null,null,null,null,null,null,null,null,null,null,null,null,null,{"$f":"ADDRESS(51,26,1,1,$S$1)","v":"'Geographic Diversification'!$Z$51"},"='Schedule IIIA (EBS)'!V21",{"$f":"IF(_xlfn.FORMULATEXT(INDIRECT(S856))=T856,0,1)","v":0}]
[null,null,null,null,null,null,null,null,null,null,null,null,null,null,null,null,null,null,{"$f":"ADDRESS(52,4,1,1,$S$1)","v":"'Geographic Diversification'!$D$52"},"=SUM(I52:Z52)",{"$f":"IF(_xlfn.FORMULATEXT(INDIRECT(S857))=T857,0,1)","v":0}]
[null,null,null,null,null,null,null,null,null,null,null,null,null,null,null,null,null,null,{"$f":"ADDRESS(52,5,1,1,$S$1)","v":"'Geographic Diversification'!$E$52"},"=SUMSQ(I52:Z52)",{"$f":"IF(_xlfn.FORMULATEXT(INDIRECT(S858))=T858,0,1)","v":0}]
[null,null,null,null,null,null,null,null,null,null,null,null,null,null,null,null,null,null,{"$f":"ADDRESS(52,6,1,1,$S$1)","v":"'Geographic Diversification'!$F$52"},"=(IF(D52>0,E52/D52^2,1))",{"$f":"IF(_xlfn.FORMULATEXT(INDIRECT(S859))=T859,0,1)","v":0}]
[null,null,null,null,null,null,null,null,null,null,null,null,null,null,null,null,null,null,{"$f":"ADDRESS(52,7,1,1,$S$1)","v":"'Geographic Diversification'!$G$52"},"=D52*(0.75+0.25*F52)",{"$f":"IF(_xlfn.FORMULATEXT(INDIRECT(S860))=T860,0,1)","v":0}]
[null,null,null,null,null,null,null,null,null,null,null,null,null,null,null,null,null,null,{"$f":"ADDRESS(52,8,1,1,$S$1)","v":"'Geographic Diversification'!$H$52"},"=IF('Schedule IIIA (EBS)'!AB22=\"TRUE\",G52,'Schedule III (EBS)'!F22)",{"$f":"IF(_xlfn.FORMULATEXT(INDIRECT(S861))=T861,0,1)","v":0}]
[null,null,null,null,null,null,null,null,null,null,null,null,null,null,null,null,null,null,{"$f":"ADDRESS(52,9,1,1,$S$1)","v":"'Geographic Diversification'!$I$52"},"='Schedule IIIA (EBS)'!E22",{"$f":"IF(_xlfn.FORMULATEXT(INDIRECT(S862))=T862,0,1)","v":0}]
[null,null,null,null,null,null,null,null,null,null,null,null,null,null,null,null,null,null,{"$f":"ADDRESS(52,10,1,1,$S$1)","v":"'Geographic Diversification'!$J$52"},"='Schedule IIIA (EBS)'!F22",{"$f":"IF(_xlfn.FORMULATEXT(INDIRECT(S863))=T863,0,1)","v":0}]
[null,null,null,null,null,null,null,null,null,null,null,null,null,null,null,null,null,null,{"$f":"ADDRESS(52,11,1,1,$S$1)","v":"'Geographic Diversification'!$K$52"},"='Schedule IIIA (EBS)'!G22",{"$f":"IF(_xlfn.FORMULATEXT(INDIRECT(S864))=T864,0,1)","v":0}]
[null,null,null,null,null,null,null,null,null,null,null,null,null,null,null,null,null,null,{"$f":"ADDRESS(52,12,1,1,$S$1)","v":"'Geographic Diversification'!$L$52"},"='Schedule IIIA (EBS)'!H22",{"$f":"IF(_xlfn.FORMULATEXT(INDIRECT(S865))=T865,0,1)","v":0}]
[null,null,null,null,null,null,null,null,null,null,null,null,null,null,null,null,null,null,{"$f":"ADDRESS(52,13,1,1,$S$1)","v":"'Geographic Diversification'!$M$52"},"='Schedule IIIA (EBS)'!I22",{"$f":"IF(_xlfn.FORMULATEXT(INDIRECT(S866))=T866,0,1)","v":0}]
[null,null,null,null,null,null,null,null,null,null,null,null,null,null,null,null,null,null,{"$f":"ADDRESS(52,14,1,1,$S$1)","v":"'Geographic Diversification'!$N$52"},"='Schedule IIIA (EBS)'!J22",{"$f":"IF(_xlfn.FORMULATEXT(INDIRECT(S867))=T867,0,1)","v":0}]
[null,null,null,null,null,null,null,null,null,null,null,null,null,null,null,null,null,null,{"$f":"ADDRESS(52,15,1,1,$S$1)","v":"'Geographic Diversification'!$O$52"},"='Schedule IIIA (EBS)'!K22",{"$f":"IF(_xlfn.FORMULATEXT(INDIRECT(S868))=T868,0,1)","v":0}]
[null,null,null,null,null,null,null,null,null,null,null,null,null,null,null,null,null,null,{"$f":"ADDRESS(52,16,1,1,$S$1)","v":"'Geographic Diversification'!$P$52"},"='Schedule IIIA (EBS)'!L22",{"$f":"IF(_xlfn.FORMULATEXT(INDIRECT(S869))=T869,0,1)","v":0}]
[null,null,null,null,null,null,null,null,null,null,null,null,null,null,null,null,null,null,{"$f":"ADDRESS(52,17,1,1,$S$1)","v":"'Geographic Diversification'!$Q$52"},"='Schedule IIIA (EBS)'!M22",{"$f":"IF(_xlfn.FORMULATEXT(INDIRECT(S870))=T870,0,1)","v":0}]
[null,null,null,null,null,null,null,null,null,null,null,null,null,null,null,null,null,null,{"$f":"ADDRESS(52,18,1,1,$S$1)","v":"'Geographic Diversification'!$R$52"},"='Schedule IIIA (EBS)'!N22",{"$f":"IF(_xlfn.FORMULATEXT(INDIRECT(S871))=T871,0,1)","v":0}]
[null,null,null,null,null,null,null,null,null,null,null,null,null,null,null,null,null,null,{"$f":"ADDRESS(52,19,1,1,$S$1)","v":"'Geographic Diversification'!$S$52"},"='Schedule IIIA (EBS)'!O22",{"$f":"IF(_xlfn.FORMULATEXT(INDIRECT(S872))=T872,0,1)","v":0}]
[null,null,null,null,null,null,null,null,null,null,null,null,null,null,null,null,null,null,{"$f":"ADDRESS(52,20,1,1,$S$1)","v":"'Geographic Diversification'!$T$52"},"='Schedule IIIA (EBS)'!P22",{"$f":"IF(_xlfn.FORMULATEXT(INDIRECT(S873))=T873,0,1)","v":0}]
[null,null,null,null,null,null,null,null,null,null,null,null,null,null,null,null,null,null,{"$f":"ADDRESS(52,21,1,1,$S$1)","v":"'Geographic Diversification'!$U$52"},"='Schedule IIIA (EBS)'!Q22",{"$f":"IF(_xlfn.FORMULATEXT(INDIRECT(S874))=T874,0,1)","v":0}]
[null,null,null,null,null,null,null,null,null,null,null,null,null,null,null,null,null,null,{"$f":"ADDRESS(52,22,1,1,$S$1)","v":"'Geographic Diversification'!$V$52"},"='Schedule IIIA (EBS)'!R22",{"$f":"IF(_xlfn.FORMULATEXT(INDIRECT(S875))=T875,0,1)","v":0}]
[null,null,null,null,null,null,null,null,null,null,null,null,null,null,null,null,null,null,{"$f":"ADDRESS(52,23,1,1,$S$1)","v":"'Geographic Diversification'!$W$52"},"='Schedule IIIA (EBS)'!S22",{"$f":"IF(_xlfn.FORMULATEXT(INDIRECT(S876))=T876,0,1)","v":0}]
[null,null,null,null,null,null,null,null,null,null,null,null,null,null,null,null,null,null,{"$f":"ADDRESS(52,24,1,1,$S$1)","v":"'Geographic Diversification'!$X$52"},"='Schedule IIIA (EBS)'!T22",{"$f":"IF(_xlfn.FORMULATEXT(INDIRECT(S877))=T877,0,1)","v":0}]
[null,null,null,null,null,null,null,null,null,null,null,null,null,null,null,null,null,null,{"$f":"ADDRESS(52,25,1,1,$S$1)","v":"'Geographic Diversification'!$Y$52"},"='Schedule IIIA (EBS)'!U22",{"$f":"IF(_xlfn.FORMULATEXT(INDIRECT(S878))=T878,0,1)","v":0}]
[null,null,null,null,null,null,null,null,null,null,null,null,null,null,null,null,null,null,{"$f":"ADDRESS(52,26,1,1,$S$1)","v":"'Geographic Diversification'!$Z$52"},"='Schedule IIIA (EBS)'!V22",{"$f":"IF(_xlfn.FORMULATEXT(INDIRECT(S879))=T879,0,1)","v":0}]
[null,null,null,null,null,null,null,null,null,null,null,null,null,null,null,null,null,null,{"$f":"ADDRESS(53,4,1,1,$S$1)","v":"'Geographic Diversification'!$D$53"},"=SUM(I53:Z53)",{"$f":"IF(_xlfn.FORMULATEXT(INDIRECT(S880))=T880,0,1)","v":0}]
[null,null,null,null,null,null,null,null,null,null,null,null,null,null,null,null,null,null,{"$f":"ADDRESS(53,5,1,1,$S$1)","v":"'Geographic Diversification'!$E$53"},"=SUMSQ(I53:Z53)",{"$f":"IF(_xlfn.FORMULATEXT(INDIRECT(S881))=T881,0,1)","v":0}]
[null,null,null,null,null,null,null,null,null,null,null,null,null,null,null,null,null,null,{"$f":"ADDRESS(53,6,1,1,$S$1)","v":"'Geographic Diversification'!$F$53"},"=(IF(D53>0,E53/D53^2,1))",{"$f":"IF(_xlfn.FORMULATEXT(INDIRECT(S882))=T882,0,1)","v":0}]
[null,null,null,null,null,null,null,null,null,null,null,null,null,null,null,null,null,null,{"$f":"ADDRESS(53,7,1,1,$S$1)","v":"'Geographic Diversification'!$G$53"},"=D53*(0.75+0.25*F53)",{"$f":"IF(_xlfn.FORMULATEXT(INDIRECT(S883))=T883,0,1)","v":0}]
[null,null,null,null,null,null,null,null,null,null,null,null,null,null,null,null,null,null,{"$f":"ADDRESS(53,8,1,1,$S$1)","v":"'Geographic Diversification'!$H$53"},"=IF('Schedule IIIA (EBS)'!AB23=\"TRUE\",G53,'Schedule III (EBS)'!F23)",{"$f":"IF(_xlfn.FORMULATEXT(INDIRECT(S884))=T884,0,1)","v":0}]
[null,null,null,null,null,null,null,null,null,null,null,null,null,null,null,null,null,null,{"$f":"ADDRESS(53,9,1,1,$S$1)","v":"'Geographic Diversification'!$I$53"},"='Schedule IIIA (EBS)'!E23",{"$f":"IF(_xlfn.FORMULATEXT(INDIRECT(S885))=T885,0,1)","v":0}]
[null,null,null,null,null,null,null,null,null,null,null,null,null,null,null,null,null,null,{"$f":"ADDRESS(53,10,1,1,$S$1)","v":"'Geographic Diversification'!$J$53"},"='Schedule IIIA (EBS)'!F23",{"$f":"IF(_xlfn.FORMULATEXT(INDIRECT(S886))=T886,0,1)","v":0}]
[null,null,null,null,null,null,null,null,null,null,null,null,null,null,null,null,null,null,{"$f":"ADDRESS(53,11,1,1,$S$1)","v":"'Geographic Diversification'!$K$53"},"='Schedule IIIA (EBS)'!G23",{"$f":"IF(_xlfn.FORMULATEXT(INDIRECT(S887))=T887,0,1)","v":0}]
[null,null,null,null,null,null,null,null,null,null,null,null,null,null,null,null,null,null,{"$f":"ADDRESS(53,12,1,1,$S$1)","v":"'Geographic Diversification'!$L$53"},"='Schedule IIIA (EBS)'!H23",{"$f":"IF(_xlfn.FORMULATEXT(INDIRECT(S888))=T888,0,1)","v":0}]
[null,null,null,null,null,null,null,null,null,null,null,null,null,null,null,null,null,null,{"$f":"ADDRESS(53,13,1,1,$S$1)","v":"'Geographic Diversification'!$M$53"},"='Schedule IIIA (EBS)'!I23",{"$f":"IF(_xlfn.FORMULATEXT(INDIRECT(S889))=T889,0,1)","v":0}]
[null,null,null,null,null,null,null,null,null,null,null,null,null,null,null,null,null,null,{"$f":"ADDRESS(53,14,1,1,$S$1)","v":"'Geographic Diversification'!$N$53"},"='Schedule IIIA (EBS)'!J23",{"$f":"IF(_xlfn.FORMULATEXT(INDIRECT(S890))=T890,0,1)","v":0}]
[null,null,null,null,null,null,null,null,null,null,null,null,null,null,null,null,null,null,{"$f":"ADDRESS(53,15,1,1,$S$1)","v":"'Geographic Diversification'!$O$53"},"='Schedule IIIA (EBS)'!K23",{"$f":"IF(_xlfn.FORMULATEXT(INDIRECT(S891))=T891,0,1)","v":0}]
[null,null,null,null,null,null,null,null,null,null,null,null,null,null,null,null,null,null,{"$f":"ADDRESS(53,16,1,1,$S$1)","v":"'Geographic Diversification'!$P$53"},"='Schedule IIIA (EBS)'!L23",{"$f":"IF(_xlfn.FORMULATEXT(INDIRECT(S892))=T892,0,1)","v":0}]
[null,null,null,null,null,null,null,null,null,null,null,null,null,null,null,null,null,null,{"$f":"ADDRESS(53,17,1,1,$S$1)","v":"'Geographic Diversification'!$Q$53"},"='Schedule IIIA (EBS)'!M23",{"$f":"IF(_xlfn.FORMULATEXT(INDIRECT(S893))=T893,0,1)","v":0}]
[null,null,null,null,null,null,null,null,null,null,null,null,null,null,null,null,null,null,{"$f":"ADDRESS(53,18,1,1,$S$1)","v":"'Geographic Diversification'!$R$53"},"='Schedule IIIA (EBS)'!N23",{"$f":"IF(_xlfn.FORMULATEXT(INDIRECT(S894))=T894,0,1)","v":0}]
[null,null,null,null,null,null,null,null,null,null,null,null,null,null,null,null,null,null,{"$f":"ADDRESS(53,19,1,1,$S$1)","v":"'Geographic Diversification'!$S$53"},"='Schedule IIIA (EBS)'!O23",{"$f":"IF(_xlfn.FORMULATEXT(INDIRECT(S895))=T895,0,1)","v":0}]
[null,null,null,null,null,null,null,null,null,null,null,null,null,null,null,null,null,null,{"$f":"ADDRESS(53,20,1,1,$S$1)","v":"'Geographic Diversification'!$T$53"},"='Schedule IIIA (EBS)'!P23",{"$f":"IF(_xlfn.FORMULATEXT(INDIRECT(S896))=T896,0,1)","v":0}]
[null,null,null,null,null,null,null,null,null,null,null,null,null,null,null,null,null,null,{"$f":"ADDRESS(53,21,1,1,$S$1)","v":"'Geographic Diversification'!$U$53"},"='Schedule IIIA (EBS)'!Q23",{"$f":"IF(_xlfn.FORMULATEXT(INDIRECT(S897))=T897,0,1)","v":0}]
[null,null,null,null,null,null,null,null,null,null,null,null,null,null,null,null,null,null,{"$f":"ADDRESS(53,22,1,1,$S$1)","v":"'Geographic Diversification'!$V$53"},"='Schedule IIIA (EBS)'!R23",{"$f":"IF(_xlfn.FORMULATEXT(INDIRECT(S898))=T898,0,1)","v":0}]
[null,null,null,null,null,null,null,null,null,null,null,null,null,null,null,null,null,null,{"$f":"ADDRESS(53,23,1,1,$S$1)","v":"'Geographic Diversification'!$W$53"},"='Schedule IIIA (EBS)'!S23",{"$f":"IF(_xlfn.FORMULATEXT(INDIRECT(S899))=T899,0,1)","v":0}]
[null,null,null,null,null,null,null,null,null,null,null,null,null,null,null,null,null,null,{"$f":"ADDRESS(53,24,1,1,$S$1)","v":"'Geographic Diversification'!$X$53"},"='Schedule IIIA (EBS)'!T23",{"$f":"IF(_xlfn.FORMULATEXT(INDIRECT(S900))=T900,0,1)","v":0}]
[null,null,null,null,null,null,null,null,null,null,null,null,null,null,null,null,null,null,{"$f":"ADDRESS(53,25,1,1,$S$1)","v":"'Geographic Diversification'!$Y$53"},"='Schedule IIIA (EBS)'!U23",{"$f":"IF(_xlfn.FORMULATEXT(INDIRECT(S901))=T901,0,1)","v":0}]
[null,null,null,null,null,null,null,null,null,null,null,null,null,null,null,null,null,null,{"$f":"ADDRESS(53,26,1,1,$S$1)","v":"'Geographic Diversification'!$Z$53"},"='Schedule IIIA (EBS)'!V23",{"$f":"IF(_xlfn.FORMULATEXT(INDIRECT(S902))=T902,0,1)","v":0}]
[null,null,null,null,null,null,null,null,null,null,null,null,null,null,null,null,null,null,{"$f":"ADDRESS(54,4,1,1,$S$1)","v":"'Geographic Diversification'!$D$54"},"=SUM(I54:Z54)",{"$f":"IF(_xlfn.FORMULATEXT(INDIRECT(S903))=T903,0,1)","v":0}]
[null,null,null,null,null,null,null,null,null,null,null,null,null,null,null,null,null,null,{"$f":"ADDRESS(54,5,1,1,$S$1)","v":"'Geographic Diversification'!$E$54"},"=SUMSQ(I54:Z54)",{"$f":"IF(_xlfn.FORMULATEXT(INDIRECT(S904))=T904,0,1)","v":0}]
[null,null,null,null,null,null,null,null,null,null,null,null,null,null,null,null,null,null,{"$f":"ADDRESS(54,6,1,1,$S$1)","v":"'Geographic Diversification'!$F$54"},"=(IF(D54>0,E54/D54^2,1))",{"$f":"IF(_xlfn.FORMULATEXT(INDIRECT(S905))=T905,0,1)","v":0}]
[null,null,null,null,null,null,null,null,null,null,null,null,null,null,null,null,null,null,{"$f":"ADDRESS(54,7,1,1,$S$1)","v":"'Geographic Diversification'!$G$54"},"=D54*(0.75+0.25*F54)",{"$f":"IF(_xlfn.FORMULATEXT(INDIRECT(S906))=T906,0,1)","v":0}]
[null,null,null,null,null,null,null,null,null,null,null,null,null,null,null,null,null,null,{"$f":"ADDRESS(54,8,1,1,$S$1)","v":"'Geographic Diversification'!$H$54"},"=IF('Schedule IIIA (EBS)'!AB24=\"TRUE\",G54,'Schedule III (EBS)'!F24)",{"$f":"IF(_xlfn.FORMULATEXT(INDIRECT(S907))=T907,0,1)","v":0}]
[null,null,null,null,null,null,null,null,null,null,null,null,null,null,null,null,null,null,{"$f":"ADDRESS(54,9,1,1,$S$1)","v":"'Geographic Diversification'!$I$54"},"='Schedule IIIA (EBS)'!E24",{"$f":"IF(_xlfn.FORMULATEXT(INDIRECT(S908))=T908,0,1)","v":0}]
[null,null,null,null,null,null,null,null,null,null,null,null,null,null,null,null,null,null,{"$f":"ADDRESS(54,10,1,1,$S$1)","v":"'Geographic Diversification'!$J$54"},"='Schedule IIIA (EBS)'!F24",{"$f":"IF(_xlfn.FORMULATEXT(INDIRECT(S909))=T909,0,1)","v":0}]
[null,null,null,null,null,null,null,null,null,null,null,null,null,null,null,null,null,null,{"$f":"ADDRESS(54,11,1,1,$S$1)","v":"'Geographic Diversification'!$K$54"},"='Schedule IIIA (EBS)'!G24",{"$f":"IF(_xlfn.FORMULATEXT(INDIRECT(S910))=T910,0,1)","v":0}]
[null,null,null,null,null,null,null,null,null,null,null,null,null,null,null,null,null,null,{"$f":"ADDRESS(54,12,1,1,$S$1)","v":"'Geographic Diversification'!$L$54"},"='Schedule IIIA (EBS)'!H24",{"$f":"IF(_xlfn.FORMULATEXT(INDIRECT(S911))=T911,0,1)","v":0}]
[null,null,null,null,null,null,null,null,null,null,null,null,null,null,null,null,null,null,{"$f":"ADDRESS(54,13,1,1,$S$1)","v":"'Geographic Diversification'!$M$54"},"='Schedule IIIA (EBS)'!I24",{"$f":"IF(_xlfn.FORMULATEXT(INDIRECT(S912))=T912,0,1)","v":0}]
[null,null,null,null,null,null,null,null,null,null,null,null,null,null,null,null,null,null,{"$f":"ADDRESS(54,14,1,1,$S$1)","v":"'Geographic Diversification'!$N$54"},"='Schedule IIIA (EBS)'!J24",{"$f":"IF(_xlfn.FORMULATEXT(INDIRECT(S913))=T913,0,1)","v":0}]
[null,null,null,null,null,null,null,null,null,null,null,null,null,null,null,null,null,null,{"$f":"ADDRESS(54,15,1,1,$S$1)","v":"'Geographic Diversification'!$O$54"},"='Schedule IIIA (EBS)'!K24",{"$f":"IF(_xlfn.FORMULATEXT(INDIRECT(S914))=T914,0,1)","v":0}]
[null,null,null,null,null,null,null,null,null,null,null,null,null,null,null,null,null,null,{"$f":"ADDRESS(54,16,1,1,$S$1)","v":"'Geographic Diversification'!$P$54"},"='Schedule IIIA (EBS)'!L24",{"$f":"IF(_xlfn.FORMULATEXT(INDIRECT(S915))=T915,0,1)","v":0}]
[null,null,null,null,null,null,null,null,null,null,null,null,null,null,null,null,null,null,{"$f":"ADDRESS(54,17,1,1,$S$1)","v":"'Geographic Diversification'!$Q$54"},"='Schedule IIIA (EBS)'!M24",{"$f":"IF(_xlfn.FORMULATEXT(INDIRECT(S916))=T916,0,1)","v":0}]
[null,null,null,null,null,null,null,null,null,null,null,null,null,null,null,null,null,null,{"$f":"ADDRESS(54,18,1,1,$S$1)","v":"'Geographic Diversification'!$R$54"},"='Schedule IIIA (EBS)'!N24",{"$f":"IF(_xlfn.FORMULATEXT(INDIRECT(S917))=T917,0,1)","v":0}]
[null,null,null,null,null,null,null,null,null,null,null,null,null,null,null,null,null,null,{"$f":"ADDRESS(54,19,1,1,$S$1)","v":"'Geographic Diversification'!$S$54"},"='Schedule IIIA (EBS)'!O24",{"$f":"IF(_xlfn.FORMULATEXT(INDIRECT(S918))=T918,0,1)","v":0}]
[null,null,null,null,null,null,null,null,null,null,null,null,null,null,null,null,null,null,{"$f":"ADDRESS(54,20,1,1,$S$1)","v":"'Geographic Diversification'!$T$54"},"='Schedule IIIA (EBS)'!P24",{"$f":"IF(_xlfn.FORMULATEXT(INDIRECT(S919))=T919,0,1)","v":0}]
[null,null,null,null,null,null,null,null,null,null,null,null,null,null,null,null,null,null,{"$f":"ADDRESS(54,21,1,1,$S$1)","v":"'Geographic Diversification'!$U$54"},"='Schedule IIIA (EBS)'!Q24",{"$f":"IF(_xlfn.FORMULATEXT(INDIRECT(S920))=T920,0,1)","v":0}]
[null,null,null,null,null,null,null,null,null,null,null,null,null,null,null,null,null,null,{"$f":"ADDRESS(54,22,1,1,$S$1)","v":"'Geographic Diversification'!$V$54"},"='Schedule IIIA (EBS)'!R24",{"$f":"IF(_xlfn.FORMULATEXT(INDIRECT(S921))=T921,0,1)","v":0}]
[null,null,null,null,null,null,null,null,null,null,null,null,null,null,null,null,null,null,{"$f":"ADDRESS(54,23,1,1,$S$1)","v":"'Geographic Diversification'!$W$54"},"='Schedule IIIA (EBS)'!S24",{"$f":"IF(_xlfn.FORMULATEXT(INDIRECT(S922))=T922,0,1)","v":0}]
[null,null,null,null,null,null,null,null,null,null,null,null,null,null,null,null,null,null,{"$f":"ADDRESS(54,24,1,1,$S$1)","v":"'Geographic Diversification'!$X$54"},"='Schedule IIIA (EBS)'!T24",{"$f":"IF(_xlfn.FORMULATEXT(INDIRECT(S923))=T923,0,1)","v":0}]
[null,null,null,null,null,null,null,null,null,null,null,null,null,null,null,null,null,null,{"$f":"ADDRESS(54,25,1,1,$S$1)","v":"'Geographic Diversification'!$Y$54"},"='Schedule IIIA (EBS)'!U24",{"$f":"IF(_xlfn.FORMULATEXT(INDIRECT(S924))=T924,0,1)","v":0}]
[null,null,null,null,null,null,null,null,null,null,null,null,null,null,null,null,null,null,{"$f":"ADDRESS(54,26,1,1,$S$1)","v":"'Geographic Diversification'!$Z$54"},"='Schedule IIIA (EBS)'!V24",{"$f":"IF(_xlfn.FORMULATEXT(INDIRECT(S925))=T925,0,1)","v":0}]
[null,null,null,null,null,null,null,null,null,null,null,null,null,null,null,null,null,null,{"$f":"ADDRESS(55,4,1,1,$S$1)","v":"'Geographic Diversification'!$D$55"},"=SUM(I55:Z55)",{"$f":"IF(_xlfn.FORMULATEXT(INDIRECT(S926))=T926,0,1)","v":0}]
[null,null,null,null,null,null,null,null,null,null,null,null,null,null,null,null,null,null,{"$f":"ADDRESS(55,5,1,1,$S$1)","v":"'Geographic Diversification'!$E$55"},"=SUMSQ(I55:Z55)",{"$f":"IF(_xlfn.FORMULATEXT(INDIRECT(S927))=T927,0,1)","v":0}]
[null,null,null,null,null,null,null,null,null,null,null,null,null,null,null,null,null,null,{"$f":"ADDRESS(55,6,1,1,$S$1)","v":"'Geographic Diversification'!$F$55"},"=(IF(D55>0,E55/D55^2,1))",{"$f":"IF(_xlfn.FORMULATEXT(INDIRECT(S928))=T928,0,1)","v":0}]
[null,null,null,null,null,null,null,null,null,null,null,null,null,null,null,null,null,null,{"$f":"ADDRESS(55,7,1,1,$S$1)","v":"'Geographic Diversification'!$G$55"},"=D55*(0.75+0.25*F55)",{"$f":"IF(_xlfn.FORMULATEXT(INDIRECT(S929))=T929,0,1)","v":0}]
[null,null,null,null,null,null,null,null,null,null,null,null,null,null,null,null,null,null,{"$f":"ADDRESS(55,8,1,1,$S$1)","v":"'Geographic Diversification'!$H$55"},"=IF('Schedule IIIA (EBS)'!AB25=\"TRUE\",G55,'Schedule III (EBS)'!F25)",{"$f":"IF(_xlfn.FORMULATEXT(INDIRECT(S930))=T930,0,1)","v":0}]
[null,null,null,null,null,null,null,null,null,null,null,null,null,null,null,null,null,null,{"$f":"ADDRESS(55,9,1,1,$S$1)","v":"'Geographic Diversification'!$I$55"},"='Schedule IIIA (EBS)'!E25",{"$f":"IF(_xlfn.FORMULATEXT(INDIRECT(S931))=T931,0,1)","v":0}]
[null,null,null,null,null,null,null,null,null,null,null,null,null,null,null,null,null,null,{"$f":"ADDRESS(55,10,1,1,$S$1)","v":"'Geographic Diversification'!$J$55"},"='Schedule IIIA (EBS)'!F25",{"$f":"IF(_xlfn.FORMULATEXT(INDIRECT(S932))=T932,0,1)","v":0}]
[null,null,null,null,null,null,null,null,null,null,null,null,null,null,null,null,null,null,{"$f":"ADDRESS(55,11,1,1,$S$1)","v":"'Geographic Diversification'!$K$55"},"='Schedule IIIA (EBS)'!G25",{"$f":"IF(_xlfn.FORMULATEXT(INDIRECT(S933))=T933,0,1)","v":0}]
[null,null,null,null,null,null,null,null,null,null,null,null,null,null,null,null,null,null,{"$f":"ADDRESS(55,12,1,1,$S$1)","v":"'Geographic Diversification'!$L$55"},"='Schedule IIIA (EBS)'!H25",{"$f":"IF(_xlfn.FORMULATEXT(INDIRECT(S934))=T934,0,1)","v":0}]
[null,null,null,null,null,null,null,null,null,null,null,null,null,null,null,null,null,null,{"$f":"ADDRESS(55,13,1,1,$S$1)","v":"'Geographic Diversification'!$M$55"},"='Schedule IIIA (EBS)'!I25",{"$f":"IF(_xlfn.FORMULATEXT(INDIRECT(S935))=T935,0,1)","v":0}]
[null,null,null,null,null,null,null,null,null,null,null,null,null,null,null,null,null,null,{"$f":"ADDRESS(55,14,1,1,$S$1)","v":"'Geographic Diversification'!$N$55"},"='Schedule IIIA (EBS)'!J25",{"$f":"IF(_xlfn.FORMULATEXT(INDIRECT(S936))=T936,0,1)","v":0}]
[null,null,null,null,null,null,null,null,null,null,null,null,null,null,null,null,null,null,{"$f":"ADDRESS(55,15,1,1,$S$1)","v":"'Geographic Diversification'!$O$55"},"='Schedule IIIA (EBS)'!K25",{"$f":"IF(_xlfn.FORMULATEXT(INDIRECT(S937))=T937,0,1)","v":0}]
[null,null,null,null,null,null,null,null,null,null,null,null,null,null,null,null,null,null,{"$f":"ADDRESS(55,16,1,1,$S$1)","v":"'Geographic Diversification'!$P$55"},"='Schedule IIIA (EBS)'!L25",{"$f":"IF(_xlfn.FORMULATEXT(INDIRECT(S938))=T938,0,1)","v":0}]
[null,null,null,null,null,null,null,null,null,null,null,null,null,null,null,null,null,null,{"$f":"ADDRESS(55,17,1,1,$S$1)","v":"'Geographic Diversification'!$Q$55"},"='Schedule IIIA (EBS)'!M25",{"$f":"IF(_xlfn.FORMULATEXT(INDIRECT(S939))=T939,0,1)","v":0}]
[null,null,null,null,null,null,null,null,null,null,null,null,null,null,null,null,null,null,{"$f":"ADDRESS(55,18,1,1,$S$1)","v":"'Geographic Diversification'!$R$55"},"='Schedule IIIA (EBS)'!N25",{"$f":"IF(_xlfn.FORMULATEXT(INDIRECT(S940))=T940,0,1)","v":0}]
[null,null,null,null,null,null,null,null,null,null,null,null,null,null,null,null,null,null,{"$f":"ADDRESS(55,19,1,1,$S$1)","v":"'Geographic Diversification'!$S$55"},"='Schedule IIIA (EBS)'!O25",{"$f":"IF(_xlfn.FORMULATEXT(INDIRECT(S941))=T941,0,1)","v":0}]
[null,null,null,null,null,null,null,null,null,null,null,null,null,null,null,null,null,null,{"$f":"ADDRESS(55,20,1,1,$S$1)","v":"'Geographic Diversification'!$T$55"},"='Schedule IIIA (EBS)'!P25",{"$f":"IF(_xlfn.FORMULATEXT(INDIRECT(S942))=T942,0,1)","v":0}]
[null,null,null,null,null,null,null,null,null,null,null,null,null,null,null,null,null,null,{"$f":"ADDRESS(55,21,1,1,$S$1)","v":"'Geographic Diversification'!$U$55"},"='Schedule IIIA (EBS)'!Q25",{"$f":"IF(_xlfn.FORMULATEXT(INDIRECT(S943))=T943,0,1)","v":0}]
[null,null,null,null,null,null,null,null,null,null,null,null,null,null,null,null,null,null,{"$f":"ADDRESS(55,22,1,1,$S$1)","v":"'Geographic Diversification'!$V$55"},"='Schedule IIIA (EBS)'!R25",{"$f":"IF(_xlfn.FORMULATEXT(INDIRECT(S944))=T944,0,1)","v":0}]
[null,null,null,null,null,null,null,null,null,null,null,null,null,null,null,null,null,null,{"$f":"ADDRESS(55,23,1,1,$S$1)","v":"'Geographic Diversification'!$W$55"},"='Schedule IIIA (EBS)'!S25",{"$f":"IF(_xlfn.FORMULATEXT(INDIRECT(S945))=T945,0,1)","v":0}]
[null,null,null,null,null,null,null,null,null,null,null,null,null,null,null,null,null,null,{"$f":"ADDRESS(55,24,1,1,$S$1)","v":"'Geographic Diversification'!$X$55"},"='Schedule IIIA (EBS)'!T25",{"$f":"IF(_xlfn.FORMULATEXT(INDIRECT(S946))=T946,0,1)","v":0}]
[null,null,null,null,null,null,null,null,null,null,null,null,null,null,null,null,null,null,{"$f":"ADDRESS(55,25,1,1,$S$1)","v":"'Geographic Diversification'!$Y$55"},"='Schedule IIIA (EBS)'!U25",{"$f":"IF(_xlfn.FORMULATEXT(INDIRECT(S947))=T947,0,1)","v":0}]
[null,null,null,null,null,null,null,null,null,null,null,null,null,null,null,null,null,null,{"$f":"ADDRESS(55,26,1,1,$S$1)","v":"'Geographic Diversification'!$Z$55"},"='Schedule IIIA (EBS)'!V25",{"$f":"IF(_xlfn.FORMULATEXT(INDIRECT(S948))=T948,0,1)","v":0}]
[null,null,null,null,null,null,null,null,null,null,null,null,null,null,null,null,null,null,{"$f":"ADDRESS(56,4,1,1,$S$1)","v":"'Geographic Diversification'!$D$56"},"=SUM(I56:Z56)",{"$f":"IF(_xlfn.FORMULATEXT(INDIRECT(S949))=T949,0,1)","v":0}]
[null,null,null,null,null,null,null,null,null,null,null,null,null,null,null,null,null,null,{"$f":"ADDRESS(56,5,1,1,$S$1)","v":"'Geographic Diversification'!$E$56"},"=SUMSQ(I56:Z56)",{"$f":"IF(_xlfn.FORMULATEXT(INDIRECT(S950))=T950,0,1)","v":0}]
[null,null,null,null,null,null,null,null,null,null,null,null,null,null,null,null,null,null,{"$f":"ADDRESS(56,6,1,1,$S$1)","v":"'Geographic Diversification'!$F$56"},"=(IF(D56>0,E56/D56^2,1))",{"$f":"IF(_xlfn.FORMULATEXT(INDIRECT(S951))=T951,0,1)","v":0}]
[null,null,null,null,null,null,null,null,null,null,null,null,null,null,null,null,null,null,{"$f":"ADDRESS(56,7,1,1,$S$1)","v":"'Geographic Diversification'!$G$56"},"=D56*(0.75+0.25*F56)",{"$f":"IF(_xlfn.FORMULATEXT(INDIRECT(S952))=T952,0,1)","v":0}]
[null,null,null,null,null,null,null,null,null,null,null,null,null,null,null,null,null,null,{"$f":"ADDRESS(56,8,1,1,$S$1)","v":"'Geographic Diversification'!$H$56"},"=IF('Schedule IIIA (EBS)'!AB26=\"TRUE\",G56,'Schedule III (EBS)'!F26)",{"$f":"IF(_xlfn.FORMULATEXT(INDIRECT(S953))=T953,0,1)","v":0}]
[null,null,null,null,null,null,null,null,null,null,null,null,null,null,null,null,null,null,{"$f":"ADDRESS(56,9,1,1,$S$1)","v":"'Geographic Diversification'!$I$56"},"='Schedule IIIA (EBS)'!E26",{"$f":"IF(_xlfn.FORMULATEXT(INDIRECT(S954))=T954,0,1)","v":0}]
[null,null,null,null,null,null,null,null,null,null,null,null,null,null,null,null,null,null,{"$f":"ADDRESS(56,10,1,1,$S$1)","v":"'Geographic Diversification'!$J$56"},"='Schedule IIIA (EBS)'!F26",{"$f":"IF(_xlfn.FORMULATEXT(INDIRECT(S955))=T955,0,1)","v":0}]
[null,null,null,null,null,null,null,null,null,null,null,null,null,null,null,null,null,null,{"$f":"ADDRESS(56,11,1,1,$S$1)","v":"'Geographic Diversification'!$K$56"},"='Schedule IIIA (EBS)'!G26",{"$f":"IF(_xlfn.FORMULATEXT(INDIRECT(S956))=T956,0,1)","v":0}]
[null,null,null,null,null,null,null,null,null,null,null,null,null,null,null,null,null,null,{"$f":"ADDRESS(56,12,1,1,$S$1)","v":"'Geographic Diversification'!$L$56"},"='Schedule IIIA (EBS)'!H26",{"$f":"IF(_xlfn.FORMULATEXT(INDIRECT(S957))=T957,0,1)","v":0}]
[null,null,null,null,null,null,null,null,null,null,null,null,null,null,null,null,null,null,{"$f":"ADDRESS(56,13,1,1,$S$1)","v":"'Geographic Diversification'!$M$56"},"='Schedule IIIA (EBS)'!I26",{"$f":"IF(_xlfn.FORMULATEXT(INDIRECT(S958))=T958,0,1)","v":0}]
[null,null,null,null,null,null,null,null,null,null,null,null,null,null,null,null,null,null,{"$f":"ADDRESS(56,14,1,1,$S$1)","v":"'Geographic Diversification'!$N$56"},"='Schedule IIIA (EBS)'!J26",{"$f":"IF(_xlfn.FORMULATEXT(INDIRECT(S959))=T959,0,1)","v":0}]
[null,null,null,null,null,null,null,null,null,null,null,null,null,null,null,null,null,null,{"$f":"ADDRESS(56,15,1,1,$S$1)","v":"'Geographic Diversification'!$O$56"},"='Schedule IIIA (EBS)'!K26",{"$f":"IF(_xlfn.FORMULATEXT(INDIRECT(S960))=T960,0,1)","v":0}]
[null,null,null,null,null,null,null,null,null,null,null,null,null,null,null,null,null,null,{"$f":"ADDRESS(56,16,1,1,$S$1)","v":"'Geographic Diversification'!$P$56"},"='Schedule IIIA (EBS)'!L26",{"$f":"IF(_xlfn.FORMULATEXT(INDIRECT(S961))=T961,0,1)","v":0}]
[null,null,null,null,null,null,null,null,null,null,null,null,null,null,null,null,null,null,{"$f":"ADDRESS(56,17,1,1,$S$1)","v":"'Geographic Diversification'!$Q$56"},"='Schedule IIIA (EBS)'!M26",{"$f":"IF(_xlfn.FORMULATEXT(INDIRECT(S962))=T962,0,1)","v":0}]
[null,null,null,null,null,null,null,null,null,null,null,null,null,null,null,null,null,null,{"$f":"ADDRESS(56,18,1,1,$S$1)","v":"'Geographic Diversification'!$R$56"},"='Schedule IIIA (EBS)'!N26",{"$f":"IF(_xlfn.FORMULATEXT(INDIRECT(S963))=T963,0,1)","v":0}]
[null,null,null,null,null,null,null,null,null,null,null,null,null,null,null,null,null,null,{"$f":"ADDRESS(56,19,1,1,$S$1)","v":"'Geographic Diversification'!$S$56"},"='Schedule IIIA (EBS)'!O26",{"$f":"IF(_xlfn.FORMULATEXT(INDIRECT(S964))=T964,0,1)","v":0}]
[null,null,null,null,null,null,null,null,null,null,null,null,null,null,null,null,null,null,{"$f":"ADDRESS(56,20,1,1,$S$1)","v":"'Geographic Diversification'!$T$56"},"='Schedule IIIA (EBS)'!P26",{"$f":"IF(_xlfn.FORMULATEXT(INDIRECT(S965))=T965,0,1)","v":0}]
[null,null,null,null,null,null,null,null,null,null,null,null,null,null,null,null,null,null,{"$f":"ADDRESS(56,21,1,1,$S$1)","v":"'Geographic Diversification'!$U$56"},"='Schedule IIIA (EBS)'!Q26",{"$f":"IF(_xlfn.FORMULATEXT(INDIRECT(S966))=T966,0,1)","v":0}]
[null,null,null,null,null,null,null,null,null,null,null,null,null,null,null,null,null,null,{"$f":"ADDRESS(56,22,1,1,$S$1)","v":"'Geographic Diversification'!$V$56"},"='Schedule IIIA (EBS)'!R26",{"$f":"IF(_xlfn.FORMULATEXT(INDIRECT(S967))=T967,0,1)","v":0}]
[null,null,null,null,null,null,null,null,null,null,null,null,null,null,null,null,null,null,{"$f":"ADDRESS(56,23,1,1,$S$1)","v":"'Geographic Diversification'!$W$56"},"='Schedule IIIA (EBS)'!S26",{"$f":"IF(_xlfn.FORMULATEXT(INDIRECT(S968))=T968,0,1)","v":0}]
[null,null,null,null,null,null,null,null,null,null,null,null,null,null,null,null,null,null,{"$f":"ADDRESS(56,24,1,1,$S$1)","v":"'Geographic Diversification'!$X$56"},"='Schedule IIIA (EBS)'!T26",{"$f":"IF(_xlfn.FORMULATEXT(INDIRECT(S969))=T969,0,1)","v":0}]
[null,null,null,null,null,null,null,null,null,null,null,null,null,null,null,null,null,null,{"$f":"ADDRESS(56,25,1,1,$S$1)","v":"'Geographic Diversification'!$Y$56"},"='Schedule IIIA (EBS)'!U26",{"$f":"IF(_xlfn.FORMULATEXT(INDIRECT(S970))=T970,0,1)","v":0}]
[null,null,null,null,null,null,null,null,null,null,null,null,null,null,null,null,null,null,{"$f":"ADDRESS(56,26,1,1,$S$1)","v":"'Geographic Diversification'!$Z$56"},"='Schedule IIIA (EBS)'!V26",{"$f":"IF(_xlfn.FORMULATEXT(INDIRECT(S971))=T971,0,1)","v":0}]
[null,null,null,null,null,null,null,null,null,null,null,null,null,null,null,null,null,null,{"$f":"ADDRESS(57,4,1,1,$S$1)","v":"'Geographic Diversification'!$D$57"},"=SUM(I57:Z57)",{"$f":"IF(_xlfn.FORMULATEXT(INDIRECT(S972))=T972,0,1)","v":0}]
[null,null,null,null,null,null,null,null,null,null,null,null,null,null,null,null,null,null,{"$f":"ADDRESS(57,5,1,1,$S$1)","v":"'Geographic Diversification'!$E$57"},"=SUMSQ(I57:Z57)",{"$f":"IF(_xlfn.FORMULATEXT(INDIRECT(S973))=T973,0,1)","v":0}]
[null,null,null,null,null,null,null,null,null,null,null,null,null,null,null,null,null,null,{"$f":"ADDRESS(57,6,1,1,$S$1)","v":"'Geographic Diversification'!$F$57"},"=(IF(D57>0,E57/D57^2,1))",{"$f":"IF(_xlfn.FORMULATEXT(INDIRECT(S974))=T974,0,1)","v":0}]
[null,null,null,null,null,null,null,null,null,null,null,null,null,null,null,null,null,null,{"$f":"ADDRESS(57,7,1,1,$S$1)","v":"'Geographic Diversification'!$G$57"},"=D57*(0.75+0.25*F57)",{"$f":"IF(_xlfn.FORMULATEXT(INDIRECT(S975))=T975,0,1)","v":0}]
[null,null,null,null,null,null,null,null,null,null,null,null,null,null,null,null,null,null,{"$f":"ADDRESS(57,8,1,1,$S$1)","v":"'Geographic Diversification'!$H$57"},"=IF('Schedule IIIA (EBS)'!AB27=\"TRUE\",G57,'Schedule III (EBS)'!F27)",{"$f":"IF(_xlfn.FORMULATEXT(INDIRECT(S976))=T976,0,1)","v":0}]
[null,null,null,null,null,null,null,null,null,null,null,null,null,null,null,null,null,null,{"$f":"ADDRESS(57,9,1,1,$S$1)","v":"'Geographic Diversification'!$I$57"},"='Schedule IIIA (EBS)'!E27",{"$f":"IF(_xlfn.FORMULATEXT(INDIRECT(S977))=T977,0,1)","v":0}]
[null,null,null,null,null,null,null,null,null,null,null,null,null,null,null,null,null,null,{"$f":"ADDRESS(57,10,1,1,$S$1)","v":"'Geographic Diversification'!$J$57"},"='Schedule IIIA (EBS)'!F27",{"$f":"IF(_xlfn.FORMULATEXT(INDIRECT(S978))=T978,0,1)","v":0}]
[null,null,null,null,null,null,null,null,null,null,null,null,null,null,null,null,null,null,{"$f":"ADDRESS(57,11,1,1,$S$1)","v":"'Geographic Diversification'!$K$57"},"='Schedule IIIA (EBS)'!G27",{"$f":"IF(_xlfn.FORMULATEXT(INDIRECT(S979))=T979,0,1)","v":0}]
[null,null,null,null,null,null,null,null,null,null,null,null,null,null,null,null,null,null,{"$f":"ADDRESS(57,12,1,1,$S$1)","v":"'Geographic Diversification'!$L$57"},"='Schedule IIIA (EBS)'!H27",{"$f":"IF(_xlfn.FORMULATEXT(INDIRECT(S980))=T980,0,1)","v":0}]
[null,null,null,null,null,null,null,null,null,null,null,null,null,null,null,null,null,null,{"$f":"ADDRESS(57,13,1,1,$S$1)","v":"'Geographic Diversification'!$M$57"},"='Schedule IIIA (EBS)'!I27",{"$f":"IF(_xlfn.FORMULATEXT(INDIRECT(S981))=T981,0,1)","v":0}]
[null,null,null,null,null,null,null,null,null,null,null,null,null,null,null,null,null,null,{"$f":"ADDRESS(57,14,1,1,$S$1)","v":"'Geographic Diversification'!$N$57"},"='Schedule IIIA (EBS)'!J27",{"$f":"IF(_xlfn.FORMULATEXT(INDIRECT(S982))=T982,0,1)","v":0}]
[null,null,null,null,null,null,null,null,null,null,null,null,null,null,null,null,null,null,{"$f":"ADDRESS(57,15,1,1,$S$1)","v":"'Geographic Diversification'!$O$57"},"='Schedule IIIA (EBS)'!K27",{"$f":"IF(_xlfn.FORMULATEXT(INDIRECT(S983))=T983,0,1)","v":0}]
[null,null,null,null,null,null,null,null,null,null,null,null,null,null,null,null,null,null,{"$f":"ADDRESS(57,16,1,1,$S$1)","v":"'Geographic Diversification'!$P$57"},"='Schedule IIIA (EBS)'!L27",{"$f":"IF(_xlfn.FORMULATEXT(INDIRECT(S984))=T984,0,1)","v":0}]
[null,null,null,null,null,null,null,null,null,null,null,null,null,null,null,null,null,null,{"$f":"ADDRESS(57,17,1,1,$S$1)","v":"'Geographic Diversification'!$Q$57"},"='Schedule IIIA (EBS)'!M27",{"$f":"IF(_xlfn.FORMULATEXT(INDIRECT(S985))=T985,0,1)","v":0}]
[null,null,null,null,null,null,null,null,null,null,null,null,null,null,null,null,null,null,{"$f":"ADDRESS(57,18,1,1,$S$1)","v":"'Geographic Diversification'!$R$57"},"='Schedule IIIA (EBS)'!N27",{"$f":"IF(_xlfn.FORMULATEXT(INDIRECT(S986))=T986,0,1)","v":0}]
[null,null,null,null,null,null,null,null,null,null,null,null,null,null,null,null,null,null,{"$f":"ADDRESS(57,19,1,1,$S$1)","v":"'Geographic Diversification'!$S$57"},"='Schedule IIIA (EBS)'!O27",{"$f":"IF(_xlfn.FORMULATEXT(INDIRECT(S987))=T987,0,1)","v":0}]
[null,null,null,null,null,null,null,null,null,null,null,null,null,null,null,null,null,null,{"$f":"ADDRESS(57,20,1,1,$S$1)","v":"'Geographic Diversification'!$T$57"},"='Schedule IIIA (EBS)'!P27",{"$f":"IF(_xlfn.FORMULATEXT(INDIRECT(S988))=T988,0,1)","v":0}]
[null,null,null,null,null,null,null,null,null,null,null,null,null,null,null,null,null,null,{"$f":"ADDRESS(57,21,1,1,$S$1)","v":"'Geographic Diversification'!$U$57"},"='Schedule IIIA (EBS)'!Q27",{"$f":"IF(_xlfn.FORMULATEXT(INDIRECT(S989))=T989,0,1)","v":0}]
[null,null,null,null,null,null,null,null,null,null,null,null,null,null,null,null,null,null,{"$f":"ADDRESS(57,22,1,1,$S$1)","v":"'Geographic Diversification'!$V$57"},"='Schedule IIIA (EBS)'!R27",{"$f":"IF(_xlfn.FORMULATEXT(INDIRECT(S990))=T990,0,1)","v":0}]
[null,null,null,null,null,null,null,null,null,null,null,null,null,null,null,null,null,null,{"$f":"ADDRESS(57,23,1,1,$S$1)","v":"'Geographic Diversification'!$W$57"},"='Schedule IIIA (EBS)'!S27",{"$f":"IF(_xlfn.FORMULATEXT(INDIRECT(S991))=T991,0,1)","v":0}]
[null,null,null,null,null,null,null,null,null,null,null,null,null,null,null,null,null,null,{"$f":"ADDRESS(57,24,1,1,$S$1)","v":"'Geographic Diversification'!$X$57"},"='Schedule IIIA (EBS)'!T27",{"$f":"IF(_xlfn.FORMULATEXT(INDIRECT(S992))=T992,0,1)","v":0}]
[null,null,null,null,null,null,null,null,null,null,null,null,null,null,null,null,null,null,{"$f":"ADDRESS(57,25,1,1,$S$1)","v":"'Geographic Diversification'!$Y$57"},"='Schedule IIIA (EBS)'!U27",{"$f":"IF(_xlfn.FORMULATEXT(INDIRECT(S993))=T993,0,1)","v":0}]
[null,null,null,null,null,null,null,null,null,null,null,null,null,null,null,null,null,null,{"$f":"ADDRESS(57,26,1,1,$S$1)","v":"'Geographic Diversification'!$Z$57"},"='Schedule IIIA (EBS)'!V27",{"$f":"IF(_xlfn.FORMULATEXT(INDIRECT(S994))=T994,0,1)","v":0}]
[null,null,null,null,null,null,null,null,null,null,null,null,null,null,null,null,null,null,{"$f":"ADDRESS(58,4,1,1,$S$1)","v":"'Geographic Diversification'!$D$58"},"=SUM(I58:Z58)",{"$f":"IF(_xlfn.FORMULATEXT(INDIRECT(S995))=T995,0,1)","v":0}]
[null,null,null,null,null,null,null,null,null,null,null,null,null,null,null,null,null,null,{"$f":"ADDRESS(58,5,1,1,$S$1)","v":"'Geographic Diversification'!$E$58"},"=SUMSQ(I58:Z58)",{"$f":"IF(_xlfn.FORMULATEXT(INDIRECT(S996))=T996,0,1)","v":0}]
[null,null,null,null,null,null,null,null,null,null,null,null,null,null,null,null,null,null,{"$f":"ADDRESS(58,6,1,1,$S$1)","v":"'Geographic Diversification'!$F$58"},"=(IF(D58>0,E58/D58^2,1))",{"$f":"IF(_xlfn.FORMULATEXT(INDIRECT(S997))=T997,0,1)","v":0}]
[null,null,null,null,null,null,null,null,null,null,null,null,null,null,null,null,null,null,{"$f":"ADDRESS(58,7,1,1,$S$1)","v":"'Geographic Diversification'!$G$58"},"=D58*(0.75+0.25*F58)",{"$f":"IF(_xlfn.FORMULATEXT(INDIRECT(S998))=T998,0,1)","v":0}]
[null,null,null,null,null,null,null,null,null,null,null,null,null,null,null,null,null,null,{"$f":"ADDRESS(58,8,1,1,$S$1)","v":"'Geographic Diversification'!$H$58"},"=IF('Schedule IIIA (EBS)'!AB28=\"TRUE\",G58,'Schedule III (EBS)'!F28)",{"$f":"IF(_xlfn.FORMULATEXT(INDIRECT(S999))=T999,0,1)","v":0}]
[null,null,null,null,null,null,null,null,null,null,null,null,null,null,null,null,null,null,{"$f":"ADDRESS(58,9,1,1,$S$1)","v":"'Geographic Diversification'!$I$58"},"='Schedule IIIA (EBS)'!E28",{"$f":"IF(_xlfn.FORMULATEXT(INDIRECT(S1000))=T1000,0,1)","v":0}]
[null,null,null,null,null,null,null,null,null,null,null,null,null,null,null,null,null,null,{"$f":"ADDRESS(58,10,1,1,$S$1)","v":"'Geographic Diversification'!$J$58"},"='Schedule IIIA (EBS)'!F28",{"$f":"IF(_xlfn.FORMULATEXT(INDIRECT(S1001))=T1001,0,1)","v":0}]
[null,null,null,null,null,null,null,null,null,null,null,null,null,null,null,null,null,null,{"$f":"ADDRESS(58,11,1,1,$S$1)","v":"'Geographic Diversification'!$K$58"},"='Schedule IIIA (EBS)'!G28",{"$f":"IF(_xlfn.FORMULATEXT(INDIRECT(S1002))=T1002,0,1)","v":0}]
[null,null,null,null,null,null,null,null,null,null,null,null,null,null,null,null,null,null,{"$f":"ADDRESS(58,12,1,1,$S$1)","v":"'Geographic Diversification'!$L$58"},"='Schedule IIIA (EBS)'!H28",{"$f":"IF(_xlfn.FORMULATEXT(INDIRECT(S1003))=T1003,0,1)","v":0}]
[null,null,null,null,null,null,null,null,null,null,null,null,null,null,null,null,null,null,{"$f":"ADDRESS(58,13,1,1,$S$1)","v":"'Geographic Diversification'!$M$58"},"='Schedule IIIA (EBS)'!I28",{"$f":"IF(_xlfn.FORMULATEXT(INDIRECT(S1004))=T1004,0,1)","v":0}]
[null,null,null,null,null,null,null,null,null,null,null,null,null,null,null,null,null,null,{"$f":"ADDRESS(58,14,1,1,$S$1)","v":"'Geographic Diversification'!$N$58"},"='Schedule IIIA (EBS)'!J28",{"$f":"IF(_xlfn.FORMULATEXT(INDIRECT(S1005))=T1005,0,1)","v":0}]
[null,null,null,null,null,null,null,null,null,null,null,null,null,null,null,null,null,null,{"$f":"ADDRESS(58,15,1,1,$S$1)","v":"'Geographic Diversification'!$O$58"},"='Schedule IIIA (EBS)'!K28",{"$f":"IF(_xlfn.FORMULATEXT(INDIRECT(S1006))=T1006,0,1)","v":0}]
[null,null,null,null,null,null,null,null,null,null,null,null,null,null,null,null,null,null,{"$f":"ADDRESS(58,16,1,1,$S$1)","v":"'Geographic Diversification'!$P$58"},"='Schedule IIIA (EBS)'!L28",{"$f":"IF(_xlfn.FORMULATEXT(INDIRECT(S1007))=T1007,0,1)","v":0}]
[null,null,null,null,null,null,null,null,null,null,null,null,null,null,null,null,null,null,{"$f":"ADDRESS(58,17,1,1,$S$1)","v":"'Geographic Diversification'!$Q$58"},"='Schedule IIIA (EBS)'!M28",{"$f":"IF(_xlfn.FORMULATEXT(INDIRECT(S1008))=T1008,0,1)","v":0}]
[null,null,null,null,null,null,null,null,null,null,null,null,null,null,null,null,null,null,{"$f":"ADDRESS(58,18,1,1,$S$1)","v":"'Geographic Diversification'!$R$58"},"='Schedule IIIA (EBS)'!N28",{"$f":"IF(_xlfn.FORMULATEXT(INDIRECT(S1009))=T1009,0,1)","v":0}]
[null,null,null,null,null,null,null,null,null,null,null,null,null,null,null,null,null,null,{"$f":"ADDRESS(58,19,1,1,$S$1)","v":"'Geographic Diversification'!$S$58"},"='Schedule IIIA (EBS)'!O28",{"$f":"IF(_xlfn.FORMULATEXT(INDIRECT(S1010))=T1010,0,1)","v":0}]
[null,null,null,null,null,null,null,null,null,null,null,null,null,null,null,null,null,null,{"$f":"ADDRESS(58,20,1,1,$S$1)","v":"'Geographic Diversification'!$T$58"},"='Schedule IIIA (EBS)'!P28",{"$f":"IF(_xlfn.FORMULATEXT(INDIRECT(S1011))=T1011,0,1)","v":0}]
[null,null,null,null,null,null,null,null,null,null,null,null,null,null,null,null,null,null,{"$f":"ADDRESS(58,21,1,1,$S$1)","v":"'Geographic Diversification'!$U$58"},"='Schedule IIIA (EBS)'!Q28",{"$f":"IF(_xlfn.FORMULATEXT(INDIRECT(S1012))=T1012,0,1)","v":0}]
[null,null,null,null,null,null,null,null,null,null,null,null,null,null,null,null,null,null,{"$f":"ADDRESS(58,22,1,1,$S$1)","v":"'Geographic Diversification'!$V$58"},"='Schedule IIIA (EBS)'!R28",{"$f":"IF(_xlfn.FORMULATEXT(INDIRECT(S1013))=T1013,0,1)","v":0}]
[null,null,null,null,null,null,null,null,null,null,null,null,null,null,null,null,null,null,{"$f":"ADDRESS(58,23,1,1,$S$1)","v":"'Geographic Diversification'!$W$58"},"='Schedule IIIA (EBS)'!S28",{"$f":"IF(_xlfn.FORMULATEXT(INDIRECT(S1014))=T1014,0,1)","v":0}]
[null,null,null,null,null,null,null,null,null,null,null,null,null,null,null,null,null,null,{"$f":"ADDRESS(58,24,1,1,$S$1)","v":"'Geographic Diversification'!$X$58"},"='Schedule IIIA (EBS)'!T28",{"$f":"IF(_xlfn.FORMULATEXT(INDIRECT(S1015))=T1015,0,1)","v":0}]
[null,null,null,null,null,null,null,null,null,null,null,null,null,null,null,null,null,null,{"$f":"ADDRESS(58,25,1,1,$S$1)","v":"'Geographic Diversification'!$Y$58"},"='Schedule IIIA (EBS)'!U28",{"$f":"IF(_xlfn.FORMULATEXT(INDIRECT(S1016))=T1016,0,1)","v":0}]
[null,null,null,null,null,null,null,null,null,null,null,null,null,null,null,null,null,null,{"$f":"ADDRESS(58,26,1,1,$S$1)","v":"'Geographic Diversification'!$Z$58"},"='Schedule IIIA (EBS)'!V28",{"$f":"IF(_xlfn.FORMULATEXT(INDIRECT(S1017))=T1017,0,1)","v":0}]
[null,null,null,null,null,null,null,null,null,null,null,null,null,null,null,null,null,null,{"$f":"ADDRESS(59,4,1,1,$S$1)","v":"'Geographic Diversification'!$D$59"},"=SUM(I59:Z59)",{"$f":"IF(_xlfn.FORMULATEXT(INDIRECT(S1018))=T1018,0,1)","v":0}]
[null,null,null,null,null,null,null,null,null,null,null,null,null,null,null,null,null,null,{"$f":"ADDRESS(59,5,1,1,$S$1)","v":"'Geographic Diversification'!$E$59"},"=SUMSQ(I59:Z59)",{"$f":"IF(_xlfn.FORMULATEXT(INDIRECT(S1019))=T1019,0,1)","v":0}]
[null,null,null,null,null,null,null,null,null,null,null,null,null,null,null,null,null,null,{"$f":"ADDRESS(59,6,1,1,$S$1)","v":"'Geographic Diversification'!$F$59"},"=(IF(D59>0,E59/D59^2,1))",{"$f":"IF(_xlfn.FORMULATEXT(INDIRECT(S1020))=T1020,0,1)","v":0}]
[null,null,null,null,null,null,null,null,null,null,null,null,null,null,null,null,null,null,{"$f":"ADDRESS(59,7,1,1,$S$1)","v":"'Geographic Diversification'!$G$59"},"=D59*(0.75+0.25*F59)",{"$f":"IF(_xlfn.FORMULATEXT(INDIRECT(S1021))=T1021,0,1)","v":0}]
[null,null,null,null,null,null,null,null,null,null,null,null,null,null,null,null,null,null,{"$f":"ADDRESS(59,8,1,1,$S$1)","v":"'Geographic Diversification'!$H$59"},"=IF('Schedule IIIA (EBS)'!AB29=\"TRUE\",G59,'Schedule III (EBS)'!F29)",{"$f":"IF(_xlfn.FORMULATEXT(INDIRECT(S1022))=T1022,0,1)","v":0}]
[null,null,null,null,null,null,null,null,null,null,null,null,null,null,null,null,null,null,{"$f":"ADDRESS(59,9,1,1,$S$1)","v":"'Geographic Diversification'!$I$59"},"='Schedule IIIA (EBS)'!E29",{"$f":"IF(_xlfn.FORMULATEXT(INDIRECT(S1023))=T1023,0,1)","v":0}]
[null,null,null,null,null,null,null,null,null,null,null,null,null,null,null,null,null,null,{"$f":"ADDRESS(59,10,1,1,$S$1)","v":"'Geographic Diversification'!$J$59"},"='Schedule IIIA (EBS)'!F29",{"$f":"IF(_xlfn.FORMULATEXT(INDIRECT(S1024))=T1024,0,1)","v":0}]
[null,null,null,null,null,null,null,null,null,null,null,null,null,null,null,null,null,null,{"$f":"ADDRESS(59,11,1,1,$S$1)","v":"'Geographic Diversification'!$K$59"},"='Schedule IIIA (EBS)'!G29",{"$f":"IF(_xlfn.FORMULATEXT(INDIRECT(S1025))=T1025,0,1)","v":0}]
[null,null,null,null,null,null,null,null,null,null,null,null,null,null,null,null,null,null,{"$f":"ADDRESS(59,12,1,1,$S$1)","v":"'Geographic Diversification'!$L$59"},"='Schedule IIIA (EBS)'!H29",{"$f":"IF(_xlfn.FORMULATEXT(INDIRECT(S1026))=T1026,0,1)","v":0}]
[null,null,null,null,null,null,null,null,null,null,null,null,null,null,null,null,null,null,{"$f":"ADDRESS(59,13,1,1,$S$1)","v":"'Geographic Diversification'!$M$59"},"='Schedule IIIA (EBS)'!I29",{"$f":"IF(_xlfn.FORMULATEXT(INDIRECT(S1027))=T1027,0,1)","v":0}]
[null,null,null,null,null,null,null,null,null,null,null,null,null,null,null,null,null,null,{"$f":"ADDRESS(59,14,1,1,$S$1)","v":"'Geographic Diversification'!$N$59"},"='Schedule IIIA (EBS)'!J29",{"$f":"IF(_xlfn.FORMULATEXT(INDIRECT(S1028))=T1028,0,1)","v":0}]
[null,null,null,null,null,null,null,null,null,null,null,null,null,null,null,null,null,null,{"$f":"ADDRESS(59,15,1,1,$S$1)","v":"'Geographic Diversification'!$O$59"},"='Schedule IIIA (EBS)'!K29",{"$f":"IF(_xlfn.FORMULATEXT(INDIRECT(S1029))=T1029,0,1)","v":0}]
[null,null,null,null,null,null,null,null,null,null,null,null,null,null,null,null,null,null,{"$f":"ADDRESS(59,16,1,1,$S$1)","v":"'Geographic Diversification'!$P$59"},"='Schedule IIIA (EBS)'!L29",{"$f":"IF(_xlfn.FORMULATEXT(INDIRECT(S1030))=T1030,0,1)","v":0}]
[null,null,null,null,null,null,null,null,null,null,null,null,null,null,null,null,null,null,{"$f":"ADDRESS(59,17,1,1,$S$1)","v":"'Geographic Diversification'!$Q$59"},"='Schedule IIIA (EBS)'!M29",{"$f":"IF(_xlfn.FORMULATEXT(INDIRECT(S1031))=T1031,0,1)","v":0}]
[null,null,null,null,null,null,null,null,null,null,null,null,null,null,null,null,null,null,{"$f":"ADDRESS(59,18,1,1,$S$1)","v":"'Geographic Diversification'!$R$59"},"='Schedule IIIA (EBS)'!N29",{"$f":"IF(_xlfn.FORMULATEXT(INDIRECT(S1032))=T1032,0,1)","v":0}]
[null,null,null,null,null,null,null,null,null,null,null,null,null,null,null,null,null,null,{"$f":"ADDRESS(59,19,1,1,$S$1)","v":"'Geographic Diversification'!$S$59"},"='Schedule IIIA (EBS)'!O29",{"$f":"IF(_xlfn.FORMULATEXT(INDIRECT(S1033))=T1033,0,1)","v":0}]
[null,null,null,null,null,null,null,null,null,null,null,null,null,null,null,null,null,null,{"$f":"ADDRESS(59,20,1,1,$S$1)","v":"'Geographic Diversification'!$T$59"},"='Schedule IIIA (EBS)'!P29",{"$f":"IF(_xlfn.FORMULATEXT(INDIRECT(S1034))=T1034,0,1)","v":0}]
[null,null,null,null,null,null,null,null,null,null,null,null,null,null,null,null,null,null,{"$f":"ADDRESS(59,21,1,1,$S$1)","v":"'Geographic Diversification'!$U$59"},"='Schedule IIIA (EBS)'!Q29",{"$f":"IF(_xlfn.FORMULATEXT(INDIRECT(S1035))=T1035,0,1)","v":0}]
[null,null,null,null,null,null,null,null,null,null,null,null,null,null,null,null,null,null,{"$f":"ADDRESS(59,22,1,1,$S$1)","v":"'Geographic Diversification'!$V$59"},"='Schedule IIIA (EBS)'!R29",{"$f":"IF(_xlfn.FORMULATEXT(INDIRECT(S1036))=T1036,0,1)","v":0}]
[null,null,null,null,null,null,null,null,null,null,null,null,null,null,null,null,null,null,{"$f":"ADDRESS(59,23,1,1,$S$1)","v":"'Geographic Diversification'!$W$59"},"='Schedule IIIA (EBS)'!S29",{"$f":"IF(_xlfn.FORMULATEXT(INDIRECT(S1037))=T1037,0,1)","v":0}]
[null,null,null,null,null,null,null,null,null,null,null,null,null,null,null,null,null,null,{"$f":"ADDRESS(59,24,1,1,$S$1)","v":"'Geographic Diversification'!$X$59"},"='Schedule IIIA (EBS)'!T29",{"$f":"IF(_xlfn.FORMULATEXT(INDIRECT(S1038))=T1038,0,1)","v":0}]
[null,null,null,null,null,null,null,null,null,null,null,null,null,null,null,null,null,null,{"$f":"ADDRESS(59,25,1,1,$S$1)","v":"'Geographic Diversification'!$Y$59"},"='Schedule IIIA (EBS)'!U29",{"$f":"IF(_xlfn.FORMULATEXT(INDIRECT(S1039))=T1039,0,1)","v":0}]
[null,null,null,null,null,null,null,null,null,null,null,null,null,null,null,null,null,null,{"$f":"ADDRESS(59,26,1,1,$S$1)","v":"'Geographic Diversification'!$Z$59"},"='Schedule IIIA (EBS)'!V29",{"$f":"IF(_xlfn.FORMULATEXT(INDIRECT(S1040))=T1040,0,1)","v":0}]
[null,null,null,null,null,null,null,null,null,null,null,null,null,null,null,null,null,null,{"$f":"ADDRESS(60,4,1,1,$S$1)","v":"'Geographic Diversification'!$D$60"},"=SUM(I60:Z60)",{"$f":"IF(_xlfn.FORMULATEXT(INDIRECT(S1041))=T1041,0,1)","v":0}]
[null,null,null,null,null,null,null,null,null,null,null,null,null,null,null,null,null,null,{"$f":"ADDRESS(60,5,1,1,$S$1)","v":"'Geographic Diversification'!$E$60"},"=SUMSQ(I60:Z60)",{"$f":"IF(_xlfn.FORMULATEXT(INDIRECT(S1042))=T1042,0,1)","v":0}]
[null,null,null,null,null,null,null,null,null,null,null,null,null,null,null,null,null,null,{"$f":"ADDRESS(60,6,1,1,$S$1)","v":"'Geographic Diversification'!$F$60"},"=(IF(D60>0,E60/D60^2,1))",{"$f":"IF(_xlfn.FORMULATEXT(INDIRECT(S1043))=T1043,0,1)","v":0}]
[null,null,null,null,null,null,null,null,null,null,null,null,null,null,null,null,null,null,{"$f":"ADDRESS(60,7,1,1,$S$1)","v":"'Geographic Diversification'!$G$60"},"=D60*(0.75+0.25*F60)",{"$f":"IF(_xlfn.FORMULATEXT(INDIRECT(S1044))=T1044,0,1)","v":0}]
[null,null,null,null,null,null,null,null,null,null,null,null,null,null,null,null,null,null,{"$f":"ADDRESS(60,8,1,1,$S$1)","v":"'Geographic Diversification'!$H$60"},"=IF('Schedule IIIA (EBS)'!AB30=\"TRUE\",G60,'Schedule III (EBS)'!F30)",{"$f":"IF(_xlfn.FORMULATEXT(INDIRECT(S1045))=T1045,0,1)","v":0}]
[null,null,null,null,null,null,null,null,null,null,null,null,null,null,null,null,null,null,{"$f":"ADDRESS(60,9,1,1,$S$1)","v":"'Geographic Diversification'!$I$60"},"='Schedule IIIA (EBS)'!E30",{"$f":"IF(_xlfn.FORMULATEXT(INDIRECT(S1046))=T1046,0,1)","v":0}]
[null,null,null,null,null,null,null,null,null,null,null,null,null,null,null,null,null,null,{"$f":"ADDRESS(60,10,1,1,$S$1)","v":"'Geographic Diversification'!$J$60"},"='Schedule IIIA (EBS)'!F30",{"$f":"IF(_xlfn.FORMULATEXT(INDIRECT(S1047))=T1047,0,1)","v":0}]
[null,null,null,null,null,null,null,null,null,null,null,null,null,null,null,null,null,null,{"$f":"ADDRESS(60,11,1,1,$S$1)","v":"'Geographic Diversification'!$K$60"},"='Schedule IIIA (EBS)'!G30",{"$f":"IF(_xlfn.FORMULATEXT(INDIRECT(S1048))=T1048,0,1)","v":0}]
[null,null,null,null,null,null,null,null,null,null,null,null,null,null,null,null,null,null,{"$f":"ADDRESS(60,12,1,1,$S$1)","v":"'Geographic Diversification'!$L$60"},"='Schedule IIIA (EBS)'!H30",{"$f":"IF(_xlfn.FORMULATEXT(INDIRECT(S1049))=T1049,0,1)","v":0}]
[null,null,null,null,null,null,null,null,null,null,null,null,null,null,null,null,null,null,{"$f":"ADDRESS(60,13,1,1,$S$1)","v":"'Geographic Diversification'!$M$60"},"='Schedule IIIA (EBS)'!I30",{"$f":"IF(_xlfn.FORMULATEXT(INDIRECT(S1050))=T1050,0,1)","v":0}]
[null,null,null,null,null,null,null,null,null,null,null,null,null,null,null,null,null,null,{"$f":"ADDRESS(60,14,1,1,$S$1)","v":"'Geographic Diversification'!$N$60"},"='Schedule IIIA (EBS)'!J30",{"$f":"IF(_xlfn.FORMULATEXT(INDIRECT(S1051))=T1051,0,1)","v":0}]
[null,null,null,null,null,null,null,null,null,null,null,null,null,null,null,null,null,null,{"$f":"ADDRESS(60,15,1,1,$S$1)","v":"'Geographic Diversification'!$O$60"},"='Schedule IIIA (EBS)'!K30",{"$f":"IF(_xlfn.FORMULATEXT(INDIRECT(S1052))=T1052,0,1)","v":0}]
[null,null,null,null,null,null,null,null,null,null,null,null,null,null,null,null,null,null,{"$f":"ADDRESS(60,16,1,1,$S$1)","v":"'Geographic Diversification'!$P$60"},"='Schedule IIIA (EBS)'!L30",{"$f":"IF(_xlfn.FORMULATEXT(INDIRECT(S1053))=T1053,0,1)","v":0}]
[null,null,null,null,null,null,null,null,null,null,null,null,null,null,null,null,null,null,{"$f":"ADDRESS(60,17,1,1,$S$1)","v":"'Geographic Diversification'!$Q$60"},"='Schedule IIIA (EBS)'!M30",{"$f":"IF(_xlfn.FORMULATEXT(INDIRECT(S1054))=T1054,0,1)","v":0}]
[null,null,null,null,null,null,null,null,null,null,null,null,null,null,null,null,null,null,{"$f":"ADDRESS(60,18,1,1,$S$1)","v":"'Geographic Diversification'!$R$60"},"='Schedule IIIA (EBS)'!N30",{"$f":"IF(_xlfn.FORMULATEXT(INDIRECT(S1055))=T1055,0,1)","v":0}]
[null,null,null,null,null,null,null,null,null,null,null,null,null,null,null,null,null,null,{"$f":"ADDRESS(60,19,1,1,$S$1)","v":"'Geographic Diversification'!$S$60"},"='Schedule IIIA (EBS)'!O30",{"$f":"IF(_xlfn.FORMULATEXT(INDIRECT(S1056))=T1056,0,1)","v":0}]
[null,null,null,null,null,null,null,null,null,null,null,null,null,null,null,null,null,null,{"$f":"ADDRESS(60,20,1,1,$S$1)","v":"'Geographic Diversification'!$T$60"},"='Schedule IIIA (EBS)'!P30",{"$f":"IF(_xlfn.FORMULATEXT(INDIRECT(S1057))=T1057,0,1)","v":0}]
[null,null,null,null,null,null,null,null,null,null,null,null,null,null,null,null,null,null,{"$f":"ADDRESS(60,21,1,1,$S$1)","v":"'Geographic Diversification'!$U$60"},"='Schedule IIIA (EBS)'!Q30",{"$f":"IF(_xlfn.FORMULATEXT(INDIRECT(S1058))=T1058,0,1)","v":0}]
[null,null,null,null,null,null,null,null,null,null,null,null,null,null,null,null,null,null,{"$f":"ADDRESS(60,22,1,1,$S$1)","v":"'Geographic Diversification'!$V$60"},"='Schedule IIIA (EBS)'!R30",{"$f":"IF(_xlfn.FORMULATEXT(INDIRECT(S1059))=T1059,0,1)","v":0}]
[null,null,null,null,null,null,null,null,null,null,null,null,null,null,null,null,null,null,{"$f":"ADDRESS(60,23,1,1,$S$1)","v":"'Geographic Diversification'!$W$60"},"='Schedule IIIA (EBS)'!S30",{"$f":"IF(_xlfn.FORMULATEXT(INDIRECT(S1060))=T1060,0,1)","v":0}]
[null,null,null,null,null,null,null,null,null,null,null,null,null,null,null,null,null,null,{"$f":"ADDRESS(60,24,1,1,$S$1)","v":"'Geographic Diversification'!$X$60"},"='Schedule IIIA (EBS)'!T30",{"$f":"IF(_xlfn.FORMULATEXT(INDIRECT(S1061))=T1061,0,1)","v":0}]
[null,null,null,null,null,null,null,null,null,null,null,null,null,null,null,null,null,null,{"$f":"ADDRESS(60,25,1,1,$S$1)","v":"'Geographic Diversification'!$Y$60"},"='Schedule IIIA (EBS)'!U30",{"$f":"IF(_xlfn.FORMULATEXT(INDIRECT(S1062))=T1062,0,1)","v":0}]
[null,null,null,null,null,null,null,null,null,null,null,null,null,null,null,null,null,null,{"$f":"ADDRESS(60,26,1,1,$S$1)","v":"'Geographic Diversification'!$Z$60"},"='Schedule IIIA (EBS)'!V30",{"$f":"IF(_xlfn.FORMULATEXT(INDIRECT(S1063))=T1063,0,1)","v":0}]
[null,null,null,null,null,null,null,null,null,null,null,null,null,null,null,null,null,null,{"$f":"ADDRESS(61,4,1,1,$S$1)","v":"'Geographic Diversification'!$D$61"},"=SUM(I61:Z61)",{"$f":"IF(_xlfn.FORMULATEXT(INDIRECT(S1064))=T1064,0,1)","v":0}]
[null,null,null,null,null,null,null,null,null,null,null,null,null,null,null,null,null,null,{"$f":"ADDRESS(61,5,1,1,$S$1)","v":"'Geographic Diversification'!$E$61"},"=SUMSQ(I61:Z61)",{"$f":"IF(_xlfn.FORMULATEXT(INDIRECT(S1065))=T1065,0,1)","v":0}]
[null,null,null,null,null,null,null,null,null,null,null,null,null,null,null,null,null,null,{"$f":"ADDRESS(61,6,1,1,$S$1)","v":"'Geographic Diversification'!$F$61"},"=(IF(D61>0,E61/D61^2,1))",{"$f":"IF(_xlfn.FORMULATEXT(INDIRECT(S1066))=T1066,0,1)","v":0}]
[null,null,null,null,null,null,null,null,null,null,null,null,null,null,null,null,null,null,{"$f":"ADDRESS(61,7,1,1,$S$1)","v":"'Geographic Diversification'!$G$61"},"=D61*(0.75+0.25*F61)",{"$f":"IF(_xlfn.FORMULATEXT(INDIRECT(S1067))=T1067,0,1)","v":0}]
[null,null,null,null,null,null,null,null,null,null,null,null,null,null,null,null,null,null,{"$f":"ADDRESS(61,8,1,1,$S$1)","v":"'Geographic Diversification'!$H$61"},"=IF('Schedule IIIA (EBS)'!AB31=\"TRUE\",G61,'Schedule III (EBS)'!F31)",{"$f":"IF(_xlfn.FORMULATEXT(INDIRECT(S1068))=T1068,0,1)","v":0}]
[null,null,null,null,null,null,null,null,null,null,null,null,null,null,null,null,null,null,{"$f":"ADDRESS(61,9,1,1,$S$1)","v":"'Geographic Diversification'!$I$61"},"='Schedule IIIA (EBS)'!E31",{"$f":"IF(_xlfn.FORMULATEXT(INDIRECT(S1069))=T1069,0,1)","v":0}]
[null,null,null,null,null,null,null,null,null,null,null,null,null,null,null,null,null,null,{"$f":"ADDRESS(61,10,1,1,$S$1)","v":"'Geographic Diversification'!$J$61"},"='Schedule IIIA (EBS)'!F31",{"$f":"IF(_xlfn.FORMULATEXT(INDIRECT(S1070))=T1070,0,1)","v":0}]
[null,null,null,null,null,null,null,null,null,null,null,null,null,null,null,null,null,null,{"$f":"ADDRESS(61,11,1,1,$S$1)","v":"'Geographic Diversification'!$K$61"},"='Schedule IIIA (EBS)'!G31",{"$f":"IF(_xlfn.FORMULATEXT(INDIRECT(S1071))=T1071,0,1)","v":0}]
[null,null,null,null,null,null,null,null,null,null,null,null,null,null,null,null,null,null,{"$f":"ADDRESS(61,12,1,1,$S$1)","v":"'Geographic Diversification'!$L$61"},"='Schedule IIIA (EBS)'!H31",{"$f":"IF(_xlfn.FORMULATEXT(INDIRECT(S1072))=T1072,0,1)","v":0}]
[null,null,null,null,null,null,null,null,null,null,null,null,null,null,null,null,null,null,{"$f":"ADDRESS(61,13,1,1,$S$1)","v":"'Geographic Diversification'!$M$61"},"='Schedule IIIA (EBS)'!I31",{"$f":"IF(_xlfn.FORMULATEXT(INDIRECT(S1073))=T1073,0,1)","v":0}]
[null,null,null,null,null,null,null,null,null,null,null,null,null,null,null,null,null,null,{"$f":"ADDRESS(61,14,1,1,$S$1)","v":"'Geographic Diversification'!$N$61"},"='Schedule IIIA (EBS)'!J31",{"$f":"IF(_xlfn.FORMULATEXT(INDIRECT(S1074))=T1074,0,1)","v":0}]
[null,null,null,null,null,null,null,null,null,null,null,null,null,null,null,null,null,null,{"$f":"ADDRESS(61,15,1,1,$S$1)","v":"'Geographic Diversification'!$O$61"},"='Schedule IIIA (EBS)'!K31",{"$f":"IF(_xlfn.FORMULATEXT(INDIRECT(S1075))=T1075,0,1)","v":0}]
[null,null,null,null,null,null,null,null,null,null,null,null,null,null,null,null,null,null,{"$f":"ADDRESS(61,16,1,1,$S$1)","v":"'Geographic Diversification'!$P$61"},"='Schedule IIIA (EBS)'!L31",{"$f":"IF(_xlfn.FORMULATEXT(INDIRECT(S1076))=T1076,0,1)","v":0}]
[null,null,null,null,null,null,null,null,null,null,null,null,null,null,null,null,null,null,{"$f":"ADDRESS(61,17,1,1,$S$1)","v":"'Geographic Diversification'!$Q$61"},"='Schedule IIIA (EBS)'!M31",{"$f":"IF(_xlfn.FORMULATEXT(INDIRECT(S1077))=T1077,0,1)","v":0}]
[null,null,null,null,null,null,null,null,null,null,null,null,null,null,null,null,null,null,{"$f":"ADDRESS(61,18,1,1,$S$1)","v":"'Geographic Diversification'!$R$61"},"='Schedule IIIA (EBS)'!N31",{"$f":"IF(_xlfn.FORMULATEXT(INDIRECT(S1078))=T1078,0,1)","v":0}]
[null,null,null,null,null,null,null,null,null,null,null,null,null,null,null,null,null,null,{"$f":"ADDRESS(61,19,1,1,$S$1)","v":"'Geographic Diversification'!$S$61"},"='Schedule IIIA (EBS)'!O31",{"$f":"IF(_xlfn.FORMULATEXT(INDIRECT(S1079))=T1079,0,1)","v":0}]
[null,null,null,null,null,null,null,null,null,null,null,null,null,null,null,null,null,null,{"$f":"ADDRESS(61,20,1,1,$S$1)","v":"'Geographic Diversification'!$T$61"},"='Schedule IIIA (EBS)'!P31",{"$f":"IF(_xlfn.FORMULATEXT(INDIRECT(S1080))=T1080,0,1)","v":0}]
[null,null,null,null,null,null,null,null,null,null,null,null,null,null,null,null,null,null,{"$f":"ADDRESS(61,21,1,1,$S$1)","v":"'Geographic Diversification'!$U$61"},"='Schedule IIIA (EBS)'!Q31",{"$f":"IF(_xlfn.FORMULATEXT(INDIRECT(S1081))=T1081,0,1)","v":0}]
[null,null,null,null,null,null,null,null,null,null,null,null,null,null,null,null,null,null,{"$f":"ADDRESS(61,22,1,1,$S$1)","v":"'Geographic Diversification'!$V$61"},"='Schedule IIIA (EBS)'!R31",{"$f":"IF(_xlfn.FORMULATEXT(INDIRECT(S1082))=T1082,0,1)","v":0}]
[null,null,null,null,null,null,null,null,null,null,null,null,null,null,null,null,null,null,{"$f":"ADDRESS(61,23,1,1,$S$1)","v":"'Geographic Diversification'!$W$61"},"='Schedule IIIA (EBS)'!S31",{"$f":"IF(_xlfn.FORMULATEXT(INDIRECT(S1083))=T1083,0,1)","v":0}]
[null,null,null,null,null,null,null,null,null,null,null,null,null,null,null,null,null,null,{"$f":"ADDRESS(61,24,1,1,$S$1)","v":"'Geographic Diversification'!$X$61"},"='Schedule IIIA (EBS)'!T31",{"$f":"IF(_xlfn.FORMULATEXT(INDIRECT(S1084))=T1084,0,1)","v":0}]
[null,null,null,null,null,null,null,null,null,null,null,null,null,null,null,null,null,null,{"$f":"ADDRESS(61,25,1,1,$S$1)","v":"'Geographic Diversification'!$Y$61"},"='Schedule IIIA (EBS)'!U31",{"$f":"IF(_xlfn.FORMULATEXT(INDIRECT(S1085))=T1085,0,1)","v":0}]
[null,null,null,null,null,null,null,null,null,null,null,null,null,null,null,null,null,null,{"$f":"ADDRESS(61,26,1,1,$S$1)","v":"'Geographic Diversification'!$Z$61"},"='Schedule IIIA (EBS)'!V31",{"$f":"IF(_xlfn.FORMULATEXT(INDIRECT(S1086))=T1086,0,1)","v":0}]
[null,null,null,null,null,null,null,null,null,null,null,null,null,null,null,null,null,null,{"$f":"ADDRESS(62,4,1,1,$S$1)","v":"'Geographic Diversification'!$D$62"},"=SUM(I62:Z62)",{"$f":"IF(_xlfn.FORMULATEXT(INDIRECT(S1087))=T1087,0,1)","v":0}]
[null,null,null,null,null,null,null,null,null,null,null,null,null,null,null,null,null,null,{"$f":"ADDRESS(62,5,1,1,$S$1)","v":"'Geographic Diversification'!$E$62"},"=SUMSQ(I62:Z62)",{"$f":"IF(_xlfn.FORMULATEXT(INDIRECT(S1088))=T1088,0,1)","v":0}]
[null,null,null,null,null,null,null,null,null,null,null,null,null,null,null,null,null,null,{"$f":"ADDRESS(62,6,1,1,$S$1)","v":"'Geographic Diversification'!$F$62"},"=(IF(D62>0,E62/D62^2,1))",{"$f":"IF(_xlfn.FORMULATEXT(INDIRECT(S1089))=T1089,0,1)","v":0}]
[null,null,null,null,null,null,null,null,null,null,null,null,null,null,null,null,null,null,{"$f":"ADDRESS(62,7,1,1,$S$1)","v":"'Geographic Diversification'!$G$62"},"=D62*(0.75+0.25*F62)",{"$f":"IF(_xlfn.FORMULATEXT(INDIRECT(S1090))=T1090,0,1)","v":0}]
[null,null,null,null,null,null,null,null,null,null,null,null,null,null,null,null,null,null,{"$f":"ADDRESS(62,8,1,1,$S$1)","v":"'Geographic Diversification'!$H$62"},"=IF('Schedule IIIA (EBS)'!AB32=\"TRUE\",G62,'Schedule III (EBS)'!F32)",{"$f":"IF(_xlfn.FORMULATEXT(INDIRECT(S1091))=T1091,0,1)","v":0}]
[null,null,null,null,null,null,null,null,null,null,null,null,null,null,null,null,null,null,{"$f":"ADDRESS(62,9,1,1,$S$1)","v":"'Geographic Diversification'!$I$62"},"='Schedule IIIA (EBS)'!E32",{"$f":"IF(_xlfn.FORMULATEXT(INDIRECT(S1092))=T1092,0,1)","v":0}]
[null,null,null,null,null,null,null,null,null,null,null,null,null,null,null,null,null,null,{"$f":"ADDRESS(62,10,1,1,$S$1)","v":"'Geographic Diversification'!$J$62"},"='Schedule IIIA (EBS)'!F32",{"$f":"IF(_xlfn.FORMULATEXT(INDIRECT(S1093))=T1093,0,1)","v":0}]
[null,null,null,null,null,null,null,null,null,null,null,null,null,null,null,null,null,null,{"$f":"ADDRESS(62,11,1,1,$S$1)","v":"'Geographic Diversification'!$K$62"},"='Schedule IIIA (EBS)'!G32",{"$f":"IF(_xlfn.FORMULATEXT(INDIRECT(S1094))=T1094,0,1)","v":0}]
[null,null,null,null,null,null,null,null,null,null,null,null,null,null,null,null,null,null,{"$f":"ADDRESS(62,12,1,1,$S$1)","v":"'Geographic Diversification'!$L$62"},"='Schedule IIIA (EBS)'!H32",{"$f":"IF(_xlfn.FORMULATEXT(INDIRECT(S1095))=T1095,0,1)","v":0}]
[null,null,null,null,null,null,null,null,null,null,null,null,null,null,null,null,null,null,{"$f":"ADDRESS(62,13,1,1,$S$1)","v":"'Geographic Diversification'!$M$62"},"='Schedule IIIA (EBS)'!I32",{"$f":"IF(_xlfn.FORMULATEXT(INDIRECT(S1096))=T1096,0,1)","v":0}]
[null,null,null,null,null,null,null,null,null,null,null,null,null,null,null,null,null,null,{"$f":"ADDRESS(62,14,1,1,$S$1)","v":"'Geographic Diversification'!$N$62"},"='Schedule IIIA (EBS)'!J32",{"$f":"IF(_xlfn.FORMULATEXT(INDIRECT(S1097))=T1097,0,1)","v":0}]
[null,null,null,null,null,null,null,null,null,null,null,null,null,null,null,null,null,null,{"$f":"ADDRESS(62,15,1,1,$S$1)","v":"'Geographic Diversification'!$O$62"},"='Schedule IIIA (EBS)'!K32",{"$f":"IF(_xlfn.FORMULATEXT(INDIRECT(S1098))=T1098,0,1)","v":0}]
[null,null,null,null,null,null,null,null,null,null,null,null,null,null,null,null,null,null,{"$f":"ADDRESS(62,16,1,1,$S$1)","v":"'Geographic Diversification'!$P$62"},"='Schedule IIIA (EBS)'!L32",{"$f":"IF(_xlfn.FORMULATEXT(INDIRECT(S1099))=T1099,0,1)","v":0}]
[null,null,null,null,null,null,null,null,null,null,null,null,null,null,null,null,null,null,{"$f":"ADDRESS(62,17,1,1,$S$1)","v":"'Geographic Diversification'!$Q$62"},"='Schedule IIIA (EBS)'!M32",{"$f":"IF(_xlfn.FORMULATEXT(INDIRECT(S1100))=T1100,0,1)","v":0}]
[null,null,null,null,null,null,null,null,null,null,null,null,null,null,null,null,null,null,{"$f":"ADDRESS(62,18,1,1,$S$1)","v":"'Geographic Diversification'!$R$62"},"='Schedule IIIA (EBS)'!N32",{"$f":"IF(_xlfn.FORMULATEXT(INDIRECT(S1101))=T1101,0,1)","v":0}]
[null,null,null,null,null,null,null,null,null,null,null,null,null,null,null,null,null,null,{"$f":"ADDRESS(62,19,1,1,$S$1)","v":"'Geographic Diversification'!$S$62"},"='Schedule IIIA (EBS)'!O32",{"$f":"IF(_xlfn.FORMULATEXT(INDIRECT(S1102))=T1102,0,1)","v":0}]
[null,null,null,null,null,null,null,null,null,null,null,null,null,null,null,null,null,null,{"$f":"ADDRESS(62,20,1,1,$S$1)","v":"'Geographic Diversification'!$T$62"},"='Schedule IIIA (EBS)'!P32",{"$f":"IF(_xlfn.FORMULATEXT(INDIRECT(S1103))=T1103,0,1)","v":0}]
[null,null,null,null,null,null,null,null,null,null,null,null,null,null,null,null,null,null,{"$f":"ADDRESS(62,21,1,1,$S$1)","v":"'Geographic Diversification'!$U$62"},"='Schedule IIIA (EBS)'!Q32",{"$f":"IF(_xlfn.FORMULATEXT(INDIRECT(S1104))=T1104,0,1)","v":0}]
[null,null,null,null,null,null,null,null,null,null,null,null,null,null,null,null,null,null,{"$f":"ADDRESS(62,22,1,1,$S$1)","v":"'Geographic Diversification'!$V$62"},"='Schedule IIIA (EBS)'!R32",{"$f":"IF(_xlfn.FORMULATEXT(INDIRECT(S1105))=T1105,0,1)","v":0}]
[null,null,null,null,null,null,null,null,null,null,null,null,null,null,null,null,null,null,{"$f":"ADDRESS(62,23,1,1,$S$1)","v":"'Geographic Diversification'!$W$62"},"='Schedule IIIA (EBS)'!S32",{"$f":"IF(_xlfn.FORMULATEXT(INDIRECT(S1106))=T1106,0,1)","v":0}]
[null,null,null,null,null,null,null,null,null,null,null,null,null,null,null,null,null,null,{"$f":"ADDRESS(62,24,1,1,$S$1)","v":"'Geographic Diversification'!$X$62"},"='Schedule IIIA (EBS)'!T32",{"$f":"IF(_xlfn.FORMULATEXT(INDIRECT(S1107))=T1107,0,1)","v":0}]
[null,null,null,null,null,null,null,null,null,null,null,null,null,null,null,null,null,null,{"$f":"ADDRESS(62,25,1,1,$S$1)","v":"'Geographic Diversification'!$Y$62"},"='Schedule IIIA (EBS)'!U32",{"$f":"IF(_xlfn.FORMULATEXT(INDIRECT(S1108))=T1108,0,1)","v":0}]
[null,null,null,null,null,null,null,null,null,null,null,null,null,null,null,null,null,null,{"$f":"ADDRESS(62,26,1,1,$S$1)","v":"'Geographic Diversification'!$Z$62"},"='Schedule IIIA (EBS)'!V32",{"$f":"IF(_xlfn.FORMULATEXT(INDIRECT(S1109))=T1109,0,1)","v":0}]
[null,null,null,null,null,null,null,null,null,null,null,null,null,null,null,null,null,null,{"$f":"ADDRESS(63,4,1,1,$S$1)","v":"'Geographic Diversification'!$D$63"},"=SUM(I63:Z63)",{"$f":"IF(_xlfn.FORMULATEXT(INDIRECT(S1110))=T1110,0,1)","v":0}]
[null,null,null,null,null,null,null,null,null,null,null,null,null,null,null,null,null,null,{"$f":"ADDRESS(63,5,1,1,$S$1)","v":"'Geographic Diversification'!$E$63"},"=SUMSQ(I63:Z63)",{"$f":"IF(_xlfn.FORMULATEXT(INDIRECT(S1111))=T1111,0,1)","v":0}]
[null,null,null,null,null,null,null,null,null,null,null,null,null,null,null,null,null,null,{"$f":"ADDRESS(63,6,1,1,$S$1)","v":"'Geographic Diversification'!$F$63"},"=(IF(D63>0,E63/D63^2,1))",{"$f":"IF(_xlfn.FORMULATEXT(INDIRECT(S1112))=T1112,0,1)","v":0}]
[null,null,null,null,null,null,null,null,null,null,null,null,null,null,null,null,null,null,{"$f":"ADDRESS(63,7,1,1,$S$1)","v":"'Geographic Diversification'!$G$63"},"=D63*(0.75+0.25*F63)",{"$f":"IF(_xlfn.FORMULATEXT(INDIRECT(S1113))=T1113,0,1)","v":0}]
[null,null,null,null,null,null,null,null,null,null,null,null,null,null,null,null,null,null,{"$f":"ADDRESS(63,8,1,1,$S$1)","v":"'Geographic Diversification'!$H$63"},"=IF('Schedule IIIA (EBS)'!AB33=\"TRUE\",G63,'Schedule III (EBS)'!F33)",{"$f":"IF(_xlfn.FORMULATEXT(INDIRECT(S1114))=T1114,0,1)","v":0}]
[null,null,null,null,null,null,null,null,null,null,null,null,null,null,null,null,null,null,{"$f":"ADDRESS(63,9,1,1,$S$1)","v":"'Geographic Diversification'!$I$63"},"='Schedule IIIA (EBS)'!E33",{"$f":"IF(_xlfn.FORMULATEXT(INDIRECT(S1115))=T1115,0,1)","v":0}]
[null,null,null,null,null,null,null,null,null,null,null,null,null,null,null,null,null,null,{"$f":"ADDRESS(63,10,1,1,$S$1)","v":"'Geographic Diversification'!$J$63"},"='Schedule IIIA (EBS)'!F33",{"$f":"IF(_xlfn.FORMULATEXT(INDIRECT(S1116))=T1116,0,1)","v":0}]
[null,null,null,null,null,null,null,null,null,null,null,null,null,null,null,null,null,null,{"$f":"ADDRESS(63,11,1,1,$S$1)","v":"'Geographic Diversification'!$K$63"},"='Schedule IIIA (EBS)'!G33",{"$f":"IF(_xlfn.FORMULATEXT(INDIRECT(S1117))=T1117,0,1)","v":0}]
[null,null,null,null,null,null,null,null,null,null,null,null,null,null,null,null,null,null,{"$f":"ADDRESS(63,12,1,1,$S$1)","v":"'Geographic Diversification'!$L$63"},"='Schedule IIIA (EBS)'!H33",{"$f":"IF(_xlfn.FORMULATEXT(INDIRECT(S1118))=T1118,0,1)","v":0}]
[null,null,null,null,null,null,null,null,null,null,null,null,null,null,null,null,null,null,{"$f":"ADDRESS(63,13,1,1,$S$1)","v":"'Geographic Diversification'!$M$63"},"='Schedule IIIA (EBS)'!I33",{"$f":"IF(_xlfn.FORMULATEXT(INDIRECT(S1119))=T1119,0,1)","v":0}]
[null,null,null,null,null,null,null,null,null,null,null,null,null,null,null,null,null,null,{"$f":"ADDRESS(63,14,1,1,$S$1)","v":"'Geographic Diversification'!$N$63"},"='Schedule IIIA (EBS)'!J33",{"$f":"IF(_xlfn.FORMULATEXT(INDIRECT(S1120))=T1120,0,1)","v":0}]
[null,null,null,null,null,null,null,null,null,null,null,null,null,null,null,null,null,null,{"$f":"ADDRESS(63,15,1,1,$S$1)","v":"'Geographic Diversification'!$O$63"},"='Schedule IIIA (EBS)'!K33",{"$f":"IF(_xlfn.FORMULATEXT(INDIRECT(S1121))=T1121,0,1)","v":0}]
[null,null,null,null,null,null,null,null,null,null,null,null,null,null,null,null,null,null,{"$f":"ADDRESS(63,16,1,1,$S$1)","v":"'Geographic Diversification'!$P$63"},"='Schedule IIIA (EBS)'!L33",{"$f":"IF(_xlfn.FORMULATEXT(INDIRECT(S1122))=T1122,0,1)","v":0}]
[null,null,null,null,null,null,null,null,null,null,null,null,null,null,null,null,null,null,{"$f":"ADDRESS(63,17,1,1,$S$1)","v":"'Geographic Diversification'!$Q$63"},"='Schedule IIIA (EBS)'!M33",{"$f":"IF(_xlfn.FORMULATEXT(INDIRECT(S1123))=T1123,0,1)","v":0}]
[null,null,null,null,null,null,null,null,null,null,null,null,null,null,null,null,null,null,{"$f":"ADDRESS(63,18,1,1,$S$1)","v":"'Geographic Diversification'!$R$63"},"='Schedule IIIA (EBS)'!N33",{"$f":"IF(_xlfn.FORMULATEXT(INDIRECT(S1124))=T1124,0,1)","v":0}]
[null,null,null,null,null,null,null,null,null,null,null,null,null,null,null,null,null,null,{"$f":"ADDRESS(63,19,1,1,$S$1)","v":"'Geographic Diversification'!$S$63"},"='Schedule IIIA (EBS)'!O33",{"$f":"IF(_xlfn.FORMULATEXT(INDIRECT(S1125))=T1125,0,1)","v":0}]
[null,null,null,null,null,null,null,null,null,null,null,null,null,null,null,null,null,null,{"$f":"ADDRESS(63,20,1,1,$S$1)","v":"'Geographic Diversification'!$T$63"},"='Schedule IIIA (EBS)'!P33",{"$f":"IF(_xlfn.FORMULATEXT(INDIRECT(S1126))=T1126,0,1)","v":0}]
[null,null,null,null,null,null,null,null,null,null,null,null,null,null,null,null,null,null,{"$f":"ADDRESS(63,21,1,1,$S$1)","v":"'Geographic Diversification'!$U$63"},"='Schedule IIIA (EBS)'!Q33",{"$f":"IF(_xlfn.FORMULATEXT(INDIRECT(S1127))=T1127,0,1)","v":0}]
[null,null,null,null,null,null,null,null,null,null,null,null,null,null,null,null,null,null,{"$f":"ADDRESS(63,22,1,1,$S$1)","v":"'Geographic Diversification'!$V$63"},"='Schedule IIIA (EBS)'!R33",{"$f":"IF(_xlfn.FORMULATEXT(INDIRECT(S1128))=T1128,0,1)","v":0}]
[null,null,null,null,null,null,null,null,null,null,null,null,null,null,null,null,null,null,{"$f":"ADDRESS(63,23,1,1,$S$1)","v":"'Geographic Diversification'!$W$63"},"='Schedule IIIA (EBS)'!S33",{"$f":"IF(_xlfn.FORMULATEXT(INDIRECT(S1129))=T1129,0,1)","v":0}]
[null,null,null,null,null,null,null,null,null,null,null,null,null,null,null,null,null,null,{"$f":"ADDRESS(63,24,1,1,$S$1)","v":"'Geographic Diversification'!$X$63"},"='Schedule IIIA (EBS)'!T33",{"$f":"IF(_xlfn.FORMULATEXT(INDIRECT(S1130))=T1130,0,1)","v":0}]
[null,null,null,null,null,null,null,null,null,null,null,null,null,null,null,null,null,null,{"$f":"ADDRESS(63,25,1,1,$S$1)","v":"'Geographic Diversification'!$Y$63"},"='Schedule IIIA (EBS)'!U33",{"$f":"IF(_xlfn.FORMULATEXT(INDIRECT(S1131))=T1131,0,1)","v":0}]
[null,null,null,null,null,null,null,null,null,null,null,null,null,null,null,null,null,null,{"$f":"ADDRESS(63,26,1,1,$S$1)","v":"'Geographic Diversification'!$Z$63"},"='Schedule IIIA (EBS)'!V33",{"$f":"IF(_xlfn.FORMULATEXT(INDIRECT(S1132))=T1132,0,1)","v":0}]
[null,null,null,null,null,null,null,null,null,null,null,null,null,null,null,null,null,null,{"$f":"ADDRESS(65,4,1,1,$S$1)","v":"'Geographic Diversification'!$D$65"},"=SUM(D40:D63)",{"$f":"IF(_xlfn.FORMULATEXT(INDIRECT(S1133))=T1133,0,1)","v":0}]
[null,null,null,null,null,null,null,null,null,null,null,null,null,null,null,null,null,null,{"$f":"ADDRESS(65,5,1,1,$S$1)","v":"'Geographic Diversification'!$E$65"},"=SUM(E40:E63)",{"$f":"IF(_xlfn.FORMULATEXT(INDIRECT(S1134))=T1134,0,1)","v":0}]
[null,null,null,null,null,null,null,null,null,null,null,null,null,null,null,null,null,null,{"$f":"ADDRESS(65,7,1,1,$S$1)","v":"'Geographic Diversification'!$G$65"},"=SUM(G40:G63)",{"$f":"IF(_xlfn.FORMULATEXT(INDIRECT(S1135))=T1135,0,1)","v":0}]
[null,null,null,null,null,null,null,null,null,null,null,null,null,null,null,null,null,null,{"$f":"ADDRESS(65,8,1,1,$S$1)","v":"'Geographic Diversification'!$H$65"},"=SUM(H40:H63)",{"$f":"IF(_xlfn.FORMULATEXT(INDIRECT(S1136))=T1136,0,1)","v":0}]
[null,null,null,null,null,null,null,null,null,null,null,null,null,null,null,null,null,null,{"$f":"ADDRESS(65,9,1,1,$S$1)","v":"'Geographic Diversification'!$I$65"},"=SUM(I40:I63)",{"$f":"IF(_xlfn.FORMULATEXT(INDIRECT(S1137))=T1137,0,1)","v":0}]
[null,null,null,null,null,null,null,null,null,null,null,null,null,null,null,null,null,null,{"$f":"ADDRESS(65,10,1,1,$S$1)","v":"'Geographic Diversification'!$J$65"},"=SUM(J40:J63)",{"$f":"IF(_xlfn.FORMULATEXT(INDIRECT(S1138))=T1138,0,1)","v":0}]
[null,null,null,null,null,null,null,null,null,null,null,null,null,null,null,null,null,null,{"$f":"ADDRESS(65,11,1,1,$S$1)","v":"'Geographic Diversification'!$K$65"},"=SUM(K40:K63)",{"$f":"IF(_xlfn.FORMULATEXT(INDIRECT(S1139))=T1139,0,1)","v":0}]
[null,null,null,null,null,null,null,null,null,null,null,null,null,null,null,null,null,null,{"$f":"ADDRESS(65,12,1,1,$S$1)","v":"'Geographic Diversification'!$L$65"},"=SUM(L40:L63)",{"$f":"IF(_xlfn.FORMULATEXT(INDIRECT(S1140))=T1140,0,1)","v":0}]
[null,null,null,null,null,null,null,null,null,null,null,null,null,null,null,null,null,null,{"$f":"ADDRESS(65,13,1,1,$S$1)","v":"'Geographic Diversification'!$M$65"},"=SUM(M40:M63)",{"$f":"IF(_xlfn.FORMULATEXT(INDIRECT(S1141))=T1141,0,1)","v":0}]
[null,null,null,null,null,null,null,null,null,null,null,null,null,null,null,null,null,null,{"$f":"ADDRESS(65,14,1,1,$S$1)","v":"'Geographic Diversification'!$N$65"},"=SUM(N40:N63)",{"$f":"IF(_xlfn.FORMULATEXT(INDIRECT(S1142))=T1142,0,1)","v":0}]
[null,null,null,null,null,null,null,null,null,null,null,null,null,null,null,null,null,null,{"$f":"ADDRESS(65,15,1,1,$S$1)","v":"'Geographic Diversification'!$O$65"},"=SUM(O40:O63)",{"$f":"IF(_xlfn.FORMULATEXT(INDIRECT(S1143))=T1143,0,1)","v":0}]
[null,null,null,null,null,null,null,null,null,null,null,null,null,null,null,null,null,null,{"$f":"ADDRESS(65,16,1,1,$S$1)","v":"'Geographic Diversification'!$P$65"},"=SUM(P40:P63)",{"$f":"IF(_xlfn.FORMULATEXT(INDIRECT(S1144))=T1144,0,1)","v":0}]
[null,null,null,null,null,null,null,null,null,null,null,null,null,null,null,null,null,null,{"$f":"ADDRESS(65,17,1,1,$S$1)","v":"'Geographic Diversification'!$Q$65"},"=SUM(Q40:Q63)",{"$f":"IF(_xlfn.FORMULATEXT(INDIRECT(S1145))=T1145,0,1)","v":0}]
[null,null,null,null,null,null,null,null,null,null,null,null,null,null,null,null,null,null,{"$f":"ADDRESS(65,18,1,1,$S$1)","v":"'Geographic Diversification'!$R$65"},"=SUM(R40:R63)",{"$f":"IF(_xlfn.FORMULATEXT(INDIRECT(S1146))=T1146,0,1)","v":0}]
[null,null,null,null,null,null,null,null,null,null,null,null,null,null,null,null,null,null,{"$f":"ADDRESS(65,19,1,1,$S$1)","v":"'Geographic Diversification'!$S$65"},"=SUM(S40:S63)",{"$f":"IF(_xlfn.FORMULATEXT(INDIRECT(S1147))=T1147,0,1)","v":0}]
[null,null,null,null,null,null,null,null,null,null,null,null,null,null,null,null,null,null,{"$f":"ADDRESS(65,20,1,1,$S$1)","v":"'Geographic Diversification'!$T$65"},"=SUM(T40:T63)",{"$f":"IF(_xlfn.FORMULATEXT(INDIRECT(S1148))=T1148,0,1)","v":0}]
[null,null,null,null,null,null,null,null,null,null,null,null,null,null,null,null,null,null,{"$f":"ADDRESS(65,21,1,1,$S$1)","v":"'Geographic Diversification'!$U$65"},"=SUM(U40:U63)",{"$f":"IF(_xlfn.FORMULATEXT(INDIRECT(S1149))=T1149,0,1)","v":0}]
[null,null,null,null,null,null,null,null,null,null,null,null,null,null,null,null,null,null,{"$f":"ADDRESS(65,22,1,1,$S$1)","v":"'Geographic Diversification'!$V$65"},"=SUM(V40:V63)",{"$f":"IF(_xlfn.FORMULATEXT(INDIRECT(S1150))=T1150,0,1)","v":0}]
[null,null,null,null,null,null,null,null,null,null,null,null,null,null,null,null,null,null,{"$f":"ADDRESS(65,23,1,1,$S$1)","v":"'Geographic Diversification'!$W$65"},"=SUM(W40:W63)",{"$f":"IF(_xlfn.FORMULATEXT(INDIRECT(S1151))=T1151,0,1)","v":0}]
[null,null,null,null,null,null,null,null,null,null,null,null,null,null,null,null,null,null,{"$f":"ADDRESS(65,24,1,1,$S$1)","v":"'Geographic Diversification'!$X$65"},"=SUM(X40:X63)",{"$f":"IF(_xlfn.FORMULATEXT(INDIRECT(S1152))=T1152,0,1)","v":0}]
[null,null,null,null,null,null,null,null,null,null,null,null,null,null,null,null,null,null,{"$f":"ADDRESS(65,25,1,1,$S$1)","v":"'Geographic Diversification'!$Y$65"},"=SUM(Y40:Y63)",{"$f":"IF(_xlfn.FORMULATEXT(INDIRECT(S1153))=T1153,0,1)","v":0}]
[null,null,null,null,null,null,null,null,null,null,null,null,null,null,null,null,null,null,{"$f":"ADDRESS(65,26,1,1,$S$1)","v":"'Geographic Diversification'!$Z$65"},"=SUM(Z40:Z63)",{"$f":"IF(_xlfn.FORMULATEXT(INDIRECT(S1154))=T1154,0,1)","v":0}]
[null,null,null,null,null,null,null,null,null,null,null,null,null,null,null,null,null,null,null,null,-1155]